{"text_format":"3","workbook":"xlsx","n_sheets":9,"sheets":["Calculator","CZTE Tax Rates","Base Pay Data","BAH no Dep RAW","BAH no Dep","BAH w Dep RAW","BAH w Dep","SDP","Name Ranges"],"not_rendered":{"images":1,"macros":1,"defined_names":77},"read":"whole","date_system":"1900"}

{"sheet":"Calculator","index":0,"n_rows":122,"n_cols":18,"rows_kept":122,"merged":[[0,0,0,4],[1,0,1,6],[2,5,2,6],[7,2,7,3],[9,2,9,3],[10,2,10,3],[10,4,10,6],[11,2,11,3],[11,4,11,6],[15,2,15,3],[15,4,15,5],[16,2,16,3],[16,4,16,5],[17,2,17,3],[19,2,19,3],[20,2,20,3],[25,2,25,3],[26,2,26,3],[27,2,27,3],[28,2,28,3],[28,4,28,6],[29,2,29,3],[29,4,29,6],[38,2,38,3],[63,1,63,2],[63,3,63,4],[67,0,69,0],[67,1,67,3],[68,1,68,3],[69,1,69,3],[70,0,74,0],[70,1,70,3],[70,7,70,8],[71,1,71,3],[72,1,72,3],[72,7,72,9],[73,1,73,3],[74,1,74,3],[75,0,77,0],[75,1,75,3],[75,7,75,8],[76,1,76,3],[77,1,77,3],[78,0,78,3],[78,7,78,8],[79,0,79,4],[82,2,82,3],[83,2,83,3],[83,4,83,5],[85,0,85,1],[88,2,88,3],[90,2,90,3],[91,2,91,3],[92,2,92,3],[93,2,93,3],[94,2,94,3],[95,2,95,3],[96,2,96,3],[97,2,97,3],[98,2,98,3],[99,2,99,3],[100,2,100,3],[101,2,101,3],[102,2,102,3],[103,2,103,3],[104,2,104,3],[107,7,107,8],[109,0,109,1],[111,2,111,3],[112,2,112,3],[112,4,112,6],[113,2,113,3],[113,4,113,6],[114,2,114,3],[115,2,115,3],[121,7,121,8]]}
["Deployment Financial Calculator"]
["DISCLAIMER:  This calculator is designed as a financial planning tool to anticipate the gross earnings from your deployment. Due to countless potential scenarios, this sheet cannot provide exact amounts of your future entitlements. Also, due to unforseeable fluctuating Base Pay & BAH rates, your entitlements may alter from one calendar year to the next. Finally, this tool does not include in-transit per diem, including per diem for CAST.  Please refer to your LES's, settlement travel voucher, and the JFTR for more specific details on what you will be entitled to."]
["It's recommended to obtain the LES from the month previous to your deployment (for tax information):",{"$nulls":3},"Visit MyPay","AF Portal CAC Login"]
["Last updated 5 October 2010"]
[]
["Enter Your Basic Information"]
[]
["Rank:",null,"[Choose]",{"$nulls":11},{"$f":"IF(B8>0,1,0)","v":0}]
["BAH Rank Formula:",{"$f":"VLOOKUP(B8,Ranks2,3,FALSE)","v":{"$error":"#N/A"}},"(HIDE ROW)"]
["Number of Years Served:           (Upon Departure Date)",null,"[Choose]",{"$nulls":11},{"$f":"IF(B10>0,1,0)","v":0}]
["Duty State:       (For OCONUS/Base Housing - Leave Blank)",null,"[Choose]",null,"What about OCONUS OHA?",{"$nulls":9},0]
["Duty Location: (For OCONUS/Base Housing - Leave Blank)",null,"[Choose]",null,"What if I'm in Base Housing?",{"$nulls":9},0]
["Base Pay Formula Equation:",{"$f":"B8& B10","v":""},"(HIDE ROW)",null,{"$f":"VLOOKUP(B11,StateCode,2,FALSE)","v":{"$error":"#N/A"}}]
["Total Base Pay (No longevity/promotion):",{"$f":"IF(B10>0,VLOOKUP(B13,Basepay,2,FALSE)*B24,0)","v":{"v":0,"d":"$0.00"}},"(HIDE ROW)"]
["BAH Formula Equation:",{"$f":"IF(B12>0,B12&B11&B9,IF(#REF!>0,#REF!&B11&B9,IF(#REF!>0,#REF!&B11&B9,IF(#REF!>0,#REF!&B11&B9,IF(B11=0,0)))))","v":{"$error":"#REF!"}},"(HIDE ROW)"]
["Do you Claim BAH w/ Dependents?",null,"[Choose]",{"$nulls":11},{"$f":"IF(B16>0,1,0)","v":0}]
["Are you part of a Mil-to-Mil Couple?",null,"[Choose]",null,"READ:  Mil-to-Mil FSA",null,{"$f":"B16 & B17","v":""},{"$nulls":7},0]
["# of Days on Orders:",null,"[Enter # of Days]",{"$nulls":11},0]
["# of Months Deployed:",{"$f":"IF(B18>0,(SUM(B18+1)/30.417),0)","v":{"v":0,"d":"0.00"}},"(HIDE ROW)",null,{"$f":"DATE(H19,C23,1)","v":{"$error":"#NUM!"}},null,{"$f":"((B20-G23)/J19)*SUM(B26:B27)","v":{"$error":"#NUM!"}},{"$f":"YEAR(B20)","v":1900},{"$f":"EOMONTH(B20,0)","v":"1900-01-31"},{"$f":"DAY(I19)","v":31},{"$f":"((B19*2.5)/30)*SUM(B26:B27)","v":{"v":0,"d":"$0.00"}}]
["Date of Departure from Perm. Duty Station:",null,"[MM-DD-YY]",{"$nulls":11},0]
["In-AOR Arrival Date:",null,"[MM-DD-YY]",{"$nulls":11},0]
["Re-deployment Date:",{"$f":"IF(B18=0,0,SUM(B21+B18-1))","v":"00:00:00"},{"$f":"IF(B22=0,0,MONTH(B22))","v":0},{"$f":"((G22-B22)/H22)*SUM(B26:B27)","v":{"v":0,"d":"$0.00"}},{"$f":"YEAR(B23)","v":1900},null,{"$f":"EOMONTH(B23,0)","v":"1900-01-31"},{"$f":"DAY(G22)","v":31},"(HIDE ROW)",{"$nulls":5},{"$f":"IF(C22>0,C22,1)","v":1}]
["Return Date to Perm. Duty Station:",{"$f":"IF(B21-B20<=9,B22+(B21-B20),B22+5)","v":"00:00:00"},{"$f":"IF(B23=0,0,MONTH(B21))","v":0},{"$f":"IF(B23=0,0,MONTH(B20))","v":0},{"$f":"ROUND(((G22-E19)/30),0)","v":{"$error":"#NUM!"}},null,{"$f":"DATE(H19,D23,1)","v":{"$error":"#NUM!"}},null,"(HIDE ROW)",{"$nulls":5},{"$f":"IF(C23>0,C23,2)","v":2}]
["Total Time Away For Deployment:",{"$f":"IF(B20>0,((B23-B20+1)/30.417),0)","v":{"v":0,"d":"0.00"}},"(HIDE ROW)"]
["Monthly BAH Rate:",{"$f":"IF(B11=0,0,IF(B16=0,0,IF(B16=\"Yes\",VLOOKUP(B15,BAHdep,2,FALSE),IF(B16=\"No\",VLOOKUP(B15,BAHnodep,2,FALSE),))))","v":{"v":0,"d":"$0.00"}},"(HIDE ROW)"]
["Federal Taxes/Month:                          (Pre-deployment)",null,"[Enter Amount]",{"$nulls":11},{"$f":"IF(B26>0,1,0)","v":0}]
["State Taxes/Month:                               (Pre-deployment)",null,"[Enter Amount]"]
["Hazardous (Hardship) Duty Pay Amount:",{"$f":"IF(B64=0,0,IF(B64=\"Afghanistan\",100,IF(B64=\"Cuba - Guantanamo Bay\",100,IF(B64=\"Iraq\",100,IF(B64=\"Cuba - Guantanamo Bay, Joint Task Force\",150,IF(B64=\"Cuba - Havana\",150,IF(B64=\"Cuba - Other\",50,IF(B64=\"Djibouti\",100,IF(B64=\"Haiti\",100,IF(B64=\"Kuwait\",100,IF(B64=\"Kyrgyzstan\",100,IF(B64=\"Pakistan\",100,IF(B64=\"Qatar - Al Udeid AB\",50,IF(B64=\"Qatar - Other\",0,IF(B64=\"United Arab Emirates - Dubai\",0,IF(B64=\"United Arab Emirates - Other\",100))))))))))))))))","v":{"v":0,"d":"$0"}},"(HIDE ROW)"]
["Daily Per Diem Rate:                           (Field Rate - $3.50)",null,"[Enter Amount]",null,"How much is my Per Diem rate?",{"$nulls":9},0]
["Pay Longevity Increase Date:                   (If applicable)",null,"[MM-DD-YY]",null,"What's my Longevity Date?"]
["# of Months Until Longevity:",{"$f":"IF(B30>0,(B30-B20)/30.417,0)","v":{"v":0,"d":"0.00"}},"(HIDE ROW)",null,"Promotion/Longevity Scenarios"]
["Number of Years Served:           (Post-longevity)",{"$f":"IF(B30>0,VLOOKUP(B10,Longevity,2,FALSE),0)","v":0},"(HIDE ROW)",null,"No promotion or longevity"]
["Longevity Pay Formula Equation: ",{"$f":"IF(B30>0,B8& B32,0)","v":"00:00:00"},"(HIDE ROW)",null,"Promotion"]
["Base Pay Before Longevity:",{"$f":"IF(B30>0,((B30-B20)/30.14)*VLOOKUP(B13,Basepay,2,FALSE),0)","v":{"v":0,"d":"$0.00"}},"(HIDE ROW)",null,"Longevity"]
["Base Pay After Longevity:",{"$f":"IF(B30>0,(((B23-B30+1)/30.14)*VLOOKUP(B33,Basepay,2,FALSE)),0)","v":{"v":0,"d":"$0.00"}},"(HIDE ROW)",null,"Longevity/promotion on the same day"]
["Total Base Pay (Longevity):",{"$f":"SUM(B34:B35)","v":{"v":0,"d":"$0.00"}},"(HIDE ROW)",null,"Promotion before longevity"]
["Longevity Additional Base Pay:",{"$f":"IF(B30>0,SUM(B34:B35)-B14,0)","v":{"v":0,"d":"$0.00"}},"(HIDE ROW)",null,"Longevity before promotion"]
["BAH After Longevity:",{"$f":"IF(B41>0,B41*B44,0)","v":{"v":0,"d":"$0.00"}},"(HIDE ROW)"]
["Promotion Date:                                            (If applicable)",null,"[MM-DD-YY]"]
["# of Months Until Promotion:",{"$f":"(B39-B20)/30.417","v":{"v":0,"d":"0.00"}},"(HIDE ROW)"]
["# of Months After Promotion & Longevity:",{"$f":"IF(B39>B30,B24-B40,IF(B30>B39,B24-B31,IF(B30=B39,(B23-B30+1)/30.417)))","v":{"v":0.032876352039977644,"d":"0.03"}},"(HIDE ROW)"]
["Promotion BAH Rank Formula:",{"$f":"IF(B48>0,(VLOOKUP(B9,PromoteBAH,2,FALSE)),0)","v":"00:00:00"},"(HIDE ROW)"]
["BAH Formula Equation (After Promotion):",{"$f":"IF(B12>0,B12&B11&B42,IF(#REF!>0,#REF!&B11&B42,IF(#REF!>0,#REF!&B11&B42,IF(#REF!>0,#REF!&B11&B42,IF(B11=0,\"N/A\")))))","v":{"$error":"#REF!"}},"(HIDE ROW)"]
["Promotion Monthly BAH Rate:",{"$f":"IF(B11=0,0,IF(B16=\"Yes\",VLOOKUP(B43,BAHdep,2,FALSE),IF(B16=\"No\",VLOOKUP(B43,BAHnodep,2,FALSE))))","v":{"v":0,"d":"$0.00"}},"(HIDE ROW)"]
["BAH Pay Before Promotion:",{"$f":"((B39-B20)/30)*B25","v":{"v":0,"d":"$0.00"}},"(HIDE ROW)"]
[" BAH Pay After Promotion:",{"$f":"((B23-B39+1)/30)*B44","v":{"v":0,"d":"$0.00"}},"(HIDE ROW)"]
["Total Promotion BAH:",{"$f":"IF(B39>0,SUM(B45:B46),0)","v":{"v":0,"d":"$0.00"}},"(HIDE ROW)"]
["Promotion Base Pay Rank:",{"$f":"IF(B39>0,(VLOOKUP(B8,Ranks2,2,FALSE)),0)","v":"00:00:00"},"(HIDE ROW)"]
["Promotion Base Pay Formula Equation: ",{"$f":"IF(B32>B10,B48& B32,IF(B32=\"Over 10\",B48& B32,IF(B39>0,B48& B10,IF(B48=0,0))))","v":0},"(HIDE ROW)",null,{"$f":"VLOOKUP(B49,Basepay,2,FALSE)","v":{"$error":"#N/A"}}]
["Base Pay Before Promotion:",{"$f":"((B39-B20)/30)*VLOOKUP(B13,Basepay,2,FALSE)","v":{"$error":"#N/A"}},"(HIDE ROW)"]
[" Base Pay After Promotion/Longevity:",{"$f":"(B41*VLOOKUP(B49,Basepay,2,FALSE))","v":{"$error":"#N/A"}},"(HIDE ROW)"]
["Promotion/Longevity Base Pay:",{"$f":"IF(B39>0,SUM(B50:B51),0)","v":{"v":0,"d":"$0.00"}},"(HIDE ROW)"]
["Time Between Longevity & Promotion:",{"$f":"IF(B39>B30,(B39-B30)/30.417,IF(B30>B39,(B30-B39)/30.417,IF(B30=B39,0)))","v":{"v":0,"d":"0.00"}},"(HIDE ROW)"]
["Base Pay After Longevity, Before Promotion:",{"$f":"IF(B39>B30,(B53*VLOOKUP(B33,Basepay,2,FALSE)),0)","v":{"v":0,"d":"$0.00"}},"(HIDE ROW)"]
["BAH Pay After Promotion, Before Longevity:",{"$f":"IF(B39<B30,(B53*B44),0)","v":{"v":0,"d":"$0.00"}},"(HIDE ROW)"]
["Base Pay After Promotion, Before Longevity:",{"$f":"IF(B30>B39,(B53*(VLOOKUP(B49,Basepay,2,FALSE))),0)","v":{"v":0,"d":"$0.00"}},"(HIDE ROW)"]
["Total BAH Pay (Promotion Before Longevity):",{"$f":"IF(B53>0,B45+B55+B38,0)","v":{"v":0,"d":"$0.00"}},"(HIDE ROW)"]
["Total Base Pay (Promotion Before Longevity):",{"$f":"IF(B53>0,B50+B56+B35,0)","v":{"v":0,"d":"$0.00"}},"(HIDE ROW)"]
["Total BAH Pay (Longevity Before Promotion):",{"$f":"IF(B53>0,B47,0)","v":{"v":0,"d":"$0.00"}},"(HIDE ROW)"]
["Total Base Pay (Longevity Before Promotion):",{"$f":"IF(B53>0,B34+B54+B51,0)","v":{"v":0,"d":"$0.00"}},"(HIDE ROW)"]
["Promotion, No Longevity:",{"$f":"IF(B39>0,\"Promote\",\"\")","v":""},"(HIDE ROW)"]
["Longevity, No Promotion:",{"$f":"IF(B30>0,\"Longevity\",\"\")","v":""},"(HIDE ROW)"]
["Scenario Formula:",{"$f":"B61&B62","v":""},"(HIDE ROW)"]
["Choose Deployed Location:",null,null,"     [Choose]",{"$nulls":10},{"$f":"IF(B64>0,4,0)","v":0},{"$f":"SUM(O8,O10,O11,O12,O16,O17, O18,O20,O21,O26,O29,O64)","v":0}]
[]
["Entitlements"]
[{"$nulls":4},"Monthly (Avg) ",null,"Total"]
["Primary Pay:","BAS:",null,null,{"$f":"IF(B8>0,VLOOKUP(B8,BAS,2,FALSE),0)","v":{"v":0,"d":"$0.00"}},null,{"$f":"E68*B24","v":{"v":0,"d":"$0.00"}}]
[null,"BAH:",null,null,{"$f":"IF(G69>0,G69/B24,0)","v":{"v":0,"d":"$0.00"}},null,{"$f":"IF(B30+B39=0,B24*B25,IF(B63=\"Promote\",B47,IF(B63=\"Longevity\",B24*B25,IF(B53=0,B47,IF(B39<B30,B57,IF(B39>B30,B59))))))","v":{"v":0,"d":"$0.00"}}]
[null,"Base Pay:",null,null,{"$f":"IF(G70>0,G70/B24,0)","v":{"v":0,"d":"$0.00"}},null,{"$f":"IF(H70=0,0,IF((H70/B24)>=14975.1,(14975.1*B24),IF((H70/B24)<14975.1,H70)))","v":{"v":0,"d":"$0.00"}},{"$f":"IF(B30+B39=0,B14,IF(B63=\"Promote\",B52,IF(B63=\"Longevity\",B36,IF(B53=0,B52,IF(B39<B30,B58,IF(B39>B30,B60))))))","v":0}]
["Deployment Pay:","FSA:",null,null,{"$f":"IF(G17=\"YesNo\",(8.33*SUM(B23-B20))/B24,IF(G17=0,0,IF(G17=\"Yes\",0,IF(G17=\"No\",0,IF(G17=\"NoNo\",0,IF(G17=\"YesYes\",0,IF(G17=\"NoYes\",0)))))))","v":false},null,{"$f":"IF(G17=\"YesNo\",(8.33*SUM(B23-B20)),IF(G17=0,0,IF(G17=\"Yes\",0,IF(G17=\"No\",0,IF(G17=\"NoNo\",0,IF(G17=\"YesYes\",0,IF(G17=\"NoYes\",0)))))))","v":false}]
[null,"In-Country Per Diem:",null,null,{"$f":"IF(B19>0,B29*((B22-B21)/B19),0)","v":{"v":0,"d":"$0.00"}},null,{"$f":"IF(B29=\"[Enter Amount]\",0,B29*B18)","v":{"v":0,"d":"$0.00"}}]
[null,"Combat Zone Tax Exclusion Additional Pay:",null,null,{"$f":"IF(G73>0,(G73/B24),0)","v":{"v":0,"d":"$0.00"}},null,{"$f":"IF(B24>0,G19+D22+K19,0)","v":{"v":0,"d":"$0.00"}},"    What's CZTE Additional Pay?"]
[null,"Hazardous (Hardship) Duty Pay (HDP):",null,null,{"$f":"B28","v":{"v":0,"d":"$0"}},null,{"$f":"(B28/30)*B18","v":{"v":0,"d":"$0"}}]
[null,"Hostile Fire Pay / Imminent Danger Pay:",null,null,{"v":225,"d":"$225"},null,{"$f":"IF(C22>C23,(225*SUM(C22-C23+1)),IF(C23>C22,(225*SUM(12-C23+C22+1)),IF((O22/O23)=0.5,0,IF((C22/C23)=1,(225*13)))))","v":{"v":0,"d":"$0"}}]
["Enter Other Monthly \nEntitlements & Allowances:                (If applicable)","[Additional Monthly Entitlement - If Applicable]",null,null,"[Enter Amount]",null,{"$f":"IF(E76=\"[Enter Amount]\",0,E76*B24)","v":{"v":0,"d":"$0.00"}},"    What does this Include?"]
[null,"[Additional Monthly Entitlement - If Applicable]",null,null,"[Enter Amount]",null,{"$f":"IF(E77=\"[Enter Amount]\",0,E77*B24)","v":{"v":0,"d":"$0.00"}}]
[null,"[Additional Monthly Entitlement - If Applicable]",null,null,"[Enter Amount]",null,{"$f":"IF(E78=\"[Enter Amount]\",0,E78*B24)","v":{"v":0,"d":"$0.00"}}]
["Additional Household Income:",{"$nulls":3},"[Enter Amount]",null,{"$f":"IF(E79=\"[Enter Amount]\",0,E79*B24)","v":{"v":0,"d":"$0.00"}},"    What does this Include?"]
["Re-enlistment and/or Other Bonuses:                (If applicable)",{"$nulls":5},"[Enter Amount]"]
["Total Entitlements:",{"$nulls":3},{"$f":"IF(G81>0,(G81/B24),0)","v":{"v":0,"d":"$0.00"}},null,{"$f":"IF(G80=\"[Enter Amount]\",SUM(G68:G79),SUM(G68:G80))","v":{"v":0,"d":"$0.00"}}]
[]
["Would you like to input your expenses?",null,"[Choose]",{"$nulls":11},{"$f":"B83&B84","v":""}]
["Would you like to input your investments?",null,"[Choose]",null,"[Scroll Down]"]
[]
["Enter Your Major Monthly Expenses / Allotments         ",{"$nulls":14},{"$f":"IF(P88>0,1,0)","v":{"$error":"#N/A"}},{"$f":"IF(Q88>0,1,0)","v":{"$error":"#N/A"}}]
[{"$nulls":14},1,3,"2,4","5,6"]
["Taxable Income (Base Pay - TSP/IRA - (CMSAF pay + HFP/IDP)):",{"$f":"IF(B30+B39=0,O91,IF(B63=\"Promote\",Q91,IF(B63=\"Longevity\",P91,IF(B53=0,Q91,IF(B39<B30,R91,IF(B39>B30,R91))))))","v":{"$error":"#N/A"}},"(HIDE ROW)",{"$nulls":11},{"$f":"IF((VLOOKUP(B13,Basepay,2,FALSE)-B112-7611.3)<=0,0,VLOOKUP(B13,Basepay,2,FALSE)-B112-7611.3)","v":{"$error":"#N/A"}},{"$f":"IF((VLOOKUP(B33,Basepay,2,FALSE)-B112-7611.3<=0),0,VLOOKUP(B33,Basepay,2,FALSE)-B112-7611.3)","v":{"$error":"#N/A"}},{"$f":"IF((VLOOKUP(B49,Basepay,2,FALSE)-B112-7611<=0),0,VLOOKUP(B49,Basepay,2,FALSE)-B112-7611)","v":{"$error":"#N/A"}},{"$f":"IF(P88=0,Q88,IF(Q88=0,P88,IF(SUM(P88:Q88)=0,0,IF(SUM(P86:Q86)=2,AVERAGE(P88:Q88)))))","v":{"$error":"#N/A"}}]
["Federal Taxes (During Deployment):",{"$f":"IF(B26>0,((B26/VLOOKUP(B13,Basepay,2,FALSE))*B88),0)","v":{"v":0,"d":"$0.00"}},"Why am I Taxed?",{"$nulls":11},{"v":1,"d":"100%"},{"$f":"((E23-B31)/E23)","v":{"$error":"#NUM!"}},{"$f":"(B41)/E23","v":{"$error":"#NUM!"}},{"$f":"IF(P88=0,Q89,IF(Q88=0,P89,IF(SUM(P88:Q88)=0,0,IF(SUM(P86:Q86)=2,AVERAGE(P89:Q89)))))","v":{"$error":"#N/A"}}]
["State Taxes (During Deployment):",{"$f":"IF(B27>0,((B27/VLOOKUP(B13,Basepay,2,FALSE))*B88),0)","v":{"v":0,"d":"$0.00"}},{"$nulls":12},{"$f":"O88*E23","v":{"$error":"#N/A"}},{"$f":"(P88*E23)*P89","v":{"$error":"#N/A"}},{"$f":"(Q88*E23)*Q89","v":{"$error":"#N/A"}},{"$f":"R88*E23*R89","v":{"$error":"#N/A"}}]
["Rent/Mortgage:        (For OCONUS - Leave Blank)",null,"[Enter Amount]",{"$nulls":11},{"$f":"O90/E23","v":{"$error":"#N/A"}},{"$f":"P90/E23","v":{"$error":"#N/A"}},{"$f":"Q90/E23","v":{"$error":"#N/A"}},{"$f":"R90/E23","v":{"$error":"#N/A"}}]
["FICA - Social Security:                      (LES Needed)",null,"[Enter Amount]"]
["FICA - Medicare:                                (LES Needed)",null,"[Enter Amount]"]
["SGLI:                               (100% Coverage is $27/mo.)",null,"[Enter Amount]"]
["Car Payment(s):",null,"[Enter Amount]"]
["Loan Payment(s):",null,"[Enter Amount]"]
["Phone/Cable/Internet:",null,"[Enter Amount]"]
["Deployed Internet:",null,"[Enter Amount]"]
["Utilities:",null,"[Enter Amount]"]
["Child Care:",null,"[Enter Amount]"]
["Groceries:",null,"[Enter Amount]"]
["Haircuts:",null,"[Enter Amount]"]
["Incidental/EAGLE Cash Card Expenses:",null,"[Enter Amount]"]
["Charitable Contributions:",null,"[Enter Amount]"]
["Other Expenses:",null,"[Enter Amount]",null,"Monthly (Avg) ",null,"Total"]
["Total Expenses:",{"$nulls":3},{"$f":"IF(G106>0,G106/B24,0)","v":{"v":0,"d":"$0.00"}},null,{"$f":"((SUM(B89:B97,B99:B105)*B24)+(B98*B19))","v":{"v":0,"d":"$0.00"}}]
[]
["Total Savings:",{"$nulls":3},{"$f":"IF(G108>0,G108/B24,0)","v":{"v":0,"d":"$0.00"}},null,{"$f":"G81-G106","v":{"v":0,"d":"$0.00"}},"What does this mean?"]
[]
["Enter Your Investments"]
[]
["Monthly TSP/IRA:",null,"[Enter Amount]"]
["Pre-Deployment, Continued Investments:",null,"[Enter Amount]",null,"    What does this Include?"]
["Investments Started Upon Arrival in AOR:",null,"[Enter Amount]",null,"    What does this Include?"]
["Will you Invest in the Savings Deposit Program (SDP)?",null,"[Choose]"]
["Total Amount Invested into SDP:",null,"[Enter Amount]"]
["SDP Start-up Interest Date:",{"$f":"IF(B116>0,(EOMONTH(D117,0)+1),0)","v":"00:00:00"},{"$f":"DAY(D117)","v":29},{"$f":"B21+30-1","v":"1900-01-29"},{"$nulls":3},"(HIDE ROW)"]
["SDP Cut-off Interest Date:",{"$f":"IF(B116>0,SUM(D118-C118),0)","v":"00:00:00"},{"$f":"DAY(D118)","v":30},{"$f":"B22+90","v":"1900-03-30"},{"$nulls":3},"(HIDE ROW)"]
["# of Mo.'s of SDP Interest:",{"$f":"IF(D119>C119,D119-C119+1,12+D119-C119+1)","v":{"v":13,"d":"13.00"}},{"$f":"MONTH(B117)","v":1},{"$f":"MONTH(B118)","v":1},{"$nulls":3},"(HIDE ROW)"]
["Potential Max SDP Interest Earned:",{"$f":"IF(B116>0,SDP!D18,0)","v":{"v":0,"d":"$0"}}]
[{"$nulls":4},"Monthly (Avg) ",null,"Total"]
["Residual Savings",{"$nulls":3},{"$f":"IF(G122>0,G122/B24,0)","v":{"v":0,"d":"$0.00"}},null,{"$f":"IF(G108>0,(G108-(SUM(B112:B114)*B24))+B120,0)","v":{"v":0,"d":"$0.00"}},"What does this mean?"]

{"sheet":"CZTE Tax Rates","index":1,"n_rows":14,"n_cols":4,"rows_kept":14,"hidden":true}
[null,"Mo. 1","Mo. 2"]
["Base Pay",7928.7,9577.2]
["Federal Tax",960,126.94]
["TSP",634.3,766.18]
["Total Annual",{"$f":"(B2-B4)*12","v":87532.79999999999},{"$f":"(C2-C4)*12","v":105732.24}]
["Taxable Income",7294.4,1199.7200000000003]
["% Taxed",{"v":0.13160780872998465,"d":"13.161%"},{"v":0.10580802187177006,"d":"10.581%"}]
[]
[]
[]
[]
[]
[{"$nulls":3},{"$f":"3*126.94","v":380.82}]
[{"$nulls":3},{"$f":"D13/12","v":31.735}]

{"sheet":"Base Pay Data","index":2,"n_rows":31,"n_cols":23,"rows_kept":31,"hidden":true}
[" BASIC PAY  ",{"$f":"index","v":{"$error":"#NAME?"}}]
["Pay Grade  "," 2 or less  "," Over 2  "," Over 3  "," Over 4  "," Over 6  "," Over 8  "," Over 10  "," Over 12  "," Over 14  "," Over 16  "," Over 18  ","Over 20  ","Over 22  ","Over 24  ","Over 26  ","Over 28  ","Over 30  ","Over 32  ","Over 34  ","Over 36  ","Over 38 ","Over 40  "]
[" O-10",{"$nulls":11},{"v":15188.1,"d":"$15,188.10"},{"v":15262.2,"d":"$15,262.20"},{"v":15579.6,"d":"$15,579.60"},{"v":16132.5,"d":"$16,132.50"},{"v":16132.5,"d":"$16,132.50"},{"v":16939.2,"d":"$16,939.20"},{"v":16939.2,"d":"$16,939.20"},{"v":17785.8,"d":"$17,785.80"},{"v":17785.8,"d":"$17,785.80"},{"v":18675.3,"d":"$18,675.30"},{"v":18675.3,"d":"$18,675.30"}]
[" O-9  "," "," "," "," "," "," "," "," "," "," "," ",{"v":13283.7,"d":"$13,283.70"},{"v":13475.1,"d":"$13,475.10"},{"v":13751.4,"d":"$13,751.40"},{"v":14233.8,"d":"$14,233.80"},{"v":14233.8,"d":"$14,233.80"},{"v":14946,"d":"$14,946.00"},{"v":14946,"d":"$14,946.00"},{"v":15693.3,"d":"$15,693.30"},{"v":15693.3,"d":"$15,693.30"},{"v":16477.8,"d":"$16,477.80"},{"v":16477.8,"d":"$16,477.80"}]
[" O-8  ",{"v":9399,"d":"$9,399.00"},{"v":9706.8,"d":"$9,706.80"},{"v":9911.1,"d":"$9,911.10"},{"v":9968.4,"d":"$9,968.40"},{"v":10223.4,"d":"$10,223.40"},{"v":10649.1,"d":"$10,649.10"},{"v":10748.4,"d":"$10,748.40"},{"v":11152.8,"d":"$11,152.80"},{"v":11268.6,"d":"$11,268.60"},{"v":11617.2,"d":"$11,617.20"},{"v":12121.2,"d":"$12,121.20"},{"v":12586.2,"d":"$12,586.20"},{"v":12896.7,"d":"$12,896.70"},{"v":12896.7,"d":"$12,896.70"},{"v":12896.7,"d":"$12,896.70"},{"v":12896.7,"d":"$12,896.70"},{"v":13219.2,"d":"$13,219.20"},{"v":13219.2,"d":"$13,219.20"},{"v":13549.8,"d":"$13,549.80"},{"v":13549.8,"d":"$13,549.80"},{"v":13549.8,"d":"$13,549.80"},{"v":13549.8,"d":"$13,549.80"}]
[" O-7  ",{"v":7809.9,"d":"$7,809.90"},{"v":8172.9,"d":"$8,172.90"},{"v":8340.6,"d":"$8,340.60"},{"v":8474.1,"d":"$8,474.10"},{"v":8715.6,"d":"$8,715.60"},{"v":8954.4,"d":"$8,954.40"},{"v":9230.4,"d":"$9,230.40"},{"v":9505.5,"d":"$9,505.50"},{"v":9781.8,"d":"$9,781.80"},{"v":10649.1,"d":"$10,649.10"},{"v":11381.4,"d":"$11,381.40"},{"v":11381.4,"d":"$11,381.40"},{"v":11381.4,"d":"$11,381.40"},{"v":11381.4,"d":"$11,381.40"},{"v":11439.3,"d":"$11,439.30"},{"v":11439.3,"d":"$11,439.30"},{"v":11668.2,"d":"$11,668.20"},{"v":11668.2,"d":"$11,668.20"},{"v":11668.2,"d":"$11,668.20"},{"v":11668.2,"d":"$11,668.20"},{"v":11668.2,"d":"$11,668.20"},{"v":11668.2,"d":"$11,668.20"}]
[" O-6  ",{"v":5788.5,"d":"$5,788.50"},{"v":6359.4,"d":"$6,359.40"},{"v":6776.7,"d":"$6,776.70"},{"v":6776.7,"d":"$6,776.70"},{"v":6802.5,"d":"$6,802.50"},{"v":7094.1,"d":"$7,094.10"},{"v":7132.5,"d":"$7,132.50"},{"v":7132.5,"d":"$7,132.50"},{"v":7537.8,"d":"$7,537.80"},{"v":8254.8,"d":"$8,254.80"},{"v":8675.4,"d":"$8,675.40"},{"v":9095.7,"d":"$9,095.70"},{"v":9334.8,"d":"$9,334.80"},{"v":9577.2,"d":"$9,577.20"},{"v":10047,"d":"$10,047.00"},{"v":10047,"d":"$10,047.00"},{"v":10247.7,"d":"$10,247.70"},{"v":10247.7,"d":"$10,247.70"},{"v":10247.7,"d":"$10,247.70"},{"v":10247.7,"d":"$10,247.70"},{"v":10247.7,"d":"$10,247.70"},{"v":10247.7,"d":"$10,247.70"}]
[" O-5  ",{"v":4825.5,"d":"$4,825.50"},{"v":5436,"d":"$5,436.00"},{"v":5812.5,"d":"$5,812.50"},{"v":5883.3,"d":"$5,883.30"},{"v":6117.9,"d":"$6,117.90"},{"v":6258.6,"d":"$6,258.60"},{"v":6567.6,"d":"$6,567.60"},{"v":6794.1,"d":"$6,794.10"},{"v":7086.9,"d":"$7,086.90"},{"v":7535.1,"d":"$7,535.10"},{"v":7748.1,"d":"$7,748.10"},{"v":7959,"d":"$7,959.00"},{"v":8198.4,"d":"$8,198.40"},{"v":8198.4,"d":"$8,198.40"},{"v":8198.4,"d":"$8,198.40"},{"v":8198.4,"d":"$8,198.40"},{"v":8198.4,"d":"$8,198.40"},{"v":8198.4,"d":"$8,198.40"},{"v":8198.4,"d":"$8,198.40"},{"v":8198.4,"d":"$8,198.40"},{"v":8198.4,"d":"$8,198.40"},{"v":8198.4,"d":"$8,198.40"}]
[" O-4  ",{"v":4163.7,"d":"$4,163.70"},{"v":4819.8,"d":"$4,819.80"},{"v":5141.4,"d":"$5,141.40"},{"v":5213.1,"d":"$5,213.10"},{"v":5511.6,"d":"$5,511.60"},{"v":5831.7,"d":"$5,831.70"},{"v":6230.1,"d":"$6,230.10"},{"v":6540.6,"d":"$6,540.60"},{"v":6756.6,"d":"$6,756.60"},{"v":6880.2,"d":"$6,880.20"},{"v":6951.9,"d":"$6,951.90"},{"v":6951.9,"d":"$6,951.90"},{"v":6951.9,"d":"$6,951.90"},{"v":6951.9,"d":"$6,951.90"},{"v":6951.9,"d":"$6,951.90"},{"v":6951.9,"d":"$6,951.90"},{"v":6951.9,"d":"$6,951.90"},{"v":6951.9,"d":"$6,951.90"},{"v":6951.9,"d":"$6,951.90"},{"v":6951.9,"d":"$6,951.90"},{"v":6951.9,"d":"$6,951.90"},{"v":6951.9,"d":"$6,951.90"}]
[" O-3  ",{"v":3660.6,"d":"$3,660.60"},{"v":4149.9,"d":"$4,149.90"},{"v":4479.3,"d":"$4,479.30"},{"v":4883.4,"d":"$4,883.40"},{"v":5117.1,"d":"$5,117.10"},{"v":5373.9,"d":"$5,373.90"},{"v":5540.1,"d":"$5,540.10"},{"v":5813.4,"d":"$5,813.40"},{"v":5955.6,"d":"$5,955.60"},{"v":5955.6,"d":"$5,955.60"},{"v":5955.6,"d":"$5,955.60"},{"v":5955.6,"d":"$5,955.60"},{"v":5955.6,"d":"$5,955.60"},{"v":5955.6,"d":"$5,955.60"},{"v":5955.6,"d":"$5,955.60"},{"v":5955.6,"d":"$5,955.60"},{"v":5955.6,"d":"$5,955.60"},{"v":5955.6,"d":"$5,955.60"},{"v":5955.6,"d":"$5,955.60"},{"v":5955.6,"d":"$5,955.60"},{"v":5955.6,"d":"$5,955.60"},{"v":5955.6,"d":"$5,955.60"}]
[" O-2  ",{"v":3162.9,"d":"$3,162.90"},{"v":3602.4,"d":"$3,602.40"},{"v":4149,"d":"$4,149.00"},{"v":4289.1,"d":"$4,289.10"},{"v":4377.3,"d":"$4,377.30"},{"v":4377.3,"d":"$4,377.30"},{"v":4377.3,"d":"$4,377.30"},{"v":4377.3,"d":"$4,377.30"},{"v":4377.3,"d":"$4,377.30"},{"v":4377.3,"d":"$4,377.30"},{"v":4377.3,"d":"$4,377.30"},{"v":4377.3,"d":"$4,377.30"},{"v":4377.3,"d":"$4,377.30"},{"v":4377.3,"d":"$4,377.30"},{"v":4377.3,"d":"$4,377.30"},{"v":4377.3,"d":"$4,377.30"},{"v":4377.3,"d":"$4,377.30"},{"v":4377.3,"d":"$4,377.30"},{"v":4377.3,"d":"$4,377.30"},{"v":4377.3,"d":"$4,377.30"},{"v":4377.3,"d":"$4,377.30"},{"v":4377.3,"d":"$4,377.30"}]
[" O-1  ",{"v":2745.6,"d":"$2,745.60"},{"v":2857.5,"d":"$2,857.50"},{"v":3454.2,"d":"$3,454.20"},{"v":3454.2,"d":"$3,454.20"},{"v":3454.2,"d":"$3,454.20"},{"v":3454.2,"d":"$3,454.20"},{"v":3454.2,"d":"$3,454.20"},{"v":3454.2,"d":"$3,454.20"},{"v":3454.2,"d":"$3,454.20"},{"v":3454.2,"d":"$3,454.20"},{"v":3454.2,"d":"$3,454.20"},{"v":3454.2,"d":"$3,454.20"},{"v":3454.2,"d":"$3,454.20"},{"v":3454.2,"d":"$3,454.20"},{"v":3454.2,"d":"$3,454.20"},{"v":3454.2,"d":"$3,454.20"},{"v":3454.2,"d":"$3,454.20"},{"v":3454.2,"d":"$3,454.20"},{"v":3454.2,"d":"$3,454.20"},{"v":3454.2,"d":"$3,454.20"},{"v":3454.2,"d":"$3,454.20"},{"v":3454.2,"d":"$3,454.20"}]
[" O-3E"," "," ",null,{"v":4883.4,"d":"$4,883.40"},{"v":5117.1,"d":"$5,117.10"},{"v":5373.9,"d":"$5,373.90"},{"v":5540.1,"d":"$5,540.10"},{"v":5813.4,"d":"$5,813.40"},{"v":6043.5,"d":"$6,043.50"},{"v":6175.8,"d":"$6,175.80"},{"v":6355.8,"d":"$6,355.80"},{"v":6355.8,"d":"$6,355.80"},{"v":6355.8,"d":"$6,355.80"},{"v":6355.8,"d":"$6,355.80"},{"v":6355.8,"d":"$6,355.80"},{"v":6355.8,"d":"$6,355.80"},{"v":6355.8,"d":"$6,355.80"},{"v":6355.8,"d":"$6,355.80"},{"v":6355.8,"d":"$6,355.80"},{"v":6355.8,"d":"$6,355.80"},{"v":6355.8,"d":"$6,355.80"},{"v":6355.8,"d":"$6,355.80"}]
[" O-2E"," "," ",null,{"v":4289.1,"d":"$4,289.10"},{"v":4377.3,"d":"$4,377.30"},{"v":4516.8,"d":"$4,516.80"},{"v":4752,"d":"$4,752.00"},{"v":4933.8,"d":"$4,933.80"},{"v":5069.1,"d":"$5,069.10"},{"v":5069.1,"d":"$5,069.10"},{"v":5069.1,"d":"$5,069.10"},{"v":5069.1,"d":"$5,069.10"},{"v":5069.1,"d":"$5,069.10"},{"v":5069.1,"d":"$5,069.10"},{"v":5069.1,"d":"$5,069.10"},{"v":5069.1,"d":"$5,069.10"},{"v":5069.1,"d":"$5,069.10"},{"v":5069.1,"d":"$5,069.10"},{"v":5069.1,"d":"$5,069.10"},{"v":5069.1,"d":"$5,069.10"},{"v":5069.1,"d":"$5,069.10"},{"v":5069.1,"d":"$5,069.10"}]
[" O-1E"," "," ",null,{"v":3454.2,"d":"$3,454.20"},{"v":3688.8,"d":"$3,688.80"},{"v":3825,"d":"$3,825.00"},{"v":3964.8,"d":"$3,964.80"},{"v":4101.6,"d":"$4,101.60"},{"v":4289.1,"d":"$4,289.10"},{"v":4289.1,"d":"$4,289.10"},{"v":4289.1,"d":"$4,289.10"},{"v":4289.1,"d":"$4,289.10"},{"v":4289.1,"d":"$4,289.10"},{"v":4289.1,"d":"$4,289.10"},{"v":4289.1,"d":"$4,289.10"},{"v":4289.1,"d":"$4,289.10"},{"v":4289.1,"d":"$4,289.10"},{"v":4289.1,"d":"$4,289.10"},{"v":4289.1,"d":"$4,289.10"},{"v":4289.1,"d":"$4,289.10"},{"v":4289.1,"d":"$4,289.10"},{"v":4289.1,"d":"$4,289.10"}]
[" W-5  "," "," "," "," "," "," "," "," "," "," "," ",{"v":6726.6,"d":"$6,726.60"},{"v":7068,"d":"$7,068.00"},{"v":7322.1,"d":"$7,322.10"},{"v":7603.5,"d":"$7,603.50"},{"v":7603.5,"d":"$7,603.50"},{"v":7983.9,"d":"$7,983.90"},{"v":7983.9,"d":"$7,983.90"},{"v":8383.2,"d":"$8,383.20"},{"v":8383.2,"d":"$8,383.20"},{"v":8802.6,"d":"$8,802.60"},{"v":8802.6,"d":"$8,802.60"}]
[" W-4  ",{"v":3783,"d":"$3,783.00"},{"v":4069.5,"d":"$4,069.50"},{"v":4186.5,"d":"$4,186.50"},{"v":4301.1,"d":"$4,301.10"},{"v":4499.1,"d":"$4,499.10"},{"v":4695,"d":"$4,695.00"},{"v":4893,"d":"$4,893.00"},{"v":5191.8,"d":"$5,191.80"},{"v":5453.4,"d":"$5,453.40"},{"v":5702.1,"d":"$5,702.10"},{"v":5905.5,"d":"$5,905.50"},{"v":6104.1,"d":"$6,104.10"},{"v":6396,"d":"$6,396.00"},{"v":6635.4,"d":"$6,635.40"},{"v":6909,"d":"$6,909.00"},{"v":6909,"d":"$6,909.00"},{"v":7047,"d":"$7,047.00"},{"v":7047,"d":"$7,047.00"},{"v":7047,"d":"$7,047.00"},{"v":7047,"d":"$7,047.00"},{"v":7047,"d":"$7,047.00"},{"v":7047,"d":"$7,047.00"}]
[" W-3  ",{"v":3454.5,"d":"$3,454.50"},{"v":3598.5,"d":"$3,598.50"},{"v":3746.1,"d":"$3,746.10"},{"v":3794.7,"d":"$3,794.70"},{"v":3949.5,"d":"$3,949.50"},{"v":4254,"d":"$4,254.00"},{"v":4571.1,"d":"$4,571.10"},{"v":4720.2,"d":"$4,720.20"},{"v":4892.7,"d":"$4,892.70"},{"v":5070.9,"d":"$5,070.90"},{"v":5390.4,"d":"$5,390.40"},{"v":5606.7,"d":"$5,606.70"},{"v":5736,"d":"$5,736.00"},{"v":5873.4,"d":"$5,873.40"},{"v":6060,"d":"$6,060.00"},{"v":6060,"d":"$6,060.00"},{"v":6060,"d":"$6,060.00"},{"v":6060,"d":"$6,060.00"},{"v":6060,"d":"$6,060.00"},{"v":6060,"d":"$6,060.00"},{"v":6060,"d":"$6,060.00"},{"v":6060,"d":"$6,060.00"}]
[" W-2  ",{"v":3057,"d":"$3,057.00"},{"v":3346.2,"d":"$3,346.20"},{"v":3435.3,"d":"$3,435.30"},{"v":3496.5,"d":"$3,496.50"},{"v":3694.8,"d":"$3,694.80"},{"v":4002.9,"d":"$4,002.90"},{"v":4155.3,"d":"$4,155.30"},{"v":4305.9,"d":"$4,305.90"},{"v":4489.5,"d":"$4,489.50"},{"v":4633.2,"d":"$4,633.20"},{"v":4763.4,"d":"$4,763.40"},{"v":4918.8,"d":"$4,918.80"},{"v":5021.4,"d":"$5,021.40"},{"v":5102.7,"d":"$5,102.70"},{"v":5102.7,"d":"$5,102.70"},{"v":5102.7,"d":"$5,102.70"},{"v":5102.7,"d":"$5,102.70"},{"v":5102.7,"d":"$5,102.70"},{"v":5102.7,"d":"$5,102.70"},{"v":5102.7,"d":"$5,102.70"},{"v":5102.7,"d":"$5,102.70"},{"v":5102.7,"d":"$5,102.70"}]
[" W-1  ",{"v":2683.5,"d":"$2,683.50"},{"v":2971.8,"d":"$2,971.80"},{"v":3049.8,"d":"$3,049.80"},{"v":3213.9,"d":"$3,213.90"},{"v":3408.3,"d":"$3,408.30"},{"v":3694.2,"d":"$3,694.20"},{"v":3827.7,"d":"$3,827.70"},{"v":4014.3,"d":"$4,014.30"},{"v":4197.9,"d":"$4,197.90"},{"v":4342.2,"d":"$4,342.20"},{"v":4475.4,"d":"$4,475.40"},{"v":4636.8,"d":"$4,636.80"},{"v":4636.8,"d":"$4,636.80"},{"v":4636.8,"d":"$4,636.80"},{"v":4636.8,"d":"$4,636.80"},{"v":4636.8,"d":"$4,636.80"},{"v":4636.8,"d":"$4,636.80"},{"v":4636.8,"d":"$4,636.80"},{"v":4636.8,"d":"$4,636.80"},{"v":4636.8,"d":"$4,636.80"},{"v":4636.8,"d":"$4,636.80"},{"v":4636.8,"d":"$4,636.80"}]
[" E-9"," "," "," "," "," "," ",{"v":4570.8,"d":"$4,570.80"},{"v":4674.3,"d":"$4,674.30"},{"v":4804.8,"d":"$4,804.80"},{"v":4958.4,"d":"$4,958.40"},{"v":5112.9,"d":"$5,112.90"},{"v":5361.6,"d":"$5,361.60"},{"v":5571.3,"d":"$5,571.30"},{"v":5792.4,"d":"$5,792.40"},{"v":6129.9,"d":"$6,129.90"},{"v":6129.9,"d":"$6,129.90"},{"v":6436.2,"d":"$6,436.20"},{"v":6436.2,"d":"$6,436.20"},{"v":6758.4,"d":"$6,758.40"},{"v":6758.4,"d":"$6,758.40"},{"v":7096.5,"d":"$7,096.50"},{"v":7096.5,"d":"$7,096.50"}]
[" E-8  "," "," "," "," "," ",{"v":3741.6,"d":"$3,741.60"},{"v":3907.2,"d":"$3,907.20"},{"v":4009.5,"d":"$4,009.50"},{"v":4132.5,"d":"$4,132.50"},{"v":4265.4,"d":"$4,265.40"},{"v":4505.4,"d":"$4,505.40"},{"v":4626.9,"d":"$4,626.90"},{"v":4833.9,"d":"$4,833.90"},{"v":4948.5,"d":"$4,948.50"},{"v":5231.4,"d":"$5,231.40"},{"v":5231.4,"d":"$5,231.40"},{"v":5336.4,"d":"$5,336.40"},{"v":5336.4,"d":"$5,336.40"},{"v":5336.4,"d":"$5,336.40"},{"v":5336.4,"d":"$5,336.40"},{"v":5336.4,"d":"$5,336.40"},{"v":5336.4,"d":"$5,336.40"}]
[" E-7  ",{"v":2601,"d":"$2,601.00"},{"v":2838.9,"d":"$2,838.90"},{"v":2947.5,"d":"$2,947.50"},{"v":3091.8,"d":"$3,091.80"},{"v":3204,"d":"$3,204.00"},{"v":3396.9,"d":"$3,396.90"},{"v":3505.5,"d":"$3,505.50"},{"v":3699,"d":"$3,699.00"},{"v":3859.5,"d":"$3,859.50"},{"v":3969,"d":"$3,969.00"},{"v":4085.7,"d":"$4,085.70"},{"v":4131.3,"d":"$4,131.30"},{"v":4282.8,"d":"$4,282.80"},{"v":4364.4,"d":"$4,364.40"},{"v":4674.6,"d":"$4,674.60"},{"v":4674.6,"d":"$4,674.60"},{"v":4674.6,"d":"$4,674.60"},{"v":4674.6,"d":"$4,674.60"},{"v":4674.6,"d":"$4,674.60"},{"v":4674.6,"d":"$4,674.60"},{"v":4674.6,"d":"$4,674.60"},{"v":4674.6,"d":"$4,674.60"}]
[" E-6  ",{"v":2249.7,"d":"$2,249.70"},{"v":2475.3,"d":"$2,475.30"},{"v":2584.5,"d":"$2,584.50"},{"v":2690.7,"d":"$2,690.70"},{"v":2801.4,"d":"$2,801.40"},{"v":3051,"d":"$3,051.00"},{"v":3148.2,"d":"$3,148.20"},{"v":3336,"d":"$3,336.00"},{"v":3393.6,"d":"$3,393.60"},{"v":3435.6,"d":"$3,435.60"},{"v":3484.5,"d":"$3,484.50"},{"v":3484.5,"d":"$3,484.50"},{"v":3484.5,"d":"$3,484.50"},{"v":3484.5,"d":"$3,484.50"},{"v":3484.5,"d":"$3,484.50"},{"v":3484.5,"d":"$3,484.50"},{"v":3484.5,"d":"$3,484.50"},{"v":3484.5,"d":"$3,484.50"},{"v":3484.5,"d":"$3,484.50"},{"v":3484.5,"d":"$3,484.50"},{"v":3484.5,"d":"$3,484.50"},{"v":3484.5,"d":"$3,484.50"}]
[" E-5  ",{"v":2061.3,"d":"$2,061.30"},{"v":2199.3,"d":"$2,199.30"},{"v":2305.5,"d":"$2,305.50"},{"v":2414.4,"d":"$2,414.40"},{"v":2583.9,"d":"$2,583.90"},{"v":2761.8,"d":"$2,761.80"},{"v":2906.7,"d":"$2,906.70"},{"v":2924.7,"d":"$2,924.70"},{"v":2924.7,"d":"$2,924.70"},{"v":2924.7,"d":"$2,924.70"},{"v":2924.7,"d":"$2,924.70"},{"v":2924.7,"d":"$2,924.70"},{"v":2924.7,"d":"$2,924.70"},{"v":2924.7,"d":"$2,924.70"},{"v":2924.7,"d":"$2,924.70"},{"v":2924.7,"d":"$2,924.70"},{"v":2924.7,"d":"$2,924.70"},{"v":2924.7,"d":"$2,924.70"},{"v":2924.7,"d":"$2,924.70"},{"v":2924.7,"d":"$2,924.70"},{"v":2924.7,"d":"$2,924.70"},{"v":2924.7,"d":"$2,924.70"}]
[" E-4  ",{"v":1889.7,"d":"$1,889.70"},{"v":1986.3,"d":"$1,986.30"},{"v":2094,"d":"$2,094.00"},{"v":2199.9,"d":"$2,199.90"},{"v":2293.8,"d":"$2,293.80"},{"v":2293.8,"d":"$2,293.80"},{"v":2293.8,"d":"$2,293.80"},{"v":2293.8,"d":"$2,293.80"},{"v":2293.8,"d":"$2,293.80"},{"v":2293.8,"d":"$2,293.80"},{"v":2293.8,"d":"$2,293.80"},{"v":2293.8,"d":"$2,293.80"},{"v":2293.8,"d":"$2,293.80"},{"v":2293.8,"d":"$2,293.80"},{"v":2293.8,"d":"$2,293.80"},{"v":2293.8,"d":"$2,293.80"},{"v":2293.8,"d":"$2,293.80"},{"v":2293.8,"d":"$2,293.80"},{"v":2293.8,"d":"$2,293.80"},{"v":2293.8,"d":"$2,293.80"},{"v":2293.8,"d":"$2,293.80"},{"v":2293.8,"d":"$2,293.80"}]
[" E-3  ",{"v":1705.8,"d":"$1,705.80"},{"v":1813.2,"d":"$1,813.20"},{"v":1923,"d":"$1,923.00"},{"v":1923,"d":"$1,923.00"},{"v":1923,"d":"$1,923.00"},{"v":1923,"d":"$1,923.00"},{"v":1923,"d":"$1,923.00"},{"v":1923,"d":"$1,923.00"},{"v":1923,"d":"$1,923.00"},{"v":1923,"d":"$1,923.00"},{"v":1923,"d":"$1,923.00"},{"v":1923,"d":"$1,923.00"},{"v":1923,"d":"$1,923.00"},{"v":1923,"d":"$1,923.00"},{"v":1923,"d":"$1,923.00"},{"v":1923,"d":"$1,923.00"},{"v":1923,"d":"$1,923.00"},{"v":1923,"d":"$1,923.00"},{"v":1923,"d":"$1,923.00"},{"v":1923,"d":"$1,923.00"},{"v":1923,"d":"$1,923.00"},{"v":1923,"d":"$1,923.00"}]
[" E-2  ",{"v":1622.1,"d":"$1,622.10"},{"v":1622.1,"d":"$1,622.10"},{"v":1622.1,"d":"$1,622.10"},{"v":1622.1,"d":"$1,622.10"},{"v":1622.1,"d":"$1,622.10"},{"v":1622.1,"d":"$1,622.10"},{"v":1622.1,"d":"$1,622.10"},{"v":1622.1,"d":"$1,622.10"},{"v":1622.1,"d":"$1,622.10"},{"v":1622.1,"d":"$1,622.10"},{"v":1622.1,"d":"$1,622.10"},{"v":1622.1,"d":"$1,622.10"},{"v":1622.1,"d":"$1,622.10"},{"v":1622.1,"d":"$1,622.10"},{"v":1622.1,"d":"$1,622.10"},{"v":1622.1,"d":"$1,622.10"},{"v":1622.1,"d":"$1,622.10"},{"v":1622.1,"d":"$1,622.10"},{"v":1622.1,"d":"$1,622.10"},{"v":1622.1,"d":"$1,622.10"},{"v":1622.1,"d":"$1,622.10"},{"v":1622.1,"d":"$1,622.10"}]
[" E-1",{"v":1447.2,"d":"$1,447.20"}," "," "," "," "," "," "," "," "," "," "]
[]
[null,"EFFECTIVE JANUARY 1, 2010"]

{"sheet":"BAH no Dep RAW","index":3,"n_rows":13505,"n_cols":28,"rows_kept":13505,"hidden":true}
["City","State","Rank","Amount"," E1 "," E2 "," E3 "," E4 "," E5 "," E6 "," E7 "," E8 "," E9 "," W01 "," W02 "," W03 "," W04 "," W05 "," O1E "," O2E "," O3E "," O1 "," O2 "," O3 "," O4 "," O5 "," O6 "," O7 "]
[{"$f":"HYPERLINK(A1,\"KETCHIKAN\")","v":"KETCHIKAN"},"AK","E1",{"v":1191,"d":"$1,191"},{"v":1191,"d":"$1,191"},{"v":1191,"d":"$1,191"},{"v":1191,"d":"$1,191"},{"v":1191,"d":"$1,191"},{"v":1434,"d":"$1,434"},{"v":1434,"d":"$1,434"},{"v":1551,"d":"$1,551"},{"v":1677,"d":"$1,677"},{"v":1794,"d":"$1,794"},{"v":1437,"d":"$1,437"},{"v":1650,"d":"$1,650"},{"v":1761,"d":"$1,761"},{"v":1950,"d":"$1,950"},{"v":2106,"d":"$2,106"},{"v":1587,"d":"$1,587"},{"v":1734,"d":"$1,734"},{"v":1911,"d":"$1,911"},{"v":1434,"d":"$1,434"},{"v":1548,"d":"$1,548"},{"v":1794,"d":"$1,794"},{"v":2085,"d":"$2,085"},{"v":2184,"d":"$2,184"},{"v":2343,"d":"$2,343"},{"v":2391,"d":"$2,391"}]
[{"$f":"HYPERLINK(A2,\"KETCHIKAN\")","v":"KETCHIKAN"},"AK","E2",{"v":1191,"d":"$1,191"}]
["KETCHIKAN","AK","E3",{"v":1191,"d":"$1,191"}]
["KETCHIKAN","AK","E4",{"v":1191,"d":"$1,191"}]
["KETCHIKAN","AK","E5",{"v":1434,"d":"$1,434"}]
["KETCHIKAN","AK","E6",{"v":1434,"d":"$1,434"}]
["KETCHIKAN","AK","E7",{"v":1551,"d":"$1,551"}]
["KETCHIKAN","AK","E8",{"v":1677,"d":"$1,677"}]
["KETCHIKAN","AK","E9",{"v":1794,"d":"$1,794"}]
["KETCHIKAN","AK","W01",{"v":1437,"d":"$1,437"}]
["KETCHIKAN","AK","W02",{"v":1650,"d":"$1,650"}]
["KETCHIKAN","AK","W03",{"v":1761,"d":"$1,761"}]
["KETCHIKAN","AK","W04",{"v":1950,"d":"$1,950"}]
["KETCHIKAN","AK","W05",{"v":2106,"d":"$2,106"}]
["KETCHIKAN","AK","O1E",{"v":1587,"d":"$1,587"}]
["KETCHIKAN","AK","O2E",{"v":1734,"d":"$1,734"}]
["KETCHIKAN","AK","O3E",{"v":1911,"d":"$1,911"}]
["KETCHIKAN","AK","O1",{"v":1434,"d":"$1,434"}]
["KETCHIKAN","AK","O2",{"v":1548,"d":"$1,548"}]
["KETCHIKAN","AK","O3",{"v":1794,"d":"$1,794"}]
["KETCHIKAN","AK","O4",{"v":2085,"d":"$2,085"}]
["KETCHIKAN","AK","O5",{"v":2184,"d":"$2,184"}]
["KETCHIKAN","AK","O6",{"v":2343,"d":"$2,343"}]
["KETCHIKAN","AK","O7",{"v":2391,"d":"$2,391"}]
["SITKA","AK","E1",{"v":1350,"d":"$1,350"},{"v":1350,"d":"$1,350"},{"v":1350,"d":"$1,350"},{"v":1350,"d":"$1,350"},{"v":1350,"d":"$1,350"},{"v":1530,"d":"$1,530"},{"v":1536,"d":"$1,536"},{"v":1665,"d":"$1,665"},{"v":1845,"d":"$1,845"},{"v":1920,"d":"$1,920"},{"v":1602,"d":"$1,602"},{"v":1845,"d":"$1,845"},{"v":1929,"d":"$1,929"},{"v":2067,"d":"$2,067"},{"v":2172,"d":"$2,172"},{"v":1797,"d":"$1,797"},{"v":1905,"d":"$1,905"},{"v":2040,"d":"$2,040"},{"v":1530,"d":"$1,530"},{"v":1749,"d":"$1,749"},{"v":1953,"d":"$1,953"},{"v":2157,"d":"$2,157"},{"v":2226,"d":"$2,226"},{"v":2334,"d":"$2,334"},{"v":2382,"d":"$2,382"}]
["SITKA","AK","E2",{"v":1350,"d":"$1,350"}]
["SITKA","AK","E3",{"v":1350,"d":"$1,350"}]
["SITKA","AK","E4",{"v":1350,"d":"$1,350"}]
["SITKA","AK","E5",{"v":1530,"d":"$1,530"}]
["SITKA","AK","E6",{"v":1536,"d":"$1,536"}]
["SITKA","AK","E7",{"v":1665,"d":"$1,665"}]
["SITKA","AK","E8",{"v":1845,"d":"$1,845"}]
["SITKA","AK","E9",{"v":1920,"d":"$1,920"}]
["SITKA","AK","W01",{"v":1602,"d":"$1,602"}]
["SITKA","AK","W02",{"v":1845,"d":"$1,845"}]
["SITKA","AK","W03",{"v":1929,"d":"$1,929"}]
["SITKA","AK","W04",{"v":2067,"d":"$2,067"}]
["SITKA","AK","W05",{"v":2172,"d":"$2,172"}]
["SITKA","AK","O1E",{"v":1797,"d":"$1,797"}]
["SITKA","AK","O2E",{"v":1905,"d":"$1,905"}]
["SITKA","AK","O3E",{"v":2040,"d":"$2,040"}]
["SITKA","AK","O1",{"v":1530,"d":"$1,530"}]
["SITKA","AK","O2",{"v":1749,"d":"$1,749"}]
["SITKA","AK","O3",{"v":1953,"d":"$1,953"}]
["SITKA","AK","O4",{"v":2157,"d":"$2,157"}]
["SITKA","AK","O5",{"v":2226,"d":"$2,226"}]
["SITKA","AK","O6",{"v":2334,"d":"$2,334"}]
["SITKA","AK","O7",{"v":2382,"d":"$2,382"}]
["JUNEAU","AK","E1",{"v":1365,"d":"$1,365"},{"v":1365,"d":"$1,365"},{"v":1365,"d":"$1,365"},{"v":1365,"d":"$1,365"},{"v":1365,"d":"$1,365"},{"v":1593,"d":"$1,593"},{"v":1593,"d":"$1,593"},{"v":1641,"d":"$1,641"},{"v":1878,"d":"$1,878"},{"v":1974,"d":"$1,974"},{"v":1593,"d":"$1,593"},{"v":1875,"d":"$1,875"},{"v":1983,"d":"$1,983"},{"v":2139,"d":"$2,139"},{"v":2205,"d":"$2,205"},{"v":1818,"d":"$1,818"},{"v":1953,"d":"$1,953"},{"v":2124,"d":"$2,124"},{"v":1593,"d":"$1,593"},{"v":1743,"d":"$1,743"},{"v":2013,"d":"$2,013"},{"v":2196,"d":"$2,196"},{"v":2238,"d":"$2,238"},{"v":2304,"d":"$2,304"},{"v":2349,"d":"$2,349"}]
["JUNEAU","AK","E2",{"v":1365,"d":"$1,365"}]
["JUNEAU","AK","E3",{"v":1365,"d":"$1,365"}]
["JUNEAU","AK","E4",{"v":1365,"d":"$1,365"}]
["JUNEAU","AK","E5",{"v":1593,"d":"$1,593"}]
["JUNEAU","AK","E6",{"v":1593,"d":"$1,593"}]
["JUNEAU","AK","E7",{"v":1641,"d":"$1,641"}]
["JUNEAU","AK","E8",{"v":1878,"d":"$1,878"}]
["JUNEAU","AK","E9",{"v":1974,"d":"$1,974"}]
["JUNEAU","AK","W01",{"v":1593,"d":"$1,593"}]
["JUNEAU","AK","W02",{"v":1875,"d":"$1,875"}]
["JUNEAU","AK","W03",{"v":1983,"d":"$1,983"}]
["JUNEAU","AK","W04",{"v":2139,"d":"$2,139"}]
["JUNEAU","AK","W05",{"v":2205,"d":"$2,205"}]
["JUNEAU","AK","O1E",{"v":1818,"d":"$1,818"}]
["JUNEAU","AK","O2E",{"v":1953,"d":"$1,953"}]
["JUNEAU","AK","O3E",{"v":2124,"d":"$2,124"}]
["JUNEAU","AK","O1",{"v":1593,"d":"$1,593"}]
["JUNEAU","AK","O2",{"v":1743,"d":"$1,743"}]
["JUNEAU","AK","O3",{"v":2013,"d":"$2,013"}]
["JUNEAU","AK","O4",{"v":2196,"d":"$2,196"}]
["JUNEAU","AK","O5",{"v":2238,"d":"$2,238"}]
["JUNEAU","AK","O6",{"v":2304,"d":"$2,304"}]
["JUNEAU","AK","O7",{"v":2349,"d":"$2,349"}]
["KODIAK ISLAND","AK","E1",{"v":1206,"d":"$1,206"},{"v":1206,"d":"$1,206"},{"v":1206,"d":"$1,206"},{"v":1206,"d":"$1,206"},{"v":1206,"d":"$1,206"},{"v":1419,"d":"$1,419"},{"v":1428,"d":"$1,428"},{"v":1518,"d":"$1,518"},{"v":1662,"d":"$1,662"},{"v":1752,"d":"$1,752"},{"v":1476,"d":"$1,476"},{"v":1659,"d":"$1,659"},{"v":1761,"d":"$1,761"},{"v":1920,"d":"$1,920"},{"v":2034,"d":"$2,034"},{"v":1605,"d":"$1,605"},{"v":1731,"d":"$1,731"},{"v":1890,"d":"$1,890"},{"v":1419,"d":"$1,419"},{"v":1575,"d":"$1,575"},{"v":1788,"d":"$1,788"},{"v":2019,"d":"$2,019"},{"v":2094,"d":"$2,094"},{"v":2211,"d":"$2,211"},{"v":2256,"d":"$2,256"}]
["KODIAK ISLAND","AK","E2",{"v":1206,"d":"$1,206"}]
["KODIAK ISLAND","AK","E3",{"v":1206,"d":"$1,206"}]
["KODIAK ISLAND","AK","E4",{"v":1206,"d":"$1,206"}]
["KODIAK ISLAND","AK","E5",{"v":1419,"d":"$1,419"}]
["KODIAK ISLAND","AK","E6",{"v":1428,"d":"$1,428"}]
["KODIAK ISLAND","AK","E7",{"v":1518,"d":"$1,518"}]
["KODIAK ISLAND","AK","E8",{"v":1662,"d":"$1,662"}]
["KODIAK ISLAND","AK","E9",{"v":1752,"d":"$1,752"}]
["KODIAK ISLAND","AK","W01",{"v":1476,"d":"$1,476"}]
["KODIAK ISLAND","AK","W02",{"v":1659,"d":"$1,659"}]
["KODIAK ISLAND","AK","W03",{"v":1761,"d":"$1,761"}]
["KODIAK ISLAND","AK","W04",{"v":1920,"d":"$1,920"}]
["KODIAK ISLAND","AK","W05",{"v":2034,"d":"$2,034"}]
["KODIAK ISLAND","AK","O1E",{"v":1605,"d":"$1,605"}]
["KODIAK ISLAND","AK","O2E",{"v":1731,"d":"$1,731"}]
["KODIAK ISLAND","AK","O3E",{"v":1890,"d":"$1,890"}]
["KODIAK ISLAND","AK","O1",{"v":1419,"d":"$1,419"}]
["KODIAK ISLAND","AK","O2",{"v":1575,"d":"$1,575"}]
["KODIAK ISLAND","AK","O3",{"v":1788,"d":"$1,788"}]
["KODIAK ISLAND","AK","O4",{"v":2019,"d":"$2,019"}]
["KODIAK ISLAND","AK","O5",{"v":2094,"d":"$2,094"}]
["KODIAK ISLAND","AK","O6",{"v":2211,"d":"$2,211"}]
["KODIAK ISLAND","AK","O7",{"v":2256,"d":"$2,256"}]
["ANCHORAGE","AK","E1",{"v":1110,"d":"$1,110"},{"v":1110,"d":"$1,110"},{"v":1110,"d":"$1,110"},{"v":1110,"d":"$1,110"},{"v":1110,"d":"$1,110"},{"v":1377,"d":"$1,377"},{"v":1377,"d":"$1,377"},{"v":1491,"d":"$1,491"},{"v":1614,"d":"$1,614"},{"v":1779,"d":"$1,779"},{"v":1380,"d":"$1,380"},{"v":1545,"d":"$1,545"},{"v":1695,"d":"$1,695"},{"v":1875,"d":"$1,875"},{"v":2025,"d":"$2,025"},{"v":1515,"d":"$1,515"},{"v":1671,"d":"$1,671"},{"v":1836,"d":"$1,836"},{"v":1377,"d":"$1,377"},{"v":1428,"d":"$1,428"},{"v":1707,"d":"$1,707"},{"v":2004,"d":"$2,004"},{"v":2220,"d":"$2,220"},{"v":2259,"d":"$2,259"},{"v":2304,"d":"$2,304"}]
["ANCHORAGE","AK","E2",{"v":1110,"d":"$1,110"}]
["ANCHORAGE","AK","E3",{"v":1110,"d":"$1,110"}]
["ANCHORAGE","AK","E4",{"v":1110,"d":"$1,110"}]
["ANCHORAGE","AK","E5",{"v":1377,"d":"$1,377"}]
["ANCHORAGE","AK","E6",{"v":1377,"d":"$1,377"}]
["ANCHORAGE","AK","E7",{"v":1491,"d":"$1,491"}]
["ANCHORAGE","AK","E8",{"v":1614,"d":"$1,614"}]
["ANCHORAGE","AK","E9",{"v":1779,"d":"$1,779"}]
["ANCHORAGE","AK","W01",{"v":1380,"d":"$1,380"}]
["ANCHORAGE","AK","W02",{"v":1545,"d":"$1,545"}]
["ANCHORAGE","AK","W03",{"v":1695,"d":"$1,695"}]
["ANCHORAGE","AK","W04",{"v":1875,"d":"$1,875"}]
["ANCHORAGE","AK","W05",{"v":2025,"d":"$2,025"}]
["ANCHORAGE","AK","O1E",{"v":1515,"d":"$1,515"}]
["ANCHORAGE","AK","O2E",{"v":1671,"d":"$1,671"}]
["ANCHORAGE","AK","O3E",{"v":1836,"d":"$1,836"}]
["ANCHORAGE","AK","O1",{"v":1377,"d":"$1,377"}]
["ANCHORAGE","AK","O2",{"v":1428,"d":"$1,428"}]
["ANCHORAGE","AK","O3",{"v":1707,"d":"$1,707"}]
["ANCHORAGE","AK","O4",{"v":2004,"d":"$2,004"}]
["ANCHORAGE","AK","O5",{"v":2220,"d":"$2,220"}]
["ANCHORAGE","AK","O6",{"v":2259,"d":"$2,259"}]
["ANCHORAGE","AK","O7",{"v":2304,"d":"$2,304"}]
["FAIRBANKS","AK","E1",{"v":1125,"d":"$1,125"},{"v":1125,"d":"$1,125"},{"v":1125,"d":"$1,125"},{"v":1125,"d":"$1,125"},{"v":1125,"d":"$1,125"},{"v":1365,"d":"$1,365"},{"v":1365,"d":"$1,365"},{"v":1428,"d":"$1,428"},{"v":1563,"d":"$1,563"},{"v":1662,"d":"$1,662"},{"v":1368,"d":"$1,368"},{"v":1560,"d":"$1,560"},{"v":1671,"d":"$1,671"},{"v":1842,"d":"$1,842"},{"v":1926,"d":"$1,926"},{"v":1500,"d":"$1,500"},{"v":1641,"d":"$1,641"},{"v":1821,"d":"$1,821"},{"v":1365,"d":"$1,365"},{"v":1431,"d":"$1,431"},{"v":1704,"d":"$1,704"},{"v":1914,"d":"$1,914"},{"v":1971,"d":"$1,971"},{"v":2058,"d":"$2,058"},{"v":2100,"d":"$2,100"}]
["FAIRBANKS","AK","E2",{"v":1125,"d":"$1,125"}]
["FAIRBANKS","AK","E3",{"v":1125,"d":"$1,125"}]
["FAIRBANKS","AK","E4",{"v":1125,"d":"$1,125"}]
["FAIRBANKS","AK","E5",{"v":1365,"d":"$1,365"}]
["FAIRBANKS","AK","E6",{"v":1365,"d":"$1,365"}]
["FAIRBANKS","AK","E7",{"v":1428,"d":"$1,428"}]
["FAIRBANKS","AK","E8",{"v":1563,"d":"$1,563"}]
["FAIRBANKS","AK","E9",{"v":1662,"d":"$1,662"}]
["FAIRBANKS","AK","W01",{"v":1368,"d":"$1,368"}]
["FAIRBANKS","AK","W02",{"v":1560,"d":"$1,560"}]
["FAIRBANKS","AK","W03",{"v":1671,"d":"$1,671"}]
["FAIRBANKS","AK","W04",{"v":1842,"d":"$1,842"}]
["FAIRBANKS","AK","W05",{"v":1926,"d":"$1,926"}]
["FAIRBANKS","AK","O1E",{"v":1500,"d":"$1,500"}]
["FAIRBANKS","AK","O2E",{"v":1641,"d":"$1,641"}]
["FAIRBANKS","AK","O3E",{"v":1821,"d":"$1,821"}]
["FAIRBANKS","AK","O1",{"v":1365,"d":"$1,365"}]
["FAIRBANKS","AK","O2",{"v":1431,"d":"$1,431"}]
["FAIRBANKS","AK","O3",{"v":1704,"d":"$1,704"}]
["FAIRBANKS","AK","O4",{"v":1914,"d":"$1,914"}]
["FAIRBANKS","AK","O5",{"v":1971,"d":"$1,971"}]
["FAIRBANKS","AK","O6",{"v":2058,"d":"$2,058"}]
["FAIRBANKS","AK","O7",{"v":2100,"d":"$2,100"}]
["ANNISTON/FORT MCCLELLAN","AL","E1",{"v":618,"d":"$618"},{"v":618,"d":"$618"},{"v":618,"d":"$618"},{"v":618,"d":"$618"},{"v":618,"d":"$618"},{"v":705,"d":"$705"},{"v":900,"d":"$900"},{"v":912,"d":"$912"},{"v":927,"d":"$927"},{"v":1020,"d":"$1,020"},{"v":900,"d":"$900"},{"v":918,"d":"$918"},{"v":1032,"d":"$1,032"},{"v":1203,"d":"$1,203"},{"v":1221,"d":"$1,221"},{"v":915,"d":"$915"},{"v":996,"d":"$996"},{"v":1197,"d":"$1,197"},{"v":747,"d":"$747"},{"v":894,"d":"$894"},{"v":1068,"d":"$1,068"},{"v":1218,"d":"$1,218"},{"v":1230,"d":"$1,230"},{"v":1251,"d":"$1,251"},{"v":1275,"d":"$1,275"}]
["ANNISTON/FORT MCCLELLAN","AL","E2",{"v":618,"d":"$618"}]
["ANNISTON/FORT MCCLELLAN","AL","E3",{"v":618,"d":"$618"}]
["ANNISTON/FORT MCCLELLAN","AL","E4",{"v":618,"d":"$618"}]
["ANNISTON/FORT MCCLELLAN","AL","E5",{"v":705,"d":"$705"}]
["ANNISTON/FORT MCCLELLAN","AL","E6",{"v":900,"d":"$900"}]
["ANNISTON/FORT MCCLELLAN","AL","E7",{"v":912,"d":"$912"}]
["ANNISTON/FORT MCCLELLAN","AL","E8",{"v":927,"d":"$927"}]
["ANNISTON/FORT MCCLELLAN","AL","E9",{"v":1020,"d":"$1,020"}]
["ANNISTON/FORT MCCLELLAN","AL","W01",{"v":900,"d":"$900"}]
["ANNISTON/FORT MCCLELLAN","AL","W02",{"v":918,"d":"$918"}]
["ANNISTON/FORT MCCLELLAN","AL","W03",{"v":1032,"d":"$1,032"}]
["ANNISTON/FORT MCCLELLAN","AL","W04",{"v":1203,"d":"$1,203"}]
["ANNISTON/FORT MCCLELLAN","AL","W05",{"v":1221,"d":"$1,221"}]
["ANNISTON/FORT MCCLELLAN","AL","O1E",{"v":915,"d":"$915"}]
["ANNISTON/FORT MCCLELLAN","AL","O2E",{"v":996,"d":"$996"}]
["ANNISTON/FORT MCCLELLAN","AL","O3E",{"v":1197,"d":"$1,197"}]
["ANNISTON/FORT MCCLELLAN","AL","O1",{"v":747,"d":"$747"}]
["ANNISTON/FORT MCCLELLAN","AL","O2",{"v":894,"d":"$894"}]
["ANNISTON/FORT MCCLELLAN","AL","O3",{"v":1068,"d":"$1,068"}]
["ANNISTON/FORT MCCLELLAN","AL","O4",{"v":1218,"d":"$1,218"}]
["ANNISTON/FORT MCCLELLAN","AL","O5",{"v":1230,"d":"$1,230"}]
["ANNISTON/FORT MCCLELLAN","AL","O6",{"v":1251,"d":"$1,251"}]
["ANNISTON/FORT MCCLELLAN","AL","O7",{"v":1275,"d":"$1,275"}]
["FORT RUCKER","AL","E1",{"v":687,"d":"$687"},{"v":687,"d":"$687"},{"v":687,"d":"$687"},{"v":687,"d":"$687"},{"v":687,"d":"$687"},{"v":789,"d":"$789"},{"v":942,"d":"$942"},{"v":1020,"d":"$1,020"},{"v":1107,"d":"$1,107"},{"v":1200,"d":"$1,200"},{"v":942,"d":"$942"},{"v":1092,"d":"$1,092"},{"v":1164,"d":"$1,164"},{"v":1281,"d":"$1,281"},{"v":1389,"d":"$1,389"},{"v":1053,"d":"$1,053"},{"v":1149,"d":"$1,149"},{"v":1254,"d":"$1,254"},{"v":807,"d":"$807"},{"v":1005,"d":"$1,005"},{"v":1182,"d":"$1,182"},{"v":1374,"d":"$1,374"},{"v":1443,"d":"$1,443"},{"v":1551,"d":"$1,551"},{"v":1584,"d":"$1,584"}]
["FORT RUCKER","AL","E2",{"v":687,"d":"$687"}]
["FORT RUCKER","AL","E3",{"v":687,"d":"$687"}]
["FORT RUCKER","AL","E4",{"v":687,"d":"$687"}]
["FORT RUCKER","AL","E5",{"v":789,"d":"$789"}]
["FORT RUCKER","AL","E6",{"v":942,"d":"$942"}]
["FORT RUCKER","AL","E7",{"v":1020,"d":"$1,020"}]
["FORT RUCKER","AL","E8",{"v":1107,"d":"$1,107"}]
["FORT RUCKER","AL","E9",{"v":1200,"d":"$1,200"}]
["FORT RUCKER","AL","W01",{"v":942,"d":"$942"}]
["FORT RUCKER","AL","W02",{"v":1092,"d":"$1,092"}]
["FORT RUCKER","AL","W03",{"v":1164,"d":"$1,164"}]
["FORT RUCKER","AL","W04",{"v":1281,"d":"$1,281"}]
["FORT RUCKER","AL","W05",{"v":1389,"d":"$1,389"}]
["FORT RUCKER","AL","O1E",{"v":1053,"d":"$1,053"}]
["FORT RUCKER","AL","O2E",{"v":1149,"d":"$1,149"}]
["FORT RUCKER","AL","O3E",{"v":1254,"d":"$1,254"}]
["FORT RUCKER","AL","O1",{"v":807,"d":"$807"}]
["FORT RUCKER","AL","O2",{"v":1005,"d":"$1,005"}]
["FORT RUCKER","AL","O3",{"v":1182,"d":"$1,182"}]
["FORT RUCKER","AL","O4",{"v":1374,"d":"$1,374"}]
["FORT RUCKER","AL","O5",{"v":1443,"d":"$1,443"}]
["FORT RUCKER","AL","O6",{"v":1551,"d":"$1,551"}]
["FORT RUCKER","AL","O7",{"v":1584,"d":"$1,584"}]
["HUNTSVILLE","AL","E1",{"v":801,"d":"$801"},{"v":801,"d":"$801"},{"v":801,"d":"$801"},{"v":801,"d":"$801"},{"v":801,"d":"$801"},{"v":915,"d":"$915"},{"v":984,"d":"$984"},{"v":1065,"d":"$1,065"},{"v":1161,"d":"$1,161"},{"v":1185,"d":"$1,185"},{"v":1026,"d":"$1,026"},{"v":1161,"d":"$1,161"},{"v":1188,"d":"$1,188"},{"v":1239,"d":"$1,239"},{"v":1290,"d":"$1,290"},{"v":1146,"d":"$1,146"},{"v":1182,"d":"$1,182"},{"v":1227,"d":"$1,227"},{"v":972,"d":"$972"},{"v":1116,"d":"$1,116"},{"v":1197,"d":"$1,197"},{"v":1284,"d":"$1,284"},{"v":1317,"d":"$1,317"},{"v":1371,"d":"$1,371"},{"v":1398,"d":"$1,398"}]
["HUNTSVILLE","AL","E2",{"v":801,"d":"$801"}]
["HUNTSVILLE","AL","E3",{"v":801,"d":"$801"}]
["HUNTSVILLE","AL","E4",{"v":801,"d":"$801"}]
["HUNTSVILLE","AL","E5",{"v":915,"d":"$915"}]
["HUNTSVILLE","AL","E6",{"v":984,"d":"$984"}]
["HUNTSVILLE","AL","E7",{"v":1065,"d":"$1,065"}]
["HUNTSVILLE","AL","E8",{"v":1161,"d":"$1,161"}]
["HUNTSVILLE","AL","E9",{"v":1185,"d":"$1,185"}]
["HUNTSVILLE","AL","W01",{"v":1026,"d":"$1,026"}]
["HUNTSVILLE","AL","W02",{"v":1161,"d":"$1,161"}]
["HUNTSVILLE","AL","W03",{"v":1188,"d":"$1,188"}]
["HUNTSVILLE","AL","W04",{"v":1239,"d":"$1,239"}]
["HUNTSVILLE","AL","W05",{"v":1290,"d":"$1,290"}]
["HUNTSVILLE","AL","O1E",{"v":1146,"d":"$1,146"}]
["HUNTSVILLE","AL","O2E",{"v":1182,"d":"$1,182"}]
["HUNTSVILLE","AL","O3E",{"v":1227,"d":"$1,227"}]
["HUNTSVILLE","AL","O1",{"v":972,"d":"$972"}]
["HUNTSVILLE","AL","O2",{"v":1116,"d":"$1,116"}]
["HUNTSVILLE","AL","O3",{"v":1197,"d":"$1,197"}]
["HUNTSVILLE","AL","O4",{"v":1284,"d":"$1,284"}]
["HUNTSVILLE","AL","O5",{"v":1317,"d":"$1,317"}]
["HUNTSVILLE","AL","O6",{"v":1371,"d":"$1,371"}]
["HUNTSVILLE","AL","O7",{"v":1398,"d":"$1,398"}]
["MOBILE","AL","E1",{"v":774,"d":"$774"},{"v":774,"d":"$774"},{"v":774,"d":"$774"},{"v":774,"d":"$774"},{"v":774,"d":"$774"},{"v":885,"d":"$885"},{"v":948,"d":"$948"},{"v":987,"d":"$987"},{"v":1059,"d":"$1,059"},{"v":1107,"d":"$1,107"},{"v":969,"d":"$969"},{"v":1059,"d":"$1,059"},{"v":1110,"d":"$1,110"},{"v":1191,"d":"$1,191"},{"v":1233,"d":"$1,233"},{"v":1029,"d":"$1,029"},{"v":1095,"d":"$1,095"},{"v":1179,"d":"$1,179"},{"v":942,"d":"$942"},{"v":1014,"d":"$1,014"},{"v":1125,"d":"$1,125"},{"v":1248,"d":"$1,248"},{"v":1449,"d":"$1,449"},{"v":1464,"d":"$1,464"},{"v":1476,"d":"$1,476"}]
["MOBILE","AL","E2",{"v":774,"d":"$774"}]
["MOBILE","AL","E3",{"v":774,"d":"$774"}]
["MOBILE","AL","E4",{"v":774,"d":"$774"}]
["MOBILE","AL","E5",{"v":885,"d":"$885"}]
["MOBILE","AL","E6",{"v":948,"d":"$948"}]
["MOBILE","AL","E7",{"v":987,"d":"$987"}]
["MOBILE","AL","E8",{"v":1059,"d":"$1,059"}]
["MOBILE","AL","E9",{"v":1107,"d":"$1,107"}]
["MOBILE","AL","W01",{"v":969,"d":"$969"}]
["MOBILE","AL","W02",{"v":1059,"d":"$1,059"}]
["MOBILE","AL","W03",{"v":1110,"d":"$1,110"}]
["MOBILE","AL","W04",{"v":1191,"d":"$1,191"}]
["MOBILE","AL","W05",{"v":1233,"d":"$1,233"}]
["MOBILE","AL","O1E",{"v":1029,"d":"$1,029"}]
["MOBILE","AL","O2E",{"v":1095,"d":"$1,095"}]
["MOBILE","AL","O3E",{"v":1179,"d":"$1,179"}]
["MOBILE","AL","O1",{"v":942,"d":"$942"}]
["MOBILE","AL","O2",{"v":1014,"d":"$1,014"}]
["MOBILE","AL","O3",{"v":1125,"d":"$1,125"}]
["MOBILE","AL","O4",{"v":1248,"d":"$1,248"}]
["MOBILE","AL","O5",{"v":1449,"d":"$1,449"}]
["MOBILE","AL","O6",{"v":1464,"d":"$1,464"}]
["MOBILE","AL","O7",{"v":1476,"d":"$1,476"}]
["MONTGOMERY","AL","E1",{"v":843,"d":"$843"},{"v":843,"d":"$843"},{"v":843,"d":"$843"},{"v":843,"d":"$843"},{"v":843,"d":"$843"},{"v":945,"d":"$945"},{"v":1002,"d":"$1,002"},{"v":1053,"d":"$1,053"},{"v":1128,"d":"$1,128"},{"v":1209,"d":"$1,209"},{"v":1029,"d":"$1,029"},{"v":1128,"d":"$1,128"},{"v":1182,"d":"$1,182"},{"v":1245,"d":"$1,245"},{"v":1374,"d":"$1,374"},{"v":1107,"d":"$1,107"},{"v":1161,"d":"$1,161"},{"v":1227,"d":"$1,227"},{"v":993,"d":"$993"},{"v":1089,"d":"$1,089"},{"v":1176,"d":"$1,176"},{"v":1356,"d":"$1,356"},{"v":1440,"d":"$1,440"},{"v":1575,"d":"$1,575"},{"v":1605,"d":"$1,605"}]
["MONTGOMERY","AL","E2",{"v":843,"d":"$843"}]
["MONTGOMERY","AL","E3",{"v":843,"d":"$843"}]
["MONTGOMERY","AL","E4",{"v":843,"d":"$843"}]
["MONTGOMERY","AL","E5",{"v":945,"d":"$945"}]
["MONTGOMERY","AL","E6",{"v":1002,"d":"$1,002"}]
["MONTGOMERY","AL","E7",{"v":1053,"d":"$1,053"}]
["MONTGOMERY","AL","E8",{"v":1128,"d":"$1,128"}]
["MONTGOMERY","AL","E9",{"v":1209,"d":"$1,209"}]
["MONTGOMERY","AL","W01",{"v":1029,"d":"$1,029"}]
["MONTGOMERY","AL","W02",{"v":1128,"d":"$1,128"}]
["MONTGOMERY","AL","W03",{"v":1182,"d":"$1,182"}]
["MONTGOMERY","AL","W04",{"v":1245,"d":"$1,245"}]
["MONTGOMERY","AL","W05",{"v":1374,"d":"$1,374"}]
["MONTGOMERY","AL","O1E",{"v":1107,"d":"$1,107"}]
["MONTGOMERY","AL","O2E",{"v":1161,"d":"$1,161"}]
["MONTGOMERY","AL","O3E",{"v":1227,"d":"$1,227"}]
["MONTGOMERY","AL","O1",{"v":993,"d":"$993"}]
["MONTGOMERY","AL","O2",{"v":1089,"d":"$1,089"}]
["MONTGOMERY","AL","O3",{"v":1176,"d":"$1,176"}]
["MONTGOMERY","AL","O4",{"v":1356,"d":"$1,356"}]
["MONTGOMERY","AL","O5",{"v":1440,"d":"$1,440"}]
["MONTGOMERY","AL","O6",{"v":1575,"d":"$1,575"}]
["MONTGOMERY","AL","O7",{"v":1605,"d":"$1,605"}]
["AUBURN","AL","E1",{"v":681,"d":"$681"},{"v":681,"d":"$681"},{"v":681,"d":"$681"},{"v":681,"d":"$681"},{"v":681,"d":"$681"},{"v":783,"d":"$783"},{"v":915,"d":"$915"},{"v":939,"d":"$939"},{"v":1023,"d":"$1,023"},{"v":1098,"d":"$1,098"},{"v":915,"d":"$915"},{"v":1020,"d":"$1,020"},{"v":1107,"d":"$1,107"},{"v":1227,"d":"$1,227"},{"v":1257,"d":"$1,257"},{"v":975,"d":"$975"},{"v":1083,"d":"$1,083"},{"v":1218,"d":"$1,218"},{"v":840,"d":"$840"},{"v":951,"d":"$951"},{"v":1131,"d":"$1,131"},{"v":1254,"d":"$1,254"},{"v":1281,"d":"$1,281"},{"v":1305,"d":"$1,305"},{"v":1332,"d":"$1,332"}]
["AUBURN","AL","E2",{"v":681,"d":"$681"}]
["AUBURN","AL","E3",{"v":681,"d":"$681"}]
["AUBURN","AL","E4",{"v":681,"d":"$681"}]
["AUBURN","AL","E5",{"v":783,"d":"$783"}]
["AUBURN","AL","E6",{"v":915,"d":"$915"}]
["AUBURN","AL","E7",{"v":939,"d":"$939"}]
["AUBURN","AL","E8",{"v":1023,"d":"$1,023"}]
["AUBURN","AL","E9",{"v":1098,"d":"$1,098"}]
["AUBURN","AL","W01",{"v":915,"d":"$915"}]
["AUBURN","AL","W02",{"v":1020,"d":"$1,020"}]
["AUBURN","AL","W03",{"v":1107,"d":"$1,107"}]
["AUBURN","AL","W04",{"v":1227,"d":"$1,227"}]
["AUBURN","AL","W05",{"v":1257,"d":"$1,257"}]
["AUBURN","AL","O1E",{"v":975,"d":"$975"}]
["AUBURN","AL","O2E",{"v":1083,"d":"$1,083"}]
["AUBURN","AL","O3E",{"v":1218,"d":"$1,218"}]
["AUBURN","AL","O1",{"v":840,"d":"$840"}]
["AUBURN","AL","O2",{"v":951,"d":"$951"}]
["AUBURN","AL","O3",{"v":1131,"d":"$1,131"}]
["AUBURN","AL","O4",{"v":1254,"d":"$1,254"}]
["AUBURN","AL","O5",{"v":1281,"d":"$1,281"}]
["AUBURN","AL","O6",{"v":1305,"d":"$1,305"}]
["AUBURN","AL","O7",{"v":1332,"d":"$1,332"}]
["BIRMINGHAM","AL","E1",{"v":819,"d":"$819"},{"v":819,"d":"$819"},{"v":819,"d":"$819"},{"v":819,"d":"$819"},{"v":819,"d":"$819"},{"v":900,"d":"$900"},{"v":1044,"d":"$1,044"},{"v":1068,"d":"$1,068"},{"v":1194,"d":"$1,194"},{"v":1269,"d":"$1,269"},{"v":1044,"d":"$1,044"},{"v":1191,"d":"$1,191"},{"v":1278,"d":"$1,278"},{"v":1398,"d":"$1,398"},{"v":1431,"d":"$1,431"},{"v":1146,"d":"$1,146"},{"v":1254,"d":"$1,254"},{"v":1389,"d":"$1,389"},{"v":939,"d":"$939"},{"v":1110,"d":"$1,110"},{"v":1302,"d":"$1,302"},{"v":1428,"d":"$1,428"},{"v":1614,"d":"$1,614"},{"v":1629,"d":"$1,629"},{"v":1647,"d":"$1,647"}]
["BIRMINGHAM","AL","E2",{"v":819,"d":"$819"}]
["BIRMINGHAM","AL","E3",{"v":819,"d":"$819"}]
["BIRMINGHAM","AL","E4",{"v":819,"d":"$819"}]
["BIRMINGHAM","AL","E5",{"v":900,"d":"$900"}]
["BIRMINGHAM","AL","E6",{"v":1044,"d":"$1,044"}]
["BIRMINGHAM","AL","E7",{"v":1068,"d":"$1,068"}]
["BIRMINGHAM","AL","E8",{"v":1194,"d":"$1,194"}]
["BIRMINGHAM","AL","E9",{"v":1269,"d":"$1,269"}]
["BIRMINGHAM","AL","W01",{"v":1044,"d":"$1,044"}]
["BIRMINGHAM","AL","W02",{"v":1191,"d":"$1,191"}]
["BIRMINGHAM","AL","W03",{"v":1278,"d":"$1,278"}]
["BIRMINGHAM","AL","W04",{"v":1398,"d":"$1,398"}]
["BIRMINGHAM","AL","W05",{"v":1431,"d":"$1,431"}]
["BIRMINGHAM","AL","O1E",{"v":1146,"d":"$1,146"}]
["BIRMINGHAM","AL","O2E",{"v":1254,"d":"$1,254"}]
["BIRMINGHAM","AL","O3E",{"v":1389,"d":"$1,389"}]
["BIRMINGHAM","AL","O1",{"v":939,"d":"$939"}]
["BIRMINGHAM","AL","O2",{"v":1110,"d":"$1,110"}]
["BIRMINGHAM","AL","O3",{"v":1302,"d":"$1,302"}]
["BIRMINGHAM","AL","O4",{"v":1428,"d":"$1,428"}]
["BIRMINGHAM","AL","O5",{"v":1614,"d":"$1,614"}]
["BIRMINGHAM","AL","O6",{"v":1629,"d":"$1,629"}]
["BIRMINGHAM","AL","O7",{"v":1647,"d":"$1,647"}]
["TUSCALOOSA","AL","E1",{"v":717,"d":"$717"},{"v":717,"d":"$717"},{"v":717,"d":"$717"},{"v":717,"d":"$717"},{"v":717,"d":"$717"},{"v":804,"d":"$804"},{"v":867,"d":"$867"},{"v":933,"d":"$933"},{"v":1038,"d":"$1,038"},{"v":1083,"d":"$1,083"},{"v":897,"d":"$897"},{"v":1038,"d":"$1,038"},{"v":1089,"d":"$1,089"},{"v":1176,"d":"$1,176"},{"v":1254,"d":"$1,254"},{"v":1008,"d":"$1,008"},{"v":1074,"d":"$1,074"},{"v":1155,"d":"$1,155"},{"v":846,"d":"$846"},{"v":981,"d":"$981"},{"v":1104,"d":"$1,104"},{"v":1245,"d":"$1,245"},{"v":1311,"d":"$1,311"},{"v":1374,"d":"$1,374"},{"v":1404,"d":"$1,404"}]
["TUSCALOOSA","AL","E2",{"v":717,"d":"$717"}]
["TUSCALOOSA","AL","E3",{"v":717,"d":"$717"}]
["TUSCALOOSA","AL","E4",{"v":717,"d":"$717"}]
["TUSCALOOSA","AL","E5",{"v":804,"d":"$804"}]
["TUSCALOOSA","AL","E6",{"v":867,"d":"$867"}]
["TUSCALOOSA","AL","E7",{"v":933,"d":"$933"}]
["TUSCALOOSA","AL","E8",{"v":1038,"d":"$1,038"}]
["TUSCALOOSA","AL","E9",{"v":1083,"d":"$1,083"}]
["TUSCALOOSA","AL","W01",{"v":897,"d":"$897"}]
["TUSCALOOSA","AL","W02",{"v":1038,"d":"$1,038"}]
["TUSCALOOSA","AL","W03",{"v":1089,"d":"$1,089"}]
["TUSCALOOSA","AL","W04",{"v":1176,"d":"$1,176"}]
["TUSCALOOSA","AL","W05",{"v":1254,"d":"$1,254"}]
["TUSCALOOSA","AL","O1E",{"v":1008,"d":"$1,008"}]
["TUSCALOOSA","AL","O2E",{"v":1074,"d":"$1,074"}]
["TUSCALOOSA","AL","O3E",{"v":1155,"d":"$1,155"}]
["TUSCALOOSA","AL","O1",{"v":846,"d":"$846"}]
["TUSCALOOSA","AL","O2",{"v":981,"d":"$981"}]
["TUSCALOOSA","AL","O3",{"v":1104,"d":"$1,104"}]
["TUSCALOOSA","AL","O4",{"v":1245,"d":"$1,245"}]
["TUSCALOOSA","AL","O5",{"v":1311,"d":"$1,311"}]
["TUSCALOOSA","AL","O6",{"v":1374,"d":"$1,374"}]
["TUSCALOOSA","AL","O7",{"v":1404,"d":"$1,404"}]
["LITTLE ROCK","AR","E1",{"v":699,"d":"$699"},{"v":699,"d":"$699"},{"v":699,"d":"$699"},{"v":699,"d":"$699"},{"v":699,"d":"$699"},{"v":804,"d":"$804"},{"v":903,"d":"$903"},{"v":951,"d":"$951"},{"v":1047,"d":"$1,047"},{"v":1107,"d":"$1,107"},{"v":903,"d":"$903"},{"v":1044,"d":"$1,044"},{"v":1113,"d":"$1,113"},{"v":1218,"d":"$1,218"},{"v":1284,"d":"$1,284"},{"v":1008,"d":"$1,008"},{"v":1092,"d":"$1,092"},{"v":1203,"d":"$1,203"},{"v":858,"d":"$858"},{"v":981,"d":"$981"},{"v":1131,"d":"$1,131"},{"v":1275,"d":"$1,275"},{"v":1386,"d":"$1,386"},{"v":1401,"d":"$1,401"},{"v":1413,"d":"$1,413"}]
["LITTLE ROCK","AR","E2",{"v":699,"d":"$699"}]
["LITTLE ROCK","AR","E3",{"v":699,"d":"$699"}]
["LITTLE ROCK","AR","E4",{"v":699,"d":"$699"}]
["LITTLE ROCK","AR","E5",{"v":804,"d":"$804"}]
["LITTLE ROCK","AR","E6",{"v":903,"d":"$903"}]
["LITTLE ROCK","AR","E7",{"v":951,"d":"$951"}]
["LITTLE ROCK","AR","E8",{"v":1047,"d":"$1,047"}]
["LITTLE ROCK","AR","E9",{"v":1107,"d":"$1,107"}]
["LITTLE ROCK","AR","W01",{"v":903,"d":"$903"}]
["LITTLE ROCK","AR","W02",{"v":1044,"d":"$1,044"}]
["LITTLE ROCK","AR","W03",{"v":1113,"d":"$1,113"}]
["LITTLE ROCK","AR","W04",{"v":1218,"d":"$1,218"}]
["LITTLE ROCK","AR","W05",{"v":1284,"d":"$1,284"}]
["LITTLE ROCK","AR","O1E",{"v":1008,"d":"$1,008"}]
["LITTLE ROCK","AR","O2E",{"v":1092,"d":"$1,092"}]
["LITTLE ROCK","AR","O3E",{"v":1203,"d":"$1,203"}]
["LITTLE ROCK","AR","O1",{"v":858,"d":"$858"}]
["LITTLE ROCK","AR","O2",{"v":981,"d":"$981"}]
["LITTLE ROCK","AR","O3",{"v":1131,"d":"$1,131"}]
["LITTLE ROCK","AR","O4",{"v":1275,"d":"$1,275"}]
["LITTLE ROCK","AR","O5",{"v":1386,"d":"$1,386"}]
["LITTLE ROCK","AR","O6",{"v":1401,"d":"$1,401"}]
["LITTLE ROCK","AR","O7",{"v":1413,"d":"$1,413"}]
["PINE BLUFF","AR","E1",{"v":642,"d":"$642"},{"v":642,"d":"$642"},{"v":642,"d":"$642"},{"v":642,"d":"$642"},{"v":642,"d":"$642"},{"v":741,"d":"$741"},{"v":801,"d":"$801"},{"v":858,"d":"$858"},{"v":933,"d":"$933"},{"v":957,"d":"$957"},{"v":831,"d":"$831"},{"v":933,"d":"$933"},{"v":960,"d":"$960"},{"v":999,"d":"$999"},{"v":1023,"d":"$1,023"},{"v":918,"d":"$918"},{"v":951,"d":"$951"},{"v":993,"d":"$993"},{"v":792,"d":"$792"},{"v":897,"d":"$897"},{"v":966,"d":"$966"},{"v":1020,"d":"$1,020"},{"v":1035,"d":"$1,035"},{"v":1059,"d":"$1,059"},{"v":1080,"d":"$1,080"}]
["PINE BLUFF","AR","E2",{"v":642,"d":"$642"}]
["PINE BLUFF","AR","E3",{"v":642,"d":"$642"}]
["PINE BLUFF","AR","E4",{"v":642,"d":"$642"}]
["PINE BLUFF","AR","E5",{"v":741,"d":"$741"}]
["PINE BLUFF","AR","E6",{"v":801,"d":"$801"}]
["PINE BLUFF","AR","E7",{"v":858,"d":"$858"}]
["PINE BLUFF","AR","E8",{"v":933,"d":"$933"}]
["PINE BLUFF","AR","E9",{"v":957,"d":"$957"}]
["PINE BLUFF","AR","W01",{"v":831,"d":"$831"}]
["PINE BLUFF","AR","W02",{"v":933,"d":"$933"}]
["PINE BLUFF","AR","W03",{"v":960,"d":"$960"}]
["PINE BLUFF","AR","W04",{"v":999,"d":"$999"}]
["PINE BLUFF","AR","W05",{"v":1023,"d":"$1,023"}]
["PINE BLUFF","AR","O1E",{"v":918,"d":"$918"}]
["PINE BLUFF","AR","O2E",{"v":951,"d":"$951"}]
["PINE BLUFF","AR","O3E",{"v":993,"d":"$993"}]
["PINE BLUFF","AR","O1",{"v":792,"d":"$792"}]
["PINE BLUFF","AR","O2",{"v":897,"d":"$897"}]
["PINE BLUFF","AR","O3",{"v":966,"d":"$966"}]
["PINE BLUFF","AR","O4",{"v":1020,"d":"$1,020"}]
["PINE BLUFF","AR","O5",{"v":1035,"d":"$1,035"}]
["PINE BLUFF","AR","O6",{"v":1059,"d":"$1,059"}]
["PINE BLUFF","AR","O7",{"v":1080,"d":"$1,080"}]
["FORT CHAFFEE/FORT SMITH","AR","E1",{"v":588,"d":"$588"},{"v":588,"d":"$588"},{"v":588,"d":"$588"},{"v":588,"d":"$588"},{"v":588,"d":"$588"},{"v":678,"d":"$678"},{"v":777,"d":"$777"},{"v":792,"d":"$792"},{"v":876,"d":"$876"},{"v":936,"d":"$936"},{"v":777,"d":"$777"},{"v":873,"d":"$873"},{"v":942,"d":"$942"},{"v":1038,"d":"$1,038"},{"v":1062,"d":"$1,062"},{"v":834,"d":"$834"},{"v":924,"d":"$924"},{"v":1035,"d":"$1,035"},{"v":729,"d":"$729"},{"v":816,"d":"$816"},{"v":963,"d":"$963"},{"v":1059,"d":"$1,059"},{"v":1089,"d":"$1,089"},{"v":1101,"d":"$1,101"},{"v":1116,"d":"$1,116"}]
["FORT CHAFFEE/FORT SMITH","AR","E2",{"v":588,"d":"$588"}]
["FORT CHAFFEE/FORT SMITH","AR","E3",{"v":588,"d":"$588"}]
["FORT CHAFFEE/FORT SMITH","AR","E4",{"v":588,"d":"$588"}]
["FORT CHAFFEE/FORT SMITH","AR","E5",{"v":678,"d":"$678"}]
["FORT CHAFFEE/FORT SMITH","AR","E6",{"v":777,"d":"$777"}]
["FORT CHAFFEE/FORT SMITH","AR","E7",{"v":792,"d":"$792"}]
["FORT CHAFFEE/FORT SMITH","AR","E8",{"v":876,"d":"$876"}]
["FORT CHAFFEE/FORT SMITH","AR","E9",{"v":936,"d":"$936"}]
["FORT CHAFFEE/FORT SMITH","AR","W01",{"v":777,"d":"$777"}]
["FORT CHAFFEE/FORT SMITH","AR","W02",{"v":873,"d":"$873"}]
["FORT CHAFFEE/FORT SMITH","AR","W03",{"v":942,"d":"$942"}]
["FORT CHAFFEE/FORT SMITH","AR","W04",{"v":1038,"d":"$1,038"}]
["FORT CHAFFEE/FORT SMITH","AR","W05",{"v":1062,"d":"$1,062"}]
["FORT CHAFFEE/FORT SMITH","AR","O1E",{"v":834,"d":"$834"}]
["FORT CHAFFEE/FORT SMITH","AR","O2E",{"v":924,"d":"$924"}]
["FORT CHAFFEE/FORT SMITH","AR","O3E",{"v":1035,"d":"$1,035"}]
["FORT CHAFFEE/FORT SMITH","AR","O1",{"v":729,"d":"$729"}]
["FORT CHAFFEE/FORT SMITH","AR","O2",{"v":816,"d":"$816"}]
["FORT CHAFFEE/FORT SMITH","AR","O3",{"v":963,"d":"$963"}]
["FORT CHAFFEE/FORT SMITH","AR","O4",{"v":1059,"d":"$1,059"}]
["FORT CHAFFEE/FORT SMITH","AR","O5",{"v":1089,"d":"$1,089"}]
["FORT CHAFFEE/FORT SMITH","AR","O6",{"v":1101,"d":"$1,101"}]
["FORT CHAFFEE/FORT SMITH","AR","O7",{"v":1116,"d":"$1,116"}]
["FAYETTEVILLE","AR",null,null,{"v":612,"d":"$612"},{"v":612,"d":"$612"},{"v":612,"d":"$612"},{"v":612,"d":"$612"},{"v":681,"d":"$681"},{"v":786,"d":"$786"},{"v":816,"d":"$816"},{"v":912,"d":"$912"},{"v":963,"d":"$963"},{"v":786,"d":"$786"},{"v":909,"d":"$909"},{"v":969,"d":"$969"},{"v":1056,"d":"$1,056"},{"v":1098,"d":"$1,098"},{"v":879,"d":"$879"},{"v":951,"d":"$951"},{"v":1047,"d":"$1,047"},{"v":714,"d":"$714"},{"v":849,"d":"$849"},{"v":987,"d":"$987"},{"v":1122,"d":"$1,122"},{"v":1305,"d":"$1,305"},{"v":1317,"d":"$1,317"},{"v":1332,"d":"$1,332"}]
["FAYETTEVILLE","AR"]
["FAYETTEVILLE","AR"]
["FAYETTEVILLE","AR"]
["FAYETTEVILLE","AR"]
["FAYETTEVILLE","AR"]
["FAYETTEVILLE","AR"]
["FAYETTEVILLE","AR"]
["FAYETTEVILLE","AR"]
["FAYETTEVILLE","AR"]
["FAYETTEVILLE","AR"]
["FAYETTEVILLE","AR"]
["FAYETTEVILLE","AR"]
["FAYETTEVILLE","AR"]
["FAYETTEVILLE","AR"]
["FAYETTEVILLE","AR"]
["FAYETTEVILLE","AR"]
["FAYETTEVILLE","AR"]
["FAYETTEVILLE","AR"]
["FAYETTEVILLE","AR"]
["FAYETTEVILLE","AR"]
["FAYETTEVILLE","AR"]
["FAYETTEVILLE","AR"]
["FAYETTEVILLE","AR"]
["JONESBORO","AR",null,null,{"v":636,"d":"$636"},{"v":636,"d":"$636"},{"v":636,"d":"$636"},{"v":636,"d":"$636"},{"v":711,"d":"$711"},{"v":783,"d":"$783"},{"v":855,"d":"$855"},{"v":969,"d":"$969"},{"v":996,"d":"$996"},{"v":813,"d":"$813"},{"v":966,"d":"$966"},{"v":999,"d":"$999"},{"v":1059,"d":"$1,059"},{"v":1122,"d":"$1,122"},{"v":948,"d":"$948"},{"v":990,"d":"$990"},{"v":1041,"d":"$1,041"},{"v":750,"d":"$750"},{"v":915,"d":"$915"},{"v":1008,"d":"$1,008"},{"v":1113,"d":"$1,113"},{"v":1152,"d":"$1,152"},{"v":1218,"d":"$1,218"},{"v":1242,"d":"$1,242"}]
["JONESBORO","AR"]
["JONESBORO","AR"]
["JONESBORO","AR"]
["JONESBORO","AR"]
["JONESBORO","AR"]
["JONESBORO","AR"]
["JONESBORO","AR"]
["JONESBORO","AR"]
["JONESBORO","AR"]
["JONESBORO","AR"]
["JONESBORO","AR"]
["JONESBORO","AR"]
["JONESBORO","AR"]
["JONESBORO","AR"]
["JONESBORO","AR"]
["JONESBORO","AR"]
["JONESBORO","AR"]
["JONESBORO","AR"]
["JONESBORO","AR"]
["JONESBORO","AR"]
["JONESBORO","AR"]
["JONESBORO","AR"]
["JONESBORO","AR"]
["PHOENIX","AZ",null,null,{"v":909,"d":"$909"},{"v":909,"d":"$909"},{"v":909,"d":"$909"},{"v":909,"d":"$909"},{"v":1008,"d":"$1,008"},{"v":1083,"d":"$1,083"},{"v":1203,"d":"$1,203"},{"v":1356,"d":"$1,356"},{"v":1392,"d":"$1,392"},{"v":1143,"d":"$1,143"},{"v":1356,"d":"$1,356"},{"v":1395,"d":"$1,395"},{"v":1449,"d":"$1,449"},{"v":1470,"d":"$1,470"},{"v":1335,"d":"$1,335"},{"v":1383,"d":"$1,383"},{"v":1443,"d":"$1,443"},{"v":1056,"d":"$1,056"},{"v":1287,"d":"$1,287"},{"v":1404,"d":"$1,404"},{"v":1467,"d":"$1,467"},{"v":1479,"d":"$1,479"},{"v":1500,"d":"$1,500"},{"v":1530,"d":"$1,530"}]
["PHOENIX","AZ"]
["PHOENIX","AZ"]
["PHOENIX","AZ"]
["PHOENIX","AZ"]
["PHOENIX","AZ"]
["PHOENIX","AZ"]
["PHOENIX","AZ"]
["PHOENIX","AZ"]
["PHOENIX","AZ"]
["PHOENIX","AZ"]
["PHOENIX","AZ"]
["PHOENIX","AZ"]
["PHOENIX","AZ"]
["PHOENIX","AZ"]
["PHOENIX","AZ"]
["PHOENIX","AZ"]
["PHOENIX","AZ"]
["PHOENIX","AZ"]
["PHOENIX","AZ"]
["PHOENIX","AZ"]
["PHOENIX","AZ"]
["PHOENIX","AZ"]
["PHOENIX","AZ"]
["FORT HUACHUCA","AZ",null,null,{"v":714,"d":"$714"},{"v":714,"d":"$714"},{"v":714,"d":"$714"},{"v":714,"d":"$714"},{"v":780,"d":"$780"},{"v":882,"d":"$882"},{"v":984,"d":"$984"},{"v":1095,"d":"$1,095"},{"v":1179,"d":"$1,179"},{"v":882,"d":"$882"},{"v":1029,"d":"$1,029"},{"v":1167,"d":"$1,167"},{"v":1209,"d":"$1,209"},{"v":1344,"d":"$1,344"},{"v":1005,"d":"$1,005"},{"v":1146,"d":"$1,146"},{"v":1185,"d":"$1,185"},{"v":813,"d":"$813"},{"v":939,"d":"$939"},{"v":1161,"d":"$1,161"},{"v":1326,"d":"$1,326"},{"v":1413,"d":"$1,413"},{"v":1554,"d":"$1,554"},{"v":1584,"d":"$1,584"}]
["FORT HUACHUCA","AZ"]
["FORT HUACHUCA","AZ"]
["FORT HUACHUCA","AZ"]
["FORT HUACHUCA","AZ"]
["FORT HUACHUCA","AZ"]
["FORT HUACHUCA","AZ"]
["FORT HUACHUCA","AZ"]
["FORT HUACHUCA","AZ"]
["FORT HUACHUCA","AZ"]
["FORT HUACHUCA","AZ"]
["FORT HUACHUCA","AZ"]
["FORT HUACHUCA","AZ"]
["FORT HUACHUCA","AZ"]
["FORT HUACHUCA","AZ"]
["FORT HUACHUCA","AZ"]
["FORT HUACHUCA","AZ"]
["FORT HUACHUCA","AZ"]
["FORT HUACHUCA","AZ"]
["FORT HUACHUCA","AZ"]
["FORT HUACHUCA","AZ"]
["FORT HUACHUCA","AZ"]
["FORT HUACHUCA","AZ"]
["FORT HUACHUCA","AZ"]
["DAVIS-MONTHAN AFB","AZ",null,null,{"v":768,"d":"$768"},{"v":768,"d":"$768"},{"v":768,"d":"$768"},{"v":768,"d":"$768"},{"v":858,"d":"$858"},{"v":972,"d":"$972"},{"v":1029,"d":"$1,029"},{"v":1161,"d":"$1,161"},{"v":1212,"d":"$1,212"},{"v":984,"d":"$984"},{"v":1158,"d":"$1,158"},{"v":1218,"d":"$1,218"},{"v":1299,"d":"$1,299"},{"v":1317,"d":"$1,317"},{"v":1128,"d":"$1,128"},{"v":1200,"d":"$1,200"},{"v":1296,"d":"$1,296"},{"v":921,"d":"$921"},{"v":1092,"d":"$1,092"},{"v":1236,"d":"$1,236"},{"v":1314,"d":"$1,314"},{"v":1326,"d":"$1,326"},{"v":1344,"d":"$1,344"},{"v":1371,"d":"$1,371"}]
["DAVIS-MONTHAN AFB","AZ"]
["DAVIS-MONTHAN AFB","AZ"]
["DAVIS-MONTHAN AFB","AZ"]
["DAVIS-MONTHAN AFB","AZ"]
["DAVIS-MONTHAN AFB","AZ"]
["DAVIS-MONTHAN AFB","AZ"]
["DAVIS-MONTHAN AFB","AZ"]
["DAVIS-MONTHAN AFB","AZ"]
["DAVIS-MONTHAN AFB","AZ"]
["DAVIS-MONTHAN AFB","AZ"]
["DAVIS-MONTHAN AFB","AZ"]
["DAVIS-MONTHAN AFB","AZ"]
["DAVIS-MONTHAN AFB","AZ"]
["DAVIS-MONTHAN AFB","AZ"]
["DAVIS-MONTHAN AFB","AZ"]
["DAVIS-MONTHAN AFB","AZ"]
["DAVIS-MONTHAN AFB","AZ"]
["DAVIS-MONTHAN AFB","AZ"]
["DAVIS-MONTHAN AFB","AZ"]
["DAVIS-MONTHAN AFB","AZ"]
["DAVIS-MONTHAN AFB","AZ"]
["DAVIS-MONTHAN AFB","AZ"]
["DAVIS-MONTHAN AFB","AZ"]
["YUMA","AZ",null,null,{"v":762,"d":"$762"},{"v":762,"d":"$762"},{"v":762,"d":"$762"},{"v":762,"d":"$762"},{"v":870,"d":"$870"},{"v":963,"d":"$963"},{"v":1008,"d":"$1,008"},{"v":1122,"d":"$1,122"},{"v":1185,"d":"$1,185"},{"v":972,"d":"$972"},{"v":1119,"d":"$1,119"},{"v":1191,"d":"$1,191"},{"v":1293,"d":"$1,293"},{"v":1329,"d":"$1,329"},{"v":1083,"d":"$1,083"},{"v":1170,"d":"$1,170"},{"v":1284,"d":"$1,284"},{"v":924,"d":"$924"},{"v":1056,"d":"$1,056"},{"v":1212,"d":"$1,212"},{"v":1326,"d":"$1,326"},{"v":1350,"d":"$1,350"},{"v":1386,"d":"$1,386"},{"v":1416,"d":"$1,416"}]
["YUMA","AZ"]
["YUMA","AZ"]
["YUMA","AZ"]
["YUMA","AZ"]
["YUMA","AZ"]
["YUMA","AZ"]
["YUMA","AZ"]
["YUMA","AZ"]
["YUMA","AZ"]
["YUMA","AZ"]
["YUMA","AZ"]
["YUMA","AZ"]
["YUMA","AZ"]
["YUMA","AZ"]
["YUMA","AZ"]
["YUMA","AZ"]
["YUMA","AZ"]
["YUMA","AZ"]
["YUMA","AZ"]
["YUMA","AZ"]
["YUMA","AZ"]
["YUMA","AZ"]
["YUMA","AZ"]
["OAKLAND","CA",null,null,{"v":1347,"d":"$1,347"},{"v":1347,"d":"$1,347"},{"v":1347,"d":"$1,347"},{"v":1347,"d":"$1,347"},{"v":1554,"d":"$1,554"},{"v":1725,"d":"$1,725"},{"v":1824,"d":"$1,824"},{"v":1989,"d":"$1,989"},{"v":2109,"d":"$2,109"},{"v":1737,"d":"$1,737"},{"v":1986,"d":"$1,986"},{"v":2121,"d":"$2,121"},{"v":2331,"d":"$2,331"},{"v":2466,"d":"$2,466"},{"v":1914,"d":"$1,914"},{"v":2082,"d":"$2,082"},{"v":2298,"d":"$2,298"},{"v":1656,"d":"$1,656"},{"v":1869,"d":"$1,869"},{"v":2160,"d":"$2,160"},{"v":2445,"d":"$2,445"},{"v":2532,"d":"$2,532"},{"v":2667,"d":"$2,667"},{"v":2721,"d":"$2,721"}]
["OAKLAND","CA"]
["OAKLAND","CA"]
["OAKLAND","CA"]
["OAKLAND","CA"]
["OAKLAND","CA"]
["OAKLAND","CA"]
["OAKLAND","CA"]
["OAKLAND","CA"]
["OAKLAND","CA"]
["OAKLAND","CA"]
["OAKLAND","CA"]
["OAKLAND","CA"]
["OAKLAND","CA"]
["OAKLAND","CA"]
["OAKLAND","CA"]
["OAKLAND","CA"]
["OAKLAND","CA"]
["OAKLAND","CA"]
["OAKLAND","CA"]
["OAKLAND","CA"]
["OAKLAND","CA"]
["OAKLAND","CA"]
["OAKLAND","CA"]
["SAN FRANCISCO","CA",null,null,{"v":1980,"d":"$1,980"},{"v":1980,"d":"$1,980"},{"v":1980,"d":"$1,980"},{"v":1980,"d":"$1,980"},{"v":2196,"d":"$2,196"},{"v":2319,"d":"$2,319"},{"v":2439,"d":"$2,439"},{"v":2604,"d":"$2,604"},{"v":2667,"d":"$2,667"},{"v":2382,"d":"$2,382"},{"v":2601,"d":"$2,601"},{"v":2673,"d":"$2,673"},{"v":2787,"d":"$2,787"},{"v":2868,"d":"$2,868"},{"v":2562,"d":"$2,562"},{"v":2652,"d":"$2,652"},{"v":2766,"d":"$2,766"},{"v":2301,"d":"$2,301"},{"v":2517,"d":"$2,517"},{"v":2691,"d":"$2,691"},{"v":2859,"d":"$2,859"},{"v":2910,"d":"$2,910"},{"v":2997,"d":"$2,997"},{"v":3057,"d":"$3,057"}]
["SAN FRANCISCO","CA"]
["SAN FRANCISCO","CA"]
["SAN FRANCISCO","CA"]
["SAN FRANCISCO","CA"]
["SAN FRANCISCO","CA"]
["SAN FRANCISCO","CA"]
["SAN FRANCISCO","CA"]
["SAN FRANCISCO","CA"]
["SAN FRANCISCO","CA"]
["SAN FRANCISCO","CA"]
["SAN FRANCISCO","CA"]
["SAN FRANCISCO","CA"]
["SAN FRANCISCO","CA"]
["SAN FRANCISCO","CA"]
["SAN FRANCISCO","CA"]
["SAN FRANCISCO","CA"]
["SAN FRANCISCO","CA"]
["SAN FRANCISCO","CA"]
["SAN FRANCISCO","CA"]
["SAN FRANCISCO","CA"]
["SAN FRANCISCO","CA"]
["SAN FRANCISCO","CA"]
["SAN FRANCISCO","CA"]
["CHINA LAKE NAVWEPCEN","CA",null,null,{"v":651,"d":"$651"},{"v":651,"d":"$651"},{"v":651,"d":"$651"},{"v":651,"d":"$651"},{"v":729,"d":"$729"},{"v":885,"d":"$885"},{"v":903,"d":"$903"},{"v":1002,"d":"$1,002"},{"v":1071,"d":"$1,071"},{"v":885,"d":"$885"},{"v":1002,"d":"$1,002"},{"v":1077,"d":"$1,077"},{"v":1185,"d":"$1,185"},{"v":1209,"d":"$1,209"},{"v":960,"d":"$960"},{"v":1056,"d":"$1,056"},{"v":1179,"d":"$1,179"},{"v":774,"d":"$774"},{"v":927,"d":"$927"},{"v":1098,"d":"$1,098"},{"v":1206,"d":"$1,206"},{"v":1227,"d":"$1,227"},{"v":1251,"d":"$1,251"},{"v":1275,"d":"$1,275"}]
["CHINA LAKE NAVWEPCEN","CA"]
["CHINA LAKE NAVWEPCEN","CA"]
["CHINA LAKE NAVWEPCEN","CA"]
["CHINA LAKE NAVWEPCEN","CA"]
["CHINA LAKE NAVWEPCEN","CA"]
["CHINA LAKE NAVWEPCEN","CA"]
["CHINA LAKE NAVWEPCEN","CA"]
["CHINA LAKE NAVWEPCEN","CA"]
["CHINA LAKE NAVWEPCEN","CA"]
["CHINA LAKE NAVWEPCEN","CA"]
["CHINA LAKE NAVWEPCEN","CA"]
["CHINA LAKE NAVWEPCEN","CA"]
["CHINA LAKE NAVWEPCEN","CA"]
["CHINA LAKE NAVWEPCEN","CA"]
["CHINA LAKE NAVWEPCEN","CA"]
["CHINA LAKE NAVWEPCEN","CA"]
["CHINA LAKE NAVWEPCEN","CA"]
["CHINA LAKE NAVWEPCEN","CA"]
["CHINA LAKE NAVWEPCEN","CA"]
["CHINA LAKE NAVWEPCEN","CA"]
["CHINA LAKE NAVWEPCEN","CA"]
["CHINA LAKE NAVWEPCEN","CA"]
["CHINA LAKE NAVWEPCEN","CA"]
["FRESNO","CA",null,null,{"v":900,"d":"$900"},{"v":900,"d":"$900"},{"v":900,"d":"$900"},{"v":900,"d":"$900"},{"v":981,"d":"$981"},{"v":1035,"d":"$1,035"},{"v":1131,"d":"$1,131"},{"v":1257,"d":"$1,257"},{"v":1305,"d":"$1,305"},{"v":1086,"d":"$1,086"},{"v":1257,"d":"$1,257"},{"v":1308,"d":"$1,308"},{"v":1386,"d":"$1,386"},{"v":1419,"d":"$1,419"},{"v":1227,"d":"$1,227"},{"v":1293,"d":"$1,293"},{"v":1380,"d":"$1,380"},{"v":1020,"d":"$1,020"},{"v":1191,"d":"$1,191"},{"v":1323,"d":"$1,323"},{"v":1416,"d":"$1,416"},{"v":1437,"d":"$1,437"},{"v":1470,"d":"$1,470"},{"v":1497,"d":"$1,497"}]
["FRESNO","CA"]
["FRESNO","CA"]
["FRESNO","CA"]
["FRESNO","CA"]
["FRESNO","CA"]
["FRESNO","CA"]
["FRESNO","CA"]
["FRESNO","CA"]
["FRESNO","CA"]
["FRESNO","CA"]
["FRESNO","CA"]
["FRESNO","CA"]
["FRESNO","CA"]
["FRESNO","CA"]
["FRESNO","CA"]
["FRESNO","CA"]
["FRESNO","CA"]
["FRESNO","CA"]
["FRESNO","CA"]
["FRESNO","CA"]
["FRESNO","CA"]
["FRESNO","CA"]
["FRESNO","CA"]
["LEMORE NAS","CA",null,null,{"v":765,"d":"$765"},{"v":765,"d":"$765"},{"v":765,"d":"$765"},{"v":765,"d":"$765"},{"v":858,"d":"$858"},{"v":939,"d":"$939"},{"v":1026,"d":"$1,026"},{"v":1137,"d":"$1,137"},{"v":1170,"d":"$1,170"},{"v":987,"d":"$987"},{"v":1137,"d":"$1,137"},{"v":1173,"d":"$1,173"},{"v":1248,"d":"$1,248"},{"v":1359,"d":"$1,359"},{"v":1116,"d":"$1,116"},{"v":1161,"d":"$1,161"},{"v":1218,"d":"$1,218"},{"v":927,"d":"$927"},{"v":1083,"d":"$1,083"},{"v":1182,"d":"$1,182"},{"v":1344,"d":"$1,344"},{"v":1416,"d":"$1,416"},{"v":1530,"d":"$1,530"},{"v":1563,"d":"$1,563"}]
["LEMORE NAS","CA"]
["LEMORE NAS","CA"]
["LEMORE NAS","CA"]
["LEMORE NAS","CA"]
["LEMORE NAS","CA"]
["LEMORE NAS","CA"]
["LEMORE NAS","CA"]
["LEMORE NAS","CA"]
["LEMORE NAS","CA"]
["LEMORE NAS","CA"]
["LEMORE NAS","CA"]
["LEMORE NAS","CA"]
["LEMORE NAS","CA"]
["LEMORE NAS","CA"]
["LEMORE NAS","CA"]
["LEMORE NAS","CA"]
["LEMORE NAS","CA"]
["LEMORE NAS","CA"]
["LEMORE NAS","CA"]
["LEMORE NAS","CA"]
["LEMORE NAS","CA"]
["LEMORE NAS","CA"]
["LEMORE NAS","CA"]
["CAMP PENDLETON","CA",null,null,{"v":1263,"d":"$1,263"},{"v":1263,"d":"$1,263"},{"v":1263,"d":"$1,263"},{"v":1263,"d":"$1,263"},{"v":1473,"d":"$1,473"},{"v":1590,"d":"$1,590"},{"v":1683,"d":"$1,683"},{"v":1830,"d":"$1,830"},{"v":1920,"d":"$1,920"},{"v":1638,"d":"$1,638"},{"v":1830,"d":"$1,830"},{"v":1926,"d":"$1,926"},{"v":2079,"d":"$2,079"},{"v":2169,"d":"$2,169"},{"v":1776,"d":"$1,776"},{"v":1899,"d":"$1,899"},{"v":2058,"d":"$2,058"},{"v":1578,"d":"$1,578"},{"v":1740,"d":"$1,740"},{"v":1956,"d":"$1,956"},{"v":2157,"d":"$2,157"},{"v":2217,"d":"$2,217"},{"v":2310,"d":"$2,310"},{"v":2355,"d":"$2,355"}]
["CAMP PENDLETON","CA"]
["CAMP PENDLETON","CA"]
["CAMP PENDLETON","CA"]
["CAMP PENDLETON","CA"]
["CAMP PENDLETON","CA"]
["CAMP PENDLETON","CA"]
["CAMP PENDLETON","CA"]
["CAMP PENDLETON","CA"]
["CAMP PENDLETON","CA"]
["CAMP PENDLETON","CA"]
["CAMP PENDLETON","CA"]
["CAMP PENDLETON","CA"]
["CAMP PENDLETON","CA"]
["CAMP PENDLETON","CA"]
["CAMP PENDLETON","CA"]
["CAMP PENDLETON","CA"]
["CAMP PENDLETON","CA"]
["CAMP PENDLETON","CA"]
["CAMP PENDLETON","CA"]
["CAMP PENDLETON","CA"]
["CAMP PENDLETON","CA"]
["CAMP PENDLETON","CA"]
["CAMP PENDLETON","CA"]
["VENTURA","CA",null,null,{"v":1455,"d":"$1,455"},{"v":1455,"d":"$1,455"},{"v":1455,"d":"$1,455"},{"v":1455,"d":"$1,455"},{"v":1548,"d":"$1,548"},{"v":1644,"d":"$1,644"},{"v":1755,"d":"$1,755"},{"v":1878,"d":"$1,878"},{"v":2013,"d":"$2,013"},{"v":1650,"d":"$1,650"},{"v":1854,"d":"$1,854"},{"v":1998,"d":"$1,998"},{"v":2229,"d":"$2,229"},{"v":2379,"d":"$2,379"},{"v":1779,"d":"$1,779"},{"v":1959,"d":"$1,959"},{"v":2190,"d":"$2,190"},{"v":1593,"d":"$1,593"},{"v":1743,"d":"$1,743"},{"v":2040,"d":"$2,040"},{"v":2358,"d":"$2,358"},{"v":2454,"d":"$2,454"},{"v":2607,"d":"$2,607"},{"v":2658,"d":"$2,658"}]
["VENTURA","CA"]
["VENTURA","CA"]
["VENTURA","CA"]
["VENTURA","CA"]
["VENTURA","CA"]
["VENTURA","CA"]
["VENTURA","CA"]
["VENTURA","CA"]
["VENTURA","CA"]
["VENTURA","CA"]
["VENTURA","CA"]
["VENTURA","CA"]
["VENTURA","CA"]
["VENTURA","CA"]
["VENTURA","CA"]
["VENTURA","CA"]
["VENTURA","CA"]
["VENTURA","CA"]
["VENTURA","CA"]
["VENTURA","CA"]
["VENTURA","CA"]
["VENTURA","CA"]
["VENTURA","CA"]
["VANDENBERG AFB","CA",null,null,{"v":1005,"d":"$1,005"},{"v":1005,"d":"$1,005"},{"v":1005,"d":"$1,005"},{"v":1005,"d":"$1,005"},{"v":1146,"d":"$1,146"},{"v":1245,"d":"$1,245"},{"v":1347,"d":"$1,347"},{"v":1485,"d":"$1,485"},{"v":1536,"d":"$1,536"},{"v":1299,"d":"$1,299"},{"v":1482,"d":"$1,482"},{"v":1542,"d":"$1,542"},{"v":1632,"d":"$1,632"},{"v":1689,"d":"$1,689"},{"v":1452,"d":"$1,452"},{"v":1524,"d":"$1,524"},{"v":1620,"d":"$1,620"},{"v":1230,"d":"$1,230"},{"v":1413,"d":"$1,413"},{"v":1560,"d":"$1,560"},{"v":1680,"d":"$1,680"},{"v":1716,"d":"$1,716"},{"v":1773,"d":"$1,773"},{"v":1806,"d":"$1,806"}]
["VANDENBERG AFB","CA"]
["VANDENBERG AFB","CA"]
["VANDENBERG AFB","CA"]
["VANDENBERG AFB","CA"]
["VANDENBERG AFB","CA"]
["VANDENBERG AFB","CA"]
["VANDENBERG AFB","CA"]
["VANDENBERG AFB","CA"]
["VANDENBERG AFB","CA"]
["VANDENBERG AFB","CA"]
["VANDENBERG AFB","CA"]
["VANDENBERG AFB","CA"]
["VANDENBERG AFB","CA"]
["VANDENBERG AFB","CA"]
["VANDENBERG AFB","CA"]
["VANDENBERG AFB","CA"]
["VANDENBERG AFB","CA"]
["VANDENBERG AFB","CA"]
["VANDENBERG AFB","CA"]
["VANDENBERG AFB","CA"]
["VANDENBERG AFB","CA"]
["VANDENBERG AFB","CA"]
["VANDENBERG AFB","CA"]
["MARIN/SONOMA","CA",null,null,{"v":1509,"d":"$1,509"},{"v":1509,"d":"$1,509"},{"v":1509,"d":"$1,509"},{"v":1509,"d":"$1,509"},{"v":1692,"d":"$1,692"},{"v":1800,"d":"$1,800"},{"v":1926,"d":"$1,926"},{"v":2064,"d":"$2,064"},{"v":2076,"d":"$2,076"},{"v":1866,"d":"$1,866"},{"v":2064,"d":"$2,064"},{"v":2079,"d":"$2,079"},{"v":2103,"d":"$2,103"},{"v":2133,"d":"$2,133"},{"v":2058,"d":"$2,058"},{"v":2076,"d":"$2,076"},{"v":2097,"d":"$2,097"},{"v":1782,"d":"$1,782"},{"v":2010,"d":"$2,010"},{"v":2082,"d":"$2,082"},{"v":2130,"d":"$2,130"},{"v":2148,"d":"$2,148"},{"v":2178,"d":"$2,178"},{"v":2223,"d":"$2,223"}]
["MARIN/SONOMA","CA"]
["MARIN/SONOMA","CA"]
["MARIN/SONOMA","CA"]
["MARIN/SONOMA","CA"]
["MARIN/SONOMA","CA"]
["MARIN/SONOMA","CA"]
["MARIN/SONOMA","CA"]
["MARIN/SONOMA","CA"]
["MARIN/SONOMA","CA"]
["MARIN/SONOMA","CA"]
["MARIN/SONOMA","CA"]
["MARIN/SONOMA","CA"]
["MARIN/SONOMA","CA"]
["MARIN/SONOMA","CA"]
["MARIN/SONOMA","CA"]
["MARIN/SONOMA","CA"]
["MARIN/SONOMA","CA"]
["MARIN/SONOMA","CA"]
["MARIN/SONOMA","CA"]
["MARIN/SONOMA","CA"]
["MARIN/SONOMA","CA"]
["MARIN/SONOMA","CA"]
["MARIN/SONOMA","CA"]
["BARSTOW/FORT IRWIN","CA",null,null,{"v":762,"d":"$762"},{"v":762,"d":"$762"},{"v":762,"d":"$762"},{"v":762,"d":"$762"},{"v":858,"d":"$858"},{"v":954,"d":"$954"},{"v":1020,"d":"$1,020"},{"v":1125,"d":"$1,125"},{"v":1182,"d":"$1,182"},{"v":987,"d":"$987"},{"v":1125,"d":"$1,125"},{"v":1188,"d":"$1,188"},{"v":1287,"d":"$1,287"},{"v":1344,"d":"$1,344"},{"v":1089,"d":"$1,089"},{"v":1170,"d":"$1,170"},{"v":1272,"d":"$1,272"},{"v":942,"d":"$942"},{"v":1065,"d":"$1,065"},{"v":1206,"d":"$1,206"},{"v":1335,"d":"$1,335"},{"v":1371,"d":"$1,371"},{"v":1431,"d":"$1,431"},{"v":1458,"d":"$1,458"}]
["BARSTOW/FORT IRWIN","CA"]
["BARSTOW/FORT IRWIN","CA"]
["BARSTOW/FORT IRWIN","CA"]
["BARSTOW/FORT IRWIN","CA"]
["BARSTOW/FORT IRWIN","CA"]
["BARSTOW/FORT IRWIN","CA"]
["BARSTOW/FORT IRWIN","CA"]
["BARSTOW/FORT IRWIN","CA"]
["BARSTOW/FORT IRWIN","CA"]
["BARSTOW/FORT IRWIN","CA"]
["BARSTOW/FORT IRWIN","CA"]
["BARSTOW/FORT IRWIN","CA"]
["BARSTOW/FORT IRWIN","CA"]
["BARSTOW/FORT IRWIN","CA"]
["BARSTOW/FORT IRWIN","CA"]
["BARSTOW/FORT IRWIN","CA"]
["BARSTOW/FORT IRWIN","CA"]
["BARSTOW/FORT IRWIN","CA"]
["BARSTOW/FORT IRWIN","CA"]
["BARSTOW/FORT IRWIN","CA"]
["BARSTOW/FORT IRWIN","CA"]
["BARSTOW/FORT IRWIN","CA"]
["BARSTOW/FORT IRWIN","CA"]
["SAN BERNARDINO","CA",null,null,{"v":945,"d":"$945"},{"v":945,"d":"$945"},{"v":945,"d":"$945"},{"v":945,"d":"$945"},{"v":1059,"d":"$1,059"},{"v":1200,"d":"$1,200"},{"v":1224,"d":"$1,224"},{"v":1356,"d":"$1,356"},{"v":1452,"d":"$1,452"},{"v":1200,"d":"$1,200"},{"v":1353,"d":"$1,353"},{"v":1461,"d":"$1,461"},{"v":1608,"d":"$1,608"},{"v":1641,"d":"$1,641"},{"v":1296,"d":"$1,296"},{"v":1428,"d":"$1,428"},{"v":1599,"d":"$1,599"},{"v":1116,"d":"$1,116"},{"v":1266,"d":"$1,266"},{"v":1491,"d":"$1,491"},{"v":1635,"d":"$1,635"},{"v":1656,"d":"$1,656"},{"v":1689,"d":"$1,689"},{"v":1725,"d":"$1,725"}]
["SAN BERNARDINO","CA"]
["SAN BERNARDINO","CA"]
["SAN BERNARDINO","CA"]
["SAN BERNARDINO","CA"]
["SAN BERNARDINO","CA"]
["SAN BERNARDINO","CA"]
["SAN BERNARDINO","CA"]
["SAN BERNARDINO","CA"]
["SAN BERNARDINO","CA"]
["SAN BERNARDINO","CA"]
["SAN BERNARDINO","CA"]
["SAN BERNARDINO","CA"]
["SAN BERNARDINO","CA"]
["SAN BERNARDINO","CA"]
["SAN BERNARDINO","CA"]
["SAN BERNARDINO","CA"]
["SAN BERNARDINO","CA"]
["SAN BERNARDINO","CA"]
["SAN BERNARDINO","CA"]
["SAN BERNARDINO","CA"]
["SAN BERNARDINO","CA"]
["SAN BERNARDINO","CA"]
["SAN BERNARDINO","CA"]
["TWENTY NINE PALMS MCB","CA",null,null,{"v":720,"d":"$720"},{"v":720,"d":"$720"},{"v":720,"d":"$720"},{"v":720,"d":"$720"},{"v":825,"d":"$825"},{"v":915,"d":"$915"},{"v":966,"d":"$966"},{"v":1071,"d":"$1,071"},{"v":1128,"d":"$1,128"},{"v":933,"d":"$933"},{"v":1071,"d":"$1,071"},{"v":1134,"d":"$1,134"},{"v":1236,"d":"$1,236"},{"v":1305,"d":"$1,305"},{"v":1035,"d":"$1,035"},{"v":1116,"d":"$1,116"},{"v":1218,"d":"$1,218"},{"v":888,"d":"$888"},{"v":1011,"d":"$1,011"},{"v":1152,"d":"$1,152"},{"v":1296,"d":"$1,296"},{"v":1338,"d":"$1,338"},{"v":1410,"d":"$1,410"},{"v":1437,"d":"$1,437"}]
["TWENTY NINE PALMS MCB","CA"]
["TWENTY NINE PALMS MCB","CA"]
["TWENTY NINE PALMS MCB","CA"]
["TWENTY NINE PALMS MCB","CA"]
["TWENTY NINE PALMS MCB","CA"]
["TWENTY NINE PALMS MCB","CA"]
["TWENTY NINE PALMS MCB","CA"]
["TWENTY NINE PALMS MCB","CA"]
["TWENTY NINE PALMS MCB","CA"]
["TWENTY NINE PALMS MCB","CA"]
["TWENTY NINE PALMS MCB","CA"]
["TWENTY NINE PALMS MCB","CA"]
["TWENTY NINE PALMS MCB","CA"]
["TWENTY NINE PALMS MCB","CA"]
["TWENTY NINE PALMS MCB","CA"]
["TWENTY NINE PALMS MCB","CA"]
["TWENTY NINE PALMS MCB","CA"]
["TWENTY NINE PALMS MCB","CA"]
["TWENTY NINE PALMS MCB","CA"]
["TWENTY NINE PALMS MCB","CA"]
["TWENTY NINE PALMS MCB","CA"]
["TWENTY NINE PALMS MCB","CA"]
["TWENTY NINE PALMS MCB","CA"]
["BEALE AFB","CA",null,null,{"v":927,"d":"$927"},{"v":927,"d":"$927"},{"v":927,"d":"$927"},{"v":927,"d":"$927"},{"v":1077,"d":"$1,077"},{"v":1164,"d":"$1,164"},{"v":1239,"d":"$1,239"},{"v":1344,"d":"$1,344"},{"v":1437,"d":"$1,437"},{"v":1203,"d":"$1,203"},{"v":1341,"d":"$1,341"},{"v":1386,"d":"$1,386"},{"v":1482,"d":"$1,482"},{"v":1626,"d":"$1,626"},{"v":1317,"d":"$1,317"},{"v":1374,"d":"$1,374"},{"v":1467,"d":"$1,467"},{"v":1152,"d":"$1,152"},{"v":1290,"d":"$1,290"},{"v":1401,"d":"$1,401"},{"v":1605,"d":"$1,605"},{"v":1704,"d":"$1,704"},{"v":1848,"d":"$1,848"},{"v":1884,"d":"$1,884"}]
["BEALE AFB","CA"]
["BEALE AFB","CA"]
["BEALE AFB","CA"]
["BEALE AFB","CA"]
["BEALE AFB","CA"]
["BEALE AFB","CA"]
["BEALE AFB","CA"]
["BEALE AFB","CA"]
["BEALE AFB","CA"]
["BEALE AFB","CA"]
["BEALE AFB","CA"]
["BEALE AFB","CA"]
["BEALE AFB","CA"]
["BEALE AFB","CA"]
["BEALE AFB","CA"]
["BEALE AFB","CA"]
["BEALE AFB","CA"]
["BEALE AFB","CA"]
["BEALE AFB","CA"]
["BEALE AFB","CA"]
["BEALE AFB","CA"]
["BEALE AFB","CA"]
["BEALE AFB","CA"]
["SACRAMENTO","CA",null,null,{"v":1149,"d":"$1,149"},{"v":1149,"d":"$1,149"},{"v":1149,"d":"$1,149"},{"v":1149,"d":"$1,149"},{"v":1302,"d":"$1,302"},{"v":1398,"d":"$1,398"},{"v":1536,"d":"$1,536"},{"v":1713,"d":"$1,713"},{"v":1767,"d":"$1,767"},{"v":1470,"d":"$1,470"},{"v":1713,"d":"$1,713"},{"v":1773,"d":"$1,773"},{"v":1869,"d":"$1,869"},{"v":1938,"d":"$1,938"},{"v":1680,"d":"$1,680"},{"v":1755,"d":"$1,755"},{"v":1854,"d":"$1,854"},{"v":1377,"d":"$1,377"},{"v":1626,"d":"$1,626"},{"v":1791,"d":"$1,791"},{"v":1929,"d":"$1,929"},{"v":1974,"d":"$1,974"},{"v":2046,"d":"$2,046"},{"v":2085,"d":"$2,085"}]
["SACRAMENTO","CA"]
["SACRAMENTO","CA"]
["SACRAMENTO","CA"]
["SACRAMENTO","CA"]
["SACRAMENTO","CA"]
["SACRAMENTO","CA"]
["SACRAMENTO","CA"]
["SACRAMENTO","CA"]
["SACRAMENTO","CA"]
["SACRAMENTO","CA"]
["SACRAMENTO","CA"]
["SACRAMENTO","CA"]
["SACRAMENTO","CA"]
["SACRAMENTO","CA"]
["SACRAMENTO","CA"]
["SACRAMENTO","CA"]
["SACRAMENTO","CA"]
["SACRAMENTO","CA"]
["SACRAMENTO","CA"]
["SACRAMENTO","CA"]
["SACRAMENTO","CA"]
["SACRAMENTO","CA"]
["SACRAMENTO","CA"]
["STOCKTON","CA",null,null,{"v":891,"d":"$891"},{"v":891,"d":"$891"},{"v":891,"d":"$891"},{"v":891,"d":"$891"},{"v":978,"d":"$978"},{"v":1044,"d":"$1,044"},{"v":1125,"d":"$1,125"},{"v":1254,"d":"$1,254"},{"v":1308,"d":"$1,308"},{"v":1083,"d":"$1,083"},{"v":1251,"d":"$1,251"},{"v":1311,"d":"$1,311"},{"v":1404,"d":"$1,404"},{"v":1467,"d":"$1,467"},{"v":1221,"d":"$1,221"},{"v":1296,"d":"$1,296"},{"v":1389,"d":"$1,389"},{"v":1020,"d":"$1,020"},{"v":1185,"d":"$1,185"},{"v":1329,"d":"$1,329"},{"v":1458,"d":"$1,458"},{"v":1497,"d":"$1,497"},{"v":1560,"d":"$1,560"},{"v":1593,"d":"$1,593"}]
["STOCKTON","CA"]
["STOCKTON","CA"]
["STOCKTON","CA"]
["STOCKTON","CA"]
["STOCKTON","CA"]
["STOCKTON","CA"]
["STOCKTON","CA"]
["STOCKTON","CA"]
["STOCKTON","CA"]
["STOCKTON","CA"]
["STOCKTON","CA"]
["STOCKTON","CA"]
["STOCKTON","CA"]
["STOCKTON","CA"]
["STOCKTON","CA"]
["STOCKTON","CA"]
["STOCKTON","CA"]
["STOCKTON","CA"]
["STOCKTON","CA"]
["STOCKTON","CA"]
["STOCKTON","CA"]
["STOCKTON","CA"]
["STOCKTON","CA"]
["VALLEJO/TRAVIS AFB","CA",null,null,{"v":1332,"d":"$1,332"},{"v":1332,"d":"$1,332"},{"v":1332,"d":"$1,332"},{"v":1332,"d":"$1,332"},{"v":1476,"d":"$1,476"},{"v":1554,"d":"$1,554"},{"v":1602,"d":"$1,602"},{"v":1689,"d":"$1,689"},{"v":1746,"d":"$1,746"},{"v":1578,"d":"$1,578"},{"v":1689,"d":"$1,689"},{"v":1752,"d":"$1,752"},{"v":1851,"d":"$1,851"},{"v":1923,"d":"$1,923"},{"v":1653,"d":"$1,653"},{"v":1734,"d":"$1,734"},{"v":1833,"d":"$1,833"},{"v":1545,"d":"$1,545"},{"v":1635,"d":"$1,635"},{"v":1770,"d":"$1,770"},{"v":1914,"d":"$1,914"},{"v":1959,"d":"$1,959"},{"v":2034,"d":"$2,034"},{"v":2076,"d":"$2,076"}]
["VALLEJO/TRAVIS AFB","CA"]
["VALLEJO/TRAVIS AFB","CA"]
["VALLEJO/TRAVIS AFB","CA"]
["VALLEJO/TRAVIS AFB","CA"]
["VALLEJO/TRAVIS AFB","CA"]
["VALLEJO/TRAVIS AFB","CA"]
["VALLEJO/TRAVIS AFB","CA"]
["VALLEJO/TRAVIS AFB","CA"]
["VALLEJO/TRAVIS AFB","CA"]
["VALLEJO/TRAVIS AFB","CA"]
["VALLEJO/TRAVIS AFB","CA"]
["VALLEJO/TRAVIS AFB","CA"]
["VALLEJO/TRAVIS AFB","CA"]
["VALLEJO/TRAVIS AFB","CA"]
["VALLEJO/TRAVIS AFB","CA"]
["VALLEJO/TRAVIS AFB","CA"]
["VALLEJO/TRAVIS AFB","CA"]
["VALLEJO/TRAVIS AFB","CA"]
["VALLEJO/TRAVIS AFB","CA"]
["VALLEJO/TRAVIS AFB","CA"]
["VALLEJO/TRAVIS AFB","CA"]
["VALLEJO/TRAVIS AFB","CA"]
["VALLEJO/TRAVIS AFB","CA"]
["LOS ANGELES","CA",null,null,{"v":1458,"d":"$1,458"},{"v":1458,"d":"$1,458"},{"v":1458,"d":"$1,458"},{"v":1458,"d":"$1,458"},{"v":1662,"d":"$1,662"},{"v":1797,"d":"$1,797"},{"v":1917,"d":"$1,917"},{"v":2121,"d":"$2,121"},{"v":2229,"d":"$2,229"},{"v":1851,"d":"$1,851"},{"v":2118,"d":"$2,118"},{"v":2238,"d":"$2,238"},{"v":2427,"d":"$2,427"},{"v":2547,"d":"$2,547"},{"v":2052,"d":"$2,052"},{"v":2205,"d":"$2,205"},{"v":2397,"d":"$2,397"},{"v":1761,"d":"$1,761"},{"v":2004,"d":"$2,004"},{"v":2274,"d":"$2,274"},{"v":2532,"d":"$2,532"},{"v":2607,"d":"$2,607"},{"v":2733,"d":"$2,733"},{"v":2787,"d":"$2,787"}]
["LOS ANGELES","CA"]
["LOS ANGELES","CA"]
["LOS ANGELES","CA"]
["LOS ANGELES","CA"]
["LOS ANGELES","CA"]
["LOS ANGELES","CA"]
["LOS ANGELES","CA"]
["LOS ANGELES","CA"]
["LOS ANGELES","CA"]
["LOS ANGELES","CA"]
["LOS ANGELES","CA"]
["LOS ANGELES","CA"]
["LOS ANGELES","CA"]
["LOS ANGELES","CA"]
["LOS ANGELES","CA"]
["LOS ANGELES","CA"]
["LOS ANGELES","CA"]
["LOS ANGELES","CA"]
["LOS ANGELES","CA"]
["LOS ANGELES","CA"]
["LOS ANGELES","CA"]
["LOS ANGELES","CA"]
["LOS ANGELES","CA"]
["SAN DIEGO","CA",null,null,{"v":1419,"d":"$1,419"},{"v":1419,"d":"$1,419"},{"v":1419,"d":"$1,419"},{"v":1419,"d":"$1,419"},{"v":1653,"d":"$1,653"},{"v":1800,"d":"$1,800"},{"v":1899,"d":"$1,899"},{"v":2025,"d":"$2,025"},{"v":2067,"d":"$2,067"},{"v":1851,"d":"$1,851"},{"v":2025,"d":"$2,025"},{"v":2073,"d":"$2,073"},{"v":2151,"d":"$2,151"},{"v":2226,"d":"$2,226"},{"v":1998,"d":"$1,998"},{"v":2058,"d":"$2,058"},{"v":2133,"d":"$2,133"},{"v":1785,"d":"$1,785"},{"v":1962,"d":"$1,962"},{"v":2085,"d":"$2,085"},{"v":2217,"d":"$2,217"},{"v":2262,"d":"$2,262"},{"v":2337,"d":"$2,337"},{"v":2385,"d":"$2,385"}]
["SAN DIEGO","CA"]
["SAN DIEGO","CA"]
["SAN DIEGO","CA"]
["SAN DIEGO","CA"]
["SAN DIEGO","CA"]
["SAN DIEGO","CA"]
["SAN DIEGO","CA"]
["SAN DIEGO","CA"]
["SAN DIEGO","CA"]
["SAN DIEGO","CA"]
["SAN DIEGO","CA"]
["SAN DIEGO","CA"]
["SAN DIEGO","CA"]
["SAN DIEGO","CA"]
["SAN DIEGO","CA"]
["SAN DIEGO","CA"]
["SAN DIEGO","CA"]
["SAN DIEGO","CA"]
["SAN DIEGO","CA"]
["SAN DIEGO","CA"]
["SAN DIEGO","CA"]
["SAN DIEGO","CA"]
["SAN DIEGO","CA"]
["MONTEREY","CA",null,null,{"v":1314,"d":"$1,314"},{"v":1314,"d":"$1,314"},{"v":1314,"d":"$1,314"},{"v":1314,"d":"$1,314"},{"v":1464,"d":"$1,464"},{"v":1758,"d":"$1,758"},{"v":1845,"d":"$1,845"},{"v":2028,"d":"$2,028"},{"v":2151,"d":"$2,151"},{"v":1761,"d":"$1,761"},{"v":2025,"d":"$2,025"},{"v":2163,"d":"$2,163"},{"v":2373,"d":"$2,373"},{"v":2487,"d":"$2,487"},{"v":1950,"d":"$1,950"},{"v":2124,"d":"$2,124"},{"v":2343,"d":"$2,343"},{"v":1557,"d":"$1,557"},{"v":1884,"d":"$1,884"},{"v":2202,"d":"$2,202"},{"v":2472,"d":"$2,472"},{"v":2544,"d":"$2,544"},{"v":2664,"d":"$2,664"},{"v":2715,"d":"$2,715"}]
["MONTEREY","CA"]
["MONTEREY","CA"]
["MONTEREY","CA"]
["MONTEREY","CA"]
["MONTEREY","CA"]
["MONTEREY","CA"]
["MONTEREY","CA"]
["MONTEREY","CA"]
["MONTEREY","CA"]
["MONTEREY","CA"]
["MONTEREY","CA"]
["MONTEREY","CA"]
["MONTEREY","CA"]
["MONTEREY","CA"]
["MONTEREY","CA"]
["MONTEREY","CA"]
["MONTEREY","CA"]
["MONTEREY","CA"]
["MONTEREY","CA"]
["MONTEREY","CA"]
["MONTEREY","CA"]
["MONTEREY","CA"]
["MONTEREY","CA"]
["BAKERSFIELD","CA",null,null,{"v":777,"d":"$777"},{"v":777,"d":"$777"},{"v":777,"d":"$777"},{"v":777,"d":"$777"},{"v":867,"d":"$867"},{"v":921,"d":"$921"},{"v":987,"d":"$987"},{"v":1068,"d":"$1,068"},{"v":1164,"d":"$1,164"},{"v":945,"d":"$945"},{"v":1059,"d":"$1,059"},{"v":1125,"d":"$1,125"},{"v":1239,"d":"$1,239"},{"v":1341,"d":"$1,341"},{"v":1020,"d":"$1,020"},{"v":1107,"d":"$1,107"},{"v":1215,"d":"$1,215"},{"v":912,"d":"$912"},{"v":1002,"d":"$1,002"},{"v":1146,"d":"$1,146"},{"v":1326,"d":"$1,326"},{"v":1392,"d":"$1,392"},{"v":1497,"d":"$1,497"},{"v":1527,"d":"$1,527"}]
["BAKERSFIELD","CA"]
["BAKERSFIELD","CA"]
["BAKERSFIELD","CA"]
["BAKERSFIELD","CA"]
["BAKERSFIELD","CA"]
["BAKERSFIELD","CA"]
["BAKERSFIELD","CA"]
["BAKERSFIELD","CA"]
["BAKERSFIELD","CA"]
["BAKERSFIELD","CA"]
["BAKERSFIELD","CA"]
["BAKERSFIELD","CA"]
["BAKERSFIELD","CA"]
["BAKERSFIELD","CA"]
["BAKERSFIELD","CA"]
["BAKERSFIELD","CA"]
["BAKERSFIELD","CA"]
["BAKERSFIELD","CA"]
["BAKERSFIELD","CA"]
["BAKERSFIELD","CA"]
["BAKERSFIELD","CA"]
["BAKERSFIELD","CA"]
["BAKERSFIELD","CA"]
["RIVERSIDE","CA",null,null,{"v":1116,"d":"$1,116"},{"v":1116,"d":"$1,116"},{"v":1116,"d":"$1,116"},{"v":1116,"d":"$1,116"},{"v":1254,"d":"$1,254"},{"v":1332,"d":"$1,332"},{"v":1497,"d":"$1,497"},{"v":1692,"d":"$1,692"},{"v":1725,"d":"$1,725"},{"v":1416,"d":"$1,416"},{"v":1692,"d":"$1,692"},{"v":1728,"d":"$1,728"},{"v":1785,"d":"$1,785"},{"v":1827,"d":"$1,827"},{"v":1671,"d":"$1,671"},{"v":1716,"d":"$1,716"},{"v":1773,"d":"$1,773"},{"v":1302,"d":"$1,302"},{"v":1608,"d":"$1,608"},{"v":1737,"d":"$1,737"},{"v":1821,"d":"$1,821"},{"v":1848,"d":"$1,848"},{"v":1890,"d":"$1,890"},{"v":1929,"d":"$1,929"}]
["RIVERSIDE","CA"]
["RIVERSIDE","CA"]
["RIVERSIDE","CA"]
["RIVERSIDE","CA"]
["RIVERSIDE","CA"]
["RIVERSIDE","CA"]
["RIVERSIDE","CA"]
["RIVERSIDE","CA"]
["RIVERSIDE","CA"]
["RIVERSIDE","CA"]
["RIVERSIDE","CA"]
["RIVERSIDE","CA"]
["RIVERSIDE","CA"]
["RIVERSIDE","CA"]
["RIVERSIDE","CA"]
["RIVERSIDE","CA"]
["RIVERSIDE","CA"]
["RIVERSIDE","CA"]
["RIVERSIDE","CA"]
["RIVERSIDE","CA"]
["RIVERSIDE","CA"]
["RIVERSIDE","CA"]
["RIVERSIDE","CA"]
["HUMBOLDT COUNTY","CA",null,null,{"v":768,"d":"$768"},{"v":768,"d":"$768"},{"v":768,"d":"$768"},{"v":768,"d":"$768"},{"v":870,"d":"$870"},{"v":1134,"d":"$1,134"},{"v":1158,"d":"$1,158"},{"v":1197,"d":"$1,197"},{"v":1320,"d":"$1,320"},{"v":1134,"d":"$1,134"},{"v":1194,"d":"$1,194"},{"v":1332,"d":"$1,332"},{"v":1521,"d":"$1,521"},{"v":1551,"d":"$1,551"},{"v":1161,"d":"$1,161"},{"v":1293,"d":"$1,293"},{"v":1512,"d":"$1,512"},{"v":927,"d":"$927"},{"v":1128,"d":"$1,128"},{"v":1371,"d":"$1,371"},{"v":1545,"d":"$1,545"},{"v":1566,"d":"$1,566"},{"v":1599,"d":"$1,599"},{"v":1629,"d":"$1,629"}]
["HUMBOLDT COUNTY","CA"]
["HUMBOLDT COUNTY","CA"]
["HUMBOLDT COUNTY","CA"]
["HUMBOLDT COUNTY","CA"]
["HUMBOLDT COUNTY","CA"]
["HUMBOLDT COUNTY","CA"]
["HUMBOLDT COUNTY","CA"]
["HUMBOLDT COUNTY","CA"]
["HUMBOLDT COUNTY","CA"]
["HUMBOLDT COUNTY","CA"]
["HUMBOLDT COUNTY","CA"]
["HUMBOLDT COUNTY","CA"]
["HUMBOLDT COUNTY","CA"]
["HUMBOLDT COUNTY","CA"]
["HUMBOLDT COUNTY","CA"]
["HUMBOLDT COUNTY","CA"]
["HUMBOLDT COUNTY","CA"]
["HUMBOLDT COUNTY","CA"]
["HUMBOLDT COUNTY","CA"]
["HUMBOLDT COUNTY","CA"]
["HUMBOLDT COUNTY","CA"]
["HUMBOLDT COUNTY","CA"]
["HUMBOLDT COUNTY","CA"]
["SANTA CLARA COUNTY","CA",null,null,{"v":1452,"d":"$1,452"},{"v":1452,"d":"$1,452"},{"v":1452,"d":"$1,452"},{"v":1452,"d":"$1,452"},{"v":1650,"d":"$1,650"},{"v":1785,"d":"$1,785"},{"v":1947,"d":"$1,947"},{"v":2154,"d":"$2,154"},{"v":2217,"d":"$2,217"},{"v":1869,"d":"$1,869"},{"v":2151,"d":"$2,151"},{"v":2223,"d":"$2,223"},{"v":2337,"d":"$2,337"},{"v":2427,"d":"$2,427"},{"v":2112,"d":"$2,112"},{"v":2202,"d":"$2,202"},{"v":2313,"d":"$2,313"},{"v":1758,"d":"$1,758"},{"v":2052,"d":"$2,052"},{"v":2241,"d":"$2,241"},{"v":2415,"d":"$2,415"},{"v":2475,"d":"$2,475"},{"v":2568,"d":"$2,568"},{"v":2619,"d":"$2,619"}]
["SANTA CLARA COUNTY","CA"]
["SANTA CLARA COUNTY","CA"]
["SANTA CLARA COUNTY","CA"]
["SANTA CLARA COUNTY","CA"]
["SANTA CLARA COUNTY","CA"]
["SANTA CLARA COUNTY","CA"]
["SANTA CLARA COUNTY","CA"]
["SANTA CLARA COUNTY","CA"]
["SANTA CLARA COUNTY","CA"]
["SANTA CLARA COUNTY","CA"]
["SANTA CLARA COUNTY","CA"]
["SANTA CLARA COUNTY","CA"]
["SANTA CLARA COUNTY","CA"]
["SANTA CLARA COUNTY","CA"]
["SANTA CLARA COUNTY","CA"]
["SANTA CLARA COUNTY","CA"]
["SANTA CLARA COUNTY","CA"]
["SANTA CLARA COUNTY","CA"]
["SANTA CLARA COUNTY","CA"]
["SANTA CLARA COUNTY","CA"]
["SANTA CLARA COUNTY","CA"]
["SANTA CLARA COUNTY","CA"]
["SANTA CLARA COUNTY","CA"]
["SAN LUIS OBISPO","CA",null,null,{"v":1038,"d":"$1,038"},{"v":1038,"d":"$1,038"},{"v":1038,"d":"$1,038"},{"v":1038,"d":"$1,038"},{"v":1158,"d":"$1,158"},{"v":1398,"d":"$1,398"},{"v":1452,"d":"$1,452"},{"v":1578,"d":"$1,578"},{"v":1689,"d":"$1,689"},{"v":1398,"d":"$1,398"},{"v":1575,"d":"$1,575"},{"v":1698,"d":"$1,698"},{"v":1881,"d":"$1,881"},{"v":1956,"d":"$1,956"},{"v":1506,"d":"$1,506"},{"v":1662,"d":"$1,662"},{"v":1863,"d":"$1,863"},{"v":1260,"d":"$1,260"},{"v":1464,"d":"$1,464"},{"v":1734,"d":"$1,734"},{"v":1947,"d":"$1,947"},{"v":1995,"d":"$1,995"},{"v":2073,"d":"$2,073"},{"v":2115,"d":"$2,115"}]
["SAN LUIS OBISPO","CA"]
["SAN LUIS OBISPO","CA"]
["SAN LUIS OBISPO","CA"]
["SAN LUIS OBISPO","CA"]
["SAN LUIS OBISPO","CA"]
["SAN LUIS OBISPO","CA"]
["SAN LUIS OBISPO","CA"]
["SAN LUIS OBISPO","CA"]
["SAN LUIS OBISPO","CA"]
["SAN LUIS OBISPO","CA"]
["SAN LUIS OBISPO","CA"]
["SAN LUIS OBISPO","CA"]
["SAN LUIS OBISPO","CA"]
["SAN LUIS OBISPO","CA"]
["SAN LUIS OBISPO","CA"]
["SAN LUIS OBISPO","CA"]
["SAN LUIS OBISPO","CA"]
["SAN LUIS OBISPO","CA"]
["SAN LUIS OBISPO","CA"]
["SAN LUIS OBISPO","CA"]
["SAN LUIS OBISPO","CA"]
["SAN LUIS OBISPO","CA"]
["SAN LUIS OBISPO","CA"]
["BRIDGEPORT","CA",null,null,{"v":1104,"d":"$1,104"},{"v":1104,"d":"$1,104"},{"v":1104,"d":"$1,104"},{"v":1104,"d":"$1,104"},{"v":1329,"d":"$1,329"},{"v":1440,"d":"$1,440"},{"v":1455,"d":"$1,455"},{"v":1500,"d":"$1,500"},{"v":1545,"d":"$1,545"},{"v":1449,"d":"$1,449"},{"v":1497,"d":"$1,497"},{"v":1548,"d":"$1,548"},{"v":1623,"d":"$1,623"},{"v":1644,"d":"$1,644"},{"v":1470,"d":"$1,470"},{"v":1533,"d":"$1,533"},{"v":1617,"d":"$1,617"},{"v":1440,"d":"$1,440"},{"v":1464,"d":"$1,464"},{"v":1563,"d":"$1,563"},{"v":1641,"d":"$1,641"},{"v":1656,"d":"$1,656"},{"v":1677,"d":"$1,677"},{"v":1710,"d":"$1,710"}]
["BRIDGEPORT","CA"]
["BRIDGEPORT","CA"]
["BRIDGEPORT","CA"]
["BRIDGEPORT","CA"]
["BRIDGEPORT","CA"]
["BRIDGEPORT","CA"]
["BRIDGEPORT","CA"]
["BRIDGEPORT","CA"]
["BRIDGEPORT","CA"]
["BRIDGEPORT","CA"]
["BRIDGEPORT","CA"]
["BRIDGEPORT","CA"]
["BRIDGEPORT","CA"]
["BRIDGEPORT","CA"]
["BRIDGEPORT","CA"]
["BRIDGEPORT","CA"]
["BRIDGEPORT","CA"]
["BRIDGEPORT","CA"]
["BRIDGEPORT","CA"]
["BRIDGEPORT","CA"]
["BRIDGEPORT","CA"]
["BRIDGEPORT","CA"]
["BRIDGEPORT","CA"]
["EL CENTRO","CA",null,null,{"v":747,"d":"$747"},{"v":747,"d":"$747"},{"v":747,"d":"$747"},{"v":747,"d":"$747"},{"v":858,"d":"$858"},{"v":924,"d":"$924"},{"v":1002,"d":"$1,002"},{"v":1104,"d":"$1,104"},{"v":1143,"d":"$1,143"},{"v":963,"d":"$963"},{"v":1104,"d":"$1,104"},{"v":1149,"d":"$1,149"},{"v":1230,"d":"$1,230"},{"v":1320,"d":"$1,320"},{"v":1080,"d":"$1,080"},{"v":1134,"d":"$1,134"},{"v":1206,"d":"$1,206"},{"v":912,"d":"$912"},{"v":1050,"d":"$1,050"},{"v":1161,"d":"$1,161"},{"v":1308,"d":"$1,308"},{"v":1365,"d":"$1,365"},{"v":1458,"d":"$1,458"},{"v":1488,"d":"$1,488"}]
["EL CENTRO","CA"]
["EL CENTRO","CA"]
["EL CENTRO","CA"]
["EL CENTRO","CA"]
["EL CENTRO","CA"]
["EL CENTRO","CA"]
["EL CENTRO","CA"]
["EL CENTRO","CA"]
["EL CENTRO","CA"]
["EL CENTRO","CA"]
["EL CENTRO","CA"]
["EL CENTRO","CA"]
["EL CENTRO","CA"]
["EL CENTRO","CA"]
["EL CENTRO","CA"]
["EL CENTRO","CA"]
["EL CENTRO","CA"]
["EL CENTRO","CA"]
["EL CENTRO","CA"]
["EL CENTRO","CA"]
["EL CENTRO","CA"]
["EL CENTRO","CA"]
["EL CENTRO","CA"]
["FORT BRAGG","CA",null,null,{"v":840,"d":"$840"},{"v":840,"d":"$840"},{"v":840,"d":"$840"},{"v":840,"d":"$840"},{"v":945,"d":"$945"},{"v":1059,"d":"$1,059"},{"v":1149,"d":"$1,149"},{"v":1248,"d":"$1,248"},{"v":1350,"d":"$1,350"},{"v":1059,"d":"$1,059"},{"v":1209,"d":"$1,209"},{"v":1314,"d":"$1,314"},{"v":1440,"d":"$1,440"},{"v":1563,"d":"$1,563"},{"v":1170,"d":"$1,170"},{"v":1296,"d":"$1,296"},{"v":1410,"d":"$1,410"},{"v":996,"d":"$996"},{"v":1134,"d":"$1,134"},{"v":1320,"d":"$1,320"},{"v":1545,"d":"$1,545"},{"v":1623,"d":"$1,623"},{"v":1749,"d":"$1,749"},{"v":1785,"d":"$1,785"}]
["FORT BRAGG","CA"]
["FORT BRAGG","CA"]
["FORT BRAGG","CA"]
["FORT BRAGG","CA"]
["FORT BRAGG","CA"]
["FORT BRAGG","CA"]
["FORT BRAGG","CA"]
["FORT BRAGG","CA"]
["FORT BRAGG","CA"]
["FORT BRAGG","CA"]
["FORT BRAGG","CA"]
["FORT BRAGG","CA"]
["FORT BRAGG","CA"]
["FORT BRAGG","CA"]
["FORT BRAGG","CA"]
["FORT BRAGG","CA"]
["FORT BRAGG","CA"]
["FORT BRAGG","CA"]
["FORT BRAGG","CA"]
["FORT BRAGG","CA"]
["FORT BRAGG","CA"]
["FORT BRAGG","CA"]
["FORT BRAGG","CA"]
["EDWARDS AFB/PALMDALE","CA",null,null,{"v":990,"d":"$990"},{"v":990,"d":"$990"},{"v":990,"d":"$990"},{"v":990,"d":"$990"},{"v":1059,"d":"$1,059"},{"v":1212,"d":"$1,212"},{"v":1275,"d":"$1,275"},{"v":1377,"d":"$1,377"},{"v":1470,"d":"$1,470"},{"v":1215,"d":"$1,215"},{"v":1374,"d":"$1,374"},{"v":1479,"d":"$1,479"},{"v":1638,"d":"$1,638"},{"v":1722,"d":"$1,722"},{"v":1317,"d":"$1,317"},{"v":1449,"d":"$1,449"},{"v":1617,"d":"$1,617"},{"v":1092,"d":"$1,092"},{"v":1278,"d":"$1,278"},{"v":1509,"d":"$1,509"},{"v":1710,"d":"$1,710"},{"v":1764,"d":"$1,764"},{"v":1851,"d":"$1,851"},{"v":1890,"d":"$1,890"}]
["EDWARDS AFB/PALMDALE","CA"]
["EDWARDS AFB/PALMDALE","CA"]
["EDWARDS AFB/PALMDALE","CA"]
["EDWARDS AFB/PALMDALE","CA"]
["EDWARDS AFB/PALMDALE","CA"]
["EDWARDS AFB/PALMDALE","CA"]
["EDWARDS AFB/PALMDALE","CA"]
["EDWARDS AFB/PALMDALE","CA"]
["EDWARDS AFB/PALMDALE","CA"]
["EDWARDS AFB/PALMDALE","CA"]
["EDWARDS AFB/PALMDALE","CA"]
["EDWARDS AFB/PALMDALE","CA"]
["EDWARDS AFB/PALMDALE","CA"]
["EDWARDS AFB/PALMDALE","CA"]
["EDWARDS AFB/PALMDALE","CA"]
["EDWARDS AFB/PALMDALE","CA"]
["EDWARDS AFB/PALMDALE","CA"]
["EDWARDS AFB/PALMDALE","CA"]
["EDWARDS AFB/PALMDALE","CA"]
["EDWARDS AFB/PALMDALE","CA"]
["EDWARDS AFB/PALMDALE","CA"]
["EDWARDS AFB/PALMDALE","CA"]
["EDWARDS AFB/PALMDALE","CA"]
["DENVER","CO",null,null,{"v":963,"d":"$963"},{"v":963,"d":"$963"},{"v":963,"d":"$963"},{"v":963,"d":"$963"},{"v":1095,"d":"$1,095"},{"v":1191,"d":"$1,191"},{"v":1293,"d":"$1,293"},{"v":1485,"d":"$1,485"},{"v":1524,"d":"$1,524"},{"v":1218,"d":"$1,218"},{"v":1482,"d":"$1,482"},{"v":1527,"d":"$1,527"},{"v":1620,"d":"$1,620"},{"v":1755,"d":"$1,755"},{"v":1458,"d":"$1,458"},{"v":1515,"d":"$1,515"},{"v":1587,"d":"$1,587"},{"v":1110,"d":"$1,110"},{"v":1398,"d":"$1,398"},{"v":1539,"d":"$1,539"},{"v":1734,"d":"$1,734"},{"v":1821,"d":"$1,821"},{"v":1959,"d":"$1,959"},{"v":1998,"d":"$1,998"}]
["DENVER","CO"]
["DENVER","CO"]
["DENVER","CO"]
["DENVER","CO"]
["DENVER","CO"]
["DENVER","CO"]
["DENVER","CO"]
["DENVER","CO"]
["DENVER","CO"]
["DENVER","CO"]
["DENVER","CO"]
["DENVER","CO"]
["DENVER","CO"]
["DENVER","CO"]
["DENVER","CO"]
["DENVER","CO"]
["DENVER","CO"]
["DENVER","CO"]
["DENVER","CO"]
["DENVER","CO"]
["DENVER","CO"]
["DENVER","CO"]
["DENVER","CO"]
["COLORADO SPRINGS","CO",null,null,{"v":825,"d":"$825"},{"v":825,"d":"$825"},{"v":825,"d":"$825"},{"v":825,"d":"$825"},{"v":924,"d":"$924"},{"v":987,"d":"$987"},{"v":1068,"d":"$1,068"},{"v":1173,"d":"$1,173"},{"v":1206,"d":"$1,206"},{"v":1029,"d":"$1,029"},{"v":1173,"d":"$1,173"},{"v":1209,"d":"$1,209"},{"v":1281,"d":"$1,281"},{"v":1371,"d":"$1,371"},{"v":1152,"d":"$1,152"},{"v":1200,"d":"$1,200"},{"v":1257,"d":"$1,257"},{"v":975,"d":"$975"},{"v":1122,"d":"$1,122"},{"v":1221,"d":"$1,221"},{"v":1359,"d":"$1,359"},{"v":1416,"d":"$1,416"},{"v":1509,"d":"$1,509"},{"v":1539,"d":"$1,539"}]
["COLORADO SPRINGS","CO"]
["COLORADO SPRINGS","CO"]
["COLORADO SPRINGS","CO"]
["COLORADO SPRINGS","CO"]
["COLORADO SPRINGS","CO"]
["COLORADO SPRINGS","CO"]
["COLORADO SPRINGS","CO"]
["COLORADO SPRINGS","CO"]
["COLORADO SPRINGS","CO"]
["COLORADO SPRINGS","CO"]
["COLORADO SPRINGS","CO"]
["COLORADO SPRINGS","CO"]
["COLORADO SPRINGS","CO"]
["COLORADO SPRINGS","CO"]
["COLORADO SPRINGS","CO"]
["COLORADO SPRINGS","CO"]
["COLORADO SPRINGS","CO"]
["COLORADO SPRINGS","CO"]
["COLORADO SPRINGS","CO"]
["COLORADO SPRINGS","CO"]
["COLORADO SPRINGS","CO"]
["COLORADO SPRINGS","CO"]
["COLORADO SPRINGS","CO"]
["FORT COLLINS","CO",null,null,{"v":756,"d":"$756"},{"v":756,"d":"$756"},{"v":756,"d":"$756"},{"v":756,"d":"$756"},{"v":834,"d":"$834"},{"v":942,"d":"$942"},{"v":993,"d":"$993"},{"v":1059,"d":"$1,059"},{"v":1137,"d":"$1,137"},{"v":945,"d":"$945"},{"v":1059,"d":"$1,059"},{"v":1143,"d":"$1,143"},{"v":1272,"d":"$1,272"},{"v":1338,"d":"$1,338"},{"v":1011,"d":"$1,011"},{"v":1119,"d":"$1,119"},{"v":1257,"d":"$1,257"},{"v":873,"d":"$873"},{"v":987,"d":"$987"},{"v":1167,"d":"$1,167"},{"v":1329,"d":"$1,329"},{"v":1371,"d":"$1,371"},{"v":1440,"d":"$1,440"},{"v":1470,"d":"$1,470"}]
["FORT COLLINS","CO"]
["FORT COLLINS","CO"]
["FORT COLLINS","CO"]
["FORT COLLINS","CO"]
["FORT COLLINS","CO"]
["FORT COLLINS","CO"]
["FORT COLLINS","CO"]
["FORT COLLINS","CO"]
["FORT COLLINS","CO"]
["FORT COLLINS","CO"]
["FORT COLLINS","CO"]
["FORT COLLINS","CO"]
["FORT COLLINS","CO"]
["FORT COLLINS","CO"]
["FORT COLLINS","CO"]
["FORT COLLINS","CO"]
["FORT COLLINS","CO"]
["FORT COLLINS","CO"]
["FORT COLLINS","CO"]
["FORT COLLINS","CO"]
["FORT COLLINS","CO"]
["FORT COLLINS","CO"]
["FORT COLLINS","CO"]
["BOULDER","CO",null,null,{"v":1002,"d":"$1,002"},{"v":1002,"d":"$1,002"},{"v":1002,"d":"$1,002"},{"v":1002,"d":"$1,002"},{"v":1119,"d":"$1,119"},{"v":1314,"d":"$1,314"},{"v":1368,"d":"$1,368"},{"v":1518,"d":"$1,518"},{"v":1608,"d":"$1,608"},{"v":1314,"d":"$1,314"},{"v":1515,"d":"$1,515"},{"v":1617,"d":"$1,617"},{"v":1770,"d":"$1,770"},{"v":1842,"d":"$1,842"},{"v":1461,"d":"$1,461"},{"v":1590,"d":"$1,590"},{"v":1752,"d":"$1,752"},{"v":1176,"d":"$1,176"},{"v":1413,"d":"$1,413"},{"v":1647,"d":"$1,647"},{"v":1830,"d":"$1,830"},{"v":1878,"d":"$1,878"},{"v":1950,"d":"$1,950"},{"v":1989,"d":"$1,989"}]
["BOULDER","CO"]
["BOULDER","CO"]
["BOULDER","CO"]
["BOULDER","CO"]
["BOULDER","CO"]
["BOULDER","CO"]
["BOULDER","CO"]
["BOULDER","CO"]
["BOULDER","CO"]
["BOULDER","CO"]
["BOULDER","CO"]
["BOULDER","CO"]
["BOULDER","CO"]
["BOULDER","CO"]
["BOULDER","CO"]
["BOULDER","CO"]
["BOULDER","CO"]
["BOULDER","CO"]
["BOULDER","CO"]
["BOULDER","CO"]
["BOULDER","CO"]
["BOULDER","CO"]
["BOULDER","CO"]
["NEW LONDON","CT",null,null,{"v":1041,"d":"$1,041"},{"v":1041,"d":"$1,041"},{"v":1041,"d":"$1,041"},{"v":1041,"d":"$1,041"},{"v":1188,"d":"$1,188"},{"v":1278,"d":"$1,278"},{"v":1389,"d":"$1,389"},{"v":1524,"d":"$1,524"},{"v":1551,"d":"$1,551"},{"v":1335,"d":"$1,335"},{"v":1524,"d":"$1,524"},{"v":1554,"d":"$1,554"},{"v":1626,"d":"$1,626"},{"v":1746,"d":"$1,746"},{"v":1506,"d":"$1,506"},{"v":1545,"d":"$1,545"},{"v":1599,"d":"$1,599"},{"v":1260,"d":"$1,260"},{"v":1464,"d":"$1,464"},{"v":1566,"d":"$1,566"},{"v":1728,"d":"$1,728"},{"v":1803,"d":"$1,803"},{"v":1926,"d":"$1,926"},{"v":1965,"d":"$1,965"}]
["NEW LONDON","CT"]
["NEW LONDON","CT"]
["NEW LONDON","CT"]
["NEW LONDON","CT"]
["NEW LONDON","CT"]
["NEW LONDON","CT"]
["NEW LONDON","CT"]
["NEW LONDON","CT"]
["NEW LONDON","CT"]
["NEW LONDON","CT"]
["NEW LONDON","CT"]
["NEW LONDON","CT"]
["NEW LONDON","CT"]
["NEW LONDON","CT"]
["NEW LONDON","CT"]
["NEW LONDON","CT"]
["NEW LONDON","CT"]
["NEW LONDON","CT"]
["NEW LONDON","CT"]
["NEW LONDON","CT"]
["NEW LONDON","CT"]
["NEW LONDON","CT"]
["NEW LONDON","CT"]
["HARTFORD","CT",null,null,{"v":1176,"d":"$1,176"},{"v":1176,"d":"$1,176"},{"v":1176,"d":"$1,176"},{"v":1176,"d":"$1,176"},{"v":1320,"d":"$1,320"},{"v":1452,"d":"$1,452"},{"v":1581,"d":"$1,581"},{"v":1794,"d":"$1,794"},{"v":1848,"d":"$1,848"},{"v":1497,"d":"$1,497"},{"v":1794,"d":"$1,794"},{"v":1854,"d":"$1,854"},{"v":1971,"d":"$1,971"},{"v":2118,"d":"$2,118"},{"v":1758,"d":"$1,758"},{"v":1836,"d":"$1,836"},{"v":1935,"d":"$1,935"},{"v":1377,"d":"$1,377"},{"v":1695,"d":"$1,695"},{"v":1872,"d":"$1,872"},{"v":2097,"d":"$2,097"},{"v":2307,"d":"$2,307"},{"v":2340,"d":"$2,340"},{"v":2385,"d":"$2,385"}]
["HARTFORD","CT"]
["HARTFORD","CT"]
["HARTFORD","CT"]
["HARTFORD","CT"]
["HARTFORD","CT"]
["HARTFORD","CT"]
["HARTFORD","CT"]
["HARTFORD","CT"]
["HARTFORD","CT"]
["HARTFORD","CT"]
["HARTFORD","CT"]
["HARTFORD","CT"]
["HARTFORD","CT"]
["HARTFORD","CT"]
["HARTFORD","CT"]
["HARTFORD","CT"]
["HARTFORD","CT"]
["HARTFORD","CT"]
["HARTFORD","CT"]
["HARTFORD","CT"]
["HARTFORD","CT"]
["HARTFORD","CT"]
["HARTFORD","CT"]
["NEW HAVEN/FAIRFIELD","CT",null,null,{"v":1635,"d":"$1,635"},{"v":1635,"d":"$1,635"},{"v":1635,"d":"$1,635"},{"v":1635,"d":"$1,635"},{"v":1803,"d":"$1,803"},{"v":1902,"d":"$1,902"},{"v":2007,"d":"$2,007"},{"v":2148,"d":"$2,148"},{"v":2265,"d":"$2,265"},{"v":1956,"d":"$1,956"},{"v":2148,"d":"$2,148"},{"v":2208,"d":"$2,208"},{"v":2349,"d":"$2,349"},{"v":2574,"d":"$2,574"},{"v":2112,"d":"$2,112"},{"v":2190,"d":"$2,190"},{"v":2313,"d":"$2,313"},{"v":1887,"d":"$1,887"},{"v":2073,"d":"$2,073"},{"v":2226,"d":"$2,226"},{"v":2544,"d":"$2,544"},{"v":2688,"d":"$2,688"},{"v":2922,"d":"$2,922"},{"v":2979,"d":"$2,979"}]
["NEW HAVEN/FAIRFIELD","CT"]
["NEW HAVEN/FAIRFIELD","CT"]
["NEW HAVEN/FAIRFIELD","CT"]
["NEW HAVEN/FAIRFIELD","CT"]
["NEW HAVEN/FAIRFIELD","CT"]
["NEW HAVEN/FAIRFIELD","CT"]
["NEW HAVEN/FAIRFIELD","CT"]
["NEW HAVEN/FAIRFIELD","CT"]
["NEW HAVEN/FAIRFIELD","CT"]
["NEW HAVEN/FAIRFIELD","CT"]
["NEW HAVEN/FAIRFIELD","CT"]
["NEW HAVEN/FAIRFIELD","CT"]
["NEW HAVEN/FAIRFIELD","CT"]
["NEW HAVEN/FAIRFIELD","CT"]
["NEW HAVEN/FAIRFIELD","CT"]
["NEW HAVEN/FAIRFIELD","CT"]
["NEW HAVEN/FAIRFIELD","CT"]
["NEW HAVEN/FAIRFIELD","CT"]
["NEW HAVEN/FAIRFIELD","CT"]
["NEW HAVEN/FAIRFIELD","CT"]
["NEW HAVEN/FAIRFIELD","CT"]
["NEW HAVEN/FAIRFIELD","CT"]
["NEW HAVEN/FAIRFIELD","CT"]
["WASHINGTON","DC",null,null,{"v":1356,"d":"$1,356"},{"v":1356,"d":"$1,356"},{"v":1356,"d":"$1,356"},{"v":1356,"d":"$1,356"},{"v":1551,"d":"$1,551"},{"v":1698,"d":"$1,698"},{"v":1803,"d":"$1,803"},{"v":2007,"d":"$2,007"},{"v":2106,"d":"$2,106"},{"v":1737,"d":"$1,737"},{"v":2001,"d":"$2,001"},{"v":2115,"d":"$2,115"},{"v":2280,"d":"$2,280"},{"v":2343,"d":"$2,343"},{"v":1941,"d":"$1,941"},{"v":2082,"d":"$2,082"},{"v":2265,"d":"$2,265"},{"v":1647,"d":"$1,647"},{"v":1890,"d":"$1,890"},{"v":2148,"d":"$2,148"},{"v":2334,"d":"$2,334"},{"v":2373,"d":"$2,373"},{"v":2436,"d":"$2,436"},{"v":2487,"d":"$2,487"}]
["WASHINGTON","DC"]
["WASHINGTON","DC"]
["WASHINGTON","DC"]
["WASHINGTON","DC"]
["WASHINGTON","DC"]
["WASHINGTON","DC"]
["WASHINGTON","DC"]
["WASHINGTON","DC"]
["WASHINGTON","DC"]
["WASHINGTON","DC"]
["WASHINGTON","DC"]
["WASHINGTON","DC"]
["WASHINGTON","DC"]
["WASHINGTON","DC"]
["WASHINGTON","DC"]
["WASHINGTON","DC"]
["WASHINGTON","DC"]
["WASHINGTON","DC"]
["WASHINGTON","DC"]
["WASHINGTON","DC"]
["WASHINGTON","DC"]
["WASHINGTON","DC"]
["WASHINGTON","DC"]
["DOVER AFB","DE",null,null,{"v":978,"d":"$978"},{"v":978,"d":"$978"},{"v":978,"d":"$978"},{"v":978,"d":"$978"},{"v":1074,"d":"$1,074"},{"v":1152,"d":"$1,152"},{"v":1224,"d":"$1,224"},{"v":1362,"d":"$1,362"},{"v":1428,"d":"$1,428"},{"v":1182,"d":"$1,182"},{"v":1359,"d":"$1,359"},{"v":1437,"d":"$1,437"},{"v":1545,"d":"$1,545"},{"v":1584,"d":"$1,584"},{"v":1320,"d":"$1,320"},{"v":1413,"d":"$1,413"},{"v":1536,"d":"$1,536"},{"v":1119,"d":"$1,119"},{"v":1284,"d":"$1,284"},{"v":1458,"d":"$1,458"},{"v":1578,"d":"$1,578"},{"v":1605,"d":"$1,605"},{"v":1644,"d":"$1,644"},{"v":1677,"d":"$1,677"}]
["DOVER AFB","DE"]
["DOVER AFB","DE"]
["DOVER AFB","DE"]
["DOVER AFB","DE"]
["DOVER AFB","DE"]
["DOVER AFB","DE"]
["DOVER AFB","DE"]
["DOVER AFB","DE"]
["DOVER AFB","DE"]
["DOVER AFB","DE"]
["DOVER AFB","DE"]
["DOVER AFB","DE"]
["DOVER AFB","DE"]
["DOVER AFB","DE"]
["DOVER AFB","DE"]
["DOVER AFB","DE"]
["DOVER AFB","DE"]
["DOVER AFB","DE"]
["DOVER AFB","DE"]
["DOVER AFB","DE"]
["DOVER AFB","DE"]
["DOVER AFB","DE"]
["DOVER AFB","DE"]
["REHOBOTH BEACH","DE",null,null,{"v":1035,"d":"$1,035"},{"v":1035,"d":"$1,035"},{"v":1035,"d":"$1,035"},{"v":1035,"d":"$1,035"},{"v":1176,"d":"$1,176"},{"v":1257,"d":"$1,257"},{"v":1317,"d":"$1,317"},{"v":1419,"d":"$1,419"},{"v":1482,"d":"$1,482"},{"v":1287,"d":"$1,287"},{"v":1416,"d":"$1,416"},{"v":1488,"d":"$1,488"},{"v":1593,"d":"$1,593"},{"v":1653,"d":"$1,653"},{"v":1377,"d":"$1,377"},{"v":1467,"d":"$1,467"},{"v":1581,"d":"$1,581"},{"v":1248,"d":"$1,248"},{"v":1356,"d":"$1,356"},{"v":1506,"d":"$1,506"},{"v":1644,"d":"$1,644"},{"v":1680,"d":"$1,680"},{"v":1740,"d":"$1,740"},{"v":1773,"d":"$1,773"}]
["REHOBOTH BEACH","DE"]
["REHOBOTH BEACH","DE"]
["REHOBOTH BEACH","DE"]
["REHOBOTH BEACH","DE"]
["REHOBOTH BEACH","DE"]
["REHOBOTH BEACH","DE"]
["REHOBOTH BEACH","DE"]
["REHOBOTH BEACH","DE"]
["REHOBOTH BEACH","DE"]
["REHOBOTH BEACH","DE"]
["REHOBOTH BEACH","DE"]
["REHOBOTH BEACH","DE"]
["REHOBOTH BEACH","DE"]
["REHOBOTH BEACH","DE"]
["REHOBOTH BEACH","DE"]
["REHOBOTH BEACH","DE"]
["REHOBOTH BEACH","DE"]
["REHOBOTH BEACH","DE"]
["REHOBOTH BEACH","DE"]
["REHOBOTH BEACH","DE"]
["REHOBOTH BEACH","DE"]
["REHOBOTH BEACH","DE"]
["EGLIN AFB","FL",null,null,{"v":912,"d":"$912"},{"v":912,"d":"$912"},{"v":912,"d":"$912"},{"v":912,"d":"$912"},{"v":1080,"d":"$1,080"},{"v":1182,"d":"$1,182"},{"v":1218,"d":"$1,218"},{"v":1281,"d":"$1,281"},{"v":1317,"d":"$1,317"},{"v":1200,"d":"$1,200"},{"v":1278,"d":"$1,278"},{"v":1320,"d":"$1,320"},{"v":1383,"d":"$1,383"},{"v":1425,"d":"$1,425"},{"v":1257,"d":"$1,257"},{"v":1308,"d":"$1,308"},{"v":1371,"d":"$1,371"},{"v":1176,"d":"$1,176"},{"v":1245,"d":"$1,245"},{"v":1329,"d":"$1,329"},{"v":1419,"d":"$1,419"},{"v":1461,"d":"$1,461"},{"v":1491,"d":"$1,491"},{"v":1521,"d":"$1,521"}]
["EGLIN AFB","FL"]
["EGLIN AFB","FL"]
["EGLIN AFB","FL"]
["EGLIN AFB","FL"]
["EGLIN AFB","FL"]
["EGLIN AFB","FL"]
["EGLIN AFB","FL"]
["EGLIN AFB","FL"]
["EGLIN AFB","FL"]
["EGLIN AFB","FL"]
["EGLIN AFB","FL"]
["EGLIN AFB","FL"]
["EGLIN AFB","FL"]
["EGLIN AFB","FL"]
["EGLIN AFB","FL"]
["EGLIN AFB","FL"]
["EGLIN AFB","FL"]
["EGLIN AFB","FL"]
["EGLIN AFB","FL"]
["EGLIN AFB","FL"]
["EGLIN AFB","FL"]
["EGLIN AFB","FL"]
["EGLIN AFB","FL"]
["GAINESVILLE","FL",null,null,{"v":885,"d":"$885"},{"v":885,"d":"$885"},{"v":885,"d":"$885"},{"v":885,"d":"$885"},{"v":1005,"d":"$1,005"},{"v":1098,"d":"$1,098"},{"v":1185,"d":"$1,185"},{"v":1296,"d":"$1,296"},{"v":1329,"d":"$1,329"},{"v":1143,"d":"$1,143"},{"v":1296,"d":"$1,296"},{"v":1332,"d":"$1,332"},{"v":1401,"d":"$1,401"},{"v":1503,"d":"$1,503"},{"v":1278,"d":"$1,278"},{"v":1320,"d":"$1,320"},{"v":1377,"d":"$1,377"},{"v":1083,"d":"$1,083"},{"v":1245,"d":"$1,245"},{"v":1341,"d":"$1,341"},{"v":1491,"d":"$1,491"},{"v":1554,"d":"$1,554"},{"v":1659,"d":"$1,659"},{"v":1692,"d":"$1,692"}]
["GAINESVILLE","FL"]
["GAINESVILLE","FL"]
["GAINESVILLE","FL"]
["GAINESVILLE","FL"]
["GAINESVILLE","FL"]
["GAINESVILLE","FL"]
["GAINESVILLE","FL"]
["GAINESVILLE","FL"]
["GAINESVILLE","FL"]
["GAINESVILLE","FL"]
["GAINESVILLE","FL"]
["GAINESVILLE","FL"]
["GAINESVILLE","FL"]
["GAINESVILLE","FL"]
["GAINESVILLE","FL"]
["GAINESVILLE","FL"]
["GAINESVILLE","FL"]
["GAINESVILLE","FL"]
["GAINESVILLE","FL"]
["GAINESVILLE","FL"]
["GAINESVILLE","FL"]
["GAINESVILLE","FL"]
["GAINESVILLE","FL"]
["JACKSONVILLE","FL",null,null,{"v":867,"d":"$867"},{"v":867,"d":"$867"},{"v":867,"d":"$867"},{"v":867,"d":"$867"},{"v":993,"d":"$993"},{"v":1083,"d":"$1,083"},{"v":1161,"d":"$1,161"},{"v":1287,"d":"$1,287"},{"v":1347,"d":"$1,347"},{"v":1119,"d":"$1,119"},{"v":1284,"d":"$1,284"},{"v":1353,"d":"$1,353"},{"v":1452,"d":"$1,452"},{"v":1476,"d":"$1,476"},{"v":1248,"d":"$1,248"},{"v":1335,"d":"$1,335"},{"v":1443,"d":"$1,443"},{"v":1059,"d":"$1,059"},{"v":1215,"d":"$1,215"},{"v":1374,"d":"$1,374"},{"v":1473,"d":"$1,473"},{"v":1503,"d":"$1,503"},{"v":1518,"d":"$1,518"},{"v":1548,"d":"$1,548"}]
["JACKSONVILLE","FL"]
["JACKSONVILLE","FL"]
["JACKSONVILLE","FL"]
["JACKSONVILLE","FL"]
["JACKSONVILLE","FL"]
["JACKSONVILLE","FL"]
["JACKSONVILLE","FL"]
["JACKSONVILLE","FL"]
["JACKSONVILLE","FL"]
["JACKSONVILLE","FL"]
["JACKSONVILLE","FL"]
["JACKSONVILLE","FL"]
["JACKSONVILLE","FL"]
["JACKSONVILLE","FL"]
["JACKSONVILLE","FL"]
["JACKSONVILLE","FL"]
["JACKSONVILLE","FL"]
["JACKSONVILLE","FL"]
["JACKSONVILLE","FL"]
["JACKSONVILLE","FL"]
["JACKSONVILLE","FL"]
["JACKSONVILLE","FL"]
["JACKSONVILLE","FL"]
["PATRICK AFB","FL",null,null,{"v":819,"d":"$819"},{"v":819,"d":"$819"},{"v":819,"d":"$819"},{"v":819,"d":"$819"},{"v":924,"d":"$924"},{"v":1194,"d":"$1,194"},{"v":1212,"d":"$1,212"},{"v":1266,"d":"$1,266"},{"v":1392,"d":"$1,392"},{"v":1194,"d":"$1,194"},{"v":1260,"d":"$1,260"},{"v":1404,"d":"$1,404"},{"v":1596,"d":"$1,596"},{"v":1620,"d":"$1,620"},{"v":1215,"d":"$1,215"},{"v":1362,"d":"$1,362"},{"v":1590,"d":"$1,590"},{"v":972,"d":"$972"},{"v":1188,"d":"$1,188"},{"v":1443,"d":"$1,443"},{"v":1617,"d":"$1,617"},{"v":1632,"d":"$1,632"},{"v":1656,"d":"$1,656"},{"v":1689,"d":"$1,689"}]
["PATRICK AFB","FL"]
["PATRICK AFB","FL"]
["PATRICK AFB","FL"]
["PATRICK AFB","FL"]
["PATRICK AFB","FL"]
["PATRICK AFB","FL"]
["PATRICK AFB","FL"]
["PATRICK AFB","FL"]
["PATRICK AFB","FL"]
["PATRICK AFB","FL"]
["PATRICK AFB","FL"]
["PATRICK AFB","FL"]
["PATRICK AFB","FL"]
["PATRICK AFB","FL"]
["PATRICK AFB","FL"]
["PATRICK AFB","FL"]
["PATRICK AFB","FL"]
["PATRICK AFB","FL"]
["PATRICK AFB","FL"]
["PATRICK AFB","FL"]
["PATRICK AFB","FL"]
["PATRICK AFB","FL"]
["PATRICK AFB","FL"]
["MIAMI/FORT LAUDERDALE","FL",null,null,{"v":1311,"d":"$1,311"},{"v":1311,"d":"$1,311"},{"v":1311,"d":"$1,311"},{"v":1311,"d":"$1,311"},{"v":1476,"d":"$1,476"},{"v":1569,"d":"$1,569"},{"v":1659,"d":"$1,659"},{"v":1785,"d":"$1,785"},{"v":1839,"d":"$1,839"},{"v":1617,"d":"$1,617"},{"v":1785,"d":"$1,785"},{"v":1842,"d":"$1,842"},{"v":1953,"d":"$1,953"},{"v":2079,"d":"$2,079"},{"v":1752,"d":"$1,752"},{"v":1827,"d":"$1,827"},{"v":1920,"d":"$1,920"},{"v":1557,"d":"$1,557"},{"v":1719,"d":"$1,719"},{"v":1860,"d":"$1,860"},{"v":2061,"d":"$2,061"},{"v":2145,"d":"$2,145"},{"v":2277,"d":"$2,277"},{"v":2322,"d":"$2,322"}]
["MIAMI/FORT LAUDERDALE","FL"]
["MIAMI/FORT LAUDERDALE","FL"]
["MIAMI/FORT LAUDERDALE","FL"]
["MIAMI/FORT LAUDERDALE","FL"]
["MIAMI/FORT LAUDERDALE","FL"]
["MIAMI/FORT LAUDERDALE","FL"]
["MIAMI/FORT LAUDERDALE","FL"]
["MIAMI/FORT LAUDERDALE","FL"]
["MIAMI/FORT LAUDERDALE","FL"]
["MIAMI/FORT LAUDERDALE","FL"]
["MIAMI/FORT LAUDERDALE","FL"]
["MIAMI/FORT LAUDERDALE","FL"]
["MIAMI/FORT LAUDERDALE","FL"]
["MIAMI/FORT LAUDERDALE","FL"]
["MIAMI/FORT LAUDERDALE","FL"]
["MIAMI/FORT LAUDERDALE","FL"]
["MIAMI/FORT LAUDERDALE","FL"]
["MIAMI/FORT LAUDERDALE","FL"]
["MIAMI/FORT LAUDERDALE","FL"]
["MIAMI/FORT LAUDERDALE","FL"]
["MIAMI/FORT LAUDERDALE","FL"]
["MIAMI/FORT LAUDERDALE","FL"]
["MIAMI/FORT LAUDERDALE","FL"]
["ORLANDO","FL",null,null,{"v":1011,"d":"$1,011"},{"v":1011,"d":"$1,011"},{"v":1011,"d":"$1,011"},{"v":1011,"d":"$1,011"},{"v":1134,"d":"$1,134"},{"v":1215,"d":"$1,215"},{"v":1338,"d":"$1,338"},{"v":1479,"d":"$1,479"},{"v":1509,"d":"$1,509"},{"v":1278,"d":"$1,278"},{"v":1479,"d":"$1,479"},{"v":1512,"d":"$1,512"},{"v":1563,"d":"$1,563"},{"v":1593,"d":"$1,593"},{"v":1461,"d":"$1,461"},{"v":1503,"d":"$1,503"},{"v":1554,"d":"$1,554"},{"v":1194,"d":"$1,194"},{"v":1416,"d":"$1,416"},{"v":1521,"d":"$1,521"},{"v":1590,"d":"$1,590"},{"v":1611,"d":"$1,611"},{"v":1644,"d":"$1,644"},{"v":1677,"d":"$1,677"}]
["ORLANDO","FL"]
["ORLANDO","FL"]
["ORLANDO","FL"]
["ORLANDO","FL"]
["ORLANDO","FL"]
["ORLANDO","FL"]
["ORLANDO","FL"]
["ORLANDO","FL"]
["ORLANDO","FL"]
["ORLANDO","FL"]
["ORLANDO","FL"]
["ORLANDO","FL"]
["ORLANDO","FL"]
["ORLANDO","FL"]
["ORLANDO","FL"]
["ORLANDO","FL"]
["ORLANDO","FL"]
["ORLANDO","FL"]
["ORLANDO","FL"]
["ORLANDO","FL"]
["ORLANDO","FL"]
["ORLANDO","FL"]
["ORLANDO","FL"]
["PANAMA CITY","FL",null,null,{"v":885,"d":"$885"},{"v":885,"d":"$885"},{"v":885,"d":"$885"},{"v":885,"d":"$885"},{"v":1020,"d":"$1,020"},{"v":1092,"d":"$1,092"},{"v":1143,"d":"$1,143"},{"v":1227,"d":"$1,227"},{"v":1275,"d":"$1,275"},{"v":1119,"d":"$1,119"},{"v":1224,"d":"$1,224"},{"v":1281,"d":"$1,281"},{"v":1368,"d":"$1,368"},{"v":1425,"d":"$1,425"},{"v":1194,"d":"$1,194"},{"v":1266,"d":"$1,266"},{"v":1356,"d":"$1,356"},{"v":1083,"d":"$1,083"},{"v":1176,"d":"$1,176"},{"v":1296,"d":"$1,296"},{"v":1419,"d":"$1,419"},{"v":1455,"d":"$1,455"},{"v":1512,"d":"$1,512"},{"v":1542,"d":"$1,542"}]
["PANAMA CITY","FL"]
["PANAMA CITY","FL"]
["PANAMA CITY","FL"]
["PANAMA CITY","FL"]
["PANAMA CITY","FL"]
["PANAMA CITY","FL"]
["PANAMA CITY","FL"]
["PANAMA CITY","FL"]
["PANAMA CITY","FL"]
["PANAMA CITY","FL"]
["PANAMA CITY","FL"]
["PANAMA CITY","FL"]
["PANAMA CITY","FL"]
["PANAMA CITY","FL"]
["PANAMA CITY","FL"]
["PANAMA CITY","FL"]
["PANAMA CITY","FL"]
["PANAMA CITY","FL"]
["PANAMA CITY","FL"]
["PANAMA CITY","FL"]
["PANAMA CITY","FL"]
["PANAMA CITY","FL"]
["PANAMA CITY","FL"]
["PENSACOLA","FL",null,null,{"v":816,"d":"$816"},{"v":816,"d":"$816"},{"v":816,"d":"$816"},{"v":816,"d":"$816"},{"v":969,"d":"$969"},{"v":1047,"d":"$1,047"},{"v":1080,"d":"$1,080"},{"v":1146,"d":"$1,146"},{"v":1200,"d":"$1,200"},{"v":1065,"d":"$1,065"},{"v":1146,"d":"$1,146"},{"v":1206,"d":"$1,206"},{"v":1293,"d":"$1,293"},{"v":1326,"d":"$1,326"},{"v":1113,"d":"$1,113"},{"v":1188,"d":"$1,188"},{"v":1284,"d":"$1,284"},{"v":1044,"d":"$1,044"},{"v":1101,"d":"$1,101"},{"v":1224,"d":"$1,224"},{"v":1323,"d":"$1,323"},{"v":1344,"d":"$1,344"},{"v":1377,"d":"$1,377"},{"v":1407,"d":"$1,407"}]
["PENSACOLA","FL"]
["PENSACOLA","FL"]
["PENSACOLA","FL"]
["PENSACOLA","FL"]
["PENSACOLA","FL"]
["PENSACOLA","FL"]
["PENSACOLA","FL"]
["PENSACOLA","FL"]
["PENSACOLA","FL"]
["PENSACOLA","FL"]
["PENSACOLA","FL"]
["PENSACOLA","FL"]
["PENSACOLA","FL"]
["PENSACOLA","FL"]
["PENSACOLA","FL"]
["PENSACOLA","FL"]
["PENSACOLA","FL"]
["PENSACOLA","FL"]
["PENSACOLA","FL"]
["PENSACOLA","FL"]
["PENSACOLA","FL"]
["PENSACOLA","FL"]
["PENSACOLA","FL"]
["TALLAHASSEE","FL",null,null,{"v":912,"d":"$912"},{"v":912,"d":"$912"},{"v":912,"d":"$912"},{"v":912,"d":"$912"},{"v":1005,"d":"$1,005"},{"v":1059,"d":"$1,059"},{"v":1104,"d":"$1,104"},{"v":1188,"d":"$1,188"},{"v":1242,"d":"$1,242"},{"v":1083,"d":"$1,083"},{"v":1185,"d":"$1,185"},{"v":1248,"d":"$1,248"},{"v":1341,"d":"$1,341"},{"v":1392,"d":"$1,392"},{"v":1152,"d":"$1,152"},{"v":1230,"d":"$1,230"},{"v":1329,"d":"$1,329"},{"v":1053,"d":"$1,053"},{"v":1134,"d":"$1,134"},{"v":1266,"d":"$1,266"},{"v":1383,"d":"$1,383"},{"v":1503,"d":"$1,503"},{"v":1518,"d":"$1,518"},{"v":1533,"d":"$1,533"}]
["TALLAHASSEE","FL"]
["TALLAHASSEE","FL"]
["TALLAHASSEE","FL"]
["TALLAHASSEE","FL"]
["TALLAHASSEE","FL"]
["TALLAHASSEE","FL"]
["TALLAHASSEE","FL"]
["TALLAHASSEE","FL"]
["TALLAHASSEE","FL"]
["TALLAHASSEE","FL"]
["TALLAHASSEE","FL"]
["TALLAHASSEE","FL"]
["TALLAHASSEE","FL"]
["TALLAHASSEE","FL"]
["TALLAHASSEE","FL"]
["TALLAHASSEE","FL"]
["TALLAHASSEE","FL"]
["TALLAHASSEE","FL"]
["TALLAHASSEE","FL"]
["TALLAHASSEE","FL"]
["TALLAHASSEE","FL"]
["TALLAHASSEE","FL"]
["TALLAHASSEE","FL"]
["TAMPA","FL",null,null,{"v":1122,"d":"$1,122"},{"v":1122,"d":"$1,122"},{"v":1122,"d":"$1,122"},{"v":1122,"d":"$1,122"},{"v":1248,"d":"$1,248"},{"v":1428,"d":"$1,428"},{"v":1506,"d":"$1,506"},{"v":1710,"d":"$1,710"},{"v":1785,"d":"$1,785"},{"v":1431,"d":"$1,431"},{"v":1707,"d":"$1,707"},{"v":1794,"d":"$1,794"},{"v":1920,"d":"$1,920"},{"v":1977,"d":"$1,977"},{"v":1662,"d":"$1,662"},{"v":1770,"d":"$1,770"},{"v":1905,"d":"$1,905"},{"v":1329,"d":"$1,329"},{"v":1605,"d":"$1,605"},{"v":1818,"d":"$1,818"},{"v":1968,"d":"$1,968"},{"v":2007,"d":"$2,007"},{"v":2067,"d":"$2,067"},{"v":2106,"d":"$2,106"}]
["TAMPA","FL"]
["TAMPA","FL"]
["TAMPA","FL"]
["TAMPA","FL"]
["TAMPA","FL"]
["TAMPA","FL"]
["TAMPA","FL"]
["TAMPA","FL"]
["TAMPA","FL"]
["TAMPA","FL"]
["TAMPA","FL"]
["TAMPA","FL"]
["TAMPA","FL"]
["TAMPA","FL"]
["TAMPA","FL"]
["TAMPA","FL"]
["TAMPA","FL"]
["TAMPA","FL"]
["TAMPA","FL"]
["TAMPA","FL"]
["TAMPA","FL"]
["TAMPA","FL"]
["TAMPA","FL"]
["WEST PALM BEACH","FL",null,null,{"v":1125,"d":"$1,125"},{"v":1125,"d":"$1,125"},{"v":1125,"d":"$1,125"},{"v":1125,"d":"$1,125"},{"v":1272,"d":"$1,272"},{"v":1437,"d":"$1,437"},{"v":1491,"d":"$1,491"},{"v":1680,"d":"$1,680"},{"v":1770,"d":"$1,770"},{"v":1437,"d":"$1,437"},{"v":1677,"d":"$1,677"},{"v":1779,"d":"$1,779"},{"v":1932,"d":"$1,932"},{"v":2001,"d":"$2,001"},{"v":1623,"d":"$1,623"},{"v":1749,"d":"$1,749"},{"v":1914,"d":"$1,914"},{"v":1347,"d":"$1,347"},{"v":1575,"d":"$1,575"},{"v":1809,"d":"$1,809"},{"v":1992,"d":"$1,992"},{"v":2037,"d":"$2,037"},{"v":2109,"d":"$2,109"},{"v":2151,"d":"$2,151"}]
["WEST PALM BEACH","FL"]
["WEST PALM BEACH","FL"]
["WEST PALM BEACH","FL"]
["WEST PALM BEACH","FL"]
["WEST PALM BEACH","FL"]
["WEST PALM BEACH","FL"]
["WEST PALM BEACH","FL"]
["WEST PALM BEACH","FL"]
["WEST PALM BEACH","FL"]
["WEST PALM BEACH","FL"]
["WEST PALM BEACH","FL"]
["WEST PALM BEACH","FL"]
["WEST PALM BEACH","FL"]
["WEST PALM BEACH","FL"]
["WEST PALM BEACH","FL"]
["WEST PALM BEACH","FL"]
["WEST PALM BEACH","FL"]
["WEST PALM BEACH","FL"]
["WEST PALM BEACH","FL"]
["WEST PALM BEACH","FL"]
["WEST PALM BEACH","FL"]
["WEST PALM BEACH","FL"]
["WEST PALM BEACH","FL"]
["OCALA","FL",null,null,{"v":801,"d":"$801"},{"v":801,"d":"$801"},{"v":801,"d":"$801"},{"v":801,"d":"$801"},{"v":942,"d":"$942"},{"v":1023,"d":"$1,023"},{"v":1074,"d":"$1,074"},{"v":1158,"d":"$1,158"},{"v":1215,"d":"$1,215"},{"v":1050,"d":"$1,050"},{"v":1158,"d":"$1,158"},{"v":1221,"d":"$1,221"},{"v":1308,"d":"$1,308"},{"v":1323,"d":"$1,323"},{"v":1122,"d":"$1,122"},{"v":1203,"d":"$1,203"},{"v":1305,"d":"$1,305"},{"v":1017,"d":"$1,017"},{"v":1104,"d":"$1,104"},{"v":1239,"d":"$1,239"},{"v":1323,"d":"$1,323"},{"v":1377,"d":"$1,377"},{"v":1392,"d":"$1,392"},{"v":1404,"d":"$1,404"}]
["OCALA","FL"]
["OCALA","FL"]
["OCALA","FL"]
["OCALA","FL"]
["OCALA","FL"]
["OCALA","FL"]
["OCALA","FL"]
["OCALA","FL"]
["OCALA","FL"]
["OCALA","FL"]
["OCALA","FL"]
["OCALA","FL"]
["OCALA","FL"]
["OCALA","FL"]
["OCALA","FL"]
["OCALA","FL"]
["OCALA","FL"]
["OCALA","FL"]
["OCALA","FL"]
["OCALA","FL"]
["OCALA","FL"]
["OCALA","FL"]
["OCALA","FL"]
["KEY WEST","FL",null,null,{"v":1452,"d":"$1,452"},{"v":1452,"d":"$1,452"},{"v":1452,"d":"$1,452"},{"v":1452,"d":"$1,452"},{"v":1662,"d":"$1,662"},{"v":2022,"d":"$2,022"},{"v":2031,"d":"$2,031"},{"v":2190,"d":"$2,190"},{"v":2385,"d":"$2,385"},{"v":2022,"d":"$2,022"},{"v":2184,"d":"$2,184"},{"v":2403,"d":"$2,403"},{"v":2697,"d":"$2,697"},{"v":2712,"d":"$2,712"},{"v":2064,"d":"$2,064"},{"v":2340,"d":"$2,340"},{"v":2694,"d":"$2,694"},{"v":1806,"d":"$1,806"},{"v":2019,"d":"$2,019"},{"v":2466,"d":"$2,466"},{"v":2709,"d":"$2,709"},{"v":2721,"d":"$2,721"},{"v":2736,"d":"$2,736"},{"v":2790,"d":"$2,790"}]
["KEY WEST","FL"]
["KEY WEST","FL"]
["KEY WEST","FL"]
["KEY WEST","FL"]
["KEY WEST","FL"]
["KEY WEST","FL"]
["KEY WEST","FL"]
["KEY WEST","FL"]
["KEY WEST","FL"]
["KEY WEST","FL"]
["KEY WEST","FL"]
["KEY WEST","FL"]
["KEY WEST","FL"]
["KEY WEST","FL"]
["KEY WEST","FL"]
["KEY WEST","FL"]
["KEY WEST","FL"]
["KEY WEST","FL"]
["KEY WEST","FL"]
["KEY WEST","FL"]
["KEY WEST","FL"]
["KEY WEST","FL"]
["KEY WEST","FL"]
["VOLUSIA COUNTY","FL",null,null,{"v":843,"d":"$843"},{"v":843,"d":"$843"},{"v":843,"d":"$843"},{"v":843,"d":"$843"},{"v":951,"d":"$951"},{"v":1077,"d":"$1,077"},{"v":1170,"d":"$1,170"},{"v":1284,"d":"$1,284"},{"v":1362,"d":"$1,362"},{"v":1080,"d":"$1,080"},{"v":1281,"d":"$1,281"},{"v":1347,"d":"$1,347"},{"v":1467,"d":"$1,467"},{"v":1590,"d":"$1,590"},{"v":1245,"d":"$1,245"},{"v":1329,"d":"$1,329"},{"v":1437,"d":"$1,437"},{"v":1008,"d":"$1,008"},{"v":1203,"d":"$1,203"},{"v":1368,"d":"$1,368"},{"v":1572,"d":"$1,572"},{"v":1650,"d":"$1,650"},{"v":1776,"d":"$1,776"},{"v":1812,"d":"$1,812"}]
["VOLUSIA COUNTY","FL"]
["VOLUSIA COUNTY","FL"]
["VOLUSIA COUNTY","FL"]
["VOLUSIA COUNTY","FL"]
["VOLUSIA COUNTY","FL"]
["VOLUSIA COUNTY","FL"]
["VOLUSIA COUNTY","FL"]
["VOLUSIA COUNTY","FL"]
["VOLUSIA COUNTY","FL"]
["VOLUSIA COUNTY","FL"]
["VOLUSIA COUNTY","FL"]
["VOLUSIA COUNTY","FL"]
["VOLUSIA COUNTY","FL"]
["VOLUSIA COUNTY","FL"]
["VOLUSIA COUNTY","FL"]
["VOLUSIA COUNTY","FL"]
["VOLUSIA COUNTY","FL"]
["VOLUSIA COUNTY","FL"]
["VOLUSIA COUNTY","FL"]
["VOLUSIA COUNTY","FL"]
["VOLUSIA COUNTY","FL"]
["VOLUSIA COUNTY","FL"]
["VOLUSIA COUNTY","FL"]
["POLK COUNTY","FL",null,null,{"v":744,"d":"$744"},{"v":744,"d":"$744"},{"v":744,"d":"$744"},{"v":744,"d":"$744"},{"v":858,"d":"$858"},{"v":939,"d":"$939"},{"v":996,"d":"$996"},{"v":1101,"d":"$1,101"},{"v":1158,"d":"$1,158"},{"v":963,"d":"$963"},{"v":1101,"d":"$1,101"},{"v":1164,"d":"$1,164"},{"v":1263,"d":"$1,263"},{"v":1314,"d":"$1,314"},{"v":1065,"d":"$1,065"},{"v":1146,"d":"$1,146"},{"v":1251,"d":"$1,251"},{"v":915,"d":"$915"},{"v":1041,"d":"$1,041"},{"v":1182,"d":"$1,182"},{"v":1308,"d":"$1,308"},{"v":1440,"d":"$1,440"},{"v":1455,"d":"$1,455"},{"v":1470,"d":"$1,470"}]
["POLK COUNTY","FL"]
["POLK COUNTY","FL"]
["POLK COUNTY","FL"]
["POLK COUNTY","FL"]
["POLK COUNTY","FL"]
["POLK COUNTY","FL"]
["POLK COUNTY","FL"]
["POLK COUNTY","FL"]
["POLK COUNTY","FL"]
["POLK COUNTY","FL"]
["POLK COUNTY","FL"]
["POLK COUNTY","FL"]
["POLK COUNTY","FL"]
["POLK COUNTY","FL"]
["POLK COUNTY","FL"]
["POLK COUNTY","FL"]
["POLK COUNTY","FL"]
["POLK COUNTY","FL"]
["POLK COUNTY","FL"]
["POLK COUNTY","FL"]
["POLK COUNTY","FL"]
["POLK COUNTY","FL"]
["POLK COUNTY","FL"]
["FORT PIERCE","FL",null,null,{"v":885,"d":"$885"},{"v":885,"d":"$885"},{"v":885,"d":"$885"},{"v":885,"d":"$885"},{"v":957,"d":"$957"},{"v":1104,"d":"$1,104"},{"v":1134,"d":"$1,134"},{"v":1227,"d":"$1,227"},{"v":1320,"d":"$1,320"},{"v":1104,"d":"$1,104"},{"v":1224,"d":"$1,224"},{"v":1329,"d":"$1,329"},{"v":1479,"d":"$1,479"},{"v":1521,"d":"$1,521"},{"v":1167,"d":"$1,167"},{"v":1299,"d":"$1,299"},{"v":1470,"d":"$1,470"},{"v":990,"d":"$990"},{"v":1137,"d":"$1,137"},{"v":1362,"d":"$1,362"},{"v":1515,"d":"$1,515"},{"v":1542,"d":"$1,542"},{"v":1581,"d":"$1,581"},{"v":1614,"d":"$1,614"}]
["FORT PIERCE","FL"]
["FORT PIERCE","FL"]
["FORT PIERCE","FL"]
["FORT PIERCE","FL"]
["FORT PIERCE","FL"]
["FORT PIERCE","FL"]
["FORT PIERCE","FL"]
["FORT PIERCE","FL"]
["FORT PIERCE","FL"]
["FORT PIERCE","FL"]
["FORT PIERCE","FL"]
["FORT PIERCE","FL"]
["FORT PIERCE","FL"]
["FORT PIERCE","FL"]
["FORT PIERCE","FL"]
["FORT PIERCE","FL"]
["FORT PIERCE","FL"]
["FORT PIERCE","FL"]
["FORT PIERCE","FL"]
["FORT PIERCE","FL"]
["FORT PIERCE","FL"]
["FORT PIERCE","FL"]
["FORT PIERCE","FL"]
["FT MYERS BEACH","FL",null,null,{"v":1023,"d":"$1,023"},{"v":1023,"d":"$1,023"},{"v":1023,"d":"$1,023"},{"v":1023,"d":"$1,023"},{"v":1134,"d":"$1,134"},{"v":1242,"d":"$1,242"},{"v":1374,"d":"$1,374"},{"v":1518,"d":"$1,518"},{"v":1539,"d":"$1,539"},{"v":1311,"d":"$1,311"},{"v":1518,"d":"$1,518"},{"v":1539,"d":"$1,539"},{"v":1602,"d":"$1,602"},{"v":1740,"d":"$1,740"},{"v":1506,"d":"$1,506"},{"v":1533,"d":"$1,533"},{"v":1566,"d":"$1,566"},{"v":1224,"d":"$1,224"},{"v":1458,"d":"$1,458"},{"v":1545,"d":"$1,545"},{"v":1722,"d":"$1,722"},{"v":1809,"d":"$1,809"},{"v":1953,"d":"$1,953"},{"v":1992,"d":"$1,992"}]
["FT MYERS BEACH","FL"]
["FT MYERS BEACH","FL"]
["FT MYERS BEACH","FL"]
["FT MYERS BEACH","FL"]
["FT MYERS BEACH","FL"]
["FT MYERS BEACH","FL"]
["FT MYERS BEACH","FL"]
["FT MYERS BEACH","FL"]
["FT MYERS BEACH","FL"]
["FT MYERS BEACH","FL"]
["FT MYERS BEACH","FL"]
["FT MYERS BEACH","FL"]
["FT MYERS BEACH","FL"]
["FT MYERS BEACH","FL"]
["FT MYERS BEACH","FL"]
["FT MYERS BEACH","FL"]
["FT MYERS BEACH","FL"]
["FT MYERS BEACH","FL"]
["FT MYERS BEACH","FL"]
["FT MYERS BEACH","FL"]
["FT MYERS BEACH","FL"]
["FT MYERS BEACH","FL"]
["FT MYERS BEACH","FL"]
["ATLANTA","GA",null,null,{"v":864,"d":"$864"},{"v":864,"d":"$864"},{"v":864,"d":"$864"},{"v":864,"d":"$864"},{"v":978,"d":"$978"},{"v":1047,"d":"$1,047"},{"v":1119,"d":"$1,119"},{"v":1224,"d":"$1,224"},{"v":1275,"d":"$1,275"},{"v":1086,"d":"$1,086"},{"v":1224,"d":"$1,224"},{"v":1278,"d":"$1,278"},{"v":1371,"d":"$1,371"},{"v":1437,"d":"$1,437"},{"v":1194,"d":"$1,194"},{"v":1263,"d":"$1,263"},{"v":1353,"d":"$1,353"},{"v":1035,"d":"$1,035"},{"v":1167,"d":"$1,167"},{"v":1296,"d":"$1,296"},{"v":1428,"d":"$1,428"},{"v":1470,"d":"$1,470"},{"v":1542,"d":"$1,542"},{"v":1572,"d":"$1,572"}]
["ATLANTA","GA"]
["ATLANTA","GA"]
["ATLANTA","GA"]
["ATLANTA","GA"]
["ATLANTA","GA"]
["ATLANTA","GA"]
["ATLANTA","GA"]
["ATLANTA","GA"]
["ATLANTA","GA"]
["ATLANTA","GA"]
["ATLANTA","GA"]
["ATLANTA","GA"]
["ATLANTA","GA"]
["ATLANTA","GA"]
["ATLANTA","GA"]
["ATLANTA","GA"]
["ATLANTA","GA"]
["ATLANTA","GA"]
["ATLANTA","GA"]
["ATLANTA","GA"]
["ATLANTA","GA"]
["ATLANTA","GA"]
["ATLANTA","GA"]
["ALBANY","GA",null,null,{"v":741,"d":"$741"},{"v":741,"d":"$741"},{"v":741,"d":"$741"},{"v":741,"d":"$741"},{"v":816,"d":"$816"},{"v":861,"d":"$861"},{"v":921,"d":"$921"},{"v":996,"d":"$996"},{"v":1050,"d":"$1,050"},{"v":891,"d":"$891"},{"v":993,"d":"$993"},{"v":1020,"d":"$1,020"},{"v":1074,"d":"$1,074"},{"v":1173,"d":"$1,173"},{"v":981,"d":"$981"},{"v":1011,"d":"$1,011"},{"v":1086,"d":"$1,086"},{"v":852,"d":"$852"},{"v":960,"d":"$960"},{"v":1026,"d":"$1,026"},{"v":1200,"d":"$1,200"},{"v":1350,"d":"$1,350"},{"v":1365,"d":"$1,365"},{"v":1377,"d":"$1,377"}]
["FORT GORDON","GA",null,null,{"v":738,"d":"$738"},{"v":738,"d":"$738"},{"v":738,"d":"$738"},{"v":738,"d":"$738"},{"v":843,"d":"$843"},{"v":945,"d":"$945"},{"v":987,"d":"$987"},{"v":1107,"d":"$1,107"},{"v":1167,"d":"$1,167"},{"v":948,"d":"$948"},{"v":1104,"d":"$1,104"},{"v":1173,"d":"$1,173"},{"v":1263,"d":"$1,263"},{"v":1275,"d":"$1,275"},{"v":1068,"d":"$1,068"},{"v":1152,"d":"$1,152"},{"v":1260,"d":"$1,260"},{"v":894,"d":"$894"},{"v":1038,"d":"$1,038"},{"v":1191,"d":"$1,191"},{"v":1275,"d":"$1,275"},{"v":1434,"d":"$1,434"},{"v":1446,"d":"$1,446"},{"v":1461,"d":"$1,461"}]
["FORT GORDON","GA"]
["FORT GORDON","GA"]
["FORT GORDON","GA"]
["FORT GORDON","GA"]
["FORT GORDON","GA"]
["FORT GORDON","GA"]
["FORT GORDON","GA"]
["FORT GORDON","GA"]
["FORT GORDON","GA"]
["FORT GORDON","GA"]
["FORT GORDON","GA"]
["FORT GORDON","GA"]
["FORT GORDON","GA"]
["FORT GORDON","GA"]
["FORT GORDON","GA"]
["FORT GORDON","GA"]
["FORT GORDON","GA"]
["FORT GORDON","GA"]
["FORT GORDON","GA"]
["FORT GORDON","GA"]
["FORT GORDON","GA"]
["FORT GORDON","GA"]
["FORT GORDON","GA"]
["KINGS BAY/BRUNSWICK","GA",null,null,{"v":801,"d":"$801"},{"v":801,"d":"$801"},{"v":801,"d":"$801"},{"v":801,"d":"$801"},{"v":870,"d":"$870"},{"v":1011,"d":"$1,011"},{"v":1056,"d":"$1,056"},{"v":1107,"d":"$1,107"},{"v":1200,"d":"$1,200"},{"v":1014,"d":"$1,014"},{"v":1101,"d":"$1,101"},{"v":1209,"d":"$1,209"},{"v":1365,"d":"$1,365"},{"v":1425,"d":"$1,425"},{"v":1068,"d":"$1,068"},{"v":1179,"d":"$1,179"},{"v":1350,"d":"$1,350"},{"v":903,"d":"$903"},{"v":1020,"d":"$1,020"},{"v":1239,"d":"$1,239"},{"v":1416,"d":"$1,416"},{"v":1455,"d":"$1,455"},{"v":1518,"d":"$1,518"},{"v":1548,"d":"$1,548"}]
["KINGS BAY/BRUNSWICK","GA"]
["KINGS BAY/BRUNSWICK","GA"]
["KINGS BAY/BRUNSWICK","GA"]
["KINGS BAY/BRUNSWICK","GA"]
["KINGS BAY/BRUNSWICK","GA"]
["KINGS BAY/BRUNSWICK","GA"]
["KINGS BAY/BRUNSWICK","GA"]
["KINGS BAY/BRUNSWICK","GA"]
["KINGS BAY/BRUNSWICK","GA"]
["KINGS BAY/BRUNSWICK","GA"]
["KINGS BAY/BRUNSWICK","GA"]
["KINGS BAY/BRUNSWICK","GA"]
["KINGS BAY/BRUNSWICK","GA"]
["KINGS BAY/BRUNSWICK","GA"]
["KINGS BAY/BRUNSWICK","GA"]
["KINGS BAY/BRUNSWICK","GA"]
["KINGS BAY/BRUNSWICK","GA"]
["KINGS BAY/BRUNSWICK","GA"]
["KINGS BAY/BRUNSWICK","GA"]
["KINGS BAY/BRUNSWICK","GA"]
["KINGS BAY/BRUNSWICK","GA"]
["KINGS BAY/BRUNSWICK","GA"]
["KINGS BAY/BRUNSWICK","GA"]
["FORT BENNING","GA",null,null,{"v":894,"d":"$894"},{"v":894,"d":"$894"},{"v":894,"d":"$894"},{"v":894,"d":"$894"},{"v":957,"d":"$957"},{"v":1029,"d":"$1,029"},{"v":1050,"d":"$1,050"},{"v":1155,"d":"$1,155"},{"v":1239,"d":"$1,239"},{"v":1029,"d":"$1,029"},{"v":1155,"d":"$1,155"},{"v":1248,"d":"$1,248"},{"v":1371,"d":"$1,371"},{"v":1380,"d":"$1,380"},{"v":1104,"d":"$1,104"},{"v":1221,"d":"$1,221"},{"v":1371,"d":"$1,371"},{"v":987,"d":"$987"},{"v":1083,"d":"$1,083"},{"v":1275,"d":"$1,275"},{"v":1377,"d":"$1,377"},{"v":1383,"d":"$1,383"},{"v":1389,"d":"$1,389"},{"v":1419,"d":"$1,419"}]
["FORT BENNING","GA"]
["FORT BENNING","GA"]
["FORT BENNING","GA"]
["FORT BENNING","GA"]
["FORT BENNING","GA"]
["FORT BENNING","GA"]
["FORT BENNING","GA"]
["FORT BENNING","GA"]
["FORT BENNING","GA"]
["FORT BENNING","GA"]
["FORT BENNING","GA"]
["FORT BENNING","GA"]
["FORT BENNING","GA"]
["FORT BENNING","GA"]
["FORT BENNING","GA"]
["FORT BENNING","GA"]
["FORT BENNING","GA"]
["FORT BENNING","GA"]
["FORT BENNING","GA"]
["FORT BENNING","GA"]
["FORT BENNING","GA"]
["FORT BENNING","GA"]
["FORT BENNING","GA"]
["ROBINS AFB","GA",null,null,{"v":879,"d":"$879"},{"v":879,"d":"$879"},{"v":879,"d":"$879"},{"v":879,"d":"$879"},{"v":936,"d":"$936"},{"v":969,"d":"$969"},{"v":1008,"d":"$1,008"},{"v":1059,"d":"$1,059"},{"v":1161,"d":"$1,161"},{"v":990,"d":"$990"},{"v":1056,"d":"$1,056"},{"v":1131,"d":"$1,131"},{"v":1170,"d":"$1,170"},{"v":1287,"d":"$1,287"},{"v":1047,"d":"$1,047"},{"v":1110,"d":"$1,110"},{"v":1179,"d":"$1,179"},{"v":963,"d":"$963"},{"v":1032,"d":"$1,032"},{"v":1125,"d":"$1,125"},{"v":1266,"d":"$1,266"},{"v":1359,"d":"$1,359"},{"v":1506,"d":"$1,506"},{"v":1536,"d":"$1,536"}]
["ROBINS AFB","GA"]
["ROBINS AFB","GA"]
["ROBINS AFB","GA"]
["ROBINS AFB","GA"]
["ROBINS AFB","GA"]
["ROBINS AFB","GA"]
["ROBINS AFB","GA"]
["ROBINS AFB","GA"]
["ROBINS AFB","GA"]
["ROBINS AFB","GA"]
["ROBINS AFB","GA"]
["ROBINS AFB","GA"]
["ROBINS AFB","GA"]
["ROBINS AFB","GA"]
["ROBINS AFB","GA"]
["ROBINS AFB","GA"]
["ROBINS AFB","GA"]
["ROBINS AFB","GA"]
["ROBINS AFB","GA"]
["ROBINS AFB","GA"]
["ROBINS AFB","GA"]
["ROBINS AFB","GA"]
["ROBINS AFB","GA"]
["SAVANNAH","GA",null,null,{"v":990,"d":"$990"},{"v":990,"d":"$990"},{"v":990,"d":"$990"},{"v":990,"d":"$990"},{"v":1065,"d":"$1,065"},{"v":1116,"d":"$1,116"},{"v":1182,"d":"$1,182"},{"v":1302,"d":"$1,302"},{"v":1374,"d":"$1,374"},{"v":1149,"d":"$1,149"},{"v":1299,"d":"$1,299"},{"v":1380,"d":"$1,380"},{"v":1512,"d":"$1,512"},{"v":1599,"d":"$1,599"},{"v":1254,"d":"$1,254"},{"v":1356,"d":"$1,356"},{"v":1488,"d":"$1,488"},{"v":1101,"d":"$1,101"},{"v":1227,"d":"$1,227"},{"v":1404,"d":"$1,404"},{"v":1587,"d":"$1,587"},{"v":1641,"d":"$1,641"},{"v":1731,"d":"$1,731"},{"v":1767,"d":"$1,767"}]
["SAVANNAH","GA"]
["SAVANNAH","GA"]
["SAVANNAH","GA"]
["SAVANNAH","GA"]
["SAVANNAH","GA"]
["SAVANNAH","GA"]
["SAVANNAH","GA"]
["SAVANNAH","GA"]
["SAVANNAH","GA"]
["SAVANNAH","GA"]
["SAVANNAH","GA"]
["SAVANNAH","GA"]
["SAVANNAH","GA"]
["SAVANNAH","GA"]
["SAVANNAH","GA"]
["SAVANNAH","GA"]
["SAVANNAH","GA"]
["SAVANNAH","GA"]
["SAVANNAH","GA"]
["SAVANNAH","GA"]
["SAVANNAH","GA"]
["SAVANNAH","GA"]
["SAVANNAH","GA"]
["ATHENS","GA",null,null,{"v":771,"d":"$771"},{"v":771,"d":"$771"},{"v":771,"d":"$771"},{"v":771,"d":"$771"},{"v":837,"d":"$837"},{"v":876,"d":"$876"},{"v":918,"d":"$918"},{"v":993,"d":"$993"},{"v":1041,"d":"$1,041"},{"v":897,"d":"$897"},{"v":990,"d":"$990"},{"v":1044,"d":"$1,044"},{"v":1134,"d":"$1,134"},{"v":1200,"d":"$1,200"},{"v":960,"d":"$960"},{"v":1029,"d":"$1,029"},{"v":1116,"d":"$1,116"},{"v":870,"d":"$870"},{"v":945,"d":"$945"},{"v":1062,"d":"$1,062"},{"v":1191,"d":"$1,191"},{"v":1239,"d":"$1,239"},{"v":1302,"d":"$1,302"},{"v":1329,"d":"$1,329"}]
["ATHENS","GA"]
["ATHENS","GA"]
["ATHENS","GA"]
["ATHENS","GA"]
["ATHENS","GA"]
["ATHENS","GA"]
["ATHENS","GA"]
["ATHENS","GA"]
["ATHENS","GA"]
["ATHENS","GA"]
["ATHENS","GA"]
["ATHENS","GA"]
["ATHENS","GA"]
["ATHENS","GA"]
["ATHENS","GA"]
["ATHENS","GA"]
["ATHENS","GA"]
["ATHENS","GA"]
["ATHENS","GA"]
["ATHENS","GA"]
["ATHENS","GA"]
["ATHENS","GA"]
["ATHENS","GA"]
["DAHLONEGH","GA",null,null,{"v":729,"d":"$729"},{"v":729,"d":"$729"},{"v":729,"d":"$729"},{"v":729,"d":"$729"},{"v":798,"d":"$798"},{"v":879,"d":"$879"},{"v":951,"d":"$951"},{"v":1086,"d":"$1,086"},{"v":1119,"d":"$1,119"},{"v":900,"d":"$900"},{"v":1086,"d":"$1,086"},{"v":1122,"d":"$1,122"},{"v":1185,"d":"$1,185"},{"v":1233,"d":"$1,233"},{"v":1065,"d":"$1,065"},{"v":1113,"d":"$1,113"},{"v":1173,"d":"$1,173"},{"v":825,"d":"$825"},{"v":1023,"d":"$1,023"},{"v":1134,"d":"$1,134"},{"v":1227,"d":"$1,227"},{"v":1257,"d":"$1,257"},{"v":1305,"d":"$1,305"},{"v":1332,"d":"$1,332"}]
["DAHLONEGH","GA"]
["DAHLONEGH","GA"]
["DAHLONEGH","GA"]
["DAHLONEGH","GA"]
["DAHLONEGH","GA"]
["DAHLONEGH","GA"]
["DAHLONEGH","GA"]
["DAHLONEGH","GA"]
["DAHLONEGH","GA"]
["DAHLONEGH","GA"]
["DAHLONEGH","GA"]
["DAHLONEGH","GA"]
["DAHLONEGH","GA"]
["DAHLONEGH","GA"]
["DAHLONEGH","GA"]
["DAHLONEGH","GA"]
["DAHLONEGH","GA"]
["DAHLONEGH","GA"]
["DAHLONEGH","GA"]
["DAHLONEGH","GA"]
["DAHLONEGH","GA"]
["DAHLONEGH","GA"]
["DAHLONEGH","GA"]
["FORT STEWART","GA",null,null,{"v":918,"d":"$918"},{"v":918,"d":"$918"},{"v":918,"d":"$918"},{"v":918,"d":"$918"},{"v":990,"d":"$990"},{"v":1080,"d":"$1,080"},{"v":1098,"d":"$1,098"},{"v":1191,"d":"$1,191"},{"v":1287,"d":"$1,287"},{"v":1080,"d":"$1,080"},{"v":1188,"d":"$1,188"},{"v":1296,"d":"$1,296"},{"v":1446,"d":"$1,446"},{"v":1470,"d":"$1,470"},{"v":1128,"d":"$1,128"},{"v":1266,"d":"$1,266"},{"v":1440,"d":"$1,440"},{"v":1026,"d":"$1,026"},{"v":1110,"d":"$1,110"},{"v":1329,"d":"$1,329"},{"v":1467,"d":"$1,467"},{"v":1482,"d":"$1,482"},{"v":1506,"d":"$1,506"},{"v":1536,"d":"$1,536"}]
["FORT STEWART","GA"]
["FORT STEWART","GA"]
["FORT STEWART","GA"]
["FORT STEWART","GA"]
["FORT STEWART","GA"]
["FORT STEWART","GA"]
["FORT STEWART","GA"]
["FORT STEWART","GA"]
["FORT STEWART","GA"]
["FORT STEWART","GA"]
["FORT STEWART","GA"]
["FORT STEWART","GA"]
["FORT STEWART","GA"]
["FORT STEWART","GA"]
["FORT STEWART","GA"]
["FORT STEWART","GA"]
["FORT STEWART","GA"]
["FORT STEWART","GA"]
["FORT STEWART","GA"]
["FORT STEWART","GA"]
["FORT STEWART","GA"]
["FORT STEWART","GA"]
["FORT STEWART","GA"]
["MOODY AFB","GA",null,null,{"v":690,"d":"$690"},{"v":690,"d":"$690"},{"v":690,"d":"$690"},{"v":690,"d":"$690"},{"v":801,"d":"$801"},{"v":870,"d":"$870"},{"v":921,"d":"$921"},{"v":1008,"d":"$1,008"},{"v":1062,"d":"$1,062"},{"v":897,"d":"$897"},{"v":1008,"d":"$1,008"},{"v":1068,"d":"$1,068"},{"v":1161,"d":"$1,161"},{"v":1212,"d":"$1,212"},{"v":975,"d":"$975"},{"v":1050,"d":"$1,050"},{"v":1149,"d":"$1,149"},{"v":861,"d":"$861"},{"v":954,"d":"$954"},{"v":1086,"d":"$1,086"},{"v":1203,"d":"$1,203"},{"v":1293,"d":"$1,293"},{"v":1305,"d":"$1,305"},{"v":1317,"d":"$1,317"}]
["MOODY AFB","GA"]
["MOODY AFB","GA"]
["MOODY AFB","GA"]
["MOODY AFB","GA"]
["MOODY AFB","GA"]
["MOODY AFB","GA"]
["MOODY AFB","GA"]
["MOODY AFB","GA"]
["MOODY AFB","GA"]
["MOODY AFB","GA"]
["MOODY AFB","GA"]
["MOODY AFB","GA"]
["MOODY AFB","GA"]
["MOODY AFB","GA"]
["MOODY AFB","GA"]
["MOODY AFB","GA"]
["MOODY AFB","GA"]
["MOODY AFB","GA"]
["MOODY AFB","GA"]
["MOODY AFB","GA"]
["MOODY AFB","GA"]
["MOODY AFB","GA"]
["MOODY AFB","GA"]
["MAUI COUNTY","HI",null,null,{"v":1317,"d":"$1,317"},{"v":1317,"d":"$1,317"},{"v":1317,"d":"$1,317"},{"v":1317,"d":"$1,317"},{"v":1548,"d":"$1,548"},{"v":1674,"d":"$1,674"},{"v":1752,"d":"$1,752"},{"v":1872,"d":"$1,872"},{"v":1938,"d":"$1,938"},{"v":1713,"d":"$1,713"},{"v":1869,"d":"$1,869"},{"v":1944,"d":"$1,944"},{"v":2049,"d":"$2,049"},{"v":2082,"d":"$2,082"},{"v":1830,"d":"$1,830"},{"v":1923,"d":"$1,923"},{"v":2040,"d":"$2,040"},{"v":1662,"d":"$1,662"},{"v":1800,"d":"$1,800"},{"v":1965,"d":"$1,965"},{"v":2076,"d":"$2,076"},{"v":2100,"d":"$2,100"},{"v":2133,"d":"$2,133"},{"v":2175,"d":"$2,175"}]
["MAUI COUNTY","HI"]
["MAUI COUNTY","HI"]
["MAUI COUNTY","HI"]
["MAUI COUNTY","HI"]
["MAUI COUNTY","HI"]
["MAUI COUNTY","HI"]
["MAUI COUNTY","HI"]
["MAUI COUNTY","HI"]
["MAUI COUNTY","HI"]
["MAUI COUNTY","HI"]
["MAUI COUNTY","HI"]
["MAUI COUNTY","HI"]
["MAUI COUNTY","HI"]
["MAUI COUNTY","HI"]
["MAUI COUNTY","HI"]
["MAUI COUNTY","HI"]
["MAUI COUNTY","HI"]
["MAUI COUNTY","HI"]
["MAUI COUNTY","HI"]
["MAUI COUNTY","HI"]
["MAUI COUNTY","HI"]
["MAUI COUNTY","HI"]
["MAUI COUNTY","HI"]
["HONOLULU COUNTY","HI",null,null,{"v":1572,"d":"$1,572"},{"v":1572,"d":"$1,572"},{"v":1572,"d":"$1,572"},{"v":1572,"d":"$1,572"},{"v":1794,"d":"$1,794"},{"v":1917,"d":"$1,917"},{"v":2004,"d":"$2,004"},{"v":2163,"d":"$2,163"},{"v":2274,"d":"$2,274"},{"v":1965,"d":"$1,965"},{"v":2160,"d":"$2,160"},{"v":2283,"d":"$2,283"},{"v":2472,"d":"$2,472"},{"v":2580,"d":"$2,580"},{"v":2094,"d":"$2,094"},{"v":2250,"d":"$2,250"},{"v":2445,"d":"$2,445"},{"v":1905,"d":"$1,905"},{"v":2061,"d":"$2,061"},{"v":2319,"d":"$2,319"},{"v":2565,"d":"$2,565"},{"v":2634,"d":"$2,634"},{"v":2745,"d":"$2,745"},{"v":2799,"d":"$2,799"}]
["HONOLULU COUNTY","HI"]
["HONOLULU COUNTY","HI"]
["HONOLULU COUNTY","HI"]
["HONOLULU COUNTY","HI"]
["HONOLULU COUNTY","HI"]
["HONOLULU COUNTY","HI"]
["HONOLULU COUNTY","HI"]
["HONOLULU COUNTY","HI"]
["HONOLULU COUNTY","HI"]
["HONOLULU COUNTY","HI"]
["HONOLULU COUNTY","HI"]
["HONOLULU COUNTY","HI"]
["HONOLULU COUNTY","HI"]
["HONOLULU COUNTY","HI"]
["HONOLULU COUNTY","HI"]
["HONOLULU COUNTY","HI"]
["HONOLULU COUNTY","HI"]
["HONOLULU COUNTY","HI"]
["HONOLULU COUNTY","HI"]
["HONOLULU COUNTY","HI"]
["HONOLULU COUNTY","HI"]
["HONOLULU COUNTY","HI"]
["HONOLULU COUNTY","HI"]
["HAWAII COUNTY","HI",null,null,{"v":1062,"d":"$1,062"},{"v":1062,"d":"$1,062"},{"v":1062,"d":"$1,062"},{"v":1062,"d":"$1,062"},{"v":1227,"d":"$1,227"},{"v":1362,"d":"$1,362"},{"v":1419,"d":"$1,419"},{"v":1545,"d":"$1,545"},{"v":1650,"d":"$1,650"},{"v":1389,"d":"$1,389"},{"v":1542,"d":"$1,542"},{"v":1659,"d":"$1,659"},{"v":1824,"d":"$1,824"},{"v":1857,"d":"$1,857"},{"v":1476,"d":"$1,476"},{"v":1626,"d":"$1,626"},{"v":1815,"d":"$1,815"},{"v":1350,"d":"$1,350"},{"v":1455,"d":"$1,455"},{"v":1692,"d":"$1,692"},{"v":1851,"d":"$1,851"},{"v":1875,"d":"$1,875"},{"v":1908,"d":"$1,908"},{"v":1947,"d":"$1,947"}]
["HAWAII COUNTY","HI"]
["HAWAII COUNTY","HI"]
["HAWAII COUNTY","HI"]
["HAWAII COUNTY","HI"]
["HAWAII COUNTY","HI"]
["HAWAII COUNTY","HI"]
["HAWAII COUNTY","HI"]
["HAWAII COUNTY","HI"]
["HAWAII COUNTY","HI"]
["HAWAII COUNTY","HI"]
["HAWAII COUNTY","HI"]
["HAWAII COUNTY","HI"]
["HAWAII COUNTY","HI"]
["HAWAII COUNTY","HI"]
["HAWAII COUNTY","HI"]
["HAWAII COUNTY","HI"]
["HAWAII COUNTY","HI"]
["HAWAII COUNTY","HI"]
["HAWAII COUNTY","HI"]
["HAWAII COUNTY","HI"]
["HAWAII COUNTY","HI"]
["HAWAII COUNTY","HI"]
["HAWAII COUNTY","HI"]
["KAUAI COUNTY","HI",null,null,{"v":1302,"d":"$1,302"},{"v":1302,"d":"$1,302"},{"v":1302,"d":"$1,302"},{"v":1302,"d":"$1,302"},{"v":1455,"d":"$1,455"},{"v":1605,"d":"$1,605"},{"v":1746,"d":"$1,746"},{"v":1926,"d":"$1,926"},{"v":1977,"d":"$1,977"},{"v":1677,"d":"$1,677"},{"v":1923,"d":"$1,923"},{"v":1983,"d":"$1,983"},{"v":2064,"d":"$2,064"},{"v":2082,"d":"$2,082"},{"v":1893,"d":"$1,893"},{"v":1965,"d":"$1,965"},{"v":2061,"d":"$2,061"},{"v":1581,"d":"$1,581"},{"v":1839,"d":"$1,839"},{"v":2001,"d":"$2,001"},{"v":2079,"d":"$2,079"},{"v":2313,"d":"$2,313"},{"v":2337,"d":"$2,337"},{"v":2361,"d":"$2,361"}]
["KAUAI COUNTY","HI"]
["KAUAI COUNTY","HI"]
["KAUAI COUNTY","HI"]
["KAUAI COUNTY","HI"]
["KAUAI COUNTY","HI"]
["KAUAI COUNTY","HI"]
["KAUAI COUNTY","HI"]
["KAUAI COUNTY","HI"]
["KAUAI COUNTY","HI"]
["KAUAI COUNTY","HI"]
["KAUAI COUNTY","HI"]
["KAUAI COUNTY","HI"]
["KAUAI COUNTY","HI"]
["KAUAI COUNTY","HI"]
["KAUAI COUNTY","HI"]
["KAUAI COUNTY","HI"]
["KAUAI COUNTY","HI"]
["KAUAI COUNTY","HI"]
["KAUAI COUNTY","HI"]
["KAUAI COUNTY","HI"]
["KAUAI COUNTY","HI"]
["KAUAI COUNTY","HI"]
["KAUAI COUNTY","HI"]
["DES MOINES","IA",null,null,{"v":795,"d":"$795"},{"v":795,"d":"$795"},{"v":795,"d":"$795"},{"v":795,"d":"$795"},{"v":888,"d":"$888"},{"v":1026,"d":"$1,026"},{"v":1065,"d":"$1,065"},{"v":1155,"d":"$1,155"},{"v":1239,"d":"$1,239"},{"v":1026,"d":"$1,026"},{"v":1152,"d":"$1,152"},{"v":1245,"d":"$1,245"},{"v":1380,"d":"$1,380"},{"v":1434,"d":"$1,434"},{"v":1104,"d":"$1,104"},{"v":1221,"d":"$1,221"},{"v":1368,"d":"$1,368"},{"v":933,"d":"$933"},{"v":1074,"d":"$1,074"},{"v":1272,"d":"$1,272"},{"v":1425,"d":"$1,425"},{"v":1461,"d":"$1,461"},{"v":1515,"d":"$1,515"},{"v":1545,"d":"$1,545"}]
["DES MOINES","IA"]
["DES MOINES","IA"]
["DES MOINES","IA"]
["DES MOINES","IA"]
["DES MOINES","IA"]
["DES MOINES","IA"]
["DES MOINES","IA"]
["DES MOINES","IA"]
["DES MOINES","IA"]
["DES MOINES","IA"]
["DES MOINES","IA"]
["DES MOINES","IA"]
["DES MOINES","IA"]
["DES MOINES","IA"]
["DES MOINES","IA"]
["DES MOINES","IA"]
["DES MOINES","IA"]
["DES MOINES","IA"]
["DES MOINES","IA"]
["DES MOINES","IA"]
["DES MOINES","IA"]
["DES MOINES","IA"]
["DES MOINES","IA"]
["AMES","IA",null,null,{"v":675,"d":"$675"},{"v":675,"d":"$675"},{"v":675,"d":"$675"},{"v":675,"d":"$675"},{"v":762,"d":"$762"},{"v":933,"d":"$933"},{"v":942,"d":"$942"},{"v":1020,"d":"$1,020"},{"v":1107,"d":"$1,107"},{"v":933,"d":"$933"},{"v":1017,"d":"$1,017"},{"v":1116,"d":"$1,116"},{"v":1248,"d":"$1,248"},{"v":1260,"d":"$1,260"},{"v":963,"d":"$963"},{"v":1086,"d":"$1,086"},{"v":1245,"d":"$1,245"},{"v":807,"d":"$807"},{"v":936,"d":"$936"},{"v":1143,"d":"$1,143"},{"v":1260,"d":"$1,260"},{"v":1338,"d":"$1,338"},{"v":1350,"d":"$1,350"},{"v":1365,"d":"$1,365"}]
["AMES","IA"]
["AMES","IA"]
["AMES","IA"]
["AMES","IA"]
["AMES","IA"]
["AMES","IA"]
["AMES","IA"]
["AMES","IA"]
["AMES","IA"]
["AMES","IA"]
["AMES","IA"]
["AMES","IA"]
["AMES","IA"]
["AMES","IA"]
["AMES","IA"]
["AMES","IA"]
["AMES","IA"]
["AMES","IA"]
["AMES","IA"]
["AMES","IA"]
["AMES","IA"]
["AMES","IA"]
["AMES","IA"]
["WATERLOO","IA",null,null,{"v":660,"d":"$660"},{"v":660,"d":"$660"},{"v":660,"d":"$660"},{"v":660,"d":"$660"},{"v":714,"d":"$714"},{"v":795,"d":"$795"},{"v":840,"d":"$840"},{"v":945,"d":"$945"},{"v":990,"d":"$990"},{"v":795,"d":"$795"},{"v":942,"d":"$942"},{"v":993,"d":"$993"},{"v":1074,"d":"$1,074"},{"v":1137,"d":"$1,137"},{"v":915,"d":"$915"},{"v":978,"d":"$978"},{"v":1059,"d":"$1,059"},{"v":741,"d":"$741"},{"v":885,"d":"$885"},{"v":1008,"d":"$1,008"},{"v":1128,"d":"$1,128"},{"v":1167,"d":"$1,167"},{"v":1227,"d":"$1,227"},{"v":1254,"d":"$1,254"}]
["WATERLOO","IA"]
["WATERLOO","IA"]
["WATERLOO","IA"]
["WATERLOO","IA"]
["WATERLOO","IA"]
["WATERLOO","IA"]
["WATERLOO","IA"]
["WATERLOO","IA"]
["WATERLOO","IA"]
["WATERLOO","IA"]
["WATERLOO","IA"]
["WATERLOO","IA"]
["WATERLOO","IA"]
["WATERLOO","IA"]
["WATERLOO","IA"]
["WATERLOO","IA"]
["WATERLOO","IA"]
["WATERLOO","IA"]
["WATERLOO","IA"]
["WATERLOO","IA"]
["WATERLOO","IA"]
["WATERLOO","IA"]
["WATERLOO","IA"]
["DUBUQUE","IA",null,null,{"v":699,"d":"$699"},{"v":699,"d":"$699"},{"v":699,"d":"$699"},{"v":699,"d":"$699"},{"v":792,"d":"$792"},{"v":933,"d":"$933"},{"v":993,"d":"$993"},{"v":1065,"d":"$1,065"},{"v":1158,"d":"$1,158"},{"v":933,"d":"$933"},{"v":1062,"d":"$1,062"},{"v":1140,"d":"$1,140"},{"v":1263,"d":"$1,263"},{"v":1344,"d":"$1,344"},{"v":1020,"d":"$1,020"},{"v":1116,"d":"$1,116"},{"v":1242,"d":"$1,242"},{"v":843,"d":"$843"},{"v":990,"d":"$990"},{"v":1161,"d":"$1,161"},{"v":1332,"d":"$1,332"},{"v":1464,"d":"$1,464"},{"v":1479,"d":"$1,479"},{"v":1497,"d":"$1,497"}]
["DUBUQUE","IA"]
["DUBUQUE","IA"]
["DUBUQUE","IA"]
["DUBUQUE","IA"]
["DUBUQUE","IA"]
["DUBUQUE","IA"]
["DUBUQUE","IA"]
["DUBUQUE","IA"]
["DUBUQUE","IA"]
["DUBUQUE","IA"]
["DUBUQUE","IA"]
["DUBUQUE","IA"]
["DUBUQUE","IA"]
["DUBUQUE","IA"]
["DUBUQUE","IA"]
["DUBUQUE","IA"]
["DUBUQUE","IA"]
["DUBUQUE","IA"]
["DUBUQUE","IA"]
["DUBUQUE","IA"]
["DUBUQUE","IA"]
["DUBUQUE","IA"]
["DUBUQUE","IA"]
["CEDAR RAPIDS","IA",null,null,{"v":609,"d":"$609"},{"v":609,"d":"$609"},{"v":609,"d":"$609"},{"v":609,"d":"$609"},{"v":729,"d":"$729"},{"v":819,"d":"$819"},{"v":876,"d":"$876"},{"v":939,"d":"$939"},{"v":1020,"d":"$1,020"},{"v":819,"d":"$819"},{"v":903,"d":"$903"},{"v":981,"d":"$981"},{"v":1110,"d":"$1,110"},{"v":1188,"d":"$1,188"},{"v":888,"d":"$888"},{"v":969,"d":"$969"},{"v":1089,"d":"$1,089"},{"v":795,"d":"$795"},{"v":825,"d":"$825"},{"v":996,"d":"$996"},{"v":1176,"d":"$1,176"},{"v":1227,"d":"$1,227"},{"v":1308,"d":"$1,308"},{"v":1332,"d":"$1,332"}]
["CEDAR RAPIDS","IA"]
["CEDAR RAPIDS","IA"]
["CEDAR RAPIDS","IA"]
["CEDAR RAPIDS","IA"]
["CEDAR RAPIDS","IA"]
["CEDAR RAPIDS","IA"]
["CEDAR RAPIDS","IA"]
["CEDAR RAPIDS","IA"]
["CEDAR RAPIDS","IA"]
["CEDAR RAPIDS","IA"]
["CEDAR RAPIDS","IA"]
["CEDAR RAPIDS","IA"]
["CEDAR RAPIDS","IA"]
["CEDAR RAPIDS","IA"]
["CEDAR RAPIDS","IA"]
["CEDAR RAPIDS","IA"]
["CEDAR RAPIDS","IA"]
["CEDAR RAPIDS","IA"]
["CEDAR RAPIDS","IA"]
["CEDAR RAPIDS","IA"]
["CEDAR RAPIDS","IA"]
["CEDAR RAPIDS","IA"]
["CEDAR RAPIDS","IA"]
["SIOUX CITY","IA",null,null,{"v":654,"d":"$654"},{"v":654,"d":"$654"},{"v":654,"d":"$654"},{"v":654,"d":"$654"},{"v":735,"d":"$735"},{"v":786,"d":"$786"},{"v":843,"d":"$843"},{"v":924,"d":"$924"},{"v":957,"d":"$957"},{"v":816,"d":"$816"},{"v":924,"d":"$924"},{"v":960,"d":"$960"},{"v":1014,"d":"$1,014"},{"v":1047,"d":"$1,047"},{"v":903,"d":"$903"},{"v":948,"d":"$948"},{"v":1005,"d":"$1,005"},{"v":777,"d":"$777"},{"v":882,"d":"$882"},{"v":969,"d":"$969"},{"v":1041,"d":"$1,041"},{"v":1062,"d":"$1,062"},{"v":1098,"d":"$1,098"},{"v":1119,"d":"$1,119"}]
["SIOUX CITY","IA"]
["SIOUX CITY","IA"]
["SIOUX CITY","IA"]
["SIOUX CITY","IA"]
["SIOUX CITY","IA"]
["SIOUX CITY","IA"]
["SIOUX CITY","IA"]
["SIOUX CITY","IA"]
["SIOUX CITY","IA"]
["SIOUX CITY","IA"]
["SIOUX CITY","IA"]
["SIOUX CITY","IA"]
["SIOUX CITY","IA"]
["SIOUX CITY","IA"]
["SIOUX CITY","IA"]
["SIOUX CITY","IA"]
["SIOUX CITY","IA"]
["SIOUX CITY","IA"]
["SIOUX CITY","IA"]
["SIOUX CITY","IA"]
["SIOUX CITY","IA"]
["SIOUX CITY","IA"]
["SIOUX CITY","IA"]
["IOWA CITY","IA",null,null,{"v":741,"d":"$741"},{"v":741,"d":"$741"},{"v":741,"d":"$741"},{"v":741,"d":"$741"},{"v":816,"d":"$816"},{"v":975,"d":"$975"},{"v":1008,"d":"$1,008"},{"v":1113,"d":"$1,113"},{"v":1185,"d":"$1,185"},{"v":975,"d":"$975"},{"v":1110,"d":"$1,110"},{"v":1191,"d":"$1,191"},{"v":1311,"d":"$1,311"},{"v":1359,"d":"$1,359"},{"v":1068,"d":"$1,068"},{"v":1170,"d":"$1,170"},{"v":1299,"d":"$1,299"},{"v":855,"d":"$855"},{"v":1032,"d":"$1,032"},{"v":1215,"d":"$1,215"},{"v":1353,"d":"$1,353"},{"v":1560,"d":"$1,560"},{"v":1575,"d":"$1,575"},{"v":1590,"d":"$1,590"}]
["IOWA CITY","IA"]
["IOWA CITY","IA"]
["IOWA CITY","IA"]
["IOWA CITY","IA"]
["IOWA CITY","IA"]
["IOWA CITY","IA"]
["IOWA CITY","IA"]
["IOWA CITY","IA"]
["IOWA CITY","IA"]
["IOWA CITY","IA"]
["IOWA CITY","IA"]
["IOWA CITY","IA"]
["IOWA CITY","IA"]
["IOWA CITY","IA"]
["IOWA CITY","IA"]
["IOWA CITY","IA"]
["IOWA CITY","IA"]
["IOWA CITY","IA"]
["IOWA CITY","IA"]
["IOWA CITY","IA"]
["IOWA CITY","IA"]
["IOWA CITY","IA"]
["IOWA CITY","IA"]
["BOISE","ID",null,null,{"v":756,"d":"$756"},{"v":756,"d":"$756"},{"v":756,"d":"$756"},{"v":756,"d":"$756"},{"v":798,"d":"$798"},{"v":828,"d":"$828"},{"v":888,"d":"$888"},{"v":978,"d":"$978"},{"v":1017,"d":"$1,017"},{"v":861,"d":"$861"},{"v":975,"d":"$975"},{"v":1020,"d":"$1,020"},{"v":1086,"d":"$1,086"},{"v":1119,"d":"$1,119"},{"v":951,"d":"$951"},{"v":1008,"d":"$1,008"},{"v":1080,"d":"$1,080"},{"v":819,"d":"$819"},{"v":930,"d":"$930"},{"v":1032,"d":"$1,032"},{"v":1116,"d":"$1,116"},{"v":1137,"d":"$1,137"},{"v":1170,"d":"$1,170"},{"v":1194,"d":"$1,194"}]
["BOISE","ID"]
["BOISE","ID"]
["BOISE","ID"]
["BOISE","ID"]
["BOISE","ID"]
["BOISE","ID"]
["BOISE","ID"]
["BOISE","ID"]
["BOISE","ID"]
["BOISE","ID"]
["BOISE","ID"]
["BOISE","ID"]
["BOISE","ID"]
["BOISE","ID"]
["BOISE","ID"]
["BOISE","ID"]
["BOISE","ID"]
["BOISE","ID"]
["BOISE","ID"]
["BOISE","ID"]
["BOISE","ID"]
["BOISE","ID"]
["BOISE","ID"]
["IDAHO FALLS","ID",null,null,{"v":645,"d":"$645"},{"v":645,"d":"$645"},{"v":645,"d":"$645"},{"v":645,"d":"$645"},{"v":714,"d":"$714"},{"v":780,"d":"$780"},{"v":864,"d":"$864"},{"v":957,"d":"$957"},{"v":963,"d":"$963"},{"v":825,"d":"$825"},{"v":957,"d":"$957"},{"v":966,"d":"$966"},{"v":996,"d":"$996"},{"v":1071,"d":"$1,071"},{"v":951,"d":"$951"},{"v":963,"d":"$963"},{"v":975,"d":"$975"},{"v":768,"d":"$768"},{"v":921,"d":"$921"},{"v":966,"d":"$966"},{"v":1059,"d":"$1,059"},{"v":1107,"d":"$1,107"},{"v":1185,"d":"$1,185"},{"v":1209,"d":"$1,209"}]
["IDAHO FALLS","ID"]
["IDAHO FALLS","ID"]
["IDAHO FALLS","ID"]
["IDAHO FALLS","ID"]
["IDAHO FALLS","ID"]
["IDAHO FALLS","ID"]
["IDAHO FALLS","ID"]
["IDAHO FALLS","ID"]
["IDAHO FALLS","ID"]
["IDAHO FALLS","ID"]
["IDAHO FALLS","ID"]
["IDAHO FALLS","ID"]
["IDAHO FALLS","ID"]
["IDAHO FALLS","ID"]
["IDAHO FALLS","ID"]
["IDAHO FALLS","ID"]
["IDAHO FALLS","ID"]
["IDAHO FALLS","ID"]
["IDAHO FALLS","ID"]
["IDAHO FALLS","ID"]
["IDAHO FALLS","ID"]
["IDAHO FALLS","ID"]
["IDAHO FALLS","ID"]
["MOUNTAIN HOME AFB","ID",null,null,{"v":675,"d":"$675"},{"v":675,"d":"$675"},{"v":675,"d":"$675"},{"v":675,"d":"$675"},{"v":741,"d":"$741"},{"v":810,"d":"$810"},{"v":894,"d":"$894"},{"v":984,"d":"$984"},{"v":1065,"d":"$1,065"},{"v":831,"d":"$831"},{"v":984,"d":"$984"},{"v":1044,"d":"$1,044"},{"v":1107,"d":"$1,107"},{"v":1221,"d":"$1,221"},{"v":960,"d":"$960"},{"v":1026,"d":"$1,026"},{"v":1080,"d":"$1,080"},{"v":774,"d":"$774"},{"v":927,"d":"$927"},{"v":1038,"d":"$1,038"},{"v":1203,"d":"$1,203"},{"v":1275,"d":"$1,275"},{"v":1389,"d":"$1,389"},{"v":1419,"d":"$1,419"}]
["MOUNTAIN HOME AFB","ID"]
["MOUNTAIN HOME AFB","ID"]
["MOUNTAIN HOME AFB","ID"]
["MOUNTAIN HOME AFB","ID"]
["MOUNTAIN HOME AFB","ID"]
["MOUNTAIN HOME AFB","ID"]
["MOUNTAIN HOME AFB","ID"]
["MOUNTAIN HOME AFB","ID"]
["MOUNTAIN HOME AFB","ID"]
["MOUNTAIN HOME AFB","ID"]
["MOUNTAIN HOME AFB","ID"]
["MOUNTAIN HOME AFB","ID"]
["MOUNTAIN HOME AFB","ID"]
["MOUNTAIN HOME AFB","ID"]
["MOUNTAIN HOME AFB","ID"]
["MOUNTAIN HOME AFB","ID"]
["MOUNTAIN HOME AFB","ID"]
["MOUNTAIN HOME AFB","ID"]
["MOUNTAIN HOME AFB","ID"]
["MOUNTAIN HOME AFB","ID"]
["MOUNTAIN HOME AFB","ID"]
["MOUNTAIN HOME AFB","ID"]
["MOUNTAIN HOME AFB","ID"]
["MOSCOW","ID",null,null,{"v":606,"d":"$606"},{"v":606,"d":"$606"},{"v":606,"d":"$606"},{"v":606,"d":"$606"},{"v":684,"d":"$684"},{"v":978,"d":"$978"},{"v":1014,"d":"$1,014"},{"v":1056,"d":"$1,056"},{"v":1122,"d":"$1,122"},{"v":978,"d":"$978"},{"v":1032,"d":"$1,032"},{"v":1122,"d":"$1,122"},{"v":1317,"d":"$1,317"},{"v":1365,"d":"$1,365"},{"v":1023,"d":"$1,023"},{"v":1083,"d":"$1,083"},{"v":1305,"d":"$1,305"},{"v":717,"d":"$717"},{"v":972,"d":"$972"},{"v":1164,"d":"$1,164"},{"v":1359,"d":"$1,359"},{"v":1389,"d":"$1,389"},{"v":1440,"d":"$1,440"},{"v":1470,"d":"$1,470"}]
["MOSCOW","ID"]
["MOSCOW","ID"]
["MOSCOW","ID"]
["MOSCOW","ID"]
["MOSCOW","ID"]
["MOSCOW","ID"]
["MOSCOW","ID"]
["MOSCOW","ID"]
["MOSCOW","ID"]
["MOSCOW","ID"]
["MOSCOW","ID"]
["MOSCOW","ID"]
["MOSCOW","ID"]
["MOSCOW","ID"]
["MOSCOW","ID"]
["MOSCOW","ID"]
["MOSCOW","ID"]
["MOSCOW","ID"]
["MOSCOW","ID"]
["MOSCOW","ID"]
["MOSCOW","ID"]
["MOSCOW","ID"]
["MOSCOW","ID"]
["CHAMPAIGN/URBANA","IL",null,null,{"v":870,"d":"$870"},{"v":870,"d":"$870"},{"v":870,"d":"$870"},{"v":870,"d":"$870"},{"v":975,"d":"$975"},{"v":1038,"d":"$1,038"},{"v":1113,"d":"$1,113"},{"v":1227,"d":"$1,227"},{"v":1287,"d":"$1,287"},{"v":1077,"d":"$1,077"},{"v":1224,"d":"$1,224"},{"v":1293,"d":"$1,293"},{"v":1386,"d":"$1,386"},{"v":1413,"d":"$1,413"},{"v":1188,"d":"$1,188"},{"v":1272,"d":"$1,272"},{"v":1380,"d":"$1,380"},{"v":1026,"d":"$1,026"},{"v":1161,"d":"$1,161"},{"v":1311,"d":"$1,311"},{"v":1410,"d":"$1,410"},{"v":1425,"d":"$1,425"},{"v":1452,"d":"$1,452"},{"v":1482,"d":"$1,482"}]
["CHAMPAIGN/URBANA","IL"]
["CHAMPAIGN/URBANA","IL"]
["CHAMPAIGN/URBANA","IL"]
["CHAMPAIGN/URBANA","IL"]
["CHAMPAIGN/URBANA","IL"]
["CHAMPAIGN/URBANA","IL"]
["CHAMPAIGN/URBANA","IL"]
["CHAMPAIGN/URBANA","IL"]
["CHAMPAIGN/URBANA","IL"]
["CHAMPAIGN/URBANA","IL"]
["CHAMPAIGN/URBANA","IL"]
["CHAMPAIGN/URBANA","IL"]
["CHAMPAIGN/URBANA","IL"]
["CHAMPAIGN/URBANA","IL"]
["CHAMPAIGN/URBANA","IL"]
["CHAMPAIGN/URBANA","IL"]
["CHAMPAIGN/URBANA","IL"]
["CHAMPAIGN/URBANA","IL"]
["CHAMPAIGN/URBANA","IL"]
["CHAMPAIGN/URBANA","IL"]
["CHAMPAIGN/URBANA","IL"]
["CHAMPAIGN/URBANA","IL"]
["CHAMPAIGN/URBANA","IL"]
["ROCK ISLAND","IL",null,null,{"v":687,"d":"$687"},{"v":687,"d":"$687"},{"v":687,"d":"$687"},{"v":687,"d":"$687"},{"v":780,"d":"$780"},{"v":948,"d":"$948"},{"v":981,"d":"$981"},{"v":1020,"d":"$1,020"},{"v":1104,"d":"$1,104"},{"v":948,"d":"$948"},{"v":999,"d":"$999"},{"v":1113,"d":"$1,113"},{"v":1275,"d":"$1,275"},{"v":1320,"d":"$1,320"},{"v":990,"d":"$990"},{"v":1080,"d":"$1,080"},{"v":1263,"d":"$1,263"},{"v":825,"d":"$825"},{"v":942,"d":"$942"},{"v":1146,"d":"$1,146"},{"v":1314,"d":"$1,314"},{"v":1344,"d":"$1,344"},{"v":1395,"d":"$1,395"},{"v":1422,"d":"$1,422"}]
["ROCK ISLAND","IL"]
["ROCK ISLAND","IL"]
["ROCK ISLAND","IL"]
["ROCK ISLAND","IL"]
["ROCK ISLAND","IL"]
["ROCK ISLAND","IL"]
["ROCK ISLAND","IL"]
["ROCK ISLAND","IL"]
["ROCK ISLAND","IL"]
["ROCK ISLAND","IL"]
["ROCK ISLAND","IL"]
["ROCK ISLAND","IL"]
["ROCK ISLAND","IL"]
["ROCK ISLAND","IL"]
["ROCK ISLAND","IL"]
["ROCK ISLAND","IL"]
["ROCK ISLAND","IL"]
["ROCK ISLAND","IL"]
["ROCK ISLAND","IL"]
["ROCK ISLAND","IL"]
["ROCK ISLAND","IL"]
["ROCK ISLAND","IL"]
["ROCK ISLAND","IL"]
["PEORIA","IL",null,null,{"v":756,"d":"$756"},{"v":756,"d":"$756"},{"v":756,"d":"$756"},{"v":756,"d":"$756"},{"v":852,"d":"$852"},{"v":972,"d":"$972"},{"v":1008,"d":"$1,008"},{"v":1143,"d":"$1,143"},{"v":1203,"d":"$1,203"},{"v":972,"d":"$972"},{"v":1140,"d":"$1,140"},{"v":1209,"d":"$1,209"},{"v":1299,"d":"$1,299"},{"v":1308,"d":"$1,308"},{"v":1104,"d":"$1,104"},{"v":1188,"d":"$1,188"},{"v":1296,"d":"$1,296"},{"v":900,"d":"$900"},{"v":1068,"d":"$1,068"},{"v":1227,"d":"$1,227"},{"v":1308,"d":"$1,308"},{"v":1314,"d":"$1,314"},{"v":1323,"d":"$1,323"},{"v":1350,"d":"$1,350"}]
["PEORIA","IL"]
["PEORIA","IL"]
["PEORIA","IL"]
["PEORIA","IL"]
["PEORIA","IL"]
["PEORIA","IL"]
["PEORIA","IL"]
["PEORIA","IL"]
["PEORIA","IL"]
["PEORIA","IL"]
["PEORIA","IL"]
["PEORIA","IL"]
["PEORIA","IL"]
["PEORIA","IL"]
["PEORIA","IL"]
["PEORIA","IL"]
["PEORIA","IL"]
["PEORIA","IL"]
["PEORIA","IL"]
["PEORIA","IL"]
["PEORIA","IL"]
["PEORIA","IL"]
["PEORIA","IL"]
["GREAT LAKES NAVTRACEN","IL",null,null,{"v":864,"d":"$864"},{"v":864,"d":"$864"},{"v":864,"d":"$864"},{"v":864,"d":"$864"},{"v":966,"d":"$966"},{"v":1134,"d":"$1,134"},{"v":1167,"d":"$1,167"},{"v":1329,"d":"$1,329"},{"v":1398,"d":"$1,398"},{"v":1134,"d":"$1,134"},{"v":1326,"d":"$1,326"},{"v":1404,"d":"$1,404"},{"v":1521,"d":"$1,521"},{"v":1566,"d":"$1,566"},{"v":1281,"d":"$1,281"},{"v":1383,"d":"$1,383"},{"v":1509,"d":"$1,509"},{"v":1023,"d":"$1,023"},{"v":1239,"d":"$1,239"},{"v":1428,"d":"$1,428"},{"v":1560,"d":"$1,560"},{"v":1602,"d":"$1,602"},{"v":1638,"d":"$1,638"},{"v":1671,"d":"$1,671"}]
["GREAT LAKES NAVTRACEN","IL"]
["GREAT LAKES NAVTRACEN","IL"]
["GREAT LAKES NAVTRACEN","IL"]
["GREAT LAKES NAVTRACEN","IL"]
["GREAT LAKES NAVTRACEN","IL"]
["GREAT LAKES NAVTRACEN","IL"]
["GREAT LAKES NAVTRACEN","IL"]
["GREAT LAKES NAVTRACEN","IL"]
["GREAT LAKES NAVTRACEN","IL"]
["GREAT LAKES NAVTRACEN","IL"]
["GREAT LAKES NAVTRACEN","IL"]
["GREAT LAKES NAVTRACEN","IL"]
["GREAT LAKES NAVTRACEN","IL"]
["GREAT LAKES NAVTRACEN","IL"]
["GREAT LAKES NAVTRACEN","IL"]
["GREAT LAKES NAVTRACEN","IL"]
["GREAT LAKES NAVTRACEN","IL"]
["GREAT LAKES NAVTRACEN","IL"]
["GREAT LAKES NAVTRACEN","IL"]
["GREAT LAKES NAVTRACEN","IL"]
["GREAT LAKES NAVTRACEN","IL"]
["GREAT LAKES NAVTRACEN","IL"]
["GREAT LAKES NAVTRACEN","IL"]
["SCOTT AFB","IL",null,null,{"v":792,"d":"$792"},{"v":792,"d":"$792"},{"v":792,"d":"$792"},{"v":792,"d":"$792"},{"v":912,"d":"$912"},{"v":1026,"d":"$1,026"},{"v":1086,"d":"$1,086"},{"v":1179,"d":"$1,179"},{"v":1251,"d":"$1,251"},{"v":1026,"d":"$1,026"},{"v":1176,"d":"$1,176"},{"v":1257,"d":"$1,257"},{"v":1389,"d":"$1,389"},{"v":1470,"d":"$1,470"},{"v":1131,"d":"$1,131"},{"v":1236,"d":"$1,236"},{"v":1368,"d":"$1,368"},{"v":978,"d":"$978"},{"v":1104,"d":"$1,104"},{"v":1281,"d":"$1,281"},{"v":1458,"d":"$1,458"},{"v":1512,"d":"$1,512"},{"v":1596,"d":"$1,596"},{"v":1626,"d":"$1,626"}]
["SCOTT AFB","IL"]
["SCOTT AFB","IL"]
["SCOTT AFB","IL"]
["SCOTT AFB","IL"]
["SCOTT AFB","IL"]
["SCOTT AFB","IL"]
["SCOTT AFB","IL"]
["SCOTT AFB","IL"]
["SCOTT AFB","IL"]
["SCOTT AFB","IL"]
["SCOTT AFB","IL"]
["SCOTT AFB","IL"]
["SCOTT AFB","IL"]
["SCOTT AFB","IL"]
["SCOTT AFB","IL"]
["SCOTT AFB","IL"]
["SCOTT AFB","IL"]
["SCOTT AFB","IL"]
["SCOTT AFB","IL"]
["SCOTT AFB","IL"]
["SCOTT AFB","IL"]
["SCOTT AFB","IL"]
["SCOTT AFB","IL"]
["CHICAGO","IL",null,null,{"v":1209,"d":"$1,209"},{"v":1209,"d":"$1,209"},{"v":1209,"d":"$1,209"},{"v":1209,"d":"$1,209"},{"v":1419,"d":"$1,419"},{"v":1536,"d":"$1,536"},{"v":1611,"d":"$1,611"},{"v":1746,"d":"$1,746"},{"v":1833,"d":"$1,833"},{"v":1575,"d":"$1,575"},{"v":1743,"d":"$1,743"},{"v":1842,"d":"$1,842"},{"v":1977,"d":"$1,977"},{"v":1992,"d":"$1,992"},{"v":1689,"d":"$1,689"},{"v":1815,"d":"$1,815"},{"v":1974,"d":"$1,974"},{"v":1524,"d":"$1,524"},{"v":1662,"d":"$1,662"},{"v":1872,"d":"$1,872"},{"v":1989,"d":"$1,989"},{"v":1998,"d":"$1,998"},{"v":2013,"d":"$2,013"},{"v":2052,"d":"$2,052"}]
["CHICAGO","IL"]
["CHICAGO","IL"]
["CHICAGO","IL"]
["CHICAGO","IL"]
["CHICAGO","IL"]
["CHICAGO","IL"]
["CHICAGO","IL"]
["CHICAGO","IL"]
["CHICAGO","IL"]
["CHICAGO","IL"]
["CHICAGO","IL"]
["CHICAGO","IL"]
["CHICAGO","IL"]
["CHICAGO","IL"]
["CHICAGO","IL"]
["CHICAGO","IL"]
["CHICAGO","IL"]
["CHICAGO","IL"]
["CHICAGO","IL"]
["CHICAGO","IL"]
["CHICAGO","IL"]
["CHICAGO","IL"]
["CHICAGO","IL"]
["SPRINGFIELD/DECATUR","IL",null,null,{"v":789,"d":"$789"},{"v":789,"d":"$789"},{"v":789,"d":"$789"},{"v":789,"d":"$789"},{"v":849,"d":"$849"},{"v":894,"d":"$894"},{"v":927,"d":"$927"},{"v":1017,"d":"$1,017"},{"v":1083,"d":"$1,083"},{"v":909,"d":"$909"},{"v":1014,"d":"$1,014"},{"v":1089,"d":"$1,089"},{"v":1191,"d":"$1,191"},{"v":1203,"d":"$1,203"},{"v":972,"d":"$972"},{"v":1068,"d":"$1,068"},{"v":1191,"d":"$1,191"},{"v":879,"d":"$879"},{"v":957,"d":"$957"},{"v":1113,"d":"$1,113"},{"v":1200,"d":"$1,200"},{"v":1206,"d":"$1,206"},{"v":1215,"d":"$1,215"},{"v":1239,"d":"$1,239"}]
["SPRINGFIELD/DECATUR","IL"]
["SPRINGFIELD/DECATUR","IL"]
["SPRINGFIELD/DECATUR","IL"]
["SPRINGFIELD/DECATUR","IL"]
["SPRINGFIELD/DECATUR","IL"]
["SPRINGFIELD/DECATUR","IL"]
["SPRINGFIELD/DECATUR","IL"]
["SPRINGFIELD/DECATUR","IL"]
["SPRINGFIELD/DECATUR","IL"]
["SPRINGFIELD/DECATUR","IL"]
["SPRINGFIELD/DECATUR","IL"]
["SPRINGFIELD/DECATUR","IL"]
["SPRINGFIELD/DECATUR","IL"]
["SPRINGFIELD/DECATUR","IL"]
["SPRINGFIELD/DECATUR","IL"]
["SPRINGFIELD/DECATUR","IL"]
["SPRINGFIELD/DECATUR","IL"]
["SPRINGFIELD/DECATUR","IL"]
["SPRINGFIELD/DECATUR","IL"]
["SPRINGFIELD/DECATUR","IL"]
["SPRINGFIELD/DECATUR","IL"]
["SPRINGFIELD/DECATUR","IL"]
["SPRINGFIELD/DECATUR","IL"]
["JOLIET ARMY DEPOT","IL",null,null,{"v":816,"d":"$816"},{"v":816,"d":"$816"},{"v":816,"d":"$816"},{"v":816,"d":"$816"},{"v":957,"d":"$957"},{"v":1224,"d":"$1,224"},{"v":1263,"d":"$1,263"},{"v":1347,"d":"$1,347"},{"v":1458,"d":"$1,458"},{"v":1224,"d":"$1,224"},{"v":1344,"d":"$1,344"},{"v":1467,"d":"$1,467"},{"v":1644,"d":"$1,644"},{"v":1695,"d":"$1,695"},{"v":1275,"d":"$1,275"},{"v":1431,"d":"$1,431"},{"v":1629,"d":"$1,629"},{"v":987,"d":"$987"},{"v":1218,"d":"$1,218"},{"v":1503,"d":"$1,503"},{"v":1689,"d":"$1,689"},{"v":1722,"d":"$1,722"},{"v":1776,"d":"$1,776"},{"v":1812,"d":"$1,812"}]
["JOLIET ARMY DEPOT","IL"]
["JOLIET ARMY DEPOT","IL"]
["JOLIET ARMY DEPOT","IL"]
["JOLIET ARMY DEPOT","IL"]
["JOLIET ARMY DEPOT","IL"]
["JOLIET ARMY DEPOT","IL"]
["JOLIET ARMY DEPOT","IL"]
["JOLIET ARMY DEPOT","IL"]
["JOLIET ARMY DEPOT","IL"]
["JOLIET ARMY DEPOT","IL"]
["JOLIET ARMY DEPOT","IL"]
["JOLIET ARMY DEPOT","IL"]
["JOLIET ARMY DEPOT","IL"]
["JOLIET ARMY DEPOT","IL"]
["JOLIET ARMY DEPOT","IL"]
["JOLIET ARMY DEPOT","IL"]
["JOLIET ARMY DEPOT","IL"]
["JOLIET ARMY DEPOT","IL"]
["JOLIET ARMY DEPOT","IL"]
["JOLIET ARMY DEPOT","IL"]
["JOLIET ARMY DEPOT","IL"]
["JOLIET ARMY DEPOT","IL"]
["JOLIET ARMY DEPOT","IL"]
["ROCKFORD","IL",null,null,{"v":705,"d":"$705"},{"v":705,"d":"$705"},{"v":705,"d":"$705"},{"v":705,"d":"$705"},{"v":792,"d":"$792"},{"v":894,"d":"$894"},{"v":948,"d":"$948"},{"v":1083,"d":"$1,083"},{"v":1125,"d":"$1,125"},{"v":897,"d":"$897"},{"v":1083,"d":"$1,083"},{"v":1128,"d":"$1,128"},{"v":1194,"d":"$1,194"},{"v":1206,"d":"$1,206"},{"v":1056,"d":"$1,056"},{"v":1116,"d":"$1,116"},{"v":1191,"d":"$1,191"},{"v":825,"d":"$825"},{"v":1017,"d":"$1,017"},{"v":1143,"d":"$1,143"},{"v":1206,"d":"$1,206"},{"v":1212,"d":"$1,212"},{"v":1224,"d":"$1,224"},{"v":1251,"d":"$1,251"}]
["ROCKFORD","IL"]
["ROCKFORD","IL"]
["ROCKFORD","IL"]
["ROCKFORD","IL"]
["ROCKFORD","IL"]
["ROCKFORD","IL"]
["ROCKFORD","IL"]
["ROCKFORD","IL"]
["ROCKFORD","IL"]
["ROCKFORD","IL"]
["ROCKFORD","IL"]
["ROCKFORD","IL"]
["ROCKFORD","IL"]
["ROCKFORD","IL"]
["ROCKFORD","IL"]
["ROCKFORD","IL"]
["ROCKFORD","IL"]
["ROCKFORD","IL"]
["ROCKFORD","IL"]
["ROCKFORD","IL"]
["ROCKFORD","IL"]
["ROCKFORD","IL"]
["ROCKFORD","IL"]
["INDIANAPOLIS","IN",null,null,{"v":810,"d":"$810"},{"v":810,"d":"$810"},{"v":810,"d":"$810"},{"v":810,"d":"$810"},{"v":933,"d":"$933"},{"v":1002,"d":"$1,002"},{"v":1065,"d":"$1,065"},{"v":1149,"d":"$1,149"},{"v":1182,"d":"$1,182"},{"v":1035,"d":"$1,035"},{"v":1149,"d":"$1,149"},{"v":1185,"d":"$1,185"},{"v":1242,"d":"$1,242"},{"v":1281,"d":"$1,281"},{"v":1131,"d":"$1,131"},{"v":1173,"d":"$1,173"},{"v":1230,"d":"$1,230"},{"v":993,"d":"$993"},{"v":1107,"d":"$1,107"},{"v":1194,"d":"$1,194"},{"v":1275,"d":"$1,275"},{"v":1338,"d":"$1,338"},{"v":1350,"d":"$1,350"},{"v":1371,"d":"$1,371"}]
["INDIANAPOLIS","IN"]
["INDIANAPOLIS","IN"]
["INDIANAPOLIS","IN"]
["INDIANAPOLIS","IN"]
["INDIANAPOLIS","IN"]
["INDIANAPOLIS","IN"]
["INDIANAPOLIS","IN"]
["INDIANAPOLIS","IN"]
["INDIANAPOLIS","IN"]
["INDIANAPOLIS","IN"]
["INDIANAPOLIS","IN"]
["INDIANAPOLIS","IN"]
["INDIANAPOLIS","IN"]
["INDIANAPOLIS","IN"]
["INDIANAPOLIS","IN"]
["INDIANAPOLIS","IN"]
["INDIANAPOLIS","IN"]
["INDIANAPOLIS","IN"]
["INDIANAPOLIS","IN"]
["INDIANAPOLIS","IN"]
["INDIANAPOLIS","IN"]
["INDIANAPOLIS","IN"]
["INDIANAPOLIS","IN"]
["LAFAYETTE","IN",null,null,{"v":813,"d":"$813"},{"v":813,"d":"$813"},{"v":813,"d":"$813"},{"v":813,"d":"$813"},{"v":915,"d":"$915"},{"v":975,"d":"$975"},{"v":1032,"d":"$1,032"},{"v":1104,"d":"$1,104"},{"v":1125,"d":"$1,125"},{"v":1005,"d":"$1,005"},{"v":1101,"d":"$1,101"},{"v":1128,"d":"$1,128"},{"v":1170,"d":"$1,170"},{"v":1194,"d":"$1,194"},{"v":1089,"d":"$1,089"},{"v":1122,"d":"$1,122"},{"v":1161,"d":"$1,161"},{"v":966,"d":"$966"},{"v":1068,"d":"$1,068"},{"v":1134,"d":"$1,134"},{"v":1191,"d":"$1,191"},{"v":1209,"d":"$1,209"},{"v":1236,"d":"$1,236"},{"v":1260,"d":"$1,260"}]
["LAFAYETTE","IN"]
["LAFAYETTE","IN"]
["LAFAYETTE","IN"]
["LAFAYETTE","IN"]
["LAFAYETTE","IN"]
["LAFAYETTE","IN"]
["LAFAYETTE","IN"]
["LAFAYETTE","IN"]
["LAFAYETTE","IN"]
["LAFAYETTE","IN"]
["LAFAYETTE","IN"]
["LAFAYETTE","IN"]
["LAFAYETTE","IN"]
["LAFAYETTE","IN"]
["LAFAYETTE","IN"]
["LAFAYETTE","IN"]
["LAFAYETTE","IN"]
["LAFAYETTE","IN"]
["LAFAYETTE","IN"]
["LAFAYETTE","IN"]
["LAFAYETTE","IN"]
["LAFAYETTE","IN"]
["LAFAYETTE","IN"]
["FORT WAYNE","IN",null,null,{"v":651,"d":"$651"},{"v":651,"d":"$651"},{"v":651,"d":"$651"},{"v":651,"d":"$651"},{"v":735,"d":"$735"},{"v":822,"d":"$822"},{"v":867,"d":"$867"},{"v":978,"d":"$978"},{"v":1023,"d":"$1,023"},{"v":828,"d":"$828"},{"v":975,"d":"$975"},{"v":1026,"d":"$1,026"},{"v":1107,"d":"$1,107"},{"v":1149,"d":"$1,149"},{"v":948,"d":"$948"},{"v":1014,"d":"$1,014"},{"v":1095,"d":"$1,095"},{"v":774,"d":"$774"},{"v":918,"d":"$918"},{"v":1041,"d":"$1,041"},{"v":1143,"d":"$1,143"},{"v":1266,"d":"$1,266"},{"v":1278,"d":"$1,278"},{"v":1290,"d":"$1,290"}]
["FORT WAYNE","IN"]
["FORT WAYNE","IN"]
["FORT WAYNE","IN"]
["FORT WAYNE","IN"]
["FORT WAYNE","IN"]
["FORT WAYNE","IN"]
["FORT WAYNE","IN"]
["FORT WAYNE","IN"]
["FORT WAYNE","IN"]
["FORT WAYNE","IN"]
["FORT WAYNE","IN"]
["FORT WAYNE","IN"]
["FORT WAYNE","IN"]
["FORT WAYNE","IN"]
["FORT WAYNE","IN"]
["FORT WAYNE","IN"]
["FORT WAYNE","IN"]
["FORT WAYNE","IN"]
["FORT WAYNE","IN"]
["FORT WAYNE","IN"]
["FORT WAYNE","IN"]
["FORT WAYNE","IN"]
["FORT WAYNE","IN"]
["SOUTH BEND","IN",null,null,{"v":726,"d":"$726"},{"v":726,"d":"$726"},{"v":726,"d":"$726"},{"v":726,"d":"$726"},{"v":810,"d":"$810"},{"v":927,"d":"$927"},{"v":975,"d":"$975"},{"v":1110,"d":"$1,110"},{"v":1161,"d":"$1,161"},{"v":927,"d":"$927"},{"v":1110,"d":"$1,110"},{"v":1164,"d":"$1,164"},{"v":1242,"d":"$1,242"},{"v":1269,"d":"$1,269"},{"v":1080,"d":"$1,080"},{"v":1149,"d":"$1,149"},{"v":1236,"d":"$1,236"},{"v":858,"d":"$858"},{"v":1041,"d":"$1,041"},{"v":1179,"d":"$1,179"},{"v":1266,"d":"$1,266"},{"v":1281,"d":"$1,281"},{"v":1308,"d":"$1,308"},{"v":1335,"d":"$1,335"}]
["SOUTH BEND","IN"]
["SOUTH BEND","IN"]
["SOUTH BEND","IN"]
["SOUTH BEND","IN"]
["SOUTH BEND","IN"]
["SOUTH BEND","IN"]
["SOUTH BEND","IN"]
["SOUTH BEND","IN"]
["SOUTH BEND","IN"]
["SOUTH BEND","IN"]
["SOUTH BEND","IN"]
["SOUTH BEND","IN"]
["SOUTH BEND","IN"]
["SOUTH BEND","IN"]
["SOUTH BEND","IN"]
["SOUTH BEND","IN"]
["SOUTH BEND","IN"]
["SOUTH BEND","IN"]
["SOUTH BEND","IN"]
["SOUTH BEND","IN"]
["SOUTH BEND","IN"]
["SOUTH BEND","IN"]
["SOUTH BEND","IN"]
["EVANSVILLE","IN",null,null,{"v":669,"d":"$669"},{"v":669,"d":"$669"},{"v":669,"d":"$669"},{"v":669,"d":"$669"},{"v":750,"d":"$750"},{"v":828,"d":"$828"},{"v":891,"d":"$891"},{"v":1008,"d":"$1,008"},{"v":1044,"d":"$1,044"},{"v":849,"d":"$849"},{"v":1008,"d":"$1,008"},{"v":1050,"d":"$1,050"},{"v":1107,"d":"$1,107"},{"v":1125,"d":"$1,125"},{"v":984,"d":"$984"},{"v":1038,"d":"$1,038"},{"v":1104,"d":"$1,104"},{"v":789,"d":"$789"},{"v":951,"d":"$951"},{"v":1062,"d":"$1,062"},{"v":1122,"d":"$1,122"},{"v":1176,"d":"$1,176"},{"v":1188,"d":"$1,188"},{"v":1200,"d":"$1,200"}]
["EVANSVILLE","IN"]
["EVANSVILLE","IN"]
["EVANSVILLE","IN"]
["EVANSVILLE","IN"]
["EVANSVILLE","IN"]
["EVANSVILLE","IN"]
["EVANSVILLE","IN"]
["EVANSVILLE","IN"]
["EVANSVILLE","IN"]
["EVANSVILLE","IN"]
["EVANSVILLE","IN"]
["EVANSVILLE","IN"]
["EVANSVILLE","IN"]
["EVANSVILLE","IN"]
["EVANSVILLE","IN"]
["EVANSVILLE","IN"]
["EVANSVILLE","IN"]
["EVANSVILLE","IN"]
["EVANSVILLE","IN"]
["EVANSVILLE","IN"]
["EVANSVILLE","IN"]
["EVANSVILLE","IN"]
["EVANSVILLE","IN"]
["TERRE HAUTE","IN",null,null,{"v":639,"d":"$639"},{"v":639,"d":"$639"},{"v":639,"d":"$639"},{"v":639,"d":"$639"},{"v":735,"d":"$735"},{"v":813,"d":"$813"},{"v":855,"d":"$855"},{"v":948,"d":"$948"},{"v":1002,"d":"$1,002"},{"v":828,"d":"$828"},{"v":945,"d":"$945"},{"v":1005,"d":"$1,005"},{"v":1095,"d":"$1,095"},{"v":1131,"d":"$1,131"},{"v":915,"d":"$915"},{"v":990,"d":"$990"},{"v":1086,"d":"$1,086"},{"v":789,"d":"$789"},{"v":894,"d":"$894"},{"v":1023,"d":"$1,023"},{"v":1125,"d":"$1,125"},{"v":1149,"d":"$1,149"},{"v":1188,"d":"$1,188"},{"v":1212,"d":"$1,212"}]
["TERRE HAUTE","IN"]
["TERRE HAUTE","IN"]
["TERRE HAUTE","IN"]
["TERRE HAUTE","IN"]
["TERRE HAUTE","IN"]
["TERRE HAUTE","IN"]
["TERRE HAUTE","IN"]
["TERRE HAUTE","IN"]
["TERRE HAUTE","IN"]
["TERRE HAUTE","IN"]
["TERRE HAUTE","IN"]
["TERRE HAUTE","IN"]
["TERRE HAUTE","IN"]
["TERRE HAUTE","IN"]
["TERRE HAUTE","IN"]
["TERRE HAUTE","IN"]
["TERRE HAUTE","IN"]
["TERRE HAUTE","IN"]
["TERRE HAUTE","IN"]
["TERRE HAUTE","IN"]
["TERRE HAUTE","IN"]
["TERRE HAUTE","IN"]
["TERRE HAUTE","IN"]
["BLOOMINGTON","IN",null,null,{"v":702,"d":"$702"},{"v":702,"d":"$702"},{"v":702,"d":"$702"},{"v":702,"d":"$702"},{"v":762,"d":"$762"},{"v":864,"d":"$864"},{"v":939,"d":"$939"},{"v":1029,"d":"$1,029"},{"v":1104,"d":"$1,104"},{"v":864,"d":"$864"},{"v":1029,"d":"$1,029"},{"v":1080,"d":"$1,080"},{"v":1176,"d":"$1,176"},{"v":1275,"d":"$1,275"},{"v":999,"d":"$999"},{"v":1065,"d":"$1,065"},{"v":1149,"d":"$1,149"},{"v":789,"d":"$789"},{"v":963,"d":"$963"},{"v":1095,"d":"$1,095"},{"v":1263,"d":"$1,263"},{"v":1326,"d":"$1,326"},{"v":1431,"d":"$1,431"},{"v":1461,"d":"$1,461"}]
["BLOOMINGTON","IN"]
["BLOOMINGTON","IN"]
["BLOOMINGTON","IN"]
["BLOOMINGTON","IN"]
["BLOOMINGTON","IN"]
["BLOOMINGTON","IN"]
["BLOOMINGTON","IN"]
["BLOOMINGTON","IN"]
["BLOOMINGTON","IN"]
["BLOOMINGTON","IN"]
["BLOOMINGTON","IN"]
["BLOOMINGTON","IN"]
["BLOOMINGTON","IN"]
["BLOOMINGTON","IN"]
["BLOOMINGTON","IN"]
["BLOOMINGTON","IN"]
["BLOOMINGTON","IN"]
["BLOOMINGTON","IN"]
["BLOOMINGTON","IN"]
["BLOOMINGTON","IN"]
["BLOOMINGTON","IN"]
["BLOOMINGTON","IN"]
["BLOOMINGTON","IN"]
["FORT RILEY","KS",null,null,{"v":768,"d":"$768"},{"v":768,"d":"$768"},{"v":768,"d":"$768"},{"v":768,"d":"$768"},{"v":861,"d":"$861"},{"v":1056,"d":"$1,056"},{"v":1062,"d":"$1,062"},{"v":1173,"d":"$1,173"},{"v":1263,"d":"$1,263"},{"v":1056,"d":"$1,056"},{"v":1170,"d":"$1,170"},{"v":1272,"d":"$1,272"},{"v":1410,"d":"$1,410"},{"v":1419,"d":"$1,419"},{"v":1113,"d":"$1,113"},{"v":1242,"d":"$1,242"},{"v":1410,"d":"$1,410"},{"v":930,"d":"$930"},{"v":1083,"d":"$1,083"},{"v":1302,"d":"$1,302"},{"v":1416,"d":"$1,416"},{"v":1422,"d":"$1,422"},{"v":1431,"d":"$1,431"},{"v":1458,"d":"$1,458"}]
["FORT RILEY","KS"]
["FORT RILEY","KS"]
["FORT RILEY","KS"]
["FORT RILEY","KS"]
["FORT RILEY","KS"]
["FORT RILEY","KS"]
["FORT RILEY","KS"]
["FORT RILEY","KS"]
["FORT RILEY","KS"]
["FORT RILEY","KS"]
["FORT RILEY","KS"]
["FORT RILEY","KS"]
["FORT RILEY","KS"]
["FORT RILEY","KS"]
["FORT RILEY","KS"]
["FORT RILEY","KS"]
["FORT RILEY","KS"]
["FORT RILEY","KS"]
["FORT RILEY","KS"]
["FORT RILEY","KS"]
["FORT RILEY","KS"]
["FORT RILEY","KS"]
["FORT RILEY","KS"]
["WICHITA/MCCONNELL AFB","KS",null,null,{"v":669,"d":"$669"},{"v":669,"d":"$669"},{"v":669,"d":"$669"},{"v":669,"d":"$669"},{"v":768,"d":"$768"},{"v":906,"d":"$906"},{"v":975,"d":"$975"},{"v":1059,"d":"$1,059"},{"v":1140,"d":"$1,140"},{"v":906,"d":"$906"},{"v":1059,"d":"$1,059"},{"v":1122,"d":"$1,122"},{"v":1230,"d":"$1,230"},{"v":1323,"d":"$1,323"},{"v":1023,"d":"$1,023"},{"v":1104,"d":"$1,104"},{"v":1206,"d":"$1,206"},{"v":783,"d":"$783"},{"v":978,"d":"$978"},{"v":1140,"d":"$1,140"},{"v":1311,"d":"$1,311"},{"v":1371,"d":"$1,371"},{"v":1470,"d":"$1,470"},{"v":1497,"d":"$1,497"}]
["WICHITA/MCCONNELL AFB","KS"]
["WICHITA/MCCONNELL AFB","KS"]
["WICHITA/MCCONNELL AFB","KS"]
["WICHITA/MCCONNELL AFB","KS"]
["WICHITA/MCCONNELL AFB","KS"]
["WICHITA/MCCONNELL AFB","KS"]
["WICHITA/MCCONNELL AFB","KS"]
["WICHITA/MCCONNELL AFB","KS"]
["WICHITA/MCCONNELL AFB","KS"]
["WICHITA/MCCONNELL AFB","KS"]
["WICHITA/MCCONNELL AFB","KS"]
["WICHITA/MCCONNELL AFB","KS"]
["WICHITA/MCCONNELL AFB","KS"]
["WICHITA/MCCONNELL AFB","KS"]
["WICHITA/MCCONNELL AFB","KS"]
["WICHITA/MCCONNELL AFB","KS"]
["WICHITA/MCCONNELL AFB","KS"]
["WICHITA/MCCONNELL AFB","KS"]
["WICHITA/MCCONNELL AFB","KS"]
["WICHITA/MCCONNELL AFB","KS"]
["WICHITA/MCCONNELL AFB","KS"]
["WICHITA/MCCONNELL AFB","KS"]
["WICHITA/MCCONNELL AFB","KS"]
["FORT LEAVENWORTH","KS",null,null,{"v":663,"d":"$663"},{"v":663,"d":"$663"},{"v":663,"d":"$663"},{"v":663,"d":"$663"},{"v":747,"d":"$747"},{"v":918,"d":"$918"},{"v":981,"d":"$981"},{"v":1047,"d":"$1,047"},{"v":1143,"d":"$1,143"},{"v":921,"d":"$921"},{"v":1023,"d":"$1,023"},{"v":1110,"d":"$1,110"},{"v":1245,"d":"$1,245"},{"v":1326,"d":"$1,326"},{"v":993,"d":"$993"},{"v":1083,"d":"$1,083"},{"v":1224,"d":"$1,224"},{"v":789,"d":"$789"},{"v":942,"d":"$942"},{"v":1134,"d":"$1,134"},{"v":1317,"d":"$1,317"},{"v":1422,"d":"$1,422"},{"v":1452,"d":"$1,452"},{"v":1482,"d":"$1,482"}]
["FORT LEAVENWORTH","KS"]
["FORT LEAVENWORTH","KS"]
["FORT LEAVENWORTH","KS"]
["FORT LEAVENWORTH","KS"]
["FORT LEAVENWORTH","KS"]
["FORT LEAVENWORTH","KS"]
["FORT LEAVENWORTH","KS"]
["FORT LEAVENWORTH","KS"]
["FORT LEAVENWORTH","KS"]
["FORT LEAVENWORTH","KS"]
["FORT LEAVENWORTH","KS"]
["FORT LEAVENWORTH","KS"]
["FORT LEAVENWORTH","KS"]
["FORT LEAVENWORTH","KS"]
["FORT LEAVENWORTH","KS"]
["FORT LEAVENWORTH","KS"]
["FORT LEAVENWORTH","KS"]
["FORT LEAVENWORTH","KS"]
["FORT LEAVENWORTH","KS"]
["FORT LEAVENWORTH","KS"]
["FORT LEAVENWORTH","KS"]
["FORT LEAVENWORTH","KS"]
["FORT LEAVENWORTH","KS"]
["LAWRENCE","KS",null,null,{"v":735,"d":"$735"},{"v":735,"d":"$735"},{"v":735,"d":"$735"},{"v":735,"d":"$735"},{"v":843,"d":"$843"},{"v":903,"d":"$903"},{"v":963,"d":"$963"},{"v":1056,"d":"$1,056"},{"v":1116,"d":"$1,116"},{"v":933,"d":"$933"},{"v":1053,"d":"$1,053"},{"v":1116,"d":"$1,116"},{"v":1221,"d":"$1,221"},{"v":1305,"d":"$1,305"},{"v":1017,"d":"$1,017"},{"v":1098,"d":"$1,098"},{"v":1200,"d":"$1,200"},{"v":894,"d":"$894"},{"v":996,"d":"$996"},{"v":1134,"d":"$1,134"},{"v":1293,"d":"$1,293"},{"v":1347,"d":"$1,347"},{"v":1431,"d":"$1,431"},{"v":1461,"d":"$1,461"}]
["LAWRENCE","KS"]
["LAWRENCE","KS"]
["LAWRENCE","KS"]
["LAWRENCE","KS"]
["LAWRENCE","KS"]
["LAWRENCE","KS"]
["LAWRENCE","KS"]
["LAWRENCE","KS"]
["LAWRENCE","KS"]
["LAWRENCE","KS"]
["LAWRENCE","KS"]
["LAWRENCE","KS"]
["LAWRENCE","KS"]
["LAWRENCE","KS"]
["LAWRENCE","KS"]
["LAWRENCE","KS"]
["LAWRENCE","KS"]
["LAWRENCE","KS"]
["LAWRENCE","KS"]
["LAWRENCE","KS"]
["LAWRENCE","KS"]
["LAWRENCE","KS"]
["LAWRENCE","KS"]
["TOPEKA","KS",null,null,{"v":684,"d":"$684"},{"v":684,"d":"$684"},{"v":684,"d":"$684"},{"v":684,"d":"$684"},{"v":771,"d":"$771"},{"v":939,"d":"$939"},{"v":963,"d":"$963"},{"v":1071,"d":"$1,071"},{"v":1140,"d":"$1,140"},{"v":939,"d":"$939"},{"v":1068,"d":"$1,068"},{"v":1146,"d":"$1,146"},{"v":1257,"d":"$1,257"},{"v":1293,"d":"$1,293"},{"v":1026,"d":"$1,026"},{"v":1125,"d":"$1,125"},{"v":1251,"d":"$1,251"},{"v":795,"d":"$795"},{"v":987,"d":"$987"},{"v":1170,"d":"$1,170"},{"v":1287,"d":"$1,287"},{"v":1308,"d":"$1,308"},{"v":1344,"d":"$1,344"},{"v":1371,"d":"$1,371"}]
["TOPEKA","KS"]
["TOPEKA","KS"]
["TOPEKA","KS"]
["TOPEKA","KS"]
["TOPEKA","KS"]
["TOPEKA","KS"]
["TOPEKA","KS"]
["TOPEKA","KS"]
["TOPEKA","KS"]
["TOPEKA","KS"]
["TOPEKA","KS"]
["TOPEKA","KS"]
["TOPEKA","KS"]
["TOPEKA","KS"]
["TOPEKA","KS"]
["TOPEKA","KS"]
["TOPEKA","KS"]
["TOPEKA","KS"]
["TOPEKA","KS"]
["TOPEKA","KS"]
["TOPEKA","KS"]
["TOPEKA","KS"]
["TOPEKA","KS"]
["SALINA","KS",null,null,{"v":588,"d":"$588"},{"v":588,"d":"$588"},{"v":588,"d":"$588"},{"v":588,"d":"$588"},{"v":666,"d":"$666"},{"v":744,"d":"$744"},{"v":789,"d":"$789"},{"v":879,"d":"$879"},{"v":921,"d":"$921"},{"v":759,"d":"$759"},{"v":876,"d":"$876"},{"v":927,"d":"$927"},{"v":1005,"d":"$1,005"},{"v":1059,"d":"$1,059"},{"v":849,"d":"$849"},{"v":912,"d":"$912"},{"v":993,"d":"$993"},{"v":720,"d":"$720"},{"v":828,"d":"$828"},{"v":942,"d":"$942"},{"v":1053,"d":"$1,053"},{"v":1086,"d":"$1,086"},{"v":1143,"d":"$1,143"},{"v":1164,"d":"$1,164"}]
["SALINA","KS"]
["SALINA","KS"]
["SALINA","KS"]
["SALINA","KS"]
["SALINA","KS"]
["SALINA","KS"]
["SALINA","KS"]
["SALINA","KS"]
["SALINA","KS"]
["SALINA","KS"]
["SALINA","KS"]
["SALINA","KS"]
["SALINA","KS"]
["SALINA","KS"]
["SALINA","KS"]
["SALINA","KS"]
["SALINA","KS"]
["SALINA","KS"]
["SALINA","KS"]
["SALINA","KS"]
["SALINA","KS"]
["SALINA","KS"]
["SALINA","KS"]
["FORT CAMPBELL","KY",null,null,{"v":732,"d":"$732"},{"v":732,"d":"$732"},{"v":732,"d":"$732"},{"v":732,"d":"$732"},{"v":804,"d":"$804"},{"v":858,"d":"$858"},{"v":942,"d":"$942"},{"v":1035,"d":"$1,035"},{"v":1113,"d":"$1,113"},{"v":858,"d":"$858"},{"v":981,"d":"$981"},{"v":1095,"d":"$1,095"},{"v":1170,"d":"$1,170"},{"v":1287,"d":"$1,287"},{"v":963,"d":"$963"},{"v":1080,"d":"$1,080"},{"v":1143,"d":"$1,143"},{"v":840,"d":"$840"},{"v":879,"d":"$879"},{"v":1092,"d":"$1,092"},{"v":1269,"d":"$1,269"},{"v":1344,"d":"$1,344"},{"v":1461,"d":"$1,461"},{"v":1491,"d":"$1,491"}]
["FORT CAMPBELL","KY"]
["FORT CAMPBELL","KY"]
["FORT CAMPBELL","KY"]
["FORT CAMPBELL","KY"]
["FORT CAMPBELL","KY"]
["FORT CAMPBELL","KY"]
["FORT CAMPBELL","KY"]
["FORT CAMPBELL","KY"]
["FORT CAMPBELL","KY"]
["FORT CAMPBELL","KY"]
["FORT CAMPBELL","KY"]
["FORT CAMPBELL","KY"]
["FORT CAMPBELL","KY"]
["FORT CAMPBELL","KY"]
["FORT CAMPBELL","KY"]
["FORT CAMPBELL","KY"]
["FORT CAMPBELL","KY"]
["FORT CAMPBELL","KY"]
["FORT CAMPBELL","KY"]
["FORT CAMPBELL","KY"]
["FORT CAMPBELL","KY"]
["FORT CAMPBELL","KY"]
["FORT CAMPBELL","KY"]
["LEXINGTON","KY",null,null,{"v":699,"d":"$699"},{"v":699,"d":"$699"},{"v":699,"d":"$699"},{"v":699,"d":"$699"},{"v":786,"d":"$786"},{"v":888,"d":"$888"},{"v":939,"d":"$939"},{"v":1074,"d":"$1,074"},{"v":1116,"d":"$1,116"},{"v":891,"d":"$891"},{"v":1074,"d":"$1,074"},{"v":1122,"d":"$1,122"},{"v":1194,"d":"$1,194"},{"v":1236,"d":"$1,236"},{"v":1047,"d":"$1,047"},{"v":1107,"d":"$1,107"},{"v":1182,"d":"$1,182"},{"v":819,"d":"$819"},{"v":1008,"d":"$1,008"},{"v":1134,"d":"$1,134"},{"v":1230,"d":"$1,230"},{"v":1257,"d":"$1,257"},{"v":1299,"d":"$1,299"},{"v":1326,"d":"$1,326"}]
["LEXINGTON","KY"]
["LEXINGTON","KY"]
["LEXINGTON","KY"]
["LEXINGTON","KY"]
["LEXINGTON","KY"]
["LEXINGTON","KY"]
["LEXINGTON","KY"]
["LEXINGTON","KY"]
["LEXINGTON","KY"]
["LEXINGTON","KY"]
["LEXINGTON","KY"]
["LEXINGTON","KY"]
["LEXINGTON","KY"]
["LEXINGTON","KY"]
["LEXINGTON","KY"]
["LEXINGTON","KY"]
["LEXINGTON","KY"]
["LEXINGTON","KY"]
["LEXINGTON","KY"]
["LEXINGTON","KY"]
["LEXINGTON","KY"]
["LEXINGTON","KY"]
["LEXINGTON","KY"]
["LOUISVILLE","KY",null,null,{"v":840,"d":"$840"},{"v":840,"d":"$840"},{"v":840,"d":"$840"},{"v":840,"d":"$840"},{"v":951,"d":"$951"},{"v":1017,"d":"$1,017"},{"v":1104,"d":"$1,104"},{"v":1218,"d":"$1,218"},{"v":1332,"d":"$1,332"},{"v":1062,"d":"$1,062"},{"v":1215,"d":"$1,215"},{"v":1287,"d":"$1,287"},{"v":1356,"d":"$1,356"},{"v":1497,"d":"$1,497"},{"v":1191,"d":"$1,191"},{"v":1266,"d":"$1,266"},{"v":1362,"d":"$1,362"},{"v":1005,"d":"$1,005"},{"v":1158,"d":"$1,158"},{"v":1281,"d":"$1,281"},{"v":1479,"d":"$1,479"},{"v":1578,"d":"$1,578"},{"v":1713,"d":"$1,713"},{"v":1749,"d":"$1,749"}]
["LOUISVILLE","KY"]
["LOUISVILLE","KY"]
["LOUISVILLE","KY"]
["LOUISVILLE","KY"]
["LOUISVILLE","KY"]
["LOUISVILLE","KY"]
["LOUISVILLE","KY"]
["LOUISVILLE","KY"]
["LOUISVILLE","KY"]
["LOUISVILLE","KY"]
["LOUISVILLE","KY"]
["LOUISVILLE","KY"]
["LOUISVILLE","KY"]
["LOUISVILLE","KY"]
["LOUISVILLE","KY"]
["LOUISVILLE","KY"]
["LOUISVILLE","KY"]
["LOUISVILLE","KY"]
["LOUISVILLE","KY"]
["LOUISVILLE","KY"]
["LOUISVILLE","KY"]
["LOUISVILLE","KY"]
["LOUISVILLE","KY"]
["FORT KNOX","KY",null,null,{"v":612,"d":"$612"},{"v":612,"d":"$612"},{"v":612,"d":"$612"},{"v":612,"d":"$612"},{"v":699,"d":"$699"},{"v":954,"d":"$954"},{"v":981,"d":"$981"},{"v":1008,"d":"$1,008"},{"v":1104,"d":"$1,104"},{"v":954,"d":"$954"},{"v":996,"d":"$996"},{"v":1113,"d":"$1,113"},{"v":1278,"d":"$1,278"},{"v":1314,"d":"$1,314"},{"v":987,"d":"$987"},{"v":1080,"d":"$1,080"},{"v":1269,"d":"$1,269"},{"v":726,"d":"$726"},{"v":948,"d":"$948"},{"v":1149,"d":"$1,149"},{"v":1311,"d":"$1,311"},{"v":1332,"d":"$1,332"},{"v":1371,"d":"$1,371"},{"v":1398,"d":"$1,398"}]
["FORT KNOX","KY"]
["FORT KNOX","KY"]
["FORT KNOX","KY"]
["FORT KNOX","KY"]
["FORT KNOX","KY"]
["FORT KNOX","KY"]
["FORT KNOX","KY"]
["FORT KNOX","KY"]
["FORT KNOX","KY"]
["FORT KNOX","KY"]
["FORT KNOX","KY"]
["FORT KNOX","KY"]
["FORT KNOX","KY"]
["FORT KNOX","KY"]
["FORT KNOX","KY"]
["FORT KNOX","KY"]
["FORT KNOX","KY"]
["FORT KNOX","KY"]
["FORT KNOX","KY"]
["FORT KNOX","KY"]
["FORT KNOX","KY"]
["FORT KNOX","KY"]
["FORT KNOX","KY"]
["OWENSBORO","KY",null,null,{"v":588,"d":"$588"},{"v":588,"d":"$588"},{"v":588,"d":"$588"},{"v":588,"d":"$588"},{"v":678,"d":"$678"},{"v":738,"d":"$738"},{"v":789,"d":"$789"},{"v":867,"d":"$867"},{"v":921,"d":"$921"},{"v":765,"d":"$765"},{"v":867,"d":"$867"},{"v":912,"d":"$912"},{"v":993,"d":"$993"},{"v":1065,"d":"$1,065"},{"v":840,"d":"$840"},{"v":900,"d":"$900"},{"v":975,"d":"$975"},{"v":729,"d":"$729"},{"v":822,"d":"$822"},{"v":927,"d":"$927"},{"v":1056,"d":"$1,056"},{"v":1131,"d":"$1,131"},{"v":1176,"d":"$1,176"},{"v":1200,"d":"$1,200"}]
["OWENSBORO","KY"]
["OWENSBORO","KY"]
["OWENSBORO","KY"]
["OWENSBORO","KY"]
["OWENSBORO","KY"]
["OWENSBORO","KY"]
["OWENSBORO","KY"]
["OWENSBORO","KY"]
["OWENSBORO","KY"]
["OWENSBORO","KY"]
["OWENSBORO","KY"]
["OWENSBORO","KY"]
["OWENSBORO","KY"]
["OWENSBORO","KY"]
["OWENSBORO","KY"]
["OWENSBORO","KY"]
["OWENSBORO","KY"]
["OWENSBORO","KY"]
["OWENSBORO","KY"]
["OWENSBORO","KY"]
["OWENSBORO","KY"]
["OWENSBORO","KY"]
["OWENSBORO","KY"]
["FRANKFORT","KY",null,null,{"v":606,"d":"$606"},{"v":606,"d":"$606"},{"v":606,"d":"$606"},{"v":606,"d":"$606"},{"v":690,"d":"$690"},{"v":738,"d":"$738"},{"v":795,"d":"$795"},{"v":867,"d":"$867"},{"v":942,"d":"$942"},{"v":768,"d":"$768"},{"v":867,"d":"$867"},{"v":906,"d":"$906"},{"v":954,"d":"$954"},{"v":1056,"d":"$1,056"},{"v":852,"d":"$852"},{"v":891,"d":"$891"},{"v":963,"d":"$963"},{"v":729,"d":"$729"},{"v":831,"d":"$831"},{"v":903,"d":"$903"},{"v":1041,"d":"$1,041"},{"v":1122,"d":"$1,122"},{"v":1209,"d":"$1,209"},{"v":1233,"d":"$1,233"}]
["FRANKFORT","KY"]
["FRANKFORT","KY"]
["FRANKFORT","KY"]
["FRANKFORT","KY"]
["FRANKFORT","KY"]
["FRANKFORT","KY"]
["FRANKFORT","KY"]
["FRANKFORT","KY"]
["FRANKFORT","KY"]
["FRANKFORT","KY"]
["FRANKFORT","KY"]
["FRANKFORT","KY"]
["FRANKFORT","KY"]
["FRANKFORT","KY"]
["FRANKFORT","KY"]
["FRANKFORT","KY"]
["FRANKFORT","KY"]
["FRANKFORT","KY"]
["FRANKFORT","KY"]
["FRANKFORT","KY"]
["FRANKFORT","KY"]
["FRANKFORT","KY"]
["FRANKFORT","KY"]
["BOWLING GREEN","KY",null,null,{"v":699,"d":"$699"},{"v":699,"d":"$699"},{"v":699,"d":"$699"},{"v":699,"d":"$699"},{"v":759,"d":"$759"},{"v":798,"d":"$798"},{"v":840,"d":"$840"},{"v":906,"d":"$906"},{"v":984,"d":"$984"},{"v":819,"d":"$819"},{"v":903,"d":"$903"},{"v":939,"d":"$939"},{"v":1008,"d":"$1,008"},{"v":1119,"d":"$1,119"},{"v":885,"d":"$885"},{"v":930,"d":"$930"},{"v":1026,"d":"$1,026"},{"v":789,"d":"$789"},{"v":867,"d":"$867"},{"v":951,"d":"$951"},{"v":1161,"d":"$1,161"},{"v":1341,"d":"$1,341"},{"v":1353,"d":"$1,353"},{"v":1368,"d":"$1,368"}]
["BOWLING GREEN","KY"]
["BOWLING GREEN","KY"]
["BOWLING GREEN","KY"]
["BOWLING GREEN","KY"]
["BOWLING GREEN","KY"]
["BOWLING GREEN","KY"]
["BOWLING GREEN","KY"]
["BOWLING GREEN","KY"]
["BOWLING GREEN","KY"]
["BOWLING GREEN","KY"]
["BOWLING GREEN","KY"]
["BOWLING GREEN","KY"]
["BOWLING GREEN","KY"]
["BOWLING GREEN","KY"]
["BOWLING GREEN","KY"]
["BOWLING GREEN","KY"]
["BOWLING GREEN","KY"]
["BOWLING GREEN","KY"]
["BOWLING GREEN","KY"]
["BOWLING GREEN","KY"]
["BOWLING GREEN","KY"]
["BOWLING GREEN","KY"]
["BOWLING GREEN","KY"]
["PADUCAH","KY",null,null,{"v":615,"d":"$615"},{"v":615,"d":"$615"},{"v":615,"d":"$615"},{"v":615,"d":"$615"},{"v":666,"d":"$666"},{"v":804,"d":"$804"},{"v":849,"d":"$849"},{"v":900,"d":"$900"},{"v":960,"d":"$960"},{"v":804,"d":"$804"},{"v":870,"d":"$870"},{"v":957,"d":"$957"},{"v":1086,"d":"$1,086"},{"v":1149,"d":"$1,149"},{"v":858,"d":"$858"},{"v":933,"d":"$933"},{"v":1071,"d":"$1,071"},{"v":690,"d":"$690"},{"v":801,"d":"$801"},{"v":981,"d":"$981"},{"v":1140,"d":"$1,140"},{"v":1179,"d":"$1,179"},{"v":1239,"d":"$1,239"},{"v":1266,"d":"$1,266"}]
["PADUCAH","KY"]
["PADUCAH","KY"]
["PADUCAH","KY"]
["PADUCAH","KY"]
["PADUCAH","KY"]
["PADUCAH","KY"]
["PADUCAH","KY"]
["PADUCAH","KY"]
["PADUCAH","KY"]
["PADUCAH","KY"]
["PADUCAH","KY"]
["PADUCAH","KY"]
["PADUCAH","KY"]
["PADUCAH","KY"]
["PADUCAH","KY"]
["PADUCAH","KY"]
["PADUCAH","KY"]
["PADUCAH","KY"]
["PADUCAH","KY"]
["PADUCAH","KY"]
["PADUCAH","KY"]
["PADUCAH","KY"]
["PADUCAH","KY"]
["ALEXANDRIA","LA",null,null,{"v":732,"d":"$732"},{"v":732,"d":"$732"},{"v":732,"d":"$732"},{"v":732,"d":"$732"},{"v":867,"d":"$867"},{"v":966,"d":"$966"},{"v":984,"d":"$984"},{"v":1182,"d":"$1,182"},{"v":1224,"d":"$1,224"},{"v":966,"d":"$966"},{"v":1182,"d":"$1,182"},{"v":1227,"d":"$1,227"},{"v":1290,"d":"$1,290"},{"v":1302,"d":"$1,302"},{"v":1155,"d":"$1,155"},{"v":1215,"d":"$1,215"},{"v":1287,"d":"$1,287"},{"v":879,"d":"$879"},{"v":1095,"d":"$1,095"},{"v":1239,"d":"$1,239"},{"v":1302,"d":"$1,302"},{"v":1365,"d":"$1,365"},{"v":1380,"d":"$1,380"},{"v":1392,"d":"$1,392"}]
["ALEXANDRIA","LA"]
["ALEXANDRIA","LA"]
["ALEXANDRIA","LA"]
["ALEXANDRIA","LA"]
["ALEXANDRIA","LA"]
["ALEXANDRIA","LA"]
["ALEXANDRIA","LA"]
["ALEXANDRIA","LA"]
["ALEXANDRIA","LA"]
["ALEXANDRIA","LA"]
["ALEXANDRIA","LA"]
["ALEXANDRIA","LA"]
["ALEXANDRIA","LA"]
["ALEXANDRIA","LA"]
["ALEXANDRIA","LA"]
["ALEXANDRIA","LA"]
["ALEXANDRIA","LA"]
["ALEXANDRIA","LA"]
["ALEXANDRIA","LA"]
["ALEXANDRIA","LA"]
["ALEXANDRIA","LA"]
["ALEXANDRIA","LA"]
["ALEXANDRIA","LA"]
["BATON ROUGE","LA",null,null,{"v":966,"d":"$966"},{"v":966,"d":"$966"},{"v":966,"d":"$966"},{"v":966,"d":"$966"},{"v":1074,"d":"$1,074"},{"v":1137,"d":"$1,137"},{"v":1206,"d":"$1,206"},{"v":1299,"d":"$1,299"},{"v":1332,"d":"$1,332"},{"v":1173,"d":"$1,173"},{"v":1299,"d":"$1,299"},{"v":1335,"d":"$1,335"},{"v":1404,"d":"$1,404"},{"v":1482,"d":"$1,482"},{"v":1278,"d":"$1,278"},{"v":1326,"d":"$1,326"},{"v":1383,"d":"$1,383"},{"v":1125,"d":"$1,125"},{"v":1254,"d":"$1,254"},{"v":1347,"d":"$1,347"},{"v":1473,"d":"$1,473"},{"v":1662,"d":"$1,662"},{"v":1677,"d":"$1,677"},{"v":1695,"d":"$1,695"}]
["BATON ROUGE","LA"]
["BATON ROUGE","LA"]
["BATON ROUGE","LA"]
["BATON ROUGE","LA"]
["BATON ROUGE","LA"]
["BATON ROUGE","LA"]
["BATON ROUGE","LA"]
["BATON ROUGE","LA"]
["BATON ROUGE","LA"]
["BATON ROUGE","LA"]
["BATON ROUGE","LA"]
["BATON ROUGE","LA"]
["BATON ROUGE","LA"]
["BATON ROUGE","LA"]
["BATON ROUGE","LA"]
["BATON ROUGE","LA"]
["BATON ROUGE","LA"]
["BATON ROUGE","LA"]
["BATON ROUGE","LA"]
["BATON ROUGE","LA"]
["BATON ROUGE","LA"]
["BATON ROUGE","LA"]
["BATON ROUGE","LA"]
["FORT POLK","LA",null,null,{"v":639,"d":"$639"},{"v":639,"d":"$639"},{"v":639,"d":"$639"},{"v":639,"d":"$639"},{"v":762,"d":"$762"},{"v":828,"d":"$828"},{"v":852,"d":"$852"},{"v":912,"d":"$912"},{"v":975,"d":"$975"},{"v":840,"d":"$840"},{"v":912,"d":"$912"},{"v":975,"d":"$975"},{"v":1074,"d":"$1,074"},{"v":1146,"d":"$1,146"},{"v":879,"d":"$879"},{"v":957,"d":"$957"},{"v":1056,"d":"$1,056"},{"v":825,"d":"$825"},{"v":870,"d":"$870"},{"v":990,"d":"$990"},{"v":1134,"d":"$1,134"},{"v":1179,"d":"$1,179"},{"v":1254,"d":"$1,254"},{"v":1278,"d":"$1,278"}]
["FORT POLK","LA"]
["FORT POLK","LA"]
["FORT POLK","LA"]
["FORT POLK","LA"]
["FORT POLK","LA"]
["FORT POLK","LA"]
["FORT POLK","LA"]
["FORT POLK","LA"]
["FORT POLK","LA"]
["FORT POLK","LA"]
["FORT POLK","LA"]
["FORT POLK","LA"]
["FORT POLK","LA"]
["FORT POLK","LA"]
["FORT POLK","LA"]
["FORT POLK","LA"]
["FORT POLK","LA"]
["FORT POLK","LA"]
["FORT POLK","LA"]
["FORT POLK","LA"]
["FORT POLK","LA"]
["FORT POLK","LA"]
["FORT POLK","LA"]
["NEW ORLEANS","LA",null,null,{"v":903,"d":"$903"},{"v":903,"d":"$903"},{"v":903,"d":"$903"},{"v":903,"d":"$903"},{"v":1056,"d":"$1,056"},{"v":1206,"d":"$1,206"},{"v":1218,"d":"$1,218"},{"v":1323,"d":"$1,323"},{"v":1431,"d":"$1,431"},{"v":1206,"d":"$1,206"},{"v":1317,"d":"$1,317"},{"v":1443,"d":"$1,443"},{"v":1611,"d":"$1,611"},{"v":1629,"d":"$1,629"},{"v":1251,"d":"$1,251"},{"v":1407,"d":"$1,407"},{"v":1605,"d":"$1,605"},{"v":1131,"d":"$1,131"},{"v":1230,"d":"$1,230"},{"v":1479,"d":"$1,479"},{"v":1629,"d":"$1,629"},{"v":1641,"d":"$1,641"},{"v":1659,"d":"$1,659"},{"v":1692,"d":"$1,692"}]
["NEW ORLEANS","LA"]
["NEW ORLEANS","LA"]
["NEW ORLEANS","LA"]
["NEW ORLEANS","LA"]
["NEW ORLEANS","LA"]
["NEW ORLEANS","LA"]
["NEW ORLEANS","LA"]
["NEW ORLEANS","LA"]
["NEW ORLEANS","LA"]
["NEW ORLEANS","LA"]
["NEW ORLEANS","LA"]
["NEW ORLEANS","LA"]
["NEW ORLEANS","LA"]
["NEW ORLEANS","LA"]
["NEW ORLEANS","LA"]
["NEW ORLEANS","LA"]
["NEW ORLEANS","LA"]
["NEW ORLEANS","LA"]
["NEW ORLEANS","LA"]
["NEW ORLEANS","LA"]
["NEW ORLEANS","LA"]
["NEW ORLEANS","LA"]
["NEW ORLEANS","LA"]
["SHREVEPORT/BARKSDALE AFB","LA",null,null,{"v":795,"d":"$795"},{"v":795,"d":"$795"},{"v":795,"d":"$795"},{"v":795,"d":"$795"},{"v":885,"d":"$885"},{"v":1065,"d":"$1,065"},{"v":1101,"d":"$1,101"},{"v":1152,"d":"$1,152"},{"v":1254,"d":"$1,254"},{"v":1065,"d":"$1,065"},{"v":1146,"d":"$1,146"},{"v":1263,"d":"$1,263"},{"v":1431,"d":"$1,431"},{"v":1479,"d":"$1,479"},{"v":1107,"d":"$1,107"},{"v":1230,"d":"$1,230"},{"v":1419,"d":"$1,419"},{"v":927,"d":"$927"},{"v":1059,"d":"$1,059"},{"v":1299,"d":"$1,299"},{"v":1473,"d":"$1,473"},{"v":1578,"d":"$1,578"},{"v":1593,"d":"$1,593"},{"v":1608,"d":"$1,608"}]
["SHREVEPORT/BARKSDALE AFB","LA"]
["SHREVEPORT/BARKSDALE AFB","LA"]
["SHREVEPORT/BARKSDALE AFB","LA"]
["SHREVEPORT/BARKSDALE AFB","LA"]
["SHREVEPORT/BARKSDALE AFB","LA"]
["SHREVEPORT/BARKSDALE AFB","LA"]
["SHREVEPORT/BARKSDALE AFB","LA"]
["SHREVEPORT/BARKSDALE AFB","LA"]
["SHREVEPORT/BARKSDALE AFB","LA"]
["SHREVEPORT/BARKSDALE AFB","LA"]
["SHREVEPORT/BARKSDALE AFB","LA"]
["SHREVEPORT/BARKSDALE AFB","LA"]
["SHREVEPORT/BARKSDALE AFB","LA"]
["SHREVEPORT/BARKSDALE AFB","LA"]
["SHREVEPORT/BARKSDALE AFB","LA"]
["SHREVEPORT/BARKSDALE AFB","LA"]
["SHREVEPORT/BARKSDALE AFB","LA"]
["SHREVEPORT/BARKSDALE AFB","LA"]
["SHREVEPORT/BARKSDALE AFB","LA"]
["SHREVEPORT/BARKSDALE AFB","LA"]
["SHREVEPORT/BARKSDALE AFB","LA"]
["SHREVEPORT/BARKSDALE AFB","LA"]
["SHREVEPORT/BARKSDALE AFB","LA"]
["LAFAYETTE COUNTY","LA",null,null,{"v":792,"d":"$792"},{"v":792,"d":"$792"},{"v":792,"d":"$792"},{"v":792,"d":"$792"},{"v":888,"d":"$888"},{"v":1053,"d":"$1,053"},{"v":1077,"d":"$1,077"},{"v":1218,"d":"$1,218"},{"v":1290,"d":"$1,290"},{"v":1053,"d":"$1,053"},{"v":1218,"d":"$1,218"},{"v":1299,"d":"$1,299"},{"v":1413,"d":"$1,413"},{"v":1443,"d":"$1,443"},{"v":1173,"d":"$1,173"},{"v":1275,"d":"$1,275"},{"v":1404,"d":"$1,404"},{"v":936,"d":"$936"},{"v":1134,"d":"$1,134"},{"v":1320,"d":"$1,320"},{"v":1440,"d":"$1,440"},{"v":1458,"d":"$1,458"},{"v":1491,"d":"$1,491"},{"v":1521,"d":"$1,521"}]
["LAFAYETTE COUNTY","LA"]
["LAFAYETTE COUNTY","LA"]
["LAFAYETTE COUNTY","LA"]
["LAFAYETTE COUNTY","LA"]
["LAFAYETTE COUNTY","LA"]
["LAFAYETTE COUNTY","LA"]
["LAFAYETTE COUNTY","LA"]
["LAFAYETTE COUNTY","LA"]
["LAFAYETTE COUNTY","LA"]
["LAFAYETTE COUNTY","LA"]
["LAFAYETTE COUNTY","LA"]
["LAFAYETTE COUNTY","LA"]
["LAFAYETTE COUNTY","LA"]
["LAFAYETTE COUNTY","LA"]
["LAFAYETTE COUNTY","LA"]
["LAFAYETTE COUNTY","LA"]
["LAFAYETTE COUNTY","LA"]
["LAFAYETTE COUNTY","LA"]
["LAFAYETTE COUNTY","LA"]
["LAFAYETTE COUNTY","LA"]
["LAFAYETTE COUNTY","LA"]
["LAFAYETTE COUNTY","LA"]
["LAFAYETTE COUNTY","LA"]
["ST MARY AND TERREBONNE","LA",null,null,{"v":837,"d":"$837"},{"v":837,"d":"$837"},{"v":837,"d":"$837"},{"v":837,"d":"$837"},{"v":936,"d":"$936"},{"v":1113,"d":"$1,113"},{"v":1173,"d":"$1,173"},{"v":1296,"d":"$1,296"},{"v":1368,"d":"$1,368"},{"v":1116,"d":"$1,116"},{"v":1293,"d":"$1,293"},{"v":1377,"d":"$1,377"},{"v":1503,"d":"$1,503"},{"v":1584,"d":"$1,584"},{"v":1248,"d":"$1,248"},{"v":1353,"d":"$1,353"},{"v":1485,"d":"$1,485"},{"v":981,"d":"$981"},{"v":1203,"d":"$1,203"},{"v":1398,"d":"$1,398"},{"v":1572,"d":"$1,572"},{"v":1623,"d":"$1,623"},{"v":1707,"d":"$1,707"},{"v":1740,"d":"$1,740"}]
["ST MARY AND TERREBONNE","LA"]
["ST MARY AND TERREBONNE","LA"]
["ST MARY AND TERREBONNE","LA"]
["ST MARY AND TERREBONNE","LA"]
["ST MARY AND TERREBONNE","LA"]
["ST MARY AND TERREBONNE","LA"]
["ST MARY AND TERREBONNE","LA"]
["ST MARY AND TERREBONNE","LA"]
["ST MARY AND TERREBONNE","LA"]
["ST MARY AND TERREBONNE","LA"]
["ST MARY AND TERREBONNE","LA"]
["ST MARY AND TERREBONNE","LA"]
["ST MARY AND TERREBONNE","LA"]
["ST MARY AND TERREBONNE","LA"]
["ST MARY AND TERREBONNE","LA"]
["ST MARY AND TERREBONNE","LA"]
["ST MARY AND TERREBONNE","LA"]
["ST MARY AND TERREBONNE","LA"]
["ST MARY AND TERREBONNE","LA"]
["ST MARY AND TERREBONNE","LA"]
["ST MARY AND TERREBONNE","LA"]
["ST MARY AND TERREBONNE","LA"]
["ST MARY AND TERREBONNE","LA"]
["LAKE CHARLES","LA",null,null,{"v":864,"d":"$864"},{"v":864,"d":"$864"},{"v":864,"d":"$864"},{"v":864,"d":"$864"},{"v":966,"d":"$966"},{"v":1023,"d":"$1,023"},{"v":1083,"d":"$1,083"},{"v":1167,"d":"$1,167"},{"v":1206,"d":"$1,206"},{"v":1053,"d":"$1,053"},{"v":1164,"d":"$1,164"},{"v":1209,"d":"$1,209"},{"v":1284,"d":"$1,284"},{"v":1362,"d":"$1,362"},{"v":1140,"d":"$1,140"},{"v":1197,"d":"$1,197"},{"v":1266,"d":"$1,266"},{"v":1014,"d":"$1,014"},{"v":1119,"d":"$1,119"},{"v":1221,"d":"$1,221"},{"v":1350,"d":"$1,350"},{"v":1401,"d":"$1,401"},{"v":1479,"d":"$1,479"},{"v":1509,"d":"$1,509"}]
["LAKE CHARLES","LA"]
["LAKE CHARLES","LA"]
["LAKE CHARLES","LA"]
["LAKE CHARLES","LA"]
["LAKE CHARLES","LA"]
["LAKE CHARLES","LA"]
["LAKE CHARLES","LA"]
["LAKE CHARLES","LA"]
["LAKE CHARLES","LA"]
["LAKE CHARLES","LA"]
["LAKE CHARLES","LA"]
["LAKE CHARLES","LA"]
["LAKE CHARLES","LA"]
["LAKE CHARLES","LA"]
["LAKE CHARLES","LA"]
["LAKE CHARLES","LA"]
["LAKE CHARLES","LA"]
["LAKE CHARLES","LA"]
["LAKE CHARLES","LA"]
["LAKE CHARLES","LA"]
["LAKE CHARLES","LA"]
["LAKE CHARLES","LA"]
["LAKE CHARLES","LA"]
["MONROE","LA",null,null,{"v":690,"d":"$690"},{"v":690,"d":"$690"},{"v":690,"d":"$690"},{"v":690,"d":"$690"},{"v":759,"d":"$759"},{"v":906,"d":"$906"},{"v":912,"d":"$912"},{"v":975,"d":"$975"},{"v":1065,"d":"$1,065"},{"v":906,"d":"$906"},{"v":972,"d":"$972"},{"v":1074,"d":"$1,074"},{"v":1209,"d":"$1,209"},{"v":1218,"d":"$1,218"},{"v":918,"d":"$918"},{"v":1044,"d":"$1,044"},{"v":1206,"d":"$1,206"},{"v":792,"d":"$792"},{"v":900,"d":"$900"},{"v":1104,"d":"$1,104"},{"v":1215,"d":"$1,215"},{"v":1221,"d":"$1,221"},{"v":1230,"d":"$1,230"},{"v":1254,"d":"$1,254"}]
["MONROE","LA"]
["MONROE","LA"]
["MONROE","LA"]
["MONROE","LA"]
["MONROE","LA"]
["MONROE","LA"]
["MONROE","LA"]
["MONROE","LA"]
["MONROE","LA"]
["MONROE","LA"]
["MONROE","LA"]
["MONROE","LA"]
["MONROE","LA"]
["MONROE","LA"]
["MONROE","LA"]
["MONROE","LA"]
["MONROE","LA"]
["MONROE","LA"]
["MONROE","LA"]
["MONROE","LA"]
["MONROE","LA"]
["MONROE","LA"]
["MONROE","LA"]
["NANTUCKET","MA",null,null,{"v":1761,"d":"$1,761"},{"v":1761,"d":"$1,761"},{"v":1761,"d":"$1,761"},{"v":1761,"d":"$1,761"},{"v":2064,"d":"$2,064"},{"v":2259,"d":"$2,259"},{"v":2358,"d":"$2,358"},{"v":2571,"d":"$2,571"},{"v":2742,"d":"$2,742"},{"v":2304,"d":"$2,304"},{"v":2565,"d":"$2,565"},{"v":2757,"d":"$2,757"},{"v":3045,"d":"$3,045"},{"v":3177,"d":"$3,177"},{"v":2460,"d":"$2,460"},{"v":2703,"d":"$2,703"},{"v":3012,"d":"$3,012"},{"v":2232,"d":"$2,232"},{"v":2421,"d":"$2,421"},{"v":2814,"d":"$2,814"},{"v":3159,"d":"$3,159"},{"v":3243,"d":"$3,243"},{"v":3378,"d":"$3,378"},{"v":3444,"d":"$3,444"}]
["NANTUCKET","MA"]
["NANTUCKET","MA"]
["NANTUCKET","MA"]
["NANTUCKET","MA"]
["NANTUCKET","MA"]
["NANTUCKET","MA"]
["NANTUCKET","MA"]
["NANTUCKET","MA"]
["NANTUCKET","MA"]
["NANTUCKET","MA"]
["NANTUCKET","MA"]
["NANTUCKET","MA"]
["NANTUCKET","MA"]
["NANTUCKET","MA"]
["NANTUCKET","MA"]
["NANTUCKET","MA"]
["NANTUCKET","MA"]
["NANTUCKET","MA"]
["NANTUCKET","MA"]
["NANTUCKET","MA"]
["NANTUCKET","MA"]
["NANTUCKET","MA"]
["NANTUCKET","MA"]
["BOSTON","MA",null,null,{"v":1575,"d":"$1,575"},{"v":1575,"d":"$1,575"},{"v":1575,"d":"$1,575"},{"v":1575,"d":"$1,575"},{"v":1755,"d":"$1,755"},{"v":1917,"d":"$1,917"},{"v":2112,"d":"$2,112"},{"v":2346,"d":"$2,346"},{"v":2409,"d":"$2,409"},{"v":2019,"d":"$2,019"},{"v":2346,"d":"$2,346"},{"v":2415,"d":"$2,415"},{"v":2517,"d":"$2,517"},{"v":2562,"d":"$2,562"},{"v":2307,"d":"$2,307"},{"v":2394,"d":"$2,394"},{"v":2508,"d":"$2,508"},{"v":1890,"d":"$1,890"},{"v":2235,"d":"$2,235"},{"v":2436,"d":"$2,436"},{"v":2556,"d":"$2,556"},{"v":2649,"d":"$2,649"},{"v":2676,"d":"$2,676"},{"v":2703,"d":"$2,703"}]
["BOSTON","MA"]
["BOSTON","MA"]
["BOSTON","MA"]
["BOSTON","MA"]
["BOSTON","MA"]
["BOSTON","MA"]
["BOSTON","MA"]
["BOSTON","MA"]
["BOSTON","MA"]
["BOSTON","MA"]
["BOSTON","MA"]
["BOSTON","MA"]
["BOSTON","MA"]
["BOSTON","MA"]
["BOSTON","MA"]
["BOSTON","MA"]
["BOSTON","MA"]
["BOSTON","MA"]
["BOSTON","MA"]
["BOSTON","MA"]
["BOSTON","MA"]
["BOSTON","MA"]
["BOSTON","MA"]
["CAPECOD","MA",null,null,{"v":1167,"d":"$1,167"},{"v":1167,"d":"$1,167"},{"v":1167,"d":"$1,167"},{"v":1167,"d":"$1,167"},{"v":1320,"d":"$1,320"},{"v":1422,"d":"$1,422"},{"v":1479,"d":"$1,479"},{"v":1620,"d":"$1,620"},{"v":1728,"d":"$1,728"},{"v":1443,"d":"$1,443"},{"v":1617,"d":"$1,617"},{"v":1737,"d":"$1,737"},{"v":1905,"d":"$1,905"},{"v":1938,"d":"$1,938"},{"v":1551,"d":"$1,551"},{"v":1704,"d":"$1,704"},{"v":1896,"d":"$1,896"},{"v":1395,"d":"$1,395"},{"v":1524,"d":"$1,524"},{"v":1773,"d":"$1,773"},{"v":1932,"d":"$1,932"},{"v":1953,"d":"$1,953"},{"v":1986,"d":"$1,986"},{"v":2025,"d":"$2,025"}]
["CAPECOD","MA"]
["CAPECOD","MA"]
["CAPECOD","MA"]
["CAPECOD","MA"]
["CAPECOD","MA"]
["CAPECOD","MA"]
["CAPECOD","MA"]
["CAPECOD","MA"]
["CAPECOD","MA"]
["CAPECOD","MA"]
["CAPECOD","MA"]
["CAPECOD","MA"]
["CAPECOD","MA"]
["CAPECOD","MA"]
["CAPECOD","MA"]
["CAPECOD","MA"]
["CAPECOD","MA"]
["CAPECOD","MA"]
["CAPECOD","MA"]
["CAPECOD","MA"]
["CAPECOD","MA"]
["CAPECOD","MA"]
["CAPECOD","MA"]
["WORCESTER","MA",null,null,{"v":1068,"d":"$1,068"},{"v":1068,"d":"$1,068"},{"v":1068,"d":"$1,068"},{"v":1068,"d":"$1,068"},{"v":1218,"d":"$1,218"},{"v":1311,"d":"$1,311"},{"v":1431,"d":"$1,431"},{"v":1593,"d":"$1,593"},{"v":1653,"d":"$1,653"},{"v":1374,"d":"$1,374"},{"v":1590,"d":"$1,590"},{"v":1659,"d":"$1,659"},{"v":1779,"d":"$1,779"},{"v":1896,"d":"$1,896"},{"v":1554,"d":"$1,554"},{"v":1641,"d":"$1,641"},{"v":1749,"d":"$1,749"},{"v":1293,"d":"$1,293"},{"v":1509,"d":"$1,509"},{"v":1680,"d":"$1,680"},{"v":1887,"d":"$1,887"},{"v":2124,"d":"$2,124"},{"v":2145,"d":"$2,145"},{"v":2166,"d":"$2,166"}]
["WORCESTER","MA"]
["WORCESTER","MA"]
["WORCESTER","MA"]
["WORCESTER","MA"]
["WORCESTER","MA"]
["WORCESTER","MA"]
["WORCESTER","MA"]
["WORCESTER","MA"]
["WORCESTER","MA"]
["WORCESTER","MA"]
["WORCESTER","MA"]
["WORCESTER","MA"]
["WORCESTER","MA"]
["WORCESTER","MA"]
["WORCESTER","MA"]
["WORCESTER","MA"]
["WORCESTER","MA"]
["WORCESTER","MA"]
["WORCESTER","MA"]
["WORCESTER","MA"]
["WORCESTER","MA"]
["WORCESTER","MA"]
["FORT DEVENS/AYER","MA",null,null,{"v":1080,"d":"$1,080"},{"v":1080,"d":"$1,080"},{"v":1080,"d":"$1,080"},{"v":1080,"d":"$1,080"},{"v":1212,"d":"$1,212"},{"v":1392,"d":"$1,392"},{"v":1467,"d":"$1,467"},{"v":1641,"d":"$1,641"},{"v":1722,"d":"$1,722"},{"v":1392,"d":"$1,392"},{"v":1638,"d":"$1,638"},{"v":1731,"d":"$1,731"},{"v":1878,"d":"$1,878"},{"v":1980,"d":"$1,980"},{"v":1587,"d":"$1,587"},{"v":1704,"d":"$1,704"},{"v":1854,"d":"$1,854"},{"v":1296,"d":"$1,296"},{"v":1536,"d":"$1,536"},{"v":1758,"d":"$1,758"},{"v":1965,"d":"$1,965"},{"v":2031,"d":"$2,031"},{"v":2133,"d":"$2,133"},{"v":2175,"d":"$2,175"}]
["FORT DEVENS/AYER","MA"]
["FORT DEVENS/AYER","MA"]
["FORT DEVENS/AYER","MA"]
["FORT DEVENS/AYER","MA"]
["FORT DEVENS/AYER","MA"]
["FORT DEVENS/AYER","MA"]
["FORT DEVENS/AYER","MA"]
["FORT DEVENS/AYER","MA"]
["FORT DEVENS/AYER","MA"]
["FORT DEVENS/AYER","MA"]
["FORT DEVENS/AYER","MA"]
["FORT DEVENS/AYER","MA"]
["FORT DEVENS/AYER","MA"]
["FORT DEVENS/AYER","MA"]
["FORT DEVENS/AYER","MA"]
["FORT DEVENS/AYER","MA"]
["FORT DEVENS/AYER","MA"]
["FORT DEVENS/AYER","MA"]
["FORT DEVENS/AYER","MA"]
["FORT DEVENS/AYER","MA"]
["FORT DEVENS/AYER","MA"]
["FORT DEVENS/AYER","MA"]
["FORT DEVENS/AYER","MA"]
["PLYMOUTH","MA",null,null,{"v":1128,"d":"$1,128"},{"v":1128,"d":"$1,128"},{"v":1128,"d":"$1,128"},{"v":1128,"d":"$1,128"},{"v":1266,"d":"$1,266"},{"v":1599,"d":"$1,599"},{"v":1602,"d":"$1,602"},{"v":1740,"d":"$1,740"},{"v":1890,"d":"$1,890"},{"v":1599,"d":"$1,599"},{"v":1734,"d":"$1,734"},{"v":1905,"d":"$1,905"},{"v":2133,"d":"$2,133"},{"v":2139,"d":"$2,139"},{"v":1641,"d":"$1,641"},{"v":1857,"d":"$1,857"},{"v":2130,"d":"$2,130"},{"v":1335,"d":"$1,335"},{"v":1590,"d":"$1,590"},{"v":1953,"d":"$1,953"},{"v":2139,"d":"$2,139"},{"v":2142,"d":"$2,142"},{"v":2151,"d":"$2,151"},{"v":2193,"d":"$2,193"}]
["PLYMOUTH","MA"]
["PLYMOUTH","MA"]
["PLYMOUTH","MA"]
["PLYMOUTH","MA"]
["PLYMOUTH","MA"]
["PLYMOUTH","MA"]
["PLYMOUTH","MA"]
["PLYMOUTH","MA"]
["PLYMOUTH","MA"]
["PLYMOUTH","MA"]
["PLYMOUTH","MA"]
["PLYMOUTH","MA"]
["PLYMOUTH","MA"]
["PLYMOUTH","MA"]
["PLYMOUTH","MA"]
["PLYMOUTH","MA"]
["PLYMOUTH","MA"]
["PLYMOUTH","MA"]
["PLYMOUTH","MA"]
["PLYMOUTH","MA"]
["PLYMOUTH","MA"]
["PLYMOUTH","MA"]
["PLYMOUTH","MA"]
["ESSEX COUNTY","MA",null,null,{"v":1311,"d":"$1,311"},{"v":1311,"d":"$1,311"},{"v":1311,"d":"$1,311"},{"v":1311,"d":"$1,311"},{"v":1473,"d":"$1,473"},{"v":1641,"d":"$1,641"},{"v":1758,"d":"$1,758"},{"v":1974,"d":"$1,974"},{"v":2058,"d":"$2,058"},{"v":1680,"d":"$1,680"},{"v":1971,"d":"$1,971"},{"v":2064,"d":"$2,064"},{"v":2211,"d":"$2,211"},{"v":2298,"d":"$2,298"},{"v":1920,"d":"$1,920"},{"v":2037,"d":"$2,037"},{"v":2190,"d":"$2,190"},{"v":1575,"d":"$1,575"},{"v":1860,"d":"$1,860"},{"v":2091,"d":"$2,091"},{"v":2286,"d":"$2,286"},{"v":2340,"d":"$2,340"},{"v":2427,"d":"$2,427"},{"v":2478,"d":"$2,478"}]
["ESSEX COUNTY","MA"]
["ESSEX COUNTY","MA"]
["ESSEX COUNTY","MA"]
["ESSEX COUNTY","MA"]
["ESSEX COUNTY","MA"]
["ESSEX COUNTY","MA"]
["ESSEX COUNTY","MA"]
["ESSEX COUNTY","MA"]
["ESSEX COUNTY","MA"]
["ESSEX COUNTY","MA"]
["ESSEX COUNTY","MA"]
["ESSEX COUNTY","MA"]
["ESSEX COUNTY","MA"]
["ESSEX COUNTY","MA"]
["ESSEX COUNTY","MA"]
["ESSEX COUNTY","MA"]
["ESSEX COUNTY","MA"]
["ESSEX COUNTY","MA"]
["ESSEX COUNTY","MA"]
["ESSEX COUNTY","MA"]
["ESSEX COUNTY","MA"]
["ESSEX COUNTY","MA"]
["ESSEX COUNTY","MA"]
["HAMPDEN COUNTY","MA",null,null,{"v":1032,"d":"$1,032"},{"v":1032,"d":"$1,032"},{"v":1032,"d":"$1,032"},{"v":1032,"d":"$1,032"},{"v":1170,"d":"$1,170"},{"v":1254,"d":"$1,254"},{"v":1353,"d":"$1,353"},{"v":1494,"d":"$1,494"},{"v":1557,"d":"$1,557"},{"v":1305,"d":"$1,305"},{"v":1494,"d":"$1,494"},{"v":1563,"d":"$1,563"},{"v":1686,"d":"$1,686"},{"v":1803,"d":"$1,803"},{"v":1455,"d":"$1,455"},{"v":1542,"d":"$1,542"},{"v":1656,"d":"$1,656"},{"v":1239,"d":"$1,239"},{"v":1419,"d":"$1,419"},{"v":1584,"d":"$1,584"},{"v":1788,"d":"$1,788"},{"v":1863,"d":"$1,863"},{"v":1983,"d":"$1,983"},{"v":2025,"d":"$2,025"}]
["HAMPDEN COUNTY","MA"]
["HAMPDEN COUNTY","MA"]
["HAMPDEN COUNTY","MA"]
["HAMPDEN COUNTY","MA"]
["HAMPDEN COUNTY","MA"]
["HAMPDEN COUNTY","MA"]
["HAMPDEN COUNTY","MA"]
["HAMPDEN COUNTY","MA"]
["HAMPDEN COUNTY","MA"]
["HAMPDEN COUNTY","MA"]
["HAMPDEN COUNTY","MA"]
["HAMPDEN COUNTY","MA"]
["HAMPDEN COUNTY","MA"]
["HAMPDEN COUNTY","MA"]
["HAMPDEN COUNTY","MA"]
["HAMPDEN COUNTY","MA"]
["HAMPDEN COUNTY","MA"]
["HAMPDEN COUNTY","MA"]
["HAMPDEN COUNTY","MA"]
["HAMPDEN COUNTY","MA"]
["HAMPDEN COUNTY","MA"]
["HAMPDEN COUNTY","MA"]
["HAMPDEN COUNTY","MA"]
["MARTHA'S VINEYARD","MA",null,null,{"v":1479,"d":"$1,479"},{"v":1479,"d":"$1,479"},{"v":1479,"d":"$1,479"},{"v":1479,"d":"$1,479"},{"v":1680,"d":"$1,680"},{"v":1809,"d":"$1,809"},{"v":1983,"d":"$1,983"},{"v":2211,"d":"$2,211"},{"v":2283,"d":"$2,283"},{"v":1902,"d":"$1,902"},{"v":2208,"d":"$2,208"},{"v":2289,"d":"$2,289"},{"v":2406,"d":"$2,406"},{"v":2454,"d":"$2,454"},{"v":2163,"d":"$2,163"},{"v":2265,"d":"$2,265"},{"v":2397,"d":"$2,397"},{"v":1782,"d":"$1,782"},{"v":2097,"d":"$2,097"},{"v":2313,"d":"$2,313"},{"v":2448,"d":"$2,448"},{"v":2475,"d":"$2,475"},{"v":2523,"d":"$2,523"},{"v":2574,"d":"$2,574"}]
["MARTHA'S VINEYARD","MA"]
["MARTHA'S VINEYARD","MA"]
["MARTHA'S VINEYARD","MA"]
["MARTHA'S VINEYARD","MA"]
["MARTHA'S VINEYARD","MA"]
["MARTHA'S VINEYARD","MA"]
["MARTHA'S VINEYARD","MA"]
["MARTHA'S VINEYARD","MA"]
["MARTHA'S VINEYARD","MA"]
["MARTHA'S VINEYARD","MA"]
["MARTHA'S VINEYARD","MA"]
["MARTHA'S VINEYARD","MA"]
["MARTHA'S VINEYARD","MA"]
["MARTHA'S VINEYARD","MA"]
["MARTHA'S VINEYARD","MA"]
["MARTHA'S VINEYARD","MA"]
["MARTHA'S VINEYARD","MA"]
["MARTHA'S VINEYARD","MA"]
["MARTHA'S VINEYARD","MA"]
["MARTHA'S VINEYARD","MA"]
["MARTHA'S VINEYARD","MA"]
["MARTHA'S VINEYARD","MA"]
["MARTHA'S VINEYARD","MA"]
["HANSCOMB FIELD","MA",null,null,{"v":1461,"d":"$1,461"},{"v":1461,"d":"$1,461"},{"v":1461,"d":"$1,461"},{"v":1461,"d":"$1,461"},{"v":1647,"d":"$1,647"},{"v":1767,"d":"$1,767"},{"v":1965,"d":"$1,965"},{"v":2226,"d":"$2,226"},{"v":2277,"d":"$2,277"},{"v":1857,"d":"$1,857"},{"v":2226,"d":"$2,226"},{"v":2280,"d":"$2,280"},{"v":2388,"d":"$2,388"},{"v":2529,"d":"$2,529"},{"v":2196,"d":"$2,196"},{"v":2265,"d":"$2,265"},{"v":2355,"d":"$2,355"},{"v":1704,"d":"$1,704"},{"v":2112,"d":"$2,112"},{"v":2298,"d":"$2,298"},{"v":2508,"d":"$2,508"},{"v":2598,"d":"$2,598"},{"v":2742,"d":"$2,742"},{"v":2796,"d":"$2,796"}]
["HANSCOMB FIELD","MA"]
["HANSCOMB FIELD","MA"]
["HANSCOMB FIELD","MA"]
["HANSCOMB FIELD","MA"]
["HANSCOMB FIELD","MA"]
["HANSCOMB FIELD","MA"]
["HANSCOMB FIELD","MA"]
["HANSCOMB FIELD","MA"]
["HANSCOMB FIELD","MA"]
["HANSCOMB FIELD","MA"]
["HANSCOMB FIELD","MA"]
["HANSCOMB FIELD","MA"]
["HANSCOMB FIELD","MA"]
["HANSCOMB FIELD","MA"]
["HANSCOMB FIELD","MA"]
["HANSCOMB FIELD","MA"]
["HANSCOMB FIELD","MA"]
["HANSCOMB FIELD","MA"]
["HANSCOMB FIELD","MA"]
["HANSCOMB FIELD","MA"]
["HANSCOMB FIELD","MA"]
["HANSCOMB FIELD","MA"]
["HANSCOMB FIELD","MA"]
["ABERDEEN PROVING GROUNDS","MD",null,null,{"v":993,"d":"$993"},{"v":993,"d":"$993"},{"v":993,"d":"$993"},{"v":993,"d":"$993"},{"v":1140,"d":"$1,140"},{"v":1299,"d":"$1,299"},{"v":1338,"d":"$1,338"},{"v":1485,"d":"$1,485"},{"v":1581,"d":"$1,581"},{"v":1299,"d":"$1,299"},{"v":1482,"d":"$1,482"},{"v":1590,"d":"$1,590"},{"v":1746,"d":"$1,746"},{"v":1797,"d":"$1,797"},{"v":1422,"d":"$1,422"},{"v":1560,"d":"$1,560"},{"v":1731,"d":"$1,731"},{"v":1212,"d":"$1,212"},{"v":1386,"d":"$1,386"},{"v":1620,"d":"$1,620"},{"v":1791,"d":"$1,791"},{"v":1824,"d":"$1,824"},{"v":1878,"d":"$1,878"},{"v":1917,"d":"$1,917"}]
["ABERDEEN PROVING GROUNDS","MD"]
["ABERDEEN PROVING GROUNDS","MD"]
["ABERDEEN PROVING GROUNDS","MD"]
["ABERDEEN PROVING GROUNDS","MD"]
["ABERDEEN PROVING GROUNDS","MD"]
["ABERDEEN PROVING GROUNDS","MD"]
["ABERDEEN PROVING GROUNDS","MD"]
["ABERDEEN PROVING GROUNDS","MD"]
["ABERDEEN PROVING GROUNDS","MD"]
["ABERDEEN PROVING GROUNDS","MD"]
["ABERDEEN PROVING GROUNDS","MD"]
["ABERDEEN PROVING GROUNDS","MD"]
["ABERDEEN PROVING GROUNDS","MD"]
["ABERDEEN PROVING GROUNDS","MD"]
["ABERDEEN PROVING GROUNDS","MD"]
["ABERDEEN PROVING GROUNDS","MD"]
["ABERDEEN PROVING GROUNDS","MD"]
["ABERDEEN PROVING GROUNDS","MD"]
["ABERDEEN PROVING GROUNDS","MD"]
["ABERDEEN PROVING GROUNDS","MD"]
["ABERDEEN PROVING GROUNDS","MD"]
["ABERDEEN PROVING GROUNDS","MD"]
["ABERDEEN PROVING GROUNDS","MD"]
["ANNAPOLIS","MD",null,null,{"v":1242,"d":"$1,242"},{"v":1242,"d":"$1,242"},{"v":1242,"d":"$1,242"},{"v":1242,"d":"$1,242"},{"v":1380,"d":"$1,380"},{"v":1545,"d":"$1,545"},{"v":1638,"d":"$1,638"},{"v":1854,"d":"$1,854"},{"v":1935,"d":"$1,935"},{"v":1557,"d":"$1,557"},{"v":1851,"d":"$1,851"},{"v":1941,"d":"$1,941"},{"v":2085,"d":"$2,085"},{"v":2190,"d":"$2,190"},{"v":1803,"d":"$1,803"},{"v":1917,"d":"$1,917"},{"v":2058,"d":"$2,058"},{"v":1449,"d":"$1,449"},{"v":1743,"d":"$1,743"},{"v":1968,"d":"$1,968"},{"v":2175,"d":"$2,175"},{"v":2241,"d":"$2,241"},{"v":2349,"d":"$2,349"},{"v":2397,"d":"$2,397"}]
["ANNAPOLIS","MD"]
["ANNAPOLIS","MD"]
["ANNAPOLIS","MD"]
["ANNAPOLIS","MD"]
["ANNAPOLIS","MD"]
["ANNAPOLIS","MD"]
["ANNAPOLIS","MD"]
["ANNAPOLIS","MD"]
["ANNAPOLIS","MD"]
["ANNAPOLIS","MD"]
["ANNAPOLIS","MD"]
["ANNAPOLIS","MD"]
["ANNAPOLIS","MD"]
["ANNAPOLIS","MD"]
["ANNAPOLIS","MD"]
["ANNAPOLIS","MD"]
["ANNAPOLIS","MD"]
["ANNAPOLIS","MD"]
["ANNAPOLIS","MD"]
["ANNAPOLIS","MD"]
["ANNAPOLIS","MD"]
["ANNAPOLIS","MD"]
["ANNAPOLIS","MD"]
["BALTIMORE","MD",null,null,{"v":1314,"d":"$1,314"},{"v":1314,"d":"$1,314"},{"v":1314,"d":"$1,314"},{"v":1314,"d":"$1,314"},{"v":1464,"d":"$1,464"},{"v":1581,"d":"$1,581"},{"v":1764,"d":"$1,764"},{"v":1971,"d":"$1,971"},{"v":2007,"d":"$2,007"},{"v":1677,"d":"$1,677"},{"v":1971,"d":"$1,971"},{"v":2010,"d":"$2,010"},{"v":2097,"d":"$2,097"},{"v":2244,"d":"$2,244"},{"v":1950,"d":"$1,950"},{"v":1998,"d":"$1,998"},{"v":2061,"d":"$2,061"},{"v":1554,"d":"$1,554"},{"v":1884,"d":"$1,884"},{"v":2019,"d":"$2,019"},{"v":2223,"d":"$2,223"},{"v":2316,"d":"$2,316"},{"v":2466,"d":"$2,466"},{"v":2517,"d":"$2,517"}]
["BALTIMORE","MD"]
["BALTIMORE","MD"]
["BALTIMORE","MD"]
["BALTIMORE","MD"]
["BALTIMORE","MD"]
["BALTIMORE","MD"]
["BALTIMORE","MD"]
["BALTIMORE","MD"]
["BALTIMORE","MD"]
["BALTIMORE","MD"]
["BALTIMORE","MD"]
["BALTIMORE","MD"]
["BALTIMORE","MD"]
["BALTIMORE","MD"]
["BALTIMORE","MD"]
["BALTIMORE","MD"]
["BALTIMORE","MD"]
["BALTIMORE","MD"]
["BALTIMORE","MD"]
["BALTIMORE","MD"]
["BALTIMORE","MD"]
["BALTIMORE","MD"]
["BALTIMORE","MD"]
["FORT DETRICK","MD",null,null,{"v":1065,"d":"$1,065"},{"v":1065,"d":"$1,065"},{"v":1065,"d":"$1,065"},{"v":1065,"d":"$1,065"},{"v":1230,"d":"$1,230"},{"v":1344,"d":"$1,344"},{"v":1431,"d":"$1,431"},{"v":1581,"d":"$1,581"},{"v":1662,"d":"$1,662"},{"v":1377,"d":"$1,377"},{"v":1581,"d":"$1,581"},{"v":1671,"d":"$1,671"},{"v":1821,"d":"$1,821"},{"v":1941,"d":"$1,941"},{"v":1530,"d":"$1,530"},{"v":1644,"d":"$1,644"},{"v":1791,"d":"$1,791"},{"v":1311,"d":"$1,311"},{"v":1494,"d":"$1,494"},{"v":1698,"d":"$1,698"},{"v":1923,"d":"$1,923"},{"v":2016,"d":"$2,016"},{"v":2121,"d":"$2,121"},{"v":2163,"d":"$2,163"}]
["FORT DETRICK","MD"]
["FORT DETRICK","MD"]
["FORT DETRICK","MD"]
["FORT DETRICK","MD"]
["FORT DETRICK","MD"]
["FORT DETRICK","MD"]
["FORT DETRICK","MD"]
["FORT DETRICK","MD"]
["FORT DETRICK","MD"]
["FORT DETRICK","MD"]
["FORT DETRICK","MD"]
["FORT DETRICK","MD"]
["FORT DETRICK","MD"]
["FORT DETRICK","MD"]
["FORT DETRICK","MD"]
["FORT DETRICK","MD"]
["FORT DETRICK","MD"]
["FORT DETRICK","MD"]
["FORT DETRICK","MD"]
["FORT DETRICK","MD"]
["FORT DETRICK","MD"]
["FORT DETRICK","MD"]
["FORT G. G. MEADE","MD",null,null,{"v":1197,"d":"$1,197"},{"v":1197,"d":"$1,197"},{"v":1197,"d":"$1,197"},{"v":1197,"d":"$1,197"},{"v":1377,"d":"$1,377"},{"v":1575,"d":"$1,575"},{"v":1644,"d":"$1,644"},{"v":1890,"d":"$1,890"},{"v":1971,"d":"$1,971"},{"v":1575,"d":"$1,575"},{"v":1887,"d":"$1,887"},{"v":1977,"d":"$1,977"},{"v":2121,"d":"$2,121"},{"v":2217,"d":"$2,217"},{"v":1836,"d":"$1,836"},{"v":1953,"d":"$1,953"},{"v":2100,"d":"$2,100"},{"v":1398,"d":"$1,398"},{"v":1755,"d":"$1,755"},{"v":2004,"d":"$2,004"},{"v":2202,"d":"$2,202"},{"v":2262,"d":"$2,262"},{"v":2358,"d":"$2,358"},{"v":2406,"d":"$2,406"}]
{"$rows_empty":23}
["INDIAN HEAD NAVORDSTA","MD",null,null,{"v":1194,"d":"$1,194"},{"v":1194,"d":"$1,194"},{"v":1194,"d":"$1,194"},{"v":1194,"d":"$1,194"},{"v":1380,"d":"$1,380"},{"v":1488,"d":"$1,488"},{"v":1596,"d":"$1,596"},{"v":1758,"d":"$1,758"},{"v":1839,"d":"$1,839"},{"v":1545,"d":"$1,545"},{"v":1755,"d":"$1,755"},{"v":1845,"d":"$1,845"},{"v":1989,"d":"$1,989"},{"v":2070,"d":"$2,070"},{"v":1704,"d":"$1,704"},{"v":1821,"d":"$1,821"},{"v":1968,"d":"$1,968"},{"v":1473,"d":"$1,473"},{"v":1665,"d":"$1,665"},{"v":1872,"d":"$1,872"},{"v":2058,"d":"$2,058"},{"v":2112,"d":"$2,112"},{"v":2196,"d":"$2,196"},{"v":2241,"d":"$2,241"}]
{"$rows_empty":23}
["PATUXENT RIVER","MD",null,null,{"v":1035,"d":"$1,035"},{"v":1035,"d":"$1,035"},{"v":1035,"d":"$1,035"},{"v":1035,"d":"$1,035"},{"v":1173,"d":"$1,173"},{"v":1263,"d":"$1,263"},{"v":1389,"d":"$1,389"},{"v":1545,"d":"$1,545"},{"v":1593,"d":"$1,593"},{"v":1329,"d":"$1,329"},{"v":1545,"d":"$1,545"},{"v":1599,"d":"$1,599"},{"v":1689,"d":"$1,689"},{"v":1773,"d":"$1,773"},{"v":1515,"d":"$1,515"},{"v":1584,"d":"$1,584"},{"v":1668,"d":"$1,668"},{"v":1242,"d":"$1,242"},{"v":1470,"d":"$1,470"},{"v":1614,"d":"$1,614"},{"v":1761,"d":"$1,761"},{"v":1815,"d":"$1,815"},{"v":1899,"d":"$1,899"},{"v":1938,"d":"$1,938"}]
{"$rows_empty":23}
["CUMBERLAND","MD",null,null,{"v":618,"d":"$618"},{"v":618,"d":"$618"},{"v":618,"d":"$618"},{"v":618,"d":"$618"},{"v":687,"d":"$687"},{"v":795,"d":"$795"},{"v":828,"d":"$828"},{"v":936,"d":"$936"},{"v":984,"d":"$984"},{"v":795,"d":"$795"},{"v":933,"d":"$933"},{"v":987,"d":"$987"},{"v":1068,"d":"$1,068"},{"v":1104,"d":"$1,104"},{"v":903,"d":"$903"},{"v":972,"d":"$972"},{"v":1062,"d":"$1,062"},{"v":744,"d":"$744"},{"v":876,"d":"$876"},{"v":1005,"d":"$1,005"},{"v":1098,"d":"$1,098"},{"v":1119,"d":"$1,119"},{"v":1155,"d":"$1,155"},{"v":1176,"d":"$1,176"}]
{"$rows_empty":23}
["OCEAN CITY","MD",null,null,{"v":1041,"d":"$1,041"},{"v":1041,"d":"$1,041"},{"v":1041,"d":"$1,041"},{"v":1041,"d":"$1,041"},{"v":1188,"d":"$1,188"},{"v":1266,"d":"$1,266"},{"v":1296,"d":"$1,296"},{"v":1380,"d":"$1,380"},{"v":1461,"d":"$1,461"},{"v":1281,"d":"$1,281"},{"v":1377,"d":"$1,377"},{"v":1470,"d":"$1,470"},{"v":1596,"d":"$1,596"},{"v":1617,"d":"$1,617"},{"v":1326,"d":"$1,326"},{"v":1443,"d":"$1,443"},{"v":1593,"d":"$1,593"},{"v":1260,"d":"$1,260"},{"v":1317,"d":"$1,317"},{"v":1497,"d":"$1,497"},{"v":1614,"d":"$1,614"},{"v":1629,"d":"$1,629"},{"v":1650,"d":"$1,650"},{"v":1683,"d":"$1,683"}]
{"$rows_empty":23}
["OXFORD","MD",null,null,{"v":1026,"d":"$1,026"},{"v":1026,"d":"$1,026"},{"v":1026,"d":"$1,026"},{"v":1026,"d":"$1,026"},{"v":1173,"d":"$1,173"},{"v":1338,"d":"$1,338"},{"v":1386,"d":"$1,386"},{"v":1542,"d":"$1,542"},{"v":1635,"d":"$1,635"},{"v":1338,"d":"$1,338"},{"v":1539,"d":"$1,539"},{"v":1644,"d":"$1,644"},{"v":1797,"d":"$1,797"},{"v":1863,"d":"$1,863"},{"v":1482,"d":"$1,482"},{"v":1614,"d":"$1,614"},{"v":1782,"d":"$1,782"},{"v":1251,"d":"$1,251"},{"v":1443,"d":"$1,443"},{"v":1674,"d":"$1,674"},{"v":1854,"d":"$1,854"},{"v":1896,"d":"$1,896"},{"v":1962,"d":"$1,962"},{"v":2001,"d":"$2,001"}]
{"$rows_empty":23}
["BRUNSWICK","ME",null,null,{"v":702,"d":"$702"},{"v":702,"d":"$702"},{"v":702,"d":"$702"},{"v":702,"d":"$702"},{"v":789,"d":"$789"},{"v":966,"d":"$966"},{"v":1008,"d":"$1,008"},{"v":1098,"d":"$1,098"},{"v":1170,"d":"$1,170"},{"v":966,"d":"$966"},{"v":1095,"d":"$1,095"},{"v":1176,"d":"$1,176"},{"v":1299,"d":"$1,299"},{"v":1356,"d":"$1,356"},{"v":1050,"d":"$1,050"},{"v":1155,"d":"$1,155"},{"v":1287,"d":"$1,287"},{"v":822,"d":"$822"},{"v":1011,"d":"$1,011"},{"v":1200,"d":"$1,200"},{"v":1350,"d":"$1,350"},{"v":1386,"d":"$1,386"},{"v":1443,"d":"$1,443"},{"v":1473,"d":"$1,473"}]
{"$rows_empty":23}
["CARIBOU/LIMESTONE","ME",null,null,{"v":618,"d":"$618"},{"v":618,"d":"$618"},{"v":618,"d":"$618"},{"v":618,"d":"$618"},{"v":678,"d":"$678"},{"v":741,"d":"$741"},{"v":795,"d":"$795"},{"v":897,"d":"$897"},{"v":933,"d":"$933"},{"v":759,"d":"$759"},{"v":897,"d":"$897"},{"v":936,"d":"$936"},{"v":999,"d":"$999"},{"v":1038,"d":"$1,038"},{"v":876,"d":"$876"},{"v":924,"d":"$924"},{"v":990,"d":"$990"},{"v":708,"d":"$708"},{"v":846,"d":"$846"},{"v":948,"d":"$948"},{"v":1032,"d":"$1,032"},{"v":1056,"d":"$1,056"},{"v":1095,"d":"$1,095"},{"v":1119,"d":"$1,119"}]
{"$rows_empty":23}
["KITTERY","ME",null,null,{"v":993,"d":"$993"},{"v":993,"d":"$993"},{"v":993,"d":"$993"},{"v":993,"d":"$993"},{"v":1119,"d":"$1,119"},{"v":1422,"d":"$1,422"},{"v":1497,"d":"$1,497"},{"v":1581,"d":"$1,581"},{"v":1698,"d":"$1,698"},{"v":1422,"d":"$1,422"},{"v":1569,"d":"$1,569"},{"v":1710,"d":"$1,710"},{"v":1920,"d":"$1,920"},{"v":2022,"d":"$2,022"},{"v":1515,"d":"$1,515"},{"v":1668,"d":"$1,668"},{"v":1893,"d":"$1,893"},{"v":1158,"d":"$1,158"},{"v":1434,"d":"$1,434"},{"v":1749,"d":"$1,749"},{"v":2010,"d":"$2,010"},{"v":2076,"d":"$2,076"},{"v":2181,"d":"$2,181"},{"v":2226,"d":"$2,226"}]
{"$rows_empty":23}
["PORTLAND","ME",null,null,{"v":993,"d":"$993"},{"v":993,"d":"$993"},{"v":993,"d":"$993"},{"v":993,"d":"$993"},{"v":1101,"d":"$1,101"},{"v":1167,"d":"$1,167"},{"v":1260,"d":"$1,260"},{"v":1398,"d":"$1,398"},{"v":1533,"d":"$1,533"},{"v":1215,"d":"$1,215"},{"v":1380,"d":"$1,380"},{"v":1494,"d":"$1,494"},{"v":1545,"d":"$1,545"},{"v":1716,"d":"$1,716"},{"v":1353,"d":"$1,353"},{"v":1467,"d":"$1,467"},{"v":1557,"d":"$1,557"},{"v":1155,"d":"$1,155"},{"v":1317,"d":"$1,317"},{"v":1485,"d":"$1,485"},{"v":1692,"d":"$1,692"},{"v":1806,"d":"$1,806"},{"v":1989,"d":"$1,989"},{"v":2031,"d":"$2,031"}]
{"$rows_empty":23}
["COASTAL MAINE","ME",null,null,{"v":822,"d":"$822"},{"v":822,"d":"$822"},{"v":822,"d":"$822"},{"v":822,"d":"$822"},{"v":921,"d":"$921"},{"v":1002,"d":"$1,002"},{"v":1104,"d":"$1,104"},{"v":1248,"d":"$1,248"},{"v":1284,"d":"$1,284"},{"v":1047,"d":"$1,047"},{"v":1248,"d":"$1,248"},{"v":1287,"d":"$1,287"},{"v":1344,"d":"$1,344"},{"v":1365,"d":"$1,365"},{"v":1227,"d":"$1,227"},{"v":1275,"d":"$1,275"},{"v":1338,"d":"$1,338"},{"v":966,"d":"$966"},{"v":1182,"d":"$1,182"},{"v":1296,"d":"$1,296"},{"v":1362,"d":"$1,362"},{"v":1377,"d":"$1,377"},{"v":1398,"d":"$1,398"},{"v":1428,"d":"$1,428"}]
{"$rows_empty":23}
["BANGOR","ME",null,null,{"v":792,"d":"$792"},{"v":792,"d":"$792"},{"v":792,"d":"$792"},{"v":792,"d":"$792"},{"v":912,"d":"$912"},{"v":1011,"d":"$1,011"},{"v":1059,"d":"$1,059"},{"v":1143,"d":"$1,143"},{"v":1203,"d":"$1,203"},{"v":1035,"d":"$1,035"},{"v":1143,"d":"$1,143"},{"v":1206,"d":"$1,206"},{"v":1305,"d":"$1,305"},{"v":1353,"d":"$1,353"},{"v":1107,"d":"$1,107"},{"v":1188,"d":"$1,188"},{"v":1293,"d":"$1,293"},{"v":1002,"d":"$1,002"},{"v":1089,"d":"$1,089"},{"v":1227,"d":"$1,227"},{"v":1347,"d":"$1,347"},{"v":1377,"d":"$1,377"},{"v":1428,"d":"$1,428"},{"v":1458,"d":"$1,458"}]
{"$rows_empty":23}
["DETROIT","MI",null,null,{"v":873,"d":"$873"},{"v":873,"d":"$873"},{"v":873,"d":"$873"},{"v":873,"d":"$873"},{"v":981,"d":"$981"},{"v":1140,"d":"$1,140"},{"v":1242,"d":"$1,242"},{"v":1353,"d":"$1,353"},{"v":1494,"d":"$1,494"},{"v":1143,"d":"$1,143"},{"v":1350,"d":"$1,350"},{"v":1422,"d":"$1,422"},{"v":1554,"d":"$1,554"},{"v":1689,"d":"$1,689"},{"v":1308,"d":"$1,308"},{"v":1404,"d":"$1,404"},{"v":1536,"d":"$1,536"},{"v":1020,"d":"$1,020"},{"v":1260,"d":"$1,260"},{"v":1443,"d":"$1,443"},{"v":1680,"d":"$1,680"},{"v":1863,"d":"$1,863"},{"v":1896,"d":"$1,896"},{"v":1935,"d":"$1,935"}]
{"$rows_empty":23}
["MARQUETTE","MI",null,null,{"v":630,"d":"$630"},{"v":630,"d":"$630"},{"v":630,"d":"$630"},{"v":630,"d":"$630"},{"v":702,"d":"$702"},{"v":834,"d":"$834"},{"v":891,"d":"$891"},{"v":960,"d":"$960"},{"v":1035,"d":"$1,035"},{"v":834,"d":"$834"},{"v":960,"d":"$960"},{"v":1023,"d":"$1,023"},{"v":1128,"d":"$1,128"},{"v":1206,"d":"$1,206"},{"v":924,"d":"$924"},{"v":1005,"d":"$1,005"},{"v":1110,"d":"$1,110"},{"v":753,"d":"$753"},{"v":894,"d":"$894"},{"v":1044,"d":"$1,044"},{"v":1194,"d":"$1,194"},{"v":1263,"d":"$1,263"},{"v":1323,"d":"$1,323"},{"v":1350,"d":"$1,350"}]
{"$rows_empty":23}
["SAULT STE MARIE","MI",null,null,{"v":579,"d":"$579"},{"v":579,"d":"$579"},{"v":579,"d":"$579"},{"v":579,"d":"$579"},{"v":678,"d":"$678"},{"v":801,"d":"$801"},{"v":819,"d":"$819"},{"v":867,"d":"$867"},{"v":945,"d":"$945"},{"v":801,"d":"$801"},{"v":864,"d":"$864"},{"v":954,"d":"$954"},{"v":1074,"d":"$1,074"},{"v":1098,"d":"$1,098"},{"v":822,"d":"$822"},{"v":927,"d":"$927"},{"v":1068,"d":"$1,068"},{"v":726,"d":"$726"},{"v":801,"d":"$801"},{"v":978,"d":"$978"},{"v":1095,"d":"$1,095"},{"v":1110,"d":"$1,110"},{"v":1131,"d":"$1,131"},{"v":1155,"d":"$1,155"}]
{"$rows_empty":23}
["TRAVERSE CITY","MI",null,null,{"v":720,"d":"$720"},{"v":720,"d":"$720"},{"v":720,"d":"$720"},{"v":720,"d":"$720"},{"v":810,"d":"$810"},{"v":954,"d":"$954"},{"v":978,"d":"$978"},{"v":1119,"d":"$1,119"},{"v":1176,"d":"$1,176"},{"v":954,"d":"$954"},{"v":1116,"d":"$1,116"},{"v":1182,"d":"$1,182"},{"v":1278,"d":"$1,278"},{"v":1311,"d":"$1,311"},{"v":1080,"d":"$1,080"},{"v":1164,"d":"$1,164"},{"v":1269,"d":"$1,269"},{"v":837,"d":"$837"},{"v":1041,"d":"$1,041"},{"v":1203,"d":"$1,203"},{"v":1308,"d":"$1,308"},{"v":1329,"d":"$1,329"},{"v":1365,"d":"$1,365"},{"v":1392,"d":"$1,392"}]
{"$rows_empty":23}
["GRAND HAVEN","MI",null,null,{"v":651,"d":"$651"},{"v":651,"d":"$651"},{"v":651,"d":"$651"},{"v":651,"d":"$651"},{"v":732,"d":"$732"},{"v":864,"d":"$864"},{"v":879,"d":"$879"},{"v":1011,"d":"$1,011"},{"v":1068,"d":"$1,068"},{"v":864,"d":"$864"},{"v":1011,"d":"$1,011"},{"v":1071,"d":"$1,071"},{"v":1158,"d":"$1,158"},{"v":1179,"d":"$1,179"},{"v":978,"d":"$978"},{"v":1053,"d":"$1,053"},{"v":1152,"d":"$1,152"},{"v":747,"d":"$747"},{"v":939,"d":"$939"},{"v":1089,"d":"$1,089"},{"v":1176,"d":"$1,176"},{"v":1188,"d":"$1,188"},{"v":1209,"d":"$1,209"},{"v":1233,"d":"$1,233"}]
{"$rows_empty":23}
["PORT HURON","MI",null,null,{"v":696,"d":"$696"},{"v":696,"d":"$696"},{"v":696,"d":"$696"},{"v":696,"d":"$696"},{"v":792,"d":"$792"},{"v":888,"d":"$888"},{"v":930,"d":"$930"},{"v":1035,"d":"$1,035"},{"v":1092,"d":"$1,092"},{"v":900,"d":"$900"},{"v":1032,"d":"$1,032"},{"v":1098,"d":"$1,098"},{"v":1185,"d":"$1,185"},{"v":1203,"d":"$1,203"},{"v":999,"d":"$999"},{"v":1080,"d":"$1,080"},{"v":1182,"d":"$1,182"},{"v":855,"d":"$855"},{"v":975,"d":"$975"},{"v":1116,"d":"$1,116"},{"v":1203,"d":"$1,203"},{"v":1212,"d":"$1,212"},{"v":1230,"d":"$1,230"},{"v":1257,"d":"$1,257"}]
{"$rows_empty":23}
["BATTLE CREEK/KALAMAZOO","MI",null,null,{"v":717,"d":"$717"},{"v":717,"d":"$717"},{"v":717,"d":"$717"},{"v":717,"d":"$717"},{"v":843,"d":"$843"},{"v":921,"d":"$921"},{"v":1008,"d":"$1,008"},{"v":1143,"d":"$1,143"},{"v":1197,"d":"$1,197"},{"v":921,"d":"$921"},{"v":1143,"d":"$1,143"},{"v":1179,"d":"$1,179"},{"v":1254,"d":"$1,254"},{"v":1371,"d":"$1,371"},{"v":1122,"d":"$1,122"},{"v":1167,"d":"$1,167"},{"v":1227,"d":"$1,227"},{"v":849,"d":"$849"},{"v":1065,"d":"$1,065"},{"v":1188,"d":"$1,188"},{"v":1356,"d":"$1,356"},{"v":1428,"d":"$1,428"},{"v":1548,"d":"$1,548"},{"v":1581,"d":"$1,581"}]
{"$rows_empty":23}
["LANSING","MI",null,null,{"v":807,"d":"$807"},{"v":807,"d":"$807"},{"v":807,"d":"$807"},{"v":807,"d":"$807"},{"v":906,"d":"$906"},{"v":972,"d":"$972"},{"v":1083,"d":"$1,083"},{"v":1203,"d":"$1,203"},{"v":1212,"d":"$1,212"},{"v":1029,"d":"$1,029"},{"v":1203,"d":"$1,203"},{"v":1212,"d":"$1,212"},{"v":1245,"d":"$1,245"},{"v":1317,"d":"$1,317"},{"v":1197,"d":"$1,197"},{"v":1209,"d":"$1,209"},{"v":1227,"d":"$1,227"},{"v":954,"d":"$954"},{"v":1155,"d":"$1,155"},{"v":1215,"d":"$1,215"},{"v":1308,"d":"$1,308"},{"v":1356,"d":"$1,356"},{"v":1428,"d":"$1,428"},{"v":1458,"d":"$1,458"}]
{"$rows_empty":23}
["GRAND RAPIDS","MI",null,null,{"v":711,"d":"$711"},{"v":711,"d":"$711"},{"v":711,"d":"$711"},{"v":711,"d":"$711"},{"v":798,"d":"$798"},{"v":966,"d":"$966"},{"v":966,"d":"$966"},{"v":1104,"d":"$1,104"},{"v":1173,"d":"$1,173"},{"v":966,"d":"$966"},{"v":1101,"d":"$1,101"},{"v":1182,"d":"$1,182"},{"v":1287,"d":"$1,287"},{"v":1290,"d":"$1,290"},{"v":1056,"d":"$1,056"},{"v":1158,"d":"$1,158"},{"v":1287,"d":"$1,287"},{"v":840,"d":"$840"},{"v":1020,"d":"$1,020"},{"v":1203,"d":"$1,203"},{"v":1290,"d":"$1,290"},{"v":1290,"d":"$1,290"},{"v":1293,"d":"$1,293"},{"v":1320,"d":"$1,320"}]
{"$rows_empty":23}
["ANN ARBOR","MI",null,null,{"v":894,"d":"$894"},{"v":894,"d":"$894"},{"v":894,"d":"$894"},{"v":894,"d":"$894"},{"v":1020,"d":"$1,020"},{"v":1137,"d":"$1,137"},{"v":1218,"d":"$1,218"},{"v":1389,"d":"$1,389"},{"v":1440,"d":"$1,440"},{"v":1140,"d":"$1,140"},{"v":1389,"d":"$1,389"},{"v":1443,"d":"$1,443"},{"v":1542,"d":"$1,542"},{"v":1653,"d":"$1,653"},{"v":1359,"d":"$1,359"},{"v":1428,"d":"$1,428"},{"v":1515,"d":"$1,515"},{"v":1032,"d":"$1,032"},{"v":1302,"d":"$1,302"},{"v":1458,"d":"$1,458"},{"v":1638,"d":"$1,638"},{"v":1785,"d":"$1,785"},{"v":1818,"d":"$1,818"},{"v":1854,"d":"$1,854"}]
{"$rows_empty":23}
["SAGINAW","MI",null,null,{"v":639,"d":"$639"},{"v":639,"d":"$639"},{"v":639,"d":"$639"},{"v":639,"d":"$639"},{"v":714,"d":"$714"},{"v":843,"d":"$843"},{"v":885,"d":"$885"},{"v":975,"d":"$975"},{"v":1032,"d":"$1,032"},{"v":846,"d":"$846"},{"v":972,"d":"$972"},{"v":1038,"d":"$1,038"},{"v":1140,"d":"$1,140"},{"v":1197,"d":"$1,197"},{"v":936,"d":"$936"},{"v":1020,"d":"$1,020"},{"v":1125,"d":"$1,125"},{"v":765,"d":"$765"},{"v":909,"d":"$909"},{"v":1056,"d":"$1,056"},{"v":1188,"d":"$1,188"},{"v":1224,"d":"$1,224"},{"v":1284,"d":"$1,284"},{"v":1308,"d":"$1,308"}]
{"$rows_empty":23}
["ALPENA","MI",null,null,{"v":546,"d":"$546"},{"v":546,"d":"$546"},{"v":546,"d":"$546"},{"v":546,"d":"$546"},{"v":624,"d":"$624"},{"v":705,"d":"$705"},{"v":735,"d":"$735"},{"v":852,"d":"$852"},{"v":885,"d":"$885"},{"v":705,"d":"$705"},{"v":852,"d":"$852"},{"v":888,"d":"$888"},{"v":948,"d":"$948"},{"v":987,"d":"$987"},{"v":831,"d":"$831"},{"v":879,"d":"$879"},{"v":939,"d":"$939"},{"v":630,"d":"$630"},{"v":795,"d":"$795"},{"v":900,"d":"$900"},{"v":981,"d":"$981"},{"v":1008,"d":"$1,008"},{"v":1050,"d":"$1,050"},{"v":1071,"d":"$1,071"}]
{"$rows_empty":23}
["CHARLEVOIX","MI",null,null,{"v":660,"d":"$660"},{"v":660,"d":"$660"},{"v":660,"d":"$660"},{"v":660,"d":"$660"},{"v":735,"d":"$735"},{"v":873,"d":"$873"},{"v":912,"d":"$912"},{"v":1017,"d":"$1,017"},{"v":1074,"d":"$1,074"},{"v":873,"d":"$873"},{"v":1014,"d":"$1,014"},{"v":1080,"d":"$1,080"},{"v":1176,"d":"$1,176"},{"v":1227,"d":"$1,227"},{"v":981,"d":"$981"},{"v":1062,"d":"$1,062"},{"v":1164,"d":"$1,164"},{"v":759,"d":"$759"},{"v":942,"d":"$942"},{"v":1098,"d":"$1,098"},{"v":1221,"d":"$1,221"},{"v":1350,"d":"$1,350"},{"v":1365,"d":"$1,365"},{"v":1377,"d":"$1,377"}]
{"$rows_empty":23}
["DULUTH","MN",null,null,{"v":783,"d":"$783"},{"v":783,"d":"$783"},{"v":783,"d":"$783"},{"v":783,"d":"$783"},{"v":888,"d":"$888"},{"v":1032,"d":"$1,032"},{"v":1050,"d":"$1,050"},{"v":1224,"d":"$1,224"},{"v":1281,"d":"$1,281"},{"v":1032,"d":"$1,032"},{"v":1221,"d":"$1,221"},{"v":1287,"d":"$1,287"},{"v":1380,"d":"$1,380"},{"v":1401,"d":"$1,401"},{"v":1185,"d":"$1,185"},{"v":1269,"d":"$1,269"},{"v":1374,"d":"$1,374"},{"v":903,"d":"$903"},{"v":1137,"d":"$1,137"},{"v":1305,"d":"$1,305"},{"v":1398,"d":"$1,398"},{"v":1410,"d":"$1,410"},{"v":1431,"d":"$1,431"},{"v":1461,"d":"$1,461"}]
{"$rows_empty":23}
["MINNEAPOLIS/ST PAUL","MN",null,null,{"v":942,"d":"$942"},{"v":942,"d":"$942"},{"v":942,"d":"$942"},{"v":942,"d":"$942"},{"v":1071,"d":"$1,071"},{"v":1239,"d":"$1,239"},{"v":1269,"d":"$1,269"},{"v":1473,"d":"$1,473"},{"v":1542,"d":"$1,542"},{"v":1239,"d":"$1,239"},{"v":1470,"d":"$1,470"},{"v":1548,"d":"$1,548"},{"v":1662,"d":"$1,662"},{"v":1704,"d":"$1,704"},{"v":1428,"d":"$1,428"},{"v":1527,"d":"$1,527"},{"v":1650,"d":"$1,650"},{"v":1089,"d":"$1,089"},{"v":1368,"d":"$1,368"},{"v":1569,"d":"$1,569"},{"v":1698,"d":"$1,698"},{"v":1725,"d":"$1,725"},{"v":1770,"d":"$1,770"},{"v":1803,"d":"$1,803"}]
{"$rows_empty":23}
["SAINT CLOUD","MN",null,null,{"v":657,"d":"$657"},{"v":657,"d":"$657"},{"v":657,"d":"$657"},{"v":657,"d":"$657"},{"v":756,"d":"$756"},{"v":888,"d":"$888"},{"v":942,"d":"$942"},{"v":1044,"d":"$1,044"},{"v":1098,"d":"$1,098"},{"v":888,"d":"$888"},{"v":1041,"d":"$1,041"},{"v":1101,"d":"$1,101"},{"v":1200,"d":"$1,200"},{"v":1275,"d":"$1,275"},{"v":1008,"d":"$1,008"},{"v":1086,"d":"$1,086"},{"v":1182,"d":"$1,182"},{"v":771,"d":"$771"},{"v":963,"d":"$963"},{"v":1119,"d":"$1,119"},{"v":1266,"d":"$1,266"},{"v":1314,"d":"$1,314"},{"v":1392,"d":"$1,392"},{"v":1419,"d":"$1,419"}]
{"$rows_empty":23}
["ROCHESTER","MN",null,null,{"v":693,"d":"$693"},{"v":693,"d":"$693"},{"v":693,"d":"$693"},{"v":693,"d":"$693"},{"v":771,"d":"$771"},{"v":888,"d":"$888"},{"v":933,"d":"$933"},{"v":1059,"d":"$1,059"},{"v":1107,"d":"$1,107"},{"v":888,"d":"$888"},{"v":1059,"d":"$1,059"},{"v":1113,"d":"$1,113"},{"v":1197,"d":"$1,197"},{"v":1260,"d":"$1,260"},{"v":1029,"d":"$1,029"},{"v":1098,"d":"$1,098"},{"v":1182,"d":"$1,182"},{"v":783,"d":"$783"},{"v":987,"d":"$987"},{"v":1128,"d":"$1,128"},{"v":1251,"d":"$1,251"},{"v":1293,"d":"$1,293"},{"v":1356,"d":"$1,356"},{"v":1383,"d":"$1,383"}]
{"$rows_empty":23}
["KANSAS CITY","MO",null,null,{"v":765,"d":"$765"},{"v":765,"d":"$765"},{"v":765,"d":"$765"},{"v":765,"d":"$765"},{"v":861,"d":"$861"},{"v":921,"d":"$921"},{"v":1005,"d":"$1,005"},{"v":1119,"d":"$1,119"},{"v":1158,"d":"$1,158"},{"v":966,"d":"$966"},{"v":1119,"d":"$1,119"},{"v":1161,"d":"$1,161"},{"v":1230,"d":"$1,230"},{"v":1269,"d":"$1,269"},{"v":1095,"d":"$1,095"},{"v":1149,"d":"$1,149"},{"v":1221,"d":"$1,221"},{"v":906,"d":"$906"},{"v":1062,"d":"$1,062"},{"v":1176,"d":"$1,176"},{"v":1263,"d":"$1,263"},{"v":1338,"d":"$1,338"},{"v":1353,"d":"$1,353"},{"v":1365,"d":"$1,365"}]
{"$rows_empty":23}
["ST. LOUIS","MO",null,null,{"v":870,"d":"$870"},{"v":870,"d":"$870"},{"v":870,"d":"$870"},{"v":870,"d":"$870"},{"v":993,"d":"$993"},{"v":1137,"d":"$1,137"},{"v":1149,"d":"$1,149"},{"v":1290,"d":"$1,290"},{"v":1377,"d":"$1,377"},{"v":1137,"d":"$1,137"},{"v":1287,"d":"$1,287"},{"v":1386,"d":"$1,386"},{"v":1518,"d":"$1,518"},{"v":1527,"d":"$1,527"},{"v":1233,"d":"$1,233"},{"v":1356,"d":"$1,356"},{"v":1515,"d":"$1,515"},{"v":1053,"d":"$1,053"},{"v":1203,"d":"$1,203"},{"v":1413,"d":"$1,413"},{"v":1527,"d":"$1,527"},{"v":1533,"d":"$1,533"},{"v":1545,"d":"$1,545"},{"v":1575,"d":"$1,575"}]
{"$rows_empty":23}
["WHITEMAN AFB","MO",null,null,{"v":591,"d":"$591"},{"v":591,"d":"$591"},{"v":591,"d":"$591"},{"v":591,"d":"$591"},{"v":687,"d":"$687"},{"v":858,"d":"$858"},{"v":918,"d":"$918"},{"v":984,"d":"$984"},{"v":1050,"d":"$1,050"},{"v":858,"d":"$858"},{"v":957,"d":"$957"},{"v":1038,"d":"$1,038"},{"v":1164,"d":"$1,164"},{"v":1245,"d":"$1,245"},{"v":930,"d":"$930"},{"v":1014,"d":"$1,014"},{"v":1143,"d":"$1,143"},{"v":705,"d":"$705"},{"v":870,"d":"$870"},{"v":1062,"d":"$1,062"},{"v":1233,"d":"$1,233"},{"v":1284,"d":"$1,284"},{"v":1368,"d":"$1,368"},{"v":1395,"d":"$1,395"}]
{"$rows_empty":23}
["FORT LEONARD WOOD","MO",null,null,{"v":717,"d":"$717"},{"v":717,"d":"$717"},{"v":717,"d":"$717"},{"v":717,"d":"$717"},{"v":792,"d":"$792"},{"v":840,"d":"$840"},{"v":924,"d":"$924"},{"v":1032,"d":"$1,032"},{"v":1062,"d":"$1,062"},{"v":885,"d":"$885"},{"v":1029,"d":"$1,029"},{"v":1065,"d":"$1,065"},{"v":1116,"d":"$1,116"},{"v":1125,"d":"$1,125"},{"v":1011,"d":"$1,011"},{"v":1056,"d":"$1,056"},{"v":1113,"d":"$1,113"},{"v":828,"d":"$828"},{"v":978,"d":"$978"},{"v":1077,"d":"$1,077"},{"v":1122,"d":"$1,122"},{"v":1128,"d":"$1,128"},{"v":1137,"d":"$1,137"},{"v":1158,"d":"$1,158"}]
{"$rows_empty":23}
["SPRINGFIELD","MO",null,null,{"v":705,"d":"$705"},{"v":705,"d":"$705"},{"v":705,"d":"$705"},{"v":705,"d":"$705"},{"v":816,"d":"$816"},{"v":882,"d":"$882"},{"v":945,"d":"$945"},{"v":1011,"d":"$1,011"},{"v":1020,"d":"$1,020"},{"v":915,"d":"$915"},{"v":1011,"d":"$1,011"},{"v":1023,"d":"$1,023"},{"v":1047,"d":"$1,047"},{"v":1086,"d":"$1,086"},{"v":1005,"d":"$1,005"},{"v":1020,"d":"$1,020"},{"v":1035,"d":"$1,035"},{"v":873,"d":"$873"},{"v":984,"d":"$984"},{"v":1026,"d":"$1,026"},{"v":1080,"d":"$1,080"},{"v":1143,"d":"$1,143"},{"v":1155,"d":"$1,155"},{"v":1167,"d":"$1,167"}]
{"$rows_empty":23}
["COLUMBIA/JEFFERSON CITY","MO",null,null,{"v":693,"d":"$693"},{"v":693,"d":"$693"},{"v":693,"d":"$693"},{"v":693,"d":"$693"},{"v":741,"d":"$741"},{"v":798,"d":"$798"},{"v":828,"d":"$828"},{"v":918,"d":"$918"},{"v":975,"d":"$975"},{"v":804,"d":"$804"},{"v":918,"d":"$918"},{"v":981,"d":"$981"},{"v":1068,"d":"$1,068"},{"v":1095,"d":"$1,095"},{"v":882,"d":"$882"},{"v":963,"d":"$963"},{"v":1062,"d":"$1,062"},{"v":768,"d":"$768"},{"v":864,"d":"$864"},{"v":999,"d":"$999"},{"v":1089,"d":"$1,089"},{"v":1107,"d":"$1,107"},{"v":1134,"d":"$1,134"},{"v":1155,"d":"$1,155"}]
{"$rows_empty":23}
["CAPE GIRARDEAU","MO",null,null,{"v":648,"d":"$648"},{"v":648,"d":"$648"},{"v":648,"d":"$648"},{"v":648,"d":"$648"},{"v":765,"d":"$765"},{"v":909,"d":"$909"},{"v":933,"d":"$933"},{"v":1056,"d":"$1,056"},{"v":1116,"d":"$1,116"},{"v":909,"d":"$909"},{"v":1056,"d":"$1,056"},{"v":1122,"d":"$1,122"},{"v":1221,"d":"$1,221"},{"v":1254,"d":"$1,254"},{"v":1017,"d":"$1,017"},{"v":1104,"d":"$1,104"},{"v":1212,"d":"$1,212"},{"v":780,"d":"$780"},{"v":966,"d":"$966"},{"v":1143,"d":"$1,143"},{"v":1248,"d":"$1,248"},{"v":1269,"d":"$1,269"},{"v":1305,"d":"$1,305"},{"v":1329,"d":"$1,329"}]
{"$rows_empty":23}
["SAINT JOSEPH","MO",null,null,{"v":597,"d":"$597"},{"v":597,"d":"$597"},{"v":597,"d":"$597"},{"v":597,"d":"$597"},{"v":678,"d":"$678"},{"v":849,"d":"$849"},{"v":876,"d":"$876"},{"v":948,"d":"$948"},{"v":1020,"d":"$1,020"},{"v":852,"d":"$852"},{"v":945,"d":"$945"},{"v":1026,"d":"$1,026"},{"v":1143,"d":"$1,143"},{"v":1179,"d":"$1,179"},{"v":903,"d":"$903"},{"v":1005,"d":"$1,005"},{"v":1134,"d":"$1,134"},{"v":696,"d":"$696"},{"v":864,"d":"$864"},{"v":1050,"d":"$1,050"},{"v":1173,"d":"$1,173"},{"v":1197,"d":"$1,197"},{"v":1233,"d":"$1,233"},{"v":1257,"d":"$1,257"}]
{"$rows_empty":23}
["GULFPORT","MS",null,null,{"v":918,"d":"$918"},{"v":918,"d":"$918"},{"v":918,"d":"$918"},{"v":918,"d":"$918"},{"v":1008,"d":"$1,008"},{"v":1068,"d":"$1,068"},{"v":1158,"d":"$1,158"},{"v":1287,"d":"$1,287"},{"v":1338,"d":"$1,338"},{"v":1116,"d":"$1,116"},{"v":1284,"d":"$1,284"},{"v":1344,"d":"$1,344"},{"v":1422,"d":"$1,422"},{"v":1431,"d":"$1,431"},{"v":1254,"d":"$1,254"},{"v":1326,"d":"$1,326"},{"v":1419,"d":"$1,419"},{"v":1053,"d":"$1,053"},{"v":1218,"d":"$1,218"},{"v":1359,"d":"$1,359"},{"v":1431,"d":"$1,431"},{"v":1464,"d":"$1,464"},{"v":1479,"d":"$1,479"},{"v":1494,"d":"$1,494"}]
{"$rows_empty":23}
["COLUMBUS AFB","MS",null,null,{"v":753,"d":"$753"},{"v":753,"d":"$753"},{"v":753,"d":"$753"},{"v":753,"d":"$753"},{"v":840,"d":"$840"},{"v":882,"d":"$882"},{"v":921,"d":"$921"},{"v":984,"d":"$984"},{"v":1065,"d":"$1,065"},{"v":888,"d":"$888"},{"v":948,"d":"$948"},{"v":1038,"d":"$1,038"},{"v":1173,"d":"$1,173"},{"v":1248,"d":"$1,248"},{"v":936,"d":"$936"},{"v":1014,"d":"$1,014"},{"v":1155,"d":"$1,155"},{"v":882,"d":"$882"},{"v":897,"d":"$897"},{"v":1062,"d":"$1,062"},{"v":1239,"d":"$1,239"},{"v":1287,"d":"$1,287"},{"v":1365,"d":"$1,365"},{"v":1392,"d":"$1,392"}]
{"$rows_empty":23}
["JACKSON","MS",null,null,{"v":888,"d":"$888"},{"v":888,"d":"$888"},{"v":888,"d":"$888"},{"v":888,"d":"$888"},{"v":999,"d":"$999"},{"v":1062,"d":"$1,062"},{"v":1116,"d":"$1,116"},{"v":1188,"d":"$1,188"},{"v":1209,"d":"$1,209"},{"v":1092,"d":"$1,092"},{"v":1188,"d":"$1,188"},{"v":1212,"d":"$1,212"},{"v":1269,"d":"$1,269"},{"v":1368,"d":"$1,368"},{"v":1173,"d":"$1,173"},{"v":1206,"d":"$1,206"},{"v":1245,"d":"$1,245"},{"v":1053,"d":"$1,053"},{"v":1152,"d":"$1,152"},{"v":1218,"d":"$1,218"},{"v":1356,"d":"$1,356"},{"v":1419,"d":"$1,419"},{"v":1521,"d":"$1,521"},{"v":1551,"d":"$1,551"}]
{"$rows_empty":23}
["MERIDIAN","MS",null,null,{"v":771,"d":"$771"},{"v":771,"d":"$771"},{"v":771,"d":"$771"},{"v":771,"d":"$771"},{"v":840,"d":"$840"},{"v":993,"d":"$993"},{"v":1002,"d":"$1,002"},{"v":1113,"d":"$1,113"},{"v":1194,"d":"$1,194"},{"v":993,"d":"$993"},{"v":1110,"d":"$1,110"},{"v":1203,"d":"$1,203"},{"v":1326,"d":"$1,326"},{"v":1338,"d":"$1,338"},{"v":1059,"d":"$1,059"},{"v":1176,"d":"$1,176"},{"v":1326,"d":"$1,326"},{"v":876,"d":"$876"},{"v":1029,"d":"$1,029"},{"v":1230,"d":"$1,230"},{"v":1335,"d":"$1,335"},{"v":1371,"d":"$1,371"},{"v":1383,"d":"$1,383"},{"v":1398,"d":"$1,398"}]
{"$rows_empty":23}
["HATTIESBURG","MS",null,null,{"v":807,"d":"$807"},{"v":807,"d":"$807"},{"v":807,"d":"$807"},{"v":807,"d":"$807"},{"v":891,"d":"$891"},{"v":948,"d":"$948"},{"v":1035,"d":"$1,035"},{"v":1140,"d":"$1,140"},{"v":1164,"d":"$1,164"},{"v":993,"d":"$993"},{"v":1140,"d":"$1,140"},{"v":1167,"d":"$1,167"},{"v":1206,"d":"$1,206"},{"v":1224,"d":"$1,224"},{"v":1125,"d":"$1,125"},{"v":1161,"d":"$1,161"},{"v":1203,"d":"$1,203"},{"v":936,"d":"$936"},{"v":1095,"d":"$1,095"},{"v":1176,"d":"$1,176"},{"v":1221,"d":"$1,221"},{"v":1233,"d":"$1,233"},{"v":1251,"d":"$1,251"},{"v":1275,"d":"$1,275"}]
{"$rows_empty":23}
["PASCAGOULA","MS",null,null,{"v":951,"d":"$951"},{"v":951,"d":"$951"},{"v":951,"d":"$951"},{"v":951,"d":"$951"},{"v":1017,"d":"$1,017"},{"v":1056,"d":"$1,056"},{"v":1098,"d":"$1,098"},{"v":1191,"d":"$1,191"},{"v":1272,"d":"$1,272"},{"v":1077,"d":"$1,077"},{"v":1188,"d":"$1,188"},{"v":1278,"d":"$1,278"},{"v":1404,"d":"$1,404"},{"v":1434,"d":"$1,434"},{"v":1140,"d":"$1,140"},{"v":1254,"d":"$1,254"},{"v":1395,"d":"$1,395"},{"v":1047,"d":"$1,047"},{"v":1125,"d":"$1,125"},{"v":1305,"d":"$1,305"},{"v":1428,"d":"$1,428"},{"v":1449,"d":"$1,449"},{"v":1479,"d":"$1,479"},{"v":1509,"d":"$1,509"}]
{"$rows_empty":23}
["GREENVILLE","MS",null,null,{"v":693,"d":"$693"},{"v":693,"d":"$693"},{"v":693,"d":"$693"},{"v":693,"d":"$693"},{"v":786,"d":"$786"},{"v":837,"d":"$837"},{"v":879,"d":"$879"},{"v":951,"d":"$951"},{"v":990,"d":"$990"},{"v":858,"d":"$858"},{"v":948,"d":"$948"},{"v":993,"d":"$993"},{"v":1059,"d":"$1,059"},{"v":1086,"d":"$1,086"},{"v":924,"d":"$924"},{"v":981,"d":"$981"},{"v":1050,"d":"$1,050"},{"v":831,"d":"$831"},{"v":909,"d":"$909"},{"v":1005,"d":"$1,005"},{"v":1083,"d":"$1,083"},{"v":1101,"d":"$1,101"},{"v":1131,"d":"$1,131"},{"v":1155,"d":"$1,155"}]
{"$rows_empty":23}
["TUPELO","MS",null,null,{"v":633,"d":"$633"},{"v":633,"d":"$633"},{"v":633,"d":"$633"},{"v":633,"d":"$633"},{"v":705,"d":"$705"},{"v":864,"d":"$864"},{"v":885,"d":"$885"},{"v":957,"d":"$957"},{"v":1032,"d":"$1,032"},{"v":864,"d":"$864"},{"v":954,"d":"$954"},{"v":1041,"d":"$1,041"},{"v":1158,"d":"$1,158"},{"v":1188,"d":"$1,188"},{"v":909,"d":"$909"},{"v":1017,"d":"$1,017"},{"v":1152,"d":"$1,152"},{"v":744,"d":"$744"},{"v":882,"d":"$882"},{"v":1065,"d":"$1,065"},{"v":1185,"d":"$1,185"},{"v":1209,"d":"$1,209"},{"v":1233,"d":"$1,233"},{"v":1257,"d":"$1,257"}]
{"$rows_empty":23}
["MALMSTROM AFB/GREAT FALLS","MT",null,null,{"v":621,"d":"$621"},{"v":621,"d":"$621"},{"v":621,"d":"$621"},{"v":621,"d":"$621"},{"v":708,"d":"$708"},{"v":828,"d":"$828"},{"v":891,"d":"$891"},{"v":975,"d":"$975"},{"v":1029,"d":"$1,029"},{"v":828,"d":"$828"},{"v":972,"d":"$972"},{"v":1029,"d":"$1,029"},{"v":1125,"d":"$1,125"},{"v":1206,"d":"$1,206"},{"v":942,"d":"$942"},{"v":1014,"d":"$1,014"},{"v":1104,"d":"$1,104"},{"v":720,"d":"$720"},{"v":903,"d":"$903"},{"v":1044,"d":"$1,044"},{"v":1194,"d":"$1,194"},{"v":1248,"d":"$1,248"},{"v":1335,"d":"$1,335"},{"v":1362,"d":"$1,362"}]
{"$rows_empty":23}
["HELENA","MT",null,null,{"v":639,"d":"$639"},{"v":639,"d":"$639"},{"v":639,"d":"$639"},{"v":639,"d":"$639"},{"v":711,"d":"$711"},{"v":987,"d":"$987"},{"v":993,"d":"$993"},{"v":1020,"d":"$1,020"},{"v":1134,"d":"$1,134"},{"v":987,"d":"$987"},{"v":1014,"d":"$1,014"},{"v":1146,"d":"$1,146"},{"v":1317,"d":"$1,317"},{"v":1326,"d":"$1,326"},{"v":996,"d":"$996"},{"v":1107,"d":"$1,107"},{"v":1317,"d":"$1,317"},{"v":744,"d":"$744"},{"v":981,"d":"$981"},{"v":1182,"d":"$1,182"},{"v":1326,"d":"$1,326"},{"v":1332,"d":"$1,332"},{"v":1341,"d":"$1,341"},{"v":1368,"d":"$1,368"}]
{"$rows_empty":23}
["BILLINGS","MT",null,null,{"v":720,"d":"$720"},{"v":720,"d":"$720"},{"v":720,"d":"$720"},{"v":720,"d":"$720"},{"v":816,"d":"$816"},{"v":933,"d":"$933"},{"v":990,"d":"$990"},{"v":1089,"d":"$1,089"},{"v":1149,"d":"$1,149"},{"v":936,"d":"$936"},{"v":1089,"d":"$1,089"},{"v":1155,"d":"$1,155"},{"v":1263,"d":"$1,263"},{"v":1338,"d":"$1,338"},{"v":1050,"d":"$1,050"},{"v":1137,"d":"$1,137"},{"v":1245,"d":"$1,245"},{"v":873,"d":"$873"},{"v":1020,"d":"$1,020"},{"v":1176,"d":"$1,176"},{"v":1326,"d":"$1,326"},{"v":1374,"d":"$1,374"},{"v":1449,"d":"$1,449"},{"v":1479,"d":"$1,479"}]
{"$rows_empty":23}
["MISSOULA","MT",null,null,{"v":735,"d":"$735"},{"v":735,"d":"$735"},{"v":735,"d":"$735"},{"v":735,"d":"$735"},{"v":804,"d":"$804"},{"v":867,"d":"$867"},{"v":963,"d":"$963"},{"v":1065,"d":"$1,065"},{"v":1173,"d":"$1,173"},{"v":894,"d":"$894"},{"v":1044,"d":"$1,044"},{"v":1131,"d":"$1,131"},{"v":1191,"d":"$1,191"},{"v":1314,"d":"$1,314"},{"v":1017,"d":"$1,017"},{"v":1113,"d":"$1,113"},{"v":1200,"d":"$1,200"},{"v":837,"d":"$837"},{"v":987,"d":"$987"},{"v":1125,"d":"$1,125"},{"v":1296,"d":"$1,296"},{"v":1398,"d":"$1,398"},{"v":1509,"d":"$1,509"},{"v":1539,"d":"$1,539"}]
{"$rows_empty":23}
["OUTER BANKS","NC",null,null,{"v":966,"d":"$966"},{"v":966,"d":"$966"},{"v":966,"d":"$966"},{"v":966,"d":"$966"},{"v":1038,"d":"$1,038"},{"v":1170,"d":"$1,170"},{"v":1221,"d":"$1,221"},{"v":1308,"d":"$1,308"},{"v":1404,"d":"$1,404"},{"v":1170,"d":"$1,170"},{"v":1305,"d":"$1,305"},{"v":1416,"d":"$1,416"},{"v":1578,"d":"$1,578"},{"v":1644,"d":"$1,644"},{"v":1245,"d":"$1,245"},{"v":1383,"d":"$1,383"},{"v":1560,"d":"$1,560"},{"v":1074,"d":"$1,074"},{"v":1215,"d":"$1,215"},{"v":1446,"d":"$1,446"},{"v":1635,"d":"$1,635"},{"v":1680,"d":"$1,680"},{"v":1749,"d":"$1,749"},{"v":1785,"d":"$1,785"}]
{"$rows_empty":23}
["MOREHEAD/CHERRY PT MCAS","NC",null,null,{"v":822,"d":"$822"},{"v":822,"d":"$822"},{"v":822,"d":"$822"},{"v":822,"d":"$822"},{"v":933,"d":"$933"},{"v":1056,"d":"$1,056"},{"v":1122,"d":"$1,122"},{"v":1227,"d":"$1,227"},{"v":1296,"d":"$1,296"},{"v":1065,"d":"$1,065"},{"v":1224,"d":"$1,224"},{"v":1305,"d":"$1,305"},{"v":1431,"d":"$1,431"},{"v":1518,"d":"$1,518"},{"v":1182,"d":"$1,182"},{"v":1281,"d":"$1,281"},{"v":1410,"d":"$1,410"},{"v":1014,"d":"$1,014"},{"v":1152,"d":"$1,152"},{"v":1326,"d":"$1,326"},{"v":1506,"d":"$1,506"},{"v":1560,"d":"$1,560"},{"v":1650,"d":"$1,650"},{"v":1683,"d":"$1,683"}]
["CAMP LEJEUNE","NC",null,null,{"v":849,"d":"$849"},{"v":849,"d":"$849"},{"v":849,"d":"$849"},{"v":849,"d":"$849"},{"v":954,"d":"$954"},{"v":1011,"d":"$1,011"},{"v":1047,"d":"$1,047"},{"v":1134,"d":"$1,134"},{"v":1215,"d":"$1,215"},{"v":1032,"d":"$1,032"},{"v":1134,"d":"$1,134"},{"v":1224,"d":"$1,224"},{"v":1356,"d":"$1,356"},{"v":1410,"d":"$1,410"},{"v":1083,"d":"$1,083"},{"v":1197,"d":"$1,197"},{"v":1341,"d":"$1,341"},{"v":1008,"d":"$1,008"},{"v":1071,"d":"$1,071"},{"v":1248,"d":"$1,248"},{"v":1404,"d":"$1,404"},{"v":1437,"d":"$1,437"},{"v":1494,"d":"$1,494"},{"v":1524,"d":"$1,524"}]
["CHARLOTTE","NC",null,null,{"v":867,"d":"$867"},{"v":867,"d":"$867"},{"v":867,"d":"$867"},{"v":867,"d":"$867"},{"v":984,"d":"$984"},{"v":1137,"d":"$1,137"},{"v":1143,"d":"$1,143"},{"v":1281,"d":"$1,281"},{"v":1371,"d":"$1,371"},{"v":1137,"d":"$1,137"},{"v":1278,"d":"$1,278"},{"v":1380,"d":"$1,380"},{"v":1518,"d":"$1,518"},{"v":1527,"d":"$1,527"},{"v":1221,"d":"$1,221"},{"v":1350,"d":"$1,350"},{"v":1518,"d":"$1,518"},{"v":1041,"d":"$1,041"},{"v":1191,"d":"$1,191"},{"v":1410,"d":"$1,410"},{"v":1527,"d":"$1,527"},{"v":1533,"d":"$1,533"},{"v":1542,"d":"$1,542"},{"v":1572,"d":"$1,572"}]
["DURHAM/CHAPEL HILL","NC",null,null,{"v":903,"d":"$903"},{"v":903,"d":"$903"},{"v":903,"d":"$903"},{"v":903,"d":"$903"},{"v":1026,"d":"$1,026"},{"v":1101,"d":"$1,101"},{"v":1188,"d":"$1,188"},{"v":1302,"d":"$1,302"},{"v":1341,"d":"$1,341"},{"v":1146,"d":"$1,146"},{"v":1299,"d":"$1,299"},{"v":1347,"d":"$1,347"},{"v":1419,"d":"$1,419"},{"v":1464,"d":"$1,464"},{"v":1275,"d":"$1,275"},{"v":1332,"d":"$1,332"},{"v":1407,"d":"$1,407"},{"v":1086,"d":"$1,086"},{"v":1242,"d":"$1,242"},{"v":1359,"d":"$1,359"},{"v":1485,"d":"$1,485"},{"v":1725,"d":"$1,725"},{"v":1743,"d":"$1,743"},{"v":1761,"d":"$1,761"}]
["ELIZABETH CITY","NC",null,null,{"v":1083,"d":"$1,083"},{"v":1083,"d":"$1,083"},{"v":1083,"d":"$1,083"},{"v":1083,"d":"$1,083"},{"v":1146,"d":"$1,146"},{"v":1233,"d":"$1,233"},{"v":1302,"d":"$1,302"},{"v":1455,"d":"$1,455"},{"v":1530,"d":"$1,530"},{"v":1251,"d":"$1,251"},{"v":1455,"d":"$1,455"},{"v":1536,"d":"$1,536"},{"v":1665,"d":"$1,665"},{"v":1746,"d":"$1,746"},{"v":1410,"d":"$1,410"},{"v":1512,"d":"$1,512"},{"v":1644,"d":"$1,644"},{"v":1179,"d":"$1,179"},{"v":1371,"d":"$1,371"},{"v":1560,"d":"$1,560"},{"v":1734,"d":"$1,734"},{"v":1788,"d":"$1,788"},{"v":1872,"d":"$1,872"},{"v":1908,"d":"$1,908"}]
["FORT BRAGG/POPE AFB","NC",null,null,{"v":831,"d":"$831"},{"v":831,"d":"$831"},{"v":831,"d":"$831"},{"v":831,"d":"$831"},{"v":948,"d":"$948"},{"v":1014,"d":"$1,014"},{"v":1071,"d":"$1,071"},{"v":1158,"d":"$1,158"},{"v":1209,"d":"$1,209"},{"v":1044,"d":"$1,044"},{"v":1158,"d":"$1,158"},{"v":1215,"d":"$1,215"},{"v":1314,"d":"$1,314"},{"v":1398,"d":"$1,398"},{"v":1125,"d":"$1,125"},{"v":1197,"d":"$1,197"},{"v":1290,"d":"$1,290"},{"v":1008,"d":"$1,008"},{"v":1104,"d":"$1,104"},{"v":1230,"d":"$1,230"},{"v":1386,"d":"$1,386"},{"v":1443,"d":"$1,443"},{"v":1530,"d":"$1,530"},{"v":1563,"d":"$1,563"}]
["SEYMORE JOHNSON AFB","NC",null,null,{"v":747,"d":"$747"},{"v":747,"d":"$747"},{"v":747,"d":"$747"},{"v":747,"d":"$747"},{"v":867,"d":"$867"},{"v":975,"d":"$975"},{"v":1044,"d":"$1,044"},{"v":1122,"d":"$1,122"},{"v":1200,"d":"$1,200"},{"v":975,"d":"$975"},{"v":1104,"d":"$1,104"},{"v":1188,"d":"$1,188"},{"v":1323,"d":"$1,323"},{"v":1416,"d":"$1,416"},{"v":1062,"d":"$1,062"},{"v":1164,"d":"$1,164"},{"v":1299,"d":"$1,299"},{"v":936,"d":"$936"},{"v":1038,"d":"$1,038"},{"v":1212,"d":"$1,212"},{"v":1404,"d":"$1,404"},{"v":1464,"d":"$1,464"},{"v":1560,"d":"$1,560"},{"v":1593,"d":"$1,593"}]
["GREENSBORO","NC",null,null,{"v":717,"d":"$717"},{"v":717,"d":"$717"},{"v":717,"d":"$717"},{"v":717,"d":"$717"},{"v":810,"d":"$810"},{"v":867,"d":"$867"},{"v":933,"d":"$933"},{"v":1026,"d":"$1,026"},{"v":1062,"d":"$1,062"},{"v":900,"d":"$900"},{"v":1023,"d":"$1,023"},{"v":1065,"d":"$1,065"},{"v":1134,"d":"$1,134"},{"v":1173,"d":"$1,173"},{"v":999,"d":"$999"},{"v":1053,"d":"$1,053"},{"v":1122,"d":"$1,122"},{"v":855,"d":"$855"},{"v":975,"d":"$975"},{"v":1080,"d":"$1,080"},{"v":1167,"d":"$1,167"},{"v":1239,"d":"$1,239"},{"v":1251,"d":"$1,251"},{"v":1263,"d":"$1,263"}]
["RALEIGH","NC",null,null,{"v":864,"d":"$864"},{"v":864,"d":"$864"},{"v":864,"d":"$864"},{"v":864,"d":"$864"},{"v":963,"d":"$963"},{"v":1020,"d":"$1,020"},{"v":1068,"d":"$1,068"},{"v":1167,"d":"$1,167"},{"v":1242,"d":"$1,242"},{"v":1047,"d":"$1,047"},{"v":1164,"d":"$1,164"},{"v":1248,"d":"$1,248"},{"v":1371,"d":"$1,371"},{"v":1413,"d":"$1,413"},{"v":1116,"d":"$1,116"},{"v":1224,"d":"$1,224"},{"v":1359,"d":"$1,359"},{"v":1014,"d":"$1,014"},{"v":1098,"d":"$1,098"},{"v":1272,"d":"$1,272"},{"v":1431,"d":"$1,431"},{"v":1665,"d":"$1,665"},{"v":1683,"d":"$1,683"},{"v":1698,"d":"$1,698"}]
["WILMINGTON","NC",null,null,{"v":966,"d":"$966"},{"v":966,"d":"$966"},{"v":966,"d":"$966"},{"v":966,"d":"$966"},{"v":1089,"d":"$1,089"},{"v":1161,"d":"$1,161"},{"v":1236,"d":"$1,236"},{"v":1332,"d":"$1,332"},{"v":1365,"d":"$1,365"},{"v":1200,"d":"$1,200"},{"v":1332,"d":"$1,332"},{"v":1368,"d":"$1,368"},{"v":1431,"d":"$1,431"},{"v":1503,"d":"$1,503"},{"v":1311,"d":"$1,311"},{"v":1356,"d":"$1,356"},{"v":1416,"d":"$1,416"},{"v":1149,"d":"$1,149"},{"v":1284,"d":"$1,284"},{"v":1377,"d":"$1,377"},{"v":1494,"d":"$1,494"},{"v":1536,"d":"$1,536"},{"v":1608,"d":"$1,608"},{"v":1641,"d":"$1,641"}]
["ASHEVILLE","NC",null,null,{"v":879,"d":"$879"},{"v":879,"d":"$879"},{"v":879,"d":"$879"},{"v":879,"d":"$879"},{"v":993,"d":"$993"},{"v":1083,"d":"$1,083"},{"v":1149,"d":"$1,149"},{"v":1278,"d":"$1,278"},{"v":1344,"d":"$1,344"},{"v":1107,"d":"$1,107"},{"v":1275,"d":"$1,275"},{"v":1350,"d":"$1,350"},{"v":1461,"d":"$1,461"},{"v":1533,"d":"$1,533"},{"v":1236,"d":"$1,236"},{"v":1329,"d":"$1,329"},{"v":1446,"d":"$1,446"},{"v":1050,"d":"$1,050"},{"v":1203,"d":"$1,203"},{"v":1371,"d":"$1,371"},{"v":1524,"d":"$1,524"},{"v":1596,"d":"$1,596"},{"v":1638,"d":"$1,638"},{"v":1671,"d":"$1,671"}]
["GREENVILLE","NC",null,null,{"v":720,"d":"$720"},{"v":720,"d":"$720"},{"v":720,"d":"$720"},{"v":720,"d":"$720"},{"v":798,"d":"$798"},{"v":897,"d":"$897"},{"v":1002,"d":"$1,002"},{"v":1113,"d":"$1,113"},{"v":1218,"d":"$1,218"},{"v":900,"d":"$900"},{"v":1047,"d":"$1,047"},{"v":1185,"d":"$1,185"},{"v":1233,"d":"$1,233"},{"v":1368,"d":"$1,368"},{"v":1023,"d":"$1,023"},{"v":1164,"d":"$1,164"},{"v":1242,"d":"$1,242"},{"v":837,"d":"$837"},{"v":981,"d":"$981"},{"v":1179,"d":"$1,179"},{"v":1350,"d":"$1,350"},{"v":1437,"d":"$1,437"},{"v":1578,"d":"$1,578"},{"v":1611,"d":"$1,611"}]
["BISMARCK","ND",null,null,{"v":723,"d":"$723"},{"v":723,"d":"$723"},{"v":723,"d":"$723"},{"v":723,"d":"$723"},{"v":831,"d":"$831"},{"v":1035,"d":"$1,035"},{"v":1095,"d":"$1,095"},{"v":1161,"d":"$1,161"},{"v":1248,"d":"$1,248"},{"v":1038,"d":"$1,038"},{"v":1158,"d":"$1,158"},{"v":1254,"d":"$1,254"},{"v":1401,"d":"$1,401"},{"v":1479,"d":"$1,479"},{"v":1107,"d":"$1,107"},{"v":1227,"d":"$1,227"},{"v":1380,"d":"$1,380"},{"v":852,"d":"$852"},{"v":1059,"d":"$1,059"},{"v":1281,"d":"$1,281"},{"v":1467,"d":"$1,467"},{"v":1518,"d":"$1,518"},{"v":1599,"d":"$1,599"},{"v":1629,"d":"$1,629"}]
["FARGO","ND",null,null,{"v":678,"d":"$678"},{"v":678,"d":"$678"},{"v":678,"d":"$678"},{"v":678,"d":"$678"},{"v":768,"d":"$768"},{"v":1029,"d":"$1,029"},{"v":1050,"d":"$1,050"},{"v":1092,"d":"$1,092"},{"v":1200,"d":"$1,200"},{"v":1029,"d":"$1,029"},{"v":1089,"d":"$1,089"},{"v":1212,"d":"$1,212"},{"v":1380,"d":"$1,380"},{"v":1404,"d":"$1,404"},{"v":1053,"d":"$1,053"},{"v":1176,"d":"$1,176"},{"v":1371,"d":"$1,371"},{"v":795,"d":"$795"},{"v":1023,"d":"$1,023"},{"v":1245,"d":"$1,245"},{"v":1401,"d":"$1,401"},{"v":1419,"d":"$1,419"},{"v":1446,"d":"$1,446"},{"v":1476,"d":"$1,476"}]
["GRAND FORKS","ND",null,null,{"v":678,"d":"$678"},{"v":678,"d":"$678"},{"v":678,"d":"$678"},{"v":678,"d":"$678"},{"v":756,"d":"$756"},{"v":936,"d":"$936"},{"v":984,"d":"$984"},{"v":1047,"d":"$1,047"},{"v":1125,"d":"$1,125"},{"v":936,"d":"$936"},{"v":1044,"d":"$1,044"},{"v":1131,"d":"$1,131"},{"v":1263,"d":"$1,263"},{"v":1329,"d":"$1,329"},{"v":999,"d":"$999"},{"v":1107,"d":"$1,107"},{"v":1245,"d":"$1,245"},{"v":810,"d":"$810"},{"v":966,"d":"$966"},{"v":1158,"d":"$1,158"},{"v":1320,"d":"$1,320"},{"v":1362,"d":"$1,362"},{"v":1428,"d":"$1,428"},{"v":1458,"d":"$1,458"}]
["MINOT AFB","ND",null,null,{"v":666,"d":"$666"},{"v":666,"d":"$666"},{"v":666,"d":"$666"},{"v":666,"d":"$666"},{"v":753,"d":"$753"},{"v":1032,"d":"$1,032"},{"v":1047,"d":"$1,047"},{"v":1062,"d":"$1,062"},{"v":1179,"d":"$1,179"},{"v":1032,"d":"$1,032"},{"v":1053,"d":"$1,053"},{"v":1191,"d":"$1,191"},{"v":1380,"d":"$1,380"},{"v":1401,"d":"$1,401"},{"v":1050,"d":"$1,050"},{"v":1149,"d":"$1,149"},{"v":1374,"d":"$1,374"},{"v":795,"d":"$795"},{"v":1026,"d":"$1,026"},{"v":1230,"d":"$1,230"},{"v":1398,"d":"$1,398"},{"v":1410,"d":"$1,410"},{"v":1431,"d":"$1,431"},{"v":1461,"d":"$1,461"}]
["OMAHA/OFFUTT AFB","NE",null,null,{"v":729,"d":"$729"},{"v":729,"d":"$729"},{"v":729,"d":"$729"},{"v":729,"d":"$729"},{"v":822,"d":"$822"},{"v":975,"d":"$975"},{"v":1014,"d":"$1,014"},{"v":1122,"d":"$1,122"},{"v":1191,"d":"$1,191"},{"v":975,"d":"$975"},{"v":1119,"d":"$1,119"},{"v":1197,"d":"$1,197"},{"v":1314,"d":"$1,314"},{"v":1368,"d":"$1,368"},{"v":1077,"d":"$1,077"},{"v":1176,"d":"$1,176"},{"v":1299,"d":"$1,299"},{"v":867,"d":"$867"},{"v":1041,"d":"$1,041"},{"v":1221,"d":"$1,221"},{"v":1359,"d":"$1,359"},{"v":1392,"d":"$1,392"},{"v":1449,"d":"$1,449"},{"v":1476,"d":"$1,476"}]
["LINCOLN","NE",null,null,{"v":777,"d":"$777"},{"v":777,"d":"$777"},{"v":777,"d":"$777"},{"v":777,"d":"$777"},{"v":870,"d":"$870"},{"v":933,"d":"$933"},{"v":1038,"d":"$1,038"},{"v":1161,"d":"$1,161"},{"v":1188,"d":"$1,188"},{"v":990,"d":"$990"},{"v":1161,"d":"$1,161"},{"v":1191,"d":"$1,191"},{"v":1236,"d":"$1,236"},{"v":1266,"d":"$1,266"},{"v":1146,"d":"$1,146"},{"v":1182,"d":"$1,182"},{"v":1227,"d":"$1,227"},{"v":918,"d":"$918"},{"v":1107,"d":"$1,107"},{"v":1197,"d":"$1,197"},{"v":1260,"d":"$1,260"},{"v":1281,"d":"$1,281"},{"v":1311,"d":"$1,311"},{"v":1338,"d":"$1,338"}]
["PORTSMOUTH","NH",null,null,{"v":993,"d":"$993"},{"v":993,"d":"$993"},{"v":993,"d":"$993"},{"v":993,"d":"$993"},{"v":1119,"d":"$1,119"},{"v":1422,"d":"$1,422"},{"v":1497,"d":"$1,497"},{"v":1581,"d":"$1,581"},{"v":1698,"d":"$1,698"},{"v":1422,"d":"$1,422"},{"v":1569,"d":"$1,569"},{"v":1710,"d":"$1,710"},{"v":1920,"d":"$1,920"},{"v":2022,"d":"$2,022"},{"v":1515,"d":"$1,515"},{"v":1668,"d":"$1,668"},{"v":1893,"d":"$1,893"},{"v":1158,"d":"$1,158"},{"v":1434,"d":"$1,434"},{"v":1749,"d":"$1,749"},{"v":2010,"d":"$2,010"},{"v":2076,"d":"$2,076"},{"v":2181,"d":"$2,181"},{"v":2226,"d":"$2,226"}]
["MANCHESTER/CONCORD","NH",null,null,{"v":1113,"d":"$1,113"},{"v":1113,"d":"$1,113"},{"v":1113,"d":"$1,113"},{"v":1113,"d":"$1,113"},{"v":1245,"d":"$1,245"},{"v":1395,"d":"$1,395"},{"v":1494,"d":"$1,494"},{"v":1692,"d":"$1,692"},{"v":1755,"d":"$1,755"},{"v":1419,"d":"$1,419"},{"v":1689,"d":"$1,689"},{"v":1761,"d":"$1,761"},{"v":1875,"d":"$1,875"},{"v":1947,"d":"$1,947"},{"v":1650,"d":"$1,650"},{"v":1743,"d":"$1,743"},{"v":1857,"d":"$1,857"},{"v":1314,"d":"$1,314"},{"v":1593,"d":"$1,593"},{"v":1782,"d":"$1,782"},{"v":1938,"d":"$1,938"},{"v":1983,"d":"$1,983"},{"v":2058,"d":"$2,058"},{"v":2100,"d":"$2,100"}]
["ATLANTIC CITY","NJ",null,null,{"v":1062,"d":"$1,062"},{"v":1062,"d":"$1,062"},{"v":1062,"d":"$1,062"},{"v":1062,"d":"$1,062"},{"v":1191,"d":"$1,191"},{"v":1536,"d":"$1,536"},{"v":1545,"d":"$1,545"},{"v":1569,"d":"$1,569"},{"v":1752,"d":"$1,752"},{"v":1536,"d":"$1,536"},{"v":1563,"d":"$1,563"},{"v":1770,"d":"$1,770"},{"v":2049,"d":"$2,049"},{"v":2064,"d":"$2,064"},{"v":1548,"d":"$1,548"},{"v":1710,"d":"$1,710"},{"v":2046,"d":"$2,046"},{"v":1257,"d":"$1,257"},{"v":1527,"d":"$1,527"},{"v":1830,"d":"$1,830"},{"v":2061,"d":"$2,061"},{"v":2070,"d":"$2,070"},{"v":2085,"d":"$2,085"},{"v":2127,"d":"$2,127"}]
["CAMDEN","NJ",null,null,{"v":1164,"d":"$1,164"},{"v":1164,"d":"$1,164"},{"v":1164,"d":"$1,164"},{"v":1164,"d":"$1,164"},{"v":1308,"d":"$1,308"},{"v":1509,"d":"$1,509"},{"v":1578,"d":"$1,578"},{"v":1764,"d":"$1,764"},{"v":1860,"d":"$1,860"},{"v":1509,"d":"$1,509"},{"v":1761,"d":"$1,761"},{"v":1869,"d":"$1,869"},{"v":2034,"d":"$2,034"},{"v":2130,"d":"$2,130"},{"v":1701,"d":"$1,701"},{"v":1836,"d":"$1,836"},{"v":2010,"d":"$2,010"},{"v":1404,"d":"$1,404"},{"v":1650,"d":"$1,650"},{"v":1899,"d":"$1,899"},{"v":2115,"d":"$2,115"},{"v":2175,"d":"$2,175"},{"v":2274,"d":"$2,274"},{"v":2319,"d":"$2,319"}]
["CAPE MAY","NJ",null,null,{"v":1059,"d":"$1,059"},{"v":1059,"d":"$1,059"},{"v":1059,"d":"$1,059"},{"v":1059,"d":"$1,059"},{"v":1209,"d":"$1,209"},{"v":1377,"d":"$1,377"},{"v":1383,"d":"$1,383"},{"v":1512,"d":"$1,512"},{"v":1638,"d":"$1,638"},{"v":1377,"d":"$1,377"},{"v":1506,"d":"$1,506"},{"v":1650,"d":"$1,650"},{"v":1836,"d":"$1,836"},{"v":1848,"d":"$1,848"},{"v":1431,"d":"$1,431"},{"v":1608,"d":"$1,608"},{"v":1836,"d":"$1,836"},{"v":1284,"d":"$1,284"},{"v":1404,"d":"$1,404"},{"v":1689,"d":"$1,689"},{"v":1845,"d":"$1,845"},{"v":1851,"d":"$1,851"},{"v":1860,"d":"$1,860"},{"v":1899,"d":"$1,899"}]
["FORT MONMOUTH/EARLE NWS","NJ",null,null,{"v":1335,"d":"$1,335"},{"v":1335,"d":"$1,335"},{"v":1335,"d":"$1,335"},{"v":1335,"d":"$1,335"},{"v":1497,"d":"$1,497"},{"v":1782,"d":"$1,782"},{"v":1824,"d":"$1,824"},{"v":2073,"d":"$2,073"},{"v":2190,"d":"$2,190"},{"v":1782,"d":"$1,782"},{"v":2070,"d":"$2,070"},{"v":2202,"d":"$2,202"},{"v":2388,"d":"$2,388"},{"v":2445,"d":"$2,445"},{"v":1998,"d":"$1,998"},{"v":2163,"d":"$2,163"},{"v":2373,"d":"$2,373"},{"v":1563,"d":"$1,563"},{"v":1923,"d":"$1,923"},{"v":2238,"d":"$2,238"},{"v":2436,"d":"$2,436"},{"v":2622,"d":"$2,622"},{"v":2646,"d":"$2,646"},{"v":2673,"d":"$2,673"}]
["PERTH AMBOY","NJ",null,null,{"v":1248,"d":"$1,248"},{"v":1248,"d":"$1,248"},{"v":1248,"d":"$1,248"},{"v":1248,"d":"$1,248"},{"v":1431,"d":"$1,431"},{"v":1611,"d":"$1,611"},{"v":1671,"d":"$1,671"},{"v":1839,"d":"$1,839"},{"v":1959,"d":"$1,959"},{"v":1626,"d":"$1,626"},{"v":1836,"d":"$1,836"},{"v":1971,"d":"$1,971"},{"v":2166,"d":"$2,166"},{"v":2241,"d":"$2,241"},{"v":1764,"d":"$1,764"},{"v":1932,"d":"$1,932"},{"v":2148,"d":"$2,148"},{"v":1566,"d":"$1,566"},{"v":1728,"d":"$1,728"},{"v":2010,"d":"$2,010"},{"v":2232,"d":"$2,232"},{"v":2325,"d":"$2,325"},{"v":2358,"d":"$2,358"},{"v":2403,"d":"$2,403"}]
["NORTHERN NEW JERSEY","NJ",null,null,{"v":1482,"d":"$1,482"},{"v":1482,"d":"$1,482"},{"v":1482,"d":"$1,482"},{"v":1482,"d":"$1,482"},{"v":1635,"d":"$1,635"},{"v":2079,"d":"$2,079"},{"v":2082,"d":"$2,082"},{"v":2283,"d":"$2,283"},{"v":2472,"d":"$2,472"},{"v":2079,"d":"$2,079"},{"v":2277,"d":"$2,277"},{"v":2490,"d":"$2,490"},{"v":2772,"d":"$2,772"},{"v":2778,"d":"$2,778"},{"v":2160,"d":"$2,160"},{"v":2430,"d":"$2,430"},{"v":2772,"d":"$2,772"},{"v":1791,"d":"$1,791"},{"v":2097,"d":"$2,097"},{"v":2550,"d":"$2,550"},{"v":2778,"d":"$2,778"},{"v":2781,"d":"$2,781"},{"v":2787,"d":"$2,787"},{"v":2841,"d":"$2,841"}]
["TRENTON","NJ",null,null,{"v":1104,"d":"$1,104"},{"v":1104,"d":"$1,104"},{"v":1104,"d":"$1,104"},{"v":1104,"d":"$1,104"},{"v":1305,"d":"$1,305"},{"v":1593,"d":"$1,593"},{"v":1665,"d":"$1,665"},{"v":1815,"d":"$1,815"},{"v":1935,"d":"$1,935"},{"v":1596,"d":"$1,596"},{"v":1812,"d":"$1,812"},{"v":1947,"d":"$1,947"},{"v":2148,"d":"$2,148"},{"v":2241,"d":"$2,241"},{"v":1740,"d":"$1,740"},{"v":1908,"d":"$1,908"},{"v":2124,"d":"$2,124"},{"v":1335,"d":"$1,335"},{"v":1647,"d":"$1,647"},{"v":1986,"d":"$1,986"},{"v":2229,"d":"$2,229"},{"v":2289,"d":"$2,289"},{"v":2388,"d":"$2,388"},{"v":2436,"d":"$2,436"}]
["FT DIX/MCGUIRE/LAKEHURST","NJ",null,null,{"v":1167,"d":"$1,167"},{"v":1167,"d":"$1,167"},{"v":1167,"d":"$1,167"},{"v":1167,"d":"$1,167"},{"v":1302,"d":"$1,302"},{"v":1605,"d":"$1,605"},{"v":1653,"d":"$1,653"},{"v":1788,"d":"$1,788"},{"v":1923,"d":"$1,923"},{"v":1605,"d":"$1,605"},{"v":1785,"d":"$1,785"},{"v":1938,"d":"$1,938"},{"v":2157,"d":"$2,157"},{"v":2223,"d":"$2,223"},{"v":1701,"d":"$1,701"},{"v":1893,"d":"$1,893"},{"v":2139,"d":"$2,139"},{"v":1413,"d":"$1,413"},{"v":1653,"d":"$1,653"},{"v":1980,"d":"$1,980"},{"v":2214,"d":"$2,214"},{"v":2256,"d":"$2,256"},{"v":2325,"d":"$2,325"},{"v":2370,"d":"$2,370"}]
["HOLLOMAN AFB/ALAMOGORDO","NM",null,null,{"v":687,"d":"$687"},{"v":687,"d":"$687"},{"v":687,"d":"$687"},{"v":687,"d":"$687"},{"v":777,"d":"$777"},{"v":909,"d":"$909"},{"v":993,"d":"$993"},{"v":1083,"d":"$1,083"},{"v":1182,"d":"$1,182"},{"v":912,"d":"$912"},{"v":1068,"d":"$1,068"},{"v":1143,"d":"$1,143"},{"v":1242,"d":"$1,242"},{"v":1353,"d":"$1,353"},{"v":1035,"d":"$1,035"},{"v":1125,"d":"$1,125"},{"v":1212,"d":"$1,212"},{"v":795,"d":"$795"},{"v":993,"d":"$993"},{"v":1149,"d":"$1,149"},{"v":1338,"d":"$1,338"},{"v":1407,"d":"$1,407"},{"v":1524,"d":"$1,524"},{"v":1554,"d":"$1,554"}]
["ALBUQUERQUE/KIRTLAND AFB","NM",null,null,{"v":831,"d":"$831"},{"v":831,"d":"$831"},{"v":831,"d":"$831"},{"v":831,"d":"$831"},{"v":936,"d":"$936"},{"v":987,"d":"$987"},{"v":1116,"d":"$1,116"},{"v":1257,"d":"$1,257"},{"v":1272,"d":"$1,272"},{"v":1053,"d":"$1,053"},{"v":1257,"d":"$1,257"},{"v":1275,"d":"$1,275"},{"v":1311,"d":"$1,311"},{"v":1368,"d":"$1,368"},{"v":1248,"d":"$1,248"},{"v":1269,"d":"$1,269"},{"v":1299,"d":"$1,299"},{"v":969,"d":"$969"},{"v":1200,"d":"$1,200"},{"v":1281,"d":"$1,281"},{"v":1359,"d":"$1,359"},{"v":1395,"d":"$1,395"},{"v":1452,"d":"$1,452"},{"v":1479,"d":"$1,479"}]
["CANNON AFB/CLOVIS","NM",null,null,{"v":678,"d":"$678"},{"v":678,"d":"$678"},{"v":678,"d":"$678"},{"v":678,"d":"$678"},{"v":780,"d":"$780"},{"v":987,"d":"$987"},{"v":999,"d":"$999"},{"v":1095,"d":"$1,095"},{"v":1182,"d":"$1,182"},{"v":987,"d":"$987"},{"v":1092,"d":"$1,092"},{"v":1188,"d":"$1,188"},{"v":1320,"d":"$1,320"},{"v":1335,"d":"$1,335"},{"v":1041,"d":"$1,041"},{"v":1161,"d":"$1,161"},{"v":1314,"d":"$1,314"},{"v":804,"d":"$804"},{"v":996,"d":"$996"},{"v":1215,"d":"$1,215"},{"v":1332,"d":"$1,332"},{"v":1344,"d":"$1,344"},{"v":1362,"d":"$1,362"},{"v":1389,"d":"$1,389"}]
["WHITE SANDS MR/LAS CRUCES","NM",null,null,{"v":672,"d":"$672"},{"v":672,"d":"$672"},{"v":672,"d":"$672"},{"v":672,"d":"$672"},{"v":747,"d":"$747"},{"v":825,"d":"$825"},{"v":903,"d":"$903"},{"v":1017,"d":"$1,017"},{"v":1047,"d":"$1,047"},{"v":858,"d":"$858"},{"v":1014,"d":"$1,014"},{"v":1050,"d":"$1,050"},{"v":1116,"d":"$1,116"},{"v":1191,"d":"$1,191"},{"v":996,"d":"$996"},{"v":1041,"d":"$1,041"},{"v":1098,"d":"$1,098"},{"v":795,"d":"$795"},{"v":963,"d":"$963"},{"v":1062,"d":"$1,062"},{"v":1179,"d":"$1,179"},{"v":1227,"d":"$1,227"},{"v":1302,"d":"$1,302"},{"v":1329,"d":"$1,329"}]
["SANTA FE/LOS ALAMOS","NM",null,null,{"v":903,"d":"$903"},{"v":903,"d":"$903"},{"v":903,"d":"$903"},{"v":903,"d":"$903"},{"v":957,"d":"$957"},{"v":1110,"d":"$1,110"},{"v":1161,"d":"$1,161"},{"v":1302,"d":"$1,302"},{"v":1371,"d":"$1,371"},{"v":1110,"d":"$1,110"},{"v":1299,"d":"$1,299"},{"v":1377,"d":"$1,377"},{"v":1497,"d":"$1,497"},{"v":1566,"d":"$1,566"},{"v":1257,"d":"$1,257"},{"v":1356,"d":"$1,356"},{"v":1479,"d":"$1,479"},{"v":984,"d":"$984"},{"v":1209,"d":"$1,209"},{"v":1398,"d":"$1,398"},{"v":1554,"d":"$1,554"},{"v":1680,"d":"$1,680"},{"v":1698,"d":"$1,698"},{"v":1713,"d":"$1,713"}]
["LAKE TAHOE","NV",null,null,{"v":834,"d":"$834"},{"v":834,"d":"$834"},{"v":834,"d":"$834"},{"v":834,"d":"$834"},{"v":972,"d":"$972"},{"v":1275,"d":"$1,275"},{"v":1284,"d":"$1,284"},{"v":1296,"d":"$1,296"},{"v":1431,"d":"$1,431"},{"v":1275,"d":"$1,275"},{"v":1290,"d":"$1,290"},{"v":1449,"d":"$1,449"},{"v":1704,"d":"$1,704"},{"v":1716,"d":"$1,716"},{"v":1287,"d":"$1,287"},{"v":1395,"d":"$1,395"},{"v":1701,"d":"$1,701"},{"v":1041,"d":"$1,041"},{"v":1269,"d":"$1,269"},{"v":1503,"d":"$1,503"},{"v":1716,"d":"$1,716"},{"v":1722,"d":"$1,722"},{"v":1737,"d":"$1,737"},{"v":1770,"d":"$1,770"}]
["FALLON NAS","NV",null,null,{"v":687,"d":"$687"},{"v":687,"d":"$687"},{"v":687,"d":"$687"},{"v":687,"d":"$687"},{"v":777,"d":"$777"},{"v":831,"d":"$831"},{"v":873,"d":"$873"},{"v":948,"d":"$948"},{"v":1011,"d":"$1,011"},{"v":852,"d":"$852"},{"v":945,"d":"$945"},{"v":999,"d":"$999"},{"v":1092,"d":"$1,092"},{"v":1179,"d":"$1,179"},{"v":918,"d":"$918"},{"v":984,"d":"$984"},{"v":1068,"d":"$1,068"},{"v":822,"d":"$822"},{"v":900,"d":"$900"},{"v":1014,"d":"$1,014"},{"v":1167,"d":"$1,167"},{"v":1221,"d":"$1,221"},{"v":1311,"d":"$1,311"},{"v":1338,"d":"$1,338"}]
["NELLIS AFB/LAS VEGAS","NV",null,null,{"v":993,"d":"$993"},{"v":993,"d":"$993"},{"v":993,"d":"$993"},{"v":993,"d":"$993"},{"v":1098,"d":"$1,098"},{"v":1155,"d":"$1,155"},{"v":1200,"d":"$1,200"},{"v":1275,"d":"$1,275"},{"v":1323,"d":"$1,323"},{"v":1179,"d":"$1,179"},{"v":1272,"d":"$1,272"},{"v":1326,"d":"$1,326"},{"v":1425,"d":"$1,425"},{"v":1536,"d":"$1,536"},{"v":1242,"d":"$1,242"},{"v":1311,"d":"$1,311"},{"v":1398,"d":"$1,398"},{"v":1149,"d":"$1,149"},{"v":1227,"d":"$1,227"},{"v":1341,"d":"$1,341"},{"v":1521,"d":"$1,521"},{"v":1590,"d":"$1,590"},{"v":1704,"d":"$1,704"},{"v":1737,"d":"$1,737"}]
["RENO/CARSON CITY","NV",null,null,{"v":810,"d":"$810"},{"v":810,"d":"$810"},{"v":810,"d":"$810"},{"v":810,"d":"$810"},{"v":924,"d":"$924"},{"v":1032,"d":"$1,032"},{"v":1083,"d":"$1,083"},{"v":1209,"d":"$1,209"},{"v":1275,"d":"$1,275"},{"v":1044,"d":"$1,044"},{"v":1209,"d":"$1,209"},{"v":1281,"d":"$1,281"},{"v":1392,"d":"$1,392"},{"v":1458,"d":"$1,458"},{"v":1170,"d":"$1,170"},{"v":1260,"d":"$1,260"},{"v":1377,"d":"$1,377"},{"v":990,"d":"$990"},{"v":1137,"d":"$1,137"},{"v":1302,"d":"$1,302"},{"v":1449,"d":"$1,449"},{"v":1491,"d":"$1,491"},{"v":1560,"d":"$1,560"},{"v":1590,"d":"$1,590"}]
["BALLSTON SPA/ALBANY","NY",null,null,{"v":1104,"d":"$1,104"},{"v":1104,"d":"$1,104"},{"v":1104,"d":"$1,104"},{"v":1104,"d":"$1,104"},{"v":1236,"d":"$1,236"},{"v":1317,"d":"$1,317"},{"v":1482,"d":"$1,482"},{"v":1665,"d":"$1,665"},{"v":1689,"d":"$1,689"},{"v":1401,"d":"$1,401"},{"v":1665,"d":"$1,665"},{"v":1692,"d":"$1,692"},{"v":1749,"d":"$1,749"},{"v":1842,"d":"$1,842"},{"v":1650,"d":"$1,650"},{"v":1683,"d":"$1,683"},{"v":1728,"d":"$1,728"},{"v":1290,"d":"$1,290"},{"v":1587,"d":"$1,587"},{"v":1698,"d":"$1,698"},{"v":1830,"d":"$1,830"},{"v":1890,"d":"$1,890"},{"v":1986,"d":"$1,986"},{"v":2025,"d":"$2,025"}]
["BUFFALO","NY",null,null,{"v":822,"d":"$822"},{"v":822,"d":"$822"},{"v":822,"d":"$822"},{"v":822,"d":"$822"},{"v":945,"d":"$945"},{"v":999,"d":"$999"},{"v":1095,"d":"$1,095"},{"v":1275,"d":"$1,275"},{"v":1296,"d":"$1,296"},{"v":1017,"d":"$1,017"},{"v":1272,"d":"$1,272"},{"v":1299,"d":"$1,299"},{"v":1353,"d":"$1,353"},{"v":1443,"d":"$1,443"},{"v":1260,"d":"$1,260"},{"v":1290,"d":"$1,290"},{"v":1329,"d":"$1,329"},{"v":951,"d":"$951"},{"v":1200,"d":"$1,200"},{"v":1305,"d":"$1,305"},{"v":1431,"d":"$1,431"},{"v":1491,"d":"$1,491"},{"v":1584,"d":"$1,584"},{"v":1617,"d":"$1,617"}]
["WEST POINT","NY",null,null,{"v":1410,"d":"$1,410"},{"v":1410,"d":"$1,410"},{"v":1410,"d":"$1,410"},{"v":1410,"d":"$1,410"},{"v":1596,"d":"$1,596"},{"v":1764,"d":"$1,764"},{"v":1893,"d":"$1,893"},{"v":2172,"d":"$2,172"},{"v":2241,"d":"$2,241"},{"v":1785,"d":"$1,785"},{"v":2169,"d":"$2,169"},{"v":2250,"d":"$2,250"},{"v":2370,"d":"$2,370"},{"v":2439,"d":"$2,439"},{"v":2127,"d":"$2,127"},{"v":2226,"d":"$2,226"},{"v":2352,"d":"$2,352"},{"v":1632,"d":"$1,632"},{"v":2043,"d":"$2,043"},{"v":2271,"d":"$2,271"},{"v":2430,"d":"$2,430"},{"v":2472,"d":"$2,472"},{"v":2544,"d":"$2,544"},{"v":2595,"d":"$2,595"}]
["LONG ISLAND","NY",null,null,{"v":1704,"d":"$1,704"},{"v":1704,"d":"$1,704"},{"v":1704,"d":"$1,704"},{"v":1704,"d":"$1,704"},{"v":1941,"d":"$1,941"},{"v":2106,"d":"$2,106"},{"v":2286,"d":"$2,286"},{"v":2505,"d":"$2,505"},{"v":2568,"d":"$2,568"},{"v":2199,"d":"$2,199"},{"v":2505,"d":"$2,505"},{"v":2574,"d":"$2,574"},{"v":2709,"d":"$2,709"},{"v":2892,"d":"$2,892"},{"v":2466,"d":"$2,466"},{"v":2553,"d":"$2,553"},{"v":2664,"d":"$2,664"},{"v":2079,"d":"$2,079"},{"v":2400,"d":"$2,400"},{"v":2592,"d":"$2,592"},{"v":2868,"d":"$2,868"},{"v":2985,"d":"$2,985"},{"v":3174,"d":"$3,174"},{"v":3237,"d":"$3,237"}]
["NEW YORK CITY","NY",null,null,{"v":2241,"d":"$2,241"},{"v":2241,"d":"$2,241"},{"v":2241,"d":"$2,241"},{"v":2241,"d":"$2,241"},{"v":2496,"d":"$2,496"},{"v":2628,"d":"$2,628"},{"v":2691,"d":"$2,691"},{"v":2808,"d":"$2,808"},{"v":2898,"d":"$2,898"},{"v":2661,"d":"$2,661"},{"v":2805,"d":"$2,805"},{"v":2907,"d":"$2,907"},{"v":3045,"d":"$3,045"},{"v":3072,"d":"$3,072"},{"v":2751,"d":"$2,751"},{"v":2877,"d":"$2,877"},{"v":3036,"d":"$3,036"},{"v":2619,"d":"$2,619"},{"v":2730,"d":"$2,730"},{"v":2934,"d":"$2,934"},{"v":3069,"d":"$3,069"},{"v":3087,"d":"$3,087"},{"v":3117,"d":"$3,117"},{"v":3180,"d":"$3,180"}]
["ROCHESTER","NY",null,null,{"v":903,"d":"$903"},{"v":903,"d":"$903"},{"v":903,"d":"$903"},{"v":903,"d":"$903"},{"v":1008,"d":"$1,008"},{"v":1083,"d":"$1,083"},{"v":1212,"d":"$1,212"},{"v":1356,"d":"$1,356"},{"v":1377,"d":"$1,377"},{"v":1152,"d":"$1,152"},{"v":1356,"d":"$1,356"},{"v":1380,"d":"$1,380"},{"v":1416,"d":"$1,416"},{"v":1446,"d":"$1,446"},{"v":1344,"d":"$1,344"},{"v":1371,"d":"$1,371"},{"v":1410,"d":"$1,410"},{"v":1065,"d":"$1,065"},{"v":1296,"d":"$1,296"},{"v":1386,"d":"$1,386"},{"v":1440,"d":"$1,440"},{"v":1458,"d":"$1,458"},{"v":1488,"d":"$1,488"},{"v":1518,"d":"$1,518"}]
["ROME/GRIFFISS AFB","NY",null,null,{"v":747,"d":"$747"},{"v":747,"d":"$747"},{"v":747,"d":"$747"},{"v":747,"d":"$747"},{"v":819,"d":"$819"},{"v":921,"d":"$921"},{"v":1002,"d":"$1,002"},{"v":1107,"d":"$1,107"},{"v":1140,"d":"$1,140"},{"v":963,"d":"$963"},{"v":1107,"d":"$1,107"},{"v":1143,"d":"$1,143"},{"v":1209,"d":"$1,209"},{"v":1278,"d":"$1,278"},{"v":1086,"d":"$1,086"},{"v":1134,"d":"$1,134"},{"v":1194,"d":"$1,194"},{"v":909,"d":"$909"},{"v":1056,"d":"$1,056"},{"v":1155,"d":"$1,155"},{"v":1269,"d":"$1,269"},{"v":1311,"d":"$1,311"},{"v":1383,"d":"$1,383"},{"v":1410,"d":"$1,410"}]
["SYRACUSE","NY",null,null,{"v":747,"d":"$747"},{"v":747,"d":"$747"},{"v":747,"d":"$747"},{"v":747,"d":"$747"},{"v":834,"d":"$834"},{"v":975,"d":"$975"},{"v":1029,"d":"$1,029"},{"v":1104,"d":"$1,104"},{"v":1179,"d":"$1,179"},{"v":975,"d":"$975"},{"v":1101,"d":"$1,101"},{"v":1185,"d":"$1,185"},{"v":1317,"d":"$1,317"},{"v":1392,"d":"$1,392"},{"v":1053,"d":"$1,053"},{"v":1161,"d":"$1,161"},{"v":1299,"d":"$1,299"},{"v":876,"d":"$876"},{"v":1023,"d":"$1,023"},{"v":1212,"d":"$1,212"},{"v":1383,"d":"$1,383"},{"v":1428,"d":"$1,428"},{"v":1506,"d":"$1,506"},{"v":1536,"d":"$1,536"}]
["FT.DRUM/WATERTOWN","NY",null,null,{"v":960,"d":"$960"},{"v":960,"d":"$960"},{"v":960,"d":"$960"},{"v":960,"d":"$960"},{"v":1107,"d":"$1,107"},{"v":1188,"d":"$1,188"},{"v":1251,"d":"$1,251"},{"v":1344,"d":"$1,344"},{"v":1395,"d":"$1,395"},{"v":1221,"d":"$1,221"},{"v":1344,"d":"$1,344"},{"v":1401,"d":"$1,401"},{"v":1491,"d":"$1,491"},{"v":1563,"d":"$1,563"},{"v":1314,"d":"$1,314"},{"v":1383,"d":"$1,383"},{"v":1473,"d":"$1,473"},{"v":1179,"d":"$1,179"},{"v":1290,"d":"$1,290"},{"v":1416,"d":"$1,416"},{"v":1554,"d":"$1,554"},{"v":1599,"d":"$1,599"},{"v":1674,"d":"$1,674"},{"v":1707,"d":"$1,707"}]
["BINGHAMTON/ITHACA","NY",null,null,{"v":837,"d":"$837"},{"v":837,"d":"$837"},{"v":837,"d":"$837"},{"v":837,"d":"$837"},{"v":936,"d":"$936"},{"v":1218,"d":"$1,218"},{"v":1266,"d":"$1,266"},{"v":1323,"d":"$1,323"},{"v":1440,"d":"$1,440"},{"v":1218,"d":"$1,218"},{"v":1320,"d":"$1,320"},{"v":1449,"d":"$1,449"},{"v":1638,"d":"$1,638"},{"v":1707,"d":"$1,707"},{"v":1278,"d":"$1,278"},{"v":1413,"d":"$1,413"},{"v":1623,"d":"$1,623"},{"v":984,"d":"$984"},{"v":1212,"d":"$1,212"},{"v":1488,"d":"$1,488"},{"v":1698,"d":"$1,698"},{"v":1740,"d":"$1,740"},{"v":1809,"d":"$1,809"},{"v":1845,"d":"$1,845"}]
["WESTCHESTER COUNTY","NY",null,null,{"v":1440,"d":"$1,440"},{"v":1440,"d":"$1,440"},{"v":1440,"d":"$1,440"},{"v":1440,"d":"$1,440"},{"v":1647,"d":"$1,647"},{"v":1968,"d":"$1,968"},{"v":2100,"d":"$2,100"},{"v":2238,"d":"$2,238"},{"v":2406,"d":"$2,406"},{"v":1971,"d":"$1,971"},{"v":2157,"d":"$2,157"},{"v":2349,"d":"$2,349"},{"v":2667,"d":"$2,667"},{"v":2841,"d":"$2,841"},{"v":2127,"d":"$2,127"},{"v":2304,"d":"$2,304"},{"v":2625,"d":"$2,625"},{"v":1812,"d":"$1,812"},{"v":1986,"d":"$1,986"},{"v":2409,"d":"$2,409"},{"v":2817,"d":"$2,817"},{"v":2928,"d":"$2,928"},{"v":3105,"d":"$3,105"},{"v":3168,"d":"$3,168"}]
["STATEN ISLAND","NY",null,null,{"v":1359,"d":"$1,359"},{"v":1359,"d":"$1,359"},{"v":1359,"d":"$1,359"},{"v":1359,"d":"$1,359"},{"v":1527,"d":"$1,527"},{"v":1857,"d":"$1,857"},{"v":1875,"d":"$1,875"},{"v":2124,"d":"$2,124"},{"v":2259,"d":"$2,259"},{"v":1857,"d":"$1,857"},{"v":2118,"d":"$2,118"},{"v":2271,"d":"$2,271"},{"v":2481,"d":"$2,481"},{"v":2508,"d":"$2,508"},{"v":2034,"d":"$2,034"},{"v":2229,"d":"$2,229"},{"v":2475,"d":"$2,475"},{"v":1590,"d":"$1,590"},{"v":1959,"d":"$1,959"},{"v":2316,"d":"$2,316"},{"v":2505,"d":"$2,505"},{"v":2523,"d":"$2,523"},{"v":2550,"d":"$2,550"},{"v":2601,"d":"$2,601"}]
["POTSDAM","NY",null,null,{"v":684,"d":"$684"},{"v":684,"d":"$684"},{"v":684,"d":"$684"},{"v":684,"d":"$684"},{"v":774,"d":"$774"},{"v":894,"d":"$894"},{"v":912,"d":"$912"},{"v":978,"d":"$978"},{"v":1062,"d":"$1,062"},{"v":894,"d":"$894"},{"v":975,"d":"$975"},{"v":1068,"d":"$1,068"},{"v":1197,"d":"$1,197"},{"v":1221,"d":"$1,221"},{"v":924,"d":"$924"},{"v":1041,"d":"$1,041"},{"v":1191,"d":"$1,191"},{"v":819,"d":"$819"},{"v":906,"d":"$906"},{"v":1095,"d":"$1,095"},{"v":1218,"d":"$1,218"},{"v":1233,"d":"$1,233"},{"v":1257,"d":"$1,257"},{"v":1281,"d":"$1,281"}]
["KINGSTON/SAUGERTIES","NY",null,null,{"v":1032,"d":"$1,032"},{"v":1032,"d":"$1,032"},{"v":1032,"d":"$1,032"},{"v":1032,"d":"$1,032"},{"v":1182,"d":"$1,182"},{"v":1404,"d":"$1,404"},{"v":1428,"d":"$1,428"},{"v":1560,"d":"$1,560"},{"v":1680,"d":"$1,680"},{"v":1404,"d":"$1,404"},{"v":1557,"d":"$1,557"},{"v":1692,"d":"$1,692"},{"v":1881,"d":"$1,881"},{"v":1914,"d":"$1,914"},{"v":1482,"d":"$1,482"},{"v":1653,"d":"$1,653"},{"v":1872,"d":"$1,872"},{"v":1266,"d":"$1,266"},{"v":1446,"d":"$1,446"},{"v":1731,"d":"$1,731"},{"v":1908,"d":"$1,908"},{"v":1932,"d":"$1,932"},{"v":1965,"d":"$1,965"},{"v":2004,"d":"$2,004"}]
["AKRON","OH",null,null,{"v":753,"d":"$753"},{"v":753,"d":"$753"},{"v":753,"d":"$753"},{"v":753,"d":"$753"},{"v":852,"d":"$852"},{"v":909,"d":"$909"},{"v":957,"d":"$957"},{"v":1032,"d":"$1,032"},{"v":1068,"d":"$1,068"},{"v":933,"d":"$933"},{"v":1029,"d":"$1,029"},{"v":1071,"d":"$1,071"},{"v":1131,"d":"$1,131"},{"v":1152,"d":"$1,152"},{"v":1008,"d":"$1,008"},{"v":1059,"d":"$1,059"},{"v":1125,"d":"$1,125"},{"v":900,"d":"$900"},{"v":990,"d":"$990"},{"v":1083,"d":"$1,083"},{"v":1149,"d":"$1,149"},{"v":1197,"d":"$1,197"},{"v":1206,"d":"$1,206"},{"v":1218,"d":"$1,218"}]
["CINCINNATI","OH",null,null,{"v":930,"d":"$930"},{"v":930,"d":"$930"},{"v":930,"d":"$930"},{"v":930,"d":"$930"},{"v":1077,"d":"$1,077"},{"v":1161,"d":"$1,161"},{"v":1239,"d":"$1,239"},{"v":1335,"d":"$1,335"},{"v":1356,"d":"$1,356"},{"v":1203,"d":"$1,203"},{"v":1335,"d":"$1,335"},{"v":1356,"d":"$1,356"},{"v":1401,"d":"$1,401"},{"v":1452,"d":"$1,452"},{"v":1320,"d":"$1,320"},{"v":1350,"d":"$1,350"},{"v":1386,"d":"$1,386"},{"v":1149,"d":"$1,149"},{"v":1293,"d":"$1,293"},{"v":1362,"d":"$1,362"},{"v":1446,"d":"$1,446"},{"v":1479,"d":"$1,479"},{"v":1533,"d":"$1,533"},{"v":1563,"d":"$1,563"}]
["CLEVELAND","OH",null,null,{"v":804,"d":"$804"},{"v":804,"d":"$804"},{"v":804,"d":"$804"},{"v":804,"d":"$804"},{"v":912,"d":"$912"},{"v":972,"d":"$972"},{"v":1029,"d":"$1,029"},{"v":1107,"d":"$1,107"},{"v":1137,"d":"$1,137"},{"v":1002,"d":"$1,002"},{"v":1104,"d":"$1,104"},{"v":1140,"d":"$1,140"},{"v":1212,"d":"$1,212"},{"v":1302,"d":"$1,302"},{"v":1086,"d":"$1,086"},{"v":1131,"d":"$1,131"},{"v":1188,"d":"$1,188"},{"v":966,"d":"$966"},{"v":1065,"d":"$1,065"},{"v":1152,"d":"$1,152"},{"v":1290,"d":"$1,290"},{"v":1347,"d":"$1,347"},{"v":1437,"d":"$1,437"},{"v":1467,"d":"$1,467"}]
["COLUMBUS","OH",null,null,{"v":759,"d":"$759"},{"v":759,"d":"$759"},{"v":759,"d":"$759"},{"v":759,"d":"$759"},{"v":870,"d":"$870"},{"v":930,"d":"$930"},{"v":987,"d":"$987"},{"v":1077,"d":"$1,077"},{"v":1131,"d":"$1,131"},{"v":960,"d":"$960"},{"v":1074,"d":"$1,074"},{"v":1134,"d":"$1,134"},{"v":1227,"d":"$1,227"},{"v":1278,"d":"$1,278"},{"v":1041,"d":"$1,041"},{"v":1119,"d":"$1,119"},{"v":1215,"d":"$1,215"},{"v":924,"d":"$924"},{"v":1020,"d":"$1,020"},{"v":1152,"d":"$1,152"},{"v":1272,"d":"$1,272"},{"v":1437,"d":"$1,437"},{"v":1452,"d":"$1,452"},{"v":1464,"d":"$1,464"}]
["WRIGHT-PATTERSON AFB","OH",null,null,{"v":738,"d":"$738"},{"v":738,"d":"$738"},{"v":738,"d":"$738"},{"v":738,"d":"$738"},{"v":822,"d":"$822"},{"v":927,"d":"$927"},{"v":1005,"d":"$1,005"},{"v":1092,"d":"$1,092"},{"v":1179,"d":"$1,179"},{"v":930,"d":"$930"},{"v":1041,"d":"$1,041"},{"v":1146,"d":"$1,146"},{"v":1263,"d":"$1,263"},{"v":1368,"d":"$1,368"},{"v":1023,"d":"$1,023"},{"v":1131,"d":"$1,131"},{"v":1236,"d":"$1,236"},{"v":861,"d":"$861"},{"v":960,"d":"$960"},{"v":1143,"d":"$1,143"},{"v":1353,"d":"$1,353"},{"v":1419,"d":"$1,419"},{"v":1527,"d":"$1,527"},{"v":1557,"d":"$1,557"}]
["TOLEDO","OH",null,null,{"v":732,"d":"$732"},{"v":732,"d":"$732"},{"v":732,"d":"$732"},{"v":732,"d":"$732"},{"v":819,"d":"$819"},{"v":888,"d":"$888"},{"v":984,"d":"$984"},{"v":1107,"d":"$1,107"},{"v":1137,"d":"$1,137"},{"v":933,"d":"$933"},{"v":1107,"d":"$1,107"},{"v":1140,"d":"$1,140"},{"v":1191,"d":"$1,191"},{"v":1230,"d":"$1,230"},{"v":1089,"d":"$1,089"},{"v":1131,"d":"$1,131"},{"v":1182,"d":"$1,182"},{"v":861,"d":"$861"},{"v":1050,"d":"$1,050"},{"v":1149,"d":"$1,149"},{"v":1224,"d":"$1,224"},{"v":1290,"d":"$1,290"},{"v":1302,"d":"$1,302"},{"v":1314,"d":"$1,314"}]
["YOUNGSTOWN","OH",null,null,{"v":609,"d":"$609"},{"v":609,"d":"$609"},{"v":609,"d":"$609"},{"v":609,"d":"$609"},{"v":696,"d":"$696"},{"v":750,"d":"$750"},{"v":816,"d":"$816"},{"v":897,"d":"$897"},{"v":918,"d":"$918"},{"v":786,"d":"$786"},{"v":897,"d":"$897"},{"v":921,"d":"$921"},{"v":960,"d":"$960"},{"v":996,"d":"$996"},{"v":885,"d":"$885"},{"v":912,"d":"$912"},{"v":951,"d":"$951"},{"v":741,"d":"$741"},{"v":861,"d":"$861"},{"v":927,"d":"$927"},{"v":990,"d":"$990"},{"v":1014,"d":"$1,014"},{"v":1050,"d":"$1,050"},{"v":1071,"d":"$1,071"}]
["MANSFIELD","OH",null,null,{"v":576,"d":"$576"},{"v":576,"d":"$576"},{"v":576,"d":"$576"},{"v":576,"d":"$576"},{"v":666,"d":"$666"},{"v":720,"d":"$720"},{"v":756,"d":"$756"},{"v":831,"d":"$831"},{"v":882,"d":"$882"},{"v":738,"d":"$738"},{"v":831,"d":"$831"},{"v":885,"d":"$885"},{"v":969,"d":"$969"},{"v":1011,"d":"$1,011"},{"v":801,"d":"$801"},{"v":870,"d":"$870"},{"v":960,"d":"$960"},{"v":708,"d":"$708"},{"v":786,"d":"$786"},{"v":903,"d":"$903"},{"v":1005,"d":"$1,005"},{"v":1029,"d":"$1,029"},{"v":1071,"d":"$1,071"},{"v":1092,"d":"$1,092"}]
["LIMA","OH",null,null,{"v":633,"d":"$633"},{"v":633,"d":"$633"},{"v":633,"d":"$633"},{"v":633,"d":"$633"},{"v":726,"d":"$726"},{"v":783,"d":"$783"},{"v":843,"d":"$843"},{"v":927,"d":"$927"},{"v":963,"d":"$963"},{"v":813,"d":"$813"},{"v":927,"d":"$927"},{"v":966,"d":"$966"},{"v":1017,"d":"$1,017"},{"v":1026,"d":"$1,026"},{"v":906,"d":"$906"},{"v":954,"d":"$954"},{"v":1017,"d":"$1,017"},{"v":774,"d":"$774"},{"v":882,"d":"$882"},{"v":975,"d":"$975"},{"v":1026,"d":"$1,026"},{"v":1029,"d":"$1,029"},{"v":1038,"d":"$1,038"},{"v":1059,"d":"$1,059"}]
["ALTUS AFB","OK",null,null,{"v":600,"d":"$600"},{"v":600,"d":"$600"},{"v":600,"d":"$600"},{"v":600,"d":"$600"},{"v":687,"d":"$687"},{"v":852,"d":"$852"},{"v":864,"d":"$864"},{"v":957,"d":"$957"},{"v":1026,"d":"$1,026"},{"v":852,"d":"$852"},{"v":957,"d":"$957"},{"v":1032,"d":"$1,032"},{"v":1140,"d":"$1,140"},{"v":1158,"d":"$1,158"},{"v":915,"d":"$915"},{"v":1011,"d":"$1,011"},{"v":1134,"d":"$1,134"},{"v":705,"d":"$705"},{"v":876,"d":"$876"},{"v":1056,"d":"$1,056"},{"v":1155,"d":"$1,155"},{"v":1167,"d":"$1,167"},{"v":1185,"d":"$1,185"},{"v":1209,"d":"$1,209"}]
["VANCE AFB/ENID","OK",null,null,{"v":654,"d":"$654"},{"v":654,"d":"$654"},{"v":654,"d":"$654"},{"v":654,"d":"$654"},{"v":747,"d":"$747"},{"v":801,"d":"$801"},{"v":858,"d":"$858"},{"v":939,"d":"$939"},{"v":975,"d":"$975"},{"v":831,"d":"$831"},{"v":936,"d":"$936"},{"v":978,"d":"$978"},{"v":1047,"d":"$1,047"},{"v":1107,"d":"$1,107"},{"v":915,"d":"$915"},{"v":966,"d":"$966"},{"v":1032,"d":"$1,032"},{"v":792,"d":"$792"},{"v":894,"d":"$894"},{"v":990,"d":"$990"},{"v":1098,"d":"$1,098"},{"v":1209,"d":"$1,209"},{"v":1221,"d":"$1,221"},{"v":1233,"d":"$1,233"}]
["FORT SILL/LAWTON","OK",null,null,{"v":645,"d":"$645"},{"v":645,"d":"$645"},{"v":645,"d":"$645"},{"v":645,"d":"$645"},{"v":726,"d":"$726"},{"v":834,"d":"$834"},{"v":885,"d":"$885"},{"v":996,"d":"$996"},{"v":1041,"d":"$1,041"},{"v":834,"d":"$834"},{"v":993,"d":"$993"},{"v":1044,"d":"$1,044"},{"v":1128,"d":"$1,128"},{"v":1200,"d":"$1,200"},{"v":966,"d":"$966"},{"v":1029,"d":"$1,029"},{"v":1110,"d":"$1,110"},{"v":756,"d":"$756"},{"v":930,"d":"$930"},{"v":1059,"d":"$1,059"},{"v":1188,"d":"$1,188"},{"v":1233,"d":"$1,233"},{"v":1305,"d":"$1,305"},{"v":1332,"d":"$1,332"}]
["OKLAHOMA CITY","OK",null,null,{"v":657,"d":"$657"},{"v":657,"d":"$657"},{"v":657,"d":"$657"},{"v":657,"d":"$657"},{"v":753,"d":"$753"},{"v":879,"d":"$879"},{"v":903,"d":"$903"},{"v":969,"d":"$969"},{"v":1047,"d":"$1,047"},{"v":879,"d":"$879"},{"v":966,"d":"$966"},{"v":1056,"d":"$1,056"},{"v":1179,"d":"$1,179"},{"v":1212,"d":"$1,212"},{"v":918,"d":"$918"},{"v":1029,"d":"$1,029"},{"v":1173,"d":"$1,173"},{"v":801,"d":"$801"},{"v":900,"d":"$900"},{"v":1080,"d":"$1,080"},{"v":1206,"d":"$1,206"},{"v":1227,"d":"$1,227"},{"v":1257,"d":"$1,257"},{"v":1284,"d":"$1,284"}]
["TULSA","OK",null,null,{"v":645,"d":"$645"},{"v":645,"d":"$645"},{"v":645,"d":"$645"},{"v":645,"d":"$645"},{"v":744,"d":"$744"},{"v":840,"d":"$840"},{"v":924,"d":"$924"},{"v":1011,"d":"$1,011"},{"v":1113,"d":"$1,113"},{"v":843,"d":"$843"},{"v":960,"d":"$960"},{"v":1071,"d":"$1,071"},{"v":1149,"d":"$1,149"},{"v":1257,"d":"$1,257"},{"v":942,"d":"$942"},{"v":1053,"d":"$1,053"},{"v":1143,"d":"$1,143"},{"v":804,"d":"$804"},{"v":894,"d":"$894"},{"v":1065,"d":"$1,065"},{"v":1242,"d":"$1,242"},{"v":1347,"d":"$1,347"},{"v":1425,"d":"$1,425"},{"v":1455,"d":"$1,455"}]
["ASTORIA","OR",null,null,{"v":744,"d":"$744"},{"v":744,"d":"$744"},{"v":744,"d":"$744"},{"v":744,"d":"$744"},{"v":858,"d":"$858"},{"v":972,"d":"$972"},{"v":1050,"d":"$1,050"},{"v":1131,"d":"$1,131"},{"v":1206,"d":"$1,206"},{"v":975,"d":"$975"},{"v":1083,"d":"$1,083"},{"v":1185,"d":"$1,185"},{"v":1323,"d":"$1,323"},{"v":1425,"d":"$1,425"},{"v":1065,"d":"$1,065"},{"v":1170,"d":"$1,170"},{"v":1296,"d":"$1,296"},{"v":915,"d":"$915"},{"v":1008,"d":"$1,008"},{"v":1200,"d":"$1,200"},{"v":1410,"d":"$1,410"},{"v":1476,"d":"$1,476"},{"v":1581,"d":"$1,581"},{"v":1611,"d":"$1,611"}]
["COOS BAY","OR",null,null,{"v":633,"d":"$633"},{"v":633,"d":"$633"},{"v":633,"d":"$633"},{"v":633,"d":"$633"},{"v":699,"d":"$699"},{"v":864,"d":"$864"},{"v":924,"d":"$924"},{"v":990,"d":"$990"},{"v":1071,"d":"$1,071"},{"v":867,"d":"$867"},{"v":969,"d":"$969"},{"v":1047,"d":"$1,047"},{"v":1173,"d":"$1,173"},{"v":1254,"d":"$1,254"},{"v":939,"d":"$939"},{"v":1026,"d":"$1,026"},{"v":1152,"d":"$1,152"},{"v":765,"d":"$765"},{"v":897,"d":"$897"},{"v":1071,"d":"$1,071"},{"v":1242,"d":"$1,242"},{"v":1293,"d":"$1,293"},{"v":1374,"d":"$1,374"},{"v":1404,"d":"$1,404"}]
["PORTLAND","OR",null,null,{"v":897,"d":"$897"},{"v":897,"d":"$897"},{"v":897,"d":"$897"},{"v":897,"d":"$897"},{"v":996,"d":"$996"},{"v":1149,"d":"$1,149"},{"v":1194,"d":"$1,194"},{"v":1344,"d":"$1,344"},{"v":1419,"d":"$1,419"},{"v":1152,"d":"$1,152"},{"v":1344,"d":"$1,344"},{"v":1425,"d":"$1,425"},{"v":1548,"d":"$1,548"},{"v":1608,"d":"$1,608"},{"v":1299,"d":"$1,299"},{"v":1401,"d":"$1,401"},{"v":1533,"d":"$1,533"},{"v":1047,"d":"$1,047"},{"v":1254,"d":"$1,254"},{"v":1449,"d":"$1,449"},{"v":1599,"d":"$1,599"},{"v":1638,"d":"$1,638"},{"v":1698,"d":"$1,698"},{"v":1731,"d":"$1,731"}]
["SALEM","OR",null,null,{"v":696,"d":"$696"},{"v":696,"d":"$696"},{"v":696,"d":"$696"},{"v":696,"d":"$696"},{"v":792,"d":"$792"},{"v":879,"d":"$879"},{"v":951,"d":"$951"},{"v":1029,"d":"$1,029"},{"v":1116,"d":"$1,116"},{"v":882,"d":"$882"},{"v":1008,"d":"$1,008"},{"v":1080,"d":"$1,080"},{"v":1197,"d":"$1,197"},{"v":1290,"d":"$1,290"},{"v":969,"d":"$969"},{"v":1062,"d":"$1,062"},{"v":1173,"d":"$1,173"},{"v":840,"d":"$840"},{"v":948,"d":"$948"},{"v":1098,"d":"$1,098"},{"v":1278,"d":"$1,278"},{"v":1338,"d":"$1,338"},{"v":1437,"d":"$1,437"},{"v":1464,"d":"$1,464"}]
["CORVALLIS","OR",null,null,{"v":735,"d":"$735"},{"v":735,"d":"$735"},{"v":735,"d":"$735"},{"v":735,"d":"$735"},{"v":855,"d":"$855"},{"v":1005,"d":"$1,005"},{"v":1047,"d":"$1,047"},{"v":1098,"d":"$1,098"},{"v":1191,"d":"$1,191"},{"v":1005,"d":"$1,005"},{"v":1095,"d":"$1,095"},{"v":1200,"d":"$1,200"},{"v":1353,"d":"$1,353"},{"v":1407,"d":"$1,407"},{"v":1056,"d":"$1,056"},{"v":1170,"d":"$1,170"},{"v":1338,"d":"$1,338"},{"v":918,"d":"$918"},{"v":1017,"d":"$1,017"},{"v":1230,"d":"$1,230"},{"v":1401,"d":"$1,401"},{"v":1437,"d":"$1,437"},{"v":1494,"d":"$1,494"},{"v":1524,"d":"$1,524"}]
["EUGENE","OR",null,null,{"v":741,"d":"$741"},{"v":741,"d":"$741"},{"v":741,"d":"$741"},{"v":741,"d":"$741"},{"v":828,"d":"$828"},{"v":918,"d":"$918"},{"v":993,"d":"$993"},{"v":1113,"d":"$1,113"},{"v":1155,"d":"$1,155"},{"v":948,"d":"$948"},{"v":1110,"d":"$1,110"},{"v":1158,"d":"$1,158"},{"v":1242,"d":"$1,242"},{"v":1317,"d":"$1,317"},{"v":1086,"d":"$1,086"},{"v":1146,"d":"$1,146"},{"v":1221,"d":"$1,221"},{"v":888,"d":"$888"},{"v":1053,"d":"$1,053"},{"v":1173,"d":"$1,173"},{"v":1305,"d":"$1,305"},{"v":1461,"d":"$1,461"},{"v":1476,"d":"$1,476"},{"v":1491,"d":"$1,491"}]
["KLAMATH FALLS","OR",null,null,{"v":627,"d":"$627"},{"v":627,"d":"$627"},{"v":627,"d":"$627"},{"v":627,"d":"$627"},{"v":711,"d":"$711"},{"v":831,"d":"$831"},{"v":876,"d":"$876"},{"v":942,"d":"$942"},{"v":1008,"d":"$1,008"},{"v":834,"d":"$834"},{"v":942,"d":"$942"},{"v":1014,"d":"$1,014"},{"v":1122,"d":"$1,122"},{"v":1182,"d":"$1,182"},{"v":900,"d":"$900"},{"v":993,"d":"$993"},{"v":1110,"d":"$1,110"},{"v":771,"d":"$771"},{"v":879,"d":"$879"},{"v":1035,"d":"$1,035"},{"v":1173,"d":"$1,173"},{"v":1209,"d":"$1,209"},{"v":1269,"d":"$1,269"},{"v":1293,"d":"$1,293"}]
["CARLISLE BARRACKS","PA",null,null,{"v":897,"d":"$897"},{"v":897,"d":"$897"},{"v":897,"d":"$897"},{"v":897,"d":"$897"},{"v":1029,"d":"$1,029"},{"v":1104,"d":"$1,104"},{"v":1167,"d":"$1,167"},{"v":1263,"d":"$1,263"},{"v":1311,"d":"$1,311"},{"v":1137,"d":"$1,137"},{"v":1263,"d":"$1,263"},{"v":1314,"d":"$1,314"},{"v":1398,"d":"$1,398"},{"v":1443,"d":"$1,443"},{"v":1233,"d":"$1,233"},{"v":1299,"d":"$1,299"},{"v":1386,"d":"$1,386"},{"v":1095,"d":"$1,095"},{"v":1209,"d":"$1,209"},{"v":1329,"d":"$1,329"},{"v":1437,"d":"$1,437"},{"v":1488,"d":"$1,488"},{"v":1518,"d":"$1,518"},{"v":1548,"d":"$1,548"}]
["PHILADELPHIA","PA",null,null,{"v":1164,"d":"$1,164"},{"v":1164,"d":"$1,164"},{"v":1164,"d":"$1,164"},{"v":1164,"d":"$1,164"},{"v":1308,"d":"$1,308"},{"v":1509,"d":"$1,509"},{"v":1578,"d":"$1,578"},{"v":1764,"d":"$1,764"},{"v":1860,"d":"$1,860"},{"v":1509,"d":"$1,509"},{"v":1761,"d":"$1,761"},{"v":1869,"d":"$1,869"},{"v":2034,"d":"$2,034"},{"v":2130,"d":"$2,130"},{"v":1701,"d":"$1,701"},{"v":1836,"d":"$1,836"},{"v":2010,"d":"$2,010"},{"v":1404,"d":"$1,404"},{"v":1650,"d":"$1,650"},{"v":1899,"d":"$1,899"},{"v":2115,"d":"$2,115"},{"v":2175,"d":"$2,175"},{"v":2274,"d":"$2,274"},{"v":2319,"d":"$2,319"}]
["NAS WILLOW GROVE","PA",null,null,{"v":1233,"d":"$1,233"},{"v":1233,"d":"$1,233"},{"v":1233,"d":"$1,233"},{"v":1233,"d":"$1,233"},{"v":1413,"d":"$1,413"},{"v":1560,"d":"$1,560"},{"v":1641,"d":"$1,641"},{"v":1827,"d":"$1,827"},{"v":1926,"d":"$1,926"},{"v":1584,"d":"$1,584"},{"v":1824,"d":"$1,824"},{"v":1935,"d":"$1,935"},{"v":2085,"d":"$2,085"},{"v":2109,"d":"$2,109"},{"v":1764,"d":"$1,764"},{"v":1902,"d":"$1,902"},{"v":2079,"d":"$2,079"},{"v":1503,"d":"$1,503"},{"v":1719,"d":"$1,719"},{"v":1965,"d":"$1,965"},{"v":2106,"d":"$2,106"},{"v":2121,"d":"$2,121"},{"v":2148,"d":"$2,148"},{"v":2190,"d":"$2,190"}]
["PITTSBURGH","PA",null,null,{"v":1002,"d":"$1,002"},{"v":1002,"d":"$1,002"},{"v":1002,"d":"$1,002"},{"v":1002,"d":"$1,002"},{"v":1146,"d":"$1,146"},{"v":1245,"d":"$1,245"},{"v":1344,"d":"$1,344"},{"v":1464,"d":"$1,464"},{"v":1491,"d":"$1,491"},{"v":1296,"d":"$1,296"},{"v":1461,"d":"$1,461"},{"v":1494,"d":"$1,494"},{"v":1554,"d":"$1,554"},{"v":1620,"d":"$1,620"},{"v":1443,"d":"$1,443"},{"v":1485,"d":"$1,485"},{"v":1539,"d":"$1,539"},{"v":1230,"d":"$1,230"},{"v":1407,"d":"$1,407"},{"v":1506,"d":"$1,506"},{"v":1611,"d":"$1,611"},{"v":1656,"d":"$1,656"},{"v":1722,"d":"$1,722"},{"v":1755,"d":"$1,755"}]
["READING","PA",null,null,{"v":741,"d":"$741"},{"v":741,"d":"$741"},{"v":741,"d":"$741"},{"v":741,"d":"$741"},{"v":831,"d":"$831"},{"v":1038,"d":"$1,038"},{"v":1068,"d":"$1,068"},{"v":1149,"d":"$1,149"},{"v":1239,"d":"$1,239"},{"v":1038,"d":"$1,038"},{"v":1146,"d":"$1,146"},{"v":1248,"d":"$1,248"},{"v":1392,"d":"$1,392"},{"v":1434,"d":"$1,434"},{"v":1092,"d":"$1,092"},{"v":1221,"d":"$1,221"},{"v":1383,"d":"$1,383"},{"v":888,"d":"$888"},{"v":1056,"d":"$1,056"},{"v":1278,"d":"$1,278"},{"v":1428,"d":"$1,428"},{"v":1455,"d":"$1,455"},{"v":1497,"d":"$1,497"},{"v":1527,"d":"$1,527"}]
["STATE COLLEGE","PA",null,null,{"v":819,"d":"$819"},{"v":819,"d":"$819"},{"v":819,"d":"$819"},{"v":819,"d":"$819"},{"v":927,"d":"$927"},{"v":999,"d":"$999"},{"v":1047,"d":"$1,047"},{"v":1152,"d":"$1,152"},{"v":1221,"d":"$1,221"},{"v":1017,"d":"$1,017"},{"v":1149,"d":"$1,149"},{"v":1227,"d":"$1,227"},{"v":1344,"d":"$1,344"},{"v":1404,"d":"$1,404"},{"v":1107,"d":"$1,107"},{"v":1206,"d":"$1,206"},{"v":1329,"d":"$1,329"},{"v":978,"d":"$978"},{"v":1083,"d":"$1,083"},{"v":1248,"d":"$1,248"},{"v":1395,"d":"$1,395"},{"v":1434,"d":"$1,434"},{"v":1494,"d":"$1,494"},{"v":1524,"d":"$1,524"}]
["ERIE","PA",null,null,{"v":738,"d":"$738"},{"v":738,"d":"$738"},{"v":738,"d":"$738"},{"v":738,"d":"$738"},{"v":831,"d":"$831"},{"v":882,"d":"$882"},{"v":936,"d":"$936"},{"v":1014,"d":"$1,014"},{"v":1047,"d":"$1,047"},{"v":912,"d":"$912"},{"v":1011,"d":"$1,011"},{"v":1050,"d":"$1,050"},{"v":1110,"d":"$1,110"},{"v":1140,"d":"$1,140"},{"v":990,"d":"$990"},{"v":1041,"d":"$1,041"},{"v":1104,"d":"$1,104"},{"v":876,"d":"$876"},{"v":969,"d":"$969"},{"v":1062,"d":"$1,062"},{"v":1137,"d":"$1,137"},{"v":1155,"d":"$1,155"},{"v":1185,"d":"$1,185"},{"v":1209,"d":"$1,209"}]
["WILKES-BARRE/SCRANTON","PA",null,null,{"v":717,"d":"$717"},{"v":717,"d":"$717"},{"v":717,"d":"$717"},{"v":717,"d":"$717"},{"v":780,"d":"$780"},{"v":852,"d":"$852"},{"v":882,"d":"$882"},{"v":984,"d":"$984"},{"v":1044,"d":"$1,044"},{"v":852,"d":"$852"},{"v":984,"d":"$984"},{"v":1050,"d":"$1,050"},{"v":1143,"d":"$1,143"},{"v":1167,"d":"$1,167"},{"v":948,"d":"$948"},{"v":1029,"d":"$1,029"},{"v":1137,"d":"$1,137"},{"v":810,"d":"$810"},{"v":924,"d":"$924"},{"v":1068,"d":"$1,068"},{"v":1164,"d":"$1,164"},{"v":1179,"d":"$1,179"},{"v":1203,"d":"$1,203"},{"v":1227,"d":"$1,227"}]
["ALLENTOWN/BETHLEHEM","PA",null,null,{"v":954,"d":"$954"},{"v":954,"d":"$954"},{"v":954,"d":"$954"},{"v":954,"d":"$954"},{"v":1095,"d":"$1,095"},{"v":1206,"d":"$1,206"},{"v":1251,"d":"$1,251"},{"v":1380,"d":"$1,380"},{"v":1467,"d":"$1,467"},{"v":1212,"d":"$1,212"},{"v":1377,"d":"$1,377"},{"v":1476,"d":"$1,476"},{"v":1623,"d":"$1,623"},{"v":1686,"d":"$1,686"},{"v":1323,"d":"$1,323"},{"v":1449,"d":"$1,449"},{"v":1608,"d":"$1,608"},{"v":1161,"d":"$1,161"},{"v":1296,"d":"$1,296"},{"v":1506,"d":"$1,506"},{"v":1677,"d":"$1,677"},{"v":1731,"d":"$1,731"},{"v":1779,"d":"$1,779"},{"v":1815,"d":"$1,815"}]
["JOHNSTOWN","PA",null,null,{"v":630,"d":"$630"},{"v":630,"d":"$630"},{"v":630,"d":"$630"},{"v":630,"d":"$630"},{"v":705,"d":"$705"},{"v":834,"d":"$834"},{"v":867,"d":"$867"},{"v":963,"d":"$963"},{"v":1020,"d":"$1,020"},{"v":837,"d":"$837"},{"v":963,"d":"$963"},{"v":1026,"d":"$1,026"},{"v":1125,"d":"$1,125"},{"v":1167,"d":"$1,167"},{"v":927,"d":"$927"},{"v":1008,"d":"$1,008"},{"v":1113,"d":"$1,113"},{"v":753,"d":"$753"},{"v":897,"d":"$897"},{"v":1047,"d":"$1,047"},{"v":1161,"d":"$1,161"},{"v":1188,"d":"$1,188"},{"v":1233,"d":"$1,233"},{"v":1257,"d":"$1,257"}]
["NEWPORT","RI",null,null,{"v":1134,"d":"$1,134"},{"v":1134,"d":"$1,134"},{"v":1134,"d":"$1,134"},{"v":1134,"d":"$1,134"},{"v":1287,"d":"$1,287"},{"v":1599,"d":"$1,599"},{"v":1668,"d":"$1,668"},{"v":1797,"d":"$1,797"},{"v":1926,"d":"$1,926"},{"v":1599,"d":"$1,599"},{"v":1794,"d":"$1,794"},{"v":1941,"d":"$1,941"},{"v":2154,"d":"$2,154"},{"v":2247,"d":"$2,247"},{"v":1716,"d":"$1,716"},{"v":1899,"d":"$1,899"},{"v":2130,"d":"$2,130"},{"v":1320,"d":"$1,320"},{"v":1644,"d":"$1,644"},{"v":1980,"d":"$1,980"},{"v":2235,"d":"$2,235"},{"v":2343,"d":"$2,343"},{"v":2391,"d":"$2,391"},{"v":2439,"d":"$2,439"}]
["PROVIDENCE","RI",null,null,{"v":1113,"d":"$1,113"},{"v":1113,"d":"$1,113"},{"v":1113,"d":"$1,113"},{"v":1113,"d":"$1,113"},{"v":1269,"d":"$1,269"},{"v":1386,"d":"$1,386"},{"v":1491,"d":"$1,491"},{"v":1632,"d":"$1,632"},{"v":1683,"d":"$1,683"},{"v":1440,"d":"$1,440"},{"v":1629,"d":"$1,629"},{"v":1686,"d":"$1,686"},{"v":1779,"d":"$1,779"},{"v":1848,"d":"$1,848"},{"v":1599,"d":"$1,599"},{"v":1671,"d":"$1,671"},{"v":1761,"d":"$1,761"},{"v":1371,"d":"$1,371"},{"v":1560,"d":"$1,560"},{"v":1704,"d":"$1,704"},{"v":1839,"d":"$1,839"},{"v":2037,"d":"$2,037"},{"v":2058,"d":"$2,058"},{"v":2076,"d":"$2,076"}]
["BEAUFORT/PARRIS ISLAND","SC",null,null,{"v":957,"d":"$957"},{"v":957,"d":"$957"},{"v":957,"d":"$957"},{"v":957,"d":"$957"},{"v":1050,"d":"$1,050"},{"v":1104,"d":"$1,104"},{"v":1140,"d":"$1,140"},{"v":1233,"d":"$1,233"},{"v":1314,"d":"$1,314"},{"v":1122,"d":"$1,122"},{"v":1230,"d":"$1,230"},{"v":1323,"d":"$1,323"},{"v":1464,"d":"$1,464"},{"v":1524,"d":"$1,524"},{"v":1179,"d":"$1,179"},{"v":1296,"d":"$1,296"},{"v":1446,"d":"$1,446"},{"v":1098,"d":"$1,098"},{"v":1164,"d":"$1,164"},{"v":1350,"d":"$1,350"},{"v":1518,"d":"$1,518"},{"v":1557,"d":"$1,557"},{"v":1620,"d":"$1,620"},{"v":1653,"d":"$1,653"}]
["CHARLESTON","SC",null,null,{"v":966,"d":"$966"},{"v":966,"d":"$966"},{"v":966,"d":"$966"},{"v":966,"d":"$966"},{"v":1056,"d":"$1,056"},{"v":1137,"d":"$1,137"},{"v":1200,"d":"$1,200"},{"v":1335,"d":"$1,335"},{"v":1404,"d":"$1,404"},{"v":1158,"d":"$1,158"},{"v":1332,"d":"$1,332"},{"v":1410,"d":"$1,410"},{"v":1530,"d":"$1,530"},{"v":1587,"d":"$1,587"},{"v":1290,"d":"$1,290"},{"v":1389,"d":"$1,389"},{"v":1515,"d":"$1,515"},{"v":1101,"d":"$1,101"},{"v":1257,"d":"$1,257"},{"v":1434,"d":"$1,434"},{"v":1578,"d":"$1,578"},{"v":1617,"d":"$1,617"},{"v":1677,"d":"$1,677"},{"v":1710,"d":"$1,710"}]
["COLUMBIA/FORT JACKSON","SC",null,null,{"v":900,"d":"$900"},{"v":900,"d":"$900"},{"v":900,"d":"$900"},{"v":900,"d":"$900"},{"v":990,"d":"$990"},{"v":1050,"d":"$1,050"},{"v":1167,"d":"$1,167"},{"v":1302,"d":"$1,302"},{"v":1329,"d":"$1,329"},{"v":1110,"d":"$1,110"},{"v":1302,"d":"$1,302"},{"v":1332,"d":"$1,332"},{"v":1398,"d":"$1,398"},{"v":1485,"d":"$1,485"},{"v":1284,"d":"$1,284"},{"v":1323,"d":"$1,323"},{"v":1377,"d":"$1,377"},{"v":1032,"d":"$1,032"},{"v":1242,"d":"$1,242"},{"v":1344,"d":"$1,344"},{"v":1473,"d":"$1,473"},{"v":1656,"d":"$1,656"},{"v":1674,"d":"$1,674"},{"v":1689,"d":"$1,689"}]
["GREENVILLE","SC",null,null,{"v":771,"d":"$771"},{"v":771,"d":"$771"},{"v":771,"d":"$771"},{"v":771,"d":"$771"},{"v":861,"d":"$861"},{"v":915,"d":"$915"},{"v":981,"d":"$981"},{"v":1074,"d":"$1,074"},{"v":1158,"d":"$1,158"},{"v":948,"d":"$948"},{"v":1071,"d":"$1,071"},{"v":1131,"d":"$1,131"},{"v":1233,"d":"$1,233"},{"v":1332,"d":"$1,332"},{"v":1038,"d":"$1,038"},{"v":1113,"d":"$1,113"},{"v":1209,"d":"$1,209"},{"v":906,"d":"$906"},{"v":1017,"d":"$1,017"},{"v":1149,"d":"$1,149"},{"v":1317,"d":"$1,317"},{"v":1413,"d":"$1,413"},{"v":1479,"d":"$1,479"},{"v":1509,"d":"$1,509"}]
["MYRTLE BEACH","SC",null,null,{"v":861,"d":"$861"},{"v":861,"d":"$861"},{"v":861,"d":"$861"},{"v":861,"d":"$861"},{"v":963,"d":"$963"},{"v":1026,"d":"$1,026"},{"v":1104,"d":"$1,104"},{"v":1212,"d":"$1,212"},{"v":1257,"d":"$1,257"},{"v":1065,"d":"$1,065"},{"v":1209,"d":"$1,209"},{"v":1260,"d":"$1,260"},{"v":1353,"d":"$1,353"},{"v":1452,"d":"$1,452"},{"v":1182,"d":"$1,182"},{"v":1245,"d":"$1,245"},{"v":1329,"d":"$1,329"},{"v":1014,"d":"$1,014"},{"v":1152,"d":"$1,152"},{"v":1275,"d":"$1,275"},{"v":1437,"d":"$1,437"},{"v":1500,"d":"$1,500"},{"v":1602,"d":"$1,602"},{"v":1635,"d":"$1,635"}]
["SUMTER/SHAW AFB","SC",null,null,{"v":774,"d":"$774"},{"v":774,"d":"$774"},{"v":774,"d":"$774"},{"v":774,"d":"$774"},{"v":840,"d":"$840"},{"v":882,"d":"$882"},{"v":951,"d":"$951"},{"v":1050,"d":"$1,050"},{"v":1098,"d":"$1,098"},{"v":918,"d":"$918"},{"v":1050,"d":"$1,050"},{"v":1101,"d":"$1,101"},{"v":1182,"d":"$1,182"},{"v":1227,"d":"$1,227"},{"v":1020,"d":"$1,020"},{"v":1086,"d":"$1,086"},{"v":1170,"d":"$1,170"},{"v":870,"d":"$870"},{"v":996,"d":"$996"},{"v":1116,"d":"$1,116"},{"v":1221,"d":"$1,221"},{"v":1395,"d":"$1,395"},{"v":1407,"d":"$1,407"},{"v":1422,"d":"$1,422"}]
["FLORENCE","SC",null,null,{"v":699,"d":"$699"},{"v":699,"d":"$699"},{"v":699,"d":"$699"},{"v":699,"d":"$699"},{"v":777,"d":"$777"},{"v":852,"d":"$852"},{"v":900,"d":"$900"},{"v":1008,"d":"$1,008"},{"v":1059,"d":"$1,059"},{"v":867,"d":"$867"},{"v":1005,"d":"$1,005"},{"v":1062,"d":"$1,062"},{"v":1152,"d":"$1,152"},{"v":1212,"d":"$1,212"},{"v":975,"d":"$975"},{"v":1047,"d":"$1,047"},{"v":1137,"d":"$1,137"},{"v":816,"d":"$816"},{"v":948,"d":"$948"},{"v":1077,"d":"$1,077"},{"v":1206,"d":"$1,206"},{"v":1245,"d":"$1,245"},{"v":1308,"d":"$1,308"},{"v":1335,"d":"$1,335"}]
["RAPID CITY/ELLSWORTH AFB","SD",null,null,{"v":705,"d":"$705"},{"v":705,"d":"$705"},{"v":705,"d":"$705"},{"v":705,"d":"$705"},{"v":798,"d":"$798"},{"v":990,"d":"$990"},{"v":996,"d":"$996"},{"v":1092,"d":"$1,092"},{"v":1182,"d":"$1,182"},{"v":990,"d":"$990"},{"v":1092,"d":"$1,092"},{"v":1188,"d":"$1,188"},{"v":1320,"d":"$1,320"},{"v":1329,"d":"$1,329"},{"v":1038,"d":"$1,038"},{"v":1161,"d":"$1,161"},{"v":1320,"d":"$1,320"},{"v":846,"d":"$846"},{"v":1005,"d":"$1,005"},{"v":1218,"d":"$1,218"},{"v":1326,"d":"$1,326"},{"v":1332,"d":"$1,332"},{"v":1338,"d":"$1,338"},{"v":1365,"d":"$1,365"}]
["SIOUX FALLS","SD",null,null,{"v":717,"d":"$717"},{"v":717,"d":"$717"},{"v":717,"d":"$717"},{"v":717,"d":"$717"},{"v":804,"d":"$804"},{"v":879,"d":"$879"},{"v":960,"d":"$960"},{"v":1089,"d":"$1,089"},{"v":1122,"d":"$1,122"},{"v":912,"d":"$912"},{"v":1089,"d":"$1,089"},{"v":1125,"d":"$1,125"},{"v":1182,"d":"$1,182"},{"v":1224,"d":"$1,224"},{"v":1071,"d":"$1,071"},{"v":1113,"d":"$1,113"},{"v":1170,"d":"$1,170"},{"v":840,"d":"$840"},{"v":1032,"d":"$1,032"},{"v":1134,"d":"$1,134"},{"v":1218,"d":"$1,218"},{"v":1263,"d":"$1,263"},{"v":1287,"d":"$1,287"},{"v":1314,"d":"$1,314"}]
["CHATTANOOGA","TN",null,null,{"v":744,"d":"$744"},{"v":744,"d":"$744"},{"v":744,"d":"$744"},{"v":744,"d":"$744"},{"v":852,"d":"$852"},{"v":915,"d":"$915"},{"v":984,"d":"$984"},{"v":1074,"d":"$1,074"},{"v":1098,"d":"$1,098"},{"v":951,"d":"$951"},{"v":1071,"d":"$1,071"},{"v":1098,"d":"$1,098"},{"v":1143,"d":"$1,143"},{"v":1185,"d":"$1,185"},{"v":1059,"d":"$1,059"},{"v":1092,"d":"$1,092"},{"v":1134,"d":"$1,134"},{"v":903,"d":"$903"},{"v":1032,"d":"$1,032"},{"v":1107,"d":"$1,107"},{"v":1179,"d":"$1,179"},{"v":1308,"d":"$1,308"},{"v":1320,"d":"$1,320"},{"v":1332,"d":"$1,332"}]
["KNOXVILLE","TN",null,null,{"v":798,"d":"$798"},{"v":798,"d":"$798"},{"v":798,"d":"$798"},{"v":798,"d":"$798"},{"v":885,"d":"$885"},{"v":954,"d":"$954"},{"v":993,"d":"$993"},{"v":1095,"d":"$1,095"},{"v":1164,"d":"$1,164"},{"v":966,"d":"$966"},{"v":1092,"d":"$1,092"},{"v":1170,"d":"$1,170"},{"v":1281,"d":"$1,281"},{"v":1320,"d":"$1,320"},{"v":1053,"d":"$1,053"},{"v":1149,"d":"$1,149"},{"v":1269,"d":"$1,269"},{"v":927,"d":"$927"},{"v":1032,"d":"$1,032"},{"v":1191,"d":"$1,191"},{"v":1314,"d":"$1,314"},{"v":1449,"d":"$1,449"},{"v":1464,"d":"$1,464"},{"v":1479,"d":"$1,479"}]
["MEMPHIS","TN",null,null,{"v":873,"d":"$873"},{"v":873,"d":"$873"},{"v":873,"d":"$873"},{"v":873,"d":"$873"},{"v":975,"d":"$975"},{"v":1122,"d":"$1,122"},{"v":1164,"d":"$1,164"},{"v":1311,"d":"$1,311"},{"v":1383,"d":"$1,383"},{"v":1125,"d":"$1,125"},{"v":1308,"d":"$1,308"},{"v":1389,"d":"$1,389"},{"v":1512,"d":"$1,512"},{"v":1566,"d":"$1,566"},{"v":1263,"d":"$1,263"},{"v":1365,"d":"$1,365"},{"v":1497,"d":"$1,497"},{"v":1026,"d":"$1,026"},{"v":1224,"d":"$1,224"},{"v":1413,"d":"$1,413"},{"v":1560,"d":"$1,560"},{"v":1596,"d":"$1,596"},{"v":1653,"d":"$1,653"},{"v":1686,"d":"$1,686"}]
["NASHVILLE","TN",null,null,{"v":999,"d":"$999"},{"v":999,"d":"$999"},{"v":999,"d":"$999"},{"v":999,"d":"$999"},{"v":1146,"d":"$1,146"},{"v":1227,"d":"$1,227"},{"v":1272,"d":"$1,272"},{"v":1326,"d":"$1,326"},{"v":1338,"d":"$1,338"},{"v":1251,"d":"$1,251"},{"v":1326,"d":"$1,326"},{"v":1338,"d":"$1,338"},{"v":1368,"d":"$1,368"},{"v":1416,"d":"$1,416"},{"v":1320,"d":"$1,320"},{"v":1335,"d":"$1,335"},{"v":1356,"d":"$1,356"},{"v":1221,"d":"$1,221"},{"v":1302,"d":"$1,302"},{"v":1341,"d":"$1,341"},{"v":1410,"d":"$1,410"},{"v":1488,"d":"$1,488"},{"v":1503,"d":"$1,503"},{"v":1518,"d":"$1,518"}]
["JOHNSON CITY/KINGSPORT","TN",null,null,{"v":624,"d":"$624"},{"v":624,"d":"$624"},{"v":624,"d":"$624"},{"v":624,"d":"$624"},{"v":732,"d":"$732"},{"v":870,"d":"$870"},{"v":888,"d":"$888"},{"v":927,"d":"$927"},{"v":1017,"d":"$1,017"},{"v":870,"d":"$870"},{"v":924,"d":"$924"},{"v":1026,"d":"$1,026"},{"v":1164,"d":"$1,164"},{"v":1188,"d":"$1,188"},{"v":891,"d":"$891"},{"v":996,"d":"$996"},{"v":1158,"d":"$1,158"},{"v":783,"d":"$783"},{"v":864,"d":"$864"},{"v":1056,"d":"$1,056"},{"v":1185,"d":"$1,185"},{"v":1200,"d":"$1,200"},{"v":1224,"d":"$1,224"},{"v":1248,"d":"$1,248"}]
["MANCHESTER/TULLAHOMA","TN",null,null,{"v":645,"d":"$645"},{"v":645,"d":"$645"},{"v":645,"d":"$645"},{"v":645,"d":"$645"},{"v":678,"d":"$678"},{"v":819,"d":"$819"},{"v":840,"d":"$840"},{"v":942,"d":"$942"},{"v":999,"d":"$999"},{"v":819,"d":"$819"},{"v":939,"d":"$939"},{"v":1005,"d":"$1,005"},{"v":1098,"d":"$1,098"},{"v":1128,"d":"$1,128"},{"v":906,"d":"$906"},{"v":987,"d":"$987"},{"v":1092,"d":"$1,092"},{"v":696,"d":"$696"},{"v":870,"d":"$870"},{"v":1023,"d":"$1,023"},{"v":1125,"d":"$1,125"},{"v":1146,"d":"$1,146"},{"v":1176,"d":"$1,176"},{"v":1200,"d":"$1,200"}]
["JACKSON","TN",null,null,{"v":693,"d":"$693"},{"v":693,"d":"$693"},{"v":693,"d":"$693"},{"v":693,"d":"$693"},{"v":792,"d":"$792"},{"v":846,"d":"$846"},{"v":882,"d":"$882"},{"v":936,"d":"$936"},{"v":960,"d":"$960"},{"v":867,"d":"$867"},{"v":936,"d":"$936"},{"v":963,"d":"$963"},{"v":1005,"d":"$1,005"},{"v":1041,"d":"$1,041"},{"v":921,"d":"$921"},{"v":954,"d":"$954"},{"v":996,"d":"$996"},{"v":840,"d":"$840"},{"v":906,"d":"$906"},{"v":969,"d":"$969"},{"v":1035,"d":"$1,035"},{"v":1125,"d":"$1,125"},{"v":1134,"d":"$1,134"},{"v":1146,"d":"$1,146"}]
["ABILENE/DYESS AFB","TX",null,null,{"v":771,"d":"$771"},{"v":771,"d":"$771"},{"v":771,"d":"$771"},{"v":771,"d":"$771"},{"v":882,"d":"$882"},{"v":945,"d":"$945"},{"v":1011,"d":"$1,011"},{"v":1098,"d":"$1,098"},{"v":1134,"d":"$1,134"},{"v":978,"d":"$978"},{"v":1098,"d":"$1,098"},{"v":1137,"d":"$1,137"},{"v":1212,"d":"$1,212"},{"v":1296,"d":"$1,296"},{"v":1074,"d":"$1,074"},{"v":1125,"d":"$1,125"},{"v":1191,"d":"$1,191"},{"v":936,"d":"$936"},{"v":1050,"d":"$1,050"},{"v":1149,"d":"$1,149"},{"v":1284,"d":"$1,284"},{"v":1341,"d":"$1,341"},{"v":1428,"d":"$1,428"},{"v":1458,"d":"$1,458"}]
["AMARILLO","TX",null,null,{"v":675,"d":"$675"},{"v":675,"d":"$675"},{"v":675,"d":"$675"},{"v":675,"d":"$675"},{"v":750,"d":"$750"},{"v":894,"d":"$894"},{"v":927,"d":"$927"},{"v":1026,"d":"$1,026"},{"v":1092,"d":"$1,092"},{"v":897,"d":"$897"},{"v":1026,"d":"$1,026"},{"v":1098,"d":"$1,098"},{"v":1203,"d":"$1,203"},{"v":1248,"d":"$1,248"},{"v":984,"d":"$984"},{"v":1077,"d":"$1,077"},{"v":1194,"d":"$1,194"},{"v":810,"d":"$810"},{"v":954,"d":"$954"},{"v":1119,"d":"$1,119"},{"v":1242,"d":"$1,242"},{"v":1287,"d":"$1,287"},{"v":1317,"d":"$1,317"},{"v":1341,"d":"$1,341"}]
["AUSTIN","TX",null,null,{"v":858,"d":"$858"},{"v":858,"d":"$858"},{"v":858,"d":"$858"},{"v":858,"d":"$858"},{"v":963,"d":"$963"},{"v":1056,"d":"$1,056"},{"v":1152,"d":"$1,152"},{"v":1287,"d":"$1,287"},{"v":1332,"d":"$1,332"},{"v":1101,"d":"$1,101"},{"v":1284,"d":"$1,284"},{"v":1338,"d":"$1,338"},{"v":1416,"d":"$1,416"},{"v":1461,"d":"$1,461"},{"v":1257,"d":"$1,257"},{"v":1323,"d":"$1,323"},{"v":1407,"d":"$1,407"},{"v":1032,"d":"$1,032"},{"v":1218,"d":"$1,218"},{"v":1353,"d":"$1,353"},{"v":1455,"d":"$1,455"},{"v":1482,"d":"$1,482"},{"v":1530,"d":"$1,530"},{"v":1560,"d":"$1,560"}]
["BEAUMONT","TX",null,null,{"v":888,"d":"$888"},{"v":888,"d":"$888"},{"v":888,"d":"$888"},{"v":888,"d":"$888"},{"v":1011,"d":"$1,011"},{"v":1209,"d":"$1,209"},{"v":1248,"d":"$1,248"},{"v":1335,"d":"$1,335"},{"v":1443,"d":"$1,443"},{"v":1209,"d":"$1,209"},{"v":1332,"d":"$1,332"},{"v":1452,"d":"$1,452"},{"v":1626,"d":"$1,626"},{"v":1677,"d":"$1,677"},{"v":1266,"d":"$1,266"},{"v":1419,"d":"$1,419"},{"v":1611,"d":"$1,611"},{"v":1104,"d":"$1,104"},{"v":1239,"d":"$1,239"},{"v":1488,"d":"$1,488"},{"v":1671,"d":"$1,671"},{"v":1704,"d":"$1,704"},{"v":1758,"d":"$1,758"},{"v":1794,"d":"$1,794"}]
["COLLEGE STATION","TX",null,null,{"v":765,"d":"$765"},{"v":765,"d":"$765"},{"v":765,"d":"$765"},{"v":765,"d":"$765"},{"v":804,"d":"$804"},{"v":978,"d":"$978"},{"v":1011,"d":"$1,011"},{"v":1098,"d":"$1,098"},{"v":1179,"d":"$1,179"},{"v":981,"d":"$981"},{"v":1095,"d":"$1,095"},{"v":1185,"d":"$1,185"},{"v":1317,"d":"$1,317"},{"v":1359,"d":"$1,359"},{"v":1047,"d":"$1,047"},{"v":1161,"d":"$1,161"},{"v":1305,"d":"$1,305"},{"v":825,"d":"$825"},{"v":1008,"d":"$1,008"},{"v":1212,"d":"$1,212"},{"v":1353,"d":"$1,353"},{"v":1560,"d":"$1,560"},{"v":1575,"d":"$1,575"},{"v":1593,"d":"$1,593"}]
["CORPUS CHRISTI","TX",null,null,{"v":852,"d":"$852"},{"v":852,"d":"$852"},{"v":852,"d":"$852"},{"v":852,"d":"$852"},{"v":957,"d":"$957"},{"v":1212,"d":"$1,212"},{"v":1236,"d":"$1,236"},{"v":1326,"d":"$1,326"},{"v":1437,"d":"$1,437"},{"v":1212,"d":"$1,212"},{"v":1320,"d":"$1,320"},{"v":1449,"d":"$1,449"},{"v":1626,"d":"$1,626"},{"v":1656,"d":"$1,656"},{"v":1251,"d":"$1,251"},{"v":1413,"d":"$1,413"},{"v":1617,"d":"$1,617"},{"v":1020,"d":"$1,020"},{"v":1212,"d":"$1,212"},{"v":1485,"d":"$1,485"},{"v":1650,"d":"$1,650"},{"v":1671,"d":"$1,671"},{"v":1704,"d":"$1,704"},{"v":1737,"d":"$1,737"}]
["KINGSVILLE","TX",null,null,{"v":843,"d":"$843"},{"v":843,"d":"$843"},{"v":843,"d":"$843"},{"v":843,"d":"$843"},{"v":954,"d":"$954"},{"v":1188,"d":"$1,188"},{"v":1203,"d":"$1,203"},{"v":1302,"d":"$1,302"},{"v":1410,"d":"$1,410"},{"v":1188,"d":"$1,188"},{"v":1296,"d":"$1,296"},{"v":1422,"d":"$1,422"},{"v":1587,"d":"$1,587"},{"v":1608,"d":"$1,608"},{"v":1230,"d":"$1,230"},{"v":1386,"d":"$1,386"},{"v":1584,"d":"$1,584"},{"v":1017,"d":"$1,017"},{"v":1194,"d":"$1,194"},{"v":1455,"d":"$1,455"},{"v":1605,"d":"$1,605"},{"v":1617,"d":"$1,617"},{"v":1638,"d":"$1,638"},{"v":1671,"d":"$1,671"}]
["DALLAS","TX",null,null,{"v":990,"d":"$990"},{"v":990,"d":"$990"},{"v":990,"d":"$990"},{"v":990,"d":"$990"},{"v":1134,"d":"$1,134"},{"v":1230,"d":"$1,230"},{"v":1326,"d":"$1,326"},{"v":1458,"d":"$1,458"},{"v":1515,"d":"$1,515"},{"v":1281,"d":"$1,281"},{"v":1458,"d":"$1,458"},{"v":1518,"d":"$1,518"},{"v":1611,"d":"$1,611"},{"v":1656,"d":"$1,656"},{"v":1425,"d":"$1,425"},{"v":1500,"d":"$1,500"},{"v":1599,"d":"$1,599"},{"v":1215,"d":"$1,215"},{"v":1389,"d":"$1,389"},{"v":1536,"d":"$1,536"},{"v":1650,"d":"$1,650"},{"v":1677,"d":"$1,677"},{"v":1722,"d":"$1,722"},{"v":1758,"d":"$1,758"}]
["LAUGHLIN AFB/DEL RIO","TX",null,null,{"v":666,"d":"$666"},{"v":666,"d":"$666"},{"v":666,"d":"$666"},{"v":666,"d":"$666"},{"v":774,"d":"$774"},{"v":996,"d":"$996"},{"v":1002,"d":"$1,002"},{"v":1089,"d":"$1,089"},{"v":1182,"d":"$1,182"},{"v":996,"d":"$996"},{"v":1086,"d":"$1,086"},{"v":1191,"d":"$1,191"},{"v":1329,"d":"$1,329"},{"v":1341,"d":"$1,341"},{"v":1029,"d":"$1,029"},{"v":1161,"d":"$1,161"},{"v":1326,"d":"$1,326"},{"v":798,"d":"$798"},{"v":990,"d":"$990"},{"v":1218,"d":"$1,218"},{"v":1338,"d":"$1,338"},{"v":1452,"d":"$1,452"},{"v":1464,"d":"$1,464"},{"v":1479,"d":"$1,479"}]
["EL PASO","TX",null,null,{"v":726,"d":"$726"},{"v":726,"d":"$726"},{"v":726,"d":"$726"},{"v":726,"d":"$726"},{"v":825,"d":"$825"},{"v":882,"d":"$882"},{"v":927,"d":"$927"},{"v":1011,"d":"$1,011"},{"v":1071,"d":"$1,071"},{"v":906,"d":"$906"},{"v":1008,"d":"$1,008"},{"v":1077,"d":"$1,077"},{"v":1173,"d":"$1,173"},{"v":1215,"d":"$1,215"},{"v":972,"d":"$972"},{"v":1056,"d":"$1,056"},{"v":1164,"d":"$1,164"},{"v":876,"d":"$876"},{"v":957,"d":"$957"},{"v":1095,"d":"$1,095"},{"v":1209,"d":"$1,209"},{"v":1236,"d":"$1,236"},{"v":1278,"d":"$1,278"},{"v":1302,"d":"$1,302"}]
["BROWNSVILLE","TX",null,null,{"v":729,"d":"$729"},{"v":729,"d":"$729"},{"v":729,"d":"$729"},{"v":729,"d":"$729"},{"v":825,"d":"$825"},{"v":975,"d":"$975"},{"v":1017,"d":"$1,017"},{"v":1140,"d":"$1,140"},{"v":1200,"d":"$1,200"},{"v":975,"d":"$975"},{"v":1137,"d":"$1,137"},{"v":1206,"d":"$1,206"},{"v":1311,"d":"$1,311"},{"v":1368,"d":"$1,368"},{"v":1101,"d":"$1,101"},{"v":1188,"d":"$1,188"},{"v":1299,"d":"$1,299"},{"v":843,"d":"$843"},{"v":1056,"d":"$1,056"},{"v":1227,"d":"$1,227"},{"v":1362,"d":"$1,362"},{"v":1467,"d":"$1,467"},{"v":1482,"d":"$1,482"},{"v":1497,"d":"$1,497"}]
["HOUSTON","TX",null,null,{"v":1041,"d":"$1,041"},{"v":1041,"d":"$1,041"},{"v":1041,"d":"$1,041"},{"v":1041,"d":"$1,041"},{"v":1167,"d":"$1,167"},{"v":1443,"d":"$1,443"},{"v":1464,"d":"$1,464"},{"v":1629,"d":"$1,629"},{"v":1743,"d":"$1,743"},{"v":1443,"d":"$1,443"},{"v":1626,"d":"$1,626"},{"v":1755,"d":"$1,755"},{"v":1929,"d":"$1,929"},{"v":1962,"d":"$1,962"},{"v":1557,"d":"$1,557"},{"v":1716,"d":"$1,716"},{"v":1923,"d":"$1,923"},{"v":1221,"d":"$1,221"},{"v":1500,"d":"$1,500"},{"v":1791,"d":"$1,791"},{"v":1956,"d":"$1,956"},{"v":1977,"d":"$1,977"},{"v":2007,"d":"$2,007"},{"v":2049,"d":"$2,049"}]
["LUBBOCK/REESE AFB","TX",null,null,{"v":741,"d":"$741"},{"v":741,"d":"$741"},{"v":741,"d":"$741"},{"v":741,"d":"$741"},{"v":834,"d":"$834"},{"v":918,"d":"$918"},{"v":993,"d":"$993"},{"v":1095,"d":"$1,095"},{"v":1140,"d":"$1,140"},{"v":957,"d":"$957"},{"v":1095,"d":"$1,095"},{"v":1143,"d":"$1,143"},{"v":1218,"d":"$1,218"},{"v":1260,"d":"$1,260"},{"v":1068,"d":"$1,068"},{"v":1128,"d":"$1,128"},{"v":1206,"d":"$1,206"},{"v":906,"d":"$906"},{"v":1041,"d":"$1,041"},{"v":1158,"d":"$1,158"},{"v":1254,"d":"$1,254"},{"v":1284,"d":"$1,284"},{"v":1326,"d":"$1,326"},{"v":1353,"d":"$1,353"}]
["GOODFELLOW AFB","TX",null,null,{"v":720,"d":"$720"},{"v":720,"d":"$720"},{"v":720,"d":"$720"},{"v":720,"d":"$720"},{"v":804,"d":"$804"},{"v":882,"d":"$882"},{"v":966,"d":"$966"},{"v":1077,"d":"$1,077"},{"v":1113,"d":"$1,113"},{"v":924,"d":"$924"},{"v":1074,"d":"$1,074"},{"v":1116,"d":"$1,116"},{"v":1191,"d":"$1,191"},{"v":1272,"d":"$1,272"},{"v":1053,"d":"$1,053"},{"v":1104,"d":"$1,104"},{"v":1170,"d":"$1,170"},{"v":867,"d":"$867"},{"v":1023,"d":"$1,023"},{"v":1128,"d":"$1,128"},{"v":1260,"d":"$1,260"},{"v":1314,"d":"$1,314"},{"v":1398,"d":"$1,398"},{"v":1428,"d":"$1,428"}]
["SAN ANTONIO","TX",null,null,{"v":885,"d":"$885"},{"v":885,"d":"$885"},{"v":885,"d":"$885"},{"v":885,"d":"$885"},{"v":1017,"d":"$1,017"},{"v":1098,"d":"$1,098"},{"v":1185,"d":"$1,185"},{"v":1290,"d":"$1,290"},{"v":1314,"d":"$1,314"},{"v":1143,"d":"$1,143"},{"v":1290,"d":"$1,290"},{"v":1314,"d":"$1,314"},{"v":1368,"d":"$1,368"},{"v":1443,"d":"$1,443"},{"v":1275,"d":"$1,275"},{"v":1308,"d":"$1,308"},{"v":1347,"d":"$1,347"},{"v":1083,"d":"$1,083"},{"v":1242,"d":"$1,242"},{"v":1323,"d":"$1,323"},{"v":1431,"d":"$1,431"},{"v":1479,"d":"$1,479"},{"v":1557,"d":"$1,557"},{"v":1590,"d":"$1,590"}]
["FORT HOOD","TX",null,null,{"v":750,"d":"$750"},{"v":750,"d":"$750"},{"v":750,"d":"$750"},{"v":750,"d":"$750"},{"v":849,"d":"$849"},{"v":906,"d":"$906"},{"v":960,"d":"$960"},{"v":1035,"d":"$1,035"},{"v":1086,"d":"$1,086"},{"v":933,"d":"$933"},{"v":1035,"d":"$1,035"},{"v":1071,"d":"$1,071"},{"v":1143,"d":"$1,143"},{"v":1251,"d":"$1,251"},{"v":1014,"d":"$1,014"},{"v":1059,"d":"$1,059"},{"v":1116,"d":"$1,116"},{"v":897,"d":"$897"},{"v":996,"d":"$996"},{"v":1080,"d":"$1,080"},{"v":1236,"d":"$1,236"},{"v":1305,"d":"$1,305"},{"v":1416,"d":"$1,416"},{"v":1446,"d":"$1,446"}]
["WICHITA FALLS/SHEPPARD AFB","TX",null,null,{"v":723,"d":"$723"},{"v":723,"d":"$723"},{"v":723,"d":"$723"},{"v":723,"d":"$723"},{"v":810,"d":"$810"},{"v":1005,"d":"$1,005"},{"v":1074,"d":"$1,074"},{"v":1149,"d":"$1,149"},{"v":1254,"d":"$1,254"},{"v":1005,"d":"$1,005"},{"v":1131,"d":"$1,131"},{"v":1221,"d":"$1,221"},{"v":1362,"d":"$1,362"},{"v":1455,"d":"$1,455"},{"v":1089,"d":"$1,089"},{"v":1194,"d":"$1,194"},{"v":1338,"d":"$1,338"},{"v":849,"d":"$849"},{"v":1041,"d":"$1,041"},{"v":1245,"d":"$1,245"},{"v":1443,"d":"$1,443"},{"v":1545,"d":"$1,545"},{"v":1599,"d":"$1,599"},{"v":1632,"d":"$1,632"}]
["FORT WORTH","TX",null,null,{"v":852,"d":"$852"},{"v":852,"d":"$852"},{"v":852,"d":"$852"},{"v":852,"d":"$852"},{"v":960,"d":"$960"},{"v":1050,"d":"$1,050"},{"v":1143,"d":"$1,143"},{"v":1263,"d":"$1,263"},{"v":1308,"d":"$1,308"},{"v":1098,"d":"$1,098"},{"v":1263,"d":"$1,263"},{"v":1314,"d":"$1,314"},{"v":1401,"d":"$1,401"},{"v":1488,"d":"$1,488"},{"v":1236,"d":"$1,236"},{"v":1299,"d":"$1,299"},{"v":1377,"d":"$1,377"},{"v":1035,"d":"$1,035"},{"v":1203,"d":"$1,203"},{"v":1326,"d":"$1,326"},{"v":1476,"d":"$1,476"},{"v":1533,"d":"$1,533"},{"v":1623,"d":"$1,623"},{"v":1656,"d":"$1,656"}]
["TYLER","TX",null,null,{"v":795,"d":"$795"},{"v":795,"d":"$795"},{"v":795,"d":"$795"},{"v":795,"d":"$795"},{"v":918,"d":"$918"},{"v":1059,"d":"$1,059"},{"v":1077,"d":"$1,077"},{"v":1188,"d":"$1,188"},{"v":1275,"d":"$1,275"},{"v":1059,"d":"$1,059"},{"v":1185,"d":"$1,185"},{"v":1284,"d":"$1,284"},{"v":1419,"d":"$1,419"},{"v":1443,"d":"$1,443"},{"v":1131,"d":"$1,131"},{"v":1257,"d":"$1,257"},{"v":1413,"d":"$1,413"},{"v":987,"d":"$987"},{"v":1107,"d":"$1,107"},{"v":1311,"d":"$1,311"},{"v":1440,"d":"$1,440"},{"v":1620,"d":"$1,620"},{"v":1635,"d":"$1,635"},{"v":1653,"d":"$1,653"}]
["WACO","TX",null,null,{"v":729,"d":"$729"},{"v":729,"d":"$729"},{"v":729,"d":"$729"},{"v":729,"d":"$729"},{"v":843,"d":"$843"},{"v":954,"d":"$954"},{"v":987,"d":"$987"},{"v":1089,"d":"$1,089"},{"v":1158,"d":"$1,158"},{"v":954,"d":"$954"},{"v":1086,"d":"$1,086"},{"v":1167,"d":"$1,167"},{"v":1284,"d":"$1,284"},{"v":1329,"d":"$1,329"},{"v":1041,"d":"$1,041"},{"v":1143,"d":"$1,143"},{"v":1272,"d":"$1,272"},{"v":903,"d":"$903"},{"v":1017,"d":"$1,017"},{"v":1188,"d":"$1,188"},{"v":1323,"d":"$1,323"},{"v":1488,"d":"$1,488"},{"v":1503,"d":"$1,503"},{"v":1518,"d":"$1,518"}]
["OGDEN/HILL AFB","UT",null,null,{"v":777,"d":"$777"},{"v":777,"d":"$777"},{"v":777,"d":"$777"},{"v":777,"d":"$777"},{"v":867,"d":"$867"},{"v":915,"d":"$915"},{"v":942,"d":"$942"},{"v":1005,"d":"$1,005"},{"v":1062,"d":"$1,062"},{"v":930,"d":"$930"},{"v":1005,"d":"$1,005"},{"v":1068,"d":"$1,068"},{"v":1161,"d":"$1,161"},{"v":1203,"d":"$1,203"},{"v":969,"d":"$969"},{"v":1050,"d":"$1,050"},{"v":1152,"d":"$1,152"},{"v":912,"d":"$912"},{"v":960,"d":"$960"},{"v":1086,"d":"$1,086"},{"v":1197,"d":"$1,197"},{"v":1224,"d":"$1,224"},{"v":1266,"d":"$1,266"},{"v":1290,"d":"$1,290"}]
["SALT LAKE CITY","UT",null,null,{"v":774,"d":"$774"},{"v":774,"d":"$774"},{"v":774,"d":"$774"},{"v":774,"d":"$774"},{"v":873,"d":"$873"},{"v":981,"d":"$981"},{"v":1038,"d":"$1,038"},{"v":1170,"d":"$1,170"},{"v":1224,"d":"$1,224"},{"v":990,"d":"$990"},{"v":1170,"d":"$1,170"},{"v":1227,"d":"$1,227"},{"v":1320,"d":"$1,320"},{"v":1374,"d":"$1,374"},{"v":1137,"d":"$1,137"},{"v":1212,"d":"$1,212"},{"v":1305,"d":"$1,305"},{"v":924,"d":"$924"},{"v":1101,"d":"$1,101"},{"v":1245,"d":"$1,245"},{"v":1365,"d":"$1,365"},{"v":1401,"d":"$1,401"},{"v":1455,"d":"$1,455"},{"v":1485,"d":"$1,485"}]
["PROVO","UT",null,null,{"v":753,"d":"$753"},{"v":753,"d":"$753"},{"v":753,"d":"$753"},{"v":753,"d":"$753"},{"v":831,"d":"$831"},{"v":885,"d":"$885"},{"v":969,"d":"$969"},{"v":1074,"d":"$1,074"},{"v":1101,"d":"$1,101"},{"v":927,"d":"$927"},{"v":1071,"d":"$1,071"},{"v":1104,"d":"$1,104"},{"v":1170,"d":"$1,170"},{"v":1272,"d":"$1,272"},{"v":1056,"d":"$1,056"},{"v":1095,"d":"$1,095"},{"v":1146,"d":"$1,146"},{"v":870,"d":"$870"},{"v":1023,"d":"$1,023"},{"v":1113,"d":"$1,113"},{"v":1260,"d":"$1,260"},{"v":1323,"d":"$1,323"},{"v":1428,"d":"$1,428"},{"v":1458,"d":"$1,458"}]
["CHARLOTTESVILLE","VA",null,null,{"v":1029,"d":"$1,029"},{"v":1029,"d":"$1,029"},{"v":1029,"d":"$1,029"},{"v":1029,"d":"$1,029"},{"v":1113,"d":"$1,113"},{"v":1164,"d":"$1,164"},{"v":1236,"d":"$1,236"},{"v":1338,"d":"$1,338"},{"v":1392,"d":"$1,392"},{"v":1200,"d":"$1,200"},{"v":1338,"d":"$1,338"},{"v":1392,"d":"$1,392"},{"v":1497,"d":"$1,497"},{"v":1611,"d":"$1,611"},{"v":1308,"d":"$1,308"},{"v":1377,"d":"$1,377"},{"v":1467,"d":"$1,467"},{"v":1155,"d":"$1,155"},{"v":1281,"d":"$1,281"},{"v":1410,"d":"$1,410"},{"v":1596,"d":"$1,596"},{"v":1671,"d":"$1,671"},{"v":1788,"d":"$1,788"},{"v":1824,"d":"$1,824"}]
["QUANTICO/WOODBRIDGE","VA",null,null,{"v":1152,"d":"$1,152"},{"v":1152,"d":"$1,152"},{"v":1152,"d":"$1,152"},{"v":1152,"d":"$1,152"},{"v":1284,"d":"$1,284"},{"v":1356,"d":"$1,356"},{"v":1401,"d":"$1,401"},{"v":1494,"d":"$1,494"},{"v":1569,"d":"$1,569"},{"v":1380,"d":"$1,380"},{"v":1491,"d":"$1,491"},{"v":1575,"d":"$1,575"},{"v":1710,"d":"$1,710"},{"v":1794,"d":"$1,794"},{"v":1446,"d":"$1,446"},{"v":1551,"d":"$1,551"},{"v":1686,"d":"$1,686"},{"v":1350,"d":"$1,350"},{"v":1431,"d":"$1,431"},{"v":1599,"d":"$1,599"},{"v":1782,"d":"$1,782"},{"v":1839,"d":"$1,839"},{"v":1929,"d":"$1,929"},{"v":1968,"d":"$1,968"}]
["HAMPTON/NEWPORT NEWS","VA",null,null,{"v":1053,"d":"$1,053"},{"v":1053,"d":"$1,053"},{"v":1053,"d":"$1,053"},{"v":1053,"d":"$1,053"},{"v":1116,"d":"$1,116"},{"v":1209,"d":"$1,209"},{"v":1314,"d":"$1,314"},{"v":1431,"d":"$1,431"},{"v":1539,"d":"$1,539"},{"v":1215,"d":"$1,215"},{"v":1419,"d":"$1,419"},{"v":1506,"d":"$1,506"},{"v":1647,"d":"$1,647"},{"v":1788,"d":"$1,788"},{"v":1374,"d":"$1,374"},{"v":1485,"d":"$1,485"},{"v":1611,"d":"$1,611"},{"v":1146,"d":"$1,146"},{"v":1335,"d":"$1,335"},{"v":1524,"d":"$1,524"},{"v":1770,"d":"$1,770"},{"v":1860,"d":"$1,860"},{"v":2007,"d":"$2,007"},{"v":2049,"d":"$2,049"}]
["NORFOLK/PORTSMOUTH","VA",null,null,{"v":1110,"d":"$1,110"},{"v":1110,"d":"$1,110"},{"v":1110,"d":"$1,110"},{"v":1110,"d":"$1,110"},{"v":1212,"d":"$1,212"},{"v":1314,"d":"$1,314"},{"v":1365,"d":"$1,365"},{"v":1512,"d":"$1,512"},{"v":1605,"d":"$1,605"},{"v":1323,"d":"$1,323"},{"v":1509,"d":"$1,509"},{"v":1614,"d":"$1,614"},{"v":1758,"d":"$1,758"},{"v":1791,"d":"$1,791"},{"v":1452,"d":"$1,452"},{"v":1584,"d":"$1,584"},{"v":1752,"d":"$1,752"},{"v":1263,"d":"$1,263"},{"v":1422,"d":"$1,422"},{"v":1644,"d":"$1,644"},{"v":1788,"d":"$1,788"},{"v":1809,"d":"$1,809"},{"v":1842,"d":"$1,842"},{"v":1881,"d":"$1,881"}]
["PETERSBERG/FORT LEE","VA",null,null,{"v":873,"d":"$873"},{"v":873,"d":"$873"},{"v":873,"d":"$873"},{"v":873,"d":"$873"},{"v":1050,"d":"$1,050"},{"v":1146,"d":"$1,146"},{"v":1164,"d":"$1,164"},{"v":1185,"d":"$1,185"},{"v":1188,"d":"$1,188"},{"v":1155,"d":"$1,155"},{"v":1185,"d":"$1,185"},{"v":1191,"d":"$1,191"},{"v":1212,"d":"$1,212"},{"v":1269,"d":"$1,269"},{"v":1182,"d":"$1,182"},{"v":1188,"d":"$1,188"},{"v":1197,"d":"$1,197"},{"v":1143,"d":"$1,143"},{"v":1176,"d":"$1,176"},{"v":1191,"d":"$1,191"},{"v":1263,"d":"$1,263"},{"v":1299,"d":"$1,299"},{"v":1359,"d":"$1,359"},{"v":1386,"d":"$1,386"}]
["RICHMOND","VA",null,null,{"v":1017,"d":"$1,017"},{"v":1017,"d":"$1,017"},{"v":1017,"d":"$1,017"},{"v":1017,"d":"$1,017"},{"v":1107,"d":"$1,107"},{"v":1164,"d":"$1,164"},{"v":1248,"d":"$1,248"},{"v":1365,"d":"$1,365"},{"v":1410,"d":"$1,410"},{"v":1209,"d":"$1,209"},{"v":1365,"d":"$1,365"},{"v":1413,"d":"$1,413"},{"v":1491,"d":"$1,491"},{"v":1536,"d":"$1,536"},{"v":1338,"d":"$1,338"},{"v":1398,"d":"$1,398"},{"v":1479,"d":"$1,479"},{"v":1149,"d":"$1,149"},{"v":1305,"d":"$1,305"},{"v":1428,"d":"$1,428"},{"v":1530,"d":"$1,530"},{"v":1557,"d":"$1,557"},{"v":1605,"d":"$1,605"},{"v":1638,"d":"$1,638"}]
["WARRENTON/VINT HILL FARM","VA",null,null,{"v":1128,"d":"$1,128"},{"v":1128,"d":"$1,128"},{"v":1128,"d":"$1,128"},{"v":1128,"d":"$1,128"},{"v":1278,"d":"$1,278"},{"v":1554,"d":"$1,554"},{"v":1578,"d":"$1,578"},{"v":1779,"d":"$1,779"},{"v":1890,"d":"$1,890"},{"v":1554,"d":"$1,554"},{"v":1773,"d":"$1,773"},{"v":1902,"d":"$1,902"},{"v":2079,"d":"$2,079"},{"v":2112,"d":"$2,112"},{"v":1704,"d":"$1,704"},{"v":1866,"d":"$1,866"},{"v":2070,"d":"$2,070"},{"v":1308,"d":"$1,308"},{"v":1638,"d":"$1,638"},{"v":1938,"d":"$1,938"},{"v":2106,"d":"$2,106"},{"v":2127,"d":"$2,127"},{"v":2160,"d":"$2,160"},{"v":2205,"d":"$2,205"}]
["LEXINGTON","VA",null,null,{"v":747,"d":"$747"},{"v":747,"d":"$747"},{"v":747,"d":"$747"},{"v":747,"d":"$747"},{"v":891,"d":"$891"},{"v":951,"d":"$951"},{"v":1005,"d":"$1,005"},{"v":1203,"d":"$1,203"},{"v":1227,"d":"$1,227"},{"v":951,"d":"$951"},{"v":1200,"d":"$1,200"},{"v":1230,"d":"$1,230"},{"v":1284,"d":"$1,284"},{"v":1353,"d":"$1,353"},{"v":1185,"d":"$1,185"},{"v":1221,"d":"$1,221"},{"v":1266,"d":"$1,266"},{"v":897,"d":"$897"},{"v":1122,"d":"$1,122"},{"v":1239,"d":"$1,239"},{"v":1344,"d":"$1,344"},{"v":1413,"d":"$1,413"},{"v":1458,"d":"$1,458"},{"v":1488,"d":"$1,488"}]
["ROANOKE","VA",null,null,{"v":720,"d":"$720"},{"v":720,"d":"$720"},{"v":720,"d":"$720"},{"v":720,"d":"$720"},{"v":777,"d":"$777"},{"v":864,"d":"$864"},{"v":909,"d":"$909"},{"v":1020,"d":"$1,020"},{"v":1071,"d":"$1,071"},{"v":864,"d":"$864"},{"v":1020,"d":"$1,020"},{"v":1077,"d":"$1,077"},{"v":1167,"d":"$1,167"},{"v":1227,"d":"$1,227"},{"v":987,"d":"$987"},{"v":1059,"d":"$1,059"},{"v":1152,"d":"$1,152"},{"v":804,"d":"$804"},{"v":957,"d":"$957"},{"v":1092,"d":"$1,092"},{"v":1221,"d":"$1,221"},{"v":1311,"d":"$1,311"},{"v":1323,"d":"$1,323"},{"v":1347,"d":"$1,347"}]
["FORT A.P. HILL","VA",null,null,{"v":1029,"d":"$1,029"},{"v":1029,"d":"$1,029"},{"v":1029,"d":"$1,029"},{"v":1029,"d":"$1,029"},{"v":1089,"d":"$1,089"},{"v":1284,"d":"$1,284"},{"v":1311,"d":"$1,311"},{"v":1404,"d":"$1,404"},{"v":1524,"d":"$1,524"},{"v":1284,"d":"$1,284"},{"v":1401,"d":"$1,401"},{"v":1533,"d":"$1,533"},{"v":1719,"d":"$1,719"},{"v":1755,"d":"$1,755"},{"v":1326,"d":"$1,326"},{"v":1497,"d":"$1,497"},{"v":1710,"d":"$1,710"},{"v":1119,"d":"$1,119"},{"v":1293,"d":"$1,293"},{"v":1572,"d":"$1,572"},{"v":1749,"d":"$1,749"},{"v":1773,"d":"$1,773"},{"v":1809,"d":"$1,809"},{"v":1845,"d":"$1,845"}]
["BURLINGTON","VT",null,null,{"v":1149,"d":"$1,149"},{"v":1149,"d":"$1,149"},{"v":1149,"d":"$1,149"},{"v":1149,"d":"$1,149"},{"v":1323,"d":"$1,323"},{"v":1410,"d":"$1,410"},{"v":1545,"d":"$1,545"},{"v":1785,"d":"$1,785"},{"v":1821,"d":"$1,821"},{"v":1443,"d":"$1,443"},{"v":1785,"d":"$1,785"},{"v":1824,"d":"$1,824"},{"v":1896,"d":"$1,896"},{"v":1968,"d":"$1,968"},{"v":1764,"d":"$1,764"},{"v":1815,"d":"$1,815"},{"v":1878,"d":"$1,878"},{"v":1332,"d":"$1,332"},{"v":1683,"d":"$1,683"},{"v":1836,"d":"$1,836"},{"v":1959,"d":"$1,959"},{"v":2004,"d":"$2,004"},{"v":2079,"d":"$2,079"},{"v":2121,"d":"$2,121"}]
["BREMERTON","WA",null,null,{"v":861,"d":"$861"},{"v":861,"d":"$861"},{"v":861,"d":"$861"},{"v":861,"d":"$861"},{"v":969,"d":"$969"},{"v":1035,"d":"$1,035"},{"v":1131,"d":"$1,131"},{"v":1257,"d":"$1,257"},{"v":1299,"d":"$1,299"},{"v":1086,"d":"$1,086"},{"v":1257,"d":"$1,257"},{"v":1302,"d":"$1,302"},{"v":1386,"d":"$1,386"},{"v":1467,"d":"$1,467"},{"v":1230,"d":"$1,230"},{"v":1290,"d":"$1,290"},{"v":1365,"d":"$1,365"},{"v":1020,"d":"$1,020"},{"v":1194,"d":"$1,194"},{"v":1317,"d":"$1,317"},{"v":1455,"d":"$1,455"},{"v":1509,"d":"$1,509"},{"v":1593,"d":"$1,593"},{"v":1626,"d":"$1,626"}]
["EVERETT","WA",null,null,{"v":942,"d":"$942"},{"v":942,"d":"$942"},{"v":942,"d":"$942"},{"v":942,"d":"$942"},{"v":1080,"d":"$1,080"},{"v":1161,"d":"$1,161"},{"v":1239,"d":"$1,239"},{"v":1368,"d":"$1,368"},{"v":1437,"d":"$1,437"},{"v":1203,"d":"$1,203"},{"v":1365,"d":"$1,365"},{"v":1443,"d":"$1,443"},{"v":1569,"d":"$1,569"},{"v":1653,"d":"$1,653"},{"v":1320,"d":"$1,320"},{"v":1422,"d":"$1,422"},{"v":1548,"d":"$1,548"},{"v":1149,"d":"$1,149"},{"v":1293,"d":"$1,293"},{"v":1467,"d":"$1,467"},{"v":1644,"d":"$1,644"},{"v":1695,"d":"$1,695"},{"v":1782,"d":"$1,782"},{"v":1818,"d":"$1,818"}]
["PORT ANGELES","WA",null,null,{"v":753,"d":"$753"},{"v":753,"d":"$753"},{"v":753,"d":"$753"},{"v":753,"d":"$753"},{"v":834,"d":"$834"},{"v":969,"d":"$969"},{"v":1014,"d":"$1,014"},{"v":1140,"d":"$1,140"},{"v":1197,"d":"$1,197"},{"v":969,"d":"$969"},{"v":1140,"d":"$1,140"},{"v":1203,"d":"$1,203"},{"v":1305,"d":"$1,305"},{"v":1368,"d":"$1,368"},{"v":1104,"d":"$1,104"},{"v":1185,"d":"$1,185"},{"v":1290,"d":"$1,290"},{"v":909,"d":"$909"},{"v":1071,"d":"$1,071"},{"v":1224,"d":"$1,224"},{"v":1359,"d":"$1,359"},{"v":1398,"d":"$1,398"},{"v":1461,"d":"$1,461"},{"v":1488,"d":"$1,488"}]
["PULLMAN","WA",null,null,{"v":606,"d":"$606"},{"v":606,"d":"$606"},{"v":606,"d":"$606"},{"v":606,"d":"$606"},{"v":684,"d":"$684"},{"v":978,"d":"$978"},{"v":1014,"d":"$1,014"},{"v":1056,"d":"$1,056"},{"v":1122,"d":"$1,122"},{"v":978,"d":"$978"},{"v":1032,"d":"$1,032"},{"v":1122,"d":"$1,122"},{"v":1317,"d":"$1,317"},{"v":1365,"d":"$1,365"},{"v":1023,"d":"$1,023"},{"v":1083,"d":"$1,083"},{"v":1305,"d":"$1,305"},{"v":717,"d":"$717"},{"v":972,"d":"$972"},{"v":1164,"d":"$1,164"},{"v":1359,"d":"$1,359"},{"v":1389,"d":"$1,389"},{"v":1440,"d":"$1,440"},{"v":1470,"d":"$1,470"}]
["SEATTLE","WA",null,null,{"v":1047,"d":"$1,047"},{"v":1047,"d":"$1,047"},{"v":1047,"d":"$1,047"},{"v":1047,"d":"$1,047"},{"v":1176,"d":"$1,176"},{"v":1410,"d":"$1,410"},{"v":1464,"d":"$1,464"},{"v":1629,"d":"$1,629"},{"v":1728,"d":"$1,728"},{"v":1413,"d":"$1,413"},{"v":1626,"d":"$1,626"},{"v":1737,"d":"$1,737"},{"v":1899,"d":"$1,899"},{"v":1968,"d":"$1,968"},{"v":1566,"d":"$1,566"},{"v":1704,"d":"$1,704"},{"v":1881,"d":"$1,881"},{"v":1227,"d":"$1,227"},{"v":1509,"d":"$1,509"},{"v":1767,"d":"$1,767"},{"v":1959,"d":"$1,959"},{"v":2004,"d":"$2,004"},{"v":2076,"d":"$2,076"},{"v":2118,"d":"$2,118"}]
["SPOKANE","WA",null,null,{"v":714,"d":"$714"},{"v":714,"d":"$714"},{"v":714,"d":"$714"},{"v":714,"d":"$714"},{"v":795,"d":"$795"},{"v":870,"d":"$870"},{"v":957,"d":"$957"},{"v":1077,"d":"$1,077"},{"v":1110,"d":"$1,110"},{"v":909,"d":"$909"},{"v":1077,"d":"$1,077"},{"v":1113,"d":"$1,113"},{"v":1173,"d":"$1,173"},{"v":1236,"d":"$1,236"},{"v":1059,"d":"$1,059"},{"v":1101,"d":"$1,101"},{"v":1158,"d":"$1,158"},{"v":843,"d":"$843"},{"v":1023,"d":"$1,023"},{"v":1122,"d":"$1,122"},{"v":1227,"d":"$1,227"},{"v":1266,"d":"$1,266"},{"v":1326,"d":"$1,326"},{"v":1353,"d":"$1,353"}]
["TACOMA","WA",null,null,{"v":960,"d":"$960"},{"v":960,"d":"$960"},{"v":960,"d":"$960"},{"v":960,"d":"$960"},{"v":1074,"d":"$1,074"},{"v":1227,"d":"$1,227"},{"v":1308,"d":"$1,308"},{"v":1443,"d":"$1,443"},{"v":1518,"d":"$1,518"},{"v":1230,"d":"$1,230"},{"v":1440,"d":"$1,440"},{"v":1524,"d":"$1,524"},{"v":1662,"d":"$1,662"},{"v":1770,"d":"$1,770"},{"v":1395,"d":"$1,395"},{"v":1500,"d":"$1,500"},{"v":1635,"d":"$1,635"},{"v":1128,"d":"$1,128"},{"v":1350,"d":"$1,350"},{"v":1548,"d":"$1,548"},{"v":1755,"d":"$1,755"},{"v":1824,"d":"$1,824"},{"v":1935,"d":"$1,935"},{"v":1974,"d":"$1,974"}]
["WHIDBEY ISLAND","WA",null,null,{"v":792,"d":"$792"},{"v":792,"d":"$792"},{"v":792,"d":"$792"},{"v":792,"d":"$792"},{"v":915,"d":"$915"},{"v":1023,"d":"$1,023"},{"v":1098,"d":"$1,098"},{"v":1182,"d":"$1,182"},{"v":1251,"d":"$1,251"},{"v":1029,"d":"$1,029"},{"v":1176,"d":"$1,176"},{"v":1257,"d":"$1,257"},{"v":1389,"d":"$1,389"},{"v":1491,"d":"$1,491"},{"v":1131,"d":"$1,131"},{"v":1233,"d":"$1,233"},{"v":1362,"d":"$1,362"},{"v":981,"d":"$981"},{"v":1107,"d":"$1,107"},{"v":1278,"d":"$1,278"},{"v":1476,"d":"$1,476"},{"v":1542,"d":"$1,542"},{"v":1647,"d":"$1,647"},{"v":1680,"d":"$1,680"}]
["YAKIMA","WA",null,null,{"v":804,"d":"$804"},{"v":804,"d":"$804"},{"v":804,"d":"$804"},{"v":804,"d":"$804"},{"v":924,"d":"$924"},{"v":981,"d":"$981"},{"v":1080,"d":"$1,080"},{"v":1245,"d":"$1,245"},{"v":1269,"d":"$1,269"},{"v":1011,"d":"$1,011"},{"v":1245,"d":"$1,245"},{"v":1272,"d":"$1,272"},{"v":1320,"d":"$1,320"},{"v":1371,"d":"$1,371"},{"v":1230,"d":"$1,230"},{"v":1263,"d":"$1,263"},{"v":1308,"d":"$1,308"},{"v":930,"d":"$930"},{"v":1176,"d":"$1,176"},{"v":1281,"d":"$1,281"},{"v":1365,"d":"$1,365"},{"v":1395,"d":"$1,395"},{"v":1446,"d":"$1,446"},{"v":1476,"d":"$1,476"}]
["ABERDEEN","WA",null,null,{"v":654,"d":"$654"},{"v":654,"d":"$654"},{"v":654,"d":"$654"},{"v":654,"d":"$654"},{"v":735,"d":"$735"},{"v":801,"d":"$801"},{"v":876,"d":"$876"},{"v":975,"d":"$975"},{"v":1011,"d":"$1,011"},{"v":840,"d":"$840"},{"v":975,"d":"$975"},{"v":1014,"d":"$1,014"},{"v":1077,"d":"$1,077"},{"v":1134,"d":"$1,134"},{"v":954,"d":"$954"},{"v":1002,"d":"$1,002"},{"v":1062,"d":"$1,062"},{"v":789,"d":"$789"},{"v":927,"d":"$927"},{"v":1023,"d":"$1,023"},{"v":1125,"d":"$1,125"},{"v":1161,"d":"$1,161"},{"v":1218,"d":"$1,218"},{"v":1242,"d":"$1,242"}]
["MADISON","WI",null,null,{"v":918,"d":"$918"},{"v":918,"d":"$918"},{"v":918,"d":"$918"},{"v":918,"d":"$918"},{"v":1065,"d":"$1,065"},{"v":1152,"d":"$1,152"},{"v":1230,"d":"$1,230"},{"v":1350,"d":"$1,350"},{"v":1410,"d":"$1,410"},{"v":1191,"d":"$1,191"},{"v":1347,"d":"$1,347"},{"v":1416,"d":"$1,416"},{"v":1524,"d":"$1,524"},{"v":1590,"d":"$1,590"},{"v":1311,"d":"$1,311"},{"v":1398,"d":"$1,398"},{"v":1506,"d":"$1,506"},{"v":1140,"d":"$1,140"},{"v":1281,"d":"$1,281"},{"v":1437,"d":"$1,437"},{"v":1581,"d":"$1,581"},{"v":1623,"d":"$1,623"},{"v":1692,"d":"$1,692"},{"v":1728,"d":"$1,728"}]
["MILWAUKEE","WI",null,null,{"v":954,"d":"$954"},{"v":954,"d":"$954"},{"v":954,"d":"$954"},{"v":954,"d":"$954"},{"v":1095,"d":"$1,095"},{"v":1197,"d":"$1,197"},{"v":1278,"d":"$1,278"},{"v":1389,"d":"$1,389"},{"v":1428,"d":"$1,428"},{"v":1239,"d":"$1,239"},{"v":1386,"d":"$1,386"},{"v":1431,"d":"$1,431"},{"v":1509,"d":"$1,509"},{"v":1584,"d":"$1,584"},{"v":1362,"d":"$1,362"},{"v":1419,"d":"$1,419"},{"v":1491,"d":"$1,491"},{"v":1185,"d":"$1,185"},{"v":1332,"d":"$1,332"},{"v":1443,"d":"$1,443"},{"v":1575,"d":"$1,575"},{"v":1623,"d":"$1,623"},{"v":1701,"d":"$1,701"},{"v":1737,"d":"$1,737"}]
["SPARTA/FORT MCCOY","WI",null,null,{"v":687,"d":"$687"},{"v":687,"d":"$687"},{"v":687,"d":"$687"},{"v":687,"d":"$687"},{"v":774,"d":"$774"},{"v":933,"d":"$933"},{"v":957,"d":"$957"},{"v":1074,"d":"$1,074"},{"v":1140,"d":"$1,140"},{"v":933,"d":"$933"},{"v":1074,"d":"$1,074"},{"v":1146,"d":"$1,146"},{"v":1251,"d":"$1,251"},{"v":1281,"d":"$1,281"},{"v":1032,"d":"$1,032"},{"v":1125,"d":"$1,125"},{"v":1245,"d":"$1,245"},{"v":801,"d":"$801"},{"v":993,"d":"$993"},{"v":1170,"d":"$1,170"},{"v":1278,"d":"$1,278"},{"v":1296,"d":"$1,296"},{"v":1326,"d":"$1,326"},{"v":1353,"d":"$1,353"}]
["OSHKOSH/APPLETON","WI",null,null,{"v":615,"d":"$615"},{"v":615,"d":"$615"},{"v":615,"d":"$615"},{"v":615,"d":"$615"},{"v":690,"d":"$690"},{"v":813,"d":"$813"},{"v":843,"d":"$843"},{"v":939,"d":"$939"},{"v":996,"d":"$996"},{"v":813,"d":"$813"},{"v":936,"d":"$936"},{"v":1002,"d":"$1,002"},{"v":1095,"d":"$1,095"},{"v":1134,"d":"$1,134"},{"v":903,"d":"$903"},{"v":984,"d":"$984"},{"v":1083,"d":"$1,083"},{"v":738,"d":"$738"},{"v":876,"d":"$876"},{"v":1020,"d":"$1,020"},{"v":1128,"d":"$1,128"},{"v":1167,"d":"$1,167"},{"v":1194,"d":"$1,194"},{"v":1218,"d":"$1,218"}]
["GREEN BAY","WI",null,null,{"v":624,"d":"$624"},{"v":624,"d":"$624"},{"v":624,"d":"$624"},{"v":624,"d":"$624"},{"v":717,"d":"$717"},{"v":879,"d":"$879"},{"v":900,"d":"$900"},{"v":951,"d":"$951"},{"v":1035,"d":"$1,035"},{"v":879,"d":"$879"},{"v":948,"d":"$948"},{"v":1044,"d":"$1,044"},{"v":1179,"d":"$1,179"},{"v":1206,"d":"$1,206"},{"v":903,"d":"$903"},{"v":1017,"d":"$1,017"},{"v":1170,"d":"$1,170"},{"v":771,"d":"$771"},{"v":876,"d":"$876"},{"v":1071,"d":"$1,071"},{"v":1200,"d":"$1,200"},{"v":1347,"d":"$1,347"},{"v":1359,"d":"$1,359"},{"v":1374,"d":"$1,374"}]
["STEVENS POINT","WI",null,null,{"v":639,"d":"$639"},{"v":639,"d":"$639"},{"v":639,"d":"$639"},{"v":639,"d":"$639"},{"v":735,"d":"$735"},{"v":849,"d":"$849"},{"v":873,"d":"$873"},{"v":945,"d":"$945"},{"v":1017,"d":"$1,017"},{"v":849,"d":"$849"},{"v":942,"d":"$942"},{"v":1023,"d":"$1,023"},{"v":1140,"d":"$1,140"},{"v":1170,"d":"$1,170"},{"v":897,"d":"$897"},{"v":999,"d":"$999"},{"v":1131,"d":"$1,131"},{"v":783,"d":"$783"},{"v":879,"d":"$879"},{"v":1047,"d":"$1,047"},{"v":1167,"d":"$1,167"},{"v":1185,"d":"$1,185"},{"v":1218,"d":"$1,218"},{"v":1242,"d":"$1,242"}]
["STURGEON BAY","WI",null,null,{"v":654,"d":"$654"},{"v":654,"d":"$654"},{"v":654,"d":"$654"},{"v":654,"d":"$654"},{"v":696,"d":"$696"},{"v":792,"d":"$792"},{"v":837,"d":"$837"},{"v":954,"d":"$954"},{"v":993,"d":"$993"},{"v":792,"d":"$792"},{"v":951,"d":"$951"},{"v":996,"d":"$996"},{"v":1071,"d":"$1,071"},{"v":1131,"d":"$1,131"},{"v":927,"d":"$927"},{"v":984,"d":"$984"},{"v":1056,"d":"$1,056"},{"v":705,"d":"$705"},{"v":888,"d":"$888"},{"v":1008,"d":"$1,008"},{"v":1122,"d":"$1,122"},{"v":1161,"d":"$1,161"},{"v":1221,"d":"$1,221"},{"v":1245,"d":"$1,245"}]
["EAU CLAIRE","WI",null,null,{"v":675,"d":"$675"},{"v":675,"d":"$675"},{"v":675,"d":"$675"},{"v":675,"d":"$675"},{"v":768,"d":"$768"},{"v":903,"d":"$903"},{"v":909,"d":"$909"},{"v":1059,"d":"$1,059"},{"v":1113,"d":"$1,113"},{"v":903,"d":"$903"},{"v":1056,"d":"$1,056"},{"v":1119,"d":"$1,119"},{"v":1206,"d":"$1,206"},{"v":1215,"d":"$1,215"},{"v":1023,"d":"$1,023"},{"v":1101,"d":"$1,101"},{"v":1203,"d":"$1,203"},{"v":783,"d":"$783"},{"v":981,"d":"$981"},{"v":1137,"d":"$1,137"},{"v":1215,"d":"$1,215"},{"v":1221,"d":"$1,221"},{"v":1233,"d":"$1,233"},{"v":1257,"d":"$1,257"}]
["MORGANTOWN","WV",null,null,{"v":768,"d":"$768"},{"v":768,"d":"$768"},{"v":768,"d":"$768"},{"v":768,"d":"$768"},{"v":882,"d":"$882"},{"v":1053,"d":"$1,053"},{"v":1059,"d":"$1,059"},{"v":1221,"d":"$1,221"},{"v":1293,"d":"$1,293"},{"v":1053,"d":"$1,053"},{"v":1218,"d":"$1,218"},{"v":1299,"d":"$1,299"},{"v":1407,"d":"$1,407"},{"v":1416,"d":"$1,416"},{"v":1176,"d":"$1,176"},{"v":1275,"d":"$1,275"},{"v":1404,"d":"$1,404"},{"v":900,"d":"$900"},{"v":1122,"d":"$1,122"},{"v":1323,"d":"$1,323"},{"v":1416,"d":"$1,416"},{"v":1443,"d":"$1,443"},{"v":1458,"d":"$1,458"},{"v":1473,"d":"$1,473"}]
["HUNTINGTON","WV",null,null,{"v":684,"d":"$684"},{"v":684,"d":"$684"},{"v":684,"d":"$684"},{"v":684,"d":"$684"},{"v":813,"d":"$813"},{"v":912,"d":"$912"},{"v":939,"d":"$939"},{"v":1002,"d":"$1,002"},{"v":1086,"d":"$1,086"},{"v":912,"d":"$912"},{"v":999,"d":"$999"},{"v":1092,"d":"$1,092"},{"v":1224,"d":"$1,224"},{"v":1260,"d":"$1,260"},{"v":948,"d":"$948"},{"v":1065,"d":"$1,065"},{"v":1215,"d":"$1,215"},{"v":876,"d":"$876"},{"v":936,"d":"$936"},{"v":1119,"d":"$1,119"},{"v":1254,"d":"$1,254"},{"v":1278,"d":"$1,278"},{"v":1317,"d":"$1,317"},{"v":1341,"d":"$1,341"}]
["CHARLESTON","WV",null,null,{"v":627,"d":"$627"},{"v":627,"d":"$627"},{"v":627,"d":"$627"},{"v":627,"d":"$627"},{"v":735,"d":"$735"},{"v":801,"d":"$801"},{"v":840,"d":"$840"},{"v":921,"d":"$921"},{"v":978,"d":"$978"},{"v":816,"d":"$816"},{"v":921,"d":"$921"},{"v":984,"d":"$984"},{"v":1080,"d":"$1,080"},{"v":1128,"d":"$1,128"},{"v":885,"d":"$885"},{"v":966,"d":"$966"},{"v":1068,"d":"$1,068"},{"v":786,"d":"$786"},{"v":867,"d":"$867"},{"v":1002,"d":"$1,002"},{"v":1122,"d":"$1,122"},{"v":1149,"d":"$1,149"},{"v":1197,"d":"$1,197"},{"v":1221,"d":"$1,221"}]
["BECKLEY","WV",null,null,{"v":609,"d":"$609"},{"v":609,"d":"$609"},{"v":609,"d":"$609"},{"v":609,"d":"$609"},{"v":693,"d":"$693"},{"v":744,"d":"$744"},{"v":804,"d":"$804"},{"v":891,"d":"$891"},{"v":930,"d":"$930"},{"v":777,"d":"$777"},{"v":888,"d":"$888"},{"v":933,"d":"$933"},{"v":1008,"d":"$1,008"},{"v":1074,"d":"$1,074"},{"v":864,"d":"$864"},{"v":921,"d":"$921"},{"v":993,"d":"$993"},{"v":735,"d":"$735"},{"v":843,"d":"$843"},{"v":948,"d":"$948"},{"v":1065,"d":"$1,065"},{"v":1104,"d":"$1,104"},{"v":1170,"d":"$1,170"},{"v":1194,"d":"$1,194"}]
["MARTINSBURG","WV",null,null,{"v":846,"d":"$846"},{"v":846,"d":"$846"},{"v":846,"d":"$846"},{"v":846,"d":"$846"},{"v":954,"d":"$954"},{"v":1023,"d":"$1,023"},{"v":1110,"d":"$1,110"},{"v":1230,"d":"$1,230"},{"v":1275,"d":"$1,275"},{"v":1068,"d":"$1,068"},{"v":1230,"d":"$1,230"},{"v":1281,"d":"$1,281"},{"v":1362,"d":"$1,362"},{"v":1428,"d":"$1,428"},{"v":1200,"d":"$1,200"},{"v":1266,"d":"$1,266"},{"v":1347,"d":"$1,347"},{"v":1008,"d":"$1,008"},{"v":1167,"d":"$1,167"},{"v":1293,"d":"$1,293"},{"v":1419,"d":"$1,419"},{"v":1458,"d":"$1,458"},{"v":1524,"d":"$1,524"},{"v":1557,"d":"$1,557"}]
["CLARKSBURG","WV",null,null,{"v":651,"d":"$651"},{"v":651,"d":"$651"},{"v":651,"d":"$651"},{"v":651,"d":"$651"},{"v":738,"d":"$738"},{"v":897,"d":"$897"},{"v":921,"d":"$921"},{"v":987,"d":"$987"},{"v":1068,"d":"$1,068"},{"v":897,"d":"$897"},{"v":984,"d":"$984"},{"v":1077,"d":"$1,077"},{"v":1203,"d":"$1,203"},{"v":1236,"d":"$1,236"},{"v":936,"d":"$936"},{"v":1050,"d":"$1,050"},{"v":1197,"d":"$1,197"},{"v":798,"d":"$798"},{"v":912,"d":"$912"},{"v":1101,"d":"$1,101"},{"v":1233,"d":"$1,233"},{"v":1260,"d":"$1,260"},{"v":1287,"d":"$1,287"},{"v":1314,"d":"$1,314"}]
["PARKERSBURG","WV",null,null,{"v":606,"d":"$606"},{"v":606,"d":"$606"},{"v":606,"d":"$606"},{"v":606,"d":"$606"},{"v":687,"d":"$687"},{"v":744,"d":"$744"},{"v":813,"d":"$813"},{"v":900,"d":"$900"},{"v":933,"d":"$933"},{"v":780,"d":"$780"},{"v":900,"d":"$900"},{"v":936,"d":"$936"},{"v":990,"d":"$990"},{"v":1023,"d":"$1,023"},{"v":882,"d":"$882"},{"v":924,"d":"$924"},{"v":981,"d":"$981"},{"v":735,"d":"$735"},{"v":855,"d":"$855"},{"v":945,"d":"$945"},{"v":1017,"d":"$1,017"},{"v":1038,"d":"$1,038"},{"v":1071,"d":"$1,071"},{"v":1092,"d":"$1,092"}]
["CHEYENNE","WY",null,null,{"v":642,"d":"$642"},{"v":642,"d":"$642"},{"v":642,"d":"$642"},{"v":642,"d":"$642"},{"v":720,"d":"$720"},{"v":996,"d":"$996"},{"v":1032,"d":"$1,032"},{"v":1074,"d":"$1,074"},{"v":1149,"d":"$1,149"},{"v":999,"d":"$999"},{"v":1050,"d":"$1,050"},{"v":1158,"d":"$1,158"},{"v":1341,"d":"$1,341"},{"v":1389,"d":"$1,389"},{"v":1041,"d":"$1,041"},{"v":1122,"d":"$1,122"},{"v":1329,"d":"$1,329"},{"v":750,"d":"$750"},{"v":990,"d":"$990"},{"v":1197,"d":"$1,197"},{"v":1383,"d":"$1,383"},{"v":1416,"d":"$1,416"},{"v":1464,"d":"$1,464"},{"v":1494,"d":"$1,494"}]
{"$rows_empty":8401}
["CHEYENNE","WY",null,null,{"v":642,"d":"$642"},{"v":642,"d":"$642"},{"v":642,"d":"$642"},{"v":642,"d":"$642"},{"v":720,"d":"$720"},{"v":996,"d":"$996"},{"v":1032,"d":"$1,032"},{"v":1074,"d":"$1,074"},{"v":1149,"d":"$1,149"},{"v":999,"d":"$999"},{"v":1050,"d":"$1,050"},{"v":1158,"d":"$1,158"},{"v":1341,"d":"$1,341"},{"v":1389,"d":"$1,389"},{"v":1041,"d":"$1,041"},{"v":1122,"d":"$1,122"},{"v":1329,"d":"$1,329"},{"v":750,"d":"$750"},{"v":990,"d":"$990"},{"v":1197,"d":"$1,197"},{"v":1383,"d":"$1,383"},{"v":1416,"d":"$1,416"},{"v":1464,"d":"$1,464"},{"v":1494,"d":"$1,494"}]

{"sheet":"BAH no Dep","index":4,"n_rows":8809,"n_cols":30,"rows_kept":8809,"hidden":true}
["City","State","Rank","Combined","Combined","Amount"," E1 "," E2 "," E3 "," E4 "," E5 "," E6 "," E7 "," E8 "," E9 "," W01 "," W02 "," W03 "," W04 "," W05 "," O1E "," O2E "," O3E "," O1 "," O2 "," O3 "," O4 "," O5 "," O6 "," O7 "]
["KETCHIKAN","AK","E-1",{"$f":"A2&B2&C2","v":"KETCHIKANAKE-1"},"KETCHIKANAKE-1",1191,1191,1191,1191,1191,1434,1434,1551,1677,1794,1437,1650,1761,1950,2106,1587,1734,1911,1434,1548,1794,2085,2184,2343,2391]
["KETCHIKAN","AK","E-2","KETCHIKANAKE-2","KETCHIKANAKE-2",1191]
["KETCHIKAN","AK","E-3","KETCHIKANAKE-3","KETCHIKANAKE-3",1191]
["KETCHIKAN","AK","E-4","KETCHIKANAKE-4","KETCHIKANAKE-4",1191]
["KETCHIKAN","AK","E-5","KETCHIKANAKE-5","KETCHIKANAKE-5",1434]
["KETCHIKAN","AK","E-6","KETCHIKANAKE-6","KETCHIKANAKE-6",1434]
["KETCHIKAN","AK","E-7","KETCHIKANAKE-7","KETCHIKANAKE-7",1551]
["KETCHIKAN","AK","E-8","KETCHIKANAKE-8","KETCHIKANAKE-8",1677]
["KETCHIKAN","AK","E-9","KETCHIKANAKE-9","KETCHIKANAKE-9",1794]
["KETCHIKAN","AK","W-1","KETCHIKANAKW-1","KETCHIKANAKW-1",1437]
["KETCHIKAN","AK","W-2","KETCHIKANAKW-2","KETCHIKANAKW-2",1650]
["KETCHIKAN","AK","W-3","KETCHIKANAKW-3","KETCHIKANAKW-3",1761]
["KETCHIKAN","AK","W-4","KETCHIKANAKW-4","KETCHIKANAKW-4",1950]
["KETCHIKAN","AK","W-5","KETCHIKANAKW-5","KETCHIKANAKW-5",2106]
["KETCHIKAN","AK","O-1E","KETCHIKANAKO-1E","KETCHIKANAKO-1E",1587]
["KETCHIKAN","AK","O-2E","KETCHIKANAKO-2E","KETCHIKANAKO-2E",1734]
["KETCHIKAN","AK","O-3E","KETCHIKANAKO-3E","KETCHIKANAKO-3E",1911]
["KETCHIKAN","AK","O-1","KETCHIKANAKO-1","KETCHIKANAKO-1",1434]
["KETCHIKAN","AK","O-2","KETCHIKANAKO-2","KETCHIKANAKO-2",1548]
["KETCHIKAN","AK","O-3","KETCHIKANAKO-3","KETCHIKANAKO-3",1794]
["KETCHIKAN","AK","O-4","KETCHIKANAKO-4","KETCHIKANAKO-4",2085]
["KETCHIKAN","AK","O-5","KETCHIKANAKO-5","KETCHIKANAKO-5",2184]
["KETCHIKAN","AK","O-6","KETCHIKANAKO-6","KETCHIKANAKO-6",2343]
["KETCHIKAN","AK","O-7","KETCHIKANAKO-7","KETCHIKANAKO-7",2391]
["SITKA","AK","E-1","SITKAAKE-1","SITKAAKE-1",1350,1350,1350,1350,1350,1530,1536,1665,1845,1920,1602,1845,1929,2067,2172,1797,1905,2040,1530,1749,1953,2157,2226,2334,2382]
["SITKA","AK","E-2","SITKAAKE-2","SITKAAKE-2",1350]
["SITKA","AK","E-3","SITKAAKE-3","SITKAAKE-3",1350]
["SITKA","AK","E-4","SITKAAKE-4","SITKAAKE-4",1350]
["SITKA","AK","E-5","SITKAAKE-5","SITKAAKE-5",1530]
["SITKA","AK","E-6","SITKAAKE-6","SITKAAKE-6",1536]
["SITKA","AK","E-7","SITKAAKE-7","SITKAAKE-7",1665]
["SITKA","AK","E-8","SITKAAKE-8","SITKAAKE-8",1845]
["SITKA","AK","E-9","SITKAAKE-9","SITKAAKE-9",1920]
["SITKA","AK","W-1","SITKAAKW-1","SITKAAKW-1",1602]
["SITKA","AK","W-2","SITKAAKW-2","SITKAAKW-2",1845]
["SITKA","AK","W-3","SITKAAKW-3","SITKAAKW-3",1929]
["SITKA","AK","W-4","SITKAAKW-4","SITKAAKW-4",2067]
["SITKA","AK","W-5","SITKAAKW-5","SITKAAKW-5",2172]
["SITKA","AK","O-1E","SITKAAKO-1E","SITKAAKO-1E",1797]
["SITKA","AK","O-2E","SITKAAKO-2E","SITKAAKO-2E",1905]
["SITKA","AK","O-3E","SITKAAKO-3E","SITKAAKO-3E",2040]
["SITKA","AK","O-1","SITKAAKO-1","SITKAAKO-1",1530]
["SITKA","AK","O-2","SITKAAKO-2","SITKAAKO-2",1749]
["SITKA","AK","O-3","SITKAAKO-3","SITKAAKO-3",1953]
["SITKA","AK","O-4","SITKAAKO-4","SITKAAKO-4",2157]
["SITKA","AK","O-5","SITKAAKO-5","SITKAAKO-5",2226]
["SITKA","AK","O-6","SITKAAKO-6","SITKAAKO-6",2334]
["SITKA","AK","O-7","SITKAAKO-7","SITKAAKO-7",2382]
["JUNEAU","AK","E-1","JUNEAUAKE-1","JUNEAUAKE-1",1365,1365,1365,1365,1365,1593,1593,1641,1878,1974,1593,1875,1983,2139,2205,1818,1953,2124,1593,1743,2013,2196,2238,2304,2349]
["JUNEAU","AK","E-2","JUNEAUAKE-2","JUNEAUAKE-2",1365]
["JUNEAU","AK","E-3","JUNEAUAKE-3","JUNEAUAKE-3",1365]
["JUNEAU","AK","E-4","JUNEAUAKE-4","JUNEAUAKE-4",1365]
["JUNEAU","AK","E-5","JUNEAUAKE-5","JUNEAUAKE-5",1593]
["JUNEAU","AK","E-6","JUNEAUAKE-6","JUNEAUAKE-6",1593]
["JUNEAU","AK","E-7","JUNEAUAKE-7","JUNEAUAKE-7",1641]
["JUNEAU","AK","E-8","JUNEAUAKE-8","JUNEAUAKE-8",1878]
["JUNEAU","AK","E-9","JUNEAUAKE-9","JUNEAUAKE-9",1974]
["JUNEAU","AK","W-1","JUNEAUAKW-1","JUNEAUAKW-1",1593]
["JUNEAU","AK","W-2","JUNEAUAKW-2","JUNEAUAKW-2",1875]
["JUNEAU","AK","W-3","JUNEAUAKW-3","JUNEAUAKW-3",1983]
["JUNEAU","AK","W-4","JUNEAUAKW-4","JUNEAUAKW-4",2139]
["JUNEAU","AK","W-5","JUNEAUAKW-5","JUNEAUAKW-5",2205]
["JUNEAU","AK","O-1E","JUNEAUAKO-1E","JUNEAUAKO-1E",1818]
["JUNEAU","AK","O-2E","JUNEAUAKO-2E","JUNEAUAKO-2E",1953]
["JUNEAU","AK","O-3E",{"$f":"A66&B66&C66","v":"JUNEAUAKO-3E"},"JUNEAUAKO-3E",2124]
["JUNEAU","AK","O-1","JUNEAUAKO-1","JUNEAUAKO-1",1593]
["JUNEAU","AK","O-2","JUNEAUAKO-2","JUNEAUAKO-2",1743]
["JUNEAU","AK","O-3","JUNEAUAKO-3","JUNEAUAKO-3",2013]
["JUNEAU","AK","O-4","JUNEAUAKO-4","JUNEAUAKO-4",2196]
["JUNEAU","AK","O-5","JUNEAUAKO-5","JUNEAUAKO-5",2238]
["JUNEAU","AK","O-6","JUNEAUAKO-6","JUNEAUAKO-6",2304]
["JUNEAU","AK","O-7","JUNEAUAKO-7","JUNEAUAKO-7",2349]
["KODIAK ISLAND","AK","E-1","KODIAK ISLANDAKE-1","KODIAK ISLANDAKE-1",1206,1206,1206,1206,1206,1419,1428,1518,1662,1752,1476,1659,1761,1920,2034,1605,1731,1890,1419,1575,1788,2019,2094,2211,2256]
["KODIAK ISLAND","AK","E-2","KODIAK ISLANDAKE-2","KODIAK ISLANDAKE-2",1206]
["KODIAK ISLAND","AK","E-3","KODIAK ISLANDAKE-3","KODIAK ISLANDAKE-3",1206]
["KODIAK ISLAND","AK","E-4","KODIAK ISLANDAKE-4","KODIAK ISLANDAKE-4",1206]
["KODIAK ISLAND","AK","E-5","KODIAK ISLANDAKE-5","KODIAK ISLANDAKE-5",1419]
["KODIAK ISLAND","AK","E-6","KODIAK ISLANDAKE-6","KODIAK ISLANDAKE-6",1428]
["KODIAK ISLAND","AK","E-7","KODIAK ISLANDAKE-7","KODIAK ISLANDAKE-7",1518]
["KODIAK ISLAND","AK","E-8","KODIAK ISLANDAKE-8","KODIAK ISLANDAKE-8",1662]
["KODIAK ISLAND","AK","E-9","KODIAK ISLANDAKE-9","KODIAK ISLANDAKE-9",1752]
["KODIAK ISLAND","AK","W-1","KODIAK ISLANDAKW-1","KODIAK ISLANDAKW-1",1476]
["KODIAK ISLAND","AK","W-2","KODIAK ISLANDAKW-2","KODIAK ISLANDAKW-2",1659]
["KODIAK ISLAND","AK","W-3","KODIAK ISLANDAKW-3","KODIAK ISLANDAKW-3",1761]
["KODIAK ISLAND","AK","W-4","KODIAK ISLANDAKW-4","KODIAK ISLANDAKW-4",1920]
["KODIAK ISLAND","AK","W-5","KODIAK ISLANDAKW-5","KODIAK ISLANDAKW-5",2034]
["KODIAK ISLAND","AK","O-1E","KODIAK ISLANDAKO-1E","KODIAK ISLANDAKO-1E",1605]
["KODIAK ISLAND","AK","O-2E","KODIAK ISLANDAKO-2E","KODIAK ISLANDAKO-2E",1731]
["KODIAK ISLAND","AK","O-3E","KODIAK ISLANDAKO-3E","KODIAK ISLANDAKO-3E",1890]
["KODIAK ISLAND","AK","O-1","KODIAK ISLANDAKO-1","KODIAK ISLANDAKO-1",1419]
["KODIAK ISLAND","AK","O-2","KODIAK ISLANDAKO-2","KODIAK ISLANDAKO-2",1575]
["KODIAK ISLAND","AK","O-3","KODIAK ISLANDAKO-3","KODIAK ISLANDAKO-3",1788]
["KODIAK ISLAND","AK","O-4","KODIAK ISLANDAKO-4","KODIAK ISLANDAKO-4",2019]
["KODIAK ISLAND","AK","O-5","KODIAK ISLANDAKO-5","KODIAK ISLANDAKO-5",2094]
["KODIAK ISLAND","AK","O-6","KODIAK ISLANDAKO-6","KODIAK ISLANDAKO-6",2211]
["KODIAK ISLAND","AK","O-7","KODIAK ISLANDAKO-7","KODIAK ISLANDAKO-7",2256]
["ANCHORAGE","AK","E-1","ANCHORAGEAKE-1","ANCHORAGEAKE-1",1110,1110,1110,1110,1110,1377,1377,1491,1614,1779,1380,1545,1695,1875,2025,1515,1671,1836,1377,1428,1707,2004,2220,2259,2304]
["ANCHORAGE","AK","E-2","ANCHORAGEAKE-2","ANCHORAGEAKE-2",1110]
["ANCHORAGE","AK","E-3","ANCHORAGEAKE-3","ANCHORAGEAKE-3",1110]
["ANCHORAGE","AK","E-4","ANCHORAGEAKE-4","ANCHORAGEAKE-4",1110]
["ANCHORAGE","AK","E-5","ANCHORAGEAKE-5","ANCHORAGEAKE-5",1377]
["ANCHORAGE","AK","E-6","ANCHORAGEAKE-6","ANCHORAGEAKE-6",1377]
["ANCHORAGE","AK","E-7","ANCHORAGEAKE-7","ANCHORAGEAKE-7",1491]
["ANCHORAGE","AK","E-8","ANCHORAGEAKE-8","ANCHORAGEAKE-8",1614]
["ANCHORAGE","AK","E-9","ANCHORAGEAKE-9","ANCHORAGEAKE-9",1779]
["ANCHORAGE","AK","W-1","ANCHORAGEAKW-1","ANCHORAGEAKW-1",1380]
["ANCHORAGE","AK","W-2","ANCHORAGEAKW-2","ANCHORAGEAKW-2",1545]
["ANCHORAGE","AK","W-3","ANCHORAGEAKW-3","ANCHORAGEAKW-3",1695]
["ANCHORAGE","AK","W-4","ANCHORAGEAKW-4","ANCHORAGEAKW-4",1875]
["ANCHORAGE","AK","W-5","ANCHORAGEAKW-5","ANCHORAGEAKW-5",2025]
["ANCHORAGE","AK","O-1E","ANCHORAGEAKO-1E","ANCHORAGEAKO-1E",1515]
["ANCHORAGE","AK","O-2E","ANCHORAGEAKO-2E","ANCHORAGEAKO-2E",1671]
["ANCHORAGE","AK","O-3E","ANCHORAGEAKO-3E","ANCHORAGEAKO-3E",1836]
["ANCHORAGE","AK","O-1","ANCHORAGEAKO-1","ANCHORAGEAKO-1",1377]
["ANCHORAGE","AK","O-2","ANCHORAGEAKO-2","ANCHORAGEAKO-2",1428]
["ANCHORAGE","AK","O-3","ANCHORAGEAKO-3","ANCHORAGEAKO-3",1707]
["ANCHORAGE","AK","O-4","ANCHORAGEAKO-4","ANCHORAGEAKO-4",2004]
["ANCHORAGE","AK","O-5","ANCHORAGEAKO-5","ANCHORAGEAKO-5",2220]
["ANCHORAGE","AK","O-6","ANCHORAGEAKO-6","ANCHORAGEAKO-6",2259]
["ANCHORAGE","AK","O-7","ANCHORAGEAKO-7","ANCHORAGEAKO-7",2304]
["FAIRBANKS","AK","E-1","FAIRBANKSAKE-1","FAIRBANKSAKE-1",1125,1125,1125,1125,1125,1365,1365,1428,1563,1662,1368,1560,1671,1842,1926,1500,1641,1821,1365,1431,1704,1914,1971,2058,2100]
["FAIRBANKS","AK","E-2","FAIRBANKSAKE-2","FAIRBANKSAKE-2",1125]
["FAIRBANKS","AK","E-3","FAIRBANKSAKE-3","FAIRBANKSAKE-3",1125]
["FAIRBANKS","AK","E-4","FAIRBANKSAKE-4","FAIRBANKSAKE-4",1125]
["FAIRBANKS","AK","E-5","FAIRBANKSAKE-5","FAIRBANKSAKE-5",1365]
["FAIRBANKS","AK","E-6","FAIRBANKSAKE-6","FAIRBANKSAKE-6",1365]
["FAIRBANKS","AK","E-7","FAIRBANKSAKE-7","FAIRBANKSAKE-7",1428]
["FAIRBANKS","AK","E-8","FAIRBANKSAKE-8","FAIRBANKSAKE-8",1563]
["FAIRBANKS","AK","E-9",{"$f":"A130&B130&C130","v":"FAIRBANKSAKE-9"},"FAIRBANKSAKE-9",1662]
["FAIRBANKS","AK","W-1","FAIRBANKSAKW-1","FAIRBANKSAKW-1",1368]
["FAIRBANKS","AK","W-2","FAIRBANKSAKW-2","FAIRBANKSAKW-2",1560]
["FAIRBANKS","AK","W-3","FAIRBANKSAKW-3","FAIRBANKSAKW-3",1671]
["FAIRBANKS","AK","W-4","FAIRBANKSAKW-4","FAIRBANKSAKW-4",1842]
["FAIRBANKS","AK","W-5","FAIRBANKSAKW-5","FAIRBANKSAKW-5",1926]
["FAIRBANKS","AK","O-1E","FAIRBANKSAKO-1E","FAIRBANKSAKO-1E",1500]
["FAIRBANKS","AK","O-2E","FAIRBANKSAKO-2E","FAIRBANKSAKO-2E",1641]
["FAIRBANKS","AK","O-3E","FAIRBANKSAKO-3E","FAIRBANKSAKO-3E",1821]
["FAIRBANKS","AK","O-1","FAIRBANKSAKO-1","FAIRBANKSAKO-1",1365]
["FAIRBANKS","AK","O-2","FAIRBANKSAKO-2","FAIRBANKSAKO-2",1431]
["FAIRBANKS","AK","O-3","FAIRBANKSAKO-3","FAIRBANKSAKO-3",1704]
["FAIRBANKS","AK","O-4","FAIRBANKSAKO-4","FAIRBANKSAKO-4",1914]
["FAIRBANKS","AK","O-5","FAIRBANKSAKO-5","FAIRBANKSAKO-5",1971]
["FAIRBANKS","AK","O-6","FAIRBANKSAKO-6","FAIRBANKSAKO-6",2058]
["FAIRBANKS","AK","O-7","FAIRBANKSAKO-7","FAIRBANKSAKO-7",2100]
["ANNISTON/FORT MCCLELLAN","AL","E-1","ANNISTON/FORT MCCLELLANALE-1","ANNISTON/FORT MCCLELLANALE-1",618,618,618,618,618,705,900,912,927,1020,900,918,1032,1203,1221,915,996,1197,747,894,1068,1218,1230,1251,1275]
["ANNISTON/FORT MCCLELLAN","AL","E-2","ANNISTON/FORT MCCLELLANALE-2","ANNISTON/FORT MCCLELLANALE-2",618]
["ANNISTON/FORT MCCLELLAN","AL","E-3","ANNISTON/FORT MCCLELLANALE-3","ANNISTON/FORT MCCLELLANALE-3",618]
["ANNISTON/FORT MCCLELLAN","AL","E-4","ANNISTON/FORT MCCLELLANALE-4","ANNISTON/FORT MCCLELLANALE-4",618]
["ANNISTON/FORT MCCLELLAN","AL","E-5","ANNISTON/FORT MCCLELLANALE-5","ANNISTON/FORT MCCLELLANALE-5",705]
["ANNISTON/FORT MCCLELLAN","AL","E-6","ANNISTON/FORT MCCLELLANALE-6","ANNISTON/FORT MCCLELLANALE-6",900]
["ANNISTON/FORT MCCLELLAN","AL","E-7","ANNISTON/FORT MCCLELLANALE-7","ANNISTON/FORT MCCLELLANALE-7",912]
["ANNISTON/FORT MCCLELLAN","AL","E-8","ANNISTON/FORT MCCLELLANALE-8","ANNISTON/FORT MCCLELLANALE-8",927]
["ANNISTON/FORT MCCLELLAN","AL","E-9","ANNISTON/FORT MCCLELLANALE-9","ANNISTON/FORT MCCLELLANALE-9",1020]
["ANNISTON/FORT MCCLELLAN","AL","W-1","ANNISTON/FORT MCCLELLANALW-1","ANNISTON/FORT MCCLELLANALW-1",900]
["ANNISTON/FORT MCCLELLAN","AL","W-2","ANNISTON/FORT MCCLELLANALW-2","ANNISTON/FORT MCCLELLANALW-2",918]
["ANNISTON/FORT MCCLELLAN","AL","W-3","ANNISTON/FORT MCCLELLANALW-3","ANNISTON/FORT MCCLELLANALW-3",1032]
["ANNISTON/FORT MCCLELLAN","AL","W-4","ANNISTON/FORT MCCLELLANALW-4","ANNISTON/FORT MCCLELLANALW-4",1203]
["ANNISTON/FORT MCCLELLAN","AL","W-5","ANNISTON/FORT MCCLELLANALW-5","ANNISTON/FORT MCCLELLANALW-5",1221]
["ANNISTON/FORT MCCLELLAN","AL","O-1E","ANNISTON/FORT MCCLELLANALO-1E","ANNISTON/FORT MCCLELLANALO-1E",915]
["ANNISTON/FORT MCCLELLAN","AL","O-2E","ANNISTON/FORT MCCLELLANALO-2E","ANNISTON/FORT MCCLELLANALO-2E",996]
["ANNISTON/FORT MCCLELLAN","AL","O-3E","ANNISTON/FORT MCCLELLANALO-3E","ANNISTON/FORT MCCLELLANALO-3E",1197]
["ANNISTON/FORT MCCLELLAN","AL","O-1","ANNISTON/FORT MCCLELLANALO-1","ANNISTON/FORT MCCLELLANALO-1",747]
["ANNISTON/FORT MCCLELLAN","AL","O-2","ANNISTON/FORT MCCLELLANALO-2","ANNISTON/FORT MCCLELLANALO-2",894]
["ANNISTON/FORT MCCLELLAN","AL","O-3","ANNISTON/FORT MCCLELLANALO-3","ANNISTON/FORT MCCLELLANALO-3",1068]
["ANNISTON/FORT MCCLELLAN","AL","O-4","ANNISTON/FORT MCCLELLANALO-4","ANNISTON/FORT MCCLELLANALO-4",1218]
["ANNISTON/FORT MCCLELLAN","AL","O-5","ANNISTON/FORT MCCLELLANALO-5","ANNISTON/FORT MCCLELLANALO-5",1230]
["ANNISTON/FORT MCCLELLAN","AL","O-6","ANNISTON/FORT MCCLELLANALO-6","ANNISTON/FORT MCCLELLANALO-6",1251]
["ANNISTON/FORT MCCLELLAN","AL","O-7","ANNISTON/FORT MCCLELLANALO-7","ANNISTON/FORT MCCLELLANALO-7",1275]
["FORT RUCKER","AL","E-1","FORT RUCKERALE-1","FORT RUCKERALE-1",687,687,687,687,687,789,942,1020,1107,1200,942,1092,1164,1281,1389,1053,1149,1254,807,1005,1182,1374,1443,1551,1584]
["FORT RUCKER","AL","E-2","FORT RUCKERALE-2","FORT RUCKERALE-2",687]
["FORT RUCKER","AL","E-3","FORT RUCKERALE-3","FORT RUCKERALE-3",687]
["FORT RUCKER","AL","E-4","FORT RUCKERALE-4","FORT RUCKERALE-4",687]
["FORT RUCKER","AL","E-5","FORT RUCKERALE-5","FORT RUCKERALE-5",789]
["FORT RUCKER","AL","E-6","FORT RUCKERALE-6","FORT RUCKERALE-6",942]
["FORT RUCKER","AL","E-7","FORT RUCKERALE-7","FORT RUCKERALE-7",1020]
["FORT RUCKER","AL","E-8","FORT RUCKERALE-8","FORT RUCKERALE-8",1107]
["FORT RUCKER","AL","E-9","FORT RUCKERALE-9","FORT RUCKERALE-9",1200]
["FORT RUCKER","AL","W-1","FORT RUCKERALW-1","FORT RUCKERALW-1",942]
["FORT RUCKER","AL","W-2","FORT RUCKERALW-2","FORT RUCKERALW-2",1092]
["FORT RUCKER","AL","W-3","FORT RUCKERALW-3","FORT RUCKERALW-3",1164]
["FORT RUCKER","AL","W-4","FORT RUCKERALW-4","FORT RUCKERALW-4",1281]
["FORT RUCKER","AL","W-5","FORT RUCKERALW-5","FORT RUCKERALW-5",1389]
["FORT RUCKER","AL","O-1E","FORT RUCKERALO-1E","FORT RUCKERALO-1E",1053]
["FORT RUCKER","AL","O-2E","FORT RUCKERALO-2E","FORT RUCKERALO-2E",1149]
["FORT RUCKER","AL","O-3E","FORT RUCKERALO-3E","FORT RUCKERALO-3E",1254]
["FORT RUCKER","AL","O-1","FORT RUCKERALO-1","FORT RUCKERALO-1",807]
["FORT RUCKER","AL","O-2","FORT RUCKERALO-2","FORT RUCKERALO-2",1005]
["FORT RUCKER","AL","O-3","FORT RUCKERALO-3","FORT RUCKERALO-3",1182]
["FORT RUCKER","AL","O-4","FORT RUCKERALO-4","FORT RUCKERALO-4",1374]
["FORT RUCKER","AL","O-5","FORT RUCKERALO-5","FORT RUCKERALO-5",1443]
["FORT RUCKER","AL","O-6","FORT RUCKERALO-6","FORT RUCKERALO-6",1551]
["FORT RUCKER","AL","O-7","FORT RUCKERALO-7","FORT RUCKERALO-7",1584]
["HUNTSVILLE","AL","E-1",{"$f":"A194&B194&C194","v":"HUNTSVILLEALE-1"},"HUNTSVILLEALE-1",801,801,801,801,801,915,984,1065,1161,1185,1026,1161,1188,1239,1290,1146,1182,1227,972,1116,1197,1284,1317,1371,1398]
["HUNTSVILLE","AL","E-2","HUNTSVILLEALE-2","HUNTSVILLEALE-2",801]
["HUNTSVILLE","AL","E-3","HUNTSVILLEALE-3","HUNTSVILLEALE-3",801]
["HUNTSVILLE","AL","E-4","HUNTSVILLEALE-4","HUNTSVILLEALE-4",801]
["HUNTSVILLE","AL","E-5","HUNTSVILLEALE-5","HUNTSVILLEALE-5",915]
["HUNTSVILLE","AL","E-6","HUNTSVILLEALE-6","HUNTSVILLEALE-6",984]
["HUNTSVILLE","AL","E-7","HUNTSVILLEALE-7","HUNTSVILLEALE-7",1065]
["HUNTSVILLE","AL","E-8","HUNTSVILLEALE-8","HUNTSVILLEALE-8",1161]
["HUNTSVILLE","AL","E-9","HUNTSVILLEALE-9","HUNTSVILLEALE-9",1185]
["HUNTSVILLE","AL","W-1","HUNTSVILLEALW-1","HUNTSVILLEALW-1",1026]
["HUNTSVILLE","AL","W-2","HUNTSVILLEALW-2","HUNTSVILLEALW-2",1161]
["HUNTSVILLE","AL","W-3","HUNTSVILLEALW-3","HUNTSVILLEALW-3",1188]
["HUNTSVILLE","AL","W-4","HUNTSVILLEALW-4","HUNTSVILLEALW-4",1239]
["HUNTSVILLE","AL","W-5","HUNTSVILLEALW-5","HUNTSVILLEALW-5",1290]
["HUNTSVILLE","AL","O-1E","HUNTSVILLEALO-1E","HUNTSVILLEALO-1E",1146]
["HUNTSVILLE","AL","O-2E","HUNTSVILLEALO-2E","HUNTSVILLEALO-2E",1182]
["HUNTSVILLE","AL","O-3E","HUNTSVILLEALO-3E","HUNTSVILLEALO-3E",1227]
["HUNTSVILLE","AL","O-1","HUNTSVILLEALO-1","HUNTSVILLEALO-1",972]
["HUNTSVILLE","AL","O-2","HUNTSVILLEALO-2","HUNTSVILLEALO-2",1116]
["HUNTSVILLE","AL","O-3","HUNTSVILLEALO-3","HUNTSVILLEALO-3",1197]
["HUNTSVILLE","AL","O-4","HUNTSVILLEALO-4","HUNTSVILLEALO-4",1284]
["HUNTSVILLE","AL","O-5","HUNTSVILLEALO-5","HUNTSVILLEALO-5",1317]
["HUNTSVILLE","AL","O-6","HUNTSVILLEALO-6","HUNTSVILLEALO-6",1371]
["HUNTSVILLE","AL","O-7","HUNTSVILLEALO-7","HUNTSVILLEALO-7",1398]
["MOBILE","AL","E-1","MOBILEALE-1","MOBILEALE-1",774,774,774,774,774,885,948,987,1059,1107,969,1059,1110,1191,1233,1029,1095,1179,942,1014,1125,1248,1449,1464,1476]
["MOBILE","AL","E-2","MOBILEALE-2","MOBILEALE-2",774]
["MOBILE","AL","E-3","MOBILEALE-3","MOBILEALE-3",774]
["MOBILE","AL","E-4","MOBILEALE-4","MOBILEALE-4",774]
["MOBILE","AL","E-5","MOBILEALE-5","MOBILEALE-5",885]
["MOBILE","AL","E-6","MOBILEALE-6","MOBILEALE-6",948]
["MOBILE","AL","E-7","MOBILEALE-7","MOBILEALE-7",987]
["MOBILE","AL","E-8","MOBILEALE-8","MOBILEALE-8",1059]
["MOBILE","AL","E-9","MOBILEALE-9","MOBILEALE-9",1107]
["MOBILE","AL","W-1","MOBILEALW-1","MOBILEALW-1",969]
["MOBILE","AL","W-2","MOBILEALW-2","MOBILEALW-2",1059]
["MOBILE","AL","W-3","MOBILEALW-3","MOBILEALW-3",1110]
["MOBILE","AL","W-4","MOBILEALW-4","MOBILEALW-4",1191]
["MOBILE","AL","W-5","MOBILEALW-5","MOBILEALW-5",1233]
["MOBILE","AL","O-1E","MOBILEALO-1E","MOBILEALO-1E",1029]
["MOBILE","AL","O-2E","MOBILEALO-2E","MOBILEALO-2E",1095]
["MOBILE","AL","O-3E","MOBILEALO-3E","MOBILEALO-3E",1179]
["MOBILE","AL","O-1","MOBILEALO-1","MOBILEALO-1",942]
["MOBILE","AL","O-2","MOBILEALO-2","MOBILEALO-2",1014]
["MOBILE","AL","O-3","MOBILEALO-3","MOBILEALO-3",1125]
["MOBILE","AL","O-4","MOBILEALO-4","MOBILEALO-4",1248]
["MOBILE","AL","O-5","MOBILEALO-5","MOBILEALO-5",1449]
["MOBILE","AL","O-6","MOBILEALO-6","MOBILEALO-6",1464]
["MOBILE","AL","O-7","MOBILEALO-7","MOBILEALO-7",1476]
["MONTGOMERY","AL","E-1","MONTGOMERYALE-1","MONTGOMERYALE-1",843,843,843,843,843,945,1002,1053,1128,1209,1029,1128,1182,1245,1374,1107,1161,1227,993,1089,1176,1356,1440,1575,1605]
["MONTGOMERY","AL","E-2","MONTGOMERYALE-2","MONTGOMERYALE-2",843]
["MONTGOMERY","AL","E-3","MONTGOMERYALE-3","MONTGOMERYALE-3",843]
["MONTGOMERY","AL","E-4","MONTGOMERYALE-4","MONTGOMERYALE-4",843]
["MONTGOMERY","AL","E-5","MONTGOMERYALE-5","MONTGOMERYALE-5",945]
["MONTGOMERY","AL","E-6","MONTGOMERYALE-6","MONTGOMERYALE-6",1002]
["MONTGOMERY","AL","E-7","MONTGOMERYALE-7","MONTGOMERYALE-7",1053]
["MONTGOMERY","AL","E-8","MONTGOMERYALE-8","MONTGOMERYALE-8",1128]
["MONTGOMERY","AL","E-9","MONTGOMERYALE-9","MONTGOMERYALE-9",1209]
["MONTGOMERY","AL","W-1","MONTGOMERYALW-1","MONTGOMERYALW-1",1029]
["MONTGOMERY","AL","W-2","MONTGOMERYALW-2","MONTGOMERYALW-2",1128]
["MONTGOMERY","AL","W-3","MONTGOMERYALW-3","MONTGOMERYALW-3",1182]
["MONTGOMERY","AL","W-4","MONTGOMERYALW-4","MONTGOMERYALW-4",1245]
["MONTGOMERY","AL","W-5","MONTGOMERYALW-5","MONTGOMERYALW-5",1374]
["MONTGOMERY","AL","O-1E","MONTGOMERYALO-1E","MONTGOMERYALO-1E",1107]
["MONTGOMERY","AL","O-2E","MONTGOMERYALO-2E","MONTGOMERYALO-2E",1161]
["MONTGOMERY","AL","O-3E",{"$f":"A258&B258&C258","v":"MONTGOMERYALO-3E"},"MONTGOMERYALO-3E",1227]
["MONTGOMERY","AL","O-1","MONTGOMERYALO-1","MONTGOMERYALO-1",993]
["MONTGOMERY","AL","O-2","MONTGOMERYALO-2","MONTGOMERYALO-2",1089]
["MONTGOMERY","AL","O-3","MONTGOMERYALO-3","MONTGOMERYALO-3",1176]
["MONTGOMERY","AL","O-4","MONTGOMERYALO-4","MONTGOMERYALO-4",1356]
["MONTGOMERY","AL","O-5","MONTGOMERYALO-5","MONTGOMERYALO-5",1440]
["MONTGOMERY","AL","O-6","MONTGOMERYALO-6","MONTGOMERYALO-6",1575]
["MONTGOMERY","AL","O-7","MONTGOMERYALO-7","MONTGOMERYALO-7",1605]
["AUBURN","AL","E-1","AUBURNALE-1","AUBURNALE-1",681,681,681,681,681,783,915,939,1023,1098,915,1020,1107,1227,1257,975,1083,1218,840,951,1131,1254,1281,1305,1332]
["AUBURN","AL","E-2","AUBURNALE-2","AUBURNALE-2",681]
["AUBURN","AL","E-3","AUBURNALE-3","AUBURNALE-3",681]
["AUBURN","AL","E-4","AUBURNALE-4","AUBURNALE-4",681]
["AUBURN","AL","E-5","AUBURNALE-5","AUBURNALE-5",783]
["AUBURN","AL","E-6","AUBURNALE-6","AUBURNALE-6",915]
["AUBURN","AL","E-7","AUBURNALE-7","AUBURNALE-7",939]
["AUBURN","AL","E-8","AUBURNALE-8","AUBURNALE-8",1023]
["AUBURN","AL","E-9","AUBURNALE-9","AUBURNALE-9",1098]
["AUBURN","AL","W-1","AUBURNALW-1","AUBURNALW-1",915]
["AUBURN","AL","W-2","AUBURNALW-2","AUBURNALW-2",1020]
["AUBURN","AL","W-3","AUBURNALW-3","AUBURNALW-3",1107]
["AUBURN","AL","W-4","AUBURNALW-4","AUBURNALW-4",1227]
["AUBURN","AL","W-5","AUBURNALW-5","AUBURNALW-5",1257]
["AUBURN","AL","O-1E","AUBURNALO-1E","AUBURNALO-1E",975]
["AUBURN","AL","O-2E","AUBURNALO-2E","AUBURNALO-2E",1083]
["AUBURN","AL","O-3E","AUBURNALO-3E","AUBURNALO-3E",1218]
["AUBURN","AL","O-1","AUBURNALO-1","AUBURNALO-1",840]
["AUBURN","AL","O-2","AUBURNALO-2","AUBURNALO-2",951]
["AUBURN","AL","O-3","AUBURNALO-3","AUBURNALO-3",1131]
["AUBURN","AL","O-4","AUBURNALO-4","AUBURNALO-4",1254]
["AUBURN","AL","O-5","AUBURNALO-5","AUBURNALO-5",1281]
["AUBURN","AL","O-6","AUBURNALO-6","AUBURNALO-6",1305]
["AUBURN","AL","O-7","AUBURNALO-7","AUBURNALO-7",1332]
["BIRMINGHAM","AL","E-1","BIRMINGHAMALE-1","BIRMINGHAMALE-1",819,819,819,819,819,900,1044,1068,1194,1269,1044,1191,1278,1398,1431,1146,1254,1389,939,1110,1302,1428,1614,1629,1647]
["BIRMINGHAM","AL","E-2","BIRMINGHAMALE-2","BIRMINGHAMALE-2",819]
["BIRMINGHAM","AL","E-3","BIRMINGHAMALE-3","BIRMINGHAMALE-3",819]
["BIRMINGHAM","AL","E-4","BIRMINGHAMALE-4","BIRMINGHAMALE-4",819]
["BIRMINGHAM","AL","E-5","BIRMINGHAMALE-5","BIRMINGHAMALE-5",900]
["BIRMINGHAM","AL","E-6","BIRMINGHAMALE-6","BIRMINGHAMALE-6",1044]
["BIRMINGHAM","AL","E-7","BIRMINGHAMALE-7","BIRMINGHAMALE-7",1068]
["BIRMINGHAM","AL","E-8","BIRMINGHAMALE-8","BIRMINGHAMALE-8",1194]
["BIRMINGHAM","AL","E-9","BIRMINGHAMALE-9","BIRMINGHAMALE-9",1269]
["BIRMINGHAM","AL","W-1","BIRMINGHAMALW-1","BIRMINGHAMALW-1",1044]
["BIRMINGHAM","AL","W-2","BIRMINGHAMALW-2","BIRMINGHAMALW-2",1191]
["BIRMINGHAM","AL","W-3","BIRMINGHAMALW-3","BIRMINGHAMALW-3",1278]
["BIRMINGHAM","AL","W-4","BIRMINGHAMALW-4","BIRMINGHAMALW-4",1398]
["BIRMINGHAM","AL","W-5","BIRMINGHAMALW-5","BIRMINGHAMALW-5",1431]
["BIRMINGHAM","AL","O-1E","BIRMINGHAMALO-1E","BIRMINGHAMALO-1E",1146]
["BIRMINGHAM","AL","O-2E","BIRMINGHAMALO-2E","BIRMINGHAMALO-2E",1254]
["BIRMINGHAM","AL","O-3E","BIRMINGHAMALO-3E","BIRMINGHAMALO-3E",1389]
["BIRMINGHAM","AL","O-1","BIRMINGHAMALO-1","BIRMINGHAMALO-1",939]
["BIRMINGHAM","AL","O-2","BIRMINGHAMALO-2","BIRMINGHAMALO-2",1110]
["BIRMINGHAM","AL","O-3","BIRMINGHAMALO-3","BIRMINGHAMALO-3",1302]
["BIRMINGHAM","AL","O-4","BIRMINGHAMALO-4","BIRMINGHAMALO-4",1428]
["BIRMINGHAM","AL","O-5","BIRMINGHAMALO-5","BIRMINGHAMALO-5",1614]
["BIRMINGHAM","AL","O-6","BIRMINGHAMALO-6","BIRMINGHAMALO-6",1629]
["BIRMINGHAM","AL","O-7","BIRMINGHAMALO-7","BIRMINGHAMALO-7",1647]
["TUSCALOOSA","AL","E-1","TUSCALOOSAALE-1","TUSCALOOSAALE-1",717,717,717,717,717,804,867,933,1038,1083,897,1038,1089,1176,1254,1008,1074,1155,846,981,1104,1245,1311,1374,1404]
["TUSCALOOSA","AL","E-2","TUSCALOOSAALE-2","TUSCALOOSAALE-2",717]
["TUSCALOOSA","AL","E-3","TUSCALOOSAALE-3","TUSCALOOSAALE-3",717]
["TUSCALOOSA","AL","E-4","TUSCALOOSAALE-4","TUSCALOOSAALE-4",717]
["TUSCALOOSA","AL","E-5","TUSCALOOSAALE-5","TUSCALOOSAALE-5",804]
["TUSCALOOSA","AL","E-6","TUSCALOOSAALE-6","TUSCALOOSAALE-6",867]
["TUSCALOOSA","AL","E-7","TUSCALOOSAALE-7","TUSCALOOSAALE-7",933]
["TUSCALOOSA","AL","E-8","TUSCALOOSAALE-8","TUSCALOOSAALE-8",1038]
["TUSCALOOSA","AL","E-9",{"$f":"A322&B322&C322","v":"TUSCALOOSAALE-9"},"TUSCALOOSAALE-9",1083]
["TUSCALOOSA","AL","W-1","TUSCALOOSAALW-1","TUSCALOOSAALW-1",897]
["TUSCALOOSA","AL","W-2","TUSCALOOSAALW-2","TUSCALOOSAALW-2",1038]
["TUSCALOOSA","AL","W-3","TUSCALOOSAALW-3","TUSCALOOSAALW-3",1089]
["TUSCALOOSA","AL","W-4","TUSCALOOSAALW-4","TUSCALOOSAALW-4",1176]
["TUSCALOOSA","AL","W-5","TUSCALOOSAALW-5","TUSCALOOSAALW-5",1254]
["TUSCALOOSA","AL","O-1E","TUSCALOOSAALO-1E","TUSCALOOSAALO-1E",1008]
["TUSCALOOSA","AL","O-2E","TUSCALOOSAALO-2E","TUSCALOOSAALO-2E",1074]
["TUSCALOOSA","AL","O-3E","TUSCALOOSAALO-3E","TUSCALOOSAALO-3E",1155]
["TUSCALOOSA","AL","O-1","TUSCALOOSAALO-1","TUSCALOOSAALO-1",846]
["TUSCALOOSA","AL","O-2","TUSCALOOSAALO-2","TUSCALOOSAALO-2",981]
["TUSCALOOSA","AL","O-3","TUSCALOOSAALO-3","TUSCALOOSAALO-3",1104]
["TUSCALOOSA","AL","O-4","TUSCALOOSAALO-4","TUSCALOOSAALO-4",1245]
["TUSCALOOSA","AL","O-5","TUSCALOOSAALO-5","TUSCALOOSAALO-5",1311]
["TUSCALOOSA","AL","O-6","TUSCALOOSAALO-6","TUSCALOOSAALO-6",1374]
["TUSCALOOSA","AL","O-7","TUSCALOOSAALO-7","TUSCALOOSAALO-7",1404]
["LITTLE ROCK","AR","E-1","LITTLE ROCKARE-1","LITTLE ROCKARE-1",699,699,699,699,699,804,903,951,1047,1107,903,1044,1113,1218,1284,1008,1092,1203,858,981,1131,1275,1386,1401,1413]
["LITTLE ROCK","AR","E-2","LITTLE ROCKARE-2","LITTLE ROCKARE-2",699]
["LITTLE ROCK","AR","E-3","LITTLE ROCKARE-3","LITTLE ROCKARE-3",699]
["LITTLE ROCK","AR","E-4","LITTLE ROCKARE-4","LITTLE ROCKARE-4",699]
["LITTLE ROCK","AR","E-5","LITTLE ROCKARE-5","LITTLE ROCKARE-5",804]
["LITTLE ROCK","AR","E-6","LITTLE ROCKARE-6","LITTLE ROCKARE-6",903]
["LITTLE ROCK","AR","E-7","LITTLE ROCKARE-7","LITTLE ROCKARE-7",951]
["LITTLE ROCK","AR","E-8","LITTLE ROCKARE-8","LITTLE ROCKARE-8",1047]
["LITTLE ROCK","AR","E-9","LITTLE ROCKARE-9","LITTLE ROCKARE-9",1107]
["LITTLE ROCK","AR","W-1","LITTLE ROCKARW-1","LITTLE ROCKARW-1",903]
["LITTLE ROCK","AR","W-2","LITTLE ROCKARW-2","LITTLE ROCKARW-2",1044]
["LITTLE ROCK","AR","W-3","LITTLE ROCKARW-3","LITTLE ROCKARW-3",1113]
["LITTLE ROCK","AR","W-4","LITTLE ROCKARW-4","LITTLE ROCKARW-4",1218]
["LITTLE ROCK","AR","W-5","LITTLE ROCKARW-5","LITTLE ROCKARW-5",1284]
["LITTLE ROCK","AR","O-1E","LITTLE ROCKARO-1E","LITTLE ROCKARO-1E",1008]
["LITTLE ROCK","AR","O-2E","LITTLE ROCKARO-2E","LITTLE ROCKARO-2E",1092]
["LITTLE ROCK","AR","O-3E","LITTLE ROCKARO-3E","LITTLE ROCKARO-3E",1203]
["LITTLE ROCK","AR","O-1","LITTLE ROCKARO-1","LITTLE ROCKARO-1",858]
["LITTLE ROCK","AR","O-2","LITTLE ROCKARO-2","LITTLE ROCKARO-2",981]
["LITTLE ROCK","AR","O-3","LITTLE ROCKARO-3","LITTLE ROCKARO-3",1131]
["LITTLE ROCK","AR","O-4","LITTLE ROCKARO-4","LITTLE ROCKARO-4",1275]
["LITTLE ROCK","AR","O-5","LITTLE ROCKARO-5","LITTLE ROCKARO-5",1386]
["LITTLE ROCK","AR","O-6","LITTLE ROCKARO-6","LITTLE ROCKARO-6",1401]
["LITTLE ROCK","AR","O-7","LITTLE ROCKARO-7","LITTLE ROCKARO-7",1413]
["PINE BLUFF","AR","E-1","PINE BLUFFARE-1","PINE BLUFFARE-1",642,642,642,642,642,741,801,858,933,957,831,933,960,999,1023,918,951,993,792,897,966,1020,1035,1059,1080]
["PINE BLUFF","AR","E-2","PINE BLUFFARE-2","PINE BLUFFARE-2",642]
["PINE BLUFF","AR","E-3","PINE BLUFFARE-3","PINE BLUFFARE-3",642]
["PINE BLUFF","AR","E-4","PINE BLUFFARE-4","PINE BLUFFARE-4",642]
["PINE BLUFF","AR","E-5","PINE BLUFFARE-5","PINE BLUFFARE-5",741]
["PINE BLUFF","AR","E-6","PINE BLUFFARE-6","PINE BLUFFARE-6",801]
["PINE BLUFF","AR","E-7","PINE BLUFFARE-7","PINE BLUFFARE-7",858]
["PINE BLUFF","AR","E-8","PINE BLUFFARE-8","PINE BLUFFARE-8",933]
["PINE BLUFF","AR","E-9","PINE BLUFFARE-9","PINE BLUFFARE-9",957]
["PINE BLUFF","AR","W-1","PINE BLUFFARW-1","PINE BLUFFARW-1",831]
["PINE BLUFF","AR","W-2","PINE BLUFFARW-2","PINE BLUFFARW-2",933]
["PINE BLUFF","AR","W-3","PINE BLUFFARW-3","PINE BLUFFARW-3",960]
["PINE BLUFF","AR","W-4","PINE BLUFFARW-4","PINE BLUFFARW-4",999]
["PINE BLUFF","AR","W-5","PINE BLUFFARW-5","PINE BLUFFARW-5",1023]
["PINE BLUFF","AR","O-1E","PINE BLUFFARO-1E","PINE BLUFFARO-1E",918]
["PINE BLUFF","AR","O-2E","PINE BLUFFARO-2E","PINE BLUFFARO-2E",951]
["PINE BLUFF","AR","O-3E","PINE BLUFFARO-3E","PINE BLUFFARO-3E",993]
["PINE BLUFF","AR","O-1","PINE BLUFFARO-1","PINE BLUFFARO-1",792]
["PINE BLUFF","AR","O-2","PINE BLUFFARO-2","PINE BLUFFARO-2",897]
["PINE BLUFF","AR","O-3","PINE BLUFFARO-3","PINE BLUFFARO-3",966]
["PINE BLUFF","AR","O-4","PINE BLUFFARO-4","PINE BLUFFARO-4",1020]
["PINE BLUFF","AR","O-5","PINE BLUFFARO-5","PINE BLUFFARO-5",1035]
["PINE BLUFF","AR","O-6","PINE BLUFFARO-6","PINE BLUFFARO-6",1059]
["PINE BLUFF","AR","O-7","PINE BLUFFARO-7","PINE BLUFFARO-7",1080]
["FORT CHAFFEE/FORT SMITH","AR","E-1",{"$f":"A386&B386&C386","v":"FORT CHAFFEE/FORT SMITHARE-1"},"FORT CHAFFEE/FORT SMITHARE-1",588,588,588,588,588,678,777,792,876,936,777,873,942,1038,1062,834,924,1035,729,816,963,1059,1089,1101,1116]
["FORT CHAFFEE/FORT SMITH","AR","E-2","FORT CHAFFEE/FORT SMITHARE-2","FORT CHAFFEE/FORT SMITHARE-2",588]
["FORT CHAFFEE/FORT SMITH","AR","E-3","FORT CHAFFEE/FORT SMITHARE-3","FORT CHAFFEE/FORT SMITHARE-3",588]
["FORT CHAFFEE/FORT SMITH","AR","E-4","FORT CHAFFEE/FORT SMITHARE-4","FORT CHAFFEE/FORT SMITHARE-4",588]
["FORT CHAFFEE/FORT SMITH","AR","E-5","FORT CHAFFEE/FORT SMITHARE-5","FORT CHAFFEE/FORT SMITHARE-5",678]
["FORT CHAFFEE/FORT SMITH","AR","E-6","FORT CHAFFEE/FORT SMITHARE-6","FORT CHAFFEE/FORT SMITHARE-6",777]
["FORT CHAFFEE/FORT SMITH","AR","E-7","FORT CHAFFEE/FORT SMITHARE-7","FORT CHAFFEE/FORT SMITHARE-7",792]
["FORT CHAFFEE/FORT SMITH","AR","E-8","FORT CHAFFEE/FORT SMITHARE-8","FORT CHAFFEE/FORT SMITHARE-8",876]
["FORT CHAFFEE/FORT SMITH","AR","E-9","FORT CHAFFEE/FORT SMITHARE-9","FORT CHAFFEE/FORT SMITHARE-9",936]
["FORT CHAFFEE/FORT SMITH","AR","W-1","FORT CHAFFEE/FORT SMITHARW-1","FORT CHAFFEE/FORT SMITHARW-1",777]
["FORT CHAFFEE/FORT SMITH","AR","W-2","FORT CHAFFEE/FORT SMITHARW-2","FORT CHAFFEE/FORT SMITHARW-2",873]
["FORT CHAFFEE/FORT SMITH","AR","W-3","FORT CHAFFEE/FORT SMITHARW-3","FORT CHAFFEE/FORT SMITHARW-3",942]
["FORT CHAFFEE/FORT SMITH","AR","W-4","FORT CHAFFEE/FORT SMITHARW-4","FORT CHAFFEE/FORT SMITHARW-4",1038]
["FORT CHAFFEE/FORT SMITH","AR","W-5","FORT CHAFFEE/FORT SMITHARW-5","FORT CHAFFEE/FORT SMITHARW-5",1062]
["FORT CHAFFEE/FORT SMITH","AR","O-1E","FORT CHAFFEE/FORT SMITHARO-1E","FORT CHAFFEE/FORT SMITHARO-1E",834]
["FORT CHAFFEE/FORT SMITH","AR","O-2E","FORT CHAFFEE/FORT SMITHARO-2E","FORT CHAFFEE/FORT SMITHARO-2E",924]
["FORT CHAFFEE/FORT SMITH","AR","O-3E","FORT CHAFFEE/FORT SMITHARO-3E","FORT CHAFFEE/FORT SMITHARO-3E",1035]
["FORT CHAFFEE/FORT SMITH","AR","O-1","FORT CHAFFEE/FORT SMITHARO-1","FORT CHAFFEE/FORT SMITHARO-1",729]
["FORT CHAFFEE/FORT SMITH","AR","O-2","FORT CHAFFEE/FORT SMITHARO-2","FORT CHAFFEE/FORT SMITHARO-2",816]
["FORT CHAFFEE/FORT SMITH","AR","O-3","FORT CHAFFEE/FORT SMITHARO-3","FORT CHAFFEE/FORT SMITHARO-3",963]
["FORT CHAFFEE/FORT SMITH","AR","O-4","FORT CHAFFEE/FORT SMITHARO-4","FORT CHAFFEE/FORT SMITHARO-4",1059]
["FORT CHAFFEE/FORT SMITH","AR","O-5","FORT CHAFFEE/FORT SMITHARO-5","FORT CHAFFEE/FORT SMITHARO-5",1089]
["FORT CHAFFEE/FORT SMITH","AR","O-6","FORT CHAFFEE/FORT SMITHARO-6","FORT CHAFFEE/FORT SMITHARO-6",1101]
["FORT CHAFFEE/FORT SMITH","AR","O-7","FORT CHAFFEE/FORT SMITHARO-7","FORT CHAFFEE/FORT SMITHARO-7",1116]
["FAYETTEVILLE","AR","E-1","FAYETTEVILLEARE-1","FAYETTEVILLEARE-1",612,612,612,612,612,681,786,816,912,963,786,909,969,1056,1098,879,951,1047,714,849,987,1122,1305,1317,1332]
["FAYETTEVILLE","AR","E-2","FAYETTEVILLEARE-2","FAYETTEVILLEARE-2",612]
["FAYETTEVILLE","AR","E-3","FAYETTEVILLEARE-3","FAYETTEVILLEARE-3",612]
["FAYETTEVILLE","AR","E-4","FAYETTEVILLEARE-4","FAYETTEVILLEARE-4",612]
["FAYETTEVILLE","AR","E-5","FAYETTEVILLEARE-5","FAYETTEVILLEARE-5",681]
["FAYETTEVILLE","AR","E-6","FAYETTEVILLEARE-6","FAYETTEVILLEARE-6",786]
["FAYETTEVILLE","AR","E-7","FAYETTEVILLEARE-7","FAYETTEVILLEARE-7",816]
["FAYETTEVILLE","AR","E-8","FAYETTEVILLEARE-8","FAYETTEVILLEARE-8",912]
["FAYETTEVILLE","AR","E-9","FAYETTEVILLEARE-9","FAYETTEVILLEARE-9",963]
["FAYETTEVILLE","AR","W-1","FAYETTEVILLEARW-1","FAYETTEVILLEARW-1",786]
["FAYETTEVILLE","AR","W-2","FAYETTEVILLEARW-2","FAYETTEVILLEARW-2",909]
["FAYETTEVILLE","AR","W-3","FAYETTEVILLEARW-3","FAYETTEVILLEARW-3",969]
["FAYETTEVILLE","AR","W-4","FAYETTEVILLEARW-4","FAYETTEVILLEARW-4",1056]
["FAYETTEVILLE","AR","W-5","FAYETTEVILLEARW-5","FAYETTEVILLEARW-5",1098]
["FAYETTEVILLE","AR","O-1E","FAYETTEVILLEARO-1E","FAYETTEVILLEARO-1E",879]
["FAYETTEVILLE","AR","O-2E","FAYETTEVILLEARO-2E","FAYETTEVILLEARO-2E",951]
["FAYETTEVILLE","AR","O-3E","FAYETTEVILLEARO-3E","FAYETTEVILLEARO-3E",1047]
["FAYETTEVILLE","AR","O-1","FAYETTEVILLEARO-1","FAYETTEVILLEARO-1",714]
["FAYETTEVILLE","AR","O-2","FAYETTEVILLEARO-2","FAYETTEVILLEARO-2",849]
["FAYETTEVILLE","AR","O-3","FAYETTEVILLEARO-3","FAYETTEVILLEARO-3",987]
["FAYETTEVILLE","AR","O-4","FAYETTEVILLEARO-4","FAYETTEVILLEARO-4",1122]
["FAYETTEVILLE","AR","O-5","FAYETTEVILLEARO-5","FAYETTEVILLEARO-5",1305]
["FAYETTEVILLE","AR","O-6","FAYETTEVILLEARO-6","FAYETTEVILLEARO-6",1317]
["FAYETTEVILLE","AR","O-7","FAYETTEVILLEARO-7","FAYETTEVILLEARO-7",1332]
["JONESBORO","AR","E-1","JONESBOROARE-1","JONESBOROARE-1",636,636,636,636,636,711,783,855,969,996,813,966,999,1059,1122,948,990,1041,750,915,1008,1113,1152,1218,1242]
["JONESBORO","AR","E-2","JONESBOROARE-2","JONESBOROARE-2",636]
["JONESBORO","AR","E-3","JONESBOROARE-3","JONESBOROARE-3",636]
["JONESBORO","AR","E-4","JONESBOROARE-4","JONESBOROARE-4",636]
["JONESBORO","AR","E-5","JONESBOROARE-5","JONESBOROARE-5",711]
["JONESBORO","AR","E-6","JONESBOROARE-6","JONESBOROARE-6",783]
["JONESBORO","AR","E-7","JONESBOROARE-7","JONESBOROARE-7",855]
["JONESBORO","AR","E-8","JONESBOROARE-8","JONESBOROARE-8",969]
["JONESBORO","AR","E-9","JONESBOROARE-9","JONESBOROARE-9",996]
["JONESBORO","AR","W-1","JONESBOROARW-1","JONESBOROARW-1",813]
["JONESBORO","AR","W-2","JONESBOROARW-2","JONESBOROARW-2",966]
["JONESBORO","AR","W-3","JONESBOROARW-3","JONESBOROARW-3",999]
["JONESBORO","AR","W-4","JONESBOROARW-4","JONESBOROARW-4",1059]
["JONESBORO","AR","W-5","JONESBOROARW-5","JONESBOROARW-5",1122]
["JONESBORO","AR","O-1E","JONESBOROARO-1E","JONESBOROARO-1E",948]
["JONESBORO","AR","O-2E","JONESBOROARO-2E","JONESBOROARO-2E",990]
["JONESBORO","AR","O-3E",{"$f":"A450&B450&C450","v":"JONESBOROARO-3E"},"JONESBOROARO-3E",1041]
["JONESBORO","AR","O-1","JONESBOROARO-1","JONESBOROARO-1",750]
["JONESBORO","AR","O-2","JONESBOROARO-2","JONESBOROARO-2",915]
["JONESBORO","AR","O-3","JONESBOROARO-3","JONESBOROARO-3",1008]
["JONESBORO","AR","O-4","JONESBOROARO-4","JONESBOROARO-4",1113]
["JONESBORO","AR","O-5","JONESBOROARO-5","JONESBOROARO-5",1152]
["JONESBORO","AR","O-6","JONESBOROARO-6","JONESBOROARO-6",1218]
["JONESBORO","AR","O-7","JONESBOROARO-7","JONESBOROARO-7",1242]
["PHOENIX","AZ","E-1","PHOENIXAZE-1","PHOENIXAZE-1",909,909,909,909,909,1008,1083,1203,1356,1392,1143,1356,1395,1449,1470,1335,1383,1443,1056,1287,1404,1467,1479,1500,1530]
["PHOENIX","AZ","E-2","PHOENIXAZE-2","PHOENIXAZE-2",909]
["PHOENIX","AZ","E-3","PHOENIXAZE-3","PHOENIXAZE-3",909]
["PHOENIX","AZ","E-4","PHOENIXAZE-4","PHOENIXAZE-4",909]
["PHOENIX","AZ","E-5","PHOENIXAZE-5","PHOENIXAZE-5",1008]
["PHOENIX","AZ","E-6","PHOENIXAZE-6","PHOENIXAZE-6",1083]
["PHOENIX","AZ","E-7","PHOENIXAZE-7","PHOENIXAZE-7",1203]
["PHOENIX","AZ","E-8","PHOENIXAZE-8","PHOENIXAZE-8",1356]
["PHOENIX","AZ","E-9","PHOENIXAZE-9","PHOENIXAZE-9",1392]
["PHOENIX","AZ","W-1","PHOENIXAZW-1","PHOENIXAZW-1",1143]
["PHOENIX","AZ","W-2","PHOENIXAZW-2","PHOENIXAZW-2",1356]
["PHOENIX","AZ","W-3","PHOENIXAZW-3","PHOENIXAZW-3",1395]
["PHOENIX","AZ","W-4","PHOENIXAZW-4","PHOENIXAZW-4",1449]
["PHOENIX","AZ","W-5","PHOENIXAZW-5","PHOENIXAZW-5",1470]
["PHOENIX","AZ","O-1E","PHOENIXAZO-1E","PHOENIXAZO-1E",1335]
["PHOENIX","AZ","O-2E","PHOENIXAZO-2E","PHOENIXAZO-2E",1383]
["PHOENIX","AZ","O-3E","PHOENIXAZO-3E","PHOENIXAZO-3E",1443]
["PHOENIX","AZ","O-1","PHOENIXAZO-1","PHOENIXAZO-1",1056]
["PHOENIX","AZ","O-2","PHOENIXAZO-2","PHOENIXAZO-2",1287]
["PHOENIX","AZ","O-3","PHOENIXAZO-3","PHOENIXAZO-3",1404]
["PHOENIX","AZ","O-4","PHOENIXAZO-4","PHOENIXAZO-4",1467]
["PHOENIX","AZ","O-5","PHOENIXAZO-5","PHOENIXAZO-5",1479]
["PHOENIX","AZ","O-6","PHOENIXAZO-6","PHOENIXAZO-6",1500]
["PHOENIX","AZ","O-7","PHOENIXAZO-7","PHOENIXAZO-7",1530]
["FORT HUACHUCA","AZ","E-1","FORT HUACHUCAAZE-1","FORT HUACHUCAAZE-1",714,714,714,714,714,780,882,984,1095,1179,882,1029,1167,1209,1344,1005,1146,1185,813,939,1161,1326,1413,1554,1584]
["FORT HUACHUCA","AZ","E-2","FORT HUACHUCAAZE-2","FORT HUACHUCAAZE-2",714]
["FORT HUACHUCA","AZ","E-3","FORT HUACHUCAAZE-3","FORT HUACHUCAAZE-3",714]
["FORT HUACHUCA","AZ","E-4","FORT HUACHUCAAZE-4","FORT HUACHUCAAZE-4",714]
["FORT HUACHUCA","AZ","E-5","FORT HUACHUCAAZE-5","FORT HUACHUCAAZE-5",780]
["FORT HUACHUCA","AZ","E-6","FORT HUACHUCAAZE-6","FORT HUACHUCAAZE-6",882]
["FORT HUACHUCA","AZ","E-7","FORT HUACHUCAAZE-7","FORT HUACHUCAAZE-7",984]
["FORT HUACHUCA","AZ","E-8","FORT HUACHUCAAZE-8","FORT HUACHUCAAZE-8",1095]
["FORT HUACHUCA","AZ","E-9","FORT HUACHUCAAZE-9","FORT HUACHUCAAZE-9",1179]
["FORT HUACHUCA","AZ","W-1","FORT HUACHUCAAZW-1","FORT HUACHUCAAZW-1",882]
["FORT HUACHUCA","AZ","W-2","FORT HUACHUCAAZW-2","FORT HUACHUCAAZW-2",1029]
["FORT HUACHUCA","AZ","W-3","FORT HUACHUCAAZW-3","FORT HUACHUCAAZW-3",1167]
["FORT HUACHUCA","AZ","W-4","FORT HUACHUCAAZW-4","FORT HUACHUCAAZW-4",1209]
["FORT HUACHUCA","AZ","W-5","FORT HUACHUCAAZW-5","FORT HUACHUCAAZW-5",1344]
["FORT HUACHUCA","AZ","O-1E","FORT HUACHUCAAZO-1E","FORT HUACHUCAAZO-1E",1005]
["FORT HUACHUCA","AZ","O-2E","FORT HUACHUCAAZO-2E","FORT HUACHUCAAZO-2E",1146]
["FORT HUACHUCA","AZ","O-3E","FORT HUACHUCAAZO-3E","FORT HUACHUCAAZO-3E",1185]
["FORT HUACHUCA","AZ","O-1","FORT HUACHUCAAZO-1","FORT HUACHUCAAZO-1",813]
["FORT HUACHUCA","AZ","O-2","FORT HUACHUCAAZO-2","FORT HUACHUCAAZO-2",939]
["FORT HUACHUCA","AZ","O-3","FORT HUACHUCAAZO-3","FORT HUACHUCAAZO-3",1161]
["FORT HUACHUCA","AZ","O-4","FORT HUACHUCAAZO-4","FORT HUACHUCAAZO-4",1326]
["FORT HUACHUCA","AZ","O-5","FORT HUACHUCAAZO-5","FORT HUACHUCAAZO-5",1413]
["FORT HUACHUCA","AZ","O-6","FORT HUACHUCAAZO-6","FORT HUACHUCAAZO-6",1554]
["FORT HUACHUCA","AZ","O-7","FORT HUACHUCAAZO-7","FORT HUACHUCAAZO-7",1584]
["DAVIS-MONTHAN AFB","AZ","E-1","DAVIS-MONTHAN AFBAZE-1","DAVIS-MONTHAN AFBAZE-1",768,768,768,768,768,858,972,1029,1161,1212,984,1158,1218,1299,1317,1128,1200,1296,921,1092,1236,1314,1326,1344,1371]
["DAVIS-MONTHAN AFB","AZ","E-2","DAVIS-MONTHAN AFBAZE-2","DAVIS-MONTHAN AFBAZE-2",768]
["DAVIS-MONTHAN AFB","AZ","E-3","DAVIS-MONTHAN AFBAZE-3","DAVIS-MONTHAN AFBAZE-3",768]
["DAVIS-MONTHAN AFB","AZ","E-4","DAVIS-MONTHAN AFBAZE-4","DAVIS-MONTHAN AFBAZE-4",768]
["DAVIS-MONTHAN AFB","AZ","E-5","DAVIS-MONTHAN AFBAZE-5","DAVIS-MONTHAN AFBAZE-5",858]
["DAVIS-MONTHAN AFB","AZ","E-6","DAVIS-MONTHAN AFBAZE-6","DAVIS-MONTHAN AFBAZE-6",972]
["DAVIS-MONTHAN AFB","AZ","E-7","DAVIS-MONTHAN AFBAZE-7","DAVIS-MONTHAN AFBAZE-7",1029]
["DAVIS-MONTHAN AFB","AZ","E-8","DAVIS-MONTHAN AFBAZE-8","DAVIS-MONTHAN AFBAZE-8",1161]
["DAVIS-MONTHAN AFB","AZ","E-9",{"$f":"A514&B514&C514","v":"DAVIS-MONTHAN AFBAZE-9"},"DAVIS-MONTHAN AFBAZE-9",1212]
["DAVIS-MONTHAN AFB","AZ","W-1","DAVIS-MONTHAN AFBAZW-1","DAVIS-MONTHAN AFBAZW-1",984]
["DAVIS-MONTHAN AFB","AZ","W-2","DAVIS-MONTHAN AFBAZW-2","DAVIS-MONTHAN AFBAZW-2",1158]
["DAVIS-MONTHAN AFB","AZ","W-3","DAVIS-MONTHAN AFBAZW-3","DAVIS-MONTHAN AFBAZW-3",1218]
["DAVIS-MONTHAN AFB","AZ","W-4","DAVIS-MONTHAN AFBAZW-4","DAVIS-MONTHAN AFBAZW-4",1299]
["DAVIS-MONTHAN AFB","AZ","W-5","DAVIS-MONTHAN AFBAZW-5","DAVIS-MONTHAN AFBAZW-5",1317]
["DAVIS-MONTHAN AFB","AZ","O-1E","DAVIS-MONTHAN AFBAZO-1E","DAVIS-MONTHAN AFBAZO-1E",1128]
["DAVIS-MONTHAN AFB","AZ","O-2E","DAVIS-MONTHAN AFBAZO-2E","DAVIS-MONTHAN AFBAZO-2E",1200]
["DAVIS-MONTHAN AFB","AZ","O-3E","DAVIS-MONTHAN AFBAZO-3E","DAVIS-MONTHAN AFBAZO-3E",1296]
["DAVIS-MONTHAN AFB","AZ","O-1","DAVIS-MONTHAN AFBAZO-1","DAVIS-MONTHAN AFBAZO-1",921]
["DAVIS-MONTHAN AFB","AZ","O-2","DAVIS-MONTHAN AFBAZO-2","DAVIS-MONTHAN AFBAZO-2",1092]
["DAVIS-MONTHAN AFB","AZ","O-3","DAVIS-MONTHAN AFBAZO-3","DAVIS-MONTHAN AFBAZO-3",1236]
["DAVIS-MONTHAN AFB","AZ","O-4","DAVIS-MONTHAN AFBAZO-4","DAVIS-MONTHAN AFBAZO-4",1314]
["DAVIS-MONTHAN AFB","AZ","O-5","DAVIS-MONTHAN AFBAZO-5","DAVIS-MONTHAN AFBAZO-5",1326]
["DAVIS-MONTHAN AFB","AZ","O-6","DAVIS-MONTHAN AFBAZO-6","DAVIS-MONTHAN AFBAZO-6",1344]
["DAVIS-MONTHAN AFB","AZ","O-7","DAVIS-MONTHAN AFBAZO-7","DAVIS-MONTHAN AFBAZO-7",1371]
["YUMA","AZ","E-1","YUMAAZE-1","YUMAAZE-1",762,762,762,762,762,870,963,1008,1122,1185,972,1119,1191,1293,1329,1083,1170,1284,924,1056,1212,1326,1350,1386,1416]
["YUMA","AZ","E-2","YUMAAZE-2","YUMAAZE-2",762]
["YUMA","AZ","E-3","YUMAAZE-3","YUMAAZE-3",762]
["YUMA","AZ","E-4","YUMAAZE-4","YUMAAZE-4",762]
["YUMA","AZ","E-5","YUMAAZE-5","YUMAAZE-5",870]
["YUMA","AZ","E-6","YUMAAZE-6","YUMAAZE-6",963]
["YUMA","AZ","E-7","YUMAAZE-7","YUMAAZE-7",1008]
["YUMA","AZ","E-8","YUMAAZE-8","YUMAAZE-8",1122]
["YUMA","AZ","E-9","YUMAAZE-9","YUMAAZE-9",1185]
["YUMA","AZ","W-1","YUMAAZW-1","YUMAAZW-1",972]
["YUMA","AZ","W-2","YUMAAZW-2","YUMAAZW-2",1119]
["YUMA","AZ","W-3","YUMAAZW-3","YUMAAZW-3",1191]
["YUMA","AZ","W-4","YUMAAZW-4","YUMAAZW-4",1293]
["YUMA","AZ","W-5","YUMAAZW-5","YUMAAZW-5",1329]
["YUMA","AZ","O-1E","YUMAAZO-1E","YUMAAZO-1E",1083]
["YUMA","AZ","O-2E","YUMAAZO-2E","YUMAAZO-2E",1170]
["YUMA","AZ","O-3E","YUMAAZO-3E","YUMAAZO-3E",1284]
["YUMA","AZ","O-1","YUMAAZO-1","YUMAAZO-1",924]
["YUMA","AZ","O-2","YUMAAZO-2","YUMAAZO-2",1056]
["YUMA","AZ","O-3","YUMAAZO-3","YUMAAZO-3",1212]
["YUMA","AZ","O-4","YUMAAZO-4","YUMAAZO-4",1326]
["YUMA","AZ","O-5","YUMAAZO-5","YUMAAZO-5",1350]
["YUMA","AZ","O-6","YUMAAZO-6","YUMAAZO-6",1386]
["YUMA","AZ","O-7","YUMAAZO-7","YUMAAZO-7",1416]
["OAKLAND","CA","E-1","OAKLANDCAE-1","OAKLANDCAE-1",1347,1347,1347,1347,1347,1554,1725,1824,1989,2109,1737,1986,2121,2331,2466,1914,2082,2298,1656,1869,2160,2445,2532,2667,2721]
["OAKLAND","CA","E-2","OAKLANDCAE-2","OAKLANDCAE-2",1347]
["OAKLAND","CA","E-3","OAKLANDCAE-3","OAKLANDCAE-3",1347]
["OAKLAND","CA","E-4","OAKLANDCAE-4","OAKLANDCAE-4",1347]
["OAKLAND","CA","E-5","OAKLANDCAE-5","OAKLANDCAE-5",1554]
["OAKLAND","CA","E-6","OAKLANDCAE-6","OAKLANDCAE-6",1725]
["OAKLAND","CA","E-7","OAKLANDCAE-7","OAKLANDCAE-7",1824]
["OAKLAND","CA","E-8","OAKLANDCAE-8","OAKLANDCAE-8",1989]
["OAKLAND","CA","E-9","OAKLANDCAE-9","OAKLANDCAE-9",2109]
["OAKLAND","CA","W-1","OAKLANDCAW-1","OAKLANDCAW-1",1737]
["OAKLAND","CA","W-2","OAKLANDCAW-2","OAKLANDCAW-2",1986]
["OAKLAND","CA","W-3","OAKLANDCAW-3","OAKLANDCAW-3",2121]
["OAKLAND","CA","W-4","OAKLANDCAW-4","OAKLANDCAW-4",2331]
["OAKLAND","CA","W-5","OAKLANDCAW-5","OAKLANDCAW-5",2466]
["OAKLAND","CA","O-1E","OAKLANDCAO-1E","OAKLANDCAO-1E",1914]
["OAKLAND","CA","O-2E","OAKLANDCAO-2E","OAKLANDCAO-2E",2082]
["OAKLAND","CA","O-3E","OAKLANDCAO-3E","OAKLANDCAO-3E",2298]
["OAKLAND","CA","O-1","OAKLANDCAO-1","OAKLANDCAO-1",1656]
["OAKLAND","CA","O-2","OAKLANDCAO-2","OAKLANDCAO-2",1869]
["OAKLAND","CA","O-3","OAKLANDCAO-3","OAKLANDCAO-3",2160]
["OAKLAND","CA","O-4","OAKLANDCAO-4","OAKLANDCAO-4",2445]
["OAKLAND","CA","O-5","OAKLANDCAO-5","OAKLANDCAO-5",2532]
["OAKLAND","CA","O-6","OAKLANDCAO-6","OAKLANDCAO-6",2667]
["OAKLAND","CA","O-7","OAKLANDCAO-7","OAKLANDCAO-7",2721]
["SAN FRANCISCO","CA","E-1",{"$f":"A578&B578&C578","v":"SAN FRANCISCOCAE-1"},"SAN FRANCISCOCAE-1",1980,1980,1980,1980,1980,2196,2319,2439,2604,2667,2382,2601,2673,2787,2868,2562,2652,2766,2301,2517,2691,2859,2910,2997,3057]
["SAN FRANCISCO","CA","E-2","SAN FRANCISCOCAE-2","SAN FRANCISCOCAE-2",1980]
["SAN FRANCISCO","CA","E-3","SAN FRANCISCOCAE-3","SAN FRANCISCOCAE-3",1980]
["SAN FRANCISCO","CA","E-4","SAN FRANCISCOCAE-4","SAN FRANCISCOCAE-4",1980]
["SAN FRANCISCO","CA","E-5","SAN FRANCISCOCAE-5","SAN FRANCISCOCAE-5",2196]
["SAN FRANCISCO","CA","E-6","SAN FRANCISCOCAE-6","SAN FRANCISCOCAE-6",2319]
["SAN FRANCISCO","CA","E-7","SAN FRANCISCOCAE-7","SAN FRANCISCOCAE-7",2439]
["SAN FRANCISCO","CA","E-8","SAN FRANCISCOCAE-8","SAN FRANCISCOCAE-8",2604]
["SAN FRANCISCO","CA","E-9","SAN FRANCISCOCAE-9","SAN FRANCISCOCAE-9",2667]
["SAN FRANCISCO","CA","W-1","SAN FRANCISCOCAW-1","SAN FRANCISCOCAW-1",2382]
["SAN FRANCISCO","CA","W-2","SAN FRANCISCOCAW-2","SAN FRANCISCOCAW-2",2601]
["SAN FRANCISCO","CA","W-3","SAN FRANCISCOCAW-3","SAN FRANCISCOCAW-3",2673]
["SAN FRANCISCO","CA","W-4","SAN FRANCISCOCAW-4","SAN FRANCISCOCAW-4",2787]
["SAN FRANCISCO","CA","W-5","SAN FRANCISCOCAW-5","SAN FRANCISCOCAW-5",2868]
["SAN FRANCISCO","CA","O-1E","SAN FRANCISCOCAO-1E","SAN FRANCISCOCAO-1E",2562]
["SAN FRANCISCO","CA","O-2E","SAN FRANCISCOCAO-2E","SAN FRANCISCOCAO-2E",2652]
["SAN FRANCISCO","CA","O-3E","SAN FRANCISCOCAO-3E","SAN FRANCISCOCAO-3E",2766]
["SAN FRANCISCO","CA","O-1","SAN FRANCISCOCAO-1","SAN FRANCISCOCAO-1",2301]
["SAN FRANCISCO","CA","O-2","SAN FRANCISCOCAO-2","SAN FRANCISCOCAO-2",2517]
["SAN FRANCISCO","CA","O-3","SAN FRANCISCOCAO-3","SAN FRANCISCOCAO-3",2691]
["SAN FRANCISCO","CA","O-4","SAN FRANCISCOCAO-4","SAN FRANCISCOCAO-4",2859]
["SAN FRANCISCO","CA","O-5","SAN FRANCISCOCAO-5","SAN FRANCISCOCAO-5",2910]
["SAN FRANCISCO","CA","O-6","SAN FRANCISCOCAO-6","SAN FRANCISCOCAO-6",2997]
["SAN FRANCISCO","CA","O-7","SAN FRANCISCOCAO-7","SAN FRANCISCOCAO-7",3057]
["CHINA LAKE NAVWEPCEN","CA","E-1","CHINA LAKE NAVWEPCENCAE-1","CHINA LAKE NAVWEPCENCAE-1",651,651,651,651,651,729,885,903,1002,1071,885,1002,1077,1185,1209,960,1056,1179,774,927,1098,1206,1227,1251,1275]
["CHINA LAKE NAVWEPCEN","CA","E-2","CHINA LAKE NAVWEPCENCAE-2","CHINA LAKE NAVWEPCENCAE-2",651]
["CHINA LAKE NAVWEPCEN","CA","E-3","CHINA LAKE NAVWEPCENCAE-3","CHINA LAKE NAVWEPCENCAE-3",651]
["CHINA LAKE NAVWEPCEN","CA","E-4","CHINA LAKE NAVWEPCENCAE-4","CHINA LAKE NAVWEPCENCAE-4",651]
["CHINA LAKE NAVWEPCEN","CA","E-5","CHINA LAKE NAVWEPCENCAE-5","CHINA LAKE NAVWEPCENCAE-5",729]
["CHINA LAKE NAVWEPCEN","CA","E-6","CHINA LAKE NAVWEPCENCAE-6","CHINA LAKE NAVWEPCENCAE-6",885]
["CHINA LAKE NAVWEPCEN","CA","E-7","CHINA LAKE NAVWEPCENCAE-7","CHINA LAKE NAVWEPCENCAE-7",903]
["CHINA LAKE NAVWEPCEN","CA","E-8","CHINA LAKE NAVWEPCENCAE-8","CHINA LAKE NAVWEPCENCAE-8",1002]
["CHINA LAKE NAVWEPCEN","CA","E-9","CHINA LAKE NAVWEPCENCAE-9","CHINA LAKE NAVWEPCENCAE-9",1071]
["CHINA LAKE NAVWEPCEN","CA","W-1","CHINA LAKE NAVWEPCENCAW-1","CHINA LAKE NAVWEPCENCAW-1",885]
["CHINA LAKE NAVWEPCEN","CA","W-2","CHINA LAKE NAVWEPCENCAW-2","CHINA LAKE NAVWEPCENCAW-2",1002]
["CHINA LAKE NAVWEPCEN","CA","W-3","CHINA LAKE NAVWEPCENCAW-3","CHINA LAKE NAVWEPCENCAW-3",1077]
["CHINA LAKE NAVWEPCEN","CA","W-4","CHINA LAKE NAVWEPCENCAW-4","CHINA LAKE NAVWEPCENCAW-4",1185]
["CHINA LAKE NAVWEPCEN","CA","W-5","CHINA LAKE NAVWEPCENCAW-5","CHINA LAKE NAVWEPCENCAW-5",1209]
["CHINA LAKE NAVWEPCEN","CA","O-1E","CHINA LAKE NAVWEPCENCAO-1E","CHINA LAKE NAVWEPCENCAO-1E",960]
["CHINA LAKE NAVWEPCEN","CA","O-2E","CHINA LAKE NAVWEPCENCAO-2E","CHINA LAKE NAVWEPCENCAO-2E",1056]
["CHINA LAKE NAVWEPCEN","CA","O-3E","CHINA LAKE NAVWEPCENCAO-3E","CHINA LAKE NAVWEPCENCAO-3E",1179]
["CHINA LAKE NAVWEPCEN","CA","O-1","CHINA LAKE NAVWEPCENCAO-1","CHINA LAKE NAVWEPCENCAO-1",774]
["CHINA LAKE NAVWEPCEN","CA","O-2","CHINA LAKE NAVWEPCENCAO-2","CHINA LAKE NAVWEPCENCAO-2",927]
["CHINA LAKE NAVWEPCEN","CA","O-3","CHINA LAKE NAVWEPCENCAO-3","CHINA LAKE NAVWEPCENCAO-3",1098]
["CHINA LAKE NAVWEPCEN","CA","O-4","CHINA LAKE NAVWEPCENCAO-4","CHINA LAKE NAVWEPCENCAO-4",1206]
["CHINA LAKE NAVWEPCEN","CA","O-5","CHINA LAKE NAVWEPCENCAO-5","CHINA LAKE NAVWEPCENCAO-5",1227]
["CHINA LAKE NAVWEPCEN","CA","O-6","CHINA LAKE NAVWEPCENCAO-6","CHINA LAKE NAVWEPCENCAO-6",1251]
["CHINA LAKE NAVWEPCEN","CA","O-7","CHINA LAKE NAVWEPCENCAO-7","CHINA LAKE NAVWEPCENCAO-7",1275]
["FRESNO","CA","E-1","FRESNOCAE-1","FRESNOCAE-1",900,900,900,900,900,981,1035,1131,1257,1305,1086,1257,1308,1386,1419,1227,1293,1380,1020,1191,1323,1416,1437,1470,1497]
["FRESNO","CA","E-2","FRESNOCAE-2","FRESNOCAE-2",900]
["FRESNO","CA","E-3","FRESNOCAE-3","FRESNOCAE-3",900]
["FRESNO","CA","E-4","FRESNOCAE-4","FRESNOCAE-4",900]
["FRESNO","CA","E-5","FRESNOCAE-5","FRESNOCAE-5",981]
["FRESNO","CA","E-6","FRESNOCAE-6","FRESNOCAE-6",1035]
["FRESNO","CA","E-7","FRESNOCAE-7","FRESNOCAE-7",1131]
["FRESNO","CA","E-8","FRESNOCAE-8","FRESNOCAE-8",1257]
["FRESNO","CA","E-9","FRESNOCAE-9","FRESNOCAE-9",1305]
["FRESNO","CA","W-1","FRESNOCAW-1","FRESNOCAW-1",1086]
["FRESNO","CA","W-2","FRESNOCAW-2","FRESNOCAW-2",1257]
["FRESNO","CA","W-3","FRESNOCAW-3","FRESNOCAW-3",1308]
["FRESNO","CA","W-4","FRESNOCAW-4","FRESNOCAW-4",1386]
["FRESNO","CA","W-5","FRESNOCAW-5","FRESNOCAW-5",1419]
["FRESNO","CA","O-1E","FRESNOCAO-1E","FRESNOCAO-1E",1227]
["FRESNO","CA","O-2E","FRESNOCAO-2E","FRESNOCAO-2E",1293]
["FRESNO","CA","O-3E",{"$f":"A642&B642&C642","v":"FRESNOCAO-3E"},"FRESNOCAO-3E",1380]
["FRESNO","CA","O-1","FRESNOCAO-1","FRESNOCAO-1",1020]
["FRESNO","CA","O-2","FRESNOCAO-2","FRESNOCAO-2",1191]
["FRESNO","CA","O-3","FRESNOCAO-3","FRESNOCAO-3",1323]
["FRESNO","CA","O-4","FRESNOCAO-4","FRESNOCAO-4",1416]
["FRESNO","CA","O-5","FRESNOCAO-5","FRESNOCAO-5",1437]
["FRESNO","CA","O-6","FRESNOCAO-6","FRESNOCAO-6",1470]
["FRESNO","CA","O-7","FRESNOCAO-7","FRESNOCAO-7",1497]
["LEMORE NAS","CA","E-1","LEMORE NASCAE-1","LEMORE NASCAE-1",765,765,765,765,765,858,939,1026,1137,1170,987,1137,1173,1248,1359,1116,1161,1218,927,1083,1182,1344,1416,1530,1563]
["LEMORE NAS","CA","E-2","LEMORE NASCAE-2","LEMORE NASCAE-2",765]
["LEMORE NAS","CA","E-3","LEMORE NASCAE-3","LEMORE NASCAE-3",765]
["LEMORE NAS","CA","E-4","LEMORE NASCAE-4","LEMORE NASCAE-4",765]
["LEMORE NAS","CA","E-5","LEMORE NASCAE-5","LEMORE NASCAE-5",858]
["LEMORE NAS","CA","E-6","LEMORE NASCAE-6","LEMORE NASCAE-6",939]
["LEMORE NAS","CA","E-7","LEMORE NASCAE-7","LEMORE NASCAE-7",1026]
["LEMORE NAS","CA","E-8","LEMORE NASCAE-8","LEMORE NASCAE-8",1137]
["LEMORE NAS","CA","E-9","LEMORE NASCAE-9","LEMORE NASCAE-9",1170]
["LEMORE NAS","CA","W-1","LEMORE NASCAW-1","LEMORE NASCAW-1",987]
["LEMORE NAS","CA","W-2","LEMORE NASCAW-2","LEMORE NASCAW-2",1137]
["LEMORE NAS","CA","W-3","LEMORE NASCAW-3","LEMORE NASCAW-3",1173]
["LEMORE NAS","CA","W-4","LEMORE NASCAW-4","LEMORE NASCAW-4",1248]
["LEMORE NAS","CA","W-5","LEMORE NASCAW-5","LEMORE NASCAW-5",1359]
["LEMORE NAS","CA","O-1E","LEMORE NASCAO-1E","LEMORE NASCAO-1E",1116]
["LEMORE NAS","CA","O-2E","LEMORE NASCAO-2E","LEMORE NASCAO-2E",1161]
["LEMORE NAS","CA","O-3E","LEMORE NASCAO-3E","LEMORE NASCAO-3E",1218]
["LEMORE NAS","CA","O-1","LEMORE NASCAO-1","LEMORE NASCAO-1",927]
["LEMORE NAS","CA","O-2","LEMORE NASCAO-2","LEMORE NASCAO-2",1083]
["LEMORE NAS","CA","O-3","LEMORE NASCAO-3","LEMORE NASCAO-3",1182]
["LEMORE NAS","CA","O-4","LEMORE NASCAO-4","LEMORE NASCAO-4",1344]
["LEMORE NAS","CA","O-5","LEMORE NASCAO-5","LEMORE NASCAO-5",1416]
["LEMORE NAS","CA","O-6","LEMORE NASCAO-6","LEMORE NASCAO-6",1530]
["LEMORE NAS","CA","O-7","LEMORE NASCAO-7","LEMORE NASCAO-7",1563]
["CAMP PENDLETON","CA","E-1","CAMP PENDLETONCAE-1","CAMP PENDLETONCAE-1",1263,1263,1263,1263,1263,1473,1590,1683,1830,1920,1638,1830,1926,2079,2169,1776,1899,2058,1578,1740,1956,2157,2217,2310,2355]
["CAMP PENDLETON","CA","E-2","CAMP PENDLETONCAE-2","CAMP PENDLETONCAE-2",1263]
["CAMP PENDLETON","CA","E-3","CAMP PENDLETONCAE-3","CAMP PENDLETONCAE-3",1263]
["CAMP PENDLETON","CA","E-4","CAMP PENDLETONCAE-4","CAMP PENDLETONCAE-4",1263]
["CAMP PENDLETON","CA","E-5","CAMP PENDLETONCAE-5","CAMP PENDLETONCAE-5",1473]
["CAMP PENDLETON","CA","E-6","CAMP PENDLETONCAE-6","CAMP PENDLETONCAE-6",1590]
["CAMP PENDLETON","CA","E-7","CAMP PENDLETONCAE-7","CAMP PENDLETONCAE-7",1683]
["CAMP PENDLETON","CA","E-8","CAMP PENDLETONCAE-8","CAMP PENDLETONCAE-8",1830]
["CAMP PENDLETON","CA","E-9","CAMP PENDLETONCAE-9","CAMP PENDLETONCAE-9",1920]
["CAMP PENDLETON","CA","W-1","CAMP PENDLETONCAW-1","CAMP PENDLETONCAW-1",1638]
["CAMP PENDLETON","CA","W-2","CAMP PENDLETONCAW-2","CAMP PENDLETONCAW-2",1830]
["CAMP PENDLETON","CA","W-3","CAMP PENDLETONCAW-3","CAMP PENDLETONCAW-3",1926]
["CAMP PENDLETON","CA","W-4","CAMP PENDLETONCAW-4","CAMP PENDLETONCAW-4",2079]
["CAMP PENDLETON","CA","W-5","CAMP PENDLETONCAW-5","CAMP PENDLETONCAW-5",2169]
["CAMP PENDLETON","CA","O-1E","CAMP PENDLETONCAO-1E","CAMP PENDLETONCAO-1E",1776]
["CAMP PENDLETON","CA","O-2E","CAMP PENDLETONCAO-2E","CAMP PENDLETONCAO-2E",1899]
["CAMP PENDLETON","CA","O-3E","CAMP PENDLETONCAO-3E","CAMP PENDLETONCAO-3E",2058]
["CAMP PENDLETON","CA","O-1","CAMP PENDLETONCAO-1","CAMP PENDLETONCAO-1",1578]
["CAMP PENDLETON","CA","O-2","CAMP PENDLETONCAO-2","CAMP PENDLETONCAO-2",1740]
["CAMP PENDLETON","CA","O-3","CAMP PENDLETONCAO-3","CAMP PENDLETONCAO-3",1956]
["CAMP PENDLETON","CA","O-4","CAMP PENDLETONCAO-4","CAMP PENDLETONCAO-4",2157]
["CAMP PENDLETON","CA","O-5","CAMP PENDLETONCAO-5","CAMP PENDLETONCAO-5",2217]
["CAMP PENDLETON","CA","O-6","CAMP PENDLETONCAO-6","CAMP PENDLETONCAO-6",2310]
["CAMP PENDLETON","CA","O-7","CAMP PENDLETONCAO-7","CAMP PENDLETONCAO-7",2355]
["VENTURA","CA","E-1","VENTURACAE-1","VENTURACAE-1",1455,1455,1455,1455,1455,1548,1644,1755,1878,2013,1650,1854,1998,2229,2379,1779,1959,2190,1593,1743,2040,2358,2454,2607,2658]
["VENTURA","CA","E-2","VENTURACAE-2","VENTURACAE-2",1455]
["VENTURA","CA","E-3","VENTURACAE-3","VENTURACAE-3",1455]
["VENTURA","CA","E-4","VENTURACAE-4","VENTURACAE-4",1455]
["VENTURA","CA","E-5","VENTURACAE-5","VENTURACAE-5",1548]
["VENTURA","CA","E-6","VENTURACAE-6","VENTURACAE-6",1644]
["VENTURA","CA","E-7","VENTURACAE-7","VENTURACAE-7",1755]
["VENTURA","CA","E-8","VENTURACAE-8","VENTURACAE-8",1878]
["VENTURA","CA","E-9",{"$f":"A706&B706&C706","v":"VENTURACAE-9"},"VENTURACAE-9",2013]
["VENTURA","CA","W-1","VENTURACAW-1","VENTURACAW-1",1650]
["VENTURA","CA","W-2","VENTURACAW-2","VENTURACAW-2",1854]
["VENTURA","CA","W-3","VENTURACAW-3","VENTURACAW-3",1998]
["VENTURA","CA","W-4","VENTURACAW-4","VENTURACAW-4",2229]
["VENTURA","CA","W-5","VENTURACAW-5","VENTURACAW-5",2379]
["VENTURA","CA","O-1E","VENTURACAO-1E","VENTURACAO-1E",1779]
["VENTURA","CA","O-2E","VENTURACAO-2E","VENTURACAO-2E",1959]
["VENTURA","CA","O-3E","VENTURACAO-3E","VENTURACAO-3E",2190]
["VENTURA","CA","O-1","VENTURACAO-1","VENTURACAO-1",1593]
["VENTURA","CA","O-2","VENTURACAO-2","VENTURACAO-2",1743]
["VENTURA","CA","O-3","VENTURACAO-3","VENTURACAO-3",2040]
["VENTURA","CA","O-4","VENTURACAO-4","VENTURACAO-4",2358]
["VENTURA","CA","O-5","VENTURACAO-5","VENTURACAO-5",2454]
["VENTURA","CA","O-6","VENTURACAO-6","VENTURACAO-6",2607]
["VENTURA","CA","O-7","VENTURACAO-7","VENTURACAO-7",2658]
["VANDENBERG AFB","CA","E-1","VANDENBERG AFBCAE-1","VANDENBERG AFBCAE-1",1005,1005,1005,1005,1005,1146,1245,1347,1485,1536,1299,1482,1542,1632,1689,1452,1524,1620,1230,1413,1560,1680,1716,1773,1806]
["VANDENBERG AFB","CA","E-2","VANDENBERG AFBCAE-2","VANDENBERG AFBCAE-2",1005]
["VANDENBERG AFB","CA","E-3","VANDENBERG AFBCAE-3","VANDENBERG AFBCAE-3",1005]
["VANDENBERG AFB","CA","E-4","VANDENBERG AFBCAE-4","VANDENBERG AFBCAE-4",1005]
["VANDENBERG AFB","CA","E-5","VANDENBERG AFBCAE-5","VANDENBERG AFBCAE-5",1146]
["VANDENBERG AFB","CA","E-6","VANDENBERG AFBCAE-6","VANDENBERG AFBCAE-6",1245]
["VANDENBERG AFB","CA","E-7","VANDENBERG AFBCAE-7","VANDENBERG AFBCAE-7",1347]
["VANDENBERG AFB","CA","E-8","VANDENBERG AFBCAE-8","VANDENBERG AFBCAE-8",1485]
["VANDENBERG AFB","CA","E-9","VANDENBERG AFBCAE-9","VANDENBERG AFBCAE-9",1536]
["VANDENBERG AFB","CA","W-1","VANDENBERG AFBCAW-1","VANDENBERG AFBCAW-1",1299]
["VANDENBERG AFB","CA","W-2","VANDENBERG AFBCAW-2","VANDENBERG AFBCAW-2",1482]
["VANDENBERG AFB","CA","W-3","VANDENBERG AFBCAW-3","VANDENBERG AFBCAW-3",1542]
["VANDENBERG AFB","CA","W-4","VANDENBERG AFBCAW-4","VANDENBERG AFBCAW-4",1632]
["VANDENBERG AFB","CA","W-5","VANDENBERG AFBCAW-5","VANDENBERG AFBCAW-5",1689]
["VANDENBERG AFB","CA","O-1E","VANDENBERG AFBCAO-1E","VANDENBERG AFBCAO-1E",1452]
["VANDENBERG AFB","CA","O-2E","VANDENBERG AFBCAO-2E","VANDENBERG AFBCAO-2E",1524]
["VANDENBERG AFB","CA","O-3E","VANDENBERG AFBCAO-3E","VANDENBERG AFBCAO-3E",1620]
["VANDENBERG AFB","CA","O-1","VANDENBERG AFBCAO-1","VANDENBERG AFBCAO-1",1230]
["VANDENBERG AFB","CA","O-2","VANDENBERG AFBCAO-2","VANDENBERG AFBCAO-2",1413]
["VANDENBERG AFB","CA","O-3","VANDENBERG AFBCAO-3","VANDENBERG AFBCAO-3",1560]
["VANDENBERG AFB","CA","O-4","VANDENBERG AFBCAO-4","VANDENBERG AFBCAO-4",1680]
["VANDENBERG AFB","CA","O-5","VANDENBERG AFBCAO-5","VANDENBERG AFBCAO-5",1716]
["VANDENBERG AFB","CA","O-6","VANDENBERG AFBCAO-6","VANDENBERG AFBCAO-6",1773]
["VANDENBERG AFB","CA","O-7","VANDENBERG AFBCAO-7","VANDENBERG AFBCAO-7",1806]
["MARIN/SONOMA","CA","E-1","MARIN/SONOMACAE-1","MARIN/SONOMACAE-1",1509,1509,1509,1509,1509,1692,1800,1926,2064,2076,1866,2064,2079,2103,2133,2058,2076,2097,1782,2010,2082,2130,2148,2178,2223]
["MARIN/SONOMA","CA","E-2","MARIN/SONOMACAE-2","MARIN/SONOMACAE-2",1509]
["MARIN/SONOMA","CA","E-3","MARIN/SONOMACAE-3","MARIN/SONOMACAE-3",1509]
["MARIN/SONOMA","CA","E-4","MARIN/SONOMACAE-4","MARIN/SONOMACAE-4",1509]
["MARIN/SONOMA","CA","E-5","MARIN/SONOMACAE-5","MARIN/SONOMACAE-5",1692]
["MARIN/SONOMA","CA","E-6","MARIN/SONOMACAE-6","MARIN/SONOMACAE-6",1800]
["MARIN/SONOMA","CA","E-7","MARIN/SONOMACAE-7","MARIN/SONOMACAE-7",1926]
["MARIN/SONOMA","CA","E-8","MARIN/SONOMACAE-8","MARIN/SONOMACAE-8",2064]
["MARIN/SONOMA","CA","E-9","MARIN/SONOMACAE-9","MARIN/SONOMACAE-9",2076]
["MARIN/SONOMA","CA","W-1","MARIN/SONOMACAW-1","MARIN/SONOMACAW-1",1866]
["MARIN/SONOMA","CA","W-2","MARIN/SONOMACAW-2","MARIN/SONOMACAW-2",2064]
["MARIN/SONOMA","CA","W-3","MARIN/SONOMACAW-3","MARIN/SONOMACAW-3",2079]
["MARIN/SONOMA","CA","W-4","MARIN/SONOMACAW-4","MARIN/SONOMACAW-4",2103]
["MARIN/SONOMA","CA","W-5","MARIN/SONOMACAW-5","MARIN/SONOMACAW-5",2133]
["MARIN/SONOMA","CA","O-1E","MARIN/SONOMACAO-1E","MARIN/SONOMACAO-1E",2058]
["MARIN/SONOMA","CA","O-2E","MARIN/SONOMACAO-2E","MARIN/SONOMACAO-2E",2076]
["MARIN/SONOMA","CA","O-3E","MARIN/SONOMACAO-3E","MARIN/SONOMACAO-3E",2097]
["MARIN/SONOMA","CA","O-1","MARIN/SONOMACAO-1","MARIN/SONOMACAO-1",1782]
["MARIN/SONOMA","CA","O-2","MARIN/SONOMACAO-2","MARIN/SONOMACAO-2",2010]
["MARIN/SONOMA","CA","O-3","MARIN/SONOMACAO-3","MARIN/SONOMACAO-3",2082]
["MARIN/SONOMA","CA","O-4","MARIN/SONOMACAO-4","MARIN/SONOMACAO-4",2130]
["MARIN/SONOMA","CA","O-5","MARIN/SONOMACAO-5","MARIN/SONOMACAO-5",2148]
["MARIN/SONOMA","CA","O-6","MARIN/SONOMACAO-6","MARIN/SONOMACAO-6",2178]
["MARIN/SONOMA","CA","O-7","MARIN/SONOMACAO-7","MARIN/SONOMACAO-7",2223]
["BARSTOW/FORT IRWIN","CA","E-1",{"$f":"A770&B770&C770","v":"BARSTOW/FORT IRWINCAE-1"},"BARSTOW/FORT IRWINCAE-1",762,762,762,762,762,858,954,1020,1125,1182,987,1125,1188,1287,1344,1089,1170,1272,942,1065,1206,1335,1371,1431,1458]
["BARSTOW/FORT IRWIN","CA","E-2","BARSTOW/FORT IRWINCAE-2","BARSTOW/FORT IRWINCAE-2",762]
["BARSTOW/FORT IRWIN","CA","E-3","BARSTOW/FORT IRWINCAE-3","BARSTOW/FORT IRWINCAE-3",762]
["BARSTOW/FORT IRWIN","CA","E-4","BARSTOW/FORT IRWINCAE-4","BARSTOW/FORT IRWINCAE-4",762]
["BARSTOW/FORT IRWIN","CA","E-5","BARSTOW/FORT IRWINCAE-5","BARSTOW/FORT IRWINCAE-5",858]
["BARSTOW/FORT IRWIN","CA","E-6","BARSTOW/FORT IRWINCAE-6","BARSTOW/FORT IRWINCAE-6",954]
["BARSTOW/FORT IRWIN","CA","E-7","BARSTOW/FORT IRWINCAE-7","BARSTOW/FORT IRWINCAE-7",1020]
["BARSTOW/FORT IRWIN","CA","E-8","BARSTOW/FORT IRWINCAE-8","BARSTOW/FORT IRWINCAE-8",1125]
["BARSTOW/FORT IRWIN","CA","E-9","BARSTOW/FORT IRWINCAE-9","BARSTOW/FORT IRWINCAE-9",1182]
["BARSTOW/FORT IRWIN","CA","W-1","BARSTOW/FORT IRWINCAW-1","BARSTOW/FORT IRWINCAW-1",987]
["BARSTOW/FORT IRWIN","CA","W-2","BARSTOW/FORT IRWINCAW-2","BARSTOW/FORT IRWINCAW-2",1125]
["BARSTOW/FORT IRWIN","CA","W-3","BARSTOW/FORT IRWINCAW-3","BARSTOW/FORT IRWINCAW-3",1188]
["BARSTOW/FORT IRWIN","CA","W-4","BARSTOW/FORT IRWINCAW-4","BARSTOW/FORT IRWINCAW-4",1287]
["BARSTOW/FORT IRWIN","CA","W-5","BARSTOW/FORT IRWINCAW-5","BARSTOW/FORT IRWINCAW-5",1344]
["BARSTOW/FORT IRWIN","CA","O-1E","BARSTOW/FORT IRWINCAO-1E","BARSTOW/FORT IRWINCAO-1E",1089]
["BARSTOW/FORT IRWIN","CA","O-2E","BARSTOW/FORT IRWINCAO-2E","BARSTOW/FORT IRWINCAO-2E",1170]
["BARSTOW/FORT IRWIN","CA","O-3E","BARSTOW/FORT IRWINCAO-3E","BARSTOW/FORT IRWINCAO-3E",1272]
["BARSTOW/FORT IRWIN","CA","O-1","BARSTOW/FORT IRWINCAO-1","BARSTOW/FORT IRWINCAO-1",942]
["BARSTOW/FORT IRWIN","CA","O-2","BARSTOW/FORT IRWINCAO-2","BARSTOW/FORT IRWINCAO-2",1065]
["BARSTOW/FORT IRWIN","CA","O-3","BARSTOW/FORT IRWINCAO-3","BARSTOW/FORT IRWINCAO-3",1206]
["BARSTOW/FORT IRWIN","CA","O-4","BARSTOW/FORT IRWINCAO-4","BARSTOW/FORT IRWINCAO-4",1335]
["BARSTOW/FORT IRWIN","CA","O-5","BARSTOW/FORT IRWINCAO-5","BARSTOW/FORT IRWINCAO-5",1371]
["BARSTOW/FORT IRWIN","CA","O-6","BARSTOW/FORT IRWINCAO-6","BARSTOW/FORT IRWINCAO-6",1431]
["BARSTOW/FORT IRWIN","CA","O-7","BARSTOW/FORT IRWINCAO-7","BARSTOW/FORT IRWINCAO-7",1458]
["SAN BERNARDINO","CA","E-1","SAN BERNARDINOCAE-1","SAN BERNARDINOCAE-1",945,945,945,945,945,1059,1200,1224,1356,1452,1200,1353,1461,1608,1641,1296,1428,1599,1116,1266,1491,1635,1656,1689,1725]
["SAN BERNARDINO","CA","E-2","SAN BERNARDINOCAE-2","SAN BERNARDINOCAE-2",945]
["SAN BERNARDINO","CA","E-3","SAN BERNARDINOCAE-3","SAN BERNARDINOCAE-3",945]
["SAN BERNARDINO","CA","E-4","SAN BERNARDINOCAE-4","SAN BERNARDINOCAE-4",945]
["SAN BERNARDINO","CA","E-5","SAN BERNARDINOCAE-5","SAN BERNARDINOCAE-5",1059]
["SAN BERNARDINO","CA","E-6","SAN BERNARDINOCAE-6","SAN BERNARDINOCAE-6",1200]
["SAN BERNARDINO","CA","E-7","SAN BERNARDINOCAE-7","SAN BERNARDINOCAE-7",1224]
["SAN BERNARDINO","CA","E-8","SAN BERNARDINOCAE-8","SAN BERNARDINOCAE-8",1356]
["SAN BERNARDINO","CA","E-9","SAN BERNARDINOCAE-9","SAN BERNARDINOCAE-9",1452]
["SAN BERNARDINO","CA","W-1","SAN BERNARDINOCAW-1","SAN BERNARDINOCAW-1",1200]
["SAN BERNARDINO","CA","W-2","SAN BERNARDINOCAW-2","SAN BERNARDINOCAW-2",1353]
["SAN BERNARDINO","CA","W-3","SAN BERNARDINOCAW-3","SAN BERNARDINOCAW-3",1461]
["SAN BERNARDINO","CA","W-4","SAN BERNARDINOCAW-4","SAN BERNARDINOCAW-4",1608]
["SAN BERNARDINO","CA","W-5","SAN BERNARDINOCAW-5","SAN BERNARDINOCAW-5",1641]
["SAN BERNARDINO","CA","O-1E","SAN BERNARDINOCAO-1E","SAN BERNARDINOCAO-1E",1296]
["SAN BERNARDINO","CA","O-2E","SAN BERNARDINOCAO-2E","SAN BERNARDINOCAO-2E",1428]
["SAN BERNARDINO","CA","O-3E","SAN BERNARDINOCAO-3E","SAN BERNARDINOCAO-3E",1599]
["SAN BERNARDINO","CA","O-1","SAN BERNARDINOCAO-1","SAN BERNARDINOCAO-1",1116]
["SAN BERNARDINO","CA","O-2","SAN BERNARDINOCAO-2","SAN BERNARDINOCAO-2",1266]
["SAN BERNARDINO","CA","O-3","SAN BERNARDINOCAO-3","SAN BERNARDINOCAO-3",1491]
["SAN BERNARDINO","CA","O-4","SAN BERNARDINOCAO-4","SAN BERNARDINOCAO-4",1635]
["SAN BERNARDINO","CA","O-5","SAN BERNARDINOCAO-5","SAN BERNARDINOCAO-5",1656]
["SAN BERNARDINO","CA","O-6","SAN BERNARDINOCAO-6","SAN BERNARDINOCAO-6",1689]
["SAN BERNARDINO","CA","O-7","SAN BERNARDINOCAO-7","SAN BERNARDINOCAO-7",1725]
["TWENTY NINE PALMS MCB","CA","E-1","TWENTY NINE PALMS MCBCAE-1","TWENTY NINE PALMS MCBCAE-1",720,720,720,720,720,825,915,966,1071,1128,933,1071,1134,1236,1305,1035,1116,1218,888,1011,1152,1296,1338,1410,1437]
["TWENTY NINE PALMS MCB","CA","E-2","TWENTY NINE PALMS MCBCAE-2","TWENTY NINE PALMS MCBCAE-2",720]
["TWENTY NINE PALMS MCB","CA","E-3","TWENTY NINE PALMS MCBCAE-3","TWENTY NINE PALMS MCBCAE-3",720]
["TWENTY NINE PALMS MCB","CA","E-4","TWENTY NINE PALMS MCBCAE-4","TWENTY NINE PALMS MCBCAE-4",720]
["TWENTY NINE PALMS MCB","CA","E-5","TWENTY NINE PALMS MCBCAE-5","TWENTY NINE PALMS MCBCAE-5",825]
["TWENTY NINE PALMS MCB","CA","E-6","TWENTY NINE PALMS MCBCAE-6","TWENTY NINE PALMS MCBCAE-6",915]
["TWENTY NINE PALMS MCB","CA","E-7","TWENTY NINE PALMS MCBCAE-7","TWENTY NINE PALMS MCBCAE-7",966]
["TWENTY NINE PALMS MCB","CA","E-8","TWENTY NINE PALMS MCBCAE-8","TWENTY NINE PALMS MCBCAE-8",1071]
["TWENTY NINE PALMS MCB","CA","E-9","TWENTY NINE PALMS MCBCAE-9","TWENTY NINE PALMS MCBCAE-9",1128]
["TWENTY NINE PALMS MCB","CA","W-1","TWENTY NINE PALMS MCBCAW-1","TWENTY NINE PALMS MCBCAW-1",933]
["TWENTY NINE PALMS MCB","CA","W-2","TWENTY NINE PALMS MCBCAW-2","TWENTY NINE PALMS MCBCAW-2",1071]
["TWENTY NINE PALMS MCB","CA","W-3","TWENTY NINE PALMS MCBCAW-3","TWENTY NINE PALMS MCBCAW-3",1134]
["TWENTY NINE PALMS MCB","CA","W-4","TWENTY NINE PALMS MCBCAW-4","TWENTY NINE PALMS MCBCAW-4",1236]
["TWENTY NINE PALMS MCB","CA","W-5","TWENTY NINE PALMS MCBCAW-5","TWENTY NINE PALMS MCBCAW-5",1305]
["TWENTY NINE PALMS MCB","CA","O-1E","TWENTY NINE PALMS MCBCAO-1E","TWENTY NINE PALMS MCBCAO-1E",1035]
["TWENTY NINE PALMS MCB","CA","O-2E","TWENTY NINE PALMS MCBCAO-2E","TWENTY NINE PALMS MCBCAO-2E",1116]
["TWENTY NINE PALMS MCB","CA","O-3E",{"$f":"A834&B834&C834","v":"TWENTY NINE PALMS MCBCAO-3E"},"TWENTY NINE PALMS MCBCAO-3E",1218]
["TWENTY NINE PALMS MCB","CA","O-1","TWENTY NINE PALMS MCBCAO-1","TWENTY NINE PALMS MCBCAO-1",888]
["TWENTY NINE PALMS MCB","CA","O-2","TWENTY NINE PALMS MCBCAO-2","TWENTY NINE PALMS MCBCAO-2",1011]
["TWENTY NINE PALMS MCB","CA","O-3","TWENTY NINE PALMS MCBCAO-3","TWENTY NINE PALMS MCBCAO-3",1152]
["TWENTY NINE PALMS MCB","CA","O-4","TWENTY NINE PALMS MCBCAO-4","TWENTY NINE PALMS MCBCAO-4",1296]
["TWENTY NINE PALMS MCB","CA","O-5","TWENTY NINE PALMS MCBCAO-5","TWENTY NINE PALMS MCBCAO-5",1338]
["TWENTY NINE PALMS MCB","CA","O-6","TWENTY NINE PALMS MCBCAO-6","TWENTY NINE PALMS MCBCAO-6",1410]
["TWENTY NINE PALMS MCB","CA","O-7","TWENTY NINE PALMS MCBCAO-7","TWENTY NINE PALMS MCBCAO-7",1437]
["BEALE AFB","CA","E-1","BEALE AFBCAE-1","BEALE AFBCAE-1",927,927,927,927,927,1077,1164,1239,1344,1437,1203,1341,1386,1482,1626,1317,1374,1467,1152,1290,1401,1605,1704,1848,1884]
["BEALE AFB","CA","E-2","BEALE AFBCAE-2","BEALE AFBCAE-2",927]
["BEALE AFB","CA","E-3","BEALE AFBCAE-3","BEALE AFBCAE-3",927]
["BEALE AFB","CA","E-4","BEALE AFBCAE-4","BEALE AFBCAE-4",927]
["BEALE AFB","CA","E-5","BEALE AFBCAE-5","BEALE AFBCAE-5",1077]
["BEALE AFB","CA","E-6","BEALE AFBCAE-6","BEALE AFBCAE-6",1164]
["BEALE AFB","CA","E-7","BEALE AFBCAE-7","BEALE AFBCAE-7",1239]
["BEALE AFB","CA","E-8","BEALE AFBCAE-8","BEALE AFBCAE-8",1344]
["BEALE AFB","CA","E-9","BEALE AFBCAE-9","BEALE AFBCAE-9",1437]
["BEALE AFB","CA","W-1","BEALE AFBCAW-1","BEALE AFBCAW-1",1203]
["BEALE AFB","CA","W-2","BEALE AFBCAW-2","BEALE AFBCAW-2",1341]
["BEALE AFB","CA","W-3","BEALE AFBCAW-3","BEALE AFBCAW-3",1386]
["BEALE AFB","CA","W-4","BEALE AFBCAW-4","BEALE AFBCAW-4",1482]
["BEALE AFB","CA","W-5","BEALE AFBCAW-5","BEALE AFBCAW-5",1626]
["BEALE AFB","CA","O-1E","BEALE AFBCAO-1E","BEALE AFBCAO-1E",1317]
["BEALE AFB","CA","O-2E","BEALE AFBCAO-2E","BEALE AFBCAO-2E",1374]
["BEALE AFB","CA","O-3E","BEALE AFBCAO-3E","BEALE AFBCAO-3E",1467]
["BEALE AFB","CA","O-1","BEALE AFBCAO-1","BEALE AFBCAO-1",1152]
["BEALE AFB","CA","O-2","BEALE AFBCAO-2","BEALE AFBCAO-2",1290]
["BEALE AFB","CA","O-3","BEALE AFBCAO-3","BEALE AFBCAO-3",1401]
["BEALE AFB","CA","O-4","BEALE AFBCAO-4","BEALE AFBCAO-4",1605]
["BEALE AFB","CA","O-5","BEALE AFBCAO-5","BEALE AFBCAO-5",1704]
["BEALE AFB","CA","O-6","BEALE AFBCAO-6","BEALE AFBCAO-6",1848]
["BEALE AFB","CA","O-7","BEALE AFBCAO-7","BEALE AFBCAO-7",1884]
["SACRAMENTO","CA","E-1","SACRAMENTOCAE-1","SACRAMENTOCAE-1",1149,1149,1149,1149,1149,1302,1398,1536,1713,1767,1470,1713,1773,1869,1938,1680,1755,1854,1377,1626,1791,1929,1974,2046,2085]
["SACRAMENTO","CA","E-2","SACRAMENTOCAE-2","SACRAMENTOCAE-2",1149]
["SACRAMENTO","CA","E-3","SACRAMENTOCAE-3","SACRAMENTOCAE-3",1149]
["SACRAMENTO","CA","E-4","SACRAMENTOCAE-4","SACRAMENTOCAE-4",1149]
["SACRAMENTO","CA","E-5","SACRAMENTOCAE-5","SACRAMENTOCAE-5",1302]
["SACRAMENTO","CA","E-6","SACRAMENTOCAE-6","SACRAMENTOCAE-6",1398]
["SACRAMENTO","CA","E-7","SACRAMENTOCAE-7","SACRAMENTOCAE-7",1536]
["SACRAMENTO","CA","E-8","SACRAMENTOCAE-8","SACRAMENTOCAE-8",1713]
["SACRAMENTO","CA","E-9","SACRAMENTOCAE-9","SACRAMENTOCAE-9",1767]
["SACRAMENTO","CA","W-1","SACRAMENTOCAW-1","SACRAMENTOCAW-1",1470]
["SACRAMENTO","CA","W-2","SACRAMENTOCAW-2","SACRAMENTOCAW-2",1713]
["SACRAMENTO","CA","W-3","SACRAMENTOCAW-3","SACRAMENTOCAW-3",1773]
["SACRAMENTO","CA","W-4","SACRAMENTOCAW-4","SACRAMENTOCAW-4",1869]
["SACRAMENTO","CA","W-5","SACRAMENTOCAW-5","SACRAMENTOCAW-5",1938]
["SACRAMENTO","CA","O-1E","SACRAMENTOCAO-1E","SACRAMENTOCAO-1E",1680]
["SACRAMENTO","CA","O-2E","SACRAMENTOCAO-2E","SACRAMENTOCAO-2E",1755]
["SACRAMENTO","CA","O-3E","SACRAMENTOCAO-3E","SACRAMENTOCAO-3E",1854]
["SACRAMENTO","CA","O-1","SACRAMENTOCAO-1","SACRAMENTOCAO-1",1377]
["SACRAMENTO","CA","O-2","SACRAMENTOCAO-2","SACRAMENTOCAO-2",1626]
["SACRAMENTO","CA","O-3","SACRAMENTOCAO-3","SACRAMENTOCAO-3",1791]
["SACRAMENTO","CA","O-4","SACRAMENTOCAO-4","SACRAMENTOCAO-4",1929]
["SACRAMENTO","CA","O-5","SACRAMENTOCAO-5","SACRAMENTOCAO-5",1974]
["SACRAMENTO","CA","O-6","SACRAMENTOCAO-6","SACRAMENTOCAO-6",2046]
["SACRAMENTO","CA","O-7","SACRAMENTOCAO-7","SACRAMENTOCAO-7",2085]
["STOCKTON","CA","E-1","STOCKTONCAE-1","STOCKTONCAE-1",891,891,891,891,891,978,1044,1125,1254,1308,1083,1251,1311,1404,1467,1221,1296,1389,1020,1185,1329,1458,1497,1560,1593]
["STOCKTON","CA","E-2","STOCKTONCAE-2","STOCKTONCAE-2",891]
["STOCKTON","CA","E-3","STOCKTONCAE-3","STOCKTONCAE-3",891]
["STOCKTON","CA","E-4","STOCKTONCAE-4","STOCKTONCAE-4",891]
["STOCKTON","CA","E-5","STOCKTONCAE-5","STOCKTONCAE-5",978]
["STOCKTON","CA","E-6","STOCKTONCAE-6","STOCKTONCAE-6",1044]
["STOCKTON","CA","E-7","STOCKTONCAE-7","STOCKTONCAE-7",1125]
["STOCKTON","CA","E-8","STOCKTONCAE-8","STOCKTONCAE-8",1254]
["STOCKTON","CA","E-9",{"$f":"A898&B898&C898","v":"STOCKTONCAE-9"},"STOCKTONCAE-9",1308]
["STOCKTON","CA","W-1","STOCKTONCAW-1","STOCKTONCAW-1",1083]
["STOCKTON","CA","W-2","STOCKTONCAW-2","STOCKTONCAW-2",1251]
["STOCKTON","CA","W-3","STOCKTONCAW-3","STOCKTONCAW-3",1311]
["STOCKTON","CA","W-4","STOCKTONCAW-4","STOCKTONCAW-4",1404]
["STOCKTON","CA","W-5","STOCKTONCAW-5","STOCKTONCAW-5",1467]
["STOCKTON","CA","O-1E","STOCKTONCAO-1E","STOCKTONCAO-1E",1221]
["STOCKTON","CA","O-2E","STOCKTONCAO-2E","STOCKTONCAO-2E",1296]
["STOCKTON","CA","O-3E","STOCKTONCAO-3E","STOCKTONCAO-3E",1389]
["STOCKTON","CA","O-1","STOCKTONCAO-1","STOCKTONCAO-1",1020]
["STOCKTON","CA","O-2","STOCKTONCAO-2","STOCKTONCAO-2",1185]
["STOCKTON","CA","O-3","STOCKTONCAO-3","STOCKTONCAO-3",1329]
["STOCKTON","CA","O-4","STOCKTONCAO-4","STOCKTONCAO-4",1458]
["STOCKTON","CA","O-5","STOCKTONCAO-5","STOCKTONCAO-5",1497]
["STOCKTON","CA","O-6","STOCKTONCAO-6","STOCKTONCAO-6",1560]
["STOCKTON","CA","O-7","STOCKTONCAO-7","STOCKTONCAO-7",1593]
["VALLEJO/TRAVIS AFB","CA","E-1","VALLEJO/TRAVIS AFBCAE-1","VALLEJO/TRAVIS AFBCAE-1",1332,1332,1332,1332,1332,1476,1554,1602,1689,1746,1578,1689,1752,1851,1923,1653,1734,1833,1545,1635,1770,1914,1959,2034,2076]
["VALLEJO/TRAVIS AFB","CA","E-2","VALLEJO/TRAVIS AFBCAE-2","VALLEJO/TRAVIS AFBCAE-2",1332]
["VALLEJO/TRAVIS AFB","CA","E-3","VALLEJO/TRAVIS AFBCAE-3","VALLEJO/TRAVIS AFBCAE-3",1332]
["VALLEJO/TRAVIS AFB","CA","E-4","VALLEJO/TRAVIS AFBCAE-4","VALLEJO/TRAVIS AFBCAE-4",1332]
["VALLEJO/TRAVIS AFB","CA","E-5","VALLEJO/TRAVIS AFBCAE-5","VALLEJO/TRAVIS AFBCAE-5",1476]
["VALLEJO/TRAVIS AFB","CA","E-6","VALLEJO/TRAVIS AFBCAE-6","VALLEJO/TRAVIS AFBCAE-6",1554]
["VALLEJO/TRAVIS AFB","CA","E-7","VALLEJO/TRAVIS AFBCAE-7","VALLEJO/TRAVIS AFBCAE-7",1602]
["VALLEJO/TRAVIS AFB","CA","E-8","VALLEJO/TRAVIS AFBCAE-8","VALLEJO/TRAVIS AFBCAE-8",1689]
["VALLEJO/TRAVIS AFB","CA","E-9","VALLEJO/TRAVIS AFBCAE-9","VALLEJO/TRAVIS AFBCAE-9",1746]
["VALLEJO/TRAVIS AFB","CA","W-1","VALLEJO/TRAVIS AFBCAW-1","VALLEJO/TRAVIS AFBCAW-1",1578]
["VALLEJO/TRAVIS AFB","CA","W-2","VALLEJO/TRAVIS AFBCAW-2","VALLEJO/TRAVIS AFBCAW-2",1689]
["VALLEJO/TRAVIS AFB","CA","W-3","VALLEJO/TRAVIS AFBCAW-3","VALLEJO/TRAVIS AFBCAW-3",1752]
["VALLEJO/TRAVIS AFB","CA","W-4","VALLEJO/TRAVIS AFBCAW-4","VALLEJO/TRAVIS AFBCAW-4",1851]
["VALLEJO/TRAVIS AFB","CA","W-5","VALLEJO/TRAVIS AFBCAW-5","VALLEJO/TRAVIS AFBCAW-5",1923]
["VALLEJO/TRAVIS AFB","CA","O-1E","VALLEJO/TRAVIS AFBCAO-1E","VALLEJO/TRAVIS AFBCAO-1E",1653]
["VALLEJO/TRAVIS AFB","CA","O-2E","VALLEJO/TRAVIS AFBCAO-2E","VALLEJO/TRAVIS AFBCAO-2E",1734]
["VALLEJO/TRAVIS AFB","CA","O-3E","VALLEJO/TRAVIS AFBCAO-3E","VALLEJO/TRAVIS AFBCAO-3E",1833]
["VALLEJO/TRAVIS AFB","CA","O-1","VALLEJO/TRAVIS AFBCAO-1","VALLEJO/TRAVIS AFBCAO-1",1545]
["VALLEJO/TRAVIS AFB","CA","O-2","VALLEJO/TRAVIS AFBCAO-2","VALLEJO/TRAVIS AFBCAO-2",1635]
["VALLEJO/TRAVIS AFB","CA","O-3","VALLEJO/TRAVIS AFBCAO-3","VALLEJO/TRAVIS AFBCAO-3",1770]
["VALLEJO/TRAVIS AFB","CA","O-4","VALLEJO/TRAVIS AFBCAO-4","VALLEJO/TRAVIS AFBCAO-4",1914]
["VALLEJO/TRAVIS AFB","CA","O-5","VALLEJO/TRAVIS AFBCAO-5","VALLEJO/TRAVIS AFBCAO-5",1959]
["VALLEJO/TRAVIS AFB","CA","O-6","VALLEJO/TRAVIS AFBCAO-6","VALLEJO/TRAVIS AFBCAO-6",2034]
["VALLEJO/TRAVIS AFB","CA","O-7","VALLEJO/TRAVIS AFBCAO-7","VALLEJO/TRAVIS AFBCAO-7",2076]
["LOS ANGELES","CA","E-1","LOS ANGELESCAE-1","LOS ANGELESCAE-1",1458,1458,1458,1458,1458,1662,1797,1917,2121,2229,1851,2118,2238,2427,2547,2052,2205,2397,1761,2004,2274,2532,2607,2733,2787]
["LOS ANGELES","CA","E-2","LOS ANGELESCAE-2","LOS ANGELESCAE-2",1458]
["LOS ANGELES","CA","E-3","LOS ANGELESCAE-3","LOS ANGELESCAE-3",1458]
["LOS ANGELES","CA","E-4","LOS ANGELESCAE-4","LOS ANGELESCAE-4",1458]
["LOS ANGELES","CA","E-5","LOS ANGELESCAE-5","LOS ANGELESCAE-5",1662]
["LOS ANGELES","CA","E-6","LOS ANGELESCAE-6","LOS ANGELESCAE-6",1797]
["LOS ANGELES","CA","E-7","LOS ANGELESCAE-7","LOS ANGELESCAE-7",1917]
["LOS ANGELES","CA","E-8","LOS ANGELESCAE-8","LOS ANGELESCAE-8",2121]
["LOS ANGELES","CA","E-9","LOS ANGELESCAE-9","LOS ANGELESCAE-9",2229]
["LOS ANGELES","CA","W-1","LOS ANGELESCAW-1","LOS ANGELESCAW-1",1851]
["LOS ANGELES","CA","W-2","LOS ANGELESCAW-2","LOS ANGELESCAW-2",2118]
["LOS ANGELES","CA","W-3","LOS ANGELESCAW-3","LOS ANGELESCAW-3",2238]
["LOS ANGELES","CA","W-4","LOS ANGELESCAW-4","LOS ANGELESCAW-4",2427]
["LOS ANGELES","CA","W-5","LOS ANGELESCAW-5","LOS ANGELESCAW-5",2547]
["LOS ANGELES","CA","O-1E","LOS ANGELESCAO-1E","LOS ANGELESCAO-1E",2052]
["LOS ANGELES","CA","O-2E","LOS ANGELESCAO-2E","LOS ANGELESCAO-2E",2205]
["LOS ANGELES","CA","O-3E","LOS ANGELESCAO-3E","LOS ANGELESCAO-3E",2397]
["LOS ANGELES","CA","O-1","LOS ANGELESCAO-1","LOS ANGELESCAO-1",1761]
["LOS ANGELES","CA","O-2","LOS ANGELESCAO-2","LOS ANGELESCAO-2",2004]
["LOS ANGELES","CA","O-3","LOS ANGELESCAO-3","LOS ANGELESCAO-3",2274]
["LOS ANGELES","CA","O-4","LOS ANGELESCAO-4","LOS ANGELESCAO-4",2532]
["LOS ANGELES","CA","O-5","LOS ANGELESCAO-5","LOS ANGELESCAO-5",2607]
["LOS ANGELES","CA","O-6","LOS ANGELESCAO-6","LOS ANGELESCAO-6",2733]
["LOS ANGELES","CA","O-7","LOS ANGELESCAO-7","LOS ANGELESCAO-7",2787]
["SAN DIEGO","CA","E-1",{"$f":"A962&B962&C962","v":"SAN DIEGOCAE-1"},"SAN DIEGOCAE-1",1419,1419,1419,1419,1419,1653,1800,1899,2025,2067,1851,2025,2073,2151,2226,1998,2058,2133,1785,1962,2085,2217,2262,2337,2385]
["SAN DIEGO","CA","E-2","SAN DIEGOCAE-2","SAN DIEGOCAE-2",1419]
["SAN DIEGO","CA","E-3","SAN DIEGOCAE-3","SAN DIEGOCAE-3",1419]
["SAN DIEGO","CA","E-4","SAN DIEGOCAE-4","SAN DIEGOCAE-4",1419]
["SAN DIEGO","CA","E-5","SAN DIEGOCAE-5","SAN DIEGOCAE-5",1653]
["SAN DIEGO","CA","E-6","SAN DIEGOCAE-6","SAN DIEGOCAE-6",1800]
["SAN DIEGO","CA","E-7","SAN DIEGOCAE-7","SAN DIEGOCAE-7",1899]
["SAN DIEGO","CA","E-8","SAN DIEGOCAE-8","SAN DIEGOCAE-8",2025]
["SAN DIEGO","CA","E-9","SAN DIEGOCAE-9","SAN DIEGOCAE-9",2067]
["SAN DIEGO","CA","W-1","SAN DIEGOCAW-1","SAN DIEGOCAW-1",1851]
["SAN DIEGO","CA","W-2","SAN DIEGOCAW-2","SAN DIEGOCAW-2",2025]
["SAN DIEGO","CA","W-3","SAN DIEGOCAW-3","SAN DIEGOCAW-3",2073]
["SAN DIEGO","CA","W-4","SAN DIEGOCAW-4","SAN DIEGOCAW-4",2151]
["SAN DIEGO","CA","W-5","SAN DIEGOCAW-5","SAN DIEGOCAW-5",2226]
["SAN DIEGO","CA","O-1E","SAN DIEGOCAO-1E","SAN DIEGOCAO-1E",1998]
["SAN DIEGO","CA","O-2E","SAN DIEGOCAO-2E","SAN DIEGOCAO-2E",2058]
["SAN DIEGO","CA","O-3E","SAN DIEGOCAO-3E","SAN DIEGOCAO-3E",2133]
["SAN DIEGO","CA","O-1","SAN DIEGOCAO-1","SAN DIEGOCAO-1",1785]
["SAN DIEGO","CA","O-2","SAN DIEGOCAO-2","SAN DIEGOCAO-2",1962]
["SAN DIEGO","CA","O-3","SAN DIEGOCAO-3","SAN DIEGOCAO-3",2085]
["SAN DIEGO","CA","O-4","SAN DIEGOCAO-4","SAN DIEGOCAO-4",2217]
["SAN DIEGO","CA","O-5","SAN DIEGOCAO-5","SAN DIEGOCAO-5",2262]
["SAN DIEGO","CA","O-6","SAN DIEGOCAO-6","SAN DIEGOCAO-6",2337]
["SAN DIEGO","CA","O-7","SAN DIEGOCAO-7","SAN DIEGOCAO-7",2385]
["MONTEREY","CA","E-1","MONTEREYCAE-1","MONTEREYCAE-1",1314,1314,1314,1314,1314,1464,1758,1845,2028,2151,1761,2025,2163,2373,2487,1950,2124,2343,1557,1884,2202,2472,2544,2664,2715]
["MONTEREY","CA","E-2","MONTEREYCAE-2","MONTEREYCAE-2",1314]
["MONTEREY","CA","E-3","MONTEREYCAE-3","MONTEREYCAE-3",1314]
["MONTEREY","CA","E-4","MONTEREYCAE-4","MONTEREYCAE-4",1314]
["MONTEREY","CA","E-5","MONTEREYCAE-5","MONTEREYCAE-5",1464]
["MONTEREY","CA","E-6","MONTEREYCAE-6","MONTEREYCAE-6",1758]
["MONTEREY","CA","E-7","MONTEREYCAE-7","MONTEREYCAE-7",1845]
["MONTEREY","CA","E-8","MONTEREYCAE-8","MONTEREYCAE-8",2028]
["MONTEREY","CA","E-9","MONTEREYCAE-9","MONTEREYCAE-9",2151]
["MONTEREY","CA","W-1","MONTEREYCAW-1","MONTEREYCAW-1",1761]
["MONTEREY","CA","W-2","MONTEREYCAW-2","MONTEREYCAW-2",2025]
["MONTEREY","CA","W-3","MONTEREYCAW-3","MONTEREYCAW-3",2163]
["MONTEREY","CA","W-4","MONTEREYCAW-4","MONTEREYCAW-4",2373]
["MONTEREY","CA","W-5","MONTEREYCAW-5","MONTEREYCAW-5",2487]
["MONTEREY","CA","O-1E","MONTEREYCAO-1E","MONTEREYCAO-1E",1950]
["MONTEREY","CA","O-2E","MONTEREYCAO-2E","MONTEREYCAO-2E",2124]
["MONTEREY","CA","O-3E","MONTEREYCAO-3E","MONTEREYCAO-3E",2343]
["MONTEREY","CA","O-1","MONTEREYCAO-1","MONTEREYCAO-1",1557]
["MONTEREY","CA","O-2","MONTEREYCAO-2","MONTEREYCAO-2",1884]
["MONTEREY","CA","O-3","MONTEREYCAO-3","MONTEREYCAO-3",2202]
["MONTEREY","CA","O-4","MONTEREYCAO-4","MONTEREYCAO-4",2472]
["MONTEREY","CA","O-5","MONTEREYCAO-5","MONTEREYCAO-5",2544]
["MONTEREY","CA","O-6","MONTEREYCAO-6","MONTEREYCAO-6",2664]
["MONTEREY","CA","O-7","MONTEREYCAO-7","MONTEREYCAO-7",2715]
["BAKERSFIELD","CA","E-1","BAKERSFIELDCAE-1","BAKERSFIELDCAE-1",777,777,777,777,777,867,921,987,1068,1164,945,1059,1125,1239,1341,1020,1107,1215,912,1002,1146,1326,1392,1497,1527]
["BAKERSFIELD","CA","E-2","BAKERSFIELDCAE-2","BAKERSFIELDCAE-2",777]
["BAKERSFIELD","CA","E-3","BAKERSFIELDCAE-3","BAKERSFIELDCAE-3",777]
["BAKERSFIELD","CA","E-4","BAKERSFIELDCAE-4","BAKERSFIELDCAE-4",777]
["BAKERSFIELD","CA","E-5","BAKERSFIELDCAE-5","BAKERSFIELDCAE-5",867]
["BAKERSFIELD","CA","E-6","BAKERSFIELDCAE-6","BAKERSFIELDCAE-6",921]
["BAKERSFIELD","CA","E-7","BAKERSFIELDCAE-7","BAKERSFIELDCAE-7",987]
["BAKERSFIELD","CA","E-8","BAKERSFIELDCAE-8","BAKERSFIELDCAE-8",1068]
["BAKERSFIELD","CA","E-9","BAKERSFIELDCAE-9","BAKERSFIELDCAE-9",1164]
["BAKERSFIELD","CA","W-1","BAKERSFIELDCAW-1","BAKERSFIELDCAW-1",945]
["BAKERSFIELD","CA","W-2","BAKERSFIELDCAW-2","BAKERSFIELDCAW-2",1059]
["BAKERSFIELD","CA","W-3","BAKERSFIELDCAW-3","BAKERSFIELDCAW-3",1125]
["BAKERSFIELD","CA","W-4","BAKERSFIELDCAW-4","BAKERSFIELDCAW-4",1239]
["BAKERSFIELD","CA","W-5","BAKERSFIELDCAW-5","BAKERSFIELDCAW-5",1341]
["BAKERSFIELD","CA","O-1E","BAKERSFIELDCAO-1E","BAKERSFIELDCAO-1E",1020]
["BAKERSFIELD","CA","O-2E","BAKERSFIELDCAO-2E","BAKERSFIELDCAO-2E",1107]
["BAKERSFIELD","CA","O-3E",{"$f":"A1026&B1026&C1026","v":"BAKERSFIELDCAO-3E"},"BAKERSFIELDCAO-3E",1215]
["BAKERSFIELD","CA","O-1","BAKERSFIELDCAO-1","BAKERSFIELDCAO-1",912]
["BAKERSFIELD","CA","O-2","BAKERSFIELDCAO-2","BAKERSFIELDCAO-2",1002]
["BAKERSFIELD","CA","O-3","BAKERSFIELDCAO-3","BAKERSFIELDCAO-3",1146]
["BAKERSFIELD","CA","O-4","BAKERSFIELDCAO-4","BAKERSFIELDCAO-4",1326]
["BAKERSFIELD","CA","O-5","BAKERSFIELDCAO-5","BAKERSFIELDCAO-5",1392]
["BAKERSFIELD","CA","O-6","BAKERSFIELDCAO-6","BAKERSFIELDCAO-6",1497]
["BAKERSFIELD","CA","O-7","BAKERSFIELDCAO-7","BAKERSFIELDCAO-7",1527]
["RIVERSIDE","CA","E-1","RIVERSIDECAE-1","RIVERSIDECAE-1",1116,1116,1116,1116,1116,1254,1332,1497,1692,1725,1416,1692,1728,1785,1827,1671,1716,1773,1302,1608,1737,1821,1848,1890,1929]
["RIVERSIDE","CA","E-2","RIVERSIDECAE-2","RIVERSIDECAE-2",1116]
["RIVERSIDE","CA","E-3","RIVERSIDECAE-3","RIVERSIDECAE-3",1116]
["RIVERSIDE","CA","E-4","RIVERSIDECAE-4","RIVERSIDECAE-4",1116]
["RIVERSIDE","CA","E-5","RIVERSIDECAE-5","RIVERSIDECAE-5",1254]
["RIVERSIDE","CA","E-6","RIVERSIDECAE-6","RIVERSIDECAE-6",1332]
["RIVERSIDE","CA","E-7","RIVERSIDECAE-7","RIVERSIDECAE-7",1497]
["RIVERSIDE","CA","E-8","RIVERSIDECAE-8","RIVERSIDECAE-8",1692]
["RIVERSIDE","CA","E-9","RIVERSIDECAE-9","RIVERSIDECAE-9",1725]
["RIVERSIDE","CA","W-1","RIVERSIDECAW-1","RIVERSIDECAW-1",1416]
["RIVERSIDE","CA","W-2","RIVERSIDECAW-2","RIVERSIDECAW-2",1692]
["RIVERSIDE","CA","W-3","RIVERSIDECAW-3","RIVERSIDECAW-3",1728]
["RIVERSIDE","CA","W-4","RIVERSIDECAW-4","RIVERSIDECAW-4",1785]
["RIVERSIDE","CA","W-5","RIVERSIDECAW-5","RIVERSIDECAW-5",1827]
["RIVERSIDE","CA","O-1E","RIVERSIDECAO-1E","RIVERSIDECAO-1E",1671]
["RIVERSIDE","CA","O-2E","RIVERSIDECAO-2E","RIVERSIDECAO-2E",1716]
["RIVERSIDE","CA","O-3E","RIVERSIDECAO-3E","RIVERSIDECAO-3E",1773]
["RIVERSIDE","CA","O-1","RIVERSIDECAO-1","RIVERSIDECAO-1",1302]
["RIVERSIDE","CA","O-2","RIVERSIDECAO-2","RIVERSIDECAO-2",1608]
["RIVERSIDE","CA","O-3","RIVERSIDECAO-3","RIVERSIDECAO-3",1737]
["RIVERSIDE","CA","O-4","RIVERSIDECAO-4","RIVERSIDECAO-4",1821]
["RIVERSIDE","CA","O-5","RIVERSIDECAO-5","RIVERSIDECAO-5",1848]
["RIVERSIDE","CA","O-6","RIVERSIDECAO-6","RIVERSIDECAO-6",1890]
["RIVERSIDE","CA","O-7","RIVERSIDECAO-7","RIVERSIDECAO-7",1929]
["HUMBOLDT COUNTY","CA","E-1","HUMBOLDT COUNTYCAE-1","HUMBOLDT COUNTYCAE-1",768,768,768,768,768,870,1134,1158,1197,1320,1134,1194,1332,1521,1551,1161,1293,1512,927,1128,1371,1545,1566,1599,1629]
["HUMBOLDT COUNTY","CA","E-2","HUMBOLDT COUNTYCAE-2","HUMBOLDT COUNTYCAE-2",768]
["HUMBOLDT COUNTY","CA","E-3","HUMBOLDT COUNTYCAE-3","HUMBOLDT COUNTYCAE-3",768]
["HUMBOLDT COUNTY","CA","E-4","HUMBOLDT COUNTYCAE-4","HUMBOLDT COUNTYCAE-4",768]
["HUMBOLDT COUNTY","CA","E-5","HUMBOLDT COUNTYCAE-5","HUMBOLDT COUNTYCAE-5",870]
["HUMBOLDT COUNTY","CA","E-6","HUMBOLDT COUNTYCAE-6","HUMBOLDT COUNTYCAE-6",1134]
["HUMBOLDT COUNTY","CA","E-7","HUMBOLDT COUNTYCAE-7","HUMBOLDT COUNTYCAE-7",1158]
["HUMBOLDT COUNTY","CA","E-8","HUMBOLDT COUNTYCAE-8","HUMBOLDT COUNTYCAE-8",1197]
["HUMBOLDT COUNTY","CA","E-9","HUMBOLDT COUNTYCAE-9","HUMBOLDT COUNTYCAE-9",1320]
["HUMBOLDT COUNTY","CA","W-1","HUMBOLDT COUNTYCAW-1","HUMBOLDT COUNTYCAW-1",1134]
["HUMBOLDT COUNTY","CA","W-2","HUMBOLDT COUNTYCAW-2","HUMBOLDT COUNTYCAW-2",1194]
["HUMBOLDT COUNTY","CA","W-3","HUMBOLDT COUNTYCAW-3","HUMBOLDT COUNTYCAW-3",1332]
["HUMBOLDT COUNTY","CA","W-4","HUMBOLDT COUNTYCAW-4","HUMBOLDT COUNTYCAW-4",1521]
["HUMBOLDT COUNTY","CA","W-5","HUMBOLDT COUNTYCAW-5","HUMBOLDT COUNTYCAW-5",1551]
["HUMBOLDT COUNTY","CA","O-1E","HUMBOLDT COUNTYCAO-1E","HUMBOLDT COUNTYCAO-1E",1161]
["HUMBOLDT COUNTY","CA","O-2E","HUMBOLDT COUNTYCAO-2E","HUMBOLDT COUNTYCAO-2E",1293]
["HUMBOLDT COUNTY","CA","O-3E","HUMBOLDT COUNTYCAO-3E","HUMBOLDT COUNTYCAO-3E",1512]
["HUMBOLDT COUNTY","CA","O-1","HUMBOLDT COUNTYCAO-1","HUMBOLDT COUNTYCAO-1",927]
["HUMBOLDT COUNTY","CA","O-2","HUMBOLDT COUNTYCAO-2","HUMBOLDT COUNTYCAO-2",1128]
["HUMBOLDT COUNTY","CA","O-3","HUMBOLDT COUNTYCAO-3","HUMBOLDT COUNTYCAO-3",1371]
["HUMBOLDT COUNTY","CA","O-4","HUMBOLDT COUNTYCAO-4","HUMBOLDT COUNTYCAO-4",1545]
["HUMBOLDT COUNTY","CA","O-5","HUMBOLDT COUNTYCAO-5","HUMBOLDT COUNTYCAO-5",1566]
["HUMBOLDT COUNTY","CA","O-6","HUMBOLDT COUNTYCAO-6","HUMBOLDT COUNTYCAO-6",1599]
["HUMBOLDT COUNTY","CA","O-7","HUMBOLDT COUNTYCAO-7","HUMBOLDT COUNTYCAO-7",1629]
["SANTA CLARA COUNTY","CA","E-1","SANTA CLARA COUNTYCAE-1","SANTA CLARA COUNTYCAE-1",1452,1452,1452,1452,1452,1650,1785,1947,2154,2217,1869,2151,2223,2337,2427,2112,2202,2313,1758,2052,2241,2415,2475,2568,2619]
["SANTA CLARA COUNTY","CA","E-2","SANTA CLARA COUNTYCAE-2","SANTA CLARA COUNTYCAE-2",1452]
["SANTA CLARA COUNTY","CA","E-3","SANTA CLARA COUNTYCAE-3","SANTA CLARA COUNTYCAE-3",1452]
["SANTA CLARA COUNTY","CA","E-4","SANTA CLARA COUNTYCAE-4","SANTA CLARA COUNTYCAE-4",1452]
["SANTA CLARA COUNTY","CA","E-5","SANTA CLARA COUNTYCAE-5","SANTA CLARA COUNTYCAE-5",1650]
["SANTA CLARA COUNTY","CA","E-6","SANTA CLARA COUNTYCAE-6","SANTA CLARA COUNTYCAE-6",1785]
["SANTA CLARA COUNTY","CA","E-7","SANTA CLARA COUNTYCAE-7","SANTA CLARA COUNTYCAE-7",1947]
["SANTA CLARA COUNTY","CA","E-8","SANTA CLARA COUNTYCAE-8","SANTA CLARA COUNTYCAE-8",2154]
["SANTA CLARA COUNTY","CA","E-9",{"$f":"A1090&B1090&C1090","v":"SANTA CLARA COUNTYCAE-9"},"SANTA CLARA COUNTYCAE-9",2217]
["SANTA CLARA COUNTY","CA","W-1","SANTA CLARA COUNTYCAW-1","SANTA CLARA COUNTYCAW-1",1869]
["SANTA CLARA COUNTY","CA","W-2","SANTA CLARA COUNTYCAW-2","SANTA CLARA COUNTYCAW-2",2151]
["SANTA CLARA COUNTY","CA","W-3","SANTA CLARA COUNTYCAW-3","SANTA CLARA COUNTYCAW-3",2223]
["SANTA CLARA COUNTY","CA","W-4","SANTA CLARA COUNTYCAW-4","SANTA CLARA COUNTYCAW-4",2337]
["SANTA CLARA COUNTY","CA","W-5","SANTA CLARA COUNTYCAW-5","SANTA CLARA COUNTYCAW-5",2427]
["SANTA CLARA COUNTY","CA","O-1E","SANTA CLARA COUNTYCAO-1E","SANTA CLARA COUNTYCAO-1E",2112]
["SANTA CLARA COUNTY","CA","O-2E","SANTA CLARA COUNTYCAO-2E","SANTA CLARA COUNTYCAO-2E",2202]
["SANTA CLARA COUNTY","CA","O-3E","SANTA CLARA COUNTYCAO-3E","SANTA CLARA COUNTYCAO-3E",2313]
["SANTA CLARA COUNTY","CA","O-1","SANTA CLARA COUNTYCAO-1","SANTA CLARA COUNTYCAO-1",1758]
["SANTA CLARA COUNTY","CA","O-2","SANTA CLARA COUNTYCAO-2","SANTA CLARA COUNTYCAO-2",2052]
["SANTA CLARA COUNTY","CA","O-3","SANTA CLARA COUNTYCAO-3","SANTA CLARA COUNTYCAO-3",2241]
["SANTA CLARA COUNTY","CA","O-4","SANTA CLARA COUNTYCAO-4","SANTA CLARA COUNTYCAO-4",2415]
["SANTA CLARA COUNTY","CA","O-5","SANTA CLARA COUNTYCAO-5","SANTA CLARA COUNTYCAO-5",2475]
["SANTA CLARA COUNTY","CA","O-6","SANTA CLARA COUNTYCAO-6","SANTA CLARA COUNTYCAO-6",2568]
["SANTA CLARA COUNTY","CA","O-7","SANTA CLARA COUNTYCAO-7","SANTA CLARA COUNTYCAO-7",2619]
["SAN LUIS OBISPO","CA","E-1","SAN LUIS OBISPOCAE-1","SAN LUIS OBISPOCAE-1",1038,1038,1038,1038,1038,1158,1398,1452,1578,1689,1398,1575,1698,1881,1956,1506,1662,1863,1260,1464,1734,1947,1995,2073,2115]
["SAN LUIS OBISPO","CA","E-2","SAN LUIS OBISPOCAE-2","SAN LUIS OBISPOCAE-2",1038]
["SAN LUIS OBISPO","CA","E-3","SAN LUIS OBISPOCAE-3","SAN LUIS OBISPOCAE-3",1038]
["SAN LUIS OBISPO","CA","E-4","SAN LUIS OBISPOCAE-4","SAN LUIS OBISPOCAE-4",1038]
["SAN LUIS OBISPO","CA","E-5","SAN LUIS OBISPOCAE-5","SAN LUIS OBISPOCAE-5",1158]
["SAN LUIS OBISPO","CA","E-6","SAN LUIS OBISPOCAE-6","SAN LUIS OBISPOCAE-6",1398]
["SAN LUIS OBISPO","CA","E-7","SAN LUIS OBISPOCAE-7","SAN LUIS OBISPOCAE-7",1452]
["SAN LUIS OBISPO","CA","E-8","SAN LUIS OBISPOCAE-8","SAN LUIS OBISPOCAE-8",1578]
["SAN LUIS OBISPO","CA","E-9","SAN LUIS OBISPOCAE-9","SAN LUIS OBISPOCAE-9",1689]
["SAN LUIS OBISPO","CA","W-1","SAN LUIS OBISPOCAW-1","SAN LUIS OBISPOCAW-1",1398]
["SAN LUIS OBISPO","CA","W-2","SAN LUIS OBISPOCAW-2","SAN LUIS OBISPOCAW-2",1575]
["SAN LUIS OBISPO","CA","W-3","SAN LUIS OBISPOCAW-3","SAN LUIS OBISPOCAW-3",1698]
["SAN LUIS OBISPO","CA","W-4","SAN LUIS OBISPOCAW-4","SAN LUIS OBISPOCAW-4",1881]
["SAN LUIS OBISPO","CA","W-5","SAN LUIS OBISPOCAW-5","SAN LUIS OBISPOCAW-5",1956]
["SAN LUIS OBISPO","CA","O-1E","SAN LUIS OBISPOCAO-1E","SAN LUIS OBISPOCAO-1E",1506]
["SAN LUIS OBISPO","CA","O-2E","SAN LUIS OBISPOCAO-2E","SAN LUIS OBISPOCAO-2E",1662]
["SAN LUIS OBISPO","CA","O-3E","SAN LUIS OBISPOCAO-3E","SAN LUIS OBISPOCAO-3E",1863]
["SAN LUIS OBISPO","CA","O-1","SAN LUIS OBISPOCAO-1","SAN LUIS OBISPOCAO-1",1260]
["SAN LUIS OBISPO","CA","O-2","SAN LUIS OBISPOCAO-2","SAN LUIS OBISPOCAO-2",1464]
["SAN LUIS OBISPO","CA","O-3","SAN LUIS OBISPOCAO-3","SAN LUIS OBISPOCAO-3",1734]
["SAN LUIS OBISPO","CA","O-4","SAN LUIS OBISPOCAO-4","SAN LUIS OBISPOCAO-4",1947]
["SAN LUIS OBISPO","CA","O-5","SAN LUIS OBISPOCAO-5","SAN LUIS OBISPOCAO-5",1995]
["SAN LUIS OBISPO","CA","O-6","SAN LUIS OBISPOCAO-6","SAN LUIS OBISPOCAO-6",2073]
["SAN LUIS OBISPO","CA","O-7","SAN LUIS OBISPOCAO-7","SAN LUIS OBISPOCAO-7",2115]
["BRIDGEPORT","CA","E-1","BRIDGEPORTCAE-1","BRIDGEPORTCAE-1",1104,1104,1104,1104,1104,1329,1440,1455,1500,1545,1449,1497,1548,1623,1644,1470,1533,1617,1440,1464,1563,1641,1656,1677,1710]
["BRIDGEPORT","CA","E-2","BRIDGEPORTCAE-2","BRIDGEPORTCAE-2",1104]
["BRIDGEPORT","CA","E-3","BRIDGEPORTCAE-3","BRIDGEPORTCAE-3",1104]
["BRIDGEPORT","CA","E-4","BRIDGEPORTCAE-4","BRIDGEPORTCAE-4",1104]
["BRIDGEPORT","CA","E-5","BRIDGEPORTCAE-5","BRIDGEPORTCAE-5",1329]
["BRIDGEPORT","CA","E-6","BRIDGEPORTCAE-6","BRIDGEPORTCAE-6",1440]
["BRIDGEPORT","CA","E-7","BRIDGEPORTCAE-7","BRIDGEPORTCAE-7",1455]
["BRIDGEPORT","CA","E-8","BRIDGEPORTCAE-8","BRIDGEPORTCAE-8",1500]
["BRIDGEPORT","CA","E-9","BRIDGEPORTCAE-9","BRIDGEPORTCAE-9",1545]
["BRIDGEPORT","CA","W-1","BRIDGEPORTCAW-1","BRIDGEPORTCAW-1",1449]
["BRIDGEPORT","CA","W-2","BRIDGEPORTCAW-2","BRIDGEPORTCAW-2",1497]
["BRIDGEPORT","CA","W-3","BRIDGEPORTCAW-3","BRIDGEPORTCAW-3",1548]
["BRIDGEPORT","CA","W-4","BRIDGEPORTCAW-4","BRIDGEPORTCAW-4",1623]
["BRIDGEPORT","CA","W-5","BRIDGEPORTCAW-5","BRIDGEPORTCAW-5",1644]
["BRIDGEPORT","CA","O-1E","BRIDGEPORTCAO-1E","BRIDGEPORTCAO-1E",1470]
["BRIDGEPORT","CA","O-2E","BRIDGEPORTCAO-2E","BRIDGEPORTCAO-2E",1533]
["BRIDGEPORT","CA","O-3E","BRIDGEPORTCAO-3E","BRIDGEPORTCAO-3E",1617]
["BRIDGEPORT","CA","O-1","BRIDGEPORTCAO-1","BRIDGEPORTCAO-1",1440]
["BRIDGEPORT","CA","O-2","BRIDGEPORTCAO-2","BRIDGEPORTCAO-2",1464]
["BRIDGEPORT","CA","O-3","BRIDGEPORTCAO-3","BRIDGEPORTCAO-3",1563]
["BRIDGEPORT","CA","O-4","BRIDGEPORTCAO-4","BRIDGEPORTCAO-4",1641]
["BRIDGEPORT","CA","O-5","BRIDGEPORTCAO-5","BRIDGEPORTCAO-5",1656]
["BRIDGEPORT","CA","O-6","BRIDGEPORTCAO-6","BRIDGEPORTCAO-6",1677]
["BRIDGEPORT","CA","O-7","BRIDGEPORTCAO-7","BRIDGEPORTCAO-7",1710]
["EL CENTRO","CA","E-1",{"$f":"A1154&B1154&C1154","v":"EL CENTROCAE-1"},"EL CENTROCAE-1",747,747,747,747,747,858,924,1002,1104,1143,963,1104,1149,1230,1320,1080,1134,1206,912,1050,1161,1308,1365,1458,1488]
["EL CENTRO","CA","E-2","EL CENTROCAE-2","EL CENTROCAE-2",747]
["EL CENTRO","CA","E-3","EL CENTROCAE-3","EL CENTROCAE-3",747]
["EL CENTRO","CA","E-4","EL CENTROCAE-4","EL CENTROCAE-4",747]
["EL CENTRO","CA","E-5","EL CENTROCAE-5","EL CENTROCAE-5",858]
["EL CENTRO","CA","E-6","EL CENTROCAE-6","EL CENTROCAE-6",924]
["EL CENTRO","CA","E-7","EL CENTROCAE-7","EL CENTROCAE-7",1002]
["EL CENTRO","CA","E-8","EL CENTROCAE-8","EL CENTROCAE-8",1104]
["EL CENTRO","CA","E-9","EL CENTROCAE-9","EL CENTROCAE-9",1143]
["EL CENTRO","CA","W-1","EL CENTROCAW-1","EL CENTROCAW-1",963]
["EL CENTRO","CA","W-2","EL CENTROCAW-2","EL CENTROCAW-2",1104]
["EL CENTRO","CA","W-3","EL CENTROCAW-3","EL CENTROCAW-3",1149]
["EL CENTRO","CA","W-4","EL CENTROCAW-4","EL CENTROCAW-4",1230]
["EL CENTRO","CA","W-5","EL CENTROCAW-5","EL CENTROCAW-5",1320]
["EL CENTRO","CA","O-1E","EL CENTROCAO-1E","EL CENTROCAO-1E",1080]
["EL CENTRO","CA","O-2E","EL CENTROCAO-2E","EL CENTROCAO-2E",1134]
["EL CENTRO","CA","O-3E","EL CENTROCAO-3E","EL CENTROCAO-3E",1206]
["EL CENTRO","CA","O-1","EL CENTROCAO-1","EL CENTROCAO-1",912]
["EL CENTRO","CA","O-2","EL CENTROCAO-2","EL CENTROCAO-2",1050]
["EL CENTRO","CA","O-3","EL CENTROCAO-3","EL CENTROCAO-3",1161]
["EL CENTRO","CA","O-4","EL CENTROCAO-4","EL CENTROCAO-4",1308]
["EL CENTRO","CA","O-5","EL CENTROCAO-5","EL CENTROCAO-5",1365]
["EL CENTRO","CA","O-6","EL CENTROCAO-6","EL CENTROCAO-6",1458]
["EL CENTRO","CA","O-7","EL CENTROCAO-7","EL CENTROCAO-7",1488]
["FORT BRAGG","CA","E-1","FORT BRAGGCAE-1","FORT BRAGGCAE-1",840,840,840,840,840,945,1059,1149,1248,1350,1059,1209,1314,1440,1563,1170,1296,1410,996,1134,1320,1545,1623,1749,1785]
["FORT BRAGG","CA","E-2","FORT BRAGGCAE-2","FORT BRAGGCAE-2",840]
["FORT BRAGG","CA","E-3","FORT BRAGGCAE-3","FORT BRAGGCAE-3",840]
["FORT BRAGG","CA","E-4","FORT BRAGGCAE-4","FORT BRAGGCAE-4",840]
["FORT BRAGG","CA","E-5","FORT BRAGGCAE-5","FORT BRAGGCAE-5",945]
["FORT BRAGG","CA","E-6","FORT BRAGGCAE-6","FORT BRAGGCAE-6",1059]
["FORT BRAGG","CA","E-7","FORT BRAGGCAE-7","FORT BRAGGCAE-7",1149]
["FORT BRAGG","CA","E-8","FORT BRAGGCAE-8","FORT BRAGGCAE-8",1248]
["FORT BRAGG","CA","E-9","FORT BRAGGCAE-9","FORT BRAGGCAE-9",1350]
["FORT BRAGG","CA","W-1","FORT BRAGGCAW-1","FORT BRAGGCAW-1",1059]
["FORT BRAGG","CA","W-2","FORT BRAGGCAW-2","FORT BRAGGCAW-2",1209]
["FORT BRAGG","CA","W-3","FORT BRAGGCAW-3","FORT BRAGGCAW-3",1314]
["FORT BRAGG","CA","W-4","FORT BRAGGCAW-4","FORT BRAGGCAW-4",1440]
["FORT BRAGG","CA","W-5","FORT BRAGGCAW-5","FORT BRAGGCAW-5",1563]
["FORT BRAGG","CA","O-1E","FORT BRAGGCAO-1E","FORT BRAGGCAO-1E",1170]
["FORT BRAGG","CA","O-2E","FORT BRAGGCAO-2E","FORT BRAGGCAO-2E",1296]
["FORT BRAGG","CA","O-3E","FORT BRAGGCAO-3E","FORT BRAGGCAO-3E",1410]
["FORT BRAGG","CA","O-1","FORT BRAGGCAO-1","FORT BRAGGCAO-1",996]
["FORT BRAGG","CA","O-2","FORT BRAGGCAO-2","FORT BRAGGCAO-2",1134]
["FORT BRAGG","CA","O-3","FORT BRAGGCAO-3","FORT BRAGGCAO-3",1320]
["FORT BRAGG","CA","O-4","FORT BRAGGCAO-4","FORT BRAGGCAO-4",1545]
["FORT BRAGG","CA","O-5","FORT BRAGGCAO-5","FORT BRAGGCAO-5",1623]
["FORT BRAGG","CA","O-6","FORT BRAGGCAO-6","FORT BRAGGCAO-6",1749]
["FORT BRAGG","CA","O-7","FORT BRAGGCAO-7","FORT BRAGGCAO-7",1785]
["EDWARDS AFB/PALMDALE","CA","E-1","EDWARDS AFB/PALMDALECAE-1","EDWARDS AFB/PALMDALECAE-1",990,990,990,990,990,1059,1212,1275,1377,1470,1215,1374,1479,1638,1722,1317,1449,1617,1092,1278,1509,1710,1764,1851,1890]
["EDWARDS AFB/PALMDALE","CA","E-2","EDWARDS AFB/PALMDALECAE-2","EDWARDS AFB/PALMDALECAE-2",990]
["EDWARDS AFB/PALMDALE","CA","E-3","EDWARDS AFB/PALMDALECAE-3","EDWARDS AFB/PALMDALECAE-3",990]
["EDWARDS AFB/PALMDALE","CA","E-4","EDWARDS AFB/PALMDALECAE-4","EDWARDS AFB/PALMDALECAE-4",990]
["EDWARDS AFB/PALMDALE","CA","E-5","EDWARDS AFB/PALMDALECAE-5","EDWARDS AFB/PALMDALECAE-5",1059]
["EDWARDS AFB/PALMDALE","CA","E-6","EDWARDS AFB/PALMDALECAE-6","EDWARDS AFB/PALMDALECAE-6",1212]
["EDWARDS AFB/PALMDALE","CA","E-7","EDWARDS AFB/PALMDALECAE-7","EDWARDS AFB/PALMDALECAE-7",1275]
["EDWARDS AFB/PALMDALE","CA","E-8","EDWARDS AFB/PALMDALECAE-8","EDWARDS AFB/PALMDALECAE-8",1377]
["EDWARDS AFB/PALMDALE","CA","E-9","EDWARDS AFB/PALMDALECAE-9","EDWARDS AFB/PALMDALECAE-9",1470]
["EDWARDS AFB/PALMDALE","CA","W-1","EDWARDS AFB/PALMDALECAW-1","EDWARDS AFB/PALMDALECAW-1",1215]
["EDWARDS AFB/PALMDALE","CA","W-2","EDWARDS AFB/PALMDALECAW-2","EDWARDS AFB/PALMDALECAW-2",1374]
["EDWARDS AFB/PALMDALE","CA","W-3","EDWARDS AFB/PALMDALECAW-3","EDWARDS AFB/PALMDALECAW-3",1479]
["EDWARDS AFB/PALMDALE","CA","W-4","EDWARDS AFB/PALMDALECAW-4","EDWARDS AFB/PALMDALECAW-4",1638]
["EDWARDS AFB/PALMDALE","CA","W-5","EDWARDS AFB/PALMDALECAW-5","EDWARDS AFB/PALMDALECAW-5",1722]
["EDWARDS AFB/PALMDALE","CA","O-1E","EDWARDS AFB/PALMDALECAO-1E","EDWARDS AFB/PALMDALECAO-1E",1317]
["EDWARDS AFB/PALMDALE","CA","O-2E","EDWARDS AFB/PALMDALECAO-2E","EDWARDS AFB/PALMDALECAO-2E",1449]
["EDWARDS AFB/PALMDALE","CA","O-3E",{"$f":"A1218&B1218&C1218","v":"EDWARDS AFB/PALMDALECAO-3E"},"EDWARDS AFB/PALMDALECAO-3E",1617]
["EDWARDS AFB/PALMDALE","CA","O-1","EDWARDS AFB/PALMDALECAO-1","EDWARDS AFB/PALMDALECAO-1",1092]
["EDWARDS AFB/PALMDALE","CA","O-2","EDWARDS AFB/PALMDALECAO-2","EDWARDS AFB/PALMDALECAO-2",1278]
["EDWARDS AFB/PALMDALE","CA","O-3","EDWARDS AFB/PALMDALECAO-3","EDWARDS AFB/PALMDALECAO-3",1509]
["EDWARDS AFB/PALMDALE","CA","O-4","EDWARDS AFB/PALMDALECAO-4","EDWARDS AFB/PALMDALECAO-4",1710]
["EDWARDS AFB/PALMDALE","CA","O-5","EDWARDS AFB/PALMDALECAO-5","EDWARDS AFB/PALMDALECAO-5",1764]
["EDWARDS AFB/PALMDALE","CA","O-6","EDWARDS AFB/PALMDALECAO-6","EDWARDS AFB/PALMDALECAO-6",1851]
["EDWARDS AFB/PALMDALE","CA","O-7","EDWARDS AFB/PALMDALECAO-7","EDWARDS AFB/PALMDALECAO-7",1890]
["DENVER","CO","E-1","DENVERCOE-1","DENVERCOE-1",963,963,963,963,963,1095,1191,1293,1485,1524,1218,1482,1527,1620,1755,1458,1515,1587,1110,1398,1539,1734,1821,1959,1998]
["DENVER","CO","E-2","DENVERCOE-2","DENVERCOE-2",963]
["DENVER","CO","E-3","DENVERCOE-3","DENVERCOE-3",963]
["DENVER","CO","E-4","DENVERCOE-4","DENVERCOE-4",963]
["DENVER","CO","E-5","DENVERCOE-5","DENVERCOE-5",1095]
["DENVER","CO","E-6","DENVERCOE-6","DENVERCOE-6",1191]
["DENVER","CO","E-7","DENVERCOE-7","DENVERCOE-7",1293]
["DENVER","CO","E-8","DENVERCOE-8","DENVERCOE-8",1485]
["DENVER","CO","E-9","DENVERCOE-9","DENVERCOE-9",1524]
["DENVER","CO","W-1","DENVERCOW-1","DENVERCOW-1",1218]
["DENVER","CO","W-2","DENVERCOW-2","DENVERCOW-2",1482]
["DENVER","CO","W-3","DENVERCOW-3","DENVERCOW-3",1527]
["DENVER","CO","W-4","DENVERCOW-4","DENVERCOW-4",1620]
["DENVER","CO","W-5","DENVERCOW-5","DENVERCOW-5",1755]
["DENVER","CO","O-1E","DENVERCOO-1E","DENVERCOO-1E",1458]
["DENVER","CO","O-2E","DENVERCOO-2E","DENVERCOO-2E",1515]
["DENVER","CO","O-3E","DENVERCOO-3E","DENVERCOO-3E",1587]
["DENVER","CO","O-1","DENVERCOO-1","DENVERCOO-1",1110]
["DENVER","CO","O-2","DENVERCOO-2","DENVERCOO-2",1398]
["DENVER","CO","O-3","DENVERCOO-3","DENVERCOO-3",1539]
["DENVER","CO","O-4","DENVERCOO-4","DENVERCOO-4",1734]
["DENVER","CO","O-5","DENVERCOO-5","DENVERCOO-5",1821]
["DENVER","CO","O-6","DENVERCOO-6","DENVERCOO-6",1959]
["DENVER","CO","O-7","DENVERCOO-7","DENVERCOO-7",1998]
["COLORADO SPRINGS","CO","E-1","COLORADO SPRINGSCOE-1","COLORADO SPRINGSCOE-1",825,825,825,825,825,924,987,1068,1173,1206,1029,1173,1209,1281,1371,1152,1200,1257,975,1122,1221,1359,1416,1509,1539]
["COLORADO SPRINGS","CO","E-2","COLORADO SPRINGSCOE-2","COLORADO SPRINGSCOE-2",825]
["COLORADO SPRINGS","CO","E-3","COLORADO SPRINGSCOE-3","COLORADO SPRINGSCOE-3",825]
["COLORADO SPRINGS","CO","E-4","COLORADO SPRINGSCOE-4","COLORADO SPRINGSCOE-4",825]
["COLORADO SPRINGS","CO","E-5","COLORADO SPRINGSCOE-5","COLORADO SPRINGSCOE-5",924]
["COLORADO SPRINGS","CO","E-6","COLORADO SPRINGSCOE-6","COLORADO SPRINGSCOE-6",987]
["COLORADO SPRINGS","CO","E-7","COLORADO SPRINGSCOE-7","COLORADO SPRINGSCOE-7",1068]
["COLORADO SPRINGS","CO","E-8","COLORADO SPRINGSCOE-8","COLORADO SPRINGSCOE-8",1173]
["COLORADO SPRINGS","CO","E-9","COLORADO SPRINGSCOE-9","COLORADO SPRINGSCOE-9",1206]
["COLORADO SPRINGS","CO","W-1","COLORADO SPRINGSCOW-1","COLORADO SPRINGSCOW-1",1029]
["COLORADO SPRINGS","CO","W-2","COLORADO SPRINGSCOW-2","COLORADO SPRINGSCOW-2",1173]
["COLORADO SPRINGS","CO","W-3","COLORADO SPRINGSCOW-3","COLORADO SPRINGSCOW-3",1209]
["COLORADO SPRINGS","CO","W-4","COLORADO SPRINGSCOW-4","COLORADO SPRINGSCOW-4",1281]
["COLORADO SPRINGS","CO","W-5","COLORADO SPRINGSCOW-5","COLORADO SPRINGSCOW-5",1371]
["COLORADO SPRINGS","CO","O-1E","COLORADO SPRINGSCOO-1E","COLORADO SPRINGSCOO-1E",1152]
["COLORADO SPRINGS","CO","O-2E","COLORADO SPRINGSCOO-2E","COLORADO SPRINGSCOO-2E",1200]
["COLORADO SPRINGS","CO","O-3E","COLORADO SPRINGSCOO-3E","COLORADO SPRINGSCOO-3E",1257]
["COLORADO SPRINGS","CO","O-1","COLORADO SPRINGSCOO-1","COLORADO SPRINGSCOO-1",975]
["COLORADO SPRINGS","CO","O-2","COLORADO SPRINGSCOO-2","COLORADO SPRINGSCOO-2",1122]
["COLORADO SPRINGS","CO","O-3","COLORADO SPRINGSCOO-3","COLORADO SPRINGSCOO-3",1221]
["COLORADO SPRINGS","CO","O-4","COLORADO SPRINGSCOO-4","COLORADO SPRINGSCOO-4",1359]
["COLORADO SPRINGS","CO","O-5","COLORADO SPRINGSCOO-5","COLORADO SPRINGSCOO-5",1416]
["COLORADO SPRINGS","CO","O-6","COLORADO SPRINGSCOO-6","COLORADO SPRINGSCOO-6",1509]
["COLORADO SPRINGS","CO","O-7","COLORADO SPRINGSCOO-7","COLORADO SPRINGSCOO-7",1539]
["FORT COLLINS","CO","E-1","FORT COLLINSCOE-1","FORT COLLINSCOE-1",756,756,756,756,756,834,942,993,1059,1137,945,1059,1143,1272,1338,1011,1119,1257,873,987,1167,1329,1371,1440,1470]
["FORT COLLINS","CO","E-2","FORT COLLINSCOE-2","FORT COLLINSCOE-2",756]
["FORT COLLINS","CO","E-3","FORT COLLINSCOE-3","FORT COLLINSCOE-3",756]
["FORT COLLINS","CO","E-4","FORT COLLINSCOE-4","FORT COLLINSCOE-4",756]
["FORT COLLINS","CO","E-5","FORT COLLINSCOE-5","FORT COLLINSCOE-5",834]
["FORT COLLINS","CO","E-6","FORT COLLINSCOE-6","FORT COLLINSCOE-6",942]
["FORT COLLINS","CO","E-7","FORT COLLINSCOE-7","FORT COLLINSCOE-7",993]
["FORT COLLINS","CO","E-8","FORT COLLINSCOE-8","FORT COLLINSCOE-8",1059]
["FORT COLLINS","CO","E-9",{"$f":"A1282&B1282&C1282","v":"FORT COLLINSCOE-9"},"FORT COLLINSCOE-9",1137]
["FORT COLLINS","CO","W-1","FORT COLLINSCOW-1","FORT COLLINSCOW-1",945]
["FORT COLLINS","CO","W-2","FORT COLLINSCOW-2","FORT COLLINSCOW-2",1059]
["FORT COLLINS","CO","W-3","FORT COLLINSCOW-3","FORT COLLINSCOW-3",1143]
["FORT COLLINS","CO","W-4","FORT COLLINSCOW-4","FORT COLLINSCOW-4",1272]
["FORT COLLINS","CO","W-5","FORT COLLINSCOW-5","FORT COLLINSCOW-5",1338]
["FORT COLLINS","CO","O-1E","FORT COLLINSCOO-1E","FORT COLLINSCOO-1E",1011]
["FORT COLLINS","CO","O-2E","FORT COLLINSCOO-2E","FORT COLLINSCOO-2E",1119]
["FORT COLLINS","CO","O-3E","FORT COLLINSCOO-3E","FORT COLLINSCOO-3E",1257]
["FORT COLLINS","CO","O-1","FORT COLLINSCOO-1","FORT COLLINSCOO-1",873]
["FORT COLLINS","CO","O-2","FORT COLLINSCOO-2","FORT COLLINSCOO-2",987]
["FORT COLLINS","CO","O-3","FORT COLLINSCOO-3","FORT COLLINSCOO-3",1167]
["FORT COLLINS","CO","O-4","FORT COLLINSCOO-4","FORT COLLINSCOO-4",1329]
["FORT COLLINS","CO","O-5","FORT COLLINSCOO-5","FORT COLLINSCOO-5",1371]
["FORT COLLINS","CO","O-6","FORT COLLINSCOO-6","FORT COLLINSCOO-6",1440]
["FORT COLLINS","CO","O-7","FORT COLLINSCOO-7","FORT COLLINSCOO-7",1470]
["BOULDER","CO","E-1","BOULDERCOE-1","BOULDERCOE-1",1002,1002,1002,1002,1002,1119,1314,1368,1518,1608,1314,1515,1617,1770,1842,1461,1590,1752,1176,1413,1647,1830,1878,1950,1989]
["BOULDER","CO","E-2","BOULDERCOE-2","BOULDERCOE-2",1002]
["BOULDER","CO","E-3","BOULDERCOE-3","BOULDERCOE-3",1002]
["BOULDER","CO","E-4","BOULDERCOE-4","BOULDERCOE-4",1002]
["BOULDER","CO","E-5","BOULDERCOE-5","BOULDERCOE-5",1119]
["BOULDER","CO","E-6","BOULDERCOE-6","BOULDERCOE-6",1314]
["BOULDER","CO","E-7","BOULDERCOE-7","BOULDERCOE-7",1368]
["BOULDER","CO","E-8","BOULDERCOE-8","BOULDERCOE-8",1518]
["BOULDER","CO","E-9","BOULDERCOE-9","BOULDERCOE-9",1608]
["BOULDER","CO","W-1","BOULDERCOW-1","BOULDERCOW-1",1314]
["BOULDER","CO","W-2","BOULDERCOW-2","BOULDERCOW-2",1515]
["BOULDER","CO","W-3","BOULDERCOW-3","BOULDERCOW-3",1617]
["BOULDER","CO","W-4","BOULDERCOW-4","BOULDERCOW-4",1770]
["BOULDER","CO","W-5","BOULDERCOW-5","BOULDERCOW-5",1842]
["BOULDER","CO","O-1E","BOULDERCOO-1E","BOULDERCOO-1E",1461]
["BOULDER","CO","O-2E","BOULDERCOO-2E","BOULDERCOO-2E",1590]
["BOULDER","CO","O-3E","BOULDERCOO-3E","BOULDERCOO-3E",1752]
["BOULDER","CO","O-1","BOULDERCOO-1","BOULDERCOO-1",1176]
["BOULDER","CO","O-2","BOULDERCOO-2","BOULDERCOO-2",1413]
["BOULDER","CO","O-3","BOULDERCOO-3","BOULDERCOO-3",1647]
["BOULDER","CO","O-4","BOULDERCOO-4","BOULDERCOO-4",1830]
["BOULDER","CO","O-5","BOULDERCOO-5","BOULDERCOO-5",1878]
["BOULDER","CO","O-6","BOULDERCOO-6","BOULDERCOO-6",1950]
["BOULDER","CO","O-7","BOULDERCOO-7","BOULDERCOO-7",1989]
["NEW LONDON","CT","E-1","NEW LONDONCTE-1","NEW LONDONCTE-1",1041,1041,1041,1041,1041,1188,1278,1389,1524,1551,1335,1524,1554,1626,1746,1506,1545,1599,1260,1464,1566,1728,1803,1926,1965]
["NEW LONDON","CT","E-2","NEW LONDONCTE-2","NEW LONDONCTE-2",1041]
["NEW LONDON","CT","E-3","NEW LONDONCTE-3","NEW LONDONCTE-3",1041]
["NEW LONDON","CT","E-4","NEW LONDONCTE-4","NEW LONDONCTE-4",1041]
["NEW LONDON","CT","E-5","NEW LONDONCTE-5","NEW LONDONCTE-5",1188]
["NEW LONDON","CT","E-6","NEW LONDONCTE-6","NEW LONDONCTE-6",1278]
["NEW LONDON","CT","E-7","NEW LONDONCTE-7","NEW LONDONCTE-7",1389]
["NEW LONDON","CT","E-8","NEW LONDONCTE-8","NEW LONDONCTE-8",1524]
["NEW LONDON","CT","E-9","NEW LONDONCTE-9","NEW LONDONCTE-9",1551]
["NEW LONDON","CT","W-1","NEW LONDONCTW-1","NEW LONDONCTW-1",1335]
["NEW LONDON","CT","W-2","NEW LONDONCTW-2","NEW LONDONCTW-2",1524]
["NEW LONDON","CT","W-3","NEW LONDONCTW-3","NEW LONDONCTW-3",1554]
["NEW LONDON","CT","W-4","NEW LONDONCTW-4","NEW LONDONCTW-4",1626]
["NEW LONDON","CT","W-5","NEW LONDONCTW-5","NEW LONDONCTW-5",1746]
["NEW LONDON","CT","O-1E","NEW LONDONCTO-1E","NEW LONDONCTO-1E",1506]
["NEW LONDON","CT","O-2E","NEW LONDONCTO-2E","NEW LONDONCTO-2E",1545]
["NEW LONDON","CT","O-3E","NEW LONDONCTO-3E","NEW LONDONCTO-3E",1599]
["NEW LONDON","CT","O-1","NEW LONDONCTO-1","NEW LONDONCTO-1",1260]
["NEW LONDON","CT","O-2","NEW LONDONCTO-2","NEW LONDONCTO-2",1464]
["NEW LONDON","CT","O-3","NEW LONDONCTO-3","NEW LONDONCTO-3",1566]
["NEW LONDON","CT","O-4","NEW LONDONCTO-4","NEW LONDONCTO-4",1728]
["NEW LONDON","CT","O-5","NEW LONDONCTO-5","NEW LONDONCTO-5",1803]
["NEW LONDON","CT","O-6","NEW LONDONCTO-6","NEW LONDONCTO-6",1926]
["NEW LONDON","CT","O-7","NEW LONDONCTO-7","NEW LONDONCTO-7",1965]
["HARTFORD","CT","E-1",{"$f":"A1346&B1346&C1346","v":"HARTFORDCTE-1"},"HARTFORDCTE-1",1176,1176,1176,1176,1176,1320,1452,1581,1794,1848,1497,1794,1854,1971,2118,1758,1836,1935,1377,1695,1872,2097,2307,2340,2385]
["HARTFORD","CT","E-2","HARTFORDCTE-2","HARTFORDCTE-2",1176]
["HARTFORD","CT","E-3","HARTFORDCTE-3","HARTFORDCTE-3",1176]
["HARTFORD","CT","E-4","HARTFORDCTE-4","HARTFORDCTE-4",1176]
["HARTFORD","CT","E-5","HARTFORDCTE-5","HARTFORDCTE-5",1320]
["HARTFORD","CT","E-6","HARTFORDCTE-6","HARTFORDCTE-6",1452]
["HARTFORD","CT","E-7","HARTFORDCTE-7","HARTFORDCTE-7",1581]
["HARTFORD","CT","E-8","HARTFORDCTE-8","HARTFORDCTE-8",1794]
["HARTFORD","CT","E-9","HARTFORDCTE-9","HARTFORDCTE-9",1848]
["HARTFORD","CT","W-1","HARTFORDCTW-1","HARTFORDCTW-1",1497]
["HARTFORD","CT","W-2","HARTFORDCTW-2","HARTFORDCTW-2",1794]
["HARTFORD","CT","W-3","HARTFORDCTW-3","HARTFORDCTW-3",1854]
["HARTFORD","CT","W-4","HARTFORDCTW-4","HARTFORDCTW-4",1971]
["HARTFORD","CT","W-5","HARTFORDCTW-5","HARTFORDCTW-5",2118]
["HARTFORD","CT","O-1E","HARTFORDCTO-1E","HARTFORDCTO-1E",1758]
["HARTFORD","CT","O-2E","HARTFORDCTO-2E","HARTFORDCTO-2E",1836]
["HARTFORD","CT","O-3E","HARTFORDCTO-3E","HARTFORDCTO-3E",1935]
["HARTFORD","CT","O-1","HARTFORDCTO-1","HARTFORDCTO-1",1377]
["HARTFORD","CT","O-2","HARTFORDCTO-2","HARTFORDCTO-2",1695]
["HARTFORD","CT","O-3","HARTFORDCTO-3","HARTFORDCTO-3",1872]
["HARTFORD","CT","O-4","HARTFORDCTO-4","HARTFORDCTO-4",2097]
["HARTFORD","CT","O-5","HARTFORDCTO-5","HARTFORDCTO-5",2307]
["HARTFORD","CT","O-6","HARTFORDCTO-6","HARTFORDCTO-6",2340]
["HARTFORD","CT","O-7","HARTFORDCTO-7","HARTFORDCTO-7",2385]
["NEW HAVEN/FAIRFIELD","CT","E-1","NEW HAVEN/FAIRFIELDCTE-1","NEW HAVEN/FAIRFIELDCTE-1",1635,1635,1635,1635,1635,1803,1902,2007,2148,2265,1956,2148,2208,2349,2574,2112,2190,2313,1887,2073,2226,2544,2688,2922,2979]
["NEW HAVEN/FAIRFIELD","CT","E-2","NEW HAVEN/FAIRFIELDCTE-2","NEW HAVEN/FAIRFIELDCTE-2",1635]
["NEW HAVEN/FAIRFIELD","CT","E-3","NEW HAVEN/FAIRFIELDCTE-3","NEW HAVEN/FAIRFIELDCTE-3",1635]
["NEW HAVEN/FAIRFIELD","CT","E-4","NEW HAVEN/FAIRFIELDCTE-4","NEW HAVEN/FAIRFIELDCTE-4",1635]
["NEW HAVEN/FAIRFIELD","CT","E-5","NEW HAVEN/FAIRFIELDCTE-5","NEW HAVEN/FAIRFIELDCTE-5",1803]
["NEW HAVEN/FAIRFIELD","CT","E-6","NEW HAVEN/FAIRFIELDCTE-6","NEW HAVEN/FAIRFIELDCTE-6",1902]
["NEW HAVEN/FAIRFIELD","CT","E-7","NEW HAVEN/FAIRFIELDCTE-7","NEW HAVEN/FAIRFIELDCTE-7",2007]
["NEW HAVEN/FAIRFIELD","CT","E-8","NEW HAVEN/FAIRFIELDCTE-8","NEW HAVEN/FAIRFIELDCTE-8",2148]
["NEW HAVEN/FAIRFIELD","CT","E-9","NEW HAVEN/FAIRFIELDCTE-9","NEW HAVEN/FAIRFIELDCTE-9",2265]
["NEW HAVEN/FAIRFIELD","CT","W-1","NEW HAVEN/FAIRFIELDCTW-1","NEW HAVEN/FAIRFIELDCTW-1",1956]
["NEW HAVEN/FAIRFIELD","CT","W-2","NEW HAVEN/FAIRFIELDCTW-2","NEW HAVEN/FAIRFIELDCTW-2",2148]
["NEW HAVEN/FAIRFIELD","CT","W-3","NEW HAVEN/FAIRFIELDCTW-3","NEW HAVEN/FAIRFIELDCTW-3",2208]
["NEW HAVEN/FAIRFIELD","CT","W-4","NEW HAVEN/FAIRFIELDCTW-4","NEW HAVEN/FAIRFIELDCTW-4",2349]
["NEW HAVEN/FAIRFIELD","CT","W-5","NEW HAVEN/FAIRFIELDCTW-5","NEW HAVEN/FAIRFIELDCTW-5",2574]
["NEW HAVEN/FAIRFIELD","CT","O-1E","NEW HAVEN/FAIRFIELDCTO-1E","NEW HAVEN/FAIRFIELDCTO-1E",2112]
["NEW HAVEN/FAIRFIELD","CT","O-2E","NEW HAVEN/FAIRFIELDCTO-2E","NEW HAVEN/FAIRFIELDCTO-2E",2190]
["NEW HAVEN/FAIRFIELD","CT","O-3E","NEW HAVEN/FAIRFIELDCTO-3E","NEW HAVEN/FAIRFIELDCTO-3E",2313]
["NEW HAVEN/FAIRFIELD","CT","O-1","NEW HAVEN/FAIRFIELDCTO-1","NEW HAVEN/FAIRFIELDCTO-1",1887]
["NEW HAVEN/FAIRFIELD","CT","O-2","NEW HAVEN/FAIRFIELDCTO-2","NEW HAVEN/FAIRFIELDCTO-2",2073]
["NEW HAVEN/FAIRFIELD","CT","O-3","NEW HAVEN/FAIRFIELDCTO-3","NEW HAVEN/FAIRFIELDCTO-3",2226]
["NEW HAVEN/FAIRFIELD","CT","O-4","NEW HAVEN/FAIRFIELDCTO-4","NEW HAVEN/FAIRFIELDCTO-4",2544]
["NEW HAVEN/FAIRFIELD","CT","O-5","NEW HAVEN/FAIRFIELDCTO-5","NEW HAVEN/FAIRFIELDCTO-5",2688]
["NEW HAVEN/FAIRFIELD","CT","O-6","NEW HAVEN/FAIRFIELDCTO-6","NEW HAVEN/FAIRFIELDCTO-6",2922]
["NEW HAVEN/FAIRFIELD","CT","O-7","NEW HAVEN/FAIRFIELDCTO-7","NEW HAVEN/FAIRFIELDCTO-7",2979]
["WASHINGTON","DC","E-1","WASHINGTONDCE-1","WASHINGTONDCE-1",1356,1356,1356,1356,1356,1551,1698,1803,2007,2106,1737,2001,2115,2280,2343,1941,2082,2265,1647,1890,2148,2334,2373,2436,2487]
["WASHINGTON","DC","E-2","WASHINGTONDCE-2","WASHINGTONDCE-2",1356]
["WASHINGTON","DC","E-3","WASHINGTONDCE-3","WASHINGTONDCE-3",1356]
["WASHINGTON","DC","E-4","WASHINGTONDCE-4","WASHINGTONDCE-4",1356]
["WASHINGTON","DC","E-5","WASHINGTONDCE-5","WASHINGTONDCE-5",1551]
["WASHINGTON","DC","E-6","WASHINGTONDCE-6","WASHINGTONDCE-6",1698]
["WASHINGTON","DC","E-7","WASHINGTONDCE-7","WASHINGTONDCE-7",1803]
["WASHINGTON","DC","E-8","WASHINGTONDCE-8","WASHINGTONDCE-8",2007]
["WASHINGTON","DC","E-9","WASHINGTONDCE-9","WASHINGTONDCE-9",2106]
["WASHINGTON","DC","W-1","WASHINGTONDCW-1","WASHINGTONDCW-1",1737]
["WASHINGTON","DC","W-2","WASHINGTONDCW-2","WASHINGTONDCW-2",2001]
["WASHINGTON","DC","W-3","WASHINGTONDCW-3","WASHINGTONDCW-3",2115]
["WASHINGTON","DC","W-4","WASHINGTONDCW-4","WASHINGTONDCW-4",2280]
["WASHINGTON","DC","W-5","WASHINGTONDCW-5","WASHINGTONDCW-5",2343]
["WASHINGTON","DC","O-1E","WASHINGTONDCO-1E","WASHINGTONDCO-1E",1941]
["WASHINGTON","DC","O-2E","WASHINGTONDCO-2E","WASHINGTONDCO-2E",2082]
["WASHINGTON","DC","O-3E",{"$f":"A1410&B1410&C1410","v":"WASHINGTONDCO-3E"},"WASHINGTONDCO-3E",2265]
["WASHINGTON","DC","O-1","WASHINGTONDCO-1","WASHINGTONDCO-1",1647]
["WASHINGTON","DC","O-2","WASHINGTONDCO-2","WASHINGTONDCO-2",1890]
["WASHINGTON","DC","O-3","WASHINGTONDCO-3","WASHINGTONDCO-3",2148]
["WASHINGTON","DC","O-4","WASHINGTONDCO-4","WASHINGTONDCO-4",2334]
["WASHINGTON","DC","O-5","WASHINGTONDCO-5","WASHINGTONDCO-5",2373]
["WASHINGTON","DC","O-6","WASHINGTONDCO-6","WASHINGTONDCO-6",2436]
["WASHINGTON","DC","O-7","WASHINGTONDCO-7","WASHINGTONDCO-7",2487]
["DOVER AFB","DE","E-1","DOVER AFBDEE-1","DOVER AFBDEE-1",978,978,978,978,978,1074,1152,1224,1362,1428,1182,1359,1437,1545,1584,1320,1413,1536,1119,1284,1458,1578,1605,1644,1677]
["DOVER AFB","DE","E-2","DOVER AFBDEE-2","DOVER AFBDEE-2",978]
["DOVER AFB","DE","E-3","DOVER AFBDEE-3","DOVER AFBDEE-3",978]
["DOVER AFB","DE","E-4","DOVER AFBDEE-4","DOVER AFBDEE-4",978]
["DOVER AFB","DE","E-5","DOVER AFBDEE-5","DOVER AFBDEE-5",1074]
["DOVER AFB","DE","E-6","DOVER AFBDEE-6","DOVER AFBDEE-6",1152]
["DOVER AFB","DE","E-7","DOVER AFBDEE-7","DOVER AFBDEE-7",1224]
["DOVER AFB","DE","E-8","DOVER AFBDEE-8","DOVER AFBDEE-8",1362]
["DOVER AFB","DE","E-9","DOVER AFBDEE-9","DOVER AFBDEE-9",1428]
["DOVER AFB","DE","W-1","DOVER AFBDEW-1","DOVER AFBDEW-1",1182]
["DOVER AFB","DE","W-2","DOVER AFBDEW-2","DOVER AFBDEW-2",1359]
["DOVER AFB","DE","W-3","DOVER AFBDEW-3","DOVER AFBDEW-3",1437]
["DOVER AFB","DE","W-4","DOVER AFBDEW-4","DOVER AFBDEW-4",1545]
["DOVER AFB","DE","W-5","DOVER AFBDEW-5","DOVER AFBDEW-5",1584]
["DOVER AFB","DE","O-1E","DOVER AFBDEO-1E","DOVER AFBDEO-1E",1320]
["DOVER AFB","DE","O-2E","DOVER AFBDEO-2E","DOVER AFBDEO-2E",1413]
["DOVER AFB","DE","O-3E","DOVER AFBDEO-3E","DOVER AFBDEO-3E",1536]
["DOVER AFB","DE","O-1","DOVER AFBDEO-1","DOVER AFBDEO-1",1119]
["DOVER AFB","DE","O-2","DOVER AFBDEO-2","DOVER AFBDEO-2",1284]
["DOVER AFB","DE","O-3","DOVER AFBDEO-3","DOVER AFBDEO-3",1458]
["DOVER AFB","DE","O-4","DOVER AFBDEO-4","DOVER AFBDEO-4",1578]
["DOVER AFB","DE","O-5","DOVER AFBDEO-5","DOVER AFBDEO-5",1605]
["DOVER AFB","DE","O-6","DOVER AFBDEO-6","DOVER AFBDEO-6",1644]
["DOVER AFB","DE","O-7","DOVER AFBDEO-7","DOVER AFBDEO-7",1677]
["REHOBOTH BEACH","DE","E-1","REHOBOTH BEACHDEE-1","REHOBOTH BEACHDEE-1",1035,1035,1035,1035,1035,1176,1257,1317,1419,1482,1287,1416,1488,1593,1653,1377,1467,1581,1248,1356,1506,1644,1680,1740,1773]
["REHOBOTH BEACH","DE","E-2","REHOBOTH BEACHDEE-2","REHOBOTH BEACHDEE-2",1035]
["REHOBOTH BEACH","DE","E-3","REHOBOTH BEACHDEE-3","REHOBOTH BEACHDEE-3",1035]
["REHOBOTH BEACH","DE","E-4","REHOBOTH BEACHDEE-4","REHOBOTH BEACHDEE-4",1035]
["REHOBOTH BEACH","DE","E-5","REHOBOTH BEACHDEE-5","REHOBOTH BEACHDEE-5",1176]
["REHOBOTH BEACH","DE","E-6","REHOBOTH BEACHDEE-6","REHOBOTH BEACHDEE-6",1257]
["REHOBOTH BEACH","DE","E-7","REHOBOTH BEACHDEE-7","REHOBOTH BEACHDEE-7",1317]
["REHOBOTH BEACH","DE","E-8","REHOBOTH BEACHDEE-8","REHOBOTH BEACHDEE-8",1419]
["REHOBOTH BEACH","DE","E-9","REHOBOTH BEACHDEE-9","REHOBOTH BEACHDEE-9",1482]
["REHOBOTH BEACH","DE","W-1","REHOBOTH BEACHDEW-1","REHOBOTH BEACHDEW-1",1287]
["REHOBOTH BEACH","DE","W-2","REHOBOTH BEACHDEW-2","REHOBOTH BEACHDEW-2",1416]
["REHOBOTH BEACH","DE","W-3","REHOBOTH BEACHDEW-3","REHOBOTH BEACHDEW-3",1488]
["REHOBOTH BEACH","DE","W-4","REHOBOTH BEACHDEW-4","REHOBOTH BEACHDEW-4",1593]
["REHOBOTH BEACH","DE","W-5","REHOBOTH BEACHDEW-5","REHOBOTH BEACHDEW-5",1653]
["REHOBOTH BEACH","DE","O-1E","REHOBOTH BEACHDEO-1E","REHOBOTH BEACHDEO-1E",1377]
["REHOBOTH BEACH","DE","O-2E","REHOBOTH BEACHDEO-2E","REHOBOTH BEACHDEO-2E",1467]
["REHOBOTH BEACH","DE","O-3E","REHOBOTH BEACHDEO-3E","REHOBOTH BEACHDEO-3E",1581]
["REHOBOTH BEACH","DE","O-1","REHOBOTH BEACHDEO-1","REHOBOTH BEACHDEO-1",1248]
["REHOBOTH BEACH","DE","O-2","REHOBOTH BEACHDEO-2","REHOBOTH BEACHDEO-2",1356]
["REHOBOTH BEACH","DE","O-3","REHOBOTH BEACHDEO-3","REHOBOTH BEACHDEO-3",1506]
["REHOBOTH BEACH","DE","O-4","REHOBOTH BEACHDEO-4","REHOBOTH BEACHDEO-4",1644]
["REHOBOTH BEACH","DE","O-5","REHOBOTH BEACHDEO-5","REHOBOTH BEACHDEO-5",1680]
["REHOBOTH BEACH","DE","O-6","REHOBOTH BEACHDEO-6","REHOBOTH BEACHDEO-6",1740]
["REHOBOTH BEACH","DE","O-7","REHOBOTH BEACHDEO-7","REHOBOTH BEACHDEO-7",1773]
["EGLIN AFB","FL","E-1","EGLIN AFBFLE-1","EGLIN AFBFLE-1",912,912,912,912,912,1080,1182,1218,1281,1317,1200,1278,1320,1383,1425,1257,1308,1371,1176,1245,1329,1419,1461,1491,1521]
["EGLIN AFB","FL","E-2","EGLIN AFBFLE-2","EGLIN AFBFLE-2",912]
["EGLIN AFB","FL","E-3","EGLIN AFBFLE-3","EGLIN AFBFLE-3",912]
["EGLIN AFB","FL","E-4","EGLIN AFBFLE-4","EGLIN AFBFLE-4",912]
["EGLIN AFB","FL","E-5","EGLIN AFBFLE-5","EGLIN AFBFLE-5",1080]
["EGLIN AFB","FL","E-6","EGLIN AFBFLE-6","EGLIN AFBFLE-6",1182]
["EGLIN AFB","FL","E-7","EGLIN AFBFLE-7","EGLIN AFBFLE-7",1218]
["EGLIN AFB","FL","E-8","EGLIN AFBFLE-8","EGLIN AFBFLE-8",1281]
["EGLIN AFB","FL","E-9",{"$f":"A1474&B1474&C1474","v":"EGLIN AFBFLE-9"},"EGLIN AFBFLE-9",1317]
["EGLIN AFB","FL","W-1","EGLIN AFBFLW-1","EGLIN AFBFLW-1",1200]
["EGLIN AFB","FL","W-2","EGLIN AFBFLW-2","EGLIN AFBFLW-2",1278]
["EGLIN AFB","FL","W-3","EGLIN AFBFLW-3","EGLIN AFBFLW-3",1320]
["EGLIN AFB","FL","W-4","EGLIN AFBFLW-4","EGLIN AFBFLW-4",1383]
["EGLIN AFB","FL","W-5","EGLIN AFBFLW-5","EGLIN AFBFLW-5",1425]
["EGLIN AFB","FL","O-1E","EGLIN AFBFLO-1E","EGLIN AFBFLO-1E",1257]
["EGLIN AFB","FL","O-2E","EGLIN AFBFLO-2E","EGLIN AFBFLO-2E",1308]
["EGLIN AFB","FL","O-3E","EGLIN AFBFLO-3E","EGLIN AFBFLO-3E",1371]
["EGLIN AFB","FL","O-1","EGLIN AFBFLO-1","EGLIN AFBFLO-1",1176]
["EGLIN AFB","FL","O-2","EGLIN AFBFLO-2","EGLIN AFBFLO-2",1245]
["EGLIN AFB","FL","O-3","EGLIN AFBFLO-3","EGLIN AFBFLO-3",1329]
["EGLIN AFB","FL","O-4","EGLIN AFBFLO-4","EGLIN AFBFLO-4",1419]
["EGLIN AFB","FL","O-5","EGLIN AFBFLO-5","EGLIN AFBFLO-5",1461]
["EGLIN AFB","FL","O-6","EGLIN AFBFLO-6","EGLIN AFBFLO-6",1491]
["EGLIN AFB","FL","O-7","EGLIN AFBFLO-7","EGLIN AFBFLO-7",1521]
["GAINESVILLE","FL","E-1","GAINESVILLEFLE-1","GAINESVILLEFLE-1",885,885,885,885,885,1005,1098,1185,1296,1329,1143,1296,1332,1401,1503,1278,1320,1377,1083,1245,1341,1491,1554,1659,1692]
["GAINESVILLE","FL","E-2","GAINESVILLEFLE-2","GAINESVILLEFLE-2",885]
["GAINESVILLE","FL","E-3","GAINESVILLEFLE-3","GAINESVILLEFLE-3",885]
["GAINESVILLE","FL","E-4","GAINESVILLEFLE-4","GAINESVILLEFLE-4",885]
["GAINESVILLE","FL","E-5","GAINESVILLEFLE-5","GAINESVILLEFLE-5",1005]
["GAINESVILLE","FL","E-6","GAINESVILLEFLE-6","GAINESVILLEFLE-6",1098]
["GAINESVILLE","FL","E-7","GAINESVILLEFLE-7","GAINESVILLEFLE-7",1185]
["GAINESVILLE","FL","E-8","GAINESVILLEFLE-8","GAINESVILLEFLE-8",1296]
["GAINESVILLE","FL","E-9","GAINESVILLEFLE-9","GAINESVILLEFLE-9",1329]
["GAINESVILLE","FL","W-1","GAINESVILLEFLW-1","GAINESVILLEFLW-1",1143]
["GAINESVILLE","FL","W-2","GAINESVILLEFLW-2","GAINESVILLEFLW-2",1296]
["GAINESVILLE","FL","W-3","GAINESVILLEFLW-3","GAINESVILLEFLW-3",1332]
["GAINESVILLE","FL","W-4","GAINESVILLEFLW-4","GAINESVILLEFLW-4",1401]
["GAINESVILLE","FL","W-5","GAINESVILLEFLW-5","GAINESVILLEFLW-5",1503]
["GAINESVILLE","FL","O-1E","GAINESVILLEFLO-1E","GAINESVILLEFLO-1E",1278]
["GAINESVILLE","FL","O-2E","GAINESVILLEFLO-2E","GAINESVILLEFLO-2E",1320]
["GAINESVILLE","FL","O-3E","GAINESVILLEFLO-3E","GAINESVILLEFLO-3E",1377]
["GAINESVILLE","FL","O-1","GAINESVILLEFLO-1","GAINESVILLEFLO-1",1083]
["GAINESVILLE","FL","O-2","GAINESVILLEFLO-2","GAINESVILLEFLO-2",1245]
["GAINESVILLE","FL","O-3","GAINESVILLEFLO-3","GAINESVILLEFLO-3",1341]
["GAINESVILLE","FL","O-4","GAINESVILLEFLO-4","GAINESVILLEFLO-4",1491]
["GAINESVILLE","FL","O-5","GAINESVILLEFLO-5","GAINESVILLEFLO-5",1554]
["GAINESVILLE","FL","O-6","GAINESVILLEFLO-6","GAINESVILLEFLO-6",1659]
["GAINESVILLE","FL","O-7","GAINESVILLEFLO-7","GAINESVILLEFLO-7",1692]
["JACKSONVILLE","FL","E-1","JACKSONVILLEFLE-1","JACKSONVILLEFLE-1",867,867,867,867,867,993,1083,1161,1287,1347,1119,1284,1353,1452,1476,1248,1335,1443,1059,1215,1374,1473,1503,1518,1548]
["JACKSONVILLE","FL","E-2","JACKSONVILLEFLE-2","JACKSONVILLEFLE-2",867]
["JACKSONVILLE","FL","E-3","JACKSONVILLEFLE-3","JACKSONVILLEFLE-3",867]
["JACKSONVILLE","FL","E-4","JACKSONVILLEFLE-4","JACKSONVILLEFLE-4",867]
["JACKSONVILLE","FL","E-5","JACKSONVILLEFLE-5","JACKSONVILLEFLE-5",993]
["JACKSONVILLE","FL","E-6","JACKSONVILLEFLE-6","JACKSONVILLEFLE-6",1083]
["JACKSONVILLE","FL","E-7","JACKSONVILLEFLE-7","JACKSONVILLEFLE-7",1161]
["JACKSONVILLE","FL","E-8","JACKSONVILLEFLE-8","JACKSONVILLEFLE-8",1287]
["JACKSONVILLE","FL","E-9","JACKSONVILLEFLE-9","JACKSONVILLEFLE-9",1347]
["JACKSONVILLE","FL","W-1","JACKSONVILLEFLW-1","JACKSONVILLEFLW-1",1119]
["JACKSONVILLE","FL","W-2","JACKSONVILLEFLW-2","JACKSONVILLEFLW-2",1284]
["JACKSONVILLE","FL","W-3","JACKSONVILLEFLW-3","JACKSONVILLEFLW-3",1353]
["JACKSONVILLE","FL","W-4","JACKSONVILLEFLW-4","JACKSONVILLEFLW-4",1452]
["JACKSONVILLE","FL","W-5","JACKSONVILLEFLW-5","JACKSONVILLEFLW-5",1476]
["JACKSONVILLE","FL","O-1E","JACKSONVILLEFLO-1E","JACKSONVILLEFLO-1E",1248]
["JACKSONVILLE","FL","O-2E","JACKSONVILLEFLO-2E","JACKSONVILLEFLO-2E",1335]
["JACKSONVILLE","FL","O-3E","JACKSONVILLEFLO-3E","JACKSONVILLEFLO-3E",1443]
["JACKSONVILLE","FL","O-1","JACKSONVILLEFLO-1","JACKSONVILLEFLO-1",1059]
["JACKSONVILLE","FL","O-2","JACKSONVILLEFLO-2","JACKSONVILLEFLO-2",1215]
["JACKSONVILLE","FL","O-3","JACKSONVILLEFLO-3","JACKSONVILLEFLO-3",1374]
["JACKSONVILLE","FL","O-4","JACKSONVILLEFLO-4","JACKSONVILLEFLO-4",1473]
["JACKSONVILLE","FL","O-5","JACKSONVILLEFLO-5","JACKSONVILLEFLO-5",1503]
["JACKSONVILLE","FL","O-6","JACKSONVILLEFLO-6","JACKSONVILLEFLO-6",1518]
["JACKSONVILLE","FL","O-7","JACKSONVILLEFLO-7","JACKSONVILLEFLO-7",1548]
["PATRICK AFB","FL","E-1",{"$f":"A1538&B1538&C1538","v":"PATRICK AFBFLE-1"},"PATRICK AFBFLE-1",819,819,819,819,819,924,1194,1212,1266,1392,1194,1260,1404,1596,1620,1215,1362,1590,972,1188,1443,1617,1632,1656,1689]
["PATRICK AFB","FL","E-2","PATRICK AFBFLE-2","PATRICK AFBFLE-2",819]
["PATRICK AFB","FL","E-3","PATRICK AFBFLE-3","PATRICK AFBFLE-3",819]
["PATRICK AFB","FL","E-4","PATRICK AFBFLE-4","PATRICK AFBFLE-4",819]
["PATRICK AFB","FL","E-5","PATRICK AFBFLE-5","PATRICK AFBFLE-5",924]
["PATRICK AFB","FL","E-6","PATRICK AFBFLE-6","PATRICK AFBFLE-6",1194]
["PATRICK AFB","FL","E-7","PATRICK AFBFLE-7","PATRICK AFBFLE-7",1212]
["PATRICK AFB","FL","E-8","PATRICK AFBFLE-8","PATRICK AFBFLE-8",1266]
["PATRICK AFB","FL","E-9","PATRICK AFBFLE-9","PATRICK AFBFLE-9",1392]
["PATRICK AFB","FL","W-1","PATRICK AFBFLW-1","PATRICK AFBFLW-1",1194]
["PATRICK AFB","FL","W-2","PATRICK AFBFLW-2","PATRICK AFBFLW-2",1260]
["PATRICK AFB","FL","W-3","PATRICK AFBFLW-3","PATRICK AFBFLW-3",1404]
["PATRICK AFB","FL","W-4","PATRICK AFBFLW-4","PATRICK AFBFLW-4",1596]
["PATRICK AFB","FL","W-5","PATRICK AFBFLW-5","PATRICK AFBFLW-5",1620]
["PATRICK AFB","FL","O-1E","PATRICK AFBFLO-1E","PATRICK AFBFLO-1E",1215]
["PATRICK AFB","FL","O-2E","PATRICK AFBFLO-2E","PATRICK AFBFLO-2E",1362]
["PATRICK AFB","FL","O-3E","PATRICK AFBFLO-3E","PATRICK AFBFLO-3E",1590]
["PATRICK AFB","FL","O-1","PATRICK AFBFLO-1","PATRICK AFBFLO-1",972]
["PATRICK AFB","FL","O-2","PATRICK AFBFLO-2","PATRICK AFBFLO-2",1188]
["PATRICK AFB","FL","O-3","PATRICK AFBFLO-3","PATRICK AFBFLO-3",1443]
["PATRICK AFB","FL","O-4","PATRICK AFBFLO-4","PATRICK AFBFLO-4",1617]
["PATRICK AFB","FL","O-5","PATRICK AFBFLO-5","PATRICK AFBFLO-5",1632]
["PATRICK AFB","FL","O-6","PATRICK AFBFLO-6","PATRICK AFBFLO-6",1656]
["PATRICK AFB","FL","O-7","PATRICK AFBFLO-7","PATRICK AFBFLO-7",1689]
["MIAMI/FORT LAUDERDALE","FL","E-1","MIAMI/FORT LAUDERDALEFLE-1","MIAMI/FORT LAUDERDALEFLE-1",1311,1311,1311,1311,1311,1476,1569,1659,1785,1839,1617,1785,1842,1953,2079,1752,1827,1920,1557,1719,1860,2061,2145,2277,2322]
["MIAMI/FORT LAUDERDALE","FL","E-2","MIAMI/FORT LAUDERDALEFLE-2","MIAMI/FORT LAUDERDALEFLE-2",1311]
["MIAMI/FORT LAUDERDALE","FL","E-3","MIAMI/FORT LAUDERDALEFLE-3","MIAMI/FORT LAUDERDALEFLE-3",1311]
["MIAMI/FORT LAUDERDALE","FL","E-4","MIAMI/FORT LAUDERDALEFLE-4","MIAMI/FORT LAUDERDALEFLE-4",1311]
["MIAMI/FORT LAUDERDALE","FL","E-5","MIAMI/FORT LAUDERDALEFLE-5","MIAMI/FORT LAUDERDALEFLE-5",1476]
["MIAMI/FORT LAUDERDALE","FL","E-6","MIAMI/FORT LAUDERDALEFLE-6","MIAMI/FORT LAUDERDALEFLE-6",1569]
["MIAMI/FORT LAUDERDALE","FL","E-7","MIAMI/FORT LAUDERDALEFLE-7","MIAMI/FORT LAUDERDALEFLE-7",1659]
["MIAMI/FORT LAUDERDALE","FL","E-8","MIAMI/FORT LAUDERDALEFLE-8","MIAMI/FORT LAUDERDALEFLE-8",1785]
["MIAMI/FORT LAUDERDALE","FL","E-9","MIAMI/FORT LAUDERDALEFLE-9","MIAMI/FORT LAUDERDALEFLE-9",1839]
["MIAMI/FORT LAUDERDALE","FL","W-1","MIAMI/FORT LAUDERDALEFLW-1","MIAMI/FORT LAUDERDALEFLW-1",1617]
["MIAMI/FORT LAUDERDALE","FL","W-2","MIAMI/FORT LAUDERDALEFLW-2","MIAMI/FORT LAUDERDALEFLW-2",1785]
["MIAMI/FORT LAUDERDALE","FL","W-3","MIAMI/FORT LAUDERDALEFLW-3","MIAMI/FORT LAUDERDALEFLW-3",1842]
["MIAMI/FORT LAUDERDALE","FL","W-4","MIAMI/FORT LAUDERDALEFLW-4","MIAMI/FORT LAUDERDALEFLW-4",1953]
["MIAMI/FORT LAUDERDALE","FL","W-5","MIAMI/FORT LAUDERDALEFLW-5","MIAMI/FORT LAUDERDALEFLW-5",2079]
["MIAMI/FORT LAUDERDALE","FL","O-1E","MIAMI/FORT LAUDERDALEFLO-1E","MIAMI/FORT LAUDERDALEFLO-1E",1752]
["MIAMI/FORT LAUDERDALE","FL","O-2E","MIAMI/FORT LAUDERDALEFLO-2E","MIAMI/FORT LAUDERDALEFLO-2E",1827]
["MIAMI/FORT LAUDERDALE","FL","O-3E","MIAMI/FORT LAUDERDALEFLO-3E","MIAMI/FORT LAUDERDALEFLO-3E",1920]
["MIAMI/FORT LAUDERDALE","FL","O-1","MIAMI/FORT LAUDERDALEFLO-1","MIAMI/FORT LAUDERDALEFLO-1",1557]
["MIAMI/FORT LAUDERDALE","FL","O-2","MIAMI/FORT LAUDERDALEFLO-2","MIAMI/FORT LAUDERDALEFLO-2",1719]
["MIAMI/FORT LAUDERDALE","FL","O-3","MIAMI/FORT LAUDERDALEFLO-3","MIAMI/FORT LAUDERDALEFLO-3",1860]
["MIAMI/FORT LAUDERDALE","FL","O-4","MIAMI/FORT LAUDERDALEFLO-4","MIAMI/FORT LAUDERDALEFLO-4",2061]
["MIAMI/FORT LAUDERDALE","FL","O-5","MIAMI/FORT LAUDERDALEFLO-5","MIAMI/FORT LAUDERDALEFLO-5",2145]
["MIAMI/FORT LAUDERDALE","FL","O-6","MIAMI/FORT LAUDERDALEFLO-6","MIAMI/FORT LAUDERDALEFLO-6",2277]
["MIAMI/FORT LAUDERDALE","FL","O-7","MIAMI/FORT LAUDERDALEFLO-7","MIAMI/FORT LAUDERDALEFLO-7",2322]
["ORLANDO","FL","E-1","ORLANDOFLE-1","ORLANDOFLE-1",1011,1011,1011,1011,1011,1134,1215,1338,1479,1509,1278,1479,1512,1563,1593,1461,1503,1554,1194,1416,1521,1590,1611,1644,1677]
["ORLANDO","FL","E-2","ORLANDOFLE-2","ORLANDOFLE-2",1011]
["ORLANDO","FL","E-3","ORLANDOFLE-3","ORLANDOFLE-3",1011]
["ORLANDO","FL","E-4","ORLANDOFLE-4","ORLANDOFLE-4",1011]
["ORLANDO","FL","E-5","ORLANDOFLE-5","ORLANDOFLE-5",1134]
["ORLANDO","FL","E-6","ORLANDOFLE-6","ORLANDOFLE-6",1215]
["ORLANDO","FL","E-7","ORLANDOFLE-7","ORLANDOFLE-7",1338]
["ORLANDO","FL","E-8","ORLANDOFLE-8","ORLANDOFLE-8",1479]
["ORLANDO","FL","E-9","ORLANDOFLE-9","ORLANDOFLE-9",1509]
["ORLANDO","FL","W-1","ORLANDOFLW-1","ORLANDOFLW-1",1278]
["ORLANDO","FL","W-2","ORLANDOFLW-2","ORLANDOFLW-2",1479]
["ORLANDO","FL","W-3","ORLANDOFLW-3","ORLANDOFLW-3",1512]
["ORLANDO","FL","W-4","ORLANDOFLW-4","ORLANDOFLW-4",1563]
["ORLANDO","FL","W-5","ORLANDOFLW-5","ORLANDOFLW-5",1593]
["ORLANDO","FL","O-1E","ORLANDOFLO-1E","ORLANDOFLO-1E",1461]
["ORLANDO","FL","O-2E","ORLANDOFLO-2E","ORLANDOFLO-2E",1503]
["ORLANDO","FL","O-3E",{"$f":"A1602&B1602&C1602","v":"ORLANDOFLO-3E"},"ORLANDOFLO-3E",1554]
["ORLANDO","FL","O-1","ORLANDOFLO-1","ORLANDOFLO-1",1194]
["ORLANDO","FL","O-2","ORLANDOFLO-2","ORLANDOFLO-2",1416]
["ORLANDO","FL","O-3","ORLANDOFLO-3","ORLANDOFLO-3",1521]
["ORLANDO","FL","O-4","ORLANDOFLO-4","ORLANDOFLO-4",1590]
["ORLANDO","FL","O-5","ORLANDOFLO-5","ORLANDOFLO-5",1611]
["ORLANDO","FL","O-6","ORLANDOFLO-6","ORLANDOFLO-6",1644]
["ORLANDO","FL","O-7","ORLANDOFLO-7","ORLANDOFLO-7",1677]
["PANAMA CITY","FL","E-1","PANAMA CITYFLE-1","PANAMA CITYFLE-1",885,885,885,885,885,1020,1092,1143,1227,1275,1119,1224,1281,1368,1425,1194,1266,1356,1083,1176,1296,1419,1455,1512,1542]
["PANAMA CITY","FL","E-2","PANAMA CITYFLE-2","PANAMA CITYFLE-2",885]
["PANAMA CITY","FL","E-3","PANAMA CITYFLE-3","PANAMA CITYFLE-3",885]
["PANAMA CITY","FL","E-4","PANAMA CITYFLE-4","PANAMA CITYFLE-4",885]
["PANAMA CITY","FL","E-5","PANAMA CITYFLE-5","PANAMA CITYFLE-5",1020]
["PANAMA CITY","FL","E-6","PANAMA CITYFLE-6","PANAMA CITYFLE-6",1092]
["PANAMA CITY","FL","E-7","PANAMA CITYFLE-7","PANAMA CITYFLE-7",1143]
["PANAMA CITY","FL","E-8","PANAMA CITYFLE-8","PANAMA CITYFLE-8",1227]
["PANAMA CITY","FL","E-9","PANAMA CITYFLE-9","PANAMA CITYFLE-9",1275]
["PANAMA CITY","FL","W-1","PANAMA CITYFLW-1","PANAMA CITYFLW-1",1119]
["PANAMA CITY","FL","W-2","PANAMA CITYFLW-2","PANAMA CITYFLW-2",1224]
["PANAMA CITY","FL","W-3","PANAMA CITYFLW-3","PANAMA CITYFLW-3",1281]
["PANAMA CITY","FL","W-4","PANAMA CITYFLW-4","PANAMA CITYFLW-4",1368]
["PANAMA CITY","FL","W-5","PANAMA CITYFLW-5","PANAMA CITYFLW-5",1425]
["PANAMA CITY","FL","O-1E","PANAMA CITYFLO-1E","PANAMA CITYFLO-1E",1194]
["PANAMA CITY","FL","O-2E","PANAMA CITYFLO-2E","PANAMA CITYFLO-2E",1266]
["PANAMA CITY","FL","O-3E","PANAMA CITYFLO-3E","PANAMA CITYFLO-3E",1356]
["PANAMA CITY","FL","O-1","PANAMA CITYFLO-1","PANAMA CITYFLO-1",1083]
["PANAMA CITY","FL","O-2","PANAMA CITYFLO-2","PANAMA CITYFLO-2",1176]
["PANAMA CITY","FL","O-3","PANAMA CITYFLO-3","PANAMA CITYFLO-3",1296]
["PANAMA CITY","FL","O-4","PANAMA CITYFLO-4","PANAMA CITYFLO-4",1419]
["PANAMA CITY","FL","O-5","PANAMA CITYFLO-5","PANAMA CITYFLO-5",1455]
["PANAMA CITY","FL","O-6","PANAMA CITYFLO-6","PANAMA CITYFLO-6",1512]
["PANAMA CITY","FL","O-7","PANAMA CITYFLO-7","PANAMA CITYFLO-7",1542]
["PENSACOLA","FL","E-1","PENSACOLAFLE-1","PENSACOLAFLE-1",816,816,816,816,816,969,1047,1080,1146,1200,1065,1146,1206,1293,1326,1113,1188,1284,1044,1101,1224,1323,1344,1377,1407]
["PENSACOLA","FL","E-2","PENSACOLAFLE-2","PENSACOLAFLE-2",816]
["PENSACOLA","FL","E-3","PENSACOLAFLE-3","PENSACOLAFLE-3",816]
["PENSACOLA","FL","E-4","PENSACOLAFLE-4","PENSACOLAFLE-4",816]
["PENSACOLA","FL","E-5","PENSACOLAFLE-5","PENSACOLAFLE-5",969]
["PENSACOLA","FL","E-6","PENSACOLAFLE-6","PENSACOLAFLE-6",1047]
["PENSACOLA","FL","E-7","PENSACOLAFLE-7","PENSACOLAFLE-7",1080]
["PENSACOLA","FL","E-8","PENSACOLAFLE-8","PENSACOLAFLE-8",1146]
["PENSACOLA","FL","E-9","PENSACOLAFLE-9","PENSACOLAFLE-9",1200]
["PENSACOLA","FL","W-1","PENSACOLAFLW-1","PENSACOLAFLW-1",1065]
["PENSACOLA","FL","W-2","PENSACOLAFLW-2","PENSACOLAFLW-2",1146]
["PENSACOLA","FL","W-3","PENSACOLAFLW-3","PENSACOLAFLW-3",1206]
["PENSACOLA","FL","W-4","PENSACOLAFLW-4","PENSACOLAFLW-4",1293]
["PENSACOLA","FL","W-5","PENSACOLAFLW-5","PENSACOLAFLW-5",1326]
["PENSACOLA","FL","O-1E","PENSACOLAFLO-1E","PENSACOLAFLO-1E",1113]
["PENSACOLA","FL","O-2E","PENSACOLAFLO-2E","PENSACOLAFLO-2E",1188]
["PENSACOLA","FL","O-3E","PENSACOLAFLO-3E","PENSACOLAFLO-3E",1284]
["PENSACOLA","FL","O-1","PENSACOLAFLO-1","PENSACOLAFLO-1",1044]
["PENSACOLA","FL","O-2","PENSACOLAFLO-2","PENSACOLAFLO-2",1101]
["PENSACOLA","FL","O-3","PENSACOLAFLO-3","PENSACOLAFLO-3",1224]
["PENSACOLA","FL","O-4","PENSACOLAFLO-4","PENSACOLAFLO-4",1323]
["PENSACOLA","FL","O-5","PENSACOLAFLO-5","PENSACOLAFLO-5",1344]
["PENSACOLA","FL","O-6","PENSACOLAFLO-6","PENSACOLAFLO-6",1377]
["PENSACOLA","FL","O-7","PENSACOLAFLO-7","PENSACOLAFLO-7",1407]
["TALLAHASSEE","FL","E-1","TALLAHASSEEFLE-1","TALLAHASSEEFLE-1",912,912,912,912,912,1005,1059,1104,1188,1242,1083,1185,1248,1341,1392,1152,1230,1329,1053,1134,1266,1383,1503,1518,1533]
["TALLAHASSEE","FL","E-2","TALLAHASSEEFLE-2","TALLAHASSEEFLE-2",912]
["TALLAHASSEE","FL","E-3","TALLAHASSEEFLE-3","TALLAHASSEEFLE-3",912]
["TALLAHASSEE","FL","E-4","TALLAHASSEEFLE-4","TALLAHASSEEFLE-4",912]
["TALLAHASSEE","FL","E-5","TALLAHASSEEFLE-5","TALLAHASSEEFLE-5",1005]
["TALLAHASSEE","FL","E-6","TALLAHASSEEFLE-6","TALLAHASSEEFLE-6",1059]
["TALLAHASSEE","FL","E-7","TALLAHASSEEFLE-7","TALLAHASSEEFLE-7",1104]
["TALLAHASSEE","FL","E-8","TALLAHASSEEFLE-8","TALLAHASSEEFLE-8",1188]
["TALLAHASSEE","FL","E-9",{"$f":"A1666&B1666&C1666","v":"TALLAHASSEEFLE-9"},"TALLAHASSEEFLE-9",1242]
["TALLAHASSEE","FL","W-1","TALLAHASSEEFLW-1","TALLAHASSEEFLW-1",1083]
["TALLAHASSEE","FL","W-2","TALLAHASSEEFLW-2","TALLAHASSEEFLW-2",1185]
["TALLAHASSEE","FL","W-3","TALLAHASSEEFLW-3","TALLAHASSEEFLW-3",1248]
["TALLAHASSEE","FL","W-4","TALLAHASSEEFLW-4","TALLAHASSEEFLW-4",1341]
["TALLAHASSEE","FL","W-5","TALLAHASSEEFLW-5","TALLAHASSEEFLW-5",1392]
["TALLAHASSEE","FL","O-1E","TALLAHASSEEFLO-1E","TALLAHASSEEFLO-1E",1152]
["TALLAHASSEE","FL","O-2E","TALLAHASSEEFLO-2E","TALLAHASSEEFLO-2E",1230]
["TALLAHASSEE","FL","O-3E","TALLAHASSEEFLO-3E","TALLAHASSEEFLO-3E",1329]
["TALLAHASSEE","FL","O-1","TALLAHASSEEFLO-1","TALLAHASSEEFLO-1",1053]
["TALLAHASSEE","FL","O-2","TALLAHASSEEFLO-2","TALLAHASSEEFLO-2",1134]
["TALLAHASSEE","FL","O-3","TALLAHASSEEFLO-3","TALLAHASSEEFLO-3",1266]
["TALLAHASSEE","FL","O-4","TALLAHASSEEFLO-4","TALLAHASSEEFLO-4",1383]
["TALLAHASSEE","FL","O-5","TALLAHASSEEFLO-5","TALLAHASSEEFLO-5",1503]
["TALLAHASSEE","FL","O-6","TALLAHASSEEFLO-6","TALLAHASSEEFLO-6",1518]
["TALLAHASSEE","FL","O-7","TALLAHASSEEFLO-7","TALLAHASSEEFLO-7",1533]
["TAMPA","FL","E-1","TAMPAFLE-1","TAMPAFLE-1",1122,1122,1122,1122,1122,1248,1428,1506,1710,1785,1431,1707,1794,1920,1977,1662,1770,1905,1329,1605,1818,1968,2007,2067,2106]
["TAMPA","FL","E-2","TAMPAFLE-2","TAMPAFLE-2",1122]
["TAMPA","FL","E-3","TAMPAFLE-3","TAMPAFLE-3",1122]
["TAMPA","FL","E-4","TAMPAFLE-4","TAMPAFLE-4",1122]
["TAMPA","FL","E-5","TAMPAFLE-5","TAMPAFLE-5",1248]
["TAMPA","FL","E-6","TAMPAFLE-6","TAMPAFLE-6",1428]
["TAMPA","FL","E-7","TAMPAFLE-7","TAMPAFLE-7",1506]
["TAMPA","FL","E-8","TAMPAFLE-8","TAMPAFLE-8",1710]
["TAMPA","FL","E-9","TAMPAFLE-9","TAMPAFLE-9",1785]
["TAMPA","FL","W-1","TAMPAFLW-1","TAMPAFLW-1",1431]
["TAMPA","FL","W-2","TAMPAFLW-2","TAMPAFLW-2",1707]
["TAMPA","FL","W-3","TAMPAFLW-3","TAMPAFLW-3",1794]
["TAMPA","FL","W-4","TAMPAFLW-4","TAMPAFLW-4",1920]
["TAMPA","FL","W-5","TAMPAFLW-5","TAMPAFLW-5",1977]
["TAMPA","FL","O-1E","TAMPAFLO-1E","TAMPAFLO-1E",1662]
["TAMPA","FL","O-2E","TAMPAFLO-2E","TAMPAFLO-2E",1770]
["TAMPA","FL","O-3E","TAMPAFLO-3E","TAMPAFLO-3E",1905]
["TAMPA","FL","O-1","TAMPAFLO-1","TAMPAFLO-1",1329]
["TAMPA","FL","O-2","TAMPAFLO-2","TAMPAFLO-2",1605]
["TAMPA","FL","O-3","TAMPAFLO-3","TAMPAFLO-3",1818]
["TAMPA","FL","O-4","TAMPAFLO-4","TAMPAFLO-4",1968]
["TAMPA","FL","O-5","TAMPAFLO-5","TAMPAFLO-5",2007]
["TAMPA","FL","O-6","TAMPAFLO-6","TAMPAFLO-6",2067]
["TAMPA","FL","O-7","TAMPAFLO-7","TAMPAFLO-7",2106]
["WEST PALM BEACH","FL","E-1","WEST PALM BEACHFLE-1","WEST PALM BEACHFLE-1",1125,1125,1125,1125,1125,1272,1437,1491,1680,1770,1437,1677,1779,1932,2001,1623,1749,1914,1347,1575,1809,1992,2037,2109,2151]
["WEST PALM BEACH","FL","E-2","WEST PALM BEACHFLE-2","WEST PALM BEACHFLE-2",1125]
["WEST PALM BEACH","FL","E-3","WEST PALM BEACHFLE-3","WEST PALM BEACHFLE-3",1125]
["WEST PALM BEACH","FL","E-4","WEST PALM BEACHFLE-4","WEST PALM BEACHFLE-4",1125]
["WEST PALM BEACH","FL","E-5","WEST PALM BEACHFLE-5","WEST PALM BEACHFLE-5",1272]
["WEST PALM BEACH","FL","E-6","WEST PALM BEACHFLE-6","WEST PALM BEACHFLE-6",1437]
["WEST PALM BEACH","FL","E-7","WEST PALM BEACHFLE-7","WEST PALM BEACHFLE-7",1491]
["WEST PALM BEACH","FL","E-8","WEST PALM BEACHFLE-8","WEST PALM BEACHFLE-8",1680]
["WEST PALM BEACH","FL","E-9","WEST PALM BEACHFLE-9","WEST PALM BEACHFLE-9",1770]
["WEST PALM BEACH","FL","W-1","WEST PALM BEACHFLW-1","WEST PALM BEACHFLW-1",1437]
["WEST PALM BEACH","FL","W-2","WEST PALM BEACHFLW-2","WEST PALM BEACHFLW-2",1677]
["WEST PALM BEACH","FL","W-3","WEST PALM BEACHFLW-3","WEST PALM BEACHFLW-3",1779]
["WEST PALM BEACH","FL","W-4","WEST PALM BEACHFLW-4","WEST PALM BEACHFLW-4",1932]
["WEST PALM BEACH","FL","W-5","WEST PALM BEACHFLW-5","WEST PALM BEACHFLW-5",2001]
["WEST PALM BEACH","FL","O-1E","WEST PALM BEACHFLO-1E","WEST PALM BEACHFLO-1E",1623]
["WEST PALM BEACH","FL","O-2E","WEST PALM BEACHFLO-2E","WEST PALM BEACHFLO-2E",1749]
["WEST PALM BEACH","FL","O-3E","WEST PALM BEACHFLO-3E","WEST PALM BEACHFLO-3E",1914]
["WEST PALM BEACH","FL","O-1","WEST PALM BEACHFLO-1","WEST PALM BEACHFLO-1",1347]
["WEST PALM BEACH","FL","O-2","WEST PALM BEACHFLO-2","WEST PALM BEACHFLO-2",1575]
["WEST PALM BEACH","FL","O-3","WEST PALM BEACHFLO-3","WEST PALM BEACHFLO-3",1809]
["WEST PALM BEACH","FL","O-4","WEST PALM BEACHFLO-4","WEST PALM BEACHFLO-4",1992]
["WEST PALM BEACH","FL","O-5","WEST PALM BEACHFLO-5","WEST PALM BEACHFLO-5",2037]
["WEST PALM BEACH","FL","O-6","WEST PALM BEACHFLO-6","WEST PALM BEACHFLO-6",2109]
["WEST PALM BEACH","FL","O-7","WEST PALM BEACHFLO-7","WEST PALM BEACHFLO-7",2151]
["OCALA","FL","E-1",{"$f":"A1730&B1730&C1730","v":"OCALAFLE-1"},"OCALAFLE-1",801,801,801,801,801,942,1023,1074,1158,1215,1050,1158,1221,1308,1323,1122,1203,1305,1017,1104,1239,1323,1377,1392,1404]
["OCALA","FL","E-2","OCALAFLE-2","OCALAFLE-2",801]
["OCALA","FL","E-3","OCALAFLE-3","OCALAFLE-3",801]
["OCALA","FL","E-4","OCALAFLE-4","OCALAFLE-4",801]
["OCALA","FL","E-5","OCALAFLE-5","OCALAFLE-5",942]
["OCALA","FL","E-6","OCALAFLE-6","OCALAFLE-6",1023]
["OCALA","FL","E-7","OCALAFLE-7","OCALAFLE-7",1074]
["OCALA","FL","E-8","OCALAFLE-8","OCALAFLE-8",1158]
["OCALA","FL","E-9","OCALAFLE-9","OCALAFLE-9",1215]
["OCALA","FL","W-1","OCALAFLW-1","OCALAFLW-1",1050]
["OCALA","FL","W-2","OCALAFLW-2","OCALAFLW-2",1158]
["OCALA","FL","W-3","OCALAFLW-3","OCALAFLW-3",1221]
["OCALA","FL","W-4","OCALAFLW-4","OCALAFLW-4",1308]
["OCALA","FL","W-5","OCALAFLW-5","OCALAFLW-5",1323]
["OCALA","FL","O-1E","OCALAFLO-1E","OCALAFLO-1E",1122]
["OCALA","FL","O-2E","OCALAFLO-2E","OCALAFLO-2E",1203]
["OCALA","FL","O-3E","OCALAFLO-3E","OCALAFLO-3E",1305]
["OCALA","FL","O-1","OCALAFLO-1","OCALAFLO-1",1017]
["OCALA","FL","O-2","OCALAFLO-2","OCALAFLO-2",1104]
["OCALA","FL","O-3","OCALAFLO-3","OCALAFLO-3",1239]
["OCALA","FL","O-4","OCALAFLO-4","OCALAFLO-4",1323]
["OCALA","FL","O-5","OCALAFLO-5","OCALAFLO-5",1377]
["OCALA","FL","O-6","OCALAFLO-6","OCALAFLO-6",1392]
["OCALA","FL","O-7","OCALAFLO-7","OCALAFLO-7",1404]
["KEY WEST","FL","E-1","KEY WESTFLE-1","KEY WESTFLE-1",1452,1452,1452,1452,1452,1662,2022,2031,2190,2385,2022,2184,2403,2697,2712,2064,2340,2694,1806,2019,2466,2709,2721,2736,2790]
["KEY WEST","FL","E-2","KEY WESTFLE-2","KEY WESTFLE-2",1452]
["KEY WEST","FL","E-3","KEY WESTFLE-3","KEY WESTFLE-3",1452]
["KEY WEST","FL","E-4","KEY WESTFLE-4","KEY WESTFLE-4",1452]
["KEY WEST","FL","E-5","KEY WESTFLE-5","KEY WESTFLE-5",1662]
["KEY WEST","FL","E-6","KEY WESTFLE-6","KEY WESTFLE-6",2022]
["KEY WEST","FL","E-7","KEY WESTFLE-7","KEY WESTFLE-7",2031]
["KEY WEST","FL","E-8","KEY WESTFLE-8","KEY WESTFLE-8",2190]
["KEY WEST","FL","E-9","KEY WESTFLE-9","KEY WESTFLE-9",2385]
["KEY WEST","FL","W-1","KEY WESTFLW-1","KEY WESTFLW-1",2022]
["KEY WEST","FL","W-2","KEY WESTFLW-2","KEY WESTFLW-2",2184]
["KEY WEST","FL","W-3","KEY WESTFLW-3","KEY WESTFLW-3",2403]
["KEY WEST","FL","W-4","KEY WESTFLW-4","KEY WESTFLW-4",2697]
["KEY WEST","FL","W-5","KEY WESTFLW-5","KEY WESTFLW-5",2712]
["KEY WEST","FL","O-1E","KEY WESTFLO-1E","KEY WESTFLO-1E",2064]
["KEY WEST","FL","O-2E","KEY WESTFLO-2E","KEY WESTFLO-2E",2340]
["KEY WEST","FL","O-3E","KEY WESTFLO-3E","KEY WESTFLO-3E",2694]
["KEY WEST","FL","O-1","KEY WESTFLO-1","KEY WESTFLO-1",1806]
["KEY WEST","FL","O-2","KEY WESTFLO-2","KEY WESTFLO-2",2019]
["KEY WEST","FL","O-3","KEY WESTFLO-3","KEY WESTFLO-3",2466]
["KEY WEST","FL","O-4","KEY WESTFLO-4","KEY WESTFLO-4",2709]
["KEY WEST","FL","O-5","KEY WESTFLO-5","KEY WESTFLO-5",2721]
["KEY WEST","FL","O-6","KEY WESTFLO-6","KEY WESTFLO-6",2736]
["KEY WEST","FL","O-7","KEY WESTFLO-7","KEY WESTFLO-7",2790]
["VOLUSIA COUNTY","FL","E-1","VOLUSIA COUNTYFLE-1","VOLUSIA COUNTYFLE-1",843,843,843,843,843,951,1077,1170,1284,1362,1080,1281,1347,1467,1590,1245,1329,1437,1008,1203,1368,1572,1650,1776,1812]
["VOLUSIA COUNTY","FL","E-2","VOLUSIA COUNTYFLE-2","VOLUSIA COUNTYFLE-2",843]
["VOLUSIA COUNTY","FL","E-3","VOLUSIA COUNTYFLE-3","VOLUSIA COUNTYFLE-3",843]
["VOLUSIA COUNTY","FL","E-4","VOLUSIA COUNTYFLE-4","VOLUSIA COUNTYFLE-4",843]
["VOLUSIA COUNTY","FL","E-5","VOLUSIA COUNTYFLE-5","VOLUSIA COUNTYFLE-5",951]
["VOLUSIA COUNTY","FL","E-6","VOLUSIA COUNTYFLE-6","VOLUSIA COUNTYFLE-6",1077]
["VOLUSIA COUNTY","FL","E-7","VOLUSIA COUNTYFLE-7","VOLUSIA COUNTYFLE-7",1170]
["VOLUSIA COUNTY","FL","E-8","VOLUSIA COUNTYFLE-8","VOLUSIA COUNTYFLE-8",1284]
["VOLUSIA COUNTY","FL","E-9","VOLUSIA COUNTYFLE-9","VOLUSIA COUNTYFLE-9",1362]
["VOLUSIA COUNTY","FL","W-1","VOLUSIA COUNTYFLW-1","VOLUSIA COUNTYFLW-1",1080]
["VOLUSIA COUNTY","FL","W-2","VOLUSIA COUNTYFLW-2","VOLUSIA COUNTYFLW-2",1281]
["VOLUSIA COUNTY","FL","W-3","VOLUSIA COUNTYFLW-3","VOLUSIA COUNTYFLW-3",1347]
["VOLUSIA COUNTY","FL","W-4","VOLUSIA COUNTYFLW-4","VOLUSIA COUNTYFLW-4",1467]
["VOLUSIA COUNTY","FL","W-5","VOLUSIA COUNTYFLW-5","VOLUSIA COUNTYFLW-5",1590]
["VOLUSIA COUNTY","FL","O-1E","VOLUSIA COUNTYFLO-1E","VOLUSIA COUNTYFLO-1E",1245]
["VOLUSIA COUNTY","FL","O-2E","VOLUSIA COUNTYFLO-2E","VOLUSIA COUNTYFLO-2E",1329]
["VOLUSIA COUNTY","FL","O-3E",{"$f":"A1794&B1794&C1794","v":"VOLUSIA COUNTYFLO-3E"},"VOLUSIA COUNTYFLO-3E",1437]
["VOLUSIA COUNTY","FL","O-1","VOLUSIA COUNTYFLO-1","VOLUSIA COUNTYFLO-1",1008]
["VOLUSIA COUNTY","FL","O-2","VOLUSIA COUNTYFLO-2","VOLUSIA COUNTYFLO-2",1203]
["VOLUSIA COUNTY","FL","O-3","VOLUSIA COUNTYFLO-3","VOLUSIA COUNTYFLO-3",1368]
["VOLUSIA COUNTY","FL","O-4","VOLUSIA COUNTYFLO-4","VOLUSIA COUNTYFLO-4",1572]
["VOLUSIA COUNTY","FL","O-5","VOLUSIA COUNTYFLO-5","VOLUSIA COUNTYFLO-5",1650]
["VOLUSIA COUNTY","FL","O-6","VOLUSIA COUNTYFLO-6","VOLUSIA COUNTYFLO-6",1776]
["VOLUSIA COUNTY","FL","O-7","VOLUSIA COUNTYFLO-7","VOLUSIA COUNTYFLO-7",1812]
["POLK COUNTY","FL","E-1","POLK COUNTYFLE-1","POLK COUNTYFLE-1",744,744,744,744,744,858,939,996,1101,1158,963,1101,1164,1263,1314,1065,1146,1251,915,1041,1182,1308,1440,1455,1470]
["POLK COUNTY","FL","E-2","POLK COUNTYFLE-2","POLK COUNTYFLE-2",744]
["POLK COUNTY","FL","E-3","POLK COUNTYFLE-3","POLK COUNTYFLE-3",744]
["POLK COUNTY","FL","E-4","POLK COUNTYFLE-4","POLK COUNTYFLE-4",744]
["POLK COUNTY","FL","E-5","POLK COUNTYFLE-5","POLK COUNTYFLE-5",858]
["POLK COUNTY","FL","E-6","POLK COUNTYFLE-6","POLK COUNTYFLE-6",939]
["POLK COUNTY","FL","E-7","POLK COUNTYFLE-7","POLK COUNTYFLE-7",996]
["POLK COUNTY","FL","E-8","POLK COUNTYFLE-8","POLK COUNTYFLE-8",1101]
["POLK COUNTY","FL","E-9","POLK COUNTYFLE-9","POLK COUNTYFLE-9",1158]
["POLK COUNTY","FL","W-1","POLK COUNTYFLW-1","POLK COUNTYFLW-1",963]
["POLK COUNTY","FL","W-2","POLK COUNTYFLW-2","POLK COUNTYFLW-2",1101]
["POLK COUNTY","FL","W-3","POLK COUNTYFLW-3","POLK COUNTYFLW-3",1164]
["POLK COUNTY","FL","W-4","POLK COUNTYFLW-4","POLK COUNTYFLW-4",1263]
["POLK COUNTY","FL","W-5","POLK COUNTYFLW-5","POLK COUNTYFLW-5",1314]
["POLK COUNTY","FL","O-1E","POLK COUNTYFLO-1E","POLK COUNTYFLO-1E",1065]
["POLK COUNTY","FL","O-2E","POLK COUNTYFLO-2E","POLK COUNTYFLO-2E",1146]
["POLK COUNTY","FL","O-3E","POLK COUNTYFLO-3E","POLK COUNTYFLO-3E",1251]
["POLK COUNTY","FL","O-1","POLK COUNTYFLO-1","POLK COUNTYFLO-1",915]
["POLK COUNTY","FL","O-2","POLK COUNTYFLO-2","POLK COUNTYFLO-2",1041]
["POLK COUNTY","FL","O-3","POLK COUNTYFLO-3","POLK COUNTYFLO-3",1182]
["POLK COUNTY","FL","O-4","POLK COUNTYFLO-4","POLK COUNTYFLO-4",1308]
["POLK COUNTY","FL","O-5","POLK COUNTYFLO-5","POLK COUNTYFLO-5",1440]
["POLK COUNTY","FL","O-6","POLK COUNTYFLO-6","POLK COUNTYFLO-6",1455]
["POLK COUNTY","FL","O-7","POLK COUNTYFLO-7","POLK COUNTYFLO-7",1470]
["FORT PIERCE","FL","E-1","FORT PIERCEFLE-1","FORT PIERCEFLE-1",885,885,885,885,885,957,1104,1134,1227,1320,1104,1224,1329,1479,1521,1167,1299,1470,990,1137,1362,1515,1542,1581,1614]
["FORT PIERCE","FL","E-2","FORT PIERCEFLE-2","FORT PIERCEFLE-2",885]
["FORT PIERCE","FL","E-3","FORT PIERCEFLE-3","FORT PIERCEFLE-3",885]
["FORT PIERCE","FL","E-4","FORT PIERCEFLE-4","FORT PIERCEFLE-4",885]
["FORT PIERCE","FL","E-5","FORT PIERCEFLE-5","FORT PIERCEFLE-5",957]
["FORT PIERCE","FL","E-6","FORT PIERCEFLE-6","FORT PIERCEFLE-6",1104]
["FORT PIERCE","FL","E-7","FORT PIERCEFLE-7","FORT PIERCEFLE-7",1134]
["FORT PIERCE","FL","E-8","FORT PIERCEFLE-8","FORT PIERCEFLE-8",1227]
["FORT PIERCE","FL","E-9","FORT PIERCEFLE-9","FORT PIERCEFLE-9",1320]
["FORT PIERCE","FL","W-1","FORT PIERCEFLW-1","FORT PIERCEFLW-1",1104]
["FORT PIERCE","FL","W-2","FORT PIERCEFLW-2","FORT PIERCEFLW-2",1224]
["FORT PIERCE","FL","W-3","FORT PIERCEFLW-3","FORT PIERCEFLW-3",1329]
["FORT PIERCE","FL","W-4","FORT PIERCEFLW-4","FORT PIERCEFLW-4",1479]
["FORT PIERCE","FL","W-5","FORT PIERCEFLW-5","FORT PIERCEFLW-5",1521]
["FORT PIERCE","FL","O-1E","FORT PIERCEFLO-1E","FORT PIERCEFLO-1E",1167]
["FORT PIERCE","FL","O-2E","FORT PIERCEFLO-2E","FORT PIERCEFLO-2E",1299]
["FORT PIERCE","FL","O-3E","FORT PIERCEFLO-3E","FORT PIERCEFLO-3E",1470]
["FORT PIERCE","FL","O-1","FORT PIERCEFLO-1","FORT PIERCEFLO-1",990]
["FORT PIERCE","FL","O-2","FORT PIERCEFLO-2","FORT PIERCEFLO-2",1137]
["FORT PIERCE","FL","O-3","FORT PIERCEFLO-3","FORT PIERCEFLO-3",1362]
["FORT PIERCE","FL","O-4","FORT PIERCEFLO-4","FORT PIERCEFLO-4",1515]
["FORT PIERCE","FL","O-5","FORT PIERCEFLO-5","FORT PIERCEFLO-5",1542]
["FORT PIERCE","FL","O-6","FORT PIERCEFLO-6","FORT PIERCEFLO-6",1581]
["FORT PIERCE","FL","O-7","FORT PIERCEFLO-7","FORT PIERCEFLO-7",1614]
["FT MYERS BEACH","FL","E-1","FT MYERS BEACHFLE-1","FT MYERS BEACHFLE-1",1023,1023,1023,1023,1023,1134,1242,1374,1518,1539,1311,1518,1539,1602,1740,1506,1533,1566,1224,1458,1545,1722,1809,1953,1992]
["FT MYERS BEACH","FL","E-2","FT MYERS BEACHFLE-2","FT MYERS BEACHFLE-2",1023]
["FT MYERS BEACH","FL","E-3","FT MYERS BEACHFLE-3","FT MYERS BEACHFLE-3",1023]
["FT MYERS BEACH","FL","E-4","FT MYERS BEACHFLE-4","FT MYERS BEACHFLE-4",1023]
["FT MYERS BEACH","FL","E-5","FT MYERS BEACHFLE-5","FT MYERS BEACHFLE-5",1134]
["FT MYERS BEACH","FL","E-6","FT MYERS BEACHFLE-6","FT MYERS BEACHFLE-6",1242]
["FT MYERS BEACH","FL","E-7","FT MYERS BEACHFLE-7","FT MYERS BEACHFLE-7",1374]
["FT MYERS BEACH","FL","E-8","FT MYERS BEACHFLE-8","FT MYERS BEACHFLE-8",1518]
["FT MYERS BEACH","FL","E-9",{"$f":"A1858&B1858&C1858","v":"FT MYERS BEACHFLE-9"},"FT MYERS BEACHFLE-9",1539]
["FT MYERS BEACH","FL","W-1","FT MYERS BEACHFLW-1","FT MYERS BEACHFLW-1",1311]
["FT MYERS BEACH","FL","W-2","FT MYERS BEACHFLW-2","FT MYERS BEACHFLW-2",1518]
["FT MYERS BEACH","FL","W-3","FT MYERS BEACHFLW-3","FT MYERS BEACHFLW-3",1539]
["FT MYERS BEACH","FL","W-4","FT MYERS BEACHFLW-4","FT MYERS BEACHFLW-4",1602]
["FT MYERS BEACH","FL","W-5","FT MYERS BEACHFLW-5","FT MYERS BEACHFLW-5",1740]
["FT MYERS BEACH","FL","O-1E","FT MYERS BEACHFLO-1E","FT MYERS BEACHFLO-1E",1506]
["FT MYERS BEACH","FL","O-2E","FT MYERS BEACHFLO-2E","FT MYERS BEACHFLO-2E",1533]
["FT MYERS BEACH","FL","O-3E","FT MYERS BEACHFLO-3E","FT MYERS BEACHFLO-3E",1566]
["FT MYERS BEACH","FL","O-1","FT MYERS BEACHFLO-1","FT MYERS BEACHFLO-1",1224]
["FT MYERS BEACH","FL","O-2","FT MYERS BEACHFLO-2","FT MYERS BEACHFLO-2",1458]
["FT MYERS BEACH","FL","O-3","FT MYERS BEACHFLO-3","FT MYERS BEACHFLO-3",1545]
["FT MYERS BEACH","FL","O-4","FT MYERS BEACHFLO-4","FT MYERS BEACHFLO-4",1722]
["FT MYERS BEACH","FL","O-5","FT MYERS BEACHFLO-5","FT MYERS BEACHFLO-5",1809]
["FT MYERS BEACH","FL","O-6","FT MYERS BEACHFLO-6","FT MYERS BEACHFLO-6",1953]
["FT MYERS BEACH","FL","O-7","FT MYERS BEACHFLO-7","FT MYERS BEACHFLO-7",1992]
["ATLANTA","GA","E-1","ATLANTAGAE-1","ATLANTAGAE-1",864,864,864,864,864,978,1047,1119,1224,1275,1086,1224,1278,1371,1437,1194,1263,1353,1035,1167,1296,1428,1470,1542,1572]
["ATLANTA","GA","E-2","ATLANTAGAE-2","ATLANTAGAE-2",864]
["ATLANTA","GA","E-3","ATLANTAGAE-3","ATLANTAGAE-3",864]
["ATLANTA","GA","E-4","ATLANTAGAE-4","ATLANTAGAE-4",864]
["ATLANTA","GA","E-5","ATLANTAGAE-5","ATLANTAGAE-5",978]
["ATLANTA","GA","E-6","ATLANTAGAE-6","ATLANTAGAE-6",1047]
["ATLANTA","GA","E-7","ATLANTAGAE-7","ATLANTAGAE-7",1119]
["ATLANTA","GA","E-8","ATLANTAGAE-8","ATLANTAGAE-8",1224]
["ATLANTA","GA","E-9","ATLANTAGAE-9","ATLANTAGAE-9",1275]
["ATLANTA","GA","W-1","ATLANTAGAW-1","ATLANTAGAW-1",1086]
["ATLANTA","GA","W-2","ATLANTAGAW-2","ATLANTAGAW-2",1224]
["ATLANTA","GA","W-3","ATLANTAGAW-3","ATLANTAGAW-3",1278]
["ATLANTA","GA","W-4","ATLANTAGAW-4","ATLANTAGAW-4",1371]
["ATLANTA","GA","W-5","ATLANTAGAW-5","ATLANTAGAW-5",1437]
["ATLANTA","GA","O-1E","ATLANTAGAO-1E","ATLANTAGAO-1E",1194]
["ATLANTA","GA","O-2E","ATLANTAGAO-2E","ATLANTAGAO-2E",1263]
["ATLANTA","GA","O-3E","ATLANTAGAO-3E","ATLANTAGAO-3E",1353]
["ATLANTA","GA","O-1","ATLANTAGAO-1","ATLANTAGAO-1",1035]
["ATLANTA","GA","O-2","ATLANTAGAO-2","ATLANTAGAO-2",1167]
["ATLANTA","GA","O-3","ATLANTAGAO-3","ATLANTAGAO-3",1296]
["ATLANTA","GA","O-4","ATLANTAGAO-4","ATLANTAGAO-4",1428]
["ATLANTA","GA","O-5","ATLANTAGAO-5","ATLANTAGAO-5",1470]
["ATLANTA","GA","O-6","ATLANTAGAO-6","ATLANTAGAO-6",1542]
["ATLANTA","GA","O-7","ATLANTAGAO-7","ATLANTAGAO-7",1572]
["ALBANY","GA","E-1","ALBANYGAE-1","ALBANYGAE-1",741,741,741,741,741,816,861,921,996,1050,891,993,1020,1074,1173,981,1011,1086,852,960,1026,1200,1350,1365,1377]
["ALBANY","GA","E-2","ALBANYGAE-2","ALBANYGAE-2",741]
["ALBANY","GA","E-3","ALBANYGAE-3","ALBANYGAE-3",741]
["ALBANY","GA","E-4","ALBANYGAE-4","ALBANYGAE-4",741]
["ALBANY","GA","E-5","ALBANYGAE-5","ALBANYGAE-5",816]
["ALBANY","GA","E-6","ALBANYGAE-6","ALBANYGAE-6",861]
["ALBANY","GA","E-7","ALBANYGAE-7","ALBANYGAE-7",921]
["ALBANY","GA","E-8","ALBANYGAE-8","ALBANYGAE-8",996]
["ALBANY","GA","E-9","ALBANYGAE-9","ALBANYGAE-9",1050]
["ALBANY","GA","W-1","ALBANYGAW-1","ALBANYGAW-1",891]
["ALBANY","GA","W-2","ALBANYGAW-2","ALBANYGAW-2",993]
["ALBANY","GA","W-3","ALBANYGAW-3","ALBANYGAW-3",1020]
["ALBANY","GA","W-4","ALBANYGAW-4","ALBANYGAW-4",1074]
["ALBANY","GA","W-5","ALBANYGAW-5","ALBANYGAW-5",1173]
["ALBANY","GA","O-1E","ALBANYGAO-1E","ALBANYGAO-1E",981]
["ALBANY","GA","O-2E","ALBANYGAO-2E","ALBANYGAO-2E",1011]
["ALBANY","GA","O-3E","ALBANYGAO-3E","ALBANYGAO-3E",1086]
["ALBANY","GA","O-1","ALBANYGAO-1","ALBANYGAO-1",852]
["ALBANY","GA","O-2","ALBANYGAO-2","ALBANYGAO-2",960]
["ALBANY","GA","O-3","ALBANYGAO-3","ALBANYGAO-3",1026]
["ALBANY","GA","O-4","ALBANYGAO-4","ALBANYGAO-4",1200]
["ALBANY","GA","O-5","ALBANYGAO-5","ALBANYGAO-5",1350]
["ALBANY","GA","O-6","ALBANYGAO-6","ALBANYGAO-6",1365]
["ALBANY","GA","O-7","ALBANYGAO-7","ALBANYGAO-7",1377]
["FORT GORDON","GA","E-1",{"$f":"A1922&B1922&C1922","v":"FORT GORDONGAE-1"},"FORT GORDONGAE-1",738,738,738,738,738,843,945,987,1107,1167,948,1104,1173,1263,1275,1068,1152,1260,894,1038,1191,1275,1434,1446,1461]
["FORT GORDON","GA","E-2","FORT GORDONGAE-2","FORT GORDONGAE-2",738]
["FORT GORDON","GA","E-3","FORT GORDONGAE-3","FORT GORDONGAE-3",738]
["FORT GORDON","GA","E-4","FORT GORDONGAE-4","FORT GORDONGAE-4",738]
["FORT GORDON","GA","E-5","FORT GORDONGAE-5","FORT GORDONGAE-5",843]
["FORT GORDON","GA","E-6","FORT GORDONGAE-6","FORT GORDONGAE-6",945]
["FORT GORDON","GA","E-7","FORT GORDONGAE-7","FORT GORDONGAE-7",987]
["FORT GORDON","GA","E-8","FORT GORDONGAE-8","FORT GORDONGAE-8",1107]
["FORT GORDON","GA","E-9","FORT GORDONGAE-9","FORT GORDONGAE-9",1167]
["FORT GORDON","GA","W-1","FORT GORDONGAW-1","FORT GORDONGAW-1",948]
["FORT GORDON","GA","W-2","FORT GORDONGAW-2","FORT GORDONGAW-2",1104]
["FORT GORDON","GA","W-3","FORT GORDONGAW-3","FORT GORDONGAW-3",1173]
["FORT GORDON","GA","W-4","FORT GORDONGAW-4","FORT GORDONGAW-4",1263]
["FORT GORDON","GA","W-5","FORT GORDONGAW-5","FORT GORDONGAW-5",1275]
["FORT GORDON","GA","O-1E","FORT GORDONGAO-1E","FORT GORDONGAO-1E",1068]
["FORT GORDON","GA","O-2E","FORT GORDONGAO-2E","FORT GORDONGAO-2E",1152]
["FORT GORDON","GA","O-3E","FORT GORDONGAO-3E","FORT GORDONGAO-3E",1260]
["FORT GORDON","GA","O-1","FORT GORDONGAO-1","FORT GORDONGAO-1",894]
["FORT GORDON","GA","O-2","FORT GORDONGAO-2","FORT GORDONGAO-2",1038]
["FORT GORDON","GA","O-3","FORT GORDONGAO-3","FORT GORDONGAO-3",1191]
["FORT GORDON","GA","O-4","FORT GORDONGAO-4","FORT GORDONGAO-4",1275]
["FORT GORDON","GA","O-5","FORT GORDONGAO-5","FORT GORDONGAO-5",1434]
["FORT GORDON","GA","O-6","FORT GORDONGAO-6","FORT GORDONGAO-6",1446]
["FORT GORDON","GA","O-7","FORT GORDONGAO-7","FORT GORDONGAO-7",1461]
["KINGS BAY/BRUNSWICK","GA","E-1","KINGS BAY/BRUNSWICKGAE-1","KINGS BAY/BRUNSWICKGAE-1",801,801,801,801,801,870,1011,1056,1107,1200,1014,1101,1209,1365,1425,1068,1179,1350,903,1020,1239,1416,1455,1518,1548]
["KINGS BAY/BRUNSWICK","GA","E-2","KINGS BAY/BRUNSWICKGAE-2","KINGS BAY/BRUNSWICKGAE-2",801]
["KINGS BAY/BRUNSWICK","GA","E-3","KINGS BAY/BRUNSWICKGAE-3","KINGS BAY/BRUNSWICKGAE-3",801]
["KINGS BAY/BRUNSWICK","GA","E-4","KINGS BAY/BRUNSWICKGAE-4","KINGS BAY/BRUNSWICKGAE-4",801]
["KINGS BAY/BRUNSWICK","GA","E-5","KINGS BAY/BRUNSWICKGAE-5","KINGS BAY/BRUNSWICKGAE-5",870]
["KINGS BAY/BRUNSWICK","GA","E-6","KINGS BAY/BRUNSWICKGAE-6","KINGS BAY/BRUNSWICKGAE-6",1011]
["KINGS BAY/BRUNSWICK","GA","E-7","KINGS BAY/BRUNSWICKGAE-7","KINGS BAY/BRUNSWICKGAE-7",1056]
["KINGS BAY/BRUNSWICK","GA","E-8","KINGS BAY/BRUNSWICKGAE-8","KINGS BAY/BRUNSWICKGAE-8",1107]
["KINGS BAY/BRUNSWICK","GA","E-9","KINGS BAY/BRUNSWICKGAE-9","KINGS BAY/BRUNSWICKGAE-9",1200]
["KINGS BAY/BRUNSWICK","GA","W-1","KINGS BAY/BRUNSWICKGAW-1","KINGS BAY/BRUNSWICKGAW-1",1014]
["KINGS BAY/BRUNSWICK","GA","W-2","KINGS BAY/BRUNSWICKGAW-2","KINGS BAY/BRUNSWICKGAW-2",1101]
["KINGS BAY/BRUNSWICK","GA","W-3","KINGS BAY/BRUNSWICKGAW-3","KINGS BAY/BRUNSWICKGAW-3",1209]
["KINGS BAY/BRUNSWICK","GA","W-4","KINGS BAY/BRUNSWICKGAW-4","KINGS BAY/BRUNSWICKGAW-4",1365]
["KINGS BAY/BRUNSWICK","GA","W-5","KINGS BAY/BRUNSWICKGAW-5","KINGS BAY/BRUNSWICKGAW-5",1425]
["KINGS BAY/BRUNSWICK","GA","O-1E","KINGS BAY/BRUNSWICKGAO-1E","KINGS BAY/BRUNSWICKGAO-1E",1068]
["KINGS BAY/BRUNSWICK","GA","O-2E","KINGS BAY/BRUNSWICKGAO-2E","KINGS BAY/BRUNSWICKGAO-2E",1179]
["KINGS BAY/BRUNSWICK","GA","O-3E","KINGS BAY/BRUNSWICKGAO-3E","KINGS BAY/BRUNSWICKGAO-3E",1350]
["KINGS BAY/BRUNSWICK","GA","O-1","KINGS BAY/BRUNSWICKGAO-1","KINGS BAY/BRUNSWICKGAO-1",903]
["KINGS BAY/BRUNSWICK","GA","O-2","KINGS BAY/BRUNSWICKGAO-2","KINGS BAY/BRUNSWICKGAO-2",1020]
["KINGS BAY/BRUNSWICK","GA","O-3","KINGS BAY/BRUNSWICKGAO-3","KINGS BAY/BRUNSWICKGAO-3",1239]
["KINGS BAY/BRUNSWICK","GA","O-4","KINGS BAY/BRUNSWICKGAO-4","KINGS BAY/BRUNSWICKGAO-4",1416]
["KINGS BAY/BRUNSWICK","GA","O-5","KINGS BAY/BRUNSWICKGAO-5","KINGS BAY/BRUNSWICKGAO-5",1455]
["KINGS BAY/BRUNSWICK","GA","O-6","KINGS BAY/BRUNSWICKGAO-6","KINGS BAY/BRUNSWICKGAO-6",1518]
["KINGS BAY/BRUNSWICK","GA","O-7","KINGS BAY/BRUNSWICKGAO-7","KINGS BAY/BRUNSWICKGAO-7",1548]
["FORT BENNING","GA","E-1","FORT BENNINGGAE-1","FORT BENNINGGAE-1",894,894,894,894,894,957,1029,1050,1155,1239,1029,1155,1248,1371,1380,1104,1221,1371,987,1083,1275,1377,1383,1389,1419]
["FORT BENNING","GA","E-2","FORT BENNINGGAE-2","FORT BENNINGGAE-2",894]
["FORT BENNING","GA","E-3","FORT BENNINGGAE-3","FORT BENNINGGAE-3",894]
["FORT BENNING","GA","E-4","FORT BENNINGGAE-4","FORT BENNINGGAE-4",894]
["FORT BENNING","GA","E-5","FORT BENNINGGAE-5","FORT BENNINGGAE-5",957]
["FORT BENNING","GA","E-6","FORT BENNINGGAE-6","FORT BENNINGGAE-6",1029]
["FORT BENNING","GA","E-7","FORT BENNINGGAE-7","FORT BENNINGGAE-7",1050]
["FORT BENNING","GA","E-8","FORT BENNINGGAE-8","FORT BENNINGGAE-8",1155]
["FORT BENNING","GA","E-9","FORT BENNINGGAE-9","FORT BENNINGGAE-9",1239]
["FORT BENNING","GA","W-1","FORT BENNINGGAW-1","FORT BENNINGGAW-1",1029]
["FORT BENNING","GA","W-2","FORT BENNINGGAW-2","FORT BENNINGGAW-2",1155]
["FORT BENNING","GA","W-3","FORT BENNINGGAW-3","FORT BENNINGGAW-3",1248]
["FORT BENNING","GA","W-4","FORT BENNINGGAW-4","FORT BENNINGGAW-4",1371]
["FORT BENNING","GA","W-5","FORT BENNINGGAW-5","FORT BENNINGGAW-5",1380]
["FORT BENNING","GA","O-1E","FORT BENNINGGAO-1E","FORT BENNINGGAO-1E",1104]
["FORT BENNING","GA","O-2E","FORT BENNINGGAO-2E","FORT BENNINGGAO-2E",1221]
["FORT BENNING","GA","O-3E",{"$f":"A1986&B1986&C1986","v":"FORT BENNINGGAO-3E"},"FORT BENNINGGAO-3E",1371]
["FORT BENNING","GA","O-1","FORT BENNINGGAO-1","FORT BENNINGGAO-1",987]
["FORT BENNING","GA","O-2","FORT BENNINGGAO-2","FORT BENNINGGAO-2",1083]
["FORT BENNING","GA","O-3","FORT BENNINGGAO-3","FORT BENNINGGAO-3",1275]
["FORT BENNING","GA","O-4","FORT BENNINGGAO-4","FORT BENNINGGAO-4",1377]
["FORT BENNING","GA","O-5","FORT BENNINGGAO-5","FORT BENNINGGAO-5",1383]
["FORT BENNING","GA","O-6","FORT BENNINGGAO-6","FORT BENNINGGAO-6",1389]
["FORT BENNING","GA","O-7","FORT BENNINGGAO-7","FORT BENNINGGAO-7",1419]
["ROBINS AFB","GA","E-1","ROBINS AFBGAE-1","ROBINS AFBGAE-1",879,879,879,879,879,936,969,1008,1059,1161,990,1056,1131,1170,1287,1047,1110,1179,963,1032,1125,1266,1359,1506,1536]
["ROBINS AFB","GA","E-2","ROBINS AFBGAE-2","ROBINS AFBGAE-2",879]
["ROBINS AFB","GA","E-3","ROBINS AFBGAE-3","ROBINS AFBGAE-3",879]
["ROBINS AFB","GA","E-4","ROBINS AFBGAE-4","ROBINS AFBGAE-4",879]
["ROBINS AFB","GA","E-5","ROBINS AFBGAE-5","ROBINS AFBGAE-5",936]
["ROBINS AFB","GA","E-6","ROBINS AFBGAE-6","ROBINS AFBGAE-6",969]
["ROBINS AFB","GA","E-7","ROBINS AFBGAE-7","ROBINS AFBGAE-7",1008]
["ROBINS AFB","GA","E-8","ROBINS AFBGAE-8","ROBINS AFBGAE-8",1059]
["ROBINS AFB","GA","E-9","ROBINS AFBGAE-9","ROBINS AFBGAE-9",1161]
["ROBINS AFB","GA","W-1","ROBINS AFBGAW-1","ROBINS AFBGAW-1",990]
["ROBINS AFB","GA","W-2","ROBINS AFBGAW-2","ROBINS AFBGAW-2",1056]
["ROBINS AFB","GA","W-3","ROBINS AFBGAW-3","ROBINS AFBGAW-3",1131]
["ROBINS AFB","GA","W-4","ROBINS AFBGAW-4","ROBINS AFBGAW-4",1170]
["ROBINS AFB","GA","W-5","ROBINS AFBGAW-5","ROBINS AFBGAW-5",1287]
["ROBINS AFB","GA","O-1E","ROBINS AFBGAO-1E","ROBINS AFBGAO-1E",1047]
["ROBINS AFB","GA","O-2E","ROBINS AFBGAO-2E","ROBINS AFBGAO-2E",1110]
["ROBINS AFB","GA","O-3E","ROBINS AFBGAO-3E","ROBINS AFBGAO-3E",1179]
["ROBINS AFB","GA","O-1","ROBINS AFBGAO-1","ROBINS AFBGAO-1",963]
["ROBINS AFB","GA","O-2","ROBINS AFBGAO-2","ROBINS AFBGAO-2",1032]
["ROBINS AFB","GA","O-3","ROBINS AFBGAO-3","ROBINS AFBGAO-3",1125]
["ROBINS AFB","GA","O-4","ROBINS AFBGAO-4","ROBINS AFBGAO-4",1266]
["ROBINS AFB","GA","O-5","ROBINS AFBGAO-5","ROBINS AFBGAO-5",1359]
["ROBINS AFB","GA","O-6","ROBINS AFBGAO-6","ROBINS AFBGAO-6",1506]
["ROBINS AFB","GA","O-7","ROBINS AFBGAO-7","ROBINS AFBGAO-7",1536]
["SAVANNAH","GA","E-1","SAVANNAHGAE-1","SAVANNAHGAE-1",990,990,990,990,990,1065,1116,1182,1302,1374,1149,1299,1380,1512,1599,1254,1356,1488,1101,1227,1404,1587,1641,1731,1767]
["SAVANNAH","GA","E-2","SAVANNAHGAE-2","SAVANNAHGAE-2",990]
["SAVANNAH","GA","E-3","SAVANNAHGAE-3","SAVANNAHGAE-3",990]
["SAVANNAH","GA","E-4","SAVANNAHGAE-4","SAVANNAHGAE-4",990]
["SAVANNAH","GA","E-5","SAVANNAHGAE-5","SAVANNAHGAE-5",1065]
["SAVANNAH","GA","E-6","SAVANNAHGAE-6","SAVANNAHGAE-6",1116]
["SAVANNAH","GA","E-7","SAVANNAHGAE-7","SAVANNAHGAE-7",1182]
["SAVANNAH","GA","E-8","SAVANNAHGAE-8","SAVANNAHGAE-8",1302]
["SAVANNAH","GA","E-9","SAVANNAHGAE-9","SAVANNAHGAE-9",1374]
["SAVANNAH","GA","W-1","SAVANNAHGAW-1","SAVANNAHGAW-1",1149]
["SAVANNAH","GA","W-2","SAVANNAHGAW-2","SAVANNAHGAW-2",1299]
["SAVANNAH","GA","W-3","SAVANNAHGAW-3","SAVANNAHGAW-3",1380]
["SAVANNAH","GA","W-4","SAVANNAHGAW-4","SAVANNAHGAW-4",1512]
["SAVANNAH","GA","W-5","SAVANNAHGAW-5","SAVANNAHGAW-5",1599]
["SAVANNAH","GA","O-1E","SAVANNAHGAO-1E","SAVANNAHGAO-1E",1254]
["SAVANNAH","GA","O-2E","SAVANNAHGAO-2E","SAVANNAHGAO-2E",1356]
["SAVANNAH","GA","O-3E","SAVANNAHGAO-3E","SAVANNAHGAO-3E",1488]
["SAVANNAH","GA","O-1","SAVANNAHGAO-1","SAVANNAHGAO-1",1101]
["SAVANNAH","GA","O-2","SAVANNAHGAO-2","SAVANNAHGAO-2",1227]
["SAVANNAH","GA","O-3","SAVANNAHGAO-3","SAVANNAHGAO-3",1404]
["SAVANNAH","GA","O-4","SAVANNAHGAO-4","SAVANNAHGAO-4",1587]
["SAVANNAH","GA","O-5","SAVANNAHGAO-5","SAVANNAHGAO-5",1641]
["SAVANNAH","GA","O-6","SAVANNAHGAO-6","SAVANNAHGAO-6",1731]
["SAVANNAH","GA","O-7","SAVANNAHGAO-7","SAVANNAHGAO-7",1767]
["ATHENS","GA","E-1","ATHENSGAE-1","ATHENSGAE-1",771,771,771,771,771,837,876,918,993,1041,897,990,1044,1134,1200,960,1029,1116,870,945,1062,1191,1239,1302,1329]
["ATHENS","GA","E-2","ATHENSGAE-2","ATHENSGAE-2",771]
["ATHENS","GA","E-3","ATHENSGAE-3","ATHENSGAE-3",771]
["ATHENS","GA","E-4","ATHENSGAE-4","ATHENSGAE-4",771]
["ATHENS","GA","E-5","ATHENSGAE-5","ATHENSGAE-5",837]
["ATHENS","GA","E-6","ATHENSGAE-6","ATHENSGAE-6",876]
["ATHENS","GA","E-7","ATHENSGAE-7","ATHENSGAE-7",918]
["ATHENS","GA","E-8","ATHENSGAE-8","ATHENSGAE-8",993]
["ATHENS","GA","E-9",{"$f":"A2050&B2050&C2050","v":"ATHENSGAE-9"},"ATHENSGAE-9",1041]
["ATHENS","GA","W-1","ATHENSGAW-1","ATHENSGAW-1",897]
["ATHENS","GA","W-2","ATHENSGAW-2","ATHENSGAW-2",990]
["ATHENS","GA","W-3","ATHENSGAW-3","ATHENSGAW-3",1044]
["ATHENS","GA","W-4","ATHENSGAW-4","ATHENSGAW-4",1134]
["ATHENS","GA","W-5","ATHENSGAW-5","ATHENSGAW-5",1200]
["ATHENS","GA","O-1E","ATHENSGAO-1E","ATHENSGAO-1E",960]
["ATHENS","GA","O-2E","ATHENSGAO-2E","ATHENSGAO-2E",1029]
["ATHENS","GA","O-3E","ATHENSGAO-3E","ATHENSGAO-3E",1116]
["ATHENS","GA","O-1","ATHENSGAO-1","ATHENSGAO-1",870]
["ATHENS","GA","O-2","ATHENSGAO-2","ATHENSGAO-2",945]
["ATHENS","GA","O-3","ATHENSGAO-3","ATHENSGAO-3",1062]
["ATHENS","GA","O-4","ATHENSGAO-4","ATHENSGAO-4",1191]
["ATHENS","GA","O-5","ATHENSGAO-5","ATHENSGAO-5",1239]
["ATHENS","GA","O-6","ATHENSGAO-6","ATHENSGAO-6",1302]
["ATHENS","GA","O-7","ATHENSGAO-7","ATHENSGAO-7",1329]
["DAHLONEGH","GA","E-1","DAHLONEGHGAE-1","DAHLONEGHGAE-1",729,729,729,729,729,798,879,951,1086,1119,900,1086,1122,1185,1233,1065,1113,1173,825,1023,1134,1227,1257,1305,1332]
["DAHLONEGH","GA","E-2","DAHLONEGHGAE-2","DAHLONEGHGAE-2",729]
["DAHLONEGH","GA","E-3","DAHLONEGHGAE-3","DAHLONEGHGAE-3",729]
["DAHLONEGH","GA","E-4","DAHLONEGHGAE-4","DAHLONEGHGAE-4",729]
["DAHLONEGH","GA","E-5","DAHLONEGHGAE-5","DAHLONEGHGAE-5",798]
["DAHLONEGH","GA","E-6","DAHLONEGHGAE-6","DAHLONEGHGAE-6",879]
["DAHLONEGH","GA","E-7","DAHLONEGHGAE-7","DAHLONEGHGAE-7",951]
["DAHLONEGH","GA","E-8","DAHLONEGHGAE-8","DAHLONEGHGAE-8",1086]
["DAHLONEGH","GA","E-9","DAHLONEGHGAE-9","DAHLONEGHGAE-9",1119]
["DAHLONEGH","GA","W-1","DAHLONEGHGAW-1","DAHLONEGHGAW-1",900]
["DAHLONEGH","GA","W-2","DAHLONEGHGAW-2","DAHLONEGHGAW-2",1086]
["DAHLONEGH","GA","W-3","DAHLONEGHGAW-3","DAHLONEGHGAW-3",1122]
["DAHLONEGH","GA","W-4","DAHLONEGHGAW-4","DAHLONEGHGAW-4",1185]
["DAHLONEGH","GA","W-5","DAHLONEGHGAW-5","DAHLONEGHGAW-5",1233]
["DAHLONEGH","GA","O-1E","DAHLONEGHGAO-1E","DAHLONEGHGAO-1E",1065]
["DAHLONEGH","GA","O-2E","DAHLONEGHGAO-2E","DAHLONEGHGAO-2E",1113]
["DAHLONEGH","GA","O-3E","DAHLONEGHGAO-3E","DAHLONEGHGAO-3E",1173]
["DAHLONEGH","GA","O-1","DAHLONEGHGAO-1","DAHLONEGHGAO-1",825]
["DAHLONEGH","GA","O-2","DAHLONEGHGAO-2","DAHLONEGHGAO-2",1023]
["DAHLONEGH","GA","O-3","DAHLONEGHGAO-3","DAHLONEGHGAO-3",1134]
["DAHLONEGH","GA","O-4","DAHLONEGHGAO-4","DAHLONEGHGAO-4",1227]
["DAHLONEGH","GA","O-5","DAHLONEGHGAO-5","DAHLONEGHGAO-5",1257]
["DAHLONEGH","GA","O-6","DAHLONEGHGAO-6","DAHLONEGHGAO-6",1305]
["DAHLONEGH","GA","O-7","DAHLONEGHGAO-7","DAHLONEGHGAO-7",1332]
["FORT STEWART","GA","E-1","FORT STEWARTGAE-1","FORT STEWARTGAE-1",918,918,918,918,918,990,1080,1098,1191,1287,1080,1188,1296,1446,1470,1128,1266,1440,1026,1110,1329,1467,1482,1506,1536]
["FORT STEWART","GA","E-2","FORT STEWARTGAE-2","FORT STEWARTGAE-2",918]
["FORT STEWART","GA","E-3","FORT STEWARTGAE-3","FORT STEWARTGAE-3",918]
["FORT STEWART","GA","E-4","FORT STEWARTGAE-4","FORT STEWARTGAE-4",918]
["FORT STEWART","GA","E-5","FORT STEWARTGAE-5","FORT STEWARTGAE-5",990]
["FORT STEWART","GA","E-6","FORT STEWARTGAE-6","FORT STEWARTGAE-6",1080]
["FORT STEWART","GA","E-7","FORT STEWARTGAE-7","FORT STEWARTGAE-7",1098]
["FORT STEWART","GA","E-8","FORT STEWARTGAE-8","FORT STEWARTGAE-8",1191]
["FORT STEWART","GA","E-9","FORT STEWARTGAE-9","FORT STEWARTGAE-9",1287]
["FORT STEWART","GA","W-1","FORT STEWARTGAW-1","FORT STEWARTGAW-1",1080]
["FORT STEWART","GA","W-2","FORT STEWARTGAW-2","FORT STEWARTGAW-2",1188]
["FORT STEWART","GA","W-3","FORT STEWARTGAW-3","FORT STEWARTGAW-3",1296]
["FORT STEWART","GA","W-4","FORT STEWARTGAW-4","FORT STEWARTGAW-4",1446]
["FORT STEWART","GA","W-5","FORT STEWARTGAW-5","FORT STEWARTGAW-5",1470]
["FORT STEWART","GA","O-1E","FORT STEWARTGAO-1E","FORT STEWARTGAO-1E",1128]
["FORT STEWART","GA","O-2E","FORT STEWARTGAO-2E","FORT STEWARTGAO-2E",1266]
["FORT STEWART","GA","O-3E","FORT STEWARTGAO-3E","FORT STEWARTGAO-3E",1440]
["FORT STEWART","GA","O-1","FORT STEWARTGAO-1","FORT STEWARTGAO-1",1026]
["FORT STEWART","GA","O-2","FORT STEWARTGAO-2","FORT STEWARTGAO-2",1110]
["FORT STEWART","GA","O-3","FORT STEWARTGAO-3","FORT STEWARTGAO-3",1329]
["FORT STEWART","GA","O-4","FORT STEWARTGAO-4","FORT STEWARTGAO-4",1467]
["FORT STEWART","GA","O-5","FORT STEWARTGAO-5","FORT STEWARTGAO-5",1482]
["FORT STEWART","GA","O-6","FORT STEWARTGAO-6","FORT STEWARTGAO-6",1506]
["FORT STEWART","GA","O-7","FORT STEWARTGAO-7","FORT STEWARTGAO-7",1536]
["MOODY AFB","GA","E-1",{"$f":"A2114&B2114&C2114","v":"MOODY AFBGAE-1"},"MOODY AFBGAE-1",690,690,690,690,690,801,870,921,1008,1062,897,1008,1068,1161,1212,975,1050,1149,861,954,1086,1203,1293,1305,1317]
["MOODY AFB","GA","E-2","MOODY AFBGAE-2","MOODY AFBGAE-2",690]
["MOODY AFB","GA","E-3","MOODY AFBGAE-3","MOODY AFBGAE-3",690]
["MOODY AFB","GA","E-4","MOODY AFBGAE-4","MOODY AFBGAE-4",690]
["MOODY AFB","GA","E-5","MOODY AFBGAE-5","MOODY AFBGAE-5",801]
["MOODY AFB","GA","E-6","MOODY AFBGAE-6","MOODY AFBGAE-6",870]
["MOODY AFB","GA","E-7","MOODY AFBGAE-7","MOODY AFBGAE-7",921]
["MOODY AFB","GA","E-8","MOODY AFBGAE-8","MOODY AFBGAE-8",1008]
["MOODY AFB","GA","E-9","MOODY AFBGAE-9","MOODY AFBGAE-9",1062]
["MOODY AFB","GA","W-1","MOODY AFBGAW-1","MOODY AFBGAW-1",897]
["MOODY AFB","GA","W-2","MOODY AFBGAW-2","MOODY AFBGAW-2",1008]
["MOODY AFB","GA","W-3","MOODY AFBGAW-3","MOODY AFBGAW-3",1068]
["MOODY AFB","GA","W-4","MOODY AFBGAW-4","MOODY AFBGAW-4",1161]
["MOODY AFB","GA","W-5","MOODY AFBGAW-5","MOODY AFBGAW-5",1212]
["MOODY AFB","GA","O-1E","MOODY AFBGAO-1E","MOODY AFBGAO-1E",975]
["MOODY AFB","GA","O-2E","MOODY AFBGAO-2E","MOODY AFBGAO-2E",1050]
["MOODY AFB","GA","O-3E","MOODY AFBGAO-3E","MOODY AFBGAO-3E",1149]
["MOODY AFB","GA","O-1","MOODY AFBGAO-1","MOODY AFBGAO-1",861]
["MOODY AFB","GA","O-2","MOODY AFBGAO-2","MOODY AFBGAO-2",954]
["MOODY AFB","GA","O-3","MOODY AFBGAO-3","MOODY AFBGAO-3",1086]
["MOODY AFB","GA","O-4","MOODY AFBGAO-4","MOODY AFBGAO-4",1203]
["MOODY AFB","GA","O-5","MOODY AFBGAO-5","MOODY AFBGAO-5",1293]
["MOODY AFB","GA","O-6","MOODY AFBGAO-6","MOODY AFBGAO-6",1305]
["MOODY AFB","GA","O-7","MOODY AFBGAO-7","MOODY AFBGAO-7",1317]
["MAUI COUNTY","HI","E-1","MAUI COUNTYHIE-1","MAUI COUNTYHIE-1",1317,1317,1317,1317,1317,1548,1674,1752,1872,1938,1713,1869,1944,2049,2082,1830,1923,2040,1662,1800,1965,2076,2100,2133,2175]
["MAUI COUNTY","HI","E-2","MAUI COUNTYHIE-2","MAUI COUNTYHIE-2",1317]
["MAUI COUNTY","HI","E-3","MAUI COUNTYHIE-3","MAUI COUNTYHIE-3",1317]
["MAUI COUNTY","HI","E-4","MAUI COUNTYHIE-4","MAUI COUNTYHIE-4",1317]
["MAUI COUNTY","HI","E-5","MAUI COUNTYHIE-5","MAUI COUNTYHIE-5",1548]
["MAUI COUNTY","HI","E-6","MAUI COUNTYHIE-6","MAUI COUNTYHIE-6",1674]
["MAUI COUNTY","HI","E-7","MAUI COUNTYHIE-7","MAUI COUNTYHIE-7",1752]
["MAUI COUNTY","HI","E-8","MAUI COUNTYHIE-8","MAUI COUNTYHIE-8",1872]
["MAUI COUNTY","HI","E-9","MAUI COUNTYHIE-9","MAUI COUNTYHIE-9",1938]
["MAUI COUNTY","HI","W-1","MAUI COUNTYHIW-1","MAUI COUNTYHIW-1",1713]
["MAUI COUNTY","HI","W-2","MAUI COUNTYHIW-2","MAUI COUNTYHIW-2",1869]
["MAUI COUNTY","HI","W-3","MAUI COUNTYHIW-3","MAUI COUNTYHIW-3",1944]
["MAUI COUNTY","HI","W-4","MAUI COUNTYHIW-4","MAUI COUNTYHIW-4",2049]
["MAUI COUNTY","HI","W-5","MAUI COUNTYHIW-5","MAUI COUNTYHIW-5",2082]
["MAUI COUNTY","HI","O-1E","MAUI COUNTYHIO-1E","MAUI COUNTYHIO-1E",1830]
["MAUI COUNTY","HI","O-2E","MAUI COUNTYHIO-2E","MAUI COUNTYHIO-2E",1923]
["MAUI COUNTY","HI","O-3E","MAUI COUNTYHIO-3E","MAUI COUNTYHIO-3E",2040]
["MAUI COUNTY","HI","O-1","MAUI COUNTYHIO-1","MAUI COUNTYHIO-1",1662]
["MAUI COUNTY","HI","O-2","MAUI COUNTYHIO-2","MAUI COUNTYHIO-2",1800]
["MAUI COUNTY","HI","O-3","MAUI COUNTYHIO-3","MAUI COUNTYHIO-3",1965]
["MAUI COUNTY","HI","O-4","MAUI COUNTYHIO-4","MAUI COUNTYHIO-4",2076]
["MAUI COUNTY","HI","O-5","MAUI COUNTYHIO-5","MAUI COUNTYHIO-5",2100]
["MAUI COUNTY","HI","O-6","MAUI COUNTYHIO-6","MAUI COUNTYHIO-6",2133]
["MAUI COUNTY","HI","O-7","MAUI COUNTYHIO-7","MAUI COUNTYHIO-7",2175]
["HONOLULU COUNTY","HI","E-1","HONOLULU COUNTYHIE-1","HONOLULU COUNTYHIE-1",1572,1572,1572,1572,1572,1794,1917,2004,2163,2274,1965,2160,2283,2472,2580,2094,2250,2445,1905,2061,2319,2565,2634,2745,2799]
["HONOLULU COUNTY","HI","E-2","HONOLULU COUNTYHIE-2","HONOLULU COUNTYHIE-2",1572]
["HONOLULU COUNTY","HI","E-3","HONOLULU COUNTYHIE-3","HONOLULU COUNTYHIE-3",1572]
["HONOLULU COUNTY","HI","E-4","HONOLULU COUNTYHIE-4","HONOLULU COUNTYHIE-4",1572]
["HONOLULU COUNTY","HI","E-5","HONOLULU COUNTYHIE-5","HONOLULU COUNTYHIE-5",1794]
["HONOLULU COUNTY","HI","E-6","HONOLULU COUNTYHIE-6","HONOLULU COUNTYHIE-6",1917]
["HONOLULU COUNTY","HI","E-7","HONOLULU COUNTYHIE-7","HONOLULU COUNTYHIE-7",2004]
["HONOLULU COUNTY","HI","E-8","HONOLULU COUNTYHIE-8","HONOLULU COUNTYHIE-8",2163]
["HONOLULU COUNTY","HI","E-9","HONOLULU COUNTYHIE-9","HONOLULU COUNTYHIE-9",2274]
["HONOLULU COUNTY","HI","W-1","HONOLULU COUNTYHIW-1","HONOLULU COUNTYHIW-1",1965]
["HONOLULU COUNTY","HI","W-2","HONOLULU COUNTYHIW-2","HONOLULU COUNTYHIW-2",2160]
["HONOLULU COUNTY","HI","W-3","HONOLULU COUNTYHIW-3","HONOLULU COUNTYHIW-3",2283]
["HONOLULU COUNTY","HI","W-4","HONOLULU COUNTYHIW-4","HONOLULU COUNTYHIW-4",2472]
["HONOLULU COUNTY","HI","W-5","HONOLULU COUNTYHIW-5","HONOLULU COUNTYHIW-5",2580]
["HONOLULU COUNTY","HI","O-1E","HONOLULU COUNTYHIO-1E","HONOLULU COUNTYHIO-1E",2094]
["HONOLULU COUNTY","HI","O-2E","HONOLULU COUNTYHIO-2E","HONOLULU COUNTYHIO-2E",2250]
["HONOLULU COUNTY","HI","O-3E",{"$f":"A2178&B2178&C2178","v":"HONOLULU COUNTYHIO-3E"},"HONOLULU COUNTYHIO-3E",2445]
["HONOLULU COUNTY","HI","O-1","HONOLULU COUNTYHIO-1","HONOLULU COUNTYHIO-1",1905]
["HONOLULU COUNTY","HI","O-2","HONOLULU COUNTYHIO-2","HONOLULU COUNTYHIO-2",2061]
["HONOLULU COUNTY","HI","O-3","HONOLULU COUNTYHIO-3","HONOLULU COUNTYHIO-3",2319]
["HONOLULU COUNTY","HI","O-4","HONOLULU COUNTYHIO-4","HONOLULU COUNTYHIO-4",2565]
["HONOLULU COUNTY","HI","O-5","HONOLULU COUNTYHIO-5","HONOLULU COUNTYHIO-5",2634]
["HONOLULU COUNTY","HI","O-6","HONOLULU COUNTYHIO-6","HONOLULU COUNTYHIO-6",2745]
["HONOLULU COUNTY","HI","O-7","HONOLULU COUNTYHIO-7","HONOLULU COUNTYHIO-7",2799]
["HAWAII COUNTY","HI","E-1","HAWAII COUNTYHIE-1","HAWAII COUNTYHIE-1",1062,1062,1062,1062,1062,1227,1362,1419,1545,1650,1389,1542,1659,1824,1857,1476,1626,1815,1350,1455,1692,1851,1875,1908,1947]
["HAWAII COUNTY","HI","E-2","HAWAII COUNTYHIE-2","HAWAII COUNTYHIE-2",1062]
["HAWAII COUNTY","HI","E-3","HAWAII COUNTYHIE-3","HAWAII COUNTYHIE-3",1062]
["HAWAII COUNTY","HI","E-4","HAWAII COUNTYHIE-4","HAWAII COUNTYHIE-4",1062]
["HAWAII COUNTY","HI","E-5","HAWAII COUNTYHIE-5","HAWAII COUNTYHIE-5",1227]
["HAWAII COUNTY","HI","E-6","HAWAII COUNTYHIE-6","HAWAII COUNTYHIE-6",1362]
["HAWAII COUNTY","HI","E-7","HAWAII COUNTYHIE-7","HAWAII COUNTYHIE-7",1419]
["HAWAII COUNTY","HI","E-8","HAWAII COUNTYHIE-8","HAWAII COUNTYHIE-8",1545]
["HAWAII COUNTY","HI","E-9","HAWAII COUNTYHIE-9","HAWAII COUNTYHIE-9",1650]
["HAWAII COUNTY","HI","W-1","HAWAII COUNTYHIW-1","HAWAII COUNTYHIW-1",1389]
["HAWAII COUNTY","HI","W-2","HAWAII COUNTYHIW-2","HAWAII COUNTYHIW-2",1542]
["HAWAII COUNTY","HI","W-3","HAWAII COUNTYHIW-3","HAWAII COUNTYHIW-3",1659]
["HAWAII COUNTY","HI","W-4","HAWAII COUNTYHIW-4","HAWAII COUNTYHIW-4",1824]
["HAWAII COUNTY","HI","W-5","HAWAII COUNTYHIW-5","HAWAII COUNTYHIW-5",1857]
["HAWAII COUNTY","HI","O-1E","HAWAII COUNTYHIO-1E","HAWAII COUNTYHIO-1E",1476]
["HAWAII COUNTY","HI","O-2E","HAWAII COUNTYHIO-2E","HAWAII COUNTYHIO-2E",1626]
["HAWAII COUNTY","HI","O-3E","HAWAII COUNTYHIO-3E","HAWAII COUNTYHIO-3E",1815]
["HAWAII COUNTY","HI","O-1","HAWAII COUNTYHIO-1","HAWAII COUNTYHIO-1",1350]
["HAWAII COUNTY","HI","O-2","HAWAII COUNTYHIO-2","HAWAII COUNTYHIO-2",1455]
["HAWAII COUNTY","HI","O-3","HAWAII COUNTYHIO-3","HAWAII COUNTYHIO-3",1692]
["HAWAII COUNTY","HI","O-4","HAWAII COUNTYHIO-4","HAWAII COUNTYHIO-4",1851]
["HAWAII COUNTY","HI","O-5","HAWAII COUNTYHIO-5","HAWAII COUNTYHIO-5",1875]
["HAWAII COUNTY","HI","O-6","HAWAII COUNTYHIO-6","HAWAII COUNTYHIO-6",1908]
["HAWAII COUNTY","HI","O-7","HAWAII COUNTYHIO-7","HAWAII COUNTYHIO-7",1947]
["KAUAI COUNTY","HI","E-1","KAUAI COUNTYHIE-1","KAUAI COUNTYHIE-1",1302,1302,1302,1302,1302,1455,1605,1746,1926,1977,1677,1923,1983,2064,2082,1893,1965,2061,1581,1839,2001,2079,2313,2337,2361]
["KAUAI COUNTY","HI","E-2","KAUAI COUNTYHIE-2","KAUAI COUNTYHIE-2",1302]
["KAUAI COUNTY","HI","E-3","KAUAI COUNTYHIE-3","KAUAI COUNTYHIE-3",1302]
["KAUAI COUNTY","HI","E-4","KAUAI COUNTYHIE-4","KAUAI COUNTYHIE-4",1302]
["KAUAI COUNTY","HI","E-5","KAUAI COUNTYHIE-5","KAUAI COUNTYHIE-5",1455]
["KAUAI COUNTY","HI","E-6","KAUAI COUNTYHIE-6","KAUAI COUNTYHIE-6",1605]
["KAUAI COUNTY","HI","E-7","KAUAI COUNTYHIE-7","KAUAI COUNTYHIE-7",1746]
["KAUAI COUNTY","HI","E-8","KAUAI COUNTYHIE-8","KAUAI COUNTYHIE-8",1926]
["KAUAI COUNTY","HI","E-9","KAUAI COUNTYHIE-9","KAUAI COUNTYHIE-9",1977]
["KAUAI COUNTY","HI","W-1","KAUAI COUNTYHIW-1","KAUAI COUNTYHIW-1",1677]
["KAUAI COUNTY","HI","W-2","KAUAI COUNTYHIW-2","KAUAI COUNTYHIW-2",1923]
["KAUAI COUNTY","HI","W-3","KAUAI COUNTYHIW-3","KAUAI COUNTYHIW-3",1983]
["KAUAI COUNTY","HI","W-4","KAUAI COUNTYHIW-4","KAUAI COUNTYHIW-4",2064]
["KAUAI COUNTY","HI","W-5","KAUAI COUNTYHIW-5","KAUAI COUNTYHIW-5",2082]
["KAUAI COUNTY","HI","O-1E","KAUAI COUNTYHIO-1E","KAUAI COUNTYHIO-1E",1893]
["KAUAI COUNTY","HI","O-2E","KAUAI COUNTYHIO-2E","KAUAI COUNTYHIO-2E",1965]
["KAUAI COUNTY","HI","O-3E","KAUAI COUNTYHIO-3E","KAUAI COUNTYHIO-3E",2061]
["KAUAI COUNTY","HI","O-1","KAUAI COUNTYHIO-1","KAUAI COUNTYHIO-1",1581]
["KAUAI COUNTY","HI","O-2","KAUAI COUNTYHIO-2","KAUAI COUNTYHIO-2",1839]
["KAUAI COUNTY","HI","O-3","KAUAI COUNTYHIO-3","KAUAI COUNTYHIO-3",2001]
["KAUAI COUNTY","HI","O-4","KAUAI COUNTYHIO-4","KAUAI COUNTYHIO-4",2079]
["KAUAI COUNTY","HI","O-5","KAUAI COUNTYHIO-5","KAUAI COUNTYHIO-5",2313]
["KAUAI COUNTY","HI","O-6","KAUAI COUNTYHIO-6","KAUAI COUNTYHIO-6",2337]
["KAUAI COUNTY","HI","O-7","KAUAI COUNTYHIO-7","KAUAI COUNTYHIO-7",2361]
["DES MOINES","IA","E-1","DES MOINESIAE-1","DES MOINESIAE-1",795,795,795,795,795,888,1026,1065,1155,1239,1026,1152,1245,1380,1434,1104,1221,1368,933,1074,1272,1425,1461,1515,1545]
["DES MOINES","IA","E-2","DES MOINESIAE-2","DES MOINESIAE-2",795]
["DES MOINES","IA","E-3","DES MOINESIAE-3","DES MOINESIAE-3",795]
["DES MOINES","IA","E-4","DES MOINESIAE-4","DES MOINESIAE-4",795]
["DES MOINES","IA","E-5","DES MOINESIAE-5","DES MOINESIAE-5",888]
["DES MOINES","IA","E-6","DES MOINESIAE-6","DES MOINESIAE-6",1026]
["DES MOINES","IA","E-7","DES MOINESIAE-7","DES MOINESIAE-7",1065]
["DES MOINES","IA","E-8","DES MOINESIAE-8","DES MOINESIAE-8",1155]
["DES MOINES","IA","E-9",{"$f":"A2242&B2242&C2242","v":"DES MOINESIAE-9"},"DES MOINESIAE-9",1239]
["DES MOINES","IA","W-1","DES MOINESIAW-1","DES MOINESIAW-1",1026]
["DES MOINES","IA","W-2","DES MOINESIAW-2","DES MOINESIAW-2",1152]
["DES MOINES","IA","W-3","DES MOINESIAW-3","DES MOINESIAW-3",1245]
["DES MOINES","IA","W-4","DES MOINESIAW-4","DES MOINESIAW-4",1380]
["DES MOINES","IA","W-5","DES MOINESIAW-5","DES MOINESIAW-5",1434]
["DES MOINES","IA","O-1E","DES MOINESIAO-1E","DES MOINESIAO-1E",1104]
["DES MOINES","IA","O-2E","DES MOINESIAO-2E","DES MOINESIAO-2E",1221]
["DES MOINES","IA","O-3E","DES MOINESIAO-3E","DES MOINESIAO-3E",1368]
["DES MOINES","IA","O-1","DES MOINESIAO-1","DES MOINESIAO-1",933]
["DES MOINES","IA","O-2","DES MOINESIAO-2","DES MOINESIAO-2",1074]
["DES MOINES","IA","O-3","DES MOINESIAO-3","DES MOINESIAO-3",1272]
["DES MOINES","IA","O-4","DES MOINESIAO-4","DES MOINESIAO-4",1425]
["DES MOINES","IA","O-5","DES MOINESIAO-5","DES MOINESIAO-5",1461]
["DES MOINES","IA","O-6","DES MOINESIAO-6","DES MOINESIAO-6",1515]
["DES MOINES","IA","O-7","DES MOINESIAO-7","DES MOINESIAO-7",1545]
["AMES","IA","E-1","AMESIAE-1","AMESIAE-1",675,675,675,675,675,762,933,942,1020,1107,933,1017,1116,1248,1260,963,1086,1245,807,936,1143,1260,1338,1350,1365]
["AMES","IA","E-2","AMESIAE-2","AMESIAE-2",675]
["AMES","IA","E-3","AMESIAE-3","AMESIAE-3",675]
["AMES","IA","E-4","AMESIAE-4","AMESIAE-4",675]
["AMES","IA","E-5","AMESIAE-5","AMESIAE-5",762]
["AMES","IA","E-6","AMESIAE-6","AMESIAE-6",933]
["AMES","IA","E-7","AMESIAE-7","AMESIAE-7",942]
["AMES","IA","E-8","AMESIAE-8","AMESIAE-8",1020]
["AMES","IA","E-9","AMESIAE-9","AMESIAE-9",1107]
["AMES","IA","W-1","AMESIAW-1","AMESIAW-1",933]
["AMES","IA","W-2","AMESIAW-2","AMESIAW-2",1017]
["AMES","IA","W-3","AMESIAW-3","AMESIAW-3",1116]
["AMES","IA","W-4","AMESIAW-4","AMESIAW-4",1248]
["AMES","IA","W-5","AMESIAW-5","AMESIAW-5",1260]
["AMES","IA","O-1E","AMESIAO-1E","AMESIAO-1E",963]
["AMES","IA","O-2E","AMESIAO-2E","AMESIAO-2E",1086]
["AMES","IA","O-3E","AMESIAO-3E","AMESIAO-3E",1245]
["AMES","IA","O-1","AMESIAO-1","AMESIAO-1",807]
["AMES","IA","O-2","AMESIAO-2","AMESIAO-2",936]
["AMES","IA","O-3","AMESIAO-3","AMESIAO-3",1143]
["AMES","IA","O-4","AMESIAO-4","AMESIAO-4",1260]
["AMES","IA","O-5","AMESIAO-5","AMESIAO-5",1338]
["AMES","IA","O-6","AMESIAO-6","AMESIAO-6",1350]
["AMES","IA","O-7","AMESIAO-7","AMESIAO-7",1365]
["WATERLOO","IA","E-1","WATERLOOIAE-1","WATERLOOIAE-1",660,660,660,660,660,714,795,840,945,990,795,942,993,1074,1137,915,978,1059,741,885,1008,1128,1167,1227,1254]
["WATERLOO","IA","E-2","WATERLOOIAE-2","WATERLOOIAE-2",660]
["WATERLOO","IA","E-3","WATERLOOIAE-3","WATERLOOIAE-3",660]
["WATERLOO","IA","E-4","WATERLOOIAE-4","WATERLOOIAE-4",660]
["WATERLOO","IA","E-5","WATERLOOIAE-5","WATERLOOIAE-5",714]
["WATERLOO","IA","E-6","WATERLOOIAE-6","WATERLOOIAE-6",795]
["WATERLOO","IA","E-7","WATERLOOIAE-7","WATERLOOIAE-7",840]
["WATERLOO","IA","E-8","WATERLOOIAE-8","WATERLOOIAE-8",945]
["WATERLOO","IA","E-9","WATERLOOIAE-9","WATERLOOIAE-9",990]
["WATERLOO","IA","W-1","WATERLOOIAW-1","WATERLOOIAW-1",795]
["WATERLOO","IA","W-2","WATERLOOIAW-2","WATERLOOIAW-2",942]
["WATERLOO","IA","W-3","WATERLOOIAW-3","WATERLOOIAW-3",993]
["WATERLOO","IA","W-4","WATERLOOIAW-4","WATERLOOIAW-4",1074]
["WATERLOO","IA","W-5","WATERLOOIAW-5","WATERLOOIAW-5",1137]
["WATERLOO","IA","O-1E","WATERLOOIAO-1E","WATERLOOIAO-1E",915]
["WATERLOO","IA","O-2E","WATERLOOIAO-2E","WATERLOOIAO-2E",978]
["WATERLOO","IA","O-3E","WATERLOOIAO-3E","WATERLOOIAO-3E",1059]
["WATERLOO","IA","O-1","WATERLOOIAO-1","WATERLOOIAO-1",741]
["WATERLOO","IA","O-2","WATERLOOIAO-2","WATERLOOIAO-2",885]
["WATERLOO","IA","O-3","WATERLOOIAO-3","WATERLOOIAO-3",1008]
["WATERLOO","IA","O-4","WATERLOOIAO-4","WATERLOOIAO-4",1128]
["WATERLOO","IA","O-5","WATERLOOIAO-5","WATERLOOIAO-5",1167]
["WATERLOO","IA","O-6","WATERLOOIAO-6","WATERLOOIAO-6",1227]
["WATERLOO","IA","O-7","WATERLOOIAO-7","WATERLOOIAO-7",1254]
["DUBUQUE","IA","E-1",{"$f":"A2306&B2306&C2306","v":"DUBUQUEIAE-1"},"DUBUQUEIAE-1",699,699,699,699,699,792,933,993,1065,1158,933,1062,1140,1263,1344,1020,1116,1242,843,990,1161,1332,1464,1479,1497]
["DUBUQUE","IA","E-2","DUBUQUEIAE-2","DUBUQUEIAE-2",699]
["DUBUQUE","IA","E-3","DUBUQUEIAE-3","DUBUQUEIAE-3",699]
["DUBUQUE","IA","E-4","DUBUQUEIAE-4","DUBUQUEIAE-4",699]
["DUBUQUE","IA","E-5","DUBUQUEIAE-5","DUBUQUEIAE-5",792]
["DUBUQUE","IA","E-6","DUBUQUEIAE-6","DUBUQUEIAE-6",933]
["DUBUQUE","IA","E-7","DUBUQUEIAE-7","DUBUQUEIAE-7",993]
["DUBUQUE","IA","E-8","DUBUQUEIAE-8","DUBUQUEIAE-8",1065]
["DUBUQUE","IA","E-9","DUBUQUEIAE-9","DUBUQUEIAE-9",1158]
["DUBUQUE","IA","W-1","DUBUQUEIAW-1","DUBUQUEIAW-1",933]
["DUBUQUE","IA","W-2","DUBUQUEIAW-2","DUBUQUEIAW-2",1062]
["DUBUQUE","IA","W-3","DUBUQUEIAW-3","DUBUQUEIAW-3",1140]
["DUBUQUE","IA","W-4","DUBUQUEIAW-4","DUBUQUEIAW-4",1263]
["DUBUQUE","IA","W-5","DUBUQUEIAW-5","DUBUQUEIAW-5",1344]
["DUBUQUE","IA","O-1E","DUBUQUEIAO-1E","DUBUQUEIAO-1E",1020]
["DUBUQUE","IA","O-2E","DUBUQUEIAO-2E","DUBUQUEIAO-2E",1116]
["DUBUQUE","IA","O-3E","DUBUQUEIAO-3E","DUBUQUEIAO-3E",1242]
["DUBUQUE","IA","O-1","DUBUQUEIAO-1","DUBUQUEIAO-1",843]
["DUBUQUE","IA","O-2","DUBUQUEIAO-2","DUBUQUEIAO-2",990]
["DUBUQUE","IA","O-3","DUBUQUEIAO-3","DUBUQUEIAO-3",1161]
["DUBUQUE","IA","O-4","DUBUQUEIAO-4","DUBUQUEIAO-4",1332]
["DUBUQUE","IA","O-5","DUBUQUEIAO-5","DUBUQUEIAO-5",1464]
["DUBUQUE","IA","O-6","DUBUQUEIAO-6","DUBUQUEIAO-6",1479]
["DUBUQUE","IA","O-7","DUBUQUEIAO-7","DUBUQUEIAO-7",1497]
["CEDAR RAPIDS","IA","E-1","CEDAR RAPIDSIAE-1","CEDAR RAPIDSIAE-1",609,609,609,609,609,729,819,876,939,1020,819,903,981,1110,1188,888,969,1089,795,825,996,1176,1227,1308,1332]
["CEDAR RAPIDS","IA","E-2","CEDAR RAPIDSIAE-2","CEDAR RAPIDSIAE-2",609]
["CEDAR RAPIDS","IA","E-3","CEDAR RAPIDSIAE-3","CEDAR RAPIDSIAE-3",609]
["CEDAR RAPIDS","IA","E-4","CEDAR RAPIDSIAE-4","CEDAR RAPIDSIAE-4",609]
["CEDAR RAPIDS","IA","E-5","CEDAR RAPIDSIAE-5","CEDAR RAPIDSIAE-5",729]
["CEDAR RAPIDS","IA","E-6","CEDAR RAPIDSIAE-6","CEDAR RAPIDSIAE-6",819]
["CEDAR RAPIDS","IA","E-7","CEDAR RAPIDSIAE-7","CEDAR RAPIDSIAE-7",876]
["CEDAR RAPIDS","IA","E-8","CEDAR RAPIDSIAE-8","CEDAR RAPIDSIAE-8",939]
["CEDAR RAPIDS","IA","E-9","CEDAR RAPIDSIAE-9","CEDAR RAPIDSIAE-9",1020]
["CEDAR RAPIDS","IA","W-1","CEDAR RAPIDSIAW-1","CEDAR RAPIDSIAW-1",819]
["CEDAR RAPIDS","IA","W-2","CEDAR RAPIDSIAW-2","CEDAR RAPIDSIAW-2",903]
["CEDAR RAPIDS","IA","W-3","CEDAR RAPIDSIAW-3","CEDAR RAPIDSIAW-3",981]
["CEDAR RAPIDS","IA","W-4","CEDAR RAPIDSIAW-4","CEDAR RAPIDSIAW-4",1110]
["CEDAR RAPIDS","IA","W-5","CEDAR RAPIDSIAW-5","CEDAR RAPIDSIAW-5",1188]
["CEDAR RAPIDS","IA","O-1E","CEDAR RAPIDSIAO-1E","CEDAR RAPIDSIAO-1E",888]
["CEDAR RAPIDS","IA","O-2E","CEDAR RAPIDSIAO-2E","CEDAR RAPIDSIAO-2E",969]
["CEDAR RAPIDS","IA","O-3E","CEDAR RAPIDSIAO-3E","CEDAR RAPIDSIAO-3E",1089]
["CEDAR RAPIDS","IA","O-1","CEDAR RAPIDSIAO-1","CEDAR RAPIDSIAO-1",795]
["CEDAR RAPIDS","IA","O-2","CEDAR RAPIDSIAO-2","CEDAR RAPIDSIAO-2",825]
["CEDAR RAPIDS","IA","O-3","CEDAR RAPIDSIAO-3","CEDAR RAPIDSIAO-3",996]
["CEDAR RAPIDS","IA","O-4","CEDAR RAPIDSIAO-4","CEDAR RAPIDSIAO-4",1176]
["CEDAR RAPIDS","IA","O-5","CEDAR RAPIDSIAO-5","CEDAR RAPIDSIAO-5",1227]
["CEDAR RAPIDS","IA","O-6","CEDAR RAPIDSIAO-6","CEDAR RAPIDSIAO-6",1308]
["CEDAR RAPIDS","IA","O-7","CEDAR RAPIDSIAO-7","CEDAR RAPIDSIAO-7",1332]
["SIOUX CITY","IA","E-1","SIOUX CITYIAE-1","SIOUX CITYIAE-1",654,654,654,654,654,735,786,843,924,957,816,924,960,1014,1047,903,948,1005,777,882,969,1041,1062,1098,1119]
["SIOUX CITY","IA","E-2","SIOUX CITYIAE-2","SIOUX CITYIAE-2",654]
["SIOUX CITY","IA","E-3","SIOUX CITYIAE-3","SIOUX CITYIAE-3",654]
["SIOUX CITY","IA","E-4","SIOUX CITYIAE-4","SIOUX CITYIAE-4",654]
["SIOUX CITY","IA","E-5","SIOUX CITYIAE-5","SIOUX CITYIAE-5",735]
["SIOUX CITY","IA","E-6","SIOUX CITYIAE-6","SIOUX CITYIAE-6",786]
["SIOUX CITY","IA","E-7","SIOUX CITYIAE-7","SIOUX CITYIAE-7",843]
["SIOUX CITY","IA","E-8","SIOUX CITYIAE-8","SIOUX CITYIAE-8",924]
["SIOUX CITY","IA","E-9","SIOUX CITYIAE-9","SIOUX CITYIAE-9",957]
["SIOUX CITY","IA","W-1","SIOUX CITYIAW-1","SIOUX CITYIAW-1",816]
["SIOUX CITY","IA","W-2","SIOUX CITYIAW-2","SIOUX CITYIAW-2",924]
["SIOUX CITY","IA","W-3","SIOUX CITYIAW-3","SIOUX CITYIAW-3",960]
["SIOUX CITY","IA","W-4","SIOUX CITYIAW-4","SIOUX CITYIAW-4",1014]
["SIOUX CITY","IA","W-5","SIOUX CITYIAW-5","SIOUX CITYIAW-5",1047]
["SIOUX CITY","IA","O-1E","SIOUX CITYIAO-1E","SIOUX CITYIAO-1E",903]
["SIOUX CITY","IA","O-2E","SIOUX CITYIAO-2E","SIOUX CITYIAO-2E",948]
["SIOUX CITY","IA","O-3E",{"$f":"A2370&B2370&C2370","v":"SIOUX CITYIAO-3E"},"SIOUX CITYIAO-3E",1005]
["SIOUX CITY","IA","O-1","SIOUX CITYIAO-1","SIOUX CITYIAO-1",777]
["SIOUX CITY","IA","O-2","SIOUX CITYIAO-2","SIOUX CITYIAO-2",882]
["SIOUX CITY","IA","O-3","SIOUX CITYIAO-3","SIOUX CITYIAO-3",969]
["SIOUX CITY","IA","O-4","SIOUX CITYIAO-4","SIOUX CITYIAO-4",1041]
["SIOUX CITY","IA","O-5","SIOUX CITYIAO-5","SIOUX CITYIAO-5",1062]
["SIOUX CITY","IA","O-6","SIOUX CITYIAO-6","SIOUX CITYIAO-6",1098]
["SIOUX CITY","IA","O-7","SIOUX CITYIAO-7","SIOUX CITYIAO-7",1119]
["IOWA CITY","IA","E-1","IOWA CITYIAE-1","IOWA CITYIAE-1",741,741,741,741,741,816,975,1008,1113,1185,975,1110,1191,1311,1359,1068,1170,1299,855,1032,1215,1353,1560,1575,1590]
["IOWA CITY","IA","E-2","IOWA CITYIAE-2","IOWA CITYIAE-2",741]
["IOWA CITY","IA","E-3","IOWA CITYIAE-3","IOWA CITYIAE-3",741]
["IOWA CITY","IA","E-4","IOWA CITYIAE-4","IOWA CITYIAE-4",741]
["IOWA CITY","IA","E-5","IOWA CITYIAE-5","IOWA CITYIAE-5",816]
["IOWA CITY","IA","E-6","IOWA CITYIAE-6","IOWA CITYIAE-6",975]
["IOWA CITY","IA","E-7","IOWA CITYIAE-7","IOWA CITYIAE-7",1008]
["IOWA CITY","IA","E-8","IOWA CITYIAE-8","IOWA CITYIAE-8",1113]
["IOWA CITY","IA","E-9","IOWA CITYIAE-9","IOWA CITYIAE-9",1185]
["IOWA CITY","IA","W-1","IOWA CITYIAW-1","IOWA CITYIAW-1",975]
["IOWA CITY","IA","W-2","IOWA CITYIAW-2","IOWA CITYIAW-2",1110]
["IOWA CITY","IA","W-3","IOWA CITYIAW-3","IOWA CITYIAW-3",1191]
["IOWA CITY","IA","W-4","IOWA CITYIAW-4","IOWA CITYIAW-4",1311]
["IOWA CITY","IA","W-5","IOWA CITYIAW-5","IOWA CITYIAW-5",1359]
["IOWA CITY","IA","O-1E","IOWA CITYIAO-1E","IOWA CITYIAO-1E",1068]
["IOWA CITY","IA","O-2E","IOWA CITYIAO-2E","IOWA CITYIAO-2E",1170]
["IOWA CITY","IA","O-3E","IOWA CITYIAO-3E","IOWA CITYIAO-3E",1299]
["IOWA CITY","IA","O-1","IOWA CITYIAO-1","IOWA CITYIAO-1",855]
["IOWA CITY","IA","O-2","IOWA CITYIAO-2","IOWA CITYIAO-2",1032]
["IOWA CITY","IA","O-3","IOWA CITYIAO-3","IOWA CITYIAO-3",1215]
["IOWA CITY","IA","O-4","IOWA CITYIAO-4","IOWA CITYIAO-4",1353]
["IOWA CITY","IA","O-5","IOWA CITYIAO-5","IOWA CITYIAO-5",1560]
["IOWA CITY","IA","O-6","IOWA CITYIAO-6","IOWA CITYIAO-6",1575]
["IOWA CITY","IA","O-7","IOWA CITYIAO-7","IOWA CITYIAO-7",1590]
["BOISE","ID","E-1","BOISEIDE-1","BOISEIDE-1",756,756,756,756,756,798,828,888,978,1017,861,975,1020,1086,1119,951,1008,1080,819,930,1032,1116,1137,1170,1194]
["BOISE","ID","E-2","BOISEIDE-2","BOISEIDE-2",756]
["BOISE","ID","E-3","BOISEIDE-3","BOISEIDE-3",756]
["BOISE","ID","E-4","BOISEIDE-4","BOISEIDE-4",756]
["BOISE","ID","E-5","BOISEIDE-5","BOISEIDE-5",798]
["BOISE","ID","E-6","BOISEIDE-6","BOISEIDE-6",828]
["BOISE","ID","E-7","BOISEIDE-7","BOISEIDE-7",888]
["BOISE","ID","E-8","BOISEIDE-8","BOISEIDE-8",978]
["BOISE","ID","E-9","BOISEIDE-9","BOISEIDE-9",1017]
["BOISE","ID","W-1","BOISEIDW-1","BOISEIDW-1",861]
["BOISE","ID","W-2","BOISEIDW-2","BOISEIDW-2",975]
["BOISE","ID","W-3","BOISEIDW-3","BOISEIDW-3",1020]
["BOISE","ID","W-4","BOISEIDW-4","BOISEIDW-4",1086]
["BOISE","ID","W-5","BOISEIDW-5","BOISEIDW-5",1119]
["BOISE","ID","O-1E","BOISEIDO-1E","BOISEIDO-1E",951]
["BOISE","ID","O-2E","BOISEIDO-2E","BOISEIDO-2E",1008]
["BOISE","ID","O-3E","BOISEIDO-3E","BOISEIDO-3E",1080]
["BOISE","ID","O-1","BOISEIDO-1","BOISEIDO-1",819]
["BOISE","ID","O-2","BOISEIDO-2","BOISEIDO-2",930]
["BOISE","ID","O-3","BOISEIDO-3","BOISEIDO-3",1032]
["BOISE","ID","O-4","BOISEIDO-4","BOISEIDO-4",1116]
["BOISE","ID","O-5","BOISEIDO-5","BOISEIDO-5",1137]
["BOISE","ID","O-6","BOISEIDO-6","BOISEIDO-6",1170]
["BOISE","ID","O-7","BOISEIDO-7","BOISEIDO-7",1194]
["IDAHO FALLS","ID","E-1","IDAHO FALLSIDE-1","IDAHO FALLSIDE-1",645,645,645,645,645,714,780,864,957,963,825,957,966,996,1071,951,963,975,768,921,966,1059,1107,1185,1209]
["IDAHO FALLS","ID","E-2","IDAHO FALLSIDE-2","IDAHO FALLSIDE-2",645]
["IDAHO FALLS","ID","E-3","IDAHO FALLSIDE-3","IDAHO FALLSIDE-3",645]
["IDAHO FALLS","ID","E-4","IDAHO FALLSIDE-4","IDAHO FALLSIDE-4",645]
["IDAHO FALLS","ID","E-5","IDAHO FALLSIDE-5","IDAHO FALLSIDE-5",714]
["IDAHO FALLS","ID","E-6","IDAHO FALLSIDE-6","IDAHO FALLSIDE-6",780]
["IDAHO FALLS","ID","E-7","IDAHO FALLSIDE-7","IDAHO FALLSIDE-7",864]
["IDAHO FALLS","ID","E-8","IDAHO FALLSIDE-8","IDAHO FALLSIDE-8",957]
["IDAHO FALLS","ID","E-9",{"$f":"A2434&B2434&C2434","v":"IDAHO FALLSIDE-9"},"IDAHO FALLSIDE-9",963]
["IDAHO FALLS","ID","W-1","IDAHO FALLSIDW-1","IDAHO FALLSIDW-1",825]
["IDAHO FALLS","ID","W-2","IDAHO FALLSIDW-2","IDAHO FALLSIDW-2",957]
["IDAHO FALLS","ID","W-3","IDAHO FALLSIDW-3","IDAHO FALLSIDW-3",966]
["IDAHO FALLS","ID","W-4","IDAHO FALLSIDW-4","IDAHO FALLSIDW-4",996]
["IDAHO FALLS","ID","W-5","IDAHO FALLSIDW-5","IDAHO FALLSIDW-5",1071]
["IDAHO FALLS","ID","O-1E","IDAHO FALLSIDO-1E","IDAHO FALLSIDO-1E",951]
["IDAHO FALLS","ID","O-2E","IDAHO FALLSIDO-2E","IDAHO FALLSIDO-2E",963]
["IDAHO FALLS","ID","O-3E","IDAHO FALLSIDO-3E","IDAHO FALLSIDO-3E",975]
["IDAHO FALLS","ID","O-1","IDAHO FALLSIDO-1","IDAHO FALLSIDO-1",768]
["IDAHO FALLS","ID","O-2","IDAHO FALLSIDO-2","IDAHO FALLSIDO-2",921]
["IDAHO FALLS","ID","O-3","IDAHO FALLSIDO-3","IDAHO FALLSIDO-3",966]
["IDAHO FALLS","ID","O-4","IDAHO FALLSIDO-4","IDAHO FALLSIDO-4",1059]
["IDAHO FALLS","ID","O-5","IDAHO FALLSIDO-5","IDAHO FALLSIDO-5",1107]
["IDAHO FALLS","ID","O-6","IDAHO FALLSIDO-6","IDAHO FALLSIDO-6",1185]
["IDAHO FALLS","ID","O-7","IDAHO FALLSIDO-7","IDAHO FALLSIDO-7",1209]
["MOUNTAIN HOME AFB","ID","E-1","MOUNTAIN HOME AFBIDE-1","MOUNTAIN HOME AFBIDE-1",675,675,675,675,675,741,810,894,984,1065,831,984,1044,1107,1221,960,1026,1080,774,927,1038,1203,1275,1389,1419]
["MOUNTAIN HOME AFB","ID","E-2","MOUNTAIN HOME AFBIDE-2","MOUNTAIN HOME AFBIDE-2",675]
["MOUNTAIN HOME AFB","ID","E-3","MOUNTAIN HOME AFBIDE-3","MOUNTAIN HOME AFBIDE-3",675]
["MOUNTAIN HOME AFB","ID","E-4","MOUNTAIN HOME AFBIDE-4","MOUNTAIN HOME AFBIDE-4",675]
["MOUNTAIN HOME AFB","ID","E-5","MOUNTAIN HOME AFBIDE-5","MOUNTAIN HOME AFBIDE-5",741]
["MOUNTAIN HOME AFB","ID","E-6","MOUNTAIN HOME AFBIDE-6","MOUNTAIN HOME AFBIDE-6",810]
["MOUNTAIN HOME AFB","ID","E-7","MOUNTAIN HOME AFBIDE-7","MOUNTAIN HOME AFBIDE-7",894]
["MOUNTAIN HOME AFB","ID","E-8","MOUNTAIN HOME AFBIDE-8","MOUNTAIN HOME AFBIDE-8",984]
["MOUNTAIN HOME AFB","ID","E-9","MOUNTAIN HOME AFBIDE-9","MOUNTAIN HOME AFBIDE-9",1065]
["MOUNTAIN HOME AFB","ID","W-1","MOUNTAIN HOME AFBIDW-1","MOUNTAIN HOME AFBIDW-1",831]
["MOUNTAIN HOME AFB","ID","W-2","MOUNTAIN HOME AFBIDW-2","MOUNTAIN HOME AFBIDW-2",984]
["MOUNTAIN HOME AFB","ID","W-3","MOUNTAIN HOME AFBIDW-3","MOUNTAIN HOME AFBIDW-3",1044]
["MOUNTAIN HOME AFB","ID","W-4","MOUNTAIN HOME AFBIDW-4","MOUNTAIN HOME AFBIDW-4",1107]
["MOUNTAIN HOME AFB","ID","W-5","MOUNTAIN HOME AFBIDW-5","MOUNTAIN HOME AFBIDW-5",1221]
["MOUNTAIN HOME AFB","ID","O-1E","MOUNTAIN HOME AFBIDO-1E","MOUNTAIN HOME AFBIDO-1E",960]
["MOUNTAIN HOME AFB","ID","O-2E","MOUNTAIN HOME AFBIDO-2E","MOUNTAIN HOME AFBIDO-2E",1026]
["MOUNTAIN HOME AFB","ID","O-3E","MOUNTAIN HOME AFBIDO-3E","MOUNTAIN HOME AFBIDO-3E",1080]
["MOUNTAIN HOME AFB","ID","O-1","MOUNTAIN HOME AFBIDO-1","MOUNTAIN HOME AFBIDO-1",774]
["MOUNTAIN HOME AFB","ID","O-2","MOUNTAIN HOME AFBIDO-2","MOUNTAIN HOME AFBIDO-2",927]
["MOUNTAIN HOME AFB","ID","O-3","MOUNTAIN HOME AFBIDO-3","MOUNTAIN HOME AFBIDO-3",1038]
["MOUNTAIN HOME AFB","ID","O-4","MOUNTAIN HOME AFBIDO-4","MOUNTAIN HOME AFBIDO-4",1203]
["MOUNTAIN HOME AFB","ID","O-5","MOUNTAIN HOME AFBIDO-5","MOUNTAIN HOME AFBIDO-5",1275]
["MOUNTAIN HOME AFB","ID","O-6","MOUNTAIN HOME AFBIDO-6","MOUNTAIN HOME AFBIDO-6",1389]
["MOUNTAIN HOME AFB","ID","O-7","MOUNTAIN HOME AFBIDO-7","MOUNTAIN HOME AFBIDO-7",1419]
["MOSCOW","ID","E-1","MOSCOWIDE-1","MOSCOWIDE-1",606,606,606,606,606,684,978,1014,1056,1122,978,1032,1122,1317,1365,1023,1083,1305,717,972,1164,1359,1389,1440,1470]
["MOSCOW","ID","E-2","MOSCOWIDE-2","MOSCOWIDE-2",606]
["MOSCOW","ID","E-3","MOSCOWIDE-3","MOSCOWIDE-3",606]
["MOSCOW","ID","E-4","MOSCOWIDE-4","MOSCOWIDE-4",606]
["MOSCOW","ID","E-5","MOSCOWIDE-5","MOSCOWIDE-5",684]
["MOSCOW","ID","E-6","MOSCOWIDE-6","MOSCOWIDE-6",978]
["MOSCOW","ID","E-7","MOSCOWIDE-7","MOSCOWIDE-7",1014]
["MOSCOW","ID","E-8","MOSCOWIDE-8","MOSCOWIDE-8",1056]
["MOSCOW","ID","E-9","MOSCOWIDE-9","MOSCOWIDE-9",1122]
["MOSCOW","ID","W-1","MOSCOWIDW-1","MOSCOWIDW-1",978]
["MOSCOW","ID","W-2","MOSCOWIDW-2","MOSCOWIDW-2",1032]
["MOSCOW","ID","W-3","MOSCOWIDW-3","MOSCOWIDW-3",1122]
["MOSCOW","ID","W-4","MOSCOWIDW-4","MOSCOWIDW-4",1317]
["MOSCOW","ID","W-5","MOSCOWIDW-5","MOSCOWIDW-5",1365]
["MOSCOW","ID","O-1E","MOSCOWIDO-1E","MOSCOWIDO-1E",1023]
["MOSCOW","ID","O-2E","MOSCOWIDO-2E","MOSCOWIDO-2E",1083]
["MOSCOW","ID","O-3E","MOSCOWIDO-3E","MOSCOWIDO-3E",1305]
["MOSCOW","ID","O-1","MOSCOWIDO-1","MOSCOWIDO-1",717]
["MOSCOW","ID","O-2","MOSCOWIDO-2","MOSCOWIDO-2",972]
["MOSCOW","ID","O-3","MOSCOWIDO-3","MOSCOWIDO-3",1164]
["MOSCOW","ID","O-4","MOSCOWIDO-4","MOSCOWIDO-4",1359]
["MOSCOW","ID","O-5","MOSCOWIDO-5","MOSCOWIDO-5",1389]
["MOSCOW","ID","O-6","MOSCOWIDO-6","MOSCOWIDO-6",1440]
["MOSCOW","ID","O-7","MOSCOWIDO-7","MOSCOWIDO-7",1470]
["CHAMPAIGN/URBANA","IL","E-1",{"$f":"A2498&B2498&C2498","v":"CHAMPAIGN/URBANAILE-1"},"CHAMPAIGN/URBANAILE-1",870,870,870,870,870,975,1038,1113,1227,1287,1077,1224,1293,1386,1413,1188,1272,1380,1026,1161,1311,1410,1425,1452,1482]
["CHAMPAIGN/URBANA","IL","E-2","CHAMPAIGN/URBANAILE-2","CHAMPAIGN/URBANAILE-2",870]
["CHAMPAIGN/URBANA","IL","E-3","CHAMPAIGN/URBANAILE-3","CHAMPAIGN/URBANAILE-3",870]
["CHAMPAIGN/URBANA","IL","E-4","CHAMPAIGN/URBANAILE-4","CHAMPAIGN/URBANAILE-4",870]
["CHAMPAIGN/URBANA","IL","E-5","CHAMPAIGN/URBANAILE-5","CHAMPAIGN/URBANAILE-5",975]
["CHAMPAIGN/URBANA","IL","E-6","CHAMPAIGN/URBANAILE-6","CHAMPAIGN/URBANAILE-6",1038]
["CHAMPAIGN/URBANA","IL","E-7","CHAMPAIGN/URBANAILE-7","CHAMPAIGN/URBANAILE-7",1113]
["CHAMPAIGN/URBANA","IL","E-8","CHAMPAIGN/URBANAILE-8","CHAMPAIGN/URBANAILE-8",1227]
["CHAMPAIGN/URBANA","IL","E-9","CHAMPAIGN/URBANAILE-9","CHAMPAIGN/URBANAILE-9",1287]
["CHAMPAIGN/URBANA","IL","W-1","CHAMPAIGN/URBANAILW-1","CHAMPAIGN/URBANAILW-1",1077]
["CHAMPAIGN/URBANA","IL","W-2","CHAMPAIGN/URBANAILW-2","CHAMPAIGN/URBANAILW-2",1224]
["CHAMPAIGN/URBANA","IL","W-3","CHAMPAIGN/URBANAILW-3","CHAMPAIGN/URBANAILW-3",1293]
["CHAMPAIGN/URBANA","IL","W-4","CHAMPAIGN/URBANAILW-4","CHAMPAIGN/URBANAILW-4",1386]
["CHAMPAIGN/URBANA","IL","W-5","CHAMPAIGN/URBANAILW-5","CHAMPAIGN/URBANAILW-5",1413]
["CHAMPAIGN/URBANA","IL","O-1E","CHAMPAIGN/URBANAILO-1E","CHAMPAIGN/URBANAILO-1E",1188]
["CHAMPAIGN/URBANA","IL","O-2E","CHAMPAIGN/URBANAILO-2E","CHAMPAIGN/URBANAILO-2E",1272]
["CHAMPAIGN/URBANA","IL","O-3E","CHAMPAIGN/URBANAILO-3E","CHAMPAIGN/URBANAILO-3E",1380]
["CHAMPAIGN/URBANA","IL","O-1","CHAMPAIGN/URBANAILO-1","CHAMPAIGN/URBANAILO-1",1026]
["CHAMPAIGN/URBANA","IL","O-2","CHAMPAIGN/URBANAILO-2","CHAMPAIGN/URBANAILO-2",1161]
["CHAMPAIGN/URBANA","IL","O-3","CHAMPAIGN/URBANAILO-3","CHAMPAIGN/URBANAILO-3",1311]
["CHAMPAIGN/URBANA","IL","O-4","CHAMPAIGN/URBANAILO-4","CHAMPAIGN/URBANAILO-4",1410]
["CHAMPAIGN/URBANA","IL","O-5","CHAMPAIGN/URBANAILO-5","CHAMPAIGN/URBANAILO-5",1425]
["CHAMPAIGN/URBANA","IL","O-6","CHAMPAIGN/URBANAILO-6","CHAMPAIGN/URBANAILO-6",1452]
["CHAMPAIGN/URBANA","IL","O-7","CHAMPAIGN/URBANAILO-7","CHAMPAIGN/URBANAILO-7",1482]
["ROCK ISLAND","IL","E-1","ROCK ISLANDILE-1","ROCK ISLANDILE-1",687,687,687,687,687,780,948,981,1020,1104,948,999,1113,1275,1320,990,1080,1263,825,942,1146,1314,1344,1395,1422]
["ROCK ISLAND","IL","E-2","ROCK ISLANDILE-2","ROCK ISLANDILE-2",687]
["ROCK ISLAND","IL","E-3","ROCK ISLANDILE-3","ROCK ISLANDILE-3",687]
["ROCK ISLAND","IL","E-4","ROCK ISLANDILE-4","ROCK ISLANDILE-4",687]
["ROCK ISLAND","IL","E-5","ROCK ISLANDILE-5","ROCK ISLANDILE-5",780]
["ROCK ISLAND","IL","E-6","ROCK ISLANDILE-6","ROCK ISLANDILE-6",948]
["ROCK ISLAND","IL","E-7","ROCK ISLANDILE-7","ROCK ISLANDILE-7",981]
["ROCK ISLAND","IL","E-8","ROCK ISLANDILE-8","ROCK ISLANDILE-8",1020]
["ROCK ISLAND","IL","E-9","ROCK ISLANDILE-9","ROCK ISLANDILE-9",1104]
["ROCK ISLAND","IL","W-1","ROCK ISLANDILW-1","ROCK ISLANDILW-1",948]
["ROCK ISLAND","IL","W-2","ROCK ISLANDILW-2","ROCK ISLANDILW-2",999]
["ROCK ISLAND","IL","W-3","ROCK ISLANDILW-3","ROCK ISLANDILW-3",1113]
["ROCK ISLAND","IL","W-4","ROCK ISLANDILW-4","ROCK ISLANDILW-4",1275]
["ROCK ISLAND","IL","W-5","ROCK ISLANDILW-5","ROCK ISLANDILW-5",1320]
["ROCK ISLAND","IL","O-1E","ROCK ISLANDILO-1E","ROCK ISLANDILO-1E",990]
["ROCK ISLAND","IL","O-2E","ROCK ISLANDILO-2E","ROCK ISLANDILO-2E",1080]
["ROCK ISLAND","IL","O-3E","ROCK ISLANDILO-3E","ROCK ISLANDILO-3E",1263]
["ROCK ISLAND","IL","O-1","ROCK ISLANDILO-1","ROCK ISLANDILO-1",825]
["ROCK ISLAND","IL","O-2","ROCK ISLANDILO-2","ROCK ISLANDILO-2",942]
["ROCK ISLAND","IL","O-3","ROCK ISLANDILO-3","ROCK ISLANDILO-3",1146]
["ROCK ISLAND","IL","O-4","ROCK ISLANDILO-4","ROCK ISLANDILO-4",1314]
["ROCK ISLAND","IL","O-5","ROCK ISLANDILO-5","ROCK ISLANDILO-5",1344]
["ROCK ISLAND","IL","O-6","ROCK ISLANDILO-6","ROCK ISLANDILO-6",1395]
["ROCK ISLAND","IL","O-7","ROCK ISLANDILO-7","ROCK ISLANDILO-7",1422]
["PEORIA","IL","E-1","PEORIAILE-1","PEORIAILE-1",756,756,756,756,756,852,972,1008,1143,1203,972,1140,1209,1299,1308,1104,1188,1296,900,1068,1227,1308,1314,1323,1350]
["PEORIA","IL","E-2","PEORIAILE-2","PEORIAILE-2",756]
["PEORIA","IL","E-3","PEORIAILE-3","PEORIAILE-3",756]
["PEORIA","IL","E-4","PEORIAILE-4","PEORIAILE-4",756]
["PEORIA","IL","E-5","PEORIAILE-5","PEORIAILE-5",852]
["PEORIA","IL","E-6","PEORIAILE-6","PEORIAILE-6",972]
["PEORIA","IL","E-7","PEORIAILE-7","PEORIAILE-7",1008]
["PEORIA","IL","E-8","PEORIAILE-8","PEORIAILE-8",1143]
["PEORIA","IL","E-9","PEORIAILE-9","PEORIAILE-9",1203]
["PEORIA","IL","W-1","PEORIAILW-1","PEORIAILW-1",972]
["PEORIA","IL","W-2","PEORIAILW-2","PEORIAILW-2",1140]
["PEORIA","IL","W-3","PEORIAILW-3","PEORIAILW-3",1209]
["PEORIA","IL","W-4","PEORIAILW-4","PEORIAILW-4",1299]
["PEORIA","IL","W-5","PEORIAILW-5","PEORIAILW-5",1308]
["PEORIA","IL","O-1E","PEORIAILO-1E","PEORIAILO-1E",1104]
["PEORIA","IL","O-2E","PEORIAILO-2E","PEORIAILO-2E",1188]
["PEORIA","IL","O-3E",{"$f":"A2562&B2562&C2562","v":"PEORIAILO-3E"},"PEORIAILO-3E",1296]
["PEORIA","IL","O-1","PEORIAILO-1","PEORIAILO-1",900]
["PEORIA","IL","O-2","PEORIAILO-2","PEORIAILO-2",1068]
["PEORIA","IL","O-3","PEORIAILO-3","PEORIAILO-3",1227]
["PEORIA","IL","O-4","PEORIAILO-4","PEORIAILO-4",1308]
["PEORIA","IL","O-5","PEORIAILO-5","PEORIAILO-5",1314]
["PEORIA","IL","O-6","PEORIAILO-6","PEORIAILO-6",1323]
["PEORIA","IL","O-7","PEORIAILO-7","PEORIAILO-7",1350]
["GREAT LAKES NAVTRACEN","IL","E-1","GREAT LAKES NAVTRACENILE-1","GREAT LAKES NAVTRACENILE-1",864,864,864,864,864,966,1134,1167,1329,1398,1134,1326,1404,1521,1566,1281,1383,1509,1023,1239,1428,1560,1602,1638,1671]
["GREAT LAKES NAVTRACEN","IL","E-2","GREAT LAKES NAVTRACENILE-2","GREAT LAKES NAVTRACENILE-2",864]
["GREAT LAKES NAVTRACEN","IL","E-3","GREAT LAKES NAVTRACENILE-3","GREAT LAKES NAVTRACENILE-3",864]
["GREAT LAKES NAVTRACEN","IL","E-4","GREAT LAKES NAVTRACENILE-4","GREAT LAKES NAVTRACENILE-4",864]
["GREAT LAKES NAVTRACEN","IL","E-5","GREAT LAKES NAVTRACENILE-5","GREAT LAKES NAVTRACENILE-5",966]
["GREAT LAKES NAVTRACEN","IL","E-6","GREAT LAKES NAVTRACENILE-6","GREAT LAKES NAVTRACENILE-6",1134]
["GREAT LAKES NAVTRACEN","IL","E-7","GREAT LAKES NAVTRACENILE-7","GREAT LAKES NAVTRACENILE-7",1167]
["GREAT LAKES NAVTRACEN","IL","E-8","GREAT LAKES NAVTRACENILE-8","GREAT LAKES NAVTRACENILE-8",1329]
["GREAT LAKES NAVTRACEN","IL","E-9","GREAT LAKES NAVTRACENILE-9","GREAT LAKES NAVTRACENILE-9",1398]
["GREAT LAKES NAVTRACEN","IL","W-1","GREAT LAKES NAVTRACENILW-1","GREAT LAKES NAVTRACENILW-1",1134]
["GREAT LAKES NAVTRACEN","IL","W-2","GREAT LAKES NAVTRACENILW-2","GREAT LAKES NAVTRACENILW-2",1326]
["GREAT LAKES NAVTRACEN","IL","W-3","GREAT LAKES NAVTRACENILW-3","GREAT LAKES NAVTRACENILW-3",1404]
["GREAT LAKES NAVTRACEN","IL","W-4","GREAT LAKES NAVTRACENILW-4","GREAT LAKES NAVTRACENILW-4",1521]
["GREAT LAKES NAVTRACEN","IL","W-5","GREAT LAKES NAVTRACENILW-5","GREAT LAKES NAVTRACENILW-5",1566]
["GREAT LAKES NAVTRACEN","IL","O-1E","GREAT LAKES NAVTRACENILO-1E","GREAT LAKES NAVTRACENILO-1E",1281]
["GREAT LAKES NAVTRACEN","IL","O-2E","GREAT LAKES NAVTRACENILO-2E","GREAT LAKES NAVTRACENILO-2E",1383]
["GREAT LAKES NAVTRACEN","IL","O-3E","GREAT LAKES NAVTRACENILO-3E","GREAT LAKES NAVTRACENILO-3E",1509]
["GREAT LAKES NAVTRACEN","IL","O-1","GREAT LAKES NAVTRACENILO-1","GREAT LAKES NAVTRACENILO-1",1023]
["GREAT LAKES NAVTRACEN","IL","O-2","GREAT LAKES NAVTRACENILO-2","GREAT LAKES NAVTRACENILO-2",1239]
["GREAT LAKES NAVTRACEN","IL","O-3","GREAT LAKES NAVTRACENILO-3","GREAT LAKES NAVTRACENILO-3",1428]
["GREAT LAKES NAVTRACEN","IL","O-4","GREAT LAKES NAVTRACENILO-4","GREAT LAKES NAVTRACENILO-4",1560]
["GREAT LAKES NAVTRACEN","IL","O-5","GREAT LAKES NAVTRACENILO-5","GREAT LAKES NAVTRACENILO-5",1602]
["GREAT LAKES NAVTRACEN","IL","O-6","GREAT LAKES NAVTRACENILO-6","GREAT LAKES NAVTRACENILO-6",1638]
["GREAT LAKES NAVTRACEN","IL","O-7","GREAT LAKES NAVTRACENILO-7","GREAT LAKES NAVTRACENILO-7",1671]
["SCOTT AFB","IL","E-1","SCOTT AFBILE-1","SCOTT AFBILE-1",792,792,792,792,792,912,1026,1086,1179,1251,1026,1176,1257,1389,1470,1131,1236,1368,978,1104,1281,1458,1512,1596,1626]
["SCOTT AFB","IL","E-2","SCOTT AFBILE-2","SCOTT AFBILE-2",792]
["SCOTT AFB","IL","E-3","SCOTT AFBILE-3","SCOTT AFBILE-3",792]
["SCOTT AFB","IL","E-4","SCOTT AFBILE-4","SCOTT AFBILE-4",792]
["SCOTT AFB","IL","E-5","SCOTT AFBILE-5","SCOTT AFBILE-5",912]
["SCOTT AFB","IL","E-6","SCOTT AFBILE-6","SCOTT AFBILE-6",1026]
["SCOTT AFB","IL","E-7","SCOTT AFBILE-7","SCOTT AFBILE-7",1086]
["SCOTT AFB","IL","E-8","SCOTT AFBILE-8","SCOTT AFBILE-8",1179]
["SCOTT AFB","IL","E-9","SCOTT AFBILE-9","SCOTT AFBILE-9",1251]
["SCOTT AFB","IL","W-1","SCOTT AFBILW-1","SCOTT AFBILW-1",1026]
["SCOTT AFB","IL","W-2","SCOTT AFBILW-2","SCOTT AFBILW-2",1176]
["SCOTT AFB","IL","W-3","SCOTT AFBILW-3","SCOTT AFBILW-3",1257]
["SCOTT AFB","IL","W-4","SCOTT AFBILW-4","SCOTT AFBILW-4",1389]
["SCOTT AFB","IL","W-5","SCOTT AFBILW-5","SCOTT AFBILW-5",1470]
["SCOTT AFB","IL","O-1E","SCOTT AFBILO-1E","SCOTT AFBILO-1E",1131]
["SCOTT AFB","IL","O-2E","SCOTT AFBILO-2E","SCOTT AFBILO-2E",1236]
["SCOTT AFB","IL","O-3E","SCOTT AFBILO-3E","SCOTT AFBILO-3E",1368]
["SCOTT AFB","IL","O-1","SCOTT AFBILO-1","SCOTT AFBILO-1",978]
["SCOTT AFB","IL","O-2","SCOTT AFBILO-2","SCOTT AFBILO-2",1104]
["SCOTT AFB","IL","O-3","SCOTT AFBILO-3","SCOTT AFBILO-3",1281]
["SCOTT AFB","IL","O-4","SCOTT AFBILO-4","SCOTT AFBILO-4",1458]
["SCOTT AFB","IL","O-5","SCOTT AFBILO-5","SCOTT AFBILO-5",1512]
["SCOTT AFB","IL","O-6","SCOTT AFBILO-6","SCOTT AFBILO-6",1596]
["SCOTT AFB","IL","O-7","SCOTT AFBILO-7","SCOTT AFBILO-7",1626]
["CHICAGO","IL","E-1","CHICAGOILE-1","CHICAGOILE-1",1209,1209,1209,1209,1209,1419,1536,1611,1746,1833,1575,1743,1842,1977,1992,1689,1815,1974,1524,1662,1872,1989,1998,2013,2052]
["CHICAGO","IL","E-2","CHICAGOILE-2","CHICAGOILE-2",1209]
["CHICAGO","IL","E-3","CHICAGOILE-3","CHICAGOILE-3",1209]
["CHICAGO","IL","E-4","CHICAGOILE-4","CHICAGOILE-4",1209]
["CHICAGO","IL","E-5","CHICAGOILE-5","CHICAGOILE-5",1419]
["CHICAGO","IL","E-6","CHICAGOILE-6","CHICAGOILE-6",1536]
["CHICAGO","IL","E-7","CHICAGOILE-7","CHICAGOILE-7",1611]
["CHICAGO","IL","E-8","CHICAGOILE-8","CHICAGOILE-8",1746]
["CHICAGO","IL","E-9",{"$f":"A2626&B2626&C2626","v":"CHICAGOILE-9"},"CHICAGOILE-9",1833]
["CHICAGO","IL","W-1","CHICAGOILW-1","CHICAGOILW-1",1575]
["CHICAGO","IL","W-2","CHICAGOILW-2","CHICAGOILW-2",1743]
["CHICAGO","IL","W-3","CHICAGOILW-3","CHICAGOILW-3",1842]
["CHICAGO","IL","W-4","CHICAGOILW-4","CHICAGOILW-4",1977]
["CHICAGO","IL","W-5","CHICAGOILW-5","CHICAGOILW-5",1992]
["CHICAGO","IL","O-1E","CHICAGOILO-1E","CHICAGOILO-1E",1689]
["CHICAGO","IL","O-2E","CHICAGOILO-2E","CHICAGOILO-2E",1815]
["CHICAGO","IL","O-3E","CHICAGOILO-3E","CHICAGOILO-3E",1974]
["CHICAGO","IL","O-1","CHICAGOILO-1","CHICAGOILO-1",1524]
["CHICAGO","IL","O-2","CHICAGOILO-2","CHICAGOILO-2",1662]
["CHICAGO","IL","O-3","CHICAGOILO-3","CHICAGOILO-3",1872]
["CHICAGO","IL","O-4","CHICAGOILO-4","CHICAGOILO-4",1989]
["CHICAGO","IL","O-5","CHICAGOILO-5","CHICAGOILO-5",1998]
["CHICAGO","IL","O-6","CHICAGOILO-6","CHICAGOILO-6",2013]
["CHICAGO","IL","O-7","CHICAGOILO-7","CHICAGOILO-7",2052]
["SPRINGFIELD/DECATUR","IL","E-1","SPRINGFIELD/DECATURILE-1","SPRINGFIELD/DECATURILE-1",789,789,789,789,789,849,894,927,1017,1083,909,1014,1089,1191,1203,972,1068,1191,879,957,1113,1200,1206,1215,1239]
["SPRINGFIELD/DECATUR","IL","E-2","SPRINGFIELD/DECATURILE-2","SPRINGFIELD/DECATURILE-2",789]
["SPRINGFIELD/DECATUR","IL","E-3","SPRINGFIELD/DECATURILE-3","SPRINGFIELD/DECATURILE-3",789]
["SPRINGFIELD/DECATUR","IL","E-4","SPRINGFIELD/DECATURILE-4","SPRINGFIELD/DECATURILE-4",789]
["SPRINGFIELD/DECATUR","IL","E-5","SPRINGFIELD/DECATURILE-5","SPRINGFIELD/DECATURILE-5",849]
["SPRINGFIELD/DECATUR","IL","E-6","SPRINGFIELD/DECATURILE-6","SPRINGFIELD/DECATURILE-6",894]
["SPRINGFIELD/DECATUR","IL","E-7","SPRINGFIELD/DECATURILE-7","SPRINGFIELD/DECATURILE-7",927]
["SPRINGFIELD/DECATUR","IL","E-8","SPRINGFIELD/DECATURILE-8","SPRINGFIELD/DECATURILE-8",1017]
["SPRINGFIELD/DECATUR","IL","E-9","SPRINGFIELD/DECATURILE-9","SPRINGFIELD/DECATURILE-9",1083]
["SPRINGFIELD/DECATUR","IL","W-1","SPRINGFIELD/DECATURILW-1","SPRINGFIELD/DECATURILW-1",909]
["SPRINGFIELD/DECATUR","IL","W-2","SPRINGFIELD/DECATURILW-2","SPRINGFIELD/DECATURILW-2",1014]
["SPRINGFIELD/DECATUR","IL","W-3","SPRINGFIELD/DECATURILW-3","SPRINGFIELD/DECATURILW-3",1089]
["SPRINGFIELD/DECATUR","IL","W-4","SPRINGFIELD/DECATURILW-4","SPRINGFIELD/DECATURILW-4",1191]
["SPRINGFIELD/DECATUR","IL","W-5","SPRINGFIELD/DECATURILW-5","SPRINGFIELD/DECATURILW-5",1203]
["SPRINGFIELD/DECATUR","IL","O-1E","SPRINGFIELD/DECATURILO-1E","SPRINGFIELD/DECATURILO-1E",972]
["SPRINGFIELD/DECATUR","IL","O-2E","SPRINGFIELD/DECATURILO-2E","SPRINGFIELD/DECATURILO-2E",1068]
["SPRINGFIELD/DECATUR","IL","O-3E","SPRINGFIELD/DECATURILO-3E","SPRINGFIELD/DECATURILO-3E",1191]
["SPRINGFIELD/DECATUR","IL","O-1","SPRINGFIELD/DECATURILO-1","SPRINGFIELD/DECATURILO-1",879]
["SPRINGFIELD/DECATUR","IL","O-2","SPRINGFIELD/DECATURILO-2","SPRINGFIELD/DECATURILO-2",957]
["SPRINGFIELD/DECATUR","IL","O-3","SPRINGFIELD/DECATURILO-3","SPRINGFIELD/DECATURILO-3",1113]
["SPRINGFIELD/DECATUR","IL","O-4","SPRINGFIELD/DECATURILO-4","SPRINGFIELD/DECATURILO-4",1200]
["SPRINGFIELD/DECATUR","IL","O-5","SPRINGFIELD/DECATURILO-5","SPRINGFIELD/DECATURILO-5",1206]
["SPRINGFIELD/DECATUR","IL","O-6","SPRINGFIELD/DECATURILO-6","SPRINGFIELD/DECATURILO-6",1215]
["SPRINGFIELD/DECATUR","IL","O-7","SPRINGFIELD/DECATURILO-7","SPRINGFIELD/DECATURILO-7",1239]
["JOLIET ARMY DEPOT","IL","E-1","JOLIET ARMY DEPOTILE-1","JOLIET ARMY DEPOTILE-1",816,816,816,816,816,957,1224,1263,1347,1458,1224,1344,1467,1644,1695,1275,1431,1629,987,1218,1503,1689,1722,1776,1812]
["JOLIET ARMY DEPOT","IL","E-2","JOLIET ARMY DEPOTILE-2","JOLIET ARMY DEPOTILE-2",816]
["JOLIET ARMY DEPOT","IL","E-3","JOLIET ARMY DEPOTILE-3","JOLIET ARMY DEPOTILE-3",816]
["JOLIET ARMY DEPOT","IL","E-4","JOLIET ARMY DEPOTILE-4","JOLIET ARMY DEPOTILE-4",816]
["JOLIET ARMY DEPOT","IL","E-5","JOLIET ARMY DEPOTILE-5","JOLIET ARMY DEPOTILE-5",957]
["JOLIET ARMY DEPOT","IL","E-6","JOLIET ARMY DEPOTILE-6","JOLIET ARMY DEPOTILE-6",1224]
["JOLIET ARMY DEPOT","IL","E-7","JOLIET ARMY DEPOTILE-7","JOLIET ARMY DEPOTILE-7",1263]
["JOLIET ARMY DEPOT","IL","E-8","JOLIET ARMY DEPOTILE-8","JOLIET ARMY DEPOTILE-8",1347]
["JOLIET ARMY DEPOT","IL","E-9","JOLIET ARMY DEPOTILE-9","JOLIET ARMY DEPOTILE-9",1458]
["JOLIET ARMY DEPOT","IL","W-1","JOLIET ARMY DEPOTILW-1","JOLIET ARMY DEPOTILW-1",1224]
["JOLIET ARMY DEPOT","IL","W-2","JOLIET ARMY DEPOTILW-2","JOLIET ARMY DEPOTILW-2",1344]
["JOLIET ARMY DEPOT","IL","W-3","JOLIET ARMY DEPOTILW-3","JOLIET ARMY DEPOTILW-3",1467]
["JOLIET ARMY DEPOT","IL","W-4","JOLIET ARMY DEPOTILW-4","JOLIET ARMY DEPOTILW-4",1644]
["JOLIET ARMY DEPOT","IL","W-5","JOLIET ARMY DEPOTILW-5","JOLIET ARMY DEPOTILW-5",1695]
["JOLIET ARMY DEPOT","IL","O-1E","JOLIET ARMY DEPOTILO-1E","JOLIET ARMY DEPOTILO-1E",1275]
["JOLIET ARMY DEPOT","IL","O-2E","JOLIET ARMY DEPOTILO-2E","JOLIET ARMY DEPOTILO-2E",1431]
["JOLIET ARMY DEPOT","IL","O-3E","JOLIET ARMY DEPOTILO-3E","JOLIET ARMY DEPOTILO-3E",1629]
["JOLIET ARMY DEPOT","IL","O-1","JOLIET ARMY DEPOTILO-1","JOLIET ARMY DEPOTILO-1",987]
["JOLIET ARMY DEPOT","IL","O-2","JOLIET ARMY DEPOTILO-2","JOLIET ARMY DEPOTILO-2",1218]
["JOLIET ARMY DEPOT","IL","O-3","JOLIET ARMY DEPOTILO-3","JOLIET ARMY DEPOTILO-3",1503]
["JOLIET ARMY DEPOT","IL","O-4","JOLIET ARMY DEPOTILO-4","JOLIET ARMY DEPOTILO-4",1689]
["JOLIET ARMY DEPOT","IL","O-5","JOLIET ARMY DEPOTILO-5","JOLIET ARMY DEPOTILO-5",1722]
["JOLIET ARMY DEPOT","IL","O-6","JOLIET ARMY DEPOTILO-6","JOLIET ARMY DEPOTILO-6",1776]
["JOLIET ARMY DEPOT","IL","O-7","JOLIET ARMY DEPOTILO-7","JOLIET ARMY DEPOTILO-7",1812]
["ROCKFORD","IL","E-1",{"$f":"A2690&B2690&C2690","v":"ROCKFORDILE-1"},"ROCKFORDILE-1",705,705,705,705,705,792,894,948,1083,1125,897,1083,1128,1194,1206,1056,1116,1191,825,1017,1143,1206,1212,1224,1251]
["ROCKFORD","IL","E-2","ROCKFORDILE-2","ROCKFORDILE-2",705]
["ROCKFORD","IL","E-3","ROCKFORDILE-3","ROCKFORDILE-3",705]
["ROCKFORD","IL","E-4","ROCKFORDILE-4","ROCKFORDILE-4",705]
["ROCKFORD","IL","E-5","ROCKFORDILE-5","ROCKFORDILE-5",792]
["ROCKFORD","IL","E-6","ROCKFORDILE-6","ROCKFORDILE-6",894]
["ROCKFORD","IL","E-7","ROCKFORDILE-7","ROCKFORDILE-7",948]
["ROCKFORD","IL","E-8","ROCKFORDILE-8","ROCKFORDILE-8",1083]
["ROCKFORD","IL","E-9","ROCKFORDILE-9","ROCKFORDILE-9",1125]
["ROCKFORD","IL","W-1","ROCKFORDILW-1","ROCKFORDILW-1",897]
["ROCKFORD","IL","W-2","ROCKFORDILW-2","ROCKFORDILW-2",1083]
["ROCKFORD","IL","W-3","ROCKFORDILW-3","ROCKFORDILW-3",1128]
["ROCKFORD","IL","W-4","ROCKFORDILW-4","ROCKFORDILW-4",1194]
["ROCKFORD","IL","W-5","ROCKFORDILW-5","ROCKFORDILW-5",1206]
["ROCKFORD","IL","O-1E","ROCKFORDILO-1E","ROCKFORDILO-1E",1056]
["ROCKFORD","IL","O-2E","ROCKFORDILO-2E","ROCKFORDILO-2E",1116]
["ROCKFORD","IL","O-3E","ROCKFORDILO-3E","ROCKFORDILO-3E",1191]
["ROCKFORD","IL","O-1","ROCKFORDILO-1","ROCKFORDILO-1",825]
["ROCKFORD","IL","O-2","ROCKFORDILO-2","ROCKFORDILO-2",1017]
["ROCKFORD","IL","O-3","ROCKFORDILO-3","ROCKFORDILO-3",1143]
["ROCKFORD","IL","O-4","ROCKFORDILO-4","ROCKFORDILO-4",1206]
["ROCKFORD","IL","O-5","ROCKFORDILO-5","ROCKFORDILO-5",1212]
["ROCKFORD","IL","O-6","ROCKFORDILO-6","ROCKFORDILO-6",1224]
["ROCKFORD","IL","O-7","ROCKFORDILO-7","ROCKFORDILO-7",1251]
["INDIANAPOLIS","IN","E-1","INDIANAPOLISINE-1","INDIANAPOLISINE-1",810,810,810,810,810,933,1002,1065,1149,1182,1035,1149,1185,1242,1281,1131,1173,1230,993,1107,1194,1275,1338,1350,1371]
["INDIANAPOLIS","IN","E-2","INDIANAPOLISINE-2","INDIANAPOLISINE-2",810]
["INDIANAPOLIS","IN","E-3","INDIANAPOLISINE-3","INDIANAPOLISINE-3",810]
["INDIANAPOLIS","IN","E-4","INDIANAPOLISINE-4","INDIANAPOLISINE-4",810]
["INDIANAPOLIS","IN","E-5","INDIANAPOLISINE-5","INDIANAPOLISINE-5",933]
["INDIANAPOLIS","IN","E-6","INDIANAPOLISINE-6","INDIANAPOLISINE-6",1002]
["INDIANAPOLIS","IN","E-7","INDIANAPOLISINE-7","INDIANAPOLISINE-7",1065]
["INDIANAPOLIS","IN","E-8","INDIANAPOLISINE-8","INDIANAPOLISINE-8",1149]
["INDIANAPOLIS","IN","E-9","INDIANAPOLISINE-9","INDIANAPOLISINE-9",1182]
["INDIANAPOLIS","IN","W-1","INDIANAPOLISINW-1","INDIANAPOLISINW-1",1035]
["INDIANAPOLIS","IN","W-2","INDIANAPOLISINW-2","INDIANAPOLISINW-2",1149]
["INDIANAPOLIS","IN","W-3","INDIANAPOLISINW-3","INDIANAPOLISINW-3",1185]
["INDIANAPOLIS","IN","W-4","INDIANAPOLISINW-4","INDIANAPOLISINW-4",1242]
["INDIANAPOLIS","IN","W-5","INDIANAPOLISINW-5","INDIANAPOLISINW-5",1281]
["INDIANAPOLIS","IN","O-1E","INDIANAPOLISINO-1E","INDIANAPOLISINO-1E",1131]
["INDIANAPOLIS","IN","O-2E","INDIANAPOLISINO-2E","INDIANAPOLISINO-2E",1173]
["INDIANAPOLIS","IN","O-3E","INDIANAPOLISINO-3E","INDIANAPOLISINO-3E",1230]
["INDIANAPOLIS","IN","O-1","INDIANAPOLISINO-1","INDIANAPOLISINO-1",993]
["INDIANAPOLIS","IN","O-2","INDIANAPOLISINO-2","INDIANAPOLISINO-2",1107]
["INDIANAPOLIS","IN","O-3","INDIANAPOLISINO-3","INDIANAPOLISINO-3",1194]
["INDIANAPOLIS","IN","O-4","INDIANAPOLISINO-4","INDIANAPOLISINO-4",1275]
["INDIANAPOLIS","IN","O-5","INDIANAPOLISINO-5","INDIANAPOLISINO-5",1338]
["INDIANAPOLIS","IN","O-6","INDIANAPOLISINO-6","INDIANAPOLISINO-6",1350]
["INDIANAPOLIS","IN","O-7","INDIANAPOLISINO-7","INDIANAPOLISINO-7",1371]
["LAFAYETTE","IN","E-1","LAFAYETTEINE-1","LAFAYETTEINE-1",813,813,813,813,813,915,975,1032,1104,1125,1005,1101,1128,1170,1194,1089,1122,1161,966,1068,1134,1191,1209,1236,1260]
["LAFAYETTE","IN","E-2","LAFAYETTEINE-2","LAFAYETTEINE-2",813]
["LAFAYETTE","IN","E-3","LAFAYETTEINE-3","LAFAYETTEINE-3",813]
["LAFAYETTE","IN","E-4","LAFAYETTEINE-4","LAFAYETTEINE-4",813]
["LAFAYETTE","IN","E-5","LAFAYETTEINE-5","LAFAYETTEINE-5",915]
["LAFAYETTE","IN","E-6","LAFAYETTEINE-6","LAFAYETTEINE-6",975]
["LAFAYETTE","IN","E-7","LAFAYETTEINE-7","LAFAYETTEINE-7",1032]
["LAFAYETTE","IN","E-8","LAFAYETTEINE-8","LAFAYETTEINE-8",1104]
["LAFAYETTE","IN","E-9","LAFAYETTEINE-9","LAFAYETTEINE-9",1125]
["LAFAYETTE","IN","W-1","LAFAYETTEINW-1","LAFAYETTEINW-1",1005]
["LAFAYETTE","IN","W-2","LAFAYETTEINW-2","LAFAYETTEINW-2",1101]
["LAFAYETTE","IN","W-3","LAFAYETTEINW-3","LAFAYETTEINW-3",1128]
["LAFAYETTE","IN","W-4","LAFAYETTEINW-4","LAFAYETTEINW-4",1170]
["LAFAYETTE","IN","W-5","LAFAYETTEINW-5","LAFAYETTEINW-5",1194]
["LAFAYETTE","IN","O-1E","LAFAYETTEINO-1E","LAFAYETTEINO-1E",1089]
["LAFAYETTE","IN","O-2E","LAFAYETTEINO-2E","LAFAYETTEINO-2E",1122]
["LAFAYETTE","IN","O-3E",{"$f":"A2754&B2754&C2754","v":"LAFAYETTEINO-3E"},"LAFAYETTEINO-3E",1161]
["LAFAYETTE","IN","O-1","LAFAYETTEINO-1","LAFAYETTEINO-1",966]
["LAFAYETTE","IN","O-2","LAFAYETTEINO-2","LAFAYETTEINO-2",1068]
["LAFAYETTE","IN","O-3","LAFAYETTEINO-3","LAFAYETTEINO-3",1134]
["LAFAYETTE","IN","O-4","LAFAYETTEINO-4","LAFAYETTEINO-4",1191]
["LAFAYETTE","IN","O-5","LAFAYETTEINO-5","LAFAYETTEINO-5",1209]
["LAFAYETTE","IN","O-6","LAFAYETTEINO-6","LAFAYETTEINO-6",1236]
["LAFAYETTE","IN","O-7","LAFAYETTEINO-7","LAFAYETTEINO-7",1260]
["FORT WAYNE","IN","E-1","FORT WAYNEINE-1","FORT WAYNEINE-1",651,651,651,651,651,735,822,867,978,1023,828,975,1026,1107,1149,948,1014,1095,774,918,1041,1143,1266,1278,1290]
["FORT WAYNE","IN","E-2","FORT WAYNEINE-2","FORT WAYNEINE-2",651]
["FORT WAYNE","IN","E-3","FORT WAYNEINE-3","FORT WAYNEINE-3",651]
["FORT WAYNE","IN","E-4","FORT WAYNEINE-4","FORT WAYNEINE-4",651]
["FORT WAYNE","IN","E-5","FORT WAYNEINE-5","FORT WAYNEINE-5",735]
["FORT WAYNE","IN","E-6","FORT WAYNEINE-6","FORT WAYNEINE-6",822]
["FORT WAYNE","IN","E-7","FORT WAYNEINE-7","FORT WAYNEINE-7",867]
["FORT WAYNE","IN","E-8","FORT WAYNEINE-8","FORT WAYNEINE-8",978]
["FORT WAYNE","IN","E-9","FORT WAYNEINE-9","FORT WAYNEINE-9",1023]
["FORT WAYNE","IN","W-1","FORT WAYNEINW-1","FORT WAYNEINW-1",828]
["FORT WAYNE","IN","W-2","FORT WAYNEINW-2","FORT WAYNEINW-2",975]
["FORT WAYNE","IN","W-3","FORT WAYNEINW-3","FORT WAYNEINW-3",1026]
["FORT WAYNE","IN","W-4","FORT WAYNEINW-4","FORT WAYNEINW-4",1107]
["FORT WAYNE","IN","W-5","FORT WAYNEINW-5","FORT WAYNEINW-5",1149]
["FORT WAYNE","IN","O-1E","FORT WAYNEINO-1E","FORT WAYNEINO-1E",948]
["FORT WAYNE","IN","O-2E","FORT WAYNEINO-2E","FORT WAYNEINO-2E",1014]
["FORT WAYNE","IN","O-3E","FORT WAYNEINO-3E","FORT WAYNEINO-3E",1095]
["FORT WAYNE","IN","O-1","FORT WAYNEINO-1","FORT WAYNEINO-1",774]
["FORT WAYNE","IN","O-2","FORT WAYNEINO-2","FORT WAYNEINO-2",918]
["FORT WAYNE","IN","O-3","FORT WAYNEINO-3","FORT WAYNEINO-3",1041]
["FORT WAYNE","IN","O-4","FORT WAYNEINO-4","FORT WAYNEINO-4",1143]
["FORT WAYNE","IN","O-5","FORT WAYNEINO-5","FORT WAYNEINO-5",1266]
["FORT WAYNE","IN","O-6","FORT WAYNEINO-6","FORT WAYNEINO-6",1278]
["FORT WAYNE","IN","O-7","FORT WAYNEINO-7","FORT WAYNEINO-7",1290]
["SOUTH BEND","IN","E-1","SOUTH BENDINE-1","SOUTH BENDINE-1",726,726,726,726,726,810,927,975,1110,1161,927,1110,1164,1242,1269,1080,1149,1236,858,1041,1179,1266,1281,1308,1335]
["SOUTH BEND","IN","E-2","SOUTH BENDINE-2","SOUTH BENDINE-2",726]
["SOUTH BEND","IN","E-3","SOUTH BENDINE-3","SOUTH BENDINE-3",726]
["SOUTH BEND","IN","E-4","SOUTH BENDINE-4","SOUTH BENDINE-4",726]
["SOUTH BEND","IN","E-5","SOUTH BENDINE-5","SOUTH BENDINE-5",810]
["SOUTH BEND","IN","E-6","SOUTH BENDINE-6","SOUTH BENDINE-6",927]
["SOUTH BEND","IN","E-7","SOUTH BENDINE-7","SOUTH BENDINE-7",975]
["SOUTH BEND","IN","E-8","SOUTH BENDINE-8","SOUTH BENDINE-8",1110]
["SOUTH BEND","IN","E-9","SOUTH BENDINE-9","SOUTH BENDINE-9",1161]
["SOUTH BEND","IN","W-1","SOUTH BENDINW-1","SOUTH BENDINW-1",927]
["SOUTH BEND","IN","W-2","SOUTH BENDINW-2","SOUTH BENDINW-2",1110]
["SOUTH BEND","IN","W-3","SOUTH BENDINW-3","SOUTH BENDINW-3",1164]
["SOUTH BEND","IN","W-4","SOUTH BENDINW-4","SOUTH BENDINW-4",1242]
["SOUTH BEND","IN","W-5","SOUTH BENDINW-5","SOUTH BENDINW-5",1269]
["SOUTH BEND","IN","O-1E","SOUTH BENDINO-1E","SOUTH BENDINO-1E",1080]
["SOUTH BEND","IN","O-2E","SOUTH BENDINO-2E","SOUTH BENDINO-2E",1149]
["SOUTH BEND","IN","O-3E","SOUTH BENDINO-3E","SOUTH BENDINO-3E",1236]
["SOUTH BEND","IN","O-1","SOUTH BENDINO-1","SOUTH BENDINO-1",858]
["SOUTH BEND","IN","O-2","SOUTH BENDINO-2","SOUTH BENDINO-2",1041]
["SOUTH BEND","IN","O-3","SOUTH BENDINO-3","SOUTH BENDINO-3",1179]
["SOUTH BEND","IN","O-4","SOUTH BENDINO-4","SOUTH BENDINO-4",1266]
["SOUTH BEND","IN","O-5","SOUTH BENDINO-5","SOUTH BENDINO-5",1281]
["SOUTH BEND","IN","O-6","SOUTH BENDINO-6","SOUTH BENDINO-6",1308]
["SOUTH BEND","IN","O-7","SOUTH BENDINO-7","SOUTH BENDINO-7",1335]
["EVANSVILLE","IN","E-1","EVANSVILLEINE-1","EVANSVILLEINE-1",669,669,669,669,669,750,828,891,1008,1044,849,1008,1050,1107,1125,984,1038,1104,789,951,1062,1122,1176,1188,1200]
["EVANSVILLE","IN","E-2","EVANSVILLEINE-2","EVANSVILLEINE-2",669]
["EVANSVILLE","IN","E-3","EVANSVILLEINE-3","EVANSVILLEINE-3",669]
["EVANSVILLE","IN","E-4","EVANSVILLEINE-4","EVANSVILLEINE-4",669]
["EVANSVILLE","IN","E-5","EVANSVILLEINE-5","EVANSVILLEINE-5",750]
["EVANSVILLE","IN","E-6","EVANSVILLEINE-6","EVANSVILLEINE-6",828]
["EVANSVILLE","IN","E-7","EVANSVILLEINE-7","EVANSVILLEINE-7",891]
["EVANSVILLE","IN","E-8","EVANSVILLEINE-8","EVANSVILLEINE-8",1008]
["EVANSVILLE","IN","E-9",{"$f":"A2818&B2818&C2818","v":"EVANSVILLEINE-9"},"EVANSVILLEINE-9",1044]
["EVANSVILLE","IN","W-1","EVANSVILLEINW-1","EVANSVILLEINW-1",849]
["EVANSVILLE","IN","W-2","EVANSVILLEINW-2","EVANSVILLEINW-2",1008]
["EVANSVILLE","IN","W-3","EVANSVILLEINW-3","EVANSVILLEINW-3",1050]
["EVANSVILLE","IN","W-4","EVANSVILLEINW-4","EVANSVILLEINW-4",1107]
["EVANSVILLE","IN","W-5","EVANSVILLEINW-5","EVANSVILLEINW-5",1125]
["EVANSVILLE","IN","O-1E","EVANSVILLEINO-1E","EVANSVILLEINO-1E",984]
["EVANSVILLE","IN","O-2E","EVANSVILLEINO-2E","EVANSVILLEINO-2E",1038]
["EVANSVILLE","IN","O-3E","EVANSVILLEINO-3E","EVANSVILLEINO-3E",1104]
["EVANSVILLE","IN","O-1","EVANSVILLEINO-1","EVANSVILLEINO-1",789]
["EVANSVILLE","IN","O-2","EVANSVILLEINO-2","EVANSVILLEINO-2",951]
["EVANSVILLE","IN","O-3","EVANSVILLEINO-3","EVANSVILLEINO-3",1062]
["EVANSVILLE","IN","O-4","EVANSVILLEINO-4","EVANSVILLEINO-4",1122]
["EVANSVILLE","IN","O-5","EVANSVILLEINO-5","EVANSVILLEINO-5",1176]
["EVANSVILLE","IN","O-6","EVANSVILLEINO-6","EVANSVILLEINO-6",1188]
["EVANSVILLE","IN","O-7","EVANSVILLEINO-7","EVANSVILLEINO-7",1200]
["TERRE HAUTE","IN","E-1","TERRE HAUTEINE-1","TERRE HAUTEINE-1",639,639,639,639,639,735,813,855,948,1002,828,945,1005,1095,1131,915,990,1086,789,894,1023,1125,1149,1188,1212]
["TERRE HAUTE","IN","E-2","TERRE HAUTEINE-2","TERRE HAUTEINE-2",639]
["TERRE HAUTE","IN","E-3","TERRE HAUTEINE-3","TERRE HAUTEINE-3",639]
["TERRE HAUTE","IN","E-4","TERRE HAUTEINE-4","TERRE HAUTEINE-4",639]
["TERRE HAUTE","IN","E-5","TERRE HAUTEINE-5","TERRE HAUTEINE-5",735]
["TERRE HAUTE","IN","E-6","TERRE HAUTEINE-6","TERRE HAUTEINE-6",813]
["TERRE HAUTE","IN","E-7","TERRE HAUTEINE-7","TERRE HAUTEINE-7",855]
["TERRE HAUTE","IN","E-8","TERRE HAUTEINE-8","TERRE HAUTEINE-8",948]
["TERRE HAUTE","IN","E-9","TERRE HAUTEINE-9","TERRE HAUTEINE-9",1002]
["TERRE HAUTE","IN","W-1","TERRE HAUTEINW-1","TERRE HAUTEINW-1",828]
["TERRE HAUTE","IN","W-2","TERRE HAUTEINW-2","TERRE HAUTEINW-2",945]
["TERRE HAUTE","IN","W-3","TERRE HAUTEINW-3","TERRE HAUTEINW-3",1005]
["TERRE HAUTE","IN","W-4","TERRE HAUTEINW-4","TERRE HAUTEINW-4",1095]
["TERRE HAUTE","IN","W-5","TERRE HAUTEINW-5","TERRE HAUTEINW-5",1131]
["TERRE HAUTE","IN","O-1E","TERRE HAUTEINO-1E","TERRE HAUTEINO-1E",915]
["TERRE HAUTE","IN","O-2E","TERRE HAUTEINO-2E","TERRE HAUTEINO-2E",990]
["TERRE HAUTE","IN","O-3E","TERRE HAUTEINO-3E","TERRE HAUTEINO-3E",1086]
["TERRE HAUTE","IN","O-1","TERRE HAUTEINO-1","TERRE HAUTEINO-1",789]
["TERRE HAUTE","IN","O-2","TERRE HAUTEINO-2","TERRE HAUTEINO-2",894]
["TERRE HAUTE","IN","O-3","TERRE HAUTEINO-3","TERRE HAUTEINO-3",1023]
["TERRE HAUTE","IN","O-4","TERRE HAUTEINO-4","TERRE HAUTEINO-4",1125]
["TERRE HAUTE","IN","O-5","TERRE HAUTEINO-5","TERRE HAUTEINO-5",1149]
["TERRE HAUTE","IN","O-6","TERRE HAUTEINO-6","TERRE HAUTEINO-6",1188]
["TERRE HAUTE","IN","O-7","TERRE HAUTEINO-7","TERRE HAUTEINO-7",1212]
["BLOOMINGTON","IN","E-1","BLOOMINGTONINE-1","BLOOMINGTONINE-1",702,702,702,702,702,762,864,939,1029,1104,864,1029,1080,1176,1275,999,1065,1149,789,963,1095,1263,1326,1431,1461]
["BLOOMINGTON","IN","E-2","BLOOMINGTONINE-2","BLOOMINGTONINE-2",702]
["BLOOMINGTON","IN","E-3","BLOOMINGTONINE-3","BLOOMINGTONINE-3",702]
["BLOOMINGTON","IN","E-4","BLOOMINGTONINE-4","BLOOMINGTONINE-4",702]
["BLOOMINGTON","IN","E-5","BLOOMINGTONINE-5","BLOOMINGTONINE-5",762]
["BLOOMINGTON","IN","E-6","BLOOMINGTONINE-6","BLOOMINGTONINE-6",864]
["BLOOMINGTON","IN","E-7","BLOOMINGTONINE-7","BLOOMINGTONINE-7",939]
["BLOOMINGTON","IN","E-8","BLOOMINGTONINE-8","BLOOMINGTONINE-8",1029]
["BLOOMINGTON","IN","E-9","BLOOMINGTONINE-9","BLOOMINGTONINE-9",1104]
["BLOOMINGTON","IN","W-1","BLOOMINGTONINW-1","BLOOMINGTONINW-1",864]
["BLOOMINGTON","IN","W-2","BLOOMINGTONINW-2","BLOOMINGTONINW-2",1029]
["BLOOMINGTON","IN","W-3","BLOOMINGTONINW-3","BLOOMINGTONINW-3",1080]
["BLOOMINGTON","IN","W-4","BLOOMINGTONINW-4","BLOOMINGTONINW-4",1176]
["BLOOMINGTON","IN","W-5","BLOOMINGTONINW-5","BLOOMINGTONINW-5",1275]
["BLOOMINGTON","IN","O-1E","BLOOMINGTONINO-1E","BLOOMINGTONINO-1E",999]
["BLOOMINGTON","IN","O-2E","BLOOMINGTONINO-2E","BLOOMINGTONINO-2E",1065]
["BLOOMINGTON","IN","O-3E","BLOOMINGTONINO-3E","BLOOMINGTONINO-3E",1149]
["BLOOMINGTON","IN","O-1","BLOOMINGTONINO-1","BLOOMINGTONINO-1",789]
["BLOOMINGTON","IN","O-2","BLOOMINGTONINO-2","BLOOMINGTONINO-2",963]
["BLOOMINGTON","IN","O-3","BLOOMINGTONINO-3","BLOOMINGTONINO-3",1095]
["BLOOMINGTON","IN","O-4","BLOOMINGTONINO-4","BLOOMINGTONINO-4",1263]
["BLOOMINGTON","IN","O-5","BLOOMINGTONINO-5","BLOOMINGTONINO-5",1326]
["BLOOMINGTON","IN","O-6","BLOOMINGTONINO-6","BLOOMINGTONINO-6",1431]
["BLOOMINGTON","IN","O-7","BLOOMINGTONINO-7","BLOOMINGTONINO-7",1461]
["FORT RILEY","KS","E-1",{"$f":"A2882&B2882&C2882","v":"FORT RILEYKSE-1"},"FORT RILEYKSE-1",768,768,768,768,768,861,1056,1062,1173,1263,1056,1170,1272,1410,1419,1113,1242,1410,930,1083,1302,1416,1422,1431,1458]
["FORT RILEY","KS","E-2","FORT RILEYKSE-2","FORT RILEYKSE-2",768]
["FORT RILEY","KS","E-3","FORT RILEYKSE-3","FORT RILEYKSE-3",768]
["FORT RILEY","KS","E-4","FORT RILEYKSE-4","FORT RILEYKSE-4",768]
["FORT RILEY","KS","E-5","FORT RILEYKSE-5","FORT RILEYKSE-5",861]
["FORT RILEY","KS","E-6","FORT RILEYKSE-6","FORT RILEYKSE-6",1056]
["FORT RILEY","KS","E-7","FORT RILEYKSE-7","FORT RILEYKSE-7",1062]
["FORT RILEY","KS","E-8","FORT RILEYKSE-8","FORT RILEYKSE-8",1173]
["FORT RILEY","KS","E-9","FORT RILEYKSE-9","FORT RILEYKSE-9",1263]
["FORT RILEY","KS","W-1","FORT RILEYKSW-1","FORT RILEYKSW-1",1056]
["FORT RILEY","KS","W-2","FORT RILEYKSW-2","FORT RILEYKSW-2",1170]
["FORT RILEY","KS","W-3","FORT RILEYKSW-3","FORT RILEYKSW-3",1272]
["FORT RILEY","KS","W-4","FORT RILEYKSW-4","FORT RILEYKSW-4",1410]
["FORT RILEY","KS","W-5","FORT RILEYKSW-5","FORT RILEYKSW-5",1419]
["FORT RILEY","KS","O-1E","FORT RILEYKSO-1E","FORT RILEYKSO-1E",1113]
["FORT RILEY","KS","O-2E","FORT RILEYKSO-2E","FORT RILEYKSO-2E",1242]
["FORT RILEY","KS","O-3E","FORT RILEYKSO-3E","FORT RILEYKSO-3E",1410]
["FORT RILEY","KS","O-1","FORT RILEYKSO-1","FORT RILEYKSO-1",930]
["FORT RILEY","KS","O-2","FORT RILEYKSO-2","FORT RILEYKSO-2",1083]
["FORT RILEY","KS","O-3","FORT RILEYKSO-3","FORT RILEYKSO-3",1302]
["FORT RILEY","KS","O-4","FORT RILEYKSO-4","FORT RILEYKSO-4",1416]
["FORT RILEY","KS","O-5","FORT RILEYKSO-5","FORT RILEYKSO-5",1422]
["FORT RILEY","KS","O-6","FORT RILEYKSO-6","FORT RILEYKSO-6",1431]
["FORT RILEY","KS","O-7","FORT RILEYKSO-7","FORT RILEYKSO-7",1458]
["WICHITA/MCCONNELL AFB","KS","E-1","WICHITA/MCCONNELL AFBKSE-1","WICHITA/MCCONNELL AFBKSE-1",669,669,669,669,669,768,906,975,1059,1140,906,1059,1122,1230,1323,1023,1104,1206,783,978,1140,1311,1371,1470,1497]
["WICHITA/MCCONNELL AFB","KS","E-2","WICHITA/MCCONNELL AFBKSE-2","WICHITA/MCCONNELL AFBKSE-2",669]
["WICHITA/MCCONNELL AFB","KS","E-3","WICHITA/MCCONNELL AFBKSE-3","WICHITA/MCCONNELL AFBKSE-3",669]
["WICHITA/MCCONNELL AFB","KS","E-4","WICHITA/MCCONNELL AFBKSE-4","WICHITA/MCCONNELL AFBKSE-4",669]
["WICHITA/MCCONNELL AFB","KS","E-5","WICHITA/MCCONNELL AFBKSE-5","WICHITA/MCCONNELL AFBKSE-5",768]
["WICHITA/MCCONNELL AFB","KS","E-6","WICHITA/MCCONNELL AFBKSE-6","WICHITA/MCCONNELL AFBKSE-6",906]
["WICHITA/MCCONNELL AFB","KS","E-7","WICHITA/MCCONNELL AFBKSE-7","WICHITA/MCCONNELL AFBKSE-7",975]
["WICHITA/MCCONNELL AFB","KS","E-8","WICHITA/MCCONNELL AFBKSE-8","WICHITA/MCCONNELL AFBKSE-8",1059]
["WICHITA/MCCONNELL AFB","KS","E-9","WICHITA/MCCONNELL AFBKSE-9","WICHITA/MCCONNELL AFBKSE-9",1140]
["WICHITA/MCCONNELL AFB","KS","W-1","WICHITA/MCCONNELL AFBKSW-1","WICHITA/MCCONNELL AFBKSW-1",906]
["WICHITA/MCCONNELL AFB","KS","W-2","WICHITA/MCCONNELL AFBKSW-2","WICHITA/MCCONNELL AFBKSW-2",1059]
["WICHITA/MCCONNELL AFB","KS","W-3","WICHITA/MCCONNELL AFBKSW-3","WICHITA/MCCONNELL AFBKSW-3",1122]
["WICHITA/MCCONNELL AFB","KS","W-4","WICHITA/MCCONNELL AFBKSW-4","WICHITA/MCCONNELL AFBKSW-4",1230]
["WICHITA/MCCONNELL AFB","KS","W-5","WICHITA/MCCONNELL AFBKSW-5","WICHITA/MCCONNELL AFBKSW-5",1323]
["WICHITA/MCCONNELL AFB","KS","O-1E","WICHITA/MCCONNELL AFBKSO-1E","WICHITA/MCCONNELL AFBKSO-1E",1023]
["WICHITA/MCCONNELL AFB","KS","O-2E","WICHITA/MCCONNELL AFBKSO-2E","WICHITA/MCCONNELL AFBKSO-2E",1104]
["WICHITA/MCCONNELL AFB","KS","O-3E","WICHITA/MCCONNELL AFBKSO-3E","WICHITA/MCCONNELL AFBKSO-3E",1206]
["WICHITA/MCCONNELL AFB","KS","O-1","WICHITA/MCCONNELL AFBKSO-1","WICHITA/MCCONNELL AFBKSO-1",783]
["WICHITA/MCCONNELL AFB","KS","O-2","WICHITA/MCCONNELL AFBKSO-2","WICHITA/MCCONNELL AFBKSO-2",978]
["WICHITA/MCCONNELL AFB","KS","O-3","WICHITA/MCCONNELL AFBKSO-3","WICHITA/MCCONNELL AFBKSO-3",1140]
["WICHITA/MCCONNELL AFB","KS","O-4","WICHITA/MCCONNELL AFBKSO-4","WICHITA/MCCONNELL AFBKSO-4",1311]
["WICHITA/MCCONNELL AFB","KS","O-5","WICHITA/MCCONNELL AFBKSO-5","WICHITA/MCCONNELL AFBKSO-5",1371]
["WICHITA/MCCONNELL AFB","KS","O-6","WICHITA/MCCONNELL AFBKSO-6","WICHITA/MCCONNELL AFBKSO-6",1470]
["WICHITA/MCCONNELL AFB","KS","O-7","WICHITA/MCCONNELL AFBKSO-7","WICHITA/MCCONNELL AFBKSO-7",1497]
["FORT LEAVENWORTH","KS","E-1","FORT LEAVENWORTHKSE-1","FORT LEAVENWORTHKSE-1",663,663,663,663,663,747,918,981,1047,1143,921,1023,1110,1245,1326,993,1083,1224,789,942,1134,1317,1422,1452,1482]
["FORT LEAVENWORTH","KS","E-2","FORT LEAVENWORTHKSE-2","FORT LEAVENWORTHKSE-2",663]
["FORT LEAVENWORTH","KS","E-3","FORT LEAVENWORTHKSE-3","FORT LEAVENWORTHKSE-3",663]
["FORT LEAVENWORTH","KS","E-4","FORT LEAVENWORTHKSE-4","FORT LEAVENWORTHKSE-4",663]
["FORT LEAVENWORTH","KS","E-5","FORT LEAVENWORTHKSE-5","FORT LEAVENWORTHKSE-5",747]
["FORT LEAVENWORTH","KS","E-6","FORT LEAVENWORTHKSE-6","FORT LEAVENWORTHKSE-6",918]
["FORT LEAVENWORTH","KS","E-7","FORT LEAVENWORTHKSE-7","FORT LEAVENWORTHKSE-7",981]
["FORT LEAVENWORTH","KS","E-8","FORT LEAVENWORTHKSE-8","FORT LEAVENWORTHKSE-8",1047]
["FORT LEAVENWORTH","KS","E-9","FORT LEAVENWORTHKSE-9","FORT LEAVENWORTHKSE-9",1143]
["FORT LEAVENWORTH","KS","W-1","FORT LEAVENWORTHKSW-1","FORT LEAVENWORTHKSW-1",921]
["FORT LEAVENWORTH","KS","W-2","FORT LEAVENWORTHKSW-2","FORT LEAVENWORTHKSW-2",1023]
["FORT LEAVENWORTH","KS","W-3","FORT LEAVENWORTHKSW-3","FORT LEAVENWORTHKSW-3",1110]
["FORT LEAVENWORTH","KS","W-4","FORT LEAVENWORTHKSW-4","FORT LEAVENWORTHKSW-4",1245]
["FORT LEAVENWORTH","KS","W-5","FORT LEAVENWORTHKSW-5","FORT LEAVENWORTHKSW-5",1326]
["FORT LEAVENWORTH","KS","O-1E","FORT LEAVENWORTHKSO-1E","FORT LEAVENWORTHKSO-1E",993]
["FORT LEAVENWORTH","KS","O-2E","FORT LEAVENWORTHKSO-2E","FORT LEAVENWORTHKSO-2E",1083]
["FORT LEAVENWORTH","KS","O-3E",{"$f":"A2946&B2946&C2946","v":"FORT LEAVENWORTHKSO-3E"},"FORT LEAVENWORTHKSO-3E",1224]
["FORT LEAVENWORTH","KS","O-1","FORT LEAVENWORTHKSO-1","FORT LEAVENWORTHKSO-1",789]
["FORT LEAVENWORTH","KS","O-2","FORT LEAVENWORTHKSO-2","FORT LEAVENWORTHKSO-2",942]
["FORT LEAVENWORTH","KS","O-3","FORT LEAVENWORTHKSO-3","FORT LEAVENWORTHKSO-3",1134]
["FORT LEAVENWORTH","KS","O-4","FORT LEAVENWORTHKSO-4","FORT LEAVENWORTHKSO-4",1317]
["FORT LEAVENWORTH","KS","O-5","FORT LEAVENWORTHKSO-5","FORT LEAVENWORTHKSO-5",1422]
["FORT LEAVENWORTH","KS","O-6","FORT LEAVENWORTHKSO-6","FORT LEAVENWORTHKSO-6",1452]
["FORT LEAVENWORTH","KS","O-7","FORT LEAVENWORTHKSO-7","FORT LEAVENWORTHKSO-7",1482]
["LAWRENCE","KS","E-1","LAWRENCEKSE-1","LAWRENCEKSE-1",735,735,735,735,735,843,903,963,1056,1116,933,1053,1116,1221,1305,1017,1098,1200,894,996,1134,1293,1347,1431,1461]
["LAWRENCE","KS","E-2","LAWRENCEKSE-2","LAWRENCEKSE-2",735]
["LAWRENCE","KS","E-3","LAWRENCEKSE-3","LAWRENCEKSE-3",735]
["LAWRENCE","KS","E-4","LAWRENCEKSE-4","LAWRENCEKSE-4",735]
["LAWRENCE","KS","E-5","LAWRENCEKSE-5","LAWRENCEKSE-5",843]
["LAWRENCE","KS","E-6","LAWRENCEKSE-6","LAWRENCEKSE-6",903]
["LAWRENCE","KS","E-7","LAWRENCEKSE-7","LAWRENCEKSE-7",963]
["LAWRENCE","KS","E-8","LAWRENCEKSE-8","LAWRENCEKSE-8",1056]
["LAWRENCE","KS","E-9","LAWRENCEKSE-9","LAWRENCEKSE-9",1116]
["LAWRENCE","KS","W-1","LAWRENCEKSW-1","LAWRENCEKSW-1",933]
["LAWRENCE","KS","W-2","LAWRENCEKSW-2","LAWRENCEKSW-2",1053]
["LAWRENCE","KS","W-3","LAWRENCEKSW-3","LAWRENCEKSW-3",1116]
["LAWRENCE","KS","W-4","LAWRENCEKSW-4","LAWRENCEKSW-4",1221]
["LAWRENCE","KS","W-5","LAWRENCEKSW-5","LAWRENCEKSW-5",1305]
["LAWRENCE","KS","O-1E","LAWRENCEKSO-1E","LAWRENCEKSO-1E",1017]
["LAWRENCE","KS","O-2E","LAWRENCEKSO-2E","LAWRENCEKSO-2E",1098]
["LAWRENCE","KS","O-3E","LAWRENCEKSO-3E","LAWRENCEKSO-3E",1200]
["LAWRENCE","KS","O-1","LAWRENCEKSO-1","LAWRENCEKSO-1",894]
["LAWRENCE","KS","O-2","LAWRENCEKSO-2","LAWRENCEKSO-2",996]
["LAWRENCE","KS","O-3","LAWRENCEKSO-3","LAWRENCEKSO-3",1134]
["LAWRENCE","KS","O-4","LAWRENCEKSO-4","LAWRENCEKSO-4",1293]
["LAWRENCE","KS","O-5","LAWRENCEKSO-5","LAWRENCEKSO-5",1347]
["LAWRENCE","KS","O-6","LAWRENCEKSO-6","LAWRENCEKSO-6",1431]
["LAWRENCE","KS","O-7","LAWRENCEKSO-7","LAWRENCEKSO-7",1461]
["TOPEKA","KS","E-1","TOPEKAKSE-1","TOPEKAKSE-1",684,684,684,684,684,771,939,963,1071,1140,939,1068,1146,1257,1293,1026,1125,1251,795,987,1170,1287,1308,1344,1371]
["TOPEKA","KS","E-2","TOPEKAKSE-2","TOPEKAKSE-2",684]
["TOPEKA","KS","E-3","TOPEKAKSE-3","TOPEKAKSE-3",684]
["TOPEKA","KS","E-4","TOPEKAKSE-4","TOPEKAKSE-4",684]
["TOPEKA","KS","E-5","TOPEKAKSE-5","TOPEKAKSE-5",771]
["TOPEKA","KS","E-6","TOPEKAKSE-6","TOPEKAKSE-6",939]
["TOPEKA","KS","E-7","TOPEKAKSE-7","TOPEKAKSE-7",963]
["TOPEKA","KS","E-8","TOPEKAKSE-8","TOPEKAKSE-8",1071]
["TOPEKA","KS","E-9","TOPEKAKSE-9","TOPEKAKSE-9",1140]
["TOPEKA","KS","W-1","TOPEKAKSW-1","TOPEKAKSW-1",939]
["TOPEKA","KS","W-2","TOPEKAKSW-2","TOPEKAKSW-2",1068]
["TOPEKA","KS","W-3","TOPEKAKSW-3","TOPEKAKSW-3",1146]
["TOPEKA","KS","W-4","TOPEKAKSW-4","TOPEKAKSW-4",1257]
["TOPEKA","KS","W-5","TOPEKAKSW-5","TOPEKAKSW-5",1293]
["TOPEKA","KS","O-1E","TOPEKAKSO-1E","TOPEKAKSO-1E",1026]
["TOPEKA","KS","O-2E","TOPEKAKSO-2E","TOPEKAKSO-2E",1125]
["TOPEKA","KS","O-3E","TOPEKAKSO-3E","TOPEKAKSO-3E",1251]
["TOPEKA","KS","O-1","TOPEKAKSO-1","TOPEKAKSO-1",795]
["TOPEKA","KS","O-2","TOPEKAKSO-2","TOPEKAKSO-2",987]
["TOPEKA","KS","O-3","TOPEKAKSO-3","TOPEKAKSO-3",1170]
["TOPEKA","KS","O-4","TOPEKAKSO-4","TOPEKAKSO-4",1287]
["TOPEKA","KS","O-5","TOPEKAKSO-5","TOPEKAKSO-5",1308]
["TOPEKA","KS","O-6","TOPEKAKSO-6","TOPEKAKSO-6",1344]
["TOPEKA","KS","O-7","TOPEKAKSO-7","TOPEKAKSO-7",1371]
["SALINA","KS","E-1","SALINAKSE-1","SALINAKSE-1",588,588,588,588,588,666,744,789,879,921,759,876,927,1005,1059,849,912,993,720,828,942,1053,1086,1143,1164]
["SALINA","KS","E-2","SALINAKSE-2","SALINAKSE-2",588]
["SALINA","KS","E-3","SALINAKSE-3","SALINAKSE-3",588]
["SALINA","KS","E-4","SALINAKSE-4","SALINAKSE-4",588]
["SALINA","KS","E-5","SALINAKSE-5","SALINAKSE-5",666]
["SALINA","KS","E-6","SALINAKSE-6","SALINAKSE-6",744]
["SALINA","KS","E-7","SALINAKSE-7","SALINAKSE-7",789]
["SALINA","KS","E-8","SALINAKSE-8","SALINAKSE-8",879]
["SALINA","KS","E-9",{"$f":"A3010&B3010&C3010","v":"SALINAKSE-9"},"SALINAKSE-9",921]
["SALINA","KS","W-1","SALINAKSW-1","SALINAKSW-1",759]
["SALINA","KS","W-2","SALINAKSW-2","SALINAKSW-2",876]
["SALINA","KS","W-3","SALINAKSW-3","SALINAKSW-3",927]
["SALINA","KS","W-4","SALINAKSW-4","SALINAKSW-4",1005]
["SALINA","KS","W-5","SALINAKSW-5","SALINAKSW-5",1059]
["SALINA","KS","O-1E","SALINAKSO-1E","SALINAKSO-1E",849]
["SALINA","KS","O-2E","SALINAKSO-2E","SALINAKSO-2E",912]
["SALINA","KS","O-3E","SALINAKSO-3E","SALINAKSO-3E",993]
["SALINA","KS","O-1","SALINAKSO-1","SALINAKSO-1",720]
["SALINA","KS","O-2","SALINAKSO-2","SALINAKSO-2",828]
["SALINA","KS","O-3","SALINAKSO-3","SALINAKSO-3",942]
["SALINA","KS","O-4","SALINAKSO-4","SALINAKSO-4",1053]
["SALINA","KS","O-5","SALINAKSO-5","SALINAKSO-5",1086]
["SALINA","KS","O-6","SALINAKSO-6","SALINAKSO-6",1143]
["SALINA","KS","O-7","SALINAKSO-7","SALINAKSO-7",1164]
["FORT CAMPBELL","KY","E-1","FORT CAMPBELLKYE-1","FORT CAMPBELLKYE-1",732,732,732,732,732,804,858,942,1035,1113,858,981,1095,1170,1287,963,1080,1143,840,879,1092,1269,1344,1461,1491]
["FORT CAMPBELL","KY","E-2","FORT CAMPBELLKYE-2","FORT CAMPBELLKYE-2",732]
["FORT CAMPBELL","KY","E-3","FORT CAMPBELLKYE-3","FORT CAMPBELLKYE-3",732]
["FORT CAMPBELL","KY","E-4","FORT CAMPBELLKYE-4","FORT CAMPBELLKYE-4",732]
["FORT CAMPBELL","KY","E-5","FORT CAMPBELLKYE-5","FORT CAMPBELLKYE-5",804]
["FORT CAMPBELL","KY","E-6","FORT CAMPBELLKYE-6","FORT CAMPBELLKYE-6",858]
["FORT CAMPBELL","KY","E-7","FORT CAMPBELLKYE-7","FORT CAMPBELLKYE-7",942]
["FORT CAMPBELL","KY","E-8","FORT CAMPBELLKYE-8","FORT CAMPBELLKYE-8",1035]
["FORT CAMPBELL","KY","E-9","FORT CAMPBELLKYE-9","FORT CAMPBELLKYE-9",1113]
["FORT CAMPBELL","KY","W-1","FORT CAMPBELLKYW-1","FORT CAMPBELLKYW-1",858]
["FORT CAMPBELL","KY","W-2","FORT CAMPBELLKYW-2","FORT CAMPBELLKYW-2",981]
["FORT CAMPBELL","KY","W-3","FORT CAMPBELLKYW-3","FORT CAMPBELLKYW-3",1095]
["FORT CAMPBELL","KY","W-4","FORT CAMPBELLKYW-4","FORT CAMPBELLKYW-4",1170]
["FORT CAMPBELL","KY","W-5","FORT CAMPBELLKYW-5","FORT CAMPBELLKYW-5",1287]
["FORT CAMPBELL","KY","O-1E","FORT CAMPBELLKYO-1E","FORT CAMPBELLKYO-1E",963]
["FORT CAMPBELL","KY","O-2E","FORT CAMPBELLKYO-2E","FORT CAMPBELLKYO-2E",1080]
["FORT CAMPBELL","KY","O-3E","FORT CAMPBELLKYO-3E","FORT CAMPBELLKYO-3E",1143]
["FORT CAMPBELL","KY","O-1","FORT CAMPBELLKYO-1","FORT CAMPBELLKYO-1",840]
["FORT CAMPBELL","KY","O-2","FORT CAMPBELLKYO-2","FORT CAMPBELLKYO-2",879]
["FORT CAMPBELL","KY","O-3","FORT CAMPBELLKYO-3","FORT CAMPBELLKYO-3",1092]
["FORT CAMPBELL","KY","O-4","FORT CAMPBELLKYO-4","FORT CAMPBELLKYO-4",1269]
["FORT CAMPBELL","KY","O-5","FORT CAMPBELLKYO-5","FORT CAMPBELLKYO-5",1344]
["FORT CAMPBELL","KY","O-6","FORT CAMPBELLKYO-6","FORT CAMPBELLKYO-6",1461]
["FORT CAMPBELL","KY","O-7","FORT CAMPBELLKYO-7","FORT CAMPBELLKYO-7",1491]
["LEXINGTON","KY","E-1","LEXINGTONKYE-1","LEXINGTONKYE-1",699,699,699,699,699,786,888,939,1074,1116,891,1074,1122,1194,1236,1047,1107,1182,819,1008,1134,1230,1257,1299,1326]
["LEXINGTON","KY","E-2","LEXINGTONKYE-2","LEXINGTONKYE-2",699]
["LEXINGTON","KY","E-3","LEXINGTONKYE-3","LEXINGTONKYE-3",699]
["LEXINGTON","KY","E-4","LEXINGTONKYE-4","LEXINGTONKYE-4",699]
["LEXINGTON","KY","E-5","LEXINGTONKYE-5","LEXINGTONKYE-5",786]
["LEXINGTON","KY","E-6","LEXINGTONKYE-6","LEXINGTONKYE-6",888]
["LEXINGTON","KY","E-7","LEXINGTONKYE-7","LEXINGTONKYE-7",939]
["LEXINGTON","KY","E-8","LEXINGTONKYE-8","LEXINGTONKYE-8",1074]
["LEXINGTON","KY","E-9","LEXINGTONKYE-9","LEXINGTONKYE-9",1116]
["LEXINGTON","KY","W-1","LEXINGTONKYW-1","LEXINGTONKYW-1",891]
["LEXINGTON","KY","W-2","LEXINGTONKYW-2","LEXINGTONKYW-2",1074]
["LEXINGTON","KY","W-3","LEXINGTONKYW-3","LEXINGTONKYW-3",1122]
["LEXINGTON","KY","W-4","LEXINGTONKYW-4","LEXINGTONKYW-4",1194]
["LEXINGTON","KY","W-5","LEXINGTONKYW-5","LEXINGTONKYW-5",1236]
["LEXINGTON","KY","O-1E","LEXINGTONKYO-1E","LEXINGTONKYO-1E",1047]
["LEXINGTON","KY","O-2E","LEXINGTONKYO-2E","LEXINGTONKYO-2E",1107]
["LEXINGTON","KY","O-3E","LEXINGTONKYO-3E","LEXINGTONKYO-3E",1182]
["LEXINGTON","KY","O-1","LEXINGTONKYO-1","LEXINGTONKYO-1",819]
["LEXINGTON","KY","O-2","LEXINGTONKYO-2","LEXINGTONKYO-2",1008]
["LEXINGTON","KY","O-3","LEXINGTONKYO-3","LEXINGTONKYO-3",1134]
["LEXINGTON","KY","O-4","LEXINGTONKYO-4","LEXINGTONKYO-4",1230]
["LEXINGTON","KY","O-5","LEXINGTONKYO-5","LEXINGTONKYO-5",1257]
["LEXINGTON","KY","O-6","LEXINGTONKYO-6","LEXINGTONKYO-6",1299]
["LEXINGTON","KY","O-7","LEXINGTONKYO-7","LEXINGTONKYO-7",1326]
["LOUISVILLE","KY","E-1",{"$f":"A3074&B3074&C3074","v":"LOUISVILLEKYE-1"},"LOUISVILLEKYE-1",840,840,840,840,840,951,1017,1104,1218,1332,1062,1215,1287,1356,1497,1191,1266,1362,1005,1158,1281,1479,1578,1713,1749]
["LOUISVILLE","KY","E-2","LOUISVILLEKYE-2","LOUISVILLEKYE-2",840]
["LOUISVILLE","KY","E-3","LOUISVILLEKYE-3","LOUISVILLEKYE-3",840]
["LOUISVILLE","KY","E-4","LOUISVILLEKYE-4","LOUISVILLEKYE-4",840]
["LOUISVILLE","KY","E-5","LOUISVILLEKYE-5","LOUISVILLEKYE-5",951]
["LOUISVILLE","KY","E-6","LOUISVILLEKYE-6","LOUISVILLEKYE-6",1017]
["LOUISVILLE","KY","E-7","LOUISVILLEKYE-7","LOUISVILLEKYE-7",1104]
["LOUISVILLE","KY","E-8","LOUISVILLEKYE-8","LOUISVILLEKYE-8",1218]
["LOUISVILLE","KY","E-9","LOUISVILLEKYE-9","LOUISVILLEKYE-9",1332]
["LOUISVILLE","KY","W-1","LOUISVILLEKYW-1","LOUISVILLEKYW-1",1062]
["LOUISVILLE","KY","W-2","LOUISVILLEKYW-2","LOUISVILLEKYW-2",1215]
["LOUISVILLE","KY","W-3","LOUISVILLEKYW-3","LOUISVILLEKYW-3",1287]
["LOUISVILLE","KY","W-4","LOUISVILLEKYW-4","LOUISVILLEKYW-4",1356]
["LOUISVILLE","KY","W-5","LOUISVILLEKYW-5","LOUISVILLEKYW-5",1497]
["LOUISVILLE","KY","O-1E","LOUISVILLEKYO-1E","LOUISVILLEKYO-1E",1191]
["LOUISVILLE","KY","O-2E","LOUISVILLEKYO-2E","LOUISVILLEKYO-2E",1266]
["LOUISVILLE","KY","O-3E","LOUISVILLEKYO-3E","LOUISVILLEKYO-3E",1362]
["LOUISVILLE","KY","O-1","LOUISVILLEKYO-1","LOUISVILLEKYO-1",1005]
["LOUISVILLE","KY","O-2","LOUISVILLEKYO-2","LOUISVILLEKYO-2",1158]
["LOUISVILLE","KY","O-3","LOUISVILLEKYO-3","LOUISVILLEKYO-3",1281]
["LOUISVILLE","KY","O-4","LOUISVILLEKYO-4","LOUISVILLEKYO-4",1479]
["LOUISVILLE","KY","O-5","LOUISVILLEKYO-5","LOUISVILLEKYO-5",1578]
["LOUISVILLE","KY","O-6","LOUISVILLEKYO-6","LOUISVILLEKYO-6",1713]
["LOUISVILLE","KY","O-7","LOUISVILLEKYO-7","LOUISVILLEKYO-7",1749]
["FORT KNOX","KY","E-1","FORT KNOXKYE-1","FORT KNOXKYE-1",612,612,612,612,612,699,954,981,1008,1104,954,996,1113,1278,1314,987,1080,1269,726,948,1149,1311,1332,1371,1398]
["FORT KNOX","KY","E-2","FORT KNOXKYE-2","FORT KNOXKYE-2",612]
["FORT KNOX","KY","E-3","FORT KNOXKYE-3","FORT KNOXKYE-3",612]
["FORT KNOX","KY","E-4","FORT KNOXKYE-4","FORT KNOXKYE-4",612]
["FORT KNOX","KY","E-5","FORT KNOXKYE-5","FORT KNOXKYE-5",699]
["FORT KNOX","KY","E-6","FORT KNOXKYE-6","FORT KNOXKYE-6",954]
["FORT KNOX","KY","E-7","FORT KNOXKYE-7","FORT KNOXKYE-7",981]
["FORT KNOX","KY","E-8","FORT KNOXKYE-8","FORT KNOXKYE-8",1008]
["FORT KNOX","KY","E-9","FORT KNOXKYE-9","FORT KNOXKYE-9",1104]
["FORT KNOX","KY","W-1","FORT KNOXKYW-1","FORT KNOXKYW-1",954]
["FORT KNOX","KY","W-2","FORT KNOXKYW-2","FORT KNOXKYW-2",996]
["FORT KNOX","KY","W-3","FORT KNOXKYW-3","FORT KNOXKYW-3",1113]
["FORT KNOX","KY","W-4","FORT KNOXKYW-4","FORT KNOXKYW-4",1278]
["FORT KNOX","KY","W-5","FORT KNOXKYW-5","FORT KNOXKYW-5",1314]
["FORT KNOX","KY","O-1E","FORT KNOXKYO-1E","FORT KNOXKYO-1E",987]
["FORT KNOX","KY","O-2E","FORT KNOXKYO-2E","FORT KNOXKYO-2E",1080]
["FORT KNOX","KY","O-3E","FORT KNOXKYO-3E","FORT KNOXKYO-3E",1269]
["FORT KNOX","KY","O-1","FORT KNOXKYO-1","FORT KNOXKYO-1",726]
["FORT KNOX","KY","O-2","FORT KNOXKYO-2","FORT KNOXKYO-2",948]
["FORT KNOX","KY","O-3","FORT KNOXKYO-3","FORT KNOXKYO-3",1149]
["FORT KNOX","KY","O-4","FORT KNOXKYO-4","FORT KNOXKYO-4",1311]
["FORT KNOX","KY","O-5","FORT KNOXKYO-5","FORT KNOXKYO-5",1332]
["FORT KNOX","KY","O-6","FORT KNOXKYO-6","FORT KNOXKYO-6",1371]
["FORT KNOX","KY","O-7","FORT KNOXKYO-7","FORT KNOXKYO-7",1398]
["OWENSBORO","KY","E-1","OWENSBOROKYE-1","OWENSBOROKYE-1",588,588,588,588,588,678,738,789,867,921,765,867,912,993,1065,840,900,975,729,822,927,1056,1131,1176,1200]
["OWENSBORO","KY","E-2","OWENSBOROKYE-2","OWENSBOROKYE-2",588]
["OWENSBORO","KY","E-3","OWENSBOROKYE-3","OWENSBOROKYE-3",588]
["OWENSBORO","KY","E-4","OWENSBOROKYE-4","OWENSBOROKYE-4",588]
["OWENSBORO","KY","E-5","OWENSBOROKYE-5","OWENSBOROKYE-5",678]
["OWENSBORO","KY","E-6","OWENSBOROKYE-6","OWENSBOROKYE-6",738]
["OWENSBORO","KY","E-7","OWENSBOROKYE-7","OWENSBOROKYE-7",789]
["OWENSBORO","KY","E-8","OWENSBOROKYE-8","OWENSBOROKYE-8",867]
["OWENSBORO","KY","E-9","OWENSBOROKYE-9","OWENSBOROKYE-9",921]
["OWENSBORO","KY","W-1","OWENSBOROKYW-1","OWENSBOROKYW-1",765]
["OWENSBORO","KY","W-2","OWENSBOROKYW-2","OWENSBOROKYW-2",867]
["OWENSBORO","KY","W-3","OWENSBOROKYW-3","OWENSBOROKYW-3",912]
["OWENSBORO","KY","W-4","OWENSBOROKYW-4","OWENSBOROKYW-4",993]
["OWENSBORO","KY","W-5","OWENSBOROKYW-5","OWENSBOROKYW-5",1065]
["OWENSBORO","KY","O-1E","OWENSBOROKYO-1E","OWENSBOROKYO-1E",840]
["OWENSBORO","KY","O-2E","OWENSBOROKYO-2E","OWENSBOROKYO-2E",900]
["OWENSBORO","KY","O-3E",{"$f":"A3138&B3138&C3138","v":"OWENSBOROKYO-3E"},"OWENSBOROKYO-3E",975]
["OWENSBORO","KY","O-1","OWENSBOROKYO-1","OWENSBOROKYO-1",729]
["OWENSBORO","KY","O-2","OWENSBOROKYO-2","OWENSBOROKYO-2",822]
["OWENSBORO","KY","O-3","OWENSBOROKYO-3","OWENSBOROKYO-3",927]
["OWENSBORO","KY","O-4","OWENSBOROKYO-4","OWENSBOROKYO-4",1056]
["OWENSBORO","KY","O-5","OWENSBOROKYO-5","OWENSBOROKYO-5",1131]
["OWENSBORO","KY","O-6","OWENSBOROKYO-6","OWENSBOROKYO-6",1176]
["OWENSBORO","KY","O-7","OWENSBOROKYO-7","OWENSBOROKYO-7",1200]
["FRANKFORT","KY","E-1","FRANKFORTKYE-1","FRANKFORTKYE-1",606,606,606,606,606,690,738,795,867,942,768,867,906,954,1056,852,891,963,729,831,903,1041,1122,1209,1233]
["FRANKFORT","KY","E-2","FRANKFORTKYE-2","FRANKFORTKYE-2",606]
["FRANKFORT","KY","E-3","FRANKFORTKYE-3","FRANKFORTKYE-3",606]
["FRANKFORT","KY","E-4","FRANKFORTKYE-4","FRANKFORTKYE-4",606]
["FRANKFORT","KY","E-5","FRANKFORTKYE-5","FRANKFORTKYE-5",690]
["FRANKFORT","KY","E-6","FRANKFORTKYE-6","FRANKFORTKYE-6",738]
["FRANKFORT","KY","E-7","FRANKFORTKYE-7","FRANKFORTKYE-7",795]
["FRANKFORT","KY","E-8","FRANKFORTKYE-8","FRANKFORTKYE-8",867]
["FRANKFORT","KY","E-9","FRANKFORTKYE-9","FRANKFORTKYE-9",942]
["FRANKFORT","KY","W-1","FRANKFORTKYW-1","FRANKFORTKYW-1",768]
["FRANKFORT","KY","W-2","FRANKFORTKYW-2","FRANKFORTKYW-2",867]
["FRANKFORT","KY","W-3","FRANKFORTKYW-3","FRANKFORTKYW-3",906]
["FRANKFORT","KY","W-4","FRANKFORTKYW-4","FRANKFORTKYW-4",954]
["FRANKFORT","KY","W-5","FRANKFORTKYW-5","FRANKFORTKYW-5",1056]
["FRANKFORT","KY","O-1E","FRANKFORTKYO-1E","FRANKFORTKYO-1E",852]
["FRANKFORT","KY","O-2E","FRANKFORTKYO-2E","FRANKFORTKYO-2E",891]
["FRANKFORT","KY","O-3E","FRANKFORTKYO-3E","FRANKFORTKYO-3E",963]
["FRANKFORT","KY","O-1","FRANKFORTKYO-1","FRANKFORTKYO-1",729]
["FRANKFORT","KY","O-2","FRANKFORTKYO-2","FRANKFORTKYO-2",831]
["FRANKFORT","KY","O-3","FRANKFORTKYO-3","FRANKFORTKYO-3",903]
["FRANKFORT","KY","O-4","FRANKFORTKYO-4","FRANKFORTKYO-4",1041]
["FRANKFORT","KY","O-5","FRANKFORTKYO-5","FRANKFORTKYO-5",1122]
["FRANKFORT","KY","O-6","FRANKFORTKYO-6","FRANKFORTKYO-6",1209]
["FRANKFORT","KY","O-7","FRANKFORTKYO-7","FRANKFORTKYO-7",1233]
["BOWLING GREEN","KY","E-1","BOWLING GREENKYE-1","BOWLING GREENKYE-1",699,699,699,699,699,759,798,840,906,984,819,903,939,1008,1119,885,930,1026,789,867,951,1161,1341,1353,1368]
["BOWLING GREEN","KY","E-2","BOWLING GREENKYE-2","BOWLING GREENKYE-2",699]
["BOWLING GREEN","KY","E-3","BOWLING GREENKYE-3","BOWLING GREENKYE-3",699]
["BOWLING GREEN","KY","E-4","BOWLING GREENKYE-4","BOWLING GREENKYE-4",699]
["BOWLING GREEN","KY","E-5","BOWLING GREENKYE-5","BOWLING GREENKYE-5",759]
["BOWLING GREEN","KY","E-6","BOWLING GREENKYE-6","BOWLING GREENKYE-6",798]
["BOWLING GREEN","KY","E-7","BOWLING GREENKYE-7","BOWLING GREENKYE-7",840]
["BOWLING GREEN","KY","E-8","BOWLING GREENKYE-8","BOWLING GREENKYE-8",906]
["BOWLING GREEN","KY","E-9","BOWLING GREENKYE-9","BOWLING GREENKYE-9",984]
["BOWLING GREEN","KY","W-1","BOWLING GREENKYW-1","BOWLING GREENKYW-1",819]
["BOWLING GREEN","KY","W-2","BOWLING GREENKYW-2","BOWLING GREENKYW-2",903]
["BOWLING GREEN","KY","W-3","BOWLING GREENKYW-3","BOWLING GREENKYW-3",939]
["BOWLING GREEN","KY","W-4","BOWLING GREENKYW-4","BOWLING GREENKYW-4",1008]
["BOWLING GREEN","KY","W-5","BOWLING GREENKYW-5","BOWLING GREENKYW-5",1119]
["BOWLING GREEN","KY","O-1E","BOWLING GREENKYO-1E","BOWLING GREENKYO-1E",885]
["BOWLING GREEN","KY","O-2E","BOWLING GREENKYO-2E","BOWLING GREENKYO-2E",930]
["BOWLING GREEN","KY","O-3E","BOWLING GREENKYO-3E","BOWLING GREENKYO-3E",1026]
["BOWLING GREEN","KY","O-1","BOWLING GREENKYO-1","BOWLING GREENKYO-1",789]
["BOWLING GREEN","KY","O-2","BOWLING GREENKYO-2","BOWLING GREENKYO-2",867]
["BOWLING GREEN","KY","O-3","BOWLING GREENKYO-3","BOWLING GREENKYO-3",951]
["BOWLING GREEN","KY","O-4","BOWLING GREENKYO-4","BOWLING GREENKYO-4",1161]
["BOWLING GREEN","KY","O-5","BOWLING GREENKYO-5","BOWLING GREENKYO-5",1341]
["BOWLING GREEN","KY","O-6","BOWLING GREENKYO-6","BOWLING GREENKYO-6",1353]
["BOWLING GREEN","KY","O-7","BOWLING GREENKYO-7","BOWLING GREENKYO-7",1368]
["PADUCAH","KY","E-1","PADUCAHKYE-1","PADUCAHKYE-1",615,615,615,615,615,666,804,849,900,960,804,870,957,1086,1149,858,933,1071,690,801,981,1140,1179,1239,1266]
["PADUCAH","KY","E-2","PADUCAHKYE-2","PADUCAHKYE-2",615]
["PADUCAH","KY","E-3","PADUCAHKYE-3","PADUCAHKYE-3",615]
["PADUCAH","KY","E-4","PADUCAHKYE-4","PADUCAHKYE-4",615]
["PADUCAH","KY","E-5","PADUCAHKYE-5","PADUCAHKYE-5",666]
["PADUCAH","KY","E-6","PADUCAHKYE-6","PADUCAHKYE-6",804]
["PADUCAH","KY","E-7","PADUCAHKYE-7","PADUCAHKYE-7",849]
["PADUCAH","KY","E-8","PADUCAHKYE-8","PADUCAHKYE-8",900]
["PADUCAH","KY","E-9",{"$f":"A3202&B3202&C3202","v":"PADUCAHKYE-9"},"PADUCAHKYE-9",960]
["PADUCAH","KY","W-1","PADUCAHKYW-1","PADUCAHKYW-1",804]
["PADUCAH","KY","W-2","PADUCAHKYW-2","PADUCAHKYW-2",870]
["PADUCAH","KY","W-3","PADUCAHKYW-3","PADUCAHKYW-3",957]
["PADUCAH","KY","W-4","PADUCAHKYW-4","PADUCAHKYW-4",1086]
["PADUCAH","KY","W-5","PADUCAHKYW-5","PADUCAHKYW-5",1149]
["PADUCAH","KY","O-1E","PADUCAHKYO-1E","PADUCAHKYO-1E",858]
["PADUCAH","KY","O-2E","PADUCAHKYO-2E","PADUCAHKYO-2E",933]
["PADUCAH","KY","O-3E","PADUCAHKYO-3E","PADUCAHKYO-3E",1071]
["PADUCAH","KY","O-1","PADUCAHKYO-1","PADUCAHKYO-1",690]
["PADUCAH","KY","O-2","PADUCAHKYO-2","PADUCAHKYO-2",801]
["PADUCAH","KY","O-3","PADUCAHKYO-3","PADUCAHKYO-3",981]
["PADUCAH","KY","O-4","PADUCAHKYO-4","PADUCAHKYO-4",1140]
["PADUCAH","KY","O-5","PADUCAHKYO-5","PADUCAHKYO-5",1179]
["PADUCAH","KY","O-6","PADUCAHKYO-6","PADUCAHKYO-6",1239]
["PADUCAH","KY","O-7","PADUCAHKYO-7","PADUCAHKYO-7",1266]
["ALEXANDRIA","LA","E-1","ALEXANDRIALAE-1","ALEXANDRIALAE-1",732,732,732,732,732,867,966,984,1182,1224,966,1182,1227,1290,1302,1155,1215,1287,879,1095,1239,1302,1365,1380,1392]
["ALEXANDRIA","LA","E-2","ALEXANDRIALAE-2","ALEXANDRIALAE-2",732]
["ALEXANDRIA","LA","E-3","ALEXANDRIALAE-3","ALEXANDRIALAE-3",732]
["ALEXANDRIA","LA","E-4","ALEXANDRIALAE-4","ALEXANDRIALAE-4",732]
["ALEXANDRIA","LA","E-5","ALEXANDRIALAE-5","ALEXANDRIALAE-5",867]
["ALEXANDRIA","LA","E-6","ALEXANDRIALAE-6","ALEXANDRIALAE-6",966]
["ALEXANDRIA","LA","E-7","ALEXANDRIALAE-7","ALEXANDRIALAE-7",984]
["ALEXANDRIA","LA","E-8","ALEXANDRIALAE-8","ALEXANDRIALAE-8",1182]
["ALEXANDRIA","LA","E-9","ALEXANDRIALAE-9","ALEXANDRIALAE-9",1224]
["ALEXANDRIA","LA","W-1","ALEXANDRIALAW-1","ALEXANDRIALAW-1",966]
["ALEXANDRIA","LA","W-2","ALEXANDRIALAW-2","ALEXANDRIALAW-2",1182]
["ALEXANDRIA","LA","W-3","ALEXANDRIALAW-3","ALEXANDRIALAW-3",1227]
["ALEXANDRIA","LA","W-4","ALEXANDRIALAW-4","ALEXANDRIALAW-4",1290]
["ALEXANDRIA","LA","W-5","ALEXANDRIALAW-5","ALEXANDRIALAW-5",1302]
["ALEXANDRIA","LA","O-1E","ALEXANDRIALAO-1E","ALEXANDRIALAO-1E",1155]
["ALEXANDRIA","LA","O-2E","ALEXANDRIALAO-2E","ALEXANDRIALAO-2E",1215]
["ALEXANDRIA","LA","O-3E","ALEXANDRIALAO-3E","ALEXANDRIALAO-3E",1287]
["ALEXANDRIA","LA","O-1","ALEXANDRIALAO-1","ALEXANDRIALAO-1",879]
["ALEXANDRIA","LA","O-2","ALEXANDRIALAO-2","ALEXANDRIALAO-2",1095]
["ALEXANDRIA","LA","O-3","ALEXANDRIALAO-3","ALEXANDRIALAO-3",1239]
["ALEXANDRIA","LA","O-4","ALEXANDRIALAO-4","ALEXANDRIALAO-4",1302]
["ALEXANDRIA","LA","O-5","ALEXANDRIALAO-5","ALEXANDRIALAO-5",1365]
["ALEXANDRIA","LA","O-6","ALEXANDRIALAO-6","ALEXANDRIALAO-6",1380]
["ALEXANDRIA","LA","O-7","ALEXANDRIALAO-7","ALEXANDRIALAO-7",1392]
["BATON ROUGE","LA","E-1","BATON ROUGELAE-1","BATON ROUGELAE-1",966,966,966,966,966,1074,1137,1206,1299,1332,1173,1299,1335,1404,1482,1278,1326,1383,1125,1254,1347,1473,1662,1677,1695]
["BATON ROUGE","LA","E-2","BATON ROUGELAE-2","BATON ROUGELAE-2",966]
["BATON ROUGE","LA","E-3","BATON ROUGELAE-3","BATON ROUGELAE-3",966]
["BATON ROUGE","LA","E-4","BATON ROUGELAE-4","BATON ROUGELAE-4",966]
["BATON ROUGE","LA","E-5","BATON ROUGELAE-5","BATON ROUGELAE-5",1074]
["BATON ROUGE","LA","E-6","BATON ROUGELAE-6","BATON ROUGELAE-6",1137]
["BATON ROUGE","LA","E-7","BATON ROUGELAE-7","BATON ROUGELAE-7",1206]
["BATON ROUGE","LA","E-8","BATON ROUGELAE-8","BATON ROUGELAE-8",1299]
["BATON ROUGE","LA","E-9","BATON ROUGELAE-9","BATON ROUGELAE-9",1332]
["BATON ROUGE","LA","W-1","BATON ROUGELAW-1","BATON ROUGELAW-1",1173]
["BATON ROUGE","LA","W-2","BATON ROUGELAW-2","BATON ROUGELAW-2",1299]
["BATON ROUGE","LA","W-3","BATON ROUGELAW-3","BATON ROUGELAW-3",1335]
["BATON ROUGE","LA","W-4","BATON ROUGELAW-4","BATON ROUGELAW-4",1404]
["BATON ROUGE","LA","W-5","BATON ROUGELAW-5","BATON ROUGELAW-5",1482]
["BATON ROUGE","LA","O-1E","BATON ROUGELAO-1E","BATON ROUGELAO-1E",1278]
["BATON ROUGE","LA","O-2E","BATON ROUGELAO-2E","BATON ROUGELAO-2E",1326]
["BATON ROUGE","LA","O-3E","BATON ROUGELAO-3E","BATON ROUGELAO-3E",1383]
["BATON ROUGE","LA","O-1","BATON ROUGELAO-1","BATON ROUGELAO-1",1125]
["BATON ROUGE","LA","O-2","BATON ROUGELAO-2","BATON ROUGELAO-2",1254]
["BATON ROUGE","LA","O-3","BATON ROUGELAO-3","BATON ROUGELAO-3",1347]
["BATON ROUGE","LA","O-4","BATON ROUGELAO-4","BATON ROUGELAO-4",1473]
["BATON ROUGE","LA","O-5","BATON ROUGELAO-5","BATON ROUGELAO-5",1662]
["BATON ROUGE","LA","O-6","BATON ROUGELAO-6","BATON ROUGELAO-6",1677]
["BATON ROUGE","LA","O-7","BATON ROUGELAO-7","BATON ROUGELAO-7",1695]
["FORT POLK","LA","E-1",{"$f":"A3266&B3266&C3266","v":"FORT POLKLAE-1"},"FORT POLKLAE-1",639,639,639,639,639,762,828,852,912,975,840,912,975,1074,1146,879,957,1056,825,870,990,1134,1179,1254,1278]
["FORT POLK","LA","E-2","FORT POLKLAE-2","FORT POLKLAE-2",639]
["FORT POLK","LA","E-3","FORT POLKLAE-3","FORT POLKLAE-3",639]
["FORT POLK","LA","E-4","FORT POLKLAE-4","FORT POLKLAE-4",639]
["FORT POLK","LA","E-5","FORT POLKLAE-5","FORT POLKLAE-5",762]
["FORT POLK","LA","E-6","FORT POLKLAE-6","FORT POLKLAE-6",828]
["FORT POLK","LA","E-7","FORT POLKLAE-7","FORT POLKLAE-7",852]
["FORT POLK","LA","E-8","FORT POLKLAE-8","FORT POLKLAE-8",912]
["FORT POLK","LA","E-9","FORT POLKLAE-9","FORT POLKLAE-9",975]
["FORT POLK","LA","W-1","FORT POLKLAW-1","FORT POLKLAW-1",840]
["FORT POLK","LA","W-2","FORT POLKLAW-2","FORT POLKLAW-2",912]
["FORT POLK","LA","W-3","FORT POLKLAW-3","FORT POLKLAW-3",975]
["FORT POLK","LA","W-4","FORT POLKLAW-4","FORT POLKLAW-4",1074]
["FORT POLK","LA","W-5","FORT POLKLAW-5","FORT POLKLAW-5",1146]
["FORT POLK","LA","O-1E","FORT POLKLAO-1E","FORT POLKLAO-1E",879]
["FORT POLK","LA","O-2E","FORT POLKLAO-2E","FORT POLKLAO-2E",957]
["FORT POLK","LA","O-3E","FORT POLKLAO-3E","FORT POLKLAO-3E",1056]
["FORT POLK","LA","O-1","FORT POLKLAO-1","FORT POLKLAO-1",825]
["FORT POLK","LA","O-2","FORT POLKLAO-2","FORT POLKLAO-2",870]
["FORT POLK","LA","O-3","FORT POLKLAO-3","FORT POLKLAO-3",990]
["FORT POLK","LA","O-4","FORT POLKLAO-4","FORT POLKLAO-4",1134]
["FORT POLK","LA","O-5","FORT POLKLAO-5","FORT POLKLAO-5",1179]
["FORT POLK","LA","O-6","FORT POLKLAO-6","FORT POLKLAO-6",1254]
["FORT POLK","LA","O-7","FORT POLKLAO-7","FORT POLKLAO-7",1278]
["NEW ORLEANS","LA","E-1","NEW ORLEANSLAE-1","NEW ORLEANSLAE-1",903,903,903,903,903,1056,1206,1218,1323,1431,1206,1317,1443,1611,1629,1251,1407,1605,1131,1230,1479,1629,1641,1659,1692]
["NEW ORLEANS","LA","E-2","NEW ORLEANSLAE-2","NEW ORLEANSLAE-2",903]
["NEW ORLEANS","LA","E-3","NEW ORLEANSLAE-3","NEW ORLEANSLAE-3",903]
["NEW ORLEANS","LA","E-4","NEW ORLEANSLAE-4","NEW ORLEANSLAE-4",903]
["NEW ORLEANS","LA","E-5","NEW ORLEANSLAE-5","NEW ORLEANSLAE-5",1056]
["NEW ORLEANS","LA","E-6","NEW ORLEANSLAE-6","NEW ORLEANSLAE-6",1206]
["NEW ORLEANS","LA","E-7","NEW ORLEANSLAE-7","NEW ORLEANSLAE-7",1218]
["NEW ORLEANS","LA","E-8","NEW ORLEANSLAE-8","NEW ORLEANSLAE-8",1323]
["NEW ORLEANS","LA","E-9","NEW ORLEANSLAE-9","NEW ORLEANSLAE-9",1431]
["NEW ORLEANS","LA","W-1","NEW ORLEANSLAW-1","NEW ORLEANSLAW-1",1206]
["NEW ORLEANS","LA","W-2","NEW ORLEANSLAW-2","NEW ORLEANSLAW-2",1317]
["NEW ORLEANS","LA","W-3","NEW ORLEANSLAW-3","NEW ORLEANSLAW-3",1443]
["NEW ORLEANS","LA","W-4","NEW ORLEANSLAW-4","NEW ORLEANSLAW-4",1611]
["NEW ORLEANS","LA","W-5","NEW ORLEANSLAW-5","NEW ORLEANSLAW-5",1629]
["NEW ORLEANS","LA","O-1E","NEW ORLEANSLAO-1E","NEW ORLEANSLAO-1E",1251]
["NEW ORLEANS","LA","O-2E","NEW ORLEANSLAO-2E","NEW ORLEANSLAO-2E",1407]
["NEW ORLEANS","LA","O-3E","NEW ORLEANSLAO-3E","NEW ORLEANSLAO-3E",1605]
["NEW ORLEANS","LA","O-1","NEW ORLEANSLAO-1","NEW ORLEANSLAO-1",1131]
["NEW ORLEANS","LA","O-2","NEW ORLEANSLAO-2","NEW ORLEANSLAO-2",1230]
["NEW ORLEANS","LA","O-3","NEW ORLEANSLAO-3","NEW ORLEANSLAO-3",1479]
["NEW ORLEANS","LA","O-4","NEW ORLEANSLAO-4","NEW ORLEANSLAO-4",1629]
["NEW ORLEANS","LA","O-5","NEW ORLEANSLAO-5","NEW ORLEANSLAO-5",1641]
["NEW ORLEANS","LA","O-6","NEW ORLEANSLAO-6","NEW ORLEANSLAO-6",1659]
["NEW ORLEANS","LA","O-7","NEW ORLEANSLAO-7","NEW ORLEANSLAO-7",1692]
["SHREVEPORT/BARKSDALE AFB","LA","E-1","SHREVEPORT/BARKSDALE AFBLAE-1","SHREVEPORT/BARKSDALE AFBLAE-1",795,795,795,795,795,885,1065,1101,1152,1254,1065,1146,1263,1431,1479,1107,1230,1419,927,1059,1299,1473,1578,1593,1608]
["SHREVEPORT/BARKSDALE AFB","LA","E-2","SHREVEPORT/BARKSDALE AFBLAE-2","SHREVEPORT/BARKSDALE AFBLAE-2",795]
["SHREVEPORT/BARKSDALE AFB","LA","E-3","SHREVEPORT/BARKSDALE AFBLAE-3","SHREVEPORT/BARKSDALE AFBLAE-3",795]
["SHREVEPORT/BARKSDALE AFB","LA","E-4","SHREVEPORT/BARKSDALE AFBLAE-4","SHREVEPORT/BARKSDALE AFBLAE-4",795]
["SHREVEPORT/BARKSDALE AFB","LA","E-5","SHREVEPORT/BARKSDALE AFBLAE-5","SHREVEPORT/BARKSDALE AFBLAE-5",885]
["SHREVEPORT/BARKSDALE AFB","LA","E-6","SHREVEPORT/BARKSDALE AFBLAE-6","SHREVEPORT/BARKSDALE AFBLAE-6",1065]
["SHREVEPORT/BARKSDALE AFB","LA","E-7","SHREVEPORT/BARKSDALE AFBLAE-7","SHREVEPORT/BARKSDALE AFBLAE-7",1101]
["SHREVEPORT/BARKSDALE AFB","LA","E-8","SHREVEPORT/BARKSDALE AFBLAE-8","SHREVEPORT/BARKSDALE AFBLAE-8",1152]
["SHREVEPORT/BARKSDALE AFB","LA","E-9","SHREVEPORT/BARKSDALE AFBLAE-9","SHREVEPORT/BARKSDALE AFBLAE-9",1254]
["SHREVEPORT/BARKSDALE AFB","LA","W-1","SHREVEPORT/BARKSDALE AFBLAW-1","SHREVEPORT/BARKSDALE AFBLAW-1",1065]
["SHREVEPORT/BARKSDALE AFB","LA","W-2","SHREVEPORT/BARKSDALE AFBLAW-2","SHREVEPORT/BARKSDALE AFBLAW-2",1146]
["SHREVEPORT/BARKSDALE AFB","LA","W-3","SHREVEPORT/BARKSDALE AFBLAW-3","SHREVEPORT/BARKSDALE AFBLAW-3",1263]
["SHREVEPORT/BARKSDALE AFB","LA","W-4","SHREVEPORT/BARKSDALE AFBLAW-4","SHREVEPORT/BARKSDALE AFBLAW-4",1431]
["SHREVEPORT/BARKSDALE AFB","LA","W-5","SHREVEPORT/BARKSDALE AFBLAW-5","SHREVEPORT/BARKSDALE AFBLAW-5",1479]
["SHREVEPORT/BARKSDALE AFB","LA","O-1E","SHREVEPORT/BARKSDALE AFBLAO-1E","SHREVEPORT/BARKSDALE AFBLAO-1E",1107]
["SHREVEPORT/BARKSDALE AFB","LA","O-2E","SHREVEPORT/BARKSDALE AFBLAO-2E","SHREVEPORT/BARKSDALE AFBLAO-2E",1230]
["SHREVEPORT/BARKSDALE AFB","LA","O-3E",{"$f":"A3330&B3330&C3330","v":"SHREVEPORT/BARKSDALE AFBLAO-3E"},"SHREVEPORT/BARKSDALE AFBLAO-3E",1419]
["SHREVEPORT/BARKSDALE AFB","LA","O-1","SHREVEPORT/BARKSDALE AFBLAO-1","SHREVEPORT/BARKSDALE AFBLAO-1",927]
["SHREVEPORT/BARKSDALE AFB","LA","O-2","SHREVEPORT/BARKSDALE AFBLAO-2","SHREVEPORT/BARKSDALE AFBLAO-2",1059]
["SHREVEPORT/BARKSDALE AFB","LA","O-3","SHREVEPORT/BARKSDALE AFBLAO-3","SHREVEPORT/BARKSDALE AFBLAO-3",1299]
["SHREVEPORT/BARKSDALE AFB","LA","O-4","SHREVEPORT/BARKSDALE AFBLAO-4","SHREVEPORT/BARKSDALE AFBLAO-4",1473]
["SHREVEPORT/BARKSDALE AFB","LA","O-5","SHREVEPORT/BARKSDALE AFBLAO-5","SHREVEPORT/BARKSDALE AFBLAO-5",1578]
["SHREVEPORT/BARKSDALE AFB","LA","O-6","SHREVEPORT/BARKSDALE AFBLAO-6","SHREVEPORT/BARKSDALE AFBLAO-6",1593]
["SHREVEPORT/BARKSDALE AFB","LA","O-7","SHREVEPORT/BARKSDALE AFBLAO-7","SHREVEPORT/BARKSDALE AFBLAO-7",1608]
["LAFAYETTE COUNTY","LA","E-1","LAFAYETTE COUNTYLAE-1","LAFAYETTE COUNTYLAE-1",792,792,792,792,792,888,1053,1077,1218,1290,1053,1218,1299,1413,1443,1173,1275,1404,936,1134,1320,1440,1458,1491,1521]
["LAFAYETTE COUNTY","LA","E-2","LAFAYETTE COUNTYLAE-2","LAFAYETTE COUNTYLAE-2",792]
["LAFAYETTE COUNTY","LA","E-3","LAFAYETTE COUNTYLAE-3","LAFAYETTE COUNTYLAE-3",792]
["LAFAYETTE COUNTY","LA","E-4","LAFAYETTE COUNTYLAE-4","LAFAYETTE COUNTYLAE-4",792]
["LAFAYETTE COUNTY","LA","E-5","LAFAYETTE COUNTYLAE-5","LAFAYETTE COUNTYLAE-5",888]
["LAFAYETTE COUNTY","LA","E-6","LAFAYETTE COUNTYLAE-6","LAFAYETTE COUNTYLAE-6",1053]
["LAFAYETTE COUNTY","LA","E-7","LAFAYETTE COUNTYLAE-7","LAFAYETTE COUNTYLAE-7",1077]
["LAFAYETTE COUNTY","LA","E-8","LAFAYETTE COUNTYLAE-8","LAFAYETTE COUNTYLAE-8",1218]
["LAFAYETTE COUNTY","LA","E-9","LAFAYETTE COUNTYLAE-9","LAFAYETTE COUNTYLAE-9",1290]
["LAFAYETTE COUNTY","LA","W-1","LAFAYETTE COUNTYLAW-1","LAFAYETTE COUNTYLAW-1",1053]
["LAFAYETTE COUNTY","LA","W-2","LAFAYETTE COUNTYLAW-2","LAFAYETTE COUNTYLAW-2",1218]
["LAFAYETTE COUNTY","LA","W-3","LAFAYETTE COUNTYLAW-3","LAFAYETTE COUNTYLAW-3",1299]
["LAFAYETTE COUNTY","LA","W-4","LAFAYETTE COUNTYLAW-4","LAFAYETTE COUNTYLAW-4",1413]
["LAFAYETTE COUNTY","LA","W-5","LAFAYETTE COUNTYLAW-5","LAFAYETTE COUNTYLAW-5",1443]
["LAFAYETTE COUNTY","LA","O-1E","LAFAYETTE COUNTYLAO-1E","LAFAYETTE COUNTYLAO-1E",1173]
["LAFAYETTE COUNTY","LA","O-2E","LAFAYETTE COUNTYLAO-2E","LAFAYETTE COUNTYLAO-2E",1275]
["LAFAYETTE COUNTY","LA","O-3E","LAFAYETTE COUNTYLAO-3E","LAFAYETTE COUNTYLAO-3E",1404]
["LAFAYETTE COUNTY","LA","O-1","LAFAYETTE COUNTYLAO-1","LAFAYETTE COUNTYLAO-1",936]
["LAFAYETTE COUNTY","LA","O-2","LAFAYETTE COUNTYLAO-2","LAFAYETTE COUNTYLAO-2",1134]
["LAFAYETTE COUNTY","LA","O-3","LAFAYETTE COUNTYLAO-3","LAFAYETTE COUNTYLAO-3",1320]
["LAFAYETTE COUNTY","LA","O-4","LAFAYETTE COUNTYLAO-4","LAFAYETTE COUNTYLAO-4",1440]
["LAFAYETTE COUNTY","LA","O-5","LAFAYETTE COUNTYLAO-5","LAFAYETTE COUNTYLAO-5",1458]
["LAFAYETTE COUNTY","LA","O-6","LAFAYETTE COUNTYLAO-6","LAFAYETTE COUNTYLAO-6",1491]
["LAFAYETTE COUNTY","LA","O-7","LAFAYETTE COUNTYLAO-7","LAFAYETTE COUNTYLAO-7",1521]
["ST MARY AND TERREBONNE","LA","E-1","ST MARY AND TERREBONNELAE-1","ST MARY AND TERREBONNELAE-1",837,837,837,837,837,936,1113,1173,1296,1368,1116,1293,1377,1503,1584,1248,1353,1485,981,1203,1398,1572,1623,1707,1740]
["ST MARY AND TERREBONNE","LA","E-2","ST MARY AND TERREBONNELAE-2","ST MARY AND TERREBONNELAE-2",837]
["ST MARY AND TERREBONNE","LA","E-3","ST MARY AND TERREBONNELAE-3","ST MARY AND TERREBONNELAE-3",837]
["ST MARY AND TERREBONNE","LA","E-4","ST MARY AND TERREBONNELAE-4","ST MARY AND TERREBONNELAE-4",837]
["ST MARY AND TERREBONNE","LA","E-5","ST MARY AND TERREBONNELAE-5","ST MARY AND TERREBONNELAE-5",936]
["ST MARY AND TERREBONNE","LA","E-6","ST MARY AND TERREBONNELAE-6","ST MARY AND TERREBONNELAE-6",1113]
["ST MARY AND TERREBONNE","LA","E-7","ST MARY AND TERREBONNELAE-7","ST MARY AND TERREBONNELAE-7",1173]
["ST MARY AND TERREBONNE","LA","E-8","ST MARY AND TERREBONNELAE-8","ST MARY AND TERREBONNELAE-8",1296]
["ST MARY AND TERREBONNE","LA","E-9","ST MARY AND TERREBONNELAE-9","ST MARY AND TERREBONNELAE-9",1368]
["ST MARY AND TERREBONNE","LA","W-1","ST MARY AND TERREBONNELAW-1","ST MARY AND TERREBONNELAW-1",1116]
["ST MARY AND TERREBONNE","LA","W-2","ST MARY AND TERREBONNELAW-2","ST MARY AND TERREBONNELAW-2",1293]
["ST MARY AND TERREBONNE","LA","W-3","ST MARY AND TERREBONNELAW-3","ST MARY AND TERREBONNELAW-3",1377]
["ST MARY AND TERREBONNE","LA","W-4","ST MARY AND TERREBONNELAW-4","ST MARY AND TERREBONNELAW-4",1503]
["ST MARY AND TERREBONNE","LA","W-5","ST MARY AND TERREBONNELAW-5","ST MARY AND TERREBONNELAW-5",1584]
["ST MARY AND TERREBONNE","LA","O-1E","ST MARY AND TERREBONNELAO-1E","ST MARY AND TERREBONNELAO-1E",1248]
["ST MARY AND TERREBONNE","LA","O-2E","ST MARY AND TERREBONNELAO-2E","ST MARY AND TERREBONNELAO-2E",1353]
["ST MARY AND TERREBONNE","LA","O-3E","ST MARY AND TERREBONNELAO-3E","ST MARY AND TERREBONNELAO-3E",1485]
["ST MARY AND TERREBONNE","LA","O-1","ST MARY AND TERREBONNELAO-1","ST MARY AND TERREBONNELAO-1",981]
["ST MARY AND TERREBONNE","LA","O-2","ST MARY AND TERREBONNELAO-2","ST MARY AND TERREBONNELAO-2",1203]
["ST MARY AND TERREBONNE","LA","O-3","ST MARY AND TERREBONNELAO-3","ST MARY AND TERREBONNELAO-3",1398]
["ST MARY AND TERREBONNE","LA","O-4","ST MARY AND TERREBONNELAO-4","ST MARY AND TERREBONNELAO-4",1572]
["ST MARY AND TERREBONNE","LA","O-5","ST MARY AND TERREBONNELAO-5","ST MARY AND TERREBONNELAO-5",1623]
["ST MARY AND TERREBONNE","LA","O-6","ST MARY AND TERREBONNELAO-6","ST MARY AND TERREBONNELAO-6",1707]
["ST MARY AND TERREBONNE","LA","O-7","ST MARY AND TERREBONNELAO-7","ST MARY AND TERREBONNELAO-7",1740]
["LAKE CHARLES","LA","E-1","LAKE CHARLESLAE-1","LAKE CHARLESLAE-1",864,864,864,864,864,966,1023,1083,1167,1206,1053,1164,1209,1284,1362,1140,1197,1266,1014,1119,1221,1350,1401,1479,1509]
["LAKE CHARLES","LA","E-2","LAKE CHARLESLAE-2","LAKE CHARLESLAE-2",864]
["LAKE CHARLES","LA","E-3","LAKE CHARLESLAE-3","LAKE CHARLESLAE-3",864]
["LAKE CHARLES","LA","E-4","LAKE CHARLESLAE-4","LAKE CHARLESLAE-4",864]
["LAKE CHARLES","LA","E-5","LAKE CHARLESLAE-5","LAKE CHARLESLAE-5",966]
["LAKE CHARLES","LA","E-6","LAKE CHARLESLAE-6","LAKE CHARLESLAE-6",1023]
["LAKE CHARLES","LA","E-7","LAKE CHARLESLAE-7","LAKE CHARLESLAE-7",1083]
["LAKE CHARLES","LA","E-8","LAKE CHARLESLAE-8","LAKE CHARLESLAE-8",1167]
["LAKE CHARLES","LA","E-9",{"$f":"A3394&B3394&C3394","v":"LAKE CHARLESLAE-9"},"LAKE CHARLESLAE-9",1206]
["LAKE CHARLES","LA","W-1","LAKE CHARLESLAW-1","LAKE CHARLESLAW-1",1053]
["LAKE CHARLES","LA","W-2","LAKE CHARLESLAW-2","LAKE CHARLESLAW-2",1164]
["LAKE CHARLES","LA","W-3","LAKE CHARLESLAW-3","LAKE CHARLESLAW-3",1209]
["LAKE CHARLES","LA","W-4","LAKE CHARLESLAW-4","LAKE CHARLESLAW-4",1284]
["LAKE CHARLES","LA","W-5","LAKE CHARLESLAW-5","LAKE CHARLESLAW-5",1362]
["LAKE CHARLES","LA","O-1E","LAKE CHARLESLAO-1E","LAKE CHARLESLAO-1E",1140]
["LAKE CHARLES","LA","O-2E","LAKE CHARLESLAO-2E","LAKE CHARLESLAO-2E",1197]
["LAKE CHARLES","LA","O-3E","LAKE CHARLESLAO-3E","LAKE CHARLESLAO-3E",1266]
["LAKE CHARLES","LA","O-1","LAKE CHARLESLAO-1","LAKE CHARLESLAO-1",1014]
["LAKE CHARLES","LA","O-2","LAKE CHARLESLAO-2","LAKE CHARLESLAO-2",1119]
["LAKE CHARLES","LA","O-3","LAKE CHARLESLAO-3","LAKE CHARLESLAO-3",1221]
["LAKE CHARLES","LA","O-4","LAKE CHARLESLAO-4","LAKE CHARLESLAO-4",1350]
["LAKE CHARLES","LA","O-5","LAKE CHARLESLAO-5","LAKE CHARLESLAO-5",1401]
["LAKE CHARLES","LA","O-6","LAKE CHARLESLAO-6","LAKE CHARLESLAO-6",1479]
["LAKE CHARLES","LA","O-7","LAKE CHARLESLAO-7","LAKE CHARLESLAO-7",1509]
["MONROE","LA","E-1","MONROELAE-1","MONROELAE-1",690,690,690,690,690,759,906,912,975,1065,906,972,1074,1209,1218,918,1044,1206,792,900,1104,1215,1221,1230,1254]
["MONROE","LA","E-2","MONROELAE-2","MONROELAE-2",690]
["MONROE","LA","E-3","MONROELAE-3","MONROELAE-3",690]
["MONROE","LA","E-4","MONROELAE-4","MONROELAE-4",690]
["MONROE","LA","E-5","MONROELAE-5","MONROELAE-5",759]
["MONROE","LA","E-6","MONROELAE-6","MONROELAE-6",906]
["MONROE","LA","E-7","MONROELAE-7","MONROELAE-7",912]
["MONROE","LA","E-8","MONROELAE-8","MONROELAE-8",975]
["MONROE","LA","E-9","MONROELAE-9","MONROELAE-9",1065]
["MONROE","LA","W-1","MONROELAW-1","MONROELAW-1",906]
["MONROE","LA","W-2","MONROELAW-2","MONROELAW-2",972]
["MONROE","LA","W-3","MONROELAW-3","MONROELAW-3",1074]
["MONROE","LA","W-4","MONROELAW-4","MONROELAW-4",1209]
["MONROE","LA","W-5","MONROELAW-5","MONROELAW-5",1218]
["MONROE","LA","O-1E","MONROELAO-1E","MONROELAO-1E",918]
["MONROE","LA","O-2E","MONROELAO-2E","MONROELAO-2E",1044]
["MONROE","LA","O-3E","MONROELAO-3E","MONROELAO-3E",1206]
["MONROE","LA","O-1","MONROELAO-1","MONROELAO-1",792]
["MONROE","LA","O-2","MONROELAO-2","MONROELAO-2",900]
["MONROE","LA","O-3","MONROELAO-3","MONROELAO-3",1104]
["MONROE","LA","O-4","MONROELAO-4","MONROELAO-4",1215]
["MONROE","LA","O-5","MONROELAO-5","MONROELAO-5",1221]
["MONROE","LA","O-6","MONROELAO-6","MONROELAO-6",1230]
["MONROE","LA","O-7","MONROELAO-7","MONROELAO-7",1254]
["NANTUCKET","MA","E-1","NANTUCKETMAE-1","NANTUCKETMAE-1",1761,1761,1761,1761,1761,2064,2259,2358,2571,2742,2304,2565,2757,3045,3177,2460,2703,3012,2232,2421,2814,3159,3243,3378,3444]
["NANTUCKET","MA","E-2","NANTUCKETMAE-2","NANTUCKETMAE-2",1761]
["NANTUCKET","MA","E-3","NANTUCKETMAE-3","NANTUCKETMAE-3",1761]
["NANTUCKET","MA","E-4","NANTUCKETMAE-4","NANTUCKETMAE-4",1761]
["NANTUCKET","MA","E-5","NANTUCKETMAE-5","NANTUCKETMAE-5",2064]
["NANTUCKET","MA","E-6","NANTUCKETMAE-6","NANTUCKETMAE-6",2259]
["NANTUCKET","MA","E-7","NANTUCKETMAE-7","NANTUCKETMAE-7",2358]
["NANTUCKET","MA","E-8","NANTUCKETMAE-8","NANTUCKETMAE-8",2571]
["NANTUCKET","MA","E-9","NANTUCKETMAE-9","NANTUCKETMAE-9",2742]
["NANTUCKET","MA","W-1","NANTUCKETMAW-1","NANTUCKETMAW-1",2304]
["NANTUCKET","MA","W-2","NANTUCKETMAW-2","NANTUCKETMAW-2",2565]
["NANTUCKET","MA","W-3","NANTUCKETMAW-3","NANTUCKETMAW-3",2757]
["NANTUCKET","MA","W-4","NANTUCKETMAW-4","NANTUCKETMAW-4",3045]
["NANTUCKET","MA","W-5","NANTUCKETMAW-5","NANTUCKETMAW-5",3177]
["NANTUCKET","MA","O-1E","NANTUCKETMAO-1E","NANTUCKETMAO-1E",2460]
["NANTUCKET","MA","O-2E","NANTUCKETMAO-2E","NANTUCKETMAO-2E",2703]
["NANTUCKET","MA","O-3E","NANTUCKETMAO-3E","NANTUCKETMAO-3E",3012]
["NANTUCKET","MA","O-1","NANTUCKETMAO-1","NANTUCKETMAO-1",2232]
["NANTUCKET","MA","O-2","NANTUCKETMAO-2","NANTUCKETMAO-2",2421]
["NANTUCKET","MA","O-3","NANTUCKETMAO-3","NANTUCKETMAO-3",2814]
["NANTUCKET","MA","O-4","NANTUCKETMAO-4","NANTUCKETMAO-4",3159]
["NANTUCKET","MA","O-5","NANTUCKETMAO-5","NANTUCKETMAO-5",3243]
["NANTUCKET","MA","O-6","NANTUCKETMAO-6","NANTUCKETMAO-6",3378]
["NANTUCKET","MA","O-7","NANTUCKETMAO-7","NANTUCKETMAO-7",3444]
["BOSTON","MA","E-1",{"$f":"A3458&B3458&C3458","v":"BOSTONMAE-1"},"BOSTONMAE-1",1575,1575,1575,1575,1575,1755,1917,2112,2346,2409,2019,2346,2415,2517,2562,2307,2394,2508,1890,2235,2436,2556,2649,2676,2703]
["BOSTON","MA","E-2","BOSTONMAE-2","BOSTONMAE-2",1575]
["BOSTON","MA","E-3","BOSTONMAE-3","BOSTONMAE-3",1575]
["BOSTON","MA","E-4","BOSTONMAE-4","BOSTONMAE-4",1575]
["BOSTON","MA","E-5","BOSTONMAE-5","BOSTONMAE-5",1755]
["BOSTON","MA","E-6","BOSTONMAE-6","BOSTONMAE-6",1917]
["BOSTON","MA","E-7","BOSTONMAE-7","BOSTONMAE-7",2112]
["BOSTON","MA","E-8","BOSTONMAE-8","BOSTONMAE-8",2346]
["BOSTON","MA","E-9","BOSTONMAE-9","BOSTONMAE-9",2409]
["BOSTON","MA","W-1","BOSTONMAW-1","BOSTONMAW-1",2019]
["BOSTON","MA","W-2","BOSTONMAW-2","BOSTONMAW-2",2346]
["BOSTON","MA","W-3","BOSTONMAW-3","BOSTONMAW-3",2415]
["BOSTON","MA","W-4","BOSTONMAW-4","BOSTONMAW-4",2517]
["BOSTON","MA","W-5","BOSTONMAW-5","BOSTONMAW-5",2562]
["BOSTON","MA","O-1E","BOSTONMAO-1E","BOSTONMAO-1E",2307]
["BOSTON","MA","O-2E","BOSTONMAO-2E","BOSTONMAO-2E",2394]
["BOSTON","MA","O-3E","BOSTONMAO-3E","BOSTONMAO-3E",2508]
["BOSTON","MA","O-1","BOSTONMAO-1","BOSTONMAO-1",1890]
["BOSTON","MA","O-2","BOSTONMAO-2","BOSTONMAO-2",2235]
["BOSTON","MA","O-3","BOSTONMAO-3","BOSTONMAO-3",2436]
["BOSTON","MA","O-4","BOSTONMAO-4","BOSTONMAO-4",2556]
["BOSTON","MA","O-5","BOSTONMAO-5","BOSTONMAO-5",2649]
["BOSTON","MA","O-6","BOSTONMAO-6","BOSTONMAO-6",2676]
["BOSTON","MA","O-7","BOSTONMAO-7","BOSTONMAO-7",2703]
["CAPECOD","MA","E-1","CAPECODMAE-1","CAPECODMAE-1",1167,1167,1167,1167,1167,1320,1422,1479,1620,1728,1443,1617,1737,1905,1938,1551,1704,1896,1395,1524,1773,1932,1953,1986,2025]
["CAPECOD","MA","E-2","CAPECODMAE-2","CAPECODMAE-2",1167]
["CAPECOD","MA","E-3","CAPECODMAE-3","CAPECODMAE-3",1167]
["CAPECOD","MA","E-4","CAPECODMAE-4","CAPECODMAE-4",1167]
["CAPECOD","MA","E-5","CAPECODMAE-5","CAPECODMAE-5",1320]
["CAPECOD","MA","E-6","CAPECODMAE-6","CAPECODMAE-6",1422]
["CAPECOD","MA","E-7","CAPECODMAE-7","CAPECODMAE-7",1479]
["CAPECOD","MA","E-8","CAPECODMAE-8","CAPECODMAE-8",1620]
["CAPECOD","MA","E-9","CAPECODMAE-9","CAPECODMAE-9",1728]
["CAPECOD","MA","W-1","CAPECODMAW-1","CAPECODMAW-1",1443]
["CAPECOD","MA","W-2","CAPECODMAW-2","CAPECODMAW-2",1617]
["CAPECOD","MA","W-3","CAPECODMAW-3","CAPECODMAW-3",1737]
["CAPECOD","MA","W-4","CAPECODMAW-4","CAPECODMAW-4",1905]
["CAPECOD","MA","W-5","CAPECODMAW-5","CAPECODMAW-5",1938]
["CAPECOD","MA","O-1E","CAPECODMAO-1E","CAPECODMAO-1E",1551]
["CAPECOD","MA","O-2E","CAPECODMAO-2E","CAPECODMAO-2E",1704]
["CAPECOD","MA","O-3E","CAPECODMAO-3E","CAPECODMAO-3E",1896]
["CAPECOD","MA","O-1","CAPECODMAO-1","CAPECODMAO-1",1395]
["CAPECOD","MA","O-2","CAPECODMAO-2","CAPECODMAO-2",1524]
["CAPECOD","MA","O-3","CAPECODMAO-3","CAPECODMAO-3",1773]
["CAPECOD","MA","O-4","CAPECODMAO-4","CAPECODMAO-4",1932]
["CAPECOD","MA","O-5","CAPECODMAO-5","CAPECODMAO-5",1953]
["CAPECOD","MA","O-6","CAPECODMAO-6","CAPECODMAO-6",1986]
["CAPECOD","MA","O-7","CAPECODMAO-7","CAPECODMAO-7",2025]
["WORCESTER","MA","E-1","WORCESTERMAE-1","WORCESTERMAE-1",1068,1068,1068,1068,1068,1218,1311,1431,1593,1653,1374,1590,1659,1779,1896,1554,1641,1749,1293,1509,1680,1887,2124,2145,2166]
["WORCESTER","MA","E-2","WORCESTERMAE-2","WORCESTERMAE-2",1068]
["WORCESTER","MA","E-3","WORCESTERMAE-3","WORCESTERMAE-3",1068]
["WORCESTER","MA","E-4","WORCESTERMAE-4","WORCESTERMAE-4",1068]
["WORCESTER","MA","E-5","WORCESTERMAE-5","WORCESTERMAE-5",1218]
["WORCESTER","MA","E-6","WORCESTERMAE-6","WORCESTERMAE-6",1311]
["WORCESTER","MA","E-7","WORCESTERMAE-7","WORCESTERMAE-7",1431]
["WORCESTER","MA","E-8","WORCESTERMAE-8","WORCESTERMAE-8",1593]
["WORCESTER","MA","E-9","WORCESTERMAE-9","WORCESTERMAE-9",1653]
["WORCESTER","MA","W-1","WORCESTERMAW-1","WORCESTERMAW-1",1374]
["WORCESTER","MA","W-2","WORCESTERMAW-2","WORCESTERMAW-2",1590]
["WORCESTER","MA","W-3","WORCESTERMAW-3","WORCESTERMAW-3",1659]
["WORCESTER","MA","W-4","WORCESTERMAW-4","WORCESTERMAW-4",1779]
["WORCESTER","MA","W-5","WORCESTERMAW-5","WORCESTERMAW-5",1896]
["WORCESTER","MA","O-1E","WORCESTERMAO-1E","WORCESTERMAO-1E",1554]
["WORCESTER","MA","O-2E","WORCESTERMAO-2E","WORCESTERMAO-2E",1641]
["WORCESTER","MA","O-3E",{"$f":"A3522&B3522&C3522","v":"WORCESTERMAO-3E"},"WORCESTERMAO-3E",1749]
["WORCESTER","MA","O-1","WORCESTERMAO-1","WORCESTERMAO-1",1293]
["WORCESTER","MA","O-2","WORCESTERMAO-2","WORCESTERMAO-2",1509]
["WORCESTER","MA","O-3","WORCESTERMAO-3","WORCESTERMAO-3",1680]
["WORCESTER","MA","O-4","WORCESTERMAO-4","WORCESTERMAO-4",1887]
["WORCESTER","MA","O-5","WORCESTERMAO-5","WORCESTERMAO-5",2124]
["WORCESTER","MA","O-6","WORCESTERMAO-6","WORCESTERMAO-6",2145]
["WORCESTER","MA","O-7","WORCESTERMAO-7","WORCESTERMAO-7",2166]
["FORT DEVENS/AYER","MA","E-1","FORT DEVENS/AYERMAE-1","FORT DEVENS/AYERMAE-1",1080,1080,1080,1080,1080,1212,1392,1467,1641,1722,1392,1638,1731,1878,1980,1587,1704,1854,1296,1536,1758,1965,2031,2133,2175]
["FORT DEVENS/AYER","MA","E-2","FORT DEVENS/AYERMAE-2","FORT DEVENS/AYERMAE-2",1080]
["FORT DEVENS/AYER","MA","E-3","FORT DEVENS/AYERMAE-3","FORT DEVENS/AYERMAE-3",1080]
["FORT DEVENS/AYER","MA","E-4","FORT DEVENS/AYERMAE-4","FORT DEVENS/AYERMAE-4",1080]
["FORT DEVENS/AYER","MA","E-5","FORT DEVENS/AYERMAE-5","FORT DEVENS/AYERMAE-5",1212]
["FORT DEVENS/AYER","MA","E-6","FORT DEVENS/AYERMAE-6","FORT DEVENS/AYERMAE-6",1392]
["FORT DEVENS/AYER","MA","E-7","FORT DEVENS/AYERMAE-7","FORT DEVENS/AYERMAE-7",1467]
["FORT DEVENS/AYER","MA","E-8","FORT DEVENS/AYERMAE-8","FORT DEVENS/AYERMAE-8",1641]
["FORT DEVENS/AYER","MA","E-9","FORT DEVENS/AYERMAE-9","FORT DEVENS/AYERMAE-9",1722]
["FORT DEVENS/AYER","MA","W-1","FORT DEVENS/AYERMAW-1","FORT DEVENS/AYERMAW-1",1392]
["FORT DEVENS/AYER","MA","W-2","FORT DEVENS/AYERMAW-2","FORT DEVENS/AYERMAW-2",1638]
["FORT DEVENS/AYER","MA","W-3","FORT DEVENS/AYERMAW-3","FORT DEVENS/AYERMAW-3",1731]
["FORT DEVENS/AYER","MA","W-4","FORT DEVENS/AYERMAW-4","FORT DEVENS/AYERMAW-4",1878]
["FORT DEVENS/AYER","MA","W-5","FORT DEVENS/AYERMAW-5","FORT DEVENS/AYERMAW-5",1980]
["FORT DEVENS/AYER","MA","O-1E","FORT DEVENS/AYERMAO-1E","FORT DEVENS/AYERMAO-1E",1587]
["FORT DEVENS/AYER","MA","O-2E","FORT DEVENS/AYERMAO-2E","FORT DEVENS/AYERMAO-2E",1704]
["FORT DEVENS/AYER","MA","O-3E","FORT DEVENS/AYERMAO-3E","FORT DEVENS/AYERMAO-3E",1854]
["FORT DEVENS/AYER","MA","O-1","FORT DEVENS/AYERMAO-1","FORT DEVENS/AYERMAO-1",1296]
["FORT DEVENS/AYER","MA","O-2","FORT DEVENS/AYERMAO-2","FORT DEVENS/AYERMAO-2",1536]
["FORT DEVENS/AYER","MA","O-3","FORT DEVENS/AYERMAO-3","FORT DEVENS/AYERMAO-3",1758]
["FORT DEVENS/AYER","MA","O-4","FORT DEVENS/AYERMAO-4","FORT DEVENS/AYERMAO-4",1965]
["FORT DEVENS/AYER","MA","O-5","FORT DEVENS/AYERMAO-5","FORT DEVENS/AYERMAO-5",2031]
["FORT DEVENS/AYER","MA","O-6","FORT DEVENS/AYERMAO-6","FORT DEVENS/AYERMAO-6",2133]
["FORT DEVENS/AYER","MA","O-7","FORT DEVENS/AYERMAO-7","FORT DEVENS/AYERMAO-7",2175]
["PLYMOUTH","MA","E-1","PLYMOUTHMAE-1","PLYMOUTHMAE-1",1128,1128,1128,1128,1128,1266,1599,1602,1740,1890,1599,1734,1905,2133,2139,1641,1857,2130,1335,1590,1953,2139,2142,2151,2193]
["PLYMOUTH","MA","E-2","PLYMOUTHMAE-2","PLYMOUTHMAE-2",1128]
["PLYMOUTH","MA","E-3","PLYMOUTHMAE-3","PLYMOUTHMAE-3",1128]
["PLYMOUTH","MA","E-4","PLYMOUTHMAE-4","PLYMOUTHMAE-4",1128]
["PLYMOUTH","MA","E-5","PLYMOUTHMAE-5","PLYMOUTHMAE-5",1266]
["PLYMOUTH","MA","E-6","PLYMOUTHMAE-6","PLYMOUTHMAE-6",1599]
["PLYMOUTH","MA","E-7","PLYMOUTHMAE-7","PLYMOUTHMAE-7",1602]
["PLYMOUTH","MA","E-8","PLYMOUTHMAE-8","PLYMOUTHMAE-8",1740]
["PLYMOUTH","MA","E-9","PLYMOUTHMAE-9","PLYMOUTHMAE-9",1890]
["PLYMOUTH","MA","W-1","PLYMOUTHMAW-1","PLYMOUTHMAW-1",1599]
["PLYMOUTH","MA","W-2","PLYMOUTHMAW-2","PLYMOUTHMAW-2",1734]
["PLYMOUTH","MA","W-3","PLYMOUTHMAW-3","PLYMOUTHMAW-3",1905]
["PLYMOUTH","MA","W-4","PLYMOUTHMAW-4","PLYMOUTHMAW-4",2133]
["PLYMOUTH","MA","W-5","PLYMOUTHMAW-5","PLYMOUTHMAW-5",2139]
["PLYMOUTH","MA","O-1E","PLYMOUTHMAO-1E","PLYMOUTHMAO-1E",1641]
["PLYMOUTH","MA","O-2E","PLYMOUTHMAO-2E","PLYMOUTHMAO-2E",1857]
["PLYMOUTH","MA","O-3E","PLYMOUTHMAO-3E","PLYMOUTHMAO-3E",2130]
["PLYMOUTH","MA","O-1","PLYMOUTHMAO-1","PLYMOUTHMAO-1",1335]
["PLYMOUTH","MA","O-2","PLYMOUTHMAO-2","PLYMOUTHMAO-2",1590]
["PLYMOUTH","MA","O-3","PLYMOUTHMAO-3","PLYMOUTHMAO-3",1953]
["PLYMOUTH","MA","O-4","PLYMOUTHMAO-4","PLYMOUTHMAO-4",2139]
["PLYMOUTH","MA","O-5","PLYMOUTHMAO-5","PLYMOUTHMAO-5",2142]
["PLYMOUTH","MA","O-6","PLYMOUTHMAO-6","PLYMOUTHMAO-6",2151]
["PLYMOUTH","MA","O-7","PLYMOUTHMAO-7","PLYMOUTHMAO-7",2193]
["ESSEX COUNTY","MA","E-1","ESSEX COUNTYMAE-1","ESSEX COUNTYMAE-1",1311,1311,1311,1311,1311,1473,1641,1758,1974,2058,1680,1971,2064,2211,2298,1920,2037,2190,1575,1860,2091,2286,2340,2427,2478]
["ESSEX COUNTY","MA","E-2","ESSEX COUNTYMAE-2","ESSEX COUNTYMAE-2",1311]
["ESSEX COUNTY","MA","E-3","ESSEX COUNTYMAE-3","ESSEX COUNTYMAE-3",1311]
["ESSEX COUNTY","MA","E-4","ESSEX COUNTYMAE-4","ESSEX COUNTYMAE-4",1311]
["ESSEX COUNTY","MA","E-5","ESSEX COUNTYMAE-5","ESSEX COUNTYMAE-5",1473]
["ESSEX COUNTY","MA","E-6","ESSEX COUNTYMAE-6","ESSEX COUNTYMAE-6",1641]
["ESSEX COUNTY","MA","E-7","ESSEX COUNTYMAE-7","ESSEX COUNTYMAE-7",1758]
["ESSEX COUNTY","MA","E-8","ESSEX COUNTYMAE-8","ESSEX COUNTYMAE-8",1974]
["ESSEX COUNTY","MA","E-9",{"$f":"A3586&B3586&C3586","v":"ESSEX COUNTYMAE-9"},"ESSEX COUNTYMAE-9",2058]
["ESSEX COUNTY","MA","W-1","ESSEX COUNTYMAW-1","ESSEX COUNTYMAW-1",1680]
["ESSEX COUNTY","MA","W-2","ESSEX COUNTYMAW-2","ESSEX COUNTYMAW-2",1971]
["ESSEX COUNTY","MA","W-3","ESSEX COUNTYMAW-3","ESSEX COUNTYMAW-3",2064]
["ESSEX COUNTY","MA","W-4","ESSEX COUNTYMAW-4","ESSEX COUNTYMAW-4",2211]
["ESSEX COUNTY","MA","W-5","ESSEX COUNTYMAW-5","ESSEX COUNTYMAW-5",2298]
["ESSEX COUNTY","MA","O-1E","ESSEX COUNTYMAO-1E","ESSEX COUNTYMAO-1E",1920]
["ESSEX COUNTY","MA","O-2E","ESSEX COUNTYMAO-2E","ESSEX COUNTYMAO-2E",2037]
["ESSEX COUNTY","MA","O-3E","ESSEX COUNTYMAO-3E","ESSEX COUNTYMAO-3E",2190]
["ESSEX COUNTY","MA","O-1","ESSEX COUNTYMAO-1","ESSEX COUNTYMAO-1",1575]
["ESSEX COUNTY","MA","O-2","ESSEX COUNTYMAO-2","ESSEX COUNTYMAO-2",1860]
["ESSEX COUNTY","MA","O-3","ESSEX COUNTYMAO-3","ESSEX COUNTYMAO-3",2091]
["ESSEX COUNTY","MA","O-4","ESSEX COUNTYMAO-4","ESSEX COUNTYMAO-4",2286]
["ESSEX COUNTY","MA","O-5","ESSEX COUNTYMAO-5","ESSEX COUNTYMAO-5",2340]
["ESSEX COUNTY","MA","O-6","ESSEX COUNTYMAO-6","ESSEX COUNTYMAO-6",2427]
["ESSEX COUNTY","MA","O-7","ESSEX COUNTYMAO-7","ESSEX COUNTYMAO-7",2478]
["HAMPDEN COUNTY","MA","E-1","HAMPDEN COUNTYMAE-1","HAMPDEN COUNTYMAE-1",1032,1032,1032,1032,1032,1170,1254,1353,1494,1557,1305,1494,1563,1686,1803,1455,1542,1656,1239,1419,1584,1788,1863,1983,2025]
["HAMPDEN COUNTY","MA","E-2","HAMPDEN COUNTYMAE-2","HAMPDEN COUNTYMAE-2",1032]
["HAMPDEN COUNTY","MA","E-3","HAMPDEN COUNTYMAE-3","HAMPDEN COUNTYMAE-3",1032]
["HAMPDEN COUNTY","MA","E-4","HAMPDEN COUNTYMAE-4","HAMPDEN COUNTYMAE-4",1032]
["HAMPDEN COUNTY","MA","E-5","HAMPDEN COUNTYMAE-5","HAMPDEN COUNTYMAE-5",1170]
["HAMPDEN COUNTY","MA","E-6","HAMPDEN COUNTYMAE-6","HAMPDEN COUNTYMAE-6",1254]
["HAMPDEN COUNTY","MA","E-7","HAMPDEN COUNTYMAE-7","HAMPDEN COUNTYMAE-7",1353]
["HAMPDEN COUNTY","MA","E-8","HAMPDEN COUNTYMAE-8","HAMPDEN COUNTYMAE-8",1494]
["HAMPDEN COUNTY","MA","E-9","HAMPDEN COUNTYMAE-9","HAMPDEN COUNTYMAE-9",1557]
["HAMPDEN COUNTY","MA","W-1","HAMPDEN COUNTYMAW-1","HAMPDEN COUNTYMAW-1",1305]
["HAMPDEN COUNTY","MA","W-2","HAMPDEN COUNTYMAW-2","HAMPDEN COUNTYMAW-2",1494]
["HAMPDEN COUNTY","MA","W-3","HAMPDEN COUNTYMAW-3","HAMPDEN COUNTYMAW-3",1563]
["HAMPDEN COUNTY","MA","W-4","HAMPDEN COUNTYMAW-4","HAMPDEN COUNTYMAW-4",1686]
["HAMPDEN COUNTY","MA","W-5","HAMPDEN COUNTYMAW-5","HAMPDEN COUNTYMAW-5",1803]
["HAMPDEN COUNTY","MA","O-1E","HAMPDEN COUNTYMAO-1E","HAMPDEN COUNTYMAO-1E",1455]
["HAMPDEN COUNTY","MA","O-2E","HAMPDEN COUNTYMAO-2E","HAMPDEN COUNTYMAO-2E",1542]
["HAMPDEN COUNTY","MA","O-3E","HAMPDEN COUNTYMAO-3E","HAMPDEN COUNTYMAO-3E",1656]
["HAMPDEN COUNTY","MA","O-1","HAMPDEN COUNTYMAO-1","HAMPDEN COUNTYMAO-1",1239]
["HAMPDEN COUNTY","MA","O-2","HAMPDEN COUNTYMAO-2","HAMPDEN COUNTYMAO-2",1419]
["HAMPDEN COUNTY","MA","O-3","HAMPDEN COUNTYMAO-3","HAMPDEN COUNTYMAO-3",1584]
["HAMPDEN COUNTY","MA","O-4","HAMPDEN COUNTYMAO-4","HAMPDEN COUNTYMAO-4",1788]
["HAMPDEN COUNTY","MA","O-5","HAMPDEN COUNTYMAO-5","HAMPDEN COUNTYMAO-5",1863]
["HAMPDEN COUNTY","MA","O-6","HAMPDEN COUNTYMAO-6","HAMPDEN COUNTYMAO-6",1983]
["HAMPDEN COUNTY","MA","O-7","HAMPDEN COUNTYMAO-7","HAMPDEN COUNTYMAO-7",2025]
["MARTHA'S VINEYARD","MA","E-1","MARTHA'S VINEYARDMAE-1","MARTHA'S VINEYARDMAE-1",1479,1479,1479,1479,1479,1680,1809,1983,2211,2283,1902,2208,2289,2406,2454,2163,2265,2397,1782,2097,2313,2448,2475,2523,2574]
["MARTHA'S VINEYARD","MA","E-2","MARTHA'S VINEYARDMAE-2","MARTHA'S VINEYARDMAE-2",1479]
["MARTHA'S VINEYARD","MA","E-3","MARTHA'S VINEYARDMAE-3","MARTHA'S VINEYARDMAE-3",1479]
["MARTHA'S VINEYARD","MA","E-4","MARTHA'S VINEYARDMAE-4","MARTHA'S VINEYARDMAE-4",1479]
["MARTHA'S VINEYARD","MA","E-5","MARTHA'S VINEYARDMAE-5","MARTHA'S VINEYARDMAE-5",1680]
["MARTHA'S VINEYARD","MA","E-6","MARTHA'S VINEYARDMAE-6","MARTHA'S VINEYARDMAE-6",1809]
["MARTHA'S VINEYARD","MA","E-7","MARTHA'S VINEYARDMAE-7","MARTHA'S VINEYARDMAE-7",1983]
["MARTHA'S VINEYARD","MA","E-8","MARTHA'S VINEYARDMAE-8","MARTHA'S VINEYARDMAE-8",2211]
["MARTHA'S VINEYARD","MA","E-9","MARTHA'S VINEYARDMAE-9","MARTHA'S VINEYARDMAE-9",2283]
["MARTHA'S VINEYARD","MA","W-1","MARTHA'S VINEYARDMAW-1","MARTHA'S VINEYARDMAW-1",1902]
["MARTHA'S VINEYARD","MA","W-2","MARTHA'S VINEYARDMAW-2","MARTHA'S VINEYARDMAW-2",2208]
["MARTHA'S VINEYARD","MA","W-3","MARTHA'S VINEYARDMAW-3","MARTHA'S VINEYARDMAW-3",2289]
["MARTHA'S VINEYARD","MA","W-4","MARTHA'S VINEYARDMAW-4","MARTHA'S VINEYARDMAW-4",2406]
["MARTHA'S VINEYARD","MA","W-5","MARTHA'S VINEYARDMAW-5","MARTHA'S VINEYARDMAW-5",2454]
["MARTHA'S VINEYARD","MA","O-1E","MARTHA'S VINEYARDMAO-1E","MARTHA'S VINEYARDMAO-1E",2163]
["MARTHA'S VINEYARD","MA","O-2E","MARTHA'S VINEYARDMAO-2E","MARTHA'S VINEYARDMAO-2E",2265]
["MARTHA'S VINEYARD","MA","O-3E","MARTHA'S VINEYARDMAO-3E","MARTHA'S VINEYARDMAO-3E",2397]
["MARTHA'S VINEYARD","MA","O-1","MARTHA'S VINEYARDMAO-1","MARTHA'S VINEYARDMAO-1",1782]
["MARTHA'S VINEYARD","MA","O-2","MARTHA'S VINEYARDMAO-2","MARTHA'S VINEYARDMAO-2",2097]
["MARTHA'S VINEYARD","MA","O-3","MARTHA'S VINEYARDMAO-3","MARTHA'S VINEYARDMAO-3",2313]
["MARTHA'S VINEYARD","MA","O-4","MARTHA'S VINEYARDMAO-4","MARTHA'S VINEYARDMAO-4",2448]
["MARTHA'S VINEYARD","MA","O-5","MARTHA'S VINEYARDMAO-5","MARTHA'S VINEYARDMAO-5",2475]
["MARTHA'S VINEYARD","MA","O-6","MARTHA'S VINEYARDMAO-6","MARTHA'S VINEYARDMAO-6",2523]
["MARTHA'S VINEYARD","MA","O-7","MARTHA'S VINEYARDMAO-7","MARTHA'S VINEYARDMAO-7",2574]
["HANSCOMB FIELD","MA","E-1",{"$f":"A3650&B3650&C3650","v":"HANSCOMB FIELDMAE-1"},"HANSCOMB FIELDMAE-1",1461,1461,1461,1461,1461,1647,1767,1965,2226,2277,1857,2226,2280,2388,2529,2196,2265,2355,1704,2112,2298,2508,2598,2742,2796]
["HANSCOMB FIELD","MA","E-2","HANSCOMB FIELDMAE-2","HANSCOMB FIELDMAE-2",1461]
["HANSCOMB FIELD","MA","E-3","HANSCOMB FIELDMAE-3","HANSCOMB FIELDMAE-3",1461]
["HANSCOMB FIELD","MA","E-4","HANSCOMB FIELDMAE-4","HANSCOMB FIELDMAE-4",1461]
["HANSCOMB FIELD","MA","E-5","HANSCOMB FIELDMAE-5","HANSCOMB FIELDMAE-5",1647]
["HANSCOMB FIELD","MA","E-6","HANSCOMB FIELDMAE-6","HANSCOMB FIELDMAE-6",1767]
["HANSCOMB FIELD","MA","E-7","HANSCOMB FIELDMAE-7","HANSCOMB FIELDMAE-7",1965]
["HANSCOMB FIELD","MA","E-8","HANSCOMB FIELDMAE-8","HANSCOMB FIELDMAE-8",2226]
["HANSCOMB FIELD","MA","E-9","HANSCOMB FIELDMAE-9","HANSCOMB FIELDMAE-9",2277]
["HANSCOMB FIELD","MA","W-1","HANSCOMB FIELDMAW-1","HANSCOMB FIELDMAW-1",1857]
["HANSCOMB FIELD","MA","W-2","HANSCOMB FIELDMAW-2","HANSCOMB FIELDMAW-2",2226]
["HANSCOMB FIELD","MA","W-3","HANSCOMB FIELDMAW-3","HANSCOMB FIELDMAW-3",2280]
["HANSCOMB FIELD","MA","W-4","HANSCOMB FIELDMAW-4","HANSCOMB FIELDMAW-4",2388]
["HANSCOMB FIELD","MA","W-5","HANSCOMB FIELDMAW-5","HANSCOMB FIELDMAW-5",2529]
["HANSCOMB FIELD","MA","O-1E","HANSCOMB FIELDMAO-1E","HANSCOMB FIELDMAO-1E",2196]
["HANSCOMB FIELD","MA","O-2E","HANSCOMB FIELDMAO-2E","HANSCOMB FIELDMAO-2E",2265]
["HANSCOMB FIELD","MA","O-3E","HANSCOMB FIELDMAO-3E","HANSCOMB FIELDMAO-3E",2355]
["HANSCOMB FIELD","MA","O-1","HANSCOMB FIELDMAO-1","HANSCOMB FIELDMAO-1",1704]
["HANSCOMB FIELD","MA","O-2","HANSCOMB FIELDMAO-2","HANSCOMB FIELDMAO-2",2112]
["HANSCOMB FIELD","MA","O-3","HANSCOMB FIELDMAO-3","HANSCOMB FIELDMAO-3",2298]
["HANSCOMB FIELD","MA","O-4","HANSCOMB FIELDMAO-4","HANSCOMB FIELDMAO-4",2508]
["HANSCOMB FIELD","MA","O-5","HANSCOMB FIELDMAO-5","HANSCOMB FIELDMAO-5",2598]
["HANSCOMB FIELD","MA","O-6","HANSCOMB FIELDMAO-6","HANSCOMB FIELDMAO-6",2742]
["HANSCOMB FIELD","MA","O-7","HANSCOMB FIELDMAO-7","HANSCOMB FIELDMAO-7",2796]
["ABERDEEN PROVING GROUNDS","MD","E-1","ABERDEEN PROVING GROUNDSMDE-1","ABERDEEN PROVING GROUNDSMDE-1",993,993,993,993,993,1140,1299,1338,1485,1581,1299,1482,1590,1746,1797,1422,1560,1731,1212,1386,1620,1791,1824,1878,1917]
["ABERDEEN PROVING GROUNDS","MD","E-2","ABERDEEN PROVING GROUNDSMDE-2","ABERDEEN PROVING GROUNDSMDE-2",993]
["ABERDEEN PROVING GROUNDS","MD","E-3","ABERDEEN PROVING GROUNDSMDE-3","ABERDEEN PROVING GROUNDSMDE-3",993]
["ABERDEEN PROVING GROUNDS","MD","E-4","ABERDEEN PROVING GROUNDSMDE-4","ABERDEEN PROVING GROUNDSMDE-4",993]
["ABERDEEN PROVING GROUNDS","MD","E-5","ABERDEEN PROVING GROUNDSMDE-5","ABERDEEN PROVING GROUNDSMDE-5",1140]
["ABERDEEN PROVING GROUNDS","MD","E-6","ABERDEEN PROVING GROUNDSMDE-6","ABERDEEN PROVING GROUNDSMDE-6",1299]
["ABERDEEN PROVING GROUNDS","MD","E-7","ABERDEEN PROVING GROUNDSMDE-7","ABERDEEN PROVING GROUNDSMDE-7",1338]
["ABERDEEN PROVING GROUNDS","MD","E-8","ABERDEEN PROVING GROUNDSMDE-8","ABERDEEN PROVING GROUNDSMDE-8",1485]
["ABERDEEN PROVING GROUNDS","MD","E-9","ABERDEEN PROVING GROUNDSMDE-9","ABERDEEN PROVING GROUNDSMDE-9",1581]
["ABERDEEN PROVING GROUNDS","MD","W-1","ABERDEEN PROVING GROUNDSMDW-1","ABERDEEN PROVING GROUNDSMDW-1",1299]
["ABERDEEN PROVING GROUNDS","MD","W-2","ABERDEEN PROVING GROUNDSMDW-2","ABERDEEN PROVING GROUNDSMDW-2",1482]
["ABERDEEN PROVING GROUNDS","MD","W-3","ABERDEEN PROVING GROUNDSMDW-3","ABERDEEN PROVING GROUNDSMDW-3",1590]
["ABERDEEN PROVING GROUNDS","MD","W-4","ABERDEEN PROVING GROUNDSMDW-4","ABERDEEN PROVING GROUNDSMDW-4",1746]
["ABERDEEN PROVING GROUNDS","MD","W-5","ABERDEEN PROVING GROUNDSMDW-5","ABERDEEN PROVING GROUNDSMDW-5",1797]
["ABERDEEN PROVING GROUNDS","MD","O-1E","ABERDEEN PROVING GROUNDSMDO-1E","ABERDEEN PROVING GROUNDSMDO-1E",1422]
["ABERDEEN PROVING GROUNDS","MD","O-2E","ABERDEEN PROVING GROUNDSMDO-2E","ABERDEEN PROVING GROUNDSMDO-2E",1560]
["ABERDEEN PROVING GROUNDS","MD","O-3E","ABERDEEN PROVING GROUNDSMDO-3E","ABERDEEN PROVING GROUNDSMDO-3E",1731]
["ABERDEEN PROVING GROUNDS","MD","O-1","ABERDEEN PROVING GROUNDSMDO-1","ABERDEEN PROVING GROUNDSMDO-1",1212]
["ABERDEEN PROVING GROUNDS","MD","O-2","ABERDEEN PROVING GROUNDSMDO-2","ABERDEEN PROVING GROUNDSMDO-2",1386]
["ABERDEEN PROVING GROUNDS","MD","O-3","ABERDEEN PROVING GROUNDSMDO-3","ABERDEEN PROVING GROUNDSMDO-3",1620]
["ABERDEEN PROVING GROUNDS","MD","O-4","ABERDEEN PROVING GROUNDSMDO-4","ABERDEEN PROVING GROUNDSMDO-4",1791]
["ABERDEEN PROVING GROUNDS","MD","O-5","ABERDEEN PROVING GROUNDSMDO-5","ABERDEEN PROVING GROUNDSMDO-5",1824]
["ABERDEEN PROVING GROUNDS","MD","O-6","ABERDEEN PROVING GROUNDSMDO-6","ABERDEEN PROVING GROUNDSMDO-6",1878]
["ABERDEEN PROVING GROUNDS","MD","O-7","ABERDEEN PROVING GROUNDSMDO-7","ABERDEEN PROVING GROUNDSMDO-7",1917]
["ANNAPOLIS","MD","E-1","ANNAPOLISMDE-1","ANNAPOLISMDE-1",1242,1242,1242,1242,1242,1380,1545,1638,1854,1935,1557,1851,1941,2085,2190,1803,1917,2058,1449,1743,1968,2175,2241,2349,2397]
["ANNAPOLIS","MD","E-2","ANNAPOLISMDE-2","ANNAPOLISMDE-2",1242]
["ANNAPOLIS","MD","E-3","ANNAPOLISMDE-3","ANNAPOLISMDE-3",1242]
["ANNAPOLIS","MD","E-4","ANNAPOLISMDE-4","ANNAPOLISMDE-4",1242]
["ANNAPOLIS","MD","E-5","ANNAPOLISMDE-5","ANNAPOLISMDE-5",1380]
["ANNAPOLIS","MD","E-6","ANNAPOLISMDE-6","ANNAPOLISMDE-6",1545]
["ANNAPOLIS","MD","E-7","ANNAPOLISMDE-7","ANNAPOLISMDE-7",1638]
["ANNAPOLIS","MD","E-8","ANNAPOLISMDE-8","ANNAPOLISMDE-8",1854]
["ANNAPOLIS","MD","E-9","ANNAPOLISMDE-9","ANNAPOLISMDE-9",1935]
["ANNAPOLIS","MD","W-1","ANNAPOLISMDW-1","ANNAPOLISMDW-1",1557]
["ANNAPOLIS","MD","W-2","ANNAPOLISMDW-2","ANNAPOLISMDW-2",1851]
["ANNAPOLIS","MD","W-3","ANNAPOLISMDW-3","ANNAPOLISMDW-3",1941]
["ANNAPOLIS","MD","W-4","ANNAPOLISMDW-4","ANNAPOLISMDW-4",2085]
["ANNAPOLIS","MD","W-5","ANNAPOLISMDW-5","ANNAPOLISMDW-5",2190]
["ANNAPOLIS","MD","O-1E","ANNAPOLISMDO-1E","ANNAPOLISMDO-1E",1803]
["ANNAPOLIS","MD","O-2E","ANNAPOLISMDO-2E","ANNAPOLISMDO-2E",1917]
["ANNAPOLIS","MD","O-3E",{"$f":"A3714&B3714&C3714","v":"ANNAPOLISMDO-3E"},"ANNAPOLISMDO-3E",2058]
["ANNAPOLIS","MD","O-1","ANNAPOLISMDO-1","ANNAPOLISMDO-1",1449]
["ANNAPOLIS","MD","O-2","ANNAPOLISMDO-2","ANNAPOLISMDO-2",1743]
["ANNAPOLIS","MD","O-3","ANNAPOLISMDO-3","ANNAPOLISMDO-3",1968]
["ANNAPOLIS","MD","O-4","ANNAPOLISMDO-4","ANNAPOLISMDO-4",2175]
["ANNAPOLIS","MD","O-5","ANNAPOLISMDO-5","ANNAPOLISMDO-5",2241]
["ANNAPOLIS","MD","O-6","ANNAPOLISMDO-6","ANNAPOLISMDO-6",2349]
["ANNAPOLIS","MD","O-7","ANNAPOLISMDO-7","ANNAPOLISMDO-7",2397]
["BALTIMORE","MD","E-1","BALTIMOREMDE-1","BALTIMOREMDE-1",1314,1314,1314,1314,1314,1464,1581,1764,1971,2007,1677,1971,2010,2097,2244,1950,1998,2061,1554,1884,2019,2223,2316,2466,2517]
["BALTIMORE","MD","E-2","BALTIMOREMDE-2","BALTIMOREMDE-2",1314]
["BALTIMORE","MD","E-3","BALTIMOREMDE-3","BALTIMOREMDE-3",1314]
["BALTIMORE","MD","E-4","BALTIMOREMDE-4","BALTIMOREMDE-4",1314]
["BALTIMORE","MD","E-5","BALTIMOREMDE-5","BALTIMOREMDE-5",1464]
["BALTIMORE","MD","E-6","BALTIMOREMDE-6","BALTIMOREMDE-6",1581]
["BALTIMORE","MD","E-7","BALTIMOREMDE-7","BALTIMOREMDE-7",1764]
["BALTIMORE","MD","E-8","BALTIMOREMDE-8","BALTIMOREMDE-8",1971]
["BALTIMORE","MD","E-9","BALTIMOREMDE-9","BALTIMOREMDE-9",2007]
["BALTIMORE","MD","W-1","BALTIMOREMDW-1","BALTIMOREMDW-1",1677]
["BALTIMORE","MD","W-2","BALTIMOREMDW-2","BALTIMOREMDW-2",1971]
["BALTIMORE","MD","W-3","BALTIMOREMDW-3","BALTIMOREMDW-3",2010]
["BALTIMORE","MD","W-4","BALTIMOREMDW-4","BALTIMOREMDW-4",2097]
["BALTIMORE","MD","W-5","BALTIMOREMDW-5","BALTIMOREMDW-5",2244]
["BALTIMORE","MD","O-1E","BALTIMOREMDO-1E","BALTIMOREMDO-1E",1950]
["BALTIMORE","MD","O-2E","BALTIMOREMDO-2E","BALTIMOREMDO-2E",1998]
["BALTIMORE","MD","O-3E","BALTIMOREMDO-3E","BALTIMOREMDO-3E",2061]
["BALTIMORE","MD","O-1","BALTIMOREMDO-1","BALTIMOREMDO-1",1554]
["BALTIMORE","MD","O-2","BALTIMOREMDO-2","BALTIMOREMDO-2",1884]
["BALTIMORE","MD","O-3","BALTIMOREMDO-3","BALTIMOREMDO-3",2019]
["BALTIMORE","MD","O-4","BALTIMOREMDO-4","BALTIMOREMDO-4",2223]
["BALTIMORE","MD","O-5","BALTIMOREMDO-5","BALTIMOREMDO-5",2316]
["BALTIMORE","MD","O-6","BALTIMOREMDO-6","BALTIMOREMDO-6",2466]
["BALTIMORE","MD","O-7","BALTIMOREMDO-7","BALTIMOREMDO-7",2517]
["FORT DETRICK","MD","E-1","FORT DETRICKMDE-1","FORT DETRICKMDE-1",1065,1065,1065,1065,1065,1230,1344,1431,1581,1662,1377,1581,1671,1821,1941,1530,1644,1791,1311,1494,1698,1923,2016,2121,2163]
["FORT DETRICK","MD","E-2","FORT DETRICKMDE-2","FORT DETRICKMDE-2",1065]
["FORT DETRICK","MD","E-3","FORT DETRICKMDE-3","FORT DETRICKMDE-3",1065]
["FORT DETRICK","MD","E-4","FORT DETRICKMDE-4","FORT DETRICKMDE-4",1065]
["FORT DETRICK","MD","E-5","FORT DETRICKMDE-5","FORT DETRICKMDE-5",1230]
["FORT DETRICK","MD","E-6","FORT DETRICKMDE-6","FORT DETRICKMDE-6",1344]
["FORT DETRICK","MD","E-7","FORT DETRICKMDE-7","FORT DETRICKMDE-7",1431]
["FORT DETRICK","MD","E-8","FORT DETRICKMDE-8","FORT DETRICKMDE-8",1581]
["FORT DETRICK","MD","E-9","FORT DETRICKMDE-9","FORT DETRICKMDE-9",1662]
["FORT DETRICK","MD","W-1","FORT DETRICKMDW-1","FORT DETRICKMDW-1",1377]
["FORT DETRICK","MD","W-2","FORT DETRICKMDW-2","FORT DETRICKMDW-2",1581]
["FORT DETRICK","MD","W-3","FORT DETRICKMDW-3","FORT DETRICKMDW-3",1671]
["FORT DETRICK","MD","W-4","FORT DETRICKMDW-4","FORT DETRICKMDW-4",1821]
["FORT DETRICK","MD","W-5","FORT DETRICKMDW-5","FORT DETRICKMDW-5",1941]
["FORT DETRICK","MD","O-1E","FORT DETRICKMDO-1E","FORT DETRICKMDO-1E",1530]
["FORT DETRICK","MD","O-2E","FORT DETRICKMDO-2E","FORT DETRICKMDO-2E",1644]
["FORT DETRICK","MD","O-3E","FORT DETRICKMDO-3E","FORT DETRICKMDO-3E",1791]
["FORT DETRICK","MD","O-1","FORT DETRICKMDO-1","FORT DETRICKMDO-1",1311]
["FORT DETRICK","MD","O-2","FORT DETRICKMDO-2","FORT DETRICKMDO-2",1494]
["FORT DETRICK","MD","O-3","FORT DETRICKMDO-3","FORT DETRICKMDO-3",1698]
["FORT DETRICK","MD","O-4","FORT DETRICKMDO-4","FORT DETRICKMDO-4",1923]
["FORT DETRICK","MD","O-5","FORT DETRICKMDO-5","FORT DETRICKMDO-5",2016]
["FORT DETRICK","MD","O-6","FORT DETRICKMDO-6","FORT DETRICKMDO-6",2121]
["FORT DETRICK","MD","O-7","FORT DETRICKMDO-7","FORT DETRICKMDO-7",2163]
["FORT G. G. MEADE","MD","E-1","FORT G. G. MEADEMDE-1","FORT G. G. MEADEMDE-1",1197,1197,1197,1197,1197,1377,1575,1644,1890,1971,1575,1887,1977,2121,2217,1836,1953,2100,1398,1755,2004,2202,2262,2358,2406]
["FORT G. G. MEADE","MD","E-2","FORT G. G. MEADEMDE-2","FORT G. G. MEADEMDE-2",1197]
["FORT G. G. MEADE","MD","E-3","FORT G. G. MEADEMDE-3","FORT G. G. MEADEMDE-3",1197]
["FORT G. G. MEADE","MD","E-4","FORT G. G. MEADEMDE-4","FORT G. G. MEADEMDE-4",1197]
["FORT G. G. MEADE","MD","E-5","FORT G. G. MEADEMDE-5","FORT G. G. MEADEMDE-5",1377]
["FORT G. G. MEADE","MD","E-6","FORT G. G. MEADEMDE-6","FORT G. G. MEADEMDE-6",1575]
["FORT G. G. MEADE","MD","E-7","FORT G. G. MEADEMDE-7","FORT G. G. MEADEMDE-7",1644]
["FORT G. G. MEADE","MD","E-8","FORT G. G. MEADEMDE-8","FORT G. G. MEADEMDE-8",1890]
["FORT G. G. MEADE","MD","E-9",{"$f":"A3778&B3778&C3778","v":"FORT G. G. MEADEMDE-9"},"FORT G. G. MEADEMDE-9",1971]
["FORT G. G. MEADE","MD","W-1","FORT G. G. MEADEMDW-1","FORT G. G. MEADEMDW-1",1575]
["FORT G. G. MEADE","MD","W-2","FORT G. G. MEADEMDW-2","FORT G. G. MEADEMDW-2",1887]
["FORT G. G. MEADE","MD","W-3","FORT G. G. MEADEMDW-3","FORT G. G. MEADEMDW-3",1977]
["FORT G. G. MEADE","MD","W-4","FORT G. G. MEADEMDW-4","FORT G. G. MEADEMDW-4",2121]
["FORT G. G. MEADE","MD","W-5","FORT G. G. MEADEMDW-5","FORT G. G. MEADEMDW-5",2217]
["FORT G. G. MEADE","MD","O-1E","FORT G. G. MEADEMDO-1E","FORT G. G. MEADEMDO-1E",1836]
["FORT G. G. MEADE","MD","O-2E","FORT G. G. MEADEMDO-2E","FORT G. G. MEADEMDO-2E",1953]
["FORT G. G. MEADE","MD","O-3E","FORT G. G. MEADEMDO-3E","FORT G. G. MEADEMDO-3E",2100]
["FORT G. G. MEADE","MD","O-1","FORT G. G. MEADEMDO-1","FORT G. G. MEADEMDO-1",1398]
["FORT G. G. MEADE","MD","O-2","FORT G. G. MEADEMDO-2","FORT G. G. MEADEMDO-2",1755]
["FORT G. G. MEADE","MD","O-3","FORT G. G. MEADEMDO-3","FORT G. G. MEADEMDO-3",2004]
["FORT G. G. MEADE","MD","O-4","FORT G. G. MEADEMDO-4","FORT G. G. MEADEMDO-4",2202]
["FORT G. G. MEADE","MD","O-5","FORT G. G. MEADEMDO-5","FORT G. G. MEADEMDO-5",2262]
["FORT G. G. MEADE","MD","O-6","FORT G. G. MEADEMDO-6","FORT G. G. MEADEMDO-6",2358]
["FORT G. G. MEADE","MD","O-7","FORT G. G. MEADEMDO-7","FORT G. G. MEADEMDO-7",2406]
["INDIAN HEAD NAVORDSTA","MD","E-1","INDIAN HEAD NAVORDSTAMDE-1","INDIAN HEAD NAVORDSTAMDE-1",1194,1194,1194,1194,1194,1380,1488,1596,1758,1839,1545,1755,1845,1989,2070,1704,1821,1968,1473,1665,1872,2058,2112,2196,2241]
["INDIAN HEAD NAVORDSTA","MD","E-2","INDIAN HEAD NAVORDSTAMDE-2","INDIAN HEAD NAVORDSTAMDE-2",1194]
["INDIAN HEAD NAVORDSTA","MD","E-3","INDIAN HEAD NAVORDSTAMDE-3","INDIAN HEAD NAVORDSTAMDE-3",1194]
["INDIAN HEAD NAVORDSTA","MD","E-4","INDIAN HEAD NAVORDSTAMDE-4","INDIAN HEAD NAVORDSTAMDE-4",1194]
["INDIAN HEAD NAVORDSTA","MD","E-5","INDIAN HEAD NAVORDSTAMDE-5","INDIAN HEAD NAVORDSTAMDE-5",1380]
["INDIAN HEAD NAVORDSTA","MD","E-6","INDIAN HEAD NAVORDSTAMDE-6","INDIAN HEAD NAVORDSTAMDE-6",1488]
["INDIAN HEAD NAVORDSTA","MD","E-7","INDIAN HEAD NAVORDSTAMDE-7","INDIAN HEAD NAVORDSTAMDE-7",1596]
["INDIAN HEAD NAVORDSTA","MD","E-8","INDIAN HEAD NAVORDSTAMDE-8","INDIAN HEAD NAVORDSTAMDE-8",1758]
["INDIAN HEAD NAVORDSTA","MD","E-9","INDIAN HEAD NAVORDSTAMDE-9","INDIAN HEAD NAVORDSTAMDE-9",1839]
["INDIAN HEAD NAVORDSTA","MD","W-1","INDIAN HEAD NAVORDSTAMDW-1","INDIAN HEAD NAVORDSTAMDW-1",1545]
["INDIAN HEAD NAVORDSTA","MD","W-2","INDIAN HEAD NAVORDSTAMDW-2","INDIAN HEAD NAVORDSTAMDW-2",1755]
["INDIAN HEAD NAVORDSTA","MD","W-3","INDIAN HEAD NAVORDSTAMDW-3","INDIAN HEAD NAVORDSTAMDW-3",1845]
["INDIAN HEAD NAVORDSTA","MD","W-4","INDIAN HEAD NAVORDSTAMDW-4","INDIAN HEAD NAVORDSTAMDW-4",1989]
["INDIAN HEAD NAVORDSTA","MD","W-5","INDIAN HEAD NAVORDSTAMDW-5","INDIAN HEAD NAVORDSTAMDW-5",2070]
["INDIAN HEAD NAVORDSTA","MD","O-1E","INDIAN HEAD NAVORDSTAMDO-1E","INDIAN HEAD NAVORDSTAMDO-1E",1704]
["INDIAN HEAD NAVORDSTA","MD","O-2E","INDIAN HEAD NAVORDSTAMDO-2E","INDIAN HEAD NAVORDSTAMDO-2E",1821]
["INDIAN HEAD NAVORDSTA","MD","O-3E","INDIAN HEAD NAVORDSTAMDO-3E","INDIAN HEAD NAVORDSTAMDO-3E",1968]
["INDIAN HEAD NAVORDSTA","MD","O-1","INDIAN HEAD NAVORDSTAMDO-1","INDIAN HEAD NAVORDSTAMDO-1",1473]
["INDIAN HEAD NAVORDSTA","MD","O-2","INDIAN HEAD NAVORDSTAMDO-2","INDIAN HEAD NAVORDSTAMDO-2",1665]
["INDIAN HEAD NAVORDSTA","MD","O-3","INDIAN HEAD NAVORDSTAMDO-3","INDIAN HEAD NAVORDSTAMDO-3",1872]
["INDIAN HEAD NAVORDSTA","MD","O-4","INDIAN HEAD NAVORDSTAMDO-4","INDIAN HEAD NAVORDSTAMDO-4",2058]
["INDIAN HEAD NAVORDSTA","MD","O-5","INDIAN HEAD NAVORDSTAMDO-5","INDIAN HEAD NAVORDSTAMDO-5",2112]
["INDIAN HEAD NAVORDSTA","MD","O-6","INDIAN HEAD NAVORDSTAMDO-6","INDIAN HEAD NAVORDSTAMDO-6",2196]
["INDIAN HEAD NAVORDSTA","MD","O-7","INDIAN HEAD NAVORDSTAMDO-7","INDIAN HEAD NAVORDSTAMDO-7",2241]
["PATUXENT RIVER","MD","E-1","PATUXENT RIVERMDE-1","PATUXENT RIVERMDE-1",1035,1035,1035,1035,1035,1173,1263,1389,1545,1593,1329,1545,1599,1689,1773,1515,1584,1668,1242,1470,1614,1761,1815,1899,1938]
["PATUXENT RIVER","MD","E-2","PATUXENT RIVERMDE-2","PATUXENT RIVERMDE-2",1035]
["PATUXENT RIVER","MD","E-3","PATUXENT RIVERMDE-3","PATUXENT RIVERMDE-3",1035]
["PATUXENT RIVER","MD","E-4","PATUXENT RIVERMDE-4","PATUXENT RIVERMDE-4",1035]
["PATUXENT RIVER","MD","E-5","PATUXENT RIVERMDE-5","PATUXENT RIVERMDE-5",1173]
["PATUXENT RIVER","MD","E-6","PATUXENT RIVERMDE-6","PATUXENT RIVERMDE-6",1263]
["PATUXENT RIVER","MD","E-7","PATUXENT RIVERMDE-7","PATUXENT RIVERMDE-7",1389]
["PATUXENT RIVER","MD","E-8","PATUXENT RIVERMDE-8","PATUXENT RIVERMDE-8",1545]
["PATUXENT RIVER","MD","E-9","PATUXENT RIVERMDE-9","PATUXENT RIVERMDE-9",1593]
["PATUXENT RIVER","MD","W-1","PATUXENT RIVERMDW-1","PATUXENT RIVERMDW-1",1329]
["PATUXENT RIVER","MD","W-2","PATUXENT RIVERMDW-2","PATUXENT RIVERMDW-2",1545]
["PATUXENT RIVER","MD","W-3","PATUXENT RIVERMDW-3","PATUXENT RIVERMDW-3",1599]
["PATUXENT RIVER","MD","W-4","PATUXENT RIVERMDW-4","PATUXENT RIVERMDW-4",1689]
["PATUXENT RIVER","MD","W-5","PATUXENT RIVERMDW-5","PATUXENT RIVERMDW-5",1773]
["PATUXENT RIVER","MD","O-1E","PATUXENT RIVERMDO-1E","PATUXENT RIVERMDO-1E",1515]
["PATUXENT RIVER","MD","O-2E","PATUXENT RIVERMDO-2E","PATUXENT RIVERMDO-2E",1584]
["PATUXENT RIVER","MD","O-3E","PATUXENT RIVERMDO-3E","PATUXENT RIVERMDO-3E",1668]
["PATUXENT RIVER","MD","O-1","PATUXENT RIVERMDO-1","PATUXENT RIVERMDO-1",1242]
["PATUXENT RIVER","MD","O-2","PATUXENT RIVERMDO-2","PATUXENT RIVERMDO-2",1470]
["PATUXENT RIVER","MD","O-3","PATUXENT RIVERMDO-3","PATUXENT RIVERMDO-3",1614]
["PATUXENT RIVER","MD","O-4","PATUXENT RIVERMDO-4","PATUXENT RIVERMDO-4",1761]
["PATUXENT RIVER","MD","O-5","PATUXENT RIVERMDO-5","PATUXENT RIVERMDO-5",1815]
["PATUXENT RIVER","MD","O-6","PATUXENT RIVERMDO-6","PATUXENT RIVERMDO-6",1899]
["PATUXENT RIVER","MD","O-7","PATUXENT RIVERMDO-7","PATUXENT RIVERMDO-7",1938]
["CUMBERLAND","MD","E-1",{"$f":"A3842&B3842&C3842","v":"CUMBERLANDMDE-1"},"CUMBERLANDMDE-1",618,618,618,618,618,687,795,828,936,984,795,933,987,1068,1104,903,972,1062,744,876,1005,1098,1119,1155,1176]
["CUMBERLAND","MD","E-2","CUMBERLANDMDE-2","CUMBERLANDMDE-2",618]
["CUMBERLAND","MD","E-3","CUMBERLANDMDE-3","CUMBERLANDMDE-3",618]
["CUMBERLAND","MD","E-4","CUMBERLANDMDE-4","CUMBERLANDMDE-4",618]
["CUMBERLAND","MD","E-5","CUMBERLANDMDE-5","CUMBERLANDMDE-5",687]
["CUMBERLAND","MD","E-6","CUMBERLANDMDE-6","CUMBERLANDMDE-6",795]
["CUMBERLAND","MD","E-7","CUMBERLANDMDE-7","CUMBERLANDMDE-7",828]
["CUMBERLAND","MD","E-8","CUMBERLANDMDE-8","CUMBERLANDMDE-8",936]
["CUMBERLAND","MD","E-9","CUMBERLANDMDE-9","CUMBERLANDMDE-9",984]
["CUMBERLAND","MD","W-1","CUMBERLANDMDW-1","CUMBERLANDMDW-1",795]
["CUMBERLAND","MD","W-2","CUMBERLANDMDW-2","CUMBERLANDMDW-2",933]
["CUMBERLAND","MD","W-3","CUMBERLANDMDW-3","CUMBERLANDMDW-3",987]
["CUMBERLAND","MD","W-4","CUMBERLANDMDW-4","CUMBERLANDMDW-4",1068]
["CUMBERLAND","MD","W-5","CUMBERLANDMDW-5","CUMBERLANDMDW-5",1104]
["CUMBERLAND","MD","O-1E","CUMBERLANDMDO-1E","CUMBERLANDMDO-1E",903]
["CUMBERLAND","MD","O-2E","CUMBERLANDMDO-2E","CUMBERLANDMDO-2E",972]
["CUMBERLAND","MD","O-3E","CUMBERLANDMDO-3E","CUMBERLANDMDO-3E",1062]
["CUMBERLAND","MD","O-1","CUMBERLANDMDO-1","CUMBERLANDMDO-1",744]
["CUMBERLAND","MD","O-2","CUMBERLANDMDO-2","CUMBERLANDMDO-2",876]
["CUMBERLAND","MD","O-3","CUMBERLANDMDO-3","CUMBERLANDMDO-3",1005]
["CUMBERLAND","MD","O-4","CUMBERLANDMDO-4","CUMBERLANDMDO-4",1098]
["CUMBERLAND","MD","O-5","CUMBERLANDMDO-5","CUMBERLANDMDO-5",1119]
["CUMBERLAND","MD","O-6","CUMBERLANDMDO-6","CUMBERLANDMDO-6",1155]
["CUMBERLAND","MD","O-7","CUMBERLANDMDO-7","CUMBERLANDMDO-7",1176]
["OCEAN CITY","MD","E-1","OCEAN CITYMDE-1","OCEAN CITYMDE-1",1041,1041,1041,1041,1041,1188,1266,1296,1380,1461,1281,1377,1470,1596,1617,1326,1443,1593,1260,1317,1497,1614,1629,1650,1683]
["OCEAN CITY","MD","E-2","OCEAN CITYMDE-2","OCEAN CITYMDE-2",1041]
["OCEAN CITY","MD","E-3","OCEAN CITYMDE-3","OCEAN CITYMDE-3",1041]
["OCEAN CITY","MD","E-4","OCEAN CITYMDE-4","OCEAN CITYMDE-4",1041]
["OCEAN CITY","MD","E-5","OCEAN CITYMDE-5","OCEAN CITYMDE-5",1188]
["OCEAN CITY","MD","E-6","OCEAN CITYMDE-6","OCEAN CITYMDE-6",1266]
["OCEAN CITY","MD","E-7","OCEAN CITYMDE-7","OCEAN CITYMDE-7",1296]
["OCEAN CITY","MD","E-8","OCEAN CITYMDE-8","OCEAN CITYMDE-8",1380]
["OCEAN CITY","MD","E-9","OCEAN CITYMDE-9","OCEAN CITYMDE-9",1461]
["OCEAN CITY","MD","W-1","OCEAN CITYMDW-1","OCEAN CITYMDW-1",1281]
["OCEAN CITY","MD","W-2","OCEAN CITYMDW-2","OCEAN CITYMDW-2",1377]
["OCEAN CITY","MD","W-3","OCEAN CITYMDW-3","OCEAN CITYMDW-3",1470]
["OCEAN CITY","MD","W-4","OCEAN CITYMDW-4","OCEAN CITYMDW-4",1596]
["OCEAN CITY","MD","W-5","OCEAN CITYMDW-5","OCEAN CITYMDW-5",1617]
["OCEAN CITY","MD","O-1E","OCEAN CITYMDO-1E","OCEAN CITYMDO-1E",1326]
["OCEAN CITY","MD","O-2E","OCEAN CITYMDO-2E","OCEAN CITYMDO-2E",1443]
["OCEAN CITY","MD","O-3E","OCEAN CITYMDO-3E","OCEAN CITYMDO-3E",1593]
["OCEAN CITY","MD","O-1","OCEAN CITYMDO-1","OCEAN CITYMDO-1",1260]
["OCEAN CITY","MD","O-2","OCEAN CITYMDO-2","OCEAN CITYMDO-2",1317]
["OCEAN CITY","MD","O-3","OCEAN CITYMDO-3","OCEAN CITYMDO-3",1497]
["OCEAN CITY","MD","O-4","OCEAN CITYMDO-4","OCEAN CITYMDO-4",1614]
["OCEAN CITY","MD","O-5","OCEAN CITYMDO-5","OCEAN CITYMDO-5",1629]
["OCEAN CITY","MD","O-6","OCEAN CITYMDO-6","OCEAN CITYMDO-6",1650]
["OCEAN CITY","MD","O-7","OCEAN CITYMDO-7","OCEAN CITYMDO-7",1683]
["OXFORD","MD","E-1","OXFORDMDE-1","OXFORDMDE-1",1026,1026,1026,1026,1026,1173,1338,1386,1542,1635,1338,1539,1644,1797,1863,1482,1614,1782,1251,1443,1674,1854,1896,1962,2001]
["OXFORD","MD","E-2","OXFORDMDE-2","OXFORDMDE-2",1026]
["OXFORD","MD","E-3","OXFORDMDE-3","OXFORDMDE-3",1026]
["OXFORD","MD","E-4","OXFORDMDE-4","OXFORDMDE-4",1026]
["OXFORD","MD","E-5","OXFORDMDE-5","OXFORDMDE-5",1173]
["OXFORD","MD","E-6","OXFORDMDE-6","OXFORDMDE-6",1338]
["OXFORD","MD","E-7","OXFORDMDE-7","OXFORDMDE-7",1386]
["OXFORD","MD","E-8","OXFORDMDE-8","OXFORDMDE-8",1542]
["OXFORD","MD","E-9","OXFORDMDE-9","OXFORDMDE-9",1635]
["OXFORD","MD","W-1","OXFORDMDW-1","OXFORDMDW-1",1338]
["OXFORD","MD","W-2","OXFORDMDW-2","OXFORDMDW-2",1539]
["OXFORD","MD","W-3","OXFORDMDW-3","OXFORDMDW-3",1644]
["OXFORD","MD","W-4","OXFORDMDW-4","OXFORDMDW-4",1797]
["OXFORD","MD","W-5","OXFORDMDW-5","OXFORDMDW-5",1863]
["OXFORD","MD","O-1E","OXFORDMDO-1E","OXFORDMDO-1E",1482]
["OXFORD","MD","O-2E","OXFORDMDO-2E","OXFORDMDO-2E",1614]
["OXFORD","MD","O-3E",{"$f":"A3906&B3906&C3906","v":"OXFORDMDO-3E"},"OXFORDMDO-3E",1782]
["OXFORD","MD","O-1","OXFORDMDO-1","OXFORDMDO-1",1251]
["OXFORD","MD","O-2","OXFORDMDO-2","OXFORDMDO-2",1443]
["OXFORD","MD","O-3","OXFORDMDO-3","OXFORDMDO-3",1674]
["OXFORD","MD","O-4","OXFORDMDO-4","OXFORDMDO-4",1854]
["OXFORD","MD","O-5","OXFORDMDO-5","OXFORDMDO-5",1896]
["OXFORD","MD","O-6","OXFORDMDO-6","OXFORDMDO-6",1962]
["OXFORD","MD","O-7","OXFORDMDO-7","OXFORDMDO-7",2001]
["BRUNSWICK","ME","E-1","BRUNSWICKMEE-1","BRUNSWICKMEE-1",702,702,702,702,702,789,966,1008,1098,1170,966,1095,1176,1299,1356,1050,1155,1287,822,1011,1200,1350,1386,1443,1473]
["BRUNSWICK","ME","E-2","BRUNSWICKMEE-2","BRUNSWICKMEE-2",702]
["BRUNSWICK","ME","E-3","BRUNSWICKMEE-3","BRUNSWICKMEE-3",702]
["BRUNSWICK","ME","E-4","BRUNSWICKMEE-4","BRUNSWICKMEE-4",702]
["BRUNSWICK","ME","E-5","BRUNSWICKMEE-5","BRUNSWICKMEE-5",789]
["BRUNSWICK","ME","E-6","BRUNSWICKMEE-6","BRUNSWICKMEE-6",966]
["BRUNSWICK","ME","E-7","BRUNSWICKMEE-7","BRUNSWICKMEE-7",1008]
["BRUNSWICK","ME","E-8","BRUNSWICKMEE-8","BRUNSWICKMEE-8",1098]
["BRUNSWICK","ME","E-9","BRUNSWICKMEE-9","BRUNSWICKMEE-9",1170]
["BRUNSWICK","ME","W-1","BRUNSWICKMEW-1","BRUNSWICKMEW-1",966]
["BRUNSWICK","ME","W-2","BRUNSWICKMEW-2","BRUNSWICKMEW-2",1095]
["BRUNSWICK","ME","W-3","BRUNSWICKMEW-3","BRUNSWICKMEW-3",1176]
["BRUNSWICK","ME","W-4","BRUNSWICKMEW-4","BRUNSWICKMEW-4",1299]
["BRUNSWICK","ME","W-5","BRUNSWICKMEW-5","BRUNSWICKMEW-5",1356]
["BRUNSWICK","ME","O-1E","BRUNSWICKMEO-1E","BRUNSWICKMEO-1E",1050]
["BRUNSWICK","ME","O-2E","BRUNSWICKMEO-2E","BRUNSWICKMEO-2E",1155]
["BRUNSWICK","ME","O-3E","BRUNSWICKMEO-3E","BRUNSWICKMEO-3E",1287]
["BRUNSWICK","ME","O-1","BRUNSWICKMEO-1","BRUNSWICKMEO-1",822]
["BRUNSWICK","ME","O-2","BRUNSWICKMEO-2","BRUNSWICKMEO-2",1011]
["BRUNSWICK","ME","O-3","BRUNSWICKMEO-3","BRUNSWICKMEO-3",1200]
["BRUNSWICK","ME","O-4","BRUNSWICKMEO-4","BRUNSWICKMEO-4",1350]
["BRUNSWICK","ME","O-5","BRUNSWICKMEO-5","BRUNSWICKMEO-5",1386]
["BRUNSWICK","ME","O-6","BRUNSWICKMEO-6","BRUNSWICKMEO-6",1443]
["BRUNSWICK","ME","O-7","BRUNSWICKMEO-7","BRUNSWICKMEO-7",1473]
["CARIBOU/LIMESTONE","ME","E-1","CARIBOU/LIMESTONEMEE-1","CARIBOU/LIMESTONEMEE-1",618,618,618,618,618,678,741,795,897,933,759,897,936,999,1038,876,924,990,708,846,948,1032,1056,1095,1119]
["CARIBOU/LIMESTONE","ME","E-2","CARIBOU/LIMESTONEMEE-2","CARIBOU/LIMESTONEMEE-2",618]
["CARIBOU/LIMESTONE","ME","E-3","CARIBOU/LIMESTONEMEE-3","CARIBOU/LIMESTONEMEE-3",618]
["CARIBOU/LIMESTONE","ME","E-4","CARIBOU/LIMESTONEMEE-4","CARIBOU/LIMESTONEMEE-4",618]
["CARIBOU/LIMESTONE","ME","E-5","CARIBOU/LIMESTONEMEE-5","CARIBOU/LIMESTONEMEE-5",678]
["CARIBOU/LIMESTONE","ME","E-6","CARIBOU/LIMESTONEMEE-6","CARIBOU/LIMESTONEMEE-6",741]
["CARIBOU/LIMESTONE","ME","E-7","CARIBOU/LIMESTONEMEE-7","CARIBOU/LIMESTONEMEE-7",795]
["CARIBOU/LIMESTONE","ME","E-8","CARIBOU/LIMESTONEMEE-8","CARIBOU/LIMESTONEMEE-8",897]
["CARIBOU/LIMESTONE","ME","E-9","CARIBOU/LIMESTONEMEE-9","CARIBOU/LIMESTONEMEE-9",933]
["CARIBOU/LIMESTONE","ME","W-1","CARIBOU/LIMESTONEMEW-1","CARIBOU/LIMESTONEMEW-1",759]
["CARIBOU/LIMESTONE","ME","W-2","CARIBOU/LIMESTONEMEW-2","CARIBOU/LIMESTONEMEW-2",897]
["CARIBOU/LIMESTONE","ME","W-3","CARIBOU/LIMESTONEMEW-3","CARIBOU/LIMESTONEMEW-3",936]
["CARIBOU/LIMESTONE","ME","W-4","CARIBOU/LIMESTONEMEW-4","CARIBOU/LIMESTONEMEW-4",999]
["CARIBOU/LIMESTONE","ME","W-5","CARIBOU/LIMESTONEMEW-5","CARIBOU/LIMESTONEMEW-5",1038]
["CARIBOU/LIMESTONE","ME","O-1E","CARIBOU/LIMESTONEMEO-1E","CARIBOU/LIMESTONEMEO-1E",876]
["CARIBOU/LIMESTONE","ME","O-2E","CARIBOU/LIMESTONEMEO-2E","CARIBOU/LIMESTONEMEO-2E",924]
["CARIBOU/LIMESTONE","ME","O-3E","CARIBOU/LIMESTONEMEO-3E","CARIBOU/LIMESTONEMEO-3E",990]
["CARIBOU/LIMESTONE","ME","O-1","CARIBOU/LIMESTONEMEO-1","CARIBOU/LIMESTONEMEO-1",708]
["CARIBOU/LIMESTONE","ME","O-2","CARIBOU/LIMESTONEMEO-2","CARIBOU/LIMESTONEMEO-2",846]
["CARIBOU/LIMESTONE","ME","O-3","CARIBOU/LIMESTONEMEO-3","CARIBOU/LIMESTONEMEO-3",948]
["CARIBOU/LIMESTONE","ME","O-4","CARIBOU/LIMESTONEMEO-4","CARIBOU/LIMESTONEMEO-4",1032]
["CARIBOU/LIMESTONE","ME","O-5","CARIBOU/LIMESTONEMEO-5","CARIBOU/LIMESTONEMEO-5",1056]
["CARIBOU/LIMESTONE","ME","O-6","CARIBOU/LIMESTONEMEO-6","CARIBOU/LIMESTONEMEO-6",1095]
["CARIBOU/LIMESTONE","ME","O-7","CARIBOU/LIMESTONEMEO-7","CARIBOU/LIMESTONEMEO-7",1119]
["KITTERY","ME","E-1","KITTERYMEE-1","KITTERYMEE-1",993,993,993,993,993,1119,1422,1497,1581,1698,1422,1569,1710,1920,2022,1515,1668,1893,1158,1434,1749,2010,2076,2181,2226]
["KITTERY","ME","E-2","KITTERYMEE-2","KITTERYMEE-2",993]
["KITTERY","ME","E-3","KITTERYMEE-3","KITTERYMEE-3",993]
["KITTERY","ME","E-4","KITTERYMEE-4","KITTERYMEE-4",993]
["KITTERY","ME","E-5","KITTERYMEE-5","KITTERYMEE-5",1119]
["KITTERY","ME","E-6","KITTERYMEE-6","KITTERYMEE-6",1422]
["KITTERY","ME","E-7","KITTERYMEE-7","KITTERYMEE-7",1497]
["KITTERY","ME","E-8","KITTERYMEE-8","KITTERYMEE-8",1581]
["KITTERY","ME","E-9",{"$f":"A3970&B3970&C3970","v":"KITTERYMEE-9"},"KITTERYMEE-9",1698]
["KITTERY","ME","W-1","KITTERYMEW-1","KITTERYMEW-1",1422]
["KITTERY","ME","W-2","KITTERYMEW-2","KITTERYMEW-2",1569]
["KITTERY","ME","W-3","KITTERYMEW-3","KITTERYMEW-3",1710]
["KITTERY","ME","W-4","KITTERYMEW-4","KITTERYMEW-4",1920]
["KITTERY","ME","W-5","KITTERYMEW-5","KITTERYMEW-5",2022]
["KITTERY","ME","O-1E","KITTERYMEO-1E","KITTERYMEO-1E",1515]
["KITTERY","ME","O-2E","KITTERYMEO-2E","KITTERYMEO-2E",1668]
["KITTERY","ME","O-3E","KITTERYMEO-3E","KITTERYMEO-3E",1893]
["KITTERY","ME","O-1","KITTERYMEO-1","KITTERYMEO-1",1158]
["KITTERY","ME","O-2","KITTERYMEO-2","KITTERYMEO-2",1434]
["KITTERY","ME","O-3","KITTERYMEO-3","KITTERYMEO-3",1749]
["KITTERY","ME","O-4","KITTERYMEO-4","KITTERYMEO-4",2010]
["KITTERY","ME","O-5","KITTERYMEO-5","KITTERYMEO-5",2076]
["KITTERY","ME","O-6","KITTERYMEO-6","KITTERYMEO-6",2181]
["KITTERY","ME","O-7","KITTERYMEO-7","KITTERYMEO-7",2226]
["PORTLAND","ME","E-1","PORTLANDMEE-1","PORTLANDMEE-1",993,993,993,993,993,1101,1167,1260,1398,1533,1215,1380,1494,1545,1716,1353,1467,1557,1155,1317,1485,1692,1806,1989,2031]
["PORTLAND","ME","E-2","PORTLANDMEE-2","PORTLANDMEE-2",993]
["PORTLAND","ME","E-3","PORTLANDMEE-3","PORTLANDMEE-3",993]
["PORTLAND","ME","E-4","PORTLANDMEE-4","PORTLANDMEE-4",993]
["PORTLAND","ME","E-5","PORTLANDMEE-5","PORTLANDMEE-5",1101]
["PORTLAND","ME","E-6","PORTLANDMEE-6","PORTLANDMEE-6",1167]
["PORTLAND","ME","E-7","PORTLANDMEE-7","PORTLANDMEE-7",1260]
["PORTLAND","ME","E-8","PORTLANDMEE-8","PORTLANDMEE-8",1398]
["PORTLAND","ME","E-9","PORTLANDMEE-9","PORTLANDMEE-9",1533]
["PORTLAND","ME","W-1","PORTLANDMEW-1","PORTLANDMEW-1",1215]
["PORTLAND","ME","W-2","PORTLANDMEW-2","PORTLANDMEW-2",1380]
["PORTLAND","ME","W-3","PORTLANDMEW-3","PORTLANDMEW-3",1494]
["PORTLAND","ME","W-4","PORTLANDMEW-4","PORTLANDMEW-4",1545]
["PORTLAND","ME","W-5","PORTLANDMEW-5","PORTLANDMEW-5",1716]
["PORTLAND","ME","O-1E","PORTLANDMEO-1E","PORTLANDMEO-1E",1353]
["PORTLAND","ME","O-2E","PORTLANDMEO-2E","PORTLANDMEO-2E",1467]
["PORTLAND","ME","O-3E","PORTLANDMEO-3E","PORTLANDMEO-3E",1557]
["PORTLAND","ME","O-1","PORTLANDMEO-1","PORTLANDMEO-1",1155]
["PORTLAND","ME","O-2","PORTLANDMEO-2","PORTLANDMEO-2",1317]
["PORTLAND","ME","O-3","PORTLANDMEO-3","PORTLANDMEO-3",1485]
["PORTLAND","ME","O-4","PORTLANDMEO-4","PORTLANDMEO-4",1692]
["PORTLAND","ME","O-5","PORTLANDMEO-5","PORTLANDMEO-5",1806]
["PORTLAND","ME","O-6","PORTLANDMEO-6","PORTLANDMEO-6",1989]
["PORTLAND","ME","O-7","PORTLANDMEO-7","PORTLANDMEO-7",2031]
["COASTAL MAINE","ME","E-1","COASTAL MAINEMEE-1","COASTAL MAINEMEE-1",822,822,822,822,822,921,1002,1104,1248,1284,1047,1248,1287,1344,1365,1227,1275,1338,966,1182,1296,1362,1377,1398,1428]
["COASTAL MAINE","ME","E-2","COASTAL MAINEMEE-2","COASTAL MAINEMEE-2",822]
["COASTAL MAINE","ME","E-3","COASTAL MAINEMEE-3","COASTAL MAINEMEE-3",822]
["COASTAL MAINE","ME","E-4","COASTAL MAINEMEE-4","COASTAL MAINEMEE-4",822]
["COASTAL MAINE","ME","E-5","COASTAL MAINEMEE-5","COASTAL MAINEMEE-5",921]
["COASTAL MAINE","ME","E-6","COASTAL MAINEMEE-6","COASTAL MAINEMEE-6",1002]
["COASTAL MAINE","ME","E-7","COASTAL MAINEMEE-7","COASTAL MAINEMEE-7",1104]
["COASTAL MAINE","ME","E-8","COASTAL MAINEMEE-8","COASTAL MAINEMEE-8",1248]
["COASTAL MAINE","ME","E-9","COASTAL MAINEMEE-9","COASTAL MAINEMEE-9",1284]
["COASTAL MAINE","ME","W-1","COASTAL MAINEMEW-1","COASTAL MAINEMEW-1",1047]
["COASTAL MAINE","ME","W-2","COASTAL MAINEMEW-2","COASTAL MAINEMEW-2",1248]
["COASTAL MAINE","ME","W-3","COASTAL MAINEMEW-3","COASTAL MAINEMEW-3",1287]
["COASTAL MAINE","ME","W-4","COASTAL MAINEMEW-4","COASTAL MAINEMEW-4",1344]
["COASTAL MAINE","ME","W-5","COASTAL MAINEMEW-5","COASTAL MAINEMEW-5",1365]
["COASTAL MAINE","ME","O-1E","COASTAL MAINEMEO-1E","COASTAL MAINEMEO-1E",1227]
["COASTAL MAINE","ME","O-2E","COASTAL MAINEMEO-2E","COASTAL MAINEMEO-2E",1275]
["COASTAL MAINE","ME","O-3E","COASTAL MAINEMEO-3E","COASTAL MAINEMEO-3E",1338]
["COASTAL MAINE","ME","O-1","COASTAL MAINEMEO-1","COASTAL MAINEMEO-1",966]
["COASTAL MAINE","ME","O-2","COASTAL MAINEMEO-2","COASTAL MAINEMEO-2",1182]
["COASTAL MAINE","ME","O-3","COASTAL MAINEMEO-3","COASTAL MAINEMEO-3",1296]
["COASTAL MAINE","ME","O-4","COASTAL MAINEMEO-4","COASTAL MAINEMEO-4",1362]
["COASTAL MAINE","ME","O-5","COASTAL MAINEMEO-5","COASTAL MAINEMEO-5",1377]
["COASTAL MAINE","ME","O-6","COASTAL MAINEMEO-6","COASTAL MAINEMEO-6",1398]
["COASTAL MAINE","ME","O-7","COASTAL MAINEMEO-7","COASTAL MAINEMEO-7",1428]
["BANGOR","ME","E-1",{"$f":"A4034&B4034&C4034","v":"BANGORMEE-1"},"BANGORMEE-1",792,792,792,792,792,912,1011,1059,1143,1203,1035,1143,1206,1305,1353,1107,1188,1293,1002,1089,1227,1347,1377,1428,1458]
["BANGOR","ME","E-2","BANGORMEE-2","BANGORMEE-2",792]
["BANGOR","ME","E-3","BANGORMEE-3","BANGORMEE-3",792]
["BANGOR","ME","E-4","BANGORMEE-4","BANGORMEE-4",792]
["BANGOR","ME","E-5","BANGORMEE-5","BANGORMEE-5",912]
["BANGOR","ME","E-6","BANGORMEE-6","BANGORMEE-6",1011]
["BANGOR","ME","E-7","BANGORMEE-7","BANGORMEE-7",1059]
["BANGOR","ME","E-8","BANGORMEE-8","BANGORMEE-8",1143]
["BANGOR","ME","E-9","BANGORMEE-9","BANGORMEE-9",1203]
["BANGOR","ME","W-1","BANGORMEW-1","BANGORMEW-1",1035]
["BANGOR","ME","W-2","BANGORMEW-2","BANGORMEW-2",1143]
["BANGOR","ME","W-3","BANGORMEW-3","BANGORMEW-3",1206]
["BANGOR","ME","W-4","BANGORMEW-4","BANGORMEW-4",1305]
["BANGOR","ME","W-5","BANGORMEW-5","BANGORMEW-5",1353]
["BANGOR","ME","O-1E","BANGORMEO-1E","BANGORMEO-1E",1107]
["BANGOR","ME","O-2E","BANGORMEO-2E","BANGORMEO-2E",1188]
["BANGOR","ME","O-3E","BANGORMEO-3E","BANGORMEO-3E",1293]
["BANGOR","ME","O-1","BANGORMEO-1","BANGORMEO-1",1002]
["BANGOR","ME","O-2","BANGORMEO-2","BANGORMEO-2",1089]
["BANGOR","ME","O-3","BANGORMEO-3","BANGORMEO-3",1227]
["BANGOR","ME","O-4","BANGORMEO-4","BANGORMEO-4",1347]
["BANGOR","ME","O-5","BANGORMEO-5","BANGORMEO-5",1377]
["BANGOR","ME","O-6","BANGORMEO-6","BANGORMEO-6",1428]
["BANGOR","ME","O-7","BANGORMEO-7","BANGORMEO-7",1458]
["DETROIT","MI","E-1","DETROITMIE-1","DETROITMIE-1",873,873,873,873,873,981,1140,1242,1353,1494,1143,1350,1422,1554,1689,1308,1404,1536,1020,1260,1443,1680,1863,1896,1935]
["DETROIT","MI","E-2","DETROITMIE-2","DETROITMIE-2",873]
["DETROIT","MI","E-3","DETROITMIE-3","DETROITMIE-3",873]
["DETROIT","MI","E-4","DETROITMIE-4","DETROITMIE-4",873]
["DETROIT","MI","E-5","DETROITMIE-5","DETROITMIE-5",981]
["DETROIT","MI","E-6","DETROITMIE-6","DETROITMIE-6",1140]
["DETROIT","MI","E-7","DETROITMIE-7","DETROITMIE-7",1242]
["DETROIT","MI","E-8","DETROITMIE-8","DETROITMIE-8",1353]
["DETROIT","MI","E-9","DETROITMIE-9","DETROITMIE-9",1494]
["DETROIT","MI","W-1","DETROITMIW-1","DETROITMIW-1",1143]
["DETROIT","MI","W-2","DETROITMIW-2","DETROITMIW-2",1350]
["DETROIT","MI","W-3","DETROITMIW-3","DETROITMIW-3",1422]
["DETROIT","MI","W-4","DETROITMIW-4","DETROITMIW-4",1554]
["DETROIT","MI","W-5","DETROITMIW-5","DETROITMIW-5",1689]
["DETROIT","MI","O-1E","DETROITMIO-1E","DETROITMIO-1E",1308]
["DETROIT","MI","O-2E","DETROITMIO-2E","DETROITMIO-2E",1404]
["DETROIT","MI","O-3E","DETROITMIO-3E","DETROITMIO-3E",1536]
["DETROIT","MI","O-1","DETROITMIO-1","DETROITMIO-1",1020]
["DETROIT","MI","O-2","DETROITMIO-2","DETROITMIO-2",1260]
["DETROIT","MI","O-3","DETROITMIO-3","DETROITMIO-3",1443]
["DETROIT","MI","O-4","DETROITMIO-4","DETROITMIO-4",1680]
["DETROIT","MI","O-5","DETROITMIO-5","DETROITMIO-5",1863]
["DETROIT","MI","O-6","DETROITMIO-6","DETROITMIO-6",1896]
["DETROIT","MI","O-7","DETROITMIO-7","DETROITMIO-7",1935]
["MARQUETTE","MI","E-1","MARQUETTEMIE-1","MARQUETTEMIE-1",630,630,630,630,630,702,834,891,960,1035,834,960,1023,1128,1206,924,1005,1110,753,894,1044,1194,1263,1323,1350]
["MARQUETTE","MI","E-2","MARQUETTEMIE-2","MARQUETTEMIE-2",630]
["MARQUETTE","MI","E-3","MARQUETTEMIE-3","MARQUETTEMIE-3",630]
["MARQUETTE","MI","E-4","MARQUETTEMIE-4","MARQUETTEMIE-4",630]
["MARQUETTE","MI","E-5","MARQUETTEMIE-5","MARQUETTEMIE-5",702]
["MARQUETTE","MI","E-6","MARQUETTEMIE-6","MARQUETTEMIE-6",834]
["MARQUETTE","MI","E-7","MARQUETTEMIE-7","MARQUETTEMIE-7",891]
["MARQUETTE","MI","E-8","MARQUETTEMIE-8","MARQUETTEMIE-8",960]
["MARQUETTE","MI","E-9","MARQUETTEMIE-9","MARQUETTEMIE-9",1035]
["MARQUETTE","MI","W-1","MARQUETTEMIW-1","MARQUETTEMIW-1",834]
["MARQUETTE","MI","W-2","MARQUETTEMIW-2","MARQUETTEMIW-2",960]
["MARQUETTE","MI","W-3","MARQUETTEMIW-3","MARQUETTEMIW-3",1023]
["MARQUETTE","MI","W-4","MARQUETTEMIW-4","MARQUETTEMIW-4",1128]
["MARQUETTE","MI","W-5","MARQUETTEMIW-5","MARQUETTEMIW-5",1206]
["MARQUETTE","MI","O-1E","MARQUETTEMIO-1E","MARQUETTEMIO-1E",924]
["MARQUETTE","MI","O-2E","MARQUETTEMIO-2E","MARQUETTEMIO-2E",1005]
["MARQUETTE","MI","O-3E",{"$f":"A4098&B4098&C4098","v":"MARQUETTEMIO-3E"},"MARQUETTEMIO-3E",1110]
["MARQUETTE","MI","O-1","MARQUETTEMIO-1","MARQUETTEMIO-1",753]
["MARQUETTE","MI","O-2","MARQUETTEMIO-2","MARQUETTEMIO-2",894]
["MARQUETTE","MI","O-3","MARQUETTEMIO-3","MARQUETTEMIO-3",1044]
["MARQUETTE","MI","O-4","MARQUETTEMIO-4","MARQUETTEMIO-4",1194]
["MARQUETTE","MI","O-5","MARQUETTEMIO-5","MARQUETTEMIO-5",1263]
["MARQUETTE","MI","O-6","MARQUETTEMIO-6","MARQUETTEMIO-6",1323]
["MARQUETTE","MI","O-7","MARQUETTEMIO-7","MARQUETTEMIO-7",1350]
["SAULT STE MARIE","MI","E-1","SAULT STE MARIEMIE-1","SAULT STE MARIEMIE-1",579,579,579,579,579,678,801,819,867,945,801,864,954,1074,1098,822,927,1068,726,801,978,1095,1110,1131,1155]
["SAULT STE MARIE","MI","E-2","SAULT STE MARIEMIE-2","SAULT STE MARIEMIE-2",579]
["SAULT STE MARIE","MI","E-3","SAULT STE MARIEMIE-3","SAULT STE MARIEMIE-3",579]
["SAULT STE MARIE","MI","E-4","SAULT STE MARIEMIE-4","SAULT STE MARIEMIE-4",579]
["SAULT STE MARIE","MI","E-5","SAULT STE MARIEMIE-5","SAULT STE MARIEMIE-5",678]
["SAULT STE MARIE","MI","E-6","SAULT STE MARIEMIE-6","SAULT STE MARIEMIE-6",801]
["SAULT STE MARIE","MI","E-7","SAULT STE MARIEMIE-7","SAULT STE MARIEMIE-7",819]
["SAULT STE MARIE","MI","E-8","SAULT STE MARIEMIE-8","SAULT STE MARIEMIE-8",867]
["SAULT STE MARIE","MI","E-9","SAULT STE MARIEMIE-9","SAULT STE MARIEMIE-9",945]
["SAULT STE MARIE","MI","W-1","SAULT STE MARIEMIW-1","SAULT STE MARIEMIW-1",801]
["SAULT STE MARIE","MI","W-2","SAULT STE MARIEMIW-2","SAULT STE MARIEMIW-2",864]
["SAULT STE MARIE","MI","W-3","SAULT STE MARIEMIW-3","SAULT STE MARIEMIW-3",954]
["SAULT STE MARIE","MI","W-4","SAULT STE MARIEMIW-4","SAULT STE MARIEMIW-4",1074]
["SAULT STE MARIE","MI","W-5","SAULT STE MARIEMIW-5","SAULT STE MARIEMIW-5",1098]
["SAULT STE MARIE","MI","O-1E","SAULT STE MARIEMIO-1E","SAULT STE MARIEMIO-1E",822]
["SAULT STE MARIE","MI","O-2E","SAULT STE MARIEMIO-2E","SAULT STE MARIEMIO-2E",927]
["SAULT STE MARIE","MI","O-3E","SAULT STE MARIEMIO-3E","SAULT STE MARIEMIO-3E",1068]
["SAULT STE MARIE","MI","O-1","SAULT STE MARIEMIO-1","SAULT STE MARIEMIO-1",726]
["SAULT STE MARIE","MI","O-2","SAULT STE MARIEMIO-2","SAULT STE MARIEMIO-2",801]
["SAULT STE MARIE","MI","O-3","SAULT STE MARIEMIO-3","SAULT STE MARIEMIO-3",978]
["SAULT STE MARIE","MI","O-4","SAULT STE MARIEMIO-4","SAULT STE MARIEMIO-4",1095]
["SAULT STE MARIE","MI","O-5","SAULT STE MARIEMIO-5","SAULT STE MARIEMIO-5",1110]
["SAULT STE MARIE","MI","O-6","SAULT STE MARIEMIO-6","SAULT STE MARIEMIO-6",1131]
["SAULT STE MARIE","MI","O-7","SAULT STE MARIEMIO-7","SAULT STE MARIEMIO-7",1155]
["TRAVERSE CITY","MI","E-1","TRAVERSE CITYMIE-1","TRAVERSE CITYMIE-1",720,720,720,720,720,810,954,978,1119,1176,954,1116,1182,1278,1311,1080,1164,1269,837,1041,1203,1308,1329,1365,1392]
["TRAVERSE CITY","MI","E-2","TRAVERSE CITYMIE-2","TRAVERSE CITYMIE-2",720]
["TRAVERSE CITY","MI","E-3","TRAVERSE CITYMIE-3","TRAVERSE CITYMIE-3",720]
["TRAVERSE CITY","MI","E-4","TRAVERSE CITYMIE-4","TRAVERSE CITYMIE-4",720]
["TRAVERSE CITY","MI","E-5","TRAVERSE CITYMIE-5","TRAVERSE CITYMIE-5",810]
["TRAVERSE CITY","MI","E-6","TRAVERSE CITYMIE-6","TRAVERSE CITYMIE-6",954]
["TRAVERSE CITY","MI","E-7","TRAVERSE CITYMIE-7","TRAVERSE CITYMIE-7",978]
["TRAVERSE CITY","MI","E-8","TRAVERSE CITYMIE-8","TRAVERSE CITYMIE-8",1119]
["TRAVERSE CITY","MI","E-9","TRAVERSE CITYMIE-9","TRAVERSE CITYMIE-9",1176]
["TRAVERSE CITY","MI","W-1","TRAVERSE CITYMIW-1","TRAVERSE CITYMIW-1",954]
["TRAVERSE CITY","MI","W-2","TRAVERSE CITYMIW-2","TRAVERSE CITYMIW-2",1116]
["TRAVERSE CITY","MI","W-3","TRAVERSE CITYMIW-3","TRAVERSE CITYMIW-3",1182]
["TRAVERSE CITY","MI","W-4","TRAVERSE CITYMIW-4","TRAVERSE CITYMIW-4",1278]
["TRAVERSE CITY","MI","W-5","TRAVERSE CITYMIW-5","TRAVERSE CITYMIW-5",1311]
["TRAVERSE CITY","MI","O-1E","TRAVERSE CITYMIO-1E","TRAVERSE CITYMIO-1E",1080]
["TRAVERSE CITY","MI","O-2E","TRAVERSE CITYMIO-2E","TRAVERSE CITYMIO-2E",1164]
["TRAVERSE CITY","MI","O-3E","TRAVERSE CITYMIO-3E","TRAVERSE CITYMIO-3E",1269]
["TRAVERSE CITY","MI","O-1","TRAVERSE CITYMIO-1","TRAVERSE CITYMIO-1",837]
["TRAVERSE CITY","MI","O-2","TRAVERSE CITYMIO-2","TRAVERSE CITYMIO-2",1041]
["TRAVERSE CITY","MI","O-3","TRAVERSE CITYMIO-3","TRAVERSE CITYMIO-3",1203]
["TRAVERSE CITY","MI","O-4","TRAVERSE CITYMIO-4","TRAVERSE CITYMIO-4",1308]
["TRAVERSE CITY","MI","O-5","TRAVERSE CITYMIO-5","TRAVERSE CITYMIO-5",1329]
["TRAVERSE CITY","MI","O-6","TRAVERSE CITYMIO-6","TRAVERSE CITYMIO-6",1365]
["TRAVERSE CITY","MI","O-7","TRAVERSE CITYMIO-7","TRAVERSE CITYMIO-7",1392]
["GRAND HAVEN","MI","E-1","GRAND HAVENMIE-1","GRAND HAVENMIE-1",651,651,651,651,651,732,864,879,1011,1068,864,1011,1071,1158,1179,978,1053,1152,747,939,1089,1176,1188,1209,1233]
["GRAND HAVEN","MI","E-2","GRAND HAVENMIE-2","GRAND HAVENMIE-2",651]
["GRAND HAVEN","MI","E-3","GRAND HAVENMIE-3","GRAND HAVENMIE-3",651]
["GRAND HAVEN","MI","E-4","GRAND HAVENMIE-4","GRAND HAVENMIE-4",651]
["GRAND HAVEN","MI","E-5","GRAND HAVENMIE-5","GRAND HAVENMIE-5",732]
["GRAND HAVEN","MI","E-6","GRAND HAVENMIE-6","GRAND HAVENMIE-6",864]
["GRAND HAVEN","MI","E-7","GRAND HAVENMIE-7","GRAND HAVENMIE-7",879]
["GRAND HAVEN","MI","E-8","GRAND HAVENMIE-8","GRAND HAVENMIE-8",1011]
["GRAND HAVEN","MI","E-9",{"$f":"A4162&B4162&C4162","v":"GRAND HAVENMIE-9"},"GRAND HAVENMIE-9",1068]
["GRAND HAVEN","MI","W-1","GRAND HAVENMIW-1","GRAND HAVENMIW-1",864]
["GRAND HAVEN","MI","W-2","GRAND HAVENMIW-2","GRAND HAVENMIW-2",1011]
["GRAND HAVEN","MI","W-3","GRAND HAVENMIW-3","GRAND HAVENMIW-3",1071]
["GRAND HAVEN","MI","W-4","GRAND HAVENMIW-4","GRAND HAVENMIW-4",1158]
["GRAND HAVEN","MI","W-5","GRAND HAVENMIW-5","GRAND HAVENMIW-5",1179]
["GRAND HAVEN","MI","O-1E","GRAND HAVENMIO-1E","GRAND HAVENMIO-1E",978]
["GRAND HAVEN","MI","O-2E","GRAND HAVENMIO-2E","GRAND HAVENMIO-2E",1053]
["GRAND HAVEN","MI","O-3E","GRAND HAVENMIO-3E","GRAND HAVENMIO-3E",1152]
["GRAND HAVEN","MI","O-1","GRAND HAVENMIO-1","GRAND HAVENMIO-1",747]
["GRAND HAVEN","MI","O-2","GRAND HAVENMIO-2","GRAND HAVENMIO-2",939]
["GRAND HAVEN","MI","O-3","GRAND HAVENMIO-3","GRAND HAVENMIO-3",1089]
["GRAND HAVEN","MI","O-4","GRAND HAVENMIO-4","GRAND HAVENMIO-4",1176]
["GRAND HAVEN","MI","O-5","GRAND HAVENMIO-5","GRAND HAVENMIO-5",1188]
["GRAND HAVEN","MI","O-6","GRAND HAVENMIO-6","GRAND HAVENMIO-6",1209]
["GRAND HAVEN","MI","O-7","GRAND HAVENMIO-7","GRAND HAVENMIO-7",1233]
["PORT HURON","MI","E-1","PORT HURONMIE-1","PORT HURONMIE-1",696,696,696,696,696,792,888,930,1035,1092,900,1032,1098,1185,1203,999,1080,1182,855,975,1116,1203,1212,1230,1257]
["PORT HURON","MI","E-2","PORT HURONMIE-2","PORT HURONMIE-2",696]
["PORT HURON","MI","E-3","PORT HURONMIE-3","PORT HURONMIE-3",696]
["PORT HURON","MI","E-4","PORT HURONMIE-4","PORT HURONMIE-4",696]
["PORT HURON","MI","E-5","PORT HURONMIE-5","PORT HURONMIE-5",792]
["PORT HURON","MI","E-6","PORT HURONMIE-6","PORT HURONMIE-6",888]
["PORT HURON","MI","E-7","PORT HURONMIE-7","PORT HURONMIE-7",930]
["PORT HURON","MI","E-8","PORT HURONMIE-8","PORT HURONMIE-8",1035]
["PORT HURON","MI","E-9","PORT HURONMIE-9","PORT HURONMIE-9",1092]
["PORT HURON","MI","W-1","PORT HURONMIW-1","PORT HURONMIW-1",900]
["PORT HURON","MI","W-2","PORT HURONMIW-2","PORT HURONMIW-2",1032]
["PORT HURON","MI","W-3","PORT HURONMIW-3","PORT HURONMIW-3",1098]
["PORT HURON","MI","W-4","PORT HURONMIW-4","PORT HURONMIW-4",1185]
["PORT HURON","MI","W-5","PORT HURONMIW-5","PORT HURONMIW-5",1203]
["PORT HURON","MI","O-1E","PORT HURONMIO-1E","PORT HURONMIO-1E",999]
["PORT HURON","MI","O-2E","PORT HURONMIO-2E","PORT HURONMIO-2E",1080]
["PORT HURON","MI","O-3E","PORT HURONMIO-3E","PORT HURONMIO-3E",1182]
["PORT HURON","MI","O-1","PORT HURONMIO-1","PORT HURONMIO-1",855]
["PORT HURON","MI","O-2","PORT HURONMIO-2","PORT HURONMIO-2",975]
["PORT HURON","MI","O-3","PORT HURONMIO-3","PORT HURONMIO-3",1116]
["PORT HURON","MI","O-4","PORT HURONMIO-4","PORT HURONMIO-4",1203]
["PORT HURON","MI","O-5","PORT HURONMIO-5","PORT HURONMIO-5",1212]
["PORT HURON","MI","O-6","PORT HURONMIO-6","PORT HURONMIO-6",1230]
["PORT HURON","MI","O-7","PORT HURONMIO-7","PORT HURONMIO-7",1257]
["BATTLE CREEK/KALAMAZOO","MI","E-1","BATTLE CREEK/KALAMAZOOMIE-1","BATTLE CREEK/KALAMAZOOMIE-1",717,717,717,717,717,843,921,1008,1143,1197,921,1143,1179,1254,1371,1122,1167,1227,849,1065,1188,1356,1428,1548,1581]
["BATTLE CREEK/KALAMAZOO","MI","E-2","BATTLE CREEK/KALAMAZOOMIE-2","BATTLE CREEK/KALAMAZOOMIE-2",717]
["BATTLE CREEK/KALAMAZOO","MI","E-3","BATTLE CREEK/KALAMAZOOMIE-3","BATTLE CREEK/KALAMAZOOMIE-3",717]
["BATTLE CREEK/KALAMAZOO","MI","E-4","BATTLE CREEK/KALAMAZOOMIE-4","BATTLE CREEK/KALAMAZOOMIE-4",717]
["BATTLE CREEK/KALAMAZOO","MI","E-5","BATTLE CREEK/KALAMAZOOMIE-5","BATTLE CREEK/KALAMAZOOMIE-5",843]
["BATTLE CREEK/KALAMAZOO","MI","E-6","BATTLE CREEK/KALAMAZOOMIE-6","BATTLE CREEK/KALAMAZOOMIE-6",921]
["BATTLE CREEK/KALAMAZOO","MI","E-7","BATTLE CREEK/KALAMAZOOMIE-7","BATTLE CREEK/KALAMAZOOMIE-7",1008]
["BATTLE CREEK/KALAMAZOO","MI","E-8","BATTLE CREEK/KALAMAZOOMIE-8","BATTLE CREEK/KALAMAZOOMIE-8",1143]
["BATTLE CREEK/KALAMAZOO","MI","E-9","BATTLE CREEK/KALAMAZOOMIE-9","BATTLE CREEK/KALAMAZOOMIE-9",1197]
["BATTLE CREEK/KALAMAZOO","MI","W-1","BATTLE CREEK/KALAMAZOOMIW-1","BATTLE CREEK/KALAMAZOOMIW-1",921]
["BATTLE CREEK/KALAMAZOO","MI","W-2","BATTLE CREEK/KALAMAZOOMIW-2","BATTLE CREEK/KALAMAZOOMIW-2",1143]
["BATTLE CREEK/KALAMAZOO","MI","W-3","BATTLE CREEK/KALAMAZOOMIW-3","BATTLE CREEK/KALAMAZOOMIW-3",1179]
["BATTLE CREEK/KALAMAZOO","MI","W-4","BATTLE CREEK/KALAMAZOOMIW-4","BATTLE CREEK/KALAMAZOOMIW-4",1254]
["BATTLE CREEK/KALAMAZOO","MI","W-5","BATTLE CREEK/KALAMAZOOMIW-5","BATTLE CREEK/KALAMAZOOMIW-5",1371]
["BATTLE CREEK/KALAMAZOO","MI","O-1E","BATTLE CREEK/KALAMAZOOMIO-1E","BATTLE CREEK/KALAMAZOOMIO-1E",1122]
["BATTLE CREEK/KALAMAZOO","MI","O-2E","BATTLE CREEK/KALAMAZOOMIO-2E","BATTLE CREEK/KALAMAZOOMIO-2E",1167]
["BATTLE CREEK/KALAMAZOO","MI","O-3E","BATTLE CREEK/KALAMAZOOMIO-3E","BATTLE CREEK/KALAMAZOOMIO-3E",1227]
["BATTLE CREEK/KALAMAZOO","MI","O-1","BATTLE CREEK/KALAMAZOOMIO-1","BATTLE CREEK/KALAMAZOOMIO-1",849]
["BATTLE CREEK/KALAMAZOO","MI","O-2","BATTLE CREEK/KALAMAZOOMIO-2","BATTLE CREEK/KALAMAZOOMIO-2",1065]
["BATTLE CREEK/KALAMAZOO","MI","O-3","BATTLE CREEK/KALAMAZOOMIO-3","BATTLE CREEK/KALAMAZOOMIO-3",1188]
["BATTLE CREEK/KALAMAZOO","MI","O-4","BATTLE CREEK/KALAMAZOOMIO-4","BATTLE CREEK/KALAMAZOOMIO-4",1356]
["BATTLE CREEK/KALAMAZOO","MI","O-5","BATTLE CREEK/KALAMAZOOMIO-5","BATTLE CREEK/KALAMAZOOMIO-5",1428]
["BATTLE CREEK/KALAMAZOO","MI","O-6","BATTLE CREEK/KALAMAZOOMIO-6","BATTLE CREEK/KALAMAZOOMIO-6",1548]
["BATTLE CREEK/KALAMAZOO","MI","O-7","BATTLE CREEK/KALAMAZOOMIO-7","BATTLE CREEK/KALAMAZOOMIO-7",1581]
["LANSING","MI","E-1",{"$f":"A4226&B4226&C4226","v":"LANSINGMIE-1"},"LANSINGMIE-1",807,807,807,807,807,906,972,1083,1203,1212,1029,1203,1212,1245,1317,1197,1209,1227,954,1155,1215,1308,1356,1428,1458]
["LANSING","MI","E-2","LANSINGMIE-2","LANSINGMIE-2",807]
["LANSING","MI","E-3","LANSINGMIE-3","LANSINGMIE-3",807]
["LANSING","MI","E-4","LANSINGMIE-4","LANSINGMIE-4",807]
["LANSING","MI","E-5","LANSINGMIE-5","LANSINGMIE-5",906]
["LANSING","MI","E-6","LANSINGMIE-6","LANSINGMIE-6",972]
["LANSING","MI","E-7","LANSINGMIE-7","LANSINGMIE-7",1083]
["LANSING","MI","E-8","LANSINGMIE-8","LANSINGMIE-8",1203]
["LANSING","MI","E-9","LANSINGMIE-9","LANSINGMIE-9",1212]
["LANSING","MI","W-1","LANSINGMIW-1","LANSINGMIW-1",1029]
["LANSING","MI","W-2","LANSINGMIW-2","LANSINGMIW-2",1203]
["LANSING","MI","W-3","LANSINGMIW-3","LANSINGMIW-3",1212]
["LANSING","MI","W-4","LANSINGMIW-4","LANSINGMIW-4",1245]
["LANSING","MI","W-5","LANSINGMIW-5","LANSINGMIW-5",1317]
["LANSING","MI","O-1E","LANSINGMIO-1E","LANSINGMIO-1E",1197]
["LANSING","MI","O-2E","LANSINGMIO-2E","LANSINGMIO-2E",1209]
["LANSING","MI","O-3E","LANSINGMIO-3E","LANSINGMIO-3E",1227]
["LANSING","MI","O-1","LANSINGMIO-1","LANSINGMIO-1",954]
["LANSING","MI","O-2","LANSINGMIO-2","LANSINGMIO-2",1155]
["LANSING","MI","O-3","LANSINGMIO-3","LANSINGMIO-3",1215]
["LANSING","MI","O-4","LANSINGMIO-4","LANSINGMIO-4",1308]
["LANSING","MI","O-5","LANSINGMIO-5","LANSINGMIO-5",1356]
["LANSING","MI","O-6","LANSINGMIO-6","LANSINGMIO-6",1428]
["LANSING","MI","O-7","LANSINGMIO-7","LANSINGMIO-7",1458]
["GRAND RAPIDS","MI","E-1","GRAND RAPIDSMIE-1","GRAND RAPIDSMIE-1",711,711,711,711,711,798,966,966,1104,1173,966,1101,1182,1287,1290,1056,1158,1287,840,1020,1203,1290,1290,1293,1320]
["GRAND RAPIDS","MI","E-2","GRAND RAPIDSMIE-2","GRAND RAPIDSMIE-2",711]
["GRAND RAPIDS","MI","E-3","GRAND RAPIDSMIE-3","GRAND RAPIDSMIE-3",711]
["GRAND RAPIDS","MI","E-4","GRAND RAPIDSMIE-4","GRAND RAPIDSMIE-4",711]
["GRAND RAPIDS","MI","E-5","GRAND RAPIDSMIE-5","GRAND RAPIDSMIE-5",798]
["GRAND RAPIDS","MI","E-6","GRAND RAPIDSMIE-6","GRAND RAPIDSMIE-6",966]
["GRAND RAPIDS","MI","E-7","GRAND RAPIDSMIE-7","GRAND RAPIDSMIE-7",966]
["GRAND RAPIDS","MI","E-8","GRAND RAPIDSMIE-8","GRAND RAPIDSMIE-8",1104]
["GRAND RAPIDS","MI","E-9","GRAND RAPIDSMIE-9","GRAND RAPIDSMIE-9",1173]
["GRAND RAPIDS","MI","W-1","GRAND RAPIDSMIW-1","GRAND RAPIDSMIW-1",966]
["GRAND RAPIDS","MI","W-2","GRAND RAPIDSMIW-2","GRAND RAPIDSMIW-2",1101]
["GRAND RAPIDS","MI","W-3","GRAND RAPIDSMIW-3","GRAND RAPIDSMIW-3",1182]
["GRAND RAPIDS","MI","W-4","GRAND RAPIDSMIW-4","GRAND RAPIDSMIW-4",1287]
["GRAND RAPIDS","MI","W-5","GRAND RAPIDSMIW-5","GRAND RAPIDSMIW-5",1290]
["GRAND RAPIDS","MI","O-1E","GRAND RAPIDSMIO-1E","GRAND RAPIDSMIO-1E",1056]
["GRAND RAPIDS","MI","O-2E","GRAND RAPIDSMIO-2E","GRAND RAPIDSMIO-2E",1158]
["GRAND RAPIDS","MI","O-3E","GRAND RAPIDSMIO-3E","GRAND RAPIDSMIO-3E",1287]
["GRAND RAPIDS","MI","O-1","GRAND RAPIDSMIO-1","GRAND RAPIDSMIO-1",840]
["GRAND RAPIDS","MI","O-2","GRAND RAPIDSMIO-2","GRAND RAPIDSMIO-2",1020]
["GRAND RAPIDS","MI","O-3","GRAND RAPIDSMIO-3","GRAND RAPIDSMIO-3",1203]
["GRAND RAPIDS","MI","O-4","GRAND RAPIDSMIO-4","GRAND RAPIDSMIO-4",1290]
["GRAND RAPIDS","MI","O-5","GRAND RAPIDSMIO-5","GRAND RAPIDSMIO-5",1290]
["GRAND RAPIDS","MI","O-6","GRAND RAPIDSMIO-6","GRAND RAPIDSMIO-6",1293]
["GRAND RAPIDS","MI","O-7","GRAND RAPIDSMIO-7","GRAND RAPIDSMIO-7",1320]
["ANN ARBOR","MI","E-1","ANN ARBORMIE-1","ANN ARBORMIE-1",894,894,894,894,894,1020,1137,1218,1389,1440,1140,1389,1443,1542,1653,1359,1428,1515,1032,1302,1458,1638,1785,1818,1854]
["ANN ARBOR","MI","E-2","ANN ARBORMIE-2","ANN ARBORMIE-2",894]
["ANN ARBOR","MI","E-3","ANN ARBORMIE-3","ANN ARBORMIE-3",894]
["ANN ARBOR","MI","E-4","ANN ARBORMIE-4","ANN ARBORMIE-4",894]
["ANN ARBOR","MI","E-5","ANN ARBORMIE-5","ANN ARBORMIE-5",1020]
["ANN ARBOR","MI","E-6","ANN ARBORMIE-6","ANN ARBORMIE-6",1137]
["ANN ARBOR","MI","E-7","ANN ARBORMIE-7","ANN ARBORMIE-7",1218]
["ANN ARBOR","MI","E-8","ANN ARBORMIE-8","ANN ARBORMIE-8",1389]
["ANN ARBOR","MI","E-9","ANN ARBORMIE-9","ANN ARBORMIE-9",1440]
["ANN ARBOR","MI","W-1","ANN ARBORMIW-1","ANN ARBORMIW-1",1140]
["ANN ARBOR","MI","W-2","ANN ARBORMIW-2","ANN ARBORMIW-2",1389]
["ANN ARBOR","MI","W-3","ANN ARBORMIW-3","ANN ARBORMIW-3",1443]
["ANN ARBOR","MI","W-4","ANN ARBORMIW-4","ANN ARBORMIW-4",1542]
["ANN ARBOR","MI","W-5","ANN ARBORMIW-5","ANN ARBORMIW-5",1653]
["ANN ARBOR","MI","O-1E","ANN ARBORMIO-1E","ANN ARBORMIO-1E",1359]
["ANN ARBOR","MI","O-2E","ANN ARBORMIO-2E","ANN ARBORMIO-2E",1428]
["ANN ARBOR","MI","O-3E",{"$f":"A4290&B4290&C4290","v":"ANN ARBORMIO-3E"},"ANN ARBORMIO-3E",1515]
["ANN ARBOR","MI","O-1","ANN ARBORMIO-1","ANN ARBORMIO-1",1032]
["ANN ARBOR","MI","O-2","ANN ARBORMIO-2","ANN ARBORMIO-2",1302]
["ANN ARBOR","MI","O-3","ANN ARBORMIO-3","ANN ARBORMIO-3",1458]
["ANN ARBOR","MI","O-4","ANN ARBORMIO-4","ANN ARBORMIO-4",1638]
["ANN ARBOR","MI","O-5","ANN ARBORMIO-5","ANN ARBORMIO-5",1785]
["ANN ARBOR","MI","O-6","ANN ARBORMIO-6","ANN ARBORMIO-6",1818]
["ANN ARBOR","MI","O-7","ANN ARBORMIO-7","ANN ARBORMIO-7",1854]
["SAGINAW","MI","E-1","SAGINAWMIE-1","SAGINAWMIE-1",639,639,639,639,639,714,843,885,975,1032,846,972,1038,1140,1197,936,1020,1125,765,909,1056,1188,1224,1284,1308]
["SAGINAW","MI","E-2","SAGINAWMIE-2","SAGINAWMIE-2",639]
["SAGINAW","MI","E-3","SAGINAWMIE-3","SAGINAWMIE-3",639]
["SAGINAW","MI","E-4","SAGINAWMIE-4","SAGINAWMIE-4",639]
["SAGINAW","MI","E-5","SAGINAWMIE-5","SAGINAWMIE-5",714]
["SAGINAW","MI","E-6","SAGINAWMIE-6","SAGINAWMIE-6",843]
["SAGINAW","MI","E-7","SAGINAWMIE-7","SAGINAWMIE-7",885]
["SAGINAW","MI","E-8","SAGINAWMIE-8","SAGINAWMIE-8",975]
["SAGINAW","MI","E-9","SAGINAWMIE-9","SAGINAWMIE-9",1032]
["SAGINAW","MI","W-1","SAGINAWMIW-1","SAGINAWMIW-1",846]
["SAGINAW","MI","W-2","SAGINAWMIW-2","SAGINAWMIW-2",972]
["SAGINAW","MI","W-3","SAGINAWMIW-3","SAGINAWMIW-3",1038]
["SAGINAW","MI","W-4","SAGINAWMIW-4","SAGINAWMIW-4",1140]
["SAGINAW","MI","W-5","SAGINAWMIW-5","SAGINAWMIW-5",1197]
["SAGINAW","MI","O-1E","SAGINAWMIO-1E","SAGINAWMIO-1E",936]
["SAGINAW","MI","O-2E","SAGINAWMIO-2E","SAGINAWMIO-2E",1020]
["SAGINAW","MI","O-3E","SAGINAWMIO-3E","SAGINAWMIO-3E",1125]
["SAGINAW","MI","O-1","SAGINAWMIO-1","SAGINAWMIO-1",765]
["SAGINAW","MI","O-2","SAGINAWMIO-2","SAGINAWMIO-2",909]
["SAGINAW","MI","O-3","SAGINAWMIO-3","SAGINAWMIO-3",1056]
["SAGINAW","MI","O-4","SAGINAWMIO-4","SAGINAWMIO-4",1188]
["SAGINAW","MI","O-5","SAGINAWMIO-5","SAGINAWMIO-5",1224]
["SAGINAW","MI","O-6","SAGINAWMIO-6","SAGINAWMIO-6",1284]
["SAGINAW","MI","O-7","SAGINAWMIO-7","SAGINAWMIO-7",1308]
["ALPENA","MI","E-1","ALPENAMIE-1","ALPENAMIE-1",546,546,546,546,546,624,705,735,852,885,705,852,888,948,987,831,879,939,630,795,900,981,1008,1050,1071]
["ALPENA","MI","E-2","ALPENAMIE-2","ALPENAMIE-2",546]
["ALPENA","MI","E-3","ALPENAMIE-3","ALPENAMIE-3",546]
["ALPENA","MI","E-4","ALPENAMIE-4","ALPENAMIE-4",546]
["ALPENA","MI","E-5","ALPENAMIE-5","ALPENAMIE-5",624]
["ALPENA","MI","E-6","ALPENAMIE-6","ALPENAMIE-6",705]
["ALPENA","MI","E-7","ALPENAMIE-7","ALPENAMIE-7",735]
["ALPENA","MI","E-8","ALPENAMIE-8","ALPENAMIE-8",852]
["ALPENA","MI","E-9","ALPENAMIE-9","ALPENAMIE-9",885]
["ALPENA","MI","W-1","ALPENAMIW-1","ALPENAMIW-1",705]
["ALPENA","MI","W-2","ALPENAMIW-2","ALPENAMIW-2",852]
["ALPENA","MI","W-3","ALPENAMIW-3","ALPENAMIW-3",888]
["ALPENA","MI","W-4","ALPENAMIW-4","ALPENAMIW-4",948]
["ALPENA","MI","W-5","ALPENAMIW-5","ALPENAMIW-5",987]
["ALPENA","MI","O-1E","ALPENAMIO-1E","ALPENAMIO-1E",831]
["ALPENA","MI","O-2E","ALPENAMIO-2E","ALPENAMIO-2E",879]
["ALPENA","MI","O-3E","ALPENAMIO-3E","ALPENAMIO-3E",939]
["ALPENA","MI","O-1","ALPENAMIO-1","ALPENAMIO-1",630]
["ALPENA","MI","O-2","ALPENAMIO-2","ALPENAMIO-2",795]
["ALPENA","MI","O-3","ALPENAMIO-3","ALPENAMIO-3",900]
["ALPENA","MI","O-4","ALPENAMIO-4","ALPENAMIO-4",981]
["ALPENA","MI","O-5","ALPENAMIO-5","ALPENAMIO-5",1008]
["ALPENA","MI","O-6","ALPENAMIO-6","ALPENAMIO-6",1050]
["ALPENA","MI","O-7","ALPENAMIO-7","ALPENAMIO-7",1071]
["CHARLEVOIX","MI","E-1","CHARLEVOIXMIE-1","CHARLEVOIXMIE-1",660,660,660,660,660,735,873,912,1017,1074,873,1014,1080,1176,1227,981,1062,1164,759,942,1098,1221,1350,1365,1377]
["CHARLEVOIX","MI","E-2","CHARLEVOIXMIE-2","CHARLEVOIXMIE-2",660]
["CHARLEVOIX","MI","E-3","CHARLEVOIXMIE-3","CHARLEVOIXMIE-3",660]
["CHARLEVOIX","MI","E-4","CHARLEVOIXMIE-4","CHARLEVOIXMIE-4",660]
["CHARLEVOIX","MI","E-5","CHARLEVOIXMIE-5","CHARLEVOIXMIE-5",735]
["CHARLEVOIX","MI","E-6","CHARLEVOIXMIE-6","CHARLEVOIXMIE-6",873]
["CHARLEVOIX","MI","E-7","CHARLEVOIXMIE-7","CHARLEVOIXMIE-7",912]
["CHARLEVOIX","MI","E-8","CHARLEVOIXMIE-8","CHARLEVOIXMIE-8",1017]
["CHARLEVOIX","MI","E-9",{"$f":"A4354&B4354&C4354","v":"CHARLEVOIXMIE-9"},"CHARLEVOIXMIE-9",1074]
["CHARLEVOIX","MI","W-1","CHARLEVOIXMIW-1","CHARLEVOIXMIW-1",873]
["CHARLEVOIX","MI","W-2","CHARLEVOIXMIW-2","CHARLEVOIXMIW-2",1014]
["CHARLEVOIX","MI","W-3","CHARLEVOIXMIW-3","CHARLEVOIXMIW-3",1080]
["CHARLEVOIX","MI","W-4","CHARLEVOIXMIW-4","CHARLEVOIXMIW-4",1176]
["CHARLEVOIX","MI","W-5","CHARLEVOIXMIW-5","CHARLEVOIXMIW-5",1227]
["CHARLEVOIX","MI","O-1E","CHARLEVOIXMIO-1E","CHARLEVOIXMIO-1E",981]
["CHARLEVOIX","MI","O-2E","CHARLEVOIXMIO-2E","CHARLEVOIXMIO-2E",1062]
["CHARLEVOIX","MI","O-3E","CHARLEVOIXMIO-3E","CHARLEVOIXMIO-3E",1164]
["CHARLEVOIX","MI","O-1","CHARLEVOIXMIO-1","CHARLEVOIXMIO-1",759]
["CHARLEVOIX","MI","O-2","CHARLEVOIXMIO-2","CHARLEVOIXMIO-2",942]
["CHARLEVOIX","MI","O-3","CHARLEVOIXMIO-3","CHARLEVOIXMIO-3",1098]
["CHARLEVOIX","MI","O-4","CHARLEVOIXMIO-4","CHARLEVOIXMIO-4",1221]
["CHARLEVOIX","MI","O-5","CHARLEVOIXMIO-5","CHARLEVOIXMIO-5",1350]
["CHARLEVOIX","MI","O-6","CHARLEVOIXMIO-6","CHARLEVOIXMIO-6",1365]
["CHARLEVOIX","MI","O-7","CHARLEVOIXMIO-7","CHARLEVOIXMIO-7",1377]
["DULUTH","MN","E-1","DULUTHMNE-1","DULUTHMNE-1",783,783,783,783,783,888,1032,1050,1224,1281,1032,1221,1287,1380,1401,1185,1269,1374,903,1137,1305,1398,1410,1431,1461]
["DULUTH","MN","E-2","DULUTHMNE-2","DULUTHMNE-2",783]
["DULUTH","MN","E-3","DULUTHMNE-3","DULUTHMNE-3",783]
["DULUTH","MN","E-4","DULUTHMNE-4","DULUTHMNE-4",783]
["DULUTH","MN","E-5","DULUTHMNE-5","DULUTHMNE-5",888]
["DULUTH","MN","E-6","DULUTHMNE-6","DULUTHMNE-6",1032]
["DULUTH","MN","E-7","DULUTHMNE-7","DULUTHMNE-7",1050]
["DULUTH","MN","E-8","DULUTHMNE-8","DULUTHMNE-8",1224]
["DULUTH","MN","E-9","DULUTHMNE-9","DULUTHMNE-9",1281]
["DULUTH","MN","W-1","DULUTHMNW-1","DULUTHMNW-1",1032]
["DULUTH","MN","W-2","DULUTHMNW-2","DULUTHMNW-2",1221]
["DULUTH","MN","W-3","DULUTHMNW-3","DULUTHMNW-3",1287]
["DULUTH","MN","W-4","DULUTHMNW-4","DULUTHMNW-4",1380]
["DULUTH","MN","W-5","DULUTHMNW-5","DULUTHMNW-5",1401]
["DULUTH","MN","O-1E","DULUTHMNO-1E","DULUTHMNO-1E",1185]
["DULUTH","MN","O-2E","DULUTHMNO-2E","DULUTHMNO-2E",1269]
["DULUTH","MN","O-3E","DULUTHMNO-3E","DULUTHMNO-3E",1374]
["DULUTH","MN","O-1","DULUTHMNO-1","DULUTHMNO-1",903]
["DULUTH","MN","O-2","DULUTHMNO-2","DULUTHMNO-2",1137]
["DULUTH","MN","O-3","DULUTHMNO-3","DULUTHMNO-3",1305]
["DULUTH","MN","O-4","DULUTHMNO-4","DULUTHMNO-4",1398]
["DULUTH","MN","O-5","DULUTHMNO-5","DULUTHMNO-5",1410]
["DULUTH","MN","O-6","DULUTHMNO-6","DULUTHMNO-6",1431]
["DULUTH","MN","O-7","DULUTHMNO-7","DULUTHMNO-7",1461]
["MINNEAPOLIS/ST PAUL","MN","E-1","MINNEAPOLIS/ST PAULMNE-1","MINNEAPOLIS/ST PAULMNE-1",942,942,942,942,942,1071,1239,1269,1473,1542,1239,1470,1548,1662,1704,1428,1527,1650,1089,1368,1569,1698,1725,1770,1803]
["MINNEAPOLIS/ST PAUL","MN","E-2","MINNEAPOLIS/ST PAULMNE-2","MINNEAPOLIS/ST PAULMNE-2",942]
["MINNEAPOLIS/ST PAUL","MN","E-3","MINNEAPOLIS/ST PAULMNE-3","MINNEAPOLIS/ST PAULMNE-3",942]
["MINNEAPOLIS/ST PAUL","MN","E-4","MINNEAPOLIS/ST PAULMNE-4","MINNEAPOLIS/ST PAULMNE-4",942]
["MINNEAPOLIS/ST PAUL","MN","E-5","MINNEAPOLIS/ST PAULMNE-5","MINNEAPOLIS/ST PAULMNE-5",1071]
["MINNEAPOLIS/ST PAUL","MN","E-6","MINNEAPOLIS/ST PAULMNE-6","MINNEAPOLIS/ST PAULMNE-6",1239]
["MINNEAPOLIS/ST PAUL","MN","E-7","MINNEAPOLIS/ST PAULMNE-7","MINNEAPOLIS/ST PAULMNE-7",1269]
["MINNEAPOLIS/ST PAUL","MN","E-8","MINNEAPOLIS/ST PAULMNE-8","MINNEAPOLIS/ST PAULMNE-8",1473]
["MINNEAPOLIS/ST PAUL","MN","E-9","MINNEAPOLIS/ST PAULMNE-9","MINNEAPOLIS/ST PAULMNE-9",1542]
["MINNEAPOLIS/ST PAUL","MN","W-1","MINNEAPOLIS/ST PAULMNW-1","MINNEAPOLIS/ST PAULMNW-1",1239]
["MINNEAPOLIS/ST PAUL","MN","W-2","MINNEAPOLIS/ST PAULMNW-2","MINNEAPOLIS/ST PAULMNW-2",1470]
["MINNEAPOLIS/ST PAUL","MN","W-3","MINNEAPOLIS/ST PAULMNW-3","MINNEAPOLIS/ST PAULMNW-3",1548]
["MINNEAPOLIS/ST PAUL","MN","W-4","MINNEAPOLIS/ST PAULMNW-4","MINNEAPOLIS/ST PAULMNW-4",1662]
["MINNEAPOLIS/ST PAUL","MN","W-5","MINNEAPOLIS/ST PAULMNW-5","MINNEAPOLIS/ST PAULMNW-5",1704]
["MINNEAPOLIS/ST PAUL","MN","O-1E","MINNEAPOLIS/ST PAULMNO-1E","MINNEAPOLIS/ST PAULMNO-1E",1428]
["MINNEAPOLIS/ST PAUL","MN","O-2E","MINNEAPOLIS/ST PAULMNO-2E","MINNEAPOLIS/ST PAULMNO-2E",1527]
["MINNEAPOLIS/ST PAUL","MN","O-3E","MINNEAPOLIS/ST PAULMNO-3E","MINNEAPOLIS/ST PAULMNO-3E",1650]
["MINNEAPOLIS/ST PAUL","MN","O-1","MINNEAPOLIS/ST PAULMNO-1","MINNEAPOLIS/ST PAULMNO-1",1089]
["MINNEAPOLIS/ST PAUL","MN","O-2","MINNEAPOLIS/ST PAULMNO-2","MINNEAPOLIS/ST PAULMNO-2",1368]
["MINNEAPOLIS/ST PAUL","MN","O-3","MINNEAPOLIS/ST PAULMNO-3","MINNEAPOLIS/ST PAULMNO-3",1569]
["MINNEAPOLIS/ST PAUL","MN","O-4","MINNEAPOLIS/ST PAULMNO-4","MINNEAPOLIS/ST PAULMNO-4",1698]
["MINNEAPOLIS/ST PAUL","MN","O-5","MINNEAPOLIS/ST PAULMNO-5","MINNEAPOLIS/ST PAULMNO-5",1725]
["MINNEAPOLIS/ST PAUL","MN","O-6","MINNEAPOLIS/ST PAULMNO-6","MINNEAPOLIS/ST PAULMNO-6",1770]
["MINNEAPOLIS/ST PAUL","MN","O-7","MINNEAPOLIS/ST PAULMNO-7","MINNEAPOLIS/ST PAULMNO-7",1803]
["SAINT CLOUD","MN","E-1",{"$f":"A4418&B4418&C4418","v":"SAINT CLOUDMNE-1"},"SAINT CLOUDMNE-1",657,657,657,657,657,756,888,942,1044,1098,888,1041,1101,1200,1275,1008,1086,1182,771,963,1119,1266,1314,1392,1419]
["SAINT CLOUD","MN","E-2","SAINT CLOUDMNE-2","SAINT CLOUDMNE-2",657]
["SAINT CLOUD","MN","E-3","SAINT CLOUDMNE-3","SAINT CLOUDMNE-3",657]
["SAINT CLOUD","MN","E-4","SAINT CLOUDMNE-4","SAINT CLOUDMNE-4",657]
["SAINT CLOUD","MN","E-5","SAINT CLOUDMNE-5","SAINT CLOUDMNE-5",756]
["SAINT CLOUD","MN","E-6","SAINT CLOUDMNE-6","SAINT CLOUDMNE-6",888]
["SAINT CLOUD","MN","E-7","SAINT CLOUDMNE-7","SAINT CLOUDMNE-7",942]
["SAINT CLOUD","MN","E-8","SAINT CLOUDMNE-8","SAINT CLOUDMNE-8",1044]
["SAINT CLOUD","MN","E-9","SAINT CLOUDMNE-9","SAINT CLOUDMNE-9",1098]
["SAINT CLOUD","MN","W-1","SAINT CLOUDMNW-1","SAINT CLOUDMNW-1",888]
["SAINT CLOUD","MN","W-2","SAINT CLOUDMNW-2","SAINT CLOUDMNW-2",1041]
["SAINT CLOUD","MN","W-3","SAINT CLOUDMNW-3","SAINT CLOUDMNW-3",1101]
["SAINT CLOUD","MN","W-4","SAINT CLOUDMNW-4","SAINT CLOUDMNW-4",1200]
["SAINT CLOUD","MN","W-5","SAINT CLOUDMNW-5","SAINT CLOUDMNW-5",1275]
["SAINT CLOUD","MN","O-1E","SAINT CLOUDMNO-1E","SAINT CLOUDMNO-1E",1008]
["SAINT CLOUD","MN","O-2E","SAINT CLOUDMNO-2E","SAINT CLOUDMNO-2E",1086]
["SAINT CLOUD","MN","O-3E","SAINT CLOUDMNO-3E","SAINT CLOUDMNO-3E",1182]
["SAINT CLOUD","MN","O-1","SAINT CLOUDMNO-1","SAINT CLOUDMNO-1",771]
["SAINT CLOUD","MN","O-2","SAINT CLOUDMNO-2","SAINT CLOUDMNO-2",963]
["SAINT CLOUD","MN","O-3","SAINT CLOUDMNO-3","SAINT CLOUDMNO-3",1119]
["SAINT CLOUD","MN","O-4","SAINT CLOUDMNO-4","SAINT CLOUDMNO-4",1266]
["SAINT CLOUD","MN","O-5","SAINT CLOUDMNO-5","SAINT CLOUDMNO-5",1314]
["SAINT CLOUD","MN","O-6","SAINT CLOUDMNO-6","SAINT CLOUDMNO-6",1392]
["SAINT CLOUD","MN","O-7","SAINT CLOUDMNO-7","SAINT CLOUDMNO-7",1419]
["ROCHESTER","MN","E-1","ROCHESTERMNE-1","ROCHESTERMNE-1",693,693,693,693,693,771,888,933,1059,1107,888,1059,1113,1197,1260,1029,1098,1182,783,987,1128,1251,1293,1356,1383]
["ROCHESTER","MN","E-2","ROCHESTERMNE-2","ROCHESTERMNE-2",693]
["ROCHESTER","MN","E-3","ROCHESTERMNE-3","ROCHESTERMNE-3",693]
["ROCHESTER","MN","E-4","ROCHESTERMNE-4","ROCHESTERMNE-4",693]
["ROCHESTER","MN","E-5","ROCHESTERMNE-5","ROCHESTERMNE-5",771]
["ROCHESTER","MN","E-6","ROCHESTERMNE-6","ROCHESTERMNE-6",888]
["ROCHESTER","MN","E-7","ROCHESTERMNE-7","ROCHESTERMNE-7",933]
["ROCHESTER","MN","E-8","ROCHESTERMNE-8","ROCHESTERMNE-8",1059]
["ROCHESTER","MN","E-9","ROCHESTERMNE-9","ROCHESTERMNE-9",1107]
["ROCHESTER","MN","W-1","ROCHESTERMNW-1","ROCHESTERMNW-1",888]
["ROCHESTER","MN","W-2","ROCHESTERMNW-2","ROCHESTERMNW-2",1059]
["ROCHESTER","MN","W-3","ROCHESTERMNW-3","ROCHESTERMNW-3",1113]
["ROCHESTER","MN","W-4","ROCHESTERMNW-4","ROCHESTERMNW-4",1197]
["ROCHESTER","MN","W-5","ROCHESTERMNW-5","ROCHESTERMNW-5",1260]
["ROCHESTER","MN","O-1E","ROCHESTERMNO-1E","ROCHESTERMNO-1E",1029]
["ROCHESTER","MN","O-2E","ROCHESTERMNO-2E","ROCHESTERMNO-2E",1098]
["ROCHESTER","MN","O-3E","ROCHESTERMNO-3E","ROCHESTERMNO-3E",1182]
["ROCHESTER","MN","O-1","ROCHESTERMNO-1","ROCHESTERMNO-1",783]
["ROCHESTER","MN","O-2","ROCHESTERMNO-2","ROCHESTERMNO-2",987]
["ROCHESTER","MN","O-3","ROCHESTERMNO-3","ROCHESTERMNO-3",1128]
["ROCHESTER","MN","O-4","ROCHESTERMNO-4","ROCHESTERMNO-4",1251]
["ROCHESTER","MN","O-5","ROCHESTERMNO-5","ROCHESTERMNO-5",1293]
["ROCHESTER","MN","O-6","ROCHESTERMNO-6","ROCHESTERMNO-6",1356]
["ROCHESTER","MN","O-7","ROCHESTERMNO-7","ROCHESTERMNO-7",1383]
["KANSAS CITY","MO","E-1","KANSAS CITYMOE-1","KANSAS CITYMOE-1",765,765,765,765,765,861,921,1005,1119,1158,966,1119,1161,1230,1269,1095,1149,1221,906,1062,1176,1263,1338,1353,1365]
["KANSAS CITY","MO","E-2","KANSAS CITYMOE-2","KANSAS CITYMOE-2",765]
["KANSAS CITY","MO","E-3","KANSAS CITYMOE-3","KANSAS CITYMOE-3",765]
["KANSAS CITY","MO","E-4","KANSAS CITYMOE-4","KANSAS CITYMOE-4",765]
["KANSAS CITY","MO","E-5","KANSAS CITYMOE-5","KANSAS CITYMOE-5",861]
["KANSAS CITY","MO","E-6","KANSAS CITYMOE-6","KANSAS CITYMOE-6",921]
["KANSAS CITY","MO","E-7","KANSAS CITYMOE-7","KANSAS CITYMOE-7",1005]
["KANSAS CITY","MO","E-8","KANSAS CITYMOE-8","KANSAS CITYMOE-8",1119]
["KANSAS CITY","MO","E-9","KANSAS CITYMOE-9","KANSAS CITYMOE-9",1158]
["KANSAS CITY","MO","W-1","KANSAS CITYMOW-1","KANSAS CITYMOW-1",966]
["KANSAS CITY","MO","W-2","KANSAS CITYMOW-2","KANSAS CITYMOW-2",1119]
["KANSAS CITY","MO","W-3","KANSAS CITYMOW-3","KANSAS CITYMOW-3",1161]
["KANSAS CITY","MO","W-4","KANSAS CITYMOW-4","KANSAS CITYMOW-4",1230]
["KANSAS CITY","MO","W-5","KANSAS CITYMOW-5","KANSAS CITYMOW-5",1269]
["KANSAS CITY","MO","O-1E","KANSAS CITYMOO-1E","KANSAS CITYMOO-1E",1095]
["KANSAS CITY","MO","O-2E","KANSAS CITYMOO-2E","KANSAS CITYMOO-2E",1149]
["KANSAS CITY","MO","O-3E",{"$f":"A4482&B4482&C4482","v":"KANSAS CITYMOO-3E"},"KANSAS CITYMOO-3E",1221]
["KANSAS CITY","MO","O-1","KANSAS CITYMOO-1","KANSAS CITYMOO-1",906]
["KANSAS CITY","MO","O-2","KANSAS CITYMOO-2","KANSAS CITYMOO-2",1062]
["KANSAS CITY","MO","O-3","KANSAS CITYMOO-3","KANSAS CITYMOO-3",1176]
["KANSAS CITY","MO","O-4","KANSAS CITYMOO-4","KANSAS CITYMOO-4",1263]
["KANSAS CITY","MO","O-5","KANSAS CITYMOO-5","KANSAS CITYMOO-5",1338]
["KANSAS CITY","MO","O-6","KANSAS CITYMOO-6","KANSAS CITYMOO-6",1353]
["KANSAS CITY","MO","O-7","KANSAS CITYMOO-7","KANSAS CITYMOO-7",1365]
["ST. LOUIS","MO","E-1","ST. LOUISMOE-1","ST. LOUISMOE-1",870,870,870,870,870,993,1137,1149,1290,1377,1137,1287,1386,1518,1527,1233,1356,1515,1053,1203,1413,1527,1533,1545,1575]
["ST. LOUIS","MO","E-2","ST. LOUISMOE-2","ST. LOUISMOE-2",870]
["ST. LOUIS","MO","E-3","ST. LOUISMOE-3","ST. LOUISMOE-3",870]
["ST. LOUIS","MO","E-4","ST. LOUISMOE-4","ST. LOUISMOE-4",870]
["ST. LOUIS","MO","E-5","ST. LOUISMOE-5","ST. LOUISMOE-5",993]
["ST. LOUIS","MO","E-6","ST. LOUISMOE-6","ST. LOUISMOE-6",1137]
["ST. LOUIS","MO","E-7","ST. LOUISMOE-7","ST. LOUISMOE-7",1149]
["ST. LOUIS","MO","E-8","ST. LOUISMOE-8","ST. LOUISMOE-8",1290]
["ST. LOUIS","MO","E-9","ST. LOUISMOE-9","ST. LOUISMOE-9",1377]
["ST. LOUIS","MO","W-1","ST. LOUISMOW-1","ST. LOUISMOW-1",1137]
["ST. LOUIS","MO","W-2","ST. LOUISMOW-2","ST. LOUISMOW-2",1287]
["ST. LOUIS","MO","W-3","ST. LOUISMOW-3","ST. LOUISMOW-3",1386]
["ST. LOUIS","MO","W-4","ST. LOUISMOW-4","ST. LOUISMOW-4",1518]
["ST. LOUIS","MO","W-5","ST. LOUISMOW-5","ST. LOUISMOW-5",1527]
["ST. LOUIS","MO","O-1E","ST. LOUISMOO-1E","ST. LOUISMOO-1E",1233]
["ST. LOUIS","MO","O-2E","ST. LOUISMOO-2E","ST. LOUISMOO-2E",1356]
["ST. LOUIS","MO","O-3E","ST. LOUISMOO-3E","ST. LOUISMOO-3E",1515]
["ST. LOUIS","MO","O-1","ST. LOUISMOO-1","ST. LOUISMOO-1",1053]
["ST. LOUIS","MO","O-2","ST. LOUISMOO-2","ST. LOUISMOO-2",1203]
["ST. LOUIS","MO","O-3","ST. LOUISMOO-3","ST. LOUISMOO-3",1413]
["ST. LOUIS","MO","O-4","ST. LOUISMOO-4","ST. LOUISMOO-4",1527]
["ST. LOUIS","MO","O-5","ST. LOUISMOO-5","ST. LOUISMOO-5",1533]
["ST. LOUIS","MO","O-6","ST. LOUISMOO-6","ST. LOUISMOO-6",1545]
["ST. LOUIS","MO","O-7","ST. LOUISMOO-7","ST. LOUISMOO-7",1575]
["WHITEMAN AFB","MO","E-1","WHITEMAN AFBMOE-1","WHITEMAN AFBMOE-1",591,591,591,591,591,687,858,918,984,1050,858,957,1038,1164,1245,930,1014,1143,705,870,1062,1233,1284,1368,1395]
["WHITEMAN AFB","MO","E-2","WHITEMAN AFBMOE-2","WHITEMAN AFBMOE-2",591]
["WHITEMAN AFB","MO","E-3","WHITEMAN AFBMOE-3","WHITEMAN AFBMOE-3",591]
["WHITEMAN AFB","MO","E-4","WHITEMAN AFBMOE-4","WHITEMAN AFBMOE-4",591]
["WHITEMAN AFB","MO","E-5","WHITEMAN AFBMOE-5","WHITEMAN AFBMOE-5",687]
["WHITEMAN AFB","MO","E-6","WHITEMAN AFBMOE-6","WHITEMAN AFBMOE-6",858]
["WHITEMAN AFB","MO","E-7","WHITEMAN AFBMOE-7","WHITEMAN AFBMOE-7",918]
["WHITEMAN AFB","MO","E-8","WHITEMAN AFBMOE-8","WHITEMAN AFBMOE-8",984]
["WHITEMAN AFB","MO","E-9","WHITEMAN AFBMOE-9","WHITEMAN AFBMOE-9",1050]
["WHITEMAN AFB","MO","W-1","WHITEMAN AFBMOW-1","WHITEMAN AFBMOW-1",858]
["WHITEMAN AFB","MO","W-2","WHITEMAN AFBMOW-2","WHITEMAN AFBMOW-2",957]
["WHITEMAN AFB","MO","W-3","WHITEMAN AFBMOW-3","WHITEMAN AFBMOW-3",1038]
["WHITEMAN AFB","MO","W-4","WHITEMAN AFBMOW-4","WHITEMAN AFBMOW-4",1164]
["WHITEMAN AFB","MO","W-5","WHITEMAN AFBMOW-5","WHITEMAN AFBMOW-5",1245]
["WHITEMAN AFB","MO","O-1E","WHITEMAN AFBMOO-1E","WHITEMAN AFBMOO-1E",930]
["WHITEMAN AFB","MO","O-2E","WHITEMAN AFBMOO-2E","WHITEMAN AFBMOO-2E",1014]
["WHITEMAN AFB","MO","O-3E","WHITEMAN AFBMOO-3E","WHITEMAN AFBMOO-3E",1143]
["WHITEMAN AFB","MO","O-1","WHITEMAN AFBMOO-1","WHITEMAN AFBMOO-1",705]
["WHITEMAN AFB","MO","O-2","WHITEMAN AFBMOO-2","WHITEMAN AFBMOO-2",870]
["WHITEMAN AFB","MO","O-3","WHITEMAN AFBMOO-3","WHITEMAN AFBMOO-3",1062]
["WHITEMAN AFB","MO","O-4","WHITEMAN AFBMOO-4","WHITEMAN AFBMOO-4",1233]
["WHITEMAN AFB","MO","O-5","WHITEMAN AFBMOO-5","WHITEMAN AFBMOO-5",1284]
["WHITEMAN AFB","MO","O-6","WHITEMAN AFBMOO-6","WHITEMAN AFBMOO-6",1368]
["WHITEMAN AFB","MO","O-7","WHITEMAN AFBMOO-7","WHITEMAN AFBMOO-7",1395]
["FORT LEONARD WOOD","MO","E-1","FORT LEONARD WOODMOE-1","FORT LEONARD WOODMOE-1",717,717,717,717,717,792,840,924,1032,1062,885,1029,1065,1116,1125,1011,1056,1113,828,978,1077,1122,1128,1137,1158]
["FORT LEONARD WOOD","MO","E-2","FORT LEONARD WOODMOE-2","FORT LEONARD WOODMOE-2",717]
["FORT LEONARD WOOD","MO","E-3","FORT LEONARD WOODMOE-3","FORT LEONARD WOODMOE-3",717]
["FORT LEONARD WOOD","MO","E-4","FORT LEONARD WOODMOE-4","FORT LEONARD WOODMOE-4",717]
["FORT LEONARD WOOD","MO","E-5","FORT LEONARD WOODMOE-5","FORT LEONARD WOODMOE-5",792]
["FORT LEONARD WOOD","MO","E-6","FORT LEONARD WOODMOE-6","FORT LEONARD WOODMOE-6",840]
["FORT LEONARD WOOD","MO","E-7","FORT LEONARD WOODMOE-7","FORT LEONARD WOODMOE-7",924]
["FORT LEONARD WOOD","MO","E-8","FORT LEONARD WOODMOE-8","FORT LEONARD WOODMOE-8",1032]
["FORT LEONARD WOOD","MO","E-9",{"$f":"A4546&B4546&C4546","v":"FORT LEONARD WOODMOE-9"},"FORT LEONARD WOODMOE-9",1062]
["FORT LEONARD WOOD","MO","W-1","FORT LEONARD WOODMOW-1","FORT LEONARD WOODMOW-1",885]
["FORT LEONARD WOOD","MO","W-2","FORT LEONARD WOODMOW-2","FORT LEONARD WOODMOW-2",1029]
["FORT LEONARD WOOD","MO","W-3","FORT LEONARD WOODMOW-3","FORT LEONARD WOODMOW-3",1065]
["FORT LEONARD WOOD","MO","W-4","FORT LEONARD WOODMOW-4","FORT LEONARD WOODMOW-4",1116]
["FORT LEONARD WOOD","MO","W-5","FORT LEONARD WOODMOW-5","FORT LEONARD WOODMOW-5",1125]
["FORT LEONARD WOOD","MO","O-1E","FORT LEONARD WOODMOO-1E","FORT LEONARD WOODMOO-1E",1011]
["FORT LEONARD WOOD","MO","O-2E","FORT LEONARD WOODMOO-2E","FORT LEONARD WOODMOO-2E",1056]
["FORT LEONARD WOOD","MO","O-3E","FORT LEONARD WOODMOO-3E","FORT LEONARD WOODMOO-3E",1113]
["FORT LEONARD WOOD","MO","O-1","FORT LEONARD WOODMOO-1","FORT LEONARD WOODMOO-1",828]
["FORT LEONARD WOOD","MO","O-2","FORT LEONARD WOODMOO-2","FORT LEONARD WOODMOO-2",978]
["FORT LEONARD WOOD","MO","O-3","FORT LEONARD WOODMOO-3","FORT LEONARD WOODMOO-3",1077]
["FORT LEONARD WOOD","MO","O-4","FORT LEONARD WOODMOO-4","FORT LEONARD WOODMOO-4",1122]
["FORT LEONARD WOOD","MO","O-5","FORT LEONARD WOODMOO-5","FORT LEONARD WOODMOO-5",1128]
["FORT LEONARD WOOD","MO","O-6","FORT LEONARD WOODMOO-6","FORT LEONARD WOODMOO-6",1137]
["FORT LEONARD WOOD","MO","O-7","FORT LEONARD WOODMOO-7","FORT LEONARD WOODMOO-7",1158]
["SPRINGFIELD","MO","E-1","SPRINGFIELDMOE-1","SPRINGFIELDMOE-1",705,705,705,705,705,816,882,945,1011,1020,915,1011,1023,1047,1086,1005,1020,1035,873,984,1026,1080,1143,1155,1167]
["SPRINGFIELD","MO","E-2","SPRINGFIELDMOE-2","SPRINGFIELDMOE-2",705]
["SPRINGFIELD","MO","E-3","SPRINGFIELDMOE-3","SPRINGFIELDMOE-3",705]
["SPRINGFIELD","MO","E-4","SPRINGFIELDMOE-4","SPRINGFIELDMOE-4",705]
["SPRINGFIELD","MO","E-5","SPRINGFIELDMOE-5","SPRINGFIELDMOE-5",816]
["SPRINGFIELD","MO","E-6","SPRINGFIELDMOE-6","SPRINGFIELDMOE-6",882]
["SPRINGFIELD","MO","E-7","SPRINGFIELDMOE-7","SPRINGFIELDMOE-7",945]
["SPRINGFIELD","MO","E-8","SPRINGFIELDMOE-8","SPRINGFIELDMOE-8",1011]
["SPRINGFIELD","MO","E-9","SPRINGFIELDMOE-9","SPRINGFIELDMOE-9",1020]
["SPRINGFIELD","MO","W-1","SPRINGFIELDMOW-1","SPRINGFIELDMOW-1",915]
["SPRINGFIELD","MO","W-2","SPRINGFIELDMOW-2","SPRINGFIELDMOW-2",1011]
["SPRINGFIELD","MO","W-3","SPRINGFIELDMOW-3","SPRINGFIELDMOW-3",1023]
["SPRINGFIELD","MO","W-4","SPRINGFIELDMOW-4","SPRINGFIELDMOW-4",1047]
["SPRINGFIELD","MO","W-5","SPRINGFIELDMOW-5","SPRINGFIELDMOW-5",1086]
["SPRINGFIELD","MO","O-1E","SPRINGFIELDMOO-1E","SPRINGFIELDMOO-1E",1005]
["SPRINGFIELD","MO","O-2E","SPRINGFIELDMOO-2E","SPRINGFIELDMOO-2E",1020]
["SPRINGFIELD","MO","O-3E","SPRINGFIELDMOO-3E","SPRINGFIELDMOO-3E",1035]
["SPRINGFIELD","MO","O-1","SPRINGFIELDMOO-1","SPRINGFIELDMOO-1",873]
["SPRINGFIELD","MO","O-2","SPRINGFIELDMOO-2","SPRINGFIELDMOO-2",984]
["SPRINGFIELD","MO","O-3","SPRINGFIELDMOO-3","SPRINGFIELDMOO-3",1026]
["SPRINGFIELD","MO","O-4","SPRINGFIELDMOO-4","SPRINGFIELDMOO-4",1080]
["SPRINGFIELD","MO","O-5","SPRINGFIELDMOO-5","SPRINGFIELDMOO-5",1143]
["SPRINGFIELD","MO","O-6","SPRINGFIELDMOO-6","SPRINGFIELDMOO-6",1155]
["SPRINGFIELD","MO","O-7","SPRINGFIELDMOO-7","SPRINGFIELDMOO-7",1167]
["COLUMBIA/JEFFERSON CITY","MO","E-1","COLUMBIA/JEFFERSON CITYMOE-1","COLUMBIA/JEFFERSON CITYMOE-1",693,693,693,693,693,741,798,828,918,975,804,918,981,1068,1095,882,963,1062,768,864,999,1089,1107,1134,1155]
["COLUMBIA/JEFFERSON CITY","MO","E-2","COLUMBIA/JEFFERSON CITYMOE-2","COLUMBIA/JEFFERSON CITYMOE-2",693]
["COLUMBIA/JEFFERSON CITY","MO","E-3","COLUMBIA/JEFFERSON CITYMOE-3","COLUMBIA/JEFFERSON CITYMOE-3",693]
["COLUMBIA/JEFFERSON CITY","MO","E-4","COLUMBIA/JEFFERSON CITYMOE-4","COLUMBIA/JEFFERSON CITYMOE-4",693]
["COLUMBIA/JEFFERSON CITY","MO","E-5","COLUMBIA/JEFFERSON CITYMOE-5","COLUMBIA/JEFFERSON CITYMOE-5",741]
["COLUMBIA/JEFFERSON CITY","MO","E-6","COLUMBIA/JEFFERSON CITYMOE-6","COLUMBIA/JEFFERSON CITYMOE-6",798]
["COLUMBIA/JEFFERSON CITY","MO","E-7","COLUMBIA/JEFFERSON CITYMOE-7","COLUMBIA/JEFFERSON CITYMOE-7",828]
["COLUMBIA/JEFFERSON CITY","MO","E-8","COLUMBIA/JEFFERSON CITYMOE-8","COLUMBIA/JEFFERSON CITYMOE-8",918]
["COLUMBIA/JEFFERSON CITY","MO","E-9","COLUMBIA/JEFFERSON CITYMOE-9","COLUMBIA/JEFFERSON CITYMOE-9",975]
["COLUMBIA/JEFFERSON CITY","MO","W-1","COLUMBIA/JEFFERSON CITYMOW-1","COLUMBIA/JEFFERSON CITYMOW-1",804]
["COLUMBIA/JEFFERSON CITY","MO","W-2","COLUMBIA/JEFFERSON CITYMOW-2","COLUMBIA/JEFFERSON CITYMOW-2",918]
["COLUMBIA/JEFFERSON CITY","MO","W-3","COLUMBIA/JEFFERSON CITYMOW-3","COLUMBIA/JEFFERSON CITYMOW-3",981]
["COLUMBIA/JEFFERSON CITY","MO","W-4","COLUMBIA/JEFFERSON CITYMOW-4","COLUMBIA/JEFFERSON CITYMOW-4",1068]
["COLUMBIA/JEFFERSON CITY","MO","W-5","COLUMBIA/JEFFERSON CITYMOW-5","COLUMBIA/JEFFERSON CITYMOW-5",1095]
["COLUMBIA/JEFFERSON CITY","MO","O-1E","COLUMBIA/JEFFERSON CITYMOO-1E","COLUMBIA/JEFFERSON CITYMOO-1E",882]
["COLUMBIA/JEFFERSON CITY","MO","O-2E","COLUMBIA/JEFFERSON CITYMOO-2E","COLUMBIA/JEFFERSON CITYMOO-2E",963]
["COLUMBIA/JEFFERSON CITY","MO","O-3E","COLUMBIA/JEFFERSON CITYMOO-3E","COLUMBIA/JEFFERSON CITYMOO-3E",1062]
["COLUMBIA/JEFFERSON CITY","MO","O-1","COLUMBIA/JEFFERSON CITYMOO-1","COLUMBIA/JEFFERSON CITYMOO-1",768]
["COLUMBIA/JEFFERSON CITY","MO","O-2","COLUMBIA/JEFFERSON CITYMOO-2","COLUMBIA/JEFFERSON CITYMOO-2",864]
["COLUMBIA/JEFFERSON CITY","MO","O-3","COLUMBIA/JEFFERSON CITYMOO-3","COLUMBIA/JEFFERSON CITYMOO-3",999]
["COLUMBIA/JEFFERSON CITY","MO","O-4","COLUMBIA/JEFFERSON CITYMOO-4","COLUMBIA/JEFFERSON CITYMOO-4",1089]
["COLUMBIA/JEFFERSON CITY","MO","O-5","COLUMBIA/JEFFERSON CITYMOO-5","COLUMBIA/JEFFERSON CITYMOO-5",1107]
["COLUMBIA/JEFFERSON CITY","MO","O-6","COLUMBIA/JEFFERSON CITYMOO-6","COLUMBIA/JEFFERSON CITYMOO-6",1134]
["COLUMBIA/JEFFERSON CITY","MO","O-7","COLUMBIA/JEFFERSON CITYMOO-7","COLUMBIA/JEFFERSON CITYMOO-7",1155]
["CAPE GIRARDEAU","MO","E-1",{"$f":"A4610&B4610&C4610","v":"CAPE GIRARDEAUMOE-1"},"CAPE GIRARDEAUMOE-1",648,648,648,648,648,765,909,933,1056,1116,909,1056,1122,1221,1254,1017,1104,1212,780,966,1143,1248,1269,1305,1329]
["CAPE GIRARDEAU","MO","E-2","CAPE GIRARDEAUMOE-2","CAPE GIRARDEAUMOE-2",648]
["CAPE GIRARDEAU","MO","E-3","CAPE GIRARDEAUMOE-3","CAPE GIRARDEAUMOE-3",648]
["CAPE GIRARDEAU","MO","E-4","CAPE GIRARDEAUMOE-4","CAPE GIRARDEAUMOE-4",648]
["CAPE GIRARDEAU","MO","E-5","CAPE GIRARDEAUMOE-5","CAPE GIRARDEAUMOE-5",765]
["CAPE GIRARDEAU","MO","E-6","CAPE GIRARDEAUMOE-6","CAPE GIRARDEAUMOE-6",909]
["CAPE GIRARDEAU","MO","E-7","CAPE GIRARDEAUMOE-7","CAPE GIRARDEAUMOE-7",933]
["CAPE GIRARDEAU","MO","E-8","CAPE GIRARDEAUMOE-8","CAPE GIRARDEAUMOE-8",1056]
["CAPE GIRARDEAU","MO","E-9","CAPE GIRARDEAUMOE-9","CAPE GIRARDEAUMOE-9",1116]
["CAPE GIRARDEAU","MO","W-1","CAPE GIRARDEAUMOW-1","CAPE GIRARDEAUMOW-1",909]
["CAPE GIRARDEAU","MO","W-2","CAPE GIRARDEAUMOW-2","CAPE GIRARDEAUMOW-2",1056]
["CAPE GIRARDEAU","MO","W-3","CAPE GIRARDEAUMOW-3","CAPE GIRARDEAUMOW-3",1122]
["CAPE GIRARDEAU","MO","W-4","CAPE GIRARDEAUMOW-4","CAPE GIRARDEAUMOW-4",1221]
["CAPE GIRARDEAU","MO","W-5","CAPE GIRARDEAUMOW-5","CAPE GIRARDEAUMOW-5",1254]
["CAPE GIRARDEAU","MO","O-1E","CAPE GIRARDEAUMOO-1E","CAPE GIRARDEAUMOO-1E",1017]
["CAPE GIRARDEAU","MO","O-2E","CAPE GIRARDEAUMOO-2E","CAPE GIRARDEAUMOO-2E",1104]
["CAPE GIRARDEAU","MO","O-3E","CAPE GIRARDEAUMOO-3E","CAPE GIRARDEAUMOO-3E",1212]
["CAPE GIRARDEAU","MO","O-1","CAPE GIRARDEAUMOO-1","CAPE GIRARDEAUMOO-1",780]
["CAPE GIRARDEAU","MO","O-2","CAPE GIRARDEAUMOO-2","CAPE GIRARDEAUMOO-2",966]
["CAPE GIRARDEAU","MO","O-3","CAPE GIRARDEAUMOO-3","CAPE GIRARDEAUMOO-3",1143]
["CAPE GIRARDEAU","MO","O-4","CAPE GIRARDEAUMOO-4","CAPE GIRARDEAUMOO-4",1248]
["CAPE GIRARDEAU","MO","O-5","CAPE GIRARDEAUMOO-5","CAPE GIRARDEAUMOO-5",1269]
["CAPE GIRARDEAU","MO","O-6","CAPE GIRARDEAUMOO-6","CAPE GIRARDEAUMOO-6",1305]
["CAPE GIRARDEAU","MO","O-7","CAPE GIRARDEAUMOO-7","CAPE GIRARDEAUMOO-7",1329]
["SAINT JOSEPH","MO","E-1","SAINT JOSEPHMOE-1","SAINT JOSEPHMOE-1",597,597,597,597,597,678,849,876,948,1020,852,945,1026,1143,1179,903,1005,1134,696,864,1050,1173,1197,1233,1257]
["SAINT JOSEPH","MO","E-2","SAINT JOSEPHMOE-2","SAINT JOSEPHMOE-2",597]
["SAINT JOSEPH","MO","E-3","SAINT JOSEPHMOE-3","SAINT JOSEPHMOE-3",597]
["SAINT JOSEPH","MO","E-4","SAINT JOSEPHMOE-4","SAINT JOSEPHMOE-4",597]
["SAINT JOSEPH","MO","E-5","SAINT JOSEPHMOE-5","SAINT JOSEPHMOE-5",678]
["SAINT JOSEPH","MO","E-6","SAINT JOSEPHMOE-6","SAINT JOSEPHMOE-6",849]
["SAINT JOSEPH","MO","E-7","SAINT JOSEPHMOE-7","SAINT JOSEPHMOE-7",876]
["SAINT JOSEPH","MO","E-8","SAINT JOSEPHMOE-8","SAINT JOSEPHMOE-8",948]
["SAINT JOSEPH","MO","E-9","SAINT JOSEPHMOE-9","SAINT JOSEPHMOE-9",1020]
["SAINT JOSEPH","MO","W-1","SAINT JOSEPHMOW-1","SAINT JOSEPHMOW-1",852]
["SAINT JOSEPH","MO","W-2","SAINT JOSEPHMOW-2","SAINT JOSEPHMOW-2",945]
["SAINT JOSEPH","MO","W-3","SAINT JOSEPHMOW-3","SAINT JOSEPHMOW-3",1026]
["SAINT JOSEPH","MO","W-4","SAINT JOSEPHMOW-4","SAINT JOSEPHMOW-4",1143]
["SAINT JOSEPH","MO","W-5","SAINT JOSEPHMOW-5","SAINT JOSEPHMOW-5",1179]
["SAINT JOSEPH","MO","O-1E","SAINT JOSEPHMOO-1E","SAINT JOSEPHMOO-1E",903]
["SAINT JOSEPH","MO","O-2E","SAINT JOSEPHMOO-2E","SAINT JOSEPHMOO-2E",1005]
["SAINT JOSEPH","MO","O-3E","SAINT JOSEPHMOO-3E","SAINT JOSEPHMOO-3E",1134]
["SAINT JOSEPH","MO","O-1","SAINT JOSEPHMOO-1","SAINT JOSEPHMOO-1",696]
["SAINT JOSEPH","MO","O-2","SAINT JOSEPHMOO-2","SAINT JOSEPHMOO-2",864]
["SAINT JOSEPH","MO","O-3","SAINT JOSEPHMOO-3","SAINT JOSEPHMOO-3",1050]
["SAINT JOSEPH","MO","O-4","SAINT JOSEPHMOO-4","SAINT JOSEPHMOO-4",1173]
["SAINT JOSEPH","MO","O-5","SAINT JOSEPHMOO-5","SAINT JOSEPHMOO-5",1197]
["SAINT JOSEPH","MO","O-6","SAINT JOSEPHMOO-6","SAINT JOSEPHMOO-6",1233]
["SAINT JOSEPH","MO","O-7","SAINT JOSEPHMOO-7","SAINT JOSEPHMOO-7",1257]
["GULFPORT","MS","E-1","GULFPORTMSE-1","GULFPORTMSE-1",918,918,918,918,918,1008,1068,1158,1287,1338,1116,1284,1344,1422,1431,1254,1326,1419,1053,1218,1359,1431,1464,1479,1494]
["GULFPORT","MS","E-2","GULFPORTMSE-2","GULFPORTMSE-2",918]
["GULFPORT","MS","E-3","GULFPORTMSE-3","GULFPORTMSE-3",918]
["GULFPORT","MS","E-4","GULFPORTMSE-4","GULFPORTMSE-4",918]
["GULFPORT","MS","E-5","GULFPORTMSE-5","GULFPORTMSE-5",1008]
["GULFPORT","MS","E-6","GULFPORTMSE-6","GULFPORTMSE-6",1068]
["GULFPORT","MS","E-7","GULFPORTMSE-7","GULFPORTMSE-7",1158]
["GULFPORT","MS","E-8","GULFPORTMSE-8","GULFPORTMSE-8",1287]
["GULFPORT","MS","E-9","GULFPORTMSE-9","GULFPORTMSE-9",1338]
["GULFPORT","MS","W-1","GULFPORTMSW-1","GULFPORTMSW-1",1116]
["GULFPORT","MS","W-2","GULFPORTMSW-2","GULFPORTMSW-2",1284]
["GULFPORT","MS","W-3","GULFPORTMSW-3","GULFPORTMSW-3",1344]
["GULFPORT","MS","W-4","GULFPORTMSW-4","GULFPORTMSW-4",1422]
["GULFPORT","MS","W-5","GULFPORTMSW-5","GULFPORTMSW-5",1431]
["GULFPORT","MS","O-1E","GULFPORTMSO-1E","GULFPORTMSO-1E",1254]
["GULFPORT","MS","O-2E","GULFPORTMSO-2E","GULFPORTMSO-2E",1326]
["GULFPORT","MS","O-3E",{"$f":"A4674&B4674&C4674","v":"GULFPORTMSO-3E"},"GULFPORTMSO-3E",1419]
["GULFPORT","MS","O-1","GULFPORTMSO-1","GULFPORTMSO-1",1053]
["GULFPORT","MS","O-2","GULFPORTMSO-2","GULFPORTMSO-2",1218]
["GULFPORT","MS","O-3","GULFPORTMSO-3","GULFPORTMSO-3",1359]
["GULFPORT","MS","O-4","GULFPORTMSO-4","GULFPORTMSO-4",1431]
["GULFPORT","MS","O-5","GULFPORTMSO-5","GULFPORTMSO-5",1464]
["GULFPORT","MS","O-6","GULFPORTMSO-6","GULFPORTMSO-6",1479]
["GULFPORT","MS","O-7","GULFPORTMSO-7","GULFPORTMSO-7",1494]
["COLUMBUS AFB","MS","E-1","COLUMBUS AFBMSE-1","COLUMBUS AFBMSE-1",753,753,753,753,753,840,882,921,984,1065,888,948,1038,1173,1248,936,1014,1155,882,897,1062,1239,1287,1365,1392]
["COLUMBUS AFB","MS","E-2","COLUMBUS AFBMSE-2","COLUMBUS AFBMSE-2",753]
["COLUMBUS AFB","MS","E-3","COLUMBUS AFBMSE-3","COLUMBUS AFBMSE-3",753]
["COLUMBUS AFB","MS","E-4","COLUMBUS AFBMSE-4","COLUMBUS AFBMSE-4",753]
["COLUMBUS AFB","MS","E-5","COLUMBUS AFBMSE-5","COLUMBUS AFBMSE-5",840]
["COLUMBUS AFB","MS","E-6","COLUMBUS AFBMSE-6","COLUMBUS AFBMSE-6",882]
["COLUMBUS AFB","MS","E-7","COLUMBUS AFBMSE-7","COLUMBUS AFBMSE-7",921]
["COLUMBUS AFB","MS","E-8","COLUMBUS AFBMSE-8","COLUMBUS AFBMSE-8",984]
["COLUMBUS AFB","MS","E-9","COLUMBUS AFBMSE-9","COLUMBUS AFBMSE-9",1065]
["COLUMBUS AFB","MS","W-1","COLUMBUS AFBMSW-1","COLUMBUS AFBMSW-1",888]
["COLUMBUS AFB","MS","W-2","COLUMBUS AFBMSW-2","COLUMBUS AFBMSW-2",948]
["COLUMBUS AFB","MS","W-3","COLUMBUS AFBMSW-3","COLUMBUS AFBMSW-3",1038]
["COLUMBUS AFB","MS","W-4","COLUMBUS AFBMSW-4","COLUMBUS AFBMSW-4",1173]
["COLUMBUS AFB","MS","W-5","COLUMBUS AFBMSW-5","COLUMBUS AFBMSW-5",1248]
["COLUMBUS AFB","MS","O-1E","COLUMBUS AFBMSO-1E","COLUMBUS AFBMSO-1E",936]
["COLUMBUS AFB","MS","O-2E","COLUMBUS AFBMSO-2E","COLUMBUS AFBMSO-2E",1014]
["COLUMBUS AFB","MS","O-3E","COLUMBUS AFBMSO-3E","COLUMBUS AFBMSO-3E",1155]
["COLUMBUS AFB","MS","O-1","COLUMBUS AFBMSO-1","COLUMBUS AFBMSO-1",882]
["COLUMBUS AFB","MS","O-2","COLUMBUS AFBMSO-2","COLUMBUS AFBMSO-2",897]
["COLUMBUS AFB","MS","O-3","COLUMBUS AFBMSO-3","COLUMBUS AFBMSO-3",1062]
["COLUMBUS AFB","MS","O-4","COLUMBUS AFBMSO-4","COLUMBUS AFBMSO-4",1239]
["COLUMBUS AFB","MS","O-5","COLUMBUS AFBMSO-5","COLUMBUS AFBMSO-5",1287]
["COLUMBUS AFB","MS","O-6","COLUMBUS AFBMSO-6","COLUMBUS AFBMSO-6",1365]
["COLUMBUS AFB","MS","O-7","COLUMBUS AFBMSO-7","COLUMBUS AFBMSO-7",1392]
["JACKSON","MS","E-1","JACKSONMSE-1","JACKSONMSE-1",888,888,888,888,888,999,1062,1116,1188,1209,1092,1188,1212,1269,1368,1173,1206,1245,1053,1152,1218,1356,1419,1521,1551]
["JACKSON","MS","E-2","JACKSONMSE-2","JACKSONMSE-2",888]
["JACKSON","MS","E-3","JACKSONMSE-3","JACKSONMSE-3",888]
["JACKSON","MS","E-4","JACKSONMSE-4","JACKSONMSE-4",888]
["JACKSON","MS","E-5","JACKSONMSE-5","JACKSONMSE-5",999]
["JACKSON","MS","E-6","JACKSONMSE-6","JACKSONMSE-6",1062]
["JACKSON","MS","E-7","JACKSONMSE-7","JACKSONMSE-7",1116]
["JACKSON","MS","E-8","JACKSONMSE-8","JACKSONMSE-8",1188]
["JACKSON","MS","E-9","JACKSONMSE-9","JACKSONMSE-9",1209]
["JACKSON","MS","W-1","JACKSONMSW-1","JACKSONMSW-1",1092]
["JACKSON","MS","W-2","JACKSONMSW-2","JACKSONMSW-2",1188]
["JACKSON","MS","W-3","JACKSONMSW-3","JACKSONMSW-3",1212]
["JACKSON","MS","W-4","JACKSONMSW-4","JACKSONMSW-4",1269]
["JACKSON","MS","W-5","JACKSONMSW-5","JACKSONMSW-5",1368]
["JACKSON","MS","O-1E","JACKSONMSO-1E","JACKSONMSO-1E",1173]
["JACKSON","MS","O-2E","JACKSONMSO-2E","JACKSONMSO-2E",1206]
["JACKSON","MS","O-3E","JACKSONMSO-3E","JACKSONMSO-3E",1245]
["JACKSON","MS","O-1","JACKSONMSO-1","JACKSONMSO-1",1053]
["JACKSON","MS","O-2","JACKSONMSO-2","JACKSONMSO-2",1152]
["JACKSON","MS","O-3","JACKSONMSO-3","JACKSONMSO-3",1218]
["JACKSON","MS","O-4","JACKSONMSO-4","JACKSONMSO-4",1356]
["JACKSON","MS","O-5","JACKSONMSO-5","JACKSONMSO-5",1419]
["JACKSON","MS","O-6","JACKSONMSO-6","JACKSONMSO-6",1521]
["JACKSON","MS","O-7","JACKSONMSO-7","JACKSONMSO-7",1551]
["MERIDIAN","MS","E-1","MERIDIANMSE-1","MERIDIANMSE-1",771,771,771,771,771,840,993,1002,1113,1194,993,1110,1203,1326,1338,1059,1176,1326,876,1029,1230,1335,1371,1383,1398]
["MERIDIAN","MS","E-2","MERIDIANMSE-2","MERIDIANMSE-2",771]
["MERIDIAN","MS","E-3","MERIDIANMSE-3","MERIDIANMSE-3",771]
["MERIDIAN","MS","E-4","MERIDIANMSE-4","MERIDIANMSE-4",771]
["MERIDIAN","MS","E-5","MERIDIANMSE-5","MERIDIANMSE-5",840]
["MERIDIAN","MS","E-6","MERIDIANMSE-6","MERIDIANMSE-6",993]
["MERIDIAN","MS","E-7","MERIDIANMSE-7","MERIDIANMSE-7",1002]
["MERIDIAN","MS","E-8","MERIDIANMSE-8","MERIDIANMSE-8",1113]
["MERIDIAN","MS","E-9",{"$f":"A4738&B4738&C4738","v":"MERIDIANMSE-9"},"MERIDIANMSE-9",1194]
["MERIDIAN","MS","W-1","MERIDIANMSW-1","MERIDIANMSW-1",993]
["MERIDIAN","MS","W-2","MERIDIANMSW-2","MERIDIANMSW-2",1110]
["MERIDIAN","MS","W-3","MERIDIANMSW-3","MERIDIANMSW-3",1203]
["MERIDIAN","MS","W-4","MERIDIANMSW-4","MERIDIANMSW-4",1326]
["MERIDIAN","MS","W-5","MERIDIANMSW-5","MERIDIANMSW-5",1338]
["MERIDIAN","MS","O-1E","MERIDIANMSO-1E","MERIDIANMSO-1E",1059]
["MERIDIAN","MS","O-2E","MERIDIANMSO-2E","MERIDIANMSO-2E",1176]
["MERIDIAN","MS","O-3E","MERIDIANMSO-3E","MERIDIANMSO-3E",1326]
["MERIDIAN","MS","O-1","MERIDIANMSO-1","MERIDIANMSO-1",876]
["MERIDIAN","MS","O-2","MERIDIANMSO-2","MERIDIANMSO-2",1029]
["MERIDIAN","MS","O-3","MERIDIANMSO-3","MERIDIANMSO-3",1230]
["MERIDIAN","MS","O-4","MERIDIANMSO-4","MERIDIANMSO-4",1335]
["MERIDIAN","MS","O-5","MERIDIANMSO-5","MERIDIANMSO-5",1371]
["MERIDIAN","MS","O-6","MERIDIANMSO-6","MERIDIANMSO-6",1383]
["MERIDIAN","MS","O-7","MERIDIANMSO-7","MERIDIANMSO-7",1398]
["HATTIESBURG","MS","E-1","HATTIESBURGMSE-1","HATTIESBURGMSE-1",807,807,807,807,807,891,948,1035,1140,1164,993,1140,1167,1206,1224,1125,1161,1203,936,1095,1176,1221,1233,1251,1275]
["HATTIESBURG","MS","E-2","HATTIESBURGMSE-2","HATTIESBURGMSE-2",807]
["HATTIESBURG","MS","E-3","HATTIESBURGMSE-3","HATTIESBURGMSE-3",807]
["HATTIESBURG","MS","E-4","HATTIESBURGMSE-4","HATTIESBURGMSE-4",807]
["HATTIESBURG","MS","E-5","HATTIESBURGMSE-5","HATTIESBURGMSE-5",891]
["HATTIESBURG","MS","E-6","HATTIESBURGMSE-6","HATTIESBURGMSE-6",948]
["HATTIESBURG","MS","E-7","HATTIESBURGMSE-7","HATTIESBURGMSE-7",1035]
["HATTIESBURG","MS","E-8","HATTIESBURGMSE-8","HATTIESBURGMSE-8",1140]
["HATTIESBURG","MS","E-9","HATTIESBURGMSE-9","HATTIESBURGMSE-9",1164]
["HATTIESBURG","MS","W-1","HATTIESBURGMSW-1","HATTIESBURGMSW-1",993]
["HATTIESBURG","MS","W-2","HATTIESBURGMSW-2","HATTIESBURGMSW-2",1140]
["HATTIESBURG","MS","W-3","HATTIESBURGMSW-3","HATTIESBURGMSW-3",1167]
["HATTIESBURG","MS","W-4","HATTIESBURGMSW-4","HATTIESBURGMSW-4",1206]
["HATTIESBURG","MS","W-5","HATTIESBURGMSW-5","HATTIESBURGMSW-5",1224]
["HATTIESBURG","MS","O-1E","HATTIESBURGMSO-1E","HATTIESBURGMSO-1E",1125]
["HATTIESBURG","MS","O-2E","HATTIESBURGMSO-2E","HATTIESBURGMSO-2E",1161]
["HATTIESBURG","MS","O-3E","HATTIESBURGMSO-3E","HATTIESBURGMSO-3E",1203]
["HATTIESBURG","MS","O-1","HATTIESBURGMSO-1","HATTIESBURGMSO-1",936]
["HATTIESBURG","MS","O-2","HATTIESBURGMSO-2","HATTIESBURGMSO-2",1095]
["HATTIESBURG","MS","O-3","HATTIESBURGMSO-3","HATTIESBURGMSO-3",1176]
["HATTIESBURG","MS","O-4","HATTIESBURGMSO-4","HATTIESBURGMSO-4",1221]
["HATTIESBURG","MS","O-5","HATTIESBURGMSO-5","HATTIESBURGMSO-5",1233]
["HATTIESBURG","MS","O-6","HATTIESBURGMSO-6","HATTIESBURGMSO-6",1251]
["HATTIESBURG","MS","O-7","HATTIESBURGMSO-7","HATTIESBURGMSO-7",1275]
["PASCAGOULA","MS","E-1","PASCAGOULAMSE-1","PASCAGOULAMSE-1",951,951,951,951,951,1017,1056,1098,1191,1272,1077,1188,1278,1404,1434,1140,1254,1395,1047,1125,1305,1428,1449,1479,1509]
["PASCAGOULA","MS","E-2","PASCAGOULAMSE-2","PASCAGOULAMSE-2",951]
["PASCAGOULA","MS","E-3","PASCAGOULAMSE-3","PASCAGOULAMSE-3",951]
["PASCAGOULA","MS","E-4","PASCAGOULAMSE-4","PASCAGOULAMSE-4",951]
["PASCAGOULA","MS","E-5","PASCAGOULAMSE-5","PASCAGOULAMSE-5",1017]
["PASCAGOULA","MS","E-6","PASCAGOULAMSE-6","PASCAGOULAMSE-6",1056]
["PASCAGOULA","MS","E-7","PASCAGOULAMSE-7","PASCAGOULAMSE-7",1098]
["PASCAGOULA","MS","E-8","PASCAGOULAMSE-8","PASCAGOULAMSE-8",1191]
["PASCAGOULA","MS","E-9","PASCAGOULAMSE-9","PASCAGOULAMSE-9",1272]
["PASCAGOULA","MS","W-1","PASCAGOULAMSW-1","PASCAGOULAMSW-1",1077]
["PASCAGOULA","MS","W-2","PASCAGOULAMSW-2","PASCAGOULAMSW-2",1188]
["PASCAGOULA","MS","W-3","PASCAGOULAMSW-3","PASCAGOULAMSW-3",1278]
["PASCAGOULA","MS","W-4","PASCAGOULAMSW-4","PASCAGOULAMSW-4",1404]
["PASCAGOULA","MS","W-5","PASCAGOULAMSW-5","PASCAGOULAMSW-5",1434]
["PASCAGOULA","MS","O-1E","PASCAGOULAMSO-1E","PASCAGOULAMSO-1E",1140]
["PASCAGOULA","MS","O-2E","PASCAGOULAMSO-2E","PASCAGOULAMSO-2E",1254]
["PASCAGOULA","MS","O-3E","PASCAGOULAMSO-3E","PASCAGOULAMSO-3E",1395]
["PASCAGOULA","MS","O-1","PASCAGOULAMSO-1","PASCAGOULAMSO-1",1047]
["PASCAGOULA","MS","O-2","PASCAGOULAMSO-2","PASCAGOULAMSO-2",1125]
["PASCAGOULA","MS","O-3","PASCAGOULAMSO-3","PASCAGOULAMSO-3",1305]
["PASCAGOULA","MS","O-4","PASCAGOULAMSO-4","PASCAGOULAMSO-4",1428]
["PASCAGOULA","MS","O-5","PASCAGOULAMSO-5","PASCAGOULAMSO-5",1449]
["PASCAGOULA","MS","O-6","PASCAGOULAMSO-6","PASCAGOULAMSO-6",1479]
["PASCAGOULA","MS","O-7","PASCAGOULAMSO-7","PASCAGOULAMSO-7",1509]
["GREENVILLE","MS","E-1",{"$f":"A4802&B4802&C4802","v":"GREENVILLEMSE-1"},"GREENVILLEMSE-1",693,693,693,693,693,786,837,879,951,990,858,948,993,1059,1086,924,981,1050,831,909,1005,1083,1101,1131,1155]
["GREENVILLE","MS","E-2","GREENVILLEMSE-2","GREENVILLEMSE-2",693]
["GREENVILLE","MS","E-3","GREENVILLEMSE-3","GREENVILLEMSE-3",693]
["GREENVILLE","MS","E-4","GREENVILLEMSE-4","GREENVILLEMSE-4",693]
["GREENVILLE","MS","E-5","GREENVILLEMSE-5","GREENVILLEMSE-5",786]
["GREENVILLE","MS","E-6","GREENVILLEMSE-6","GREENVILLEMSE-6",837]
["GREENVILLE","MS","E-7","GREENVILLEMSE-7","GREENVILLEMSE-7",879]
["GREENVILLE","MS","E-8","GREENVILLEMSE-8","GREENVILLEMSE-8",951]
["GREENVILLE","MS","E-9","GREENVILLEMSE-9","GREENVILLEMSE-9",990]
["GREENVILLE","MS","W-1","GREENVILLEMSW-1","GREENVILLEMSW-1",858]
["GREENVILLE","MS","W-2","GREENVILLEMSW-2","GREENVILLEMSW-2",948]
["GREENVILLE","MS","W-3","GREENVILLEMSW-3","GREENVILLEMSW-3",993]
["GREENVILLE","MS","W-4","GREENVILLEMSW-4","GREENVILLEMSW-4",1059]
["GREENVILLE","MS","W-5","GREENVILLEMSW-5","GREENVILLEMSW-5",1086]
["GREENVILLE","MS","O-1E","GREENVILLEMSO-1E","GREENVILLEMSO-1E",924]
["GREENVILLE","MS","O-2E","GREENVILLEMSO-2E","GREENVILLEMSO-2E",981]
["GREENVILLE","MS","O-3E","GREENVILLEMSO-3E","GREENVILLEMSO-3E",1050]
["GREENVILLE","MS","O-1","GREENVILLEMSO-1","GREENVILLEMSO-1",831]
["GREENVILLE","MS","O-2","GREENVILLEMSO-2","GREENVILLEMSO-2",909]
["GREENVILLE","MS","O-3","GREENVILLEMSO-3","GREENVILLEMSO-3",1005]
["GREENVILLE","MS","O-4","GREENVILLEMSO-4","GREENVILLEMSO-4",1083]
["GREENVILLE","MS","O-5","GREENVILLEMSO-5","GREENVILLEMSO-5",1101]
["GREENVILLE","MS","O-6","GREENVILLEMSO-6","GREENVILLEMSO-6",1131]
["GREENVILLE","MS","O-7","GREENVILLEMSO-7","GREENVILLEMSO-7",1155]
["TUPELO","MS","E-1","TUPELOMSE-1","TUPELOMSE-1",633,633,633,633,633,705,864,885,957,1032,864,954,1041,1158,1188,909,1017,1152,744,882,1065,1185,1209,1233,1257]
["TUPELO","MS","E-2","TUPELOMSE-2","TUPELOMSE-2",633]
["TUPELO","MS","E-3","TUPELOMSE-3","TUPELOMSE-3",633]
["TUPELO","MS","E-4","TUPELOMSE-4","TUPELOMSE-4",633]
["TUPELO","MS","E-5","TUPELOMSE-5","TUPELOMSE-5",705]
["TUPELO","MS","E-6","TUPELOMSE-6","TUPELOMSE-6",864]
["TUPELO","MS","E-7","TUPELOMSE-7","TUPELOMSE-7",885]
["TUPELO","MS","E-8","TUPELOMSE-8","TUPELOMSE-8",957]
["TUPELO","MS","E-9","TUPELOMSE-9","TUPELOMSE-9",1032]
["TUPELO","MS","W-1","TUPELOMSW-1","TUPELOMSW-1",864]
["TUPELO","MS","W-2","TUPELOMSW-2","TUPELOMSW-2",954]
["TUPELO","MS","W-3","TUPELOMSW-3","TUPELOMSW-3",1041]
["TUPELO","MS","W-4","TUPELOMSW-4","TUPELOMSW-4",1158]
["TUPELO","MS","W-5","TUPELOMSW-5","TUPELOMSW-5",1188]
["TUPELO","MS","O-1E","TUPELOMSO-1E","TUPELOMSO-1E",909]
["TUPELO","MS","O-2E","TUPELOMSO-2E","TUPELOMSO-2E",1017]
["TUPELO","MS","O-3E","TUPELOMSO-3E","TUPELOMSO-3E",1152]
["TUPELO","MS","O-1","TUPELOMSO-1","TUPELOMSO-1",744]
["TUPELO","MS","O-2","TUPELOMSO-2","TUPELOMSO-2",882]
["TUPELO","MS","O-3","TUPELOMSO-3","TUPELOMSO-3",1065]
["TUPELO","MS","O-4","TUPELOMSO-4","TUPELOMSO-4",1185]
["TUPELO","MS","O-5","TUPELOMSO-5","TUPELOMSO-5",1209]
["TUPELO","MS","O-6","TUPELOMSO-6","TUPELOMSO-6",1233]
["TUPELO","MS","O-7","TUPELOMSO-7","TUPELOMSO-7",1257]
["MALMSTROM AFB/GREAT FALLS","MT","E-1","MALMSTROM AFB/GREAT FALLSMTE-1","MALMSTROM AFB/GREAT FALLSMTE-1",621,621,621,621,621,708,828,891,975,1029,828,972,1029,1125,1206,942,1014,1104,720,903,1044,1194,1248,1335,1362]
["MALMSTROM AFB/GREAT FALLS","MT","E-2","MALMSTROM AFB/GREAT FALLSMTE-2","MALMSTROM AFB/GREAT FALLSMTE-2",621]
["MALMSTROM AFB/GREAT FALLS","MT","E-3","MALMSTROM AFB/GREAT FALLSMTE-3","MALMSTROM AFB/GREAT FALLSMTE-3",621]
["MALMSTROM AFB/GREAT FALLS","MT","E-4","MALMSTROM AFB/GREAT FALLSMTE-4","MALMSTROM AFB/GREAT FALLSMTE-4",621]
["MALMSTROM AFB/GREAT FALLS","MT","E-5","MALMSTROM AFB/GREAT FALLSMTE-5","MALMSTROM AFB/GREAT FALLSMTE-5",708]
["MALMSTROM AFB/GREAT FALLS","MT","E-6","MALMSTROM AFB/GREAT FALLSMTE-6","MALMSTROM AFB/GREAT FALLSMTE-6",828]
["MALMSTROM AFB/GREAT FALLS","MT","E-7","MALMSTROM AFB/GREAT FALLSMTE-7","MALMSTROM AFB/GREAT FALLSMTE-7",891]
["MALMSTROM AFB/GREAT FALLS","MT","E-8","MALMSTROM AFB/GREAT FALLSMTE-8","MALMSTROM AFB/GREAT FALLSMTE-8",975]
["MALMSTROM AFB/GREAT FALLS","MT","E-9","MALMSTROM AFB/GREAT FALLSMTE-9","MALMSTROM AFB/GREAT FALLSMTE-9",1029]
["MALMSTROM AFB/GREAT FALLS","MT","W-1","MALMSTROM AFB/GREAT FALLSMTW-1","MALMSTROM AFB/GREAT FALLSMTW-1",828]
["MALMSTROM AFB/GREAT FALLS","MT","W-2","MALMSTROM AFB/GREAT FALLSMTW-2","MALMSTROM AFB/GREAT FALLSMTW-2",972]
["MALMSTROM AFB/GREAT FALLS","MT","W-3","MALMSTROM AFB/GREAT FALLSMTW-3","MALMSTROM AFB/GREAT FALLSMTW-3",1029]
["MALMSTROM AFB/GREAT FALLS","MT","W-4","MALMSTROM AFB/GREAT FALLSMTW-4","MALMSTROM AFB/GREAT FALLSMTW-4",1125]
["MALMSTROM AFB/GREAT FALLS","MT","W-5","MALMSTROM AFB/GREAT FALLSMTW-5","MALMSTROM AFB/GREAT FALLSMTW-5",1206]
["MALMSTROM AFB/GREAT FALLS","MT","O-1E","MALMSTROM AFB/GREAT FALLSMTO-1E","MALMSTROM AFB/GREAT FALLSMTO-1E",942]
["MALMSTROM AFB/GREAT FALLS","MT","O-2E","MALMSTROM AFB/GREAT FALLSMTO-2E","MALMSTROM AFB/GREAT FALLSMTO-2E",1014]
["MALMSTROM AFB/GREAT FALLS","MT","O-3E",{"$f":"A4866&B4866&C4866","v":"MALMSTROM AFB/GREAT FALLSMTO-3E"},"MALMSTROM AFB/GREAT FALLSMTO-3E",1104]
["MALMSTROM AFB/GREAT FALLS","MT","O-1","MALMSTROM AFB/GREAT FALLSMTO-1","MALMSTROM AFB/GREAT FALLSMTO-1",720]
["MALMSTROM AFB/GREAT FALLS","MT","O-2","MALMSTROM AFB/GREAT FALLSMTO-2","MALMSTROM AFB/GREAT FALLSMTO-2",903]
["MALMSTROM AFB/GREAT FALLS","MT","O-3","MALMSTROM AFB/GREAT FALLSMTO-3","MALMSTROM AFB/GREAT FALLSMTO-3",1044]
["MALMSTROM AFB/GREAT FALLS","MT","O-4","MALMSTROM AFB/GREAT FALLSMTO-4","MALMSTROM AFB/GREAT FALLSMTO-4",1194]
["MALMSTROM AFB/GREAT FALLS","MT","O-5","MALMSTROM AFB/GREAT FALLSMTO-5","MALMSTROM AFB/GREAT FALLSMTO-5",1248]
["MALMSTROM AFB/GREAT FALLS","MT","O-6","MALMSTROM AFB/GREAT FALLSMTO-6","MALMSTROM AFB/GREAT FALLSMTO-6",1335]
["MALMSTROM AFB/GREAT FALLS","MT","O-7","MALMSTROM AFB/GREAT FALLSMTO-7","MALMSTROM AFB/GREAT FALLSMTO-7",1362]
["HELENA","MT","E-1","HELENAMTE-1","HELENAMTE-1",639,639,639,639,639,711,987,993,1020,1134,987,1014,1146,1317,1326,996,1107,1317,744,981,1182,1326,1332,1341,1368]
["HELENA","MT","E-2","HELENAMTE-2","HELENAMTE-2",639]
["HELENA","MT","E-3","HELENAMTE-3","HELENAMTE-3",639]
["HELENA","MT","E-4","HELENAMTE-4","HELENAMTE-4",639]
["HELENA","MT","E-5","HELENAMTE-5","HELENAMTE-5",711]
["HELENA","MT","E-6","HELENAMTE-6","HELENAMTE-6",987]
["HELENA","MT","E-7","HELENAMTE-7","HELENAMTE-7",993]
["HELENA","MT","E-8","HELENAMTE-8","HELENAMTE-8",1020]
["HELENA","MT","E-9","HELENAMTE-9","HELENAMTE-9",1134]
["HELENA","MT","W-1","HELENAMTW-1","HELENAMTW-1",987]
["HELENA","MT","W-2","HELENAMTW-2","HELENAMTW-2",1014]
["HELENA","MT","W-3","HELENAMTW-3","HELENAMTW-3",1146]
["HELENA","MT","W-4","HELENAMTW-4","HELENAMTW-4",1317]
["HELENA","MT","W-5","HELENAMTW-5","HELENAMTW-5",1326]
["HELENA","MT","O-1E","HELENAMTO-1E","HELENAMTO-1E",996]
["HELENA","MT","O-2E","HELENAMTO-2E","HELENAMTO-2E",1107]
["HELENA","MT","O-3E","HELENAMTO-3E","HELENAMTO-3E",1317]
["HELENA","MT","O-1","HELENAMTO-1","HELENAMTO-1",744]
["HELENA","MT","O-2","HELENAMTO-2","HELENAMTO-2",981]
["HELENA","MT","O-3","HELENAMTO-3","HELENAMTO-3",1182]
["HELENA","MT","O-4","HELENAMTO-4","HELENAMTO-4",1326]
["HELENA","MT","O-5","HELENAMTO-5","HELENAMTO-5",1332]
["HELENA","MT","O-6","HELENAMTO-6","HELENAMTO-6",1341]
["HELENA","MT","O-7","HELENAMTO-7","HELENAMTO-7",1368]
["BILLINGS","MT","E-1","BILLINGSMTE-1","BILLINGSMTE-1",720,720,720,720,720,816,933,990,1089,1149,936,1089,1155,1263,1338,1050,1137,1245,873,1020,1176,1326,1374,1449,1479]
["BILLINGS","MT","E-2","BILLINGSMTE-2","BILLINGSMTE-2",720]
["BILLINGS","MT","E-3","BILLINGSMTE-3","BILLINGSMTE-3",720]
["BILLINGS","MT","E-4","BILLINGSMTE-4","BILLINGSMTE-4",720]
["BILLINGS","MT","E-5","BILLINGSMTE-5","BILLINGSMTE-5",816]
["BILLINGS","MT","E-6","BILLINGSMTE-6","BILLINGSMTE-6",933]
["BILLINGS","MT","E-7","BILLINGSMTE-7","BILLINGSMTE-7",990]
["BILLINGS","MT","E-8","BILLINGSMTE-8","BILLINGSMTE-8",1089]
["BILLINGS","MT","E-9","BILLINGSMTE-9","BILLINGSMTE-9",1149]
["BILLINGS","MT","W-1","BILLINGSMTW-1","BILLINGSMTW-1",936]
["BILLINGS","MT","W-2","BILLINGSMTW-2","BILLINGSMTW-2",1089]
["BILLINGS","MT","W-3","BILLINGSMTW-3","BILLINGSMTW-3",1155]
["BILLINGS","MT","W-4","BILLINGSMTW-4","BILLINGSMTW-4",1263]
["BILLINGS","MT","W-5","BILLINGSMTW-5","BILLINGSMTW-5",1338]
["BILLINGS","MT","O-1E","BILLINGSMTO-1E","BILLINGSMTO-1E",1050]
["BILLINGS","MT","O-2E","BILLINGSMTO-2E","BILLINGSMTO-2E",1137]
["BILLINGS","MT","O-3E","BILLINGSMTO-3E","BILLINGSMTO-3E",1245]
["BILLINGS","MT","O-1","BILLINGSMTO-1","BILLINGSMTO-1",873]
["BILLINGS","MT","O-2","BILLINGSMTO-2","BILLINGSMTO-2",1020]
["BILLINGS","MT","O-3","BILLINGSMTO-3","BILLINGSMTO-3",1176]
["BILLINGS","MT","O-4","BILLINGSMTO-4","BILLINGSMTO-4",1326]
["BILLINGS","MT","O-5","BILLINGSMTO-5","BILLINGSMTO-5",1374]
["BILLINGS","MT","O-6","BILLINGSMTO-6","BILLINGSMTO-6",1449]
["BILLINGS","MT","O-7","BILLINGSMTO-7","BILLINGSMTO-7",1479]
["MISSOULA","MT","E-1","MISSOULAMTE-1","MISSOULAMTE-1",735,735,735,735,735,804,867,963,1065,1173,894,1044,1131,1191,1314,1017,1113,1200,837,987,1125,1296,1398,1509,1539]
["MISSOULA","MT","E-2","MISSOULAMTE-2","MISSOULAMTE-2",735]
["MISSOULA","MT","E-3","MISSOULAMTE-3","MISSOULAMTE-3",735]
["MISSOULA","MT","E-4","MISSOULAMTE-4","MISSOULAMTE-4",735]
["MISSOULA","MT","E-5","MISSOULAMTE-5","MISSOULAMTE-5",804]
["MISSOULA","MT","E-6","MISSOULAMTE-6","MISSOULAMTE-6",867]
["MISSOULA","MT","E-7","MISSOULAMTE-7","MISSOULAMTE-7",963]
["MISSOULA","MT","E-8","MISSOULAMTE-8","MISSOULAMTE-8",1065]
["MISSOULA","MT","E-9",{"$f":"A4930&B4930&C4930","v":"MISSOULAMTE-9"},"MISSOULAMTE-9",1173]
["MISSOULA","MT","W-1","MISSOULAMTW-1","MISSOULAMTW-1",894]
["MISSOULA","MT","W-2","MISSOULAMTW-2","MISSOULAMTW-2",1044]
["MISSOULA","MT","W-3","MISSOULAMTW-3","MISSOULAMTW-3",1131]
["MISSOULA","MT","W-4","MISSOULAMTW-4","MISSOULAMTW-4",1191]
["MISSOULA","MT","W-5","MISSOULAMTW-5","MISSOULAMTW-5",1314]
["MISSOULA","MT","O-1E","MISSOULAMTO-1E","MISSOULAMTO-1E",1017]
["MISSOULA","MT","O-2E","MISSOULAMTO-2E","MISSOULAMTO-2E",1113]
["MISSOULA","MT","O-3E","MISSOULAMTO-3E","MISSOULAMTO-3E",1200]
["MISSOULA","MT","O-1","MISSOULAMTO-1","MISSOULAMTO-1",837]
["MISSOULA","MT","O-2","MISSOULAMTO-2","MISSOULAMTO-2",987]
["MISSOULA","MT","O-3","MISSOULAMTO-3","MISSOULAMTO-3",1125]
["MISSOULA","MT","O-4","MISSOULAMTO-4","MISSOULAMTO-4",1296]
["MISSOULA","MT","O-5","MISSOULAMTO-5","MISSOULAMTO-5",1398]
["MISSOULA","MT","O-6","MISSOULAMTO-6","MISSOULAMTO-6",1509]
["MISSOULA","MT","O-7","MISSOULAMTO-7","MISSOULAMTO-7",1539]
["OUTER BANKS","NC","E-1","OUTER BANKSNCE-1","OUTER BANKSNCE-1",966,966,966,966,966,1038,1170,1221,1308,1404,1170,1305,1416,1578,1644,1245,1383,1560,1074,1215,1446,1635,1680,1749,1785]
["OUTER BANKS","NC","E-2","OUTER BANKSNCE-2","OUTER BANKSNCE-2",966]
["OUTER BANKS","NC","E-3","OUTER BANKSNCE-3","OUTER BANKSNCE-3",966]
["OUTER BANKS","NC","E-4","OUTER BANKSNCE-4","OUTER BANKSNCE-4",966]
["OUTER BANKS","NC","E-5","OUTER BANKSNCE-5","OUTER BANKSNCE-5",1038]
["OUTER BANKS","NC","E-6","OUTER BANKSNCE-6","OUTER BANKSNCE-6",1170]
["OUTER BANKS","NC","E-7","OUTER BANKSNCE-7","OUTER BANKSNCE-7",1221]
["OUTER BANKS","NC","E-8","OUTER BANKSNCE-8","OUTER BANKSNCE-8",1308]
["OUTER BANKS","NC","E-9","OUTER BANKSNCE-9","OUTER BANKSNCE-9",1404]
["OUTER BANKS","NC","W-1","OUTER BANKSNCW-1","OUTER BANKSNCW-1",1170]
["OUTER BANKS","NC","W-2","OUTER BANKSNCW-2","OUTER BANKSNCW-2",1305]
["OUTER BANKS","NC","W-3","OUTER BANKSNCW-3","OUTER BANKSNCW-3",1416]
["OUTER BANKS","NC","W-4","OUTER BANKSNCW-4","OUTER BANKSNCW-4",1578]
["OUTER BANKS","NC","W-5","OUTER BANKSNCW-5","OUTER BANKSNCW-5",1644]
["OUTER BANKS","NC","O-1E","OUTER BANKSNCO-1E","OUTER BANKSNCO-1E",1245]
["OUTER BANKS","NC","O-2E","OUTER BANKSNCO-2E","OUTER BANKSNCO-2E",1383]
["OUTER BANKS","NC","O-3E","OUTER BANKSNCO-3E","OUTER BANKSNCO-3E",1560]
["OUTER BANKS","NC","O-1","OUTER BANKSNCO-1","OUTER BANKSNCO-1",1074]
["OUTER BANKS","NC","O-2","OUTER BANKSNCO-2","OUTER BANKSNCO-2",1215]
["OUTER BANKS","NC","O-3","OUTER BANKSNCO-3","OUTER BANKSNCO-3",1446]
["OUTER BANKS","NC","O-4","OUTER BANKSNCO-4","OUTER BANKSNCO-4",1635]
["OUTER BANKS","NC","O-5","OUTER BANKSNCO-5","OUTER BANKSNCO-5",1680]
["OUTER BANKS","NC","O-6","OUTER BANKSNCO-6","OUTER BANKSNCO-6",1749]
["OUTER BANKS","NC","O-7","OUTER BANKSNCO-7","OUTER BANKSNCO-7",1785]
["MOREHEAD/CHERRY PT MCAS","NC","E-1","MOREHEAD/CHERRY PT MCASNCE-1","MOREHEAD/CHERRY PT MCASNCE-1",822,822,822,822,822,933,1056,1122,1227,1296,1065,1224,1305,1431,1518,1182,1281,1410,1014,1152,1326,1506,1560,1650,1683]
["MOREHEAD/CHERRY PT MCAS","NC","E-2","MOREHEAD/CHERRY PT MCASNCE-2","MOREHEAD/CHERRY PT MCASNCE-2",822]
["MOREHEAD/CHERRY PT MCAS","NC","E-3","MOREHEAD/CHERRY PT MCASNCE-3","MOREHEAD/CHERRY PT MCASNCE-3",822]
["MOREHEAD/CHERRY PT MCAS","NC","E-4","MOREHEAD/CHERRY PT MCASNCE-4","MOREHEAD/CHERRY PT MCASNCE-4",822]
["MOREHEAD/CHERRY PT MCAS","NC","E-5","MOREHEAD/CHERRY PT MCASNCE-5","MOREHEAD/CHERRY PT MCASNCE-5",933]
["MOREHEAD/CHERRY PT MCAS","NC","E-6","MOREHEAD/CHERRY PT MCASNCE-6","MOREHEAD/CHERRY PT MCASNCE-6",1056]
["MOREHEAD/CHERRY PT MCAS","NC","E-7","MOREHEAD/CHERRY PT MCASNCE-7","MOREHEAD/CHERRY PT MCASNCE-7",1122]
["MOREHEAD/CHERRY PT MCAS","NC","E-8","MOREHEAD/CHERRY PT MCASNCE-8","MOREHEAD/CHERRY PT MCASNCE-8",1227]
["MOREHEAD/CHERRY PT MCAS","NC","E-9","MOREHEAD/CHERRY PT MCASNCE-9","MOREHEAD/CHERRY PT MCASNCE-9",1296]
["MOREHEAD/CHERRY PT MCAS","NC","W-1","MOREHEAD/CHERRY PT MCASNCW-1","MOREHEAD/CHERRY PT MCASNCW-1",1065]
["MOREHEAD/CHERRY PT MCAS","NC","W-2","MOREHEAD/CHERRY PT MCASNCW-2","MOREHEAD/CHERRY PT MCASNCW-2",1224]
["MOREHEAD/CHERRY PT MCAS","NC","W-3","MOREHEAD/CHERRY PT MCASNCW-3","MOREHEAD/CHERRY PT MCASNCW-3",1305]
["MOREHEAD/CHERRY PT MCAS","NC","W-4","MOREHEAD/CHERRY PT MCASNCW-4","MOREHEAD/CHERRY PT MCASNCW-4",1431]
["MOREHEAD/CHERRY PT MCAS","NC","W-5","MOREHEAD/CHERRY PT MCASNCW-5","MOREHEAD/CHERRY PT MCASNCW-5",1518]
["MOREHEAD/CHERRY PT MCAS","NC","O-1E","MOREHEAD/CHERRY PT MCASNCO-1E","MOREHEAD/CHERRY PT MCASNCO-1E",1182]
["MOREHEAD/CHERRY PT MCAS","NC","O-2E","MOREHEAD/CHERRY PT MCASNCO-2E","MOREHEAD/CHERRY PT MCASNCO-2E",1281]
["MOREHEAD/CHERRY PT MCAS","NC","O-3E","MOREHEAD/CHERRY PT MCASNCO-3E","MOREHEAD/CHERRY PT MCASNCO-3E",1410]
["MOREHEAD/CHERRY PT MCAS","NC","O-1","MOREHEAD/CHERRY PT MCASNCO-1","MOREHEAD/CHERRY PT MCASNCO-1",1014]
["MOREHEAD/CHERRY PT MCAS","NC","O-2","MOREHEAD/CHERRY PT MCASNCO-2","MOREHEAD/CHERRY PT MCASNCO-2",1152]
["MOREHEAD/CHERRY PT MCAS","NC","O-3","MOREHEAD/CHERRY PT MCASNCO-3","MOREHEAD/CHERRY PT MCASNCO-3",1326]
["MOREHEAD/CHERRY PT MCAS","NC","O-4","MOREHEAD/CHERRY PT MCASNCO-4","MOREHEAD/CHERRY PT MCASNCO-4",1506]
["MOREHEAD/CHERRY PT MCAS","NC","O-5","MOREHEAD/CHERRY PT MCASNCO-5","MOREHEAD/CHERRY PT MCASNCO-5",1560]
["MOREHEAD/CHERRY PT MCAS","NC","O-6","MOREHEAD/CHERRY PT MCASNCO-6","MOREHEAD/CHERRY PT MCASNCO-6",1650]
["MOREHEAD/CHERRY PT MCAS","NC","O-7","MOREHEAD/CHERRY PT MCASNCO-7","MOREHEAD/CHERRY PT MCASNCO-7",1683]
["CAMP LEJEUNE","NC","E-1",{"$f":"A4994&B4994&C4994","v":"CAMP LEJEUNENCE-1"},"CAMP LEJEUNENCE-1",849,849,849,849,849,954,1011,1047,1134,1215,1032,1134,1224,1356,1410,1083,1197,1341,1008,1071,1248,1404,1437,1494,1524]
["CAMP LEJEUNE","NC","E-2","CAMP LEJEUNENCE-2","CAMP LEJEUNENCE-2",849]
["CAMP LEJEUNE","NC","E-3","CAMP LEJEUNENCE-3","CAMP LEJEUNENCE-3",849]
["CAMP LEJEUNE","NC","E-4","CAMP LEJEUNENCE-4","CAMP LEJEUNENCE-4",849]
["CAMP LEJEUNE","NC","E-5","CAMP LEJEUNENCE-5","CAMP LEJEUNENCE-5",954]
["CAMP LEJEUNE","NC","E-6","CAMP LEJEUNENCE-6","CAMP LEJEUNENCE-6",1011]
["CAMP LEJEUNE","NC","E-7","CAMP LEJEUNENCE-7","CAMP LEJEUNENCE-7",1047]
["CAMP LEJEUNE","NC","E-8","CAMP LEJEUNENCE-8","CAMP LEJEUNENCE-8",1134]
["CAMP LEJEUNE","NC","E-9","CAMP LEJEUNENCE-9","CAMP LEJEUNENCE-9",1215]
["CAMP LEJEUNE","NC","W-1","CAMP LEJEUNENCW-1","CAMP LEJEUNENCW-1",1032]
["CAMP LEJEUNE","NC","W-2","CAMP LEJEUNENCW-2","CAMP LEJEUNENCW-2",1134]
["CAMP LEJEUNE","NC","W-3","CAMP LEJEUNENCW-3","CAMP LEJEUNENCW-3",1224]
["CAMP LEJEUNE","NC","W-4","CAMP LEJEUNENCW-4","CAMP LEJEUNENCW-4",1356]
["CAMP LEJEUNE","NC","W-5","CAMP LEJEUNENCW-5","CAMP LEJEUNENCW-5",1410]
["CAMP LEJEUNE","NC","O-1E","CAMP LEJEUNENCO-1E","CAMP LEJEUNENCO-1E",1083]
["CAMP LEJEUNE","NC","O-2E","CAMP LEJEUNENCO-2E","CAMP LEJEUNENCO-2E",1197]
["CAMP LEJEUNE","NC","O-3E","CAMP LEJEUNENCO-3E","CAMP LEJEUNENCO-3E",1341]
["CAMP LEJEUNE","NC","O-1","CAMP LEJEUNENCO-1","CAMP LEJEUNENCO-1",1008]
["CAMP LEJEUNE","NC","O-2","CAMP LEJEUNENCO-2","CAMP LEJEUNENCO-2",1071]
["CAMP LEJEUNE","NC","O-3","CAMP LEJEUNENCO-3","CAMP LEJEUNENCO-3",1248]
["CAMP LEJEUNE","NC","O-4","CAMP LEJEUNENCO-4","CAMP LEJEUNENCO-4",1404]
["CAMP LEJEUNE","NC","O-5","CAMP LEJEUNENCO-5","CAMP LEJEUNENCO-5",1437]
["CAMP LEJEUNE","NC","O-6","CAMP LEJEUNENCO-6","CAMP LEJEUNENCO-6",1494]
["CAMP LEJEUNE","NC","O-7","CAMP LEJEUNENCO-7","CAMP LEJEUNENCO-7",1524]
["CHARLOTTE","NC","E-1","CHARLOTTENCE-1","CHARLOTTENCE-1",867,867,867,867,867,984,1137,1143,1281,1371,1137,1278,1380,1518,1527,1221,1350,1518,1041,1191,1410,1527,1533,1542,1572]
["CHARLOTTE","NC","E-2","CHARLOTTENCE-2","CHARLOTTENCE-2",867]
["CHARLOTTE","NC","E-3","CHARLOTTENCE-3","CHARLOTTENCE-3",867]
["CHARLOTTE","NC","E-4","CHARLOTTENCE-4","CHARLOTTENCE-4",867]
["CHARLOTTE","NC","E-5","CHARLOTTENCE-5","CHARLOTTENCE-5",984]
["CHARLOTTE","NC","E-6","CHARLOTTENCE-6","CHARLOTTENCE-6",1137]
["CHARLOTTE","NC","E-7","CHARLOTTENCE-7","CHARLOTTENCE-7",1143]
["CHARLOTTE","NC","E-8","CHARLOTTENCE-8","CHARLOTTENCE-8",1281]
["CHARLOTTE","NC","E-9","CHARLOTTENCE-9","CHARLOTTENCE-9",1371]
["CHARLOTTE","NC","W-1","CHARLOTTENCW-1","CHARLOTTENCW-1",1137]
["CHARLOTTE","NC","W-2","CHARLOTTENCW-2","CHARLOTTENCW-2",1278]
["CHARLOTTE","NC","W-3","CHARLOTTENCW-3","CHARLOTTENCW-3",1380]
["CHARLOTTE","NC","W-4","CHARLOTTENCW-4","CHARLOTTENCW-4",1518]
["CHARLOTTE","NC","W-5","CHARLOTTENCW-5","CHARLOTTENCW-5",1527]
["CHARLOTTE","NC","O-1E","CHARLOTTENCO-1E","CHARLOTTENCO-1E",1221]
["CHARLOTTE","NC","O-2E","CHARLOTTENCO-2E","CHARLOTTENCO-2E",1350]
["CHARLOTTE","NC","O-3E","CHARLOTTENCO-3E","CHARLOTTENCO-3E",1518]
["CHARLOTTE","NC","O-1","CHARLOTTENCO-1","CHARLOTTENCO-1",1041]
["CHARLOTTE","NC","O-2","CHARLOTTENCO-2","CHARLOTTENCO-2",1191]
["CHARLOTTE","NC","O-3","CHARLOTTENCO-3","CHARLOTTENCO-3",1410]
["CHARLOTTE","NC","O-4","CHARLOTTENCO-4","CHARLOTTENCO-4",1527]
["CHARLOTTE","NC","O-5","CHARLOTTENCO-5","CHARLOTTENCO-5",1533]
["CHARLOTTE","NC","O-6","CHARLOTTENCO-6","CHARLOTTENCO-6",1542]
["CHARLOTTE","NC","O-7","CHARLOTTENCO-7","CHARLOTTENCO-7",1572]
["DURHAM/CHAPEL HILL","NC","E-1","DURHAM/CHAPEL HILLNCE-1","DURHAM/CHAPEL HILLNCE-1",903,903,903,903,903,1026,1101,1188,1302,1341,1146,1299,1347,1419,1464,1275,1332,1407,1086,1242,1359,1485,1725,1743,1761]
["DURHAM/CHAPEL HILL","NC","E-2","DURHAM/CHAPEL HILLNCE-2","DURHAM/CHAPEL HILLNCE-2",903]
["DURHAM/CHAPEL HILL","NC","E-3","DURHAM/CHAPEL HILLNCE-3","DURHAM/CHAPEL HILLNCE-3",903]
["DURHAM/CHAPEL HILL","NC","E-4","DURHAM/CHAPEL HILLNCE-4","DURHAM/CHAPEL HILLNCE-4",903]
["DURHAM/CHAPEL HILL","NC","E-5","DURHAM/CHAPEL HILLNCE-5","DURHAM/CHAPEL HILLNCE-5",1026]
["DURHAM/CHAPEL HILL","NC","E-6","DURHAM/CHAPEL HILLNCE-6","DURHAM/CHAPEL HILLNCE-6",1101]
["DURHAM/CHAPEL HILL","NC","E-7","DURHAM/CHAPEL HILLNCE-7","DURHAM/CHAPEL HILLNCE-7",1188]
["DURHAM/CHAPEL HILL","NC","E-8","DURHAM/CHAPEL HILLNCE-8","DURHAM/CHAPEL HILLNCE-8",1302]
["DURHAM/CHAPEL HILL","NC","E-9","DURHAM/CHAPEL HILLNCE-9","DURHAM/CHAPEL HILLNCE-9",1341]
["DURHAM/CHAPEL HILL","NC","W-1","DURHAM/CHAPEL HILLNCW-1","DURHAM/CHAPEL HILLNCW-1",1146]
["DURHAM/CHAPEL HILL","NC","W-2","DURHAM/CHAPEL HILLNCW-2","DURHAM/CHAPEL HILLNCW-2",1299]
["DURHAM/CHAPEL HILL","NC","W-3","DURHAM/CHAPEL HILLNCW-3","DURHAM/CHAPEL HILLNCW-3",1347]
["DURHAM/CHAPEL HILL","NC","W-4","DURHAM/CHAPEL HILLNCW-4","DURHAM/CHAPEL HILLNCW-4",1419]
["DURHAM/CHAPEL HILL","NC","W-5","DURHAM/CHAPEL HILLNCW-5","DURHAM/CHAPEL HILLNCW-5",1464]
["DURHAM/CHAPEL HILL","NC","O-1E","DURHAM/CHAPEL HILLNCO-1E","DURHAM/CHAPEL HILLNCO-1E",1275]
["DURHAM/CHAPEL HILL","NC","O-2E","DURHAM/CHAPEL HILLNCO-2E","DURHAM/CHAPEL HILLNCO-2E",1332]
["DURHAM/CHAPEL HILL","NC","O-3E",{"$f":"A5058&B5058&C5058","v":"DURHAM/CHAPEL HILLNCO-3E"},"DURHAM/CHAPEL HILLNCO-3E",1407]
["DURHAM/CHAPEL HILL","NC","O-1","DURHAM/CHAPEL HILLNCO-1","DURHAM/CHAPEL HILLNCO-1",1086]
["DURHAM/CHAPEL HILL","NC","O-2","DURHAM/CHAPEL HILLNCO-2","DURHAM/CHAPEL HILLNCO-2",1242]
["DURHAM/CHAPEL HILL","NC","O-3","DURHAM/CHAPEL HILLNCO-3","DURHAM/CHAPEL HILLNCO-3",1359]
["DURHAM/CHAPEL HILL","NC","O-4","DURHAM/CHAPEL HILLNCO-4","DURHAM/CHAPEL HILLNCO-4",1485]
["DURHAM/CHAPEL HILL","NC","O-5","DURHAM/CHAPEL HILLNCO-5","DURHAM/CHAPEL HILLNCO-5",1725]
["DURHAM/CHAPEL HILL","NC","O-6","DURHAM/CHAPEL HILLNCO-6","DURHAM/CHAPEL HILLNCO-6",1743]
["DURHAM/CHAPEL HILL","NC","O-7","DURHAM/CHAPEL HILLNCO-7","DURHAM/CHAPEL HILLNCO-7",1761]
["ELIZABETH CITY","NC","E-1","ELIZABETH CITYNCE-1","ELIZABETH CITYNCE-1",1083,1083,1083,1083,1083,1146,1233,1302,1455,1530,1251,1455,1536,1665,1746,1410,1512,1644,1179,1371,1560,1734,1788,1872,1908]
["ELIZABETH CITY","NC","E-2","ELIZABETH CITYNCE-2","ELIZABETH CITYNCE-2",1083]
["ELIZABETH CITY","NC","E-3","ELIZABETH CITYNCE-3","ELIZABETH CITYNCE-3",1083]
["ELIZABETH CITY","NC","E-4","ELIZABETH CITYNCE-4","ELIZABETH CITYNCE-4",1083]
["ELIZABETH CITY","NC","E-5","ELIZABETH CITYNCE-5","ELIZABETH CITYNCE-5",1146]
["ELIZABETH CITY","NC","E-6","ELIZABETH CITYNCE-6","ELIZABETH CITYNCE-6",1233]
["ELIZABETH CITY","NC","E-7","ELIZABETH CITYNCE-7","ELIZABETH CITYNCE-7",1302]
["ELIZABETH CITY","NC","E-8","ELIZABETH CITYNCE-8","ELIZABETH CITYNCE-8",1455]
["ELIZABETH CITY","NC","E-9","ELIZABETH CITYNCE-9","ELIZABETH CITYNCE-9",1530]
["ELIZABETH CITY","NC","W-1","ELIZABETH CITYNCW-1","ELIZABETH CITYNCW-1",1251]
["ELIZABETH CITY","NC","W-2","ELIZABETH CITYNCW-2","ELIZABETH CITYNCW-2",1455]
["ELIZABETH CITY","NC","W-3","ELIZABETH CITYNCW-3","ELIZABETH CITYNCW-3",1536]
["ELIZABETH CITY","NC","W-4","ELIZABETH CITYNCW-4","ELIZABETH CITYNCW-4",1665]
["ELIZABETH CITY","NC","W-5","ELIZABETH CITYNCW-5","ELIZABETH CITYNCW-5",1746]
["ELIZABETH CITY","NC","O-1E","ELIZABETH CITYNCO-1E","ELIZABETH CITYNCO-1E",1410]
["ELIZABETH CITY","NC","O-2E","ELIZABETH CITYNCO-2E","ELIZABETH CITYNCO-2E",1512]
["ELIZABETH CITY","NC","O-3E","ELIZABETH CITYNCO-3E","ELIZABETH CITYNCO-3E",1644]
["ELIZABETH CITY","NC","O-1","ELIZABETH CITYNCO-1","ELIZABETH CITYNCO-1",1179]
["ELIZABETH CITY","NC","O-2","ELIZABETH CITYNCO-2","ELIZABETH CITYNCO-2",1371]
["ELIZABETH CITY","NC","O-3","ELIZABETH CITYNCO-3","ELIZABETH CITYNCO-3",1560]
["ELIZABETH CITY","NC","O-4","ELIZABETH CITYNCO-4","ELIZABETH CITYNCO-4",1734]
["ELIZABETH CITY","NC","O-5","ELIZABETH CITYNCO-5","ELIZABETH CITYNCO-5",1788]
["ELIZABETH CITY","NC","O-6","ELIZABETH CITYNCO-6","ELIZABETH CITYNCO-6",1872]
["ELIZABETH CITY","NC","O-7","ELIZABETH CITYNCO-7","ELIZABETH CITYNCO-7",1908]
["FORT BRAGG/POPE AFB","NC","E-1","FORT BRAGG/POPE AFBNCE-1","FORT BRAGG/POPE AFBNCE-1",831,831,831,831,831,948,1014,1071,1158,1209,1044,1158,1215,1314,1398,1125,1197,1290,1008,1104,1230,1386,1443,1530,1563]
["FORT BRAGG/POPE AFB","NC","E-2","FORT BRAGG/POPE AFBNCE-2","FORT BRAGG/POPE AFBNCE-2",831]
["FORT BRAGG/POPE AFB","NC","E-3","FORT BRAGG/POPE AFBNCE-3","FORT BRAGG/POPE AFBNCE-3",831]
["FORT BRAGG/POPE AFB","NC","E-4","FORT BRAGG/POPE AFBNCE-4","FORT BRAGG/POPE AFBNCE-4",831]
["FORT BRAGG/POPE AFB","NC","E-5","FORT BRAGG/POPE AFBNCE-5","FORT BRAGG/POPE AFBNCE-5",948]
["FORT BRAGG/POPE AFB","NC","E-6","FORT BRAGG/POPE AFBNCE-6","FORT BRAGG/POPE AFBNCE-6",1014]
["FORT BRAGG/POPE AFB","NC","E-7","FORT BRAGG/POPE AFBNCE-7","FORT BRAGG/POPE AFBNCE-7",1071]
["FORT BRAGG/POPE AFB","NC","E-8","FORT BRAGG/POPE AFBNCE-8","FORT BRAGG/POPE AFBNCE-8",1158]
["FORT BRAGG/POPE AFB","NC","E-9","FORT BRAGG/POPE AFBNCE-9","FORT BRAGG/POPE AFBNCE-9",1209]
["FORT BRAGG/POPE AFB","NC","W-1","FORT BRAGG/POPE AFBNCW-1","FORT BRAGG/POPE AFBNCW-1",1044]
["FORT BRAGG/POPE AFB","NC","W-2","FORT BRAGG/POPE AFBNCW-2","FORT BRAGG/POPE AFBNCW-2",1158]
["FORT BRAGG/POPE AFB","NC","W-3","FORT BRAGG/POPE AFBNCW-3","FORT BRAGG/POPE AFBNCW-3",1215]
["FORT BRAGG/POPE AFB","NC","W-4","FORT BRAGG/POPE AFBNCW-4","FORT BRAGG/POPE AFBNCW-4",1314]
["FORT BRAGG/POPE AFB","NC","W-5","FORT BRAGG/POPE AFBNCW-5","FORT BRAGG/POPE AFBNCW-5",1398]
["FORT BRAGG/POPE AFB","NC","O-1E","FORT BRAGG/POPE AFBNCO-1E","FORT BRAGG/POPE AFBNCO-1E",1125]
["FORT BRAGG/POPE AFB","NC","O-2E","FORT BRAGG/POPE AFBNCO-2E","FORT BRAGG/POPE AFBNCO-2E",1197]
["FORT BRAGG/POPE AFB","NC","O-3E","FORT BRAGG/POPE AFBNCO-3E","FORT BRAGG/POPE AFBNCO-3E",1290]
["FORT BRAGG/POPE AFB","NC","O-1","FORT BRAGG/POPE AFBNCO-1","FORT BRAGG/POPE AFBNCO-1",1008]
["FORT BRAGG/POPE AFB","NC","O-2","FORT BRAGG/POPE AFBNCO-2","FORT BRAGG/POPE AFBNCO-2",1104]
["FORT BRAGG/POPE AFB","NC","O-3","FORT BRAGG/POPE AFBNCO-3","FORT BRAGG/POPE AFBNCO-3",1230]
["FORT BRAGG/POPE AFB","NC","O-4","FORT BRAGG/POPE AFBNCO-4","FORT BRAGG/POPE AFBNCO-4",1386]
["FORT BRAGG/POPE AFB","NC","O-5","FORT BRAGG/POPE AFBNCO-5","FORT BRAGG/POPE AFBNCO-5",1443]
["FORT BRAGG/POPE AFB","NC","O-6","FORT BRAGG/POPE AFBNCO-6","FORT BRAGG/POPE AFBNCO-6",1530]
["FORT BRAGG/POPE AFB","NC","O-7","FORT BRAGG/POPE AFBNCO-7","FORT BRAGG/POPE AFBNCO-7",1563]
["SEYMORE JOHNSON AFB","NC","E-1","SEYMORE JOHNSON AFBNCE-1","SEYMORE JOHNSON AFBNCE-1",747,747,747,747,747,867,975,1044,1122,1200,975,1104,1188,1323,1416,1062,1164,1299,936,1038,1212,1404,1464,1560,1593]
["SEYMORE JOHNSON AFB","NC","E-2","SEYMORE JOHNSON AFBNCE-2","SEYMORE JOHNSON AFBNCE-2",747]
["SEYMORE JOHNSON AFB","NC","E-3","SEYMORE JOHNSON AFBNCE-3","SEYMORE JOHNSON AFBNCE-3",747]
["SEYMORE JOHNSON AFB","NC","E-4","SEYMORE JOHNSON AFBNCE-4","SEYMORE JOHNSON AFBNCE-4",747]
["SEYMORE JOHNSON AFB","NC","E-5","SEYMORE JOHNSON AFBNCE-5","SEYMORE JOHNSON AFBNCE-5",867]
["SEYMORE JOHNSON AFB","NC","E-6","SEYMORE JOHNSON AFBNCE-6","SEYMORE JOHNSON AFBNCE-6",975]
["SEYMORE JOHNSON AFB","NC","E-7","SEYMORE JOHNSON AFBNCE-7","SEYMORE JOHNSON AFBNCE-7",1044]
["SEYMORE JOHNSON AFB","NC","E-8","SEYMORE JOHNSON AFBNCE-8","SEYMORE JOHNSON AFBNCE-8",1122]
["SEYMORE JOHNSON AFB","NC","E-9",{"$f":"A5122&B5122&C5122","v":"SEYMORE JOHNSON AFBNCE-9"},"SEYMORE JOHNSON AFBNCE-9",1200]
["SEYMORE JOHNSON AFB","NC","W-1","SEYMORE JOHNSON AFBNCW-1","SEYMORE JOHNSON AFBNCW-1",975]
["SEYMORE JOHNSON AFB","NC","W-2","SEYMORE JOHNSON AFBNCW-2","SEYMORE JOHNSON AFBNCW-2",1104]
["SEYMORE JOHNSON AFB","NC","W-3","SEYMORE JOHNSON AFBNCW-3","SEYMORE JOHNSON AFBNCW-3",1188]
["SEYMORE JOHNSON AFB","NC","W-4","SEYMORE JOHNSON AFBNCW-4","SEYMORE JOHNSON AFBNCW-4",1323]
["SEYMORE JOHNSON AFB","NC","W-5","SEYMORE JOHNSON AFBNCW-5","SEYMORE JOHNSON AFBNCW-5",1416]
["SEYMORE JOHNSON AFB","NC","O-1E","SEYMORE JOHNSON AFBNCO-1E","SEYMORE JOHNSON AFBNCO-1E",1062]
["SEYMORE JOHNSON AFB","NC","O-2E","SEYMORE JOHNSON AFBNCO-2E","SEYMORE JOHNSON AFBNCO-2E",1164]
["SEYMORE JOHNSON AFB","NC","O-3E","SEYMORE JOHNSON AFBNCO-3E","SEYMORE JOHNSON AFBNCO-3E",1299]
["SEYMORE JOHNSON AFB","NC","O-1","SEYMORE JOHNSON AFBNCO-1","SEYMORE JOHNSON AFBNCO-1",936]
["SEYMORE JOHNSON AFB","NC","O-2","SEYMORE JOHNSON AFBNCO-2","SEYMORE JOHNSON AFBNCO-2",1038]
["SEYMORE JOHNSON AFB","NC","O-3","SEYMORE JOHNSON AFBNCO-3","SEYMORE JOHNSON AFBNCO-3",1212]
["SEYMORE JOHNSON AFB","NC","O-4","SEYMORE JOHNSON AFBNCO-4","SEYMORE JOHNSON AFBNCO-4",1404]
["SEYMORE JOHNSON AFB","NC","O-5","SEYMORE JOHNSON AFBNCO-5","SEYMORE JOHNSON AFBNCO-5",1464]
["SEYMORE JOHNSON AFB","NC","O-6","SEYMORE JOHNSON AFBNCO-6","SEYMORE JOHNSON AFBNCO-6",1560]
["SEYMORE JOHNSON AFB","NC","O-7","SEYMORE JOHNSON AFBNCO-7","SEYMORE JOHNSON AFBNCO-7",1593]
["GREENSBORO","NC","E-1","GREENSBORONCE-1","GREENSBORONCE-1",717,717,717,717,717,810,867,933,1026,1062,900,1023,1065,1134,1173,999,1053,1122,855,975,1080,1167,1239,1251,1263]
["GREENSBORO","NC","E-2","GREENSBORONCE-2","GREENSBORONCE-2",717]
["GREENSBORO","NC","E-3","GREENSBORONCE-3","GREENSBORONCE-3",717]
["GREENSBORO","NC","E-4","GREENSBORONCE-4","GREENSBORONCE-4",717]
["GREENSBORO","NC","E-5","GREENSBORONCE-5","GREENSBORONCE-5",810]
["GREENSBORO","NC","E-6","GREENSBORONCE-6","GREENSBORONCE-6",867]
["GREENSBORO","NC","E-7","GREENSBORONCE-7","GREENSBORONCE-7",933]
["GREENSBORO","NC","E-8","GREENSBORONCE-8","GREENSBORONCE-8",1026]
["GREENSBORO","NC","E-9","GREENSBORONCE-9","GREENSBORONCE-9",1062]
["GREENSBORO","NC","W-1","GREENSBORONCW-1","GREENSBORONCW-1",900]
["GREENSBORO","NC","W-2","GREENSBORONCW-2","GREENSBORONCW-2",1023]
["GREENSBORO","NC","W-3","GREENSBORONCW-3","GREENSBORONCW-3",1065]
["GREENSBORO","NC","W-4","GREENSBORONCW-4","GREENSBORONCW-4",1134]
["GREENSBORO","NC","W-5","GREENSBORONCW-5","GREENSBORONCW-5",1173]
["GREENSBORO","NC","O-1E","GREENSBORONCO-1E","GREENSBORONCO-1E",999]
["GREENSBORO","NC","O-2E","GREENSBORONCO-2E","GREENSBORONCO-2E",1053]
["GREENSBORO","NC","O-3E","GREENSBORONCO-3E","GREENSBORONCO-3E",1122]
["GREENSBORO","NC","O-1","GREENSBORONCO-1","GREENSBORONCO-1",855]
["GREENSBORO","NC","O-2","GREENSBORONCO-2","GREENSBORONCO-2",975]
["GREENSBORO","NC","O-3","GREENSBORONCO-3","GREENSBORONCO-3",1080]
["GREENSBORO","NC","O-4","GREENSBORONCO-4","GREENSBORONCO-4",1167]
["GREENSBORO","NC","O-5","GREENSBORONCO-5","GREENSBORONCO-5",1239]
["GREENSBORO","NC","O-6","GREENSBORONCO-6","GREENSBORONCO-6",1251]
["GREENSBORO","NC","O-7","GREENSBORONCO-7","GREENSBORONCO-7",1263]
["RALEIGH","NC","E-1","RALEIGHNCE-1","RALEIGHNCE-1",864,864,864,864,864,963,1020,1068,1167,1242,1047,1164,1248,1371,1413,1116,1224,1359,1014,1098,1272,1431,1665,1683,1698]
["RALEIGH","NC","E-2","RALEIGHNCE-2","RALEIGHNCE-2",864]
["RALEIGH","NC","E-3","RALEIGHNCE-3","RALEIGHNCE-3",864]
["RALEIGH","NC","E-4","RALEIGHNCE-4","RALEIGHNCE-4",864]
["RALEIGH","NC","E-5","RALEIGHNCE-5","RALEIGHNCE-5",963]
["RALEIGH","NC","E-6","RALEIGHNCE-6","RALEIGHNCE-6",1020]
["RALEIGH","NC","E-7","RALEIGHNCE-7","RALEIGHNCE-7",1068]
["RALEIGH","NC","E-8","RALEIGHNCE-8","RALEIGHNCE-8",1167]
["RALEIGH","NC","E-9","RALEIGHNCE-9","RALEIGHNCE-9",1242]
["RALEIGH","NC","W-1","RALEIGHNCW-1","RALEIGHNCW-1",1047]
["RALEIGH","NC","W-2","RALEIGHNCW-2","RALEIGHNCW-2",1164]
["RALEIGH","NC","W-3","RALEIGHNCW-3","RALEIGHNCW-3",1248]
["RALEIGH","NC","W-4","RALEIGHNCW-4","RALEIGHNCW-4",1371]
["RALEIGH","NC","W-5","RALEIGHNCW-5","RALEIGHNCW-5",1413]
["RALEIGH","NC","O-1E","RALEIGHNCO-1E","RALEIGHNCO-1E",1116]
["RALEIGH","NC","O-2E","RALEIGHNCO-2E","RALEIGHNCO-2E",1224]
["RALEIGH","NC","O-3E","RALEIGHNCO-3E","RALEIGHNCO-3E",1359]
["RALEIGH","NC","O-1","RALEIGHNCO-1","RALEIGHNCO-1",1014]
["RALEIGH","NC","O-2","RALEIGHNCO-2","RALEIGHNCO-2",1098]
["RALEIGH","NC","O-3","RALEIGHNCO-3","RALEIGHNCO-3",1272]
["RALEIGH","NC","O-4","RALEIGHNCO-4","RALEIGHNCO-4",1431]
["RALEIGH","NC","O-5","RALEIGHNCO-5","RALEIGHNCO-5",1665]
["RALEIGH","NC","O-6","RALEIGHNCO-6","RALEIGHNCO-6",1683]
["RALEIGH","NC","O-7","RALEIGHNCO-7","RALEIGHNCO-7",1698]
["WILMINGTON","NC","E-1",{"$f":"A5186&B5186&C5186","v":"WILMINGTONNCE-1"},"WILMINGTONNCE-1",966,966,966,966,966,1089,1161,1236,1332,1365,1200,1332,1368,1431,1503,1311,1356,1416,1149,1284,1377,1494,1536,1608,1641]
["WILMINGTON","NC","E-2","WILMINGTONNCE-2","WILMINGTONNCE-2",966]
["WILMINGTON","NC","E-3","WILMINGTONNCE-3","WILMINGTONNCE-3",966]
["WILMINGTON","NC","E-4","WILMINGTONNCE-4","WILMINGTONNCE-4",966]
["WILMINGTON","NC","E-5","WILMINGTONNCE-5","WILMINGTONNCE-5",1089]
["WILMINGTON","NC","E-6","WILMINGTONNCE-6","WILMINGTONNCE-6",1161]
["WILMINGTON","NC","E-7","WILMINGTONNCE-7","WILMINGTONNCE-7",1236]
["WILMINGTON","NC","E-8","WILMINGTONNCE-8","WILMINGTONNCE-8",1332]
["WILMINGTON","NC","E-9","WILMINGTONNCE-9","WILMINGTONNCE-9",1365]
["WILMINGTON","NC","W-1","WILMINGTONNCW-1","WILMINGTONNCW-1",1200]
["WILMINGTON","NC","W-2","WILMINGTONNCW-2","WILMINGTONNCW-2",1332]
["WILMINGTON","NC","W-3","WILMINGTONNCW-3","WILMINGTONNCW-3",1368]
["WILMINGTON","NC","W-4","WILMINGTONNCW-4","WILMINGTONNCW-4",1431]
["WILMINGTON","NC","W-5","WILMINGTONNCW-5","WILMINGTONNCW-5",1503]
["WILMINGTON","NC","O-1E","WILMINGTONNCO-1E","WILMINGTONNCO-1E",1311]
["WILMINGTON","NC","O-2E","WILMINGTONNCO-2E","WILMINGTONNCO-2E",1356]
["WILMINGTON","NC","O-3E","WILMINGTONNCO-3E","WILMINGTONNCO-3E",1416]
["WILMINGTON","NC","O-1","WILMINGTONNCO-1","WILMINGTONNCO-1",1149]
["WILMINGTON","NC","O-2","WILMINGTONNCO-2","WILMINGTONNCO-2",1284]
["WILMINGTON","NC","O-3","WILMINGTONNCO-3","WILMINGTONNCO-3",1377]
["WILMINGTON","NC","O-4","WILMINGTONNCO-4","WILMINGTONNCO-4",1494]
["WILMINGTON","NC","O-5","WILMINGTONNCO-5","WILMINGTONNCO-5",1536]
["WILMINGTON","NC","O-6","WILMINGTONNCO-6","WILMINGTONNCO-6",1608]
["WILMINGTON","NC","O-7","WILMINGTONNCO-7","WILMINGTONNCO-7",1641]
["ASHEVILLE","NC","E-1","ASHEVILLENCE-1","ASHEVILLENCE-1",879,879,879,879,879,993,1083,1149,1278,1344,1107,1275,1350,1461,1533,1236,1329,1446,1050,1203,1371,1524,1596,1638,1671]
["ASHEVILLE","NC","E-2","ASHEVILLENCE-2","ASHEVILLENCE-2",879]
["ASHEVILLE","NC","E-3","ASHEVILLENCE-3","ASHEVILLENCE-3",879]
["ASHEVILLE","NC","E-4","ASHEVILLENCE-4","ASHEVILLENCE-4",879]
["ASHEVILLE","NC","E-5","ASHEVILLENCE-5","ASHEVILLENCE-5",993]
["ASHEVILLE","NC","E-6","ASHEVILLENCE-6","ASHEVILLENCE-6",1083]
["ASHEVILLE","NC","E-7","ASHEVILLENCE-7","ASHEVILLENCE-7",1149]
["ASHEVILLE","NC","E-8","ASHEVILLENCE-8","ASHEVILLENCE-8",1278]
["ASHEVILLE","NC","E-9","ASHEVILLENCE-9","ASHEVILLENCE-9",1344]
["ASHEVILLE","NC","W-1","ASHEVILLENCW-1","ASHEVILLENCW-1",1107]
["ASHEVILLE","NC","W-2","ASHEVILLENCW-2","ASHEVILLENCW-2",1275]
["ASHEVILLE","NC","W-3","ASHEVILLENCW-3","ASHEVILLENCW-3",1350]
["ASHEVILLE","NC","W-4","ASHEVILLENCW-4","ASHEVILLENCW-4",1461]
["ASHEVILLE","NC","W-5","ASHEVILLENCW-5","ASHEVILLENCW-5",1533]
["ASHEVILLE","NC","O-1E","ASHEVILLENCO-1E","ASHEVILLENCO-1E",1236]
["ASHEVILLE","NC","O-2E","ASHEVILLENCO-2E","ASHEVILLENCO-2E",1329]
["ASHEVILLE","NC","O-3E","ASHEVILLENCO-3E","ASHEVILLENCO-3E",1446]
["ASHEVILLE","NC","O-1","ASHEVILLENCO-1","ASHEVILLENCO-1",1050]
["ASHEVILLE","NC","O-2","ASHEVILLENCO-2","ASHEVILLENCO-2",1203]
["ASHEVILLE","NC","O-3","ASHEVILLENCO-3","ASHEVILLENCO-3",1371]
["ASHEVILLE","NC","O-4","ASHEVILLENCO-4","ASHEVILLENCO-4",1524]
["ASHEVILLE","NC","O-5","ASHEVILLENCO-5","ASHEVILLENCO-5",1596]
["ASHEVILLE","NC","O-6","ASHEVILLENCO-6","ASHEVILLENCO-6",1638]
["ASHEVILLE","NC","O-7","ASHEVILLENCO-7","ASHEVILLENCO-7",1671]
["GREENVILLE","NC","E-1","GREENVILLENCE-1","GREENVILLENCE-1",720,720,720,720,720,798,897,1002,1113,1218,900,1047,1185,1233,1368,1023,1164,1242,837,981,1179,1350,1437,1578,1611]
["GREENVILLE","NC","E-2","GREENVILLENCE-2","GREENVILLENCE-2",720]
["GREENVILLE","NC","E-3","GREENVILLENCE-3","GREENVILLENCE-3",720]
["GREENVILLE","NC","E-4","GREENVILLENCE-4","GREENVILLENCE-4",720]
["GREENVILLE","NC","E-5","GREENVILLENCE-5","GREENVILLENCE-5",798]
["GREENVILLE","NC","E-6","GREENVILLENCE-6","GREENVILLENCE-6",897]
["GREENVILLE","NC","E-7","GREENVILLENCE-7","GREENVILLENCE-7",1002]
["GREENVILLE","NC","E-8","GREENVILLENCE-8","GREENVILLENCE-8",1113]
["GREENVILLE","NC","E-9","GREENVILLENCE-9","GREENVILLENCE-9",1218]
["GREENVILLE","NC","W-1","GREENVILLENCW-1","GREENVILLENCW-1",900]
["GREENVILLE","NC","W-2","GREENVILLENCW-2","GREENVILLENCW-2",1047]
["GREENVILLE","NC","W-3","GREENVILLENCW-3","GREENVILLENCW-3",1185]
["GREENVILLE","NC","W-4","GREENVILLENCW-4","GREENVILLENCW-4",1233]
["GREENVILLE","NC","W-5","GREENVILLENCW-5","GREENVILLENCW-5",1368]
["GREENVILLE","NC","O-1E","GREENVILLENCO-1E","GREENVILLENCO-1E",1023]
["GREENVILLE","NC","O-2E","GREENVILLENCO-2E","GREENVILLENCO-2E",1164]
["GREENVILLE","NC","O-3E",{"$f":"A5250&B5250&C5250","v":"GREENVILLENCO-3E"},"GREENVILLENCO-3E",1242]
["GREENVILLE","NC","O-1","GREENVILLENCO-1","GREENVILLENCO-1",837]
["GREENVILLE","NC","O-2","GREENVILLENCO-2","GREENVILLENCO-2",981]
["GREENVILLE","NC","O-3","GREENVILLENCO-3","GREENVILLENCO-3",1179]
["GREENVILLE","NC","O-4","GREENVILLENCO-4","GREENVILLENCO-4",1350]
["GREENVILLE","NC","O-5","GREENVILLENCO-5","GREENVILLENCO-5",1437]
["GREENVILLE","NC","O-6","GREENVILLENCO-6","GREENVILLENCO-6",1578]
["GREENVILLE","NC","O-7","GREENVILLENCO-7","GREENVILLENCO-7",1611]
["BISMARCK","ND","E-1","BISMARCKNDE-1","BISMARCKNDE-1",723,723,723,723,723,831,1035,1095,1161,1248,1038,1158,1254,1401,1479,1107,1227,1380,852,1059,1281,1467,1518,1599,1629]
["BISMARCK","ND","E-2","BISMARCKNDE-2","BISMARCKNDE-2",723]
["BISMARCK","ND","E-3","BISMARCKNDE-3","BISMARCKNDE-3",723]
["BISMARCK","ND","E-4","BISMARCKNDE-4","BISMARCKNDE-4",723]
["BISMARCK","ND","E-5","BISMARCKNDE-5","BISMARCKNDE-5",831]
["BISMARCK","ND","E-6","BISMARCKNDE-6","BISMARCKNDE-6",1035]
["BISMARCK","ND","E-7","BISMARCKNDE-7","BISMARCKNDE-7",1095]
["BISMARCK","ND","E-8","BISMARCKNDE-8","BISMARCKNDE-8",1161]
["BISMARCK","ND","E-9","BISMARCKNDE-9","BISMARCKNDE-9",1248]
["BISMARCK","ND","W-1","BISMARCKNDW-1","BISMARCKNDW-1",1038]
["BISMARCK","ND","W-2","BISMARCKNDW-2","BISMARCKNDW-2",1158]
["BISMARCK","ND","W-3","BISMARCKNDW-3","BISMARCKNDW-3",1254]
["BISMARCK","ND","W-4","BISMARCKNDW-4","BISMARCKNDW-4",1401]
["BISMARCK","ND","W-5","BISMARCKNDW-5","BISMARCKNDW-5",1479]
["BISMARCK","ND","O-1E","BISMARCKNDO-1E","BISMARCKNDO-1E",1107]
["BISMARCK","ND","O-2E","BISMARCKNDO-2E","BISMARCKNDO-2E",1227]
["BISMARCK","ND","O-3E","BISMARCKNDO-3E","BISMARCKNDO-3E",1380]
["BISMARCK","ND","O-1","BISMARCKNDO-1","BISMARCKNDO-1",852]
["BISMARCK","ND","O-2","BISMARCKNDO-2","BISMARCKNDO-2",1059]
["BISMARCK","ND","O-3","BISMARCKNDO-3","BISMARCKNDO-3",1281]
["BISMARCK","ND","O-4","BISMARCKNDO-4","BISMARCKNDO-4",1467]
["BISMARCK","ND","O-5","BISMARCKNDO-5","BISMARCKNDO-5",1518]
["BISMARCK","ND","O-6","BISMARCKNDO-6","BISMARCKNDO-6",1599]
["BISMARCK","ND","O-7","BISMARCKNDO-7","BISMARCKNDO-7",1629]
["FARGO","ND","E-1","FARGONDE-1","FARGONDE-1",678,678,678,678,678,768,1029,1050,1092,1200,1029,1089,1212,1380,1404,1053,1176,1371,795,1023,1245,1401,1419,1446,1476]
["FARGO","ND","E-2","FARGONDE-2","FARGONDE-2",678]
["FARGO","ND","E-3","FARGONDE-3","FARGONDE-3",678]
["FARGO","ND","E-4","FARGONDE-4","FARGONDE-4",678]
["FARGO","ND","E-5","FARGONDE-5","FARGONDE-5",768]
["FARGO","ND","E-6","FARGONDE-6","FARGONDE-6",1029]
["FARGO","ND","E-7","FARGONDE-7","FARGONDE-7",1050]
["FARGO","ND","E-8","FARGONDE-8","FARGONDE-8",1092]
["FARGO","ND","E-9","FARGONDE-9","FARGONDE-9",1200]
["FARGO","ND","W-1","FARGONDW-1","FARGONDW-1",1029]
["FARGO","ND","W-2","FARGONDW-2","FARGONDW-2",1089]
["FARGO","ND","W-3","FARGONDW-3","FARGONDW-3",1212]
["FARGO","ND","W-4","FARGONDW-4","FARGONDW-4",1380]
["FARGO","ND","W-5","FARGONDW-5","FARGONDW-5",1404]
["FARGO","ND","O-1E","FARGONDO-1E","FARGONDO-1E",1053]
["FARGO","ND","O-2E","FARGONDO-2E","FARGONDO-2E",1176]
["FARGO","ND","O-3E","FARGONDO-3E","FARGONDO-3E",1371]
["FARGO","ND","O-1","FARGONDO-1","FARGONDO-1",795]
["FARGO","ND","O-2","FARGONDO-2","FARGONDO-2",1023]
["FARGO","ND","O-3","FARGONDO-3","FARGONDO-3",1245]
["FARGO","ND","O-4","FARGONDO-4","FARGONDO-4",1401]
["FARGO","ND","O-5","FARGONDO-5","FARGONDO-5",1419]
["FARGO","ND","O-6","FARGONDO-6","FARGONDO-6",1446]
["FARGO","ND","O-7","FARGONDO-7","FARGONDO-7",1476]
["GRAND FORKS","ND","E-1","GRAND FORKSNDE-1","GRAND FORKSNDE-1",678,678,678,678,678,756,936,984,1047,1125,936,1044,1131,1263,1329,999,1107,1245,810,966,1158,1320,1362,1428,1458]
["GRAND FORKS","ND","E-2","GRAND FORKSNDE-2","GRAND FORKSNDE-2",678]
["GRAND FORKS","ND","E-3","GRAND FORKSNDE-3","GRAND FORKSNDE-3",678]
["GRAND FORKS","ND","E-4","GRAND FORKSNDE-4","GRAND FORKSNDE-4",678]
["GRAND FORKS","ND","E-5","GRAND FORKSNDE-5","GRAND FORKSNDE-5",756]
["GRAND FORKS","ND","E-6","GRAND FORKSNDE-6","GRAND FORKSNDE-6",936]
["GRAND FORKS","ND","E-7","GRAND FORKSNDE-7","GRAND FORKSNDE-7",984]
["GRAND FORKS","ND","E-8","GRAND FORKSNDE-8","GRAND FORKSNDE-8",1047]
["GRAND FORKS","ND","E-9",{"$f":"A5314&B5314&C5314","v":"GRAND FORKSNDE-9"},"GRAND FORKSNDE-9",1125]
["GRAND FORKS","ND","W-1","GRAND FORKSNDW-1","GRAND FORKSNDW-1",936]
["GRAND FORKS","ND","W-2","GRAND FORKSNDW-2","GRAND FORKSNDW-2",1044]
["GRAND FORKS","ND","W-3","GRAND FORKSNDW-3","GRAND FORKSNDW-3",1131]
["GRAND FORKS","ND","W-4","GRAND FORKSNDW-4","GRAND FORKSNDW-4",1263]
["GRAND FORKS","ND","W-5","GRAND FORKSNDW-5","GRAND FORKSNDW-5",1329]
["GRAND FORKS","ND","O-1E","GRAND FORKSNDO-1E","GRAND FORKSNDO-1E",999]
["GRAND FORKS","ND","O-2E","GRAND FORKSNDO-2E","GRAND FORKSNDO-2E",1107]
["GRAND FORKS","ND","O-3E","GRAND FORKSNDO-3E","GRAND FORKSNDO-3E",1245]
["GRAND FORKS","ND","O-1","GRAND FORKSNDO-1","GRAND FORKSNDO-1",810]
["GRAND FORKS","ND","O-2","GRAND FORKSNDO-2","GRAND FORKSNDO-2",966]
["GRAND FORKS","ND","O-3","GRAND FORKSNDO-3","GRAND FORKSNDO-3",1158]
["GRAND FORKS","ND","O-4","GRAND FORKSNDO-4","GRAND FORKSNDO-4",1320]
["GRAND FORKS","ND","O-5","GRAND FORKSNDO-5","GRAND FORKSNDO-5",1362]
["GRAND FORKS","ND","O-6","GRAND FORKSNDO-6","GRAND FORKSNDO-6",1428]
["GRAND FORKS","ND","O-7","GRAND FORKSNDO-7","GRAND FORKSNDO-7",1458]
["MINOT AFB","ND","E-1","MINOT AFBNDE-1","MINOT AFBNDE-1",666,666,666,666,666,753,1032,1047,1062,1179,1032,1053,1191,1380,1401,1050,1149,1374,795,1026,1230,1398,1410,1431,1461]
["MINOT AFB","ND","E-2","MINOT AFBNDE-2","MINOT AFBNDE-2",666]
["MINOT AFB","ND","E-3","MINOT AFBNDE-3","MINOT AFBNDE-3",666]
["MINOT AFB","ND","E-4","MINOT AFBNDE-4","MINOT AFBNDE-4",666]
["MINOT AFB","ND","E-5","MINOT AFBNDE-5","MINOT AFBNDE-5",753]
["MINOT AFB","ND","E-6","MINOT AFBNDE-6","MINOT AFBNDE-6",1032]
["MINOT AFB","ND","E-7","MINOT AFBNDE-7","MINOT AFBNDE-7",1047]
["MINOT AFB","ND","E-8","MINOT AFBNDE-8","MINOT AFBNDE-8",1062]
["MINOT AFB","ND","E-9","MINOT AFBNDE-9","MINOT AFBNDE-9",1179]
["MINOT AFB","ND","W-1","MINOT AFBNDW-1","MINOT AFBNDW-1",1032]
["MINOT AFB","ND","W-2","MINOT AFBNDW-2","MINOT AFBNDW-2",1053]
["MINOT AFB","ND","W-3","MINOT AFBNDW-3","MINOT AFBNDW-3",1191]
["MINOT AFB","ND","W-4","MINOT AFBNDW-4","MINOT AFBNDW-4",1380]
["MINOT AFB","ND","W-5","MINOT AFBNDW-5","MINOT AFBNDW-5",1401]
["MINOT AFB","ND","O-1E","MINOT AFBNDO-1E","MINOT AFBNDO-1E",1050]
["MINOT AFB","ND","O-2E","MINOT AFBNDO-2E","MINOT AFBNDO-2E",1149]
["MINOT AFB","ND","O-3E","MINOT AFBNDO-3E","MINOT AFBNDO-3E",1374]
["MINOT AFB","ND","O-1","MINOT AFBNDO-1","MINOT AFBNDO-1",795]
["MINOT AFB","ND","O-2","MINOT AFBNDO-2","MINOT AFBNDO-2",1026]
["MINOT AFB","ND","O-3","MINOT AFBNDO-3","MINOT AFBNDO-3",1230]
["MINOT AFB","ND","O-4","MINOT AFBNDO-4","MINOT AFBNDO-4",1398]
["MINOT AFB","ND","O-5","MINOT AFBNDO-5","MINOT AFBNDO-5",1410]
["MINOT AFB","ND","O-6","MINOT AFBNDO-6","MINOT AFBNDO-6",1431]
["MINOT AFB","ND","O-7","MINOT AFBNDO-7","MINOT AFBNDO-7",1461]
["OMAHA/OFFUTT AFB","NE","E-1","OMAHA/OFFUTT AFBNEE-1","OMAHA/OFFUTT AFBNEE-1",729,729,729,729,729,822,975,1014,1122,1191,975,1119,1197,1314,1368,1077,1176,1299,867,1041,1221,1359,1392,1449,1476]
["OMAHA/OFFUTT AFB","NE","E-2","OMAHA/OFFUTT AFBNEE-2","OMAHA/OFFUTT AFBNEE-2",729]
["OMAHA/OFFUTT AFB","NE","E-3","OMAHA/OFFUTT AFBNEE-3","OMAHA/OFFUTT AFBNEE-3",729]
["OMAHA/OFFUTT AFB","NE","E-4","OMAHA/OFFUTT AFBNEE-4","OMAHA/OFFUTT AFBNEE-4",729]
["OMAHA/OFFUTT AFB","NE","E-5","OMAHA/OFFUTT AFBNEE-5","OMAHA/OFFUTT AFBNEE-5",822]
["OMAHA/OFFUTT AFB","NE","E-6","OMAHA/OFFUTT AFBNEE-6","OMAHA/OFFUTT AFBNEE-6",975]
["OMAHA/OFFUTT AFB","NE","E-7","OMAHA/OFFUTT AFBNEE-7","OMAHA/OFFUTT AFBNEE-7",1014]
["OMAHA/OFFUTT AFB","NE","E-8","OMAHA/OFFUTT AFBNEE-8","OMAHA/OFFUTT AFBNEE-8",1122]
["OMAHA/OFFUTT AFB","NE","E-9","OMAHA/OFFUTT AFBNEE-9","OMAHA/OFFUTT AFBNEE-9",1191]
["OMAHA/OFFUTT AFB","NE","W-1","OMAHA/OFFUTT AFBNEW-1","OMAHA/OFFUTT AFBNEW-1",975]
["OMAHA/OFFUTT AFB","NE","W-2","OMAHA/OFFUTT AFBNEW-2","OMAHA/OFFUTT AFBNEW-2",1119]
["OMAHA/OFFUTT AFB","NE","W-3","OMAHA/OFFUTT AFBNEW-3","OMAHA/OFFUTT AFBNEW-3",1197]
["OMAHA/OFFUTT AFB","NE","W-4","OMAHA/OFFUTT AFBNEW-4","OMAHA/OFFUTT AFBNEW-4",1314]
["OMAHA/OFFUTT AFB","NE","W-5","OMAHA/OFFUTT AFBNEW-5","OMAHA/OFFUTT AFBNEW-5",1368]
["OMAHA/OFFUTT AFB","NE","O-1E","OMAHA/OFFUTT AFBNEO-1E","OMAHA/OFFUTT AFBNEO-1E",1077]
["OMAHA/OFFUTT AFB","NE","O-2E","OMAHA/OFFUTT AFBNEO-2E","OMAHA/OFFUTT AFBNEO-2E",1176]
["OMAHA/OFFUTT AFB","NE","O-3E","OMAHA/OFFUTT AFBNEO-3E","OMAHA/OFFUTT AFBNEO-3E",1299]
["OMAHA/OFFUTT AFB","NE","O-1","OMAHA/OFFUTT AFBNEO-1","OMAHA/OFFUTT AFBNEO-1",867]
["OMAHA/OFFUTT AFB","NE","O-2","OMAHA/OFFUTT AFBNEO-2","OMAHA/OFFUTT AFBNEO-2",1041]
["OMAHA/OFFUTT AFB","NE","O-3","OMAHA/OFFUTT AFBNEO-3","OMAHA/OFFUTT AFBNEO-3",1221]
["OMAHA/OFFUTT AFB","NE","O-4","OMAHA/OFFUTT AFBNEO-4","OMAHA/OFFUTT AFBNEO-4",1359]
["OMAHA/OFFUTT AFB","NE","O-5","OMAHA/OFFUTT AFBNEO-5","OMAHA/OFFUTT AFBNEO-5",1392]
["OMAHA/OFFUTT AFB","NE","O-6","OMAHA/OFFUTT AFBNEO-6","OMAHA/OFFUTT AFBNEO-6",1449]
["OMAHA/OFFUTT AFB","NE","O-7","OMAHA/OFFUTT AFBNEO-7","OMAHA/OFFUTT AFBNEO-7",1476]
["LINCOLN","NE","E-1",{"$f":"A5378&B5378&C5378","v":"LINCOLNNEE-1"},"LINCOLNNEE-1",777,777,777,777,777,870,933,1038,1161,1188,990,1161,1191,1236,1266,1146,1182,1227,918,1107,1197,1260,1281,1311,1338]
["LINCOLN","NE","E-2","LINCOLNNEE-2","LINCOLNNEE-2",777]
["LINCOLN","NE","E-3","LINCOLNNEE-3","LINCOLNNEE-3",777]
["LINCOLN","NE","E-4","LINCOLNNEE-4","LINCOLNNEE-4",777]
["LINCOLN","NE","E-5","LINCOLNNEE-5","LINCOLNNEE-5",870]
["LINCOLN","NE","E-6","LINCOLNNEE-6","LINCOLNNEE-6",933]
["LINCOLN","NE","E-7","LINCOLNNEE-7","LINCOLNNEE-7",1038]
["LINCOLN","NE","E-8","LINCOLNNEE-8","LINCOLNNEE-8",1161]
["LINCOLN","NE","E-9","LINCOLNNEE-9","LINCOLNNEE-9",1188]
["LINCOLN","NE","W-1","LINCOLNNEW-1","LINCOLNNEW-1",990]
["LINCOLN","NE","W-2","LINCOLNNEW-2","LINCOLNNEW-2",1161]
["LINCOLN","NE","W-3","LINCOLNNEW-3","LINCOLNNEW-3",1191]
["LINCOLN","NE","W-4","LINCOLNNEW-4","LINCOLNNEW-4",1236]
["LINCOLN","NE","W-5","LINCOLNNEW-5","LINCOLNNEW-5",1266]
["LINCOLN","NE","O-1E","LINCOLNNEO-1E","LINCOLNNEO-1E",1146]
["LINCOLN","NE","O-2E","LINCOLNNEO-2E","LINCOLNNEO-2E",1182]
["LINCOLN","NE","O-3E","LINCOLNNEO-3E","LINCOLNNEO-3E",1227]
["LINCOLN","NE","O-1","LINCOLNNEO-1","LINCOLNNEO-1",918]
["LINCOLN","NE","O-2","LINCOLNNEO-2","LINCOLNNEO-2",1107]
["LINCOLN","NE","O-3","LINCOLNNEO-3","LINCOLNNEO-3",1197]
["LINCOLN","NE","O-4","LINCOLNNEO-4","LINCOLNNEO-4",1260]
["LINCOLN","NE","O-5","LINCOLNNEO-5","LINCOLNNEO-5",1281]
["LINCOLN","NE","O-6","LINCOLNNEO-6","LINCOLNNEO-6",1311]
["LINCOLN","NE","O-7","LINCOLNNEO-7","LINCOLNNEO-7",1338]
["PORTSMOUTH","NH","E-1","PORTSMOUTHNHE-1","PORTSMOUTHNHE-1",993,993,993,993,993,1119,1422,1497,1581,1698,1422,1569,1710,1920,2022,1515,1668,1893,1158,1434,1749,2010,2076,2181,2226]
["PORTSMOUTH","NH","E-2","PORTSMOUTHNHE-2","PORTSMOUTHNHE-2",993]
["PORTSMOUTH","NH","E-3","PORTSMOUTHNHE-3","PORTSMOUTHNHE-3",993]
["PORTSMOUTH","NH","E-4","PORTSMOUTHNHE-4","PORTSMOUTHNHE-4",993]
["PORTSMOUTH","NH","E-5","PORTSMOUTHNHE-5","PORTSMOUTHNHE-5",1119]
["PORTSMOUTH","NH","E-6","PORTSMOUTHNHE-6","PORTSMOUTHNHE-6",1422]
["PORTSMOUTH","NH","E-7","PORTSMOUTHNHE-7","PORTSMOUTHNHE-7",1497]
["PORTSMOUTH","NH","E-8","PORTSMOUTHNHE-8","PORTSMOUTHNHE-8",1581]
["PORTSMOUTH","NH","E-9","PORTSMOUTHNHE-9","PORTSMOUTHNHE-9",1698]
["PORTSMOUTH","NH","W-1","PORTSMOUTHNHW-1","PORTSMOUTHNHW-1",1422]
["PORTSMOUTH","NH","W-2","PORTSMOUTHNHW-2","PORTSMOUTHNHW-2",1569]
["PORTSMOUTH","NH","W-3","PORTSMOUTHNHW-3","PORTSMOUTHNHW-3",1710]
["PORTSMOUTH","NH","W-4","PORTSMOUTHNHW-4","PORTSMOUTHNHW-4",1920]
["PORTSMOUTH","NH","W-5","PORTSMOUTHNHW-5","PORTSMOUTHNHW-5",2022]
["PORTSMOUTH","NH","O-1E","PORTSMOUTHNHO-1E","PORTSMOUTHNHO-1E",1515]
["PORTSMOUTH","NH","O-2E","PORTSMOUTHNHO-2E","PORTSMOUTHNHO-2E",1668]
["PORTSMOUTH","NH","O-3E","PORTSMOUTHNHO-3E","PORTSMOUTHNHO-3E",1893]
["PORTSMOUTH","NH","O-1","PORTSMOUTHNHO-1","PORTSMOUTHNHO-1",1158]
["PORTSMOUTH","NH","O-2","PORTSMOUTHNHO-2","PORTSMOUTHNHO-2",1434]
["PORTSMOUTH","NH","O-3","PORTSMOUTHNHO-3","PORTSMOUTHNHO-3",1749]
["PORTSMOUTH","NH","O-4","PORTSMOUTHNHO-4","PORTSMOUTHNHO-4",2010]
["PORTSMOUTH","NH","O-5","PORTSMOUTHNHO-5","PORTSMOUTHNHO-5",2076]
["PORTSMOUTH","NH","O-6","PORTSMOUTHNHO-6","PORTSMOUTHNHO-6",2181]
["PORTSMOUTH","NH","O-7","PORTSMOUTHNHO-7","PORTSMOUTHNHO-7",2226]
["MANCHESTER/CONCORD","NH","E-1","MANCHESTER/CONCORDNHE-1","MANCHESTER/CONCORDNHE-1",1113,1113,1113,1113,1113,1245,1395,1494,1692,1755,1419,1689,1761,1875,1947,1650,1743,1857,1314,1593,1782,1938,1983,2058,2100]
["MANCHESTER/CONCORD","NH","E-2","MANCHESTER/CONCORDNHE-2","MANCHESTER/CONCORDNHE-2",1113]
["MANCHESTER/CONCORD","NH","E-3","MANCHESTER/CONCORDNHE-3","MANCHESTER/CONCORDNHE-3",1113]
["MANCHESTER/CONCORD","NH","E-4","MANCHESTER/CONCORDNHE-4","MANCHESTER/CONCORDNHE-4",1113]
["MANCHESTER/CONCORD","NH","E-5","MANCHESTER/CONCORDNHE-5","MANCHESTER/CONCORDNHE-5",1245]
["MANCHESTER/CONCORD","NH","E-6","MANCHESTER/CONCORDNHE-6","MANCHESTER/CONCORDNHE-6",1395]
["MANCHESTER/CONCORD","NH","E-7","MANCHESTER/CONCORDNHE-7","MANCHESTER/CONCORDNHE-7",1494]
["MANCHESTER/CONCORD","NH","E-8","MANCHESTER/CONCORDNHE-8","MANCHESTER/CONCORDNHE-8",1692]
["MANCHESTER/CONCORD","NH","E-9","MANCHESTER/CONCORDNHE-9","MANCHESTER/CONCORDNHE-9",1755]
["MANCHESTER/CONCORD","NH","W-1","MANCHESTER/CONCORDNHW-1","MANCHESTER/CONCORDNHW-1",1419]
["MANCHESTER/CONCORD","NH","W-2","MANCHESTER/CONCORDNHW-2","MANCHESTER/CONCORDNHW-2",1689]
["MANCHESTER/CONCORD","NH","W-3","MANCHESTER/CONCORDNHW-3","MANCHESTER/CONCORDNHW-3",1761]
["MANCHESTER/CONCORD","NH","W-4","MANCHESTER/CONCORDNHW-4","MANCHESTER/CONCORDNHW-4",1875]
["MANCHESTER/CONCORD","NH","W-5","MANCHESTER/CONCORDNHW-5","MANCHESTER/CONCORDNHW-5",1947]
["MANCHESTER/CONCORD","NH","O-1E","MANCHESTER/CONCORDNHO-1E","MANCHESTER/CONCORDNHO-1E",1650]
["MANCHESTER/CONCORD","NH","O-2E","MANCHESTER/CONCORDNHO-2E","MANCHESTER/CONCORDNHO-2E",1743]
["MANCHESTER/CONCORD","NH","O-3E",{"$f":"A5442&B5442&C5442","v":"MANCHESTER/CONCORDNHO-3E"},"MANCHESTER/CONCORDNHO-3E",1857]
["MANCHESTER/CONCORD","NH","O-1","MANCHESTER/CONCORDNHO-1","MANCHESTER/CONCORDNHO-1",1314]
["MANCHESTER/CONCORD","NH","O-2","MANCHESTER/CONCORDNHO-2","MANCHESTER/CONCORDNHO-2",1593]
["MANCHESTER/CONCORD","NH","O-3","MANCHESTER/CONCORDNHO-3","MANCHESTER/CONCORDNHO-3",1782]
["MANCHESTER/CONCORD","NH","O-4","MANCHESTER/CONCORDNHO-4","MANCHESTER/CONCORDNHO-4",1938]
["MANCHESTER/CONCORD","NH","O-5","MANCHESTER/CONCORDNHO-5","MANCHESTER/CONCORDNHO-5",1983]
["MANCHESTER/CONCORD","NH","O-6","MANCHESTER/CONCORDNHO-6","MANCHESTER/CONCORDNHO-6",2058]
["MANCHESTER/CONCORD","NH","O-7","MANCHESTER/CONCORDNHO-7","MANCHESTER/CONCORDNHO-7",2100]
["ATLANTIC CITY","NJ","E-1","ATLANTIC CITYNJE-1","ATLANTIC CITYNJE-1",1062,1062,1062,1062,1062,1191,1536,1545,1569,1752,1536,1563,1770,2049,2064,1548,1710,2046,1257,1527,1830,2061,2070,2085,2127]
["ATLANTIC CITY","NJ","E-2","ATLANTIC CITYNJE-2","ATLANTIC CITYNJE-2",1062]
["ATLANTIC CITY","NJ","E-3","ATLANTIC CITYNJE-3","ATLANTIC CITYNJE-3",1062]
["ATLANTIC CITY","NJ","E-4","ATLANTIC CITYNJE-4","ATLANTIC CITYNJE-4",1062]
["ATLANTIC CITY","NJ","E-5","ATLANTIC CITYNJE-5","ATLANTIC CITYNJE-5",1191]
["ATLANTIC CITY","NJ","E-6","ATLANTIC CITYNJE-6","ATLANTIC CITYNJE-6",1536]
["ATLANTIC CITY","NJ","E-7","ATLANTIC CITYNJE-7","ATLANTIC CITYNJE-7",1545]
["ATLANTIC CITY","NJ","E-8","ATLANTIC CITYNJE-8","ATLANTIC CITYNJE-8",1569]
["ATLANTIC CITY","NJ","E-9","ATLANTIC CITYNJE-9","ATLANTIC CITYNJE-9",1752]
["ATLANTIC CITY","NJ","W-1","ATLANTIC CITYNJW-1","ATLANTIC CITYNJW-1",1536]
["ATLANTIC CITY","NJ","W-2","ATLANTIC CITYNJW-2","ATLANTIC CITYNJW-2",1563]
["ATLANTIC CITY","NJ","W-3","ATLANTIC CITYNJW-3","ATLANTIC CITYNJW-3",1770]
["ATLANTIC CITY","NJ","W-4","ATLANTIC CITYNJW-4","ATLANTIC CITYNJW-4",2049]
["ATLANTIC CITY","NJ","W-5","ATLANTIC CITYNJW-5","ATLANTIC CITYNJW-5",2064]
["ATLANTIC CITY","NJ","O-1E","ATLANTIC CITYNJO-1E","ATLANTIC CITYNJO-1E",1548]
["ATLANTIC CITY","NJ","O-2E","ATLANTIC CITYNJO-2E","ATLANTIC CITYNJO-2E",1710]
["ATLANTIC CITY","NJ","O-3E","ATLANTIC CITYNJO-3E","ATLANTIC CITYNJO-3E",2046]
["ATLANTIC CITY","NJ","O-1","ATLANTIC CITYNJO-1","ATLANTIC CITYNJO-1",1257]
["ATLANTIC CITY","NJ","O-2","ATLANTIC CITYNJO-2","ATLANTIC CITYNJO-2",1527]
["ATLANTIC CITY","NJ","O-3","ATLANTIC CITYNJO-3","ATLANTIC CITYNJO-3",1830]
["ATLANTIC CITY","NJ","O-4","ATLANTIC CITYNJO-4","ATLANTIC CITYNJO-4",2061]
["ATLANTIC CITY","NJ","O-5","ATLANTIC CITYNJO-5","ATLANTIC CITYNJO-5",2070]
["ATLANTIC CITY","NJ","O-6","ATLANTIC CITYNJO-6","ATLANTIC CITYNJO-6",2085]
["ATLANTIC CITY","NJ","O-7","ATLANTIC CITYNJO-7","ATLANTIC CITYNJO-7",2127]
["CAMDEN","NJ","E-1","CAMDENNJE-1","CAMDENNJE-1",1164,1164,1164,1164,1164,1308,1509,1578,1764,1860,1509,1761,1869,2034,2130,1701,1836,2010,1404,1650,1899,2115,2175,2274,2319]
["CAMDEN","NJ","E-2","CAMDENNJE-2","CAMDENNJE-2",1164]
["CAMDEN","NJ","E-3","CAMDENNJE-3","CAMDENNJE-3",1164]
["CAMDEN","NJ","E-4","CAMDENNJE-4","CAMDENNJE-4",1164]
["CAMDEN","NJ","E-5","CAMDENNJE-5","CAMDENNJE-5",1308]
["CAMDEN","NJ","E-6","CAMDENNJE-6","CAMDENNJE-6",1509]
["CAMDEN","NJ","E-7","CAMDENNJE-7","CAMDENNJE-7",1578]
["CAMDEN","NJ","E-8","CAMDENNJE-8","CAMDENNJE-8",1764]
["CAMDEN","NJ","E-9","CAMDENNJE-9","CAMDENNJE-9",1860]
["CAMDEN","NJ","W-1","CAMDENNJW-1","CAMDENNJW-1",1509]
["CAMDEN","NJ","W-2","CAMDENNJW-2","CAMDENNJW-2",1761]
["CAMDEN","NJ","W-3","CAMDENNJW-3","CAMDENNJW-3",1869]
["CAMDEN","NJ","W-4","CAMDENNJW-4","CAMDENNJW-4",2034]
["CAMDEN","NJ","W-5","CAMDENNJW-5","CAMDENNJW-5",2130]
["CAMDEN","NJ","O-1E","CAMDENNJO-1E","CAMDENNJO-1E",1701]
["CAMDEN","NJ","O-2E","CAMDENNJO-2E","CAMDENNJO-2E",1836]
["CAMDEN","NJ","O-3E","CAMDENNJO-3E","CAMDENNJO-3E",2010]
["CAMDEN","NJ","O-1","CAMDENNJO-1","CAMDENNJO-1",1404]
["CAMDEN","NJ","O-2","CAMDENNJO-2","CAMDENNJO-2",1650]
["CAMDEN","NJ","O-3","CAMDENNJO-3","CAMDENNJO-3",1899]
["CAMDEN","NJ","O-4","CAMDENNJO-4","CAMDENNJO-4",2115]
["CAMDEN","NJ","O-5","CAMDENNJO-5","CAMDENNJO-5",2175]
["CAMDEN","NJ","O-6","CAMDENNJO-6","CAMDENNJO-6",2274]
["CAMDEN","NJ","O-7","CAMDENNJO-7","CAMDENNJO-7",2319]
["CAPE MAY","NJ","E-1","CAPE MAYNJE-1","CAPE MAYNJE-1",1059,1059,1059,1059,1059,1209,1377,1383,1512,1638,1377,1506,1650,1836,1848,1431,1608,1836,1284,1404,1689,1845,1851,1860,1899]
["CAPE MAY","NJ","E-2","CAPE MAYNJE-2","CAPE MAYNJE-2",1059]
["CAPE MAY","NJ","E-3","CAPE MAYNJE-3","CAPE MAYNJE-3",1059]
["CAPE MAY","NJ","E-4","CAPE MAYNJE-4","CAPE MAYNJE-4",1059]
["CAPE MAY","NJ","E-5","CAPE MAYNJE-5","CAPE MAYNJE-5",1209]
["CAPE MAY","NJ","E-6","CAPE MAYNJE-6","CAPE MAYNJE-6",1377]
["CAPE MAY","NJ","E-7","CAPE MAYNJE-7","CAPE MAYNJE-7",1383]
["CAPE MAY","NJ","E-8","CAPE MAYNJE-8","CAPE MAYNJE-8",1512]
["CAPE MAY","NJ","E-9",{"$f":"A5506&B5506&C5506","v":"CAPE MAYNJE-9"},"CAPE MAYNJE-9",1638]
["CAPE MAY","NJ","W-1","CAPE MAYNJW-1","CAPE MAYNJW-1",1377]
["CAPE MAY","NJ","W-2","CAPE MAYNJW-2","CAPE MAYNJW-2",1506]
["CAPE MAY","NJ","W-3","CAPE MAYNJW-3","CAPE MAYNJW-3",1650]
["CAPE MAY","NJ","W-4","CAPE MAYNJW-4","CAPE MAYNJW-4",1836]
["CAPE MAY","NJ","W-5","CAPE MAYNJW-5","CAPE MAYNJW-5",1848]
["CAPE MAY","NJ","O-1E","CAPE MAYNJO-1E","CAPE MAYNJO-1E",1431]
["CAPE MAY","NJ","O-2E","CAPE MAYNJO-2E","CAPE MAYNJO-2E",1608]
["CAPE MAY","NJ","O-3E","CAPE MAYNJO-3E","CAPE MAYNJO-3E",1836]
["CAPE MAY","NJ","O-1","CAPE MAYNJO-1","CAPE MAYNJO-1",1284]
["CAPE MAY","NJ","O-2","CAPE MAYNJO-2","CAPE MAYNJO-2",1404]
["CAPE MAY","NJ","O-3","CAPE MAYNJO-3","CAPE MAYNJO-3",1689]
["CAPE MAY","NJ","O-4","CAPE MAYNJO-4","CAPE MAYNJO-4",1845]
["CAPE MAY","NJ","O-5","CAPE MAYNJO-5","CAPE MAYNJO-5",1851]
["CAPE MAY","NJ","O-6","CAPE MAYNJO-6","CAPE MAYNJO-6",1860]
["CAPE MAY","NJ","O-7","CAPE MAYNJO-7","CAPE MAYNJO-7",1899]
["FORT MONMOUTH/EARLE NWS","NJ","E-1","FORT MONMOUTH/EARLE NWSNJE-1","FORT MONMOUTH/EARLE NWSNJE-1",1335,1335,1335,1335,1335,1497,1782,1824,2073,2190,1782,2070,2202,2388,2445,1998,2163,2373,1563,1923,2238,2436,2622,2646,2673]
["FORT MONMOUTH/EARLE NWS","NJ","E-2","FORT MONMOUTH/EARLE NWSNJE-2","FORT MONMOUTH/EARLE NWSNJE-2",1335]
["FORT MONMOUTH/EARLE NWS","NJ","E-3","FORT MONMOUTH/EARLE NWSNJE-3","FORT MONMOUTH/EARLE NWSNJE-3",1335]
["FORT MONMOUTH/EARLE NWS","NJ","E-4","FORT MONMOUTH/EARLE NWSNJE-4","FORT MONMOUTH/EARLE NWSNJE-4",1335]
["FORT MONMOUTH/EARLE NWS","NJ","E-5","FORT MONMOUTH/EARLE NWSNJE-5","FORT MONMOUTH/EARLE NWSNJE-5",1497]
["FORT MONMOUTH/EARLE NWS","NJ","E-6","FORT MONMOUTH/EARLE NWSNJE-6","FORT MONMOUTH/EARLE NWSNJE-6",1782]
["FORT MONMOUTH/EARLE NWS","NJ","E-7","FORT MONMOUTH/EARLE NWSNJE-7","FORT MONMOUTH/EARLE NWSNJE-7",1824]
["FORT MONMOUTH/EARLE NWS","NJ","E-8","FORT MONMOUTH/EARLE NWSNJE-8","FORT MONMOUTH/EARLE NWSNJE-8",2073]
["FORT MONMOUTH/EARLE NWS","NJ","E-9","FORT MONMOUTH/EARLE NWSNJE-9","FORT MONMOUTH/EARLE NWSNJE-9",2190]
["FORT MONMOUTH/EARLE NWS","NJ","W-1","FORT MONMOUTH/EARLE NWSNJW-1","FORT MONMOUTH/EARLE NWSNJW-1",1782]
["FORT MONMOUTH/EARLE NWS","NJ","W-2","FORT MONMOUTH/EARLE NWSNJW-2","FORT MONMOUTH/EARLE NWSNJW-2",2070]
["FORT MONMOUTH/EARLE NWS","NJ","W-3","FORT MONMOUTH/EARLE NWSNJW-3","FORT MONMOUTH/EARLE NWSNJW-3",2202]
["FORT MONMOUTH/EARLE NWS","NJ","W-4","FORT MONMOUTH/EARLE NWSNJW-4","FORT MONMOUTH/EARLE NWSNJW-4",2388]
["FORT MONMOUTH/EARLE NWS","NJ","W-5","FORT MONMOUTH/EARLE NWSNJW-5","FORT MONMOUTH/EARLE NWSNJW-5",2445]
["FORT MONMOUTH/EARLE NWS","NJ","O-1E","FORT MONMOUTH/EARLE NWSNJO-1E","FORT MONMOUTH/EARLE NWSNJO-1E",1998]
["FORT MONMOUTH/EARLE NWS","NJ","O-2E","FORT MONMOUTH/EARLE NWSNJO-2E","FORT MONMOUTH/EARLE NWSNJO-2E",2163]
["FORT MONMOUTH/EARLE NWS","NJ","O-3E","FORT MONMOUTH/EARLE NWSNJO-3E","FORT MONMOUTH/EARLE NWSNJO-3E",2373]
["FORT MONMOUTH/EARLE NWS","NJ","O-1","FORT MONMOUTH/EARLE NWSNJO-1","FORT MONMOUTH/EARLE NWSNJO-1",1563]
["FORT MONMOUTH/EARLE NWS","NJ","O-2","FORT MONMOUTH/EARLE NWSNJO-2","FORT MONMOUTH/EARLE NWSNJO-2",1923]
["FORT MONMOUTH/EARLE NWS","NJ","O-3","FORT MONMOUTH/EARLE NWSNJO-3","FORT MONMOUTH/EARLE NWSNJO-3",2238]
["FORT MONMOUTH/EARLE NWS","NJ","O-4","FORT MONMOUTH/EARLE NWSNJO-4","FORT MONMOUTH/EARLE NWSNJO-4",2436]
["FORT MONMOUTH/EARLE NWS","NJ","O-5","FORT MONMOUTH/EARLE NWSNJO-5","FORT MONMOUTH/EARLE NWSNJO-5",2622]
["FORT MONMOUTH/EARLE NWS","NJ","O-6","FORT MONMOUTH/EARLE NWSNJO-6","FORT MONMOUTH/EARLE NWSNJO-6",2646]
["FORT MONMOUTH/EARLE NWS","NJ","O-7","FORT MONMOUTH/EARLE NWSNJO-7","FORT MONMOUTH/EARLE NWSNJO-7",2673]
["PERTH AMBOY","NJ","E-1","PERTH AMBOYNJE-1","PERTH AMBOYNJE-1",1248,1248,1248,1248,1248,1431,1611,1671,1839,1959,1626,1836,1971,2166,2241,1764,1932,2148,1566,1728,2010,2232,2325,2358,2403]
["PERTH AMBOY","NJ","E-2","PERTH AMBOYNJE-2","PERTH AMBOYNJE-2",1248]
["PERTH AMBOY","NJ","E-3","PERTH AMBOYNJE-3","PERTH AMBOYNJE-3",1248]
["PERTH AMBOY","NJ","E-4","PERTH AMBOYNJE-4","PERTH AMBOYNJE-4",1248]
["PERTH AMBOY","NJ","E-5","PERTH AMBOYNJE-5","PERTH AMBOYNJE-5",1431]
["PERTH AMBOY","NJ","E-6","PERTH AMBOYNJE-6","PERTH AMBOYNJE-6",1611]
["PERTH AMBOY","NJ","E-7","PERTH AMBOYNJE-7","PERTH AMBOYNJE-7",1671]
["PERTH AMBOY","NJ","E-8","PERTH AMBOYNJE-8","PERTH AMBOYNJE-8",1839]
["PERTH AMBOY","NJ","E-9","PERTH AMBOYNJE-9","PERTH AMBOYNJE-9",1959]
["PERTH AMBOY","NJ","W-1","PERTH AMBOYNJW-1","PERTH AMBOYNJW-1",1626]
["PERTH AMBOY","NJ","W-2","PERTH AMBOYNJW-2","PERTH AMBOYNJW-2",1836]
["PERTH AMBOY","NJ","W-3","PERTH AMBOYNJW-3","PERTH AMBOYNJW-3",1971]
["PERTH AMBOY","NJ","W-4","PERTH AMBOYNJW-4","PERTH AMBOYNJW-4",2166]
["PERTH AMBOY","NJ","W-5","PERTH AMBOYNJW-5","PERTH AMBOYNJW-5",2241]
["PERTH AMBOY","NJ","O-1E","PERTH AMBOYNJO-1E","PERTH AMBOYNJO-1E",1764]
["PERTH AMBOY","NJ","O-2E","PERTH AMBOYNJO-2E","PERTH AMBOYNJO-2E",1932]
["PERTH AMBOY","NJ","O-3E","PERTH AMBOYNJO-3E","PERTH AMBOYNJO-3E",2148]
["PERTH AMBOY","NJ","O-1","PERTH AMBOYNJO-1","PERTH AMBOYNJO-1",1566]
["PERTH AMBOY","NJ","O-2","PERTH AMBOYNJO-2","PERTH AMBOYNJO-2",1728]
["PERTH AMBOY","NJ","O-3","PERTH AMBOYNJO-3","PERTH AMBOYNJO-3",2010]
["PERTH AMBOY","NJ","O-4","PERTH AMBOYNJO-4","PERTH AMBOYNJO-4",2232]
["PERTH AMBOY","NJ","O-5","PERTH AMBOYNJO-5","PERTH AMBOYNJO-5",2325]
["PERTH AMBOY","NJ","O-6","PERTH AMBOYNJO-6","PERTH AMBOYNJO-6",2358]
["PERTH AMBOY","NJ","O-7","PERTH AMBOYNJO-7","PERTH AMBOYNJO-7",2403]
["NORTHERN NEW JERSEY","NJ","E-1",{"$f":"A5570&B5570&C5570","v":"NORTHERN NEW JERSEYNJE-1"},"NORTHERN NEW JERSEYNJE-1",1482,1482,1482,1482,1482,1635,2079,2082,2283,2472,2079,2277,2490,2772,2778,2160,2430,2772,1791,2097,2550,2778,2781,2787,2841]
["NORTHERN NEW JERSEY","NJ","E-2","NORTHERN NEW JERSEYNJE-2","NORTHERN NEW JERSEYNJE-2",1482]
["NORTHERN NEW JERSEY","NJ","E-3","NORTHERN NEW JERSEYNJE-3","NORTHERN NEW JERSEYNJE-3",1482]
["NORTHERN NEW JERSEY","NJ","E-4","NORTHERN NEW JERSEYNJE-4","NORTHERN NEW JERSEYNJE-4",1482]
["NORTHERN NEW JERSEY","NJ","E-5","NORTHERN NEW JERSEYNJE-5","NORTHERN NEW JERSEYNJE-5",1635]
["NORTHERN NEW JERSEY","NJ","E-6","NORTHERN NEW JERSEYNJE-6","NORTHERN NEW JERSEYNJE-6",2079]
["NORTHERN NEW JERSEY","NJ","E-7","NORTHERN NEW JERSEYNJE-7","NORTHERN NEW JERSEYNJE-7",2082]
["NORTHERN NEW JERSEY","NJ","E-8","NORTHERN NEW JERSEYNJE-8","NORTHERN NEW JERSEYNJE-8",2283]
["NORTHERN NEW JERSEY","NJ","E-9","NORTHERN NEW JERSEYNJE-9","NORTHERN NEW JERSEYNJE-9",2472]
["NORTHERN NEW JERSEY","NJ","W-1","NORTHERN NEW JERSEYNJW-1","NORTHERN NEW JERSEYNJW-1",2079]
["NORTHERN NEW JERSEY","NJ","W-2","NORTHERN NEW JERSEYNJW-2","NORTHERN NEW JERSEYNJW-2",2277]
["NORTHERN NEW JERSEY","NJ","W-3","NORTHERN NEW JERSEYNJW-3","NORTHERN NEW JERSEYNJW-3",2490]
["NORTHERN NEW JERSEY","NJ","W-4","NORTHERN NEW JERSEYNJW-4","NORTHERN NEW JERSEYNJW-4",2772]
["NORTHERN NEW JERSEY","NJ","W-5","NORTHERN NEW JERSEYNJW-5","NORTHERN NEW JERSEYNJW-5",2778]
["NORTHERN NEW JERSEY","NJ","O-1E","NORTHERN NEW JERSEYNJO-1E","NORTHERN NEW JERSEYNJO-1E",2160]
["NORTHERN NEW JERSEY","NJ","O-2E","NORTHERN NEW JERSEYNJO-2E","NORTHERN NEW JERSEYNJO-2E",2430]
["NORTHERN NEW JERSEY","NJ","O-3E","NORTHERN NEW JERSEYNJO-3E","NORTHERN NEW JERSEYNJO-3E",2772]
["NORTHERN NEW JERSEY","NJ","O-1","NORTHERN NEW JERSEYNJO-1","NORTHERN NEW JERSEYNJO-1",1791]
["NORTHERN NEW JERSEY","NJ","O-2","NORTHERN NEW JERSEYNJO-2","NORTHERN NEW JERSEYNJO-2",2097]
["NORTHERN NEW JERSEY","NJ","O-3","NORTHERN NEW JERSEYNJO-3","NORTHERN NEW JERSEYNJO-3",2550]
["NORTHERN NEW JERSEY","NJ","O-4","NORTHERN NEW JERSEYNJO-4","NORTHERN NEW JERSEYNJO-4",2778]
["NORTHERN NEW JERSEY","NJ","O-5","NORTHERN NEW JERSEYNJO-5","NORTHERN NEW JERSEYNJO-5",2781]
["NORTHERN NEW JERSEY","NJ","O-6","NORTHERN NEW JERSEYNJO-6","NORTHERN NEW JERSEYNJO-6",2787]
["NORTHERN NEW JERSEY","NJ","O-7","NORTHERN NEW JERSEYNJO-7","NORTHERN NEW JERSEYNJO-7",2841]
["TRENTON","NJ","E-1","TRENTONNJE-1","TRENTONNJE-1",1104,1104,1104,1104,1104,1305,1593,1665,1815,1935,1596,1812,1947,2148,2241,1740,1908,2124,1335,1647,1986,2229,2289,2388,2436]
["TRENTON","NJ","E-2","TRENTONNJE-2","TRENTONNJE-2",1104]
["TRENTON","NJ","E-3","TRENTONNJE-3","TRENTONNJE-3",1104]
["TRENTON","NJ","E-4","TRENTONNJE-4","TRENTONNJE-4",1104]
["TRENTON","NJ","E-5","TRENTONNJE-5","TRENTONNJE-5",1305]
["TRENTON","NJ","E-6","TRENTONNJE-6","TRENTONNJE-6",1593]
["TRENTON","NJ","E-7","TRENTONNJE-7","TRENTONNJE-7",1665]
["TRENTON","NJ","E-8","TRENTONNJE-8","TRENTONNJE-8",1815]
["TRENTON","NJ","E-9","TRENTONNJE-9","TRENTONNJE-9",1935]
["TRENTON","NJ","W-1","TRENTONNJW-1","TRENTONNJW-1",1596]
["TRENTON","NJ","W-2","TRENTONNJW-2","TRENTONNJW-2",1812]
["TRENTON","NJ","W-3","TRENTONNJW-3","TRENTONNJW-3",1947]
["TRENTON","NJ","W-4","TRENTONNJW-4","TRENTONNJW-4",2148]
["TRENTON","NJ","W-5","TRENTONNJW-5","TRENTONNJW-5",2241]
["TRENTON","NJ","O-1E","TRENTONNJO-1E","TRENTONNJO-1E",1740]
["TRENTON","NJ","O-2E","TRENTONNJO-2E","TRENTONNJO-2E",1908]
["TRENTON","NJ","O-3E","TRENTONNJO-3E","TRENTONNJO-3E",2124]
["TRENTON","NJ","O-1","TRENTONNJO-1","TRENTONNJO-1",1335]
["TRENTON","NJ","O-2","TRENTONNJO-2","TRENTONNJO-2",1647]
["TRENTON","NJ","O-3","TRENTONNJO-3","TRENTONNJO-3",1986]
["TRENTON","NJ","O-4","TRENTONNJO-4","TRENTONNJO-4",2229]
["TRENTON","NJ","O-5","TRENTONNJO-5","TRENTONNJO-5",2289]
["TRENTON","NJ","O-6","TRENTONNJO-6","TRENTONNJO-6",2388]
["TRENTON","NJ","O-7","TRENTONNJO-7","TRENTONNJO-7",2436]
["FT DIX/MCGUIRE/LAKEHURST","NJ","E-1","FT DIX/MCGUIRE/LAKEHURSTNJE-1","FT DIX/MCGUIRE/LAKEHURSTNJE-1",1167,1167,1167,1167,1167,1302,1605,1653,1788,1923,1605,1785,1938,2157,2223,1701,1893,2139,1413,1653,1980,2214,2256,2325,2370]
["FT DIX/MCGUIRE/LAKEHURST","NJ","E-2","FT DIX/MCGUIRE/LAKEHURSTNJE-2","FT DIX/MCGUIRE/LAKEHURSTNJE-2",1167]
["FT DIX/MCGUIRE/LAKEHURST","NJ","E-3","FT DIX/MCGUIRE/LAKEHURSTNJE-3","FT DIX/MCGUIRE/LAKEHURSTNJE-3",1167]
["FT DIX/MCGUIRE/LAKEHURST","NJ","E-4","FT DIX/MCGUIRE/LAKEHURSTNJE-4","FT DIX/MCGUIRE/LAKEHURSTNJE-4",1167]
["FT DIX/MCGUIRE/LAKEHURST","NJ","E-5","FT DIX/MCGUIRE/LAKEHURSTNJE-5","FT DIX/MCGUIRE/LAKEHURSTNJE-5",1302]
["FT DIX/MCGUIRE/LAKEHURST","NJ","E-6","FT DIX/MCGUIRE/LAKEHURSTNJE-6","FT DIX/MCGUIRE/LAKEHURSTNJE-6",1605]
["FT DIX/MCGUIRE/LAKEHURST","NJ","E-7","FT DIX/MCGUIRE/LAKEHURSTNJE-7","FT DIX/MCGUIRE/LAKEHURSTNJE-7",1653]
["FT DIX/MCGUIRE/LAKEHURST","NJ","E-8","FT DIX/MCGUIRE/LAKEHURSTNJE-8","FT DIX/MCGUIRE/LAKEHURSTNJE-8",1788]
["FT DIX/MCGUIRE/LAKEHURST","NJ","E-9","FT DIX/MCGUIRE/LAKEHURSTNJE-9","FT DIX/MCGUIRE/LAKEHURSTNJE-9",1923]
["FT DIX/MCGUIRE/LAKEHURST","NJ","W-1","FT DIX/MCGUIRE/LAKEHURSTNJW-1","FT DIX/MCGUIRE/LAKEHURSTNJW-1",1605]
["FT DIX/MCGUIRE/LAKEHURST","NJ","W-2","FT DIX/MCGUIRE/LAKEHURSTNJW-2","FT DIX/MCGUIRE/LAKEHURSTNJW-2",1785]
["FT DIX/MCGUIRE/LAKEHURST","NJ","W-3","FT DIX/MCGUIRE/LAKEHURSTNJW-3","FT DIX/MCGUIRE/LAKEHURSTNJW-3",1938]
["FT DIX/MCGUIRE/LAKEHURST","NJ","W-4","FT DIX/MCGUIRE/LAKEHURSTNJW-4","FT DIX/MCGUIRE/LAKEHURSTNJW-4",2157]
["FT DIX/MCGUIRE/LAKEHURST","NJ","W-5","FT DIX/MCGUIRE/LAKEHURSTNJW-5","FT DIX/MCGUIRE/LAKEHURSTNJW-5",2223]
["FT DIX/MCGUIRE/LAKEHURST","NJ","O-1E","FT DIX/MCGUIRE/LAKEHURSTNJO-1E","FT DIX/MCGUIRE/LAKEHURSTNJO-1E",1701]
["FT DIX/MCGUIRE/LAKEHURST","NJ","O-2E","FT DIX/MCGUIRE/LAKEHURSTNJO-2E","FT DIX/MCGUIRE/LAKEHURSTNJO-2E",1893]
["FT DIX/MCGUIRE/LAKEHURST","NJ","O-3E",{"$f":"A5634&B5634&C5634","v":"FT DIX/MCGUIRE/LAKEHURSTNJO-3E"},"FT DIX/MCGUIRE/LAKEHURSTNJO-3E",2139]
["FT DIX/MCGUIRE/LAKEHURST","NJ","O-1","FT DIX/MCGUIRE/LAKEHURSTNJO-1","FT DIX/MCGUIRE/LAKEHURSTNJO-1",1413]
["FT DIX/MCGUIRE/LAKEHURST","NJ","O-2","FT DIX/MCGUIRE/LAKEHURSTNJO-2","FT DIX/MCGUIRE/LAKEHURSTNJO-2",1653]
["FT DIX/MCGUIRE/LAKEHURST","NJ","O-3","FT DIX/MCGUIRE/LAKEHURSTNJO-3","FT DIX/MCGUIRE/LAKEHURSTNJO-3",1980]
["FT DIX/MCGUIRE/LAKEHURST","NJ","O-4","FT DIX/MCGUIRE/LAKEHURSTNJO-4","FT DIX/MCGUIRE/LAKEHURSTNJO-4",2214]
["FT DIX/MCGUIRE/LAKEHURST","NJ","O-5","FT DIX/MCGUIRE/LAKEHURSTNJO-5","FT DIX/MCGUIRE/LAKEHURSTNJO-5",2256]
["FT DIX/MCGUIRE/LAKEHURST","NJ","O-6","FT DIX/MCGUIRE/LAKEHURSTNJO-6","FT DIX/MCGUIRE/LAKEHURSTNJO-6",2325]
["FT DIX/MCGUIRE/LAKEHURST","NJ","O-7","FT DIX/MCGUIRE/LAKEHURSTNJO-7","FT DIX/MCGUIRE/LAKEHURSTNJO-7",2370]
["HOLLOMAN AFB/ALAMOGORDO","NM","E-1","HOLLOMAN AFB/ALAMOGORDONME-1","HOLLOMAN AFB/ALAMOGORDONME-1",687,687,687,687,687,777,909,993,1083,1182,912,1068,1143,1242,1353,1035,1125,1212,795,993,1149,1338,1407,1524,1554]
["HOLLOMAN AFB/ALAMOGORDO","NM","E-2","HOLLOMAN AFB/ALAMOGORDONME-2","HOLLOMAN AFB/ALAMOGORDONME-2",687]
["HOLLOMAN AFB/ALAMOGORDO","NM","E-3","HOLLOMAN AFB/ALAMOGORDONME-3","HOLLOMAN AFB/ALAMOGORDONME-3",687]
["HOLLOMAN AFB/ALAMOGORDO","NM","E-4","HOLLOMAN AFB/ALAMOGORDONME-4","HOLLOMAN AFB/ALAMOGORDONME-4",687]
["HOLLOMAN AFB/ALAMOGORDO","NM","E-5","HOLLOMAN AFB/ALAMOGORDONME-5","HOLLOMAN AFB/ALAMOGORDONME-5",777]
["HOLLOMAN AFB/ALAMOGORDO","NM","E-6","HOLLOMAN AFB/ALAMOGORDONME-6","HOLLOMAN AFB/ALAMOGORDONME-6",909]
["HOLLOMAN AFB/ALAMOGORDO","NM","E-7","HOLLOMAN AFB/ALAMOGORDONME-7","HOLLOMAN AFB/ALAMOGORDONME-7",993]
["HOLLOMAN AFB/ALAMOGORDO","NM","E-8","HOLLOMAN AFB/ALAMOGORDONME-8","HOLLOMAN AFB/ALAMOGORDONME-8",1083]
["HOLLOMAN AFB/ALAMOGORDO","NM","E-9","HOLLOMAN AFB/ALAMOGORDONME-9","HOLLOMAN AFB/ALAMOGORDONME-9",1182]
["HOLLOMAN AFB/ALAMOGORDO","NM","W-1","HOLLOMAN AFB/ALAMOGORDONMW-1","HOLLOMAN AFB/ALAMOGORDONMW-1",912]
["HOLLOMAN AFB/ALAMOGORDO","NM","W-2","HOLLOMAN AFB/ALAMOGORDONMW-2","HOLLOMAN AFB/ALAMOGORDONMW-2",1068]
["HOLLOMAN AFB/ALAMOGORDO","NM","W-3","HOLLOMAN AFB/ALAMOGORDONMW-3","HOLLOMAN AFB/ALAMOGORDONMW-3",1143]
["HOLLOMAN AFB/ALAMOGORDO","NM","W-4","HOLLOMAN AFB/ALAMOGORDONMW-4","HOLLOMAN AFB/ALAMOGORDONMW-4",1242]
["HOLLOMAN AFB/ALAMOGORDO","NM","W-5","HOLLOMAN AFB/ALAMOGORDONMW-5","HOLLOMAN AFB/ALAMOGORDONMW-5",1353]
["HOLLOMAN AFB/ALAMOGORDO","NM","O-1E","HOLLOMAN AFB/ALAMOGORDONMO-1E","HOLLOMAN AFB/ALAMOGORDONMO-1E",1035]
["HOLLOMAN AFB/ALAMOGORDO","NM","O-2E","HOLLOMAN AFB/ALAMOGORDONMO-2E","HOLLOMAN AFB/ALAMOGORDONMO-2E",1125]
["HOLLOMAN AFB/ALAMOGORDO","NM","O-3E","HOLLOMAN AFB/ALAMOGORDONMO-3E","HOLLOMAN AFB/ALAMOGORDONMO-3E",1212]
["HOLLOMAN AFB/ALAMOGORDO","NM","O-1","HOLLOMAN AFB/ALAMOGORDONMO-1","HOLLOMAN AFB/ALAMOGORDONMO-1",795]
["HOLLOMAN AFB/ALAMOGORDO","NM","O-2","HOLLOMAN AFB/ALAMOGORDONMO-2","HOLLOMAN AFB/ALAMOGORDONMO-2",993]
["HOLLOMAN AFB/ALAMOGORDO","NM","O-3","HOLLOMAN AFB/ALAMOGORDONMO-3","HOLLOMAN AFB/ALAMOGORDONMO-3",1149]
["HOLLOMAN AFB/ALAMOGORDO","NM","O-4","HOLLOMAN AFB/ALAMOGORDONMO-4","HOLLOMAN AFB/ALAMOGORDONMO-4",1338]
["HOLLOMAN AFB/ALAMOGORDO","NM","O-5","HOLLOMAN AFB/ALAMOGORDONMO-5","HOLLOMAN AFB/ALAMOGORDONMO-5",1407]
["HOLLOMAN AFB/ALAMOGORDO","NM","O-6","HOLLOMAN AFB/ALAMOGORDONMO-6","HOLLOMAN AFB/ALAMOGORDONMO-6",1524]
["HOLLOMAN AFB/ALAMOGORDO","NM","O-7","HOLLOMAN AFB/ALAMOGORDONMO-7","HOLLOMAN AFB/ALAMOGORDONMO-7",1554]
["ALBUQUERQUE/KIRTLAND AFB","NM","E-1","ALBUQUERQUE/KIRTLAND AFBNME-1","ALBUQUERQUE/KIRTLAND AFBNME-1",831,831,831,831,831,936,987,1116,1257,1272,1053,1257,1275,1311,1368,1248,1269,1299,969,1200,1281,1359,1395,1452,1479]
["ALBUQUERQUE/KIRTLAND AFB","NM","E-2","ALBUQUERQUE/KIRTLAND AFBNME-2","ALBUQUERQUE/KIRTLAND AFBNME-2",831]
["ALBUQUERQUE/KIRTLAND AFB","NM","E-3","ALBUQUERQUE/KIRTLAND AFBNME-3","ALBUQUERQUE/KIRTLAND AFBNME-3",831]
["ALBUQUERQUE/KIRTLAND AFB","NM","E-4","ALBUQUERQUE/KIRTLAND AFBNME-4","ALBUQUERQUE/KIRTLAND AFBNME-4",831]
["ALBUQUERQUE/KIRTLAND AFB","NM","E-5","ALBUQUERQUE/KIRTLAND AFBNME-5","ALBUQUERQUE/KIRTLAND AFBNME-5",936]
["ALBUQUERQUE/KIRTLAND AFB","NM","E-6","ALBUQUERQUE/KIRTLAND AFBNME-6","ALBUQUERQUE/KIRTLAND AFBNME-6",987]
["ALBUQUERQUE/KIRTLAND AFB","NM","E-7","ALBUQUERQUE/KIRTLAND AFBNME-7","ALBUQUERQUE/KIRTLAND AFBNME-7",1116]
["ALBUQUERQUE/KIRTLAND AFB","NM","E-8","ALBUQUERQUE/KIRTLAND AFBNME-8","ALBUQUERQUE/KIRTLAND AFBNME-8",1257]
["ALBUQUERQUE/KIRTLAND AFB","NM","E-9","ALBUQUERQUE/KIRTLAND AFBNME-9","ALBUQUERQUE/KIRTLAND AFBNME-9",1272]
["ALBUQUERQUE/KIRTLAND AFB","NM","W-1","ALBUQUERQUE/KIRTLAND AFBNMW-1","ALBUQUERQUE/KIRTLAND AFBNMW-1",1053]
["ALBUQUERQUE/KIRTLAND AFB","NM","W-2","ALBUQUERQUE/KIRTLAND AFBNMW-2","ALBUQUERQUE/KIRTLAND AFBNMW-2",1257]
["ALBUQUERQUE/KIRTLAND AFB","NM","W-3","ALBUQUERQUE/KIRTLAND AFBNMW-3","ALBUQUERQUE/KIRTLAND AFBNMW-3",1275]
["ALBUQUERQUE/KIRTLAND AFB","NM","W-4","ALBUQUERQUE/KIRTLAND AFBNMW-4","ALBUQUERQUE/KIRTLAND AFBNMW-4",1311]
["ALBUQUERQUE/KIRTLAND AFB","NM","W-5","ALBUQUERQUE/KIRTLAND AFBNMW-5","ALBUQUERQUE/KIRTLAND AFBNMW-5",1368]
["ALBUQUERQUE/KIRTLAND AFB","NM","O-1E","ALBUQUERQUE/KIRTLAND AFBNMO-1E","ALBUQUERQUE/KIRTLAND AFBNMO-1E",1248]
["ALBUQUERQUE/KIRTLAND AFB","NM","O-2E","ALBUQUERQUE/KIRTLAND AFBNMO-2E","ALBUQUERQUE/KIRTLAND AFBNMO-2E",1269]
["ALBUQUERQUE/KIRTLAND AFB","NM","O-3E","ALBUQUERQUE/KIRTLAND AFBNMO-3E","ALBUQUERQUE/KIRTLAND AFBNMO-3E",1299]
["ALBUQUERQUE/KIRTLAND AFB","NM","O-1","ALBUQUERQUE/KIRTLAND AFBNMO-1","ALBUQUERQUE/KIRTLAND AFBNMO-1",969]
["ALBUQUERQUE/KIRTLAND AFB","NM","O-2","ALBUQUERQUE/KIRTLAND AFBNMO-2","ALBUQUERQUE/KIRTLAND AFBNMO-2",1200]
["ALBUQUERQUE/KIRTLAND AFB","NM","O-3","ALBUQUERQUE/KIRTLAND AFBNMO-3","ALBUQUERQUE/KIRTLAND AFBNMO-3",1281]
["ALBUQUERQUE/KIRTLAND AFB","NM","O-4","ALBUQUERQUE/KIRTLAND AFBNMO-4","ALBUQUERQUE/KIRTLAND AFBNMO-4",1359]
["ALBUQUERQUE/KIRTLAND AFB","NM","O-5","ALBUQUERQUE/KIRTLAND AFBNMO-5","ALBUQUERQUE/KIRTLAND AFBNMO-5",1395]
["ALBUQUERQUE/KIRTLAND AFB","NM","O-6","ALBUQUERQUE/KIRTLAND AFBNMO-6","ALBUQUERQUE/KIRTLAND AFBNMO-6",1452]
["ALBUQUERQUE/KIRTLAND AFB","NM","O-7","ALBUQUERQUE/KIRTLAND AFBNMO-7","ALBUQUERQUE/KIRTLAND AFBNMO-7",1479]
["CANNON AFB/CLOVIS","NM","E-1","CANNON AFB/CLOVISNME-1","CANNON AFB/CLOVISNME-1",678,678,678,678,678,780,987,999,1095,1182,987,1092,1188,1320,1335,1041,1161,1314,804,996,1215,1332,1344,1362,1389]
["CANNON AFB/CLOVIS","NM","E-2","CANNON AFB/CLOVISNME-2","CANNON AFB/CLOVISNME-2",678]
["CANNON AFB/CLOVIS","NM","E-3","CANNON AFB/CLOVISNME-3","CANNON AFB/CLOVISNME-3",678]
["CANNON AFB/CLOVIS","NM","E-4","CANNON AFB/CLOVISNME-4","CANNON AFB/CLOVISNME-4",678]
["CANNON AFB/CLOVIS","NM","E-5","CANNON AFB/CLOVISNME-5","CANNON AFB/CLOVISNME-5",780]
["CANNON AFB/CLOVIS","NM","E-6","CANNON AFB/CLOVISNME-6","CANNON AFB/CLOVISNME-6",987]
["CANNON AFB/CLOVIS","NM","E-7","CANNON AFB/CLOVISNME-7","CANNON AFB/CLOVISNME-7",999]
["CANNON AFB/CLOVIS","NM","E-8","CANNON AFB/CLOVISNME-8","CANNON AFB/CLOVISNME-8",1095]
["CANNON AFB/CLOVIS","NM","E-9",{"$f":"A5698&B5698&C5698","v":"CANNON AFB/CLOVISNME-9"},"CANNON AFB/CLOVISNME-9",1182]
["CANNON AFB/CLOVIS","NM","W-1","CANNON AFB/CLOVISNMW-1","CANNON AFB/CLOVISNMW-1",987]
["CANNON AFB/CLOVIS","NM","W-2","CANNON AFB/CLOVISNMW-2","CANNON AFB/CLOVISNMW-2",1092]
["CANNON AFB/CLOVIS","NM","W-3","CANNON AFB/CLOVISNMW-3","CANNON AFB/CLOVISNMW-3",1188]
["CANNON AFB/CLOVIS","NM","W-4","CANNON AFB/CLOVISNMW-4","CANNON AFB/CLOVISNMW-4",1320]
["CANNON AFB/CLOVIS","NM","W-5","CANNON AFB/CLOVISNMW-5","CANNON AFB/CLOVISNMW-5",1335]
["CANNON AFB/CLOVIS","NM","O-1E","CANNON AFB/CLOVISNMO-1E","CANNON AFB/CLOVISNMO-1E",1041]
["CANNON AFB/CLOVIS","NM","O-2E","CANNON AFB/CLOVISNMO-2E","CANNON AFB/CLOVISNMO-2E",1161]
["CANNON AFB/CLOVIS","NM","O-3E","CANNON AFB/CLOVISNMO-3E","CANNON AFB/CLOVISNMO-3E",1314]
["CANNON AFB/CLOVIS","NM","O-1","CANNON AFB/CLOVISNMO-1","CANNON AFB/CLOVISNMO-1",804]
["CANNON AFB/CLOVIS","NM","O-2","CANNON AFB/CLOVISNMO-2","CANNON AFB/CLOVISNMO-2",996]
["CANNON AFB/CLOVIS","NM","O-3","CANNON AFB/CLOVISNMO-3","CANNON AFB/CLOVISNMO-3",1215]
["CANNON AFB/CLOVIS","NM","O-4","CANNON AFB/CLOVISNMO-4","CANNON AFB/CLOVISNMO-4",1332]
["CANNON AFB/CLOVIS","NM","O-5","CANNON AFB/CLOVISNMO-5","CANNON AFB/CLOVISNMO-5",1344]
["CANNON AFB/CLOVIS","NM","O-6","CANNON AFB/CLOVISNMO-6","CANNON AFB/CLOVISNMO-6",1362]
["CANNON AFB/CLOVIS","NM","O-7","CANNON AFB/CLOVISNMO-7","CANNON AFB/CLOVISNMO-7",1389]
["WHITE SANDS MR/LAS CRUCES","NM","E-1","WHITE SANDS MR/LAS CRUCESNME-1","WHITE SANDS MR/LAS CRUCESNME-1",672,672,672,672,672,747,825,903,1017,1047,858,1014,1050,1116,1191,996,1041,1098,795,963,1062,1179,1227,1302,1329]
["WHITE SANDS MR/LAS CRUCES","NM","E-2","WHITE SANDS MR/LAS CRUCESNME-2","WHITE SANDS MR/LAS CRUCESNME-2",672]
["WHITE SANDS MR/LAS CRUCES","NM","E-3","WHITE SANDS MR/LAS CRUCESNME-3","WHITE SANDS MR/LAS CRUCESNME-3",672]
["WHITE SANDS MR/LAS CRUCES","NM","E-4","WHITE SANDS MR/LAS CRUCESNME-4","WHITE SANDS MR/LAS CRUCESNME-4",672]
["WHITE SANDS MR/LAS CRUCES","NM","E-5","WHITE SANDS MR/LAS CRUCESNME-5","WHITE SANDS MR/LAS CRUCESNME-5",747]
["WHITE SANDS MR/LAS CRUCES","NM","E-6","WHITE SANDS MR/LAS CRUCESNME-6","WHITE SANDS MR/LAS CRUCESNME-6",825]
["WHITE SANDS MR/LAS CRUCES","NM","E-7","WHITE SANDS MR/LAS CRUCESNME-7","WHITE SANDS MR/LAS CRUCESNME-7",903]
["WHITE SANDS MR/LAS CRUCES","NM","E-8","WHITE SANDS MR/LAS CRUCESNME-8","WHITE SANDS MR/LAS CRUCESNME-8",1017]
["WHITE SANDS MR/LAS CRUCES","NM","E-9","WHITE SANDS MR/LAS CRUCESNME-9","WHITE SANDS MR/LAS CRUCESNME-9",1047]
["WHITE SANDS MR/LAS CRUCES","NM","W-1","WHITE SANDS MR/LAS CRUCESNMW-1","WHITE SANDS MR/LAS CRUCESNMW-1",858]
["WHITE SANDS MR/LAS CRUCES","NM","W-2","WHITE SANDS MR/LAS CRUCESNMW-2","WHITE SANDS MR/LAS CRUCESNMW-2",1014]
["WHITE SANDS MR/LAS CRUCES","NM","W-3","WHITE SANDS MR/LAS CRUCESNMW-3","WHITE SANDS MR/LAS CRUCESNMW-3",1050]
["WHITE SANDS MR/LAS CRUCES","NM","W-4","WHITE SANDS MR/LAS CRUCESNMW-4","WHITE SANDS MR/LAS CRUCESNMW-4",1116]
["WHITE SANDS MR/LAS CRUCES","NM","W-5","WHITE SANDS MR/LAS CRUCESNMW-5","WHITE SANDS MR/LAS CRUCESNMW-5",1191]
["WHITE SANDS MR/LAS CRUCES","NM","O-1E","WHITE SANDS MR/LAS CRUCESNMO-1E","WHITE SANDS MR/LAS CRUCESNMO-1E",996]
["WHITE SANDS MR/LAS CRUCES","NM","O-2E","WHITE SANDS MR/LAS CRUCESNMO-2E","WHITE SANDS MR/LAS CRUCESNMO-2E",1041]
["WHITE SANDS MR/LAS CRUCES","NM","O-3E","WHITE SANDS MR/LAS CRUCESNMO-3E","WHITE SANDS MR/LAS CRUCESNMO-3E",1098]
["WHITE SANDS MR/LAS CRUCES","NM","O-1","WHITE SANDS MR/LAS CRUCESNMO-1","WHITE SANDS MR/LAS CRUCESNMO-1",795]
["WHITE SANDS MR/LAS CRUCES","NM","O-2","WHITE SANDS MR/LAS CRUCESNMO-2","WHITE SANDS MR/LAS CRUCESNMO-2",963]
["WHITE SANDS MR/LAS CRUCES","NM","O-3","WHITE SANDS MR/LAS CRUCESNMO-3","WHITE SANDS MR/LAS CRUCESNMO-3",1062]
["WHITE SANDS MR/LAS CRUCES","NM","O-4","WHITE SANDS MR/LAS CRUCESNMO-4","WHITE SANDS MR/LAS CRUCESNMO-4",1179]
["WHITE SANDS MR/LAS CRUCES","NM","O-5","WHITE SANDS MR/LAS CRUCESNMO-5","WHITE SANDS MR/LAS CRUCESNMO-5",1227]
["WHITE SANDS MR/LAS CRUCES","NM","O-6","WHITE SANDS MR/LAS CRUCESNMO-6","WHITE SANDS MR/LAS CRUCESNMO-6",1302]
["WHITE SANDS MR/LAS CRUCES","NM","O-7","WHITE SANDS MR/LAS CRUCESNMO-7","WHITE SANDS MR/LAS CRUCESNMO-7",1329]
["SANTA FE/LOS ALAMOS","NM","E-1","SANTA FE/LOS ALAMOSNME-1","SANTA FE/LOS ALAMOSNME-1",903,903,903,903,903,957,1110,1161,1302,1371,1110,1299,1377,1497,1566,1257,1356,1479,984,1209,1398,1554,1680,1698,1713]
["SANTA FE/LOS ALAMOS","NM","E-2","SANTA FE/LOS ALAMOSNME-2","SANTA FE/LOS ALAMOSNME-2",903]
["SANTA FE/LOS ALAMOS","NM","E-3","SANTA FE/LOS ALAMOSNME-3","SANTA FE/LOS ALAMOSNME-3",903]
["SANTA FE/LOS ALAMOS","NM","E-4","SANTA FE/LOS ALAMOSNME-4","SANTA FE/LOS ALAMOSNME-4",903]
["SANTA FE/LOS ALAMOS","NM","E-5","SANTA FE/LOS ALAMOSNME-5","SANTA FE/LOS ALAMOSNME-5",957]
["SANTA FE/LOS ALAMOS","NM","E-6","SANTA FE/LOS ALAMOSNME-6","SANTA FE/LOS ALAMOSNME-6",1110]
["SANTA FE/LOS ALAMOS","NM","E-7","SANTA FE/LOS ALAMOSNME-7","SANTA FE/LOS ALAMOSNME-7",1161]
["SANTA FE/LOS ALAMOS","NM","E-8","SANTA FE/LOS ALAMOSNME-8","SANTA FE/LOS ALAMOSNME-8",1302]
["SANTA FE/LOS ALAMOS","NM","E-9","SANTA FE/LOS ALAMOSNME-9","SANTA FE/LOS ALAMOSNME-9",1371]
["SANTA FE/LOS ALAMOS","NM","W-1","SANTA FE/LOS ALAMOSNMW-1","SANTA FE/LOS ALAMOSNMW-1",1110]
["SANTA FE/LOS ALAMOS","NM","W-2","SANTA FE/LOS ALAMOSNMW-2","SANTA FE/LOS ALAMOSNMW-2",1299]
["SANTA FE/LOS ALAMOS","NM","W-3","SANTA FE/LOS ALAMOSNMW-3","SANTA FE/LOS ALAMOSNMW-3",1377]
["SANTA FE/LOS ALAMOS","NM","W-4","SANTA FE/LOS ALAMOSNMW-4","SANTA FE/LOS ALAMOSNMW-4",1497]
["SANTA FE/LOS ALAMOS","NM","W-5","SANTA FE/LOS ALAMOSNMW-5","SANTA FE/LOS ALAMOSNMW-5",1566]
["SANTA FE/LOS ALAMOS","NM","O-1E","SANTA FE/LOS ALAMOSNMO-1E","SANTA FE/LOS ALAMOSNMO-1E",1257]
["SANTA FE/LOS ALAMOS","NM","O-2E","SANTA FE/LOS ALAMOSNMO-2E","SANTA FE/LOS ALAMOSNMO-2E",1356]
["SANTA FE/LOS ALAMOS","NM","O-3E","SANTA FE/LOS ALAMOSNMO-3E","SANTA FE/LOS ALAMOSNMO-3E",1479]
["SANTA FE/LOS ALAMOS","NM","O-1","SANTA FE/LOS ALAMOSNMO-1","SANTA FE/LOS ALAMOSNMO-1",984]
["SANTA FE/LOS ALAMOS","NM","O-2","SANTA FE/LOS ALAMOSNMO-2","SANTA FE/LOS ALAMOSNMO-2",1209]
["SANTA FE/LOS ALAMOS","NM","O-3","SANTA FE/LOS ALAMOSNMO-3","SANTA FE/LOS ALAMOSNMO-3",1398]
["SANTA FE/LOS ALAMOS","NM","O-4","SANTA FE/LOS ALAMOSNMO-4","SANTA FE/LOS ALAMOSNMO-4",1554]
["SANTA FE/LOS ALAMOS","NM","O-5","SANTA FE/LOS ALAMOSNMO-5","SANTA FE/LOS ALAMOSNMO-5",1680]
["SANTA FE/LOS ALAMOS","NM","O-6","SANTA FE/LOS ALAMOSNMO-6","SANTA FE/LOS ALAMOSNMO-6",1698]
["SANTA FE/LOS ALAMOS","NM","O-7","SANTA FE/LOS ALAMOSNMO-7","SANTA FE/LOS ALAMOSNMO-7",1713]
["LAKE TAHOE","NV","E-1",{"$f":"A5762&B5762&C5762","v":"LAKE TAHOENVE-1"},"LAKE TAHOENVE-1",834,834,834,834,834,972,1275,1284,1296,1431,1275,1290,1449,1704,1716,1287,1395,1701,1041,1269,1503,1716,1722,1737,1770]
["LAKE TAHOE","NV","E-2","LAKE TAHOENVE-2","LAKE TAHOENVE-2",834]
["LAKE TAHOE","NV","E-3","LAKE TAHOENVE-3","LAKE TAHOENVE-3",834]
["LAKE TAHOE","NV","E-4","LAKE TAHOENVE-4","LAKE TAHOENVE-4",834]
["LAKE TAHOE","NV","E-5","LAKE TAHOENVE-5","LAKE TAHOENVE-5",972]
["LAKE TAHOE","NV","E-6","LAKE TAHOENVE-6","LAKE TAHOENVE-6",1275]
["LAKE TAHOE","NV","E-7","LAKE TAHOENVE-7","LAKE TAHOENVE-7",1284]
["LAKE TAHOE","NV","E-8","LAKE TAHOENVE-8","LAKE TAHOENVE-8",1296]
["LAKE TAHOE","NV","E-9","LAKE TAHOENVE-9","LAKE TAHOENVE-9",1431]
["LAKE TAHOE","NV","W-1","LAKE TAHOENVW-1","LAKE TAHOENVW-1",1275]
["LAKE TAHOE","NV","W-2","LAKE TAHOENVW-2","LAKE TAHOENVW-2",1290]
["LAKE TAHOE","NV","W-3","LAKE TAHOENVW-3","LAKE TAHOENVW-3",1449]
["LAKE TAHOE","NV","W-4","LAKE TAHOENVW-4","LAKE TAHOENVW-4",1704]
["LAKE TAHOE","NV","W-5","LAKE TAHOENVW-5","LAKE TAHOENVW-5",1716]
["LAKE TAHOE","NV","O-1E","LAKE TAHOENVO-1E","LAKE TAHOENVO-1E",1287]
["LAKE TAHOE","NV","O-2E","LAKE TAHOENVO-2E","LAKE TAHOENVO-2E",1395]
["LAKE TAHOE","NV","O-3E","LAKE TAHOENVO-3E","LAKE TAHOENVO-3E",1701]
["LAKE TAHOE","NV","O-1","LAKE TAHOENVO-1","LAKE TAHOENVO-1",1041]
["LAKE TAHOE","NV","O-2","LAKE TAHOENVO-2","LAKE TAHOENVO-2",1269]
["LAKE TAHOE","NV","O-3","LAKE TAHOENVO-3","LAKE TAHOENVO-3",1503]
["LAKE TAHOE","NV","O-4","LAKE TAHOENVO-4","LAKE TAHOENVO-4",1716]
["LAKE TAHOE","NV","O-5","LAKE TAHOENVO-5","LAKE TAHOENVO-5",1722]
["LAKE TAHOE","NV","O-6","LAKE TAHOENVO-6","LAKE TAHOENVO-6",1737]
["LAKE TAHOE","NV","O-7","LAKE TAHOENVO-7","LAKE TAHOENVO-7",1770]
["FALLON NAS","NV","E-1","FALLON NASNVE-1","FALLON NASNVE-1",687,687,687,687,687,777,831,873,948,1011,852,945,999,1092,1179,918,984,1068,822,900,1014,1167,1221,1311,1338]
["FALLON NAS","NV","E-2","FALLON NASNVE-2","FALLON NASNVE-2",687]
["FALLON NAS","NV","E-3","FALLON NASNVE-3","FALLON NASNVE-3",687]
["FALLON NAS","NV","E-4","FALLON NASNVE-4","FALLON NASNVE-4",687]
["FALLON NAS","NV","E-5","FALLON NASNVE-5","FALLON NASNVE-5",777]
["FALLON NAS","NV","E-6","FALLON NASNVE-6","FALLON NASNVE-6",831]
["FALLON NAS","NV","E-7","FALLON NASNVE-7","FALLON NASNVE-7",873]
["FALLON NAS","NV","E-8","FALLON NASNVE-8","FALLON NASNVE-8",948]
["FALLON NAS","NV","E-9","FALLON NASNVE-9","FALLON NASNVE-9",1011]
["FALLON NAS","NV","W-1","FALLON NASNVW-1","FALLON NASNVW-1",852]
["FALLON NAS","NV","W-2","FALLON NASNVW-2","FALLON NASNVW-2",945]
["FALLON NAS","NV","W-3","FALLON NASNVW-3","FALLON NASNVW-3",999]
["FALLON NAS","NV","W-4","FALLON NASNVW-4","FALLON NASNVW-4",1092]
["FALLON NAS","NV","W-5","FALLON NASNVW-5","FALLON NASNVW-5",1179]
["FALLON NAS","NV","O-1E","FALLON NASNVO-1E","FALLON NASNVO-1E",918]
["FALLON NAS","NV","O-2E","FALLON NASNVO-2E","FALLON NASNVO-2E",984]
["FALLON NAS","NV","O-3E","FALLON NASNVO-3E","FALLON NASNVO-3E",1068]
["FALLON NAS","NV","O-1","FALLON NASNVO-1","FALLON NASNVO-1",822]
["FALLON NAS","NV","O-2","FALLON NASNVO-2","FALLON NASNVO-2",900]
["FALLON NAS","NV","O-3","FALLON NASNVO-3","FALLON NASNVO-3",1014]
["FALLON NAS","NV","O-4","FALLON NASNVO-4","FALLON NASNVO-4",1167]
["FALLON NAS","NV","O-5","FALLON NASNVO-5","FALLON NASNVO-5",1221]
["FALLON NAS","NV","O-6","FALLON NASNVO-6","FALLON NASNVO-6",1311]
["FALLON NAS","NV","O-7","FALLON NASNVO-7","FALLON NASNVO-7",1338]
["NELLIS AFB/LAS VEGAS","NV","E-1","NELLIS AFB/LAS VEGASNVE-1","NELLIS AFB/LAS VEGASNVE-1",993,993,993,993,993,1098,1155,1200,1275,1323,1179,1272,1326,1425,1536,1242,1311,1398,1149,1227,1341,1521,1590,1704,1737]
["NELLIS AFB/LAS VEGAS","NV","E-2","NELLIS AFB/LAS VEGASNVE-2","NELLIS AFB/LAS VEGASNVE-2",993]
["NELLIS AFB/LAS VEGAS","NV","E-3","NELLIS AFB/LAS VEGASNVE-3","NELLIS AFB/LAS VEGASNVE-3",993]
["NELLIS AFB/LAS VEGAS","NV","E-4","NELLIS AFB/LAS VEGASNVE-4","NELLIS AFB/LAS VEGASNVE-4",993]
["NELLIS AFB/LAS VEGAS","NV","E-5","NELLIS AFB/LAS VEGASNVE-5","NELLIS AFB/LAS VEGASNVE-5",1098]
["NELLIS AFB/LAS VEGAS","NV","E-6","NELLIS AFB/LAS VEGASNVE-6","NELLIS AFB/LAS VEGASNVE-6",1155]
["NELLIS AFB/LAS VEGAS","NV","E-7","NELLIS AFB/LAS VEGASNVE-7","NELLIS AFB/LAS VEGASNVE-7",1200]
["NELLIS AFB/LAS VEGAS","NV","E-8","NELLIS AFB/LAS VEGASNVE-8","NELLIS AFB/LAS VEGASNVE-8",1275]
["NELLIS AFB/LAS VEGAS","NV","E-9","NELLIS AFB/LAS VEGASNVE-9","NELLIS AFB/LAS VEGASNVE-9",1323]
["NELLIS AFB/LAS VEGAS","NV","W-1","NELLIS AFB/LAS VEGASNVW-1","NELLIS AFB/LAS VEGASNVW-1",1179]
["NELLIS AFB/LAS VEGAS","NV","W-2","NELLIS AFB/LAS VEGASNVW-2","NELLIS AFB/LAS VEGASNVW-2",1272]
["NELLIS AFB/LAS VEGAS","NV","W-3","NELLIS AFB/LAS VEGASNVW-3","NELLIS AFB/LAS VEGASNVW-3",1326]
["NELLIS AFB/LAS VEGAS","NV","W-4","NELLIS AFB/LAS VEGASNVW-4","NELLIS AFB/LAS VEGASNVW-4",1425]
["NELLIS AFB/LAS VEGAS","NV","W-5","NELLIS AFB/LAS VEGASNVW-5","NELLIS AFB/LAS VEGASNVW-5",1536]
["NELLIS AFB/LAS VEGAS","NV","O-1E","NELLIS AFB/LAS VEGASNVO-1E","NELLIS AFB/LAS VEGASNVO-1E",1242]
["NELLIS AFB/LAS VEGAS","NV","O-2E","NELLIS AFB/LAS VEGASNVO-2E","NELLIS AFB/LAS VEGASNVO-2E",1311]
["NELLIS AFB/LAS VEGAS","NV","O-3E",{"$f":"A5826&B5826&C5826","v":"NELLIS AFB/LAS VEGASNVO-3E"},"NELLIS AFB/LAS VEGASNVO-3E",1398]
["NELLIS AFB/LAS VEGAS","NV","O-1","NELLIS AFB/LAS VEGASNVO-1","NELLIS AFB/LAS VEGASNVO-1",1149]
["NELLIS AFB/LAS VEGAS","NV","O-2","NELLIS AFB/LAS VEGASNVO-2","NELLIS AFB/LAS VEGASNVO-2",1227]
["NELLIS AFB/LAS VEGAS","NV","O-3","NELLIS AFB/LAS VEGASNVO-3","NELLIS AFB/LAS VEGASNVO-3",1341]
["NELLIS AFB/LAS VEGAS","NV","O-4","NELLIS AFB/LAS VEGASNVO-4","NELLIS AFB/LAS VEGASNVO-4",1521]
["NELLIS AFB/LAS VEGAS","NV","O-5","NELLIS AFB/LAS VEGASNVO-5","NELLIS AFB/LAS VEGASNVO-5",1590]
["NELLIS AFB/LAS VEGAS","NV","O-6","NELLIS AFB/LAS VEGASNVO-6","NELLIS AFB/LAS VEGASNVO-6",1704]
["NELLIS AFB/LAS VEGAS","NV","O-7","NELLIS AFB/LAS VEGASNVO-7","NELLIS AFB/LAS VEGASNVO-7",1737]
["RENO/CARSON CITY","NV","E-1","RENO/CARSON CITYNVE-1","RENO/CARSON CITYNVE-1",810,810,810,810,810,924,1032,1083,1209,1275,1044,1209,1281,1392,1458,1170,1260,1377,990,1137,1302,1449,1491,1560,1590]
["RENO/CARSON CITY","NV","E-2","RENO/CARSON CITYNVE-2","RENO/CARSON CITYNVE-2",810]
["RENO/CARSON CITY","NV","E-3","RENO/CARSON CITYNVE-3","RENO/CARSON CITYNVE-3",810]
["RENO/CARSON CITY","NV","E-4","RENO/CARSON CITYNVE-4","RENO/CARSON CITYNVE-4",810]
["RENO/CARSON CITY","NV","E-5","RENO/CARSON CITYNVE-5","RENO/CARSON CITYNVE-5",924]
["RENO/CARSON CITY","NV","E-6","RENO/CARSON CITYNVE-6","RENO/CARSON CITYNVE-6",1032]
["RENO/CARSON CITY","NV","E-7","RENO/CARSON CITYNVE-7","RENO/CARSON CITYNVE-7",1083]
["RENO/CARSON CITY","NV","E-8","RENO/CARSON CITYNVE-8","RENO/CARSON CITYNVE-8",1209]
["RENO/CARSON CITY","NV","E-9","RENO/CARSON CITYNVE-9","RENO/CARSON CITYNVE-9",1275]
["RENO/CARSON CITY","NV","W-1","RENO/CARSON CITYNVW-1","RENO/CARSON CITYNVW-1",1044]
["RENO/CARSON CITY","NV","W-2","RENO/CARSON CITYNVW-2","RENO/CARSON CITYNVW-2",1209]
["RENO/CARSON CITY","NV","W-3","RENO/CARSON CITYNVW-3","RENO/CARSON CITYNVW-3",1281]
["RENO/CARSON CITY","NV","W-4","RENO/CARSON CITYNVW-4","RENO/CARSON CITYNVW-4",1392]
["RENO/CARSON CITY","NV","W-5","RENO/CARSON CITYNVW-5","RENO/CARSON CITYNVW-5",1458]
["RENO/CARSON CITY","NV","O-1E","RENO/CARSON CITYNVO-1E","RENO/CARSON CITYNVO-1E",1170]
["RENO/CARSON CITY","NV","O-2E","RENO/CARSON CITYNVO-2E","RENO/CARSON CITYNVO-2E",1260]
["RENO/CARSON CITY","NV","O-3E","RENO/CARSON CITYNVO-3E","RENO/CARSON CITYNVO-3E",1377]
["RENO/CARSON CITY","NV","O-1","RENO/CARSON CITYNVO-1","RENO/CARSON CITYNVO-1",990]
["RENO/CARSON CITY","NV","O-2","RENO/CARSON CITYNVO-2","RENO/CARSON CITYNVO-2",1137]
["RENO/CARSON CITY","NV","O-3","RENO/CARSON CITYNVO-3","RENO/CARSON CITYNVO-3",1302]
["RENO/CARSON CITY","NV","O-4","RENO/CARSON CITYNVO-4","RENO/CARSON CITYNVO-4",1449]
["RENO/CARSON CITY","NV","O-5","RENO/CARSON CITYNVO-5","RENO/CARSON CITYNVO-5",1491]
["RENO/CARSON CITY","NV","O-6","RENO/CARSON CITYNVO-6","RENO/CARSON CITYNVO-6",1560]
["RENO/CARSON CITY","NV","O-7","RENO/CARSON CITYNVO-7","RENO/CARSON CITYNVO-7",1590]
["BALLSTON SPA/ALBANY","NY","E-1","BALLSTON SPA/ALBANYNYE-1","BALLSTON SPA/ALBANYNYE-1",1104,1104,1104,1104,1104,1236,1317,1482,1665,1689,1401,1665,1692,1749,1842,1650,1683,1728,1290,1587,1698,1830,1890,1986,2025]
["BALLSTON SPA/ALBANY","NY","E-2","BALLSTON SPA/ALBANYNYE-2","BALLSTON SPA/ALBANYNYE-2",1104]
["BALLSTON SPA/ALBANY","NY","E-3","BALLSTON SPA/ALBANYNYE-3","BALLSTON SPA/ALBANYNYE-3",1104]
["BALLSTON SPA/ALBANY","NY","E-4","BALLSTON SPA/ALBANYNYE-4","BALLSTON SPA/ALBANYNYE-4",1104]
["BALLSTON SPA/ALBANY","NY","E-5","BALLSTON SPA/ALBANYNYE-5","BALLSTON SPA/ALBANYNYE-5",1236]
["BALLSTON SPA/ALBANY","NY","E-6","BALLSTON SPA/ALBANYNYE-6","BALLSTON SPA/ALBANYNYE-6",1317]
["BALLSTON SPA/ALBANY","NY","E-7","BALLSTON SPA/ALBANYNYE-7","BALLSTON SPA/ALBANYNYE-7",1482]
["BALLSTON SPA/ALBANY","NY","E-8","BALLSTON SPA/ALBANYNYE-8","BALLSTON SPA/ALBANYNYE-8",1665]
["BALLSTON SPA/ALBANY","NY","E-9","BALLSTON SPA/ALBANYNYE-9","BALLSTON SPA/ALBANYNYE-9",1689]
["BALLSTON SPA/ALBANY","NY","W-1","BALLSTON SPA/ALBANYNYW-1","BALLSTON SPA/ALBANYNYW-1",1401]
["BALLSTON SPA/ALBANY","NY","W-2","BALLSTON SPA/ALBANYNYW-2","BALLSTON SPA/ALBANYNYW-2",1665]
["BALLSTON SPA/ALBANY","NY","W-3","BALLSTON SPA/ALBANYNYW-3","BALLSTON SPA/ALBANYNYW-3",1692]
["BALLSTON SPA/ALBANY","NY","W-4","BALLSTON SPA/ALBANYNYW-4","BALLSTON SPA/ALBANYNYW-4",1749]
["BALLSTON SPA/ALBANY","NY","W-5","BALLSTON SPA/ALBANYNYW-5","BALLSTON SPA/ALBANYNYW-5",1842]
["BALLSTON SPA/ALBANY","NY","O-1E","BALLSTON SPA/ALBANYNYO-1E","BALLSTON SPA/ALBANYNYO-1E",1650]
["BALLSTON SPA/ALBANY","NY","O-2E","BALLSTON SPA/ALBANYNYO-2E","BALLSTON SPA/ALBANYNYO-2E",1683]
["BALLSTON SPA/ALBANY","NY","O-3E","BALLSTON SPA/ALBANYNYO-3E","BALLSTON SPA/ALBANYNYO-3E",1728]
["BALLSTON SPA/ALBANY","NY","O-1","BALLSTON SPA/ALBANYNYO-1","BALLSTON SPA/ALBANYNYO-1",1290]
["BALLSTON SPA/ALBANY","NY","O-2","BALLSTON SPA/ALBANYNYO-2","BALLSTON SPA/ALBANYNYO-2",1587]
["BALLSTON SPA/ALBANY","NY","O-3","BALLSTON SPA/ALBANYNYO-3","BALLSTON SPA/ALBANYNYO-3",1698]
["BALLSTON SPA/ALBANY","NY","O-4","BALLSTON SPA/ALBANYNYO-4","BALLSTON SPA/ALBANYNYO-4",1830]
["BALLSTON SPA/ALBANY","NY","O-5","BALLSTON SPA/ALBANYNYO-5","BALLSTON SPA/ALBANYNYO-5",1890]
["BALLSTON SPA/ALBANY","NY","O-6","BALLSTON SPA/ALBANYNYO-6","BALLSTON SPA/ALBANYNYO-6",1986]
["BALLSTON SPA/ALBANY","NY","O-7","BALLSTON SPA/ALBANYNYO-7","BALLSTON SPA/ALBANYNYO-7",2025]
["BUFFALO","NY","E-1","BUFFALONYE-1","BUFFALONYE-1",822,822,822,822,822,945,999,1095,1275,1296,1017,1272,1299,1353,1443,1260,1290,1329,951,1200,1305,1431,1491,1584,1617]
["BUFFALO","NY","E-2","BUFFALONYE-2","BUFFALONYE-2",822]
["BUFFALO","NY","E-3","BUFFALONYE-3","BUFFALONYE-3",822]
["BUFFALO","NY","E-4","BUFFALONYE-4","BUFFALONYE-4",822]
["BUFFALO","NY","E-5","BUFFALONYE-5","BUFFALONYE-5",945]
["BUFFALO","NY","E-6","BUFFALONYE-6","BUFFALONYE-6",999]
["BUFFALO","NY","E-7","BUFFALONYE-7","BUFFALONYE-7",1095]
["BUFFALO","NY","E-8","BUFFALONYE-8","BUFFALONYE-8",1275]
["BUFFALO","NY","E-9",{"$f":"A5890&B5890&C5890","v":"BUFFALONYE-9"},"BUFFALONYE-9",1296]
["BUFFALO","NY","W-1","BUFFALONYW-1","BUFFALONYW-1",1017]
["BUFFALO","NY","W-2","BUFFALONYW-2","BUFFALONYW-2",1272]
["BUFFALO","NY","W-3","BUFFALONYW-3","BUFFALONYW-3",1299]
["BUFFALO","NY","W-4","BUFFALONYW-4","BUFFALONYW-4",1353]
["BUFFALO","NY","W-5","BUFFALONYW-5","BUFFALONYW-5",1443]
["BUFFALO","NY","O-1E","BUFFALONYO-1E","BUFFALONYO-1E",1260]
["BUFFALO","NY","O-2E","BUFFALONYO-2E","BUFFALONYO-2E",1290]
["BUFFALO","NY","O-3E","BUFFALONYO-3E","BUFFALONYO-3E",1329]
["BUFFALO","NY","O-1","BUFFALONYO-1","BUFFALONYO-1",951]
["BUFFALO","NY","O-2","BUFFALONYO-2","BUFFALONYO-2",1200]
["BUFFALO","NY","O-3","BUFFALONYO-3","BUFFALONYO-3",1305]
["BUFFALO","NY","O-4","BUFFALONYO-4","BUFFALONYO-4",1431]
["BUFFALO","NY","O-5","BUFFALONYO-5","BUFFALONYO-5",1491]
["BUFFALO","NY","O-6","BUFFALONYO-6","BUFFALONYO-6",1584]
["BUFFALO","NY","O-7","BUFFALONYO-7","BUFFALONYO-7",1617]
["WEST POINT","NY","E-1","WEST POINTNYE-1","WEST POINTNYE-1",1410,1410,1410,1410,1410,1596,1764,1893,2172,2241,1785,2169,2250,2370,2439,2127,2226,2352,1632,2043,2271,2430,2472,2544,2595]
["WEST POINT","NY","E-2","WEST POINTNYE-2","WEST POINTNYE-2",1410]
["WEST POINT","NY","E-3","WEST POINTNYE-3","WEST POINTNYE-3",1410]
["WEST POINT","NY","E-4","WEST POINTNYE-4","WEST POINTNYE-4",1410]
["WEST POINT","NY","E-5","WEST POINTNYE-5","WEST POINTNYE-5",1596]
["WEST POINT","NY","E-6","WEST POINTNYE-6","WEST POINTNYE-6",1764]
["WEST POINT","NY","E-7","WEST POINTNYE-7","WEST POINTNYE-7",1893]
["WEST POINT","NY","E-8","WEST POINTNYE-8","WEST POINTNYE-8",2172]
["WEST POINT","NY","E-9","WEST POINTNYE-9","WEST POINTNYE-9",2241]
["WEST POINT","NY","W-1","WEST POINTNYW-1","WEST POINTNYW-1",1785]
["WEST POINT","NY","W-2","WEST POINTNYW-2","WEST POINTNYW-2",2169]
["WEST POINT","NY","W-3","WEST POINTNYW-3","WEST POINTNYW-3",2250]
["WEST POINT","NY","W-4","WEST POINTNYW-4","WEST POINTNYW-4",2370]
["WEST POINT","NY","W-5","WEST POINTNYW-5","WEST POINTNYW-5",2439]
["WEST POINT","NY","O-1E","WEST POINTNYO-1E","WEST POINTNYO-1E",2127]
["WEST POINT","NY","O-2E","WEST POINTNYO-2E","WEST POINTNYO-2E",2226]
["WEST POINT","NY","O-3E","WEST POINTNYO-3E","WEST POINTNYO-3E",2352]
["WEST POINT","NY","O-1","WEST POINTNYO-1","WEST POINTNYO-1",1632]
["WEST POINT","NY","O-2","WEST POINTNYO-2","WEST POINTNYO-2",2043]
["WEST POINT","NY","O-3","WEST POINTNYO-3","WEST POINTNYO-3",2271]
["WEST POINT","NY","O-4","WEST POINTNYO-4","WEST POINTNYO-4",2430]
["WEST POINT","NY","O-5","WEST POINTNYO-5","WEST POINTNYO-5",2472]
["WEST POINT","NY","O-6","WEST POINTNYO-6","WEST POINTNYO-6",2544]
["WEST POINT","NY","O-7","WEST POINTNYO-7","WEST POINTNYO-7",2595]
["LONG ISLAND","NY","E-1","LONG ISLANDNYE-1","LONG ISLANDNYE-1",1704,1704,1704,1704,1704,1941,2106,2286,2505,2568,2199,2505,2574,2709,2892,2466,2553,2664,2079,2400,2592,2868,2985,3174,3237]
["LONG ISLAND","NY","E-2","LONG ISLANDNYE-2","LONG ISLANDNYE-2",1704]
["LONG ISLAND","NY","E-3","LONG ISLANDNYE-3","LONG ISLANDNYE-3",1704]
["LONG ISLAND","NY","E-4","LONG ISLANDNYE-4","LONG ISLANDNYE-4",1704]
["LONG ISLAND","NY","E-5","LONG ISLANDNYE-5","LONG ISLANDNYE-5",1941]
["LONG ISLAND","NY","E-6","LONG ISLANDNYE-6","LONG ISLANDNYE-6",2106]
["LONG ISLAND","NY","E-7","LONG ISLANDNYE-7","LONG ISLANDNYE-7",2286]
["LONG ISLAND","NY","E-8","LONG ISLANDNYE-8","LONG ISLANDNYE-8",2505]
["LONG ISLAND","NY","E-9","LONG ISLANDNYE-9","LONG ISLANDNYE-9",2568]
["LONG ISLAND","NY","W-1","LONG ISLANDNYW-1","LONG ISLANDNYW-1",2199]
["LONG ISLAND","NY","W-2","LONG ISLANDNYW-2","LONG ISLANDNYW-2",2505]
["LONG ISLAND","NY","W-3","LONG ISLANDNYW-3","LONG ISLANDNYW-3",2574]
["LONG ISLAND","NY","W-4","LONG ISLANDNYW-4","LONG ISLANDNYW-4",2709]
["LONG ISLAND","NY","W-5","LONG ISLANDNYW-5","LONG ISLANDNYW-5",2892]
["LONG ISLAND","NY","O-1E","LONG ISLANDNYO-1E","LONG ISLANDNYO-1E",2466]
["LONG ISLAND","NY","O-2E","LONG ISLANDNYO-2E","LONG ISLANDNYO-2E",2553]
["LONG ISLAND","NY","O-3E","LONG ISLANDNYO-3E","LONG ISLANDNYO-3E",2664]
["LONG ISLAND","NY","O-1","LONG ISLANDNYO-1","LONG ISLANDNYO-1",2079]
["LONG ISLAND","NY","O-2","LONG ISLANDNYO-2","LONG ISLANDNYO-2",2400]
["LONG ISLAND","NY","O-3","LONG ISLANDNYO-3","LONG ISLANDNYO-3",2592]
["LONG ISLAND","NY","O-4","LONG ISLANDNYO-4","LONG ISLANDNYO-4",2868]
["LONG ISLAND","NY","O-5","LONG ISLANDNYO-5","LONG ISLANDNYO-5",2985]
["LONG ISLAND","NY","O-6","LONG ISLANDNYO-6","LONG ISLANDNYO-6",3174]
["LONG ISLAND","NY","O-7","LONG ISLANDNYO-7","LONG ISLANDNYO-7",3237]
["NEW YORK CITY","NY","E-1",{"$f":"A5954&B5954&C5954","v":"NEW YORK CITYNYE-1"},"NEW YORK CITYNYE-1",2241,2241,2241,2241,2241,2496,2628,2691,2808,2898,2661,2805,2907,3045,3072,2751,2877,3036,2619,2730,2934,3069,3087,3117,3180]
["NEW YORK CITY","NY","E-2","NEW YORK CITYNYE-2","NEW YORK CITYNYE-2",2241]
["NEW YORK CITY","NY","E-3","NEW YORK CITYNYE-3","NEW YORK CITYNYE-3",2241]
["NEW YORK CITY","NY","E-4","NEW YORK CITYNYE-4","NEW YORK CITYNYE-4",2241]
["NEW YORK CITY","NY","E-5","NEW YORK CITYNYE-5","NEW YORK CITYNYE-5",2496]
["NEW YORK CITY","NY","E-6","NEW YORK CITYNYE-6","NEW YORK CITYNYE-6",2628]
["NEW YORK CITY","NY","E-7","NEW YORK CITYNYE-7","NEW YORK CITYNYE-7",2691]
["NEW YORK CITY","NY","E-8","NEW YORK CITYNYE-8","NEW YORK CITYNYE-8",2808]
["NEW YORK CITY","NY","E-9","NEW YORK CITYNYE-9","NEW YORK CITYNYE-9",2898]
["NEW YORK CITY","NY","W-1","NEW YORK CITYNYW-1","NEW YORK CITYNYW-1",2661]
["NEW YORK CITY","NY","W-2","NEW YORK CITYNYW-2","NEW YORK CITYNYW-2",2805]
["NEW YORK CITY","NY","W-3","NEW YORK CITYNYW-3","NEW YORK CITYNYW-3",2907]
["NEW YORK CITY","NY","W-4","NEW YORK CITYNYW-4","NEW YORK CITYNYW-4",3045]
["NEW YORK CITY","NY","W-5","NEW YORK CITYNYW-5","NEW YORK CITYNYW-5",3072]
["NEW YORK CITY","NY","O-1E","NEW YORK CITYNYO-1E","NEW YORK CITYNYO-1E",2751]
["NEW YORK CITY","NY","O-2E","NEW YORK CITYNYO-2E","NEW YORK CITYNYO-2E",2877]
["NEW YORK CITY","NY","O-3E","NEW YORK CITYNYO-3E","NEW YORK CITYNYO-3E",3036]
["NEW YORK CITY","NY","O-1","NEW YORK CITYNYO-1","NEW YORK CITYNYO-1",2619]
["NEW YORK CITY","NY","O-2","NEW YORK CITYNYO-2","NEW YORK CITYNYO-2",2730]
["NEW YORK CITY","NY","O-3","NEW YORK CITYNYO-3","NEW YORK CITYNYO-3",2934]
["NEW YORK CITY","NY","O-4","NEW YORK CITYNYO-4","NEW YORK CITYNYO-4",3069]
["NEW YORK CITY","NY","O-5","NEW YORK CITYNYO-5","NEW YORK CITYNYO-5",3087]
["NEW YORK CITY","NY","O-6","NEW YORK CITYNYO-6","NEW YORK CITYNYO-6",3117]
["NEW YORK CITY","NY","O-7","NEW YORK CITYNYO-7","NEW YORK CITYNYO-7",3180]
["ROCHESTER","NY","E-1","ROCHESTERNYE-1","ROCHESTERNYE-1",903,903,903,903,903,1008,1083,1212,1356,1377,1152,1356,1380,1416,1446,1344,1371,1410,1065,1296,1386,1440,1458,1488,1518]
["ROCHESTER","NY","E-2","ROCHESTERNYE-2","ROCHESTERNYE-2",903]
["ROCHESTER","NY","E-3","ROCHESTERNYE-3","ROCHESTERNYE-3",903]
["ROCHESTER","NY","E-4","ROCHESTERNYE-4","ROCHESTERNYE-4",903]
["ROCHESTER","NY","E-5","ROCHESTERNYE-5","ROCHESTERNYE-5",1008]
["ROCHESTER","NY","E-6","ROCHESTERNYE-6","ROCHESTERNYE-6",1083]
["ROCHESTER","NY","E-7","ROCHESTERNYE-7","ROCHESTERNYE-7",1212]
["ROCHESTER","NY","E-8","ROCHESTERNYE-8","ROCHESTERNYE-8",1356]
["ROCHESTER","NY","E-9","ROCHESTERNYE-9","ROCHESTERNYE-9",1377]
["ROCHESTER","NY","W-1","ROCHESTERNYW-1","ROCHESTERNYW-1",1152]
["ROCHESTER","NY","W-2","ROCHESTERNYW-2","ROCHESTERNYW-2",1356]
["ROCHESTER","NY","W-3","ROCHESTERNYW-3","ROCHESTERNYW-3",1380]
["ROCHESTER","NY","W-4","ROCHESTERNYW-4","ROCHESTERNYW-4",1416]
["ROCHESTER","NY","W-5","ROCHESTERNYW-5","ROCHESTERNYW-5",1446]
["ROCHESTER","NY","O-1E","ROCHESTERNYO-1E","ROCHESTERNYO-1E",1344]
["ROCHESTER","NY","O-2E","ROCHESTERNYO-2E","ROCHESTERNYO-2E",1371]
["ROCHESTER","NY","O-3E","ROCHESTERNYO-3E","ROCHESTERNYO-3E",1410]
["ROCHESTER","NY","O-1","ROCHESTERNYO-1","ROCHESTERNYO-1",1065]
["ROCHESTER","NY","O-2","ROCHESTERNYO-2","ROCHESTERNYO-2",1296]
["ROCHESTER","NY","O-3","ROCHESTERNYO-3","ROCHESTERNYO-3",1386]
["ROCHESTER","NY","O-4","ROCHESTERNYO-4","ROCHESTERNYO-4",1440]
["ROCHESTER","NY","O-5","ROCHESTERNYO-5","ROCHESTERNYO-5",1458]
["ROCHESTER","NY","O-6","ROCHESTERNYO-6","ROCHESTERNYO-6",1488]
["ROCHESTER","NY","O-7","ROCHESTERNYO-7","ROCHESTERNYO-7",1518]
["ROME/GRIFFISS AFB","NY","E-1","ROME/GRIFFISS AFBNYE-1","ROME/GRIFFISS AFBNYE-1",747,747,747,747,747,819,921,1002,1107,1140,963,1107,1143,1209,1278,1086,1134,1194,909,1056,1155,1269,1311,1383,1410]
["ROME/GRIFFISS AFB","NY","E-2","ROME/GRIFFISS AFBNYE-2","ROME/GRIFFISS AFBNYE-2",747]
["ROME/GRIFFISS AFB","NY","E-3","ROME/GRIFFISS AFBNYE-3","ROME/GRIFFISS AFBNYE-3",747]
["ROME/GRIFFISS AFB","NY","E-4","ROME/GRIFFISS AFBNYE-4","ROME/GRIFFISS AFBNYE-4",747]
["ROME/GRIFFISS AFB","NY","E-5","ROME/GRIFFISS AFBNYE-5","ROME/GRIFFISS AFBNYE-5",819]
["ROME/GRIFFISS AFB","NY","E-6","ROME/GRIFFISS AFBNYE-6","ROME/GRIFFISS AFBNYE-6",921]
["ROME/GRIFFISS AFB","NY","E-7","ROME/GRIFFISS AFBNYE-7","ROME/GRIFFISS AFBNYE-7",1002]
["ROME/GRIFFISS AFB","NY","E-8","ROME/GRIFFISS AFBNYE-8","ROME/GRIFFISS AFBNYE-8",1107]
["ROME/GRIFFISS AFB","NY","E-9","ROME/GRIFFISS AFBNYE-9","ROME/GRIFFISS AFBNYE-9",1140]
["ROME/GRIFFISS AFB","NY","W-1","ROME/GRIFFISS AFBNYW-1","ROME/GRIFFISS AFBNYW-1",963]
["ROME/GRIFFISS AFB","NY","W-2","ROME/GRIFFISS AFBNYW-2","ROME/GRIFFISS AFBNYW-2",1107]
["ROME/GRIFFISS AFB","NY","W-3","ROME/GRIFFISS AFBNYW-3","ROME/GRIFFISS AFBNYW-3",1143]
["ROME/GRIFFISS AFB","NY","W-4","ROME/GRIFFISS AFBNYW-4","ROME/GRIFFISS AFBNYW-4",1209]
["ROME/GRIFFISS AFB","NY","W-5","ROME/GRIFFISS AFBNYW-5","ROME/GRIFFISS AFBNYW-5",1278]
["ROME/GRIFFISS AFB","NY","O-1E","ROME/GRIFFISS AFBNYO-1E","ROME/GRIFFISS AFBNYO-1E",1086]
["ROME/GRIFFISS AFB","NY","O-2E","ROME/GRIFFISS AFBNYO-2E","ROME/GRIFFISS AFBNYO-2E",1134]
["ROME/GRIFFISS AFB","NY","O-3E",{"$f":"A6018&B6018&C6018","v":"ROME/GRIFFISS AFBNYO-3E"},"ROME/GRIFFISS AFBNYO-3E",1194]
["ROME/GRIFFISS AFB","NY","O-1","ROME/GRIFFISS AFBNYO-1","ROME/GRIFFISS AFBNYO-1",909]
["ROME/GRIFFISS AFB","NY","O-2","ROME/GRIFFISS AFBNYO-2","ROME/GRIFFISS AFBNYO-2",1056]
["ROME/GRIFFISS AFB","NY","O-3","ROME/GRIFFISS AFBNYO-3","ROME/GRIFFISS AFBNYO-3",1155]
["ROME/GRIFFISS AFB","NY","O-4","ROME/GRIFFISS AFBNYO-4","ROME/GRIFFISS AFBNYO-4",1269]
["ROME/GRIFFISS AFB","NY","O-5","ROME/GRIFFISS AFBNYO-5","ROME/GRIFFISS AFBNYO-5",1311]
["ROME/GRIFFISS AFB","NY","O-6","ROME/GRIFFISS AFBNYO-6","ROME/GRIFFISS AFBNYO-6",1383]
["ROME/GRIFFISS AFB","NY","O-7","ROME/GRIFFISS AFBNYO-7","ROME/GRIFFISS AFBNYO-7",1410]
["SYRACUSE","NY","E-1","SYRACUSENYE-1","SYRACUSENYE-1",747,747,747,747,747,834,975,1029,1104,1179,975,1101,1185,1317,1392,1053,1161,1299,876,1023,1212,1383,1428,1506,1536]
["SYRACUSE","NY","E-2","SYRACUSENYE-2","SYRACUSENYE-2",747]
["SYRACUSE","NY","E-3","SYRACUSENYE-3","SYRACUSENYE-3",747]
["SYRACUSE","NY","E-4","SYRACUSENYE-4","SYRACUSENYE-4",747]
["SYRACUSE","NY","E-5","SYRACUSENYE-5","SYRACUSENYE-5",834]
["SYRACUSE","NY","E-6","SYRACUSENYE-6","SYRACUSENYE-6",975]
["SYRACUSE","NY","E-7","SYRACUSENYE-7","SYRACUSENYE-7",1029]
["SYRACUSE","NY","E-8","SYRACUSENYE-8","SYRACUSENYE-8",1104]
["SYRACUSE","NY","E-9","SYRACUSENYE-9","SYRACUSENYE-9",1179]
["SYRACUSE","NY","W-1","SYRACUSENYW-1","SYRACUSENYW-1",975]
["SYRACUSE","NY","W-2","SYRACUSENYW-2","SYRACUSENYW-2",1101]
["SYRACUSE","NY","W-3","SYRACUSENYW-3","SYRACUSENYW-3",1185]
["SYRACUSE","NY","W-4","SYRACUSENYW-4","SYRACUSENYW-4",1317]
["SYRACUSE","NY","W-5","SYRACUSENYW-5","SYRACUSENYW-5",1392]
["SYRACUSE","NY","O-1E","SYRACUSENYO-1E","SYRACUSENYO-1E",1053]
["SYRACUSE","NY","O-2E","SYRACUSENYO-2E","SYRACUSENYO-2E",1161]
["SYRACUSE","NY","O-3E","SYRACUSENYO-3E","SYRACUSENYO-3E",1299]
["SYRACUSE","NY","O-1","SYRACUSENYO-1","SYRACUSENYO-1",876]
["SYRACUSE","NY","O-2","SYRACUSENYO-2","SYRACUSENYO-2",1023]
["SYRACUSE","NY","O-3","SYRACUSENYO-3","SYRACUSENYO-3",1212]
["SYRACUSE","NY","O-4","SYRACUSENYO-4","SYRACUSENYO-4",1383]
["SYRACUSE","NY","O-5","SYRACUSENYO-5","SYRACUSENYO-5",1428]
["SYRACUSE","NY","O-6","SYRACUSENYO-6","SYRACUSENYO-6",1506]
["SYRACUSE","NY","O-7","SYRACUSENYO-7","SYRACUSENYO-7",1536]
["FT.DRUM/WATERTOWN","NY","E-1","FT.DRUM/WATERTOWNNYE-1","FT.DRUM/WATERTOWNNYE-1",960,960,960,960,960,1107,1188,1251,1344,1395,1221,1344,1401,1491,1563,1314,1383,1473,1179,1290,1416,1554,1599,1674,1707]
["FT.DRUM/WATERTOWN","NY","E-2","FT.DRUM/WATERTOWNNYE-2","FT.DRUM/WATERTOWNNYE-2",960]
["FT.DRUM/WATERTOWN","NY","E-3","FT.DRUM/WATERTOWNNYE-3","FT.DRUM/WATERTOWNNYE-3",960]
["FT.DRUM/WATERTOWN","NY","E-4","FT.DRUM/WATERTOWNNYE-4","FT.DRUM/WATERTOWNNYE-4",960]
["FT.DRUM/WATERTOWN","NY","E-5","FT.DRUM/WATERTOWNNYE-5","FT.DRUM/WATERTOWNNYE-5",1107]
["FT.DRUM/WATERTOWN","NY","E-6","FT.DRUM/WATERTOWNNYE-6","FT.DRUM/WATERTOWNNYE-6",1188]
["FT.DRUM/WATERTOWN","NY","E-7","FT.DRUM/WATERTOWNNYE-7","FT.DRUM/WATERTOWNNYE-7",1251]
["FT.DRUM/WATERTOWN","NY","E-8","FT.DRUM/WATERTOWNNYE-8","FT.DRUM/WATERTOWNNYE-8",1344]
["FT.DRUM/WATERTOWN","NY","E-9","FT.DRUM/WATERTOWNNYE-9","FT.DRUM/WATERTOWNNYE-9",1395]
["FT.DRUM/WATERTOWN","NY","W-1","FT.DRUM/WATERTOWNNYW-1","FT.DRUM/WATERTOWNNYW-1",1221]
["FT.DRUM/WATERTOWN","NY","W-2","FT.DRUM/WATERTOWNNYW-2","FT.DRUM/WATERTOWNNYW-2",1344]
["FT.DRUM/WATERTOWN","NY","W-3","FT.DRUM/WATERTOWNNYW-3","FT.DRUM/WATERTOWNNYW-3",1401]
["FT.DRUM/WATERTOWN","NY","W-4","FT.DRUM/WATERTOWNNYW-4","FT.DRUM/WATERTOWNNYW-4",1491]
["FT.DRUM/WATERTOWN","NY","W-5","FT.DRUM/WATERTOWNNYW-5","FT.DRUM/WATERTOWNNYW-5",1563]
["FT.DRUM/WATERTOWN","NY","O-1E","FT.DRUM/WATERTOWNNYO-1E","FT.DRUM/WATERTOWNNYO-1E",1314]
["FT.DRUM/WATERTOWN","NY","O-2E","FT.DRUM/WATERTOWNNYO-2E","FT.DRUM/WATERTOWNNYO-2E",1383]
["FT.DRUM/WATERTOWN","NY","O-3E","FT.DRUM/WATERTOWNNYO-3E","FT.DRUM/WATERTOWNNYO-3E",1473]
["FT.DRUM/WATERTOWN","NY","O-1","FT.DRUM/WATERTOWNNYO-1","FT.DRUM/WATERTOWNNYO-1",1179]
["FT.DRUM/WATERTOWN","NY","O-2","FT.DRUM/WATERTOWNNYO-2","FT.DRUM/WATERTOWNNYO-2",1290]
["FT.DRUM/WATERTOWN","NY","O-3","FT.DRUM/WATERTOWNNYO-3","FT.DRUM/WATERTOWNNYO-3",1416]
["FT.DRUM/WATERTOWN","NY","O-4","FT.DRUM/WATERTOWNNYO-4","FT.DRUM/WATERTOWNNYO-4",1554]
["FT.DRUM/WATERTOWN","NY","O-5","FT.DRUM/WATERTOWNNYO-5","FT.DRUM/WATERTOWNNYO-5",1599]
["FT.DRUM/WATERTOWN","NY","O-6","FT.DRUM/WATERTOWNNYO-6","FT.DRUM/WATERTOWNNYO-6",1674]
["FT.DRUM/WATERTOWN","NY","O-7","FT.DRUM/WATERTOWNNYO-7","FT.DRUM/WATERTOWNNYO-7",1707]
["BINGHAMTON/ITHACA","NY","E-1","BINGHAMTON/ITHACANYE-1","BINGHAMTON/ITHACANYE-1",837,837,837,837,837,936,1218,1266,1323,1440,1218,1320,1449,1638,1707,1278,1413,1623,984,1212,1488,1698,1740,1809,1845]
["BINGHAMTON/ITHACA","NY","E-2","BINGHAMTON/ITHACANYE-2","BINGHAMTON/ITHACANYE-2",837]
["BINGHAMTON/ITHACA","NY","E-3","BINGHAMTON/ITHACANYE-3","BINGHAMTON/ITHACANYE-3",837]
["BINGHAMTON/ITHACA","NY","E-4","BINGHAMTON/ITHACANYE-4","BINGHAMTON/ITHACANYE-4",837]
["BINGHAMTON/ITHACA","NY","E-5","BINGHAMTON/ITHACANYE-5","BINGHAMTON/ITHACANYE-5",936]
["BINGHAMTON/ITHACA","NY","E-6","BINGHAMTON/ITHACANYE-6","BINGHAMTON/ITHACANYE-6",1218]
["BINGHAMTON/ITHACA","NY","E-7","BINGHAMTON/ITHACANYE-7","BINGHAMTON/ITHACANYE-7",1266]
["BINGHAMTON/ITHACA","NY","E-8","BINGHAMTON/ITHACANYE-8","BINGHAMTON/ITHACANYE-8",1323]
["BINGHAMTON/ITHACA","NY","E-9",{"$f":"A6082&B6082&C6082","v":"BINGHAMTON/ITHACANYE-9"},"BINGHAMTON/ITHACANYE-9",1440]
["BINGHAMTON/ITHACA","NY","W-1","BINGHAMTON/ITHACANYW-1","BINGHAMTON/ITHACANYW-1",1218]
["BINGHAMTON/ITHACA","NY","W-2","BINGHAMTON/ITHACANYW-2","BINGHAMTON/ITHACANYW-2",1320]
["BINGHAMTON/ITHACA","NY","W-3","BINGHAMTON/ITHACANYW-3","BINGHAMTON/ITHACANYW-3",1449]
["BINGHAMTON/ITHACA","NY","W-4","BINGHAMTON/ITHACANYW-4","BINGHAMTON/ITHACANYW-4",1638]
["BINGHAMTON/ITHACA","NY","W-5","BINGHAMTON/ITHACANYW-5","BINGHAMTON/ITHACANYW-5",1707]
["BINGHAMTON/ITHACA","NY","O-1E","BINGHAMTON/ITHACANYO-1E","BINGHAMTON/ITHACANYO-1E",1278]
["BINGHAMTON/ITHACA","NY","O-2E","BINGHAMTON/ITHACANYO-2E","BINGHAMTON/ITHACANYO-2E",1413]
["BINGHAMTON/ITHACA","NY","O-3E","BINGHAMTON/ITHACANYO-3E","BINGHAMTON/ITHACANYO-3E",1623]
["BINGHAMTON/ITHACA","NY","O-1","BINGHAMTON/ITHACANYO-1","BINGHAMTON/ITHACANYO-1",984]
["BINGHAMTON/ITHACA","NY","O-2","BINGHAMTON/ITHACANYO-2","BINGHAMTON/ITHACANYO-2",1212]
["BINGHAMTON/ITHACA","NY","O-3","BINGHAMTON/ITHACANYO-3","BINGHAMTON/ITHACANYO-3",1488]
["BINGHAMTON/ITHACA","NY","O-4","BINGHAMTON/ITHACANYO-4","BINGHAMTON/ITHACANYO-4",1698]
["BINGHAMTON/ITHACA","NY","O-5","BINGHAMTON/ITHACANYO-5","BINGHAMTON/ITHACANYO-5",1740]
["BINGHAMTON/ITHACA","NY","O-6","BINGHAMTON/ITHACANYO-6","BINGHAMTON/ITHACANYO-6",1809]
["BINGHAMTON/ITHACA","NY","O-7","BINGHAMTON/ITHACANYO-7","BINGHAMTON/ITHACANYO-7",1845]
["WESTCHESTER COUNTY","NY","E-1","WESTCHESTER COUNTYNYE-1","WESTCHESTER COUNTYNYE-1",1440,1440,1440,1440,1440,1647,1968,2100,2238,2406,1971,2157,2349,2667,2841,2127,2304,2625,1812,1986,2409,2817,2928,3105,3168]
["WESTCHESTER COUNTY","NY","E-2","WESTCHESTER COUNTYNYE-2","WESTCHESTER COUNTYNYE-2",1440]
["WESTCHESTER COUNTY","NY","E-3","WESTCHESTER COUNTYNYE-3","WESTCHESTER COUNTYNYE-3",1440]
["WESTCHESTER COUNTY","NY","E-4","WESTCHESTER COUNTYNYE-4","WESTCHESTER COUNTYNYE-4",1440]
["WESTCHESTER COUNTY","NY","E-5","WESTCHESTER COUNTYNYE-5","WESTCHESTER COUNTYNYE-5",1647]
["WESTCHESTER COUNTY","NY","E-6","WESTCHESTER COUNTYNYE-6","WESTCHESTER COUNTYNYE-6",1968]
["WESTCHESTER COUNTY","NY","E-7","WESTCHESTER COUNTYNYE-7","WESTCHESTER COUNTYNYE-7",2100]
["WESTCHESTER COUNTY","NY","E-8","WESTCHESTER COUNTYNYE-8","WESTCHESTER COUNTYNYE-8",2238]
["WESTCHESTER COUNTY","NY","E-9","WESTCHESTER COUNTYNYE-9","WESTCHESTER COUNTYNYE-9",2406]
["WESTCHESTER COUNTY","NY","W-1","WESTCHESTER COUNTYNYW-1","WESTCHESTER COUNTYNYW-1",1971]
["WESTCHESTER COUNTY","NY","W-2","WESTCHESTER COUNTYNYW-2","WESTCHESTER COUNTYNYW-2",2157]
["WESTCHESTER COUNTY","NY","W-3","WESTCHESTER COUNTYNYW-3","WESTCHESTER COUNTYNYW-3",2349]
["WESTCHESTER COUNTY","NY","W-4","WESTCHESTER COUNTYNYW-4","WESTCHESTER COUNTYNYW-4",2667]
["WESTCHESTER COUNTY","NY","W-5","WESTCHESTER COUNTYNYW-5","WESTCHESTER COUNTYNYW-5",2841]
["WESTCHESTER COUNTY","NY","O-1E","WESTCHESTER COUNTYNYO-1E","WESTCHESTER COUNTYNYO-1E",2127]
["WESTCHESTER COUNTY","NY","O-2E","WESTCHESTER COUNTYNYO-2E","WESTCHESTER COUNTYNYO-2E",2304]
["WESTCHESTER COUNTY","NY","O-3E","WESTCHESTER COUNTYNYO-3E","WESTCHESTER COUNTYNYO-3E",2625]
["WESTCHESTER COUNTY","NY","O-1","WESTCHESTER COUNTYNYO-1","WESTCHESTER COUNTYNYO-1",1812]
["WESTCHESTER COUNTY","NY","O-2","WESTCHESTER COUNTYNYO-2","WESTCHESTER COUNTYNYO-2",1986]
["WESTCHESTER COUNTY","NY","O-3","WESTCHESTER COUNTYNYO-3","WESTCHESTER COUNTYNYO-3",2409]
["WESTCHESTER COUNTY","NY","O-4","WESTCHESTER COUNTYNYO-4","WESTCHESTER COUNTYNYO-4",2817]
["WESTCHESTER COUNTY","NY","O-5","WESTCHESTER COUNTYNYO-5","WESTCHESTER COUNTYNYO-5",2928]
["WESTCHESTER COUNTY","NY","O-6","WESTCHESTER COUNTYNYO-6","WESTCHESTER COUNTYNYO-6",3105]
["WESTCHESTER COUNTY","NY","O-7","WESTCHESTER COUNTYNYO-7","WESTCHESTER COUNTYNYO-7",3168]
["STATEN ISLAND","NY","E-1","STATEN ISLANDNYE-1","STATEN ISLANDNYE-1",1359,1359,1359,1359,1359,1527,1857,1875,2124,2259,1857,2118,2271,2481,2508,2034,2229,2475,1590,1959,2316,2505,2523,2550,2601]
["STATEN ISLAND","NY","E-2","STATEN ISLANDNYE-2","STATEN ISLANDNYE-2",1359]
["STATEN ISLAND","NY","E-3","STATEN ISLANDNYE-3","STATEN ISLANDNYE-3",1359]
["STATEN ISLAND","NY","E-4","STATEN ISLANDNYE-4","STATEN ISLANDNYE-4",1359]
["STATEN ISLAND","NY","E-5","STATEN ISLANDNYE-5","STATEN ISLANDNYE-5",1527]
["STATEN ISLAND","NY","E-6","STATEN ISLANDNYE-6","STATEN ISLANDNYE-6",1857]
["STATEN ISLAND","NY","E-7","STATEN ISLANDNYE-7","STATEN ISLANDNYE-7",1875]
["STATEN ISLAND","NY","E-8","STATEN ISLANDNYE-8","STATEN ISLANDNYE-8",2124]
["STATEN ISLAND","NY","E-9","STATEN ISLANDNYE-9","STATEN ISLANDNYE-9",2259]
["STATEN ISLAND","NY","W-1","STATEN ISLANDNYW-1","STATEN ISLANDNYW-1",1857]
["STATEN ISLAND","NY","W-2","STATEN ISLANDNYW-2","STATEN ISLANDNYW-2",2118]
["STATEN ISLAND","NY","W-3","STATEN ISLANDNYW-3","STATEN ISLANDNYW-3",2271]
["STATEN ISLAND","NY","W-4","STATEN ISLANDNYW-4","STATEN ISLANDNYW-4",2481]
["STATEN ISLAND","NY","W-5","STATEN ISLANDNYW-5","STATEN ISLANDNYW-5",2508]
["STATEN ISLAND","NY","O-1E","STATEN ISLANDNYO-1E","STATEN ISLANDNYO-1E",2034]
["STATEN ISLAND","NY","O-2E","STATEN ISLANDNYO-2E","STATEN ISLANDNYO-2E",2229]
["STATEN ISLAND","NY","O-3E","STATEN ISLANDNYO-3E","STATEN ISLANDNYO-3E",2475]
["STATEN ISLAND","NY","O-1","STATEN ISLANDNYO-1","STATEN ISLANDNYO-1",1590]
["STATEN ISLAND","NY","O-2","STATEN ISLANDNYO-2","STATEN ISLANDNYO-2",1959]
["STATEN ISLAND","NY","O-3","STATEN ISLANDNYO-3","STATEN ISLANDNYO-3",2316]
["STATEN ISLAND","NY","O-4","STATEN ISLANDNYO-4","STATEN ISLANDNYO-4",2505]
["STATEN ISLAND","NY","O-5","STATEN ISLANDNYO-5","STATEN ISLANDNYO-5",2523]
["STATEN ISLAND","NY","O-6","STATEN ISLANDNYO-6","STATEN ISLANDNYO-6",2550]
["STATEN ISLAND","NY","O-7","STATEN ISLANDNYO-7","STATEN ISLANDNYO-7",2601]
["POTSDAM","NY","E-1",{"$f":"A6146&B6146&C6146","v":"POTSDAMNYE-1"},"POTSDAMNYE-1",684,684,684,684,684,774,894,912,978,1062,894,975,1068,1197,1221,924,1041,1191,819,906,1095,1218,1233,1257,1281]
["POTSDAM","NY","E-2","POTSDAMNYE-2","POTSDAMNYE-2",684]
["POTSDAM","NY","E-3","POTSDAMNYE-3","POTSDAMNYE-3",684]
["POTSDAM","NY","E-4","POTSDAMNYE-4","POTSDAMNYE-4",684]
["POTSDAM","NY","E-5","POTSDAMNYE-5","POTSDAMNYE-5",774]
["POTSDAM","NY","E-6","POTSDAMNYE-6","POTSDAMNYE-6",894]
["POTSDAM","NY","E-7","POTSDAMNYE-7","POTSDAMNYE-7",912]
["POTSDAM","NY","E-8","POTSDAMNYE-8","POTSDAMNYE-8",978]
["POTSDAM","NY","E-9","POTSDAMNYE-9","POTSDAMNYE-9",1062]
["POTSDAM","NY","W-1","POTSDAMNYW-1","POTSDAMNYW-1",894]
["POTSDAM","NY","W-2","POTSDAMNYW-2","POTSDAMNYW-2",975]
["POTSDAM","NY","W-3","POTSDAMNYW-3","POTSDAMNYW-3",1068]
["POTSDAM","NY","W-4","POTSDAMNYW-4","POTSDAMNYW-4",1197]
["POTSDAM","NY","W-5","POTSDAMNYW-5","POTSDAMNYW-5",1221]
["POTSDAM","NY","O-1E","POTSDAMNYO-1E","POTSDAMNYO-1E",924]
["POTSDAM","NY","O-2E","POTSDAMNYO-2E","POTSDAMNYO-2E",1041]
["POTSDAM","NY","O-3E","POTSDAMNYO-3E","POTSDAMNYO-3E",1191]
["POTSDAM","NY","O-1","POTSDAMNYO-1","POTSDAMNYO-1",819]
["POTSDAM","NY","O-2","POTSDAMNYO-2","POTSDAMNYO-2",906]
["POTSDAM","NY","O-3","POTSDAMNYO-3","POTSDAMNYO-3",1095]
["POTSDAM","NY","O-4","POTSDAMNYO-4","POTSDAMNYO-4",1218]
["POTSDAM","NY","O-5","POTSDAMNYO-5","POTSDAMNYO-5",1233]
["POTSDAM","NY","O-6","POTSDAMNYO-6","POTSDAMNYO-6",1257]
["POTSDAM","NY","O-7","POTSDAMNYO-7","POTSDAMNYO-7",1281]
["KINGSTON/SAUGERTIES","NY","E-1","KINGSTON/SAUGERTIESNYE-1","KINGSTON/SAUGERTIESNYE-1",1032,1032,1032,1032,1032,1182,1404,1428,1560,1680,1404,1557,1692,1881,1914,1482,1653,1872,1266,1446,1731,1908,1932,1965,2004]
["KINGSTON/SAUGERTIES","NY","E-2","KINGSTON/SAUGERTIESNYE-2","KINGSTON/SAUGERTIESNYE-2",1032]
["KINGSTON/SAUGERTIES","NY","E-3","KINGSTON/SAUGERTIESNYE-3","KINGSTON/SAUGERTIESNYE-3",1032]
["KINGSTON/SAUGERTIES","NY","E-4","KINGSTON/SAUGERTIESNYE-4","KINGSTON/SAUGERTIESNYE-4",1032]
["KINGSTON/SAUGERTIES","NY","E-5","KINGSTON/SAUGERTIESNYE-5","KINGSTON/SAUGERTIESNYE-5",1182]
["KINGSTON/SAUGERTIES","NY","E-6","KINGSTON/SAUGERTIESNYE-6","KINGSTON/SAUGERTIESNYE-6",1404]
["KINGSTON/SAUGERTIES","NY","E-7","KINGSTON/SAUGERTIESNYE-7","KINGSTON/SAUGERTIESNYE-7",1428]
["KINGSTON/SAUGERTIES","NY","E-8","KINGSTON/SAUGERTIESNYE-8","KINGSTON/SAUGERTIESNYE-8",1560]
["KINGSTON/SAUGERTIES","NY","E-9","KINGSTON/SAUGERTIESNYE-9","KINGSTON/SAUGERTIESNYE-9",1680]
["KINGSTON/SAUGERTIES","NY","W-1","KINGSTON/SAUGERTIESNYW-1","KINGSTON/SAUGERTIESNYW-1",1404]
["KINGSTON/SAUGERTIES","NY","W-2","KINGSTON/SAUGERTIESNYW-2","KINGSTON/SAUGERTIESNYW-2",1557]
["KINGSTON/SAUGERTIES","NY","W-3","KINGSTON/SAUGERTIESNYW-3","KINGSTON/SAUGERTIESNYW-3",1692]
["KINGSTON/SAUGERTIES","NY","W-4","KINGSTON/SAUGERTIESNYW-4","KINGSTON/SAUGERTIESNYW-4",1881]
["KINGSTON/SAUGERTIES","NY","W-5","KINGSTON/SAUGERTIESNYW-5","KINGSTON/SAUGERTIESNYW-5",1914]
["KINGSTON/SAUGERTIES","NY","O-1E","KINGSTON/SAUGERTIESNYO-1E","KINGSTON/SAUGERTIESNYO-1E",1482]
["KINGSTON/SAUGERTIES","NY","O-2E","KINGSTON/SAUGERTIESNYO-2E","KINGSTON/SAUGERTIESNYO-2E",1653]
["KINGSTON/SAUGERTIES","NY","O-3E","KINGSTON/SAUGERTIESNYO-3E","KINGSTON/SAUGERTIESNYO-3E",1872]
["KINGSTON/SAUGERTIES","NY","O-1","KINGSTON/SAUGERTIESNYO-1","KINGSTON/SAUGERTIESNYO-1",1266]
["KINGSTON/SAUGERTIES","NY","O-2","KINGSTON/SAUGERTIESNYO-2","KINGSTON/SAUGERTIESNYO-2",1446]
["KINGSTON/SAUGERTIES","NY","O-3","KINGSTON/SAUGERTIESNYO-3","KINGSTON/SAUGERTIESNYO-3",1731]
["KINGSTON/SAUGERTIES","NY","O-4","KINGSTON/SAUGERTIESNYO-4","KINGSTON/SAUGERTIESNYO-4",1908]
["KINGSTON/SAUGERTIES","NY","O-5","KINGSTON/SAUGERTIESNYO-5","KINGSTON/SAUGERTIESNYO-5",1932]
["KINGSTON/SAUGERTIES","NY","O-6","KINGSTON/SAUGERTIESNYO-6","KINGSTON/SAUGERTIESNYO-6",1965]
["KINGSTON/SAUGERTIES","NY","O-7","KINGSTON/SAUGERTIESNYO-7","KINGSTON/SAUGERTIESNYO-7",2004]
["AKRON","OH","E-1","AKRONOHE-1","AKRONOHE-1",753,753,753,753,753,852,909,957,1032,1068,933,1029,1071,1131,1152,1008,1059,1125,900,990,1083,1149,1197,1206,1218]
["AKRON","OH","E-2","AKRONOHE-2","AKRONOHE-2",753]
["AKRON","OH","E-3","AKRONOHE-3","AKRONOHE-3",753]
["AKRON","OH","E-4","AKRONOHE-4","AKRONOHE-4",753]
["AKRON","OH","E-5","AKRONOHE-5","AKRONOHE-5",852]
["AKRON","OH","E-6","AKRONOHE-6","AKRONOHE-6",909]
["AKRON","OH","E-7","AKRONOHE-7","AKRONOHE-7",957]
["AKRON","OH","E-8","AKRONOHE-8","AKRONOHE-8",1032]
["AKRON","OH","E-9","AKRONOHE-9","AKRONOHE-9",1068]
["AKRON","OH","W-1","AKRONOHW-1","AKRONOHW-1",933]
["AKRON","OH","W-2","AKRONOHW-2","AKRONOHW-2",1029]
["AKRON","OH","W-3","AKRONOHW-3","AKRONOHW-3",1071]
["AKRON","OH","W-4","AKRONOHW-4","AKRONOHW-4",1131]
["AKRON","OH","W-5","AKRONOHW-5","AKRONOHW-5",1152]
["AKRON","OH","O-1E","AKRONOHO-1E","AKRONOHO-1E",1008]
["AKRON","OH","O-2E","AKRONOHO-2E","AKRONOHO-2E",1059]
["AKRON","OH","O-3E",{"$f":"A6210&B6210&C6210","v":"AKRONOHO-3E"},"AKRONOHO-3E",1125]
["AKRON","OH","O-1","AKRONOHO-1","AKRONOHO-1",900]
["AKRON","OH","O-2","AKRONOHO-2","AKRONOHO-2",990]
["AKRON","OH","O-3","AKRONOHO-3","AKRONOHO-3",1083]
["AKRON","OH","O-4","AKRONOHO-4","AKRONOHO-4",1149]
["AKRON","OH","O-5","AKRONOHO-5","AKRONOHO-5",1197]
["AKRON","OH","O-6","AKRONOHO-6","AKRONOHO-6",1206]
["AKRON","OH","O-7","AKRONOHO-7","AKRONOHO-7",1218]
["CINCINNATI","OH","E-1","CINCINNATIOHE-1","CINCINNATIOHE-1",930,930,930,930,930,1077,1161,1239,1335,1356,1203,1335,1356,1401,1452,1320,1350,1386,1149,1293,1362,1446,1479,1533,1563]
["CINCINNATI","OH","E-2","CINCINNATIOHE-2","CINCINNATIOHE-2",930]
["CINCINNATI","OH","E-3","CINCINNATIOHE-3","CINCINNATIOHE-3",930]
["CINCINNATI","OH","E-4","CINCINNATIOHE-4","CINCINNATIOHE-4",930]
["CINCINNATI","OH","E-5","CINCINNATIOHE-5","CINCINNATIOHE-5",1077]
["CINCINNATI","OH","E-6","CINCINNATIOHE-6","CINCINNATIOHE-6",1161]
["CINCINNATI","OH","E-7","CINCINNATIOHE-7","CINCINNATIOHE-7",1239]
["CINCINNATI","OH","E-8","CINCINNATIOHE-8","CINCINNATIOHE-8",1335]
["CINCINNATI","OH","E-9","CINCINNATIOHE-9","CINCINNATIOHE-9",1356]
["CINCINNATI","OH","W-1","CINCINNATIOHW-1","CINCINNATIOHW-1",1203]
["CINCINNATI","OH","W-2","CINCINNATIOHW-2","CINCINNATIOHW-2",1335]
["CINCINNATI","OH","W-3","CINCINNATIOHW-3","CINCINNATIOHW-3",1356]
["CINCINNATI","OH","W-4","CINCINNATIOHW-4","CINCINNATIOHW-4",1401]
["CINCINNATI","OH","W-5","CINCINNATIOHW-5","CINCINNATIOHW-5",1452]
["CINCINNATI","OH","O-1E","CINCINNATIOHO-1E","CINCINNATIOHO-1E",1320]
["CINCINNATI","OH","O-2E","CINCINNATIOHO-2E","CINCINNATIOHO-2E",1350]
["CINCINNATI","OH","O-3E","CINCINNATIOHO-3E","CINCINNATIOHO-3E",1386]
["CINCINNATI","OH","O-1","CINCINNATIOHO-1","CINCINNATIOHO-1",1149]
["CINCINNATI","OH","O-2","CINCINNATIOHO-2","CINCINNATIOHO-2",1293]
["CINCINNATI","OH","O-3","CINCINNATIOHO-3","CINCINNATIOHO-3",1362]
["CINCINNATI","OH","O-4","CINCINNATIOHO-4","CINCINNATIOHO-4",1446]
["CINCINNATI","OH","O-5","CINCINNATIOHO-5","CINCINNATIOHO-5",1479]
["CINCINNATI","OH","O-6","CINCINNATIOHO-6","CINCINNATIOHO-6",1533]
["CINCINNATI","OH","O-7","CINCINNATIOHO-7","CINCINNATIOHO-7",1563]
["CLEVELAND","OH","E-1","CLEVELANDOHE-1","CLEVELANDOHE-1",804,804,804,804,804,912,972,1029,1107,1137,1002,1104,1140,1212,1302,1086,1131,1188,966,1065,1152,1290,1347,1437,1467]
["CLEVELAND","OH","E-2","CLEVELANDOHE-2","CLEVELANDOHE-2",804]
["CLEVELAND","OH","E-3","CLEVELANDOHE-3","CLEVELANDOHE-3",804]
["CLEVELAND","OH","E-4","CLEVELANDOHE-4","CLEVELANDOHE-4",804]
["CLEVELAND","OH","E-5","CLEVELANDOHE-5","CLEVELANDOHE-5",912]
["CLEVELAND","OH","E-6","CLEVELANDOHE-6","CLEVELANDOHE-6",972]
["CLEVELAND","OH","E-7","CLEVELANDOHE-7","CLEVELANDOHE-7",1029]
["CLEVELAND","OH","E-8","CLEVELANDOHE-8","CLEVELANDOHE-8",1107]
["CLEVELAND","OH","E-9","CLEVELANDOHE-9","CLEVELANDOHE-9",1137]
["CLEVELAND","OH","W-1","CLEVELANDOHW-1","CLEVELANDOHW-1",1002]
["CLEVELAND","OH","W-2","CLEVELANDOHW-2","CLEVELANDOHW-2",1104]
["CLEVELAND","OH","W-3","CLEVELANDOHW-3","CLEVELANDOHW-3",1140]
["CLEVELAND","OH","W-4","CLEVELANDOHW-4","CLEVELANDOHW-4",1212]
["CLEVELAND","OH","W-5","CLEVELANDOHW-5","CLEVELANDOHW-5",1302]
["CLEVELAND","OH","O-1E","CLEVELANDOHO-1E","CLEVELANDOHO-1E",1086]
["CLEVELAND","OH","O-2E","CLEVELANDOHO-2E","CLEVELANDOHO-2E",1131]
["CLEVELAND","OH","O-3E","CLEVELANDOHO-3E","CLEVELANDOHO-3E",1188]
["CLEVELAND","OH","O-1","CLEVELANDOHO-1","CLEVELANDOHO-1",966]
["CLEVELAND","OH","O-2","CLEVELANDOHO-2","CLEVELANDOHO-2",1065]
["CLEVELAND","OH","O-3","CLEVELANDOHO-3","CLEVELANDOHO-3",1152]
["CLEVELAND","OH","O-4","CLEVELANDOHO-4","CLEVELANDOHO-4",1290]
["CLEVELAND","OH","O-5","CLEVELANDOHO-5","CLEVELANDOHO-5",1347]
["CLEVELAND","OH","O-6","CLEVELANDOHO-6","CLEVELANDOHO-6",1437]
["CLEVELAND","OH","O-7","CLEVELANDOHO-7","CLEVELANDOHO-7",1467]
["COLUMBUS","OH","E-1","COLUMBUSOHE-1","COLUMBUSOHE-1",759,759,759,759,759,870,930,987,1077,1131,960,1074,1134,1227,1278,1041,1119,1215,924,1020,1152,1272,1437,1452,1464]
["COLUMBUS","OH","E-2","COLUMBUSOHE-2","COLUMBUSOHE-2",759]
["COLUMBUS","OH","E-3","COLUMBUSOHE-3","COLUMBUSOHE-3",759]
["COLUMBUS","OH","E-4","COLUMBUSOHE-4","COLUMBUSOHE-4",759]
["COLUMBUS","OH","E-5","COLUMBUSOHE-5","COLUMBUSOHE-5",870]
["COLUMBUS","OH","E-6","COLUMBUSOHE-6","COLUMBUSOHE-6",930]
["COLUMBUS","OH","E-7","COLUMBUSOHE-7","COLUMBUSOHE-7",987]
["COLUMBUS","OH","E-8","COLUMBUSOHE-8","COLUMBUSOHE-8",1077]
["COLUMBUS","OH","E-9",{"$f":"A6274&B6274&C6274","v":"COLUMBUSOHE-9"},"COLUMBUSOHE-9",1131]
["COLUMBUS","OH","W-1","COLUMBUSOHW-1","COLUMBUSOHW-1",960]
["COLUMBUS","OH","W-2","COLUMBUSOHW-2","COLUMBUSOHW-2",1074]
["COLUMBUS","OH","W-3","COLUMBUSOHW-3","COLUMBUSOHW-3",1134]
["COLUMBUS","OH","W-4","COLUMBUSOHW-4","COLUMBUSOHW-4",1227]
["COLUMBUS","OH","W-5","COLUMBUSOHW-5","COLUMBUSOHW-5",1278]
["COLUMBUS","OH","O-1E","COLUMBUSOHO-1E","COLUMBUSOHO-1E",1041]
["COLUMBUS","OH","O-2E","COLUMBUSOHO-2E","COLUMBUSOHO-2E",1119]
["COLUMBUS","OH","O-3E","COLUMBUSOHO-3E","COLUMBUSOHO-3E",1215]
["COLUMBUS","OH","O-1","COLUMBUSOHO-1","COLUMBUSOHO-1",924]
["COLUMBUS","OH","O-2","COLUMBUSOHO-2","COLUMBUSOHO-2",1020]
["COLUMBUS","OH","O-3","COLUMBUSOHO-3","COLUMBUSOHO-3",1152]
["COLUMBUS","OH","O-4","COLUMBUSOHO-4","COLUMBUSOHO-4",1272]
["COLUMBUS","OH","O-5","COLUMBUSOHO-5","COLUMBUSOHO-5",1437]
["COLUMBUS","OH","O-6","COLUMBUSOHO-6","COLUMBUSOHO-6",1452]
["COLUMBUS","OH","O-7","COLUMBUSOHO-7","COLUMBUSOHO-7",1464]
["WRIGHT-PATTERSON AFB","OH","E-1","WRIGHT-PATTERSON AFBOHE-1","WRIGHT-PATTERSON AFBOHE-1",738,738,738,738,738,822,927,1005,1092,1179,930,1041,1146,1263,1368,1023,1131,1236,861,960,1143,1353,1419,1527,1557]
["WRIGHT-PATTERSON AFB","OH","E-2","WRIGHT-PATTERSON AFBOHE-2","WRIGHT-PATTERSON AFBOHE-2",738]
["WRIGHT-PATTERSON AFB","OH","E-3","WRIGHT-PATTERSON AFBOHE-3","WRIGHT-PATTERSON AFBOHE-3",738]
["WRIGHT-PATTERSON AFB","OH","E-4","WRIGHT-PATTERSON AFBOHE-4","WRIGHT-PATTERSON AFBOHE-4",738]
["WRIGHT-PATTERSON AFB","OH","E-5","WRIGHT-PATTERSON AFBOHE-5","WRIGHT-PATTERSON AFBOHE-5",822]
["WRIGHT-PATTERSON AFB","OH","E-6","WRIGHT-PATTERSON AFBOHE-6","WRIGHT-PATTERSON AFBOHE-6",927]
["WRIGHT-PATTERSON AFB","OH","E-7","WRIGHT-PATTERSON AFBOHE-7","WRIGHT-PATTERSON AFBOHE-7",1005]
["WRIGHT-PATTERSON AFB","OH","E-8","WRIGHT-PATTERSON AFBOHE-8","WRIGHT-PATTERSON AFBOHE-8",1092]
["WRIGHT-PATTERSON AFB","OH","E-9","WRIGHT-PATTERSON AFBOHE-9","WRIGHT-PATTERSON AFBOHE-9",1179]
["WRIGHT-PATTERSON AFB","OH","W-1","WRIGHT-PATTERSON AFBOHW-1","WRIGHT-PATTERSON AFBOHW-1",930]
["WRIGHT-PATTERSON AFB","OH","W-2","WRIGHT-PATTERSON AFBOHW-2","WRIGHT-PATTERSON AFBOHW-2",1041]
["WRIGHT-PATTERSON AFB","OH","W-3","WRIGHT-PATTERSON AFBOHW-3","WRIGHT-PATTERSON AFBOHW-3",1146]
["WRIGHT-PATTERSON AFB","OH","W-4","WRIGHT-PATTERSON AFBOHW-4","WRIGHT-PATTERSON AFBOHW-4",1263]
["WRIGHT-PATTERSON AFB","OH","W-5","WRIGHT-PATTERSON AFBOHW-5","WRIGHT-PATTERSON AFBOHW-5",1368]
["WRIGHT-PATTERSON AFB","OH","O-1E","WRIGHT-PATTERSON AFBOHO-1E","WRIGHT-PATTERSON AFBOHO-1E",1023]
["WRIGHT-PATTERSON AFB","OH","O-2E","WRIGHT-PATTERSON AFBOHO-2E","WRIGHT-PATTERSON AFBOHO-2E",1131]
["WRIGHT-PATTERSON AFB","OH","O-3E","WRIGHT-PATTERSON AFBOHO-3E","WRIGHT-PATTERSON AFBOHO-3E",1236]
["WRIGHT-PATTERSON AFB","OH","O-1","WRIGHT-PATTERSON AFBOHO-1","WRIGHT-PATTERSON AFBOHO-1",861]
["WRIGHT-PATTERSON AFB","OH","O-2","WRIGHT-PATTERSON AFBOHO-2","WRIGHT-PATTERSON AFBOHO-2",960]
["WRIGHT-PATTERSON AFB","OH","O-3","WRIGHT-PATTERSON AFBOHO-3","WRIGHT-PATTERSON AFBOHO-3",1143]
["WRIGHT-PATTERSON AFB","OH","O-4","WRIGHT-PATTERSON AFBOHO-4","WRIGHT-PATTERSON AFBOHO-4",1353]
["WRIGHT-PATTERSON AFB","OH","O-5","WRIGHT-PATTERSON AFBOHO-5","WRIGHT-PATTERSON AFBOHO-5",1419]
["WRIGHT-PATTERSON AFB","OH","O-6","WRIGHT-PATTERSON AFBOHO-6","WRIGHT-PATTERSON AFBOHO-6",1527]
["WRIGHT-PATTERSON AFB","OH","O-7","WRIGHT-PATTERSON AFBOHO-7","WRIGHT-PATTERSON AFBOHO-7",1557]
["TOLEDO","OH","E-1","TOLEDOOHE-1","TOLEDOOHE-1",732,732,732,732,732,819,888,984,1107,1137,933,1107,1140,1191,1230,1089,1131,1182,861,1050,1149,1224,1290,1302,1314]
["TOLEDO","OH","E-2","TOLEDOOHE-2","TOLEDOOHE-2",732]
["TOLEDO","OH","E-3","TOLEDOOHE-3","TOLEDOOHE-3",732]
["TOLEDO","OH","E-4","TOLEDOOHE-4","TOLEDOOHE-4",732]
["TOLEDO","OH","E-5","TOLEDOOHE-5","TOLEDOOHE-5",819]
["TOLEDO","OH","E-6","TOLEDOOHE-6","TOLEDOOHE-6",888]
["TOLEDO","OH","E-7","TOLEDOOHE-7","TOLEDOOHE-7",984]
["TOLEDO","OH","E-8","TOLEDOOHE-8","TOLEDOOHE-8",1107]
["TOLEDO","OH","E-9","TOLEDOOHE-9","TOLEDOOHE-9",1137]
["TOLEDO","OH","W-1","TOLEDOOHW-1","TOLEDOOHW-1",933]
["TOLEDO","OH","W-2","TOLEDOOHW-2","TOLEDOOHW-2",1107]
["TOLEDO","OH","W-3","TOLEDOOHW-3","TOLEDOOHW-3",1140]
["TOLEDO","OH","W-4","TOLEDOOHW-4","TOLEDOOHW-4",1191]
["TOLEDO","OH","W-5","TOLEDOOHW-5","TOLEDOOHW-5",1230]
["TOLEDO","OH","O-1E","TOLEDOOHO-1E","TOLEDOOHO-1E",1089]
["TOLEDO","OH","O-2E","TOLEDOOHO-2E","TOLEDOOHO-2E",1131]
["TOLEDO","OH","O-3E","TOLEDOOHO-3E","TOLEDOOHO-3E",1182]
["TOLEDO","OH","O-1","TOLEDOOHO-1","TOLEDOOHO-1",861]
["TOLEDO","OH","O-2","TOLEDOOHO-2","TOLEDOOHO-2",1050]
["TOLEDO","OH","O-3","TOLEDOOHO-3","TOLEDOOHO-3",1149]
["TOLEDO","OH","O-4","TOLEDOOHO-4","TOLEDOOHO-4",1224]
["TOLEDO","OH","O-5","TOLEDOOHO-5","TOLEDOOHO-5",1290]
["TOLEDO","OH","O-6","TOLEDOOHO-6","TOLEDOOHO-6",1302]
["TOLEDO","OH","O-7","TOLEDOOHO-7","TOLEDOOHO-7",1314]
["YOUNGSTOWN","OH","E-1",{"$f":"A6338&B6338&C6338","v":"YOUNGSTOWNOHE-1"},"YOUNGSTOWNOHE-1",609,609,609,609,609,696,750,816,897,918,786,897,921,960,996,885,912,951,741,861,927,990,1014,1050,1071]
["YOUNGSTOWN","OH","E-2","YOUNGSTOWNOHE-2","YOUNGSTOWNOHE-2",609]
["YOUNGSTOWN","OH","E-3","YOUNGSTOWNOHE-3","YOUNGSTOWNOHE-3",609]
["YOUNGSTOWN","OH","E-4","YOUNGSTOWNOHE-4","YOUNGSTOWNOHE-4",609]
["YOUNGSTOWN","OH","E-5","YOUNGSTOWNOHE-5","YOUNGSTOWNOHE-5",696]
["YOUNGSTOWN","OH","E-6","YOUNGSTOWNOHE-6","YOUNGSTOWNOHE-6",750]
["YOUNGSTOWN","OH","E-7","YOUNGSTOWNOHE-7","YOUNGSTOWNOHE-7",816]
["YOUNGSTOWN","OH","E-8","YOUNGSTOWNOHE-8","YOUNGSTOWNOHE-8",897]
["YOUNGSTOWN","OH","E-9","YOUNGSTOWNOHE-9","YOUNGSTOWNOHE-9",918]
["YOUNGSTOWN","OH","W-1","YOUNGSTOWNOHW-1","YOUNGSTOWNOHW-1",786]
["YOUNGSTOWN","OH","W-2","YOUNGSTOWNOHW-2","YOUNGSTOWNOHW-2",897]
["YOUNGSTOWN","OH","W-3","YOUNGSTOWNOHW-3","YOUNGSTOWNOHW-3",921]
["YOUNGSTOWN","OH","W-4","YOUNGSTOWNOHW-4","YOUNGSTOWNOHW-4",960]
["YOUNGSTOWN","OH","W-5","YOUNGSTOWNOHW-5","YOUNGSTOWNOHW-5",996]
["YOUNGSTOWN","OH","O-1E","YOUNGSTOWNOHO-1E","YOUNGSTOWNOHO-1E",885]
["YOUNGSTOWN","OH","O-2E","YOUNGSTOWNOHO-2E","YOUNGSTOWNOHO-2E",912]
["YOUNGSTOWN","OH","O-3E","YOUNGSTOWNOHO-3E","YOUNGSTOWNOHO-3E",951]
["YOUNGSTOWN","OH","O-1","YOUNGSTOWNOHO-1","YOUNGSTOWNOHO-1",741]
["YOUNGSTOWN","OH","O-2","YOUNGSTOWNOHO-2","YOUNGSTOWNOHO-2",861]
["YOUNGSTOWN","OH","O-3","YOUNGSTOWNOHO-3","YOUNGSTOWNOHO-3",927]
["YOUNGSTOWN","OH","O-4","YOUNGSTOWNOHO-4","YOUNGSTOWNOHO-4",990]
["YOUNGSTOWN","OH","O-5","YOUNGSTOWNOHO-5","YOUNGSTOWNOHO-5",1014]
["YOUNGSTOWN","OH","O-6","YOUNGSTOWNOHO-6","YOUNGSTOWNOHO-6",1050]
["YOUNGSTOWN","OH","O-7","YOUNGSTOWNOHO-7","YOUNGSTOWNOHO-7",1071]
["MANSFIELD","OH","E-1","MANSFIELDOHE-1","MANSFIELDOHE-1",576,576,576,576,576,666,720,756,831,882,738,831,885,969,1011,801,870,960,708,786,903,1005,1029,1071,1092]
["MANSFIELD","OH","E-2","MANSFIELDOHE-2","MANSFIELDOHE-2",576]
["MANSFIELD","OH","E-3","MANSFIELDOHE-3","MANSFIELDOHE-3",576]
["MANSFIELD","OH","E-4","MANSFIELDOHE-4","MANSFIELDOHE-4",576]
["MANSFIELD","OH","E-5","MANSFIELDOHE-5","MANSFIELDOHE-5",666]
["MANSFIELD","OH","E-6","MANSFIELDOHE-6","MANSFIELDOHE-6",720]
["MANSFIELD","OH","E-7","MANSFIELDOHE-7","MANSFIELDOHE-7",756]
["MANSFIELD","OH","E-8","MANSFIELDOHE-8","MANSFIELDOHE-8",831]
["MANSFIELD","OH","E-9","MANSFIELDOHE-9","MANSFIELDOHE-9",882]
["MANSFIELD","OH","W-1","MANSFIELDOHW-1","MANSFIELDOHW-1",738]
["MANSFIELD","OH","W-2","MANSFIELDOHW-2","MANSFIELDOHW-2",831]
["MANSFIELD","OH","W-3","MANSFIELDOHW-3","MANSFIELDOHW-3",885]
["MANSFIELD","OH","W-4","MANSFIELDOHW-4","MANSFIELDOHW-4",969]
["MANSFIELD","OH","W-5","MANSFIELDOHW-5","MANSFIELDOHW-5",1011]
["MANSFIELD","OH","O-1E","MANSFIELDOHO-1E","MANSFIELDOHO-1E",801]
["MANSFIELD","OH","O-2E","MANSFIELDOHO-2E","MANSFIELDOHO-2E",870]
["MANSFIELD","OH","O-3E","MANSFIELDOHO-3E","MANSFIELDOHO-3E",960]
["MANSFIELD","OH","O-1","MANSFIELDOHO-1","MANSFIELDOHO-1",708]
["MANSFIELD","OH","O-2","MANSFIELDOHO-2","MANSFIELDOHO-2",786]
["MANSFIELD","OH","O-3","MANSFIELDOHO-3","MANSFIELDOHO-3",903]
["MANSFIELD","OH","O-4","MANSFIELDOHO-4","MANSFIELDOHO-4",1005]
["MANSFIELD","OH","O-5","MANSFIELDOHO-5","MANSFIELDOHO-5",1029]
["MANSFIELD","OH","O-6","MANSFIELDOHO-6","MANSFIELDOHO-6",1071]
["MANSFIELD","OH","O-7","MANSFIELDOHO-7","MANSFIELDOHO-7",1092]
["LIMA","OH","E-1","LIMAOHE-1","LIMAOHE-1",633,633,633,633,633,726,783,843,927,963,813,927,966,1017,1026,906,954,1017,774,882,975,1026,1029,1038,1059]
["LIMA","OH","E-2","LIMAOHE-2","LIMAOHE-2",633]
["LIMA","OH","E-3","LIMAOHE-3","LIMAOHE-3",633]
["LIMA","OH","E-4","LIMAOHE-4","LIMAOHE-4",633]
["LIMA","OH","E-5","LIMAOHE-5","LIMAOHE-5",726]
["LIMA","OH","E-6","LIMAOHE-6","LIMAOHE-6",783]
["LIMA","OH","E-7","LIMAOHE-7","LIMAOHE-7",843]
["LIMA","OH","E-8","LIMAOHE-8","LIMAOHE-8",927]
["LIMA","OH","E-9","LIMAOHE-9","LIMAOHE-9",963]
["LIMA","OH","W-1","LIMAOHW-1","LIMAOHW-1",813]
["LIMA","OH","W-2","LIMAOHW-2","LIMAOHW-2",927]
["LIMA","OH","W-3","LIMAOHW-3","LIMAOHW-3",966]
["LIMA","OH","W-4","LIMAOHW-4","LIMAOHW-4",1017]
["LIMA","OH","W-5","LIMAOHW-5","LIMAOHW-5",1026]
["LIMA","OH","O-1E","LIMAOHO-1E","LIMAOHO-1E",906]
["LIMA","OH","O-2E","LIMAOHO-2E","LIMAOHO-2E",954]
["LIMA","OH","O-3E",{"$f":"A6402&B6402&C6402","v":"LIMAOHO-3E"},"LIMAOHO-3E",1017]
["LIMA","OH","O-1","LIMAOHO-1","LIMAOHO-1",774]
["LIMA","OH","O-2","LIMAOHO-2","LIMAOHO-2",882]
["LIMA","OH","O-3","LIMAOHO-3","LIMAOHO-3",975]
["LIMA","OH","O-4","LIMAOHO-4","LIMAOHO-4",1026]
["LIMA","OH","O-5","LIMAOHO-5","LIMAOHO-5",1029]
["LIMA","OH","O-6","LIMAOHO-6","LIMAOHO-6",1038]
["LIMA","OH","O-7","LIMAOHO-7","LIMAOHO-7",1059]
["ALTUS AFB","OK","E-1","ALTUS AFBOKE-1","ALTUS AFBOKE-1",600,600,600,600,600,687,852,864,957,1026,852,957,1032,1140,1158,915,1011,1134,705,876,1056,1155,1167,1185,1209]
["ALTUS AFB","OK","E-2","ALTUS AFBOKE-2","ALTUS AFBOKE-2",600]
["ALTUS AFB","OK","E-3","ALTUS AFBOKE-3","ALTUS AFBOKE-3",600]
["ALTUS AFB","OK","E-4","ALTUS AFBOKE-4","ALTUS AFBOKE-4",600]
["ALTUS AFB","OK","E-5","ALTUS AFBOKE-5","ALTUS AFBOKE-5",687]
["ALTUS AFB","OK","E-6","ALTUS AFBOKE-6","ALTUS AFBOKE-6",852]
["ALTUS AFB","OK","E-7","ALTUS AFBOKE-7","ALTUS AFBOKE-7",864]
["ALTUS AFB","OK","E-8","ALTUS AFBOKE-8","ALTUS AFBOKE-8",957]
["ALTUS AFB","OK","E-9","ALTUS AFBOKE-9","ALTUS AFBOKE-9",1026]
["ALTUS AFB","OK","W-1","ALTUS AFBOKW-1","ALTUS AFBOKW-1",852]
["ALTUS AFB","OK","W-2","ALTUS AFBOKW-2","ALTUS AFBOKW-2",957]
["ALTUS AFB","OK","W-3","ALTUS AFBOKW-3","ALTUS AFBOKW-3",1032]
["ALTUS AFB","OK","W-4","ALTUS AFBOKW-4","ALTUS AFBOKW-4",1140]
["ALTUS AFB","OK","W-5","ALTUS AFBOKW-5","ALTUS AFBOKW-5",1158]
["ALTUS AFB","OK","O-1E","ALTUS AFBOKO-1E","ALTUS AFBOKO-1E",915]
["ALTUS AFB","OK","O-2E","ALTUS AFBOKO-2E","ALTUS AFBOKO-2E",1011]
["ALTUS AFB","OK","O-3E","ALTUS AFBOKO-3E","ALTUS AFBOKO-3E",1134]
["ALTUS AFB","OK","O-1","ALTUS AFBOKO-1","ALTUS AFBOKO-1",705]
["ALTUS AFB","OK","O-2","ALTUS AFBOKO-2","ALTUS AFBOKO-2",876]
["ALTUS AFB","OK","O-3","ALTUS AFBOKO-3","ALTUS AFBOKO-3",1056]
["ALTUS AFB","OK","O-4","ALTUS AFBOKO-4","ALTUS AFBOKO-4",1155]
["ALTUS AFB","OK","O-5","ALTUS AFBOKO-5","ALTUS AFBOKO-5",1167]
["ALTUS AFB","OK","O-6","ALTUS AFBOKO-6","ALTUS AFBOKO-6",1185]
["ALTUS AFB","OK","O-7","ALTUS AFBOKO-7","ALTUS AFBOKO-7",1209]
["VANCE AFB/ENID","OK","E-1","VANCE AFB/ENIDOKE-1","VANCE AFB/ENIDOKE-1",654,654,654,654,654,747,801,858,939,975,831,936,978,1047,1107,915,966,1032,792,894,990,1098,1209,1221,1233]
["VANCE AFB/ENID","OK","E-2","VANCE AFB/ENIDOKE-2","VANCE AFB/ENIDOKE-2",654]
["VANCE AFB/ENID","OK","E-3","VANCE AFB/ENIDOKE-3","VANCE AFB/ENIDOKE-3",654]
["VANCE AFB/ENID","OK","E-4","VANCE AFB/ENIDOKE-4","VANCE AFB/ENIDOKE-4",654]
["VANCE AFB/ENID","OK","E-5","VANCE AFB/ENIDOKE-5","VANCE AFB/ENIDOKE-5",747]
["VANCE AFB/ENID","OK","E-6","VANCE AFB/ENIDOKE-6","VANCE AFB/ENIDOKE-6",801]
["VANCE AFB/ENID","OK","E-7","VANCE AFB/ENIDOKE-7","VANCE AFB/ENIDOKE-7",858]
["VANCE AFB/ENID","OK","E-8","VANCE AFB/ENIDOKE-8","VANCE AFB/ENIDOKE-8",939]
["VANCE AFB/ENID","OK","E-9","VANCE AFB/ENIDOKE-9","VANCE AFB/ENIDOKE-9",975]
["VANCE AFB/ENID","OK","W-1","VANCE AFB/ENIDOKW-1","VANCE AFB/ENIDOKW-1",831]
["VANCE AFB/ENID","OK","W-2","VANCE AFB/ENIDOKW-2","VANCE AFB/ENIDOKW-2",936]
["VANCE AFB/ENID","OK","W-3","VANCE AFB/ENIDOKW-3","VANCE AFB/ENIDOKW-3",978]
["VANCE AFB/ENID","OK","W-4","VANCE AFB/ENIDOKW-4","VANCE AFB/ENIDOKW-4",1047]
["VANCE AFB/ENID","OK","W-5","VANCE AFB/ENIDOKW-5","VANCE AFB/ENIDOKW-5",1107]
["VANCE AFB/ENID","OK","O-1E","VANCE AFB/ENIDOKO-1E","VANCE AFB/ENIDOKO-1E",915]
["VANCE AFB/ENID","OK","O-2E","VANCE AFB/ENIDOKO-2E","VANCE AFB/ENIDOKO-2E",966]
["VANCE AFB/ENID","OK","O-3E","VANCE AFB/ENIDOKO-3E","VANCE AFB/ENIDOKO-3E",1032]
["VANCE AFB/ENID","OK","O-1","VANCE AFB/ENIDOKO-1","VANCE AFB/ENIDOKO-1",792]
["VANCE AFB/ENID","OK","O-2","VANCE AFB/ENIDOKO-2","VANCE AFB/ENIDOKO-2",894]
["VANCE AFB/ENID","OK","O-3","VANCE AFB/ENIDOKO-3","VANCE AFB/ENIDOKO-3",990]
["VANCE AFB/ENID","OK","O-4","VANCE AFB/ENIDOKO-4","VANCE AFB/ENIDOKO-4",1098]
["VANCE AFB/ENID","OK","O-5","VANCE AFB/ENIDOKO-5","VANCE AFB/ENIDOKO-5",1209]
["VANCE AFB/ENID","OK","O-6","VANCE AFB/ENIDOKO-6","VANCE AFB/ENIDOKO-6",1221]
["VANCE AFB/ENID","OK","O-7","VANCE AFB/ENIDOKO-7","VANCE AFB/ENIDOKO-7",1233]
["FORT SILL/LAWTON","OK","E-1","FORT SILL/LAWTONOKE-1","FORT SILL/LAWTONOKE-1",645,645,645,645,645,726,834,885,996,1041,834,993,1044,1128,1200,966,1029,1110,756,930,1059,1188,1233,1305,1332]
["FORT SILL/LAWTON","OK","E-2","FORT SILL/LAWTONOKE-2","FORT SILL/LAWTONOKE-2",645]
["FORT SILL/LAWTON","OK","E-3","FORT SILL/LAWTONOKE-3","FORT SILL/LAWTONOKE-3",645]
["FORT SILL/LAWTON","OK","E-4","FORT SILL/LAWTONOKE-4","FORT SILL/LAWTONOKE-4",645]
["FORT SILL/LAWTON","OK","E-5","FORT SILL/LAWTONOKE-5","FORT SILL/LAWTONOKE-5",726]
["FORT SILL/LAWTON","OK","E-6","FORT SILL/LAWTONOKE-6","FORT SILL/LAWTONOKE-6",834]
["FORT SILL/LAWTON","OK","E-7","FORT SILL/LAWTONOKE-7","FORT SILL/LAWTONOKE-7",885]
["FORT SILL/LAWTON","OK","E-8","FORT SILL/LAWTONOKE-8","FORT SILL/LAWTONOKE-8",996]
["FORT SILL/LAWTON","OK","E-9",{"$f":"A6466&B6466&C6466","v":"FORT SILL/LAWTONOKE-9"},"FORT SILL/LAWTONOKE-9",1041]
["FORT SILL/LAWTON","OK","W-1","FORT SILL/LAWTONOKW-1","FORT SILL/LAWTONOKW-1",834]
["FORT SILL/LAWTON","OK","W-2","FORT SILL/LAWTONOKW-2","FORT SILL/LAWTONOKW-2",993]
["FORT SILL/LAWTON","OK","W-3","FORT SILL/LAWTONOKW-3","FORT SILL/LAWTONOKW-3",1044]
["FORT SILL/LAWTON","OK","W-4","FORT SILL/LAWTONOKW-4","FORT SILL/LAWTONOKW-4",1128]
["FORT SILL/LAWTON","OK","W-5","FORT SILL/LAWTONOKW-5","FORT SILL/LAWTONOKW-5",1200]
["FORT SILL/LAWTON","OK","O-1E","FORT SILL/LAWTONOKO-1E","FORT SILL/LAWTONOKO-1E",966]
["FORT SILL/LAWTON","OK","O-2E","FORT SILL/LAWTONOKO-2E","FORT SILL/LAWTONOKO-2E",1029]
["FORT SILL/LAWTON","OK","O-3E","FORT SILL/LAWTONOKO-3E","FORT SILL/LAWTONOKO-3E",1110]
["FORT SILL/LAWTON","OK","O-1","FORT SILL/LAWTONOKO-1","FORT SILL/LAWTONOKO-1",756]
["FORT SILL/LAWTON","OK","O-2","FORT SILL/LAWTONOKO-2","FORT SILL/LAWTONOKO-2",930]
["FORT SILL/LAWTON","OK","O-3","FORT SILL/LAWTONOKO-3","FORT SILL/LAWTONOKO-3",1059]
["FORT SILL/LAWTON","OK","O-4","FORT SILL/LAWTONOKO-4","FORT SILL/LAWTONOKO-4",1188]
["FORT SILL/LAWTON","OK","O-5","FORT SILL/LAWTONOKO-5","FORT SILL/LAWTONOKO-5",1233]
["FORT SILL/LAWTON","OK","O-6","FORT SILL/LAWTONOKO-6","FORT SILL/LAWTONOKO-6",1305]
["FORT SILL/LAWTON","OK","O-7","FORT SILL/LAWTONOKO-7","FORT SILL/LAWTONOKO-7",1332]
["OKLAHOMA CITY","OK","E-1","OKLAHOMA CITYOKE-1","OKLAHOMA CITYOKE-1",657,657,657,657,657,753,879,903,969,1047,879,966,1056,1179,1212,918,1029,1173,801,900,1080,1206,1227,1257,1284]
["OKLAHOMA CITY","OK","E-2","OKLAHOMA CITYOKE-2","OKLAHOMA CITYOKE-2",657]
["OKLAHOMA CITY","OK","E-3","OKLAHOMA CITYOKE-3","OKLAHOMA CITYOKE-3",657]
["OKLAHOMA CITY","OK","E-4","OKLAHOMA CITYOKE-4","OKLAHOMA CITYOKE-4",657]
["OKLAHOMA CITY","OK","E-5","OKLAHOMA CITYOKE-5","OKLAHOMA CITYOKE-5",753]
["OKLAHOMA CITY","OK","E-6","OKLAHOMA CITYOKE-6","OKLAHOMA CITYOKE-6",879]
["OKLAHOMA CITY","OK","E-7","OKLAHOMA CITYOKE-7","OKLAHOMA CITYOKE-7",903]
["OKLAHOMA CITY","OK","E-8","OKLAHOMA CITYOKE-8","OKLAHOMA CITYOKE-8",969]
["OKLAHOMA CITY","OK","E-9","OKLAHOMA CITYOKE-9","OKLAHOMA CITYOKE-9",1047]
["OKLAHOMA CITY","OK","W-1","OKLAHOMA CITYOKW-1","OKLAHOMA CITYOKW-1",879]
["OKLAHOMA CITY","OK","W-2","OKLAHOMA CITYOKW-2","OKLAHOMA CITYOKW-2",966]
["OKLAHOMA CITY","OK","W-3","OKLAHOMA CITYOKW-3","OKLAHOMA CITYOKW-3",1056]
["OKLAHOMA CITY","OK","W-4","OKLAHOMA CITYOKW-4","OKLAHOMA CITYOKW-4",1179]
["OKLAHOMA CITY","OK","W-5","OKLAHOMA CITYOKW-5","OKLAHOMA CITYOKW-5",1212]
["OKLAHOMA CITY","OK","O-1E","OKLAHOMA CITYOKO-1E","OKLAHOMA CITYOKO-1E",918]
["OKLAHOMA CITY","OK","O-2E","OKLAHOMA CITYOKO-2E","OKLAHOMA CITYOKO-2E",1029]
["OKLAHOMA CITY","OK","O-3E","OKLAHOMA CITYOKO-3E","OKLAHOMA CITYOKO-3E",1173]
["OKLAHOMA CITY","OK","O-1","OKLAHOMA CITYOKO-1","OKLAHOMA CITYOKO-1",801]
["OKLAHOMA CITY","OK","O-2","OKLAHOMA CITYOKO-2","OKLAHOMA CITYOKO-2",900]
["OKLAHOMA CITY","OK","O-3","OKLAHOMA CITYOKO-3","OKLAHOMA CITYOKO-3",1080]
["OKLAHOMA CITY","OK","O-4","OKLAHOMA CITYOKO-4","OKLAHOMA CITYOKO-4",1206]
["OKLAHOMA CITY","OK","O-5","OKLAHOMA CITYOKO-5","OKLAHOMA CITYOKO-5",1227]
["OKLAHOMA CITY","OK","O-6","OKLAHOMA CITYOKO-6","OKLAHOMA CITYOKO-6",1257]
["OKLAHOMA CITY","OK","O-7","OKLAHOMA CITYOKO-7","OKLAHOMA CITYOKO-7",1284]
["TULSA","OK","E-1","TULSAOKE-1","TULSAOKE-1",645,645,645,645,645,744,840,924,1011,1113,843,960,1071,1149,1257,942,1053,1143,804,894,1065,1242,1347,1425,1455]
["TULSA","OK","E-2","TULSAOKE-2","TULSAOKE-2",645]
["TULSA","OK","E-3","TULSAOKE-3","TULSAOKE-3",645]
["TULSA","OK","E-4","TULSAOKE-4","TULSAOKE-4",645]
["TULSA","OK","E-5","TULSAOKE-5","TULSAOKE-5",744]
["TULSA","OK","E-6","TULSAOKE-6","TULSAOKE-6",840]
["TULSA","OK","E-7","TULSAOKE-7","TULSAOKE-7",924]
["TULSA","OK","E-8","TULSAOKE-8","TULSAOKE-8",1011]
["TULSA","OK","E-9","TULSAOKE-9","TULSAOKE-9",1113]
["TULSA","OK","W-1","TULSAOKW-1","TULSAOKW-1",843]
["TULSA","OK","W-2","TULSAOKW-2","TULSAOKW-2",960]
["TULSA","OK","W-3","TULSAOKW-3","TULSAOKW-3",1071]
["TULSA","OK","W-4","TULSAOKW-4","TULSAOKW-4",1149]
["TULSA","OK","W-5","TULSAOKW-5","TULSAOKW-5",1257]
["TULSA","OK","O-1E","TULSAOKO-1E","TULSAOKO-1E",942]
["TULSA","OK","O-2E","TULSAOKO-2E","TULSAOKO-2E",1053]
["TULSA","OK","O-3E","TULSAOKO-3E","TULSAOKO-3E",1143]
["TULSA","OK","O-1","TULSAOKO-1","TULSAOKO-1",804]
["TULSA","OK","O-2","TULSAOKO-2","TULSAOKO-2",894]
["TULSA","OK","O-3","TULSAOKO-3","TULSAOKO-3",1065]
["TULSA","OK","O-4","TULSAOKO-4","TULSAOKO-4",1242]
["TULSA","OK","O-5","TULSAOKO-5","TULSAOKO-5",1347]
["TULSA","OK","O-6","TULSAOKO-6","TULSAOKO-6",1425]
["TULSA","OK","O-7","TULSAOKO-7","TULSAOKO-7",1455]
["ASTORIA","OR","E-1",{"$f":"A6530&B6530&C6530","v":"ASTORIAORE-1"},"ASTORIAORE-1",744,744,744,744,744,858,972,1050,1131,1206,975,1083,1185,1323,1425,1065,1170,1296,915,1008,1200,1410,1476,1581,1611]
["ASTORIA","OR","E-2","ASTORIAORE-2","ASTORIAORE-2",744]
["ASTORIA","OR","E-3","ASTORIAORE-3","ASTORIAORE-3",744]
["ASTORIA","OR","E-4","ASTORIAORE-4","ASTORIAORE-4",744]
["ASTORIA","OR","E-5","ASTORIAORE-5","ASTORIAORE-5",858]
["ASTORIA","OR","E-6","ASTORIAORE-6","ASTORIAORE-6",972]
["ASTORIA","OR","E-7","ASTORIAORE-7","ASTORIAORE-7",1050]
["ASTORIA","OR","E-8","ASTORIAORE-8","ASTORIAORE-8",1131]
["ASTORIA","OR","E-9","ASTORIAORE-9","ASTORIAORE-9",1206]
["ASTORIA","OR","W-1","ASTORIAORW-1","ASTORIAORW-1",975]
["ASTORIA","OR","W-2","ASTORIAORW-2","ASTORIAORW-2",1083]
["ASTORIA","OR","W-3","ASTORIAORW-3","ASTORIAORW-3",1185]
["ASTORIA","OR","W-4","ASTORIAORW-4","ASTORIAORW-4",1323]
["ASTORIA","OR","W-5","ASTORIAORW-5","ASTORIAORW-5",1425]
["ASTORIA","OR","O-1E","ASTORIAORO-1E","ASTORIAORO-1E",1065]
["ASTORIA","OR","O-2E","ASTORIAORO-2E","ASTORIAORO-2E",1170]
["ASTORIA","OR","O-3E","ASTORIAORO-3E","ASTORIAORO-3E",1296]
["ASTORIA","OR","O-1","ASTORIAORO-1","ASTORIAORO-1",915]
["ASTORIA","OR","O-2","ASTORIAORO-2","ASTORIAORO-2",1008]
["ASTORIA","OR","O-3","ASTORIAORO-3","ASTORIAORO-3",1200]
["ASTORIA","OR","O-4","ASTORIAORO-4","ASTORIAORO-4",1410]
["ASTORIA","OR","O-5","ASTORIAORO-5","ASTORIAORO-5",1476]
["ASTORIA","OR","O-6","ASTORIAORO-6","ASTORIAORO-6",1581]
["ASTORIA","OR","O-7","ASTORIAORO-7","ASTORIAORO-7",1611]
["COOS BAY","OR","E-1","COOS BAYORE-1","COOS BAYORE-1",633,633,633,633,633,699,864,924,990,1071,867,969,1047,1173,1254,939,1026,1152,765,897,1071,1242,1293,1374,1404]
["COOS BAY","OR","E-2","COOS BAYORE-2","COOS BAYORE-2",633]
["COOS BAY","OR","E-3","COOS BAYORE-3","COOS BAYORE-3",633]
["COOS BAY","OR","E-4","COOS BAYORE-4","COOS BAYORE-4",633]
["COOS BAY","OR","E-5","COOS BAYORE-5","COOS BAYORE-5",699]
["COOS BAY","OR","E-6","COOS BAYORE-6","COOS BAYORE-6",864]
["COOS BAY","OR","E-7","COOS BAYORE-7","COOS BAYORE-7",924]
["COOS BAY","OR","E-8","COOS BAYORE-8","COOS BAYORE-8",990]
["COOS BAY","OR","E-9","COOS BAYORE-9","COOS BAYORE-9",1071]
["COOS BAY","OR","W-1","COOS BAYORW-1","COOS BAYORW-1",867]
["COOS BAY","OR","W-2","COOS BAYORW-2","COOS BAYORW-2",969]
["COOS BAY","OR","W-3","COOS BAYORW-3","COOS BAYORW-3",1047]
["COOS BAY","OR","W-4","COOS BAYORW-4","COOS BAYORW-4",1173]
["COOS BAY","OR","W-5","COOS BAYORW-5","COOS BAYORW-5",1254]
["COOS BAY","OR","O-1E","COOS BAYORO-1E","COOS BAYORO-1E",939]
["COOS BAY","OR","O-2E","COOS BAYORO-2E","COOS BAYORO-2E",1026]
["COOS BAY","OR","O-3E","COOS BAYORO-3E","COOS BAYORO-3E",1152]
["COOS BAY","OR","O-1","COOS BAYORO-1","COOS BAYORO-1",765]
["COOS BAY","OR","O-2","COOS BAYORO-2","COOS BAYORO-2",897]
["COOS BAY","OR","O-3","COOS BAYORO-3","COOS BAYORO-3",1071]
["COOS BAY","OR","O-4","COOS BAYORO-4","COOS BAYORO-4",1242]
["COOS BAY","OR","O-5","COOS BAYORO-5","COOS BAYORO-5",1293]
["COOS BAY","OR","O-6","COOS BAYORO-6","COOS BAYORO-6",1374]
["COOS BAY","OR","O-7","COOS BAYORO-7","COOS BAYORO-7",1404]
["PORTLAND","OR","E-1","PORTLANDORE-1","PORTLANDORE-1",897,897,897,897,897,996,1149,1194,1344,1419,1152,1344,1425,1548,1608,1299,1401,1533,1047,1254,1449,1599,1638,1698,1731]
["PORTLAND","OR","E-2","PORTLANDORE-2","PORTLANDORE-2",897]
["PORTLAND","OR","E-3","PORTLANDORE-3","PORTLANDORE-3",897]
["PORTLAND","OR","E-4","PORTLANDORE-4","PORTLANDORE-4",897]
["PORTLAND","OR","E-5","PORTLANDORE-5","PORTLANDORE-5",996]
["PORTLAND","OR","E-6","PORTLANDORE-6","PORTLANDORE-6",1149]
["PORTLAND","OR","E-7","PORTLANDORE-7","PORTLANDORE-7",1194]
["PORTLAND","OR","E-8","PORTLANDORE-8","PORTLANDORE-8",1344]
["PORTLAND","OR","E-9","PORTLANDORE-9","PORTLANDORE-9",1419]
["PORTLAND","OR","W-1","PORTLANDORW-1","PORTLANDORW-1",1152]
["PORTLAND","OR","W-2","PORTLANDORW-2","PORTLANDORW-2",1344]
["PORTLAND","OR","W-3","PORTLANDORW-3","PORTLANDORW-3",1425]
["PORTLAND","OR","W-4","PORTLANDORW-4","PORTLANDORW-4",1548]
["PORTLAND","OR","W-5","PORTLANDORW-5","PORTLANDORW-5",1608]
["PORTLAND","OR","O-1E","PORTLANDORO-1E","PORTLANDORO-1E",1299]
["PORTLAND","OR","O-2E","PORTLANDORO-2E","PORTLANDORO-2E",1401]
["PORTLAND","OR","O-3E",{"$f":"A6594&B6594&C6594","v":"PORTLANDORO-3E"},"PORTLANDORO-3E",1533]
["PORTLAND","OR","O-1","PORTLANDORO-1","PORTLANDORO-1",1047]
["PORTLAND","OR","O-2","PORTLANDORO-2","PORTLANDORO-2",1254]
["PORTLAND","OR","O-3","PORTLANDORO-3","PORTLANDORO-3",1449]
["PORTLAND","OR","O-4","PORTLANDORO-4","PORTLANDORO-4",1599]
["PORTLAND","OR","O-5","PORTLANDORO-5","PORTLANDORO-5",1638]
["PORTLAND","OR","O-6","PORTLANDORO-6","PORTLANDORO-6",1698]
["PORTLAND","OR","O-7","PORTLANDORO-7","PORTLANDORO-7",1731]
["SALEM","OR","E-1","SALEMORE-1","SALEMORE-1",696,696,696,696,696,792,879,951,1029,1116,882,1008,1080,1197,1290,969,1062,1173,840,948,1098,1278,1338,1437,1464]
["SALEM","OR","E-2","SALEMORE-2","SALEMORE-2",696]
["SALEM","OR","E-3","SALEMORE-3","SALEMORE-3",696]
["SALEM","OR","E-4","SALEMORE-4","SALEMORE-4",696]
["SALEM","OR","E-5","SALEMORE-5","SALEMORE-5",792]
["SALEM","OR","E-6","SALEMORE-6","SALEMORE-6",879]
["SALEM","OR","E-7","SALEMORE-7","SALEMORE-7",951]
["SALEM","OR","E-8","SALEMORE-8","SALEMORE-8",1029]
["SALEM","OR","E-9","SALEMORE-9","SALEMORE-9",1116]
["SALEM","OR","W-1","SALEMORW-1","SALEMORW-1",882]
["SALEM","OR","W-2","SALEMORW-2","SALEMORW-2",1008]
["SALEM","OR","W-3","SALEMORW-3","SALEMORW-3",1080]
["SALEM","OR","W-4","SALEMORW-4","SALEMORW-4",1197]
["SALEM","OR","W-5","SALEMORW-5","SALEMORW-5",1290]
["SALEM","OR","O-1E","SALEMORO-1E","SALEMORO-1E",969]
["SALEM","OR","O-2E","SALEMORO-2E","SALEMORO-2E",1062]
["SALEM","OR","O-3E","SALEMORO-3E","SALEMORO-3E",1173]
["SALEM","OR","O-1","SALEMORO-1","SALEMORO-1",840]
["SALEM","OR","O-2","SALEMORO-2","SALEMORO-2",948]
["SALEM","OR","O-3","SALEMORO-3","SALEMORO-3",1098]
["SALEM","OR","O-4","SALEMORO-4","SALEMORO-4",1278]
["SALEM","OR","O-5","SALEMORO-5","SALEMORO-5",1338]
["SALEM","OR","O-6","SALEMORO-6","SALEMORO-6",1437]
["SALEM","OR","O-7","SALEMORO-7","SALEMORO-7",1464]
["CORVALLIS","OR","E-1","CORVALLISORE-1","CORVALLISORE-1",735,735,735,735,735,855,1005,1047,1098,1191,1005,1095,1200,1353,1407,1056,1170,1338,918,1017,1230,1401,1437,1494,1524]
["CORVALLIS","OR","E-2","CORVALLISORE-2","CORVALLISORE-2",735]
["CORVALLIS","OR","E-3","CORVALLISORE-3","CORVALLISORE-3",735]
["CORVALLIS","OR","E-4","CORVALLISORE-4","CORVALLISORE-4",735]
["CORVALLIS","OR","E-5","CORVALLISORE-5","CORVALLISORE-5",855]
["CORVALLIS","OR","E-6","CORVALLISORE-6","CORVALLISORE-6",1005]
["CORVALLIS","OR","E-7","CORVALLISORE-7","CORVALLISORE-7",1047]
["CORVALLIS","OR","E-8","CORVALLISORE-8","CORVALLISORE-8",1098]
["CORVALLIS","OR","E-9","CORVALLISORE-9","CORVALLISORE-9",1191]
["CORVALLIS","OR","W-1","CORVALLISORW-1","CORVALLISORW-1",1005]
["CORVALLIS","OR","W-2","CORVALLISORW-2","CORVALLISORW-2",1095]
["CORVALLIS","OR","W-3","CORVALLISORW-3","CORVALLISORW-3",1200]
["CORVALLIS","OR","W-4","CORVALLISORW-4","CORVALLISORW-4",1353]
["CORVALLIS","OR","W-5","CORVALLISORW-5","CORVALLISORW-5",1407]
["CORVALLIS","OR","O-1E","CORVALLISORO-1E","CORVALLISORO-1E",1056]
["CORVALLIS","OR","O-2E","CORVALLISORO-2E","CORVALLISORO-2E",1170]
["CORVALLIS","OR","O-3E","CORVALLISORO-3E","CORVALLISORO-3E",1338]
["CORVALLIS","OR","O-1","CORVALLISORO-1","CORVALLISORO-1",918]
["CORVALLIS","OR","O-2","CORVALLISORO-2","CORVALLISORO-2",1017]
["CORVALLIS","OR","O-3","CORVALLISORO-3","CORVALLISORO-3",1230]
["CORVALLIS","OR","O-4","CORVALLISORO-4","CORVALLISORO-4",1401]
["CORVALLIS","OR","O-5","CORVALLISORO-5","CORVALLISORO-5",1437]
["CORVALLIS","OR","O-6","CORVALLISORO-6","CORVALLISORO-6",1494]
["CORVALLIS","OR","O-7","CORVALLISORO-7","CORVALLISORO-7",1524]
["EUGENE","OR","E-1","EUGENEORE-1","EUGENEORE-1",741,741,741,741,741,828,918,993,1113,1155,948,1110,1158,1242,1317,1086,1146,1221,888,1053,1173,1305,1461,1476,1491]
["EUGENE","OR","E-2","EUGENEORE-2","EUGENEORE-2",741]
["EUGENE","OR","E-3","EUGENEORE-3","EUGENEORE-3",741]
["EUGENE","OR","E-4","EUGENEORE-4","EUGENEORE-4",741]
["EUGENE","OR","E-5","EUGENEORE-5","EUGENEORE-5",828]
["EUGENE","OR","E-6","EUGENEORE-6","EUGENEORE-6",918]
["EUGENE","OR","E-7","EUGENEORE-7","EUGENEORE-7",993]
["EUGENE","OR","E-8","EUGENEORE-8","EUGENEORE-8",1113]
["EUGENE","OR","E-9",{"$f":"A6658&B6658&C6658","v":"EUGENEORE-9"},"EUGENEORE-9",1155]
["EUGENE","OR","W-1","EUGENEORW-1","EUGENEORW-1",948]
["EUGENE","OR","W-2","EUGENEORW-2","EUGENEORW-2",1110]
["EUGENE","OR","W-3","EUGENEORW-3","EUGENEORW-3",1158]
["EUGENE","OR","W-4","EUGENEORW-4","EUGENEORW-4",1242]
["EUGENE","OR","W-5","EUGENEORW-5","EUGENEORW-5",1317]
["EUGENE","OR","O-1E","EUGENEORO-1E","EUGENEORO-1E",1086]
["EUGENE","OR","O-2E","EUGENEORO-2E","EUGENEORO-2E",1146]
["EUGENE","OR","O-3E","EUGENEORO-3E","EUGENEORO-3E",1221]
["EUGENE","OR","O-1","EUGENEORO-1","EUGENEORO-1",888]
["EUGENE","OR","O-2","EUGENEORO-2","EUGENEORO-2",1053]
["EUGENE","OR","O-3","EUGENEORO-3","EUGENEORO-3",1173]
["EUGENE","OR","O-4","EUGENEORO-4","EUGENEORO-4",1305]
["EUGENE","OR","O-5","EUGENEORO-5","EUGENEORO-5",1461]
["EUGENE","OR","O-6","EUGENEORO-6","EUGENEORO-6",1476]
["EUGENE","OR","O-7","EUGENEORO-7","EUGENEORO-7",1491]
["KLAMATH FALLS","OR","E-1","KLAMATH FALLSORE-1","KLAMATH FALLSORE-1",627,627,627,627,627,711,831,876,942,1008,834,942,1014,1122,1182,900,993,1110,771,879,1035,1173,1209,1269,1293]
["KLAMATH FALLS","OR","E-2","KLAMATH FALLSORE-2","KLAMATH FALLSORE-2",627]
["KLAMATH FALLS","OR","E-3","KLAMATH FALLSORE-3","KLAMATH FALLSORE-3",627]
["KLAMATH FALLS","OR","E-4","KLAMATH FALLSORE-4","KLAMATH FALLSORE-4",627]
["KLAMATH FALLS","OR","E-5","KLAMATH FALLSORE-5","KLAMATH FALLSORE-5",711]
["KLAMATH FALLS","OR","E-6","KLAMATH FALLSORE-6","KLAMATH FALLSORE-6",831]
["KLAMATH FALLS","OR","E-7","KLAMATH FALLSORE-7","KLAMATH FALLSORE-7",876]
["KLAMATH FALLS","OR","E-8","KLAMATH FALLSORE-8","KLAMATH FALLSORE-8",942]
["KLAMATH FALLS","OR","E-9","KLAMATH FALLSORE-9","KLAMATH FALLSORE-9",1008]
["KLAMATH FALLS","OR","W-1","KLAMATH FALLSORW-1","KLAMATH FALLSORW-1",834]
["KLAMATH FALLS","OR","W-2","KLAMATH FALLSORW-2","KLAMATH FALLSORW-2",942]
["KLAMATH FALLS","OR","W-3","KLAMATH FALLSORW-3","KLAMATH FALLSORW-3",1014]
["KLAMATH FALLS","OR","W-4","KLAMATH FALLSORW-4","KLAMATH FALLSORW-4",1122]
["KLAMATH FALLS","OR","W-5","KLAMATH FALLSORW-5","KLAMATH FALLSORW-5",1182]
["KLAMATH FALLS","OR","O-1E","KLAMATH FALLSORO-1E","KLAMATH FALLSORO-1E",900]
["KLAMATH FALLS","OR","O-2E","KLAMATH FALLSORO-2E","KLAMATH FALLSORO-2E",993]
["KLAMATH FALLS","OR","O-3E","KLAMATH FALLSORO-3E","KLAMATH FALLSORO-3E",1110]
["KLAMATH FALLS","OR","O-1","KLAMATH FALLSORO-1","KLAMATH FALLSORO-1",771]
["KLAMATH FALLS","OR","O-2","KLAMATH FALLSORO-2","KLAMATH FALLSORO-2",879]
["KLAMATH FALLS","OR","O-3","KLAMATH FALLSORO-3","KLAMATH FALLSORO-3",1035]
["KLAMATH FALLS","OR","O-4","KLAMATH FALLSORO-4","KLAMATH FALLSORO-4",1173]
["KLAMATH FALLS","OR","O-5","KLAMATH FALLSORO-5","KLAMATH FALLSORO-5",1209]
["KLAMATH FALLS","OR","O-6","KLAMATH FALLSORO-6","KLAMATH FALLSORO-6",1269]
["KLAMATH FALLS","OR","O-7","KLAMATH FALLSORO-7","KLAMATH FALLSORO-7",1293]
["CARLISLE BARRACKS","PA","E-1","CARLISLE BARRACKSPAE-1","CARLISLE BARRACKSPAE-1",897,897,897,897,897,1029,1104,1167,1263,1311,1137,1263,1314,1398,1443,1233,1299,1386,1095,1209,1329,1437,1488,1518,1548]
["CARLISLE BARRACKS","PA","E-2","CARLISLE BARRACKSPAE-2","CARLISLE BARRACKSPAE-2",897]
["CARLISLE BARRACKS","PA","E-3","CARLISLE BARRACKSPAE-3","CARLISLE BARRACKSPAE-3",897]
["CARLISLE BARRACKS","PA","E-4","CARLISLE BARRACKSPAE-4","CARLISLE BARRACKSPAE-4",897]
["CARLISLE BARRACKS","PA","E-5","CARLISLE BARRACKSPAE-5","CARLISLE BARRACKSPAE-5",1029]
["CARLISLE BARRACKS","PA","E-6","CARLISLE BARRACKSPAE-6","CARLISLE BARRACKSPAE-6",1104]
["CARLISLE BARRACKS","PA","E-7","CARLISLE BARRACKSPAE-7","CARLISLE BARRACKSPAE-7",1167]
["CARLISLE BARRACKS","PA","E-8","CARLISLE BARRACKSPAE-8","CARLISLE BARRACKSPAE-8",1263]
["CARLISLE BARRACKS","PA","E-9","CARLISLE BARRACKSPAE-9","CARLISLE BARRACKSPAE-9",1311]
["CARLISLE BARRACKS","PA","W-1","CARLISLE BARRACKSPAW-1","CARLISLE BARRACKSPAW-1",1137]
["CARLISLE BARRACKS","PA","W-2","CARLISLE BARRACKSPAW-2","CARLISLE BARRACKSPAW-2",1263]
["CARLISLE BARRACKS","PA","W-3","CARLISLE BARRACKSPAW-3","CARLISLE BARRACKSPAW-3",1314]
["CARLISLE BARRACKS","PA","W-4","CARLISLE BARRACKSPAW-4","CARLISLE BARRACKSPAW-4",1398]
["CARLISLE BARRACKS","PA","W-5","CARLISLE BARRACKSPAW-5","CARLISLE BARRACKSPAW-5",1443]
["CARLISLE BARRACKS","PA","O-1E","CARLISLE BARRACKSPAO-1E","CARLISLE BARRACKSPAO-1E",1233]
["CARLISLE BARRACKS","PA","O-2E","CARLISLE BARRACKSPAO-2E","CARLISLE BARRACKSPAO-2E",1299]
["CARLISLE BARRACKS","PA","O-3E","CARLISLE BARRACKSPAO-3E","CARLISLE BARRACKSPAO-3E",1386]
["CARLISLE BARRACKS","PA","O-1","CARLISLE BARRACKSPAO-1","CARLISLE BARRACKSPAO-1",1095]
["CARLISLE BARRACKS","PA","O-2","CARLISLE BARRACKSPAO-2","CARLISLE BARRACKSPAO-2",1209]
["CARLISLE BARRACKS","PA","O-3","CARLISLE BARRACKSPAO-3","CARLISLE BARRACKSPAO-3",1329]
["CARLISLE BARRACKS","PA","O-4","CARLISLE BARRACKSPAO-4","CARLISLE BARRACKSPAO-4",1437]
["CARLISLE BARRACKS","PA","O-5","CARLISLE BARRACKSPAO-5","CARLISLE BARRACKSPAO-5",1488]
["CARLISLE BARRACKS","PA","O-6","CARLISLE BARRACKSPAO-6","CARLISLE BARRACKSPAO-6",1518]
["CARLISLE BARRACKS","PA","O-7","CARLISLE BARRACKSPAO-7","CARLISLE BARRACKSPAO-7",1548]
["PHILADELPHIA","PA","E-1",{"$f":"A6722&B6722&C6722","v":"PHILADELPHIAPAE-1"},"PHILADELPHIAPAE-1",1164,1164,1164,1164,1164,1308,1509,1578,1764,1860,1509,1761,1869,2034,2130,1701,1836,2010,1404,1650,1899,2115,2175,2274,2319]
["PHILADELPHIA","PA","E-2","PHILADELPHIAPAE-2","PHILADELPHIAPAE-2",1164]
["PHILADELPHIA","PA","E-3","PHILADELPHIAPAE-3","PHILADELPHIAPAE-3",1164]
["PHILADELPHIA","PA","E-4","PHILADELPHIAPAE-4","PHILADELPHIAPAE-4",1164]
["PHILADELPHIA","PA","E-5","PHILADELPHIAPAE-5","PHILADELPHIAPAE-5",1308]
["PHILADELPHIA","PA","E-6","PHILADELPHIAPAE-6","PHILADELPHIAPAE-6",1509]
["PHILADELPHIA","PA","E-7","PHILADELPHIAPAE-7","PHILADELPHIAPAE-7",1578]
["PHILADELPHIA","PA","E-8","PHILADELPHIAPAE-8","PHILADELPHIAPAE-8",1764]
["PHILADELPHIA","PA","E-9","PHILADELPHIAPAE-9","PHILADELPHIAPAE-9",1860]
["PHILADELPHIA","PA","W-1","PHILADELPHIAPAW-1","PHILADELPHIAPAW-1",1509]
["PHILADELPHIA","PA","W-2","PHILADELPHIAPAW-2","PHILADELPHIAPAW-2",1761]
["PHILADELPHIA","PA","W-3","PHILADELPHIAPAW-3","PHILADELPHIAPAW-3",1869]
["PHILADELPHIA","PA","W-4","PHILADELPHIAPAW-4","PHILADELPHIAPAW-4",2034]
["PHILADELPHIA","PA","W-5","PHILADELPHIAPAW-5","PHILADELPHIAPAW-5",2130]
["PHILADELPHIA","PA","O-1E","PHILADELPHIAPAO-1E","PHILADELPHIAPAO-1E",1701]
["PHILADELPHIA","PA","O-2E","PHILADELPHIAPAO-2E","PHILADELPHIAPAO-2E",1836]
["PHILADELPHIA","PA","O-3E","PHILADELPHIAPAO-3E","PHILADELPHIAPAO-3E",2010]
["PHILADELPHIA","PA","O-1","PHILADELPHIAPAO-1","PHILADELPHIAPAO-1",1404]
["PHILADELPHIA","PA","O-2","PHILADELPHIAPAO-2","PHILADELPHIAPAO-2",1650]
["PHILADELPHIA","PA","O-3","PHILADELPHIAPAO-3","PHILADELPHIAPAO-3",1899]
["PHILADELPHIA","PA","O-4","PHILADELPHIAPAO-4","PHILADELPHIAPAO-4",2115]
["PHILADELPHIA","PA","O-5","PHILADELPHIAPAO-5","PHILADELPHIAPAO-5",2175]
["PHILADELPHIA","PA","O-6","PHILADELPHIAPAO-6","PHILADELPHIAPAO-6",2274]
["PHILADELPHIA","PA","O-7","PHILADELPHIAPAO-7","PHILADELPHIAPAO-7",2319]
["NAS WILLOW GROVE","PA","E-1","NAS WILLOW GROVEPAE-1","NAS WILLOW GROVEPAE-1",1233,1233,1233,1233,1233,1413,1560,1641,1827,1926,1584,1824,1935,2085,2109,1764,1902,2079,1503,1719,1965,2106,2121,2148,2190]
["NAS WILLOW GROVE","PA","E-2","NAS WILLOW GROVEPAE-2","NAS WILLOW GROVEPAE-2",1233]
["NAS WILLOW GROVE","PA","E-3","NAS WILLOW GROVEPAE-3","NAS WILLOW GROVEPAE-3",1233]
["NAS WILLOW GROVE","PA","E-4","NAS WILLOW GROVEPAE-4","NAS WILLOW GROVEPAE-4",1233]
["NAS WILLOW GROVE","PA","E-5","NAS WILLOW GROVEPAE-5","NAS WILLOW GROVEPAE-5",1413]
["NAS WILLOW GROVE","PA","E-6","NAS WILLOW GROVEPAE-6","NAS WILLOW GROVEPAE-6",1560]
["NAS WILLOW GROVE","PA","E-7","NAS WILLOW GROVEPAE-7","NAS WILLOW GROVEPAE-7",1641]
["NAS WILLOW GROVE","PA","E-8","NAS WILLOW GROVEPAE-8","NAS WILLOW GROVEPAE-8",1827]
["NAS WILLOW GROVE","PA","E-9","NAS WILLOW GROVEPAE-9","NAS WILLOW GROVEPAE-9",1926]
["NAS WILLOW GROVE","PA","W-1","NAS WILLOW GROVEPAW-1","NAS WILLOW GROVEPAW-1",1584]
["NAS WILLOW GROVE","PA","W-2","NAS WILLOW GROVEPAW-2","NAS WILLOW GROVEPAW-2",1824]
["NAS WILLOW GROVE","PA","W-3","NAS WILLOW GROVEPAW-3","NAS WILLOW GROVEPAW-3",1935]
["NAS WILLOW GROVE","PA","W-4","NAS WILLOW GROVEPAW-4","NAS WILLOW GROVEPAW-4",2085]
["NAS WILLOW GROVE","PA","W-5","NAS WILLOW GROVEPAW-5","NAS WILLOW GROVEPAW-5",2109]
["NAS WILLOW GROVE","PA","O-1E","NAS WILLOW GROVEPAO-1E","NAS WILLOW GROVEPAO-1E",1764]
["NAS WILLOW GROVE","PA","O-2E","NAS WILLOW GROVEPAO-2E","NAS WILLOW GROVEPAO-2E",1902]
["NAS WILLOW GROVE","PA","O-3E","NAS WILLOW GROVEPAO-3E","NAS WILLOW GROVEPAO-3E",2079]
["NAS WILLOW GROVE","PA","O-1","NAS WILLOW GROVEPAO-1","NAS WILLOW GROVEPAO-1",1503]
["NAS WILLOW GROVE","PA","O-2","NAS WILLOW GROVEPAO-2","NAS WILLOW GROVEPAO-2",1719]
["NAS WILLOW GROVE","PA","O-3","NAS WILLOW GROVEPAO-3","NAS WILLOW GROVEPAO-3",1965]
["NAS WILLOW GROVE","PA","O-4","NAS WILLOW GROVEPAO-4","NAS WILLOW GROVEPAO-4",2106]
["NAS WILLOW GROVE","PA","O-5","NAS WILLOW GROVEPAO-5","NAS WILLOW GROVEPAO-5",2121]
["NAS WILLOW GROVE","PA","O-6","NAS WILLOW GROVEPAO-6","NAS WILLOW GROVEPAO-6",2148]
["NAS WILLOW GROVE","PA","O-7","NAS WILLOW GROVEPAO-7","NAS WILLOW GROVEPAO-7",2190]
["PITTSBURGH","PA","E-1","PITTSBURGHPAE-1","PITTSBURGHPAE-1",1002,1002,1002,1002,1002,1146,1245,1344,1464,1491,1296,1461,1494,1554,1620,1443,1485,1539,1230,1407,1506,1611,1656,1722,1755]
["PITTSBURGH","PA","E-2","PITTSBURGHPAE-2","PITTSBURGHPAE-2",1002]
["PITTSBURGH","PA","E-3","PITTSBURGHPAE-3","PITTSBURGHPAE-3",1002]
["PITTSBURGH","PA","E-4","PITTSBURGHPAE-4","PITTSBURGHPAE-4",1002]
["PITTSBURGH","PA","E-5","PITTSBURGHPAE-5","PITTSBURGHPAE-5",1146]
["PITTSBURGH","PA","E-6","PITTSBURGHPAE-6","PITTSBURGHPAE-6",1245]
["PITTSBURGH","PA","E-7","PITTSBURGHPAE-7","PITTSBURGHPAE-7",1344]
["PITTSBURGH","PA","E-8","PITTSBURGHPAE-8","PITTSBURGHPAE-8",1464]
["PITTSBURGH","PA","E-9","PITTSBURGHPAE-9","PITTSBURGHPAE-9",1491]
["PITTSBURGH","PA","W-1","PITTSBURGHPAW-1","PITTSBURGHPAW-1",1296]
["PITTSBURGH","PA","W-2","PITTSBURGHPAW-2","PITTSBURGHPAW-2",1461]
["PITTSBURGH","PA","W-3","PITTSBURGHPAW-3","PITTSBURGHPAW-3",1494]
["PITTSBURGH","PA","W-4","PITTSBURGHPAW-4","PITTSBURGHPAW-4",1554]
["PITTSBURGH","PA","W-5","PITTSBURGHPAW-5","PITTSBURGHPAW-5",1620]
["PITTSBURGH","PA","O-1E","PITTSBURGHPAO-1E","PITTSBURGHPAO-1E",1443]
["PITTSBURGH","PA","O-2E","PITTSBURGHPAO-2E","PITTSBURGHPAO-2E",1485]
["PITTSBURGH","PA","O-3E",{"$f":"A6786&B6786&C6786","v":"PITTSBURGHPAO-3E"},"PITTSBURGHPAO-3E",1539]
["PITTSBURGH","PA","O-1","PITTSBURGHPAO-1","PITTSBURGHPAO-1",1230]
["PITTSBURGH","PA","O-2","PITTSBURGHPAO-2","PITTSBURGHPAO-2",1407]
["PITTSBURGH","PA","O-3","PITTSBURGHPAO-3","PITTSBURGHPAO-3",1506]
["PITTSBURGH","PA","O-4","PITTSBURGHPAO-4","PITTSBURGHPAO-4",1611]
["PITTSBURGH","PA","O-5","PITTSBURGHPAO-5","PITTSBURGHPAO-5",1656]
["PITTSBURGH","PA","O-6","PITTSBURGHPAO-6","PITTSBURGHPAO-6",1722]
["PITTSBURGH","PA","O-7","PITTSBURGHPAO-7","PITTSBURGHPAO-7",1755]
["READING","PA","E-1","READINGPAE-1","READINGPAE-1",741,741,741,741,741,831,1038,1068,1149,1239,1038,1146,1248,1392,1434,1092,1221,1383,888,1056,1278,1428,1455,1497,1527]
["READING","PA","E-2","READINGPAE-2","READINGPAE-2",741]
["READING","PA","E-3","READINGPAE-3","READINGPAE-3",741]
["READING","PA","E-4","READINGPAE-4","READINGPAE-4",741]
["READING","PA","E-5","READINGPAE-5","READINGPAE-5",831]
["READING","PA","E-6","READINGPAE-6","READINGPAE-6",1038]
["READING","PA","E-7","READINGPAE-7","READINGPAE-7",1068]
["READING","PA","E-8","READINGPAE-8","READINGPAE-8",1149]
["READING","PA","E-9","READINGPAE-9","READINGPAE-9",1239]
["READING","PA","W-1","READINGPAW-1","READINGPAW-1",1038]
["READING","PA","W-2","READINGPAW-2","READINGPAW-2",1146]
["READING","PA","W-3","READINGPAW-3","READINGPAW-3",1248]
["READING","PA","W-4","READINGPAW-4","READINGPAW-4",1392]
["READING","PA","W-5","READINGPAW-5","READINGPAW-5",1434]
["READING","PA","O-1E","READINGPAO-1E","READINGPAO-1E",1092]
["READING","PA","O-2E","READINGPAO-2E","READINGPAO-2E",1221]
["READING","PA","O-3E","READINGPAO-3E","READINGPAO-3E",1383]
["READING","PA","O-1","READINGPAO-1","READINGPAO-1",888]
["READING","PA","O-2","READINGPAO-2","READINGPAO-2",1056]
["READING","PA","O-3","READINGPAO-3","READINGPAO-3",1278]
["READING","PA","O-4","READINGPAO-4","READINGPAO-4",1428]
["READING","PA","O-5","READINGPAO-5","READINGPAO-5",1455]
["READING","PA","O-6","READINGPAO-6","READINGPAO-6",1497]
["READING","PA","O-7","READINGPAO-7","READINGPAO-7",1527]
["STATE COLLEGE","PA","E-1","STATE COLLEGEPAE-1","STATE COLLEGEPAE-1",819,819,819,819,819,927,999,1047,1152,1221,1017,1149,1227,1344,1404,1107,1206,1329,978,1083,1248,1395,1434,1494,1524]
["STATE COLLEGE","PA","E-2","STATE COLLEGEPAE-2","STATE COLLEGEPAE-2",819]
["STATE COLLEGE","PA","E-3","STATE COLLEGEPAE-3","STATE COLLEGEPAE-3",819]
["STATE COLLEGE","PA","E-4","STATE COLLEGEPAE-4","STATE COLLEGEPAE-4",819]
["STATE COLLEGE","PA","E-5","STATE COLLEGEPAE-5","STATE COLLEGEPAE-5",927]
["STATE COLLEGE","PA","E-6","STATE COLLEGEPAE-6","STATE COLLEGEPAE-6",999]
["STATE COLLEGE","PA","E-7","STATE COLLEGEPAE-7","STATE COLLEGEPAE-7",1047]
["STATE COLLEGE","PA","E-8","STATE COLLEGEPAE-8","STATE COLLEGEPAE-8",1152]
["STATE COLLEGE","PA","E-9","STATE COLLEGEPAE-9","STATE COLLEGEPAE-9",1221]
["STATE COLLEGE","PA","W-1","STATE COLLEGEPAW-1","STATE COLLEGEPAW-1",1017]
["STATE COLLEGE","PA","W-2","STATE COLLEGEPAW-2","STATE COLLEGEPAW-2",1149]
["STATE COLLEGE","PA","W-3","STATE COLLEGEPAW-3","STATE COLLEGEPAW-3",1227]
["STATE COLLEGE","PA","W-4","STATE COLLEGEPAW-4","STATE COLLEGEPAW-4",1344]
["STATE COLLEGE","PA","W-5","STATE COLLEGEPAW-5","STATE COLLEGEPAW-5",1404]
["STATE COLLEGE","PA","O-1E","STATE COLLEGEPAO-1E","STATE COLLEGEPAO-1E",1107]
["STATE COLLEGE","PA","O-2E","STATE COLLEGEPAO-2E","STATE COLLEGEPAO-2E",1206]
["STATE COLLEGE","PA","O-3E","STATE COLLEGEPAO-3E","STATE COLLEGEPAO-3E",1329]
["STATE COLLEGE","PA","O-1","STATE COLLEGEPAO-1","STATE COLLEGEPAO-1",978]
["STATE COLLEGE","PA","O-2","STATE COLLEGEPAO-2","STATE COLLEGEPAO-2",1083]
["STATE COLLEGE","PA","O-3","STATE COLLEGEPAO-3","STATE COLLEGEPAO-3",1248]
["STATE COLLEGE","PA","O-4","STATE COLLEGEPAO-4","STATE COLLEGEPAO-4",1395]
["STATE COLLEGE","PA","O-5","STATE COLLEGEPAO-5","STATE COLLEGEPAO-5",1434]
["STATE COLLEGE","PA","O-6","STATE COLLEGEPAO-6","STATE COLLEGEPAO-6",1494]
["STATE COLLEGE","PA","O-7","STATE COLLEGEPAO-7","STATE COLLEGEPAO-7",1524]
["ERIE","PA","E-1","ERIEPAE-1","ERIEPAE-1",738,738,738,738,738,831,882,936,1014,1047,912,1011,1050,1110,1140,990,1041,1104,876,969,1062,1137,1155,1185,1209]
["ERIE","PA","E-2","ERIEPAE-2","ERIEPAE-2",738]
["ERIE","PA","E-3","ERIEPAE-3","ERIEPAE-3",738]
["ERIE","PA","E-4","ERIEPAE-4","ERIEPAE-4",738]
["ERIE","PA","E-5","ERIEPAE-5","ERIEPAE-5",831]
["ERIE","PA","E-6","ERIEPAE-6","ERIEPAE-6",882]
["ERIE","PA","E-7","ERIEPAE-7","ERIEPAE-7",936]
["ERIE","PA","E-8","ERIEPAE-8","ERIEPAE-8",1014]
["ERIE","PA","E-9",{"$f":"A6850&B6850&C6850","v":"ERIEPAE-9"},"ERIEPAE-9",1047]
["ERIE","PA","W-1","ERIEPAW-1","ERIEPAW-1",912]
["ERIE","PA","W-2","ERIEPAW-2","ERIEPAW-2",1011]
["ERIE","PA","W-3","ERIEPAW-3","ERIEPAW-3",1050]
["ERIE","PA","W-4","ERIEPAW-4","ERIEPAW-4",1110]
["ERIE","PA","W-5","ERIEPAW-5","ERIEPAW-5",1140]
["ERIE","PA","O-1E","ERIEPAO-1E","ERIEPAO-1E",990]
["ERIE","PA","O-2E","ERIEPAO-2E","ERIEPAO-2E",1041]
["ERIE","PA","O-3E","ERIEPAO-3E","ERIEPAO-3E",1104]
["ERIE","PA","O-1","ERIEPAO-1","ERIEPAO-1",876]
["ERIE","PA","O-2","ERIEPAO-2","ERIEPAO-2",969]
["ERIE","PA","O-3","ERIEPAO-3","ERIEPAO-3",1062]
["ERIE","PA","O-4","ERIEPAO-4","ERIEPAO-4",1137]
["ERIE","PA","O-5","ERIEPAO-5","ERIEPAO-5",1155]
["ERIE","PA","O-6","ERIEPAO-6","ERIEPAO-6",1185]
["ERIE","PA","O-7","ERIEPAO-7","ERIEPAO-7",1209]
["WILKES-BARRE/SCRANTON","PA","E-1","WILKES-BARRE/SCRANTONPAE-1","WILKES-BARRE/SCRANTONPAE-1",717,717,717,717,717,780,852,882,984,1044,852,984,1050,1143,1167,948,1029,1137,810,924,1068,1164,1179,1203,1227]
["WILKES-BARRE/SCRANTON","PA","E-2","WILKES-BARRE/SCRANTONPAE-2","WILKES-BARRE/SCRANTONPAE-2",717]
["WILKES-BARRE/SCRANTON","PA","E-3","WILKES-BARRE/SCRANTONPAE-3","WILKES-BARRE/SCRANTONPAE-3",717]
["WILKES-BARRE/SCRANTON","PA","E-4","WILKES-BARRE/SCRANTONPAE-4","WILKES-BARRE/SCRANTONPAE-4",717]
["WILKES-BARRE/SCRANTON","PA","E-5","WILKES-BARRE/SCRANTONPAE-5","WILKES-BARRE/SCRANTONPAE-5",780]
["WILKES-BARRE/SCRANTON","PA","E-6","WILKES-BARRE/SCRANTONPAE-6","WILKES-BARRE/SCRANTONPAE-6",852]
["WILKES-BARRE/SCRANTON","PA","E-7","WILKES-BARRE/SCRANTONPAE-7","WILKES-BARRE/SCRANTONPAE-7",882]
["WILKES-BARRE/SCRANTON","PA","E-8","WILKES-BARRE/SCRANTONPAE-8","WILKES-BARRE/SCRANTONPAE-8",984]
["WILKES-BARRE/SCRANTON","PA","E-9","WILKES-BARRE/SCRANTONPAE-9","WILKES-BARRE/SCRANTONPAE-9",1044]
["WILKES-BARRE/SCRANTON","PA","W-1","WILKES-BARRE/SCRANTONPAW-1","WILKES-BARRE/SCRANTONPAW-1",852]
["WILKES-BARRE/SCRANTON","PA","W-2","WILKES-BARRE/SCRANTONPAW-2","WILKES-BARRE/SCRANTONPAW-2",984]
["WILKES-BARRE/SCRANTON","PA","W-3","WILKES-BARRE/SCRANTONPAW-3","WILKES-BARRE/SCRANTONPAW-3",1050]
["WILKES-BARRE/SCRANTON","PA","W-4","WILKES-BARRE/SCRANTONPAW-4","WILKES-BARRE/SCRANTONPAW-4",1143]
["WILKES-BARRE/SCRANTON","PA","W-5","WILKES-BARRE/SCRANTONPAW-5","WILKES-BARRE/SCRANTONPAW-5",1167]
["WILKES-BARRE/SCRANTON","PA","O-1E","WILKES-BARRE/SCRANTONPAO-1E","WILKES-BARRE/SCRANTONPAO-1E",948]
["WILKES-BARRE/SCRANTON","PA","O-2E","WILKES-BARRE/SCRANTONPAO-2E","WILKES-BARRE/SCRANTONPAO-2E",1029]
["WILKES-BARRE/SCRANTON","PA","O-3E","WILKES-BARRE/SCRANTONPAO-3E","WILKES-BARRE/SCRANTONPAO-3E",1137]
["WILKES-BARRE/SCRANTON","PA","O-1","WILKES-BARRE/SCRANTONPAO-1","WILKES-BARRE/SCRANTONPAO-1",810]
["WILKES-BARRE/SCRANTON","PA","O-2","WILKES-BARRE/SCRANTONPAO-2","WILKES-BARRE/SCRANTONPAO-2",924]
["WILKES-BARRE/SCRANTON","PA","O-3","WILKES-BARRE/SCRANTONPAO-3","WILKES-BARRE/SCRANTONPAO-3",1068]
["WILKES-BARRE/SCRANTON","PA","O-4","WILKES-BARRE/SCRANTONPAO-4","WILKES-BARRE/SCRANTONPAO-4",1164]
["WILKES-BARRE/SCRANTON","PA","O-5","WILKES-BARRE/SCRANTONPAO-5","WILKES-BARRE/SCRANTONPAO-5",1179]
["WILKES-BARRE/SCRANTON","PA","O-6","WILKES-BARRE/SCRANTONPAO-6","WILKES-BARRE/SCRANTONPAO-6",1203]
["WILKES-BARRE/SCRANTON","PA","O-7","WILKES-BARRE/SCRANTONPAO-7","WILKES-BARRE/SCRANTONPAO-7",1227]
["ALLENTOWN/BETHLEHEM","PA","E-1","ALLENTOWN/BETHLEHEMPAE-1","ALLENTOWN/BETHLEHEMPAE-1",954,954,954,954,954,1095,1206,1251,1380,1467,1212,1377,1476,1623,1686,1323,1449,1608,1161,1296,1506,1677,1731,1779,1815]
["ALLENTOWN/BETHLEHEM","PA","E-2","ALLENTOWN/BETHLEHEMPAE-2","ALLENTOWN/BETHLEHEMPAE-2",954]
["ALLENTOWN/BETHLEHEM","PA","E-3","ALLENTOWN/BETHLEHEMPAE-3","ALLENTOWN/BETHLEHEMPAE-3",954]
["ALLENTOWN/BETHLEHEM","PA","E-4","ALLENTOWN/BETHLEHEMPAE-4","ALLENTOWN/BETHLEHEMPAE-4",954]
["ALLENTOWN/BETHLEHEM","PA","E-5","ALLENTOWN/BETHLEHEMPAE-5","ALLENTOWN/BETHLEHEMPAE-5",1095]
["ALLENTOWN/BETHLEHEM","PA","E-6","ALLENTOWN/BETHLEHEMPAE-6","ALLENTOWN/BETHLEHEMPAE-6",1206]
["ALLENTOWN/BETHLEHEM","PA","E-7","ALLENTOWN/BETHLEHEMPAE-7","ALLENTOWN/BETHLEHEMPAE-7",1251]
["ALLENTOWN/BETHLEHEM","PA","E-8","ALLENTOWN/BETHLEHEMPAE-8","ALLENTOWN/BETHLEHEMPAE-8",1380]
["ALLENTOWN/BETHLEHEM","PA","E-9","ALLENTOWN/BETHLEHEMPAE-9","ALLENTOWN/BETHLEHEMPAE-9",1467]
["ALLENTOWN/BETHLEHEM","PA","W-1","ALLENTOWN/BETHLEHEMPAW-1","ALLENTOWN/BETHLEHEMPAW-1",1212]
["ALLENTOWN/BETHLEHEM","PA","W-2","ALLENTOWN/BETHLEHEMPAW-2","ALLENTOWN/BETHLEHEMPAW-2",1377]
["ALLENTOWN/BETHLEHEM","PA","W-3","ALLENTOWN/BETHLEHEMPAW-3","ALLENTOWN/BETHLEHEMPAW-3",1476]
["ALLENTOWN/BETHLEHEM","PA","W-4","ALLENTOWN/BETHLEHEMPAW-4","ALLENTOWN/BETHLEHEMPAW-4",1623]
["ALLENTOWN/BETHLEHEM","PA","W-5","ALLENTOWN/BETHLEHEMPAW-5","ALLENTOWN/BETHLEHEMPAW-5",1686]
["ALLENTOWN/BETHLEHEM","PA","O-1E","ALLENTOWN/BETHLEHEMPAO-1E","ALLENTOWN/BETHLEHEMPAO-1E",1323]
["ALLENTOWN/BETHLEHEM","PA","O-2E","ALLENTOWN/BETHLEHEMPAO-2E","ALLENTOWN/BETHLEHEMPAO-2E",1449]
["ALLENTOWN/BETHLEHEM","PA","O-3E","ALLENTOWN/BETHLEHEMPAO-3E","ALLENTOWN/BETHLEHEMPAO-3E",1608]
["ALLENTOWN/BETHLEHEM","PA","O-1","ALLENTOWN/BETHLEHEMPAO-1","ALLENTOWN/BETHLEHEMPAO-1",1161]
["ALLENTOWN/BETHLEHEM","PA","O-2","ALLENTOWN/BETHLEHEMPAO-2","ALLENTOWN/BETHLEHEMPAO-2",1296]
["ALLENTOWN/BETHLEHEM","PA","O-3","ALLENTOWN/BETHLEHEMPAO-3","ALLENTOWN/BETHLEHEMPAO-3",1506]
["ALLENTOWN/BETHLEHEM","PA","O-4","ALLENTOWN/BETHLEHEMPAO-4","ALLENTOWN/BETHLEHEMPAO-4",1677]
["ALLENTOWN/BETHLEHEM","PA","O-5","ALLENTOWN/BETHLEHEMPAO-5","ALLENTOWN/BETHLEHEMPAO-5",1731]
["ALLENTOWN/BETHLEHEM","PA","O-6","ALLENTOWN/BETHLEHEMPAO-6","ALLENTOWN/BETHLEHEMPAO-6",1779]
["ALLENTOWN/BETHLEHEM","PA","O-7","ALLENTOWN/BETHLEHEMPAO-7","ALLENTOWN/BETHLEHEMPAO-7",1815]
["JOHNSTOWN","PA","E-1",{"$f":"A6914&B6914&C6914","v":"JOHNSTOWNPAE-1"},"JOHNSTOWNPAE-1",630,630,630,630,630,705,834,867,963,1020,837,963,1026,1125,1167,927,1008,1113,753,897,1047,1161,1188,1233,1257]
["JOHNSTOWN","PA","E-2","JOHNSTOWNPAE-2","JOHNSTOWNPAE-2",630]
["JOHNSTOWN","PA","E-3","JOHNSTOWNPAE-3","JOHNSTOWNPAE-3",630]
["JOHNSTOWN","PA","E-4","JOHNSTOWNPAE-4","JOHNSTOWNPAE-4",630]
["JOHNSTOWN","PA","E-5","JOHNSTOWNPAE-5","JOHNSTOWNPAE-5",705]
["JOHNSTOWN","PA","E-6","JOHNSTOWNPAE-6","JOHNSTOWNPAE-6",834]
["JOHNSTOWN","PA","E-7","JOHNSTOWNPAE-7","JOHNSTOWNPAE-7",867]
["JOHNSTOWN","PA","E-8","JOHNSTOWNPAE-8","JOHNSTOWNPAE-8",963]
["JOHNSTOWN","PA","E-9","JOHNSTOWNPAE-9","JOHNSTOWNPAE-9",1020]
["JOHNSTOWN","PA","W-1","JOHNSTOWNPAW-1","JOHNSTOWNPAW-1",837]
["JOHNSTOWN","PA","W-2","JOHNSTOWNPAW-2","JOHNSTOWNPAW-2",963]
["JOHNSTOWN","PA","W-3","JOHNSTOWNPAW-3","JOHNSTOWNPAW-3",1026]
["JOHNSTOWN","PA","W-4","JOHNSTOWNPAW-4","JOHNSTOWNPAW-4",1125]
["JOHNSTOWN","PA","W-5","JOHNSTOWNPAW-5","JOHNSTOWNPAW-5",1167]
["JOHNSTOWN","PA","O-1E","JOHNSTOWNPAO-1E","JOHNSTOWNPAO-1E",927]
["JOHNSTOWN","PA","O-2E","JOHNSTOWNPAO-2E","JOHNSTOWNPAO-2E",1008]
["JOHNSTOWN","PA","O-3E","JOHNSTOWNPAO-3E","JOHNSTOWNPAO-3E",1113]
["JOHNSTOWN","PA","O-1","JOHNSTOWNPAO-1","JOHNSTOWNPAO-1",753]
["JOHNSTOWN","PA","O-2","JOHNSTOWNPAO-2","JOHNSTOWNPAO-2",897]
["JOHNSTOWN","PA","O-3","JOHNSTOWNPAO-3","JOHNSTOWNPAO-3",1047]
["JOHNSTOWN","PA","O-4","JOHNSTOWNPAO-4","JOHNSTOWNPAO-4",1161]
["JOHNSTOWN","PA","O-5","JOHNSTOWNPAO-5","JOHNSTOWNPAO-5",1188]
["JOHNSTOWN","PA","O-6","JOHNSTOWNPAO-6","JOHNSTOWNPAO-6",1233]
["JOHNSTOWN","PA","O-7","JOHNSTOWNPAO-7","JOHNSTOWNPAO-7",1257]
["NEWPORT","RI","E-1","NEWPORTRIE-1","NEWPORTRIE-1",1134,1134,1134,1134,1134,1287,1599,1668,1797,1926,1599,1794,1941,2154,2247,1716,1899,2130,1320,1644,1980,2235,2343,2391,2439]
["NEWPORT","RI","E-2","NEWPORTRIE-2","NEWPORTRIE-2",1134]
["NEWPORT","RI","E-3","NEWPORTRIE-3","NEWPORTRIE-3",1134]
["NEWPORT","RI","E-4","NEWPORTRIE-4","NEWPORTRIE-4",1134]
["NEWPORT","RI","E-5","NEWPORTRIE-5","NEWPORTRIE-5",1287]
["NEWPORT","RI","E-6","NEWPORTRIE-6","NEWPORTRIE-6",1599]
["NEWPORT","RI","E-7","NEWPORTRIE-7","NEWPORTRIE-7",1668]
["NEWPORT","RI","E-8","NEWPORTRIE-8","NEWPORTRIE-8",1797]
["NEWPORT","RI","E-9","NEWPORTRIE-9","NEWPORTRIE-9",1926]
["NEWPORT","RI","W-1","NEWPORTRIW-1","NEWPORTRIW-1",1599]
["NEWPORT","RI","W-2","NEWPORTRIW-2","NEWPORTRIW-2",1794]
["NEWPORT","RI","W-3","NEWPORTRIW-3","NEWPORTRIW-3",1941]
["NEWPORT","RI","W-4","NEWPORTRIW-4","NEWPORTRIW-4",2154]
["NEWPORT","RI","W-5","NEWPORTRIW-5","NEWPORTRIW-5",2247]
["NEWPORT","RI","O-1E","NEWPORTRIO-1E","NEWPORTRIO-1E",1716]
["NEWPORT","RI","O-2E","NEWPORTRIO-2E","NEWPORTRIO-2E",1899]
["NEWPORT","RI","O-3E","NEWPORTRIO-3E","NEWPORTRIO-3E",2130]
["NEWPORT","RI","O-1","NEWPORTRIO-1","NEWPORTRIO-1",1320]
["NEWPORT","RI","O-2","NEWPORTRIO-2","NEWPORTRIO-2",1644]
["NEWPORT","RI","O-3","NEWPORTRIO-3","NEWPORTRIO-3",1980]
["NEWPORT","RI","O-4","NEWPORTRIO-4","NEWPORTRIO-4",2235]
["NEWPORT","RI","O-5","NEWPORTRIO-5","NEWPORTRIO-5",2343]
["NEWPORT","RI","O-6","NEWPORTRIO-6","NEWPORTRIO-6",2391]
["NEWPORT","RI","O-7","NEWPORTRIO-7","NEWPORTRIO-7",2439]
["PROVIDENCE","RI","E-1","PROVIDENCERIE-1","PROVIDENCERIE-1",1113,1113,1113,1113,1113,1269,1386,1491,1632,1683,1440,1629,1686,1779,1848,1599,1671,1761,1371,1560,1704,1839,2037,2058,2076]
["PROVIDENCE","RI","E-2","PROVIDENCERIE-2","PROVIDENCERIE-2",1113]
["PROVIDENCE","RI","E-3","PROVIDENCERIE-3","PROVIDENCERIE-3",1113]
["PROVIDENCE","RI","E-4","PROVIDENCERIE-4","PROVIDENCERIE-4",1113]
["PROVIDENCE","RI","E-5","PROVIDENCERIE-5","PROVIDENCERIE-5",1269]
["PROVIDENCE","RI","E-6","PROVIDENCERIE-6","PROVIDENCERIE-6",1386]
["PROVIDENCE","RI","E-7","PROVIDENCERIE-7","PROVIDENCERIE-7",1491]
["PROVIDENCE","RI","E-8","PROVIDENCERIE-8","PROVIDENCERIE-8",1632]
["PROVIDENCE","RI","E-9","PROVIDENCERIE-9","PROVIDENCERIE-9",1683]
["PROVIDENCE","RI","W-1","PROVIDENCERIW-1","PROVIDENCERIW-1",1440]
["PROVIDENCE","RI","W-2","PROVIDENCERIW-2","PROVIDENCERIW-2",1629]
["PROVIDENCE","RI","W-3","PROVIDENCERIW-3","PROVIDENCERIW-3",1686]
["PROVIDENCE","RI","W-4","PROVIDENCERIW-4","PROVIDENCERIW-4",1779]
["PROVIDENCE","RI","W-5","PROVIDENCERIW-5","PROVIDENCERIW-5",1848]
["PROVIDENCE","RI","O-1E","PROVIDENCERIO-1E","PROVIDENCERIO-1E",1599]
["PROVIDENCE","RI","O-2E","PROVIDENCERIO-2E","PROVIDENCERIO-2E",1671]
["PROVIDENCE","RI","O-3E",{"$f":"A6978&B6978&C6978","v":"PROVIDENCERIO-3E"},"PROVIDENCERIO-3E",1761]
["PROVIDENCE","RI","O-1","PROVIDENCERIO-1","PROVIDENCERIO-1",1371]
["PROVIDENCE","RI","O-2","PROVIDENCERIO-2","PROVIDENCERIO-2",1560]
["PROVIDENCE","RI","O-3","PROVIDENCERIO-3","PROVIDENCERIO-3",1704]
["PROVIDENCE","RI","O-4","PROVIDENCERIO-4","PROVIDENCERIO-4",1839]
["PROVIDENCE","RI","O-5","PROVIDENCERIO-5","PROVIDENCERIO-5",2037]
["PROVIDENCE","RI","O-6","PROVIDENCERIO-6","PROVIDENCERIO-6",2058]
["PROVIDENCE","RI","O-7","PROVIDENCERIO-7","PROVIDENCERIO-7",2076]
["BEAUFORT/PARRIS ISLAND","SC","E-1","BEAUFORT/PARRIS ISLANDSCE-1","BEAUFORT/PARRIS ISLANDSCE-1",957,957,957,957,957,1050,1104,1140,1233,1314,1122,1230,1323,1464,1524,1179,1296,1446,1098,1164,1350,1518,1557,1620,1653]
["BEAUFORT/PARRIS ISLAND","SC","E-2","BEAUFORT/PARRIS ISLANDSCE-2","BEAUFORT/PARRIS ISLANDSCE-2",957]
["BEAUFORT/PARRIS ISLAND","SC","E-3","BEAUFORT/PARRIS ISLANDSCE-3","BEAUFORT/PARRIS ISLANDSCE-3",957]
["BEAUFORT/PARRIS ISLAND","SC","E-4","BEAUFORT/PARRIS ISLANDSCE-4","BEAUFORT/PARRIS ISLANDSCE-4",957]
["BEAUFORT/PARRIS ISLAND","SC","E-5","BEAUFORT/PARRIS ISLANDSCE-5","BEAUFORT/PARRIS ISLANDSCE-5",1050]
["BEAUFORT/PARRIS ISLAND","SC","E-6","BEAUFORT/PARRIS ISLANDSCE-6","BEAUFORT/PARRIS ISLANDSCE-6",1104]
["BEAUFORT/PARRIS ISLAND","SC","E-7","BEAUFORT/PARRIS ISLANDSCE-7","BEAUFORT/PARRIS ISLANDSCE-7",1140]
["BEAUFORT/PARRIS ISLAND","SC","E-8","BEAUFORT/PARRIS ISLANDSCE-8","BEAUFORT/PARRIS ISLANDSCE-8",1233]
["BEAUFORT/PARRIS ISLAND","SC","E-9","BEAUFORT/PARRIS ISLANDSCE-9","BEAUFORT/PARRIS ISLANDSCE-9",1314]
["BEAUFORT/PARRIS ISLAND","SC","W-1","BEAUFORT/PARRIS ISLANDSCW-1","BEAUFORT/PARRIS ISLANDSCW-1",1122]
["BEAUFORT/PARRIS ISLAND","SC","W-2","BEAUFORT/PARRIS ISLANDSCW-2","BEAUFORT/PARRIS ISLANDSCW-2",1230]
["BEAUFORT/PARRIS ISLAND","SC","W-3","BEAUFORT/PARRIS ISLANDSCW-3","BEAUFORT/PARRIS ISLANDSCW-3",1323]
["BEAUFORT/PARRIS ISLAND","SC","W-4","BEAUFORT/PARRIS ISLANDSCW-4","BEAUFORT/PARRIS ISLANDSCW-4",1464]
["BEAUFORT/PARRIS ISLAND","SC","W-5","BEAUFORT/PARRIS ISLANDSCW-5","BEAUFORT/PARRIS ISLANDSCW-5",1524]
["BEAUFORT/PARRIS ISLAND","SC","O-1E","BEAUFORT/PARRIS ISLANDSCO-1E","BEAUFORT/PARRIS ISLANDSCO-1E",1179]
["BEAUFORT/PARRIS ISLAND","SC","O-2E","BEAUFORT/PARRIS ISLANDSCO-2E","BEAUFORT/PARRIS ISLANDSCO-2E",1296]
["BEAUFORT/PARRIS ISLAND","SC","O-3E","BEAUFORT/PARRIS ISLANDSCO-3E","BEAUFORT/PARRIS ISLANDSCO-3E",1446]
["BEAUFORT/PARRIS ISLAND","SC","O-1","BEAUFORT/PARRIS ISLANDSCO-1","BEAUFORT/PARRIS ISLANDSCO-1",1098]
["BEAUFORT/PARRIS ISLAND","SC","O-2","BEAUFORT/PARRIS ISLANDSCO-2","BEAUFORT/PARRIS ISLANDSCO-2",1164]
["BEAUFORT/PARRIS ISLAND","SC","O-3","BEAUFORT/PARRIS ISLANDSCO-3","BEAUFORT/PARRIS ISLANDSCO-3",1350]
["BEAUFORT/PARRIS ISLAND","SC","O-4","BEAUFORT/PARRIS ISLANDSCO-4","BEAUFORT/PARRIS ISLANDSCO-4",1518]
["BEAUFORT/PARRIS ISLAND","SC","O-5","BEAUFORT/PARRIS ISLANDSCO-5","BEAUFORT/PARRIS ISLANDSCO-5",1557]
["BEAUFORT/PARRIS ISLAND","SC","O-6","BEAUFORT/PARRIS ISLANDSCO-6","BEAUFORT/PARRIS ISLANDSCO-6",1620]
["BEAUFORT/PARRIS ISLAND","SC","O-7","BEAUFORT/PARRIS ISLANDSCO-7","BEAUFORT/PARRIS ISLANDSCO-7",1653]
["CHARLESTON","SC","E-1","CHARLESTONSCE-1","CHARLESTONSCE-1",966,966,966,966,966,1056,1137,1200,1335,1404,1158,1332,1410,1530,1587,1290,1389,1515,1101,1257,1434,1578,1617,1677,1710]
["CHARLESTON","SC","E-2","CHARLESTONSCE-2","CHARLESTONSCE-2",966]
["CHARLESTON","SC","E-3","CHARLESTONSCE-3","CHARLESTONSCE-3",966]
["CHARLESTON","SC","E-4","CHARLESTONSCE-4","CHARLESTONSCE-4",966]
["CHARLESTON","SC","E-5","CHARLESTONSCE-5","CHARLESTONSCE-5",1056]
["CHARLESTON","SC","E-6","CHARLESTONSCE-6","CHARLESTONSCE-6",1137]
["CHARLESTON","SC","E-7","CHARLESTONSCE-7","CHARLESTONSCE-7",1200]
["CHARLESTON","SC","E-8","CHARLESTONSCE-8","CHARLESTONSCE-8",1335]
["CHARLESTON","SC","E-9","CHARLESTONSCE-9","CHARLESTONSCE-9",1404]
["CHARLESTON","SC","W-1","CHARLESTONSCW-1","CHARLESTONSCW-1",1158]
["CHARLESTON","SC","W-2","CHARLESTONSCW-2","CHARLESTONSCW-2",1332]
["CHARLESTON","SC","W-3","CHARLESTONSCW-3","CHARLESTONSCW-3",1410]
["CHARLESTON","SC","W-4","CHARLESTONSCW-4","CHARLESTONSCW-4",1530]
["CHARLESTON","SC","W-5","CHARLESTONSCW-5","CHARLESTONSCW-5",1587]
["CHARLESTON","SC","O-1E","CHARLESTONSCO-1E","CHARLESTONSCO-1E",1290]
["CHARLESTON","SC","O-2E","CHARLESTONSCO-2E","CHARLESTONSCO-2E",1389]
["CHARLESTON","SC","O-3E","CHARLESTONSCO-3E","CHARLESTONSCO-3E",1515]
["CHARLESTON","SC","O-1","CHARLESTONSCO-1","CHARLESTONSCO-1",1101]
["CHARLESTON","SC","O-2","CHARLESTONSCO-2","CHARLESTONSCO-2",1257]
["CHARLESTON","SC","O-3","CHARLESTONSCO-3","CHARLESTONSCO-3",1434]
["CHARLESTON","SC","O-4","CHARLESTONSCO-4","CHARLESTONSCO-4",1578]
["CHARLESTON","SC","O-5","CHARLESTONSCO-5","CHARLESTONSCO-5",1617]
["CHARLESTON","SC","O-6","CHARLESTONSCO-6","CHARLESTONSCO-6",1677]
["CHARLESTON","SC","O-7","CHARLESTONSCO-7","CHARLESTONSCO-7",1710]
["COLUMBIA/FORT JACKSON","SC","E-1","COLUMBIA/FORT JACKSONSCE-1","COLUMBIA/FORT JACKSONSCE-1",900,900,900,900,900,990,1050,1167,1302,1329,1110,1302,1332,1398,1485,1284,1323,1377,1032,1242,1344,1473,1656,1674,1689]
["COLUMBIA/FORT JACKSON","SC","E-2","COLUMBIA/FORT JACKSONSCE-2","COLUMBIA/FORT JACKSONSCE-2",900]
["COLUMBIA/FORT JACKSON","SC","E-3","COLUMBIA/FORT JACKSONSCE-3","COLUMBIA/FORT JACKSONSCE-3",900]
["COLUMBIA/FORT JACKSON","SC","E-4","COLUMBIA/FORT JACKSONSCE-4","COLUMBIA/FORT JACKSONSCE-4",900]
["COLUMBIA/FORT JACKSON","SC","E-5","COLUMBIA/FORT JACKSONSCE-5","COLUMBIA/FORT JACKSONSCE-5",990]
["COLUMBIA/FORT JACKSON","SC","E-6","COLUMBIA/FORT JACKSONSCE-6","COLUMBIA/FORT JACKSONSCE-6",1050]
["COLUMBIA/FORT JACKSON","SC","E-7","COLUMBIA/FORT JACKSONSCE-7","COLUMBIA/FORT JACKSONSCE-7",1167]
["COLUMBIA/FORT JACKSON","SC","E-8","COLUMBIA/FORT JACKSONSCE-8","COLUMBIA/FORT JACKSONSCE-8",1302]
["COLUMBIA/FORT JACKSON","SC","E-9",{"$f":"A7042&B7042&C7042","v":"COLUMBIA/FORT JACKSONSCE-9"},"COLUMBIA/FORT JACKSONSCE-9",1329]
["COLUMBIA/FORT JACKSON","SC","W-1","COLUMBIA/FORT JACKSONSCW-1","COLUMBIA/FORT JACKSONSCW-1",1110]
["COLUMBIA/FORT JACKSON","SC","W-2","COLUMBIA/FORT JACKSONSCW-2","COLUMBIA/FORT JACKSONSCW-2",1302]
["COLUMBIA/FORT JACKSON","SC","W-3","COLUMBIA/FORT JACKSONSCW-3","COLUMBIA/FORT JACKSONSCW-3",1332]
["COLUMBIA/FORT JACKSON","SC","W-4","COLUMBIA/FORT JACKSONSCW-4","COLUMBIA/FORT JACKSONSCW-4",1398]
["COLUMBIA/FORT JACKSON","SC","W-5","COLUMBIA/FORT JACKSONSCW-5","COLUMBIA/FORT JACKSONSCW-5",1485]
["COLUMBIA/FORT JACKSON","SC","O-1E","COLUMBIA/FORT JACKSONSCO-1E","COLUMBIA/FORT JACKSONSCO-1E",1284]
["COLUMBIA/FORT JACKSON","SC","O-2E","COLUMBIA/FORT JACKSONSCO-2E","COLUMBIA/FORT JACKSONSCO-2E",1323]
["COLUMBIA/FORT JACKSON","SC","O-3E","COLUMBIA/FORT JACKSONSCO-3E","COLUMBIA/FORT JACKSONSCO-3E",1377]
["COLUMBIA/FORT JACKSON","SC","O-1","COLUMBIA/FORT JACKSONSCO-1","COLUMBIA/FORT JACKSONSCO-1",1032]
["COLUMBIA/FORT JACKSON","SC","O-2","COLUMBIA/FORT JACKSONSCO-2","COLUMBIA/FORT JACKSONSCO-2",1242]
["COLUMBIA/FORT JACKSON","SC","O-3","COLUMBIA/FORT JACKSONSCO-3","COLUMBIA/FORT JACKSONSCO-3",1344]
["COLUMBIA/FORT JACKSON","SC","O-4","COLUMBIA/FORT JACKSONSCO-4","COLUMBIA/FORT JACKSONSCO-4",1473]
["COLUMBIA/FORT JACKSON","SC","O-5","COLUMBIA/FORT JACKSONSCO-5","COLUMBIA/FORT JACKSONSCO-5",1656]
["COLUMBIA/FORT JACKSON","SC","O-6","COLUMBIA/FORT JACKSONSCO-6","COLUMBIA/FORT JACKSONSCO-6",1674]
["COLUMBIA/FORT JACKSON","SC","O-7","COLUMBIA/FORT JACKSONSCO-7","COLUMBIA/FORT JACKSONSCO-7",1689]
["GREENVILLE","SC","E-1","GREENVILLESCE-1","GREENVILLESCE-1",771,771,771,771,771,861,915,981,1074,1158,948,1071,1131,1233,1332,1038,1113,1209,906,1017,1149,1317,1413,1479,1509]
["GREENVILLE","SC","E-2","GREENVILLESCE-2","GREENVILLESCE-2",771]
["GREENVILLE","SC","E-3","GREENVILLESCE-3","GREENVILLESCE-3",771]
["GREENVILLE","SC","E-4","GREENVILLESCE-4","GREENVILLESCE-4",771]
["GREENVILLE","SC","E-5","GREENVILLESCE-5","GREENVILLESCE-5",861]
["GREENVILLE","SC","E-6","GREENVILLESCE-6","GREENVILLESCE-6",915]
["GREENVILLE","SC","E-7","GREENVILLESCE-7","GREENVILLESCE-7",981]
["GREENVILLE","SC","E-8","GREENVILLESCE-8","GREENVILLESCE-8",1074]
["GREENVILLE","SC","E-9","GREENVILLESCE-9","GREENVILLESCE-9",1158]
["GREENVILLE","SC","W-1","GREENVILLESCW-1","GREENVILLESCW-1",948]
["GREENVILLE","SC","W-2","GREENVILLESCW-2","GREENVILLESCW-2",1071]
["GREENVILLE","SC","W-3","GREENVILLESCW-3","GREENVILLESCW-3",1131]
["GREENVILLE","SC","W-4","GREENVILLESCW-4","GREENVILLESCW-4",1233]
["GREENVILLE","SC","W-5","GREENVILLESCW-5","GREENVILLESCW-5",1332]
["GREENVILLE","SC","O-1E","GREENVILLESCO-1E","GREENVILLESCO-1E",1038]
["GREENVILLE","SC","O-2E","GREENVILLESCO-2E","GREENVILLESCO-2E",1113]
["GREENVILLE","SC","O-3E","GREENVILLESCO-3E","GREENVILLESCO-3E",1209]
["GREENVILLE","SC","O-1","GREENVILLESCO-1","GREENVILLESCO-1",906]
["GREENVILLE","SC","O-2","GREENVILLESCO-2","GREENVILLESCO-2",1017]
["GREENVILLE","SC","O-3","GREENVILLESCO-3","GREENVILLESCO-3",1149]
["GREENVILLE","SC","O-4","GREENVILLESCO-4","GREENVILLESCO-4",1317]
["GREENVILLE","SC","O-5","GREENVILLESCO-5","GREENVILLESCO-5",1413]
["GREENVILLE","SC","O-6","GREENVILLESCO-6","GREENVILLESCO-6",1479]
["GREENVILLE","SC","O-7","GREENVILLESCO-7","GREENVILLESCO-7",1509]
["MYRTLE BEACH","SC","E-1","MYRTLE BEACHSCE-1","MYRTLE BEACHSCE-1",861,861,861,861,861,963,1026,1104,1212,1257,1065,1209,1260,1353,1452,1182,1245,1329,1014,1152,1275,1437,1500,1602,1635]
["MYRTLE BEACH","SC","E-2","MYRTLE BEACHSCE-2","MYRTLE BEACHSCE-2",861]
["MYRTLE BEACH","SC","E-3","MYRTLE BEACHSCE-3","MYRTLE BEACHSCE-3",861]
["MYRTLE BEACH","SC","E-4","MYRTLE BEACHSCE-4","MYRTLE BEACHSCE-4",861]
["MYRTLE BEACH","SC","E-5","MYRTLE BEACHSCE-5","MYRTLE BEACHSCE-5",963]
["MYRTLE BEACH","SC","E-6","MYRTLE BEACHSCE-6","MYRTLE BEACHSCE-6",1026]
["MYRTLE BEACH","SC","E-7","MYRTLE BEACHSCE-7","MYRTLE BEACHSCE-7",1104]
["MYRTLE BEACH","SC","E-8","MYRTLE BEACHSCE-8","MYRTLE BEACHSCE-8",1212]
["MYRTLE BEACH","SC","E-9","MYRTLE BEACHSCE-9","MYRTLE BEACHSCE-9",1257]
["MYRTLE BEACH","SC","W-1","MYRTLE BEACHSCW-1","MYRTLE BEACHSCW-1",1065]
["MYRTLE BEACH","SC","W-2","MYRTLE BEACHSCW-2","MYRTLE BEACHSCW-2",1209]
["MYRTLE BEACH","SC","W-3","MYRTLE BEACHSCW-3","MYRTLE BEACHSCW-3",1260]
["MYRTLE BEACH","SC","W-4","MYRTLE BEACHSCW-4","MYRTLE BEACHSCW-4",1353]
["MYRTLE BEACH","SC","W-5","MYRTLE BEACHSCW-5","MYRTLE BEACHSCW-5",1452]
["MYRTLE BEACH","SC","O-1E","MYRTLE BEACHSCO-1E","MYRTLE BEACHSCO-1E",1182]
["MYRTLE BEACH","SC","O-2E","MYRTLE BEACHSCO-2E","MYRTLE BEACHSCO-2E",1245]
["MYRTLE BEACH","SC","O-3E","MYRTLE BEACHSCO-3E","MYRTLE BEACHSCO-3E",1329]
["MYRTLE BEACH","SC","O-1","MYRTLE BEACHSCO-1","MYRTLE BEACHSCO-1",1014]
["MYRTLE BEACH","SC","O-2","MYRTLE BEACHSCO-2","MYRTLE BEACHSCO-2",1152]
["MYRTLE BEACH","SC","O-3","MYRTLE BEACHSCO-3","MYRTLE BEACHSCO-3",1275]
["MYRTLE BEACH","SC","O-4","MYRTLE BEACHSCO-4","MYRTLE BEACHSCO-4",1437]
["MYRTLE BEACH","SC","O-5","MYRTLE BEACHSCO-5","MYRTLE BEACHSCO-5",1500]
["MYRTLE BEACH","SC","O-6","MYRTLE BEACHSCO-6","MYRTLE BEACHSCO-6",1602]
["MYRTLE BEACH","SC","O-7","MYRTLE BEACHSCO-7","MYRTLE BEACHSCO-7",1635]
["SUMTER/SHAW AFB","SC","E-1",{"$f":"A7106&B7106&C7106","v":"SUMTER/SHAW AFBSCE-1"},"SUMTER/SHAW AFBSCE-1",774,774,774,774,774,840,882,951,1050,1098,918,1050,1101,1182,1227,1020,1086,1170,870,996,1116,1221,1395,1407,1422]
["SUMTER/SHAW AFB","SC","E-2","SUMTER/SHAW AFBSCE-2","SUMTER/SHAW AFBSCE-2",774]
["SUMTER/SHAW AFB","SC","E-3","SUMTER/SHAW AFBSCE-3","SUMTER/SHAW AFBSCE-3",774]
["SUMTER/SHAW AFB","SC","E-4","SUMTER/SHAW AFBSCE-4","SUMTER/SHAW AFBSCE-4",774]
["SUMTER/SHAW AFB","SC","E-5","SUMTER/SHAW AFBSCE-5","SUMTER/SHAW AFBSCE-5",840]
["SUMTER/SHAW AFB","SC","E-6","SUMTER/SHAW AFBSCE-6","SUMTER/SHAW AFBSCE-6",882]
["SUMTER/SHAW AFB","SC","E-7","SUMTER/SHAW AFBSCE-7","SUMTER/SHAW AFBSCE-7",951]
["SUMTER/SHAW AFB","SC","E-8","SUMTER/SHAW AFBSCE-8","SUMTER/SHAW AFBSCE-8",1050]
["SUMTER/SHAW AFB","SC","E-9","SUMTER/SHAW AFBSCE-9","SUMTER/SHAW AFBSCE-9",1098]
["SUMTER/SHAW AFB","SC","W-1","SUMTER/SHAW AFBSCW-1","SUMTER/SHAW AFBSCW-1",918]
["SUMTER/SHAW AFB","SC","W-2","SUMTER/SHAW AFBSCW-2","SUMTER/SHAW AFBSCW-2",1050]
["SUMTER/SHAW AFB","SC","W-3","SUMTER/SHAW AFBSCW-3","SUMTER/SHAW AFBSCW-3",1101]
["SUMTER/SHAW AFB","SC","W-4","SUMTER/SHAW AFBSCW-4","SUMTER/SHAW AFBSCW-4",1182]
["SUMTER/SHAW AFB","SC","W-5","SUMTER/SHAW AFBSCW-5","SUMTER/SHAW AFBSCW-5",1227]
["SUMTER/SHAW AFB","SC","O-1E","SUMTER/SHAW AFBSCO-1E","SUMTER/SHAW AFBSCO-1E",1020]
["SUMTER/SHAW AFB","SC","O-2E","SUMTER/SHAW AFBSCO-2E","SUMTER/SHAW AFBSCO-2E",1086]
["SUMTER/SHAW AFB","SC","O-3E","SUMTER/SHAW AFBSCO-3E","SUMTER/SHAW AFBSCO-3E",1170]
["SUMTER/SHAW AFB","SC","O-1","SUMTER/SHAW AFBSCO-1","SUMTER/SHAW AFBSCO-1",870]
["SUMTER/SHAW AFB","SC","O-2","SUMTER/SHAW AFBSCO-2","SUMTER/SHAW AFBSCO-2",996]
["SUMTER/SHAW AFB","SC","O-3","SUMTER/SHAW AFBSCO-3","SUMTER/SHAW AFBSCO-3",1116]
["SUMTER/SHAW AFB","SC","O-4","SUMTER/SHAW AFBSCO-4","SUMTER/SHAW AFBSCO-4",1221]
["SUMTER/SHAW AFB","SC","O-5","SUMTER/SHAW AFBSCO-5","SUMTER/SHAW AFBSCO-5",1395]
["SUMTER/SHAW AFB","SC","O-6","SUMTER/SHAW AFBSCO-6","SUMTER/SHAW AFBSCO-6",1407]
["SUMTER/SHAW AFB","SC","O-7","SUMTER/SHAW AFBSCO-7","SUMTER/SHAW AFBSCO-7",1422]
["FLORENCE","SC","E-1","FLORENCESCE-1","FLORENCESCE-1",699,699,699,699,699,777,852,900,1008,1059,867,1005,1062,1152,1212,975,1047,1137,816,948,1077,1206,1245,1308,1335]
["FLORENCE","SC","E-2","FLORENCESCE-2","FLORENCESCE-2",699]
["FLORENCE","SC","E-3","FLORENCESCE-3","FLORENCESCE-3",699]
["FLORENCE","SC","E-4","FLORENCESCE-4","FLORENCESCE-4",699]
["FLORENCE","SC","E-5","FLORENCESCE-5","FLORENCESCE-5",777]
["FLORENCE","SC","E-6","FLORENCESCE-6","FLORENCESCE-6",852]
["FLORENCE","SC","E-7","FLORENCESCE-7","FLORENCESCE-7",900]
["FLORENCE","SC","E-8","FLORENCESCE-8","FLORENCESCE-8",1008]
["FLORENCE","SC","E-9","FLORENCESCE-9","FLORENCESCE-9",1059]
["FLORENCE","SC","W-1","FLORENCESCW-1","FLORENCESCW-1",867]
["FLORENCE","SC","W-2","FLORENCESCW-2","FLORENCESCW-2",1005]
["FLORENCE","SC","W-3","FLORENCESCW-3","FLORENCESCW-3",1062]
["FLORENCE","SC","W-4","FLORENCESCW-4","FLORENCESCW-4",1152]
["FLORENCE","SC","W-5","FLORENCESCW-5","FLORENCESCW-5",1212]
["FLORENCE","SC","O-1E","FLORENCESCO-1E","FLORENCESCO-1E",975]
["FLORENCE","SC","O-2E","FLORENCESCO-2E","FLORENCESCO-2E",1047]
["FLORENCE","SC","O-3E","FLORENCESCO-3E","FLORENCESCO-3E",1137]
["FLORENCE","SC","O-1","FLORENCESCO-1","FLORENCESCO-1",816]
["FLORENCE","SC","O-2","FLORENCESCO-2","FLORENCESCO-2",948]
["FLORENCE","SC","O-3","FLORENCESCO-3","FLORENCESCO-3",1077]
["FLORENCE","SC","O-4","FLORENCESCO-4","FLORENCESCO-4",1206]
["FLORENCE","SC","O-5","FLORENCESCO-5","FLORENCESCO-5",1245]
["FLORENCE","SC","O-6","FLORENCESCO-6","FLORENCESCO-6",1308]
["FLORENCE","SC","O-7","FLORENCESCO-7","FLORENCESCO-7",1335]
["RAPID CITY/ELLSWORTH AFB","SD","E-1","RAPID CITY/ELLSWORTH AFBSDE-1","RAPID CITY/ELLSWORTH AFBSDE-1",705,705,705,705,705,798,990,996,1092,1182,990,1092,1188,1320,1329,1038,1161,1320,846,1005,1218,1326,1332,1338,1365]
["RAPID CITY/ELLSWORTH AFB","SD","E-2","RAPID CITY/ELLSWORTH AFBSDE-2","RAPID CITY/ELLSWORTH AFBSDE-2",705]
["RAPID CITY/ELLSWORTH AFB","SD","E-3","RAPID CITY/ELLSWORTH AFBSDE-3","RAPID CITY/ELLSWORTH AFBSDE-3",705]
["RAPID CITY/ELLSWORTH AFB","SD","E-4","RAPID CITY/ELLSWORTH AFBSDE-4","RAPID CITY/ELLSWORTH AFBSDE-4",705]
["RAPID CITY/ELLSWORTH AFB","SD","E-5","RAPID CITY/ELLSWORTH AFBSDE-5","RAPID CITY/ELLSWORTH AFBSDE-5",798]
["RAPID CITY/ELLSWORTH AFB","SD","E-6","RAPID CITY/ELLSWORTH AFBSDE-6","RAPID CITY/ELLSWORTH AFBSDE-6",990]
["RAPID CITY/ELLSWORTH AFB","SD","E-7","RAPID CITY/ELLSWORTH AFBSDE-7","RAPID CITY/ELLSWORTH AFBSDE-7",996]
["RAPID CITY/ELLSWORTH AFB","SD","E-8","RAPID CITY/ELLSWORTH AFBSDE-8","RAPID CITY/ELLSWORTH AFBSDE-8",1092]
["RAPID CITY/ELLSWORTH AFB","SD","E-9","RAPID CITY/ELLSWORTH AFBSDE-9","RAPID CITY/ELLSWORTH AFBSDE-9",1182]
["RAPID CITY/ELLSWORTH AFB","SD","W-1","RAPID CITY/ELLSWORTH AFBSDW-1","RAPID CITY/ELLSWORTH AFBSDW-1",990]
["RAPID CITY/ELLSWORTH AFB","SD","W-2","RAPID CITY/ELLSWORTH AFBSDW-2","RAPID CITY/ELLSWORTH AFBSDW-2",1092]
["RAPID CITY/ELLSWORTH AFB","SD","W-3","RAPID CITY/ELLSWORTH AFBSDW-3","RAPID CITY/ELLSWORTH AFBSDW-3",1188]
["RAPID CITY/ELLSWORTH AFB","SD","W-4","RAPID CITY/ELLSWORTH AFBSDW-4","RAPID CITY/ELLSWORTH AFBSDW-4",1320]
["RAPID CITY/ELLSWORTH AFB","SD","W-5","RAPID CITY/ELLSWORTH AFBSDW-5","RAPID CITY/ELLSWORTH AFBSDW-5",1329]
["RAPID CITY/ELLSWORTH AFB","SD","O-1E","RAPID CITY/ELLSWORTH AFBSDO-1E","RAPID CITY/ELLSWORTH AFBSDO-1E",1038]
["RAPID CITY/ELLSWORTH AFB","SD","O-2E","RAPID CITY/ELLSWORTH AFBSDO-2E","RAPID CITY/ELLSWORTH AFBSDO-2E",1161]
["RAPID CITY/ELLSWORTH AFB","SD","O-3E",{"$f":"A7170&B7170&C7170","v":"RAPID CITY/ELLSWORTH AFBSDO-3E"},"RAPID CITY/ELLSWORTH AFBSDO-3E",1320]
["RAPID CITY/ELLSWORTH AFB","SD","O-1","RAPID CITY/ELLSWORTH AFBSDO-1","RAPID CITY/ELLSWORTH AFBSDO-1",846]
["RAPID CITY/ELLSWORTH AFB","SD","O-2","RAPID CITY/ELLSWORTH AFBSDO-2","RAPID CITY/ELLSWORTH AFBSDO-2",1005]
["RAPID CITY/ELLSWORTH AFB","SD","O-3","RAPID CITY/ELLSWORTH AFBSDO-3","RAPID CITY/ELLSWORTH AFBSDO-3",1218]
["RAPID CITY/ELLSWORTH AFB","SD","O-4","RAPID CITY/ELLSWORTH AFBSDO-4","RAPID CITY/ELLSWORTH AFBSDO-4",1326]
["RAPID CITY/ELLSWORTH AFB","SD","O-5","RAPID CITY/ELLSWORTH AFBSDO-5","RAPID CITY/ELLSWORTH AFBSDO-5",1332]
["RAPID CITY/ELLSWORTH AFB","SD","O-6","RAPID CITY/ELLSWORTH AFBSDO-6","RAPID CITY/ELLSWORTH AFBSDO-6",1338]
["RAPID CITY/ELLSWORTH AFB","SD","O-7","RAPID CITY/ELLSWORTH AFBSDO-7","RAPID CITY/ELLSWORTH AFBSDO-7",1365]
["SIOUX FALLS","SD","E-1","SIOUX FALLSSDE-1","SIOUX FALLSSDE-1",717,717,717,717,717,804,879,960,1089,1122,912,1089,1125,1182,1224,1071,1113,1170,840,1032,1134,1218,1263,1287,1314]
["SIOUX FALLS","SD","E-2","SIOUX FALLSSDE-2","SIOUX FALLSSDE-2",717]
["SIOUX FALLS","SD","E-3","SIOUX FALLSSDE-3","SIOUX FALLSSDE-3",717]
["SIOUX FALLS","SD","E-4","SIOUX FALLSSDE-4","SIOUX FALLSSDE-4",717]
["SIOUX FALLS","SD","E-5","SIOUX FALLSSDE-5","SIOUX FALLSSDE-5",804]
["SIOUX FALLS","SD","E-6","SIOUX FALLSSDE-6","SIOUX FALLSSDE-6",879]
["SIOUX FALLS","SD","E-7","SIOUX FALLSSDE-7","SIOUX FALLSSDE-7",960]
["SIOUX FALLS","SD","E-8","SIOUX FALLSSDE-8","SIOUX FALLSSDE-8",1089]
["SIOUX FALLS","SD","E-9","SIOUX FALLSSDE-9","SIOUX FALLSSDE-9",1122]
["SIOUX FALLS","SD","W-1","SIOUX FALLSSDW-1","SIOUX FALLSSDW-1",912]
["SIOUX FALLS","SD","W-2","SIOUX FALLSSDW-2","SIOUX FALLSSDW-2",1089]
["SIOUX FALLS","SD","W-3","SIOUX FALLSSDW-3","SIOUX FALLSSDW-3",1125]
["SIOUX FALLS","SD","W-4","SIOUX FALLSSDW-4","SIOUX FALLSSDW-4",1182]
["SIOUX FALLS","SD","W-5","SIOUX FALLSSDW-5","SIOUX FALLSSDW-5",1224]
["SIOUX FALLS","SD","O-1E","SIOUX FALLSSDO-1E","SIOUX FALLSSDO-1E",1071]
["SIOUX FALLS","SD","O-2E","SIOUX FALLSSDO-2E","SIOUX FALLSSDO-2E",1113]
["SIOUX FALLS","SD","O-3E","SIOUX FALLSSDO-3E","SIOUX FALLSSDO-3E",1170]
["SIOUX FALLS","SD","O-1","SIOUX FALLSSDO-1","SIOUX FALLSSDO-1",840]
["SIOUX FALLS","SD","O-2","SIOUX FALLSSDO-2","SIOUX FALLSSDO-2",1032]
["SIOUX FALLS","SD","O-3","SIOUX FALLSSDO-3","SIOUX FALLSSDO-3",1134]
["SIOUX FALLS","SD","O-4","SIOUX FALLSSDO-4","SIOUX FALLSSDO-4",1218]
["SIOUX FALLS","SD","O-5","SIOUX FALLSSDO-5","SIOUX FALLSSDO-5",1263]
["SIOUX FALLS","SD","O-6","SIOUX FALLSSDO-6","SIOUX FALLSSDO-6",1287]
["SIOUX FALLS","SD","O-7","SIOUX FALLSSDO-7","SIOUX FALLSSDO-7",1314]
["CHATTANOOGA","TN","E-1","CHATTANOOGATNE-1","CHATTANOOGATNE-1",744,744,744,744,744,852,915,984,1074,1098,951,1071,1098,1143,1185,1059,1092,1134,903,1032,1107,1179,1308,1320,1332]
["CHATTANOOGA","TN","E-2","CHATTANOOGATNE-2","CHATTANOOGATNE-2",744]
["CHATTANOOGA","TN","E-3","CHATTANOOGATNE-3","CHATTANOOGATNE-3",744]
["CHATTANOOGA","TN","E-4","CHATTANOOGATNE-4","CHATTANOOGATNE-4",744]
["CHATTANOOGA","TN","E-5","CHATTANOOGATNE-5","CHATTANOOGATNE-5",852]
["CHATTANOOGA","TN","E-6","CHATTANOOGATNE-6","CHATTANOOGATNE-6",915]
["CHATTANOOGA","TN","E-7","CHATTANOOGATNE-7","CHATTANOOGATNE-7",984]
["CHATTANOOGA","TN","E-8","CHATTANOOGATNE-8","CHATTANOOGATNE-8",1074]
["CHATTANOOGA","TN","E-9","CHATTANOOGATNE-9","CHATTANOOGATNE-9",1098]
["CHATTANOOGA","TN","W-1","CHATTANOOGATNW-1","CHATTANOOGATNW-1",951]
["CHATTANOOGA","TN","W-2","CHATTANOOGATNW-2","CHATTANOOGATNW-2",1071]
["CHATTANOOGA","TN","W-3","CHATTANOOGATNW-3","CHATTANOOGATNW-3",1098]
["CHATTANOOGA","TN","W-4","CHATTANOOGATNW-4","CHATTANOOGATNW-4",1143]
["CHATTANOOGA","TN","W-5","CHATTANOOGATNW-5","CHATTANOOGATNW-5",1185]
["CHATTANOOGA","TN","O-1E","CHATTANOOGATNO-1E","CHATTANOOGATNO-1E",1059]
["CHATTANOOGA","TN","O-2E","CHATTANOOGATNO-2E","CHATTANOOGATNO-2E",1092]
["CHATTANOOGA","TN","O-3E","CHATTANOOGATNO-3E","CHATTANOOGATNO-3E",1134]
["CHATTANOOGA","TN","O-1","CHATTANOOGATNO-1","CHATTANOOGATNO-1",903]
["CHATTANOOGA","TN","O-2","CHATTANOOGATNO-2","CHATTANOOGATNO-2",1032]
["CHATTANOOGA","TN","O-3","CHATTANOOGATNO-3","CHATTANOOGATNO-3",1107]
["CHATTANOOGA","TN","O-4","CHATTANOOGATNO-4","CHATTANOOGATNO-4",1179]
["CHATTANOOGA","TN","O-5","CHATTANOOGATNO-5","CHATTANOOGATNO-5",1308]
["CHATTANOOGA","TN","O-6","CHATTANOOGATNO-6","CHATTANOOGATNO-6",1320]
["CHATTANOOGA","TN","O-7","CHATTANOOGATNO-7","CHATTANOOGATNO-7",1332]
["KNOXVILLE","TN","E-1","KNOXVILLETNE-1","KNOXVILLETNE-1",798,798,798,798,798,885,954,993,1095,1164,966,1092,1170,1281,1320,1053,1149,1269,927,1032,1191,1314,1449,1464,1479]
["KNOXVILLE","TN","E-2","KNOXVILLETNE-2","KNOXVILLETNE-2",798]
["KNOXVILLE","TN","E-3","KNOXVILLETNE-3","KNOXVILLETNE-3",798]
["KNOXVILLE","TN","E-4","KNOXVILLETNE-4","KNOXVILLETNE-4",798]
["KNOXVILLE","TN","E-5","KNOXVILLETNE-5","KNOXVILLETNE-5",885]
["KNOXVILLE","TN","E-6","KNOXVILLETNE-6","KNOXVILLETNE-6",954]
["KNOXVILLE","TN","E-7","KNOXVILLETNE-7","KNOXVILLETNE-7",993]
["KNOXVILLE","TN","E-8","KNOXVILLETNE-8","KNOXVILLETNE-8",1095]
["KNOXVILLE","TN","E-9",{"$f":"A7234&B7234&C7234","v":"KNOXVILLETNE-9"},"KNOXVILLETNE-9",1164]
["KNOXVILLE","TN","W-1","KNOXVILLETNW-1","KNOXVILLETNW-1",966]
["KNOXVILLE","TN","W-2","KNOXVILLETNW-2","KNOXVILLETNW-2",1092]
["KNOXVILLE","TN","W-3","KNOXVILLETNW-3","KNOXVILLETNW-3",1170]
["KNOXVILLE","TN","W-4","KNOXVILLETNW-4","KNOXVILLETNW-4",1281]
["KNOXVILLE","TN","W-5","KNOXVILLETNW-5","KNOXVILLETNW-5",1320]
["KNOXVILLE","TN","O-1E","KNOXVILLETNO-1E","KNOXVILLETNO-1E",1053]
["KNOXVILLE","TN","O-2E","KNOXVILLETNO-2E","KNOXVILLETNO-2E",1149]
["KNOXVILLE","TN","O-3E","KNOXVILLETNO-3E","KNOXVILLETNO-3E",1269]
["KNOXVILLE","TN","O-1","KNOXVILLETNO-1","KNOXVILLETNO-1",927]
["KNOXVILLE","TN","O-2","KNOXVILLETNO-2","KNOXVILLETNO-2",1032]
["KNOXVILLE","TN","O-3","KNOXVILLETNO-3","KNOXVILLETNO-3",1191]
["KNOXVILLE","TN","O-4","KNOXVILLETNO-4","KNOXVILLETNO-4",1314]
["KNOXVILLE","TN","O-5","KNOXVILLETNO-5","KNOXVILLETNO-5",1449]
["KNOXVILLE","TN","O-6","KNOXVILLETNO-6","KNOXVILLETNO-6",1464]
["KNOXVILLE","TN","O-7","KNOXVILLETNO-7","KNOXVILLETNO-7",1479]
["MEMPHIS","TN","E-1","MEMPHISTNE-1","MEMPHISTNE-1",873,873,873,873,873,975,1122,1164,1311,1383,1125,1308,1389,1512,1566,1263,1365,1497,1026,1224,1413,1560,1596,1653,1686]
["MEMPHIS","TN","E-2","MEMPHISTNE-2","MEMPHISTNE-2",873]
["MEMPHIS","TN","E-3","MEMPHISTNE-3","MEMPHISTNE-3",873]
["MEMPHIS","TN","E-4","MEMPHISTNE-4","MEMPHISTNE-4",873]
["MEMPHIS","TN","E-5","MEMPHISTNE-5","MEMPHISTNE-5",975]
["MEMPHIS","TN","E-6","MEMPHISTNE-6","MEMPHISTNE-6",1122]
["MEMPHIS","TN","E-7","MEMPHISTNE-7","MEMPHISTNE-7",1164]
["MEMPHIS","TN","E-8","MEMPHISTNE-8","MEMPHISTNE-8",1311]
["MEMPHIS","TN","E-9","MEMPHISTNE-9","MEMPHISTNE-9",1383]
["MEMPHIS","TN","W-1","MEMPHISTNW-1","MEMPHISTNW-1",1125]
["MEMPHIS","TN","W-2","MEMPHISTNW-2","MEMPHISTNW-2",1308]
["MEMPHIS","TN","W-3","MEMPHISTNW-3","MEMPHISTNW-3",1389]
["MEMPHIS","TN","W-4","MEMPHISTNW-4","MEMPHISTNW-4",1512]
["MEMPHIS","TN","W-5","MEMPHISTNW-5","MEMPHISTNW-5",1566]
["MEMPHIS","TN","O-1E","MEMPHISTNO-1E","MEMPHISTNO-1E",1263]
["MEMPHIS","TN","O-2E","MEMPHISTNO-2E","MEMPHISTNO-2E",1365]
["MEMPHIS","TN","O-3E","MEMPHISTNO-3E","MEMPHISTNO-3E",1497]
["MEMPHIS","TN","O-1","MEMPHISTNO-1","MEMPHISTNO-1",1026]
["MEMPHIS","TN","O-2","MEMPHISTNO-2","MEMPHISTNO-2",1224]
["MEMPHIS","TN","O-3","MEMPHISTNO-3","MEMPHISTNO-3",1413]
["MEMPHIS","TN","O-4","MEMPHISTNO-4","MEMPHISTNO-4",1560]
["MEMPHIS","TN","O-5","MEMPHISTNO-5","MEMPHISTNO-5",1596]
["MEMPHIS","TN","O-6","MEMPHISTNO-6","MEMPHISTNO-6",1653]
["MEMPHIS","TN","O-7","MEMPHISTNO-7","MEMPHISTNO-7",1686]
["NASHVILLE","TN","E-1","NASHVILLETNE-1","NASHVILLETNE-1",999,999,999,999,999,1146,1227,1272,1326,1338,1251,1326,1338,1368,1416,1320,1335,1356,1221,1302,1341,1410,1488,1503,1518]
["NASHVILLE","TN","E-2","NASHVILLETNE-2","NASHVILLETNE-2",999]
["NASHVILLE","TN","E-3","NASHVILLETNE-3","NASHVILLETNE-3",999]
["NASHVILLE","TN","E-4","NASHVILLETNE-4","NASHVILLETNE-4",999]
["NASHVILLE","TN","E-5","NASHVILLETNE-5","NASHVILLETNE-5",1146]
["NASHVILLE","TN","E-6","NASHVILLETNE-6","NASHVILLETNE-6",1227]
["NASHVILLE","TN","E-7","NASHVILLETNE-7","NASHVILLETNE-7",1272]
["NASHVILLE","TN","E-8","NASHVILLETNE-8","NASHVILLETNE-8",1326]
["NASHVILLE","TN","E-9","NASHVILLETNE-9","NASHVILLETNE-9",1338]
["NASHVILLE","TN","W-1","NASHVILLETNW-1","NASHVILLETNW-1",1251]
["NASHVILLE","TN","W-2","NASHVILLETNW-2","NASHVILLETNW-2",1326]
["NASHVILLE","TN","W-3","NASHVILLETNW-3","NASHVILLETNW-3",1338]
["NASHVILLE","TN","W-4","NASHVILLETNW-4","NASHVILLETNW-4",1368]
["NASHVILLE","TN","W-5","NASHVILLETNW-5","NASHVILLETNW-5",1416]
["NASHVILLE","TN","O-1E","NASHVILLETNO-1E","NASHVILLETNO-1E",1320]
["NASHVILLE","TN","O-2E","NASHVILLETNO-2E","NASHVILLETNO-2E",1335]
["NASHVILLE","TN","O-3E","NASHVILLETNO-3E","NASHVILLETNO-3E",1356]
["NASHVILLE","TN","O-1","NASHVILLETNO-1","NASHVILLETNO-1",1221]
["NASHVILLE","TN","O-2","NASHVILLETNO-2","NASHVILLETNO-2",1302]
["NASHVILLE","TN","O-3","NASHVILLETNO-3","NASHVILLETNO-3",1341]
["NASHVILLE","TN","O-4","NASHVILLETNO-4","NASHVILLETNO-4",1410]
["NASHVILLE","TN","O-5","NASHVILLETNO-5","NASHVILLETNO-5",1488]
["NASHVILLE","TN","O-6","NASHVILLETNO-6","NASHVILLETNO-6",1503]
["NASHVILLE","TN","O-7","NASHVILLETNO-7","NASHVILLETNO-7",1518]
["JOHNSON CITY/KINGSPORT","TN","E-1",{"$f":"A7298&B7298&C7298","v":"JOHNSON CITY/KINGSPORTTNE-1"},"JOHNSON CITY/KINGSPORTTNE-1",624,624,624,624,624,732,870,888,927,1017,870,924,1026,1164,1188,891,996,1158,783,864,1056,1185,1200,1224,1248]
["JOHNSON CITY/KINGSPORT","TN","E-2","JOHNSON CITY/KINGSPORTTNE-2","JOHNSON CITY/KINGSPORTTNE-2",624]
["JOHNSON CITY/KINGSPORT","TN","E-3","JOHNSON CITY/KINGSPORTTNE-3","JOHNSON CITY/KINGSPORTTNE-3",624]
["JOHNSON CITY/KINGSPORT","TN","E-4","JOHNSON CITY/KINGSPORTTNE-4","JOHNSON CITY/KINGSPORTTNE-4",624]
["JOHNSON CITY/KINGSPORT","TN","E-5","JOHNSON CITY/KINGSPORTTNE-5","JOHNSON CITY/KINGSPORTTNE-5",732]
["JOHNSON CITY/KINGSPORT","TN","E-6","JOHNSON CITY/KINGSPORTTNE-6","JOHNSON CITY/KINGSPORTTNE-6",870]
["JOHNSON CITY/KINGSPORT","TN","E-7","JOHNSON CITY/KINGSPORTTNE-7","JOHNSON CITY/KINGSPORTTNE-7",888]
["JOHNSON CITY/KINGSPORT","TN","E-8","JOHNSON CITY/KINGSPORTTNE-8","JOHNSON CITY/KINGSPORTTNE-8",927]
["JOHNSON CITY/KINGSPORT","TN","E-9","JOHNSON CITY/KINGSPORTTNE-9","JOHNSON CITY/KINGSPORTTNE-9",1017]
["JOHNSON CITY/KINGSPORT","TN","W-1","JOHNSON CITY/KINGSPORTTNW-1","JOHNSON CITY/KINGSPORTTNW-1",870]
["JOHNSON CITY/KINGSPORT","TN","W-2","JOHNSON CITY/KINGSPORTTNW-2","JOHNSON CITY/KINGSPORTTNW-2",924]
["JOHNSON CITY/KINGSPORT","TN","W-3","JOHNSON CITY/KINGSPORTTNW-3","JOHNSON CITY/KINGSPORTTNW-3",1026]
["JOHNSON CITY/KINGSPORT","TN","W-4","JOHNSON CITY/KINGSPORTTNW-4","JOHNSON CITY/KINGSPORTTNW-4",1164]
["JOHNSON CITY/KINGSPORT","TN","W-5","JOHNSON CITY/KINGSPORTTNW-5","JOHNSON CITY/KINGSPORTTNW-5",1188]
["JOHNSON CITY/KINGSPORT","TN","O-1E","JOHNSON CITY/KINGSPORTTNO-1E","JOHNSON CITY/KINGSPORTTNO-1E",891]
["JOHNSON CITY/KINGSPORT","TN","O-2E","JOHNSON CITY/KINGSPORTTNO-2E","JOHNSON CITY/KINGSPORTTNO-2E",996]
["JOHNSON CITY/KINGSPORT","TN","O-3E","JOHNSON CITY/KINGSPORTTNO-3E","JOHNSON CITY/KINGSPORTTNO-3E",1158]
["JOHNSON CITY/KINGSPORT","TN","O-1","JOHNSON CITY/KINGSPORTTNO-1","JOHNSON CITY/KINGSPORTTNO-1",783]
["JOHNSON CITY/KINGSPORT","TN","O-2","JOHNSON CITY/KINGSPORTTNO-2","JOHNSON CITY/KINGSPORTTNO-2",864]
["JOHNSON CITY/KINGSPORT","TN","O-3","JOHNSON CITY/KINGSPORTTNO-3","JOHNSON CITY/KINGSPORTTNO-3",1056]
["JOHNSON CITY/KINGSPORT","TN","O-4","JOHNSON CITY/KINGSPORTTNO-4","JOHNSON CITY/KINGSPORTTNO-4",1185]
["JOHNSON CITY/KINGSPORT","TN","O-5","JOHNSON CITY/KINGSPORTTNO-5","JOHNSON CITY/KINGSPORTTNO-5",1200]
["JOHNSON CITY/KINGSPORT","TN","O-6","JOHNSON CITY/KINGSPORTTNO-6","JOHNSON CITY/KINGSPORTTNO-6",1224]
["JOHNSON CITY/KINGSPORT","TN","O-7","JOHNSON CITY/KINGSPORTTNO-7","JOHNSON CITY/KINGSPORTTNO-7",1248]
["MANCHESTER/TULLAHOMA","TN","E-1","MANCHESTER/TULLAHOMATNE-1","MANCHESTER/TULLAHOMATNE-1",645,645,645,645,645,678,819,840,942,999,819,939,1005,1098,1128,906,987,1092,696,870,1023,1125,1146,1176,1200]
["MANCHESTER/TULLAHOMA","TN","E-2","MANCHESTER/TULLAHOMATNE-2","MANCHESTER/TULLAHOMATNE-2",645]
["MANCHESTER/TULLAHOMA","TN","E-3","MANCHESTER/TULLAHOMATNE-3","MANCHESTER/TULLAHOMATNE-3",645]
["MANCHESTER/TULLAHOMA","TN","E-4","MANCHESTER/TULLAHOMATNE-4","MANCHESTER/TULLAHOMATNE-4",645]
["MANCHESTER/TULLAHOMA","TN","E-5","MANCHESTER/TULLAHOMATNE-5","MANCHESTER/TULLAHOMATNE-5",678]
["MANCHESTER/TULLAHOMA","TN","E-6","MANCHESTER/TULLAHOMATNE-6","MANCHESTER/TULLAHOMATNE-6",819]
["MANCHESTER/TULLAHOMA","TN","E-7","MANCHESTER/TULLAHOMATNE-7","MANCHESTER/TULLAHOMATNE-7",840]
["MANCHESTER/TULLAHOMA","TN","E-8","MANCHESTER/TULLAHOMATNE-8","MANCHESTER/TULLAHOMATNE-8",942]
["MANCHESTER/TULLAHOMA","TN","E-9","MANCHESTER/TULLAHOMATNE-9","MANCHESTER/TULLAHOMATNE-9",999]
["MANCHESTER/TULLAHOMA","TN","W-1","MANCHESTER/TULLAHOMATNW-1","MANCHESTER/TULLAHOMATNW-1",819]
["MANCHESTER/TULLAHOMA","TN","W-2","MANCHESTER/TULLAHOMATNW-2","MANCHESTER/TULLAHOMATNW-2",939]
["MANCHESTER/TULLAHOMA","TN","W-3","MANCHESTER/TULLAHOMATNW-3","MANCHESTER/TULLAHOMATNW-3",1005]
["MANCHESTER/TULLAHOMA","TN","W-4","MANCHESTER/TULLAHOMATNW-4","MANCHESTER/TULLAHOMATNW-4",1098]
["MANCHESTER/TULLAHOMA","TN","W-5","MANCHESTER/TULLAHOMATNW-5","MANCHESTER/TULLAHOMATNW-5",1128]
["MANCHESTER/TULLAHOMA","TN","O-1E","MANCHESTER/TULLAHOMATNO-1E","MANCHESTER/TULLAHOMATNO-1E",906]
["MANCHESTER/TULLAHOMA","TN","O-2E","MANCHESTER/TULLAHOMATNO-2E","MANCHESTER/TULLAHOMATNO-2E",987]
["MANCHESTER/TULLAHOMA","TN","O-3E","MANCHESTER/TULLAHOMATNO-3E","MANCHESTER/TULLAHOMATNO-3E",1092]
["MANCHESTER/TULLAHOMA","TN","O-1","MANCHESTER/TULLAHOMATNO-1","MANCHESTER/TULLAHOMATNO-1",696]
["MANCHESTER/TULLAHOMA","TN","O-2","MANCHESTER/TULLAHOMATNO-2","MANCHESTER/TULLAHOMATNO-2",870]
["MANCHESTER/TULLAHOMA","TN","O-3","MANCHESTER/TULLAHOMATNO-3","MANCHESTER/TULLAHOMATNO-3",1023]
["MANCHESTER/TULLAHOMA","TN","O-4","MANCHESTER/TULLAHOMATNO-4","MANCHESTER/TULLAHOMATNO-4",1125]
["MANCHESTER/TULLAHOMA","TN","O-5","MANCHESTER/TULLAHOMATNO-5","MANCHESTER/TULLAHOMATNO-5",1146]
["MANCHESTER/TULLAHOMA","TN","O-6","MANCHESTER/TULLAHOMATNO-6","MANCHESTER/TULLAHOMATNO-6",1176]
["MANCHESTER/TULLAHOMA","TN","O-7","MANCHESTER/TULLAHOMATNO-7","MANCHESTER/TULLAHOMATNO-7",1200]
["JACKSON","TN","E-1","JACKSONTNE-1","JACKSONTNE-1",693,693,693,693,693,792,846,882,936,960,867,936,963,1005,1041,921,954,996,840,906,969,1035,1125,1134,1146]
["JACKSON","TN","E-2","JACKSONTNE-2","JACKSONTNE-2",693]
["JACKSON","TN","E-3","JACKSONTNE-3","JACKSONTNE-3",693]
["JACKSON","TN","E-4","JACKSONTNE-4","JACKSONTNE-4",693]
["JACKSON","TN","E-5","JACKSONTNE-5","JACKSONTNE-5",792]
["JACKSON","TN","E-6","JACKSONTNE-6","JACKSONTNE-6",846]
["JACKSON","TN","E-7","JACKSONTNE-7","JACKSONTNE-7",882]
["JACKSON","TN","E-8","JACKSONTNE-8","JACKSONTNE-8",936]
["JACKSON","TN","E-9","JACKSONTNE-9","JACKSONTNE-9",960]
["JACKSON","TN","W-1","JACKSONTNW-1","JACKSONTNW-1",867]
["JACKSON","TN","W-2","JACKSONTNW-2","JACKSONTNW-2",936]
["JACKSON","TN","W-3","JACKSONTNW-3","JACKSONTNW-3",963]
["JACKSON","TN","W-4","JACKSONTNW-4","JACKSONTNW-4",1005]
["JACKSON","TN","W-5","JACKSONTNW-5","JACKSONTNW-5",1041]
["JACKSON","TN","O-1E","JACKSONTNO-1E","JACKSONTNO-1E",921]
["JACKSON","TN","O-2E","JACKSONTNO-2E","JACKSONTNO-2E",954]
["JACKSON","TN","O-3E",{"$f":"A7362&B7362&C7362","v":"JACKSONTNO-3E"},"JACKSONTNO-3E",996]
["JACKSON","TN","O-1","JACKSONTNO-1","JACKSONTNO-1",840]
["JACKSON","TN","O-2","JACKSONTNO-2","JACKSONTNO-2",906]
["JACKSON","TN","O-3","JACKSONTNO-3","JACKSONTNO-3",969]
["JACKSON","TN","O-4","JACKSONTNO-4","JACKSONTNO-4",1035]
["JACKSON","TN","O-5","JACKSONTNO-5","JACKSONTNO-5",1125]
["JACKSON","TN","O-6","JACKSONTNO-6","JACKSONTNO-6",1134]
["JACKSON","TN","O-7","JACKSONTNO-7","JACKSONTNO-7",1146]
["ABILENE/DYESS AFB","TX","E-1","ABILENE/DYESS AFBTXE-1","ABILENE/DYESS AFBTXE-1",771,771,771,771,771,882,945,1011,1098,1134,978,1098,1137,1212,1296,1074,1125,1191,936,1050,1149,1284,1341,1428,1458]
["ABILENE/DYESS AFB","TX","E-2","ABILENE/DYESS AFBTXE-2","ABILENE/DYESS AFBTXE-2",771]
["ABILENE/DYESS AFB","TX","E-3","ABILENE/DYESS AFBTXE-3","ABILENE/DYESS AFBTXE-3",771]
["ABILENE/DYESS AFB","TX","E-4","ABILENE/DYESS AFBTXE-4","ABILENE/DYESS AFBTXE-4",771]
["ABILENE/DYESS AFB","TX","E-5","ABILENE/DYESS AFBTXE-5","ABILENE/DYESS AFBTXE-5",882]
["ABILENE/DYESS AFB","TX","E-6","ABILENE/DYESS AFBTXE-6","ABILENE/DYESS AFBTXE-6",945]
["ABILENE/DYESS AFB","TX","E-7","ABILENE/DYESS AFBTXE-7","ABILENE/DYESS AFBTXE-7",1011]
["ABILENE/DYESS AFB","TX","E-8","ABILENE/DYESS AFBTXE-8","ABILENE/DYESS AFBTXE-8",1098]
["ABILENE/DYESS AFB","TX","E-9","ABILENE/DYESS AFBTXE-9","ABILENE/DYESS AFBTXE-9",1134]
["ABILENE/DYESS AFB","TX","W-1","ABILENE/DYESS AFBTXW-1","ABILENE/DYESS AFBTXW-1",978]
["ABILENE/DYESS AFB","TX","W-2","ABILENE/DYESS AFBTXW-2","ABILENE/DYESS AFBTXW-2",1098]
["ABILENE/DYESS AFB","TX","W-3","ABILENE/DYESS AFBTXW-3","ABILENE/DYESS AFBTXW-3",1137]
["ABILENE/DYESS AFB","TX","W-4","ABILENE/DYESS AFBTXW-4","ABILENE/DYESS AFBTXW-4",1212]
["ABILENE/DYESS AFB","TX","W-5","ABILENE/DYESS AFBTXW-5","ABILENE/DYESS AFBTXW-5",1296]
["ABILENE/DYESS AFB","TX","O-1E","ABILENE/DYESS AFBTXO-1E","ABILENE/DYESS AFBTXO-1E",1074]
["ABILENE/DYESS AFB","TX","O-2E","ABILENE/DYESS AFBTXO-2E","ABILENE/DYESS AFBTXO-2E",1125]
["ABILENE/DYESS AFB","TX","O-3E","ABILENE/DYESS AFBTXO-3E","ABILENE/DYESS AFBTXO-3E",1191]
["ABILENE/DYESS AFB","TX","O-1","ABILENE/DYESS AFBTXO-1","ABILENE/DYESS AFBTXO-1",936]
["ABILENE/DYESS AFB","TX","O-2","ABILENE/DYESS AFBTXO-2","ABILENE/DYESS AFBTXO-2",1050]
["ABILENE/DYESS AFB","TX","O-3","ABILENE/DYESS AFBTXO-3","ABILENE/DYESS AFBTXO-3",1149]
["ABILENE/DYESS AFB","TX","O-4","ABILENE/DYESS AFBTXO-4","ABILENE/DYESS AFBTXO-4",1284]
["ABILENE/DYESS AFB","TX","O-5","ABILENE/DYESS AFBTXO-5","ABILENE/DYESS AFBTXO-5",1341]
["ABILENE/DYESS AFB","TX","O-6","ABILENE/DYESS AFBTXO-6","ABILENE/DYESS AFBTXO-6",1428]
["ABILENE/DYESS AFB","TX","O-7","ABILENE/DYESS AFBTXO-7","ABILENE/DYESS AFBTXO-7",1458]
["AMARILLO","TX","E-1","AMARILLOTXE-1","AMARILLOTXE-1",675,675,675,675,675,750,894,927,1026,1092,897,1026,1098,1203,1248,984,1077,1194,810,954,1119,1242,1287,1317,1341]
["AMARILLO","TX","E-2","AMARILLOTXE-2","AMARILLOTXE-2",675]
["AMARILLO","TX","E-3","AMARILLOTXE-3","AMARILLOTXE-3",675]
["AMARILLO","TX","E-4","AMARILLOTXE-4","AMARILLOTXE-4",675]
["AMARILLO","TX","E-5","AMARILLOTXE-5","AMARILLOTXE-5",750]
["AMARILLO","TX","E-6","AMARILLOTXE-6","AMARILLOTXE-6",894]
["AMARILLO","TX","E-7","AMARILLOTXE-7","AMARILLOTXE-7",927]
["AMARILLO","TX","E-8","AMARILLOTXE-8","AMARILLOTXE-8",1026]
["AMARILLO","TX","E-9","AMARILLOTXE-9","AMARILLOTXE-9",1092]
["AMARILLO","TX","W-1","AMARILLOTXW-1","AMARILLOTXW-1",897]
["AMARILLO","TX","W-2","AMARILLOTXW-2","AMARILLOTXW-2",1026]
["AMARILLO","TX","W-3","AMARILLOTXW-3","AMARILLOTXW-3",1098]
["AMARILLO","TX","W-4","AMARILLOTXW-4","AMARILLOTXW-4",1203]
["AMARILLO","TX","W-5","AMARILLOTXW-5","AMARILLOTXW-5",1248]
["AMARILLO","TX","O-1E","AMARILLOTXO-1E","AMARILLOTXO-1E",984]
["AMARILLO","TX","O-2E","AMARILLOTXO-2E","AMARILLOTXO-2E",1077]
["AMARILLO","TX","O-3E","AMARILLOTXO-3E","AMARILLOTXO-3E",1194]
["AMARILLO","TX","O-1","AMARILLOTXO-1","AMARILLOTXO-1",810]
["AMARILLO","TX","O-2","AMARILLOTXO-2","AMARILLOTXO-2",954]
["AMARILLO","TX","O-3","AMARILLOTXO-3","AMARILLOTXO-3",1119]
["AMARILLO","TX","O-4","AMARILLOTXO-4","AMARILLOTXO-4",1242]
["AMARILLO","TX","O-5","AMARILLOTXO-5","AMARILLOTXO-5",1287]
["AMARILLO","TX","O-6","AMARILLOTXO-6","AMARILLOTXO-6",1317]
["AMARILLO","TX","O-7","AMARILLOTXO-7","AMARILLOTXO-7",1341]
["AUSTIN","TX","E-1","AUSTINTXE-1","AUSTINTXE-1",858,858,858,858,858,963,1056,1152,1287,1332,1101,1284,1338,1416,1461,1257,1323,1407,1032,1218,1353,1455,1482,1530,1560]
["AUSTIN","TX","E-2","AUSTINTXE-2","AUSTINTXE-2",858]
["AUSTIN","TX","E-3","AUSTINTXE-3","AUSTINTXE-3",858]
["AUSTIN","TX","E-4","AUSTINTXE-4","AUSTINTXE-4",858]
["AUSTIN","TX","E-5","AUSTINTXE-5","AUSTINTXE-5",963]
["AUSTIN","TX","E-6","AUSTINTXE-6","AUSTINTXE-6",1056]
["AUSTIN","TX","E-7","AUSTINTXE-7","AUSTINTXE-7",1152]
["AUSTIN","TX","E-8","AUSTINTXE-8","AUSTINTXE-8",1287]
["AUSTIN","TX","E-9",{"$f":"A7426&B7426&C7426","v":"AUSTINTXE-9"},"AUSTINTXE-9",1332]
["AUSTIN","TX","W-1","AUSTINTXW-1","AUSTINTXW-1",1101]
["AUSTIN","TX","W-2","AUSTINTXW-2","AUSTINTXW-2",1284]
["AUSTIN","TX","W-3","AUSTINTXW-3","AUSTINTXW-3",1338]
["AUSTIN","TX","W-4","AUSTINTXW-4","AUSTINTXW-4",1416]
["AUSTIN","TX","W-5","AUSTINTXW-5","AUSTINTXW-5",1461]
["AUSTIN","TX","O-1E","AUSTINTXO-1E","AUSTINTXO-1E",1257]
["AUSTIN","TX","O-2E","AUSTINTXO-2E","AUSTINTXO-2E",1323]
["AUSTIN","TX","O-3E","AUSTINTXO-3E","AUSTINTXO-3E",1407]
["AUSTIN","TX","O-1","AUSTINTXO-1","AUSTINTXO-1",1032]
["AUSTIN","TX","O-2","AUSTINTXO-2","AUSTINTXO-2",1218]
["AUSTIN","TX","O-3","AUSTINTXO-3","AUSTINTXO-3",1353]
["AUSTIN","TX","O-4","AUSTINTXO-4","AUSTINTXO-4",1455]
["AUSTIN","TX","O-5","AUSTINTXO-5","AUSTINTXO-5",1482]
["AUSTIN","TX","O-6","AUSTINTXO-6","AUSTINTXO-6",1530]
["AUSTIN","TX","O-7","AUSTINTXO-7","AUSTINTXO-7",1560]
["BEAUMONT","TX","E-1","BEAUMONTTXE-1","BEAUMONTTXE-1",888,888,888,888,888,1011,1209,1248,1335,1443,1209,1332,1452,1626,1677,1266,1419,1611,1104,1239,1488,1671,1704,1758,1794]
["BEAUMONT","TX","E-2","BEAUMONTTXE-2","BEAUMONTTXE-2",888]
["BEAUMONT","TX","E-3","BEAUMONTTXE-3","BEAUMONTTXE-3",888]
["BEAUMONT","TX","E-4","BEAUMONTTXE-4","BEAUMONTTXE-4",888]
["BEAUMONT","TX","E-5","BEAUMONTTXE-5","BEAUMONTTXE-5",1011]
["BEAUMONT","TX","E-6","BEAUMONTTXE-6","BEAUMONTTXE-6",1209]
["BEAUMONT","TX","E-7","BEAUMONTTXE-7","BEAUMONTTXE-7",1248]
["BEAUMONT","TX","E-8","BEAUMONTTXE-8","BEAUMONTTXE-8",1335]
["BEAUMONT","TX","E-9","BEAUMONTTXE-9","BEAUMONTTXE-9",1443]
["BEAUMONT","TX","W-1","BEAUMONTTXW-1","BEAUMONTTXW-1",1209]
["BEAUMONT","TX","W-2","BEAUMONTTXW-2","BEAUMONTTXW-2",1332]
["BEAUMONT","TX","W-3","BEAUMONTTXW-3","BEAUMONTTXW-3",1452]
["BEAUMONT","TX","W-4","BEAUMONTTXW-4","BEAUMONTTXW-4",1626]
["BEAUMONT","TX","W-5","BEAUMONTTXW-5","BEAUMONTTXW-5",1677]
["BEAUMONT","TX","O-1E","BEAUMONTTXO-1E","BEAUMONTTXO-1E",1266]
["BEAUMONT","TX","O-2E","BEAUMONTTXO-2E","BEAUMONTTXO-2E",1419]
["BEAUMONT","TX","O-3E","BEAUMONTTXO-3E","BEAUMONTTXO-3E",1611]
["BEAUMONT","TX","O-1","BEAUMONTTXO-1","BEAUMONTTXO-1",1104]
["BEAUMONT","TX","O-2","BEAUMONTTXO-2","BEAUMONTTXO-2",1239]
["BEAUMONT","TX","O-3","BEAUMONTTXO-3","BEAUMONTTXO-3",1488]
["BEAUMONT","TX","O-4","BEAUMONTTXO-4","BEAUMONTTXO-4",1671]
["BEAUMONT","TX","O-5","BEAUMONTTXO-5","BEAUMONTTXO-5",1704]
["BEAUMONT","TX","O-6","BEAUMONTTXO-6","BEAUMONTTXO-6",1758]
["BEAUMONT","TX","O-7","BEAUMONTTXO-7","BEAUMONTTXO-7",1794]
["COLLEGE STATION","TX","E-1","COLLEGE STATIONTXE-1","COLLEGE STATIONTXE-1",765,765,765,765,765,804,978,1011,1098,1179,981,1095,1185,1317,1359,1047,1161,1305,825,1008,1212,1353,1560,1575,1593]
["COLLEGE STATION","TX","E-2","COLLEGE STATIONTXE-2","COLLEGE STATIONTXE-2",765]
["COLLEGE STATION","TX","E-3","COLLEGE STATIONTXE-3","COLLEGE STATIONTXE-3",765]
["COLLEGE STATION","TX","E-4","COLLEGE STATIONTXE-4","COLLEGE STATIONTXE-4",765]
["COLLEGE STATION","TX","E-5","COLLEGE STATIONTXE-5","COLLEGE STATIONTXE-5",804]
["COLLEGE STATION","TX","E-6","COLLEGE STATIONTXE-6","COLLEGE STATIONTXE-6",978]
["COLLEGE STATION","TX","E-7","COLLEGE STATIONTXE-7","COLLEGE STATIONTXE-7",1011]
["COLLEGE STATION","TX","E-8","COLLEGE STATIONTXE-8","COLLEGE STATIONTXE-8",1098]
["COLLEGE STATION","TX","E-9","COLLEGE STATIONTXE-9","COLLEGE STATIONTXE-9",1179]
["COLLEGE STATION","TX","W-1","COLLEGE STATIONTXW-1","COLLEGE STATIONTXW-1",981]
["COLLEGE STATION","TX","W-2","COLLEGE STATIONTXW-2","COLLEGE STATIONTXW-2",1095]
["COLLEGE STATION","TX","W-3","COLLEGE STATIONTXW-3","COLLEGE STATIONTXW-3",1185]
["COLLEGE STATION","TX","W-4","COLLEGE STATIONTXW-4","COLLEGE STATIONTXW-4",1317]
["COLLEGE STATION","TX","W-5","COLLEGE STATIONTXW-5","COLLEGE STATIONTXW-5",1359]
["COLLEGE STATION","TX","O-1E","COLLEGE STATIONTXO-1E","COLLEGE STATIONTXO-1E",1047]
["COLLEGE STATION","TX","O-2E","COLLEGE STATIONTXO-2E","COLLEGE STATIONTXO-2E",1161]
["COLLEGE STATION","TX","O-3E","COLLEGE STATIONTXO-3E","COLLEGE STATIONTXO-3E",1305]
["COLLEGE STATION","TX","O-1","COLLEGE STATIONTXO-1","COLLEGE STATIONTXO-1",825]
["COLLEGE STATION","TX","O-2","COLLEGE STATIONTXO-2","COLLEGE STATIONTXO-2",1008]
["COLLEGE STATION","TX","O-3","COLLEGE STATIONTXO-3","COLLEGE STATIONTXO-3",1212]
["COLLEGE STATION","TX","O-4","COLLEGE STATIONTXO-4","COLLEGE STATIONTXO-4",1353]
["COLLEGE STATION","TX","O-5","COLLEGE STATIONTXO-5","COLLEGE STATIONTXO-5",1560]
["COLLEGE STATION","TX","O-6","COLLEGE STATIONTXO-6","COLLEGE STATIONTXO-6",1575]
["COLLEGE STATION","TX","O-7","COLLEGE STATIONTXO-7","COLLEGE STATIONTXO-7",1593]
["CORPUS CHRISTI","TX","E-1",{"$f":"A7490&B7490&C7490","v":"CORPUS CHRISTITXE-1"},"CORPUS CHRISTITXE-1",852,852,852,852,852,957,1212,1236,1326,1437,1212,1320,1449,1626,1656,1251,1413,1617,1020,1212,1485,1650,1671,1704,1737]
["CORPUS CHRISTI","TX","E-2","CORPUS CHRISTITXE-2","CORPUS CHRISTITXE-2",852]
["CORPUS CHRISTI","TX","E-3","CORPUS CHRISTITXE-3","CORPUS CHRISTITXE-3",852]
["CORPUS CHRISTI","TX","E-4","CORPUS CHRISTITXE-4","CORPUS CHRISTITXE-4",852]
["CORPUS CHRISTI","TX","E-5","CORPUS CHRISTITXE-5","CORPUS CHRISTITXE-5",957]
["CORPUS CHRISTI","TX","E-6","CORPUS CHRISTITXE-6","CORPUS CHRISTITXE-6",1212]
["CORPUS CHRISTI","TX","E-7","CORPUS CHRISTITXE-7","CORPUS CHRISTITXE-7",1236]
["CORPUS CHRISTI","TX","E-8","CORPUS CHRISTITXE-8","CORPUS CHRISTITXE-8",1326]
["CORPUS CHRISTI","TX","E-9","CORPUS CHRISTITXE-9","CORPUS CHRISTITXE-9",1437]
["CORPUS CHRISTI","TX","W-1","CORPUS CHRISTITXW-1","CORPUS CHRISTITXW-1",1212]
["CORPUS CHRISTI","TX","W-2","CORPUS CHRISTITXW-2","CORPUS CHRISTITXW-2",1320]
["CORPUS CHRISTI","TX","W-3","CORPUS CHRISTITXW-3","CORPUS CHRISTITXW-3",1449]
["CORPUS CHRISTI","TX","W-4","CORPUS CHRISTITXW-4","CORPUS CHRISTITXW-4",1626]
["CORPUS CHRISTI","TX","W-5","CORPUS CHRISTITXW-5","CORPUS CHRISTITXW-5",1656]
["CORPUS CHRISTI","TX","O-1E","CORPUS CHRISTITXO-1E","CORPUS CHRISTITXO-1E",1251]
["CORPUS CHRISTI","TX","O-2E","CORPUS CHRISTITXO-2E","CORPUS CHRISTITXO-2E",1413]
["CORPUS CHRISTI","TX","O-3E","CORPUS CHRISTITXO-3E","CORPUS CHRISTITXO-3E",1617]
["CORPUS CHRISTI","TX","O-1","CORPUS CHRISTITXO-1","CORPUS CHRISTITXO-1",1020]
["CORPUS CHRISTI","TX","O-2","CORPUS CHRISTITXO-2","CORPUS CHRISTITXO-2",1212]
["CORPUS CHRISTI","TX","O-3","CORPUS CHRISTITXO-3","CORPUS CHRISTITXO-3",1485]
["CORPUS CHRISTI","TX","O-4","CORPUS CHRISTITXO-4","CORPUS CHRISTITXO-4",1650]
["CORPUS CHRISTI","TX","O-5","CORPUS CHRISTITXO-5","CORPUS CHRISTITXO-5",1671]
["CORPUS CHRISTI","TX","O-6","CORPUS CHRISTITXO-6","CORPUS CHRISTITXO-6",1704]
["CORPUS CHRISTI","TX","O-7","CORPUS CHRISTITXO-7","CORPUS CHRISTITXO-7",1737]
["KINGSVILLE","TX","E-1","KINGSVILLETXE-1","KINGSVILLETXE-1",843,843,843,843,843,954,1188,1203,1302,1410,1188,1296,1422,1587,1608,1230,1386,1584,1017,1194,1455,1605,1617,1638,1671]
["KINGSVILLE","TX","E-2","KINGSVILLETXE-2","KINGSVILLETXE-2",843]
["KINGSVILLE","TX","E-3","KINGSVILLETXE-3","KINGSVILLETXE-3",843]
["KINGSVILLE","TX","E-4","KINGSVILLETXE-4","KINGSVILLETXE-4",843]
["KINGSVILLE","TX","E-5","KINGSVILLETXE-5","KINGSVILLETXE-5",954]
["KINGSVILLE","TX","E-6","KINGSVILLETXE-6","KINGSVILLETXE-6",1188]
["KINGSVILLE","TX","E-7","KINGSVILLETXE-7","KINGSVILLETXE-7",1203]
["KINGSVILLE","TX","E-8","KINGSVILLETXE-8","KINGSVILLETXE-8",1302]
["KINGSVILLE","TX","E-9","KINGSVILLETXE-9","KINGSVILLETXE-9",1410]
["KINGSVILLE","TX","W-1","KINGSVILLETXW-1","KINGSVILLETXW-1",1188]
["KINGSVILLE","TX","W-2","KINGSVILLETXW-2","KINGSVILLETXW-2",1296]
["KINGSVILLE","TX","W-3","KINGSVILLETXW-3","KINGSVILLETXW-3",1422]
["KINGSVILLE","TX","W-4","KINGSVILLETXW-4","KINGSVILLETXW-4",1587]
["KINGSVILLE","TX","W-5","KINGSVILLETXW-5","KINGSVILLETXW-5",1608]
["KINGSVILLE","TX","O-1E","KINGSVILLETXO-1E","KINGSVILLETXO-1E",1230]
["KINGSVILLE","TX","O-2E","KINGSVILLETXO-2E","KINGSVILLETXO-2E",1386]
["KINGSVILLE","TX","O-3E","KINGSVILLETXO-3E","KINGSVILLETXO-3E",1584]
["KINGSVILLE","TX","O-1","KINGSVILLETXO-1","KINGSVILLETXO-1",1017]
["KINGSVILLE","TX","O-2","KINGSVILLETXO-2","KINGSVILLETXO-2",1194]
["KINGSVILLE","TX","O-3","KINGSVILLETXO-3","KINGSVILLETXO-3",1455]
["KINGSVILLE","TX","O-4","KINGSVILLETXO-4","KINGSVILLETXO-4",1605]
["KINGSVILLE","TX","O-5","KINGSVILLETXO-5","KINGSVILLETXO-5",1617]
["KINGSVILLE","TX","O-6","KINGSVILLETXO-6","KINGSVILLETXO-6",1638]
["KINGSVILLE","TX","O-7","KINGSVILLETXO-7","KINGSVILLETXO-7",1671]
["DALLAS","TX","E-1","DALLASTXE-1","DALLASTXE-1",990,990,990,990,990,1134,1230,1326,1458,1515,1281,1458,1518,1611,1656,1425,1500,1599,1215,1389,1536,1650,1677,1722,1758]
["DALLAS","TX","E-2","DALLASTXE-2","DALLASTXE-2",990]
["DALLAS","TX","E-3","DALLASTXE-3","DALLASTXE-3",990]
["DALLAS","TX","E-4","DALLASTXE-4","DALLASTXE-4",990]
["DALLAS","TX","E-5","DALLASTXE-5","DALLASTXE-5",1134]
["DALLAS","TX","E-6","DALLASTXE-6","DALLASTXE-6",1230]
["DALLAS","TX","E-7","DALLASTXE-7","DALLASTXE-7",1326]
["DALLAS","TX","E-8","DALLASTXE-8","DALLASTXE-8",1458]
["DALLAS","TX","E-9","DALLASTXE-9","DALLASTXE-9",1515]
["DALLAS","TX","W-1","DALLASTXW-1","DALLASTXW-1",1281]
["DALLAS","TX","W-2","DALLASTXW-2","DALLASTXW-2",1458]
["DALLAS","TX","W-3","DALLASTXW-3","DALLASTXW-3",1518]
["DALLAS","TX","W-4","DALLASTXW-4","DALLASTXW-4",1611]
["DALLAS","TX","W-5","DALLASTXW-5","DALLASTXW-5",1656]
["DALLAS","TX","O-1E","DALLASTXO-1E","DALLASTXO-1E",1425]
["DALLAS","TX","O-2E","DALLASTXO-2E","DALLASTXO-2E",1500]
["DALLAS","TX","O-3E",{"$f":"A7554&B7554&C7554","v":"DALLASTXO-3E"},"DALLASTXO-3E",1599]
["DALLAS","TX","O-1","DALLASTXO-1","DALLASTXO-1",1215]
["DALLAS","TX","O-2","DALLASTXO-2","DALLASTXO-2",1389]
["DALLAS","TX","O-3","DALLASTXO-3","DALLASTXO-3",1536]
["DALLAS","TX","O-4","DALLASTXO-4","DALLASTXO-4",1650]
["DALLAS","TX","O-5","DALLASTXO-5","DALLASTXO-5",1677]
["DALLAS","TX","O-6","DALLASTXO-6","DALLASTXO-6",1722]
["DALLAS","TX","O-7","DALLASTXO-7","DALLASTXO-7",1758]
["LAUGHLIN AFB/DEL RIO","TX","E-1","LAUGHLIN AFB/DEL RIOTXE-1","LAUGHLIN AFB/DEL RIOTXE-1",666,666,666,666,666,774,996,1002,1089,1182,996,1086,1191,1329,1341,1029,1161,1326,798,990,1218,1338,1452,1464,1479]
["LAUGHLIN AFB/DEL RIO","TX","E-2","LAUGHLIN AFB/DEL RIOTXE-2","LAUGHLIN AFB/DEL RIOTXE-2",666]
["LAUGHLIN AFB/DEL RIO","TX","E-3","LAUGHLIN AFB/DEL RIOTXE-3","LAUGHLIN AFB/DEL RIOTXE-3",666]
["LAUGHLIN AFB/DEL RIO","TX","E-4","LAUGHLIN AFB/DEL RIOTXE-4","LAUGHLIN AFB/DEL RIOTXE-4",666]
["LAUGHLIN AFB/DEL RIO","TX","E-5","LAUGHLIN AFB/DEL RIOTXE-5","LAUGHLIN AFB/DEL RIOTXE-5",774]
["LAUGHLIN AFB/DEL RIO","TX","E-6","LAUGHLIN AFB/DEL RIOTXE-6","LAUGHLIN AFB/DEL RIOTXE-6",996]
["LAUGHLIN AFB/DEL RIO","TX","E-7","LAUGHLIN AFB/DEL RIOTXE-7","LAUGHLIN AFB/DEL RIOTXE-7",1002]
["LAUGHLIN AFB/DEL RIO","TX","E-8","LAUGHLIN AFB/DEL RIOTXE-8","LAUGHLIN AFB/DEL RIOTXE-8",1089]
["LAUGHLIN AFB/DEL RIO","TX","E-9","LAUGHLIN AFB/DEL RIOTXE-9","LAUGHLIN AFB/DEL RIOTXE-9",1182]
["LAUGHLIN AFB/DEL RIO","TX","W-1","LAUGHLIN AFB/DEL RIOTXW-1","LAUGHLIN AFB/DEL RIOTXW-1",996]
["LAUGHLIN AFB/DEL RIO","TX","W-2","LAUGHLIN AFB/DEL RIOTXW-2","LAUGHLIN AFB/DEL RIOTXW-2",1086]
["LAUGHLIN AFB/DEL RIO","TX","W-3","LAUGHLIN AFB/DEL RIOTXW-3","LAUGHLIN AFB/DEL RIOTXW-3",1191]
["LAUGHLIN AFB/DEL RIO","TX","W-4","LAUGHLIN AFB/DEL RIOTXW-4","LAUGHLIN AFB/DEL RIOTXW-4",1329]
["LAUGHLIN AFB/DEL RIO","TX","W-5","LAUGHLIN AFB/DEL RIOTXW-5","LAUGHLIN AFB/DEL RIOTXW-5",1341]
["LAUGHLIN AFB/DEL RIO","TX","O-1E","LAUGHLIN AFB/DEL RIOTXO-1E","LAUGHLIN AFB/DEL RIOTXO-1E",1029]
["LAUGHLIN AFB/DEL RIO","TX","O-2E","LAUGHLIN AFB/DEL RIOTXO-2E","LAUGHLIN AFB/DEL RIOTXO-2E",1161]
["LAUGHLIN AFB/DEL RIO","TX","O-3E","LAUGHLIN AFB/DEL RIOTXO-3E","LAUGHLIN AFB/DEL RIOTXO-3E",1326]
["LAUGHLIN AFB/DEL RIO","TX","O-1","LAUGHLIN AFB/DEL RIOTXO-1","LAUGHLIN AFB/DEL RIOTXO-1",798]
["LAUGHLIN AFB/DEL RIO","TX","O-2","LAUGHLIN AFB/DEL RIOTXO-2","LAUGHLIN AFB/DEL RIOTXO-2",990]
["LAUGHLIN AFB/DEL RIO","TX","O-3","LAUGHLIN AFB/DEL RIOTXO-3","LAUGHLIN AFB/DEL RIOTXO-3",1218]
["LAUGHLIN AFB/DEL RIO","TX","O-4","LAUGHLIN AFB/DEL RIOTXO-4","LAUGHLIN AFB/DEL RIOTXO-4",1338]
["LAUGHLIN AFB/DEL RIO","TX","O-5","LAUGHLIN AFB/DEL RIOTXO-5","LAUGHLIN AFB/DEL RIOTXO-5",1452]
["LAUGHLIN AFB/DEL RIO","TX","O-6","LAUGHLIN AFB/DEL RIOTXO-6","LAUGHLIN AFB/DEL RIOTXO-6",1464]
["LAUGHLIN AFB/DEL RIO","TX","O-7","LAUGHLIN AFB/DEL RIOTXO-7","LAUGHLIN AFB/DEL RIOTXO-7",1479]
["EL PASO","TX","E-1","EL PASOTXE-1","EL PASOTXE-1",726,726,726,726,726,825,882,927,1011,1071,906,1008,1077,1173,1215,972,1056,1164,876,957,1095,1209,1236,1278,1302]
["EL PASO","TX","E-2","EL PASOTXE-2","EL PASOTXE-2",726]
["EL PASO","TX","E-3","EL PASOTXE-3","EL PASOTXE-3",726]
["EL PASO","TX","E-4","EL PASOTXE-4","EL PASOTXE-4",726]
["EL PASO","TX","E-5","EL PASOTXE-5","EL PASOTXE-5",825]
["EL PASO","TX","E-6","EL PASOTXE-6","EL PASOTXE-6",882]
["EL PASO","TX","E-7","EL PASOTXE-7","EL PASOTXE-7",927]
["EL PASO","TX","E-8","EL PASOTXE-8","EL PASOTXE-8",1011]
["EL PASO","TX","E-9","EL PASOTXE-9","EL PASOTXE-9",1071]
["EL PASO","TX","W-1","EL PASOTXW-1","EL PASOTXW-1",906]
["EL PASO","TX","W-2","EL PASOTXW-2","EL PASOTXW-2",1008]
["EL PASO","TX","W-3","EL PASOTXW-3","EL PASOTXW-3",1077]
["EL PASO","TX","W-4","EL PASOTXW-4","EL PASOTXW-4",1173]
["EL PASO","TX","W-5","EL PASOTXW-5","EL PASOTXW-5",1215]
["EL PASO","TX","O-1E","EL PASOTXO-1E","EL PASOTXO-1E",972]
["EL PASO","TX","O-2E","EL PASOTXO-2E","EL PASOTXO-2E",1056]
["EL PASO","TX","O-3E","EL PASOTXO-3E","EL PASOTXO-3E",1164]
["EL PASO","TX","O-1","EL PASOTXO-1","EL PASOTXO-1",876]
["EL PASO","TX","O-2","EL PASOTXO-2","EL PASOTXO-2",957]
["EL PASO","TX","O-3","EL PASOTXO-3","EL PASOTXO-3",1095]
["EL PASO","TX","O-4","EL PASOTXO-4","EL PASOTXO-4",1209]
["EL PASO","TX","O-5","EL PASOTXO-5","EL PASOTXO-5",1236]
["EL PASO","TX","O-6","EL PASOTXO-6","EL PASOTXO-6",1278]
["EL PASO","TX","O-7","EL PASOTXO-7","EL PASOTXO-7",1302]
["BROWNSVILLE","TX","E-1","BROWNSVILLETXE-1","BROWNSVILLETXE-1",729,729,729,729,729,825,975,1017,1140,1200,975,1137,1206,1311,1368,1101,1188,1299,843,1056,1227,1362,1467,1482,1497]
["BROWNSVILLE","TX","E-2","BROWNSVILLETXE-2","BROWNSVILLETXE-2",729]
["BROWNSVILLE","TX","E-3","BROWNSVILLETXE-3","BROWNSVILLETXE-3",729]
["BROWNSVILLE","TX","E-4","BROWNSVILLETXE-4","BROWNSVILLETXE-4",729]
["BROWNSVILLE","TX","E-5","BROWNSVILLETXE-5","BROWNSVILLETXE-5",825]
["BROWNSVILLE","TX","E-6","BROWNSVILLETXE-6","BROWNSVILLETXE-6",975]
["BROWNSVILLE","TX","E-7","BROWNSVILLETXE-7","BROWNSVILLETXE-7",1017]
["BROWNSVILLE","TX","E-8","BROWNSVILLETXE-8","BROWNSVILLETXE-8",1140]
["BROWNSVILLE","TX","E-9",{"$f":"A7618&B7618&C7618","v":"BROWNSVILLETXE-9"},"BROWNSVILLETXE-9",1200]
["BROWNSVILLE","TX","W-1","BROWNSVILLETXW-1","BROWNSVILLETXW-1",975]
["BROWNSVILLE","TX","W-2","BROWNSVILLETXW-2","BROWNSVILLETXW-2",1137]
["BROWNSVILLE","TX","W-3","BROWNSVILLETXW-3","BROWNSVILLETXW-3",1206]
["BROWNSVILLE","TX","W-4","BROWNSVILLETXW-4","BROWNSVILLETXW-4",1311]
["BROWNSVILLE","TX","W-5","BROWNSVILLETXW-5","BROWNSVILLETXW-5",1368]
["BROWNSVILLE","TX","O-1E","BROWNSVILLETXO-1E","BROWNSVILLETXO-1E",1101]
["BROWNSVILLE","TX","O-2E","BROWNSVILLETXO-2E","BROWNSVILLETXO-2E",1188]
["BROWNSVILLE","TX","O-3E","BROWNSVILLETXO-3E","BROWNSVILLETXO-3E",1299]
["BROWNSVILLE","TX","O-1","BROWNSVILLETXO-1","BROWNSVILLETXO-1",843]
["BROWNSVILLE","TX","O-2","BROWNSVILLETXO-2","BROWNSVILLETXO-2",1056]
["BROWNSVILLE","TX","O-3","BROWNSVILLETXO-3","BROWNSVILLETXO-3",1227]
["BROWNSVILLE","TX","O-4","BROWNSVILLETXO-4","BROWNSVILLETXO-4",1362]
["BROWNSVILLE","TX","O-5","BROWNSVILLETXO-5","BROWNSVILLETXO-5",1467]
["BROWNSVILLE","TX","O-6","BROWNSVILLETXO-6","BROWNSVILLETXO-6",1482]
["BROWNSVILLE","TX","O-7","BROWNSVILLETXO-7","BROWNSVILLETXO-7",1497]
["HOUSTON","TX","E-1","HOUSTONTXE-1","HOUSTONTXE-1",1041,1041,1041,1041,1041,1167,1443,1464,1629,1743,1443,1626,1755,1929,1962,1557,1716,1923,1221,1500,1791,1956,1977,2007,2049]
["HOUSTON","TX","E-2","HOUSTONTXE-2","HOUSTONTXE-2",1041]
["HOUSTON","TX","E-3","HOUSTONTXE-3","HOUSTONTXE-3",1041]
["HOUSTON","TX","E-4","HOUSTONTXE-4","HOUSTONTXE-4",1041]
["HOUSTON","TX","E-5","HOUSTONTXE-5","HOUSTONTXE-5",1167]
["HOUSTON","TX","E-6","HOUSTONTXE-6","HOUSTONTXE-6",1443]
["HOUSTON","TX","E-7","HOUSTONTXE-7","HOUSTONTXE-7",1464]
["HOUSTON","TX","E-8","HOUSTONTXE-8","HOUSTONTXE-8",1629]
["HOUSTON","TX","E-9","HOUSTONTXE-9","HOUSTONTXE-9",1743]
["HOUSTON","TX","W-1","HOUSTONTXW-1","HOUSTONTXW-1",1443]
["HOUSTON","TX","W-2","HOUSTONTXW-2","HOUSTONTXW-2",1626]
["HOUSTON","TX","W-3","HOUSTONTXW-3","HOUSTONTXW-3",1755]
["HOUSTON","TX","W-4","HOUSTONTXW-4","HOUSTONTXW-4",1929]
["HOUSTON","TX","W-5","HOUSTONTXW-5","HOUSTONTXW-5",1962]
["HOUSTON","TX","O-1E","HOUSTONTXO-1E","HOUSTONTXO-1E",1557]
["HOUSTON","TX","O-2E","HOUSTONTXO-2E","HOUSTONTXO-2E",1716]
["HOUSTON","TX","O-3E","HOUSTONTXO-3E","HOUSTONTXO-3E",1923]
["HOUSTON","TX","O-1","HOUSTONTXO-1","HOUSTONTXO-1",1221]
["HOUSTON","TX","O-2","HOUSTONTXO-2","HOUSTONTXO-2",1500]
["HOUSTON","TX","O-3","HOUSTONTXO-3","HOUSTONTXO-3",1791]
["HOUSTON","TX","O-4","HOUSTONTXO-4","HOUSTONTXO-4",1956]
["HOUSTON","TX","O-5","HOUSTONTXO-5","HOUSTONTXO-5",1977]
["HOUSTON","TX","O-6","HOUSTONTXO-6","HOUSTONTXO-6",2007]
["HOUSTON","TX","O-7","HOUSTONTXO-7","HOUSTONTXO-7",2049]
["LUBBOCK/REESE AFB","TX","E-1","LUBBOCK/REESE AFBTXE-1","LUBBOCK/REESE AFBTXE-1",741,741,741,741,741,834,918,993,1095,1140,957,1095,1143,1218,1260,1068,1128,1206,906,1041,1158,1254,1284,1326,1353]
["LUBBOCK/REESE AFB","TX","E-2","LUBBOCK/REESE AFBTXE-2","LUBBOCK/REESE AFBTXE-2",741]
["LUBBOCK/REESE AFB","TX","E-3","LUBBOCK/REESE AFBTXE-3","LUBBOCK/REESE AFBTXE-3",741]
["LUBBOCK/REESE AFB","TX","E-4","LUBBOCK/REESE AFBTXE-4","LUBBOCK/REESE AFBTXE-4",741]
["LUBBOCK/REESE AFB","TX","E-5","LUBBOCK/REESE AFBTXE-5","LUBBOCK/REESE AFBTXE-5",834]
["LUBBOCK/REESE AFB","TX","E-6","LUBBOCK/REESE AFBTXE-6","LUBBOCK/REESE AFBTXE-6",918]
["LUBBOCK/REESE AFB","TX","E-7","LUBBOCK/REESE AFBTXE-7","LUBBOCK/REESE AFBTXE-7",993]
["LUBBOCK/REESE AFB","TX","E-8","LUBBOCK/REESE AFBTXE-8","LUBBOCK/REESE AFBTXE-8",1095]
["LUBBOCK/REESE AFB","TX","E-9","LUBBOCK/REESE AFBTXE-9","LUBBOCK/REESE AFBTXE-9",1140]
["LUBBOCK/REESE AFB","TX","W-1","LUBBOCK/REESE AFBTXW-1","LUBBOCK/REESE AFBTXW-1",957]
["LUBBOCK/REESE AFB","TX","W-2","LUBBOCK/REESE AFBTXW-2","LUBBOCK/REESE AFBTXW-2",1095]
["LUBBOCK/REESE AFB","TX","W-3","LUBBOCK/REESE AFBTXW-3","LUBBOCK/REESE AFBTXW-3",1143]
["LUBBOCK/REESE AFB","TX","W-4","LUBBOCK/REESE AFBTXW-4","LUBBOCK/REESE AFBTXW-4",1218]
["LUBBOCK/REESE AFB","TX","W-5","LUBBOCK/REESE AFBTXW-5","LUBBOCK/REESE AFBTXW-5",1260]
["LUBBOCK/REESE AFB","TX","O-1E","LUBBOCK/REESE AFBTXO-1E","LUBBOCK/REESE AFBTXO-1E",1068]
["LUBBOCK/REESE AFB","TX","O-2E","LUBBOCK/REESE AFBTXO-2E","LUBBOCK/REESE AFBTXO-2E",1128]
["LUBBOCK/REESE AFB","TX","O-3E","LUBBOCK/REESE AFBTXO-3E","LUBBOCK/REESE AFBTXO-3E",1206]
["LUBBOCK/REESE AFB","TX","O-1","LUBBOCK/REESE AFBTXO-1","LUBBOCK/REESE AFBTXO-1",906]
["LUBBOCK/REESE AFB","TX","O-2","LUBBOCK/REESE AFBTXO-2","LUBBOCK/REESE AFBTXO-2",1041]
["LUBBOCK/REESE AFB","TX","O-3","LUBBOCK/REESE AFBTXO-3","LUBBOCK/REESE AFBTXO-3",1158]
["LUBBOCK/REESE AFB","TX","O-4","LUBBOCK/REESE AFBTXO-4","LUBBOCK/REESE AFBTXO-4",1254]
["LUBBOCK/REESE AFB","TX","O-5","LUBBOCK/REESE AFBTXO-5","LUBBOCK/REESE AFBTXO-5",1284]
["LUBBOCK/REESE AFB","TX","O-6","LUBBOCK/REESE AFBTXO-6","LUBBOCK/REESE AFBTXO-6",1326]
["LUBBOCK/REESE AFB","TX","O-7","LUBBOCK/REESE AFBTXO-7","LUBBOCK/REESE AFBTXO-7",1353]
["GOODFELLOW AFB","TX","E-1",{"$f":"A7682&B7682&C7682","v":"GOODFELLOW AFBTXE-1"},"GOODFELLOW AFBTXE-1",720,720,720,720,720,804,882,966,1077,1113,924,1074,1116,1191,1272,1053,1104,1170,867,1023,1128,1260,1314,1398,1428]
["GOODFELLOW AFB","TX","E-2","GOODFELLOW AFBTXE-2","GOODFELLOW AFBTXE-2",720]
["GOODFELLOW AFB","TX","E-3","GOODFELLOW AFBTXE-3","GOODFELLOW AFBTXE-3",720]
["GOODFELLOW AFB","TX","E-4","GOODFELLOW AFBTXE-4","GOODFELLOW AFBTXE-4",720]
["GOODFELLOW AFB","TX","E-5","GOODFELLOW AFBTXE-5","GOODFELLOW AFBTXE-5",804]
["GOODFELLOW AFB","TX","E-6","GOODFELLOW AFBTXE-6","GOODFELLOW AFBTXE-6",882]
["GOODFELLOW AFB","TX","E-7","GOODFELLOW AFBTXE-7","GOODFELLOW AFBTXE-7",966]
["GOODFELLOW AFB","TX","E-8","GOODFELLOW AFBTXE-8","GOODFELLOW AFBTXE-8",1077]
["GOODFELLOW AFB","TX","E-9","GOODFELLOW AFBTXE-9","GOODFELLOW AFBTXE-9",1113]
["GOODFELLOW AFB","TX","W-1","GOODFELLOW AFBTXW-1","GOODFELLOW AFBTXW-1",924]
["GOODFELLOW AFB","TX","W-2","GOODFELLOW AFBTXW-2","GOODFELLOW AFBTXW-2",1074]
["GOODFELLOW AFB","TX","W-3","GOODFELLOW AFBTXW-3","GOODFELLOW AFBTXW-3",1116]
["GOODFELLOW AFB","TX","W-4","GOODFELLOW AFBTXW-4","GOODFELLOW AFBTXW-4",1191]
["GOODFELLOW AFB","TX","W-5","GOODFELLOW AFBTXW-5","GOODFELLOW AFBTXW-5",1272]
["GOODFELLOW AFB","TX","O-1E","GOODFELLOW AFBTXO-1E","GOODFELLOW AFBTXO-1E",1053]
["GOODFELLOW AFB","TX","O-2E","GOODFELLOW AFBTXO-2E","GOODFELLOW AFBTXO-2E",1104]
["GOODFELLOW AFB","TX","O-3E","GOODFELLOW AFBTXO-3E","GOODFELLOW AFBTXO-3E",1170]
["GOODFELLOW AFB","TX","O-1","GOODFELLOW AFBTXO-1","GOODFELLOW AFBTXO-1",867]
["GOODFELLOW AFB","TX","O-2","GOODFELLOW AFBTXO-2","GOODFELLOW AFBTXO-2",1023]
["GOODFELLOW AFB","TX","O-3","GOODFELLOW AFBTXO-3","GOODFELLOW AFBTXO-3",1128]
["GOODFELLOW AFB","TX","O-4","GOODFELLOW AFBTXO-4","GOODFELLOW AFBTXO-4",1260]
["GOODFELLOW AFB","TX","O-5","GOODFELLOW AFBTXO-5","GOODFELLOW AFBTXO-5",1314]
["GOODFELLOW AFB","TX","O-6","GOODFELLOW AFBTXO-6","GOODFELLOW AFBTXO-6",1398]
["GOODFELLOW AFB","TX","O-7","GOODFELLOW AFBTXO-7","GOODFELLOW AFBTXO-7",1428]
["SAN ANTONIO","TX","E-1","SAN ANTONIOTXE-1","SAN ANTONIOTXE-1",885,885,885,885,885,1017,1098,1185,1290,1314,1143,1290,1314,1368,1443,1275,1308,1347,1083,1242,1323,1431,1479,1557,1590]
["SAN ANTONIO","TX","E-2","SAN ANTONIOTXE-2","SAN ANTONIOTXE-2",885]
["SAN ANTONIO","TX","E-3","SAN ANTONIOTXE-3","SAN ANTONIOTXE-3",885]
["SAN ANTONIO","TX","E-4","SAN ANTONIOTXE-4","SAN ANTONIOTXE-4",885]
["SAN ANTONIO","TX","E-5","SAN ANTONIOTXE-5","SAN ANTONIOTXE-5",1017]
["SAN ANTONIO","TX","E-6","SAN ANTONIOTXE-6","SAN ANTONIOTXE-6",1098]
["SAN ANTONIO","TX","E-7","SAN ANTONIOTXE-7","SAN ANTONIOTXE-7",1185]
["SAN ANTONIO","TX","E-8","SAN ANTONIOTXE-8","SAN ANTONIOTXE-8",1290]
["SAN ANTONIO","TX","E-9","SAN ANTONIOTXE-9","SAN ANTONIOTXE-9",1314]
["SAN ANTONIO","TX","W-1","SAN ANTONIOTXW-1","SAN ANTONIOTXW-1",1143]
["SAN ANTONIO","TX","W-2","SAN ANTONIOTXW-2","SAN ANTONIOTXW-2",1290]
["SAN ANTONIO","TX","W-3","SAN ANTONIOTXW-3","SAN ANTONIOTXW-3",1314]
["SAN ANTONIO","TX","W-4","SAN ANTONIOTXW-4","SAN ANTONIOTXW-4",1368]
["SAN ANTONIO","TX","W-5","SAN ANTONIOTXW-5","SAN ANTONIOTXW-5",1443]
["SAN ANTONIO","TX","O-1E","SAN ANTONIOTXO-1E","SAN ANTONIOTXO-1E",1275]
["SAN ANTONIO","TX","O-2E","SAN ANTONIOTXO-2E","SAN ANTONIOTXO-2E",1308]
["SAN ANTONIO","TX","O-3E","SAN ANTONIOTXO-3E","SAN ANTONIOTXO-3E",1347]
["SAN ANTONIO","TX","O-1","SAN ANTONIOTXO-1","SAN ANTONIOTXO-1",1083]
["SAN ANTONIO","TX","O-2","SAN ANTONIOTXO-2","SAN ANTONIOTXO-2",1242]
["SAN ANTONIO","TX","O-3","SAN ANTONIOTXO-3","SAN ANTONIOTXO-3",1323]
["SAN ANTONIO","TX","O-4","SAN ANTONIOTXO-4","SAN ANTONIOTXO-4",1431]
["SAN ANTONIO","TX","O-5","SAN ANTONIOTXO-5","SAN ANTONIOTXO-5",1479]
["SAN ANTONIO","TX","O-6","SAN ANTONIOTXO-6","SAN ANTONIOTXO-6",1557]
["SAN ANTONIO","TX","O-7","SAN ANTONIOTXO-7","SAN ANTONIOTXO-7",1590]
["FORT HOOD","TX","E-1","FORT HOODTXE-1","FORT HOODTXE-1",750,750,750,750,750,849,906,960,1035,1086,933,1035,1071,1143,1251,1014,1059,1116,897,996,1080,1236,1305,1416,1446]
["FORT HOOD","TX","E-2","FORT HOODTXE-2","FORT HOODTXE-2",750]
["FORT HOOD","TX","E-3","FORT HOODTXE-3","FORT HOODTXE-3",750]
["FORT HOOD","TX","E-4","FORT HOODTXE-4","FORT HOODTXE-4",750]
["FORT HOOD","TX","E-5","FORT HOODTXE-5","FORT HOODTXE-5",849]
["FORT HOOD","TX","E-6","FORT HOODTXE-6","FORT HOODTXE-6",906]
["FORT HOOD","TX","E-7","FORT HOODTXE-7","FORT HOODTXE-7",960]
["FORT HOOD","TX","E-8","FORT HOODTXE-8","FORT HOODTXE-8",1035]
["FORT HOOD","TX","E-9","FORT HOODTXE-9","FORT HOODTXE-9",1086]
["FORT HOOD","TX","W-1","FORT HOODTXW-1","FORT HOODTXW-1",933]
["FORT HOOD","TX","W-2","FORT HOODTXW-2","FORT HOODTXW-2",1035]
["FORT HOOD","TX","W-3","FORT HOODTXW-3","FORT HOODTXW-3",1071]
["FORT HOOD","TX","W-4","FORT HOODTXW-4","FORT HOODTXW-4",1143]
["FORT HOOD","TX","W-5","FORT HOODTXW-5","FORT HOODTXW-5",1251]
["FORT HOOD","TX","O-1E","FORT HOODTXO-1E","FORT HOODTXO-1E",1014]
["FORT HOOD","TX","O-2E","FORT HOODTXO-2E","FORT HOODTXO-2E",1059]
["FORT HOOD","TX","O-3E",{"$f":"A7746&B7746&C7746","v":"FORT HOODTXO-3E"},"FORT HOODTXO-3E",1116]
["FORT HOOD","TX","O-1","FORT HOODTXO-1","FORT HOODTXO-1",897]
["FORT HOOD","TX","O-2","FORT HOODTXO-2","FORT HOODTXO-2",996]
["FORT HOOD","TX","O-3","FORT HOODTXO-3","FORT HOODTXO-3",1080]
["FORT HOOD","TX","O-4","FORT HOODTXO-4","FORT HOODTXO-4",1236]
["FORT HOOD","TX","O-5","FORT HOODTXO-5","FORT HOODTXO-5",1305]
["FORT HOOD","TX","O-6","FORT HOODTXO-6","FORT HOODTXO-6",1416]
["FORT HOOD","TX","O-7","FORT HOODTXO-7","FORT HOODTXO-7",1446]
["WICHITA FALLS/SHEPPARD AFB","TX","E-1","WICHITA FALLS/SHEPPARD AFBTXE-1","WICHITA FALLS/SHEPPARD AFBTXE-1",723,723,723,723,723,810,1005,1074,1149,1254,1005,1131,1221,1362,1455,1089,1194,1338,849,1041,1245,1443,1545,1599,1632]
["WICHITA FALLS/SHEPPARD AFB","TX","E-2","WICHITA FALLS/SHEPPARD AFBTXE-2","WICHITA FALLS/SHEPPARD AFBTXE-2",723]
["WICHITA FALLS/SHEPPARD AFB","TX","E-3","WICHITA FALLS/SHEPPARD AFBTXE-3","WICHITA FALLS/SHEPPARD AFBTXE-3",723]
["WICHITA FALLS/SHEPPARD AFB","TX","E-4","WICHITA FALLS/SHEPPARD AFBTXE-4","WICHITA FALLS/SHEPPARD AFBTXE-4",723]
["WICHITA FALLS/SHEPPARD AFB","TX","E-5","WICHITA FALLS/SHEPPARD AFBTXE-5","WICHITA FALLS/SHEPPARD AFBTXE-5",810]
["WICHITA FALLS/SHEPPARD AFB","TX","E-6","WICHITA FALLS/SHEPPARD AFBTXE-6","WICHITA FALLS/SHEPPARD AFBTXE-6",1005]
["WICHITA FALLS/SHEPPARD AFB","TX","E-7","WICHITA FALLS/SHEPPARD AFBTXE-7","WICHITA FALLS/SHEPPARD AFBTXE-7",1074]
["WICHITA FALLS/SHEPPARD AFB","TX","E-8","WICHITA FALLS/SHEPPARD AFBTXE-8","WICHITA FALLS/SHEPPARD AFBTXE-8",1149]
["WICHITA FALLS/SHEPPARD AFB","TX","E-9","WICHITA FALLS/SHEPPARD AFBTXE-9","WICHITA FALLS/SHEPPARD AFBTXE-9",1254]
["WICHITA FALLS/SHEPPARD AFB","TX","W-1","WICHITA FALLS/SHEPPARD AFBTXW-1","WICHITA FALLS/SHEPPARD AFBTXW-1",1005]
["WICHITA FALLS/SHEPPARD AFB","TX","W-2","WICHITA FALLS/SHEPPARD AFBTXW-2","WICHITA FALLS/SHEPPARD AFBTXW-2",1131]
["WICHITA FALLS/SHEPPARD AFB","TX","W-3","WICHITA FALLS/SHEPPARD AFBTXW-3","WICHITA FALLS/SHEPPARD AFBTXW-3",1221]
["WICHITA FALLS/SHEPPARD AFB","TX","W-4","WICHITA FALLS/SHEPPARD AFBTXW-4","WICHITA FALLS/SHEPPARD AFBTXW-4",1362]
["WICHITA FALLS/SHEPPARD AFB","TX","W-5","WICHITA FALLS/SHEPPARD AFBTXW-5","WICHITA FALLS/SHEPPARD AFBTXW-5",1455]
["WICHITA FALLS/SHEPPARD AFB","TX","O-1E","WICHITA FALLS/SHEPPARD AFBTXO-1E","WICHITA FALLS/SHEPPARD AFBTXO-1E",1089]
["WICHITA FALLS/SHEPPARD AFB","TX","O-2E","WICHITA FALLS/SHEPPARD AFBTXO-2E","WICHITA FALLS/SHEPPARD AFBTXO-2E",1194]
["WICHITA FALLS/SHEPPARD AFB","TX","O-3E","WICHITA FALLS/SHEPPARD AFBTXO-3E","WICHITA FALLS/SHEPPARD AFBTXO-3E",1338]
["WICHITA FALLS/SHEPPARD AFB","TX","O-1","WICHITA FALLS/SHEPPARD AFBTXO-1","WICHITA FALLS/SHEPPARD AFBTXO-1",849]
["WICHITA FALLS/SHEPPARD AFB","TX","O-2","WICHITA FALLS/SHEPPARD AFBTXO-2","WICHITA FALLS/SHEPPARD AFBTXO-2",1041]
["WICHITA FALLS/SHEPPARD AFB","TX","O-3","WICHITA FALLS/SHEPPARD AFBTXO-3","WICHITA FALLS/SHEPPARD AFBTXO-3",1245]
["WICHITA FALLS/SHEPPARD AFB","TX","O-4","WICHITA FALLS/SHEPPARD AFBTXO-4","WICHITA FALLS/SHEPPARD AFBTXO-4",1443]
["WICHITA FALLS/SHEPPARD AFB","TX","O-5","WICHITA FALLS/SHEPPARD AFBTXO-5","WICHITA FALLS/SHEPPARD AFBTXO-5",1545]
["WICHITA FALLS/SHEPPARD AFB","TX","O-6","WICHITA FALLS/SHEPPARD AFBTXO-6","WICHITA FALLS/SHEPPARD AFBTXO-6",1599]
["WICHITA FALLS/SHEPPARD AFB","TX","O-7","WICHITA FALLS/SHEPPARD AFBTXO-7","WICHITA FALLS/SHEPPARD AFBTXO-7",1632]
["FORT WORTH","TX","E-1","FORT WORTHTXE-1","FORT WORTHTXE-1",852,852,852,852,852,960,1050,1143,1263,1308,1098,1263,1314,1401,1488,1236,1299,1377,1035,1203,1326,1476,1533,1623,1656]
["FORT WORTH","TX","E-2","FORT WORTHTXE-2","FORT WORTHTXE-2",852]
["FORT WORTH","TX","E-3","FORT WORTHTXE-3","FORT WORTHTXE-3",852]
["FORT WORTH","TX","E-4","FORT WORTHTXE-4","FORT WORTHTXE-4",852]
["FORT WORTH","TX","E-5","FORT WORTHTXE-5","FORT WORTHTXE-5",960]
["FORT WORTH","TX","E-6","FORT WORTHTXE-6","FORT WORTHTXE-6",1050]
["FORT WORTH","TX","E-7","FORT WORTHTXE-7","FORT WORTHTXE-7",1143]
["FORT WORTH","TX","E-8","FORT WORTHTXE-8","FORT WORTHTXE-8",1263]
["FORT WORTH","TX","E-9","FORT WORTHTXE-9","FORT WORTHTXE-9",1308]
["FORT WORTH","TX","W-1","FORT WORTHTXW-1","FORT WORTHTXW-1",1098]
["FORT WORTH","TX","W-2","FORT WORTHTXW-2","FORT WORTHTXW-2",1263]
["FORT WORTH","TX","W-3","FORT WORTHTXW-3","FORT WORTHTXW-3",1314]
["FORT WORTH","TX","W-4","FORT WORTHTXW-4","FORT WORTHTXW-4",1401]
["FORT WORTH","TX","W-5","FORT WORTHTXW-5","FORT WORTHTXW-5",1488]
["FORT WORTH","TX","O-1E","FORT WORTHTXO-1E","FORT WORTHTXO-1E",1236]
["FORT WORTH","TX","O-2E","FORT WORTHTXO-2E","FORT WORTHTXO-2E",1299]
["FORT WORTH","TX","O-3E","FORT WORTHTXO-3E","FORT WORTHTXO-3E",1377]
["FORT WORTH","TX","O-1","FORT WORTHTXO-1","FORT WORTHTXO-1",1035]
["FORT WORTH","TX","O-2","FORT WORTHTXO-2","FORT WORTHTXO-2",1203]
["FORT WORTH","TX","O-3","FORT WORTHTXO-3","FORT WORTHTXO-3",1326]
["FORT WORTH","TX","O-4","FORT WORTHTXO-4","FORT WORTHTXO-4",1476]
["FORT WORTH","TX","O-5","FORT WORTHTXO-5","FORT WORTHTXO-5",1533]
["FORT WORTH","TX","O-6","FORT WORTHTXO-6","FORT WORTHTXO-6",1623]
["FORT WORTH","TX","O-7","FORT WORTHTXO-7","FORT WORTHTXO-7",1656]
["TYLER","TX","E-1","TYLERTXE-1","TYLERTXE-1",795,795,795,795,795,918,1059,1077,1188,1275,1059,1185,1284,1419,1443,1131,1257,1413,987,1107,1311,1440,1620,1635,1653]
["TYLER","TX","E-2","TYLERTXE-2","TYLERTXE-2",795]
["TYLER","TX","E-3","TYLERTXE-3","TYLERTXE-3",795]
["TYLER","TX","E-4","TYLERTXE-4","TYLERTXE-4",795]
["TYLER","TX","E-5","TYLERTXE-5","TYLERTXE-5",918]
["TYLER","TX","E-6","TYLERTXE-6","TYLERTXE-6",1059]
["TYLER","TX","E-7","TYLERTXE-7","TYLERTXE-7",1077]
["TYLER","TX","E-8","TYLERTXE-8","TYLERTXE-8",1188]
["TYLER","TX","E-9",{"$f":"A7810&B7810&C7810","v":"TYLERTXE-9"},"TYLERTXE-9",1275]
["TYLER","TX","W-1","TYLERTXW-1","TYLERTXW-1",1059]
["TYLER","TX","W-2","TYLERTXW-2","TYLERTXW-2",1185]
["TYLER","TX","W-3","TYLERTXW-3","TYLERTXW-3",1284]
["TYLER","TX","W-4","TYLERTXW-4","TYLERTXW-4",1419]
["TYLER","TX","W-5","TYLERTXW-5","TYLERTXW-5",1443]
["TYLER","TX","O-1E","TYLERTXO-1E","TYLERTXO-1E",1131]
["TYLER","TX","O-2E","TYLERTXO-2E","TYLERTXO-2E",1257]
["TYLER","TX","O-3E","TYLERTXO-3E","TYLERTXO-3E",1413]
["TYLER","TX","O-1","TYLERTXO-1","TYLERTXO-1",987]
["TYLER","TX","O-2","TYLERTXO-2","TYLERTXO-2",1107]
["TYLER","TX","O-3","TYLERTXO-3","TYLERTXO-3",1311]
["TYLER","TX","O-4","TYLERTXO-4","TYLERTXO-4",1440]
["TYLER","TX","O-5","TYLERTXO-5","TYLERTXO-5",1620]
["TYLER","TX","O-6","TYLERTXO-6","TYLERTXO-6",1635]
["TYLER","TX","O-7","TYLERTXO-7","TYLERTXO-7",1653]
["WACO","TX","E-1","WACOTXE-1","WACOTXE-1",729,729,729,729,729,843,954,987,1089,1158,954,1086,1167,1284,1329,1041,1143,1272,903,1017,1188,1323,1488,1503,1518]
["WACO","TX","E-2","WACOTXE-2","WACOTXE-2",729]
["WACO","TX","E-3","WACOTXE-3","WACOTXE-3",729]
["WACO","TX","E-4","WACOTXE-4","WACOTXE-4",729]
["WACO","TX","E-5","WACOTXE-5","WACOTXE-5",843]
["WACO","TX","E-6","WACOTXE-6","WACOTXE-6",954]
["WACO","TX","E-7","WACOTXE-7","WACOTXE-7",987]
["WACO","TX","E-8","WACOTXE-8","WACOTXE-8",1089]
["WACO","TX","E-9","WACOTXE-9","WACOTXE-9",1158]
["WACO","TX","W-1","WACOTXW-1","WACOTXW-1",954]
["WACO","TX","W-2","WACOTXW-2","WACOTXW-2",1086]
["WACO","TX","W-3","WACOTXW-3","WACOTXW-3",1167]
["WACO","TX","W-4","WACOTXW-4","WACOTXW-4",1284]
["WACO","TX","W-5","WACOTXW-5","WACOTXW-5",1329]
["WACO","TX","O-1E","WACOTXO-1E","WACOTXO-1E",1041]
["WACO","TX","O-2E","WACOTXO-2E","WACOTXO-2E",1143]
["WACO","TX","O-3E","WACOTXO-3E","WACOTXO-3E",1272]
["WACO","TX","O-1","WACOTXO-1","WACOTXO-1",903]
["WACO","TX","O-2","WACOTXO-2","WACOTXO-2",1017]
["WACO","TX","O-3","WACOTXO-3","WACOTXO-3",1188]
["WACO","TX","O-4","WACOTXO-4","WACOTXO-4",1323]
["WACO","TX","O-5","WACOTXO-5","WACOTXO-5",1488]
["WACO","TX","O-6","WACOTXO-6","WACOTXO-6",1503]
["WACO","TX","O-7","WACOTXO-7","WACOTXO-7",1518]
["OGDEN/HILL AFB","UT","E-1","OGDEN/HILL AFBUTE-1","OGDEN/HILL AFBUTE-1",777,777,777,777,777,867,915,942,1005,1062,930,1005,1068,1161,1203,969,1050,1152,912,960,1086,1197,1224,1266,1290]
["OGDEN/HILL AFB","UT","E-2","OGDEN/HILL AFBUTE-2","OGDEN/HILL AFBUTE-2",777]
["OGDEN/HILL AFB","UT","E-3","OGDEN/HILL AFBUTE-3","OGDEN/HILL AFBUTE-3",777]
["OGDEN/HILL AFB","UT","E-4","OGDEN/HILL AFBUTE-4","OGDEN/HILL AFBUTE-4",777]
["OGDEN/HILL AFB","UT","E-5","OGDEN/HILL AFBUTE-5","OGDEN/HILL AFBUTE-5",867]
["OGDEN/HILL AFB","UT","E-6","OGDEN/HILL AFBUTE-6","OGDEN/HILL AFBUTE-6",915]
["OGDEN/HILL AFB","UT","E-7","OGDEN/HILL AFBUTE-7","OGDEN/HILL AFBUTE-7",942]
["OGDEN/HILL AFB","UT","E-8","OGDEN/HILL AFBUTE-8","OGDEN/HILL AFBUTE-8",1005]
["OGDEN/HILL AFB","UT","E-9","OGDEN/HILL AFBUTE-9","OGDEN/HILL AFBUTE-9",1062]
["OGDEN/HILL AFB","UT","W-1","OGDEN/HILL AFBUTW-1","OGDEN/HILL AFBUTW-1",930]
["OGDEN/HILL AFB","UT","W-2","OGDEN/HILL AFBUTW-2","OGDEN/HILL AFBUTW-2",1005]
["OGDEN/HILL AFB","UT","W-3","OGDEN/HILL AFBUTW-3","OGDEN/HILL AFBUTW-3",1068]
["OGDEN/HILL AFB","UT","W-4","OGDEN/HILL AFBUTW-4","OGDEN/HILL AFBUTW-4",1161]
["OGDEN/HILL AFB","UT","W-5","OGDEN/HILL AFBUTW-5","OGDEN/HILL AFBUTW-5",1203]
["OGDEN/HILL AFB","UT","O-1E","OGDEN/HILL AFBUTO-1E","OGDEN/HILL AFBUTO-1E",969]
["OGDEN/HILL AFB","UT","O-2E","OGDEN/HILL AFBUTO-2E","OGDEN/HILL AFBUTO-2E",1050]
["OGDEN/HILL AFB","UT","O-3E","OGDEN/HILL AFBUTO-3E","OGDEN/HILL AFBUTO-3E",1152]
["OGDEN/HILL AFB","UT","O-1","OGDEN/HILL AFBUTO-1","OGDEN/HILL AFBUTO-1",912]
["OGDEN/HILL AFB","UT","O-2","OGDEN/HILL AFBUTO-2","OGDEN/HILL AFBUTO-2",960]
["OGDEN/HILL AFB","UT","O-3","OGDEN/HILL AFBUTO-3","OGDEN/HILL AFBUTO-3",1086]
["OGDEN/HILL AFB","UT","O-4","OGDEN/HILL AFBUTO-4","OGDEN/HILL AFBUTO-4",1197]
["OGDEN/HILL AFB","UT","O-5","OGDEN/HILL AFBUTO-5","OGDEN/HILL AFBUTO-5",1224]
["OGDEN/HILL AFB","UT","O-6","OGDEN/HILL AFBUTO-6","OGDEN/HILL AFBUTO-6",1266]
["OGDEN/HILL AFB","UT","O-7","OGDEN/HILL AFBUTO-7","OGDEN/HILL AFBUTO-7",1290]
["SALT LAKE CITY","UT","E-1",{"$f":"A7874&B7874&C7874","v":"SALT LAKE CITYUTE-1"},"SALT LAKE CITYUTE-1",774,774,774,774,774,873,981,1038,1170,1224,990,1170,1227,1320,1374,1137,1212,1305,924,1101,1245,1365,1401,1455,1485]
["SALT LAKE CITY","UT","E-2","SALT LAKE CITYUTE-2","SALT LAKE CITYUTE-2",774]
["SALT LAKE CITY","UT","E-3","SALT LAKE CITYUTE-3","SALT LAKE CITYUTE-3",774]
["SALT LAKE CITY","UT","E-4","SALT LAKE CITYUTE-4","SALT LAKE CITYUTE-4",774]
["SALT LAKE CITY","UT","E-5","SALT LAKE CITYUTE-5","SALT LAKE CITYUTE-5",873]
["SALT LAKE CITY","UT","E-6","SALT LAKE CITYUTE-6","SALT LAKE CITYUTE-6",981]
["SALT LAKE CITY","UT","E-7","SALT LAKE CITYUTE-7","SALT LAKE CITYUTE-7",1038]
["SALT LAKE CITY","UT","E-8","SALT LAKE CITYUTE-8","SALT LAKE CITYUTE-8",1170]
["SALT LAKE CITY","UT","E-9","SALT LAKE CITYUTE-9","SALT LAKE CITYUTE-9",1224]
["SALT LAKE CITY","UT","W-1","SALT LAKE CITYUTW-1","SALT LAKE CITYUTW-1",990]
["SALT LAKE CITY","UT","W-2","SALT LAKE CITYUTW-2","SALT LAKE CITYUTW-2",1170]
["SALT LAKE CITY","UT","W-3","SALT LAKE CITYUTW-3","SALT LAKE CITYUTW-3",1227]
["SALT LAKE CITY","UT","W-4","SALT LAKE CITYUTW-4","SALT LAKE CITYUTW-4",1320]
["SALT LAKE CITY","UT","W-5","SALT LAKE CITYUTW-5","SALT LAKE CITYUTW-5",1374]
["SALT LAKE CITY","UT","O-1E","SALT LAKE CITYUTO-1E","SALT LAKE CITYUTO-1E",1137]
["SALT LAKE CITY","UT","O-2E","SALT LAKE CITYUTO-2E","SALT LAKE CITYUTO-2E",1212]
["SALT LAKE CITY","UT","O-3E","SALT LAKE CITYUTO-3E","SALT LAKE CITYUTO-3E",1305]
["SALT LAKE CITY","UT","O-1","SALT LAKE CITYUTO-1","SALT LAKE CITYUTO-1",924]
["SALT LAKE CITY","UT","O-2","SALT LAKE CITYUTO-2","SALT LAKE CITYUTO-2",1101]
["SALT LAKE CITY","UT","O-3","SALT LAKE CITYUTO-3","SALT LAKE CITYUTO-3",1245]
["SALT LAKE CITY","UT","O-4","SALT LAKE CITYUTO-4","SALT LAKE CITYUTO-4",1365]
["SALT LAKE CITY","UT","O-5","SALT LAKE CITYUTO-5","SALT LAKE CITYUTO-5",1401]
["SALT LAKE CITY","UT","O-6","SALT LAKE CITYUTO-6","SALT LAKE CITYUTO-6",1455]
["SALT LAKE CITY","UT","O-7","SALT LAKE CITYUTO-7","SALT LAKE CITYUTO-7",1485]
["PROVO","UT","E-1","PROVOUTE-1","PROVOUTE-1",753,753,753,753,753,831,885,969,1074,1101,927,1071,1104,1170,1272,1056,1095,1146,870,1023,1113,1260,1323,1428,1458]
["PROVO","UT","E-2","PROVOUTE-2","PROVOUTE-2",753]
["PROVO","UT","E-3","PROVOUTE-3","PROVOUTE-3",753]
["PROVO","UT","E-4","PROVOUTE-4","PROVOUTE-4",753]
["PROVO","UT","E-5","PROVOUTE-5","PROVOUTE-5",831]
["PROVO","UT","E-6","PROVOUTE-6","PROVOUTE-6",885]
["PROVO","UT","E-7","PROVOUTE-7","PROVOUTE-7",969]
["PROVO","UT","E-8","PROVOUTE-8","PROVOUTE-8",1074]
["PROVO","UT","E-9","PROVOUTE-9","PROVOUTE-9",1101]
["PROVO","UT","W-1","PROVOUTW-1","PROVOUTW-1",927]
["PROVO","UT","W-2","PROVOUTW-2","PROVOUTW-2",1071]
["PROVO","UT","W-3","PROVOUTW-3","PROVOUTW-3",1104]
["PROVO","UT","W-4","PROVOUTW-4","PROVOUTW-4",1170]
["PROVO","UT","W-5","PROVOUTW-5","PROVOUTW-5",1272]
["PROVO","UT","O-1E","PROVOUTO-1E","PROVOUTO-1E",1056]
["PROVO","UT","O-2E","PROVOUTO-2E","PROVOUTO-2E",1095]
["PROVO","UT","O-3E","PROVOUTO-3E","PROVOUTO-3E",1146]
["PROVO","UT","O-1","PROVOUTO-1","PROVOUTO-1",870]
["PROVO","UT","O-2","PROVOUTO-2","PROVOUTO-2",1023]
["PROVO","UT","O-3","PROVOUTO-3","PROVOUTO-3",1113]
["PROVO","UT","O-4","PROVOUTO-4","PROVOUTO-4",1260]
["PROVO","UT","O-5","PROVOUTO-5","PROVOUTO-5",1323]
["PROVO","UT","O-6","PROVOUTO-6","PROVOUTO-6",1428]
["PROVO","UT","O-7","PROVOUTO-7","PROVOUTO-7",1458]
["CHARLOTTESVILLE","VA","E-1","CHARLOTTESVILLEVAE-1","CHARLOTTESVILLEVAE-1",1029,1029,1029,1029,1029,1113,1164,1236,1338,1392,1200,1338,1392,1497,1611,1308,1377,1467,1155,1281,1410,1596,1671,1788,1824]
["CHARLOTTESVILLE","VA","E-2","CHARLOTTESVILLEVAE-2","CHARLOTTESVILLEVAE-2",1029]
["CHARLOTTESVILLE","VA","E-3","CHARLOTTESVILLEVAE-3","CHARLOTTESVILLEVAE-3",1029]
["CHARLOTTESVILLE","VA","E-4","CHARLOTTESVILLEVAE-4","CHARLOTTESVILLEVAE-4",1029]
["CHARLOTTESVILLE","VA","E-5","CHARLOTTESVILLEVAE-5","CHARLOTTESVILLEVAE-5",1113]
["CHARLOTTESVILLE","VA","E-6","CHARLOTTESVILLEVAE-6","CHARLOTTESVILLEVAE-6",1164]
["CHARLOTTESVILLE","VA","E-7","CHARLOTTESVILLEVAE-7","CHARLOTTESVILLEVAE-7",1236]
["CHARLOTTESVILLE","VA","E-8","CHARLOTTESVILLEVAE-8","CHARLOTTESVILLEVAE-8",1338]
["CHARLOTTESVILLE","VA","E-9","CHARLOTTESVILLEVAE-9","CHARLOTTESVILLEVAE-9",1392]
["CHARLOTTESVILLE","VA","W-1","CHARLOTTESVILLEVAW-1","CHARLOTTESVILLEVAW-1",1200]
["CHARLOTTESVILLE","VA","W-2","CHARLOTTESVILLEVAW-2","CHARLOTTESVILLEVAW-2",1338]
["CHARLOTTESVILLE","VA","W-3","CHARLOTTESVILLEVAW-3","CHARLOTTESVILLEVAW-3",1392]
["CHARLOTTESVILLE","VA","W-4","CHARLOTTESVILLEVAW-4","CHARLOTTESVILLEVAW-4",1497]
["CHARLOTTESVILLE","VA","W-5","CHARLOTTESVILLEVAW-5","CHARLOTTESVILLEVAW-5",1611]
["CHARLOTTESVILLE","VA","O-1E","CHARLOTTESVILLEVAO-1E","CHARLOTTESVILLEVAO-1E",1308]
["CHARLOTTESVILLE","VA","O-2E","CHARLOTTESVILLEVAO-2E","CHARLOTTESVILLEVAO-2E",1377]
["CHARLOTTESVILLE","VA","O-3E",{"$f":"A7938&B7938&C7938","v":"CHARLOTTESVILLEVAO-3E"},"CHARLOTTESVILLEVAO-3E",1467]
["CHARLOTTESVILLE","VA","O-1","CHARLOTTESVILLEVAO-1","CHARLOTTESVILLEVAO-1",1155]
["CHARLOTTESVILLE","VA","O-2","CHARLOTTESVILLEVAO-2","CHARLOTTESVILLEVAO-2",1281]
["CHARLOTTESVILLE","VA","O-3","CHARLOTTESVILLEVAO-3","CHARLOTTESVILLEVAO-3",1410]
["CHARLOTTESVILLE","VA","O-4","CHARLOTTESVILLEVAO-4","CHARLOTTESVILLEVAO-4",1596]
["CHARLOTTESVILLE","VA","O-5","CHARLOTTESVILLEVAO-5","CHARLOTTESVILLEVAO-5",1671]
["CHARLOTTESVILLE","VA","O-6","CHARLOTTESVILLEVAO-6","CHARLOTTESVILLEVAO-6",1788]
["CHARLOTTESVILLE","VA","O-7","CHARLOTTESVILLEVAO-7","CHARLOTTESVILLEVAO-7",1824]
["QUANTICO/WOODBRIDGE","VA","E-1","QUANTICO/WOODBRIDGEVAE-1","QUANTICO/WOODBRIDGEVAE-1",1152,1152,1152,1152,1152,1284,1356,1401,1494,1569,1380,1491,1575,1710,1794,1446,1551,1686,1350,1431,1599,1782,1839,1929,1968]
["QUANTICO/WOODBRIDGE","VA","E-2","QUANTICO/WOODBRIDGEVAE-2","QUANTICO/WOODBRIDGEVAE-2",1152]
["QUANTICO/WOODBRIDGE","VA","E-3","QUANTICO/WOODBRIDGEVAE-3","QUANTICO/WOODBRIDGEVAE-3",1152]
["QUANTICO/WOODBRIDGE","VA","E-4","QUANTICO/WOODBRIDGEVAE-4","QUANTICO/WOODBRIDGEVAE-4",1152]
["QUANTICO/WOODBRIDGE","VA","E-5","QUANTICO/WOODBRIDGEVAE-5","QUANTICO/WOODBRIDGEVAE-5",1284]
["QUANTICO/WOODBRIDGE","VA","E-6","QUANTICO/WOODBRIDGEVAE-6","QUANTICO/WOODBRIDGEVAE-6",1356]
["QUANTICO/WOODBRIDGE","VA","E-7","QUANTICO/WOODBRIDGEVAE-7","QUANTICO/WOODBRIDGEVAE-7",1401]
["QUANTICO/WOODBRIDGE","VA","E-8","QUANTICO/WOODBRIDGEVAE-8","QUANTICO/WOODBRIDGEVAE-8",1494]
["QUANTICO/WOODBRIDGE","VA","E-9","QUANTICO/WOODBRIDGEVAE-9","QUANTICO/WOODBRIDGEVAE-9",1569]
["QUANTICO/WOODBRIDGE","VA","W-1","QUANTICO/WOODBRIDGEVAW-1","QUANTICO/WOODBRIDGEVAW-1",1380]
["QUANTICO/WOODBRIDGE","VA","W-2","QUANTICO/WOODBRIDGEVAW-2","QUANTICO/WOODBRIDGEVAW-2",1491]
["QUANTICO/WOODBRIDGE","VA","W-3","QUANTICO/WOODBRIDGEVAW-3","QUANTICO/WOODBRIDGEVAW-3",1575]
["QUANTICO/WOODBRIDGE","VA","W-4","QUANTICO/WOODBRIDGEVAW-4","QUANTICO/WOODBRIDGEVAW-4",1710]
["QUANTICO/WOODBRIDGE","VA","W-5","QUANTICO/WOODBRIDGEVAW-5","QUANTICO/WOODBRIDGEVAW-5",1794]
["QUANTICO/WOODBRIDGE","VA","O-1E","QUANTICO/WOODBRIDGEVAO-1E","QUANTICO/WOODBRIDGEVAO-1E",1446]
["QUANTICO/WOODBRIDGE","VA","O-2E","QUANTICO/WOODBRIDGEVAO-2E","QUANTICO/WOODBRIDGEVAO-2E",1551]
["QUANTICO/WOODBRIDGE","VA","O-3E","QUANTICO/WOODBRIDGEVAO-3E","QUANTICO/WOODBRIDGEVAO-3E",1686]
["QUANTICO/WOODBRIDGE","VA","O-1","QUANTICO/WOODBRIDGEVAO-1","QUANTICO/WOODBRIDGEVAO-1",1350]
["QUANTICO/WOODBRIDGE","VA","O-2","QUANTICO/WOODBRIDGEVAO-2","QUANTICO/WOODBRIDGEVAO-2",1431]
["QUANTICO/WOODBRIDGE","VA","O-3","QUANTICO/WOODBRIDGEVAO-3","QUANTICO/WOODBRIDGEVAO-3",1599]
["QUANTICO/WOODBRIDGE","VA","O-4","QUANTICO/WOODBRIDGEVAO-4","QUANTICO/WOODBRIDGEVAO-4",1782]
["QUANTICO/WOODBRIDGE","VA","O-5","QUANTICO/WOODBRIDGEVAO-5","QUANTICO/WOODBRIDGEVAO-5",1839]
["QUANTICO/WOODBRIDGE","VA","O-6","QUANTICO/WOODBRIDGEVAO-6","QUANTICO/WOODBRIDGEVAO-6",1929]
["QUANTICO/WOODBRIDGE","VA","O-7","QUANTICO/WOODBRIDGEVAO-7","QUANTICO/WOODBRIDGEVAO-7",1968]
["HAMPTON/NEWPORT NEWS","VA","E-1","HAMPTON/NEWPORT NEWSVAE-1","HAMPTON/NEWPORT NEWSVAE-1",1053,1053,1053,1053,1053,1116,1209,1314,1431,1539,1215,1419,1506,1647,1788,1374,1485,1611,1146,1335,1524,1770,1860,2007,2049]
["HAMPTON/NEWPORT NEWS","VA","E-2","HAMPTON/NEWPORT NEWSVAE-2","HAMPTON/NEWPORT NEWSVAE-2",1053]
["HAMPTON/NEWPORT NEWS","VA","E-3","HAMPTON/NEWPORT NEWSVAE-3","HAMPTON/NEWPORT NEWSVAE-3",1053]
["HAMPTON/NEWPORT NEWS","VA","E-4","HAMPTON/NEWPORT NEWSVAE-4","HAMPTON/NEWPORT NEWSVAE-4",1053]
["HAMPTON/NEWPORT NEWS","VA","E-5","HAMPTON/NEWPORT NEWSVAE-5","HAMPTON/NEWPORT NEWSVAE-5",1116]
["HAMPTON/NEWPORT NEWS","VA","E-6","HAMPTON/NEWPORT NEWSVAE-6","HAMPTON/NEWPORT NEWSVAE-6",1209]
["HAMPTON/NEWPORT NEWS","VA","E-7","HAMPTON/NEWPORT NEWSVAE-7","HAMPTON/NEWPORT NEWSVAE-7",1314]
["HAMPTON/NEWPORT NEWS","VA","E-8","HAMPTON/NEWPORT NEWSVAE-8","HAMPTON/NEWPORT NEWSVAE-8",1431]
["HAMPTON/NEWPORT NEWS","VA","E-9","HAMPTON/NEWPORT NEWSVAE-9","HAMPTON/NEWPORT NEWSVAE-9",1539]
["HAMPTON/NEWPORT NEWS","VA","W-1","HAMPTON/NEWPORT NEWSVAW-1","HAMPTON/NEWPORT NEWSVAW-1",1215]
["HAMPTON/NEWPORT NEWS","VA","W-2","HAMPTON/NEWPORT NEWSVAW-2","HAMPTON/NEWPORT NEWSVAW-2",1419]
["HAMPTON/NEWPORT NEWS","VA","W-3","HAMPTON/NEWPORT NEWSVAW-3","HAMPTON/NEWPORT NEWSVAW-3",1506]
["HAMPTON/NEWPORT NEWS","VA","W-4","HAMPTON/NEWPORT NEWSVAW-4","HAMPTON/NEWPORT NEWSVAW-4",1647]
["HAMPTON/NEWPORT NEWS","VA","W-5","HAMPTON/NEWPORT NEWSVAW-5","HAMPTON/NEWPORT NEWSVAW-5",1788]
["HAMPTON/NEWPORT NEWS","VA","O-1E","HAMPTON/NEWPORT NEWSVAO-1E","HAMPTON/NEWPORT NEWSVAO-1E",1374]
["HAMPTON/NEWPORT NEWS","VA","O-2E","HAMPTON/NEWPORT NEWSVAO-2E","HAMPTON/NEWPORT NEWSVAO-2E",1485]
["HAMPTON/NEWPORT NEWS","VA","O-3E","HAMPTON/NEWPORT NEWSVAO-3E","HAMPTON/NEWPORT NEWSVAO-3E",1611]
["HAMPTON/NEWPORT NEWS","VA","O-1","HAMPTON/NEWPORT NEWSVAO-1","HAMPTON/NEWPORT NEWSVAO-1",1146]
["HAMPTON/NEWPORT NEWS","VA","O-2","HAMPTON/NEWPORT NEWSVAO-2","HAMPTON/NEWPORT NEWSVAO-2",1335]
["HAMPTON/NEWPORT NEWS","VA","O-3","HAMPTON/NEWPORT NEWSVAO-3","HAMPTON/NEWPORT NEWSVAO-3",1524]
["HAMPTON/NEWPORT NEWS","VA","O-4","HAMPTON/NEWPORT NEWSVAO-4","HAMPTON/NEWPORT NEWSVAO-4",1770]
["HAMPTON/NEWPORT NEWS","VA","O-5","HAMPTON/NEWPORT NEWSVAO-5","HAMPTON/NEWPORT NEWSVAO-5",1860]
["HAMPTON/NEWPORT NEWS","VA","O-6","HAMPTON/NEWPORT NEWSVAO-6","HAMPTON/NEWPORT NEWSVAO-6",2007]
["HAMPTON/NEWPORT NEWS","VA","O-7","HAMPTON/NEWPORT NEWSVAO-7","HAMPTON/NEWPORT NEWSVAO-7",2049]
["NORFOLK/PORTSMOUTH","VA","E-1","NORFOLK/PORTSMOUTHVAE-1","NORFOLK/PORTSMOUTHVAE-1",1110,1110,1110,1110,1110,1212,1314,1365,1512,1605,1323,1509,1614,1758,1791,1452,1584,1752,1263,1422,1644,1788,1809,1842,1881]
["NORFOLK/PORTSMOUTH","VA","E-2","NORFOLK/PORTSMOUTHVAE-2","NORFOLK/PORTSMOUTHVAE-2",1110]
["NORFOLK/PORTSMOUTH","VA","E-3","NORFOLK/PORTSMOUTHVAE-3","NORFOLK/PORTSMOUTHVAE-3",1110]
["NORFOLK/PORTSMOUTH","VA","E-4","NORFOLK/PORTSMOUTHVAE-4","NORFOLK/PORTSMOUTHVAE-4",1110]
["NORFOLK/PORTSMOUTH","VA","E-5","NORFOLK/PORTSMOUTHVAE-5","NORFOLK/PORTSMOUTHVAE-5",1212]
["NORFOLK/PORTSMOUTH","VA","E-6","NORFOLK/PORTSMOUTHVAE-6","NORFOLK/PORTSMOUTHVAE-6",1314]
["NORFOLK/PORTSMOUTH","VA","E-7","NORFOLK/PORTSMOUTHVAE-7","NORFOLK/PORTSMOUTHVAE-7",1365]
["NORFOLK/PORTSMOUTH","VA","E-8","NORFOLK/PORTSMOUTHVAE-8","NORFOLK/PORTSMOUTHVAE-8",1512]
["NORFOLK/PORTSMOUTH","VA","E-9",{"$f":"A8002&B8002&C8002","v":"NORFOLK/PORTSMOUTHVAE-9"},"NORFOLK/PORTSMOUTHVAE-9",1605]
["NORFOLK/PORTSMOUTH","VA","W-1","NORFOLK/PORTSMOUTHVAW-1","NORFOLK/PORTSMOUTHVAW-1",1323]
["NORFOLK/PORTSMOUTH","VA","W-2","NORFOLK/PORTSMOUTHVAW-2","NORFOLK/PORTSMOUTHVAW-2",1509]
["NORFOLK/PORTSMOUTH","VA","W-3","NORFOLK/PORTSMOUTHVAW-3","NORFOLK/PORTSMOUTHVAW-3",1614]
["NORFOLK/PORTSMOUTH","VA","W-4","NORFOLK/PORTSMOUTHVAW-4","NORFOLK/PORTSMOUTHVAW-4",1758]
["NORFOLK/PORTSMOUTH","VA","W-5","NORFOLK/PORTSMOUTHVAW-5","NORFOLK/PORTSMOUTHVAW-5",1791]
["NORFOLK/PORTSMOUTH","VA","O-1E","NORFOLK/PORTSMOUTHVAO-1E","NORFOLK/PORTSMOUTHVAO-1E",1452]
["NORFOLK/PORTSMOUTH","VA","O-2E","NORFOLK/PORTSMOUTHVAO-2E","NORFOLK/PORTSMOUTHVAO-2E",1584]
["NORFOLK/PORTSMOUTH","VA","O-3E","NORFOLK/PORTSMOUTHVAO-3E","NORFOLK/PORTSMOUTHVAO-3E",1752]
["NORFOLK/PORTSMOUTH","VA","O-1","NORFOLK/PORTSMOUTHVAO-1","NORFOLK/PORTSMOUTHVAO-1",1263]
["NORFOLK/PORTSMOUTH","VA","O-2","NORFOLK/PORTSMOUTHVAO-2","NORFOLK/PORTSMOUTHVAO-2",1422]
["NORFOLK/PORTSMOUTH","VA","O-3","NORFOLK/PORTSMOUTHVAO-3","NORFOLK/PORTSMOUTHVAO-3",1644]
["NORFOLK/PORTSMOUTH","VA","O-4","NORFOLK/PORTSMOUTHVAO-4","NORFOLK/PORTSMOUTHVAO-4",1788]
["NORFOLK/PORTSMOUTH","VA","O-5","NORFOLK/PORTSMOUTHVAO-5","NORFOLK/PORTSMOUTHVAO-5",1809]
["NORFOLK/PORTSMOUTH","VA","O-6","NORFOLK/PORTSMOUTHVAO-6","NORFOLK/PORTSMOUTHVAO-6",1842]
["NORFOLK/PORTSMOUTH","VA","O-7","NORFOLK/PORTSMOUTHVAO-7","NORFOLK/PORTSMOUTHVAO-7",1881]
["PETERSBERG/FORT LEE","VA","E-1","PETERSBERG/FORT LEEVAE-1","PETERSBERG/FORT LEEVAE-1",873,873,873,873,873,1050,1146,1164,1185,1188,1155,1185,1191,1212,1269,1182,1188,1197,1143,1176,1191,1263,1299,1359,1386]
["PETERSBERG/FORT LEE","VA","E-2","PETERSBERG/FORT LEEVAE-2","PETERSBERG/FORT LEEVAE-2",873]
["PETERSBERG/FORT LEE","VA","E-3","PETERSBERG/FORT LEEVAE-3","PETERSBERG/FORT LEEVAE-3",873]
["PETERSBERG/FORT LEE","VA","E-4","PETERSBERG/FORT LEEVAE-4","PETERSBERG/FORT LEEVAE-4",873]
["PETERSBERG/FORT LEE","VA","E-5","PETERSBERG/FORT LEEVAE-5","PETERSBERG/FORT LEEVAE-5",1050]
["PETERSBERG/FORT LEE","VA","E-6","PETERSBERG/FORT LEEVAE-6","PETERSBERG/FORT LEEVAE-6",1146]
["PETERSBERG/FORT LEE","VA","E-7","PETERSBERG/FORT LEEVAE-7","PETERSBERG/FORT LEEVAE-7",1164]
["PETERSBERG/FORT LEE","VA","E-8","PETERSBERG/FORT LEEVAE-8","PETERSBERG/FORT LEEVAE-8",1185]
["PETERSBERG/FORT LEE","VA","E-9","PETERSBERG/FORT LEEVAE-9","PETERSBERG/FORT LEEVAE-9",1188]
["PETERSBERG/FORT LEE","VA","W-1","PETERSBERG/FORT LEEVAW-1","PETERSBERG/FORT LEEVAW-1",1155]
["PETERSBERG/FORT LEE","VA","W-2","PETERSBERG/FORT LEEVAW-2","PETERSBERG/FORT LEEVAW-2",1185]
["PETERSBERG/FORT LEE","VA","W-3","PETERSBERG/FORT LEEVAW-3","PETERSBERG/FORT LEEVAW-3",1191]
["PETERSBERG/FORT LEE","VA","W-4","PETERSBERG/FORT LEEVAW-4","PETERSBERG/FORT LEEVAW-4",1212]
["PETERSBERG/FORT LEE","VA","W-5","PETERSBERG/FORT LEEVAW-5","PETERSBERG/FORT LEEVAW-5",1269]
["PETERSBERG/FORT LEE","VA","O-1E","PETERSBERG/FORT LEEVAO-1E","PETERSBERG/FORT LEEVAO-1E",1182]
["PETERSBERG/FORT LEE","VA","O-2E","PETERSBERG/FORT LEEVAO-2E","PETERSBERG/FORT LEEVAO-2E",1188]
["PETERSBERG/FORT LEE","VA","O-3E","PETERSBERG/FORT LEEVAO-3E","PETERSBERG/FORT LEEVAO-3E",1197]
["PETERSBERG/FORT LEE","VA","O-1","PETERSBERG/FORT LEEVAO-1","PETERSBERG/FORT LEEVAO-1",1143]
["PETERSBERG/FORT LEE","VA","O-2","PETERSBERG/FORT LEEVAO-2","PETERSBERG/FORT LEEVAO-2",1176]
["PETERSBERG/FORT LEE","VA","O-3","PETERSBERG/FORT LEEVAO-3","PETERSBERG/FORT LEEVAO-3",1191]
["PETERSBERG/FORT LEE","VA","O-4","PETERSBERG/FORT LEEVAO-4","PETERSBERG/FORT LEEVAO-4",1263]
["PETERSBERG/FORT LEE","VA","O-5","PETERSBERG/FORT LEEVAO-5","PETERSBERG/FORT LEEVAO-5",1299]
["PETERSBERG/FORT LEE","VA","O-6","PETERSBERG/FORT LEEVAO-6","PETERSBERG/FORT LEEVAO-6",1359]
["PETERSBERG/FORT LEE","VA","O-7","PETERSBERG/FORT LEEVAO-7","PETERSBERG/FORT LEEVAO-7",1386]
["RICHMOND","VA","E-1","RICHMONDVAE-1","RICHMONDVAE-1",1017,1017,1017,1017,1017,1107,1164,1248,1365,1410,1209,1365,1413,1491,1536,1338,1398,1479,1149,1305,1428,1530,1557,1605,1638]
["RICHMOND","VA","E-2","RICHMONDVAE-2","RICHMONDVAE-2",1017]
["RICHMOND","VA","E-3","RICHMONDVAE-3","RICHMONDVAE-3",1017]
["RICHMOND","VA","E-4","RICHMONDVAE-4","RICHMONDVAE-4",1017]
["RICHMOND","VA","E-5","RICHMONDVAE-5","RICHMONDVAE-5",1107]
["RICHMOND","VA","E-6","RICHMONDVAE-6","RICHMONDVAE-6",1164]
["RICHMOND","VA","E-7","RICHMONDVAE-7","RICHMONDVAE-7",1248]
["RICHMOND","VA","E-8","RICHMONDVAE-8","RICHMONDVAE-8",1365]
["RICHMOND","VA","E-9","RICHMONDVAE-9","RICHMONDVAE-9",1410]
["RICHMOND","VA","W-1","RICHMONDVAW-1","RICHMONDVAW-1",1209]
["RICHMOND","VA","W-2","RICHMONDVAW-2","RICHMONDVAW-2",1365]
["RICHMOND","VA","W-3","RICHMONDVAW-3","RICHMONDVAW-3",1413]
["RICHMOND","VA","W-4","RICHMONDVAW-4","RICHMONDVAW-4",1491]
["RICHMOND","VA","W-5","RICHMONDVAW-5","RICHMONDVAW-5",1536]
["RICHMOND","VA","O-1E","RICHMONDVAO-1E","RICHMONDVAO-1E",1338]
["RICHMOND","VA","O-2E","RICHMONDVAO-2E","RICHMONDVAO-2E",1398]
["RICHMOND","VA","O-3E","RICHMONDVAO-3E","RICHMONDVAO-3E",1479]
["RICHMOND","VA","O-1","RICHMONDVAO-1","RICHMONDVAO-1",1149]
["RICHMOND","VA","O-2","RICHMONDVAO-2","RICHMONDVAO-2",1305]
["RICHMOND","VA","O-3","RICHMONDVAO-3","RICHMONDVAO-3",1428]
["RICHMOND","VA","O-4","RICHMONDVAO-4","RICHMONDVAO-4",1530]
["RICHMOND","VA","O-5","RICHMONDVAO-5","RICHMONDVAO-5",1557]
["RICHMOND","VA","O-6","RICHMONDVAO-6","RICHMONDVAO-6",1605]
["RICHMOND","VA","O-7","RICHMONDVAO-7","RICHMONDVAO-7",1638]
["WARRENTON/VINT HILL FARM","VA","E-1",{"$f":"A8066&B8066&C8066","v":"WARRENTON/VINT HILL FARMVAE-1"},"WARRENTON/VINT HILL FARMVAE-1",1128,1128,1128,1128,1128,1278,1554,1578,1779,1890,1554,1773,1902,2079,2112,1704,1866,2070,1308,1638,1938,2106,2127,2160,2205]
["WARRENTON/VINT HILL FARM","VA","E-2","WARRENTON/VINT HILL FARMVAE-2","WARRENTON/VINT HILL FARMVAE-2",1128]
["WARRENTON/VINT HILL FARM","VA","E-3","WARRENTON/VINT HILL FARMVAE-3","WARRENTON/VINT HILL FARMVAE-3",1128]
["WARRENTON/VINT HILL FARM","VA","E-4","WARRENTON/VINT HILL FARMVAE-4","WARRENTON/VINT HILL FARMVAE-4",1128]
["WARRENTON/VINT HILL FARM","VA","E-5","WARRENTON/VINT HILL FARMVAE-5","WARRENTON/VINT HILL FARMVAE-5",1278]
["WARRENTON/VINT HILL FARM","VA","E-6","WARRENTON/VINT HILL FARMVAE-6","WARRENTON/VINT HILL FARMVAE-6",1554]
["WARRENTON/VINT HILL FARM","VA","E-7","WARRENTON/VINT HILL FARMVAE-7","WARRENTON/VINT HILL FARMVAE-7",1578]
["WARRENTON/VINT HILL FARM","VA","E-8","WARRENTON/VINT HILL FARMVAE-8","WARRENTON/VINT HILL FARMVAE-8",1779]
["WARRENTON/VINT HILL FARM","VA","E-9","WARRENTON/VINT HILL FARMVAE-9","WARRENTON/VINT HILL FARMVAE-9",1890]
["WARRENTON/VINT HILL FARM","VA","W-1","WARRENTON/VINT HILL FARMVAW-1","WARRENTON/VINT HILL FARMVAW-1",1554]
["WARRENTON/VINT HILL FARM","VA","W-2","WARRENTON/VINT HILL FARMVAW-2","WARRENTON/VINT HILL FARMVAW-2",1773]
["WARRENTON/VINT HILL FARM","VA","W-3","WARRENTON/VINT HILL FARMVAW-3","WARRENTON/VINT HILL FARMVAW-3",1902]
["WARRENTON/VINT HILL FARM","VA","W-4","WARRENTON/VINT HILL FARMVAW-4","WARRENTON/VINT HILL FARMVAW-4",2079]
["WARRENTON/VINT HILL FARM","VA","W-5","WARRENTON/VINT HILL FARMVAW-5","WARRENTON/VINT HILL FARMVAW-5",2112]
["WARRENTON/VINT HILL FARM","VA","O-1E","WARRENTON/VINT HILL FARMVAO-1E","WARRENTON/VINT HILL FARMVAO-1E",1704]
["WARRENTON/VINT HILL FARM","VA","O-2E","WARRENTON/VINT HILL FARMVAO-2E","WARRENTON/VINT HILL FARMVAO-2E",1866]
["WARRENTON/VINT HILL FARM","VA","O-3E","WARRENTON/VINT HILL FARMVAO-3E","WARRENTON/VINT HILL FARMVAO-3E",2070]
["WARRENTON/VINT HILL FARM","VA","O-1","WARRENTON/VINT HILL FARMVAO-1","WARRENTON/VINT HILL FARMVAO-1",1308]
["WARRENTON/VINT HILL FARM","VA","O-2","WARRENTON/VINT HILL FARMVAO-2","WARRENTON/VINT HILL FARMVAO-2",1638]
["WARRENTON/VINT HILL FARM","VA","O-3","WARRENTON/VINT HILL FARMVAO-3","WARRENTON/VINT HILL FARMVAO-3",1938]
["WARRENTON/VINT HILL FARM","VA","O-4","WARRENTON/VINT HILL FARMVAO-4","WARRENTON/VINT HILL FARMVAO-4",2106]
["WARRENTON/VINT HILL FARM","VA","O-5","WARRENTON/VINT HILL FARMVAO-5","WARRENTON/VINT HILL FARMVAO-5",2127]
["WARRENTON/VINT HILL FARM","VA","O-6","WARRENTON/VINT HILL FARMVAO-6","WARRENTON/VINT HILL FARMVAO-6",2160]
["WARRENTON/VINT HILL FARM","VA","O-7","WARRENTON/VINT HILL FARMVAO-7","WARRENTON/VINT HILL FARMVAO-7",2205]
["LEXINGTON","VA","E-1","LEXINGTONVAE-1","LEXINGTONVAE-1",747,747,747,747,747,891,951,1005,1203,1227,951,1200,1230,1284,1353,1185,1221,1266,897,1122,1239,1344,1413,1458,1488]
["LEXINGTON","VA","E-2","LEXINGTONVAE-2","LEXINGTONVAE-2",747]
["LEXINGTON","VA","E-3","LEXINGTONVAE-3","LEXINGTONVAE-3",747]
["LEXINGTON","VA","E-4","LEXINGTONVAE-4","LEXINGTONVAE-4",747]
["LEXINGTON","VA","E-5","LEXINGTONVAE-5","LEXINGTONVAE-5",891]
["LEXINGTON","VA","E-6","LEXINGTONVAE-6","LEXINGTONVAE-6",951]
["LEXINGTON","VA","E-7","LEXINGTONVAE-7","LEXINGTONVAE-7",1005]
["LEXINGTON","VA","E-8","LEXINGTONVAE-8","LEXINGTONVAE-8",1203]
["LEXINGTON","VA","E-9","LEXINGTONVAE-9","LEXINGTONVAE-9",1227]
["LEXINGTON","VA","W-1","LEXINGTONVAW-1","LEXINGTONVAW-1",951]
["LEXINGTON","VA","W-2","LEXINGTONVAW-2","LEXINGTONVAW-2",1200]
["LEXINGTON","VA","W-3","LEXINGTONVAW-3","LEXINGTONVAW-3",1230]
["LEXINGTON","VA","W-4","LEXINGTONVAW-4","LEXINGTONVAW-4",1284]
["LEXINGTON","VA","W-5","LEXINGTONVAW-5","LEXINGTONVAW-5",1353]
["LEXINGTON","VA","O-1E","LEXINGTONVAO-1E","LEXINGTONVAO-1E",1185]
["LEXINGTON","VA","O-2E","LEXINGTONVAO-2E","LEXINGTONVAO-2E",1221]
["LEXINGTON","VA","O-3E","LEXINGTONVAO-3E","LEXINGTONVAO-3E",1266]
["LEXINGTON","VA","O-1","LEXINGTONVAO-1","LEXINGTONVAO-1",897]
["LEXINGTON","VA","O-2","LEXINGTONVAO-2","LEXINGTONVAO-2",1122]
["LEXINGTON","VA","O-3","LEXINGTONVAO-3","LEXINGTONVAO-3",1239]
["LEXINGTON","VA","O-4","LEXINGTONVAO-4","LEXINGTONVAO-4",1344]
["LEXINGTON","VA","O-5","LEXINGTONVAO-5","LEXINGTONVAO-5",1413]
["LEXINGTON","VA","O-6","LEXINGTONVAO-6","LEXINGTONVAO-6",1458]
["LEXINGTON","VA","O-7","LEXINGTONVAO-7","LEXINGTONVAO-7",1488]
["ROANOKE","VA","E-1","ROANOKEVAE-1","ROANOKEVAE-1",720,720,720,720,720,777,864,909,1020,1071,864,1020,1077,1167,1227,987,1059,1152,804,957,1092,1221,1311,1323,1347]
["ROANOKE","VA","E-2","ROANOKEVAE-2","ROANOKEVAE-2",720]
["ROANOKE","VA","E-3","ROANOKEVAE-3","ROANOKEVAE-3",720]
["ROANOKE","VA","E-4","ROANOKEVAE-4","ROANOKEVAE-4",720]
["ROANOKE","VA","E-5","ROANOKEVAE-5","ROANOKEVAE-5",777]
["ROANOKE","VA","E-6","ROANOKEVAE-6","ROANOKEVAE-6",864]
["ROANOKE","VA","E-7","ROANOKEVAE-7","ROANOKEVAE-7",909]
["ROANOKE","VA","E-8","ROANOKEVAE-8","ROANOKEVAE-8",1020]
["ROANOKE","VA","E-9","ROANOKEVAE-9","ROANOKEVAE-9",1071]
["ROANOKE","VA","W-1","ROANOKEVAW-1","ROANOKEVAW-1",864]
["ROANOKE","VA","W-2","ROANOKEVAW-2","ROANOKEVAW-2",1020]
["ROANOKE","VA","W-3","ROANOKEVAW-3","ROANOKEVAW-3",1077]
["ROANOKE","VA","W-4","ROANOKEVAW-4","ROANOKEVAW-4",1167]
["ROANOKE","VA","W-5","ROANOKEVAW-5","ROANOKEVAW-5",1227]
["ROANOKE","VA","O-1E","ROANOKEVAO-1E","ROANOKEVAO-1E",987]
["ROANOKE","VA","O-2E","ROANOKEVAO-2E","ROANOKEVAO-2E",1059]
["ROANOKE","VA","O-3E",{"$f":"A8130&B8130&C8130","v":"ROANOKEVAO-3E"},"ROANOKEVAO-3E",1152]
["ROANOKE","VA","O-1","ROANOKEVAO-1","ROANOKEVAO-1",804]
["ROANOKE","VA","O-2","ROANOKEVAO-2","ROANOKEVAO-2",957]
["ROANOKE","VA","O-3","ROANOKEVAO-3","ROANOKEVAO-3",1092]
["ROANOKE","VA","O-4","ROANOKEVAO-4","ROANOKEVAO-4",1221]
["ROANOKE","VA","O-5","ROANOKEVAO-5","ROANOKEVAO-5",1311]
["ROANOKE","VA","O-6","ROANOKEVAO-6","ROANOKEVAO-6",1323]
["ROANOKE","VA","O-7","ROANOKEVAO-7","ROANOKEVAO-7",1347]
["FORT A.P. HILL","VA","E-1","FORT A.P. HILLVAE-1","FORT A.P. HILLVAE-1",1029,1029,1029,1029,1029,1089,1284,1311,1404,1524,1284,1401,1533,1719,1755,1326,1497,1710,1119,1293,1572,1749,1773,1809,1845]
["FORT A.P. HILL","VA","E-2","FORT A.P. HILLVAE-2","FORT A.P. HILLVAE-2",1029]
["FORT A.P. HILL","VA","E-3","FORT A.P. HILLVAE-3","FORT A.P. HILLVAE-3",1029]
["FORT A.P. HILL","VA","E-4","FORT A.P. HILLVAE-4","FORT A.P. HILLVAE-4",1029]
["FORT A.P. HILL","VA","E-5","FORT A.P. HILLVAE-5","FORT A.P. HILLVAE-5",1089]
["FORT A.P. HILL","VA","E-6","FORT A.P. HILLVAE-6","FORT A.P. HILLVAE-6",1284]
["FORT A.P. HILL","VA","E-7","FORT A.P. HILLVAE-7","FORT A.P. HILLVAE-7",1311]
["FORT A.P. HILL","VA","E-8","FORT A.P. HILLVAE-8","FORT A.P. HILLVAE-8",1404]
["FORT A.P. HILL","VA","E-9","FORT A.P. HILLVAE-9","FORT A.P. HILLVAE-9",1524]
["FORT A.P. HILL","VA","W-1","FORT A.P. HILLVAW-1","FORT A.P. HILLVAW-1",1284]
["FORT A.P. HILL","VA","W-2","FORT A.P. HILLVAW-2","FORT A.P. HILLVAW-2",1401]
["FORT A.P. HILL","VA","W-3","FORT A.P. HILLVAW-3","FORT A.P. HILLVAW-3",1533]
["FORT A.P. HILL","VA","W-4","FORT A.P. HILLVAW-4","FORT A.P. HILLVAW-4",1719]
["FORT A.P. HILL","VA","W-5","FORT A.P. HILLVAW-5","FORT A.P. HILLVAW-5",1755]
["FORT A.P. HILL","VA","O-1E","FORT A.P. HILLVAO-1E","FORT A.P. HILLVAO-1E",1326]
["FORT A.P. HILL","VA","O-2E","FORT A.P. HILLVAO-2E","FORT A.P. HILLVAO-2E",1497]
["FORT A.P. HILL","VA","O-3E","FORT A.P. HILLVAO-3E","FORT A.P. HILLVAO-3E",1710]
["FORT A.P. HILL","VA","O-1","FORT A.P. HILLVAO-1","FORT A.P. HILLVAO-1",1119]
["FORT A.P. HILL","VA","O-2","FORT A.P. HILLVAO-2","FORT A.P. HILLVAO-2",1293]
["FORT A.P. HILL","VA","O-3","FORT A.P. HILLVAO-3","FORT A.P. HILLVAO-3",1572]
["FORT A.P. HILL","VA","O-4","FORT A.P. HILLVAO-4","FORT A.P. HILLVAO-4",1749]
["FORT A.P. HILL","VA","O-5","FORT A.P. HILLVAO-5","FORT A.P. HILLVAO-5",1773]
["FORT A.P. HILL","VA","O-6","FORT A.P. HILLVAO-6","FORT A.P. HILLVAO-6",1809]
["FORT A.P. HILL","VA","O-7","FORT A.P. HILLVAO-7","FORT A.P. HILLVAO-7",1845]
["BURLINGTON","VT","E-1","BURLINGTONVTE-1","BURLINGTONVTE-1",1149,1149,1149,1149,1149,1323,1410,1545,1785,1821,1443,1785,1824,1896,1968,1764,1815,1878,1332,1683,1836,1959,2004,2079,2121]
["BURLINGTON","VT","E-2","BURLINGTONVTE-2","BURLINGTONVTE-2",1149]
["BURLINGTON","VT","E-3","BURLINGTONVTE-3","BURLINGTONVTE-3",1149]
["BURLINGTON","VT","E-4","BURLINGTONVTE-4","BURLINGTONVTE-4",1149]
["BURLINGTON","VT","E-5","BURLINGTONVTE-5","BURLINGTONVTE-5",1323]
["BURLINGTON","VT","E-6","BURLINGTONVTE-6","BURLINGTONVTE-6",1410]
["BURLINGTON","VT","E-7","BURLINGTONVTE-7","BURLINGTONVTE-7",1545]
["BURLINGTON","VT","E-8","BURLINGTONVTE-8","BURLINGTONVTE-8",1785]
["BURLINGTON","VT","E-9","BURLINGTONVTE-9","BURLINGTONVTE-9",1821]
["BURLINGTON","VT","W-1","BURLINGTONVTW-1","BURLINGTONVTW-1",1443]
["BURLINGTON","VT","W-2","BURLINGTONVTW-2","BURLINGTONVTW-2",1785]
["BURLINGTON","VT","W-3","BURLINGTONVTW-3","BURLINGTONVTW-3",1824]
["BURLINGTON","VT","W-4","BURLINGTONVTW-4","BURLINGTONVTW-4",1896]
["BURLINGTON","VT","W-5","BURLINGTONVTW-5","BURLINGTONVTW-5",1968]
["BURLINGTON","VT","O-1E","BURLINGTONVTO-1E","BURLINGTONVTO-1E",1764]
["BURLINGTON","VT","O-2E","BURLINGTONVTO-2E","BURLINGTONVTO-2E",1815]
["BURLINGTON","VT","O-3E","BURLINGTONVTO-3E","BURLINGTONVTO-3E",1878]
["BURLINGTON","VT","O-1","BURLINGTONVTO-1","BURLINGTONVTO-1",1332]
["BURLINGTON","VT","O-2","BURLINGTONVTO-2","BURLINGTONVTO-2",1683]
["BURLINGTON","VT","O-3","BURLINGTONVTO-3","BURLINGTONVTO-3",1836]
["BURLINGTON","VT","O-4","BURLINGTONVTO-4","BURLINGTONVTO-4",1959]
["BURLINGTON","VT","O-5","BURLINGTONVTO-5","BURLINGTONVTO-5",2004]
["BURLINGTON","VT","O-6","BURLINGTONVTO-6","BURLINGTONVTO-6",2079]
["BURLINGTON","VT","O-7","BURLINGTONVTO-7","BURLINGTONVTO-7",2121]
["BREMERTON","WA","E-1","BREMERTONWAE-1","BREMERTONWAE-1",861,861,861,861,861,969,1035,1131,1257,1299,1086,1257,1302,1386,1467,1230,1290,1365,1020,1194,1317,1455,1509,1593,1626]
["BREMERTON","WA","E-2","BREMERTONWAE-2","BREMERTONWAE-2",861]
["BREMERTON","WA","E-3","BREMERTONWAE-3","BREMERTONWAE-3",861]
["BREMERTON","WA","E-4","BREMERTONWAE-4","BREMERTONWAE-4",861]
["BREMERTON","WA","E-5","BREMERTONWAE-5","BREMERTONWAE-5",969]
["BREMERTON","WA","E-6","BREMERTONWAE-6","BREMERTONWAE-6",1035]
["BREMERTON","WA","E-7","BREMERTONWAE-7","BREMERTONWAE-7",1131]
["BREMERTON","WA","E-8","BREMERTONWAE-8","BREMERTONWAE-8",1257]
["BREMERTON","WA","E-9",{"$f":"A8194&B8194&C8194","v":"BREMERTONWAE-9"},"BREMERTONWAE-9",1299]
["BREMERTON","WA","W-1","BREMERTONWAW-1","BREMERTONWAW-1",1086]
["BREMERTON","WA","W-2","BREMERTONWAW-2","BREMERTONWAW-2",1257]
["BREMERTON","WA","W-3","BREMERTONWAW-3","BREMERTONWAW-3",1302]
["BREMERTON","WA","W-4","BREMERTONWAW-4","BREMERTONWAW-4",1386]
["BREMERTON","WA","W-5","BREMERTONWAW-5","BREMERTONWAW-5",1467]
["BREMERTON","WA","O-1E","BREMERTONWAO-1E","BREMERTONWAO-1E",1230]
["BREMERTON","WA","O-2E","BREMERTONWAO-2E","BREMERTONWAO-2E",1290]
["BREMERTON","WA","O-3E","BREMERTONWAO-3E","BREMERTONWAO-3E",1365]
["BREMERTON","WA","O-1","BREMERTONWAO-1","BREMERTONWAO-1",1020]
["BREMERTON","WA","O-2","BREMERTONWAO-2","BREMERTONWAO-2",1194]
["BREMERTON","WA","O-3","BREMERTONWAO-3","BREMERTONWAO-3",1317]
["BREMERTON","WA","O-4","BREMERTONWAO-4","BREMERTONWAO-4",1455]
["BREMERTON","WA","O-5","BREMERTONWAO-5","BREMERTONWAO-5",1509]
["BREMERTON","WA","O-6","BREMERTONWAO-6","BREMERTONWAO-6",1593]
["BREMERTON","WA","O-7","BREMERTONWAO-7","BREMERTONWAO-7",1626]
["EVERETT","WA","E-1","EVERETTWAE-1","EVERETTWAE-1",942,942,942,942,942,1080,1161,1239,1368,1437,1203,1365,1443,1569,1653,1320,1422,1548,1149,1293,1467,1644,1695,1782,1818]
["EVERETT","WA","E-2","EVERETTWAE-2","EVERETTWAE-2",942]
["EVERETT","WA","E-3","EVERETTWAE-3","EVERETTWAE-3",942]
["EVERETT","WA","E-4","EVERETTWAE-4","EVERETTWAE-4",942]
["EVERETT","WA","E-5","EVERETTWAE-5","EVERETTWAE-5",1080]
["EVERETT","WA","E-6","EVERETTWAE-6","EVERETTWAE-6",1161]
["EVERETT","WA","E-7","EVERETTWAE-7","EVERETTWAE-7",1239]
["EVERETT","WA","E-8","EVERETTWAE-8","EVERETTWAE-8",1368]
["EVERETT","WA","E-9","EVERETTWAE-9","EVERETTWAE-9",1437]
["EVERETT","WA","W-1","EVERETTWAW-1","EVERETTWAW-1",1203]
["EVERETT","WA","W-2","EVERETTWAW-2","EVERETTWAW-2",1365]
["EVERETT","WA","W-3","EVERETTWAW-3","EVERETTWAW-3",1443]
["EVERETT","WA","W-4","EVERETTWAW-4","EVERETTWAW-4",1569]
["EVERETT","WA","W-5","EVERETTWAW-5","EVERETTWAW-5",1653]
["EVERETT","WA","O-1E","EVERETTWAO-1E","EVERETTWAO-1E",1320]
["EVERETT","WA","O-2E","EVERETTWAO-2E","EVERETTWAO-2E",1422]
["EVERETT","WA","O-3E","EVERETTWAO-3E","EVERETTWAO-3E",1548]
["EVERETT","WA","O-1","EVERETTWAO-1","EVERETTWAO-1",1149]
["EVERETT","WA","O-2","EVERETTWAO-2","EVERETTWAO-2",1293]
["EVERETT","WA","O-3","EVERETTWAO-3","EVERETTWAO-3",1467]
["EVERETT","WA","O-4","EVERETTWAO-4","EVERETTWAO-4",1644]
["EVERETT","WA","O-5","EVERETTWAO-5","EVERETTWAO-5",1695]
["EVERETT","WA","O-6","EVERETTWAO-6","EVERETTWAO-6",1782]
["EVERETT","WA","O-7","EVERETTWAO-7","EVERETTWAO-7",1818]
["PORT ANGELES","WA","E-1","PORT ANGELESWAE-1","PORT ANGELESWAE-1",753,753,753,753,753,834,969,1014,1140,1197,969,1140,1203,1305,1368,1104,1185,1290,909,1071,1224,1359,1398,1461,1488]
["PORT ANGELES","WA","E-2","PORT ANGELESWAE-2","PORT ANGELESWAE-2",753]
["PORT ANGELES","WA","E-3","PORT ANGELESWAE-3","PORT ANGELESWAE-3",753]
["PORT ANGELES","WA","E-4","PORT ANGELESWAE-4","PORT ANGELESWAE-4",753]
["PORT ANGELES","WA","E-5","PORT ANGELESWAE-5","PORT ANGELESWAE-5",834]
["PORT ANGELES","WA","E-6","PORT ANGELESWAE-6","PORT ANGELESWAE-6",969]
["PORT ANGELES","WA","E-7","PORT ANGELESWAE-7","PORT ANGELESWAE-7",1014]
["PORT ANGELES","WA","E-8","PORT ANGELESWAE-8","PORT ANGELESWAE-8",1140]
["PORT ANGELES","WA","E-9","PORT ANGELESWAE-9","PORT ANGELESWAE-9",1197]
["PORT ANGELES","WA","W-1","PORT ANGELESWAW-1","PORT ANGELESWAW-1",969]
["PORT ANGELES","WA","W-2","PORT ANGELESWAW-2","PORT ANGELESWAW-2",1140]
["PORT ANGELES","WA","W-3","PORT ANGELESWAW-3","PORT ANGELESWAW-3",1203]
["PORT ANGELES","WA","W-4","PORT ANGELESWAW-4","PORT ANGELESWAW-4",1305]
["PORT ANGELES","WA","W-5","PORT ANGELESWAW-5","PORT ANGELESWAW-5",1368]
["PORT ANGELES","WA","O-1E","PORT ANGELESWAO-1E","PORT ANGELESWAO-1E",1104]
["PORT ANGELES","WA","O-2E","PORT ANGELESWAO-2E","PORT ANGELESWAO-2E",1185]
["PORT ANGELES","WA","O-3E","PORT ANGELESWAO-3E","PORT ANGELESWAO-3E",1290]
["PORT ANGELES","WA","O-1","PORT ANGELESWAO-1","PORT ANGELESWAO-1",909]
["PORT ANGELES","WA","O-2","PORT ANGELESWAO-2","PORT ANGELESWAO-2",1071]
["PORT ANGELES","WA","O-3","PORT ANGELESWAO-3","PORT ANGELESWAO-3",1224]
["PORT ANGELES","WA","O-4","PORT ANGELESWAO-4","PORT ANGELESWAO-4",1359]
["PORT ANGELES","WA","O-5","PORT ANGELESWAO-5","PORT ANGELESWAO-5",1398]
["PORT ANGELES","WA","O-6","PORT ANGELESWAO-6","PORT ANGELESWAO-6",1461]
["PORT ANGELES","WA","O-7","PORT ANGELESWAO-7","PORT ANGELESWAO-7",1488]
["PULLMAN","WA","E-1",{"$f":"A8258&B8258&C8258","v":"PULLMANWAE-1"},"PULLMANWAE-1",606,606,606,606,606,684,978,1014,1056,1122,978,1032,1122,1317,1365,1023,1083,1305,717,972,1164,1359,1389,1440,1470]
["PULLMAN","WA","E-2","PULLMANWAE-2","PULLMANWAE-2",606]
["PULLMAN","WA","E-3","PULLMANWAE-3","PULLMANWAE-3",606]
["PULLMAN","WA","E-4","PULLMANWAE-4","PULLMANWAE-4",606]
["PULLMAN","WA","E-5","PULLMANWAE-5","PULLMANWAE-5",684]
["PULLMAN","WA","E-6","PULLMANWAE-6","PULLMANWAE-6",978]
["PULLMAN","WA","E-7","PULLMANWAE-7","PULLMANWAE-7",1014]
["PULLMAN","WA","E-8","PULLMANWAE-8","PULLMANWAE-8",1056]
["PULLMAN","WA","E-9","PULLMANWAE-9","PULLMANWAE-9",1122]
["PULLMAN","WA","W-1","PULLMANWAW-1","PULLMANWAW-1",978]
["PULLMAN","WA","W-2","PULLMANWAW-2","PULLMANWAW-2",1032]
["PULLMAN","WA","W-3","PULLMANWAW-3","PULLMANWAW-3",1122]
["PULLMAN","WA","W-4","PULLMANWAW-4","PULLMANWAW-4",1317]
["PULLMAN","WA","W-5","PULLMANWAW-5","PULLMANWAW-5",1365]
["PULLMAN","WA","O-1E","PULLMANWAO-1E","PULLMANWAO-1E",1023]
["PULLMAN","WA","O-2E","PULLMANWAO-2E","PULLMANWAO-2E",1083]
["PULLMAN","WA","O-3E","PULLMANWAO-3E","PULLMANWAO-3E",1305]
["PULLMAN","WA","O-1","PULLMANWAO-1","PULLMANWAO-1",717]
["PULLMAN","WA","O-2","PULLMANWAO-2","PULLMANWAO-2",972]
["PULLMAN","WA","O-3","PULLMANWAO-3","PULLMANWAO-3",1164]
["PULLMAN","WA","O-4","PULLMANWAO-4","PULLMANWAO-4",1359]
["PULLMAN","WA","O-5","PULLMANWAO-5","PULLMANWAO-5",1389]
["PULLMAN","WA","O-6","PULLMANWAO-6","PULLMANWAO-6",1440]
["PULLMAN","WA","O-7","PULLMANWAO-7","PULLMANWAO-7",1470]
["SEATTLE","WA","E-1","SEATTLEWAE-1","SEATTLEWAE-1",1047,1047,1047,1047,1047,1176,1410,1464,1629,1728,1413,1626,1737,1899,1968,1566,1704,1881,1227,1509,1767,1959,2004,2076,2118]
["SEATTLE","WA","E-2","SEATTLEWAE-2","SEATTLEWAE-2",1047]
["SEATTLE","WA","E-3","SEATTLEWAE-3","SEATTLEWAE-3",1047]
["SEATTLE","WA","E-4","SEATTLEWAE-4","SEATTLEWAE-4",1047]
["SEATTLE","WA","E-5","SEATTLEWAE-5","SEATTLEWAE-5",1176]
["SEATTLE","WA","E-6","SEATTLEWAE-6","SEATTLEWAE-6",1410]
["SEATTLE","WA","E-7","SEATTLEWAE-7","SEATTLEWAE-7",1464]
["SEATTLE","WA","E-8","SEATTLEWAE-8","SEATTLEWAE-8",1629]
["SEATTLE","WA","E-9","SEATTLEWAE-9","SEATTLEWAE-9",1728]
["SEATTLE","WA","W-1","SEATTLEWAW-1","SEATTLEWAW-1",1413]
["SEATTLE","WA","W-2","SEATTLEWAW-2","SEATTLEWAW-2",1626]
["SEATTLE","WA","W-3","SEATTLEWAW-3","SEATTLEWAW-3",1737]
["SEATTLE","WA","W-4","SEATTLEWAW-4","SEATTLEWAW-4",1899]
["SEATTLE","WA","W-5","SEATTLEWAW-5","SEATTLEWAW-5",1968]
["SEATTLE","WA","O-1E","SEATTLEWAO-1E","SEATTLEWAO-1E",1566]
["SEATTLE","WA","O-2E","SEATTLEWAO-2E","SEATTLEWAO-2E",1704]
["SEATTLE","WA","O-3E","SEATTLEWAO-3E","SEATTLEWAO-3E",1881]
["SEATTLE","WA","O-1","SEATTLEWAO-1","SEATTLEWAO-1",1227]
["SEATTLE","WA","O-2","SEATTLEWAO-2","SEATTLEWAO-2",1509]
["SEATTLE","WA","O-3","SEATTLEWAO-3","SEATTLEWAO-3",1767]
["SEATTLE","WA","O-4","SEATTLEWAO-4","SEATTLEWAO-4",1959]
["SEATTLE","WA","O-5","SEATTLEWAO-5","SEATTLEWAO-5",2004]
["SEATTLE","WA","O-6","SEATTLEWAO-6","SEATTLEWAO-6",2076]
["SEATTLE","WA","O-7","SEATTLEWAO-7","SEATTLEWAO-7",2118]
["SPOKANE","WA","E-1","SPOKANEWAE-1","SPOKANEWAE-1",714,714,714,714,714,795,870,957,1077,1110,909,1077,1113,1173,1236,1059,1101,1158,843,1023,1122,1227,1266,1326,1353]
["SPOKANE","WA","E-2","SPOKANEWAE-2","SPOKANEWAE-2",714]
["SPOKANE","WA","E-3","SPOKANEWAE-3","SPOKANEWAE-3",714]
["SPOKANE","WA","E-4","SPOKANEWAE-4","SPOKANEWAE-4",714]
["SPOKANE","WA","E-5","SPOKANEWAE-5","SPOKANEWAE-5",795]
["SPOKANE","WA","E-6","SPOKANEWAE-6","SPOKANEWAE-6",870]
["SPOKANE","WA","E-7","SPOKANEWAE-7","SPOKANEWAE-7",957]
["SPOKANE","WA","E-8","SPOKANEWAE-8","SPOKANEWAE-8",1077]
["SPOKANE","WA","E-9","SPOKANEWAE-9","SPOKANEWAE-9",1110]
["SPOKANE","WA","W-1","SPOKANEWAW-1","SPOKANEWAW-1",909]
["SPOKANE","WA","W-2","SPOKANEWAW-2","SPOKANEWAW-2",1077]
["SPOKANE","WA","W-3","SPOKANEWAW-3","SPOKANEWAW-3",1113]
["SPOKANE","WA","W-4","SPOKANEWAW-4","SPOKANEWAW-4",1173]
["SPOKANE","WA","W-5","SPOKANEWAW-5","SPOKANEWAW-5",1236]
["SPOKANE","WA","O-1E","SPOKANEWAO-1E","SPOKANEWAO-1E",1059]
["SPOKANE","WA","O-2E","SPOKANEWAO-2E","SPOKANEWAO-2E",1101]
["SPOKANE","WA","O-3E",{"$f":"A8322&B8322&C8322","v":"SPOKANEWAO-3E"},"SPOKANEWAO-3E",1158]
["SPOKANE","WA","O-1","SPOKANEWAO-1","SPOKANEWAO-1",843]
["SPOKANE","WA","O-2","SPOKANEWAO-2","SPOKANEWAO-2",1023]
["SPOKANE","WA","O-3","SPOKANEWAO-3","SPOKANEWAO-3",1122]
["SPOKANE","WA","O-4","SPOKANEWAO-4","SPOKANEWAO-4",1227]
["SPOKANE","WA","O-5","SPOKANEWAO-5","SPOKANEWAO-5",1266]
["SPOKANE","WA","O-6","SPOKANEWAO-6","SPOKANEWAO-6",1326]
["SPOKANE","WA","O-7","SPOKANEWAO-7","SPOKANEWAO-7",1353]
["TACOMA","WA","E-1","TACOMAWAE-1","TACOMAWAE-1",960,960,960,960,960,1074,1227,1308,1443,1518,1230,1440,1524,1662,1770,1395,1500,1635,1128,1350,1548,1755,1824,1935,1974]
["TACOMA","WA","E-2","TACOMAWAE-2","TACOMAWAE-2",960]
["TACOMA","WA","E-3","TACOMAWAE-3","TACOMAWAE-3",960]
["TACOMA","WA","E-4","TACOMAWAE-4","TACOMAWAE-4",960]
["TACOMA","WA","E-5","TACOMAWAE-5","TACOMAWAE-5",1074]
["TACOMA","WA","E-6","TACOMAWAE-6","TACOMAWAE-6",1227]
["TACOMA","WA","E-7","TACOMAWAE-7","TACOMAWAE-7",1308]
["TACOMA","WA","E-8","TACOMAWAE-8","TACOMAWAE-8",1443]
["TACOMA","WA","E-9","TACOMAWAE-9","TACOMAWAE-9",1518]
["TACOMA","WA","W-1","TACOMAWAW-1","TACOMAWAW-1",1230]
["TACOMA","WA","W-2","TACOMAWAW-2","TACOMAWAW-2",1440]
["TACOMA","WA","W-3","TACOMAWAW-3","TACOMAWAW-3",1524]
["TACOMA","WA","W-4","TACOMAWAW-4","TACOMAWAW-4",1662]
["TACOMA","WA","W-5","TACOMAWAW-5","TACOMAWAW-5",1770]
["TACOMA","WA","O-1E","TACOMAWAO-1E","TACOMAWAO-1E",1395]
["TACOMA","WA","O-2E","TACOMAWAO-2E","TACOMAWAO-2E",1500]
["TACOMA","WA","O-3E","TACOMAWAO-3E","TACOMAWAO-3E",1635]
["TACOMA","WA","O-1","TACOMAWAO-1","TACOMAWAO-1",1128]
["TACOMA","WA","O-2","TACOMAWAO-2","TACOMAWAO-2",1350]
["TACOMA","WA","O-3","TACOMAWAO-3","TACOMAWAO-3",1548]
["TACOMA","WA","O-4","TACOMAWAO-4","TACOMAWAO-4",1755]
["TACOMA","WA","O-5","TACOMAWAO-5","TACOMAWAO-5",1824]
["TACOMA","WA","O-6","TACOMAWAO-6","TACOMAWAO-6",1935]
["TACOMA","WA","O-7","TACOMAWAO-7","TACOMAWAO-7",1974]
["WHIDBEY ISLAND","WA","E-1","WHIDBEY ISLANDWAE-1","WHIDBEY ISLANDWAE-1",792,792,792,792,792,915,1023,1098,1182,1251,1029,1176,1257,1389,1491,1131,1233,1362,981,1107,1278,1476,1542,1647,1680]
["WHIDBEY ISLAND","WA","E-2","WHIDBEY ISLANDWAE-2","WHIDBEY ISLANDWAE-2",792]
["WHIDBEY ISLAND","WA","E-3","WHIDBEY ISLANDWAE-3","WHIDBEY ISLANDWAE-3",792]
["WHIDBEY ISLAND","WA","E-4","WHIDBEY ISLANDWAE-4","WHIDBEY ISLANDWAE-4",792]
["WHIDBEY ISLAND","WA","E-5","WHIDBEY ISLANDWAE-5","WHIDBEY ISLANDWAE-5",915]
["WHIDBEY ISLAND","WA","E-6","WHIDBEY ISLANDWAE-6","WHIDBEY ISLANDWAE-6",1023]
["WHIDBEY ISLAND","WA","E-7","WHIDBEY ISLANDWAE-7","WHIDBEY ISLANDWAE-7",1098]
["WHIDBEY ISLAND","WA","E-8","WHIDBEY ISLANDWAE-8","WHIDBEY ISLANDWAE-8",1182]
["WHIDBEY ISLAND","WA","E-9","WHIDBEY ISLANDWAE-9","WHIDBEY ISLANDWAE-9",1251]
["WHIDBEY ISLAND","WA","W-1","WHIDBEY ISLANDWAW-1","WHIDBEY ISLANDWAW-1",1029]
["WHIDBEY ISLAND","WA","W-2","WHIDBEY ISLANDWAW-2","WHIDBEY ISLANDWAW-2",1176]
["WHIDBEY ISLAND","WA","W-3","WHIDBEY ISLANDWAW-3","WHIDBEY ISLANDWAW-3",1257]
["WHIDBEY ISLAND","WA","W-4","WHIDBEY ISLANDWAW-4","WHIDBEY ISLANDWAW-4",1389]
["WHIDBEY ISLAND","WA","W-5","WHIDBEY ISLANDWAW-5","WHIDBEY ISLANDWAW-5",1491]
["WHIDBEY ISLAND","WA","O-1E","WHIDBEY ISLANDWAO-1E","WHIDBEY ISLANDWAO-1E",1131]
["WHIDBEY ISLAND","WA","O-2E","WHIDBEY ISLANDWAO-2E","WHIDBEY ISLANDWAO-2E",1233]
["WHIDBEY ISLAND","WA","O-3E","WHIDBEY ISLANDWAO-3E","WHIDBEY ISLANDWAO-3E",1362]
["WHIDBEY ISLAND","WA","O-1","WHIDBEY ISLANDWAO-1","WHIDBEY ISLANDWAO-1",981]
["WHIDBEY ISLAND","WA","O-2","WHIDBEY ISLANDWAO-2","WHIDBEY ISLANDWAO-2",1107]
["WHIDBEY ISLAND","WA","O-3","WHIDBEY ISLANDWAO-3","WHIDBEY ISLANDWAO-3",1278]
["WHIDBEY ISLAND","WA","O-4","WHIDBEY ISLANDWAO-4","WHIDBEY ISLANDWAO-4",1476]
["WHIDBEY ISLAND","WA","O-5","WHIDBEY ISLANDWAO-5","WHIDBEY ISLANDWAO-5",1542]
["WHIDBEY ISLAND","WA","O-6","WHIDBEY ISLANDWAO-6","WHIDBEY ISLANDWAO-6",1647]
["WHIDBEY ISLAND","WA","O-7","WHIDBEY ISLANDWAO-7","WHIDBEY ISLANDWAO-7",1680]
["YAKIMA","WA","E-1","YAKIMAWAE-1","YAKIMAWAE-1",804,804,804,804,804,924,981,1080,1245,1269,1011,1245,1272,1320,1371,1230,1263,1308,930,1176,1281,1365,1395,1446,1476]
["YAKIMA","WA","E-2","YAKIMAWAE-2","YAKIMAWAE-2",804]
["YAKIMA","WA","E-3","YAKIMAWAE-3","YAKIMAWAE-3",804]
["YAKIMA","WA","E-4","YAKIMAWAE-4","YAKIMAWAE-4",804]
["YAKIMA","WA","E-5","YAKIMAWAE-5","YAKIMAWAE-5",924]
["YAKIMA","WA","E-6","YAKIMAWAE-6","YAKIMAWAE-6",981]
["YAKIMA","WA","E-7","YAKIMAWAE-7","YAKIMAWAE-7",1080]
["YAKIMA","WA","E-8","YAKIMAWAE-8","YAKIMAWAE-8",1245]
["YAKIMA","WA","E-9",{"$f":"A8386&B8386&C8386","v":"YAKIMAWAE-9"},"YAKIMAWAE-9",1269]
["YAKIMA","WA","W-1","YAKIMAWAW-1","YAKIMAWAW-1",1011]
["YAKIMA","WA","W-2","YAKIMAWAW-2","YAKIMAWAW-2",1245]
["YAKIMA","WA","W-3","YAKIMAWAW-3","YAKIMAWAW-3",1272]
["YAKIMA","WA","W-4","YAKIMAWAW-4","YAKIMAWAW-4",1320]
["YAKIMA","WA","W-5","YAKIMAWAW-5","YAKIMAWAW-5",1371]
["YAKIMA","WA","O-1E","YAKIMAWAO-1E","YAKIMAWAO-1E",1230]
["YAKIMA","WA","O-2E","YAKIMAWAO-2E","YAKIMAWAO-2E",1263]
["YAKIMA","WA","O-3E","YAKIMAWAO-3E","YAKIMAWAO-3E",1308]
["YAKIMA","WA","O-1","YAKIMAWAO-1","YAKIMAWAO-1",930]
["YAKIMA","WA","O-2","YAKIMAWAO-2","YAKIMAWAO-2",1176]
["YAKIMA","WA","O-3","YAKIMAWAO-3","YAKIMAWAO-3",1281]
["YAKIMA","WA","O-4","YAKIMAWAO-4","YAKIMAWAO-4",1365]
["YAKIMA","WA","O-5","YAKIMAWAO-5","YAKIMAWAO-5",1395]
["YAKIMA","WA","O-6","YAKIMAWAO-6","YAKIMAWAO-6",1446]
["YAKIMA","WA","O-7","YAKIMAWAO-7","YAKIMAWAO-7",1476]
["ABERDEEN","WA","E-1","ABERDEENWAE-1","ABERDEENWAE-1",654,654,654,654,654,735,801,876,975,1011,840,975,1014,1077,1134,954,1002,1062,789,927,1023,1125,1161,1218,1242]
["ABERDEEN","WA","E-2","ABERDEENWAE-2","ABERDEENWAE-2",654]
["ABERDEEN","WA","E-3","ABERDEENWAE-3","ABERDEENWAE-3",654]
["ABERDEEN","WA","E-4","ABERDEENWAE-4","ABERDEENWAE-4",654]
["ABERDEEN","WA","E-5","ABERDEENWAE-5","ABERDEENWAE-5",735]
["ABERDEEN","WA","E-6","ABERDEENWAE-6","ABERDEENWAE-6",801]
["ABERDEEN","WA","E-7","ABERDEENWAE-7","ABERDEENWAE-7",876]
["ABERDEEN","WA","E-8","ABERDEENWAE-8","ABERDEENWAE-8",975]
["ABERDEEN","WA","E-9","ABERDEENWAE-9","ABERDEENWAE-9",1011]
["ABERDEEN","WA","W-1","ABERDEENWAW-1","ABERDEENWAW-1",840]
["ABERDEEN","WA","W-2","ABERDEENWAW-2","ABERDEENWAW-2",975]
["ABERDEEN","WA","W-3","ABERDEENWAW-3","ABERDEENWAW-3",1014]
["ABERDEEN","WA","W-4","ABERDEENWAW-4","ABERDEENWAW-4",1077]
["ABERDEEN","WA","W-5","ABERDEENWAW-5","ABERDEENWAW-5",1134]
["ABERDEEN","WA","O-1E","ABERDEENWAO-1E","ABERDEENWAO-1E",954]
["ABERDEEN","WA","O-2E","ABERDEENWAO-2E","ABERDEENWAO-2E",1002]
["ABERDEEN","WA","O-3E","ABERDEENWAO-3E","ABERDEENWAO-3E",1062]
["ABERDEEN","WA","O-1","ABERDEENWAO-1","ABERDEENWAO-1",789]
["ABERDEEN","WA","O-2","ABERDEENWAO-2","ABERDEENWAO-2",927]
["ABERDEEN","WA","O-3","ABERDEENWAO-3","ABERDEENWAO-3",1023]
["ABERDEEN","WA","O-4","ABERDEENWAO-4","ABERDEENWAO-4",1125]
["ABERDEEN","WA","O-5","ABERDEENWAO-5","ABERDEENWAO-5",1161]
["ABERDEEN","WA","O-6","ABERDEENWAO-6","ABERDEENWAO-6",1218]
["ABERDEEN","WA","O-7","ABERDEENWAO-7","ABERDEENWAO-7",1242]
["MADISON","WI","E-1","MADISONWIE-1","MADISONWIE-1",918,918,918,918,918,1065,1152,1230,1350,1410,1191,1347,1416,1524,1590,1311,1398,1506,1140,1281,1437,1581,1623,1692,1728]
["MADISON","WI","E-2","MADISONWIE-2","MADISONWIE-2",918]
["MADISON","WI","E-3","MADISONWIE-3","MADISONWIE-3",918]
["MADISON","WI","E-4","MADISONWIE-4","MADISONWIE-4",918]
["MADISON","WI","E-5","MADISONWIE-5","MADISONWIE-5",1065]
["MADISON","WI","E-6","MADISONWIE-6","MADISONWIE-6",1152]
["MADISON","WI","E-7","MADISONWIE-7","MADISONWIE-7",1230]
["MADISON","WI","E-8","MADISONWIE-8","MADISONWIE-8",1350]
["MADISON","WI","E-9","MADISONWIE-9","MADISONWIE-9",1410]
["MADISON","WI","W-1","MADISONWIW-1","MADISONWIW-1",1191]
["MADISON","WI","W-2","MADISONWIW-2","MADISONWIW-2",1347]
["MADISON","WI","W-3","MADISONWIW-3","MADISONWIW-3",1416]
["MADISON","WI","W-4","MADISONWIW-4","MADISONWIW-4",1524]
["MADISON","WI","W-5","MADISONWIW-5","MADISONWIW-5",1590]
["MADISON","WI","O-1E","MADISONWIO-1E","MADISONWIO-1E",1311]
["MADISON","WI","O-2E","MADISONWIO-2E","MADISONWIO-2E",1398]
["MADISON","WI","O-3E","MADISONWIO-3E","MADISONWIO-3E",1506]
["MADISON","WI","O-1","MADISONWIO-1","MADISONWIO-1",1140]
["MADISON","WI","O-2","MADISONWIO-2","MADISONWIO-2",1281]
["MADISON","WI","O-3","MADISONWIO-3","MADISONWIO-3",1437]
["MADISON","WI","O-4","MADISONWIO-4","MADISONWIO-4",1581]
["MADISON","WI","O-5","MADISONWIO-5","MADISONWIO-5",1623]
["MADISON","WI","O-6","MADISONWIO-6","MADISONWIO-6",1692]
["MADISON","WI","O-7","MADISONWIO-7","MADISONWIO-7",1728]
["MILWAUKEE","WI","E-1",{"$f":"A8450&B8450&C8450","v":"MILWAUKEEWIE-1"},"MILWAUKEEWIE-1",954,954,954,954,954,1095,1197,1278,1389,1428,1239,1386,1431,1509,1584,1362,1419,1491,1185,1332,1443,1575,1623,1701,1737]
["MILWAUKEE","WI","E-2","MILWAUKEEWIE-2","MILWAUKEEWIE-2",954]
["MILWAUKEE","WI","E-3","MILWAUKEEWIE-3","MILWAUKEEWIE-3",954]
["MILWAUKEE","WI","E-4","MILWAUKEEWIE-4","MILWAUKEEWIE-4",954]
["MILWAUKEE","WI","E-5","MILWAUKEEWIE-5","MILWAUKEEWIE-5",1095]
["MILWAUKEE","WI","E-6","MILWAUKEEWIE-6","MILWAUKEEWIE-6",1197]
["MILWAUKEE","WI","E-7","MILWAUKEEWIE-7","MILWAUKEEWIE-7",1278]
["MILWAUKEE","WI","E-8","MILWAUKEEWIE-8","MILWAUKEEWIE-8",1389]
["MILWAUKEE","WI","E-9","MILWAUKEEWIE-9","MILWAUKEEWIE-9",1428]
["MILWAUKEE","WI","W-1","MILWAUKEEWIW-1","MILWAUKEEWIW-1",1239]
["MILWAUKEE","WI","W-2","MILWAUKEEWIW-2","MILWAUKEEWIW-2",1386]
["MILWAUKEE","WI","W-3","MILWAUKEEWIW-3","MILWAUKEEWIW-3",1431]
["MILWAUKEE","WI","W-4","MILWAUKEEWIW-4","MILWAUKEEWIW-4",1509]
["MILWAUKEE","WI","W-5","MILWAUKEEWIW-5","MILWAUKEEWIW-5",1584]
["MILWAUKEE","WI","O-1E","MILWAUKEEWIO-1E","MILWAUKEEWIO-1E",1362]
["MILWAUKEE","WI","O-2E","MILWAUKEEWIO-2E","MILWAUKEEWIO-2E",1419]
["MILWAUKEE","WI","O-3E","MILWAUKEEWIO-3E","MILWAUKEEWIO-3E",1491]
["MILWAUKEE","WI","O-1","MILWAUKEEWIO-1","MILWAUKEEWIO-1",1185]
["MILWAUKEE","WI","O-2","MILWAUKEEWIO-2","MILWAUKEEWIO-2",1332]
["MILWAUKEE","WI","O-3","MILWAUKEEWIO-3","MILWAUKEEWIO-3",1443]
["MILWAUKEE","WI","O-4","MILWAUKEEWIO-4","MILWAUKEEWIO-4",1575]
["MILWAUKEE","WI","O-5","MILWAUKEEWIO-5","MILWAUKEEWIO-5",1623]
["MILWAUKEE","WI","O-6","MILWAUKEEWIO-6","MILWAUKEEWIO-6",1701]
["MILWAUKEE","WI","O-7","MILWAUKEEWIO-7","MILWAUKEEWIO-7",1737]
["SPARTA/FORT MCCOY","WI","E-1","SPARTA/FORT MCCOYWIE-1","SPARTA/FORT MCCOYWIE-1",687,687,687,687,687,774,933,957,1074,1140,933,1074,1146,1251,1281,1032,1125,1245,801,993,1170,1278,1296,1326,1353]
["SPARTA/FORT MCCOY","WI","E-2","SPARTA/FORT MCCOYWIE-2","SPARTA/FORT MCCOYWIE-2",687]
["SPARTA/FORT MCCOY","WI","E-3","SPARTA/FORT MCCOYWIE-3","SPARTA/FORT MCCOYWIE-3",687]
["SPARTA/FORT MCCOY","WI","E-4","SPARTA/FORT MCCOYWIE-4","SPARTA/FORT MCCOYWIE-4",687]
["SPARTA/FORT MCCOY","WI","E-5","SPARTA/FORT MCCOYWIE-5","SPARTA/FORT MCCOYWIE-5",774]
["SPARTA/FORT MCCOY","WI","E-6","SPARTA/FORT MCCOYWIE-6","SPARTA/FORT MCCOYWIE-6",933]
["SPARTA/FORT MCCOY","WI","E-7","SPARTA/FORT MCCOYWIE-7","SPARTA/FORT MCCOYWIE-7",957]
["SPARTA/FORT MCCOY","WI","E-8","SPARTA/FORT MCCOYWIE-8","SPARTA/FORT MCCOYWIE-8",1074]
["SPARTA/FORT MCCOY","WI","E-9","SPARTA/FORT MCCOYWIE-9","SPARTA/FORT MCCOYWIE-9",1140]
["SPARTA/FORT MCCOY","WI","W-1","SPARTA/FORT MCCOYWIW-1","SPARTA/FORT MCCOYWIW-1",933]
["SPARTA/FORT MCCOY","WI","W-2","SPARTA/FORT MCCOYWIW-2","SPARTA/FORT MCCOYWIW-2",1074]
["SPARTA/FORT MCCOY","WI","W-3","SPARTA/FORT MCCOYWIW-3","SPARTA/FORT MCCOYWIW-3",1146]
["SPARTA/FORT MCCOY","WI","W-4","SPARTA/FORT MCCOYWIW-4","SPARTA/FORT MCCOYWIW-4",1251]
["SPARTA/FORT MCCOY","WI","W-5","SPARTA/FORT MCCOYWIW-5","SPARTA/FORT MCCOYWIW-5",1281]
["SPARTA/FORT MCCOY","WI","O-1E","SPARTA/FORT MCCOYWIO-1E","SPARTA/FORT MCCOYWIO-1E",1032]
["SPARTA/FORT MCCOY","WI","O-2E","SPARTA/FORT MCCOYWIO-2E","SPARTA/FORT MCCOYWIO-2E",1125]
["SPARTA/FORT MCCOY","WI","O-3E","SPARTA/FORT MCCOYWIO-3E","SPARTA/FORT MCCOYWIO-3E",1245]
["SPARTA/FORT MCCOY","WI","O-1","SPARTA/FORT MCCOYWIO-1","SPARTA/FORT MCCOYWIO-1",801]
["SPARTA/FORT MCCOY","WI","O-2","SPARTA/FORT MCCOYWIO-2","SPARTA/FORT MCCOYWIO-2",993]
["SPARTA/FORT MCCOY","WI","O-3","SPARTA/FORT MCCOYWIO-3","SPARTA/FORT MCCOYWIO-3",1170]
["SPARTA/FORT MCCOY","WI","O-4","SPARTA/FORT MCCOYWIO-4","SPARTA/FORT MCCOYWIO-4",1278]
["SPARTA/FORT MCCOY","WI","O-5","SPARTA/FORT MCCOYWIO-5","SPARTA/FORT MCCOYWIO-5",1296]
["SPARTA/FORT MCCOY","WI","O-6","SPARTA/FORT MCCOYWIO-6","SPARTA/FORT MCCOYWIO-6",1326]
["SPARTA/FORT MCCOY","WI","O-7","SPARTA/FORT MCCOYWIO-7","SPARTA/FORT MCCOYWIO-7",1353]
["OSHKOSH/APPLETON","WI","E-1","OSHKOSH/APPLETONWIE-1","OSHKOSH/APPLETONWIE-1",615,615,615,615,615,690,813,843,939,996,813,936,1002,1095,1134,903,984,1083,738,876,1020,1128,1167,1194,1218]
["OSHKOSH/APPLETON","WI","E-2","OSHKOSH/APPLETONWIE-2","OSHKOSH/APPLETONWIE-2",615]
["OSHKOSH/APPLETON","WI","E-3","OSHKOSH/APPLETONWIE-3","OSHKOSH/APPLETONWIE-3",615]
["OSHKOSH/APPLETON","WI","E-4","OSHKOSH/APPLETONWIE-4","OSHKOSH/APPLETONWIE-4",615]
["OSHKOSH/APPLETON","WI","E-5","OSHKOSH/APPLETONWIE-5","OSHKOSH/APPLETONWIE-5",690]
["OSHKOSH/APPLETON","WI","E-6","OSHKOSH/APPLETONWIE-6","OSHKOSH/APPLETONWIE-6",813]
["OSHKOSH/APPLETON","WI","E-7","OSHKOSH/APPLETONWIE-7","OSHKOSH/APPLETONWIE-7",843]
["OSHKOSH/APPLETON","WI","E-8","OSHKOSH/APPLETONWIE-8","OSHKOSH/APPLETONWIE-8",939]
["OSHKOSH/APPLETON","WI","E-9","OSHKOSH/APPLETONWIE-9","OSHKOSH/APPLETONWIE-9",996]
["OSHKOSH/APPLETON","WI","W-1","OSHKOSH/APPLETONWIW-1","OSHKOSH/APPLETONWIW-1",813]
["OSHKOSH/APPLETON","WI","W-2","OSHKOSH/APPLETONWIW-2","OSHKOSH/APPLETONWIW-2",936]
["OSHKOSH/APPLETON","WI","W-3","OSHKOSH/APPLETONWIW-3","OSHKOSH/APPLETONWIW-3",1002]
["OSHKOSH/APPLETON","WI","W-4","OSHKOSH/APPLETONWIW-4","OSHKOSH/APPLETONWIW-4",1095]
["OSHKOSH/APPLETON","WI","W-5","OSHKOSH/APPLETONWIW-5","OSHKOSH/APPLETONWIW-5",1134]
["OSHKOSH/APPLETON","WI","O-1E","OSHKOSH/APPLETONWIO-1E","OSHKOSH/APPLETONWIO-1E",903]
["OSHKOSH/APPLETON","WI","O-2E","OSHKOSH/APPLETONWIO-2E","OSHKOSH/APPLETONWIO-2E",984]
["OSHKOSH/APPLETON","WI","O-3E",{"$f":"A8514&B8514&C8514","v":"OSHKOSH/APPLETONWIO-3E"},"OSHKOSH/APPLETONWIO-3E",1083]
["OSHKOSH/APPLETON","WI","O-1","OSHKOSH/APPLETONWIO-1","OSHKOSH/APPLETONWIO-1",738]
["OSHKOSH/APPLETON","WI","O-2","OSHKOSH/APPLETONWIO-2","OSHKOSH/APPLETONWIO-2",876]
["OSHKOSH/APPLETON","WI","O-3","OSHKOSH/APPLETONWIO-3","OSHKOSH/APPLETONWIO-3",1020]
["OSHKOSH/APPLETON","WI","O-4","OSHKOSH/APPLETONWIO-4","OSHKOSH/APPLETONWIO-4",1128]
["OSHKOSH/APPLETON","WI","O-5","OSHKOSH/APPLETONWIO-5","OSHKOSH/APPLETONWIO-5",1167]
["OSHKOSH/APPLETON","WI","O-6","OSHKOSH/APPLETONWIO-6","OSHKOSH/APPLETONWIO-6",1194]
["OSHKOSH/APPLETON","WI","O-7","OSHKOSH/APPLETONWIO-7","OSHKOSH/APPLETONWIO-7",1218]
["GREEN BAY","WI","E-1","GREEN BAYWIE-1","GREEN BAYWIE-1",624,624,624,624,624,717,879,900,951,1035,879,948,1044,1179,1206,903,1017,1170,771,876,1071,1200,1347,1359,1374]
["GREEN BAY","WI","E-2","GREEN BAYWIE-2","GREEN BAYWIE-2",624]
["GREEN BAY","WI","E-3","GREEN BAYWIE-3","GREEN BAYWIE-3",624]
["GREEN BAY","WI","E-4","GREEN BAYWIE-4","GREEN BAYWIE-4",624]
["GREEN BAY","WI","E-5","GREEN BAYWIE-5","GREEN BAYWIE-5",717]
["GREEN BAY","WI","E-6","GREEN BAYWIE-6","GREEN BAYWIE-6",879]
["GREEN BAY","WI","E-7","GREEN BAYWIE-7","GREEN BAYWIE-7",900]
["GREEN BAY","WI","E-8","GREEN BAYWIE-8","GREEN BAYWIE-8",951]
["GREEN BAY","WI","E-9","GREEN BAYWIE-9","GREEN BAYWIE-9",1035]
["GREEN BAY","WI","W-1","GREEN BAYWIW-1","GREEN BAYWIW-1",879]
["GREEN BAY","WI","W-2","GREEN BAYWIW-2","GREEN BAYWIW-2",948]
["GREEN BAY","WI","W-3","GREEN BAYWIW-3","GREEN BAYWIW-3",1044]
["GREEN BAY","WI","W-4","GREEN BAYWIW-4","GREEN BAYWIW-4",1179]
["GREEN BAY","WI","W-5","GREEN BAYWIW-5","GREEN BAYWIW-5",1206]
["GREEN BAY","WI","O-1E","GREEN BAYWIO-1E","GREEN BAYWIO-1E",903]
["GREEN BAY","WI","O-2E","GREEN BAYWIO-2E","GREEN BAYWIO-2E",1017]
["GREEN BAY","WI","O-3E","GREEN BAYWIO-3E","GREEN BAYWIO-3E",1170]
["GREEN BAY","WI","O-1","GREEN BAYWIO-1","GREEN BAYWIO-1",771]
["GREEN BAY","WI","O-2","GREEN BAYWIO-2","GREEN BAYWIO-2",876]
["GREEN BAY","WI","O-3","GREEN BAYWIO-3","GREEN BAYWIO-3",1071]
["GREEN BAY","WI","O-4","GREEN BAYWIO-4","GREEN BAYWIO-4",1200]
["GREEN BAY","WI","O-5","GREEN BAYWIO-5","GREEN BAYWIO-5",1347]
["GREEN BAY","WI","O-6","GREEN BAYWIO-6","GREEN BAYWIO-6",1359]
["GREEN BAY","WI","O-7","GREEN BAYWIO-7","GREEN BAYWIO-7",1374]
["STEVENS POINT","WI","E-1","STEVENS POINTWIE-1","STEVENS POINTWIE-1",639,639,639,639,639,735,849,873,945,1017,849,942,1023,1140,1170,897,999,1131,783,879,1047,1167,1185,1218,1242]
["STEVENS POINT","WI","E-2","STEVENS POINTWIE-2","STEVENS POINTWIE-2",639]
["STEVENS POINT","WI","E-3","STEVENS POINTWIE-3","STEVENS POINTWIE-3",639]
["STEVENS POINT","WI","E-4","STEVENS POINTWIE-4","STEVENS POINTWIE-4",639]
["STEVENS POINT","WI","E-5","STEVENS POINTWIE-5","STEVENS POINTWIE-5",735]
["STEVENS POINT","WI","E-6","STEVENS POINTWIE-6","STEVENS POINTWIE-6",849]
["STEVENS POINT","WI","E-7","STEVENS POINTWIE-7","STEVENS POINTWIE-7",873]
["STEVENS POINT","WI","E-8","STEVENS POINTWIE-8","STEVENS POINTWIE-8",945]
["STEVENS POINT","WI","E-9","STEVENS POINTWIE-9","STEVENS POINTWIE-9",1017]
["STEVENS POINT","WI","W-1","STEVENS POINTWIW-1","STEVENS POINTWIW-1",849]
["STEVENS POINT","WI","W-2","STEVENS POINTWIW-2","STEVENS POINTWIW-2",942]
["STEVENS POINT","WI","W-3","STEVENS POINTWIW-3","STEVENS POINTWIW-3",1023]
["STEVENS POINT","WI","W-4","STEVENS POINTWIW-4","STEVENS POINTWIW-4",1140]
["STEVENS POINT","WI","W-5","STEVENS POINTWIW-5","STEVENS POINTWIW-5",1170]
["STEVENS POINT","WI","O-1E","STEVENS POINTWIO-1E","STEVENS POINTWIO-1E",897]
["STEVENS POINT","WI","O-2E","STEVENS POINTWIO-2E","STEVENS POINTWIO-2E",999]
["STEVENS POINT","WI","O-3E","STEVENS POINTWIO-3E","STEVENS POINTWIO-3E",1131]
["STEVENS POINT","WI","O-1","STEVENS POINTWIO-1","STEVENS POINTWIO-1",783]
["STEVENS POINT","WI","O-2","STEVENS POINTWIO-2","STEVENS POINTWIO-2",879]
["STEVENS POINT","WI","O-3","STEVENS POINTWIO-3","STEVENS POINTWIO-3",1047]
["STEVENS POINT","WI","O-4","STEVENS POINTWIO-4","STEVENS POINTWIO-4",1167]
["STEVENS POINT","WI","O-5","STEVENS POINTWIO-5","STEVENS POINTWIO-5",1185]
["STEVENS POINT","WI","O-6","STEVENS POINTWIO-6","STEVENS POINTWIO-6",1218]
["STEVENS POINT","WI","O-7","STEVENS POINTWIO-7","STEVENS POINTWIO-7",1242]
["STURGEON BAY","WI","E-1","STURGEON BAYWIE-1","STURGEON BAYWIE-1",654,654,654,654,654,696,792,837,954,993,792,951,996,1071,1131,927,984,1056,705,888,1008,1122,1161,1221,1245]
["STURGEON BAY","WI","E-2","STURGEON BAYWIE-2","STURGEON BAYWIE-2",654]
["STURGEON BAY","WI","E-3","STURGEON BAYWIE-3","STURGEON BAYWIE-3",654]
["STURGEON BAY","WI","E-4","STURGEON BAYWIE-4","STURGEON BAYWIE-4",654]
["STURGEON BAY","WI","E-5","STURGEON BAYWIE-5","STURGEON BAYWIE-5",696]
["STURGEON BAY","WI","E-6","STURGEON BAYWIE-6","STURGEON BAYWIE-6",792]
["STURGEON BAY","WI","E-7","STURGEON BAYWIE-7","STURGEON BAYWIE-7",837]
["STURGEON BAY","WI","E-8","STURGEON BAYWIE-8","STURGEON BAYWIE-8",954]
["STURGEON BAY","WI","E-9",{"$f":"A8578&B8578&C8578","v":"STURGEON BAYWIE-9"},"STURGEON BAYWIE-9",993]
["STURGEON BAY","WI","W-1","STURGEON BAYWIW-1","STURGEON BAYWIW-1",792]
["STURGEON BAY","WI","W-2","STURGEON BAYWIW-2","STURGEON BAYWIW-2",951]
["STURGEON BAY","WI","W-3","STURGEON BAYWIW-3","STURGEON BAYWIW-3",996]
["STURGEON BAY","WI","W-4","STURGEON BAYWIW-4","STURGEON BAYWIW-4",1071]
["STURGEON BAY","WI","W-5","STURGEON BAYWIW-5","STURGEON BAYWIW-5",1131]
["STURGEON BAY","WI","O-1E","STURGEON BAYWIO-1E","STURGEON BAYWIO-1E",927]
["STURGEON BAY","WI","O-2E","STURGEON BAYWIO-2E","STURGEON BAYWIO-2E",984]
["STURGEON BAY","WI","O-3E","STURGEON BAYWIO-3E","STURGEON BAYWIO-3E",1056]
["STURGEON BAY","WI","O-1","STURGEON BAYWIO-1","STURGEON BAYWIO-1",705]
["STURGEON BAY","WI","O-2","STURGEON BAYWIO-2","STURGEON BAYWIO-2",888]
["STURGEON BAY","WI","O-3","STURGEON BAYWIO-3","STURGEON BAYWIO-3",1008]
["STURGEON BAY","WI","O-4","STURGEON BAYWIO-4","STURGEON BAYWIO-4",1122]
["STURGEON BAY","WI","O-5","STURGEON BAYWIO-5","STURGEON BAYWIO-5",1161]
["STURGEON BAY","WI","O-6","STURGEON BAYWIO-6","STURGEON BAYWIO-6",1221]
["STURGEON BAY","WI","O-7","STURGEON BAYWIO-7","STURGEON BAYWIO-7",1245]
["EAU CLAIRE","WI","E-1","EAU CLAIREWIE-1","EAU CLAIREWIE-1",675,675,675,675,675,768,903,909,1059,1113,903,1056,1119,1206,1215,1023,1101,1203,783,981,1137,1215,1221,1233,1257]
["EAU CLAIRE","WI","E-2","EAU CLAIREWIE-2","EAU CLAIREWIE-2",675]
["EAU CLAIRE","WI","E-3","EAU CLAIREWIE-3","EAU CLAIREWIE-3",675]
["EAU CLAIRE","WI","E-4","EAU CLAIREWIE-4","EAU CLAIREWIE-4",675]
["EAU CLAIRE","WI","E-5","EAU CLAIREWIE-5","EAU CLAIREWIE-5",768]
["EAU CLAIRE","WI","E-6","EAU CLAIREWIE-6","EAU CLAIREWIE-6",903]
["EAU CLAIRE","WI","E-7","EAU CLAIREWIE-7","EAU CLAIREWIE-7",909]
["EAU CLAIRE","WI","E-8","EAU CLAIREWIE-8","EAU CLAIREWIE-8",1059]
["EAU CLAIRE","WI","E-9","EAU CLAIREWIE-9","EAU CLAIREWIE-9",1113]
["EAU CLAIRE","WI","W-1","EAU CLAIREWIW-1","EAU CLAIREWIW-1",903]
["EAU CLAIRE","WI","W-2","EAU CLAIREWIW-2","EAU CLAIREWIW-2",1056]
["EAU CLAIRE","WI","W-3","EAU CLAIREWIW-3","EAU CLAIREWIW-3",1119]
["EAU CLAIRE","WI","W-4","EAU CLAIREWIW-4","EAU CLAIREWIW-4",1206]
["EAU CLAIRE","WI","W-5","EAU CLAIREWIW-5","EAU CLAIREWIW-5",1215]
["EAU CLAIRE","WI","O-1E","EAU CLAIREWIO-1E","EAU CLAIREWIO-1E",1023]
["EAU CLAIRE","WI","O-2E","EAU CLAIREWIO-2E","EAU CLAIREWIO-2E",1101]
["EAU CLAIRE","WI","O-3E","EAU CLAIREWIO-3E","EAU CLAIREWIO-3E",1203]
["EAU CLAIRE","WI","O-1","EAU CLAIREWIO-1","EAU CLAIREWIO-1",783]
["EAU CLAIRE","WI","O-2","EAU CLAIREWIO-2","EAU CLAIREWIO-2",981]
["EAU CLAIRE","WI","O-3","EAU CLAIREWIO-3","EAU CLAIREWIO-3",1137]
["EAU CLAIRE","WI","O-4","EAU CLAIREWIO-4","EAU CLAIREWIO-4",1215]
["EAU CLAIRE","WI","O-5","EAU CLAIREWIO-5","EAU CLAIREWIO-5",1221]
["EAU CLAIRE","WI","O-6","EAU CLAIREWIO-6","EAU CLAIREWIO-6",1233]
["EAU CLAIRE","WI","O-7","EAU CLAIREWIO-7","EAU CLAIREWIO-7",1257]
["MORGANTOWN","WV","E-1","MORGANTOWNWVE-1","MORGANTOWNWVE-1",768,768,768,768,768,882,1053,1059,1221,1293,1053,1218,1299,1407,1416,1176,1275,1404,900,1122,1323,1416,1443,1458,1473]
["MORGANTOWN","WV","E-2","MORGANTOWNWVE-2","MORGANTOWNWVE-2",768]
["MORGANTOWN","WV","E-3","MORGANTOWNWVE-3","MORGANTOWNWVE-3",768]
["MORGANTOWN","WV","E-4","MORGANTOWNWVE-4","MORGANTOWNWVE-4",768]
["MORGANTOWN","WV","E-5","MORGANTOWNWVE-5","MORGANTOWNWVE-5",882]
["MORGANTOWN","WV","E-6","MORGANTOWNWVE-6","MORGANTOWNWVE-6",1053]
["MORGANTOWN","WV","E-7","MORGANTOWNWVE-7","MORGANTOWNWVE-7",1059]
["MORGANTOWN","WV","E-8","MORGANTOWNWVE-8","MORGANTOWNWVE-8",1221]
["MORGANTOWN","WV","E-9","MORGANTOWNWVE-9","MORGANTOWNWVE-9",1293]
["MORGANTOWN","WV","W-1","MORGANTOWNWVW-1","MORGANTOWNWVW-1",1053]
["MORGANTOWN","WV","W-2","MORGANTOWNWVW-2","MORGANTOWNWVW-2",1218]
["MORGANTOWN","WV","W-3","MORGANTOWNWVW-3","MORGANTOWNWVW-3",1299]
["MORGANTOWN","WV","W-4","MORGANTOWNWVW-4","MORGANTOWNWVW-4",1407]
["MORGANTOWN","WV","W-5","MORGANTOWNWVW-5","MORGANTOWNWVW-5",1416]
["MORGANTOWN","WV","O-1E","MORGANTOWNWVO-1E","MORGANTOWNWVO-1E",1176]
["MORGANTOWN","WV","O-2E","MORGANTOWNWVO-2E","MORGANTOWNWVO-2E",1275]
["MORGANTOWN","WV","O-3E","MORGANTOWNWVO-3E","MORGANTOWNWVO-3E",1404]
["MORGANTOWN","WV","O-1","MORGANTOWNWVO-1","MORGANTOWNWVO-1",900]
["MORGANTOWN","WV","O-2","MORGANTOWNWVO-2","MORGANTOWNWVO-2",1122]
["MORGANTOWN","WV","O-3","MORGANTOWNWVO-3","MORGANTOWNWVO-3",1323]
["MORGANTOWN","WV","O-4","MORGANTOWNWVO-4","MORGANTOWNWVO-4",1416]
["MORGANTOWN","WV","O-5","MORGANTOWNWVO-5","MORGANTOWNWVO-5",1443]
["MORGANTOWN","WV","O-6","MORGANTOWNWVO-6","MORGANTOWNWVO-6",1458]
["MORGANTOWN","WV","O-7","MORGANTOWNWVO-7","MORGANTOWNWVO-7",1473]
["HUNTINGTON","WV","E-1",{"$f":"A8642&B8642&C8642","v":"HUNTINGTONWVE-1"},"HUNTINGTONWVE-1",684,684,684,684,684,813,912,939,1002,1086,912,999,1092,1224,1260,948,1065,1215,876,936,1119,1254,1278,1317,1341]
["HUNTINGTON","WV","E-2","HUNTINGTONWVE-2","HUNTINGTONWVE-2",684]
["HUNTINGTON","WV","E-3","HUNTINGTONWVE-3","HUNTINGTONWVE-3",684]
["HUNTINGTON","WV","E-4","HUNTINGTONWVE-4","HUNTINGTONWVE-4",684]
["HUNTINGTON","WV","E-5","HUNTINGTONWVE-5","HUNTINGTONWVE-5",813]
["HUNTINGTON","WV","E-6","HUNTINGTONWVE-6","HUNTINGTONWVE-6",912]
["HUNTINGTON","WV","E-7","HUNTINGTONWVE-7","HUNTINGTONWVE-7",939]
["HUNTINGTON","WV","E-8","HUNTINGTONWVE-8","HUNTINGTONWVE-8",1002]
["HUNTINGTON","WV","E-9","HUNTINGTONWVE-9","HUNTINGTONWVE-9",1086]
["HUNTINGTON","WV","W-1","HUNTINGTONWVW-1","HUNTINGTONWVW-1",912]
["HUNTINGTON","WV","W-2","HUNTINGTONWVW-2","HUNTINGTONWVW-2",999]
["HUNTINGTON","WV","W-3","HUNTINGTONWVW-3","HUNTINGTONWVW-3",1092]
["HUNTINGTON","WV","W-4","HUNTINGTONWVW-4","HUNTINGTONWVW-4",1224]
["HUNTINGTON","WV","W-5","HUNTINGTONWVW-5","HUNTINGTONWVW-5",1260]
["HUNTINGTON","WV","O-1E","HUNTINGTONWVO-1E","HUNTINGTONWVO-1E",948]
["HUNTINGTON","WV","O-2E","HUNTINGTONWVO-2E","HUNTINGTONWVO-2E",1065]
["HUNTINGTON","WV","O-3E","HUNTINGTONWVO-3E","HUNTINGTONWVO-3E",1215]
["HUNTINGTON","WV","O-1","HUNTINGTONWVO-1","HUNTINGTONWVO-1",876]
["HUNTINGTON","WV","O-2","HUNTINGTONWVO-2","HUNTINGTONWVO-2",936]
["HUNTINGTON","WV","O-3","HUNTINGTONWVO-3","HUNTINGTONWVO-3",1119]
["HUNTINGTON","WV","O-4","HUNTINGTONWVO-4","HUNTINGTONWVO-4",1254]
["HUNTINGTON","WV","O-5","HUNTINGTONWVO-5","HUNTINGTONWVO-5",1278]
["HUNTINGTON","WV","O-6","HUNTINGTONWVO-6","HUNTINGTONWVO-6",1317]
["HUNTINGTON","WV","O-7","HUNTINGTONWVO-7","HUNTINGTONWVO-7",1341]
["CHARLESTON","WV","E-1","CHARLESTONWVE-1","CHARLESTONWVE-1",627,627,627,627,627,735,801,840,921,978,816,921,984,1080,1128,885,966,1068,786,867,1002,1122,1149,1197,1221]
["CHARLESTON","WV","E-2","CHARLESTONWVE-2","CHARLESTONWVE-2",627]
["CHARLESTON","WV","E-3","CHARLESTONWVE-3","CHARLESTONWVE-3",627]
["CHARLESTON","WV","E-4","CHARLESTONWVE-4","CHARLESTONWVE-4",627]
["CHARLESTON","WV","E-5","CHARLESTONWVE-5","CHARLESTONWVE-5",735]
["CHARLESTON","WV","E-6","CHARLESTONWVE-6","CHARLESTONWVE-6",801]
["CHARLESTON","WV","E-7","CHARLESTONWVE-7","CHARLESTONWVE-7",840]
["CHARLESTON","WV","E-8","CHARLESTONWVE-8","CHARLESTONWVE-8",921]
["CHARLESTON","WV","E-9","CHARLESTONWVE-9","CHARLESTONWVE-9",978]
["CHARLESTON","WV","W-1","CHARLESTONWVW-1","CHARLESTONWVW-1",816]
["CHARLESTON","WV","W-2","CHARLESTONWVW-2","CHARLESTONWVW-2",921]
["CHARLESTON","WV","W-3","CHARLESTONWVW-3","CHARLESTONWVW-3",984]
["CHARLESTON","WV","W-4","CHARLESTONWVW-4","CHARLESTONWVW-4",1080]
["CHARLESTON","WV","W-5","CHARLESTONWVW-5","CHARLESTONWVW-5",1128]
["CHARLESTON","WV","O-1E","CHARLESTONWVO-1E","CHARLESTONWVO-1E",885]
["CHARLESTON","WV","O-2E","CHARLESTONWVO-2E","CHARLESTONWVO-2E",966]
["CHARLESTON","WV","O-3E","CHARLESTONWVO-3E","CHARLESTONWVO-3E",1068]
["CHARLESTON","WV","O-1","CHARLESTONWVO-1","CHARLESTONWVO-1",786]
["CHARLESTON","WV","O-2","CHARLESTONWVO-2","CHARLESTONWVO-2",867]
["CHARLESTON","WV","O-3","CHARLESTONWVO-3","CHARLESTONWVO-3",1002]
["CHARLESTON","WV","O-4","CHARLESTONWVO-4","CHARLESTONWVO-4",1122]
["CHARLESTON","WV","O-5","CHARLESTONWVO-5","CHARLESTONWVO-5",1149]
["CHARLESTON","WV","O-6","CHARLESTONWVO-6","CHARLESTONWVO-6",1197]
["CHARLESTON","WV","O-7","CHARLESTONWVO-7","CHARLESTONWVO-7",1221]
["BECKLEY","WV","E-1","BECKLEYWVE-1","BECKLEYWVE-1",609,609,609,609,609,693,744,804,891,930,777,888,933,1008,1074,864,921,993,735,843,948,1065,1104,1170,1194]
["BECKLEY","WV","E-2","BECKLEYWVE-2","BECKLEYWVE-2",609]
["BECKLEY","WV","E-3","BECKLEYWVE-3","BECKLEYWVE-3",609]
["BECKLEY","WV","E-4","BECKLEYWVE-4","BECKLEYWVE-4",609]
["BECKLEY","WV","E-5","BECKLEYWVE-5","BECKLEYWVE-5",693]
["BECKLEY","WV","E-6","BECKLEYWVE-6","BECKLEYWVE-6",744]
["BECKLEY","WV","E-7","BECKLEYWVE-7","BECKLEYWVE-7",804]
["BECKLEY","WV","E-8","BECKLEYWVE-8","BECKLEYWVE-8",891]
["BECKLEY","WV","E-9","BECKLEYWVE-9","BECKLEYWVE-9",930]
["BECKLEY","WV","W-1","BECKLEYWVW-1","BECKLEYWVW-1",777]
["BECKLEY","WV","W-2","BECKLEYWVW-2","BECKLEYWVW-2",888]
["BECKLEY","WV","W-3","BECKLEYWVW-3","BECKLEYWVW-3",933]
["BECKLEY","WV","W-4","BECKLEYWVW-4","BECKLEYWVW-4",1008]
["BECKLEY","WV","W-5","BECKLEYWVW-5","BECKLEYWVW-5",1074]
["BECKLEY","WV","O-1E","BECKLEYWVO-1E","BECKLEYWVO-1E",864]
["BECKLEY","WV","O-2E","BECKLEYWVO-2E","BECKLEYWVO-2E",921]
["BECKLEY","WV","O-3E",{"$f":"A8706&B8706&C8706","v":"BECKLEYWVO-3E"},"BECKLEYWVO-3E",993]
["BECKLEY","WV","O-1","BECKLEYWVO-1","BECKLEYWVO-1",735]
["BECKLEY","WV","O-2","BECKLEYWVO-2","BECKLEYWVO-2",843]
["BECKLEY","WV","O-3","BECKLEYWVO-3","BECKLEYWVO-3",948]
["BECKLEY","WV","O-4","BECKLEYWVO-4","BECKLEYWVO-4",1065]
["BECKLEY","WV","O-5","BECKLEYWVO-5","BECKLEYWVO-5",1104]
["BECKLEY","WV","O-6","BECKLEYWVO-6","BECKLEYWVO-6",1170]
["BECKLEY","WV","O-7","BECKLEYWVO-7","BECKLEYWVO-7",1194]
["MARTINSBURG","WV","E-1","MARTINSBURGWVE-1","MARTINSBURGWVE-1",846,846,846,846,846,954,1023,1110,1230,1275,1068,1230,1281,1362,1428,1200,1266,1347,1008,1167,1293,1419,1458,1524,1557]
["MARTINSBURG","WV","E-2","MARTINSBURGWVE-2","MARTINSBURGWVE-2",846]
["MARTINSBURG","WV","E-3","MARTINSBURGWVE-3","MARTINSBURGWVE-3",846]
["MARTINSBURG","WV","E-4","MARTINSBURGWVE-4","MARTINSBURGWVE-4",846]
["MARTINSBURG","WV","E-5","MARTINSBURGWVE-5","MARTINSBURGWVE-5",954]
["MARTINSBURG","WV","E-6","MARTINSBURGWVE-6","MARTINSBURGWVE-6",1023]
["MARTINSBURG","WV","E-7","MARTINSBURGWVE-7","MARTINSBURGWVE-7",1110]
["MARTINSBURG","WV","E-8","MARTINSBURGWVE-8","MARTINSBURGWVE-8",1230]
["MARTINSBURG","WV","E-9","MARTINSBURGWVE-9","MARTINSBURGWVE-9",1275]
["MARTINSBURG","WV","W-1","MARTINSBURGWVW-1","MARTINSBURGWVW-1",1068]
["MARTINSBURG","WV","W-2","MARTINSBURGWVW-2","MARTINSBURGWVW-2",1230]
["MARTINSBURG","WV","W-3","MARTINSBURGWVW-3","MARTINSBURGWVW-3",1281]
["MARTINSBURG","WV","W-4","MARTINSBURGWVW-4","MARTINSBURGWVW-4",1362]
["MARTINSBURG","WV","W-5","MARTINSBURGWVW-5","MARTINSBURGWVW-5",1428]
["MARTINSBURG","WV","O-1E","MARTINSBURGWVO-1E","MARTINSBURGWVO-1E",1200]
["MARTINSBURG","WV","O-2E","MARTINSBURGWVO-2E","MARTINSBURGWVO-2E",1266]
["MARTINSBURG","WV","O-3E","MARTINSBURGWVO-3E","MARTINSBURGWVO-3E",1347]
["MARTINSBURG","WV","O-1","MARTINSBURGWVO-1","MARTINSBURGWVO-1",1008]
["MARTINSBURG","WV","O-2","MARTINSBURGWVO-2","MARTINSBURGWVO-2",1167]
["MARTINSBURG","WV","O-3","MARTINSBURGWVO-3","MARTINSBURGWVO-3",1293]
["MARTINSBURG","WV","O-4","MARTINSBURGWVO-4","MARTINSBURGWVO-4",1419]
["MARTINSBURG","WV","O-5","MARTINSBURGWVO-5","MARTINSBURGWVO-5",1458]
["MARTINSBURG","WV","O-6","MARTINSBURGWVO-6","MARTINSBURGWVO-6",1524]
["MARTINSBURG","WV","O-7","MARTINSBURGWVO-7","MARTINSBURGWVO-7",1557]
["CLARKSBURG","WV","E-1","CLARKSBURGWVE-1","CLARKSBURGWVE-1",651,651,651,651,651,738,897,921,987,1068,897,984,1077,1203,1236,936,1050,1197,798,912,1101,1233,1260,1287,1314]
["CLARKSBURG","WV","E-2","CLARKSBURGWVE-2","CLARKSBURGWVE-2",651]
["CLARKSBURG","WV","E-3","CLARKSBURGWVE-3","CLARKSBURGWVE-3",651]
["CLARKSBURG","WV","E-4","CLARKSBURGWVE-4","CLARKSBURGWVE-4",651]
["CLARKSBURG","WV","E-5","CLARKSBURGWVE-5","CLARKSBURGWVE-5",738]
["CLARKSBURG","WV","E-6","CLARKSBURGWVE-6","CLARKSBURGWVE-6",897]
["CLARKSBURG","WV","E-7","CLARKSBURGWVE-7","CLARKSBURGWVE-7",921]
["CLARKSBURG","WV","E-8","CLARKSBURGWVE-8","CLARKSBURGWVE-8",987]
["CLARKSBURG","WV","E-9","CLARKSBURGWVE-9","CLARKSBURGWVE-9",1068]
["CLARKSBURG","WV","W-1","CLARKSBURGWVW-1","CLARKSBURGWVW-1",897]
["CLARKSBURG","WV","W-2","CLARKSBURGWVW-2","CLARKSBURGWVW-2",984]
["CLARKSBURG","WV","W-3","CLARKSBURGWVW-3","CLARKSBURGWVW-3",1077]
["CLARKSBURG","WV","W-4","CLARKSBURGWVW-4","CLARKSBURGWVW-4",1203]
["CLARKSBURG","WV","W-5","CLARKSBURGWVW-5","CLARKSBURGWVW-5",1236]
["CLARKSBURG","WV","O-1E","CLARKSBURGWVO-1E","CLARKSBURGWVO-1E",936]
["CLARKSBURG","WV","O-2E","CLARKSBURGWVO-2E","CLARKSBURGWVO-2E",1050]
["CLARKSBURG","WV","O-3E","CLARKSBURGWVO-3E","CLARKSBURGWVO-3E",1197]
["CLARKSBURG","WV","O-1","CLARKSBURGWVO-1","CLARKSBURGWVO-1",798]
["CLARKSBURG","WV","O-2","CLARKSBURGWVO-2","CLARKSBURGWVO-2",912]
["CLARKSBURG","WV","O-3","CLARKSBURGWVO-3","CLARKSBURGWVO-3",1101]
["CLARKSBURG","WV","O-4","CLARKSBURGWVO-4","CLARKSBURGWVO-4",1233]
["CLARKSBURG","WV","O-5","CLARKSBURGWVO-5","CLARKSBURGWVO-5",1260]
["CLARKSBURG","WV","O-6","CLARKSBURGWVO-6","CLARKSBURGWVO-6",1287]
["CLARKSBURG","WV","O-7","CLARKSBURGWVO-7","CLARKSBURGWVO-7",1314]
["PARKERSBURG","WV","E-1","PARKERSBURGWVE-1","PARKERSBURGWVE-1",606,606,606,606,606,687,744,813,900,933,780,900,936,990,1023,882,924,981,735,855,945,1017,1038,1071,1092]
["PARKERSBURG","WV","E-2","PARKERSBURGWVE-2","PARKERSBURGWVE-2",606]
["PARKERSBURG","WV","E-3","PARKERSBURGWVE-3","PARKERSBURGWVE-3",606]
["PARKERSBURG","WV","E-4","PARKERSBURGWVE-4","PARKERSBURGWVE-4",606]
["PARKERSBURG","WV","E-5","PARKERSBURGWVE-5","PARKERSBURGWVE-5",687]
["PARKERSBURG","WV","E-6","PARKERSBURGWVE-6","PARKERSBURGWVE-6",744]
["PARKERSBURG","WV","E-7","PARKERSBURGWVE-7","PARKERSBURGWVE-7",813]
["PARKERSBURG","WV","E-8","PARKERSBURGWVE-8","PARKERSBURGWVE-8",900]
["PARKERSBURG","WV","E-9",{"$f":"A8770&B8770&C8770","v":"PARKERSBURGWVE-9"},"PARKERSBURGWVE-9",933]
["PARKERSBURG","WV","W-1","PARKERSBURGWVW-1","PARKERSBURGWVW-1",780]
["PARKERSBURG","WV","W-2","PARKERSBURGWVW-2","PARKERSBURGWVW-2",900]
["PARKERSBURG","WV","W-3","PARKERSBURGWVW-3","PARKERSBURGWVW-3",936]
["PARKERSBURG","WV","W-4","PARKERSBURGWVW-4","PARKERSBURGWVW-4",990]
["PARKERSBURG","WV","W-5","PARKERSBURGWVW-5","PARKERSBURGWVW-5",1023]
["PARKERSBURG","WV","O-1E","PARKERSBURGWVO-1E","PARKERSBURGWVO-1E",882]
["PARKERSBURG","WV","O-2E","PARKERSBURGWVO-2E","PARKERSBURGWVO-2E",924]
["PARKERSBURG","WV","O-3E","PARKERSBURGWVO-3E","PARKERSBURGWVO-3E",981]
["PARKERSBURG","WV","O-1","PARKERSBURGWVO-1","PARKERSBURGWVO-1",735]
["PARKERSBURG","WV","O-2","PARKERSBURGWVO-2","PARKERSBURGWVO-2",855]
["PARKERSBURG","WV","O-3","PARKERSBURGWVO-3","PARKERSBURGWVO-3",945]
["PARKERSBURG","WV","O-4","PARKERSBURGWVO-4","PARKERSBURGWVO-4",1017]
["PARKERSBURG","WV","O-5","PARKERSBURGWVO-5","PARKERSBURGWVO-5",1038]
["PARKERSBURG","WV","O-6","PARKERSBURGWVO-6","PARKERSBURGWVO-6",1071]
["PARKERSBURG","WV","O-7","PARKERSBURGWVO-7","PARKERSBURGWVO-7",1092]
["CHEYENNE","WY","E-1","CHEYENNEWYE-1","CHEYENNEWYE-1",642,642,642,642,642,720,996,1032,1074,1149,999,1050,1158,1341,1389,1041,1122,1329,750,990,1197,1383,1416,1464,1494]
["CHEYENNE","WY","E-2","CHEYENNEWYE-2","CHEYENNEWYE-2",642]
["CHEYENNE","WY","E-3","CHEYENNEWYE-3","CHEYENNEWYE-3",642]
["CHEYENNE","WY","E-4","CHEYENNEWYE-4","CHEYENNEWYE-4",642]
["CHEYENNE","WY","E-5","CHEYENNEWYE-5","CHEYENNEWYE-5",720]
["CHEYENNE","WY","E-6","CHEYENNEWYE-6","CHEYENNEWYE-6",996]
["CHEYENNE","WY","E-7","CHEYENNEWYE-7","CHEYENNEWYE-7",1032]
["CHEYENNE","WY","E-8","CHEYENNEWYE-8","CHEYENNEWYE-8",1074]
["CHEYENNE","WY","E-9","CHEYENNEWYE-9","CHEYENNEWYE-9",1149]
["CHEYENNE","WY","W-1","CHEYENNEWYW-1","CHEYENNEWYW-1",999]
["CHEYENNE","WY","W-2","CHEYENNEWYW-2","CHEYENNEWYW-2",1050]
["CHEYENNE","WY","W-3","CHEYENNEWYW-3","CHEYENNEWYW-3",1158]
["CHEYENNE","WY","W-4","CHEYENNEWYW-4","CHEYENNEWYW-4",1341]
["CHEYENNE","WY","W-5","CHEYENNEWYW-5","CHEYENNEWYW-5",1389]
["CHEYENNE","WY","O-1E","CHEYENNEWYO-1E","CHEYENNEWYO-1E",1041]
["CHEYENNE","WY","O-2E","CHEYENNEWYO-2E","CHEYENNEWYO-2E",1122]
["CHEYENNE","WY","O-3E","CHEYENNEWYO-3E","CHEYENNEWYO-3E",1329]
["CHEYENNE","WY","O-1","CHEYENNEWYO-1","CHEYENNEWYO-1",750]
["CHEYENNE","WY","O-2","CHEYENNEWYO-2","CHEYENNEWYO-2",990]
["CHEYENNE","WY","O-3","CHEYENNEWYO-3","CHEYENNEWYO-3",1197]
["CHEYENNE","WY","O-4","CHEYENNEWYO-4","CHEYENNEWYO-4",1383]
["CHEYENNE","WY","O-5","CHEYENNEWYO-5","CHEYENNEWYO-5",1416]
["CHEYENNE","WY","O-6","CHEYENNEWYO-6","CHEYENNEWYO-6",1464]
["CHEYENNE","WY","O-7","CHEYENNEWYO-7","CHEYENNEWYO-7",1494]

{"sheet":"BAH w Dep RAW","index":5,"n_rows":365,"n_cols":26,"rows_kept":365,"hidden":true}
["City","State"," E1 "," E2 "," E3 "," E4 "," E5 "," E6 "," E7 "," E8 "," E9 "," W01 "," W02 "," W03 "," W04 "," W05 "," O1E "," O2E "," O3E "," O1 "," O2 "," O3 "," O4 "," O5 "," O6 "," O7 "]
[{"$f":"HYPERLINK(A1,\"KETCHIKAN\")","v":"KETCHIKAN"},"AK",{"v":1587,"d":"$1,587"},{"v":1587,"d":"$1,587"},{"v":1587,"d":"$1,587"},{"v":1587,"d":"$1,587"},{"v":1911,"d":"$1,911"},{"v":1911,"d":"$1,911"},{"v":2067,"d":"$2,067"},{"v":2235,"d":"$2,235"},{"v":2394,"d":"$2,394"},{"v":1914,"d":"$1,914"},{"v":2136,"d":"$2,136"},{"v":2343,"d":"$2,343"},{"v":2412,"d":"$2,412"},{"v":2493,"d":"$2,493"},{"v":2100,"d":"$2,100"},{"v":2313,"d":"$2,313"},{"v":2424,"d":"$2,424"},{"v":1911,"d":"$1,911"},{"v":1911,"d":"$1,911"},{"v":2334,"d":"$2,334"},{"v":2523,"d":"$2,523"},{"v":2655,"d":"$2,655"},{"v":2682,"d":"$2,682"},{"v":2706,"d":"$2,706"}]
[" SITKA","AK",{"v":1797,"d":"$1,797"},{"v":1797,"d":"$1,797"},{"v":1797,"d":"$1,797"},{"v":1797,"d":"$1,797"},{"v":2040,"d":"$2,040"},{"v":2040,"d":"$2,040"},{"v":2145,"d":"$2,145"},{"v":2259,"d":"$2,259"},{"v":2385,"d":"$2,385"},{"v":2043,"d":"$2,043"},{"v":2193,"d":"$2,193"},{"v":2334,"d":"$2,334"},{"v":2403,"d":"$2,403"},{"v":2487,"d":"$2,487"},{"v":2169,"d":"$2,169"},{"v":2313,"d":"$2,313"},{"v":2418,"d":"$2,418"},{"v":2040,"d":"$2,040"},{"v":2040,"d":"$2,040"},{"v":2328,"d":"$2,328"},{"v":2520,"d":"$2,520"},{"v":2655,"d":"$2,655"},{"v":2682,"d":"$2,682"},{"v":2706,"d":"$2,706"}]
[" JUNEAU","AK",{"v":1818,"d":"$1,818"},{"v":1818,"d":"$1,818"},{"v":1818,"d":"$1,818"},{"v":1818,"d":"$1,818"},{"v":2124,"d":"$2,124"},{"v":2124,"d":"$2,124"},{"v":2187,"d":"$2,187"},{"v":2259,"d":"$2,259"},{"v":2364,"d":"$2,364"},{"v":2127,"d":"$2,127"},{"v":2217,"d":"$2,217"},{"v":2304,"d":"$2,304"},{"v":2385,"d":"$2,385"},{"v":2484,"d":"$2,484"},{"v":2202,"d":"$2,202"},{"v":2289,"d":"$2,289"},{"v":2400,"d":"$2,400"},{"v":2124,"d":"$2,124"},{"v":2124,"d":"$2,124"},{"v":2298,"d":"$2,298"},{"v":2523,"d":"$2,523"},{"v":2679,"d":"$2,679"},{"v":2706,"d":"$2,706"},{"v":2733,"d":"$2,733"}]
[" KODIAK ISLAND","AK",{"v":1605,"d":"$1,605"},{"v":1605,"d":"$1,605"},{"v":1605,"d":"$1,605"},{"v":1605,"d":"$1,605"},{"v":1890,"d":"$1,890"},{"v":1890,"d":"$1,890"},{"v":2007,"d":"$2,007"},{"v":2130,"d":"$2,130"},{"v":2265,"d":"$2,265"},{"v":1893,"d":"$1,893"},{"v":2058,"d":"$2,058"},{"v":2211,"d":"$2,211"},{"v":2286,"d":"$2,286"},{"v":2373,"d":"$2,373"},{"v":2031,"d":"$2,031"},{"v":2190,"d":"$2,190"},{"v":2298,"d":"$2,298"},{"v":1890,"d":"$1,890"},{"v":1890,"d":"$1,890"},{"v":2205,"d":"$2,205"},{"v":2409,"d":"$2,409"},{"v":2550,"d":"$2,550"},{"v":2577,"d":"$2,577"},{"v":2601,"d":"$2,601"}]
[" ANCHORAGE","AK",{"v":1479,"d":"$1,479"},{"v":1479,"d":"$1,479"},{"v":1479,"d":"$1,479"},{"v":1479,"d":"$1,479"},{"v":1836,"d":"$1,836"},{"v":1836,"d":"$1,836"},{"v":1989,"d":"$1,989"},{"v":2154,"d":"$2,154"},{"v":2370,"d":"$2,370"},{"v":1839,"d":"$1,839"},{"v":2055,"d":"$2,055"},{"v":2259,"d":"$2,259"},{"v":2412,"d":"$2,412"},{"v":2595,"d":"$2,595"},{"v":2022,"d":"$2,022"},{"v":2229,"d":"$2,229"},{"v":2439,"d":"$2,439"},{"v":1836,"d":"$1,836"},{"v":1836,"d":"$1,836"},{"v":2250,"d":"$2,250"},{"v":2664,"d":"$2,664"},{"v":2958,"d":"$2,958"},{"v":2988,"d":"$2,988"},{"v":3018,"d":"$3,018"}]
[" FAIRBANKS","AK",{"v":1500,"d":"$1,500"},{"v":1500,"d":"$1,500"},{"v":1500,"d":"$1,500"},{"v":1500,"d":"$1,500"},{"v":1821,"d":"$1,821"},{"v":1821,"d":"$1,821"},{"v":1905,"d":"$1,905"},{"v":1998,"d":"$1,998"},{"v":2100,"d":"$2,100"},{"v":1821,"d":"$1,821"},{"v":1944,"d":"$1,944"},{"v":2058,"d":"$2,058"},{"v":2115,"d":"$2,115"},{"v":2181,"d":"$2,181"},{"v":1926,"d":"$1,926"},{"v":2040,"d":"$2,040"},{"v":2124,"d":"$2,124"},{"v":1821,"d":"$1,821"},{"v":1821,"d":"$1,821"},{"v":2052,"d":"$2,052"},{"v":2205,"d":"$2,205"},{"v":2313,"d":"$2,313"},{"v":2334,"d":"$2,334"},{"v":2358,"d":"$2,358"}]
[" ANNISTON/FORT MCCLELLAN","AL",{"v":792,"d":"$792"},{"v":792,"d":"$792"},{"v":792,"d":"$792"},{"v":792,"d":"$792"},{"v":837,"d":"$837"},{"v":1197,"d":"$1,197"},{"v":1218,"d":"$1,218"},{"v":1236,"d":"$1,236"},{"v":1287,"d":"$1,287"},{"v":1200,"d":"$1,200"},{"v":1224,"d":"$1,224"},{"v":1251,"d":"$1,251"},{"v":1299,"d":"$1,299"},{"v":1359,"d":"$1,359"},{"v":1221,"d":"$1,221"},{"v":1245,"d":"$1,245"},{"v":1311,"d":"$1,311"},{"v":876,"d":"$876"},{"v":1191,"d":"$1,191"},{"v":1248,"d":"$1,248"},{"v":1383,"d":"$1,383"},{"v":1479,"d":"$1,479"},{"v":1494,"d":"$1,494"},{"v":1509,"d":"$1,509"}]
[" FORT RUCKER","AL",{"v":915,"d":"$915"},{"v":915,"d":"$915"},{"v":915,"d":"$915"},{"v":915,"d":"$915"},{"v":1053,"d":"$1,053"},{"v":1254,"d":"$1,254"},{"v":1362,"d":"$1,362"},{"v":1479,"d":"$1,479"},{"v":1599,"d":"$1,599"},{"v":1257,"d":"$1,257"},{"v":1410,"d":"$1,410"},{"v":1551,"d":"$1,551"},{"v":1617,"d":"$1,617"},{"v":1695,"d":"$1,695"},{"v":1386,"d":"$1,386"},{"v":1530,"d":"$1,530"},{"v":1629,"d":"$1,629"},{"v":1074,"d":"$1,074"},{"v":1251,"d":"$1,251"},{"v":1545,"d":"$1,545"},{"v":1722,"d":"$1,722"},{"v":1848,"d":"$1,848"},{"v":1866,"d":"$1,866"},{"v":1884,"d":"$1,884"}]
[" HUNTSVILLE","AL",{"v":1059,"d":"$1,059"},{"v":1059,"d":"$1,059"},{"v":1059,"d":"$1,059"},{"v":1059,"d":"$1,059"},{"v":1146,"d":"$1,146"},{"v":1227,"d":"$1,227"},{"v":1278,"d":"$1,278"},{"v":1335,"d":"$1,335"},{"v":1431,"d":"$1,431"},{"v":1227,"d":"$1,227"},{"v":1302,"d":"$1,302"},{"v":1371,"d":"$1,371"},{"v":1452,"d":"$1,452"},{"v":1548,"d":"$1,548"},{"v":1290,"d":"$1,290"},{"v":1359,"d":"$1,359"},{"v":1467,"d":"$1,467"},{"v":1155,"d":"$1,155"},{"v":1224,"d":"$1,224"},{"v":1368,"d":"$1,368"},{"v":1587,"d":"$1,587"},{"v":1743,"d":"$1,743"},{"v":1758,"d":"$1,758"},{"v":1776,"d":"$1,776"}]
[" MOBILE","AL",{"v":987,"d":"$987"},{"v":987,"d":"$987"},{"v":987,"d":"$987"},{"v":987,"d":"$987"},{"v":1029,"d":"$1,029"},{"v":1179,"d":"$1,179"},{"v":1221,"d":"$1,221"},{"v":1269,"d":"$1,269"},{"v":1401,"d":"$1,401"},{"v":1179,"d":"$1,179"},{"v":1242,"d":"$1,242"},{"v":1299,"d":"$1,299"},{"v":1437,"d":"$1,437"},{"v":1602,"d":"$1,602"},{"v":1233,"d":"$1,233"},{"v":1290,"d":"$1,290"},{"v":1464,"d":"$1,464"},{"v":1047,"d":"$1,047"},{"v":1176,"d":"$1,176"},{"v":1296,"d":"$1,296"},{"v":1665,"d":"$1,665"},{"v":1932,"d":"$1,932"},{"v":1950,"d":"$1,950"},{"v":1971,"d":"$1,971"}]
[" MONTGOMERY","AL",{"v":1050,"d":"$1,050"},{"v":1050,"d":"$1,050"},{"v":1050,"d":"$1,050"},{"v":1050,"d":"$1,050"},{"v":1107,"d":"$1,107"},{"v":1212,"d":"$1,212"},{"v":1344,"d":"$1,344"},{"v":1485,"d":"$1,485"},{"v":1611,"d":"$1,611"},{"v":1218,"d":"$1,218"},{"v":1401,"d":"$1,401"},{"v":1575,"d":"$1,575"},{"v":1626,"d":"$1,626"},{"v":1689,"d":"$1,689"},{"v":1371,"d":"$1,371"},{"v":1548,"d":"$1,548"},{"v":1635,"d":"$1,635"},{"v":1119,"d":"$1,119"},{"v":1212,"d":"$1,212"},{"v":1566,"d":"$1,566"},{"v":1713,"d":"$1,713"},{"v":1812,"d":"$1,812"},{"v":1830,"d":"$1,830"},{"v":1848,"d":"$1,848"}]
[" AUBURN","AL",{"v":906,"d":"$906"},{"v":906,"d":"$906"},{"v":906,"d":"$906"},{"v":906,"d":"$906"},{"v":975,"d":"$975"},{"v":1218,"d":"$1,218"},{"v":1251,"d":"$1,251"},{"v":1284,"d":"$1,284"},{"v":1371,"d":"$1,371"},{"v":1221,"d":"$1,221"},{"v":1263,"d":"$1,263"},{"v":1305,"d":"$1,305"},{"v":1395,"d":"$1,395"},{"v":1500,"d":"$1,500"},{"v":1257,"d":"$1,257"},{"v":1299,"d":"$1,299"},{"v":1410,"d":"$1,410"},{"v":1002,"d":"$1,002"},{"v":1215,"d":"$1,215"},{"v":1305,"d":"$1,305"},{"v":1539,"d":"$1,539"},{"v":1707,"d":"$1,707"},{"v":1725,"d":"$1,725"},{"v":1743,"d":"$1,743"}]
[" BIRMINGHAM","AL",{"v":1041,"d":"$1,041"},{"v":1041,"d":"$1,041"},{"v":1041,"d":"$1,041"},{"v":1041,"d":"$1,041"},{"v":1146,"d":"$1,146"},{"v":1389,"d":"$1,389"},{"v":1422,"d":"$1,422"},{"v":1458,"d":"$1,458"},{"v":1590,"d":"$1,590"},{"v":1392,"d":"$1,392"},{"v":1437,"d":"$1,437"},{"v":1482,"d":"$1,482"},{"v":1629,"d":"$1,629"},{"v":1803,"d":"$1,803"},{"v":1431,"d":"$1,431"},{"v":1476,"d":"$1,476"},{"v":1656,"d":"$1,656"},{"v":1173,"d":"$1,173"},{"v":1386,"d":"$1,386"},{"v":1479,"d":"$1,479"},{"v":1872,"d":"$1,872"},{"v":2151,"d":"$2,151"},{"v":2175,"d":"$2,175"},{"v":2196,"d":"$2,196"}]
[" TUSCALOOSA","AL",{"v":927,"d":"$927"},{"v":927,"d":"$927"},{"v":927,"d":"$927"},{"v":927,"d":"$927"},{"v":1008,"d":"$1,008"},{"v":1155,"d":"$1,155"},{"v":1236,"d":"$1,236"},{"v":1320,"d":"$1,320"},{"v":1434,"d":"$1,434"},{"v":1158,"d":"$1,158"},{"v":1269,"d":"$1,269"},{"v":1374,"d":"$1,374"},{"v":1458,"d":"$1,458"},{"v":1554,"d":"$1,554"},{"v":1251,"d":"$1,251"},{"v":1359,"d":"$1,359"},{"v":1473,"d":"$1,473"},{"v":1026,"d":"$1,026"},{"v":1152,"d":"$1,152"},{"v":1371,"d":"$1,371"},{"v":1590,"d":"$1,590"},{"v":1746,"d":"$1,746"},{"v":1764,"d":"$1,764"},{"v":1782,"d":"$1,782"}]
[" LITTLE ROCK","AR",{"v":933,"d":"$933"},{"v":933,"d":"$933"},{"v":933,"d":"$933"},{"v":933,"d":"$933"},{"v":1008,"d":"$1,008"},{"v":1203,"d":"$1,203"},{"v":1269,"d":"$1,269"},{"v":1338,"d":"$1,338"},{"v":1458,"d":"$1,458"},{"v":1206,"d":"$1,206"},{"v":1296,"d":"$1,296"},{"v":1383,"d":"$1,383"},{"v":1485,"d":"$1,485"},{"v":1605,"d":"$1,605"},{"v":1281,"d":"$1,281"},{"v":1371,"d":"$1,371"},{"v":1503,"d":"$1,503"},{"v":1029,"d":"$1,029"},{"v":1200,"d":"$1,200"},{"v":1380,"d":"$1,380"},{"v":1653,"d":"$1,653"},{"v":1848,"d":"$1,848"},{"v":1866,"d":"$1,866"},{"v":1884,"d":"$1,884"}]
[" PINE BLUFF","AR",{"v":855,"d":"$855"},{"v":855,"d":"$855"},{"v":855,"d":"$855"},{"v":855,"d":"$855"},{"v":918,"d":"$918"},{"v":993,"d":"$993"},{"v":1017,"d":"$1,017"},{"v":1041,"d":"$1,041"},{"v":1083,"d":"$1,083"},{"v":996,"d":"$996"},{"v":1026,"d":"$1,026"},{"v":1059,"d":"$1,059"},{"v":1092,"d":"$1,092"},{"v":1131,"d":"$1,131"},{"v":1023,"d":"$1,023"},{"v":1053,"d":"$1,053"},{"v":1098,"d":"$1,098"},{"v":924,"d":"$924"},{"v":993,"d":"$993"},{"v":1056,"d":"$1,056"},{"v":1143,"d":"$1,143"},{"v":1206,"d":"$1,206"},{"v":1218,"d":"$1,218"},{"v":1230,"d":"$1,230"}]
[" FORT CHAFFEE/FORT SMITH","AR",{"v":783,"d":"$783"},{"v":783,"d":"$783"},{"v":783,"d":"$783"},{"v":783,"d":"$783"},{"v":834,"d":"$834"},{"v":1035,"d":"$1,035"},{"v":1056,"d":"$1,056"},{"v":1080,"d":"$1,080"},{"v":1152,"d":"$1,152"},{"v":1035,"d":"$1,035"},{"v":1065,"d":"$1,065"},{"v":1095,"d":"$1,095"},{"v":1173,"d":"$1,173"},{"v":1266,"d":"$1,266"},{"v":1062,"d":"$1,062"},{"v":1092,"d":"$1,092"},{"v":1188,"d":"$1,188"},{"v":858,"d":"$858"},{"v":1029,"d":"$1,029"},{"v":1095,"d":"$1,095"},{"v":1302,"d":"$1,302"},{"v":1452,"d":"$1,452"},{"v":1467,"d":"$1,467"},{"v":1482,"d":"$1,482"}]
[" FAYETTEVILLE","AR",{"v":798,"d":"$798"},{"v":798,"d":"$798"},{"v":798,"d":"$798"},{"v":798,"d":"$798"},{"v":879,"d":"$879"},{"v":1047,"d":"$1,047"},{"v":1089,"d":"$1,089"},{"v":1131,"d":"$1,131"},{"v":1254,"d":"$1,254"},{"v":1047,"d":"$1,047"},{"v":1107,"d":"$1,107"},{"v":1161,"d":"$1,161"},{"v":1287,"d":"$1,287"},{"v":1437,"d":"$1,437"},{"v":1098,"d":"$1,098"},{"v":1152,"d":"$1,152"},{"v":1311,"d":"$1,311"},{"v":897,"d":"$897"},{"v":1044,"d":"$1,044"},{"v":1158,"d":"$1,158"},{"v":1497,"d":"$1,497"},{"v":1740,"d":"$1,740"},{"v":1758,"d":"$1,758"},{"v":1776,"d":"$1,776"}]
[" JONESBORO","AR",{"v":849,"d":"$849"},{"v":849,"d":"$849"},{"v":849,"d":"$849"},{"v":849,"d":"$849"},{"v":948,"d":"$948"},{"v":1041,"d":"$1,041"},{"v":1104,"d":"$1,104"},{"v":1173,"d":"$1,173"},{"v":1254,"d":"$1,254"},{"v":1044,"d":"$1,044"},{"v":1134,"d":"$1,134"},{"v":1218,"d":"$1,218"},{"v":1266,"d":"$1,266"},{"v":1326,"d":"$1,326"},{"v":1119,"d":"$1,119"},{"v":1206,"d":"$1,206"},{"v":1275,"d":"$1,275"},{"v":960,"d":"$960"},{"v":1041,"d":"$1,041"},{"v":1215,"d":"$1,215"},{"v":1347,"d":"$1,347"},{"v":1443,"d":"$1,443"},{"v":1455,"d":"$1,455"},{"v":1470,"d":"$1,470"}]
[" PHOENIX","AZ",{"v":1197,"d":"$1,197"},{"v":1197,"d":"$1,197"},{"v":1197,"d":"$1,197"},{"v":1197,"d":"$1,197"},{"v":1335,"d":"$1,335"},{"v":1443,"d":"$1,443"},{"v":1464,"d":"$1,464"},{"v":1485,"d":"$1,485"},{"v":1518,"d":"$1,518"},{"v":1443,"d":"$1,443"},{"v":1473,"d":"$1,473"},{"v":1500,"d":"$1,500"},{"v":1524,"d":"$1,524"},{"v":1551,"d":"$1,551"},{"v":1467,"d":"$1,467"},{"v":1497,"d":"$1,497"},{"v":1527,"d":"$1,527"},{"v":1347,"d":"$1,347"},{"v":1440,"d":"$1,440"},{"v":1500,"d":"$1,500"},{"v":1560,"d":"$1,560"},{"v":1605,"d":"$1,605"},{"v":1623,"d":"$1,623"},{"v":1638,"d":"$1,638"}]
[" FORT HUACHUCA","AZ",{"v":888,"d":"$888"},{"v":888,"d":"$888"},{"v":888,"d":"$888"},{"v":888,"d":"$888"},{"v":963,"d":"$963"},{"v":1173,"d":"$1,173"},{"v":1311,"d":"$1,311"},{"v":1458,"d":"$1,458"},{"v":1572,"d":"$1,572"},{"v":1179,"d":"$1,179"},{"v":1371,"d":"$1,371"},{"v":1554,"d":"$1,554"},{"v":1578,"d":"$1,578"},{"v":1605,"d":"$1,605"},{"v":1341,"d":"$1,341"},{"v":1527,"d":"$1,527"},{"v":1581,"d":"$1,581"},{"v":987,"d":"$987"},{"v":1170,"d":"$1,170"},{"v":1545,"d":"$1,545"},{"v":1614,"d":"$1,614"},{"v":1659,"d":"$1,659"},{"v":1674,"d":"$1,674"},{"v":1692,"d":"$1,692"}]
[" DAVIS-MONTHAN AFB","AZ",{"v":1023,"d":"$1,023"},{"v":1023,"d":"$1,023"},{"v":1023,"d":"$1,023"},{"v":1023,"d":"$1,023"},{"v":1128,"d":"$1,128"},{"v":1296,"d":"$1,296"},{"v":1314,"d":"$1,314"},{"v":1332,"d":"$1,332"},{"v":1407,"d":"$1,407"},{"v":1296,"d":"$1,296"},{"v":1320,"d":"$1,320"},{"v":1344,"d":"$1,344"},{"v":1431,"d":"$1,431"},{"v":1533,"d":"$1,533"},{"v":1317,"d":"$1,317"},{"v":1341,"d":"$1,341"},{"v":1446,"d":"$1,446"},{"v":1146,"d":"$1,146"},{"v":1293,"d":"$1,293"},{"v":1344,"d":"$1,344"},{"v":1572,"d":"$1,572"},{"v":1734,"d":"$1,734"},{"v":1752,"d":"$1,752"},{"v":1770,"d":"$1,770"}]
[" YUMA","AZ",{"v":1002,"d":"$1,002"},{"v":1002,"d":"$1,002"},{"v":1002,"d":"$1,002"},{"v":1002,"d":"$1,002"},{"v":1083,"d":"$1,083"},{"v":1284,"d":"$1,284"},{"v":1320,"d":"$1,320"},{"v":1362,"d":"$1,362"},{"v":1422,"d":"$1,422"},{"v":1284,"d":"$1,284"},{"v":1338,"d":"$1,338"},{"v":1386,"d":"$1,386"},{"v":1434,"d":"$1,434"},{"v":1488,"d":"$1,488"},{"v":1329,"d":"$1,329"},{"v":1380,"d":"$1,380"},{"v":1443,"d":"$1,443"},{"v":1104,"d":"$1,104"},{"v":1281,"d":"$1,281"},{"v":1386,"d":"$1,386"},{"v":1509,"d":"$1,509"},{"v":1599,"d":"$1,599"},{"v":1614,"d":"$1,614"},{"v":1632,"d":"$1,632"}]
[" OAKLAND","CA",{"v":1785,"d":"$1,785"},{"v":1785,"d":"$1,785"},{"v":1785,"d":"$1,785"},{"v":1785,"d":"$1,785"},{"v":1914,"d":"$1,914"},{"v":2298,"d":"$2,298"},{"v":2430,"d":"$2,430"},{"v":2577,"d":"$2,577"},{"v":2727,"d":"$2,727"},{"v":2301,"d":"$2,301"},{"v":2490,"d":"$2,490"},{"v":2667,"d":"$2,667"},{"v":2748,"d":"$2,748"},{"v":2844,"d":"$2,844"},{"v":2460,"d":"$2,460"},{"v":2643,"d":"$2,643"},{"v":2763,"d":"$2,763"},{"v":1956,"d":"$1,956"},{"v":2289,"d":"$2,289"},{"v":2661,"d":"$2,661"},{"v":2880,"d":"$2,880"},{"v":3036,"d":"$3,036"},{"v":3066,"d":"$3,066"},{"v":3096,"d":"$3,096"}]
[" SAN FRANCISCO","CA",{"v":2433,"d":"$2,433"},{"v":2433,"d":"$2,433"},{"v":2433,"d":"$2,433"},{"v":2433,"d":"$2,433"},{"v":2562,"d":"$2,562"},{"v":2766,"d":"$2,766"},{"v":2850,"d":"$2,850"},{"v":2940,"d":"$2,940"},{"v":3114,"d":"$3,114"},{"v":2766,"d":"$2,766"},{"v":2886,"d":"$2,886"},{"v":2997,"d":"$2,997"},{"v":3159,"d":"$3,159"},{"v":3348,"d":"$3,348"},{"v":2868,"d":"$2,868"},{"v":2982,"d":"$2,982"},{"v":3186,"d":"$3,186"},{"v":2583,"d":"$2,583"},{"v":2760,"d":"$2,760"},{"v":2991,"d":"$2,991"},{"v":3420,"d":"$3,420"},{"v":3729,"d":"$3,729"},{"v":3765,"d":"$3,765"},{"v":3804,"d":"$3,804"}]
[" CHINA LAKE NAVWEPCEN","CA",{"v":867,"d":"$867"},{"v":867,"d":"$867"},{"v":867,"d":"$867"},{"v":867,"d":"$867"},{"v":960,"d":"$960"},{"v":1179,"d":"$1,179"},{"v":1203,"d":"$1,203"},{"v":1233,"d":"$1,233"},{"v":1311,"d":"$1,311"},{"v":1179,"d":"$1,179"},{"v":1215,"d":"$1,215"},{"v":1251,"d":"$1,251"},{"v":1335,"d":"$1,335"},{"v":1434,"d":"$1,434"},{"v":1209,"d":"$1,209"},{"v":1245,"d":"$1,245"},{"v":1350,"d":"$1,350"},{"v":984,"d":"$984"},{"v":1173,"d":"$1,173"},{"v":1248,"d":"$1,248"},{"v":1473,"d":"$1,473"},{"v":1635,"d":"$1,635"},{"v":1653,"d":"$1,653"},{"v":1668,"d":"$1,668"}]
[" FRESNO","CA",{"v":1125,"d":"$1,125"},{"v":1125,"d":"$1,125"},{"v":1125,"d":"$1,125"},{"v":1125,"d":"$1,125"},{"v":1227,"d":"$1,227"},{"v":1380,"d":"$1,380"},{"v":1410,"d":"$1,410"},{"v":1446,"d":"$1,446"},{"v":1518,"d":"$1,518"},{"v":1380,"d":"$1,380"},{"v":1425,"d":"$1,425"},{"v":1470,"d":"$1,470"},{"v":1536,"d":"$1,536"},{"v":1617,"d":"$1,617"},{"v":1419,"d":"$1,419"},{"v":1464,"d":"$1,464"},{"v":1548,"d":"$1,548"},{"v":1245,"d":"$1,245"},{"v":1377,"d":"$1,377"},{"v":1467,"d":"$1,467"},{"v":1647,"d":"$1,647"},{"v":1776,"d":"$1,776"},{"v":1794,"d":"$1,794"},{"v":1812,"d":"$1,812"}]
[" LEMORE NAS","CA",{"v":1023,"d":"$1,023"},{"v":1023,"d":"$1,023"},{"v":1023,"d":"$1,023"},{"v":1023,"d":"$1,023"},{"v":1116,"d":"$1,116"},{"v":1218,"d":"$1,218"},{"v":1332,"d":"$1,332"},{"v":1452,"d":"$1,452"},{"v":1563,"d":"$1,563"},{"v":1221,"d":"$1,221"},{"v":1380,"d":"$1,380"},{"v":1530,"d":"$1,530"},{"v":1572,"d":"$1,572"},{"v":1623,"d":"$1,623"},{"v":1356,"d":"$1,356"},{"v":1509,"d":"$1,509"},{"v":1581,"d":"$1,581"},{"v":1128,"d":"$1,128"},{"v":1218,"d":"$1,218"},{"v":1524,"d":"$1,524"},{"v":1641,"d":"$1,641"},{"v":1722,"d":"$1,722"},{"v":1740,"d":"$1,740"},{"v":1755,"d":"$1,755"}]
[" CAMP PENDLETON","CA",{"v":1677,"d":"$1,677"},{"v":1677,"d":"$1,677"},{"v":1677,"d":"$1,677"},{"v":1677,"d":"$1,677"},{"v":1776,"d":"$1,776"},{"v":2058,"d":"$2,058"},{"v":2148,"d":"$2,148"},{"v":2247,"d":"$2,247"},{"v":2370,"d":"$2,370"},{"v":2061,"d":"$2,061"},{"v":2187,"d":"$2,187"},{"v":2310,"d":"$2,310"},{"v":2394,"d":"$2,394"},{"v":2493,"d":"$2,493"},{"v":2169,"d":"$2,169"},{"v":2292,"d":"$2,292"},{"v":2409,"d":"$2,409"},{"v":1806,"d":"$1,806"},{"v":2052,"d":"$2,052"},{"v":2304,"d":"$2,304"},{"v":2529,"d":"$2,529"},{"v":2691,"d":"$2,691"},{"v":2718,"d":"$2,718"},{"v":2745,"d":"$2,745"}]
[" VENTURA","CA",{"v":1686,"d":"$1,686"},{"v":1686,"d":"$1,686"},{"v":1686,"d":"$1,686"},{"v":1686,"d":"$1,686"},{"v":1776,"d":"$1,776"},{"v":2190,"d":"$2,190"},{"v":2340,"d":"$2,340"},{"v":2502,"d":"$2,502"},{"v":2685,"d":"$2,685"},{"v":2193,"d":"$2,193"},{"v":2406,"d":"$2,406"},{"v":2607,"d":"$2,607"},{"v":2715,"d":"$2,715"},{"v":2841,"d":"$2,841"},{"v":2373,"d":"$2,373"},{"v":2577,"d":"$2,577"},{"v":2733,"d":"$2,733"},{"v":1821,"d":"$1,821"},{"v":2181,"d":"$2,181"},{"v":2598,"d":"$2,598"},{"v":2889,"d":"$2,889"},{"v":3093,"d":"$3,093"},{"v":3123,"d":"$3,123"},{"v":3153,"d":"$3,153"}]
[" VANDENBERG AFB","CA",{"v":1341,"d":"$1,341"},{"v":1341,"d":"$1,341"},{"v":1341,"d":"$1,341"},{"v":1341,"d":"$1,341"},{"v":1452,"d":"$1,452"},{"v":1620,"d":"$1,620"},{"v":1674,"d":"$1,674"},{"v":1734,"d":"$1,734"},{"v":1833,"d":"$1,833"},{"v":1620,"d":"$1,620"},{"v":1698,"d":"$1,698"},{"v":1773,"d":"$1,773"},{"v":1857,"d":"$1,857"},{"v":1956,"d":"$1,956"},{"v":1686,"d":"$1,686"},{"v":1761,"d":"$1,761"},{"v":1872,"d":"$1,872"},{"v":1470,"d":"$1,470"},{"v":1617,"d":"$1,617"},{"v":1770,"d":"$1,770"},{"v":1995,"d":"$1,995"},{"v":2154,"d":"$2,154"},{"v":2175,"d":"$2,175"},{"v":2196,"d":"$2,196"}]
[" MARIN/SONOMA","CA",{"v":1920,"d":"$1,920"},{"v":1920,"d":"$1,920"},{"v":1920,"d":"$1,920"},{"v":1920,"d":"$1,920"},{"v":2058,"d":"$2,058"},{"v":2097,"d":"$2,097"},{"v":2127,"d":"$2,127"},{"v":2160,"d":"$2,160"},{"v":2247,"d":"$2,247"},{"v":2097,"d":"$2,097"},{"v":2139,"d":"$2,139"},{"v":2178,"d":"$2,178"},{"v":2274,"d":"$2,274"},{"v":2385,"d":"$2,385"},{"v":2133,"d":"$2,133"},{"v":2172,"d":"$2,172"},{"v":2292,"d":"$2,292"},{"v":2061,"d":"$2,061"},{"v":2097,"d":"$2,097"},{"v":2178,"d":"$2,178"},{"v":2427,"d":"$2,427"},{"v":2610,"d":"$2,610"},{"v":2634,"d":"$2,634"},{"v":2661,"d":"$2,661"}]
[" BARSTOW/FORT IRWIN","CA",{"v":1014,"d":"$1,014"},{"v":1014,"d":"$1,014"},{"v":1014,"d":"$1,014"},{"v":1014,"d":"$1,014"},{"v":1089,"d":"$1,089"},{"v":1272,"d":"$1,272"},{"v":1329,"d":"$1,329"},{"v":1392,"d":"$1,392"},{"v":1458,"d":"$1,458"},{"v":1275,"d":"$1,275"},{"v":1356,"d":"$1,356"},{"v":1431,"d":"$1,431"},{"v":1470,"d":"$1,470"},{"v":1515,"d":"$1,515"},{"v":1341,"d":"$1,341"},{"v":1419,"d":"$1,419"},{"v":1476,"d":"$1,476"},{"v":1110,"d":"$1,110"},{"v":1269,"d":"$1,269"},{"v":1428,"d":"$1,428"},{"v":1533,"d":"$1,533"},{"v":1608,"d":"$1,608"},{"v":1626,"d":"$1,626"},{"v":1641,"d":"$1,641"}]
[" SAN BERNARDINO","CA",{"v":1206,"d":"$1,206"},{"v":1206,"d":"$1,206"},{"v":1206,"d":"$1,206"},{"v":1206,"d":"$1,206"},{"v":1296,"d":"$1,296"},{"v":1599,"d":"$1,599"},{"v":1632,"d":"$1,632"},{"v":1668,"d":"$1,668"},{"v":1719,"d":"$1,719"},{"v":1599,"d":"$1,599"},{"v":1647,"d":"$1,647"},{"v":1689,"d":"$1,689"},{"v":1731,"d":"$1,731"},{"v":1782,"d":"$1,782"},{"v":1638,"d":"$1,638"},{"v":1683,"d":"$1,683"},{"v":1740,"d":"$1,740"},{"v":1329,"d":"$1,329"},{"v":1593,"d":"$1,593"},{"v":1689,"d":"$1,689"},{"v":1800,"d":"$1,800"},{"v":1881,"d":"$1,881"},{"v":1899,"d":"$1,899"},{"v":1917,"d":"$1,917"}]
[" TWENTY NINE PALMS MCB","CA",{"v":963,"d":"$963"},{"v":963,"d":"$963"},{"v":963,"d":"$963"},{"v":963,"d":"$963"},{"v":1035,"d":"$1,035"},{"v":1218,"d":"$1,218"},{"v":1287,"d":"$1,287"},{"v":1362,"d":"$1,362"},{"v":1458,"d":"$1,458"},{"v":1221,"d":"$1,221"},{"v":1317,"d":"$1,317"},{"v":1410,"d":"$1,410"},{"v":1476,"d":"$1,476"},{"v":1551,"d":"$1,551"},{"v":1302,"d":"$1,302"},{"v":1398,"d":"$1,398"},{"v":1488,"d":"$1,488"},{"v":1056,"d":"$1,056"},{"v":1215,"d":"$1,215"},{"v":1407,"d":"$1,407"},{"v":1581,"d":"$1,581"},{"v":1707,"d":"$1,707"},{"v":1722,"d":"$1,722"},{"v":1740,"d":"$1,740"}]
[" BEALE AFB","CA",{"v":1236,"d":"$1,236"},{"v":1236,"d":"$1,236"},{"v":1236,"d":"$1,236"},{"v":1236,"d":"$1,236"},{"v":1317,"d":"$1,317"},{"v":1446,"d":"$1,446"},{"v":1590,"d":"$1,590"},{"v":1746,"d":"$1,746"},{"v":1914,"d":"$1,914"},{"v":1449,"d":"$1,449"},{"v":1656,"d":"$1,656"},{"v":1848,"d":"$1,848"},{"v":1941,"d":"$1,941"},{"v":2049,"d":"$2,049"},{"v":1623,"d":"$1,623"},{"v":1818,"d":"$1,818"},{"v":1956,"d":"$1,956"},{"v":1332,"d":"$1,332"},{"v":1443,"d":"$1,443"},{"v":1839,"d":"$1,839"},{"v":2091,"d":"$2,091"},{"v":2271,"d":"$2,271"},{"v":2292,"d":"$2,292"},{"v":2316,"d":"$2,316"}]
[" SACRAMENTO","CA",{"v":1527,"d":"$1,527"},{"v":1527,"d":"$1,527"},{"v":1527,"d":"$1,527"},{"v":1527,"d":"$1,527"},{"v":1680,"d":"$1,680"},{"v":1854,"d":"$1,854"},{"v":1923,"d":"$1,923"},{"v":1998,"d":"$1,998"},{"v":2133,"d":"$2,133"},{"v":1854,"d":"$1,854"},{"v":1953,"d":"$1,953"},{"v":2046,"d":"$2,046"},{"v":2163,"d":"$2,163"},{"v":2304,"d":"$2,304"},{"v":1938,"d":"$1,938"},{"v":2031,"d":"$2,031"},{"v":2187,"d":"$2,187"},{"v":1698,"d":"$1,698"},{"v":1851,"d":"$1,851"},{"v":2040,"d":"$2,040"},{"v":2358,"d":"$2,358"},{"v":2586,"d":"$2,586"},{"v":2613,"d":"$2,613"},{"v":2637,"d":"$2,637"}]
[" STOCKTON","CA",{"v":1119,"d":"$1,119"},{"v":1119,"d":"$1,119"},{"v":1119,"d":"$1,119"},{"v":1119,"d":"$1,119"},{"v":1221,"d":"$1,221"},{"v":1389,"d":"$1,389"},{"v":1452,"d":"$1,452"},{"v":1518,"d":"$1,518"},{"v":1611,"d":"$1,611"},{"v":1392,"d":"$1,392"},{"v":1479,"d":"$1,479"},{"v":1560,"d":"$1,560"},{"v":1629,"d":"$1,629"},{"v":1710,"d":"$1,710"},{"v":1464,"d":"$1,464"},{"v":1548,"d":"$1,548"},{"v":1641,"d":"$1,641"},{"v":1239,"d":"$1,239"},{"v":1386,"d":"$1,386"},{"v":1557,"d":"$1,557"},{"v":1740,"d":"$1,740"},{"v":1869,"d":"$1,869"},{"v":1890,"d":"$1,890"},{"v":1908,"d":"$1,908"}]
[" VALLEJO/TRAVIS AFB","CA",{"v":1599,"d":"$1,599"},{"v":1599,"d":"$1,599"},{"v":1599,"d":"$1,599"},{"v":1599,"d":"$1,599"},{"v":1653,"d":"$1,653"},{"v":1833,"d":"$1,833"},{"v":1905,"d":"$1,905"},{"v":1986,"d":"$1,986"},{"v":2121,"d":"$2,121"},{"v":1836,"d":"$1,836"},{"v":1938,"d":"$1,938"},{"v":2034,"d":"$2,034"},{"v":2154,"d":"$2,154"},{"v":2292,"d":"$2,292"},{"v":1923,"d":"$1,923"},{"v":2022,"d":"$2,022"},{"v":2175,"d":"$2,175"},{"v":1674,"d":"$1,674"},{"v":1830,"d":"$1,830"},{"v":2031,"d":"$2,031"},{"v":2346,"d":"$2,346"},{"v":2571,"d":"$2,571"},{"v":2598,"d":"$2,598"},{"v":2622,"d":"$2,622"}]
[" LOS ANGELES","CA",{"v":1908,"d":"$1,908"},{"v":1908,"d":"$1,908"},{"v":1908,"d":"$1,908"},{"v":1908,"d":"$1,908"},{"v":2052,"d":"$2,052"},{"v":2397,"d":"$2,397"},{"v":2517,"d":"$2,517"},{"v":2649,"d":"$2,649"},{"v":2808,"d":"$2,808"},{"v":2400,"d":"$2,400"},{"v":2571,"d":"$2,571"},{"v":2733,"d":"$2,733"},{"v":2838,"d":"$2,838"},{"v":2961,"d":"$2,961"},{"v":2544,"d":"$2,544"},{"v":2709,"d":"$2,709"},{"v":2856,"d":"$2,856"},{"v":2091,"d":"$2,091"},{"v":2391,"d":"$2,391"},{"v":2724,"d":"$2,724"},{"v":3009,"d":"$3,009"},{"v":3210,"d":"$3,210"},{"v":3243,"d":"$3,243"},{"v":3273,"d":"$3,273"}]
[" SAN DIEGO","CA",{"v":1893,"d":"$1,893"},{"v":1893,"d":"$1,893"},{"v":1893,"d":"$1,893"},{"v":1893,"d":"$1,893"},{"v":1998,"d":"$1,998"},{"v":2133,"d":"$2,133"},{"v":2208,"d":"$2,208"},{"v":2286,"d":"$2,286"},{"v":2412,"d":"$2,412"},{"v":2136,"d":"$2,136"},{"v":2241,"d":"$2,241"},{"v":2337,"d":"$2,337"},{"v":2439,"d":"$2,439"},{"v":2556,"d":"$2,556"},{"v":2223,"d":"$2,223"},{"v":2325,"d":"$2,325"},{"v":2457,"d":"$2,457"},{"v":2013,"d":"$2,013"},{"v":2130,"d":"$2,130"},{"v":2334,"d":"$2,334"},{"v":2601,"d":"$2,601"},{"v":2793,"d":"$2,793"},{"v":2820,"d":"$2,820"},{"v":2847,"d":"$2,847"}]
[" MONTEREY","CA",{"v":1755,"d":"$1,755"},{"v":1755,"d":"$1,755"},{"v":1755,"d":"$1,755"},{"v":1755,"d":"$1,755"},{"v":1950,"d":"$1,950"},{"v":2343,"d":"$2,343"},{"v":2457,"d":"$2,457"},{"v":2583,"d":"$2,583"},{"v":2736,"d":"$2,736"},{"v":2346,"d":"$2,346"},{"v":2508,"d":"$2,508"},{"v":2664,"d":"$2,664"},{"v":2763,"d":"$2,763"},{"v":2883,"d":"$2,883"},{"v":2484,"d":"$2,484"},{"v":2640,"d":"$2,640"},{"v":2781,"d":"$2,781"},{"v":1995,"d":"$1,995"},{"v":2334,"d":"$2,334"},{"v":2658,"d":"$2,658"},{"v":2928,"d":"$2,928"},{"v":3120,"d":"$3,120"},{"v":3150,"d":"$3,150"},{"v":3180,"d":"$3,180"}]
[" BAKERSFIELD","CA",{"v":966,"d":"$966"},{"v":966,"d":"$966"},{"v":966,"d":"$966"},{"v":966,"d":"$966"},{"v":1020,"d":"$1,020"},{"v":1215,"d":"$1,215"},{"v":1317,"d":"$1,317"},{"v":1425,"d":"$1,425"},{"v":1551,"d":"$1,551"},{"v":1218,"d":"$1,218"},{"v":1362,"d":"$1,362"},{"v":1497,"d":"$1,497"},{"v":1572,"d":"$1,572"},{"v":1662,"d":"$1,662"},{"v":1338,"d":"$1,338"},{"v":1476,"d":"$1,476"},{"v":1587,"d":"$1,587"},{"v":1041,"d":"$1,041"},{"v":1209,"d":"$1,209"},{"v":1491,"d":"$1,491"},{"v":1698,"d":"$1,698"},{"v":1842,"d":"$1,842"},{"v":1860,"d":"$1,860"},{"v":1878,"d":"$1,878"}]
[" RIVERSIDE","CA",{"v":1488,"d":"$1,488"},{"v":1488,"d":"$1,488"},{"v":1488,"d":"$1,488"},{"v":1488,"d":"$1,488"},{"v":1671,"d":"$1,671"},{"v":1773,"d":"$1,773"},{"v":1815,"d":"$1,815"},{"v":1860,"d":"$1,860"},{"v":1977,"d":"$1,977"},{"v":1776,"d":"$1,776"},{"v":1833,"d":"$1,833"},{"v":1890,"d":"$1,890"},{"v":2007,"d":"$2,007"},{"v":2148,"d":"$2,148"},{"v":1824,"d":"$1,824"},{"v":1881,"d":"$1,881"},{"v":2028,"d":"$2,028"},{"v":1683,"d":"$1,683"},{"v":1773,"d":"$1,773"},{"v":1887,"d":"$1,887"},{"v":2202,"d":"$2,202"},{"v":2427,"d":"$2,427"},{"v":2451,"d":"$2,451"},{"v":2475,"d":"$2,475"}]
[" HUMBOLDT COUNTY","CA",{"v":1023,"d":"$1,023"},{"v":1023,"d":"$1,023"},{"v":1023,"d":"$1,023"},{"v":1023,"d":"$1,023"},{"v":1119,"d":"$1,119"},{"v":1512,"d":"$1,512"},{"v":1542,"d":"$1,542"},{"v":1578,"d":"$1,578"},{"v":1650,"d":"$1,650"},{"v":1512,"d":"$1,512"},{"v":1557,"d":"$1,557"},{"v":1599,"d":"$1,599"},{"v":1671,"d":"$1,671"},{"v":1755,"d":"$1,755"},{"v":1551,"d":"$1,551"},{"v":1593,"d":"$1,593"},{"v":1683,"d":"$1,683"},{"v":1161,"d":"$1,161"},{"v":1503,"d":"$1,503"},{"v":1596,"d":"$1,596"},{"v":1788,"d":"$1,788"},{"v":1923,"d":"$1,923"},{"v":1941,"d":"$1,941"},{"v":1962,"d":"$1,962"}]
[" SANTA CLARA COUNTY","CA",{"v":1935,"d":"$1,935"},{"v":1935,"d":"$1,935"},{"v":1935,"d":"$1,935"},{"v":1935,"d":"$1,935"},{"v":2112,"d":"$2,112"},{"v":2313,"d":"$2,313"},{"v":2406,"d":"$2,406"},{"v":2505,"d":"$2,505"},{"v":2673,"d":"$2,673"},{"v":2316,"d":"$2,316"},{"v":2445,"d":"$2,445"},{"v":2568,"d":"$2,568"},{"v":2712,"d":"$2,712"},{"v":2883,"d":"$2,883"},{"v":2427,"d":"$2,427"},{"v":2550,"d":"$2,550"},{"v":2739,"d":"$2,739"},{"v":2136,"d":"$2,136"},{"v":2310,"d":"$2,310"},{"v":2562,"d":"$2,562"},{"v":2949,"d":"$2,949"},{"v":3225,"d":"$3,225"},{"v":3258,"d":"$3,258"},{"v":3291,"d":"$3,291"}]
[" SAN LUIS OBISPO","CA",{"v":1383,"d":"$1,383"},{"v":1383,"d":"$1,383"},{"v":1383,"d":"$1,383"},{"v":1383,"d":"$1,383"},{"v":1506,"d":"$1,506"},{"v":1863,"d":"$1,863"},{"v":1938,"d":"$1,938"},{"v":2019,"d":"$2,019"},{"v":2109,"d":"$2,109"},{"v":1863,"d":"$1,863"},{"v":1971,"d":"$1,971"},{"v":2073,"d":"$2,073"},{"v":2124,"d":"$2,124"},{"v":2181,"d":"$2,181"},{"v":1956,"d":"$1,956"},{"v":2058,"d":"$2,058"},{"v":2133,"d":"$2,133"},{"v":1545,"d":"$1,545"},{"v":1854,"d":"$1,854"},{"v":2070,"d":"$2,070"},{"v":2205,"d":"$2,205"},{"v":2301,"d":"$2,301"},{"v":2322,"d":"$2,322"},{"v":2346,"d":"$2,346"}]
[" BRIDGEPORT","CA",{"v":1455,"d":"$1,455"},{"v":1455,"d":"$1,455"},{"v":1455,"d":"$1,455"},{"v":1455,"d":"$1,455"},{"v":1470,"d":"$1,470"},{"v":1617,"d":"$1,617"},{"v":1638,"d":"$1,638"},{"v":1662,"d":"$1,662"},{"v":1740,"d":"$1,740"},{"v":1617,"d":"$1,617"},{"v":1647,"d":"$1,647"},{"v":1677,"d":"$1,677"},{"v":1764,"d":"$1,764"},{"v":1869,"d":"$1,869"},{"v":1644,"d":"$1,644"},{"v":1674,"d":"$1,674"},{"v":1782,"d":"$1,782"},{"v":1485,"d":"$1,485"},{"v":1614,"d":"$1,614"},{"v":1677,"d":"$1,677"},{"v":1911,"d":"$1,911"},{"v":2079,"d":"$2,079"},{"v":2100,"d":"$2,100"},{"v":2121,"d":"$2,121"}]
[" EL CENTRO","CA",{"v":996,"d":"$996"},{"v":996,"d":"$996"},{"v":996,"d":"$996"},{"v":996,"d":"$996"},{"v":1080,"d":"$1,080"},{"v":1206,"d":"$1,206"},{"v":1296,"d":"$1,296"},{"v":1395,"d":"$1,395"},{"v":1491,"d":"$1,491"},{"v":1209,"d":"$1,209"},{"v":1338,"d":"$1,338"},{"v":1458,"d":"$1,458"},{"v":1503,"d":"$1,503"},{"v":1557,"d":"$1,557"},{"v":1317,"d":"$1,317"},{"v":1440,"d":"$1,440"},{"v":1512,"d":"$1,512"},{"v":1095,"d":"$1,095"},{"v":1203,"d":"$1,203"},{"v":1452,"d":"$1,452"},{"v":1578,"d":"$1,578"},{"v":1668,"d":"$1,668"},{"v":1683,"d":"$1,683"},{"v":1701,"d":"$1,701"}]
[" FORT BRAGG","CA",{"v":1080,"d":"$1,080"},{"v":1080,"d":"$1,080"},{"v":1080,"d":"$1,080"},{"v":1080,"d":"$1,080"},{"v":1161,"d":"$1,161"},{"v":1410,"d":"$1,410"},{"v":1533,"d":"$1,533"},{"v":1665,"d":"$1,665"},{"v":1803,"d":"$1,803"},{"v":1413,"d":"$1,413"},{"v":1587,"d":"$1,587"},{"v":1749,"d":"$1,749"},{"v":1821,"d":"$1,821"},{"v":1905,"d":"$1,905"},{"v":1560,"d":"$1,560"},{"v":1725,"d":"$1,725"},{"v":1833,"d":"$1,833"},{"v":1188,"d":"$1,188"},{"v":1404,"d":"$1,404"},{"v":1743,"d":"$1,743"},{"v":1938,"d":"$1,938"},{"v":2073,"d":"$2,073"},{"v":2094,"d":"$2,094"},{"v":2112,"d":"$2,112"}]
[" EDWARDS AFB/PALMDALE","CA",{"v":1203,"d":"$1,203"},{"v":1203,"d":"$1,203"},{"v":1203,"d":"$1,203"},{"v":1203,"d":"$1,203"},{"v":1317,"d":"$1,317"},{"v":1617,"d":"$1,617"},{"v":1701,"d":"$1,701"},{"v":1794,"d":"$1,794"},{"v":1905,"d":"$1,905"},{"v":1617,"d":"$1,617"},{"v":1740,"d":"$1,740"},{"v":1851,"d":"$1,851"},{"v":1926,"d":"$1,926"},{"v":2010,"d":"$2,010"},{"v":1719,"d":"$1,719"},{"v":1836,"d":"$1,836"},{"v":1938,"d":"$1,938"},{"v":1350,"d":"$1,350"},{"v":1611,"d":"$1,611"},{"v":1848,"d":"$1,848"},{"v":2043,"d":"$2,043"},{"v":2184,"d":"$2,184"},{"v":2205,"d":"$2,205"},{"v":2226,"d":"$2,226"}]
[" DENVER","CO",{"v":1284,"d":"$1,284"},{"v":1284,"d":"$1,284"},{"v":1284,"d":"$1,284"},{"v":1284,"d":"$1,284"},{"v":1458,"d":"$1,458"},{"v":1587,"d":"$1,587"},{"v":1719,"d":"$1,719"},{"v":1866,"d":"$1,866"},{"v":2031,"d":"$2,031"},{"v":1590,"d":"$1,590"},{"v":1779,"d":"$1,779"},{"v":1959,"d":"$1,959"},{"v":2058,"d":"$2,058"},{"v":2175,"d":"$2,175"},{"v":1749,"d":"$1,749"},{"v":1932,"d":"$1,932"},{"v":2076,"d":"$2,076"},{"v":1473,"d":"$1,473"},{"v":1584,"d":"$1,584"},{"v":1953,"d":"$1,953"},{"v":2220,"d":"$2,220"},{"v":2409,"d":"$2,409"},{"v":2433,"d":"$2,433"},{"v":2457,"d":"$2,457"}]
[" COLORADO SPRINGS","CO",{"v":1065,"d":"$1,065"},{"v":1065,"d":"$1,065"},{"v":1065,"d":"$1,065"},{"v":1065,"d":"$1,065"},{"v":1152,"d":"$1,152"},{"v":1257,"d":"$1,257"},{"v":1347,"d":"$1,347"},{"v":1446,"d":"$1,446"},{"v":1557,"d":"$1,557"},{"v":1260,"d":"$1,260"},{"v":1389,"d":"$1,389"},{"v":1509,"d":"$1,509"},{"v":1575,"d":"$1,575"},{"v":1650,"d":"$1,650"},{"v":1368,"d":"$1,368"},{"v":1491,"d":"$1,491"},{"v":1584,"d":"$1,584"},{"v":1164,"d":"$1,164"},{"v":1257,"d":"$1,257"},{"v":1503,"d":"$1,503"},{"v":1680,"d":"$1,680"},{"v":1803,"d":"$1,803"},{"v":1821,"d":"$1,821"},{"v":1839,"d":"$1,839"}]
[" FORT COLLINS","CO",{"v":942,"d":"$942"},{"v":942,"d":"$942"},{"v":942,"d":"$942"},{"v":942,"d":"$942"},{"v":1011,"d":"$1,011"},{"v":1257,"d":"$1,257"},{"v":1323,"d":"$1,323"},{"v":1395,"d":"$1,395"},{"v":1470,"d":"$1,470"},{"v":1260,"d":"$1,260"},{"v":1353,"d":"$1,353"},{"v":1440,"d":"$1,440"},{"v":1479,"d":"$1,479"},{"v":1527,"d":"$1,527"},{"v":1338,"d":"$1,338"},{"v":1428,"d":"$1,428"},{"v":1488,"d":"$1,488"},{"v":1038,"d":"$1,038"},{"v":1251,"d":"$1,251"},{"v":1437,"d":"$1,437"},{"v":1545,"d":"$1,545"},{"v":1620,"d":"$1,620"},{"v":1638,"d":"$1,638"},{"v":1653,"d":"$1,653"}]
[" BOULDER","CO",{"v":1320,"d":"$1,320"},{"v":1320,"d":"$1,320"},{"v":1320,"d":"$1,320"},{"v":1320,"d":"$1,320"},{"v":1461,"d":"$1,461"},{"v":1752,"d":"$1,752"},{"v":1824,"d":"$1,824"},{"v":1902,"d":"$1,902"},{"v":2019,"d":"$2,019"},{"v":1755,"d":"$1,755"},{"v":1854,"d":"$1,854"},{"v":1950,"d":"$1,950"},{"v":2043,"d":"$2,043"},{"v":2154,"d":"$2,154"},{"v":1839,"d":"$1,839"},{"v":1935,"d":"$1,935"},{"v":2061,"d":"$2,061"},{"v":1494,"d":"$1,494"},{"v":1746,"d":"$1,746"},{"v":1947,"d":"$1,947"},{"v":2196,"d":"$2,196"},{"v":2376,"d":"$2,376"},{"v":2400,"d":"$2,400"},{"v":2424,"d":"$2,424"}]
[" NEW LONDON","CT",{"v":1383,"d":"$1,383"},{"v":1383,"d":"$1,383"},{"v":1383,"d":"$1,383"},{"v":1383,"d":"$1,383"},{"v":1506,"d":"$1,506"},{"v":1599,"d":"$1,599"},{"v":1716,"d":"$1,716"},{"v":1842,"d":"$1,842"},{"v":1989,"d":"$1,989"},{"v":1602,"d":"$1,602"},{"v":1767,"d":"$1,767"},{"v":1926,"d":"$1,926"},{"v":2016,"d":"$2,016"},{"v":2121,"d":"$2,121"},{"v":1743,"d":"$1,743"},{"v":1902,"d":"$1,902"},{"v":2031,"d":"$2,031"},{"v":1515,"d":"$1,515"},{"v":1596,"d":"$1,596"},{"v":1917,"d":"$1,917"},{"v":2163,"d":"$2,163"},{"v":2334,"d":"$2,334"},{"v":2358,"d":"$2,358"},{"v":2382,"d":"$2,382"}]
[" HARTFORD","CT",{"v":1569,"d":"$1,569"},{"v":1569,"d":"$1,569"},{"v":1569,"d":"$1,569"},{"v":1569,"d":"$1,569"},{"v":1758,"d":"$1,758"},{"v":1935,"d":"$1,935"},{"v":2082,"d":"$2,082"},{"v":2238,"d":"$2,238"},{"v":2457,"d":"$2,457"},{"v":1941,"d":"$1,941"},{"v":2145,"d":"$2,145"},{"v":2340,"d":"$2,340"},{"v":2502,"d":"$2,502"},{"v":2694,"d":"$2,694"},{"v":2112,"d":"$2,112"},{"v":2310,"d":"$2,310"},{"v":2532,"d":"$2,532"},{"v":1779,"d":"$1,779"},{"v":1932,"d":"$1,932"},{"v":2331,"d":"$2,331"},{"v":2766,"d":"$2,766"},{"v":3075,"d":"$3,075"},{"v":3108,"d":"$3,108"},{"v":3138,"d":"$3,138"}]
[" NEW HAVEN/FAIRFIELD","CT",{"v":2001,"d":"$2,001"},{"v":2001,"d":"$2,001"},{"v":2001,"d":"$2,001"},{"v":2001,"d":"$2,001"},{"v":2112,"d":"$2,112"},{"v":2292,"d":"$2,292"},{"v":2517,"d":"$2,517"},{"v":2763,"d":"$2,763"},{"v":3021,"d":"$3,021"},{"v":2298,"d":"$2,298"},{"v":2619,"d":"$2,619"},{"v":2922,"d":"$2,922"},{"v":3060,"d":"$3,060"},{"v":3225,"d":"$3,225"},{"v":2568,"d":"$2,568"},{"v":2877,"d":"$2,877"},{"v":3084,"d":"$3,084"},{"v":2133,"d":"$2,133"},{"v":2286,"d":"$2,286"},{"v":2907,"d":"$2,907"},{"v":3288,"d":"$3,288"},{"v":3552,"d":"$3,552"},{"v":3588,"d":"$3,588"},{"v":3624,"d":"$3,624"}]
[" WASHINGTON","DC",{"v":1794,"d":"$1,794"},{"v":1794,"d":"$1,794"},{"v":1794,"d":"$1,794"},{"v":1794,"d":"$1,794"},{"v":1941,"d":"$1,941"},{"v":2265,"d":"$2,265"},{"v":2325,"d":"$2,325"},{"v":2394,"d":"$2,394"},{"v":2514,"d":"$2,514"},{"v":2265,"d":"$2,265"},{"v":2355,"d":"$2,355"},{"v":2436,"d":"$2,436"},{"v":2544,"d":"$2,544"},{"v":2670,"d":"$2,670"},{"v":2340,"d":"$2,340"},{"v":2424,"d":"$2,424"},{"v":2562,"d":"$2,562"},{"v":1977,"d":"$1,977"},{"v":2259,"d":"$2,259"},{"v":2433,"d":"$2,433"},{"v":2718,"d":"$2,718"},{"v":2919,"d":"$2,919"},{"v":2949,"d":"$2,949"},{"v":2979,"d":"$2,979"}]
[" DOVER AFB","DE",{"v":1221,"d":"$1,221"},{"v":1221,"d":"$1,221"},{"v":1221,"d":"$1,221"},{"v":1221,"d":"$1,221"},{"v":1320,"d":"$1,320"},{"v":1536,"d":"$1,536"},{"v":1575,"d":"$1,575"},{"v":1617,"d":"$1,617"},{"v":1689,"d":"$1,689"},{"v":1536,"d":"$1,536"},{"v":1593,"d":"$1,593"},{"v":1644,"d":"$1,644"},{"v":1704,"d":"$1,704"},{"v":1779,"d":"$1,779"},{"v":1584,"d":"$1,584"},{"v":1635,"d":"$1,635"},{"v":1716,"d":"$1,716"},{"v":1344,"d":"$1,344"},{"v":1530,"d":"$1,530"},{"v":1641,"d":"$1,641"},{"v":1806,"d":"$1,806"},{"v":1923,"d":"$1,923"},{"v":1941,"d":"$1,941"},{"v":1962,"d":"$1,962"}]
[" REHOBOTH BEACH","DE",{"v":1311,"d":"$1,311"},{"v":1311,"d":"$1,311"},{"v":1311,"d":"$1,311"},{"v":1311,"d":"$1,311"},{"v":1377,"d":"$1,377"},{"v":1581,"d":"$1,581"},{"v":1638,"d":"$1,638"},{"v":1698,"d":"$1,698"},{"v":1779,"d":"$1,779"},{"v":1581,"d":"$1,581"},{"v":1662,"d":"$1,662"},{"v":1740,"d":"$1,740"},{"v":1797,"d":"$1,797"},{"v":1863,"d":"$1,863"},{"v":1650,"d":"$1,650"},{"v":1728,"d":"$1,728"},{"v":1806,"d":"$1,806"},{"v":1398,"d":"$1,398"},{"v":1575,"d":"$1,575"},{"v":1737,"d":"$1,737"},{"v":1890,"d":"$1,890"},{"v":1998,"d":"$1,998"},{"v":2016,"d":"$2,016"},{"v":2037,"d":"$2,037"}]
[" EGLIN AFB","FL",{"v":1218,"d":"$1,218"},{"v":1218,"d":"$1,218"},{"v":1218,"d":"$1,218"},{"v":1218,"d":"$1,218"},{"v":1257,"d":"$1,257"},{"v":1371,"d":"$1,371"},{"v":1413,"d":"$1,413"},{"v":1461,"d":"$1,461"},{"v":1563,"d":"$1,563"},{"v":1371,"d":"$1,371"},{"v":1434,"d":"$1,434"},{"v":1491,"d":"$1,491"},{"v":1590,"d":"$1,590"},{"v":1710,"d":"$1,710"},{"v":1422,"d":"$1,422"},{"v":1482,"d":"$1,482"},{"v":1608,"d":"$1,608"},{"v":1269,"d":"$1,269"},{"v":1368,"d":"$1,368"},{"v":1488,"d":"$1,488"},{"v":1755,"d":"$1,755"},{"v":1947,"d":"$1,947"},{"v":1968,"d":"$1,968"},{"v":1986,"d":"$1,986"}]
[" GAINESVILLE","FL",{"v":1182,"d":"$1,182"},{"v":1182,"d":"$1,182"},{"v":1182,"d":"$1,182"},{"v":1182,"d":"$1,182"},{"v":1278,"d":"$1,278"},{"v":1377,"d":"$1,377"},{"v":1479,"d":"$1,479"},{"v":1590,"d":"$1,590"},{"v":1722,"d":"$1,722"},{"v":1380,"d":"$1,380"},{"v":1524,"d":"$1,524"},{"v":1659,"d":"$1,659"},{"v":1746,"d":"$1,746"},{"v":1848,"d":"$1,848"},{"v":1503,"d":"$1,503"},{"v":1641,"d":"$1,641"},{"v":1761,"d":"$1,761"},{"v":1287,"d":"$1,287"},{"v":1374,"d":"$1,374"},{"v":1653,"d":"$1,653"},{"v":1887,"d":"$1,887"},{"v":2052,"d":"$2,052"},{"v":2073,"d":"$2,073"},{"v":2094,"d":"$2,094"}]
[" JACKSONVILLE","FL",{"v":1155,"d":"$1,155"},{"v":1155,"d":"$1,155"},{"v":1155,"d":"$1,155"},{"v":1155,"d":"$1,155"},{"v":1248,"d":"$1,248"},{"v":1443,"d":"$1,443"},{"v":1470,"d":"$1,470"},{"v":1500,"d":"$1,500"},{"v":1596,"d":"$1,596"},{"v":1446,"d":"$1,446"},{"v":1482,"d":"$1,482"},{"v":1518,"d":"$1,518"},{"v":1626,"d":"$1,626"},{"v":1752,"d":"$1,752"},{"v":1476,"d":"$1,476"},{"v":1512,"d":"$1,512"},{"v":1644,"d":"$1,644"},{"v":1269,"d":"$1,269"},{"v":1440,"d":"$1,440"},{"v":1518,"d":"$1,518"},{"v":1800,"d":"$1,800"},{"v":2004,"d":"$2,004"},{"v":2022,"d":"$2,022"},{"v":2043,"d":"$2,043"}]
[" PATRICK AFB","FL",{"v":1080,"d":"$1,080"},{"v":1080,"d":"$1,080"},{"v":1080,"d":"$1,080"},{"v":1080,"d":"$1,080"},{"v":1185,"d":"$1,185"},{"v":1590,"d":"$1,590"},{"v":1614,"d":"$1,614"},{"v":1641,"d":"$1,641"},{"v":1725,"d":"$1,725"},{"v":1593,"d":"$1,593"},{"v":1626,"d":"$1,626"},{"v":1656,"d":"$1,656"},{"v":1752,"d":"$1,752"},{"v":1863,"d":"$1,863"},{"v":1620,"d":"$1,620"},{"v":1650,"d":"$1,650"},{"v":1770,"d":"$1,770"},{"v":1230,"d":"$1,230"},{"v":1584,"d":"$1,584"},{"v":1656,"d":"$1,656"},{"v":1908,"d":"$1,908"},{"v":2088,"d":"$2,088"},{"v":2109,"d":"$2,109"},{"v":2130,"d":"$2,130"}]
[" MIAMI/FORT LAUDERDALE","FL",{"v":1656,"d":"$1,656"},{"v":1656,"d":"$1,656"},{"v":1656,"d":"$1,656"},{"v":1656,"d":"$1,656"},{"v":1752,"d":"$1,752"},{"v":1920,"d":"$1,920"},{"v":2049,"d":"$2,049"},{"v":2187,"d":"$2,187"},{"v":2355,"d":"$2,355"},{"v":1923,"d":"$1,923"},{"v":2106,"d":"$2,106"},{"v":2277,"d":"$2,277"},{"v":2385,"d":"$2,385"},{"v":2514,"d":"$2,514"},{"v":2076,"d":"$2,076"},{"v":2250,"d":"$2,250"},{"v":2406,"d":"$2,406"},{"v":1770,"d":"$1,770"},{"v":1917,"d":"$1,917"},{"v":2268,"d":"$2,268"},{"v":2565,"d":"$2,565"},{"v":2772,"d":"$2,772"},{"v":2802,"d":"$2,802"},{"v":2829,"d":"$2,829"}]
[" ORLANDO","FL",{"v":1329,"d":"$1,329"},{"v":1329,"d":"$1,329"},{"v":1329,"d":"$1,329"},{"v":1329,"d":"$1,329"},{"v":1461,"d":"$1,461"},{"v":1554,"d":"$1,554"},{"v":1587,"d":"$1,587"},{"v":1620,"d":"$1,620"},{"v":1695,"d":"$1,695"},{"v":1554,"d":"$1,554"},{"v":1599,"d":"$1,599"},{"v":1644,"d":"$1,644"},{"v":1713,"d":"$1,713"},{"v":1797,"d":"$1,797"},{"v":1593,"d":"$1,593"},{"v":1638,"d":"$1,638"},{"v":1725,"d":"$1,725"},{"v":1473,"d":"$1,473"},{"v":1551,"d":"$1,551"},{"v":1641,"d":"$1,641"},{"v":1830,"d":"$1,830"},{"v":1965,"d":"$1,965"},{"v":1983,"d":"$1,983"},{"v":2004,"d":"$2,004"}]
[" PANAMA CITY","FL",{"v":1140,"d":"$1,140"},{"v":1140,"d":"$1,140"},{"v":1140,"d":"$1,140"},{"v":1140,"d":"$1,140"},{"v":1194,"d":"$1,194"},{"v":1356,"d":"$1,356"},{"v":1413,"d":"$1,413"},{"v":1473,"d":"$1,473"},{"v":1566,"d":"$1,566"},{"v":1356,"d":"$1,356"},{"v":1437,"d":"$1,437"},{"v":1512,"d":"$1,512"},{"v":1587,"d":"$1,587"},{"v":1677,"d":"$1,677"},{"v":1425,"d":"$1,425"},{"v":1500,"d":"$1,500"},{"v":1602,"d":"$1,602"},{"v":1212,"d":"$1,212"},{"v":1353,"d":"$1,353"},{"v":1509,"d":"$1,509"},{"v":1713,"d":"$1,713"},{"v":1857,"d":"$1,857"},{"v":1875,"d":"$1,875"},{"v":1893,"d":"$1,893"}]
[" PENSACOLA","FL",{"v":1077,"d":"$1,077"},{"v":1077,"d":"$1,077"},{"v":1077,"d":"$1,077"},{"v":1077,"d":"$1,077"},{"v":1113,"d":"$1,113"},{"v":1284,"d":"$1,284"},{"v":1317,"d":"$1,317"},{"v":1356,"d":"$1,356"},{"v":1443,"d":"$1,443"},{"v":1287,"d":"$1,287"},{"v":1332,"d":"$1,332"},{"v":1377,"d":"$1,377"},{"v":1470,"d":"$1,470"},{"v":1578,"d":"$1,578"},{"v":1326,"d":"$1,326"},{"v":1371,"d":"$1,371"},{"v":1485,"d":"$1,485"},{"v":1131,"d":"$1,131"},{"v":1281,"d":"$1,281"},{"v":1377,"d":"$1,377"},{"v":1620,"d":"$1,620"},{"v":1794,"d":"$1,794"},{"v":1812,"d":"$1,812"},{"v":1830,"d":"$1,830"}]
[" TALLAHASSEE","FL",{"v":1101,"d":"$1,101"},{"v":1101,"d":"$1,101"},{"v":1101,"d":"$1,101"},{"v":1101,"d":"$1,101"},{"v":1152,"d":"$1,152"},{"v":1329,"d":"$1,329"},{"v":1377,"d":"$1,377"},{"v":1431,"d":"$1,431"},{"v":1554,"d":"$1,554"},{"v":1329,"d":"$1,329"},{"v":1401,"d":"$1,401"},{"v":1467,"d":"$1,467"},{"v":1584,"d":"$1,584"},{"v":1725,"d":"$1,725"},{"v":1389,"d":"$1,389"},{"v":1458,"d":"$1,458"},{"v":1605,"d":"$1,605"},{"v":1170,"d":"$1,170"},{"v":1323,"d":"$1,323"},{"v":1464,"d":"$1,464"},{"v":1779,"d":"$1,779"},{"v":2004,"d":"$2,004"},{"v":2022,"d":"$2,022"},{"v":2043,"d":"$2,043"}]
[" TAMPA","FL",{"v":1497,"d":"$1,497"},{"v":1497,"d":"$1,497"},{"v":1497,"d":"$1,497"},{"v":1497,"d":"$1,497"},{"v":1662,"d":"$1,662"},{"v":1905,"d":"$1,905"},{"v":1962,"d":"$1,962"},{"v":2025,"d":"$2,025"},{"v":2151,"d":"$2,151"},{"v":1908,"d":"$1,908"},{"v":1989,"d":"$1,989"},{"v":2067,"d":"$2,067"},{"v":2184,"d":"$2,184"},{"v":2322,"d":"$2,322"},{"v":1977,"d":"$1,977"},{"v":2055,"d":"$2,055"},{"v":2205,"d":"$2,205"},{"v":1689,"d":"$1,689"},{"v":1899,"d":"$1,899"},{"v":2064,"d":"$2,064"},{"v":2376,"d":"$2,376"},{"v":2598,"d":"$2,598"},{"v":2625,"d":"$2,625"},{"v":2652,"d":"$2,652"}]
[" WEST PALM BEACH","FL",{"v":1485,"d":"$1,485"},{"v":1485,"d":"$1,485"},{"v":1485,"d":"$1,485"},{"v":1485,"d":"$1,485"},{"v":1623,"d":"$1,623"},{"v":1914,"d":"$1,914"},{"v":1983,"d":"$1,983"},{"v":2061,"d":"$2,061"},{"v":2166,"d":"$2,166"},{"v":1917,"d":"$1,917"},{"v":2016,"d":"$2,016"},{"v":2109,"d":"$2,109"},{"v":2187,"d":"$2,187"},{"v":2277,"d":"$2,277"},{"v":2001,"d":"$2,001"},{"v":2094,"d":"$2,094"},{"v":2199,"d":"$2,199"},{"v":1653,"d":"$1,653"},{"v":1908,"d":"$1,908"},{"v":2106,"d":"$2,106"},{"v":2313,"d":"$2,313"},{"v":2460,"d":"$2,460"},{"v":2484,"d":"$2,484"},{"v":2508,"d":"$2,508"}]
[" OCALA","FL",{"v":1071,"d":"$1,071"},{"v":1071,"d":"$1,071"},{"v":1071,"d":"$1,071"},{"v":1071,"d":"$1,071"},{"v":1122,"d":"$1,122"},{"v":1305,"d":"$1,305"},{"v":1320,"d":"$1,320"},{"v":1338,"d":"$1,338"},{"v":1428,"d":"$1,428"},{"v":1305,"d":"$1,305"},{"v":1326,"d":"$1,326"},{"v":1350,"d":"$1,350"},{"v":1455,"d":"$1,455"},{"v":1584,"d":"$1,584"},{"v":1323,"d":"$1,323"},{"v":1347,"d":"$1,347"},{"v":1476,"d":"$1,476"},{"v":1143,"d":"$1,143"},{"v":1299,"d":"$1,299"},{"v":1347,"d":"$1,347"},{"v":1632,"d":"$1,632"},{"v":1836,"d":"$1,836"},{"v":1854,"d":"$1,854"},{"v":1872,"d":"$1,872"}]
[" KEY WEST","FL",{"v":1935,"d":"$1,935"},{"v":1935,"d":"$1,935"},{"v":1935,"d":"$1,935"},{"v":1935,"d":"$1,935"},{"v":2064,"d":"$2,064"},{"v":2694,"d":"$2,694"},{"v":2709,"d":"$2,709"},{"v":2724,"d":"$2,724"},{"v":2862,"d":"$2,862"},{"v":2694,"d":"$2,694"},{"v":2715,"d":"$2,715"},{"v":2736,"d":"$2,736"},{"v":2910,"d":"$2,910"},{"v":3117,"d":"$3,117"},{"v":2712,"d":"$2,712"},{"v":2733,"d":"$2,733"},{"v":2943,"d":"$2,943"},{"v":2133,"d":"$2,133"},{"v":2682,"d":"$2,682"},{"v":2733,"d":"$2,733"},{"v":3198,"d":"$3,198"},{"v":3531,"d":"$3,531"},{"v":3567,"d":"$3,567"},{"v":3603,"d":"$3,603"}]
[" VOLUSIA COUNTY","FL",{"v":1125,"d":"$1,125"},{"v":1125,"d":"$1,125"},{"v":1125,"d":"$1,125"},{"v":1125,"d":"$1,125"},{"v":1245,"d":"$1,245"},{"v":1437,"d":"$1,437"},{"v":1560,"d":"$1,560"},{"v":1692,"d":"$1,692"},{"v":1815,"d":"$1,815"},{"v":1440,"d":"$1,440"},{"v":1614,"d":"$1,614"},{"v":1776,"d":"$1,776"},{"v":1827,"d":"$1,827"},{"v":1890,"d":"$1,890"},{"v":1587,"d":"$1,587"},{"v":1752,"d":"$1,752"},{"v":1839,"d":"$1,839"},{"v":1266,"d":"$1,266"},{"v":1434,"d":"$1,434"},{"v":1770,"d":"$1,770"},{"v":1914,"d":"$1,914"},{"v":2010,"d":"$2,010"},{"v":2031,"d":"$2,031"},{"v":2052,"d":"$2,052"}]
[" POLK COUNTY","FL",{"v":990,"d":"$990"},{"v":990,"d":"$990"},{"v":990,"d":"$990"},{"v":990,"d":"$990"},{"v":1065,"d":"$1,065"},{"v":1251,"d":"$1,251"},{"v":1302,"d":"$1,302"},{"v":1356,"d":"$1,356"},{"v":1476,"d":"$1,476"},{"v":1251,"d":"$1,251"},{"v":1323,"d":"$1,323"},{"v":1392,"d":"$1,392"},{"v":1509,"d":"$1,509"},{"v":1647,"d":"$1,647"},{"v":1314,"d":"$1,314"},{"v":1383,"d":"$1,383"},{"v":1530,"d":"$1,530"},{"v":1086,"d":"$1,086"},{"v":1245,"d":"$1,245"},{"v":1389,"d":"$1,389"},{"v":1698,"d":"$1,698"},{"v":1920,"d":"$1,920"},{"v":1941,"d":"$1,941"},{"v":1959,"d":"$1,959"}]
[" FORT PIERCE","FL",{"v":1077,"d":"$1,077"},{"v":1077,"d":"$1,077"},{"v":1077,"d":"$1,077"},{"v":1077,"d":"$1,077"},{"v":1167,"d":"$1,167"},{"v":1470,"d":"$1,470"},{"v":1509,"d":"$1,509"},{"v":1554,"d":"$1,554"},{"v":1608,"d":"$1,608"},{"v":1470,"d":"$1,470"},{"v":1527,"d":"$1,527"},{"v":1581,"d":"$1,581"},{"v":1620,"d":"$1,620"},{"v":1662,"d":"$1,662"},{"v":1518,"d":"$1,518"},{"v":1575,"d":"$1,575"},{"v":1626,"d":"$1,626"},{"v":1200,"d":"$1,200"},{"v":1464,"d":"$1,464"},{"v":1581,"d":"$1,581"},{"v":1680,"d":"$1,680"},{"v":1749,"d":"$1,749"},{"v":1767,"d":"$1,767"},{"v":1785,"d":"$1,785"}]
[" FT MYERS BCH","FL",{"v":1365,"d":"$1,365"},{"v":1365,"d":"$1,365"},{"v":1365,"d":"$1,365"},{"v":1365,"d":"$1,365"},{"v":1506,"d":"$1,506"},{"v":1566,"d":"$1,566"},{"v":1707,"d":"$1,707"},{"v":1857,"d":"$1,857"},{"v":1998,"d":"$1,998"},{"v":1572,"d":"$1,572"},{"v":1767,"d":"$1,767"},{"v":1953,"d":"$1,953"},{"v":2016,"d":"$2,016"},{"v":2094,"d":"$2,094"},{"v":1737,"d":"$1,737"},{"v":1926,"d":"$1,926"},{"v":2028,"d":"$2,028"},{"v":1515,"d":"$1,515"},{"v":1566,"d":"$1,566"},{"v":1944,"d":"$1,944"},{"v":2124,"d":"$2,124"},{"v":2247,"d":"$2,247"},{"v":2268,"d":"$2,268"},{"v":2292,"d":"$2,292"}]
[" ATLANTA","GA",{"v":1116,"d":"$1,116"},{"v":1116,"d":"$1,116"},{"v":1116,"d":"$1,116"},{"v":1116,"d":"$1,116"},{"v":1194,"d":"$1,194"},{"v":1353,"d":"$1,353"},{"v":1422,"d":"$1,422"},{"v":1494,"d":"$1,494"},{"v":1593,"d":"$1,593"},{"v":1356,"d":"$1,356"},{"v":1452,"d":"$1,452"},{"v":1542,"d":"$1,542"},{"v":1611,"d":"$1,611"},{"v":1695,"d":"$1,695"},{"v":1437,"d":"$1,437"},{"v":1527,"d":"$1,527"},{"v":1623,"d":"$1,623"},{"v":1212,"d":"$1,212"},{"v":1350,"d":"$1,350"},{"v":1536,"d":"$1,536"},{"v":1725,"d":"$1,725"},{"v":1860,"d":"$1,860"},{"v":1878,"d":"$1,878"},{"v":1896,"d":"$1,896"}]
[" ALBANY","GA",{"v":918,"d":"$918"},{"v":918,"d":"$918"},{"v":918,"d":"$918"},{"v":918,"d":"$918"},{"v":981,"d":"$981"},{"v":1050,"d":"$1,050"},{"v":1149,"d":"$1,149"},{"v":1254,"d":"$1,254"},{"v":1398,"d":"$1,398"},{"v":1053,"d":"$1,053"},{"v":1191,"d":"$1,191"},{"v":1323,"d":"$1,323"},{"v":1428,"d":"$1,428"},{"v":1551,"d":"$1,551"},{"v":1170,"d":"$1,170"},{"v":1305,"d":"$1,305"},{"v":1446,"d":"$1,446"},{"v":990,"d":"$990"},{"v":1050,"d":"$1,050"},{"v":1317,"d":"$1,317"},{"v":1599,"d":"$1,599"},{"v":1800,"d":"$1,800"},{"v":1818,"d":"$1,818"},{"v":1836,"d":"$1,836"}]
[" FORT GORDON","GA",{"v":981,"d":"$981"},{"v":981,"d":"$981"},{"v":981,"d":"$981"},{"v":981,"d":"$981"},{"v":1068,"d":"$1,068"},{"v":1260,"d":"$1,260"},{"v":1272,"d":"$1,272"},{"v":1287,"d":"$1,287"},{"v":1392,"d":"$1,392"},{"v":1260,"d":"$1,260"},{"v":1278,"d":"$1,278"},{"v":1296,"d":"$1,296"},{"v":1431,"d":"$1,431"},{"v":1590,"d":"$1,590"},{"v":1275,"d":"$1,275"},{"v":1293,"d":"$1,293"},{"v":1455,"d":"$1,455"},{"v":1089,"d":"$1,089"},{"v":1257,"d":"$1,257"},{"v":1293,"d":"$1,293"},{"v":1653,"d":"$1,653"},{"v":1911,"d":"$1,911"},{"v":1929,"d":"$1,929"},{"v":1947,"d":"$1,947"}]
[" KINGS BAY/BRUNSWICK","GA",{"v":975,"d":"$975"},{"v":975,"d":"$975"},{"v":975,"d":"$975"},{"v":975,"d":"$975"},{"v":1044,"d":"$1,044"},{"v":1350,"d":"$1,350"},{"v":1410,"d":"$1,410"},{"v":1476,"d":"$1,476"},{"v":1566,"d":"$1,566"},{"v":1350,"d":"$1,350"},{"v":1437,"d":"$1,437"},{"v":1518,"d":"$1,518"},{"v":1581,"d":"$1,581"},{"v":1659,"d":"$1,659"},{"v":1422,"d":"$1,422"},{"v":1506,"d":"$1,506"},{"v":1593,"d":"$1,593"},{"v":1077,"d":"$1,077"},{"v":1344,"d":"$1,344"},{"v":1515,"d":"$1,515"},{"v":1686,"d":"$1,686"},{"v":1809,"d":"$1,809"},{"v":1827,"d":"$1,827"},{"v":1845,"d":"$1,845"}]
[" FORT BENNING","GA",{"v":1047,"d":"$1,047"},{"v":1047,"d":"$1,047"},{"v":1047,"d":"$1,047"},{"v":1047,"d":"$1,047"},{"v":1104,"d":"$1,104"},{"v":1371,"d":"$1,371"},{"v":1377,"d":"$1,377"},{"v":1386,"d":"$1,386"},{"v":1437,"d":"$1,437"},{"v":1371,"d":"$1,371"},{"v":1380,"d":"$1,380"},{"v":1389,"d":"$1,389"},{"v":1458,"d":"$1,458"},{"v":1536,"d":"$1,536"},{"v":1380,"d":"$1,380"},{"v":1389,"d":"$1,389"},{"v":1470,"d":"$1,470"},{"v":1131,"d":"$1,131"},{"v":1365,"d":"$1,365"},{"v":1389,"d":"$1,389"},{"v":1566,"d":"$1,566"},{"v":1692,"d":"$1,692"},{"v":1710,"d":"$1,710"},{"v":1728,"d":"$1,728"}]
[" ROBINS AFB","GA",{"v":1005,"d":"$1,005"},{"v":1005,"d":"$1,005"},{"v":1005,"d":"$1,005"},{"v":1005,"d":"$1,005"},{"v":1047,"d":"$1,047"},{"v":1107,"d":"$1,107"},{"v":1251,"d":"$1,251"},{"v":1407,"d":"$1,407"},{"v":1545,"d":"$1,545"},{"v":1110,"d":"$1,110"},{"v":1314,"d":"$1,314"},{"v":1506,"d":"$1,506"},{"v":1560,"d":"$1,560"},{"v":1626,"d":"$1,626"},{"v":1281,"d":"$1,281"},{"v":1479,"d":"$1,479"},{"v":1572,"d":"$1,572"},{"v":1053,"d":"$1,053"},{"v":1104,"d":"$1,104"},{"v":1497,"d":"$1,497"},{"v":1650,"d":"$1,650"},{"v":1755,"d":"$1,755"},{"v":1773,"d":"$1,773"},{"v":1791,"d":"$1,791"}]
[" SAVANNAH","GA",{"v":1179,"d":"$1,179"},{"v":1179,"d":"$1,179"},{"v":1179,"d":"$1,179"},{"v":1179,"d":"$1,179"},{"v":1254,"d":"$1,254"},{"v":1488,"d":"$1,488"},{"v":1575,"d":"$1,575"},{"v":1671,"d":"$1,671"},{"v":1782,"d":"$1,782"},{"v":1491,"d":"$1,491"},{"v":1614,"d":"$1,614"},{"v":1731,"d":"$1,731"},{"v":1800,"d":"$1,800"},{"v":1881,"d":"$1,881"},{"v":1596,"d":"$1,596"},{"v":1713,"d":"$1,713"},{"v":1812,"d":"$1,812"},{"v":1281,"d":"$1,281"},{"v":1485,"d":"$1,485"},{"v":1725,"d":"$1,725"},{"v":1914,"d":"$1,914"},{"v":2046,"d":"$2,046"},{"v":2067,"d":"$2,067"},{"v":2088,"d":"$2,088"}]
[" ATHENS","GA",{"v":915,"d":"$915"},{"v":915,"d":"$915"},{"v":915,"d":"$915"},{"v":915,"d":"$915"},{"v":960,"d":"$960"},{"v":1116,"d":"$1,116"},{"v":1185,"d":"$1,185"},{"v":1257,"d":"$1,257"},{"v":1359,"d":"$1,359"},{"v":1119,"d":"$1,119"},{"v":1215,"d":"$1,215"},{"v":1302,"d":"$1,302"},{"v":1380,"d":"$1,380"},{"v":1470,"d":"$1,470"},{"v":1200,"d":"$1,200"},{"v":1290,"d":"$1,290"},{"v":1395,"d":"$1,395"},{"v":978,"d":"$978"},{"v":1113,"d":"$1,113"},{"v":1299,"d":"$1,299"},{"v":1506,"d":"$1,506"},{"v":1653,"d":"$1,653"},{"v":1668,"d":"$1,668"},{"v":1686,"d":"$1,686"}]
[" DAHLONEGH","GA",{"v":945,"d":"$945"},{"v":945,"d":"$945"},{"v":945,"d":"$945"},{"v":945,"d":"$945"},{"v":1065,"d":"$1,065"},{"v":1173,"d":"$1,173"},{"v":1221,"d":"$1,221"},{"v":1272,"d":"$1,272"},{"v":1359,"d":"$1,359"},{"v":1173,"d":"$1,173"},{"v":1242,"d":"$1,242"},{"v":1305,"d":"$1,305"},{"v":1377,"d":"$1,377"},{"v":1461,"d":"$1,461"},{"v":1233,"d":"$1,233"},{"v":1296,"d":"$1,296"},{"v":1392,"d":"$1,392"},{"v":1077,"d":"$1,077"},{"v":1170,"d":"$1,170"},{"v":1302,"d":"$1,302"},{"v":1494,"d":"$1,494"},{"v":1632,"d":"$1,632"},{"v":1647,"d":"$1,647"},{"v":1665,"d":"$1,665"}]
[" FORT STEWART","GA",{"v":1077,"d":"$1,077"},{"v":1077,"d":"$1,077"},{"v":1077,"d":"$1,077"},{"v":1077,"d":"$1,077"},{"v":1128,"d":"$1,128"},{"v":1440,"d":"$1,440"},{"v":1464,"d":"$1,464"},{"v":1488,"d":"$1,488"},{"v":1575,"d":"$1,575"},{"v":1440,"d":"$1,440"},{"v":1473,"d":"$1,473"},{"v":1506,"d":"$1,506"},{"v":1602,"d":"$1,602"},{"v":1719,"d":"$1,719"},{"v":1470,"d":"$1,470"},{"v":1500,"d":"$1,500"},{"v":1620,"d":"$1,620"},{"v":1164,"d":"$1,164"},{"v":1434,"d":"$1,434"},{"v":1503,"d":"$1,503"},{"v":1761,"d":"$1,761"},{"v":1947,"d":"$1,947"},{"v":1968,"d":"$1,968"},{"v":1986,"d":"$1,986"}]
[" MOODY AFB","GA",{"v":918,"d":"$918"},{"v":918,"d":"$918"},{"v":918,"d":"$918"},{"v":918,"d":"$918"},{"v":975,"d":"$975"},{"v":1149,"d":"$1,149"},{"v":1197,"d":"$1,197"},{"v":1254,"d":"$1,254"},{"v":1359,"d":"$1,359"},{"v":1149,"d":"$1,149"},{"v":1221,"d":"$1,221"},{"v":1287,"d":"$1,287"},{"v":1383,"d":"$1,383"},{"v":1497,"d":"$1,497"},{"v":1209,"d":"$1,209"},{"v":1278,"d":"$1,278"},{"v":1401,"d":"$1,401"},{"v":993,"d":"$993"},{"v":1146,"d":"$1,146"},{"v":1284,"d":"$1,284"},{"v":1539,"d":"$1,539"},{"v":1722,"d":"$1,722"},{"v":1740,"d":"$1,740"},{"v":1758,"d":"$1,758"}]
[" MAUI COUNTY","HI",{"v":1746,"d":"$1,746"},{"v":1746,"d":"$1,746"},{"v":1746,"d":"$1,746"},{"v":1746,"d":"$1,746"},{"v":1830,"d":"$1,830"},{"v":2040,"d":"$2,040"},{"v":2073,"d":"$2,073"},{"v":2109,"d":"$2,109"},{"v":2178,"d":"$2,178"},{"v":2040,"d":"$2,040"},{"v":2088,"d":"$2,088"},{"v":2133,"d":"$2,133"},{"v":2193,"d":"$2,193"},{"v":2268,"d":"$2,268"},{"v":2082,"d":"$2,082"},{"v":2127,"d":"$2,127"},{"v":2205,"d":"$2,205"},{"v":1851,"d":"$1,851"},{"v":2037,"d":"$2,037"},{"v":2130,"d":"$2,130"},{"v":2295,"d":"$2,295"},{"v":2412,"d":"$2,412"},{"v":2436,"d":"$2,436"},{"v":2460,"d":"$2,460"}]
[" HONOLULU COUNTY","HI",{"v":2001,"d":"$2,001"},{"v":2001,"d":"$2,001"},{"v":2001,"d":"$2,001"},{"v":2001,"d":"$2,001"},{"v":2094,"d":"$2,094"},{"v":2445,"d":"$2,445"},{"v":2553,"d":"$2,553"},{"v":2670,"d":"$2,670"},{"v":2808,"d":"$2,808"},{"v":2448,"d":"$2,448"},{"v":2601,"d":"$2,601"},{"v":2745,"d":"$2,745"},{"v":2832,"d":"$2,832"},{"v":2934,"d":"$2,934"},{"v":2577,"d":"$2,577"},{"v":2724,"d":"$2,724"},{"v":2847,"d":"$2,847"},{"v":2133,"d":"$2,133"},{"v":2439,"d":"$2,439"},{"v":2739,"d":"$2,739"},{"v":2973,"d":"$2,973"},{"v":3138,"d":"$3,138"},{"v":3168,"d":"$3,168"},{"v":3201,"d":"$3,201"}]
[" HAWAII COUNTY","HI",{"v":1413,"d":"$1,413"},{"v":1413,"d":"$1,413"},{"v":1413,"d":"$1,413"},{"v":1413,"d":"$1,413"},{"v":1476,"d":"$1,476"},{"v":1815,"d":"$1,815"},{"v":1848,"d":"$1,848"},{"v":1884,"d":"$1,884"},{"v":1947,"d":"$1,947"},{"v":1815,"d":"$1,815"},{"v":1863,"d":"$1,863"},{"v":1908,"d":"$1,908"},{"v":1959,"d":"$1,959"},{"v":2022,"d":"$2,022"},{"v":1857,"d":"$1,857"},{"v":1902,"d":"$1,902"},{"v":1971,"d":"$1,971"},{"v":1515,"d":"$1,515"},{"v":1809,"d":"$1,809"},{"v":1905,"d":"$1,905"},{"v":2046,"d":"$2,046"},{"v":2145,"d":"$2,145"},{"v":2166,"d":"$2,166"},{"v":2187,"d":"$2,187"}]
[" KAUAI COUNTY","HI",{"v":1737,"d":"$1,737"},{"v":1737,"d":"$1,737"},{"v":1737,"d":"$1,737"},{"v":1737,"d":"$1,737"},{"v":1893,"d":"$1,893"},{"v":2061,"d":"$2,061"},{"v":2079,"d":"$2,079"},{"v":2097,"d":"$2,097"},{"v":2265,"d":"$2,265"},{"v":2061,"d":"$2,061"},{"v":2085,"d":"$2,085"},{"v":2109,"d":"$2,109"},{"v":2325,"d":"$2,325"},{"v":2577,"d":"$2,577"},{"v":2082,"d":"$2,082"},{"v":2106,"d":"$2,106"},{"v":2364,"d":"$2,364"},{"v":1911,"d":"$1,911"},{"v":2058,"d":"$2,058"},{"v":2109,"d":"$2,109"},{"v":2676,"d":"$2,676"},{"v":3084,"d":"$3,084"},{"v":3117,"d":"$3,117"},{"v":3147,"d":"$3,147"}]
[" DES MOINES","IA",{"v":1017,"d":"$1,017"},{"v":1017,"d":"$1,017"},{"v":1017,"d":"$1,017"},{"v":1017,"d":"$1,017"},{"v":1104,"d":"$1,104"},{"v":1368,"d":"$1,368"},{"v":1422,"d":"$1,422"},{"v":1479,"d":"$1,479"},{"v":1554,"d":"$1,554"},{"v":1368,"d":"$1,368"},{"v":1443,"d":"$1,443"},{"v":1515,"d":"$1,515"},{"v":1566,"d":"$1,566"},{"v":1629,"d":"$1,629"},{"v":1431,"d":"$1,431"},{"v":1503,"d":"$1,503"},{"v":1578,"d":"$1,578"},{"v":1131,"d":"$1,131"},{"v":1362,"d":"$1,362"},{"v":1512,"d":"$1,512"},{"v":1653,"d":"$1,653"},{"v":1755,"d":"$1,755"},{"v":1773,"d":"$1,773"},{"v":1791,"d":"$1,791"}]
[" AMES","IA",{"v":885,"d":"$885"},{"v":885,"d":"$885"},{"v":885,"d":"$885"},{"v":885,"d":"$885"},{"v":963,"d":"$963"},{"v":1245,"d":"$1,245"},{"v":1257,"d":"$1,257"},{"v":1272,"d":"$1,272"},{"v":1359,"d":"$1,359"},{"v":1245,"d":"$1,245"},{"v":1263,"d":"$1,263"},{"v":1278,"d":"$1,278"},{"v":1389,"d":"$1,389"},{"v":1521,"d":"$1,521"},{"v":1260,"d":"$1,260"},{"v":1278,"d":"$1,278"},{"v":1410,"d":"$1,410"},{"v":993,"d":"$993"},{"v":1239,"d":"$1,239"},{"v":1278,"d":"$1,278"},{"v":1572,"d":"$1,572"},{"v":1785,"d":"$1,785"},{"v":1803,"d":"$1,803"},{"v":1821,"d":"$1,821"}]
[" WATERLOO","IA",{"v":828,"d":"$828"},{"v":828,"d":"$828"},{"v":828,"d":"$828"},{"v":828,"d":"$828"},{"v":915,"d":"$915"},{"v":1059,"d":"$1,059"},{"v":1119,"d":"$1,119"},{"v":1185,"d":"$1,185"},{"v":1260,"d":"$1,260"},{"v":1062,"d":"$1,062"},{"v":1146,"d":"$1,146"},{"v":1227,"d":"$1,227"},{"v":1272,"d":"$1,272"},{"v":1323,"d":"$1,323"},{"v":1134,"d":"$1,134"},{"v":1215,"d":"$1,215"},{"v":1281,"d":"$1,281"},{"v":933,"d":"$933"},{"v":1056,"d":"$1,056"},{"v":1224,"d":"$1,224"},{"v":1344,"d":"$1,344"},{"v":1428,"d":"$1,428"},{"v":1443,"d":"$1,443"},{"v":1458,"d":"$1,458"}]
[" DUBUQUE","IA",{"v":930,"d":"$930"},{"v":930,"d":"$930"},{"v":930,"d":"$930"},{"v":930,"d":"$930"},{"v":1020,"d":"$1,020"},{"v":1242,"d":"$1,242"},{"v":1323,"d":"$1,323"},{"v":1410,"d":"$1,410"},{"v":1545,"d":"$1,545"},{"v":1245,"d":"$1,245"},{"v":1359,"d":"$1,359"},{"v":1467,"d":"$1,467"},{"v":1575,"d":"$1,575"},{"v":1701,"d":"$1,701"},{"v":1341,"d":"$1,341"},{"v":1452,"d":"$1,452"},{"v":1593,"d":"$1,593"},{"v":1044,"d":"$1,044"},{"v":1239,"d":"$1,239"},{"v":1464,"d":"$1,464"},{"v":1749,"d":"$1,749"},{"v":1953,"d":"$1,953"},{"v":1971,"d":"$1,971"},{"v":1992,"d":"$1,992"}]
[" CEDAR RAPIDS","IA",{"v":813,"d":"$813"},{"v":813,"d":"$813"},{"v":813,"d":"$813"},{"v":813,"d":"$813"},{"v":831,"d":"$831"},{"v":1089,"d":"$1,089"},{"v":1167,"d":"$1,167"},{"v":1254,"d":"$1,254"},{"v":1359,"d":"$1,359"},{"v":1092,"d":"$1,092"},{"v":1203,"d":"$1,203"},{"v":1308,"d":"$1,308"},{"v":1380,"d":"$1,380"},{"v":1464,"d":"$1,464"},{"v":1185,"d":"$1,185"},{"v":1293,"d":"$1,293"},{"v":1392,"d":"$1,392"},{"v":858,"d":"$858"},{"v":1086,"d":"$1,086"},{"v":1302,"d":"$1,302"},{"v":1497,"d":"$1,497"},{"v":1632,"d":"$1,632"},{"v":1650,"d":"$1,650"},{"v":1665,"d":"$1,665"}]
[" SIOUX CITY","IA",{"v":840,"d":"$840"},{"v":840,"d":"$840"},{"v":840,"d":"$840"},{"v":840,"d":"$840"},{"v":903,"d":"$903"},{"v":1005,"d":"$1,005"},{"v":1038,"d":"$1,038"},{"v":1074,"d":"$1,074"},{"v":1146,"d":"$1,146"},{"v":1008,"d":"$1,008"},{"v":1053,"d":"$1,053"},{"v":1098,"d":"$1,098"},{"v":1164,"d":"$1,164"},{"v":1242,"d":"$1,242"},{"v":1047,"d":"$1,047"},{"v":1092,"d":"$1,092"},{"v":1176,"d":"$1,176"},{"v":915,"d":"$915"},{"v":1005,"d":"$1,005"},{"v":1095,"d":"$1,095"},{"v":1272,"d":"$1,272"},{"v":1398,"d":"$1,398"},{"v":1413,"d":"$1,413"},{"v":1425,"d":"$1,425"}]
[" IOWA CITY","IA",{"v":960,"d":"$960"},{"v":960,"d":"$960"},{"v":960,"d":"$960"},{"v":960,"d":"$960"},{"v":1068,"d":"$1,068"},{"v":1299,"d":"$1,299"},{"v":1347,"d":"$1,347"},{"v":1398,"d":"$1,398"},{"v":1533,"d":"$1,533"},{"v":1299,"d":"$1,299"},{"v":1368,"d":"$1,368"},{"v":1428,"d":"$1,428"},{"v":1572,"d":"$1,572"},{"v":1740,"d":"$1,740"},{"v":1356,"d":"$1,356"},{"v":1419,"d":"$1,419"},{"v":1599,"d":"$1,599"},{"v":1092,"d":"$1,092"},{"v":1293,"d":"$1,293"},{"v":1425,"d":"$1,425"},{"v":1806,"d":"$1,806"},{"v":2079,"d":"$2,079"},{"v":2100,"d":"$2,100"},{"v":2121,"d":"$2,121"}]
[" BOISE","ID",{"v":885,"d":"$885"},{"v":885,"d":"$885"},{"v":885,"d":"$885"},{"v":885,"d":"$885"},{"v":951,"d":"$951"},{"v":1080,"d":"$1,080"},{"v":1113,"d":"$1,113"},{"v":1146,"d":"$1,146"},{"v":1203,"d":"$1,203"},{"v":1080,"d":"$1,080"},{"v":1125,"d":"$1,125"},{"v":1170,"d":"$1,170"},{"v":1218,"d":"$1,218"},{"v":1272,"d":"$1,272"},{"v":1119,"d":"$1,119"},{"v":1164,"d":"$1,164"},{"v":1224,"d":"$1,224"},{"v":966,"d":"$966"},{"v":1077,"d":"$1,077"},{"v":1167,"d":"$1,167"},{"v":1293,"d":"$1,293"},{"v":1383,"d":"$1,383"},{"v":1395,"d":"$1,395"},{"v":1410,"d":"$1,410"}]
[" IDAHO FALLS","ID",{"v":861,"d":"$861"},{"v":861,"d":"$861"},{"v":861,"d":"$861"},{"v":861,"d":"$861"},{"v":951,"d":"$951"},{"v":975,"d":"$975"},{"v":1050,"d":"$1,050"},{"v":1131,"d":"$1,131"},{"v":1224,"d":"$1,224"},{"v":978,"d":"$978"},{"v":1083,"d":"$1,083"},{"v":1185,"d":"$1,185"},{"v":1239,"d":"$1,239"},{"v":1305,"d":"$1,305"},{"v":1068,"d":"$1,068"},{"v":1170,"d":"$1,170"},{"v":1248,"d":"$1,248"},{"v":954,"d":"$954"},{"v":975,"d":"$975"},{"v":1179,"d":"$1,179"},{"v":1329,"d":"$1,329"},{"v":1434,"d":"$1,434"},{"v":1449,"d":"$1,449"},{"v":1464,"d":"$1,464"}]
[" MOUNTAIN HOME AFB","ID",{"v":867,"d":"$867"},{"v":867,"d":"$867"},{"v":867,"d":"$867"},{"v":867,"d":"$867"},{"v":960,"d":"$960"},{"v":1080,"d":"$1,080"},{"v":1191,"d":"$1,191"},{"v":1314,"d":"$1,314"},{"v":1419,"d":"$1,419"},{"v":1083,"d":"$1,083"},{"v":1242,"d":"$1,242"},{"v":1389,"d":"$1,389"},{"v":1428,"d":"$1,428"},{"v":1473,"d":"$1,473"},{"v":1215,"d":"$1,215"},{"v":1368,"d":"$1,368"},{"v":1437,"d":"$1,437"},{"v":972,"d":"$972"},{"v":1077,"d":"$1,077"},{"v":1383,"d":"$1,383"},{"v":1491,"d":"$1,491"},{"v":1566,"d":"$1,566"},{"v":1581,"d":"$1,581"},{"v":1596,"d":"$1,596"}]
[" MOSCOW/PULLMAN, WA","ID",{"v":807,"d":"$807"},{"v":807,"d":"$807"},{"v":807,"d":"$807"},{"v":807,"d":"$807"},{"v":912,"d":"$912"},{"v":1305,"d":"$1,305"},{"v":1353,"d":"$1,353"},{"v":1407,"d":"$1,407"},{"v":1497,"d":"$1,497"},{"v":1305,"d":"$1,305"},{"v":1374,"d":"$1,374"},{"v":1440,"d":"$1,440"},{"v":1518,"d":"$1,518"},{"v":1611,"d":"$1,611"},{"v":1365,"d":"$1,365"},{"v":1431,"d":"$1,431"},{"v":1533,"d":"$1,533"},{"v":954,"d":"$954"},{"v":1296,"d":"$1,296"},{"v":1437,"d":"$1,437"},{"v":1647,"d":"$1,647"},{"v":1797,"d":"$1,797"},{"v":1815,"d":"$1,815"},{"v":1833,"d":"$1,833"}]
[" CHAMPAIGN/URBANA","IL",{"v":1107,"d":"$1,107"},{"v":1107,"d":"$1,107"},{"v":1107,"d":"$1,107"},{"v":1107,"d":"$1,107"},{"v":1188,"d":"$1,188"},{"v":1380,"d":"$1,380"},{"v":1407,"d":"$1,407"},{"v":1434,"d":"$1,434"},{"v":1521,"d":"$1,521"},{"v":1380,"d":"$1,380"},{"v":1419,"d":"$1,419"},{"v":1452,"d":"$1,452"},{"v":1545,"d":"$1,545"},{"v":1656,"d":"$1,656"},{"v":1413,"d":"$1,413"},{"v":1449,"d":"$1,449"},{"v":1563,"d":"$1,563"},{"v":1209,"d":"$1,209"},{"v":1377,"d":"$1,377"},{"v":1452,"d":"$1,452"},{"v":1698,"d":"$1,698"},{"v":1875,"d":"$1,875"},{"v":1893,"d":"$1,893"},{"v":1914,"d":"$1,914"}]
[" ROCK ISLAND","IL",{"v":882,"d":"$882"},{"v":882,"d":"$882"},{"v":882,"d":"$882"},{"v":882,"d":"$882"},{"v":939,"d":"$939"},{"v":1263,"d":"$1,263"},{"v":1311,"d":"$1,311"},{"v":1362,"d":"$1,362"},{"v":1443,"d":"$1,443"},{"v":1263,"d":"$1,263"},{"v":1332,"d":"$1,332"},{"v":1395,"d":"$1,395"},{"v":1461,"d":"$1,461"},{"v":1539,"d":"$1,539"},{"v":1320,"d":"$1,320"},{"v":1386,"d":"$1,386"},{"v":1473,"d":"$1,473"},{"v":975,"d":"$975"},{"v":1257,"d":"$1,257"},{"v":1392,"d":"$1,392"},{"v":1566,"d":"$1,566"},{"v":1692,"d":"$1,692"},{"v":1710,"d":"$1,710"},{"v":1728,"d":"$1,728"}]
[" PEORIA","IL",{"v":1002,"d":"$1,002"},{"v":1002,"d":"$1,002"},{"v":1002,"d":"$1,002"},{"v":1002,"d":"$1,002"},{"v":1104,"d":"$1,104"},{"v":1296,"d":"$1,296"},{"v":1308,"d":"$1,308"},{"v":1317,"d":"$1,317"},{"v":1368,"d":"$1,368"},{"v":1296,"d":"$1,296"},{"v":1311,"d":"$1,311"},{"v":1323,"d":"$1,323"},{"v":1383,"d":"$1,383"},{"v":1452,"d":"$1,452"},{"v":1308,"d":"$1,308"},{"v":1323,"d":"$1,323"},{"v":1392,"d":"$1,392"},{"v":1125,"d":"$1,125"},{"v":1293,"d":"$1,293"},{"v":1323,"d":"$1,323"},{"v":1479,"d":"$1,479"},{"v":1590,"d":"$1,590"},{"v":1605,"d":"$1,605"},{"v":1623,"d":"$1,623"}]
[" GREAT LAKES NAVTRACEN","IL",{"v":1152,"d":"$1,152"},{"v":1152,"d":"$1,152"},{"v":1152,"d":"$1,152"},{"v":1152,"d":"$1,152"},{"v":1281,"d":"$1,281"},{"v":1509,"d":"$1,509"},{"v":1557,"d":"$1,557"},{"v":1605,"d":"$1,605"},{"v":1716,"d":"$1,716"},{"v":1512,"d":"$1,512"},{"v":1575,"d":"$1,575"},{"v":1638,"d":"$1,638"},{"v":1746,"d":"$1,746"},{"v":1875,"d":"$1,875"},{"v":1566,"d":"$1,566"},{"v":1629,"d":"$1,629"},{"v":1767,"d":"$1,767"},{"v":1308,"d":"$1,308"},{"v":1506,"d":"$1,506"},{"v":1635,"d":"$1,635"},{"v":1926,"d":"$1,926"},{"v":2133,"d":"$2,133"},{"v":2154,"d":"$2,154"},{"v":2178,"d":"$2,178"}]
[" SCOTT AFB","IL",{"v":1056,"d":"$1,056"},{"v":1056,"d":"$1,056"},{"v":1056,"d":"$1,056"},{"v":1056,"d":"$1,056"},{"v":1131,"d":"$1,131"},{"v":1368,"d":"$1,368"},{"v":1449,"d":"$1,449"},{"v":1539,"d":"$1,539"},{"v":1653,"d":"$1,653"},{"v":1368,"d":"$1,368"},{"v":1485,"d":"$1,485"},{"v":1596,"d":"$1,596"},{"v":1677,"d":"$1,677"},{"v":1773,"d":"$1,773"},{"v":1467,"d":"$1,467"},{"v":1578,"d":"$1,578"},{"v":1692,"d":"$1,692"},{"v":1158,"d":"$1,158"},{"v":1362,"d":"$1,362"},{"v":1590,"d":"$1,590"},{"v":1809,"d":"$1,809"},{"v":1965,"d":"$1,965"},{"v":1986,"d":"$1,986"},{"v":2004,"d":"$2,004"}]
[" CHICAGO","IL",{"v":1608,"d":"$1,608"},{"v":1608,"d":"$1,608"},{"v":1608,"d":"$1,608"},{"v":1608,"d":"$1,608"},{"v":1689,"d":"$1,689"},{"v":1974,"d":"$1,974"},{"v":1986,"d":"$1,986"},{"v":2001,"d":"$2,001"},{"v":2100,"d":"$2,100"},{"v":1974,"d":"$1,974"},{"v":1992,"d":"$1,992"},{"v":2013,"d":"$2,013"},{"v":2133,"d":"$2,133"},{"v":2277,"d":"$2,277"},{"v":1989,"d":"$1,989"},{"v":2010,"d":"$2,010"},{"v":2157,"d":"$2,157"},{"v":1719,"d":"$1,719"},{"v":1968,"d":"$1,968"},{"v":2010,"d":"$2,010"},{"v":2334,"d":"$2,334"},{"v":2568,"d":"$2,568"},{"v":2592,"d":"$2,592"},{"v":2619,"d":"$2,619"}]
[" SPRINGFIELD/DECATUR","IL",{"v":927,"d":"$927"},{"v":927,"d":"$927"},{"v":927,"d":"$927"},{"v":927,"d":"$927"},{"v":972,"d":"$972"},{"v":1191,"d":"$1,191"},{"v":1200,"d":"$1,200"},{"v":1209,"d":"$1,209"},{"v":1272,"d":"$1,272"},{"v":1191,"d":"$1,191"},{"v":1203,"d":"$1,203"},{"v":1215,"d":"$1,215"},{"v":1290,"d":"$1,290"},{"v":1380,"d":"$1,380"},{"v":1200,"d":"$1,200"},{"v":1215,"d":"$1,215"},{"v":1305,"d":"$1,305"},{"v":996,"d":"$996"},{"v":1185,"d":"$1,185"},{"v":1215,"d":"$1,215"},{"v":1413,"d":"$1,413"},{"v":1557,"d":"$1,557"},{"v":1572,"d":"$1,572"},{"v":1587,"d":"$1,587"}]
[" JOLIET ARMY DEPOT","IL",{"v":1086,"d":"$1,086"},{"v":1086,"d":"$1,086"},{"v":1086,"d":"$1,086"},{"v":1086,"d":"$1,086"},{"v":1275,"d":"$1,275"},{"v":1629,"d":"$1,629"},{"v":1683,"d":"$1,683"},{"v":1740,"d":"$1,740"},{"v":1854,"d":"$1,854"},{"v":1632,"d":"$1,632"},{"v":1704,"d":"$1,704"},{"v":1776,"d":"$1,776"},{"v":1884,"d":"$1,884"},{"v":2013,"d":"$2,013"},{"v":1695,"d":"$1,695"},{"v":1764,"d":"$1,764"},{"v":1905,"d":"$1,905"},{"v":1314,"d":"$1,314"},{"v":1623,"d":"$1,623"},{"v":1773,"d":"$1,773"},{"v":2064,"d":"$2,064"},{"v":2271,"d":"$2,271"},{"v":2295,"d":"$2,295"},{"v":2316,"d":"$2,316"}]
[" ROCKFORD","IL",{"v":942,"d":"$942"},{"v":942,"d":"$942"},{"v":942,"d":"$942"},{"v":942,"d":"$942"},{"v":1056,"d":"$1,056"},{"v":1191,"d":"$1,191"},{"v":1203,"d":"$1,203"},{"v":1218,"d":"$1,218"},{"v":1263,"d":"$1,263"},{"v":1191,"d":"$1,191"},{"v":1209,"d":"$1,209"},{"v":1224,"d":"$1,224"},{"v":1278,"d":"$1,278"},{"v":1344,"d":"$1,344"},{"v":1206,"d":"$1,206"},{"v":1224,"d":"$1,224"},{"v":1290,"d":"$1,290"},{"v":1071,"d":"$1,071"},{"v":1188,"d":"$1,188"},{"v":1224,"d":"$1,224"},{"v":1368,"d":"$1,368"},{"v":1470,"d":"$1,470"},{"v":1485,"d":"$1,485"},{"v":1500,"d":"$1,500"}]
[" INDIANAPOLIS","IN",{"v":1062,"d":"$1,062"},{"v":1062,"d":"$1,062"},{"v":1062,"d":"$1,062"},{"v":1062,"d":"$1,062"},{"v":1131,"d":"$1,131"},{"v":1230,"d":"$1,230"},{"v":1272,"d":"$1,272"},{"v":1317,"d":"$1,317"},{"v":1413,"d":"$1,413"},{"v":1233,"d":"$1,233"},{"v":1290,"d":"$1,290"},{"v":1344,"d":"$1,344"},{"v":1440,"d":"$1,440"},{"v":1554,"d":"$1,554"},{"v":1281,"d":"$1,281"},{"v":1335,"d":"$1,335"},{"v":1458,"d":"$1,458"},{"v":1140,"d":"$1,140"},{"v":1230,"d":"$1,230"},{"v":1341,"d":"$1,341"},{"v":1599,"d":"$1,599"},{"v":1782,"d":"$1,782"},{"v":1800,"d":"$1,800"},{"v":1818,"d":"$1,818"}]
[" LAFAYETTE","IN",{"v":1026,"d":"$1,026"},{"v":1026,"d":"$1,026"},{"v":1026,"d":"$1,026"},{"v":1026,"d":"$1,026"},{"v":1089,"d":"$1,089"},{"v":1161,"d":"$1,161"},{"v":1188,"d":"$1,188"},{"v":1218,"d":"$1,218"},{"v":1260,"d":"$1,260"},{"v":1164,"d":"$1,164"},{"v":1200,"d":"$1,200"},{"v":1236,"d":"$1,236"},{"v":1269,"d":"$1,269"},{"v":1308,"d":"$1,308"},{"v":1194,"d":"$1,194"},{"v":1230,"d":"$1,230"},{"v":1275,"d":"$1,275"},{"v":1095,"d":"$1,095"},{"v":1161,"d":"$1,161"},{"v":1233,"d":"$1,233"},{"v":1323,"d":"$1,323"},{"v":1386,"d":"$1,386"},{"v":1398,"d":"$1,398"},{"v":1413,"d":"$1,413"}]
[" FORT WAYNE","IN",{"v":861,"d":"$861"},{"v":861,"d":"$861"},{"v":861,"d":"$861"},{"v":861,"d":"$861"},{"v":948,"d":"$948"},{"v":1095,"d":"$1,095"},{"v":1140,"d":"$1,140"},{"v":1185,"d":"$1,185"},{"v":1293,"d":"$1,293"},{"v":1095,"d":"$1,095"},{"v":1158,"d":"$1,158"},{"v":1215,"d":"$1,215"},{"v":1320,"d":"$1,320"},{"v":1443,"d":"$1,443"},{"v":1149,"d":"$1,149"},{"v":1209,"d":"$1,209"},{"v":1338,"d":"$1,338"},{"v":963,"d":"$963"},{"v":1092,"d":"$1,092"},{"v":1215,"d":"$1,215"},{"v":1491,"d":"$1,491"},{"v":1689,"d":"$1,689"},{"v":1704,"d":"$1,704"},{"v":1722,"d":"$1,722"}]
[" SOUTH BEND","IN",{"v":969,"d":"$969"},{"v":969,"d":"$969"},{"v":969,"d":"$969"},{"v":969,"d":"$969"},{"v":1080,"d":"$1,080"},{"v":1236,"d":"$1,236"},{"v":1263,"d":"$1,263"},{"v":1290,"d":"$1,290"},{"v":1362,"d":"$1,362"},{"v":1239,"d":"$1,239"},{"v":1275,"d":"$1,275"},{"v":1308,"d":"$1,308"},{"v":1380,"d":"$1,380"},{"v":1464,"d":"$1,464"},{"v":1269,"d":"$1,269"},{"v":1305,"d":"$1,305"},{"v":1395,"d":"$1,395"},{"v":1098,"d":"$1,098"},{"v":1233,"d":"$1,233"},{"v":1308,"d":"$1,308"},{"v":1497,"d":"$1,497"},{"v":1635,"d":"$1,635"},{"v":1650,"d":"$1,650"},{"v":1668,"d":"$1,668"}]
[" EVANSVILLE","IN",{"v":888,"d":"$888"},{"v":888,"d":"$888"},{"v":888,"d":"$888"},{"v":888,"d":"$888"},{"v":984,"d":"$984"},{"v":1104,"d":"$1,104"},{"v":1122,"d":"$1,122"},{"v":1140,"d":"$1,140"},{"v":1218,"d":"$1,218"},{"v":1104,"d":"$1,104"},{"v":1128,"d":"$1,128"},{"v":1149,"d":"$1,149"},{"v":1242,"d":"$1,242"},{"v":1350,"d":"$1,350"},{"v":1125,"d":"$1,125"},{"v":1146,"d":"$1,146"},{"v":1257,"d":"$1,257"},{"v":996,"d":"$996"},{"v":1101,"d":"$1,101"},{"v":1149,"d":"$1,149"},{"v":1392,"d":"$1,392"},{"v":1566,"d":"$1,566"},{"v":1584,"d":"$1,584"},{"v":1599,"d":"$1,599"}]
[" TERRE HAUTE","IN",{"v":852,"d":"$852"},{"v":852,"d":"$852"},{"v":852,"d":"$852"},{"v":852,"d":"$852"},{"v":915,"d":"$915"},{"v":1086,"d":"$1,086"},{"v":1122,"d":"$1,122"},{"v":1161,"d":"$1,161"},{"v":1221,"d":"$1,221"},{"v":1086,"d":"$1,086"},{"v":1140,"d":"$1,140"},{"v":1188,"d":"$1,188"},{"v":1230,"d":"$1,230"},{"v":1284,"d":"$1,284"},{"v":1131,"d":"$1,131"},{"v":1182,"d":"$1,182"},{"v":1239,"d":"$1,239"},{"v":933,"d":"$933"},{"v":1083,"d":"$1,083"},{"v":1185,"d":"$1,185"},{"v":1302,"d":"$1,302"},{"v":1386,"d":"$1,386"},{"v":1398,"d":"$1,398"},{"v":1413,"d":"$1,413"}]
[" BLOOMINGTON","IN",{"v":894,"d":"$894"},{"v":894,"d":"$894"},{"v":894,"d":"$894"},{"v":894,"d":"$894"},{"v":999,"d":"$999"},{"v":1149,"d":"$1,149"},{"v":1251,"d":"$1,251"},{"v":1362,"d":"$1,362"},{"v":1470,"d":"$1,470"},{"v":1152,"d":"$1,152"},{"v":1296,"d":"$1,296"},{"v":1431,"d":"$1,431"},{"v":1485,"d":"$1,485"},{"v":1548,"d":"$1,548"},{"v":1275,"d":"$1,275"},{"v":1410,"d":"$1,410"},{"v":1494,"d":"$1,494"},{"v":1017,"d":"$1,017"},{"v":1146,"d":"$1,146"},{"v":1425,"d":"$1,425"},{"v":1572,"d":"$1,572"},{"v":1674,"d":"$1,674"},{"v":1692,"d":"$1,692"},{"v":1710,"d":"$1,710"}]
[" FORT RILEY","KS",{"v":1023,"d":"$1,023"},{"v":1023,"d":"$1,023"},{"v":1023,"d":"$1,023"},{"v":1023,"d":"$1,023"},{"v":1113,"d":"$1,113"},{"v":1410,"d":"$1,410"},{"v":1416,"d":"$1,416"},{"v":1425,"d":"$1,425"},{"v":1494,"d":"$1,494"},{"v":1410,"d":"$1,410"},{"v":1419,"d":"$1,419"},{"v":1431,"d":"$1,431"},{"v":1518,"d":"$1,518"},{"v":1620,"d":"$1,620"},{"v":1419,"d":"$1,419"},{"v":1428,"d":"$1,428"},{"v":1533,"d":"$1,533"},{"v":1146,"d":"$1,146"},{"v":1404,"d":"$1,404"},{"v":1431,"d":"$1,431"},{"v":1659,"d":"$1,659"},{"v":1824,"d":"$1,824"},{"v":1842,"d":"$1,842"},{"v":1860,"d":"$1,860"}]
[" WICHITA/MCCONNELL AFB","KS",{"v":891,"d":"$891"},{"v":891,"d":"$891"},{"v":891,"d":"$891"},{"v":891,"d":"$891"},{"v":1023,"d":"$1,023"},{"v":1206,"d":"$1,206"},{"v":1302,"d":"$1,302"},{"v":1404,"d":"$1,404"},{"v":1521,"d":"$1,521"},{"v":1209,"d":"$1,209"},{"v":1344,"d":"$1,344"},{"v":1470,"d":"$1,470"},{"v":1542,"d":"$1,542"},{"v":1626,"d":"$1,626"},{"v":1323,"d":"$1,323"},{"v":1452,"d":"$1,452"},{"v":1554,"d":"$1,554"},{"v":1044,"d":"$1,044"},{"v":1203,"d":"$1,203"},{"v":1464,"d":"$1,464"},{"v":1659,"d":"$1,659"},{"v":1797,"d":"$1,797"},{"v":1815,"d":"$1,815"},{"v":1833,"d":"$1,833"}]
[" FORT LEAVENWORTH","KS",{"v":882,"d":"$882"},{"v":882,"d":"$882"},{"v":882,"d":"$882"},{"v":882,"d":"$882"},{"v":975,"d":"$975"},{"v":1224,"d":"$1,224"},{"v":1305,"d":"$1,305"},{"v":1395,"d":"$1,395"},{"v":1524,"d":"$1,524"},{"v":1227,"d":"$1,227"},{"v":1344,"d":"$1,344"},{"v":1452,"d":"$1,452"},{"v":1551,"d":"$1,551"},{"v":1665,"d":"$1,665"},{"v":1326,"d":"$1,326"},{"v":1437,"d":"$1,437"},{"v":1569,"d":"$1,569"},{"v":1002,"d":"$1,002"},{"v":1218,"d":"$1,218"},{"v":1449,"d":"$1,449"},{"v":1710,"d":"$1,710"},{"v":1896,"d":"$1,896"},{"v":1914,"d":"$1,914"},{"v":1935,"d":"$1,935"}]
[" LAWRENCE","KS",{"v":957,"d":"$957"},{"v":957,"d":"$957"},{"v":957,"d":"$957"},{"v":957,"d":"$957"},{"v":1017,"d":"$1,017"},{"v":1200,"d":"$1,200"},{"v":1284,"d":"$1,284"},{"v":1374,"d":"$1,374"},{"v":1488,"d":"$1,488"},{"v":1203,"d":"$1,203"},{"v":1320,"d":"$1,320"},{"v":1431,"d":"$1,431"},{"v":1509,"d":"$1,509"},{"v":1599,"d":"$1,599"},{"v":1302,"d":"$1,302"},{"v":1416,"d":"$1,416"},{"v":1521,"d":"$1,521"},{"v":1038,"d":"$1,038"},{"v":1197,"d":"$1,197"},{"v":1428,"d":"$1,428"},{"v":1635,"d":"$1,635"},{"v":1779,"d":"$1,779"},{"v":1797,"d":"$1,797"},{"v":1815,"d":"$1,815"}]
[" TOPEKA","KS",{"v":912,"d":"$912"},{"v":912,"d":"$912"},{"v":912,"d":"$912"},{"v":912,"d":"$912"},{"v":1026,"d":"$1,026"},{"v":1251,"d":"$1,251"},{"v":1284,"d":"$1,284"},{"v":1320,"d":"$1,320"},{"v":1398,"d":"$1,398"},{"v":1251,"d":"$1,251"},{"v":1299,"d":"$1,299"},{"v":1344,"d":"$1,344"},{"v":1419,"d":"$1,419"},{"v":1512,"d":"$1,512"},{"v":1290,"d":"$1,290"},{"v":1335,"d":"$1,335"},{"v":1434,"d":"$1,434"},{"v":1053,"d":"$1,053"},{"v":1245,"d":"$1,245"},{"v":1341,"d":"$1,341"},{"v":1548,"d":"$1,548"},{"v":1695,"d":"$1,695"},{"v":1710,"d":"$1,710"},{"v":1728,"d":"$1,728"}]
[" SALINA","KS",{"v":783,"d":"$783"},{"v":783,"d":"$783"},{"v":783,"d":"$783"},{"v":783,"d":"$783"},{"v":849,"d":"$849"},{"v":993,"d":"$993"},{"v":1047,"d":"$1,047"},{"v":1104,"d":"$1,104"},{"v":1167,"d":"$1,167"},{"v":993,"d":"$993"},{"v":1071,"d":"$1,071"},{"v":1143,"d":"$1,143"},{"v":1179,"d":"$1,179"},{"v":1221,"d":"$1,221"},{"v":1059,"d":"$1,059"},{"v":1131,"d":"$1,131"},{"v":1185,"d":"$1,185"},{"v":864,"d":"$864"},{"v":990,"d":"$990"},{"v":1140,"d":"$1,140"},{"v":1236,"d":"$1,236"},{"v":1305,"d":"$1,305"},{"v":1317,"d":"$1,317"},{"v":1332,"d":"$1,332"}]
[" FORT CAMPBELL","KY",{"v":864,"d":"$864"},{"v":864,"d":"$864"},{"v":864,"d":"$864"},{"v":864,"d":"$864"},{"v":888,"d":"$888"},{"v":1143,"d":"$1,143"},{"v":1257,"d":"$1,257"},{"v":1380,"d":"$1,380"},{"v":1485,"d":"$1,485"},{"v":1146,"d":"$1,146"},{"v":1308,"d":"$1,308"},{"v":1461,"d":"$1,461"},{"v":1494,"d":"$1,494"},{"v":1533,"d":"$1,533"},{"v":1281,"d":"$1,281"},{"v":1440,"d":"$1,440"},{"v":1500,"d":"$1,500"},{"v":915,"d":"$915"},{"v":1137,"d":"$1,137"},{"v":1455,"d":"$1,455"},{"v":1548,"d":"$1,548"},{"v":1608,"d":"$1,608"},{"v":1626,"d":"$1,626"},{"v":1641,"d":"$1,641"}]
[" LEXINGTON","KY",{"v":933,"d":"$933"},{"v":933,"d":"$933"},{"v":933,"d":"$933"},{"v":933,"d":"$933"},{"v":1047,"d":"$1,047"},{"v":1182,"d":"$1,182"},{"v":1224,"d":"$1,224"},{"v":1269,"d":"$1,269"},{"v":1347,"d":"$1,347"},{"v":1185,"d":"$1,185"},{"v":1242,"d":"$1,242"},{"v":1299,"d":"$1,299"},{"v":1365,"d":"$1,365"},{"v":1443,"d":"$1,443"},{"v":1233,"d":"$1,233"},{"v":1290,"d":"$1,290"},{"v":1377,"d":"$1,377"},{"v":1062,"d":"$1,062"},{"v":1179,"d":"$1,179"},{"v":1296,"d":"$1,296"},{"v":1476,"d":"$1,476"},{"v":1602,"d":"$1,602"},{"v":1617,"d":"$1,617"},{"v":1635,"d":"$1,635"}]
[" LOUISVILLE","KY",{"v":1098,"d":"$1,098"},{"v":1098,"d":"$1,098"},{"v":1098,"d":"$1,098"},{"v":1098,"d":"$1,098"},{"v":1191,"d":"$1,191"},{"v":1320,"d":"$1,320"},{"v":1461,"d":"$1,461"},{"v":1617,"d":"$1,617"},{"v":1776,"d":"$1,776"},{"v":1323,"d":"$1,323"},{"v":1524,"d":"$1,524"},{"v":1713,"d":"$1,713"},{"v":1800,"d":"$1,800"},{"v":1902,"d":"$1,902"},{"v":1494,"d":"$1,494"},{"v":1686,"d":"$1,686"},{"v":1815,"d":"$1,815"},{"v":1206,"d":"$1,206"},{"v":1317,"d":"$1,317"},{"v":1707,"d":"$1,707"},{"v":1941,"d":"$1,941"},{"v":2106,"d":"$2,106"},{"v":2127,"d":"$2,127"},{"v":2148,"d":"$2,148"}]
[" FORT KNOX","KY",{"v":816,"d":"$816"},{"v":816,"d":"$816"},{"v":816,"d":"$816"},{"v":816,"d":"$816"},{"v":930,"d":"$930"},{"v":1269,"d":"$1,269"},{"v":1305,"d":"$1,305"},{"v":1344,"d":"$1,344"},{"v":1419,"d":"$1,419"},{"v":1272,"d":"$1,272"},{"v":1323,"d":"$1,323"},{"v":1371,"d":"$1,371"},{"v":1437,"d":"$1,437"},{"v":1515,"d":"$1,515"},{"v":1314,"d":"$1,314"},{"v":1362,"d":"$1,362"},{"v":1449,"d":"$1,449"},{"v":966,"d":"$966"},{"v":1263,"d":"$1,263"},{"v":1368,"d":"$1,368"},{"v":1545,"d":"$1,545"},{"v":1674,"d":"$1,674"},{"v":1689,"d":"$1,689"},{"v":1707,"d":"$1,707"}]
[" OWENSBORO","KY",{"v":786,"d":"$786"},{"v":786,"d":"$786"},{"v":786,"d":"$786"},{"v":786,"d":"$786"},{"v":840,"d":"$840"},{"v":975,"d":"$975"},{"v":1047,"d":"$1,047"},{"v":1125,"d":"$1,125"},{"v":1230,"d":"$1,230"},{"v":978,"d":"$978"},{"v":1080,"d":"$1,080"},{"v":1176,"d":"$1,176"},{"v":1248,"d":"$1,248"},{"v":1335,"d":"$1,335"},{"v":1062,"d":"$1,062"},{"v":1161,"d":"$1,161"},{"v":1263,"d":"$1,263"},{"v":855,"d":"$855"},{"v":972,"d":"$972"},{"v":1173,"d":"$1,173"},{"v":1368,"d":"$1,368"},{"v":1506,"d":"$1,506"},{"v":1521,"d":"$1,521"},{"v":1536,"d":"$1,536"}]
[" FRANKFORT","KY",{"v":792,"d":"$792"},{"v":792,"d":"$792"},{"v":792,"d":"$792"},{"v":792,"d":"$792"},{"v":852,"d":"$852"},{"v":930,"d":"$930"},{"v":1029,"d":"$1,029"},{"v":1140,"d":"$1,140"},{"v":1254,"d":"$1,254"},{"v":933,"d":"$933"},{"v":1074,"d":"$1,074"},{"v":1209,"d":"$1,209"},{"v":1272,"d":"$1,272"},{"v":1347,"d":"$1,347"},{"v":1053,"d":"$1,053"},{"v":1188,"d":"$1,188"},{"v":1284,"d":"$1,284"},{"v":861,"d":"$861"},{"v":927,"d":"$927"},{"v":1203,"d":"$1,203"},{"v":1374,"d":"$1,374"},{"v":1494,"d":"$1,494"},{"v":1509,"d":"$1,509"},{"v":1524,"d":"$1,524"}]
[" BOWLING GREEN","KY",{"v":837,"d":"$837"},{"v":837,"d":"$837"},{"v":837,"d":"$837"},{"v":837,"d":"$837"},{"v":885,"d":"$885"},{"v":987,"d":"$987"},{"v":1071,"d":"$1,071"},{"v":1164,"d":"$1,164"},{"v":1311,"d":"$1,311"},{"v":990,"d":"$990"},{"v":1110,"d":"$1,110"},{"v":1221,"d":"$1,221"},{"v":1347,"d":"$1,347"},{"v":1494,"d":"$1,494"},{"v":1089,"d":"$1,089"},{"v":1206,"d":"$1,206"},{"v":1368,"d":"$1,368"},{"v":894,"d":"$894"},{"v":984,"d":"$984"},{"v":1215,"d":"$1,215"},{"v":1551,"d":"$1,551"},{"v":1788,"d":"$1,788"},{"v":1806,"d":"$1,806"},{"v":1824,"d":"$1,824"}]
[" PADUCAH","KY",{"v":756,"d":"$756"},{"v":756,"d":"$756"},{"v":756,"d":"$756"},{"v":756,"d":"$756"},{"v":822,"d":"$822"},{"v":1071,"d":"$1,071"},{"v":1131,"d":"$1,131"},{"v":1197,"d":"$1,197"},{"v":1281,"d":"$1,281"},{"v":1074,"d":"$1,074"},{"v":1158,"d":"$1,158"},{"v":1239,"d":"$1,239"},{"v":1293,"d":"$1,293"},{"v":1359,"d":"$1,359"},{"v":1146,"d":"$1,146"},{"v":1227,"d":"$1,227"},{"v":1305,"d":"$1,305"},{"v":849,"d":"$849"},{"v":1068,"d":"$1,068"},{"v":1236,"d":"$1,236"},{"v":1383,"d":"$1,383"},{"v":1488,"d":"$1,488"},{"v":1503,"d":"$1,503"},{"v":1518,"d":"$1,518"}]
[" ALEXANDRIA","LA",{"v":975,"d":"$975"},{"v":975,"d":"$975"},{"v":975,"d":"$975"},{"v":975,"d":"$975"},{"v":1155,"d":"$1,155"},{"v":1287,"d":"$1,287"},{"v":1299,"d":"$1,299"},{"v":1314,"d":"$1,314"},{"v":1401,"d":"$1,401"},{"v":1287,"d":"$1,287"},{"v":1305,"d":"$1,305"},{"v":1320,"d":"$1,320"},{"v":1431,"d":"$1,431"},{"v":1560,"d":"$1,560"},{"v":1302,"d":"$1,302"},{"v":1320,"d":"$1,320"},{"v":1452,"d":"$1,452"},{"v":1170,"d":"$1,170"},{"v":1284,"d":"$1,284"},{"v":1320,"d":"$1,320"},{"v":1611,"d":"$1,611"},{"v":1821,"d":"$1,821"},{"v":1839,"d":"$1,839"},{"v":1857,"d":"$1,857"}]
[" BATON ROUGE","LA",{"v":1203,"d":"$1,203"},{"v":1203,"d":"$1,203"},{"v":1203,"d":"$1,203"},{"v":1203,"d":"$1,203"},{"v":1278,"d":"$1,278"},{"v":1383,"d":"$1,383"},{"v":1464,"d":"$1,464"},{"v":1551,"d":"$1,551"},{"v":1704,"d":"$1,704"},{"v":1386,"d":"$1,386"},{"v":1500,"d":"$1,500"},{"v":1605,"d":"$1,605"},{"v":1740,"d":"$1,740"},{"v":1899,"d":"$1,899"},{"v":1482,"d":"$1,482"},{"v":1590,"d":"$1,590"},{"v":1764,"d":"$1,764"},{"v":1290,"d":"$1,290"},{"v":1383,"d":"$1,383"},{"v":1602,"d":"$1,602"},{"v":1959,"d":"$1,959"},{"v":2214,"d":"$2,214"},{"v":2238,"d":"$2,238"},{"v":2259,"d":"$2,259"}]
[" FORT POLK","LA",{"v":852,"d":"$852"},{"v":852,"d":"$852"},{"v":852,"d":"$852"},{"v":852,"d":"$852"},{"v":879,"d":"$879"},{"v":1056,"d":"$1,056"},{"v":1128,"d":"$1,128"},{"v":1203,"d":"$1,203"},{"v":1299,"d":"$1,299"},{"v":1056,"d":"$1,056"},{"v":1158,"d":"$1,158"},{"v":1254,"d":"$1,254"},{"v":1314,"d":"$1,314"},{"v":1386,"d":"$1,386"},{"v":1143,"d":"$1,143"},{"v":1239,"d":"$1,239"},{"v":1326,"d":"$1,326"},{"v":897,"d":"$897"},{"v":1050,"d":"$1,050"},{"v":1251,"d":"$1,251"},{"v":1416,"d":"$1,416"},{"v":1533,"d":"$1,533"},{"v":1548,"d":"$1,548"},{"v":1563,"d":"$1,563"}]
[" NEW ORLEANS","LA",{"v":1191,"d":"$1,191"},{"v":1191,"d":"$1,191"},{"v":1191,"d":"$1,191"},{"v":1191,"d":"$1,191"},{"v":1251,"d":"$1,251"},{"v":1605,"d":"$1,605"},{"v":1626,"d":"$1,626"},{"v":1647,"d":"$1,647"},{"v":1737,"d":"$1,737"},{"v":1608,"d":"$1,608"},{"v":1635,"d":"$1,635"},{"v":1659,"d":"$1,659"},{"v":1767,"d":"$1,767"},{"v":1896,"d":"$1,896"},{"v":1629,"d":"$1,629"},{"v":1656,"d":"$1,656"},{"v":1788,"d":"$1,788"},{"v":1290,"d":"$1,290"},{"v":1599,"d":"$1,599"},{"v":1659,"d":"$1,659"},{"v":1944,"d":"$1,944"},{"v":2151,"d":"$2,151"},{"v":2172,"d":"$2,172"},{"v":2193,"d":"$2,193"}]
[" SHREVEPORT/BARKSDALE AFB","LA",{"v":1005,"d":"$1,005"},{"v":1005,"d":"$1,005"},{"v":1005,"d":"$1,005"},{"v":1005,"d":"$1,005"},{"v":1083,"d":"$1,083"},{"v":1419,"d":"$1,419"},{"v":1467,"d":"$1,467"},{"v":1518,"d":"$1,518"},{"v":1641,"d":"$1,641"},{"v":1419,"d":"$1,419"},{"v":1488,"d":"$1,488"},{"v":1551,"d":"$1,551"},{"v":1674,"d":"$1,674"},{"v":1815,"d":"$1,815"},{"v":1476,"d":"$1,476"},{"v":1542,"d":"$1,542"},{"v":1695,"d":"$1,695"},{"v":1122,"d":"$1,122"},{"v":1410,"d":"$1,410"},{"v":1548,"d":"$1,548"},{"v":1872,"d":"$1,872"},{"v":2103,"d":"$2,103"},{"v":2124,"d":"$2,124"},{"v":2145,"d":"$2,145"}]
[" LAFAYETTE COUNTY","LA",{"v":1056,"d":"$1,056"},{"v":1056,"d":"$1,056"},{"v":1056,"d":"$1,056"},{"v":1056,"d":"$1,056"},{"v":1173,"d":"$1,173"},{"v":1404,"d":"$1,404"},{"v":1437,"d":"$1,437"},{"v":1470,"d":"$1,470"},{"v":1554,"d":"$1,554"},{"v":1407,"d":"$1,407"},{"v":1449,"d":"$1,449"},{"v":1491,"d":"$1,491"},{"v":1578,"d":"$1,578"},{"v":1680,"d":"$1,680"},{"v":1443,"d":"$1,443"},{"v":1485,"d":"$1,485"},{"v":1593,"d":"$1,593"},{"v":1200,"d":"$1,200"},{"v":1401,"d":"$1,401"},{"v":1488,"d":"$1,488"},{"v":1719,"d":"$1,719"},{"v":1887,"d":"$1,887"},{"v":1905,"d":"$1,905"},{"v":1923,"d":"$1,923"}]
[" ST MARY AND TERREBONNE","LA",{"v":1116,"d":"$1,116"},{"v":1116,"d":"$1,116"},{"v":1116,"d":"$1,116"},{"v":1116,"d":"$1,116"},{"v":1248,"d":"$1,248"},{"v":1485,"d":"$1,485"},{"v":1563,"d":"$1,563"},{"v":1650,"d":"$1,650"},{"v":1725,"d":"$1,725"},{"v":1485,"d":"$1,485"},{"v":1599,"d":"$1,599"},{"v":1707,"d":"$1,707"},{"v":1734,"d":"$1,734"},{"v":1767,"d":"$1,767"},{"v":1581,"d":"$1,581"},{"v":1689,"d":"$1,689"},{"v":1740,"d":"$1,740"},{"v":1275,"d":"$1,275"},{"v":1479,"d":"$1,479"},{"v":1701,"d":"$1,701"},{"v":1779,"d":"$1,779"},{"v":1833,"d":"$1,833"},{"v":1851,"d":"$1,851"},{"v":1869,"d":"$1,869"}]
[" LAKE CHARLES","LA",{"v":1077,"d":"$1,077"},{"v":1077,"d":"$1,077"},{"v":1077,"d":"$1,077"},{"v":1077,"d":"$1,077"},{"v":1140,"d":"$1,140"},{"v":1266,"d":"$1,266"},{"v":1341,"d":"$1,341"},{"v":1425,"d":"$1,425"},{"v":1494,"d":"$1,494"},{"v":1269,"d":"$1,269"},{"v":1377,"d":"$1,377"},{"v":1479,"d":"$1,479"},{"v":1500,"d":"$1,500"},{"v":1524,"d":"$1,524"},{"v":1359,"d":"$1,359"},{"v":1464,"d":"$1,464"},{"v":1503,"d":"$1,503"},{"v":1155,"d":"$1,155"},{"v":1263,"d":"$1,263"},{"v":1473,"d":"$1,473"},{"v":1533,"d":"$1,533"},{"v":1575,"d":"$1,575"},{"v":1590,"d":"$1,590"},{"v":1608,"d":"$1,608"}]
[" MONROE","LA",{"v":855,"d":"$855"},{"v":855,"d":"$855"},{"v":855,"d":"$855"},{"v":855,"d":"$855"},{"v":918,"d":"$918"},{"v":1206,"d":"$1,206"},{"v":1215,"d":"$1,215"},{"v":1224,"d":"$1,224"},{"v":1275,"d":"$1,275"},{"v":1206,"d":"$1,206"},{"v":1218,"d":"$1,218"},{"v":1230,"d":"$1,230"},{"v":1293,"d":"$1,293"},{"v":1368,"d":"$1,368"},{"v":1218,"d":"$1,218"},{"v":1227,"d":"$1,227"},{"v":1305,"d":"$1,305"},{"v":948,"d":"$948"},{"v":1200,"d":"$1,200"},{"v":1230,"d":"$1,230"},{"v":1395,"d":"$1,395"},{"v":1518,"d":"$1,518"},{"v":1533,"d":"$1,533"},{"v":1548,"d":"$1,548"}]
[" NANTUCKET","MA",{"v":2346,"d":"$2,346"},{"v":2346,"d":"$2,346"},{"v":2346,"d":"$2,346"},{"v":2346,"d":"$2,346"},{"v":2460,"d":"$2,460"},{"v":3012,"d":"$3,012"},{"v":3144,"d":"$3,144"},{"v":3285,"d":"$3,285"},{"v":3465,"d":"$3,465"},{"v":3015,"d":"$3,015"},{"v":3201,"d":"$3,201"},{"v":3378,"d":"$3,378"},{"v":3498,"d":"$3,498"},{"v":3639,"d":"$3,639"},{"v":3174,"d":"$3,174"},{"v":3351,"d":"$3,351"},{"v":3519,"d":"$3,519"},{"v":2520,"d":"$2,520"},{"v":3000,"d":"$3,000"},{"v":3369,"d":"$3,369"},{"v":3693,"d":"$3,693"},{"v":3921,"d":"$3,921"},{"v":3960,"d":"$3,960"},{"v":3999,"d":"$3,999"}]
[" BOSTON","MA",{"v":2097,"d":"$2,097"},{"v":2097,"d":"$2,097"},{"v":2097,"d":"$2,097"},{"v":2097,"d":"$2,097"},{"v":2307,"d":"$2,307"},{"v":2508,"d":"$2,508"},{"v":2550,"d":"$2,550"},{"v":2598,"d":"$2,598"},{"v":2772,"d":"$2,772"},{"v":2508,"d":"$2,508"},{"v":2571,"d":"$2,571"},{"v":2628,"d":"$2,628"},{"v":2826,"d":"$2,826"},{"v":3063,"d":"$3,063"},{"v":2559,"d":"$2,559"},{"v":2619,"d":"$2,619"},{"v":2862,"d":"$2,862"},{"v":2328,"d":"$2,328"},{"v":2502,"d":"$2,502"},{"v":2625,"d":"$2,625"},{"v":3153,"d":"$3,153"},{"v":3534,"d":"$3,534"},{"v":3567,"d":"$3,567"},{"v":3603,"d":"$3,603"}]
[" CAPE COD","MA",{"v":1473,"d":"$1,473"},{"v":1473,"d":"$1,473"},{"v":1473,"d":"$1,473"},{"v":1473,"d":"$1,473"},{"v":1551,"d":"$1,551"},{"v":1896,"d":"$1,896"},{"v":1929,"d":"$1,929"},{"v":1962,"d":"$1,962"},{"v":2049,"d":"$2,049"},{"v":1899,"d":"$1,899"},{"v":1944,"d":"$1,944"},{"v":1986,"d":"$1,986"},{"v":2076,"d":"$2,076"},{"v":2181,"d":"$2,181"},{"v":1935,"d":"$1,935"},{"v":1980,"d":"$1,980"},{"v":2091,"d":"$2,091"},{"v":1590,"d":"$1,590"},{"v":1890,"d":"$1,890"},{"v":1983,"d":"$1,983"},{"v":2223,"d":"$2,223"},{"v":2394,"d":"$2,394"},{"v":2418,"d":"$2,418"},{"v":2442,"d":"$2,442"}]
[" WORCESTER","MA",{"v":1425,"d":"$1,425"},{"v":1425,"d":"$1,425"},{"v":1425,"d":"$1,425"},{"v":1425,"d":"$1,425"},{"v":1554,"d":"$1,554"},{"v":1749,"d":"$1,749"},{"v":1866,"d":"$1,866"},{"v":1995,"d":"$1,995"},{"v":2199,"d":"$2,199"},{"v":1752,"d":"$1,752"},{"v":1920,"d":"$1,920"},{"v":2076,"d":"$2,076"},{"v":2244,"d":"$2,244"},{"v":2439,"d":"$2,439"},{"v":1893,"d":"$1,893"},{"v":2055,"d":"$2,055"},{"v":2274,"d":"$2,274"},{"v":1575,"d":"$1,575"},{"v":1746,"d":"$1,746"},{"v":2070,"d":"$2,070"},{"v":2514,"d":"$2,514"},{"v":2832,"d":"$2,832"},{"v":2859,"d":"$2,859"},{"v":2889,"d":"$2,889"}]
[" FORT DEVENS/AYER","MA",{"v":1443,"d":"$1,443"},{"v":1443,"d":"$1,443"},{"v":1443,"d":"$1,443"},{"v":1443,"d":"$1,443"},{"v":1587,"d":"$1,587"},{"v":1854,"d":"$1,854"},{"v":1953,"d":"$1,953"},{"v":2064,"d":"$2,064"},{"v":2181,"d":"$2,181"},{"v":1857,"d":"$1,857"},{"v":1998,"d":"$1,998"},{"v":2133,"d":"$2,133"},{"v":2199,"d":"$2,199"},{"v":2277,"d":"$2,277"},{"v":1977,"d":"$1,977"},{"v":2112,"d":"$2,112"},{"v":2211,"d":"$2,211"},{"v":1614,"d":"$1,614"},{"v":1848,"d":"$1,848"},{"v":2127,"d":"$2,127"},{"v":2307,"d":"$2,307"},{"v":2433,"d":"$2,433"},{"v":2457,"d":"$2,457"},{"v":2484,"d":"$2,484"}]
[" PLYMOUTH","MA",{"v":1488,"d":"$1,488"},{"v":1488,"d":"$1,488"},{"v":1488,"d":"$1,488"},{"v":1488,"d":"$1,488"},{"v":1641,"d":"$1,641"},{"v":2130,"d":"$2,130"},{"v":2139,"d":"$2,139"},{"v":2145,"d":"$2,145"},{"v":2244,"d":"$2,244"},{"v":2130,"d":"$2,130"},{"v":2142,"d":"$2,142"},{"v":2151,"d":"$2,151"},{"v":2280,"d":"$2,280"},{"v":2433,"d":"$2,433"},{"v":2139,"d":"$2,139"},{"v":2151,"d":"$2,151"},{"v":2304,"d":"$2,304"},{"v":1695,"d":"$1,695"},{"v":2121,"d":"$2,121"},{"v":2151,"d":"$2,151"},{"v":2490,"d":"$2,490"},{"v":2736,"d":"$2,736"},{"v":2763,"d":"$2,763"},{"v":2793,"d":"$2,793"}]
[" ESSEX CO","MA",{"v":1746,"d":"$1,746"},{"v":1746,"d":"$1,746"},{"v":1746,"d":"$1,746"},{"v":1746,"d":"$1,746"},{"v":1920,"d":"$1,920"},{"v":2190,"d":"$2,190"},{"v":2274,"d":"$2,274"},{"v":2367,"d":"$2,367"},{"v":2532,"d":"$2,532"},{"v":2190,"d":"$2,190"},{"v":2313,"d":"$2,313"},{"v":2427,"d":"$2,427"},{"v":2574,"d":"$2,574"},{"v":2742,"d":"$2,742"},{"v":2295,"d":"$2,295"},{"v":2412,"d":"$2,412"},{"v":2598,"d":"$2,598"},{"v":1950,"d":"$1,950"},{"v":2184,"d":"$2,184"},{"v":2424,"d":"$2,424"},{"v":2808,"d":"$2,808"},{"v":3084,"d":"$3,084"},{"v":3117,"d":"$3,117"},{"v":3147,"d":"$3,147"}]
[" HAMPDEN COUNTY","MA",{"v":1347,"d":"$1,347"},{"v":1347,"d":"$1,347"},{"v":1347,"d":"$1,347"},{"v":1347,"d":"$1,347"},{"v":1455,"d":"$1,455"},{"v":1656,"d":"$1,656"},{"v":1773,"d":"$1,773"},{"v":1902,"d":"$1,902"},{"v":2043,"d":"$2,043"},{"v":1659,"d":"$1,659"},{"v":1827,"d":"$1,827"},{"v":1983,"d":"$1,983"},{"v":2067,"d":"$2,067"},{"v":2166,"d":"$2,166"},{"v":1800,"d":"$1,800"},{"v":1962,"d":"$1,962"},{"v":2082,"d":"$2,082"},{"v":1476,"d":"$1,476"},{"v":1653,"d":"$1,653"},{"v":1977,"d":"$1,977"},{"v":2202,"d":"$2,202"},{"v":2361,"d":"$2,361"},{"v":2385,"d":"$2,385"},{"v":2409,"d":"$2,409"}]
[" MARTHA'S VINEYARD","MA",{"v":1974,"d":"$1,974"},{"v":1974,"d":"$1,974"},{"v":1974,"d":"$1,974"},{"v":1974,"d":"$1,974"},{"v":2163,"d":"$2,163"},{"v":2397,"d":"$2,397"},{"v":2442,"d":"$2,442"},{"v":2490,"d":"$2,490"},{"v":2607,"d":"$2,607"},{"v":2397,"d":"$2,397"},{"v":2463,"d":"$2,463"},{"v":2523,"d":"$2,523"},{"v":2637,"d":"$2,637"},{"v":2772,"d":"$2,772"},{"v":2451,"d":"$2,451"},{"v":2514,"d":"$2,514"},{"v":2658,"d":"$2,658"},{"v":2190,"d":"$2,190"},{"v":2391,"d":"$2,391"},{"v":2520,"d":"$2,520"},{"v":2823,"d":"$2,823"},{"v":3039,"d":"$3,039"},{"v":3069,"d":"$3,069"},{"v":3099,"d":"$3,099"}]
[" HANSCOMB FIELD","MA",{"v":1950,"d":"$1,950"},{"v":1950,"d":"$1,950"},{"v":1950,"d":"$1,950"},{"v":1950,"d":"$1,950"},{"v":2196,"d":"$2,196"},{"v":2355,"d":"$2,355"},{"v":2493,"d":"$2,493"},{"v":2646,"d":"$2,646"},{"v":2805,"d":"$2,805"},{"v":2358,"d":"$2,358"},{"v":2556,"d":"$2,556"},{"v":2742,"d":"$2,742"},{"v":2829,"d":"$2,829"},{"v":2931,"d":"$2,931"},{"v":2526,"d":"$2,526"},{"v":2715,"d":"$2,715"},{"v":2844,"d":"$2,844"},{"v":2211,"d":"$2,211"},{"v":2352,"d":"$2,352"},{"v":2733,"d":"$2,733"},{"v":2970,"d":"$2,970"},{"v":3135,"d":"$3,135"},{"v":3165,"d":"$3,165"},{"v":3198,"d":"$3,198"}]
[" ABERDEEN PROVING GROUNDS","MD",{"v":1317,"d":"$1,317"},{"v":1317,"d":"$1,317"},{"v":1317,"d":"$1,317"},{"v":1317,"d":"$1,317"},{"v":1422,"d":"$1,422"},{"v":1731,"d":"$1,731"},{"v":1785,"d":"$1,785"},{"v":1842,"d":"$1,842"},{"v":1947,"d":"$1,947"},{"v":1734,"d":"$1,734"},{"v":1809,"d":"$1,809"},{"v":1878,"d":"$1,878"},{"v":1971,"d":"$1,971"},{"v":2079,"d":"$2,079"},{"v":1797,"d":"$1,797"},{"v":1869,"d":"$1,869"},{"v":1986,"d":"$1,986"},{"v":1458,"d":"$1,458"},{"v":1725,"d":"$1,725"},{"v":1875,"d":"$1,875"},{"v":2121,"d":"$2,121"},{"v":2295,"d":"$2,295"},{"v":2319,"d":"$2,319"},{"v":2343,"d":"$2,343"}]
[" ANNAPOLIS","MD",{"v":1626,"d":"$1,626"},{"v":1626,"d":"$1,626"},{"v":1626,"d":"$1,626"},{"v":1626,"d":"$1,626"},{"v":1803,"d":"$1,803"},{"v":2058,"d":"$2,058"},{"v":2163,"d":"$2,163"},{"v":2277,"d":"$2,277"},{"v":2442,"d":"$2,442"},{"v":2061,"d":"$2,061"},{"v":2211,"d":"$2,211"},{"v":2349,"d":"$2,349"},{"v":2478,"d":"$2,478"},{"v":2631,"d":"$2,631"},{"v":2187,"d":"$2,187"},{"v":2328,"d":"$2,328"},{"v":2502,"d":"$2,502"},{"v":1833,"d":"$1,833"},{"v":2055,"d":"$2,055"},{"v":2343,"d":"$2,343"},{"v":2688,"d":"$2,688"},{"v":2934,"d":"$2,934"},{"v":2964,"d":"$2,964"},{"v":2994,"d":"$2,994"}]
[" BALTIMORE","MD",{"v":1752,"d":"$1,752"},{"v":1752,"d":"$1,752"},{"v":1752,"d":"$1,752"},{"v":1752,"d":"$1,752"},{"v":1950,"d":"$1,950"},{"v":2061,"d":"$2,061"},{"v":2208,"d":"$2,208"},{"v":2364,"d":"$2,364"},{"v":2529,"d":"$2,529"},{"v":2064,"d":"$2,064"},{"v":2271,"d":"$2,271"},{"v":2466,"d":"$2,466"},{"v":2553,"d":"$2,553"},{"v":2655,"d":"$2,655"},{"v":2238,"d":"$2,238"},{"v":2439,"d":"$2,439"},{"v":2568,"d":"$2,568"},{"v":1962,"d":"$1,962"},{"v":2058,"d":"$2,058"},{"v":2460,"d":"$2,460"},{"v":2694,"d":"$2,694"},{"v":2859,"d":"$2,859"},{"v":2889,"d":"$2,889"},{"v":2916,"d":"$2,916"}]
[" FORT DETRICK","MD",{"v":1419,"d":"$1,419"},{"v":1419,"d":"$1,419"},{"v":1419,"d":"$1,419"},{"v":1419,"d":"$1,419"},{"v":1530,"d":"$1,530"},{"v":1791,"d":"$1,791"},{"v":1911,"d":"$1,911"},{"v":2040,"d":"$2,040"},{"v":2211,"d":"$2,211"},{"v":1794,"d":"$1,794"},{"v":1962,"d":"$1,962"},{"v":2121,"d":"$2,121"},{"v":2244,"d":"$2,244"},{"v":2391,"d":"$2,391"},{"v":1935,"d":"$1,935"},{"v":2097,"d":"$2,097"},{"v":2268,"d":"$2,268"},{"v":1560,"d":"$1,560"},{"v":1785,"d":"$1,785"},{"v":2115,"d":"$2,115"},{"v":2448,"d":"$2,448"},{"v":2685,"d":"$2,685"},{"v":2712,"d":"$2,712"},{"v":2739,"d":"$2,739"}]
[" FORT G. G. MEADE","MD",{"v":1596,"d":"$1,596"},{"v":1596,"d":"$1,596"},{"v":1596,"d":"$1,596"},{"v":1596,"d":"$1,596"},{"v":1836,"d":"$1,836"},{"v":2100,"d":"$2,100"},{"v":2193,"d":"$2,193"},{"v":2295,"d":"$2,295"},{"v":2430,"d":"$2,430"},{"v":2103,"d":"$2,103"},{"v":2235,"d":"$2,235"},{"v":2358,"d":"$2,358"},{"v":2454,"d":"$2,454"},{"v":2568,"d":"$2,568"},{"v":2214,"d":"$2,214"},{"v":2340,"d":"$2,340"},{"v":2472,"d":"$2,472"},{"v":1866,"d":"$1,866"},{"v":2094,"d":"$2,094"},{"v":2355,"d":"$2,355"},{"v":2613,"d":"$2,613"},{"v":2796,"d":"$2,796"},{"v":2823,"d":"$2,823"},{"v":2853,"d":"$2,853"}]
[" INDIAN HEAD NAVORDSTA","MD",{"v":1590,"d":"$1,590"},{"v":1590,"d":"$1,590"},{"v":1590,"d":"$1,590"},{"v":1590,"d":"$1,590"},{"v":1704,"d":"$1,704"},{"v":1968,"d":"$1,968"},{"v":2049,"d":"$2,049"},{"v":2139,"d":"$2,139"},{"v":2265,"d":"$2,265"},{"v":1968,"d":"$1,968"},{"v":2088,"d":"$2,088"},{"v":2196,"d":"$2,196"},{"v":2289,"d":"$2,289"},{"v":2397,"d":"$2,397"},{"v":2067,"d":"$2,067"},{"v":2181,"d":"$2,181"},{"v":2304,"d":"$2,304"},{"v":1734,"d":"$1,734"},{"v":1962,"d":"$1,962"},{"v":2193,"d":"$2,193"},{"v":2439,"d":"$2,439"},{"v":2613,"d":"$2,613"},{"v":2640,"d":"$2,640"},{"v":2667,"d":"$2,667"}]
[" PATUXENT RIVER","MD",{"v":1380,"d":"$1,380"},{"v":1380,"d":"$1,380"},{"v":1380,"d":"$1,380"},{"v":1380,"d":"$1,380"},{"v":1515,"d":"$1,515"},{"v":1668,"d":"$1,668"},{"v":1752,"d":"$1,752"},{"v":1842,"d":"$1,842"},{"v":1953,"d":"$1,953"},{"v":1671,"d":"$1,671"},{"v":1788,"d":"$1,788"},{"v":1899,"d":"$1,899"},{"v":1974,"d":"$1,974"},{"v":2061,"d":"$2,061"},{"v":1770,"d":"$1,770"},{"v":1884,"d":"$1,884"},{"v":1986,"d":"$1,986"},{"v":1533,"d":"$1,533"},{"v":1665,"d":"$1,665"},{"v":1896,"d":"$1,896"},{"v":2094,"d":"$2,094"},{"v":2235,"d":"$2,235"},{"v":2259,"d":"$2,259"},{"v":2280,"d":"$2,280"}]
[" CUMBERLAND","MD",{"v":825,"d":"$825"},{"v":825,"d":"$825"},{"v":825,"d":"$825"},{"v":825,"d":"$825"},{"v":903,"d":"$903"},{"v":1062,"d":"$1,062"},{"v":1095,"d":"$1,095"},{"v":1131,"d":"$1,131"},{"v":1206,"d":"$1,206"},{"v":1062,"d":"$1,062"},{"v":1110,"d":"$1,110"},{"v":1155,"d":"$1,155"},{"v":1227,"d":"$1,227"},{"v":1311,"d":"$1,311"},{"v":1101,"d":"$1,101"},{"v":1146,"d":"$1,146"},{"v":1239,"d":"$1,239"},{"v":921,"d":"$921"},{"v":1059,"d":"$1,059"},{"v":1152,"d":"$1,152"},{"v":1344,"d":"$1,344"},{"v":1479,"d":"$1,479"},{"v":1494,"d":"$1,494"},{"v":1509,"d":"$1,509"}]
[" OCEAN CITY","MD",{"v":1293,"d":"$1,293"},{"v":1293,"d":"$1,293"},{"v":1293,"d":"$1,293"},{"v":1293,"d":"$1,293"},{"v":1326,"d":"$1,326"},{"v":1593,"d":"$1,593"},{"v":1614,"d":"$1,614"},{"v":1635,"d":"$1,635"},{"v":1707,"d":"$1,707"},{"v":1593,"d":"$1,593"},{"v":1623,"d":"$1,623"},{"v":1650,"d":"$1,650"},{"v":1731,"d":"$1,731"},{"v":1824,"d":"$1,824"},{"v":1617,"d":"$1,617"},{"v":1644,"d":"$1,644"},{"v":1743,"d":"$1,743"},{"v":1356,"d":"$1,356"},{"v":1587,"d":"$1,587"},{"v":1647,"d":"$1,647"},{"v":1863,"d":"$1,863"},{"v":2016,"d":"$2,016"},{"v":2037,"d":"$2,037"},{"v":2055,"d":"$2,055"}]
[" OXFORD","MD",{"v":1368,"d":"$1,368"},{"v":1368,"d":"$1,368"},{"v":1368,"d":"$1,368"},{"v":1368,"d":"$1,368"},{"v":1482,"d":"$1,482"},{"v":1782,"d":"$1,782"},{"v":1845,"d":"$1,845"},{"v":1917,"d":"$1,917"},{"v":2001,"d":"$2,001"},{"v":1785,"d":"$1,785"},{"v":1875,"d":"$1,875"},{"v":1962,"d":"$1,962"},{"v":2013,"d":"$2,013"},{"v":2076,"d":"$2,076"},{"v":1860,"d":"$1,860"},{"v":1947,"d":"$1,947"},{"v":2025,"d":"$2,025"},{"v":1515,"d":"$1,515"},{"v":1776,"d":"$1,776"},{"v":1956,"d":"$1,956"},{"v":2100,"d":"$2,100"},{"v":2202,"d":"$2,202"},{"v":2226,"d":"$2,226"},{"v":2247,"d":"$2,247"}]
[" BRUNSWICK","ME",{"v":936,"d":"$936"},{"v":936,"d":"$936"},{"v":936,"d":"$936"},{"v":936,"d":"$936"},{"v":1050,"d":"$1,050"},{"v":1287,"d":"$1,287"},{"v":1344,"d":"$1,344"},{"v":1404,"d":"$1,404"},{"v":1503,"d":"$1,503"},{"v":1287,"d":"$1,287"},{"v":1368,"d":"$1,368"},{"v":1443,"d":"$1,443"},{"v":1527,"d":"$1,527"},{"v":1626,"d":"$1,626"},{"v":1356,"d":"$1,356"},{"v":1431,"d":"$1,431"},{"v":1542,"d":"$1,542"},{"v":1077,"d":"$1,077"},{"v":1281,"d":"$1,281"},{"v":1440,"d":"$1,440"},{"v":1665,"d":"$1,665"},{"v":1827,"d":"$1,827"},{"v":1845,"d":"$1,845"},{"v":1863,"d":"$1,863"}]
[" CARIBOU/LIMESTONE","ME",{"v":792,"d":"$792"},{"v":792,"d":"$792"},{"v":792,"d":"$792"},{"v":792,"d":"$792"},{"v":876,"d":"$876"},{"v":990,"d":"$990"},{"v":1029,"d":"$1,029"},{"v":1068,"d":"$1,068"},{"v":1128,"d":"$1,128"},{"v":990,"d":"$990"},{"v":1044,"d":"$1,044"},{"v":1095,"d":"$1,095"},{"v":1140,"d":"$1,140"},{"v":1194,"d":"$1,194"},{"v":1035,"d":"$1,035"},{"v":1089,"d":"$1,089"},{"v":1149,"d":"$1,149"},{"v":888,"d":"$888"},{"v":987,"d":"$987"},{"v":1095,"d":"$1,095"},{"v":1215,"d":"$1,215"},{"v":1299,"d":"$1,299"},{"v":1314,"d":"$1,314"},{"v":1326,"d":"$1,326"}]
[" PORTLAND","ME",{"v":1254,"d":"$1,254"},{"v":1254,"d":"$1,254"},{"v":1254,"d":"$1,254"},{"v":1254,"d":"$1,254"},{"v":1353,"d":"$1,353"},{"v":1491,"d":"$1,491"},{"v":1671,"d":"$1,671"},{"v":1866,"d":"$1,866"},{"v":2043,"d":"$2,043"},{"v":1497,"d":"$1,497"},{"v":1752,"d":"$1,752"},{"v":1989,"d":"$1,989"},{"v":2061,"d":"$2,061"},{"v":2145,"d":"$2,145"},{"v":1710,"d":"$1,710"},{"v":1956,"d":"$1,956"},{"v":2076,"d":"$2,076"},{"v":1368,"d":"$1,368"},{"v":1488,"d":"$1,488"},{"v":1980,"d":"$1,980"},{"v":2178,"d":"$2,178"},{"v":2316,"d":"$2,316"},{"v":2340,"d":"$2,340"},{"v":2361,"d":"$2,361"}]
[" COASTAL MAINE","ME",{"v":1098,"d":"$1,098"},{"v":1098,"d":"$1,098"},{"v":1098,"d":"$1,098"},{"v":1098,"d":"$1,098"},{"v":1227,"d":"$1,227"},{"v":1338,"d":"$1,338"},{"v":1359,"d":"$1,359"},{"v":1383,"d":"$1,383"},{"v":1422,"d":"$1,422"},{"v":1338,"d":"$1,338"},{"v":1368,"d":"$1,368"},{"v":1398,"d":"$1,398"},{"v":1428,"d":"$1,428"},{"v":1464,"d":"$1,464"},{"v":1365,"d":"$1,365"},{"v":1395,"d":"$1,395"},{"v":1434,"d":"$1,434"},{"v":1239,"d":"$1,239"},{"v":1335,"d":"$1,335"},{"v":1398,"d":"$1,398"},{"v":1476,"d":"$1,476"},{"v":1533,"d":"$1,533"},{"v":1548,"d":"$1,548"},{"v":1566,"d":"$1,566"}]
[" BANGOR","ME",{"v":1056,"d":"$1,056"},{"v":1056,"d":"$1,056"},{"v":1056,"d":"$1,056"},{"v":1056,"d":"$1,056"},{"v":1107,"d":"$1,107"},{"v":1293,"d":"$1,293"},{"v":1341,"d":"$1,341"},{"v":1395,"d":"$1,395"},{"v":1476,"d":"$1,476"},{"v":1293,"d":"$1,293"},{"v":1362,"d":"$1,362"},{"v":1428,"d":"$1,428"},{"v":1494,"d":"$1,494"},{"v":1572,"d":"$1,572"},{"v":1353,"d":"$1,353"},{"v":1419,"d":"$1,419"},{"v":1506,"d":"$1,506"},{"v":1128,"d":"$1,128"},{"v":1290,"d":"$1,290"},{"v":1425,"d":"$1,425"},{"v":1602,"d":"$1,602"},{"v":1731,"d":"$1,731"},{"v":1746,"d":"$1,746"},{"v":1764,"d":"$1,764"}]
[" DETROIT","MI",{"v":1164,"d":"$1,164"},{"v":1164,"d":"$1,164"},{"v":1164,"d":"$1,164"},{"v":1164,"d":"$1,164"},{"v":1308,"d":"$1,308"},{"v":1521,"d":"$1,521"},{"v":1656,"d":"$1,656"},{"v":1803,"d":"$1,803"},{"v":1992,"d":"$1,992"},{"v":1524,"d":"$1,524"},{"v":1716,"d":"$1,716"},{"v":1896,"d":"$1,896"},{"v":2025,"d":"$2,025"},{"v":2178,"d":"$2,178"},{"v":1686,"d":"$1,686"},{"v":1872,"d":"$1,872"},{"v":2049,"d":"$2,049"},{"v":1332,"d":"$1,332"},{"v":1515,"d":"$1,515"},{"v":1890,"d":"$1,890"},{"v":2238,"d":"$2,238"},{"v":2484,"d":"$2,484"},{"v":2511,"d":"$2,511"},{"v":2535,"d":"$2,535"}]
[" KI SAWYER AFB","MI",{"v":840,"d":"$840"},{"v":840,"d":"$840"},{"v":840,"d":"$840"},{"v":840,"d":"$840"},{"v":924,"d":"$924"},{"v":1110,"d":"$1,110"},{"v":1188,"d":"$1,188"},{"v":1269,"d":"$1,269"},{"v":1380,"d":"$1,380"},{"v":1113,"d":"$1,113"},{"v":1221,"d":"$1,221"},{"v":1323,"d":"$1,323"},{"v":1401,"d":"$1,401"},{"v":1494,"d":"$1,494"},{"v":1203,"d":"$1,203"},{"v":1308,"d":"$1,308"},{"v":1416,"d":"$1,416"},{"v":945,"d":"$945"},{"v":1107,"d":"$1,107"},{"v":1320,"d":"$1,320"},{"v":1530,"d":"$1,530"},{"v":1683,"d":"$1,683"},{"v":1698,"d":"$1,698"},{"v":1716,"d":"$1,716"}]
[" SAULT STE MARIE","MI",{"v":771,"d":"$771"},{"v":771,"d":"$771"},{"v":771,"d":"$771"},{"v":771,"d":"$771"},{"v":816,"d":"$816"},{"v":1068,"d":"$1,068"},{"v":1092,"d":"$1,092"},{"v":1116,"d":"$1,116"},{"v":1158,"d":"$1,158"},{"v":1071,"d":"$1,071"},{"v":1101,"d":"$1,101"},{"v":1131,"d":"$1,131"},{"v":1167,"d":"$1,167"},{"v":1209,"d":"$1,209"},{"v":1098,"d":"$1,098"},{"v":1128,"d":"$1,128"},{"v":1173,"d":"$1,173"},{"v":843,"d":"$843"},{"v":1065,"d":"$1,065"},{"v":1131,"d":"$1,131"},{"v":1227,"d":"$1,227"},{"v":1293,"d":"$1,293"},{"v":1308,"d":"$1,308"},{"v":1320,"d":"$1,320"}]
[" TRAVERSE CITY","MI",{"v":960,"d":"$960"},{"v":960,"d":"$960"},{"v":960,"d":"$960"},{"v":960,"d":"$960"},{"v":1080,"d":"$1,080"},{"v":1269,"d":"$1,269"},{"v":1305,"d":"$1,305"},{"v":1341,"d":"$1,341"},{"v":1410,"d":"$1,410"},{"v":1272,"d":"$1,272"},{"v":1320,"d":"$1,320"},{"v":1365,"d":"$1,365"},{"v":1428,"d":"$1,428"},{"v":1500,"d":"$1,500"},{"v":1311,"d":"$1,311"},{"v":1356,"d":"$1,356"},{"v":1437,"d":"$1,437"},{"v":1101,"d":"$1,101"},{"v":1266,"d":"$1,266"},{"v":1362,"d":"$1,362"},{"v":1530,"d":"$1,530"},{"v":1650,"d":"$1,650"},{"v":1665,"d":"$1,665"},{"v":1683,"d":"$1,683"}]
[" GRAND HAVEN","MI",{"v":861,"d":"$861"},{"v":861,"d":"$861"},{"v":861,"d":"$861"},{"v":861,"d":"$861"},{"v":978,"d":"$978"},{"v":1152,"d":"$1,152"},{"v":1173,"d":"$1,173"},{"v":1194,"d":"$1,194"},{"v":1242,"d":"$1,242"},{"v":1155,"d":"$1,155"},{"v":1182,"d":"$1,182"},{"v":1209,"d":"$1,209"},{"v":1254,"d":"$1,254"},{"v":1305,"d":"$1,305"},{"v":1179,"d":"$1,179"},{"v":1206,"d":"$1,206"},{"v":1263,"d":"$1,263"},{"v":996,"d":"$996"},{"v":1149,"d":"$1,149"},{"v":1209,"d":"$1,209"},{"v":1326,"d":"$1,326"},{"v":1410,"d":"$1,410"},{"v":1425,"d":"$1,425"},{"v":1440,"d":"$1,440"}]
[" PORT HURON","MI",{"v":927,"d":"$927"},{"v":927,"d":"$927"},{"v":927,"d":"$927"},{"v":927,"d":"$927"},{"v":999,"d":"$999"},{"v":1182,"d":"$1,182"},{"v":1200,"d":"$1,200"},{"v":1218,"d":"$1,218"},{"v":1293,"d":"$1,293"},{"v":1182,"d":"$1,182"},{"v":1206,"d":"$1,206"},{"v":1230,"d":"$1,230"},{"v":1317,"d":"$1,317"},{"v":1416,"d":"$1,416"},{"v":1203,"d":"$1,203"},{"v":1227,"d":"$1,227"},{"v":1332,"d":"$1,332"},{"v":1017,"d":"$1,017"},{"v":1179,"d":"$1,179"},{"v":1230,"d":"$1,230"},{"v":1455,"d":"$1,455"},{"v":1617,"d":"$1,617"},{"v":1632,"d":"$1,632"},{"v":1650,"d":"$1,650"}]
[" BATTLE CREEK/KALAMAZOO","MI",{"v":954,"d":"$954"},{"v":954,"d":"$954"},{"v":954,"d":"$954"},{"v":954,"d":"$954"},{"v":1122,"d":"$1,122"},{"v":1227,"d":"$1,227"},{"v":1341,"d":"$1,341"},{"v":1467,"d":"$1,467"},{"v":1593,"d":"$1,593"},{"v":1230,"d":"$1,230"},{"v":1395,"d":"$1,395"},{"v":1548,"d":"$1,548"},{"v":1611,"d":"$1,611"},{"v":1686,"d":"$1,686"},{"v":1368,"d":"$1,368"},{"v":1527,"d":"$1,527"},{"v":1623,"d":"$1,623"},{"v":1134,"d":"$1,134"},{"v":1224,"d":"$1,224"},{"v":1542,"d":"$1,542"},{"v":1713,"d":"$1,713"},{"v":1833,"d":"$1,833"},{"v":1851,"d":"$1,851"},{"v":1869,"d":"$1,869"}]
[" LANSING","MI",{"v":1077,"d":"$1,077"},{"v":1077,"d":"$1,077"},{"v":1077,"d":"$1,077"},{"v":1077,"d":"$1,077"},{"v":1197,"d":"$1,197"},{"v":1227,"d":"$1,227"},{"v":1299,"d":"$1,299"},{"v":1380,"d":"$1,380"},{"v":1470,"d":"$1,470"},{"v":1230,"d":"$1,230"},{"v":1332,"d":"$1,332"},{"v":1428,"d":"$1,428"},{"v":1485,"d":"$1,485"},{"v":1554,"d":"$1,554"},{"v":1317,"d":"$1,317"},{"v":1416,"d":"$1,416"},{"v":1497,"d":"$1,497"},{"v":1200,"d":"$1,200"},{"v":1227,"d":"$1,227"},{"v":1425,"d":"$1,425"},{"v":1581,"d":"$1,581"},{"v":1689,"d":"$1,689"},{"v":1707,"d":"$1,707"},{"v":1722,"d":"$1,722"}]
[" GRAND RAPIDS","MI",{"v":948,"d":"$948"},{"v":948,"d":"$948"},{"v":948,"d":"$948"},{"v":948,"d":"$948"},{"v":1056,"d":"$1,056"},{"v":1287,"d":"$1,287"},{"v":1290,"d":"$1,290"},{"v":1290,"d":"$1,290"},{"v":1347,"d":"$1,347"},{"v":1287,"d":"$1,287"},{"v":1290,"d":"$1,290"},{"v":1293,"d":"$1,293"},{"v":1368,"d":"$1,368"},{"v":1455,"d":"$1,455"},{"v":1290,"d":"$1,290"},{"v":1293,"d":"$1,293"},{"v":1380,"d":"$1,380"},{"v":1083,"d":"$1,083"},{"v":1281,"d":"$1,281"},{"v":1293,"d":"$1,293"},{"v":1488,"d":"$1,488"},{"v":1629,"d":"$1,629"},{"v":1644,"d":"$1,644"},{"v":1662,"d":"$1,662"}]
[" ANN ARBOR","MI",{"v":1191,"d":"$1,191"},{"v":1191,"d":"$1,191"},{"v":1191,"d":"$1,191"},{"v":1191,"d":"$1,191"},{"v":1359,"d":"$1,359"},{"v":1515,"d":"$1,515"},{"v":1626,"d":"$1,626"},{"v":1743,"d":"$1,743"},{"v":1908,"d":"$1,908"},{"v":1518,"d":"$1,518"},{"v":1674,"d":"$1,674"},{"v":1818,"d":"$1,818"},{"v":1941,"d":"$1,941"},{"v":2088,"d":"$2,088"},{"v":1650,"d":"$1,650"},{"v":1797,"d":"$1,797"},{"v":1965,"d":"$1,965"},{"v":1374,"d":"$1,374"},{"v":1512,"d":"$1,512"},{"v":1812,"d":"$1,812"},{"v":2145,"d":"$2,145"},{"v":2379,"d":"$2,379"},{"v":2403,"d":"$2,403"},{"v":2427,"d":"$2,427"}]
[" SAGINAW","MI",{"v":852,"d":"$852"},{"v":852,"d":"$852"},{"v":852,"d":"$852"},{"v":852,"d":"$852"},{"v":936,"d":"$936"},{"v":1125,"d":"$1,125"},{"v":1182,"d":"$1,182"},{"v":1245,"d":"$1,245"},{"v":1320,"d":"$1,320"},{"v":1128,"d":"$1,128"},{"v":1206,"d":"$1,206"},{"v":1284,"d":"$1,284"},{"v":1335,"d":"$1,335"},{"v":1398,"d":"$1,398"},{"v":1194,"d":"$1,194"},{"v":1272,"d":"$1,272"},{"v":1344,"d":"$1,344"},{"v":957,"d":"$957"},{"v":1122,"d":"$1,122"},{"v":1281,"d":"$1,281"},{"v":1422,"d":"$1,422"},{"v":1521,"d":"$1,521"},{"v":1536,"d":"$1,536"},{"v":1551,"d":"$1,551"}]
[" ALPENA","MI",{"v":729,"d":"$729"},{"v":729,"d":"$729"},{"v":729,"d":"$729"},{"v":729,"d":"$729"},{"v":831,"d":"$831"},{"v":939,"d":"$939"},{"v":978,"d":"$978"},{"v":1020,"d":"$1,020"},{"v":1092,"d":"$1,092"},{"v":939,"d":"$939"},{"v":996,"d":"$996"},{"v":1050,"d":"$1,050"},{"v":1110,"d":"$1,110"},{"v":1182,"d":"$1,182"},{"v":987,"d":"$987"},{"v":1041,"d":"$1,041"},{"v":1119,"d":"$1,119"},{"v":843,"d":"$843"},{"v":936,"d":"$936"},{"v":1047,"d":"$1,047"},{"v":1209,"d":"$1,209"},{"v":1323,"d":"$1,323"},{"v":1335,"d":"$1,335"},{"v":1350,"d":"$1,350"}]
[" CHARLEVOIX","MI",{"v":870,"d":"$870"},{"v":870,"d":"$870"},{"v":870,"d":"$870"},{"v":870,"d":"$870"},{"v":981,"d":"$981"},{"v":1164,"d":"$1,164"},{"v":1215,"d":"$1,215"},{"v":1269,"d":"$1,269"},{"v":1383,"d":"$1,383"},{"v":1164,"d":"$1,164"},{"v":1236,"d":"$1,236"},{"v":1305,"d":"$1,305"},{"v":1413,"d":"$1,413"},{"v":1542,"d":"$1,542"},{"v":1227,"d":"$1,227"},{"v":1296,"d":"$1,296"},{"v":1434,"d":"$1,434"},{"v":999,"d":"$999"},{"v":1161,"d":"$1,161"},{"v":1302,"d":"$1,302"},{"v":1593,"d":"$1,593"},{"v":1800,"d":"$1,800"},{"v":1818,"d":"$1,818"},{"v":1836,"d":"$1,836"}]
[" DULUTH","MN",{"v":1044,"d":"$1,044"},{"v":1044,"d":"$1,044"},{"v":1044,"d":"$1,044"},{"v":1044,"d":"$1,044"},{"v":1185,"d":"$1,185"},{"v":1374,"d":"$1,374"},{"v":1395,"d":"$1,395"},{"v":1416,"d":"$1,416"},{"v":1494,"d":"$1,494"},{"v":1374,"d":"$1,374"},{"v":1404,"d":"$1,404"},{"v":1431,"d":"$1,431"},{"v":1518,"d":"$1,518"},{"v":1623,"d":"$1,623"},{"v":1398,"d":"$1,398"},{"v":1428,"d":"$1,428"},{"v":1533,"d":"$1,533"},{"v":1206,"d":"$1,206"},{"v":1371,"d":"$1,371"},{"v":1431,"d":"$1,431"},{"v":1662,"d":"$1,662"},{"v":1827,"d":"$1,827"},{"v":1845,"d":"$1,845"},{"v":1866,"d":"$1,866"}]
[" MINNEAPOLIS/ST PAUL","MN",{"v":1257,"d":"$1,257"},{"v":1257,"d":"$1,257"},{"v":1257,"d":"$1,257"},{"v":1257,"d":"$1,257"},{"v":1428,"d":"$1,428"},{"v":1650,"d":"$1,650"},{"v":1692,"d":"$1,692"},{"v":1740,"d":"$1,740"},{"v":1818,"d":"$1,818"},{"v":1653,"d":"$1,653"},{"v":1713,"d":"$1,713"},{"v":1770,"d":"$1,770"},{"v":1836,"d":"$1,836"},{"v":1917,"d":"$1,917"},{"v":1704,"d":"$1,704"},{"v":1761,"d":"$1,761"},{"v":1851,"d":"$1,851"},{"v":1452,"d":"$1,452"},{"v":1647,"d":"$1,647"},{"v":1767,"d":"$1,767"},{"v":1950,"d":"$1,950"},{"v":2079,"d":"$2,079"},{"v":2100,"d":"$2,100"},{"v":2121,"d":"$2,121"}]
[" SAINT CLOUD","MN",{"v":876,"d":"$876"},{"v":876,"d":"$876"},{"v":876,"d":"$876"},{"v":876,"d":"$876"},{"v":1008,"d":"$1,008"},{"v":1182,"d":"$1,182"},{"v":1257,"d":"$1,257"},{"v":1338,"d":"$1,338"},{"v":1428,"d":"$1,428"},{"v":1185,"d":"$1,185"},{"v":1290,"d":"$1,290"},{"v":1392,"d":"$1,392"},{"v":1440,"d":"$1,440"},{"v":1500,"d":"$1,500"},{"v":1275,"d":"$1,275"},{"v":1377,"d":"$1,377"},{"v":1449,"d":"$1,449"},{"v":1026,"d":"$1,026"},{"v":1179,"d":"$1,179"},{"v":1386,"d":"$1,386"},{"v":1524,"d":"$1,524"},{"v":1617,"d":"$1,617"},{"v":1635,"d":"$1,635"},{"v":1650,"d":"$1,650"}]
[" ROCHESTER","MN",{"v":903,"d":"$903"},{"v":903,"d":"$903"},{"v":903,"d":"$903"},{"v":903,"d":"$903"},{"v":1029,"d":"$1,029"},{"v":1182,"d":"$1,182"},{"v":1245,"d":"$1,245"},{"v":1311,"d":"$1,311"},{"v":1413,"d":"$1,413"},{"v":1185,"d":"$1,185"},{"v":1272,"d":"$1,272"},{"v":1356,"d":"$1,356"},{"v":1437,"d":"$1,437"},{"v":1530,"d":"$1,530"},{"v":1260,"d":"$1,260"},{"v":1344,"d":"$1,344"},{"v":1449,"d":"$1,449"},{"v":1047,"d":"$1,047"},{"v":1179,"d":"$1,179"},{"v":1353,"d":"$1,353"},{"v":1569,"d":"$1,569"},{"v":1722,"d":"$1,722"},{"v":1740,"d":"$1,740"},{"v":1755,"d":"$1,755"}]
[" KANSAS CITY","MO",{"v":1002,"d":"$1,002"},{"v":1002,"d":"$1,002"},{"v":1002,"d":"$1,002"},{"v":1002,"d":"$1,002"},{"v":1095,"d":"$1,095"},{"v":1221,"d":"$1,221"},{"v":1257,"d":"$1,257"},{"v":1299,"d":"$1,299"},{"v":1398,"d":"$1,398"},{"v":1221,"d":"$1,221"},{"v":1275,"d":"$1,275"},{"v":1326,"d":"$1,326"},{"v":1428,"d":"$1,428"},{"v":1545,"d":"$1,545"},{"v":1266,"d":"$1,266"},{"v":1320,"d":"$1,320"},{"v":1446,"d":"$1,446"},{"v":1107,"d":"$1,107"},{"v":1218,"d":"$1,218"},{"v":1323,"d":"$1,323"},{"v":1593,"d":"$1,593"},{"v":1785,"d":"$1,785"},{"v":1803,"d":"$1,803"},{"v":1821,"d":"$1,821"}]
[" ST. LOUIS","MO",{"v":1143,"d":"$1,143"},{"v":1143,"d":"$1,143"},{"v":1143,"d":"$1,143"},{"v":1143,"d":"$1,143"},{"v":1233,"d":"$1,233"},{"v":1515,"d":"$1,515"},{"v":1524,"d":"$1,524"},{"v":1536,"d":"$1,536"},{"v":1602,"d":"$1,602"},{"v":1515,"d":"$1,515"},{"v":1530,"d":"$1,530"},{"v":1545,"d":"$1,545"},{"v":1626,"d":"$1,626"},{"v":1719,"d":"$1,719"},{"v":1527,"d":"$1,527"},{"v":1542,"d":"$1,542"},{"v":1638,"d":"$1,638"},{"v":1263,"d":"$1,263"},{"v":1509,"d":"$1,509"},{"v":1542,"d":"$1,542"},{"v":1758,"d":"$1,758"},{"v":1911,"d":"$1,911"},{"v":1929,"d":"$1,929"},{"v":1950,"d":"$1,950"}]
[" WHITEMAN AFB","MO",{"v":786,"d":"$786"},{"v":786,"d":"$786"},{"v":786,"d":"$786"},{"v":786,"d":"$786"},{"v":915,"d":"$915"},{"v":1143,"d":"$1,143"},{"v":1224,"d":"$1,224"},{"v":1311,"d":"$1,311"},{"v":1401,"d":"$1,401"},{"v":1146,"d":"$1,146"},{"v":1260,"d":"$1,260"},{"v":1368,"d":"$1,368"},{"v":1413,"d":"$1,413"},{"v":1464,"d":"$1,464"},{"v":1242,"d":"$1,242"},{"v":1350,"d":"$1,350"},{"v":1419,"d":"$1,419"},{"v":939,"d":"$939"},{"v":1137,"d":"$1,137"},{"v":1362,"d":"$1,362"},{"v":1485,"d":"$1,485"},{"v":1572,"d":"$1,572"},{"v":1587,"d":"$1,587"},{"v":1602,"d":"$1,602"}]
[" FORT LEONARD WOOD","MO",{"v":918,"d":"$918"},{"v":918,"d":"$918"},{"v":918,"d":"$918"},{"v":918,"d":"$918"},{"v":1011,"d":"$1,011"},{"v":1113,"d":"$1,113"},{"v":1122,"d":"$1,122"},{"v":1131,"d":"$1,131"},{"v":1176,"d":"$1,176"},{"v":1113,"d":"$1,113"},{"v":1125,"d":"$1,125"},{"v":1137,"d":"$1,137"},{"v":1194,"d":"$1,194"},{"v":1260,"d":"$1,260"},{"v":1125,"d":"$1,125"},{"v":1134,"d":"$1,134"},{"v":1203,"d":"$1,203"},{"v":1020,"d":"$1,020"},{"v":1113,"d":"$1,113"},{"v":1137,"d":"$1,137"},{"v":1284,"d":"$1,284"},{"v":1392,"d":"$1,392"},{"v":1407,"d":"$1,407"},{"v":1422,"d":"$1,422"}]
[" SPRINGFIELD","MO",{"v":939,"d":"$939"},{"v":939,"d":"$939"},{"v":939,"d":"$939"},{"v":939,"d":"$939"},{"v":1005,"d":"$1,005"},{"v":1035,"d":"$1,035"},{"v":1074,"d":"$1,074"},{"v":1119,"d":"$1,119"},{"v":1206,"d":"$1,206"},{"v":1038,"d":"$1,038"},{"v":1092,"d":"$1,092"},{"v":1146,"d":"$1,146"},{"v":1227,"d":"$1,227"},{"v":1326,"d":"$1,326"},{"v":1083,"d":"$1,083"},{"v":1137,"d":"$1,137"},{"v":1242,"d":"$1,242"},{"v":1008,"d":"$1,008"},{"v":1035,"d":"$1,035"},{"v":1143,"d":"$1,143"},{"v":1365,"d":"$1,365"},{"v":1524,"d":"$1,524"},{"v":1539,"d":"$1,539"},{"v":1554,"d":"$1,554"}]
[" COLUMBIA/JEFFERSON CITY","MO",{"v":825,"d":"$825"},{"v":825,"d":"$825"},{"v":825,"d":"$825"},{"v":825,"d":"$825"},{"v":882,"d":"$882"},{"v":1062,"d":"$1,062"},{"v":1089,"d":"$1,089"},{"v":1116,"d":"$1,116"},{"v":1179,"d":"$1,179"},{"v":1062,"d":"$1,062"},{"v":1098,"d":"$1,098"},{"v":1134,"d":"$1,134"},{"v":1194,"d":"$1,194"},{"v":1266,"d":"$1,266"},{"v":1092,"d":"$1,092"},{"v":1128,"d":"$1,128"},{"v":1206,"d":"$1,206"},{"v":903,"d":"$903"},{"v":1059,"d":"$1,059"},{"v":1131,"d":"$1,131"},{"v":1296,"d":"$1,296"},{"v":1413,"d":"$1,413"},{"v":1425,"d":"$1,425"},{"v":1440,"d":"$1,440"}]
[" CAPE GIRARDEAU","MO",{"v":861,"d":"$861"},{"v":861,"d":"$861"},{"v":861,"d":"$861"},{"v":861,"d":"$861"},{"v":1017,"d":"$1,017"},{"v":1212,"d":"$1,212"},{"v":1245,"d":"$1,245"},{"v":1281,"d":"$1,281"},{"v":1353,"d":"$1,353"},{"v":1212,"d":"$1,212"},{"v":1260,"d":"$1,260"},{"v":1305,"d":"$1,305"},{"v":1371,"d":"$1,371"},{"v":1446,"d":"$1,446"},{"v":1251,"d":"$1,251"},{"v":1299,"d":"$1,299"},{"v":1380,"d":"$1,380"},{"v":1038,"d":"$1,038"},{"v":1209,"d":"$1,209"},{"v":1302,"d":"$1,302"},{"v":1476,"d":"$1,476"},{"v":1602,"d":"$1,602"},{"v":1617,"d":"$1,617"},{"v":1635,"d":"$1,635"}]
[" SAINT JOSEPH","MO",{"v":795,"d":"$795"},{"v":795,"d":"$795"},{"v":795,"d":"$795"},{"v":795,"d":"$795"},{"v":903,"d":"$903"},{"v":1134,"d":"$1,134"},{"v":1170,"d":"$1,170"},{"v":1209,"d":"$1,209"},{"v":1260,"d":"$1,260"},{"v":1134,"d":"$1,134"},{"v":1185,"d":"$1,185"},{"v":1233,"d":"$1,233"},{"v":1269,"d":"$1,269"},{"v":1314,"d":"$1,314"},{"v":1176,"d":"$1,176"},{"v":1227,"d":"$1,227"},{"v":1278,"d":"$1,278"},{"v":927,"d":"$927"},{"v":1128,"d":"$1,128"},{"v":1230,"d":"$1,230"},{"v":1332,"d":"$1,332"},{"v":1401,"d":"$1,401"},{"v":1416,"d":"$1,416"},{"v":1431,"d":"$1,431"}]
[" GULFPORT","MS",{"v":1155,"d":"$1,155"},{"v":1155,"d":"$1,155"},{"v":1155,"d":"$1,155"},{"v":1155,"d":"$1,155"},{"v":1254,"d":"$1,254"},{"v":1419,"d":"$1,419"},{"v":1428,"d":"$1,428"},{"v":1437,"d":"$1,437"},{"v":1524,"d":"$1,524"},{"v":1419,"d":"$1,419"},{"v":1431,"d":"$1,431"},{"v":1443,"d":"$1,443"},{"v":1557,"d":"$1,557"},{"v":1689,"d":"$1,689"},{"v":1431,"d":"$1,431"},{"v":1443,"d":"$1,443"},{"v":1575,"d":"$1,575"},{"v":1272,"d":"$1,272"},{"v":1416,"d":"$1,416"},{"v":1443,"d":"$1,443"},{"v":1740,"d":"$1,740"},{"v":1953,"d":"$1,953"},{"v":1971,"d":"$1,971"},{"v":1992,"d":"$1,992"}]
[" COLUMBUS AFB","MS",{"v":891,"d":"$891"},{"v":891,"d":"$891"},{"v":891,"d":"$891"},{"v":891,"d":"$891"},{"v":900,"d":"$900"},{"v":1155,"d":"$1,155"},{"v":1230,"d":"$1,230"},{"v":1311,"d":"$1,311"},{"v":1422,"d":"$1,422"},{"v":1155,"d":"$1,155"},{"v":1263,"d":"$1,263"},{"v":1365,"d":"$1,365"},{"v":1443,"d":"$1,443"},{"v":1533,"d":"$1,533"},{"v":1248,"d":"$1,248"},{"v":1350,"d":"$1,350"},{"v":1455,"d":"$1,455"},{"v":927,"d":"$927"},{"v":1149,"d":"$1,149"},{"v":1362,"d":"$1,362"},{"v":1566,"d":"$1,566"},{"v":1713,"d":"$1,713"},{"v":1731,"d":"$1,731"},{"v":1749,"d":"$1,749"}]
[" JACKSON","MS",{"v":1113,"d":"$1,113"},{"v":1113,"d":"$1,113"},{"v":1113,"d":"$1,113"},{"v":1113,"d":"$1,113"},{"v":1173,"d":"$1,173"},{"v":1245,"d":"$1,245"},{"v":1344,"d":"$1,344"},{"v":1452,"d":"$1,452"},{"v":1578,"d":"$1,578"},{"v":1248,"d":"$1,248"},{"v":1389,"d":"$1,389"},{"v":1521,"d":"$1,521"},{"v":1602,"d":"$1,602"},{"v":1695,"d":"$1,695"},{"v":1365,"d":"$1,365"},{"v":1503,"d":"$1,503"},{"v":1614,"d":"$1,614"},{"v":1182,"d":"$1,182"},{"v":1245,"d":"$1,245"},{"v":1515,"d":"$1,515"},{"v":1731,"d":"$1,731"},{"v":1884,"d":"$1,884"},{"v":1902,"d":"$1,902"},{"v":1920,"d":"$1,920"}]
[" MERIDIAN","MS",{"v":969,"d":"$969"},{"v":969,"d":"$969"},{"v":969,"d":"$969"},{"v":969,"d":"$969"},{"v":1059,"d":"$1,059"},{"v":1326,"d":"$1,326"},{"v":1335,"d":"$1,335"},{"v":1344,"d":"$1,344"},{"v":1428,"d":"$1,428"},{"v":1326,"d":"$1,326"},{"v":1338,"d":"$1,338"},{"v":1353,"d":"$1,353"},{"v":1455,"d":"$1,455"},{"v":1581,"d":"$1,581"},{"v":1338,"d":"$1,338"},{"v":1350,"d":"$1,350"},{"v":1476,"d":"$1,476"},{"v":1089,"d":"$1,089"},{"v":1320,"d":"$1,320"},{"v":1350,"d":"$1,350"},{"v":1626,"d":"$1,626"},{"v":1827,"d":"$1,827"},{"v":1845,"d":"$1,845"},{"v":1863,"d":"$1,863"}]
[" HATTIESBURG","MS",{"v":1032,"d":"$1,032"},{"v":1032,"d":"$1,032"},{"v":1032,"d":"$1,032"},{"v":1032,"d":"$1,032"},{"v":1125,"d":"$1,125"},{"v":1203,"d":"$1,203"},{"v":1221,"d":"$1,221"},{"v":1239,"d":"$1,239"},{"v":1305,"d":"$1,305"},{"v":1203,"d":"$1,203"},{"v":1227,"d":"$1,227"},{"v":1251,"d":"$1,251"},{"v":1326,"d":"$1,326"},{"v":1416,"d":"$1,416"},{"v":1224,"d":"$1,224"},{"v":1248,"d":"$1,248"},{"v":1341,"d":"$1,341"},{"v":1134,"d":"$1,134"},{"v":1200,"d":"$1,200"},{"v":1248,"d":"$1,248"},{"v":1452,"d":"$1,452"},{"v":1596,"d":"$1,596"},{"v":1611,"d":"$1,611"},{"v":1629,"d":"$1,629"}]
[" PASCAGOULA","MS",{"v":1095,"d":"$1,095"},{"v":1095,"d":"$1,095"},{"v":1095,"d":"$1,095"},{"v":1095,"d":"$1,095"},{"v":1140,"d":"$1,140"},{"v":1395,"d":"$1,395"},{"v":1425,"d":"$1,425"},{"v":1458,"d":"$1,458"},{"v":1542,"d":"$1,542"},{"v":1398,"d":"$1,398"},{"v":1440,"d":"$1,440"},{"v":1479,"d":"$1,479"},{"v":1563,"d":"$1,563"},{"v":1665,"d":"$1,665"},{"v":1434,"d":"$1,434"},{"v":1473,"d":"$1,473"},{"v":1578,"d":"$1,578"},{"v":1170,"d":"$1,170"},{"v":1392,"d":"$1,392"},{"v":1476,"d":"$1,476"},{"v":1704,"d":"$1,704"},{"v":1866,"d":"$1,866"},{"v":1884,"d":"$1,884"},{"v":1902,"d":"$1,902"}]
[" GREENVILLE","MS",{"v":879,"d":"$879"},{"v":879,"d":"$879"},{"v":879,"d":"$879"},{"v":879,"d":"$879"},{"v":924,"d":"$924"},{"v":1050,"d":"$1,050"},{"v":1080,"d":"$1,080"},{"v":1110,"d":"$1,110"},{"v":1152,"d":"$1,152"},{"v":1053,"d":"$1,053"},{"v":1092,"d":"$1,092"},{"v":1131,"d":"$1,131"},{"v":1161,"d":"$1,161"},{"v":1197,"d":"$1,197"},{"v":1086,"d":"$1,086"},{"v":1125,"d":"$1,125"},{"v":1167,"d":"$1,167"},{"v":939,"d":"$939"},{"v":1047,"d":"$1,047"},{"v":1128,"d":"$1,128"},{"v":1209,"d":"$1,209"},{"v":1266,"d":"$1,266"},{"v":1281,"d":"$1,281"},{"v":1293,"d":"$1,293"}]
[" TUPELO","MS",{"v":825,"d":"$825"},{"v":825,"d":"$825"},{"v":825,"d":"$825"},{"v":825,"d":"$825"},{"v":909,"d":"$909"},{"v":1152,"d":"$1,152"},{"v":1182,"d":"$1,182"},{"v":1212,"d":"$1,212"},{"v":1293,"d":"$1,293"},{"v":1152,"d":"$1,152"},{"v":1194,"d":"$1,194"},{"v":1233,"d":"$1,233"},{"v":1317,"d":"$1,317"},{"v":1413,"d":"$1,413"},{"v":1188,"d":"$1,188"},{"v":1227,"d":"$1,227"},{"v":1332,"d":"$1,332"},{"v":936,"d":"$936"},{"v":1146,"d":"$1,146"},{"v":1230,"d":"$1,230"},{"v":1452,"d":"$1,452"},{"v":1611,"d":"$1,611"},{"v":1626,"d":"$1,626"},{"v":1641,"d":"$1,641"}]
[" MALMSTROM AFB/GREAT FLS","MT",{"v":828,"d":"$828"},{"v":828,"d":"$828"},{"v":828,"d":"$828"},{"v":828,"d":"$828"},{"v":942,"d":"$942"},{"v":1104,"d":"$1,104"},{"v":1185,"d":"$1,185"},{"v":1275,"d":"$1,275"},{"v":1371,"d":"$1,371"},{"v":1104,"d":"$1,104"},{"v":1224,"d":"$1,224"},{"v":1335,"d":"$1,335"},{"v":1386,"d":"$1,386"},{"v":1446,"d":"$1,446"},{"v":1206,"d":"$1,206"},{"v":1317,"d":"$1,317"},{"v":1395,"d":"$1,395"},{"v":960,"d":"$960"},{"v":1101,"d":"$1,101"},{"v":1329,"d":"$1,329"},{"v":1470,"d":"$1,470"},{"v":1569,"d":"$1,569"},{"v":1584,"d":"$1,584"},{"v":1599,"d":"$1,599"}]
[" HELENA","MT",{"v":846,"d":"$846"},{"v":846,"d":"$846"},{"v":846,"d":"$846"},{"v":846,"d":"$846"},{"v":945,"d":"$945"},{"v":1317,"d":"$1,317"},{"v":1326,"d":"$1,326"},{"v":1335,"d":"$1,335"},{"v":1386,"d":"$1,386"},{"v":1317,"d":"$1,317"},{"v":1329,"d":"$1,329"},{"v":1341,"d":"$1,341"},{"v":1404,"d":"$1,404"},{"v":1479,"d":"$1,479"},{"v":1326,"d":"$1,326"},{"v":1338,"d":"$1,338"},{"v":1416,"d":"$1,416"},{"v":987,"d":"$987"},{"v":1308,"d":"$1,308"},{"v":1341,"d":"$1,341"},{"v":1506,"d":"$1,506"},{"v":1626,"d":"$1,626"},{"v":1644,"d":"$1,644"},{"v":1659,"d":"$1,659"}]
[" BILLINGS","MT",{"v":963,"d":"$963"},{"v":963,"d":"$963"},{"v":963,"d":"$963"},{"v":963,"d":"$963"},{"v":1050,"d":"$1,050"},{"v":1245,"d":"$1,245"},{"v":1317,"d":"$1,317"},{"v":1398,"d":"$1,398"},{"v":1494,"d":"$1,494"},{"v":1248,"d":"$1,248"},{"v":1350,"d":"$1,350"},{"v":1449,"d":"$1,449"},{"v":1509,"d":"$1,509"},{"v":1581,"d":"$1,581"},{"v":1335,"d":"$1,335"},{"v":1434,"d":"$1,434"},{"v":1521,"d":"$1,521"},{"v":1071,"d":"$1,071"},{"v":1242,"d":"$1,242"},{"v":1446,"d":"$1,446"},{"v":1608,"d":"$1,608"},{"v":1725,"d":"$1,725"},{"v":1740,"d":"$1,740"},{"v":1758,"d":"$1,758"}]
[" MISSOULA","MT",{"v":927,"d":"$927"},{"v":927,"d":"$927"},{"v":927,"d":"$927"},{"v":927,"d":"$927"},{"v":1017,"d":"$1,017"},{"v":1155,"d":"$1,155"},{"v":1281,"d":"$1,281"},{"v":1422,"d":"$1,422"},{"v":1566,"d":"$1,566"},{"v":1158,"d":"$1,158"},{"v":1338,"d":"$1,338"},{"v":1509,"d":"$1,509"},{"v":1587,"d":"$1,587"},{"v":1680,"d":"$1,680"},{"v":1311,"d":"$1,311"},{"v":1485,"d":"$1,485"},{"v":1602,"d":"$1,602"},{"v":1032,"d":"$1,032"},{"v":1152,"d":"$1,152"},{"v":1503,"d":"$1,503"},{"v":1716,"d":"$1,716"},{"v":1863,"d":"$1,863"},{"v":1884,"d":"$1,884"},{"v":1902,"d":"$1,902"}]
[" OUTER BANKS","NC",{"v":1158,"d":"$1,158"},{"v":1158,"d":"$1,158"},{"v":1158,"d":"$1,158"},{"v":1158,"d":"$1,158"},{"v":1245,"d":"$1,245"},{"v":1560,"d":"$1,560"},{"v":1629,"d":"$1,629"},{"v":1701,"d":"$1,701"},{"v":1785,"d":"$1,785"},{"v":1563,"d":"$1,563"},{"v":1659,"d":"$1,659"},{"v":1749,"d":"$1,749"},{"v":1800,"d":"$1,800"},{"v":1860,"d":"$1,860"},{"v":1644,"d":"$1,644"},{"v":1737,"d":"$1,737"},{"v":1809,"d":"$1,809"},{"v":1278,"d":"$1,278"},{"v":1554,"d":"$1,554"},{"v":1746,"d":"$1,746"},{"v":1881,"d":"$1,881"},{"v":1980,"d":"$1,980"},{"v":1998,"d":"$1,998"},{"v":2019,"d":"$2,019"}]
[" MOREHEAD/CHERRY PT MCAS","NC",{"v":1098,"d":"$1,098"},{"v":1098,"d":"$1,098"},{"v":1098,"d":"$1,098"},{"v":1098,"d":"$1,098"},{"v":1182,"d":"$1,182"},{"v":1410,"d":"$1,410"},{"v":1497,"d":"$1,497"},{"v":1590,"d":"$1,590"},{"v":1671,"d":"$1,671"},{"v":1410,"d":"$1,410"},{"v":1536,"d":"$1,536"},{"v":1650,"d":"$1,650"},{"v":1677,"d":"$1,677"},{"v":1707,"d":"$1,707"},{"v":1515,"d":"$1,515"},{"v":1635,"d":"$1,635"},{"v":1683,"d":"$1,683"},{"v":1206,"d":"$1,206"},{"v":1404,"d":"$1,404"},{"v":1647,"d":"$1,647"},{"v":1719,"d":"$1,719"},{"v":1770,"d":"$1,770"},{"v":1788,"d":"$1,788"},{"v":1806,"d":"$1,806"}]
[" CAMP LEJEUNE","NC",{"v":1047,"d":"$1,047"},{"v":1047,"d":"$1,047"},{"v":1047,"d":"$1,047"},{"v":1047,"d":"$1,047"},{"v":1083,"d":"$1,083"},{"v":1341,"d":"$1,341"},{"v":1395,"d":"$1,395"},{"v":1458,"d":"$1,458"},{"v":1548,"d":"$1,548"},{"v":1344,"d":"$1,344"},{"v":1422,"d":"$1,422"},{"v":1494,"d":"$1,494"},{"v":1569,"d":"$1,569"},{"v":1653,"d":"$1,653"},{"v":1410,"d":"$1,410"},{"v":1485,"d":"$1,485"},{"v":1581,"d":"$1,581"},{"v":1113,"d":"$1,113"},{"v":1335,"d":"$1,335"},{"v":1491,"d":"$1,491"},{"v":1689,"d":"$1,689"},{"v":1827,"d":"$1,827"},{"v":1845,"d":"$1,845"},{"v":1863,"d":"$1,863"}]
[" CHARLOTTE","NC",{"v":1131,"d":"$1,131"},{"v":1131,"d":"$1,131"},{"v":1131,"d":"$1,131"},{"v":1131,"d":"$1,131"},{"v":1221,"d":"$1,221"},{"v":1518,"d":"$1,518"},{"v":1527,"d":"$1,527"},{"v":1536,"d":"$1,536"},{"v":1575,"d":"$1,575"},{"v":1518,"d":"$1,518"},{"v":1530,"d":"$1,530"},{"v":1542,"d":"$1,542"},{"v":1587,"d":"$1,587"},{"v":1638,"d":"$1,638"},{"v":1527,"d":"$1,527"},{"v":1539,"d":"$1,539"},{"v":1593,"d":"$1,593"},{"v":1254,"d":"$1,254"},{"v":1512,"d":"$1,512"},{"v":1542,"d":"$1,542"},{"v":1659,"d":"$1,659"},{"v":1746,"d":"$1,746"},{"v":1764,"d":"$1,764"},{"v":1782,"d":"$1,782"}]
[" DURHAM/CHAPEL HILL","NC",{"v":1182,"d":"$1,182"},{"v":1182,"d":"$1,182"},{"v":1182,"d":"$1,182"},{"v":1182,"d":"$1,182"},{"v":1275,"d":"$1,275"},{"v":1407,"d":"$1,407"},{"v":1452,"d":"$1,452"},{"v":1503,"d":"$1,503"},{"v":1656,"d":"$1,656"},{"v":1407,"d":"$1,407"},{"v":1473,"d":"$1,473"},{"v":1533,"d":"$1,533"},{"v":1704,"d":"$1,704"},{"v":1902,"d":"$1,902"},{"v":1461,"d":"$1,461"},{"v":1524,"d":"$1,524"},{"v":1734,"d":"$1,734"},{"v":1290,"d":"$1,290"},{"v":1404,"d":"$1,404"},{"v":1530,"d":"$1,530"},{"v":1980,"d":"$1,980"},{"v":2301,"d":"$2,301"},{"v":2325,"d":"$2,325"},{"v":2346,"d":"$2,346"}]
[" ELIZABETH CITY","NC",{"v":1293,"d":"$1,293"},{"v":1293,"d":"$1,293"},{"v":1293,"d":"$1,293"},{"v":1293,"d":"$1,293"},{"v":1410,"d":"$1,410"},{"v":1644,"d":"$1,644"},{"v":1725,"d":"$1,725"},{"v":1815,"d":"$1,815"},{"v":1908,"d":"$1,908"},{"v":1647,"d":"$1,647"},{"v":1761,"d":"$1,761"},{"v":1872,"d":"$1,872"},{"v":1920,"d":"$1,920"},{"v":1980,"d":"$1,980"},{"v":1743,"d":"$1,743"},{"v":1854,"d":"$1,854"},{"v":1929,"d":"$1,929"},{"v":1434,"d":"$1,434"},{"v":1638,"d":"$1,638"},{"v":1866,"d":"$1,866"},{"v":2001,"d":"$2,001"},{"v":2097,"d":"$2,097"},{"v":2118,"d":"$2,118"},{"v":2139,"d":"$2,139"}]
[" FORT BRAGG/POPE AFB","NC",{"v":1065,"d":"$1,065"},{"v":1065,"d":"$1,065"},{"v":1065,"d":"$1,065"},{"v":1065,"d":"$1,065"},{"v":1125,"d":"$1,125"},{"v":1290,"d":"$1,290"},{"v":1377,"d":"$1,377"},{"v":1470,"d":"$1,470"},{"v":1578,"d":"$1,578"},{"v":1293,"d":"$1,293"},{"v":1416,"d":"$1,416"},{"v":1530,"d":"$1,530"},{"v":1596,"d":"$1,596"},{"v":1674,"d":"$1,674"},{"v":1398,"d":"$1,398"},{"v":1515,"d":"$1,515"},{"v":1608,"d":"$1,608"},{"v":1143,"d":"$1,143"},{"v":1287,"d":"$1,287"},{"v":1527,"d":"$1,527"},{"v":1707,"d":"$1,707"},{"v":1833,"d":"$1,833"},{"v":1851,"d":"$1,851"},{"v":1869,"d":"$1,869"}]
[" SEYMORE JOHNSON AFB","NC",{"v":996,"d":"$996"},{"v":996,"d":"$996"},{"v":996,"d":"$996"},{"v":996,"d":"$996"},{"v":1059,"d":"$1,059"},{"v":1299,"d":"$1,299"},{"v":1392,"d":"$1,392"},{"v":1497,"d":"$1,497"},{"v":1602,"d":"$1,602"},{"v":1302,"d":"$1,302"},{"v":1434,"d":"$1,434"},{"v":1560,"d":"$1,560"},{"v":1617,"d":"$1,617"},{"v":1683,"d":"$1,683"},{"v":1413,"d":"$1,413"},{"v":1542,"d":"$1,542"},{"v":1629,"d":"$1,629"},{"v":1086,"d":"$1,086"},{"v":1293,"d":"$1,293"},{"v":1557,"d":"$1,557"},{"v":1710,"d":"$1,710"},{"v":1818,"d":"$1,818"},{"v":1836,"d":"$1,836"},{"v":1854,"d":"$1,854"}]
[" GREENSBORO","NC",{"v":927,"d":"$927"},{"v":927,"d":"$927"},{"v":927,"d":"$927"},{"v":927,"d":"$927"},{"v":999,"d":"$999"},{"v":1122,"d":"$1,122"},{"v":1161,"d":"$1,161"},{"v":1206,"d":"$1,206"},{"v":1299,"d":"$1,299"},{"v":1125,"d":"$1,125"},{"v":1179,"d":"$1,179"},{"v":1233,"d":"$1,233"},{"v":1323,"d":"$1,323"},{"v":1434,"d":"$1,434"},{"v":1170,"d":"$1,170"},{"v":1224,"d":"$1,224"},{"v":1341,"d":"$1,341"},{"v":1014,"d":"$1,014"},{"v":1122,"d":"$1,122"},{"v":1230,"d":"$1,230"},{"v":1476,"d":"$1,476"},{"v":1653,"d":"$1,653"},{"v":1668,"d":"$1,668"},{"v":1686,"d":"$1,686"}]
[" RALEIGH","NC",{"v":1065,"d":"$1,065"},{"v":1065,"d":"$1,065"},{"v":1065,"d":"$1,065"},{"v":1065,"d":"$1,065"},{"v":1116,"d":"$1,116"},{"v":1359,"d":"$1,359"},{"v":1401,"d":"$1,401"},{"v":1446,"d":"$1,446"},{"v":1593,"d":"$1,593"},{"v":1362,"d":"$1,362"},{"v":1419,"d":"$1,419"},{"v":1476,"d":"$1,476"},{"v":1638,"d":"$1,638"},{"v":1833,"d":"$1,833"},{"v":1410,"d":"$1,410"},{"v":1467,"d":"$1,467"},{"v":1668,"d":"$1,668"},{"v":1143,"d":"$1,143"},{"v":1356,"d":"$1,356"},{"v":1473,"d":"$1,473"},{"v":1908,"d":"$1,908"},{"v":2220,"d":"$2,220"},{"v":2241,"d":"$2,241"},{"v":2265,"d":"$2,265"}]
[" WILMINGTON","NC",{"v":1230,"d":"$1,230"},{"v":1230,"d":"$1,230"},{"v":1230,"d":"$1,230"},{"v":1230,"d":"$1,230"},{"v":1311,"d":"$1,311"},{"v":1416,"d":"$1,416"},{"v":1485,"d":"$1,485"},{"v":1560,"d":"$1,560"},{"v":1671,"d":"$1,671"},{"v":1416,"d":"$1,416"},{"v":1515,"d":"$1,515"},{"v":1608,"d":"$1,608"},{"v":1692,"d":"$1,692"},{"v":1794,"d":"$1,794"},{"v":1500,"d":"$1,500"},{"v":1596,"d":"$1,596"},{"v":1710,"d":"$1,710"},{"v":1323,"d":"$1,323"},{"v":1413,"d":"$1,413"},{"v":1605,"d":"$1,605"},{"v":1833,"d":"$1,833"},{"v":1992,"d":"$1,992"},{"v":2013,"d":"$2,013"},{"v":2034,"d":"$2,034"}]
[" ASHEVILLE","NC",{"v":1143,"d":"$1,143"},{"v":1143,"d":"$1,143"},{"v":1143,"d":"$1,143"},{"v":1143,"d":"$1,143"},{"v":1236,"d":"$1,236"},{"v":1446,"d":"$1,446"},{"v":1515,"d":"$1,515"},{"v":1590,"d":"$1,590"},{"v":1716,"d":"$1,716"},{"v":1446,"d":"$1,446"},{"v":1545,"d":"$1,545"},{"v":1638,"d":"$1,638"},{"v":1746,"d":"$1,746"},{"v":1872,"d":"$1,872"},{"v":1530,"d":"$1,530"},{"v":1626,"d":"$1,626"},{"v":1767,"d":"$1,767"},{"v":1260,"d":"$1,260"},{"v":1440,"d":"$1,440"},{"v":1635,"d":"$1,635"},{"v":1920,"d":"$1,920"},{"v":2127,"d":"$2,127"},{"v":2148,"d":"$2,148"},{"v":2169,"d":"$2,169"}]
[" GREENVILLE","NC",{"v":924,"d":"$924"},{"v":924,"d":"$924"},{"v":924,"d":"$924"},{"v":924,"d":"$924"},{"v":1011,"d":"$1,011"},{"v":1197,"d":"$1,197"},{"v":1335,"d":"$1,335"},{"v":1482,"d":"$1,482"},{"v":1626,"d":"$1,626"},{"v":1200,"d":"$1,200"},{"v":1395,"d":"$1,395"},{"v":1578,"d":"$1,578"},{"v":1644,"d":"$1,644"},{"v":1722,"d":"$1,722"},{"v":1365,"d":"$1,365"},{"v":1551,"d":"$1,551"},{"v":1656,"d":"$1,656"},{"v":1032,"d":"$1,032"},{"v":1194,"d":"$1,194"},{"v":1569,"d":"$1,569"},{"v":1752,"d":"$1,752"},{"v":1875,"d":"$1,875"},{"v":1896,"d":"$1,896"},{"v":1914,"d":"$1,914"}]
[" BISMARCK","ND",{"v":963,"d":"$963"},{"v":963,"d":"$963"},{"v":963,"d":"$963"},{"v":963,"d":"$963"},{"v":1107,"d":"$1,107"},{"v":1380,"d":"$1,380"},{"v":1458,"d":"$1,458"},{"v":1545,"d":"$1,545"},{"v":1665,"d":"$1,665"},{"v":1383,"d":"$1,383"},{"v":1494,"d":"$1,494"},{"v":1599,"d":"$1,599"},{"v":1689,"d":"$1,689"},{"v":1797,"d":"$1,797"},{"v":1476,"d":"$1,476"},{"v":1584,"d":"$1,584"},{"v":1704,"d":"$1,704"},{"v":1137,"d":"$1,137"},{"v":1374,"d":"$1,374"},{"v":1593,"d":"$1,593"},{"v":1836,"d":"$1,836"},{"v":2010,"d":"$2,010"},{"v":2031,"d":"$2,031"},{"v":2049,"d":"$2,049"}]
[" FARGO","ND",{"v":906,"d":"$906"},{"v":906,"d":"$906"},{"v":906,"d":"$906"},{"v":906,"d":"$906"},{"v":1023,"d":"$1,023"},{"v":1371,"d":"$1,371"},{"v":1398,"d":"$1,398"},{"v":1428,"d":"$1,428"},{"v":1509,"d":"$1,509"},{"v":1374,"d":"$1,374"},{"v":1410,"d":"$1,410"},{"v":1446,"d":"$1,446"},{"v":1533,"d":"$1,533"},{"v":1638,"d":"$1,638"},{"v":1404,"d":"$1,404"},{"v":1440,"d":"$1,440"},{"v":1548,"d":"$1,548"},{"v":1062,"d":"$1,062"},{"v":1365,"d":"$1,365"},{"v":1446,"d":"$1,446"},{"v":1677,"d":"$1,677"},{"v":1842,"d":"$1,842"},{"v":1860,"d":"$1,860"},{"v":1881,"d":"$1,881"}]
[" GRAND FORKS","ND",{"v":903,"d":"$903"},{"v":903,"d":"$903"},{"v":903,"d":"$903"},{"v":903,"d":"$903"},{"v":999,"d":"$999"},{"v":1245,"d":"$1,245"},{"v":1311,"d":"$1,311"},{"v":1383,"d":"$1,383"},{"v":1470,"d":"$1,470"},{"v":1248,"d":"$1,248"},{"v":1341,"d":"$1,341"},{"v":1428,"d":"$1,428"},{"v":1482,"d":"$1,482"},{"v":1548,"d":"$1,548"},{"v":1326,"d":"$1,326"},{"v":1416,"d":"$1,416"},{"v":1494,"d":"$1,494"},{"v":1026,"d":"$1,026"},{"v":1242,"d":"$1,242"},{"v":1425,"d":"$1,425"},{"v":1572,"d":"$1,572"},{"v":1677,"d":"$1,677"},{"v":1692,"d":"$1,692"},{"v":1710,"d":"$1,710"}]
[" MINOT AFB","ND",{"v":885,"d":"$885"},{"v":885,"d":"$885"},{"v":885,"d":"$885"},{"v":885,"d":"$885"},{"v":972,"d":"$972"},{"v":1374,"d":"$1,374"},{"v":1395,"d":"$1,395"},{"v":1419,"d":"$1,419"},{"v":1473,"d":"$1,473"},{"v":1377,"d":"$1,377"},{"v":1404,"d":"$1,404"},{"v":1431,"d":"$1,431"},{"v":1488,"d":"$1,488"},{"v":1551,"d":"$1,551"},{"v":1401,"d":"$1,401"},{"v":1428,"d":"$1,428"},{"v":1497,"d":"$1,497"},{"v":1017,"d":"$1,017"},{"v":1368,"d":"$1,368"},{"v":1431,"d":"$1,431"},{"v":1575,"d":"$1,575"},{"v":1680,"d":"$1,680"},{"v":1698,"d":"$1,698"},{"v":1716,"d":"$1,716"}]
[" OMAHA/OFFUTT AFB","NE",{"v":972,"d":"$972"},{"v":972,"d":"$972"},{"v":972,"d":"$972"},{"v":972,"d":"$972"},{"v":1077,"d":"$1,077"},{"v":1299,"d":"$1,299"},{"v":1353,"d":"$1,353"},{"v":1410,"d":"$1,410"},{"v":1512,"d":"$1,512"},{"v":1302,"d":"$1,302"},{"v":1377,"d":"$1,377"},{"v":1449,"d":"$1,449"},{"v":1539,"d":"$1,539"},{"v":1644,"d":"$1,644"},{"v":1365,"d":"$1,365"},{"v":1437,"d":"$1,437"},{"v":1554,"d":"$1,554"},{"v":1101,"d":"$1,101"},{"v":1296,"d":"$1,296"},{"v":1446,"d":"$1,446"},{"v":1686,"d":"$1,686"},{"v":1857,"d":"$1,857"},{"v":1875,"d":"$1,875"},{"v":1893,"d":"$1,893"}]
[" LINCOLN","NE",{"v":1032,"d":"$1,032"},{"v":1032,"d":"$1,032"},{"v":1032,"d":"$1,032"},{"v":1032,"d":"$1,032"},{"v":1146,"d":"$1,146"},{"v":1227,"d":"$1,227"},{"v":1257,"d":"$1,257"},{"v":1290,"d":"$1,290"},{"v":1347,"d":"$1,347"},{"v":1227,"d":"$1,227"},{"v":1272,"d":"$1,272"},{"v":1311,"d":"$1,311"},{"v":1362,"d":"$1,362"},{"v":1419,"d":"$1,419"},{"v":1263,"d":"$1,263"},{"v":1305,"d":"$1,305"},{"v":1368,"d":"$1,368"},{"v":1155,"d":"$1,155"},{"v":1224,"d":"$1,224"},{"v":1311,"d":"$1,311"},{"v":1440,"d":"$1,440"},{"v":1533,"d":"$1,533"},{"v":1548,"d":"$1,548"},{"v":1563,"d":"$1,563"}]
[" PORTSMOUTH/KITTERY, ME","NH",{"v":1326,"d":"$1,326"},{"v":1326,"d":"$1,326"},{"v":1326,"d":"$1,326"},{"v":1326,"d":"$1,326"},{"v":1491,"d":"$1,491"},{"v":1893,"d":"$1,893"},{"v":1998,"d":"$1,998"},{"v":2109,"d":"$2,109"},{"v":2193,"d":"$2,193"},{"v":1896,"d":"$1,896"},{"v":2043,"d":"$2,043"},{"v":2181,"d":"$2,181"},{"v":2196,"d":"$2,196"},{"v":2214,"d":"$2,214"},{"v":2019,"d":"$2,019"},{"v":2160,"d":"$2,160"},{"v":2199,"d":"$2,199"},{"v":1536,"d":"$1,536"},{"v":1887,"d":"$1,887"},{"v":2175,"d":"$2,175"},{"v":2220,"d":"$2,220"},{"v":2250,"d":"$2,250"},{"v":2274,"d":"$2,274"},{"v":2295,"d":"$2,295"}]
[" MANCHESTER/CONCORD","NH",{"v":1482,"d":"$1,482"},{"v":1482,"d":"$1,482"},{"v":1482,"d":"$1,482"},{"v":1482,"d":"$1,482"},{"v":1650,"d":"$1,650"},{"v":1857,"d":"$1,857"},{"v":1929,"d":"$1,929"},{"v":2007,"d":"$2,007"},{"v":2127,"d":"$2,127"},{"v":1860,"d":"$1,860"},{"v":1962,"d":"$1,962"},{"v":2058,"d":"$2,058"},{"v":2154,"d":"$2,154"},{"v":2268,"d":"$2,268"},{"v":1947,"d":"$1,947"},{"v":2043,"d":"$2,043"},{"v":2172,"d":"$2,172"},{"v":1674,"d":"$1,674"},{"v":1854,"d":"$1,854"},{"v":2055,"d":"$2,055"},{"v":2310,"d":"$2,310"},{"v":2493,"d":"$2,493"},{"v":2520,"d":"$2,520"},{"v":2544,"d":"$2,544"}]
[" ATLANTIC CITY","NJ",{"v":1353,"d":"$1,353"},{"v":1353,"d":"$1,353"},{"v":1353,"d":"$1,353"},{"v":1353,"d":"$1,353"},{"v":1449,"d":"$1,449"},{"v":2046,"d":"$2,046"},{"v":2061,"d":"$2,061"},{"v":2076,"d":"$2,076"},{"v":2148,"d":"$2,148"},{"v":2046,"d":"$2,046"},{"v":2067,"d":"$2,067"},{"v":2085,"d":"$2,085"},{"v":2172,"d":"$2,172"},{"v":2274,"d":"$2,274"},{"v":2064,"d":"$2,064"},{"v":2082,"d":"$2,082"},{"v":2187,"d":"$2,187"},{"v":1515,"d":"$1,515"},{"v":2034,"d":"$2,034"},{"v":2082,"d":"$2,082"},{"v":2313,"d":"$2,313"},{"v":2478,"d":"$2,478"},{"v":2505,"d":"$2,505"},{"v":2529,"d":"$2,529"}]
[" CAPE MAY","NJ",{"v":1356,"d":"$1,356"},{"v":1356,"d":"$1,356"},{"v":1356,"d":"$1,356"},{"v":1356,"d":"$1,356"},{"v":1431,"d":"$1,431"},{"v":1836,"d":"$1,836"},{"v":1845,"d":"$1,845"},{"v":1854,"d":"$1,854"},{"v":1947,"d":"$1,947"},{"v":1836,"d":"$1,836"},{"v":1848,"d":"$1,848"},{"v":1860,"d":"$1,860"},{"v":1980,"d":"$1,980"},{"v":2121,"d":"$2,121"},{"v":1845,"d":"$1,845"},{"v":1860,"d":"$1,860"},{"v":2001,"d":"$2,001"},{"v":1476,"d":"$1,476"},{"v":1827,"d":"$1,827"},{"v":1860,"d":"$1,860"},{"v":2178,"d":"$2,178"},{"v":2406,"d":"$2,406"},{"v":2430,"d":"$2,430"},{"v":2454,"d":"$2,454"}]
[" FORT MONMOUTH/EARLE NWS","NJ",{"v":1782,"d":"$1,782"},{"v":1782,"d":"$1,782"},{"v":1782,"d":"$1,782"},{"v":1782,"d":"$1,782"},{"v":1998,"d":"$1,998"},{"v":2373,"d":"$2,373"},{"v":2430,"d":"$2,430"},{"v":2493,"d":"$2,493"},{"v":2685,"d":"$2,685"},{"v":2376,"d":"$2,376"},{"v":2457,"d":"$2,457"},{"v":2532,"d":"$2,532"},{"v":2742,"d":"$2,742"},{"v":2994,"d":"$2,994"},{"v":2442,"d":"$2,442"},{"v":2520,"d":"$2,520"},{"v":2781,"d":"$2,781"},{"v":2037,"d":"$2,037"},{"v":2367,"d":"$2,367"},{"v":2529,"d":"$2,529"},{"v":3090,"d":"$3,090"},{"v":3495,"d":"$3,495"},{"v":3531,"d":"$3,531"},{"v":3564,"d":"$3,564"}]
[" PERTH AMBOY","NJ",{"v":1665,"d":"$1,665"},{"v":1665,"d":"$1,665"},{"v":1665,"d":"$1,665"},{"v":1665,"d":"$1,665"},{"v":1764,"d":"$1,764"},{"v":2148,"d":"$2,148"},{"v":2223,"d":"$2,223"},{"v":2304,"d":"$2,304"},{"v":2475,"d":"$2,475"},{"v":2148,"d":"$2,148"},{"v":2256,"d":"$2,256"},{"v":2358,"d":"$2,358"},{"v":2520,"d":"$2,520"},{"v":2712,"d":"$2,712"},{"v":2238,"d":"$2,238"},{"v":2343,"d":"$2,343"},{"v":2550,"d":"$2,550"},{"v":1806,"d":"$1,806"},{"v":2139,"d":"$2,139"},{"v":2352,"d":"$2,352"},{"v":2787,"d":"$2,787"},{"v":3099,"d":"$3,099"},{"v":3129,"d":"$3,129"},{"v":3162,"d":"$3,162"}]
[" NORTHERN NEW JERSEY ",null,{"v":1977,"d":"$1,977"},{"v":1977,"d":"$1,977"},{"v":1977,"d":"$1,977"},{"v":1977,"d":"$1,977"},{"v":2160,"d":"$2,160"},{"v":2772,"d":"$2,772"},{"v":2775,"d":"$2,775"},{"v":2781,"d":"$2,781"},{"v":2829,"d":"$2,829"},{"v":2772,"d":"$2,772"},{"v":2778,"d":"$2,778"},{"v":2787,"d":"$2,787"},{"v":2847,"d":"$2,847"},{"v":2919,"d":"$2,919"},{"v":2778,"d":"$2,778"},{"v":2784,"d":"$2,784"},{"v":2859,"d":"$2,859"},{"v":2229,"d":"$2,229"},{"v":2760,"d":"$2,760"},{"v":2787,"d":"$2,787"},{"v":2946,"d":"$2,946"},{"v":3063,"d":"$3,063"},{"v":3093,"d":"$3,093"},{"v":3123,"d":"$3,123"}]
[" TRENTON","NJ",{"v":1470,"d":"$1,470"},{"v":1470,"d":"$1,470"},{"v":1470,"d":"$1,470"},{"v":1470,"d":"$1,470"},{"v":1740,"d":"$1,740"},{"v":2124,"d":"$2,124"},{"v":2220,"d":"$2,220"},{"v":2322,"d":"$2,322"},{"v":2460,"d":"$2,460"},{"v":2127,"d":"$2,127"},{"v":2262,"d":"$2,262"},{"v":2388,"d":"$2,388"},{"v":2487,"d":"$2,487"},{"v":2607,"d":"$2,607"},{"v":2241,"d":"$2,241"},{"v":2370,"d":"$2,370"},{"v":2505,"d":"$2,505"},{"v":1782,"d":"$1,782"},{"v":2115,"d":"$2,115"},{"v":2382,"d":"$2,382"},{"v":2652,"d":"$2,652"},{"v":2847,"d":"$2,847"},{"v":2874,"d":"$2,874"},{"v":2904,"d":"$2,904"}]
[" FT DIX/MCGUIRE/LAKEHURST","NJ",{"v":1557,"d":"$1,557"},{"v":1557,"d":"$1,557"},{"v":1557,"d":"$1,557"},{"v":1557,"d":"$1,557"},{"v":1701,"d":"$1,701"},{"v":2139,"d":"$2,139"},{"v":2205,"d":"$2,205"},{"v":2277,"d":"$2,277"},{"v":2355,"d":"$2,355"},{"v":2142,"d":"$2,142"},{"v":2235,"d":"$2,235"},{"v":2325,"d":"$2,325"},{"v":2364,"d":"$2,364"},{"v":2412,"d":"$2,412"},{"v":2220,"d":"$2,220"},{"v":2310,"d":"$2,310"},{"v":2373,"d":"$2,373"},{"v":1749,"d":"$1,749"},{"v":2130,"d":"$2,130"},{"v":2319,"d":"$2,319"},{"v":2430,"d":"$2,430"},{"v":2508,"d":"$2,508"},{"v":2535,"d":"$2,535"},{"v":2559,"d":"$2,559"}]
[" HOLLOMAN AFB/ALAMOGORDO","NM",{"v":915,"d":"$915"},{"v":915,"d":"$915"},{"v":915,"d":"$915"},{"v":915,"d":"$915"},{"v":1035,"d":"$1,035"},{"v":1212,"d":"$1,212"},{"v":1326,"d":"$1,326"},{"v":1446,"d":"$1,446"},{"v":1578,"d":"$1,578"},{"v":1215,"d":"$1,215"},{"v":1374,"d":"$1,374"},{"v":1524,"d":"$1,524"},{"v":1599,"d":"$1,599"},{"v":1686,"d":"$1,686"},{"v":1350,"d":"$1,350"},{"v":1500,"d":"$1,500"},{"v":1611,"d":"$1,611"},{"v":1053,"d":"$1,053"},{"v":1209,"d":"$1,209"},{"v":1518,"d":"$1,518"},{"v":1719,"d":"$1,719"},{"v":1863,"d":"$1,863"},{"v":1881,"d":"$1,881"},{"v":1899,"d":"$1,899"}]
[" ALBUQUERQUE/KIRTLAND AFB","NM",{"v":1107,"d":"$1,107"},{"v":1107,"d":"$1,107"},{"v":1107,"d":"$1,107"},{"v":1107,"d":"$1,107"},{"v":1248,"d":"$1,248"},{"v":1299,"d":"$1,299"},{"v":1353,"d":"$1,353"},{"v":1413,"d":"$1,413"},{"v":1494,"d":"$1,494"},{"v":1299,"d":"$1,299"},{"v":1377,"d":"$1,377"},{"v":1452,"d":"$1,452"},{"v":1509,"d":"$1,509"},{"v":1578,"d":"$1,578"},{"v":1365,"d":"$1,365"},{"v":1440,"d":"$1,440"},{"v":1521,"d":"$1,521"},{"v":1254,"d":"$1,254"},{"v":1296,"d":"$1,296"},{"v":1449,"d":"$1,449"},{"v":1605,"d":"$1,605"},{"v":1719,"d":"$1,719"},{"v":1734,"d":"$1,734"},{"v":1752,"d":"$1,752"}]
[" CANNON AFB/CLOVIS","NM",{"v":906,"d":"$906"},{"v":906,"d":"$906"},{"v":906,"d":"$906"},{"v":906,"d":"$906"},{"v":1041,"d":"$1,041"},{"v":1314,"d":"$1,314"},{"v":1332,"d":"$1,332"},{"v":1350,"d":"$1,350"},{"v":1422,"d":"$1,422"},{"v":1314,"d":"$1,314"},{"v":1338,"d":"$1,338"},{"v":1362,"d":"$1,362"},{"v":1443,"d":"$1,443"},{"v":1542,"d":"$1,542"},{"v":1335,"d":"$1,335"},{"v":1359,"d":"$1,359"},{"v":1458,"d":"$1,458"},{"v":1071,"d":"$1,071"},{"v":1311,"d":"$1,311"},{"v":1359,"d":"$1,359"},{"v":1578,"d":"$1,578"},{"v":1737,"d":"$1,737"},{"v":1752,"d":"$1,752"},{"v":1770,"d":"$1,770"}]
[" WHITE SANDS MR/LAS CRUCES",null,{"v":897,"d":"$897"},{"v":897,"d":"$897"},{"v":897,"d":"$897"},{"v":897,"d":"$897"},{"v":996,"d":"$996"},{"v":1098,"d":"$1,098"},{"v":1173,"d":"$1,173"},{"v":1251,"d":"$1,251"},{"v":1341,"d":"$1,341"},{"v":1101,"d":"$1,101"},{"v":1206,"d":"$1,206"},{"v":1302,"d":"$1,302"},{"v":1353,"d":"$1,353"},{"v":1416,"d":"$1,416"},{"v":1188,"d":"$1,188"},{"v":1290,"d":"$1,290"},{"v":1365,"d":"$1,365"},{"v":1008,"d":"$1,008"},{"v":1095,"d":"$1,095"},{"v":1299,"d":"$1,299"},{"v":1437,"d":"$1,437"},{"v":1536,"d":"$1,536"},{"v":1551,"d":"$1,551"},{"v":1566,"d":"$1,566"}]
[" SANTA FE/LOS ALAMOS","NM",{"v":1119,"d":"$1,119"},{"v":1119,"d":"$1,119"},{"v":1119,"d":"$1,119"},{"v":1119,"d":"$1,119"},{"v":1257,"d":"$1,257"},{"v":1479,"d":"$1,479"},{"v":1548,"d":"$1,548"},{"v":1623,"d":"$1,623"},{"v":1761,"d":"$1,761"},{"v":1482,"d":"$1,482"},{"v":1578,"d":"$1,578"},{"v":1668,"d":"$1,668"},{"v":1794,"d":"$1,794"},{"v":1944,"d":"$1,944"},{"v":1563,"d":"$1,563"},{"v":1656,"d":"$1,656"},{"v":1818,"d":"$1,818"},{"v":1281,"d":"$1,281"},{"v":1476,"d":"$1,476"},{"v":1665,"d":"$1,665"},{"v":2001,"d":"$2,001"},{"v":2241,"d":"$2,241"},{"v":2262,"d":"$2,262"},{"v":2286,"d":"$2,286"}]
[" LAKE TAHOE","NV",{"v":1098,"d":"$1,098"},{"v":1098,"d":"$1,098"},{"v":1098,"d":"$1,098"},{"v":1098,"d":"$1,098"},{"v":1152,"d":"$1,152"},{"v":1701,"d":"$1,701"},{"v":1713,"d":"$1,713"},{"v":1728,"d":"$1,728"},{"v":1821,"d":"$1,821"},{"v":1701,"d":"$1,701"},{"v":1719,"d":"$1,719"},{"v":1737,"d":"$1,737"},{"v":1851,"d":"$1,851"},{"v":1989,"d":"$1,989"},{"v":1716,"d":"$1,716"},{"v":1734,"d":"$1,734"},{"v":1872,"d":"$1,872"},{"v":1212,"d":"$1,212"},{"v":1689,"d":"$1,689"},{"v":1734,"d":"$1,734"},{"v":2040,"d":"$2,040"},{"v":2262,"d":"$2,262"},{"v":2283,"d":"$2,283"},{"v":2307,"d":"$2,307"}]
[" FALLON NAS","NV",{"v":870,"d":"$870"},{"v":870,"d":"$870"},{"v":870,"d":"$870"},{"v":870,"d":"$870"},{"v":918,"d":"$918"},{"v":1068,"d":"$1,068"},{"v":1155,"d":"$1,155"},{"v":1251,"d":"$1,251"},{"v":1350,"d":"$1,350"},{"v":1071,"d":"$1,071"},{"v":1194,"d":"$1,194"},{"v":1311,"d":"$1,311"},{"v":1362,"d":"$1,362"},{"v":1425,"d":"$1,425"},{"v":1176,"d":"$1,176"},{"v":1293,"d":"$1,293"},{"v":1374,"d":"$1,374"},{"v":933,"d":"$933"},{"v":1065,"d":"$1,065"},{"v":1305,"d":"$1,305"},{"v":1449,"d":"$1,449"},{"v":1548,"d":"$1,548"},{"v":1563,"d":"$1,563"},{"v":1581,"d":"$1,581"}]
[" NELLIS AFB/LAS VEGAS","NV",{"v":1197,"d":"$1,197"},{"v":1197,"d":"$1,197"},{"v":1197,"d":"$1,197"},{"v":1197,"d":"$1,197"},{"v":1242,"d":"$1,242"},{"v":1398,"d":"$1,398"},{"v":1509,"d":"$1,509"},{"v":1629,"d":"$1,629"},{"v":1758,"d":"$1,758"},{"v":1401,"d":"$1,401"},{"v":1557,"d":"$1,557"},{"v":1704,"d":"$1,704"},{"v":1779,"d":"$1,779"},{"v":1866,"d":"$1,866"},{"v":1533,"d":"$1,533"},{"v":1683,"d":"$1,683"},{"v":1791,"d":"$1,791"},{"v":1260,"d":"$1,260"},{"v":1395,"d":"$1,395"},{"v":1698,"d":"$1,698"},{"v":1902,"d":"$1,902"},{"v":2043,"d":"$2,043"},{"v":2064,"d":"$2,064"},{"v":2085,"d":"$2,085"}]
[" RENO/CARSON CITY","NV",{"v":1080,"d":"$1,080"},{"v":1080,"d":"$1,080"},{"v":1080,"d":"$1,080"},{"v":1080,"d":"$1,080"},{"v":1170,"d":"$1,170"},{"v":1377,"d":"$1,377"},{"v":1443,"d":"$1,443"},{"v":1515,"d":"$1,515"},{"v":1611,"d":"$1,611"},{"v":1377,"d":"$1,377"},{"v":1473,"d":"$1,473"},{"v":1560,"d":"$1,560"},{"v":1629,"d":"$1,629"},{"v":1710,"d":"$1,710"},{"v":1458,"d":"$1,458"},{"v":1548,"d":"$1,548"},{"v":1641,"d":"$1,641"},{"v":1191,"d":"$1,191"},{"v":1371,"d":"$1,371"},{"v":1557,"d":"$1,557"},{"v":1740,"d":"$1,740"},{"v":1872,"d":"$1,872"},{"v":1890,"d":"$1,890"},{"v":1908,"d":"$1,908"}]
[" BALLSTON SPA/ALBANY","NY",{"v":1470,"d":"$1,470"},{"v":1470,"d":"$1,470"},{"v":1470,"d":"$1,470"},{"v":1470,"d":"$1,470"},{"v":1650,"d":"$1,650"},{"v":1728,"d":"$1,728"},{"v":1821,"d":"$1,821"},{"v":1920,"d":"$1,920"},{"v":2046,"d":"$2,046"},{"v":1731,"d":"$1,731"},{"v":1860,"d":"$1,860"},{"v":1986,"d":"$1,986"},{"v":2067,"d":"$2,067"},{"v":2166,"d":"$2,166"},{"v":1842,"d":"$1,842"},{"v":1968,"d":"$1,968"},{"v":2085,"d":"$2,085"},{"v":1659,"d":"$1,659"},{"v":1725,"d":"$1,725"},{"v":1980,"d":"$1,980"},{"v":2205,"d":"$2,205"},{"v":2364,"d":"$2,364"},{"v":2388,"d":"$2,388"},{"v":2412,"d":"$2,412"}]
[" BUFFALO","NY",{"v":1086,"d":"$1,086"},{"v":1086,"d":"$1,086"},{"v":1086,"d":"$1,086"},{"v":1086,"d":"$1,086"},{"v":1260,"d":"$1,260"},{"v":1329,"d":"$1,329"},{"v":1422,"d":"$1,422"},{"v":1521,"d":"$1,521"},{"v":1632,"d":"$1,632"},{"v":1332,"d":"$1,332"},{"v":1461,"d":"$1,461"},{"v":1584,"d":"$1,584"},{"v":1653,"d":"$1,653"},{"v":1731,"d":"$1,731"},{"v":1443,"d":"$1,443"},{"v":1566,"d":"$1,566"},{"v":1665,"d":"$1,665"},{"v":1269,"d":"$1,269"},{"v":1329,"d":"$1,329"},{"v":1578,"d":"$1,578"},{"v":1761,"d":"$1,761"},{"v":1890,"d":"$1,890"},{"v":1911,"d":"$1,911"},{"v":1929,"d":"$1,929"}]
[" WEST POINT","NY",{"v":1881,"d":"$1,881"},{"v":1881,"d":"$1,881"},{"v":1881,"d":"$1,881"},{"v":1881,"d":"$1,881"},{"v":2127,"d":"$2,127"},{"v":2352,"d":"$2,352"},{"v":2421,"d":"$2,421"},{"v":2496,"d":"$2,496"},{"v":2640,"d":"$2,640"},{"v":2355,"d":"$2,355"},{"v":2451,"d":"$2,451"},{"v":2544,"d":"$2,544"},{"v":2676,"d":"$2,676"},{"v":2832,"d":"$2,832"},{"v":2436,"d":"$2,436"},{"v":2532,"d":"$2,532"},{"v":2700,"d":"$2,700"},{"v":2151,"d":"$2,151"},{"v":2349,"d":"$2,349"},{"v":2541,"d":"$2,541"},{"v":2889,"d":"$2,889"},{"v":3141,"d":"$3,141"},{"v":3171,"d":"$3,171"},{"v":3204,"d":"$3,204"}]
[" LONG ISLAND","NY",{"v":2274,"d":"$2,274"},{"v":2274,"d":"$2,274"},{"v":2274,"d":"$2,274"},{"v":2274,"d":"$2,274"},{"v":2466,"d":"$2,466"},{"v":2664,"d":"$2,664"},{"v":2847,"d":"$2,847"},{"v":3045,"d":"$3,045"},{"v":3219,"d":"$3,219"},{"v":2667,"d":"$2,667"},{"v":2928,"d":"$2,928"},{"v":3174,"d":"$3,174"},{"v":3237,"d":"$3,237"},{"v":3309,"d":"$3,309"},{"v":2886,"d":"$2,886"},{"v":3138,"d":"$3,138"},{"v":3246,"d":"$3,246"},{"v":2490,"d":"$2,490"},{"v":2658,"d":"$2,658"},{"v":3162,"d":"$3,162"},{"v":3339,"d":"$3,339"},{"v":3459,"d":"$3,459"},{"v":3492,"d":"$3,492"},{"v":3528,"d":"$3,528"}]
[" NEW YORK CITY","NY",{"v":2685,"d":"$2,685"},{"v":2685,"d":"$2,685"},{"v":2685,"d":"$2,685"},{"v":2685,"d":"$2,685"},{"v":2751,"d":"$2,751"},{"v":3036,"d":"$3,036"},{"v":3066,"d":"$3,066"},{"v":3099,"d":"$3,099"},{"v":3225,"d":"$3,225"},{"v":3039,"d":"$3,039"},{"v":3078,"d":"$3,078"},{"v":3117,"d":"$3,117"},{"v":3267,"d":"$3,267"},{"v":3441,"d":"$3,441"},{"v":3072,"d":"$3,072"},{"v":3111,"d":"$3,111"},{"v":3294,"d":"$3,294"},{"v":2784,"d":"$2,784"},{"v":3030,"d":"$3,030"},{"v":3117,"d":"$3,117"},{"v":3510,"d":"$3,510"},{"v":3792,"d":"$3,792"},{"v":3831,"d":"$3,831"},{"v":3870,"d":"$3,870"}]
[" ROCHESTER","NY",{"v":1203,"d":"$1,203"},{"v":1203,"d":"$1,203"},{"v":1203,"d":"$1,203"},{"v":1203,"d":"$1,203"},{"v":1344,"d":"$1,344"},{"v":1410,"d":"$1,410"},{"v":1437,"d":"$1,437"},{"v":1470,"d":"$1,470"},{"v":1554,"d":"$1,554"},{"v":1410,"d":"$1,410"},{"v":1452,"d":"$1,452"},{"v":1488,"d":"$1,488"},{"v":1578,"d":"$1,578"},{"v":1683,"d":"$1,683"},{"v":1443,"d":"$1,443"},{"v":1482,"d":"$1,482"},{"v":1593,"d":"$1,593"},{"v":1350,"d":"$1,350"},{"v":1407,"d":"$1,407"},{"v":1488,"d":"$1,488"},{"v":1722,"d":"$1,722"},{"v":1893,"d":"$1,893"},{"v":1911,"d":"$1,911"},{"v":1932,"d":"$1,932"}]
[" ROME/GRIFFISS AFB","NY",{"v":999,"d":"$999"},{"v":999,"d":"$999"},{"v":999,"d":"$999"},{"v":999,"d":"$999"},{"v":1086,"d":"$1,086"},{"v":1194,"d":"$1,194"},{"v":1260,"d":"$1,260"},{"v":1335,"d":"$1,335"},{"v":1437,"d":"$1,437"},{"v":1194,"d":"$1,194"},{"v":1290,"d":"$1,290"},{"v":1383,"d":"$1,383"},{"v":1455,"d":"$1,455"},{"v":1545,"d":"$1,545"},{"v":1275,"d":"$1,275"},{"v":1368,"d":"$1,368"},{"v":1470,"d":"$1,470"},{"v":1098,"d":"$1,098"},{"v":1191,"d":"$1,191"},{"v":1377,"d":"$1,377"},{"v":1578,"d":"$1,578"},{"v":1719,"d":"$1,719"},{"v":1737,"d":"$1,737"},{"v":1752,"d":"$1,752"}]
[" SYRACUSE","NY",{"v":966,"d":"$966"},{"v":966,"d":"$966"},{"v":966,"d":"$966"},{"v":966,"d":"$966"},{"v":1053,"d":"$1,053"},{"v":1299,"d":"$1,299"},{"v":1374,"d":"$1,374"},{"v":1455,"d":"$1,455"},{"v":1536,"d":"$1,536"},{"v":1302,"d":"$1,302"},{"v":1407,"d":"$1,407"},{"v":1506,"d":"$1,506"},{"v":1545,"d":"$1,545"},{"v":1593,"d":"$1,593"},{"v":1389,"d":"$1,389"},{"v":1491,"d":"$1,491"},{"v":1554,"d":"$1,554"},{"v":1080,"d":"$1,080"},{"v":1293,"d":"$1,293"},{"v":1503,"d":"$1,503"},{"v":1611,"d":"$1,611"},{"v":1689,"d":"$1,689"},{"v":1704,"d":"$1,704"},{"v":1722,"d":"$1,722"}]
[" FT. DRUM/WATERTOWN","NY",{"v":1245,"d":"$1,245"},{"v":1245,"d":"$1,245"},{"v":1245,"d":"$1,245"},{"v":1245,"d":"$1,245"},{"v":1314,"d":"$1,314"},{"v":1473,"d":"$1,473"},{"v":1545,"d":"$1,545"},{"v":1623,"d":"$1,623"},{"v":1716,"d":"$1,716"},{"v":1476,"d":"$1,476"},{"v":1578,"d":"$1,578"},{"v":1674,"d":"$1,674"},{"v":1734,"d":"$1,734"},{"v":1803,"d":"$1,803"},{"v":1563,"d":"$1,563"},{"v":1659,"d":"$1,659"},{"v":1743,"d":"$1,743"},{"v":1332,"d":"$1,332"},{"v":1470,"d":"$1,470"},{"v":1668,"d":"$1,668"},{"v":1830,"d":"$1,830"},{"v":1944,"d":"$1,944"},{"v":1962,"d":"$1,962"},{"v":1983,"d":"$1,983"}]
[" BINGHAMTON/ITHACA","NY",{"v":1116,"d":"$1,116"},{"v":1116,"d":"$1,116"},{"v":1116,"d":"$1,116"},{"v":1116,"d":"$1,116"},{"v":1248,"d":"$1,248"},{"v":1623,"d":"$1,623"},{"v":1689,"d":"$1,689"},{"v":1764,"d":"$1,764"},{"v":1878,"d":"$1,878"},{"v":1623,"d":"$1,623"},{"v":1719,"d":"$1,719"},{"v":1809,"d":"$1,809"},{"v":1905,"d":"$1,905"},{"v":2019,"d":"$2,019"},{"v":1704,"d":"$1,704"},{"v":1797,"d":"$1,797"},{"v":1923,"d":"$1,923"},{"v":1290,"d":"$1,290"},{"v":1614,"d":"$1,614"},{"v":1806,"d":"$1,806"},{"v":2061,"d":"$2,061"},{"v":2244,"d":"$2,244"},{"v":2265,"d":"$2,265"},{"v":2289,"d":"$2,289"}]
[" WESTCHESTER COUNTY","NY",{"v":1917,"d":"$1,917"},{"v":1917,"d":"$1,917"},{"v":1917,"d":"$1,917"},{"v":1917,"d":"$1,917"},{"v":2022,"d":"$2,022"},{"v":2625,"d":"$2,625"},{"v":2799,"d":"$2,799"},{"v":2985,"d":"$2,985"},{"v":3207,"d":"$3,207"},{"v":2631,"d":"$2,631"},{"v":2874,"d":"$2,874"},{"v":3105,"d":"$3,105"},{"v":3246,"d":"$3,246"},{"v":3414,"d":"$3,414"},{"v":2838,"d":"$2,838"},{"v":3072,"d":"$3,072"},{"v":3273,"d":"$3,273"},{"v":2088,"d":"$2,088"},{"v":2613,"d":"$2,613"},{"v":3096,"d":"$3,096"},{"v":3477,"d":"$3,477"},{"v":3747,"d":"$3,747"},{"v":3783,"d":"$3,783"},{"v":3822,"d":"$3,822"}]
[" STATEN ISLAND","NY",{"v":1812,"d":"$1,812"},{"v":1812,"d":"$1,812"},{"v":1812,"d":"$1,812"},{"v":1812,"d":"$1,812"},{"v":2034,"d":"$2,034"},{"v":2475,"d":"$2,475"},{"v":2502,"d":"$2,502"},{"v":2532,"d":"$2,532"},{"v":2616,"d":"$2,616"},{"v":2475,"d":"$2,475"},{"v":2514,"d":"$2,514"},{"v":2550,"d":"$2,550"},{"v":2640,"d":"$2,640"},{"v":2748,"d":"$2,748"},{"v":2508,"d":"$2,508"},{"v":2544,"d":"$2,544"},{"v":2658,"d":"$2,658"},{"v":2082,"d":"$2,082"},{"v":2466,"d":"$2,466"},{"v":2547,"d":"$2,547"},{"v":2790,"d":"$2,790"},{"v":2964,"d":"$2,964"},{"v":2994,"d":"$2,994"},{"v":3024,"d":"$3,024"}]
[" POTSDAM","NY",{"v":873,"d":"$873"},{"v":873,"d":"$873"},{"v":873,"d":"$873"},{"v":873,"d":"$873"},{"v":924,"d":"$924"},{"v":1191,"d":"$1,191"},{"v":1215,"d":"$1,215"},{"v":1242,"d":"$1,242"},{"v":1296,"d":"$1,296"},{"v":1194,"d":"$1,194"},{"v":1227,"d":"$1,227"},{"v":1257,"d":"$1,257"},{"v":1311,"d":"$1,311"},{"v":1377,"d":"$1,377"},{"v":1221,"d":"$1,221"},{"v":1251,"d":"$1,251"},{"v":1323,"d":"$1,323"},{"v":954,"d":"$954"},{"v":1188,"d":"$1,188"},{"v":1257,"d":"$1,257"},{"v":1404,"d":"$1,404"},{"v":1509,"d":"$1,509"},{"v":1524,"d":"$1,524"},{"v":1539,"d":"$1,539"}]
[" KINGSTON/SAUGERTIES","NY",{"v":1374,"d":"$1,374"},{"v":1374,"d":"$1,374"},{"v":1374,"d":"$1,374"},{"v":1374,"d":"$1,374"},{"v":1482,"d":"$1,482"},{"v":1872,"d":"$1,872"},{"v":1905,"d":"$1,905"},{"v":1941,"d":"$1,941"},{"v":2037,"d":"$2,037"},{"v":1872,"d":"$1,872"},{"v":1920,"d":"$1,920"},{"v":1965,"d":"$1,965"},{"v":2064,"d":"$2,064"},{"v":2178,"d":"$2,178"},{"v":1914,"d":"$1,914"},{"v":1959,"d":"$1,959"},{"v":2082,"d":"$2,082"},{"v":1524,"d":"$1,524"},{"v":1863,"d":"$1,863"},{"v":1962,"d":"$1,962"},{"v":2223,"d":"$2,223"},{"v":2409,"d":"$2,409"},{"v":2433,"d":"$2,433"},{"v":2457,"d":"$2,457"}]
[" AKRON","OH",{"v":954,"d":"$954"},{"v":954,"d":"$954"},{"v":954,"d":"$954"},{"v":954,"d":"$954"},{"v":1008,"d":"$1,008"},{"v":1125,"d":"$1,125"},{"v":1146,"d":"$1,146"},{"v":1170,"d":"$1,170"},{"v":1251,"d":"$1,251"},{"v":1128,"d":"$1,128"},{"v":1155,"d":"$1,155"},{"v":1185,"d":"$1,185"},{"v":1275,"d":"$1,275"},{"v":1380,"d":"$1,380"},{"v":1152,"d":"$1,152"},{"v":1179,"d":"$1,179"},{"v":1290,"d":"$1,290"},{"v":1020,"d":"$1,020"},{"v":1125,"d":"$1,125"},{"v":1182,"d":"$1,182"},{"v":1422,"d":"$1,422"},{"v":1593,"d":"$1,593"},{"v":1611,"d":"$1,611"},{"v":1626,"d":"$1,626"}]
[" CINCINNATI","OH",{"v":1236,"d":"$1,236"},{"v":1236,"d":"$1,236"},{"v":1236,"d":"$1,236"},{"v":1236,"d":"$1,236"},{"v":1320,"d":"$1,320"},{"v":1386,"d":"$1,386"},{"v":1440,"d":"$1,440"},{"v":1497,"d":"$1,497"},{"v":1578,"d":"$1,578"},{"v":1389,"d":"$1,389"},{"v":1464,"d":"$1,464"},{"v":1533,"d":"$1,533"},{"v":1593,"d":"$1,593"},{"v":1668,"d":"$1,668"},{"v":1452,"d":"$1,452"},{"v":1524,"d":"$1,524"},{"v":1605,"d":"$1,605"},{"v":1329,"d":"$1,329"},{"v":1386,"d":"$1,386"},{"v":1530,"d":"$1,530"},{"v":1695,"d":"$1,695"},{"v":1812,"d":"$1,812"},{"v":1830,"d":"$1,830"},{"v":1848,"d":"$1,848"}]
[" CLEVELAND","OH",{"v":1026,"d":"$1,026"},{"v":1026,"d":"$1,026"},{"v":1026,"d":"$1,026"},{"v":1026,"d":"$1,026"},{"v":1086,"d":"$1,086"},{"v":1188,"d":"$1,188"},{"v":1278,"d":"$1,278"},{"v":1377,"d":"$1,377"},{"v":1470,"d":"$1,470"},{"v":1191,"d":"$1,191"},{"v":1317,"d":"$1,317"},{"v":1437,"d":"$1,437"},{"v":1482,"d":"$1,482"},{"v":1536,"d":"$1,536"},{"v":1299,"d":"$1,299"},{"v":1422,"d":"$1,422"},{"v":1491,"d":"$1,491"},{"v":1095,"d":"$1,095"},{"v":1188,"d":"$1,188"},{"v":1434,"d":"$1,434"},{"v":1554,"d":"$1,554"},{"v":1641,"d":"$1,641"},{"v":1656,"d":"$1,656"},{"v":1674,"d":"$1,674"}]
[" COLUMBUS","OH",{"v":981,"d":"$981"},{"v":981,"d":"$981"},{"v":981,"d":"$981"},{"v":981,"d":"$981"},{"v":1041,"d":"$1,041"},{"v":1215,"d":"$1,215"},{"v":1266,"d":"$1,266"},{"v":1323,"d":"$1,323"},{"v":1446,"d":"$1,446"},{"v":1215,"d":"$1,215"},{"v":1290,"d":"$1,290"},{"v":1356,"d":"$1,356"},{"v":1479,"d":"$1,479"},{"v":1626,"d":"$1,626"},{"v":1278,"d":"$1,278"},{"v":1347,"d":"$1,347"},{"v":1503,"d":"$1,503"},{"v":1059,"d":"$1,059"},{"v":1212,"d":"$1,212"},{"v":1353,"d":"$1,353"},{"v":1680,"d":"$1,680"},{"v":1914,"d":"$1,914"},{"v":1935,"d":"$1,935"},{"v":1953,"d":"$1,953"}]
[" WRIGHT-PATTERSON AFB","OH",{"v":921,"d":"$921"},{"v":921,"d":"$921"},{"v":921,"d":"$921"},{"v":921,"d":"$921"},{"v":981,"d":"$981"},{"v":1236,"d":"$1,236"},{"v":1341,"d":"$1,341"},{"v":1455,"d":"$1,455"},{"v":1575,"d":"$1,575"},{"v":1239,"d":"$1,239"},{"v":1386,"d":"$1,386"},{"v":1527,"d":"$1,527"},{"v":1590,"d":"$1,590"},{"v":1668,"d":"$1,668"},{"v":1365,"d":"$1,365"},{"v":1506,"d":"$1,506"},{"v":1602,"d":"$1,602"},{"v":1008,"d":"$1,008"},{"v":1230,"d":"$1,230"},{"v":1521,"d":"$1,521"},{"v":1695,"d":"$1,695"},{"v":1818,"d":"$1,818"},{"v":1836,"d":"$1,836"},{"v":1854,"d":"$1,854"}]
[" TOLEDO","OH",{"v":975,"d":"$975"},{"v":975,"d":"$975"},{"v":975,"d":"$975"},{"v":975,"d":"$975"},{"v":1089,"d":"$1,089"},{"v":1182,"d":"$1,182"},{"v":1221,"d":"$1,221"},{"v":1263,"d":"$1,263"},{"v":1356,"d":"$1,356"},{"v":1182,"d":"$1,182"},{"v":1236,"d":"$1,236"},{"v":1287,"d":"$1,287"},{"v":1383,"d":"$1,383"},{"v":1494,"d":"$1,494"},{"v":1230,"d":"$1,230"},{"v":1281,"d":"$1,281"},{"v":1401,"d":"$1,401"},{"v":1101,"d":"$1,101"},{"v":1179,"d":"$1,179"},{"v":1287,"d":"$1,287"},{"v":1536,"d":"$1,536"},{"v":1719,"d":"$1,719"},{"v":1734,"d":"$1,734"},{"v":1752,"d":"$1,752"}]
[" YOUNGSTOWN","OH",{"v":813,"d":"$813"},{"v":813,"d":"$813"},{"v":813,"d":"$813"},{"v":813,"d":"$813"},{"v":885,"d":"$885"},{"v":951,"d":"$951"},{"v":987,"d":"$987"},{"v":1026,"d":"$1,026"},{"v":1080,"d":"$1,080"},{"v":951,"d":"$951"},{"v":1002,"d":"$1,002"},{"v":1050,"d":"$1,050"},{"v":1092,"d":"$1,092"},{"v":1140,"d":"$1,140"},{"v":993,"d":"$993"},{"v":1044,"d":"$1,044"},{"v":1098,"d":"$1,098"},{"v":891,"d":"$891"},{"v":948,"d":"$948"},{"v":1047,"d":"$1,047"},{"v":1158,"d":"$1,158"},{"v":1239,"d":"$1,239"},{"v":1251,"d":"$1,251"},{"v":1263,"d":"$1,263"}]
[" MANSFIELD","OH",{"v":756,"d":"$756"},{"v":756,"d":"$756"},{"v":756,"d":"$756"},{"v":756,"d":"$756"},{"v":801,"d":"$801"},{"v":960,"d":"$960"},{"v":999,"d":"$999"},{"v":1044,"d":"$1,044"},{"v":1107,"d":"$1,107"},{"v":960,"d":"$960"},{"v":1017,"d":"$1,017"},{"v":1071,"d":"$1,071"},{"v":1122,"d":"$1,122"},{"v":1182,"d":"$1,182"},{"v":1008,"d":"$1,008"},{"v":1062,"d":"$1,062"},{"v":1131,"d":"$1,131"},{"v":819,"d":"$819"},{"v":957,"d":"$957"},{"v":1068,"d":"$1,068"},{"v":1206,"d":"$1,206"},{"v":1305,"d":"$1,305"},{"v":1317,"d":"$1,317"},{"v":1329,"d":"$1,329"}]
[" LIMA","OH",{"v":840,"d":"$840"},{"v":840,"d":"$840"},{"v":840,"d":"$840"},{"v":840,"d":"$840"},{"v":906,"d":"$906"},{"v":1017,"d":"$1,017"},{"v":1023,"d":"$1,023"},{"v":1032,"d":"$1,032"},{"v":1065,"d":"$1,065"},{"v":1017,"d":"$1,017"},{"v":1029,"d":"$1,029"},{"v":1038,"d":"$1,038"},{"v":1074,"d":"$1,074"},{"v":1116,"d":"$1,116"},{"v":1026,"d":"$1,026"},{"v":1038,"d":"$1,038"},{"v":1080,"d":"$1,080"},{"v":918,"d":"$918"},{"v":1014,"d":"$1,014"},{"v":1038,"d":"$1,038"},{"v":1131,"d":"$1,131"},{"v":1200,"d":"$1,200"},{"v":1212,"d":"$1,212"},{"v":1224,"d":"$1,224"}]
[" ALTUS AFB","OK",{"v":801,"d":"$801"},{"v":801,"d":"$801"},{"v":801,"d":"$801"},{"v":801,"d":"$801"},{"v":915,"d":"$915"},{"v":1134,"d":"$1,134"},{"v":1152,"d":"$1,152"},{"v":1173,"d":"$1,173"},{"v":1224,"d":"$1,224"},{"v":1134,"d":"$1,134"},{"v":1161,"d":"$1,161"},{"v":1185,"d":"$1,185"},{"v":1236,"d":"$1,236"},{"v":1296,"d":"$1,296"},{"v":1158,"d":"$1,158"},{"v":1182,"d":"$1,182"},{"v":1245,"d":"$1,245"},{"v":939,"d":"$939"},{"v":1131,"d":"$1,131"},{"v":1185,"d":"$1,185"},{"v":1320,"d":"$1,320"},{"v":1416,"d":"$1,416"},{"v":1431,"d":"$1,431"},{"v":1446,"d":"$1,446"}]
[" VANCE AFB/ENID","OK",{"v":855,"d":"$855"},{"v":855,"d":"$855"},{"v":855,"d":"$855"},{"v":855,"d":"$855"},{"v":915,"d":"$915"},{"v":1032,"d":"$1,032"},{"v":1092,"d":"$1,092"},{"v":1158,"d":"$1,158"},{"v":1266,"d":"$1,266"},{"v":1035,"d":"$1,035"},{"v":1119,"d":"$1,119"},{"v":1200,"d":"$1,200"},{"v":1290,"d":"$1,290"},{"v":1398,"d":"$1,398"},{"v":1107,"d":"$1,107"},{"v":1188,"d":"$1,188"},{"v":1308,"d":"$1,308"},{"v":927,"d":"$927"},{"v":1029,"d":"$1,029"},{"v":1197,"d":"$1,197"},{"v":1437,"d":"$1,437"},{"v":1611,"d":"$1,611"},{"v":1626,"d":"$1,626"},{"v":1644,"d":"$1,644"}]
[" FORT SILL/LAWTON","OK",{"v":861,"d":"$861"},{"v":861,"d":"$861"},{"v":861,"d":"$861"},{"v":861,"d":"$861"},{"v":966,"d":"$966"},{"v":1110,"d":"$1,110"},{"v":1182,"d":"$1,182"},{"v":1257,"d":"$1,257"},{"v":1344,"d":"$1,344"},{"v":1113,"d":"$1,113"},{"v":1212,"d":"$1,212"},{"v":1305,"d":"$1,305"},{"v":1359,"d":"$1,359"},{"v":1425,"d":"$1,425"},{"v":1197,"d":"$1,197"},{"v":1293,"d":"$1,293"},{"v":1371,"d":"$1,371"},{"v":981,"d":"$981"},{"v":1107,"d":"$1,107"},{"v":1302,"d":"$1,302"},{"v":1449,"d":"$1,449"},{"v":1551,"d":"$1,551"},{"v":1569,"d":"$1,569"},{"v":1584,"d":"$1,584"}]
[" OKLAHOMA CITY","OK",{"v":861,"d":"$861"},{"v":861,"d":"$861"},{"v":861,"d":"$861"},{"v":861,"d":"$861"},{"v":918,"d":"$918"},{"v":1173,"d":"$1,173"},{"v":1203,"d":"$1,203"},{"v":1236,"d":"$1,236"},{"v":1305,"d":"$1,305"},{"v":1173,"d":"$1,173"},{"v":1218,"d":"$1,218"},{"v":1257,"d":"$1,257"},{"v":1323,"d":"$1,323"},{"v":1401,"d":"$1,401"},{"v":1209,"d":"$1,209"},{"v":1251,"d":"$1,251"},{"v":1335,"d":"$1,335"},{"v":948,"d":"$948"},{"v":1167,"d":"$1,167"},{"v":1257,"d":"$1,257"},{"v":1431,"d":"$1,431"},{"v":1554,"d":"$1,554"},{"v":1569,"d":"$1,569"},{"v":1584,"d":"$1,584"}]
[" TULSA","OK",{"v":858,"d":"$858"},{"v":858,"d":"$858"},{"v":858,"d":"$858"},{"v":858,"d":"$858"},{"v":912,"d":"$912"},{"v":1119,"d":"$1,119"},{"v":1230,"d":"$1,230"},{"v":1350,"d":"$1,350"},{"v":1485,"d":"$1,485"},{"v":1122,"d":"$1,122"},{"v":1278,"d":"$1,278"},{"v":1425,"d":"$1,425"},{"v":1506,"d":"$1,506"},{"v":1605,"d":"$1,605"},{"v":1254,"d":"$1,254"},{"v":1404,"d":"$1,404"},{"v":1521,"d":"$1,521"},{"v":936,"d":"$936"},{"v":1116,"d":"$1,116"},{"v":1419,"d":"$1,419"},{"v":1641,"d":"$1,641"},{"v":1797,"d":"$1,797"},{"v":1815,"d":"$1,815"},{"v":1833,"d":"$1,833"}]
[" ASTORIA","OR",{"v":972,"d":"$972"},{"v":972,"d":"$972"},{"v":972,"d":"$972"},{"v":972,"d":"$972"},{"v":1026,"d":"$1,026"},{"v":1296,"d":"$1,296"},{"v":1398,"d":"$1,398"},{"v":1509,"d":"$1,509"},{"v":1608,"d":"$1,608"},{"v":1299,"d":"$1,299"},{"v":1443,"d":"$1,443"},{"v":1581,"d":"$1,581"},{"v":1620,"d":"$1,620"},{"v":1668,"d":"$1,668"},{"v":1422,"d":"$1,422"},{"v":1560,"d":"$1,560"},{"v":1626,"d":"$1,626"},{"v":1056,"d":"$1,056"},{"v":1290,"d":"$1,290"},{"v":1575,"d":"$1,575"},{"v":1686,"d":"$1,686"},{"v":1761,"d":"$1,761"},{"v":1779,"d":"$1,779"},{"v":1797,"d":"$1,797"}]
[" COOS BAY","OR",{"v":843,"d":"$843"},{"v":843,"d":"$843"},{"v":843,"d":"$843"},{"v":843,"d":"$843"},{"v":924,"d":"$924"},{"v":1152,"d":"$1,152"},{"v":1233,"d":"$1,233"},{"v":1320,"d":"$1,320"},{"v":1428,"d":"$1,428"},{"v":1155,"d":"$1,155"},{"v":1269,"d":"$1,269"},{"v":1374,"d":"$1,374"},{"v":1446,"d":"$1,446"},{"v":1533,"d":"$1,533"},{"v":1251,"d":"$1,251"},{"v":1359,"d":"$1,359"},{"v":1461,"d":"$1,461"},{"v":948,"d":"$948"},{"v":1149,"d":"$1,149"},{"v":1371,"d":"$1,371"},{"v":1566,"d":"$1,566"},{"v":1701,"d":"$1,701"},{"v":1719,"d":"$1,719"},{"v":1737,"d":"$1,737"}]
[" PORTLAND","OR",{"v":1173,"d":"$1,173"},{"v":1173,"d":"$1,173"},{"v":1173,"d":"$1,173"},{"v":1173,"d":"$1,173"},{"v":1299,"d":"$1,299"},{"v":1533,"d":"$1,533"},{"v":1593,"d":"$1,593"},{"v":1656,"d":"$1,656"},{"v":1746,"d":"$1,746"},{"v":1536,"d":"$1,536"},{"v":1620,"d":"$1,620"},{"v":1698,"d":"$1,698"},{"v":1761,"d":"$1,761"},{"v":1839,"d":"$1,839"},{"v":1605,"d":"$1,605"},{"v":1686,"d":"$1,686"},{"v":1773,"d":"$1,773"},{"v":1323,"d":"$1,323"},{"v":1527,"d":"$1,527"},{"v":1695,"d":"$1,695"},{"v":1866,"d":"$1,866"},{"v":1989,"d":"$1,989"},{"v":2010,"d":"$2,010"},{"v":2031,"d":"$2,031"}]
[" SALEM","OR",{"v":906,"d":"$906"},{"v":906,"d":"$906"},{"v":906,"d":"$906"},{"v":906,"d":"$906"},{"v":969,"d":"$969"},{"v":1173,"d":"$1,173"},{"v":1266,"d":"$1,266"},{"v":1371,"d":"$1,371"},{"v":1488,"d":"$1,488"},{"v":1176,"d":"$1,176"},{"v":1308,"d":"$1,308"},{"v":1437,"d":"$1,437"},{"v":1506,"d":"$1,506"},{"v":1590,"d":"$1,590"},{"v":1287,"d":"$1,287"},{"v":1419,"d":"$1,419"},{"v":1518,"d":"$1,518"},{"v":993,"d":"$993"},{"v":1167,"d":"$1,167"},{"v":1431,"d":"$1,431"},{"v":1620,"d":"$1,620"},{"v":1755,"d":"$1,755"},{"v":1773,"d":"$1,773"},{"v":1788,"d":"$1,788"}]
[" CORVALLIS","OR",{"v":978,"d":"$978"},{"v":978,"d":"$978"},{"v":978,"d":"$978"},{"v":978,"d":"$978"},{"v":1038,"d":"$1,038"},{"v":1338,"d":"$1,338"},{"v":1395,"d":"$1,395"},{"v":1455,"d":"$1,455"},{"v":1548,"d":"$1,548"},{"v":1341,"d":"$1,341"},{"v":1419,"d":"$1,419"},{"v":1494,"d":"$1,494"},{"v":1566,"d":"$1,566"},{"v":1653,"d":"$1,653"},{"v":1407,"d":"$1,407"},{"v":1482,"d":"$1,482"},{"v":1581,"d":"$1,581"},{"v":1071,"d":"$1,071"},{"v":1332,"d":"$1,332"},{"v":1491,"d":"$1,491"},{"v":1686,"d":"$1,686"},{"v":1824,"d":"$1,824"},{"v":1842,"d":"$1,842"},{"v":1860,"d":"$1,860"}]
[" EUGENE","OR",{"v":987,"d":"$987"},{"v":987,"d":"$987"},{"v":987,"d":"$987"},{"v":987,"d":"$987"},{"v":1086,"d":"$1,086"},{"v":1221,"d":"$1,221"},{"v":1299,"d":"$1,299"},{"v":1380,"d":"$1,380"},{"v":1515,"d":"$1,515"},{"v":1224,"d":"$1,224"},{"v":1332,"d":"$1,332"},{"v":1431,"d":"$1,431"},{"v":1545,"d":"$1,545"},{"v":1680,"d":"$1,680"},{"v":1314,"d":"$1,314"},{"v":1416,"d":"$1,416"},{"v":1566,"d":"$1,566"},{"v":1101,"d":"$1,101"},{"v":1218,"d":"$1,218"},{"v":1428,"d":"$1,428"},{"v":1731,"d":"$1,731"},{"v":1947,"d":"$1,947"},{"v":1968,"d":"$1,968"},{"v":1986,"d":"$1,986"}]
[" KLAMATH FALLS","OR",{"v":837,"d":"$837"},{"v":837,"d":"$837"},{"v":837,"d":"$837"},{"v":837,"d":"$837"},{"v":900,"d":"$900"},{"v":1110,"d":"$1,110"},{"v":1167,"d":"$1,167"},{"v":1227,"d":"$1,227"},{"v":1302,"d":"$1,302"},{"v":1110,"d":"$1,110"},{"v":1191,"d":"$1,191"},{"v":1269,"d":"$1,269"},{"v":1317,"d":"$1,317"},{"v":1371,"d":"$1,371"},{"v":1179,"d":"$1,179"},{"v":1257,"d":"$1,257"},{"v":1323,"d":"$1,323"},{"v":924,"d":"$924"},{"v":1104,"d":"$1,104"},{"v":1266,"d":"$1,266"},{"v":1395,"d":"$1,395"},{"v":1485,"d":"$1,485"},{"v":1500,"d":"$1,500"},{"v":1515,"d":"$1,515"}]
[" CARLISLE BARRACKS","PA",{"v":1164,"d":"$1,164"},{"v":1164,"d":"$1,164"},{"v":1164,"d":"$1,164"},{"v":1164,"d":"$1,164"},{"v":1233,"d":"$1,233"},{"v":1386,"d":"$1,386"},{"v":1434,"d":"$1,434"},{"v":1485,"d":"$1,485"},{"v":1593,"d":"$1,593"},{"v":1386,"d":"$1,386"},{"v":1455,"d":"$1,455"},{"v":1518,"d":"$1,518"},{"v":1620,"d":"$1,620"},{"v":1743,"d":"$1,743"},{"v":1443,"d":"$1,443"},{"v":1509,"d":"$1,509"},{"v":1638,"d":"$1,638"},{"v":1251,"d":"$1,251"},{"v":1383,"d":"$1,383"},{"v":1515,"d":"$1,515"},{"v":1788,"d":"$1,788"},{"v":1986,"d":"$1,986"},{"v":2004,"d":"$2,004"},{"v":2025,"d":"$2,025"}]
[" PHILADELPHIA/CAMDEN, NJ","PA",{"v":1554,"d":"$1,554"},{"v":1554,"d":"$1,554"},{"v":1554,"d":"$1,554"},{"v":1554,"d":"$1,554"},{"v":1701,"d":"$1,701"},{"v":2010,"d":"$2,010"},{"v":2106,"d":"$2,106"},{"v":2208,"d":"$2,208"},{"v":2298,"d":"$2,298"},{"v":2013,"d":"$2,013"},{"v":2148,"d":"$2,148"},{"v":2274,"d":"$2,274"},{"v":2304,"d":"$2,304"},{"v":2343,"d":"$2,343"},{"v":2127,"d":"$2,127"},{"v":2256,"d":"$2,256"},{"v":2310,"d":"$2,310"},{"v":1734,"d":"$1,734"},{"v":2004,"d":"$2,004"},{"v":2268,"d":"$2,268"},{"v":2358,"d":"$2,358"},{"v":2421,"d":"$2,421"},{"v":2445,"d":"$2,445"},{"v":2469,"d":"$2,469"}]
[" NAS WILLOW GROVE","PA",{"v":1635,"d":"$1,635"},{"v":1635,"d":"$1,635"},{"v":1635,"d":"$1,635"},{"v":1635,"d":"$1,635"},{"v":1764,"d":"$1,764"},{"v":2079,"d":"$2,079"},{"v":2103,"d":"$2,103"},{"v":2130,"d":"$2,130"},{"v":2220,"d":"$2,220"},{"v":2079,"d":"$2,079"},{"v":2115,"d":"$2,115"},{"v":2148,"d":"$2,148"},{"v":2247,"d":"$2,247"},{"v":2361,"d":"$2,361"},{"v":2109,"d":"$2,109"},{"v":2142,"d":"$2,142"},{"v":2265,"d":"$2,265"},{"v":1800,"d":"$1,800"},{"v":2073,"d":"$2,073"},{"v":2148,"d":"$2,148"},{"v":2406,"d":"$2,406"},{"v":2592,"d":"$2,592"},{"v":2619,"d":"$2,619"},{"v":2646,"d":"$2,646"}]
[" PITTSBURGH","PA",{"v":1338,"d":"$1,338"},{"v":1338,"d":"$1,338"},{"v":1338,"d":"$1,338"},{"v":1338,"d":"$1,338"},{"v":1443,"d":"$1,443"},{"v":1539,"d":"$1,539"},{"v":1605,"d":"$1,605"},{"v":1677,"d":"$1,677"},{"v":1800,"d":"$1,800"},{"v":1542,"d":"$1,542"},{"v":1635,"d":"$1,635"},{"v":1722,"d":"$1,722"},{"v":1830,"d":"$1,830"},{"v":1956,"d":"$1,956"},{"v":1620,"d":"$1,620"},{"v":1710,"d":"$1,710"},{"v":1848,"d":"$1,848"},{"v":1455,"d":"$1,455"},{"v":1536,"d":"$1,536"},{"v":1719,"d":"$1,719"},{"v":2004,"d":"$2,004"},{"v":2208,"d":"$2,208"},{"v":2229,"d":"$2,229"},{"v":2250,"d":"$2,250"}]
[" READING","PA",{"v":990,"d":"$990"},{"v":990,"d":"$990"},{"v":990,"d":"$990"},{"v":990,"d":"$990"},{"v":1092,"d":"$1,092"},{"v":1383,"d":"$1,383"},{"v":1425,"d":"$1,425"},{"v":1470,"d":"$1,470"},{"v":1515,"d":"$1,515"},{"v":1383,"d":"$1,383"},{"v":1443,"d":"$1,443"},{"v":1497,"d":"$1,497"},{"v":1524,"d":"$1,524"},{"v":1554,"d":"$1,554"},{"v":1434,"d":"$1,434"},{"v":1491,"d":"$1,491"},{"v":1527,"d":"$1,527"},{"v":1125,"d":"$1,125"},{"v":1377,"d":"$1,377"},{"v":1497,"d":"$1,497"},{"v":1566,"d":"$1,566"},{"v":1614,"d":"$1,614"},{"v":1629,"d":"$1,629"},{"v":1644,"d":"$1,644"}]
[" STATE COLLEGE","PA",{"v":1044,"d":"$1,044"},{"v":1044,"d":"$1,044"},{"v":1044,"d":"$1,044"},{"v":1044,"d":"$1,044"},{"v":1107,"d":"$1,107"},{"v":1329,"d":"$1,329"},{"v":1389,"d":"$1,389"},{"v":1452,"d":"$1,452"},{"v":1551,"d":"$1,551"},{"v":1332,"d":"$1,332"},{"v":1416,"d":"$1,416"},{"v":1494,"d":"$1,494"},{"v":1572,"d":"$1,572"},{"v":1665,"d":"$1,665"},{"v":1401,"d":"$1,401"},{"v":1482,"d":"$1,482"},{"v":1587,"d":"$1,587"},{"v":1131,"d":"$1,131"},{"v":1326,"d":"$1,326"},{"v":1491,"d":"$1,491"},{"v":1701,"d":"$1,701"},{"v":1851,"d":"$1,851"},{"v":1872,"d":"$1,872"},{"v":1890,"d":"$1,890"}]
[" ERIE","PA",{"v":933,"d":"$933"},{"v":933,"d":"$933"},{"v":933,"d":"$933"},{"v":933,"d":"$933"},{"v":990,"d":"$990"},{"v":1104,"d":"$1,104"},{"v":1134,"d":"$1,134"},{"v":1164,"d":"$1,164"},{"v":1224,"d":"$1,224"},{"v":1104,"d":"$1,104"},{"v":1146,"d":"$1,146"},{"v":1185,"d":"$1,185"},{"v":1239,"d":"$1,239"},{"v":1305,"d":"$1,305"},{"v":1140,"d":"$1,140"},{"v":1179,"d":"$1,179"},{"v":1251,"d":"$1,251"},{"v":1002,"d":"$1,002"},{"v":1101,"d":"$1,101"},{"v":1185,"d":"$1,185"},{"v":1329,"d":"$1,329"},{"v":1431,"d":"$1,431"},{"v":1446,"d":"$1,446"},{"v":1461,"d":"$1,461"}]
[" WILKES-BARRE/SCRANTON","PA",{"v":879,"d":"$879"},{"v":879,"d":"$879"},{"v":879,"d":"$879"},{"v":879,"d":"$879"},{"v":948,"d":"$948"},{"v":1137,"d":"$1,137"},{"v":1161,"d":"$1,161"},{"v":1188,"d":"$1,188"},{"v":1245,"d":"$1,245"},{"v":1137,"d":"$1,137"},{"v":1170,"d":"$1,170"},{"v":1203,"d":"$1,203"},{"v":1260,"d":"$1,260"},{"v":1323,"d":"$1,323"},{"v":1167,"d":"$1,167"},{"v":1200,"d":"$1,200"},{"v":1269,"d":"$1,269"},{"v":969,"d":"$969"},{"v":1131,"d":"$1,131"},{"v":1203,"d":"$1,203"},{"v":1350,"d":"$1,350"},{"v":1455,"d":"$1,455"},{"v":1470,"d":"$1,470"},{"v":1482,"d":"$1,482"}]
[" ALLENTOWN/BETHLEHEM","PA",{"v":1242,"d":"$1,242"},{"v":1242,"d":"$1,242"},{"v":1242,"d":"$1,242"},{"v":1242,"d":"$1,242"},{"v":1323,"d":"$1,323"},{"v":1608,"d":"$1,608"},{"v":1671,"d":"$1,671"},{"v":1737,"d":"$1,737"},{"v":1863,"d":"$1,863"},{"v":1611,"d":"$1,611"},{"v":1698,"d":"$1,698"},{"v":1779,"d":"$1,779"},{"v":1896,"d":"$1,896"},{"v":2034,"d":"$2,034"},{"v":1683,"d":"$1,683"},{"v":1767,"d":"$1,767"},{"v":1917,"d":"$1,917"},{"v":1353,"d":"$1,353"},{"v":1602,"d":"$1,602"},{"v":1776,"d":"$1,776"},{"v":2085,"d":"$2,085"},{"v":2310,"d":"$2,310"},{"v":2331,"d":"$2,331"},{"v":2355,"d":"$2,355"}]
[" JOHNSTOWN","PA",{"v":840,"d":"$840"},{"v":840,"d":"$840"},{"v":840,"d":"$840"},{"v":840,"d":"$840"},{"v":927,"d":"$927"},{"v":1113,"d":"$1,113"},{"v":1155,"d":"$1,155"},{"v":1203,"d":"$1,203"},{"v":1272,"d":"$1,272"},{"v":1113,"d":"$1,113"},{"v":1176,"d":"$1,176"},{"v":1233,"d":"$1,233"},{"v":1287,"d":"$1,287"},{"v":1350,"d":"$1,350"},{"v":1167,"d":"$1,167"},{"v":1224,"d":"$1,224"},{"v":1296,"d":"$1,296"},{"v":948,"d":"$948"},{"v":1110,"d":"$1,110"},{"v":1230,"d":"$1,230"},{"v":1374,"d":"$1,374"},{"v":1479,"d":"$1,479"},{"v":1494,"d":"$1,494"},{"v":1509,"d":"$1,509"}]
[" NEWPORT","RI",{"v":1512,"d":"$1,512"},{"v":1512,"d":"$1,512"},{"v":1512,"d":"$1,512"},{"v":1512,"d":"$1,512"},{"v":1716,"d":"$1,716"},{"v":2130,"d":"$2,130"},{"v":2223,"d":"$2,223"},{"v":2325,"d":"$2,325"},{"v":2508,"d":"$2,508"},{"v":2133,"d":"$2,133"},{"v":2265,"d":"$2,265"},{"v":2391,"d":"$2,391"},{"v":2550,"d":"$2,550"},{"v":2742,"d":"$2,742"},{"v":2244,"d":"$2,244"},{"v":2373,"d":"$2,373"},{"v":2580,"d":"$2,580"},{"v":1761,"d":"$1,761"},{"v":2124,"d":"$2,124"},{"v":2385,"d":"$2,385"},{"v":2814,"d":"$2,814"},{"v":3123,"d":"$3,123"},{"v":3153,"d":"$3,153"},{"v":3183,"d":"$3,183"}]
[" PROVIDENCE","RI",{"v":1485,"d":"$1,485"},{"v":1485,"d":"$1,485"},{"v":1485,"d":"$1,485"},{"v":1485,"d":"$1,485"},{"v":1599,"d":"$1,599"},{"v":1761,"d":"$1,761"},{"v":1833,"d":"$1,833"},{"v":1908,"d":"$1,908"},{"v":2076,"d":"$2,076"},{"v":1764,"d":"$1,764"},{"v":1863,"d":"$1,863"},{"v":1956,"d":"$1,956"},{"v":2124,"d":"$2,124"},{"v":2319,"d":"$2,319"},{"v":1848,"d":"$1,848"},{"v":1941,"d":"$1,941"},{"v":2154,"d":"$2,154"},{"v":1617,"d":"$1,617"},{"v":1758,"d":"$1,758"},{"v":1953,"d":"$1,953"},{"v":2397,"d":"$2,397"},{"v":2715,"d":"$2,715"},{"v":2742,"d":"$2,742"},{"v":2769,"d":"$2,769"}]
[" BEAUFORT/PARRIS ISLAND","SC",{"v":1137,"d":"$1,137"},{"v":1137,"d":"$1,137"},{"v":1137,"d":"$1,137"},{"v":1137,"d":"$1,137"},{"v":1179,"d":"$1,179"},{"v":1446,"d":"$1,446"},{"v":1509,"d":"$1,509"},{"v":1578,"d":"$1,578"},{"v":1680,"d":"$1,680"},{"v":1449,"d":"$1,449"},{"v":1536,"d":"$1,536"},{"v":1620,"d":"$1,620"},{"v":1701,"d":"$1,701"},{"v":1797,"d":"$1,797"},{"v":1524,"d":"$1,524"},{"v":1608,"d":"$1,608"},{"v":1716,"d":"$1,716"},{"v":1209,"d":"$1,209"},{"v":1443,"d":"$1,443"},{"v":1617,"d":"$1,617"},{"v":1833,"d":"$1,833"},{"v":1986,"d":"$1,986"},{"v":2004,"d":"$2,004"},{"v":2025,"d":"$2,025"}]
[" CHARLESTON","SC",{"v":1194,"d":"$1,194"},{"v":1194,"d":"$1,194"},{"v":1194,"d":"$1,194"},{"v":1194,"d":"$1,194"},{"v":1290,"d":"$1,290"},{"v":1515,"d":"$1,515"},{"v":1572,"d":"$1,572"},{"v":1635,"d":"$1,635"},{"v":1725,"d":"$1,725"},{"v":1515,"d":"$1,515"},{"v":1599,"d":"$1,599"},{"v":1677,"d":"$1,677"},{"v":1743,"d":"$1,743"},{"v":1818,"d":"$1,818"},{"v":1587,"d":"$1,587"},{"v":1665,"d":"$1,665"},{"v":1755,"d":"$1,755"},{"v":1314,"d":"$1,314"},{"v":1509,"d":"$1,509"},{"v":1674,"d":"$1,674"},{"v":1848,"d":"$1,848"},{"v":1974,"d":"$1,974"},{"v":1992,"d":"$1,992"},{"v":2013,"d":"$2,013"}]
[" COLUMBIA/FORT JACKSON","SC",{"v":1158,"d":"$1,158"},{"v":1158,"d":"$1,158"},{"v":1158,"d":"$1,158"},{"v":1158,"d":"$1,158"},{"v":1284,"d":"$1,284"},{"v":1377,"d":"$1,377"},{"v":1461,"d":"$1,461"},{"v":1554,"d":"$1,554"},{"v":1710,"d":"$1,710"},{"v":1377,"d":"$1,377"},{"v":1500,"d":"$1,500"},{"v":1614,"d":"$1,614"},{"v":1746,"d":"$1,746"},{"v":1899,"d":"$1,899"},{"v":1482,"d":"$1,482"},{"v":1599,"d":"$1,599"},{"v":1770,"d":"$1,770"},{"v":1293,"d":"$1,293"},{"v":1374,"d":"$1,374"},{"v":1611,"d":"$1,611"},{"v":1959,"d":"$1,959"},{"v":2208,"d":"$2,208"},{"v":2229,"d":"$2,229"},{"v":2253,"d":"$2,253"}]
[" GREENVILLE","SC",{"v":972,"d":"$972"},{"v":972,"d":"$972"},{"v":972,"d":"$972"},{"v":972,"d":"$972"},{"v":1038,"d":"$1,038"},{"v":1209,"d":"$1,209"},{"v":1308,"d":"$1,308"},{"v":1413,"d":"$1,413"},{"v":1545,"d":"$1,545"},{"v":1212,"d":"$1,212"},{"v":1350,"d":"$1,350"},{"v":1479,"d":"$1,479"},{"v":1569,"d":"$1,569"},{"v":1674,"d":"$1,674"},{"v":1329,"d":"$1,329"},{"v":1461,"d":"$1,461"},{"v":1584,"d":"$1,584"},{"v":1059,"d":"$1,059"},{"v":1206,"d":"$1,206"},{"v":1476,"d":"$1,476"},{"v":1713,"d":"$1,713"},{"v":1881,"d":"$1,881"},{"v":1902,"d":"$1,902"},{"v":1920,"d":"$1,920"}]
[" MYRTLE BEACH","SC",{"v":1098,"d":"$1,098"},{"v":1098,"d":"$1,098"},{"v":1098,"d":"$1,098"},{"v":1098,"d":"$1,098"},{"v":1182,"d":"$1,182"},{"v":1329,"d":"$1,329"},{"v":1428,"d":"$1,428"},{"v":1533,"d":"$1,533"},{"v":1644,"d":"$1,644"},{"v":1332,"d":"$1,332"},{"v":1470,"d":"$1,470"},{"v":1602,"d":"$1,602"},{"v":1656,"d":"$1,656"},{"v":1722,"d":"$1,722"},{"v":1449,"d":"$1,449"},{"v":1584,"d":"$1,584"},{"v":1668,"d":"$1,668"},{"v":1197,"d":"$1,197"},{"v":1326,"d":"$1,326"},{"v":1599,"d":"$1,599"},{"v":1746,"d":"$1,746"},{"v":1851,"d":"$1,851"},{"v":1869,"d":"$1,869"},{"v":1887,"d":"$1,887"}]
[" SUMTER/SHAW AFB","SC",{"v":945,"d":"$945"},{"v":945,"d":"$945"},{"v":945,"d":"$945"},{"v":945,"d":"$945"},{"v":1020,"d":"$1,020"},{"v":1170,"d":"$1,170"},{"v":1215,"d":"$1,215"},{"v":1266,"d":"$1,266"},{"v":1386,"d":"$1,386"},{"v":1173,"d":"$1,173"},{"v":1236,"d":"$1,236"},{"v":1296,"d":"$1,296"},{"v":1422,"d":"$1,422"},{"v":1566,"d":"$1,566"},{"v":1227,"d":"$1,227"},{"v":1287,"d":"$1,287"},{"v":1443,"d":"$1,443"},{"v":1038,"d":"$1,038"},{"v":1167,"d":"$1,167"},{"v":1293,"d":"$1,293"},{"v":1623,"d":"$1,623"},{"v":1860,"d":"$1,860"},{"v":1878,"d":"$1,878"},{"v":1896,"d":"$1,896"}]
[" FLORENCE","SC",{"v":897,"d":"$897"},{"v":897,"d":"$897"},{"v":897,"d":"$897"},{"v":897,"d":"$897"},{"v":975,"d":"$975"},{"v":1137,"d":"$1,137"},{"v":1197,"d":"$1,197"},{"v":1266,"d":"$1,266"},{"v":1359,"d":"$1,359"},{"v":1137,"d":"$1,137"},{"v":1224,"d":"$1,224"},{"v":1308,"d":"$1,308"},{"v":1377,"d":"$1,377"},{"v":1458,"d":"$1,458"},{"v":1212,"d":"$1,212"},{"v":1296,"d":"$1,296"},{"v":1389,"d":"$1,389"},{"v":993,"d":"$993"},{"v":1134,"d":"$1,134"},{"v":1305,"d":"$1,305"},{"v":1491,"d":"$1,491"},{"v":1620,"d":"$1,620"},{"v":1638,"d":"$1,638"},{"v":1653,"d":"$1,653"}]
[" RAPID CITY/ELLSWORTH AFB","SD",{"v":942,"d":"$942"},{"v":942,"d":"$942"},{"v":942,"d":"$942"},{"v":942,"d":"$942"},{"v":1038,"d":"$1,038"},{"v":1320,"d":"$1,320"},{"v":1326,"d":"$1,326"},{"v":1335,"d":"$1,335"},{"v":1398,"d":"$1,398"},{"v":1320,"d":"$1,320"},{"v":1329,"d":"$1,329"},{"v":1338,"d":"$1,338"},{"v":1419,"d":"$1,419"},{"v":1515,"d":"$1,515"},{"v":1329,"d":"$1,329"},{"v":1338,"d":"$1,338"},{"v":1434,"d":"$1,434"},{"v":1068,"d":"$1,068"},{"v":1314,"d":"$1,314"},{"v":1338,"d":"$1,338"},{"v":1551,"d":"$1,551"},{"v":1707,"d":"$1,707"},{"v":1722,"d":"$1,722"},{"v":1740,"d":"$1,740"}]
[" SIOUX FALLS","SD",{"v":954,"d":"$954"},{"v":954,"d":"$954"},{"v":954,"d":"$954"},{"v":954,"d":"$954"},{"v":1071,"d":"$1,071"},{"v":1170,"d":"$1,170"},{"v":1212,"d":"$1,212"},{"v":1257,"d":"$1,257"},{"v":1350,"d":"$1,350"},{"v":1170,"d":"$1,170"},{"v":1230,"d":"$1,230"},{"v":1287,"d":"$1,287"},{"v":1374,"d":"$1,374"},{"v":1476,"d":"$1,476"},{"v":1221,"d":"$1,221"},{"v":1278,"d":"$1,278"},{"v":1389,"d":"$1,389"},{"v":1080,"d":"$1,080"},{"v":1167,"d":"$1,167"},{"v":1284,"d":"$1,284"},{"v":1515,"d":"$1,515"},{"v":1683,"d":"$1,683"},{"v":1698,"d":"$1,698"},{"v":1716,"d":"$1,716"}]
[" CHATTANOOGA","TN",{"v":981,"d":"$981"},{"v":981,"d":"$981"},{"v":981,"d":"$981"},{"v":981,"d":"$981"},{"v":1059,"d":"$1,059"},{"v":1134,"d":"$1,134"},{"v":1176,"d":"$1,176"},{"v":1218,"d":"$1,218"},{"v":1326,"d":"$1,326"},{"v":1134,"d":"$1,134"},{"v":1194,"d":"$1,194"},{"v":1248,"d":"$1,248"},{"v":1356,"d":"$1,356"},{"v":1485,"d":"$1,485"},{"v":1185,"d":"$1,185"},{"v":1239,"d":"$1,239"},{"v":1377,"d":"$1,377"},{"v":1065,"d":"$1,065"},{"v":1131,"d":"$1,131"},{"v":1245,"d":"$1,245"},{"v":1533,"d":"$1,533"},{"v":1743,"d":"$1,743"},{"v":1758,"d":"$1,758"},{"v":1776,"d":"$1,776"}]
[" KNOXVILLE","TN",{"v":990,"d":"$990"},{"v":990,"d":"$990"},{"v":990,"d":"$990"},{"v":990,"d":"$990"},{"v":1053,"d":"$1,053"},{"v":1269,"d":"$1,269"},{"v":1311,"d":"$1,311"},{"v":1353,"d":"$1,353"},{"v":1467,"d":"$1,467"},{"v":1272,"d":"$1,272"},{"v":1326,"d":"$1,326"},{"v":1380,"d":"$1,380"},{"v":1500,"d":"$1,500"},{"v":1644,"d":"$1,644"},{"v":1317,"d":"$1,317"},{"v":1371,"d":"$1,371"},{"v":1524,"d":"$1,524"},{"v":1077,"d":"$1,077"},{"v":1266,"d":"$1,266"},{"v":1377,"d":"$1,377"},{"v":1701,"d":"$1,701"},{"v":1932,"d":"$1,932"},{"v":1950,"d":"$1,950"},{"v":1971,"d":"$1,971"}]
[" MEMPHIS","TN",{"v":1146,"d":"$1,146"},{"v":1146,"d":"$1,146"},{"v":1146,"d":"$1,146"},{"v":1146,"d":"$1,146"},{"v":1263,"d":"$1,263"},{"v":1497,"d":"$1,497"},{"v":1554,"d":"$1,554"},{"v":1614,"d":"$1,614"},{"v":1707,"d":"$1,707"},{"v":1500,"d":"$1,500"},{"v":1578,"d":"$1,578"},{"v":1653,"d":"$1,653"},{"v":1728,"d":"$1,728"},{"v":1818,"d":"$1,818"},{"v":1566,"d":"$1,566"},{"v":1641,"d":"$1,641"},{"v":1743,"d":"$1,743"},{"v":1290,"d":"$1,290"},{"v":1491,"d":"$1,491"},{"v":1650,"d":"$1,650"},{"v":1851,"d":"$1,851"},{"v":1995,"d":"$1,995"},{"v":2016,"d":"$2,016"},{"v":2034,"d":"$2,034"}]
[" NASHVILLE","TN",{"v":1269,"d":"$1,269"},{"v":1269,"d":"$1,269"},{"v":1269,"d":"$1,269"},{"v":1269,"d":"$1,269"},{"v":1320,"d":"$1,320"},{"v":1356,"d":"$1,356"},{"v":1404,"d":"$1,404"},{"v":1455,"d":"$1,455"},{"v":1569,"d":"$1,569"},{"v":1356,"d":"$1,356"},{"v":1425,"d":"$1,425"},{"v":1488,"d":"$1,488"},{"v":1599,"d":"$1,599"},{"v":1728,"d":"$1,728"},{"v":1413,"d":"$1,413"},{"v":1479,"d":"$1,479"},{"v":1617,"d":"$1,617"},{"v":1323,"d":"$1,323"},{"v":1353,"d":"$1,353"},{"v":1485,"d":"$1,485"},{"v":1776,"d":"$1,776"},{"v":1983,"d":"$1,983"},{"v":2004,"d":"$2,004"},{"v":2025,"d":"$2,025"}]
[" JOHNSON CITY/KINGSPORT","TN",{"v":828,"d":"$828"},{"v":828,"d":"$828"},{"v":828,"d":"$828"},{"v":828,"d":"$828"},{"v":870,"d":"$870"},{"v":1158,"d":"$1,158"},{"v":1182,"d":"$1,182"},{"v":1206,"d":"$1,206"},{"v":1275,"d":"$1,275"},{"v":1161,"d":"$1,161"},{"v":1191,"d":"$1,191"},{"v":1224,"d":"$1,224"},{"v":1293,"d":"$1,293"},{"v":1374,"d":"$1,374"},{"v":1188,"d":"$1,188"},{"v":1218,"d":"$1,218"},{"v":1305,"d":"$1,305"},{"v":903,"d":"$903"},{"v":1152,"d":"$1,152"},{"v":1221,"d":"$1,221"},{"v":1407,"d":"$1,407"},{"v":1539,"d":"$1,539"},{"v":1554,"d":"$1,554"},{"v":1569,"d":"$1,569"}]
[" MANCHESTER/TULLAHOMA","TN",{"v":801,"d":"$801"},{"v":801,"d":"$801"},{"v":801,"d":"$801"},{"v":801,"d":"$801"},{"v":906,"d":"$906"},{"v":1092,"d":"$1,092"},{"v":1122,"d":"$1,122"},{"v":1155,"d":"$1,155"},{"v":1215,"d":"$1,215"},{"v":1092,"d":"$1,092"},{"v":1134,"d":"$1,134"},{"v":1176,"d":"$1,176"},{"v":1230,"d":"$1,230"},{"v":1293,"d":"$1,293"},{"v":1128,"d":"$1,128"},{"v":1170,"d":"$1,170"},{"v":1239,"d":"$1,239"},{"v":924,"d":"$924"},{"v":1086,"d":"$1,086"},{"v":1173,"d":"$1,173"},{"v":1317,"d":"$1,317"},{"v":1419,"d":"$1,419"},{"v":1434,"d":"$1,434"},{"v":1449,"d":"$1,449"}]
[" JACKSON","TN",{"v":882,"d":"$882"},{"v":882,"d":"$882"},{"v":882,"d":"$882"},{"v":882,"d":"$882"},{"v":921,"d":"$921"},{"v":996,"d":"$996"},{"v":1032,"d":"$1,032"},{"v":1071,"d":"$1,071"},{"v":1158,"d":"$1,158"},{"v":996,"d":"$996"},{"v":1047,"d":"$1,047"},{"v":1095,"d":"$1,095"},{"v":1182,"d":"$1,182"},{"v":1287,"d":"$1,287"},{"v":1038,"d":"$1,038"},{"v":1086,"d":"$1,086"},{"v":1200,"d":"$1,200"},{"v":930,"d":"$930"},{"v":996,"d":"$996"},{"v":1092,"d":"$1,092"},{"v":1329,"d":"$1,329"},{"v":1497,"d":"$1,497"},{"v":1512,"d":"$1,512"},{"v":1527,"d":"$1,527"}]
[" ABILENE/DYESS AFB","TX",{"v":1005,"d":"$1,005"},{"v":1005,"d":"$1,005"},{"v":1005,"d":"$1,005"},{"v":1005,"d":"$1,005"},{"v":1074,"d":"$1,074"},{"v":1191,"d":"$1,191"},{"v":1275,"d":"$1,275"},{"v":1368,"d":"$1,368"},{"v":1485,"d":"$1,485"},{"v":1191,"d":"$1,191"},{"v":1314,"d":"$1,314"},{"v":1428,"d":"$1,428"},{"v":1506,"d":"$1,506"},{"v":1602,"d":"$1,602"},{"v":1296,"d":"$1,296"},{"v":1410,"d":"$1,410"},{"v":1521,"d":"$1,521"},{"v":1089,"d":"$1,089"},{"v":1188,"d":"$1,188"},{"v":1422,"d":"$1,422"},{"v":1638,"d":"$1,638"},{"v":1788,"d":"$1,788"},{"v":1806,"d":"$1,806"},{"v":1824,"d":"$1,824"}]
[" AMARILLO","TX",{"v":897,"d":"$897"},{"v":897,"d":"$897"},{"v":897,"d":"$897"},{"v":897,"d":"$897"},{"v":984,"d":"$984"},{"v":1194,"d":"$1,194"},{"v":1236,"d":"$1,236"},{"v":1284,"d":"$1,284"},{"v":1380,"d":"$1,380"},{"v":1194,"d":"$1,194"},{"v":1257,"d":"$1,257"},{"v":1317,"d":"$1,317"},{"v":1404,"d":"$1,404"},{"v":1509,"d":"$1,509"},{"v":1248,"d":"$1,248"},{"v":1308,"d":"$1,308"},{"v":1419,"d":"$1,419"},{"v":1008,"d":"$1,008"},{"v":1188,"d":"$1,188"},{"v":1314,"d":"$1,314"},{"v":1548,"d":"$1,548"},{"v":1716,"d":"$1,716"},{"v":1731,"d":"$1,731"},{"v":1749,"d":"$1,749"}]
[" AUSTIN","TX",{"v":1143,"d":"$1,143"},{"v":1143,"d":"$1,143"},{"v":1143,"d":"$1,143"},{"v":1143,"d":"$1,143"},{"v":1257,"d":"$1,257"},{"v":1407,"d":"$1,407"},{"v":1449,"d":"$1,449"},{"v":1497,"d":"$1,497"},{"v":1599,"d":"$1,599"},{"v":1407,"d":"$1,407"},{"v":1470,"d":"$1,470"},{"v":1530,"d":"$1,530"},{"v":1623,"d":"$1,623"},{"v":1737,"d":"$1,737"},{"v":1461,"d":"$1,461"},{"v":1521,"d":"$1,521"},{"v":1641,"d":"$1,641"},{"v":1272,"d":"$1,272"},{"v":1404,"d":"$1,404"},{"v":1527,"d":"$1,527"},{"v":1779,"d":"$1,779"},{"v":1962,"d":"$1,962"},{"v":1983,"d":"$1,983"},{"v":2001,"d":"$2,001"}]
[" BEAUMONT","TX",{"v":1185,"d":"$1,185"},{"v":1185,"d":"$1,185"},{"v":1185,"d":"$1,185"},{"v":1185,"d":"$1,185"},{"v":1266,"d":"$1,266"},{"v":1611,"d":"$1,611"},{"v":1665,"d":"$1,665"},{"v":1722,"d":"$1,722"},{"v":1827,"d":"$1,827"},{"v":1614,"d":"$1,614"},{"v":1689,"d":"$1,689"},{"v":1758,"d":"$1,758"},{"v":1854,"d":"$1,854"},{"v":1965,"d":"$1,965"},{"v":1677,"d":"$1,677"},{"v":1749,"d":"$1,749"},{"v":1869,"d":"$1,869"},{"v":1302,"d":"$1,302"},{"v":1605,"d":"$1,605"},{"v":1755,"d":"$1,755"},{"v":2007,"d":"$2,007"},{"v":2187,"d":"$2,187"},{"v":2208,"d":"$2,208"},{"v":2232,"d":"$2,232"}]
[" COLLEGE STATION","TX",{"v":936,"d":"$936"},{"v":936,"d":"$936"},{"v":936,"d":"$936"},{"v":936,"d":"$936"},{"v":1047,"d":"$1,047"},{"v":1305,"d":"$1,305"},{"v":1347,"d":"$1,347"},{"v":1395,"d":"$1,395"},{"v":1527,"d":"$1,527"},{"v":1305,"d":"$1,305"},{"v":1365,"d":"$1,365"},{"v":1422,"d":"$1,422"},{"v":1569,"d":"$1,569"},{"v":1740,"d":"$1,740"},{"v":1356,"d":"$1,356"},{"v":1416,"d":"$1,416"},{"v":1593,"d":"$1,593"},{"v":1074,"d":"$1,074"},{"v":1299,"d":"$1,299"},{"v":1422,"d":"$1,422"},{"v":1806,"d":"$1,806"},{"v":2082,"d":"$2,082"},{"v":2103,"d":"$2,103"},{"v":2124,"d":"$2,124"}]
[" CORPUS CHRISTI","TX",{"v":1137,"d":"$1,137"},{"v":1137,"d":"$1,137"},{"v":1137,"d":"$1,137"},{"v":1137,"d":"$1,137"},{"v":1251,"d":"$1,251"},{"v":1617,"d":"$1,617"},{"v":1647,"d":"$1,647"},{"v":1683,"d":"$1,683"},{"v":1767,"d":"$1,767"},{"v":1617,"d":"$1,617"},{"v":1662,"d":"$1,662"},{"v":1704,"d":"$1,704"},{"v":1794,"d":"$1,794"},{"v":1899,"d":"$1,899"},{"v":1656,"d":"$1,656"},{"v":1698,"d":"$1,698"},{"v":1809,"d":"$1,809"},{"v":1293,"d":"$1,293"},{"v":1611,"d":"$1,611"},{"v":1701,"d":"$1,701"},{"v":1941,"d":"$1,941"},{"v":2112,"d":"$2,112"},{"v":2133,"d":"$2,133"},{"v":2154,"d":"$2,154"}]
[" KINGSVILLE","TX",{"v":1125,"d":"$1,125"},{"v":1125,"d":"$1,125"},{"v":1125,"d":"$1,125"},{"v":1125,"d":"$1,125"},{"v":1230,"d":"$1,230"},{"v":1584,"d":"$1,584"},{"v":1602,"d":"$1,602"},{"v":1623,"d":"$1,623"},{"v":1710,"d":"$1,710"},{"v":1584,"d":"$1,584"},{"v":1611,"d":"$1,611"},{"v":1638,"d":"$1,638"},{"v":1737,"d":"$1,737"},{"v":1857,"d":"$1,857"},{"v":1608,"d":"$1,608"},{"v":1632,"d":"$1,632"},{"v":1755,"d":"$1,755"},{"v":1269,"d":"$1,269"},{"v":1575,"d":"$1,575"},{"v":1635,"d":"$1,635"},{"v":1902,"d":"$1,902"},{"v":2097,"d":"$2,097"},{"v":2118,"d":"$2,118"},{"v":2139,"d":"$2,139"}]
[" DALLAS","TX",{"v":1320,"d":"$1,320"},{"v":1320,"d":"$1,320"},{"v":1320,"d":"$1,320"},{"v":1320,"d":"$1,320"},{"v":1425,"d":"$1,425"},{"v":1599,"d":"$1,599"},{"v":1644,"d":"$1,644"},{"v":1692,"d":"$1,692"},{"v":1779,"d":"$1,779"},{"v":1602,"d":"$1,602"},{"v":1665,"d":"$1,665"},{"v":1722,"d":"$1,722"},{"v":1800,"d":"$1,800"},{"v":1890,"d":"$1,890"},{"v":1653,"d":"$1,653"},{"v":1713,"d":"$1,713"},{"v":1815,"d":"$1,815"},{"v":1443,"d":"$1,443"},{"v":1596,"d":"$1,596"},{"v":1722,"d":"$1,722"},{"v":1926,"d":"$1,926"},{"v":2073,"d":"$2,073"},{"v":2094,"d":"$2,094"},{"v":2115,"d":"$2,115"}]
[" LAUGHLIN AFB/DEL RIO","TX",{"v":885,"d":"$885"},{"v":885,"d":"$885"},{"v":885,"d":"$885"},{"v":885,"d":"$885"},{"v":1029,"d":"$1,029"},{"v":1326,"d":"$1,326"},{"v":1338,"d":"$1,338"},{"v":1350,"d":"$1,350"},{"v":1452,"d":"$1,452"},{"v":1326,"d":"$1,326"},{"v":1344,"d":"$1,344"},{"v":1359,"d":"$1,359"},{"v":1485,"d":"$1,485"},{"v":1635,"d":"$1,635"},{"v":1341,"d":"$1,341"},{"v":1356,"d":"$1,356"},{"v":1509,"d":"$1,509"},{"v":1062,"d":"$1,062"},{"v":1320,"d":"$1,320"},{"v":1359,"d":"$1,359"},{"v":1692,"d":"$1,692"},{"v":1935,"d":"$1,935"},{"v":1953,"d":"$1,953"},{"v":1974,"d":"$1,974"}]
[" EL PASO","TX",{"v":924,"d":"$924"},{"v":924,"d":"$924"},{"v":924,"d":"$924"},{"v":924,"d":"$924"},{"v":972,"d":"$972"},{"v":1164,"d":"$1,164"},{"v":1206,"d":"$1,206"},{"v":1248,"d":"$1,248"},{"v":1314,"d":"$1,314"},{"v":1164,"d":"$1,164"},{"v":1224,"d":"$1,224"},{"v":1278,"d":"$1,278"},{"v":1326,"d":"$1,326"},{"v":1386,"d":"$1,386"},{"v":1215,"d":"$1,215"},{"v":1269,"d":"$1,269"},{"v":1338,"d":"$1,338"},{"v":993,"d":"$993"},{"v":1161,"d":"$1,161"},{"v":1275,"d":"$1,275"},{"v":1410,"d":"$1,410"},{"v":1506,"d":"$1,506"},{"v":1521,"d":"$1,521"},{"v":1536,"d":"$1,536"}]
[" BROWNSVILLE","TX",{"v":972,"d":"$972"},{"v":972,"d":"$972"},{"v":972,"d":"$972"},{"v":972,"d":"$972"},{"v":1101,"d":"$1,101"},{"v":1299,"d":"$1,299"},{"v":1356,"d":"$1,356"},{"v":1416,"d":"$1,416"},{"v":1536,"d":"$1,536"},{"v":1299,"d":"$1,299"},{"v":1380,"d":"$1,380"},{"v":1455,"d":"$1,455"},{"v":1566,"d":"$1,566"},{"v":1695,"d":"$1,695"},{"v":1368,"d":"$1,368"},{"v":1443,"d":"$1,443"},{"v":1584,"d":"$1,584"},{"v":1122,"d":"$1,122"},{"v":1293,"d":"$1,293"},{"v":1452,"d":"$1,452"},{"v":1746,"d":"$1,746"},{"v":1956,"d":"$1,956"},{"v":1974,"d":"$1,974"},{"v":1995,"d":"$1,995"}]
[" HOUSTON","TX",{"v":1389,"d":"$1,389"},{"v":1389,"d":"$1,389"},{"v":1389,"d":"$1,389"},{"v":1389,"d":"$1,389"},{"v":1557,"d":"$1,557"},{"v":1923,"d":"$1,923"},{"v":1953,"d":"$1,953"},{"v":1986,"d":"$1,986"},{"v":2091,"d":"$2,091"},{"v":1923,"d":"$1,923"},{"v":1968,"d":"$1,968"},{"v":2007,"d":"$2,007"},{"v":2121,"d":"$2,121"},{"v":2253,"d":"$2,253"},{"v":1959,"d":"$1,959"},{"v":2001,"d":"$2,001"},{"v":2142,"d":"$2,142"},{"v":1596,"d":"$1,596"},{"v":1914,"d":"$1,914"},{"v":2007,"d":"$2,007"},{"v":2304,"d":"$2,304"},{"v":2520,"d":"$2,520"},{"v":2544,"d":"$2,544"},{"v":2571,"d":"$2,571"}]
[" LUBBOCK/REESE AFB","TX",{"v":987,"d":"$987"},{"v":987,"d":"$987"},{"v":987,"d":"$987"},{"v":987,"d":"$987"},{"v":1068,"d":"$1,068"},{"v":1206,"d":"$1,206"},{"v":1251,"d":"$1,251"},{"v":1296,"d":"$1,296"},{"v":1374,"d":"$1,374"},{"v":1209,"d":"$1,209"},{"v":1269,"d":"$1,269"},{"v":1326,"d":"$1,326"},{"v":1392,"d":"$1,392"},{"v":1470,"d":"$1,470"},{"v":1260,"d":"$1,260"},{"v":1320,"d":"$1,320"},{"v":1404,"d":"$1,404"},{"v":1083,"d":"$1,083"},{"v":1203,"d":"$1,203"},{"v":1326,"d":"$1,326"},{"v":1500,"d":"$1,500"},{"v":1626,"d":"$1,626"},{"v":1644,"d":"$1,644"},{"v":1659,"d":"$1,659"}]
[" GOODFELLOW AFB","TX",{"v":960,"d":"$960"},{"v":960,"d":"$960"},{"v":960,"d":"$960"},{"v":960,"d":"$960"},{"v":1053,"d":"$1,053"},{"v":1170,"d":"$1,170"},{"v":1251,"d":"$1,251"},{"v":1341,"d":"$1,341"},{"v":1437,"d":"$1,437"},{"v":1170,"d":"$1,170"},{"v":1290,"d":"$1,290"},{"v":1398,"d":"$1,398"},{"v":1452,"d":"$1,452"},{"v":1515,"d":"$1,515"},{"v":1269,"d":"$1,269"},{"v":1383,"d":"$1,383"},{"v":1461,"d":"$1,461"},{"v":1065,"d":"$1,065"},{"v":1167,"d":"$1,167"},{"v":1395,"d":"$1,395"},{"v":1539,"d":"$1,539"},{"v":1641,"d":"$1,641"},{"v":1659,"d":"$1,659"},{"v":1674,"d":"$1,674"}]
[" SAN ANTONIO","TX",{"v":1179,"d":"$1,179"},{"v":1179,"d":"$1,179"},{"v":1179,"d":"$1,179"},{"v":1179,"d":"$1,179"},{"v":1275,"d":"$1,275"},{"v":1347,"d":"$1,347"},{"v":1425,"d":"$1,425"},{"v":1506,"d":"$1,506"},{"v":1602,"d":"$1,602"},{"v":1350,"d":"$1,350"},{"v":1458,"d":"$1,458"},{"v":1557,"d":"$1,557"},{"v":1617,"d":"$1,617"},{"v":1689,"d":"$1,689"},{"v":1440,"d":"$1,440"},{"v":1542,"d":"$1,542"},{"v":1629,"d":"$1,629"},{"v":1284,"d":"$1,284"},{"v":1347,"d":"$1,347"},{"v":1554,"d":"$1,554"},{"v":1716,"d":"$1,716"},{"v":1827,"d":"$1,827"},{"v":1845,"d":"$1,845"},{"v":1866,"d":"$1,866"}]
[" FORT HOOD","TX",{"v":957,"d":"$957"},{"v":957,"d":"$957"},{"v":957,"d":"$957"},{"v":957,"d":"$957"},{"v":1014,"d":"$1,014"},{"v":1116,"d":"$1,116"},{"v":1224,"d":"$1,224"},{"v":1341,"d":"$1,341"},{"v":1449,"d":"$1,449"},{"v":1119,"d":"$1,119"},{"v":1272,"d":"$1,272"},{"v":1416,"d":"$1,416"},{"v":1461,"d":"$1,461"},{"v":1512,"d":"$1,512"},{"v":1248,"d":"$1,248"},{"v":1395,"d":"$1,395"},{"v":1470,"d":"$1,470"},{"v":1026,"d":"$1,026"},{"v":1113,"d":"$1,113"},{"v":1410,"d":"$1,410"},{"v":1533,"d":"$1,533"},{"v":1617,"d":"$1,617"},{"v":1632,"d":"$1,632"},{"v":1650,"d":"$1,650"}]
[" WICHITA FLS/SHEPPARD AFB","TX",{"v":966,"d":"$966"},{"v":966,"d":"$966"},{"v":966,"d":"$966"},{"v":966,"d":"$966"},{"v":1080,"d":"$1,080"},{"v":1338,"d":"$1,338"},{"v":1431,"d":"$1,431"},{"v":1533,"d":"$1,533"},{"v":1671,"d":"$1,671"},{"v":1341,"d":"$1,341"},{"v":1473,"d":"$1,473"},{"v":1599,"d":"$1,599"},{"v":1701,"d":"$1,701"},{"v":1818,"d":"$1,818"},{"v":1452,"d":"$1,452"},{"v":1581,"d":"$1,581"},{"v":1719,"d":"$1,719"},{"v":1110,"d":"$1,110"},{"v":1332,"d":"$1,332"},{"v":1593,"d":"$1,593"},{"v":1866,"d":"$1,866"},{"v":2058,"d":"$2,058"},{"v":2079,"d":"$2,079"},{"v":2100,"d":"$2,100"}]
[" FORT WORTH","TX",{"v":1137,"d":"$1,137"},{"v":1137,"d":"$1,137"},{"v":1137,"d":"$1,137"},{"v":1137,"d":"$1,137"},{"v":1236,"d":"$1,236"},{"v":1377,"d":"$1,377"},{"v":1467,"d":"$1,467"},{"v":1563,"d":"$1,563"},{"v":1677,"d":"$1,677"},{"v":1380,"d":"$1,380"},{"v":1506,"d":"$1,506"},{"v":1623,"d":"$1,623"},{"v":1698,"d":"$1,698"},{"v":1788,"d":"$1,788"},{"v":1485,"d":"$1,485"},{"v":1605,"d":"$1,605"},{"v":1713,"d":"$1,713"},{"v":1251,"d":"$1,251"},{"v":1374,"d":"$1,374"},{"v":1617,"d":"$1,617"},{"v":1821,"d":"$1,821"},{"v":1965,"d":"$1,965"},{"v":1983,"d":"$1,983"},{"v":2004,"d":"$2,004"}]
[" TYLER","TX",{"v":1059,"d":"$1,059"},{"v":1059,"d":"$1,059"},{"v":1059,"d":"$1,059"},{"v":1059,"d":"$1,059"},{"v":1131,"d":"$1,131"},{"v":1413,"d":"$1,413"},{"v":1437,"d":"$1,437"},{"v":1464,"d":"$1,464"},{"v":1590,"d":"$1,590"},{"v":1413,"d":"$1,413"},{"v":1449,"d":"$1,449"},{"v":1482,"d":"$1,482"},{"v":1629,"d":"$1,629"},{"v":1806,"d":"$1,806"},{"v":1443,"d":"$1,443"},{"v":1476,"d":"$1,476"},{"v":1656,"d":"$1,656"},{"v":1164,"d":"$1,164"},{"v":1407,"d":"$1,407"},{"v":1479,"d":"$1,479"},{"v":1875,"d":"$1,875"},{"v":2160,"d":"$2,160"},{"v":2181,"d":"$2,181"},{"v":2202,"d":"$2,202"}]
[" WACO","TX",{"v":972,"d":"$972"},{"v":972,"d":"$972"},{"v":972,"d":"$972"},{"v":972,"d":"$972"},{"v":1041,"d":"$1,041"},{"v":1272,"d":"$1,272"},{"v":1317,"d":"$1,317"},{"v":1365,"d":"$1,365"},{"v":1491,"d":"$1,491"},{"v":1272,"d":"$1,272"},{"v":1338,"d":"$1,338"},{"v":1398,"d":"$1,398"},{"v":1527,"d":"$1,527"},{"v":1677,"d":"$1,677"},{"v":1326,"d":"$1,326"},{"v":1389,"d":"$1,389"},{"v":1548,"d":"$1,548"},{"v":1068,"d":"$1,068"},{"v":1266,"d":"$1,266"},{"v":1395,"d":"$1,395"},{"v":1737,"d":"$1,737"},{"v":1983,"d":"$1,983"},{"v":2004,"d":"$2,004"},{"v":2022,"d":"$2,022"}]
[" OGDEN/HILL AFB","UT",{"v":942,"d":"$942"},{"v":942,"d":"$942"},{"v":942,"d":"$942"},{"v":942,"d":"$942"},{"v":969,"d":"$969"},{"v":1152,"d":"$1,152"},{"v":1194,"d":"$1,194"},{"v":1239,"d":"$1,239"},{"v":1305,"d":"$1,305"},{"v":1152,"d":"$1,152"},{"v":1212,"d":"$1,212"},{"v":1266,"d":"$1,266"},{"v":1320,"d":"$1,320"},{"v":1386,"d":"$1,386"},{"v":1203,"d":"$1,203"},{"v":1257,"d":"$1,257"},{"v":1329,"d":"$1,329"},{"v":990,"d":"$990"},{"v":1149,"d":"$1,149"},{"v":1263,"d":"$1,263"},{"v":1410,"d":"$1,410"},{"v":1512,"d":"$1,512"},{"v":1527,"d":"$1,527"},{"v":1542,"d":"$1,542"}]
[" SALT LAKE CITY","UT",{"v":1032,"d":"$1,032"},{"v":1032,"d":"$1,032"},{"v":1032,"d":"$1,032"},{"v":1032,"d":"$1,032"},{"v":1137,"d":"$1,137"},{"v":1305,"d":"$1,305"},{"v":1359,"d":"$1,359"},{"v":1419,"d":"$1,419"},{"v":1491,"d":"$1,491"},{"v":1308,"d":"$1,308"},{"v":1383,"d":"$1,383"},{"v":1455,"d":"$1,455"},{"v":1503,"d":"$1,503"},{"v":1560,"d":"$1,560"},{"v":1371,"d":"$1,371"},{"v":1446,"d":"$1,446"},{"v":1512,"d":"$1,512"},{"v":1155,"d":"$1,155"},{"v":1302,"d":"$1,302"},{"v":1452,"d":"$1,452"},{"v":1581,"d":"$1,581"},{"v":1671,"d":"$1,671"},{"v":1689,"d":"$1,689"},{"v":1704,"d":"$1,704"}]
[" PROVO","UT",{"v":963,"d":"$963"},{"v":963,"d":"$963"},{"v":963,"d":"$963"},{"v":963,"d":"$963"},{"v":1056,"d":"$1,056"},{"v":1146,"d":"$1,146"},{"v":1248,"d":"$1,248"},{"v":1359,"d":"$1,359"},{"v":1470,"d":"$1,470"},{"v":1149,"d":"$1,149"},{"v":1293,"d":"$1,293"},{"v":1428,"d":"$1,428"},{"v":1485,"d":"$1,485"},{"v":1551,"d":"$1,551"},{"v":1269,"d":"$1,269"},{"v":1410,"d":"$1,410"},{"v":1494,"d":"$1,494"},{"v":1065,"d":"$1,065"},{"v":1143,"d":"$1,143"},{"v":1422,"d":"$1,422"},{"v":1575,"d":"$1,575"},{"v":1680,"d":"$1,680"},{"v":1698,"d":"$1,698"},{"v":1716,"d":"$1,716"}]
[" CHARLOTTESVILLE","VA",{"v":1230,"d":"$1,230"},{"v":1230,"d":"$1,230"},{"v":1230,"d":"$1,230"},{"v":1230,"d":"$1,230"},{"v":1308,"d":"$1,308"},{"v":1467,"d":"$1,467"},{"v":1584,"d":"$1,584"},{"v":1710,"d":"$1,710"},{"v":1857,"d":"$1,857"},{"v":1470,"d":"$1,470"},{"v":1635,"d":"$1,635"},{"v":1788,"d":"$1,788"},{"v":1881,"d":"$1,881"},{"v":1989,"d":"$1,989"},{"v":1608,"d":"$1,608"},{"v":1767,"d":"$1,767"},{"v":1896,"d":"$1,896"},{"v":1326,"d":"$1,326"},{"v":1464,"d":"$1,464"},{"v":1782,"d":"$1,782"},{"v":2031,"d":"$2,031"},{"v":2205,"d":"$2,205"},{"v":2226,"d":"$2,226"},{"v":2250,"d":"$2,250"}]
[" QUANTICO/WOODBRIDGE","VA",{"v":1398,"d":"$1,398"},{"v":1398,"d":"$1,398"},{"v":1398,"d":"$1,398"},{"v":1398,"d":"$1,398"},{"v":1446,"d":"$1,446"},{"v":1686,"d":"$1,686"},{"v":1773,"d":"$1,773"},{"v":1869,"d":"$1,869"},{"v":2004,"d":"$2,004"},{"v":1689,"d":"$1,689"},{"v":1812,"d":"$1,812"},{"v":1929,"d":"$1,929"},{"v":2034,"d":"$2,034"},{"v":2160,"d":"$2,160"},{"v":1794,"d":"$1,794"},{"v":1911,"d":"$1,911"},{"v":2052,"d":"$2,052"},{"v":1473,"d":"$1,473"},{"v":1683,"d":"$1,683"},{"v":1923,"d":"$1,923"},{"v":2208,"d":"$2,208"},{"v":2409,"d":"$2,409"},{"v":2433,"d":"$2,433"},{"v":2457,"d":"$2,457"}]
[" HAMPTON/NEWPORT NEWS","VA",{"v":1260,"d":"$1,260"},{"v":1260,"d":"$1,260"},{"v":1260,"d":"$1,260"},{"v":1260,"d":"$1,260"},{"v":1374,"d":"$1,374"},{"v":1611,"d":"$1,611"},{"v":1752,"d":"$1,752"},{"v":1908,"d":"$1,908"},{"v":2052,"d":"$2,052"},{"v":1614,"d":"$1,614"},{"v":1818,"d":"$1,818"},{"v":2007,"d":"$2,007"},{"v":2070,"d":"$2,070"},{"v":2142,"d":"$2,142"},{"v":1785,"d":"$1,785"},{"v":1980,"d":"$1,980"},{"v":2082,"d":"$2,082"},{"v":1398,"d":"$1,398"},{"v":1605,"d":"$1,605"},{"v":2001,"d":"$2,001"},{"v":2172,"d":"$2,172"},{"v":2289,"d":"$2,289"},{"v":2313,"d":"$2,313"},{"v":2337,"d":"$2,337"}]
[" NORFOLK/PORTSMOUTH","VA",{"v":1359,"d":"$1,359"},{"v":1359,"d":"$1,359"},{"v":1359,"d":"$1,359"},{"v":1359,"d":"$1,359"},{"v":1452,"d":"$1,452"},{"v":1752,"d":"$1,752"},{"v":1785,"d":"$1,785"},{"v":1821,"d":"$1,821"},{"v":1926,"d":"$1,926"},{"v":1752,"d":"$1,752"},{"v":1800,"d":"$1,800"},{"v":1842,"d":"$1,842"},{"v":1956,"d":"$1,956"},{"v":2091,"d":"$2,091"},{"v":1791,"d":"$1,791"},{"v":1836,"d":"$1,836"},{"v":1977,"d":"$1,977"},{"v":1485,"d":"$1,485"},{"v":1746,"d":"$1,746"},{"v":1842,"d":"$1,842"},{"v":2142,"d":"$2,142"},{"v":2358,"d":"$2,358"},{"v":2382,"d":"$2,382"},{"v":2406,"d":"$2,406"}]
[" PETERSBERG/FORT LEE","VA",{"v":1161,"d":"$1,161"},{"v":1161,"d":"$1,161"},{"v":1161,"d":"$1,161"},{"v":1161,"d":"$1,161"},{"v":1182,"d":"$1,182"},{"v":1197,"d":"$1,197"},{"v":1257,"d":"$1,257"},{"v":1320,"d":"$1,320"},{"v":1419,"d":"$1,419"},{"v":1200,"d":"$1,200"},{"v":1281,"d":"$1,281"},{"v":1359,"d":"$1,359"},{"v":1443,"d":"$1,443"},{"v":1539,"d":"$1,539"},{"v":1269,"d":"$1,269"},{"v":1350,"d":"$1,350"},{"v":1458,"d":"$1,458"},{"v":1182,"d":"$1,182"},{"v":1197,"d":"$1,197"},{"v":1356,"d":"$1,356"},{"v":1575,"d":"$1,575"},{"v":1731,"d":"$1,731"},{"v":1749,"d":"$1,749"},{"v":1767,"d":"$1,767"}]
[" RICHMOND","VA",{"v":1245,"d":"$1,245"},{"v":1245,"d":"$1,245"},{"v":1245,"d":"$1,245"},{"v":1245,"d":"$1,245"},{"v":1338,"d":"$1,338"},{"v":1479,"d":"$1,479"},{"v":1524,"d":"$1,524"},{"v":1575,"d":"$1,575"},{"v":1680,"d":"$1,680"},{"v":1479,"d":"$1,479"},{"v":1545,"d":"$1,545"},{"v":1605,"d":"$1,605"},{"v":1707,"d":"$1,707"},{"v":1827,"d":"$1,827"},{"v":1533,"d":"$1,533"},{"v":1596,"d":"$1,596"},{"v":1725,"d":"$1,725"},{"v":1353,"d":"$1,353"},{"v":1476,"d":"$1,476"},{"v":1602,"d":"$1,602"},{"v":1872,"d":"$1,872"},{"v":2064,"d":"$2,064"},{"v":2085,"d":"$2,085"},{"v":2106,"d":"$2,106"}]
[" WARRENTON/VINT HILL FARM","VA",{"v":1506,"d":"$1,506"},{"v":1506,"d":"$1,506"},{"v":1506,"d":"$1,506"},{"v":1506,"d":"$1,506"},{"v":1704,"d":"$1,704"},{"v":2070,"d":"$2,070"},{"v":2103,"d":"$2,103"},{"v":2139,"d":"$2,139"},{"v":2226,"d":"$2,226"},{"v":2070,"d":"$2,070"},{"v":2118,"d":"$2,118"},{"v":2160,"d":"$2,160"},{"v":2253,"d":"$2,253"},{"v":2361,"d":"$2,361"},{"v":2109,"d":"$2,109"},{"v":2154,"d":"$2,154"},{"v":2268,"d":"$2,268"},{"v":1746,"d":"$1,746"},{"v":2064,"d":"$2,064"},{"v":2160,"d":"$2,160"},{"v":2403,"d":"$2,403"},{"v":2577,"d":"$2,577"},{"v":2601,"d":"$2,601"},{"v":2628,"d":"$2,628"}]
[" LEXINGTON","VA",{"v":993,"d":"$993"},{"v":993,"d":"$993"},{"v":993,"d":"$993"},{"v":993,"d":"$993"},{"v":1185,"d":"$1,185"},{"v":1266,"d":"$1,266"},{"v":1335,"d":"$1,335"},{"v":1410,"d":"$1,410"},{"v":1527,"d":"$1,527"},{"v":1269,"d":"$1,269"},{"v":1365,"d":"$1,365"},{"v":1458,"d":"$1,458"},{"v":1551,"d":"$1,551"},{"v":1662,"d":"$1,662"},{"v":1350,"d":"$1,350"},{"v":1446,"d":"$1,446"},{"v":1569,"d":"$1,569"},{"v":1194,"d":"$1,194"},{"v":1266,"d":"$1,266"},{"v":1455,"d":"$1,455"},{"v":1707,"d":"$1,707"},{"v":1884,"d":"$1,884"},{"v":1905,"d":"$1,905"},{"v":1923,"d":"$1,923"}]
[" ROANOKE","VA",{"v":897,"d":"$897"},{"v":897,"d":"$897"},{"v":897,"d":"$897"},{"v":897,"d":"$897"},{"v":987,"d":"$987"},{"v":1152,"d":"$1,152"},{"v":1212,"d":"$1,212"},{"v":1278,"d":"$1,278"},{"v":1389,"d":"$1,389"},{"v":1155,"d":"$1,155"},{"v":1239,"d":"$1,239"},{"v":1320,"d":"$1,320"},{"v":1416,"d":"$1,416"},{"v":1524,"d":"$1,524"},{"v":1227,"d":"$1,227"},{"v":1308,"d":"$1,308"},{"v":1431,"d":"$1,431"},{"v":1005,"d":"$1,005"},{"v":1149,"d":"$1,149"},{"v":1317,"d":"$1,317"},{"v":1569,"d":"$1,569"},{"v":1746,"d":"$1,746"},{"v":1764,"d":"$1,764"},{"v":1782,"d":"$1,782"}]
[" FORT A. P. HILL","VA",{"v":1224,"d":"$1,224"},{"v":1224,"d":"$1,224"},{"v":1224,"d":"$1,224"},{"v":1224,"d":"$1,224"},{"v":1326,"d":"$1,326"},{"v":1710,"d":"$1,710"},{"v":1746,"d":"$1,746"},{"v":1785,"d":"$1,785"},{"v":1872,"d":"$1,872"},{"v":1713,"d":"$1,713"},{"v":1761,"d":"$1,761"},{"v":1809,"d":"$1,809"},{"v":1896,"d":"$1,896"},{"v":1995,"d":"$1,995"},{"v":1755,"d":"$1,755"},{"v":1803,"d":"$1,803"},{"v":1911,"d":"$1,911"},{"v":1368,"d":"$1,368"},{"v":1704,"d":"$1,704"},{"v":1806,"d":"$1,806"},{"v":2034,"d":"$2,034"},{"v":2199,"d":"$2,199"},{"v":2220,"d":"$2,220"},{"v":2244,"d":"$2,244"}]
[" BURLINGTON","VT",{"v":1533,"d":"$1,533"},{"v":1533,"d":"$1,533"},{"v":1533,"d":"$1,533"},{"v":1533,"d":"$1,533"},{"v":1764,"d":"$1,764"},{"v":1878,"d":"$1,878"},{"v":1950,"d":"$1,950"},{"v":2031,"d":"$2,031"},{"v":2154,"d":"$2,154"},{"v":1881,"d":"$1,881"},{"v":1983,"d":"$1,983"},{"v":2079,"d":"$2,079"},{"v":2181,"d":"$2,181"},{"v":2298,"d":"$2,298"},{"v":1968,"d":"$1,968"},{"v":2067,"d":"$2,067"},{"v":2199,"d":"$2,199"},{"v":1776,"d":"$1,776"},{"v":1875,"d":"$1,875"},{"v":2076,"d":"$2,076"},{"v":2343,"d":"$2,343"},{"v":2535,"d":"$2,535"},{"v":2559,"d":"$2,559"},{"v":2586,"d":"$2,586"}]
[" BREMERTON","WA",{"v":1125,"d":"$1,125"},{"v":1125,"d":"$1,125"},{"v":1125,"d":"$1,125"},{"v":1125,"d":"$1,125"},{"v":1230,"d":"$1,230"},{"v":1365,"d":"$1,365"},{"v":1446,"d":"$1,446"},{"v":1536,"d":"$1,536"},{"v":1653,"d":"$1,653"},{"v":1368,"d":"$1,368"},{"v":1485,"d":"$1,485"},{"v":1593,"d":"$1,593"},{"v":1674,"d":"$1,674"},{"v":1770,"d":"$1,770"},{"v":1464,"d":"$1,464"},{"v":1578,"d":"$1,578"},{"v":1689,"d":"$1,689"},{"v":1245,"d":"$1,245"},{"v":1362,"d":"$1,362"},{"v":1587,"d":"$1,587"},{"v":1809,"d":"$1,809"},{"v":1962,"d":"$1,962"},{"v":1983,"d":"$1,983"},{"v":2001,"d":"$2,001"}]
[" EVERETT","WA",{"v":1236,"d":"$1,236"},{"v":1236,"d":"$1,236"},{"v":1236,"d":"$1,236"},{"v":1236,"d":"$1,236"},{"v":1320,"d":"$1,320"},{"v":1548,"d":"$1,548"},{"v":1632,"d":"$1,632"},{"v":1725,"d":"$1,725"},{"v":1833,"d":"$1,833"},{"v":1551,"d":"$1,551"},{"v":1671,"d":"$1,671"},{"v":1782,"d":"$1,782"},{"v":1854,"d":"$1,854"},{"v":1938,"d":"$1,938"},{"v":1653,"d":"$1,653"},{"v":1767,"d":"$1,767"},{"v":1866,"d":"$1,866"},{"v":1347,"d":"$1,347"},{"v":1545,"d":"$1,545"},{"v":1779,"d":"$1,779"},{"v":1968,"d":"$1,968"},{"v":2103,"d":"$2,103"},{"v":2124,"d":"$2,124"},{"v":2145,"d":"$2,145"}]
[" PORT ANGELES","WA",{"v":1005,"d":"$1,005"},{"v":1005,"d":"$1,005"},{"v":1005,"d":"$1,005"},{"v":1005,"d":"$1,005"},{"v":1104,"d":"$1,104"},{"v":1290,"d":"$1,290"},{"v":1350,"d":"$1,350"},{"v":1419,"d":"$1,419"},{"v":1485,"d":"$1,485"},{"v":1293,"d":"$1,293"},{"v":1377,"d":"$1,377"},{"v":1461,"d":"$1,461"},{"v":1497,"d":"$1,497"},{"v":1539,"d":"$1,539"},{"v":1365,"d":"$1,365"},{"v":1449,"d":"$1,449"},{"v":1503,"d":"$1,503"},{"v":1125,"d":"$1,125"},{"v":1287,"d":"$1,287"},{"v":1458,"d":"$1,458"},{"v":1554,"d":"$1,554"},{"v":1623,"d":"$1,623"},{"v":1638,"d":"$1,638"},{"v":1653,"d":"$1,653"}]
[" SEATTLE","WA",{"v":1398,"d":"$1,398"},{"v":1398,"d":"$1,398"},{"v":1398,"d":"$1,398"},{"v":1398,"d":"$1,398"},{"v":1566,"d":"$1,566"},{"v":1881,"d":"$1,881"},{"v":1950,"d":"$1,950"},{"v":2028,"d":"$2,028"},{"v":2109,"d":"$2,109"},{"v":1884,"d":"$1,884"},{"v":1983,"d":"$1,983"},{"v":2076,"d":"$2,076"},{"v":2121,"d":"$2,121"},{"v":2172,"d":"$2,172"},{"v":1968,"d":"$1,968"},{"v":2061,"d":"$2,061"},{"v":2130,"d":"$2,130"},{"v":1602,"d":"$1,602"},{"v":1875,"d":"$1,875"},{"v":2073,"d":"$2,073"},{"v":2193,"d":"$2,193"},{"v":2277,"d":"$2,277"},{"v":2301,"d":"$2,301"},{"v":2325,"d":"$2,325"}]
[" SPOKANE","WA",{"v":951,"d":"$951"},{"v":951,"d":"$951"},{"v":951,"d":"$951"},{"v":951,"d":"$951"},{"v":1059,"d":"$1,059"},{"v":1158,"d":"$1,158"},{"v":1218,"d":"$1,218"},{"v":1284,"d":"$1,284"},{"v":1383,"d":"$1,383"},{"v":1161,"d":"$1,161"},{"v":1245,"d":"$1,245"},{"v":1326,"d":"$1,326"},{"v":1404,"d":"$1,404"},{"v":1494,"d":"$1,494"},{"v":1233,"d":"$1,233"},{"v":1314,"d":"$1,314"},{"v":1419,"d":"$1,419"},{"v":1068,"d":"$1,068"},{"v":1158,"d":"$1,158"},{"v":1323,"d":"$1,323"},{"v":1530,"d":"$1,530"},{"v":1677,"d":"$1,677"},{"v":1695,"d":"$1,695"},{"v":1713,"d":"$1,713"}]
[" TACOMA","WA",{"v":1263,"d":"$1,263"},{"v":1263,"d":"$1,263"},{"v":1263,"d":"$1,263"},{"v":1263,"d":"$1,263"},{"v":1395,"d":"$1,395"},{"v":1635,"d":"$1,635"},{"v":1743,"d":"$1,743"},{"v":1860,"d":"$1,860"},{"v":1983,"d":"$1,983"},{"v":1638,"d":"$1,638"},{"v":1791,"d":"$1,791"},{"v":1935,"d":"$1,935"},{"v":2004,"d":"$2,004"},{"v":2082,"d":"$2,082"},{"v":1767,"d":"$1,767"},{"v":1914,"d":"$1,914"},{"v":2016,"d":"$2,016"},{"v":1422,"d":"$1,422"},{"v":1629,"d":"$1,629"},{"v":1929,"d":"$1,929"},{"v":2115,"d":"$2,115"},{"v":2244,"d":"$2,244"},{"v":2265,"d":"$2,265"},{"v":2289,"d":"$2,289"}]
[" WHIDBEY ISLAND","WA",{"v":1056,"d":"$1,056"},{"v":1056,"d":"$1,056"},{"v":1056,"d":"$1,056"},{"v":1056,"d":"$1,056"},{"v":1131,"d":"$1,131"},{"v":1362,"d":"$1,362"},{"v":1464,"d":"$1,464"},{"v":1578,"d":"$1,578"},{"v":1668,"d":"$1,668"},{"v":1365,"d":"$1,365"},{"v":1512,"d":"$1,512"},{"v":1647,"d":"$1,647"},{"v":1677,"d":"$1,677"},{"v":1707,"d":"$1,707"},{"v":1488,"d":"$1,488"},{"v":1629,"d":"$1,629"},{"v":1680,"d":"$1,680"},{"v":1158,"d":"$1,158"},{"v":1356,"d":"$1,356"},{"v":1641,"d":"$1,641"},{"v":1722,"d":"$1,722"},{"v":1773,"d":"$1,773"},{"v":1791,"d":"$1,791"},{"v":1809,"d":"$1,809"}]
[" YAKIMA","WA",{"v":1071,"d":"$1,071"},{"v":1071,"d":"$1,071"},{"v":1071,"d":"$1,071"},{"v":1071,"d":"$1,071"},{"v":1230,"d":"$1,230"},{"v":1308,"d":"$1,308"},{"v":1359,"d":"$1,359"},{"v":1413,"d":"$1,413"},{"v":1488,"d":"$1,488"},{"v":1308,"d":"$1,308"},{"v":1380,"d":"$1,380"},{"v":1446,"d":"$1,446"},{"v":1503,"d":"$1,503"},{"v":1566,"d":"$1,566"},{"v":1368,"d":"$1,368"},{"v":1437,"d":"$1,437"},{"v":1512,"d":"$1,512"},{"v":1239,"d":"$1,239"},{"v":1305,"d":"$1,305"},{"v":1443,"d":"$1,443"},{"v":1593,"d":"$1,593"},{"v":1698,"d":"$1,698"},{"v":1713,"d":"$1,713"},{"v":1731,"d":"$1,731"}]
[" ABERDEEN","WA",{"v":870,"d":"$870"},{"v":870,"d":"$870"},{"v":870,"d":"$870"},{"v":870,"d":"$870"},{"v":954,"d":"$954"},{"v":1062,"d":"$1,062"},{"v":1119,"d":"$1,119"},{"v":1179,"d":"$1,179"},{"v":1236,"d":"$1,236"},{"v":1065,"d":"$1,065"},{"v":1143,"d":"$1,143"},{"v":1218,"d":"$1,218"},{"v":1245,"d":"$1,245"},{"v":1272,"d":"$1,272"},{"v":1131,"d":"$1,131"},{"v":1209,"d":"$1,209"},{"v":1248,"d":"$1,248"},{"v":966,"d":"$966"},{"v":1062,"d":"$1,062"},{"v":1215,"d":"$1,215"},{"v":1284,"d":"$1,284"},{"v":1332,"d":"$1,332"},{"v":1344,"d":"$1,344"},{"v":1359,"d":"$1,359"}]
[" MADISON","WI",{"v":1224,"d":"$1,224"},{"v":1224,"d":"$1,224"},{"v":1224,"d":"$1,224"},{"v":1224,"d":"$1,224"},{"v":1311,"d":"$1,311"},{"v":1506,"d":"$1,506"},{"v":1575,"d":"$1,575"},{"v":1647,"d":"$1,647"},{"v":1758,"d":"$1,758"},{"v":1509,"d":"$1,509"},{"v":1605,"d":"$1,605"},{"v":1692,"d":"$1,692"},{"v":1785,"d":"$1,785"},{"v":1893,"d":"$1,893"},{"v":1590,"d":"$1,590"},{"v":1680,"d":"$1,680"},{"v":1800,"d":"$1,800"},{"v":1332,"d":"$1,332"},{"v":1503,"d":"$1,503"},{"v":1689,"d":"$1,689"},{"v":1935,"d":"$1,935"},{"v":2109,"d":"$2,109"},{"v":2130,"d":"$2,130"},{"v":2151,"d":"$2,151"}]
[" MILWAUKEE","WI",{"v":1275,"d":"$1,275"},{"v":1275,"d":"$1,275"},{"v":1275,"d":"$1,275"},{"v":1275,"d":"$1,275"},{"v":1362,"d":"$1,362"},{"v":1491,"d":"$1,491"},{"v":1566,"d":"$1,566"},{"v":1650,"d":"$1,650"},{"v":1755,"d":"$1,755"},{"v":1491,"d":"$1,491"},{"v":1599,"d":"$1,599"},{"v":1701,"d":"$1,701"},{"v":1776,"d":"$1,776"},{"v":1866,"d":"$1,866"},{"v":1584,"d":"$1,584"},{"v":1686,"d":"$1,686"},{"v":1791,"d":"$1,791"},{"v":1377,"d":"$1,377"},{"v":1488,"d":"$1,488"},{"v":1698,"d":"$1,698"},{"v":1899,"d":"$1,899"},{"v":2040,"d":"$2,040"},{"v":2061,"d":"$2,061"},{"v":2082,"d":"$2,082"}]
[" SPARTA/FORT MCCOY","WI",{"v":918,"d":"$918"},{"v":918,"d":"$918"},{"v":918,"d":"$918"},{"v":918,"d":"$918"},{"v":1032,"d":"$1,032"},{"v":1245,"d":"$1,245"},{"v":1275,"d":"$1,275"},{"v":1308,"d":"$1,308"},{"v":1344,"d":"$1,344"},{"v":1245,"d":"$1,245"},{"v":1287,"d":"$1,287"},{"v":1326,"d":"$1,326"},{"v":1353,"d":"$1,353"},{"v":1383,"d":"$1,383"},{"v":1281,"d":"$1,281"},{"v":1320,"d":"$1,320"},{"v":1356,"d":"$1,356"},{"v":1056,"d":"$1,056"},{"v":1242,"d":"$1,242"},{"v":1326,"d":"$1,326"},{"v":1392,"d":"$1,392"},{"v":1440,"d":"$1,440"},{"v":1455,"d":"$1,455"},{"v":1470,"d":"$1,470"}]
[" OSHKOSH/APPLETON","WI",{"v":822,"d":"$822"},{"v":822,"d":"$822"},{"v":822,"d":"$822"},{"v":822,"d":"$822"},{"v":903,"d":"$903"},{"v":1083,"d":"$1,083"},{"v":1122,"d":"$1,122"},{"v":1167,"d":"$1,167"},{"v":1251,"d":"$1,251"},{"v":1086,"d":"$1,086"},{"v":1140,"d":"$1,140"},{"v":1194,"d":"$1,194"},{"v":1272,"d":"$1,272"},{"v":1368,"d":"$1,368"},{"v":1131,"d":"$1,131"},{"v":1185,"d":"$1,185"},{"v":1287,"d":"$1,287"},{"v":924,"d":"$924"},{"v":1080,"d":"$1,080"},{"v":1191,"d":"$1,191"},{"v":1404,"d":"$1,404"},{"v":1557,"d":"$1,557"},{"v":1572,"d":"$1,572"},{"v":1587,"d":"$1,587"}]
[" GREEN BAY","WI",{"v":834,"d":"$834"},{"v":834,"d":"$834"},{"v":834,"d":"$834"},{"v":834,"d":"$834"},{"v":897,"d":"$897"},{"v":1170,"d":"$1,170"},{"v":1197,"d":"$1,197"},{"v":1227,"d":"$1,227"},{"v":1335,"d":"$1,335"},{"v":1173,"d":"$1,173"},{"v":1209,"d":"$1,209"},{"v":1245,"d":"$1,245"},{"v":1368,"d":"$1,368"},{"v":1509,"d":"$1,509"},{"v":1203,"d":"$1,203"},{"v":1242,"d":"$1,242"},{"v":1389,"d":"$1,389"},{"v":927,"d":"$927"},{"v":1167,"d":"$1,167"},{"v":1245,"d":"$1,245"},{"v":1566,"d":"$1,566"},{"v":1797,"d":"$1,797"},{"v":1815,"d":"$1,815"},{"v":1833,"d":"$1,833"}]
[" STEVENS POINT","WI",{"v":840,"d":"$840"},{"v":840,"d":"$840"},{"v":840,"d":"$840"},{"v":840,"d":"$840"},{"v":897,"d":"$897"},{"v":1131,"d":"$1,131"},{"v":1164,"d":"$1,164"},{"v":1197,"d":"$1,197"},{"v":1269,"d":"$1,269"},{"v":1134,"d":"$1,134"},{"v":1176,"d":"$1,176"},{"v":1218,"d":"$1,218"},{"v":1287,"d":"$1,287"},{"v":1371,"d":"$1,371"},{"v":1170,"d":"$1,170"},{"v":1212,"d":"$1,212"},{"v":1299,"d":"$1,299"},{"v":924,"d":"$924"},{"v":1128,"d":"$1,128"},{"v":1215,"d":"$1,215"},{"v":1404,"d":"$1,404"},{"v":1539,"d":"$1,539"},{"v":1554,"d":"$1,554"},{"v":1569,"d":"$1,569"}]
[" STURGEON BAY","WI",{"v":813,"d":"$813"},{"v":813,"d":"$813"},{"v":813,"d":"$813"},{"v":813,"d":"$813"},{"v":927,"d":"$927"},{"v":1056,"d":"$1,056"},{"v":1116,"d":"$1,116"},{"v":1179,"d":"$1,179"},{"v":1269,"d":"$1,269"},{"v":1056,"d":"$1,056"},{"v":1140,"d":"$1,140"},{"v":1221,"d":"$1,221"},{"v":1287,"d":"$1,287"},{"v":1365,"d":"$1,365"},{"v":1128,"d":"$1,128"},{"v":1209,"d":"$1,209"},{"v":1299,"d":"$1,299"},{"v":942,"d":"$942"},{"v":1053,"d":"$1,053"},{"v":1218,"d":"$1,218"},{"v":1395,"d":"$1,395"},{"v":1524,"d":"$1,524"},{"v":1539,"d":"$1,539"},{"v":1554,"d":"$1,554"}]
[" EAU CLAIRE","WI",{"v":900,"d":"$900"},{"v":900,"d":"$900"},{"v":900,"d":"$900"},{"v":900,"d":"$900"},{"v":1023,"d":"$1,023"},{"v":1203,"d":"$1,203"},{"v":1212,"d":"$1,212"},{"v":1224,"d":"$1,224"},{"v":1269,"d":"$1,269"},{"v":1203,"d":"$1,203"},{"v":1218,"d":"$1,218"},{"v":1233,"d":"$1,233"},{"v":1281,"d":"$1,281"},{"v":1341,"d":"$1,341"},{"v":1215,"d":"$1,215"},{"v":1230,"d":"$1,230"},{"v":1290,"d":"$1,290"},{"v":1044,"d":"$1,044"},{"v":1197,"d":"$1,197"},{"v":1230,"d":"$1,230"},{"v":1365,"d":"$1,365"},{"v":1458,"d":"$1,458"},{"v":1473,"d":"$1,473"},{"v":1488,"d":"$1,488"}]
[" MORGANTOWN","WV",{"v":1023,"d":"$1,023"},{"v":1023,"d":"$1,023"},{"v":1023,"d":"$1,023"},{"v":1023,"d":"$1,023"},{"v":1176,"d":"$1,176"},{"v":1404,"d":"$1,404"},{"v":1413,"d":"$1,413"},{"v":1422,"d":"$1,422"},{"v":1509,"d":"$1,509"},{"v":1404,"d":"$1,404"},{"v":1416,"d":"$1,416"},{"v":1428,"d":"$1,428"},{"v":1539,"d":"$1,539"},{"v":1668,"d":"$1,668"},{"v":1416,"d":"$1,416"},{"v":1428,"d":"$1,428"},{"v":1557,"d":"$1,557"},{"v":1200,"d":"$1,200"},{"v":1401,"d":"$1,401"},{"v":1428,"d":"$1,428"},{"v":1716,"d":"$1,716"},{"v":1923,"d":"$1,923"},{"v":1944,"d":"$1,944"},{"v":1962,"d":"$1,962"}]
[" HUNTINGTON","WV",{"v":912,"d":"$912"},{"v":912,"d":"$912"},{"v":912,"d":"$912"},{"v":912,"d":"$912"},{"v":948,"d":"$948"},{"v":1215,"d":"$1,215"},{"v":1251,"d":"$1,251"},{"v":1290,"d":"$1,290"},{"v":1344,"d":"$1,344"},{"v":1215,"d":"$1,215"},{"v":1269,"d":"$1,269"},{"v":1317,"d":"$1,317"},{"v":1353,"d":"$1,353"},{"v":1398,"d":"$1,398"},{"v":1260,"d":"$1,260"},{"v":1308,"d":"$1,308"},{"v":1362,"d":"$1,362"},{"v":978,"d":"$978"},{"v":1209,"d":"$1,209"},{"v":1314,"d":"$1,314"},{"v":1416,"d":"$1,416"},{"v":1488,"d":"$1,488"},{"v":1503,"d":"$1,503"},{"v":1518,"d":"$1,518"}]
[" CHARLESTON","WV",{"v":837,"d":"$837"},{"v":837,"d":"$837"},{"v":837,"d":"$837"},{"v":837,"d":"$837"},{"v":885,"d":"$885"},{"v":1068,"d":"$1,068"},{"v":1116,"d":"$1,116"},{"v":1167,"d":"$1,167"},{"v":1248,"d":"$1,248"},{"v":1071,"d":"$1,071"},{"v":1137,"d":"$1,137"},{"v":1197,"d":"$1,197"},{"v":1266,"d":"$1,266"},{"v":1347,"d":"$1,347"},{"v":1125,"d":"$1,125"},{"v":1188,"d":"$1,188"},{"v":1278,"d":"$1,278"},{"v":906,"d":"$906"},{"v":1065,"d":"$1,065"},{"v":1194,"d":"$1,194"},{"v":1380,"d":"$1,380"},{"v":1509,"d":"$1,509"},{"v":1524,"d":"$1,524"},{"v":1539,"d":"$1,539"}]
[" BECKLEY","WV",{"v":801,"d":"$801"},{"v":801,"d":"$801"},{"v":801,"d":"$801"},{"v":801,"d":"$801"},{"v":864,"d":"$864"},{"v":993,"d":"$993"},{"v":1056,"d":"$1,056"},{"v":1128,"d":"$1,128"},{"v":1200,"d":"$1,200"},{"v":996,"d":"$996"},{"v":1086,"d":"$1,086"},{"v":1170,"d":"$1,170"},{"v":1212,"d":"$1,212"},{"v":1257,"d":"$1,257"},{"v":1071,"d":"$1,071"},{"v":1158,"d":"$1,158"},{"v":1218,"d":"$1,218"},{"v":879,"d":"$879"},{"v":990,"d":"$990"},{"v":1167,"d":"$1,167"},{"v":1275,"d":"$1,275"},{"v":1353,"d":"$1,353"},{"v":1365,"d":"$1,365"},{"v":1380,"d":"$1,380"}]
[" MARTINSBURG","WV",{"v":1104,"d":"$1,104"},{"v":1104,"d":"$1,104"},{"v":1104,"d":"$1,104"},{"v":1104,"d":"$1,104"},{"v":1200,"d":"$1,200"},{"v":1347,"d":"$1,347"},{"v":1410,"d":"$1,410"},{"v":1482,"d":"$1,482"},{"v":1584,"d":"$1,584"},{"v":1350,"d":"$1,350"},{"v":1440,"d":"$1,440"},{"v":1524,"d":"$1,524"},{"v":1605,"d":"$1,605"},{"v":1704,"d":"$1,704"},{"v":1425,"d":"$1,425"},{"v":1512,"d":"$1,512"},{"v":1620,"d":"$1,620"},{"v":1218,"d":"$1,218"},{"v":1344,"d":"$1,344"},{"v":1521,"d":"$1,521"},{"v":1740,"d":"$1,740"},{"v":1896,"d":"$1,896"},{"v":1914,"d":"$1,914"},{"v":1932,"d":"$1,932"}]
[" CLARKSBURG","WV",{"v":867,"d":"$867"},{"v":867,"d":"$867"},{"v":867,"d":"$867"},{"v":867,"d":"$867"},{"v":936,"d":"$936"},{"v":1197,"d":"$1,197"},{"v":1230,"d":"$1,230"},{"v":1266,"d":"$1,266"},{"v":1350,"d":"$1,350"},{"v":1197,"d":"$1,197"},{"v":1245,"d":"$1,245"},{"v":1287,"d":"$1,287"},{"v":1374,"d":"$1,374"},{"v":1476,"d":"$1,476"},{"v":1236,"d":"$1,236"},{"v":1281,"d":"$1,281"},{"v":1389,"d":"$1,389"},{"v":966,"d":"$966"},{"v":1191,"d":"$1,191"},{"v":1287,"d":"$1,287"},{"v":1515,"d":"$1,515"},{"v":1680,"d":"$1,680"},{"v":1695,"d":"$1,695"},{"v":1713,"d":"$1,713"}]
[" PARKERSBURG","WV",{"v":807,"d":"$807"},{"v":807,"d":"$807"},{"v":807,"d":"$807"},{"v":807,"d":"$807"},{"v":882,"d":"$882"},{"v":981,"d":"$981"},{"v":1014,"d":"$1,014"},{"v":1047,"d":"$1,047"},{"v":1113,"d":"$1,113"},{"v":984,"d":"$984"},{"v":1029,"d":"$1,029"},{"v":1071,"d":"$1,071"},{"v":1131,"d":"$1,131"},{"v":1203,"d":"$1,203"},{"v":1020,"d":"$1,020"},{"v":1065,"d":"$1,065"},{"v":1143,"d":"$1,143"},{"v":891,"d":"$891"},{"v":981,"d":"$981"},{"v":1068,"d":"$1,068"},{"v":1230,"d":"$1,230"},{"v":1347,"d":"$1,347"},{"v":1362,"d":"$1,362"},{"v":1374,"d":"$1,374"}]
[" CHEYENNE","WY",{"v":855,"d":"$855"},{"v":855,"d":"$855"},{"v":855,"d":"$855"},{"v":855,"d":"$855"},{"v":960,"d":"$960"},{"v":1329,"d":"$1,329"},{"v":1377,"d":"$1,377"},{"v":1431,"d":"$1,431"},{"v":1497,"d":"$1,497"},{"v":1329,"d":"$1,329"},{"v":1401,"d":"$1,401"},{"v":1464,"d":"$1,464"},{"v":1509,"d":"$1,509"},{"v":1563,"d":"$1,563"},{"v":1389,"d":"$1,389"},{"v":1455,"d":"$1,455"},{"v":1518,"d":"$1,518"},{"v":999,"d":"$999"},{"v":1323,"d":"$1,323"},{"v":1461,"d":"$1,461"},{"v":1584,"d":"$1,584"},{"v":1671,"d":"$1,671"},{"v":1689,"d":"$1,689"},{"v":1704,"d":"$1,704"}]

{"sheet":"BAH w Dep","index":6,"n_rows":8809,"n_cols":28,"rows_kept":8809,"hidden":true}
["City","State","Rank"]
["KETCHIKAN","AK","E-1",1587,1587,1587,1587,1587,1911,1911,2067,2235,2394,1914,2136,2343,2412,2493,2100,2313,2424,1911,1911,2334,2523,2655,2682,2706]
["KETCHIKAN","AK","E-2",1587]
["KETCHIKAN","AK","E-3",1587]
["KETCHIKAN","AK","E-4",1587]
["KETCHIKAN","AK","E-5",1911]
["KETCHIKAN","AK","E-6",1911]
["KETCHIKAN","AK","E-7",2067]
["KETCHIKAN","AK","E-8",2235]
["KETCHIKAN","AK","E-9",2394]
["KETCHIKAN","AK","W-1",1914]
["KETCHIKAN","AK","W-2",2136]
["KETCHIKAN","AK","W-3",2343]
["KETCHIKAN","AK","W-4",2412]
["KETCHIKAN","AK","W-5",2493]
["KETCHIKAN","AK","O-1E",2100]
["KETCHIKAN","AK","O-2E",2313]
["KETCHIKAN","AK","O-3E",2424]
["KETCHIKAN","AK","O-1",1911]
["KETCHIKAN","AK","O-2",1911]
["KETCHIKAN","AK","O-3",2334]
["KETCHIKAN","AK","O-4",2523]
["KETCHIKAN","AK","O-5",2655]
["KETCHIKAN","AK","O-6",2682]
["KETCHIKAN","AK","O-7",2706]
["SITKA","AK","E-1",1797,1797,1797,1797,1797,2040,2040,2145,2259,2385,2043,2193,2334,2403,2487,2169,2313,2418,2040,2040,2328,2520,2655,2682,2706]
["SITKA","AK","E-2",1797]
["SITKA","AK","E-3",1797]
["SITKA","AK","E-4",1797]
["SITKA","AK","E-5",2040]
["SITKA","AK","E-6",2040]
["SITKA","AK","E-7",2145]
["SITKA","AK","E-8",2259]
["SITKA","AK","E-9",2385]
["SITKA","AK","W-1",2043]
["SITKA","AK","W-2",2193]
["SITKA","AK","W-3",2334]
["SITKA","AK","W-4",2403]
["SITKA","AK","W-5",2487]
["SITKA","AK","O-1E",2169]
["SITKA","AK","O-2E",2313]
["SITKA","AK","O-3E",2418]
["SITKA","AK","O-1",2040]
["SITKA","AK","O-2",2040]
["SITKA","AK","O-3",2328]
["SITKA","AK","O-4",2520]
["SITKA","AK","O-5",2655]
["SITKA","AK","O-6",2682]
["SITKA","AK","O-7",2706]
["JUNEAU","AK","E-1",1818,1818,1818,1818,1818,2124,2124,2187,2259,2364,2127,2217,2304,2385,2484,2202,2289,2400,2124,2124,2298,2523,2679,2706,2733]
["JUNEAU","AK","E-2",1818]
["JUNEAU","AK","E-3",1818]
["JUNEAU","AK","E-4",1818]
["JUNEAU","AK","E-5",2124]
["JUNEAU","AK","E-6",2124]
["JUNEAU","AK","E-7",2187]
["JUNEAU","AK","E-8",2259]
["JUNEAU","AK","E-9",2364]
["JUNEAU","AK","W-1",2127]
["JUNEAU","AK","W-2",2217]
["JUNEAU","AK","W-3",2304]
["JUNEAU","AK","W-4",2385]
["JUNEAU","AK","W-5",2484]
["JUNEAU","AK","O-1E",2202]
["JUNEAU","AK","O-2E",2289]
["JUNEAU","AK","O-3E",2400]
["JUNEAU","AK","O-1",2124]
["JUNEAU","AK","O-2",2124]
["JUNEAU","AK","O-3",2298]
["JUNEAU","AK","O-4",2523]
["JUNEAU","AK","O-5",2679]
["JUNEAU","AK","O-6",2706]
["JUNEAU","AK","O-7",2733]
["KODIAK ISLAND","AK","E-1",1605,1605,1605,1605,1605,1890,1890,2007,2130,2265,1893,2058,2211,2286,2373,2031,2190,2298,1890,1890,2205,2409,2550,2577,2601]
["KODIAK ISLAND","AK","E-2",1605]
["KODIAK ISLAND","AK","E-3",1605]
["KODIAK ISLAND","AK","E-4",1605]
["KODIAK ISLAND","AK","E-5",1890]
["KODIAK ISLAND","AK","E-6",1890]
["KODIAK ISLAND","AK","E-7",2007]
["KODIAK ISLAND","AK","E-8",2130]
["KODIAK ISLAND","AK","E-9",2265]
["KODIAK ISLAND","AK","W-1",1893]
["KODIAK ISLAND","AK","W-2",2058]
["KODIAK ISLAND","AK","W-3",2211]
["KODIAK ISLAND","AK","W-4",2286]
["KODIAK ISLAND","AK","W-5",2373]
["KODIAK ISLAND","AK","O-1E",2031]
["KODIAK ISLAND","AK","O-2E",2190]
["KODIAK ISLAND","AK","O-3E",2298]
["KODIAK ISLAND","AK","O-1",1890]
["KODIAK ISLAND","AK","O-2",1890]
["KODIAK ISLAND","AK","O-3",2205]
["KODIAK ISLAND","AK","O-4",2409]
["KODIAK ISLAND","AK","O-5",2550]
["KODIAK ISLAND","AK","O-6",2577]
["KODIAK ISLAND","AK","O-7",2601]
["ANCHORAGE","AK","E-1",1479,1479,1479,1479,1479,1836,1836,1989,2154,2370,1839,2055,2259,2412,2595,2022,2229,2439,1836,1836,2250,2664,2958,2988,3018]
["ANCHORAGE","AK","E-2",1479]
["ANCHORAGE","AK","E-3",1479]
["ANCHORAGE","AK","E-4",1479]
["ANCHORAGE","AK","E-5",1836]
["ANCHORAGE","AK","E-6",1836]
["ANCHORAGE","AK","E-7",1989]
["ANCHORAGE","AK","E-8",2154]
["ANCHORAGE","AK","E-9",2370]
["ANCHORAGE","AK","W-1",1839]
["ANCHORAGE","AK","W-2",2055]
["ANCHORAGE","AK","W-3",2259]
["ANCHORAGE","AK","W-4",2412]
["ANCHORAGE","AK","W-5",2595]
["ANCHORAGE","AK","O-1E",2022]
["ANCHORAGE","AK","O-2E",2229]
["ANCHORAGE","AK","O-3E",2439]
["ANCHORAGE","AK","O-1",1836]
["ANCHORAGE","AK","O-2",1836]
["ANCHORAGE","AK","O-3",2250]
["ANCHORAGE","AK","O-4",2664]
["ANCHORAGE","AK","O-5",2958]
["ANCHORAGE","AK","O-6",2988]
["ANCHORAGE","AK","O-7",3018]
["FAIRBANKS","AK","E-1",1500,1500,1500,1500,1500,1821,1821,1905,1998,2100,1821,1944,2058,2115,2181,1926,2040,2124,1821,1821,2052,2205,2313,2334,2358]
["FAIRBANKS","AK","E-2",1500]
["FAIRBANKS","AK","E-3",1500]
["FAIRBANKS","AK","E-4",1500]
["FAIRBANKS","AK","E-5",1821]
["FAIRBANKS","AK","E-6",1821]
["FAIRBANKS","AK","E-7",1905]
["FAIRBANKS","AK","E-8",1998]
["FAIRBANKS","AK","E-9",2100]
["FAIRBANKS","AK","W-1",1821]
["FAIRBANKS","AK","W-2",1944]
["FAIRBANKS","AK","W-3",2058]
["FAIRBANKS","AK","W-4",2115]
["FAIRBANKS","AK","W-5",2181]
["FAIRBANKS","AK","O-1E",1926]
["FAIRBANKS","AK","O-2E",2040]
["FAIRBANKS","AK","O-3E",2124]
["FAIRBANKS","AK","O-1",1821]
["FAIRBANKS","AK","O-2",1821]
["FAIRBANKS","AK","O-3",2052]
["FAIRBANKS","AK","O-4",2205]
["FAIRBANKS","AK","O-5",2313]
["FAIRBANKS","AK","O-6",2334]
["FAIRBANKS","AK","O-7",2358]
["ANNISTON/FORT MCCLELLAN","AL","E-1",792,792,792,792,792,837,1197,1218,1236,1287,1200,1224,1251,1299,1359,1221,1245,1311,876,1191,1248,1383,1479,1494,1509]
["ANNISTON/FORT MCCLELLAN","AL","E-2",792]
["ANNISTON/FORT MCCLELLAN","AL","E-3",792]
["ANNISTON/FORT MCCLELLAN","AL","E-4",792]
["ANNISTON/FORT MCCLELLAN","AL","E-5",837]
["ANNISTON/FORT MCCLELLAN","AL","E-6",1197]
["ANNISTON/FORT MCCLELLAN","AL","E-7",1218]
["ANNISTON/FORT MCCLELLAN","AL","E-8",1236]
["ANNISTON/FORT MCCLELLAN","AL","E-9",1287]
["ANNISTON/FORT MCCLELLAN","AL","W-1",1200]
["ANNISTON/FORT MCCLELLAN","AL","W-2",1224]
["ANNISTON/FORT MCCLELLAN","AL","W-3",1251]
["ANNISTON/FORT MCCLELLAN","AL","W-4",1299]
["ANNISTON/FORT MCCLELLAN","AL","W-5",1359]
["ANNISTON/FORT MCCLELLAN","AL","O-1E",1221]
["ANNISTON/FORT MCCLELLAN","AL","O-2E",1245]
["ANNISTON/FORT MCCLELLAN","AL","O-3E",1311]
["ANNISTON/FORT MCCLELLAN","AL","O-1",876]
["ANNISTON/FORT MCCLELLAN","AL","O-2",1191]
["ANNISTON/FORT MCCLELLAN","AL","O-3",1248]
["ANNISTON/FORT MCCLELLAN","AL","O-4",1383]
["ANNISTON/FORT MCCLELLAN","AL","O-5",1479]
["ANNISTON/FORT MCCLELLAN","AL","O-6",1494]
["ANNISTON/FORT MCCLELLAN","AL","O-7",1509]
["FORT RUCKER","AL","E-1",915,915,915,915,915,1053,1254,1362,1479,1599,1257,1410,1551,1617,1695,1386,1530,1629,1074,1251,1545,1722,1848,1866,1884]
["FORT RUCKER","AL","E-2",915]
["FORT RUCKER","AL","E-3",915]
["FORT RUCKER","AL","E-4",915]
["FORT RUCKER","AL","E-5",1053]
["FORT RUCKER","AL","E-6",1254]
["FORT RUCKER","AL","E-7",1362]
["FORT RUCKER","AL","E-8",1479]
["FORT RUCKER","AL","E-9",1599]
["FORT RUCKER","AL","W-1",1257]
["FORT RUCKER","AL","W-2",1410]
["FORT RUCKER","AL","W-3",1551]
["FORT RUCKER","AL","W-4",1617]
["FORT RUCKER","AL","W-5",1695]
["FORT RUCKER","AL","O-1E",1386]
["FORT RUCKER","AL","O-2E",1530]
["FORT RUCKER","AL","O-3E",1629]
["FORT RUCKER","AL","O-1",1074]
["FORT RUCKER","AL","O-2",1251]
["FORT RUCKER","AL","O-3",1545]
["FORT RUCKER","AL","O-4",1722]
["FORT RUCKER","AL","O-5",1848]
["FORT RUCKER","AL","O-6",1866]
["FORT RUCKER","AL","O-7",1884]
["HUNTSVILLE","AL","E-1",1059,1059,1059,1059,1059,1146,1227,1278,1335,1431,1227,1302,1371,1452,1548,1290,1359,1467,1155,1224,1368,1587,1743,1758,1776]
["HUNTSVILLE","AL","E-2",1059]
["HUNTSVILLE","AL","E-3",1059]
["HUNTSVILLE","AL","E-4",1059]
["HUNTSVILLE","AL","E-5",1146]
["HUNTSVILLE","AL","E-6",1227]
["HUNTSVILLE","AL","E-7",1278]
["HUNTSVILLE","AL","E-8",1335]
["HUNTSVILLE","AL","E-9",1431]
["HUNTSVILLE","AL","W-1",1227]
["HUNTSVILLE","AL","W-2",1302]
["HUNTSVILLE","AL","W-3",1371]
["HUNTSVILLE","AL","W-4",1452]
["HUNTSVILLE","AL","W-5",1548]
["HUNTSVILLE","AL","O-1E",1290]
["HUNTSVILLE","AL","O-2E",1359]
["HUNTSVILLE","AL","O-3E",1467]
["HUNTSVILLE","AL","O-1",1155]
["HUNTSVILLE","AL","O-2",1224]
["HUNTSVILLE","AL","O-3",1368]
["HUNTSVILLE","AL","O-4",1587]
["HUNTSVILLE","AL","O-5",1743]
["HUNTSVILLE","AL","O-6",1758]
["HUNTSVILLE","AL","O-7",1776]
["MOBILE","AL","E-1",987,987,987,987,987,1029,1179,1221,1269,1401,1179,1242,1299,1437,1602,1233,1290,1464,1047,1176,1296,1665,1932,1950,1971]
["MOBILE","AL","E-2",987]
["MOBILE","AL","E-3",987]
["MOBILE","AL","E-4",987]
["MOBILE","AL","E-5",1029]
["MOBILE","AL","E-6",1179]
["MOBILE","AL","E-7",1221]
["MOBILE","AL","E-8",1269]
["MOBILE","AL","E-9",1401]
["MOBILE","AL","W-1",1179]
["MOBILE","AL","W-2",1242]
["MOBILE","AL","W-3",1299]
["MOBILE","AL","W-4",1437]
["MOBILE","AL","W-5",1602]
["MOBILE","AL","O-1E",1233]
["MOBILE","AL","O-2E",1290]
["MOBILE","AL","O-3E",1464]
["MOBILE","AL","O-1",1047]
["MOBILE","AL","O-2",1176]
["MOBILE","AL","O-3",1296]
["MOBILE","AL","O-4",1665]
["MOBILE","AL","O-5",1932]
["MOBILE","AL","O-6",1950]
["MOBILE","AL","O-7",1971]
["MONTGOMERY","AL","E-1",1050,1050,1050,1050,1050,1107,1212,1344,1485,1611,1218,1401,1575,1626,1689,1371,1548,1635,1119,1212,1566,1713,1812,1830,1848]
["MONTGOMERY","AL","E-2",1050]
["MONTGOMERY","AL","E-3",1050]
["MONTGOMERY","AL","E-4",1050]
["MONTGOMERY","AL","E-5",1107]
["MONTGOMERY","AL","E-6",1212]
["MONTGOMERY","AL","E-7",1344]
["MONTGOMERY","AL","E-8",1485]
["MONTGOMERY","AL","E-9",1611]
["MONTGOMERY","AL","W-1",1218]
["MONTGOMERY","AL","W-2",1401]
["MONTGOMERY","AL","W-3",1575]
["MONTGOMERY","AL","W-4",1626]
["MONTGOMERY","AL","W-5",1689]
["MONTGOMERY","AL","O-1E",1371]
["MONTGOMERY","AL","O-2E",1548]
["MONTGOMERY","AL","O-3E",1635]
["MONTGOMERY","AL","O-1",1119]
["MONTGOMERY","AL","O-2",1212]
["MONTGOMERY","AL","O-3",1566]
["MONTGOMERY","AL","O-4",1713]
["MONTGOMERY","AL","O-5",1812]
["MONTGOMERY","AL","O-6",1830]
["MONTGOMERY","AL","O-7",1848]
["AUBURN","AL","E-1",906,906,906,906,906,975,1218,1251,1284,1371,1221,1263,1305,1395,1500,1257,1299,1410,1002,1215,1305,1539,1707,1725,1743]
["AUBURN","AL","E-2",906]
["AUBURN","AL","E-3",906]
["AUBURN","AL","E-4",906]
["AUBURN","AL","E-5",975]
["AUBURN","AL","E-6",1218]
["AUBURN","AL","E-7",1251]
["AUBURN","AL","E-8",1284]
["AUBURN","AL","E-9",1371]
["AUBURN","AL","W-1",1221]
["AUBURN","AL","W-2",1263]
["AUBURN","AL","W-3",1305]
["AUBURN","AL","W-4",1395]
["AUBURN","AL","W-5",1500]
["AUBURN","AL","O-1E",1257]
["AUBURN","AL","O-2E",1299]
["AUBURN","AL","O-3E",1410]
["AUBURN","AL","O-1",1002]
["AUBURN","AL","O-2",1215]
["AUBURN","AL","O-3",1305]
["AUBURN","AL","O-4",1539]
["AUBURN","AL","O-5",1707]
["AUBURN","AL","O-6",1725]
["AUBURN","AL","O-7",1743]
["BIRMINGHAM","AL","E-1",{"$f":"TRANSPOSE(E290:E290)","v":1041},1041,1041,1041,1041,1146,1389,1422,1458,1590,1392,1437,1482,1629,1803,1431,1476,1656,1173,1386,1479,1872,2151,2175,2196]
["BIRMINGHAM","AL","E-2",{"$f":"TRANSPOSE(F290:F290)","v":1041}]
["BIRMINGHAM","AL","E-3",{"$f":"TRANSPOSE(G290:G290)","v":1041}]
["BIRMINGHAM","AL","E-4",{"$f":"TRANSPOSE(H290:H290)","v":1041}]
["BIRMINGHAM","AL","E-5",{"$f":"TRANSPOSE(I290:I290)","v":1146}]
["BIRMINGHAM","AL","E-6",{"$f":"TRANSPOSE(J290:J290)","v":1389}]
["BIRMINGHAM","AL","E-7",{"$f":"TRANSPOSE(K290:K290)","v":1422}]
["BIRMINGHAM","AL","E-8",{"$f":"TRANSPOSE(L290)","v":1458}]
["BIRMINGHAM","AL","E-9",{"$f":"TRANSPOSE(M290)","v":1590}]
["BIRMINGHAM","AL","W-1",{"$f":"TRANSPOSE(N290)","v":1392}]
["BIRMINGHAM","AL","W-2",{"$f":"TRANSPOSE(O290)","v":1437}]
["BIRMINGHAM","AL","W-3",{"$f":"TRANSPOSE(P290)","v":1482}]
["BIRMINGHAM","AL","W-4",{"$f":"TRANSPOSE(Q290)","v":1629}]
["BIRMINGHAM","AL","W-5",{"$f":"TRANSPOSE(R290)","v":1803}]
["BIRMINGHAM","AL","O-1E",{"$f":"TRANSPOSE(S290)","v":1431}]
["BIRMINGHAM","AL","O-2E",{"$f":"TRANSPOSE(T290)","v":1476}]
["BIRMINGHAM","AL","O-3E",{"$f":"TRANSPOSE(U290)","v":1656}]
["BIRMINGHAM","AL","O-1",{"$f":"TRANSPOSE(V290)","v":1173}]
["BIRMINGHAM","AL","O-2",{"$f":"TRANSPOSE(W290)","v":1386}]
["BIRMINGHAM","AL","O-3",{"$f":"TRANSPOSE(X290)","v":1479}]
["BIRMINGHAM","AL","O-4",{"$f":"TRANSPOSE(Y290)","v":1872}]
["BIRMINGHAM","AL","O-5",{"$f":"TRANSPOSE(Z290)","v":2151}]
["BIRMINGHAM","AL","O-6",{"$f":"TRANSPOSE(AA290)","v":2175}]
["BIRMINGHAM","AL","O-7",{"$f":"TRANSPOSE(AB290)","v":2196}]
["TUSCALOOSA","AL","E-1",{"$f":"TRANSPOSE(E314:E314)","v":927},927,927,927,927,1008,1155,1236,1320,1434,1158,1269,1374,1458,1554,1251,1359,1473,1026,1152,1371,1590,1746,1764,1782]
["TUSCALOOSA","AL","E-2",{"$f":"TRANSPOSE(F314:F314)","v":927}]
["TUSCALOOSA","AL","E-3",{"$f":"TRANSPOSE(G314:G314)","v":927}]
["TUSCALOOSA","AL","E-4",{"$f":"TRANSPOSE(H314:H314)","v":927}]
["TUSCALOOSA","AL","E-5",{"$f":"TRANSPOSE(I314:I314)","v":1008}]
["TUSCALOOSA","AL","E-6",{"$f":"TRANSPOSE(J314:J314)","v":1155}]
["TUSCALOOSA","AL","E-7",{"$f":"TRANSPOSE(K314:K314)","v":1236}]
["TUSCALOOSA","AL","E-8",{"$f":"TRANSPOSE(L314)","v":1320}]
["TUSCALOOSA","AL","E-9",{"$f":"TRANSPOSE(M314)","v":1434}]
["TUSCALOOSA","AL","W-1",{"$f":"TRANSPOSE(N314)","v":1158}]
["TUSCALOOSA","AL","W-2",{"$f":"TRANSPOSE(O314)","v":1269}]
["TUSCALOOSA","AL","W-3",{"$f":"TRANSPOSE(P314)","v":1374}]
["TUSCALOOSA","AL","W-4",{"$f":"TRANSPOSE(Q314)","v":1458}]
["TUSCALOOSA","AL","W-5",{"$f":"TRANSPOSE(R314)","v":1554}]
["TUSCALOOSA","AL","O-1E",{"$f":"TRANSPOSE(S314)","v":1251}]
["TUSCALOOSA","AL","O-2E",{"$f":"TRANSPOSE(T314)","v":1359}]
["TUSCALOOSA","AL","O-3E",{"$f":"TRANSPOSE(U314)","v":1473}]
["TUSCALOOSA","AL","O-1",{"$f":"TRANSPOSE(V314)","v":1026}]
["TUSCALOOSA","AL","O-2",{"$f":"TRANSPOSE(W314)","v":1152}]
["TUSCALOOSA","AL","O-3",{"$f":"TRANSPOSE(X314)","v":1371}]
["TUSCALOOSA","AL","O-4",{"$f":"TRANSPOSE(Y314)","v":1590}]
["TUSCALOOSA","AL","O-5",{"$f":"TRANSPOSE(Z314)","v":1746}]
["TUSCALOOSA","AL","O-6",{"$f":"TRANSPOSE(AA314)","v":1764}]
["TUSCALOOSA","AL","O-7",{"$f":"TRANSPOSE(AB314)","v":1782}]
["LITTLE ROCK","AR","E-1",{"$f":"TRANSPOSE(E338:E338)","v":933},933,933,933,933,1008,1203,1269,1338,1458,1206,1296,1383,1485,1605,1281,1371,1503,1029,1200,1380,1653,1848,1866,1884]
["LITTLE ROCK","AR","E-2",{"$f":"TRANSPOSE(F338:F338)","v":933}]
["LITTLE ROCK","AR","E-3",{"$f":"TRANSPOSE(G338:G338)","v":933}]
["LITTLE ROCK","AR","E-4",{"$f":"TRANSPOSE(H338:H338)","v":933}]
["LITTLE ROCK","AR","E-5",{"$f":"TRANSPOSE(I338:I338)","v":1008}]
["LITTLE ROCK","AR","E-6",{"$f":"TRANSPOSE(J338:J338)","v":1203}]
["LITTLE ROCK","AR","E-7",{"$f":"TRANSPOSE(K338:K338)","v":1269}]
["LITTLE ROCK","AR","E-8",{"$f":"TRANSPOSE(L338)","v":1338}]
["LITTLE ROCK","AR","E-9",{"$f":"TRANSPOSE(M338)","v":1458}]
["LITTLE ROCK","AR","W-1",{"$f":"TRANSPOSE(N338)","v":1206}]
["LITTLE ROCK","AR","W-2",{"$f":"TRANSPOSE(O338)","v":1296}]
["LITTLE ROCK","AR","W-3",{"$f":"TRANSPOSE(P338)","v":1383}]
["LITTLE ROCK","AR","W-4",{"$f":"TRANSPOSE(Q338)","v":1485}]
["LITTLE ROCK","AR","W-5",{"$f":"TRANSPOSE(R338)","v":1605}]
["LITTLE ROCK","AR","O-1E",{"$f":"TRANSPOSE(S338)","v":1281}]
["LITTLE ROCK","AR","O-2E",{"$f":"TRANSPOSE(T338)","v":1371}]
["LITTLE ROCK","AR","O-3E",{"$f":"TRANSPOSE(U338)","v":1503}]
["LITTLE ROCK","AR","O-1",{"$f":"TRANSPOSE(V338)","v":1029}]
["LITTLE ROCK","AR","O-2",{"$f":"TRANSPOSE(W338)","v":1200}]
["LITTLE ROCK","AR","O-3",{"$f":"TRANSPOSE(X338)","v":1380}]
["LITTLE ROCK","AR","O-4",{"$f":"TRANSPOSE(Y338)","v":1653}]
["LITTLE ROCK","AR","O-5",{"$f":"TRANSPOSE(Z338)","v":1848}]
["LITTLE ROCK","AR","O-6",{"$f":"TRANSPOSE(AA338)","v":1866}]
["LITTLE ROCK","AR","O-7",{"$f":"TRANSPOSE(AB338)","v":1884}]
["PINE BLUFF","AR","E-1",{"$f":"TRANSPOSE(E362:E362)","v":855},855,855,855,855,918,993,1017,1041,1083,996,1026,1059,1092,1131,1023,1053,1098,924,993,1056,1143,1206,1218,1230]
["PINE BLUFF","AR","E-2",{"$f":"TRANSPOSE(F362:F362)","v":855}]
["PINE BLUFF","AR","E-3",{"$f":"TRANSPOSE(G362:G362)","v":855}]
["PINE BLUFF","AR","E-4",{"$f":"TRANSPOSE(H362:H362)","v":855}]
["PINE BLUFF","AR","E-5",{"$f":"TRANSPOSE(I362:I362)","v":918}]
["PINE BLUFF","AR","E-6",{"$f":"TRANSPOSE(J362:J362)","v":993}]
["PINE BLUFF","AR","E-7",{"$f":"TRANSPOSE(K362:K362)","v":1017}]
["PINE BLUFF","AR","E-8",{"$f":"TRANSPOSE(L362)","v":1041}]
["PINE BLUFF","AR","E-9",{"$f":"TRANSPOSE(M362)","v":1083}]
["PINE BLUFF","AR","W-1",{"$f":"TRANSPOSE(N362)","v":996}]
["PINE BLUFF","AR","W-2",{"$f":"TRANSPOSE(O362)","v":1026}]
["PINE BLUFF","AR","W-3",{"$f":"TRANSPOSE(P362)","v":1059}]
["PINE BLUFF","AR","W-4",{"$f":"TRANSPOSE(Q362)","v":1092}]
["PINE BLUFF","AR","W-5",{"$f":"TRANSPOSE(R362)","v":1131}]
["PINE BLUFF","AR","O-1E",{"$f":"TRANSPOSE(S362)","v":1023}]
["PINE BLUFF","AR","O-2E",{"$f":"TRANSPOSE(T362)","v":1053}]
["PINE BLUFF","AR","O-3E",{"$f":"TRANSPOSE(U362)","v":1098}]
["PINE BLUFF","AR","O-1",{"$f":"TRANSPOSE(V362)","v":924}]
["PINE BLUFF","AR","O-2",{"$f":"TRANSPOSE(W362)","v":993}]
["PINE BLUFF","AR","O-3",{"$f":"TRANSPOSE(X362)","v":1056}]
["PINE BLUFF","AR","O-4",{"$f":"TRANSPOSE(Y362)","v":1143}]
["PINE BLUFF","AR","O-5",{"$f":"TRANSPOSE(Z362)","v":1206}]
["PINE BLUFF","AR","O-6",{"$f":"TRANSPOSE(AA362)","v":1218}]
["PINE BLUFF","AR","O-7",{"$f":"TRANSPOSE(AB362)","v":1230}]
["FORT CHAFFEE/FORT SMITH","AR","E-1",{"$f":"TRANSPOSE(E386:E386)","v":783},783,783,783,783,834,1035,1056,1080,1152,1035,1065,1095,1173,1266,1062,1092,1188,858,1029,1095,1302,1452,1467,1482]
["FORT CHAFFEE/FORT SMITH","AR","E-2",{"$f":"TRANSPOSE(F386:F386)","v":783}]
["FORT CHAFFEE/FORT SMITH","AR","E-3",{"$f":"TRANSPOSE(G386:G386)","v":783}]
["FORT CHAFFEE/FORT SMITH","AR","E-4",{"$f":"TRANSPOSE(H386:H386)","v":783}]
["FORT CHAFFEE/FORT SMITH","AR","E-5",{"$f":"TRANSPOSE(I386:I386)","v":834}]
["FORT CHAFFEE/FORT SMITH","AR","E-6",{"$f":"TRANSPOSE(J386:J386)","v":1035}]
["FORT CHAFFEE/FORT SMITH","AR","E-7",{"$f":"TRANSPOSE(K386:K386)","v":1056}]
["FORT CHAFFEE/FORT SMITH","AR","E-8",{"$f":"TRANSPOSE(L386)","v":1080}]
["FORT CHAFFEE/FORT SMITH","AR","E-9",{"$f":"TRANSPOSE(M386)","v":1152}]
["FORT CHAFFEE/FORT SMITH","AR","W-1",{"$f":"TRANSPOSE(N386)","v":1035}]
["FORT CHAFFEE/FORT SMITH","AR","W-2",{"$f":"TRANSPOSE(O386)","v":1065}]
["FORT CHAFFEE/FORT SMITH","AR","W-3",{"$f":"TRANSPOSE(P386)","v":1095}]
["FORT CHAFFEE/FORT SMITH","AR","W-4",{"$f":"TRANSPOSE(Q386)","v":1173}]
["FORT CHAFFEE/FORT SMITH","AR","W-5",{"$f":"TRANSPOSE(R386)","v":1266}]
["FORT CHAFFEE/FORT SMITH","AR","O-1E",{"$f":"TRANSPOSE(S386)","v":1062}]
["FORT CHAFFEE/FORT SMITH","AR","O-2E",{"$f":"TRANSPOSE(T386)","v":1092}]
["FORT CHAFFEE/FORT SMITH","AR","O-3E",{"$f":"TRANSPOSE(U386)","v":1188}]
["FORT CHAFFEE/FORT SMITH","AR","O-1",{"$f":"TRANSPOSE(V386)","v":858}]
["FORT CHAFFEE/FORT SMITH","AR","O-2",{"$f":"TRANSPOSE(W386)","v":1029}]
["FORT CHAFFEE/FORT SMITH","AR","O-3",{"$f":"TRANSPOSE(X386)","v":1095}]
["FORT CHAFFEE/FORT SMITH","AR","O-4",{"$f":"TRANSPOSE(Y386)","v":1302}]
["FORT CHAFFEE/FORT SMITH","AR","O-5",{"$f":"TRANSPOSE(Z386)","v":1452}]
["FORT CHAFFEE/FORT SMITH","AR","O-6",{"$f":"TRANSPOSE(AA386)","v":1467}]
["FORT CHAFFEE/FORT SMITH","AR","O-7",{"$f":"TRANSPOSE(AB386)","v":1482}]
["FAYETTEVILLE","AR","E-1",{"$f":"TRANSPOSE(E410:E410)","v":798},798,798,798,798,879,1047,1089,1131,1254,1047,1107,1161,1287,1437,1098,1152,1311,897,1044,1158,1497,1740,1758,1776]
["FAYETTEVILLE","AR","E-2",{"$f":"TRANSPOSE(F410:F410)","v":798}]
["FAYETTEVILLE","AR","E-3",{"$f":"TRANSPOSE(G410:G410)","v":798}]
["FAYETTEVILLE","AR","E-4",{"$f":"TRANSPOSE(H410:H410)","v":798}]
["FAYETTEVILLE","AR","E-5",{"$f":"TRANSPOSE(I410:I410)","v":879}]
["FAYETTEVILLE","AR","E-6",{"$f":"TRANSPOSE(J410:J410)","v":1047}]
["FAYETTEVILLE","AR","E-7",{"$f":"TRANSPOSE(K410:K410)","v":1089}]
["FAYETTEVILLE","AR","E-8",{"$f":"TRANSPOSE(L410)","v":1131}]
["FAYETTEVILLE","AR","E-9",{"$f":"TRANSPOSE(M410)","v":1254}]
["FAYETTEVILLE","AR","W-1",{"$f":"TRANSPOSE(N410)","v":1047}]
["FAYETTEVILLE","AR","W-2",{"$f":"TRANSPOSE(O410)","v":1107}]
["FAYETTEVILLE","AR","W-3",{"$f":"TRANSPOSE(P410)","v":1161}]
["FAYETTEVILLE","AR","W-4",{"$f":"TRANSPOSE(Q410)","v":1287}]
["FAYETTEVILLE","AR","W-5",{"$f":"TRANSPOSE(R410)","v":1437}]
["FAYETTEVILLE","AR","O-1E",{"$f":"TRANSPOSE(S410)","v":1098}]
["FAYETTEVILLE","AR","O-2E",{"$f":"TRANSPOSE(T410)","v":1152}]
["FAYETTEVILLE","AR","O-3E",{"$f":"TRANSPOSE(U410)","v":1311}]
["FAYETTEVILLE","AR","O-1",{"$f":"TRANSPOSE(V410)","v":897}]
["FAYETTEVILLE","AR","O-2",{"$f":"TRANSPOSE(W410)","v":1044}]
["FAYETTEVILLE","AR","O-3",{"$f":"TRANSPOSE(X410)","v":1158}]
["FAYETTEVILLE","AR","O-4",{"$f":"TRANSPOSE(Y410)","v":1497}]
["FAYETTEVILLE","AR","O-5",{"$f":"TRANSPOSE(Z410)","v":1740}]
["FAYETTEVILLE","AR","O-6",{"$f":"TRANSPOSE(AA410)","v":1758}]
["FAYETTEVILLE","AR","O-7",{"$f":"TRANSPOSE(AB410)","v":1776}]
["JONESBORO","AR","E-1",{"$f":"TRANSPOSE(E434:E434)","v":849},849,849,849,849,948,1041,1104,1173,1254,1044,1134,1218,1266,1326,1119,1206,1275,960,1041,1215,1347,1443,1455,1470]
["JONESBORO","AR","E-2",{"$f":"TRANSPOSE(F434:F434)","v":849}]
["JONESBORO","AR","E-3",{"$f":"TRANSPOSE(G434:G434)","v":849}]
["JONESBORO","AR","E-4",{"$f":"TRANSPOSE(H434:H434)","v":849}]
["JONESBORO","AR","E-5",{"$f":"TRANSPOSE(I434:I434)","v":948}]
["JONESBORO","AR","E-6",{"$f":"TRANSPOSE(J434:J434)","v":1041}]
["JONESBORO","AR","E-7",{"$f":"TRANSPOSE(K434:K434)","v":1104}]
["JONESBORO","AR","E-8",{"$f":"TRANSPOSE(L434)","v":1173}]
["JONESBORO","AR","E-9",{"$f":"TRANSPOSE(M434)","v":1254}]
["JONESBORO","AR","W-1",{"$f":"TRANSPOSE(N434)","v":1044}]
["JONESBORO","AR","W-2",{"$f":"TRANSPOSE(O434)","v":1134}]
["JONESBORO","AR","W-3",{"$f":"TRANSPOSE(P434)","v":1218}]
["JONESBORO","AR","W-4",{"$f":"TRANSPOSE(Q434)","v":1266}]
["JONESBORO","AR","W-5",{"$f":"TRANSPOSE(R434)","v":1326}]
["JONESBORO","AR","O-1E",{"$f":"TRANSPOSE(S434)","v":1119}]
["JONESBORO","AR","O-2E",{"$f":"TRANSPOSE(T434)","v":1206}]
["JONESBORO","AR","O-3E",{"$f":"TRANSPOSE(U434)","v":1275}]
["JONESBORO","AR","O-1",{"$f":"TRANSPOSE(V434)","v":960}]
["JONESBORO","AR","O-2",{"$f":"TRANSPOSE(W434)","v":1041}]
["JONESBORO","AR","O-3",{"$f":"TRANSPOSE(X434)","v":1215}]
["JONESBORO","AR","O-4",{"$f":"TRANSPOSE(Y434)","v":1347}]
["JONESBORO","AR","O-5",{"$f":"TRANSPOSE(Z434)","v":1443}]
["JONESBORO","AR","O-6",{"$f":"TRANSPOSE(AA434)","v":1455}]
["JONESBORO","AR","O-7",{"$f":"TRANSPOSE(AB434)","v":1470}]
["PHOENIX","AZ","E-1",{"$f":"TRANSPOSE(E458:E458)","v":1197},1197,1197,1197,1197,1335,1443,1464,1485,1518,1443,1473,1500,1524,1551,1467,1497,1527,1347,1440,1500,1560,1605,1623,1638]
["PHOENIX","AZ","E-2",{"$f":"TRANSPOSE(F458:F458)","v":1197}]
["PHOENIX","AZ","E-3",{"$f":"TRANSPOSE(G458:G458)","v":1197}]
["PHOENIX","AZ","E-4",{"$f":"TRANSPOSE(H458:H458)","v":1197}]
["PHOENIX","AZ","E-5",{"$f":"TRANSPOSE(I458:I458)","v":1335}]
["PHOENIX","AZ","E-6",{"$f":"TRANSPOSE(J458:J458)","v":1443}]
["PHOENIX","AZ","E-7",{"$f":"TRANSPOSE(K458:K458)","v":1464}]
["PHOENIX","AZ","E-8",{"$f":"TRANSPOSE(L458)","v":1485}]
["PHOENIX","AZ","E-9",{"$f":"TRANSPOSE(M458)","v":1518}]
["PHOENIX","AZ","W-1",{"$f":"TRANSPOSE(N458)","v":1443}]
["PHOENIX","AZ","W-2",{"$f":"TRANSPOSE(O458)","v":1473}]
["PHOENIX","AZ","W-3",{"$f":"TRANSPOSE(P458)","v":1500}]
["PHOENIX","AZ","W-4",{"$f":"TRANSPOSE(Q458)","v":1524}]
["PHOENIX","AZ","W-5",{"$f":"TRANSPOSE(R458)","v":1551}]
["PHOENIX","AZ","O-1E",{"$f":"TRANSPOSE(S458)","v":1467}]
["PHOENIX","AZ","O-2E",{"$f":"TRANSPOSE(T458)","v":1497}]
["PHOENIX","AZ","O-3E",{"$f":"TRANSPOSE(U458)","v":1527}]
["PHOENIX","AZ","O-1",{"$f":"TRANSPOSE(V458)","v":1347}]
["PHOENIX","AZ","O-2",{"$f":"TRANSPOSE(W458)","v":1440}]
["PHOENIX","AZ","O-3",{"$f":"TRANSPOSE(X458)","v":1500}]
["PHOENIX","AZ","O-4",{"$f":"TRANSPOSE(Y458)","v":1560}]
["PHOENIX","AZ","O-5",{"$f":"TRANSPOSE(Z458)","v":1605}]
["PHOENIX","AZ","O-6",{"$f":"TRANSPOSE(AA458)","v":1623}]
["PHOENIX","AZ","O-7",{"$f":"TRANSPOSE(AB458)","v":1638}]
["FORT HUACHUCA","AZ","E-1",{"$f":"TRANSPOSE(E482:E482)","v":888},888,888,888,888,963,1173,1311,1458,1572,1179,1371,1554,1578,1605,1341,1527,1581,987,1170,1545,1614,1659,1674,1692]
["FORT HUACHUCA","AZ","E-2",{"$f":"TRANSPOSE(F482:F482)","v":888}]
["FORT HUACHUCA","AZ","E-3",{"$f":"TRANSPOSE(G482:G482)","v":888}]
["FORT HUACHUCA","AZ","E-4",{"$f":"TRANSPOSE(H482:H482)","v":888}]
["FORT HUACHUCA","AZ","E-5",{"$f":"TRANSPOSE(I482:I482)","v":963}]
["FORT HUACHUCA","AZ","E-6",{"$f":"TRANSPOSE(J482:J482)","v":1173}]
["FORT HUACHUCA","AZ","E-7",{"$f":"TRANSPOSE(K482:K482)","v":1311}]
["FORT HUACHUCA","AZ","E-8",{"$f":"TRANSPOSE(L482)","v":1458}]
["FORT HUACHUCA","AZ","E-9",{"$f":"TRANSPOSE(M482)","v":1572}]
["FORT HUACHUCA","AZ","W-1",{"$f":"TRANSPOSE(N482)","v":1179}]
["FORT HUACHUCA","AZ","W-2",{"$f":"TRANSPOSE(O482)","v":1371}]
["FORT HUACHUCA","AZ","W-3",{"$f":"TRANSPOSE(P482)","v":1554}]
["FORT HUACHUCA","AZ","W-4",{"$f":"TRANSPOSE(Q482)","v":1578}]
["FORT HUACHUCA","AZ","W-5",{"$f":"TRANSPOSE(R482)","v":1605}]
["FORT HUACHUCA","AZ","O-1E",{"$f":"TRANSPOSE(S482)","v":1341}]
["FORT HUACHUCA","AZ","O-2E",{"$f":"TRANSPOSE(T482)","v":1527}]
["FORT HUACHUCA","AZ","O-3E",{"$f":"TRANSPOSE(U482)","v":1581}]
["FORT HUACHUCA","AZ","O-1",{"$f":"TRANSPOSE(V482)","v":987}]
["FORT HUACHUCA","AZ","O-2",{"$f":"TRANSPOSE(W482)","v":1170}]
["FORT HUACHUCA","AZ","O-3",{"$f":"TRANSPOSE(X482)","v":1545}]
["FORT HUACHUCA","AZ","O-4",{"$f":"TRANSPOSE(Y482)","v":1614}]
["FORT HUACHUCA","AZ","O-5",{"$f":"TRANSPOSE(Z482)","v":1659}]
["FORT HUACHUCA","AZ","O-6",{"$f":"TRANSPOSE(AA482)","v":1674}]
["FORT HUACHUCA","AZ","O-7",{"$f":"TRANSPOSE(AB482)","v":1692}]
["DAVIS-MONTHAN AFB","AZ","E-1",{"$f":"TRANSPOSE(E506:E506)","v":1023},1023,1023,1023,1023,1128,1296,1314,1332,1407,1296,1320,1344,1431,1533,1317,1341,1446,1146,1293,1344,1572,1734,1752,1770]
["DAVIS-MONTHAN AFB","AZ","E-2",{"$f":"TRANSPOSE(F506:F506)","v":1023}]
["DAVIS-MONTHAN AFB","AZ","E-3",{"$f":"TRANSPOSE(G506:G506)","v":1023}]
["DAVIS-MONTHAN AFB","AZ","E-4",{"$f":"TRANSPOSE(H506:H506)","v":1023}]
["DAVIS-MONTHAN AFB","AZ","E-5",{"$f":"TRANSPOSE(I506:I506)","v":1128}]
["DAVIS-MONTHAN AFB","AZ","E-6",{"$f":"TRANSPOSE(J506:J506)","v":1296}]
["DAVIS-MONTHAN AFB","AZ","E-7",{"$f":"TRANSPOSE(K506:K506)","v":1314}]
["DAVIS-MONTHAN AFB","AZ","E-8",{"$f":"TRANSPOSE(L506)","v":1332}]
["DAVIS-MONTHAN AFB","AZ","E-9",{"$f":"TRANSPOSE(M506)","v":1407}]
["DAVIS-MONTHAN AFB","AZ","W-1",{"$f":"TRANSPOSE(N506)","v":1296}]
["DAVIS-MONTHAN AFB","AZ","W-2",{"$f":"TRANSPOSE(O506)","v":1320}]
["DAVIS-MONTHAN AFB","AZ","W-3",{"$f":"TRANSPOSE(P506)","v":1344}]
["DAVIS-MONTHAN AFB","AZ","W-4",{"$f":"TRANSPOSE(Q506)","v":1431}]
["DAVIS-MONTHAN AFB","AZ","W-5",{"$f":"TRANSPOSE(R506)","v":1533}]
["DAVIS-MONTHAN AFB","AZ","O-1E",{"$f":"TRANSPOSE(S506)","v":1317}]
["DAVIS-MONTHAN AFB","AZ","O-2E",{"$f":"TRANSPOSE(T506)","v":1341}]
["DAVIS-MONTHAN AFB","AZ","O-3E",{"$f":"TRANSPOSE(U506)","v":1446}]
["DAVIS-MONTHAN AFB","AZ","O-1",{"$f":"TRANSPOSE(V506)","v":1146}]
["DAVIS-MONTHAN AFB","AZ","O-2",{"$f":"TRANSPOSE(W506)","v":1293}]
["DAVIS-MONTHAN AFB","AZ","O-3",{"$f":"TRANSPOSE(X506)","v":1344}]
["DAVIS-MONTHAN AFB","AZ","O-4",{"$f":"TRANSPOSE(Y506)","v":1572}]
["DAVIS-MONTHAN AFB","AZ","O-5",{"$f":"TRANSPOSE(Z506)","v":1734}]
["DAVIS-MONTHAN AFB","AZ","O-6",{"$f":"TRANSPOSE(AA506)","v":1752}]
["DAVIS-MONTHAN AFB","AZ","O-7",{"$f":"TRANSPOSE(AB506)","v":1770}]
["YUMA","AZ","E-1",{"$f":"TRANSPOSE(E530:E530)","v":1002},1002,1002,1002,1002,1083,1284,1320,1362,1422,1284,1338,1386,1434,1488,1329,1380,1443,1104,1281,1386,1509,1599,1614,1632]
["YUMA","AZ","E-2",{"$f":"TRANSPOSE(F530:F530)","v":1002}]
["YUMA","AZ","E-3",{"$f":"TRANSPOSE(G530:G530)","v":1002}]
["YUMA","AZ","E-4",{"$f":"TRANSPOSE(H530:H530)","v":1002}]
["YUMA","AZ","E-5",{"$f":"TRANSPOSE(I530:I530)","v":1083}]
["YUMA","AZ","E-6",{"$f":"TRANSPOSE(J530:J530)","v":1284}]
["YUMA","AZ","E-7",{"$f":"TRANSPOSE(K530:K530)","v":1320}]
["YUMA","AZ","E-8",{"$f":"TRANSPOSE(L530)","v":1362}]
["YUMA","AZ","E-9",{"$f":"TRANSPOSE(M530)","v":1422}]
["YUMA","AZ","W-1",{"$f":"TRANSPOSE(N530)","v":1284}]
["YUMA","AZ","W-2",{"$f":"TRANSPOSE(O530)","v":1338}]
["YUMA","AZ","W-3",{"$f":"TRANSPOSE(P530)","v":1386}]
["YUMA","AZ","W-4",{"$f":"TRANSPOSE(Q530)","v":1434}]
["YUMA","AZ","W-5",{"$f":"TRANSPOSE(R530)","v":1488}]
["YUMA","AZ","O-1E",{"$f":"TRANSPOSE(S530)","v":1329}]
["YUMA","AZ","O-2E",{"$f":"TRANSPOSE(T530)","v":1380}]
["YUMA","AZ","O-3E",{"$f":"TRANSPOSE(U530)","v":1443}]
["YUMA","AZ","O-1",{"$f":"TRANSPOSE(V530)","v":1104}]
["YUMA","AZ","O-2",{"$f":"TRANSPOSE(W530)","v":1281}]
["YUMA","AZ","O-3",{"$f":"TRANSPOSE(X530)","v":1386}]
["YUMA","AZ","O-4",{"$f":"TRANSPOSE(Y530)","v":1509}]
["YUMA","AZ","O-5",{"$f":"TRANSPOSE(Z530)","v":1599}]
["YUMA","AZ","O-6",{"$f":"TRANSPOSE(AA530)","v":1614}]
["YUMA","AZ","O-7",{"$f":"TRANSPOSE(AB530)","v":1632}]
["OAKLAND","CA","E-1",{"$f":"TRANSPOSE(E554:E554)","v":1785},1785,1785,1785,1785,1914,2298,2430,2577,2727,2301,2490,2667,2748,2844,2460,2643,2763,1956,2289,2661,2880,3036,3066,3096]
["OAKLAND","CA","E-2",{"$f":"TRANSPOSE(F554:F554)","v":1785}]
["OAKLAND","CA","E-3",{"$f":"TRANSPOSE(G554:G554)","v":1785}]
["OAKLAND","CA","E-4",{"$f":"TRANSPOSE(H554:H554)","v":1785}]
["OAKLAND","CA","E-5",{"$f":"TRANSPOSE(I554:I554)","v":1914}]
["OAKLAND","CA","E-6",{"$f":"TRANSPOSE(J554:J554)","v":2298}]
["OAKLAND","CA","E-7",{"$f":"TRANSPOSE(K554:K554)","v":2430}]
["OAKLAND","CA","E-8",{"$f":"TRANSPOSE(L554)","v":2577}]
["OAKLAND","CA","E-9",{"$f":"TRANSPOSE(M554)","v":2727}]
["OAKLAND","CA","W-1",{"$f":"TRANSPOSE(N554)","v":2301}]
["OAKLAND","CA","W-2",{"$f":"TRANSPOSE(O554)","v":2490}]
["OAKLAND","CA","W-3",{"$f":"TRANSPOSE(P554)","v":2667}]
["OAKLAND","CA","W-4",{"$f":"TRANSPOSE(Q554)","v":2748}]
["OAKLAND","CA","W-5",{"$f":"TRANSPOSE(R554)","v":2844}]
["OAKLAND","CA","O-1E",{"$f":"TRANSPOSE(S554)","v":2460}]
["OAKLAND","CA","O-2E",{"$f":"TRANSPOSE(T554)","v":2643}]
["OAKLAND","CA","O-3E",{"$f":"TRANSPOSE(U554)","v":2763}]
["OAKLAND","CA","O-1",{"$f":"TRANSPOSE(V554)","v":1956}]
["OAKLAND","CA","O-2",{"$f":"TRANSPOSE(W554)","v":2289}]
["OAKLAND","CA","O-3",{"$f":"TRANSPOSE(X554)","v":2661}]
["OAKLAND","CA","O-4",{"$f":"TRANSPOSE(Y554)","v":2880}]
["OAKLAND","CA","O-5",{"$f":"TRANSPOSE(Z554)","v":3036}]
["OAKLAND","CA","O-6",{"$f":"TRANSPOSE(AA554)","v":3066}]
["OAKLAND","CA","O-7",{"$f":"TRANSPOSE(AB554)","v":3096}]
["SAN FRANCISCO","CA","E-1",{"$f":"TRANSPOSE(E578:E578)","v":2433},2433,2433,2433,2433,2562,2766,2850,2940,3114,2766,2886,2997,3159,3348,2868,2982,3186,2583,2760,2991,3420,3729,3765,3804]
["SAN FRANCISCO","CA","E-2",{"$f":"TRANSPOSE(F578:F578)","v":2433}]
["SAN FRANCISCO","CA","E-3",{"$f":"TRANSPOSE(G578:G578)","v":2433}]
["SAN FRANCISCO","CA","E-4",{"$f":"TRANSPOSE(H578:H578)","v":2433}]
["SAN FRANCISCO","CA","E-5",{"$f":"TRANSPOSE(I578:I578)","v":2562}]
["SAN FRANCISCO","CA","E-6",{"$f":"TRANSPOSE(J578:J578)","v":2766}]
["SAN FRANCISCO","CA","E-7",{"$f":"TRANSPOSE(K578:K578)","v":2850}]
["SAN FRANCISCO","CA","E-8",{"$f":"TRANSPOSE(L578)","v":2940}]
["SAN FRANCISCO","CA","E-9",{"$f":"TRANSPOSE(M578)","v":3114}]
["SAN FRANCISCO","CA","W-1",{"$f":"TRANSPOSE(N578)","v":2766}]
["SAN FRANCISCO","CA","W-2",{"$f":"TRANSPOSE(O578)","v":2886}]
["SAN FRANCISCO","CA","W-3",{"$f":"TRANSPOSE(P578)","v":2997}]
["SAN FRANCISCO","CA","W-4",{"$f":"TRANSPOSE(Q578)","v":3159}]
["SAN FRANCISCO","CA","W-5",{"$f":"TRANSPOSE(R578)","v":3348}]
["SAN FRANCISCO","CA","O-1E",{"$f":"TRANSPOSE(S578)","v":2868}]
["SAN FRANCISCO","CA","O-2E",{"$f":"TRANSPOSE(T578)","v":2982}]
["SAN FRANCISCO","CA","O-3E",{"$f":"TRANSPOSE(U578)","v":3186}]
["SAN FRANCISCO","CA","O-1",{"$f":"TRANSPOSE(V578)","v":2583}]
["SAN FRANCISCO","CA","O-2",{"$f":"TRANSPOSE(W578)","v":2760}]
["SAN FRANCISCO","CA","O-3",{"$f":"TRANSPOSE(X578)","v":2991}]
["SAN FRANCISCO","CA","O-4",{"$f":"TRANSPOSE(Y578)","v":3420}]
["SAN FRANCISCO","CA","O-5",{"$f":"TRANSPOSE(Z578)","v":3729}]
["SAN FRANCISCO","CA","O-6",{"$f":"TRANSPOSE(AA578)","v":3765}]
["SAN FRANCISCO","CA","O-7",{"$f":"TRANSPOSE(AB578)","v":3804}]
["CHINA LAKE NAVWEPCEN","CA","E-1",{"$f":"TRANSPOSE(E602:E602)","v":867},867,867,867,867,960,1179,1203,1233,1311,1179,1215,1251,1335,1434,1209,1245,1350,984,1173,1248,1473,1635,1653,1668]
["CHINA LAKE NAVWEPCEN","CA","E-2",{"$f":"TRANSPOSE(F602:F602)","v":867}]
["CHINA LAKE NAVWEPCEN","CA","E-3",{"$f":"TRANSPOSE(G602:G602)","v":867}]
["CHINA LAKE NAVWEPCEN","CA","E-4",{"$f":"TRANSPOSE(H602:H602)","v":867}]
["CHINA LAKE NAVWEPCEN","CA","E-5",{"$f":"TRANSPOSE(I602:I602)","v":960}]
["CHINA LAKE NAVWEPCEN","CA","E-6",{"$f":"TRANSPOSE(J602:J602)","v":1179}]
["CHINA LAKE NAVWEPCEN","CA","E-7",{"$f":"TRANSPOSE(K602:K602)","v":1203}]
["CHINA LAKE NAVWEPCEN","CA","E-8",{"$f":"TRANSPOSE(L602)","v":1233}]
["CHINA LAKE NAVWEPCEN","CA","E-9",{"$f":"TRANSPOSE(M602)","v":1311}]
["CHINA LAKE NAVWEPCEN","CA","W-1",{"$f":"TRANSPOSE(N602)","v":1179}]
["CHINA LAKE NAVWEPCEN","CA","W-2",{"$f":"TRANSPOSE(O602)","v":1215}]
["CHINA LAKE NAVWEPCEN","CA","W-3",{"$f":"TRANSPOSE(P602)","v":1251}]
["CHINA LAKE NAVWEPCEN","CA","W-4",{"$f":"TRANSPOSE(Q602)","v":1335}]
["CHINA LAKE NAVWEPCEN","CA","W-5",{"$f":"TRANSPOSE(R602)","v":1434}]
["CHINA LAKE NAVWEPCEN","CA","O-1E",{"$f":"TRANSPOSE(S602)","v":1209}]
["CHINA LAKE NAVWEPCEN","CA","O-2E",{"$f":"TRANSPOSE(T602)","v":1245}]
["CHINA LAKE NAVWEPCEN","CA","O-3E",{"$f":"TRANSPOSE(U602)","v":1350}]
["CHINA LAKE NAVWEPCEN","CA","O-1",{"$f":"TRANSPOSE(V602)","v":984}]
["CHINA LAKE NAVWEPCEN","CA","O-2",{"$f":"TRANSPOSE(W602)","v":1173}]
["CHINA LAKE NAVWEPCEN","CA","O-3",{"$f":"TRANSPOSE(X602)","v":1248}]
["CHINA LAKE NAVWEPCEN","CA","O-4",{"$f":"TRANSPOSE(Y602)","v":1473}]
["CHINA LAKE NAVWEPCEN","CA","O-5",{"$f":"TRANSPOSE(Z602)","v":1635}]
["CHINA LAKE NAVWEPCEN","CA","O-6",{"$f":"TRANSPOSE(AA602)","v":1653}]
["CHINA LAKE NAVWEPCEN","CA","O-7",{"$f":"TRANSPOSE(AB602)","v":1668}]
["FRESNO","CA","E-1",{"$f":"TRANSPOSE(E626:E626)","v":1125},1125,1125,1125,1125,1227,1380,1410,1446,1518,1380,1425,1470,1536,1617,1419,1464,1548,1245,1377,1467,1647,1776,1794,1812]
["FRESNO","CA","E-2",{"$f":"TRANSPOSE(F626:F626)","v":1125}]
["FRESNO","CA","E-3",{"$f":"TRANSPOSE(G626:G626)","v":1125}]
["FRESNO","CA","E-4",{"$f":"TRANSPOSE(H626:H626)","v":1125}]
["FRESNO","CA","E-5",{"$f":"TRANSPOSE(I626:I626)","v":1227}]
["FRESNO","CA","E-6",{"$f":"TRANSPOSE(J626:J626)","v":1380}]
["FRESNO","CA","E-7",{"$f":"TRANSPOSE(K626:K626)","v":1410}]
["FRESNO","CA","E-8",{"$f":"TRANSPOSE(L626)","v":1446}]
["FRESNO","CA","E-9",{"$f":"TRANSPOSE(M626)","v":1518}]
["FRESNO","CA","W-1",{"$f":"TRANSPOSE(N626)","v":1380}]
["FRESNO","CA","W-2",{"$f":"TRANSPOSE(O626)","v":1425}]
["FRESNO","CA","W-3",{"$f":"TRANSPOSE(P626)","v":1470}]
["FRESNO","CA","W-4",{"$f":"TRANSPOSE(Q626)","v":1536}]
["FRESNO","CA","W-5",{"$f":"TRANSPOSE(R626)","v":1617}]
["FRESNO","CA","O-1E",{"$f":"TRANSPOSE(S626)","v":1419}]
["FRESNO","CA","O-2E",{"$f":"TRANSPOSE(T626)","v":1464}]
["FRESNO","CA","O-3E",{"$f":"TRANSPOSE(U626)","v":1548}]
["FRESNO","CA","O-1",{"$f":"TRANSPOSE(V626)","v":1245}]
["FRESNO","CA","O-2",{"$f":"TRANSPOSE(W626)","v":1377}]
["FRESNO","CA","O-3",{"$f":"TRANSPOSE(X626)","v":1467}]
["FRESNO","CA","O-4",{"$f":"TRANSPOSE(Y626)","v":1647}]
["FRESNO","CA","O-5",{"$f":"TRANSPOSE(Z626)","v":1776}]
["FRESNO","CA","O-6",{"$f":"TRANSPOSE(AA626)","v":1794}]
["FRESNO","CA","O-7",{"$f":"TRANSPOSE(AB626)","v":1812}]
["LEMORE NAS","CA","E-1",{"$f":"TRANSPOSE(E650:E650)","v":1023},1023,1023,1023,1023,1116,1218,1332,1452,1563,1221,1380,1530,1572,1623,1356,1509,1581,1128,1218,1524,1641,1722,1740,1755]
["LEMORE NAS","CA","E-2",{"$f":"TRANSPOSE(F650:F650)","v":1023}]
["LEMORE NAS","CA","E-3",{"$f":"TRANSPOSE(G650:G650)","v":1023}]
["LEMORE NAS","CA","E-4",{"$f":"TRANSPOSE(H650:H650)","v":1023}]
["LEMORE NAS","CA","E-5",{"$f":"TRANSPOSE(I650:I650)","v":1116}]
["LEMORE NAS","CA","E-6",{"$f":"TRANSPOSE(J650:J650)","v":1218}]
["LEMORE NAS","CA","E-7",{"$f":"TRANSPOSE(K650:K650)","v":1332}]
["LEMORE NAS","CA","E-8",{"$f":"TRANSPOSE(L650)","v":1452}]
["LEMORE NAS","CA","E-9",{"$f":"TRANSPOSE(M650)","v":1563}]
["LEMORE NAS","CA","W-1",{"$f":"TRANSPOSE(N650)","v":1221}]
["LEMORE NAS","CA","W-2",{"$f":"TRANSPOSE(O650)","v":1380}]
["LEMORE NAS","CA","W-3",{"$f":"TRANSPOSE(P650)","v":1530}]
["LEMORE NAS","CA","W-4",{"$f":"TRANSPOSE(Q650)","v":1572}]
["LEMORE NAS","CA","W-5",{"$f":"TRANSPOSE(R650)","v":1623}]
["LEMORE NAS","CA","O-1E",{"$f":"TRANSPOSE(S650)","v":1356}]
["LEMORE NAS","CA","O-2E",{"$f":"TRANSPOSE(T650)","v":1509}]
["LEMORE NAS","CA","O-3E",{"$f":"TRANSPOSE(U650)","v":1581}]
["LEMORE NAS","CA","O-1",{"$f":"TRANSPOSE(V650)","v":1128}]
["LEMORE NAS","CA","O-2",{"$f":"TRANSPOSE(W650)","v":1218}]
["LEMORE NAS","CA","O-3",{"$f":"TRANSPOSE(X650)","v":1524}]
["LEMORE NAS","CA","O-4",{"$f":"TRANSPOSE(Y650)","v":1641}]
["LEMORE NAS","CA","O-5",{"$f":"TRANSPOSE(Z650)","v":1722}]
["LEMORE NAS","CA","O-6",{"$f":"TRANSPOSE(AA650)","v":1740}]
["LEMORE NAS","CA","O-7",{"$f":"TRANSPOSE(AB650)","v":1755}]
["CAMP PENDLETON","CA","E-1",{"$f":"TRANSPOSE(E674:E674)","v":1677},1677,1677,1677,1677,1776,2058,2148,2247,2370,2061,2187,2310,2394,2493,2169,2292,2409,1806,2052,2304,2529,2691,2718,2745]
["CAMP PENDLETON","CA","E-2",{"$f":"TRANSPOSE(F674:F674)","v":1677}]
["CAMP PENDLETON","CA","E-3",{"$f":"TRANSPOSE(G674:G674)","v":1677}]
["CAMP PENDLETON","CA","E-4",{"$f":"TRANSPOSE(H674:H674)","v":1677}]
["CAMP PENDLETON","CA","E-5",{"$f":"TRANSPOSE(I674:I674)","v":1776}]
["CAMP PENDLETON","CA","E-6",{"$f":"TRANSPOSE(J674:J674)","v":2058}]
["CAMP PENDLETON","CA","E-7",{"$f":"TRANSPOSE(K674:K674)","v":2148}]
["CAMP PENDLETON","CA","E-8",{"$f":"TRANSPOSE(L674)","v":2247}]
["CAMP PENDLETON","CA","E-9",{"$f":"TRANSPOSE(M674)","v":2370}]
["CAMP PENDLETON","CA","W-1",{"$f":"TRANSPOSE(N674)","v":2061}]
["CAMP PENDLETON","CA","W-2",{"$f":"TRANSPOSE(O674)","v":2187}]
["CAMP PENDLETON","CA","W-3",{"$f":"TRANSPOSE(P674)","v":2310}]
["CAMP PENDLETON","CA","W-4",{"$f":"TRANSPOSE(Q674)","v":2394}]
["CAMP PENDLETON","CA","W-5",{"$f":"TRANSPOSE(R674)","v":2493}]
["CAMP PENDLETON","CA","O-1E",{"$f":"TRANSPOSE(S674)","v":2169}]
["CAMP PENDLETON","CA","O-2E",{"$f":"TRANSPOSE(T674)","v":2292}]
["CAMP PENDLETON","CA","O-3E",{"$f":"TRANSPOSE(U674)","v":2409}]
["CAMP PENDLETON","CA","O-1",{"$f":"TRANSPOSE(V674)","v":1806}]
["CAMP PENDLETON","CA","O-2",{"$f":"TRANSPOSE(W674)","v":2052}]
["CAMP PENDLETON","CA","O-3",{"$f":"TRANSPOSE(X674)","v":2304}]
["CAMP PENDLETON","CA","O-4",{"$f":"TRANSPOSE(Y674)","v":2529}]
["CAMP PENDLETON","CA","O-5",{"$f":"TRANSPOSE(Z674)","v":2691}]
["CAMP PENDLETON","CA","O-6",{"$f":"TRANSPOSE(AA674)","v":2718}]
["CAMP PENDLETON","CA","O-7",{"$f":"TRANSPOSE(AB674)","v":2745}]
["VENTURA","CA","E-1",{"$f":"TRANSPOSE(E698:E698)","v":1686},1686,1686,1686,1686,1776,2190,2340,2502,2685,2193,2406,2607,2715,2841,2373,2577,2733,1821,2181,2598,2889,3093,3123,3153]
["VENTURA","CA","E-2",{"$f":"TRANSPOSE(F698:F698)","v":1686}]
["VENTURA","CA","E-3",{"$f":"TRANSPOSE(G698:G698)","v":1686}]
["VENTURA","CA","E-4",{"$f":"TRANSPOSE(H698:H698)","v":1686}]
["VENTURA","CA","E-5",{"$f":"TRANSPOSE(I698:I698)","v":1776}]
["VENTURA","CA","E-6",{"$f":"TRANSPOSE(J698:J698)","v":2190}]
["VENTURA","CA","E-7",{"$f":"TRANSPOSE(K698:K698)","v":2340}]
["VENTURA","CA","E-8",{"$f":"TRANSPOSE(L698)","v":2502}]
["VENTURA","CA","E-9",{"$f":"TRANSPOSE(M698)","v":2685}]
["VENTURA","CA","W-1",{"$f":"TRANSPOSE(N698)","v":2193}]
["VENTURA","CA","W-2",{"$f":"TRANSPOSE(O698)","v":2406}]
["VENTURA","CA","W-3",{"$f":"TRANSPOSE(P698)","v":2607}]
["VENTURA","CA","W-4",{"$f":"TRANSPOSE(Q698)","v":2715}]
["VENTURA","CA","W-5",{"$f":"TRANSPOSE(R698)","v":2841}]
["VENTURA","CA","O-1E",{"$f":"TRANSPOSE(S698)","v":2373}]
["VENTURA","CA","O-2E",{"$f":"TRANSPOSE(T698)","v":2577}]
["VENTURA","CA","O-3E",{"$f":"TRANSPOSE(U698)","v":2733}]
["VENTURA","CA","O-1",{"$f":"TRANSPOSE(V698)","v":1821}]
["VENTURA","CA","O-2",{"$f":"TRANSPOSE(W698)","v":2181}]
["VENTURA","CA","O-3",{"$f":"TRANSPOSE(X698)","v":2598}]
["VENTURA","CA","O-4",{"$f":"TRANSPOSE(Y698)","v":2889}]
["VENTURA","CA","O-5",{"$f":"TRANSPOSE(Z698)","v":3093}]
["VENTURA","CA","O-6",{"$f":"TRANSPOSE(AA698)","v":3123}]
["VENTURA","CA","O-7",{"$f":"TRANSPOSE(AB698)","v":3153}]
["VANDENBERG AFB","CA","E-1",{"$f":"TRANSPOSE(E722:E722)","v":1341},1341,1341,1341,1341,1452,1620,1674,1734,1833,1620,1698,1773,1857,1956,1686,1761,1872,1470,1617,1770,1995,2154,2175,2196]
["VANDENBERG AFB","CA","E-2",{"$f":"TRANSPOSE(F722:F722)","v":1341}]
["VANDENBERG AFB","CA","E-3",{"$f":"TRANSPOSE(G722:G722)","v":1341}]
["VANDENBERG AFB","CA","E-4",{"$f":"TRANSPOSE(H722:H722)","v":1341}]
["VANDENBERG AFB","CA","E-5",{"$f":"TRANSPOSE(I722:I722)","v":1452}]
["VANDENBERG AFB","CA","E-6",{"$f":"TRANSPOSE(J722:J722)","v":1620}]
["VANDENBERG AFB","CA","E-7",{"$f":"TRANSPOSE(K722:K722)","v":1674}]
["VANDENBERG AFB","CA","E-8",{"$f":"TRANSPOSE(L722)","v":1734}]
["VANDENBERG AFB","CA","E-9",{"$f":"TRANSPOSE(M722)","v":1833}]
["VANDENBERG AFB","CA","W-1",{"$f":"TRANSPOSE(N722)","v":1620}]
["VANDENBERG AFB","CA","W-2",{"$f":"TRANSPOSE(O722)","v":1698}]
["VANDENBERG AFB","CA","W-3",{"$f":"TRANSPOSE(P722)","v":1773}]
["VANDENBERG AFB","CA","W-4",{"$f":"TRANSPOSE(Q722)","v":1857}]
["VANDENBERG AFB","CA","W-5",{"$f":"TRANSPOSE(R722)","v":1956}]
["VANDENBERG AFB","CA","O-1E",{"$f":"TRANSPOSE(S722)","v":1686}]
["VANDENBERG AFB","CA","O-2E",{"$f":"TRANSPOSE(T722)","v":1761}]
["VANDENBERG AFB","CA","O-3E",{"$f":"TRANSPOSE(U722)","v":1872}]
["VANDENBERG AFB","CA","O-1",{"$f":"TRANSPOSE(V722)","v":1470}]
["VANDENBERG AFB","CA","O-2",{"$f":"TRANSPOSE(W722)","v":1617}]
["VANDENBERG AFB","CA","O-3",{"$f":"TRANSPOSE(X722)","v":1770}]
["VANDENBERG AFB","CA","O-4",{"$f":"TRANSPOSE(Y722)","v":1995}]
["VANDENBERG AFB","CA","O-5",{"$f":"TRANSPOSE(Z722)","v":2154}]
["VANDENBERG AFB","CA","O-6",{"$f":"TRANSPOSE(AA722)","v":2175}]
["VANDENBERG AFB","CA","O-7",{"$f":"TRANSPOSE(AB722)","v":2196}]
["MARIN/SONOMA","CA","E-1",{"$f":"TRANSPOSE(E746:E746)","v":1920},1920,1920,1920,1920,2058,2097,2127,2160,2247,2097,2139,2178,2274,2385,2133,2172,2292,2061,2097,2178,2427,2610,2634,2661]
["MARIN/SONOMA","CA","E-2",{"$f":"TRANSPOSE(F746:F746)","v":1920}]
["MARIN/SONOMA","CA","E-3",{"$f":"TRANSPOSE(G746:G746)","v":1920}]
["MARIN/SONOMA","CA","E-4",{"$f":"TRANSPOSE(H746:H746)","v":1920}]
["MARIN/SONOMA","CA","E-5",{"$f":"TRANSPOSE(I746:I746)","v":2058}]
["MARIN/SONOMA","CA","E-6",{"$f":"TRANSPOSE(J746:J746)","v":2097}]
["MARIN/SONOMA","CA","E-7",{"$f":"TRANSPOSE(K746:K746)","v":2127}]
["MARIN/SONOMA","CA","E-8",{"$f":"TRANSPOSE(L746)","v":2160}]
["MARIN/SONOMA","CA","E-9",{"$f":"TRANSPOSE(M746)","v":2247}]
["MARIN/SONOMA","CA","W-1",{"$f":"TRANSPOSE(N746)","v":2097}]
["MARIN/SONOMA","CA","W-2",{"$f":"TRANSPOSE(O746)","v":2139}]
["MARIN/SONOMA","CA","W-3",{"$f":"TRANSPOSE(P746)","v":2178}]
["MARIN/SONOMA","CA","W-4",{"$f":"TRANSPOSE(Q746)","v":2274}]
["MARIN/SONOMA","CA","W-5",{"$f":"TRANSPOSE(R746)","v":2385}]
["MARIN/SONOMA","CA","O-1E",{"$f":"TRANSPOSE(S746)","v":2133}]
["MARIN/SONOMA","CA","O-2E",{"$f":"TRANSPOSE(T746)","v":2172}]
["MARIN/SONOMA","CA","O-3E",{"$f":"TRANSPOSE(U746)","v":2292}]
["MARIN/SONOMA","CA","O-1",{"$f":"TRANSPOSE(V746)","v":2061}]
["MARIN/SONOMA","CA","O-2",{"$f":"TRANSPOSE(W746)","v":2097}]
["MARIN/SONOMA","CA","O-3",{"$f":"TRANSPOSE(X746)","v":2178}]
["MARIN/SONOMA","CA","O-4",{"$f":"TRANSPOSE(Y746)","v":2427}]
["MARIN/SONOMA","CA","O-5",{"$f":"TRANSPOSE(Z746)","v":2610}]
["MARIN/SONOMA","CA","O-6",{"$f":"TRANSPOSE(AA746)","v":2634}]
["MARIN/SONOMA","CA","O-7",{"$f":"TRANSPOSE(AB746)","v":2661}]
["BARSTOW/FORT IRWIN","CA","E-1",{"$f":"TRANSPOSE(E770:E770)","v":1014},1014,1014,1014,1014,1089,1272,1329,1392,1458,1275,1356,1431,1470,1515,1341,1419,1476,1110,1269,1428,1533,1608,1626,1641]
["BARSTOW/FORT IRWIN","CA","E-2",{"$f":"TRANSPOSE(F770:F770)","v":1014}]
["BARSTOW/FORT IRWIN","CA","E-3",{"$f":"TRANSPOSE(G770:G770)","v":1014}]
["BARSTOW/FORT IRWIN","CA","E-4",{"$f":"TRANSPOSE(H770:H770)","v":1014}]
["BARSTOW/FORT IRWIN","CA","E-5",{"$f":"TRANSPOSE(I770:I770)","v":1089}]
["BARSTOW/FORT IRWIN","CA","E-6",{"$f":"TRANSPOSE(J770:J770)","v":1272}]
["BARSTOW/FORT IRWIN","CA","E-7",{"$f":"TRANSPOSE(K770:K770)","v":1329}]
["BARSTOW/FORT IRWIN","CA","E-8",{"$f":"TRANSPOSE(L770)","v":1392}]
["BARSTOW/FORT IRWIN","CA","E-9",{"$f":"TRANSPOSE(M770)","v":1458}]
["BARSTOW/FORT IRWIN","CA","W-1",{"$f":"TRANSPOSE(N770)","v":1275}]
["BARSTOW/FORT IRWIN","CA","W-2",{"$f":"TRANSPOSE(O770)","v":1356}]
["BARSTOW/FORT IRWIN","CA","W-3",{"$f":"TRANSPOSE(P770)","v":1431}]
["BARSTOW/FORT IRWIN","CA","W-4",{"$f":"TRANSPOSE(Q770)","v":1470}]
["BARSTOW/FORT IRWIN","CA","W-5",{"$f":"TRANSPOSE(R770)","v":1515}]
["BARSTOW/FORT IRWIN","CA","O-1E",{"$f":"TRANSPOSE(S770)","v":1341}]
["BARSTOW/FORT IRWIN","CA","O-2E",{"$f":"TRANSPOSE(T770)","v":1419}]
["BARSTOW/FORT IRWIN","CA","O-3E",{"$f":"TRANSPOSE(U770)","v":1476}]
["BARSTOW/FORT IRWIN","CA","O-1",{"$f":"TRANSPOSE(V770)","v":1110}]
["BARSTOW/FORT IRWIN","CA","O-2",{"$f":"TRANSPOSE(W770)","v":1269}]
["BARSTOW/FORT IRWIN","CA","O-3",{"$f":"TRANSPOSE(X770)","v":1428}]
["BARSTOW/FORT IRWIN","CA","O-4",{"$f":"TRANSPOSE(Y770)","v":1533}]
["BARSTOW/FORT IRWIN","CA","O-5",{"$f":"TRANSPOSE(Z770)","v":1608}]
["BARSTOW/FORT IRWIN","CA","O-6",{"$f":"TRANSPOSE(AA770)","v":1626}]
["BARSTOW/FORT IRWIN","CA","O-7",{"$f":"TRANSPOSE(AB770)","v":1641}]
["SAN BERNARDINO","CA","E-1",{"$f":"TRANSPOSE(E794:E794)","v":1206},1206,1206,1206,1206,1296,1599,1632,1668,1719,1599,1647,1689,1731,1782,1638,1683,1740,1329,1593,1689,1800,1881,1899,1917]
["SAN BERNARDINO","CA","E-2",{"$f":"TRANSPOSE(F794:F794)","v":1206}]
["SAN BERNARDINO","CA","E-3",{"$f":"TRANSPOSE(G794:G794)","v":1206}]
["SAN BERNARDINO","CA","E-4",{"$f":"TRANSPOSE(H794:H794)","v":1206}]
["SAN BERNARDINO","CA","E-5",{"$f":"TRANSPOSE(I794:I794)","v":1296}]
["SAN BERNARDINO","CA","E-6",{"$f":"TRANSPOSE(J794:J794)","v":1599}]
["SAN BERNARDINO","CA","E-7",{"$f":"TRANSPOSE(K794:K794)","v":1632}]
["SAN BERNARDINO","CA","E-8",{"$f":"TRANSPOSE(L794)","v":1668}]
["SAN BERNARDINO","CA","E-9",{"$f":"TRANSPOSE(M794)","v":1719}]
["SAN BERNARDINO","CA","W-1",{"$f":"TRANSPOSE(N794)","v":1599}]
["SAN BERNARDINO","CA","W-2",{"$f":"TRANSPOSE(O794)","v":1647}]
["SAN BERNARDINO","CA","W-3",{"$f":"TRANSPOSE(P794)","v":1689}]
["SAN BERNARDINO","CA","W-4",{"$f":"TRANSPOSE(Q794)","v":1731}]
["SAN BERNARDINO","CA","W-5",{"$f":"TRANSPOSE(R794)","v":1782}]
["SAN BERNARDINO","CA","O-1E",{"$f":"TRANSPOSE(S794)","v":1638}]
["SAN BERNARDINO","CA","O-2E",{"$f":"TRANSPOSE(T794)","v":1683}]
["SAN BERNARDINO","CA","O-3E",{"$f":"TRANSPOSE(U794)","v":1740}]
["SAN BERNARDINO","CA","O-1",{"$f":"TRANSPOSE(V794)","v":1329}]
["SAN BERNARDINO","CA","O-2",{"$f":"TRANSPOSE(W794)","v":1593}]
["SAN BERNARDINO","CA","O-3",{"$f":"TRANSPOSE(X794)","v":1689}]
["SAN BERNARDINO","CA","O-4",{"$f":"TRANSPOSE(Y794)","v":1800}]
["SAN BERNARDINO","CA","O-5",{"$f":"TRANSPOSE(Z794)","v":1881}]
["SAN BERNARDINO","CA","O-6",{"$f":"TRANSPOSE(AA794)","v":1899}]
["SAN BERNARDINO","CA","O-7",{"$f":"TRANSPOSE(AB794)","v":1917}]
["TWENTY NINE PALMS MCB","CA","E-1",{"$f":"TRANSPOSE(E818:E818)","v":963},963,963,963,963,1035,1218,1287,1362,1458,1221,1317,1410,1476,1551,1302,1398,1488,1056,1215,1407,1581,1707,1722,1740]
["TWENTY NINE PALMS MCB","CA","E-2",{"$f":"TRANSPOSE(F818:F818)","v":963}]
["TWENTY NINE PALMS MCB","CA","E-3",{"$f":"TRANSPOSE(G818:G818)","v":963}]
["TWENTY NINE PALMS MCB","CA","E-4",{"$f":"TRANSPOSE(H818:H818)","v":963}]
["TWENTY NINE PALMS MCB","CA","E-5",{"$f":"TRANSPOSE(I818:I818)","v":1035}]
["TWENTY NINE PALMS MCB","CA","E-6",{"$f":"TRANSPOSE(J818:J818)","v":1218}]
["TWENTY NINE PALMS MCB","CA","E-7",{"$f":"TRANSPOSE(K818:K818)","v":1287}]
["TWENTY NINE PALMS MCB","CA","E-8",{"$f":"TRANSPOSE(L818)","v":1362}]
["TWENTY NINE PALMS MCB","CA","E-9",{"$f":"TRANSPOSE(M818)","v":1458}]
["TWENTY NINE PALMS MCB","CA","W-1",{"$f":"TRANSPOSE(N818)","v":1221}]
["TWENTY NINE PALMS MCB","CA","W-2",{"$f":"TRANSPOSE(O818)","v":1317}]
["TWENTY NINE PALMS MCB","CA","W-3",{"$f":"TRANSPOSE(P818)","v":1410}]
["TWENTY NINE PALMS MCB","CA","W-4",{"$f":"TRANSPOSE(Q818)","v":1476}]
["TWENTY NINE PALMS MCB","CA","W-5",{"$f":"TRANSPOSE(R818)","v":1551}]
["TWENTY NINE PALMS MCB","CA","O-1E",{"$f":"TRANSPOSE(S818)","v":1302}]
["TWENTY NINE PALMS MCB","CA","O-2E",{"$f":"TRANSPOSE(T818)","v":1398}]
["TWENTY NINE PALMS MCB","CA","O-3E",{"$f":"TRANSPOSE(U818)","v":1488}]
["TWENTY NINE PALMS MCB","CA","O-1",{"$f":"TRANSPOSE(V818)","v":1056}]
["TWENTY NINE PALMS MCB","CA","O-2",{"$f":"TRANSPOSE(W818)","v":1215}]
["TWENTY NINE PALMS MCB","CA","O-3",{"$f":"TRANSPOSE(X818)","v":1407}]
["TWENTY NINE PALMS MCB","CA","O-4",{"$f":"TRANSPOSE(Y818)","v":1581}]
["TWENTY NINE PALMS MCB","CA","O-5",{"$f":"TRANSPOSE(Z818)","v":1707}]
["TWENTY NINE PALMS MCB","CA","O-6",{"$f":"TRANSPOSE(AA818)","v":1722}]
["TWENTY NINE PALMS MCB","CA","O-7",{"$f":"TRANSPOSE(AB818)","v":1740}]
["BEALE AFB","CA","E-1",{"$f":"TRANSPOSE(E842:E842)","v":1236},1236,1236,1236,1236,1317,1446,1590,1746,1914,1449,1656,1848,1941,2049,1623,1818,1956,1332,1443,1839,2091,2271,2292,2316]
["BEALE AFB","CA","E-2",{"$f":"TRANSPOSE(F842:F842)","v":1236}]
["BEALE AFB","CA","E-3",{"$f":"TRANSPOSE(G842:G842)","v":1236}]
["BEALE AFB","CA","E-4",{"$f":"TRANSPOSE(H842:H842)","v":1236}]
["BEALE AFB","CA","E-5",{"$f":"TRANSPOSE(I842:I842)","v":1317}]
["BEALE AFB","CA","E-6",{"$f":"TRANSPOSE(J842:J842)","v":1446}]
["BEALE AFB","CA","E-7",{"$f":"TRANSPOSE(K842:K842)","v":1590}]
["BEALE AFB","CA","E-8",{"$f":"TRANSPOSE(L842)","v":1746}]
["BEALE AFB","CA","E-9",{"$f":"TRANSPOSE(M842)","v":1914}]
["BEALE AFB","CA","W-1",{"$f":"TRANSPOSE(N842)","v":1449}]
["BEALE AFB","CA","W-2",{"$f":"TRANSPOSE(O842)","v":1656}]
["BEALE AFB","CA","W-3",{"$f":"TRANSPOSE(P842)","v":1848}]
["BEALE AFB","CA","W-4",{"$f":"TRANSPOSE(Q842)","v":1941}]
["BEALE AFB","CA","W-5",{"$f":"TRANSPOSE(R842)","v":2049}]
["BEALE AFB","CA","O-1E",{"$f":"TRANSPOSE(S842)","v":1623}]
["BEALE AFB","CA","O-2E",{"$f":"TRANSPOSE(T842)","v":1818}]
["BEALE AFB","CA","O-3E",{"$f":"TRANSPOSE(U842)","v":1956}]
["BEALE AFB","CA","O-1",{"$f":"TRANSPOSE(V842)","v":1332}]
["BEALE AFB","CA","O-2",{"$f":"TRANSPOSE(W842)","v":1443}]
["BEALE AFB","CA","O-3",{"$f":"TRANSPOSE(X842)","v":1839}]
["BEALE AFB","CA","O-4",{"$f":"TRANSPOSE(Y842)","v":2091}]
["BEALE AFB","CA","O-5",{"$f":"TRANSPOSE(Z842)","v":2271}]
["BEALE AFB","CA","O-6",{"$f":"TRANSPOSE(AA842)","v":2292}]
["BEALE AFB","CA","O-7",{"$f":"TRANSPOSE(AB842)","v":2316}]
["SACRAMENTO","CA","E-1",{"$f":"TRANSPOSE(E866:E866)","v":1527},1527,1527,1527,1527,1680,1854,1923,1998,2133,1854,1953,2046,2163,2304,1938,2031,2187,1698,1851,2040,2358,2586,2613,2637]
["SACRAMENTO","CA","E-2",{"$f":"TRANSPOSE(F866:F866)","v":1527}]
["SACRAMENTO","CA","E-3",{"$f":"TRANSPOSE(G866:G866)","v":1527}]
["SACRAMENTO","CA","E-4",{"$f":"TRANSPOSE(H866:H866)","v":1527}]
["SACRAMENTO","CA","E-5",{"$f":"TRANSPOSE(I866:I866)","v":1680}]
["SACRAMENTO","CA","E-6",{"$f":"TRANSPOSE(J866:J866)","v":1854}]
["SACRAMENTO","CA","E-7",{"$f":"TRANSPOSE(K866:K866)","v":1923}]
["SACRAMENTO","CA","E-8",{"$f":"TRANSPOSE(L866)","v":1998}]
["SACRAMENTO","CA","E-9",{"$f":"TRANSPOSE(M866)","v":2133}]
["SACRAMENTO","CA","W-1",{"$f":"TRANSPOSE(N866)","v":1854}]
["SACRAMENTO","CA","W-2",{"$f":"TRANSPOSE(O866)","v":1953}]
["SACRAMENTO","CA","W-3",{"$f":"TRANSPOSE(P866)","v":2046}]
["SACRAMENTO","CA","W-4",{"$f":"TRANSPOSE(Q866)","v":2163}]
["SACRAMENTO","CA","W-5",{"$f":"TRANSPOSE(R866)","v":2304}]
["SACRAMENTO","CA","O-1E",{"$f":"TRANSPOSE(S866)","v":1938}]
["SACRAMENTO","CA","O-2E",{"$f":"TRANSPOSE(T866)","v":2031}]
["SACRAMENTO","CA","O-3E",{"$f":"TRANSPOSE(U866)","v":2187}]
["SACRAMENTO","CA","O-1",{"$f":"TRANSPOSE(V866)","v":1698}]
["SACRAMENTO","CA","O-2",{"$f":"TRANSPOSE(W866)","v":1851}]
["SACRAMENTO","CA","O-3",{"$f":"TRANSPOSE(X866)","v":2040}]
["SACRAMENTO","CA","O-4",{"$f":"TRANSPOSE(Y866)","v":2358}]
["SACRAMENTO","CA","O-5",{"$f":"TRANSPOSE(Z866)","v":2586}]
["SACRAMENTO","CA","O-6",{"$f":"TRANSPOSE(AA866)","v":2613}]
["SACRAMENTO","CA","O-7",{"$f":"TRANSPOSE(AB866)","v":2637}]
["STOCKTON","CA","E-1",{"$f":"TRANSPOSE(E890:E890)","v":1119},1119,1119,1119,1119,1221,1389,1452,1518,1611,1392,1479,1560,1629,1710,1464,1548,1641,1239,1386,1557,1740,1869,1890,1908]
["STOCKTON","CA","E-2",{"$f":"TRANSPOSE(F890:F890)","v":1119}]
["STOCKTON","CA","E-3",{"$f":"TRANSPOSE(G890:G890)","v":1119}]
["STOCKTON","CA","E-4",{"$f":"TRANSPOSE(H890:H890)","v":1119}]
["STOCKTON","CA","E-5",{"$f":"TRANSPOSE(I890:I890)","v":1221}]
["STOCKTON","CA","E-6",{"$f":"TRANSPOSE(J890:J890)","v":1389}]
["STOCKTON","CA","E-7",{"$f":"TRANSPOSE(K890:K890)","v":1452}]
["STOCKTON","CA","E-8",{"$f":"TRANSPOSE(L890)","v":1518}]
["STOCKTON","CA","E-9",{"$f":"TRANSPOSE(M890)","v":1611}]
["STOCKTON","CA","W-1",{"$f":"TRANSPOSE(N890)","v":1392}]
["STOCKTON","CA","W-2",{"$f":"TRANSPOSE(O890)","v":1479}]
["STOCKTON","CA","W-3",{"$f":"TRANSPOSE(P890)","v":1560}]
["STOCKTON","CA","W-4",{"$f":"TRANSPOSE(Q890)","v":1629}]
["STOCKTON","CA","W-5",{"$f":"TRANSPOSE(R890)","v":1710}]
["STOCKTON","CA","O-1E",{"$f":"TRANSPOSE(S890)","v":1464}]
["STOCKTON","CA","O-2E",{"$f":"TRANSPOSE(T890)","v":1548}]
["STOCKTON","CA","O-3E",{"$f":"TRANSPOSE(U890)","v":1641}]
["STOCKTON","CA","O-1",{"$f":"TRANSPOSE(V890)","v":1239}]
["STOCKTON","CA","O-2",{"$f":"TRANSPOSE(W890)","v":1386}]
["STOCKTON","CA","O-3",{"$f":"TRANSPOSE(X890)","v":1557}]
["STOCKTON","CA","O-4",{"$f":"TRANSPOSE(Y890)","v":1740}]
["STOCKTON","CA","O-5",{"$f":"TRANSPOSE(Z890)","v":1869}]
["STOCKTON","CA","O-6",{"$f":"TRANSPOSE(AA890)","v":1890}]
["STOCKTON","CA","O-7",{"$f":"TRANSPOSE(AB890)","v":1908}]
["VALLEJO/TRAVIS AFB","CA","E-1",{"$f":"TRANSPOSE(E914:E914)","v":1599},1599,1599,1599,1599,1653,1833,1905,1986,2121,1836,1938,2034,2154,2292,1923,2022,2175,1674,1830,2031,2346,2571,2598,2622]
["VALLEJO/TRAVIS AFB","CA","E-2",{"$f":"TRANSPOSE(F914:F914)","v":1599}]
["VALLEJO/TRAVIS AFB","CA","E-3",{"$f":"TRANSPOSE(G914:G914)","v":1599}]
["VALLEJO/TRAVIS AFB","CA","E-4",{"$f":"TRANSPOSE(H914:H914)","v":1599}]
["VALLEJO/TRAVIS AFB","CA","E-5",{"$f":"TRANSPOSE(I914:I914)","v":1653}]
["VALLEJO/TRAVIS AFB","CA","E-6",{"$f":"TRANSPOSE(J914:J914)","v":1833}]
["VALLEJO/TRAVIS AFB","CA","E-7",{"$f":"TRANSPOSE(K914:K914)","v":1905}]
["VALLEJO/TRAVIS AFB","CA","E-8",{"$f":"TRANSPOSE(L914)","v":1986}]
["VALLEJO/TRAVIS AFB","CA","E-9",{"$f":"TRANSPOSE(M914)","v":2121}]
["VALLEJO/TRAVIS AFB","CA","W-1",{"$f":"TRANSPOSE(N914)","v":1836}]
["VALLEJO/TRAVIS AFB","CA","W-2",{"$f":"TRANSPOSE(O914)","v":1938}]
["VALLEJO/TRAVIS AFB","CA","W-3",{"$f":"TRANSPOSE(P914)","v":2034}]
["VALLEJO/TRAVIS AFB","CA","W-4",{"$f":"TRANSPOSE(Q914)","v":2154}]
["VALLEJO/TRAVIS AFB","CA","W-5",{"$f":"TRANSPOSE(R914)","v":2292}]
["VALLEJO/TRAVIS AFB","CA","O-1E",{"$f":"TRANSPOSE(S914)","v":1923}]
["VALLEJO/TRAVIS AFB","CA","O-2E",{"$f":"TRANSPOSE(T914)","v":2022}]
["VALLEJO/TRAVIS AFB","CA","O-3E",{"$f":"TRANSPOSE(U914)","v":2175}]
["VALLEJO/TRAVIS AFB","CA","O-1",{"$f":"TRANSPOSE(V914)","v":1674}]
["VALLEJO/TRAVIS AFB","CA","O-2",{"$f":"TRANSPOSE(W914)","v":1830}]
["VALLEJO/TRAVIS AFB","CA","O-3",{"$f":"TRANSPOSE(X914)","v":2031}]
["VALLEJO/TRAVIS AFB","CA","O-4",{"$f":"TRANSPOSE(Y914)","v":2346}]
["VALLEJO/TRAVIS AFB","CA","O-5",{"$f":"TRANSPOSE(Z914)","v":2571}]
["VALLEJO/TRAVIS AFB","CA","O-6",{"$f":"TRANSPOSE(AA914)","v":2598}]
["VALLEJO/TRAVIS AFB","CA","O-7",{"$f":"TRANSPOSE(AB914)","v":2622}]
["LOS ANGELES","CA","E-1",{"$f":"TRANSPOSE(E938:E938)","v":1908},1908,1908,1908,1908,2052,2397,2517,2649,2808,2400,2571,2733,2838,2961,2544,2709,2856,2091,2391,2724,3009,3210,3243,3273]
["LOS ANGELES","CA","E-2",{"$f":"TRANSPOSE(F938:F938)","v":1908}]
["LOS ANGELES","CA","E-3",{"$f":"TRANSPOSE(G938:G938)","v":1908}]
["LOS ANGELES","CA","E-4",{"$f":"TRANSPOSE(H938:H938)","v":1908}]
["LOS ANGELES","CA","E-5",{"$f":"TRANSPOSE(I938:I938)","v":2052}]
["LOS ANGELES","CA","E-6",{"$f":"TRANSPOSE(J938:J938)","v":2397}]
["LOS ANGELES","CA","E-7",{"$f":"TRANSPOSE(K938:K938)","v":2517}]
["LOS ANGELES","CA","E-8",{"$f":"TRANSPOSE(L938)","v":2649}]
["LOS ANGELES","CA","E-9",{"$f":"TRANSPOSE(M938)","v":2808}]
["LOS ANGELES","CA","W-1",{"$f":"TRANSPOSE(N938)","v":2400}]
["LOS ANGELES","CA","W-2",{"$f":"TRANSPOSE(O938)","v":2571}]
["LOS ANGELES","CA","W-3",{"$f":"TRANSPOSE(P938)","v":2733}]
["LOS ANGELES","CA","W-4",{"$f":"TRANSPOSE(Q938)","v":2838}]
["LOS ANGELES","CA","W-5",{"$f":"TRANSPOSE(R938)","v":2961}]
["LOS ANGELES","CA","O-1E",{"$f":"TRANSPOSE(S938)","v":2544}]
["LOS ANGELES","CA","O-2E",{"$f":"TRANSPOSE(T938)","v":2709}]
["LOS ANGELES","CA","O-3E",{"$f":"TRANSPOSE(U938)","v":2856}]
["LOS ANGELES","CA","O-1",{"$f":"TRANSPOSE(V938)","v":2091}]
["LOS ANGELES","CA","O-2",{"$f":"TRANSPOSE(W938)","v":2391}]
["LOS ANGELES","CA","O-3",{"$f":"TRANSPOSE(X938)","v":2724}]
["LOS ANGELES","CA","O-4",{"$f":"TRANSPOSE(Y938)","v":3009}]
["LOS ANGELES","CA","O-5",{"$f":"TRANSPOSE(Z938)","v":3210}]
["LOS ANGELES","CA","O-6",{"$f":"TRANSPOSE(AA938)","v":3243}]
["LOS ANGELES","CA","O-7",{"$f":"TRANSPOSE(AB938)","v":3273}]
["SAN DIEGO","CA","E-1",{"$f":"TRANSPOSE(E962:E962)","v":1893},1893,1893,1893,1893,1998,2133,2208,2286,2412,2136,2241,2337,2439,2556,2223,2325,2457,2013,2130,2334,2601,2793,2820,2847]
["SAN DIEGO","CA","E-2",{"$f":"TRANSPOSE(F962:F962)","v":1893}]
["SAN DIEGO","CA","E-3",{"$f":"TRANSPOSE(G962:G962)","v":1893}]
["SAN DIEGO","CA","E-4",{"$f":"TRANSPOSE(H962:H962)","v":1893}]
["SAN DIEGO","CA","E-5",{"$f":"TRANSPOSE(I962:I962)","v":1998}]
["SAN DIEGO","CA","E-6",{"$f":"TRANSPOSE(J962:J962)","v":2133}]
["SAN DIEGO","CA","E-7",{"$f":"TRANSPOSE(K962:K962)","v":2208}]
["SAN DIEGO","CA","E-8",{"$f":"TRANSPOSE(L962)","v":2286}]
["SAN DIEGO","CA","E-9",{"$f":"TRANSPOSE(M962)","v":2412}]
["SAN DIEGO","CA","W-1",{"$f":"TRANSPOSE(N962)","v":2136}]
["SAN DIEGO","CA","W-2",{"$f":"TRANSPOSE(O962)","v":2241}]
["SAN DIEGO","CA","W-3",{"$f":"TRANSPOSE(P962)","v":2337}]
["SAN DIEGO","CA","W-4",{"$f":"TRANSPOSE(Q962)","v":2439}]
["SAN DIEGO","CA","W-5",{"$f":"TRANSPOSE(R962)","v":2556}]
["SAN DIEGO","CA","O-1E",{"$f":"TRANSPOSE(S962)","v":2223}]
["SAN DIEGO","CA","O-2E",{"$f":"TRANSPOSE(T962)","v":2325}]
["SAN DIEGO","CA","O-3E",{"$f":"TRANSPOSE(U962)","v":2457}]
["SAN DIEGO","CA","O-1",{"$f":"TRANSPOSE(V962)","v":2013}]
["SAN DIEGO","CA","O-2",{"$f":"TRANSPOSE(W962)","v":2130}]
["SAN DIEGO","CA","O-3",{"$f":"TRANSPOSE(X962)","v":2334}]
["SAN DIEGO","CA","O-4",{"$f":"TRANSPOSE(Y962)","v":2601}]
["SAN DIEGO","CA","O-5",{"$f":"TRANSPOSE(Z962)","v":2793}]
["SAN DIEGO","CA","O-6",{"$f":"TRANSPOSE(AA962)","v":2820}]
["SAN DIEGO","CA","O-7",{"$f":"TRANSPOSE(AB962)","v":2847}]
["MONTEREY","CA","E-1",{"$f":"TRANSPOSE(E986:E986)","v":1755},1755,1755,1755,1755,1950,2343,2457,2583,2736,2346,2508,2664,2763,2883,2484,2640,2781,1995,2334,2658,2928,3120,3150,3180]
["MONTEREY","CA","E-2",{"$f":"TRANSPOSE(F986:F986)","v":1755}]
["MONTEREY","CA","E-3",{"$f":"TRANSPOSE(G986:G986)","v":1755}]
["MONTEREY","CA","E-4",{"$f":"TRANSPOSE(H986:H986)","v":1755}]
["MONTEREY","CA","E-5",{"$f":"TRANSPOSE(I986:I986)","v":1950}]
["MONTEREY","CA","E-6",{"$f":"TRANSPOSE(J986:J986)","v":2343}]
["MONTEREY","CA","E-7",{"$f":"TRANSPOSE(K986:K986)","v":2457}]
["MONTEREY","CA","E-8",{"$f":"TRANSPOSE(L986)","v":2583}]
["MONTEREY","CA","E-9",{"$f":"TRANSPOSE(M986)","v":2736}]
["MONTEREY","CA","W-1",{"$f":"TRANSPOSE(N986)","v":2346}]
["MONTEREY","CA","W-2",{"$f":"TRANSPOSE(O986)","v":2508}]
["MONTEREY","CA","W-3",{"$f":"TRANSPOSE(P986)","v":2664}]
["MONTEREY","CA","W-4",{"$f":"TRANSPOSE(Q986)","v":2763}]
["MONTEREY","CA","W-5",{"$f":"TRANSPOSE(R986)","v":2883}]
["MONTEREY","CA","O-1E",{"$f":"TRANSPOSE(S986)","v":2484}]
["MONTEREY","CA","O-2E",{"$f":"TRANSPOSE(T986)","v":2640}]
["MONTEREY","CA","O-3E",{"$f":"TRANSPOSE(U986)","v":2781}]
["MONTEREY","CA","O-1",{"$f":"TRANSPOSE(V986)","v":1995}]
["MONTEREY","CA","O-2",{"$f":"TRANSPOSE(W986)","v":2334}]
["MONTEREY","CA","O-3",{"$f":"TRANSPOSE(X986)","v":2658}]
["MONTEREY","CA","O-4",{"$f":"TRANSPOSE(Y986)","v":2928}]
["MONTEREY","CA","O-5",{"$f":"TRANSPOSE(Z986)","v":3120}]
["MONTEREY","CA","O-6",{"$f":"TRANSPOSE(AA986)","v":3150}]
["MONTEREY","CA","O-7",{"$f":"TRANSPOSE(AB986)","v":3180}]
["BAKERSFIELD","CA","E-1",{"$f":"TRANSPOSE(E1010:E1010)","v":966},966,966,966,966,1020,1215,1317,1425,1551,1218,1362,1497,1572,1662,1338,1476,1587,1041,1209,1491,1698,1842,1860,1878]
["BAKERSFIELD","CA","E-2",{"$f":"TRANSPOSE(F1010:F1010)","v":966}]
["BAKERSFIELD","CA","E-3",{"$f":"TRANSPOSE(G1010:G1010)","v":966}]
["BAKERSFIELD","CA","E-4",{"$f":"TRANSPOSE(H1010:H1010)","v":966}]
["BAKERSFIELD","CA","E-5",{"$f":"TRANSPOSE(I1010:I1010)","v":1020}]
["BAKERSFIELD","CA","E-6",{"$f":"TRANSPOSE(J1010:J1010)","v":1215}]
["BAKERSFIELD","CA","E-7",{"$f":"TRANSPOSE(K1010:K1010)","v":1317}]
["BAKERSFIELD","CA","E-8",{"$f":"TRANSPOSE(L1010)","v":1425}]
["BAKERSFIELD","CA","E-9",{"$f":"TRANSPOSE(M1010)","v":1551}]
["BAKERSFIELD","CA","W-1",{"$f":"TRANSPOSE(N1010)","v":1218}]
["BAKERSFIELD","CA","W-2",{"$f":"TRANSPOSE(O1010)","v":1362}]
["BAKERSFIELD","CA","W-3",{"$f":"TRANSPOSE(P1010)","v":1497}]
["BAKERSFIELD","CA","W-4",{"$f":"TRANSPOSE(Q1010)","v":1572}]
["BAKERSFIELD","CA","W-5",{"$f":"TRANSPOSE(R1010)","v":1662}]
["BAKERSFIELD","CA","O-1E",{"$f":"TRANSPOSE(S1010)","v":1338}]
["BAKERSFIELD","CA","O-2E",{"$f":"TRANSPOSE(T1010)","v":1476}]
["BAKERSFIELD","CA","O-3E",{"$f":"TRANSPOSE(U1010)","v":1587}]
["BAKERSFIELD","CA","O-1",{"$f":"TRANSPOSE(V1010)","v":1041}]
["BAKERSFIELD","CA","O-2",{"$f":"TRANSPOSE(W1010)","v":1209}]
["BAKERSFIELD","CA","O-3",{"$f":"TRANSPOSE(X1010)","v":1491}]
["BAKERSFIELD","CA","O-4",{"$f":"TRANSPOSE(Y1010)","v":1698}]
["BAKERSFIELD","CA","O-5",{"$f":"TRANSPOSE(Z1010)","v":1842}]
["BAKERSFIELD","CA","O-6",{"$f":"TRANSPOSE(AA1010)","v":1860}]
["BAKERSFIELD","CA","O-7",{"$f":"TRANSPOSE(AB1010)","v":1878}]
["RIVERSIDE","CA","E-1",{"$f":"TRANSPOSE(E1034:E1034)","v":1488},1488,1488,1488,1488,1671,1773,1815,1860,1977,1776,1833,1890,2007,2148,1824,1881,2028,1683,1773,1887,2202,2427,2451,2475]
["RIVERSIDE","CA","E-2",{"$f":"TRANSPOSE(F1034:F1034)","v":1488}]
["RIVERSIDE","CA","E-3",{"$f":"TRANSPOSE(G1034:G1034)","v":1488}]
["RIVERSIDE","CA","E-4",{"$f":"TRANSPOSE(H1034:H1034)","v":1488}]
["RIVERSIDE","CA","E-5",{"$f":"TRANSPOSE(I1034:I1034)","v":1671}]
["RIVERSIDE","CA","E-6",{"$f":"TRANSPOSE(J1034:J1034)","v":1773}]
["RIVERSIDE","CA","E-7",{"$f":"TRANSPOSE(K1034:K1034)","v":1815}]
["RIVERSIDE","CA","E-8",{"$f":"TRANSPOSE(L1034)","v":1860}]
["RIVERSIDE","CA","E-9",{"$f":"TRANSPOSE(M1034)","v":1977}]
["RIVERSIDE","CA","W-1",{"$f":"TRANSPOSE(N1034)","v":1776}]
["RIVERSIDE","CA","W-2",{"$f":"TRANSPOSE(O1034)","v":1833}]
["RIVERSIDE","CA","W-3",{"$f":"TRANSPOSE(P1034)","v":1890}]
["RIVERSIDE","CA","W-4",{"$f":"TRANSPOSE(Q1034)","v":2007}]
["RIVERSIDE","CA","W-5",{"$f":"TRANSPOSE(R1034)","v":2148}]
["RIVERSIDE","CA","O-1E",{"$f":"TRANSPOSE(S1034)","v":1824}]
["RIVERSIDE","CA","O-2E",{"$f":"TRANSPOSE(T1034)","v":1881}]
["RIVERSIDE","CA","O-3E",{"$f":"TRANSPOSE(U1034)","v":2028}]
["RIVERSIDE","CA","O-1",{"$f":"TRANSPOSE(V1034)","v":1683}]
["RIVERSIDE","CA","O-2",{"$f":"TRANSPOSE(W1034)","v":1773}]
["RIVERSIDE","CA","O-3",{"$f":"TRANSPOSE(X1034)","v":1887}]
["RIVERSIDE","CA","O-4",{"$f":"TRANSPOSE(Y1034)","v":2202}]
["RIVERSIDE","CA","O-5",{"$f":"TRANSPOSE(Z1034)","v":2427}]
["RIVERSIDE","CA","O-6",{"$f":"TRANSPOSE(AA1034)","v":2451}]
["RIVERSIDE","CA","O-7",{"$f":"TRANSPOSE(AB1034)","v":2475}]
["HUMBOLDT COUNTY","CA","E-1",{"$f":"TRANSPOSE(E1058:E1058)","v":1023},1023,1023,1023,1023,1119,1512,1542,1578,1650,1512,1557,1599,1671,1755,1551,1593,1683,1161,1503,1596,1788,1923,1941,1962]
["HUMBOLDT COUNTY","CA","E-2",{"$f":"TRANSPOSE(F1058:F1058)","v":1023}]
["HUMBOLDT COUNTY","CA","E-3",{"$f":"TRANSPOSE(G1058:G1058)","v":1023}]
["HUMBOLDT COUNTY","CA","E-4",{"$f":"TRANSPOSE(H1058:H1058)","v":1023}]
["HUMBOLDT COUNTY","CA","E-5",{"$f":"TRANSPOSE(I1058:I1058)","v":1119}]
["HUMBOLDT COUNTY","CA","E-6",{"$f":"TRANSPOSE(J1058:J1058)","v":1512}]
["HUMBOLDT COUNTY","CA","E-7",{"$f":"TRANSPOSE(K1058:K1058)","v":1542}]
["HUMBOLDT COUNTY","CA","E-8",{"$f":"TRANSPOSE(L1058)","v":1578}]
["HUMBOLDT COUNTY","CA","E-9",{"$f":"TRANSPOSE(M1058)","v":1650}]
["HUMBOLDT COUNTY","CA","W-1",{"$f":"TRANSPOSE(N1058)","v":1512}]
["HUMBOLDT COUNTY","CA","W-2",{"$f":"TRANSPOSE(O1058)","v":1557}]
["HUMBOLDT COUNTY","CA","W-3",{"$f":"TRANSPOSE(P1058)","v":1599}]
["HUMBOLDT COUNTY","CA","W-4",{"$f":"TRANSPOSE(Q1058)","v":1671}]
["HUMBOLDT COUNTY","CA","W-5",{"$f":"TRANSPOSE(R1058)","v":1755}]
["HUMBOLDT COUNTY","CA","O-1E",{"$f":"TRANSPOSE(S1058)","v":1551}]
["HUMBOLDT COUNTY","CA","O-2E",{"$f":"TRANSPOSE(T1058)","v":1593}]
["HUMBOLDT COUNTY","CA","O-3E",{"$f":"TRANSPOSE(U1058)","v":1683}]
["HUMBOLDT COUNTY","CA","O-1",{"$f":"TRANSPOSE(V1058)","v":1161}]
["HUMBOLDT COUNTY","CA","O-2",{"$f":"TRANSPOSE(W1058)","v":1503}]
["HUMBOLDT COUNTY","CA","O-3",{"$f":"TRANSPOSE(X1058)","v":1596}]
["HUMBOLDT COUNTY","CA","O-4",{"$f":"TRANSPOSE(Y1058)","v":1788}]
["HUMBOLDT COUNTY","CA","O-5",{"$f":"TRANSPOSE(Z1058)","v":1923}]
["HUMBOLDT COUNTY","CA","O-6",{"$f":"TRANSPOSE(AA1058)","v":1941}]
["HUMBOLDT COUNTY","CA","O-7",{"$f":"TRANSPOSE(AB1058)","v":1962}]
["SANTA CLARA COUNTY","CA","E-1",{"$f":"TRANSPOSE(E1082:E1082)","v":1935},1935,1935,1935,1935,2112,2313,2406,2505,2673,2316,2445,2568,2712,2883,2427,2550,2739,2136,2310,2562,2949,3225,3258,3291]
["SANTA CLARA COUNTY","CA","E-2",{"$f":"TRANSPOSE(F1082:F1082)","v":1935}]
["SANTA CLARA COUNTY","CA","E-3",{"$f":"TRANSPOSE(G1082:G1082)","v":1935}]
["SANTA CLARA COUNTY","CA","E-4",{"$f":"TRANSPOSE(H1082:H1082)","v":1935}]
["SANTA CLARA COUNTY","CA","E-5",{"$f":"TRANSPOSE(I1082:I1082)","v":2112}]
["SANTA CLARA COUNTY","CA","E-6",{"$f":"TRANSPOSE(J1082:J1082)","v":2313}]
["SANTA CLARA COUNTY","CA","E-7",{"$f":"TRANSPOSE(K1082:K1082)","v":2406}]
["SANTA CLARA COUNTY","CA","E-8",{"$f":"TRANSPOSE(L1082)","v":2505}]
["SANTA CLARA COUNTY","CA","E-9",{"$f":"TRANSPOSE(M1082)","v":2673}]
["SANTA CLARA COUNTY","CA","W-1",{"$f":"TRANSPOSE(N1082)","v":2316}]
["SANTA CLARA COUNTY","CA","W-2",{"$f":"TRANSPOSE(O1082)","v":2445}]
["SANTA CLARA COUNTY","CA","W-3",{"$f":"TRANSPOSE(P1082)","v":2568}]
["SANTA CLARA COUNTY","CA","W-4",{"$f":"TRANSPOSE(Q1082)","v":2712}]
["SANTA CLARA COUNTY","CA","W-5",{"$f":"TRANSPOSE(R1082)","v":2883}]
["SANTA CLARA COUNTY","CA","O-1E",{"$f":"TRANSPOSE(S1082)","v":2427}]
["SANTA CLARA COUNTY","CA","O-2E",{"$f":"TRANSPOSE(T1082)","v":2550}]
["SANTA CLARA COUNTY","CA","O-3E",{"$f":"TRANSPOSE(U1082)","v":2739}]
["SANTA CLARA COUNTY","CA","O-1",{"$f":"TRANSPOSE(V1082)","v":2136}]
["SANTA CLARA COUNTY","CA","O-2",{"$f":"TRANSPOSE(W1082)","v":2310}]
["SANTA CLARA COUNTY","CA","O-3",{"$f":"TRANSPOSE(X1082)","v":2562}]
["SANTA CLARA COUNTY","CA","O-4",{"$f":"TRANSPOSE(Y1082)","v":2949}]
["SANTA CLARA COUNTY","CA","O-5",{"$f":"TRANSPOSE(Z1082)","v":3225}]
["SANTA CLARA COUNTY","CA","O-6",{"$f":"TRANSPOSE(AA1082)","v":3258}]
["SANTA CLARA COUNTY","CA","O-7",{"$f":"TRANSPOSE(AB1082)","v":3291}]
["SAN LUIS OBISPO","CA","E-1",{"$f":"TRANSPOSE(E1106:E1106)","v":1383},1383,1383,1383,1383,1506,1863,1938,2019,2109,1863,1971,2073,2124,2181,1956,2058,2133,1545,1854,2070,2205,2301,2322,2346]
["SAN LUIS OBISPO","CA","E-2",{"$f":"TRANSPOSE(F1106:F1106)","v":1383}]
["SAN LUIS OBISPO","CA","E-3",{"$f":"TRANSPOSE(G1106:G1106)","v":1383}]
["SAN LUIS OBISPO","CA","E-4",{"$f":"TRANSPOSE(H1106:H1106)","v":1383}]
["SAN LUIS OBISPO","CA","E-5",{"$f":"TRANSPOSE(I1106:I1106)","v":1506}]
["SAN LUIS OBISPO","CA","E-6",{"$f":"TRANSPOSE(J1106:J1106)","v":1863}]
["SAN LUIS OBISPO","CA","E-7",{"$f":"TRANSPOSE(K1106:K1106)","v":1938}]
["SAN LUIS OBISPO","CA","E-8",{"$f":"TRANSPOSE(L1106)","v":2019}]
["SAN LUIS OBISPO","CA","E-9",{"$f":"TRANSPOSE(M1106)","v":2109}]
["SAN LUIS OBISPO","CA","W-1",{"$f":"TRANSPOSE(N1106)","v":1863}]
["SAN LUIS OBISPO","CA","W-2",{"$f":"TRANSPOSE(O1106)","v":1971}]
["SAN LUIS OBISPO","CA","W-3",{"$f":"TRANSPOSE(P1106)","v":2073}]
["SAN LUIS OBISPO","CA","W-4",{"$f":"TRANSPOSE(Q1106)","v":2124}]
["SAN LUIS OBISPO","CA","W-5",{"$f":"TRANSPOSE(R1106)","v":2181}]
["SAN LUIS OBISPO","CA","O-1E",{"$f":"TRANSPOSE(S1106)","v":1956}]
["SAN LUIS OBISPO","CA","O-2E",{"$f":"TRANSPOSE(T1106)","v":2058}]
["SAN LUIS OBISPO","CA","O-3E",{"$f":"TRANSPOSE(U1106)","v":2133}]
["SAN LUIS OBISPO","CA","O-1",{"$f":"TRANSPOSE(V1106)","v":1545}]
["SAN LUIS OBISPO","CA","O-2",{"$f":"TRANSPOSE(W1106)","v":1854}]
["SAN LUIS OBISPO","CA","O-3",{"$f":"TRANSPOSE(X1106)","v":2070}]
["SAN LUIS OBISPO","CA","O-4",{"$f":"TRANSPOSE(Y1106)","v":2205}]
["SAN LUIS OBISPO","CA","O-5",{"$f":"TRANSPOSE(Z1106)","v":2301}]
["SAN LUIS OBISPO","CA","O-6",{"$f":"TRANSPOSE(AA1106)","v":2322}]
["SAN LUIS OBISPO","CA","O-7",{"$f":"TRANSPOSE(AB1106)","v":2346}]
["BRIDGEPORT","CA","E-1",{"$f":"TRANSPOSE(E1130:E1130)","v":1455},1455,1455,1455,1455,1470,1617,1638,1662,1740,1617,1647,1677,1764,1869,1644,1674,1782,1485,1614,1677,1911,2079,2100,2121]
["BRIDGEPORT","CA","E-2",{"$f":"TRANSPOSE(F1130:F1130)","v":1455}]
["BRIDGEPORT","CA","E-3",{"$f":"TRANSPOSE(G1130:G1130)","v":1455}]
["BRIDGEPORT","CA","E-4",{"$f":"TRANSPOSE(H1130:H1130)","v":1455}]
["BRIDGEPORT","CA","E-5",{"$f":"TRANSPOSE(I1130:I1130)","v":1470}]
["BRIDGEPORT","CA","E-6",{"$f":"TRANSPOSE(J1130:J1130)","v":1617}]
["BRIDGEPORT","CA","E-7",{"$f":"TRANSPOSE(K1130:K1130)","v":1638}]
["BRIDGEPORT","CA","E-8",{"$f":"TRANSPOSE(L1130)","v":1662}]
["BRIDGEPORT","CA","E-9",{"$f":"TRANSPOSE(M1130)","v":1740}]
["BRIDGEPORT","CA","W-1",{"$f":"TRANSPOSE(N1130)","v":1617}]
["BRIDGEPORT","CA","W-2",{"$f":"TRANSPOSE(O1130)","v":1647}]
["BRIDGEPORT","CA","W-3",{"$f":"TRANSPOSE(P1130)","v":1677}]
["BRIDGEPORT","CA","W-4",{"$f":"TRANSPOSE(Q1130)","v":1764}]
["BRIDGEPORT","CA","W-5",{"$f":"TRANSPOSE(R1130)","v":1869}]
["BRIDGEPORT","CA","O-1E",{"$f":"TRANSPOSE(S1130)","v":1644}]
["BRIDGEPORT","CA","O-2E",{"$f":"TRANSPOSE(T1130)","v":1674}]
["BRIDGEPORT","CA","O-3E",{"$f":"TRANSPOSE(U1130)","v":1782}]
["BRIDGEPORT","CA","O-1",{"$f":"TRANSPOSE(V1130)","v":1485}]
["BRIDGEPORT","CA","O-2",{"$f":"TRANSPOSE(W1130)","v":1614}]
["BRIDGEPORT","CA","O-3",{"$f":"TRANSPOSE(X1130)","v":1677}]
["BRIDGEPORT","CA","O-4",{"$f":"TRANSPOSE(Y1130)","v":1911}]
["BRIDGEPORT","CA","O-5",{"$f":"TRANSPOSE(Z1130)","v":2079}]
["BRIDGEPORT","CA","O-6",{"$f":"TRANSPOSE(AA1130)","v":2100}]
["BRIDGEPORT","CA","O-7",{"$f":"TRANSPOSE(AB1130)","v":2121}]
["EL CENTRO","CA","E-1",{"$f":"TRANSPOSE(E1154:E1154)","v":996},996,996,996,996,1080,1206,1296,1395,1491,1209,1338,1458,1503,1557,1317,1440,1512,1095,1203,1452,1578,1668,1683,1701]
["EL CENTRO","CA","E-2",{"$f":"TRANSPOSE(F1154:F1154)","v":996}]
["EL CENTRO","CA","E-3",{"$f":"TRANSPOSE(G1154:G1154)","v":996}]
["EL CENTRO","CA","E-4",{"$f":"TRANSPOSE(H1154:H1154)","v":996}]
["EL CENTRO","CA","E-5",{"$f":"TRANSPOSE(I1154:I1154)","v":1080}]
["EL CENTRO","CA","E-6",{"$f":"TRANSPOSE(J1154:J1154)","v":1206}]
["EL CENTRO","CA","E-7",{"$f":"TRANSPOSE(K1154:K1154)","v":1296}]
["EL CENTRO","CA","E-8",{"$f":"TRANSPOSE(L1154)","v":1395}]
["EL CENTRO","CA","E-9",{"$f":"TRANSPOSE(M1154)","v":1491}]
["EL CENTRO","CA","W-1",{"$f":"TRANSPOSE(N1154)","v":1209}]
["EL CENTRO","CA","W-2",{"$f":"TRANSPOSE(O1154)","v":1338}]
["EL CENTRO","CA","W-3",{"$f":"TRANSPOSE(P1154)","v":1458}]
["EL CENTRO","CA","W-4",{"$f":"TRANSPOSE(Q1154)","v":1503}]
["EL CENTRO","CA","W-5",{"$f":"TRANSPOSE(R1154)","v":1557}]
["EL CENTRO","CA","O-1E",{"$f":"TRANSPOSE(S1154)","v":1317}]
["EL CENTRO","CA","O-2E",{"$f":"TRANSPOSE(T1154)","v":1440}]
["EL CENTRO","CA","O-3E",{"$f":"TRANSPOSE(U1154)","v":1512}]
["EL CENTRO","CA","O-1",{"$f":"TRANSPOSE(V1154)","v":1095}]
["EL CENTRO","CA","O-2",{"$f":"TRANSPOSE(W1154)","v":1203}]
["EL CENTRO","CA","O-3",{"$f":"TRANSPOSE(X1154)","v":1452}]
["EL CENTRO","CA","O-4",{"$f":"TRANSPOSE(Y1154)","v":1578}]
["EL CENTRO","CA","O-5",{"$f":"TRANSPOSE(Z1154)","v":1668}]
["EL CENTRO","CA","O-6",{"$f":"TRANSPOSE(AA1154)","v":1683}]
["EL CENTRO","CA","O-7",{"$f":"TRANSPOSE(AB1154)","v":1701}]
["FORT BRAGG","CA","E-1",{"$f":"TRANSPOSE(E1178:E1178)","v":1080},1080,1080,1080,1080,1161,1410,1533,1665,1803,1413,1587,1749,1821,1905,1560,1725,1833,1188,1404,1743,1938,2073,2094,2112]
["FORT BRAGG","CA","E-2",{"$f":"TRANSPOSE(F1178:F1178)","v":1080}]
["FORT BRAGG","CA","E-3",{"$f":"TRANSPOSE(G1178:G1178)","v":1080}]
["FORT BRAGG","CA","E-4",{"$f":"TRANSPOSE(H1178:H1178)","v":1080}]
["FORT BRAGG","CA","E-5",{"$f":"TRANSPOSE(I1178:I1178)","v":1161}]
["FORT BRAGG","CA","E-6",{"$f":"TRANSPOSE(J1178:J1178)","v":1410}]
["FORT BRAGG","CA","E-7",{"$f":"TRANSPOSE(K1178:K1178)","v":1533}]
["FORT BRAGG","CA","E-8",{"$f":"TRANSPOSE(L1178)","v":1665}]
["FORT BRAGG","CA","E-9",{"$f":"TRANSPOSE(M1178)","v":1803}]
["FORT BRAGG","CA","W-1",{"$f":"TRANSPOSE(N1178)","v":1413}]
["FORT BRAGG","CA","W-2",{"$f":"TRANSPOSE(O1178)","v":1587}]
["FORT BRAGG","CA","W-3",{"$f":"TRANSPOSE(P1178)","v":1749}]
["FORT BRAGG","CA","W-4",{"$f":"TRANSPOSE(Q1178)","v":1821}]
["FORT BRAGG","CA","W-5",{"$f":"TRANSPOSE(R1178)","v":1905}]
["FORT BRAGG","CA","O-1E",{"$f":"TRANSPOSE(S1178)","v":1560}]
["FORT BRAGG","CA","O-2E",{"$f":"TRANSPOSE(T1178)","v":1725}]
["FORT BRAGG","CA","O-3E",{"$f":"TRANSPOSE(U1178)","v":1833}]
["FORT BRAGG","CA","O-1",{"$f":"TRANSPOSE(V1178)","v":1188}]
["FORT BRAGG","CA","O-2",{"$f":"TRANSPOSE(W1178)","v":1404}]
["FORT BRAGG","CA","O-3",{"$f":"TRANSPOSE(X1178)","v":1743}]
["FORT BRAGG","CA","O-4",{"$f":"TRANSPOSE(Y1178)","v":1938}]
["FORT BRAGG","CA","O-5",{"$f":"TRANSPOSE(Z1178)","v":2073}]
["FORT BRAGG","CA","O-6",{"$f":"TRANSPOSE(AA1178)","v":2094}]
["FORT BRAGG","CA","O-7",{"$f":"TRANSPOSE(AB1178)","v":2112}]
["EDWARDS AFB/PALMDALE","CA","E-1",{"$f":"TRANSPOSE(E1202:E1202)","v":1203},1203,1203,1203,1203,1317,1617,1701,1794,1905,1617,1740,1851,1926,2010,1719,1836,1938,1350,1611,1848,2043,2184,2205,2226]
["EDWARDS AFB/PALMDALE","CA","E-2",{"$f":"TRANSPOSE(F1202:F1202)","v":1203}]
["EDWARDS AFB/PALMDALE","CA","E-3",{"$f":"TRANSPOSE(G1202:G1202)","v":1203}]
["EDWARDS AFB/PALMDALE","CA","E-4",{"$f":"TRANSPOSE(H1202:H1202)","v":1203}]
["EDWARDS AFB/PALMDALE","CA","E-5",{"$f":"TRANSPOSE(I1202:I1202)","v":1317}]
["EDWARDS AFB/PALMDALE","CA","E-6",{"$f":"TRANSPOSE(J1202:J1202)","v":1617}]
["EDWARDS AFB/PALMDALE","CA","E-7",{"$f":"TRANSPOSE(K1202:K1202)","v":1701}]
["EDWARDS AFB/PALMDALE","CA","E-8",{"$f":"TRANSPOSE(L1202)","v":1794}]
["EDWARDS AFB/PALMDALE","CA","E-9",{"$f":"TRANSPOSE(M1202)","v":1905}]
["EDWARDS AFB/PALMDALE","CA","W-1",{"$f":"TRANSPOSE(N1202)","v":1617}]
["EDWARDS AFB/PALMDALE","CA","W-2",{"$f":"TRANSPOSE(O1202)","v":1740}]
["EDWARDS AFB/PALMDALE","CA","W-3",{"$f":"TRANSPOSE(P1202)","v":1851}]
["EDWARDS AFB/PALMDALE","CA","W-4",{"$f":"TRANSPOSE(Q1202)","v":1926}]
["EDWARDS AFB/PALMDALE","CA","W-5",{"$f":"TRANSPOSE(R1202)","v":2010}]
["EDWARDS AFB/PALMDALE","CA","O-1E",{"$f":"TRANSPOSE(S1202)","v":1719}]
["EDWARDS AFB/PALMDALE","CA","O-2E",{"$f":"TRANSPOSE(T1202)","v":1836}]
["EDWARDS AFB/PALMDALE","CA","O-3E",{"$f":"TRANSPOSE(U1202)","v":1938}]
["EDWARDS AFB/PALMDALE","CA","O-1",{"$f":"TRANSPOSE(V1202)","v":1350}]
["EDWARDS AFB/PALMDALE","CA","O-2",{"$f":"TRANSPOSE(W1202)","v":1611}]
["EDWARDS AFB/PALMDALE","CA","O-3",{"$f":"TRANSPOSE(X1202)","v":1848}]
["EDWARDS AFB/PALMDALE","CA","O-4",{"$f":"TRANSPOSE(Y1202)","v":2043}]
["EDWARDS AFB/PALMDALE","CA","O-5",{"$f":"TRANSPOSE(Z1202)","v":2184}]
["EDWARDS AFB/PALMDALE","CA","O-6",{"$f":"TRANSPOSE(AA1202)","v":2205}]
["EDWARDS AFB/PALMDALE","CA","O-7",{"$f":"TRANSPOSE(AB1202)","v":2226}]
["DENVER","CO","E-1",{"$f":"TRANSPOSE(E1226:E1226)","v":1284},1284,1284,1284,1284,1458,1587,1719,1866,2031,1590,1779,1959,2058,2175,1749,1932,2076,1473,1584,1953,2220,2409,2433,2457]
["DENVER","CO","E-2",{"$f":"TRANSPOSE(F1226:F1226)","v":1284}]
["DENVER","CO","E-3",{"$f":"TRANSPOSE(G1226:G1226)","v":1284}]
["DENVER","CO","E-4",{"$f":"TRANSPOSE(H1226:H1226)","v":1284}]
["DENVER","CO","E-5",{"$f":"TRANSPOSE(I1226:I1226)","v":1458}]
["DENVER","CO","E-6",{"$f":"TRANSPOSE(J1226:J1226)","v":1587}]
["DENVER","CO","E-7",{"$f":"TRANSPOSE(K1226:K1226)","v":1719}]
["DENVER","CO","E-8",{"$f":"TRANSPOSE(L1226)","v":1866}]
["DENVER","CO","E-9",{"$f":"TRANSPOSE(M1226)","v":2031}]
["DENVER","CO","W-1",{"$f":"TRANSPOSE(N1226)","v":1590}]
["DENVER","CO","W-2",{"$f":"TRANSPOSE(O1226)","v":1779}]
["DENVER","CO","W-3",{"$f":"TRANSPOSE(P1226)","v":1959}]
["DENVER","CO","W-4",{"$f":"TRANSPOSE(Q1226)","v":2058}]
["DENVER","CO","W-5",{"$f":"TRANSPOSE(R1226)","v":2175}]
["DENVER","CO","O-1E",{"$f":"TRANSPOSE(S1226)","v":1749}]
["DENVER","CO","O-2E",{"$f":"TRANSPOSE(T1226)","v":1932}]
["DENVER","CO","O-3E",{"$f":"TRANSPOSE(U1226)","v":2076}]
["DENVER","CO","O-1",{"$f":"TRANSPOSE(V1226)","v":1473}]
["DENVER","CO","O-2",{"$f":"TRANSPOSE(W1226)","v":1584}]
["DENVER","CO","O-3",{"$f":"TRANSPOSE(X1226)","v":1953}]
["DENVER","CO","O-4",{"$f":"TRANSPOSE(Y1226)","v":2220}]
["DENVER","CO","O-5",{"$f":"TRANSPOSE(Z1226)","v":2409}]
["DENVER","CO","O-6",{"$f":"TRANSPOSE(AA1226)","v":2433}]
["DENVER","CO","O-7",{"$f":"TRANSPOSE(AB1226)","v":2457}]
["COLORADO SPRINGS","CO","E-1",{"$f":"TRANSPOSE(E1250:E1250)","v":1065},1065,1065,1065,1065,1152,1257,1347,1446,1557,1260,1389,1509,1575,1650,1368,1491,1584,1164,1257,1503,1680,1803,1821,1839]
["COLORADO SPRINGS","CO","E-2",{"$f":"TRANSPOSE(F1250:F1250)","v":1065}]
["COLORADO SPRINGS","CO","E-3",{"$f":"TRANSPOSE(G1250:G1250)","v":1065}]
["COLORADO SPRINGS","CO","E-4",{"$f":"TRANSPOSE(H1250:H1250)","v":1065}]
["COLORADO SPRINGS","CO","E-5",{"$f":"TRANSPOSE(I1250:I1250)","v":1152}]
["COLORADO SPRINGS","CO","E-6",{"$f":"TRANSPOSE(J1250:J1250)","v":1257}]
["COLORADO SPRINGS","CO","E-7",{"$f":"TRANSPOSE(K1250:K1250)","v":1347}]
["COLORADO SPRINGS","CO","E-8",{"$f":"TRANSPOSE(L1250)","v":1446}]
["COLORADO SPRINGS","CO","E-9",{"$f":"TRANSPOSE(M1250)","v":1557}]
["COLORADO SPRINGS","CO","W-1",{"$f":"TRANSPOSE(N1250)","v":1260}]
["COLORADO SPRINGS","CO","W-2",{"$f":"TRANSPOSE(O1250)","v":1389}]
["COLORADO SPRINGS","CO","W-3",{"$f":"TRANSPOSE(P1250)","v":1509}]
["COLORADO SPRINGS","CO","W-4",{"$f":"TRANSPOSE(Q1250)","v":1575}]
["COLORADO SPRINGS","CO","W-5",{"$f":"TRANSPOSE(R1250)","v":1650}]
["COLORADO SPRINGS","CO","O-1E",{"$f":"TRANSPOSE(S1250)","v":1368}]
["COLORADO SPRINGS","CO","O-2E",{"$f":"TRANSPOSE(T1250)","v":1491}]
["COLORADO SPRINGS","CO","O-3E",{"$f":"TRANSPOSE(U1250)","v":1584}]
["COLORADO SPRINGS","CO","O-1",{"$f":"TRANSPOSE(V1250)","v":1164}]
["COLORADO SPRINGS","CO","O-2",{"$f":"TRANSPOSE(W1250)","v":1257}]
["COLORADO SPRINGS","CO","O-3",{"$f":"TRANSPOSE(X1250)","v":1503}]
["COLORADO SPRINGS","CO","O-4",{"$f":"TRANSPOSE(Y1250)","v":1680}]
["COLORADO SPRINGS","CO","O-5",{"$f":"TRANSPOSE(Z1250)","v":1803}]
["COLORADO SPRINGS","CO","O-6",{"$f":"TRANSPOSE(AA1250)","v":1821}]
["COLORADO SPRINGS","CO","O-7",{"$f":"TRANSPOSE(AB1250)","v":1839}]
["FORT COLLINS","CO","E-1",{"$f":"TRANSPOSE(E1274:E1274)","v":942},942,942,942,942,1011,1257,1323,1395,1470,1260,1353,1440,1479,1527,1338,1428,1488,1038,1251,1437,1545,1620,1638,1653]
["FORT COLLINS","CO","E-2",{"$f":"TRANSPOSE(F1274:F1274)","v":942}]
["FORT COLLINS","CO","E-3",{"$f":"TRANSPOSE(G1274:G1274)","v":942}]
["FORT COLLINS","CO","E-4",{"$f":"TRANSPOSE(H1274:H1274)","v":942}]
["FORT COLLINS","CO","E-5",{"$f":"TRANSPOSE(I1274:I1274)","v":1011}]
["FORT COLLINS","CO","E-6",{"$f":"TRANSPOSE(J1274:J1274)","v":1257}]
["FORT COLLINS","CO","E-7",{"$f":"TRANSPOSE(K1274:K1274)","v":1323}]
["FORT COLLINS","CO","E-8",{"$f":"TRANSPOSE(L1274)","v":1395}]
["FORT COLLINS","CO","E-9",{"$f":"TRANSPOSE(M1274)","v":1470}]
["FORT COLLINS","CO","W-1",{"$f":"TRANSPOSE(N1274)","v":1260}]
["FORT COLLINS","CO","W-2",{"$f":"TRANSPOSE(O1274)","v":1353}]
["FORT COLLINS","CO","W-3",{"$f":"TRANSPOSE(P1274)","v":1440}]
["FORT COLLINS","CO","W-4",{"$f":"TRANSPOSE(Q1274)","v":1479}]
["FORT COLLINS","CO","W-5",{"$f":"TRANSPOSE(R1274)","v":1527}]
["FORT COLLINS","CO","O-1E",{"$f":"TRANSPOSE(S1274)","v":1338}]
["FORT COLLINS","CO","O-2E",{"$f":"TRANSPOSE(T1274)","v":1428}]
["FORT COLLINS","CO","O-3E",{"$f":"TRANSPOSE(U1274)","v":1488}]
["FORT COLLINS","CO","O-1",{"$f":"TRANSPOSE(V1274)","v":1038}]
["FORT COLLINS","CO","O-2",{"$f":"TRANSPOSE(W1274)","v":1251}]
["FORT COLLINS","CO","O-3",{"$f":"TRANSPOSE(X1274)","v":1437}]
["FORT COLLINS","CO","O-4",{"$f":"TRANSPOSE(Y1274)","v":1545}]
["FORT COLLINS","CO","O-5",{"$f":"TRANSPOSE(Z1274)","v":1620}]
["FORT COLLINS","CO","O-6",{"$f":"TRANSPOSE(AA1274)","v":1638}]
["FORT COLLINS","CO","O-7",{"$f":"TRANSPOSE(AB1274)","v":1653}]
["BOULDER","CO","E-1",{"$f":"TRANSPOSE(E1298:E1298)","v":1320},1320,1320,1320,1320,1461,1752,1824,1902,2019,1755,1854,1950,2043,2154,1839,1935,2061,1494,1746,1947,2196,2376,2400,2424]
["BOULDER","CO","E-2",{"$f":"TRANSPOSE(F1298:F1298)","v":1320}]
["BOULDER","CO","E-3",{"$f":"TRANSPOSE(G1298:G1298)","v":1320}]
["BOULDER","CO","E-4",{"$f":"TRANSPOSE(H1298:H1298)","v":1320}]
["BOULDER","CO","E-5",{"$f":"TRANSPOSE(I1298:I1298)","v":1461}]
["BOULDER","CO","E-6",{"$f":"TRANSPOSE(J1298:J1298)","v":1752}]
["BOULDER","CO","E-7",{"$f":"TRANSPOSE(K1298:K1298)","v":1824}]
["BOULDER","CO","E-8",{"$f":"TRANSPOSE(L1298)","v":1902}]
["BOULDER","CO","E-9",{"$f":"TRANSPOSE(M1298)","v":2019}]
["BOULDER","CO","W-1",{"$f":"TRANSPOSE(N1298)","v":1755}]
["BOULDER","CO","W-2",{"$f":"TRANSPOSE(O1298)","v":1854}]
["BOULDER","CO","W-3",{"$f":"TRANSPOSE(P1298)","v":1950}]
["BOULDER","CO","W-4",{"$f":"TRANSPOSE(Q1298)","v":2043}]
["BOULDER","CO","W-5",{"$f":"TRANSPOSE(R1298)","v":2154}]
["BOULDER","CO","O-1E",{"$f":"TRANSPOSE(S1298)","v":1839}]
["BOULDER","CO","O-2E",{"$f":"TRANSPOSE(T1298)","v":1935}]
["BOULDER","CO","O-3E",{"$f":"TRANSPOSE(U1298)","v":2061}]
["BOULDER","CO","O-1",{"$f":"TRANSPOSE(V1298)","v":1494}]
["BOULDER","CO","O-2",{"$f":"TRANSPOSE(W1298)","v":1746}]
["BOULDER","CO","O-3",{"$f":"TRANSPOSE(X1298)","v":1947}]
["BOULDER","CO","O-4",{"$f":"TRANSPOSE(Y1298)","v":2196}]
["BOULDER","CO","O-5",{"$f":"TRANSPOSE(Z1298)","v":2376}]
["BOULDER","CO","O-6",{"$f":"TRANSPOSE(AA1298)","v":2400}]
["BOULDER","CO","O-7",{"$f":"TRANSPOSE(AB1298)","v":2424}]
["NEW LONDON","CT","E-1",{"$f":"TRANSPOSE(E1322:E1322)","v":1383},1383,1383,1383,1383,1506,1599,1716,1842,1989,1602,1767,1926,2016,2121,1743,1902,2031,1515,1596,1917,2163,2334,2358,2382]
["NEW LONDON","CT","E-2",{"$f":"TRANSPOSE(F1322:F1322)","v":1383}]
["NEW LONDON","CT","E-3",{"$f":"TRANSPOSE(G1322:G1322)","v":1383}]
["NEW LONDON","CT","E-4",{"$f":"TRANSPOSE(H1322:H1322)","v":1383}]
["NEW LONDON","CT","E-5",{"$f":"TRANSPOSE(I1322:I1322)","v":1506}]
["NEW LONDON","CT","E-6",{"$f":"TRANSPOSE(J1322:J1322)","v":1599}]
["NEW LONDON","CT","E-7",{"$f":"TRANSPOSE(K1322:K1322)","v":1716}]
["NEW LONDON","CT","E-8",{"$f":"TRANSPOSE(L1322)","v":1842}]
["NEW LONDON","CT","E-9",{"$f":"TRANSPOSE(M1322)","v":1989}]
["NEW LONDON","CT","W-1",{"$f":"TRANSPOSE(N1322)","v":1602}]
["NEW LONDON","CT","W-2",{"$f":"TRANSPOSE(O1322)","v":1767}]
["NEW LONDON","CT","W-3",{"$f":"TRANSPOSE(P1322)","v":1926}]
["NEW LONDON","CT","W-4",{"$f":"TRANSPOSE(Q1322)","v":2016}]
["NEW LONDON","CT","W-5",{"$f":"TRANSPOSE(R1322)","v":2121}]
["NEW LONDON","CT","O-1E",{"$f":"TRANSPOSE(S1322)","v":1743}]
["NEW LONDON","CT","O-2E",{"$f":"TRANSPOSE(T1322)","v":1902}]
["NEW LONDON","CT","O-3E",{"$f":"TRANSPOSE(U1322)","v":2031}]
["NEW LONDON","CT","O-1",{"$f":"TRANSPOSE(V1322)","v":1515}]
["NEW LONDON","CT","O-2",{"$f":"TRANSPOSE(W1322)","v":1596}]
["NEW LONDON","CT","O-3",{"$f":"TRANSPOSE(X1322)","v":1917}]
["NEW LONDON","CT","O-4",{"$f":"TRANSPOSE(Y1322)","v":2163}]
["NEW LONDON","CT","O-5",{"$f":"TRANSPOSE(Z1322)","v":2334}]
["NEW LONDON","CT","O-6",{"$f":"TRANSPOSE(AA1322)","v":2358}]
["NEW LONDON","CT","O-7",{"$f":"TRANSPOSE(AB1322)","v":2382}]
["HARTFORD","CT","E-1",{"$f":"TRANSPOSE(E1346:E1346)","v":1569},1569,1569,1569,1569,1758,1935,2082,2238,2457,1941,2145,2340,2502,2694,2112,2310,2532,1779,1932,2331,2766,3075,3108,3138]
["HARTFORD","CT","E-2",{"$f":"TRANSPOSE(F1346:F1346)","v":1569}]
["HARTFORD","CT","E-3",{"$f":"TRANSPOSE(G1346:G1346)","v":1569}]
["HARTFORD","CT","E-4",{"$f":"TRANSPOSE(H1346:H1346)","v":1569}]
["HARTFORD","CT","E-5",{"$f":"TRANSPOSE(I1346:I1346)","v":1758}]
["HARTFORD","CT","E-6",{"$f":"TRANSPOSE(J1346:J1346)","v":1935}]
["HARTFORD","CT","E-7",{"$f":"TRANSPOSE(K1346:K1346)","v":2082}]
["HARTFORD","CT","E-8",{"$f":"TRANSPOSE(L1346)","v":2238}]
["HARTFORD","CT","E-9",{"$f":"TRANSPOSE(M1346)","v":2457}]
["HARTFORD","CT","W-1",{"$f":"TRANSPOSE(N1346)","v":1941}]
["HARTFORD","CT","W-2",{"$f":"TRANSPOSE(O1346)","v":2145}]
["HARTFORD","CT","W-3",{"$f":"TRANSPOSE(P1346)","v":2340}]
["HARTFORD","CT","W-4",{"$f":"TRANSPOSE(Q1346)","v":2502}]
["HARTFORD","CT","W-5",{"$f":"TRANSPOSE(R1346)","v":2694}]
["HARTFORD","CT","O-1E",{"$f":"TRANSPOSE(S1346)","v":2112}]
["HARTFORD","CT","O-2E",{"$f":"TRANSPOSE(T1346)","v":2310}]
["HARTFORD","CT","O-3E",{"$f":"TRANSPOSE(U1346)","v":2532}]
["HARTFORD","CT","O-1",{"$f":"TRANSPOSE(V1346)","v":1779}]
["HARTFORD","CT","O-2",{"$f":"TRANSPOSE(W1346)","v":1932}]
["HARTFORD","CT","O-3",{"$f":"TRANSPOSE(X1346)","v":2331}]
["HARTFORD","CT","O-4",{"$f":"TRANSPOSE(Y1346)","v":2766}]
["HARTFORD","CT","O-5",{"$f":"TRANSPOSE(Z1346)","v":3075}]
["HARTFORD","CT","O-6",{"$f":"TRANSPOSE(AA1346)","v":3108}]
["HARTFORD","CT","O-7",{"$f":"TRANSPOSE(AB1346)","v":3138}]
["NEW HAVEN/FAIRFIELD","CT","E-1",{"$f":"TRANSPOSE(E1370:E1370)","v":2001},2001,2001,2001,2001,2112,2292,2517,2763,3021,2298,2619,2922,3060,3225,2568,2877,3084,2133,2286,2907,3288,3552,3588,3624]
["NEW HAVEN/FAIRFIELD","CT","E-2",{"$f":"TRANSPOSE(F1370:F1370)","v":2001}]
["NEW HAVEN/FAIRFIELD","CT","E-3",{"$f":"TRANSPOSE(G1370:G1370)","v":2001}]
["NEW HAVEN/FAIRFIELD","CT","E-4",{"$f":"TRANSPOSE(H1370:H1370)","v":2001}]
["NEW HAVEN/FAIRFIELD","CT","E-5",{"$f":"TRANSPOSE(I1370:I1370)","v":2112}]
["NEW HAVEN/FAIRFIELD","CT","E-6",{"$f":"TRANSPOSE(J1370:J1370)","v":2292}]
["NEW HAVEN/FAIRFIELD","CT","E-7",{"$f":"TRANSPOSE(K1370:K1370)","v":2517}]
["NEW HAVEN/FAIRFIELD","CT","E-8",{"$f":"TRANSPOSE(L1370)","v":2763}]
["NEW HAVEN/FAIRFIELD","CT","E-9",{"$f":"TRANSPOSE(M1370)","v":3021}]
["NEW HAVEN/FAIRFIELD","CT","W-1",{"$f":"TRANSPOSE(N1370)","v":2298}]
["NEW HAVEN/FAIRFIELD","CT","W-2",{"$f":"TRANSPOSE(O1370)","v":2619}]
["NEW HAVEN/FAIRFIELD","CT","W-3",{"$f":"TRANSPOSE(P1370)","v":2922}]
["NEW HAVEN/FAIRFIELD","CT","W-4",{"$f":"TRANSPOSE(Q1370)","v":3060}]
["NEW HAVEN/FAIRFIELD","CT","W-5",{"$f":"TRANSPOSE(R1370)","v":3225}]
["NEW HAVEN/FAIRFIELD","CT","O-1E",{"$f":"TRANSPOSE(S1370)","v":2568}]
["NEW HAVEN/FAIRFIELD","CT","O-2E",{"$f":"TRANSPOSE(T1370)","v":2877}]
["NEW HAVEN/FAIRFIELD","CT","O-3E",{"$f":"TRANSPOSE(U1370)","v":3084}]
["NEW HAVEN/FAIRFIELD","CT","O-1",{"$f":"TRANSPOSE(V1370)","v":2133}]
["NEW HAVEN/FAIRFIELD","CT","O-2",{"$f":"TRANSPOSE(W1370)","v":2286}]
["NEW HAVEN/FAIRFIELD","CT","O-3",{"$f":"TRANSPOSE(X1370)","v":2907}]
["NEW HAVEN/FAIRFIELD","CT","O-4",{"$f":"TRANSPOSE(Y1370)","v":3288}]
["NEW HAVEN/FAIRFIELD","CT","O-5",{"$f":"TRANSPOSE(Z1370)","v":3552}]
["NEW HAVEN/FAIRFIELD","CT","O-6",{"$f":"TRANSPOSE(AA1370)","v":3588}]
["NEW HAVEN/FAIRFIELD","CT","O-7",{"$f":"TRANSPOSE(AB1370)","v":3624}]
["WASHINGTON","DC","E-1",{"$f":"TRANSPOSE(E1394:E1394)","v":1794},1794,1794,1794,1794,1941,2265,2325,2394,2514,2265,2355,2436,2544,2670,2340,2424,2562,1977,2259,2433,2718,2919,2949,2979]
["WASHINGTON","DC","E-2",{"$f":"TRANSPOSE(F1394:F1394)","v":1794}]
["WASHINGTON","DC","E-3",{"$f":"TRANSPOSE(G1394:G1394)","v":1794}]
["WASHINGTON","DC","E-4",{"$f":"TRANSPOSE(H1394:H1394)","v":1794}]
["WASHINGTON","DC","E-5",{"$f":"TRANSPOSE(I1394:I1394)","v":1941}]
["WASHINGTON","DC","E-6",{"$f":"TRANSPOSE(J1394:J1394)","v":2265}]
["WASHINGTON","DC","E-7",{"$f":"TRANSPOSE(K1394:K1394)","v":2325}]
["WASHINGTON","DC","E-8",{"$f":"TRANSPOSE(L1394)","v":2394}]
["WASHINGTON","DC","E-9",{"$f":"TRANSPOSE(M1394)","v":2514}]
["WASHINGTON","DC","W-1",{"$f":"TRANSPOSE(N1394)","v":2265}]
["WASHINGTON","DC","W-2",{"$f":"TRANSPOSE(O1394)","v":2355}]
["WASHINGTON","DC","W-3",{"$f":"TRANSPOSE(P1394)","v":2436}]
["WASHINGTON","DC","W-4",{"$f":"TRANSPOSE(Q1394)","v":2544}]
["WASHINGTON","DC","W-5",{"$f":"TRANSPOSE(R1394)","v":2670}]
["WASHINGTON","DC","O-1E",{"$f":"TRANSPOSE(S1394)","v":2340}]
["WASHINGTON","DC","O-2E",{"$f":"TRANSPOSE(T1394)","v":2424}]
["WASHINGTON","DC","O-3E",{"$f":"TRANSPOSE(U1394)","v":2562}]
["WASHINGTON","DC","O-1",{"$f":"TRANSPOSE(V1394)","v":1977}]
["WASHINGTON","DC","O-2",{"$f":"TRANSPOSE(W1394)","v":2259}]
["WASHINGTON","DC","O-3",{"$f":"TRANSPOSE(X1394)","v":2433}]
["WASHINGTON","DC","O-4",{"$f":"TRANSPOSE(Y1394)","v":2718}]
["WASHINGTON","DC","O-5",{"$f":"TRANSPOSE(Z1394)","v":2919}]
["WASHINGTON","DC","O-6",{"$f":"TRANSPOSE(AA1394)","v":2949}]
["WASHINGTON","DC","O-7",{"$f":"TRANSPOSE(AB1394)","v":2979}]
["DOVER AFB","DE","E-1",{"$f":"TRANSPOSE(E1418:E1418)","v":1221},1221,1221,1221,1221,1320,1536,1575,1617,1689,1536,1593,1644,1704,1779,1584,1635,1716,1344,1530,1641,1806,1923,1941,1962]
["DOVER AFB","DE","E-2",{"$f":"TRANSPOSE(F1418:F1418)","v":1221}]
["DOVER AFB","DE","E-3",{"$f":"TRANSPOSE(G1418:G1418)","v":1221}]
["DOVER AFB","DE","E-4",{"$f":"TRANSPOSE(H1418:H1418)","v":1221}]
["DOVER AFB","DE","E-5",{"$f":"TRANSPOSE(I1418:I1418)","v":1320}]
["DOVER AFB","DE","E-6",{"$f":"TRANSPOSE(J1418:J1418)","v":1536}]
["DOVER AFB","DE","E-7",{"$f":"TRANSPOSE(K1418:K1418)","v":1575}]
["DOVER AFB","DE","E-8",{"$f":"TRANSPOSE(L1418)","v":1617}]
["DOVER AFB","DE","E-9",{"$f":"TRANSPOSE(M1418)","v":1689}]
["DOVER AFB","DE","W-1",{"$f":"TRANSPOSE(N1418)","v":1536}]
["DOVER AFB","DE","W-2",{"$f":"TRANSPOSE(O1418)","v":1593}]
["DOVER AFB","DE","W-3",{"$f":"TRANSPOSE(P1418)","v":1644}]
["DOVER AFB","DE","W-4",{"$f":"TRANSPOSE(Q1418)","v":1704}]
["DOVER AFB","DE","W-5",{"$f":"TRANSPOSE(R1418)","v":1779}]
["DOVER AFB","DE","O-1E",{"$f":"TRANSPOSE(S1418)","v":1584}]
["DOVER AFB","DE","O-2E",{"$f":"TRANSPOSE(T1418)","v":1635}]
["DOVER AFB","DE","O-3E",{"$f":"TRANSPOSE(U1418)","v":1716}]
["DOVER AFB","DE","O-1",{"$f":"TRANSPOSE(V1418)","v":1344}]
["DOVER AFB","DE","O-2",{"$f":"TRANSPOSE(W1418)","v":1530}]
["DOVER AFB","DE","O-3",{"$f":"TRANSPOSE(X1418)","v":1641}]
["DOVER AFB","DE","O-4",{"$f":"TRANSPOSE(Y1418)","v":1806}]
["DOVER AFB","DE","O-5",{"$f":"TRANSPOSE(Z1418)","v":1923}]
["DOVER AFB","DE","O-6",{"$f":"TRANSPOSE(AA1418)","v":1941}]
["DOVER AFB","DE","O-7",{"$f":"TRANSPOSE(AB1418)","v":1962}]
["REHOBOTH BEACH","DE","E-1",{"$f":"TRANSPOSE(E1442:E1442)","v":1311},1311,1311,1311,1311,1377,1581,1638,1698,1779,1581,1662,1740,1797,1863,1650,1728,1806,1398,1575,1737,1890,1998,2016,2037]
["REHOBOTH BEACH","DE","E-2",{"$f":"TRANSPOSE(F1442:F1442)","v":1311}]
["REHOBOTH BEACH","DE","E-3",{"$f":"TRANSPOSE(G1442:G1442)","v":1311}]
["REHOBOTH BEACH","DE","E-4",{"$f":"TRANSPOSE(H1442:H1442)","v":1311}]
["REHOBOTH BEACH","DE","E-5",{"$f":"TRANSPOSE(I1442:I1442)","v":1377}]
["REHOBOTH BEACH","DE","E-6",{"$f":"TRANSPOSE(J1442:J1442)","v":1581}]
["REHOBOTH BEACH","DE","E-7",{"$f":"TRANSPOSE(K1442:K1442)","v":1638}]
["REHOBOTH BEACH","DE","E-8",{"$f":"TRANSPOSE(L1442)","v":1698}]
["REHOBOTH BEACH","DE","E-9",{"$f":"TRANSPOSE(M1442)","v":1779}]
["REHOBOTH BEACH","DE","W-1",{"$f":"TRANSPOSE(N1442)","v":1581}]
["REHOBOTH BEACH","DE","W-2",{"$f":"TRANSPOSE(O1442)","v":1662}]
["REHOBOTH BEACH","DE","W-3",{"$f":"TRANSPOSE(P1442)","v":1740}]
["REHOBOTH BEACH","DE","W-4",{"$f":"TRANSPOSE(Q1442)","v":1797}]
["REHOBOTH BEACH","DE","W-5",{"$f":"TRANSPOSE(R1442)","v":1863}]
["REHOBOTH BEACH","DE","O-1E",{"$f":"TRANSPOSE(S1442)","v":1650}]
["REHOBOTH BEACH","DE","O-2E",{"$f":"TRANSPOSE(T1442)","v":1728}]
["REHOBOTH BEACH","DE","O-3E",{"$f":"TRANSPOSE(U1442)","v":1806}]
["REHOBOTH BEACH","DE","O-1",{"$f":"TRANSPOSE(V1442)","v":1398}]
["REHOBOTH BEACH","DE","O-2",{"$f":"TRANSPOSE(W1442)","v":1575}]
["REHOBOTH BEACH","DE","O-3",{"$f":"TRANSPOSE(X1442)","v":1737}]
["REHOBOTH BEACH","DE","O-4",{"$f":"TRANSPOSE(Y1442)","v":1890}]
["REHOBOTH BEACH","DE","O-5",{"$f":"TRANSPOSE(Z1442)","v":1998}]
["REHOBOTH BEACH","DE","O-6",{"$f":"TRANSPOSE(AA1442)","v":2016}]
["REHOBOTH BEACH","DE","O-7",{"$f":"TRANSPOSE(AB1442)","v":2037}]
["EGLIN AFB","FL","E-1",{"$f":"TRANSPOSE(E1466:E1466)","v":1218},1218,1218,1218,1218,1257,1371,1413,1461,1563,1371,1434,1491,1590,1710,1422,1482,1608,1269,1368,1488,1755,1947,1968,1986]
["EGLIN AFB","FL","E-2",{"$f":"TRANSPOSE(F1466:F1466)","v":1218}]
["EGLIN AFB","FL","E-3",{"$f":"TRANSPOSE(G1466:G1466)","v":1218}]
["EGLIN AFB","FL","E-4",{"$f":"TRANSPOSE(H1466:H1466)","v":1218}]
["EGLIN AFB","FL","E-5",{"$f":"TRANSPOSE(I1466:I1466)","v":1257}]
["EGLIN AFB","FL","E-6",{"$f":"TRANSPOSE(J1466:J1466)","v":1371}]
["EGLIN AFB","FL","E-7",{"$f":"TRANSPOSE(K1466:K1466)","v":1413}]
["EGLIN AFB","FL","E-8",{"$f":"TRANSPOSE(L1466)","v":1461}]
["EGLIN AFB","FL","E-9",{"$f":"TRANSPOSE(M1466)","v":1563}]
["EGLIN AFB","FL","W-1",{"$f":"TRANSPOSE(N1466)","v":1371}]
["EGLIN AFB","FL","W-2",{"$f":"TRANSPOSE(O1466)","v":1434}]
["EGLIN AFB","FL","W-3",{"$f":"TRANSPOSE(P1466)","v":1491}]
["EGLIN AFB","FL","W-4",{"$f":"TRANSPOSE(Q1466)","v":1590}]
["EGLIN AFB","FL","W-5",{"$f":"TRANSPOSE(R1466)","v":1710}]
["EGLIN AFB","FL","O-1E",{"$f":"TRANSPOSE(S1466)","v":1422}]
["EGLIN AFB","FL","O-2E",{"$f":"TRANSPOSE(T1466)","v":1482}]
["EGLIN AFB","FL","O-3E",{"$f":"TRANSPOSE(U1466)","v":1608}]
["EGLIN AFB","FL","O-1",{"$f":"TRANSPOSE(V1466)","v":1269}]
["EGLIN AFB","FL","O-2",{"$f":"TRANSPOSE(W1466)","v":1368}]
["EGLIN AFB","FL","O-3",{"$f":"TRANSPOSE(X1466)","v":1488}]
["EGLIN AFB","FL","O-4",{"$f":"TRANSPOSE(Y1466)","v":1755}]
["EGLIN AFB","FL","O-5",{"$f":"TRANSPOSE(Z1466)","v":1947}]
["EGLIN AFB","FL","O-6",{"$f":"TRANSPOSE(AA1466)","v":1968}]
["EGLIN AFB","FL","O-7",{"$f":"TRANSPOSE(AB1466)","v":1986}]
["GAINESVILLE","FL","E-1",{"$f":"TRANSPOSE(E1490:E1490)","v":1182},1182,1182,1182,1182,1278,1377,1479,1590,1722,1380,1524,1659,1746,1848,1503,1641,1761,1287,1374,1653,1887,2052,2073,2094]
["GAINESVILLE","FL","E-2",{"$f":"TRANSPOSE(F1490:F1490)","v":1182}]
["GAINESVILLE","FL","E-3",{"$f":"TRANSPOSE(G1490:G1490)","v":1182}]
["GAINESVILLE","FL","E-4",{"$f":"TRANSPOSE(H1490:H1490)","v":1182}]
["GAINESVILLE","FL","E-5",{"$f":"TRANSPOSE(I1490:I1490)","v":1278}]
["GAINESVILLE","FL","E-6",{"$f":"TRANSPOSE(J1490:J1490)","v":1377}]
["GAINESVILLE","FL","E-7",{"$f":"TRANSPOSE(K1490:K1490)","v":1479}]
["GAINESVILLE","FL","E-8",{"$f":"TRANSPOSE(L1490)","v":1590}]
["GAINESVILLE","FL","E-9",{"$f":"TRANSPOSE(M1490)","v":1722}]
["GAINESVILLE","FL","W-1",{"$f":"TRANSPOSE(N1490)","v":1380}]
["GAINESVILLE","FL","W-2",{"$f":"TRANSPOSE(O1490)","v":1524}]
["GAINESVILLE","FL","W-3",{"$f":"TRANSPOSE(P1490)","v":1659}]
["GAINESVILLE","FL","W-4",{"$f":"TRANSPOSE(Q1490)","v":1746}]
["GAINESVILLE","FL","W-5",{"$f":"TRANSPOSE(R1490)","v":1848}]
["GAINESVILLE","FL","O-1E",{"$f":"TRANSPOSE(S1490)","v":1503}]
["GAINESVILLE","FL","O-2E",{"$f":"TRANSPOSE(T1490)","v":1641}]
["GAINESVILLE","FL","O-3E",{"$f":"TRANSPOSE(U1490)","v":1761}]
["GAINESVILLE","FL","O-1",{"$f":"TRANSPOSE(V1490)","v":1287}]
["GAINESVILLE","FL","O-2",{"$f":"TRANSPOSE(W1490)","v":1374}]
["GAINESVILLE","FL","O-3",{"$f":"TRANSPOSE(X1490)","v":1653}]
["GAINESVILLE","FL","O-4",{"$f":"TRANSPOSE(Y1490)","v":1887}]
["GAINESVILLE","FL","O-5",{"$f":"TRANSPOSE(Z1490)","v":2052}]
["GAINESVILLE","FL","O-6",{"$f":"TRANSPOSE(AA1490)","v":2073}]
["GAINESVILLE","FL","O-7",{"$f":"TRANSPOSE(AB1490)","v":2094}]
["JACKSONVILLE","FL","E-1",{"$f":"TRANSPOSE(E1514:E1514)","v":1155},1155,1155,1155,1155,1248,1443,1470,1500,1596,1446,1482,1518,1626,1752,1476,1512,1644,1269,1440,1518,1800,2004,2022,2043]
["JACKSONVILLE","FL","E-2",{"$f":"TRANSPOSE(F1514:F1514)","v":1155}]
["JACKSONVILLE","FL","E-3",{"$f":"TRANSPOSE(G1514:G1514)","v":1155}]
["JACKSONVILLE","FL","E-4",{"$f":"TRANSPOSE(H1514:H1514)","v":1155}]
["JACKSONVILLE","FL","E-5",{"$f":"TRANSPOSE(I1514:I1514)","v":1248}]
["JACKSONVILLE","FL","E-6",{"$f":"TRANSPOSE(J1514:J1514)","v":1443}]
["JACKSONVILLE","FL","E-7",{"$f":"TRANSPOSE(K1514:K1514)","v":1470}]
["JACKSONVILLE","FL","E-8",{"$f":"TRANSPOSE(L1514)","v":1500}]
["JACKSONVILLE","FL","E-9",{"$f":"TRANSPOSE(M1514)","v":1596}]
["JACKSONVILLE","FL","W-1",{"$f":"TRANSPOSE(N1514)","v":1446}]
["JACKSONVILLE","FL","W-2",{"$f":"TRANSPOSE(O1514)","v":1482}]
["JACKSONVILLE","FL","W-3",{"$f":"TRANSPOSE(P1514)","v":1518}]
["JACKSONVILLE","FL","W-4",{"$f":"TRANSPOSE(Q1514)","v":1626}]
["JACKSONVILLE","FL","W-5",{"$f":"TRANSPOSE(R1514)","v":1752}]
["JACKSONVILLE","FL","O-1E",{"$f":"TRANSPOSE(S1514)","v":1476}]
["JACKSONVILLE","FL","O-2E",{"$f":"TRANSPOSE(T1514)","v":1512}]
["JACKSONVILLE","FL","O-3E",{"$f":"TRANSPOSE(U1514)","v":1644}]
["JACKSONVILLE","FL","O-1",{"$f":"TRANSPOSE(V1514)","v":1269}]
["JACKSONVILLE","FL","O-2",{"$f":"TRANSPOSE(W1514)","v":1440}]
["JACKSONVILLE","FL","O-3",{"$f":"TRANSPOSE(X1514)","v":1518}]
["JACKSONVILLE","FL","O-4",{"$f":"TRANSPOSE(Y1514)","v":1800}]
["JACKSONVILLE","FL","O-5",{"$f":"TRANSPOSE(Z1514)","v":2004}]
["JACKSONVILLE","FL","O-6",{"$f":"TRANSPOSE(AA1514)","v":2022}]
["JACKSONVILLE","FL","O-7",{"$f":"TRANSPOSE(AB1514)","v":2043}]
["PATRICK AFB","FL","E-1",{"$f":"TRANSPOSE(E1538:E1538)","v":1080},1080,1080,1080,1080,1185,1590,1614,1641,1725,1593,1626,1656,1752,1863,1620,1650,1770,1230,1584,1656,1908,2088,2109,2130]
["PATRICK AFB","FL","E-2",{"$f":"TRANSPOSE(F1538:F1538)","v":1080}]
["PATRICK AFB","FL","E-3",{"$f":"TRANSPOSE(G1538:G1538)","v":1080}]
["PATRICK AFB","FL","E-4",{"$f":"TRANSPOSE(H1538:H1538)","v":1080}]
["PATRICK AFB","FL","E-5",{"$f":"TRANSPOSE(I1538:I1538)","v":1185}]
["PATRICK AFB","FL","E-6",{"$f":"TRANSPOSE(J1538:J1538)","v":1590}]
["PATRICK AFB","FL","E-7",{"$f":"TRANSPOSE(K1538:K1538)","v":1614}]
["PATRICK AFB","FL","E-8",{"$f":"TRANSPOSE(L1538)","v":1641}]
["PATRICK AFB","FL","E-9",{"$f":"TRANSPOSE(M1538)","v":1725}]
["PATRICK AFB","FL","W-1",{"$f":"TRANSPOSE(N1538)","v":1593}]
["PATRICK AFB","FL","W-2",{"$f":"TRANSPOSE(O1538)","v":1626}]
["PATRICK AFB","FL","W-3",{"$f":"TRANSPOSE(P1538)","v":1656}]
["PATRICK AFB","FL","W-4",{"$f":"TRANSPOSE(Q1538)","v":1752}]
["PATRICK AFB","FL","W-5",{"$f":"TRANSPOSE(R1538)","v":1863}]
["PATRICK AFB","FL","O-1E",{"$f":"TRANSPOSE(S1538)","v":1620}]
["PATRICK AFB","FL","O-2E",{"$f":"TRANSPOSE(T1538)","v":1650}]
["PATRICK AFB","FL","O-3E",{"$f":"TRANSPOSE(U1538)","v":1770}]
["PATRICK AFB","FL","O-1",{"$f":"TRANSPOSE(V1538)","v":1230}]
["PATRICK AFB","FL","O-2",{"$f":"TRANSPOSE(W1538)","v":1584}]
["PATRICK AFB","FL","O-3",{"$f":"TRANSPOSE(X1538)","v":1656}]
["PATRICK AFB","FL","O-4",{"$f":"TRANSPOSE(Y1538)","v":1908}]
["PATRICK AFB","FL","O-5",{"$f":"TRANSPOSE(Z1538)","v":2088}]
["PATRICK AFB","FL","O-6",{"$f":"TRANSPOSE(AA1538)","v":2109}]
["PATRICK AFB","FL","O-7",{"$f":"TRANSPOSE(AB1538)","v":2130}]
["MIAMI/FORT LAUDERDALE","FL","E-1",{"$f":"TRANSPOSE(E1562:E1562)","v":1656},1656,1656,1656,1656,1752,1920,2049,2187,2355,1923,2106,2277,2385,2514,2076,2250,2406,1770,1917,2268,2565,2772,2802,2829]
["MIAMI/FORT LAUDERDALE","FL","E-2",{"$f":"TRANSPOSE(F1562:F1562)","v":1656}]
["MIAMI/FORT LAUDERDALE","FL","E-3",{"$f":"TRANSPOSE(G1562:G1562)","v":1656}]
["MIAMI/FORT LAUDERDALE","FL","E-4",{"$f":"TRANSPOSE(H1562:H1562)","v":1656}]
["MIAMI/FORT LAUDERDALE","FL","E-5",{"$f":"TRANSPOSE(I1562:I1562)","v":1752}]
["MIAMI/FORT LAUDERDALE","FL","E-6",{"$f":"TRANSPOSE(J1562:J1562)","v":1920}]
["MIAMI/FORT LAUDERDALE","FL","E-7",{"$f":"TRANSPOSE(K1562:K1562)","v":2049}]
["MIAMI/FORT LAUDERDALE","FL","E-8",{"$f":"TRANSPOSE(L1562)","v":2187}]
["MIAMI/FORT LAUDERDALE","FL","E-9",{"$f":"TRANSPOSE(M1562)","v":2355}]
["MIAMI/FORT LAUDERDALE","FL","W-1",{"$f":"TRANSPOSE(N1562)","v":1923}]
["MIAMI/FORT LAUDERDALE","FL","W-2",{"$f":"TRANSPOSE(O1562)","v":2106}]
["MIAMI/FORT LAUDERDALE","FL","W-3",{"$f":"TRANSPOSE(P1562)","v":2277}]
["MIAMI/FORT LAUDERDALE","FL","W-4",{"$f":"TRANSPOSE(Q1562)","v":2385}]
["MIAMI/FORT LAUDERDALE","FL","W-5",{"$f":"TRANSPOSE(R1562)","v":2514}]
["MIAMI/FORT LAUDERDALE","FL","O-1E",{"$f":"TRANSPOSE(S1562)","v":2076}]
["MIAMI/FORT LAUDERDALE","FL","O-2E",{"$f":"TRANSPOSE(T1562)","v":2250}]
["MIAMI/FORT LAUDERDALE","FL","O-3E",{"$f":"TRANSPOSE(U1562)","v":2406}]
["MIAMI/FORT LAUDERDALE","FL","O-1",{"$f":"TRANSPOSE(V1562)","v":1770}]
["MIAMI/FORT LAUDERDALE","FL","O-2",{"$f":"TRANSPOSE(W1562)","v":1917}]
["MIAMI/FORT LAUDERDALE","FL","O-3",{"$f":"TRANSPOSE(X1562)","v":2268}]
["MIAMI/FORT LAUDERDALE","FL","O-4",{"$f":"TRANSPOSE(Y1562)","v":2565}]
["MIAMI/FORT LAUDERDALE","FL","O-5",{"$f":"TRANSPOSE(Z1562)","v":2772}]
["MIAMI/FORT LAUDERDALE","FL","O-6",{"$f":"TRANSPOSE(AA1562)","v":2802}]
["MIAMI/FORT LAUDERDALE","FL","O-7",{"$f":"TRANSPOSE(AB1562)","v":2829}]
["ORLANDO","FL","E-1",{"$f":"TRANSPOSE(E1586:E1586)","v":1329},1329,1329,1329,1329,1461,1554,1587,1620,1695,1554,1599,1644,1713,1797,1593,1638,1725,1473,1551,1641,1830,1965,1983,2004]
["ORLANDO","FL","E-2",{"$f":"TRANSPOSE(F1586:F1586)","v":1329}]
["ORLANDO","FL","E-3",{"$f":"TRANSPOSE(G1586:G1586)","v":1329}]
["ORLANDO","FL","E-4",{"$f":"TRANSPOSE(H1586:H1586)","v":1329}]
["ORLANDO","FL","E-5",{"$f":"TRANSPOSE(I1586:I1586)","v":1461}]
["ORLANDO","FL","E-6",{"$f":"TRANSPOSE(J1586:J1586)","v":1554}]
["ORLANDO","FL","E-7",{"$f":"TRANSPOSE(K1586:K1586)","v":1587}]
["ORLANDO","FL","E-8",{"$f":"TRANSPOSE(L1586)","v":1620}]
["ORLANDO","FL","E-9",{"$f":"TRANSPOSE(M1586)","v":1695}]
["ORLANDO","FL","W-1",{"$f":"TRANSPOSE(N1586)","v":1554}]
["ORLANDO","FL","W-2",{"$f":"TRANSPOSE(O1586)","v":1599}]
["ORLANDO","FL","W-3",{"$f":"TRANSPOSE(P1586)","v":1644}]
["ORLANDO","FL","W-4",{"$f":"TRANSPOSE(Q1586)","v":1713}]
["ORLANDO","FL","W-5",{"$f":"TRANSPOSE(R1586)","v":1797}]
["ORLANDO","FL","O-1E",{"$f":"TRANSPOSE(S1586)","v":1593}]
["ORLANDO","FL","O-2E",{"$f":"TRANSPOSE(T1586)","v":1638}]
["ORLANDO","FL","O-3E",{"$f":"TRANSPOSE(U1586)","v":1725}]
["ORLANDO","FL","O-1",{"$f":"TRANSPOSE(V1586)","v":1473}]
["ORLANDO","FL","O-2",{"$f":"TRANSPOSE(W1586)","v":1551}]
["ORLANDO","FL","O-3",{"$f":"TRANSPOSE(X1586)","v":1641}]
["ORLANDO","FL","O-4",{"$f":"TRANSPOSE(Y1586)","v":1830}]
["ORLANDO","FL","O-5",{"$f":"TRANSPOSE(Z1586)","v":1965}]
["ORLANDO","FL","O-6",{"$f":"TRANSPOSE(AA1586)","v":1983}]
["ORLANDO","FL","O-7",{"$f":"TRANSPOSE(AB1586)","v":2004}]
["PANAMA CITY","FL","E-1",{"$f":"TRANSPOSE(E1610:E1610)","v":1140},1140,1140,1140,1140,1194,1356,1413,1473,1566,1356,1437,1512,1587,1677,1425,1500,1602,1212,1353,1509,1713,1857,1875,1893]
["PANAMA CITY","FL","E-2",{"$f":"TRANSPOSE(F1610:F1610)","v":1140}]
["PANAMA CITY","FL","E-3",{"$f":"TRANSPOSE(G1610:G1610)","v":1140}]
["PANAMA CITY","FL","E-4",{"$f":"TRANSPOSE(H1610:H1610)","v":1140}]
["PANAMA CITY","FL","E-5",{"$f":"TRANSPOSE(I1610:I1610)","v":1194}]
["PANAMA CITY","FL","E-6",{"$f":"TRANSPOSE(J1610:J1610)","v":1356}]
["PANAMA CITY","FL","E-7",{"$f":"TRANSPOSE(K1610:K1610)","v":1413}]
["PANAMA CITY","FL","E-8",{"$f":"TRANSPOSE(L1610)","v":1473}]
["PANAMA CITY","FL","E-9",{"$f":"TRANSPOSE(M1610)","v":1566}]
["PANAMA CITY","FL","W-1",{"$f":"TRANSPOSE(N1610)","v":1356}]
["PANAMA CITY","FL","W-2",{"$f":"TRANSPOSE(O1610)","v":1437}]
["PANAMA CITY","FL","W-3",{"$f":"TRANSPOSE(P1610)","v":1512}]
["PANAMA CITY","FL","W-4",{"$f":"TRANSPOSE(Q1610)","v":1587}]
["PANAMA CITY","FL","W-5",{"$f":"TRANSPOSE(R1610)","v":1677}]
["PANAMA CITY","FL","O-1E",{"$f":"TRANSPOSE(S1610)","v":1425}]
["PANAMA CITY","FL","O-2E",{"$f":"TRANSPOSE(T1610)","v":1500}]
["PANAMA CITY","FL","O-3E",{"$f":"TRANSPOSE(U1610)","v":1602}]
["PANAMA CITY","FL","O-1",{"$f":"TRANSPOSE(V1610)","v":1212}]
["PANAMA CITY","FL","O-2",{"$f":"TRANSPOSE(W1610)","v":1353}]
["PANAMA CITY","FL","O-3",{"$f":"TRANSPOSE(X1610)","v":1509}]
["PANAMA CITY","FL","O-4",{"$f":"TRANSPOSE(Y1610)","v":1713}]
["PANAMA CITY","FL","O-5",{"$f":"TRANSPOSE(Z1610)","v":1857}]
["PANAMA CITY","FL","O-6",{"$f":"TRANSPOSE(AA1610)","v":1875}]
["PANAMA CITY","FL","O-7",{"$f":"TRANSPOSE(AB1610)","v":1893}]
["PENSACOLA","FL","E-1",{"$f":"TRANSPOSE(E1634:E1634)","v":1077},1077,1077,1077,1077,1113,1284,1317,1356,1443,1287,1332,1377,1470,1578,1326,1371,1485,1131,1281,1377,1620,1794,1812,1830]
["PENSACOLA","FL","E-2",{"$f":"TRANSPOSE(F1634:F1634)","v":1077}]
["PENSACOLA","FL","E-3",{"$f":"TRANSPOSE(G1634:G1634)","v":1077}]
["PENSACOLA","FL","E-4",{"$f":"TRANSPOSE(H1634:H1634)","v":1077}]
["PENSACOLA","FL","E-5",{"$f":"TRANSPOSE(I1634:I1634)","v":1113}]
["PENSACOLA","FL","E-6",{"$f":"TRANSPOSE(J1634:J1634)","v":1284}]
["PENSACOLA","FL","E-7",{"$f":"TRANSPOSE(K1634:K1634)","v":1317}]
["PENSACOLA","FL","E-8",{"$f":"TRANSPOSE(L1634)","v":1356}]
["PENSACOLA","FL","E-9",{"$f":"TRANSPOSE(M1634)","v":1443}]
["PENSACOLA","FL","W-1",{"$f":"TRANSPOSE(N1634)","v":1287}]
["PENSACOLA","FL","W-2",{"$f":"TRANSPOSE(O1634)","v":1332}]
["PENSACOLA","FL","W-3",{"$f":"TRANSPOSE(P1634)","v":1377}]
["PENSACOLA","FL","W-4",{"$f":"TRANSPOSE(Q1634)","v":1470}]
["PENSACOLA","FL","W-5",{"$f":"TRANSPOSE(R1634)","v":1578}]
["PENSACOLA","FL","O-1E",{"$f":"TRANSPOSE(S1634)","v":1326}]
["PENSACOLA","FL","O-2E",{"$f":"TRANSPOSE(T1634)","v":1371}]
["PENSACOLA","FL","O-3E",{"$f":"TRANSPOSE(U1634)","v":1485}]
["PENSACOLA","FL","O-1",{"$f":"TRANSPOSE(V1634)","v":1131}]
["PENSACOLA","FL","O-2",{"$f":"TRANSPOSE(W1634)","v":1281}]
["PENSACOLA","FL","O-3",{"$f":"TRANSPOSE(X1634)","v":1377}]
["PENSACOLA","FL","O-4",{"$f":"TRANSPOSE(Y1634)","v":1620}]
["PENSACOLA","FL","O-5",{"$f":"TRANSPOSE(Z1634)","v":1794}]
["PENSACOLA","FL","O-6",{"$f":"TRANSPOSE(AA1634)","v":1812}]
["PENSACOLA","FL","O-7",{"$f":"TRANSPOSE(AB1634)","v":1830}]
["TALLAHASSEE","FL","E-1",{"$f":"TRANSPOSE(E1658:E1658)","v":1101},1101,1101,1101,1101,1152,1329,1377,1431,1554,1329,1401,1467,1584,1725,1389,1458,1605,1170,1323,1464,1779,2004,2022,2043]
["TALLAHASSEE","FL","E-2",{"$f":"TRANSPOSE(F1658:F1658)","v":1101}]
["TALLAHASSEE","FL","E-3",{"$f":"TRANSPOSE(G1658:G1658)","v":1101}]
["TALLAHASSEE","FL","E-4",{"$f":"TRANSPOSE(H1658:H1658)","v":1101}]
["TALLAHASSEE","FL","E-5",{"$f":"TRANSPOSE(I1658:I1658)","v":1152}]
["TALLAHASSEE","FL","E-6",{"$f":"TRANSPOSE(J1658:J1658)","v":1329}]
["TALLAHASSEE","FL","E-7",{"$f":"TRANSPOSE(K1658:K1658)","v":1377}]
["TALLAHASSEE","FL","E-8",{"$f":"TRANSPOSE(L1658)","v":1431}]
["TALLAHASSEE","FL","E-9",{"$f":"TRANSPOSE(M1658)","v":1554}]
["TALLAHASSEE","FL","W-1",{"$f":"TRANSPOSE(N1658)","v":1329}]
["TALLAHASSEE","FL","W-2",{"$f":"TRANSPOSE(O1658)","v":1401}]
["TALLAHASSEE","FL","W-3",{"$f":"TRANSPOSE(P1658)","v":1467}]
["TALLAHASSEE","FL","W-4",{"$f":"TRANSPOSE(Q1658)","v":1584}]
["TALLAHASSEE","FL","W-5",{"$f":"TRANSPOSE(R1658)","v":1725}]
["TALLAHASSEE","FL","O-1E",{"$f":"TRANSPOSE(S1658)","v":1389}]
["TALLAHASSEE","FL","O-2E",{"$f":"TRANSPOSE(T1658)","v":1458}]
["TALLAHASSEE","FL","O-3E",{"$f":"TRANSPOSE(U1658)","v":1605}]
["TALLAHASSEE","FL","O-1",{"$f":"TRANSPOSE(V1658)","v":1170}]
["TALLAHASSEE","FL","O-2",{"$f":"TRANSPOSE(W1658)","v":1323}]
["TALLAHASSEE","FL","O-3",{"$f":"TRANSPOSE(X1658)","v":1464}]
["TALLAHASSEE","FL","O-4",{"$f":"TRANSPOSE(Y1658)","v":1779}]
["TALLAHASSEE","FL","O-5",{"$f":"TRANSPOSE(Z1658)","v":2004}]
["TALLAHASSEE","FL","O-6",{"$f":"TRANSPOSE(AA1658)","v":2022}]
["TALLAHASSEE","FL","O-7",{"$f":"TRANSPOSE(AB1658)","v":2043}]
["TAMPA","FL","E-1",{"$f":"TRANSPOSE(E1682:E1682)","v":1497},1497,1497,1497,1497,1662,1905,1962,2025,2151,1908,1989,2067,2184,2322,1977,2055,2205,1689,1899,2064,2376,2598,2625,2652]
["TAMPA","FL","E-2",{"$f":"TRANSPOSE(F1682:F1682)","v":1497}]
["TAMPA","FL","E-3",{"$f":"TRANSPOSE(G1682:G1682)","v":1497}]
["TAMPA","FL","E-4",{"$f":"TRANSPOSE(H1682:H1682)","v":1497}]
["TAMPA","FL","E-5",{"$f":"TRANSPOSE(I1682:I1682)","v":1662}]
["TAMPA","FL","E-6",{"$f":"TRANSPOSE(J1682:J1682)","v":1905}]
["TAMPA","FL","E-7",{"$f":"TRANSPOSE(K1682:K1682)","v":1962}]
["TAMPA","FL","E-8",{"$f":"TRANSPOSE(L1682)","v":2025}]
["TAMPA","FL","E-9",{"$f":"TRANSPOSE(M1682)","v":2151}]
["TAMPA","FL","W-1",{"$f":"TRANSPOSE(N1682)","v":1908}]
["TAMPA","FL","W-2",{"$f":"TRANSPOSE(O1682)","v":1989}]
["TAMPA","FL","W-3",{"$f":"TRANSPOSE(P1682)","v":2067}]
["TAMPA","FL","W-4",{"$f":"TRANSPOSE(Q1682)","v":2184}]
["TAMPA","FL","W-5",{"$f":"TRANSPOSE(R1682)","v":2322}]
["TAMPA","FL","O-1E",{"$f":"TRANSPOSE(S1682)","v":1977}]
["TAMPA","FL","O-2E",{"$f":"TRANSPOSE(T1682)","v":2055}]
["TAMPA","FL","O-3E",{"$f":"TRANSPOSE(U1682)","v":2205}]
["TAMPA","FL","O-1",{"$f":"TRANSPOSE(V1682)","v":1689}]
["TAMPA","FL","O-2",{"$f":"TRANSPOSE(W1682)","v":1899}]
["TAMPA","FL","O-3",{"$f":"TRANSPOSE(X1682)","v":2064}]
["TAMPA","FL","O-4",{"$f":"TRANSPOSE(Y1682)","v":2376}]
["TAMPA","FL","O-5",{"$f":"TRANSPOSE(Z1682)","v":2598}]
["TAMPA","FL","O-6",{"$f":"TRANSPOSE(AA1682)","v":2625}]
["TAMPA","FL","O-7",{"$f":"TRANSPOSE(AB1682)","v":2652}]
["WEST PALM BEACH","FL","E-1",{"$f":"TRANSPOSE(E1706:E1706)","v":1485},1485,1485,1485,1485,1623,1914,1983,2061,2166,1917,2016,2109,2187,2277,2001,2094,2199,1653,1908,2106,2313,2460,2484,2508]
["WEST PALM BEACH","FL","E-2",{"$f":"TRANSPOSE(F1706:F1706)","v":1485}]
["WEST PALM BEACH","FL","E-3",{"$f":"TRANSPOSE(G1706:G1706)","v":1485}]
["WEST PALM BEACH","FL","E-4",{"$f":"TRANSPOSE(H1706:H1706)","v":1485}]
["WEST PALM BEACH","FL","E-5",{"$f":"TRANSPOSE(I1706:I1706)","v":1623}]
["WEST PALM BEACH","FL","E-6",{"$f":"TRANSPOSE(J1706:J1706)","v":1914}]
["WEST PALM BEACH","FL","E-7",{"$f":"TRANSPOSE(K1706:K1706)","v":1983}]
["WEST PALM BEACH","FL","E-8",{"$f":"TRANSPOSE(L1706)","v":2061}]
["WEST PALM BEACH","FL","E-9",{"$f":"TRANSPOSE(M1706)","v":2166}]
["WEST PALM BEACH","FL","W-1",{"$f":"TRANSPOSE(N1706)","v":1917}]
["WEST PALM BEACH","FL","W-2",{"$f":"TRANSPOSE(O1706)","v":2016}]
["WEST PALM BEACH","FL","W-3",{"$f":"TRANSPOSE(P1706)","v":2109}]
["WEST PALM BEACH","FL","W-4",{"$f":"TRANSPOSE(Q1706)","v":2187}]
["WEST PALM BEACH","FL","W-5",{"$f":"TRANSPOSE(R1706)","v":2277}]
["WEST PALM BEACH","FL","O-1E",{"$f":"TRANSPOSE(S1706)","v":2001}]
["WEST PALM BEACH","FL","O-2E",{"$f":"TRANSPOSE(T1706)","v":2094}]
["WEST PALM BEACH","FL","O-3E",{"$f":"TRANSPOSE(U1706)","v":2199}]
["WEST PALM BEACH","FL","O-1",{"$f":"TRANSPOSE(V1706)","v":1653}]
["WEST PALM BEACH","FL","O-2",{"$f":"TRANSPOSE(W1706)","v":1908}]
["WEST PALM BEACH","FL","O-3",{"$f":"TRANSPOSE(X1706)","v":2106}]
["WEST PALM BEACH","FL","O-4",{"$f":"TRANSPOSE(Y1706)","v":2313}]
["WEST PALM BEACH","FL","O-5",{"$f":"TRANSPOSE(Z1706)","v":2460}]
["WEST PALM BEACH","FL","O-6",{"$f":"TRANSPOSE(AA1706)","v":2484}]
["WEST PALM BEACH","FL","O-7",{"$f":"TRANSPOSE(AB1706)","v":2508}]
["OCALA","FL","E-1",{"$f":"TRANSPOSE(E1730:E1730)","v":1071},1071,1071,1071,1071,1122,1305,1320,1338,1428,1305,1326,1350,1455,1584,1323,1347,1476,1143,1299,1347,1632,1836,1854,1872]
["OCALA","FL","E-2",{"$f":"TRANSPOSE(F1730:F1730)","v":1071}]
["OCALA","FL","E-3",{"$f":"TRANSPOSE(G1730:G1730)","v":1071}]
["OCALA","FL","E-4",{"$f":"TRANSPOSE(H1730:H1730)","v":1071}]
["OCALA","FL","E-5",{"$f":"TRANSPOSE(I1730:I1730)","v":1122}]
["OCALA","FL","E-6",{"$f":"TRANSPOSE(J1730:J1730)","v":1305}]
["OCALA","FL","E-7",{"$f":"TRANSPOSE(K1730:K1730)","v":1320}]
["OCALA","FL","E-8",{"$f":"TRANSPOSE(L1730)","v":1338}]
["OCALA","FL","E-9",{"$f":"TRANSPOSE(M1730)","v":1428}]
["OCALA","FL","W-1",{"$f":"TRANSPOSE(N1730)","v":1305}]
["OCALA","FL","W-2",{"$f":"TRANSPOSE(O1730)","v":1326}]
["OCALA","FL","W-3",{"$f":"TRANSPOSE(P1730)","v":1350}]
["OCALA","FL","W-4",{"$f":"TRANSPOSE(Q1730)","v":1455}]
["OCALA","FL","W-5",{"$f":"TRANSPOSE(R1730)","v":1584}]
["OCALA","FL","O-1E",{"$f":"TRANSPOSE(S1730)","v":1323}]
["OCALA","FL","O-2E",{"$f":"TRANSPOSE(T1730)","v":1347}]
["OCALA","FL","O-3E",{"$f":"TRANSPOSE(U1730)","v":1476}]
["OCALA","FL","O-1",{"$f":"TRANSPOSE(V1730)","v":1143}]
["OCALA","FL","O-2",{"$f":"TRANSPOSE(W1730)","v":1299}]
["OCALA","FL","O-3",{"$f":"TRANSPOSE(X1730)","v":1347}]
["OCALA","FL","O-4",{"$f":"TRANSPOSE(Y1730)","v":1632}]
["OCALA","FL","O-5",{"$f":"TRANSPOSE(Z1730)","v":1836}]
["OCALA","FL","O-6",{"$f":"TRANSPOSE(AA1730)","v":1854}]
["OCALA","FL","O-7",{"$f":"TRANSPOSE(AB1730)","v":1872}]
["KEY WEST","FL","E-1",{"$f":"TRANSPOSE(E1754:E1754)","v":1935},1935,1935,1935,1935,2064,2694,2709,2724,2862,2694,2715,2736,2910,3117,2712,2733,2943,2133,2682,2733,3198,3531,3567,3603]
["KEY WEST","FL","E-2",{"$f":"TRANSPOSE(F1754:F1754)","v":1935}]
["KEY WEST","FL","E-3",{"$f":"TRANSPOSE(G1754:G1754)","v":1935}]
["KEY WEST","FL","E-4",{"$f":"TRANSPOSE(H1754:H1754)","v":1935}]
["KEY WEST","FL","E-5",{"$f":"TRANSPOSE(I1754:I1754)","v":2064}]
["KEY WEST","FL","E-6",{"$f":"TRANSPOSE(J1754:J1754)","v":2694}]
["KEY WEST","FL","E-7",{"$f":"TRANSPOSE(K1754:K1754)","v":2709}]
["KEY WEST","FL","E-8",{"$f":"TRANSPOSE(L1754)","v":2724}]
["KEY WEST","FL","E-9",{"$f":"TRANSPOSE(M1754)","v":2862}]
["KEY WEST","FL","W-1",{"$f":"TRANSPOSE(N1754)","v":2694}]
["KEY WEST","FL","W-2",{"$f":"TRANSPOSE(O1754)","v":2715}]
["KEY WEST","FL","W-3",{"$f":"TRANSPOSE(P1754)","v":2736}]
["KEY WEST","FL","W-4",{"$f":"TRANSPOSE(Q1754)","v":2910}]
["KEY WEST","FL","W-5",{"$f":"TRANSPOSE(R1754)","v":3117}]
["KEY WEST","FL","O-1E",{"$f":"TRANSPOSE(S1754)","v":2712}]
["KEY WEST","FL","O-2E",{"$f":"TRANSPOSE(T1754)","v":2733}]
["KEY WEST","FL","O-3E",{"$f":"TRANSPOSE(U1754)","v":2943}]
["KEY WEST","FL","O-1",{"$f":"TRANSPOSE(V1754)","v":2133}]
["KEY WEST","FL","O-2",{"$f":"TRANSPOSE(W1754)","v":2682}]
["KEY WEST","FL","O-3",{"$f":"TRANSPOSE(X1754)","v":2733}]
["KEY WEST","FL","O-4",{"$f":"TRANSPOSE(Y1754)","v":3198}]
["KEY WEST","FL","O-5",{"$f":"TRANSPOSE(Z1754)","v":3531}]
["KEY WEST","FL","O-6",{"$f":"TRANSPOSE(AA1754)","v":3567}]
["KEY WEST","FL","O-7",{"$f":"TRANSPOSE(AB1754)","v":3603}]
["VOLUSIA COUNTY","FL","E-1",{"$f":"TRANSPOSE(E1778:E1778)","v":1125},1125,1125,1125,1125,1245,1437,1560,1692,1815,1440,1614,1776,1827,1890,1587,1752,1839,1266,1434,1770,1914,2010,2031,2052]
["VOLUSIA COUNTY","FL","E-2",{"$f":"TRANSPOSE(F1778:F1778)","v":1125}]
["VOLUSIA COUNTY","FL","E-3",{"$f":"TRANSPOSE(G1778:G1778)","v":1125}]
["VOLUSIA COUNTY","FL","E-4",{"$f":"TRANSPOSE(H1778:H1778)","v":1125}]
["VOLUSIA COUNTY","FL","E-5",{"$f":"TRANSPOSE(I1778:I1778)","v":1245}]
["VOLUSIA COUNTY","FL","E-6",{"$f":"TRANSPOSE(J1778:J1778)","v":1437}]
["VOLUSIA COUNTY","FL","E-7",{"$f":"TRANSPOSE(K1778:K1778)","v":1560}]
["VOLUSIA COUNTY","FL","E-8",{"$f":"TRANSPOSE(L1778)","v":1692}]
["VOLUSIA COUNTY","FL","E-9",{"$f":"TRANSPOSE(M1778)","v":1815}]
["VOLUSIA COUNTY","FL","W-1",{"$f":"TRANSPOSE(N1778)","v":1440}]
["VOLUSIA COUNTY","FL","W-2",{"$f":"TRANSPOSE(O1778)","v":1614}]
["VOLUSIA COUNTY","FL","W-3",{"$f":"TRANSPOSE(P1778)","v":1776}]
["VOLUSIA COUNTY","FL","W-4",{"$f":"TRANSPOSE(Q1778)","v":1827}]
["VOLUSIA COUNTY","FL","W-5",{"$f":"TRANSPOSE(R1778)","v":1890}]
["VOLUSIA COUNTY","FL","O-1E",{"$f":"TRANSPOSE(S1778)","v":1587}]
["VOLUSIA COUNTY","FL","O-2E",{"$f":"TRANSPOSE(T1778)","v":1752}]
["VOLUSIA COUNTY","FL","O-3E",{"$f":"TRANSPOSE(U1778)","v":1839}]
["VOLUSIA COUNTY","FL","O-1",{"$f":"TRANSPOSE(V1778)","v":1266}]
["VOLUSIA COUNTY","FL","O-2",{"$f":"TRANSPOSE(W1778)","v":1434}]
["VOLUSIA COUNTY","FL","O-3",{"$f":"TRANSPOSE(X1778)","v":1770}]
["VOLUSIA COUNTY","FL","O-4",{"$f":"TRANSPOSE(Y1778)","v":1914}]
["VOLUSIA COUNTY","FL","O-5",{"$f":"TRANSPOSE(Z1778)","v":2010}]
["VOLUSIA COUNTY","FL","O-6",{"$f":"TRANSPOSE(AA1778)","v":2031}]
["VOLUSIA COUNTY","FL","O-7",{"$f":"TRANSPOSE(AB1778)","v":2052}]
["POLK COUNTY","FL","E-1",{"$f":"TRANSPOSE(E1802:E1802)","v":990},990,990,990,990,1065,1251,1302,1356,1476,1251,1323,1392,1509,1647,1314,1383,1530,1086,1245,1389,1698,1920,1941,1959]
["POLK COUNTY","FL","E-2",{"$f":"TRANSPOSE(F1802:F1802)","v":990}]
["POLK COUNTY","FL","E-3",{"$f":"TRANSPOSE(G1802:G1802)","v":990}]
["POLK COUNTY","FL","E-4",{"$f":"TRANSPOSE(H1802:H1802)","v":990}]
["POLK COUNTY","FL","E-5",{"$f":"TRANSPOSE(I1802:I1802)","v":1065}]
["POLK COUNTY","FL","E-6",{"$f":"TRANSPOSE(J1802:J1802)","v":1251}]
["POLK COUNTY","FL","E-7",{"$f":"TRANSPOSE(K1802:K1802)","v":1302}]
["POLK COUNTY","FL","E-8",{"$f":"TRANSPOSE(L1802)","v":1356}]
["POLK COUNTY","FL","E-9",{"$f":"TRANSPOSE(M1802)","v":1476}]
["POLK COUNTY","FL","W-1",{"$f":"TRANSPOSE(N1802)","v":1251}]
["POLK COUNTY","FL","W-2",{"$f":"TRANSPOSE(O1802)","v":1323}]
["POLK COUNTY","FL","W-3",{"$f":"TRANSPOSE(P1802)","v":1392}]
["POLK COUNTY","FL","W-4",{"$f":"TRANSPOSE(Q1802)","v":1509}]
["POLK COUNTY","FL","W-5",{"$f":"TRANSPOSE(R1802)","v":1647}]
["POLK COUNTY","FL","O-1E",{"$f":"TRANSPOSE(S1802)","v":1314}]
["POLK COUNTY","FL","O-2E",{"$f":"TRANSPOSE(T1802)","v":1383}]
["POLK COUNTY","FL","O-3E",{"$f":"TRANSPOSE(U1802)","v":1530}]
["POLK COUNTY","FL","O-1",{"$f":"TRANSPOSE(V1802)","v":1086}]
["POLK COUNTY","FL","O-2",{"$f":"TRANSPOSE(W1802)","v":1245}]
["POLK COUNTY","FL","O-3",{"$f":"TRANSPOSE(X1802)","v":1389}]
["POLK COUNTY","FL","O-4",{"$f":"TRANSPOSE(Y1802)","v":1698}]
["POLK COUNTY","FL","O-5",{"$f":"TRANSPOSE(Z1802)","v":1920}]
["POLK COUNTY","FL","O-6",{"$f":"TRANSPOSE(AA1802)","v":1941}]
["POLK COUNTY","FL","O-7",{"$f":"TRANSPOSE(AB1802)","v":1959}]
["FORT PIERCE","FL","E-1",{"$f":"TRANSPOSE(E1826:E1826)","v":1077},1077,1077,1077,1077,1167,1470,1509,1554,1608,1470,1527,1581,1620,1662,1518,1575,1626,1200,1464,1581,1680,1749,1767,1785]
["FORT PIERCE","FL","E-2",{"$f":"TRANSPOSE(F1826:F1826)","v":1077}]
["FORT PIERCE","FL","E-3",{"$f":"TRANSPOSE(G1826:G1826)","v":1077}]
["FORT PIERCE","FL","E-4",{"$f":"TRANSPOSE(H1826:H1826)","v":1077}]
["FORT PIERCE","FL","E-5",{"$f":"TRANSPOSE(I1826:I1826)","v":1167}]
["FORT PIERCE","FL","E-6",{"$f":"TRANSPOSE(J1826:J1826)","v":1470}]
["FORT PIERCE","FL","E-7",{"$f":"TRANSPOSE(K1826:K1826)","v":1509}]
["FORT PIERCE","FL","E-8",{"$f":"TRANSPOSE(L1826)","v":1554}]
["FORT PIERCE","FL","E-9",{"$f":"TRANSPOSE(M1826)","v":1608}]
["FORT PIERCE","FL","W-1",{"$f":"TRANSPOSE(N1826)","v":1470}]
["FORT PIERCE","FL","W-2",{"$f":"TRANSPOSE(O1826)","v":1527}]
["FORT PIERCE","FL","W-3",{"$f":"TRANSPOSE(P1826)","v":1581}]
["FORT PIERCE","FL","W-4",{"$f":"TRANSPOSE(Q1826)","v":1620}]
["FORT PIERCE","FL","W-5",{"$f":"TRANSPOSE(R1826)","v":1662}]
["FORT PIERCE","FL","O-1E",{"$f":"TRANSPOSE(S1826)","v":1518}]
["FORT PIERCE","FL","O-2E",{"$f":"TRANSPOSE(T1826)","v":1575}]
["FORT PIERCE","FL","O-3E",{"$f":"TRANSPOSE(U1826)","v":1626}]
["FORT PIERCE","FL","O-1",{"$f":"TRANSPOSE(V1826)","v":1200}]
["FORT PIERCE","FL","O-2",{"$f":"TRANSPOSE(W1826)","v":1464}]
["FORT PIERCE","FL","O-3",{"$f":"TRANSPOSE(X1826)","v":1581}]
["FORT PIERCE","FL","O-4",{"$f":"TRANSPOSE(Y1826)","v":1680}]
["FORT PIERCE","FL","O-5",{"$f":"TRANSPOSE(Z1826)","v":1749}]
["FORT PIERCE","FL","O-6",{"$f":"TRANSPOSE(AA1826)","v":1767}]
["FORT PIERCE","FL","O-7",{"$f":"TRANSPOSE(AB1826)","v":1785}]
["FT MYERS BEACH","FL","E-1",{"$f":"TRANSPOSE(E1850:E1850)","v":1365},1365,1365,1365,1365,1506,1566,1707,1857,1998,1572,1767,1953,2016,2094,1737,1926,2028,1515,1566,1944,2124,2247,2268,2292]
["FT MYERS BEACH","FL","E-2",{"$f":"TRANSPOSE(F1850:F1850)","v":1365}]
["FT MYERS BEACH","FL","E-3",{"$f":"TRANSPOSE(G1850:G1850)","v":1365}]
["FT MYERS BEACH","FL","E-4",{"$f":"TRANSPOSE(H1850:H1850)","v":1365}]
["FT MYERS BEACH","FL","E-5",{"$f":"TRANSPOSE(I1850:I1850)","v":1506}]
["FT MYERS BEACH","FL","E-6",{"$f":"TRANSPOSE(J1850:J1850)","v":1566}]
["FT MYERS BEACH","FL","E-7",{"$f":"TRANSPOSE(K1850:K1850)","v":1707}]
["FT MYERS BEACH","FL","E-8",{"$f":"TRANSPOSE(L1850)","v":1857}]
["FT MYERS BEACH","FL","E-9",{"$f":"TRANSPOSE(M1850)","v":1998}]
["FT MYERS BEACH","FL","W-1",{"$f":"TRANSPOSE(N1850)","v":1572}]
["FT MYERS BEACH","FL","W-2",{"$f":"TRANSPOSE(O1850)","v":1767}]
["FT MYERS BEACH","FL","W-3",{"$f":"TRANSPOSE(P1850)","v":1953}]
["FT MYERS BEACH","FL","W-4",{"$f":"TRANSPOSE(Q1850)","v":2016}]
["FT MYERS BEACH","FL","W-5",{"$f":"TRANSPOSE(R1850)","v":2094}]
["FT MYERS BEACH","FL","O-1E",{"$f":"TRANSPOSE(S1850)","v":1737}]
["FT MYERS BEACH","FL","O-2E",{"$f":"TRANSPOSE(T1850)","v":1926}]
["FT MYERS BEACH","FL","O-3E",{"$f":"TRANSPOSE(U1850)","v":2028}]
["FT MYERS BEACH","FL","O-1",{"$f":"TRANSPOSE(V1850)","v":1515}]
["FT MYERS BEACH","FL","O-2",{"$f":"TRANSPOSE(W1850)","v":1566}]
["FT MYERS BEACH","FL","O-3",{"$f":"TRANSPOSE(X1850)","v":1944}]
["FT MYERS BEACH","FL","O-4",{"$f":"TRANSPOSE(Y1850)","v":2124}]
["FT MYERS BEACH","FL","O-5",{"$f":"TRANSPOSE(Z1850)","v":2247}]
["FT MYERS BEACH","FL","O-6",{"$f":"TRANSPOSE(AA1850)","v":2268}]
["FT MYERS BEACH","FL","O-7",{"$f":"TRANSPOSE(AB1850)","v":2292}]
["ATLANTA","GA","E-1",{"$f":"TRANSPOSE(E1874:E1874)","v":1116},1116,1116,1116,1116,1194,1353,1422,1494,1593,1356,1452,1542,1611,1695,1437,1527,1623,1212,1350,1536,1725,1860,1878,1896]
["ATLANTA","GA","E-2",{"$f":"TRANSPOSE(F1874:F1874)","v":1116}]
["ATLANTA","GA","E-3",{"$f":"TRANSPOSE(G1874:G1874)","v":1116}]
["ATLANTA","GA","E-4",{"$f":"TRANSPOSE(H1874:H1874)","v":1116}]
["ATLANTA","GA","E-5",{"$f":"TRANSPOSE(I1874:I1874)","v":1194}]
["ATLANTA","GA","E-6",{"$f":"TRANSPOSE(J1874:J1874)","v":1353}]
["ATLANTA","GA","E-7",{"$f":"TRANSPOSE(K1874:K1874)","v":1422}]
["ATLANTA","GA","E-8",{"$f":"TRANSPOSE(L1874)","v":1494}]
["ATLANTA","GA","E-9",{"$f":"TRANSPOSE(M1874)","v":1593}]
["ATLANTA","GA","W-1",{"$f":"TRANSPOSE(N1874)","v":1356}]
["ATLANTA","GA","W-2",{"$f":"TRANSPOSE(O1874)","v":1452}]
["ATLANTA","GA","W-3",{"$f":"TRANSPOSE(P1874)","v":1542}]
["ATLANTA","GA","W-4",{"$f":"TRANSPOSE(Q1874)","v":1611}]
["ATLANTA","GA","W-5",{"$f":"TRANSPOSE(R1874)","v":1695}]
["ATLANTA","GA","O-1E",{"$f":"TRANSPOSE(S1874)","v":1437}]
["ATLANTA","GA","O-2E",{"$f":"TRANSPOSE(T1874)","v":1527}]
["ATLANTA","GA","O-3E",{"$f":"TRANSPOSE(U1874)","v":1623}]
["ATLANTA","GA","O-1",{"$f":"TRANSPOSE(V1874)","v":1212}]
["ATLANTA","GA","O-2",{"$f":"TRANSPOSE(W1874)","v":1350}]
["ATLANTA","GA","O-3",{"$f":"TRANSPOSE(X1874)","v":1536}]
["ATLANTA","GA","O-4",{"$f":"TRANSPOSE(Y1874)","v":1725}]
["ATLANTA","GA","O-5",{"$f":"TRANSPOSE(Z1874)","v":1860}]
["ATLANTA","GA","O-6",{"$f":"TRANSPOSE(AA1874)","v":1878}]
["ATLANTA","GA","O-7",{"$f":"TRANSPOSE(AB1874)","v":1896}]
["ALBANY","GA","E-1",{"$f":"TRANSPOSE(E1898:E1898)","v":918},918,918,918,918,981,1050,1149,1254,1398,1053,1191,1323,1428,1551,1170,1305,1446,990,1050,1317,1599,1800,1818,1836]
["ALBANY","GA","E-2",{"$f":"TRANSPOSE(F1898:F1898)","v":918}]
["ALBANY","GA","E-3",{"$f":"TRANSPOSE(G1898:G1898)","v":918}]
["ALBANY","GA","E-4",{"$f":"TRANSPOSE(H1898:H1898)","v":918}]
["ALBANY","GA","E-5",{"$f":"TRANSPOSE(I1898:I1898)","v":981}]
["ALBANY","GA","E-6",{"$f":"TRANSPOSE(J1898:J1898)","v":1050}]
["ALBANY","GA","E-7",{"$f":"TRANSPOSE(K1898:K1898)","v":1149}]
["ALBANY","GA","E-8",{"$f":"TRANSPOSE(L1898)","v":1254}]
["ALBANY","GA","E-9",{"$f":"TRANSPOSE(M1898)","v":1398}]
["ALBANY","GA","W-1",{"$f":"TRANSPOSE(N1898)","v":1053}]
["ALBANY","GA","W-2",{"$f":"TRANSPOSE(O1898)","v":1191}]
["ALBANY","GA","W-3",{"$f":"TRANSPOSE(P1898)","v":1323}]
["ALBANY","GA","W-4",{"$f":"TRANSPOSE(Q1898)","v":1428}]
["ALBANY","GA","W-5",{"$f":"TRANSPOSE(R1898)","v":1551}]
["ALBANY","GA","O-1E",{"$f":"TRANSPOSE(S1898)","v":1170}]
["ALBANY","GA","O-2E",{"$f":"TRANSPOSE(T1898)","v":1305}]
["ALBANY","GA","O-3E",{"$f":"TRANSPOSE(U1898)","v":1446}]
["ALBANY","GA","O-1",{"$f":"TRANSPOSE(V1898)","v":990}]
["ALBANY","GA","O-2",{"$f":"TRANSPOSE(W1898)","v":1050}]
["ALBANY","GA","O-3",{"$f":"TRANSPOSE(X1898)","v":1317}]
["ALBANY","GA","O-4",{"$f":"TRANSPOSE(Y1898)","v":1599}]
["ALBANY","GA","O-5",{"$f":"TRANSPOSE(Z1898)","v":1800}]
["ALBANY","GA","O-6",{"$f":"TRANSPOSE(AA1898)","v":1818}]
["ALBANY","GA","O-7",{"$f":"TRANSPOSE(AB1898)","v":1836}]
["FORT GORDON","GA","E-1",{"$f":"TRANSPOSE(E1922:E1922)","v":981},981,981,981,981,1068,1260,1272,1287,1392,1260,1278,1296,1431,1590,1275,1293,1455,1089,1257,1293,1653,1911,1929,1947]
["FORT GORDON","GA","E-2",{"$f":"TRANSPOSE(F1922:F1922)","v":981}]
["FORT GORDON","GA","E-3",{"$f":"TRANSPOSE(G1922:G1922)","v":981}]
["FORT GORDON","GA","E-4",{"$f":"TRANSPOSE(H1922:H1922)","v":981}]
["FORT GORDON","GA","E-5",{"$f":"TRANSPOSE(I1922:I1922)","v":1068}]
["FORT GORDON","GA","E-6",{"$f":"TRANSPOSE(J1922:J1922)","v":1260}]
["FORT GORDON","GA","E-7",{"$f":"TRANSPOSE(K1922:K1922)","v":1272}]
["FORT GORDON","GA","E-8",{"$f":"TRANSPOSE(L1922)","v":1287}]
["FORT GORDON","GA","E-9",{"$f":"TRANSPOSE(M1922)","v":1392}]
["FORT GORDON","GA","W-1",{"$f":"TRANSPOSE(N1922)","v":1260}]
["FORT GORDON","GA","W-2",{"$f":"TRANSPOSE(O1922)","v":1278}]
["FORT GORDON","GA","W-3",{"$f":"TRANSPOSE(P1922)","v":1296}]
["FORT GORDON","GA","W-4",{"$f":"TRANSPOSE(Q1922)","v":1431}]
["FORT GORDON","GA","W-5",{"$f":"TRANSPOSE(R1922)","v":1590}]
["FORT GORDON","GA","O-1E",{"$f":"TRANSPOSE(S1922)","v":1275}]
["FORT GORDON","GA","O-2E",{"$f":"TRANSPOSE(T1922)","v":1293}]
["FORT GORDON","GA","O-3E",{"$f":"TRANSPOSE(U1922)","v":1455}]
["FORT GORDON","GA","O-1",{"$f":"TRANSPOSE(V1922)","v":1089}]
["FORT GORDON","GA","O-2",{"$f":"TRANSPOSE(W1922)","v":1257}]
["FORT GORDON","GA","O-3",{"$f":"TRANSPOSE(X1922)","v":1293}]
["FORT GORDON","GA","O-4",{"$f":"TRANSPOSE(Y1922)","v":1653}]
["FORT GORDON","GA","O-5",{"$f":"TRANSPOSE(Z1922)","v":1911}]
["FORT GORDON","GA","O-6",{"$f":"TRANSPOSE(AA1922)","v":1929}]
["FORT GORDON","GA","O-7",{"$f":"TRANSPOSE(AB1922)","v":1947}]
["KINGS BAY/BRUNSWICK","GA","E-1",{"$f":"TRANSPOSE(E1946:E1946)","v":975},975,975,975,975,1044,1350,1410,1476,1566,1350,1437,1518,1581,1659,1422,1506,1593,1077,1344,1515,1686,1809,1827,1845]
["KINGS BAY/BRUNSWICK","GA","E-2",{"$f":"TRANSPOSE(F1946:F1946)","v":975}]
["KINGS BAY/BRUNSWICK","GA","E-3",{"$f":"TRANSPOSE(G1946:G1946)","v":975}]
["KINGS BAY/BRUNSWICK","GA","E-4",{"$f":"TRANSPOSE(H1946:H1946)","v":975}]
["KINGS BAY/BRUNSWICK","GA","E-5",{"$f":"TRANSPOSE(I1946:I1946)","v":1044}]
["KINGS BAY/BRUNSWICK","GA","E-6",{"$f":"TRANSPOSE(J1946:J1946)","v":1350}]
["KINGS BAY/BRUNSWICK","GA","E-7",{"$f":"TRANSPOSE(K1946:K1946)","v":1410}]
["KINGS BAY/BRUNSWICK","GA","E-8",{"$f":"TRANSPOSE(L1946)","v":1476}]
["KINGS BAY/BRUNSWICK","GA","E-9",{"$f":"TRANSPOSE(M1946)","v":1566}]
["KINGS BAY/BRUNSWICK","GA","W-1",{"$f":"TRANSPOSE(N1946)","v":1350}]
["KINGS BAY/BRUNSWICK","GA","W-2",{"$f":"TRANSPOSE(O1946)","v":1437}]
["KINGS BAY/BRUNSWICK","GA","W-3",{"$f":"TRANSPOSE(P1946)","v":1518}]
["KINGS BAY/BRUNSWICK","GA","W-4",{"$f":"TRANSPOSE(Q1946)","v":1581}]
["KINGS BAY/BRUNSWICK","GA","W-5",{"$f":"TRANSPOSE(R1946)","v":1659}]
["KINGS BAY/BRUNSWICK","GA","O-1E",{"$f":"TRANSPOSE(S1946)","v":1422}]
["KINGS BAY/BRUNSWICK","GA","O-2E",{"$f":"TRANSPOSE(T1946)","v":1506}]
["KINGS BAY/BRUNSWICK","GA","O-3E",{"$f":"TRANSPOSE(U1946)","v":1593}]
["KINGS BAY/BRUNSWICK","GA","O-1",{"$f":"TRANSPOSE(V1946)","v":1077}]
["KINGS BAY/BRUNSWICK","GA","O-2",{"$f":"TRANSPOSE(W1946)","v":1344}]
["KINGS BAY/BRUNSWICK","GA","O-3",{"$f":"TRANSPOSE(X1946)","v":1515}]
["KINGS BAY/BRUNSWICK","GA","O-4",{"$f":"TRANSPOSE(Y1946)","v":1686}]
["KINGS BAY/BRUNSWICK","GA","O-5",{"$f":"TRANSPOSE(Z1946)","v":1809}]
["KINGS BAY/BRUNSWICK","GA","O-6",{"$f":"TRANSPOSE(AA1946)","v":1827}]
["KINGS BAY/BRUNSWICK","GA","O-7",{"$f":"TRANSPOSE(AB1946)","v":1845}]
["FORT BENNING","GA","E-1",{"$f":"TRANSPOSE(E1970:E1970)","v":1047},1047,1047,1047,1047,1104,1371,1377,1386,1437,1371,1380,1389,1458,1536,1380,1389,1470,1131,1365,1389,1566,1692,1710,1728]
["FORT BENNING","GA","E-2",{"$f":"TRANSPOSE(F1970:F1970)","v":1047}]
["FORT BENNING","GA","E-3",{"$f":"TRANSPOSE(G1970:G1970)","v":1047}]
["FORT BENNING","GA","E-4",{"$f":"TRANSPOSE(H1970:H1970)","v":1047}]
["FORT BENNING","GA","E-5",{"$f":"TRANSPOSE(I1970:I1970)","v":1104}]
["FORT BENNING","GA","E-6",{"$f":"TRANSPOSE(J1970:J1970)","v":1371}]
["FORT BENNING","GA","E-7",{"$f":"TRANSPOSE(K1970:K1970)","v":1377}]
["FORT BENNING","GA","E-8",{"$f":"TRANSPOSE(L1970)","v":1386}]
["FORT BENNING","GA","E-9",{"$f":"TRANSPOSE(M1970)","v":1437}]
["FORT BENNING","GA","W-1",{"$f":"TRANSPOSE(N1970)","v":1371}]
["FORT BENNING","GA","W-2",{"$f":"TRANSPOSE(O1970)","v":1380}]
["FORT BENNING","GA","W-3",{"$f":"TRANSPOSE(P1970)","v":1389}]
["FORT BENNING","GA","W-4",{"$f":"TRANSPOSE(Q1970)","v":1458}]
["FORT BENNING","GA","W-5",{"$f":"TRANSPOSE(R1970)","v":1536}]
["FORT BENNING","GA","O-1E",{"$f":"TRANSPOSE(S1970)","v":1380}]
["FORT BENNING","GA","O-2E",{"$f":"TRANSPOSE(T1970)","v":1389}]
["FORT BENNING","GA","O-3E",{"$f":"TRANSPOSE(U1970)","v":1470}]
["FORT BENNING","GA","O-1",{"$f":"TRANSPOSE(V1970)","v":1131}]
["FORT BENNING","GA","O-2",{"$f":"TRANSPOSE(W1970)","v":1365}]
["FORT BENNING","GA","O-3",{"$f":"TRANSPOSE(X1970)","v":1389}]
["FORT BENNING","GA","O-4",{"$f":"TRANSPOSE(Y1970)","v":1566}]
["FORT BENNING","GA","O-5",{"$f":"TRANSPOSE(Z1970)","v":1692}]
["FORT BENNING","GA","O-6",{"$f":"TRANSPOSE(AA1970)","v":1710}]
["FORT BENNING","GA","O-7",{"$f":"TRANSPOSE(AB1970)","v":1728}]
["ROBINS AFB","GA","E-1",{"$f":"TRANSPOSE(E1994:E1994)","v":1005},1005,1005,1005,1005,1047,1107,1251,1407,1545,1110,1314,1506,1560,1626,1281,1479,1572,1053,1104,1497,1650,1755,1773,1791]
["ROBINS AFB","GA","E-2",{"$f":"TRANSPOSE(F1994:F1994)","v":1005}]
["ROBINS AFB","GA","E-3",{"$f":"TRANSPOSE(G1994:G1994)","v":1005}]
["ROBINS AFB","GA","E-4",{"$f":"TRANSPOSE(H1994:H1994)","v":1005}]
["ROBINS AFB","GA","E-5",{"$f":"TRANSPOSE(I1994:I1994)","v":1047}]
["ROBINS AFB","GA","E-6",{"$f":"TRANSPOSE(J1994:J1994)","v":1107}]
["ROBINS AFB","GA","E-7",{"$f":"TRANSPOSE(K1994:K1994)","v":1251}]
["ROBINS AFB","GA","E-8",{"$f":"TRANSPOSE(L1994)","v":1407}]
["ROBINS AFB","GA","E-9",{"$f":"TRANSPOSE(M1994)","v":1545}]
["ROBINS AFB","GA","W-1",{"$f":"TRANSPOSE(N1994)","v":1110}]
["ROBINS AFB","GA","W-2",{"$f":"TRANSPOSE(O1994)","v":1314}]
["ROBINS AFB","GA","W-3",{"$f":"TRANSPOSE(P1994)","v":1506}]
["ROBINS AFB","GA","W-4",{"$f":"TRANSPOSE(Q1994)","v":1560}]
["ROBINS AFB","GA","W-5",{"$f":"TRANSPOSE(R1994)","v":1626}]
["ROBINS AFB","GA","O-1E",{"$f":"TRANSPOSE(S1994)","v":1281}]
["ROBINS AFB","GA","O-2E",{"$f":"TRANSPOSE(T1994)","v":1479}]
["ROBINS AFB","GA","O-3E",{"$f":"TRANSPOSE(U1994)","v":1572}]
["ROBINS AFB","GA","O-1",{"$f":"TRANSPOSE(V1994)","v":1053}]
["ROBINS AFB","GA","O-2",{"$f":"TRANSPOSE(W1994)","v":1104}]
["ROBINS AFB","GA","O-3",{"$f":"TRANSPOSE(X1994)","v":1497}]
["ROBINS AFB","GA","O-4",{"$f":"TRANSPOSE(Y1994)","v":1650}]
["ROBINS AFB","GA","O-5",{"$f":"TRANSPOSE(Z1994)","v":1755}]
["ROBINS AFB","GA","O-6",{"$f":"TRANSPOSE(AA1994)","v":1773}]
["ROBINS AFB","GA","O-7",{"$f":"TRANSPOSE(AB1994)","v":1791}]
["SAVANNAH","GA","E-1",{"$f":"TRANSPOSE(E2018:E2018)","v":1179},1179,1179,1179,1179,1254,1488,1575,1671,1782,1491,1614,1731,1800,1881,1596,1713,1812,1281,1485,1725,1914,2046,2067,2088]
["SAVANNAH","GA","E-2",{"$f":"TRANSPOSE(F2018:F2018)","v":1179}]
["SAVANNAH","GA","E-3",{"$f":"TRANSPOSE(G2018:G2018)","v":1179}]
["SAVANNAH","GA","E-4",{"$f":"TRANSPOSE(H2018:H2018)","v":1179}]
["SAVANNAH","GA","E-5",{"$f":"TRANSPOSE(I2018:I2018)","v":1254}]
["SAVANNAH","GA","E-6",{"$f":"TRANSPOSE(J2018:J2018)","v":1488}]
["SAVANNAH","GA","E-7",{"$f":"TRANSPOSE(K2018:K2018)","v":1575}]
["SAVANNAH","GA","E-8",{"$f":"TRANSPOSE(L2018)","v":1671}]
["SAVANNAH","GA","E-9",{"$f":"TRANSPOSE(M2018)","v":1782}]
["SAVANNAH","GA","W-1",{"$f":"TRANSPOSE(N2018)","v":1491}]
["SAVANNAH","GA","W-2",{"$f":"TRANSPOSE(O2018)","v":1614}]
["SAVANNAH","GA","W-3",{"$f":"TRANSPOSE(P2018)","v":1731}]
["SAVANNAH","GA","W-4",{"$f":"TRANSPOSE(Q2018)","v":1800}]
["SAVANNAH","GA","W-5",{"$f":"TRANSPOSE(R2018)","v":1881}]
["SAVANNAH","GA","O-1E",{"$f":"TRANSPOSE(S2018)","v":1596}]
["SAVANNAH","GA","O-2E",{"$f":"TRANSPOSE(T2018)","v":1713}]
["SAVANNAH","GA","O-3E",{"$f":"TRANSPOSE(U2018)","v":1812}]
["SAVANNAH","GA","O-1",{"$f":"TRANSPOSE(V2018)","v":1281}]
["SAVANNAH","GA","O-2",{"$f":"TRANSPOSE(W2018)","v":1485}]
["SAVANNAH","GA","O-3",{"$f":"TRANSPOSE(X2018)","v":1725}]
["SAVANNAH","GA","O-4",{"$f":"TRANSPOSE(Y2018)","v":1914}]
["SAVANNAH","GA","O-5",{"$f":"TRANSPOSE(Z2018)","v":2046}]
["SAVANNAH","GA","O-6",{"$f":"TRANSPOSE(AA2018)","v":2067}]
["SAVANNAH","GA","O-7",{"$f":"TRANSPOSE(AB2018)","v":2088}]
["ATHENS","GA","E-1",{"$f":"TRANSPOSE(E2042:E2042)","v":915},915,915,915,915,960,1116,1185,1257,1359,1119,1215,1302,1380,1470,1200,1290,1395,978,1113,1299,1506,1653,1668,1686]
["ATHENS","GA","E-2",{"$f":"TRANSPOSE(F2042:F2042)","v":915}]
["ATHENS","GA","E-3",{"$f":"TRANSPOSE(G2042:G2042)","v":915}]
["ATHENS","GA","E-4",{"$f":"TRANSPOSE(H2042:H2042)","v":915}]
["ATHENS","GA","E-5",{"$f":"TRANSPOSE(I2042:I2042)","v":960}]
["ATHENS","GA","E-6",{"$f":"TRANSPOSE(J2042:J2042)","v":1116}]
["ATHENS","GA","E-7",{"$f":"TRANSPOSE(K2042:K2042)","v":1185}]
["ATHENS","GA","E-8",{"$f":"TRANSPOSE(L2042)","v":1257}]
["ATHENS","GA","E-9",{"$f":"TRANSPOSE(M2042)","v":1359}]
["ATHENS","GA","W-1",{"$f":"TRANSPOSE(N2042)","v":1119}]
["ATHENS","GA","W-2",{"$f":"TRANSPOSE(O2042)","v":1215}]
["ATHENS","GA","W-3",{"$f":"TRANSPOSE(P2042)","v":1302}]
["ATHENS","GA","W-4",{"$f":"TRANSPOSE(Q2042)","v":1380}]
["ATHENS","GA","W-5",{"$f":"TRANSPOSE(R2042)","v":1470}]
["ATHENS","GA","O-1E",{"$f":"TRANSPOSE(S2042)","v":1200}]
["ATHENS","GA","O-2E",{"$f":"TRANSPOSE(T2042)","v":1290}]
["ATHENS","GA","O-3E",{"$f":"TRANSPOSE(U2042)","v":1395}]
["ATHENS","GA","O-1",{"$f":"TRANSPOSE(V2042)","v":978}]
["ATHENS","GA","O-2",{"$f":"TRANSPOSE(W2042)","v":1113}]
["ATHENS","GA","O-3",{"$f":"TRANSPOSE(X2042)","v":1299}]
["ATHENS","GA","O-4",{"$f":"TRANSPOSE(Y2042)","v":1506}]
["ATHENS","GA","O-5",{"$f":"TRANSPOSE(Z2042)","v":1653}]
["ATHENS","GA","O-6",{"$f":"TRANSPOSE(AA2042)","v":1668}]
["ATHENS","GA","O-7",{"$f":"TRANSPOSE(AB2042)","v":1686}]
["DAHLONEGH","GA","E-1",{"$f":"TRANSPOSE(E2066:E2066)","v":945},945,945,945,945,1065,1173,1221,1272,1359,1173,1242,1305,1377,1461,1233,1296,1392,1077,1170,1302,1494,1632,1647,1665]
["DAHLONEGH","GA","E-2",{"$f":"TRANSPOSE(F2066:F2066)","v":945}]
["DAHLONEGH","GA","E-3",{"$f":"TRANSPOSE(G2066:G2066)","v":945}]
["DAHLONEGH","GA","E-4",{"$f":"TRANSPOSE(H2066:H2066)","v":945}]
["DAHLONEGH","GA","E-5",{"$f":"TRANSPOSE(I2066:I2066)","v":1065}]
["DAHLONEGH","GA","E-6",{"$f":"TRANSPOSE(J2066:J2066)","v":1173}]
["DAHLONEGH","GA","E-7",{"$f":"TRANSPOSE(K2066:K2066)","v":1221}]
["DAHLONEGH","GA","E-8",{"$f":"TRANSPOSE(L2066)","v":1272}]
["DAHLONEGH","GA","E-9",{"$f":"TRANSPOSE(M2066)","v":1359}]
["DAHLONEGH","GA","W-1",{"$f":"TRANSPOSE(N2066)","v":1173}]
["DAHLONEGH","GA","W-2",{"$f":"TRANSPOSE(O2066)","v":1242}]
["DAHLONEGH","GA","W-3",{"$f":"TRANSPOSE(P2066)","v":1305}]
["DAHLONEGH","GA","W-4",{"$f":"TRANSPOSE(Q2066)","v":1377}]
["DAHLONEGH","GA","W-5",{"$f":"TRANSPOSE(R2066)","v":1461}]
["DAHLONEGH","GA","O-1E",{"$f":"TRANSPOSE(S2066)","v":1233}]
["DAHLONEGH","GA","O-2E",{"$f":"TRANSPOSE(T2066)","v":1296}]
["DAHLONEGH","GA","O-3E",{"$f":"TRANSPOSE(U2066)","v":1392}]
["DAHLONEGH","GA","O-1",{"$f":"TRANSPOSE(V2066)","v":1077}]
["DAHLONEGH","GA","O-2",{"$f":"TRANSPOSE(W2066)","v":1170}]
["DAHLONEGH","GA","O-3",{"$f":"TRANSPOSE(X2066)","v":1302}]
["DAHLONEGH","GA","O-4",{"$f":"TRANSPOSE(Y2066)","v":1494}]
["DAHLONEGH","GA","O-5",{"$f":"TRANSPOSE(Z2066)","v":1632}]
["DAHLONEGH","GA","O-6",{"$f":"TRANSPOSE(AA2066)","v":1647}]
["DAHLONEGH","GA","O-7",{"$f":"TRANSPOSE(AB2066)","v":1665}]
["FORT STEWART","GA","E-1",{"$f":"TRANSPOSE(E2090:E2090)","v":1077},1077,1077,1077,1077,1128,1440,1464,1488,1575,1440,1473,1506,1602,1719,1470,1500,1620,1164,1434,1503,1761,1947,1968,1986]
["FORT STEWART","GA","E-2",{"$f":"TRANSPOSE(F2090:F2090)","v":1077}]
["FORT STEWART","GA","E-3",{"$f":"TRANSPOSE(G2090:G2090)","v":1077}]
["FORT STEWART","GA","E-4",{"$f":"TRANSPOSE(H2090:H2090)","v":1077}]
["FORT STEWART","GA","E-5",{"$f":"TRANSPOSE(I2090:I2090)","v":1128}]
["FORT STEWART","GA","E-6",{"$f":"TRANSPOSE(J2090:J2090)","v":1440}]
["FORT STEWART","GA","E-7",{"$f":"TRANSPOSE(K2090:K2090)","v":1464}]
["FORT STEWART","GA","E-8",{"$f":"TRANSPOSE(L2090)","v":1488}]
["FORT STEWART","GA","E-9",{"$f":"TRANSPOSE(M2090)","v":1575}]
["FORT STEWART","GA","W-1",{"$f":"TRANSPOSE(N2090)","v":1440}]
["FORT STEWART","GA","W-2",{"$f":"TRANSPOSE(O2090)","v":1473}]
["FORT STEWART","GA","W-3",{"$f":"TRANSPOSE(P2090)","v":1506}]
["FORT STEWART","GA","W-4",{"$f":"TRANSPOSE(Q2090)","v":1602}]
["FORT STEWART","GA","W-5",{"$f":"TRANSPOSE(R2090)","v":1719}]
["FORT STEWART","GA","O-1E",{"$f":"TRANSPOSE(S2090)","v":1470}]
["FORT STEWART","GA","O-2E",{"$f":"TRANSPOSE(T2090)","v":1500}]
["FORT STEWART","GA","O-3E",{"$f":"TRANSPOSE(U2090)","v":1620}]
["FORT STEWART","GA","O-1",{"$f":"TRANSPOSE(V2090)","v":1164}]
["FORT STEWART","GA","O-2",{"$f":"TRANSPOSE(W2090)","v":1434}]
["FORT STEWART","GA","O-3",{"$f":"TRANSPOSE(X2090)","v":1503}]
["FORT STEWART","GA","O-4",{"$f":"TRANSPOSE(Y2090)","v":1761}]
["FORT STEWART","GA","O-5",{"$f":"TRANSPOSE(Z2090)","v":1947}]
["FORT STEWART","GA","O-6",{"$f":"TRANSPOSE(AA2090)","v":1968}]
["FORT STEWART","GA","O-7",{"$f":"TRANSPOSE(AB2090)","v":1986}]
["MOODY AFB","GA","E-1",{"$f":"TRANSPOSE(E2114:E2114)","v":918},918,918,918,918,975,1149,1197,1254,1359,1149,1221,1287,1383,1497,1209,1278,1401,993,1146,1284,1539,1722,1740,1758]
["MOODY AFB","GA","E-2",{"$f":"TRANSPOSE(F2114:F2114)","v":918}]
["MOODY AFB","GA","E-3",{"$f":"TRANSPOSE(G2114:G2114)","v":918}]
["MOODY AFB","GA","E-4",{"$f":"TRANSPOSE(H2114:H2114)","v":918}]
["MOODY AFB","GA","E-5",{"$f":"TRANSPOSE(I2114:I2114)","v":975}]
["MOODY AFB","GA","E-6",{"$f":"TRANSPOSE(J2114:J2114)","v":1149}]
["MOODY AFB","GA","E-7",{"$f":"TRANSPOSE(K2114:K2114)","v":1197}]
["MOODY AFB","GA","E-8",{"$f":"TRANSPOSE(L2114)","v":1254}]
["MOODY AFB","GA","E-9",{"$f":"TRANSPOSE(M2114)","v":1359}]
["MOODY AFB","GA","W-1",{"$f":"TRANSPOSE(N2114)","v":1149}]
["MOODY AFB","GA","W-2",{"$f":"TRANSPOSE(O2114)","v":1221}]
["MOODY AFB","GA","W-3",{"$f":"TRANSPOSE(P2114)","v":1287}]
["MOODY AFB","GA","W-4",{"$f":"TRANSPOSE(Q2114)","v":1383}]
["MOODY AFB","GA","W-5",{"$f":"TRANSPOSE(R2114)","v":1497}]
["MOODY AFB","GA","O-1E",{"$f":"TRANSPOSE(S2114)","v":1209}]
["MOODY AFB","GA","O-2E",{"$f":"TRANSPOSE(T2114)","v":1278}]
["MOODY AFB","GA","O-3E",{"$f":"TRANSPOSE(U2114)","v":1401}]
["MOODY AFB","GA","O-1",{"$f":"TRANSPOSE(V2114)","v":993}]
["MOODY AFB","GA","O-2",{"$f":"TRANSPOSE(W2114)","v":1146}]
["MOODY AFB","GA","O-3",{"$f":"TRANSPOSE(X2114)","v":1284}]
["MOODY AFB","GA","O-4",{"$f":"TRANSPOSE(Y2114)","v":1539}]
["MOODY AFB","GA","O-5",{"$f":"TRANSPOSE(Z2114)","v":1722}]
["MOODY AFB","GA","O-6",{"$f":"TRANSPOSE(AA2114)","v":1740}]
["MOODY AFB","GA","O-7",{"$f":"TRANSPOSE(AB2114)","v":1758}]
["MAUI COUNTY","HI","E-1",{"$f":"TRANSPOSE(E2138:E2138)","v":1746},1746,1746,1746,1746,1830,2040,2073,2109,2178,2040,2088,2133,2193,2268,2082,2127,2205,1851,2037,2130,2295,2412,2436,2460]
["MAUI COUNTY","HI","E-2",{"$f":"TRANSPOSE(F2138:F2138)","v":1746}]
["MAUI COUNTY","HI","E-3",{"$f":"TRANSPOSE(G2138:G2138)","v":1746}]
["MAUI COUNTY","HI","E-4",{"$f":"TRANSPOSE(H2138:H2138)","v":1746}]
["MAUI COUNTY","HI","E-5",{"$f":"TRANSPOSE(I2138:I2138)","v":1830}]
["MAUI COUNTY","HI","E-6",{"$f":"TRANSPOSE(J2138:J2138)","v":2040}]
["MAUI COUNTY","HI","E-7",{"$f":"TRANSPOSE(K2138:K2138)","v":2073}]
["MAUI COUNTY","HI","E-8",{"$f":"TRANSPOSE(L2138)","v":2109}]
["MAUI COUNTY","HI","E-9",{"$f":"TRANSPOSE(M2138)","v":2178}]
["MAUI COUNTY","HI","W-1",{"$f":"TRANSPOSE(N2138)","v":2040}]
["MAUI COUNTY","HI","W-2",{"$f":"TRANSPOSE(O2138)","v":2088}]
["MAUI COUNTY","HI","W-3",{"$f":"TRANSPOSE(P2138)","v":2133}]
["MAUI COUNTY","HI","W-4",{"$f":"TRANSPOSE(Q2138)","v":2193}]
["MAUI COUNTY","HI","W-5",{"$f":"TRANSPOSE(R2138)","v":2268}]
["MAUI COUNTY","HI","O-1E",{"$f":"TRANSPOSE(S2138)","v":2082}]
["MAUI COUNTY","HI","O-2E",{"$f":"TRANSPOSE(T2138)","v":2127}]
["MAUI COUNTY","HI","O-3E",{"$f":"TRANSPOSE(U2138)","v":2205}]
["MAUI COUNTY","HI","O-1",{"$f":"TRANSPOSE(V2138)","v":1851}]
["MAUI COUNTY","HI","O-2",{"$f":"TRANSPOSE(W2138)","v":2037}]
["MAUI COUNTY","HI","O-3",{"$f":"TRANSPOSE(X2138)","v":2130}]
["MAUI COUNTY","HI","O-4",{"$f":"TRANSPOSE(Y2138)","v":2295}]
["MAUI COUNTY","HI","O-5",{"$f":"TRANSPOSE(Z2138)","v":2412}]
["MAUI COUNTY","HI","O-6",{"$f":"TRANSPOSE(AA2138)","v":2436}]
["MAUI COUNTY","HI","O-7",{"$f":"TRANSPOSE(AB2138)","v":2460}]
["HONOLULU COUNTY","HI","E-1",{"$f":"TRANSPOSE(E2162:E2162)","v":2001},2001,2001,2001,2001,2094,2445,2553,2670,2808,2448,2601,2745,2832,2934,2577,2724,2847,2133,2439,2739,2973,3138,3168,3201]
["HONOLULU COUNTY","HI","E-2",{"$f":"TRANSPOSE(F2162:F2162)","v":2001}]
["HONOLULU COUNTY","HI","E-3",{"$f":"TRANSPOSE(G2162:G2162)","v":2001}]
["HONOLULU COUNTY","HI","E-4",{"$f":"TRANSPOSE(H2162:H2162)","v":2001}]
["HONOLULU COUNTY","HI","E-5",{"$f":"TRANSPOSE(I2162:I2162)","v":2094}]
["HONOLULU COUNTY","HI","E-6",{"$f":"TRANSPOSE(J2162:J2162)","v":2445}]
["HONOLULU COUNTY","HI","E-7",{"$f":"TRANSPOSE(K2162:K2162)","v":2553}]
["HONOLULU COUNTY","HI","E-8",{"$f":"TRANSPOSE(L2162)","v":2670}]
["HONOLULU COUNTY","HI","E-9",{"$f":"TRANSPOSE(M2162)","v":2808}]
["HONOLULU COUNTY","HI","W-1",{"$f":"TRANSPOSE(N2162)","v":2448}]
["HONOLULU COUNTY","HI","W-2",{"$f":"TRANSPOSE(O2162)","v":2601}]
["HONOLULU COUNTY","HI","W-3",{"$f":"TRANSPOSE(P2162)","v":2745}]
["HONOLULU COUNTY","HI","W-4",{"$f":"TRANSPOSE(Q2162)","v":2832}]
["HONOLULU COUNTY","HI","W-5",{"$f":"TRANSPOSE(R2162)","v":2934}]
["HONOLULU COUNTY","HI","O-1E",{"$f":"TRANSPOSE(S2162)","v":2577}]
["HONOLULU COUNTY","HI","O-2E",{"$f":"TRANSPOSE(T2162)","v":2724}]
["HONOLULU COUNTY","HI","O-3E",{"$f":"TRANSPOSE(U2162)","v":2847}]
["HONOLULU COUNTY","HI","O-1",{"$f":"TRANSPOSE(V2162)","v":2133}]
["HONOLULU COUNTY","HI","O-2",{"$f":"TRANSPOSE(W2162)","v":2439}]
["HONOLULU COUNTY","HI","O-3",{"$f":"TRANSPOSE(X2162)","v":2739}]
["HONOLULU COUNTY","HI","O-4",{"$f":"TRANSPOSE(Y2162)","v":2973}]
["HONOLULU COUNTY","HI","O-5",{"$f":"TRANSPOSE(Z2162)","v":3138}]
["HONOLULU COUNTY","HI","O-6",{"$f":"TRANSPOSE(AA2162)","v":3168}]
["HONOLULU COUNTY","HI","O-7",{"$f":"TRANSPOSE(AB2162)","v":3201}]
["HAWAII COUNTY","HI","E-1",{"$f":"TRANSPOSE(E2186:E2186)","v":1413},1413,1413,1413,1413,1476,1815,1848,1884,1947,1815,1863,1908,1959,2022,1857,1902,1971,1515,1809,1905,2046,2145,2166,2187]
["HAWAII COUNTY","HI","E-2",{"$f":"TRANSPOSE(F2186:F2186)","v":1413}]
["HAWAII COUNTY","HI","E-3",{"$f":"TRANSPOSE(G2186:G2186)","v":1413}]
["HAWAII COUNTY","HI","E-4",{"$f":"TRANSPOSE(H2186:H2186)","v":1413}]
["HAWAII COUNTY","HI","E-5",{"$f":"TRANSPOSE(I2186:I2186)","v":1476}]
["HAWAII COUNTY","HI","E-6",{"$f":"TRANSPOSE(J2186:J2186)","v":1815}]
["HAWAII COUNTY","HI","E-7",{"$f":"TRANSPOSE(K2186:K2186)","v":1848}]
["HAWAII COUNTY","HI","E-8",{"$f":"TRANSPOSE(L2186)","v":1884}]
["HAWAII COUNTY","HI","E-9",{"$f":"TRANSPOSE(M2186)","v":1947}]
["HAWAII COUNTY","HI","W-1",{"$f":"TRANSPOSE(N2186)","v":1815}]
["HAWAII COUNTY","HI","W-2",{"$f":"TRANSPOSE(O2186)","v":1863}]
["HAWAII COUNTY","HI","W-3",{"$f":"TRANSPOSE(P2186)","v":1908}]
["HAWAII COUNTY","HI","W-4",{"$f":"TRANSPOSE(Q2186)","v":1959}]
["HAWAII COUNTY","HI","W-5",{"$f":"TRANSPOSE(R2186)","v":2022}]
["HAWAII COUNTY","HI","O-1E",{"$f":"TRANSPOSE(S2186)","v":1857}]
["HAWAII COUNTY","HI","O-2E",{"$f":"TRANSPOSE(T2186)","v":1902}]
["HAWAII COUNTY","HI","O-3E",{"$f":"TRANSPOSE(U2186)","v":1971}]
["HAWAII COUNTY","HI","O-1",{"$f":"TRANSPOSE(V2186)","v":1515}]
["HAWAII COUNTY","HI","O-2",{"$f":"TRANSPOSE(W2186)","v":1809}]
["HAWAII COUNTY","HI","O-3",{"$f":"TRANSPOSE(X2186)","v":1905}]
["HAWAII COUNTY","HI","O-4",{"$f":"TRANSPOSE(Y2186)","v":2046}]
["HAWAII COUNTY","HI","O-5",{"$f":"TRANSPOSE(Z2186)","v":2145}]
["HAWAII COUNTY","HI","O-6",{"$f":"TRANSPOSE(AA2186)","v":2166}]
["HAWAII COUNTY","HI","O-7",{"$f":"TRANSPOSE(AB2186)","v":2187}]
["KAUAI COUNTY","HI","E-1",{"$f":"TRANSPOSE(E2210:E2210)","v":1737},1737,1737,1737,1737,1893,2061,2079,2097,2265,2061,2085,2109,2325,2577,2082,2106,2364,1911,2058,2109,2676,3084,3117,3147]
["KAUAI COUNTY","HI","E-2",{"$f":"TRANSPOSE(F2210:F2210)","v":1737}]
["KAUAI COUNTY","HI","E-3",{"$f":"TRANSPOSE(G2210:G2210)","v":1737}]
["KAUAI COUNTY","HI","E-4",{"$f":"TRANSPOSE(H2210:H2210)","v":1737}]
["KAUAI COUNTY","HI","E-5",{"$f":"TRANSPOSE(I2210:I2210)","v":1893}]
["KAUAI COUNTY","HI","E-6",{"$f":"TRANSPOSE(J2210:J2210)","v":2061}]
["KAUAI COUNTY","HI","E-7",{"$f":"TRANSPOSE(K2210:K2210)","v":2079}]
["KAUAI COUNTY","HI","E-8",{"$f":"TRANSPOSE(L2210)","v":2097}]
["KAUAI COUNTY","HI","E-9",{"$f":"TRANSPOSE(M2210)","v":2265}]
["KAUAI COUNTY","HI","W-1",{"$f":"TRANSPOSE(N2210)","v":2061}]
["KAUAI COUNTY","HI","W-2",{"$f":"TRANSPOSE(O2210)","v":2085}]
["KAUAI COUNTY","HI","W-3",{"$f":"TRANSPOSE(P2210)","v":2109}]
["KAUAI COUNTY","HI","W-4",{"$f":"TRANSPOSE(Q2210)","v":2325}]
["KAUAI COUNTY","HI","W-5",{"$f":"TRANSPOSE(R2210)","v":2577}]
["KAUAI COUNTY","HI","O-1E",{"$f":"TRANSPOSE(S2210)","v":2082}]
["KAUAI COUNTY","HI","O-2E",{"$f":"TRANSPOSE(T2210)","v":2106}]
["KAUAI COUNTY","HI","O-3E",{"$f":"TRANSPOSE(U2210)","v":2364}]
["KAUAI COUNTY","HI","O-1",{"$f":"TRANSPOSE(V2210)","v":1911}]
["KAUAI COUNTY","HI","O-2",{"$f":"TRANSPOSE(W2210)","v":2058}]
["KAUAI COUNTY","HI","O-3",{"$f":"TRANSPOSE(X2210)","v":2109}]
["KAUAI COUNTY","HI","O-4",{"$f":"TRANSPOSE(Y2210)","v":2676}]
["KAUAI COUNTY","HI","O-5",{"$f":"TRANSPOSE(Z2210)","v":3084}]
["KAUAI COUNTY","HI","O-6",{"$f":"TRANSPOSE(AA2210)","v":3117}]
["KAUAI COUNTY","HI","O-7",{"$f":"TRANSPOSE(AB2210)","v":3147}]
["DES MOINES","IA","E-1",{"$f":"TRANSPOSE(E2234:E2234)","v":1017},1017,1017,1017,1017,1104,1368,1422,1479,1554,1368,1443,1515,1566,1629,1431,1503,1578,1131,1362,1512,1653,1755,1773,1791]
["DES MOINES","IA","E-2",{"$f":"TRANSPOSE(F2234:F2234)","v":1017}]
["DES MOINES","IA","E-3",{"$f":"TRANSPOSE(G2234:G2234)","v":1017}]
["DES MOINES","IA","E-4",{"$f":"TRANSPOSE(H2234:H2234)","v":1017}]
["DES MOINES","IA","E-5",{"$f":"TRANSPOSE(I2234:I2234)","v":1104}]
["DES MOINES","IA","E-6",{"$f":"TRANSPOSE(J2234:J2234)","v":1368}]
["DES MOINES","IA","E-7",{"$f":"TRANSPOSE(K2234:K2234)","v":1422}]
["DES MOINES","IA","E-8",{"$f":"TRANSPOSE(L2234)","v":1479}]
["DES MOINES","IA","E-9",{"$f":"TRANSPOSE(M2234)","v":1554}]
["DES MOINES","IA","W-1",{"$f":"TRANSPOSE(N2234)","v":1368}]
["DES MOINES","IA","W-2",{"$f":"TRANSPOSE(O2234)","v":1443}]
["DES MOINES","IA","W-3",{"$f":"TRANSPOSE(P2234)","v":1515}]
["DES MOINES","IA","W-4",{"$f":"TRANSPOSE(Q2234)","v":1566}]
["DES MOINES","IA","W-5",{"$f":"TRANSPOSE(R2234)","v":1629}]
["DES MOINES","IA","O-1E",{"$f":"TRANSPOSE(S2234)","v":1431}]
["DES MOINES","IA","O-2E",{"$f":"TRANSPOSE(T2234)","v":1503}]
["DES MOINES","IA","O-3E",{"$f":"TRANSPOSE(U2234)","v":1578}]
["DES MOINES","IA","O-1",{"$f":"TRANSPOSE(V2234)","v":1131}]
["DES MOINES","IA","O-2",{"$f":"TRANSPOSE(W2234)","v":1362}]
["DES MOINES","IA","O-3",{"$f":"TRANSPOSE(X2234)","v":1512}]
["DES MOINES","IA","O-4",{"$f":"TRANSPOSE(Y2234)","v":1653}]
["DES MOINES","IA","O-5",{"$f":"TRANSPOSE(Z2234)","v":1755}]
["DES MOINES","IA","O-6",{"$f":"TRANSPOSE(AA2234)","v":1773}]
["DES MOINES","IA","O-7",{"$f":"TRANSPOSE(AB2234)","v":1791}]
["AMES","IA","E-1",{"$f":"TRANSPOSE(E2258:E2258)","v":885},885,885,885,885,963,1245,1257,1272,1359,1245,1263,1278,1389,1521,1260,1278,1410,993,1239,1278,1572,1785,1803,1821]
["AMES","IA","E-2",{"$f":"TRANSPOSE(F2258:F2258)","v":885}]
["AMES","IA","E-3",{"$f":"TRANSPOSE(G2258:G2258)","v":885}]
["AMES","IA","E-4",{"$f":"TRANSPOSE(H2258:H2258)","v":885}]
["AMES","IA","E-5",{"$f":"TRANSPOSE(I2258:I2258)","v":963}]
["AMES","IA","E-6",{"$f":"TRANSPOSE(J2258:J2258)","v":1245}]
["AMES","IA","E-7",{"$f":"TRANSPOSE(K2258:K2258)","v":1257}]
["AMES","IA","E-8",{"$f":"TRANSPOSE(L2258)","v":1272}]
["AMES","IA","E-9",{"$f":"TRANSPOSE(M2258)","v":1359}]
["AMES","IA","W-1",{"$f":"TRANSPOSE(N2258)","v":1245}]
["AMES","IA","W-2",{"$f":"TRANSPOSE(O2258)","v":1263}]
["AMES","IA","W-3",{"$f":"TRANSPOSE(P2258)","v":1278}]
["AMES","IA","W-4",{"$f":"TRANSPOSE(Q2258)","v":1389}]
["AMES","IA","W-5",{"$f":"TRANSPOSE(R2258)","v":1521}]
["AMES","IA","O-1E",{"$f":"TRANSPOSE(S2258)","v":1260}]
["AMES","IA","O-2E",{"$f":"TRANSPOSE(T2258)","v":1278}]
["AMES","IA","O-3E",{"$f":"TRANSPOSE(U2258)","v":1410}]
["AMES","IA","O-1",{"$f":"TRANSPOSE(V2258)","v":993}]
["AMES","IA","O-2",{"$f":"TRANSPOSE(W2258)","v":1239}]
["AMES","IA","O-3",{"$f":"TRANSPOSE(X2258)","v":1278}]
["AMES","IA","O-4",{"$f":"TRANSPOSE(Y2258)","v":1572}]
["AMES","IA","O-5",{"$f":"TRANSPOSE(Z2258)","v":1785}]
["AMES","IA","O-6",{"$f":"TRANSPOSE(AA2258)","v":1803}]
["AMES","IA","O-7",{"$f":"TRANSPOSE(AB2258)","v":1821}]
["WATERLOO","IA","E-1",{"$f":"TRANSPOSE(E2282:E2282)","v":828},828,828,828,828,915,1059,1119,1185,1260,1062,1146,1227,1272,1323,1134,1215,1281,933,1056,1224,1344,1428,1443,1458]
["WATERLOO","IA","E-2",{"$f":"TRANSPOSE(F2282:F2282)","v":828}]
["WATERLOO","IA","E-3",{"$f":"TRANSPOSE(G2282:G2282)","v":828}]
["WATERLOO","IA","E-4",{"$f":"TRANSPOSE(H2282:H2282)","v":828}]
["WATERLOO","IA","E-5",{"$f":"TRANSPOSE(I2282:I2282)","v":915}]
["WATERLOO","IA","E-6",{"$f":"TRANSPOSE(J2282:J2282)","v":1059}]
["WATERLOO","IA","E-7",{"$f":"TRANSPOSE(K2282:K2282)","v":1119}]
["WATERLOO","IA","E-8",{"$f":"TRANSPOSE(L2282)","v":1185}]
["WATERLOO","IA","E-9",{"$f":"TRANSPOSE(M2282)","v":1260}]
["WATERLOO","IA","W-1",{"$f":"TRANSPOSE(N2282)","v":1062}]
["WATERLOO","IA","W-2",{"$f":"TRANSPOSE(O2282)","v":1146}]
["WATERLOO","IA","W-3",{"$f":"TRANSPOSE(P2282)","v":1227}]
["WATERLOO","IA","W-4",{"$f":"TRANSPOSE(Q2282)","v":1272}]
["WATERLOO","IA","W-5",{"$f":"TRANSPOSE(R2282)","v":1323}]
["WATERLOO","IA","O-1E",{"$f":"TRANSPOSE(S2282)","v":1134}]
["WATERLOO","IA","O-2E",{"$f":"TRANSPOSE(T2282)","v":1215}]
["WATERLOO","IA","O-3E",{"$f":"TRANSPOSE(U2282)","v":1281}]
["WATERLOO","IA","O-1",{"$f":"TRANSPOSE(V2282)","v":933}]
["WATERLOO","IA","O-2",{"$f":"TRANSPOSE(W2282)","v":1056}]
["WATERLOO","IA","O-3",{"$f":"TRANSPOSE(X2282)","v":1224}]
["WATERLOO","IA","O-4",{"$f":"TRANSPOSE(Y2282)","v":1344}]
["WATERLOO","IA","O-5",{"$f":"TRANSPOSE(Z2282)","v":1428}]
["WATERLOO","IA","O-6",{"$f":"TRANSPOSE(AA2282)","v":1443}]
["WATERLOO","IA","O-7",{"$f":"TRANSPOSE(AB2282)","v":1458}]
["DUBUQUE","IA","E-1",{"$f":"TRANSPOSE(E2306:E2306)","v":930},930,930,930,930,1020,1242,1323,1410,1545,1245,1359,1467,1575,1701,1341,1452,1593,1044,1239,1464,1749,1953,1971,1992]
["DUBUQUE","IA","E-2",{"$f":"TRANSPOSE(F2306:F2306)","v":930}]
["DUBUQUE","IA","E-3",{"$f":"TRANSPOSE(G2306:G2306)","v":930}]
["DUBUQUE","IA","E-4",{"$f":"TRANSPOSE(H2306:H2306)","v":930}]
["DUBUQUE","IA","E-5",{"$f":"TRANSPOSE(I2306:I2306)","v":1020}]
["DUBUQUE","IA","E-6",{"$f":"TRANSPOSE(J2306:J2306)","v":1242}]
["DUBUQUE","IA","E-7",{"$f":"TRANSPOSE(K2306:K2306)","v":1323}]
["DUBUQUE","IA","E-8",{"$f":"TRANSPOSE(L2306)","v":1410}]
["DUBUQUE","IA","E-9",{"$f":"TRANSPOSE(M2306)","v":1545}]
["DUBUQUE","IA","W-1",{"$f":"TRANSPOSE(N2306)","v":1245}]
["DUBUQUE","IA","W-2",{"$f":"TRANSPOSE(O2306)","v":1359}]
["DUBUQUE","IA","W-3",{"$f":"TRANSPOSE(P2306)","v":1467}]
["DUBUQUE","IA","W-4",{"$f":"TRANSPOSE(Q2306)","v":1575}]
["DUBUQUE","IA","W-5",{"$f":"TRANSPOSE(R2306)","v":1701}]
["DUBUQUE","IA","O-1E",{"$f":"TRANSPOSE(S2306)","v":1341}]
["DUBUQUE","IA","O-2E",{"$f":"TRANSPOSE(T2306)","v":1452}]
["DUBUQUE","IA","O-3E",{"$f":"TRANSPOSE(U2306)","v":1593}]
["DUBUQUE","IA","O-1",{"$f":"TRANSPOSE(V2306)","v":1044}]
["DUBUQUE","IA","O-2",{"$f":"TRANSPOSE(W2306)","v":1239}]
["DUBUQUE","IA","O-3",{"$f":"TRANSPOSE(X2306)","v":1464}]
["DUBUQUE","IA","O-4",{"$f":"TRANSPOSE(Y2306)","v":1749}]
["DUBUQUE","IA","O-5",{"$f":"TRANSPOSE(Z2306)","v":1953}]
["DUBUQUE","IA","O-6",{"$f":"TRANSPOSE(AA2306)","v":1971}]
["DUBUQUE","IA","O-7",{"$f":"TRANSPOSE(AB2306)","v":1992}]
["CEDAR RAPIDS","IA","E-1",{"$f":"TRANSPOSE(E2330:E2330)","v":813},813,813,813,813,831,1089,1167,1254,1359,1092,1203,1308,1380,1464,1185,1293,1392,858,1086,1302,1497,1632,1650,1665]
["CEDAR RAPIDS","IA","E-2",{"$f":"TRANSPOSE(F2330:F2330)","v":813}]
["CEDAR RAPIDS","IA","E-3",{"$f":"TRANSPOSE(G2330:G2330)","v":813}]
["CEDAR RAPIDS","IA","E-4",{"$f":"TRANSPOSE(H2330:H2330)","v":813}]
["CEDAR RAPIDS","IA","E-5",{"$f":"TRANSPOSE(I2330:I2330)","v":831}]
["CEDAR RAPIDS","IA","E-6",{"$f":"TRANSPOSE(J2330:J2330)","v":1089}]
["CEDAR RAPIDS","IA","E-7",{"$f":"TRANSPOSE(K2330:K2330)","v":1167}]
["CEDAR RAPIDS","IA","E-8",{"$f":"TRANSPOSE(L2330)","v":1254}]
["CEDAR RAPIDS","IA","E-9",{"$f":"TRANSPOSE(M2330)","v":1359}]
["CEDAR RAPIDS","IA","W-1",{"$f":"TRANSPOSE(N2330)","v":1092}]
["CEDAR RAPIDS","IA","W-2",{"$f":"TRANSPOSE(O2330)","v":1203}]
["CEDAR RAPIDS","IA","W-3",{"$f":"TRANSPOSE(P2330)","v":1308}]
["CEDAR RAPIDS","IA","W-4",{"$f":"TRANSPOSE(Q2330)","v":1380}]
["CEDAR RAPIDS","IA","W-5",{"$f":"TRANSPOSE(R2330)","v":1464}]
["CEDAR RAPIDS","IA","O-1E",{"$f":"TRANSPOSE(S2330)","v":1185}]
["CEDAR RAPIDS","IA","O-2E",{"$f":"TRANSPOSE(T2330)","v":1293}]
["CEDAR RAPIDS","IA","O-3E",{"$f":"TRANSPOSE(U2330)","v":1392}]
["CEDAR RAPIDS","IA","O-1",{"$f":"TRANSPOSE(V2330)","v":858}]
["CEDAR RAPIDS","IA","O-2",{"$f":"TRANSPOSE(W2330)","v":1086}]
["CEDAR RAPIDS","IA","O-3",{"$f":"TRANSPOSE(X2330)","v":1302}]
["CEDAR RAPIDS","IA","O-4",{"$f":"TRANSPOSE(Y2330)","v":1497}]
["CEDAR RAPIDS","IA","O-5",{"$f":"TRANSPOSE(Z2330)","v":1632}]
["CEDAR RAPIDS","IA","O-6",{"$f":"TRANSPOSE(AA2330)","v":1650}]
["CEDAR RAPIDS","IA","O-7",{"$f":"TRANSPOSE(AB2330)","v":1665}]
["SIOUX CITY","IA","E-1",{"$f":"TRANSPOSE(E2354:E2354)","v":840},840,840,840,840,903,1005,1038,1074,1146,1008,1053,1098,1164,1242,1047,1092,1176,915,1005,1095,1272,1398,1413,1425]
["SIOUX CITY","IA","E-2",{"$f":"TRANSPOSE(F2354:F2354)","v":840}]
["SIOUX CITY","IA","E-3",{"$f":"TRANSPOSE(G2354:G2354)","v":840}]
["SIOUX CITY","IA","E-4",{"$f":"TRANSPOSE(H2354:H2354)","v":840}]
["SIOUX CITY","IA","E-5",{"$f":"TRANSPOSE(I2354:I2354)","v":903}]
["SIOUX CITY","IA","E-6",{"$f":"TRANSPOSE(J2354:J2354)","v":1005}]
["SIOUX CITY","IA","E-7",{"$f":"TRANSPOSE(K2354:K2354)","v":1038}]
["SIOUX CITY","IA","E-8",{"$f":"TRANSPOSE(L2354)","v":1074}]
["SIOUX CITY","IA","E-9",{"$f":"TRANSPOSE(M2354)","v":1146}]
["SIOUX CITY","IA","W-1",{"$f":"TRANSPOSE(N2354)","v":1008}]
["SIOUX CITY","IA","W-2",{"$f":"TRANSPOSE(O2354)","v":1053}]
["SIOUX CITY","IA","W-3",{"$f":"TRANSPOSE(P2354)","v":1098}]
["SIOUX CITY","IA","W-4",{"$f":"TRANSPOSE(Q2354)","v":1164}]
["SIOUX CITY","IA","W-5",{"$f":"TRANSPOSE(R2354)","v":1242}]
["SIOUX CITY","IA","O-1E",{"$f":"TRANSPOSE(S2354)","v":1047}]
["SIOUX CITY","IA","O-2E",{"$f":"TRANSPOSE(T2354)","v":1092}]
["SIOUX CITY","IA","O-3E",{"$f":"TRANSPOSE(U2354)","v":1176}]
["SIOUX CITY","IA","O-1",{"$f":"TRANSPOSE(V2354)","v":915}]
["SIOUX CITY","IA","O-2",{"$f":"TRANSPOSE(W2354)","v":1005}]
["SIOUX CITY","IA","O-3",{"$f":"TRANSPOSE(X2354)","v":1095}]
["SIOUX CITY","IA","O-4",{"$f":"TRANSPOSE(Y2354)","v":1272}]
["SIOUX CITY","IA","O-5",{"$f":"TRANSPOSE(Z2354)","v":1398}]
["SIOUX CITY","IA","O-6",{"$f":"TRANSPOSE(AA2354)","v":1413}]
["SIOUX CITY","IA","O-7",{"$f":"TRANSPOSE(AB2354)","v":1425}]
["IOWA CITY","IA","E-1",{"$f":"TRANSPOSE(E2378:E2378)","v":960},960,960,960,960,1068,1299,1347,1398,1533,1299,1368,1428,1572,1740,1356,1419,1599,1092,1293,1425,1806,2079,2100,2121]
["IOWA CITY","IA","E-2",{"$f":"TRANSPOSE(F2378:F2378)","v":960}]
["IOWA CITY","IA","E-3",{"$f":"TRANSPOSE(G2378:G2378)","v":960}]
["IOWA CITY","IA","E-4",{"$f":"TRANSPOSE(H2378:H2378)","v":960}]
["IOWA CITY","IA","E-5",{"$f":"TRANSPOSE(I2378:I2378)","v":1068}]
["IOWA CITY","IA","E-6",{"$f":"TRANSPOSE(J2378:J2378)","v":1299}]
["IOWA CITY","IA","E-7",{"$f":"TRANSPOSE(K2378:K2378)","v":1347}]
["IOWA CITY","IA","E-8",{"$f":"TRANSPOSE(L2378)","v":1398}]
["IOWA CITY","IA","E-9",{"$f":"TRANSPOSE(M2378)","v":1533}]
["IOWA CITY","IA","W-1",{"$f":"TRANSPOSE(N2378)","v":1299}]
["IOWA CITY","IA","W-2",{"$f":"TRANSPOSE(O2378)","v":1368}]
["IOWA CITY","IA","W-3",{"$f":"TRANSPOSE(P2378)","v":1428}]
["IOWA CITY","IA","W-4",{"$f":"TRANSPOSE(Q2378)","v":1572}]
["IOWA CITY","IA","W-5",{"$f":"TRANSPOSE(R2378)","v":1740}]
["IOWA CITY","IA","O-1E",{"$f":"TRANSPOSE(S2378)","v":1356}]
["IOWA CITY","IA","O-2E",{"$f":"TRANSPOSE(T2378)","v":1419}]
["IOWA CITY","IA","O-3E",{"$f":"TRANSPOSE(U2378)","v":1599}]
["IOWA CITY","IA","O-1",{"$f":"TRANSPOSE(V2378)","v":1092}]
["IOWA CITY","IA","O-2",{"$f":"TRANSPOSE(W2378)","v":1293}]
["IOWA CITY","IA","O-3",{"$f":"TRANSPOSE(X2378)","v":1425}]
["IOWA CITY","IA","O-4",{"$f":"TRANSPOSE(Y2378)","v":1806}]
["IOWA CITY","IA","O-5",{"$f":"TRANSPOSE(Z2378)","v":2079}]
["IOWA CITY","IA","O-6",{"$f":"TRANSPOSE(AA2378)","v":2100}]
["IOWA CITY","IA","O-7",{"$f":"TRANSPOSE(AB2378)","v":2121}]
["BOISE","ID","E-1",{"$f":"TRANSPOSE(E2402:E2402)","v":885},885,885,885,885,951,1080,1113,1146,1203,1080,1125,1170,1218,1272,1119,1164,1224,966,1077,1167,1293,1383,1395,1410]
["BOISE","ID","E-2",{"$f":"TRANSPOSE(F2402:F2402)","v":885}]
["BOISE","ID","E-3",{"$f":"TRANSPOSE(G2402:G2402)","v":885}]
["BOISE","ID","E-4",{"$f":"TRANSPOSE(H2402:H2402)","v":885}]
["BOISE","ID","E-5",{"$f":"TRANSPOSE(I2402:I2402)","v":951}]
["BOISE","ID","E-6",{"$f":"TRANSPOSE(J2402:J2402)","v":1080}]
["BOISE","ID","E-7",{"$f":"TRANSPOSE(K2402:K2402)","v":1113}]
["BOISE","ID","E-8",{"$f":"TRANSPOSE(L2402)","v":1146}]
["BOISE","ID","E-9",{"$f":"TRANSPOSE(M2402)","v":1203}]
["BOISE","ID","W-1",{"$f":"TRANSPOSE(N2402)","v":1080}]
["BOISE","ID","W-2",{"$f":"TRANSPOSE(O2402)","v":1125}]
["BOISE","ID","W-3",{"$f":"TRANSPOSE(P2402)","v":1170}]
["BOISE","ID","W-4",{"$f":"TRANSPOSE(Q2402)","v":1218}]
["BOISE","ID","W-5",{"$f":"TRANSPOSE(R2402)","v":1272}]
["BOISE","ID","O-1E",{"$f":"TRANSPOSE(S2402)","v":1119}]
["BOISE","ID","O-2E",{"$f":"TRANSPOSE(T2402)","v":1164}]
["BOISE","ID","O-3E",{"$f":"TRANSPOSE(U2402)","v":1224}]
["BOISE","ID","O-1",{"$f":"TRANSPOSE(V2402)","v":966}]
["BOISE","ID","O-2",{"$f":"TRANSPOSE(W2402)","v":1077}]
["BOISE","ID","O-3",{"$f":"TRANSPOSE(X2402)","v":1167}]
["BOISE","ID","O-4",{"$f":"TRANSPOSE(Y2402)","v":1293}]
["BOISE","ID","O-5",{"$f":"TRANSPOSE(Z2402)","v":1383}]
["BOISE","ID","O-6",{"$f":"TRANSPOSE(AA2402)","v":1395}]
["BOISE","ID","O-7",{"$f":"TRANSPOSE(AB2402)","v":1410}]
["IDAHO FALLS","ID","E-1",{"$f":"TRANSPOSE(E2426:E2426)","v":861},861,861,861,861,951,975,1050,1131,1224,978,1083,1185,1239,1305,1068,1170,1248,954,975,1179,1329,1434,1449,1464]
["IDAHO FALLS","ID","E-2",{"$f":"TRANSPOSE(F2426:F2426)","v":861}]
["IDAHO FALLS","ID","E-3",{"$f":"TRANSPOSE(G2426:G2426)","v":861}]
["IDAHO FALLS","ID","E-4",{"$f":"TRANSPOSE(H2426:H2426)","v":861}]
["IDAHO FALLS","ID","E-5",{"$f":"TRANSPOSE(I2426:I2426)","v":951}]
["IDAHO FALLS","ID","E-6",{"$f":"TRANSPOSE(J2426:J2426)","v":975}]
["IDAHO FALLS","ID","E-7",{"$f":"TRANSPOSE(K2426:K2426)","v":1050}]
["IDAHO FALLS","ID","E-8",{"$f":"TRANSPOSE(L2426)","v":1131}]
["IDAHO FALLS","ID","E-9",{"$f":"TRANSPOSE(M2426)","v":1224}]
["IDAHO FALLS","ID","W-1",{"$f":"TRANSPOSE(N2426)","v":978}]
["IDAHO FALLS","ID","W-2",{"$f":"TRANSPOSE(O2426)","v":1083}]
["IDAHO FALLS","ID","W-3",{"$f":"TRANSPOSE(P2426)","v":1185}]
["IDAHO FALLS","ID","W-4",{"$f":"TRANSPOSE(Q2426)","v":1239}]
["IDAHO FALLS","ID","W-5",{"$f":"TRANSPOSE(R2426)","v":1305}]
["IDAHO FALLS","ID","O-1E",{"$f":"TRANSPOSE(S2426)","v":1068}]
["IDAHO FALLS","ID","O-2E",{"$f":"TRANSPOSE(T2426)","v":1170}]
["IDAHO FALLS","ID","O-3E",{"$f":"TRANSPOSE(U2426)","v":1248}]
["IDAHO FALLS","ID","O-1",{"$f":"TRANSPOSE(V2426)","v":954}]
["IDAHO FALLS","ID","O-2",{"$f":"TRANSPOSE(W2426)","v":975}]
["IDAHO FALLS","ID","O-3",{"$f":"TRANSPOSE(X2426)","v":1179}]
["IDAHO FALLS","ID","O-4",{"$f":"TRANSPOSE(Y2426)","v":1329}]
["IDAHO FALLS","ID","O-5",{"$f":"TRANSPOSE(Z2426)","v":1434}]
["IDAHO FALLS","ID","O-6",{"$f":"TRANSPOSE(AA2426)","v":1449}]
["IDAHO FALLS","ID","O-7",{"$f":"TRANSPOSE(AB2426)","v":1464}]
["MOUNTAIN HOME AFB","ID","E-1",{"$f":"TRANSPOSE(E2450:E2450)","v":867},867,867,867,867,960,1080,1191,1314,1419,1083,1242,1389,1428,1473,1215,1368,1437,972,1077,1383,1491,1566,1581,1596]
["MOUNTAIN HOME AFB","ID","E-2",{"$f":"TRANSPOSE(F2450:F2450)","v":867}]
["MOUNTAIN HOME AFB","ID","E-3",{"$f":"TRANSPOSE(G2450:G2450)","v":867}]
["MOUNTAIN HOME AFB","ID","E-4",{"$f":"TRANSPOSE(H2450:H2450)","v":867}]
["MOUNTAIN HOME AFB","ID","E-5",{"$f":"TRANSPOSE(I2450:I2450)","v":960}]
["MOUNTAIN HOME AFB","ID","E-6",{"$f":"TRANSPOSE(J2450:J2450)","v":1080}]
["MOUNTAIN HOME AFB","ID","E-7",{"$f":"TRANSPOSE(K2450:K2450)","v":1191}]
["MOUNTAIN HOME AFB","ID","E-8",{"$f":"TRANSPOSE(L2450)","v":1314}]
["MOUNTAIN HOME AFB","ID","E-9",{"$f":"TRANSPOSE(M2450)","v":1419}]
["MOUNTAIN HOME AFB","ID","W-1",{"$f":"TRANSPOSE(N2450)","v":1083}]
["MOUNTAIN HOME AFB","ID","W-2",{"$f":"TRANSPOSE(O2450)","v":1242}]
["MOUNTAIN HOME AFB","ID","W-3",{"$f":"TRANSPOSE(P2450)","v":1389}]
["MOUNTAIN HOME AFB","ID","W-4",{"$f":"TRANSPOSE(Q2450)","v":1428}]
["MOUNTAIN HOME AFB","ID","W-5",{"$f":"TRANSPOSE(R2450)","v":1473}]
["MOUNTAIN HOME AFB","ID","O-1E",{"$f":"TRANSPOSE(S2450)","v":1215}]
["MOUNTAIN HOME AFB","ID","O-2E",{"$f":"TRANSPOSE(T2450)","v":1368}]
["MOUNTAIN HOME AFB","ID","O-3E",{"$f":"TRANSPOSE(U2450)","v":1437}]
["MOUNTAIN HOME AFB","ID","O-1",{"$f":"TRANSPOSE(V2450)","v":972}]
["MOUNTAIN HOME AFB","ID","O-2",{"$f":"TRANSPOSE(W2450)","v":1077}]
["MOUNTAIN HOME AFB","ID","O-3",{"$f":"TRANSPOSE(X2450)","v":1383}]
["MOUNTAIN HOME AFB","ID","O-4",{"$f":"TRANSPOSE(Y2450)","v":1491}]
["MOUNTAIN HOME AFB","ID","O-5",{"$f":"TRANSPOSE(Z2450)","v":1566}]
["MOUNTAIN HOME AFB","ID","O-6",{"$f":"TRANSPOSE(AA2450)","v":1581}]
["MOUNTAIN HOME AFB","ID","O-7",{"$f":"TRANSPOSE(AB2450)","v":1596}]
["MOSCOW","ID","E-1",{"$f":"TRANSPOSE(E2474:E2474)","v":807},807,807,807,807,912,1305,1353,1407,1497,1305,1374,1440,1518,1611,1365,1431,1533,954,1296,1437,1647,1797,1815,1833]
["MOSCOW","ID","E-2",{"$f":"TRANSPOSE(F2474:F2474)","v":807}]
["MOSCOW","ID","E-3",{"$f":"TRANSPOSE(G2474:G2474)","v":807}]
["MOSCOW","ID","E-4",{"$f":"TRANSPOSE(H2474:H2474)","v":807}]
["MOSCOW","ID","E-5",{"$f":"TRANSPOSE(I2474:I2474)","v":912}]
["MOSCOW","ID","E-6",{"$f":"TRANSPOSE(J2474:J2474)","v":1305}]
["MOSCOW","ID","E-7",{"$f":"TRANSPOSE(K2474:K2474)","v":1353}]
["MOSCOW","ID","E-8",{"$f":"TRANSPOSE(L2474)","v":1407}]
["MOSCOW","ID","E-9",{"$f":"TRANSPOSE(M2474)","v":1497}]
["MOSCOW","ID","W-1",{"$f":"TRANSPOSE(N2474)","v":1305}]
["MOSCOW","ID","W-2",{"$f":"TRANSPOSE(O2474)","v":1374}]
["MOSCOW","ID","W-3",{"$f":"TRANSPOSE(P2474)","v":1440}]
["MOSCOW","ID","W-4",{"$f":"TRANSPOSE(Q2474)","v":1518}]
["MOSCOW","ID","W-5",{"$f":"TRANSPOSE(R2474)","v":1611}]
["MOSCOW","ID","O-1E",{"$f":"TRANSPOSE(S2474)","v":1365}]
["MOSCOW","ID","O-2E",{"$f":"TRANSPOSE(T2474)","v":1431}]
["MOSCOW","ID","O-3E",{"$f":"TRANSPOSE(U2474)","v":1533}]
["MOSCOW","ID","O-1",{"$f":"TRANSPOSE(V2474)","v":954}]
["MOSCOW","ID","O-2",{"$f":"TRANSPOSE(W2474)","v":1296}]
["MOSCOW","ID","O-3",{"$f":"TRANSPOSE(X2474)","v":1437}]
["MOSCOW","ID","O-4",{"$f":"TRANSPOSE(Y2474)","v":1647}]
["MOSCOW","ID","O-5",{"$f":"TRANSPOSE(Z2474)","v":1797}]
["MOSCOW","ID","O-6",{"$f":"TRANSPOSE(AA2474)","v":1815}]
["MOSCOW","ID","O-7",{"$f":"TRANSPOSE(AB2474)","v":1833}]
["CHAMPAIGN/URBANA","IL","E-1",{"$f":"TRANSPOSE(E2498:E2498)","v":1107},1107,1107,1107,1107,1188,1380,1407,1434,1521,1380,1419,1452,1545,1656,1413,1449,1563,1209,1377,1452,1698,1875,1893,1914]
["CHAMPAIGN/URBANA","IL","E-2",{"$f":"TRANSPOSE(F2498:F2498)","v":1107}]
["CHAMPAIGN/URBANA","IL","E-3",{"$f":"TRANSPOSE(G2498:G2498)","v":1107}]
["CHAMPAIGN/URBANA","IL","E-4",{"$f":"TRANSPOSE(H2498:H2498)","v":1107}]
["CHAMPAIGN/URBANA","IL","E-5",{"$f":"TRANSPOSE(I2498:I2498)","v":1188}]
["CHAMPAIGN/URBANA","IL","E-6",{"$f":"TRANSPOSE(J2498:J2498)","v":1380}]
["CHAMPAIGN/URBANA","IL","E-7",{"$f":"TRANSPOSE(K2498:K2498)","v":1407}]
["CHAMPAIGN/URBANA","IL","E-8",{"$f":"TRANSPOSE(L2498)","v":1434}]
["CHAMPAIGN/URBANA","IL","E-9",{"$f":"TRANSPOSE(M2498)","v":1521}]
["CHAMPAIGN/URBANA","IL","W-1",{"$f":"TRANSPOSE(N2498)","v":1380}]
["CHAMPAIGN/URBANA","IL","W-2",{"$f":"TRANSPOSE(O2498)","v":1419}]
["CHAMPAIGN/URBANA","IL","W-3",{"$f":"TRANSPOSE(P2498)","v":1452}]
["CHAMPAIGN/URBANA","IL","W-4",{"$f":"TRANSPOSE(Q2498)","v":1545}]
["CHAMPAIGN/URBANA","IL","W-5",{"$f":"TRANSPOSE(R2498)","v":1656}]
["CHAMPAIGN/URBANA","IL","O-1E",{"$f":"TRANSPOSE(S2498)","v":1413}]
["CHAMPAIGN/URBANA","IL","O-2E",{"$f":"TRANSPOSE(T2498)","v":1449}]
["CHAMPAIGN/URBANA","IL","O-3E",{"$f":"TRANSPOSE(U2498)","v":1563}]
["CHAMPAIGN/URBANA","IL","O-1",{"$f":"TRANSPOSE(V2498)","v":1209}]
["CHAMPAIGN/URBANA","IL","O-2",{"$f":"TRANSPOSE(W2498)","v":1377}]
["CHAMPAIGN/URBANA","IL","O-3",{"$f":"TRANSPOSE(X2498)","v":1452}]
["CHAMPAIGN/URBANA","IL","O-4",{"$f":"TRANSPOSE(Y2498)","v":1698}]
["CHAMPAIGN/URBANA","IL","O-5",{"$f":"TRANSPOSE(Z2498)","v":1875}]
["CHAMPAIGN/URBANA","IL","O-6",{"$f":"TRANSPOSE(AA2498)","v":1893}]
["CHAMPAIGN/URBANA","IL","O-7",{"$f":"TRANSPOSE(AB2498)","v":1914}]
["ROCK ISLAND","IL","E-1",{"$f":"TRANSPOSE(E2522:E2522)","v":882},882,882,882,882,939,1263,1311,1362,1443,1263,1332,1395,1461,1539,1320,1386,1473,975,1257,1392,1566,1692,1710,1728]
["ROCK ISLAND","IL","E-2",{"$f":"TRANSPOSE(F2522:F2522)","v":882}]
["ROCK ISLAND","IL","E-3",{"$f":"TRANSPOSE(G2522:G2522)","v":882}]
["ROCK ISLAND","IL","E-4",{"$f":"TRANSPOSE(H2522:H2522)","v":882}]
["ROCK ISLAND","IL","E-5",{"$f":"TRANSPOSE(I2522:I2522)","v":939}]
["ROCK ISLAND","IL","E-6",{"$f":"TRANSPOSE(J2522:J2522)","v":1263}]
["ROCK ISLAND","IL","E-7",{"$f":"TRANSPOSE(K2522:K2522)","v":1311}]
["ROCK ISLAND","IL","E-8",{"$f":"TRANSPOSE(L2522)","v":1362}]
["ROCK ISLAND","IL","E-9",{"$f":"TRANSPOSE(M2522)","v":1443}]
["ROCK ISLAND","IL","W-1",{"$f":"TRANSPOSE(N2522)","v":1263}]
["ROCK ISLAND","IL","W-2",{"$f":"TRANSPOSE(O2522)","v":1332}]
["ROCK ISLAND","IL","W-3",{"$f":"TRANSPOSE(P2522)","v":1395}]
["ROCK ISLAND","IL","W-4",{"$f":"TRANSPOSE(Q2522)","v":1461}]
["ROCK ISLAND","IL","W-5",{"$f":"TRANSPOSE(R2522)","v":1539}]
["ROCK ISLAND","IL","O-1E",{"$f":"TRANSPOSE(S2522)","v":1320}]
["ROCK ISLAND","IL","O-2E",{"$f":"TRANSPOSE(T2522)","v":1386}]
["ROCK ISLAND","IL","O-3E",{"$f":"TRANSPOSE(U2522)","v":1473}]
["ROCK ISLAND","IL","O-1",{"$f":"TRANSPOSE(V2522)","v":975}]
["ROCK ISLAND","IL","O-2",{"$f":"TRANSPOSE(W2522)","v":1257}]
["ROCK ISLAND","IL","O-3",{"$f":"TRANSPOSE(X2522)","v":1392}]
["ROCK ISLAND","IL","O-4",{"$f":"TRANSPOSE(Y2522)","v":1566}]
["ROCK ISLAND","IL","O-5",{"$f":"TRANSPOSE(Z2522)","v":1692}]
["ROCK ISLAND","IL","O-6",{"$f":"TRANSPOSE(AA2522)","v":1710}]
["ROCK ISLAND","IL","O-7",{"$f":"TRANSPOSE(AB2522)","v":1728}]
["PEORIA","IL","E-1",{"$f":"TRANSPOSE(E2546:E2546)","v":1002},1002,1002,1002,1002,1104,1296,1308,1317,1368,1296,1311,1323,1383,1452,1308,1323,1392,1125,1293,1323,1479,1590,1605,1623]
["PEORIA","IL","E-2",{"$f":"TRANSPOSE(F2546:F2546)","v":1002}]
["PEORIA","IL","E-3",{"$f":"TRANSPOSE(G2546:G2546)","v":1002}]
["PEORIA","IL","E-4",{"$f":"TRANSPOSE(H2546:H2546)","v":1002}]
["PEORIA","IL","E-5",{"$f":"TRANSPOSE(I2546:I2546)","v":1104}]
["PEORIA","IL","E-6",{"$f":"TRANSPOSE(J2546:J2546)","v":1296}]
["PEORIA","IL","E-7",{"$f":"TRANSPOSE(K2546:K2546)","v":1308}]
["PEORIA","IL","E-8",{"$f":"TRANSPOSE(L2546)","v":1317}]
["PEORIA","IL","E-9",{"$f":"TRANSPOSE(M2546)","v":1368}]
["PEORIA","IL","W-1",{"$f":"TRANSPOSE(N2546)","v":1296}]
["PEORIA","IL","W-2",{"$f":"TRANSPOSE(O2546)","v":1311}]
["PEORIA","IL","W-3",{"$f":"TRANSPOSE(P2546)","v":1323}]
["PEORIA","IL","W-4",{"$f":"TRANSPOSE(Q2546)","v":1383}]
["PEORIA","IL","W-5",{"$f":"TRANSPOSE(R2546)","v":1452}]
["PEORIA","IL","O-1E",{"$f":"TRANSPOSE(S2546)","v":1308}]
["PEORIA","IL","O-2E",{"$f":"TRANSPOSE(T2546)","v":1323}]
["PEORIA","IL","O-3E",{"$f":"TRANSPOSE(U2546)","v":1392}]
["PEORIA","IL","O-1",{"$f":"TRANSPOSE(V2546)","v":1125}]
["PEORIA","IL","O-2",{"$f":"TRANSPOSE(W2546)","v":1293}]
["PEORIA","IL","O-3",{"$f":"TRANSPOSE(X2546)","v":1323}]
["PEORIA","IL","O-4",{"$f":"TRANSPOSE(Y2546)","v":1479}]
["PEORIA","IL","O-5",{"$f":"TRANSPOSE(Z2546)","v":1590}]
["PEORIA","IL","O-6",{"$f":"TRANSPOSE(AA2546)","v":1605}]
["PEORIA","IL","O-7",{"$f":"TRANSPOSE(AB2546)","v":1623}]
["GREAT LAKES NAVTRACEN","IL","E-1",{"$f":"TRANSPOSE(E2570:E2570)","v":1152},1152,1152,1152,1152,1281,1509,1557,1605,1716,1512,1575,1638,1746,1875,1566,1629,1767,1308,1506,1635,1926,2133,2154,2178]
["GREAT LAKES NAVTRACEN","IL","E-2",{"$f":"TRANSPOSE(F2570:F2570)","v":1152}]
["GREAT LAKES NAVTRACEN","IL","E-3",{"$f":"TRANSPOSE(G2570:G2570)","v":1152}]
["GREAT LAKES NAVTRACEN","IL","E-4",{"$f":"TRANSPOSE(H2570:H2570)","v":1152}]
["GREAT LAKES NAVTRACEN","IL","E-5",{"$f":"TRANSPOSE(I2570:I2570)","v":1281}]
["GREAT LAKES NAVTRACEN","IL","E-6",{"$f":"TRANSPOSE(J2570:J2570)","v":1509}]
["GREAT LAKES NAVTRACEN","IL","E-7",{"$f":"TRANSPOSE(K2570:K2570)","v":1557}]
["GREAT LAKES NAVTRACEN","IL","E-8",{"$f":"TRANSPOSE(L2570)","v":1605}]
["GREAT LAKES NAVTRACEN","IL","E-9",{"$f":"TRANSPOSE(M2570)","v":1716}]
["GREAT LAKES NAVTRACEN","IL","W-1",{"$f":"TRANSPOSE(N2570)","v":1512}]
["GREAT LAKES NAVTRACEN","IL","W-2",{"$f":"TRANSPOSE(O2570)","v":1575}]
["GREAT LAKES NAVTRACEN","IL","W-3",{"$f":"TRANSPOSE(P2570)","v":1638}]
["GREAT LAKES NAVTRACEN","IL","W-4",{"$f":"TRANSPOSE(Q2570)","v":1746}]
["GREAT LAKES NAVTRACEN","IL","W-5",{"$f":"TRANSPOSE(R2570)","v":1875}]
["GREAT LAKES NAVTRACEN","IL","O-1E",{"$f":"TRANSPOSE(S2570)","v":1566}]
["GREAT LAKES NAVTRACEN","IL","O-2E",{"$f":"TRANSPOSE(T2570)","v":1629}]
["GREAT LAKES NAVTRACEN","IL","O-3E",{"$f":"TRANSPOSE(U2570)","v":1767}]
["GREAT LAKES NAVTRACEN","IL","O-1",{"$f":"TRANSPOSE(V2570)","v":1308}]
["GREAT LAKES NAVTRACEN","IL","O-2",{"$f":"TRANSPOSE(W2570)","v":1506}]
["GREAT LAKES NAVTRACEN","IL","O-3",{"$f":"TRANSPOSE(X2570)","v":1635}]
["GREAT LAKES NAVTRACEN","IL","O-4",{"$f":"TRANSPOSE(Y2570)","v":1926}]
["GREAT LAKES NAVTRACEN","IL","O-5",{"$f":"TRANSPOSE(Z2570)","v":2133}]
["GREAT LAKES NAVTRACEN","IL","O-6",{"$f":"TRANSPOSE(AA2570)","v":2154}]
["GREAT LAKES NAVTRACEN","IL","O-7",{"$f":"TRANSPOSE(AB2570)","v":2178}]
["SCOTT AFB","IL","E-1",{"$f":"TRANSPOSE(E2594:E2594)","v":1056},1056,1056,1056,1056,1131,1368,1449,1539,1653,1368,1485,1596,1677,1773,1467,1578,1692,1158,1362,1590,1809,1965,1986,2004]
["SCOTT AFB","IL","E-2",{"$f":"TRANSPOSE(F2594:F2594)","v":1056}]
["SCOTT AFB","IL","E-3",{"$f":"TRANSPOSE(G2594:G2594)","v":1056}]
["SCOTT AFB","IL","E-4",{"$f":"TRANSPOSE(H2594:H2594)","v":1056}]
["SCOTT AFB","IL","E-5",{"$f":"TRANSPOSE(I2594:I2594)","v":1131}]
["SCOTT AFB","IL","E-6",{"$f":"TRANSPOSE(J2594:J2594)","v":1368}]
["SCOTT AFB","IL","E-7",{"$f":"TRANSPOSE(K2594:K2594)","v":1449}]
["SCOTT AFB","IL","E-8",{"$f":"TRANSPOSE(L2594)","v":1539}]
["SCOTT AFB","IL","E-9",{"$f":"TRANSPOSE(M2594)","v":1653}]
["SCOTT AFB","IL","W-1",{"$f":"TRANSPOSE(N2594)","v":1368}]
["SCOTT AFB","IL","W-2",{"$f":"TRANSPOSE(O2594)","v":1485}]
["SCOTT AFB","IL","W-3",{"$f":"TRANSPOSE(P2594)","v":1596}]
["SCOTT AFB","IL","W-4",{"$f":"TRANSPOSE(Q2594)","v":1677}]
["SCOTT AFB","IL","W-5",{"$f":"TRANSPOSE(R2594)","v":1773}]
["SCOTT AFB","IL","O-1E",{"$f":"TRANSPOSE(S2594)","v":1467}]
["SCOTT AFB","IL","O-2E",{"$f":"TRANSPOSE(T2594)","v":1578}]
["SCOTT AFB","IL","O-3E",{"$f":"TRANSPOSE(U2594)","v":1692}]
["SCOTT AFB","IL","O-1",{"$f":"TRANSPOSE(V2594)","v":1158}]
["SCOTT AFB","IL","O-2",{"$f":"TRANSPOSE(W2594)","v":1362}]
["SCOTT AFB","IL","O-3",{"$f":"TRANSPOSE(X2594)","v":1590}]
["SCOTT AFB","IL","O-4",{"$f":"TRANSPOSE(Y2594)","v":1809}]
["SCOTT AFB","IL","O-5",{"$f":"TRANSPOSE(Z2594)","v":1965}]
["SCOTT AFB","IL","O-6",{"$f":"TRANSPOSE(AA2594)","v":1986}]
["SCOTT AFB","IL","O-7",{"$f":"TRANSPOSE(AB2594)","v":2004}]
["CHICAGO","IL","E-1",{"$f":"TRANSPOSE(E2618:E2618)","v":1608},1608,1608,1608,1608,1689,1974,1986,2001,2100,1974,1992,2013,2133,2277,1989,2010,2157,1719,1968,2010,2334,2568,2592,2619]
["CHICAGO","IL","E-2",{"$f":"TRANSPOSE(F2618:F2618)","v":1608}]
["CHICAGO","IL","E-3",{"$f":"TRANSPOSE(G2618:G2618)","v":1608}]
["CHICAGO","IL","E-4",{"$f":"TRANSPOSE(H2618:H2618)","v":1608}]
["CHICAGO","IL","E-5",{"$f":"TRANSPOSE(I2618:I2618)","v":1689}]
["CHICAGO","IL","E-6",{"$f":"TRANSPOSE(J2618:J2618)","v":1974}]
["CHICAGO","IL","E-7",{"$f":"TRANSPOSE(K2618:K2618)","v":1986}]
["CHICAGO","IL","E-8",{"$f":"TRANSPOSE(L2618)","v":2001}]
["CHICAGO","IL","E-9",{"$f":"TRANSPOSE(M2618)","v":2100}]
["CHICAGO","IL","W-1",{"$f":"TRANSPOSE(N2618)","v":1974}]
["CHICAGO","IL","W-2",{"$f":"TRANSPOSE(O2618)","v":1992}]
["CHICAGO","IL","W-3",{"$f":"TRANSPOSE(P2618)","v":2013}]
["CHICAGO","IL","W-4",{"$f":"TRANSPOSE(Q2618)","v":2133}]
["CHICAGO","IL","W-5",{"$f":"TRANSPOSE(R2618)","v":2277}]
["CHICAGO","IL","O-1E",{"$f":"TRANSPOSE(S2618)","v":1989}]
["CHICAGO","IL","O-2E",{"$f":"TRANSPOSE(T2618)","v":2010}]
["CHICAGO","IL","O-3E",{"$f":"TRANSPOSE(U2618)","v":2157}]
["CHICAGO","IL","O-1",{"$f":"TRANSPOSE(V2618)","v":1719}]
["CHICAGO","IL","O-2",{"$f":"TRANSPOSE(W2618)","v":1968}]
["CHICAGO","IL","O-3",{"$f":"TRANSPOSE(X2618)","v":2010}]
["CHICAGO","IL","O-4",{"$f":"TRANSPOSE(Y2618)","v":2334}]
["CHICAGO","IL","O-5",{"$f":"TRANSPOSE(Z2618)","v":2568}]
["CHICAGO","IL","O-6",{"$f":"TRANSPOSE(AA2618)","v":2592}]
["CHICAGO","IL","O-7",{"$f":"TRANSPOSE(AB2618)","v":2619}]
["SPRINGFIELD/DECATUR","IL","E-1",{"$f":"TRANSPOSE(E2642:E2642)","v":927},927,927,927,927,972,1191,1200,1209,1272,1191,1203,1215,1290,1380,1200,1215,1305,996,1185,1215,1413,1557,1572,1587]
["SPRINGFIELD/DECATUR","IL","E-2",{"$f":"TRANSPOSE(F2642:F2642)","v":927}]
["SPRINGFIELD/DECATUR","IL","E-3",{"$f":"TRANSPOSE(G2642:G2642)","v":927}]
["SPRINGFIELD/DECATUR","IL","E-4",{"$f":"TRANSPOSE(H2642:H2642)","v":927}]
["SPRINGFIELD/DECATUR","IL","E-5",{"$f":"TRANSPOSE(I2642:I2642)","v":972}]
["SPRINGFIELD/DECATUR","IL","E-6",{"$f":"TRANSPOSE(J2642:J2642)","v":1191}]
["SPRINGFIELD/DECATUR","IL","E-7",{"$f":"TRANSPOSE(K2642:K2642)","v":1200}]
["SPRINGFIELD/DECATUR","IL","E-8",{"$f":"TRANSPOSE(L2642)","v":1209}]
["SPRINGFIELD/DECATUR","IL","E-9",{"$f":"TRANSPOSE(M2642)","v":1272}]
["SPRINGFIELD/DECATUR","IL","W-1",{"$f":"TRANSPOSE(N2642)","v":1191}]
["SPRINGFIELD/DECATUR","IL","W-2",{"$f":"TRANSPOSE(O2642)","v":1203}]
["SPRINGFIELD/DECATUR","IL","W-3",{"$f":"TRANSPOSE(P2642)","v":1215}]
["SPRINGFIELD/DECATUR","IL","W-4",{"$f":"TRANSPOSE(Q2642)","v":1290}]
["SPRINGFIELD/DECATUR","IL","W-5",{"$f":"TRANSPOSE(R2642)","v":1380}]
["SPRINGFIELD/DECATUR","IL","O-1E",{"$f":"TRANSPOSE(S2642)","v":1200}]
["SPRINGFIELD/DECATUR","IL","O-2E",{"$f":"TRANSPOSE(T2642)","v":1215}]
["SPRINGFIELD/DECATUR","IL","O-3E",{"$f":"TRANSPOSE(U2642)","v":1305}]
["SPRINGFIELD/DECATUR","IL","O-1",{"$f":"TRANSPOSE(V2642)","v":996}]
["SPRINGFIELD/DECATUR","IL","O-2",{"$f":"TRANSPOSE(W2642)","v":1185}]
["SPRINGFIELD/DECATUR","IL","O-3",{"$f":"TRANSPOSE(X2642)","v":1215}]
["SPRINGFIELD/DECATUR","IL","O-4",{"$f":"TRANSPOSE(Y2642)","v":1413}]
["SPRINGFIELD/DECATUR","IL","O-5",{"$f":"TRANSPOSE(Z2642)","v":1557}]
["SPRINGFIELD/DECATUR","IL","O-6",{"$f":"TRANSPOSE(AA2642)","v":1572}]
["SPRINGFIELD/DECATUR","IL","O-7",{"$f":"TRANSPOSE(AB2642)","v":1587}]
["JOLIET ARMY DEPOT","IL","E-1",{"$f":"TRANSPOSE(E2666:E2666)","v":1086},1086,1086,1086,1086,1275,1629,1683,1740,1854,1632,1704,1776,1884,2013,1695,1764,1905,1314,1623,1773,2064,2271,2295,2316]
["JOLIET ARMY DEPOT","IL","E-2",{"$f":"TRANSPOSE(F2666:F2666)","v":1086}]
["JOLIET ARMY DEPOT","IL","E-3",{"$f":"TRANSPOSE(G2666:G2666)","v":1086}]
["JOLIET ARMY DEPOT","IL","E-4",{"$f":"TRANSPOSE(H2666:H2666)","v":1086}]
["JOLIET ARMY DEPOT","IL","E-5",{"$f":"TRANSPOSE(I2666:I2666)","v":1275}]
["JOLIET ARMY DEPOT","IL","E-6",{"$f":"TRANSPOSE(J2666:J2666)","v":1629}]
["JOLIET ARMY DEPOT","IL","E-7",{"$f":"TRANSPOSE(K2666:K2666)","v":1683}]
["JOLIET ARMY DEPOT","IL","E-8",{"$f":"TRANSPOSE(L2666)","v":1740}]
["JOLIET ARMY DEPOT","IL","E-9",{"$f":"TRANSPOSE(M2666)","v":1854}]
["JOLIET ARMY DEPOT","IL","W-1",{"$f":"TRANSPOSE(N2666)","v":1632}]
["JOLIET ARMY DEPOT","IL","W-2",{"$f":"TRANSPOSE(O2666)","v":1704}]
["JOLIET ARMY DEPOT","IL","W-3",{"$f":"TRANSPOSE(P2666)","v":1776}]
["JOLIET ARMY DEPOT","IL","W-4",{"$f":"TRANSPOSE(Q2666)","v":1884}]
["JOLIET ARMY DEPOT","IL","W-5",{"$f":"TRANSPOSE(R2666)","v":2013}]
["JOLIET ARMY DEPOT","IL","O-1E",{"$f":"TRANSPOSE(S2666)","v":1695}]
["JOLIET ARMY DEPOT","IL","O-2E",{"$f":"TRANSPOSE(T2666)","v":1764}]
["JOLIET ARMY DEPOT","IL","O-3E",{"$f":"TRANSPOSE(U2666)","v":1905}]
["JOLIET ARMY DEPOT","IL","O-1",{"$f":"TRANSPOSE(V2666)","v":1314}]
["JOLIET ARMY DEPOT","IL","O-2",{"$f":"TRANSPOSE(W2666)","v":1623}]
["JOLIET ARMY DEPOT","IL","O-3",{"$f":"TRANSPOSE(X2666)","v":1773}]
["JOLIET ARMY DEPOT","IL","O-4",{"$f":"TRANSPOSE(Y2666)","v":2064}]
["JOLIET ARMY DEPOT","IL","O-5",{"$f":"TRANSPOSE(Z2666)","v":2271}]
["JOLIET ARMY DEPOT","IL","O-6",{"$f":"TRANSPOSE(AA2666)","v":2295}]
["JOLIET ARMY DEPOT","IL","O-7",{"$f":"TRANSPOSE(AB2666)","v":2316}]
["ROCKFORD","IL","E-1",{"$f":"TRANSPOSE(E2690:E2690)","v":942},942,942,942,942,1056,1191,1203,1218,1263,1191,1209,1224,1278,1344,1206,1224,1290,1071,1188,1224,1368,1470,1485,1500]
["ROCKFORD","IL","E-2",{"$f":"TRANSPOSE(F2690:F2690)","v":942}]
["ROCKFORD","IL","E-3",{"$f":"TRANSPOSE(G2690:G2690)","v":942}]
["ROCKFORD","IL","E-4",{"$f":"TRANSPOSE(H2690:H2690)","v":942}]
["ROCKFORD","IL","E-5",{"$f":"TRANSPOSE(I2690:I2690)","v":1056}]
["ROCKFORD","IL","E-6",{"$f":"TRANSPOSE(J2690:J2690)","v":1191}]
["ROCKFORD","IL","E-7",{"$f":"TRANSPOSE(K2690:K2690)","v":1203}]
["ROCKFORD","IL","E-8",{"$f":"TRANSPOSE(L2690)","v":1218}]
["ROCKFORD","IL","E-9",{"$f":"TRANSPOSE(M2690)","v":1263}]
["ROCKFORD","IL","W-1",{"$f":"TRANSPOSE(N2690)","v":1191}]
["ROCKFORD","IL","W-2",{"$f":"TRANSPOSE(O2690)","v":1209}]
["ROCKFORD","IL","W-3",{"$f":"TRANSPOSE(P2690)","v":1224}]
["ROCKFORD","IL","W-4",{"$f":"TRANSPOSE(Q2690)","v":1278}]
["ROCKFORD","IL","W-5",{"$f":"TRANSPOSE(R2690)","v":1344}]
["ROCKFORD","IL","O-1E",{"$f":"TRANSPOSE(S2690)","v":1206}]
["ROCKFORD","IL","O-2E",{"$f":"TRANSPOSE(T2690)","v":1224}]
["ROCKFORD","IL","O-3E",{"$f":"TRANSPOSE(U2690)","v":1290}]
["ROCKFORD","IL","O-1",{"$f":"TRANSPOSE(V2690)","v":1071}]
["ROCKFORD","IL","O-2",{"$f":"TRANSPOSE(W2690)","v":1188}]
["ROCKFORD","IL","O-3",{"$f":"TRANSPOSE(X2690)","v":1224}]
["ROCKFORD","IL","O-4",{"$f":"TRANSPOSE(Y2690)","v":1368}]
["ROCKFORD","IL","O-5",{"$f":"TRANSPOSE(Z2690)","v":1470}]
["ROCKFORD","IL","O-6",{"$f":"TRANSPOSE(AA2690)","v":1485}]
["ROCKFORD","IL","O-7",{"$f":"TRANSPOSE(AB2690)","v":1500}]
["INDIANAPOLIS","IN","E-1",{"$f":"TRANSPOSE(E2714:E2714)","v":1062},1062,1062,1062,1062,1131,1230,1272,1317,1413,1233,1290,1344,1440,1554,1281,1335,1458,1140,1230,1341,1599,1782,1800,1818]
["INDIANAPOLIS","IN","E-2",{"$f":"TRANSPOSE(F2714:F2714)","v":1062}]
["INDIANAPOLIS","IN","E-3",{"$f":"TRANSPOSE(G2714:G2714)","v":1062}]
["INDIANAPOLIS","IN","E-4",{"$f":"TRANSPOSE(H2714:H2714)","v":1062}]
["INDIANAPOLIS","IN","E-5",{"$f":"TRANSPOSE(I2714:I2714)","v":1131}]
["INDIANAPOLIS","IN","E-6",{"$f":"TRANSPOSE(J2714:J2714)","v":1230}]
["INDIANAPOLIS","IN","E-7",{"$f":"TRANSPOSE(K2714:K2714)","v":1272}]
["INDIANAPOLIS","IN","E-8",{"$f":"TRANSPOSE(L2714)","v":1317}]
["INDIANAPOLIS","IN","E-9",{"$f":"TRANSPOSE(M2714)","v":1413}]
["INDIANAPOLIS","IN","W-1",{"$f":"TRANSPOSE(N2714)","v":1233}]
["INDIANAPOLIS","IN","W-2",{"$f":"TRANSPOSE(O2714)","v":1290}]
["INDIANAPOLIS","IN","W-3",{"$f":"TRANSPOSE(P2714)","v":1344}]
["INDIANAPOLIS","IN","W-4",{"$f":"TRANSPOSE(Q2714)","v":1440}]
["INDIANAPOLIS","IN","W-5",{"$f":"TRANSPOSE(R2714)","v":1554}]
["INDIANAPOLIS","IN","O-1E",{"$f":"TRANSPOSE(S2714)","v":1281}]
["INDIANAPOLIS","IN","O-2E",{"$f":"TRANSPOSE(T2714)","v":1335}]
["INDIANAPOLIS","IN","O-3E",{"$f":"TRANSPOSE(U2714)","v":1458}]
["INDIANAPOLIS","IN","O-1",{"$f":"TRANSPOSE(V2714)","v":1140}]
["INDIANAPOLIS","IN","O-2",{"$f":"TRANSPOSE(W2714)","v":1230}]
["INDIANAPOLIS","IN","O-3",{"$f":"TRANSPOSE(X2714)","v":1341}]
["INDIANAPOLIS","IN","O-4",{"$f":"TRANSPOSE(Y2714)","v":1599}]
["INDIANAPOLIS","IN","O-5",{"$f":"TRANSPOSE(Z2714)","v":1782}]
["INDIANAPOLIS","IN","O-6",{"$f":"TRANSPOSE(AA2714)","v":1800}]
["INDIANAPOLIS","IN","O-7",{"$f":"TRANSPOSE(AB2714)","v":1818}]
["LAFAYETTE","IN","E-1",{"$f":"TRANSPOSE(E2738:E2738)","v":1026},1026,1026,1026,1026,1089,1161,1188,1218,1260,1164,1200,1236,1269,1308,1194,1230,1275,1095,1161,1233,1323,1386,1398,1413]
["LAFAYETTE","IN","E-2",{"$f":"TRANSPOSE(F2738:F2738)","v":1026}]
["LAFAYETTE","IN","E-3",{"$f":"TRANSPOSE(G2738:G2738)","v":1026}]
["LAFAYETTE","IN","E-4",{"$f":"TRANSPOSE(H2738:H2738)","v":1026}]
["LAFAYETTE","IN","E-5",{"$f":"TRANSPOSE(I2738:I2738)","v":1089}]
["LAFAYETTE","IN","E-6",{"$f":"TRANSPOSE(J2738:J2738)","v":1161}]
["LAFAYETTE","IN","E-7",{"$f":"TRANSPOSE(K2738:K2738)","v":1188}]
["LAFAYETTE","IN","E-8",{"$f":"TRANSPOSE(L2738)","v":1218}]
["LAFAYETTE","IN","E-9",{"$f":"TRANSPOSE(M2738)","v":1260}]
["LAFAYETTE","IN","W-1",{"$f":"TRANSPOSE(N2738)","v":1164}]
["LAFAYETTE","IN","W-2",{"$f":"TRANSPOSE(O2738)","v":1200}]
["LAFAYETTE","IN","W-3",{"$f":"TRANSPOSE(P2738)","v":1236}]
["LAFAYETTE","IN","W-4",{"$f":"TRANSPOSE(Q2738)","v":1269}]
["LAFAYETTE","IN","W-5",{"$f":"TRANSPOSE(R2738)","v":1308}]
["LAFAYETTE","IN","O-1E",{"$f":"TRANSPOSE(S2738)","v":1194}]
["LAFAYETTE","IN","O-2E",{"$f":"TRANSPOSE(T2738)","v":1230}]
["LAFAYETTE","IN","O-3E",{"$f":"TRANSPOSE(U2738)","v":1275}]
["LAFAYETTE","IN","O-1",{"$f":"TRANSPOSE(V2738)","v":1095}]
["LAFAYETTE","IN","O-2",{"$f":"TRANSPOSE(W2738)","v":1161}]
["LAFAYETTE","IN","O-3",{"$f":"TRANSPOSE(X2738)","v":1233}]
["LAFAYETTE","IN","O-4",{"$f":"TRANSPOSE(Y2738)","v":1323}]
["LAFAYETTE","IN","O-5",{"$f":"TRANSPOSE(Z2738)","v":1386}]
["LAFAYETTE","IN","O-6",{"$f":"TRANSPOSE(AA2738)","v":1398}]
["LAFAYETTE","IN","O-7",{"$f":"TRANSPOSE(AB2738)","v":1413}]
["FORT WAYNE","IN","E-1",{"$f":"TRANSPOSE(E2762:E2762)","v":861},861,861,861,861,948,1095,1140,1185,1293,1095,1158,1215,1320,1443,1149,1209,1338,963,1092,1215,1491,1689,1704,1722]
["FORT WAYNE","IN","E-2",{"$f":"TRANSPOSE(F2762:F2762)","v":861}]
["FORT WAYNE","IN","E-3",{"$f":"TRANSPOSE(G2762:G2762)","v":861}]
["FORT WAYNE","IN","E-4",{"$f":"TRANSPOSE(H2762:H2762)","v":861}]
["FORT WAYNE","IN","E-5",{"$f":"TRANSPOSE(I2762:I2762)","v":948}]
["FORT WAYNE","IN","E-6",{"$f":"TRANSPOSE(J2762:J2762)","v":1095}]
["FORT WAYNE","IN","E-7",{"$f":"TRANSPOSE(K2762:K2762)","v":1140}]
["FORT WAYNE","IN","E-8",{"$f":"TRANSPOSE(L2762)","v":1185}]
["FORT WAYNE","IN","E-9",{"$f":"TRANSPOSE(M2762)","v":1293}]
["FORT WAYNE","IN","W-1",{"$f":"TRANSPOSE(N2762)","v":1095}]
["FORT WAYNE","IN","W-2",{"$f":"TRANSPOSE(O2762)","v":1158}]
["FORT WAYNE","IN","W-3",{"$f":"TRANSPOSE(P2762)","v":1215}]
["FORT WAYNE","IN","W-4",{"$f":"TRANSPOSE(Q2762)","v":1320}]
["FORT WAYNE","IN","W-5",{"$f":"TRANSPOSE(R2762)","v":1443}]
["FORT WAYNE","IN","O-1E",{"$f":"TRANSPOSE(S2762)","v":1149}]
["FORT WAYNE","IN","O-2E",{"$f":"TRANSPOSE(T2762)","v":1209}]
["FORT WAYNE","IN","O-3E",{"$f":"TRANSPOSE(U2762)","v":1338}]
["FORT WAYNE","IN","O-1",{"$f":"TRANSPOSE(V2762)","v":963}]
["FORT WAYNE","IN","O-2",{"$f":"TRANSPOSE(W2762)","v":1092}]
["FORT WAYNE","IN","O-3",{"$f":"TRANSPOSE(X2762)","v":1215}]
["FORT WAYNE","IN","O-4",{"$f":"TRANSPOSE(Y2762)","v":1491}]
["FORT WAYNE","IN","O-5",{"$f":"TRANSPOSE(Z2762)","v":1689}]
["FORT WAYNE","IN","O-6",{"$f":"TRANSPOSE(AA2762)","v":1704}]
["FORT WAYNE","IN","O-7",{"$f":"TRANSPOSE(AB2762)","v":1722}]
["SOUTH BEND","IN","E-1",{"$f":"TRANSPOSE(E2786:E2786)","v":969},969,969,969,969,1080,1236,1263,1290,1362,1239,1275,1308,1380,1464,1269,1305,1395,1098,1233,1308,1497,1635,1650,1668]
["SOUTH BEND","IN","E-2",{"$f":"TRANSPOSE(F2786:F2786)","v":969}]
["SOUTH BEND","IN","E-3",{"$f":"TRANSPOSE(G2786:G2786)","v":969}]
["SOUTH BEND","IN","E-4",{"$f":"TRANSPOSE(H2786:H2786)","v":969}]
["SOUTH BEND","IN","E-5",{"$f":"TRANSPOSE(I2786:I2786)","v":1080}]
["SOUTH BEND","IN","E-6",{"$f":"TRANSPOSE(J2786:J2786)","v":1236}]
["SOUTH BEND","IN","E-7",{"$f":"TRANSPOSE(K2786:K2786)","v":1263}]
["SOUTH BEND","IN","E-8",{"$f":"TRANSPOSE(L2786)","v":1290}]
["SOUTH BEND","IN","E-9",{"$f":"TRANSPOSE(M2786)","v":1362}]
["SOUTH BEND","IN","W-1",{"$f":"TRANSPOSE(N2786)","v":1239}]
["SOUTH BEND","IN","W-2",{"$f":"TRANSPOSE(O2786)","v":1275}]
["SOUTH BEND","IN","W-3",{"$f":"TRANSPOSE(P2786)","v":1308}]
["SOUTH BEND","IN","W-4",{"$f":"TRANSPOSE(Q2786)","v":1380}]
["SOUTH BEND","IN","W-5",{"$f":"TRANSPOSE(R2786)","v":1464}]
["SOUTH BEND","IN","O-1E",{"$f":"TRANSPOSE(S2786)","v":1269}]
["SOUTH BEND","IN","O-2E",{"$f":"TRANSPOSE(T2786)","v":1305}]
["SOUTH BEND","IN","O-3E",{"$f":"TRANSPOSE(U2786)","v":1395}]
["SOUTH BEND","IN","O-1",{"$f":"TRANSPOSE(V2786)","v":1098}]
["SOUTH BEND","IN","O-2",{"$f":"TRANSPOSE(W2786)","v":1233}]
["SOUTH BEND","IN","O-3",{"$f":"TRANSPOSE(X2786)","v":1308}]
["SOUTH BEND","IN","O-4",{"$f":"TRANSPOSE(Y2786)","v":1497}]
["SOUTH BEND","IN","O-5",{"$f":"TRANSPOSE(Z2786)","v":1635}]
["SOUTH BEND","IN","O-6",{"$f":"TRANSPOSE(AA2786)","v":1650}]
["SOUTH BEND","IN","O-7",{"$f":"TRANSPOSE(AB2786)","v":1668}]
["EVANSVILLE","IN","E-1",{"$f":"TRANSPOSE(E2810:E2810)","v":888},888,888,888,888,984,1104,1122,1140,1218,1104,1128,1149,1242,1350,1125,1146,1257,996,1101,1149,1392,1566,1584,1599]
["EVANSVILLE","IN","E-2",{"$f":"TRANSPOSE(F2810:F2810)","v":888}]
["EVANSVILLE","IN","E-3",{"$f":"TRANSPOSE(G2810:G2810)","v":888}]
["EVANSVILLE","IN","E-4",{"$f":"TRANSPOSE(H2810:H2810)","v":888}]
["EVANSVILLE","IN","E-5",{"$f":"TRANSPOSE(I2810:I2810)","v":984}]
["EVANSVILLE","IN","E-6",{"$f":"TRANSPOSE(J2810:J2810)","v":1104}]
["EVANSVILLE","IN","E-7",{"$f":"TRANSPOSE(K2810:K2810)","v":1122}]
["EVANSVILLE","IN","E-8",{"$f":"TRANSPOSE(L2810)","v":1140}]
["EVANSVILLE","IN","E-9",{"$f":"TRANSPOSE(M2810)","v":1218}]
["EVANSVILLE","IN","W-1",{"$f":"TRANSPOSE(N2810)","v":1104}]
["EVANSVILLE","IN","W-2",{"$f":"TRANSPOSE(O2810)","v":1128}]
["EVANSVILLE","IN","W-3",{"$f":"TRANSPOSE(P2810)","v":1149}]
["EVANSVILLE","IN","W-4",{"$f":"TRANSPOSE(Q2810)","v":1242}]
["EVANSVILLE","IN","W-5",{"$f":"TRANSPOSE(R2810)","v":1350}]
["EVANSVILLE","IN","O-1E",{"$f":"TRANSPOSE(S2810)","v":1125}]
["EVANSVILLE","IN","O-2E",{"$f":"TRANSPOSE(T2810)","v":1146}]
["EVANSVILLE","IN","O-3E",{"$f":"TRANSPOSE(U2810)","v":1257}]
["EVANSVILLE","IN","O-1",{"$f":"TRANSPOSE(V2810)","v":996}]
["EVANSVILLE","IN","O-2",{"$f":"TRANSPOSE(W2810)","v":1101}]
["EVANSVILLE","IN","O-3",{"$f":"TRANSPOSE(X2810)","v":1149}]
["EVANSVILLE","IN","O-4",{"$f":"TRANSPOSE(Y2810)","v":1392}]
["EVANSVILLE","IN","O-5",{"$f":"TRANSPOSE(Z2810)","v":1566}]
["EVANSVILLE","IN","O-6",{"$f":"TRANSPOSE(AA2810)","v":1584}]
["EVANSVILLE","IN","O-7",{"$f":"TRANSPOSE(AB2810)","v":1599}]
["TERRE HAUTE","IN","E-1",{"$f":"TRANSPOSE(E2834:E2834)","v":852},852,852,852,852,915,1086,1122,1161,1221,1086,1140,1188,1230,1284,1131,1182,1239,933,1083,1185,1302,1386,1398,1413]
["TERRE HAUTE","IN","E-2",{"$f":"TRANSPOSE(F2834:F2834)","v":852}]
["TERRE HAUTE","IN","E-3",{"$f":"TRANSPOSE(G2834:G2834)","v":852}]
["TERRE HAUTE","IN","E-4",{"$f":"TRANSPOSE(H2834:H2834)","v":852}]
["TERRE HAUTE","IN","E-5",{"$f":"TRANSPOSE(I2834:I2834)","v":915}]
["TERRE HAUTE","IN","E-6",{"$f":"TRANSPOSE(J2834:J2834)","v":1086}]
["TERRE HAUTE","IN","E-7",{"$f":"TRANSPOSE(K2834:K2834)","v":1122}]
["TERRE HAUTE","IN","E-8",{"$f":"TRANSPOSE(L2834)","v":1161}]
["TERRE HAUTE","IN","E-9",{"$f":"TRANSPOSE(M2834)","v":1221}]
["TERRE HAUTE","IN","W-1",{"$f":"TRANSPOSE(N2834)","v":1086}]
["TERRE HAUTE","IN","W-2",{"$f":"TRANSPOSE(O2834)","v":1140}]
["TERRE HAUTE","IN","W-3",{"$f":"TRANSPOSE(P2834)","v":1188}]
["TERRE HAUTE","IN","W-4",{"$f":"TRANSPOSE(Q2834)","v":1230}]
["TERRE HAUTE","IN","W-5",{"$f":"TRANSPOSE(R2834)","v":1284}]
["TERRE HAUTE","IN","O-1E",{"$f":"TRANSPOSE(S2834)","v":1131}]
["TERRE HAUTE","IN","O-2E",{"$f":"TRANSPOSE(T2834)","v":1182}]
["TERRE HAUTE","IN","O-3E",{"$f":"TRANSPOSE(U2834)","v":1239}]
["TERRE HAUTE","IN","O-1",{"$f":"TRANSPOSE(V2834)","v":933}]
["TERRE HAUTE","IN","O-2",{"$f":"TRANSPOSE(W2834)","v":1083}]
["TERRE HAUTE","IN","O-3",{"$f":"TRANSPOSE(X2834)","v":1185}]
["TERRE HAUTE","IN","O-4",{"$f":"TRANSPOSE(Y2834)","v":1302}]
["TERRE HAUTE","IN","O-5",{"$f":"TRANSPOSE(Z2834)","v":1386}]
["TERRE HAUTE","IN","O-6",{"$f":"TRANSPOSE(AA2834)","v":1398}]
["TERRE HAUTE","IN","O-7",{"$f":"TRANSPOSE(AB2834)","v":1413}]
["BLOOMINGTON","IN","E-1",{"$f":"TRANSPOSE(E2858:E2858)","v":894},894,894,894,894,999,1149,1251,1362,1470,1152,1296,1431,1485,1548,1275,1410,1494,1017,1146,1425,1572,1674,1692,1710]
["BLOOMINGTON","IN","E-2",{"$f":"TRANSPOSE(F2858:F2858)","v":894}]
["BLOOMINGTON","IN","E-3",{"$f":"TRANSPOSE(G2858:G2858)","v":894}]
["BLOOMINGTON","IN","E-4",{"$f":"TRANSPOSE(H2858:H2858)","v":894}]
["BLOOMINGTON","IN","E-5",{"$f":"TRANSPOSE(I2858:I2858)","v":999}]
["BLOOMINGTON","IN","E-6",{"$f":"TRANSPOSE(J2858:J2858)","v":1149}]
["BLOOMINGTON","IN","E-7",{"$f":"TRANSPOSE(K2858:K2858)","v":1251}]
["BLOOMINGTON","IN","E-8",{"$f":"TRANSPOSE(L2858)","v":1362}]
["BLOOMINGTON","IN","E-9",{"$f":"TRANSPOSE(M2858)","v":1470}]
["BLOOMINGTON","IN","W-1",{"$f":"TRANSPOSE(N2858)","v":1152}]
["BLOOMINGTON","IN","W-2",{"$f":"TRANSPOSE(O2858)","v":1296}]
["BLOOMINGTON","IN","W-3",{"$f":"TRANSPOSE(P2858)","v":1431}]
["BLOOMINGTON","IN","W-4",{"$f":"TRANSPOSE(Q2858)","v":1485}]
["BLOOMINGTON","IN","W-5",{"$f":"TRANSPOSE(R2858)","v":1548}]
["BLOOMINGTON","IN","O-1E",{"$f":"TRANSPOSE(S2858)","v":1275}]
["BLOOMINGTON","IN","O-2E",{"$f":"TRANSPOSE(T2858)","v":1410}]
["BLOOMINGTON","IN","O-3E",{"$f":"TRANSPOSE(U2858)","v":1494}]
["BLOOMINGTON","IN","O-1",{"$f":"TRANSPOSE(V2858)","v":1017}]
["BLOOMINGTON","IN","O-2",{"$f":"TRANSPOSE(W2858)","v":1146}]
["BLOOMINGTON","IN","O-3",{"$f":"TRANSPOSE(X2858)","v":1425}]
["BLOOMINGTON","IN","O-4",{"$f":"TRANSPOSE(Y2858)","v":1572}]
["BLOOMINGTON","IN","O-5",{"$f":"TRANSPOSE(Z2858)","v":1674}]
["BLOOMINGTON","IN","O-6",{"$f":"TRANSPOSE(AA2858)","v":1692}]
["BLOOMINGTON","IN","O-7",{"$f":"TRANSPOSE(AB2858)","v":1710}]
["FORT RILEY","KS","E-1",{"$f":"TRANSPOSE(E2882:E2882)","v":1023},1023,1023,1023,1023,1113,1410,1416,1425,1494,1410,1419,1431,1518,1620,1419,1428,1533,1146,1404,1431,1659,1824,1842,1860]
["FORT RILEY","KS","E-2",{"$f":"TRANSPOSE(F2882:F2882)","v":1023}]
["FORT RILEY","KS","E-3",{"$f":"TRANSPOSE(G2882:G2882)","v":1023}]
["FORT RILEY","KS","E-4",{"$f":"TRANSPOSE(H2882:H2882)","v":1023}]
["FORT RILEY","KS","E-5",{"$f":"TRANSPOSE(I2882:I2882)","v":1113}]
["FORT RILEY","KS","E-6",{"$f":"TRANSPOSE(J2882:J2882)","v":1410}]
["FORT RILEY","KS","E-7",{"$f":"TRANSPOSE(K2882:K2882)","v":1416}]
["FORT RILEY","KS","E-8",{"$f":"TRANSPOSE(L2882)","v":1425}]
["FORT RILEY","KS","E-9",{"$f":"TRANSPOSE(M2882)","v":1494}]
["FORT RILEY","KS","W-1",{"$f":"TRANSPOSE(N2882)","v":1410}]
["FORT RILEY","KS","W-2",{"$f":"TRANSPOSE(O2882)","v":1419}]
["FORT RILEY","KS","W-3",{"$f":"TRANSPOSE(P2882)","v":1431}]
["FORT RILEY","KS","W-4",{"$f":"TRANSPOSE(Q2882)","v":1518}]
["FORT RILEY","KS","W-5",{"$f":"TRANSPOSE(R2882)","v":1620}]
["FORT RILEY","KS","O-1E",{"$f":"TRANSPOSE(S2882)","v":1419}]
["FORT RILEY","KS","O-2E",{"$f":"TRANSPOSE(T2882)","v":1428}]
["FORT RILEY","KS","O-3E",{"$f":"TRANSPOSE(U2882)","v":1533}]
["FORT RILEY","KS","O-1",{"$f":"TRANSPOSE(V2882)","v":1146}]
["FORT RILEY","KS","O-2",{"$f":"TRANSPOSE(W2882)","v":1404}]
["FORT RILEY","KS","O-3",{"$f":"TRANSPOSE(X2882)","v":1431}]
["FORT RILEY","KS","O-4",{"$f":"TRANSPOSE(Y2882)","v":1659}]
["FORT RILEY","KS","O-5",{"$f":"TRANSPOSE(Z2882)","v":1824}]
["FORT RILEY","KS","O-6",{"$f":"TRANSPOSE(AA2882)","v":1842}]
["FORT RILEY","KS","O-7",{"$f":"TRANSPOSE(AB2882)","v":1860}]
["WICHITA/MCCONNELL AFB","KS","E-1",{"$f":"TRANSPOSE(E2906:E2906)","v":891},891,891,891,891,1023,1206,1302,1404,1521,1209,1344,1470,1542,1626,1323,1452,1554,1044,1203,1464,1659,1797,1815,1833]
["WICHITA/MCCONNELL AFB","KS","E-2",{"$f":"TRANSPOSE(F2906:F2906)","v":891}]
["WICHITA/MCCONNELL AFB","KS","E-3",{"$f":"TRANSPOSE(G2906:G2906)","v":891}]
["WICHITA/MCCONNELL AFB","KS","E-4",{"$f":"TRANSPOSE(H2906:H2906)","v":891}]
["WICHITA/MCCONNELL AFB","KS","E-5",{"$f":"TRANSPOSE(I2906:I2906)","v":1023}]
["WICHITA/MCCONNELL AFB","KS","E-6",{"$f":"TRANSPOSE(J2906:J2906)","v":1206}]
["WICHITA/MCCONNELL AFB","KS","E-7",{"$f":"TRANSPOSE(K2906:K2906)","v":1302}]
["WICHITA/MCCONNELL AFB","KS","E-8",{"$f":"TRANSPOSE(L2906)","v":1404}]
["WICHITA/MCCONNELL AFB","KS","E-9",{"$f":"TRANSPOSE(M2906)","v":1521}]
["WICHITA/MCCONNELL AFB","KS","W-1",{"$f":"TRANSPOSE(N2906)","v":1209}]
["WICHITA/MCCONNELL AFB","KS","W-2",{"$f":"TRANSPOSE(O2906)","v":1344}]
["WICHITA/MCCONNELL AFB","KS","W-3",{"$f":"TRANSPOSE(P2906)","v":1470}]
["WICHITA/MCCONNELL AFB","KS","W-4",{"$f":"TRANSPOSE(Q2906)","v":1542}]
["WICHITA/MCCONNELL AFB","KS","W-5",{"$f":"TRANSPOSE(R2906)","v":1626}]
["WICHITA/MCCONNELL AFB","KS","O-1E",{"$f":"TRANSPOSE(S2906)","v":1323}]
["WICHITA/MCCONNELL AFB","KS","O-2E",{"$f":"TRANSPOSE(T2906)","v":1452}]
["WICHITA/MCCONNELL AFB","KS","O-3E",{"$f":"TRANSPOSE(U2906)","v":1554}]
["WICHITA/MCCONNELL AFB","KS","O-1",{"$f":"TRANSPOSE(V2906)","v":1044}]
["WICHITA/MCCONNELL AFB","KS","O-2",{"$f":"TRANSPOSE(W2906)","v":1203}]
["WICHITA/MCCONNELL AFB","KS","O-3",{"$f":"TRANSPOSE(X2906)","v":1464}]
["WICHITA/MCCONNELL AFB","KS","O-4",{"$f":"TRANSPOSE(Y2906)","v":1659}]
["WICHITA/MCCONNELL AFB","KS","O-5",{"$f":"TRANSPOSE(Z2906)","v":1797}]
["WICHITA/MCCONNELL AFB","KS","O-6",{"$f":"TRANSPOSE(AA2906)","v":1815}]
["WICHITA/MCCONNELL AFB","KS","O-7",{"$f":"TRANSPOSE(AB2906)","v":1833}]
["FORT LEAVENWORTH","KS","E-1",{"$f":"TRANSPOSE(E2930:E2930)","v":882},882,882,882,882,975,1224,1305,1395,1524,1227,1344,1452,1551,1665,1326,1437,1569,1002,1218,1449,1710,1896,1914,1935]
["FORT LEAVENWORTH","KS","E-2",{"$f":"TRANSPOSE(F2930:F2930)","v":882}]
["FORT LEAVENWORTH","KS","E-3",{"$f":"TRANSPOSE(G2930:G2930)","v":882}]
["FORT LEAVENWORTH","KS","E-4",{"$f":"TRANSPOSE(H2930:H2930)","v":882}]
["FORT LEAVENWORTH","KS","E-5",{"$f":"TRANSPOSE(I2930:I2930)","v":975}]
["FORT LEAVENWORTH","KS","E-6",{"$f":"TRANSPOSE(J2930:J2930)","v":1224}]
["FORT LEAVENWORTH","KS","E-7",{"$f":"TRANSPOSE(K2930:K2930)","v":1305}]
["FORT LEAVENWORTH","KS","E-8",{"$f":"TRANSPOSE(L2930)","v":1395}]
["FORT LEAVENWORTH","KS","E-9",{"$f":"TRANSPOSE(M2930)","v":1524}]
["FORT LEAVENWORTH","KS","W-1",{"$f":"TRANSPOSE(N2930)","v":1227}]
["FORT LEAVENWORTH","KS","W-2",{"$f":"TRANSPOSE(O2930)","v":1344}]
["FORT LEAVENWORTH","KS","W-3",{"$f":"TRANSPOSE(P2930)","v":1452}]
["FORT LEAVENWORTH","KS","W-4",{"$f":"TRANSPOSE(Q2930)","v":1551}]
["FORT LEAVENWORTH","KS","W-5",{"$f":"TRANSPOSE(R2930)","v":1665}]
["FORT LEAVENWORTH","KS","O-1E",{"$f":"TRANSPOSE(S2930)","v":1326}]
["FORT LEAVENWORTH","KS","O-2E",{"$f":"TRANSPOSE(T2930)","v":1437}]
["FORT LEAVENWORTH","KS","O-3E",{"$f":"TRANSPOSE(U2930)","v":1569}]
["FORT LEAVENWORTH","KS","O-1",{"$f":"TRANSPOSE(V2930)","v":1002}]
["FORT LEAVENWORTH","KS","O-2",{"$f":"TRANSPOSE(W2930)","v":1218}]
["FORT LEAVENWORTH","KS","O-3",{"$f":"TRANSPOSE(X2930)","v":1449}]
["FORT LEAVENWORTH","KS","O-4",{"$f":"TRANSPOSE(Y2930)","v":1710}]
["FORT LEAVENWORTH","KS","O-5",{"$f":"TRANSPOSE(Z2930)","v":1896}]
["FORT LEAVENWORTH","KS","O-6",{"$f":"TRANSPOSE(AA2930)","v":1914}]
["FORT LEAVENWORTH","KS","O-7",{"$f":"TRANSPOSE(AB2930)","v":1935}]
["LAWRENCE","KS","E-1",{"$f":"TRANSPOSE(E2954:E2954)","v":957},957,957,957,957,1017,1200,1284,1374,1488,1203,1320,1431,1509,1599,1302,1416,1521,1038,1197,1428,1635,1779,1797,1815]
["LAWRENCE","KS","E-2",{"$f":"TRANSPOSE(F2954:F2954)","v":957}]
["LAWRENCE","KS","E-3",{"$f":"TRANSPOSE(G2954:G2954)","v":957}]
["LAWRENCE","KS","E-4",{"$f":"TRANSPOSE(H2954:H2954)","v":957}]
["LAWRENCE","KS","E-5",{"$f":"TRANSPOSE(I2954:I2954)","v":1017}]
["LAWRENCE","KS","E-6",{"$f":"TRANSPOSE(J2954:J2954)","v":1200}]
["LAWRENCE","KS","E-7",{"$f":"TRANSPOSE(K2954:K2954)","v":1284}]
["LAWRENCE","KS","E-8",{"$f":"TRANSPOSE(L2954)","v":1374}]
["LAWRENCE","KS","E-9",{"$f":"TRANSPOSE(M2954)","v":1488}]
["LAWRENCE","KS","W-1",{"$f":"TRANSPOSE(N2954)","v":1203}]
["LAWRENCE","KS","W-2",{"$f":"TRANSPOSE(O2954)","v":1320}]
["LAWRENCE","KS","W-3",{"$f":"TRANSPOSE(P2954)","v":1431}]
["LAWRENCE","KS","W-4",{"$f":"TRANSPOSE(Q2954)","v":1509}]
["LAWRENCE","KS","W-5",{"$f":"TRANSPOSE(R2954)","v":1599}]
["LAWRENCE","KS","O-1E",{"$f":"TRANSPOSE(S2954)","v":1302}]
["LAWRENCE","KS","O-2E",{"$f":"TRANSPOSE(T2954)","v":1416}]
["LAWRENCE","KS","O-3E",{"$f":"TRANSPOSE(U2954)","v":1521}]
["LAWRENCE","KS","O-1",{"$f":"TRANSPOSE(V2954)","v":1038}]
["LAWRENCE","KS","O-2",{"$f":"TRANSPOSE(W2954)","v":1197}]
["LAWRENCE","KS","O-3",{"$f":"TRANSPOSE(X2954)","v":1428}]
["LAWRENCE","KS","O-4",{"$f":"TRANSPOSE(Y2954)","v":1635}]
["LAWRENCE","KS","O-5",{"$f":"TRANSPOSE(Z2954)","v":1779}]
["LAWRENCE","KS","O-6",{"$f":"TRANSPOSE(AA2954)","v":1797}]
["LAWRENCE","KS","O-7",{"$f":"TRANSPOSE(AB2954)","v":1815}]
["TOPEKA","KS","E-1",{"$f":"TRANSPOSE(E2978:E2978)","v":912},912,912,912,912,1026,1251,1284,1320,1398,1251,1299,1344,1419,1512,1290,1335,1434,1053,1245,1341,1548,1695,1710,1728]
["TOPEKA","KS","E-2",{"$f":"TRANSPOSE(F2978:F2978)","v":912}]
["TOPEKA","KS","E-3",{"$f":"TRANSPOSE(G2978:G2978)","v":912}]
["TOPEKA","KS","E-4",{"$f":"TRANSPOSE(H2978:H2978)","v":912}]
["TOPEKA","KS","E-5",{"$f":"TRANSPOSE(I2978:I2978)","v":1026}]
["TOPEKA","KS","E-6",{"$f":"TRANSPOSE(J2978:J2978)","v":1251}]
["TOPEKA","KS","E-7",{"$f":"TRANSPOSE(K2978:K2978)","v":1284}]
["TOPEKA","KS","E-8",{"$f":"TRANSPOSE(L2978)","v":1320}]
["TOPEKA","KS","E-9",{"$f":"TRANSPOSE(M2978)","v":1398}]
["TOPEKA","KS","W-1",{"$f":"TRANSPOSE(N2978)","v":1251}]
["TOPEKA","KS","W-2",{"$f":"TRANSPOSE(O2978)","v":1299}]
["TOPEKA","KS","W-3",{"$f":"TRANSPOSE(P2978)","v":1344}]
["TOPEKA","KS","W-4",{"$f":"TRANSPOSE(Q2978)","v":1419}]
["TOPEKA","KS","W-5",{"$f":"TRANSPOSE(R2978)","v":1512}]
["TOPEKA","KS","O-1E",{"$f":"TRANSPOSE(S2978)","v":1290}]
["TOPEKA","KS","O-2E",{"$f":"TRANSPOSE(T2978)","v":1335}]
["TOPEKA","KS","O-3E",{"$f":"TRANSPOSE(U2978)","v":1434}]
["TOPEKA","KS","O-1",{"$f":"TRANSPOSE(V2978)","v":1053}]
["TOPEKA","KS","O-2",{"$f":"TRANSPOSE(W2978)","v":1245}]
["TOPEKA","KS","O-3",{"$f":"TRANSPOSE(X2978)","v":1341}]
["TOPEKA","KS","O-4",{"$f":"TRANSPOSE(Y2978)","v":1548}]
["TOPEKA","KS","O-5",{"$f":"TRANSPOSE(Z2978)","v":1695}]
["TOPEKA","KS","O-6",{"$f":"TRANSPOSE(AA2978)","v":1710}]
["TOPEKA","KS","O-7",{"$f":"TRANSPOSE(AB2978)","v":1728}]
["SALINA","KS","E-1",{"$f":"TRANSPOSE(E3002:E3002)","v":783},783,783,783,783,849,993,1047,1104,1167,993,1071,1143,1179,1221,1059,1131,1185,864,990,1140,1236,1305,1317,1332]
["SALINA","KS","E-2",{"$f":"TRANSPOSE(F3002:F3002)","v":783}]
["SALINA","KS","E-3",{"$f":"TRANSPOSE(G3002:G3002)","v":783}]
["SALINA","KS","E-4",{"$f":"TRANSPOSE(H3002:H3002)","v":783}]
["SALINA","KS","E-5",{"$f":"TRANSPOSE(I3002:I3002)","v":849}]
["SALINA","KS","E-6",{"$f":"TRANSPOSE(J3002:J3002)","v":993}]
["SALINA","KS","E-7",{"$f":"TRANSPOSE(K3002:K3002)","v":1047}]
["SALINA","KS","E-8",{"$f":"TRANSPOSE(L3002)","v":1104}]
["SALINA","KS","E-9",{"$f":"TRANSPOSE(M3002)","v":1167}]
["SALINA","KS","W-1",{"$f":"TRANSPOSE(N3002)","v":993}]
["SALINA","KS","W-2",{"$f":"TRANSPOSE(O3002)","v":1071}]
["SALINA","KS","W-3",{"$f":"TRANSPOSE(P3002)","v":1143}]
["SALINA","KS","W-4",{"$f":"TRANSPOSE(Q3002)","v":1179}]
["SALINA","KS","W-5",{"$f":"TRANSPOSE(R3002)","v":1221}]
["SALINA","KS","O-1E",{"$f":"TRANSPOSE(S3002)","v":1059}]
["SALINA","KS","O-2E",{"$f":"TRANSPOSE(T3002)","v":1131}]
["SALINA","KS","O-3E",{"$f":"TRANSPOSE(U3002)","v":1185}]
["SALINA","KS","O-1",{"$f":"TRANSPOSE(V3002)","v":864}]
["SALINA","KS","O-2",{"$f":"TRANSPOSE(W3002)","v":990}]
["SALINA","KS","O-3",{"$f":"TRANSPOSE(X3002)","v":1140}]
["SALINA","KS","O-4",{"$f":"TRANSPOSE(Y3002)","v":1236}]
["SALINA","KS","O-5",{"$f":"TRANSPOSE(Z3002)","v":1305}]
["SALINA","KS","O-6",{"$f":"TRANSPOSE(AA3002)","v":1317}]
["SALINA","KS","O-7",{"$f":"TRANSPOSE(AB3002)","v":1332}]
["FORT CAMPBELL","KY","E-1",{"$f":"TRANSPOSE(E3026:E3026)","v":864},864,864,864,864,888,1143,1257,1380,1485,1146,1308,1461,1494,1533,1281,1440,1500,915,1137,1455,1548,1608,1626,1641]
["FORT CAMPBELL","KY","E-2",{"$f":"TRANSPOSE(F3026:F3026)","v":864}]
["FORT CAMPBELL","KY","E-3",{"$f":"TRANSPOSE(G3026:G3026)","v":864}]
["FORT CAMPBELL","KY","E-4",{"$f":"TRANSPOSE(H3026:H3026)","v":864}]
["FORT CAMPBELL","KY","E-5",{"$f":"TRANSPOSE(I3026:I3026)","v":888}]
["FORT CAMPBELL","KY","E-6",{"$f":"TRANSPOSE(J3026:J3026)","v":1143}]
["FORT CAMPBELL","KY","E-7",{"$f":"TRANSPOSE(K3026:K3026)","v":1257}]
["FORT CAMPBELL","KY","E-8",{"$f":"TRANSPOSE(L3026)","v":1380}]
["FORT CAMPBELL","KY","E-9",{"$f":"TRANSPOSE(M3026)","v":1485}]
["FORT CAMPBELL","KY","W-1",{"$f":"TRANSPOSE(N3026)","v":1146}]
["FORT CAMPBELL","KY","W-2",{"$f":"TRANSPOSE(O3026)","v":1308}]
["FORT CAMPBELL","KY","W-3",{"$f":"TRANSPOSE(P3026)","v":1461}]
["FORT CAMPBELL","KY","W-4",{"$f":"TRANSPOSE(Q3026)","v":1494}]
["FORT CAMPBELL","KY","W-5",{"$f":"TRANSPOSE(R3026)","v":1533}]
["FORT CAMPBELL","KY","O-1E",{"$f":"TRANSPOSE(S3026)","v":1281}]
["FORT CAMPBELL","KY","O-2E",{"$f":"TRANSPOSE(T3026)","v":1440}]
["FORT CAMPBELL","KY","O-3E",{"$f":"TRANSPOSE(U3026)","v":1500}]
["FORT CAMPBELL","KY","O-1",{"$f":"TRANSPOSE(V3026)","v":915}]
["FORT CAMPBELL","KY","O-2",{"$f":"TRANSPOSE(W3026)","v":1137}]
["FORT CAMPBELL","KY","O-3",{"$f":"TRANSPOSE(X3026)","v":1455}]
["FORT CAMPBELL","KY","O-4",{"$f":"TRANSPOSE(Y3026)","v":1548}]
["FORT CAMPBELL","KY","O-5",{"$f":"TRANSPOSE(Z3026)","v":1608}]
["FORT CAMPBELL","KY","O-6",{"$f":"TRANSPOSE(AA3026)","v":1626}]
["FORT CAMPBELL","KY","O-7",{"$f":"TRANSPOSE(AB3026)","v":1641}]
["LEXINGTON","KY","E-1",{"$f":"TRANSPOSE(E3050:E3050)","v":933},933,933,933,933,1047,1182,1224,1269,1347,1185,1242,1299,1365,1443,1233,1290,1377,1062,1179,1296,1476,1602,1617,1635]
["LEXINGTON","KY","E-2",{"$f":"TRANSPOSE(F3050:F3050)","v":933}]
["LEXINGTON","KY","E-3",{"$f":"TRANSPOSE(G3050:G3050)","v":933}]
["LEXINGTON","KY","E-4",{"$f":"TRANSPOSE(H3050:H3050)","v":933}]
["LEXINGTON","KY","E-5",{"$f":"TRANSPOSE(I3050:I3050)","v":1047}]
["LEXINGTON","KY","E-6",{"$f":"TRANSPOSE(J3050:J3050)","v":1182}]
["LEXINGTON","KY","E-7",{"$f":"TRANSPOSE(K3050:K3050)","v":1224}]
["LEXINGTON","KY","E-8",{"$f":"TRANSPOSE(L3050)","v":1269}]
["LEXINGTON","KY","E-9",{"$f":"TRANSPOSE(M3050)","v":1347}]
["LEXINGTON","KY","W-1",{"$f":"TRANSPOSE(N3050)","v":1185}]
["LEXINGTON","KY","W-2",{"$f":"TRANSPOSE(O3050)","v":1242}]
["LEXINGTON","KY","W-3",{"$f":"TRANSPOSE(P3050)","v":1299}]
["LEXINGTON","KY","W-4",{"$f":"TRANSPOSE(Q3050)","v":1365}]
["LEXINGTON","KY","W-5",{"$f":"TRANSPOSE(R3050)","v":1443}]
["LEXINGTON","KY","O-1E",{"$f":"TRANSPOSE(S3050)","v":1233}]
["LEXINGTON","KY","O-2E",{"$f":"TRANSPOSE(T3050)","v":1290}]
["LEXINGTON","KY","O-3E",{"$f":"TRANSPOSE(U3050)","v":1377}]
["LEXINGTON","KY","O-1",{"$f":"TRANSPOSE(V3050)","v":1062}]
["LEXINGTON","KY","O-2",{"$f":"TRANSPOSE(W3050)","v":1179}]
["LEXINGTON","KY","O-3",{"$f":"TRANSPOSE(X3050)","v":1296}]
["LEXINGTON","KY","O-4",{"$f":"TRANSPOSE(Y3050)","v":1476}]
["LEXINGTON","KY","O-5",{"$f":"TRANSPOSE(Z3050)","v":1602}]
["LEXINGTON","KY","O-6",{"$f":"TRANSPOSE(AA3050)","v":1617}]
["LEXINGTON","KY","O-7",{"$f":"TRANSPOSE(AB3050)","v":1635}]
["LOUISVILLE","KY","E-1",{"$f":"TRANSPOSE(E3074:E3074)","v":1098},1098,1098,1098,1098,1191,1320,1461,1617,1776,1323,1524,1713,1800,1902,1494,1686,1815,1206,1317,1707,1941,2106,2127,2148]
["LOUISVILLE","KY","E-2",{"$f":"TRANSPOSE(F3074:F3074)","v":1098}]
["LOUISVILLE","KY","E-3",{"$f":"TRANSPOSE(G3074:G3074)","v":1098}]
["LOUISVILLE","KY","E-4",{"$f":"TRANSPOSE(H3074:H3074)","v":1098}]
["LOUISVILLE","KY","E-5",{"$f":"TRANSPOSE(I3074:I3074)","v":1191}]
["LOUISVILLE","KY","E-6",{"$f":"TRANSPOSE(J3074:J3074)","v":1320}]
["LOUISVILLE","KY","E-7",{"$f":"TRANSPOSE(K3074:K3074)","v":1461}]
["LOUISVILLE","KY","E-8",{"$f":"TRANSPOSE(L3074)","v":1617}]
["LOUISVILLE","KY","E-9",{"$f":"TRANSPOSE(M3074)","v":1776}]
["LOUISVILLE","KY","W-1",{"$f":"TRANSPOSE(N3074)","v":1323}]
["LOUISVILLE","KY","W-2",{"$f":"TRANSPOSE(O3074)","v":1524}]
["LOUISVILLE","KY","W-3",{"$f":"TRANSPOSE(P3074)","v":1713}]
["LOUISVILLE","KY","W-4",{"$f":"TRANSPOSE(Q3074)","v":1800}]
["LOUISVILLE","KY","W-5",{"$f":"TRANSPOSE(R3074)","v":1902}]
["LOUISVILLE","KY","O-1E",{"$f":"TRANSPOSE(S3074)","v":1494}]
["LOUISVILLE","KY","O-2E",{"$f":"TRANSPOSE(T3074)","v":1686}]
["LOUISVILLE","KY","O-3E",{"$f":"TRANSPOSE(U3074)","v":1815}]
["LOUISVILLE","KY","O-1",{"$f":"TRANSPOSE(V3074)","v":1206}]
["LOUISVILLE","KY","O-2",{"$f":"TRANSPOSE(W3074)","v":1317}]
["LOUISVILLE","KY","O-3",{"$f":"TRANSPOSE(X3074)","v":1707}]
["LOUISVILLE","KY","O-4",{"$f":"TRANSPOSE(Y3074)","v":1941}]
["LOUISVILLE","KY","O-5",{"$f":"TRANSPOSE(Z3074)","v":2106}]
["LOUISVILLE","KY","O-6",{"$f":"TRANSPOSE(AA3074)","v":2127}]
["LOUISVILLE","KY","O-7",{"$f":"TRANSPOSE(AB3074)","v":2148}]
["FORT KNOX","KY","E-1",{"$f":"TRANSPOSE(E3098:E3098)","v":816},816,816,816,816,930,1269,1305,1344,1419,1272,1323,1371,1437,1515,1314,1362,1449,966,1263,1368,1545,1674,1689,1707]
["FORT KNOX","KY","E-2",{"$f":"TRANSPOSE(F3098:F3098)","v":816}]
["FORT KNOX","KY","E-3",{"$f":"TRANSPOSE(G3098:G3098)","v":816}]
["FORT KNOX","KY","E-4",{"$f":"TRANSPOSE(H3098:H3098)","v":816}]
["FORT KNOX","KY","E-5",{"$f":"TRANSPOSE(I3098:I3098)","v":930}]
["FORT KNOX","KY","E-6",{"$f":"TRANSPOSE(J3098:J3098)","v":1269}]
["FORT KNOX","KY","E-7",{"$f":"TRANSPOSE(K3098:K3098)","v":1305}]
["FORT KNOX","KY","E-8",{"$f":"TRANSPOSE(L3098)","v":1344}]
["FORT KNOX","KY","E-9",{"$f":"TRANSPOSE(M3098)","v":1419}]
["FORT KNOX","KY","W-1",{"$f":"TRANSPOSE(N3098)","v":1272}]
["FORT KNOX","KY","W-2",{"$f":"TRANSPOSE(O3098)","v":1323}]
["FORT KNOX","KY","W-3",{"$f":"TRANSPOSE(P3098)","v":1371}]
["FORT KNOX","KY","W-4",{"$f":"TRANSPOSE(Q3098)","v":1437}]
["FORT KNOX","KY","W-5",{"$f":"TRANSPOSE(R3098)","v":1515}]
["FORT KNOX","KY","O-1E",{"$f":"TRANSPOSE(S3098)","v":1314}]
["FORT KNOX","KY","O-2E",{"$f":"TRANSPOSE(T3098)","v":1362}]
["FORT KNOX","KY","O-3E",{"$f":"TRANSPOSE(U3098)","v":1449}]
["FORT KNOX","KY","O-1",{"$f":"TRANSPOSE(V3098)","v":966}]
["FORT KNOX","KY","O-2",{"$f":"TRANSPOSE(W3098)","v":1263}]
["FORT KNOX","KY","O-3",{"$f":"TRANSPOSE(X3098)","v":1368}]
["FORT KNOX","KY","O-4",{"$f":"TRANSPOSE(Y3098)","v":1545}]
["FORT KNOX","KY","O-5",{"$f":"TRANSPOSE(Z3098)","v":1674}]
["FORT KNOX","KY","O-6",{"$f":"TRANSPOSE(AA3098)","v":1689}]
["FORT KNOX","KY","O-7",{"$f":"TRANSPOSE(AB3098)","v":1707}]
["OWENSBORO","KY","E-1",{"$f":"TRANSPOSE(E3122:E3122)","v":786},786,786,786,786,840,975,1047,1125,1230,978,1080,1176,1248,1335,1062,1161,1263,855,972,1173,1368,1506,1521,1536]
["OWENSBORO","KY","E-2",{"$f":"TRANSPOSE(F3122:F3122)","v":786}]
["OWENSBORO","KY","E-3",{"$f":"TRANSPOSE(G3122:G3122)","v":786}]
["OWENSBORO","KY","E-4",{"$f":"TRANSPOSE(H3122:H3122)","v":786}]
["OWENSBORO","KY","E-5",{"$f":"TRANSPOSE(I3122:I3122)","v":840}]
["OWENSBORO","KY","E-6",{"$f":"TRANSPOSE(J3122:J3122)","v":975}]
["OWENSBORO","KY","E-7",{"$f":"TRANSPOSE(K3122:K3122)","v":1047}]
["OWENSBORO","KY","E-8",{"$f":"TRANSPOSE(L3122)","v":1125}]
["OWENSBORO","KY","E-9",{"$f":"TRANSPOSE(M3122)","v":1230}]
["OWENSBORO","KY","W-1",{"$f":"TRANSPOSE(N3122)","v":978}]
["OWENSBORO","KY","W-2",{"$f":"TRANSPOSE(O3122)","v":1080}]
["OWENSBORO","KY","W-3",{"$f":"TRANSPOSE(P3122)","v":1176}]
["OWENSBORO","KY","W-4",{"$f":"TRANSPOSE(Q3122)","v":1248}]
["OWENSBORO","KY","W-5",{"$f":"TRANSPOSE(R3122)","v":1335}]
["OWENSBORO","KY","O-1E",{"$f":"TRANSPOSE(S3122)","v":1062}]
["OWENSBORO","KY","O-2E",{"$f":"TRANSPOSE(T3122)","v":1161}]
["OWENSBORO","KY","O-3E",{"$f":"TRANSPOSE(U3122)","v":1263}]
["OWENSBORO","KY","O-1",{"$f":"TRANSPOSE(V3122)","v":855}]
["OWENSBORO","KY","O-2",{"$f":"TRANSPOSE(W3122)","v":972}]
["OWENSBORO","KY","O-3",{"$f":"TRANSPOSE(X3122)","v":1173}]
["OWENSBORO","KY","O-4",{"$f":"TRANSPOSE(Y3122)","v":1368}]
["OWENSBORO","KY","O-5",{"$f":"TRANSPOSE(Z3122)","v":1506}]
["OWENSBORO","KY","O-6",{"$f":"TRANSPOSE(AA3122)","v":1521}]
["OWENSBORO","KY","O-7",{"$f":"TRANSPOSE(AB3122)","v":1536}]
["FRANKFORT","KY","E-1",{"$f":"TRANSPOSE(E3146:E3146)","v":792},792,792,792,792,852,930,1029,1140,1254,933,1074,1209,1272,1347,1053,1188,1284,861,927,1203,1374,1494,1509,1524]
["FRANKFORT","KY","E-2",{"$f":"TRANSPOSE(F3146:F3146)","v":792}]
["FRANKFORT","KY","E-3",{"$f":"TRANSPOSE(G3146:G3146)","v":792}]
["FRANKFORT","KY","E-4",{"$f":"TRANSPOSE(H3146:H3146)","v":792}]
["FRANKFORT","KY","E-5",{"$f":"TRANSPOSE(I3146:I3146)","v":852}]
["FRANKFORT","KY","E-6",{"$f":"TRANSPOSE(J3146:J3146)","v":930}]
["FRANKFORT","KY","E-7",{"$f":"TRANSPOSE(K3146:K3146)","v":1029}]
["FRANKFORT","KY","E-8",{"$f":"TRANSPOSE(L3146)","v":1140}]
["FRANKFORT","KY","E-9",{"$f":"TRANSPOSE(M3146)","v":1254}]
["FRANKFORT","KY","W-1",{"$f":"TRANSPOSE(N3146)","v":933}]
["FRANKFORT","KY","W-2",{"$f":"TRANSPOSE(O3146)","v":1074}]
["FRANKFORT","KY","W-3",{"$f":"TRANSPOSE(P3146)","v":1209}]
["FRANKFORT","KY","W-4",{"$f":"TRANSPOSE(Q3146)","v":1272}]
["FRANKFORT","KY","W-5",{"$f":"TRANSPOSE(R3146)","v":1347}]
["FRANKFORT","KY","O-1E",{"$f":"TRANSPOSE(S3146)","v":1053}]
["FRANKFORT","KY","O-2E",{"$f":"TRANSPOSE(T3146)","v":1188}]
["FRANKFORT","KY","O-3E",{"$f":"TRANSPOSE(U3146)","v":1284}]
["FRANKFORT","KY","O-1",{"$f":"TRANSPOSE(V3146)","v":861}]
["FRANKFORT","KY","O-2",{"$f":"TRANSPOSE(W3146)","v":927}]
["FRANKFORT","KY","O-3",{"$f":"TRANSPOSE(X3146)","v":1203}]
["FRANKFORT","KY","O-4",{"$f":"TRANSPOSE(Y3146)","v":1374}]
["FRANKFORT","KY","O-5",{"$f":"TRANSPOSE(Z3146)","v":1494}]
["FRANKFORT","KY","O-6",{"$f":"TRANSPOSE(AA3146)","v":1509}]
["FRANKFORT","KY","O-7",{"$f":"TRANSPOSE(AB3146)","v":1524}]
["BOWLING GREEN","KY","E-1",{"$f":"TRANSPOSE(E3170:E3170)","v":837},837,837,837,837,885,987,1071,1164,1311,990,1110,1221,1347,1494,1089,1206,1368,894,984,1215,1551,1788,1806,1824]
["BOWLING GREEN","KY","E-2",{"$f":"TRANSPOSE(F3170:F3170)","v":837}]
["BOWLING GREEN","KY","E-3",{"$f":"TRANSPOSE(G3170:G3170)","v":837}]
["BOWLING GREEN","KY","E-4",{"$f":"TRANSPOSE(H3170:H3170)","v":837}]
["BOWLING GREEN","KY","E-5",{"$f":"TRANSPOSE(I3170:I3170)","v":885}]
["BOWLING GREEN","KY","E-6",{"$f":"TRANSPOSE(J3170:J3170)","v":987}]
["BOWLING GREEN","KY","E-7",{"$f":"TRANSPOSE(K3170:K3170)","v":1071}]
["BOWLING GREEN","KY","E-8",{"$f":"TRANSPOSE(L3170)","v":1164}]
["BOWLING GREEN","KY","E-9",{"$f":"TRANSPOSE(M3170)","v":1311}]
["BOWLING GREEN","KY","W-1",{"$f":"TRANSPOSE(N3170)","v":990}]
["BOWLING GREEN","KY","W-2",{"$f":"TRANSPOSE(O3170)","v":1110}]
["BOWLING GREEN","KY","W-3",{"$f":"TRANSPOSE(P3170)","v":1221}]
["BOWLING GREEN","KY","W-4",{"$f":"TRANSPOSE(Q3170)","v":1347}]
["BOWLING GREEN","KY","W-5",{"$f":"TRANSPOSE(R3170)","v":1494}]
["BOWLING GREEN","KY","O-1E",{"$f":"TRANSPOSE(S3170)","v":1089}]
["BOWLING GREEN","KY","O-2E",{"$f":"TRANSPOSE(T3170)","v":1206}]
["BOWLING GREEN","KY","O-3E",{"$f":"TRANSPOSE(U3170)","v":1368}]
["BOWLING GREEN","KY","O-1",{"$f":"TRANSPOSE(V3170)","v":894}]
["BOWLING GREEN","KY","O-2",{"$f":"TRANSPOSE(W3170)","v":984}]
["BOWLING GREEN","KY","O-3",{"$f":"TRANSPOSE(X3170)","v":1215}]
["BOWLING GREEN","KY","O-4",{"$f":"TRANSPOSE(Y3170)","v":1551}]
["BOWLING GREEN","KY","O-5",{"$f":"TRANSPOSE(Z3170)","v":1788}]
["BOWLING GREEN","KY","O-6",{"$f":"TRANSPOSE(AA3170)","v":1806}]
["BOWLING GREEN","KY","O-7",{"$f":"TRANSPOSE(AB3170)","v":1824}]
["PADUCAH","KY","E-1",{"$f":"TRANSPOSE(E3194:E3194)","v":756},756,756,756,756,822,1071,1131,1197,1281,1074,1158,1239,1293,1359,1146,1227,1305,849,1068,1236,1383,1488,1503,1518]
["PADUCAH","KY","E-2",{"$f":"TRANSPOSE(F3194:F3194)","v":756}]
["PADUCAH","KY","E-3",{"$f":"TRANSPOSE(G3194:G3194)","v":756}]
["PADUCAH","KY","E-4",{"$f":"TRANSPOSE(H3194:H3194)","v":756}]
["PADUCAH","KY","E-5",{"$f":"TRANSPOSE(I3194:I3194)","v":822}]
["PADUCAH","KY","E-6",{"$f":"TRANSPOSE(J3194:J3194)","v":1071}]
["PADUCAH","KY","E-7",{"$f":"TRANSPOSE(K3194:K3194)","v":1131}]
["PADUCAH","KY","E-8",{"$f":"TRANSPOSE(L3194)","v":1197}]
["PADUCAH","KY","E-9",{"$f":"TRANSPOSE(M3194)","v":1281}]
["PADUCAH","KY","W-1",{"$f":"TRANSPOSE(N3194)","v":1074}]
["PADUCAH","KY","W-2",{"$f":"TRANSPOSE(O3194)","v":1158}]
["PADUCAH","KY","W-3",{"$f":"TRANSPOSE(P3194)","v":1239}]
["PADUCAH","KY","W-4",{"$f":"TRANSPOSE(Q3194)","v":1293}]
["PADUCAH","KY","W-5",{"$f":"TRANSPOSE(R3194)","v":1359}]
["PADUCAH","KY","O-1E",{"$f":"TRANSPOSE(S3194)","v":1146}]
["PADUCAH","KY","O-2E",{"$f":"TRANSPOSE(T3194)","v":1227}]
["PADUCAH","KY","O-3E",{"$f":"TRANSPOSE(U3194)","v":1305}]
["PADUCAH","KY","O-1",{"$f":"TRANSPOSE(V3194)","v":849}]
["PADUCAH","KY","O-2",{"$f":"TRANSPOSE(W3194)","v":1068}]
["PADUCAH","KY","O-3",{"$f":"TRANSPOSE(X3194)","v":1236}]
["PADUCAH","KY","O-4",{"$f":"TRANSPOSE(Y3194)","v":1383}]
["PADUCAH","KY","O-5",{"$f":"TRANSPOSE(Z3194)","v":1488}]
["PADUCAH","KY","O-6",{"$f":"TRANSPOSE(AA3194)","v":1503}]
["PADUCAH","KY","O-7",{"$f":"TRANSPOSE(AB3194)","v":1518}]
["ALEXANDRIA","LA","E-1",{"$f":"TRANSPOSE(E3218:E3218)","v":975},975,975,975,975,1155,1287,1299,1314,1401,1287,1305,1320,1431,1560,1302,1320,1452,1170,1284,1320,1611,1821,1839,1857]
["ALEXANDRIA","LA","E-2",{"$f":"TRANSPOSE(F3218:F3218)","v":975}]
["ALEXANDRIA","LA","E-3",{"$f":"TRANSPOSE(G3218:G3218)","v":975}]
["ALEXANDRIA","LA","E-4",{"$f":"TRANSPOSE(H3218:H3218)","v":975}]
["ALEXANDRIA","LA","E-5",{"$f":"TRANSPOSE(I3218:I3218)","v":1155}]
["ALEXANDRIA","LA","E-6",{"$f":"TRANSPOSE(J3218:J3218)","v":1287}]
["ALEXANDRIA","LA","E-7",{"$f":"TRANSPOSE(K3218:K3218)","v":1299}]
["ALEXANDRIA","LA","E-8",{"$f":"TRANSPOSE(L3218)","v":1314}]
["ALEXANDRIA","LA","E-9",{"$f":"TRANSPOSE(M3218)","v":1401}]
["ALEXANDRIA","LA","W-1",{"$f":"TRANSPOSE(N3218)","v":1287}]
["ALEXANDRIA","LA","W-2",{"$f":"TRANSPOSE(O3218)","v":1305}]
["ALEXANDRIA","LA","W-3",{"$f":"TRANSPOSE(P3218)","v":1320}]
["ALEXANDRIA","LA","W-4",{"$f":"TRANSPOSE(Q3218)","v":1431}]
["ALEXANDRIA","LA","W-5",{"$f":"TRANSPOSE(R3218)","v":1560}]
["ALEXANDRIA","LA","O-1E",{"$f":"TRANSPOSE(S3218)","v":1302}]
["ALEXANDRIA","LA","O-2E",{"$f":"TRANSPOSE(T3218)","v":1320}]
["ALEXANDRIA","LA","O-3E",{"$f":"TRANSPOSE(U3218)","v":1452}]
["ALEXANDRIA","LA","O-1",{"$f":"TRANSPOSE(V3218)","v":1170}]
["ALEXANDRIA","LA","O-2",{"$f":"TRANSPOSE(W3218)","v":1284}]
["ALEXANDRIA","LA","O-3",{"$f":"TRANSPOSE(X3218)","v":1320}]
["ALEXANDRIA","LA","O-4",{"$f":"TRANSPOSE(Y3218)","v":1611}]
["ALEXANDRIA","LA","O-5",{"$f":"TRANSPOSE(Z3218)","v":1821}]
["ALEXANDRIA","LA","O-6",{"$f":"TRANSPOSE(AA3218)","v":1839}]
["ALEXANDRIA","LA","O-7",{"$f":"TRANSPOSE(AB3218)","v":1857}]
["BATON ROUGE","LA","E-1",{"$f":"TRANSPOSE(E3242:E3242)","v":1203},1203,1203,1203,1203,1278,1383,1464,1551,1704,1386,1500,1605,1740,1899,1482,1590,1764,1290,1383,1602,1959,2214,2238,2259]
["BATON ROUGE","LA","E-2",{"$f":"TRANSPOSE(F3242:F3242)","v":1203}]
["BATON ROUGE","LA","E-3",{"$f":"TRANSPOSE(G3242:G3242)","v":1203}]
["BATON ROUGE","LA","E-4",{"$f":"TRANSPOSE(H3242:H3242)","v":1203}]
["BATON ROUGE","LA","E-5",{"$f":"TRANSPOSE(I3242:I3242)","v":1278}]
["BATON ROUGE","LA","E-6",{"$f":"TRANSPOSE(J3242:J3242)","v":1383}]
["BATON ROUGE","LA","E-7",{"$f":"TRANSPOSE(K3242:K3242)","v":1464}]
["BATON ROUGE","LA","E-8",{"$f":"TRANSPOSE(L3242)","v":1551}]
["BATON ROUGE","LA","E-9",{"$f":"TRANSPOSE(M3242)","v":1704}]
["BATON ROUGE","LA","W-1",{"$f":"TRANSPOSE(N3242)","v":1386}]
["BATON ROUGE","LA","W-2",{"$f":"TRANSPOSE(O3242)","v":1500}]
["BATON ROUGE","LA","W-3",{"$f":"TRANSPOSE(P3242)","v":1605}]
["BATON ROUGE","LA","W-4",{"$f":"TRANSPOSE(Q3242)","v":1740}]
["BATON ROUGE","LA","W-5",{"$f":"TRANSPOSE(R3242)","v":1899}]
["BATON ROUGE","LA","O-1E",{"$f":"TRANSPOSE(S3242)","v":1482}]
["BATON ROUGE","LA","O-2E",{"$f":"TRANSPOSE(T3242)","v":1590}]
["BATON ROUGE","LA","O-3E",{"$f":"TRANSPOSE(U3242)","v":1764}]
["BATON ROUGE","LA","O-1",{"$f":"TRANSPOSE(V3242)","v":1290}]
["BATON ROUGE","LA","O-2",{"$f":"TRANSPOSE(W3242)","v":1383}]
["BATON ROUGE","LA","O-3",{"$f":"TRANSPOSE(X3242)","v":1602}]
["BATON ROUGE","LA","O-4",{"$f":"TRANSPOSE(Y3242)","v":1959}]
["BATON ROUGE","LA","O-5",{"$f":"TRANSPOSE(Z3242)","v":2214}]
["BATON ROUGE","LA","O-6",{"$f":"TRANSPOSE(AA3242)","v":2238}]
["BATON ROUGE","LA","O-7",{"$f":"TRANSPOSE(AB3242)","v":2259}]
["FORT POLK","LA","E-1",{"$f":"TRANSPOSE(E3266:E3266)","v":852},852,852,852,852,879,1056,1128,1203,1299,1056,1158,1254,1314,1386,1143,1239,1326,897,1050,1251,1416,1533,1548,1563]
["FORT POLK","LA","E-2",{"$f":"TRANSPOSE(F3266:F3266)","v":852}]
["FORT POLK","LA","E-3",{"$f":"TRANSPOSE(G3266:G3266)","v":852}]
["FORT POLK","LA","E-4",{"$f":"TRANSPOSE(H3266:H3266)","v":852}]
["FORT POLK","LA","E-5",{"$f":"TRANSPOSE(I3266:I3266)","v":879}]
["FORT POLK","LA","E-6",{"$f":"TRANSPOSE(J3266:J3266)","v":1056}]
["FORT POLK","LA","E-7",{"$f":"TRANSPOSE(K3266:K3266)","v":1128}]
["FORT POLK","LA","E-8",{"$f":"TRANSPOSE(L3266)","v":1203}]
["FORT POLK","LA","E-9",{"$f":"TRANSPOSE(M3266)","v":1299}]
["FORT POLK","LA","W-1",{"$f":"TRANSPOSE(N3266)","v":1056}]
["FORT POLK","LA","W-2",{"$f":"TRANSPOSE(O3266)","v":1158}]
["FORT POLK","LA","W-3",{"$f":"TRANSPOSE(P3266)","v":1254}]
["FORT POLK","LA","W-4",{"$f":"TRANSPOSE(Q3266)","v":1314}]
["FORT POLK","LA","W-5",{"$f":"TRANSPOSE(R3266)","v":1386}]
["FORT POLK","LA","O-1E",{"$f":"TRANSPOSE(S3266)","v":1143}]
["FORT POLK","LA","O-2E",{"$f":"TRANSPOSE(T3266)","v":1239}]
["FORT POLK","LA","O-3E",{"$f":"TRANSPOSE(U3266)","v":1326}]
["FORT POLK","LA","O-1",{"$f":"TRANSPOSE(V3266)","v":897}]
["FORT POLK","LA","O-2",{"$f":"TRANSPOSE(W3266)","v":1050}]
["FORT POLK","LA","O-3",{"$f":"TRANSPOSE(X3266)","v":1251}]
["FORT POLK","LA","O-4",{"$f":"TRANSPOSE(Y3266)","v":1416}]
["FORT POLK","LA","O-5",{"$f":"TRANSPOSE(Z3266)","v":1533}]
["FORT POLK","LA","O-6",{"$f":"TRANSPOSE(AA3266)","v":1548}]
["FORT POLK","LA","O-7",{"$f":"TRANSPOSE(AB3266)","v":1563}]
["NEW ORLEANS","LA","E-1",{"$f":"TRANSPOSE(E3290:E3290)","v":1191},1191,1191,1191,1191,1251,1605,1626,1647,1737,1608,1635,1659,1767,1896,1629,1656,1788,1290,1599,1659,1944,2151,2172,2193]
["NEW ORLEANS","LA","E-2",{"$f":"TRANSPOSE(F3290:F3290)","v":1191}]
["NEW ORLEANS","LA","E-3",{"$f":"TRANSPOSE(G3290:G3290)","v":1191}]
["NEW ORLEANS","LA","E-4",{"$f":"TRANSPOSE(H3290:H3290)","v":1191}]
["NEW ORLEANS","LA","E-5",{"$f":"TRANSPOSE(I3290:I3290)","v":1251}]
["NEW ORLEANS","LA","E-6",{"$f":"TRANSPOSE(J3290:J3290)","v":1605}]
["NEW ORLEANS","LA","E-7",{"$f":"TRANSPOSE(K3290:K3290)","v":1626}]
["NEW ORLEANS","LA","E-8",{"$f":"TRANSPOSE(L3290)","v":1647}]
["NEW ORLEANS","LA","E-9",{"$f":"TRANSPOSE(M3290)","v":1737}]
["NEW ORLEANS","LA","W-1",{"$f":"TRANSPOSE(N3290)","v":1608}]
["NEW ORLEANS","LA","W-2",{"$f":"TRANSPOSE(O3290)","v":1635}]
["NEW ORLEANS","LA","W-3",{"$f":"TRANSPOSE(P3290)","v":1659}]
["NEW ORLEANS","LA","W-4",{"$f":"TRANSPOSE(Q3290)","v":1767}]
["NEW ORLEANS","LA","W-5",{"$f":"TRANSPOSE(R3290)","v":1896}]
["NEW ORLEANS","LA","O-1E",{"$f":"TRANSPOSE(S3290)","v":1629}]
["NEW ORLEANS","LA","O-2E",{"$f":"TRANSPOSE(T3290)","v":1656}]
["NEW ORLEANS","LA","O-3E",{"$f":"TRANSPOSE(U3290)","v":1788}]
["NEW ORLEANS","LA","O-1",{"$f":"TRANSPOSE(V3290)","v":1290}]
["NEW ORLEANS","LA","O-2",{"$f":"TRANSPOSE(W3290)","v":1599}]
["NEW ORLEANS","LA","O-3",{"$f":"TRANSPOSE(X3290)","v":1659}]
["NEW ORLEANS","LA","O-4",{"$f":"TRANSPOSE(Y3290)","v":1944}]
["NEW ORLEANS","LA","O-5",{"$f":"TRANSPOSE(Z3290)","v":2151}]
["NEW ORLEANS","LA","O-6",{"$f":"TRANSPOSE(AA3290)","v":2172}]
["NEW ORLEANS","LA","O-7",{"$f":"TRANSPOSE(AB3290)","v":2193}]
["SHREVEPORT/BARKSDALE AFB","LA","E-1",{"$f":"TRANSPOSE(E3314:E3314)","v":1005},1005,1005,1005,1005,1083,1419,1467,1518,1641,1419,1488,1551,1674,1815,1476,1542,1695,1122,1410,1548,1872,2103,2124,2145]
["SHREVEPORT/BARKSDALE AFB","LA","E-2",{"$f":"TRANSPOSE(F3314:F3314)","v":1005}]
["SHREVEPORT/BARKSDALE AFB","LA","E-3",{"$f":"TRANSPOSE(G3314:G3314)","v":1005}]
["SHREVEPORT/BARKSDALE AFB","LA","E-4",{"$f":"TRANSPOSE(H3314:H3314)","v":1005}]
["SHREVEPORT/BARKSDALE AFB","LA","E-5",{"$f":"TRANSPOSE(I3314:I3314)","v":1083}]
["SHREVEPORT/BARKSDALE AFB","LA","E-6",{"$f":"TRANSPOSE(J3314:J3314)","v":1419}]
["SHREVEPORT/BARKSDALE AFB","LA","E-7",{"$f":"TRANSPOSE(K3314:K3314)","v":1467}]
["SHREVEPORT/BARKSDALE AFB","LA","E-8",{"$f":"TRANSPOSE(L3314)","v":1518}]
["SHREVEPORT/BARKSDALE AFB","LA","E-9",{"$f":"TRANSPOSE(M3314)","v":1641}]
["SHREVEPORT/BARKSDALE AFB","LA","W-1",{"$f":"TRANSPOSE(N3314)","v":1419}]
["SHREVEPORT/BARKSDALE AFB","LA","W-2",{"$f":"TRANSPOSE(O3314)","v":1488}]
["SHREVEPORT/BARKSDALE AFB","LA","W-3",{"$f":"TRANSPOSE(P3314)","v":1551}]
["SHREVEPORT/BARKSDALE AFB","LA","W-4",{"$f":"TRANSPOSE(Q3314)","v":1674}]
["SHREVEPORT/BARKSDALE AFB","LA","W-5",{"$f":"TRANSPOSE(R3314)","v":1815}]
["SHREVEPORT/BARKSDALE AFB","LA","O-1E",{"$f":"TRANSPOSE(S3314)","v":1476}]
["SHREVEPORT/BARKSDALE AFB","LA","O-2E",{"$f":"TRANSPOSE(T3314)","v":1542}]
["SHREVEPORT/BARKSDALE AFB","LA","O-3E",{"$f":"TRANSPOSE(U3314)","v":1695}]
["SHREVEPORT/BARKSDALE AFB","LA","O-1",{"$f":"TRANSPOSE(V3314)","v":1122}]
["SHREVEPORT/BARKSDALE AFB","LA","O-2",{"$f":"TRANSPOSE(W3314)","v":1410}]
["SHREVEPORT/BARKSDALE AFB","LA","O-3",{"$f":"TRANSPOSE(X3314)","v":1548}]
["SHREVEPORT/BARKSDALE AFB","LA","O-4",{"$f":"TRANSPOSE(Y3314)","v":1872}]
["SHREVEPORT/BARKSDALE AFB","LA","O-5",{"$f":"TRANSPOSE(Z3314)","v":2103}]
["SHREVEPORT/BARKSDALE AFB","LA","O-6",{"$f":"TRANSPOSE(AA3314)","v":2124}]
["SHREVEPORT/BARKSDALE AFB","LA","O-7",{"$f":"TRANSPOSE(AB3314)","v":2145}]
["LAFAYETTE COUNTY","LA","E-1",{"$f":"TRANSPOSE(E3338:E3338)","v":1056},1056,1056,1056,1056,1173,1404,1437,1470,1554,1407,1449,1491,1578,1680,1443,1485,1593,1200,1401,1488,1719,1887,1905,1923]
["LAFAYETTE COUNTY","LA","E-2",{"$f":"TRANSPOSE(F3338:F3338)","v":1056}]
["LAFAYETTE COUNTY","LA","E-3",{"$f":"TRANSPOSE(G3338:G3338)","v":1056}]
["LAFAYETTE COUNTY","LA","E-4",{"$f":"TRANSPOSE(H3338:H3338)","v":1056}]
["LAFAYETTE COUNTY","LA","E-5",{"$f":"TRANSPOSE(I3338:I3338)","v":1173}]
["LAFAYETTE COUNTY","LA","E-6",{"$f":"TRANSPOSE(J3338:J3338)","v":1404}]
["LAFAYETTE COUNTY","LA","E-7",{"$f":"TRANSPOSE(K3338:K3338)","v":1437}]
["LAFAYETTE COUNTY","LA","E-8",{"$f":"TRANSPOSE(L3338)","v":1470}]
["LAFAYETTE COUNTY","LA","E-9",{"$f":"TRANSPOSE(M3338)","v":1554}]
["LAFAYETTE COUNTY","LA","W-1",{"$f":"TRANSPOSE(N3338)","v":1407}]
["LAFAYETTE COUNTY","LA","W-2",{"$f":"TRANSPOSE(O3338)","v":1449}]
["LAFAYETTE COUNTY","LA","W-3",{"$f":"TRANSPOSE(P3338)","v":1491}]
["LAFAYETTE COUNTY","LA","W-4",{"$f":"TRANSPOSE(Q3338)","v":1578}]
["LAFAYETTE COUNTY","LA","W-5",{"$f":"TRANSPOSE(R3338)","v":1680}]
["LAFAYETTE COUNTY","LA","O-1E",{"$f":"TRANSPOSE(S3338)","v":1443}]
["LAFAYETTE COUNTY","LA","O-2E",{"$f":"TRANSPOSE(T3338)","v":1485}]
["LAFAYETTE COUNTY","LA","O-3E",{"$f":"TRANSPOSE(U3338)","v":1593}]
["LAFAYETTE COUNTY","LA","O-1",{"$f":"TRANSPOSE(V3338)","v":1200}]
["LAFAYETTE COUNTY","LA","O-2",{"$f":"TRANSPOSE(W3338)","v":1401}]
["LAFAYETTE COUNTY","LA","O-3",{"$f":"TRANSPOSE(X3338)","v":1488}]
["LAFAYETTE COUNTY","LA","O-4",{"$f":"TRANSPOSE(Y3338)","v":1719}]
["LAFAYETTE COUNTY","LA","O-5",{"$f":"TRANSPOSE(Z3338)","v":1887}]
["LAFAYETTE COUNTY","LA","O-6",{"$f":"TRANSPOSE(AA3338)","v":1905}]
["LAFAYETTE COUNTY","LA","O-7",{"$f":"TRANSPOSE(AB3338)","v":1923}]
["ST MARY AND TERREBONNE","LA","E-1",{"$f":"TRANSPOSE(E3362:E3362)","v":1116},1116,1116,1116,1116,1248,1485,1563,1650,1725,1485,1599,1707,1734,1767,1581,1689,1740,1275,1479,1701,1779,1833,1851,1869]
["ST MARY AND TERREBONNE","LA","E-2",{"$f":"TRANSPOSE(F3362:F3362)","v":1116}]
["ST MARY AND TERREBONNE","LA","E-3",{"$f":"TRANSPOSE(G3362:G3362)","v":1116}]
["ST MARY AND TERREBONNE","LA","E-4",{"$f":"TRANSPOSE(H3362:H3362)","v":1116}]
["ST MARY AND TERREBONNE","LA","E-5",{"$f":"TRANSPOSE(I3362:I3362)","v":1248}]
["ST MARY AND TERREBONNE","LA","E-6",{"$f":"TRANSPOSE(J3362:J3362)","v":1485}]
["ST MARY AND TERREBONNE","LA","E-7",{"$f":"TRANSPOSE(K3362:K3362)","v":1563}]
["ST MARY AND TERREBONNE","LA","E-8",{"$f":"TRANSPOSE(L3362)","v":1650}]
["ST MARY AND TERREBONNE","LA","E-9",{"$f":"TRANSPOSE(M3362)","v":1725}]
["ST MARY AND TERREBONNE","LA","W-1",{"$f":"TRANSPOSE(N3362)","v":1485}]
["ST MARY AND TERREBONNE","LA","W-2",{"$f":"TRANSPOSE(O3362)","v":1599}]
["ST MARY AND TERREBONNE","LA","W-3",{"$f":"TRANSPOSE(P3362)","v":1707}]
["ST MARY AND TERREBONNE","LA","W-4",{"$f":"TRANSPOSE(Q3362)","v":1734}]
["ST MARY AND TERREBONNE","LA","W-5",{"$f":"TRANSPOSE(R3362)","v":1767}]
["ST MARY AND TERREBONNE","LA","O-1E",{"$f":"TRANSPOSE(S3362)","v":1581}]
["ST MARY AND TERREBONNE","LA","O-2E",{"$f":"TRANSPOSE(T3362)","v":1689}]
["ST MARY AND TERREBONNE","LA","O-3E",{"$f":"TRANSPOSE(U3362)","v":1740}]
["ST MARY AND TERREBONNE","LA","O-1",{"$f":"TRANSPOSE(V3362)","v":1275}]
["ST MARY AND TERREBONNE","LA","O-2",{"$f":"TRANSPOSE(W3362)","v":1479}]
["ST MARY AND TERREBONNE","LA","O-3",{"$f":"TRANSPOSE(X3362)","v":1701}]
["ST MARY AND TERREBONNE","LA","O-4",{"$f":"TRANSPOSE(Y3362)","v":1779}]
["ST MARY AND TERREBONNE","LA","O-5",{"$f":"TRANSPOSE(Z3362)","v":1833}]
["ST MARY AND TERREBONNE","LA","O-6",{"$f":"TRANSPOSE(AA3362)","v":1851}]
["ST MARY AND TERREBONNE","LA","O-7",{"$f":"TRANSPOSE(AB3362)","v":1869}]
["LAKE CHARLES","LA","E-1",{"$f":"TRANSPOSE(E3386:E3386)","v":1077},1077,1077,1077,1077,1140,1266,1341,1425,1494,1269,1377,1479,1500,1524,1359,1464,1503,1155,1263,1473,1533,1575,1590,1608]
["LAKE CHARLES","LA","E-2",{"$f":"TRANSPOSE(F3386:F3386)","v":1077}]
["LAKE CHARLES","LA","E-3",{"$f":"TRANSPOSE(G3386:G3386)","v":1077}]
["LAKE CHARLES","LA","E-4",{"$f":"TRANSPOSE(H3386:H3386)","v":1077}]
["LAKE CHARLES","LA","E-5",{"$f":"TRANSPOSE(I3386:I3386)","v":1140}]
["LAKE CHARLES","LA","E-6",{"$f":"TRANSPOSE(J3386:J3386)","v":1266}]
["LAKE CHARLES","LA","E-7",{"$f":"TRANSPOSE(K3386:K3386)","v":1341}]
["LAKE CHARLES","LA","E-8",{"$f":"TRANSPOSE(L3386)","v":1425}]
["LAKE CHARLES","LA","E-9",{"$f":"TRANSPOSE(M3386)","v":1494}]
["LAKE CHARLES","LA","W-1",{"$f":"TRANSPOSE(N3386)","v":1269}]
["LAKE CHARLES","LA","W-2",{"$f":"TRANSPOSE(O3386)","v":1377}]
["LAKE CHARLES","LA","W-3",{"$f":"TRANSPOSE(P3386)","v":1479}]
["LAKE CHARLES","LA","W-4",{"$f":"TRANSPOSE(Q3386)","v":1500}]
["LAKE CHARLES","LA","W-5",{"$f":"TRANSPOSE(R3386)","v":1524}]
["LAKE CHARLES","LA","O-1E",{"$f":"TRANSPOSE(S3386)","v":1359}]
["LAKE CHARLES","LA","O-2E",{"$f":"TRANSPOSE(T3386)","v":1464}]
["LAKE CHARLES","LA","O-3E",{"$f":"TRANSPOSE(U3386)","v":1503}]
["LAKE CHARLES","LA","O-1",{"$f":"TRANSPOSE(V3386)","v":1155}]
["LAKE CHARLES","LA","O-2",{"$f":"TRANSPOSE(W3386)","v":1263}]
["LAKE CHARLES","LA","O-3",{"$f":"TRANSPOSE(X3386)","v":1473}]
["LAKE CHARLES","LA","O-4",{"$f":"TRANSPOSE(Y3386)","v":1533}]
["LAKE CHARLES","LA","O-5",{"$f":"TRANSPOSE(Z3386)","v":1575}]
["LAKE CHARLES","LA","O-6",{"$f":"TRANSPOSE(AA3386)","v":1590}]
["LAKE CHARLES","LA","O-7",{"$f":"TRANSPOSE(AB3386)","v":1608}]
["MONROE","LA","E-1",{"$f":"TRANSPOSE(E3410:E3410)","v":855},855,855,855,855,918,1206,1215,1224,1275,1206,1218,1230,1293,1368,1218,1227,1305,948,1200,1230,1395,1518,1533,1548]
["MONROE","LA","E-2",{"$f":"TRANSPOSE(F3410:F3410)","v":855}]
["MONROE","LA","E-3",{"$f":"TRANSPOSE(G3410:G3410)","v":855}]
["MONROE","LA","E-4",{"$f":"TRANSPOSE(H3410:H3410)","v":855}]
["MONROE","LA","E-5",{"$f":"TRANSPOSE(I3410:I3410)","v":918}]
["MONROE","LA","E-6",{"$f":"TRANSPOSE(J3410:J3410)","v":1206}]
["MONROE","LA","E-7",{"$f":"TRANSPOSE(K3410:K3410)","v":1215}]
["MONROE","LA","E-8",{"$f":"TRANSPOSE(L3410)","v":1224}]
["MONROE","LA","E-9",{"$f":"TRANSPOSE(M3410)","v":1275}]
["MONROE","LA","W-1",{"$f":"TRANSPOSE(N3410)","v":1206}]
["MONROE","LA","W-2",{"$f":"TRANSPOSE(O3410)","v":1218}]
["MONROE","LA","W-3",{"$f":"TRANSPOSE(P3410)","v":1230}]
["MONROE","LA","W-4",{"$f":"TRANSPOSE(Q3410)","v":1293}]
["MONROE","LA","W-5",{"$f":"TRANSPOSE(R3410)","v":1368}]
["MONROE","LA","O-1E",{"$f":"TRANSPOSE(S3410)","v":1218}]
["MONROE","LA","O-2E",{"$f":"TRANSPOSE(T3410)","v":1227}]
["MONROE","LA","O-3E",{"$f":"TRANSPOSE(U3410)","v":1305}]
["MONROE","LA","O-1",{"$f":"TRANSPOSE(V3410)","v":948}]
["MONROE","LA","O-2",{"$f":"TRANSPOSE(W3410)","v":1200}]
["MONROE","LA","O-3",{"$f":"TRANSPOSE(X3410)","v":1230}]
["MONROE","LA","O-4",{"$f":"TRANSPOSE(Y3410)","v":1395}]
["MONROE","LA","O-5",{"$f":"TRANSPOSE(Z3410)","v":1518}]
["MONROE","LA","O-6",{"$f":"TRANSPOSE(AA3410)","v":1533}]
["MONROE","LA","O-7",{"$f":"TRANSPOSE(AB3410)","v":1548}]
["NANTUCKET","MA","E-1",{"$f":"TRANSPOSE(E3434:E3434)","v":2346},2346,2346,2346,2346,2460,3012,3144,3285,3465,3015,3201,3378,3498,3639,3174,3351,3519,2520,3000,3369,3693,3921,3960,3999]
["NANTUCKET","MA","E-2",{"$f":"TRANSPOSE(F3434:F3434)","v":2346}]
["NANTUCKET","MA","E-3",{"$f":"TRANSPOSE(G3434:G3434)","v":2346}]
["NANTUCKET","MA","E-4",{"$f":"TRANSPOSE(H3434:H3434)","v":2346}]
["NANTUCKET","MA","E-5",{"$f":"TRANSPOSE(I3434:I3434)","v":2460}]
["NANTUCKET","MA","E-6",{"$f":"TRANSPOSE(J3434:J3434)","v":3012}]
["NANTUCKET","MA","E-7",{"$f":"TRANSPOSE(K3434:K3434)","v":3144}]
["NANTUCKET","MA","E-8",{"$f":"TRANSPOSE(L3434)","v":3285}]
["NANTUCKET","MA","E-9",{"$f":"TRANSPOSE(M3434)","v":3465}]
["NANTUCKET","MA","W-1",{"$f":"TRANSPOSE(N3434)","v":3015}]
["NANTUCKET","MA","W-2",{"$f":"TRANSPOSE(O3434)","v":3201}]
["NANTUCKET","MA","W-3",{"$f":"TRANSPOSE(P3434)","v":3378}]
["NANTUCKET","MA","W-4",{"$f":"TRANSPOSE(Q3434)","v":3498}]
["NANTUCKET","MA","W-5",{"$f":"TRANSPOSE(R3434)","v":3639}]
["NANTUCKET","MA","O-1E",{"$f":"TRANSPOSE(S3434)","v":3174}]
["NANTUCKET","MA","O-2E",{"$f":"TRANSPOSE(T3434)","v":3351}]
["NANTUCKET","MA","O-3E",{"$f":"TRANSPOSE(U3434)","v":3519}]
["NANTUCKET","MA","O-1",{"$f":"TRANSPOSE(V3434)","v":2520}]
["NANTUCKET","MA","O-2",{"$f":"TRANSPOSE(W3434)","v":3000}]
["NANTUCKET","MA","O-3",{"$f":"TRANSPOSE(X3434)","v":3369}]
["NANTUCKET","MA","O-4",{"$f":"TRANSPOSE(Y3434)","v":3693}]
["NANTUCKET","MA","O-5",{"$f":"TRANSPOSE(Z3434)","v":3921}]
["NANTUCKET","MA","O-6",{"$f":"TRANSPOSE(AA3434)","v":3960}]
["NANTUCKET","MA","O-7",{"$f":"TRANSPOSE(AB3434)","v":3999}]
["BOSTON","MA","E-1",{"$f":"TRANSPOSE(E3458:E3458)","v":2097},2097,2097,2097,2097,2307,2508,2550,2598,2772,2508,2571,2628,2826,3063,2559,2619,2862,2328,2502,2625,3153,3534,3567,3603]
["BOSTON","MA","E-2",{"$f":"TRANSPOSE(F3458:F3458)","v":2097}]
["BOSTON","MA","E-3",{"$f":"TRANSPOSE(G3458:G3458)","v":2097}]
["BOSTON","MA","E-4",{"$f":"TRANSPOSE(H3458:H3458)","v":2097}]
["BOSTON","MA","E-5",{"$f":"TRANSPOSE(I3458:I3458)","v":2307}]
["BOSTON","MA","E-6",{"$f":"TRANSPOSE(J3458:J3458)","v":2508}]
["BOSTON","MA","E-7",{"$f":"TRANSPOSE(K3458:K3458)","v":2550}]
["BOSTON","MA","E-8",{"$f":"TRANSPOSE(L3458)","v":2598}]
["BOSTON","MA","E-9",{"$f":"TRANSPOSE(M3458)","v":2772}]
["BOSTON","MA","W-1",{"$f":"TRANSPOSE(N3458)","v":2508}]
["BOSTON","MA","W-2",{"$f":"TRANSPOSE(O3458)","v":2571}]
["BOSTON","MA","W-3",{"$f":"TRANSPOSE(P3458)","v":2628}]
["BOSTON","MA","W-4",{"$f":"TRANSPOSE(Q3458)","v":2826}]
["BOSTON","MA","W-5",{"$f":"TRANSPOSE(R3458)","v":3063}]
["BOSTON","MA","O-1E",{"$f":"TRANSPOSE(S3458)","v":2559}]
["BOSTON","MA","O-2E",{"$f":"TRANSPOSE(T3458)","v":2619}]
["BOSTON","MA","O-3E",{"$f":"TRANSPOSE(U3458)","v":2862}]
["BOSTON","MA","O-1",{"$f":"TRANSPOSE(V3458)","v":2328}]
["BOSTON","MA","O-2",{"$f":"TRANSPOSE(W3458)","v":2502}]
["BOSTON","MA","O-3",{"$f":"TRANSPOSE(X3458)","v":2625}]
["BOSTON","MA","O-4",{"$f":"TRANSPOSE(Y3458)","v":3153}]
["BOSTON","MA","O-5",{"$f":"TRANSPOSE(Z3458)","v":3534}]
["BOSTON","MA","O-6",{"$f":"TRANSPOSE(AA3458)","v":3567}]
["BOSTON","MA","O-7",{"$f":"TRANSPOSE(AB3458)","v":3603}]
["CAPECOD","MA","E-1",{"$f":"TRANSPOSE(E3482:E3482)","v":1473},1473,1473,1473,1473,1551,1896,1929,1962,2049,1899,1944,1986,2076,2181,1935,1980,2091,1590,1890,1983,2223,2394,2418,2442]
["CAPECOD","MA","E-2",{"$f":"TRANSPOSE(F3482:F3482)","v":1473}]
["CAPECOD","MA","E-3",{"$f":"TRANSPOSE(G3482:G3482)","v":1473}]
["CAPECOD","MA","E-4",{"$f":"TRANSPOSE(H3482:H3482)","v":1473}]
["CAPECOD","MA","E-5",{"$f":"TRANSPOSE(I3482:I3482)","v":1551}]
["CAPECOD","MA","E-6",{"$f":"TRANSPOSE(J3482:J3482)","v":1896}]
["CAPECOD","MA","E-7",{"$f":"TRANSPOSE(K3482:K3482)","v":1929}]
["CAPECOD","MA","E-8",{"$f":"TRANSPOSE(L3482)","v":1962}]
["CAPECOD","MA","E-9",{"$f":"TRANSPOSE(M3482)","v":2049}]
["CAPECOD","MA","W-1",{"$f":"TRANSPOSE(N3482)","v":1899}]
["CAPECOD","MA","W-2",{"$f":"TRANSPOSE(O3482)","v":1944}]
["CAPECOD","MA","W-3",{"$f":"TRANSPOSE(P3482)","v":1986}]
["CAPECOD","MA","W-4",{"$f":"TRANSPOSE(Q3482)","v":2076}]
["CAPECOD","MA","W-5",{"$f":"TRANSPOSE(R3482)","v":2181}]
["CAPECOD","MA","O-1E",{"$f":"TRANSPOSE(S3482)","v":1935}]
["CAPECOD","MA","O-2E",{"$f":"TRANSPOSE(T3482)","v":1980}]
["CAPECOD","MA","O-3E",{"$f":"TRANSPOSE(U3482)","v":2091}]
["CAPECOD","MA","O-1",{"$f":"TRANSPOSE(V3482)","v":1590}]
["CAPECOD","MA","O-2",{"$f":"TRANSPOSE(W3482)","v":1890}]
["CAPECOD","MA","O-3",{"$f":"TRANSPOSE(X3482)","v":1983}]
["CAPECOD","MA","O-4",{"$f":"TRANSPOSE(Y3482)","v":2223}]
["CAPECOD","MA","O-5",{"$f":"TRANSPOSE(Z3482)","v":2394}]
["CAPECOD","MA","O-6",{"$f":"TRANSPOSE(AA3482)","v":2418}]
["CAPECOD","MA","O-7",{"$f":"TRANSPOSE(AB3482)","v":2442}]
["WORCESTER","MA","E-1",{"$f":"TRANSPOSE(E3506:E3506)","v":1425},1425,1425,1425,1425,1554,1749,1866,1995,2199,1752,1920,2076,2244,2439,1893,2055,2274,1575,1746,2070,2514,2832,2859,2889]
["WORCESTER","MA","E-2",{"$f":"TRANSPOSE(F3506:F3506)","v":1425}]
["WORCESTER","MA","E-3",{"$f":"TRANSPOSE(G3506:G3506)","v":1425}]
["WORCESTER","MA","E-4",{"$f":"TRANSPOSE(H3506:H3506)","v":1425}]
["WORCESTER","MA","E-5",{"$f":"TRANSPOSE(I3506:I3506)","v":1554}]
["WORCESTER","MA","E-6",{"$f":"TRANSPOSE(J3506:J3506)","v":1749}]
["WORCESTER","MA","E-7",{"$f":"TRANSPOSE(K3506:K3506)","v":1866}]
["WORCESTER","MA","E-8",{"$f":"TRANSPOSE(L3506)","v":1995}]
["WORCESTER","MA","E-9",{"$f":"TRANSPOSE(M3506)","v":2199}]
["WORCESTER","MA","W-1",{"$f":"TRANSPOSE(N3506)","v":1752}]
["WORCESTER","MA","W-2",{"$f":"TRANSPOSE(O3506)","v":1920}]
["WORCESTER","MA","W-3",{"$f":"TRANSPOSE(P3506)","v":2076}]
["WORCESTER","MA","W-4",{"$f":"TRANSPOSE(Q3506)","v":2244}]
["WORCESTER","MA","W-5",{"$f":"TRANSPOSE(R3506)","v":2439}]
["WORCESTER","MA","O-1E",{"$f":"TRANSPOSE(S3506)","v":1893}]
["WORCESTER","MA","O-2E",{"$f":"TRANSPOSE(T3506)","v":2055}]
["WORCESTER","MA","O-3E",{"$f":"TRANSPOSE(U3506)","v":2274}]
["WORCESTER","MA","O-1",{"$f":"TRANSPOSE(V3506)","v":1575}]
["WORCESTER","MA","O-2",{"$f":"TRANSPOSE(W3506)","v":1746}]
["WORCESTER","MA","O-3",{"$f":"TRANSPOSE(X3506)","v":2070}]
["WORCESTER","MA","O-4",{"$f":"TRANSPOSE(Y3506)","v":2514}]
["WORCESTER","MA","O-5",{"$f":"TRANSPOSE(Z3506)","v":2832}]
["WORCESTER","MA","O-6",{"$f":"TRANSPOSE(AA3506)","v":2859}]
["WORCESTER","MA","O-7",{"$f":"TRANSPOSE(AB3506)","v":2889}]
["FORT DEVENS/AYER","MA","E-1",{"$f":"TRANSPOSE(E3530:E3530)","v":1443},1443,1443,1443,1443,1587,1854,1953,2064,2181,1857,1998,2133,2199,2277,1977,2112,2211,1614,1848,2127,2307,2433,2457,2484]
["FORT DEVENS/AYER","MA","E-2",{"$f":"TRANSPOSE(F3530:F3530)","v":1443}]
["FORT DEVENS/AYER","MA","E-3",{"$f":"TRANSPOSE(G3530:G3530)","v":1443}]
["FORT DEVENS/AYER","MA","E-4",{"$f":"TRANSPOSE(H3530:H3530)","v":1443}]
["FORT DEVENS/AYER","MA","E-5",{"$f":"TRANSPOSE(I3530:I3530)","v":1587}]
["FORT DEVENS/AYER","MA","E-6",{"$f":"TRANSPOSE(J3530:J3530)","v":1854}]
["FORT DEVENS/AYER","MA","E-7",{"$f":"TRANSPOSE(K3530:K3530)","v":1953}]
["FORT DEVENS/AYER","MA","E-8",{"$f":"TRANSPOSE(L3530)","v":2064}]
["FORT DEVENS/AYER","MA","E-9",{"$f":"TRANSPOSE(M3530)","v":2181}]
["FORT DEVENS/AYER","MA","W-1",{"$f":"TRANSPOSE(N3530)","v":1857}]
["FORT DEVENS/AYER","MA","W-2",{"$f":"TRANSPOSE(O3530)","v":1998}]
["FORT DEVENS/AYER","MA","W-3",{"$f":"TRANSPOSE(P3530)","v":2133}]
["FORT DEVENS/AYER","MA","W-4",{"$f":"TRANSPOSE(Q3530)","v":2199}]
["FORT DEVENS/AYER","MA","W-5",{"$f":"TRANSPOSE(R3530)","v":2277}]
["FORT DEVENS/AYER","MA","O-1E",{"$f":"TRANSPOSE(S3530)","v":1977}]
["FORT DEVENS/AYER","MA","O-2E",{"$f":"TRANSPOSE(T3530)","v":2112}]
["FORT DEVENS/AYER","MA","O-3E",{"$f":"TRANSPOSE(U3530)","v":2211}]
["FORT DEVENS/AYER","MA","O-1",{"$f":"TRANSPOSE(V3530)","v":1614}]
["FORT DEVENS/AYER","MA","O-2",{"$f":"TRANSPOSE(W3530)","v":1848}]
["FORT DEVENS/AYER","MA","O-3",{"$f":"TRANSPOSE(X3530)","v":2127}]
["FORT DEVENS/AYER","MA","O-4",{"$f":"TRANSPOSE(Y3530)","v":2307}]
["FORT DEVENS/AYER","MA","O-5",{"$f":"TRANSPOSE(Z3530)","v":2433}]
["FORT DEVENS/AYER","MA","O-6",{"$f":"TRANSPOSE(AA3530)","v":2457}]
["FORT DEVENS/AYER","MA","O-7",{"$f":"TRANSPOSE(AB3530)","v":2484}]
["PLYMOUTH","MA","E-1",{"$f":"TRANSPOSE(E3554:E3554)","v":1488},1488,1488,1488,1488,1641,2130,2139,2145,2244,2130,2142,2151,2280,2433,2139,2151,2304,1695,2121,2151,2490,2736,2763,2793]
["PLYMOUTH","MA","E-2",{"$f":"TRANSPOSE(F3554:F3554)","v":1488}]
["PLYMOUTH","MA","E-3",{"$f":"TRANSPOSE(G3554:G3554)","v":1488}]
["PLYMOUTH","MA","E-4",{"$f":"TRANSPOSE(H3554:H3554)","v":1488}]
["PLYMOUTH","MA","E-5",{"$f":"TRANSPOSE(I3554:I3554)","v":1641}]
["PLYMOUTH","MA","E-6",{"$f":"TRANSPOSE(J3554:J3554)","v":2130}]
["PLYMOUTH","MA","E-7",{"$f":"TRANSPOSE(K3554:K3554)","v":2139}]
["PLYMOUTH","MA","E-8",{"$f":"TRANSPOSE(L3554)","v":2145}]
["PLYMOUTH","MA","E-9",{"$f":"TRANSPOSE(M3554)","v":2244}]
["PLYMOUTH","MA","W-1",{"$f":"TRANSPOSE(N3554)","v":2130}]
["PLYMOUTH","MA","W-2",{"$f":"TRANSPOSE(O3554)","v":2142}]
["PLYMOUTH","MA","W-3",{"$f":"TRANSPOSE(P3554)","v":2151}]
["PLYMOUTH","MA","W-4",{"$f":"TRANSPOSE(Q3554)","v":2280}]
["PLYMOUTH","MA","W-5",{"$f":"TRANSPOSE(R3554)","v":2433}]
["PLYMOUTH","MA","O-1E",{"$f":"TRANSPOSE(S3554)","v":2139}]
["PLYMOUTH","MA","O-2E",{"$f":"TRANSPOSE(T3554)","v":2151}]
["PLYMOUTH","MA","O-3E",{"$f":"TRANSPOSE(U3554)","v":2304}]
["PLYMOUTH","MA","O-1",{"$f":"TRANSPOSE(V3554)","v":1695}]
["PLYMOUTH","MA","O-2",{"$f":"TRANSPOSE(W3554)","v":2121}]
["PLYMOUTH","MA","O-3",{"$f":"TRANSPOSE(X3554)","v":2151}]
["PLYMOUTH","MA","O-4",{"$f":"TRANSPOSE(Y3554)","v":2490}]
["PLYMOUTH","MA","O-5",{"$f":"TRANSPOSE(Z3554)","v":2736}]
["PLYMOUTH","MA","O-6",{"$f":"TRANSPOSE(AA3554)","v":2763}]
["PLYMOUTH","MA","O-7",{"$f":"TRANSPOSE(AB3554)","v":2793}]
["ESSEX COUNTY","MA","E-1",{"$f":"TRANSPOSE(E3578:E3578)","v":1746},1746,1746,1746,1746,1920,2190,2274,2367,2532,2190,2313,2427,2574,2742,2295,2412,2598,1950,2184,2424,2808,3084,3117,3147]
["ESSEX COUNTY","MA","E-2",{"$f":"TRANSPOSE(F3578:F3578)","v":1746}]
["ESSEX COUNTY","MA","E-3",{"$f":"TRANSPOSE(G3578:G3578)","v":1746}]
["ESSEX COUNTY","MA","E-4",{"$f":"TRANSPOSE(H3578:H3578)","v":1746}]
["ESSEX COUNTY","MA","E-5",{"$f":"TRANSPOSE(I3578:I3578)","v":1920}]
["ESSEX COUNTY","MA","E-6",{"$f":"TRANSPOSE(J3578:J3578)","v":2190}]
["ESSEX COUNTY","MA","E-7",{"$f":"TRANSPOSE(K3578:K3578)","v":2274}]
["ESSEX COUNTY","MA","E-8",{"$f":"TRANSPOSE(L3578)","v":2367}]
["ESSEX COUNTY","MA","E-9",{"$f":"TRANSPOSE(M3578)","v":2532}]
["ESSEX COUNTY","MA","W-1",{"$f":"TRANSPOSE(N3578)","v":2190}]
["ESSEX COUNTY","MA","W-2",{"$f":"TRANSPOSE(O3578)","v":2313}]
["ESSEX COUNTY","MA","W-3",{"$f":"TRANSPOSE(P3578)","v":2427}]
["ESSEX COUNTY","MA","W-4",{"$f":"TRANSPOSE(Q3578)","v":2574}]
["ESSEX COUNTY","MA","W-5",{"$f":"TRANSPOSE(R3578)","v":2742}]
["ESSEX COUNTY","MA","O-1E",{"$f":"TRANSPOSE(S3578)","v":2295}]
["ESSEX COUNTY","MA","O-2E",{"$f":"TRANSPOSE(T3578)","v":2412}]
["ESSEX COUNTY","MA","O-3E",{"$f":"TRANSPOSE(U3578)","v":2598}]
["ESSEX COUNTY","MA","O-1",{"$f":"TRANSPOSE(V3578)","v":1950}]
["ESSEX COUNTY","MA","O-2",{"$f":"TRANSPOSE(W3578)","v":2184}]
["ESSEX COUNTY","MA","O-3",{"$f":"TRANSPOSE(X3578)","v":2424}]
["ESSEX COUNTY","MA","O-4",{"$f":"TRANSPOSE(Y3578)","v":2808}]
["ESSEX COUNTY","MA","O-5",{"$f":"TRANSPOSE(Z3578)","v":3084}]
["ESSEX COUNTY","MA","O-6",{"$f":"TRANSPOSE(AA3578)","v":3117}]
["ESSEX COUNTY","MA","O-7",{"$f":"TRANSPOSE(AB3578)","v":3147}]
["HAMPDEN COUNTY","MA","E-1",{"$f":"TRANSPOSE(E3602:E3602)","v":1347},1347,1347,1347,1347,1455,1656,1773,1902,2043,1659,1827,1983,2067,2166,1800,1962,2082,1476,1653,1977,2202,2361,2385,2409]
["HAMPDEN COUNTY","MA","E-2",{"$f":"TRANSPOSE(F3602:F3602)","v":1347}]
["HAMPDEN COUNTY","MA","E-3",{"$f":"TRANSPOSE(G3602:G3602)","v":1347}]
["HAMPDEN COUNTY","MA","E-4",{"$f":"TRANSPOSE(H3602:H3602)","v":1347}]
["HAMPDEN COUNTY","MA","E-5",{"$f":"TRANSPOSE(I3602:I3602)","v":1455}]
["HAMPDEN COUNTY","MA","E-6",{"$f":"TRANSPOSE(J3602:J3602)","v":1656}]
["HAMPDEN COUNTY","MA","E-7",{"$f":"TRANSPOSE(K3602:K3602)","v":1773}]
["HAMPDEN COUNTY","MA","E-8",{"$f":"TRANSPOSE(L3602)","v":1902}]
["HAMPDEN COUNTY","MA","E-9",{"$f":"TRANSPOSE(M3602)","v":2043}]
["HAMPDEN COUNTY","MA","W-1",{"$f":"TRANSPOSE(N3602)","v":1659}]
["HAMPDEN COUNTY","MA","W-2",{"$f":"TRANSPOSE(O3602)","v":1827}]
["HAMPDEN COUNTY","MA","W-3",{"$f":"TRANSPOSE(P3602)","v":1983}]
["HAMPDEN COUNTY","MA","W-4",{"$f":"TRANSPOSE(Q3602)","v":2067}]
["HAMPDEN COUNTY","MA","W-5",{"$f":"TRANSPOSE(R3602)","v":2166}]
["HAMPDEN COUNTY","MA","O-1E",{"$f":"TRANSPOSE(S3602)","v":1800}]
["HAMPDEN COUNTY","MA","O-2E",{"$f":"TRANSPOSE(T3602)","v":1962}]
["HAMPDEN COUNTY","MA","O-3E",{"$f":"TRANSPOSE(U3602)","v":2082}]
["HAMPDEN COUNTY","MA","O-1",{"$f":"TRANSPOSE(V3602)","v":1476}]
["HAMPDEN COUNTY","MA","O-2",{"$f":"TRANSPOSE(W3602)","v":1653}]
["HAMPDEN COUNTY","MA","O-3",{"$f":"TRANSPOSE(X3602)","v":1977}]
["HAMPDEN COUNTY","MA","O-4",{"$f":"TRANSPOSE(Y3602)","v":2202}]
["HAMPDEN COUNTY","MA","O-5",{"$f":"TRANSPOSE(Z3602)","v":2361}]
["HAMPDEN COUNTY","MA","O-6",{"$f":"TRANSPOSE(AA3602)","v":2385}]
["HAMPDEN COUNTY","MA","O-7",{"$f":"TRANSPOSE(AB3602)","v":2409}]
["MARTHA'S VINEYARD","MA","E-1",{"$f":"TRANSPOSE(E3626:E3626)","v":1974},1974,1974,1974,1974,2163,2397,2442,2490,2607,2397,2463,2523,2637,2772,2451,2514,2658,2190,2391,2520,2823,3039,3069,3099]
["MARTHA'S VINEYARD","MA","E-2",{"$f":"TRANSPOSE(F3626:F3626)","v":1974}]
["MARTHA'S VINEYARD","MA","E-3",{"$f":"TRANSPOSE(G3626:G3626)","v":1974}]
["MARTHA'S VINEYARD","MA","E-4",{"$f":"TRANSPOSE(H3626:H3626)","v":1974}]
["MARTHA'S VINEYARD","MA","E-5",{"$f":"TRANSPOSE(I3626:I3626)","v":2163}]
["MARTHA'S VINEYARD","MA","E-6",{"$f":"TRANSPOSE(J3626:J3626)","v":2397}]
["MARTHA'S VINEYARD","MA","E-7",{"$f":"TRANSPOSE(K3626:K3626)","v":2442}]
["MARTHA'S VINEYARD","MA","E-8",{"$f":"TRANSPOSE(L3626)","v":2490}]
["MARTHA'S VINEYARD","MA","E-9",{"$f":"TRANSPOSE(M3626)","v":2607}]
["MARTHA'S VINEYARD","MA","W-1",{"$f":"TRANSPOSE(N3626)","v":2397}]
["MARTHA'S VINEYARD","MA","W-2",{"$f":"TRANSPOSE(O3626)","v":2463}]
["MARTHA'S VINEYARD","MA","W-3",{"$f":"TRANSPOSE(P3626)","v":2523}]
["MARTHA'S VINEYARD","MA","W-4",{"$f":"TRANSPOSE(Q3626)","v":2637}]
["MARTHA'S VINEYARD","MA","W-5",{"$f":"TRANSPOSE(R3626)","v":2772}]
["MARTHA'S VINEYARD","MA","O-1E",{"$f":"TRANSPOSE(S3626)","v":2451}]
["MARTHA'S VINEYARD","MA","O-2E",{"$f":"TRANSPOSE(T3626)","v":2514}]
["MARTHA'S VINEYARD","MA","O-3E",{"$f":"TRANSPOSE(U3626)","v":2658}]
["MARTHA'S VINEYARD","MA","O-1",{"$f":"TRANSPOSE(V3626)","v":2190}]
["MARTHA'S VINEYARD","MA","O-2",{"$f":"TRANSPOSE(W3626)","v":2391}]
["MARTHA'S VINEYARD","MA","O-3",{"$f":"TRANSPOSE(X3626)","v":2520}]
["MARTHA'S VINEYARD","MA","O-4",{"$f":"TRANSPOSE(Y3626)","v":2823}]
["MARTHA'S VINEYARD","MA","O-5",{"$f":"TRANSPOSE(Z3626)","v":3039}]
["MARTHA'S VINEYARD","MA","O-6",{"$f":"TRANSPOSE(AA3626)","v":3069}]
["MARTHA'S VINEYARD","MA","O-7",{"$f":"TRANSPOSE(AB3626)","v":3099}]
["HANSCOMB FIELD","MA","E-1",{"$f":"TRANSPOSE(E3650:E3650)","v":1950},1950,1950,1950,1950,2196,2355,2493,2646,2805,2358,2556,2742,2829,2931,2526,2715,2844,2211,2352,2733,2970,3135,3165,3198]
["HANSCOMB FIELD","MA","E-2",{"$f":"TRANSPOSE(F3650:F3650)","v":1950}]
["HANSCOMB FIELD","MA","E-3",{"$f":"TRANSPOSE(G3650:G3650)","v":1950}]
["HANSCOMB FIELD","MA","E-4",{"$f":"TRANSPOSE(H3650:H3650)","v":1950}]
["HANSCOMB FIELD","MA","E-5",{"$f":"TRANSPOSE(I3650:I3650)","v":2196}]
["HANSCOMB FIELD","MA","E-6",{"$f":"TRANSPOSE(J3650:J3650)","v":2355}]
["HANSCOMB FIELD","MA","E-7",{"$f":"TRANSPOSE(K3650:K3650)","v":2493}]
["HANSCOMB FIELD","MA","E-8",{"$f":"TRANSPOSE(L3650)","v":2646}]
["HANSCOMB FIELD","MA","E-9",{"$f":"TRANSPOSE(M3650)","v":2805}]
["HANSCOMB FIELD","MA","W-1",{"$f":"TRANSPOSE(N3650)","v":2358}]
["HANSCOMB FIELD","MA","W-2",{"$f":"TRANSPOSE(O3650)","v":2556}]
["HANSCOMB FIELD","MA","W-3",{"$f":"TRANSPOSE(P3650)","v":2742}]
["HANSCOMB FIELD","MA","W-4",{"$f":"TRANSPOSE(Q3650)","v":2829}]
["HANSCOMB FIELD","MA","W-5",{"$f":"TRANSPOSE(R3650)","v":2931}]
["HANSCOMB FIELD","MA","O-1E",{"$f":"TRANSPOSE(S3650)","v":2526}]
["HANSCOMB FIELD","MA","O-2E",{"$f":"TRANSPOSE(T3650)","v":2715}]
["HANSCOMB FIELD","MA","O-3E",{"$f":"TRANSPOSE(U3650)","v":2844}]
["HANSCOMB FIELD","MA","O-1",{"$f":"TRANSPOSE(V3650)","v":2211}]
["HANSCOMB FIELD","MA","O-2",{"$f":"TRANSPOSE(W3650)","v":2352}]
["HANSCOMB FIELD","MA","O-3",{"$f":"TRANSPOSE(X3650)","v":2733}]
["HANSCOMB FIELD","MA","O-4",{"$f":"TRANSPOSE(Y3650)","v":2970}]
["HANSCOMB FIELD","MA","O-5",{"$f":"TRANSPOSE(Z3650)","v":3135}]
["HANSCOMB FIELD","MA","O-6",{"$f":"TRANSPOSE(AA3650)","v":3165}]
["HANSCOMB FIELD","MA","O-7",{"$f":"TRANSPOSE(AB3650)","v":3198}]
["ABERDEEN PROVING GROUNDS","MD","E-1",{"$f":"TRANSPOSE(E3674:E3674)","v":1317},1317,1317,1317,1317,1422,1731,1785,1842,1947,1734,1809,1878,1971,2079,1797,1869,1986,1458,1725,1875,2121,2295,2319,2343]
["ABERDEEN PROVING GROUNDS","MD","E-2",{"$f":"TRANSPOSE(F3674:F3674)","v":1317}]
["ABERDEEN PROVING GROUNDS","MD","E-3",{"$f":"TRANSPOSE(G3674:G3674)","v":1317}]
["ABERDEEN PROVING GROUNDS","MD","E-4",{"$f":"TRANSPOSE(H3674:H3674)","v":1317}]
["ABERDEEN PROVING GROUNDS","MD","E-5",{"$f":"TRANSPOSE(I3674:I3674)","v":1422}]
["ABERDEEN PROVING GROUNDS","MD","E-6",{"$f":"TRANSPOSE(J3674:J3674)","v":1731}]
["ABERDEEN PROVING GROUNDS","MD","E-7",{"$f":"TRANSPOSE(K3674:K3674)","v":1785}]
["ABERDEEN PROVING GROUNDS","MD","E-8",{"$f":"TRANSPOSE(L3674)","v":1842}]
["ABERDEEN PROVING GROUNDS","MD","E-9",{"$f":"TRANSPOSE(M3674)","v":1947}]
["ABERDEEN PROVING GROUNDS","MD","W-1",{"$f":"TRANSPOSE(N3674)","v":1734}]
["ABERDEEN PROVING GROUNDS","MD","W-2",{"$f":"TRANSPOSE(O3674)","v":1809}]
["ABERDEEN PROVING GROUNDS","MD","W-3",{"$f":"TRANSPOSE(P3674)","v":1878}]
["ABERDEEN PROVING GROUNDS","MD","W-4",{"$f":"TRANSPOSE(Q3674)","v":1971}]
["ABERDEEN PROVING GROUNDS","MD","W-5",{"$f":"TRANSPOSE(R3674)","v":2079}]
["ABERDEEN PROVING GROUNDS","MD","O-1E",{"$f":"TRANSPOSE(S3674)","v":1797}]
["ABERDEEN PROVING GROUNDS","MD","O-2E",{"$f":"TRANSPOSE(T3674)","v":1869}]
["ABERDEEN PROVING GROUNDS","MD","O-3E",{"$f":"TRANSPOSE(U3674)","v":1986}]
["ABERDEEN PROVING GROUNDS","MD","O-1",{"$f":"TRANSPOSE(V3674)","v":1458}]
["ABERDEEN PROVING GROUNDS","MD","O-2",{"$f":"TRANSPOSE(W3674)","v":1725}]
["ABERDEEN PROVING GROUNDS","MD","O-3",{"$f":"TRANSPOSE(X3674)","v":1875}]
["ABERDEEN PROVING GROUNDS","MD","O-4",{"$f":"TRANSPOSE(Y3674)","v":2121}]
["ABERDEEN PROVING GROUNDS","MD","O-5",{"$f":"TRANSPOSE(Z3674)","v":2295}]
["ABERDEEN PROVING GROUNDS","MD","O-6",{"$f":"TRANSPOSE(AA3674)","v":2319}]
["ABERDEEN PROVING GROUNDS","MD","O-7",{"$f":"TRANSPOSE(AB3674)","v":2343}]
["ANNAPOLIS","MD","E-1",{"$f":"TRANSPOSE(E3698:E3698)","v":1626},1626,1626,1626,1626,1803,2058,2163,2277,2442,2061,2211,2349,2478,2631,2187,2328,2502,1833,2055,2343,2688,2934,2964,2994]
["ANNAPOLIS","MD","E-2",{"$f":"TRANSPOSE(F3698:F3698)","v":1626}]
["ANNAPOLIS","MD","E-3",{"$f":"TRANSPOSE(G3698:G3698)","v":1626}]
["ANNAPOLIS","MD","E-4",{"$f":"TRANSPOSE(H3698:H3698)","v":1626}]
["ANNAPOLIS","MD","E-5",{"$f":"TRANSPOSE(I3698:I3698)","v":1803}]
["ANNAPOLIS","MD","E-6",{"$f":"TRANSPOSE(J3698:J3698)","v":2058}]
["ANNAPOLIS","MD","E-7",{"$f":"TRANSPOSE(K3698:K3698)","v":2163}]
["ANNAPOLIS","MD","E-8",{"$f":"TRANSPOSE(L3698)","v":2277}]
["ANNAPOLIS","MD","E-9",{"$f":"TRANSPOSE(M3698)","v":2442}]
["ANNAPOLIS","MD","W-1",{"$f":"TRANSPOSE(N3698)","v":2061}]
["ANNAPOLIS","MD","W-2",{"$f":"TRANSPOSE(O3698)","v":2211}]
["ANNAPOLIS","MD","W-3",{"$f":"TRANSPOSE(P3698)","v":2349}]
["ANNAPOLIS","MD","W-4",{"$f":"TRANSPOSE(Q3698)","v":2478}]
["ANNAPOLIS","MD","W-5",{"$f":"TRANSPOSE(R3698)","v":2631}]
["ANNAPOLIS","MD","O-1E",{"$f":"TRANSPOSE(S3698)","v":2187}]
["ANNAPOLIS","MD","O-2E",{"$f":"TRANSPOSE(T3698)","v":2328}]
["ANNAPOLIS","MD","O-3E",{"$f":"TRANSPOSE(U3698)","v":2502}]
["ANNAPOLIS","MD","O-1",{"$f":"TRANSPOSE(V3698)","v":1833}]
["ANNAPOLIS","MD","O-2",{"$f":"TRANSPOSE(W3698)","v":2055}]
["ANNAPOLIS","MD","O-3",{"$f":"TRANSPOSE(X3698)","v":2343}]
["ANNAPOLIS","MD","O-4",{"$f":"TRANSPOSE(Y3698)","v":2688}]
["ANNAPOLIS","MD","O-5",{"$f":"TRANSPOSE(Z3698)","v":2934}]
["ANNAPOLIS","MD","O-6",{"$f":"TRANSPOSE(AA3698)","v":2964}]
["ANNAPOLIS","MD","O-7",{"$f":"TRANSPOSE(AB3698)","v":2994}]
["BALTIMORE","MD","E-1",{"$f":"TRANSPOSE(E3722:E3722)","v":1752},1752,1752,1752,1752,1950,2061,2208,2364,2529,2064,2271,2466,2553,2655,2238,2439,2568,1962,2058,2460,2694,2859,2889,2916]
["BALTIMORE","MD","E-2",{"$f":"TRANSPOSE(F3722:F3722)","v":1752}]
["BALTIMORE","MD","E-3",{"$f":"TRANSPOSE(G3722:G3722)","v":1752}]
["BALTIMORE","MD","E-4",{"$f":"TRANSPOSE(H3722:H3722)","v":1752}]
["BALTIMORE","MD","E-5",{"$f":"TRANSPOSE(I3722:I3722)","v":1950}]
["BALTIMORE","MD","E-6",{"$f":"TRANSPOSE(J3722:J3722)","v":2061}]
["BALTIMORE","MD","E-7",{"$f":"TRANSPOSE(K3722:K3722)","v":2208}]
["BALTIMORE","MD","E-8",{"$f":"TRANSPOSE(L3722)","v":2364}]
["BALTIMORE","MD","E-9",{"$f":"TRANSPOSE(M3722)","v":2529}]
["BALTIMORE","MD","W-1",{"$f":"TRANSPOSE(N3722)","v":2064}]
["BALTIMORE","MD","W-2",{"$f":"TRANSPOSE(O3722)","v":2271}]
["BALTIMORE","MD","W-3",{"$f":"TRANSPOSE(P3722)","v":2466}]
["BALTIMORE","MD","W-4",{"$f":"TRANSPOSE(Q3722)","v":2553}]
["BALTIMORE","MD","W-5",{"$f":"TRANSPOSE(R3722)","v":2655}]
["BALTIMORE","MD","O-1E",{"$f":"TRANSPOSE(S3722)","v":2238}]
["BALTIMORE","MD","O-2E",{"$f":"TRANSPOSE(T3722)","v":2439}]
["BALTIMORE","MD","O-3E",{"$f":"TRANSPOSE(U3722)","v":2568}]
["BALTIMORE","MD","O-1",{"$f":"TRANSPOSE(V3722)","v":1962}]
["BALTIMORE","MD","O-2",{"$f":"TRANSPOSE(W3722)","v":2058}]
["BALTIMORE","MD","O-3",{"$f":"TRANSPOSE(X3722)","v":2460}]
["BALTIMORE","MD","O-4",{"$f":"TRANSPOSE(Y3722)","v":2694}]
["BALTIMORE","MD","O-5",{"$f":"TRANSPOSE(Z3722)","v":2859}]
["BALTIMORE","MD","O-6",{"$f":"TRANSPOSE(AA3722)","v":2889}]
["BALTIMORE","MD","O-7",{"$f":"TRANSPOSE(AB3722)","v":2916}]
["FORT DETRICK","MD","E-1",{"$f":"TRANSPOSE(E3746:E3746)","v":1419},1419,1419,1419,1419,1530,1791,1911,2040,2211,1794,1962,2121,2244,2391,1935,2097,2268,1560,1785,2115,2448,2685,2712,2739]
["FORT DETRICK","MD","E-2",{"$f":"TRANSPOSE(F3746:F3746)","v":1419}]
["FORT DETRICK","MD","E-3",{"$f":"TRANSPOSE(G3746:G3746)","v":1419}]
["FORT DETRICK","MD","E-4",{"$f":"TRANSPOSE(H3746:H3746)","v":1419}]
["FORT DETRICK","MD","E-5",{"$f":"TRANSPOSE(I3746:I3746)","v":1530}]
["FORT DETRICK","MD","E-6",{"$f":"TRANSPOSE(J3746:J3746)","v":1791}]
["FORT DETRICK","MD","E-7",{"$f":"TRANSPOSE(K3746:K3746)","v":1911}]
["FORT DETRICK","MD","E-8",{"$f":"TRANSPOSE(L3746)","v":2040}]
["FORT DETRICK","MD","E-9",{"$f":"TRANSPOSE(M3746)","v":2211}]
["FORT DETRICK","MD","W-1",{"$f":"TRANSPOSE(N3746)","v":1794}]
["FORT DETRICK","MD","W-2",{"$f":"TRANSPOSE(O3746)","v":1962}]
["FORT DETRICK","MD","W-3",{"$f":"TRANSPOSE(P3746)","v":2121}]
["FORT DETRICK","MD","W-4",{"$f":"TRANSPOSE(Q3746)","v":2244}]
["FORT DETRICK","MD","W-5",{"$f":"TRANSPOSE(R3746)","v":2391}]
["FORT DETRICK","MD","O-1E",{"$f":"TRANSPOSE(S3746)","v":1935}]
["FORT DETRICK","MD","O-2E",{"$f":"TRANSPOSE(T3746)","v":2097}]
["FORT DETRICK","MD","O-3E",{"$f":"TRANSPOSE(U3746)","v":2268}]
["FORT DETRICK","MD","O-1",{"$f":"TRANSPOSE(V3746)","v":1560}]
["FORT DETRICK","MD","O-2",{"$f":"TRANSPOSE(W3746)","v":1785}]
["FORT DETRICK","MD","O-3",{"$f":"TRANSPOSE(X3746)","v":2115}]
["FORT DETRICK","MD","O-4",{"$f":"TRANSPOSE(Y3746)","v":2448}]
["FORT DETRICK","MD","O-5",{"$f":"TRANSPOSE(Z3746)","v":2685}]
["FORT DETRICK","MD","O-6",{"$f":"TRANSPOSE(AA3746)","v":2712}]
["FORT DETRICK","MD","O-7",{"$f":"TRANSPOSE(AB3746)","v":2739}]
["FORT G. G. MEADE","MD","E-1",{"$f":"TRANSPOSE(E3770:E3770)","v":1596},1596,1596,1596,1596,1836,2100,2193,2295,2430,2103,2235,2358,2454,2568,2214,2340,2472,1866,2094,2355,2613,2796,2823,2853]
["FORT G. G. MEADE","MD","E-2",{"$f":"TRANSPOSE(F3770:F3770)","v":1596}]
["FORT G. G. MEADE","MD","E-3",{"$f":"TRANSPOSE(G3770:G3770)","v":1596}]
["FORT G. G. MEADE","MD","E-4",{"$f":"TRANSPOSE(H3770:H3770)","v":1596}]
["FORT G. G. MEADE","MD","E-5",{"$f":"TRANSPOSE(I3770:I3770)","v":1836}]
["FORT G. G. MEADE","MD","E-6",{"$f":"TRANSPOSE(J3770:J3770)","v":2100}]
["FORT G. G. MEADE","MD","E-7",{"$f":"TRANSPOSE(K3770:K3770)","v":2193}]
["FORT G. G. MEADE","MD","E-8",{"$f":"TRANSPOSE(L3770)","v":2295}]
["FORT G. G. MEADE","MD","E-9",{"$f":"TRANSPOSE(M3770)","v":2430}]
["FORT G. G. MEADE","MD","W-1",{"$f":"TRANSPOSE(N3770)","v":2103}]
["FORT G. G. MEADE","MD","W-2",{"$f":"TRANSPOSE(O3770)","v":2235}]
["FORT G. G. MEADE","MD","W-3",{"$f":"TRANSPOSE(P3770)","v":2358}]
["FORT G. G. MEADE","MD","W-4",{"$f":"TRANSPOSE(Q3770)","v":2454}]
["FORT G. G. MEADE","MD","W-5",{"$f":"TRANSPOSE(R3770)","v":2568}]
["FORT G. G. MEADE","MD","O-1E",{"$f":"TRANSPOSE(S3770)","v":2214}]
["FORT G. G. MEADE","MD","O-2E",{"$f":"TRANSPOSE(T3770)","v":2340}]
["FORT G. G. MEADE","MD","O-3E",{"$f":"TRANSPOSE(U3770)","v":2472}]
["FORT G. G. MEADE","MD","O-1",{"$f":"TRANSPOSE(V3770)","v":1866}]
["FORT G. G. MEADE","MD","O-2",{"$f":"TRANSPOSE(W3770)","v":2094}]
["FORT G. G. MEADE","MD","O-3",{"$f":"TRANSPOSE(X3770)","v":2355}]
["FORT G. G. MEADE","MD","O-4",{"$f":"TRANSPOSE(Y3770)","v":2613}]
["FORT G. G. MEADE","MD","O-5",{"$f":"TRANSPOSE(Z3770)","v":2796}]
["FORT G. G. MEADE","MD","O-6",{"$f":"TRANSPOSE(AA3770)","v":2823}]
["FORT G. G. MEADE","MD","O-7",{"$f":"TRANSPOSE(AB3770)","v":2853}]
["INDIAN HEAD NAVORDSTA","MD","E-1",{"$f":"TRANSPOSE(E3794:E3794)","v":1590},1590,1590,1590,1590,1704,1968,2049,2139,2265,1968,2088,2196,2289,2397,2067,2181,2304,1734,1962,2193,2439,2613,2640,2667]
["INDIAN HEAD NAVORDSTA","MD","E-2",{"$f":"TRANSPOSE(F3794:F3794)","v":1590}]
["INDIAN HEAD NAVORDSTA","MD","E-3",{"$f":"TRANSPOSE(G3794:G3794)","v":1590}]
["INDIAN HEAD NAVORDSTA","MD","E-4",{"$f":"TRANSPOSE(H3794:H3794)","v":1590}]
["INDIAN HEAD NAVORDSTA","MD","E-5",{"$f":"TRANSPOSE(I3794:I3794)","v":1704}]
["INDIAN HEAD NAVORDSTA","MD","E-6",{"$f":"TRANSPOSE(J3794:J3794)","v":1968}]
["INDIAN HEAD NAVORDSTA","MD","E-7",{"$f":"TRANSPOSE(K3794:K3794)","v":2049}]
["INDIAN HEAD NAVORDSTA","MD","E-8",{"$f":"TRANSPOSE(L3794)","v":2139}]
["INDIAN HEAD NAVORDSTA","MD","E-9",{"$f":"TRANSPOSE(M3794)","v":2265}]
["INDIAN HEAD NAVORDSTA","MD","W-1",{"$f":"TRANSPOSE(N3794)","v":1968}]
["INDIAN HEAD NAVORDSTA","MD","W-2",{"$f":"TRANSPOSE(O3794)","v":2088}]
["INDIAN HEAD NAVORDSTA","MD","W-3",{"$f":"TRANSPOSE(P3794)","v":2196}]
["INDIAN HEAD NAVORDSTA","MD","W-4",{"$f":"TRANSPOSE(Q3794)","v":2289}]
["INDIAN HEAD NAVORDSTA","MD","W-5",{"$f":"TRANSPOSE(R3794)","v":2397}]
["INDIAN HEAD NAVORDSTA","MD","O-1E",{"$f":"TRANSPOSE(S3794)","v":2067}]
["INDIAN HEAD NAVORDSTA","MD","O-2E",{"$f":"TRANSPOSE(T3794)","v":2181}]
["INDIAN HEAD NAVORDSTA","MD","O-3E",{"$f":"TRANSPOSE(U3794)","v":2304}]
["INDIAN HEAD NAVORDSTA","MD","O-1",{"$f":"TRANSPOSE(V3794)","v":1734}]
["INDIAN HEAD NAVORDSTA","MD","O-2",{"$f":"TRANSPOSE(W3794)","v":1962}]
["INDIAN HEAD NAVORDSTA","MD","O-3",{"$f":"TRANSPOSE(X3794)","v":2193}]
["INDIAN HEAD NAVORDSTA","MD","O-4",{"$f":"TRANSPOSE(Y3794)","v":2439}]
["INDIAN HEAD NAVORDSTA","MD","O-5",{"$f":"TRANSPOSE(Z3794)","v":2613}]
["INDIAN HEAD NAVORDSTA","MD","O-6",{"$f":"TRANSPOSE(AA3794)","v":2640}]
["INDIAN HEAD NAVORDSTA","MD","O-7",{"$f":"TRANSPOSE(AB3794)","v":2667}]
["PATUXENT RIVER","MD","E-1",{"$f":"TRANSPOSE(E3818:E3818)","v":1380},1380,1380,1380,1380,1515,1668,1752,1842,1953,1671,1788,1899,1974,2061,1770,1884,1986,1533,1665,1896,2094,2235,2259,2280]
["PATUXENT RIVER","MD","E-2",{"$f":"TRANSPOSE(F3818:F3818)","v":1380}]
["PATUXENT RIVER","MD","E-3",{"$f":"TRANSPOSE(G3818:G3818)","v":1380}]
["PATUXENT RIVER","MD","E-4",{"$f":"TRANSPOSE(H3818:H3818)","v":1380}]
["PATUXENT RIVER","MD","E-5",{"$f":"TRANSPOSE(I3818:I3818)","v":1515}]
["PATUXENT RIVER","MD","E-6",{"$f":"TRANSPOSE(J3818:J3818)","v":1668}]
["PATUXENT RIVER","MD","E-7",{"$f":"TRANSPOSE(K3818:K3818)","v":1752}]
["PATUXENT RIVER","MD","E-8",{"$f":"TRANSPOSE(L3818)","v":1842}]
["PATUXENT RIVER","MD","E-9",{"$f":"TRANSPOSE(M3818)","v":1953}]
["PATUXENT RIVER","MD","W-1",{"$f":"TRANSPOSE(N3818)","v":1671}]
["PATUXENT RIVER","MD","W-2",{"$f":"TRANSPOSE(O3818)","v":1788}]
["PATUXENT RIVER","MD","W-3",{"$f":"TRANSPOSE(P3818)","v":1899}]
["PATUXENT RIVER","MD","W-4",{"$f":"TRANSPOSE(Q3818)","v":1974}]
["PATUXENT RIVER","MD","W-5",{"$f":"TRANSPOSE(R3818)","v":2061}]
["PATUXENT RIVER","MD","O-1E",{"$f":"TRANSPOSE(S3818)","v":1770}]
["PATUXENT RIVER","MD","O-2E",{"$f":"TRANSPOSE(T3818)","v":1884}]
["PATUXENT RIVER","MD","O-3E",{"$f":"TRANSPOSE(U3818)","v":1986}]
["PATUXENT RIVER","MD","O-1",{"$f":"TRANSPOSE(V3818)","v":1533}]
["PATUXENT RIVER","MD","O-2",{"$f":"TRANSPOSE(W3818)","v":1665}]
["PATUXENT RIVER","MD","O-3",{"$f":"TRANSPOSE(X3818)","v":1896}]
["PATUXENT RIVER","MD","O-4",{"$f":"TRANSPOSE(Y3818)","v":2094}]
["PATUXENT RIVER","MD","O-5",{"$f":"TRANSPOSE(Z3818)","v":2235}]
["PATUXENT RIVER","MD","O-6",{"$f":"TRANSPOSE(AA3818)","v":2259}]
["PATUXENT RIVER","MD","O-7",{"$f":"TRANSPOSE(AB3818)","v":2280}]
["CUMBERLAND","MD","E-1",{"$f":"TRANSPOSE(E3842:E3842)","v":825},825,825,825,825,903,1062,1095,1131,1206,1062,1110,1155,1227,1311,1101,1146,1239,921,1059,1152,1344,1479,1494,1509]
["CUMBERLAND","MD","E-2",{"$f":"TRANSPOSE(F3842:F3842)","v":825}]
["CUMBERLAND","MD","E-3",{"$f":"TRANSPOSE(G3842:G3842)","v":825}]
["CUMBERLAND","MD","E-4",{"$f":"TRANSPOSE(H3842:H3842)","v":825}]
["CUMBERLAND","MD","E-5",{"$f":"TRANSPOSE(I3842:I3842)","v":903}]
["CUMBERLAND","MD","E-6",{"$f":"TRANSPOSE(J3842:J3842)","v":1062}]
["CUMBERLAND","MD","E-7",{"$f":"TRANSPOSE(K3842:K3842)","v":1095}]
["CUMBERLAND","MD","E-8",{"$f":"TRANSPOSE(L3842)","v":1131}]
["CUMBERLAND","MD","E-9",{"$f":"TRANSPOSE(M3842)","v":1206}]
["CUMBERLAND","MD","W-1",{"$f":"TRANSPOSE(N3842)","v":1062}]
["CUMBERLAND","MD","W-2",{"$f":"TRANSPOSE(O3842)","v":1110}]
["CUMBERLAND","MD","W-3",{"$f":"TRANSPOSE(P3842)","v":1155}]
["CUMBERLAND","MD","W-4",{"$f":"TRANSPOSE(Q3842)","v":1227}]
["CUMBERLAND","MD","W-5",{"$f":"TRANSPOSE(R3842)","v":1311}]
["CUMBERLAND","MD","O-1E",{"$f":"TRANSPOSE(S3842)","v":1101}]
["CUMBERLAND","MD","O-2E",{"$f":"TRANSPOSE(T3842)","v":1146}]
["CUMBERLAND","MD","O-3E",{"$f":"TRANSPOSE(U3842)","v":1239}]
["CUMBERLAND","MD","O-1",{"$f":"TRANSPOSE(V3842)","v":921}]
["CUMBERLAND","MD","O-2",{"$f":"TRANSPOSE(W3842)","v":1059}]
["CUMBERLAND","MD","O-3",{"$f":"TRANSPOSE(X3842)","v":1152}]
["CUMBERLAND","MD","O-4",{"$f":"TRANSPOSE(Y3842)","v":1344}]
["CUMBERLAND","MD","O-5",{"$f":"TRANSPOSE(Z3842)","v":1479}]
["CUMBERLAND","MD","O-6",{"$f":"TRANSPOSE(AA3842)","v":1494}]
["CUMBERLAND","MD","O-7",{"$f":"TRANSPOSE(AB3842)","v":1509}]
["OCEAN CITY","MD","E-1",{"$f":"TRANSPOSE(E3866:E3866)","v":1293},1293,1293,1293,1293,1326,1593,1614,1635,1707,1593,1623,1650,1731,1824,1617,1644,1743,1356,1587,1647,1863,2016,2037,2055]
["OCEAN CITY","MD","E-2",{"$f":"TRANSPOSE(F3866:F3866)","v":1293}]
["OCEAN CITY","MD","E-3",{"$f":"TRANSPOSE(G3866:G3866)","v":1293}]
["OCEAN CITY","MD","E-4",{"$f":"TRANSPOSE(H3866:H3866)","v":1293}]
["OCEAN CITY","MD","E-5",{"$f":"TRANSPOSE(I3866:I3866)","v":1326}]
["OCEAN CITY","MD","E-6",{"$f":"TRANSPOSE(J3866:J3866)","v":1593}]
["OCEAN CITY","MD","E-7",{"$f":"TRANSPOSE(K3866:K3866)","v":1614}]
["OCEAN CITY","MD","E-8",{"$f":"TRANSPOSE(L3866)","v":1635}]
["OCEAN CITY","MD","E-9",{"$f":"TRANSPOSE(M3866)","v":1707}]
["OCEAN CITY","MD","W-1",{"$f":"TRANSPOSE(N3866)","v":1593}]
["OCEAN CITY","MD","W-2",{"$f":"TRANSPOSE(O3866)","v":1623}]
["OCEAN CITY","MD","W-3",{"$f":"TRANSPOSE(P3866)","v":1650}]
["OCEAN CITY","MD","W-4",{"$f":"TRANSPOSE(Q3866)","v":1731}]
["OCEAN CITY","MD","W-5",{"$f":"TRANSPOSE(R3866)","v":1824}]
["OCEAN CITY","MD","O-1E",{"$f":"TRANSPOSE(S3866)","v":1617}]
["OCEAN CITY","MD","O-2E",{"$f":"TRANSPOSE(T3866)","v":1644}]
["OCEAN CITY","MD","O-3E",{"$f":"TRANSPOSE(U3866)","v":1743}]
["OCEAN CITY","MD","O-1",{"$f":"TRANSPOSE(V3866)","v":1356}]
["OCEAN CITY","MD","O-2",{"$f":"TRANSPOSE(W3866)","v":1587}]
["OCEAN CITY","MD","O-3",{"$f":"TRANSPOSE(X3866)","v":1647}]
["OCEAN CITY","MD","O-4",{"$f":"TRANSPOSE(Y3866)","v":1863}]
["OCEAN CITY","MD","O-5",{"$f":"TRANSPOSE(Z3866)","v":2016}]
["OCEAN CITY","MD","O-6",{"$f":"TRANSPOSE(AA3866)","v":2037}]
["OCEAN CITY","MD","O-7",{"$f":"TRANSPOSE(AB3866)","v":2055}]
["OXFORD","MD","E-1",{"$f":"TRANSPOSE(E3890:E3890)","v":1368},1368,1368,1368,1368,1482,1782,1845,1917,2001,1785,1875,1962,2013,2076,1860,1947,2025,1515,1776,1956,2100,2202,2226,2247]
["OXFORD","MD","E-2",{"$f":"TRANSPOSE(F3890:F3890)","v":1368}]
["OXFORD","MD","E-3",{"$f":"TRANSPOSE(G3890:G3890)","v":1368}]
["OXFORD","MD","E-4",{"$f":"TRANSPOSE(H3890:H3890)","v":1368}]
["OXFORD","MD","E-5",{"$f":"TRANSPOSE(I3890:I3890)","v":1482}]
["OXFORD","MD","E-6",{"$f":"TRANSPOSE(J3890:J3890)","v":1782}]
["OXFORD","MD","E-7",{"$f":"TRANSPOSE(K3890:K3890)","v":1845}]
["OXFORD","MD","E-8",{"$f":"TRANSPOSE(L3890)","v":1917}]
["OXFORD","MD","E-9",{"$f":"TRANSPOSE(M3890)","v":2001}]
["OXFORD","MD","W-1",{"$f":"TRANSPOSE(N3890)","v":1785}]
["OXFORD","MD","W-2",{"$f":"TRANSPOSE(O3890)","v":1875}]
["OXFORD","MD","W-3",{"$f":"TRANSPOSE(P3890)","v":1962}]
["OXFORD","MD","W-4",{"$f":"TRANSPOSE(Q3890)","v":2013}]
["OXFORD","MD","W-5",{"$f":"TRANSPOSE(R3890)","v":2076}]
["OXFORD","MD","O-1E",{"$f":"TRANSPOSE(S3890)","v":1860}]
["OXFORD","MD","O-2E",{"$f":"TRANSPOSE(T3890)","v":1947}]
["OXFORD","MD","O-3E",{"$f":"TRANSPOSE(U3890)","v":2025}]
["OXFORD","MD","O-1",{"$f":"TRANSPOSE(V3890)","v":1515}]
["OXFORD","MD","O-2",{"$f":"TRANSPOSE(W3890)","v":1776}]
["OXFORD","MD","O-3",{"$f":"TRANSPOSE(X3890)","v":1956}]
["OXFORD","MD","O-4",{"$f":"TRANSPOSE(Y3890)","v":2100}]
["OXFORD","MD","O-5",{"$f":"TRANSPOSE(Z3890)","v":2202}]
["OXFORD","MD","O-6",{"$f":"TRANSPOSE(AA3890)","v":2226}]
["OXFORD","MD","O-7",{"$f":"TRANSPOSE(AB3890)","v":2247}]
["BRUNSWICK","ME","E-1",{"$f":"TRANSPOSE(E3914:E3914)","v":936},936,936,936,936,1050,1287,1344,1404,1503,1287,1368,1443,1527,1626,1356,1431,1542,1077,1281,1440,1665,1827,1845,1863]
["BRUNSWICK","ME","E-2",{"$f":"TRANSPOSE(F3914:F3914)","v":936}]
["BRUNSWICK","ME","E-3",{"$f":"TRANSPOSE(G3914:G3914)","v":936}]
["BRUNSWICK","ME","E-4",{"$f":"TRANSPOSE(H3914:H3914)","v":936}]
["BRUNSWICK","ME","E-5",{"$f":"TRANSPOSE(I3914:I3914)","v":1050}]
["BRUNSWICK","ME","E-6",{"$f":"TRANSPOSE(J3914:J3914)","v":1287}]
["BRUNSWICK","ME","E-7",{"$f":"TRANSPOSE(K3914:K3914)","v":1344}]
["BRUNSWICK","ME","E-8",{"$f":"TRANSPOSE(L3914)","v":1404}]
["BRUNSWICK","ME","E-9",{"$f":"TRANSPOSE(M3914)","v":1503}]
["BRUNSWICK","ME","W-1",{"$f":"TRANSPOSE(N3914)","v":1287}]
["BRUNSWICK","ME","W-2",{"$f":"TRANSPOSE(O3914)","v":1368}]
["BRUNSWICK","ME","W-3",{"$f":"TRANSPOSE(P3914)","v":1443}]
["BRUNSWICK","ME","W-4",{"$f":"TRANSPOSE(Q3914)","v":1527}]
["BRUNSWICK","ME","W-5",{"$f":"TRANSPOSE(R3914)","v":1626}]
["BRUNSWICK","ME","O-1E",{"$f":"TRANSPOSE(S3914)","v":1356}]
["BRUNSWICK","ME","O-2E",{"$f":"TRANSPOSE(T3914)","v":1431}]
["BRUNSWICK","ME","O-3E",{"$f":"TRANSPOSE(U3914)","v":1542}]
["BRUNSWICK","ME","O-1",{"$f":"TRANSPOSE(V3914)","v":1077}]
["BRUNSWICK","ME","O-2",{"$f":"TRANSPOSE(W3914)","v":1281}]
["BRUNSWICK","ME","O-3",{"$f":"TRANSPOSE(X3914)","v":1440}]
["BRUNSWICK","ME","O-4",{"$f":"TRANSPOSE(Y3914)","v":1665}]
["BRUNSWICK","ME","O-5",{"$f":"TRANSPOSE(Z3914)","v":1827}]
["BRUNSWICK","ME","O-6",{"$f":"TRANSPOSE(AA3914)","v":1845}]
["BRUNSWICK","ME","O-7",{"$f":"TRANSPOSE(AB3914)","v":1863}]
["CARIBOU/LIMESTONE","ME","E-1",{"$f":"TRANSPOSE(E3938:E3938)","v":792},792,792,792,792,876,990,1029,1068,1128,990,1044,1095,1140,1194,1035,1089,1149,888,987,1095,1215,1299,1314,1326]
["CARIBOU/LIMESTONE","ME","E-2",{"$f":"TRANSPOSE(F3938:F3938)","v":792}]
["CARIBOU/LIMESTONE","ME","E-3",{"$f":"TRANSPOSE(G3938:G3938)","v":792}]
["CARIBOU/LIMESTONE","ME","E-4",{"$f":"TRANSPOSE(H3938:H3938)","v":792}]
["CARIBOU/LIMESTONE","ME","E-5",{"$f":"TRANSPOSE(I3938:I3938)","v":876}]
["CARIBOU/LIMESTONE","ME","E-6",{"$f":"TRANSPOSE(J3938:J3938)","v":990}]
["CARIBOU/LIMESTONE","ME","E-7",{"$f":"TRANSPOSE(K3938:K3938)","v":1029}]
["CARIBOU/LIMESTONE","ME","E-8",{"$f":"TRANSPOSE(L3938)","v":1068}]
["CARIBOU/LIMESTONE","ME","E-9",{"$f":"TRANSPOSE(M3938)","v":1128}]
["CARIBOU/LIMESTONE","ME","W-1",{"$f":"TRANSPOSE(N3938)","v":990}]
["CARIBOU/LIMESTONE","ME","W-2",{"$f":"TRANSPOSE(O3938)","v":1044}]
["CARIBOU/LIMESTONE","ME","W-3",{"$f":"TRANSPOSE(P3938)","v":1095}]
["CARIBOU/LIMESTONE","ME","W-4",{"$f":"TRANSPOSE(Q3938)","v":1140}]
["CARIBOU/LIMESTONE","ME","W-5",{"$f":"TRANSPOSE(R3938)","v":1194}]
["CARIBOU/LIMESTONE","ME","O-1E",{"$f":"TRANSPOSE(S3938)","v":1035}]
["CARIBOU/LIMESTONE","ME","O-2E",{"$f":"TRANSPOSE(T3938)","v":1089}]
["CARIBOU/LIMESTONE","ME","O-3E",{"$f":"TRANSPOSE(U3938)","v":1149}]
["CARIBOU/LIMESTONE","ME","O-1",{"$f":"TRANSPOSE(V3938)","v":888}]
["CARIBOU/LIMESTONE","ME","O-2",{"$f":"TRANSPOSE(W3938)","v":987}]
["CARIBOU/LIMESTONE","ME","O-3",{"$f":"TRANSPOSE(X3938)","v":1095}]
["CARIBOU/LIMESTONE","ME","O-4",{"$f":"TRANSPOSE(Y3938)","v":1215}]
["CARIBOU/LIMESTONE","ME","O-5",{"$f":"TRANSPOSE(Z3938)","v":1299}]
["CARIBOU/LIMESTONE","ME","O-6",{"$f":"TRANSPOSE(AA3938)","v":1314}]
["CARIBOU/LIMESTONE","ME","O-7",{"$f":"TRANSPOSE(AB3938)","v":1326}]
["KITTERY","ME","E-1",{"$f":"TRANSPOSE(E3962:E3962)","v":1326},1326,1326,1326,1326,1491,1893,1998,2109,2193,1896,2043,2181,2196,2214,2019,2160,2199,1536,1887,2175,2220,2250,2274,2295]
["KITTERY","ME","E-2",{"$f":"TRANSPOSE(F3962:F3962)","v":1326}]
["KITTERY","ME","E-3",{"$f":"TRANSPOSE(G3962:G3962)","v":1326}]
["KITTERY","ME","E-4",{"$f":"TRANSPOSE(H3962:H3962)","v":1326}]
["KITTERY","ME","E-5",{"$f":"TRANSPOSE(I3962:I3962)","v":1491}]
["KITTERY","ME","E-6",{"$f":"TRANSPOSE(J3962:J3962)","v":1893}]
["KITTERY","ME","E-7",{"$f":"TRANSPOSE(K3962:K3962)","v":1998}]
["KITTERY","ME","E-8",{"$f":"TRANSPOSE(L3962)","v":2109}]
["KITTERY","ME","E-9",{"$f":"TRANSPOSE(M3962)","v":2193}]
["KITTERY","ME","W-1",{"$f":"TRANSPOSE(N3962)","v":1896}]
["KITTERY","ME","W-2",{"$f":"TRANSPOSE(O3962)","v":2043}]
["KITTERY","ME","W-3",{"$f":"TRANSPOSE(P3962)","v":2181}]
["KITTERY","ME","W-4",{"$f":"TRANSPOSE(Q3962)","v":2196}]
["KITTERY","ME","W-5",{"$f":"TRANSPOSE(R3962)","v":2214}]
["KITTERY","ME","O-1E",{"$f":"TRANSPOSE(S3962)","v":2019}]
["KITTERY","ME","O-2E",{"$f":"TRANSPOSE(T3962)","v":2160}]
["KITTERY","ME","O-3E",{"$f":"TRANSPOSE(U3962)","v":2199}]
["KITTERY","ME","O-1",{"$f":"TRANSPOSE(V3962)","v":1536}]
["KITTERY","ME","O-2",{"$f":"TRANSPOSE(W3962)","v":1887}]
["KITTERY","ME","O-3",{"$f":"TRANSPOSE(X3962)","v":2175}]
["KITTERY","ME","O-4",{"$f":"TRANSPOSE(Y3962)","v":2220}]
["KITTERY","ME","O-5",{"$f":"TRANSPOSE(Z3962)","v":2250}]
["KITTERY","ME","O-6",{"$f":"TRANSPOSE(AA3962)","v":2274}]
["KITTERY","ME","O-7",{"$f":"TRANSPOSE(AB3962)","v":2295}]
["PORTLAND","ME","E-1",{"$f":"TRANSPOSE(E3986:E3986)","v":1254},1254,1254,1254,1254,1353,1491,1671,1866,2043,1497,1752,1989,2061,2145,1710,1956,2076,1368,1488,1980,2178,2316,2340,2361]
["PORTLAND","ME","E-2",{"$f":"TRANSPOSE(F3986:F3986)","v":1254}]
["PORTLAND","ME","E-3",{"$f":"TRANSPOSE(G3986:G3986)","v":1254}]
["PORTLAND","ME","E-4",{"$f":"TRANSPOSE(H3986:H3986)","v":1254}]
["PORTLAND","ME","E-5",{"$f":"TRANSPOSE(I3986:I3986)","v":1353}]
["PORTLAND","ME","E-6",{"$f":"TRANSPOSE(J3986:J3986)","v":1491}]
["PORTLAND","ME","E-7",{"$f":"TRANSPOSE(K3986:K3986)","v":1671}]
["PORTLAND","ME","E-8",{"$f":"TRANSPOSE(L3986)","v":1866}]
["PORTLAND","ME","E-9",{"$f":"TRANSPOSE(M3986)","v":2043}]
["PORTLAND","ME","W-1",{"$f":"TRANSPOSE(N3986)","v":1497}]
["PORTLAND","ME","W-2",{"$f":"TRANSPOSE(O3986)","v":1752}]
["PORTLAND","ME","W-3",{"$f":"TRANSPOSE(P3986)","v":1989}]
["PORTLAND","ME","W-4",{"$f":"TRANSPOSE(Q3986)","v":2061}]
["PORTLAND","ME","W-5",{"$f":"TRANSPOSE(R3986)","v":2145}]
["PORTLAND","ME","O-1E",{"$f":"TRANSPOSE(S3986)","v":1710}]
["PORTLAND","ME","O-2E",{"$f":"TRANSPOSE(T3986)","v":1956}]
["PORTLAND","ME","O-3E",{"$f":"TRANSPOSE(U3986)","v":2076}]
["PORTLAND","ME","O-1",{"$f":"TRANSPOSE(V3986)","v":1368}]
["PORTLAND","ME","O-2",{"$f":"TRANSPOSE(W3986)","v":1488}]
["PORTLAND","ME","O-3",{"$f":"TRANSPOSE(X3986)","v":1980}]
["PORTLAND","ME","O-4",{"$f":"TRANSPOSE(Y3986)","v":2178}]
["PORTLAND","ME","O-5",{"$f":"TRANSPOSE(Z3986)","v":2316}]
["PORTLAND","ME","O-6",{"$f":"TRANSPOSE(AA3986)","v":2340}]
["PORTLAND","ME","O-7",{"$f":"TRANSPOSE(AB3986)","v":2361}]
["COASTAL MAINE","ME","E-1",{"$f":"TRANSPOSE(E4010:E4010)","v":1098},1098,1098,1098,1098,1227,1338,1359,1383,1422,1338,1368,1398,1428,1464,1365,1395,1434,1239,1335,1398,1476,1533,1548,1566]
["COASTAL MAINE","ME","E-2",{"$f":"TRANSPOSE(F4010:F4010)","v":1098}]
["COASTAL MAINE","ME","E-3",{"$f":"TRANSPOSE(G4010:G4010)","v":1098}]
["COASTAL MAINE","ME","E-4",{"$f":"TRANSPOSE(H4010:H4010)","v":1098}]
["COASTAL MAINE","ME","E-5",{"$f":"TRANSPOSE(I4010:I4010)","v":1227}]
["COASTAL MAINE","ME","E-6",{"$f":"TRANSPOSE(J4010:J4010)","v":1338}]
["COASTAL MAINE","ME","E-7",{"$f":"TRANSPOSE(K4010:K4010)","v":1359}]
["COASTAL MAINE","ME","E-8",{"$f":"TRANSPOSE(L4010)","v":1383}]
["COASTAL MAINE","ME","E-9",{"$f":"TRANSPOSE(M4010)","v":1422}]
["COASTAL MAINE","ME","W-1",{"$f":"TRANSPOSE(N4010)","v":1338}]
["COASTAL MAINE","ME","W-2",{"$f":"TRANSPOSE(O4010)","v":1368}]
["COASTAL MAINE","ME","W-3",{"$f":"TRANSPOSE(P4010)","v":1398}]
["COASTAL MAINE","ME","W-4",{"$f":"TRANSPOSE(Q4010)","v":1428}]
["COASTAL MAINE","ME","W-5",{"$f":"TRANSPOSE(R4010)","v":1464}]
["COASTAL MAINE","ME","O-1E",{"$f":"TRANSPOSE(S4010)","v":1365}]
["COASTAL MAINE","ME","O-2E",{"$f":"TRANSPOSE(T4010)","v":1395}]
["COASTAL MAINE","ME","O-3E",{"$f":"TRANSPOSE(U4010)","v":1434}]
["COASTAL MAINE","ME","O-1",{"$f":"TRANSPOSE(V4010)","v":1239}]
["COASTAL MAINE","ME","O-2",{"$f":"TRANSPOSE(W4010)","v":1335}]
["COASTAL MAINE","ME","O-3",{"$f":"TRANSPOSE(X4010)","v":1398}]
["COASTAL MAINE","ME","O-4",{"$f":"TRANSPOSE(Y4010)","v":1476}]
["COASTAL MAINE","ME","O-5",{"$f":"TRANSPOSE(Z4010)","v":1533}]
["COASTAL MAINE","ME","O-6",{"$f":"TRANSPOSE(AA4010)","v":1548}]
["COASTAL MAINE","ME","O-7",{"$f":"TRANSPOSE(AB4010)","v":1566}]
["BANGOR","ME","E-1",{"$f":"TRANSPOSE(E4034:E4034)","v":1056},1056,1056,1056,1056,1107,1293,1341,1395,1476,1293,1362,1428,1494,1572,1353,1419,1506,1128,1290,1425,1602,1731,1746,1764]
["BANGOR","ME","E-2",{"$f":"TRANSPOSE(F4034:F4034)","v":1056}]
["BANGOR","ME","E-3",{"$f":"TRANSPOSE(G4034:G4034)","v":1056}]
["BANGOR","ME","E-4",{"$f":"TRANSPOSE(H4034:H4034)","v":1056}]
["BANGOR","ME","E-5",{"$f":"TRANSPOSE(I4034:I4034)","v":1107}]
["BANGOR","ME","E-6",{"$f":"TRANSPOSE(J4034:J4034)","v":1293}]
["BANGOR","ME","E-7",{"$f":"TRANSPOSE(K4034:K4034)","v":1341}]
["BANGOR","ME","E-8",{"$f":"TRANSPOSE(L4034)","v":1395}]
["BANGOR","ME","E-9",{"$f":"TRANSPOSE(M4034)","v":1476}]
["BANGOR","ME","W-1",{"$f":"TRANSPOSE(N4034)","v":1293}]
["BANGOR","ME","W-2",{"$f":"TRANSPOSE(O4034)","v":1362}]
["BANGOR","ME","W-3",{"$f":"TRANSPOSE(P4034)","v":1428}]
["BANGOR","ME","W-4",{"$f":"TRANSPOSE(Q4034)","v":1494}]
["BANGOR","ME","W-5",{"$f":"TRANSPOSE(R4034)","v":1572}]
["BANGOR","ME","O-1E",{"$f":"TRANSPOSE(S4034)","v":1353}]
["BANGOR","ME","O-2E",{"$f":"TRANSPOSE(T4034)","v":1419}]
["BANGOR","ME","O-3E",{"$f":"TRANSPOSE(U4034)","v":1506}]
["BANGOR","ME","O-1",{"$f":"TRANSPOSE(V4034)","v":1128}]
["BANGOR","ME","O-2",{"$f":"TRANSPOSE(W4034)","v":1290}]
["BANGOR","ME","O-3",{"$f":"TRANSPOSE(X4034)","v":1425}]
["BANGOR","ME","O-4",{"$f":"TRANSPOSE(Y4034)","v":1602}]
["BANGOR","ME","O-5",{"$f":"TRANSPOSE(Z4034)","v":1731}]
["BANGOR","ME","O-6",{"$f":"TRANSPOSE(AA4034)","v":1746}]
["BANGOR","ME","O-7",{"$f":"TRANSPOSE(AB4034)","v":1764}]
["DETROIT","MI","E-1",{"$f":"TRANSPOSE(E4058:E4058)","v":1164},1164,1164,1164,1164,1308,1521,1656,1803,1992,1524,1716,1896,2025,2178,1686,1872,2049,1332,1515,1890,2238,2484,2511,2535]
["DETROIT","MI","E-2",{"$f":"TRANSPOSE(F4058:F4058)","v":1164}]
["DETROIT","MI","E-3",{"$f":"TRANSPOSE(G4058:G4058)","v":1164}]
["DETROIT","MI","E-4",{"$f":"TRANSPOSE(H4058:H4058)","v":1164}]
["DETROIT","MI","E-5",{"$f":"TRANSPOSE(I4058:I4058)","v":1308}]
["DETROIT","MI","E-6",{"$f":"TRANSPOSE(J4058:J4058)","v":1521}]
["DETROIT","MI","E-7",{"$f":"TRANSPOSE(K4058:K4058)","v":1656}]
["DETROIT","MI","E-8",{"$f":"TRANSPOSE(L4058)","v":1803}]
["DETROIT","MI","E-9",{"$f":"TRANSPOSE(M4058)","v":1992}]
["DETROIT","MI","W-1",{"$f":"TRANSPOSE(N4058)","v":1524}]
["DETROIT","MI","W-2",{"$f":"TRANSPOSE(O4058)","v":1716}]
["DETROIT","MI","W-3",{"$f":"TRANSPOSE(P4058)","v":1896}]
["DETROIT","MI","W-4",{"$f":"TRANSPOSE(Q4058)","v":2025}]
["DETROIT","MI","W-5",{"$f":"TRANSPOSE(R4058)","v":2178}]
["DETROIT","MI","O-1E",{"$f":"TRANSPOSE(S4058)","v":1686}]
["DETROIT","MI","O-2E",{"$f":"TRANSPOSE(T4058)","v":1872}]
["DETROIT","MI","O-3E",{"$f":"TRANSPOSE(U4058)","v":2049}]
["DETROIT","MI","O-1",{"$f":"TRANSPOSE(V4058)","v":1332}]
["DETROIT","MI","O-2",{"$f":"TRANSPOSE(W4058)","v":1515}]
["DETROIT","MI","O-3",{"$f":"TRANSPOSE(X4058)","v":1890}]
["DETROIT","MI","O-4",{"$f":"TRANSPOSE(Y4058)","v":2238}]
["DETROIT","MI","O-5",{"$f":"TRANSPOSE(Z4058)","v":2484}]
["DETROIT","MI","O-6",{"$f":"TRANSPOSE(AA4058)","v":2511}]
["DETROIT","MI","O-7",{"$f":"TRANSPOSE(AB4058)","v":2535}]
["MARQUETTE","MI","E-1",{"$f":"TRANSPOSE(E4082:E4082)","v":840},840,840,840,840,924,1110,1188,1269,1380,1113,1221,1323,1401,1494,1203,1308,1416,945,1107,1320,1530,1683,1698,1716]
["MARQUETTE","MI","E-2",{"$f":"TRANSPOSE(F4082:F4082)","v":840}]
["MARQUETTE","MI","E-3",{"$f":"TRANSPOSE(G4082:G4082)","v":840}]
["MARQUETTE","MI","E-4",{"$f":"TRANSPOSE(H4082:H4082)","v":840}]
["MARQUETTE","MI","E-5",{"$f":"TRANSPOSE(I4082:I4082)","v":924}]
["MARQUETTE","MI","E-6",{"$f":"TRANSPOSE(J4082:J4082)","v":1110}]
["MARQUETTE","MI","E-7",{"$f":"TRANSPOSE(K4082:K4082)","v":1188}]
["MARQUETTE","MI","E-8",{"$f":"TRANSPOSE(L4082)","v":1269}]
["MARQUETTE","MI","E-9",{"$f":"TRANSPOSE(M4082)","v":1380}]
["MARQUETTE","MI","W-1",{"$f":"TRANSPOSE(N4082)","v":1113}]
["MARQUETTE","MI","W-2",{"$f":"TRANSPOSE(O4082)","v":1221}]
["MARQUETTE","MI","W-3",{"$f":"TRANSPOSE(P4082)","v":1323}]
["MARQUETTE","MI","W-4",{"$f":"TRANSPOSE(Q4082)","v":1401}]
["MARQUETTE","MI","W-5",{"$f":"TRANSPOSE(R4082)","v":1494}]
["MARQUETTE","MI","O-1E",{"$f":"TRANSPOSE(S4082)","v":1203}]
["MARQUETTE","MI","O-2E",{"$f":"TRANSPOSE(T4082)","v":1308}]
["MARQUETTE","MI","O-3E",{"$f":"TRANSPOSE(U4082)","v":1416}]
["MARQUETTE","MI","O-1",{"$f":"TRANSPOSE(V4082)","v":945}]
["MARQUETTE","MI","O-2",{"$f":"TRANSPOSE(W4082)","v":1107}]
["MARQUETTE","MI","O-3",{"$f":"TRANSPOSE(X4082)","v":1320}]
["MARQUETTE","MI","O-4",{"$f":"TRANSPOSE(Y4082)","v":1530}]
["MARQUETTE","MI","O-5",{"$f":"TRANSPOSE(Z4082)","v":1683}]
["MARQUETTE","MI","O-6",{"$f":"TRANSPOSE(AA4082)","v":1698}]
["MARQUETTE","MI","O-7",{"$f":"TRANSPOSE(AB4082)","v":1716}]
["SAULT STE MARIE","MI","E-1",{"$f":"TRANSPOSE(E4106:E4106)","v":771},771,771,771,771,816,1068,1092,1116,1158,1071,1101,1131,1167,1209,1098,1128,1173,843,1065,1131,1227,1293,1308,1320]
["SAULT STE MARIE","MI","E-2",{"$f":"TRANSPOSE(F4106:F4106)","v":771}]
["SAULT STE MARIE","MI","E-3",{"$f":"TRANSPOSE(G4106:G4106)","v":771}]
["SAULT STE MARIE","MI","E-4",{"$f":"TRANSPOSE(H4106:H4106)","v":771}]
["SAULT STE MARIE","MI","E-5",{"$f":"TRANSPOSE(I4106:I4106)","v":816}]
["SAULT STE MARIE","MI","E-6",{"$f":"TRANSPOSE(J4106:J4106)","v":1068}]
["SAULT STE MARIE","MI","E-7",{"$f":"TRANSPOSE(K4106:K4106)","v":1092}]
["SAULT STE MARIE","MI","E-8",{"$f":"TRANSPOSE(L4106)","v":1116}]
["SAULT STE MARIE","MI","E-9",{"$f":"TRANSPOSE(M4106)","v":1158}]
["SAULT STE MARIE","MI","W-1",{"$f":"TRANSPOSE(N4106)","v":1071}]
["SAULT STE MARIE","MI","W-2",{"$f":"TRANSPOSE(O4106)","v":1101}]
["SAULT STE MARIE","MI","W-3",{"$f":"TRANSPOSE(P4106)","v":1131}]
["SAULT STE MARIE","MI","W-4",{"$f":"TRANSPOSE(Q4106)","v":1167}]
["SAULT STE MARIE","MI","W-5",{"$f":"TRANSPOSE(R4106)","v":1209}]
["SAULT STE MARIE","MI","O-1E",{"$f":"TRANSPOSE(S4106)","v":1098}]
["SAULT STE MARIE","MI","O-2E",{"$f":"TRANSPOSE(T4106)","v":1128}]
["SAULT STE MARIE","MI","O-3E",{"$f":"TRANSPOSE(U4106)","v":1173}]
["SAULT STE MARIE","MI","O-1",{"$f":"TRANSPOSE(V4106)","v":843}]
["SAULT STE MARIE","MI","O-2",{"$f":"TRANSPOSE(W4106)","v":1065}]
["SAULT STE MARIE","MI","O-3",{"$f":"TRANSPOSE(X4106)","v":1131}]
["SAULT STE MARIE","MI","O-4",{"$f":"TRANSPOSE(Y4106)","v":1227}]
["SAULT STE MARIE","MI","O-5",{"$f":"TRANSPOSE(Z4106)","v":1293}]
["SAULT STE MARIE","MI","O-6",{"$f":"TRANSPOSE(AA4106)","v":1308}]
["SAULT STE MARIE","MI","O-7",{"$f":"TRANSPOSE(AB4106)","v":1320}]
["TRAVERSE CITY","MI","E-1",{"$f":"TRANSPOSE(E4130:E4130)","v":960},960,960,960,960,1080,1269,1305,1341,1410,1272,1320,1365,1428,1500,1311,1356,1437,1101,1266,1362,1530,1650,1665,1683]
["TRAVERSE CITY","MI","E-2",{"$f":"TRANSPOSE(F4130:F4130)","v":960}]
["TRAVERSE CITY","MI","E-3",{"$f":"TRANSPOSE(G4130:G4130)","v":960}]
["TRAVERSE CITY","MI","E-4",{"$f":"TRANSPOSE(H4130:H4130)","v":960}]
["TRAVERSE CITY","MI","E-5",{"$f":"TRANSPOSE(I4130:I4130)","v":1080}]
["TRAVERSE CITY","MI","E-6",{"$f":"TRANSPOSE(J4130:J4130)","v":1269}]
["TRAVERSE CITY","MI","E-7",{"$f":"TRANSPOSE(K4130:K4130)","v":1305}]
["TRAVERSE CITY","MI","E-8",{"$f":"TRANSPOSE(L4130)","v":1341}]
["TRAVERSE CITY","MI","E-9",{"$f":"TRANSPOSE(M4130)","v":1410}]
["TRAVERSE CITY","MI","W-1",{"$f":"TRANSPOSE(N4130)","v":1272}]
["TRAVERSE CITY","MI","W-2",{"$f":"TRANSPOSE(O4130)","v":1320}]
["TRAVERSE CITY","MI","W-3",{"$f":"TRANSPOSE(P4130)","v":1365}]
["TRAVERSE CITY","MI","W-4",{"$f":"TRANSPOSE(Q4130)","v":1428}]
["TRAVERSE CITY","MI","W-5",{"$f":"TRANSPOSE(R4130)","v":1500}]
["TRAVERSE CITY","MI","O-1E",{"$f":"TRANSPOSE(S4130)","v":1311}]
["TRAVERSE CITY","MI","O-2E",{"$f":"TRANSPOSE(T4130)","v":1356}]
["TRAVERSE CITY","MI","O-3E",{"$f":"TRANSPOSE(U4130)","v":1437}]
["TRAVERSE CITY","MI","O-1",{"$f":"TRANSPOSE(V4130)","v":1101}]
["TRAVERSE CITY","MI","O-2",{"$f":"TRANSPOSE(W4130)","v":1266}]
["TRAVERSE CITY","MI","O-3",{"$f":"TRANSPOSE(X4130)","v":1362}]
["TRAVERSE CITY","MI","O-4",{"$f":"TRANSPOSE(Y4130)","v":1530}]
["TRAVERSE CITY","MI","O-5",{"$f":"TRANSPOSE(Z4130)","v":1650}]
["TRAVERSE CITY","MI","O-6",{"$f":"TRANSPOSE(AA4130)","v":1665}]
["TRAVERSE CITY","MI","O-7",{"$f":"TRANSPOSE(AB4130)","v":1683}]
["GRAND HAVEN","MI","E-1",{"$f":"TRANSPOSE(E4154:E4154)","v":861},861,861,861,861,978,1152,1173,1194,1242,1155,1182,1209,1254,1305,1179,1206,1263,996,1149,1209,1326,1410,1425,1440]
["GRAND HAVEN","MI","E-2",{"$f":"TRANSPOSE(F4154:F4154)","v":861}]
["GRAND HAVEN","MI","E-3",{"$f":"TRANSPOSE(G4154:G4154)","v":861}]
["GRAND HAVEN","MI","E-4",{"$f":"TRANSPOSE(H4154:H4154)","v":861}]
["GRAND HAVEN","MI","E-5",{"$f":"TRANSPOSE(I4154:I4154)","v":978}]
["GRAND HAVEN","MI","E-6",{"$f":"TRANSPOSE(J4154:J4154)","v":1152}]
["GRAND HAVEN","MI","E-7",{"$f":"TRANSPOSE(K4154:K4154)","v":1173}]
["GRAND HAVEN","MI","E-8",{"$f":"TRANSPOSE(L4154)","v":1194}]
["GRAND HAVEN","MI","E-9",{"$f":"TRANSPOSE(M4154)","v":1242}]
["GRAND HAVEN","MI","W-1",{"$f":"TRANSPOSE(N4154)","v":1155}]
["GRAND HAVEN","MI","W-2",{"$f":"TRANSPOSE(O4154)","v":1182}]
["GRAND HAVEN","MI","W-3",{"$f":"TRANSPOSE(P4154)","v":1209}]
["GRAND HAVEN","MI","W-4",{"$f":"TRANSPOSE(Q4154)","v":1254}]
["GRAND HAVEN","MI","W-5",{"$f":"TRANSPOSE(R4154)","v":1305}]
["GRAND HAVEN","MI","O-1E",{"$f":"TRANSPOSE(S4154)","v":1179}]
["GRAND HAVEN","MI","O-2E",{"$f":"TRANSPOSE(T4154)","v":1206}]
["GRAND HAVEN","MI","O-3E",{"$f":"TRANSPOSE(U4154)","v":1263}]
["GRAND HAVEN","MI","O-1",{"$f":"TRANSPOSE(V4154)","v":996}]
["GRAND HAVEN","MI","O-2",{"$f":"TRANSPOSE(W4154)","v":1149}]
["GRAND HAVEN","MI","O-3",{"$f":"TRANSPOSE(X4154)","v":1209}]
["GRAND HAVEN","MI","O-4",{"$f":"TRANSPOSE(Y4154)","v":1326}]
["GRAND HAVEN","MI","O-5",{"$f":"TRANSPOSE(Z4154)","v":1410}]
["GRAND HAVEN","MI","O-6",{"$f":"TRANSPOSE(AA4154)","v":1425}]
["GRAND HAVEN","MI","O-7",{"$f":"TRANSPOSE(AB4154)","v":1440}]
["PORT HURON","MI","E-1",{"$f":"TRANSPOSE(E4178:E4178)","v":927},927,927,927,927,999,1182,1200,1218,1293,1182,1206,1230,1317,1416,1203,1227,1332,1017,1179,1230,1455,1617,1632,1650]
["PORT HURON","MI","E-2",{"$f":"TRANSPOSE(F4178:F4178)","v":927}]
["PORT HURON","MI","E-3",{"$f":"TRANSPOSE(G4178:G4178)","v":927}]
["PORT HURON","MI","E-4",{"$f":"TRANSPOSE(H4178:H4178)","v":927}]
["PORT HURON","MI","E-5",{"$f":"TRANSPOSE(I4178:I4178)","v":999}]
["PORT HURON","MI","E-6",{"$f":"TRANSPOSE(J4178:J4178)","v":1182}]
["PORT HURON","MI","E-7",{"$f":"TRANSPOSE(K4178:K4178)","v":1200}]
["PORT HURON","MI","E-8",{"$f":"TRANSPOSE(L4178)","v":1218}]
["PORT HURON","MI","E-9",{"$f":"TRANSPOSE(M4178)","v":1293}]
["PORT HURON","MI","W-1",{"$f":"TRANSPOSE(N4178)","v":1182}]
["PORT HURON","MI","W-2",{"$f":"TRANSPOSE(O4178)","v":1206}]
["PORT HURON","MI","W-3",{"$f":"TRANSPOSE(P4178)","v":1230}]
["PORT HURON","MI","W-4",{"$f":"TRANSPOSE(Q4178)","v":1317}]
["PORT HURON","MI","W-5",{"$f":"TRANSPOSE(R4178)","v":1416}]
["PORT HURON","MI","O-1E",{"$f":"TRANSPOSE(S4178)","v":1203}]
["PORT HURON","MI","O-2E",{"$f":"TRANSPOSE(T4178)","v":1227}]
["PORT HURON","MI","O-3E",{"$f":"TRANSPOSE(U4178)","v":1332}]
["PORT HURON","MI","O-1",{"$f":"TRANSPOSE(V4178)","v":1017}]
["PORT HURON","MI","O-2",{"$f":"TRANSPOSE(W4178)","v":1179}]
["PORT HURON","MI","O-3",{"$f":"TRANSPOSE(X4178)","v":1230}]
["PORT HURON","MI","O-4",{"$f":"TRANSPOSE(Y4178)","v":1455}]
["PORT HURON","MI","O-5",{"$f":"TRANSPOSE(Z4178)","v":1617}]
["PORT HURON","MI","O-6",{"$f":"TRANSPOSE(AA4178)","v":1632}]
["PORT HURON","MI","O-7",{"$f":"TRANSPOSE(AB4178)","v":1650}]
["BATTLE CREEK/KALAMAZOO","MI","E-1",{"$f":"TRANSPOSE(E4202:E4202)","v":954},954,954,954,954,1122,1227,1341,1467,1593,1230,1395,1548,1611,1686,1368,1527,1623,1134,1224,1542,1713,1833,1851,1869]
["BATTLE CREEK/KALAMAZOO","MI","E-2",{"$f":"TRANSPOSE(F4202:F4202)","v":954}]
["BATTLE CREEK/KALAMAZOO","MI","E-3",{"$f":"TRANSPOSE(G4202:G4202)","v":954}]
["BATTLE CREEK/KALAMAZOO","MI","E-4",{"$f":"TRANSPOSE(H4202:H4202)","v":954}]
["BATTLE CREEK/KALAMAZOO","MI","E-5",{"$f":"TRANSPOSE(I4202:I4202)","v":1122}]
["BATTLE CREEK/KALAMAZOO","MI","E-6",{"$f":"TRANSPOSE(J4202:J4202)","v":1227}]
["BATTLE CREEK/KALAMAZOO","MI","E-7",{"$f":"TRANSPOSE(K4202:K4202)","v":1341}]
["BATTLE CREEK/KALAMAZOO","MI","E-8",{"$f":"TRANSPOSE(L4202)","v":1467}]
["BATTLE CREEK/KALAMAZOO","MI","E-9",{"$f":"TRANSPOSE(M4202)","v":1593}]
["BATTLE CREEK/KALAMAZOO","MI","W-1",{"$f":"TRANSPOSE(N4202)","v":1230}]
["BATTLE CREEK/KALAMAZOO","MI","W-2",{"$f":"TRANSPOSE(O4202)","v":1395}]
["BATTLE CREEK/KALAMAZOO","MI","W-3",{"$f":"TRANSPOSE(P4202)","v":1548}]
["BATTLE CREEK/KALAMAZOO","MI","W-4",{"$f":"TRANSPOSE(Q4202)","v":1611}]
["BATTLE CREEK/KALAMAZOO","MI","W-5",{"$f":"TRANSPOSE(R4202)","v":1686}]
["BATTLE CREEK/KALAMAZOO","MI","O-1E",{"$f":"TRANSPOSE(S4202)","v":1368}]
["BATTLE CREEK/KALAMAZOO","MI","O-2E",{"$f":"TRANSPOSE(T4202)","v":1527}]
["BATTLE CREEK/KALAMAZOO","MI","O-3E",{"$f":"TRANSPOSE(U4202)","v":1623}]
["BATTLE CREEK/KALAMAZOO","MI","O-1",{"$f":"TRANSPOSE(V4202)","v":1134}]
["BATTLE CREEK/KALAMAZOO","MI","O-2",{"$f":"TRANSPOSE(W4202)","v":1224}]
["BATTLE CREEK/KALAMAZOO","MI","O-3",{"$f":"TRANSPOSE(X4202)","v":1542}]
["BATTLE CREEK/KALAMAZOO","MI","O-4",{"$f":"TRANSPOSE(Y4202)","v":1713}]
["BATTLE CREEK/KALAMAZOO","MI","O-5",{"$f":"TRANSPOSE(Z4202)","v":1833}]
["BATTLE CREEK/KALAMAZOO","MI","O-6",{"$f":"TRANSPOSE(AA4202)","v":1851}]
["BATTLE CREEK/KALAMAZOO","MI","O-7",{"$f":"TRANSPOSE(AB4202)","v":1869}]
["LANSING","MI","E-1",{"$f":"TRANSPOSE(E4226:E4226)","v":1077},1077,1077,1077,1077,1197,1227,1299,1380,1470,1230,1332,1428,1485,1554,1317,1416,1497,1200,1227,1425,1581,1689,1707,1722]
["LANSING","MI","E-2",{"$f":"TRANSPOSE(F4226:F4226)","v":1077}]
["LANSING","MI","E-3",{"$f":"TRANSPOSE(G4226:G4226)","v":1077}]
["LANSING","MI","E-4",{"$f":"TRANSPOSE(H4226:H4226)","v":1077}]
["LANSING","MI","E-5",{"$f":"TRANSPOSE(I4226:I4226)","v":1197}]
["LANSING","MI","E-6",{"$f":"TRANSPOSE(J4226:J4226)","v":1227}]
["LANSING","MI","E-7",{"$f":"TRANSPOSE(K4226:K4226)","v":1299}]
["LANSING","MI","E-8",{"$f":"TRANSPOSE(L4226)","v":1380}]
["LANSING","MI","E-9",{"$f":"TRANSPOSE(M4226)","v":1470}]
["LANSING","MI","W-1",{"$f":"TRANSPOSE(N4226)","v":1230}]
["LANSING","MI","W-2",{"$f":"TRANSPOSE(O4226)","v":1332}]
["LANSING","MI","W-3",{"$f":"TRANSPOSE(P4226)","v":1428}]
["LANSING","MI","W-4",{"$f":"TRANSPOSE(Q4226)","v":1485}]
["LANSING","MI","W-5",{"$f":"TRANSPOSE(R4226)","v":1554}]
["LANSING","MI","O-1E",{"$f":"TRANSPOSE(S4226)","v":1317}]
["LANSING","MI","O-2E",{"$f":"TRANSPOSE(T4226)","v":1416}]
["LANSING","MI","O-3E",{"$f":"TRANSPOSE(U4226)","v":1497}]
["LANSING","MI","O-1",{"$f":"TRANSPOSE(V4226)","v":1200}]
["LANSING","MI","O-2",{"$f":"TRANSPOSE(W4226)","v":1227}]
["LANSING","MI","O-3",{"$f":"TRANSPOSE(X4226)","v":1425}]
["LANSING","MI","O-4",{"$f":"TRANSPOSE(Y4226)","v":1581}]
["LANSING","MI","O-5",{"$f":"TRANSPOSE(Z4226)","v":1689}]
["LANSING","MI","O-6",{"$f":"TRANSPOSE(AA4226)","v":1707}]
["LANSING","MI","O-7",{"$f":"TRANSPOSE(AB4226)","v":1722}]
["GRAND RAPIDS","MI","E-1",{"$f":"TRANSPOSE(E4250:E4250)","v":948},948,948,948,948,1056,1287,1290,1290,1347,1287,1290,1293,1368,1455,1290,1293,1380,1083,1281,1293,1488,1629,1644,1662]
["GRAND RAPIDS","MI","E-2",{"$f":"TRANSPOSE(F4250:F4250)","v":948}]
["GRAND RAPIDS","MI","E-3",{"$f":"TRANSPOSE(G4250:G4250)","v":948}]
["GRAND RAPIDS","MI","E-4",{"$f":"TRANSPOSE(H4250:H4250)","v":948}]
["GRAND RAPIDS","MI","E-5",{"$f":"TRANSPOSE(I4250:I4250)","v":1056}]
["GRAND RAPIDS","MI","E-6",{"$f":"TRANSPOSE(J4250:J4250)","v":1287}]
["GRAND RAPIDS","MI","E-7",{"$f":"TRANSPOSE(K4250:K4250)","v":1290}]
["GRAND RAPIDS","MI","E-8",{"$f":"TRANSPOSE(L4250)","v":1290}]
["GRAND RAPIDS","MI","E-9",{"$f":"TRANSPOSE(M4250)","v":1347}]
["GRAND RAPIDS","MI","W-1",{"$f":"TRANSPOSE(N4250)","v":1287}]
["GRAND RAPIDS","MI","W-2",{"$f":"TRANSPOSE(O4250)","v":1290}]
["GRAND RAPIDS","MI","W-3",{"$f":"TRANSPOSE(P4250)","v":1293}]
["GRAND RAPIDS","MI","W-4",{"$f":"TRANSPOSE(Q4250)","v":1368}]
["GRAND RAPIDS","MI","W-5",{"$f":"TRANSPOSE(R4250)","v":1455}]
["GRAND RAPIDS","MI","O-1E",{"$f":"TRANSPOSE(S4250)","v":1290}]
["GRAND RAPIDS","MI","O-2E",{"$f":"TRANSPOSE(T4250)","v":1293}]
["GRAND RAPIDS","MI","O-3E",{"$f":"TRANSPOSE(U4250)","v":1380}]
["GRAND RAPIDS","MI","O-1",{"$f":"TRANSPOSE(V4250)","v":1083}]
["GRAND RAPIDS","MI","O-2",{"$f":"TRANSPOSE(W4250)","v":1281}]
["GRAND RAPIDS","MI","O-3",{"$f":"TRANSPOSE(X4250)","v":1293}]
["GRAND RAPIDS","MI","O-4",{"$f":"TRANSPOSE(Y4250)","v":1488}]
["GRAND RAPIDS","MI","O-5",{"$f":"TRANSPOSE(Z4250)","v":1629}]
["GRAND RAPIDS","MI","O-6",{"$f":"TRANSPOSE(AA4250)","v":1644}]
["GRAND RAPIDS","MI","O-7",{"$f":"TRANSPOSE(AB4250)","v":1662}]
["ANN ARBOR","MI","E-1",{"$f":"TRANSPOSE(E4274:E4274)","v":1191},1191,1191,1191,1191,1359,1515,1626,1743,1908,1518,1674,1818,1941,2088,1650,1797,1965,1374,1512,1812,2145,2379,2403,2427]
["ANN ARBOR","MI","E-2",{"$f":"TRANSPOSE(F4274:F4274)","v":1191}]
["ANN ARBOR","MI","E-3",{"$f":"TRANSPOSE(G4274:G4274)","v":1191}]
["ANN ARBOR","MI","E-4",{"$f":"TRANSPOSE(H4274:H4274)","v":1191}]
["ANN ARBOR","MI","E-5",{"$f":"TRANSPOSE(I4274:I4274)","v":1359}]
["ANN ARBOR","MI","E-6",{"$f":"TRANSPOSE(J4274:J4274)","v":1515}]
["ANN ARBOR","MI","E-7",{"$f":"TRANSPOSE(K4274:K4274)","v":1626}]
["ANN ARBOR","MI","E-8",{"$f":"TRANSPOSE(L4274)","v":1743}]
["ANN ARBOR","MI","E-9",{"$f":"TRANSPOSE(M4274)","v":1908}]
["ANN ARBOR","MI","W-1",{"$f":"TRANSPOSE(N4274)","v":1518}]
["ANN ARBOR","MI","W-2",{"$f":"TRANSPOSE(O4274)","v":1674}]
["ANN ARBOR","MI","W-3",{"$f":"TRANSPOSE(P4274)","v":1818}]
["ANN ARBOR","MI","W-4",{"$f":"TRANSPOSE(Q4274)","v":1941}]
["ANN ARBOR","MI","W-5",{"$f":"TRANSPOSE(R4274)","v":2088}]
["ANN ARBOR","MI","O-1E",{"$f":"TRANSPOSE(S4274)","v":1650}]
["ANN ARBOR","MI","O-2E",{"$f":"TRANSPOSE(T4274)","v":1797}]
["ANN ARBOR","MI","O-3E",{"$f":"TRANSPOSE(U4274)","v":1965}]
["ANN ARBOR","MI","O-1",{"$f":"TRANSPOSE(V4274)","v":1374}]
["ANN ARBOR","MI","O-2",{"$f":"TRANSPOSE(W4274)","v":1512}]
["ANN ARBOR","MI","O-3",{"$f":"TRANSPOSE(X4274)","v":1812}]
["ANN ARBOR","MI","O-4",{"$f":"TRANSPOSE(Y4274)","v":2145}]
["ANN ARBOR","MI","O-5",{"$f":"TRANSPOSE(Z4274)","v":2379}]
["ANN ARBOR","MI","O-6",{"$f":"TRANSPOSE(AA4274)","v":2403}]
["ANN ARBOR","MI","O-7",{"$f":"TRANSPOSE(AB4274)","v":2427}]
["SAGINAW","MI","E-1",{"$f":"TRANSPOSE(E4298:E4298)","v":852},852,852,852,852,936,1125,1182,1245,1320,1128,1206,1284,1335,1398,1194,1272,1344,957,1122,1281,1422,1521,1536,1551]
["SAGINAW","MI","E-2",{"$f":"TRANSPOSE(F4298:F4298)","v":852}]
["SAGINAW","MI","E-3",{"$f":"TRANSPOSE(G4298:G4298)","v":852}]
["SAGINAW","MI","E-4",{"$f":"TRANSPOSE(H4298:H4298)","v":852}]
["SAGINAW","MI","E-5",{"$f":"TRANSPOSE(I4298:I4298)","v":936}]
["SAGINAW","MI","E-6",{"$f":"TRANSPOSE(J4298:J4298)","v":1125}]
["SAGINAW","MI","E-7",{"$f":"TRANSPOSE(K4298:K4298)","v":1182}]
["SAGINAW","MI","E-8",{"$f":"TRANSPOSE(L4298)","v":1245}]
["SAGINAW","MI","E-9",{"$f":"TRANSPOSE(M4298)","v":1320}]
["SAGINAW","MI","W-1",{"$f":"TRANSPOSE(N4298)","v":1128}]
["SAGINAW","MI","W-2",{"$f":"TRANSPOSE(O4298)","v":1206}]
["SAGINAW","MI","W-3",{"$f":"TRANSPOSE(P4298)","v":1284}]
["SAGINAW","MI","W-4",{"$f":"TRANSPOSE(Q4298)","v":1335}]
["SAGINAW","MI","W-5",{"$f":"TRANSPOSE(R4298)","v":1398}]
["SAGINAW","MI","O-1E",{"$f":"TRANSPOSE(S4298)","v":1194}]
["SAGINAW","MI","O-2E",{"$f":"TRANSPOSE(T4298)","v":1272}]
["SAGINAW","MI","O-3E",{"$f":"TRANSPOSE(U4298)","v":1344}]
["SAGINAW","MI","O-1",{"$f":"TRANSPOSE(V4298)","v":957}]
["SAGINAW","MI","O-2",{"$f":"TRANSPOSE(W4298)","v":1122}]
["SAGINAW","MI","O-3",{"$f":"TRANSPOSE(X4298)","v":1281}]
["SAGINAW","MI","O-4",{"$f":"TRANSPOSE(Y4298)","v":1422}]
["SAGINAW","MI","O-5",{"$f":"TRANSPOSE(Z4298)","v":1521}]
["SAGINAW","MI","O-6",{"$f":"TRANSPOSE(AA4298)","v":1536}]
["SAGINAW","MI","O-7",{"$f":"TRANSPOSE(AB4298)","v":1551}]
["ALPENA","MI","E-1",{"$f":"TRANSPOSE(E4322:E4322)","v":729},729,729,729,729,831,939,978,1020,1092,939,996,1050,1110,1182,987,1041,1119,843,936,1047,1209,1323,1335,1350]
["ALPENA","MI","E-2",{"$f":"TRANSPOSE(F4322:F4322)","v":729}]
["ALPENA","MI","E-3",{"$f":"TRANSPOSE(G4322:G4322)","v":729}]
["ALPENA","MI","E-4",{"$f":"TRANSPOSE(H4322:H4322)","v":729}]
["ALPENA","MI","E-5",{"$f":"TRANSPOSE(I4322:I4322)","v":831}]
["ALPENA","MI","E-6",{"$f":"TRANSPOSE(J4322:J4322)","v":939}]
["ALPENA","MI","E-7",{"$f":"TRANSPOSE(K4322:K4322)","v":978}]
["ALPENA","MI","E-8",{"$f":"TRANSPOSE(L4322)","v":1020}]
["ALPENA","MI","E-9",{"$f":"TRANSPOSE(M4322)","v":1092}]
["ALPENA","MI","W-1",{"$f":"TRANSPOSE(N4322)","v":939}]
["ALPENA","MI","W-2",{"$f":"TRANSPOSE(O4322)","v":996}]
["ALPENA","MI","W-3",{"$f":"TRANSPOSE(P4322)","v":1050}]
["ALPENA","MI","W-4",{"$f":"TRANSPOSE(Q4322)","v":1110}]
["ALPENA","MI","W-5",{"$f":"TRANSPOSE(R4322)","v":1182}]
["ALPENA","MI","O-1E",{"$f":"TRANSPOSE(S4322)","v":987}]
["ALPENA","MI","O-2E",{"$f":"TRANSPOSE(T4322)","v":1041}]
["ALPENA","MI","O-3E",{"$f":"TRANSPOSE(U4322)","v":1119}]
["ALPENA","MI","O-1",{"$f":"TRANSPOSE(V4322)","v":843}]
["ALPENA","MI","O-2",{"$f":"TRANSPOSE(W4322)","v":936}]
["ALPENA","MI","O-3",{"$f":"TRANSPOSE(X4322)","v":1047}]
["ALPENA","MI","O-4",{"$f":"TRANSPOSE(Y4322)","v":1209}]
["ALPENA","MI","O-5",{"$f":"TRANSPOSE(Z4322)","v":1323}]
["ALPENA","MI","O-6",{"$f":"TRANSPOSE(AA4322)","v":1335}]
["ALPENA","MI","O-7",{"$f":"TRANSPOSE(AB4322)","v":1350}]
["CHARLEVOIX","MI","E-1",{"$f":"TRANSPOSE(E4346:E4346)","v":870},870,870,870,870,981,1164,1215,1269,1383,1164,1236,1305,1413,1542,1227,1296,1434,999,1161,1302,1593,1800,1818,1836]
["CHARLEVOIX","MI","E-2",{"$f":"TRANSPOSE(F4346:F4346)","v":870}]
["CHARLEVOIX","MI","E-3",{"$f":"TRANSPOSE(G4346:G4346)","v":870}]
["CHARLEVOIX","MI","E-4",{"$f":"TRANSPOSE(H4346:H4346)","v":870}]
["CHARLEVOIX","MI","E-5",{"$f":"TRANSPOSE(I4346:I4346)","v":981}]
["CHARLEVOIX","MI","E-6",{"$f":"TRANSPOSE(J4346:J4346)","v":1164}]
["CHARLEVOIX","MI","E-7",{"$f":"TRANSPOSE(K4346:K4346)","v":1215}]
["CHARLEVOIX","MI","E-8",{"$f":"TRANSPOSE(L4346)","v":1269}]
["CHARLEVOIX","MI","E-9",{"$f":"TRANSPOSE(M4346)","v":1383}]
["CHARLEVOIX","MI","W-1",{"$f":"TRANSPOSE(N4346)","v":1164}]
["CHARLEVOIX","MI","W-2",{"$f":"TRANSPOSE(O4346)","v":1236}]
["CHARLEVOIX","MI","W-3",{"$f":"TRANSPOSE(P4346)","v":1305}]
["CHARLEVOIX","MI","W-4",{"$f":"TRANSPOSE(Q4346)","v":1413}]
["CHARLEVOIX","MI","W-5",{"$f":"TRANSPOSE(R4346)","v":1542}]
["CHARLEVOIX","MI","O-1E",{"$f":"TRANSPOSE(S4346)","v":1227}]
["CHARLEVOIX","MI","O-2E",{"$f":"TRANSPOSE(T4346)","v":1296}]
["CHARLEVOIX","MI","O-3E",{"$f":"TRANSPOSE(U4346)","v":1434}]
["CHARLEVOIX","MI","O-1",{"$f":"TRANSPOSE(V4346)","v":999}]
["CHARLEVOIX","MI","O-2",{"$f":"TRANSPOSE(W4346)","v":1161}]
["CHARLEVOIX","MI","O-3",{"$f":"TRANSPOSE(X4346)","v":1302}]
["CHARLEVOIX","MI","O-4",{"$f":"TRANSPOSE(Y4346)","v":1593}]
["CHARLEVOIX","MI","O-5",{"$f":"TRANSPOSE(Z4346)","v":1800}]
["CHARLEVOIX","MI","O-6",{"$f":"TRANSPOSE(AA4346)","v":1818}]
["CHARLEVOIX","MI","O-7",{"$f":"TRANSPOSE(AB4346)","v":1836}]
["DULUTH","MN","E-1",{"$f":"TRANSPOSE(E4370:E4370)","v":1044},1044,1044,1044,1044,1185,1374,1395,1416,1494,1374,1404,1431,1518,1623,1398,1428,1533,1206,1371,1431,1662,1827,1845,1866]
["DULUTH","MN","E-2",{"$f":"TRANSPOSE(F4370:F4370)","v":1044}]
["DULUTH","MN","E-3",{"$f":"TRANSPOSE(G4370:G4370)","v":1044}]
["DULUTH","MN","E-4",{"$f":"TRANSPOSE(H4370:H4370)","v":1044}]
["DULUTH","MN","E-5",{"$f":"TRANSPOSE(I4370:I4370)","v":1185}]
["DULUTH","MN","E-6",{"$f":"TRANSPOSE(J4370:J4370)","v":1374}]
["DULUTH","MN","E-7",{"$f":"TRANSPOSE(K4370:K4370)","v":1395}]
["DULUTH","MN","E-8",{"$f":"TRANSPOSE(L4370)","v":1416}]
["DULUTH","MN","E-9",{"$f":"TRANSPOSE(M4370)","v":1494}]
["DULUTH","MN","W-1",{"$f":"TRANSPOSE(N4370)","v":1374}]
["DULUTH","MN","W-2",{"$f":"TRANSPOSE(O4370)","v":1404}]
["DULUTH","MN","W-3",{"$f":"TRANSPOSE(P4370)","v":1431}]
["DULUTH","MN","W-4",{"$f":"TRANSPOSE(Q4370)","v":1518}]
["DULUTH","MN","W-5",{"$f":"TRANSPOSE(R4370)","v":1623}]
["DULUTH","MN","O-1E",{"$f":"TRANSPOSE(S4370)","v":1398}]
["DULUTH","MN","O-2E",{"$f":"TRANSPOSE(T4370)","v":1428}]
["DULUTH","MN","O-3E",{"$f":"TRANSPOSE(U4370)","v":1533}]
["DULUTH","MN","O-1",{"$f":"TRANSPOSE(V4370)","v":1206}]
["DULUTH","MN","O-2",{"$f":"TRANSPOSE(W4370)","v":1371}]
["DULUTH","MN","O-3",{"$f":"TRANSPOSE(X4370)","v":1431}]
["DULUTH","MN","O-4",{"$f":"TRANSPOSE(Y4370)","v":1662}]
["DULUTH","MN","O-5",{"$f":"TRANSPOSE(Z4370)","v":1827}]
["DULUTH","MN","O-6",{"$f":"TRANSPOSE(AA4370)","v":1845}]
["DULUTH","MN","O-7",{"$f":"TRANSPOSE(AB4370)","v":1866}]
["MINNEAPOLIS/ST PAUL","MN","E-1",{"$f":"TRANSPOSE(E4394:E4394)","v":1257},1257,1257,1257,1257,1428,1650,1692,1740,1818,1653,1713,1770,1836,1917,1704,1761,1851,1452,1647,1767,1950,2079,2100,2121]
["MINNEAPOLIS/ST PAUL","MN","E-2",{"$f":"TRANSPOSE(F4394:F4394)","v":1257}]
["MINNEAPOLIS/ST PAUL","MN","E-3",{"$f":"TRANSPOSE(G4394:G4394)","v":1257}]
["MINNEAPOLIS/ST PAUL","MN","E-4",{"$f":"TRANSPOSE(H4394:H4394)","v":1257}]
["MINNEAPOLIS/ST PAUL","MN","E-5",{"$f":"TRANSPOSE(I4394:I4394)","v":1428}]
["MINNEAPOLIS/ST PAUL","MN","E-6",{"$f":"TRANSPOSE(J4394:J4394)","v":1650}]
["MINNEAPOLIS/ST PAUL","MN","E-7",{"$f":"TRANSPOSE(K4394:K4394)","v":1692}]
["MINNEAPOLIS/ST PAUL","MN","E-8",{"$f":"TRANSPOSE(L4394)","v":1740}]
["MINNEAPOLIS/ST PAUL","MN","E-9",{"$f":"TRANSPOSE(M4394)","v":1818}]
["MINNEAPOLIS/ST PAUL","MN","W-1",{"$f":"TRANSPOSE(N4394)","v":1653}]
["MINNEAPOLIS/ST PAUL","MN","W-2",{"$f":"TRANSPOSE(O4394)","v":1713}]
["MINNEAPOLIS/ST PAUL","MN","W-3",{"$f":"TRANSPOSE(P4394)","v":1770}]
["MINNEAPOLIS/ST PAUL","MN","W-4",{"$f":"TRANSPOSE(Q4394)","v":1836}]
["MINNEAPOLIS/ST PAUL","MN","W-5",{"$f":"TRANSPOSE(R4394)","v":1917}]
["MINNEAPOLIS/ST PAUL","MN","O-1E",{"$f":"TRANSPOSE(S4394)","v":1704}]
["MINNEAPOLIS/ST PAUL","MN","O-2E",{"$f":"TRANSPOSE(T4394)","v":1761}]
["MINNEAPOLIS/ST PAUL","MN","O-3E",{"$f":"TRANSPOSE(U4394)","v":1851}]
["MINNEAPOLIS/ST PAUL","MN","O-1",{"$f":"TRANSPOSE(V4394)","v":1452}]
["MINNEAPOLIS/ST PAUL","MN","O-2",{"$f":"TRANSPOSE(W4394)","v":1647}]
["MINNEAPOLIS/ST PAUL","MN","O-3",{"$f":"TRANSPOSE(X4394)","v":1767}]
["MINNEAPOLIS/ST PAUL","MN","O-4",{"$f":"TRANSPOSE(Y4394)","v":1950}]
["MINNEAPOLIS/ST PAUL","MN","O-5",{"$f":"TRANSPOSE(Z4394)","v":2079}]
["MINNEAPOLIS/ST PAUL","MN","O-6",{"$f":"TRANSPOSE(AA4394)","v":2100}]
["MINNEAPOLIS/ST PAUL","MN","O-7",{"$f":"TRANSPOSE(AB4394)","v":2121}]
["SAINT CLOUD","MN","E-1",{"$f":"TRANSPOSE(E4418:E4418)","v":876},876,876,876,876,1008,1182,1257,1338,1428,1185,1290,1392,1440,1500,1275,1377,1449,1026,1179,1386,1524,1617,1635,1650]
["SAINT CLOUD","MN","E-2",{"$f":"TRANSPOSE(F4418:F4418)","v":876}]
["SAINT CLOUD","MN","E-3",{"$f":"TRANSPOSE(G4418:G4418)","v":876}]
["SAINT CLOUD","MN","E-4",{"$f":"TRANSPOSE(H4418:H4418)","v":876}]
["SAINT CLOUD","MN","E-5",{"$f":"TRANSPOSE(I4418:I4418)","v":1008}]
["SAINT CLOUD","MN","E-6",{"$f":"TRANSPOSE(J4418:J4418)","v":1182}]
["SAINT CLOUD","MN","E-7",{"$f":"TRANSPOSE(K4418:K4418)","v":1257}]
["SAINT CLOUD","MN","E-8",{"$f":"TRANSPOSE(L4418)","v":1338}]
["SAINT CLOUD","MN","E-9",{"$f":"TRANSPOSE(M4418)","v":1428}]
["SAINT CLOUD","MN","W-1",{"$f":"TRANSPOSE(N4418)","v":1185}]
["SAINT CLOUD","MN","W-2",{"$f":"TRANSPOSE(O4418)","v":1290}]
["SAINT CLOUD","MN","W-3",{"$f":"TRANSPOSE(P4418)","v":1392}]
["SAINT CLOUD","MN","W-4",{"$f":"TRANSPOSE(Q4418)","v":1440}]
["SAINT CLOUD","MN","W-5",{"$f":"TRANSPOSE(R4418)","v":1500}]
["SAINT CLOUD","MN","O-1E",{"$f":"TRANSPOSE(S4418)","v":1275}]
["SAINT CLOUD","MN","O-2E",{"$f":"TRANSPOSE(T4418)","v":1377}]
["SAINT CLOUD","MN","O-3E",{"$f":"TRANSPOSE(U4418)","v":1449}]
["SAINT CLOUD","MN","O-1",{"$f":"TRANSPOSE(V4418)","v":1026}]
["SAINT CLOUD","MN","O-2",{"$f":"TRANSPOSE(W4418)","v":1179}]
["SAINT CLOUD","MN","O-3",{"$f":"TRANSPOSE(X4418)","v":1386}]
["SAINT CLOUD","MN","O-4",{"$f":"TRANSPOSE(Y4418)","v":1524}]
["SAINT CLOUD","MN","O-5",{"$f":"TRANSPOSE(Z4418)","v":1617}]
["SAINT CLOUD","MN","O-6",{"$f":"TRANSPOSE(AA4418)","v":1635}]
["SAINT CLOUD","MN","O-7",{"$f":"TRANSPOSE(AB4418)","v":1650}]
["ROCHESTER","MN","E-1",{"$f":"TRANSPOSE(E4442:E4442)","v":903},903,903,903,903,1029,1182,1245,1311,1413,1185,1272,1356,1437,1530,1260,1344,1449,1047,1179,1353,1569,1722,1740,1755]
["ROCHESTER","MN","E-2",{"$f":"TRANSPOSE(F4442:F4442)","v":903}]
["ROCHESTER","MN","E-3",{"$f":"TRANSPOSE(G4442:G4442)","v":903}]
["ROCHESTER","MN","E-4",{"$f":"TRANSPOSE(H4442:H4442)","v":903}]
["ROCHESTER","MN","E-5",{"$f":"TRANSPOSE(I4442:I4442)","v":1029}]
["ROCHESTER","MN","E-6",{"$f":"TRANSPOSE(J4442:J4442)","v":1182}]
["ROCHESTER","MN","E-7",{"$f":"TRANSPOSE(K4442:K4442)","v":1245}]
["ROCHESTER","MN","E-8",{"$f":"TRANSPOSE(L4442)","v":1311}]
["ROCHESTER","MN","E-9",{"$f":"TRANSPOSE(M4442)","v":1413}]
["ROCHESTER","MN","W-1",{"$f":"TRANSPOSE(N4442)","v":1185}]
["ROCHESTER","MN","W-2",{"$f":"TRANSPOSE(O4442)","v":1272}]
["ROCHESTER","MN","W-3",{"$f":"TRANSPOSE(P4442)","v":1356}]
["ROCHESTER","MN","W-4",{"$f":"TRANSPOSE(Q4442)","v":1437}]
["ROCHESTER","MN","W-5",{"$f":"TRANSPOSE(R4442)","v":1530}]
["ROCHESTER","MN","O-1E",{"$f":"TRANSPOSE(S4442)","v":1260}]
["ROCHESTER","MN","O-2E",{"$f":"TRANSPOSE(T4442)","v":1344}]
["ROCHESTER","MN","O-3E",{"$f":"TRANSPOSE(U4442)","v":1449}]
["ROCHESTER","MN","O-1",{"$f":"TRANSPOSE(V4442)","v":1047}]
["ROCHESTER","MN","O-2",{"$f":"TRANSPOSE(W4442)","v":1179}]
["ROCHESTER","MN","O-3",{"$f":"TRANSPOSE(X4442)","v":1353}]
["ROCHESTER","MN","O-4",{"$f":"TRANSPOSE(Y4442)","v":1569}]
["ROCHESTER","MN","O-5",{"$f":"TRANSPOSE(Z4442)","v":1722}]
["ROCHESTER","MN","O-6",{"$f":"TRANSPOSE(AA4442)","v":1740}]
["ROCHESTER","MN","O-7",{"$f":"TRANSPOSE(AB4442)","v":1755}]
["KANSAS CITY","MO","E-1",{"$f":"TRANSPOSE(E4466:E4466)","v":1002},1002,1002,1002,1002,1095,1221,1257,1299,1398,1221,1275,1326,1428,1545,1266,1320,1446,1107,1218,1323,1593,1785,1803,1821]
["KANSAS CITY","MO","E-2",{"$f":"TRANSPOSE(F4466:F4466)","v":1002}]
["KANSAS CITY","MO","E-3",{"$f":"TRANSPOSE(G4466:G4466)","v":1002}]
["KANSAS CITY","MO","E-4",{"$f":"TRANSPOSE(H4466:H4466)","v":1002}]
["KANSAS CITY","MO","E-5",{"$f":"TRANSPOSE(I4466:I4466)","v":1095}]
["KANSAS CITY","MO","E-6",{"$f":"TRANSPOSE(J4466:J4466)","v":1221}]
["KANSAS CITY","MO","E-7",{"$f":"TRANSPOSE(K4466:K4466)","v":1257}]
["KANSAS CITY","MO","E-8",{"$f":"TRANSPOSE(L4466)","v":1299}]
["KANSAS CITY","MO","E-9",{"$f":"TRANSPOSE(M4466)","v":1398}]
["KANSAS CITY","MO","W-1",{"$f":"TRANSPOSE(N4466)","v":1221}]
["KANSAS CITY","MO","W-2",{"$f":"TRANSPOSE(O4466)","v":1275}]
["KANSAS CITY","MO","W-3",{"$f":"TRANSPOSE(P4466)","v":1326}]
["KANSAS CITY","MO","W-4",{"$f":"TRANSPOSE(Q4466)","v":1428}]
["KANSAS CITY","MO","W-5",{"$f":"TRANSPOSE(R4466)","v":1545}]
["KANSAS CITY","MO","O-1E",{"$f":"TRANSPOSE(S4466)","v":1266}]
["KANSAS CITY","MO","O-2E",{"$f":"TRANSPOSE(T4466)","v":1320}]
["KANSAS CITY","MO","O-3E",{"$f":"TRANSPOSE(U4466)","v":1446}]
["KANSAS CITY","MO","O-1",{"$f":"TRANSPOSE(V4466)","v":1107}]
["KANSAS CITY","MO","O-2",{"$f":"TRANSPOSE(W4466)","v":1218}]
["KANSAS CITY","MO","O-3",{"$f":"TRANSPOSE(X4466)","v":1323}]
["KANSAS CITY","MO","O-4",{"$f":"TRANSPOSE(Y4466)","v":1593}]
["KANSAS CITY","MO","O-5",{"$f":"TRANSPOSE(Z4466)","v":1785}]
["KANSAS CITY","MO","O-6",{"$f":"TRANSPOSE(AA4466)","v":1803}]
["KANSAS CITY","MO","O-7",{"$f":"TRANSPOSE(AB4466)","v":1821}]
["ST. LOUIS","MO","E-1",{"$f":"TRANSPOSE(E4490:E4490)","v":1143},1143,1143,1143,1143,1233,1515,1524,1536,1602,1515,1530,1545,1626,1719,1527,1542,1638,1263,1509,1542,1758,1911,1929,1950]
["ST. LOUIS","MO","E-2",{"$f":"TRANSPOSE(F4490:F4490)","v":1143}]
["ST. LOUIS","MO","E-3",{"$f":"TRANSPOSE(G4490:G4490)","v":1143}]
["ST. LOUIS","MO","E-4",{"$f":"TRANSPOSE(H4490:H4490)","v":1143}]
["ST. LOUIS","MO","E-5",{"$f":"TRANSPOSE(I4490:I4490)","v":1233}]
["ST. LOUIS","MO","E-6",{"$f":"TRANSPOSE(J4490:J4490)","v":1515}]
["ST. LOUIS","MO","E-7",{"$f":"TRANSPOSE(K4490:K4490)","v":1524}]
["ST. LOUIS","MO","E-8",{"$f":"TRANSPOSE(L4490)","v":1536}]
["ST. LOUIS","MO","E-9",{"$f":"TRANSPOSE(M4490)","v":1602}]
["ST. LOUIS","MO","W-1",{"$f":"TRANSPOSE(N4490)","v":1515}]
["ST. LOUIS","MO","W-2",{"$f":"TRANSPOSE(O4490)","v":1530}]
["ST. LOUIS","MO","W-3",{"$f":"TRANSPOSE(P4490)","v":1545}]
["ST. LOUIS","MO","W-4",{"$f":"TRANSPOSE(Q4490)","v":1626}]
["ST. LOUIS","MO","W-5",{"$f":"TRANSPOSE(R4490)","v":1719}]
["ST. LOUIS","MO","O-1E",{"$f":"TRANSPOSE(S4490)","v":1527}]
["ST. LOUIS","MO","O-2E",{"$f":"TRANSPOSE(T4490)","v":1542}]
["ST. LOUIS","MO","O-3E",{"$f":"TRANSPOSE(U4490)","v":1638}]
["ST. LOUIS","MO","O-1",{"$f":"TRANSPOSE(V4490)","v":1263}]
["ST. LOUIS","MO","O-2",{"$f":"TRANSPOSE(W4490)","v":1509}]
["ST. LOUIS","MO","O-3",{"$f":"TRANSPOSE(X4490)","v":1542}]
["ST. LOUIS","MO","O-4",{"$f":"TRANSPOSE(Y4490)","v":1758}]
["ST. LOUIS","MO","O-5",{"$f":"TRANSPOSE(Z4490)","v":1911}]
["ST. LOUIS","MO","O-6",{"$f":"TRANSPOSE(AA4490)","v":1929}]
["ST. LOUIS","MO","O-7",{"$f":"TRANSPOSE(AB4490)","v":1950}]
["WHITEMAN AFB","MO","E-1",{"$f":"TRANSPOSE(E4514:E4514)","v":786},786,786,786,786,915,1143,1224,1311,1401,1146,1260,1368,1413,1464,1242,1350,1419,939,1137,1362,1485,1572,1587,1602]
["WHITEMAN AFB","MO","E-2",{"$f":"TRANSPOSE(F4514:F4514)","v":786}]
["WHITEMAN AFB","MO","E-3",{"$f":"TRANSPOSE(G4514:G4514)","v":786}]
["WHITEMAN AFB","MO","E-4",{"$f":"TRANSPOSE(H4514:H4514)","v":786}]
["WHITEMAN AFB","MO","E-5",{"$f":"TRANSPOSE(I4514:I4514)","v":915}]
["WHITEMAN AFB","MO","E-6",{"$f":"TRANSPOSE(J4514:J4514)","v":1143}]
["WHITEMAN AFB","MO","E-7",{"$f":"TRANSPOSE(K4514:K4514)","v":1224}]
["WHITEMAN AFB","MO","E-8",{"$f":"TRANSPOSE(L4514)","v":1311}]
["WHITEMAN AFB","MO","E-9",{"$f":"TRANSPOSE(M4514)","v":1401}]
["WHITEMAN AFB","MO","W-1",{"$f":"TRANSPOSE(N4514)","v":1146}]
["WHITEMAN AFB","MO","W-2",{"$f":"TRANSPOSE(O4514)","v":1260}]
["WHITEMAN AFB","MO","W-3",{"$f":"TRANSPOSE(P4514)","v":1368}]
["WHITEMAN AFB","MO","W-4",{"$f":"TRANSPOSE(Q4514)","v":1413}]
["WHITEMAN AFB","MO","W-5",{"$f":"TRANSPOSE(R4514)","v":1464}]
["WHITEMAN AFB","MO","O-1E",{"$f":"TRANSPOSE(S4514)","v":1242}]
["WHITEMAN AFB","MO","O-2E",{"$f":"TRANSPOSE(T4514)","v":1350}]
["WHITEMAN AFB","MO","O-3E",{"$f":"TRANSPOSE(U4514)","v":1419}]
["WHITEMAN AFB","MO","O-1",{"$f":"TRANSPOSE(V4514)","v":939}]
["WHITEMAN AFB","MO","O-2",{"$f":"TRANSPOSE(W4514)","v":1137}]
["WHITEMAN AFB","MO","O-3",{"$f":"TRANSPOSE(X4514)","v":1362}]
["WHITEMAN AFB","MO","O-4",{"$f":"TRANSPOSE(Y4514)","v":1485}]
["WHITEMAN AFB","MO","O-5",{"$f":"TRANSPOSE(Z4514)","v":1572}]
["WHITEMAN AFB","MO","O-6",{"$f":"TRANSPOSE(AA4514)","v":1587}]
["WHITEMAN AFB","MO","O-7",{"$f":"TRANSPOSE(AB4514)","v":1602}]
["FORT LEONARD WOOD","MO","E-1",{"$f":"TRANSPOSE(E4538:E4538)","v":918},918,918,918,918,1011,1113,1122,1131,1176,1113,1125,1137,1194,1260,1125,1134,1203,1020,1113,1137,1284,1392,1407,1422]
["FORT LEONARD WOOD","MO","E-2",{"$f":"TRANSPOSE(F4538:F4538)","v":918}]
["FORT LEONARD WOOD","MO","E-3",{"$f":"TRANSPOSE(G4538:G4538)","v":918}]
["FORT LEONARD WOOD","MO","E-4",{"$f":"TRANSPOSE(H4538:H4538)","v":918}]
["FORT LEONARD WOOD","MO","E-5",{"$f":"TRANSPOSE(I4538:I4538)","v":1011}]
["FORT LEONARD WOOD","MO","E-6",{"$f":"TRANSPOSE(J4538:J4538)","v":1113}]
["FORT LEONARD WOOD","MO","E-7",{"$f":"TRANSPOSE(K4538:K4538)","v":1122}]
["FORT LEONARD WOOD","MO","E-8",{"$f":"TRANSPOSE(L4538)","v":1131}]
["FORT LEONARD WOOD","MO","E-9",{"$f":"TRANSPOSE(M4538)","v":1176}]
["FORT LEONARD WOOD","MO","W-1",{"$f":"TRANSPOSE(N4538)","v":1113}]
["FORT LEONARD WOOD","MO","W-2",{"$f":"TRANSPOSE(O4538)","v":1125}]
["FORT LEONARD WOOD","MO","W-3",{"$f":"TRANSPOSE(P4538)","v":1137}]
["FORT LEONARD WOOD","MO","W-4",{"$f":"TRANSPOSE(Q4538)","v":1194}]
["FORT LEONARD WOOD","MO","W-5",{"$f":"TRANSPOSE(R4538)","v":1260}]
["FORT LEONARD WOOD","MO","O-1E",{"$f":"TRANSPOSE(S4538)","v":1125}]
["FORT LEONARD WOOD","MO","O-2E",{"$f":"TRANSPOSE(T4538)","v":1134}]
["FORT LEONARD WOOD","MO","O-3E",{"$f":"TRANSPOSE(U4538)","v":1203}]
["FORT LEONARD WOOD","MO","O-1",{"$f":"TRANSPOSE(V4538)","v":1020}]
["FORT LEONARD WOOD","MO","O-2",{"$f":"TRANSPOSE(W4538)","v":1113}]
["FORT LEONARD WOOD","MO","O-3",{"$f":"TRANSPOSE(X4538)","v":1137}]
["FORT LEONARD WOOD","MO","O-4",{"$f":"TRANSPOSE(Y4538)","v":1284}]
["FORT LEONARD WOOD","MO","O-5",{"$f":"TRANSPOSE(Z4538)","v":1392}]
["FORT LEONARD WOOD","MO","O-6",{"$f":"TRANSPOSE(AA4538)","v":1407}]
["FORT LEONARD WOOD","MO","O-7",{"$f":"TRANSPOSE(AB4538)","v":1422}]
["SPRINGFIELD","MO","E-1",{"$f":"TRANSPOSE(E4562:E4562)","v":939},939,939,939,939,1005,1035,1074,1119,1206,1038,1092,1146,1227,1326,1083,1137,1242,1008,1035,1143,1365,1524,1539,1554]
["SPRINGFIELD","MO","E-2",{"$f":"TRANSPOSE(F4562:F4562)","v":939}]
["SPRINGFIELD","MO","E-3",{"$f":"TRANSPOSE(G4562:G4562)","v":939}]
["SPRINGFIELD","MO","E-4",{"$f":"TRANSPOSE(H4562:H4562)","v":939}]
["SPRINGFIELD","MO","E-5",{"$f":"TRANSPOSE(I4562:I4562)","v":1005}]
["SPRINGFIELD","MO","E-6",{"$f":"TRANSPOSE(J4562:J4562)","v":1035}]
["SPRINGFIELD","MO","E-7",{"$f":"TRANSPOSE(K4562:K4562)","v":1074}]
["SPRINGFIELD","MO","E-8",{"$f":"TRANSPOSE(L4562)","v":1119}]
["SPRINGFIELD","MO","E-9",{"$f":"TRANSPOSE(M4562)","v":1206}]
["SPRINGFIELD","MO","W-1",{"$f":"TRANSPOSE(N4562)","v":1038}]
["SPRINGFIELD","MO","W-2",{"$f":"TRANSPOSE(O4562)","v":1092}]
["SPRINGFIELD","MO","W-3",{"$f":"TRANSPOSE(P4562)","v":1146}]
["SPRINGFIELD","MO","W-4",{"$f":"TRANSPOSE(Q4562)","v":1227}]
["SPRINGFIELD","MO","W-5",{"$f":"TRANSPOSE(R4562)","v":1326}]
["SPRINGFIELD","MO","O-1E",{"$f":"TRANSPOSE(S4562)","v":1083}]
["SPRINGFIELD","MO","O-2E",{"$f":"TRANSPOSE(T4562)","v":1137}]
["SPRINGFIELD","MO","O-3E",{"$f":"TRANSPOSE(U4562)","v":1242}]
["SPRINGFIELD","MO","O-1",{"$f":"TRANSPOSE(V4562)","v":1008}]
["SPRINGFIELD","MO","O-2",{"$f":"TRANSPOSE(W4562)","v":1035}]
["SPRINGFIELD","MO","O-3",{"$f":"TRANSPOSE(X4562)","v":1143}]
["SPRINGFIELD","MO","O-4",{"$f":"TRANSPOSE(Y4562)","v":1365}]
["SPRINGFIELD","MO","O-5",{"$f":"TRANSPOSE(Z4562)","v":1524}]
["SPRINGFIELD","MO","O-6",{"$f":"TRANSPOSE(AA4562)","v":1539}]
["SPRINGFIELD","MO","O-7",{"$f":"TRANSPOSE(AB4562)","v":1554}]
["COLUMBIA/JEFFERSON CITY","MO","E-1",{"$f":"TRANSPOSE(E4586:E4586)","v":825},825,825,825,825,882,1062,1089,1116,1179,1062,1098,1134,1194,1266,1092,1128,1206,903,1059,1131,1296,1413,1425,1440]
["COLUMBIA/JEFFERSON CITY","MO","E-2",{"$f":"TRANSPOSE(F4586:F4586)","v":825}]
["COLUMBIA/JEFFERSON CITY","MO","E-3",{"$f":"TRANSPOSE(G4586:G4586)","v":825}]
["COLUMBIA/JEFFERSON CITY","MO","E-4",{"$f":"TRANSPOSE(H4586:H4586)","v":825}]
["COLUMBIA/JEFFERSON CITY","MO","E-5",{"$f":"TRANSPOSE(I4586:I4586)","v":882}]
["COLUMBIA/JEFFERSON CITY","MO","E-6",{"$f":"TRANSPOSE(J4586:J4586)","v":1062}]
["COLUMBIA/JEFFERSON CITY","MO","E-7",{"$f":"TRANSPOSE(K4586:K4586)","v":1089}]
["COLUMBIA/JEFFERSON CITY","MO","E-8",{"$f":"TRANSPOSE(L4586)","v":1116}]
["COLUMBIA/JEFFERSON CITY","MO","E-9",{"$f":"TRANSPOSE(M4586)","v":1179}]
["COLUMBIA/JEFFERSON CITY","MO","W-1",{"$f":"TRANSPOSE(N4586)","v":1062}]
["COLUMBIA/JEFFERSON CITY","MO","W-2",{"$f":"TRANSPOSE(O4586)","v":1098}]
["COLUMBIA/JEFFERSON CITY","MO","W-3",{"$f":"TRANSPOSE(P4586)","v":1134}]
["COLUMBIA/JEFFERSON CITY","MO","W-4",{"$f":"TRANSPOSE(Q4586)","v":1194}]
["COLUMBIA/JEFFERSON CITY","MO","W-5",{"$f":"TRANSPOSE(R4586)","v":1266}]
["COLUMBIA/JEFFERSON CITY","MO","O-1E",{"$f":"TRANSPOSE(S4586)","v":1092}]
["COLUMBIA/JEFFERSON CITY","MO","O-2E",{"$f":"TRANSPOSE(T4586)","v":1128}]
["COLUMBIA/JEFFERSON CITY","MO","O-3E",{"$f":"TRANSPOSE(U4586)","v":1206}]
["COLUMBIA/JEFFERSON CITY","MO","O-1",{"$f":"TRANSPOSE(V4586)","v":903}]
["COLUMBIA/JEFFERSON CITY","MO","O-2",{"$f":"TRANSPOSE(W4586)","v":1059}]
["COLUMBIA/JEFFERSON CITY","MO","O-3",{"$f":"TRANSPOSE(X4586)","v":1131}]
["COLUMBIA/JEFFERSON CITY","MO","O-4",{"$f":"TRANSPOSE(Y4586)","v":1296}]
["COLUMBIA/JEFFERSON CITY","MO","O-5",{"$f":"TRANSPOSE(Z4586)","v":1413}]
["COLUMBIA/JEFFERSON CITY","MO","O-6",{"$f":"TRANSPOSE(AA4586)","v":1425}]
["COLUMBIA/JEFFERSON CITY","MO","O-7",{"$f":"TRANSPOSE(AB4586)","v":1440}]
["CAPE GIRARDEAU","MO","E-1",{"$f":"TRANSPOSE(E4610:E4610)","v":861},861,861,861,861,1017,1212,1245,1281,1353,1212,1260,1305,1371,1446,1251,1299,1380,1038,1209,1302,1476,1602,1617,1635]
["CAPE GIRARDEAU","MO","E-2",{"$f":"TRANSPOSE(F4610:F4610)","v":861}]
["CAPE GIRARDEAU","MO","E-3",{"$f":"TRANSPOSE(G4610:G4610)","v":861}]
["CAPE GIRARDEAU","MO","E-4",{"$f":"TRANSPOSE(H4610:H4610)","v":861}]
["CAPE GIRARDEAU","MO","E-5",{"$f":"TRANSPOSE(I4610:I4610)","v":1017}]
["CAPE GIRARDEAU","MO","E-6",{"$f":"TRANSPOSE(J4610:J4610)","v":1212}]
["CAPE GIRARDEAU","MO","E-7",{"$f":"TRANSPOSE(K4610:K4610)","v":1245}]
["CAPE GIRARDEAU","MO","E-8",{"$f":"TRANSPOSE(L4610)","v":1281}]
["CAPE GIRARDEAU","MO","E-9",{"$f":"TRANSPOSE(M4610)","v":1353}]
["CAPE GIRARDEAU","MO","W-1",{"$f":"TRANSPOSE(N4610)","v":1212}]
["CAPE GIRARDEAU","MO","W-2",{"$f":"TRANSPOSE(O4610)","v":1260}]
["CAPE GIRARDEAU","MO","W-3",{"$f":"TRANSPOSE(P4610)","v":1305}]
["CAPE GIRARDEAU","MO","W-4",{"$f":"TRANSPOSE(Q4610)","v":1371}]
["CAPE GIRARDEAU","MO","W-5",{"$f":"TRANSPOSE(R4610)","v":1446}]
["CAPE GIRARDEAU","MO","O-1E",{"$f":"TRANSPOSE(S4610)","v":1251}]
["CAPE GIRARDEAU","MO","O-2E",{"$f":"TRANSPOSE(T4610)","v":1299}]
["CAPE GIRARDEAU","MO","O-3E",{"$f":"TRANSPOSE(U4610)","v":1380}]
["CAPE GIRARDEAU","MO","O-1",{"$f":"TRANSPOSE(V4610)","v":1038}]
["CAPE GIRARDEAU","MO","O-2",{"$f":"TRANSPOSE(W4610)","v":1209}]
["CAPE GIRARDEAU","MO","O-3",{"$f":"TRANSPOSE(X4610)","v":1302}]
["CAPE GIRARDEAU","MO","O-4",{"$f":"TRANSPOSE(Y4610)","v":1476}]
["CAPE GIRARDEAU","MO","O-5",{"$f":"TRANSPOSE(Z4610)","v":1602}]
["CAPE GIRARDEAU","MO","O-6",{"$f":"TRANSPOSE(AA4610)","v":1617}]
["CAPE GIRARDEAU","MO","O-7",{"$f":"TRANSPOSE(AB4610)","v":1635}]
["SAINT JOSEPH","MO","E-1",{"$f":"TRANSPOSE(E4634:E4634)","v":795},795,795,795,795,903,1134,1170,1209,1260,1134,1185,1233,1269,1314,1176,1227,1278,927,1128,1230,1332,1401,1416,1431]
["SAINT JOSEPH","MO","E-2",{"$f":"TRANSPOSE(F4634:F4634)","v":795}]
["SAINT JOSEPH","MO","E-3",{"$f":"TRANSPOSE(G4634:G4634)","v":795}]
["SAINT JOSEPH","MO","E-4",{"$f":"TRANSPOSE(H4634:H4634)","v":795}]
["SAINT JOSEPH","MO","E-5",{"$f":"TRANSPOSE(I4634:I4634)","v":903}]
["SAINT JOSEPH","MO","E-6",{"$f":"TRANSPOSE(J4634:J4634)","v":1134}]
["SAINT JOSEPH","MO","E-7",{"$f":"TRANSPOSE(K4634:K4634)","v":1170}]
["SAINT JOSEPH","MO","E-8",{"$f":"TRANSPOSE(L4634)","v":1209}]
["SAINT JOSEPH","MO","E-9",{"$f":"TRANSPOSE(M4634)","v":1260}]
["SAINT JOSEPH","MO","W-1",{"$f":"TRANSPOSE(N4634)","v":1134}]
["SAINT JOSEPH","MO","W-2",{"$f":"TRANSPOSE(O4634)","v":1185}]
["SAINT JOSEPH","MO","W-3",{"$f":"TRANSPOSE(P4634)","v":1233}]
["SAINT JOSEPH","MO","W-4",{"$f":"TRANSPOSE(Q4634)","v":1269}]
["SAINT JOSEPH","MO","W-5",{"$f":"TRANSPOSE(R4634)","v":1314}]
["SAINT JOSEPH","MO","O-1E",{"$f":"TRANSPOSE(S4634)","v":1176}]
["SAINT JOSEPH","MO","O-2E",{"$f":"TRANSPOSE(T4634)","v":1227}]
["SAINT JOSEPH","MO","O-3E",{"$f":"TRANSPOSE(U4634)","v":1278}]
["SAINT JOSEPH","MO","O-1",{"$f":"TRANSPOSE(V4634)","v":927}]
["SAINT JOSEPH","MO","O-2",{"$f":"TRANSPOSE(W4634)","v":1128}]
["SAINT JOSEPH","MO","O-3",{"$f":"TRANSPOSE(X4634)","v":1230}]
["SAINT JOSEPH","MO","O-4",{"$f":"TRANSPOSE(Y4634)","v":1332}]
["SAINT JOSEPH","MO","O-5",{"$f":"TRANSPOSE(Z4634)","v":1401}]
["SAINT JOSEPH","MO","O-6",{"$f":"TRANSPOSE(AA4634)","v":1416}]
["SAINT JOSEPH","MO","O-7",{"$f":"TRANSPOSE(AB4634)","v":1431}]
["GULFPORT","MS","E-1",{"$f":"TRANSPOSE(E4658:E4658)","v":1155},1155,1155,1155,1155,1254,1419,1428,1437,1524,1419,1431,1443,1557,1689,1431,1443,1575,1272,1416,1443,1740,1953,1971,1992]
["GULFPORT","MS","E-2",{"$f":"TRANSPOSE(F4658:F4658)","v":1155}]
["GULFPORT","MS","E-3",{"$f":"TRANSPOSE(G4658:G4658)","v":1155}]
["GULFPORT","MS","E-4",{"$f":"TRANSPOSE(H4658:H4658)","v":1155}]
["GULFPORT","MS","E-5",{"$f":"TRANSPOSE(I4658:I4658)","v":1254}]
["GULFPORT","MS","E-6",{"$f":"TRANSPOSE(J4658:J4658)","v":1419}]
["GULFPORT","MS","E-7",{"$f":"TRANSPOSE(K4658:K4658)","v":1428}]
["GULFPORT","MS","E-8",{"$f":"TRANSPOSE(L4658)","v":1437}]
["GULFPORT","MS","E-9",{"$f":"TRANSPOSE(M4658)","v":1524}]
["GULFPORT","MS","W-1",{"$f":"TRANSPOSE(N4658)","v":1419}]
["GULFPORT","MS","W-2",{"$f":"TRANSPOSE(O4658)","v":1431}]
["GULFPORT","MS","W-3",{"$f":"TRANSPOSE(P4658)","v":1443}]
["GULFPORT","MS","W-4",{"$f":"TRANSPOSE(Q4658)","v":1557}]
["GULFPORT","MS","W-5",{"$f":"TRANSPOSE(R4658)","v":1689}]
["GULFPORT","MS","O-1E",{"$f":"TRANSPOSE(S4658)","v":1431}]
["GULFPORT","MS","O-2E",{"$f":"TRANSPOSE(T4658)","v":1443}]
["GULFPORT","MS","O-3E",{"$f":"TRANSPOSE(U4658)","v":1575}]
["GULFPORT","MS","O-1",{"$f":"TRANSPOSE(V4658)","v":1272}]
["GULFPORT","MS","O-2",{"$f":"TRANSPOSE(W4658)","v":1416}]
["GULFPORT","MS","O-3",{"$f":"TRANSPOSE(X4658)","v":1443}]
["GULFPORT","MS","O-4",{"$f":"TRANSPOSE(Y4658)","v":1740}]
["GULFPORT","MS","O-5",{"$f":"TRANSPOSE(Z4658)","v":1953}]
["GULFPORT","MS","O-6",{"$f":"TRANSPOSE(AA4658)","v":1971}]
["GULFPORT","MS","O-7",{"$f":"TRANSPOSE(AB4658)","v":1992}]
["COLUMBUS AFB","MS","E-1",{"$f":"TRANSPOSE(E4682:E4682)","v":891},891,891,891,891,900,1155,1230,1311,1422,1155,1263,1365,1443,1533,1248,1350,1455,927,1149,1362,1566,1713,1731,1749]
["COLUMBUS AFB","MS","E-2",{"$f":"TRANSPOSE(F4682:F4682)","v":891}]
["COLUMBUS AFB","MS","E-3",{"$f":"TRANSPOSE(G4682:G4682)","v":891}]
["COLUMBUS AFB","MS","E-4",{"$f":"TRANSPOSE(H4682:H4682)","v":891}]
["COLUMBUS AFB","MS","E-5",{"$f":"TRANSPOSE(I4682:I4682)","v":900}]
["COLUMBUS AFB","MS","E-6",{"$f":"TRANSPOSE(J4682:J4682)","v":1155}]
["COLUMBUS AFB","MS","E-7",{"$f":"TRANSPOSE(K4682:K4682)","v":1230}]
["COLUMBUS AFB","MS","E-8",{"$f":"TRANSPOSE(L4682)","v":1311}]
["COLUMBUS AFB","MS","E-9",{"$f":"TRANSPOSE(M4682)","v":1422}]
["COLUMBUS AFB","MS","W-1",{"$f":"TRANSPOSE(N4682)","v":1155}]
["COLUMBUS AFB","MS","W-2",{"$f":"TRANSPOSE(O4682)","v":1263}]
["COLUMBUS AFB","MS","W-3",{"$f":"TRANSPOSE(P4682)","v":1365}]
["COLUMBUS AFB","MS","W-4",{"$f":"TRANSPOSE(Q4682)","v":1443}]
["COLUMBUS AFB","MS","W-5",{"$f":"TRANSPOSE(R4682)","v":1533}]
["COLUMBUS AFB","MS","O-1E",{"$f":"TRANSPOSE(S4682)","v":1248}]
["COLUMBUS AFB","MS","O-2E",{"$f":"TRANSPOSE(T4682)","v":1350}]
["COLUMBUS AFB","MS","O-3E",{"$f":"TRANSPOSE(U4682)","v":1455}]
["COLUMBUS AFB","MS","O-1",{"$f":"TRANSPOSE(V4682)","v":927}]
["COLUMBUS AFB","MS","O-2",{"$f":"TRANSPOSE(W4682)","v":1149}]
["COLUMBUS AFB","MS","O-3",{"$f":"TRANSPOSE(X4682)","v":1362}]
["COLUMBUS AFB","MS","O-4",{"$f":"TRANSPOSE(Y4682)","v":1566}]
["COLUMBUS AFB","MS","O-5",{"$f":"TRANSPOSE(Z4682)","v":1713}]
["COLUMBUS AFB","MS","O-6",{"$f":"TRANSPOSE(AA4682)","v":1731}]
["COLUMBUS AFB","MS","O-7",{"$f":"TRANSPOSE(AB4682)","v":1749}]
["JACKSON","MS","E-1",{"$f":"TRANSPOSE(E4706:E4706)","v":1113},1113,1113,1113,1113,1173,1245,1344,1452,1578,1248,1389,1521,1602,1695,1365,1503,1614,1182,1245,1515,1731,1884,1902,1920]
["JACKSON","MS","E-2",{"$f":"TRANSPOSE(F4706:F4706)","v":1113}]
["JACKSON","MS","E-3",{"$f":"TRANSPOSE(G4706:G4706)","v":1113}]
["JACKSON","MS","E-4",{"$f":"TRANSPOSE(H4706:H4706)","v":1113}]
["JACKSON","MS","E-5",{"$f":"TRANSPOSE(I4706:I4706)","v":1173}]
["JACKSON","MS","E-6",{"$f":"TRANSPOSE(J4706:J4706)","v":1245}]
["JACKSON","MS","E-7",{"$f":"TRANSPOSE(K4706:K4706)","v":1344}]
["JACKSON","MS","E-8",{"$f":"TRANSPOSE(L4706)","v":1452}]
["JACKSON","MS","E-9",{"$f":"TRANSPOSE(M4706)","v":1578}]
["JACKSON","MS","W-1",{"$f":"TRANSPOSE(N4706)","v":1248}]
["JACKSON","MS","W-2",{"$f":"TRANSPOSE(O4706)","v":1389}]
["JACKSON","MS","W-3",{"$f":"TRANSPOSE(P4706)","v":1521}]
["JACKSON","MS","W-4",{"$f":"TRANSPOSE(Q4706)","v":1602}]
["JACKSON","MS","W-5",{"$f":"TRANSPOSE(R4706)","v":1695}]
["JACKSON","MS","O-1E",{"$f":"TRANSPOSE(S4706)","v":1365}]
["JACKSON","MS","O-2E",{"$f":"TRANSPOSE(T4706)","v":1503}]
["JACKSON","MS","O-3E",{"$f":"TRANSPOSE(U4706)","v":1614}]
["JACKSON","MS","O-1",{"$f":"TRANSPOSE(V4706)","v":1182}]
["JACKSON","MS","O-2",{"$f":"TRANSPOSE(W4706)","v":1245}]
["JACKSON","MS","O-3",{"$f":"TRANSPOSE(X4706)","v":1515}]
["JACKSON","MS","O-4",{"$f":"TRANSPOSE(Y4706)","v":1731}]
["JACKSON","MS","O-5",{"$f":"TRANSPOSE(Z4706)","v":1884}]
["JACKSON","MS","O-6",{"$f":"TRANSPOSE(AA4706)","v":1902}]
["JACKSON","MS","O-7",{"$f":"TRANSPOSE(AB4706)","v":1920}]
["MERIDIAN","MS","E-1",{"$f":"TRANSPOSE(E4730:E4730)","v":969},969,969,969,969,1059,1326,1335,1344,1428,1326,1338,1353,1455,1581,1338,1350,1476,1089,1320,1350,1626,1827,1845,1863]
["MERIDIAN","MS","E-2",{"$f":"TRANSPOSE(F4730:F4730)","v":969}]
["MERIDIAN","MS","E-3",{"$f":"TRANSPOSE(G4730:G4730)","v":969}]
["MERIDIAN","MS","E-4",{"$f":"TRANSPOSE(H4730:H4730)","v":969}]
["MERIDIAN","MS","E-5",{"$f":"TRANSPOSE(I4730:I4730)","v":1059}]
["MERIDIAN","MS","E-6",{"$f":"TRANSPOSE(J4730:J4730)","v":1326}]
["MERIDIAN","MS","E-7",{"$f":"TRANSPOSE(K4730:K4730)","v":1335}]
["MERIDIAN","MS","E-8",{"$f":"TRANSPOSE(L4730)","v":1344}]
["MERIDIAN","MS","E-9",{"$f":"TRANSPOSE(M4730)","v":1428}]
["MERIDIAN","MS","W-1",{"$f":"TRANSPOSE(N4730)","v":1326}]
["MERIDIAN","MS","W-2",{"$f":"TRANSPOSE(O4730)","v":1338}]
["MERIDIAN","MS","W-3",{"$f":"TRANSPOSE(P4730)","v":1353}]
["MERIDIAN","MS","W-4",{"$f":"TRANSPOSE(Q4730)","v":1455}]
["MERIDIAN","MS","W-5",{"$f":"TRANSPOSE(R4730)","v":1581}]
["MERIDIAN","MS","O-1E",{"$f":"TRANSPOSE(S4730)","v":1338}]
["MERIDIAN","MS","O-2E",{"$f":"TRANSPOSE(T4730)","v":1350}]
["MERIDIAN","MS","O-3E",{"$f":"TRANSPOSE(U4730)","v":1476}]
["MERIDIAN","MS","O-1",{"$f":"TRANSPOSE(V4730)","v":1089}]
["MERIDIAN","MS","O-2",{"$f":"TRANSPOSE(W4730)","v":1320}]
["MERIDIAN","MS","O-3",{"$f":"TRANSPOSE(X4730)","v":1350}]
["MERIDIAN","MS","O-4",{"$f":"TRANSPOSE(Y4730)","v":1626}]
["MERIDIAN","MS","O-5",{"$f":"TRANSPOSE(Z4730)","v":1827}]
["MERIDIAN","MS","O-6",{"$f":"TRANSPOSE(AA4730)","v":1845}]
["MERIDIAN","MS","O-7",{"$f":"TRANSPOSE(AB4730)","v":1863}]
["HATTIESBURG","MS","E-1",{"$f":"TRANSPOSE(E4754:E4754)","v":1032},1032,1032,1032,1032,1125,1203,1221,1239,1305,1203,1227,1251,1326,1416,1224,1248,1341,1134,1200,1248,1452,1596,1611,1629]
["HATTIESBURG","MS","E-2",{"$f":"TRANSPOSE(F4754:F4754)","v":1032}]
["HATTIESBURG","MS","E-3",{"$f":"TRANSPOSE(G4754:G4754)","v":1032}]
["HATTIESBURG","MS","E-4",{"$f":"TRANSPOSE(H4754:H4754)","v":1032}]
["HATTIESBURG","MS","E-5",{"$f":"TRANSPOSE(I4754:I4754)","v":1125}]
["HATTIESBURG","MS","E-6",{"$f":"TRANSPOSE(J4754:J4754)","v":1203}]
["HATTIESBURG","MS","E-7",{"$f":"TRANSPOSE(K4754:K4754)","v":1221}]
["HATTIESBURG","MS","E-8",{"$f":"TRANSPOSE(L4754)","v":1239}]
["HATTIESBURG","MS","E-9",{"$f":"TRANSPOSE(M4754)","v":1305}]
["HATTIESBURG","MS","W-1",{"$f":"TRANSPOSE(N4754)","v":1203}]
["HATTIESBURG","MS","W-2",{"$f":"TRANSPOSE(O4754)","v":1227}]
["HATTIESBURG","MS","W-3",{"$f":"TRANSPOSE(P4754)","v":1251}]
["HATTIESBURG","MS","W-4",{"$f":"TRANSPOSE(Q4754)","v":1326}]
["HATTIESBURG","MS","W-5",{"$f":"TRANSPOSE(R4754)","v":1416}]
["HATTIESBURG","MS","O-1E",{"$f":"TRANSPOSE(S4754)","v":1224}]
["HATTIESBURG","MS","O-2E",{"$f":"TRANSPOSE(T4754)","v":1248}]
["HATTIESBURG","MS","O-3E",{"$f":"TRANSPOSE(U4754)","v":1341}]
["HATTIESBURG","MS","O-1",{"$f":"TRANSPOSE(V4754)","v":1134}]
["HATTIESBURG","MS","O-2",{"$f":"TRANSPOSE(W4754)","v":1200}]
["HATTIESBURG","MS","O-3",{"$f":"TRANSPOSE(X4754)","v":1248}]
["HATTIESBURG","MS","O-4",{"$f":"TRANSPOSE(Y4754)","v":1452}]
["HATTIESBURG","MS","O-5",{"$f":"TRANSPOSE(Z4754)","v":1596}]
["HATTIESBURG","MS","O-6",{"$f":"TRANSPOSE(AA4754)","v":1611}]
["HATTIESBURG","MS","O-7",{"$f":"TRANSPOSE(AB4754)","v":1629}]
["PASCAGOULA","MS","E-1",{"$f":"TRANSPOSE(E4778:E4778)","v":1095},1095,1095,1095,1095,1140,1395,1425,1458,1542,1398,1440,1479,1563,1665,1434,1473,1578,1170,1392,1476,1704,1866,1884,1902]
["PASCAGOULA","MS","E-2",{"$f":"TRANSPOSE(F4778:F4778)","v":1095}]
["PASCAGOULA","MS","E-3",{"$f":"TRANSPOSE(G4778:G4778)","v":1095}]
["PASCAGOULA","MS","E-4",{"$f":"TRANSPOSE(H4778:H4778)","v":1095}]
["PASCAGOULA","MS","E-5",{"$f":"TRANSPOSE(I4778:I4778)","v":1140}]
["PASCAGOULA","MS","E-6",{"$f":"TRANSPOSE(J4778:J4778)","v":1395}]
["PASCAGOULA","MS","E-7",{"$f":"TRANSPOSE(K4778:K4778)","v":1425}]
["PASCAGOULA","MS","E-8",{"$f":"TRANSPOSE(L4778)","v":1458}]
["PASCAGOULA","MS","E-9",{"$f":"TRANSPOSE(M4778)","v":1542}]
["PASCAGOULA","MS","W-1",{"$f":"TRANSPOSE(N4778)","v":1398}]
["PASCAGOULA","MS","W-2",{"$f":"TRANSPOSE(O4778)","v":1440}]
["PASCAGOULA","MS","W-3",{"$f":"TRANSPOSE(P4778)","v":1479}]
["PASCAGOULA","MS","W-4",{"$f":"TRANSPOSE(Q4778)","v":1563}]
["PASCAGOULA","MS","W-5",{"$f":"TRANSPOSE(R4778)","v":1665}]
["PASCAGOULA","MS","O-1E",{"$f":"TRANSPOSE(S4778)","v":1434}]
["PASCAGOULA","MS","O-2E",{"$f":"TRANSPOSE(T4778)","v":1473}]
["PASCAGOULA","MS","O-3E",{"$f":"TRANSPOSE(U4778)","v":1578}]
["PASCAGOULA","MS","O-1",{"$f":"TRANSPOSE(V4778)","v":1170}]
["PASCAGOULA","MS","O-2",{"$f":"TRANSPOSE(W4778)","v":1392}]
["PASCAGOULA","MS","O-3",{"$f":"TRANSPOSE(X4778)","v":1476}]
["PASCAGOULA","MS","O-4",{"$f":"TRANSPOSE(Y4778)","v":1704}]
["PASCAGOULA","MS","O-5",{"$f":"TRANSPOSE(Z4778)","v":1866}]
["PASCAGOULA","MS","O-6",{"$f":"TRANSPOSE(AA4778)","v":1884}]
["PASCAGOULA","MS","O-7",{"$f":"TRANSPOSE(AB4778)","v":1902}]
["GREENVILLE","MS","E-1",{"$f":"TRANSPOSE(E4802:E4802)","v":879},879,879,879,879,924,1050,1080,1110,1152,1053,1092,1131,1161,1197,1086,1125,1167,939,1047,1128,1209,1266,1281,1293]
["GREENVILLE","MS","E-2",{"$f":"TRANSPOSE(F4802:F4802)","v":879}]
["GREENVILLE","MS","E-3",{"$f":"TRANSPOSE(G4802:G4802)","v":879}]
["GREENVILLE","MS","E-4",{"$f":"TRANSPOSE(H4802:H4802)","v":879}]
["GREENVILLE","MS","E-5",{"$f":"TRANSPOSE(I4802:I4802)","v":924}]
["GREENVILLE","MS","E-6",{"$f":"TRANSPOSE(J4802:J4802)","v":1050}]
["GREENVILLE","MS","E-7",{"$f":"TRANSPOSE(K4802:K4802)","v":1080}]
["GREENVILLE","MS","E-8",{"$f":"TRANSPOSE(L4802)","v":1110}]
["GREENVILLE","MS","E-9",{"$f":"TRANSPOSE(M4802)","v":1152}]
["GREENVILLE","MS","W-1",{"$f":"TRANSPOSE(N4802)","v":1053}]
["GREENVILLE","MS","W-2",{"$f":"TRANSPOSE(O4802)","v":1092}]
["GREENVILLE","MS","W-3",{"$f":"TRANSPOSE(P4802)","v":1131}]
["GREENVILLE","MS","W-4",{"$f":"TRANSPOSE(Q4802)","v":1161}]
["GREENVILLE","MS","W-5",{"$f":"TRANSPOSE(R4802)","v":1197}]
["GREENVILLE","MS","O-1E",{"$f":"TRANSPOSE(S4802)","v":1086}]
["GREENVILLE","MS","O-2E",{"$f":"TRANSPOSE(T4802)","v":1125}]
["GREENVILLE","MS","O-3E",{"$f":"TRANSPOSE(U4802)","v":1167}]
["GREENVILLE","MS","O-1",{"$f":"TRANSPOSE(V4802)","v":939}]
["GREENVILLE","MS","O-2",{"$f":"TRANSPOSE(W4802)","v":1047}]
["GREENVILLE","MS","O-3",{"$f":"TRANSPOSE(X4802)","v":1128}]
["GREENVILLE","MS","O-4",{"$f":"TRANSPOSE(Y4802)","v":1209}]
["GREENVILLE","MS","O-5",{"$f":"TRANSPOSE(Z4802)","v":1266}]
["GREENVILLE","MS","O-6",{"$f":"TRANSPOSE(AA4802)","v":1281}]
["GREENVILLE","MS","O-7",{"$f":"TRANSPOSE(AB4802)","v":1293}]
["TUPELO","MS","E-1",{"$f":"TRANSPOSE(E4826:E4826)","v":825},825,825,825,825,909,1152,1182,1212,1293,1152,1194,1233,1317,1413,1188,1227,1332,936,1146,1230,1452,1611,1626,1641]
["TUPELO","MS","E-2",{"$f":"TRANSPOSE(F4826:F4826)","v":825}]
["TUPELO","MS","E-3",{"$f":"TRANSPOSE(G4826:G4826)","v":825}]
["TUPELO","MS","E-4",{"$f":"TRANSPOSE(H4826:H4826)","v":825}]
["TUPELO","MS","E-5",{"$f":"TRANSPOSE(I4826:I4826)","v":909}]
["TUPELO","MS","E-6",{"$f":"TRANSPOSE(J4826:J4826)","v":1152}]
["TUPELO","MS","E-7",{"$f":"TRANSPOSE(K4826:K4826)","v":1182}]
["TUPELO","MS","E-8",{"$f":"TRANSPOSE(L4826)","v":1212}]
["TUPELO","MS","E-9",{"$f":"TRANSPOSE(M4826)","v":1293}]
["TUPELO","MS","W-1",{"$f":"TRANSPOSE(N4826)","v":1152}]
["TUPELO","MS","W-2",{"$f":"TRANSPOSE(O4826)","v":1194}]
["TUPELO","MS","W-3",{"$f":"TRANSPOSE(P4826)","v":1233}]
["TUPELO","MS","W-4",{"$f":"TRANSPOSE(Q4826)","v":1317}]
["TUPELO","MS","W-5",{"$f":"TRANSPOSE(R4826)","v":1413}]
["TUPELO","MS","O-1E",{"$f":"TRANSPOSE(S4826)","v":1188}]
["TUPELO","MS","O-2E",{"$f":"TRANSPOSE(T4826)","v":1227}]
["TUPELO","MS","O-3E",{"$f":"TRANSPOSE(U4826)","v":1332}]
["TUPELO","MS","O-1",{"$f":"TRANSPOSE(V4826)","v":936}]
["TUPELO","MS","O-2",{"$f":"TRANSPOSE(W4826)","v":1146}]
["TUPELO","MS","O-3",{"$f":"TRANSPOSE(X4826)","v":1230}]
["TUPELO","MS","O-4",{"$f":"TRANSPOSE(Y4826)","v":1452}]
["TUPELO","MS","O-5",{"$f":"TRANSPOSE(Z4826)","v":1611}]
["TUPELO","MS","O-6",{"$f":"TRANSPOSE(AA4826)","v":1626}]
["TUPELO","MS","O-7",{"$f":"TRANSPOSE(AB4826)","v":1641}]
["MALMSTROM AFB/GREAT FALLS","MT","E-1",{"$f":"TRANSPOSE(E4850:E4850)","v":828},828,828,828,828,942,1104,1185,1275,1371,1104,1224,1335,1386,1446,1206,1317,1395,960,1101,1329,1470,1569,1584,1599]
["MALMSTROM AFB/GREAT FALLS","MT","E-2",{"$f":"TRANSPOSE(F4850:F4850)","v":828}]
["MALMSTROM AFB/GREAT FALLS","MT","E-3",{"$f":"TRANSPOSE(G4850:G4850)","v":828}]
["MALMSTROM AFB/GREAT FALLS","MT","E-4",{"$f":"TRANSPOSE(H4850:H4850)","v":828}]
["MALMSTROM AFB/GREAT FALLS","MT","E-5",{"$f":"TRANSPOSE(I4850:I4850)","v":942}]
["MALMSTROM AFB/GREAT FALLS","MT","E-6",{"$f":"TRANSPOSE(J4850:J4850)","v":1104}]
["MALMSTROM AFB/GREAT FALLS","MT","E-7",{"$f":"TRANSPOSE(K4850:K4850)","v":1185}]
["MALMSTROM AFB/GREAT FALLS","MT","E-8",{"$f":"TRANSPOSE(L4850)","v":1275}]
["MALMSTROM AFB/GREAT FALLS","MT","E-9",{"$f":"TRANSPOSE(M4850)","v":1371}]
["MALMSTROM AFB/GREAT FALLS","MT","W-1",{"$f":"TRANSPOSE(N4850)","v":1104}]
["MALMSTROM AFB/GREAT FALLS","MT","W-2",{"$f":"TRANSPOSE(O4850)","v":1224}]
["MALMSTROM AFB/GREAT FALLS","MT","W-3",{"$f":"TRANSPOSE(P4850)","v":1335}]
["MALMSTROM AFB/GREAT FALLS","MT","W-4",{"$f":"TRANSPOSE(Q4850)","v":1386}]
["MALMSTROM AFB/GREAT FALLS","MT","W-5",{"$f":"TRANSPOSE(R4850)","v":1446}]
["MALMSTROM AFB/GREAT FALLS","MT","O-1E",{"$f":"TRANSPOSE(S4850)","v":1206}]
["MALMSTROM AFB/GREAT FALLS","MT","O-2E",{"$f":"TRANSPOSE(T4850)","v":1317}]
["MALMSTROM AFB/GREAT FALLS","MT","O-3E",{"$f":"TRANSPOSE(U4850)","v":1395}]
["MALMSTROM AFB/GREAT FALLS","MT","O-1",{"$f":"TRANSPOSE(V4850)","v":960}]
["MALMSTROM AFB/GREAT FALLS","MT","O-2",{"$f":"TRANSPOSE(W4850)","v":1101}]
["MALMSTROM AFB/GREAT FALLS","MT","O-3",{"$f":"TRANSPOSE(X4850)","v":1329}]
["MALMSTROM AFB/GREAT FALLS","MT","O-4",{"$f":"TRANSPOSE(Y4850)","v":1470}]
["MALMSTROM AFB/GREAT FALLS","MT","O-5",{"$f":"TRANSPOSE(Z4850)","v":1569}]
["MALMSTROM AFB/GREAT FALLS","MT","O-6",{"$f":"TRANSPOSE(AA4850)","v":1584}]
["MALMSTROM AFB/GREAT FALLS","MT","O-7",{"$f":"TRANSPOSE(AB4850)","v":1599}]
["HELENA","MT","E-1",{"$f":"TRANSPOSE(E4874:E4874)","v":846},846,846,846,846,945,1317,1326,1335,1386,1317,1329,1341,1404,1479,1326,1338,1416,987,1308,1341,1506,1626,1644,1659]
["HELENA","MT","E-2",{"$f":"TRANSPOSE(F4874:F4874)","v":846}]
["HELENA","MT","E-3",{"$f":"TRANSPOSE(G4874:G4874)","v":846}]
["HELENA","MT","E-4",{"$f":"TRANSPOSE(H4874:H4874)","v":846}]
["HELENA","MT","E-5",{"$f":"TRANSPOSE(I4874:I4874)","v":945}]
["HELENA","MT","E-6",{"$f":"TRANSPOSE(J4874:J4874)","v":1317}]
["HELENA","MT","E-7",{"$f":"TRANSPOSE(K4874:K4874)","v":1326}]
["HELENA","MT","E-8",{"$f":"TRANSPOSE(L4874)","v":1335}]
["HELENA","MT","E-9",{"$f":"TRANSPOSE(M4874)","v":1386}]
["HELENA","MT","W-1",{"$f":"TRANSPOSE(N4874)","v":1317}]
["HELENA","MT","W-2",{"$f":"TRANSPOSE(O4874)","v":1329}]
["HELENA","MT","W-3",{"$f":"TRANSPOSE(P4874)","v":1341}]
["HELENA","MT","W-4",{"$f":"TRANSPOSE(Q4874)","v":1404}]
["HELENA","MT","W-5",{"$f":"TRANSPOSE(R4874)","v":1479}]
["HELENA","MT","O-1E",{"$f":"TRANSPOSE(S4874)","v":1326}]
["HELENA","MT","O-2E",{"$f":"TRANSPOSE(T4874)","v":1338}]
["HELENA","MT","O-3E",{"$f":"TRANSPOSE(U4874)","v":1416}]
["HELENA","MT","O-1",{"$f":"TRANSPOSE(V4874)","v":987}]
["HELENA","MT","O-2",{"$f":"TRANSPOSE(W4874)","v":1308}]
["HELENA","MT","O-3",{"$f":"TRANSPOSE(X4874)","v":1341}]
["HELENA","MT","O-4",{"$f":"TRANSPOSE(Y4874)","v":1506}]
["HELENA","MT","O-5",{"$f":"TRANSPOSE(Z4874)","v":1626}]
["HELENA","MT","O-6",{"$f":"TRANSPOSE(AA4874)","v":1644}]
["HELENA","MT","O-7",{"$f":"TRANSPOSE(AB4874)","v":1659}]
["BILLINGS","MT","E-1",{"$f":"TRANSPOSE(E4898:E4898)","v":963},963,963,963,963,1050,1245,1317,1398,1494,1248,1350,1449,1509,1581,1335,1434,1521,1071,1242,1446,1608,1725,1740,1758]
["BILLINGS","MT","E-2",{"$f":"TRANSPOSE(F4898:F4898)","v":963}]
["BILLINGS","MT","E-3",{"$f":"TRANSPOSE(G4898:G4898)","v":963}]
["BILLINGS","MT","E-4",{"$f":"TRANSPOSE(H4898:H4898)","v":963}]
["BILLINGS","MT","E-5",{"$f":"TRANSPOSE(I4898:I4898)","v":1050}]
["BILLINGS","MT","E-6",{"$f":"TRANSPOSE(J4898:J4898)","v":1245}]
["BILLINGS","MT","E-7",{"$f":"TRANSPOSE(K4898:K4898)","v":1317}]
["BILLINGS","MT","E-8",{"$f":"TRANSPOSE(L4898)","v":1398}]
["BILLINGS","MT","E-9",{"$f":"TRANSPOSE(M4898)","v":1494}]
["BILLINGS","MT","W-1",{"$f":"TRANSPOSE(N4898)","v":1248}]
["BILLINGS","MT","W-2",{"$f":"TRANSPOSE(O4898)","v":1350}]
["BILLINGS","MT","W-3",{"$f":"TRANSPOSE(P4898)","v":1449}]
["BILLINGS","MT","W-4",{"$f":"TRANSPOSE(Q4898)","v":1509}]
["BILLINGS","MT","W-5",{"$f":"TRANSPOSE(R4898)","v":1581}]
["BILLINGS","MT","O-1E",{"$f":"TRANSPOSE(S4898)","v":1335}]
["BILLINGS","MT","O-2E",{"$f":"TRANSPOSE(T4898)","v":1434}]
["BILLINGS","MT","O-3E",{"$f":"TRANSPOSE(U4898)","v":1521}]
["BILLINGS","MT","O-1",{"$f":"TRANSPOSE(V4898)","v":1071}]
["BILLINGS","MT","O-2",{"$f":"TRANSPOSE(W4898)","v":1242}]
["BILLINGS","MT","O-3",{"$f":"TRANSPOSE(X4898)","v":1446}]
["BILLINGS","MT","O-4",{"$f":"TRANSPOSE(Y4898)","v":1608}]
["BILLINGS","MT","O-5",{"$f":"TRANSPOSE(Z4898)","v":1725}]
["BILLINGS","MT","O-6",{"$f":"TRANSPOSE(AA4898)","v":1740}]
["BILLINGS","MT","O-7",{"$f":"TRANSPOSE(AB4898)","v":1758}]
["MISSOULA","MT","E-1",{"$f":"TRANSPOSE(E4922:E4922)","v":927},927,927,927,927,1017,1155,1281,1422,1566,1158,1338,1509,1587,1680,1311,1485,1602,1032,1152,1503,1716,1863,1884,1902]
["MISSOULA","MT","E-2",{"$f":"TRANSPOSE(F4922:F4922)","v":927}]
["MISSOULA","MT","E-3",{"$f":"TRANSPOSE(G4922:G4922)","v":927}]
["MISSOULA","MT","E-4",{"$f":"TRANSPOSE(H4922:H4922)","v":927}]
["MISSOULA","MT","E-5",{"$f":"TRANSPOSE(I4922:I4922)","v":1017}]
["MISSOULA","MT","E-6",{"$f":"TRANSPOSE(J4922:J4922)","v":1155}]
["MISSOULA","MT","E-7",{"$f":"TRANSPOSE(K4922:K4922)","v":1281}]
["MISSOULA","MT","E-8",{"$f":"TRANSPOSE(L4922)","v":1422}]
["MISSOULA","MT","E-9",{"$f":"TRANSPOSE(M4922)","v":1566}]
["MISSOULA","MT","W-1",{"$f":"TRANSPOSE(N4922)","v":1158}]
["MISSOULA","MT","W-2",{"$f":"TRANSPOSE(O4922)","v":1338}]
["MISSOULA","MT","W-3",{"$f":"TRANSPOSE(P4922)","v":1509}]
["MISSOULA","MT","W-4",{"$f":"TRANSPOSE(Q4922)","v":1587}]
["MISSOULA","MT","W-5",{"$f":"TRANSPOSE(R4922)","v":1680}]
["MISSOULA","MT","O-1E",{"$f":"TRANSPOSE(S4922)","v":1311}]
["MISSOULA","MT","O-2E",{"$f":"TRANSPOSE(T4922)","v":1485}]
["MISSOULA","MT","O-3E",{"$f":"TRANSPOSE(U4922)","v":1602}]
["MISSOULA","MT","O-1",{"$f":"TRANSPOSE(V4922)","v":1032}]
["MISSOULA","MT","O-2",{"$f":"TRANSPOSE(W4922)","v":1152}]
["MISSOULA","MT","O-3",{"$f":"TRANSPOSE(X4922)","v":1503}]
["MISSOULA","MT","O-4",{"$f":"TRANSPOSE(Y4922)","v":1716}]
["MISSOULA","MT","O-5",{"$f":"TRANSPOSE(Z4922)","v":1863}]
["MISSOULA","MT","O-6",{"$f":"TRANSPOSE(AA4922)","v":1884}]
["MISSOULA","MT","O-7",{"$f":"TRANSPOSE(AB4922)","v":1902}]
["OUTER BANKS","NC","E-1",{"$f":"TRANSPOSE(E4946:E4946)","v":1158},1158,1158,1158,1158,1245,1560,1629,1701,1785,1563,1659,1749,1800,1860,1644,1737,1809,1278,1554,1746,1881,1980,1998,2019]
["OUTER BANKS","NC","E-2",{"$f":"TRANSPOSE(F4946:F4946)","v":1158}]
["OUTER BANKS","NC","E-3",{"$f":"TRANSPOSE(G4946:G4946)","v":1158}]
["OUTER BANKS","NC","E-4",{"$f":"TRANSPOSE(H4946:H4946)","v":1158}]
["OUTER BANKS","NC","E-5",{"$f":"TRANSPOSE(I4946:I4946)","v":1245}]
["OUTER BANKS","NC","E-6",{"$f":"TRANSPOSE(J4946:J4946)","v":1560}]
["OUTER BANKS","NC","E-7",{"$f":"TRANSPOSE(K4946:K4946)","v":1629}]
["OUTER BANKS","NC","E-8",{"$f":"TRANSPOSE(L4946)","v":1701}]
["OUTER BANKS","NC","E-9",{"$f":"TRANSPOSE(M4946)","v":1785}]
["OUTER BANKS","NC","W-1",{"$f":"TRANSPOSE(N4946)","v":1563}]
["OUTER BANKS","NC","W-2",{"$f":"TRANSPOSE(O4946)","v":1659}]
["OUTER BANKS","NC","W-3",{"$f":"TRANSPOSE(P4946)","v":1749}]
["OUTER BANKS","NC","W-4",{"$f":"TRANSPOSE(Q4946)","v":1800}]
["OUTER BANKS","NC","W-5",{"$f":"TRANSPOSE(R4946)","v":1860}]
["OUTER BANKS","NC","O-1E",{"$f":"TRANSPOSE(S4946)","v":1644}]
["OUTER BANKS","NC","O-2E",{"$f":"TRANSPOSE(T4946)","v":1737}]
["OUTER BANKS","NC","O-3E",{"$f":"TRANSPOSE(U4946)","v":1809}]
["OUTER BANKS","NC","O-1",{"$f":"TRANSPOSE(V4946)","v":1278}]
["OUTER BANKS","NC","O-2",{"$f":"TRANSPOSE(W4946)","v":1554}]
["OUTER BANKS","NC","O-3",{"$f":"TRANSPOSE(X4946)","v":1746}]
["OUTER BANKS","NC","O-4",{"$f":"TRANSPOSE(Y4946)","v":1881}]
["OUTER BANKS","NC","O-5",{"$f":"TRANSPOSE(Z4946)","v":1980}]
["OUTER BANKS","NC","O-6",{"$f":"TRANSPOSE(AA4946)","v":1998}]
["OUTER BANKS","NC","O-7",{"$f":"TRANSPOSE(AB4946)","v":2019}]
["MOREHEAD/CHERRY PT MCAS","NC","E-1",{"$f":"TRANSPOSE(E4970:E4970)","v":1098},1098,1098,1098,1098,1182,1410,1497,1590,1671,1410,1536,1650,1677,1707,1515,1635,1683,1206,1404,1647,1719,1770,1788,1806]
["MOREHEAD/CHERRY PT MCAS","NC","E-2",{"$f":"TRANSPOSE(F4970:F4970)","v":1098}]
["MOREHEAD/CHERRY PT MCAS","NC","E-3",{"$f":"TRANSPOSE(G4970:G4970)","v":1098}]
["MOREHEAD/CHERRY PT MCAS","NC","E-4",{"$f":"TRANSPOSE(H4970:H4970)","v":1098}]
["MOREHEAD/CHERRY PT MCAS","NC","E-5",{"$f":"TRANSPOSE(I4970:I4970)","v":1182}]
["MOREHEAD/CHERRY PT MCAS","NC","E-6",{"$f":"TRANSPOSE(J4970:J4970)","v":1410}]
["MOREHEAD/CHERRY PT MCAS","NC","E-7",{"$f":"TRANSPOSE(K4970:K4970)","v":1497}]
["MOREHEAD/CHERRY PT MCAS","NC","E-8",{"$f":"TRANSPOSE(L4970)","v":1590}]
["MOREHEAD/CHERRY PT MCAS","NC","E-9",{"$f":"TRANSPOSE(M4970)","v":1671}]
["MOREHEAD/CHERRY PT MCAS","NC","W-1",{"$f":"TRANSPOSE(N4970)","v":1410}]
["MOREHEAD/CHERRY PT MCAS","NC","W-2",{"$f":"TRANSPOSE(O4970)","v":1536}]
["MOREHEAD/CHERRY PT MCAS","NC","W-3",{"$f":"TRANSPOSE(P4970)","v":1650}]
["MOREHEAD/CHERRY PT MCAS","NC","W-4",{"$f":"TRANSPOSE(Q4970)","v":1677}]
["MOREHEAD/CHERRY PT MCAS","NC","W-5",{"$f":"TRANSPOSE(R4970)","v":1707}]
["MOREHEAD/CHERRY PT MCAS","NC","O-1E",{"$f":"TRANSPOSE(S4970)","v":1515}]
["MOREHEAD/CHERRY PT MCAS","NC","O-2E",{"$f":"TRANSPOSE(T4970)","v":1635}]
["MOREHEAD/CHERRY PT MCAS","NC","O-3E",{"$f":"TRANSPOSE(U4970)","v":1683}]
["MOREHEAD/CHERRY PT MCAS","NC","O-1",{"$f":"TRANSPOSE(V4970)","v":1206}]
["MOREHEAD/CHERRY PT MCAS","NC","O-2",{"$f":"TRANSPOSE(W4970)","v":1404}]
["MOREHEAD/CHERRY PT MCAS","NC","O-3",{"$f":"TRANSPOSE(X4970)","v":1647}]
["MOREHEAD/CHERRY PT MCAS","NC","O-4",{"$f":"TRANSPOSE(Y4970)","v":1719}]
["MOREHEAD/CHERRY PT MCAS","NC","O-5",{"$f":"TRANSPOSE(Z4970)","v":1770}]
["MOREHEAD/CHERRY PT MCAS","NC","O-6",{"$f":"TRANSPOSE(AA4970)","v":1788}]
["MOREHEAD/CHERRY PT MCAS","NC","O-7",{"$f":"TRANSPOSE(AB4970)","v":1806}]
["CAMP LEJEUNE","NC","E-1",{"$f":"TRANSPOSE(E4994:E4994)","v":1047},1047,1047,1047,1047,1083,1341,1395,1458,1548,1344,1422,1494,1569,1653,1410,1485,1581,1113,1335,1491,1689,1827,1845,1863]
["CAMP LEJEUNE","NC","E-2",{"$f":"TRANSPOSE(F4994:F4994)","v":1047}]
["CAMP LEJEUNE","NC","E-3",{"$f":"TRANSPOSE(G4994:G4994)","v":1047}]
["CAMP LEJEUNE","NC","E-4",{"$f":"TRANSPOSE(H4994:H4994)","v":1047}]
["CAMP LEJEUNE","NC","E-5",{"$f":"TRANSPOSE(I4994:I4994)","v":1083}]
["CAMP LEJEUNE","NC","E-6",{"$f":"TRANSPOSE(J4994:J4994)","v":1341}]
["CAMP LEJEUNE","NC","E-7",{"$f":"TRANSPOSE(K4994:K4994)","v":1395}]
["CAMP LEJEUNE","NC","E-8",{"$f":"TRANSPOSE(L4994)","v":1458}]
["CAMP LEJEUNE","NC","E-9",{"$f":"TRANSPOSE(M4994)","v":1548}]
["CAMP LEJEUNE","NC","W-1",{"$f":"TRANSPOSE(N4994)","v":1344}]
["CAMP LEJEUNE","NC","W-2",{"$f":"TRANSPOSE(O4994)","v":1422}]
["CAMP LEJEUNE","NC","W-3",{"$f":"TRANSPOSE(P4994)","v":1494}]
["CAMP LEJEUNE","NC","W-4",{"$f":"TRANSPOSE(Q4994)","v":1569}]
["CAMP LEJEUNE","NC","W-5",{"$f":"TRANSPOSE(R4994)","v":1653}]
["CAMP LEJEUNE","NC","O-1E",{"$f":"TRANSPOSE(S4994)","v":1410}]
["CAMP LEJEUNE","NC","O-2E",{"$f":"TRANSPOSE(T4994)","v":1485}]
["CAMP LEJEUNE","NC","O-3E",{"$f":"TRANSPOSE(U4994)","v":1581}]
["CAMP LEJEUNE","NC","O-1",{"$f":"TRANSPOSE(V4994)","v":1113}]
["CAMP LEJEUNE","NC","O-2",{"$f":"TRANSPOSE(W4994)","v":1335}]
["CAMP LEJEUNE","NC","O-3",{"$f":"TRANSPOSE(X4994)","v":1491}]
["CAMP LEJEUNE","NC","O-4",{"$f":"TRANSPOSE(Y4994)","v":1689}]
["CAMP LEJEUNE","NC","O-5",{"$f":"TRANSPOSE(Z4994)","v":1827}]
["CAMP LEJEUNE","NC","O-6",{"$f":"TRANSPOSE(AA4994)","v":1845}]
["CAMP LEJEUNE","NC","O-7",{"$f":"TRANSPOSE(AB4994)","v":1863}]
["CHARLOTTE","NC","E-1",{"$f":"TRANSPOSE(E5018:E5018)","v":1131},1131,1131,1131,1131,1221,1518,1527,1536,1575,1518,1530,1542,1587,1638,1527,1539,1593,1254,1512,1542,1659,1746,1764,1782]
["CHARLOTTE","NC","E-2",{"$f":"TRANSPOSE(F5018:F5018)","v":1131}]
["CHARLOTTE","NC","E-3",{"$f":"TRANSPOSE(G5018:G5018)","v":1131}]
["CHARLOTTE","NC","E-4",{"$f":"TRANSPOSE(H5018:H5018)","v":1131}]
["CHARLOTTE","NC","E-5",{"$f":"TRANSPOSE(I5018:I5018)","v":1221}]
["CHARLOTTE","NC","E-6",{"$f":"TRANSPOSE(J5018:J5018)","v":1518}]
["CHARLOTTE","NC","E-7",{"$f":"TRANSPOSE(K5018:K5018)","v":1527}]
["CHARLOTTE","NC","E-8",{"$f":"TRANSPOSE(L5018)","v":1536}]
["CHARLOTTE","NC","E-9",{"$f":"TRANSPOSE(M5018)","v":1575}]
["CHARLOTTE","NC","W-1",{"$f":"TRANSPOSE(N5018)","v":1518}]
["CHARLOTTE","NC","W-2",{"$f":"TRANSPOSE(O5018)","v":1530}]
["CHARLOTTE","NC","W-3",{"$f":"TRANSPOSE(P5018)","v":1542}]
["CHARLOTTE","NC","W-4",{"$f":"TRANSPOSE(Q5018)","v":1587}]
["CHARLOTTE","NC","W-5",{"$f":"TRANSPOSE(R5018)","v":1638}]
["CHARLOTTE","NC","O-1E",{"$f":"TRANSPOSE(S5018)","v":1527}]
["CHARLOTTE","NC","O-2E",{"$f":"TRANSPOSE(T5018)","v":1539}]
["CHARLOTTE","NC","O-3E",{"$f":"TRANSPOSE(U5018)","v":1593}]
["CHARLOTTE","NC","O-1",{"$f":"TRANSPOSE(V5018)","v":1254}]
["CHARLOTTE","NC","O-2",{"$f":"TRANSPOSE(W5018)","v":1512}]
["CHARLOTTE","NC","O-3",{"$f":"TRANSPOSE(X5018)","v":1542}]
["CHARLOTTE","NC","O-4",{"$f":"TRANSPOSE(Y5018)","v":1659}]
["CHARLOTTE","NC","O-5",{"$f":"TRANSPOSE(Z5018)","v":1746}]
["CHARLOTTE","NC","O-6",{"$f":"TRANSPOSE(AA5018)","v":1764}]
["CHARLOTTE","NC","O-7",{"$f":"TRANSPOSE(AB5018)","v":1782}]
["DURHAM/CHAPEL HILL","NC","E-1",{"$f":"TRANSPOSE(E5042:E5042)","v":1182},1182,1182,1182,1182,1275,1407,1452,1503,1656,1407,1473,1533,1704,1902,1461,1524,1734,1290,1404,1530,1980,2301,2325,2346]
["DURHAM/CHAPEL HILL","NC","E-2",{"$f":"TRANSPOSE(F5042:F5042)","v":1182}]
["DURHAM/CHAPEL HILL","NC","E-3",{"$f":"TRANSPOSE(G5042:G5042)","v":1182}]
["DURHAM/CHAPEL HILL","NC","E-4",{"$f":"TRANSPOSE(H5042:H5042)","v":1182}]
["DURHAM/CHAPEL HILL","NC","E-5",{"$f":"TRANSPOSE(I5042:I5042)","v":1275}]
["DURHAM/CHAPEL HILL","NC","E-6",{"$f":"TRANSPOSE(J5042:J5042)","v":1407}]
["DURHAM/CHAPEL HILL","NC","E-7",{"$f":"TRANSPOSE(K5042:K5042)","v":1452}]
["DURHAM/CHAPEL HILL","NC","E-8",{"$f":"TRANSPOSE(L5042)","v":1503}]
["DURHAM/CHAPEL HILL","NC","E-9",{"$f":"TRANSPOSE(M5042)","v":1656}]
["DURHAM/CHAPEL HILL","NC","W-1",{"$f":"TRANSPOSE(N5042)","v":1407}]
["DURHAM/CHAPEL HILL","NC","W-2",{"$f":"TRANSPOSE(O5042)","v":1473}]
["DURHAM/CHAPEL HILL","NC","W-3",{"$f":"TRANSPOSE(P5042)","v":1533}]
["DURHAM/CHAPEL HILL","NC","W-4",{"$f":"TRANSPOSE(Q5042)","v":1704}]
["DURHAM/CHAPEL HILL","NC","W-5",{"$f":"TRANSPOSE(R5042)","v":1902}]
["DURHAM/CHAPEL HILL","NC","O-1E",{"$f":"TRANSPOSE(S5042)","v":1461}]
["DURHAM/CHAPEL HILL","NC","O-2E",{"$f":"TRANSPOSE(T5042)","v":1524}]
["DURHAM/CHAPEL HILL","NC","O-3E",{"$f":"TRANSPOSE(U5042)","v":1734}]
["DURHAM/CHAPEL HILL","NC","O-1",{"$f":"TRANSPOSE(V5042)","v":1290}]
["DURHAM/CHAPEL HILL","NC","O-2",{"$f":"TRANSPOSE(W5042)","v":1404}]
["DURHAM/CHAPEL HILL","NC","O-3",{"$f":"TRANSPOSE(X5042)","v":1530}]
["DURHAM/CHAPEL HILL","NC","O-4",{"$f":"TRANSPOSE(Y5042)","v":1980}]
["DURHAM/CHAPEL HILL","NC","O-5",{"$f":"TRANSPOSE(Z5042)","v":2301}]
["DURHAM/CHAPEL HILL","NC","O-6",{"$f":"TRANSPOSE(AA5042)","v":2325}]
["DURHAM/CHAPEL HILL","NC","O-7",{"$f":"TRANSPOSE(AB5042)","v":2346}]
["ELIZABETH CITY","NC","E-1",{"$f":"TRANSPOSE(E5066:E5066)","v":1293},1293,1293,1293,1293,1410,1644,1725,1815,1908,1647,1761,1872,1920,1980,1743,1854,1929,1434,1638,1866,2001,2097,2118,2139]
["ELIZABETH CITY","NC","E-2",{"$f":"TRANSPOSE(F5066:F5066)","v":1293}]
["ELIZABETH CITY","NC","E-3",{"$f":"TRANSPOSE(G5066:G5066)","v":1293}]
["ELIZABETH CITY","NC","E-4",{"$f":"TRANSPOSE(H5066:H5066)","v":1293}]
["ELIZABETH CITY","NC","E-5",{"$f":"TRANSPOSE(I5066:I5066)","v":1410}]
["ELIZABETH CITY","NC","E-6",{"$f":"TRANSPOSE(J5066:J5066)","v":1644}]
["ELIZABETH CITY","NC","E-7",{"$f":"TRANSPOSE(K5066:K5066)","v":1725}]
["ELIZABETH CITY","NC","E-8",{"$f":"TRANSPOSE(L5066)","v":1815}]
["ELIZABETH CITY","NC","E-9",{"$f":"TRANSPOSE(M5066)","v":1908}]
["ELIZABETH CITY","NC","W-1",{"$f":"TRANSPOSE(N5066)","v":1647}]
["ELIZABETH CITY","NC","W-2",{"$f":"TRANSPOSE(O5066)","v":1761}]
["ELIZABETH CITY","NC","W-3",{"$f":"TRANSPOSE(P5066)","v":1872}]
["ELIZABETH CITY","NC","W-4",{"$f":"TRANSPOSE(Q5066)","v":1920}]
["ELIZABETH CITY","NC","W-5",{"$f":"TRANSPOSE(R5066)","v":1980}]
["ELIZABETH CITY","NC","O-1E",{"$f":"TRANSPOSE(S5066)","v":1743}]
["ELIZABETH CITY","NC","O-2E",{"$f":"TRANSPOSE(T5066)","v":1854}]
["ELIZABETH CITY","NC","O-3E",{"$f":"TRANSPOSE(U5066)","v":1929}]
["ELIZABETH CITY","NC","O-1",{"$f":"TRANSPOSE(V5066)","v":1434}]
["ELIZABETH CITY","NC","O-2",{"$f":"TRANSPOSE(W5066)","v":1638}]
["ELIZABETH CITY","NC","O-3",{"$f":"TRANSPOSE(X5066)","v":1866}]
["ELIZABETH CITY","NC","O-4",{"$f":"TRANSPOSE(Y5066)","v":2001}]
["ELIZABETH CITY","NC","O-5",{"$f":"TRANSPOSE(Z5066)","v":2097}]
["ELIZABETH CITY","NC","O-6",{"$f":"TRANSPOSE(AA5066)","v":2118}]
["ELIZABETH CITY","NC","O-7",{"$f":"TRANSPOSE(AB5066)","v":2139}]
["FORT BRAGG/POPE AFB","NC","E-1",{"$f":"TRANSPOSE(E5090:E5090)","v":1065},1065,1065,1065,1065,1125,1290,1377,1470,1578,1293,1416,1530,1596,1674,1398,1515,1608,1143,1287,1527,1707,1833,1851,1869]
["FORT BRAGG/POPE AFB","NC","E-2",{"$f":"TRANSPOSE(F5090:F5090)","v":1065}]
["FORT BRAGG/POPE AFB","NC","E-3",{"$f":"TRANSPOSE(G5090:G5090)","v":1065}]
["FORT BRAGG/POPE AFB","NC","E-4",{"$f":"TRANSPOSE(H5090:H5090)","v":1065}]
["FORT BRAGG/POPE AFB","NC","E-5",{"$f":"TRANSPOSE(I5090:I5090)","v":1125}]
["FORT BRAGG/POPE AFB","NC","E-6",{"$f":"TRANSPOSE(J5090:J5090)","v":1290}]
["FORT BRAGG/POPE AFB","NC","E-7",{"$f":"TRANSPOSE(K5090:K5090)","v":1377}]
["FORT BRAGG/POPE AFB","NC","E-8",{"$f":"TRANSPOSE(L5090)","v":1470}]
["FORT BRAGG/POPE AFB","NC","E-9",{"$f":"TRANSPOSE(M5090)","v":1578}]
["FORT BRAGG/POPE AFB","NC","W-1",{"$f":"TRANSPOSE(N5090)","v":1293}]
["FORT BRAGG/POPE AFB","NC","W-2",{"$f":"TRANSPOSE(O5090)","v":1416}]
["FORT BRAGG/POPE AFB","NC","W-3",{"$f":"TRANSPOSE(P5090)","v":1530}]
["FORT BRAGG/POPE AFB","NC","W-4",{"$f":"TRANSPOSE(Q5090)","v":1596}]
["FORT BRAGG/POPE AFB","NC","W-5",{"$f":"TRANSPOSE(R5090)","v":1674}]
["FORT BRAGG/POPE AFB","NC","O-1E",{"$f":"TRANSPOSE(S5090)","v":1398}]
["FORT BRAGG/POPE AFB","NC","O-2E",{"$f":"TRANSPOSE(T5090)","v":1515}]
["FORT BRAGG/POPE AFB","NC","O-3E",{"$f":"TRANSPOSE(U5090)","v":1608}]
["FORT BRAGG/POPE AFB","NC","O-1",{"$f":"TRANSPOSE(V5090)","v":1143}]
["FORT BRAGG/POPE AFB","NC","O-2",{"$f":"TRANSPOSE(W5090)","v":1287}]
["FORT BRAGG/POPE AFB","NC","O-3",{"$f":"TRANSPOSE(X5090)","v":1527}]
["FORT BRAGG/POPE AFB","NC","O-4",{"$f":"TRANSPOSE(Y5090)","v":1707}]
["FORT BRAGG/POPE AFB","NC","O-5",{"$f":"TRANSPOSE(Z5090)","v":1833}]
["FORT BRAGG/POPE AFB","NC","O-6",{"$f":"TRANSPOSE(AA5090)","v":1851}]
["FORT BRAGG/POPE AFB","NC","O-7",{"$f":"TRANSPOSE(AB5090)","v":1869}]
["SEYMORE JOHNSON AFB","NC","E-1",{"$f":"TRANSPOSE(E5114:E5114)","v":996},996,996,996,996,1059,1299,1392,1497,1602,1302,1434,1560,1617,1683,1413,1542,1629,1086,1293,1557,1710,1818,1836,1854]
["SEYMORE JOHNSON AFB","NC","E-2",{"$f":"TRANSPOSE(F5114:F5114)","v":996}]
["SEYMORE JOHNSON AFB","NC","E-3",{"$f":"TRANSPOSE(G5114:G5114)","v":996}]
["SEYMORE JOHNSON AFB","NC","E-4",{"$f":"TRANSPOSE(H5114:H5114)","v":996}]
["SEYMORE JOHNSON AFB","NC","E-5",{"$f":"TRANSPOSE(I5114:I5114)","v":1059}]
["SEYMORE JOHNSON AFB","NC","E-6",{"$f":"TRANSPOSE(J5114:J5114)","v":1299}]
["SEYMORE JOHNSON AFB","NC","E-7",{"$f":"TRANSPOSE(K5114:K5114)","v":1392}]
["SEYMORE JOHNSON AFB","NC","E-8",{"$f":"TRANSPOSE(L5114)","v":1497}]
["SEYMORE JOHNSON AFB","NC","E-9",{"$f":"TRANSPOSE(M5114)","v":1602}]
["SEYMORE JOHNSON AFB","NC","W-1",{"$f":"TRANSPOSE(N5114)","v":1302}]
["SEYMORE JOHNSON AFB","NC","W-2",{"$f":"TRANSPOSE(O5114)","v":1434}]
["SEYMORE JOHNSON AFB","NC","W-3",{"$f":"TRANSPOSE(P5114)","v":1560}]
["SEYMORE JOHNSON AFB","NC","W-4",{"$f":"TRANSPOSE(Q5114)","v":1617}]
["SEYMORE JOHNSON AFB","NC","W-5",{"$f":"TRANSPOSE(R5114)","v":1683}]
["SEYMORE JOHNSON AFB","NC","O-1E",{"$f":"TRANSPOSE(S5114)","v":1413}]
["SEYMORE JOHNSON AFB","NC","O-2E",{"$f":"TRANSPOSE(T5114)","v":1542}]
["SEYMORE JOHNSON AFB","NC","O-3E",{"$f":"TRANSPOSE(U5114)","v":1629}]
["SEYMORE JOHNSON AFB","NC","O-1",{"$f":"TRANSPOSE(V5114)","v":1086}]
["SEYMORE JOHNSON AFB","NC","O-2",{"$f":"TRANSPOSE(W5114)","v":1293}]
["SEYMORE JOHNSON AFB","NC","O-3",{"$f":"TRANSPOSE(X5114)","v":1557}]
["SEYMORE JOHNSON AFB","NC","O-4",{"$f":"TRANSPOSE(Y5114)","v":1710}]
["SEYMORE JOHNSON AFB","NC","O-5",{"$f":"TRANSPOSE(Z5114)","v":1818}]
["SEYMORE JOHNSON AFB","NC","O-6",{"$f":"TRANSPOSE(AA5114)","v":1836}]
["SEYMORE JOHNSON AFB","NC","O-7",{"$f":"TRANSPOSE(AB5114)","v":1854}]
["GREENSBORO","NC","E-1",{"$f":"TRANSPOSE(E5138:E5138)","v":927},927,927,927,927,999,1122,1161,1206,1299,1125,1179,1233,1323,1434,1170,1224,1341,1014,1122,1230,1476,1653,1668,1686]
["GREENSBORO","NC","E-2",{"$f":"TRANSPOSE(F5138:F5138)","v":927}]
["GREENSBORO","NC","E-3",{"$f":"TRANSPOSE(G5138:G5138)","v":927}]
["GREENSBORO","NC","E-4",{"$f":"TRANSPOSE(H5138:H5138)","v":927}]
["GREENSBORO","NC","E-5",{"$f":"TRANSPOSE(I5138:I5138)","v":999}]
["GREENSBORO","NC","E-6",{"$f":"TRANSPOSE(J5138:J5138)","v":1122}]
["GREENSBORO","NC","E-7",{"$f":"TRANSPOSE(K5138:K5138)","v":1161}]
["GREENSBORO","NC","E-8",{"$f":"TRANSPOSE(L5138)","v":1206}]
["GREENSBORO","NC","E-9",{"$f":"TRANSPOSE(M5138)","v":1299}]
["GREENSBORO","NC","W-1",{"$f":"TRANSPOSE(N5138)","v":1125}]
["GREENSBORO","NC","W-2",{"$f":"TRANSPOSE(O5138)","v":1179}]
["GREENSBORO","NC","W-3",{"$f":"TRANSPOSE(P5138)","v":1233}]
["GREENSBORO","NC","W-4",{"$f":"TRANSPOSE(Q5138)","v":1323}]
["GREENSBORO","NC","W-5",{"$f":"TRANSPOSE(R5138)","v":1434}]
["GREENSBORO","NC","O-1E",{"$f":"TRANSPOSE(S5138)","v":1170}]
["GREENSBORO","NC","O-2E",{"$f":"TRANSPOSE(T5138)","v":1224}]
["GREENSBORO","NC","O-3E",{"$f":"TRANSPOSE(U5138)","v":1341}]
["GREENSBORO","NC","O-1",{"$f":"TRANSPOSE(V5138)","v":1014}]
["GREENSBORO","NC","O-2",{"$f":"TRANSPOSE(W5138)","v":1122}]
["GREENSBORO","NC","O-3",{"$f":"TRANSPOSE(X5138)","v":1230}]
["GREENSBORO","NC","O-4",{"$f":"TRANSPOSE(Y5138)","v":1476}]
["GREENSBORO","NC","O-5",{"$f":"TRANSPOSE(Z5138)","v":1653}]
["GREENSBORO","NC","O-6",{"$f":"TRANSPOSE(AA5138)","v":1668}]
["GREENSBORO","NC","O-7",{"$f":"TRANSPOSE(AB5138)","v":1686}]
["RALEIGH","NC","E-1",{"$f":"TRANSPOSE(E5162:E5162)","v":1065},1065,1065,1065,1065,1116,1359,1401,1446,1593,1362,1419,1476,1638,1833,1410,1467,1668,1143,1356,1473,1908,2220,2241,2265]
["RALEIGH","NC","E-2",{"$f":"TRANSPOSE(F5162:F5162)","v":1065}]
["RALEIGH","NC","E-3",{"$f":"TRANSPOSE(G5162:G5162)","v":1065}]
["RALEIGH","NC","E-4",{"$f":"TRANSPOSE(H5162:H5162)","v":1065}]
["RALEIGH","NC","E-5",{"$f":"TRANSPOSE(I5162:I5162)","v":1116}]
["RALEIGH","NC","E-6",{"$f":"TRANSPOSE(J5162:J5162)","v":1359}]
["RALEIGH","NC","E-7",{"$f":"TRANSPOSE(K5162:K5162)","v":1401}]
["RALEIGH","NC","E-8",{"$f":"TRANSPOSE(L5162)","v":1446}]
["RALEIGH","NC","E-9",{"$f":"TRANSPOSE(M5162)","v":1593}]
["RALEIGH","NC","W-1",{"$f":"TRANSPOSE(N5162)","v":1362}]
["RALEIGH","NC","W-2",{"$f":"TRANSPOSE(O5162)","v":1419}]
["RALEIGH","NC","W-3",{"$f":"TRANSPOSE(P5162)","v":1476}]
["RALEIGH","NC","W-4",{"$f":"TRANSPOSE(Q5162)","v":1638}]
["RALEIGH","NC","W-5",{"$f":"TRANSPOSE(R5162)","v":1833}]
["RALEIGH","NC","O-1E",{"$f":"TRANSPOSE(S5162)","v":1410}]
["RALEIGH","NC","O-2E",{"$f":"TRANSPOSE(T5162)","v":1467}]
["RALEIGH","NC","O-3E",{"$f":"TRANSPOSE(U5162)","v":1668}]
["RALEIGH","NC","O-1",{"$f":"TRANSPOSE(V5162)","v":1143}]
["RALEIGH","NC","O-2",{"$f":"TRANSPOSE(W5162)","v":1356}]
["RALEIGH","NC","O-3",{"$f":"TRANSPOSE(X5162)","v":1473}]
["RALEIGH","NC","O-4",{"$f":"TRANSPOSE(Y5162)","v":1908}]
["RALEIGH","NC","O-5",{"$f":"TRANSPOSE(Z5162)","v":2220}]
["RALEIGH","NC","O-6",{"$f":"TRANSPOSE(AA5162)","v":2241}]
["RALEIGH","NC","O-7",{"$f":"TRANSPOSE(AB5162)","v":2265}]
["WILMINGTON","NC","E-1",{"$f":"TRANSPOSE(E5186:E5186)","v":1230},1230,1230,1230,1230,1311,1416,1485,1560,1671,1416,1515,1608,1692,1794,1500,1596,1710,1323,1413,1605,1833,1992,2013,2034]
["WILMINGTON","NC","E-2",{"$f":"TRANSPOSE(F5186:F5186)","v":1230}]
["WILMINGTON","NC","E-3",{"$f":"TRANSPOSE(G5186:G5186)","v":1230}]
["WILMINGTON","NC","E-4",{"$f":"TRANSPOSE(H5186:H5186)","v":1230}]
["WILMINGTON","NC","E-5",{"$f":"TRANSPOSE(I5186:I5186)","v":1311}]
["WILMINGTON","NC","E-6",{"$f":"TRANSPOSE(J5186:J5186)","v":1416}]
["WILMINGTON","NC","E-7",{"$f":"TRANSPOSE(K5186:K5186)","v":1485}]
["WILMINGTON","NC","E-8",{"$f":"TRANSPOSE(L5186)","v":1560}]
["WILMINGTON","NC","E-9",{"$f":"TRANSPOSE(M5186)","v":1671}]
["WILMINGTON","NC","W-1",{"$f":"TRANSPOSE(N5186)","v":1416}]
["WILMINGTON","NC","W-2",{"$f":"TRANSPOSE(O5186)","v":1515}]
["WILMINGTON","NC","W-3",{"$f":"TRANSPOSE(P5186)","v":1608}]
["WILMINGTON","NC","W-4",{"$f":"TRANSPOSE(Q5186)","v":1692}]
["WILMINGTON","NC","W-5",{"$f":"TRANSPOSE(R5186)","v":1794}]
["WILMINGTON","NC","O-1E",{"$f":"TRANSPOSE(S5186)","v":1500}]
["WILMINGTON","NC","O-2E",{"$f":"TRANSPOSE(T5186)","v":1596}]
["WILMINGTON","NC","O-3E",{"$f":"TRANSPOSE(U5186)","v":1710}]
["WILMINGTON","NC","O-1",{"$f":"TRANSPOSE(V5186)","v":1323}]
["WILMINGTON","NC","O-2",{"$f":"TRANSPOSE(W5186)","v":1413}]
["WILMINGTON","NC","O-3",{"$f":"TRANSPOSE(X5186)","v":1605}]
["WILMINGTON","NC","O-4",{"$f":"TRANSPOSE(Y5186)","v":1833}]
["WILMINGTON","NC","O-5",{"$f":"TRANSPOSE(Z5186)","v":1992}]
["WILMINGTON","NC","O-6",{"$f":"TRANSPOSE(AA5186)","v":2013}]
["WILMINGTON","NC","O-7",{"$f":"TRANSPOSE(AB5186)","v":2034}]
["ASHEVILLE","NC","E-1",{"$f":"TRANSPOSE(E5210:E5210)","v":1143},1143,1143,1143,1143,1236,1446,1515,1590,1716,1446,1545,1638,1746,1872,1530,1626,1767,1260,1440,1635,1920,2127,2148,2169]
["ASHEVILLE","NC","E-2",{"$f":"TRANSPOSE(F5210:F5210)","v":1143}]
["ASHEVILLE","NC","E-3",{"$f":"TRANSPOSE(G5210:G5210)","v":1143}]
["ASHEVILLE","NC","E-4",{"$f":"TRANSPOSE(H5210:H5210)","v":1143}]
["ASHEVILLE","NC","E-5",{"$f":"TRANSPOSE(I5210:I5210)","v":1236}]
["ASHEVILLE","NC","E-6",{"$f":"TRANSPOSE(J5210:J5210)","v":1446}]
["ASHEVILLE","NC","E-7",{"$f":"TRANSPOSE(K5210:K5210)","v":1515}]
["ASHEVILLE","NC","E-8",{"$f":"TRANSPOSE(L5210)","v":1590}]
["ASHEVILLE","NC","E-9",{"$f":"TRANSPOSE(M5210)","v":1716}]
["ASHEVILLE","NC","W-1",{"$f":"TRANSPOSE(N5210)","v":1446}]
["ASHEVILLE","NC","W-2",{"$f":"TRANSPOSE(O5210)","v":1545}]
["ASHEVILLE","NC","W-3",{"$f":"TRANSPOSE(P5210)","v":1638}]
["ASHEVILLE","NC","W-4",{"$f":"TRANSPOSE(Q5210)","v":1746}]
["ASHEVILLE","NC","W-5",{"$f":"TRANSPOSE(R5210)","v":1872}]
["ASHEVILLE","NC","O-1E",{"$f":"TRANSPOSE(S5210)","v":1530}]
["ASHEVILLE","NC","O-2E",{"$f":"TRANSPOSE(T5210)","v":1626}]
["ASHEVILLE","NC","O-3E",{"$f":"TRANSPOSE(U5210)","v":1767}]
["ASHEVILLE","NC","O-1",{"$f":"TRANSPOSE(V5210)","v":1260}]
["ASHEVILLE","NC","O-2",{"$f":"TRANSPOSE(W5210)","v":1440}]
["ASHEVILLE","NC","O-3",{"$f":"TRANSPOSE(X5210)","v":1635}]
["ASHEVILLE","NC","O-4",{"$f":"TRANSPOSE(Y5210)","v":1920}]
["ASHEVILLE","NC","O-5",{"$f":"TRANSPOSE(Z5210)","v":2127}]
["ASHEVILLE","NC","O-6",{"$f":"TRANSPOSE(AA5210)","v":2148}]
["ASHEVILLE","NC","O-7",{"$f":"TRANSPOSE(AB5210)","v":2169}]
["GREENVILLE","NC","E-1",{"$f":"TRANSPOSE(E5234:E5234)","v":924},924,924,924,924,1011,1197,1335,1482,1626,1200,1395,1578,1644,1722,1365,1551,1656,1032,1194,1569,1752,1875,1896,1914]
["GREENVILLE","NC","E-2",{"$f":"TRANSPOSE(F5234:F5234)","v":924}]
["GREENVILLE","NC","E-3",{"$f":"TRANSPOSE(G5234:G5234)","v":924}]
["GREENVILLE","NC","E-4",{"$f":"TRANSPOSE(H5234:H5234)","v":924}]
["GREENVILLE","NC","E-5",{"$f":"TRANSPOSE(I5234:I5234)","v":1011}]
["GREENVILLE","NC","E-6",{"$f":"TRANSPOSE(J5234:J5234)","v":1197}]
["GREENVILLE","NC","E-7",{"$f":"TRANSPOSE(K5234:K5234)","v":1335}]
["GREENVILLE","NC","E-8",{"$f":"TRANSPOSE(L5234)","v":1482}]
["GREENVILLE","NC","E-9",{"$f":"TRANSPOSE(M5234)","v":1626}]
["GREENVILLE","NC","W-1",{"$f":"TRANSPOSE(N5234)","v":1200}]
["GREENVILLE","NC","W-2",{"$f":"TRANSPOSE(O5234)","v":1395}]
["GREENVILLE","NC","W-3",{"$f":"TRANSPOSE(P5234)","v":1578}]
["GREENVILLE","NC","W-4",{"$f":"TRANSPOSE(Q5234)","v":1644}]
["GREENVILLE","NC","W-5",{"$f":"TRANSPOSE(R5234)","v":1722}]
["GREENVILLE","NC","O-1E",{"$f":"TRANSPOSE(S5234)","v":1365}]
["GREENVILLE","NC","O-2E",{"$f":"TRANSPOSE(T5234)","v":1551}]
["GREENVILLE","NC","O-3E",{"$f":"TRANSPOSE(U5234)","v":1656}]
["GREENVILLE","NC","O-1",{"$f":"TRANSPOSE(V5234)","v":1032}]
["GREENVILLE","NC","O-2",{"$f":"TRANSPOSE(W5234)","v":1194}]
["GREENVILLE","NC","O-3",{"$f":"TRANSPOSE(X5234)","v":1569}]
["GREENVILLE","NC","O-4",{"$f":"TRANSPOSE(Y5234)","v":1752}]
["GREENVILLE","NC","O-5",{"$f":"TRANSPOSE(Z5234)","v":1875}]
["GREENVILLE","NC","O-6",{"$f":"TRANSPOSE(AA5234)","v":1896}]
["GREENVILLE","NC","O-7",{"$f":"TRANSPOSE(AB5234)","v":1914}]
["BISMARCK","ND","E-1",{"$f":"TRANSPOSE(E5258:E5258)","v":963},963,963,963,963,1107,1380,1458,1545,1665,1383,1494,1599,1689,1797,1476,1584,1704,1137,1374,1593,1836,2010,2031,2049]
["BISMARCK","ND","E-2",{"$f":"TRANSPOSE(F5258:F5258)","v":963}]
["BISMARCK","ND","E-3",{"$f":"TRANSPOSE(G5258:G5258)","v":963}]
["BISMARCK","ND","E-4",{"$f":"TRANSPOSE(H5258:H5258)","v":963}]
["BISMARCK","ND","E-5",{"$f":"TRANSPOSE(I5258:I5258)","v":1107}]
["BISMARCK","ND","E-6",{"$f":"TRANSPOSE(J5258:J5258)","v":1380}]
["BISMARCK","ND","E-7",{"$f":"TRANSPOSE(K5258:K5258)","v":1458}]
["BISMARCK","ND","E-8",{"$f":"TRANSPOSE(L5258)","v":1545}]
["BISMARCK","ND","E-9",{"$f":"TRANSPOSE(M5258)","v":1665}]
["BISMARCK","ND","W-1",{"$f":"TRANSPOSE(N5258)","v":1383}]
["BISMARCK","ND","W-2",{"$f":"TRANSPOSE(O5258)","v":1494}]
["BISMARCK","ND","W-3",{"$f":"TRANSPOSE(P5258)","v":1599}]
["BISMARCK","ND","W-4",{"$f":"TRANSPOSE(Q5258)","v":1689}]
["BISMARCK","ND","W-5",{"$f":"TRANSPOSE(R5258)","v":1797}]
["BISMARCK","ND","O-1E",{"$f":"TRANSPOSE(S5258)","v":1476}]
["BISMARCK","ND","O-2E",{"$f":"TRANSPOSE(T5258)","v":1584}]
["BISMARCK","ND","O-3E",{"$f":"TRANSPOSE(U5258)","v":1704}]
["BISMARCK","ND","O-1",{"$f":"TRANSPOSE(V5258)","v":1137}]
["BISMARCK","ND","O-2",{"$f":"TRANSPOSE(W5258)","v":1374}]
["BISMARCK","ND","O-3",{"$f":"TRANSPOSE(X5258)","v":1593}]
["BISMARCK","ND","O-4",{"$f":"TRANSPOSE(Y5258)","v":1836}]
["BISMARCK","ND","O-5",{"$f":"TRANSPOSE(Z5258)","v":2010}]
["BISMARCK","ND","O-6",{"$f":"TRANSPOSE(AA5258)","v":2031}]
["BISMARCK","ND","O-7",{"$f":"TRANSPOSE(AB5258)","v":2049}]
["FARGO","ND","E-1",{"$f":"TRANSPOSE(E5282:E5282)","v":906},906,906,906,906,1023,1371,1398,1428,1509,1374,1410,1446,1533,1638,1404,1440,1548,1062,1365,1446,1677,1842,1860,1881]
["FARGO","ND","E-2",{"$f":"TRANSPOSE(F5282:F5282)","v":906}]
["FARGO","ND","E-3",{"$f":"TRANSPOSE(G5282:G5282)","v":906}]
["FARGO","ND","E-4",{"$f":"TRANSPOSE(H5282:H5282)","v":906}]
["FARGO","ND","E-5",{"$f":"TRANSPOSE(I5282:I5282)","v":1023}]
["FARGO","ND","E-6",{"$f":"TRANSPOSE(J5282:J5282)","v":1371}]
["FARGO","ND","E-7",{"$f":"TRANSPOSE(K5282:K5282)","v":1398}]
["FARGO","ND","E-8",{"$f":"TRANSPOSE(L5282)","v":1428}]
["FARGO","ND","E-9",{"$f":"TRANSPOSE(M5282)","v":1509}]
["FARGO","ND","W-1",{"$f":"TRANSPOSE(N5282)","v":1374}]
["FARGO","ND","W-2",{"$f":"TRANSPOSE(O5282)","v":1410}]
["FARGO","ND","W-3",{"$f":"TRANSPOSE(P5282)","v":1446}]
["FARGO","ND","W-4",{"$f":"TRANSPOSE(Q5282)","v":1533}]
["FARGO","ND","W-5",{"$f":"TRANSPOSE(R5282)","v":1638}]
["FARGO","ND","O-1E",{"$f":"TRANSPOSE(S5282)","v":1404}]
["FARGO","ND","O-2E",{"$f":"TRANSPOSE(T5282)","v":1440}]
["FARGO","ND","O-3E",{"$f":"TRANSPOSE(U5282)","v":1548}]
["FARGO","ND","O-1",{"$f":"TRANSPOSE(V5282)","v":1062}]
["FARGO","ND","O-2",{"$f":"TRANSPOSE(W5282)","v":1365}]
["FARGO","ND","O-3",{"$f":"TRANSPOSE(X5282)","v":1446}]
["FARGO","ND","O-4",{"$f":"TRANSPOSE(Y5282)","v":1677}]
["FARGO","ND","O-5",{"$f":"TRANSPOSE(Z5282)","v":1842}]
["FARGO","ND","O-6",{"$f":"TRANSPOSE(AA5282)","v":1860}]
["FARGO","ND","O-7",{"$f":"TRANSPOSE(AB5282)","v":1881}]
["GRAND FORKS","ND","E-1",{"$f":"TRANSPOSE(E5306:E5306)","v":903},903,903,903,903,999,1245,1311,1383,1470,1248,1341,1428,1482,1548,1326,1416,1494,1026,1242,1425,1572,1677,1692,1710]
["GRAND FORKS","ND","E-2",{"$f":"TRANSPOSE(F5306:F5306)","v":903}]
["GRAND FORKS","ND","E-3",{"$f":"TRANSPOSE(G5306:G5306)","v":903}]
["GRAND FORKS","ND","E-4",{"$f":"TRANSPOSE(H5306:H5306)","v":903}]
["GRAND FORKS","ND","E-5",{"$f":"TRANSPOSE(I5306:I5306)","v":999}]
["GRAND FORKS","ND","E-6",{"$f":"TRANSPOSE(J5306:J5306)","v":1245}]
["GRAND FORKS","ND","E-7",{"$f":"TRANSPOSE(K5306:K5306)","v":1311}]
["GRAND FORKS","ND","E-8",{"$f":"TRANSPOSE(L5306)","v":1383}]
["GRAND FORKS","ND","E-9",{"$f":"TRANSPOSE(M5306)","v":1470}]
["GRAND FORKS","ND","W-1",{"$f":"TRANSPOSE(N5306)","v":1248}]
["GRAND FORKS","ND","W-2",{"$f":"TRANSPOSE(O5306)","v":1341}]
["GRAND FORKS","ND","W-3",{"$f":"TRANSPOSE(P5306)","v":1428}]
["GRAND FORKS","ND","W-4",{"$f":"TRANSPOSE(Q5306)","v":1482}]
["GRAND FORKS","ND","W-5",{"$f":"TRANSPOSE(R5306)","v":1548}]
["GRAND FORKS","ND","O-1E",{"$f":"TRANSPOSE(S5306)","v":1326}]
["GRAND FORKS","ND","O-2E",{"$f":"TRANSPOSE(T5306)","v":1416}]
["GRAND FORKS","ND","O-3E",{"$f":"TRANSPOSE(U5306)","v":1494}]
["GRAND FORKS","ND","O-1",{"$f":"TRANSPOSE(V5306)","v":1026}]
["GRAND FORKS","ND","O-2",{"$f":"TRANSPOSE(W5306)","v":1242}]
["GRAND FORKS","ND","O-3",{"$f":"TRANSPOSE(X5306)","v":1425}]
["GRAND FORKS","ND","O-4",{"$f":"TRANSPOSE(Y5306)","v":1572}]
["GRAND FORKS","ND","O-5",{"$f":"TRANSPOSE(Z5306)","v":1677}]
["GRAND FORKS","ND","O-6",{"$f":"TRANSPOSE(AA5306)","v":1692}]
["GRAND FORKS","ND","O-7",{"$f":"TRANSPOSE(AB5306)","v":1710}]
["MINOT AFB","ND","E-1",{"$f":"TRANSPOSE(E5330:E5330)","v":885},885,885,885,885,972,1374,1395,1419,1473,1377,1404,1431,1488,1551,1401,1428,1497,1017,1368,1431,1575,1680,1698,1716]
["MINOT AFB","ND","E-2",{"$f":"TRANSPOSE(F5330:F5330)","v":885}]
["MINOT AFB","ND","E-3",{"$f":"TRANSPOSE(G5330:G5330)","v":885}]
["MINOT AFB","ND","E-4",{"$f":"TRANSPOSE(H5330:H5330)","v":885}]
["MINOT AFB","ND","E-5",{"$f":"TRANSPOSE(I5330:I5330)","v":972}]
["MINOT AFB","ND","E-6",{"$f":"TRANSPOSE(J5330:J5330)","v":1374}]
["MINOT AFB","ND","E-7",{"$f":"TRANSPOSE(K5330:K5330)","v":1395}]
["MINOT AFB","ND","E-8",{"$f":"TRANSPOSE(L5330)","v":1419}]
["MINOT AFB","ND","E-9",{"$f":"TRANSPOSE(M5330)","v":1473}]
["MINOT AFB","ND","W-1",{"$f":"TRANSPOSE(N5330)","v":1377}]
["MINOT AFB","ND","W-2",{"$f":"TRANSPOSE(O5330)","v":1404}]
["MINOT AFB","ND","W-3",{"$f":"TRANSPOSE(P5330)","v":1431}]
["MINOT AFB","ND","W-4",{"$f":"TRANSPOSE(Q5330)","v":1488}]
["MINOT AFB","ND","W-5",{"$f":"TRANSPOSE(R5330)","v":1551}]
["MINOT AFB","ND","O-1E",{"$f":"TRANSPOSE(S5330)","v":1401}]
["MINOT AFB","ND","O-2E",{"$f":"TRANSPOSE(T5330)","v":1428}]
["MINOT AFB","ND","O-3E",{"$f":"TRANSPOSE(U5330)","v":1497}]
["MINOT AFB","ND","O-1",{"$f":"TRANSPOSE(V5330)","v":1017}]
["MINOT AFB","ND","O-2",{"$f":"TRANSPOSE(W5330)","v":1368}]
["MINOT AFB","ND","O-3",{"$f":"TRANSPOSE(X5330)","v":1431}]
["MINOT AFB","ND","O-4",{"$f":"TRANSPOSE(Y5330)","v":1575}]
["MINOT AFB","ND","O-5",{"$f":"TRANSPOSE(Z5330)","v":1680}]
["MINOT AFB","ND","O-6",{"$f":"TRANSPOSE(AA5330)","v":1698}]
["MINOT AFB","ND","O-7",{"$f":"TRANSPOSE(AB5330)","v":1716}]
["OMAHA/OFFUTT AFB","NE","E-1",{"$f":"TRANSPOSE(E5354:E5354)","v":972},972,972,972,972,1077,1299,1353,1410,1512,1302,1377,1449,1539,1644,1365,1437,1554,1101,1296,1446,1686,1857,1875,1893]
["OMAHA/OFFUTT AFB","NE","E-2",{"$f":"TRANSPOSE(F5354:F5354)","v":972}]
["OMAHA/OFFUTT AFB","NE","E-3",{"$f":"TRANSPOSE(G5354:G5354)","v":972}]
["OMAHA/OFFUTT AFB","NE","E-4",{"$f":"TRANSPOSE(H5354:H5354)","v":972}]
["OMAHA/OFFUTT AFB","NE","E-5",{"$f":"TRANSPOSE(I5354:I5354)","v":1077}]
["OMAHA/OFFUTT AFB","NE","E-6",{"$f":"TRANSPOSE(J5354:J5354)","v":1299}]
["OMAHA/OFFUTT AFB","NE","E-7",{"$f":"TRANSPOSE(K5354:K5354)","v":1353}]
["OMAHA/OFFUTT AFB","NE","E-8",{"$f":"TRANSPOSE(L5354)","v":1410}]
["OMAHA/OFFUTT AFB","NE","E-9",{"$f":"TRANSPOSE(M5354)","v":1512}]
["OMAHA/OFFUTT AFB","NE","W-1",{"$f":"TRANSPOSE(N5354)","v":1302}]
["OMAHA/OFFUTT AFB","NE","W-2",{"$f":"TRANSPOSE(O5354)","v":1377}]
["OMAHA/OFFUTT AFB","NE","W-3",{"$f":"TRANSPOSE(P5354)","v":1449}]
["OMAHA/OFFUTT AFB","NE","W-4",{"$f":"TRANSPOSE(Q5354)","v":1539}]
["OMAHA/OFFUTT AFB","NE","W-5",{"$f":"TRANSPOSE(R5354)","v":1644}]
["OMAHA/OFFUTT AFB","NE","O-1E",{"$f":"TRANSPOSE(S5354)","v":1365}]
["OMAHA/OFFUTT AFB","NE","O-2E",{"$f":"TRANSPOSE(T5354)","v":1437}]
["OMAHA/OFFUTT AFB","NE","O-3E",{"$f":"TRANSPOSE(U5354)","v":1554}]
["OMAHA/OFFUTT AFB","NE","O-1",{"$f":"TRANSPOSE(V5354)","v":1101}]
["OMAHA/OFFUTT AFB","NE","O-2",{"$f":"TRANSPOSE(W5354)","v":1296}]
["OMAHA/OFFUTT AFB","NE","O-3",{"$f":"TRANSPOSE(X5354)","v":1446}]
["OMAHA/OFFUTT AFB","NE","O-4",{"$f":"TRANSPOSE(Y5354)","v":1686}]
["OMAHA/OFFUTT AFB","NE","O-5",{"$f":"TRANSPOSE(Z5354)","v":1857}]
["OMAHA/OFFUTT AFB","NE","O-6",{"$f":"TRANSPOSE(AA5354)","v":1875}]
["OMAHA/OFFUTT AFB","NE","O-7",{"$f":"TRANSPOSE(AB5354)","v":1893}]
["LINCOLN","NE","E-1",{"$f":"TRANSPOSE(E5378:E5378)","v":1032},1032,1032,1032,1032,1146,1227,1257,1290,1347,1227,1272,1311,1362,1419,1263,1305,1368,1155,1224,1311,1440,1533,1548,1563]
["LINCOLN","NE","E-2",{"$f":"TRANSPOSE(F5378:F5378)","v":1032}]
["LINCOLN","NE","E-3",{"$f":"TRANSPOSE(G5378:G5378)","v":1032}]
["LINCOLN","NE","E-4",{"$f":"TRANSPOSE(H5378:H5378)","v":1032}]
["LINCOLN","NE","E-5",{"$f":"TRANSPOSE(I5378:I5378)","v":1146}]
["LINCOLN","NE","E-6",{"$f":"TRANSPOSE(J5378:J5378)","v":1227}]
["LINCOLN","NE","E-7",{"$f":"TRANSPOSE(K5378:K5378)","v":1257}]
["LINCOLN","NE","E-8",{"$f":"TRANSPOSE(L5378)","v":1290}]
["LINCOLN","NE","E-9",{"$f":"TRANSPOSE(M5378)","v":1347}]
["LINCOLN","NE","W-1",{"$f":"TRANSPOSE(N5378)","v":1227}]
["LINCOLN","NE","W-2",{"$f":"TRANSPOSE(O5378)","v":1272}]
["LINCOLN","NE","W-3",{"$f":"TRANSPOSE(P5378)","v":1311}]
["LINCOLN","NE","W-4",{"$f":"TRANSPOSE(Q5378)","v":1362}]
["LINCOLN","NE","W-5",{"$f":"TRANSPOSE(R5378)","v":1419}]
["LINCOLN","NE","O-1E",{"$f":"TRANSPOSE(S5378)","v":1263}]
["LINCOLN","NE","O-2E",{"$f":"TRANSPOSE(T5378)","v":1305}]
["LINCOLN","NE","O-3E",{"$f":"TRANSPOSE(U5378)","v":1368}]
["LINCOLN","NE","O-1",{"$f":"TRANSPOSE(V5378)","v":1155}]
["LINCOLN","NE","O-2",{"$f":"TRANSPOSE(W5378)","v":1224}]
["LINCOLN","NE","O-3",{"$f":"TRANSPOSE(X5378)","v":1311}]
["LINCOLN","NE","O-4",{"$f":"TRANSPOSE(Y5378)","v":1440}]
["LINCOLN","NE","O-5",{"$f":"TRANSPOSE(Z5378)","v":1533}]
["LINCOLN","NE","O-6",{"$f":"TRANSPOSE(AA5378)","v":1548}]
["LINCOLN","NE","O-7",{"$f":"TRANSPOSE(AB5378)","v":1563}]
["PORTSMOUTH","NH","E-1",{"$f":"TRANSPOSE(E5402:E5402)","v":1326},1326,1326,1326,1326,1491,1893,1998,2109,2193,1896,2043,2181,2196,2214,2019,2160,2199,1536,1887,2175,2220,2250,2274,2295]
["PORTSMOUTH","NH","E-2",{"$f":"TRANSPOSE(F5402:F5402)","v":1326}]
["PORTSMOUTH","NH","E-3",{"$f":"TRANSPOSE(G5402:G5402)","v":1326}]
["PORTSMOUTH","NH","E-4",{"$f":"TRANSPOSE(H5402:H5402)","v":1326}]
["PORTSMOUTH","NH","E-5",{"$f":"TRANSPOSE(I5402:I5402)","v":1491}]
["PORTSMOUTH","NH","E-6",{"$f":"TRANSPOSE(J5402:J5402)","v":1893}]
["PORTSMOUTH","NH","E-7",{"$f":"TRANSPOSE(K5402:K5402)","v":1998}]
["PORTSMOUTH","NH","E-8",{"$f":"TRANSPOSE(L5402)","v":2109}]
["PORTSMOUTH","NH","E-9",{"$f":"TRANSPOSE(M5402)","v":2193}]
["PORTSMOUTH","NH","W-1",{"$f":"TRANSPOSE(N5402)","v":1896}]
["PORTSMOUTH","NH","W-2",{"$f":"TRANSPOSE(O5402)","v":2043}]
["PORTSMOUTH","NH","W-3",{"$f":"TRANSPOSE(P5402)","v":2181}]
["PORTSMOUTH","NH","W-4",{"$f":"TRANSPOSE(Q5402)","v":2196}]
["PORTSMOUTH","NH","W-5",{"$f":"TRANSPOSE(R5402)","v":2214}]
["PORTSMOUTH","NH","O-1E",{"$f":"TRANSPOSE(S5402)","v":2019}]
["PORTSMOUTH","NH","O-2E",{"$f":"TRANSPOSE(T5402)","v":2160}]
["PORTSMOUTH","NH","O-3E",{"$f":"TRANSPOSE(U5402)","v":2199}]
["PORTSMOUTH","NH","O-1",{"$f":"TRANSPOSE(V5402)","v":1536}]
["PORTSMOUTH","NH","O-2",{"$f":"TRANSPOSE(W5402)","v":1887}]
["PORTSMOUTH","NH","O-3",{"$f":"TRANSPOSE(X5402)","v":2175}]
["PORTSMOUTH","NH","O-4",{"$f":"TRANSPOSE(Y5402)","v":2220}]
["PORTSMOUTH","NH","O-5",{"$f":"TRANSPOSE(Z5402)","v":2250}]
["PORTSMOUTH","NH","O-6",{"$f":"TRANSPOSE(AA5402)","v":2274}]
["PORTSMOUTH","NH","O-7",{"$f":"TRANSPOSE(AB5402)","v":2295}]
["MANCHESTER/CONCORD","NH","E-1",{"$f":"TRANSPOSE(E5426:E5426)","v":1482},1482,1482,1482,1482,1650,1857,1929,2007,2127,1860,1962,2058,2154,2268,1947,2043,2172,1674,1854,2055,2310,2493,2520,2544]
["MANCHESTER/CONCORD","NH","E-2",{"$f":"TRANSPOSE(F5426:F5426)","v":1482}]
["MANCHESTER/CONCORD","NH","E-3",{"$f":"TRANSPOSE(G5426:G5426)","v":1482}]
["MANCHESTER/CONCORD","NH","E-4",{"$f":"TRANSPOSE(H5426:H5426)","v":1482}]
["MANCHESTER/CONCORD","NH","E-5",{"$f":"TRANSPOSE(I5426:I5426)","v":1650}]
["MANCHESTER/CONCORD","NH","E-6",{"$f":"TRANSPOSE(J5426:J5426)","v":1857}]
["MANCHESTER/CONCORD","NH","E-7",{"$f":"TRANSPOSE(K5426:K5426)","v":1929}]
["MANCHESTER/CONCORD","NH","E-8",{"$f":"TRANSPOSE(L5426)","v":2007}]
["MANCHESTER/CONCORD","NH","E-9",{"$f":"TRANSPOSE(M5426)","v":2127}]
["MANCHESTER/CONCORD","NH","W-1",{"$f":"TRANSPOSE(N5426)","v":1860}]
["MANCHESTER/CONCORD","NH","W-2",{"$f":"TRANSPOSE(O5426)","v":1962}]
["MANCHESTER/CONCORD","NH","W-3",{"$f":"TRANSPOSE(P5426)","v":2058}]
["MANCHESTER/CONCORD","NH","W-4",{"$f":"TRANSPOSE(Q5426)","v":2154}]
["MANCHESTER/CONCORD","NH","W-5",{"$f":"TRANSPOSE(R5426)","v":2268}]
["MANCHESTER/CONCORD","NH","O-1E",{"$f":"TRANSPOSE(S5426)","v":1947}]
["MANCHESTER/CONCORD","NH","O-2E",{"$f":"TRANSPOSE(T5426)","v":2043}]
["MANCHESTER/CONCORD","NH","O-3E",{"$f":"TRANSPOSE(U5426)","v":2172}]
["MANCHESTER/CONCORD","NH","O-1",{"$f":"TRANSPOSE(V5426)","v":1674}]
["MANCHESTER/CONCORD","NH","O-2",{"$f":"TRANSPOSE(W5426)","v":1854}]
["MANCHESTER/CONCORD","NH","O-3",{"$f":"TRANSPOSE(X5426)","v":2055}]
["MANCHESTER/CONCORD","NH","O-4",{"$f":"TRANSPOSE(Y5426)","v":2310}]
["MANCHESTER/CONCORD","NH","O-5",{"$f":"TRANSPOSE(Z5426)","v":2493}]
["MANCHESTER/CONCORD","NH","O-6",{"$f":"TRANSPOSE(AA5426)","v":2520}]
["MANCHESTER/CONCORD","NH","O-7",{"$f":"TRANSPOSE(AB5426)","v":2544}]
["ATLANTIC CITY","NJ","E-1",{"$f":"TRANSPOSE(E5450:E5450)","v":1353},1353,1353,1353,1353,1449,2046,2061,2076,2148,2046,2067,2085,2172,2274,2064,2082,2187,1515,2034,2082,2313,2478,2505,2529]
["ATLANTIC CITY","NJ","E-2",{"$f":"TRANSPOSE(F5450:F5450)","v":1353}]
["ATLANTIC CITY","NJ","E-3",{"$f":"TRANSPOSE(G5450:G5450)","v":1353}]
["ATLANTIC CITY","NJ","E-4",{"$f":"TRANSPOSE(H5450:H5450)","v":1353}]
["ATLANTIC CITY","NJ","E-5",{"$f":"TRANSPOSE(I5450:I5450)","v":1449}]
["ATLANTIC CITY","NJ","E-6",{"$f":"TRANSPOSE(J5450:J5450)","v":2046}]
["ATLANTIC CITY","NJ","E-7",{"$f":"TRANSPOSE(K5450:K5450)","v":2061}]
["ATLANTIC CITY","NJ","E-8",{"$f":"TRANSPOSE(L5450)","v":2076}]
["ATLANTIC CITY","NJ","E-9",{"$f":"TRANSPOSE(M5450)","v":2148}]
["ATLANTIC CITY","NJ","W-1",{"$f":"TRANSPOSE(N5450)","v":2046}]
["ATLANTIC CITY","NJ","W-2",{"$f":"TRANSPOSE(O5450)","v":2067}]
["ATLANTIC CITY","NJ","W-3",{"$f":"TRANSPOSE(P5450)","v":2085}]
["ATLANTIC CITY","NJ","W-4",{"$f":"TRANSPOSE(Q5450)","v":2172}]
["ATLANTIC CITY","NJ","W-5",{"$f":"TRANSPOSE(R5450)","v":2274}]
["ATLANTIC CITY","NJ","O-1E",{"$f":"TRANSPOSE(S5450)","v":2064}]
["ATLANTIC CITY","NJ","O-2E",{"$f":"TRANSPOSE(T5450)","v":2082}]
["ATLANTIC CITY","NJ","O-3E",{"$f":"TRANSPOSE(U5450)","v":2187}]
["ATLANTIC CITY","NJ","O-1",{"$f":"TRANSPOSE(V5450)","v":1515}]
["ATLANTIC CITY","NJ","O-2",{"$f":"TRANSPOSE(W5450)","v":2034}]
["ATLANTIC CITY","NJ","O-3",{"$f":"TRANSPOSE(X5450)","v":2082}]
["ATLANTIC CITY","NJ","O-4",{"$f":"TRANSPOSE(Y5450)","v":2313}]
["ATLANTIC CITY","NJ","O-5",{"$f":"TRANSPOSE(Z5450)","v":2478}]
["ATLANTIC CITY","NJ","O-6",{"$f":"TRANSPOSE(AA5450)","v":2505}]
["ATLANTIC CITY","NJ","O-7",{"$f":"TRANSPOSE(AB5450)","v":2529}]
["CAMDEN","NJ","E-1",{"$f":"TRANSPOSE(E5474:E5474)","v":1554},1554,1554,1554,1554,1701,2010,2106,2208,2298,2013,2148,2274,2304,2343,2127,2256,2310,1734,2004,2268,2358,2421,2445,2469]
["CAMDEN","NJ","E-2",{"$f":"TRANSPOSE(F5474:F5474)","v":1554}]
["CAMDEN","NJ","E-3",{"$f":"TRANSPOSE(G5474:G5474)","v":1554}]
["CAMDEN","NJ","E-4",{"$f":"TRANSPOSE(H5474:H5474)","v":1554}]
["CAMDEN","NJ","E-5",{"$f":"TRANSPOSE(I5474:I5474)","v":1701}]
["CAMDEN","NJ","E-6",{"$f":"TRANSPOSE(J5474:J5474)","v":2010}]
["CAMDEN","NJ","E-7",{"$f":"TRANSPOSE(K5474:K5474)","v":2106}]
["CAMDEN","NJ","E-8",{"$f":"TRANSPOSE(L5474)","v":2208}]
["CAMDEN","NJ","E-9",{"$f":"TRANSPOSE(M5474)","v":2298}]
["CAMDEN","NJ","W-1",{"$f":"TRANSPOSE(N5474)","v":2013}]
["CAMDEN","NJ","W-2",{"$f":"TRANSPOSE(O5474)","v":2148}]
["CAMDEN","NJ","W-3",{"$f":"TRANSPOSE(P5474)","v":2274}]
["CAMDEN","NJ","W-4",{"$f":"TRANSPOSE(Q5474)","v":2304}]
["CAMDEN","NJ","W-5",{"$f":"TRANSPOSE(R5474)","v":2343}]
["CAMDEN","NJ","O-1E",{"$f":"TRANSPOSE(S5474)","v":2127}]
["CAMDEN","NJ","O-2E",{"$f":"TRANSPOSE(T5474)","v":2256}]
["CAMDEN","NJ","O-3E",{"$f":"TRANSPOSE(U5474)","v":2310}]
["CAMDEN","NJ","O-1",{"$f":"TRANSPOSE(V5474)","v":1734}]
["CAMDEN","NJ","O-2",{"$f":"TRANSPOSE(W5474)","v":2004}]
["CAMDEN","NJ","O-3",{"$f":"TRANSPOSE(X5474)","v":2268}]
["CAMDEN","NJ","O-4",{"$f":"TRANSPOSE(Y5474)","v":2358}]
["CAMDEN","NJ","O-5",{"$f":"TRANSPOSE(Z5474)","v":2421}]
["CAMDEN","NJ","O-6",{"$f":"TRANSPOSE(AA5474)","v":2445}]
["CAMDEN","NJ","O-7",{"$f":"TRANSPOSE(AB5474)","v":2469}]
["CAPE MAY","NJ","E-1",{"$f":"TRANSPOSE(E5498:E5498)","v":1356},1356,1356,1356,1356,1431,1836,1845,1854,1947,1836,1848,1860,1980,2121,1845,1860,2001,1476,1827,1860,2178,2406,2430,2454]
["CAPE MAY","NJ","E-2",{"$f":"TRANSPOSE(F5498:F5498)","v":1356}]
["CAPE MAY","NJ","E-3",{"$f":"TRANSPOSE(G5498:G5498)","v":1356}]
["CAPE MAY","NJ","E-4",{"$f":"TRANSPOSE(H5498:H5498)","v":1356}]
["CAPE MAY","NJ","E-5",{"$f":"TRANSPOSE(I5498:I5498)","v":1431}]
["CAPE MAY","NJ","E-6",{"$f":"TRANSPOSE(J5498:J5498)","v":1836}]
["CAPE MAY","NJ","E-7",{"$f":"TRANSPOSE(K5498:K5498)","v":1845}]
["CAPE MAY","NJ","E-8",{"$f":"TRANSPOSE(L5498)","v":1854}]
["CAPE MAY","NJ","E-9",{"$f":"TRANSPOSE(M5498)","v":1947}]
["CAPE MAY","NJ","W-1",{"$f":"TRANSPOSE(N5498)","v":1836}]
["CAPE MAY","NJ","W-2",{"$f":"TRANSPOSE(O5498)","v":1848}]
["CAPE MAY","NJ","W-3",{"$f":"TRANSPOSE(P5498)","v":1860}]
["CAPE MAY","NJ","W-4",{"$f":"TRANSPOSE(Q5498)","v":1980}]
["CAPE MAY","NJ","W-5",{"$f":"TRANSPOSE(R5498)","v":2121}]
["CAPE MAY","NJ","O-1E",{"$f":"TRANSPOSE(S5498)","v":1845}]
["CAPE MAY","NJ","O-2E",{"$f":"TRANSPOSE(T5498)","v":1860}]
["CAPE MAY","NJ","O-3E",{"$f":"TRANSPOSE(U5498)","v":2001}]
["CAPE MAY","NJ","O-1",{"$f":"TRANSPOSE(V5498)","v":1476}]
["CAPE MAY","NJ","O-2",{"$f":"TRANSPOSE(W5498)","v":1827}]
["CAPE MAY","NJ","O-3",{"$f":"TRANSPOSE(X5498)","v":1860}]
["CAPE MAY","NJ","O-4",{"$f":"TRANSPOSE(Y5498)","v":2178}]
["CAPE MAY","NJ","O-5",{"$f":"TRANSPOSE(Z5498)","v":2406}]
["CAPE MAY","NJ","O-6",{"$f":"TRANSPOSE(AA5498)","v":2430}]
["CAPE MAY","NJ","O-7",{"$f":"TRANSPOSE(AB5498)","v":2454}]
["FORT MONMOUTH/EARLE NWS","NJ","E-1",{"$f":"TRANSPOSE(E5522:E5522)","v":1782},1782,1782,1782,1782,1998,2373,2430,2493,2685,2376,2457,2532,2742,2994,2442,2520,2781,2037,2367,2529,3090,3495,3531,3564]
["FORT MONMOUTH/EARLE NWS","NJ","E-2",{"$f":"TRANSPOSE(F5522:F5522)","v":1782}]
["FORT MONMOUTH/EARLE NWS","NJ","E-3",{"$f":"TRANSPOSE(G5522:G5522)","v":1782}]
["FORT MONMOUTH/EARLE NWS","NJ","E-4",{"$f":"TRANSPOSE(H5522:H5522)","v":1782}]
["FORT MONMOUTH/EARLE NWS","NJ","E-5",{"$f":"TRANSPOSE(I5522:I5522)","v":1998}]
["FORT MONMOUTH/EARLE NWS","NJ","E-6",{"$f":"TRANSPOSE(J5522:J5522)","v":2373}]
["FORT MONMOUTH/EARLE NWS","NJ","E-7",{"$f":"TRANSPOSE(K5522:K5522)","v":2430}]
["FORT MONMOUTH/EARLE NWS","NJ","E-8",{"$f":"TRANSPOSE(L5522)","v":2493}]
["FORT MONMOUTH/EARLE NWS","NJ","E-9",{"$f":"TRANSPOSE(M5522)","v":2685}]
["FORT MONMOUTH/EARLE NWS","NJ","W-1",{"$f":"TRANSPOSE(N5522)","v":2376}]
["FORT MONMOUTH/EARLE NWS","NJ","W-2",{"$f":"TRANSPOSE(O5522)","v":2457}]
["FORT MONMOUTH/EARLE NWS","NJ","W-3",{"$f":"TRANSPOSE(P5522)","v":2532}]
["FORT MONMOUTH/EARLE NWS","NJ","W-4",{"$f":"TRANSPOSE(Q5522)","v":2742}]
["FORT MONMOUTH/EARLE NWS","NJ","W-5",{"$f":"TRANSPOSE(R5522)","v":2994}]
["FORT MONMOUTH/EARLE NWS","NJ","O-1E",{"$f":"TRANSPOSE(S5522)","v":2442}]
["FORT MONMOUTH/EARLE NWS","NJ","O-2E",{"$f":"TRANSPOSE(T5522)","v":2520}]
["FORT MONMOUTH/EARLE NWS","NJ","O-3E",{"$f":"TRANSPOSE(U5522)","v":2781}]
["FORT MONMOUTH/EARLE NWS","NJ","O-1",{"$f":"TRANSPOSE(V5522)","v":2037}]
["FORT MONMOUTH/EARLE NWS","NJ","O-2",{"$f":"TRANSPOSE(W5522)","v":2367}]
["FORT MONMOUTH/EARLE NWS","NJ","O-3",{"$f":"TRANSPOSE(X5522)","v":2529}]
["FORT MONMOUTH/EARLE NWS","NJ","O-4",{"$f":"TRANSPOSE(Y5522)","v":3090}]
["FORT MONMOUTH/EARLE NWS","NJ","O-5",{"$f":"TRANSPOSE(Z5522)","v":3495}]
["FORT MONMOUTH/EARLE NWS","NJ","O-6",{"$f":"TRANSPOSE(AA5522)","v":3531}]
["FORT MONMOUTH/EARLE NWS","NJ","O-7",{"$f":"TRANSPOSE(AB5522)","v":3564}]
["PERTH AMBOY","NJ","E-1",{"$f":"TRANSPOSE(E5546:E5546)","v":1665},1665,1665,1665,1665,1764,2148,2223,2304,2475,2148,2256,2358,2520,2712,2238,2343,2550,1806,2139,2352,2787,3099,3129,3162]
["PERTH AMBOY","NJ","E-2",{"$f":"TRANSPOSE(F5546:F5546)","v":1665}]
["PERTH AMBOY","NJ","E-3",{"$f":"TRANSPOSE(G5546:G5546)","v":1665}]
["PERTH AMBOY","NJ","E-4",{"$f":"TRANSPOSE(H5546:H5546)","v":1665}]
["PERTH AMBOY","NJ","E-5",{"$f":"TRANSPOSE(I5546:I5546)","v":1764}]
["PERTH AMBOY","NJ","E-6",{"$f":"TRANSPOSE(J5546:J5546)","v":2148}]
["PERTH AMBOY","NJ","E-7",{"$f":"TRANSPOSE(K5546:K5546)","v":2223}]
["PERTH AMBOY","NJ","E-8",{"$f":"TRANSPOSE(L5546)","v":2304}]
["PERTH AMBOY","NJ","E-9",{"$f":"TRANSPOSE(M5546)","v":2475}]
["PERTH AMBOY","NJ","W-1",{"$f":"TRANSPOSE(N5546)","v":2148}]
["PERTH AMBOY","NJ","W-2",{"$f":"TRANSPOSE(O5546)","v":2256}]
["PERTH AMBOY","NJ","W-3",{"$f":"TRANSPOSE(P5546)","v":2358}]
["PERTH AMBOY","NJ","W-4",{"$f":"TRANSPOSE(Q5546)","v":2520}]
["PERTH AMBOY","NJ","W-5",{"$f":"TRANSPOSE(R5546)","v":2712}]
["PERTH AMBOY","NJ","O-1E",{"$f":"TRANSPOSE(S5546)","v":2238}]
["PERTH AMBOY","NJ","O-2E",{"$f":"TRANSPOSE(T5546)","v":2343}]
["PERTH AMBOY","NJ","O-3E",{"$f":"TRANSPOSE(U5546)","v":2550}]
["PERTH AMBOY","NJ","O-1",{"$f":"TRANSPOSE(V5546)","v":1806}]
["PERTH AMBOY","NJ","O-2",{"$f":"TRANSPOSE(W5546)","v":2139}]
["PERTH AMBOY","NJ","O-3",{"$f":"TRANSPOSE(X5546)","v":2352}]
["PERTH AMBOY","NJ","O-4",{"$f":"TRANSPOSE(Y5546)","v":2787}]
["PERTH AMBOY","NJ","O-5",{"$f":"TRANSPOSE(Z5546)","v":3099}]
["PERTH AMBOY","NJ","O-6",{"$f":"TRANSPOSE(AA5546)","v":3129}]
["PERTH AMBOY","NJ","O-7",{"$f":"TRANSPOSE(AB5546)","v":3162}]
["NORTHERN NEW JERSEY","NJ","E-1",{"$f":"TRANSPOSE(E5570:E5570)","v":1977},1977,1977,1977,1977,2160,2772,2775,2781,2829,2772,2778,2787,2847,2919,2778,2784,2859,2229,2760,2787,2946,3063,3093,3123]
["NORTHERN NEW JERSEY","NJ","E-2",{"$f":"TRANSPOSE(F5570:F5570)","v":1977}]
["NORTHERN NEW JERSEY","NJ","E-3",{"$f":"TRANSPOSE(G5570:G5570)","v":1977}]
["NORTHERN NEW JERSEY","NJ","E-4",{"$f":"TRANSPOSE(H5570:H5570)","v":1977}]
["NORTHERN NEW JERSEY","NJ","E-5",{"$f":"TRANSPOSE(I5570:I5570)","v":2160}]
["NORTHERN NEW JERSEY","NJ","E-6",{"$f":"TRANSPOSE(J5570:J5570)","v":2772}]
["NORTHERN NEW JERSEY","NJ","E-7",{"$f":"TRANSPOSE(K5570:K5570)","v":2775}]
["NORTHERN NEW JERSEY","NJ","E-8",{"$f":"TRANSPOSE(L5570)","v":2781}]
["NORTHERN NEW JERSEY","NJ","E-9",{"$f":"TRANSPOSE(M5570)","v":2829}]
["NORTHERN NEW JERSEY","NJ","W-1",{"$f":"TRANSPOSE(N5570)","v":2772}]
["NORTHERN NEW JERSEY","NJ","W-2",{"$f":"TRANSPOSE(O5570)","v":2778}]
["NORTHERN NEW JERSEY","NJ","W-3",{"$f":"TRANSPOSE(P5570)","v":2787}]
["NORTHERN NEW JERSEY","NJ","W-4",{"$f":"TRANSPOSE(Q5570)","v":2847}]
["NORTHERN NEW JERSEY","NJ","W-5",{"$f":"TRANSPOSE(R5570)","v":2919}]
["NORTHERN NEW JERSEY","NJ","O-1E",{"$f":"TRANSPOSE(S5570)","v":2778}]
["NORTHERN NEW JERSEY","NJ","O-2E",{"$f":"TRANSPOSE(T5570)","v":2784}]
["NORTHERN NEW JERSEY","NJ","O-3E",{"$f":"TRANSPOSE(U5570)","v":2859}]
["NORTHERN NEW JERSEY","NJ","O-1",{"$f":"TRANSPOSE(V5570)","v":2229}]
["NORTHERN NEW JERSEY","NJ","O-2",{"$f":"TRANSPOSE(W5570)","v":2760}]
["NORTHERN NEW JERSEY","NJ","O-3",{"$f":"TRANSPOSE(X5570)","v":2787}]
["NORTHERN NEW JERSEY","NJ","O-4",{"$f":"TRANSPOSE(Y5570)","v":2946}]
["NORTHERN NEW JERSEY","NJ","O-5",{"$f":"TRANSPOSE(Z5570)","v":3063}]
["NORTHERN NEW JERSEY","NJ","O-6",{"$f":"TRANSPOSE(AA5570)","v":3093}]
["NORTHERN NEW JERSEY","NJ","O-7",{"$f":"TRANSPOSE(AB5570)","v":3123}]
["TRENTON","NJ","E-1",{"$f":"TRANSPOSE(E5594:E5594)","v":1470},1470,1470,1470,1470,1740,2124,2220,2322,2460,2127,2262,2388,2487,2607,2241,2370,2505,1782,2115,2382,2652,2847,2874,2904]
["TRENTON","NJ","E-2",{"$f":"TRANSPOSE(F5594:F5594)","v":1470}]
["TRENTON","NJ","E-3",{"$f":"TRANSPOSE(G5594:G5594)","v":1470}]
["TRENTON","NJ","E-4",{"$f":"TRANSPOSE(H5594:H5594)","v":1470}]
["TRENTON","NJ","E-5",{"$f":"TRANSPOSE(I5594:I5594)","v":1740}]
["TRENTON","NJ","E-6",{"$f":"TRANSPOSE(J5594:J5594)","v":2124}]
["TRENTON","NJ","E-7",{"$f":"TRANSPOSE(K5594:K5594)","v":2220}]
["TRENTON","NJ","E-8",{"$f":"TRANSPOSE(L5594)","v":2322}]
["TRENTON","NJ","E-9",{"$f":"TRANSPOSE(M5594)","v":2460}]
["TRENTON","NJ","W-1",{"$f":"TRANSPOSE(N5594)","v":2127}]
["TRENTON","NJ","W-2",{"$f":"TRANSPOSE(O5594)","v":2262}]
["TRENTON","NJ","W-3",{"$f":"TRANSPOSE(P5594)","v":2388}]
["TRENTON","NJ","W-4",{"$f":"TRANSPOSE(Q5594)","v":2487}]
["TRENTON","NJ","W-5",{"$f":"TRANSPOSE(R5594)","v":2607}]
["TRENTON","NJ","O-1E",{"$f":"TRANSPOSE(S5594)","v":2241}]
["TRENTON","NJ","O-2E",{"$f":"TRANSPOSE(T5594)","v":2370}]
["TRENTON","NJ","O-3E",{"$f":"TRANSPOSE(U5594)","v":2505}]
["TRENTON","NJ","O-1",{"$f":"TRANSPOSE(V5594)","v":1782}]
["TRENTON","NJ","O-2",{"$f":"TRANSPOSE(W5594)","v":2115}]
["TRENTON","NJ","O-3",{"$f":"TRANSPOSE(X5594)","v":2382}]
["TRENTON","NJ","O-4",{"$f":"TRANSPOSE(Y5594)","v":2652}]
["TRENTON","NJ","O-5",{"$f":"TRANSPOSE(Z5594)","v":2847}]
["TRENTON","NJ","O-6",{"$f":"TRANSPOSE(AA5594)","v":2874}]
["TRENTON","NJ","O-7",{"$f":"TRANSPOSE(AB5594)","v":2904}]
["FT DIX/MCGUIRE/LAKEHURST","NJ","E-1",{"$f":"TRANSPOSE(E5618:E5618)","v":1557},1557,1557,1557,1557,1701,2139,2205,2277,2355,2142,2235,2325,2364,2412,2220,2310,2373,1749,2130,2319,2430,2508,2535,2559]
["FT DIX/MCGUIRE/LAKEHURST","NJ","E-2",{"$f":"TRANSPOSE(F5618:F5618)","v":1557}]
["FT DIX/MCGUIRE/LAKEHURST","NJ","E-3",{"$f":"TRANSPOSE(G5618:G5618)","v":1557}]
["FT DIX/MCGUIRE/LAKEHURST","NJ","E-4",{"$f":"TRANSPOSE(H5618:H5618)","v":1557}]
["FT DIX/MCGUIRE/LAKEHURST","NJ","E-5",{"$f":"TRANSPOSE(I5618:I5618)","v":1701}]
["FT DIX/MCGUIRE/LAKEHURST","NJ","E-6",{"$f":"TRANSPOSE(J5618:J5618)","v":2139}]
["FT DIX/MCGUIRE/LAKEHURST","NJ","E-7",{"$f":"TRANSPOSE(K5618:K5618)","v":2205}]
["FT DIX/MCGUIRE/LAKEHURST","NJ","E-8",{"$f":"TRANSPOSE(L5618)","v":2277}]
["FT DIX/MCGUIRE/LAKEHURST","NJ","E-9",{"$f":"TRANSPOSE(M5618)","v":2355}]
["FT DIX/MCGUIRE/LAKEHURST","NJ","W-1",{"$f":"TRANSPOSE(N5618)","v":2142}]
["FT DIX/MCGUIRE/LAKEHURST","NJ","W-2",{"$f":"TRANSPOSE(O5618)","v":2235}]
["FT DIX/MCGUIRE/LAKEHURST","NJ","W-3",{"$f":"TRANSPOSE(P5618)","v":2325}]
["FT DIX/MCGUIRE/LAKEHURST","NJ","W-4",{"$f":"TRANSPOSE(Q5618)","v":2364}]
["FT DIX/MCGUIRE/LAKEHURST","NJ","W-5",{"$f":"TRANSPOSE(R5618)","v":2412}]
["FT DIX/MCGUIRE/LAKEHURST","NJ","O-1E",{"$f":"TRANSPOSE(S5618)","v":2220}]
["FT DIX/MCGUIRE/LAKEHURST","NJ","O-2E",{"$f":"TRANSPOSE(T5618)","v":2310}]
["FT DIX/MCGUIRE/LAKEHURST","NJ","O-3E",{"$f":"TRANSPOSE(U5618)","v":2373}]
["FT DIX/MCGUIRE/LAKEHURST","NJ","O-1",{"$f":"TRANSPOSE(V5618)","v":1749}]
["FT DIX/MCGUIRE/LAKEHURST","NJ","O-2",{"$f":"TRANSPOSE(W5618)","v":2130}]
["FT DIX/MCGUIRE/LAKEHURST","NJ","O-3",{"$f":"TRANSPOSE(X5618)","v":2319}]
["FT DIX/MCGUIRE/LAKEHURST","NJ","O-4",{"$f":"TRANSPOSE(Y5618)","v":2430}]
["FT DIX/MCGUIRE/LAKEHURST","NJ","O-5",{"$f":"TRANSPOSE(Z5618)","v":2508}]
["FT DIX/MCGUIRE/LAKEHURST","NJ","O-6",{"$f":"TRANSPOSE(AA5618)","v":2535}]
["FT DIX/MCGUIRE/LAKEHURST","NJ","O-7",{"$f":"TRANSPOSE(AB5618)","v":2559}]
["HOLLOMAN AFB/ALAMOGORDO","NM","E-1",{"$f":"TRANSPOSE(E5642:E5642)","v":915},915,915,915,915,1035,1212,1326,1446,1578,1215,1374,1524,1599,1686,1350,1500,1611,1053,1209,1518,1719,1863,1881,1899]
["HOLLOMAN AFB/ALAMOGORDO","NM","E-2",{"$f":"TRANSPOSE(F5642:F5642)","v":915}]
["HOLLOMAN AFB/ALAMOGORDO","NM","E-3",{"$f":"TRANSPOSE(G5642:G5642)","v":915}]
["HOLLOMAN AFB/ALAMOGORDO","NM","E-4",{"$f":"TRANSPOSE(H5642:H5642)","v":915}]
["HOLLOMAN AFB/ALAMOGORDO","NM","E-5",{"$f":"TRANSPOSE(I5642:I5642)","v":1035}]
["HOLLOMAN AFB/ALAMOGORDO","NM","E-6",{"$f":"TRANSPOSE(J5642:J5642)","v":1212}]
["HOLLOMAN AFB/ALAMOGORDO","NM","E-7",{"$f":"TRANSPOSE(K5642:K5642)","v":1326}]
["HOLLOMAN AFB/ALAMOGORDO","NM","E-8",{"$f":"TRANSPOSE(L5642)","v":1446}]
["HOLLOMAN AFB/ALAMOGORDO","NM","E-9",{"$f":"TRANSPOSE(M5642)","v":1578}]
["HOLLOMAN AFB/ALAMOGORDO","NM","W-1",{"$f":"TRANSPOSE(N5642)","v":1215}]
["HOLLOMAN AFB/ALAMOGORDO","NM","W-2",{"$f":"TRANSPOSE(O5642)","v":1374}]
["HOLLOMAN AFB/ALAMOGORDO","NM","W-3",{"$f":"TRANSPOSE(P5642)","v":1524}]
["HOLLOMAN AFB/ALAMOGORDO","NM","W-4",{"$f":"TRANSPOSE(Q5642)","v":1599}]
["HOLLOMAN AFB/ALAMOGORDO","NM","W-5",{"$f":"TRANSPOSE(R5642)","v":1686}]
["HOLLOMAN AFB/ALAMOGORDO","NM","O-1E",{"$f":"TRANSPOSE(S5642)","v":1350}]
["HOLLOMAN AFB/ALAMOGORDO","NM","O-2E",{"$f":"TRANSPOSE(T5642)","v":1500}]
["HOLLOMAN AFB/ALAMOGORDO","NM","O-3E",{"$f":"TRANSPOSE(U5642)","v":1611}]
["HOLLOMAN AFB/ALAMOGORDO","NM","O-1",{"$f":"TRANSPOSE(V5642)","v":1053}]
["HOLLOMAN AFB/ALAMOGORDO","NM","O-2",{"$f":"TRANSPOSE(W5642)","v":1209}]
["HOLLOMAN AFB/ALAMOGORDO","NM","O-3",{"$f":"TRANSPOSE(X5642)","v":1518}]
["HOLLOMAN AFB/ALAMOGORDO","NM","O-4",{"$f":"TRANSPOSE(Y5642)","v":1719}]
["HOLLOMAN AFB/ALAMOGORDO","NM","O-5",{"$f":"TRANSPOSE(Z5642)","v":1863}]
["HOLLOMAN AFB/ALAMOGORDO","NM","O-6",{"$f":"TRANSPOSE(AA5642)","v":1881}]
["HOLLOMAN AFB/ALAMOGORDO","NM","O-7",{"$f":"TRANSPOSE(AB5642)","v":1899}]
["ALBUQUERQUE/KIRTLAND AFB","NM","E-1",{"$f":"TRANSPOSE(E5666:E5666)","v":1107},1107,1107,1107,1107,1248,1299,1353,1413,1494,1299,1377,1452,1509,1578,1365,1440,1521,1254,1296,1449,1605,1719,1734,1752]
["ALBUQUERQUE/KIRTLAND AFB","NM","E-2",{"$f":"TRANSPOSE(F5666:F5666)","v":1107}]
["ALBUQUERQUE/KIRTLAND AFB","NM","E-3",{"$f":"TRANSPOSE(G5666:G5666)","v":1107}]
["ALBUQUERQUE/KIRTLAND AFB","NM","E-4",{"$f":"TRANSPOSE(H5666:H5666)","v":1107}]
["ALBUQUERQUE/KIRTLAND AFB","NM","E-5",{"$f":"TRANSPOSE(I5666:I5666)","v":1248}]
["ALBUQUERQUE/KIRTLAND AFB","NM","E-6",{"$f":"TRANSPOSE(J5666:J5666)","v":1299}]
["ALBUQUERQUE/KIRTLAND AFB","NM","E-7",{"$f":"TRANSPOSE(K5666:K5666)","v":1353}]
["ALBUQUERQUE/KIRTLAND AFB","NM","E-8",{"$f":"TRANSPOSE(L5666)","v":1413}]
["ALBUQUERQUE/KIRTLAND AFB","NM","E-9",{"$f":"TRANSPOSE(M5666)","v":1494}]
["ALBUQUERQUE/KIRTLAND AFB","NM","W-1",{"$f":"TRANSPOSE(N5666)","v":1299}]
["ALBUQUERQUE/KIRTLAND AFB","NM","W-2",{"$f":"TRANSPOSE(O5666)","v":1377}]
["ALBUQUERQUE/KIRTLAND AFB","NM","W-3",{"$f":"TRANSPOSE(P5666)","v":1452}]
["ALBUQUERQUE/KIRTLAND AFB","NM","W-4",{"$f":"TRANSPOSE(Q5666)","v":1509}]
["ALBUQUERQUE/KIRTLAND AFB","NM","W-5",{"$f":"TRANSPOSE(R5666)","v":1578}]
["ALBUQUERQUE/KIRTLAND AFB","NM","O-1E",{"$f":"TRANSPOSE(S5666)","v":1365}]
["ALBUQUERQUE/KIRTLAND AFB","NM","O-2E",{"$f":"TRANSPOSE(T5666)","v":1440}]
["ALBUQUERQUE/KIRTLAND AFB","NM","O-3E",{"$f":"TRANSPOSE(U5666)","v":1521}]
["ALBUQUERQUE/KIRTLAND AFB","NM","O-1",{"$f":"TRANSPOSE(V5666)","v":1254}]
["ALBUQUERQUE/KIRTLAND AFB","NM","O-2",{"$f":"TRANSPOSE(W5666)","v":1296}]
["ALBUQUERQUE/KIRTLAND AFB","NM","O-3",{"$f":"TRANSPOSE(X5666)","v":1449}]
["ALBUQUERQUE/KIRTLAND AFB","NM","O-4",{"$f":"TRANSPOSE(Y5666)","v":1605}]
["ALBUQUERQUE/KIRTLAND AFB","NM","O-5",{"$f":"TRANSPOSE(Z5666)","v":1719}]
["ALBUQUERQUE/KIRTLAND AFB","NM","O-6",{"$f":"TRANSPOSE(AA5666)","v":1734}]
["ALBUQUERQUE/KIRTLAND AFB","NM","O-7",{"$f":"TRANSPOSE(AB5666)","v":1752}]
["CANNON AFB/CLOVIS","NM","E-1",{"$f":"TRANSPOSE(E5690:E5690)","v":906},906,906,906,906,1041,1314,1332,1350,1422,1314,1338,1362,1443,1542,1335,1359,1458,1071,1311,1359,1578,1737,1752,1770]
["CANNON AFB/CLOVIS","NM","E-2",{"$f":"TRANSPOSE(F5690:F5690)","v":906}]
["CANNON AFB/CLOVIS","NM","E-3",{"$f":"TRANSPOSE(G5690:G5690)","v":906}]
["CANNON AFB/CLOVIS","NM","E-4",{"$f":"TRANSPOSE(H5690:H5690)","v":906}]
["CANNON AFB/CLOVIS","NM","E-5",{"$f":"TRANSPOSE(I5690:I5690)","v":1041}]
["CANNON AFB/CLOVIS","NM","E-6",{"$f":"TRANSPOSE(J5690:J5690)","v":1314}]
["CANNON AFB/CLOVIS","NM","E-7",{"$f":"TRANSPOSE(K5690:K5690)","v":1332}]
["CANNON AFB/CLOVIS","NM","E-8",{"$f":"TRANSPOSE(L5690)","v":1350}]
["CANNON AFB/CLOVIS","NM","E-9",{"$f":"TRANSPOSE(M5690)","v":1422}]
["CANNON AFB/CLOVIS","NM","W-1",{"$f":"TRANSPOSE(N5690)","v":1314}]
["CANNON AFB/CLOVIS","NM","W-2",{"$f":"TRANSPOSE(O5690)","v":1338}]
["CANNON AFB/CLOVIS","NM","W-3",{"$f":"TRANSPOSE(P5690)","v":1362}]
["CANNON AFB/CLOVIS","NM","W-4",{"$f":"TRANSPOSE(Q5690)","v":1443}]
["CANNON AFB/CLOVIS","NM","W-5",{"$f":"TRANSPOSE(R5690)","v":1542}]
["CANNON AFB/CLOVIS","NM","O-1E",{"$f":"TRANSPOSE(S5690)","v":1335}]
["CANNON AFB/CLOVIS","NM","O-2E",{"$f":"TRANSPOSE(T5690)","v":1359}]
["CANNON AFB/CLOVIS","NM","O-3E",{"$f":"TRANSPOSE(U5690)","v":1458}]
["CANNON AFB/CLOVIS","NM","O-1",{"$f":"TRANSPOSE(V5690)","v":1071}]
["CANNON AFB/CLOVIS","NM","O-2",{"$f":"TRANSPOSE(W5690)","v":1311}]
["CANNON AFB/CLOVIS","NM","O-3",{"$f":"TRANSPOSE(X5690)","v":1359}]
["CANNON AFB/CLOVIS","NM","O-4",{"$f":"TRANSPOSE(Y5690)","v":1578}]
["CANNON AFB/CLOVIS","NM","O-5",{"$f":"TRANSPOSE(Z5690)","v":1737}]
["CANNON AFB/CLOVIS","NM","O-6",{"$f":"TRANSPOSE(AA5690)","v":1752}]
["CANNON AFB/CLOVIS","NM","O-7",{"$f":"TRANSPOSE(AB5690)","v":1770}]
["WHITE SANDS MR/LAS CRUCES","NM","E-1",{"$f":"TRANSPOSE(E5714:E5714)","v":897},897,897,897,897,996,1098,1173,1251,1341,1101,1206,1302,1353,1416,1188,1290,1365,1008,1095,1299,1437,1536,1551,1566]
["WHITE SANDS MR/LAS CRUCES","NM","E-2",{"$f":"TRANSPOSE(F5714:F5714)","v":897}]
["WHITE SANDS MR/LAS CRUCES","NM","E-3",{"$f":"TRANSPOSE(G5714:G5714)","v":897}]
["WHITE SANDS MR/LAS CRUCES","NM","E-4",{"$f":"TRANSPOSE(H5714:H5714)","v":897}]
["WHITE SANDS MR/LAS CRUCES","NM","E-5",{"$f":"TRANSPOSE(I5714:I5714)","v":996}]
["WHITE SANDS MR/LAS CRUCES","NM","E-6",{"$f":"TRANSPOSE(J5714:J5714)","v":1098}]
["WHITE SANDS MR/LAS CRUCES","NM","E-7",{"$f":"TRANSPOSE(K5714:K5714)","v":1173}]
["WHITE SANDS MR/LAS CRUCES","NM","E-8",{"$f":"TRANSPOSE(L5714)","v":1251}]
["WHITE SANDS MR/LAS CRUCES","NM","E-9",{"$f":"TRANSPOSE(M5714)","v":1341}]
["WHITE SANDS MR/LAS CRUCES","NM","W-1",{"$f":"TRANSPOSE(N5714)","v":1101}]
["WHITE SANDS MR/LAS CRUCES","NM","W-2",{"$f":"TRANSPOSE(O5714)","v":1206}]
["WHITE SANDS MR/LAS CRUCES","NM","W-3",{"$f":"TRANSPOSE(P5714)","v":1302}]
["WHITE SANDS MR/LAS CRUCES","NM","W-4",{"$f":"TRANSPOSE(Q5714)","v":1353}]
["WHITE SANDS MR/LAS CRUCES","NM","W-5",{"$f":"TRANSPOSE(R5714)","v":1416}]
["WHITE SANDS MR/LAS CRUCES","NM","O-1E",{"$f":"TRANSPOSE(S5714)","v":1188}]
["WHITE SANDS MR/LAS CRUCES","NM","O-2E",{"$f":"TRANSPOSE(T5714)","v":1290}]
["WHITE SANDS MR/LAS CRUCES","NM","O-3E",{"$f":"TRANSPOSE(U5714)","v":1365}]
["WHITE SANDS MR/LAS CRUCES","NM","O-1",{"$f":"TRANSPOSE(V5714)","v":1008}]
["WHITE SANDS MR/LAS CRUCES","NM","O-2",{"$f":"TRANSPOSE(W5714)","v":1095}]
["WHITE SANDS MR/LAS CRUCES","NM","O-3",{"$f":"TRANSPOSE(X5714)","v":1299}]
["WHITE SANDS MR/LAS CRUCES","NM","O-4",{"$f":"TRANSPOSE(Y5714)","v":1437}]
["WHITE SANDS MR/LAS CRUCES","NM","O-5",{"$f":"TRANSPOSE(Z5714)","v":1536}]
["WHITE SANDS MR/LAS CRUCES","NM","O-6",{"$f":"TRANSPOSE(AA5714)","v":1551}]
["WHITE SANDS MR/LAS CRUCES","NM","O-7",{"$f":"TRANSPOSE(AB5714)","v":1566}]
["SANTA FE/LOS ALAMOS","NM","E-1",{"$f":"TRANSPOSE(E5738:E5738)","v":1119},1119,1119,1119,1119,1257,1479,1548,1623,1761,1482,1578,1668,1794,1944,1563,1656,1818,1281,1476,1665,2001,2241,2262,2286]
["SANTA FE/LOS ALAMOS","NM","E-2",{"$f":"TRANSPOSE(F5738:F5738)","v":1119}]
["SANTA FE/LOS ALAMOS","NM","E-3",{"$f":"TRANSPOSE(G5738:G5738)","v":1119}]
["SANTA FE/LOS ALAMOS","NM","E-4",{"$f":"TRANSPOSE(H5738:H5738)","v":1119}]
["SANTA FE/LOS ALAMOS","NM","E-5",{"$f":"TRANSPOSE(I5738:I5738)","v":1257}]
["SANTA FE/LOS ALAMOS","NM","E-6",{"$f":"TRANSPOSE(J5738:J5738)","v":1479}]
["SANTA FE/LOS ALAMOS","NM","E-7",{"$f":"TRANSPOSE(K5738:K5738)","v":1548}]
["SANTA FE/LOS ALAMOS","NM","E-8",{"$f":"TRANSPOSE(L5738)","v":1623}]
["SANTA FE/LOS ALAMOS","NM","E-9",{"$f":"TRANSPOSE(M5738)","v":1761}]
["SANTA FE/LOS ALAMOS","NM","W-1",{"$f":"TRANSPOSE(N5738)","v":1482}]
["SANTA FE/LOS ALAMOS","NM","W-2",{"$f":"TRANSPOSE(O5738)","v":1578}]
["SANTA FE/LOS ALAMOS","NM","W-3",{"$f":"TRANSPOSE(P5738)","v":1668}]
["SANTA FE/LOS ALAMOS","NM","W-4",{"$f":"TRANSPOSE(Q5738)","v":1794}]
["SANTA FE/LOS ALAMOS","NM","W-5",{"$f":"TRANSPOSE(R5738)","v":1944}]
["SANTA FE/LOS ALAMOS","NM","O-1E",{"$f":"TRANSPOSE(S5738)","v":1563}]
["SANTA FE/LOS ALAMOS","NM","O-2E",{"$f":"TRANSPOSE(T5738)","v":1656}]
["SANTA FE/LOS ALAMOS","NM","O-3E",{"$f":"TRANSPOSE(U5738)","v":1818}]
["SANTA FE/LOS ALAMOS","NM","O-1",{"$f":"TRANSPOSE(V5738)","v":1281}]
["SANTA FE/LOS ALAMOS","NM","O-2",{"$f":"TRANSPOSE(W5738)","v":1476}]
["SANTA FE/LOS ALAMOS","NM","O-3",{"$f":"TRANSPOSE(X5738)","v":1665}]
["SANTA FE/LOS ALAMOS","NM","O-4",{"$f":"TRANSPOSE(Y5738)","v":2001}]
["SANTA FE/LOS ALAMOS","NM","O-5",{"$f":"TRANSPOSE(Z5738)","v":2241}]
["SANTA FE/LOS ALAMOS","NM","O-6",{"$f":"TRANSPOSE(AA5738)","v":2262}]
["SANTA FE/LOS ALAMOS","NM","O-7",{"$f":"TRANSPOSE(AB5738)","v":2286}]
["LAKE TAHOE","NV","E-1",{"$f":"TRANSPOSE(E5762:E5762)","v":1098},1098,1098,1098,1098,1152,1701,1713,1728,1821,1701,1719,1737,1851,1989,1716,1734,1872,1212,1689,1734,2040,2262,2283,2307]
["LAKE TAHOE","NV","E-2",{"$f":"TRANSPOSE(F5762:F5762)","v":1098}]
["LAKE TAHOE","NV","E-3",{"$f":"TRANSPOSE(G5762:G5762)","v":1098}]
["LAKE TAHOE","NV","E-4",{"$f":"TRANSPOSE(H5762:H5762)","v":1098}]
["LAKE TAHOE","NV","E-5",{"$f":"TRANSPOSE(I5762:I5762)","v":1152}]
["LAKE TAHOE","NV","E-6",{"$f":"TRANSPOSE(J5762:J5762)","v":1701}]
["LAKE TAHOE","NV","E-7",{"$f":"TRANSPOSE(K5762:K5762)","v":1713}]
["LAKE TAHOE","NV","E-8",{"$f":"TRANSPOSE(L5762)","v":1728}]
["LAKE TAHOE","NV","E-9",{"$f":"TRANSPOSE(M5762)","v":1821}]
["LAKE TAHOE","NV","W-1",{"$f":"TRANSPOSE(N5762)","v":1701}]
["LAKE TAHOE","NV","W-2",{"$f":"TRANSPOSE(O5762)","v":1719}]
["LAKE TAHOE","NV","W-3",{"$f":"TRANSPOSE(P5762)","v":1737}]
["LAKE TAHOE","NV","W-4",{"$f":"TRANSPOSE(Q5762)","v":1851}]
["LAKE TAHOE","NV","W-5",{"$f":"TRANSPOSE(R5762)","v":1989}]
["LAKE TAHOE","NV","O-1E",{"$f":"TRANSPOSE(S5762)","v":1716}]
["LAKE TAHOE","NV","O-2E",{"$f":"TRANSPOSE(T5762)","v":1734}]
["LAKE TAHOE","NV","O-3E",{"$f":"TRANSPOSE(U5762)","v":1872}]
["LAKE TAHOE","NV","O-1",{"$f":"TRANSPOSE(V5762)","v":1212}]
["LAKE TAHOE","NV","O-2",{"$f":"TRANSPOSE(W5762)","v":1689}]
["LAKE TAHOE","NV","O-3",{"$f":"TRANSPOSE(X5762)","v":1734}]
["LAKE TAHOE","NV","O-4",{"$f":"TRANSPOSE(Y5762)","v":2040}]
["LAKE TAHOE","NV","O-5",{"$f":"TRANSPOSE(Z5762)","v":2262}]
["LAKE TAHOE","NV","O-6",{"$f":"TRANSPOSE(AA5762)","v":2283}]
["LAKE TAHOE","NV","O-7",{"$f":"TRANSPOSE(AB5762)","v":2307}]
["FALLON NAS","NV","E-1",{"$f":"TRANSPOSE(E5786:E5786)","v":870},870,870,870,870,918,1068,1155,1251,1350,1071,1194,1311,1362,1425,1176,1293,1374,933,1065,1305,1449,1548,1563,1581]
["FALLON NAS","NV","E-2",{"$f":"TRANSPOSE(F5786:F5786)","v":870}]
["FALLON NAS","NV","E-3",{"$f":"TRANSPOSE(G5786:G5786)","v":870}]
["FALLON NAS","NV","E-4",{"$f":"TRANSPOSE(H5786:H5786)","v":870}]
["FALLON NAS","NV","E-5",{"$f":"TRANSPOSE(I5786:I5786)","v":918}]
["FALLON NAS","NV","E-6",{"$f":"TRANSPOSE(J5786:J5786)","v":1068}]
["FALLON NAS","NV","E-7",{"$f":"TRANSPOSE(K5786:K5786)","v":1155}]
["FALLON NAS","NV","E-8",{"$f":"TRANSPOSE(L5786)","v":1251}]
["FALLON NAS","NV","E-9",{"$f":"TRANSPOSE(M5786)","v":1350}]
["FALLON NAS","NV","W-1",{"$f":"TRANSPOSE(N5786)","v":1071}]
["FALLON NAS","NV","W-2",{"$f":"TRANSPOSE(O5786)","v":1194}]
["FALLON NAS","NV","W-3",{"$f":"TRANSPOSE(P5786)","v":1311}]
["FALLON NAS","NV","W-4",{"$f":"TRANSPOSE(Q5786)","v":1362}]
["FALLON NAS","NV","W-5",{"$f":"TRANSPOSE(R5786)","v":1425}]
["FALLON NAS","NV","O-1E",{"$f":"TRANSPOSE(S5786)","v":1176}]
["FALLON NAS","NV","O-2E",{"$f":"TRANSPOSE(T5786)","v":1293}]
["FALLON NAS","NV","O-3E",{"$f":"TRANSPOSE(U5786)","v":1374}]
["FALLON NAS","NV","O-1",{"$f":"TRANSPOSE(V5786)","v":933}]
["FALLON NAS","NV","O-2",{"$f":"TRANSPOSE(W5786)","v":1065}]
["FALLON NAS","NV","O-3",{"$f":"TRANSPOSE(X5786)","v":1305}]
["FALLON NAS","NV","O-4",{"$f":"TRANSPOSE(Y5786)","v":1449}]
["FALLON NAS","NV","O-5",{"$f":"TRANSPOSE(Z5786)","v":1548}]
["FALLON NAS","NV","O-6",{"$f":"TRANSPOSE(AA5786)","v":1563}]
["FALLON NAS","NV","O-7",{"$f":"TRANSPOSE(AB5786)","v":1581}]
["NELLIS AFB/LAS VEGAS","NV","E-1",{"$f":"TRANSPOSE(E5810:E5810)","v":1197},1197,1197,1197,1197,1242,1398,1509,1629,1758,1401,1557,1704,1779,1866,1533,1683,1791,1260,1395,1698,1902,2043,2064,2085]
["NELLIS AFB/LAS VEGAS","NV","E-2",{"$f":"TRANSPOSE(F5810:F5810)","v":1197}]
["NELLIS AFB/LAS VEGAS","NV","E-3",{"$f":"TRANSPOSE(G5810:G5810)","v":1197}]
["NELLIS AFB/LAS VEGAS","NV","E-4",{"$f":"TRANSPOSE(H5810:H5810)","v":1197}]
["NELLIS AFB/LAS VEGAS","NV","E-5",{"$f":"TRANSPOSE(I5810:I5810)","v":1242}]
["NELLIS AFB/LAS VEGAS","NV","E-6",{"$f":"TRANSPOSE(J5810:J5810)","v":1398}]
["NELLIS AFB/LAS VEGAS","NV","E-7",{"$f":"TRANSPOSE(K5810:K5810)","v":1509}]
["NELLIS AFB/LAS VEGAS","NV","E-8",{"$f":"TRANSPOSE(L5810)","v":1629}]
["NELLIS AFB/LAS VEGAS","NV","E-9",{"$f":"TRANSPOSE(M5810)","v":1758}]
["NELLIS AFB/LAS VEGAS","NV","W-1",{"$f":"TRANSPOSE(N5810)","v":1401}]
["NELLIS AFB/LAS VEGAS","NV","W-2",{"$f":"TRANSPOSE(O5810)","v":1557}]
["NELLIS AFB/LAS VEGAS","NV","W-3",{"$f":"TRANSPOSE(P5810)","v":1704}]
["NELLIS AFB/LAS VEGAS","NV","W-4",{"$f":"TRANSPOSE(Q5810)","v":1779}]
["NELLIS AFB/LAS VEGAS","NV","W-5",{"$f":"TRANSPOSE(R5810)","v":1866}]
["NELLIS AFB/LAS VEGAS","NV","O-1E",{"$f":"TRANSPOSE(S5810)","v":1533}]
["NELLIS AFB/LAS VEGAS","NV","O-2E",{"$f":"TRANSPOSE(T5810)","v":1683}]
["NELLIS AFB/LAS VEGAS","NV","O-3E",{"$f":"TRANSPOSE(U5810)","v":1791}]
["NELLIS AFB/LAS VEGAS","NV","O-1",{"$f":"TRANSPOSE(V5810)","v":1260}]
["NELLIS AFB/LAS VEGAS","NV","O-2",{"$f":"TRANSPOSE(W5810)","v":1395}]
["NELLIS AFB/LAS VEGAS","NV","O-3",{"$f":"TRANSPOSE(X5810)","v":1698}]
["NELLIS AFB/LAS VEGAS","NV","O-4",{"$f":"TRANSPOSE(Y5810)","v":1902}]
["NELLIS AFB/LAS VEGAS","NV","O-5",{"$f":"TRANSPOSE(Z5810)","v":2043}]
["NELLIS AFB/LAS VEGAS","NV","O-6",{"$f":"TRANSPOSE(AA5810)","v":2064}]
["NELLIS AFB/LAS VEGAS","NV","O-7",{"$f":"TRANSPOSE(AB5810)","v":2085}]
["RENO/CARSON CITY","NV","E-1",{"$f":"TRANSPOSE(E5834:E5834)","v":1080},1080,1080,1080,1080,1170,1377,1443,1515,1611,1377,1473,1560,1629,1710,1458,1548,1641,1191,1371,1557,1740,1872,1890,1908]
["RENO/CARSON CITY","NV","E-2",{"$f":"TRANSPOSE(F5834:F5834)","v":1080}]
["RENO/CARSON CITY","NV","E-3",{"$f":"TRANSPOSE(G5834:G5834)","v":1080}]
["RENO/CARSON CITY","NV","E-4",{"$f":"TRANSPOSE(H5834:H5834)","v":1080}]
["RENO/CARSON CITY","NV","E-5",{"$f":"TRANSPOSE(I5834:I5834)","v":1170}]
["RENO/CARSON CITY","NV","E-6",{"$f":"TRANSPOSE(J5834:J5834)","v":1377}]
["RENO/CARSON CITY","NV","E-7",{"$f":"TRANSPOSE(K5834:K5834)","v":1443}]
["RENO/CARSON CITY","NV","E-8",{"$f":"TRANSPOSE(L5834)","v":1515}]
["RENO/CARSON CITY","NV","E-9",{"$f":"TRANSPOSE(M5834)","v":1611}]
["RENO/CARSON CITY","NV","W-1",{"$f":"TRANSPOSE(N5834)","v":1377}]
["RENO/CARSON CITY","NV","W-2",{"$f":"TRANSPOSE(O5834)","v":1473}]
["RENO/CARSON CITY","NV","W-3",{"$f":"TRANSPOSE(P5834)","v":1560}]
["RENO/CARSON CITY","NV","W-4",{"$f":"TRANSPOSE(Q5834)","v":1629}]
["RENO/CARSON CITY","NV","W-5",{"$f":"TRANSPOSE(R5834)","v":1710}]
["RENO/CARSON CITY","NV","O-1E",{"$f":"TRANSPOSE(S5834)","v":1458}]
["RENO/CARSON CITY","NV","O-2E",{"$f":"TRANSPOSE(T5834)","v":1548}]
["RENO/CARSON CITY","NV","O-3E",{"$f":"TRANSPOSE(U5834)","v":1641}]
["RENO/CARSON CITY","NV","O-1",{"$f":"TRANSPOSE(V5834)","v":1191}]
["RENO/CARSON CITY","NV","O-2",{"$f":"TRANSPOSE(W5834)","v":1371}]
["RENO/CARSON CITY","NV","O-3",{"$f":"TRANSPOSE(X5834)","v":1557}]
["RENO/CARSON CITY","NV","O-4",{"$f":"TRANSPOSE(Y5834)","v":1740}]
["RENO/CARSON CITY","NV","O-5",{"$f":"TRANSPOSE(Z5834)","v":1872}]
["RENO/CARSON CITY","NV","O-6",{"$f":"TRANSPOSE(AA5834)","v":1890}]
["RENO/CARSON CITY","NV","O-7",{"$f":"TRANSPOSE(AB5834)","v":1908}]
["BALLSTON SPA/ALBANY","NY","E-1",{"$f":"TRANSPOSE(E5858:E5858)","v":1470},1470,1470,1470,1470,1650,1728,1821,1920,2046,1731,1860,1986,2067,2166,1842,1968,2085,1659,1725,1980,2205,2364,2388,2412]
["BALLSTON SPA/ALBANY","NY","E-2",{"$f":"TRANSPOSE(F5858:F5858)","v":1470}]
["BALLSTON SPA/ALBANY","NY","E-3",{"$f":"TRANSPOSE(G5858:G5858)","v":1470}]
["BALLSTON SPA/ALBANY","NY","E-4",{"$f":"TRANSPOSE(H5858:H5858)","v":1470}]
["BALLSTON SPA/ALBANY","NY","E-5",{"$f":"TRANSPOSE(I5858:I5858)","v":1650}]
["BALLSTON SPA/ALBANY","NY","E-6",{"$f":"TRANSPOSE(J5858:J5858)","v":1728}]
["BALLSTON SPA/ALBANY","NY","E-7",{"$f":"TRANSPOSE(K5858:K5858)","v":1821}]
["BALLSTON SPA/ALBANY","NY","E-8",{"$f":"TRANSPOSE(L5858)","v":1920}]
["BALLSTON SPA/ALBANY","NY","E-9",{"$f":"TRANSPOSE(M5858)","v":2046}]
["BALLSTON SPA/ALBANY","NY","W-1",{"$f":"TRANSPOSE(N5858)","v":1731}]
["BALLSTON SPA/ALBANY","NY","W-2",{"$f":"TRANSPOSE(O5858)","v":1860}]
["BALLSTON SPA/ALBANY","NY","W-3",{"$f":"TRANSPOSE(P5858)","v":1986}]
["BALLSTON SPA/ALBANY","NY","W-4",{"$f":"TRANSPOSE(Q5858)","v":2067}]
["BALLSTON SPA/ALBANY","NY","W-5",{"$f":"TRANSPOSE(R5858)","v":2166}]
["BALLSTON SPA/ALBANY","NY","O-1E",{"$f":"TRANSPOSE(S5858)","v":1842}]
["BALLSTON SPA/ALBANY","NY","O-2E",{"$f":"TRANSPOSE(T5858)","v":1968}]
["BALLSTON SPA/ALBANY","NY","O-3E",{"$f":"TRANSPOSE(U5858)","v":2085}]
["BALLSTON SPA/ALBANY","NY","O-1",{"$f":"TRANSPOSE(V5858)","v":1659}]
["BALLSTON SPA/ALBANY","NY","O-2",{"$f":"TRANSPOSE(W5858)","v":1725}]
["BALLSTON SPA/ALBANY","NY","O-3",{"$f":"TRANSPOSE(X5858)","v":1980}]
["BALLSTON SPA/ALBANY","NY","O-4",{"$f":"TRANSPOSE(Y5858)","v":2205}]
["BALLSTON SPA/ALBANY","NY","O-5",{"$f":"TRANSPOSE(Z5858)","v":2364}]
["BALLSTON SPA/ALBANY","NY","O-6",{"$f":"TRANSPOSE(AA5858)","v":2388}]
["BALLSTON SPA/ALBANY","NY","O-7",{"$f":"TRANSPOSE(AB5858)","v":2412}]
["BUFFALO","NY","E-1",{"$f":"TRANSPOSE(E5882:E5882)","v":1086},1086,1086,1086,1086,1260,1329,1422,1521,1632,1332,1461,1584,1653,1731,1443,1566,1665,1269,1329,1578,1761,1890,1911,1929]
["BUFFALO","NY","E-2",{"$f":"TRANSPOSE(F5882:F5882)","v":1086}]
["BUFFALO","NY","E-3",{"$f":"TRANSPOSE(G5882:G5882)","v":1086}]
["BUFFALO","NY","E-4",{"$f":"TRANSPOSE(H5882:H5882)","v":1086}]
["BUFFALO","NY","E-5",{"$f":"TRANSPOSE(I5882:I5882)","v":1260}]
["BUFFALO","NY","E-6",{"$f":"TRANSPOSE(J5882:J5882)","v":1329}]
["BUFFALO","NY","E-7",{"$f":"TRANSPOSE(K5882:K5882)","v":1422}]
["BUFFALO","NY","E-8",{"$f":"TRANSPOSE(L5882)","v":1521}]
["BUFFALO","NY","E-9",{"$f":"TRANSPOSE(M5882)","v":1632}]
["BUFFALO","NY","W-1",{"$f":"TRANSPOSE(N5882)","v":1332}]
["BUFFALO","NY","W-2",{"$f":"TRANSPOSE(O5882)","v":1461}]
["BUFFALO","NY","W-3",{"$f":"TRANSPOSE(P5882)","v":1584}]
["BUFFALO","NY","W-4",{"$f":"TRANSPOSE(Q5882)","v":1653}]
["BUFFALO","NY","W-5",{"$f":"TRANSPOSE(R5882)","v":1731}]
["BUFFALO","NY","O-1E",{"$f":"TRANSPOSE(S5882)","v":1443}]
["BUFFALO","NY","O-2E",{"$f":"TRANSPOSE(T5882)","v":1566}]
["BUFFALO","NY","O-3E",{"$f":"TRANSPOSE(U5882)","v":1665}]
["BUFFALO","NY","O-1",{"$f":"TRANSPOSE(V5882)","v":1269}]
["BUFFALO","NY","O-2",{"$f":"TRANSPOSE(W5882)","v":1329}]
["BUFFALO","NY","O-3",{"$f":"TRANSPOSE(X5882)","v":1578}]
["BUFFALO","NY","O-4",{"$f":"TRANSPOSE(Y5882)","v":1761}]
["BUFFALO","NY","O-5",{"$f":"TRANSPOSE(Z5882)","v":1890}]
["BUFFALO","NY","O-6",{"$f":"TRANSPOSE(AA5882)","v":1911}]
["BUFFALO","NY","O-7",{"$f":"TRANSPOSE(AB5882)","v":1929}]
["WEST POINT","NY","E-1",{"$f":"TRANSPOSE(E5906:E5906)","v":1881},1881,1881,1881,1881,2127,2352,2421,2496,2640,2355,2451,2544,2676,2832,2436,2532,2700,2151,2349,2541,2889,3141,3171,3204]
["WEST POINT","NY","E-2",{"$f":"TRANSPOSE(F5906:F5906)","v":1881}]
["WEST POINT","NY","E-3",{"$f":"TRANSPOSE(G5906:G5906)","v":1881}]
["WEST POINT","NY","E-4",{"$f":"TRANSPOSE(H5906:H5906)","v":1881}]
["WEST POINT","NY","E-5",{"$f":"TRANSPOSE(I5906:I5906)","v":2127}]
["WEST POINT","NY","E-6",{"$f":"TRANSPOSE(J5906:J5906)","v":2352}]
["WEST POINT","NY","E-7",{"$f":"TRANSPOSE(K5906:K5906)","v":2421}]
["WEST POINT","NY","E-8",{"$f":"TRANSPOSE(L5906)","v":2496}]
["WEST POINT","NY","E-9",{"$f":"TRANSPOSE(M5906)","v":2640}]
["WEST POINT","NY","W-1",{"$f":"TRANSPOSE(N5906)","v":2355}]
["WEST POINT","NY","W-2",{"$f":"TRANSPOSE(O5906)","v":2451}]
["WEST POINT","NY","W-3",{"$f":"TRANSPOSE(P5906)","v":2544}]
["WEST POINT","NY","W-4",{"$f":"TRANSPOSE(Q5906)","v":2676}]
["WEST POINT","NY","W-5",{"$f":"TRANSPOSE(R5906)","v":2832}]
["WEST POINT","NY","O-1E",{"$f":"TRANSPOSE(S5906)","v":2436}]
["WEST POINT","NY","O-2E",{"$f":"TRANSPOSE(T5906)","v":2532}]
["WEST POINT","NY","O-3E",{"$f":"TRANSPOSE(U5906)","v":2700}]
["WEST POINT","NY","O-1",{"$f":"TRANSPOSE(V5906)","v":2151}]
["WEST POINT","NY","O-2",{"$f":"TRANSPOSE(W5906)","v":2349}]
["WEST POINT","NY","O-3",{"$f":"TRANSPOSE(X5906)","v":2541}]
["WEST POINT","NY","O-4",{"$f":"TRANSPOSE(Y5906)","v":2889}]
["WEST POINT","NY","O-5",{"$f":"TRANSPOSE(Z5906)","v":3141}]
["WEST POINT","NY","O-6",{"$f":"TRANSPOSE(AA5906)","v":3171}]
["WEST POINT","NY","O-7",{"$f":"TRANSPOSE(AB5906)","v":3204}]
["LONG ISLAND","NY","E-1",{"$f":"TRANSPOSE(E5930:E5930)","v":2274},2274,2274,2274,2274,2466,2664,2847,3045,3219,2667,2928,3174,3237,3309,2886,3138,3246,2490,2658,3162,3339,3459,3492,3528]
["LONG ISLAND","NY","E-2",{"$f":"TRANSPOSE(F5930:F5930)","v":2274}]
["LONG ISLAND","NY","E-3",{"$f":"TRANSPOSE(G5930:G5930)","v":2274}]
["LONG ISLAND","NY","E-4",{"$f":"TRANSPOSE(H5930:H5930)","v":2274}]
["LONG ISLAND","NY","E-5",{"$f":"TRANSPOSE(I5930:I5930)","v":2466}]
["LONG ISLAND","NY","E-6",{"$f":"TRANSPOSE(J5930:J5930)","v":2664}]
["LONG ISLAND","NY","E-7",{"$f":"TRANSPOSE(K5930:K5930)","v":2847}]
["LONG ISLAND","NY","E-8",{"$f":"TRANSPOSE(L5930)","v":3045}]
["LONG ISLAND","NY","E-9",{"$f":"TRANSPOSE(M5930)","v":3219}]
["LONG ISLAND","NY","W-1",{"$f":"TRANSPOSE(N5930)","v":2667}]
["LONG ISLAND","NY","W-2",{"$f":"TRANSPOSE(O5930)","v":2928}]
["LONG ISLAND","NY","W-3",{"$f":"TRANSPOSE(P5930)","v":3174}]
["LONG ISLAND","NY","W-4",{"$f":"TRANSPOSE(Q5930)","v":3237}]
["LONG ISLAND","NY","W-5",{"$f":"TRANSPOSE(R5930)","v":3309}]
["LONG ISLAND","NY","O-1E",{"$f":"TRANSPOSE(S5930)","v":2886}]
["LONG ISLAND","NY","O-2E",{"$f":"TRANSPOSE(T5930)","v":3138}]
["LONG ISLAND","NY","O-3E",{"$f":"TRANSPOSE(U5930)","v":3246}]
["LONG ISLAND","NY","O-1",{"$f":"TRANSPOSE(V5930)","v":2490}]
["LONG ISLAND","NY","O-2",{"$f":"TRANSPOSE(W5930)","v":2658}]
["LONG ISLAND","NY","O-3",{"$f":"TRANSPOSE(X5930)","v":3162}]
["LONG ISLAND","NY","O-4",{"$f":"TRANSPOSE(Y5930)","v":3339}]
["LONG ISLAND","NY","O-5",{"$f":"TRANSPOSE(Z5930)","v":3459}]
["LONG ISLAND","NY","O-6",{"$f":"TRANSPOSE(AA5930)","v":3492}]
["LONG ISLAND","NY","O-7",{"$f":"TRANSPOSE(AB5930)","v":3528}]
["NEW YORK CITY","NY","E-1",{"$f":"TRANSPOSE(E5954:E5954)","v":2685},2685,2685,2685,2685,2751,3036,3066,3099,3225,3039,3078,3117,3267,3441,3072,3111,3294,2784,3030,3117,3510,3792,3831,3870]
["NEW YORK CITY","NY","E-2",{"$f":"TRANSPOSE(F5954:F5954)","v":2685}]
["NEW YORK CITY","NY","E-3",{"$f":"TRANSPOSE(G5954:G5954)","v":2685}]
["NEW YORK CITY","NY","E-4",{"$f":"TRANSPOSE(H5954:H5954)","v":2685}]
["NEW YORK CITY","NY","E-5",{"$f":"TRANSPOSE(I5954:I5954)","v":2751}]
["NEW YORK CITY","NY","E-6",{"$f":"TRANSPOSE(J5954:J5954)","v":3036}]
["NEW YORK CITY","NY","E-7",{"$f":"TRANSPOSE(K5954:K5954)","v":3066}]
["NEW YORK CITY","NY","E-8",{"$f":"TRANSPOSE(L5954)","v":3099}]
["NEW YORK CITY","NY","E-9",{"$f":"TRANSPOSE(M5954)","v":3225}]
["NEW YORK CITY","NY","W-1",{"$f":"TRANSPOSE(N5954)","v":3039}]
["NEW YORK CITY","NY","W-2",{"$f":"TRANSPOSE(O5954)","v":3078}]
["NEW YORK CITY","NY","W-3",{"$f":"TRANSPOSE(P5954)","v":3117}]
["NEW YORK CITY","NY","W-4",{"$f":"TRANSPOSE(Q5954)","v":3267}]
["NEW YORK CITY","NY","W-5",{"$f":"TRANSPOSE(R5954)","v":3441}]
["NEW YORK CITY","NY","O-1E",{"$f":"TRANSPOSE(S5954)","v":3072}]
["NEW YORK CITY","NY","O-2E",{"$f":"TRANSPOSE(T5954)","v":3111}]
["NEW YORK CITY","NY","O-3E",{"$f":"TRANSPOSE(U5954)","v":3294}]
["NEW YORK CITY","NY","O-1",{"$f":"TRANSPOSE(V5954)","v":2784}]
["NEW YORK CITY","NY","O-2",{"$f":"TRANSPOSE(W5954)","v":3030}]
["NEW YORK CITY","NY","O-3",{"$f":"TRANSPOSE(X5954)","v":3117}]
["NEW YORK CITY","NY","O-4",{"$f":"TRANSPOSE(Y5954)","v":3510}]
["NEW YORK CITY","NY","O-5",{"$f":"TRANSPOSE(Z5954)","v":3792}]
["NEW YORK CITY","NY","O-6",{"$f":"TRANSPOSE(AA5954)","v":3831}]
["NEW YORK CITY","NY","O-7",{"$f":"TRANSPOSE(AB5954)","v":3870}]
["ROCHESTER","NY","E-1",{"$f":"TRANSPOSE(E5978:E5978)","v":1203},1203,1203,1203,1203,1344,1410,1437,1470,1554,1410,1452,1488,1578,1683,1443,1482,1593,1350,1407,1488,1722,1893,1911,1932]
["ROCHESTER","NY","E-2",{"$f":"TRANSPOSE(F5978:F5978)","v":1203}]
["ROCHESTER","NY","E-3",{"$f":"TRANSPOSE(G5978:G5978)","v":1203}]
["ROCHESTER","NY","E-4",{"$f":"TRANSPOSE(H5978:H5978)","v":1203}]
["ROCHESTER","NY","E-5",{"$f":"TRANSPOSE(I5978:I5978)","v":1344}]
["ROCHESTER","NY","E-6",{"$f":"TRANSPOSE(J5978:J5978)","v":1410}]
["ROCHESTER","NY","E-7",{"$f":"TRANSPOSE(K5978:K5978)","v":1437}]
["ROCHESTER","NY","E-8",{"$f":"TRANSPOSE(L5978)","v":1470}]
["ROCHESTER","NY","E-9",{"$f":"TRANSPOSE(M5978)","v":1554}]
["ROCHESTER","NY","W-1",{"$f":"TRANSPOSE(N5978)","v":1410}]
["ROCHESTER","NY","W-2",{"$f":"TRANSPOSE(O5978)","v":1452}]
["ROCHESTER","NY","W-3",{"$f":"TRANSPOSE(P5978)","v":1488}]
["ROCHESTER","NY","W-4",{"$f":"TRANSPOSE(Q5978)","v":1578}]
["ROCHESTER","NY","W-5",{"$f":"TRANSPOSE(R5978)","v":1683}]
["ROCHESTER","NY","O-1E",{"$f":"TRANSPOSE(S5978)","v":1443}]
["ROCHESTER","NY","O-2E",{"$f":"TRANSPOSE(T5978)","v":1482}]
["ROCHESTER","NY","O-3E",{"$f":"TRANSPOSE(U5978)","v":1593}]
["ROCHESTER","NY","O-1",{"$f":"TRANSPOSE(V5978)","v":1350}]
["ROCHESTER","NY","O-2",{"$f":"TRANSPOSE(W5978)","v":1407}]
["ROCHESTER","NY","O-3",{"$f":"TRANSPOSE(X5978)","v":1488}]
["ROCHESTER","NY","O-4",{"$f":"TRANSPOSE(Y5978)","v":1722}]
["ROCHESTER","NY","O-5",{"$f":"TRANSPOSE(Z5978)","v":1893}]
["ROCHESTER","NY","O-6",{"$f":"TRANSPOSE(AA5978)","v":1911}]
["ROCHESTER","NY","O-7",{"$f":"TRANSPOSE(AB5978)","v":1932}]
["ROME/GRIFFISS AFB","NY","E-1",{"$f":"TRANSPOSE(E6002:E6002)","v":999},999,999,999,999,1086,1194,1260,1335,1437,1194,1290,1383,1455,1545,1275,1368,1470,1098,1191,1377,1578,1719,1737,1752]
["ROME/GRIFFISS AFB","NY","E-2",{"$f":"TRANSPOSE(F6002:F6002)","v":999}]
["ROME/GRIFFISS AFB","NY","E-3",{"$f":"TRANSPOSE(G6002:G6002)","v":999}]
["ROME/GRIFFISS AFB","NY","E-4",{"$f":"TRANSPOSE(H6002:H6002)","v":999}]
["ROME/GRIFFISS AFB","NY","E-5",{"$f":"TRANSPOSE(I6002:I6002)","v":1086}]
["ROME/GRIFFISS AFB","NY","E-6",{"$f":"TRANSPOSE(J6002:J6002)","v":1194}]
["ROME/GRIFFISS AFB","NY","E-7",{"$f":"TRANSPOSE(K6002:K6002)","v":1260}]
["ROME/GRIFFISS AFB","NY","E-8",{"$f":"TRANSPOSE(L6002)","v":1335}]
["ROME/GRIFFISS AFB","NY","E-9",{"$f":"TRANSPOSE(M6002)","v":1437}]
["ROME/GRIFFISS AFB","NY","W-1",{"$f":"TRANSPOSE(N6002)","v":1194}]
["ROME/GRIFFISS AFB","NY","W-2",{"$f":"TRANSPOSE(O6002)","v":1290}]
["ROME/GRIFFISS AFB","NY","W-3",{"$f":"TRANSPOSE(P6002)","v":1383}]
["ROME/GRIFFISS AFB","NY","W-4",{"$f":"TRANSPOSE(Q6002)","v":1455}]
["ROME/GRIFFISS AFB","NY","W-5",{"$f":"TRANSPOSE(R6002)","v":1545}]
["ROME/GRIFFISS AFB","NY","O-1E",{"$f":"TRANSPOSE(S6002)","v":1275}]
["ROME/GRIFFISS AFB","NY","O-2E",{"$f":"TRANSPOSE(T6002)","v":1368}]
["ROME/GRIFFISS AFB","NY","O-3E",{"$f":"TRANSPOSE(U6002)","v":1470}]
["ROME/GRIFFISS AFB","NY","O-1",{"$f":"TRANSPOSE(V6002)","v":1098}]
["ROME/GRIFFISS AFB","NY","O-2",{"$f":"TRANSPOSE(W6002)","v":1191}]
["ROME/GRIFFISS AFB","NY","O-3",{"$f":"TRANSPOSE(X6002)","v":1377}]
["ROME/GRIFFISS AFB","NY","O-4",{"$f":"TRANSPOSE(Y6002)","v":1578}]
["ROME/GRIFFISS AFB","NY","O-5",{"$f":"TRANSPOSE(Z6002)","v":1719}]
["ROME/GRIFFISS AFB","NY","O-6",{"$f":"TRANSPOSE(AA6002)","v":1737}]
["ROME/GRIFFISS AFB","NY","O-7",{"$f":"TRANSPOSE(AB6002)","v":1752}]
["SYRACUSE","NY","E-1",{"$f":"TRANSPOSE(E6026:E6026)","v":966},966,966,966,966,1053,1299,1374,1455,1536,1302,1407,1506,1545,1593,1389,1491,1554,1080,1293,1503,1611,1689,1704,1722]
["SYRACUSE","NY","E-2",{"$f":"TRANSPOSE(F6026:F6026)","v":966}]
["SYRACUSE","NY","E-3",{"$f":"TRANSPOSE(G6026:G6026)","v":966}]
["SYRACUSE","NY","E-4",{"$f":"TRANSPOSE(H6026:H6026)","v":966}]
["SYRACUSE","NY","E-5",{"$f":"TRANSPOSE(I6026:I6026)","v":1053}]
["SYRACUSE","NY","E-6",{"$f":"TRANSPOSE(J6026:J6026)","v":1299}]
["SYRACUSE","NY","E-7",{"$f":"TRANSPOSE(K6026:K6026)","v":1374}]
["SYRACUSE","NY","E-8",{"$f":"TRANSPOSE(L6026)","v":1455}]
["SYRACUSE","NY","E-9",{"$f":"TRANSPOSE(M6026)","v":1536}]
["SYRACUSE","NY","W-1",{"$f":"TRANSPOSE(N6026)","v":1302}]
["SYRACUSE","NY","W-2",{"$f":"TRANSPOSE(O6026)","v":1407}]
["SYRACUSE","NY","W-3",{"$f":"TRANSPOSE(P6026)","v":1506}]
["SYRACUSE","NY","W-4",{"$f":"TRANSPOSE(Q6026)","v":1545}]
["SYRACUSE","NY","W-5",{"$f":"TRANSPOSE(R6026)","v":1593}]
["SYRACUSE","NY","O-1E",{"$f":"TRANSPOSE(S6026)","v":1389}]
["SYRACUSE","NY","O-2E",{"$f":"TRANSPOSE(T6026)","v":1491}]
["SYRACUSE","NY","O-3E",{"$f":"TRANSPOSE(U6026)","v":1554}]
["SYRACUSE","NY","O-1",{"$f":"TRANSPOSE(V6026)","v":1080}]
["SYRACUSE","NY","O-2",{"$f":"TRANSPOSE(W6026)","v":1293}]
["SYRACUSE","NY","O-3",{"$f":"TRANSPOSE(X6026)","v":1503}]
["SYRACUSE","NY","O-4",{"$f":"TRANSPOSE(Y6026)","v":1611}]
["SYRACUSE","NY","O-5",{"$f":"TRANSPOSE(Z6026)","v":1689}]
["SYRACUSE","NY","O-6",{"$f":"TRANSPOSE(AA6026)","v":1704}]
["SYRACUSE","NY","O-7",{"$f":"TRANSPOSE(AB6026)","v":1722}]
["FT.DRUM/WATERTOWN","NY","E-1",{"$f":"TRANSPOSE(E6050:E6050)","v":1245},1245,1245,1245,1245,1314,1473,1545,1623,1716,1476,1578,1674,1734,1803,1563,1659,1743,1332,1470,1668,1830,1944,1962,1983]
["FT.DRUM/WATERTOWN","NY","E-2",{"$f":"TRANSPOSE(F6050:F6050)","v":1245}]
["FT.DRUM/WATERTOWN","NY","E-3",{"$f":"TRANSPOSE(G6050:G6050)","v":1245}]
["FT.DRUM/WATERTOWN","NY","E-4",{"$f":"TRANSPOSE(H6050:H6050)","v":1245}]
["FT.DRUM/WATERTOWN","NY","E-5",{"$f":"TRANSPOSE(I6050:I6050)","v":1314}]
["FT.DRUM/WATERTOWN","NY","E-6",{"$f":"TRANSPOSE(J6050:J6050)","v":1473}]
["FT.DRUM/WATERTOWN","NY","E-7",{"$f":"TRANSPOSE(K6050:K6050)","v":1545}]
["FT.DRUM/WATERTOWN","NY","E-8",{"$f":"TRANSPOSE(L6050)","v":1623}]
["FT.DRUM/WATERTOWN","NY","E-9",{"$f":"TRANSPOSE(M6050)","v":1716}]
["FT.DRUM/WATERTOWN","NY","W-1",{"$f":"TRANSPOSE(N6050)","v":1476}]
["FT.DRUM/WATERTOWN","NY","W-2",{"$f":"TRANSPOSE(O6050)","v":1578}]
["FT.DRUM/WATERTOWN","NY","W-3",{"$f":"TRANSPOSE(P6050)","v":1674}]
["FT.DRUM/WATERTOWN","NY","W-4",{"$f":"TRANSPOSE(Q6050)","v":1734}]
["FT.DRUM/WATERTOWN","NY","W-5",{"$f":"TRANSPOSE(R6050)","v":1803}]
["FT.DRUM/WATERTOWN","NY","O-1E",{"$f":"TRANSPOSE(S6050)","v":1563}]
["FT.DRUM/WATERTOWN","NY","O-2E",{"$f":"TRANSPOSE(T6050)","v":1659}]
["FT.DRUM/WATERTOWN","NY","O-3E",{"$f":"TRANSPOSE(U6050)","v":1743}]
["FT.DRUM/WATERTOWN","NY","O-1",{"$f":"TRANSPOSE(V6050)","v":1332}]
["FT.DRUM/WATERTOWN","NY","O-2",{"$f":"TRANSPOSE(W6050)","v":1470}]
["FT.DRUM/WATERTOWN","NY","O-3",{"$f":"TRANSPOSE(X6050)","v":1668}]
["FT.DRUM/WATERTOWN","NY","O-4",{"$f":"TRANSPOSE(Y6050)","v":1830}]
["FT.DRUM/WATERTOWN","NY","O-5",{"$f":"TRANSPOSE(Z6050)","v":1944}]
["FT.DRUM/WATERTOWN","NY","O-6",{"$f":"TRANSPOSE(AA6050)","v":1962}]
["FT.DRUM/WATERTOWN","NY","O-7",{"$f":"TRANSPOSE(AB6050)","v":1983}]
["BINGHAMTON/ITHACA","NY","E-1",{"$f":"TRANSPOSE(E6074:E6074)","v":1116},1116,1116,1116,1116,1248,1623,1689,1764,1878,1623,1719,1809,1905,2019,1704,1797,1923,1290,1614,1806,2061,2244,2265,2289]
["BINGHAMTON/ITHACA","NY","E-2",{"$f":"TRANSPOSE(F6074:F6074)","v":1116}]
["BINGHAMTON/ITHACA","NY","E-3",{"$f":"TRANSPOSE(G6074:G6074)","v":1116}]
["BINGHAMTON/ITHACA","NY","E-4",{"$f":"TRANSPOSE(H6074:H6074)","v":1116}]
["BINGHAMTON/ITHACA","NY","E-5",{"$f":"TRANSPOSE(I6074:I6074)","v":1248}]
["BINGHAMTON/ITHACA","NY","E-6",{"$f":"TRANSPOSE(J6074:J6074)","v":1623}]
["BINGHAMTON/ITHACA","NY","E-7",{"$f":"TRANSPOSE(K6074:K6074)","v":1689}]
["BINGHAMTON/ITHACA","NY","E-8",{"$f":"TRANSPOSE(L6074)","v":1764}]
["BINGHAMTON/ITHACA","NY","E-9",{"$f":"TRANSPOSE(M6074)","v":1878}]
["BINGHAMTON/ITHACA","NY","W-1",{"$f":"TRANSPOSE(N6074)","v":1623}]
["BINGHAMTON/ITHACA","NY","W-2",{"$f":"TRANSPOSE(O6074)","v":1719}]
["BINGHAMTON/ITHACA","NY","W-3",{"$f":"TRANSPOSE(P6074)","v":1809}]
["BINGHAMTON/ITHACA","NY","W-4",{"$f":"TRANSPOSE(Q6074)","v":1905}]
["BINGHAMTON/ITHACA","NY","W-5",{"$f":"TRANSPOSE(R6074)","v":2019}]
["BINGHAMTON/ITHACA","NY","O-1E",{"$f":"TRANSPOSE(S6074)","v":1704}]
["BINGHAMTON/ITHACA","NY","O-2E",{"$f":"TRANSPOSE(T6074)","v":1797}]
["BINGHAMTON/ITHACA","NY","O-3E",{"$f":"TRANSPOSE(U6074)","v":1923}]
["BINGHAMTON/ITHACA","NY","O-1",{"$f":"TRANSPOSE(V6074)","v":1290}]
["BINGHAMTON/ITHACA","NY","O-2",{"$f":"TRANSPOSE(W6074)","v":1614}]
["BINGHAMTON/ITHACA","NY","O-3",{"$f":"TRANSPOSE(X6074)","v":1806}]
["BINGHAMTON/ITHACA","NY","O-4",{"$f":"TRANSPOSE(Y6074)","v":2061}]
["BINGHAMTON/ITHACA","NY","O-5",{"$f":"TRANSPOSE(Z6074)","v":2244}]
["BINGHAMTON/ITHACA","NY","O-6",{"$f":"TRANSPOSE(AA6074)","v":2265}]
["BINGHAMTON/ITHACA","NY","O-7",{"$f":"TRANSPOSE(AB6074)","v":2289}]
["WESTCHESTER COUNTY","NY","E-1",{"$f":"TRANSPOSE(E6098:E6098)","v":1917},1917,1917,1917,1917,2022,2625,2799,2985,3207,2631,2874,3105,3246,3414,2838,3072,3273,2088,2613,3096,3477,3747,3783,3822]
["WESTCHESTER COUNTY","NY","E-2",{"$f":"TRANSPOSE(F6098:F6098)","v":1917}]
["WESTCHESTER COUNTY","NY","E-3",{"$f":"TRANSPOSE(G6098:G6098)","v":1917}]
["WESTCHESTER COUNTY","NY","E-4",{"$f":"TRANSPOSE(H6098:H6098)","v":1917}]
["WESTCHESTER COUNTY","NY","E-5",{"$f":"TRANSPOSE(I6098:I6098)","v":2022}]
["WESTCHESTER COUNTY","NY","E-6",{"$f":"TRANSPOSE(J6098:J6098)","v":2625}]
["WESTCHESTER COUNTY","NY","E-7",{"$f":"TRANSPOSE(K6098:K6098)","v":2799}]
["WESTCHESTER COUNTY","NY","E-8",{"$f":"TRANSPOSE(L6098)","v":2985}]
["WESTCHESTER COUNTY","NY","E-9",{"$f":"TRANSPOSE(M6098)","v":3207}]
["WESTCHESTER COUNTY","NY","W-1",{"$f":"TRANSPOSE(N6098)","v":2631}]
["WESTCHESTER COUNTY","NY","W-2",{"$f":"TRANSPOSE(O6098)","v":2874}]
["WESTCHESTER COUNTY","NY","W-3",{"$f":"TRANSPOSE(P6098)","v":3105}]
["WESTCHESTER COUNTY","NY","W-4",{"$f":"TRANSPOSE(Q6098)","v":3246}]
["WESTCHESTER COUNTY","NY","W-5",{"$f":"TRANSPOSE(R6098)","v":3414}]
["WESTCHESTER COUNTY","NY","O-1E",{"$f":"TRANSPOSE(S6098)","v":2838}]
["WESTCHESTER COUNTY","NY","O-2E",{"$f":"TRANSPOSE(T6098)","v":3072}]
["WESTCHESTER COUNTY","NY","O-3E",{"$f":"TRANSPOSE(U6098)","v":3273}]
["WESTCHESTER COUNTY","NY","O-1",{"$f":"TRANSPOSE(V6098)","v":2088}]
["WESTCHESTER COUNTY","NY","O-2",{"$f":"TRANSPOSE(W6098)","v":2613}]
["WESTCHESTER COUNTY","NY","O-3",{"$f":"TRANSPOSE(X6098)","v":3096}]
["WESTCHESTER COUNTY","NY","O-4",{"$f":"TRANSPOSE(Y6098)","v":3477}]
["WESTCHESTER COUNTY","NY","O-5",{"$f":"TRANSPOSE(Z6098)","v":3747}]
["WESTCHESTER COUNTY","NY","O-6",{"$f":"TRANSPOSE(AA6098)","v":3783}]
["WESTCHESTER COUNTY","NY","O-7",{"$f":"TRANSPOSE(AB6098)","v":3822}]
["STATEN ISLAND","NY","E-1",{"$f":"TRANSPOSE(E6122:E6122)","v":1812},1812,1812,1812,1812,2034,2475,2502,2532,2616,2475,2514,2550,2640,2748,2508,2544,2658,2082,2466,2547,2790,2964,2994,3024]
["STATEN ISLAND","NY","E-2",{"$f":"TRANSPOSE(F6122:F6122)","v":1812}]
["STATEN ISLAND","NY","E-3",{"$f":"TRANSPOSE(G6122:G6122)","v":1812}]
["STATEN ISLAND","NY","E-4",{"$f":"TRANSPOSE(H6122:H6122)","v":1812}]
["STATEN ISLAND","NY","E-5",{"$f":"TRANSPOSE(I6122:I6122)","v":2034}]
["STATEN ISLAND","NY","E-6",{"$f":"TRANSPOSE(J6122:J6122)","v":2475}]
["STATEN ISLAND","NY","E-7",{"$f":"TRANSPOSE(K6122:K6122)","v":2502}]
["STATEN ISLAND","NY","E-8",{"$f":"TRANSPOSE(L6122)","v":2532}]
["STATEN ISLAND","NY","E-9",{"$f":"TRANSPOSE(M6122)","v":2616}]
["STATEN ISLAND","NY","W-1",{"$f":"TRANSPOSE(N6122)","v":2475}]
["STATEN ISLAND","NY","W-2",{"$f":"TRANSPOSE(O6122)","v":2514}]
["STATEN ISLAND","NY","W-3",{"$f":"TRANSPOSE(P6122)","v":2550}]
["STATEN ISLAND","NY","W-4",{"$f":"TRANSPOSE(Q6122)","v":2640}]
["STATEN ISLAND","NY","W-5",{"$f":"TRANSPOSE(R6122)","v":2748}]
["STATEN ISLAND","NY","O-1E",{"$f":"TRANSPOSE(S6122)","v":2508}]
["STATEN ISLAND","NY","O-2E",{"$f":"TRANSPOSE(T6122)","v":2544}]
["STATEN ISLAND","NY","O-3E",{"$f":"TRANSPOSE(U6122)","v":2658}]
["STATEN ISLAND","NY","O-1",{"$f":"TRANSPOSE(V6122)","v":2082}]
["STATEN ISLAND","NY","O-2",{"$f":"TRANSPOSE(W6122)","v":2466}]
["STATEN ISLAND","NY","O-3",{"$f":"TRANSPOSE(X6122)","v":2547}]
["STATEN ISLAND","NY","O-4",{"$f":"TRANSPOSE(Y6122)","v":2790}]
["STATEN ISLAND","NY","O-5",{"$f":"TRANSPOSE(Z6122)","v":2964}]
["STATEN ISLAND","NY","O-6",{"$f":"TRANSPOSE(AA6122)","v":2994}]
["STATEN ISLAND","NY","O-7",{"$f":"TRANSPOSE(AB6122)","v":3024}]
["POTSDAM","NY","E-1",{"$f":"TRANSPOSE(E6146:E6146)","v":873},873,873,873,873,924,1191,1215,1242,1296,1194,1227,1257,1311,1377,1221,1251,1323,954,1188,1257,1404,1509,1524,1539]
["POTSDAM","NY","E-2",{"$f":"TRANSPOSE(F6146:F6146)","v":873}]
["POTSDAM","NY","E-3",{"$f":"TRANSPOSE(G6146:G6146)","v":873}]
["POTSDAM","NY","E-4",{"$f":"TRANSPOSE(H6146:H6146)","v":873}]
["POTSDAM","NY","E-5",{"$f":"TRANSPOSE(I6146:I6146)","v":924}]
["POTSDAM","NY","E-6",{"$f":"TRANSPOSE(J6146:J6146)","v":1191}]
["POTSDAM","NY","E-7",{"$f":"TRANSPOSE(K6146:K6146)","v":1215}]
["POTSDAM","NY","E-8",{"$f":"TRANSPOSE(L6146)","v":1242}]
["POTSDAM","NY","E-9",{"$f":"TRANSPOSE(M6146)","v":1296}]
["POTSDAM","NY","W-1",{"$f":"TRANSPOSE(N6146)","v":1194}]
["POTSDAM","NY","W-2",{"$f":"TRANSPOSE(O6146)","v":1227}]
["POTSDAM","NY","W-3",{"$f":"TRANSPOSE(P6146)","v":1257}]
["POTSDAM","NY","W-4",{"$f":"TRANSPOSE(Q6146)","v":1311}]
["POTSDAM","NY","W-5",{"$f":"TRANSPOSE(R6146)","v":1377}]
["POTSDAM","NY","O-1E",{"$f":"TRANSPOSE(S6146)","v":1221}]
["POTSDAM","NY","O-2E",{"$f":"TRANSPOSE(T6146)","v":1251}]
["POTSDAM","NY","O-3E",{"$f":"TRANSPOSE(U6146)","v":1323}]
["POTSDAM","NY","O-1",{"$f":"TRANSPOSE(V6146)","v":954}]
["POTSDAM","NY","O-2",{"$f":"TRANSPOSE(W6146)","v":1188}]
["POTSDAM","NY","O-3",{"$f":"TRANSPOSE(X6146)","v":1257}]
["POTSDAM","NY","O-4",{"$f":"TRANSPOSE(Y6146)","v":1404}]
["POTSDAM","NY","O-5",{"$f":"TRANSPOSE(Z6146)","v":1509}]
["POTSDAM","NY","O-6",{"$f":"TRANSPOSE(AA6146)","v":1524}]
["POTSDAM","NY","O-7",{"$f":"TRANSPOSE(AB6146)","v":1539}]
["KINGSTON/SAUGERTIES","NY","E-1",{"$f":"TRANSPOSE(E6170:E6170)","v":1374},1374,1374,1374,1374,1482,1872,1905,1941,2037,1872,1920,1965,2064,2178,1914,1959,2082,1524,1863,1962,2223,2409,2433,2457]
["KINGSTON/SAUGERTIES","NY","E-2",{"$f":"TRANSPOSE(F6170:F6170)","v":1374}]
["KINGSTON/SAUGERTIES","NY","E-3",{"$f":"TRANSPOSE(G6170:G6170)","v":1374}]
["KINGSTON/SAUGERTIES","NY","E-4",{"$f":"TRANSPOSE(H6170:H6170)","v":1374}]
["KINGSTON/SAUGERTIES","NY","E-5",{"$f":"TRANSPOSE(I6170:I6170)","v":1482}]
["KINGSTON/SAUGERTIES","NY","E-6",{"$f":"TRANSPOSE(J6170:J6170)","v":1872}]
["KINGSTON/SAUGERTIES","NY","E-7",{"$f":"TRANSPOSE(K6170:K6170)","v":1905}]
["KINGSTON/SAUGERTIES","NY","E-8",{"$f":"TRANSPOSE(L6170)","v":1941}]
["KINGSTON/SAUGERTIES","NY","E-9",{"$f":"TRANSPOSE(M6170)","v":2037}]
["KINGSTON/SAUGERTIES","NY","W-1",{"$f":"TRANSPOSE(N6170)","v":1872}]
["KINGSTON/SAUGERTIES","NY","W-2",{"$f":"TRANSPOSE(O6170)","v":1920}]
["KINGSTON/SAUGERTIES","NY","W-3",{"$f":"TRANSPOSE(P6170)","v":1965}]
["KINGSTON/SAUGERTIES","NY","W-4",{"$f":"TRANSPOSE(Q6170)","v":2064}]
["KINGSTON/SAUGERTIES","NY","W-5",{"$f":"TRANSPOSE(R6170)","v":2178}]
["KINGSTON/SAUGERTIES","NY","O-1E",{"$f":"TRANSPOSE(S6170)","v":1914}]
["KINGSTON/SAUGERTIES","NY","O-2E",{"$f":"TRANSPOSE(T6170)","v":1959}]
["KINGSTON/SAUGERTIES","NY","O-3E",{"$f":"TRANSPOSE(U6170)","v":2082}]
["KINGSTON/SAUGERTIES","NY","O-1",{"$f":"TRANSPOSE(V6170)","v":1524}]
["KINGSTON/SAUGERTIES","NY","O-2",{"$f":"TRANSPOSE(W6170)","v":1863}]
["KINGSTON/SAUGERTIES","NY","O-3",{"$f":"TRANSPOSE(X6170)","v":1962}]
["KINGSTON/SAUGERTIES","NY","O-4",{"$f":"TRANSPOSE(Y6170)","v":2223}]
["KINGSTON/SAUGERTIES","NY","O-5",{"$f":"TRANSPOSE(Z6170)","v":2409}]
["KINGSTON/SAUGERTIES","NY","O-6",{"$f":"TRANSPOSE(AA6170)","v":2433}]
["KINGSTON/SAUGERTIES","NY","O-7",{"$f":"TRANSPOSE(AB6170)","v":2457}]
["AKRON","OH","E-1",{"$f":"TRANSPOSE(E6194:E6194)","v":954},954,954,954,954,1008,1125,1146,1170,1251,1128,1155,1185,1275,1380,1152,1179,1290,1020,1125,1182,1422,1593,1611,1626]
["AKRON","OH","E-2",{"$f":"TRANSPOSE(F6194:F6194)","v":954}]
["AKRON","OH","E-3",{"$f":"TRANSPOSE(G6194:G6194)","v":954}]
["AKRON","OH","E-4",{"$f":"TRANSPOSE(H6194:H6194)","v":954}]
["AKRON","OH","E-5",{"$f":"TRANSPOSE(I6194:I6194)","v":1008}]
["AKRON","OH","E-6",{"$f":"TRANSPOSE(J6194:J6194)","v":1125}]
["AKRON","OH","E-7",{"$f":"TRANSPOSE(K6194:K6194)","v":1146}]
["AKRON","OH","E-8",{"$f":"TRANSPOSE(L6194)","v":1170}]
["AKRON","OH","E-9",{"$f":"TRANSPOSE(M6194)","v":1251}]
["AKRON","OH","W-1",{"$f":"TRANSPOSE(N6194)","v":1128}]
["AKRON","OH","W-2",{"$f":"TRANSPOSE(O6194)","v":1155}]
["AKRON","OH","W-3",{"$f":"TRANSPOSE(P6194)","v":1185}]
["AKRON","OH","W-4",{"$f":"TRANSPOSE(Q6194)","v":1275}]
["AKRON","OH","W-5",{"$f":"TRANSPOSE(R6194)","v":1380}]
["AKRON","OH","O-1E",{"$f":"TRANSPOSE(S6194)","v":1152}]
["AKRON","OH","O-2E",{"$f":"TRANSPOSE(T6194)","v":1179}]
["AKRON","OH","O-3E",{"$f":"TRANSPOSE(U6194)","v":1290}]
["AKRON","OH","O-1",{"$f":"TRANSPOSE(V6194)","v":1020}]
["AKRON","OH","O-2",{"$f":"TRANSPOSE(W6194)","v":1125}]
["AKRON","OH","O-3",{"$f":"TRANSPOSE(X6194)","v":1182}]
["AKRON","OH","O-4",{"$f":"TRANSPOSE(Y6194)","v":1422}]
["AKRON","OH","O-5",{"$f":"TRANSPOSE(Z6194)","v":1593}]
["AKRON","OH","O-6",{"$f":"TRANSPOSE(AA6194)","v":1611}]
["AKRON","OH","O-7",{"$f":"TRANSPOSE(AB6194)","v":1626}]
["CINCINNATI","OH","E-1",{"$f":"TRANSPOSE(E6218:E6218)","v":1236},1236,1236,1236,1236,1320,1386,1440,1497,1578,1389,1464,1533,1593,1668,1452,1524,1605,1329,1386,1530,1695,1812,1830,1848]
["CINCINNATI","OH","E-2",{"$f":"TRANSPOSE(F6218:F6218)","v":1236}]
["CINCINNATI","OH","E-3",{"$f":"TRANSPOSE(G6218:G6218)","v":1236}]
["CINCINNATI","OH","E-4",{"$f":"TRANSPOSE(H6218:H6218)","v":1236}]
["CINCINNATI","OH","E-5",{"$f":"TRANSPOSE(I6218:I6218)","v":1320}]
["CINCINNATI","OH","E-6",{"$f":"TRANSPOSE(J6218:J6218)","v":1386}]
["CINCINNATI","OH","E-7",{"$f":"TRANSPOSE(K6218:K6218)","v":1440}]
["CINCINNATI","OH","E-8",{"$f":"TRANSPOSE(L6218)","v":1497}]
["CINCINNATI","OH","E-9",{"$f":"TRANSPOSE(M6218)","v":1578}]
["CINCINNATI","OH","W-1",{"$f":"TRANSPOSE(N6218)","v":1389}]
["CINCINNATI","OH","W-2",{"$f":"TRANSPOSE(O6218)","v":1464}]
["CINCINNATI","OH","W-3",{"$f":"TRANSPOSE(P6218)","v":1533}]
["CINCINNATI","OH","W-4",{"$f":"TRANSPOSE(Q6218)","v":1593}]
["CINCINNATI","OH","W-5",{"$f":"TRANSPOSE(R6218)","v":1668}]
["CINCINNATI","OH","O-1E",{"$f":"TRANSPOSE(S6218)","v":1452}]
["CINCINNATI","OH","O-2E",{"$f":"TRANSPOSE(T6218)","v":1524}]
["CINCINNATI","OH","O-3E",{"$f":"TRANSPOSE(U6218)","v":1605}]
["CINCINNATI","OH","O-1",{"$f":"TRANSPOSE(V6218)","v":1329}]
["CINCINNATI","OH","O-2",{"$f":"TRANSPOSE(W6218)","v":1386}]
["CINCINNATI","OH","O-3",{"$f":"TRANSPOSE(X6218)","v":1530}]
["CINCINNATI","OH","O-4",{"$f":"TRANSPOSE(Y6218)","v":1695}]
["CINCINNATI","OH","O-5",{"$f":"TRANSPOSE(Z6218)","v":1812}]
["CINCINNATI","OH","O-6",{"$f":"TRANSPOSE(AA6218)","v":1830}]
["CINCINNATI","OH","O-7",{"$f":"TRANSPOSE(AB6218)","v":1848}]
["CLEVELAND","OH","E-1",{"$f":"TRANSPOSE(E6242:E6242)","v":1026},1026,1026,1026,1026,1086,1188,1278,1377,1470,1191,1317,1437,1482,1536,1299,1422,1491,1095,1188,1434,1554,1641,1656,1674]
["CLEVELAND","OH","E-2",{"$f":"TRANSPOSE(F6242:F6242)","v":1026}]
["CLEVELAND","OH","E-3",{"$f":"TRANSPOSE(G6242:G6242)","v":1026}]
["CLEVELAND","OH","E-4",{"$f":"TRANSPOSE(H6242:H6242)","v":1026}]
["CLEVELAND","OH","E-5",{"$f":"TRANSPOSE(I6242:I6242)","v":1086}]
["CLEVELAND","OH","E-6",{"$f":"TRANSPOSE(J6242:J6242)","v":1188}]
["CLEVELAND","OH","E-7",{"$f":"TRANSPOSE(K6242:K6242)","v":1278}]
["CLEVELAND","OH","E-8",{"$f":"TRANSPOSE(L6242)","v":1377}]
["CLEVELAND","OH","E-9",{"$f":"TRANSPOSE(M6242)","v":1470}]
["CLEVELAND","OH","W-1",{"$f":"TRANSPOSE(N6242)","v":1191}]
["CLEVELAND","OH","W-2",{"$f":"TRANSPOSE(O6242)","v":1317}]
["CLEVELAND","OH","W-3",{"$f":"TRANSPOSE(P6242)","v":1437}]
["CLEVELAND","OH","W-4",{"$f":"TRANSPOSE(Q6242)","v":1482}]
["CLEVELAND","OH","W-5",{"$f":"TRANSPOSE(R6242)","v":1536}]
["CLEVELAND","OH","O-1E",{"$f":"TRANSPOSE(S6242)","v":1299}]
["CLEVELAND","OH","O-2E",{"$f":"TRANSPOSE(T6242)","v":1422}]
["CLEVELAND","OH","O-3E",{"$f":"TRANSPOSE(U6242)","v":1491}]
["CLEVELAND","OH","O-1",{"$f":"TRANSPOSE(V6242)","v":1095}]
["CLEVELAND","OH","O-2",{"$f":"TRANSPOSE(W6242)","v":1188}]
["CLEVELAND","OH","O-3",{"$f":"TRANSPOSE(X6242)","v":1434}]
["CLEVELAND","OH","O-4",{"$f":"TRANSPOSE(Y6242)","v":1554}]
["CLEVELAND","OH","O-5",{"$f":"TRANSPOSE(Z6242)","v":1641}]
["CLEVELAND","OH","O-6",{"$f":"TRANSPOSE(AA6242)","v":1656}]
["CLEVELAND","OH","O-7",{"$f":"TRANSPOSE(AB6242)","v":1674}]
["COLUMBUS","OH","E-1",{"$f":"TRANSPOSE(E6266:E6266)","v":981},981,981,981,981,1041,1215,1266,1323,1446,1215,1290,1356,1479,1626,1278,1347,1503,1059,1212,1353,1680,1914,1935,1953]
["COLUMBUS","OH","E-2",{"$f":"TRANSPOSE(F6266:F6266)","v":981}]
["COLUMBUS","OH","E-3",{"$f":"TRANSPOSE(G6266:G6266)","v":981}]
["COLUMBUS","OH","E-4",{"$f":"TRANSPOSE(H6266:H6266)","v":981}]
["COLUMBUS","OH","E-5",{"$f":"TRANSPOSE(I6266:I6266)","v":1041}]
["COLUMBUS","OH","E-6",{"$f":"TRANSPOSE(J6266:J6266)","v":1215}]
["COLUMBUS","OH","E-7",{"$f":"TRANSPOSE(K6266:K6266)","v":1266}]
["COLUMBUS","OH","E-8",{"$f":"TRANSPOSE(L6266)","v":1323}]
["COLUMBUS","OH","E-9",{"$f":"TRANSPOSE(M6266)","v":1446}]
["COLUMBUS","OH","W-1",{"$f":"TRANSPOSE(N6266)","v":1215}]
["COLUMBUS","OH","W-2",{"$f":"TRANSPOSE(O6266)","v":1290}]
["COLUMBUS","OH","W-3",{"$f":"TRANSPOSE(P6266)","v":1356}]
["COLUMBUS","OH","W-4",{"$f":"TRANSPOSE(Q6266)","v":1479}]
["COLUMBUS","OH","W-5",{"$f":"TRANSPOSE(R6266)","v":1626}]
["COLUMBUS","OH","O-1E",{"$f":"TRANSPOSE(S6266)","v":1278}]
["COLUMBUS","OH","O-2E",{"$f":"TRANSPOSE(T6266)","v":1347}]
["COLUMBUS","OH","O-3E",{"$f":"TRANSPOSE(U6266)","v":1503}]
["COLUMBUS","OH","O-1",{"$f":"TRANSPOSE(V6266)","v":1059}]
["COLUMBUS","OH","O-2",{"$f":"TRANSPOSE(W6266)","v":1212}]
["COLUMBUS","OH","O-3",{"$f":"TRANSPOSE(X6266)","v":1353}]
["COLUMBUS","OH","O-4",{"$f":"TRANSPOSE(Y6266)","v":1680}]
["COLUMBUS","OH","O-5",{"$f":"TRANSPOSE(Z6266)","v":1914}]
["COLUMBUS","OH","O-6",{"$f":"TRANSPOSE(AA6266)","v":1935}]
["COLUMBUS","OH","O-7",{"$f":"TRANSPOSE(AB6266)","v":1953}]
["WRIGHT-PATTERSON AFB","OH","E-1",{"$f":"TRANSPOSE(E6290:E6290)","v":921},921,921,921,921,981,1236,1341,1455,1575,1239,1386,1527,1590,1668,1365,1506,1602,1008,1230,1521,1695,1818,1836,1854]
["WRIGHT-PATTERSON AFB","OH","E-2",{"$f":"TRANSPOSE(F6290:F6290)","v":921}]
["WRIGHT-PATTERSON AFB","OH","E-3",{"$f":"TRANSPOSE(G6290:G6290)","v":921}]
["WRIGHT-PATTERSON AFB","OH","E-4",{"$f":"TRANSPOSE(H6290:H6290)","v":921}]
["WRIGHT-PATTERSON AFB","OH","E-5",{"$f":"TRANSPOSE(I6290:I6290)","v":981}]
["WRIGHT-PATTERSON AFB","OH","E-6",{"$f":"TRANSPOSE(J6290:J6290)","v":1236}]
["WRIGHT-PATTERSON AFB","OH","E-7",{"$f":"TRANSPOSE(K6290:K6290)","v":1341}]
["WRIGHT-PATTERSON AFB","OH","E-8",{"$f":"TRANSPOSE(L6290)","v":1455}]
["WRIGHT-PATTERSON AFB","OH","E-9",{"$f":"TRANSPOSE(M6290)","v":1575}]
["WRIGHT-PATTERSON AFB","OH","W-1",{"$f":"TRANSPOSE(N6290)","v":1239}]
["WRIGHT-PATTERSON AFB","OH","W-2",{"$f":"TRANSPOSE(O6290)","v":1386}]
["WRIGHT-PATTERSON AFB","OH","W-3",{"$f":"TRANSPOSE(P6290)","v":1527}]
["WRIGHT-PATTERSON AFB","OH","W-4",{"$f":"TRANSPOSE(Q6290)","v":1590}]
["WRIGHT-PATTERSON AFB","OH","W-5",{"$f":"TRANSPOSE(R6290)","v":1668}]
["WRIGHT-PATTERSON AFB","OH","O-1E",{"$f":"TRANSPOSE(S6290)","v":1365}]
["WRIGHT-PATTERSON AFB","OH","O-2E",{"$f":"TRANSPOSE(T6290)","v":1506}]
["WRIGHT-PATTERSON AFB","OH","O-3E",{"$f":"TRANSPOSE(U6290)","v":1602}]
["WRIGHT-PATTERSON AFB","OH","O-1",{"$f":"TRANSPOSE(V6290)","v":1008}]
["WRIGHT-PATTERSON AFB","OH","O-2",{"$f":"TRANSPOSE(W6290)","v":1230}]
["WRIGHT-PATTERSON AFB","OH","O-3",{"$f":"TRANSPOSE(X6290)","v":1521}]
["WRIGHT-PATTERSON AFB","OH","O-4",{"$f":"TRANSPOSE(Y6290)","v":1695}]
["WRIGHT-PATTERSON AFB","OH","O-5",{"$f":"TRANSPOSE(Z6290)","v":1818}]
["WRIGHT-PATTERSON AFB","OH","O-6",{"$f":"TRANSPOSE(AA6290)","v":1836}]
["WRIGHT-PATTERSON AFB","OH","O-7",{"$f":"TRANSPOSE(AB6290)","v":1854}]
["TOLEDO","OH","E-1",{"$f":"TRANSPOSE(E6314:E6314)","v":975},975,975,975,975,1089,1182,1221,1263,1356,1182,1236,1287,1383,1494,1230,1281,1401,1101,1179,1287,1536,1719,1734,1752]
["TOLEDO","OH","E-2",{"$f":"TRANSPOSE(F6314:F6314)","v":975}]
["TOLEDO","OH","E-3",{"$f":"TRANSPOSE(G6314:G6314)","v":975}]
["TOLEDO","OH","E-4",{"$f":"TRANSPOSE(H6314:H6314)","v":975}]
["TOLEDO","OH","E-5",{"$f":"TRANSPOSE(I6314:I6314)","v":1089}]
["TOLEDO","OH","E-6",{"$f":"TRANSPOSE(J6314:J6314)","v":1182}]
["TOLEDO","OH","E-7",{"$f":"TRANSPOSE(K6314:K6314)","v":1221}]
["TOLEDO","OH","E-8",{"$f":"TRANSPOSE(L6314)","v":1263}]
["TOLEDO","OH","E-9",{"$f":"TRANSPOSE(M6314)","v":1356}]
["TOLEDO","OH","W-1",{"$f":"TRANSPOSE(N6314)","v":1182}]
["TOLEDO","OH","W-2",{"$f":"TRANSPOSE(O6314)","v":1236}]
["TOLEDO","OH","W-3",{"$f":"TRANSPOSE(P6314)","v":1287}]
["TOLEDO","OH","W-4",{"$f":"TRANSPOSE(Q6314)","v":1383}]
["TOLEDO","OH","W-5",{"$f":"TRANSPOSE(R6314)","v":1494}]
["TOLEDO","OH","O-1E",{"$f":"TRANSPOSE(S6314)","v":1230}]
["TOLEDO","OH","O-2E",{"$f":"TRANSPOSE(T6314)","v":1281}]
["TOLEDO","OH","O-3E",{"$f":"TRANSPOSE(U6314)","v":1401}]
["TOLEDO","OH","O-1",{"$f":"TRANSPOSE(V6314)","v":1101}]
["TOLEDO","OH","O-2",{"$f":"TRANSPOSE(W6314)","v":1179}]
["TOLEDO","OH","O-3",{"$f":"TRANSPOSE(X6314)","v":1287}]
["TOLEDO","OH","O-4",{"$f":"TRANSPOSE(Y6314)","v":1536}]
["TOLEDO","OH","O-5",{"$f":"TRANSPOSE(Z6314)","v":1719}]
["TOLEDO","OH","O-6",{"$f":"TRANSPOSE(AA6314)","v":1734}]
["TOLEDO","OH","O-7",{"$f":"TRANSPOSE(AB6314)","v":1752}]
["YOUNGSTOWN","OH","E-1",{"$f":"TRANSPOSE(E6338:E6338)","v":813},813,813,813,813,885,951,987,1026,1080,951,1002,1050,1092,1140,993,1044,1098,891,948,1047,1158,1239,1251,1263]
["YOUNGSTOWN","OH","E-2",{"$f":"TRANSPOSE(F6338:F6338)","v":813}]
["YOUNGSTOWN","OH","E-3",{"$f":"TRANSPOSE(G6338:G6338)","v":813}]
["YOUNGSTOWN","OH","E-4",{"$f":"TRANSPOSE(H6338:H6338)","v":813}]
["YOUNGSTOWN","OH","E-5",{"$f":"TRANSPOSE(I6338:I6338)","v":885}]
["YOUNGSTOWN","OH","E-6",{"$f":"TRANSPOSE(J6338:J6338)","v":951}]
["YOUNGSTOWN","OH","E-7",{"$f":"TRANSPOSE(K6338:K6338)","v":987}]
["YOUNGSTOWN","OH","E-8",{"$f":"TRANSPOSE(L6338)","v":1026}]
["YOUNGSTOWN","OH","E-9",{"$f":"TRANSPOSE(M6338)","v":1080}]
["YOUNGSTOWN","OH","W-1",{"$f":"TRANSPOSE(N6338)","v":951}]
["YOUNGSTOWN","OH","W-2",{"$f":"TRANSPOSE(O6338)","v":1002}]
["YOUNGSTOWN","OH","W-3",{"$f":"TRANSPOSE(P6338)","v":1050}]
["YOUNGSTOWN","OH","W-4",{"$f":"TRANSPOSE(Q6338)","v":1092}]
["YOUNGSTOWN","OH","W-5",{"$f":"TRANSPOSE(R6338)","v":1140}]
["YOUNGSTOWN","OH","O-1E",{"$f":"TRANSPOSE(S6338)","v":993}]
["YOUNGSTOWN","OH","O-2E",{"$f":"TRANSPOSE(T6338)","v":1044}]
["YOUNGSTOWN","OH","O-3E",{"$f":"TRANSPOSE(U6338)","v":1098}]
["YOUNGSTOWN","OH","O-1",{"$f":"TRANSPOSE(V6338)","v":891}]
["YOUNGSTOWN","OH","O-2",{"$f":"TRANSPOSE(W6338)","v":948}]
["YOUNGSTOWN","OH","O-3",{"$f":"TRANSPOSE(X6338)","v":1047}]
["YOUNGSTOWN","OH","O-4",{"$f":"TRANSPOSE(Y6338)","v":1158}]
["YOUNGSTOWN","OH","O-5",{"$f":"TRANSPOSE(Z6338)","v":1239}]
["YOUNGSTOWN","OH","O-6",{"$f":"TRANSPOSE(AA6338)","v":1251}]
["YOUNGSTOWN","OH","O-7",{"$f":"TRANSPOSE(AB6338)","v":1263}]
["MANSFIELD","OH","E-1",{"$f":"TRANSPOSE(E6362:E6362)","v":756},756,756,756,756,801,960,999,1044,1107,960,1017,1071,1122,1182,1008,1062,1131,819,957,1068,1206,1305,1317,1329]
["MANSFIELD","OH","E-2",{"$f":"TRANSPOSE(F6362:F6362)","v":756}]
["MANSFIELD","OH","E-3",{"$f":"TRANSPOSE(G6362:G6362)","v":756}]
["MANSFIELD","OH","E-4",{"$f":"TRANSPOSE(H6362:H6362)","v":756}]
["MANSFIELD","OH","E-5",{"$f":"TRANSPOSE(I6362:I6362)","v":801}]
["MANSFIELD","OH","E-6",{"$f":"TRANSPOSE(J6362:J6362)","v":960}]
["MANSFIELD","OH","E-7",{"$f":"TRANSPOSE(K6362:K6362)","v":999}]
["MANSFIELD","OH","E-8",{"$f":"TRANSPOSE(L6362)","v":1044}]
["MANSFIELD","OH","E-9",{"$f":"TRANSPOSE(M6362)","v":1107}]
["MANSFIELD","OH","W-1",{"$f":"TRANSPOSE(N6362)","v":960}]
["MANSFIELD","OH","W-2",{"$f":"TRANSPOSE(O6362)","v":1017}]
["MANSFIELD","OH","W-3",{"$f":"TRANSPOSE(P6362)","v":1071}]
["MANSFIELD","OH","W-4",{"$f":"TRANSPOSE(Q6362)","v":1122}]
["MANSFIELD","OH","W-5",{"$f":"TRANSPOSE(R6362)","v":1182}]
["MANSFIELD","OH","O-1E",{"$f":"TRANSPOSE(S6362)","v":1008}]
["MANSFIELD","OH","O-2E",{"$f":"TRANSPOSE(T6362)","v":1062}]
["MANSFIELD","OH","O-3E",{"$f":"TRANSPOSE(U6362)","v":1131}]
["MANSFIELD","OH","O-1",{"$f":"TRANSPOSE(V6362)","v":819}]
["MANSFIELD","OH","O-2",{"$f":"TRANSPOSE(W6362)","v":957}]
["MANSFIELD","OH","O-3",{"$f":"TRANSPOSE(X6362)","v":1068}]
["MANSFIELD","OH","O-4",{"$f":"TRANSPOSE(Y6362)","v":1206}]
["MANSFIELD","OH","O-5",{"$f":"TRANSPOSE(Z6362)","v":1305}]
["MANSFIELD","OH","O-6",{"$f":"TRANSPOSE(AA6362)","v":1317}]
["MANSFIELD","OH","O-7",{"$f":"TRANSPOSE(AB6362)","v":1329}]
["LIMA","OH","E-1",{"$f":"TRANSPOSE(E6386:E6386)","v":840},840,840,840,840,906,1017,1023,1032,1065,1017,1029,1038,1074,1116,1026,1038,1080,918,1014,1038,1131,1200,1212,1224]
["LIMA","OH","E-2",{"$f":"TRANSPOSE(F6386:F6386)","v":840}]
["LIMA","OH","E-3",{"$f":"TRANSPOSE(G6386:G6386)","v":840}]
["LIMA","OH","E-4",{"$f":"TRANSPOSE(H6386:H6386)","v":840}]
["LIMA","OH","E-5",{"$f":"TRANSPOSE(I6386:I6386)","v":906}]
["LIMA","OH","E-6",{"$f":"TRANSPOSE(J6386:J6386)","v":1017}]
["LIMA","OH","E-7",{"$f":"TRANSPOSE(K6386:K6386)","v":1023}]
["LIMA","OH","E-8",{"$f":"TRANSPOSE(L6386)","v":1032}]
["LIMA","OH","E-9",{"$f":"TRANSPOSE(M6386)","v":1065}]
["LIMA","OH","W-1",{"$f":"TRANSPOSE(N6386)","v":1017}]
["LIMA","OH","W-2",{"$f":"TRANSPOSE(O6386)","v":1029}]
["LIMA","OH","W-3",{"$f":"TRANSPOSE(P6386)","v":1038}]
["LIMA","OH","W-4",{"$f":"TRANSPOSE(Q6386)","v":1074}]
["LIMA","OH","W-5",{"$f":"TRANSPOSE(R6386)","v":1116}]
["LIMA","OH","O-1E",{"$f":"TRANSPOSE(S6386)","v":1026}]
["LIMA","OH","O-2E",{"$f":"TRANSPOSE(T6386)","v":1038}]
["LIMA","OH","O-3E",{"$f":"TRANSPOSE(U6386)","v":1080}]
["LIMA","OH","O-1",{"$f":"TRANSPOSE(V6386)","v":918}]
["LIMA","OH","O-2",{"$f":"TRANSPOSE(W6386)","v":1014}]
["LIMA","OH","O-3",{"$f":"TRANSPOSE(X6386)","v":1038}]
["LIMA","OH","O-4",{"$f":"TRANSPOSE(Y6386)","v":1131}]
["LIMA","OH","O-5",{"$f":"TRANSPOSE(Z6386)","v":1200}]
["LIMA","OH","O-6",{"$f":"TRANSPOSE(AA6386)","v":1212}]
["LIMA","OH","O-7",{"$f":"TRANSPOSE(AB6386)","v":1224}]
["ALTUS AFB","OK","E-1",{"$f":"TRANSPOSE(E6410:E6410)","v":801},801,801,801,801,915,1134,1152,1173,1224,1134,1161,1185,1236,1296,1158,1182,1245,939,1131,1185,1320,1416,1431,1446]
["ALTUS AFB","OK","E-2",{"$f":"TRANSPOSE(F6410:F6410)","v":801}]
["ALTUS AFB","OK","E-3",{"$f":"TRANSPOSE(G6410:G6410)","v":801}]
["ALTUS AFB","OK","E-4",{"$f":"TRANSPOSE(H6410:H6410)","v":801}]
["ALTUS AFB","OK","E-5",{"$f":"TRANSPOSE(I6410:I6410)","v":915}]
["ALTUS AFB","OK","E-6",{"$f":"TRANSPOSE(J6410:J6410)","v":1134}]
["ALTUS AFB","OK","E-7",{"$f":"TRANSPOSE(K6410:K6410)","v":1152}]
["ALTUS AFB","OK","E-8",{"$f":"TRANSPOSE(L6410)","v":1173}]
["ALTUS AFB","OK","E-9",{"$f":"TRANSPOSE(M6410)","v":1224}]
["ALTUS AFB","OK","W-1",{"$f":"TRANSPOSE(N6410)","v":1134}]
["ALTUS AFB","OK","W-2",{"$f":"TRANSPOSE(O6410)","v":1161}]
["ALTUS AFB","OK","W-3",{"$f":"TRANSPOSE(P6410)","v":1185}]
["ALTUS AFB","OK","W-4",{"$f":"TRANSPOSE(Q6410)","v":1236}]
["ALTUS AFB","OK","W-5",{"$f":"TRANSPOSE(R6410)","v":1296}]
["ALTUS AFB","OK","O-1E",{"$f":"TRANSPOSE(S6410)","v":1158}]
["ALTUS AFB","OK","O-2E",{"$f":"TRANSPOSE(T6410)","v":1182}]
["ALTUS AFB","OK","O-3E",{"$f":"TRANSPOSE(U6410)","v":1245}]
["ALTUS AFB","OK","O-1",{"$f":"TRANSPOSE(V6410)","v":939}]
["ALTUS AFB","OK","O-2",{"$f":"TRANSPOSE(W6410)","v":1131}]
["ALTUS AFB","OK","O-3",{"$f":"TRANSPOSE(X6410)","v":1185}]
["ALTUS AFB","OK","O-4",{"$f":"TRANSPOSE(Y6410)","v":1320}]
["ALTUS AFB","OK","O-5",{"$f":"TRANSPOSE(Z6410)","v":1416}]
["ALTUS AFB","OK","O-6",{"$f":"TRANSPOSE(AA6410)","v":1431}]
["ALTUS AFB","OK","O-7",{"$f":"TRANSPOSE(AB6410)","v":1446}]
["VANCE AFB/ENID","OK","E-1",{"$f":"TRANSPOSE(E6434:E6434)","v":855},855,855,855,855,915,1032,1092,1158,1266,1035,1119,1200,1290,1398,1107,1188,1308,927,1029,1197,1437,1611,1626,1644]
["VANCE AFB/ENID","OK","E-2",{"$f":"TRANSPOSE(F6434:F6434)","v":855}]
["VANCE AFB/ENID","OK","E-3",{"$f":"TRANSPOSE(G6434:G6434)","v":855}]
["VANCE AFB/ENID","OK","E-4",{"$f":"TRANSPOSE(H6434:H6434)","v":855}]
["VANCE AFB/ENID","OK","E-5",{"$f":"TRANSPOSE(I6434:I6434)","v":915}]
["VANCE AFB/ENID","OK","E-6",{"$f":"TRANSPOSE(J6434:J6434)","v":1032}]
["VANCE AFB/ENID","OK","E-7",{"$f":"TRANSPOSE(K6434:K6434)","v":1092}]
["VANCE AFB/ENID","OK","E-8",{"$f":"TRANSPOSE(L6434)","v":1158}]
["VANCE AFB/ENID","OK","E-9",{"$f":"TRANSPOSE(M6434)","v":1266}]
["VANCE AFB/ENID","OK","W-1",{"$f":"TRANSPOSE(N6434)","v":1035}]
["VANCE AFB/ENID","OK","W-2",{"$f":"TRANSPOSE(O6434)","v":1119}]
["VANCE AFB/ENID","OK","W-3",{"$f":"TRANSPOSE(P6434)","v":1200}]
["VANCE AFB/ENID","OK","W-4",{"$f":"TRANSPOSE(Q6434)","v":1290}]
["VANCE AFB/ENID","OK","W-5",{"$f":"TRANSPOSE(R6434)","v":1398}]
["VANCE AFB/ENID","OK","O-1E",{"$f":"TRANSPOSE(S6434)","v":1107}]
["VANCE AFB/ENID","OK","O-2E",{"$f":"TRANSPOSE(T6434)","v":1188}]
["VANCE AFB/ENID","OK","O-3E",{"$f":"TRANSPOSE(U6434)","v":1308}]
["VANCE AFB/ENID","OK","O-1",{"$f":"TRANSPOSE(V6434)","v":927}]
["VANCE AFB/ENID","OK","O-2",{"$f":"TRANSPOSE(W6434)","v":1029}]
["VANCE AFB/ENID","OK","O-3",{"$f":"TRANSPOSE(X6434)","v":1197}]
["VANCE AFB/ENID","OK","O-4",{"$f":"TRANSPOSE(Y6434)","v":1437}]
["VANCE AFB/ENID","OK","O-5",{"$f":"TRANSPOSE(Z6434)","v":1611}]
["VANCE AFB/ENID","OK","O-6",{"$f":"TRANSPOSE(AA6434)","v":1626}]
["VANCE AFB/ENID","OK","O-7",{"$f":"TRANSPOSE(AB6434)","v":1644}]
["FORT SILL/LAWTON","OK","E-1",{"$f":"TRANSPOSE(E6458:E6458)","v":861},861,861,861,861,966,1110,1182,1257,1344,1113,1212,1305,1359,1425,1197,1293,1371,981,1107,1302,1449,1551,1569,1584]
["FORT SILL/LAWTON","OK","E-2",{"$f":"TRANSPOSE(F6458:F6458)","v":861}]
["FORT SILL/LAWTON","OK","E-3",{"$f":"TRANSPOSE(G6458:G6458)","v":861}]
["FORT SILL/LAWTON","OK","E-4",{"$f":"TRANSPOSE(H6458:H6458)","v":861}]
["FORT SILL/LAWTON","OK","E-5",{"$f":"TRANSPOSE(I6458:I6458)","v":966}]
["FORT SILL/LAWTON","OK","E-6",{"$f":"TRANSPOSE(J6458:J6458)","v":1110}]
["FORT SILL/LAWTON","OK","E-7",{"$f":"TRANSPOSE(K6458:K6458)","v":1182}]
["FORT SILL/LAWTON","OK","E-8",{"$f":"TRANSPOSE(L6458)","v":1257}]
["FORT SILL/LAWTON","OK","E-9",{"$f":"TRANSPOSE(M6458)","v":1344}]
["FORT SILL/LAWTON","OK","W-1",{"$f":"TRANSPOSE(N6458)","v":1113}]
["FORT SILL/LAWTON","OK","W-2",{"$f":"TRANSPOSE(O6458)","v":1212}]
["FORT SILL/LAWTON","OK","W-3",{"$f":"TRANSPOSE(P6458)","v":1305}]
["FORT SILL/LAWTON","OK","W-4",{"$f":"TRANSPOSE(Q6458)","v":1359}]
["FORT SILL/LAWTON","OK","W-5",{"$f":"TRANSPOSE(R6458)","v":1425}]
["FORT SILL/LAWTON","OK","O-1E",{"$f":"TRANSPOSE(S6458)","v":1197}]
["FORT SILL/LAWTON","OK","O-2E",{"$f":"TRANSPOSE(T6458)","v":1293}]
["FORT SILL/LAWTON","OK","O-3E",{"$f":"TRANSPOSE(U6458)","v":1371}]
["FORT SILL/LAWTON","OK","O-1",{"$f":"TRANSPOSE(V6458)","v":981}]
["FORT SILL/LAWTON","OK","O-2",{"$f":"TRANSPOSE(W6458)","v":1107}]
["FORT SILL/LAWTON","OK","O-3",{"$f":"TRANSPOSE(X6458)","v":1302}]
["FORT SILL/LAWTON","OK","O-4",{"$f":"TRANSPOSE(Y6458)","v":1449}]
["FORT SILL/LAWTON","OK","O-5",{"$f":"TRANSPOSE(Z6458)","v":1551}]
["FORT SILL/LAWTON","OK","O-6",{"$f":"TRANSPOSE(AA6458)","v":1569}]
["FORT SILL/LAWTON","OK","O-7",{"$f":"TRANSPOSE(AB6458)","v":1584}]
["OKLAHOMA CITY","OK","E-1",{"$f":"TRANSPOSE(E6482:E6482)","v":861},861,861,861,861,918,1173,1203,1236,1305,1173,1218,1257,1323,1401,1209,1251,1335,948,1167,1257,1431,1554,1569,1584]
["OKLAHOMA CITY","OK","E-2",{"$f":"TRANSPOSE(F6482:F6482)","v":861}]
["OKLAHOMA CITY","OK","E-3",{"$f":"TRANSPOSE(G6482:G6482)","v":861}]
["OKLAHOMA CITY","OK","E-4",{"$f":"TRANSPOSE(H6482:H6482)","v":861}]
["OKLAHOMA CITY","OK","E-5",{"$f":"TRANSPOSE(I6482:I6482)","v":918}]
["OKLAHOMA CITY","OK","E-6",{"$f":"TRANSPOSE(J6482:J6482)","v":1173}]
["OKLAHOMA CITY","OK","E-7",{"$f":"TRANSPOSE(K6482:K6482)","v":1203}]
["OKLAHOMA CITY","OK","E-8",{"$f":"TRANSPOSE(L6482)","v":1236}]
["OKLAHOMA CITY","OK","E-9",{"$f":"TRANSPOSE(M6482)","v":1305}]
["OKLAHOMA CITY","OK","W-1",{"$f":"TRANSPOSE(N6482)","v":1173}]
["OKLAHOMA CITY","OK","W-2",{"$f":"TRANSPOSE(O6482)","v":1218}]
["OKLAHOMA CITY","OK","W-3",{"$f":"TRANSPOSE(P6482)","v":1257}]
["OKLAHOMA CITY","OK","W-4",{"$f":"TRANSPOSE(Q6482)","v":1323}]
["OKLAHOMA CITY","OK","W-5",{"$f":"TRANSPOSE(R6482)","v":1401}]
["OKLAHOMA CITY","OK","O-1E",{"$f":"TRANSPOSE(S6482)","v":1209}]
["OKLAHOMA CITY","OK","O-2E",{"$f":"TRANSPOSE(T6482)","v":1251}]
["OKLAHOMA CITY","OK","O-3E",{"$f":"TRANSPOSE(U6482)","v":1335}]
["OKLAHOMA CITY","OK","O-1",{"$f":"TRANSPOSE(V6482)","v":948}]
["OKLAHOMA CITY","OK","O-2",{"$f":"TRANSPOSE(W6482)","v":1167}]
["OKLAHOMA CITY","OK","O-3",{"$f":"TRANSPOSE(X6482)","v":1257}]
["OKLAHOMA CITY","OK","O-4",{"$f":"TRANSPOSE(Y6482)","v":1431}]
["OKLAHOMA CITY","OK","O-5",{"$f":"TRANSPOSE(Z6482)","v":1554}]
["OKLAHOMA CITY","OK","O-6",{"$f":"TRANSPOSE(AA6482)","v":1569}]
["OKLAHOMA CITY","OK","O-7",{"$f":"TRANSPOSE(AB6482)","v":1584}]
["TULSA","OK","E-1",{"$f":"TRANSPOSE(E6506:E6506)","v":858},858,858,858,858,912,1119,1230,1350,1485,1122,1278,1425,1506,1605,1254,1404,1521,936,1116,1419,1641,1797,1815,1833]
["TULSA","OK","E-2",{"$f":"TRANSPOSE(F6506:F6506)","v":858}]
["TULSA","OK","E-3",{"$f":"TRANSPOSE(G6506:G6506)","v":858}]
["TULSA","OK","E-4",{"$f":"TRANSPOSE(H6506:H6506)","v":858}]
["TULSA","OK","E-5",{"$f":"TRANSPOSE(I6506:I6506)","v":912}]
["TULSA","OK","E-6",{"$f":"TRANSPOSE(J6506:J6506)","v":1119}]
["TULSA","OK","E-7",{"$f":"TRANSPOSE(K6506:K6506)","v":1230}]
["TULSA","OK","E-8",{"$f":"TRANSPOSE(L6506)","v":1350}]
["TULSA","OK","E-9",{"$f":"TRANSPOSE(M6506)","v":1485}]
["TULSA","OK","W-1",{"$f":"TRANSPOSE(N6506)","v":1122}]
["TULSA","OK","W-2",{"$f":"TRANSPOSE(O6506)","v":1278}]
["TULSA","OK","W-3",{"$f":"TRANSPOSE(P6506)","v":1425}]
["TULSA","OK","W-4",{"$f":"TRANSPOSE(Q6506)","v":1506}]
["TULSA","OK","W-5",{"$f":"TRANSPOSE(R6506)","v":1605}]
["TULSA","OK","O-1E",{"$f":"TRANSPOSE(S6506)","v":1254}]
["TULSA","OK","O-2E",{"$f":"TRANSPOSE(T6506)","v":1404}]
["TULSA","OK","O-3E",{"$f":"TRANSPOSE(U6506)","v":1521}]
["TULSA","OK","O-1",{"$f":"TRANSPOSE(V6506)","v":936}]
["TULSA","OK","O-2",{"$f":"TRANSPOSE(W6506)","v":1116}]
["TULSA","OK","O-3",{"$f":"TRANSPOSE(X6506)","v":1419}]
["TULSA","OK","O-4",{"$f":"TRANSPOSE(Y6506)","v":1641}]
["TULSA","OK","O-5",{"$f":"TRANSPOSE(Z6506)","v":1797}]
["TULSA","OK","O-6",{"$f":"TRANSPOSE(AA6506)","v":1815}]
["TULSA","OK","O-7",{"$f":"TRANSPOSE(AB6506)","v":1833}]
["ASTORIA","OR","E-1",{"$f":"TRANSPOSE(E6530:E6530)","v":972},972,972,972,972,1026,1296,1398,1509,1608,1299,1443,1581,1620,1668,1422,1560,1626,1056,1290,1575,1686,1761,1779,1797]
["ASTORIA","OR","E-2",{"$f":"TRANSPOSE(F6530:F6530)","v":972}]
["ASTORIA","OR","E-3",{"$f":"TRANSPOSE(G6530:G6530)","v":972}]
["ASTORIA","OR","E-4",{"$f":"TRANSPOSE(H6530:H6530)","v":972}]
["ASTORIA","OR","E-5",{"$f":"TRANSPOSE(I6530:I6530)","v":1026}]
["ASTORIA","OR","E-6",{"$f":"TRANSPOSE(J6530:J6530)","v":1296}]
["ASTORIA","OR","E-7",{"$f":"TRANSPOSE(K6530:K6530)","v":1398}]
["ASTORIA","OR","E-8",{"$f":"TRANSPOSE(L6530)","v":1509}]
["ASTORIA","OR","E-9",{"$f":"TRANSPOSE(M6530)","v":1608}]
["ASTORIA","OR","W-1",{"$f":"TRANSPOSE(N6530)","v":1299}]
["ASTORIA","OR","W-2",{"$f":"TRANSPOSE(O6530)","v":1443}]
["ASTORIA","OR","W-3",{"$f":"TRANSPOSE(P6530)","v":1581}]
["ASTORIA","OR","W-4",{"$f":"TRANSPOSE(Q6530)","v":1620}]
["ASTORIA","OR","W-5",{"$f":"TRANSPOSE(R6530)","v":1668}]
["ASTORIA","OR","O-1E",{"$f":"TRANSPOSE(S6530)","v":1422}]
["ASTORIA","OR","O-2E",{"$f":"TRANSPOSE(T6530)","v":1560}]
["ASTORIA","OR","O-3E",{"$f":"TRANSPOSE(U6530)","v":1626}]
["ASTORIA","OR","O-1",{"$f":"TRANSPOSE(V6530)","v":1056}]
["ASTORIA","OR","O-2",{"$f":"TRANSPOSE(W6530)","v":1290}]
["ASTORIA","OR","O-3",{"$f":"TRANSPOSE(X6530)","v":1575}]
["ASTORIA","OR","O-4",{"$f":"TRANSPOSE(Y6530)","v":1686}]
["ASTORIA","OR","O-5",{"$f":"TRANSPOSE(Z6530)","v":1761}]
["ASTORIA","OR","O-6",{"$f":"TRANSPOSE(AA6530)","v":1779}]
["ASTORIA","OR","O-7",{"$f":"TRANSPOSE(AB6530)","v":1797}]
["COOS BAY","OR","E-1",{"$f":"TRANSPOSE(E6554:E6554)","v":843},843,843,843,843,924,1152,1233,1320,1428,1155,1269,1374,1446,1533,1251,1359,1461,948,1149,1371,1566,1701,1719,1737]
["COOS BAY","OR","E-2",{"$f":"TRANSPOSE(F6554:F6554)","v":843}]
["COOS BAY","OR","E-3",{"$f":"TRANSPOSE(G6554:G6554)","v":843}]
["COOS BAY","OR","E-4",{"$f":"TRANSPOSE(H6554:H6554)","v":843}]
["COOS BAY","OR","E-5",{"$f":"TRANSPOSE(I6554:I6554)","v":924}]
["COOS BAY","OR","E-6",{"$f":"TRANSPOSE(J6554:J6554)","v":1152}]
["COOS BAY","OR","E-7",{"$f":"TRANSPOSE(K6554:K6554)","v":1233}]
["COOS BAY","OR","E-8",{"$f":"TRANSPOSE(L6554)","v":1320}]
["COOS BAY","OR","E-9",{"$f":"TRANSPOSE(M6554)","v":1428}]
["COOS BAY","OR","W-1",{"$f":"TRANSPOSE(N6554)","v":1155}]
["COOS BAY","OR","W-2",{"$f":"TRANSPOSE(O6554)","v":1269}]
["COOS BAY","OR","W-3",{"$f":"TRANSPOSE(P6554)","v":1374}]
["COOS BAY","OR","W-4",{"$f":"TRANSPOSE(Q6554)","v":1446}]
["COOS BAY","OR","W-5",{"$f":"TRANSPOSE(R6554)","v":1533}]
["COOS BAY","OR","O-1E",{"$f":"TRANSPOSE(S6554)","v":1251}]
["COOS BAY","OR","O-2E",{"$f":"TRANSPOSE(T6554)","v":1359}]
["COOS BAY","OR","O-3E",{"$f":"TRANSPOSE(U6554)","v":1461}]
["COOS BAY","OR","O-1",{"$f":"TRANSPOSE(V6554)","v":948}]
["COOS BAY","OR","O-2",{"$f":"TRANSPOSE(W6554)","v":1149}]
["COOS BAY","OR","O-3",{"$f":"TRANSPOSE(X6554)","v":1371}]
["COOS BAY","OR","O-4",{"$f":"TRANSPOSE(Y6554)","v":1566}]
["COOS BAY","OR","O-5",{"$f":"TRANSPOSE(Z6554)","v":1701}]
["COOS BAY","OR","O-6",{"$f":"TRANSPOSE(AA6554)","v":1719}]
["COOS BAY","OR","O-7",{"$f":"TRANSPOSE(AB6554)","v":1737}]
["PORTLAND","OR","E-1",{"$f":"TRANSPOSE(E6578:E6578)","v":1173},1173,1173,1173,1173,1299,1533,1593,1656,1746,1536,1620,1698,1761,1839,1605,1686,1773,1323,1527,1695,1866,1989,2010,2031]
["PORTLAND","OR","E-2",{"$f":"TRANSPOSE(F6578:F6578)","v":1173}]
["PORTLAND","OR","E-3",{"$f":"TRANSPOSE(G6578:G6578)","v":1173}]
["PORTLAND","OR","E-4",{"$f":"TRANSPOSE(H6578:H6578)","v":1173}]
["PORTLAND","OR","E-5",{"$f":"TRANSPOSE(I6578:I6578)","v":1299}]
["PORTLAND","OR","E-6",{"$f":"TRANSPOSE(J6578:J6578)","v":1533}]
["PORTLAND","OR","E-7",{"$f":"TRANSPOSE(K6578:K6578)","v":1593}]
["PORTLAND","OR","E-8",{"$f":"TRANSPOSE(L6578)","v":1656}]
["PORTLAND","OR","E-9",{"$f":"TRANSPOSE(M6578)","v":1746}]
["PORTLAND","OR","W-1",{"$f":"TRANSPOSE(N6578)","v":1536}]
["PORTLAND","OR","W-2",{"$f":"TRANSPOSE(O6578)","v":1620}]
["PORTLAND","OR","W-3",{"$f":"TRANSPOSE(P6578)","v":1698}]
["PORTLAND","OR","W-4",{"$f":"TRANSPOSE(Q6578)","v":1761}]
["PORTLAND","OR","W-5",{"$f":"TRANSPOSE(R6578)","v":1839}]
["PORTLAND","OR","O-1E",{"$f":"TRANSPOSE(S6578)","v":1605}]
["PORTLAND","OR","O-2E",{"$f":"TRANSPOSE(T6578)","v":1686}]
["PORTLAND","OR","O-3E",{"$f":"TRANSPOSE(U6578)","v":1773}]
["PORTLAND","OR","O-1",{"$f":"TRANSPOSE(V6578)","v":1323}]
["PORTLAND","OR","O-2",{"$f":"TRANSPOSE(W6578)","v":1527}]
["PORTLAND","OR","O-3",{"$f":"TRANSPOSE(X6578)","v":1695}]
["PORTLAND","OR","O-4",{"$f":"TRANSPOSE(Y6578)","v":1866}]
["PORTLAND","OR","O-5",{"$f":"TRANSPOSE(Z6578)","v":1989}]
["PORTLAND","OR","O-6",{"$f":"TRANSPOSE(AA6578)","v":2010}]
["PORTLAND","OR","O-7",{"$f":"TRANSPOSE(AB6578)","v":2031}]
["SALEM","OR","E-1",{"$f":"TRANSPOSE(E6602:E6602)","v":906},906,906,906,906,969,1173,1266,1371,1488,1176,1308,1437,1506,1590,1287,1419,1518,993,1167,1431,1620,1755,1773,1788]
["SALEM","OR","E-2",{"$f":"TRANSPOSE(F6602:F6602)","v":906}]
["SALEM","OR","E-3",{"$f":"TRANSPOSE(G6602:G6602)","v":906}]
["SALEM","OR","E-4",{"$f":"TRANSPOSE(H6602:H6602)","v":906}]
["SALEM","OR","E-5",{"$f":"TRANSPOSE(I6602:I6602)","v":969}]
["SALEM","OR","E-6",{"$f":"TRANSPOSE(J6602:J6602)","v":1173}]
["SALEM","OR","E-7",{"$f":"TRANSPOSE(K6602:K6602)","v":1266}]
["SALEM","OR","E-8",{"$f":"TRANSPOSE(L6602)","v":1371}]
["SALEM","OR","E-9",{"$f":"TRANSPOSE(M6602)","v":1488}]
["SALEM","OR","W-1",{"$f":"TRANSPOSE(N6602)","v":1176}]
["SALEM","OR","W-2",{"$f":"TRANSPOSE(O6602)","v":1308}]
["SALEM","OR","W-3",{"$f":"TRANSPOSE(P6602)","v":1437}]
["SALEM","OR","W-4",{"$f":"TRANSPOSE(Q6602)","v":1506}]
["SALEM","OR","W-5",{"$f":"TRANSPOSE(R6602)","v":1590}]
["SALEM","OR","O-1E",{"$f":"TRANSPOSE(S6602)","v":1287}]
["SALEM","OR","O-2E",{"$f":"TRANSPOSE(T6602)","v":1419}]
["SALEM","OR","O-3E",{"$f":"TRANSPOSE(U6602)","v":1518}]
["SALEM","OR","O-1",{"$f":"TRANSPOSE(V6602)","v":993}]
["SALEM","OR","O-2",{"$f":"TRANSPOSE(W6602)","v":1167}]
["SALEM","OR","O-3",{"$f":"TRANSPOSE(X6602)","v":1431}]
["SALEM","OR","O-4",{"$f":"TRANSPOSE(Y6602)","v":1620}]
["SALEM","OR","O-5",{"$f":"TRANSPOSE(Z6602)","v":1755}]
["SALEM","OR","O-6",{"$f":"TRANSPOSE(AA6602)","v":1773}]
["SALEM","OR","O-7",{"$f":"TRANSPOSE(AB6602)","v":1788}]
["CORVALLIS","OR","E-1",{"$f":"TRANSPOSE(E6626:E6626)","v":978},978,978,978,978,1038,1338,1395,1455,1548,1341,1419,1494,1566,1653,1407,1482,1581,1071,1332,1491,1686,1824,1842,1860]
["CORVALLIS","OR","E-2",{"$f":"TRANSPOSE(F6626:F6626)","v":978}]
["CORVALLIS","OR","E-3",{"$f":"TRANSPOSE(G6626:G6626)","v":978}]
["CORVALLIS","OR","E-4",{"$f":"TRANSPOSE(H6626:H6626)","v":978}]
["CORVALLIS","OR","E-5",{"$f":"TRANSPOSE(I6626:I6626)","v":1038}]
["CORVALLIS","OR","E-6",{"$f":"TRANSPOSE(J6626:J6626)","v":1338}]
["CORVALLIS","OR","E-7",{"$f":"TRANSPOSE(K6626:K6626)","v":1395}]
["CORVALLIS","OR","E-8",{"$f":"TRANSPOSE(L6626)","v":1455}]
["CORVALLIS","OR","E-9",{"$f":"TRANSPOSE(M6626)","v":1548}]
["CORVALLIS","OR","W-1",{"$f":"TRANSPOSE(N6626)","v":1341}]
["CORVALLIS","OR","W-2",{"$f":"TRANSPOSE(O6626)","v":1419}]
["CORVALLIS","OR","W-3",{"$f":"TRANSPOSE(P6626)","v":1494}]
["CORVALLIS","OR","W-4",{"$f":"TRANSPOSE(Q6626)","v":1566}]
["CORVALLIS","OR","W-5",{"$f":"TRANSPOSE(R6626)","v":1653}]
["CORVALLIS","OR","O-1E",{"$f":"TRANSPOSE(S6626)","v":1407}]
["CORVALLIS","OR","O-2E",{"$f":"TRANSPOSE(T6626)","v":1482}]
["CORVALLIS","OR","O-3E",{"$f":"TRANSPOSE(U6626)","v":1581}]
["CORVALLIS","OR","O-1",{"$f":"TRANSPOSE(V6626)","v":1071}]
["CORVALLIS","OR","O-2",{"$f":"TRANSPOSE(W6626)","v":1332}]
["CORVALLIS","OR","O-3",{"$f":"TRANSPOSE(X6626)","v":1491}]
["CORVALLIS","OR","O-4",{"$f":"TRANSPOSE(Y6626)","v":1686}]
["CORVALLIS","OR","O-5",{"$f":"TRANSPOSE(Z6626)","v":1824}]
["CORVALLIS","OR","O-6",{"$f":"TRANSPOSE(AA6626)","v":1842}]
["CORVALLIS","OR","O-7",{"$f":"TRANSPOSE(AB6626)","v":1860}]
["EUGENE","OR","E-1",{"$f":"TRANSPOSE(E6650:E6650)","v":987},987,987,987,987,1086,1221,1299,1380,1515,1224,1332,1431,1545,1680,1314,1416,1566,1101,1218,1428,1731,1947,1968,1986]
["EUGENE","OR","E-2",{"$f":"TRANSPOSE(F6650:F6650)","v":987}]
["EUGENE","OR","E-3",{"$f":"TRANSPOSE(G6650:G6650)","v":987}]
["EUGENE","OR","E-4",{"$f":"TRANSPOSE(H6650:H6650)","v":987}]
["EUGENE","OR","E-5",{"$f":"TRANSPOSE(I6650:I6650)","v":1086}]
["EUGENE","OR","E-6",{"$f":"TRANSPOSE(J6650:J6650)","v":1221}]
["EUGENE","OR","E-7",{"$f":"TRANSPOSE(K6650:K6650)","v":1299}]
["EUGENE","OR","E-8",{"$f":"TRANSPOSE(L6650)","v":1380}]
["EUGENE","OR","E-9",{"$f":"TRANSPOSE(M6650)","v":1515}]
["EUGENE","OR","W-1",{"$f":"TRANSPOSE(N6650)","v":1224}]
["EUGENE","OR","W-2",{"$f":"TRANSPOSE(O6650)","v":1332}]
["EUGENE","OR","W-3",{"$f":"TRANSPOSE(P6650)","v":1431}]
["EUGENE","OR","W-4",{"$f":"TRANSPOSE(Q6650)","v":1545}]
["EUGENE","OR","W-5",{"$f":"TRANSPOSE(R6650)","v":1680}]
["EUGENE","OR","O-1E",{"$f":"TRANSPOSE(S6650)","v":1314}]
["EUGENE","OR","O-2E",{"$f":"TRANSPOSE(T6650)","v":1416}]
["EUGENE","OR","O-3E",{"$f":"TRANSPOSE(U6650)","v":1566}]
["EUGENE","OR","O-1",{"$f":"TRANSPOSE(V6650)","v":1101}]
["EUGENE","OR","O-2",{"$f":"TRANSPOSE(W6650)","v":1218}]
["EUGENE","OR","O-3",{"$f":"TRANSPOSE(X6650)","v":1428}]
["EUGENE","OR","O-4",{"$f":"TRANSPOSE(Y6650)","v":1731}]
["EUGENE","OR","O-5",{"$f":"TRANSPOSE(Z6650)","v":1947}]
["EUGENE","OR","O-6",{"$f":"TRANSPOSE(AA6650)","v":1968}]
["EUGENE","OR","O-7",{"$f":"TRANSPOSE(AB6650)","v":1986}]
["KLAMATH FALLS","OR","E-1",{"$f":"TRANSPOSE(E6674:E6674)","v":837},837,837,837,837,900,1110,1167,1227,1302,1110,1191,1269,1317,1371,1179,1257,1323,924,1104,1266,1395,1485,1500,1515]
["KLAMATH FALLS","OR","E-2",{"$f":"TRANSPOSE(F6674:F6674)","v":837}]
["KLAMATH FALLS","OR","E-3",{"$f":"TRANSPOSE(G6674:G6674)","v":837}]
["KLAMATH FALLS","OR","E-4",{"$f":"TRANSPOSE(H6674:H6674)","v":837}]
["KLAMATH FALLS","OR","E-5",{"$f":"TRANSPOSE(I6674:I6674)","v":900}]
["KLAMATH FALLS","OR","E-6",{"$f":"TRANSPOSE(J6674:J6674)","v":1110}]
["KLAMATH FALLS","OR","E-7",{"$f":"TRANSPOSE(K6674:K6674)","v":1167}]
["KLAMATH FALLS","OR","E-8",{"$f":"TRANSPOSE(L6674)","v":1227}]
["KLAMATH FALLS","OR","E-9",{"$f":"TRANSPOSE(M6674)","v":1302}]
["KLAMATH FALLS","OR","W-1",{"$f":"TRANSPOSE(N6674)","v":1110}]
["KLAMATH FALLS","OR","W-2",{"$f":"TRANSPOSE(O6674)","v":1191}]
["KLAMATH FALLS","OR","W-3",{"$f":"TRANSPOSE(P6674)","v":1269}]
["KLAMATH FALLS","OR","W-4",{"$f":"TRANSPOSE(Q6674)","v":1317}]
["KLAMATH FALLS","OR","W-5",{"$f":"TRANSPOSE(R6674)","v":1371}]
["KLAMATH FALLS","OR","O-1E",{"$f":"TRANSPOSE(S6674)","v":1179}]
["KLAMATH FALLS","OR","O-2E",{"$f":"TRANSPOSE(T6674)","v":1257}]
["KLAMATH FALLS","OR","O-3E",{"$f":"TRANSPOSE(U6674)","v":1323}]
["KLAMATH FALLS","OR","O-1",{"$f":"TRANSPOSE(V6674)","v":924}]
["KLAMATH FALLS","OR","O-2",{"$f":"TRANSPOSE(W6674)","v":1104}]
["KLAMATH FALLS","OR","O-3",{"$f":"TRANSPOSE(X6674)","v":1266}]
["KLAMATH FALLS","OR","O-4",{"$f":"TRANSPOSE(Y6674)","v":1395}]
["KLAMATH FALLS","OR","O-5",{"$f":"TRANSPOSE(Z6674)","v":1485}]
["KLAMATH FALLS","OR","O-6",{"$f":"TRANSPOSE(AA6674)","v":1500}]
["KLAMATH FALLS","OR","O-7",{"$f":"TRANSPOSE(AB6674)","v":1515}]
["CARLISLE BARRACKS","PA","E-1",{"$f":"TRANSPOSE(E6698:E6698)","v":1164},1164,1164,1164,1164,1233,1386,1434,1485,1593,1386,1455,1518,1620,1743,1443,1509,1638,1251,1383,1515,1788,1986,2004,2025]
["CARLISLE BARRACKS","PA","E-2",{"$f":"TRANSPOSE(F6698:F6698)","v":1164}]
["CARLISLE BARRACKS","PA","E-3",{"$f":"TRANSPOSE(G6698:G6698)","v":1164}]
["CARLISLE BARRACKS","PA","E-4",{"$f":"TRANSPOSE(H6698:H6698)","v":1164}]
["CARLISLE BARRACKS","PA","E-5",{"$f":"TRANSPOSE(I6698:I6698)","v":1233}]
["CARLISLE BARRACKS","PA","E-6",{"$f":"TRANSPOSE(J6698:J6698)","v":1386}]
["CARLISLE BARRACKS","PA","E-7",{"$f":"TRANSPOSE(K6698:K6698)","v":1434}]
["CARLISLE BARRACKS","PA","E-8",{"$f":"TRANSPOSE(L6698)","v":1485}]
["CARLISLE BARRACKS","PA","E-9",{"$f":"TRANSPOSE(M6698)","v":1593}]
["CARLISLE BARRACKS","PA","W-1",{"$f":"TRANSPOSE(N6698)","v":1386}]
["CARLISLE BARRACKS","PA","W-2",{"$f":"TRANSPOSE(O6698)","v":1455}]
["CARLISLE BARRACKS","PA","W-3",{"$f":"TRANSPOSE(P6698)","v":1518}]
["CARLISLE BARRACKS","PA","W-4",{"$f":"TRANSPOSE(Q6698)","v":1620}]
["CARLISLE BARRACKS","PA","W-5",{"$f":"TRANSPOSE(R6698)","v":1743}]
["CARLISLE BARRACKS","PA","O-1E",{"$f":"TRANSPOSE(S6698)","v":1443}]
["CARLISLE BARRACKS","PA","O-2E",{"$f":"TRANSPOSE(T6698)","v":1509}]
["CARLISLE BARRACKS","PA","O-3E",{"$f":"TRANSPOSE(U6698)","v":1638}]
["CARLISLE BARRACKS","PA","O-1",{"$f":"TRANSPOSE(V6698)","v":1251}]
["CARLISLE BARRACKS","PA","O-2",{"$f":"TRANSPOSE(W6698)","v":1383}]
["CARLISLE BARRACKS","PA","O-3",{"$f":"TRANSPOSE(X6698)","v":1515}]
["CARLISLE BARRACKS","PA","O-4",{"$f":"TRANSPOSE(Y6698)","v":1788}]
["CARLISLE BARRACKS","PA","O-5",{"$f":"TRANSPOSE(Z6698)","v":1986}]
["CARLISLE BARRACKS","PA","O-6",{"$f":"TRANSPOSE(AA6698)","v":2004}]
["CARLISLE BARRACKS","PA","O-7",{"$f":"TRANSPOSE(AB6698)","v":2025}]
["PHILADELPHIA","PA","E-1",{"$f":"TRANSPOSE(E6722:E6722)","v":1554},1554,1554,1554,1554,1701,2010,2106,2208,2298,2013,2148,2274,2304,2343,2127,2256,2310,1734,2004,2268,2358,2421,2445,2469]
["PHILADELPHIA","PA","E-2",{"$f":"TRANSPOSE(F6722:F6722)","v":1554}]
["PHILADELPHIA","PA","E-3",{"$f":"TRANSPOSE(G6722:G6722)","v":1554}]
["PHILADELPHIA","PA","E-4",{"$f":"TRANSPOSE(H6722:H6722)","v":1554}]
["PHILADELPHIA","PA","E-5",{"$f":"TRANSPOSE(I6722:I6722)","v":1701}]
["PHILADELPHIA","PA","E-6",{"$f":"TRANSPOSE(J6722:J6722)","v":2010}]
["PHILADELPHIA","PA","E-7",{"$f":"TRANSPOSE(K6722:K6722)","v":2106}]
["PHILADELPHIA","PA","E-8",{"$f":"TRANSPOSE(L6722)","v":2208}]
["PHILADELPHIA","PA","E-9",{"$f":"TRANSPOSE(M6722)","v":2298}]
["PHILADELPHIA","PA","W-1",{"$f":"TRANSPOSE(N6722)","v":2013}]
["PHILADELPHIA","PA","W-2",{"$f":"TRANSPOSE(O6722)","v":2148}]
["PHILADELPHIA","PA","W-3",{"$f":"TRANSPOSE(P6722)","v":2274}]
["PHILADELPHIA","PA","W-4",{"$f":"TRANSPOSE(Q6722)","v":2304}]
["PHILADELPHIA","PA","W-5",{"$f":"TRANSPOSE(R6722)","v":2343}]
["PHILADELPHIA","PA","O-1E",{"$f":"TRANSPOSE(S6722)","v":2127}]
["PHILADELPHIA","PA","O-2E",{"$f":"TRANSPOSE(T6722)","v":2256}]
["PHILADELPHIA","PA","O-3E",{"$f":"TRANSPOSE(U6722)","v":2310}]
["PHILADELPHIA","PA","O-1",{"$f":"TRANSPOSE(V6722)","v":1734}]
["PHILADELPHIA","PA","O-2",{"$f":"TRANSPOSE(W6722)","v":2004}]
["PHILADELPHIA","PA","O-3",{"$f":"TRANSPOSE(X6722)","v":2268}]
["PHILADELPHIA","PA","O-4",{"$f":"TRANSPOSE(Y6722)","v":2358}]
["PHILADELPHIA","PA","O-5",{"$f":"TRANSPOSE(Z6722)","v":2421}]
["PHILADELPHIA","PA","O-6",{"$f":"TRANSPOSE(AA6722)","v":2445}]
["PHILADELPHIA","PA","O-7",{"$f":"TRANSPOSE(AB6722)","v":2469}]
["NAS WILLOW GROVE","PA","E-1",{"$f":"TRANSPOSE(E6746:E6746)","v":1635},1635,1635,1635,1635,1764,2079,2103,2130,2220,2079,2115,2148,2247,2361,2109,2142,2265,1800,2073,2148,2406,2592,2619,2646]
["NAS WILLOW GROVE","PA","E-2",{"$f":"TRANSPOSE(F6746:F6746)","v":1635}]
["NAS WILLOW GROVE","PA","E-3",{"$f":"TRANSPOSE(G6746:G6746)","v":1635}]
["NAS WILLOW GROVE","PA","E-4",{"$f":"TRANSPOSE(H6746:H6746)","v":1635}]
["NAS WILLOW GROVE","PA","E-5",{"$f":"TRANSPOSE(I6746:I6746)","v":1764}]
["NAS WILLOW GROVE","PA","E-6",{"$f":"TRANSPOSE(J6746:J6746)","v":2079}]
["NAS WILLOW GROVE","PA","E-7",{"$f":"TRANSPOSE(K6746:K6746)","v":2103}]
["NAS WILLOW GROVE","PA","E-8",{"$f":"TRANSPOSE(L6746)","v":2130}]
["NAS WILLOW GROVE","PA","E-9",{"$f":"TRANSPOSE(M6746)","v":2220}]
["NAS WILLOW GROVE","PA","W-1",{"$f":"TRANSPOSE(N6746)","v":2079}]
["NAS WILLOW GROVE","PA","W-2",{"$f":"TRANSPOSE(O6746)","v":2115}]
["NAS WILLOW GROVE","PA","W-3",{"$f":"TRANSPOSE(P6746)","v":2148}]
["NAS WILLOW GROVE","PA","W-4",{"$f":"TRANSPOSE(Q6746)","v":2247}]
["NAS WILLOW GROVE","PA","W-5",{"$f":"TRANSPOSE(R6746)","v":2361}]
["NAS WILLOW GROVE","PA","O-1E",{"$f":"TRANSPOSE(S6746)","v":2109}]
["NAS WILLOW GROVE","PA","O-2E",{"$f":"TRANSPOSE(T6746)","v":2142}]
["NAS WILLOW GROVE","PA","O-3E",{"$f":"TRANSPOSE(U6746)","v":2265}]
["NAS WILLOW GROVE","PA","O-1",{"$f":"TRANSPOSE(V6746)","v":1800}]
["NAS WILLOW GROVE","PA","O-2",{"$f":"TRANSPOSE(W6746)","v":2073}]
["NAS WILLOW GROVE","PA","O-3",{"$f":"TRANSPOSE(X6746)","v":2148}]
["NAS WILLOW GROVE","PA","O-4",{"$f":"TRANSPOSE(Y6746)","v":2406}]
["NAS WILLOW GROVE","PA","O-5",{"$f":"TRANSPOSE(Z6746)","v":2592}]
["NAS WILLOW GROVE","PA","O-6",{"$f":"TRANSPOSE(AA6746)","v":2619}]
["NAS WILLOW GROVE","PA","O-7",{"$f":"TRANSPOSE(AB6746)","v":2646}]
["PITTSBURGH","PA","E-1",{"$f":"TRANSPOSE(E6770:E6770)","v":1338},1338,1338,1338,1338,1443,1539,1605,1677,1800,1542,1635,1722,1830,1956,1620,1710,1848,1455,1536,1719,2004,2208,2229,2250]
["PITTSBURGH","PA","E-2",{"$f":"TRANSPOSE(F6770:F6770)","v":1338}]
["PITTSBURGH","PA","E-3",{"$f":"TRANSPOSE(G6770:G6770)","v":1338}]
["PITTSBURGH","PA","E-4",{"$f":"TRANSPOSE(H6770:H6770)","v":1338}]
["PITTSBURGH","PA","E-5",{"$f":"TRANSPOSE(I6770:I6770)","v":1443}]
["PITTSBURGH","PA","E-6",{"$f":"TRANSPOSE(J6770:J6770)","v":1539}]
["PITTSBURGH","PA","E-7",{"$f":"TRANSPOSE(K6770:K6770)","v":1605}]
["PITTSBURGH","PA","E-8",{"$f":"TRANSPOSE(L6770)","v":1677}]
["PITTSBURGH","PA","E-9",{"$f":"TRANSPOSE(M6770)","v":1800}]
["PITTSBURGH","PA","W-1",{"$f":"TRANSPOSE(N6770)","v":1542}]
["PITTSBURGH","PA","W-2",{"$f":"TRANSPOSE(O6770)","v":1635}]
["PITTSBURGH","PA","W-3",{"$f":"TRANSPOSE(P6770)","v":1722}]
["PITTSBURGH","PA","W-4",{"$f":"TRANSPOSE(Q6770)","v":1830}]
["PITTSBURGH","PA","W-5",{"$f":"TRANSPOSE(R6770)","v":1956}]
["PITTSBURGH","PA","O-1E",{"$f":"TRANSPOSE(S6770)","v":1620}]
["PITTSBURGH","PA","O-2E",{"$f":"TRANSPOSE(T6770)","v":1710}]
["PITTSBURGH","PA","O-3E",{"$f":"TRANSPOSE(U6770)","v":1848}]
["PITTSBURGH","PA","O-1",{"$f":"TRANSPOSE(V6770)","v":1455}]
["PITTSBURGH","PA","O-2",{"$f":"TRANSPOSE(W6770)","v":1536}]
["PITTSBURGH","PA","O-3",{"$f":"TRANSPOSE(X6770)","v":1719}]
["PITTSBURGH","PA","O-4",{"$f":"TRANSPOSE(Y6770)","v":2004}]
["PITTSBURGH","PA","O-5",{"$f":"TRANSPOSE(Z6770)","v":2208}]
["PITTSBURGH","PA","O-6",{"$f":"TRANSPOSE(AA6770)","v":2229}]
["PITTSBURGH","PA","O-7",{"$f":"TRANSPOSE(AB6770)","v":2250}]
["READING","PA","E-1",{"$f":"TRANSPOSE(E6794:E6794)","v":990},990,990,990,990,1092,1383,1425,1470,1515,1383,1443,1497,1524,1554,1434,1491,1527,1125,1377,1497,1566,1614,1629,1644]
["READING","PA","E-2",{"$f":"TRANSPOSE(F6794:F6794)","v":990}]
["READING","PA","E-3",{"$f":"TRANSPOSE(G6794:G6794)","v":990}]
["READING","PA","E-4",{"$f":"TRANSPOSE(H6794:H6794)","v":990}]
["READING","PA","E-5",{"$f":"TRANSPOSE(I6794:I6794)","v":1092}]
["READING","PA","E-6",{"$f":"TRANSPOSE(J6794:J6794)","v":1383}]
["READING","PA","E-7",{"$f":"TRANSPOSE(K6794:K6794)","v":1425}]
["READING","PA","E-8",{"$f":"TRANSPOSE(L6794)","v":1470}]
["READING","PA","E-9",{"$f":"TRANSPOSE(M6794)","v":1515}]
["READING","PA","W-1",{"$f":"TRANSPOSE(N6794)","v":1383}]
["READING","PA","W-2",{"$f":"TRANSPOSE(O6794)","v":1443}]
["READING","PA","W-3",{"$f":"TRANSPOSE(P6794)","v":1497}]
["READING","PA","W-4",{"$f":"TRANSPOSE(Q6794)","v":1524}]
["READING","PA","W-5",{"$f":"TRANSPOSE(R6794)","v":1554}]
["READING","PA","O-1E",{"$f":"TRANSPOSE(S6794)","v":1434}]
["READING","PA","O-2E",{"$f":"TRANSPOSE(T6794)","v":1491}]
["READING","PA","O-3E",{"$f":"TRANSPOSE(U6794)","v":1527}]
["READING","PA","O-1",{"$f":"TRANSPOSE(V6794)","v":1125}]
["READING","PA","O-2",{"$f":"TRANSPOSE(W6794)","v":1377}]
["READING","PA","O-3",{"$f":"TRANSPOSE(X6794)","v":1497}]
["READING","PA","O-4",{"$f":"TRANSPOSE(Y6794)","v":1566}]
["READING","PA","O-5",{"$f":"TRANSPOSE(Z6794)","v":1614}]
["READING","PA","O-6",{"$f":"TRANSPOSE(AA6794)","v":1629}]
["READING","PA","O-7",{"$f":"TRANSPOSE(AB6794)","v":1644}]
["STATE COLLEGE","PA","E-1",{"$f":"TRANSPOSE(E6818:E6818)","v":1044},1044,1044,1044,1044,1107,1329,1389,1452,1551,1332,1416,1494,1572,1665,1401,1482,1587,1131,1326,1491,1701,1851,1872,1890]
["STATE COLLEGE","PA","E-2",{"$f":"TRANSPOSE(F6818:F6818)","v":1044}]
["STATE COLLEGE","PA","E-3",{"$f":"TRANSPOSE(G6818:G6818)","v":1044}]
["STATE COLLEGE","PA","E-4",{"$f":"TRANSPOSE(H6818:H6818)","v":1044}]
["STATE COLLEGE","PA","E-5",{"$f":"TRANSPOSE(I6818:I6818)","v":1107}]
["STATE COLLEGE","PA","E-6",{"$f":"TRANSPOSE(J6818:J6818)","v":1329}]
["STATE COLLEGE","PA","E-7",{"$f":"TRANSPOSE(K6818:K6818)","v":1389}]
["STATE COLLEGE","PA","E-8",{"$f":"TRANSPOSE(L6818)","v":1452}]
["STATE COLLEGE","PA","E-9",{"$f":"TRANSPOSE(M6818)","v":1551}]
["STATE COLLEGE","PA","W-1",{"$f":"TRANSPOSE(N6818)","v":1332}]
["STATE COLLEGE","PA","W-2",{"$f":"TRANSPOSE(O6818)","v":1416}]
["STATE COLLEGE","PA","W-3",{"$f":"TRANSPOSE(P6818)","v":1494}]
["STATE COLLEGE","PA","W-4",{"$f":"TRANSPOSE(Q6818)","v":1572}]
["STATE COLLEGE","PA","W-5",{"$f":"TRANSPOSE(R6818)","v":1665}]
["STATE COLLEGE","PA","O-1E",{"$f":"TRANSPOSE(S6818)","v":1401}]
["STATE COLLEGE","PA","O-2E",{"$f":"TRANSPOSE(T6818)","v":1482}]
["STATE COLLEGE","PA","O-3E",{"$f":"TRANSPOSE(U6818)","v":1587}]
["STATE COLLEGE","PA","O-1",{"$f":"TRANSPOSE(V6818)","v":1131}]
["STATE COLLEGE","PA","O-2",{"$f":"TRANSPOSE(W6818)","v":1326}]
["STATE COLLEGE","PA","O-3",{"$f":"TRANSPOSE(X6818)","v":1491}]
["STATE COLLEGE","PA","O-4",{"$f":"TRANSPOSE(Y6818)","v":1701}]
["STATE COLLEGE","PA","O-5",{"$f":"TRANSPOSE(Z6818)","v":1851}]
["STATE COLLEGE","PA","O-6",{"$f":"TRANSPOSE(AA6818)","v":1872}]
["STATE COLLEGE","PA","O-7",{"$f":"TRANSPOSE(AB6818)","v":1890}]
["ERIE","PA","E-1",{"$f":"TRANSPOSE(E6842:E6842)","v":933},933,933,933,933,990,1104,1134,1164,1224,1104,1146,1185,1239,1305,1140,1179,1251,1002,1101,1185,1329,1431,1446,1461]
["ERIE","PA","E-2",{"$f":"TRANSPOSE(F6842:F6842)","v":933}]
["ERIE","PA","E-3",{"$f":"TRANSPOSE(G6842:G6842)","v":933}]
["ERIE","PA","E-4",{"$f":"TRANSPOSE(H6842:H6842)","v":933}]
["ERIE","PA","E-5",{"$f":"TRANSPOSE(I6842:I6842)","v":990}]
["ERIE","PA","E-6",{"$f":"TRANSPOSE(J6842:J6842)","v":1104}]
["ERIE","PA","E-7",{"$f":"TRANSPOSE(K6842:K6842)","v":1134}]
["ERIE","PA","E-8",{"$f":"TRANSPOSE(L6842)","v":1164}]
["ERIE","PA","E-9",{"$f":"TRANSPOSE(M6842)","v":1224}]
["ERIE","PA","W-1",{"$f":"TRANSPOSE(N6842)","v":1104}]
["ERIE","PA","W-2",{"$f":"TRANSPOSE(O6842)","v":1146}]
["ERIE","PA","W-3",{"$f":"TRANSPOSE(P6842)","v":1185}]
["ERIE","PA","W-4",{"$f":"TRANSPOSE(Q6842)","v":1239}]
["ERIE","PA","W-5",{"$f":"TRANSPOSE(R6842)","v":1305}]
["ERIE","PA","O-1E",{"$f":"TRANSPOSE(S6842)","v":1140}]
["ERIE","PA","O-2E",{"$f":"TRANSPOSE(T6842)","v":1179}]
["ERIE","PA","O-3E",{"$f":"TRANSPOSE(U6842)","v":1251}]
["ERIE","PA","O-1",{"$f":"TRANSPOSE(V6842)","v":1002}]
["ERIE","PA","O-2",{"$f":"TRANSPOSE(W6842)","v":1101}]
["ERIE","PA","O-3",{"$f":"TRANSPOSE(X6842)","v":1185}]
["ERIE","PA","O-4",{"$f":"TRANSPOSE(Y6842)","v":1329}]
["ERIE","PA","O-5",{"$f":"TRANSPOSE(Z6842)","v":1431}]
["ERIE","PA","O-6",{"$f":"TRANSPOSE(AA6842)","v":1446}]
["ERIE","PA","O-7",{"$f":"TRANSPOSE(AB6842)","v":1461}]
["WILKES-BARRE/SCRANTON","PA","E-1",{"$f":"TRANSPOSE(E6866:E6866)","v":879},879,879,879,879,948,1137,1161,1188,1245,1137,1170,1203,1260,1323,1167,1200,1269,969,1131,1203,1350,1455,1470,1482]
["WILKES-BARRE/SCRANTON","PA","E-2",{"$f":"TRANSPOSE(F6866:F6866)","v":879}]
["WILKES-BARRE/SCRANTON","PA","E-3",{"$f":"TRANSPOSE(G6866:G6866)","v":879}]
["WILKES-BARRE/SCRANTON","PA","E-4",{"$f":"TRANSPOSE(H6866:H6866)","v":879}]
["WILKES-BARRE/SCRANTON","PA","E-5",{"$f":"TRANSPOSE(I6866:I6866)","v":948}]
["WILKES-BARRE/SCRANTON","PA","E-6",{"$f":"TRANSPOSE(J6866:J6866)","v":1137}]
["WILKES-BARRE/SCRANTON","PA","E-7",{"$f":"TRANSPOSE(K6866:K6866)","v":1161}]
["WILKES-BARRE/SCRANTON","PA","E-8",{"$f":"TRANSPOSE(L6866)","v":1188}]
["WILKES-BARRE/SCRANTON","PA","E-9",{"$f":"TRANSPOSE(M6866)","v":1245}]
["WILKES-BARRE/SCRANTON","PA","W-1",{"$f":"TRANSPOSE(N6866)","v":1137}]
["WILKES-BARRE/SCRANTON","PA","W-2",{"$f":"TRANSPOSE(O6866)","v":1170}]
["WILKES-BARRE/SCRANTON","PA","W-3",{"$f":"TRANSPOSE(P6866)","v":1203}]
["WILKES-BARRE/SCRANTON","PA","W-4",{"$f":"TRANSPOSE(Q6866)","v":1260}]
["WILKES-BARRE/SCRANTON","PA","W-5",{"$f":"TRANSPOSE(R6866)","v":1323}]
["WILKES-BARRE/SCRANTON","PA","O-1E",{"$f":"TRANSPOSE(S6866)","v":1167}]
["WILKES-BARRE/SCRANTON","PA","O-2E",{"$f":"TRANSPOSE(T6866)","v":1200}]
["WILKES-BARRE/SCRANTON","PA","O-3E",{"$f":"TRANSPOSE(U6866)","v":1269}]
["WILKES-BARRE/SCRANTON","PA","O-1",{"$f":"TRANSPOSE(V6866)","v":969}]
["WILKES-BARRE/SCRANTON","PA","O-2",{"$f":"TRANSPOSE(W6866)","v":1131}]
["WILKES-BARRE/SCRANTON","PA","O-3",{"$f":"TRANSPOSE(X6866)","v":1203}]
["WILKES-BARRE/SCRANTON","PA","O-4",{"$f":"TRANSPOSE(Y6866)","v":1350}]
["WILKES-BARRE/SCRANTON","PA","O-5",{"$f":"TRANSPOSE(Z6866)","v":1455}]
["WILKES-BARRE/SCRANTON","PA","O-6",{"$f":"TRANSPOSE(AA6866)","v":1470}]
["WILKES-BARRE/SCRANTON","PA","O-7",{"$f":"TRANSPOSE(AB6866)","v":1482}]
["ALLENTOWN/BETHLEHEM","PA","E-1",{"$f":"TRANSPOSE(E6890:E6890)","v":1242},1242,1242,1242,1242,1323,1608,1671,1737,1863,1611,1698,1779,1896,2034,1683,1767,1917,1353,1602,1776,2085,2310,2331,2355]
["ALLENTOWN/BETHLEHEM","PA","E-2",{"$f":"TRANSPOSE(F6890:F6890)","v":1242}]
["ALLENTOWN/BETHLEHEM","PA","E-3",{"$f":"TRANSPOSE(G6890:G6890)","v":1242}]
["ALLENTOWN/BETHLEHEM","PA","E-4",{"$f":"TRANSPOSE(H6890:H6890)","v":1242}]
["ALLENTOWN/BETHLEHEM","PA","E-5",{"$f":"TRANSPOSE(I6890:I6890)","v":1323}]
["ALLENTOWN/BETHLEHEM","PA","E-6",{"$f":"TRANSPOSE(J6890:J6890)","v":1608}]
["ALLENTOWN/BETHLEHEM","PA","E-7",{"$f":"TRANSPOSE(K6890:K6890)","v":1671}]
["ALLENTOWN/BETHLEHEM","PA","E-8",{"$f":"TRANSPOSE(L6890)","v":1737}]
["ALLENTOWN/BETHLEHEM","PA","E-9",{"$f":"TRANSPOSE(M6890)","v":1863}]
["ALLENTOWN/BETHLEHEM","PA","W-1",{"$f":"TRANSPOSE(N6890)","v":1611}]
["ALLENTOWN/BETHLEHEM","PA","W-2",{"$f":"TRANSPOSE(O6890)","v":1698}]
["ALLENTOWN/BETHLEHEM","PA","W-3",{"$f":"TRANSPOSE(P6890)","v":1779}]
["ALLENTOWN/BETHLEHEM","PA","W-4",{"$f":"TRANSPOSE(Q6890)","v":1896}]
["ALLENTOWN/BETHLEHEM","PA","W-5",{"$f":"TRANSPOSE(R6890)","v":2034}]
["ALLENTOWN/BETHLEHEM","PA","O-1E",{"$f":"TRANSPOSE(S6890)","v":1683}]
["ALLENTOWN/BETHLEHEM","PA","O-2E",{"$f":"TRANSPOSE(T6890)","v":1767}]
["ALLENTOWN/BETHLEHEM","PA","O-3E",{"$f":"TRANSPOSE(U6890)","v":1917}]
["ALLENTOWN/BETHLEHEM","PA","O-1",{"$f":"TRANSPOSE(V6890)","v":1353}]
["ALLENTOWN/BETHLEHEM","PA","O-2",{"$f":"TRANSPOSE(W6890)","v":1602}]
["ALLENTOWN/BETHLEHEM","PA","O-3",{"$f":"TRANSPOSE(X6890)","v":1776}]
["ALLENTOWN/BETHLEHEM","PA","O-4",{"$f":"TRANSPOSE(Y6890)","v":2085}]
["ALLENTOWN/BETHLEHEM","PA","O-5",{"$f":"TRANSPOSE(Z6890)","v":2310}]
["ALLENTOWN/BETHLEHEM","PA","O-6",{"$f":"TRANSPOSE(AA6890)","v":2331}]
["ALLENTOWN/BETHLEHEM","PA","O-7",{"$f":"TRANSPOSE(AB6890)","v":2355}]
["JOHNSTOWN","PA","E-1",{"$f":"TRANSPOSE(E6914:E6914)","v":840},840,840,840,840,927,1113,1155,1203,1272,1113,1176,1233,1287,1350,1167,1224,1296,948,1110,1230,1374,1479,1494,1509]
["JOHNSTOWN","PA","E-2",{"$f":"TRANSPOSE(F6914:F6914)","v":840}]
["JOHNSTOWN","PA","E-3",{"$f":"TRANSPOSE(G6914:G6914)","v":840}]
["JOHNSTOWN","PA","E-4",{"$f":"TRANSPOSE(H6914:H6914)","v":840}]
["JOHNSTOWN","PA","E-5",{"$f":"TRANSPOSE(I6914:I6914)","v":927}]
["JOHNSTOWN","PA","E-6",{"$f":"TRANSPOSE(J6914:J6914)","v":1113}]
["JOHNSTOWN","PA","E-7",{"$f":"TRANSPOSE(K6914:K6914)","v":1155}]
["JOHNSTOWN","PA","E-8",{"$f":"TRANSPOSE(L6914)","v":1203}]
["JOHNSTOWN","PA","E-9",{"$f":"TRANSPOSE(M6914)","v":1272}]
["JOHNSTOWN","PA","W-1",{"$f":"TRANSPOSE(N6914)","v":1113}]
["JOHNSTOWN","PA","W-2",{"$f":"TRANSPOSE(O6914)","v":1176}]
["JOHNSTOWN","PA","W-3",{"$f":"TRANSPOSE(P6914)","v":1233}]
["JOHNSTOWN","PA","W-4",{"$f":"TRANSPOSE(Q6914)","v":1287}]
["JOHNSTOWN","PA","W-5",{"$f":"TRANSPOSE(R6914)","v":1350}]
["JOHNSTOWN","PA","O-1E",{"$f":"TRANSPOSE(S6914)","v":1167}]
["JOHNSTOWN","PA","O-2E",{"$f":"TRANSPOSE(T6914)","v":1224}]
["JOHNSTOWN","PA","O-3E",{"$f":"TRANSPOSE(U6914)","v":1296}]
["JOHNSTOWN","PA","O-1",{"$f":"TRANSPOSE(V6914)","v":948}]
["JOHNSTOWN","PA","O-2",{"$f":"TRANSPOSE(W6914)","v":1110}]
["JOHNSTOWN","PA","O-3",{"$f":"TRANSPOSE(X6914)","v":1230}]
["JOHNSTOWN","PA","O-4",{"$f":"TRANSPOSE(Y6914)","v":1374}]
["JOHNSTOWN","PA","O-5",{"$f":"TRANSPOSE(Z6914)","v":1479}]
["JOHNSTOWN","PA","O-6",{"$f":"TRANSPOSE(AA6914)","v":1494}]
["JOHNSTOWN","PA","O-7",{"$f":"TRANSPOSE(AB6914)","v":1509}]
["NEWPORT","RI","E-1",{"$f":"TRANSPOSE(E6938:E6938)","v":1512},1512,1512,1512,1512,1716,2130,2223,2325,2508,2133,2265,2391,2550,2742,2244,2373,2580,1761,2124,2385,2814,3123,3153,3183]
["NEWPORT","RI","E-2",{"$f":"TRANSPOSE(F6938:F6938)","v":1512}]
["NEWPORT","RI","E-3",{"$f":"TRANSPOSE(G6938:G6938)","v":1512}]
["NEWPORT","RI","E-4",{"$f":"TRANSPOSE(H6938:H6938)","v":1512}]
["NEWPORT","RI","E-5",{"$f":"TRANSPOSE(I6938:I6938)","v":1716}]
["NEWPORT","RI","E-6",{"$f":"TRANSPOSE(J6938:J6938)","v":2130}]
["NEWPORT","RI","E-7",{"$f":"TRANSPOSE(K6938:K6938)","v":2223}]
["NEWPORT","RI","E-8",{"$f":"TRANSPOSE(L6938)","v":2325}]
["NEWPORT","RI","E-9",{"$f":"TRANSPOSE(M6938)","v":2508}]
["NEWPORT","RI","W-1",{"$f":"TRANSPOSE(N6938)","v":2133}]
["NEWPORT","RI","W-2",{"$f":"TRANSPOSE(O6938)","v":2265}]
["NEWPORT","RI","W-3",{"$f":"TRANSPOSE(P6938)","v":2391}]
["NEWPORT","RI","W-4",{"$f":"TRANSPOSE(Q6938)","v":2550}]
["NEWPORT","RI","W-5",{"$f":"TRANSPOSE(R6938)","v":2742}]
["NEWPORT","RI","O-1E",{"$f":"TRANSPOSE(S6938)","v":2244}]
["NEWPORT","RI","O-2E",{"$f":"TRANSPOSE(T6938)","v":2373}]
["NEWPORT","RI","O-3E",{"$f":"TRANSPOSE(U6938)","v":2580}]
["NEWPORT","RI","O-1",{"$f":"TRANSPOSE(V6938)","v":1761}]
["NEWPORT","RI","O-2",{"$f":"TRANSPOSE(W6938)","v":2124}]
["NEWPORT","RI","O-3",{"$f":"TRANSPOSE(X6938)","v":2385}]
["NEWPORT","RI","O-4",{"$f":"TRANSPOSE(Y6938)","v":2814}]
["NEWPORT","RI","O-5",{"$f":"TRANSPOSE(Z6938)","v":3123}]
["NEWPORT","RI","O-6",{"$f":"TRANSPOSE(AA6938)","v":3153}]
["NEWPORT","RI","O-7",{"$f":"TRANSPOSE(AB6938)","v":3183}]
["PROVIDENCE","RI","E-1",{"$f":"TRANSPOSE(E6962:E6962)","v":1485},1485,1485,1485,1485,1599,1761,1833,1908,2076,1764,1863,1956,2124,2319,1848,1941,2154,1617,1758,1953,2397,2715,2742,2769]
["PROVIDENCE","RI","E-2",{"$f":"TRANSPOSE(F6962:F6962)","v":1485}]
["PROVIDENCE","RI","E-3",{"$f":"TRANSPOSE(G6962:G6962)","v":1485}]
["PROVIDENCE","RI","E-4",{"$f":"TRANSPOSE(H6962:H6962)","v":1485}]
["PROVIDENCE","RI","E-5",{"$f":"TRANSPOSE(I6962:I6962)","v":1599}]
["PROVIDENCE","RI","E-6",{"$f":"TRANSPOSE(J6962:J6962)","v":1761}]
["PROVIDENCE","RI","E-7",{"$f":"TRANSPOSE(K6962:K6962)","v":1833}]
["PROVIDENCE","RI","E-8",{"$f":"TRANSPOSE(L6962)","v":1908}]
["PROVIDENCE","RI","E-9",{"$f":"TRANSPOSE(M6962)","v":2076}]
["PROVIDENCE","RI","W-1",{"$f":"TRANSPOSE(N6962)","v":1764}]
["PROVIDENCE","RI","W-2",{"$f":"TRANSPOSE(O6962)","v":1863}]
["PROVIDENCE","RI","W-3",{"$f":"TRANSPOSE(P6962)","v":1956}]
["PROVIDENCE","RI","W-4",{"$f":"TRANSPOSE(Q6962)","v":2124}]
["PROVIDENCE","RI","W-5",{"$f":"TRANSPOSE(R6962)","v":2319}]
["PROVIDENCE","RI","O-1E",{"$f":"TRANSPOSE(S6962)","v":1848}]
["PROVIDENCE","RI","O-2E",{"$f":"TRANSPOSE(T6962)","v":1941}]
["PROVIDENCE","RI","O-3E",{"$f":"TRANSPOSE(U6962)","v":2154}]
["PROVIDENCE","RI","O-1",{"$f":"TRANSPOSE(V6962)","v":1617}]
["PROVIDENCE","RI","O-2",{"$f":"TRANSPOSE(W6962)","v":1758}]
["PROVIDENCE","RI","O-3",{"$f":"TRANSPOSE(X6962)","v":1953}]
["PROVIDENCE","RI","O-4",{"$f":"TRANSPOSE(Y6962)","v":2397}]
["PROVIDENCE","RI","O-5",{"$f":"TRANSPOSE(Z6962)","v":2715}]
["PROVIDENCE","RI","O-6",{"$f":"TRANSPOSE(AA6962)","v":2742}]
["PROVIDENCE","RI","O-7",{"$f":"TRANSPOSE(AB6962)","v":2769}]
["BEAUFORT/PARRIS ISLAND","SC","E-1",{"$f":"TRANSPOSE(E6986:E6986)","v":1137},1137,1137,1137,1137,1179,1446,1509,1578,1680,1449,1536,1620,1701,1797,1524,1608,1716,1209,1443,1617,1833,1986,2004,2025]
["BEAUFORT/PARRIS ISLAND","SC","E-2",{"$f":"TRANSPOSE(F6986:F6986)","v":1137}]
["BEAUFORT/PARRIS ISLAND","SC","E-3",{"$f":"TRANSPOSE(G6986:G6986)","v":1137}]
["BEAUFORT/PARRIS ISLAND","SC","E-4",{"$f":"TRANSPOSE(H6986:H6986)","v":1137}]
["BEAUFORT/PARRIS ISLAND","SC","E-5",{"$f":"TRANSPOSE(I6986:I6986)","v":1179}]
["BEAUFORT/PARRIS ISLAND","SC","E-6",{"$f":"TRANSPOSE(J6986:J6986)","v":1446}]
["BEAUFORT/PARRIS ISLAND","SC","E-7",{"$f":"TRANSPOSE(K6986:K6986)","v":1509}]
["BEAUFORT/PARRIS ISLAND","SC","E-8",{"$f":"TRANSPOSE(L6986)","v":1578}]
["BEAUFORT/PARRIS ISLAND","SC","E-9",{"$f":"TRANSPOSE(M6986)","v":1680}]
["BEAUFORT/PARRIS ISLAND","SC","W-1",{"$f":"TRANSPOSE(N6986)","v":1449}]
["BEAUFORT/PARRIS ISLAND","SC","W-2",{"$f":"TRANSPOSE(O6986)","v":1536}]
["BEAUFORT/PARRIS ISLAND","SC","W-3",{"$f":"TRANSPOSE(P6986)","v":1620}]
["BEAUFORT/PARRIS ISLAND","SC","W-4",{"$f":"TRANSPOSE(Q6986)","v":1701}]
["BEAUFORT/PARRIS ISLAND","SC","W-5",{"$f":"TRANSPOSE(R6986)","v":1797}]
["BEAUFORT/PARRIS ISLAND","SC","O-1E",{"$f":"TRANSPOSE(S6986)","v":1524}]
["BEAUFORT/PARRIS ISLAND","SC","O-2E",{"$f":"TRANSPOSE(T6986)","v":1608}]
["BEAUFORT/PARRIS ISLAND","SC","O-3E",{"$f":"TRANSPOSE(U6986)","v":1716}]
["BEAUFORT/PARRIS ISLAND","SC","O-1",{"$f":"TRANSPOSE(V6986)","v":1209}]
["BEAUFORT/PARRIS ISLAND","SC","O-2",{"$f":"TRANSPOSE(W6986)","v":1443}]
["BEAUFORT/PARRIS ISLAND","SC","O-3",{"$f":"TRANSPOSE(X6986)","v":1617}]
["BEAUFORT/PARRIS ISLAND","SC","O-4",{"$f":"TRANSPOSE(Y6986)","v":1833}]
["BEAUFORT/PARRIS ISLAND","SC","O-5",{"$f":"TRANSPOSE(Z6986)","v":1986}]
["BEAUFORT/PARRIS ISLAND","SC","O-6",{"$f":"TRANSPOSE(AA6986)","v":2004}]
["BEAUFORT/PARRIS ISLAND","SC","O-7",{"$f":"TRANSPOSE(AB6986)","v":2025}]
["CHARLESTON","SC","E-1",{"$f":"TRANSPOSE(E7010:E7010)","v":1194},1194,1194,1194,1194,1290,1515,1572,1635,1725,1515,1599,1677,1743,1818,1587,1665,1755,1314,1509,1674,1848,1974,1992,2013]
["CHARLESTON","SC","E-2",{"$f":"TRANSPOSE(F7010:F7010)","v":1194}]
["CHARLESTON","SC","E-3",{"$f":"TRANSPOSE(G7010:G7010)","v":1194}]
["CHARLESTON","SC","E-4",{"$f":"TRANSPOSE(H7010:H7010)","v":1194}]
["CHARLESTON","SC","E-5",{"$f":"TRANSPOSE(I7010:I7010)","v":1290}]
["CHARLESTON","SC","E-6",{"$f":"TRANSPOSE(J7010:J7010)","v":1515}]
["CHARLESTON","SC","E-7",{"$f":"TRANSPOSE(K7010:K7010)","v":1572}]
["CHARLESTON","SC","E-8",{"$f":"TRANSPOSE(L7010)","v":1635}]
["CHARLESTON","SC","E-9",{"$f":"TRANSPOSE(M7010)","v":1725}]
["CHARLESTON","SC","W-1",{"$f":"TRANSPOSE(N7010)","v":1515}]
["CHARLESTON","SC","W-2",{"$f":"TRANSPOSE(O7010)","v":1599}]
["CHARLESTON","SC","W-3",{"$f":"TRANSPOSE(P7010)","v":1677}]
["CHARLESTON","SC","W-4",{"$f":"TRANSPOSE(Q7010)","v":1743}]
["CHARLESTON","SC","W-5",{"$f":"TRANSPOSE(R7010)","v":1818}]
["CHARLESTON","SC","O-1E",{"$f":"TRANSPOSE(S7010)","v":1587}]
["CHARLESTON","SC","O-2E",{"$f":"TRANSPOSE(T7010)","v":1665}]
["CHARLESTON","SC","O-3E",{"$f":"TRANSPOSE(U7010)","v":1755}]
["CHARLESTON","SC","O-1",{"$f":"TRANSPOSE(V7010)","v":1314}]
["CHARLESTON","SC","O-2",{"$f":"TRANSPOSE(W7010)","v":1509}]
["CHARLESTON","SC","O-3",{"$f":"TRANSPOSE(X7010)","v":1674}]
["CHARLESTON","SC","O-4",{"$f":"TRANSPOSE(Y7010)","v":1848}]
["CHARLESTON","SC","O-5",{"$f":"TRANSPOSE(Z7010)","v":1974}]
["CHARLESTON","SC","O-6",{"$f":"TRANSPOSE(AA7010)","v":1992}]
["CHARLESTON","SC","O-7",{"$f":"TRANSPOSE(AB7010)","v":2013}]
["COLUMBIA/FORT JACKSON","SC","E-1",{"$f":"TRANSPOSE(E7034:E7034)","v":1158},1158,1158,1158,1158,1284,1377,1461,1554,1710,1377,1500,1614,1746,1899,1482,1599,1770,1293,1374,1611,1959,2208,2229,2253]
["COLUMBIA/FORT JACKSON","SC","E-2",{"$f":"TRANSPOSE(F7034:F7034)","v":1158}]
["COLUMBIA/FORT JACKSON","SC","E-3",{"$f":"TRANSPOSE(G7034:G7034)","v":1158}]
["COLUMBIA/FORT JACKSON","SC","E-4",{"$f":"TRANSPOSE(H7034:H7034)","v":1158}]
["COLUMBIA/FORT JACKSON","SC","E-5",{"$f":"TRANSPOSE(I7034:I7034)","v":1284}]
["COLUMBIA/FORT JACKSON","SC","E-6",{"$f":"TRANSPOSE(J7034:J7034)","v":1377}]
["COLUMBIA/FORT JACKSON","SC","E-7",{"$f":"TRANSPOSE(K7034:K7034)","v":1461}]
["COLUMBIA/FORT JACKSON","SC","E-8",{"$f":"TRANSPOSE(L7034)","v":1554}]
["COLUMBIA/FORT JACKSON","SC","E-9",{"$f":"TRANSPOSE(M7034)","v":1710}]
["COLUMBIA/FORT JACKSON","SC","W-1",{"$f":"TRANSPOSE(N7034)","v":1377}]
["COLUMBIA/FORT JACKSON","SC","W-2",{"$f":"TRANSPOSE(O7034)","v":1500}]
["COLUMBIA/FORT JACKSON","SC","W-3",{"$f":"TRANSPOSE(P7034)","v":1614}]
["COLUMBIA/FORT JACKSON","SC","W-4",{"$f":"TRANSPOSE(Q7034)","v":1746}]
["COLUMBIA/FORT JACKSON","SC","W-5",{"$f":"TRANSPOSE(R7034)","v":1899}]
["COLUMBIA/FORT JACKSON","SC","O-1E",{"$f":"TRANSPOSE(S7034)","v":1482}]
["COLUMBIA/FORT JACKSON","SC","O-2E",{"$f":"TRANSPOSE(T7034)","v":1599}]
["COLUMBIA/FORT JACKSON","SC","O-3E",{"$f":"TRANSPOSE(U7034)","v":1770}]
["COLUMBIA/FORT JACKSON","SC","O-1",{"$f":"TRANSPOSE(V7034)","v":1293}]
["COLUMBIA/FORT JACKSON","SC","O-2",{"$f":"TRANSPOSE(W7034)","v":1374}]
["COLUMBIA/FORT JACKSON","SC","O-3",{"$f":"TRANSPOSE(X7034)","v":1611}]
["COLUMBIA/FORT JACKSON","SC","O-4",{"$f":"TRANSPOSE(Y7034)","v":1959}]
["COLUMBIA/FORT JACKSON","SC","O-5",{"$f":"TRANSPOSE(Z7034)","v":2208}]
["COLUMBIA/FORT JACKSON","SC","O-6",{"$f":"TRANSPOSE(AA7034)","v":2229}]
["COLUMBIA/FORT JACKSON","SC","O-7",{"$f":"TRANSPOSE(AB7034)","v":2253}]
["GREENVILLE","SC","E-1",{"$f":"TRANSPOSE(E7058:E7058)","v":972},972,972,972,972,1038,1209,1308,1413,1545,1212,1350,1479,1569,1674,1329,1461,1584,1059,1206,1476,1713,1881,1902,1920]
["GREENVILLE","SC","E-2",{"$f":"TRANSPOSE(F7058:F7058)","v":972}]
["GREENVILLE","SC","E-3",{"$f":"TRANSPOSE(G7058:G7058)","v":972}]
["GREENVILLE","SC","E-4",{"$f":"TRANSPOSE(H7058:H7058)","v":972}]
["GREENVILLE","SC","E-5",{"$f":"TRANSPOSE(I7058:I7058)","v":1038}]
["GREENVILLE","SC","E-6",{"$f":"TRANSPOSE(J7058:J7058)","v":1209}]
["GREENVILLE","SC","E-7",{"$f":"TRANSPOSE(K7058:K7058)","v":1308}]
["GREENVILLE","SC","E-8",{"$f":"TRANSPOSE(L7058)","v":1413}]
["GREENVILLE","SC","E-9",{"$f":"TRANSPOSE(M7058)","v":1545}]
["GREENVILLE","SC","W-1",{"$f":"TRANSPOSE(N7058)","v":1212}]
["GREENVILLE","SC","W-2",{"$f":"TRANSPOSE(O7058)","v":1350}]
["GREENVILLE","SC","W-3",{"$f":"TRANSPOSE(P7058)","v":1479}]
["GREENVILLE","SC","W-4",{"$f":"TRANSPOSE(Q7058)","v":1569}]
["GREENVILLE","SC","W-5",{"$f":"TRANSPOSE(R7058)","v":1674}]
["GREENVILLE","SC","O-1E",{"$f":"TRANSPOSE(S7058)","v":1329}]
["GREENVILLE","SC","O-2E",{"$f":"TRANSPOSE(T7058)","v":1461}]
["GREENVILLE","SC","O-3E",{"$f":"TRANSPOSE(U7058)","v":1584}]
["GREENVILLE","SC","O-1",{"$f":"TRANSPOSE(V7058)","v":1059}]
["GREENVILLE","SC","O-2",{"$f":"TRANSPOSE(W7058)","v":1206}]
["GREENVILLE","SC","O-3",{"$f":"TRANSPOSE(X7058)","v":1476}]
["GREENVILLE","SC","O-4",{"$f":"TRANSPOSE(Y7058)","v":1713}]
["GREENVILLE","SC","O-5",{"$f":"TRANSPOSE(Z7058)","v":1881}]
["GREENVILLE","SC","O-6",{"$f":"TRANSPOSE(AA7058)","v":1902}]
["GREENVILLE","SC","O-7",{"$f":"TRANSPOSE(AB7058)","v":1920}]
["MYRTLE BEACH","SC","E-1",{"$f":"TRANSPOSE(E7082:E7082)","v":1098},1098,1098,1098,1098,1182,1329,1428,1533,1644,1332,1470,1602,1656,1722,1449,1584,1668,1197,1326,1599,1746,1851,1869,1887]
["MYRTLE BEACH","SC","E-2",{"$f":"TRANSPOSE(F7082:F7082)","v":1098}]
["MYRTLE BEACH","SC","E-3",{"$f":"TRANSPOSE(G7082:G7082)","v":1098}]
["MYRTLE BEACH","SC","E-4",{"$f":"TRANSPOSE(H7082:H7082)","v":1098}]
["MYRTLE BEACH","SC","E-5",{"$f":"TRANSPOSE(I7082:I7082)","v":1182}]
["MYRTLE BEACH","SC","E-6",{"$f":"TRANSPOSE(J7082:J7082)","v":1329}]
["MYRTLE BEACH","SC","E-7",{"$f":"TRANSPOSE(K7082:K7082)","v":1428}]
["MYRTLE BEACH","SC","E-8",{"$f":"TRANSPOSE(L7082)","v":1533}]
["MYRTLE BEACH","SC","E-9",{"$f":"TRANSPOSE(M7082)","v":1644}]
["MYRTLE BEACH","SC","W-1",{"$f":"TRANSPOSE(N7082)","v":1332}]
["MYRTLE BEACH","SC","W-2",{"$f":"TRANSPOSE(O7082)","v":1470}]
["MYRTLE BEACH","SC","W-3",{"$f":"TRANSPOSE(P7082)","v":1602}]
["MYRTLE BEACH","SC","W-4",{"$f":"TRANSPOSE(Q7082)","v":1656}]
["MYRTLE BEACH","SC","W-5",{"$f":"TRANSPOSE(R7082)","v":1722}]
["MYRTLE BEACH","SC","O-1E",{"$f":"TRANSPOSE(S7082)","v":1449}]
["MYRTLE BEACH","SC","O-2E",{"$f":"TRANSPOSE(T7082)","v":1584}]
["MYRTLE BEACH","SC","O-3E",{"$f":"TRANSPOSE(U7082)","v":1668}]
["MYRTLE BEACH","SC","O-1",{"$f":"TRANSPOSE(V7082)","v":1197}]
["MYRTLE BEACH","SC","O-2",{"$f":"TRANSPOSE(W7082)","v":1326}]
["MYRTLE BEACH","SC","O-3",{"$f":"TRANSPOSE(X7082)","v":1599}]
["MYRTLE BEACH","SC","O-4",{"$f":"TRANSPOSE(Y7082)","v":1746}]
["MYRTLE BEACH","SC","O-5",{"$f":"TRANSPOSE(Z7082)","v":1851}]
["MYRTLE BEACH","SC","O-6",{"$f":"TRANSPOSE(AA7082)","v":1869}]
["MYRTLE BEACH","SC","O-7",{"$f":"TRANSPOSE(AB7082)","v":1887}]
["SUMTER/SHAW AFB","SC","E-1",{"$f":"TRANSPOSE(E7106:E7106)","v":945},945,945,945,945,1020,1170,1215,1266,1386,1173,1236,1296,1422,1566,1227,1287,1443,1038,1167,1293,1623,1860,1878,1896]
["SUMTER/SHAW AFB","SC","E-2",{"$f":"TRANSPOSE(F7106:F7106)","v":945}]
["SUMTER/SHAW AFB","SC","E-3",{"$f":"TRANSPOSE(G7106:G7106)","v":945}]
["SUMTER/SHAW AFB","SC","E-4",{"$f":"TRANSPOSE(H7106:H7106)","v":945}]
["SUMTER/SHAW AFB","SC","E-5",{"$f":"TRANSPOSE(I7106:I7106)","v":1020}]
["SUMTER/SHAW AFB","SC","E-6",{"$f":"TRANSPOSE(J7106:J7106)","v":1170}]
["SUMTER/SHAW AFB","SC","E-7",{"$f":"TRANSPOSE(K7106:K7106)","v":1215}]
["SUMTER/SHAW AFB","SC","E-8",{"$f":"TRANSPOSE(L7106)","v":1266}]
["SUMTER/SHAW AFB","SC","E-9",{"$f":"TRANSPOSE(M7106)","v":1386}]
["SUMTER/SHAW AFB","SC","W-1",{"$f":"TRANSPOSE(N7106)","v":1173}]
["SUMTER/SHAW AFB","SC","W-2",{"$f":"TRANSPOSE(O7106)","v":1236}]
["SUMTER/SHAW AFB","SC","W-3",{"$f":"TRANSPOSE(P7106)","v":1296}]
["SUMTER/SHAW AFB","SC","W-4",{"$f":"TRANSPOSE(Q7106)","v":1422}]
["SUMTER/SHAW AFB","SC","W-5",{"$f":"TRANSPOSE(R7106)","v":1566}]
["SUMTER/SHAW AFB","SC","O-1E",{"$f":"TRANSPOSE(S7106)","v":1227}]
["SUMTER/SHAW AFB","SC","O-2E",{"$f":"TRANSPOSE(T7106)","v":1287}]
["SUMTER/SHAW AFB","SC","O-3E",{"$f":"TRANSPOSE(U7106)","v":1443}]
["SUMTER/SHAW AFB","SC","O-1",{"$f":"TRANSPOSE(V7106)","v":1038}]
["SUMTER/SHAW AFB","SC","O-2",{"$f":"TRANSPOSE(W7106)","v":1167}]
["SUMTER/SHAW AFB","SC","O-3",{"$f":"TRANSPOSE(X7106)","v":1293}]
["SUMTER/SHAW AFB","SC","O-4",{"$f":"TRANSPOSE(Y7106)","v":1623}]
["SUMTER/SHAW AFB","SC","O-5",{"$f":"TRANSPOSE(Z7106)","v":1860}]
["SUMTER/SHAW AFB","SC","O-6",{"$f":"TRANSPOSE(AA7106)","v":1878}]
["SUMTER/SHAW AFB","SC","O-7",{"$f":"TRANSPOSE(AB7106)","v":1896}]
["FLORENCE","SC","E-1",{"$f":"TRANSPOSE(E7130:E7130)","v":897},897,897,897,897,975,1137,1197,1266,1359,1137,1224,1308,1377,1458,1212,1296,1389,993,1134,1305,1491,1620,1638,1653]
["FLORENCE","SC","E-2",{"$f":"TRANSPOSE(F7130:F7130)","v":897}]
["FLORENCE","SC","E-3",{"$f":"TRANSPOSE(G7130:G7130)","v":897}]
["FLORENCE","SC","E-4",{"$f":"TRANSPOSE(H7130:H7130)","v":897}]
["FLORENCE","SC","E-5",{"$f":"TRANSPOSE(I7130:I7130)","v":975}]
["FLORENCE","SC","E-6",{"$f":"TRANSPOSE(J7130:J7130)","v":1137}]
["FLORENCE","SC","E-7",{"$f":"TRANSPOSE(K7130:K7130)","v":1197}]
["FLORENCE","SC","E-8",{"$f":"TRANSPOSE(L7130)","v":1266}]
["FLORENCE","SC","E-9",{"$f":"TRANSPOSE(M7130)","v":1359}]
["FLORENCE","SC","W-1",{"$f":"TRANSPOSE(N7130)","v":1137}]
["FLORENCE","SC","W-2",{"$f":"TRANSPOSE(O7130)","v":1224}]
["FLORENCE","SC","W-3",{"$f":"TRANSPOSE(P7130)","v":1308}]
["FLORENCE","SC","W-4",{"$f":"TRANSPOSE(Q7130)","v":1377}]
["FLORENCE","SC","W-5",{"$f":"TRANSPOSE(R7130)","v":1458}]
["FLORENCE","SC","O-1E",{"$f":"TRANSPOSE(S7130)","v":1212}]
["FLORENCE","SC","O-2E",{"$f":"TRANSPOSE(T7130)","v":1296}]
["FLORENCE","SC","O-3E",{"$f":"TRANSPOSE(U7130)","v":1389}]
["FLORENCE","SC","O-1",{"$f":"TRANSPOSE(V7130)","v":993}]
["FLORENCE","SC","O-2",{"$f":"TRANSPOSE(W7130)","v":1134}]
["FLORENCE","SC","O-3",{"$f":"TRANSPOSE(X7130)","v":1305}]
["FLORENCE","SC","O-4",{"$f":"TRANSPOSE(Y7130)","v":1491}]
["FLORENCE","SC","O-5",{"$f":"TRANSPOSE(Z7130)","v":1620}]
["FLORENCE","SC","O-6",{"$f":"TRANSPOSE(AA7130)","v":1638}]
["FLORENCE","SC","O-7",{"$f":"TRANSPOSE(AB7130)","v":1653}]
["RAPID CITY/ELLSWORTH AFB","SD","E-1",{"$f":"TRANSPOSE(E7154:E7154)","v":942},942,942,942,942,1038,1320,1326,1335,1398,1320,1329,1338,1419,1515,1329,1338,1434,1068,1314,1338,1551,1707,1722,1740]
["RAPID CITY/ELLSWORTH AFB","SD","E-2",{"$f":"TRANSPOSE(F7154:F7154)","v":942}]
["RAPID CITY/ELLSWORTH AFB","SD","E-3",{"$f":"TRANSPOSE(G7154:G7154)","v":942}]
["RAPID CITY/ELLSWORTH AFB","SD","E-4",{"$f":"TRANSPOSE(H7154:H7154)","v":942}]
["RAPID CITY/ELLSWORTH AFB","SD","E-5",{"$f":"TRANSPOSE(I7154:I7154)","v":1038}]
["RAPID CITY/ELLSWORTH AFB","SD","E-6",{"$f":"TRANSPOSE(J7154:J7154)","v":1320}]
["RAPID CITY/ELLSWORTH AFB","SD","E-7",{"$f":"TRANSPOSE(K7154:K7154)","v":1326}]
["RAPID CITY/ELLSWORTH AFB","SD","E-8",{"$f":"TRANSPOSE(L7154)","v":1335}]
["RAPID CITY/ELLSWORTH AFB","SD","E-9",{"$f":"TRANSPOSE(M7154)","v":1398}]
["RAPID CITY/ELLSWORTH AFB","SD","W-1",{"$f":"TRANSPOSE(N7154)","v":1320}]
["RAPID CITY/ELLSWORTH AFB","SD","W-2",{"$f":"TRANSPOSE(O7154)","v":1329}]
["RAPID CITY/ELLSWORTH AFB","SD","W-3",{"$f":"TRANSPOSE(P7154)","v":1338}]
["RAPID CITY/ELLSWORTH AFB","SD","W-4",{"$f":"TRANSPOSE(Q7154)","v":1419}]
["RAPID CITY/ELLSWORTH AFB","SD","W-5",{"$f":"TRANSPOSE(R7154)","v":1515}]
["RAPID CITY/ELLSWORTH AFB","SD","O-1E",{"$f":"TRANSPOSE(S7154)","v":1329}]
["RAPID CITY/ELLSWORTH AFB","SD","O-2E",{"$f":"TRANSPOSE(T7154)","v":1338}]
["RAPID CITY/ELLSWORTH AFB","SD","O-3E",{"$f":"TRANSPOSE(U7154)","v":1434}]
["RAPID CITY/ELLSWORTH AFB","SD","O-1",{"$f":"TRANSPOSE(V7154)","v":1068}]
["RAPID CITY/ELLSWORTH AFB","SD","O-2",{"$f":"TRANSPOSE(W7154)","v":1314}]
["RAPID CITY/ELLSWORTH AFB","SD","O-3",{"$f":"TRANSPOSE(X7154)","v":1338}]
["RAPID CITY/ELLSWORTH AFB","SD","O-4",{"$f":"TRANSPOSE(Y7154)","v":1551}]
["RAPID CITY/ELLSWORTH AFB","SD","O-5",{"$f":"TRANSPOSE(Z7154)","v":1707}]
["RAPID CITY/ELLSWORTH AFB","SD","O-6",{"$f":"TRANSPOSE(AA7154)","v":1722}]
["RAPID CITY/ELLSWORTH AFB","SD","O-7",{"$f":"TRANSPOSE(AB7154)","v":1740}]
["SIOUX FALLS","SD","E-1",{"$f":"TRANSPOSE(E7178:E7178)","v":954},954,954,954,954,1071,1170,1212,1257,1350,1170,1230,1287,1374,1476,1221,1278,1389,1080,1167,1284,1515,1683,1698,1716]
["SIOUX FALLS","SD","E-2",{"$f":"TRANSPOSE(F7178:F7178)","v":954}]
["SIOUX FALLS","SD","E-3",{"$f":"TRANSPOSE(G7178:G7178)","v":954}]
["SIOUX FALLS","SD","E-4",{"$f":"TRANSPOSE(H7178:H7178)","v":954}]
["SIOUX FALLS","SD","E-5",{"$f":"TRANSPOSE(I7178:I7178)","v":1071}]
["SIOUX FALLS","SD","E-6",{"$f":"TRANSPOSE(J7178:J7178)","v":1170}]
["SIOUX FALLS","SD","E-7",{"$f":"TRANSPOSE(K7178:K7178)","v":1212}]
["SIOUX FALLS","SD","E-8",{"$f":"TRANSPOSE(L7178)","v":1257}]
["SIOUX FALLS","SD","E-9",{"$f":"TRANSPOSE(M7178)","v":1350}]
["SIOUX FALLS","SD","W-1",{"$f":"TRANSPOSE(N7178)","v":1170}]
["SIOUX FALLS","SD","W-2",{"$f":"TRANSPOSE(O7178)","v":1230}]
["SIOUX FALLS","SD","W-3",{"$f":"TRANSPOSE(P7178)","v":1287}]
["SIOUX FALLS","SD","W-4",{"$f":"TRANSPOSE(Q7178)","v":1374}]
["SIOUX FALLS","SD","W-5",{"$f":"TRANSPOSE(R7178)","v":1476}]
["SIOUX FALLS","SD","O-1E",{"$f":"TRANSPOSE(S7178)","v":1221}]
["SIOUX FALLS","SD","O-2E",{"$f":"TRANSPOSE(T7178)","v":1278}]
["SIOUX FALLS","SD","O-3E",{"$f":"TRANSPOSE(U7178)","v":1389}]
["SIOUX FALLS","SD","O-1",{"$f":"TRANSPOSE(V7178)","v":1080}]
["SIOUX FALLS","SD","O-2",{"$f":"TRANSPOSE(W7178)","v":1167}]
["SIOUX FALLS","SD","O-3",{"$f":"TRANSPOSE(X7178)","v":1284}]
["SIOUX FALLS","SD","O-4",{"$f":"TRANSPOSE(Y7178)","v":1515}]
["SIOUX FALLS","SD","O-5",{"$f":"TRANSPOSE(Z7178)","v":1683}]
["SIOUX FALLS","SD","O-6",{"$f":"TRANSPOSE(AA7178)","v":1698}]
["SIOUX FALLS","SD","O-7",{"$f":"TRANSPOSE(AB7178)","v":1716}]
["CHATTANOOGA","TN","E-1",{"$f":"TRANSPOSE(E7202:E7202)","v":981},981,981,981,981,1059,1134,1176,1218,1326,1134,1194,1248,1356,1485,1185,1239,1377,1065,1131,1245,1533,1743,1758,1776]
["CHATTANOOGA","TN","E-2",{"$f":"TRANSPOSE(F7202:F7202)","v":981}]
["CHATTANOOGA","TN","E-3",{"$f":"TRANSPOSE(G7202:G7202)","v":981}]
["CHATTANOOGA","TN","E-4",{"$f":"TRANSPOSE(H7202:H7202)","v":981}]
["CHATTANOOGA","TN","E-5",{"$f":"TRANSPOSE(I7202:I7202)","v":1059}]
["CHATTANOOGA","TN","E-6",{"$f":"TRANSPOSE(J7202:J7202)","v":1134}]
["CHATTANOOGA","TN","E-7",{"$f":"TRANSPOSE(K7202:K7202)","v":1176}]
["CHATTANOOGA","TN","E-8",{"$f":"TRANSPOSE(L7202)","v":1218}]
["CHATTANOOGA","TN","E-9",{"$f":"TRANSPOSE(M7202)","v":1326}]
["CHATTANOOGA","TN","W-1",{"$f":"TRANSPOSE(N7202)","v":1134}]
["CHATTANOOGA","TN","W-2",{"$f":"TRANSPOSE(O7202)","v":1194}]
["CHATTANOOGA","TN","W-3",{"$f":"TRANSPOSE(P7202)","v":1248}]
["CHATTANOOGA","TN","W-4",{"$f":"TRANSPOSE(Q7202)","v":1356}]
["CHATTANOOGA","TN","W-5",{"$f":"TRANSPOSE(R7202)","v":1485}]
["CHATTANOOGA","TN","O-1E",{"$f":"TRANSPOSE(S7202)","v":1185}]
["CHATTANOOGA","TN","O-2E",{"$f":"TRANSPOSE(T7202)","v":1239}]
["CHATTANOOGA","TN","O-3E",{"$f":"TRANSPOSE(U7202)","v":1377}]
["CHATTANOOGA","TN","O-1",{"$f":"TRANSPOSE(V7202)","v":1065}]
["CHATTANOOGA","TN","O-2",{"$f":"TRANSPOSE(W7202)","v":1131}]
["CHATTANOOGA","TN","O-3",{"$f":"TRANSPOSE(X7202)","v":1245}]
["CHATTANOOGA","TN","O-4",{"$f":"TRANSPOSE(Y7202)","v":1533}]
["CHATTANOOGA","TN","O-5",{"$f":"TRANSPOSE(Z7202)","v":1743}]
["CHATTANOOGA","TN","O-6",{"$f":"TRANSPOSE(AA7202)","v":1758}]
["CHATTANOOGA","TN","O-7",{"$f":"TRANSPOSE(AB7202)","v":1776}]
["KNOXVILLE","TN","E-1",{"$f":"TRANSPOSE(E7226:E7226)","v":990},990,990,990,990,1053,1269,1311,1353,1467,1272,1326,1380,1500,1644,1317,1371,1524,1077,1266,1377,1701,1932,1950,1971]
["KNOXVILLE","TN","E-2",{"$f":"TRANSPOSE(F7226:F7226)","v":990}]
["KNOXVILLE","TN","E-3",{"$f":"TRANSPOSE(G7226:G7226)","v":990}]
["KNOXVILLE","TN","E-4",{"$f":"TRANSPOSE(H7226:H7226)","v":990}]
["KNOXVILLE","TN","E-5",{"$f":"TRANSPOSE(I7226:I7226)","v":1053}]
["KNOXVILLE","TN","E-6",{"$f":"TRANSPOSE(J7226:J7226)","v":1269}]
["KNOXVILLE","TN","E-7",{"$f":"TRANSPOSE(K7226:K7226)","v":1311}]
["KNOXVILLE","TN","E-8",{"$f":"TRANSPOSE(L7226)","v":1353}]
["KNOXVILLE","TN","E-9",{"$f":"TRANSPOSE(M7226)","v":1467}]
["KNOXVILLE","TN","W-1",{"$f":"TRANSPOSE(N7226)","v":1272}]
["KNOXVILLE","TN","W-2",{"$f":"TRANSPOSE(O7226)","v":1326}]
["KNOXVILLE","TN","W-3",{"$f":"TRANSPOSE(P7226)","v":1380}]
["KNOXVILLE","TN","W-4",{"$f":"TRANSPOSE(Q7226)","v":1500}]
["KNOXVILLE","TN","W-5",{"$f":"TRANSPOSE(R7226)","v":1644}]
["KNOXVILLE","TN","O-1E",{"$f":"TRANSPOSE(S7226)","v":1317}]
["KNOXVILLE","TN","O-2E",{"$f":"TRANSPOSE(T7226)","v":1371}]
["KNOXVILLE","TN","O-3E",{"$f":"TRANSPOSE(U7226)","v":1524}]
["KNOXVILLE","TN","O-1",{"$f":"TRANSPOSE(V7226)","v":1077}]
["KNOXVILLE","TN","O-2",{"$f":"TRANSPOSE(W7226)","v":1266}]
["KNOXVILLE","TN","O-3",{"$f":"TRANSPOSE(X7226)","v":1377}]
["KNOXVILLE","TN","O-4",{"$f":"TRANSPOSE(Y7226)","v":1701}]
["KNOXVILLE","TN","O-5",{"$f":"TRANSPOSE(Z7226)","v":1932}]
["KNOXVILLE","TN","O-6",{"$f":"TRANSPOSE(AA7226)","v":1950}]
["KNOXVILLE","TN","O-7",{"$f":"TRANSPOSE(AB7226)","v":1971}]
["MEMPHIS","TN","E-1",{"$f":"TRANSPOSE(E7250:E7250)","v":1146},1146,1146,1146,1146,1263,1497,1554,1614,1707,1500,1578,1653,1728,1818,1566,1641,1743,1290,1491,1650,1851,1995,2016,2034]
["MEMPHIS","TN","E-2",{"$f":"TRANSPOSE(F7250:F7250)","v":1146}]
["MEMPHIS","TN","E-3",{"$f":"TRANSPOSE(G7250:G7250)","v":1146}]
["MEMPHIS","TN","E-4",{"$f":"TRANSPOSE(H7250:H7250)","v":1146}]
["MEMPHIS","TN","E-5",{"$f":"TRANSPOSE(I7250:I7250)","v":1263}]
["MEMPHIS","TN","E-6",{"$f":"TRANSPOSE(J7250:J7250)","v":1497}]
["MEMPHIS","TN","E-7",{"$f":"TRANSPOSE(K7250:K7250)","v":1554}]
["MEMPHIS","TN","E-8",{"$f":"TRANSPOSE(L7250)","v":1614}]
["MEMPHIS","TN","E-9",{"$f":"TRANSPOSE(M7250)","v":1707}]
["MEMPHIS","TN","W-1",{"$f":"TRANSPOSE(N7250)","v":1500}]
["MEMPHIS","TN","W-2",{"$f":"TRANSPOSE(O7250)","v":1578}]
["MEMPHIS","TN","W-3",{"$f":"TRANSPOSE(P7250)","v":1653}]
["MEMPHIS","TN","W-4",{"$f":"TRANSPOSE(Q7250)","v":1728}]
["MEMPHIS","TN","W-5",{"$f":"TRANSPOSE(R7250)","v":1818}]
["MEMPHIS","TN","O-1E",{"$f":"TRANSPOSE(S7250)","v":1566}]
["MEMPHIS","TN","O-2E",{"$f":"TRANSPOSE(T7250)","v":1641}]
["MEMPHIS","TN","O-3E",{"$f":"TRANSPOSE(U7250)","v":1743}]
["MEMPHIS","TN","O-1",{"$f":"TRANSPOSE(V7250)","v":1290}]
["MEMPHIS","TN","O-2",{"$f":"TRANSPOSE(W7250)","v":1491}]
["MEMPHIS","TN","O-3",{"$f":"TRANSPOSE(X7250)","v":1650}]
["MEMPHIS","TN","O-4",{"$f":"TRANSPOSE(Y7250)","v":1851}]
["MEMPHIS","TN","O-5",{"$f":"TRANSPOSE(Z7250)","v":1995}]
["MEMPHIS","TN","O-6",{"$f":"TRANSPOSE(AA7250)","v":2016}]
["MEMPHIS","TN","O-7",{"$f":"TRANSPOSE(AB7250)","v":2034}]
["NASHVILLE","TN","E-1",{"$f":"TRANSPOSE(E7274:E7274)","v":1269},1269,1269,1269,1269,1320,1356,1404,1455,1569,1356,1425,1488,1599,1728,1413,1479,1617,1323,1353,1485,1776,1983,2004,2025]
["NASHVILLE","TN","E-2",{"$f":"TRANSPOSE(F7274:F7274)","v":1269}]
["NASHVILLE","TN","E-3",{"$f":"TRANSPOSE(G7274:G7274)","v":1269}]
["NASHVILLE","TN","E-4",{"$f":"TRANSPOSE(H7274:H7274)","v":1269}]
["NASHVILLE","TN","E-5",{"$f":"TRANSPOSE(I7274:I7274)","v":1320}]
["NASHVILLE","TN","E-6",{"$f":"TRANSPOSE(J7274:J7274)","v":1356}]
["NASHVILLE","TN","E-7",{"$f":"TRANSPOSE(K7274:K7274)","v":1404}]
["NASHVILLE","TN","E-8",{"$f":"TRANSPOSE(L7274)","v":1455}]
["NASHVILLE","TN","E-9",{"$f":"TRANSPOSE(M7274)","v":1569}]
["NASHVILLE","TN","W-1",{"$f":"TRANSPOSE(N7274)","v":1356}]
["NASHVILLE","TN","W-2",{"$f":"TRANSPOSE(O7274)","v":1425}]
["NASHVILLE","TN","W-3",{"$f":"TRANSPOSE(P7274)","v":1488}]
["NASHVILLE","TN","W-4",{"$f":"TRANSPOSE(Q7274)","v":1599}]
["NASHVILLE","TN","W-5",{"$f":"TRANSPOSE(R7274)","v":1728}]
["NASHVILLE","TN","O-1E",{"$f":"TRANSPOSE(S7274)","v":1413}]
["NASHVILLE","TN","O-2E",{"$f":"TRANSPOSE(T7274)","v":1479}]
["NASHVILLE","TN","O-3E",{"$f":"TRANSPOSE(U7274)","v":1617}]
["NASHVILLE","TN","O-1",{"$f":"TRANSPOSE(V7274)","v":1323}]
["NASHVILLE","TN","O-2",{"$f":"TRANSPOSE(W7274)","v":1353}]
["NASHVILLE","TN","O-3",{"$f":"TRANSPOSE(X7274)","v":1485}]
["NASHVILLE","TN","O-4",{"$f":"TRANSPOSE(Y7274)","v":1776}]
["NASHVILLE","TN","O-5",{"$f":"TRANSPOSE(Z7274)","v":1983}]
["NASHVILLE","TN","O-6",{"$f":"TRANSPOSE(AA7274)","v":2004}]
["NASHVILLE","TN","O-7",{"$f":"TRANSPOSE(AB7274)","v":2025}]
["JOHNSON CITY/KINGSPORT","TN","E-1",{"$f":"TRANSPOSE(E7298:E7298)","v":828},828,828,828,828,870,1158,1182,1206,1275,1161,1191,1224,1293,1374,1188,1218,1305,903,1152,1221,1407,1539,1554,1569]
["JOHNSON CITY/KINGSPORT","TN","E-2",{"$f":"TRANSPOSE(F7298:F7298)","v":828}]
["JOHNSON CITY/KINGSPORT","TN","E-3",{"$f":"TRANSPOSE(G7298:G7298)","v":828}]
["JOHNSON CITY/KINGSPORT","TN","E-4",{"$f":"TRANSPOSE(H7298:H7298)","v":828}]
["JOHNSON CITY/KINGSPORT","TN","E-5",{"$f":"TRANSPOSE(I7298:I7298)","v":870}]
["JOHNSON CITY/KINGSPORT","TN","E-6",{"$f":"TRANSPOSE(J7298:J7298)","v":1158}]
["JOHNSON CITY/KINGSPORT","TN","E-7",{"$f":"TRANSPOSE(K7298:K7298)","v":1182}]
["JOHNSON CITY/KINGSPORT","TN","E-8",{"$f":"TRANSPOSE(L7298)","v":1206}]
["JOHNSON CITY/KINGSPORT","TN","E-9",{"$f":"TRANSPOSE(M7298)","v":1275}]
["JOHNSON CITY/KINGSPORT","TN","W-1",{"$f":"TRANSPOSE(N7298)","v":1161}]
["JOHNSON CITY/KINGSPORT","TN","W-2",{"$f":"TRANSPOSE(O7298)","v":1191}]
["JOHNSON CITY/KINGSPORT","TN","W-3",{"$f":"TRANSPOSE(P7298)","v":1224}]
["JOHNSON CITY/KINGSPORT","TN","W-4",{"$f":"TRANSPOSE(Q7298)","v":1293}]
["JOHNSON CITY/KINGSPORT","TN","W-5",{"$f":"TRANSPOSE(R7298)","v":1374}]
["JOHNSON CITY/KINGSPORT","TN","O-1E",{"$f":"TRANSPOSE(S7298)","v":1188}]
["JOHNSON CITY/KINGSPORT","TN","O-2E",{"$f":"TRANSPOSE(T7298)","v":1218}]
["JOHNSON CITY/KINGSPORT","TN","O-3E",{"$f":"TRANSPOSE(U7298)","v":1305}]
["JOHNSON CITY/KINGSPORT","TN","O-1",{"$f":"TRANSPOSE(V7298)","v":903}]
["JOHNSON CITY/KINGSPORT","TN","O-2",{"$f":"TRANSPOSE(W7298)","v":1152}]
["JOHNSON CITY/KINGSPORT","TN","O-3",{"$f":"TRANSPOSE(X7298)","v":1221}]
["JOHNSON CITY/KINGSPORT","TN","O-4",{"$f":"TRANSPOSE(Y7298)","v":1407}]
["JOHNSON CITY/KINGSPORT","TN","O-5",{"$f":"TRANSPOSE(Z7298)","v":1539}]
["JOHNSON CITY/KINGSPORT","TN","O-6",{"$f":"TRANSPOSE(AA7298)","v":1554}]
["JOHNSON CITY/KINGSPORT","TN","O-7",{"$f":"TRANSPOSE(AB7298)","v":1569}]
["MANCHESTER/TULLAHOMA","TN","E-1",{"$f":"TRANSPOSE(E7322:E7322)","v":801},801,801,801,801,906,1092,1122,1155,1215,1092,1134,1176,1230,1293,1128,1170,1239,924,1086,1173,1317,1419,1434,1449]
["MANCHESTER/TULLAHOMA","TN","E-2",{"$f":"TRANSPOSE(F7322:F7322)","v":801}]
["MANCHESTER/TULLAHOMA","TN","E-3",{"$f":"TRANSPOSE(G7322:G7322)","v":801}]
["MANCHESTER/TULLAHOMA","TN","E-4",{"$f":"TRANSPOSE(H7322:H7322)","v":801}]
["MANCHESTER/TULLAHOMA","TN","E-5",{"$f":"TRANSPOSE(I7322:I7322)","v":906}]
["MANCHESTER/TULLAHOMA","TN","E-6",{"$f":"TRANSPOSE(J7322:J7322)","v":1092}]
["MANCHESTER/TULLAHOMA","TN","E-7",{"$f":"TRANSPOSE(K7322:K7322)","v":1122}]
["MANCHESTER/TULLAHOMA","TN","E-8",{"$f":"TRANSPOSE(L7322)","v":1155}]
["MANCHESTER/TULLAHOMA","TN","E-9",{"$f":"TRANSPOSE(M7322)","v":1215}]
["MANCHESTER/TULLAHOMA","TN","W-1",{"$f":"TRANSPOSE(N7322)","v":1092}]
["MANCHESTER/TULLAHOMA","TN","W-2",{"$f":"TRANSPOSE(O7322)","v":1134}]
["MANCHESTER/TULLAHOMA","TN","W-3",{"$f":"TRANSPOSE(P7322)","v":1176}]
["MANCHESTER/TULLAHOMA","TN","W-4",{"$f":"TRANSPOSE(Q7322)","v":1230}]
["MANCHESTER/TULLAHOMA","TN","W-5",{"$f":"TRANSPOSE(R7322)","v":1293}]
["MANCHESTER/TULLAHOMA","TN","O-1E",{"$f":"TRANSPOSE(S7322)","v":1128}]
["MANCHESTER/TULLAHOMA","TN","O-2E",{"$f":"TRANSPOSE(T7322)","v":1170}]
["MANCHESTER/TULLAHOMA","TN","O-3E",{"$f":"TRANSPOSE(U7322)","v":1239}]
["MANCHESTER/TULLAHOMA","TN","O-1",{"$f":"TRANSPOSE(V7322)","v":924}]
["MANCHESTER/TULLAHOMA","TN","O-2",{"$f":"TRANSPOSE(W7322)","v":1086}]
["MANCHESTER/TULLAHOMA","TN","O-3",{"$f":"TRANSPOSE(X7322)","v":1173}]
["MANCHESTER/TULLAHOMA","TN","O-4",{"$f":"TRANSPOSE(Y7322)","v":1317}]
["MANCHESTER/TULLAHOMA","TN","O-5",{"$f":"TRANSPOSE(Z7322)","v":1419}]
["MANCHESTER/TULLAHOMA","TN","O-6",{"$f":"TRANSPOSE(AA7322)","v":1434}]
["MANCHESTER/TULLAHOMA","TN","O-7",{"$f":"TRANSPOSE(AB7322)","v":1449}]
["JACKSON","TN","E-1",{"$f":"TRANSPOSE(E7346:E7346)","v":882},882,882,882,882,921,996,1032,1071,1158,996,1047,1095,1182,1287,1038,1086,1200,930,996,1092,1329,1497,1512,1527]
["JACKSON","TN","E-2",{"$f":"TRANSPOSE(F7346:F7346)","v":882}]
["JACKSON","TN","E-3",{"$f":"TRANSPOSE(G7346:G7346)","v":882}]
["JACKSON","TN","E-4",{"$f":"TRANSPOSE(H7346:H7346)","v":882}]
["JACKSON","TN","E-5",{"$f":"TRANSPOSE(I7346:I7346)","v":921}]
["JACKSON","TN","E-6",{"$f":"TRANSPOSE(J7346:J7346)","v":996}]
["JACKSON","TN","E-7",{"$f":"TRANSPOSE(K7346:K7346)","v":1032}]
["JACKSON","TN","E-8",{"$f":"TRANSPOSE(L7346)","v":1071}]
["JACKSON","TN","E-9",{"$f":"TRANSPOSE(M7346)","v":1158}]
["JACKSON","TN","W-1",{"$f":"TRANSPOSE(N7346)","v":996}]
["JACKSON","TN","W-2",{"$f":"TRANSPOSE(O7346)","v":1047}]
["JACKSON","TN","W-3",{"$f":"TRANSPOSE(P7346)","v":1095}]
["JACKSON","TN","W-4",{"$f":"TRANSPOSE(Q7346)","v":1182}]
["JACKSON","TN","W-5",{"$f":"TRANSPOSE(R7346)","v":1287}]
["JACKSON","TN","O-1E",{"$f":"TRANSPOSE(S7346)","v":1038}]
["JACKSON","TN","O-2E",{"$f":"TRANSPOSE(T7346)","v":1086}]
["JACKSON","TN","O-3E",{"$f":"TRANSPOSE(U7346)","v":1200}]
["JACKSON","TN","O-1",{"$f":"TRANSPOSE(V7346)","v":930}]
["JACKSON","TN","O-2",{"$f":"TRANSPOSE(W7346)","v":996}]
["JACKSON","TN","O-3",{"$f":"TRANSPOSE(X7346)","v":1092}]
["JACKSON","TN","O-4",{"$f":"TRANSPOSE(Y7346)","v":1329}]
["JACKSON","TN","O-5",{"$f":"TRANSPOSE(Z7346)","v":1497}]
["JACKSON","TN","O-6",{"$f":"TRANSPOSE(AA7346)","v":1512}]
["JACKSON","TN","O-7",{"$f":"TRANSPOSE(AB7346)","v":1527}]
["ABILENE/DYESS AFB","TX","E-1",{"$f":"TRANSPOSE(E7370:E7370)","v":1005},1005,1005,1005,1005,1074,1191,1275,1368,1485,1191,1314,1428,1506,1602,1296,1410,1521,1089,1188,1422,1638,1788,1806,1824]
["ABILENE/DYESS AFB","TX","E-2",{"$f":"TRANSPOSE(F7370:F7370)","v":1005}]
["ABILENE/DYESS AFB","TX","E-3",{"$f":"TRANSPOSE(G7370:G7370)","v":1005}]
["ABILENE/DYESS AFB","TX","E-4",{"$f":"TRANSPOSE(H7370:H7370)","v":1005}]
["ABILENE/DYESS AFB","TX","E-5",{"$f":"TRANSPOSE(I7370:I7370)","v":1074}]
["ABILENE/DYESS AFB","TX","E-6",{"$f":"TRANSPOSE(J7370:J7370)","v":1191}]
["ABILENE/DYESS AFB","TX","E-7",{"$f":"TRANSPOSE(K7370:K7370)","v":1275}]
["ABILENE/DYESS AFB","TX","E-8",{"$f":"TRANSPOSE(L7370)","v":1368}]
["ABILENE/DYESS AFB","TX","E-9",{"$f":"TRANSPOSE(M7370)","v":1485}]
["ABILENE/DYESS AFB","TX","W-1",{"$f":"TRANSPOSE(N7370)","v":1191}]
["ABILENE/DYESS AFB","TX","W-2",{"$f":"TRANSPOSE(O7370)","v":1314}]
["ABILENE/DYESS AFB","TX","W-3",{"$f":"TRANSPOSE(P7370)","v":1428}]
["ABILENE/DYESS AFB","TX","W-4",{"$f":"TRANSPOSE(Q7370)","v":1506}]
["ABILENE/DYESS AFB","TX","W-5",{"$f":"TRANSPOSE(R7370)","v":1602}]
["ABILENE/DYESS AFB","TX","O-1E",{"$f":"TRANSPOSE(S7370)","v":1296}]
["ABILENE/DYESS AFB","TX","O-2E",{"$f":"TRANSPOSE(T7370)","v":1410}]
["ABILENE/DYESS AFB","TX","O-3E",{"$f":"TRANSPOSE(U7370)","v":1521}]
["ABILENE/DYESS AFB","TX","O-1",{"$f":"TRANSPOSE(V7370)","v":1089}]
["ABILENE/DYESS AFB","TX","O-2",{"$f":"TRANSPOSE(W7370)","v":1188}]
["ABILENE/DYESS AFB","TX","O-3",{"$f":"TRANSPOSE(X7370)","v":1422}]
["ABILENE/DYESS AFB","TX","O-4",{"$f":"TRANSPOSE(Y7370)","v":1638}]
["ABILENE/DYESS AFB","TX","O-5",{"$f":"TRANSPOSE(Z7370)","v":1788}]
["ABILENE/DYESS AFB","TX","O-6",{"$f":"TRANSPOSE(AA7370)","v":1806}]
["ABILENE/DYESS AFB","TX","O-7",{"$f":"TRANSPOSE(AB7370)","v":1824}]
["AMARILLO","TX","E-1",{"$f":"TRANSPOSE(E7394:E7394)","v":897},897,897,897,897,984,1194,1236,1284,1380,1194,1257,1317,1404,1509,1248,1308,1419,1008,1188,1314,1548,1716,1731,1749]
["AMARILLO","TX","E-2",{"$f":"TRANSPOSE(F7394:F7394)","v":897}]
["AMARILLO","TX","E-3",{"$f":"TRANSPOSE(G7394:G7394)","v":897}]
["AMARILLO","TX","E-4",{"$f":"TRANSPOSE(H7394:H7394)","v":897}]
["AMARILLO","TX","E-5",{"$f":"TRANSPOSE(I7394:I7394)","v":984}]
["AMARILLO","TX","E-6",{"$f":"TRANSPOSE(J7394:J7394)","v":1194}]
["AMARILLO","TX","E-7",{"$f":"TRANSPOSE(K7394:K7394)","v":1236}]
["AMARILLO","TX","E-8",{"$f":"TRANSPOSE(L7394)","v":1284}]
["AMARILLO","TX","E-9",{"$f":"TRANSPOSE(M7394)","v":1380}]
["AMARILLO","TX","W-1",{"$f":"TRANSPOSE(N7394)","v":1194}]
["AMARILLO","TX","W-2",{"$f":"TRANSPOSE(O7394)","v":1257}]
["AMARILLO","TX","W-3",{"$f":"TRANSPOSE(P7394)","v":1317}]
["AMARILLO","TX","W-4",{"$f":"TRANSPOSE(Q7394)","v":1404}]
["AMARILLO","TX","W-5",{"$f":"TRANSPOSE(R7394)","v":1509}]
["AMARILLO","TX","O-1E",{"$f":"TRANSPOSE(S7394)","v":1248}]
["AMARILLO","TX","O-2E",{"$f":"TRANSPOSE(T7394)","v":1308}]
["AMARILLO","TX","O-3E",{"$f":"TRANSPOSE(U7394)","v":1419}]
["AMARILLO","TX","O-1",{"$f":"TRANSPOSE(V7394)","v":1008}]
["AMARILLO","TX","O-2",{"$f":"TRANSPOSE(W7394)","v":1188}]
["AMARILLO","TX","O-3",{"$f":"TRANSPOSE(X7394)","v":1314}]
["AMARILLO","TX","O-4",{"$f":"TRANSPOSE(Y7394)","v":1548}]
["AMARILLO","TX","O-5",{"$f":"TRANSPOSE(Z7394)","v":1716}]
["AMARILLO","TX","O-6",{"$f":"TRANSPOSE(AA7394)","v":1731}]
["AMARILLO","TX","O-7",{"$f":"TRANSPOSE(AB7394)","v":1749}]
["AUSTIN","TX","E-1",{"$f":"TRANSPOSE(E7418:E7418)","v":1143},1143,1143,1143,1143,1257,1407,1449,1497,1599,1407,1470,1530,1623,1737,1461,1521,1641,1272,1404,1527,1779,1962,1983,2001]
["AUSTIN","TX","E-2",{"$f":"TRANSPOSE(F7418:F7418)","v":1143}]
["AUSTIN","TX","E-3",{"$f":"TRANSPOSE(G7418:G7418)","v":1143}]
["AUSTIN","TX","E-4",{"$f":"TRANSPOSE(H7418:H7418)","v":1143}]
["AUSTIN","TX","E-5",{"$f":"TRANSPOSE(I7418:I7418)","v":1257}]
["AUSTIN","TX","E-6",{"$f":"TRANSPOSE(J7418:J7418)","v":1407}]
["AUSTIN","TX","E-7",{"$f":"TRANSPOSE(K7418:K7418)","v":1449}]
["AUSTIN","TX","E-8",{"$f":"TRANSPOSE(L7418)","v":1497}]
["AUSTIN","TX","E-9",{"$f":"TRANSPOSE(M7418)","v":1599}]
["AUSTIN","TX","W-1",{"$f":"TRANSPOSE(N7418)","v":1407}]
["AUSTIN","TX","W-2",{"$f":"TRANSPOSE(O7418)","v":1470}]
["AUSTIN","TX","W-3",{"$f":"TRANSPOSE(P7418)","v":1530}]
["AUSTIN","TX","W-4",{"$f":"TRANSPOSE(Q7418)","v":1623}]
["AUSTIN","TX","W-5",{"$f":"TRANSPOSE(R7418)","v":1737}]
["AUSTIN","TX","O-1E",{"$f":"TRANSPOSE(S7418)","v":1461}]
["AUSTIN","TX","O-2E",{"$f":"TRANSPOSE(T7418)","v":1521}]
["AUSTIN","TX","O-3E",{"$f":"TRANSPOSE(U7418)","v":1641}]
["AUSTIN","TX","O-1",{"$f":"TRANSPOSE(V7418)","v":1272}]
["AUSTIN","TX","O-2",{"$f":"TRANSPOSE(W7418)","v":1404}]
["AUSTIN","TX","O-3",{"$f":"TRANSPOSE(X7418)","v":1527}]
["AUSTIN","TX","O-4",{"$f":"TRANSPOSE(Y7418)","v":1779}]
["AUSTIN","TX","O-5",{"$f":"TRANSPOSE(Z7418)","v":1962}]
["AUSTIN","TX","O-6",{"$f":"TRANSPOSE(AA7418)","v":1983}]
["AUSTIN","TX","O-7",{"$f":"TRANSPOSE(AB7418)","v":2001}]
["BEAUMONT","TX","E-1",{"$f":"TRANSPOSE(E7442:E7442)","v":1185},1185,1185,1185,1185,1266,1611,1665,1722,1827,1614,1689,1758,1854,1965,1677,1749,1869,1302,1605,1755,2007,2187,2208,2232]
["BEAUMONT","TX","E-2",{"$f":"TRANSPOSE(F7442:F7442)","v":1185}]
["BEAUMONT","TX","E-3",{"$f":"TRANSPOSE(G7442:G7442)","v":1185}]
["BEAUMONT","TX","E-4",{"$f":"TRANSPOSE(H7442:H7442)","v":1185}]
["BEAUMONT","TX","E-5",{"$f":"TRANSPOSE(I7442:I7442)","v":1266}]
["BEAUMONT","TX","E-6",{"$f":"TRANSPOSE(J7442:J7442)","v":1611}]
["BEAUMONT","TX","E-7",{"$f":"TRANSPOSE(K7442:K7442)","v":1665}]
["BEAUMONT","TX","E-8",{"$f":"TRANSPOSE(L7442)","v":1722}]
["BEAUMONT","TX","E-9",{"$f":"TRANSPOSE(M7442)","v":1827}]
["BEAUMONT","TX","W-1",{"$f":"TRANSPOSE(N7442)","v":1614}]
["BEAUMONT","TX","W-2",{"$f":"TRANSPOSE(O7442)","v":1689}]
["BEAUMONT","TX","W-3",{"$f":"TRANSPOSE(P7442)","v":1758}]
["BEAUMONT","TX","W-4",{"$f":"TRANSPOSE(Q7442)","v":1854}]
["BEAUMONT","TX","W-5",{"$f":"TRANSPOSE(R7442)","v":1965}]
["BEAUMONT","TX","O-1E",{"$f":"TRANSPOSE(S7442)","v":1677}]
["BEAUMONT","TX","O-2E",{"$f":"TRANSPOSE(T7442)","v":1749}]
["BEAUMONT","TX","O-3E",{"$f":"TRANSPOSE(U7442)","v":1869}]
["BEAUMONT","TX","O-1",{"$f":"TRANSPOSE(V7442)","v":1302}]
["BEAUMONT","TX","O-2",{"$f":"TRANSPOSE(W7442)","v":1605}]
["BEAUMONT","TX","O-3",{"$f":"TRANSPOSE(X7442)","v":1755}]
["BEAUMONT","TX","O-4",{"$f":"TRANSPOSE(Y7442)","v":2007}]
["BEAUMONT","TX","O-5",{"$f":"TRANSPOSE(Z7442)","v":2187}]
["BEAUMONT","TX","O-6",{"$f":"TRANSPOSE(AA7442)","v":2208}]
["BEAUMONT","TX","O-7",{"$f":"TRANSPOSE(AB7442)","v":2232}]
["COLLEGE STATION","TX","E-1",{"$f":"TRANSPOSE(E7466:E7466)","v":936},936,936,936,936,1047,1305,1347,1395,1527,1305,1365,1422,1569,1740,1356,1416,1593,1074,1299,1422,1806,2082,2103,2124]
["COLLEGE STATION","TX","E-2",{"$f":"TRANSPOSE(F7466:F7466)","v":936}]
["COLLEGE STATION","TX","E-3",{"$f":"TRANSPOSE(G7466:G7466)","v":936}]
["COLLEGE STATION","TX","E-4",{"$f":"TRANSPOSE(H7466:H7466)","v":936}]
["COLLEGE STATION","TX","E-5",{"$f":"TRANSPOSE(I7466:I7466)","v":1047}]
["COLLEGE STATION","TX","E-6",{"$f":"TRANSPOSE(J7466:J7466)","v":1305}]
["COLLEGE STATION","TX","E-7",{"$f":"TRANSPOSE(K7466:K7466)","v":1347}]
["COLLEGE STATION","TX","E-8",{"$f":"TRANSPOSE(L7466)","v":1395}]
["COLLEGE STATION","TX","E-9",{"$f":"TRANSPOSE(M7466)","v":1527}]
["COLLEGE STATION","TX","W-1",{"$f":"TRANSPOSE(N7466)","v":1305}]
["COLLEGE STATION","TX","W-2",{"$f":"TRANSPOSE(O7466)","v":1365}]
["COLLEGE STATION","TX","W-3",{"$f":"TRANSPOSE(P7466)","v":1422}]
["COLLEGE STATION","TX","W-4",{"$f":"TRANSPOSE(Q7466)","v":1569}]
["COLLEGE STATION","TX","W-5",{"$f":"TRANSPOSE(R7466)","v":1740}]
["COLLEGE STATION","TX","O-1E",{"$f":"TRANSPOSE(S7466)","v":1356}]
["COLLEGE STATION","TX","O-2E",{"$f":"TRANSPOSE(T7466)","v":1416}]
["COLLEGE STATION","TX","O-3E",{"$f":"TRANSPOSE(U7466)","v":1593}]
["COLLEGE STATION","TX","O-1",{"$f":"TRANSPOSE(V7466)","v":1074}]
["COLLEGE STATION","TX","O-2",{"$f":"TRANSPOSE(W7466)","v":1299}]
["COLLEGE STATION","TX","O-3",{"$f":"TRANSPOSE(X7466)","v":1422}]
["COLLEGE STATION","TX","O-4",{"$f":"TRANSPOSE(Y7466)","v":1806}]
["COLLEGE STATION","TX","O-5",{"$f":"TRANSPOSE(Z7466)","v":2082}]
["COLLEGE STATION","TX","O-6",{"$f":"TRANSPOSE(AA7466)","v":2103}]
["COLLEGE STATION","TX","O-7",{"$f":"TRANSPOSE(AB7466)","v":2124}]
["CORPUS CHRISTI","TX","E-1",{"$f":"TRANSPOSE(E7490:E7490)","v":1137},1137,1137,1137,1137,1251,1617,1647,1683,1767,1617,1662,1704,1794,1899,1656,1698,1809,1293,1611,1701,1941,2112,2133,2154]
["CORPUS CHRISTI","TX","E-2",{"$f":"TRANSPOSE(F7490:F7490)","v":1137}]
["CORPUS CHRISTI","TX","E-3",{"$f":"TRANSPOSE(G7490:G7490)","v":1137}]
["CORPUS CHRISTI","TX","E-4",{"$f":"TRANSPOSE(H7490:H7490)","v":1137}]
["CORPUS CHRISTI","TX","E-5",{"$f":"TRANSPOSE(I7490:I7490)","v":1251}]
["CORPUS CHRISTI","TX","E-6",{"$f":"TRANSPOSE(J7490:J7490)","v":1617}]
["CORPUS CHRISTI","TX","E-7",{"$f":"TRANSPOSE(K7490:K7490)","v":1647}]
["CORPUS CHRISTI","TX","E-8",{"$f":"TRANSPOSE(L7490)","v":1683}]
["CORPUS CHRISTI","TX","E-9",{"$f":"TRANSPOSE(M7490)","v":1767}]
["CORPUS CHRISTI","TX","W-1",{"$f":"TRANSPOSE(N7490)","v":1617}]
["CORPUS CHRISTI","TX","W-2",{"$f":"TRANSPOSE(O7490)","v":1662}]
["CORPUS CHRISTI","TX","W-3",{"$f":"TRANSPOSE(P7490)","v":1704}]
["CORPUS CHRISTI","TX","W-4",{"$f":"TRANSPOSE(Q7490)","v":1794}]
["CORPUS CHRISTI","TX","W-5",{"$f":"TRANSPOSE(R7490)","v":1899}]
["CORPUS CHRISTI","TX","O-1E",{"$f":"TRANSPOSE(S7490)","v":1656}]
["CORPUS CHRISTI","TX","O-2E",{"$f":"TRANSPOSE(T7490)","v":1698}]
["CORPUS CHRISTI","TX","O-3E",{"$f":"TRANSPOSE(U7490)","v":1809}]
["CORPUS CHRISTI","TX","O-1",{"$f":"TRANSPOSE(V7490)","v":1293}]
["CORPUS CHRISTI","TX","O-2",{"$f":"TRANSPOSE(W7490)","v":1611}]
["CORPUS CHRISTI","TX","O-3",{"$f":"TRANSPOSE(X7490)","v":1701}]
["CORPUS CHRISTI","TX","O-4",{"$f":"TRANSPOSE(Y7490)","v":1941}]
["CORPUS CHRISTI","TX","O-5",{"$f":"TRANSPOSE(Z7490)","v":2112}]
["CORPUS CHRISTI","TX","O-6",{"$f":"TRANSPOSE(AA7490)","v":2133}]
["CORPUS CHRISTI","TX","O-7",{"$f":"TRANSPOSE(AB7490)","v":2154}]
["KINGSVILLE","TX","E-1",{"$f":"TRANSPOSE(E7514:E7514)","v":1125},1125,1125,1125,1125,1230,1584,1602,1623,1710,1584,1611,1638,1737,1857,1608,1632,1755,1269,1575,1635,1902,2097,2118,2139]
["KINGSVILLE","TX","E-2",{"$f":"TRANSPOSE(F7514:F7514)","v":1125}]
["KINGSVILLE","TX","E-3",{"$f":"TRANSPOSE(G7514:G7514)","v":1125}]
["KINGSVILLE","TX","E-4",{"$f":"TRANSPOSE(H7514:H7514)","v":1125}]
["KINGSVILLE","TX","E-5",{"$f":"TRANSPOSE(I7514:I7514)","v":1230}]
["KINGSVILLE","TX","E-6",{"$f":"TRANSPOSE(J7514:J7514)","v":1584}]
["KINGSVILLE","TX","E-7",{"$f":"TRANSPOSE(K7514:K7514)","v":1602}]
["KINGSVILLE","TX","E-8",{"$f":"TRANSPOSE(L7514)","v":1623}]
["KINGSVILLE","TX","E-9",{"$f":"TRANSPOSE(M7514)","v":1710}]
["KINGSVILLE","TX","W-1",{"$f":"TRANSPOSE(N7514)","v":1584}]
["KINGSVILLE","TX","W-2",{"$f":"TRANSPOSE(O7514)","v":1611}]
["KINGSVILLE","TX","W-3",{"$f":"TRANSPOSE(P7514)","v":1638}]
["KINGSVILLE","TX","W-4",{"$f":"TRANSPOSE(Q7514)","v":1737}]
["KINGSVILLE","TX","W-5",{"$f":"TRANSPOSE(R7514)","v":1857}]
["KINGSVILLE","TX","O-1E",{"$f":"TRANSPOSE(S7514)","v":1608}]
["KINGSVILLE","TX","O-2E",{"$f":"TRANSPOSE(T7514)","v":1632}]
["KINGSVILLE","TX","O-3E",{"$f":"TRANSPOSE(U7514)","v":1755}]
["KINGSVILLE","TX","O-1",{"$f":"TRANSPOSE(V7514)","v":1269}]
["KINGSVILLE","TX","O-2",{"$f":"TRANSPOSE(W7514)","v":1575}]
["KINGSVILLE","TX","O-3",{"$f":"TRANSPOSE(X7514)","v":1635}]
["KINGSVILLE","TX","O-4",{"$f":"TRANSPOSE(Y7514)","v":1902}]
["KINGSVILLE","TX","O-5",{"$f":"TRANSPOSE(Z7514)","v":2097}]
["KINGSVILLE","TX","O-6",{"$f":"TRANSPOSE(AA7514)","v":2118}]
["KINGSVILLE","TX","O-7",{"$f":"TRANSPOSE(AB7514)","v":2139}]
["DALLAS","TX","E-1",{"$f":"TRANSPOSE(E7538:E7538)","v":1320},1320,1320,1320,1320,1425,1599,1644,1692,1779,1602,1665,1722,1800,1890,1653,1713,1815,1443,1596,1722,1926,2073,2094,2115]
["DALLAS","TX","E-2",{"$f":"TRANSPOSE(F7538:F7538)","v":1320}]
["DALLAS","TX","E-3",{"$f":"TRANSPOSE(G7538:G7538)","v":1320}]
["DALLAS","TX","E-4",{"$f":"TRANSPOSE(H7538:H7538)","v":1320}]
["DALLAS","TX","E-5",{"$f":"TRANSPOSE(I7538:I7538)","v":1425}]
["DALLAS","TX","E-6",{"$f":"TRANSPOSE(J7538:J7538)","v":1599}]
["DALLAS","TX","E-7",{"$f":"TRANSPOSE(K7538:K7538)","v":1644}]
["DALLAS","TX","E-8",{"$f":"TRANSPOSE(L7538)","v":1692}]
["DALLAS","TX","E-9",{"$f":"TRANSPOSE(M7538)","v":1779}]
["DALLAS","TX","W-1",{"$f":"TRANSPOSE(N7538)","v":1602}]
["DALLAS","TX","W-2",{"$f":"TRANSPOSE(O7538)","v":1665}]
["DALLAS","TX","W-3",{"$f":"TRANSPOSE(P7538)","v":1722}]
["DALLAS","TX","W-4",{"$f":"TRANSPOSE(Q7538)","v":1800}]
["DALLAS","TX","W-5",{"$f":"TRANSPOSE(R7538)","v":1890}]
["DALLAS","TX","O-1E",{"$f":"TRANSPOSE(S7538)","v":1653}]
["DALLAS","TX","O-2E",{"$f":"TRANSPOSE(T7538)","v":1713}]
["DALLAS","TX","O-3E",{"$f":"TRANSPOSE(U7538)","v":1815}]
["DALLAS","TX","O-1",{"$f":"TRANSPOSE(V7538)","v":1443}]
["DALLAS","TX","O-2",{"$f":"TRANSPOSE(W7538)","v":1596}]
["DALLAS","TX","O-3",{"$f":"TRANSPOSE(X7538)","v":1722}]
["DALLAS","TX","O-4",{"$f":"TRANSPOSE(Y7538)","v":1926}]
["DALLAS","TX","O-5",{"$f":"TRANSPOSE(Z7538)","v":2073}]
["DALLAS","TX","O-6",{"$f":"TRANSPOSE(AA7538)","v":2094}]
["DALLAS","TX","O-7",{"$f":"TRANSPOSE(AB7538)","v":2115}]
["LAUGHLIN AFB/DEL RIO","TX","E-1",{"$f":"TRANSPOSE(E7562:E7562)","v":885},885,885,885,885,1029,1326,1338,1350,1452,1326,1344,1359,1485,1635,1341,1356,1509,1062,1320,1359,1692,1935,1953,1974]
["LAUGHLIN AFB/DEL RIO","TX","E-2",{"$f":"TRANSPOSE(F7562:F7562)","v":885}]
["LAUGHLIN AFB/DEL RIO","TX","E-3",{"$f":"TRANSPOSE(G7562:G7562)","v":885}]
["LAUGHLIN AFB/DEL RIO","TX","E-4",{"$f":"TRANSPOSE(H7562:H7562)","v":885}]
["LAUGHLIN AFB/DEL RIO","TX","E-5",{"$f":"TRANSPOSE(I7562:I7562)","v":1029}]
["LAUGHLIN AFB/DEL RIO","TX","E-6",{"$f":"TRANSPOSE(J7562:J7562)","v":1326}]
["LAUGHLIN AFB/DEL RIO","TX","E-7",{"$f":"TRANSPOSE(K7562:K7562)","v":1338}]
["LAUGHLIN AFB/DEL RIO","TX","E-8",{"$f":"TRANSPOSE(L7562)","v":1350}]
["LAUGHLIN AFB/DEL RIO","TX","E-9",{"$f":"TRANSPOSE(M7562)","v":1452}]
["LAUGHLIN AFB/DEL RIO","TX","W-1",{"$f":"TRANSPOSE(N7562)","v":1326}]
["LAUGHLIN AFB/DEL RIO","TX","W-2",{"$f":"TRANSPOSE(O7562)","v":1344}]
["LAUGHLIN AFB/DEL RIO","TX","W-3",{"$f":"TRANSPOSE(P7562)","v":1359}]
["LAUGHLIN AFB/DEL RIO","TX","W-4",{"$f":"TRANSPOSE(Q7562)","v":1485}]
["LAUGHLIN AFB/DEL RIO","TX","W-5",{"$f":"TRANSPOSE(R7562)","v":1635}]
["LAUGHLIN AFB/DEL RIO","TX","O-1E",{"$f":"TRANSPOSE(S7562)","v":1341}]
["LAUGHLIN AFB/DEL RIO","TX","O-2E",{"$f":"TRANSPOSE(T7562)","v":1356}]
["LAUGHLIN AFB/DEL RIO","TX","O-3E",{"$f":"TRANSPOSE(U7562)","v":1509}]
["LAUGHLIN AFB/DEL RIO","TX","O-1",{"$f":"TRANSPOSE(V7562)","v":1062}]
["LAUGHLIN AFB/DEL RIO","TX","O-2",{"$f":"TRANSPOSE(W7562)","v":1320}]
["LAUGHLIN AFB/DEL RIO","TX","O-3",{"$f":"TRANSPOSE(X7562)","v":1359}]
["LAUGHLIN AFB/DEL RIO","TX","O-4",{"$f":"TRANSPOSE(Y7562)","v":1692}]
["LAUGHLIN AFB/DEL RIO","TX","O-5",{"$f":"TRANSPOSE(Z7562)","v":1935}]
["LAUGHLIN AFB/DEL RIO","TX","O-6",{"$f":"TRANSPOSE(AA7562)","v":1953}]
["LAUGHLIN AFB/DEL RIO","TX","O-7",{"$f":"TRANSPOSE(AB7562)","v":1974}]
["EL PASO","TX","E-1",{"$f":"TRANSPOSE(E7586:E7586)","v":924},924,924,924,924,972,1164,1206,1248,1314,1164,1224,1278,1326,1386,1215,1269,1338,993,1161,1275,1410,1506,1521,1536]
["EL PASO","TX","E-2",{"$f":"TRANSPOSE(F7586:F7586)","v":924}]
["EL PASO","TX","E-3",{"$f":"TRANSPOSE(G7586:G7586)","v":924}]
["EL PASO","TX","E-4",{"$f":"TRANSPOSE(H7586:H7586)","v":924}]
["EL PASO","TX","E-5",{"$f":"TRANSPOSE(I7586:I7586)","v":972}]
["EL PASO","TX","E-6",{"$f":"TRANSPOSE(J7586:J7586)","v":1164}]
["EL PASO","TX","E-7",{"$f":"TRANSPOSE(K7586:K7586)","v":1206}]
["EL PASO","TX","E-8",{"$f":"TRANSPOSE(L7586)","v":1248}]
["EL PASO","TX","E-9",{"$f":"TRANSPOSE(M7586)","v":1314}]
["EL PASO","TX","W-1",{"$f":"TRANSPOSE(N7586)","v":1164}]
["EL PASO","TX","W-2",{"$f":"TRANSPOSE(O7586)","v":1224}]
["EL PASO","TX","W-3",{"$f":"TRANSPOSE(P7586)","v":1278}]
["EL PASO","TX","W-4",{"$f":"TRANSPOSE(Q7586)","v":1326}]
["EL PASO","TX","W-5",{"$f":"TRANSPOSE(R7586)","v":1386}]
["EL PASO","TX","O-1E",{"$f":"TRANSPOSE(S7586)","v":1215}]
["EL PASO","TX","O-2E",{"$f":"TRANSPOSE(T7586)","v":1269}]
["EL PASO","TX","O-3E",{"$f":"TRANSPOSE(U7586)","v":1338}]
["EL PASO","TX","O-1",{"$f":"TRANSPOSE(V7586)","v":993}]
["EL PASO","TX","O-2",{"$f":"TRANSPOSE(W7586)","v":1161}]
["EL PASO","TX","O-3",{"$f":"TRANSPOSE(X7586)","v":1275}]
["EL PASO","TX","O-4",{"$f":"TRANSPOSE(Y7586)","v":1410}]
["EL PASO","TX","O-5",{"$f":"TRANSPOSE(Z7586)","v":1506}]
["EL PASO","TX","O-6",{"$f":"TRANSPOSE(AA7586)","v":1521}]
["EL PASO","TX","O-7",{"$f":"TRANSPOSE(AB7586)","v":1536}]
["BROWNSVILLE","TX","E-1",{"$f":"TRANSPOSE(E7610:E7610)","v":972},972,972,972,972,1101,1299,1356,1416,1536,1299,1380,1455,1566,1695,1368,1443,1584,1122,1293,1452,1746,1956,1974,1995]
["BROWNSVILLE","TX","E-2",{"$f":"TRANSPOSE(F7610:F7610)","v":972}]
["BROWNSVILLE","TX","E-3",{"$f":"TRANSPOSE(G7610:G7610)","v":972}]
["BROWNSVILLE","TX","E-4",{"$f":"TRANSPOSE(H7610:H7610)","v":972}]
["BROWNSVILLE","TX","E-5",{"$f":"TRANSPOSE(I7610:I7610)","v":1101}]
["BROWNSVILLE","TX","E-6",{"$f":"TRANSPOSE(J7610:J7610)","v":1299}]
["BROWNSVILLE","TX","E-7",{"$f":"TRANSPOSE(K7610:K7610)","v":1356}]
["BROWNSVILLE","TX","E-8",{"$f":"TRANSPOSE(L7610)","v":1416}]
["BROWNSVILLE","TX","E-9",{"$f":"TRANSPOSE(M7610)","v":1536}]
["BROWNSVILLE","TX","W-1",{"$f":"TRANSPOSE(N7610)","v":1299}]
["BROWNSVILLE","TX","W-2",{"$f":"TRANSPOSE(O7610)","v":1380}]
["BROWNSVILLE","TX","W-3",{"$f":"TRANSPOSE(P7610)","v":1455}]
["BROWNSVILLE","TX","W-4",{"$f":"TRANSPOSE(Q7610)","v":1566}]
["BROWNSVILLE","TX","W-5",{"$f":"TRANSPOSE(R7610)","v":1695}]
["BROWNSVILLE","TX","O-1E",{"$f":"TRANSPOSE(S7610)","v":1368}]
["BROWNSVILLE","TX","O-2E",{"$f":"TRANSPOSE(T7610)","v":1443}]
["BROWNSVILLE","TX","O-3E",{"$f":"TRANSPOSE(U7610)","v":1584}]
["BROWNSVILLE","TX","O-1",{"$f":"TRANSPOSE(V7610)","v":1122}]
["BROWNSVILLE","TX","O-2",{"$f":"TRANSPOSE(W7610)","v":1293}]
["BROWNSVILLE","TX","O-3",{"$f":"TRANSPOSE(X7610)","v":1452}]
["BROWNSVILLE","TX","O-4",{"$f":"TRANSPOSE(Y7610)","v":1746}]
["BROWNSVILLE","TX","O-5",{"$f":"TRANSPOSE(Z7610)","v":1956}]
["BROWNSVILLE","TX","O-6",{"$f":"TRANSPOSE(AA7610)","v":1974}]
["BROWNSVILLE","TX","O-7",{"$f":"TRANSPOSE(AB7610)","v":1995}]
["HOUSTON","TX","E-1",{"$f":"TRANSPOSE(E7634:E7634)","v":1389},1389,1389,1389,1389,1557,1923,1953,1986,2091,1923,1968,2007,2121,2253,1959,2001,2142,1596,1914,2007,2304,2520,2544,2571]
["HOUSTON","TX","E-2",{"$f":"TRANSPOSE(F7634:F7634)","v":1389}]
["HOUSTON","TX","E-3",{"$f":"TRANSPOSE(G7634:G7634)","v":1389}]
["HOUSTON","TX","E-4",{"$f":"TRANSPOSE(H7634:H7634)","v":1389}]
["HOUSTON","TX","E-5",{"$f":"TRANSPOSE(I7634:I7634)","v":1557}]
["HOUSTON","TX","E-6",{"$f":"TRANSPOSE(J7634:J7634)","v":1923}]
["HOUSTON","TX","E-7",{"$f":"TRANSPOSE(K7634:K7634)","v":1953}]
["HOUSTON","TX","E-8",{"$f":"TRANSPOSE(L7634)","v":1986}]
["HOUSTON","TX","E-9",{"$f":"TRANSPOSE(M7634)","v":2091}]
["HOUSTON","TX","W-1",{"$f":"TRANSPOSE(N7634)","v":1923}]
["HOUSTON","TX","W-2",{"$f":"TRANSPOSE(O7634)","v":1968}]
["HOUSTON","TX","W-3",{"$f":"TRANSPOSE(P7634)","v":2007}]
["HOUSTON","TX","W-4",{"$f":"TRANSPOSE(Q7634)","v":2121}]
["HOUSTON","TX","W-5",{"$f":"TRANSPOSE(R7634)","v":2253}]
["HOUSTON","TX","O-1E",{"$f":"TRANSPOSE(S7634)","v":1959}]
["HOUSTON","TX","O-2E",{"$f":"TRANSPOSE(T7634)","v":2001}]
["HOUSTON","TX","O-3E",{"$f":"TRANSPOSE(U7634)","v":2142}]
["HOUSTON","TX","O-1",{"$f":"TRANSPOSE(V7634)","v":1596}]
["HOUSTON","TX","O-2",{"$f":"TRANSPOSE(W7634)","v":1914}]
["HOUSTON","TX","O-3",{"$f":"TRANSPOSE(X7634)","v":2007}]
["HOUSTON","TX","O-4",{"$f":"TRANSPOSE(Y7634)","v":2304}]
["HOUSTON","TX","O-5",{"$f":"TRANSPOSE(Z7634)","v":2520}]
["HOUSTON","TX","O-6",{"$f":"TRANSPOSE(AA7634)","v":2544}]
["HOUSTON","TX","O-7",{"$f":"TRANSPOSE(AB7634)","v":2571}]
["LUBBOCK/REESE AFB","TX","E-1",{"$f":"TRANSPOSE(E7658:E7658)","v":987},987,987,987,987,1068,1206,1251,1296,1374,1209,1269,1326,1392,1470,1260,1320,1404,1083,1203,1326,1500,1626,1644,1659]
["LUBBOCK/REESE AFB","TX","E-2",{"$f":"TRANSPOSE(F7658:F7658)","v":987}]
["LUBBOCK/REESE AFB","TX","E-3",{"$f":"TRANSPOSE(G7658:G7658)","v":987}]
["LUBBOCK/REESE AFB","TX","E-4",{"$f":"TRANSPOSE(H7658:H7658)","v":987}]
["LUBBOCK/REESE AFB","TX","E-5",{"$f":"TRANSPOSE(I7658:I7658)","v":1068}]
["LUBBOCK/REESE AFB","TX","E-6",{"$f":"TRANSPOSE(J7658:J7658)","v":1206}]
["LUBBOCK/REESE AFB","TX","E-7",{"$f":"TRANSPOSE(K7658:K7658)","v":1251}]
["LUBBOCK/REESE AFB","TX","E-8",{"$f":"TRANSPOSE(L7658)","v":1296}]
["LUBBOCK/REESE AFB","TX","E-9",{"$f":"TRANSPOSE(M7658)","v":1374}]
["LUBBOCK/REESE AFB","TX","W-1",{"$f":"TRANSPOSE(N7658)","v":1209}]
["LUBBOCK/REESE AFB","TX","W-2",{"$f":"TRANSPOSE(O7658)","v":1269}]
["LUBBOCK/REESE AFB","TX","W-3",{"$f":"TRANSPOSE(P7658)","v":1326}]
["LUBBOCK/REESE AFB","TX","W-4",{"$f":"TRANSPOSE(Q7658)","v":1392}]
["LUBBOCK/REESE AFB","TX","W-5",{"$f":"TRANSPOSE(R7658)","v":1470}]
["LUBBOCK/REESE AFB","TX","O-1E",{"$f":"TRANSPOSE(S7658)","v":1260}]
["LUBBOCK/REESE AFB","TX","O-2E",{"$f":"TRANSPOSE(T7658)","v":1320}]
["LUBBOCK/REESE AFB","TX","O-3E",{"$f":"TRANSPOSE(U7658)","v":1404}]
["LUBBOCK/REESE AFB","TX","O-1",{"$f":"TRANSPOSE(V7658)","v":1083}]
["LUBBOCK/REESE AFB","TX","O-2",{"$f":"TRANSPOSE(W7658)","v":1203}]
["LUBBOCK/REESE AFB","TX","O-3",{"$f":"TRANSPOSE(X7658)","v":1326}]
["LUBBOCK/REESE AFB","TX","O-4",{"$f":"TRANSPOSE(Y7658)","v":1500}]
["LUBBOCK/REESE AFB","TX","O-5",{"$f":"TRANSPOSE(Z7658)","v":1626}]
["LUBBOCK/REESE AFB","TX","O-6",{"$f":"TRANSPOSE(AA7658)","v":1644}]
["LUBBOCK/REESE AFB","TX","O-7",{"$f":"TRANSPOSE(AB7658)","v":1659}]
["GOODFELLOW AFB","TX","E-1",{"$f":"TRANSPOSE(E7682:E7682)","v":960},960,960,960,960,1053,1170,1251,1341,1437,1170,1290,1398,1452,1515,1269,1383,1461,1065,1167,1395,1539,1641,1659,1674]
["GOODFELLOW AFB","TX","E-2",{"$f":"TRANSPOSE(F7682:F7682)","v":960}]
["GOODFELLOW AFB","TX","E-3",{"$f":"TRANSPOSE(G7682:G7682)","v":960}]
["GOODFELLOW AFB","TX","E-4",{"$f":"TRANSPOSE(H7682:H7682)","v":960}]
["GOODFELLOW AFB","TX","E-5",{"$f":"TRANSPOSE(I7682:I7682)","v":1053}]
["GOODFELLOW AFB","TX","E-6",{"$f":"TRANSPOSE(J7682:J7682)","v":1170}]
["GOODFELLOW AFB","TX","E-7",{"$f":"TRANSPOSE(K7682:K7682)","v":1251}]
["GOODFELLOW AFB","TX","E-8",{"$f":"TRANSPOSE(L7682)","v":1341}]
["GOODFELLOW AFB","TX","E-9",{"$f":"TRANSPOSE(M7682)","v":1437}]
["GOODFELLOW AFB","TX","W-1",{"$f":"TRANSPOSE(N7682)","v":1170}]
["GOODFELLOW AFB","TX","W-2",{"$f":"TRANSPOSE(O7682)","v":1290}]
["GOODFELLOW AFB","TX","W-3",{"$f":"TRANSPOSE(P7682)","v":1398}]
["GOODFELLOW AFB","TX","W-4",{"$f":"TRANSPOSE(Q7682)","v":1452}]
["GOODFELLOW AFB","TX","W-5",{"$f":"TRANSPOSE(R7682)","v":1515}]
["GOODFELLOW AFB","TX","O-1E",{"$f":"TRANSPOSE(S7682)","v":1269}]
["GOODFELLOW AFB","TX","O-2E",{"$f":"TRANSPOSE(T7682)","v":1383}]
["GOODFELLOW AFB","TX","O-3E",{"$f":"TRANSPOSE(U7682)","v":1461}]
["GOODFELLOW AFB","TX","O-1",{"$f":"TRANSPOSE(V7682)","v":1065}]
["GOODFELLOW AFB","TX","O-2",{"$f":"TRANSPOSE(W7682)","v":1167}]
["GOODFELLOW AFB","TX","O-3",{"$f":"TRANSPOSE(X7682)","v":1395}]
["GOODFELLOW AFB","TX","O-4",{"$f":"TRANSPOSE(Y7682)","v":1539}]
["GOODFELLOW AFB","TX","O-5",{"$f":"TRANSPOSE(Z7682)","v":1641}]
["GOODFELLOW AFB","TX","O-6",{"$f":"TRANSPOSE(AA7682)","v":1659}]
["GOODFELLOW AFB","TX","O-7",{"$f":"TRANSPOSE(AB7682)","v":1674}]
["SAN ANTONIO","TX","E-1",{"$f":"TRANSPOSE(E7706:E7706)","v":1179},1179,1179,1179,1179,1275,1347,1425,1506,1602,1350,1458,1557,1617,1689,1440,1542,1629,1284,1347,1554,1716,1827,1845,1866]
["SAN ANTONIO","TX","E-2",{"$f":"TRANSPOSE(F7706:F7706)","v":1179}]
["SAN ANTONIO","TX","E-3",{"$f":"TRANSPOSE(G7706:G7706)","v":1179}]
["SAN ANTONIO","TX","E-4",{"$f":"TRANSPOSE(H7706:H7706)","v":1179}]
["SAN ANTONIO","TX","E-5",{"$f":"TRANSPOSE(I7706:I7706)","v":1275}]
["SAN ANTONIO","TX","E-6",{"$f":"TRANSPOSE(J7706:J7706)","v":1347}]
["SAN ANTONIO","TX","E-7",{"$f":"TRANSPOSE(K7706:K7706)","v":1425}]
["SAN ANTONIO","TX","E-8",{"$f":"TRANSPOSE(L7706)","v":1506}]
["SAN ANTONIO","TX","E-9",{"$f":"TRANSPOSE(M7706)","v":1602}]
["SAN ANTONIO","TX","W-1",{"$f":"TRANSPOSE(N7706)","v":1350}]
["SAN ANTONIO","TX","W-2",{"$f":"TRANSPOSE(O7706)","v":1458}]
["SAN ANTONIO","TX","W-3",{"$f":"TRANSPOSE(P7706)","v":1557}]
["SAN ANTONIO","TX","W-4",{"$f":"TRANSPOSE(Q7706)","v":1617}]
["SAN ANTONIO","TX","W-5",{"$f":"TRANSPOSE(R7706)","v":1689}]
["SAN ANTONIO","TX","O-1E",{"$f":"TRANSPOSE(S7706)","v":1440}]
["SAN ANTONIO","TX","O-2E",{"$f":"TRANSPOSE(T7706)","v":1542}]
["SAN ANTONIO","TX","O-3E",{"$f":"TRANSPOSE(U7706)","v":1629}]
["SAN ANTONIO","TX","O-1",{"$f":"TRANSPOSE(V7706)","v":1284}]
["SAN ANTONIO","TX","O-2",{"$f":"TRANSPOSE(W7706)","v":1347}]
["SAN ANTONIO","TX","O-3",{"$f":"TRANSPOSE(X7706)","v":1554}]
["SAN ANTONIO","TX","O-4",{"$f":"TRANSPOSE(Y7706)","v":1716}]
["SAN ANTONIO","TX","O-5",{"$f":"TRANSPOSE(Z7706)","v":1827}]
["SAN ANTONIO","TX","O-6",{"$f":"TRANSPOSE(AA7706)","v":1845}]
["SAN ANTONIO","TX","O-7",{"$f":"TRANSPOSE(AB7706)","v":1866}]
["FORT HOOD","TX","E-1",{"$f":"TRANSPOSE(E7730:E7730)","v":957},957,957,957,957,1014,1116,1224,1341,1449,1119,1272,1416,1461,1512,1248,1395,1470,1026,1113,1410,1533,1617,1632,1650]
["FORT HOOD","TX","E-2",{"$f":"TRANSPOSE(F7730:F7730)","v":957}]
["FORT HOOD","TX","E-3",{"$f":"TRANSPOSE(G7730:G7730)","v":957}]
["FORT HOOD","TX","E-4",{"$f":"TRANSPOSE(H7730:H7730)","v":957}]
["FORT HOOD","TX","E-5",{"$f":"TRANSPOSE(I7730:I7730)","v":1014}]
["FORT HOOD","TX","E-6",{"$f":"TRANSPOSE(J7730:J7730)","v":1116}]
["FORT HOOD","TX","E-7",{"$f":"TRANSPOSE(K7730:K7730)","v":1224}]
["FORT HOOD","TX","E-8",{"$f":"TRANSPOSE(L7730)","v":1341}]
["FORT HOOD","TX","E-9",{"$f":"TRANSPOSE(M7730)","v":1449}]
["FORT HOOD","TX","W-1",{"$f":"TRANSPOSE(N7730)","v":1119}]
["FORT HOOD","TX","W-2",{"$f":"TRANSPOSE(O7730)","v":1272}]
["FORT HOOD","TX","W-3",{"$f":"TRANSPOSE(P7730)","v":1416}]
["FORT HOOD","TX","W-4",{"$f":"TRANSPOSE(Q7730)","v":1461}]
["FORT HOOD","TX","W-5",{"$f":"TRANSPOSE(R7730)","v":1512}]
["FORT HOOD","TX","O-1E",{"$f":"TRANSPOSE(S7730)","v":1248}]
["FORT HOOD","TX","O-2E",{"$f":"TRANSPOSE(T7730)","v":1395}]
["FORT HOOD","TX","O-3E",{"$f":"TRANSPOSE(U7730)","v":1470}]
["FORT HOOD","TX","O-1",{"$f":"TRANSPOSE(V7730)","v":1026}]
["FORT HOOD","TX","O-2",{"$f":"TRANSPOSE(W7730)","v":1113}]
["FORT HOOD","TX","O-3",{"$f":"TRANSPOSE(X7730)","v":1410}]
["FORT HOOD","TX","O-4",{"$f":"TRANSPOSE(Y7730)","v":1533}]
["FORT HOOD","TX","O-5",{"$f":"TRANSPOSE(Z7730)","v":1617}]
["FORT HOOD","TX","O-6",{"$f":"TRANSPOSE(AA7730)","v":1632}]
["FORT HOOD","TX","O-7",{"$f":"TRANSPOSE(AB7730)","v":1650}]
["WICHITA FALLS/SHEPPARD AFB","TX","E-1",{"$f":"TRANSPOSE(E7754:E7754)","v":966},966,966,966,966,1080,1338,1431,1533,1671,1341,1473,1599,1701,1818,1452,1581,1719,1110,1332,1593,1866,2058,2079,2100]
["WICHITA FALLS/SHEPPARD AFB","TX","E-2",{"$f":"TRANSPOSE(F7754:F7754)","v":966}]
["WICHITA FALLS/SHEPPARD AFB","TX","E-3",{"$f":"TRANSPOSE(G7754:G7754)","v":966}]
["WICHITA FALLS/SHEPPARD AFB","TX","E-4",{"$f":"TRANSPOSE(H7754:H7754)","v":966}]
["WICHITA FALLS/SHEPPARD AFB","TX","E-5",{"$f":"TRANSPOSE(I7754:I7754)","v":1080}]
["WICHITA FALLS/SHEPPARD AFB","TX","E-6",{"$f":"TRANSPOSE(J7754:J7754)","v":1338}]
["WICHITA FALLS/SHEPPARD AFB","TX","E-7",{"$f":"TRANSPOSE(K7754:K7754)","v":1431}]
["WICHITA FALLS/SHEPPARD AFB","TX","E-8",{"$f":"TRANSPOSE(L7754)","v":1533}]
["WICHITA FALLS/SHEPPARD AFB","TX","E-9",{"$f":"TRANSPOSE(M7754)","v":1671}]
["WICHITA FALLS/SHEPPARD AFB","TX","W-1",{"$f":"TRANSPOSE(N7754)","v":1341}]
["WICHITA FALLS/SHEPPARD AFB","TX","W-2",{"$f":"TRANSPOSE(O7754)","v":1473}]
["WICHITA FALLS/SHEPPARD AFB","TX","W-3",{"$f":"TRANSPOSE(P7754)","v":1599}]
["WICHITA FALLS/SHEPPARD AFB","TX","W-4",{"$f":"TRANSPOSE(Q7754)","v":1701}]
["WICHITA FALLS/SHEPPARD AFB","TX","W-5",{"$f":"TRANSPOSE(R7754)","v":1818}]
["WICHITA FALLS/SHEPPARD AFB","TX","O-1E",{"$f":"TRANSPOSE(S7754)","v":1452}]
["WICHITA FALLS/SHEPPARD AFB","TX","O-2E",{"$f":"TRANSPOSE(T7754)","v":1581}]
["WICHITA FALLS/SHEPPARD AFB","TX","O-3E",{"$f":"TRANSPOSE(U7754)","v":1719}]
["WICHITA FALLS/SHEPPARD AFB","TX","O-1",{"$f":"TRANSPOSE(V7754)","v":1110}]
["WICHITA FALLS/SHEPPARD AFB","TX","O-2",{"$f":"TRANSPOSE(W7754)","v":1332}]
["WICHITA FALLS/SHEPPARD AFB","TX","O-3",{"$f":"TRANSPOSE(X7754)","v":1593}]
["WICHITA FALLS/SHEPPARD AFB","TX","O-4",{"$f":"TRANSPOSE(Y7754)","v":1866}]
["WICHITA FALLS/SHEPPARD AFB","TX","O-5",{"$f":"TRANSPOSE(Z7754)","v":2058}]
["WICHITA FALLS/SHEPPARD AFB","TX","O-6",{"$f":"TRANSPOSE(AA7754)","v":2079}]
["WICHITA FALLS/SHEPPARD AFB","TX","O-7",{"$f":"TRANSPOSE(AB7754)","v":2100}]
["FORT WORTH","TX","E-1",{"$f":"TRANSPOSE(E7778:E7778)","v":1137},1137,1137,1137,1137,1236,1377,1467,1563,1677,1380,1506,1623,1698,1788,1485,1605,1713,1251,1374,1617,1821,1965,1983,2004]
["FORT WORTH","TX","E-2",{"$f":"TRANSPOSE(F7778:F7778)","v":1137}]
["FORT WORTH","TX","E-3",{"$f":"TRANSPOSE(G7778:G7778)","v":1137}]
["FORT WORTH","TX","E-4",{"$f":"TRANSPOSE(H7778:H7778)","v":1137}]
["FORT WORTH","TX","E-5",{"$f":"TRANSPOSE(I7778:I7778)","v":1236}]
["FORT WORTH","TX","E-6",{"$f":"TRANSPOSE(J7778:J7778)","v":1377}]
["FORT WORTH","TX","E-7",{"$f":"TRANSPOSE(K7778:K7778)","v":1467}]
["FORT WORTH","TX","E-8",{"$f":"TRANSPOSE(L7778)","v":1563}]
["FORT WORTH","TX","E-9",{"$f":"TRANSPOSE(M7778)","v":1677}]
["FORT WORTH","TX","W-1",{"$f":"TRANSPOSE(N7778)","v":1380}]
["FORT WORTH","TX","W-2",{"$f":"TRANSPOSE(O7778)","v":1506}]
["FORT WORTH","TX","W-3",{"$f":"TRANSPOSE(P7778)","v":1623}]
["FORT WORTH","TX","W-4",{"$f":"TRANSPOSE(Q7778)","v":1698}]
["FORT WORTH","TX","W-5",{"$f":"TRANSPOSE(R7778)","v":1788}]
["FORT WORTH","TX","O-1E",{"$f":"TRANSPOSE(S7778)","v":1485}]
["FORT WORTH","TX","O-2E",{"$f":"TRANSPOSE(T7778)","v":1605}]
["FORT WORTH","TX","O-3E",{"$f":"TRANSPOSE(U7778)","v":1713}]
["FORT WORTH","TX","O-1",{"$f":"TRANSPOSE(V7778)","v":1251}]
["FORT WORTH","TX","O-2",{"$f":"TRANSPOSE(W7778)","v":1374}]
["FORT WORTH","TX","O-3",{"$f":"TRANSPOSE(X7778)","v":1617}]
["FORT WORTH","TX","O-4",{"$f":"TRANSPOSE(Y7778)","v":1821}]
["FORT WORTH","TX","O-5",{"$f":"TRANSPOSE(Z7778)","v":1965}]
["FORT WORTH","TX","O-6",{"$f":"TRANSPOSE(AA7778)","v":1983}]
["FORT WORTH","TX","O-7",{"$f":"TRANSPOSE(AB7778)","v":2004}]
["TYLER","TX","E-1",{"$f":"TRANSPOSE(E7802:E7802)","v":1059},1059,1059,1059,1059,1131,1413,1437,1464,1590,1413,1449,1482,1629,1806,1443,1476,1656,1164,1407,1479,1875,2160,2181,2202]
["TYLER","TX","E-2",{"$f":"TRANSPOSE(F7802:F7802)","v":1059}]
["TYLER","TX","E-3",{"$f":"TRANSPOSE(G7802:G7802)","v":1059}]
["TYLER","TX","E-4",{"$f":"TRANSPOSE(H7802:H7802)","v":1059}]
["TYLER","TX","E-5",{"$f":"TRANSPOSE(I7802:I7802)","v":1131}]
["TYLER","TX","E-6",{"$f":"TRANSPOSE(J7802:J7802)","v":1413}]
["TYLER","TX","E-7",{"$f":"TRANSPOSE(K7802:K7802)","v":1437}]
["TYLER","TX","E-8",{"$f":"TRANSPOSE(L7802)","v":1464}]
["TYLER","TX","E-9",{"$f":"TRANSPOSE(M7802)","v":1590}]
["TYLER","TX","W-1",{"$f":"TRANSPOSE(N7802)","v":1413}]
["TYLER","TX","W-2",{"$f":"TRANSPOSE(O7802)","v":1449}]
["TYLER","TX","W-3",{"$f":"TRANSPOSE(P7802)","v":1482}]
["TYLER","TX","W-4",{"$f":"TRANSPOSE(Q7802)","v":1629}]
["TYLER","TX","W-5",{"$f":"TRANSPOSE(R7802)","v":1806}]
["TYLER","TX","O-1E",{"$f":"TRANSPOSE(S7802)","v":1443}]
["TYLER","TX","O-2E",{"$f":"TRANSPOSE(T7802)","v":1476}]
["TYLER","TX","O-3E",{"$f":"TRANSPOSE(U7802)","v":1656}]
["TYLER","TX","O-1",{"$f":"TRANSPOSE(V7802)","v":1164}]
["TYLER","TX","O-2",{"$f":"TRANSPOSE(W7802)","v":1407}]
["TYLER","TX","O-3",{"$f":"TRANSPOSE(X7802)","v":1479}]
["TYLER","TX","O-4",{"$f":"TRANSPOSE(Y7802)","v":1875}]
["TYLER","TX","O-5",{"$f":"TRANSPOSE(Z7802)","v":2160}]
["TYLER","TX","O-6",{"$f":"TRANSPOSE(AA7802)","v":2181}]
["TYLER","TX","O-7",{"$f":"TRANSPOSE(AB7802)","v":2202}]
["WACO","TX","E-1",{"$f":"TRANSPOSE(E7826:E7826)","v":972},972,972,972,972,1041,1272,1317,1365,1491,1272,1338,1398,1527,1677,1326,1389,1548,1068,1266,1395,1737,1983,2004,2022]
["WACO","TX","E-2",{"$f":"TRANSPOSE(F7826:F7826)","v":972}]
["WACO","TX","E-3",{"$f":"TRANSPOSE(G7826:G7826)","v":972}]
["WACO","TX","E-4",{"$f":"TRANSPOSE(H7826:H7826)","v":972}]
["WACO","TX","E-5",{"$f":"TRANSPOSE(I7826:I7826)","v":1041}]
["WACO","TX","E-6",{"$f":"TRANSPOSE(J7826:J7826)","v":1272}]
["WACO","TX","E-7",{"$f":"TRANSPOSE(K7826:K7826)","v":1317}]
["WACO","TX","E-8",{"$f":"TRANSPOSE(L7826)","v":1365}]
["WACO","TX","E-9",{"$f":"TRANSPOSE(M7826)","v":1491}]
["WACO","TX","W-1",{"$f":"TRANSPOSE(N7826)","v":1272}]
["WACO","TX","W-2",{"$f":"TRANSPOSE(O7826)","v":1338}]
["WACO","TX","W-3",{"$f":"TRANSPOSE(P7826)","v":1398}]
["WACO","TX","W-4",{"$f":"TRANSPOSE(Q7826)","v":1527}]
["WACO","TX","W-5",{"$f":"TRANSPOSE(R7826)","v":1677}]
["WACO","TX","O-1E",{"$f":"TRANSPOSE(S7826)","v":1326}]
["WACO","TX","O-2E",{"$f":"TRANSPOSE(T7826)","v":1389}]
["WACO","TX","O-3E",{"$f":"TRANSPOSE(U7826)","v":1548}]
["WACO","TX","O-1",{"$f":"TRANSPOSE(V7826)","v":1068}]
["WACO","TX","O-2",{"$f":"TRANSPOSE(W7826)","v":1266}]
["WACO","TX","O-3",{"$f":"TRANSPOSE(X7826)","v":1395}]
["WACO","TX","O-4",{"$f":"TRANSPOSE(Y7826)","v":1737}]
["WACO","TX","O-5",{"$f":"TRANSPOSE(Z7826)","v":1983}]
["WACO","TX","O-6",{"$f":"TRANSPOSE(AA7826)","v":2004}]
["WACO","TX","O-7",{"$f":"TRANSPOSE(AB7826)","v":2022}]
["OGDEN/HILL AFB","UT","E-1",{"$f":"TRANSPOSE(E7850:E7850)","v":942},942,942,942,942,969,1152,1194,1239,1305,1152,1212,1266,1320,1386,1203,1257,1329,990,1149,1263,1410,1512,1527,1542]
["OGDEN/HILL AFB","UT","E-2",{"$f":"TRANSPOSE(F7850:F7850)","v":942}]
["OGDEN/HILL AFB","UT","E-3",{"$f":"TRANSPOSE(G7850:G7850)","v":942}]
["OGDEN/HILL AFB","UT","E-4",{"$f":"TRANSPOSE(H7850:H7850)","v":942}]
["OGDEN/HILL AFB","UT","E-5",{"$f":"TRANSPOSE(I7850:I7850)","v":969}]
["OGDEN/HILL AFB","UT","E-6",{"$f":"TRANSPOSE(J7850:J7850)","v":1152}]
["OGDEN/HILL AFB","UT","E-7",{"$f":"TRANSPOSE(K7850:K7850)","v":1194}]
["OGDEN/HILL AFB","UT","E-8",{"$f":"TRANSPOSE(L7850)","v":1239}]
["OGDEN/HILL AFB","UT","E-9",{"$f":"TRANSPOSE(M7850)","v":1305}]
["OGDEN/HILL AFB","UT","W-1",{"$f":"TRANSPOSE(N7850)","v":1152}]
["OGDEN/HILL AFB","UT","W-2",{"$f":"TRANSPOSE(O7850)","v":1212}]
["OGDEN/HILL AFB","UT","W-3",{"$f":"TRANSPOSE(P7850)","v":1266}]
["OGDEN/HILL AFB","UT","W-4",{"$f":"TRANSPOSE(Q7850)","v":1320}]
["OGDEN/HILL AFB","UT","W-5",{"$f":"TRANSPOSE(R7850)","v":1386}]
["OGDEN/HILL AFB","UT","O-1E",{"$f":"TRANSPOSE(S7850)","v":1203}]
["OGDEN/HILL AFB","UT","O-2E",{"$f":"TRANSPOSE(T7850)","v":1257}]
["OGDEN/HILL AFB","UT","O-3E",{"$f":"TRANSPOSE(U7850)","v":1329}]
["OGDEN/HILL AFB","UT","O-1",{"$f":"TRANSPOSE(V7850)","v":990}]
["OGDEN/HILL AFB","UT","O-2",{"$f":"TRANSPOSE(W7850)","v":1149}]
["OGDEN/HILL AFB","UT","O-3",{"$f":"TRANSPOSE(X7850)","v":1263}]
["OGDEN/HILL AFB","UT","O-4",{"$f":"TRANSPOSE(Y7850)","v":1410}]
["OGDEN/HILL AFB","UT","O-5",{"$f":"TRANSPOSE(Z7850)","v":1512}]
["OGDEN/HILL AFB","UT","O-6",{"$f":"TRANSPOSE(AA7850)","v":1527}]
["OGDEN/HILL AFB","UT","O-7",{"$f":"TRANSPOSE(AB7850)","v":1542}]
["SALT LAKE CITY","UT","E-1",{"$f":"TRANSPOSE(E7874:E7874)","v":1032},1032,1032,1032,1032,1137,1305,1359,1419,1491,1308,1383,1455,1503,1560,1371,1446,1512,1155,1302,1452,1581,1671,1689,1704]
["SALT LAKE CITY","UT","E-2",{"$f":"TRANSPOSE(F7874:F7874)","v":1032}]
["SALT LAKE CITY","UT","E-3",{"$f":"TRANSPOSE(G7874:G7874)","v":1032}]
["SALT LAKE CITY","UT","E-4",{"$f":"TRANSPOSE(H7874:H7874)","v":1032}]
["SALT LAKE CITY","UT","E-5",{"$f":"TRANSPOSE(I7874:I7874)","v":1137}]
["SALT LAKE CITY","UT","E-6",{"$f":"TRANSPOSE(J7874:J7874)","v":1305}]
["SALT LAKE CITY","UT","E-7",{"$f":"TRANSPOSE(K7874:K7874)","v":1359}]
["SALT LAKE CITY","UT","E-8",{"$f":"TRANSPOSE(L7874)","v":1419}]
["SALT LAKE CITY","UT","E-9",{"$f":"TRANSPOSE(M7874)","v":1491}]
["SALT LAKE CITY","UT","W-1",{"$f":"TRANSPOSE(N7874)","v":1308}]
["SALT LAKE CITY","UT","W-2",{"$f":"TRANSPOSE(O7874)","v":1383}]
["SALT LAKE CITY","UT","W-3",{"$f":"TRANSPOSE(P7874)","v":1455}]
["SALT LAKE CITY","UT","W-4",{"$f":"TRANSPOSE(Q7874)","v":1503}]
["SALT LAKE CITY","UT","W-5",{"$f":"TRANSPOSE(R7874)","v":1560}]
["SALT LAKE CITY","UT","O-1E",{"$f":"TRANSPOSE(S7874)","v":1371}]
["SALT LAKE CITY","UT","O-2E",{"$f":"TRANSPOSE(T7874)","v":1446}]
["SALT LAKE CITY","UT","O-3E",{"$f":"TRANSPOSE(U7874)","v":1512}]
["SALT LAKE CITY","UT","O-1",{"$f":"TRANSPOSE(V7874)","v":1155}]
["SALT LAKE CITY","UT","O-2",{"$f":"TRANSPOSE(W7874)","v":1302}]
["SALT LAKE CITY","UT","O-3",{"$f":"TRANSPOSE(X7874)","v":1452}]
["SALT LAKE CITY","UT","O-4",{"$f":"TRANSPOSE(Y7874)","v":1581}]
["SALT LAKE CITY","UT","O-5",{"$f":"TRANSPOSE(Z7874)","v":1671}]
["SALT LAKE CITY","UT","O-6",{"$f":"TRANSPOSE(AA7874)","v":1689}]
["SALT LAKE CITY","UT","O-7",{"$f":"TRANSPOSE(AB7874)","v":1704}]
["PROVO","UT","E-1",{"$f":"TRANSPOSE(E7898:E7898)","v":963},963,963,963,963,1056,1146,1248,1359,1470,1149,1293,1428,1485,1551,1269,1410,1494,1065,1143,1422,1575,1680,1698,1716]
["PROVO","UT","E-2",{"$f":"TRANSPOSE(F7898:F7898)","v":963}]
["PROVO","UT","E-3",{"$f":"TRANSPOSE(G7898:G7898)","v":963}]
["PROVO","UT","E-4",{"$f":"TRANSPOSE(H7898:H7898)","v":963}]
["PROVO","UT","E-5",{"$f":"TRANSPOSE(I7898:I7898)","v":1056}]
["PROVO","UT","E-6",{"$f":"TRANSPOSE(J7898:J7898)","v":1146}]
["PROVO","UT","E-7",{"$f":"TRANSPOSE(K7898:K7898)","v":1248}]
["PROVO","UT","E-8",{"$f":"TRANSPOSE(L7898)","v":1359}]
["PROVO","UT","E-9",{"$f":"TRANSPOSE(M7898)","v":1470}]
["PROVO","UT","W-1",{"$f":"TRANSPOSE(N7898)","v":1149}]
["PROVO","UT","W-2",{"$f":"TRANSPOSE(O7898)","v":1293}]
["PROVO","UT","W-3",{"$f":"TRANSPOSE(P7898)","v":1428}]
["PROVO","UT","W-4",{"$f":"TRANSPOSE(Q7898)","v":1485}]
["PROVO","UT","W-5",{"$f":"TRANSPOSE(R7898)","v":1551}]
["PROVO","UT","O-1E",{"$f":"TRANSPOSE(S7898)","v":1269}]
["PROVO","UT","O-2E",{"$f":"TRANSPOSE(T7898)","v":1410}]
["PROVO","UT","O-3E",{"$f":"TRANSPOSE(U7898)","v":1494}]
["PROVO","UT","O-1",{"$f":"TRANSPOSE(V7898)","v":1065}]
["PROVO","UT","O-2",{"$f":"TRANSPOSE(W7898)","v":1143}]
["PROVO","UT","O-3",{"$f":"TRANSPOSE(X7898)","v":1422}]
["PROVO","UT","O-4",{"$f":"TRANSPOSE(Y7898)","v":1575}]
["PROVO","UT","O-5",{"$f":"TRANSPOSE(Z7898)","v":1680}]
["PROVO","UT","O-6",{"$f":"TRANSPOSE(AA7898)","v":1698}]
["PROVO","UT","O-7",{"$f":"TRANSPOSE(AB7898)","v":1716}]
["CHARLOTTESVILLE","VA","E-1",{"$f":"TRANSPOSE(E7922:E7922)","v":1230},1230,1230,1230,1230,1308,1467,1584,1710,1857,1470,1635,1788,1881,1989,1608,1767,1896,1326,1464,1782,2031,2205,2226,2250]
["CHARLOTTESVILLE","VA","E-2",{"$f":"TRANSPOSE(F7922:F7922)","v":1230}]
["CHARLOTTESVILLE","VA","E-3",{"$f":"TRANSPOSE(G7922:G7922)","v":1230}]
["CHARLOTTESVILLE","VA","E-4",{"$f":"TRANSPOSE(H7922:H7922)","v":1230}]
["CHARLOTTESVILLE","VA","E-5",{"$f":"TRANSPOSE(I7922:I7922)","v":1308}]
["CHARLOTTESVILLE","VA","E-6",{"$f":"TRANSPOSE(J7922:J7922)","v":1467}]
["CHARLOTTESVILLE","VA","E-7",{"$f":"TRANSPOSE(K7922:K7922)","v":1584}]
["CHARLOTTESVILLE","VA","E-8",{"$f":"TRANSPOSE(L7922)","v":1710}]
["CHARLOTTESVILLE","VA","E-9",{"$f":"TRANSPOSE(M7922)","v":1857}]
["CHARLOTTESVILLE","VA","W-1",{"$f":"TRANSPOSE(N7922)","v":1470}]
["CHARLOTTESVILLE","VA","W-2",{"$f":"TRANSPOSE(O7922)","v":1635}]
["CHARLOTTESVILLE","VA","W-3",{"$f":"TRANSPOSE(P7922)","v":1788}]
["CHARLOTTESVILLE","VA","W-4",{"$f":"TRANSPOSE(Q7922)","v":1881}]
["CHARLOTTESVILLE","VA","W-5",{"$f":"TRANSPOSE(R7922)","v":1989}]
["CHARLOTTESVILLE","VA","O-1E",{"$f":"TRANSPOSE(S7922)","v":1608}]
["CHARLOTTESVILLE","VA","O-2E",{"$f":"TRANSPOSE(T7922)","v":1767}]
["CHARLOTTESVILLE","VA","O-3E",{"$f":"TRANSPOSE(U7922)","v":1896}]
["CHARLOTTESVILLE","VA","O-1",{"$f":"TRANSPOSE(V7922)","v":1326}]
["CHARLOTTESVILLE","VA","O-2",{"$f":"TRANSPOSE(W7922)","v":1464}]
["CHARLOTTESVILLE","VA","O-3",{"$f":"TRANSPOSE(X7922)","v":1782}]
["CHARLOTTESVILLE","VA","O-4",{"$f":"TRANSPOSE(Y7922)","v":2031}]
["CHARLOTTESVILLE","VA","O-5",{"$f":"TRANSPOSE(Z7922)","v":2205}]
["CHARLOTTESVILLE","VA","O-6",{"$f":"TRANSPOSE(AA7922)","v":2226}]
["CHARLOTTESVILLE","VA","O-7",{"$f":"TRANSPOSE(AB7922)","v":2250}]
["QUANTICO/WOODBRIDGE","VA","E-1",{"$f":"TRANSPOSE(E7946:E7946)","v":1398},1398,1398,1398,1398,1446,1686,1773,1869,2004,1689,1812,1929,2034,2160,1794,1911,2052,1473,1683,1923,2208,2409,2433,2457]
["QUANTICO/WOODBRIDGE","VA","E-2",{"$f":"TRANSPOSE(F7946:F7946)","v":1398}]
["QUANTICO/WOODBRIDGE","VA","E-3",{"$f":"TRANSPOSE(G7946:G7946)","v":1398}]
["QUANTICO/WOODBRIDGE","VA","E-4",{"$f":"TRANSPOSE(H7946:H7946)","v":1398}]
["QUANTICO/WOODBRIDGE","VA","E-5",{"$f":"TRANSPOSE(I7946:I7946)","v":1446}]
["QUANTICO/WOODBRIDGE","VA","E-6",{"$f":"TRANSPOSE(J7946:J7946)","v":1686}]
["QUANTICO/WOODBRIDGE","VA","E-7",{"$f":"TRANSPOSE(K7946:K7946)","v":1773}]
["QUANTICO/WOODBRIDGE","VA","E-8",{"$f":"TRANSPOSE(L7946)","v":1869}]
["QUANTICO/WOODBRIDGE","VA","E-9",{"$f":"TRANSPOSE(M7946)","v":2004}]
["QUANTICO/WOODBRIDGE","VA","W-1",{"$f":"TRANSPOSE(N7946)","v":1689}]
["QUANTICO/WOODBRIDGE","VA","W-2",{"$f":"TRANSPOSE(O7946)","v":1812}]
["QUANTICO/WOODBRIDGE","VA","W-3",{"$f":"TRANSPOSE(P7946)","v":1929}]
["QUANTICO/WOODBRIDGE","VA","W-4",{"$f":"TRANSPOSE(Q7946)","v":2034}]
["QUANTICO/WOODBRIDGE","VA","W-5",{"$f":"TRANSPOSE(R7946)","v":2160}]
["QUANTICO/WOODBRIDGE","VA","O-1E",{"$f":"TRANSPOSE(S7946)","v":1794}]
["QUANTICO/WOODBRIDGE","VA","O-2E",{"$f":"TRANSPOSE(T7946)","v":1911}]
["QUANTICO/WOODBRIDGE","VA","O-3E",{"$f":"TRANSPOSE(U7946)","v":2052}]
["QUANTICO/WOODBRIDGE","VA","O-1",{"$f":"TRANSPOSE(V7946)","v":1473}]
["QUANTICO/WOODBRIDGE","VA","O-2",{"$f":"TRANSPOSE(W7946)","v":1683}]
["QUANTICO/WOODBRIDGE","VA","O-3",{"$f":"TRANSPOSE(X7946)","v":1923}]
["QUANTICO/WOODBRIDGE","VA","O-4",{"$f":"TRANSPOSE(Y7946)","v":2208}]
["QUANTICO/WOODBRIDGE","VA","O-5",{"$f":"TRANSPOSE(Z7946)","v":2409}]
["QUANTICO/WOODBRIDGE","VA","O-6",{"$f":"TRANSPOSE(AA7946)","v":2433}]
["QUANTICO/WOODBRIDGE","VA","O-7",{"$f":"TRANSPOSE(AB7946)","v":2457}]
["HAMPTON/NEWPORT NEWS","VA","E-1",{"$f":"TRANSPOSE(E7970:E7970)","v":1260},1260,1260,1260,1260,1374,1611,1752,1908,2052,1614,1818,2007,2070,2142,1785,1980,2082,1398,1605,2001,2172,2289,2313,2337]
["HAMPTON/NEWPORT NEWS","VA","E-2",{"$f":"TRANSPOSE(F7970:F7970)","v":1260}]
["HAMPTON/NEWPORT NEWS","VA","E-3",{"$f":"TRANSPOSE(G7970:G7970)","v":1260}]
["HAMPTON/NEWPORT NEWS","VA","E-4",{"$f":"TRANSPOSE(H7970:H7970)","v":1260}]
["HAMPTON/NEWPORT NEWS","VA","E-5",{"$f":"TRANSPOSE(I7970:I7970)","v":1374}]
["HAMPTON/NEWPORT NEWS","VA","E-6",{"$f":"TRANSPOSE(J7970:J7970)","v":1611}]
["HAMPTON/NEWPORT NEWS","VA","E-7",{"$f":"TRANSPOSE(K7970:K7970)","v":1752}]
["HAMPTON/NEWPORT NEWS","VA","E-8",{"$f":"TRANSPOSE(L7970)","v":1908}]
["HAMPTON/NEWPORT NEWS","VA","E-9",{"$f":"TRANSPOSE(M7970)","v":2052}]
["HAMPTON/NEWPORT NEWS","VA","W-1",{"$f":"TRANSPOSE(N7970)","v":1614}]
["HAMPTON/NEWPORT NEWS","VA","W-2",{"$f":"TRANSPOSE(O7970)","v":1818}]
["HAMPTON/NEWPORT NEWS","VA","W-3",{"$f":"TRANSPOSE(P7970)","v":2007}]
["HAMPTON/NEWPORT NEWS","VA","W-4",{"$f":"TRANSPOSE(Q7970)","v":2070}]
["HAMPTON/NEWPORT NEWS","VA","W-5",{"$f":"TRANSPOSE(R7970)","v":2142}]
["HAMPTON/NEWPORT NEWS","VA","O-1E",{"$f":"TRANSPOSE(S7970)","v":1785}]
["HAMPTON/NEWPORT NEWS","VA","O-2E",{"$f":"TRANSPOSE(T7970)","v":1980}]
["HAMPTON/NEWPORT NEWS","VA","O-3E",{"$f":"TRANSPOSE(U7970)","v":2082}]
["HAMPTON/NEWPORT NEWS","VA","O-1",{"$f":"TRANSPOSE(V7970)","v":1398}]
["HAMPTON/NEWPORT NEWS","VA","O-2",{"$f":"TRANSPOSE(W7970)","v":1605}]
["HAMPTON/NEWPORT NEWS","VA","O-3",{"$f":"TRANSPOSE(X7970)","v":2001}]
["HAMPTON/NEWPORT NEWS","VA","O-4",{"$f":"TRANSPOSE(Y7970)","v":2172}]
["HAMPTON/NEWPORT NEWS","VA","O-5",{"$f":"TRANSPOSE(Z7970)","v":2289}]
["HAMPTON/NEWPORT NEWS","VA","O-6",{"$f":"TRANSPOSE(AA7970)","v":2313}]
["HAMPTON/NEWPORT NEWS","VA","O-7",{"$f":"TRANSPOSE(AB7970)","v":2337}]
["NORFOLK/PORTSMOUTH","VA","E-1",{"$f":"TRANSPOSE(E7994:E7994)","v":1359},1359,1359,1359,1359,1452,1752,1785,1821,1926,1752,1800,1842,1956,2091,1791,1836,1977,1485,1746,1842,2142,2358,2382,2406]
["NORFOLK/PORTSMOUTH","VA","E-2",{"$f":"TRANSPOSE(F7994:F7994)","v":1359}]
["NORFOLK/PORTSMOUTH","VA","E-3",{"$f":"TRANSPOSE(G7994:G7994)","v":1359}]
["NORFOLK/PORTSMOUTH","VA","E-4",{"$f":"TRANSPOSE(H7994:H7994)","v":1359}]
["NORFOLK/PORTSMOUTH","VA","E-5",{"$f":"TRANSPOSE(I7994:I7994)","v":1452}]
["NORFOLK/PORTSMOUTH","VA","E-6",{"$f":"TRANSPOSE(J7994:J7994)","v":1752}]
["NORFOLK/PORTSMOUTH","VA","E-7",{"$f":"TRANSPOSE(K7994:K7994)","v":1785}]
["NORFOLK/PORTSMOUTH","VA","E-8",{"$f":"TRANSPOSE(L7994)","v":1821}]
["NORFOLK/PORTSMOUTH","VA","E-9",{"$f":"TRANSPOSE(M7994)","v":1926}]
["NORFOLK/PORTSMOUTH","VA","W-1",{"$f":"TRANSPOSE(N7994)","v":1752}]
["NORFOLK/PORTSMOUTH","VA","W-2",{"$f":"TRANSPOSE(O7994)","v":1800}]
["NORFOLK/PORTSMOUTH","VA","W-3",{"$f":"TRANSPOSE(P7994)","v":1842}]
["NORFOLK/PORTSMOUTH","VA","W-4",{"$f":"TRANSPOSE(Q7994)","v":1956}]
["NORFOLK/PORTSMOUTH","VA","W-5",{"$f":"TRANSPOSE(R7994)","v":2091}]
["NORFOLK/PORTSMOUTH","VA","O-1E",{"$f":"TRANSPOSE(S7994)","v":1791}]
["NORFOLK/PORTSMOUTH","VA","O-2E",{"$f":"TRANSPOSE(T7994)","v":1836}]
["NORFOLK/PORTSMOUTH","VA","O-3E",{"$f":"TRANSPOSE(U7994)","v":1977}]
["NORFOLK/PORTSMOUTH","VA","O-1",{"$f":"TRANSPOSE(V7994)","v":1485}]
["NORFOLK/PORTSMOUTH","VA","O-2",{"$f":"TRANSPOSE(W7994)","v":1746}]
["NORFOLK/PORTSMOUTH","VA","O-3",{"$f":"TRANSPOSE(X7994)","v":1842}]
["NORFOLK/PORTSMOUTH","VA","O-4",{"$f":"TRANSPOSE(Y7994)","v":2142}]
["NORFOLK/PORTSMOUTH","VA","O-5",{"$f":"TRANSPOSE(Z7994)","v":2358}]
["NORFOLK/PORTSMOUTH","VA","O-6",{"$f":"TRANSPOSE(AA7994)","v":2382}]
["NORFOLK/PORTSMOUTH","VA","O-7",{"$f":"TRANSPOSE(AB7994)","v":2406}]
["PETERSBERG/FORT LEE","VA","E-1",{"$f":"TRANSPOSE(E8018:E8018)","v":1161},1161,1161,1161,1161,1182,1197,1257,1320,1419,1200,1281,1359,1443,1539,1269,1350,1458,1182,1197,1356,1575,1731,1749,1767]
["PETERSBERG/FORT LEE","VA","E-2",{"$f":"TRANSPOSE(F8018:F8018)","v":1161}]
["PETERSBERG/FORT LEE","VA","E-3",{"$f":"TRANSPOSE(G8018:G8018)","v":1161}]
["PETERSBERG/FORT LEE","VA","E-4",{"$f":"TRANSPOSE(H8018:H8018)","v":1161}]
["PETERSBERG/FORT LEE","VA","E-5",{"$f":"TRANSPOSE(I8018:I8018)","v":1182}]
["PETERSBERG/FORT LEE","VA","E-6",{"$f":"TRANSPOSE(J8018:J8018)","v":1197}]
["PETERSBERG/FORT LEE","VA","E-7",{"$f":"TRANSPOSE(K8018:K8018)","v":1257}]
["PETERSBERG/FORT LEE","VA","E-8",{"$f":"TRANSPOSE(L8018)","v":1320}]
["PETERSBERG/FORT LEE","VA","E-9",{"$f":"TRANSPOSE(M8018)","v":1419}]
["PETERSBERG/FORT LEE","VA","W-1",{"$f":"TRANSPOSE(N8018)","v":1200}]
["PETERSBERG/FORT LEE","VA","W-2",{"$f":"TRANSPOSE(O8018)","v":1281}]
["PETERSBERG/FORT LEE","VA","W-3",{"$f":"TRANSPOSE(P8018)","v":1359}]
["PETERSBERG/FORT LEE","VA","W-4",{"$f":"TRANSPOSE(Q8018)","v":1443}]
["PETERSBERG/FORT LEE","VA","W-5",{"$f":"TRANSPOSE(R8018)","v":1539}]
["PETERSBERG/FORT LEE","VA","O-1E",{"$f":"TRANSPOSE(S8018)","v":1269}]
["PETERSBERG/FORT LEE","VA","O-2E",{"$f":"TRANSPOSE(T8018)","v":1350}]
["PETERSBERG/FORT LEE","VA","O-3E",{"$f":"TRANSPOSE(U8018)","v":1458}]
["PETERSBERG/FORT LEE","VA","O-1",{"$f":"TRANSPOSE(V8018)","v":1182}]
["PETERSBERG/FORT LEE","VA","O-2",{"$f":"TRANSPOSE(W8018)","v":1197}]
["PETERSBERG/FORT LEE","VA","O-3",{"$f":"TRANSPOSE(X8018)","v":1356}]
["PETERSBERG/FORT LEE","VA","O-4",{"$f":"TRANSPOSE(Y8018)","v":1575}]
["PETERSBERG/FORT LEE","VA","O-5",{"$f":"TRANSPOSE(Z8018)","v":1731}]
["PETERSBERG/FORT LEE","VA","O-6",{"$f":"TRANSPOSE(AA8018)","v":1749}]
["PETERSBERG/FORT LEE","VA","O-7",{"$f":"TRANSPOSE(AB8018)","v":1767}]
["RICHMOND","VA","E-1",{"$f":"TRANSPOSE(E8042:E8042)","v":1245},1245,1245,1245,1245,1338,1479,1524,1575,1680,1479,1545,1605,1707,1827,1533,1596,1725,1353,1476,1602,1872,2064,2085,2106]
["RICHMOND","VA","E-2",{"$f":"TRANSPOSE(F8042:F8042)","v":1245}]
["RICHMOND","VA","E-3",{"$f":"TRANSPOSE(G8042:G8042)","v":1245}]
["RICHMOND","VA","E-4",{"$f":"TRANSPOSE(H8042:H8042)","v":1245}]
["RICHMOND","VA","E-5",{"$f":"TRANSPOSE(I8042:I8042)","v":1338}]
["RICHMOND","VA","E-6",{"$f":"TRANSPOSE(J8042:J8042)","v":1479}]
["RICHMOND","VA","E-7",{"$f":"TRANSPOSE(K8042:K8042)","v":1524}]
["RICHMOND","VA","E-8",{"$f":"TRANSPOSE(L8042)","v":1575}]
["RICHMOND","VA","E-9",{"$f":"TRANSPOSE(M8042)","v":1680}]
["RICHMOND","VA","W-1",{"$f":"TRANSPOSE(N8042)","v":1479}]
["RICHMOND","VA","W-2",{"$f":"TRANSPOSE(O8042)","v":1545}]
["RICHMOND","VA","W-3",{"$f":"TRANSPOSE(P8042)","v":1605}]
["RICHMOND","VA","W-4",{"$f":"TRANSPOSE(Q8042)","v":1707}]
["RICHMOND","VA","W-5",{"$f":"TRANSPOSE(R8042)","v":1827}]
["RICHMOND","VA","O-1E",{"$f":"TRANSPOSE(S8042)","v":1533}]
["RICHMOND","VA","O-2E",{"$f":"TRANSPOSE(T8042)","v":1596}]
["RICHMOND","VA","O-3E",{"$f":"TRANSPOSE(U8042)","v":1725}]
["RICHMOND","VA","O-1",{"$f":"TRANSPOSE(V8042)","v":1353}]
["RICHMOND","VA","O-2",{"$f":"TRANSPOSE(W8042)","v":1476}]
["RICHMOND","VA","O-3",{"$f":"TRANSPOSE(X8042)","v":1602}]
["RICHMOND","VA","O-4",{"$f":"TRANSPOSE(Y8042)","v":1872}]
["RICHMOND","VA","O-5",{"$f":"TRANSPOSE(Z8042)","v":2064}]
["RICHMOND","VA","O-6",{"$f":"TRANSPOSE(AA8042)","v":2085}]
["RICHMOND","VA","O-7",{"$f":"TRANSPOSE(AB8042)","v":2106}]
["WARRENTON/VINT HILL FARM","VA","E-1",{"$f":"TRANSPOSE(E8066:E8066)","v":1506},1506,1506,1506,1506,1704,2070,2103,2139,2226,2070,2118,2160,2253,2361,2109,2154,2268,1746,2064,2160,2403,2577,2601,2628]
["WARRENTON/VINT HILL FARM","VA","E-2",{"$f":"TRANSPOSE(F8066:F8066)","v":1506}]
["WARRENTON/VINT HILL FARM","VA","E-3",{"$f":"TRANSPOSE(G8066:G8066)","v":1506}]
["WARRENTON/VINT HILL FARM","VA","E-4",{"$f":"TRANSPOSE(H8066:H8066)","v":1506}]
["WARRENTON/VINT HILL FARM","VA","E-5",{"$f":"TRANSPOSE(I8066:I8066)","v":1704}]
["WARRENTON/VINT HILL FARM","VA","E-6",{"$f":"TRANSPOSE(J8066:J8066)","v":2070}]
["WARRENTON/VINT HILL FARM","VA","E-7",{"$f":"TRANSPOSE(K8066:K8066)","v":2103}]
["WARRENTON/VINT HILL FARM","VA","E-8",{"$f":"TRANSPOSE(L8066)","v":2139}]
["WARRENTON/VINT HILL FARM","VA","E-9",{"$f":"TRANSPOSE(M8066)","v":2226}]
["WARRENTON/VINT HILL FARM","VA","W-1",{"$f":"TRANSPOSE(N8066)","v":2070}]
["WARRENTON/VINT HILL FARM","VA","W-2",{"$f":"TRANSPOSE(O8066)","v":2118}]
["WARRENTON/VINT HILL FARM","VA","W-3",{"$f":"TRANSPOSE(P8066)","v":2160}]
["WARRENTON/VINT HILL FARM","VA","W-4",{"$f":"TRANSPOSE(Q8066)","v":2253}]
["WARRENTON/VINT HILL FARM","VA","W-5",{"$f":"TRANSPOSE(R8066)","v":2361}]
["WARRENTON/VINT HILL FARM","VA","O-1E",{"$f":"TRANSPOSE(S8066)","v":2109}]
["WARRENTON/VINT HILL FARM","VA","O-2E",{"$f":"TRANSPOSE(T8066)","v":2154}]
["WARRENTON/VINT HILL FARM","VA","O-3E",{"$f":"TRANSPOSE(U8066)","v":2268}]
["WARRENTON/VINT HILL FARM","VA","O-1",{"$f":"TRANSPOSE(V8066)","v":1746}]
["WARRENTON/VINT HILL FARM","VA","O-2",{"$f":"TRANSPOSE(W8066)","v":2064}]
["WARRENTON/VINT HILL FARM","VA","O-3",{"$f":"TRANSPOSE(X8066)","v":2160}]
["WARRENTON/VINT HILL FARM","VA","O-4",{"$f":"TRANSPOSE(Y8066)","v":2403}]
["WARRENTON/VINT HILL FARM","VA","O-5",{"$f":"TRANSPOSE(Z8066)","v":2577}]
["WARRENTON/VINT HILL FARM","VA","O-6",{"$f":"TRANSPOSE(AA8066)","v":2601}]
["WARRENTON/VINT HILL FARM","VA","O-7",{"$f":"TRANSPOSE(AB8066)","v":2628}]
["LEXINGTON","VA","E-1",{"$f":"TRANSPOSE(E8090:E8090)","v":993},993,993,993,993,1185,1266,1335,1410,1527,1269,1365,1458,1551,1662,1350,1446,1569,1194,1266,1455,1707,1884,1905,1923]
["LEXINGTON","VA","E-2",{"$f":"TRANSPOSE(F8090:F8090)","v":993}]
["LEXINGTON","VA","E-3",{"$f":"TRANSPOSE(G8090:G8090)","v":993}]
["LEXINGTON","VA","E-4",{"$f":"TRANSPOSE(H8090:H8090)","v":993}]
["LEXINGTON","VA","E-5",{"$f":"TRANSPOSE(I8090:I8090)","v":1185}]
["LEXINGTON","VA","E-6",{"$f":"TRANSPOSE(J8090:J8090)","v":1266}]
["LEXINGTON","VA","E-7",{"$f":"TRANSPOSE(K8090:K8090)","v":1335}]
["LEXINGTON","VA","E-8",{"$f":"TRANSPOSE(L8090)","v":1410}]
["LEXINGTON","VA","E-9",{"$f":"TRANSPOSE(M8090)","v":1527}]
["LEXINGTON","VA","W-1",{"$f":"TRANSPOSE(N8090)","v":1269}]
["LEXINGTON","VA","W-2",{"$f":"TRANSPOSE(O8090)","v":1365}]
["LEXINGTON","VA","W-3",{"$f":"TRANSPOSE(P8090)","v":1458}]
["LEXINGTON","VA","W-4",{"$f":"TRANSPOSE(Q8090)","v":1551}]
["LEXINGTON","VA","W-5",{"$f":"TRANSPOSE(R8090)","v":1662}]
["LEXINGTON","VA","O-1E",{"$f":"TRANSPOSE(S8090)","v":1350}]
["LEXINGTON","VA","O-2E",{"$f":"TRANSPOSE(T8090)","v":1446}]
["LEXINGTON","VA","O-3E",{"$f":"TRANSPOSE(U8090)","v":1569}]
["LEXINGTON","VA","O-1",{"$f":"TRANSPOSE(V8090)","v":1194}]
["LEXINGTON","VA","O-2",{"$f":"TRANSPOSE(W8090)","v":1266}]
["LEXINGTON","VA","O-3",{"$f":"TRANSPOSE(X8090)","v":1455}]
["LEXINGTON","VA","O-4",{"$f":"TRANSPOSE(Y8090)","v":1707}]
["LEXINGTON","VA","O-5",{"$f":"TRANSPOSE(Z8090)","v":1884}]
["LEXINGTON","VA","O-6",{"$f":"TRANSPOSE(AA8090)","v":1905}]
["LEXINGTON","VA","O-7",{"$f":"TRANSPOSE(AB8090)","v":1923}]
["ROANOKE","VA","E-1",{"$f":"TRANSPOSE(E8114:E8114)","v":897},897,897,897,897,987,1152,1212,1278,1389,1155,1239,1320,1416,1524,1227,1308,1431,1005,1149,1317,1569,1746,1764,1782]
["ROANOKE","VA","E-2",{"$f":"TRANSPOSE(F8114:F8114)","v":897}]
["ROANOKE","VA","E-3",{"$f":"TRANSPOSE(G8114:G8114)","v":897}]
["ROANOKE","VA","E-4",{"$f":"TRANSPOSE(H8114:H8114)","v":897}]
["ROANOKE","VA","E-5",{"$f":"TRANSPOSE(I8114:I8114)","v":987}]
["ROANOKE","VA","E-6",{"$f":"TRANSPOSE(J8114:J8114)","v":1152}]
["ROANOKE","VA","E-7",{"$f":"TRANSPOSE(K8114:K8114)","v":1212}]
["ROANOKE","VA","E-8",{"$f":"TRANSPOSE(L8114)","v":1278}]
["ROANOKE","VA","E-9",{"$f":"TRANSPOSE(M8114)","v":1389}]
["ROANOKE","VA","W-1",{"$f":"TRANSPOSE(N8114)","v":1155}]
["ROANOKE","VA","W-2",{"$f":"TRANSPOSE(O8114)","v":1239}]
["ROANOKE","VA","W-3",{"$f":"TRANSPOSE(P8114)","v":1320}]
["ROANOKE","VA","W-4",{"$f":"TRANSPOSE(Q8114)","v":1416}]
["ROANOKE","VA","W-5",{"$f":"TRANSPOSE(R8114)","v":1524}]
["ROANOKE","VA","O-1E",{"$f":"TRANSPOSE(S8114)","v":1227}]
["ROANOKE","VA","O-2E",{"$f":"TRANSPOSE(T8114)","v":1308}]
["ROANOKE","VA","O-3E",{"$f":"TRANSPOSE(U8114)","v":1431}]
["ROANOKE","VA","O-1",{"$f":"TRANSPOSE(V8114)","v":1005}]
["ROANOKE","VA","O-2",{"$f":"TRANSPOSE(W8114)","v":1149}]
["ROANOKE","VA","O-3",{"$f":"TRANSPOSE(X8114)","v":1317}]
["ROANOKE","VA","O-4",{"$f":"TRANSPOSE(Y8114)","v":1569}]
["ROANOKE","VA","O-5",{"$f":"TRANSPOSE(Z8114)","v":1746}]
["ROANOKE","VA","O-6",{"$f":"TRANSPOSE(AA8114)","v":1764}]
["ROANOKE","VA","O-7",{"$f":"TRANSPOSE(AB8114)","v":1782}]
["FORT A.P. HILL","VA","E-1",{"$f":"TRANSPOSE(E8138:E8138)","v":1224},1224,1224,1224,1224,1326,1710,1746,1785,1872,1713,1761,1809,1896,1995,1755,1803,1911,1368,1704,1806,2034,2199,2220,2244]
["FORT A.P. HILL","VA","E-2",{"$f":"TRANSPOSE(F8138:F8138)","v":1224}]
["FORT A.P. HILL","VA","E-3",{"$f":"TRANSPOSE(G8138:G8138)","v":1224}]
["FORT A.P. HILL","VA","E-4",{"$f":"TRANSPOSE(H8138:H8138)","v":1224}]
["FORT A.P. HILL","VA","E-5",{"$f":"TRANSPOSE(I8138:I8138)","v":1326}]
["FORT A.P. HILL","VA","E-6",{"$f":"TRANSPOSE(J8138:J8138)","v":1710}]
["FORT A.P. HILL","VA","E-7",{"$f":"TRANSPOSE(K8138:K8138)","v":1746}]
["FORT A.P. HILL","VA","E-8",{"$f":"TRANSPOSE(L8138)","v":1785}]
["FORT A.P. HILL","VA","E-9",{"$f":"TRANSPOSE(M8138)","v":1872}]
["FORT A.P. HILL","VA","W-1",{"$f":"TRANSPOSE(N8138)","v":1713}]
["FORT A.P. HILL","VA","W-2",{"$f":"TRANSPOSE(O8138)","v":1761}]
["FORT A.P. HILL","VA","W-3",{"$f":"TRANSPOSE(P8138)","v":1809}]
["FORT A.P. HILL","VA","W-4",{"$f":"TRANSPOSE(Q8138)","v":1896}]
["FORT A.P. HILL","VA","W-5",{"$f":"TRANSPOSE(R8138)","v":1995}]
["FORT A.P. HILL","VA","O-1E",{"$f":"TRANSPOSE(S8138)","v":1755}]
["FORT A.P. HILL","VA","O-2E",{"$f":"TRANSPOSE(T8138)","v":1803}]
["FORT A.P. HILL","VA","O-3E",{"$f":"TRANSPOSE(U8138)","v":1911}]
["FORT A.P. HILL","VA","O-1",{"$f":"TRANSPOSE(V8138)","v":1368}]
["FORT A.P. HILL","VA","O-2",{"$f":"TRANSPOSE(W8138)","v":1704}]
["FORT A.P. HILL","VA","O-3",{"$f":"TRANSPOSE(X8138)","v":1806}]
["FORT A.P. HILL","VA","O-4",{"$f":"TRANSPOSE(Y8138)","v":2034}]
["FORT A.P. HILL","VA","O-5",{"$f":"TRANSPOSE(Z8138)","v":2199}]
["FORT A.P. HILL","VA","O-6",{"$f":"TRANSPOSE(AA8138)","v":2220}]
["FORT A.P. HILL","VA","O-7",{"$f":"TRANSPOSE(AB8138)","v":2244}]
["BURLINGTON","VT","E-1",{"$f":"TRANSPOSE(E8162:E8162)","v":1533},1533,1533,1533,1533,1764,1878,1950,2031,2154,1881,1983,2079,2181,2298,1968,2067,2199,1776,1875,2076,2343,2535,2559,2586]
["BURLINGTON","VT","E-2",{"$f":"TRANSPOSE(F8162:F8162)","v":1533}]
["BURLINGTON","VT","E-3",{"$f":"TRANSPOSE(G8162:G8162)","v":1533}]
["BURLINGTON","VT","E-4",{"$f":"TRANSPOSE(H8162:H8162)","v":1533}]
["BURLINGTON","VT","E-5",{"$f":"TRANSPOSE(I8162:I8162)","v":1764}]
["BURLINGTON","VT","E-6",{"$f":"TRANSPOSE(J8162:J8162)","v":1878}]
["BURLINGTON","VT","E-7",{"$f":"TRANSPOSE(K8162:K8162)","v":1950}]
["BURLINGTON","VT","E-8",{"$f":"TRANSPOSE(L8162)","v":2031}]
["BURLINGTON","VT","E-9",{"$f":"TRANSPOSE(M8162)","v":2154}]
["BURLINGTON","VT","W-1",{"$f":"TRANSPOSE(N8162)","v":1881}]
["BURLINGTON","VT","W-2",{"$f":"TRANSPOSE(O8162)","v":1983}]
["BURLINGTON","VT","W-3",{"$f":"TRANSPOSE(P8162)","v":2079}]
["BURLINGTON","VT","W-4",{"$f":"TRANSPOSE(Q8162)","v":2181}]
["BURLINGTON","VT","W-5",{"$f":"TRANSPOSE(R8162)","v":2298}]
["BURLINGTON","VT","O-1E",{"$f":"TRANSPOSE(S8162)","v":1968}]
["BURLINGTON","VT","O-2E",{"$f":"TRANSPOSE(T8162)","v":2067}]
["BURLINGTON","VT","O-3E",{"$f":"TRANSPOSE(U8162)","v":2199}]
["BURLINGTON","VT","O-1",{"$f":"TRANSPOSE(V8162)","v":1776}]
["BURLINGTON","VT","O-2",{"$f":"TRANSPOSE(W8162)","v":1875}]
["BURLINGTON","VT","O-3",{"$f":"TRANSPOSE(X8162)","v":2076}]
["BURLINGTON","VT","O-4",{"$f":"TRANSPOSE(Y8162)","v":2343}]
["BURLINGTON","VT","O-5",{"$f":"TRANSPOSE(Z8162)","v":2535}]
["BURLINGTON","VT","O-6",{"$f":"TRANSPOSE(AA8162)","v":2559}]
["BURLINGTON","VT","O-7",{"$f":"TRANSPOSE(AB8162)","v":2586}]
["BREMERTON","WA","E-1",{"$f":"TRANSPOSE(E8186:E8186)","v":1125},1125,1125,1125,1125,1230,1365,1446,1536,1653,1368,1485,1593,1674,1770,1464,1578,1689,1245,1362,1587,1809,1962,1983,2001]
["BREMERTON","WA","E-2",{"$f":"TRANSPOSE(F8186:F8186)","v":1125}]
["BREMERTON","WA","E-3",{"$f":"TRANSPOSE(G8186:G8186)","v":1125}]
["BREMERTON","WA","E-4",{"$f":"TRANSPOSE(H8186:H8186)","v":1125}]
["BREMERTON","WA","E-5",{"$f":"TRANSPOSE(I8186:I8186)","v":1230}]
["BREMERTON","WA","E-6",{"$f":"TRANSPOSE(J8186:J8186)","v":1365}]
["BREMERTON","WA","E-7",{"$f":"TRANSPOSE(K8186:K8186)","v":1446}]
["BREMERTON","WA","E-8",{"$f":"TRANSPOSE(L8186)","v":1536}]
["BREMERTON","WA","E-9",{"$f":"TRANSPOSE(M8186)","v":1653}]
["BREMERTON","WA","W-1",{"$f":"TRANSPOSE(N8186)","v":1368}]
["BREMERTON","WA","W-2",{"$f":"TRANSPOSE(O8186)","v":1485}]
["BREMERTON","WA","W-3",{"$f":"TRANSPOSE(P8186)","v":1593}]
["BREMERTON","WA","W-4",{"$f":"TRANSPOSE(Q8186)","v":1674}]
["BREMERTON","WA","W-5",{"$f":"TRANSPOSE(R8186)","v":1770}]
["BREMERTON","WA","O-1E",{"$f":"TRANSPOSE(S8186)","v":1464}]
["BREMERTON","WA","O-2E",{"$f":"TRANSPOSE(T8186)","v":1578}]
["BREMERTON","WA","O-3E",{"$f":"TRANSPOSE(U8186)","v":1689}]
["BREMERTON","WA","O-1",{"$f":"TRANSPOSE(V8186)","v":1245}]
["BREMERTON","WA","O-2",{"$f":"TRANSPOSE(W8186)","v":1362}]
["BREMERTON","WA","O-3",{"$f":"TRANSPOSE(X8186)","v":1587}]
["BREMERTON","WA","O-4",{"$f":"TRANSPOSE(Y8186)","v":1809}]
["BREMERTON","WA","O-5",{"$f":"TRANSPOSE(Z8186)","v":1962}]
["BREMERTON","WA","O-6",{"$f":"TRANSPOSE(AA8186)","v":1983}]
["BREMERTON","WA","O-7",{"$f":"TRANSPOSE(AB8186)","v":2001}]
["EVERETT","WA","E-1",{"$f":"TRANSPOSE(E8210:E8210)","v":1236},1236,1236,1236,1236,1320,1548,1632,1725,1833,1551,1671,1782,1854,1938,1653,1767,1866,1347,1545,1779,1968,2103,2124,2145]
["EVERETT","WA","E-2",{"$f":"TRANSPOSE(F8210:F8210)","v":1236}]
["EVERETT","WA","E-3",{"$f":"TRANSPOSE(G8210:G8210)","v":1236}]
["EVERETT","WA","E-4",{"$f":"TRANSPOSE(H8210:H8210)","v":1236}]
["EVERETT","WA","E-5",{"$f":"TRANSPOSE(I8210:I8210)","v":1320}]
["EVERETT","WA","E-6",{"$f":"TRANSPOSE(J8210:J8210)","v":1548}]
["EVERETT","WA","E-7",{"$f":"TRANSPOSE(K8210:K8210)","v":1632}]
["EVERETT","WA","E-8",{"$f":"TRANSPOSE(L8210)","v":1725}]
["EVERETT","WA","E-9",{"$f":"TRANSPOSE(M8210)","v":1833}]
["EVERETT","WA","W-1",{"$f":"TRANSPOSE(N8210)","v":1551}]
["EVERETT","WA","W-2",{"$f":"TRANSPOSE(O8210)","v":1671}]
["EVERETT","WA","W-3",{"$f":"TRANSPOSE(P8210)","v":1782}]
["EVERETT","WA","W-4",{"$f":"TRANSPOSE(Q8210)","v":1854}]
["EVERETT","WA","W-5",{"$f":"TRANSPOSE(R8210)","v":1938}]
["EVERETT","WA","O-1E",{"$f":"TRANSPOSE(S8210)","v":1653}]
["EVERETT","WA","O-2E",{"$f":"TRANSPOSE(T8210)","v":1767}]
["EVERETT","WA","O-3E",{"$f":"TRANSPOSE(U8210)","v":1866}]
["EVERETT","WA","O-1",{"$f":"TRANSPOSE(V8210)","v":1347}]
["EVERETT","WA","O-2",{"$f":"TRANSPOSE(W8210)","v":1545}]
["EVERETT","WA","O-3",{"$f":"TRANSPOSE(X8210)","v":1779}]
["EVERETT","WA","O-4",{"$f":"TRANSPOSE(Y8210)","v":1968}]
["EVERETT","WA","O-5",{"$f":"TRANSPOSE(Z8210)","v":2103}]
["EVERETT","WA","O-6",{"$f":"TRANSPOSE(AA8210)","v":2124}]
["EVERETT","WA","O-7",{"$f":"TRANSPOSE(AB8210)","v":2145}]
["PORT ANGELES","WA","E-1",{"$f":"TRANSPOSE(E8234:E8234)","v":1005},1005,1005,1005,1005,1104,1290,1350,1419,1485,1293,1377,1461,1497,1539,1365,1449,1503,1125,1287,1458,1554,1623,1638,1653]
["PORT ANGELES","WA","E-2",{"$f":"TRANSPOSE(F8234:F8234)","v":1005}]
["PORT ANGELES","WA","E-3",{"$f":"TRANSPOSE(G8234:G8234)","v":1005}]
["PORT ANGELES","WA","E-4",{"$f":"TRANSPOSE(H8234:H8234)","v":1005}]
["PORT ANGELES","WA","E-5",{"$f":"TRANSPOSE(I8234:I8234)","v":1104}]
["PORT ANGELES","WA","E-6",{"$f":"TRANSPOSE(J8234:J8234)","v":1290}]
["PORT ANGELES","WA","E-7",{"$f":"TRANSPOSE(K8234:K8234)","v":1350}]
["PORT ANGELES","WA","E-8",{"$f":"TRANSPOSE(L8234)","v":1419}]
["PORT ANGELES","WA","E-9",{"$f":"TRANSPOSE(M8234)","v":1485}]
["PORT ANGELES","WA","W-1",{"$f":"TRANSPOSE(N8234)","v":1293}]
["PORT ANGELES","WA","W-2",{"$f":"TRANSPOSE(O8234)","v":1377}]
["PORT ANGELES","WA","W-3",{"$f":"TRANSPOSE(P8234)","v":1461}]
["PORT ANGELES","WA","W-4",{"$f":"TRANSPOSE(Q8234)","v":1497}]
["PORT ANGELES","WA","W-5",{"$f":"TRANSPOSE(R8234)","v":1539}]
["PORT ANGELES","WA","O-1E",{"$f":"TRANSPOSE(S8234)","v":1365}]
["PORT ANGELES","WA","O-2E",{"$f":"TRANSPOSE(T8234)","v":1449}]
["PORT ANGELES","WA","O-3E",{"$f":"TRANSPOSE(U8234)","v":1503}]
["PORT ANGELES","WA","O-1",{"$f":"TRANSPOSE(V8234)","v":1125}]
["PORT ANGELES","WA","O-2",{"$f":"TRANSPOSE(W8234)","v":1287}]
["PORT ANGELES","WA","O-3",{"$f":"TRANSPOSE(X8234)","v":1458}]
["PORT ANGELES","WA","O-4",{"$f":"TRANSPOSE(Y8234)","v":1554}]
["PORT ANGELES","WA","O-5",{"$f":"TRANSPOSE(Z8234)","v":1623}]
["PORT ANGELES","WA","O-6",{"$f":"TRANSPOSE(AA8234)","v":1638}]
["PORT ANGELES","WA","O-7",{"$f":"TRANSPOSE(AB8234)","v":1653}]
["PULLMAN","WA","E-1",{"$f":"TRANSPOSE(E8258:E8258)","v":807},807,807,807,807,912,1305,1353,1407,1497,1305,1374,1440,1518,1611,1365,1431,1533,954,1296,1437,1647,1797,1815,1833]
["PULLMAN","WA","E-2",{"$f":"TRANSPOSE(F8258:F8258)","v":807}]
["PULLMAN","WA","E-3",{"$f":"TRANSPOSE(G8258:G8258)","v":807}]
["PULLMAN","WA","E-4",{"$f":"TRANSPOSE(H8258:H8258)","v":807}]
["PULLMAN","WA","E-5",{"$f":"TRANSPOSE(I8258:I8258)","v":912}]
["PULLMAN","WA","E-6",{"$f":"TRANSPOSE(J8258:J8258)","v":1305}]
["PULLMAN","WA","E-7",{"$f":"TRANSPOSE(K8258:K8258)","v":1353}]
["PULLMAN","WA","E-8",{"$f":"TRANSPOSE(L8258)","v":1407}]
["PULLMAN","WA","E-9",{"$f":"TRANSPOSE(M8258)","v":1497}]
["PULLMAN","WA","W-1",{"$f":"TRANSPOSE(N8258)","v":1305}]
["PULLMAN","WA","W-2",{"$f":"TRANSPOSE(O8258)","v":1374}]
["PULLMAN","WA","W-3",{"$f":"TRANSPOSE(P8258)","v":1440}]
["PULLMAN","WA","W-4",{"$f":"TRANSPOSE(Q8258)","v":1518}]
["PULLMAN","WA","W-5",{"$f":"TRANSPOSE(R8258)","v":1611}]
["PULLMAN","WA","O-1E",{"$f":"TRANSPOSE(S8258)","v":1365}]
["PULLMAN","WA","O-2E",{"$f":"TRANSPOSE(T8258)","v":1431}]
["PULLMAN","WA","O-3E",{"$f":"TRANSPOSE(U8258)","v":1533}]
["PULLMAN","WA","O-1",{"$f":"TRANSPOSE(V8258)","v":954}]
["PULLMAN","WA","O-2",{"$f":"TRANSPOSE(W8258)","v":1296}]
["PULLMAN","WA","O-3",{"$f":"TRANSPOSE(X8258)","v":1437}]
["PULLMAN","WA","O-4",{"$f":"TRANSPOSE(Y8258)","v":1647}]
["PULLMAN","WA","O-5",{"$f":"TRANSPOSE(Z8258)","v":1797}]
["PULLMAN","WA","O-6",{"$f":"TRANSPOSE(AA8258)","v":1815}]
["PULLMAN","WA","O-7",{"$f":"TRANSPOSE(AB8258)","v":1833}]
["SEATTLE","WA","E-1",{"$f":"TRANSPOSE(E8282:E8282)","v":1398},1398,1398,1398,1398,1566,1881,1950,2028,2109,1884,1983,2076,2121,2172,1968,2061,2130,1602,1875,2073,2193,2277,2301,2325]
["SEATTLE","WA","E-2",{"$f":"TRANSPOSE(F8282:F8282)","v":1398}]
["SEATTLE","WA","E-3",{"$f":"TRANSPOSE(G8282:G8282)","v":1398}]
["SEATTLE","WA","E-4",{"$f":"TRANSPOSE(H8282:H8282)","v":1398}]
["SEATTLE","WA","E-5",{"$f":"TRANSPOSE(I8282:I8282)","v":1566}]
["SEATTLE","WA","E-6",{"$f":"TRANSPOSE(J8282:J8282)","v":1881}]
["SEATTLE","WA","E-7",{"$f":"TRANSPOSE(K8282:K8282)","v":1950}]
["SEATTLE","WA","E-8",{"$f":"TRANSPOSE(L8282)","v":2028}]
["SEATTLE","WA","E-9",{"$f":"TRANSPOSE(M8282)","v":2109}]
["SEATTLE","WA","W-1",{"$f":"TRANSPOSE(N8282)","v":1884}]
["SEATTLE","WA","W-2",{"$f":"TRANSPOSE(O8282)","v":1983}]
["SEATTLE","WA","W-3",{"$f":"TRANSPOSE(P8282)","v":2076}]
["SEATTLE","WA","W-4",{"$f":"TRANSPOSE(Q8282)","v":2121}]
["SEATTLE","WA","W-5",{"$f":"TRANSPOSE(R8282)","v":2172}]
["SEATTLE","WA","O-1E",{"$f":"TRANSPOSE(S8282)","v":1968}]
["SEATTLE","WA","O-2E",{"$f":"TRANSPOSE(T8282)","v":2061}]
["SEATTLE","WA","O-3E",{"$f":"TRANSPOSE(U8282)","v":2130}]
["SEATTLE","WA","O-1",{"$f":"TRANSPOSE(V8282)","v":1602}]
["SEATTLE","WA","O-2",{"$f":"TRANSPOSE(W8282)","v":1875}]
["SEATTLE","WA","O-3",{"$f":"TRANSPOSE(X8282)","v":2073}]
["SEATTLE","WA","O-4",{"$f":"TRANSPOSE(Y8282)","v":2193}]
["SEATTLE","WA","O-5",{"$f":"TRANSPOSE(Z8282)","v":2277}]
["SEATTLE","WA","O-6",{"$f":"TRANSPOSE(AA8282)","v":2301}]
["SEATTLE","WA","O-7",{"$f":"TRANSPOSE(AB8282)","v":2325}]
["SPOKANE","WA","E-1",{"$f":"TRANSPOSE(E8306:E8306)","v":951},951,951,951,951,1059,1158,1218,1284,1383,1161,1245,1326,1404,1494,1233,1314,1419,1068,1158,1323,1530,1677,1695,1713]
["SPOKANE","WA","E-2",{"$f":"TRANSPOSE(F8306:F8306)","v":951}]
["SPOKANE","WA","E-3",{"$f":"TRANSPOSE(G8306:G8306)","v":951}]
["SPOKANE","WA","E-4",{"$f":"TRANSPOSE(H8306:H8306)","v":951}]
["SPOKANE","WA","E-5",{"$f":"TRANSPOSE(I8306:I8306)","v":1059}]
["SPOKANE","WA","E-6",{"$f":"TRANSPOSE(J8306:J8306)","v":1158}]
["SPOKANE","WA","E-7",{"$f":"TRANSPOSE(K8306:K8306)","v":1218}]
["SPOKANE","WA","E-8",{"$f":"TRANSPOSE(L8306)","v":1284}]
["SPOKANE","WA","E-9",{"$f":"TRANSPOSE(M8306)","v":1383}]
["SPOKANE","WA","W-1",{"$f":"TRANSPOSE(N8306)","v":1161}]
["SPOKANE","WA","W-2",{"$f":"TRANSPOSE(O8306)","v":1245}]
["SPOKANE","WA","W-3",{"$f":"TRANSPOSE(P8306)","v":1326}]
["SPOKANE","WA","W-4",{"$f":"TRANSPOSE(Q8306)","v":1404}]
["SPOKANE","WA","W-5",{"$f":"TRANSPOSE(R8306)","v":1494}]
["SPOKANE","WA","O-1E",{"$f":"TRANSPOSE(S8306)","v":1233}]
["SPOKANE","WA","O-2E",{"$f":"TRANSPOSE(T8306)","v":1314}]
["SPOKANE","WA","O-3E",{"$f":"TRANSPOSE(U8306)","v":1419}]
["SPOKANE","WA","O-1",{"$f":"TRANSPOSE(V8306)","v":1068}]
["SPOKANE","WA","O-2",{"$f":"TRANSPOSE(W8306)","v":1158}]
["SPOKANE","WA","O-3",{"$f":"TRANSPOSE(X8306)","v":1323}]
["SPOKANE","WA","O-4",{"$f":"TRANSPOSE(Y8306)","v":1530}]
["SPOKANE","WA","O-5",{"$f":"TRANSPOSE(Z8306)","v":1677}]
["SPOKANE","WA","O-6",{"$f":"TRANSPOSE(AA8306)","v":1695}]
["SPOKANE","WA","O-7",{"$f":"TRANSPOSE(AB8306)","v":1713}]
["TACOMA","WA","E-1",{"$f":"TRANSPOSE(E8330:E8330)","v":1263},1263,1263,1263,1263,1395,1635,1743,1860,1983,1638,1791,1935,2004,2082,1767,1914,2016,1422,1629,1929,2115,2244,2265,2289]
["TACOMA","WA","E-2",{"$f":"TRANSPOSE(F8330:F8330)","v":1263}]
["TACOMA","WA","E-3",{"$f":"TRANSPOSE(G8330:G8330)","v":1263}]
["TACOMA","WA","E-4",{"$f":"TRANSPOSE(H8330:H8330)","v":1263}]
["TACOMA","WA","E-5",{"$f":"TRANSPOSE(I8330:I8330)","v":1395}]
["TACOMA","WA","E-6",{"$f":"TRANSPOSE(J8330:J8330)","v":1635}]
["TACOMA","WA","E-7",{"$f":"TRANSPOSE(K8330:K8330)","v":1743}]
["TACOMA","WA","E-8",{"$f":"TRANSPOSE(L8330)","v":1860}]
["TACOMA","WA","E-9",{"$f":"TRANSPOSE(M8330)","v":1983}]
["TACOMA","WA","W-1",{"$f":"TRANSPOSE(N8330)","v":1638}]
["TACOMA","WA","W-2",{"$f":"TRANSPOSE(O8330)","v":1791}]
["TACOMA","WA","W-3",{"$f":"TRANSPOSE(P8330)","v":1935}]
["TACOMA","WA","W-4",{"$f":"TRANSPOSE(Q8330)","v":2004}]
["TACOMA","WA","W-5",{"$f":"TRANSPOSE(R8330)","v":2082}]
["TACOMA","WA","O-1E",{"$f":"TRANSPOSE(S8330)","v":1767}]
["TACOMA","WA","O-2E",{"$f":"TRANSPOSE(T8330)","v":1914}]
["TACOMA","WA","O-3E",{"$f":"TRANSPOSE(U8330)","v":2016}]
["TACOMA","WA","O-1",{"$f":"TRANSPOSE(V8330)","v":1422}]
["TACOMA","WA","O-2",{"$f":"TRANSPOSE(W8330)","v":1629}]
["TACOMA","WA","O-3",{"$f":"TRANSPOSE(X8330)","v":1929}]
["TACOMA","WA","O-4",{"$f":"TRANSPOSE(Y8330)","v":2115}]
["TACOMA","WA","O-5",{"$f":"TRANSPOSE(Z8330)","v":2244}]
["TACOMA","WA","O-6",{"$f":"TRANSPOSE(AA8330)","v":2265}]
["TACOMA","WA","O-7",{"$f":"TRANSPOSE(AB8330)","v":2289}]
["WHIDBEY ISLAND","WA","E-1",{"$f":"TRANSPOSE(E8354:E8354)","v":1056},1056,1056,1056,1056,1131,1362,1464,1578,1668,1365,1512,1647,1677,1707,1488,1629,1680,1158,1356,1641,1722,1773,1791,1809]
["WHIDBEY ISLAND","WA","E-2",{"$f":"TRANSPOSE(F8354:F8354)","v":1056}]
["WHIDBEY ISLAND","WA","E-3",{"$f":"TRANSPOSE(G8354:G8354)","v":1056}]
["WHIDBEY ISLAND","WA","E-4",{"$f":"TRANSPOSE(H8354:H8354)","v":1056}]
["WHIDBEY ISLAND","WA","E-5",{"$f":"TRANSPOSE(I8354:I8354)","v":1131}]
["WHIDBEY ISLAND","WA","E-6",{"$f":"TRANSPOSE(J8354:J8354)","v":1362}]
["WHIDBEY ISLAND","WA","E-7",{"$f":"TRANSPOSE(K8354:K8354)","v":1464}]
["WHIDBEY ISLAND","WA","E-8",{"$f":"TRANSPOSE(L8354)","v":1578}]
["WHIDBEY ISLAND","WA","E-9",{"$f":"TRANSPOSE(M8354)","v":1668}]
["WHIDBEY ISLAND","WA","W-1",{"$f":"TRANSPOSE(N8354)","v":1365}]
["WHIDBEY ISLAND","WA","W-2",{"$f":"TRANSPOSE(O8354)","v":1512}]
["WHIDBEY ISLAND","WA","W-3",{"$f":"TRANSPOSE(P8354)","v":1647}]
["WHIDBEY ISLAND","WA","W-4",{"$f":"TRANSPOSE(Q8354)","v":1677}]
["WHIDBEY ISLAND","WA","W-5",{"$f":"TRANSPOSE(R8354)","v":1707}]
["WHIDBEY ISLAND","WA","O-1E",{"$f":"TRANSPOSE(S8354)","v":1488}]
["WHIDBEY ISLAND","WA","O-2E",{"$f":"TRANSPOSE(T8354)","v":1629}]
["WHIDBEY ISLAND","WA","O-3E",{"$f":"TRANSPOSE(U8354)","v":1680}]
["WHIDBEY ISLAND","WA","O-1",{"$f":"TRANSPOSE(V8354)","v":1158}]
["WHIDBEY ISLAND","WA","O-2",{"$f":"TRANSPOSE(W8354)","v":1356}]
["WHIDBEY ISLAND","WA","O-3",{"$f":"TRANSPOSE(X8354)","v":1641}]
["WHIDBEY ISLAND","WA","O-4",{"$f":"TRANSPOSE(Y8354)","v":1722}]
["WHIDBEY ISLAND","WA","O-5",{"$f":"TRANSPOSE(Z8354)","v":1773}]
["WHIDBEY ISLAND","WA","O-6",{"$f":"TRANSPOSE(AA8354)","v":1791}]
["WHIDBEY ISLAND","WA","O-7",{"$f":"TRANSPOSE(AB8354)","v":1809}]
["YAKIMA","WA","E-1",{"$f":"TRANSPOSE(E8378:E8378)","v":1071},1071,1071,1071,1071,1230,1308,1359,1413,1488,1308,1380,1446,1503,1566,1368,1437,1512,1239,1305,1443,1593,1698,1713,1731]
["YAKIMA","WA","E-2",{"$f":"TRANSPOSE(F8378:F8378)","v":1071}]
["YAKIMA","WA","E-3",{"$f":"TRANSPOSE(G8378:G8378)","v":1071}]
["YAKIMA","WA","E-4",{"$f":"TRANSPOSE(H8378:H8378)","v":1071}]
["YAKIMA","WA","E-5",{"$f":"TRANSPOSE(I8378:I8378)","v":1230}]
["YAKIMA","WA","E-6",{"$f":"TRANSPOSE(J8378:J8378)","v":1308}]
["YAKIMA","WA","E-7",{"$f":"TRANSPOSE(K8378:K8378)","v":1359}]
["YAKIMA","WA","E-8",{"$f":"TRANSPOSE(L8378)","v":1413}]
["YAKIMA","WA","E-9",{"$f":"TRANSPOSE(M8378)","v":1488}]
["YAKIMA","WA","W-1",{"$f":"TRANSPOSE(N8378)","v":1308}]
["YAKIMA","WA","W-2",{"$f":"TRANSPOSE(O8378)","v":1380}]
["YAKIMA","WA","W-3",{"$f":"TRANSPOSE(P8378)","v":1446}]
["YAKIMA","WA","W-4",{"$f":"TRANSPOSE(Q8378)","v":1503}]
["YAKIMA","WA","W-5",{"$f":"TRANSPOSE(R8378)","v":1566}]
["YAKIMA","WA","O-1E",{"$f":"TRANSPOSE(S8378)","v":1368}]
["YAKIMA","WA","O-2E",{"$f":"TRANSPOSE(T8378)","v":1437}]
["YAKIMA","WA","O-3E",{"$f":"TRANSPOSE(U8378)","v":1512}]
["YAKIMA","WA","O-1",{"$f":"TRANSPOSE(V8378)","v":1239}]
["YAKIMA","WA","O-2",{"$f":"TRANSPOSE(W8378)","v":1305}]
["YAKIMA","WA","O-3",{"$f":"TRANSPOSE(X8378)","v":1443}]
["YAKIMA","WA","O-4",{"$f":"TRANSPOSE(Y8378)","v":1593}]
["YAKIMA","WA","O-5",{"$f":"TRANSPOSE(Z8378)","v":1698}]
["YAKIMA","WA","O-6",{"$f":"TRANSPOSE(AA8378)","v":1713}]
["YAKIMA","WA","O-7",{"$f":"TRANSPOSE(AB8378)","v":1731}]
["ABERDEEN","WA","E-1",{"$f":"TRANSPOSE(E8402:E8402)","v":870},870,870,870,870,954,1062,1119,1179,1236,1065,1143,1218,1245,1272,1131,1209,1248,966,1062,1215,1284,1332,1344,1359]
["ABERDEEN","WA","E-2",{"$f":"TRANSPOSE(F8402:F8402)","v":870}]
["ABERDEEN","WA","E-3",{"$f":"TRANSPOSE(G8402:G8402)","v":870}]
["ABERDEEN","WA","E-4",{"$f":"TRANSPOSE(H8402:H8402)","v":870}]
["ABERDEEN","WA","E-5",{"$f":"TRANSPOSE(I8402:I8402)","v":954}]
["ABERDEEN","WA","E-6",{"$f":"TRANSPOSE(J8402:J8402)","v":1062}]
["ABERDEEN","WA","E-7",{"$f":"TRANSPOSE(K8402:K8402)","v":1119}]
["ABERDEEN","WA","E-8",{"$f":"TRANSPOSE(L8402)","v":1179}]
["ABERDEEN","WA","E-9",{"$f":"TRANSPOSE(M8402)","v":1236}]
["ABERDEEN","WA","W-1",{"$f":"TRANSPOSE(N8402)","v":1065}]
["ABERDEEN","WA","W-2",{"$f":"TRANSPOSE(O8402)","v":1143}]
["ABERDEEN","WA","W-3",{"$f":"TRANSPOSE(P8402)","v":1218}]
["ABERDEEN","WA","W-4",{"$f":"TRANSPOSE(Q8402)","v":1245}]
["ABERDEEN","WA","W-5",{"$f":"TRANSPOSE(R8402)","v":1272}]
["ABERDEEN","WA","O-1E",{"$f":"TRANSPOSE(S8402)","v":1131}]
["ABERDEEN","WA","O-2E",{"$f":"TRANSPOSE(T8402)","v":1209}]
["ABERDEEN","WA","O-3E",{"$f":"TRANSPOSE(U8402)","v":1248}]
["ABERDEEN","WA","O-1",{"$f":"TRANSPOSE(V8402)","v":966}]
["ABERDEEN","WA","O-2",{"$f":"TRANSPOSE(W8402)","v":1062}]
["ABERDEEN","WA","O-3",{"$f":"TRANSPOSE(X8402)","v":1215}]
["ABERDEEN","WA","O-4",{"$f":"TRANSPOSE(Y8402)","v":1284}]
["ABERDEEN","WA","O-5",{"$f":"TRANSPOSE(Z8402)","v":1332}]
["ABERDEEN","WA","O-6",{"$f":"TRANSPOSE(AA8402)","v":1344}]
["ABERDEEN","WA","O-7",{"$f":"TRANSPOSE(AB8402)","v":1359}]
["MADISON","WI","E-1",{"$f":"TRANSPOSE(E8426:E8426)","v":1224},1224,1224,1224,1224,1311,1506,1575,1647,1758,1509,1605,1692,1785,1893,1590,1680,1800,1332,1503,1689,1935,2109,2130,2151]
["MADISON","WI","E-2",{"$f":"TRANSPOSE(F8426:F8426)","v":1224}]
["MADISON","WI","E-3",{"$f":"TRANSPOSE(G8426:G8426)","v":1224}]
["MADISON","WI","E-4",{"$f":"TRANSPOSE(H8426:H8426)","v":1224}]
["MADISON","WI","E-5",{"$f":"TRANSPOSE(I8426:I8426)","v":1311}]
["MADISON","WI","E-6",{"$f":"TRANSPOSE(J8426:J8426)","v":1506}]
["MADISON","WI","E-7",{"$f":"TRANSPOSE(K8426:K8426)","v":1575}]
["MADISON","WI","E-8",{"$f":"TRANSPOSE(L8426)","v":1647}]
["MADISON","WI","E-9",{"$f":"TRANSPOSE(M8426)","v":1758}]
["MADISON","WI","W-1",{"$f":"TRANSPOSE(N8426)","v":1509}]
["MADISON","WI","W-2",{"$f":"TRANSPOSE(O8426)","v":1605}]
["MADISON","WI","W-3",{"$f":"TRANSPOSE(P8426)","v":1692}]
["MADISON","WI","W-4",{"$f":"TRANSPOSE(Q8426)","v":1785}]
["MADISON","WI","W-5",{"$f":"TRANSPOSE(R8426)","v":1893}]
["MADISON","WI","O-1E",{"$f":"TRANSPOSE(S8426)","v":1590}]
["MADISON","WI","O-2E",{"$f":"TRANSPOSE(T8426)","v":1680}]
["MADISON","WI","O-3E",{"$f":"TRANSPOSE(U8426)","v":1800}]
["MADISON","WI","O-1",{"$f":"TRANSPOSE(V8426)","v":1332}]
["MADISON","WI","O-2",{"$f":"TRANSPOSE(W8426)","v":1503}]
["MADISON","WI","O-3",{"$f":"TRANSPOSE(X8426)","v":1689}]
["MADISON","WI","O-4",{"$f":"TRANSPOSE(Y8426)","v":1935}]
["MADISON","WI","O-5",{"$f":"TRANSPOSE(Z8426)","v":2109}]
["MADISON","WI","O-6",{"$f":"TRANSPOSE(AA8426)","v":2130}]
["MADISON","WI","O-7",{"$f":"TRANSPOSE(AB8426)","v":2151}]
["MILWAUKEE","WI","E-1",{"$f":"TRANSPOSE(E8450:E8450)","v":1275},1275,1275,1275,1275,1362,1491,1566,1650,1755,1491,1599,1701,1776,1866,1584,1686,1791,1377,1488,1698,1899,2040,2061,2082]
["MILWAUKEE","WI","E-2",{"$f":"TRANSPOSE(F8450:F8450)","v":1275}]
["MILWAUKEE","WI","E-3",{"$f":"TRANSPOSE(G8450:G8450)","v":1275}]
["MILWAUKEE","WI","E-4",{"$f":"TRANSPOSE(H8450:H8450)","v":1275}]
["MILWAUKEE","WI","E-5",{"$f":"TRANSPOSE(I8450:I8450)","v":1362}]
["MILWAUKEE","WI","E-6",{"$f":"TRANSPOSE(J8450:J8450)","v":1491}]
["MILWAUKEE","WI","E-7",{"$f":"TRANSPOSE(K8450:K8450)","v":1566}]
["MILWAUKEE","WI","E-8",{"$f":"TRANSPOSE(L8450)","v":1650}]
["MILWAUKEE","WI","E-9",{"$f":"TRANSPOSE(M8450)","v":1755}]
["MILWAUKEE","WI","W-1",{"$f":"TRANSPOSE(N8450)","v":1491}]
["MILWAUKEE","WI","W-2",{"$f":"TRANSPOSE(O8450)","v":1599}]
["MILWAUKEE","WI","W-3",{"$f":"TRANSPOSE(P8450)","v":1701}]
["MILWAUKEE","WI","W-4",{"$f":"TRANSPOSE(Q8450)","v":1776}]
["MILWAUKEE","WI","W-5",{"$f":"TRANSPOSE(R8450)","v":1866}]
["MILWAUKEE","WI","O-1E",{"$f":"TRANSPOSE(S8450)","v":1584}]
["MILWAUKEE","WI","O-2E",{"$f":"TRANSPOSE(T8450)","v":1686}]
["MILWAUKEE","WI","O-3E",{"$f":"TRANSPOSE(U8450)","v":1791}]
["MILWAUKEE","WI","O-1",{"$f":"TRANSPOSE(V8450)","v":1377}]
["MILWAUKEE","WI","O-2",{"$f":"TRANSPOSE(W8450)","v":1488}]
["MILWAUKEE","WI","O-3",{"$f":"TRANSPOSE(X8450)","v":1698}]
["MILWAUKEE","WI","O-4",{"$f":"TRANSPOSE(Y8450)","v":1899}]
["MILWAUKEE","WI","O-5",{"$f":"TRANSPOSE(Z8450)","v":2040}]
["MILWAUKEE","WI","O-6",{"$f":"TRANSPOSE(AA8450)","v":2061}]
["MILWAUKEE","WI","O-7",{"$f":"TRANSPOSE(AB8450)","v":2082}]
["SPARTA/FORT MCCOY","WI","E-1",{"$f":"TRANSPOSE(E8474:E8474)","v":918},918,918,918,918,1032,1245,1275,1308,1344,1245,1287,1326,1353,1383,1281,1320,1356,1056,1242,1326,1392,1440,1455,1470]
["SPARTA/FORT MCCOY","WI","E-2",{"$f":"TRANSPOSE(F8474:F8474)","v":918}]
["SPARTA/FORT MCCOY","WI","E-3",{"$f":"TRANSPOSE(G8474:G8474)","v":918}]
["SPARTA/FORT MCCOY","WI","E-4",{"$f":"TRANSPOSE(H8474:H8474)","v":918}]
["SPARTA/FORT MCCOY","WI","E-5",{"$f":"TRANSPOSE(I8474:I8474)","v":1032}]
["SPARTA/FORT MCCOY","WI","E-6",{"$f":"TRANSPOSE(J8474:J8474)","v":1245}]
["SPARTA/FORT MCCOY","WI","E-7",{"$f":"TRANSPOSE(K8474:K8474)","v":1275}]
["SPARTA/FORT MCCOY","WI","E-8",{"$f":"TRANSPOSE(L8474)","v":1308}]
["SPARTA/FORT MCCOY","WI","E-9",{"$f":"TRANSPOSE(M8474)","v":1344}]
["SPARTA/FORT MCCOY","WI","W-1",{"$f":"TRANSPOSE(N8474)","v":1245}]
["SPARTA/FORT MCCOY","WI","W-2",{"$f":"TRANSPOSE(O8474)","v":1287}]
["SPARTA/FORT MCCOY","WI","W-3",{"$f":"TRANSPOSE(P8474)","v":1326}]
["SPARTA/FORT MCCOY","WI","W-4",{"$f":"TRANSPOSE(Q8474)","v":1353}]
["SPARTA/FORT MCCOY","WI","W-5",{"$f":"TRANSPOSE(R8474)","v":1383}]
["SPARTA/FORT MCCOY","WI","O-1E",{"$f":"TRANSPOSE(S8474)","v":1281}]
["SPARTA/FORT MCCOY","WI","O-2E",{"$f":"TRANSPOSE(T8474)","v":1320}]
["SPARTA/FORT MCCOY","WI","O-3E",{"$f":"TRANSPOSE(U8474)","v":1356}]
["SPARTA/FORT MCCOY","WI","O-1",{"$f":"TRANSPOSE(V8474)","v":1056}]
["SPARTA/FORT MCCOY","WI","O-2",{"$f":"TRANSPOSE(W8474)","v":1242}]
["SPARTA/FORT MCCOY","WI","O-3",{"$f":"TRANSPOSE(X8474)","v":1326}]
["SPARTA/FORT MCCOY","WI","O-4",{"$f":"TRANSPOSE(Y8474)","v":1392}]
["SPARTA/FORT MCCOY","WI","O-5",{"$f":"TRANSPOSE(Z8474)","v":1440}]
["SPARTA/FORT MCCOY","WI","O-6",{"$f":"TRANSPOSE(AA8474)","v":1455}]
["SPARTA/FORT MCCOY","WI","O-7",{"$f":"TRANSPOSE(AB8474)","v":1470}]
["OSHKOSH/APPLETON","WI","E-1",{"$f":"TRANSPOSE(E8498:E8498)","v":822},822,822,822,822,903,1083,1122,1167,1251,1086,1140,1194,1272,1368,1131,1185,1287,924,1080,1191,1404,1557,1572,1587]
["OSHKOSH/APPLETON","WI","E-2",{"$f":"TRANSPOSE(F8498:F8498)","v":822}]
["OSHKOSH/APPLETON","WI","E-3",{"$f":"TRANSPOSE(G8498:G8498)","v":822}]
["OSHKOSH/APPLETON","WI","E-4",{"$f":"TRANSPOSE(H8498:H8498)","v":822}]
["OSHKOSH/APPLETON","WI","E-5",{"$f":"TRANSPOSE(I8498:I8498)","v":903}]
["OSHKOSH/APPLETON","WI","E-6",{"$f":"TRANSPOSE(J8498:J8498)","v":1083}]
["OSHKOSH/APPLETON","WI","E-7",{"$f":"TRANSPOSE(K8498:K8498)","v":1122}]
["OSHKOSH/APPLETON","WI","E-8",{"$f":"TRANSPOSE(L8498)","v":1167}]
["OSHKOSH/APPLETON","WI","E-9",{"$f":"TRANSPOSE(M8498)","v":1251}]
["OSHKOSH/APPLETON","WI","W-1",{"$f":"TRANSPOSE(N8498)","v":1086}]
["OSHKOSH/APPLETON","WI","W-2",{"$f":"TRANSPOSE(O8498)","v":1140}]
["OSHKOSH/APPLETON","WI","W-3",{"$f":"TRANSPOSE(P8498)","v":1194}]
["OSHKOSH/APPLETON","WI","W-4",{"$f":"TRANSPOSE(Q8498)","v":1272}]
["OSHKOSH/APPLETON","WI","W-5",{"$f":"TRANSPOSE(R8498)","v":1368}]
["OSHKOSH/APPLETON","WI","O-1E",{"$f":"TRANSPOSE(S8498)","v":1131}]
["OSHKOSH/APPLETON","WI","O-2E",{"$f":"TRANSPOSE(T8498)","v":1185}]
["OSHKOSH/APPLETON","WI","O-3E",{"$f":"TRANSPOSE(U8498)","v":1287}]
["OSHKOSH/APPLETON","WI","O-1",{"$f":"TRANSPOSE(V8498)","v":924}]
["OSHKOSH/APPLETON","WI","O-2",{"$f":"TRANSPOSE(W8498)","v":1080}]
["OSHKOSH/APPLETON","WI","O-3",{"$f":"TRANSPOSE(X8498)","v":1191}]
["OSHKOSH/APPLETON","WI","O-4",{"$f":"TRANSPOSE(Y8498)","v":1404}]
["OSHKOSH/APPLETON","WI","O-5",{"$f":"TRANSPOSE(Z8498)","v":1557}]
["OSHKOSH/APPLETON","WI","O-6",{"$f":"TRANSPOSE(AA8498)","v":1572}]
["OSHKOSH/APPLETON","WI","O-7",{"$f":"TRANSPOSE(AB8498)","v":1587}]
["GREEN BAY","WI","E-1",{"$f":"TRANSPOSE(E8522:E8522)","v":834},834,834,834,834,897,1170,1197,1227,1335,1173,1209,1245,1368,1509,1203,1242,1389,927,1167,1245,1566,1797,1815,1833]
["GREEN BAY","WI","E-2",{"$f":"TRANSPOSE(F8522:F8522)","v":834}]
["GREEN BAY","WI","E-3",{"$f":"TRANSPOSE(G8522:G8522)","v":834}]
["GREEN BAY","WI","E-4",{"$f":"TRANSPOSE(H8522:H8522)","v":834}]
["GREEN BAY","WI","E-5",{"$f":"TRANSPOSE(I8522:I8522)","v":897}]
["GREEN BAY","WI","E-6",{"$f":"TRANSPOSE(J8522:J8522)","v":1170}]
["GREEN BAY","WI","E-7",{"$f":"TRANSPOSE(K8522:K8522)","v":1197}]
["GREEN BAY","WI","E-8",{"$f":"TRANSPOSE(L8522)","v":1227}]
["GREEN BAY","WI","E-9",{"$f":"TRANSPOSE(M8522)","v":1335}]
["GREEN BAY","WI","W-1",{"$f":"TRANSPOSE(N8522)","v":1173}]
["GREEN BAY","WI","W-2",{"$f":"TRANSPOSE(O8522)","v":1209}]
["GREEN BAY","WI","W-3",{"$f":"TRANSPOSE(P8522)","v":1245}]
["GREEN BAY","WI","W-4",{"$f":"TRANSPOSE(Q8522)","v":1368}]
["GREEN BAY","WI","W-5",{"$f":"TRANSPOSE(R8522)","v":1509}]
["GREEN BAY","WI","O-1E",{"$f":"TRANSPOSE(S8522)","v":1203}]
["GREEN BAY","WI","O-2E",{"$f":"TRANSPOSE(T8522)","v":1242}]
["GREEN BAY","WI","O-3E",{"$f":"TRANSPOSE(U8522)","v":1389}]
["GREEN BAY","WI","O-1",{"$f":"TRANSPOSE(V8522)","v":927}]
["GREEN BAY","WI","O-2",{"$f":"TRANSPOSE(W8522)","v":1167}]
["GREEN BAY","WI","O-3",{"$f":"TRANSPOSE(X8522)","v":1245}]
["GREEN BAY","WI","O-4",{"$f":"TRANSPOSE(Y8522)","v":1566}]
["GREEN BAY","WI","O-5",{"$f":"TRANSPOSE(Z8522)","v":1797}]
["GREEN BAY","WI","O-6",{"$f":"TRANSPOSE(AA8522)","v":1815}]
["GREEN BAY","WI","O-7",{"$f":"TRANSPOSE(AB8522)","v":1833}]
["STEVENS POINT","WI","E-1",{"$f":"TRANSPOSE(E8546:E8546)","v":840},840,840,840,840,897,1131,1164,1197,1269,1134,1176,1218,1287,1371,1170,1212,1299,924,1128,1215,1404,1539,1554,1569]
["STEVENS POINT","WI","E-2",{"$f":"TRANSPOSE(F8546:F8546)","v":840}]
["STEVENS POINT","WI","E-3",{"$f":"TRANSPOSE(G8546:G8546)","v":840}]
["STEVENS POINT","WI","E-4",{"$f":"TRANSPOSE(H8546:H8546)","v":840}]
["STEVENS POINT","WI","E-5",{"$f":"TRANSPOSE(I8546:I8546)","v":897}]
["STEVENS POINT","WI","E-6",{"$f":"TRANSPOSE(J8546:J8546)","v":1131}]
["STEVENS POINT","WI","E-7",{"$f":"TRANSPOSE(K8546:K8546)","v":1164}]
["STEVENS POINT","WI","E-8",{"$f":"TRANSPOSE(L8546)","v":1197}]
["STEVENS POINT","WI","E-9",{"$f":"TRANSPOSE(M8546)","v":1269}]
["STEVENS POINT","WI","W-1",{"$f":"TRANSPOSE(N8546)","v":1134}]
["STEVENS POINT","WI","W-2",{"$f":"TRANSPOSE(O8546)","v":1176}]
["STEVENS POINT","WI","W-3",{"$f":"TRANSPOSE(P8546)","v":1218}]
["STEVENS POINT","WI","W-4",{"$f":"TRANSPOSE(Q8546)","v":1287}]
["STEVENS POINT","WI","W-5",{"$f":"TRANSPOSE(R8546)","v":1371}]
["STEVENS POINT","WI","O-1E",{"$f":"TRANSPOSE(S8546)","v":1170}]
["STEVENS POINT","WI","O-2E",{"$f":"TRANSPOSE(T8546)","v":1212}]
["STEVENS POINT","WI","O-3E",{"$f":"TRANSPOSE(U8546)","v":1299}]
["STEVENS POINT","WI","O-1",{"$f":"TRANSPOSE(V8546)","v":924}]
["STEVENS POINT","WI","O-2",{"$f":"TRANSPOSE(W8546)","v":1128}]
["STEVENS POINT","WI","O-3",{"$f":"TRANSPOSE(X8546)","v":1215}]
["STEVENS POINT","WI","O-4",{"$f":"TRANSPOSE(Y8546)","v":1404}]
["STEVENS POINT","WI","O-5",{"$f":"TRANSPOSE(Z8546)","v":1539}]
["STEVENS POINT","WI","O-6",{"$f":"TRANSPOSE(AA8546)","v":1554}]
["STEVENS POINT","WI","O-7",{"$f":"TRANSPOSE(AB8546)","v":1569}]
["STURGEON BAY","WI","E-1",{"$f":"TRANSPOSE(E8570:E8570)","v":813},813,813,813,813,927,1056,1116,1179,1269,1056,1140,1221,1287,1365,1128,1209,1299,942,1053,1218,1395,1524,1539,1554]
["STURGEON BAY","WI","E-2",{"$f":"TRANSPOSE(F8570:F8570)","v":813}]
["STURGEON BAY","WI","E-3",{"$f":"TRANSPOSE(G8570:G8570)","v":813}]
["STURGEON BAY","WI","E-4",{"$f":"TRANSPOSE(H8570:H8570)","v":813}]
["STURGEON BAY","WI","E-5",{"$f":"TRANSPOSE(I8570:I8570)","v":927}]
["STURGEON BAY","WI","E-6",{"$f":"TRANSPOSE(J8570:J8570)","v":1056}]
["STURGEON BAY","WI","E-7",{"$f":"TRANSPOSE(K8570:K8570)","v":1116}]
["STURGEON BAY","WI","E-8",{"$f":"TRANSPOSE(L8570)","v":1179}]
["STURGEON BAY","WI","E-9",{"$f":"TRANSPOSE(M8570)","v":1269}]
["STURGEON BAY","WI","W-1",{"$f":"TRANSPOSE(N8570)","v":1056}]
["STURGEON BAY","WI","W-2",{"$f":"TRANSPOSE(O8570)","v":1140}]
["STURGEON BAY","WI","W-3",{"$f":"TRANSPOSE(P8570)","v":1221}]
["STURGEON BAY","WI","W-4",{"$f":"TRANSPOSE(Q8570)","v":1287}]
["STURGEON BAY","WI","W-5",{"$f":"TRANSPOSE(R8570)","v":1365}]
["STURGEON BAY","WI","O-1E",{"$f":"TRANSPOSE(S8570)","v":1128}]
["STURGEON BAY","WI","O-2E",{"$f":"TRANSPOSE(T8570)","v":1209}]
["STURGEON BAY","WI","O-3E",{"$f":"TRANSPOSE(U8570)","v":1299}]
["STURGEON BAY","WI","O-1",{"$f":"TRANSPOSE(V8570)","v":942}]
["STURGEON BAY","WI","O-2",{"$f":"TRANSPOSE(W8570)","v":1053}]
["STURGEON BAY","WI","O-3",{"$f":"TRANSPOSE(X8570)","v":1218}]
["STURGEON BAY","WI","O-4",{"$f":"TRANSPOSE(Y8570)","v":1395}]
["STURGEON BAY","WI","O-5",{"$f":"TRANSPOSE(Z8570)","v":1524}]
["STURGEON BAY","WI","O-6",{"$f":"TRANSPOSE(AA8570)","v":1539}]
["STURGEON BAY","WI","O-7",{"$f":"TRANSPOSE(AB8570)","v":1554}]
["EAU CLAIRE","WI","E-1",{"$f":"TRANSPOSE(E8594:E8594)","v":900},900,900,900,900,1023,1203,1212,1224,1269,1203,1218,1233,1281,1341,1215,1230,1290,1044,1197,1230,1365,1458,1473,1488]
["EAU CLAIRE","WI","E-2",{"$f":"TRANSPOSE(F8594:F8594)","v":900}]
["EAU CLAIRE","WI","E-3",{"$f":"TRANSPOSE(G8594:G8594)","v":900}]
["EAU CLAIRE","WI","E-4",{"$f":"TRANSPOSE(H8594:H8594)","v":900}]
["EAU CLAIRE","WI","E-5",{"$f":"TRANSPOSE(I8594:I8594)","v":1023}]
["EAU CLAIRE","WI","E-6",{"$f":"TRANSPOSE(J8594:J8594)","v":1203}]
["EAU CLAIRE","WI","E-7",{"$f":"TRANSPOSE(K8594:K8594)","v":1212}]
["EAU CLAIRE","WI","E-8",{"$f":"TRANSPOSE(L8594)","v":1224}]
["EAU CLAIRE","WI","E-9",{"$f":"TRANSPOSE(M8594)","v":1269}]
["EAU CLAIRE","WI","W-1",{"$f":"TRANSPOSE(N8594)","v":1203}]
["EAU CLAIRE","WI","W-2",{"$f":"TRANSPOSE(O8594)","v":1218}]
["EAU CLAIRE","WI","W-3",{"$f":"TRANSPOSE(P8594)","v":1233}]
["EAU CLAIRE","WI","W-4",{"$f":"TRANSPOSE(Q8594)","v":1281}]
["EAU CLAIRE","WI","W-5",{"$f":"TRANSPOSE(R8594)","v":1341}]
["EAU CLAIRE","WI","O-1E",{"$f":"TRANSPOSE(S8594)","v":1215}]
["EAU CLAIRE","WI","O-2E",{"$f":"TRANSPOSE(T8594)","v":1230}]
["EAU CLAIRE","WI","O-3E",{"$f":"TRANSPOSE(U8594)","v":1290}]
["EAU CLAIRE","WI","O-1",{"$f":"TRANSPOSE(V8594)","v":1044}]
["EAU CLAIRE","WI","O-2",{"$f":"TRANSPOSE(W8594)","v":1197}]
["EAU CLAIRE","WI","O-3",{"$f":"TRANSPOSE(X8594)","v":1230}]
["EAU CLAIRE","WI","O-4",{"$f":"TRANSPOSE(Y8594)","v":1365}]
["EAU CLAIRE","WI","O-5",{"$f":"TRANSPOSE(Z8594)","v":1458}]
["EAU CLAIRE","WI","O-6",{"$f":"TRANSPOSE(AA8594)","v":1473}]
["EAU CLAIRE","WI","O-7",{"$f":"TRANSPOSE(AB8594)","v":1488}]
["MORGANTOWN","WV","E-1",{"$f":"TRANSPOSE(E8618:E8618)","v":1023},1023,1023,1023,1023,1176,1404,1413,1422,1509,1404,1416,1428,1539,1668,1416,1428,1557,1200,1401,1428,1716,1923,1944,1962]
["MORGANTOWN","WV","E-2",{"$f":"TRANSPOSE(F8618:F8618)","v":1023}]
["MORGANTOWN","WV","E-3",{"$f":"TRANSPOSE(G8618:G8618)","v":1023}]
["MORGANTOWN","WV","E-4",{"$f":"TRANSPOSE(H8618:H8618)","v":1023}]
["MORGANTOWN","WV","E-5",{"$f":"TRANSPOSE(I8618:I8618)","v":1176}]
["MORGANTOWN","WV","E-6",{"$f":"TRANSPOSE(J8618:J8618)","v":1404}]
["MORGANTOWN","WV","E-7",{"$f":"TRANSPOSE(K8618:K8618)","v":1413}]
["MORGANTOWN","WV","E-8",{"$f":"TRANSPOSE(L8618)","v":1422}]
["MORGANTOWN","WV","E-9",{"$f":"TRANSPOSE(M8618)","v":1509}]
["MORGANTOWN","WV","W-1",{"$f":"TRANSPOSE(N8618)","v":1404}]
["MORGANTOWN","WV","W-2",{"$f":"TRANSPOSE(O8618)","v":1416}]
["MORGANTOWN","WV","W-3",{"$f":"TRANSPOSE(P8618)","v":1428}]
["MORGANTOWN","WV","W-4",{"$f":"TRANSPOSE(Q8618)","v":1539}]
["MORGANTOWN","WV","W-5",{"$f":"TRANSPOSE(R8618)","v":1668}]
["MORGANTOWN","WV","O-1E",{"$f":"TRANSPOSE(S8618)","v":1416}]
["MORGANTOWN","WV","O-2E",{"$f":"TRANSPOSE(T8618)","v":1428}]
["MORGANTOWN","WV","O-3E",{"$f":"TRANSPOSE(U8618)","v":1557}]
["MORGANTOWN","WV","O-1",{"$f":"TRANSPOSE(V8618)","v":1200}]
["MORGANTOWN","WV","O-2",{"$f":"TRANSPOSE(W8618)","v":1401}]
["MORGANTOWN","WV","O-3",{"$f":"TRANSPOSE(X8618)","v":1428}]
["MORGANTOWN","WV","O-4",{"$f":"TRANSPOSE(Y8618)","v":1716}]
["MORGANTOWN","WV","O-5",{"$f":"TRANSPOSE(Z8618)","v":1923}]
["MORGANTOWN","WV","O-6",{"$f":"TRANSPOSE(AA8618)","v":1944}]
["MORGANTOWN","WV","O-7",{"$f":"TRANSPOSE(AB8618)","v":1962}]
["HUNTINGTON","WV","E-1",{"$f":"TRANSPOSE(E8642:E8642)","v":912},912,912,912,912,948,1215,1251,1290,1344,1215,1269,1317,1353,1398,1260,1308,1362,978,1209,1314,1416,1488,1503,1518]
["HUNTINGTON","WV","E-2",{"$f":"TRANSPOSE(F8642:F8642)","v":912}]
["HUNTINGTON","WV","E-3",{"$f":"TRANSPOSE(G8642:G8642)","v":912}]
["HUNTINGTON","WV","E-4",{"$f":"TRANSPOSE(H8642:H8642)","v":912}]
["HUNTINGTON","WV","E-5",{"$f":"TRANSPOSE(I8642:I8642)","v":948}]
["HUNTINGTON","WV","E-6",{"$f":"TRANSPOSE(J8642:J8642)","v":1215}]
["HUNTINGTON","WV","E-7",{"$f":"TRANSPOSE(K8642:K8642)","v":1251}]
["HUNTINGTON","WV","E-8",{"$f":"TRANSPOSE(L8642)","v":1290}]
["HUNTINGTON","WV","E-9",{"$f":"TRANSPOSE(M8642)","v":1344}]
["HUNTINGTON","WV","W-1",{"$f":"TRANSPOSE(N8642)","v":1215}]
["HUNTINGTON","WV","W-2",{"$f":"TRANSPOSE(O8642)","v":1269}]
["HUNTINGTON","WV","W-3",{"$f":"TRANSPOSE(P8642)","v":1317}]
["HUNTINGTON","WV","W-4",{"$f":"TRANSPOSE(Q8642)","v":1353}]
["HUNTINGTON","WV","W-5",{"$f":"TRANSPOSE(R8642)","v":1398}]
["HUNTINGTON","WV","O-1E",{"$f":"TRANSPOSE(S8642)","v":1260}]
["HUNTINGTON","WV","O-2E",{"$f":"TRANSPOSE(T8642)","v":1308}]
["HUNTINGTON","WV","O-3E",{"$f":"TRANSPOSE(U8642)","v":1362}]
["HUNTINGTON","WV","O-1",{"$f":"TRANSPOSE(V8642)","v":978}]
["HUNTINGTON","WV","O-2",{"$f":"TRANSPOSE(W8642)","v":1209}]
["HUNTINGTON","WV","O-3",{"$f":"TRANSPOSE(X8642)","v":1314}]
["HUNTINGTON","WV","O-4",{"$f":"TRANSPOSE(Y8642)","v":1416}]
["HUNTINGTON","WV","O-5",{"$f":"TRANSPOSE(Z8642)","v":1488}]
["HUNTINGTON","WV","O-6",{"$f":"TRANSPOSE(AA8642)","v":1503}]
["HUNTINGTON","WV","O-7",{"$f":"TRANSPOSE(AB8642)","v":1518}]
["CHARLESTON","WV","E-1",{"$f":"TRANSPOSE(E8666:E8666)","v":837},837,837,837,837,885,1068,1116,1167,1248,1071,1137,1197,1266,1347,1125,1188,1278,906,1065,1194,1380,1509,1524,1539]
["CHARLESTON","WV","E-2",{"$f":"TRANSPOSE(F8666:F8666)","v":837}]
["CHARLESTON","WV","E-3",{"$f":"TRANSPOSE(G8666:G8666)","v":837}]
["CHARLESTON","WV","E-4",{"$f":"TRANSPOSE(H8666:H8666)","v":837}]
["CHARLESTON","WV","E-5",{"$f":"TRANSPOSE(I8666:I8666)","v":885}]
["CHARLESTON","WV","E-6",{"$f":"TRANSPOSE(J8666:J8666)","v":1068}]
["CHARLESTON","WV","E-7",{"$f":"TRANSPOSE(K8666:K8666)","v":1116}]
["CHARLESTON","WV","E-8",{"$f":"TRANSPOSE(L8666)","v":1167}]
["CHARLESTON","WV","E-9",{"$f":"TRANSPOSE(M8666)","v":1248}]
["CHARLESTON","WV","W-1",{"$f":"TRANSPOSE(N8666)","v":1071}]
["CHARLESTON","WV","W-2",{"$f":"TRANSPOSE(O8666)","v":1137}]
["CHARLESTON","WV","W-3",{"$f":"TRANSPOSE(P8666)","v":1197}]
["CHARLESTON","WV","W-4",{"$f":"TRANSPOSE(Q8666)","v":1266}]
["CHARLESTON","WV","W-5",{"$f":"TRANSPOSE(R8666)","v":1347}]
["CHARLESTON","WV","O-1E",{"$f":"TRANSPOSE(S8666)","v":1125}]
["CHARLESTON","WV","O-2E",{"$f":"TRANSPOSE(T8666)","v":1188}]
["CHARLESTON","WV","O-3E",{"$f":"TRANSPOSE(U8666)","v":1278}]
["CHARLESTON","WV","O-1",{"$f":"TRANSPOSE(V8666)","v":906}]
["CHARLESTON","WV","O-2",{"$f":"TRANSPOSE(W8666)","v":1065}]
["CHARLESTON","WV","O-3",{"$f":"TRANSPOSE(X8666)","v":1194}]
["CHARLESTON","WV","O-4",{"$f":"TRANSPOSE(Y8666)","v":1380}]
["CHARLESTON","WV","O-5",{"$f":"TRANSPOSE(Z8666)","v":1509}]
["CHARLESTON","WV","O-6",{"$f":"TRANSPOSE(AA8666)","v":1524}]
["CHARLESTON","WV","O-7",{"$f":"TRANSPOSE(AB8666)","v":1539}]
["BECKLEY","WV","E-1",{"$f":"TRANSPOSE(E8690:E8690)","v":801},801,801,801,801,864,993,1056,1128,1200,996,1086,1170,1212,1257,1071,1158,1218,879,990,1167,1275,1353,1365,1380]
["BECKLEY","WV","E-2",{"$f":"TRANSPOSE(F8690:F8690)","v":801}]
["BECKLEY","WV","E-3",{"$f":"TRANSPOSE(G8690:G8690)","v":801}]
["BECKLEY","WV","E-4",{"$f":"TRANSPOSE(H8690:H8690)","v":801}]
["BECKLEY","WV","E-5",{"$f":"TRANSPOSE(I8690:I8690)","v":864}]
["BECKLEY","WV","E-6",{"$f":"TRANSPOSE(J8690:J8690)","v":993}]
["BECKLEY","WV","E-7",{"$f":"TRANSPOSE(K8690:K8690)","v":1056}]
["BECKLEY","WV","E-8",{"$f":"TRANSPOSE(L8690)","v":1128}]
["BECKLEY","WV","E-9",{"$f":"TRANSPOSE(M8690)","v":1200}]
["BECKLEY","WV","W-1",{"$f":"TRANSPOSE(N8690)","v":996}]
["BECKLEY","WV","W-2",{"$f":"TRANSPOSE(O8690)","v":1086}]
["BECKLEY","WV","W-3",{"$f":"TRANSPOSE(P8690)","v":1170}]
["BECKLEY","WV","W-4",{"$f":"TRANSPOSE(Q8690)","v":1212}]
["BECKLEY","WV","W-5",{"$f":"TRANSPOSE(R8690)","v":1257}]
["BECKLEY","WV","O-1E",{"$f":"TRANSPOSE(S8690)","v":1071}]
["BECKLEY","WV","O-2E",{"$f":"TRANSPOSE(T8690)","v":1158}]
["BECKLEY","WV","O-3E",{"$f":"TRANSPOSE(U8690)","v":1218}]
["BECKLEY","WV","O-1",{"$f":"TRANSPOSE(V8690)","v":879}]
["BECKLEY","WV","O-2",{"$f":"TRANSPOSE(W8690)","v":990}]
["BECKLEY","WV","O-3",{"$f":"TRANSPOSE(X8690)","v":1167}]
["BECKLEY","WV","O-4",{"$f":"TRANSPOSE(Y8690)","v":1275}]
["BECKLEY","WV","O-5",{"$f":"TRANSPOSE(Z8690)","v":1353}]
["BECKLEY","WV","O-6",{"$f":"TRANSPOSE(AA8690)","v":1365}]
["BECKLEY","WV","O-7",{"$f":"TRANSPOSE(AB8690)","v":1380}]
["MARTINSBURG","WV","E-1",{"$f":"TRANSPOSE(E8714:E8714)","v":1104},1104,1104,1104,1104,1200,1347,1410,1482,1584,1350,1440,1524,1605,1704,1425,1512,1620,1218,1344,1521,1740,1896,1914,1932]
["MARTINSBURG","WV","E-2",{"$f":"TRANSPOSE(F8714:F8714)","v":1104}]
["MARTINSBURG","WV","E-3",{"$f":"TRANSPOSE(G8714:G8714)","v":1104}]
["MARTINSBURG","WV","E-4",{"$f":"TRANSPOSE(H8714:H8714)","v":1104}]
["MARTINSBURG","WV","E-5",{"$f":"TRANSPOSE(I8714:I8714)","v":1200}]
["MARTINSBURG","WV","E-6",{"$f":"TRANSPOSE(J8714:J8714)","v":1347}]
["MARTINSBURG","WV","E-7",{"$f":"TRANSPOSE(K8714:K8714)","v":1410}]
["MARTINSBURG","WV","E-8",{"$f":"TRANSPOSE(L8714)","v":1482}]
["MARTINSBURG","WV","E-9",{"$f":"TRANSPOSE(M8714)","v":1584}]
["MARTINSBURG","WV","W-1",{"$f":"TRANSPOSE(N8714)","v":1350}]
["MARTINSBURG","WV","W-2",{"$f":"TRANSPOSE(O8714)","v":1440}]
["MARTINSBURG","WV","W-3",{"$f":"TRANSPOSE(P8714)","v":1524}]
["MARTINSBURG","WV","W-4",{"$f":"TRANSPOSE(Q8714)","v":1605}]
["MARTINSBURG","WV","W-5",{"$f":"TRANSPOSE(R8714)","v":1704}]
["MARTINSBURG","WV","O-1E",{"$f":"TRANSPOSE(S8714)","v":1425}]
["MARTINSBURG","WV","O-2E",{"$f":"TRANSPOSE(T8714)","v":1512}]
["MARTINSBURG","WV","O-3E",{"$f":"TRANSPOSE(U8714)","v":1620}]
["MARTINSBURG","WV","O-1",{"$f":"TRANSPOSE(V8714)","v":1218}]
["MARTINSBURG","WV","O-2",{"$f":"TRANSPOSE(W8714)","v":1344}]
["MARTINSBURG","WV","O-3",{"$f":"TRANSPOSE(X8714)","v":1521}]
["MARTINSBURG","WV","O-4",{"$f":"TRANSPOSE(Y8714)","v":1740}]
["MARTINSBURG","WV","O-5",{"$f":"TRANSPOSE(Z8714)","v":1896}]
["MARTINSBURG","WV","O-6",{"$f":"TRANSPOSE(AA8714)","v":1914}]
["MARTINSBURG","WV","O-7",{"$f":"TRANSPOSE(AB8714)","v":1932}]
["CLARKSBURG","WV","E-1",{"$f":"TRANSPOSE(E8738:E8738)","v":867},867,867,867,867,936,1197,1230,1266,1350,1197,1245,1287,1374,1476,1236,1281,1389,966,1191,1287,1515,1680,1695,1713]
["CLARKSBURG","WV","E-2",{"$f":"TRANSPOSE(F8738:F8738)","v":867}]
["CLARKSBURG","WV","E-3",{"$f":"TRANSPOSE(G8738:G8738)","v":867}]
["CLARKSBURG","WV","E-4",{"$f":"TRANSPOSE(H8738:H8738)","v":867}]
["CLARKSBURG","WV","E-5",{"$f":"TRANSPOSE(I8738:I8738)","v":936}]
["CLARKSBURG","WV","E-6",{"$f":"TRANSPOSE(J8738:J8738)","v":1197}]
["CLARKSBURG","WV","E-7",{"$f":"TRANSPOSE(K8738:K8738)","v":1230}]
["CLARKSBURG","WV","E-8",{"$f":"TRANSPOSE(L8738)","v":1266}]
["CLARKSBURG","WV","E-9",{"$f":"TRANSPOSE(M8738)","v":1350}]
["CLARKSBURG","WV","W-1",{"$f":"TRANSPOSE(N8738)","v":1197}]
["CLARKSBURG","WV","W-2",{"$f":"TRANSPOSE(O8738)","v":1245}]
["CLARKSBURG","WV","W-3",{"$f":"TRANSPOSE(P8738)","v":1287}]
["CLARKSBURG","WV","W-4",{"$f":"TRANSPOSE(Q8738)","v":1374}]
["CLARKSBURG","WV","W-5",{"$f":"TRANSPOSE(R8738)","v":1476}]
["CLARKSBURG","WV","O-1E",{"$f":"TRANSPOSE(S8738)","v":1236}]
["CLARKSBURG","WV","O-2E",{"$f":"TRANSPOSE(T8738)","v":1281}]
["CLARKSBURG","WV","O-3E",{"$f":"TRANSPOSE(U8738)","v":1389}]
["CLARKSBURG","WV","O-1",{"$f":"TRANSPOSE(V8738)","v":966}]
["CLARKSBURG","WV","O-2",{"$f":"TRANSPOSE(W8738)","v":1191}]
["CLARKSBURG","WV","O-3",{"$f":"TRANSPOSE(X8738)","v":1287}]
["CLARKSBURG","WV","O-4",{"$f":"TRANSPOSE(Y8738)","v":1515}]
["CLARKSBURG","WV","O-5",{"$f":"TRANSPOSE(Z8738)","v":1680}]
["CLARKSBURG","WV","O-6",{"$f":"TRANSPOSE(AA8738)","v":1695}]
["CLARKSBURG","WV","O-7",{"$f":"TRANSPOSE(AB8738)","v":1713}]
["PARKERSBURG","WV","E-1",{"$f":"TRANSPOSE(E8762:E8762)","v":807},807,807,807,807,882,981,1014,1047,1113,984,1029,1071,1131,1203,1020,1065,1143,891,981,1068,1230,1347,1362,1374]
["PARKERSBURG","WV","E-2",{"$f":"TRANSPOSE(F8762:F8762)","v":807}]
["PARKERSBURG","WV","E-3",{"$f":"TRANSPOSE(G8762:G8762)","v":807}]
["PARKERSBURG","WV","E-4",{"$f":"TRANSPOSE(H8762:H8762)","v":807}]
["PARKERSBURG","WV","E-5",{"$f":"TRANSPOSE(I8762:I8762)","v":882}]
["PARKERSBURG","WV","E-6",{"$f":"TRANSPOSE(J8762:J8762)","v":981}]
["PARKERSBURG","WV","E-7",{"$f":"TRANSPOSE(K8762:K8762)","v":1014}]
["PARKERSBURG","WV","E-8",{"$f":"TRANSPOSE(L8762)","v":1047}]
["PARKERSBURG","WV","E-9",{"$f":"TRANSPOSE(M8762)","v":1113}]
["PARKERSBURG","WV","W-1",{"$f":"TRANSPOSE(N8762)","v":984}]
["PARKERSBURG","WV","W-2",{"$f":"TRANSPOSE(O8762)","v":1029}]
["PARKERSBURG","WV","W-3",{"$f":"TRANSPOSE(P8762)","v":1071}]
["PARKERSBURG","WV","W-4",{"$f":"TRANSPOSE(Q8762)","v":1131}]
["PARKERSBURG","WV","W-5",{"$f":"TRANSPOSE(R8762)","v":1203}]
["PARKERSBURG","WV","O-1E",{"$f":"TRANSPOSE(S8762)","v":1020}]
["PARKERSBURG","WV","O-2E",{"$f":"TRANSPOSE(T8762)","v":1065}]
["PARKERSBURG","WV","O-3E",{"$f":"TRANSPOSE(U8762)","v":1143}]
["PARKERSBURG","WV","O-1",{"$f":"TRANSPOSE(V8762)","v":891}]
["PARKERSBURG","WV","O-2",{"$f":"TRANSPOSE(W8762)","v":981}]
["PARKERSBURG","WV","O-3",{"$f":"TRANSPOSE(X8762)","v":1068}]
["PARKERSBURG","WV","O-4",{"$f":"TRANSPOSE(Y8762)","v":1230}]
["PARKERSBURG","WV","O-5",{"$f":"TRANSPOSE(Z8762)","v":1347}]
["PARKERSBURG","WV","O-6",{"$f":"TRANSPOSE(AA8762)","v":1362}]
["PARKERSBURG","WV","O-7",{"$f":"TRANSPOSE(AB8762)","v":1374}]
["CHEYENNE","WY","E-1",{"$f":"TRANSPOSE(E8786:E8786)","v":855},855,855,855,855,960,1329,1377,1431,1497,1329,1401,1464,1509,1563,1389,1455,1518,999,1323,1461,1584,1671,1689,1704]
["CHEYENNE","WY","E-2",{"$f":"TRANSPOSE(F8786:F8786)","v":855}]
["CHEYENNE","WY","E-3",{"$f":"TRANSPOSE(G8786:G8786)","v":855}]
["CHEYENNE","WY","E-4",{"$f":"TRANSPOSE(H8786:H8786)","v":855}]
["CHEYENNE","WY","E-5",{"$f":"TRANSPOSE(I8786:I8786)","v":960}]
["CHEYENNE","WY","E-6",{"$f":"TRANSPOSE(J8786:J8786)","v":1329}]
["CHEYENNE","WY","E-7",{"$f":"TRANSPOSE(K8786:K8786)","v":1377}]
["CHEYENNE","WY","E-8",{"$f":"TRANSPOSE(L8786)","v":1431}]
["CHEYENNE","WY","E-9",{"$f":"TRANSPOSE(M8786)","v":1497}]
["CHEYENNE","WY","W-1",{"$f":"TRANSPOSE(N8786)","v":1329}]
["CHEYENNE","WY","W-2",{"$f":"TRANSPOSE(O8786)","v":1401}]
["CHEYENNE","WY","W-3",{"$f":"TRANSPOSE(P8786)","v":1464}]
["CHEYENNE","WY","W-4",{"$f":"TRANSPOSE(Q8786)","v":1509}]
["CHEYENNE","WY","W-5",{"$f":"TRANSPOSE(R8786)","v":1563}]
["CHEYENNE","WY","O-1E",{"$f":"TRANSPOSE(S8786)","v":1389}]
["CHEYENNE","WY","O-2E",{"$f":"TRANSPOSE(T8786)","v":1455}]
["CHEYENNE","WY","O-3E",{"$f":"TRANSPOSE(U8786)","v":1518}]
["CHEYENNE","WY","O-1",{"$f":"TRANSPOSE(V8786)","v":999}]
["CHEYENNE","WY","O-2",{"$f":"TRANSPOSE(W8786)","v":1323}]
["CHEYENNE","WY","O-3",{"$f":"TRANSPOSE(X8786)","v":1461}]
["CHEYENNE","WY","O-4",{"$f":"TRANSPOSE(Y8786)","v":1584}]
["CHEYENNE","WY","O-5",{"$f":"TRANSPOSE(Z8786)","v":1671}]
["CHEYENNE","WY","O-6",{"$f":"TRANSPOSE(AA8786)","v":1689}]
["CHEYENNE","WY","O-7",{"$f":"TRANSPOSE(AB8786)","v":1704}]

{"sheet":"SDP","index":7,"n_rows":18,"n_cols":6,"rows_kept":18,"hidden":true,"merged":[[0,0,0,3],[3,2,5,2],[3,3,5,3],[6,2,8,2],[6,3,8,3],[9,2,11,2],[9,3,11,3],[12,2,14,2],[12,3,14,3],[15,2,16,2],[15,3,16,3],[17,0,17,1]]}
["SDP Calculation:"]
[]
["Month","Balance","QTR","Interest Earned"]
[1,{"$f":"IF(Calculator!B88=0,SDP!E4,MIN(7611.3,Calculator!B116))","v":{"$error":"#N/A"}},1,{"$f":"IF(B4>0,AVERAGE(B4:B6)*((0.025/3)*COUNT(B4:B6)),0)","v":{"$error":"#N/A"}},{"$f":"SUM(Calculator!E68:E70)+SUM(Calculator!E76:E78)-SUM(Calculator!B26:B27,Calculator!B92:B94)","v":0}]
[2,{"$f":"IF(F5>Calculator!B116,Calculator!B116,SDP!F5)","v":{"$error":"#N/A"}},null,null,{"$f":"SUM(Calculator!E68:E72)+SUM(Calculator!E74:E78)+(SUM(Calculator!E71,Calculator!E74:E75,Calculator!B26:B27)/2)-SUM(Calculator!B89:B90,Calculator!B92:B94)","v":{"v":337.5,"d":"337.50"}},{"$f":"IF(Calculator!B88=0,Calculator!B116-SUM(Calculator!B116-SUM(SDP!B4,SDP!E5)),Calculator!B116)","v":{"$error":"#N/A"}}]
[3,{"$f":"Calculator!B116","v":{"v":0,"d":"$0.00"}}]
[4,{"$f":"IF(Calculator!B119>=SDP!A7,SDP!B6,0)","v":{"v":0,"d":"$0.00"}},2,{"$f":"IF(B7>0,(AVERAGE(B7:B9)+D4)*((0.025/3)*COUNT(B7:B9)),0)","v":{"v":0,"d":"$0.00"}}]
[5,{"$f":"IF(Calculator!B119>=SDP!A8,SDP!B7,0)","v":{"v":0,"d":"$0.00"}}]
[6,{"$f":"IF(Calculator!B119>=SDP!A9,SDP!B8,0)","v":{"v":0,"d":"$0.00"}}]
[7,{"$f":"IF(Calculator!B119>=SDP!A10,SDP!B9,0)","v":{"v":0,"d":"$0.00"}},3,{"$f":"IF(B10>0,(AVERAGE(B10:B12)+D7+D4)*((0.025/3)*COUNT(B10:B12)),0)","v":{"v":0,"d":"$0.00"}}]
[8,{"$f":"IF(Calculator!B119>=SDP!A11,SDP!B10,0)","v":{"v":0,"d":"$0.00"}}]
[9,{"$f":"IF(Calculator!B119>=SDP!A12,SDP!B11,0)","v":{"v":0,"d":"$0.00"}}]
[10,{"$f":"IF(Calculator!B119>=SDP!A13,SDP!B12,0)","v":{"v":0,"d":"$0.00"}},4,{"$f":"IF(B13>0,((AVERAGE(B13:B15)+SUM(D4:D12))*((0.025/3)*COUNT(B13:B15))),0)","v":{"v":0,"d":"$0.00"}}]
[11,{"$f":"IF(Calculator!B119>=SDP!A14,SDP!B13,0)","v":{"v":0,"d":"$0.00"}}]
[12,{"$f":"IF(Calculator!B119>=SDP!A15,SDP!B14,0)","v":{"v":0,"d":"$0.00"}}]
[13,{"$f":"IF(Calculator!B119>=SDP!A16,SDP!B15,0)","v":{"v":0,"d":"$0.00"}},5,{"$f":"IF(B16>0,((AVERAGE(B16:B17)+SUM(D4:D15))*((0.025/3)*COUNT(B16:B17))),0)","v":{"v":0,"d":"$0.00"}}]
[14,{"$f":"IF(Calculator!B119>=SDP!A17,SDP!B16,0)","v":{"v":0,"d":"$0.00"}}]
["Total Interest",null,null,{"$f":"SUM(D4:D17)","v":{"$error":"#N/A"}}]

{"sheet":"Name Ranges","index":8,"n_rows":8809,"n_cols":22,"rows_kept":8809,"hidden":true,"merged":[[0,20,0,21],[1,14,6,14],[7,14,14,14],[170,14,182,14],[183,14,186,14]]}
["Rank","Promote Rank","BAH Rank","Promote BAH Rank",null,"Enlisted","AK",1,null,"Base Pay",null,"Longevity Pay",{"$nulls":3},"Cities","BAH - No Dep","No Dep","BAH - Dep","Dep","BAS"]
["E-1","E-2","E-1","E-2","Yes","Officer","AL",1,"Afghanistan","O-102 or less",0,null,"2 or Less","Over 2","AK","ANCHORAGE","KETCHIKANAKE-1",1191,"KETCHIKANAKE-1",1587,"E-1",323.87]
["E-2","E-3","E-2","E-3","No",null,"AR",1,"Cuba - Guantanamo Bay, Joint Task Force","O-92 or less",0,null,"Over 2","Over 3",null,"FAIRBANKS","KETCHIKANAKE-2",1191,"KETCHIKANAKE-2",1587,"E-2",323.87]
["E-3","E-4","E-3","E-4",null,null,"AZ",1,"Djibouti","O-82 or less",{"v":9399,"d":"$9,399.00"},null,"Over 3","Over 4",null,"JUNEAU","KETCHIKANAKE-3",1191,"KETCHIKANAKE-3",1587,"E-3",323.87]
["E-4","E-5","E-4","E-5",null,null,"CA",1,"Haiti","O-72 or less",{"v":7809.9,"d":"$7,809.90"},null,"Over 4","Over 6",null,"KETCHIKAN","KETCHIKANAKE-4",1191,"KETCHIKANAKE-4",1587,"E-4",323.87]
["E-5","E-6","E-5","E-6",null,null,"CO",1,"Iraq","O-62 or less",{"v":5788.5,"d":"$5,788.50"},null,"Over 6","Over 8",null,"KODIAK ISLAND","KETCHIKANAKE-5",1434,"KETCHIKANAKE-5",1911,"E-5",323.87]
["E-6","E-7","E-6","E-7",null,null,"CT",1,"Kuwait","O-52 or less",{"v":4825.5,"d":"$4,825.50"},null,"Over 8","Over 10",null,"SITKA","KETCHIKANAKE-6",1434,"KETCHIKANAKE-6",1911,"E-6",323.87]
["E-7","E-8","E-7","E-8",null,null,"DC",1,"Kyrgyzstan","O-42 or less",{"v":4163.7,"d":"$4,163.70"},null,"Over 10","Over 12","AL","ANNISTON/FORT MCCLELLAN","KETCHIKANAKE-7",1551,"KETCHIKANAKE-7",2067,"E-7",323.87]
["E-8","E-9","E-8","E-9",null,null,"DE",1,"Pakistan","O-32 or less",{"v":3660.6,"d":"$3,660.60"},null,"Over 12","Over 14",null,"AUBURN","KETCHIKANAKE-8",1677,"KETCHIKANAKE-8",2235,"E-8",323.87]
["E-9","E-9","E-9","E-9",null,null,"FL",1,"Qatar - Al Udeid AB","O-22 or less",{"v":3162.9,"d":"$3,162.90"},null,"Over 14","Over 16",null,"BIRMINGHAM","KETCHIKANAKE-9",1794,"KETCHIKANAKE-9",2394,"E-9",323.87]
["W-1","W-2","W-1","W-2",null,null,"GA",1,"Qatar - Other","O-12 or less",{"v":2745.6,"d":"$2,745.60"},null,"Over 16","Over 18",null,"FORT RUCKER","KETCHIKANAKW-1",1437,"KETCHIKANAKW-1",1914,"W-1",223.04]
["W-2","W-3","W-2","W-3",null,null,"HI",1,"United Arab Emirates - Dubai","O-3E2 or less",0,null,"Over 18","Over 20",null,"HUNTSVILLE","KETCHIKANAKW-2",1650,"KETCHIKANAKW-2",2136,"W-2",223.04]
["W-3","W-4","W-3","W-4",null,null,"IA",1,"United Arab Emirates - Other","O-2E2 or less",0,null,"Over 20","Over 22",null,"MOBILE","KETCHIKANAKW-3",1761,"KETCHIKANAKW-3",2343,"W-3",223.04]
["W-4","W-5","W-4","W-5",null,null,"ID",1,null,"O-1E2 or less",0,null,"Over 22","Over 24",null,"MONTGOMERY","KETCHIKANAKW-4",1950,"KETCHIKANAKW-4",2412,"W-4",223.04]
["W-5","W-5","W-5","W-5",null,null,"IL",1,null,"W-52 or less",0,null,"Over 24","Over 26",null,"TUSCALOOSA","KETCHIKANAKW-5",2106,"KETCHIKANAKW-5",2493,"W-5",223.04]
["O-1","O-2","O-1","O-2",null,null,"IN",1,null,"W-42 or less",{"v":3783,"d":"$3,783.00"},null,"Over 26","Over 28","AR","FAYETTEVILLE","KETCHIKANAKO-1E",1587,"KETCHIKANAKO-1E",2100,"O-1",223.04]
["O-1E","O-2E","O-1E","O-2E",null,null,"KS",2,null,"W-32 or less",{"v":3454.5,"d":"$3,454.50"},null,"Over 28","Over 30","AR","FORT CHAFFEE/FORT SMITH","KETCHIKANAKO-2E",1734,"KETCHIKANAKO-2E",2313,"O-1E",223.04]
["O-2","O-3","O-2","O-3",null,null,"KY",2,null,"W-22 or less",{"v":3057,"d":"$3,057.00"},null,"Over 30","Over 32","AR","JONESBORO","KETCHIKANAKO-3E",1911,"KETCHIKANAKO-3E",2424,"O-2",223.04]
["O-2E","O-3E","O-2E","O-3E",null,null,"LA",2,null,"W-12 or less",{"v":2683.5,"d":"$2,683.50"},null,"Over 32","Over 34","AR","LITTLE ROCK","KETCHIKANAKO-1",1434,"KETCHIKANAKO-1",1911,"O-2E",223.04]
["O-3","O-4","O-3","O-4",null,null,"MA",2,null,"E-92 or less",0,null,"Over 34","Over 36","AR","PINE BLUFF","KETCHIKANAKO-2",1548,"KETCHIKANAKO-2",1911,"O-3",223.04]
["O-3E","O-4","O-3E","O-4",null,null,"MD",2,null,"E-82 or less",0,null,"Over 36","Over 38",null,"DAVIS-MONTHAN AFB","KETCHIKANAKO-3",1794,"KETCHIKANAKO-3",2334,"O-3E",223.04]
["O-4","O-5","O-4","O-5",null,null,"ME",2,null,"E-72 or less",{"v":2601,"d":"$2,601.00"},null,"Over 38","Over 40",null,"FORT HUACHUCA","KETCHIKANAKO-4",2085,"KETCHIKANAKO-4",2523,"O-4",223.04]
["O-5","O-6","O-5","O-6",null,null,"MI",2,null,"E-62 or less",{"v":2249.7,"d":"$2,249.70"},null,"Over 40","Over 40",null,"PHOENIX","KETCHIKANAKO-5",2184,"KETCHIKANAKO-5",2655,"O-5",223.04]
["O-6","O-7","O-6","O-7",null,null,"MN",2,null,"E-52 or less",{"v":2061.3,"d":"$2,061.30"},{"$nulls":4},"YUMA","KETCHIKANAKO-6",2343,"KETCHIKANAKO-6",2682,"O-6",223.04]
["O-7","O-8","O-7","O-7",null,null,"MO",2,null,"E-42 or less",{"v":1889.7,"d":"$1,889.70"},{"$nulls":4},"BAKERSFIELD","KETCHIKANAKO-7",2391,"KETCHIKANAKO-7",2706,"O-7",223.04]
["O-8","O-9","O-7","O-7",null,null,"MS",2,null,"E-32 or less",{"v":1705.8,"d":"$1,705.80"},{"$nulls":4},"BARSTOW/FORT IRWIN","SITKAAKE-1",1350,"SITKAAKE-1",1797,"O-8",223.04]
["O-9","O-10","O-7","O-7",null,null,"MT",2,null,"E-22 or less",{"v":1622.1,"d":"$1,622.10"},{"$nulls":4},"BEALE AFB","SITKAAKE-2",1350,"SITKAAKE-2",1797,"O-9",223.04]
["O-10","O-10","O-7","O-7",null,null,"NC",2,null,"E-12 or less",{"v":1447.2,"d":"$1,447.20"},{"$nulls":4},"BRIDGEPORT","SITKAAKE-3",1350,"SITKAAKE-3",1797,"O-10",223.04]
[{"$nulls":6},"ND",2,null,"O-10Over 2",0,{"$nulls":4},"CAMP PENDLETON","SITKAAKE-4",1350,"SITKAAKE-4",1797]
[{"$nulls":6},"NE",2,null,"O-9Over 2",0,{"$nulls":4},"CHINA LAKE NAVWEPCEN","SITKAAKE-5",1530,"SITKAAKE-5",2040]
[{"$nulls":6},"NH",2,null,"O-8Over 2",{"v":9706.8,"d":"$9,706.80"},{"$nulls":4},"EDWARDS AFB/PALMDALE","SITKAAKE-6",1536,"SITKAAKE-6",2040]
[{"$nulls":6},"NJ",2,null,"O-7Over 2",{"v":8172.9,"d":"$8,172.90"},{"$nulls":4},"EL CENTRO","SITKAAKE-7",1665,"SITKAAKE-7",2145]
[{"$nulls":6},"NM",3,null,"O-6Over 2",{"v":6359.4,"d":"$6,359.40"},{"$nulls":4},"FORT BRAGG","SITKAAKE-8",1845,"SITKAAKE-8",2259]
[{"$nulls":6},"NV",3,null,"O-5Over 2",{"v":5436,"d":"$5,436.00"},{"$nulls":4},"FRESNO","SITKAAKE-9",1920,"SITKAAKE-9",2385]
[{"$nulls":6},"NY",3,null,"O-4Over 2",{"v":4819.8,"d":"$4,819.80"},{"$nulls":4},"HUMBOLDT COUNTY","SITKAAKW-1",1602,"SITKAAKW-1",2043]
[{"$nulls":6},"OH",3,null,"O-3Over 2",{"v":4149.9,"d":"$4,149.90"},{"$nulls":4},"LEMORE NAS","SITKAAKW-2",1845,"SITKAAKW-2",2193]
[{"$nulls":6},"OK",3,null,"O-2Over 2",{"v":3602.4,"d":"$3,602.40"},{"$nulls":4},"LOS ANGELES","SITKAAKW-3",1929,"SITKAAKW-3",2334]
[{"$nulls":6},"OR",3,null,"O-1Over 2",{"v":2857.5,"d":"$2,857.50"},{"$nulls":4},"MARIN/SONOMA","SITKAAKW-4",2067,"SITKAAKW-4",2403]
[{"$nulls":6},"PA",3,null,"O-3EOver 2",0,{"$nulls":4},"MONTEREY","SITKAAKW-5",2172,"SITKAAKW-5",2487]
[{"$nulls":6},"RI",3,null,"O-2EOver 2",0,{"$nulls":4},"OAKLAND","SITKAAKO-1E",1797,"SITKAAKO-1E",2169]
[{"$nulls":6},"SC",3,null,"O-1EOver 2",0,{"$nulls":4},"RIVERSIDE","SITKAAKO-2E",1905,"SITKAAKO-2E",2313]
[{"$nulls":6},"SD",3,null,"W-5Over 2",0,{"$nulls":4},"SACRAMENTO","SITKAAKO-3E",2040,"SITKAAKO-3E",2418]
[{"$nulls":6},"TN",3,null,"W-4Over 2",{"v":4069.5,"d":"$4,069.50"},{"$nulls":4},"SAN BERNARDINO","SITKAAKO-1",1530,"SITKAAKO-1",2040]
[{"$nulls":6},"TX",3,null,"W-3Over 2",{"v":3598.5,"d":"$3,598.50"},{"$nulls":4},"SAN DIEGO","SITKAAKO-2",1749,"SITKAAKO-2",2040]
[{"$nulls":6},"UT",3,null,"W-2Over 2",{"v":3346.2,"d":"$3,346.20"},{"$nulls":4},"SAN FRANCISCO","SITKAAKO-3",1953,"SITKAAKO-3",2328]
[{"$nulls":6},"VA",3,null,"W-1Over 2",{"v":2971.8,"d":"$2,971.80"},{"$nulls":4},"SAN LUIS OBISPO","SITKAAKO-4",2157,"SITKAAKO-4",2520]
[{"$nulls":6},"VT",3,null,"E-9Over 2",0,{"$nulls":4},"SANTA CLARA COUNTY","SITKAAKO-5",2226,"SITKAAKO-5",2655]
[{"$nulls":6},"WA",3,null,"E-8Over 2",0,{"$nulls":4},"STOCKTON","SITKAAKO-6",2334,"SITKAAKO-6",2682]
[{"$nulls":6},"WI",4,null,"E-7Over 2",{"v":2838.9,"d":"$2,838.90"},{"$nulls":4},"TWENTY NINE PALMS MCB","SITKAAKO-7",2382,"SITKAAKO-7",2706]
[{"$nulls":6},"WV",4,null,"E-6Over 2",{"v":2475.3,"d":"$2,475.30"},{"$nulls":4},"VALLEJO/TRAVIS AFB","JUNEAUAKE-1",1365,"JUNEAUAKE-1",1818]
[{"$nulls":6},"WY",4,null,"E-5Over 2",{"v":2199.3,"d":"$2,199.30"},{"$nulls":4},"VANDENBERG AFB","JUNEAUAKE-2",1365,"JUNEAUAKE-2",1818]
[{"$nulls":9},"E-4Over 2",{"v":1986.3,"d":"$1,986.30"},{"$nulls":4},"VENTURA","JUNEAUAKE-3",1365,"JUNEAUAKE-3",1818]
["HDP Formula:  =IF(B13=0,0,IF(B13=\"Afghanistan\",100,IF(B13=\"Cuba - Guantanamo Bay\",100,IF(B13=\"Iraq\",100,IF(B13=\"Cuba - Guantanamo Bay, Joint Task Force\",150,IF(B13=\"Cuba - Havana\",150,IF(B13=\"Cuba - Other\",50,IF(B13=\"Djibouti\",100,IF(B13=\"Haiti\",100,IF(B13=\"Kuwait\",100,IF(B13=\"Kyrgyzstan\",100,IF(B13=\"Pakistan\",100,IF(B13=\"Qatar - Al Udeid AB\",50,IF(B13=\"Qatar - Other\",0,IF(B13=\"United Arab Emirates - Dubai\",0,IF(B13=\"United Arab Emirates - Other\",100))))))))))))))))",{"$nulls":8},"E-3Over 2",{"v":1813.2,"d":"$1,813.20"},{"$nulls":4},"BOULDER","JUNEAUAKE-4",1365,"JUNEAUAKE-4",1818]
[{"$nulls":9},"E-2Over 2",{"v":1622.1,"d":"$1,622.10"},{"$nulls":4},"COLORADO SPRINGS","JUNEAUAKE-5",1593,"JUNEAUAKE-5",2124]
[{"$nulls":9},"E-1Over 2",0,{"$nulls":4},"DENVER","JUNEAUAKE-6",1593,"JUNEAUAKE-6",2124]
[{"$nulls":9},"O-10Over 3",0,{"$nulls":4},"FORT COLLINS","JUNEAUAKE-7",1641,"JUNEAUAKE-7",2187]
[{"$nulls":9},"O-9Over 3",0,{"$nulls":4},"HARTFORD","JUNEAUAKE-8",1878,"JUNEAUAKE-8",2259]
[{"$nulls":9},"O-8Over 3",{"v":9911.1,"d":"$9,911.10"},{"$nulls":4},"NEW HAVEN/FAIRFIELD","JUNEAUAKE-9",1974,"JUNEAUAKE-9",2364]
[{"$nulls":9},"O-7Over 3",{"v":8340.6,"d":"$8,340.60"},{"$nulls":4},"NEW LONDON","JUNEAUAKW-1",1593,"JUNEAUAKW-1",2127]
[{"$nulls":9},"O-6Over 3",{"v":6776.7,"d":"$6,776.70"},{"$nulls":4},"WASHINGTON","JUNEAUAKW-2",1875,"JUNEAUAKW-2",2217]
[{"$nulls":9},"O-5Over 3",{"v":5812.5,"d":"$5,812.50"},{"$nulls":4},"DOVER AFB","JUNEAUAKW-3",1983,"JUNEAUAKW-3",2304]
[{"$nulls":9},"O-4Over 3",{"v":5141.4,"d":"$5,141.40"},{"$nulls":4},"REHOBOTH BEACH","JUNEAUAKW-4",2139,"JUNEAUAKW-4",2385]
[{"$nulls":9},"O-3Over 3",{"v":4479.3,"d":"$4,479.30"},{"$nulls":4},"EGLIN AFB","JUNEAUAKW-5",2205,"JUNEAUAKW-5",2484]
[{"$nulls":9},"O-2Over 3",{"v":4149,"d":"$4,149.00"},{"$nulls":4},"FORT PIERCE","JUNEAUAKO-1E",1818,"JUNEAUAKO-1E",2202]
[{"$nulls":9},"O-1Over 3",{"v":3454.2,"d":"$3,454.20"},{"$nulls":4},"FT MYERS BCH","JUNEAUAKO-2E",1953,"JUNEAUAKO-2E",2289]
[{"$nulls":9},"O-3EOver 3",0,{"$nulls":4},"GAINESVILLE","JUNEAUAKO-3E",2124,"JUNEAUAKO-3E",2400]
[{"$nulls":9},"O-2EOver 3",0,{"$nulls":4},"JACKSONVILLE","JUNEAUAKO-1",1593,"JUNEAUAKO-1",2124]
[{"$nulls":9},"O-1EOver 3",0,{"$nulls":4},"KEY WEST","JUNEAUAKO-2",1743,"JUNEAUAKO-2",2124]
[{"$nulls":9},"W-5Over 3",0,{"$nulls":4},"MIAMI/FORT LAUDERDALE","JUNEAUAKO-3",2013,"JUNEAUAKO-3",2298]
[{"$nulls":9},"W-4Over 3",{"v":4186.5,"d":"$4,186.50"},{"$nulls":4},"OCALA","JUNEAUAKO-4",2196,"JUNEAUAKO-4",2523]
[{"$nulls":9},"W-3Over 3",{"v":3746.1,"d":"$3,746.10"},{"$nulls":4},"ORLANDO","JUNEAUAKO-5",2238,"JUNEAUAKO-5",2679]
[{"$nulls":9},"W-2Over 3",{"v":3435.3,"d":"$3,435.30"},{"$nulls":4},"PANAMA CITY","JUNEAUAKO-6",2304,"JUNEAUAKO-6",2706]
[{"$nulls":9},"W-1Over 3",{"v":3049.8,"d":"$3,049.80"},{"$nulls":4},"PATRICK AFB","JUNEAUAKO-7",2349,"JUNEAUAKO-7",2733]
[{"$nulls":9},"E-9Over 3",0,{"$nulls":4},"PENSACOLA","KODIAK ISLANDAKE-1",1206,"KODIAK ISLANDAKE-1",1605]
[{"$nulls":9},"E-8Over 3",0,{"$nulls":4},"POLK COUNTY","KODIAK ISLANDAKE-2",1206,"KODIAK ISLANDAKE-2",1605]
[{"$nulls":9},"E-7Over 3",{"v":2947.5,"d":"$2,947.50"},{"$nulls":4},"TALLAHASSEE","KODIAK ISLANDAKE-3",1206,"KODIAK ISLANDAKE-3",1605]
[{"$nulls":9},"E-6Over 3",{"v":2584.5,"d":"$2,584.50"},{"$nulls":4},"TAMPA","KODIAK ISLANDAKE-4",1206,"KODIAK ISLANDAKE-4",1605]
[{"$nulls":9},"E-5Over 3",{"v":2305.5,"d":"$2,305.50"},{"$nulls":4},"VOLUSIA COUNTY","KODIAK ISLANDAKE-5",1419,"KODIAK ISLANDAKE-5",1890]
[{"$nulls":9},"E-4Over 3",{"v":2094,"d":"$2,094.00"},{"$nulls":4},"WEST PALM BEACH","KODIAK ISLANDAKE-6",1428,"KODIAK ISLANDAKE-6",1890]
[{"$nulls":9},"E-3Over 3",{"v":1923,"d":"$1,923.00"},{"$nulls":4},"ALBANY","KODIAK ISLANDAKE-7",1518,"KODIAK ISLANDAKE-7",2007]
[{"$nulls":9},"E-2Over 3",{"v":1622.1,"d":"$1,622.10"},{"$nulls":4},"ATHENS","KODIAK ISLANDAKE-8",1662,"KODIAK ISLANDAKE-8",2130]
[{"$nulls":9},"E-1Over 3",0,{"$nulls":4},"ATLANTA","KODIAK ISLANDAKE-9",1752,"KODIAK ISLANDAKE-9",2265]
[{"$nulls":9},"O-10Over 4",0,{"$nulls":4},"DAHLONEGH","KODIAK ISLANDAKW-1",1476,"KODIAK ISLANDAKW-1",1893]
[{"$nulls":9},"O-9Over 4",0,{"$nulls":4},"FORT BENNING","KODIAK ISLANDAKW-2",1659,"KODIAK ISLANDAKW-2",2058]
[{"$nulls":9},"O-8Over 4",{"v":9968.4,"d":"$9,968.40"},{"$nulls":4},"FORT GORDON","KODIAK ISLANDAKW-3",1761,"KODIAK ISLANDAKW-3",2211]
[{"$nulls":9},"O-7Over 4",{"v":8474.1,"d":"$8,474.10"},{"$nulls":4},"FORT STEWART","KODIAK ISLANDAKW-4",1920,"KODIAK ISLANDAKW-4",2286]
[{"$nulls":9},"O-6Over 4",{"v":6776.7,"d":"$6,776.70"},{"$nulls":4},"KINGS BAY/BRUNSWICK","KODIAK ISLANDAKW-5",2034,"KODIAK ISLANDAKW-5",2373]
[{"$nulls":9},"O-5Over 4",{"v":5883.3,"d":"$5,883.30"},{"$nulls":4},"MOODY AFB","KODIAK ISLANDAKO-1E",1605,"KODIAK ISLANDAKO-1E",2031]
[{"$nulls":9},"O-4Over 4",{"v":5213.1,"d":"$5,213.10"},{"$nulls":4},"ROBINS AFB","KODIAK ISLANDAKO-2E",1731,"KODIAK ISLANDAKO-2E",2190]
[{"$nulls":9},"O-3Over 4",{"v":4883.4,"d":"$4,883.40"},{"$nulls":4},"SAVANNAH","KODIAK ISLANDAKO-3E",1890,"KODIAK ISLANDAKO-3E",2298]
[{"$nulls":9},"O-2Over 4",{"v":4289.1,"d":"$4,289.10"},{"$nulls":4},"HAWAII COUNTY","KODIAK ISLANDAKO-1",1419,"KODIAK ISLANDAKO-1",1890]
[{"$nulls":9},"O-1Over 4",{"v":3454.2,"d":"$3,454.20"},{"$nulls":4},"HONOLULU COUNTY","KODIAK ISLANDAKO-2",1575,"KODIAK ISLANDAKO-2",1890]
[{"$nulls":9},"O-3EOver 4",{"v":4883.4,"d":"$4,883.40"},{"$nulls":4},"KAUAI COUNTY","KODIAK ISLANDAKO-3",1788,"KODIAK ISLANDAKO-3",2205]
[{"$nulls":9},"O-2EOver 4",{"v":4289.1,"d":"$4,289.10"},{"$nulls":4},"MAUI COUNTY","KODIAK ISLANDAKO-4",2019,"KODIAK ISLANDAKO-4",2409]
[{"$nulls":9},"O-1EOver 4",{"v":3454.2,"d":"$3,454.20"},{"$nulls":4},"AMES","KODIAK ISLANDAKO-5",2094,"KODIAK ISLANDAKO-5",2550]
[{"$nulls":9},"W-5Over 4",0,{"$nulls":4},"CEDAR RAPIDS","KODIAK ISLANDAKO-6",2211,"KODIAK ISLANDAKO-6",2577]
[{"$nulls":9},"W-4Over 4",{"v":4301.1,"d":"$4,301.10"},{"$nulls":4},"DES MOINES","KODIAK ISLANDAKO-7",2256,"KODIAK ISLANDAKO-7",2601]
[{"$nulls":9},"W-3Over 4",{"v":3794.7,"d":"$3,794.70"},{"$nulls":4},"DUBUQUE","ANCHORAGEAKE-1",1110,"ANCHORAGEAKE-1",1479]
[{"$nulls":9},"W-2Over 4",{"v":3496.5,"d":"$3,496.50"},{"$nulls":4},"IOWA CITY","ANCHORAGEAKE-2",1110,"ANCHORAGEAKE-2",1479]
[{"$nulls":9},"W-1Over 4",{"v":3213.9,"d":"$3,213.90"},{"$nulls":4},"SIOUX CITY","ANCHORAGEAKE-3",1110,"ANCHORAGEAKE-3",1479]
[{"$nulls":9},"E-9Over 4",0,{"$nulls":4},"WATERLOO","ANCHORAGEAKE-4",1110,"ANCHORAGEAKE-4",1479]
[{"$nulls":9},"E-8Over 4",0,{"$nulls":4},"BOISE","ANCHORAGEAKE-5",1377,"ANCHORAGEAKE-5",1836]
[{"$nulls":9},"E-7Over 4",{"v":3091.8,"d":"$3,091.80"},{"$nulls":4},"IDAHO FALLS","ANCHORAGEAKE-6",1377,"ANCHORAGEAKE-6",1836]
[{"$nulls":9},"E-6Over 4",{"v":2690.7,"d":"$2,690.70"},{"$nulls":4},"MOSCOW","ANCHORAGEAKE-7",1491,"ANCHORAGEAKE-7",1989]
[{"$nulls":9},"E-5Over 4",{"v":2414.4,"d":"$2,414.40"},{"$nulls":4},"MOUNTAIN HOME AFB","ANCHORAGEAKE-8",1614,"ANCHORAGEAKE-8",2154]
[{"$nulls":9},"E-4Over 4",{"v":2199.9,"d":"$2,199.90"},{"$nulls":4},"CHAMPAIGN/URBANA","ANCHORAGEAKE-9",1779,"ANCHORAGEAKE-9",2370]
[{"$nulls":9},"E-3Over 4",{"v":1923,"d":"$1,923.00"},{"$nulls":4},"CHICAGO","ANCHORAGEAKW-1",1380,"ANCHORAGEAKW-1",1839]
[{"$nulls":9},"E-2Over 4",{"v":1622.1,"d":"$1,622.10"},{"$nulls":4},"GREAT LAKES NAVTRACEN","ANCHORAGEAKW-2",1545,"ANCHORAGEAKW-2",2055]
[{"$nulls":9},"E-1Over 4",0,{"$nulls":4},"JOLIET ARMY DEPOT","ANCHORAGEAKW-3",1695,"ANCHORAGEAKW-3",2259]
[{"$nulls":9},"O-10Over 6",0,{"$nulls":4},"PEORIA","ANCHORAGEAKW-4",1875,"ANCHORAGEAKW-4",2412]
[{"$nulls":9},"O-9Over 6",0,{"$nulls":4},"ROCK ISLAND","ANCHORAGEAKW-5",2025,"ANCHORAGEAKW-5",2595]
[{"$nulls":9},"O-8Over 6",{"v":10223.4,"d":"$10,223.40"},{"$nulls":4},"ROCKFORD","ANCHORAGEAKO-1E",1515,"ANCHORAGEAKO-1E",2022]
[{"$nulls":9},"O-7Over 6",{"v":8715.6,"d":"$8,715.60"},{"$nulls":4},"SCOTT AFB","ANCHORAGEAKO-2E",1671,"ANCHORAGEAKO-2E",2229]
[{"$nulls":9},"O-6Over 6",{"v":6802.5,"d":"$6,802.50"},{"$nulls":4},"SPRINGFIELD/DECATUR","ANCHORAGEAKO-3E",1836,"ANCHORAGEAKO-3E",2439]
[{"$nulls":9},"O-5Over 6",{"v":6117.9,"d":"$6,117.90"},{"$nulls":4},"BLOOMINGTON","ANCHORAGEAKO-1",1377,"ANCHORAGEAKO-1",1836]
[{"$nulls":9},"O-4Over 6",{"v":5511.6,"d":"$5,511.60"},{"$nulls":4},"EVANSVILLE","ANCHORAGEAKO-2",1428,"ANCHORAGEAKO-2",1836]
[{"$nulls":9},"O-3Over 6",{"v":5117.1,"d":"$5,117.10"},{"$nulls":4},"FORT WAYNE","ANCHORAGEAKO-3",1707,"ANCHORAGEAKO-3",2250]
[{"$nulls":9},"O-2Over 6",{"v":4377.3,"d":"$4,377.30"},{"$nulls":4},"INDIANAPOLIS","ANCHORAGEAKO-4",2004,"ANCHORAGEAKO-4",2664]
[{"$nulls":9},"O-1Over 6",{"v":3454.2,"d":"$3,454.20"},{"$nulls":4},"LAFAYETTE","ANCHORAGEAKO-5",2220,"ANCHORAGEAKO-5",2958]
[{"$nulls":9},"O-3EOver 6",{"v":5117.1,"d":"$5,117.10"},{"$nulls":4},"SOUTH BEND","ANCHORAGEAKO-6",2259,"ANCHORAGEAKO-6",2988]
[{"$nulls":9},"O-2EOver 6",{"v":4377.3,"d":"$4,377.30"},{"$nulls":4},"TERRE HAUTE","ANCHORAGEAKO-7",2304,"ANCHORAGEAKO-7",3018]
[{"$nulls":9},"O-1EOver 6",{"v":3688.8,"d":"$3,688.80"},{"$nulls":4},"FORT LEAVENWORTH","FAIRBANKSAKE-1",1125,"FAIRBANKSAKE-1",1500]
[{"$nulls":9},"W-5Over 6",0,{"$nulls":4},"FORT RILEY","FAIRBANKSAKE-2",1125,"FAIRBANKSAKE-2",1500]
[{"$nulls":9},"W-4Over 6",{"v":4499.1,"d":"$4,499.10"},{"$nulls":4},"LAWRENCE","FAIRBANKSAKE-3",1125,"FAIRBANKSAKE-3",1500]
[{"$nulls":9},"W-3Over 6",{"v":3949.5,"d":"$3,949.50"},{"$nulls":4},"SALINA","FAIRBANKSAKE-4",1125,"FAIRBANKSAKE-4",1500]
[{"$nulls":9},"W-2Over 6",{"v":3694.8,"d":"$3,694.80"},{"$nulls":4},"TOPEKA","FAIRBANKSAKE-5",1365,"FAIRBANKSAKE-5",1821]
[{"$nulls":9},"W-1Over 6",{"v":3408.3,"d":"$3,408.30"},{"$nulls":4},"WICHITA/MCCONNELL AFB","FAIRBANKSAKE-6",1365,"FAIRBANKSAKE-6",1821]
[{"$nulls":9},"E-9Over 6",0,{"$nulls":4},"BOWLING GREEN","FAIRBANKSAKE-7",1428,"FAIRBANKSAKE-7",1905]
[{"$nulls":9},"E-8Over 6",0,{"$nulls":4},"FORT CAMPBELL","FAIRBANKSAKE-8",1563,"FAIRBANKSAKE-8",1998]
[{"$nulls":9},"E-7Over 6",{"v":3204,"d":"$3,204.00"},{"$nulls":4},"FORT KNOX","FAIRBANKSAKE-9",1662,"FAIRBANKSAKE-9",2100]
[{"$nulls":9},"E-6Over 6",{"v":2801.4,"d":"$2,801.40"},{"$nulls":4},"FRANKFORT","FAIRBANKSAKW-1",1368,"FAIRBANKSAKW-1",1821]
[{"$nulls":9},"E-5Over 6",{"v":2583.9,"d":"$2,583.90"},{"$nulls":4},"LEXINGTON","FAIRBANKSAKW-2",1560,"FAIRBANKSAKW-2",1944]
[{"$nulls":9},"E-4Over 6",{"v":2293.8,"d":"$2,293.80"},{"$nulls":4},"LOUISVILLE","FAIRBANKSAKW-3",1671,"FAIRBANKSAKW-3",2058]
[{"$nulls":9},"E-3Over 6",{"v":1923,"d":"$1,923.00"},{"$nulls":4},"OWENSBORO","FAIRBANKSAKW-4",1842,"FAIRBANKSAKW-4",2115]
[{"$nulls":9},"E-2Over 6",{"v":1622.1,"d":"$1,622.10"},{"$nulls":4},"PADUCAH","FAIRBANKSAKW-5",1926,"FAIRBANKSAKW-5",2181]
[{"$nulls":9},"E-1Over 6",0,{"$nulls":4},"ALEXANDRIA","FAIRBANKSAKO-1E",1500,"FAIRBANKSAKO-1E",1926]
[{"$nulls":9},"O-10Over 8",0,{"$nulls":4},"BATON ROUGE","FAIRBANKSAKO-2E",1641,"FAIRBANKSAKO-2E",2040]
[{"$nulls":9},"O-9Over 8",0,{"$nulls":4},"FORT POLK","FAIRBANKSAKO-3E",1821,"FAIRBANKSAKO-3E",2124]
[{"$nulls":9},"O-8Over 8",{"v":10649.1,"d":"$10,649.10"},{"$nulls":4},"LAFAYETTE COUNTY","FAIRBANKSAKO-1",1365,"FAIRBANKSAKO-1",1821]
[{"$nulls":9},"O-7Over 8",{"v":8954.4,"d":"$8,954.40"},{"$nulls":4},"LAKE CHARLES","FAIRBANKSAKO-2",1431,"FAIRBANKSAKO-2",1821]
[{"$nulls":9},"O-6Over 8",{"v":7094.1,"d":"$7,094.10"},{"$nulls":4},"MONROE","FAIRBANKSAKO-3",1704,"FAIRBANKSAKO-3",2052]
[{"$nulls":9},"O-5Over 8",{"v":6258.6,"d":"$6,258.60"},{"$nulls":4},"NEW ORLEANS","FAIRBANKSAKO-4",1914,"FAIRBANKSAKO-4",2205]
[{"$nulls":9},"O-4Over 8",{"v":5831.7,"d":"$5,831.70"},{"$nulls":4},"SHREVEPORT/BARKSDALE AFB","FAIRBANKSAKO-5",1971,"FAIRBANKSAKO-5",2313]
[{"$nulls":9},"O-3Over 8",{"v":5373.9,"d":"$5,373.90"},{"$nulls":4},"ST MARY AND TERREBONNE","FAIRBANKSAKO-6",2058,"FAIRBANKSAKO-6",2334]
[{"$nulls":9},"O-2Over 8",{"v":4377.3,"d":"$4,377.30"},{"$nulls":4},"BOSTON","FAIRBANKSAKO-7",2100,"FAIRBANKSAKO-7",2358]
[{"$nulls":9},"O-1Over 8",{"v":3454.2,"d":"$3,454.20"},{"$nulls":4},"CAPE COD","ANNISTON/FORT MCCLELLANALE-1",618,"ANNISTON/FORT MCCLELLANALE-1",792]
[{"$nulls":9},"O-3EOver 8",{"v":5373.9,"d":"$5,373.90"},{"$nulls":4},"ESSEX CO","ANNISTON/FORT MCCLELLANALE-2",618,"ANNISTON/FORT MCCLELLANALE-2",792]
[{"$nulls":9},"O-2EOver 8",{"v":4516.8,"d":"$4,516.80"},{"$nulls":4},"FORT DEVENS/AYER","ANNISTON/FORT MCCLELLANALE-3",618,"ANNISTON/FORT MCCLELLANALE-3",792]
[{"$nulls":9},"O-1EOver 8",{"v":3825,"d":"$3,825.00"},{"$nulls":4},"HAMPDEN COUNTY","ANNISTON/FORT MCCLELLANALE-4",618,"ANNISTON/FORT MCCLELLANALE-4",792]
[{"$nulls":9},"W-5Over 8",0,{"$nulls":4},"HANSCOMB FIELD","ANNISTON/FORT MCCLELLANALE-5",705,"ANNISTON/FORT MCCLELLANALE-5",837]
[{"$nulls":9},"W-4Over 8",{"v":4695,"d":"$4,695.00"},{"$nulls":4},"MARTHA'S VINEYARD","ANNISTON/FORT MCCLELLANALE-6",900,"ANNISTON/FORT MCCLELLANALE-6",1197]
[{"$nulls":9},"W-3Over 8",{"v":4254,"d":"$4,254.00"},{"$nulls":4},"NANTUCKET","ANNISTON/FORT MCCLELLANALE-7",912,"ANNISTON/FORT MCCLELLANALE-7",1218]
[{"$nulls":9},"W-2Over 8",{"v":4002.9,"d":"$4,002.90"},{"$nulls":4},"PLYMOUTH","ANNISTON/FORT MCCLELLANALE-8",927,"ANNISTON/FORT MCCLELLANALE-8",1236]
[{"$nulls":9},"W-1Over 8",{"v":3694.2,"d":"$3,694.20"},{"$nulls":4},"WORCESTER","ANNISTON/FORT MCCLELLANALE-9",1020,"ANNISTON/FORT MCCLELLANALE-9",1287]
[{"$nulls":9},"E-9Over 8",0,{"$nulls":4},"ABERDEEN PROVING GROUNDS","ANNISTON/FORT MCCLELLANALW-1",900,"ANNISTON/FORT MCCLELLANALW-1",1200]
[{"$nulls":9},"E-8Over 8",{"v":3741.6,"d":"$3,741.60"},{"$nulls":4},"ANNAPOLIS","ANNISTON/FORT MCCLELLANALW-2",918,"ANNISTON/FORT MCCLELLANALW-2",1224]
[{"$nulls":9},"E-7Over 8",{"v":3396.9,"d":"$3,396.90"},{"$nulls":4},"BALTIMORE","ANNISTON/FORT MCCLELLANALW-3",1032,"ANNISTON/FORT MCCLELLANALW-3",1251]
[{"$nulls":9},"E-6Over 8",{"v":3051,"d":"$3,051.00"},{"$nulls":4},"CUMBERLAND","ANNISTON/FORT MCCLELLANALW-4",1203,"ANNISTON/FORT MCCLELLANALW-4",1299]
[{"$nulls":9},"E-5Over 8",{"v":2761.8,"d":"$2,761.80"},{"$nulls":4},"FORT DETRICK","ANNISTON/FORT MCCLELLANALW-5",1221,"ANNISTON/FORT MCCLELLANALW-5",1359]
[{"$nulls":9},"E-4Over 8",{"v":2293.8,"d":"$2,293.80"},{"$nulls":4},"FORT G. G. MEADE","ANNISTON/FORT MCCLELLANALO-1E",915,"ANNISTON/FORT MCCLELLANALO-1E",1221]
[{"$nulls":9},"E-3Over 8",{"v":1923,"d":"$1,923.00"},{"$nulls":4},"INDIAN HEAD NAVORDSTA","ANNISTON/FORT MCCLELLANALO-2E",996,"ANNISTON/FORT MCCLELLANALO-2E",1245]
[{"$nulls":9},"E-2Over 8",{"v":1622.1,"d":"$1,622.10"},{"$nulls":4},"OCEAN CITY","ANNISTON/FORT MCCLELLANALO-3E",1197,"ANNISTON/FORT MCCLELLANALO-3E",1311]
[{"$nulls":9},"E-1Over 8",0,{"$nulls":4},"OXFORD","ANNISTON/FORT MCCLELLANALO-1",747,"ANNISTON/FORT MCCLELLANALO-1",876]
[{"$nulls":9},"O-10Over 10",0,{"$nulls":4},"PATUXENT RIVER","ANNISTON/FORT MCCLELLANALO-2",894,"ANNISTON/FORT MCCLELLANALO-2",1191]
[{"$nulls":9},"O-9Over 10",0,{"$nulls":4},"BANGOR","ANNISTON/FORT MCCLELLANALO-3",1068,"ANNISTON/FORT MCCLELLANALO-3",1248]
[{"$nulls":9},"O-8Over 10",{"v":10748.4,"d":"$10,748.40"},{"$nulls":4},"BRUNSWICK","ANNISTON/FORT MCCLELLANALO-4",1218,"ANNISTON/FORT MCCLELLANALO-4",1383]
[{"$nulls":9},"O-7Over 10",{"v":9230.4,"d":"$9,230.40"},{"$nulls":4},"CARIBOU/LIMESTONE","ANNISTON/FORT MCCLELLANALO-5",1230,"ANNISTON/FORT MCCLELLANALO-5",1479]
[{"$nulls":9},"O-6Over 10",{"v":7132.5,"d":"$7,132.50"},{"$nulls":4},"COASTAL MAINE","ANNISTON/FORT MCCLELLANALO-6",1251,"ANNISTON/FORT MCCLELLANALO-6",1494]
[{"$nulls":9},"O-5Over 10",{"v":6567.6,"d":"$6,567.60"},{"$nulls":4},"KITTERY","ANNISTON/FORT MCCLELLANALO-7",1275,"ANNISTON/FORT MCCLELLANALO-7",1509]
[{"$nulls":9},"O-4Over 10",{"v":6230.1,"d":"$6,230.10"},{"$nulls":4},"PORTLAND","FORT RUCKERALE-1",687,"FORT RUCKERALE-1",915]
[{"$nulls":9},"O-3Over 10",{"v":5540.1,"d":"$5,540.10"},{"$nulls":3},"MI","ANN ARBOR","FORT RUCKERALE-2",687,"FORT RUCKERALE-2",915]
[{"$nulls":9},"O-2Over 10",{"v":4377.3,"d":"$4,377.30"},{"$nulls":4},"ALPENA","FORT RUCKERALE-3",687,"FORT RUCKERALE-3",915]
[{"$nulls":9},"O-1Over 10",{"v":3454.2,"d":"$3,454.20"},{"$nulls":4},"BATTLE CREEK/KALAMAZOO","FORT RUCKERALE-4",687,"FORT RUCKERALE-4",915]
[{"$nulls":9},"O-3EOver 10",{"v":5540.1,"d":"$5,540.10"},{"$nulls":4},"CHARLEVOIX","FORT RUCKERALE-5",789,"FORT RUCKERALE-5",1053]
[{"$nulls":9},"O-2EOver 10",{"v":4752,"d":"$4,752.00"},{"$nulls":4},"DETROIT","FORT RUCKERALE-6",942,"FORT RUCKERALE-6",1254]
[{"$nulls":9},"O-1EOver 10",{"v":3964.8,"d":"$3,964.80"},{"$nulls":4},"GRAND HAVEN","FORT RUCKERALE-7",1020,"FORT RUCKERALE-7",1362]
[{"$nulls":9},"W-5Over 10",0,{"$nulls":4},"GRAND RAPIDS","FORT RUCKERALE-8",1107,"FORT RUCKERALE-8",1479]
[{"$nulls":9},"W-4Over 10",{"v":4893,"d":"$4,893.00"},{"$nulls":4},"KI SAWYER AFB","FORT RUCKERALE-9",1200,"FORT RUCKERALE-9",1599]
[{"$nulls":9},"W-3Over 10",{"v":4571.1,"d":"$4,571.10"},{"$nulls":4},"LANSING","FORT RUCKERALW-1",942,"FORT RUCKERALW-1",1257]
[{"$nulls":9},"W-2Over 10",{"v":4155.3,"d":"$4,155.30"},{"$nulls":4},"PORT HURON","FORT RUCKERALW-2",1092,"FORT RUCKERALW-2",1410]
[{"$nulls":9},"W-1Over 10",{"v":3827.7,"d":"$3,827.70"},{"$nulls":4},"SAGINAW","FORT RUCKERALW-3",1164,"FORT RUCKERALW-3",1551]
[{"$nulls":9},"E-9Over 10",{"v":4570.8,"d":"$4,570.80"},{"$nulls":4},"SAULT STE MARIE","FORT RUCKERALW-4",1281,"FORT RUCKERALW-4",1617]
[{"$nulls":9},"E-8Over 10",{"v":3907.2,"d":"$3,907.20"},{"$nulls":4},"TRAVERSE CITY","FORT RUCKERALW-5",1389,"FORT RUCKERALW-5",1695]
[{"$nulls":9},"E-7Over 10",{"v":3505.5,"d":"$3,505.50"},{"$nulls":3},"MN","DULUTH","FORT RUCKERALO-1E",1053,"FORT RUCKERALO-1E",1386]
[{"$nulls":9},"E-6Over 10",{"v":3148.2,"d":"$3,148.20"},{"$nulls":4},"MINNEAPOLIS/ST PAUL","FORT RUCKERALO-2E",1149,"FORT RUCKERALO-2E",1530]
[{"$nulls":9},"E-5Over 10",{"v":2906.7,"d":"$2,906.70"},{"$nulls":4},"ROCHESTER","FORT RUCKERALO-3E",1254,"FORT RUCKERALO-3E",1629]
[{"$nulls":9},"E-4Over 10",{"v":2293.8,"d":"$2,293.80"},{"$nulls":4},"SAINT CLOUD","FORT RUCKERALO-1",807,"FORT RUCKERALO-1",1074]
[{"$nulls":9},"E-3Over 10",{"v":1923,"d":"$1,923.00"},{"$nulls":4},"CAPE GIRARDEAU","FORT RUCKERALO-2",1005,"FORT RUCKERALO-2",1251]
[{"$nulls":9},"E-2Over 10",{"v":1622.1,"d":"$1,622.10"},{"$nulls":4},"COLUMBIA/JEFFERSON CITY","FORT RUCKERALO-3",1182,"FORT RUCKERALO-3",1545]
[{"$nulls":9},"E-1Over 10",0,{"$nulls":4},"FORT LEONARD WOOD","FORT RUCKERALO-4",1374,"FORT RUCKERALO-4",1722]
[{"$nulls":9},"O-10Over 12",0,{"$nulls":4},"KANSAS CITY","FORT RUCKERALO-5",1443,"FORT RUCKERALO-5",1848]
[{"$nulls":9},"O-9Over 12",0,{"$nulls":4},"SAINT JOSEPH","FORT RUCKERALO-6",1551,"FORT RUCKERALO-6",1866]
[{"$nulls":9},"O-8Over 12",{"v":11152.8,"d":"$11,152.80"},{"$nulls":4},"SPRINGFIELD","FORT RUCKERALO-7",1584,"FORT RUCKERALO-7",1884]
[{"$nulls":9},"O-7Over 12",{"v":9505.5,"d":"$9,505.50"},{"$nulls":4},"ST. LOUIS","HUNTSVILLEALE-1",801,"HUNTSVILLEALE-1",1059]
[{"$nulls":9},"O-6Over 12",{"v":7132.5,"d":"$7,132.50"},{"$nulls":4},"WHITEMAN AFB","HUNTSVILLEALE-2",801,"HUNTSVILLEALE-2",1059]
[{"$nulls":9},"O-5Over 12",{"v":6794.1,"d":"$6,794.10"},{"$nulls":4},"COLUMBUS AFB","HUNTSVILLEALE-3",801,"HUNTSVILLEALE-3",1059]
[{"$nulls":9},"O-4Over 12",{"v":6540.6,"d":"$6,540.60"},{"$nulls":4},"GREENVILLE","HUNTSVILLEALE-4",801,"HUNTSVILLEALE-4",1059]
[{"$nulls":9},"O-3Over 12",{"v":5813.4,"d":"$5,813.40"},{"$nulls":4},"GULFPORT","HUNTSVILLEALE-5",915,"HUNTSVILLEALE-5",1146]
[{"$nulls":9},"O-2Over 12",{"v":4377.3,"d":"$4,377.30"},{"$nulls":4},"HATTIESBURG","HUNTSVILLEALE-6",984,"HUNTSVILLEALE-6",1227]
[{"$nulls":9},"O-1Over 12",{"v":3454.2,"d":"$3,454.20"},{"$nulls":4},"JACKSON","HUNTSVILLEALE-7",1065,"HUNTSVILLEALE-7",1278]
[{"$nulls":9},"O-3EOver 12",{"v":5813.4,"d":"$5,813.40"},{"$nulls":4},"MERIDIAN","HUNTSVILLEALE-8",1161,"HUNTSVILLEALE-8",1335]
[{"$nulls":9},"O-2EOver 12",{"v":4933.8,"d":"$4,933.80"},{"$nulls":4},"PASCAGOULA","HUNTSVILLEALE-9",1185,"HUNTSVILLEALE-9",1431]
[{"$nulls":9},"O-1EOver 12",{"v":4101.6,"d":"$4,101.60"},{"$nulls":4},"TUPELO","HUNTSVILLEALW-1",1026,"HUNTSVILLEALW-1",1227]
[{"$nulls":9},"W-5Over 12",0,{"$nulls":4},"BILLINGS","HUNTSVILLEALW-2",1161,"HUNTSVILLEALW-2",1302]
[{"$nulls":9},"W-4Over 12",{"v":5191.8,"d":"$5,191.80"},{"$nulls":4},"HELENA","HUNTSVILLEALW-3",1188,"HUNTSVILLEALW-3",1371]
[{"$nulls":9},"W-3Over 12",{"v":4720.2,"d":"$4,720.20"},{"$nulls":4},"MALMSTROM AFB/GREAT FLS","HUNTSVILLEALW-4",1239,"HUNTSVILLEALW-4",1452]
[{"$nulls":9},"W-2Over 12",{"v":4305.9,"d":"$4,305.90"},{"$nulls":4},"MISSOULA","HUNTSVILLEALW-5",1290,"HUNTSVILLEALW-5",1548]
[{"$nulls":9},"W-1Over 12",{"v":4014.3,"d":"$4,014.30"},{"$nulls":4},"ASHEVILLE","HUNTSVILLEALO-1E",1146,"HUNTSVILLEALO-1E",1290]
[{"$nulls":9},"E-9Over 12",{"v":4674.3,"d":"$4,674.30"},{"$nulls":4},"CAMP LEJEUNE","HUNTSVILLEALO-2E",1182,"HUNTSVILLEALO-2E",1359]
[{"$nulls":9},"E-8Over 12",{"v":4009.5,"d":"$4,009.50"},{"$nulls":4},"CHARLOTTE","HUNTSVILLEALO-3E",1227,"HUNTSVILLEALO-3E",1467]
[{"$nulls":9},"E-7Over 12",{"v":3699,"d":"$3,699.00"},{"$nulls":4},"DURHAM/CHAPEL HILL","HUNTSVILLEALO-1",972,"HUNTSVILLEALO-1",1155]
[{"$nulls":9},"E-6Over 12",{"v":3336,"d":"$3,336.00"},{"$nulls":4},"ELIZABETH CITY","HUNTSVILLEALO-2",1116,"HUNTSVILLEALO-2",1224]
[{"$nulls":9},"E-5Over 12",{"v":2924.7,"d":"$2,924.70"},{"$nulls":4},"FORT BRAGG/POPE AFB","HUNTSVILLEALO-3",1197,"HUNTSVILLEALO-3",1368]
[{"$nulls":9},"E-4Over 12",{"v":2293.8,"d":"$2,293.80"},{"$nulls":4},"GREENSBORO","HUNTSVILLEALO-4",1284,"HUNTSVILLEALO-4",1587]
[{"$nulls":9},"E-3Over 12",{"v":1923,"d":"$1,923.00"},{"$nulls":4},"GREENVILLE","HUNTSVILLEALO-5",1317,"HUNTSVILLEALO-5",1743]
[{"$nulls":9},"E-2Over 12",{"v":1622.1,"d":"$1,622.10"},{"$nulls":4},"MOREHEAD/CHERRY PT MCAS","HUNTSVILLEALO-6",1371,"HUNTSVILLEALO-6",1758]
[{"$nulls":9},"E-1Over 12",0,{"$nulls":4},"OUTER BANKS","HUNTSVILLEALO-7",1398,"HUNTSVILLEALO-7",1776]
[{"$nulls":9},"O-10Over 14",0,{"$nulls":4},"RALEIGH","MOBILEALE-1",774,"MOBILEALE-1",987]
[{"$nulls":9},"O-9Over 14",0,{"$nulls":4},"SEYMORE JOHNSON AFB","MOBILEALE-2",774,"MOBILEALE-2",987]
[{"$nulls":9},"O-8Over 14",{"v":11268.6,"d":"$11,268.60"},{"$nulls":4},"WILMINGTON","MOBILEALE-3",774,"MOBILEALE-3",987]
[{"$nulls":9},"O-7Over 14",{"v":9781.8,"d":"$9,781.80"},{"$nulls":4},"BISMARCK","MOBILEALE-4",774,"MOBILEALE-4",987]
[{"$nulls":9},"O-6Over 14",{"v":7537.8,"d":"$7,537.80"},{"$nulls":4},"FARGO","MOBILEALE-5",885,"MOBILEALE-5",1029]
[{"$nulls":9},"O-5Over 14",{"v":7086.9,"d":"$7,086.90"},{"$nulls":4},"GRAND FORKS","MOBILEALE-6",948,"MOBILEALE-6",1179]
[{"$nulls":9},"O-4Over 14",{"v":6756.6,"d":"$6,756.60"},{"$nulls":4},"MINOT AFB","MOBILEALE-7",987,"MOBILEALE-7",1221]
[{"$nulls":9},"O-3Over 14",{"v":5955.6,"d":"$5,955.60"},{"$nulls":4},"LINCOLN","MOBILEALE-8",1059,"MOBILEALE-8",1269]
[{"$nulls":9},"O-2Over 14",{"v":4377.3,"d":"$4,377.30"},{"$nulls":4},"OMAHA/OFFUTT AFB","MOBILEALE-9",1107,"MOBILEALE-9",1401]
[{"$nulls":9},"O-1Over 14",{"v":3454.2,"d":"$3,454.20"},{"$nulls":4},"MANCHESTER/CONCORD","MOBILEALW-1",969,"MOBILEALW-1",1179]
[{"$nulls":9},"O-3EOver 14",{"v":6043.5,"d":"$6,043.50"},{"$nulls":4},"PORTSMOUTH","MOBILEALW-2",1059,"MOBILEALW-2",1242]
[{"$nulls":9},"O-2EOver 14",{"v":5069.1,"d":"$5,069.10"},{"$nulls":4},"ATLANTIC CITY","MOBILEALW-3",1110,"MOBILEALW-3",1299]
[{"$nulls":9},"O-1EOver 14",{"v":4289.1,"d":"$4,289.10"},{"$nulls":4},"CAMDEN","MOBILEALW-4",1191,"MOBILEALW-4",1437]
[{"$nulls":9},"W-5Over 14",0,{"$nulls":4},"CAPE MAY","MOBILEALW-5",1233,"MOBILEALW-5",1602]
[{"$nulls":9},"W-4Over 14",{"v":5453.4,"d":"$5,453.40"},{"$nulls":4},"FORT MONMOUTH/EARLE NWS","MOBILEALO-1E",1029,"MOBILEALO-1E",1233]
[{"$nulls":9},"W-3Over 14",{"v":4892.7,"d":"$4,892.70"},{"$nulls":4},"FT DIX/MCGUIRE/LAKEHURST","MOBILEALO-2E",1095,"MOBILEALO-2E",1290]
[{"$nulls":9},"W-2Over 14",{"v":4489.5,"d":"$4,489.50"},{"$nulls":4},"NORTHERN NEW JERSEY ","MOBILEALO-3E",1179,"MOBILEALO-3E",1464]
[{"$nulls":9},"W-1Over 14",{"v":4197.9,"d":"$4,197.90"},{"$nulls":4},"PERTH AMBOY","MOBILEALO-1",942,"MOBILEALO-1",1047]
[{"$nulls":9},"E-9Over 14",{"v":4804.8,"d":"$4,804.80"},{"$nulls":4},"TRENTON","MOBILEALO-2",1014,"MOBILEALO-2",1176]
[{"$nulls":9},"E-8Over 14",{"v":4132.5,"d":"$4,132.50"},{"$nulls":4},"ALBUQUERQUE/KIRTLAND AFB","MOBILEALO-3",1125,"MOBILEALO-3",1296]
[{"$nulls":9},"E-7Over 14",{"v":3859.5,"d":"$3,859.50"},{"$nulls":4},"CANNON AFB/CLOVIS","MOBILEALO-4",1248,"MOBILEALO-4",1665]
[{"$nulls":9},"E-6Over 14",{"v":3393.6,"d":"$3,393.60"},{"$nulls":4},"HOLLOMAN AFB/ALAMOGORDO","MOBILEALO-5",1449,"MOBILEALO-5",1932]
[{"$nulls":9},"E-5Over 14",{"v":2924.7,"d":"$2,924.70"},{"$nulls":4},"SANTA FE/LOS ALAMOS","MOBILEALO-6",1464,"MOBILEALO-6",1950]
[{"$nulls":9},"E-4Over 14",{"v":2293.8,"d":"$2,293.80"},{"$nulls":4},"WHITE SANDS MR/LAS CRUCES","MOBILEALO-7",1476,"MOBILEALO-7",1971]
[{"$nulls":9},"E-3Over 14",{"v":1923,"d":"$1,923.00"},{"$nulls":4},"FALLON NAS","MONTGOMERYALE-1",843,"MONTGOMERYALE-1",1050]
[{"$nulls":9},"E-2Over 14",{"v":1622.1,"d":"$1,622.10"},{"$nulls":4},"LAKE TAHOE","MONTGOMERYALE-2",843,"MONTGOMERYALE-2",1050]
[{"$nulls":9},"E-1Over 14",0,{"$nulls":4},"NELLIS AFB/LAS VEGAS","MONTGOMERYALE-3",843,"MONTGOMERYALE-3",1050]
[{"$nulls":9},"O-10Over 16",0,{"$nulls":4},"RENO/CARSON CITY","MONTGOMERYALE-4",843,"MONTGOMERYALE-4",1050]
[{"$nulls":9},"O-9Over 16",0,{"$nulls":4},"BALLSTON SPA/ALBANY","MONTGOMERYALE-5",945,"MONTGOMERYALE-5",1107]
[{"$nulls":9},"O-8Over 16",{"v":11617.2,"d":"$11,617.20"},{"$nulls":4},"BINGHAMTON/ITHACA","MONTGOMERYALE-6",1002,"MONTGOMERYALE-6",1212]
[{"$nulls":9},"O-7Over 16",{"v":10649.1,"d":"$10,649.10"},{"$nulls":4},"BUFFALO","MONTGOMERYALE-7",1053,"MONTGOMERYALE-7",1344]
[{"$nulls":9},"O-6Over 16",{"v":8254.8,"d":"$8,254.80"},{"$nulls":4},"FT. DRUM/WATERTOWN","MONTGOMERYALE-8",1128,"MONTGOMERYALE-8",1485]
[{"$nulls":9},"O-5Over 16",{"v":7535.1,"d":"$7,535.10"},{"$nulls":4},"KINGSTON/SAUGERTIES","MONTGOMERYALE-9",1209,"MONTGOMERYALE-9",1611]
[{"$nulls":9},"O-4Over 16",{"v":6880.2,"d":"$6,880.20"},{"$nulls":4},"LONG ISLAND","MONTGOMERYALW-1",1029,"MONTGOMERYALW-1",1218]
[{"$nulls":9},"O-3Over 16",{"v":5955.6,"d":"$5,955.60"},{"$nulls":4},"NEW YORK CITY","MONTGOMERYALW-2",1128,"MONTGOMERYALW-2",1401]
[{"$nulls":9},"O-2Over 16",{"v":4377.3,"d":"$4,377.30"},{"$nulls":4},"POTSDAM","MONTGOMERYALW-3",1182,"MONTGOMERYALW-3",1575]
[{"$nulls":9},"O-1Over 16",{"v":3454.2,"d":"$3,454.20"},{"$nulls":4},"ROCHESTER","MONTGOMERYALW-4",1245,"MONTGOMERYALW-4",1626]
[{"$nulls":9},"O-3EOver 16",{"v":6175.8,"d":"$6,175.80"},{"$nulls":4},"ROME/GRIFFISS AFB","MONTGOMERYALW-5",1374,"MONTGOMERYALW-5",1689]
[{"$nulls":9},"O-2EOver 16",{"v":5069.1,"d":"$5,069.10"},{"$nulls":4},"STATEN ISLAND","MONTGOMERYALO-1E",1107,"MONTGOMERYALO-1E",1371]
[{"$nulls":9},"O-1EOver 16",{"v":4289.1,"d":"$4,289.10"},{"$nulls":4},"SYRACUSE","MONTGOMERYALO-2E",1161,"MONTGOMERYALO-2E",1548]
[{"$nulls":9},"W-5Over 16",0,{"$nulls":4},"WEST POINT","MONTGOMERYALO-3E",1227,"MONTGOMERYALO-3E",1635]
[{"$nulls":9},"W-4Over 16",{"v":5702.1,"d":"$5,702.10"},{"$nulls":4},"WESTCHESTER COUNTY","MONTGOMERYALO-1",993,"MONTGOMERYALO-1",1119]
[{"$nulls":9},"W-3Over 16",{"v":5070.9,"d":"$5,070.90"},{"$nulls":4},"AKRON","MONTGOMERYALO-2",1089,"MONTGOMERYALO-2",1212]
[{"$nulls":9},"W-2Over 16",{"v":4633.2,"d":"$4,633.20"},{"$nulls":4},"CINCINNATI","MONTGOMERYALO-3",1176,"MONTGOMERYALO-3",1566]
[{"$nulls":9},"W-1Over 16",{"v":4342.2,"d":"$4,342.20"},{"$nulls":4},"CLEVELAND","MONTGOMERYALO-4",1356,"MONTGOMERYALO-4",1713]
[{"$nulls":9},"E-9Over 16",{"v":4958.4,"d":"$4,958.40"},{"$nulls":4},"COLUMBUS","MONTGOMERYALO-5",1440,"MONTGOMERYALO-5",1812]
[{"$nulls":9},"E-8Over 16",{"v":4265.4,"d":"$4,265.40"},{"$nulls":4},"LIMA","MONTGOMERYALO-6",1575,"MONTGOMERYALO-6",1830]
[{"$nulls":9},"E-7Over 16",{"v":3969,"d":"$3,969.00"},{"$nulls":4},"MANSFIELD","MONTGOMERYALO-7",1605,"MONTGOMERYALO-7",1848]
[{"$nulls":9},"E-6Over 16",{"v":3435.6,"d":"$3,435.60"},{"$nulls":4},"TOLEDO","AUBURNALE-1",681,"AUBURNALE-1",906]
[{"$nulls":9},"E-5Over 16",{"v":2924.7,"d":"$2,924.70"},{"$nulls":4},"WRIGHT-PATTERSON AFB","AUBURNALE-2",681,"AUBURNALE-2",906]
[{"$nulls":9},"E-4Over 16",{"v":2293.8,"d":"$2,293.80"},{"$nulls":4},"YOUNGSTOWN","AUBURNALE-3",681,"AUBURNALE-3",906]
[{"$nulls":9},"E-3Over 16",{"v":1923,"d":"$1,923.00"},{"$nulls":4},"ALTUS AFB","AUBURNALE-4",681,"AUBURNALE-4",906]
[{"$nulls":9},"E-2Over 16",{"v":1622.1,"d":"$1,622.10"},{"$nulls":4},"FORT SILL/LAWTON","AUBURNALE-5",783,"AUBURNALE-5",975]
[{"$nulls":9},"E-1Over 16",0,{"$nulls":4},"OKLAHOMA CITY","AUBURNALE-6",915,"AUBURNALE-6",1218]
[{"$nulls":9},"O-10Over 18",0,{"$nulls":4},"TULSA","AUBURNALE-7",939,"AUBURNALE-7",1251]
[{"$nulls":9},"O-9Over 18",0,{"$nulls":4},"VANCE AFB/ENID","AUBURNALE-8",1023,"AUBURNALE-8",1284]
[{"$nulls":9},"O-8Over 18",{"v":12121.2,"d":"$12,121.20"},{"$nulls":4},"ASTORIA","AUBURNALE-9",1098,"AUBURNALE-9",1371]
[{"$nulls":9},"O-7Over 18",{"v":11381.4,"d":"$11,381.40"},{"$nulls":4},"COOS BAY","AUBURNALW-1",915,"AUBURNALW-1",1221]
[{"$nulls":9},"O-6Over 18",{"v":8675.4,"d":"$8,675.40"},{"$nulls":4},"CORVALLIS","AUBURNALW-2",1020,"AUBURNALW-2",1263]
[{"$nulls":9},"O-5Over 18",{"v":7748.1,"d":"$7,748.10"},{"$nulls":4},"EUGENE","AUBURNALW-3",1107,"AUBURNALW-3",1305]
[{"$nulls":9},"O-4Over 18",{"v":6951.9,"d":"$6,951.90"},{"$nulls":4},"KLAMATH FALLS","AUBURNALW-4",1227,"AUBURNALW-4",1395]
[{"$nulls":9},"O-3Over 18",{"v":5955.6,"d":"$5,955.60"},{"$nulls":4},"PORTLAND","AUBURNALW-5",1257,"AUBURNALW-5",1500]
[{"$nulls":9},"O-2Over 18",{"v":4377.3,"d":"$4,377.30"},{"$nulls":4},"SALEM","AUBURNALO-1E",975,"AUBURNALO-1E",1257]
[{"$nulls":9},"O-1Over 18",{"v":3454.2,"d":"$3,454.20"},{"$nulls":4},"ALLENTOWN/BETHLEHEM","AUBURNALO-2E",1083,"AUBURNALO-2E",1299]
[{"$nulls":9},"O-3EOver 18",{"v":6355.8,"d":"$6,355.80"},{"$nulls":4},"CARLISLE BARRACKS","AUBURNALO-3E",1218,"AUBURNALO-3E",1410]
[{"$nulls":9},"O-2EOver 18",{"v":5069.1,"d":"$5,069.10"},{"$nulls":4},"ERIE","AUBURNALO-1",840,"AUBURNALO-1",1002]
[{"$nulls":9},"O-1EOver 18",{"v":4289.1,"d":"$4,289.10"},{"$nulls":4},"JOHNSTOWN","AUBURNALO-2",951,"AUBURNALO-2",1215]
[{"$nulls":9},"W-5Over 18",0,{"$nulls":4},"NAS WILLOW GROVE","AUBURNALO-3",1131,"AUBURNALO-3",1305]
[{"$nulls":9},"W-4Over 18",{"v":5905.5,"d":"$5,905.50"},{"$nulls":4},"PHILADELPHIA","AUBURNALO-4",1254,"AUBURNALO-4",1539]
[{"$nulls":9},"W-3Over 18",{"v":5390.4,"d":"$5,390.40"},{"$nulls":4},"PITTSBURGH","AUBURNALO-5",1281,"AUBURNALO-5",1707]
[{"$nulls":9},"W-2Over 18",{"v":4763.4,"d":"$4,763.40"},{"$nulls":4},"READING","AUBURNALO-6",1305,"AUBURNALO-6",1725]
[{"$nulls":9},"W-1Over 18",{"v":4475.4,"d":"$4,475.40"},{"$nulls":4},"STATE COLLEGE","AUBURNALO-7",1332,"AUBURNALO-7",1743]
[{"$nulls":9},"E-9Over 18",{"v":5112.9,"d":"$5,112.90"},{"$nulls":4},"WILKES-BARRE/SCRANTON","BIRMINGHAMALE-1",819,"BIRMINGHAMALE-1",1041]
[{"$nulls":9},"E-8Over 18",{"v":4505.4,"d":"$4,505.40"},{"$nulls":4},"NEWPORT","BIRMINGHAMALE-2",819,"BIRMINGHAMALE-2",1041]
[{"$nulls":9},"E-7Over 18",{"v":4085.7,"d":"$4,085.70"},{"$nulls":4},"PROVIDENCE","BIRMINGHAMALE-3",819,"BIRMINGHAMALE-3",1041]
[{"$nulls":9},"E-6Over 18",{"v":3484.5,"d":"$3,484.50"},{"$nulls":4},"BEAUFORT/PARRIS ISLAND","BIRMINGHAMALE-4",819,"BIRMINGHAMALE-4",1041]
[{"$nulls":9},"E-5Over 18",{"v":2924.7,"d":"$2,924.70"},{"$nulls":4},"CHARLESTON","BIRMINGHAMALE-5",900,"BIRMINGHAMALE-5",1146]
[{"$nulls":9},"E-4Over 18",{"v":2293.8,"d":"$2,293.80"},{"$nulls":4},"COLUMBIA/FORT JACKSON","BIRMINGHAMALE-6",1044,"BIRMINGHAMALE-6",1389]
[{"$nulls":9},"E-3Over 18",{"v":1923,"d":"$1,923.00"},{"$nulls":4},"FLORENCE","BIRMINGHAMALE-7",1068,"BIRMINGHAMALE-7",1422]
[{"$nulls":9},"E-2Over 18",{"v":1622.1,"d":"$1,622.10"},{"$nulls":4},"GREENVILLE","BIRMINGHAMALE-8",1194,"BIRMINGHAMALE-8",1458]
[{"$nulls":9},"E-1Over 18",0,{"$nulls":4},"MYRTLE BEACH","BIRMINGHAMALE-9",1269,"BIRMINGHAMALE-9",1590]
[{"$nulls":9},"O-10Over 20",{"v":15188.1,"d":"$15,188.10"},{"$nulls":4},"SUMTER/SHAW AFB","BIRMINGHAMALW-1",1044,"BIRMINGHAMALW-1",1392]
[{"$nulls":9},"O-9Over 20",{"v":13283.7,"d":"$13,283.70"},{"$nulls":4},"RAPID CITY/ELLSWORTH AFB","BIRMINGHAMALW-2",1191,"BIRMINGHAMALW-2",1437]
[{"$nulls":9},"O-8Over 20",{"v":12586.2,"d":"$12,586.20"},{"$nulls":4},"SIOUX FALLS","BIRMINGHAMALW-3",1278,"BIRMINGHAMALW-3",1482]
[{"$nulls":9},"O-7Over 20",{"v":11381.4,"d":"$11,381.40"},{"$nulls":4},"CHATTANOOGA","BIRMINGHAMALW-4",1398,"BIRMINGHAMALW-4",1629]
[{"$nulls":9},"O-6Over 20",{"v":9095.7,"d":"$9,095.70"},{"$nulls":4},"JACKSON","BIRMINGHAMALW-5",1431,"BIRMINGHAMALW-5",1803]
[{"$nulls":9},"O-5Over 20",{"v":7959,"d":"$7,959.00"},{"$nulls":4},"JOHNSON CITY/KINGSPORT","BIRMINGHAMALO-1E",1146,"BIRMINGHAMALO-1E",1431]
[{"$nulls":9},"O-4Over 20",{"v":6951.9,"d":"$6,951.90"},{"$nulls":4},"KNOXVILLE","BIRMINGHAMALO-2E",1254,"BIRMINGHAMALO-2E",1476]
[{"$nulls":9},"O-3Over 20",{"v":5955.6,"d":"$5,955.60"},{"$nulls":4},"MANCHESTER/TULLAHOMA","BIRMINGHAMALO-3E",1389,"BIRMINGHAMALO-3E",1656]
[{"$nulls":9},"O-2Over 20",{"v":4377.3,"d":"$4,377.30"},{"$nulls":4},"MEMPHIS","BIRMINGHAMALO-1",939,"BIRMINGHAMALO-1",1173]
[{"$nulls":9},"O-1Over 20",{"v":3454.2,"d":"$3,454.20"},{"$nulls":4},"NASHVILLE","BIRMINGHAMALO-2",1110,"BIRMINGHAMALO-2",1386]
[{"$nulls":9},"O-3EOver 20",{"v":6355.8,"d":"$6,355.80"},{"$nulls":4},"ABILENE/DYESS AFB","BIRMINGHAMALO-3",1302,"BIRMINGHAMALO-3",1479]
[{"$nulls":9},"O-2EOver 20",{"v":5069.1,"d":"$5,069.10"},{"$nulls":4},"AMARILLO","BIRMINGHAMALO-4",1428,"BIRMINGHAMALO-4",1872]
[{"$nulls":9},"O-1EOver 20",{"v":4289.1,"d":"$4,289.10"},{"$nulls":4},"AUSTIN","BIRMINGHAMALO-5",1614,"BIRMINGHAMALO-5",2151]
[{"$nulls":9},"W-5Over 20",{"v":6726.6,"d":"$6,726.60"},{"$nulls":4},"BEAUMONT","BIRMINGHAMALO-6",1629,"BIRMINGHAMALO-6",2175]
[{"$nulls":9},"W-4Over 20",{"v":6104.1,"d":"$6,104.10"},{"$nulls":4},"BROWNSVILLE","BIRMINGHAMALO-7",1647,"BIRMINGHAMALO-7",2196]
[{"$nulls":9},"W-3Over 20",{"v":5606.7,"d":"$5,606.70"},{"$nulls":4},"COLLEGE STATION","TUSCALOOSAALE-1",717,"TUSCALOOSAALE-1",927]
[{"$nulls":9},"W-2Over 20",{"v":4918.8,"d":"$4,918.80"},{"$nulls":4},"CORPUS CHRISTI","TUSCALOOSAALE-2",717,"TUSCALOOSAALE-2",927]
[{"$nulls":9},"W-1Over 20",{"v":4636.8,"d":"$4,636.80"},{"$nulls":4},"DALLAS","TUSCALOOSAALE-3",717,"TUSCALOOSAALE-3",927]
[{"$nulls":9},"E-9Over 20",{"v":5361.6,"d":"$5,361.60"},{"$nulls":4},"EL PASO","TUSCALOOSAALE-4",717,"TUSCALOOSAALE-4",927]
[{"$nulls":9},"E-8Over 20",{"v":4626.9,"d":"$4,626.90"},{"$nulls":4},"FORT HOOD","TUSCALOOSAALE-5",804,"TUSCALOOSAALE-5",1008]
[{"$nulls":9},"E-7Over 20",{"v":4131.3,"d":"$4,131.30"},{"$nulls":4},"FORT WORTH","TUSCALOOSAALE-6",867,"TUSCALOOSAALE-6",1155]
[{"$nulls":9},"E-6Over 20",{"v":3484.5,"d":"$3,484.50"},{"$nulls":4},"GOODFELLOW AFB","TUSCALOOSAALE-7",933,"TUSCALOOSAALE-7",1236]
[{"$nulls":9},"E-5Over 20",{"v":2924.7,"d":"$2,924.70"},{"$nulls":4},"HOUSTON","TUSCALOOSAALE-8",1038,"TUSCALOOSAALE-8",1320]
[{"$nulls":9},"E-4Over 20",{"v":2293.8,"d":"$2,293.80"},{"$nulls":4},"KINGSVILLE","TUSCALOOSAALE-9",1083,"TUSCALOOSAALE-9",1434]
[{"$nulls":9},"E-3Over 20",{"v":1923,"d":"$1,923.00"},{"$nulls":4},"LAUGHLIN AFB/DEL RIO","TUSCALOOSAALW-1",897,"TUSCALOOSAALW-1",1158]
[{"$nulls":9},"E-2Over 20",{"v":1622.1,"d":"$1,622.10"},{"$nulls":4},"LUBBOCK/REESE AFB","TUSCALOOSAALW-2",1038,"TUSCALOOSAALW-2",1269]
[{"$nulls":9},"E-1Over 20",0,{"$nulls":4},"SAN ANTONIO","TUSCALOOSAALW-3",1089,"TUSCALOOSAALW-3",1374]
[{"$nulls":9},"O-10Over 22",{"v":15262.2,"d":"$15,262.20"},{"$nulls":4},"TYLER","TUSCALOOSAALW-4",1176,"TUSCALOOSAALW-4",1458]
[{"$nulls":9},"O-9Over 22",{"v":13475.1,"d":"$13,475.10"},{"$nulls":4},"WACO","TUSCALOOSAALW-5",1254,"TUSCALOOSAALW-5",1554]
[{"$nulls":9},"O-8Over 22",{"v":12896.7,"d":"$12,896.70"},{"$nulls":4},"WICHITA FALLS/SHEPPARD AFB","TUSCALOOSAALO-1E",1008,"TUSCALOOSAALO-1E",1251]
[{"$nulls":9},"O-7Over 22",{"v":11381.4,"d":"$11,381.40"},{"$nulls":4},"OGDEN/HILL AFB","TUSCALOOSAALO-2E",1074,"TUSCALOOSAALO-2E",1359]
[{"$nulls":9},"O-6Over 22",{"v":9334.8,"d":"$9,334.80"},{"$nulls":4},"PROVO","TUSCALOOSAALO-3E",1155,"TUSCALOOSAALO-3E",1473]
[{"$nulls":9},"O-5Over 22",{"v":8198.4,"d":"$8,198.40"},{"$nulls":4},"SALT LAKE CITY","TUSCALOOSAALO-1",846,"TUSCALOOSAALO-1",1026]
[{"$nulls":9},"O-4Over 22",{"v":6951.9,"d":"$6,951.90"},{"$nulls":4},"CHARLOTTESVILLE","TUSCALOOSAALO-2",981,"TUSCALOOSAALO-2",1152]
[{"$nulls":9},"O-3Over 22",{"v":5955.6,"d":"$5,955.60"},{"$nulls":4},"FORT A. P. HILL","TUSCALOOSAALO-3",1104,"TUSCALOOSAALO-3",1371]
[{"$nulls":9},"O-2Over 22",{"v":4377.3,"d":"$4,377.30"},{"$nulls":4},"HAMPTON/NEWPORT NEWS","TUSCALOOSAALO-4",1245,"TUSCALOOSAALO-4",1590]
[{"$nulls":9},"O-1Over 22",{"v":3454.2,"d":"$3,454.20"},{"$nulls":4},"LEXINGTON","TUSCALOOSAALO-5",1311,"TUSCALOOSAALO-5",1746]
[{"$nulls":9},"O-3EOver 22",{"v":6355.8,"d":"$6,355.80"},{"$nulls":4},"NORFOLK/PORTSMOUTH","TUSCALOOSAALO-6",1374,"TUSCALOOSAALO-6",1764]
[{"$nulls":9},"O-2EOver 22",{"v":5069.1,"d":"$5,069.10"},{"$nulls":4},"PETERSBERG/FORT LEE","TUSCALOOSAALO-7",1404,"TUSCALOOSAALO-7",1782]
[{"$nulls":9},"O-1EOver 22",{"v":4289.1,"d":"$4,289.10"},{"$nulls":4},"QUANTICO/WOODBRIDGE","LITTLE ROCKARE-1",699,"LITTLE ROCKARE-1",933]
[{"$nulls":9},"W-5Over 22",{"v":7068,"d":"$7,068.00"},{"$nulls":4},"RICHMOND","LITTLE ROCKARE-2",699,"LITTLE ROCKARE-2",933]
[{"$nulls":9},"W-4Over 22",{"v":6396,"d":"$6,396.00"},{"$nulls":4},"ROANOKE","LITTLE ROCKARE-3",699,"LITTLE ROCKARE-3",933]
[{"$nulls":9},"W-3Over 22",{"v":5736,"d":"$5,736.00"},{"$nulls":4},"WARRENTON/VINT HILL FARM","LITTLE ROCKARE-4",699,"LITTLE ROCKARE-4",933]
[{"$nulls":9},"W-2Over 22",{"v":5021.4,"d":"$5,021.40"},{"$nulls":4},"BURLINGTON","LITTLE ROCKARE-5",804,"LITTLE ROCKARE-5",1008]
[{"$nulls":9},"W-1Over 22",{"v":4636.8,"d":"$4,636.80"},{"$nulls":4},"ABERDEEN","LITTLE ROCKARE-6",903,"LITTLE ROCKARE-6",1203]
[{"$nulls":9},"E-9Over 22",{"v":5571.3,"d":"$5,571.30"},{"$nulls":4},"BREMERTON","LITTLE ROCKARE-7",951,"LITTLE ROCKARE-7",1269]
[{"$nulls":9},"E-8Over 22",{"v":4833.9,"d":"$4,833.90"},{"$nulls":4},"EVERETT","LITTLE ROCKARE-8",1047,"LITTLE ROCKARE-8",1338]
[{"$nulls":9},"E-7Over 22",{"v":4282.8,"d":"$4,282.80"},{"$nulls":4},"PORT ANGELES","LITTLE ROCKARE-9",1107,"LITTLE ROCKARE-9",1458]
[{"$nulls":9},"E-6Over 22",{"v":3484.5,"d":"$3,484.50"},{"$nulls":4},"PULLMAN","LITTLE ROCKARW-1",903,"LITTLE ROCKARW-1",1206]
[{"$nulls":9},"E-5Over 22",{"v":2924.7,"d":"$2,924.70"},{"$nulls":4},"SEATTLE","LITTLE ROCKARW-2",1044,"LITTLE ROCKARW-2",1296]
[{"$nulls":9},"E-4Over 22",{"v":2293.8,"d":"$2,293.80"},{"$nulls":4},"SPOKANE","LITTLE ROCKARW-3",1113,"LITTLE ROCKARW-3",1383]
[{"$nulls":9},"E-3Over 22",{"v":1923,"d":"$1,923.00"},{"$nulls":4},"TACOMA","LITTLE ROCKARW-4",1218,"LITTLE ROCKARW-4",1485]
[{"$nulls":9},"E-2Over 22",{"v":1622.1,"d":"$1,622.10"},{"$nulls":4},"WHIDBEY ISLAND","LITTLE ROCKARW-5",1284,"LITTLE ROCKARW-5",1605]
[{"$nulls":9},"E-1Over 22",0,{"$nulls":4},"YAKIMA","LITTLE ROCKARO-1E",1008,"LITTLE ROCKARO-1E",1281]
[{"$nulls":9},"O-10Over 24",{"v":15579.6,"d":"$15,579.60"},{"$nulls":4},"EAU CLAIRE","LITTLE ROCKARO-2E",1092,"LITTLE ROCKARO-2E",1371]
[{"$nulls":9},"O-9Over 24",{"v":13751.4,"d":"$13,751.40"},{"$nulls":4},"GREEN BAY","LITTLE ROCKARO-3E",1203,"LITTLE ROCKARO-3E",1503]
[{"$nulls":9},"O-8Over 24",{"v":12896.7,"d":"$12,896.70"},{"$nulls":4},"MADISON","LITTLE ROCKARO-1",858,"LITTLE ROCKARO-1",1029]
[{"$nulls":9},"O-7Over 24",{"v":11381.4,"d":"$11,381.40"},{"$nulls":4},"MILWAUKEE","LITTLE ROCKARO-2",981,"LITTLE ROCKARO-2",1200]
[{"$nulls":9},"O-6Over 24",{"v":9577.2,"d":"$9,577.20"},{"$nulls":4},"OSHKOSH/APPLETON","LITTLE ROCKARO-3",1131,"LITTLE ROCKARO-3",1380]
[{"$nulls":9},"O-5Over 24",{"v":8198.4,"d":"$8,198.40"},{"$nulls":4},"SPARTA/FORT MCCOY","LITTLE ROCKARO-4",1275,"LITTLE ROCKARO-4",1653]
[{"$nulls":9},"O-4Over 24",{"v":6951.9,"d":"$6,951.90"},{"$nulls":4},"STEVENS POINT","LITTLE ROCKARO-5",1386,"LITTLE ROCKARO-5",1848]
[{"$nulls":9},"O-3Over 24",{"v":5955.6,"d":"$5,955.60"},{"$nulls":4},"STURGEON BAY","LITTLE ROCKARO-6",1401,"LITTLE ROCKARO-6",1866]
[{"$nulls":9},"O-2Over 24",{"v":4377.3,"d":"$4,377.30"},{"$nulls":4},"BECKLEY","LITTLE ROCKARO-7",1413,"LITTLE ROCKARO-7",1884]
[{"$nulls":9},"O-1Over 24",{"v":3454.2,"d":"$3,454.20"},{"$nulls":4},"CHARLESTON","PINE BLUFFARE-1",642,"PINE BLUFFARE-1",855]
[{"$nulls":9},"O-3EOver 24",{"v":6355.8,"d":"$6,355.80"},{"$nulls":4},"CLARKSBURG","PINE BLUFFARE-2",642,"PINE BLUFFARE-2",855]
[{"$nulls":9},"O-2EOver 24",{"v":5069.1,"d":"$5,069.10"},{"$nulls":4},"HUNTINGTON","PINE BLUFFARE-3",642,"PINE BLUFFARE-3",855]
[{"$nulls":9},"O-1EOver 24",{"v":4289.1,"d":"$4,289.10"},{"$nulls":4},"MARTINSBURG","PINE BLUFFARE-4",642,"PINE BLUFFARE-4",855]
[{"$nulls":9},"W-5Over 24",{"v":7322.1,"d":"$7,322.10"},{"$nulls":4},"MORGANTOWN","PINE BLUFFARE-5",741,"PINE BLUFFARE-5",918]
[{"$nulls":9},"W-4Over 24",{"v":6635.4,"d":"$6,635.40"},{"$nulls":4},"PARKERSBURG","PINE BLUFFARE-6",801,"PINE BLUFFARE-6",993]
[{"$nulls":9},"W-3Over 24",{"v":5873.4,"d":"$5,873.40"},{"$nulls":4},"CHEYENNE","PINE BLUFFARE-7",858,"PINE BLUFFARE-7",1017]
[{"$nulls":9},"W-2Over 24",{"v":5102.7,"d":"$5,102.70"},{"$nulls":5},"PINE BLUFFARE-8",933,"PINE BLUFFARE-8",1041]
[{"$nulls":9},"W-1Over 24",{"v":4636.8,"d":"$4,636.80"},{"$nulls":5},"PINE BLUFFARE-9",957,"PINE BLUFFARE-9",1083]
[{"$nulls":9},"E-9Over 24",{"v":5792.4,"d":"$5,792.40"},{"$nulls":5},"PINE BLUFFARW-1",831,"PINE BLUFFARW-1",996]
[{"$nulls":9},"E-8Over 24",{"v":4948.5,"d":"$4,948.50"},{"$nulls":5},"PINE BLUFFARW-2",933,"PINE BLUFFARW-2",1026]
[{"$nulls":9},"E-7Over 24",{"v":4364.4,"d":"$4,364.40"},{"$nulls":5},"PINE BLUFFARW-3",960,"PINE BLUFFARW-3",1059]
[{"$nulls":9},"E-6Over 24",{"v":3484.5,"d":"$3,484.50"},{"$nulls":5},"PINE BLUFFARW-4",999,"PINE BLUFFARW-4",1092]
[{"$nulls":9},"E-5Over 24",{"v":2924.7,"d":"$2,924.70"},{"$nulls":5},"PINE BLUFFARW-5",1023,"PINE BLUFFARW-5",1131]
[{"$nulls":9},"E-4Over 24",{"v":2293.8,"d":"$2,293.80"},{"$nulls":5},"PINE BLUFFARO-1E",918,"PINE BLUFFARO-1E",1023]
[{"$nulls":9},"E-3Over 24",{"v":1923,"d":"$1,923.00"},{"$nulls":5},"PINE BLUFFARO-2E",951,"PINE BLUFFARO-2E",1053]
[{"$nulls":9},"E-2Over 24",{"v":1622.1,"d":"$1,622.10"},{"$nulls":5},"PINE BLUFFARO-3E",993,"PINE BLUFFARO-3E",1098]
[{"$nulls":9},"E-1Over 24",0,{"$nulls":5},"PINE BLUFFARO-1",792,"PINE BLUFFARO-1",924]
[{"$nulls":9},"O-10Over 26",{"v":16132.5,"d":"$16,132.50"},{"$nulls":5},"PINE BLUFFARO-2",897,"PINE BLUFFARO-2",993]
[{"$nulls":9},"O-9Over 26",{"v":14233.8,"d":"$14,233.80"},{"$nulls":5},"PINE BLUFFARO-3",966,"PINE BLUFFARO-3",1056]
[{"$nulls":9},"O-8Over 26",{"v":12896.7,"d":"$12,896.70"},{"$nulls":5},"PINE BLUFFARO-4",1020,"PINE BLUFFARO-4",1143]
[{"$nulls":9},"O-7Over 26",{"v":11439.3,"d":"$11,439.30"},{"$nulls":5},"PINE BLUFFARO-5",1035,"PINE BLUFFARO-5",1206]
[{"$nulls":9},"O-6Over 26",{"v":10047,"d":"$10,047.00"},{"$nulls":5},"PINE BLUFFARO-6",1059,"PINE BLUFFARO-6",1218]
[{"$nulls":9},"O-5Over 26",{"v":8198.4,"d":"$8,198.40"},{"$nulls":5},"PINE BLUFFARO-7",1080,"PINE BLUFFARO-7",1230]
[{"$nulls":9},"O-4Over 26",{"v":6951.9,"d":"$6,951.90"},{"$nulls":5},"FORT CHAFFEE/FORT SMITHARE-1",588,"FORT CHAFFEE/FORT SMITHARE-1",783]
[{"$nulls":9},"O-3Over 26",{"v":5955.6,"d":"$5,955.60"},{"$nulls":5},"FORT CHAFFEE/FORT SMITHARE-2",588,"FORT CHAFFEE/FORT SMITHARE-2",783]
[{"$nulls":9},"O-2Over 26",{"v":4377.3,"d":"$4,377.30"},{"$nulls":5},"FORT CHAFFEE/FORT SMITHARE-3",588,"FORT CHAFFEE/FORT SMITHARE-3",783]
[{"$nulls":9},"O-1Over 26",{"v":3454.2,"d":"$3,454.20"},{"$nulls":5},"FORT CHAFFEE/FORT SMITHARE-4",588,"FORT CHAFFEE/FORT SMITHARE-4",783]
[{"$nulls":9},"O-3EOver 26",{"v":6355.8,"d":"$6,355.80"},{"$nulls":5},"FORT CHAFFEE/FORT SMITHARE-5",678,"FORT CHAFFEE/FORT SMITHARE-5",834]
[{"$nulls":9},"O-2EOver 26",{"v":5069.1,"d":"$5,069.10"},{"$nulls":5},"FORT CHAFFEE/FORT SMITHARE-6",777,"FORT CHAFFEE/FORT SMITHARE-6",1035]
[{"$nulls":9},"O-1EOver 26",{"v":4289.1,"d":"$4,289.10"},{"$nulls":5},"FORT CHAFFEE/FORT SMITHARE-7",792,"FORT CHAFFEE/FORT SMITHARE-7",1056]
[{"$nulls":9},"W-5Over 26",{"v":7603.5,"d":"$7,603.50"},{"$nulls":5},"FORT CHAFFEE/FORT SMITHARE-8",876,"FORT CHAFFEE/FORT SMITHARE-8",1080]
[{"$nulls":9},"W-4Over 26",{"v":6909,"d":"$6,909.00"},{"$nulls":5},"FORT CHAFFEE/FORT SMITHARE-9",936,"FORT CHAFFEE/FORT SMITHARE-9",1152]
[{"$nulls":9},"W-3Over 26",{"v":6060,"d":"$6,060.00"},{"$nulls":5},"FORT CHAFFEE/FORT SMITHARW-1",777,"FORT CHAFFEE/FORT SMITHARW-1",1035]
[{"$nulls":9},"W-2Over 26",{"v":5102.7,"d":"$5,102.70"},{"$nulls":5},"FORT CHAFFEE/FORT SMITHARW-2",873,"FORT CHAFFEE/FORT SMITHARW-2",1065]
[{"$nulls":9},"W-1Over 26",{"v":4636.8,"d":"$4,636.80"},{"$nulls":5},"FORT CHAFFEE/FORT SMITHARW-3",942,"FORT CHAFFEE/FORT SMITHARW-3",1095]
[{"$nulls":9},"E-9Over 26",{"v":6129.9,"d":"$6,129.90"},{"$nulls":5},"FORT CHAFFEE/FORT SMITHARW-4",1038,"FORT CHAFFEE/FORT SMITHARW-4",1173]
[{"$nulls":9},"E-8Over 26",{"v":5231.4,"d":"$5,231.40"},{"$nulls":5},"FORT CHAFFEE/FORT SMITHARW-5",1062,"FORT CHAFFEE/FORT SMITHARW-5",1266]
[{"$nulls":9},"E-7Over 26",{"v":4674.6,"d":"$4,674.60"},{"$nulls":5},"FORT CHAFFEE/FORT SMITHARO-1E",834,"FORT CHAFFEE/FORT SMITHARO-1E",1062]
[{"$nulls":9},"E-6Over 26",{"v":3484.5,"d":"$3,484.50"},{"$nulls":5},"FORT CHAFFEE/FORT SMITHARO-2E",924,"FORT CHAFFEE/FORT SMITHARO-2E",1092]
[{"$nulls":9},"E-5Over 26",{"v":2924.7,"d":"$2,924.70"},{"$nulls":5},"FORT CHAFFEE/FORT SMITHARO-3E",1035,"FORT CHAFFEE/FORT SMITHARO-3E",1188]
[{"$nulls":9},"E-4Over 26",{"v":2293.8,"d":"$2,293.80"},{"$nulls":5},"FORT CHAFFEE/FORT SMITHARO-1",729,"FORT CHAFFEE/FORT SMITHARO-1",858]
[{"$nulls":9},"E-3Over 26",{"v":1923,"d":"$1,923.00"},{"$nulls":5},"FORT CHAFFEE/FORT SMITHARO-2",816,"FORT CHAFFEE/FORT SMITHARO-2",1029]
[{"$nulls":9},"E-2Over 26",{"v":1622.1,"d":"$1,622.10"},{"$nulls":5},"FORT CHAFFEE/FORT SMITHARO-3",963,"FORT CHAFFEE/FORT SMITHARO-3",1095]
[{"$nulls":9},"E-1Over 26",0,{"$nulls":5},"FORT CHAFFEE/FORT SMITHARO-4",1059,"FORT CHAFFEE/FORT SMITHARO-4",1302]
[{"$nulls":9},"O-10Over 28",{"v":16132.5,"d":"$16,132.50"},{"$nulls":5},"FORT CHAFFEE/FORT SMITHARO-5",1089,"FORT CHAFFEE/FORT SMITHARO-5",1452]
[{"$nulls":9},"O-9Over 28",{"v":14233.8,"d":"$14,233.80"},{"$nulls":5},"FORT CHAFFEE/FORT SMITHARO-6",1101,"FORT CHAFFEE/FORT SMITHARO-6",1467]
[{"$nulls":9},"O-8Over 28",{"v":12896.7,"d":"$12,896.70"},{"$nulls":5},"FORT CHAFFEE/FORT SMITHARO-7",1116,"FORT CHAFFEE/FORT SMITHARO-7",1482]
[{"$nulls":9},"O-7Over 28",{"v":11439.3,"d":"$11,439.30"},{"$nulls":5},"FAYETTEVILLEARE-1",612,"FAYETTEVILLEARE-1",798]
[{"$nulls":9},"O-6Over 28",{"v":10047,"d":"$10,047.00"},{"$nulls":5},"FAYETTEVILLEARE-2",612,"FAYETTEVILLEARE-2",798]
[{"$nulls":9},"O-5Over 28",{"v":8198.4,"d":"$8,198.40"},{"$nulls":5},"FAYETTEVILLEARE-3",612,"FAYETTEVILLEARE-3",798]
[{"$nulls":9},"O-4Over 28",{"v":6951.9,"d":"$6,951.90"},{"$nulls":5},"FAYETTEVILLEARE-4",612,"FAYETTEVILLEARE-4",798]
[{"$nulls":9},"O-3Over 28",{"v":5955.6,"d":"$5,955.60"},{"$nulls":5},"FAYETTEVILLEARE-5",681,"FAYETTEVILLEARE-5",879]
[{"$nulls":9},"O-2Over 28",{"v":4377.3,"d":"$4,377.30"},{"$nulls":5},"FAYETTEVILLEARE-6",786,"FAYETTEVILLEARE-6",1047]
[{"$nulls":9},"O-1Over 28",{"v":3454.2,"d":"$3,454.20"},{"$nulls":5},"FAYETTEVILLEARE-7",816,"FAYETTEVILLEARE-7",1089]
[{"$nulls":9},"O-3EOver 28",{"v":6355.8,"d":"$6,355.80"},{"$nulls":5},"FAYETTEVILLEARE-8",912,"FAYETTEVILLEARE-8",1131]
[{"$nulls":9},"O-2EOver 28",{"v":5069.1,"d":"$5,069.10"},{"$nulls":5},"FAYETTEVILLEARE-9",963,"FAYETTEVILLEARE-9",1254]
[{"$nulls":9},"O-1EOver 28",{"v":4289.1,"d":"$4,289.10"},{"$nulls":5},"FAYETTEVILLEARW-1",786,"FAYETTEVILLEARW-1",1047]
[{"$nulls":9},"W-5Over 28",{"v":7603.5,"d":"$7,603.50"},{"$nulls":5},"FAYETTEVILLEARW-2",909,"FAYETTEVILLEARW-2",1107]
[{"$nulls":9},"W-4Over 28",{"v":6909,"d":"$6,909.00"},{"$nulls":5},"FAYETTEVILLEARW-3",969,"FAYETTEVILLEARW-3",1161]
[{"$nulls":9},"W-3Over 28",{"v":6060,"d":"$6,060.00"},{"$nulls":5},"FAYETTEVILLEARW-4",1056,"FAYETTEVILLEARW-4",1287]
[{"$nulls":9},"W-2Over 28",{"v":5102.7,"d":"$5,102.70"},{"$nulls":5},"FAYETTEVILLEARW-5",1098,"FAYETTEVILLEARW-5",1437]
[{"$nulls":9},"W-1Over 28",{"v":4636.8,"d":"$4,636.80"},{"$nulls":5},"FAYETTEVILLEARO-1E",879,"FAYETTEVILLEARO-1E",1098]
[{"$nulls":9},"E-9Over 28",{"v":6129.9,"d":"$6,129.90"},{"$nulls":5},"FAYETTEVILLEARO-2E",951,"FAYETTEVILLEARO-2E",1152]
[{"$nulls":9},"E-8Over 28",{"v":5231.4,"d":"$5,231.40"},{"$nulls":5},"FAYETTEVILLEARO-3E",1047,"FAYETTEVILLEARO-3E",1311]
[{"$nulls":9},"E-7Over 28",{"v":4674.6,"d":"$4,674.60"},{"$nulls":5},"FAYETTEVILLEARO-1",714,"FAYETTEVILLEARO-1",897]
[{"$nulls":9},"E-6Over 28",{"v":3484.5,"d":"$3,484.50"},{"$nulls":5},"FAYETTEVILLEARO-2",849,"FAYETTEVILLEARO-2",1044]
[{"$nulls":9},"E-5Over 28",{"v":2924.7,"d":"$2,924.70"},{"$nulls":5},"FAYETTEVILLEARO-3",987,"FAYETTEVILLEARO-3",1158]
[{"$nulls":9},"E-4Over 28",{"v":2293.8,"d":"$2,293.80"},{"$nulls":5},"FAYETTEVILLEARO-4",1122,"FAYETTEVILLEARO-4",1497]
[{"$nulls":9},"E-3Over 28",{"v":1923,"d":"$1,923.00"},{"$nulls":5},"FAYETTEVILLEARO-5",1305,"FAYETTEVILLEARO-5",1740]
[{"$nulls":9},"E-2Over 28",{"v":1622.1,"d":"$1,622.10"},{"$nulls":5},"FAYETTEVILLEARO-6",1317,"FAYETTEVILLEARO-6",1758]
[{"$nulls":9},"E-1Over 28",0,{"$nulls":5},"FAYETTEVILLEARO-7",1332,"FAYETTEVILLEARO-7",1776]
[{"$nulls":9},"O-10Over 30",{"v":16939.2,"d":"$16,939.20"},{"$nulls":5},"JONESBOROARE-1",636,"JONESBOROARE-1",849]
[{"$nulls":9},"O-9Over 30",{"v":14946,"d":"$14,946.00"},{"$nulls":5},"JONESBOROARE-2",636,"JONESBOROARE-2",849]
[{"$nulls":9},"O-8Over 30",{"v":13219.2,"d":"$13,219.20"},{"$nulls":5},"JONESBOROARE-3",636,"JONESBOROARE-3",849]
[{"$nulls":9},"O-7Over 30",{"v":11668.2,"d":"$11,668.20"},{"$nulls":5},"JONESBOROARE-4",636,"JONESBOROARE-4",849]
[{"$nulls":9},"O-6Over 30",{"v":10247.7,"d":"$10,247.70"},{"$nulls":5},"JONESBOROARE-5",711,"JONESBOROARE-5",948]
[{"$nulls":9},"O-5Over 30",{"v":8198.4,"d":"$8,198.40"},{"$nulls":5},"JONESBOROARE-6",783,"JONESBOROARE-6",1041]
[{"$nulls":9},"O-4Over 30",{"v":6951.9,"d":"$6,951.90"},{"$nulls":5},"JONESBOROARE-7",855,"JONESBOROARE-7",1104]
[{"$nulls":9},"O-3Over 30",{"v":5955.6,"d":"$5,955.60"},{"$nulls":5},"JONESBOROARE-8",969,"JONESBOROARE-8",1173]
[{"$nulls":9},"O-2Over 30",{"v":4377.3,"d":"$4,377.30"},{"$nulls":5},"JONESBOROARE-9",996,"JONESBOROARE-9",1254]
[{"$nulls":9},"O-1Over 30",{"v":3454.2,"d":"$3,454.20"},{"$nulls":5},"JONESBOROARW-1",813,"JONESBOROARW-1",1044]
[{"$nulls":9},"O-3EOver 30",{"v":6355.8,"d":"$6,355.80"},{"$nulls":5},"JONESBOROARW-2",966,"JONESBOROARW-2",1134]
[{"$nulls":9},"O-2EOver 30",{"v":5069.1,"d":"$5,069.10"},{"$nulls":5},"JONESBOROARW-3",999,"JONESBOROARW-3",1218]
[{"$nulls":9},"O-1EOver 30",{"v":4289.1,"d":"$4,289.10"},{"$nulls":5},"JONESBOROARW-4",1059,"JONESBOROARW-4",1266]
[{"$nulls":9},"W-5Over 30",{"v":7983.9,"d":"$7,983.90"},{"$nulls":5},"JONESBOROARW-5",1122,"JONESBOROARW-5",1326]
[{"$nulls":9},"W-4Over 30",{"v":7047,"d":"$7,047.00"},{"$nulls":5},"JONESBOROARO-1E",948,"JONESBOROARO-1E",1119]
[{"$nulls":9},"W-3Over 30",{"v":6060,"d":"$6,060.00"},{"$nulls":5},"JONESBOROARO-2E",990,"JONESBOROARO-2E",1206]
[{"$nulls":9},"W-2Over 30",{"v":5102.7,"d":"$5,102.70"},{"$nulls":5},"JONESBOROARO-3E",1041,"JONESBOROARO-3E",1275]
[{"$nulls":9},"W-1Over 30",{"v":4636.8,"d":"$4,636.80"},{"$nulls":5},"JONESBOROARO-1",750,"JONESBOROARO-1",960]
[{"$nulls":9},"E-9Over 30",{"v":6436.2,"d":"$6,436.20"},{"$nulls":5},"JONESBOROARO-2",915,"JONESBOROARO-2",1041]
[{"$nulls":9},"E-8Over 30",{"v":5336.4,"d":"$5,336.40"},{"$nulls":5},"JONESBOROARO-3",1008,"JONESBOROARO-3",1215]
[{"$nulls":9},"E-7Over 30",{"v":4674.6,"d":"$4,674.60"},{"$nulls":5},"JONESBOROARO-4",1113,"JONESBOROARO-4",1347]
[{"$nulls":9},"E-6Over 30",{"v":3484.5,"d":"$3,484.50"},{"$nulls":5},"JONESBOROARO-5",1152,"JONESBOROARO-5",1443]
[{"$nulls":9},"E-5Over 30",{"v":2924.7,"d":"$2,924.70"},{"$nulls":5},"JONESBOROARO-6",1218,"JONESBOROARO-6",1455]
[{"$nulls":9},"E-4Over 30",{"v":2293.8,"d":"$2,293.80"},{"$nulls":5},"JONESBOROARO-7",1242,"JONESBOROARO-7",1470]
[{"$nulls":9},"E-3Over 30",{"v":1923,"d":"$1,923.00"},{"$nulls":5},"PHOENIXAZE-1",909,"PHOENIXAZE-1",1197]
[{"$nulls":9},"E-2Over 30",{"v":1622.1,"d":"$1,622.10"},{"$nulls":5},"PHOENIXAZE-2",909,"PHOENIXAZE-2",1197]
[{"$nulls":9},"E-1Over 30",0,{"$nulls":5},"PHOENIXAZE-3",909,"PHOENIXAZE-3",1197]
[{"$nulls":9},"O-10Over 32",{"v":16939.2,"d":"$16,939.20"},{"$nulls":5},"PHOENIXAZE-4",909,"PHOENIXAZE-4",1197]
[{"$nulls":9},"O-9Over 32",{"v":14946,"d":"$14,946.00"},{"$nulls":5},"PHOENIXAZE-5",1008,"PHOENIXAZE-5",1335]
[{"$nulls":9},"O-8Over 32",{"v":13219.2,"d":"$13,219.20"},{"$nulls":5},"PHOENIXAZE-6",1083,"PHOENIXAZE-6",1443]
[{"$nulls":9},"O-7Over 32",{"v":11668.2,"d":"$11,668.20"},{"$nulls":5},"PHOENIXAZE-7",1203,"PHOENIXAZE-7",1464]
[{"$nulls":9},"O-6Over 32",{"v":10247.7,"d":"$10,247.70"},{"$nulls":5},"PHOENIXAZE-8",1356,"PHOENIXAZE-8",1485]
[{"$nulls":9},"O-5Over 32",{"v":8198.4,"d":"$8,198.40"},{"$nulls":5},"PHOENIXAZE-9",1392,"PHOENIXAZE-9",1518]
[{"$nulls":9},"O-4Over 32",{"v":6951.9,"d":"$6,951.90"},{"$nulls":5},"PHOENIXAZW-1",1143,"PHOENIXAZW-1",1443]
[{"$nulls":9},"O-3Over 32",{"v":5955.6,"d":"$5,955.60"},{"$nulls":5},"PHOENIXAZW-2",1356,"PHOENIXAZW-2",1473]
[{"$nulls":9},"O-2Over 32",{"v":4377.3,"d":"$4,377.30"},{"$nulls":5},"PHOENIXAZW-3",1395,"PHOENIXAZW-3",1500]
[{"$nulls":9},"O-1Over 32",{"v":3454.2,"d":"$3,454.20"},{"$nulls":5},"PHOENIXAZW-4",1449,"PHOENIXAZW-4",1524]
[{"$nulls":9},"O-3EOver 32",{"v":6355.8,"d":"$6,355.80"},{"$nulls":5},"PHOENIXAZW-5",1470,"PHOENIXAZW-5",1551]
[{"$nulls":9},"O-2EOver 32",{"v":5069.1,"d":"$5,069.10"},{"$nulls":5},"PHOENIXAZO-1E",1335,"PHOENIXAZO-1E",1467]
[{"$nulls":9},"O-1EOver 32",{"v":4289.1,"d":"$4,289.10"},{"$nulls":5},"PHOENIXAZO-2E",1383,"PHOENIXAZO-2E",1497]
[{"$nulls":9},"W-5Over 32",{"v":7983.9,"d":"$7,983.90"},{"$nulls":5},"PHOENIXAZO-3E",1443,"PHOENIXAZO-3E",1527]
[{"$nulls":9},"W-4Over 32",{"v":7047,"d":"$7,047.00"},{"$nulls":5},"PHOENIXAZO-1",1056,"PHOENIXAZO-1",1347]
[{"$nulls":9},"W-3Over 32",{"v":6060,"d":"$6,060.00"},{"$nulls":5},"PHOENIXAZO-2",1287,"PHOENIXAZO-2",1440]
[{"$nulls":9},"W-2Over 32",{"v":5102.7,"d":"$5,102.70"},{"$nulls":5},"PHOENIXAZO-3",1404,"PHOENIXAZO-3",1500]
[{"$nulls":9},"W-1Over 32",{"v":4636.8,"d":"$4,636.80"},{"$nulls":5},"PHOENIXAZO-4",1467,"PHOENIXAZO-4",1560]
[{"$nulls":9},"E-9Over 32",{"v":6436.2,"d":"$6,436.20"},{"$nulls":5},"PHOENIXAZO-5",1479,"PHOENIXAZO-5",1605]
[{"$nulls":9},"E-8Over 32",{"v":5336.4,"d":"$5,336.40"},{"$nulls":5},"PHOENIXAZO-6",1500,"PHOENIXAZO-6",1623]
[{"$nulls":9},"E-7Over 32",{"v":4674.6,"d":"$4,674.60"},{"$nulls":5},"PHOENIXAZO-7",1530,"PHOENIXAZO-7",1638]
[{"$nulls":9},"E-6Over 32",{"v":3484.5,"d":"$3,484.50"},{"$nulls":5},"FORT HUACHUCAAZE-1",714,"FORT HUACHUCAAZE-1",888]
[{"$nulls":9},"E-5Over 32",{"v":2924.7,"d":"$2,924.70"},{"$nulls":5},"FORT HUACHUCAAZE-2",714,"FORT HUACHUCAAZE-2",888]
[{"$nulls":9},"E-4Over 32",{"v":2293.8,"d":"$2,293.80"},{"$nulls":5},"FORT HUACHUCAAZE-3",714,"FORT HUACHUCAAZE-3",888]
[{"$nulls":9},"E-3Over 32",{"v":1923,"d":"$1,923.00"},{"$nulls":5},"FORT HUACHUCAAZE-4",714,"FORT HUACHUCAAZE-4",888]
[{"$nulls":9},"E-2Over 32",{"v":1622.1,"d":"$1,622.10"},{"$nulls":5},"FORT HUACHUCAAZE-5",780,"FORT HUACHUCAAZE-5",963]
[{"$nulls":9},"E-1Over 32",0,{"$nulls":5},"FORT HUACHUCAAZE-6",882,"FORT HUACHUCAAZE-6",1173]
[{"$nulls":9},"O-10Over 34",{"v":17785.8,"d":"$17,785.80"},{"$nulls":5},"FORT HUACHUCAAZE-7",984,"FORT HUACHUCAAZE-7",1311]
[{"$nulls":9},"O-9Over 34",{"v":15693.3,"d":"$15,693.30"},{"$nulls":5},"FORT HUACHUCAAZE-8",1095,"FORT HUACHUCAAZE-8",1458]
[{"$nulls":9},"O-8Over 34",{"v":13549.8,"d":"$13,549.80"},{"$nulls":5},"FORT HUACHUCAAZE-9",1179,"FORT HUACHUCAAZE-9",1572]
[{"$nulls":9},"O-7Over 34",{"v":11668.2,"d":"$11,668.20"},{"$nulls":5},"FORT HUACHUCAAZW-1",882,"FORT HUACHUCAAZW-1",1179]
[{"$nulls":9},"O-6Over 34",{"v":10247.7,"d":"$10,247.70"},{"$nulls":5},"FORT HUACHUCAAZW-2",1029,"FORT HUACHUCAAZW-2",1371]
[{"$nulls":9},"O-5Over 34",{"v":8198.4,"d":"$8,198.40"},{"$nulls":5},"FORT HUACHUCAAZW-3",1167,"FORT HUACHUCAAZW-3",1554]
[{"$nulls":9},"O-4Over 34",{"v":6951.9,"d":"$6,951.90"},{"$nulls":5},"FORT HUACHUCAAZW-4",1209,"FORT HUACHUCAAZW-4",1578]
[{"$nulls":9},"O-3Over 34",{"v":5955.6,"d":"$5,955.60"},{"$nulls":5},"FORT HUACHUCAAZW-5",1344,"FORT HUACHUCAAZW-5",1605]
[{"$nulls":9},"O-2Over 34",{"v":4377.3,"d":"$4,377.30"},{"$nulls":5},"FORT HUACHUCAAZO-1E",1005,"FORT HUACHUCAAZO-1E",1341]
[{"$nulls":9},"O-1Over 34",{"v":3454.2,"d":"$3,454.20"},{"$nulls":5},"FORT HUACHUCAAZO-2E",1146,"FORT HUACHUCAAZO-2E",1527]
[{"$nulls":9},"O-3EOver 34",{"v":6355.8,"d":"$6,355.80"},{"$nulls":5},"FORT HUACHUCAAZO-3E",1185,"FORT HUACHUCAAZO-3E",1581]
[{"$nulls":9},"O-2EOver 34",{"v":5069.1,"d":"$5,069.10"},{"$nulls":5},"FORT HUACHUCAAZO-1",813,"FORT HUACHUCAAZO-1",987]
[{"$nulls":9},"O-1EOver 34",{"v":4289.1,"d":"$4,289.10"},{"$nulls":5},"FORT HUACHUCAAZO-2",939,"FORT HUACHUCAAZO-2",1170]
[{"$nulls":9},"W-5Over 34",{"v":8383.2,"d":"$8,383.20"},{"$nulls":5},"FORT HUACHUCAAZO-3",1161,"FORT HUACHUCAAZO-3",1545]
[{"$nulls":9},"W-4Over 34",{"v":7047,"d":"$7,047.00"},{"$nulls":5},"FORT HUACHUCAAZO-4",1326,"FORT HUACHUCAAZO-4",1614]
[{"$nulls":9},"W-3Over 34",{"v":6060,"d":"$6,060.00"},{"$nulls":5},"FORT HUACHUCAAZO-5",1413,"FORT HUACHUCAAZO-5",1659]
[{"$nulls":9},"W-2Over 34",{"v":5102.7,"d":"$5,102.70"},{"$nulls":5},"FORT HUACHUCAAZO-6",1554,"FORT HUACHUCAAZO-6",1674]
[{"$nulls":9},"W-1Over 34",{"v":4636.8,"d":"$4,636.80"},{"$nulls":5},"FORT HUACHUCAAZO-7",1584,"FORT HUACHUCAAZO-7",1692]
[{"$nulls":9},"E-9Over 34",{"v":6758.4,"d":"$6,758.40"},{"$nulls":5},"DAVIS-MONTHAN AFBAZE-1",768,"DAVIS-MONTHAN AFBAZE-1",1023]
[{"$nulls":9},"E-8Over 34",{"v":5336.4,"d":"$5,336.40"},{"$nulls":5},"DAVIS-MONTHAN AFBAZE-2",768,"DAVIS-MONTHAN AFBAZE-2",1023]
[{"$nulls":9},"E-7Over 34",{"v":4674.6,"d":"$4,674.60"},{"$nulls":5},"DAVIS-MONTHAN AFBAZE-3",768,"DAVIS-MONTHAN AFBAZE-3",1023]
[{"$nulls":9},"E-6Over 34",{"v":3484.5,"d":"$3,484.50"},{"$nulls":5},"DAVIS-MONTHAN AFBAZE-4",768,"DAVIS-MONTHAN AFBAZE-4",1023]
[{"$nulls":9},"E-5Over 34",{"v":2924.7,"d":"$2,924.70"},{"$nulls":5},"DAVIS-MONTHAN AFBAZE-5",858,"DAVIS-MONTHAN AFBAZE-5",1128]
[{"$nulls":9},"E-4Over 34",{"v":2293.8,"d":"$2,293.80"},{"$nulls":5},"DAVIS-MONTHAN AFBAZE-6",972,"DAVIS-MONTHAN AFBAZE-6",1296]
[{"$nulls":9},"E-3Over 34",{"v":1923,"d":"$1,923.00"},{"$nulls":5},"DAVIS-MONTHAN AFBAZE-7",1029,"DAVIS-MONTHAN AFBAZE-7",1314]
[{"$nulls":9},"E-2Over 34",{"v":1622.1,"d":"$1,622.10"},{"$nulls":5},"DAVIS-MONTHAN AFBAZE-8",1161,"DAVIS-MONTHAN AFBAZE-8",1332]
[{"$nulls":9},"E-1Over 34",0,{"$nulls":5},"DAVIS-MONTHAN AFBAZE-9",1212,"DAVIS-MONTHAN AFBAZE-9",1407]
[{"$nulls":9},"O-10Over 36",{"v":17785.8,"d":"$17,785.80"},{"$nulls":5},"DAVIS-MONTHAN AFBAZW-1",984,"DAVIS-MONTHAN AFBAZW-1",1296]
[{"$nulls":9},"O-9Over 36",{"v":15693.3,"d":"$15,693.30"},{"$nulls":5},"DAVIS-MONTHAN AFBAZW-2",1158,"DAVIS-MONTHAN AFBAZW-2",1320]
[{"$nulls":9},"O-8Over 36",{"v":13549.8,"d":"$13,549.80"},{"$nulls":5},"DAVIS-MONTHAN AFBAZW-3",1218,"DAVIS-MONTHAN AFBAZW-3",1344]
[{"$nulls":9},"O-7Over 36",{"v":11668.2,"d":"$11,668.20"},{"$nulls":5},"DAVIS-MONTHAN AFBAZW-4",1299,"DAVIS-MONTHAN AFBAZW-4",1431]
[{"$nulls":9},"O-6Over 36",{"v":10247.7,"d":"$10,247.70"},{"$nulls":5},"DAVIS-MONTHAN AFBAZW-5",1317,"DAVIS-MONTHAN AFBAZW-5",1533]
[{"$nulls":9},"O-5Over 36",{"v":8198.4,"d":"$8,198.40"},{"$nulls":5},"DAVIS-MONTHAN AFBAZO-1E",1128,"DAVIS-MONTHAN AFBAZO-1E",1317]
[{"$nulls":9},"O-4Over 36",{"v":6951.9,"d":"$6,951.90"},{"$nulls":5},"DAVIS-MONTHAN AFBAZO-2E",1200,"DAVIS-MONTHAN AFBAZO-2E",1341]
[{"$nulls":9},"O-3Over 36",{"v":5955.6,"d":"$5,955.60"},{"$nulls":5},"DAVIS-MONTHAN AFBAZO-3E",1296,"DAVIS-MONTHAN AFBAZO-3E",1446]
[{"$nulls":9},"O-2Over 36",{"v":4377.3,"d":"$4,377.30"},{"$nulls":5},"DAVIS-MONTHAN AFBAZO-1",921,"DAVIS-MONTHAN AFBAZO-1",1146]
[{"$nulls":9},"O-1Over 36",{"v":3454.2,"d":"$3,454.20"},{"$nulls":5},"DAVIS-MONTHAN AFBAZO-2",1092,"DAVIS-MONTHAN AFBAZO-2",1293]
[{"$nulls":9},"O-3EOver 36",{"v":6355.8,"d":"$6,355.80"},{"$nulls":5},"DAVIS-MONTHAN AFBAZO-3",1236,"DAVIS-MONTHAN AFBAZO-3",1344]
[{"$nulls":9},"O-2EOver 36",{"v":5069.1,"d":"$5,069.10"},{"$nulls":5},"DAVIS-MONTHAN AFBAZO-4",1314,"DAVIS-MONTHAN AFBAZO-4",1572]
[{"$nulls":9},"O-1EOver 36",{"v":4289.1,"d":"$4,289.10"},{"$nulls":5},"DAVIS-MONTHAN AFBAZO-5",1326,"DAVIS-MONTHAN AFBAZO-5",1734]
[{"$nulls":9},"W-5Over 36",{"v":8383.2,"d":"$8,383.20"},{"$nulls":5},"DAVIS-MONTHAN AFBAZO-6",1344,"DAVIS-MONTHAN AFBAZO-6",1752]
[{"$nulls":9},"W-4Over 36",{"v":7047,"d":"$7,047.00"},{"$nulls":5},"DAVIS-MONTHAN AFBAZO-7",1371,"DAVIS-MONTHAN AFBAZO-7",1770]
[{"$nulls":9},"W-3Over 36",{"v":6060,"d":"$6,060.00"},{"$nulls":5},"YUMAAZE-1",762,"YUMAAZE-1",1002]
[{"$nulls":9},"W-2Over 36",{"v":5102.7,"d":"$5,102.70"},{"$nulls":5},"YUMAAZE-2",762,"YUMAAZE-2",1002]
[{"$nulls":9},"W-1Over 36",{"v":4636.8,"d":"$4,636.80"},{"$nulls":5},"YUMAAZE-3",762,"YUMAAZE-3",1002]
[{"$nulls":9},"E-9Over 36",{"v":6758.4,"d":"$6,758.40"},{"$nulls":5},"YUMAAZE-4",762,"YUMAAZE-4",1002]
[{"$nulls":9},"E-8Over 36",{"v":5336.4,"d":"$5,336.40"},{"$nulls":5},"YUMAAZE-5",870,"YUMAAZE-5",1083]
[{"$nulls":9},"E-7Over 36",{"v":4674.6,"d":"$4,674.60"},{"$nulls":5},"YUMAAZE-6",963,"YUMAAZE-6",1284]
[{"$nulls":9},"E-6Over 36",{"v":3484.5,"d":"$3,484.50"},{"$nulls":5},"YUMAAZE-7",1008,"YUMAAZE-7",1320]
[{"$nulls":9},"E-5Over 36",{"v":2924.7,"d":"$2,924.70"},{"$nulls":5},"YUMAAZE-8",1122,"YUMAAZE-8",1362]
[{"$nulls":9},"E-4Over 36",{"v":2293.8,"d":"$2,293.80"},{"$nulls":5},"YUMAAZE-9",1185,"YUMAAZE-9",1422]
[{"$nulls":9},"E-3Over 36",{"v":1923,"d":"$1,923.00"},{"$nulls":5},"YUMAAZW-1",972,"YUMAAZW-1",1284]
[{"$nulls":9},"E-2Over 36",{"v":1622.1,"d":"$1,622.10"},{"$nulls":5},"YUMAAZW-2",1119,"YUMAAZW-2",1338]
[{"$nulls":9},"E-1Over 36",0,{"$nulls":5},"YUMAAZW-3",1191,"YUMAAZW-3",1386]
[{"$nulls":9},"O-10Over 38 ",{"v":18675.3,"d":"$18,675.30"},{"$nulls":5},"YUMAAZW-4",1293,"YUMAAZW-4",1434]
[{"$nulls":9},"O-9Over 38 ",{"v":16477.8,"d":"$16,477.80"},{"$nulls":5},"YUMAAZW-5",1329,"YUMAAZW-5",1488]
[{"$nulls":9},"O-8Over 38 ",{"v":13549.8,"d":"$13,549.80"},{"$nulls":5},"YUMAAZO-1E",1083,"YUMAAZO-1E",1329]
[{"$nulls":9},"O-7Over 38 ",{"v":11668.2,"d":"$11,668.20"},{"$nulls":5},"YUMAAZO-2E",1170,"YUMAAZO-2E",1380]
[{"$nulls":9},"O-6Over 38 ",{"v":10247.7,"d":"$10,247.70"},{"$nulls":5},"YUMAAZO-3E",1284,"YUMAAZO-3E",1443]
[{"$nulls":9},"O-5Over 38 ",{"v":8198.4,"d":"$8,198.40"},{"$nulls":5},"YUMAAZO-1",924,"YUMAAZO-1",1104]
[{"$nulls":9},"O-4Over 38 ",{"v":6951.9,"d":"$6,951.90"},{"$nulls":5},"YUMAAZO-2",1056,"YUMAAZO-2",1281]
[{"$nulls":9},"O-3Over 38 ",{"v":5955.6,"d":"$5,955.60"},{"$nulls":5},"YUMAAZO-3",1212,"YUMAAZO-3",1386]
[{"$nulls":9},"O-2Over 38 ",{"v":4377.3,"d":"$4,377.30"},{"$nulls":5},"YUMAAZO-4",1326,"YUMAAZO-4",1509]
[{"$nulls":9},"O-1Over 38 ",{"v":3454.2,"d":"$3,454.20"},{"$nulls":5},"YUMAAZO-5",1350,"YUMAAZO-5",1599]
[{"$nulls":9},"O-3EOver 38 ",{"v":6355.8,"d":"$6,355.80"},{"$nulls":5},"YUMAAZO-6",1386,"YUMAAZO-6",1614]
[{"$nulls":9},"O-2EOver 38 ",{"v":5069.1,"d":"$5,069.10"},{"$nulls":5},"YUMAAZO-7",1416,"YUMAAZO-7",1632]
[{"$nulls":9},"O-1EOver 38 ",{"v":4289.1,"d":"$4,289.10"},{"$nulls":5},"OAKLANDCAE-1",1347,"OAKLANDCAE-1",1785]
[{"$nulls":9},"W-5Over 38 ",{"v":8802.6,"d":"$8,802.60"},{"$nulls":5},"OAKLANDCAE-2",1347,"OAKLANDCAE-2",1785]
[{"$nulls":9},"W-4Over 38 ",{"v":7047,"d":"$7,047.00"},{"$nulls":5},"OAKLANDCAE-3",1347,"OAKLANDCAE-3",1785]
[{"$nulls":9},"W-3Over 38 ",{"v":6060,"d":"$6,060.00"},{"$nulls":5},"OAKLANDCAE-4",1347,"OAKLANDCAE-4",1785]
[{"$nulls":9},"W-2Over 38 ",{"v":5102.7,"d":"$5,102.70"},{"$nulls":5},"OAKLANDCAE-5",1554,"OAKLANDCAE-5",1914]
[{"$nulls":9},"W-1Over 38 ",{"v":4636.8,"d":"$4,636.80"},{"$nulls":5},"OAKLANDCAE-6",1725,"OAKLANDCAE-6",2298]
[{"$nulls":9},"E-9Over 38 ",{"v":7096.5,"d":"$7,096.50"},{"$nulls":5},"OAKLANDCAE-7",1824,"OAKLANDCAE-7",2430]
[{"$nulls":9},"E-8Over 38 ",{"v":5336.4,"d":"$5,336.40"},{"$nulls":5},"OAKLANDCAE-8",1989,"OAKLANDCAE-8",2577]
[{"$nulls":9},"E-7Over 38 ",{"v":4674.6,"d":"$4,674.60"},{"$nulls":5},"OAKLANDCAE-9",2109,"OAKLANDCAE-9",2727]
[{"$nulls":9},"E-6Over 38 ",{"v":3484.5,"d":"$3,484.50"},{"$nulls":5},"OAKLANDCAW-1",1737,"OAKLANDCAW-1",2301]
[{"$nulls":9},"E-5Over 38 ",{"v":2924.7,"d":"$2,924.70"},{"$nulls":5},"OAKLANDCAW-2",1986,"OAKLANDCAW-2",2490]
[{"$nulls":9},"E-4Over 38 ",{"v":2293.8,"d":"$2,293.80"},{"$nulls":5},"OAKLANDCAW-3",2121,"OAKLANDCAW-3",2667]
[{"$nulls":9},"E-3Over 38 ",{"v":1923,"d":"$1,923.00"},{"$nulls":5},"OAKLANDCAW-4",2331,"OAKLANDCAW-4",2748]
[{"$nulls":9},"E-2Over 38 ",{"v":1622.1,"d":"$1,622.10"},{"$nulls":5},"OAKLANDCAW-5",2466,"OAKLANDCAW-5",2844]
[{"$nulls":9},"E-1Over 38 ",0,{"$nulls":5},"OAKLANDCAO-1E",1914,"OAKLANDCAO-1E",2460]
[{"$nulls":9},"O-10Over 40",{"v":18675.3,"d":"$18,675.30"},{"$nulls":5},"OAKLANDCAO-2E",2082,"OAKLANDCAO-2E",2643]
[{"$nulls":9},"O-9Over 40",{"v":16477.8,"d":"$16,477.80"},{"$nulls":5},"OAKLANDCAO-3E",2298,"OAKLANDCAO-3E",2763]
[{"$nulls":9},"O-8Over 40",{"v":13549.8,"d":"$13,549.80"},{"$nulls":5},"OAKLANDCAO-1",1656,"OAKLANDCAO-1",1956]
[{"$nulls":9},"O-7Over 40",{"v":11668.2,"d":"$11,668.20"},{"$nulls":5},"OAKLANDCAO-2",1869,"OAKLANDCAO-2",2289]
[{"$nulls":9},"O-6Over 40",{"v":10247.7,"d":"$10,247.70"},{"$nulls":5},"OAKLANDCAO-3",2160,"OAKLANDCAO-3",2661]
[{"$nulls":9},"O-5Over 40",{"v":8198.4,"d":"$8,198.40"},{"$nulls":5},"OAKLANDCAO-4",2445,"OAKLANDCAO-4",2880]
[{"$nulls":9},"O-4Over 40",{"v":6951.9,"d":"$6,951.90"},{"$nulls":5},"OAKLANDCAO-5",2532,"OAKLANDCAO-5",3036]
[{"$nulls":9},"O-3Over 40",{"v":5955.6,"d":"$5,955.60"},{"$nulls":5},"OAKLANDCAO-6",2667,"OAKLANDCAO-6",3066]
[{"$nulls":9},"O-2Over 40",{"v":4377.3,"d":"$4,377.30"},{"$nulls":5},"OAKLANDCAO-7",2721,"OAKLANDCAO-7",3096]
[{"$nulls":9},"O-1Over 40",{"v":3454.2,"d":"$3,454.20"},{"$nulls":5},"SAN FRANCISCOCAE-1",1980,"SAN FRANCISCOCAE-1",2433]
[{"$nulls":9},"O-3EOver 40",{"v":6355.8,"d":"$6,355.80"},{"$nulls":5},"SAN FRANCISCOCAE-2",1980,"SAN FRANCISCOCAE-2",2433]
[{"$nulls":9},"O-2EOver 40",{"v":5069.1,"d":"$5,069.10"},{"$nulls":5},"SAN FRANCISCOCAE-3",1980,"SAN FRANCISCOCAE-3",2433]
[{"$nulls":9},"O-1EOver 40",{"v":4289.1,"d":"$4,289.10"},{"$nulls":5},"SAN FRANCISCOCAE-4",1980,"SAN FRANCISCOCAE-4",2433]
[{"$nulls":9},"W-5Over 40",{"v":8802.6,"d":"$8,802.60"},{"$nulls":5},"SAN FRANCISCOCAE-5",2196,"SAN FRANCISCOCAE-5",2562]
[{"$nulls":9},"W-4Over 40",{"v":7047,"d":"$7,047.00"},{"$nulls":5},"SAN FRANCISCOCAE-6",2319,"SAN FRANCISCOCAE-6",2766]
[{"$nulls":9},"W-3Over 40",{"v":6060,"d":"$6,060.00"},{"$nulls":5},"SAN FRANCISCOCAE-7",2439,"SAN FRANCISCOCAE-7",2850]
[{"$nulls":9},"W-2Over 40",{"v":5102.7,"d":"$5,102.70"},{"$nulls":5},"SAN FRANCISCOCAE-8",2604,"SAN FRANCISCOCAE-8",2940]
[{"$nulls":9},"W-1Over 40",{"v":4636.8,"d":"$4,636.80"},{"$nulls":5},"SAN FRANCISCOCAE-9",2667,"SAN FRANCISCOCAE-9",3114]
[{"$nulls":9},"E-9Over 40",{"v":7096.5,"d":"$7,096.50"},{"$nulls":5},"SAN FRANCISCOCAW-1",2382,"SAN FRANCISCOCAW-1",2766]
[{"$nulls":9},"E-8Over 40",{"v":5336.4,"d":"$5,336.40"},{"$nulls":5},"SAN FRANCISCOCAW-2",2601,"SAN FRANCISCOCAW-2",2886]
[{"$nulls":9},"E-7Over 40",{"v":4674.6,"d":"$4,674.60"},{"$nulls":5},"SAN FRANCISCOCAW-3",2673,"SAN FRANCISCOCAW-3",2997]
[{"$nulls":9},"E-6Over 40",{"v":3484.5,"d":"$3,484.50"},{"$nulls":5},"SAN FRANCISCOCAW-4",2787,"SAN FRANCISCOCAW-4",3159]
[{"$nulls":9},"E-5Over 40",{"v":2924.7,"d":"$2,924.70"},{"$nulls":5},"SAN FRANCISCOCAW-5",2868,"SAN FRANCISCOCAW-5",3348]
[{"$nulls":9},"E-4Over 40",{"v":2293.8,"d":"$2,293.80"},{"$nulls":5},"SAN FRANCISCOCAO-1E",2562,"SAN FRANCISCOCAO-1E",2868]
[{"$nulls":9},"E-3Over 40",{"v":1923,"d":"$1,923.00"},{"$nulls":5},"SAN FRANCISCOCAO-2E",2652,"SAN FRANCISCOCAO-2E",2982]
[{"$nulls":9},"E-2Over 40",{"v":1622.1,"d":"$1,622.10"},{"$nulls":5},"SAN FRANCISCOCAO-3E",2766,"SAN FRANCISCOCAO-3E",3186]
[{"$nulls":9},"E-1Over 40",0,{"$nulls":5},"SAN FRANCISCOCAO-1",2301,"SAN FRANCISCOCAO-1",2583]
[{"$nulls":16},"SAN FRANCISCOCAO-2",2517,"SAN FRANCISCOCAO-2",2760]
[{"$nulls":16},"SAN FRANCISCOCAO-3",2691,"SAN FRANCISCOCAO-3",2991]
[{"$nulls":16},"SAN FRANCISCOCAO-4",2859,"SAN FRANCISCOCAO-4",3420]
[{"$nulls":16},"SAN FRANCISCOCAO-5",2910,"SAN FRANCISCOCAO-5",3729]
[{"$nulls":16},"SAN FRANCISCOCAO-6",2997,"SAN FRANCISCOCAO-6",3765]
[{"$nulls":16},"SAN FRANCISCOCAO-7",3057,"SAN FRANCISCOCAO-7",3804]
[{"$nulls":16},"CHINA LAKE NAVWEPCENCAE-1",651,"CHINA LAKE NAVWEPCENCAE-1",867]
[{"$nulls":16},"CHINA LAKE NAVWEPCENCAE-2",651,"CHINA LAKE NAVWEPCENCAE-2",867]
[{"$nulls":16},"CHINA LAKE NAVWEPCENCAE-3",651,"CHINA LAKE NAVWEPCENCAE-3",867]
[{"$nulls":16},"CHINA LAKE NAVWEPCENCAE-4",651,"CHINA LAKE NAVWEPCENCAE-4",867]
[{"$nulls":16},"CHINA LAKE NAVWEPCENCAE-5",729,"CHINA LAKE NAVWEPCENCAE-5",960]
[{"$nulls":16},"CHINA LAKE NAVWEPCENCAE-6",885,"CHINA LAKE NAVWEPCENCAE-6",1179]
[{"$nulls":16},"CHINA LAKE NAVWEPCENCAE-7",903,"CHINA LAKE NAVWEPCENCAE-7",1203]
[{"$nulls":16},"CHINA LAKE NAVWEPCENCAE-8",1002,"CHINA LAKE NAVWEPCENCAE-8",1233]
[{"$nulls":16},"CHINA LAKE NAVWEPCENCAE-9",1071,"CHINA LAKE NAVWEPCENCAE-9",1311]
[{"$nulls":16},"CHINA LAKE NAVWEPCENCAW-1",885,"CHINA LAKE NAVWEPCENCAW-1",1179]
[{"$nulls":16},"CHINA LAKE NAVWEPCENCAW-2",1002,"CHINA LAKE NAVWEPCENCAW-2",1215]
[{"$nulls":16},"CHINA LAKE NAVWEPCENCAW-3",1077,"CHINA LAKE NAVWEPCENCAW-3",1251]
[{"$nulls":16},"CHINA LAKE NAVWEPCENCAW-4",1185,"CHINA LAKE NAVWEPCENCAW-4",1335]
[{"$nulls":16},"CHINA LAKE NAVWEPCENCAW-5",1209,"CHINA LAKE NAVWEPCENCAW-5",1434]
[{"$nulls":16},"CHINA LAKE NAVWEPCENCAO-1E",960,"CHINA LAKE NAVWEPCENCAO-1E",1209]
[{"$nulls":16},"CHINA LAKE NAVWEPCENCAO-2E",1056,"CHINA LAKE NAVWEPCENCAO-2E",1245]
[{"$nulls":16},"CHINA LAKE NAVWEPCENCAO-3E",1179,"CHINA LAKE NAVWEPCENCAO-3E",1350]
[{"$nulls":16},"CHINA LAKE NAVWEPCENCAO-1",774,"CHINA LAKE NAVWEPCENCAO-1",984]
[{"$nulls":16},"CHINA LAKE NAVWEPCENCAO-2",927,"CHINA LAKE NAVWEPCENCAO-2",1173]
[{"$nulls":16},"CHINA LAKE NAVWEPCENCAO-3",1098,"CHINA LAKE NAVWEPCENCAO-3",1248]
[{"$nulls":16},"CHINA LAKE NAVWEPCENCAO-4",1206,"CHINA LAKE NAVWEPCENCAO-4",1473]
[{"$nulls":16},"CHINA LAKE NAVWEPCENCAO-5",1227,"CHINA LAKE NAVWEPCENCAO-5",1635]
[{"$nulls":16},"CHINA LAKE NAVWEPCENCAO-6",1251,"CHINA LAKE NAVWEPCENCAO-6",1653]
[{"$nulls":16},"CHINA LAKE NAVWEPCENCAO-7",1275,"CHINA LAKE NAVWEPCENCAO-7",1668]
[{"$nulls":16},"FRESNOCAE-1",900,"FRESNOCAE-1",1125]
[{"$nulls":16},"FRESNOCAE-2",900,"FRESNOCAE-2",1125]
[{"$nulls":16},"FRESNOCAE-3",900,"FRESNOCAE-3",1125]
[{"$nulls":16},"FRESNOCAE-4",900,"FRESNOCAE-4",1125]
[{"$nulls":16},"FRESNOCAE-5",981,"FRESNOCAE-5",1227]
[{"$nulls":16},"FRESNOCAE-6",1035,"FRESNOCAE-6",1380]
[{"$nulls":16},"FRESNOCAE-7",1131,"FRESNOCAE-7",1410]
[{"$nulls":16},"FRESNOCAE-8",1257,"FRESNOCAE-8",1446]
[{"$nulls":16},"FRESNOCAE-9",1305,"FRESNOCAE-9",1518]
[{"$nulls":16},"FRESNOCAW-1",1086,"FRESNOCAW-1",1380]
[{"$nulls":16},"FRESNOCAW-2",1257,"FRESNOCAW-2",1425]
[{"$nulls":16},"FRESNOCAW-3",1308,"FRESNOCAW-3",1470]
[{"$nulls":16},"FRESNOCAW-4",1386,"FRESNOCAW-4",1536]
[{"$nulls":16},"FRESNOCAW-5",1419,"FRESNOCAW-5",1617]
[{"$nulls":16},"FRESNOCAO-1E",1227,"FRESNOCAO-1E",1419]
[{"$nulls":16},"FRESNOCAO-2E",1293,"FRESNOCAO-2E",1464]
[{"$nulls":16},"FRESNOCAO-3E",1380,"FRESNOCAO-3E",1548]
[{"$nulls":16},"FRESNOCAO-1",1020,"FRESNOCAO-1",1245]
[{"$nulls":16},"FRESNOCAO-2",1191,"FRESNOCAO-2",1377]
[{"$nulls":16},"FRESNOCAO-3",1323,"FRESNOCAO-3",1467]
[{"$nulls":16},"FRESNOCAO-4",1416,"FRESNOCAO-4",1647]
[{"$nulls":16},"FRESNOCAO-5",1437,"FRESNOCAO-5",1776]
[{"$nulls":16},"FRESNOCAO-6",1470,"FRESNOCAO-6",1794]
[{"$nulls":16},"FRESNOCAO-7",1497,"FRESNOCAO-7",1812]
[{"$nulls":16},"LEMORE NASCAE-1",765,"LEMORE NASCAE-1",1023]
[{"$nulls":16},"LEMORE NASCAE-2",765,"LEMORE NASCAE-2",1023]
[{"$nulls":16},"LEMORE NASCAE-3",765,"LEMORE NASCAE-3",1023]
[{"$nulls":16},"LEMORE NASCAE-4",765,"LEMORE NASCAE-4",1023]
[{"$nulls":16},"LEMORE NASCAE-5",858,"LEMORE NASCAE-5",1116]
[{"$nulls":16},"LEMORE NASCAE-6",939,"LEMORE NASCAE-6",1218]
[{"$nulls":16},"LEMORE NASCAE-7",1026,"LEMORE NASCAE-7",1332]
[{"$nulls":16},"LEMORE NASCAE-8",1137,"LEMORE NASCAE-8",1452]
[{"$nulls":16},"LEMORE NASCAE-9",1170,"LEMORE NASCAE-9",1563]
[{"$nulls":16},"LEMORE NASCAW-1",987,"LEMORE NASCAW-1",1221]
[{"$nulls":16},"LEMORE NASCAW-2",1137,"LEMORE NASCAW-2",1380]
[{"$nulls":16},"LEMORE NASCAW-3",1173,"LEMORE NASCAW-3",1530]
[{"$nulls":16},"LEMORE NASCAW-4",1248,"LEMORE NASCAW-4",1572]
[{"$nulls":16},"LEMORE NASCAW-5",1359,"LEMORE NASCAW-5",1623]
[{"$nulls":16},"LEMORE NASCAO-1E",1116,"LEMORE NASCAO-1E",1356]
[{"$nulls":16},"LEMORE NASCAO-2E",1161,"LEMORE NASCAO-2E",1509]
[{"$nulls":16},"LEMORE NASCAO-3E",1218,"LEMORE NASCAO-3E",1581]
[{"$nulls":16},"LEMORE NASCAO-1",927,"LEMORE NASCAO-1",1128]
[{"$nulls":16},"LEMORE NASCAO-2",1083,"LEMORE NASCAO-2",1218]
[{"$nulls":16},"LEMORE NASCAO-3",1182,"LEMORE NASCAO-3",1524]
[{"$nulls":16},"LEMORE NASCAO-4",1344,"LEMORE NASCAO-4",1641]
[{"$nulls":16},"LEMORE NASCAO-5",1416,"LEMORE NASCAO-5",1722]
[{"$nulls":16},"LEMORE NASCAO-6",1530,"LEMORE NASCAO-6",1740]
[{"$nulls":16},"LEMORE NASCAO-7",1563,"LEMORE NASCAO-7",1755]
[{"$nulls":16},"CAMP PENDLETONCAE-1",1263,"CAMP PENDLETONCAE-1",1677]
[{"$nulls":16},"CAMP PENDLETONCAE-2",1263,"CAMP PENDLETONCAE-2",1677]
[{"$nulls":16},"CAMP PENDLETONCAE-3",1263,"CAMP PENDLETONCAE-3",1677]
[{"$nulls":16},"CAMP PENDLETONCAE-4",1263,"CAMP PENDLETONCAE-4",1677]
[{"$nulls":16},"CAMP PENDLETONCAE-5",1473,"CAMP PENDLETONCAE-5",1776]
[{"$nulls":16},"CAMP PENDLETONCAE-6",1590,"CAMP PENDLETONCAE-6",2058]
[{"$nulls":16},"CAMP PENDLETONCAE-7",1683,"CAMP PENDLETONCAE-7",2148]
[{"$nulls":16},"CAMP PENDLETONCAE-8",1830,"CAMP PENDLETONCAE-8",2247]
[{"$nulls":16},"CAMP PENDLETONCAE-9",1920,"CAMP PENDLETONCAE-9",2370]
[{"$nulls":16},"CAMP PENDLETONCAW-1",1638,"CAMP PENDLETONCAW-1",2061]
[{"$nulls":16},"CAMP PENDLETONCAW-2",1830,"CAMP PENDLETONCAW-2",2187]
[{"$nulls":16},"CAMP PENDLETONCAW-3",1926,"CAMP PENDLETONCAW-3",2310]
[{"$nulls":16},"CAMP PENDLETONCAW-4",2079,"CAMP PENDLETONCAW-4",2394]
[{"$nulls":16},"CAMP PENDLETONCAW-5",2169,"CAMP PENDLETONCAW-5",2493]
[{"$nulls":16},"CAMP PENDLETONCAO-1E",1776,"CAMP PENDLETONCAO-1E",2169]
[{"$nulls":16},"CAMP PENDLETONCAO-2E",1899,"CAMP PENDLETONCAO-2E",2292]
[{"$nulls":16},"CAMP PENDLETONCAO-3E",2058,"CAMP PENDLETONCAO-3E",2409]
[{"$nulls":16},"CAMP PENDLETONCAO-1",1578,"CAMP PENDLETONCAO-1",1806]
[{"$nulls":16},"CAMP PENDLETONCAO-2",1740,"CAMP PENDLETONCAO-2",2052]
[{"$nulls":16},"CAMP PENDLETONCAO-3",1956,"CAMP PENDLETONCAO-3",2304]
[{"$nulls":16},"CAMP PENDLETONCAO-4",2157,"CAMP PENDLETONCAO-4",2529]
[{"$nulls":16},"CAMP PENDLETONCAO-5",2217,"CAMP PENDLETONCAO-5",2691]
[{"$nulls":16},"CAMP PENDLETONCAO-6",2310,"CAMP PENDLETONCAO-6",2718]
[{"$nulls":16},"CAMP PENDLETONCAO-7",2355,"CAMP PENDLETONCAO-7",2745]
[{"$nulls":16},"VENTURACAE-1",1455,"VENTURACAE-1",1686]
[{"$nulls":16},"VENTURACAE-2",1455,"VENTURACAE-2",1686]
[{"$nulls":16},"VENTURACAE-3",1455,"VENTURACAE-3",1686]
[{"$nulls":16},"VENTURACAE-4",1455,"VENTURACAE-4",1686]
[{"$nulls":16},"VENTURACAE-5",1548,"VENTURACAE-5",1776]
[{"$nulls":16},"VENTURACAE-6",1644,"VENTURACAE-6",2190]
[{"$nulls":16},"VENTURACAE-7",1755,"VENTURACAE-7",2340]
[{"$nulls":16},"VENTURACAE-8",1878,"VENTURACAE-8",2502]
[{"$nulls":16},"VENTURACAE-9",2013,"VENTURACAE-9",2685]
[{"$nulls":16},"VENTURACAW-1",1650,"VENTURACAW-1",2193]
[{"$nulls":16},"VENTURACAW-2",1854,"VENTURACAW-2",2406]
[{"$nulls":16},"VENTURACAW-3",1998,"VENTURACAW-3",2607]
[{"$nulls":16},"VENTURACAW-4",2229,"VENTURACAW-4",2715]
[{"$nulls":16},"VENTURACAW-5",2379,"VENTURACAW-5",2841]
[{"$nulls":16},"VENTURACAO-1E",1779,"VENTURACAO-1E",2373]
[{"$nulls":16},"VENTURACAO-2E",1959,"VENTURACAO-2E",2577]
[{"$nulls":16},"VENTURACAO-3E",2190,"VENTURACAO-3E",2733]
[{"$nulls":16},"VENTURACAO-1",1593,"VENTURACAO-1",1821]
[{"$nulls":16},"VENTURACAO-2",1743,"VENTURACAO-2",2181]
[{"$nulls":16},"VENTURACAO-3",2040,"VENTURACAO-3",2598]
[{"$nulls":16},"VENTURACAO-4",2358,"VENTURACAO-4",2889]
[{"$nulls":16},"VENTURACAO-5",2454,"VENTURACAO-5",3093]
[{"$nulls":16},"VENTURACAO-6",2607,"VENTURACAO-6",3123]
[{"$nulls":16},"VENTURACAO-7",2658,"VENTURACAO-7",3153]
[{"$nulls":16},"VANDENBERG AFBCAE-1",1005,"VANDENBERG AFBCAE-1",1341]
[{"$nulls":16},"VANDENBERG AFBCAE-2",1005,"VANDENBERG AFBCAE-2",1341]
[{"$nulls":16},"VANDENBERG AFBCAE-3",1005,"VANDENBERG AFBCAE-3",1341]
[{"$nulls":16},"VANDENBERG AFBCAE-4",1005,"VANDENBERG AFBCAE-4",1341]
[{"$nulls":16},"VANDENBERG AFBCAE-5",1146,"VANDENBERG AFBCAE-5",1452]
[{"$nulls":16},"VANDENBERG AFBCAE-6",1245,"VANDENBERG AFBCAE-6",1620]
[{"$nulls":16},"VANDENBERG AFBCAE-7",1347,"VANDENBERG AFBCAE-7",1674]
[{"$nulls":16},"VANDENBERG AFBCAE-8",1485,"VANDENBERG AFBCAE-8",1734]
[{"$nulls":16},"VANDENBERG AFBCAE-9",1536,"VANDENBERG AFBCAE-9",1833]
[{"$nulls":16},"VANDENBERG AFBCAW-1",1299,"VANDENBERG AFBCAW-1",1620]
[{"$nulls":16},"VANDENBERG AFBCAW-2",1482,"VANDENBERG AFBCAW-2",1698]
[{"$nulls":16},"VANDENBERG AFBCAW-3",1542,"VANDENBERG AFBCAW-3",1773]
[{"$nulls":16},"VANDENBERG AFBCAW-4",1632,"VANDENBERG AFBCAW-4",1857]
[{"$nulls":16},"VANDENBERG AFBCAW-5",1689,"VANDENBERG AFBCAW-5",1956]
[{"$nulls":16},"VANDENBERG AFBCAO-1E",1452,"VANDENBERG AFBCAO-1E",1686]
[{"$nulls":16},"VANDENBERG AFBCAO-2E",1524,"VANDENBERG AFBCAO-2E",1761]
[{"$nulls":16},"VANDENBERG AFBCAO-3E",1620,"VANDENBERG AFBCAO-3E",1872]
[{"$nulls":16},"VANDENBERG AFBCAO-1",1230,"VANDENBERG AFBCAO-1",1470]
[{"$nulls":16},"VANDENBERG AFBCAO-2",1413,"VANDENBERG AFBCAO-2",1617]
[{"$nulls":16},"VANDENBERG AFBCAO-3",1560,"VANDENBERG AFBCAO-3",1770]
[{"$nulls":16},"VANDENBERG AFBCAO-4",1680,"VANDENBERG AFBCAO-4",1995]
[{"$nulls":16},"VANDENBERG AFBCAO-5",1716,"VANDENBERG AFBCAO-5",2154]
[{"$nulls":16},"VANDENBERG AFBCAO-6",1773,"VANDENBERG AFBCAO-6",2175]
[{"$nulls":16},"VANDENBERG AFBCAO-7",1806,"VANDENBERG AFBCAO-7",2196]
[{"$nulls":16},"MARIN/SONOMACAE-1",1509,"MARIN/SONOMACAE-1",1920]
[{"$nulls":16},"MARIN/SONOMACAE-2",1509,"MARIN/SONOMACAE-2",1920]
[{"$nulls":16},"MARIN/SONOMACAE-3",1509,"MARIN/SONOMACAE-3",1920]
[{"$nulls":16},"MARIN/SONOMACAE-4",1509,"MARIN/SONOMACAE-4",1920]
[{"$nulls":16},"MARIN/SONOMACAE-5",1692,"MARIN/SONOMACAE-5",2058]
[{"$nulls":16},"MARIN/SONOMACAE-6",1800,"MARIN/SONOMACAE-6",2097]
[{"$nulls":16},"MARIN/SONOMACAE-7",1926,"MARIN/SONOMACAE-7",2127]
[{"$nulls":16},"MARIN/SONOMACAE-8",2064,"MARIN/SONOMACAE-8",2160]
[{"$nulls":16},"MARIN/SONOMACAE-9",2076,"MARIN/SONOMACAE-9",2247]
[{"$nulls":16},"MARIN/SONOMACAW-1",1866,"MARIN/SONOMACAW-1",2097]
[{"$nulls":16},"MARIN/SONOMACAW-2",2064,"MARIN/SONOMACAW-2",2139]
[{"$nulls":16},"MARIN/SONOMACAW-3",2079,"MARIN/SONOMACAW-3",2178]
[{"$nulls":16},"MARIN/SONOMACAW-4",2103,"MARIN/SONOMACAW-4",2274]
[{"$nulls":16},"MARIN/SONOMACAW-5",2133,"MARIN/SONOMACAW-5",2385]
[{"$nulls":16},"MARIN/SONOMACAO-1E",2058,"MARIN/SONOMACAO-1E",2133]
[{"$nulls":16},"MARIN/SONOMACAO-2E",2076,"MARIN/SONOMACAO-2E",2172]
[{"$nulls":16},"MARIN/SONOMACAO-3E",2097,"MARIN/SONOMACAO-3E",2292]
[{"$nulls":16},"MARIN/SONOMACAO-1",1782,"MARIN/SONOMACAO-1",2061]
[{"$nulls":16},"MARIN/SONOMACAO-2",2010,"MARIN/SONOMACAO-2",2097]
[{"$nulls":16},"MARIN/SONOMACAO-3",2082,"MARIN/SONOMACAO-3",2178]
[{"$nulls":16},"MARIN/SONOMACAO-4",2130,"MARIN/SONOMACAO-4",2427]
[{"$nulls":16},"MARIN/SONOMACAO-5",2148,"MARIN/SONOMACAO-5",2610]
[{"$nulls":16},"MARIN/SONOMACAO-6",2178,"MARIN/SONOMACAO-6",2634]
[{"$nulls":16},"MARIN/SONOMACAO-7",2223,"MARIN/SONOMACAO-7",2661]
[{"$nulls":16},"BARSTOW/FORT IRWINCAE-1",762,"BARSTOW/FORT IRWINCAE-1",1014]
[{"$nulls":16},"BARSTOW/FORT IRWINCAE-2",762,"BARSTOW/FORT IRWINCAE-2",1014]
[{"$nulls":16},"BARSTOW/FORT IRWINCAE-3",762,"BARSTOW/FORT IRWINCAE-3",1014]
[{"$nulls":16},"BARSTOW/FORT IRWINCAE-4",762,"BARSTOW/FORT IRWINCAE-4",1014]
[{"$nulls":16},"BARSTOW/FORT IRWINCAE-5",858,"BARSTOW/FORT IRWINCAE-5",1089]
[{"$nulls":16},"BARSTOW/FORT IRWINCAE-6",954,"BARSTOW/FORT IRWINCAE-6",1272]
[{"$nulls":16},"BARSTOW/FORT IRWINCAE-7",1020,"BARSTOW/FORT IRWINCAE-7",1329]
[{"$nulls":16},"BARSTOW/FORT IRWINCAE-8",1125,"BARSTOW/FORT IRWINCAE-8",1392]
[{"$nulls":16},"BARSTOW/FORT IRWINCAE-9",1182,"BARSTOW/FORT IRWINCAE-9",1458]
[{"$nulls":16},"BARSTOW/FORT IRWINCAW-1",987,"BARSTOW/FORT IRWINCAW-1",1275]
[{"$nulls":16},"BARSTOW/FORT IRWINCAW-2",1125,"BARSTOW/FORT IRWINCAW-2",1356]
[{"$nulls":16},"BARSTOW/FORT IRWINCAW-3",1188,"BARSTOW/FORT IRWINCAW-3",1431]
[{"$nulls":16},"BARSTOW/FORT IRWINCAW-4",1287,"BARSTOW/FORT IRWINCAW-4",1470]
[{"$nulls":16},"BARSTOW/FORT IRWINCAW-5",1344,"BARSTOW/FORT IRWINCAW-5",1515]
[{"$nulls":16},"BARSTOW/FORT IRWINCAO-1E",1089,"BARSTOW/FORT IRWINCAO-1E",1341]
[{"$nulls":16},"BARSTOW/FORT IRWINCAO-2E",1170,"BARSTOW/FORT IRWINCAO-2E",1419]
[{"$nulls":16},"BARSTOW/FORT IRWINCAO-3E",1272,"BARSTOW/FORT IRWINCAO-3E",1476]
[{"$nulls":16},"BARSTOW/FORT IRWINCAO-1",942,"BARSTOW/FORT IRWINCAO-1",1110]
[{"$nulls":16},"BARSTOW/FORT IRWINCAO-2",1065,"BARSTOW/FORT IRWINCAO-2",1269]
[{"$nulls":16},"BARSTOW/FORT IRWINCAO-3",1206,"BARSTOW/FORT IRWINCAO-3",1428]
[{"$nulls":16},"BARSTOW/FORT IRWINCAO-4",1335,"BARSTOW/FORT IRWINCAO-4",1533]
[{"$nulls":16},"BARSTOW/FORT IRWINCAO-5",1371,"BARSTOW/FORT IRWINCAO-5",1608]
[{"$nulls":16},"BARSTOW/FORT IRWINCAO-6",1431,"BARSTOW/FORT IRWINCAO-6",1626]
[{"$nulls":16},"BARSTOW/FORT IRWINCAO-7",1458,"BARSTOW/FORT IRWINCAO-7",1641]
[{"$nulls":16},"SAN BERNARDINOCAE-1",945,"SAN BERNARDINOCAE-1",1206]
[{"$nulls":16},"SAN BERNARDINOCAE-2",945,"SAN BERNARDINOCAE-2",1206]
[{"$nulls":16},"SAN BERNARDINOCAE-3",945,"SAN BERNARDINOCAE-3",1206]
[{"$nulls":16},"SAN BERNARDINOCAE-4",945,"SAN BERNARDINOCAE-4",1206]
[{"$nulls":16},"SAN BERNARDINOCAE-5",1059,"SAN BERNARDINOCAE-5",1296]
[{"$nulls":16},"SAN BERNARDINOCAE-6",1200,"SAN BERNARDINOCAE-6",1599]
[{"$nulls":16},"SAN BERNARDINOCAE-7",1224,"SAN BERNARDINOCAE-7",1632]
[{"$nulls":16},"SAN BERNARDINOCAE-8",1356,"SAN BERNARDINOCAE-8",1668]
[{"$nulls":16},"SAN BERNARDINOCAE-9",1452,"SAN BERNARDINOCAE-9",1719]
[{"$nulls":16},"SAN BERNARDINOCAW-1",1200,"SAN BERNARDINOCAW-1",1599]
[{"$nulls":16},"SAN BERNARDINOCAW-2",1353,"SAN BERNARDINOCAW-2",1647]
[{"$nulls":16},"SAN BERNARDINOCAW-3",1461,"SAN BERNARDINOCAW-3",1689]
[{"$nulls":16},"SAN BERNARDINOCAW-4",1608,"SAN BERNARDINOCAW-4",1731]
[{"$nulls":16},"SAN BERNARDINOCAW-5",1641,"SAN BERNARDINOCAW-5",1782]
[{"$nulls":16},"SAN BERNARDINOCAO-1E",1296,"SAN BERNARDINOCAO-1E",1638]
[{"$nulls":16},"SAN BERNARDINOCAO-2E",1428,"SAN BERNARDINOCAO-2E",1683]
[{"$nulls":16},"SAN BERNARDINOCAO-3E",1599,"SAN BERNARDINOCAO-3E",1740]
[{"$nulls":16},"SAN BERNARDINOCAO-1",1116,"SAN BERNARDINOCAO-1",1329]
[{"$nulls":16},"SAN BERNARDINOCAO-2",1266,"SAN BERNARDINOCAO-2",1593]
[{"$nulls":16},"SAN BERNARDINOCAO-3",1491,"SAN BERNARDINOCAO-3",1689]
[{"$nulls":16},"SAN BERNARDINOCAO-4",1635,"SAN BERNARDINOCAO-4",1800]
[{"$nulls":16},"SAN BERNARDINOCAO-5",1656,"SAN BERNARDINOCAO-5",1881]
[{"$nulls":16},"SAN BERNARDINOCAO-6",1689,"SAN BERNARDINOCAO-6",1899]
[{"$nulls":16},"SAN BERNARDINOCAO-7",1725,"SAN BERNARDINOCAO-7",1917]
[{"$nulls":16},"TWENTY NINE PALMS MCBCAE-1",720,"TWENTY NINE PALMS MCBCAE-1",963]
[{"$nulls":16},"TWENTY NINE PALMS MCBCAE-2",720,"TWENTY NINE PALMS MCBCAE-2",963]
[{"$nulls":16},"TWENTY NINE PALMS MCBCAE-3",720,"TWENTY NINE PALMS MCBCAE-3",963]
[{"$nulls":16},"TWENTY NINE PALMS MCBCAE-4",720,"TWENTY NINE PALMS MCBCAE-4",963]
[{"$nulls":16},"TWENTY NINE PALMS MCBCAE-5",825,"TWENTY NINE PALMS MCBCAE-5",1035]
[{"$nulls":16},"TWENTY NINE PALMS MCBCAE-6",915,"TWENTY NINE PALMS MCBCAE-6",1218]
[{"$nulls":16},"TWENTY NINE PALMS MCBCAE-7",966,"TWENTY NINE PALMS MCBCAE-7",1287]
[{"$nulls":16},"TWENTY NINE PALMS MCBCAE-8",1071,"TWENTY NINE PALMS MCBCAE-8",1362]
[{"$nulls":16},"TWENTY NINE PALMS MCBCAE-9",1128,"TWENTY NINE PALMS MCBCAE-9",1458]
[{"$nulls":16},"TWENTY NINE PALMS MCBCAW-1",933,"TWENTY NINE PALMS MCBCAW-1",1221]
[{"$nulls":16},"TWENTY NINE PALMS MCBCAW-2",1071,"TWENTY NINE PALMS MCBCAW-2",1317]
[{"$nulls":16},"TWENTY NINE PALMS MCBCAW-3",1134,"TWENTY NINE PALMS MCBCAW-3",1410]
[{"$nulls":16},"TWENTY NINE PALMS MCBCAW-4",1236,"TWENTY NINE PALMS MCBCAW-4",1476]
[{"$nulls":16},"TWENTY NINE PALMS MCBCAW-5",1305,"TWENTY NINE PALMS MCBCAW-5",1551]
[{"$nulls":16},"TWENTY NINE PALMS MCBCAO-1E",1035,"TWENTY NINE PALMS MCBCAO-1E",1302]
[{"$nulls":16},"TWENTY NINE PALMS MCBCAO-2E",1116,"TWENTY NINE PALMS MCBCAO-2E",1398]
[{"$nulls":16},"TWENTY NINE PALMS MCBCAO-3E",1218,"TWENTY NINE PALMS MCBCAO-3E",1488]
[{"$nulls":16},"TWENTY NINE PALMS MCBCAO-1",888,"TWENTY NINE PALMS MCBCAO-1",1056]
[{"$nulls":16},"TWENTY NINE PALMS MCBCAO-2",1011,"TWENTY NINE PALMS MCBCAO-2",1215]
[{"$nulls":16},"TWENTY NINE PALMS MCBCAO-3",1152,"TWENTY NINE PALMS MCBCAO-3",1407]
[{"$nulls":16},"TWENTY NINE PALMS MCBCAO-4",1296,"TWENTY NINE PALMS MCBCAO-4",1581]
[{"$nulls":16},"TWENTY NINE PALMS MCBCAO-5",1338,"TWENTY NINE PALMS MCBCAO-5",1707]
[{"$nulls":16},"TWENTY NINE PALMS MCBCAO-6",1410,"TWENTY NINE PALMS MCBCAO-6",1722]
[{"$nulls":16},"TWENTY NINE PALMS MCBCAO-7",1437,"TWENTY NINE PALMS MCBCAO-7",1740]
[{"$nulls":16},"BEALE AFBCAE-1",927,"BEALE AFBCAE-1",1236]
[{"$nulls":16},"BEALE AFBCAE-2",927,"BEALE AFBCAE-2",1236]
[{"$nulls":16},"BEALE AFBCAE-3",927,"BEALE AFBCAE-3",1236]
[{"$nulls":16},"BEALE AFBCAE-4",927,"BEALE AFBCAE-4",1236]
[{"$nulls":16},"BEALE AFBCAE-5",1077,"BEALE AFBCAE-5",1317]
[{"$nulls":16},"BEALE AFBCAE-6",1164,"BEALE AFBCAE-6",1446]
[{"$nulls":16},"BEALE AFBCAE-7",1239,"BEALE AFBCAE-7",1590]
[{"$nulls":16},"BEALE AFBCAE-8",1344,"BEALE AFBCAE-8",1746]
[{"$nulls":16},"BEALE AFBCAE-9",1437,"BEALE AFBCAE-9",1914]
[{"$nulls":16},"BEALE AFBCAW-1",1203,"BEALE AFBCAW-1",1449]
[{"$nulls":16},"BEALE AFBCAW-2",1341,"BEALE AFBCAW-2",1656]
[{"$nulls":16},"BEALE AFBCAW-3",1386,"BEALE AFBCAW-3",1848]
[{"$nulls":16},"BEALE AFBCAW-4",1482,"BEALE AFBCAW-4",1941]
[{"$nulls":16},"BEALE AFBCAW-5",1626,"BEALE AFBCAW-5",2049]
[{"$nulls":16},"BEALE AFBCAO-1E",1317,"BEALE AFBCAO-1E",1623]
[{"$nulls":16},"BEALE AFBCAO-2E",1374,"BEALE AFBCAO-2E",1818]
[{"$nulls":16},"BEALE AFBCAO-3E",1467,"BEALE AFBCAO-3E",1956]
[{"$nulls":16},"BEALE AFBCAO-1",1152,"BEALE AFBCAO-1",1332]
[{"$nulls":16},"BEALE AFBCAO-2",1290,"BEALE AFBCAO-2",1443]
[{"$nulls":16},"BEALE AFBCAO-3",1401,"BEALE AFBCAO-3",1839]
[{"$nulls":16},"BEALE AFBCAO-4",1605,"BEALE AFBCAO-4",2091]
[{"$nulls":16},"BEALE AFBCAO-5",1704,"BEALE AFBCAO-5",2271]
[{"$nulls":16},"BEALE AFBCAO-6",1848,"BEALE AFBCAO-6",2292]
[{"$nulls":16},"BEALE AFBCAO-7",1884,"BEALE AFBCAO-7",2316]
[{"$nulls":16},"SACRAMENTOCAE-1",1149,"SACRAMENTOCAE-1",1527]
[{"$nulls":16},"SACRAMENTOCAE-2",1149,"SACRAMENTOCAE-2",1527]
[{"$nulls":16},"SACRAMENTOCAE-3",1149,"SACRAMENTOCAE-3",1527]
[{"$nulls":16},"SACRAMENTOCAE-4",1149,"SACRAMENTOCAE-4",1527]
[{"$nulls":16},"SACRAMENTOCAE-5",1302,"SACRAMENTOCAE-5",1680]
[{"$nulls":16},"SACRAMENTOCAE-6",1398,"SACRAMENTOCAE-6",1854]
[{"$nulls":16},"SACRAMENTOCAE-7",1536,"SACRAMENTOCAE-7",1923]
[{"$nulls":16},"SACRAMENTOCAE-8",1713,"SACRAMENTOCAE-8",1998]
[{"$nulls":16},"SACRAMENTOCAE-9",1767,"SACRAMENTOCAE-9",2133]
[{"$nulls":16},"SACRAMENTOCAW-1",1470,"SACRAMENTOCAW-1",1854]
[{"$nulls":16},"SACRAMENTOCAW-2",1713,"SACRAMENTOCAW-2",1953]
[{"$nulls":16},"SACRAMENTOCAW-3",1773,"SACRAMENTOCAW-3",2046]
[{"$nulls":16},"SACRAMENTOCAW-4",1869,"SACRAMENTOCAW-4",2163]
[{"$nulls":16},"SACRAMENTOCAW-5",1938,"SACRAMENTOCAW-5",2304]
[{"$nulls":16},"SACRAMENTOCAO-1E",1680,"SACRAMENTOCAO-1E",1938]
[{"$nulls":16},"SACRAMENTOCAO-2E",1755,"SACRAMENTOCAO-2E",2031]
[{"$nulls":16},"SACRAMENTOCAO-3E",1854,"SACRAMENTOCAO-3E",2187]
[{"$nulls":16},"SACRAMENTOCAO-1",1377,"SACRAMENTOCAO-1",1698]
[{"$nulls":16},"SACRAMENTOCAO-2",1626,"SACRAMENTOCAO-2",1851]
[{"$nulls":16},"SACRAMENTOCAO-3",1791,"SACRAMENTOCAO-3",2040]
[{"$nulls":16},"SACRAMENTOCAO-4",1929,"SACRAMENTOCAO-4",2358]
[{"$nulls":16},"SACRAMENTOCAO-5",1974,"SACRAMENTOCAO-5",2586]
[{"$nulls":16},"SACRAMENTOCAO-6",2046,"SACRAMENTOCAO-6",2613]
[{"$nulls":16},"SACRAMENTOCAO-7",2085,"SACRAMENTOCAO-7",2637]
[{"$nulls":16},"STOCKTONCAE-1",891,"STOCKTONCAE-1",1119]
[{"$nulls":16},"STOCKTONCAE-2",891,"STOCKTONCAE-2",1119]
[{"$nulls":16},"STOCKTONCAE-3",891,"STOCKTONCAE-3",1119]
[{"$nulls":16},"STOCKTONCAE-4",891,"STOCKTONCAE-4",1119]
[{"$nulls":16},"STOCKTONCAE-5",978,"STOCKTONCAE-5",1221]
[{"$nulls":16},"STOCKTONCAE-6",1044,"STOCKTONCAE-6",1389]
[{"$nulls":16},"STOCKTONCAE-7",1125,"STOCKTONCAE-7",1452]
[{"$nulls":16},"STOCKTONCAE-8",1254,"STOCKTONCAE-8",1518]
[{"$nulls":16},"STOCKTONCAE-9",1308,"STOCKTONCAE-9",1611]
[{"$nulls":16},"STOCKTONCAW-1",1083,"STOCKTONCAW-1",1392]
[{"$nulls":16},"STOCKTONCAW-2",1251,"STOCKTONCAW-2",1479]
[{"$nulls":16},"STOCKTONCAW-3",1311,"STOCKTONCAW-3",1560]
[{"$nulls":16},"STOCKTONCAW-4",1404,"STOCKTONCAW-4",1629]
[{"$nulls":16},"STOCKTONCAW-5",1467,"STOCKTONCAW-5",1710]
[{"$nulls":16},"STOCKTONCAO-1E",1221,"STOCKTONCAO-1E",1464]
[{"$nulls":16},"STOCKTONCAO-2E",1296,"STOCKTONCAO-2E",1548]
[{"$nulls":16},"STOCKTONCAO-3E",1389,"STOCKTONCAO-3E",1641]
[{"$nulls":16},"STOCKTONCAO-1",1020,"STOCKTONCAO-1",1239]
[{"$nulls":16},"STOCKTONCAO-2",1185,"STOCKTONCAO-2",1386]
[{"$nulls":16},"STOCKTONCAO-3",1329,"STOCKTONCAO-3",1557]
[{"$nulls":16},"STOCKTONCAO-4",1458,"STOCKTONCAO-4",1740]
[{"$nulls":16},"STOCKTONCAO-5",1497,"STOCKTONCAO-5",1869]
[{"$nulls":16},"STOCKTONCAO-6",1560,"STOCKTONCAO-6",1890]
[{"$nulls":16},"STOCKTONCAO-7",1593,"STOCKTONCAO-7",1908]
[{"$nulls":16},"VALLEJO/TRAVIS AFBCAE-1",1332,"VALLEJO/TRAVIS AFBCAE-1",1599]
[{"$nulls":16},"VALLEJO/TRAVIS AFBCAE-2",1332,"VALLEJO/TRAVIS AFBCAE-2",1599]
[{"$nulls":16},"VALLEJO/TRAVIS AFBCAE-3",1332,"VALLEJO/TRAVIS AFBCAE-3",1599]
[{"$nulls":16},"VALLEJO/TRAVIS AFBCAE-4",1332,"VALLEJO/TRAVIS AFBCAE-4",1599]
[{"$nulls":16},"VALLEJO/TRAVIS AFBCAE-5",1476,"VALLEJO/TRAVIS AFBCAE-5",1653]
[{"$nulls":16},"VALLEJO/TRAVIS AFBCAE-6",1554,"VALLEJO/TRAVIS AFBCAE-6",1833]
[{"$nulls":16},"VALLEJO/TRAVIS AFBCAE-7",1602,"VALLEJO/TRAVIS AFBCAE-7",1905]
[{"$nulls":16},"VALLEJO/TRAVIS AFBCAE-8",1689,"VALLEJO/TRAVIS AFBCAE-8",1986]
[{"$nulls":16},"VALLEJO/TRAVIS AFBCAE-9",1746,"VALLEJO/TRAVIS AFBCAE-9",2121]
[{"$nulls":16},"VALLEJO/TRAVIS AFBCAW-1",1578,"VALLEJO/TRAVIS AFBCAW-1",1836]
[{"$nulls":16},"VALLEJO/TRAVIS AFBCAW-2",1689,"VALLEJO/TRAVIS AFBCAW-2",1938]
[{"$nulls":16},"VALLEJO/TRAVIS AFBCAW-3",1752,"VALLEJO/TRAVIS AFBCAW-3",2034]
[{"$nulls":16},"VALLEJO/TRAVIS AFBCAW-4",1851,"VALLEJO/TRAVIS AFBCAW-4",2154]
[{"$nulls":16},"VALLEJO/TRAVIS AFBCAW-5",1923,"VALLEJO/TRAVIS AFBCAW-5",2292]
[{"$nulls":16},"VALLEJO/TRAVIS AFBCAO-1E",1653,"VALLEJO/TRAVIS AFBCAO-1E",1923]
[{"$nulls":16},"VALLEJO/TRAVIS AFBCAO-2E",1734,"VALLEJO/TRAVIS AFBCAO-2E",2022]
[{"$nulls":16},"VALLEJO/TRAVIS AFBCAO-3E",1833,"VALLEJO/TRAVIS AFBCAO-3E",2175]
[{"$nulls":16},"VALLEJO/TRAVIS AFBCAO-1",1545,"VALLEJO/TRAVIS AFBCAO-1",1674]
[{"$nulls":16},"VALLEJO/TRAVIS AFBCAO-2",1635,"VALLEJO/TRAVIS AFBCAO-2",1830]
[{"$nulls":16},"VALLEJO/TRAVIS AFBCAO-3",1770,"VALLEJO/TRAVIS AFBCAO-3",2031]
[{"$nulls":16},"VALLEJO/TRAVIS AFBCAO-4",1914,"VALLEJO/TRAVIS AFBCAO-4",2346]
[{"$nulls":16},"VALLEJO/TRAVIS AFBCAO-5",1959,"VALLEJO/TRAVIS AFBCAO-5",2571]
[{"$nulls":16},"VALLEJO/TRAVIS AFBCAO-6",2034,"VALLEJO/TRAVIS AFBCAO-6",2598]
[{"$nulls":16},"VALLEJO/TRAVIS AFBCAO-7",2076,"VALLEJO/TRAVIS AFBCAO-7",2622]
[{"$nulls":16},"LOS ANGELESCAE-1",1458,"LOS ANGELESCAE-1",1908]
[{"$nulls":16},"LOS ANGELESCAE-2",1458,"LOS ANGELESCAE-2",1908]
[{"$nulls":16},"LOS ANGELESCAE-3",1458,"LOS ANGELESCAE-3",1908]
[{"$nulls":16},"LOS ANGELESCAE-4",1458,"LOS ANGELESCAE-4",1908]
[{"$nulls":16},"LOS ANGELESCAE-5",1662,"LOS ANGELESCAE-5",2052]
[{"$nulls":16},"LOS ANGELESCAE-6",1797,"LOS ANGELESCAE-6",2397]
[{"$nulls":16},"LOS ANGELESCAE-7",1917,"LOS ANGELESCAE-7",2517]
[{"$nulls":16},"LOS ANGELESCAE-8",2121,"LOS ANGELESCAE-8",2649]
[{"$nulls":16},"LOS ANGELESCAE-9",2229,"LOS ANGELESCAE-9",2808]
[{"$nulls":16},"LOS ANGELESCAW-1",1851,"LOS ANGELESCAW-1",2400]
[{"$nulls":16},"LOS ANGELESCAW-2",2118,"LOS ANGELESCAW-2",2571]
[{"$nulls":16},"LOS ANGELESCAW-3",2238,"LOS ANGELESCAW-3",2733]
[{"$nulls":16},"LOS ANGELESCAW-4",2427,"LOS ANGELESCAW-4",2838]
[{"$nulls":16},"LOS ANGELESCAW-5",2547,"LOS ANGELESCAW-5",2961]
[{"$nulls":16},"LOS ANGELESCAO-1E",2052,"LOS ANGELESCAO-1E",2544]
[{"$nulls":16},"LOS ANGELESCAO-2E",2205,"LOS ANGELESCAO-2E",2709]
[{"$nulls":16},"LOS ANGELESCAO-3E",2397,"LOS ANGELESCAO-3E",2856]
[{"$nulls":16},"LOS ANGELESCAO-1",1761,"LOS ANGELESCAO-1",2091]
[{"$nulls":16},"LOS ANGELESCAO-2",2004,"LOS ANGELESCAO-2",2391]
[{"$nulls":16},"LOS ANGELESCAO-3",2274,"LOS ANGELESCAO-3",2724]
[{"$nulls":16},"LOS ANGELESCAO-4",2532,"LOS ANGELESCAO-4",3009]
[{"$nulls":16},"LOS ANGELESCAO-5",2607,"LOS ANGELESCAO-5",3210]
[{"$nulls":16},"LOS ANGELESCAO-6",2733,"LOS ANGELESCAO-6",3243]
[{"$nulls":16},"LOS ANGELESCAO-7",2787,"LOS ANGELESCAO-7",3273]
[{"$nulls":16},"SAN DIEGOCAE-1",1419,"SAN DIEGOCAE-1",1893]
[{"$nulls":16},"SAN DIEGOCAE-2",1419,"SAN DIEGOCAE-2",1893]
[{"$nulls":16},"SAN DIEGOCAE-3",1419,"SAN DIEGOCAE-3",1893]
[{"$nulls":16},"SAN DIEGOCAE-4",1419,"SAN DIEGOCAE-4",1893]
[{"$nulls":16},"SAN DIEGOCAE-5",1653,"SAN DIEGOCAE-5",1998]
[{"$nulls":16},"SAN DIEGOCAE-6",1800,"SAN DIEGOCAE-6",2133]
[{"$nulls":16},"SAN DIEGOCAE-7",1899,"SAN DIEGOCAE-7",2208]
[{"$nulls":16},"SAN DIEGOCAE-8",2025,"SAN DIEGOCAE-8",2286]
[{"$nulls":16},"SAN DIEGOCAE-9",2067,"SAN DIEGOCAE-9",2412]
[{"$nulls":16},"SAN DIEGOCAW-1",1851,"SAN DIEGOCAW-1",2136]
[{"$nulls":16},"SAN DIEGOCAW-2",2025,"SAN DIEGOCAW-2",2241]
[{"$nulls":16},"SAN DIEGOCAW-3",2073,"SAN DIEGOCAW-3",2337]
[{"$nulls":16},"SAN DIEGOCAW-4",2151,"SAN DIEGOCAW-4",2439]
[{"$nulls":16},"SAN DIEGOCAW-5",2226,"SAN DIEGOCAW-5",2556]
[{"$nulls":16},"SAN DIEGOCAO-1E",1998,"SAN DIEGOCAO-1E",2223]
[{"$nulls":16},"SAN DIEGOCAO-2E",2058,"SAN DIEGOCAO-2E",2325]
[{"$nulls":16},"SAN DIEGOCAO-3E",2133,"SAN DIEGOCAO-3E",2457]
[{"$nulls":16},"SAN DIEGOCAO-1",1785,"SAN DIEGOCAO-1",2013]
[{"$nulls":16},"SAN DIEGOCAO-2",1962,"SAN DIEGOCAO-2",2130]
[{"$nulls":16},"SAN DIEGOCAO-3",2085,"SAN DIEGOCAO-3",2334]
[{"$nulls":16},"SAN DIEGOCAO-4",2217,"SAN DIEGOCAO-4",2601]
[{"$nulls":16},"SAN DIEGOCAO-5",2262,"SAN DIEGOCAO-5",2793]
[{"$nulls":16},"SAN DIEGOCAO-6",2337,"SAN DIEGOCAO-6",2820]
[{"$nulls":16},"SAN DIEGOCAO-7",2385,"SAN DIEGOCAO-7",2847]
[{"$nulls":16},"MONTEREYCAE-1",1314,"MONTEREYCAE-1",1755]
[{"$nulls":16},"MONTEREYCAE-2",1314,"MONTEREYCAE-2",1755]
[{"$nulls":16},"MONTEREYCAE-3",1314,"MONTEREYCAE-3",1755]
[{"$nulls":16},"MONTEREYCAE-4",1314,"MONTEREYCAE-4",1755]
[{"$nulls":16},"MONTEREYCAE-5",1464,"MONTEREYCAE-5",1950]
[{"$nulls":16},"MONTEREYCAE-6",1758,"MONTEREYCAE-6",2343]
[{"$nulls":16},"MONTEREYCAE-7",1845,"MONTEREYCAE-7",2457]
[{"$nulls":16},"MONTEREYCAE-8",2028,"MONTEREYCAE-8",2583]
[{"$nulls":16},"MONTEREYCAE-9",2151,"MONTEREYCAE-9",2736]
[{"$nulls":16},"MONTEREYCAW-1",1761,"MONTEREYCAW-1",2346]
[{"$nulls":16},"MONTEREYCAW-2",2025,"MONTEREYCAW-2",2508]
[{"$nulls":16},"MONTEREYCAW-3",2163,"MONTEREYCAW-3",2664]
[{"$nulls":16},"MONTEREYCAW-4",2373,"MONTEREYCAW-4",2763]
[{"$nulls":16},"MONTEREYCAW-5",2487,"MONTEREYCAW-5",2883]
[{"$nulls":16},"MONTEREYCAO-1E",1950,"MONTEREYCAO-1E",2484]
[{"$nulls":16},"MONTEREYCAO-2E",2124,"MONTEREYCAO-2E",2640]
[{"$nulls":16},"MONTEREYCAO-3E",2343,"MONTEREYCAO-3E",2781]
[{"$nulls":16},"MONTEREYCAO-1",1557,"MONTEREYCAO-1",1995]
[{"$nulls":16},"MONTEREYCAO-2",1884,"MONTEREYCAO-2",2334]
[{"$nulls":16},"MONTEREYCAO-3",2202,"MONTEREYCAO-3",2658]
[{"$nulls":16},"MONTEREYCAO-4",2472,"MONTEREYCAO-4",2928]
[{"$nulls":16},"MONTEREYCAO-5",2544,"MONTEREYCAO-5",3120]
[{"$nulls":16},"MONTEREYCAO-6",2664,"MONTEREYCAO-6",3150]
[{"$nulls":16},"MONTEREYCAO-7",2715,"MONTEREYCAO-7",3180]
[{"$nulls":16},"BAKERSFIELDCAE-1",777,"BAKERSFIELDCAE-1",966]
[{"$nulls":16},"BAKERSFIELDCAE-2",777,"BAKERSFIELDCAE-2",966]
[{"$nulls":16},"BAKERSFIELDCAE-3",777,"BAKERSFIELDCAE-3",966]
[{"$nulls":16},"BAKERSFIELDCAE-4",777,"BAKERSFIELDCAE-4",966]
[{"$nulls":16},"BAKERSFIELDCAE-5",867,"BAKERSFIELDCAE-5",1020]
[{"$nulls":16},"BAKERSFIELDCAE-6",921,"BAKERSFIELDCAE-6",1215]
[{"$nulls":16},"BAKERSFIELDCAE-7",987,"BAKERSFIELDCAE-7",1317]
[{"$nulls":16},"BAKERSFIELDCAE-8",1068,"BAKERSFIELDCAE-8",1425]
[{"$nulls":16},"BAKERSFIELDCAE-9",1164,"BAKERSFIELDCAE-9",1551]
[{"$nulls":16},"BAKERSFIELDCAW-1",945,"BAKERSFIELDCAW-1",1218]
[{"$nulls":16},"BAKERSFIELDCAW-2",1059,"BAKERSFIELDCAW-2",1362]
[{"$nulls":16},"BAKERSFIELDCAW-3",1125,"BAKERSFIELDCAW-3",1497]
[{"$nulls":16},"BAKERSFIELDCAW-4",1239,"BAKERSFIELDCAW-4",1572]
[{"$nulls":16},"BAKERSFIELDCAW-5",1341,"BAKERSFIELDCAW-5",1662]
[{"$nulls":16},"BAKERSFIELDCAO-1E",1020,"BAKERSFIELDCAO-1E",1338]
[{"$nulls":16},"BAKERSFIELDCAO-2E",1107,"BAKERSFIELDCAO-2E",1476]
[{"$nulls":16},"BAKERSFIELDCAO-3E",1215,"BAKERSFIELDCAO-3E",1587]
[{"$nulls":16},"BAKERSFIELDCAO-1",912,"BAKERSFIELDCAO-1",1041]
[{"$nulls":16},"BAKERSFIELDCAO-2",1002,"BAKERSFIELDCAO-2",1209]
[{"$nulls":16},"BAKERSFIELDCAO-3",1146,"BAKERSFIELDCAO-3",1491]
[{"$nulls":16},"BAKERSFIELDCAO-4",1326,"BAKERSFIELDCAO-4",1698]
[{"$nulls":16},"BAKERSFIELDCAO-5",1392,"BAKERSFIELDCAO-5",1842]
[{"$nulls":16},"BAKERSFIELDCAO-6",1497,"BAKERSFIELDCAO-6",1860]
[{"$nulls":16},"BAKERSFIELDCAO-7",1527,"BAKERSFIELDCAO-7",1878]
[{"$nulls":16},"RIVERSIDECAE-1",1116,"RIVERSIDECAE-1",1488]
[{"$nulls":16},"RIVERSIDECAE-2",1116,"RIVERSIDECAE-2",1488]
[{"$nulls":16},"RIVERSIDECAE-3",1116,"RIVERSIDECAE-3",1488]
[{"$nulls":16},"RIVERSIDECAE-4",1116,"RIVERSIDECAE-4",1488]
[{"$nulls":16},"RIVERSIDECAE-5",1254,"RIVERSIDECAE-5",1671]
[{"$nulls":16},"RIVERSIDECAE-6",1332,"RIVERSIDECAE-6",1773]
[{"$nulls":16},"RIVERSIDECAE-7",1497,"RIVERSIDECAE-7",1815]
[{"$nulls":16},"RIVERSIDECAE-8",1692,"RIVERSIDECAE-8",1860]
[{"$nulls":16},"RIVERSIDECAE-9",1725,"RIVERSIDECAE-9",1977]
[{"$nulls":16},"RIVERSIDECAW-1",1416,"RIVERSIDECAW-1",1776]
[{"$nulls":16},"RIVERSIDECAW-2",1692,"RIVERSIDECAW-2",1833]
[{"$nulls":16},"RIVERSIDECAW-3",1728,"RIVERSIDECAW-3",1890]
[{"$nulls":16},"RIVERSIDECAW-4",1785,"RIVERSIDECAW-4",2007]
[{"$nulls":16},"RIVERSIDECAW-5",1827,"RIVERSIDECAW-5",2148]
[{"$nulls":16},"RIVERSIDECAO-1E",1671,"RIVERSIDECAO-1E",1824]
[{"$nulls":16},"RIVERSIDECAO-2E",1716,"RIVERSIDECAO-2E",1881]
[{"$nulls":16},"RIVERSIDECAO-3E",1773,"RIVERSIDECAO-3E",2028]
[{"$nulls":16},"RIVERSIDECAO-1",1302,"RIVERSIDECAO-1",1683]
[{"$nulls":16},"RIVERSIDECAO-2",1608,"RIVERSIDECAO-2",1773]
[{"$nulls":16},"RIVERSIDECAO-3",1737,"RIVERSIDECAO-3",1887]
[{"$nulls":16},"RIVERSIDECAO-4",1821,"RIVERSIDECAO-4",2202]
[{"$nulls":16},"RIVERSIDECAO-5",1848,"RIVERSIDECAO-5",2427]
[{"$nulls":16},"RIVERSIDECAO-6",1890,"RIVERSIDECAO-6",2451]
[{"$nulls":16},"RIVERSIDECAO-7",1929,"RIVERSIDECAO-7",2475]
[{"$nulls":16},"HUMBOLDT COUNTYCAE-1",768,"HUMBOLDT COUNTYCAE-1",1023]
[{"$nulls":16},"HUMBOLDT COUNTYCAE-2",768,"HUMBOLDT COUNTYCAE-2",1023]
[{"$nulls":16},"HUMBOLDT COUNTYCAE-3",768,"HUMBOLDT COUNTYCAE-3",1023]
[{"$nulls":16},"HUMBOLDT COUNTYCAE-4",768,"HUMBOLDT COUNTYCAE-4",1023]
[{"$nulls":16},"HUMBOLDT COUNTYCAE-5",870,"HUMBOLDT COUNTYCAE-5",1119]
[{"$nulls":16},"HUMBOLDT COUNTYCAE-6",1134,"HUMBOLDT COUNTYCAE-6",1512]
[{"$nulls":16},"HUMBOLDT COUNTYCAE-7",1158,"HUMBOLDT COUNTYCAE-7",1542]
[{"$nulls":16},"HUMBOLDT COUNTYCAE-8",1197,"HUMBOLDT COUNTYCAE-8",1578]
[{"$nulls":16},"HUMBOLDT COUNTYCAE-9",1320,"HUMBOLDT COUNTYCAE-9",1650]
[{"$nulls":16},"HUMBOLDT COUNTYCAW-1",1134,"HUMBOLDT COUNTYCAW-1",1512]
[{"$nulls":16},"HUMBOLDT COUNTYCAW-2",1194,"HUMBOLDT COUNTYCAW-2",1557]
[{"$nulls":16},"HUMBOLDT COUNTYCAW-3",1332,"HUMBOLDT COUNTYCAW-3",1599]
[{"$nulls":16},"HUMBOLDT COUNTYCAW-4",1521,"HUMBOLDT COUNTYCAW-4",1671]
[{"$nulls":16},"HUMBOLDT COUNTYCAW-5",1551,"HUMBOLDT COUNTYCAW-5",1755]
[{"$nulls":16},"HUMBOLDT COUNTYCAO-1E",1161,"HUMBOLDT COUNTYCAO-1E",1551]
[{"$nulls":16},"HUMBOLDT COUNTYCAO-2E",1293,"HUMBOLDT COUNTYCAO-2E",1593]
[{"$nulls":16},"HUMBOLDT COUNTYCAO-3E",1512,"HUMBOLDT COUNTYCAO-3E",1683]
[{"$nulls":16},"HUMBOLDT COUNTYCAO-1",927,"HUMBOLDT COUNTYCAO-1",1161]
[{"$nulls":16},"HUMBOLDT COUNTYCAO-2",1128,"HUMBOLDT COUNTYCAO-2",1503]
[{"$nulls":16},"HUMBOLDT COUNTYCAO-3",1371,"HUMBOLDT COUNTYCAO-3",1596]
[{"$nulls":16},"HUMBOLDT COUNTYCAO-4",1545,"HUMBOLDT COUNTYCAO-4",1788]
[{"$nulls":16},"HUMBOLDT COUNTYCAO-5",1566,"HUMBOLDT COUNTYCAO-5",1923]
[{"$nulls":16},"HUMBOLDT COUNTYCAO-6",1599,"HUMBOLDT COUNTYCAO-6",1941]
[{"$nulls":16},"HUMBOLDT COUNTYCAO-7",1629,"HUMBOLDT COUNTYCAO-7",1962]
[{"$nulls":16},"SANTA CLARA COUNTYCAE-1",1452,"SANTA CLARA COUNTYCAE-1",1935]
[{"$nulls":16},"SANTA CLARA COUNTYCAE-2",1452,"SANTA CLARA COUNTYCAE-2",1935]
[{"$nulls":16},"SANTA CLARA COUNTYCAE-3",1452,"SANTA CLARA COUNTYCAE-3",1935]
[{"$nulls":16},"SANTA CLARA COUNTYCAE-4",1452,"SANTA CLARA COUNTYCAE-4",1935]
[{"$nulls":16},"SANTA CLARA COUNTYCAE-5",1650,"SANTA CLARA COUNTYCAE-5",2112]
[{"$nulls":16},"SANTA CLARA COUNTYCAE-6",1785,"SANTA CLARA COUNTYCAE-6",2313]
[{"$nulls":16},"SANTA CLARA COUNTYCAE-7",1947,"SANTA CLARA COUNTYCAE-7",2406]
[{"$nulls":16},"SANTA CLARA COUNTYCAE-8",2154,"SANTA CLARA COUNTYCAE-8",2505]
[{"$nulls":16},"SANTA CLARA COUNTYCAE-9",2217,"SANTA CLARA COUNTYCAE-9",2673]
[{"$nulls":16},"SANTA CLARA COUNTYCAW-1",1869,"SANTA CLARA COUNTYCAW-1",2316]
[{"$nulls":16},"SANTA CLARA COUNTYCAW-2",2151,"SANTA CLARA COUNTYCAW-2",2445]
[{"$nulls":16},"SANTA CLARA COUNTYCAW-3",2223,"SANTA CLARA COUNTYCAW-3",2568]
[{"$nulls":16},"SANTA CLARA COUNTYCAW-4",2337,"SANTA CLARA COUNTYCAW-4",2712]
[{"$nulls":16},"SANTA CLARA COUNTYCAW-5",2427,"SANTA CLARA COUNTYCAW-5",2883]
[{"$nulls":16},"SANTA CLARA COUNTYCAO-1E",2112,"SANTA CLARA COUNTYCAO-1E",2427]
[{"$nulls":16},"SANTA CLARA COUNTYCAO-2E",2202,"SANTA CLARA COUNTYCAO-2E",2550]
[{"$nulls":16},"SANTA CLARA COUNTYCAO-3E",2313,"SANTA CLARA COUNTYCAO-3E",2739]
[{"$nulls":16},"SANTA CLARA COUNTYCAO-1",1758,"SANTA CLARA COUNTYCAO-1",2136]
[{"$nulls":16},"SANTA CLARA COUNTYCAO-2",2052,"SANTA CLARA COUNTYCAO-2",2310]
[{"$nulls":16},"SANTA CLARA COUNTYCAO-3",2241,"SANTA CLARA COUNTYCAO-3",2562]
[{"$nulls":16},"SANTA CLARA COUNTYCAO-4",2415,"SANTA CLARA COUNTYCAO-4",2949]
[{"$nulls":16},"SANTA CLARA COUNTYCAO-5",2475,"SANTA CLARA COUNTYCAO-5",3225]
[{"$nulls":16},"SANTA CLARA COUNTYCAO-6",2568,"SANTA CLARA COUNTYCAO-6",3258]
[{"$nulls":16},"SANTA CLARA COUNTYCAO-7",2619,"SANTA CLARA COUNTYCAO-7",3291]
[{"$nulls":16},"SAN LUIS OBISPOCAE-1",1038,"SAN LUIS OBISPOCAE-1",1383]
[{"$nulls":16},"SAN LUIS OBISPOCAE-2",1038,"SAN LUIS OBISPOCAE-2",1383]
[{"$nulls":16},"SAN LUIS OBISPOCAE-3",1038,"SAN LUIS OBISPOCAE-3",1383]
[{"$nulls":16},"SAN LUIS OBISPOCAE-4",1038,"SAN LUIS OBISPOCAE-4",1383]
[{"$nulls":16},"SAN LUIS OBISPOCAE-5",1158,"SAN LUIS OBISPOCAE-5",1506]
[{"$nulls":16},"SAN LUIS OBISPOCAE-6",1398,"SAN LUIS OBISPOCAE-6",1863]
[{"$nulls":16},"SAN LUIS OBISPOCAE-7",1452,"SAN LUIS OBISPOCAE-7",1938]
[{"$nulls":16},"SAN LUIS OBISPOCAE-8",1578,"SAN LUIS OBISPOCAE-8",2019]
[{"$nulls":16},"SAN LUIS OBISPOCAE-9",1689,"SAN LUIS OBISPOCAE-9",2109]
[{"$nulls":16},"SAN LUIS OBISPOCAW-1",1398,"SAN LUIS OBISPOCAW-1",1863]
[{"$nulls":16},"SAN LUIS OBISPOCAW-2",1575,"SAN LUIS OBISPOCAW-2",1971]
[{"$nulls":16},"SAN LUIS OBISPOCAW-3",1698,"SAN LUIS OBISPOCAW-3",2073]
[{"$nulls":16},"SAN LUIS OBISPOCAW-4",1881,"SAN LUIS OBISPOCAW-4",2124]
[{"$nulls":16},"SAN LUIS OBISPOCAW-5",1956,"SAN LUIS OBISPOCAW-5",2181]
[{"$nulls":16},"SAN LUIS OBISPOCAO-1E",1506,"SAN LUIS OBISPOCAO-1E",1956]
[{"$nulls":16},"SAN LUIS OBISPOCAO-2E",1662,"SAN LUIS OBISPOCAO-2E",2058]
[{"$nulls":16},"SAN LUIS OBISPOCAO-3E",1863,"SAN LUIS OBISPOCAO-3E",2133]
[{"$nulls":16},"SAN LUIS OBISPOCAO-1",1260,"SAN LUIS OBISPOCAO-1",1545]
[{"$nulls":16},"SAN LUIS OBISPOCAO-2",1464,"SAN LUIS OBISPOCAO-2",1854]
[{"$nulls":16},"SAN LUIS OBISPOCAO-3",1734,"SAN LUIS OBISPOCAO-3",2070]
[{"$nulls":16},"SAN LUIS OBISPOCAO-4",1947,"SAN LUIS OBISPOCAO-4",2205]
[{"$nulls":16},"SAN LUIS OBISPOCAO-5",1995,"SAN LUIS OBISPOCAO-5",2301]
[{"$nulls":16},"SAN LUIS OBISPOCAO-6",2073,"SAN LUIS OBISPOCAO-6",2322]
[{"$nulls":16},"SAN LUIS OBISPOCAO-7",2115,"SAN LUIS OBISPOCAO-7",2346]
[{"$nulls":16},"BRIDGEPORTCAE-1",1104,"BRIDGEPORTCAE-1",1455]
[{"$nulls":16},"BRIDGEPORTCAE-2",1104,"BRIDGEPORTCAE-2",1455]
[{"$nulls":16},"BRIDGEPORTCAE-3",1104,"BRIDGEPORTCAE-3",1455]
[{"$nulls":16},"BRIDGEPORTCAE-4",1104,"BRIDGEPORTCAE-4",1455]
[{"$nulls":16},"BRIDGEPORTCAE-5",1329,"BRIDGEPORTCAE-5",1470]
[{"$nulls":16},"BRIDGEPORTCAE-6",1440,"BRIDGEPORTCAE-6",1617]
[{"$nulls":16},"BRIDGEPORTCAE-7",1455,"BRIDGEPORTCAE-7",1638]
[{"$nulls":16},"BRIDGEPORTCAE-8",1500,"BRIDGEPORTCAE-8",1662]
[{"$nulls":16},"BRIDGEPORTCAE-9",1545,"BRIDGEPORTCAE-9",1740]
[{"$nulls":16},"BRIDGEPORTCAW-1",1449,"BRIDGEPORTCAW-1",1617]
[{"$nulls":16},"BRIDGEPORTCAW-2",1497,"BRIDGEPORTCAW-2",1647]
[{"$nulls":16},"BRIDGEPORTCAW-3",1548,"BRIDGEPORTCAW-3",1677]
[{"$nulls":16},"BRIDGEPORTCAW-4",1623,"BRIDGEPORTCAW-4",1764]
[{"$nulls":16},"BRIDGEPORTCAW-5",1644,"BRIDGEPORTCAW-5",1869]
[{"$nulls":16},"BRIDGEPORTCAO-1E",1470,"BRIDGEPORTCAO-1E",1644]
[{"$nulls":16},"BRIDGEPORTCAO-2E",1533,"BRIDGEPORTCAO-2E",1674]
[{"$nulls":16},"BRIDGEPORTCAO-3E",1617,"BRIDGEPORTCAO-3E",1782]
[{"$nulls":16},"BRIDGEPORTCAO-1",1440,"BRIDGEPORTCAO-1",1485]
[{"$nulls":16},"BRIDGEPORTCAO-2",1464,"BRIDGEPORTCAO-2",1614]
[{"$nulls":16},"BRIDGEPORTCAO-3",1563,"BRIDGEPORTCAO-3",1677]
[{"$nulls":16},"BRIDGEPORTCAO-4",1641,"BRIDGEPORTCAO-4",1911]
[{"$nulls":16},"BRIDGEPORTCAO-5",1656,"BRIDGEPORTCAO-5",2079]
[{"$nulls":16},"BRIDGEPORTCAO-6",1677,"BRIDGEPORTCAO-6",2100]
[{"$nulls":16},"BRIDGEPORTCAO-7",1710,"BRIDGEPORTCAO-7",2121]
[{"$nulls":16},"EL CENTROCAE-1",747,"EL CENTROCAE-1",996]
[{"$nulls":16},"EL CENTROCAE-2",747,"EL CENTROCAE-2",996]
[{"$nulls":16},"EL CENTROCAE-3",747,"EL CENTROCAE-3",996]
[{"$nulls":16},"EL CENTROCAE-4",747,"EL CENTROCAE-4",996]
[{"$nulls":16},"EL CENTROCAE-5",858,"EL CENTROCAE-5",1080]
[{"$nulls":16},"EL CENTROCAE-6",924,"EL CENTROCAE-6",1206]
[{"$nulls":16},"EL CENTROCAE-7",1002,"EL CENTROCAE-7",1296]
[{"$nulls":16},"EL CENTROCAE-8",1104,"EL CENTROCAE-8",1395]
[{"$nulls":16},"EL CENTROCAE-9",1143,"EL CENTROCAE-9",1491]
[{"$nulls":16},"EL CENTROCAW-1",963,"EL CENTROCAW-1",1209]
[{"$nulls":16},"EL CENTROCAW-2",1104,"EL CENTROCAW-2",1338]
[{"$nulls":16},"EL CENTROCAW-3",1149,"EL CENTROCAW-3",1458]
[{"$nulls":16},"EL CENTROCAW-4",1230,"EL CENTROCAW-4",1503]
[{"$nulls":16},"EL CENTROCAW-5",1320,"EL CENTROCAW-5",1557]
[{"$nulls":16},"EL CENTROCAO-1E",1080,"EL CENTROCAO-1E",1317]
[{"$nulls":16},"EL CENTROCAO-2E",1134,"EL CENTROCAO-2E",1440]
[{"$nulls":16},"EL CENTROCAO-3E",1206,"EL CENTROCAO-3E",1512]
[{"$nulls":16},"EL CENTROCAO-1",912,"EL CENTROCAO-1",1095]
[{"$nulls":16},"EL CENTROCAO-2",1050,"EL CENTROCAO-2",1203]
[{"$nulls":16},"EL CENTROCAO-3",1161,"EL CENTROCAO-3",1452]
[{"$nulls":16},"EL CENTROCAO-4",1308,"EL CENTROCAO-4",1578]
[{"$nulls":16},"EL CENTROCAO-5",1365,"EL CENTROCAO-5",1668]
[{"$nulls":16},"EL CENTROCAO-6",1458,"EL CENTROCAO-6",1683]
[{"$nulls":16},"EL CENTROCAO-7",1488,"EL CENTROCAO-7",1701]
[{"$nulls":16},"FORT BRAGGCAE-1",840,"FORT BRAGGCAE-1",1080]
[{"$nulls":16},"FORT BRAGGCAE-2",840,"FORT BRAGGCAE-2",1080]
[{"$nulls":16},"FORT BRAGGCAE-3",840,"FORT BRAGGCAE-3",1080]
[{"$nulls":16},"FORT BRAGGCAE-4",840,"FORT BRAGGCAE-4",1080]
[{"$nulls":16},"FORT BRAGGCAE-5",945,"FORT BRAGGCAE-5",1161]
[{"$nulls":16},"FORT BRAGGCAE-6",1059,"FORT BRAGGCAE-6",1410]
[{"$nulls":16},"FORT BRAGGCAE-7",1149,"FORT BRAGGCAE-7",1533]
[{"$nulls":16},"FORT BRAGGCAE-8",1248,"FORT BRAGGCAE-8",1665]
[{"$nulls":16},"FORT BRAGGCAE-9",1350,"FORT BRAGGCAE-9",1803]
[{"$nulls":16},"FORT BRAGGCAW-1",1059,"FORT BRAGGCAW-1",1413]
[{"$nulls":16},"FORT BRAGGCAW-2",1209,"FORT BRAGGCAW-2",1587]
[{"$nulls":16},"FORT BRAGGCAW-3",1314,"FORT BRAGGCAW-3",1749]
[{"$nulls":16},"FORT BRAGGCAW-4",1440,"FORT BRAGGCAW-4",1821]
[{"$nulls":16},"FORT BRAGGCAW-5",1563,"FORT BRAGGCAW-5",1905]
[{"$nulls":16},"FORT BRAGGCAO-1E",1170,"FORT BRAGGCAO-1E",1560]
[{"$nulls":16},"FORT BRAGGCAO-2E",1296,"FORT BRAGGCAO-2E",1725]
[{"$nulls":16},"FORT BRAGGCAO-3E",1410,"FORT BRAGGCAO-3E",1833]
[{"$nulls":16},"FORT BRAGGCAO-1",996,"FORT BRAGGCAO-1",1188]
[{"$nulls":16},"FORT BRAGGCAO-2",1134,"FORT BRAGGCAO-2",1404]
[{"$nulls":16},"FORT BRAGGCAO-3",1320,"FORT BRAGGCAO-3",1743]
[{"$nulls":16},"FORT BRAGGCAO-4",1545,"FORT BRAGGCAO-4",1938]
[{"$nulls":16},"FORT BRAGGCAO-5",1623,"FORT BRAGGCAO-5",2073]
[{"$nulls":16},"FORT BRAGGCAO-6",1749,"FORT BRAGGCAO-6",2094]
[{"$nulls":16},"FORT BRAGGCAO-7",1785,"FORT BRAGGCAO-7",2112]
[{"$nulls":16},"EDWARDS AFB/PALMDALECAE-1",990,"EDWARDS AFB/PALMDALECAE-1",1203]
[{"$nulls":16},"EDWARDS AFB/PALMDALECAE-2",990,"EDWARDS AFB/PALMDALECAE-2",1203]
[{"$nulls":16},"EDWARDS AFB/PALMDALECAE-3",990,"EDWARDS AFB/PALMDALECAE-3",1203]
[{"$nulls":16},"EDWARDS AFB/PALMDALECAE-4",990,"EDWARDS AFB/PALMDALECAE-4",1203]
[{"$nulls":16},"EDWARDS AFB/PALMDALECAE-5",1059,"EDWARDS AFB/PALMDALECAE-5",1317]
[{"$nulls":16},"EDWARDS AFB/PALMDALECAE-6",1212,"EDWARDS AFB/PALMDALECAE-6",1617]
[{"$nulls":16},"EDWARDS AFB/PALMDALECAE-7",1275,"EDWARDS AFB/PALMDALECAE-7",1701]
[{"$nulls":16},"EDWARDS AFB/PALMDALECAE-8",1377,"EDWARDS AFB/PALMDALECAE-8",1794]
[{"$nulls":16},"EDWARDS AFB/PALMDALECAE-9",1470,"EDWARDS AFB/PALMDALECAE-9",1905]
[{"$nulls":16},"EDWARDS AFB/PALMDALECAW-1",1215,"EDWARDS AFB/PALMDALECAW-1",1617]
[{"$nulls":16},"EDWARDS AFB/PALMDALECAW-2",1374,"EDWARDS AFB/PALMDALECAW-2",1740]
[{"$nulls":16},"EDWARDS AFB/PALMDALECAW-3",1479,"EDWARDS AFB/PALMDALECAW-3",1851]
[{"$nulls":16},"EDWARDS AFB/PALMDALECAW-4",1638,"EDWARDS AFB/PALMDALECAW-4",1926]
[{"$nulls":16},"EDWARDS AFB/PALMDALECAW-5",1722,"EDWARDS AFB/PALMDALECAW-5",2010]
[{"$nulls":16},"EDWARDS AFB/PALMDALECAO-1E",1317,"EDWARDS AFB/PALMDALECAO-1E",1719]
[{"$nulls":16},"EDWARDS AFB/PALMDALECAO-2E",1449,"EDWARDS AFB/PALMDALECAO-2E",1836]
[{"$nulls":16},"EDWARDS AFB/PALMDALECAO-3E",1617,"EDWARDS AFB/PALMDALECAO-3E",1938]
[{"$nulls":16},"EDWARDS AFB/PALMDALECAO-1",1092,"EDWARDS AFB/PALMDALECAO-1",1350]
[{"$nulls":16},"EDWARDS AFB/PALMDALECAO-2",1278,"EDWARDS AFB/PALMDALECAO-2",1611]
[{"$nulls":16},"EDWARDS AFB/PALMDALECAO-3",1509,"EDWARDS AFB/PALMDALECAO-3",1848]
[{"$nulls":16},"EDWARDS AFB/PALMDALECAO-4",1710,"EDWARDS AFB/PALMDALECAO-4",2043]
[{"$nulls":16},"EDWARDS AFB/PALMDALECAO-5",1764,"EDWARDS AFB/PALMDALECAO-5",2184]
[{"$nulls":16},"EDWARDS AFB/PALMDALECAO-6",1851,"EDWARDS AFB/PALMDALECAO-6",2205]
[{"$nulls":16},"EDWARDS AFB/PALMDALECAO-7",1890,"EDWARDS AFB/PALMDALECAO-7",2226]
[{"$nulls":16},"DENVERCOE-1",963,"DENVERCOE-1",1284]
[{"$nulls":16},"DENVERCOE-2",963,"DENVERCOE-2",1284]
[{"$nulls":16},"DENVERCOE-3",963,"DENVERCOE-3",1284]
[{"$nulls":16},"DENVERCOE-4",963,"DENVERCOE-4",1284]
[{"$nulls":16},"DENVERCOE-5",1095,"DENVERCOE-5",1458]
[{"$nulls":16},"DENVERCOE-6",1191,"DENVERCOE-6",1587]
[{"$nulls":16},"DENVERCOE-7",1293,"DENVERCOE-7",1719]
[{"$nulls":16},"DENVERCOE-8",1485,"DENVERCOE-8",1866]
[{"$nulls":16},"DENVERCOE-9",1524,"DENVERCOE-9",2031]
[{"$nulls":16},"DENVERCOW-1",1218,"DENVERCOW-1",1590]
[{"$nulls":16},"DENVERCOW-2",1482,"DENVERCOW-2",1779]
[{"$nulls":16},"DENVERCOW-3",1527,"DENVERCOW-3",1959]
[{"$nulls":16},"DENVERCOW-4",1620,"DENVERCOW-4",2058]
[{"$nulls":16},"DENVERCOW-5",1755,"DENVERCOW-5",2175]
[{"$nulls":16},"DENVERCOO-1E",1458,"DENVERCOO-1E",1749]
[{"$nulls":16},"DENVERCOO-2E",1515,"DENVERCOO-2E",1932]
[{"$nulls":16},"DENVERCOO-3E",1587,"DENVERCOO-3E",2076]
[{"$nulls":16},"DENVERCOO-1",1110,"DENVERCOO-1",1473]
[{"$nulls":16},"DENVERCOO-2",1398,"DENVERCOO-2",1584]
[{"$nulls":16},"DENVERCOO-3",1539,"DENVERCOO-3",1953]
[{"$nulls":16},"DENVERCOO-4",1734,"DENVERCOO-4",2220]
[{"$nulls":16},"DENVERCOO-5",1821,"DENVERCOO-5",2409]
[{"$nulls":16},"DENVERCOO-6",1959,"DENVERCOO-6",2433]
[{"$nulls":16},"DENVERCOO-7",1998,"DENVERCOO-7",2457]
[{"$nulls":16},"COLORADO SPRINGSCOE-1",825,"COLORADO SPRINGSCOE-1",1065]
[{"$nulls":16},"COLORADO SPRINGSCOE-2",825,"COLORADO SPRINGSCOE-2",1065]
[{"$nulls":16},"COLORADO SPRINGSCOE-3",825,"COLORADO SPRINGSCOE-3",1065]
[{"$nulls":16},"COLORADO SPRINGSCOE-4",825,"COLORADO SPRINGSCOE-4",1065]
[{"$nulls":16},"COLORADO SPRINGSCOE-5",924,"COLORADO SPRINGSCOE-5",1152]
[{"$nulls":16},"COLORADO SPRINGSCOE-6",987,"COLORADO SPRINGSCOE-6",1257]
[{"$nulls":16},"COLORADO SPRINGSCOE-7",1068,"COLORADO SPRINGSCOE-7",1347]
[{"$nulls":16},"COLORADO SPRINGSCOE-8",1173,"COLORADO SPRINGSCOE-8",1446]
[{"$nulls":16},"COLORADO SPRINGSCOE-9",1206,"COLORADO SPRINGSCOE-9",1557]
[{"$nulls":16},"COLORADO SPRINGSCOW-1",1029,"COLORADO SPRINGSCOW-1",1260]
[{"$nulls":16},"COLORADO SPRINGSCOW-2",1173,"COLORADO SPRINGSCOW-2",1389]
[{"$nulls":16},"COLORADO SPRINGSCOW-3",1209,"COLORADO SPRINGSCOW-3",1509]
[{"$nulls":16},"COLORADO SPRINGSCOW-4",1281,"COLORADO SPRINGSCOW-4",1575]
[{"$nulls":16},"COLORADO SPRINGSCOW-5",1371,"COLORADO SPRINGSCOW-5",1650]
[{"$nulls":16},"COLORADO SPRINGSCOO-1E",1152,"COLORADO SPRINGSCOO-1E",1368]
[{"$nulls":16},"COLORADO SPRINGSCOO-2E",1200,"COLORADO SPRINGSCOO-2E",1491]
[{"$nulls":16},"COLORADO SPRINGSCOO-3E",1257,"COLORADO SPRINGSCOO-3E",1584]
[{"$nulls":16},"COLORADO SPRINGSCOO-1",975,"COLORADO SPRINGSCOO-1",1164]
[{"$nulls":16},"COLORADO SPRINGSCOO-2",1122,"COLORADO SPRINGSCOO-2",1257]
[{"$nulls":16},"COLORADO SPRINGSCOO-3",1221,"COLORADO SPRINGSCOO-3",1503]
[{"$nulls":16},"COLORADO SPRINGSCOO-4",1359,"COLORADO SPRINGSCOO-4",1680]
[{"$nulls":16},"COLORADO SPRINGSCOO-5",1416,"COLORADO SPRINGSCOO-5",1803]
[{"$nulls":16},"COLORADO SPRINGSCOO-6",1509,"COLORADO SPRINGSCOO-6",1821]
[{"$nulls":16},"COLORADO SPRINGSCOO-7",1539,"COLORADO SPRINGSCOO-7",1839]
[{"$nulls":16},"FORT COLLINSCOE-1",756,"FORT COLLINSCOE-1",942]
[{"$nulls":16},"FORT COLLINSCOE-2",756,"FORT COLLINSCOE-2",942]
[{"$nulls":16},"FORT COLLINSCOE-3",756,"FORT COLLINSCOE-3",942]
[{"$nulls":16},"FORT COLLINSCOE-4",756,"FORT COLLINSCOE-4",942]
[{"$nulls":16},"FORT COLLINSCOE-5",834,"FORT COLLINSCOE-5",1011]
[{"$nulls":16},"FORT COLLINSCOE-6",942,"FORT COLLINSCOE-6",1257]
[{"$nulls":16},"FORT COLLINSCOE-7",993,"FORT COLLINSCOE-7",1323]
[{"$nulls":16},"FORT COLLINSCOE-8",1059,"FORT COLLINSCOE-8",1395]
[{"$nulls":16},"FORT COLLINSCOE-9",1137,"FORT COLLINSCOE-9",1470]
[{"$nulls":16},"FORT COLLINSCOW-1",945,"FORT COLLINSCOW-1",1260]
[{"$nulls":16},"FORT COLLINSCOW-2",1059,"FORT COLLINSCOW-2",1353]
[{"$nulls":16},"FORT COLLINSCOW-3",1143,"FORT COLLINSCOW-3",1440]
[{"$nulls":16},"FORT COLLINSCOW-4",1272,"FORT COLLINSCOW-4",1479]
[{"$nulls":16},"FORT COLLINSCOW-5",1338,"FORT COLLINSCOW-5",1527]
[{"$nulls":16},"FORT COLLINSCOO-1E",1011,"FORT COLLINSCOO-1E",1338]
[{"$nulls":16},"FORT COLLINSCOO-2E",1119,"FORT COLLINSCOO-2E",1428]
[{"$nulls":16},"FORT COLLINSCOO-3E",1257,"FORT COLLINSCOO-3E",1488]
[{"$nulls":16},"FORT COLLINSCOO-1",873,"FORT COLLINSCOO-1",1038]
[{"$nulls":16},"FORT COLLINSCOO-2",987,"FORT COLLINSCOO-2",1251]
[{"$nulls":16},"FORT COLLINSCOO-3",1167,"FORT COLLINSCOO-3",1437]
[{"$nulls":16},"FORT COLLINSCOO-4",1329,"FORT COLLINSCOO-4",1545]
[{"$nulls":16},"FORT COLLINSCOO-5",1371,"FORT COLLINSCOO-5",1620]
[{"$nulls":16},"FORT COLLINSCOO-6",1440,"FORT COLLINSCOO-6",1638]
[{"$nulls":16},"FORT COLLINSCOO-7",1470,"FORT COLLINSCOO-7",1653]
[{"$nulls":16},"BOULDERCOE-1",1002,"BOULDERCOE-1",1320]
[{"$nulls":16},"BOULDERCOE-2",1002,"BOULDERCOE-2",1320]
[{"$nulls":16},"BOULDERCOE-3",1002,"BOULDERCOE-3",1320]
[{"$nulls":16},"BOULDERCOE-4",1002,"BOULDERCOE-4",1320]
[{"$nulls":16},"BOULDERCOE-5",1119,"BOULDERCOE-5",1461]
[{"$nulls":16},"BOULDERCOE-6",1314,"BOULDERCOE-6",1752]
[{"$nulls":16},"BOULDERCOE-7",1368,"BOULDERCOE-7",1824]
[{"$nulls":16},"BOULDERCOE-8",1518,"BOULDERCOE-8",1902]
[{"$nulls":16},"BOULDERCOE-9",1608,"BOULDERCOE-9",2019]
[{"$nulls":16},"BOULDERCOW-1",1314,"BOULDERCOW-1",1755]
[{"$nulls":16},"BOULDERCOW-2",1515,"BOULDERCOW-2",1854]
[{"$nulls":16},"BOULDERCOW-3",1617,"BOULDERCOW-3",1950]
[{"$nulls":16},"BOULDERCOW-4",1770,"BOULDERCOW-4",2043]
[{"$nulls":16},"BOULDERCOW-5",1842,"BOULDERCOW-5",2154]
[{"$nulls":16},"BOULDERCOO-1E",1461,"BOULDERCOO-1E",1839]
[{"$nulls":16},"BOULDERCOO-2E",1590,"BOULDERCOO-2E",1935]
[{"$nulls":16},"BOULDERCOO-3E",1752,"BOULDERCOO-3E",2061]
[{"$nulls":16},"BOULDERCOO-1",1176,"BOULDERCOO-1",1494]
[{"$nulls":16},"BOULDERCOO-2",1413,"BOULDERCOO-2",1746]
[{"$nulls":16},"BOULDERCOO-3",1647,"BOULDERCOO-3",1947]
[{"$nulls":16},"BOULDERCOO-4",1830,"BOULDERCOO-4",2196]
[{"$nulls":16},"BOULDERCOO-5",1878,"BOULDERCOO-5",2376]
[{"$nulls":16},"BOULDERCOO-6",1950,"BOULDERCOO-6",2400]
[{"$nulls":16},"BOULDERCOO-7",1989,"BOULDERCOO-7",2424]
[{"$nulls":16},"NEW LONDONCTE-1",1041,"NEW LONDONCTE-1",1383]
[{"$nulls":16},"NEW LONDONCTE-2",1041,"NEW LONDONCTE-2",1383]
[{"$nulls":16},"NEW LONDONCTE-3",1041,"NEW LONDONCTE-3",1383]
[{"$nulls":16},"NEW LONDONCTE-4",1041,"NEW LONDONCTE-4",1383]
[{"$nulls":16},"NEW LONDONCTE-5",1188,"NEW LONDONCTE-5",1506]
[{"$nulls":16},"NEW LONDONCTE-6",1278,"NEW LONDONCTE-6",1599]
[{"$nulls":16},"NEW LONDONCTE-7",1389,"NEW LONDONCTE-7",1716]
[{"$nulls":16},"NEW LONDONCTE-8",1524,"NEW LONDONCTE-8",1842]
[{"$nulls":16},"NEW LONDONCTE-9",1551,"NEW LONDONCTE-9",1989]
[{"$nulls":16},"NEW LONDONCTW-1",1335,"NEW LONDONCTW-1",1602]
[{"$nulls":16},"NEW LONDONCTW-2",1524,"NEW LONDONCTW-2",1767]
[{"$nulls":16},"NEW LONDONCTW-3",1554,"NEW LONDONCTW-3",1926]
[{"$nulls":16},"NEW LONDONCTW-4",1626,"NEW LONDONCTW-4",2016]
[{"$nulls":16},"NEW LONDONCTW-5",1746,"NEW LONDONCTW-5",2121]
[{"$nulls":16},"NEW LONDONCTO-1E",1506,"NEW LONDONCTO-1E",1743]
[{"$nulls":16},"NEW LONDONCTO-2E",1545,"NEW LONDONCTO-2E",1902]
[{"$nulls":16},"NEW LONDONCTO-3E",1599,"NEW LONDONCTO-3E",2031]
[{"$nulls":16},"NEW LONDONCTO-1",1260,"NEW LONDONCTO-1",1515]
[{"$nulls":16},"NEW LONDONCTO-2",1464,"NEW LONDONCTO-2",1596]
[{"$nulls":16},"NEW LONDONCTO-3",1566,"NEW LONDONCTO-3",1917]
[{"$nulls":16},"NEW LONDONCTO-4",1728,"NEW LONDONCTO-4",2163]
[{"$nulls":16},"NEW LONDONCTO-5",1803,"NEW LONDONCTO-5",2334]
[{"$nulls":16},"NEW LONDONCTO-6",1926,"NEW LONDONCTO-6",2358]
[{"$nulls":16},"NEW LONDONCTO-7",1965,"NEW LONDONCTO-7",2382]
[{"$nulls":16},"HARTFORDCTE-1",1176,"HARTFORDCTE-1",1569]
[{"$nulls":16},"HARTFORDCTE-2",1176,"HARTFORDCTE-2",1569]
[{"$nulls":16},"HARTFORDCTE-3",1176,"HARTFORDCTE-3",1569]
[{"$nulls":16},"HARTFORDCTE-4",1176,"HARTFORDCTE-4",1569]
[{"$nulls":16},"HARTFORDCTE-5",1320,"HARTFORDCTE-5",1758]
[{"$nulls":16},"HARTFORDCTE-6",1452,"HARTFORDCTE-6",1935]
[{"$nulls":16},"HARTFORDCTE-7",1581,"HARTFORDCTE-7",2082]
[{"$nulls":16},"HARTFORDCTE-8",1794,"HARTFORDCTE-8",2238]
[{"$nulls":16},"HARTFORDCTE-9",1848,"HARTFORDCTE-9",2457]
[{"$nulls":16},"HARTFORDCTW-1",1497,"HARTFORDCTW-1",1941]
[{"$nulls":16},"HARTFORDCTW-2",1794,"HARTFORDCTW-2",2145]
[{"$nulls":16},"HARTFORDCTW-3",1854,"HARTFORDCTW-3",2340]
[{"$nulls":16},"HARTFORDCTW-4",1971,"HARTFORDCTW-4",2502]
[{"$nulls":16},"HARTFORDCTW-5",2118,"HARTFORDCTW-5",2694]
[{"$nulls":16},"HARTFORDCTO-1E",1758,"HARTFORDCTO-1E",2112]
[{"$nulls":16},"HARTFORDCTO-2E",1836,"HARTFORDCTO-2E",2310]
[{"$nulls":16},"HARTFORDCTO-3E",1935,"HARTFORDCTO-3E",2532]
[{"$nulls":16},"HARTFORDCTO-1",1377,"HARTFORDCTO-1",1779]
[{"$nulls":16},"HARTFORDCTO-2",1695,"HARTFORDCTO-2",1932]
[{"$nulls":16},"HARTFORDCTO-3",1872,"HARTFORDCTO-3",2331]
[{"$nulls":16},"HARTFORDCTO-4",2097,"HARTFORDCTO-4",2766]
[{"$nulls":16},"HARTFORDCTO-5",2307,"HARTFORDCTO-5",3075]
[{"$nulls":16},"HARTFORDCTO-6",2340,"HARTFORDCTO-6",3108]
[{"$nulls":16},"HARTFORDCTO-7",2385,"HARTFORDCTO-7",3138]
[{"$nulls":16},"NEW HAVEN/FAIRFIELDCTE-1",1635,"NEW HAVEN/FAIRFIELDCTE-1",2001]
[{"$nulls":16},"NEW HAVEN/FAIRFIELDCTE-2",1635,"NEW HAVEN/FAIRFIELDCTE-2",2001]
[{"$nulls":16},"NEW HAVEN/FAIRFIELDCTE-3",1635,"NEW HAVEN/FAIRFIELDCTE-3",2001]
[{"$nulls":16},"NEW HAVEN/FAIRFIELDCTE-4",1635,"NEW HAVEN/FAIRFIELDCTE-4",2001]
[{"$nulls":16},"NEW HAVEN/FAIRFIELDCTE-5",1803,"NEW HAVEN/FAIRFIELDCTE-5",2112]
[{"$nulls":16},"NEW HAVEN/FAIRFIELDCTE-6",1902,"NEW HAVEN/FAIRFIELDCTE-6",2292]
[{"$nulls":16},"NEW HAVEN/FAIRFIELDCTE-7",2007,"NEW HAVEN/FAIRFIELDCTE-7",2517]
[{"$nulls":16},"NEW HAVEN/FAIRFIELDCTE-8",2148,"NEW HAVEN/FAIRFIELDCTE-8",2763]
[{"$nulls":16},"NEW HAVEN/FAIRFIELDCTE-9",2265,"NEW HAVEN/FAIRFIELDCTE-9",3021]
[{"$nulls":16},"NEW HAVEN/FAIRFIELDCTW-1",1956,"NEW HAVEN/FAIRFIELDCTW-1",2298]
[{"$nulls":16},"NEW HAVEN/FAIRFIELDCTW-2",2148,"NEW HAVEN/FAIRFIELDCTW-2",2619]
[{"$nulls":16},"NEW HAVEN/FAIRFIELDCTW-3",2208,"NEW HAVEN/FAIRFIELDCTW-3",2922]
[{"$nulls":16},"NEW HAVEN/FAIRFIELDCTW-4",2349,"NEW HAVEN/FAIRFIELDCTW-4",3060]
[{"$nulls":16},"NEW HAVEN/FAIRFIELDCTW-5",2574,"NEW HAVEN/FAIRFIELDCTW-5",3225]
[{"$nulls":16},"NEW HAVEN/FAIRFIELDCTO-1E",2112,"NEW HAVEN/FAIRFIELDCTO-1E",2568]
[{"$nulls":16},"NEW HAVEN/FAIRFIELDCTO-2E",2190,"NEW HAVEN/FAIRFIELDCTO-2E",2877]
[{"$nulls":16},"NEW HAVEN/FAIRFIELDCTO-3E",2313,"NEW HAVEN/FAIRFIELDCTO-3E",3084]
[{"$nulls":16},"NEW HAVEN/FAIRFIELDCTO-1",1887,"NEW HAVEN/FAIRFIELDCTO-1",2133]
[{"$nulls":16},"NEW HAVEN/FAIRFIELDCTO-2",2073,"NEW HAVEN/FAIRFIELDCTO-2",2286]
[{"$nulls":16},"NEW HAVEN/FAIRFIELDCTO-3",2226,"NEW HAVEN/FAIRFIELDCTO-3",2907]
[{"$nulls":16},"NEW HAVEN/FAIRFIELDCTO-4",2544,"NEW HAVEN/FAIRFIELDCTO-4",3288]
[{"$nulls":16},"NEW HAVEN/FAIRFIELDCTO-5",2688,"NEW HAVEN/FAIRFIELDCTO-5",3552]
[{"$nulls":16},"NEW HAVEN/FAIRFIELDCTO-6",2922,"NEW HAVEN/FAIRFIELDCTO-6",3588]
[{"$nulls":16},"NEW HAVEN/FAIRFIELDCTO-7",2979,"NEW HAVEN/FAIRFIELDCTO-7",3624]
[{"$nulls":16},"WASHINGTONDCE-1",1356,"WASHINGTONDCE-1",1794]
[{"$nulls":16},"WASHINGTONDCE-2",1356,"WASHINGTONDCE-2",1794]
[{"$nulls":16},"WASHINGTONDCE-3",1356,"WASHINGTONDCE-3",1794]
[{"$nulls":16},"WASHINGTONDCE-4",1356,"WASHINGTONDCE-4",1794]
[{"$nulls":16},"WASHINGTONDCE-5",1551,"WASHINGTONDCE-5",1941]
[{"$nulls":16},"WASHINGTONDCE-6",1698,"WASHINGTONDCE-6",2265]
[{"$nulls":16},"WASHINGTONDCE-7",1803,"WASHINGTONDCE-7",2325]
[{"$nulls":16},"WASHINGTONDCE-8",2007,"WASHINGTONDCE-8",2394]
[{"$nulls":16},"WASHINGTONDCE-9",2106,"WASHINGTONDCE-9",2514]
[{"$nulls":16},"WASHINGTONDCW-1",1737,"WASHINGTONDCW-1",2265]
[{"$nulls":16},"WASHINGTONDCW-2",2001,"WASHINGTONDCW-2",2355]
[{"$nulls":16},"WASHINGTONDCW-3",2115,"WASHINGTONDCW-3",2436]
[{"$nulls":16},"WASHINGTONDCW-4",2280,"WASHINGTONDCW-4",2544]
[{"$nulls":16},"WASHINGTONDCW-5",2343,"WASHINGTONDCW-5",2670]
[{"$nulls":16},"WASHINGTONDCO-1E",1941,"WASHINGTONDCO-1E",2340]
[{"$nulls":16},"WASHINGTONDCO-2E",2082,"WASHINGTONDCO-2E",2424]
[{"$nulls":16},"WASHINGTONDCO-3E",2265,"WASHINGTONDCO-3E",2562]
[{"$nulls":16},"WASHINGTONDCO-1",1647,"WASHINGTONDCO-1",1977]
[{"$nulls":16},"WASHINGTONDCO-2",1890,"WASHINGTONDCO-2",2259]
[{"$nulls":16},"WASHINGTONDCO-3",2148,"WASHINGTONDCO-3",2433]
[{"$nulls":16},"WASHINGTONDCO-4",2334,"WASHINGTONDCO-4",2718]
[{"$nulls":16},"WASHINGTONDCO-5",2373,"WASHINGTONDCO-5",2919]
[{"$nulls":16},"WASHINGTONDCO-6",2436,"WASHINGTONDCO-6",2949]
[{"$nulls":16},"WASHINGTONDCO-7",2487,"WASHINGTONDCO-7",2979]
[{"$nulls":16},"DOVER AFBDEE-1",978,"DOVER AFBDEE-1",1221]
[{"$nulls":16},"DOVER AFBDEE-2",978,"DOVER AFBDEE-2",1221]
[{"$nulls":16},"DOVER AFBDEE-3",978,"DOVER AFBDEE-3",1221]
[{"$nulls":16},"DOVER AFBDEE-4",978,"DOVER AFBDEE-4",1221]
[{"$nulls":16},"DOVER AFBDEE-5",1074,"DOVER AFBDEE-5",1320]
[{"$nulls":16},"DOVER AFBDEE-6",1152,"DOVER AFBDEE-6",1536]
[{"$nulls":16},"DOVER AFBDEE-7",1224,"DOVER AFBDEE-7",1575]
[{"$nulls":16},"DOVER AFBDEE-8",1362,"DOVER AFBDEE-8",1617]
[{"$nulls":16},"DOVER AFBDEE-9",1428,"DOVER AFBDEE-9",1689]
[{"$nulls":16},"DOVER AFBDEW-1",1182,"DOVER AFBDEW-1",1536]
[{"$nulls":16},"DOVER AFBDEW-2",1359,"DOVER AFBDEW-2",1593]
[{"$nulls":16},"DOVER AFBDEW-3",1437,"DOVER AFBDEW-3",1644]
[{"$nulls":16},"DOVER AFBDEW-4",1545,"DOVER AFBDEW-4",1704]
[{"$nulls":16},"DOVER AFBDEW-5",1584,"DOVER AFBDEW-5",1779]
[{"$nulls":16},"DOVER AFBDEO-1E",1320,"DOVER AFBDEO-1E",1584]
[{"$nulls":16},"DOVER AFBDEO-2E",1413,"DOVER AFBDEO-2E",1635]
[{"$nulls":16},"DOVER AFBDEO-3E",1536,"DOVER AFBDEO-3E",1716]
[{"$nulls":16},"DOVER AFBDEO-1",1119,"DOVER AFBDEO-1",1344]
[{"$nulls":16},"DOVER AFBDEO-2",1284,"DOVER AFBDEO-2",1530]
[{"$nulls":16},"DOVER AFBDEO-3",1458,"DOVER AFBDEO-3",1641]
[{"$nulls":16},"DOVER AFBDEO-4",1578,"DOVER AFBDEO-4",1806]
[{"$nulls":16},"DOVER AFBDEO-5",1605,"DOVER AFBDEO-5",1923]
[{"$nulls":16},"DOVER AFBDEO-6",1644,"DOVER AFBDEO-6",1941]
[{"$nulls":16},"DOVER AFBDEO-7",1677,"DOVER AFBDEO-7",1962]
[{"$nulls":16},"REHOBOTH BEACHDEE-1",1035,"REHOBOTH BEACHDEE-1",1311]
[{"$nulls":16},"REHOBOTH BEACHDEE-2",1035,"REHOBOTH BEACHDEE-2",1311]
[{"$nulls":16},"REHOBOTH BEACHDEE-3",1035,"REHOBOTH BEACHDEE-3",1311]
[{"$nulls":16},"REHOBOTH BEACHDEE-4",1035,"REHOBOTH BEACHDEE-4",1311]
[{"$nulls":16},"REHOBOTH BEACHDEE-5",1176,"REHOBOTH BEACHDEE-5",1377]
[{"$nulls":16},"REHOBOTH BEACHDEE-6",1257,"REHOBOTH BEACHDEE-6",1581]
[{"$nulls":16},"REHOBOTH BEACHDEE-7",1317,"REHOBOTH BEACHDEE-7",1638]
[{"$nulls":16},"REHOBOTH BEACHDEE-8",1419,"REHOBOTH BEACHDEE-8",1698]
[{"$nulls":16},"REHOBOTH BEACHDEE-9",1482,"REHOBOTH BEACHDEE-9",1779]
[{"$nulls":16},"REHOBOTH BEACHDEW-1",1287,"REHOBOTH BEACHDEW-1",1581]
[{"$nulls":16},"REHOBOTH BEACHDEW-2",1416,"REHOBOTH BEACHDEW-2",1662]
[{"$nulls":16},"REHOBOTH BEACHDEW-3",1488,"REHOBOTH BEACHDEW-3",1740]
[{"$nulls":16},"REHOBOTH BEACHDEW-4",1593,"REHOBOTH BEACHDEW-4",1797]
[{"$nulls":16},"REHOBOTH BEACHDEW-5",1653,"REHOBOTH BEACHDEW-5",1863]
[{"$nulls":16},"REHOBOTH BEACHDEO-1E",1377,"REHOBOTH BEACHDEO-1E",1650]
[{"$nulls":16},"REHOBOTH BEACHDEO-2E",1467,"REHOBOTH BEACHDEO-2E",1728]
[{"$nulls":16},"REHOBOTH BEACHDEO-3E",1581,"REHOBOTH BEACHDEO-3E",1806]
[{"$nulls":16},"REHOBOTH BEACHDEO-1",1248,"REHOBOTH BEACHDEO-1",1398]
[{"$nulls":16},"REHOBOTH BEACHDEO-2",1356,"REHOBOTH BEACHDEO-2",1575]
[{"$nulls":16},"REHOBOTH BEACHDEO-3",1506,"REHOBOTH BEACHDEO-3",1737]
[{"$nulls":16},"REHOBOTH BEACHDEO-4",1644,"REHOBOTH BEACHDEO-4",1890]
[{"$nulls":16},"REHOBOTH BEACHDEO-5",1680,"REHOBOTH BEACHDEO-5",1998]
[{"$nulls":16},"REHOBOTH BEACHDEO-6",1740,"REHOBOTH BEACHDEO-6",2016]
[{"$nulls":16},"REHOBOTH BEACHDEO-7",1773,"REHOBOTH BEACHDEO-7",2037]
[{"$nulls":16},"EGLIN AFBFLE-1",912,"EGLIN AFBFLE-1",1218]
[{"$nulls":16},"EGLIN AFBFLE-2",912,"EGLIN AFBFLE-2",1218]
[{"$nulls":16},"EGLIN AFBFLE-3",912,"EGLIN AFBFLE-3",1218]
[{"$nulls":16},"EGLIN AFBFLE-4",912,"EGLIN AFBFLE-4",1218]
[{"$nulls":16},"EGLIN AFBFLE-5",1080,"EGLIN AFBFLE-5",1257]
[{"$nulls":16},"EGLIN AFBFLE-6",1182,"EGLIN AFBFLE-6",1371]
[{"$nulls":16},"EGLIN AFBFLE-7",1218,"EGLIN AFBFLE-7",1413]
[{"$nulls":16},"EGLIN AFBFLE-8",1281,"EGLIN AFBFLE-8",1461]
[{"$nulls":16},"EGLIN AFBFLE-9",1317,"EGLIN AFBFLE-9",1563]
[{"$nulls":16},"EGLIN AFBFLW-1",1200,"EGLIN AFBFLW-1",1371]
[{"$nulls":16},"EGLIN AFBFLW-2",1278,"EGLIN AFBFLW-2",1434]
[{"$nulls":16},"EGLIN AFBFLW-3",1320,"EGLIN AFBFLW-3",1491]
[{"$nulls":16},"EGLIN AFBFLW-4",1383,"EGLIN AFBFLW-4",1590]
[{"$nulls":16},"EGLIN AFBFLW-5",1425,"EGLIN AFBFLW-5",1710]
[{"$nulls":16},"EGLIN AFBFLO-1E",1257,"EGLIN AFBFLO-1E",1422]
[{"$nulls":16},"EGLIN AFBFLO-2E",1308,"EGLIN AFBFLO-2E",1482]
[{"$nulls":16},"EGLIN AFBFLO-3E",1371,"EGLIN AFBFLO-3E",1608]
[{"$nulls":16},"EGLIN AFBFLO-1",1176,"EGLIN AFBFLO-1",1269]
[{"$nulls":16},"EGLIN AFBFLO-2",1245,"EGLIN AFBFLO-2",1368]
[{"$nulls":16},"EGLIN AFBFLO-3",1329,"EGLIN AFBFLO-3",1488]
[{"$nulls":16},"EGLIN AFBFLO-4",1419,"EGLIN AFBFLO-4",1755]
[{"$nulls":16},"EGLIN AFBFLO-5",1461,"EGLIN AFBFLO-5",1947]
[{"$nulls":16},"EGLIN AFBFLO-6",1491,"EGLIN AFBFLO-6",1968]
[{"$nulls":16},"EGLIN AFBFLO-7",1521,"EGLIN AFBFLO-7",1986]
[{"$nulls":16},"GAINESVILLEFLE-1",885,"GAINESVILLEFLE-1",1182]
[{"$nulls":16},"GAINESVILLEFLE-2",885,"GAINESVILLEFLE-2",1182]
[{"$nulls":16},"GAINESVILLEFLE-3",885,"GAINESVILLEFLE-3",1182]
[{"$nulls":16},"GAINESVILLEFLE-4",885,"GAINESVILLEFLE-4",1182]
[{"$nulls":16},"GAINESVILLEFLE-5",1005,"GAINESVILLEFLE-5",1278]
[{"$nulls":16},"GAINESVILLEFLE-6",1098,"GAINESVILLEFLE-6",1377]
[{"$nulls":16},"GAINESVILLEFLE-7",1185,"GAINESVILLEFLE-7",1479]
[{"$nulls":16},"GAINESVILLEFLE-8",1296,"GAINESVILLEFLE-8",1590]
[{"$nulls":16},"GAINESVILLEFLE-9",1329,"GAINESVILLEFLE-9",1722]
[{"$nulls":16},"GAINESVILLEFLW-1",1143,"GAINESVILLEFLW-1",1380]
[{"$nulls":16},"GAINESVILLEFLW-2",1296,"GAINESVILLEFLW-2",1524]
[{"$nulls":16},"GAINESVILLEFLW-3",1332,"GAINESVILLEFLW-3",1659]
[{"$nulls":16},"GAINESVILLEFLW-4",1401,"GAINESVILLEFLW-4",1746]
[{"$nulls":16},"GAINESVILLEFLW-5",1503,"GAINESVILLEFLW-5",1848]
[{"$nulls":16},"GAINESVILLEFLO-1E",1278,"GAINESVILLEFLO-1E",1503]
[{"$nulls":16},"GAINESVILLEFLO-2E",1320,"GAINESVILLEFLO-2E",1641]
[{"$nulls":16},"GAINESVILLEFLO-3E",1377,"GAINESVILLEFLO-3E",1761]
[{"$nulls":16},"GAINESVILLEFLO-1",1083,"GAINESVILLEFLO-1",1287]
[{"$nulls":16},"GAINESVILLEFLO-2",1245,"GAINESVILLEFLO-2",1374]
[{"$nulls":16},"GAINESVILLEFLO-3",1341,"GAINESVILLEFLO-3",1653]
[{"$nulls":16},"GAINESVILLEFLO-4",1491,"GAINESVILLEFLO-4",1887]
[{"$nulls":16},"GAINESVILLEFLO-5",1554,"GAINESVILLEFLO-5",2052]
[{"$nulls":16},"GAINESVILLEFLO-6",1659,"GAINESVILLEFLO-6",2073]
[{"$nulls":16},"GAINESVILLEFLO-7",1692,"GAINESVILLEFLO-7",2094]
[{"$nulls":16},"JACKSONVILLEFLE-1",867,"JACKSONVILLEFLE-1",1155]
[{"$nulls":16},"JACKSONVILLEFLE-2",867,"JACKSONVILLEFLE-2",1155]
[{"$nulls":16},"JACKSONVILLEFLE-3",867,"JACKSONVILLEFLE-3",1155]
[{"$nulls":16},"JACKSONVILLEFLE-4",867,"JACKSONVILLEFLE-4",1155]
[{"$nulls":16},"JACKSONVILLEFLE-5",993,"JACKSONVILLEFLE-5",1248]
[{"$nulls":16},"JACKSONVILLEFLE-6",1083,"JACKSONVILLEFLE-6",1443]
[{"$nulls":16},"JACKSONVILLEFLE-7",1161,"JACKSONVILLEFLE-7",1470]
[{"$nulls":16},"JACKSONVILLEFLE-8",1287,"JACKSONVILLEFLE-8",1500]
[{"$nulls":16},"JACKSONVILLEFLE-9",1347,"JACKSONVILLEFLE-9",1596]
[{"$nulls":16},"JACKSONVILLEFLW-1",1119,"JACKSONVILLEFLW-1",1446]
[{"$nulls":16},"JACKSONVILLEFLW-2",1284,"JACKSONVILLEFLW-2",1482]
[{"$nulls":16},"JACKSONVILLEFLW-3",1353,"JACKSONVILLEFLW-3",1518]
[{"$nulls":16},"JACKSONVILLEFLW-4",1452,"JACKSONVILLEFLW-4",1626]
[{"$nulls":16},"JACKSONVILLEFLW-5",1476,"JACKSONVILLEFLW-5",1752]
[{"$nulls":16},"JACKSONVILLEFLO-1E",1248,"JACKSONVILLEFLO-1E",1476]
[{"$nulls":16},"JACKSONVILLEFLO-2E",1335,"JACKSONVILLEFLO-2E",1512]
[{"$nulls":16},"JACKSONVILLEFLO-3E",1443,"JACKSONVILLEFLO-3E",1644]
[{"$nulls":16},"JACKSONVILLEFLO-1",1059,"JACKSONVILLEFLO-1",1269]
[{"$nulls":16},"JACKSONVILLEFLO-2",1215,"JACKSONVILLEFLO-2",1440]
[{"$nulls":16},"JACKSONVILLEFLO-3",1374,"JACKSONVILLEFLO-3",1518]
[{"$nulls":16},"JACKSONVILLEFLO-4",1473,"JACKSONVILLEFLO-4",1800]
[{"$nulls":16},"JACKSONVILLEFLO-5",1503,"JACKSONVILLEFLO-5",2004]
[{"$nulls":16},"JACKSONVILLEFLO-6",1518,"JACKSONVILLEFLO-6",2022]
[{"$nulls":16},"JACKSONVILLEFLO-7",1548,"JACKSONVILLEFLO-7",2043]
[{"$nulls":16},"PATRICK AFBFLE-1",819,"PATRICK AFBFLE-1",1080]
[{"$nulls":16},"PATRICK AFBFLE-2",819,"PATRICK AFBFLE-2",1080]
[{"$nulls":16},"PATRICK AFBFLE-3",819,"PATRICK AFBFLE-3",1080]
[{"$nulls":16},"PATRICK AFBFLE-4",819,"PATRICK AFBFLE-4",1080]
[{"$nulls":16},"PATRICK AFBFLE-5",924,"PATRICK AFBFLE-5",1185]
[{"$nulls":16},"PATRICK AFBFLE-6",1194,"PATRICK AFBFLE-6",1590]
[{"$nulls":16},"PATRICK AFBFLE-7",1212,"PATRICK AFBFLE-7",1614]
[{"$nulls":16},"PATRICK AFBFLE-8",1266,"PATRICK AFBFLE-8",1641]
[{"$nulls":16},"PATRICK AFBFLE-9",1392,"PATRICK AFBFLE-9",1725]
[{"$nulls":16},"PATRICK AFBFLW-1",1194,"PATRICK AFBFLW-1",1593]
[{"$nulls":16},"PATRICK AFBFLW-2",1260,"PATRICK AFBFLW-2",1626]
[{"$nulls":16},"PATRICK AFBFLW-3",1404,"PATRICK AFBFLW-3",1656]
[{"$nulls":16},"PATRICK AFBFLW-4",1596,"PATRICK AFBFLW-4",1752]
[{"$nulls":16},"PATRICK AFBFLW-5",1620,"PATRICK AFBFLW-5",1863]
[{"$nulls":16},"PATRICK AFBFLO-1E",1215,"PATRICK AFBFLO-1E",1620]
[{"$nulls":16},"PATRICK AFBFLO-2E",1362,"PATRICK AFBFLO-2E",1650]
[{"$nulls":16},"PATRICK AFBFLO-3E",1590,"PATRICK AFBFLO-3E",1770]
[{"$nulls":16},"PATRICK AFBFLO-1",972,"PATRICK AFBFLO-1",1230]
[{"$nulls":16},"PATRICK AFBFLO-2",1188,"PATRICK AFBFLO-2",1584]
[{"$nulls":16},"PATRICK AFBFLO-3",1443,"PATRICK AFBFLO-3",1656]
[{"$nulls":16},"PATRICK AFBFLO-4",1617,"PATRICK AFBFLO-4",1908]
[{"$nulls":16},"PATRICK AFBFLO-5",1632,"PATRICK AFBFLO-5",2088]
[{"$nulls":16},"PATRICK AFBFLO-6",1656,"PATRICK AFBFLO-6",2109]
[{"$nulls":16},"PATRICK AFBFLO-7",1689,"PATRICK AFBFLO-7",2130]
[{"$nulls":16},"MIAMI/FORT LAUDERDALEFLE-1",1311,"MIAMI/FORT LAUDERDALEFLE-1",1656]
[{"$nulls":16},"MIAMI/FORT LAUDERDALEFLE-2",1311,"MIAMI/FORT LAUDERDALEFLE-2",1656]
[{"$nulls":16},"MIAMI/FORT LAUDERDALEFLE-3",1311,"MIAMI/FORT LAUDERDALEFLE-3",1656]
[{"$nulls":16},"MIAMI/FORT LAUDERDALEFLE-4",1311,"MIAMI/FORT LAUDERDALEFLE-4",1656]
[{"$nulls":16},"MIAMI/FORT LAUDERDALEFLE-5",1476,"MIAMI/FORT LAUDERDALEFLE-5",1752]
[{"$nulls":16},"MIAMI/FORT LAUDERDALEFLE-6",1569,"MIAMI/FORT LAUDERDALEFLE-6",1920]
[{"$nulls":16},"MIAMI/FORT LAUDERDALEFLE-7",1659,"MIAMI/FORT LAUDERDALEFLE-7",2049]
[{"$nulls":16},"MIAMI/FORT LAUDERDALEFLE-8",1785,"MIAMI/FORT LAUDERDALEFLE-8",2187]
[{"$nulls":16},"MIAMI/FORT LAUDERDALEFLE-9",1839,"MIAMI/FORT LAUDERDALEFLE-9",2355]
[{"$nulls":16},"MIAMI/FORT LAUDERDALEFLW-1",1617,"MIAMI/FORT LAUDERDALEFLW-1",1923]
[{"$nulls":16},"MIAMI/FORT LAUDERDALEFLW-2",1785,"MIAMI/FORT LAUDERDALEFLW-2",2106]
[{"$nulls":16},"MIAMI/FORT LAUDERDALEFLW-3",1842,"MIAMI/FORT LAUDERDALEFLW-3",2277]
[{"$nulls":16},"MIAMI/FORT LAUDERDALEFLW-4",1953,"MIAMI/FORT LAUDERDALEFLW-4",2385]
[{"$nulls":16},"MIAMI/FORT LAUDERDALEFLW-5",2079,"MIAMI/FORT LAUDERDALEFLW-5",2514]
[{"$nulls":16},"MIAMI/FORT LAUDERDALEFLO-1E",1752,"MIAMI/FORT LAUDERDALEFLO-1E",2076]
[{"$nulls":16},"MIAMI/FORT LAUDERDALEFLO-2E",1827,"MIAMI/FORT LAUDERDALEFLO-2E",2250]
[{"$nulls":16},"MIAMI/FORT LAUDERDALEFLO-3E",1920,"MIAMI/FORT LAUDERDALEFLO-3E",2406]
[{"$nulls":16},"MIAMI/FORT LAUDERDALEFLO-1",1557,"MIAMI/FORT LAUDERDALEFLO-1",1770]
[{"$nulls":16},"MIAMI/FORT LAUDERDALEFLO-2",1719,"MIAMI/FORT LAUDERDALEFLO-2",1917]
[{"$nulls":16},"MIAMI/FORT LAUDERDALEFLO-3",1860,"MIAMI/FORT LAUDERDALEFLO-3",2268]
[{"$nulls":16},"MIAMI/FORT LAUDERDALEFLO-4",2061,"MIAMI/FORT LAUDERDALEFLO-4",2565]
[{"$nulls":16},"MIAMI/FORT LAUDERDALEFLO-5",2145,"MIAMI/FORT LAUDERDALEFLO-5",2772]
[{"$nulls":16},"MIAMI/FORT LAUDERDALEFLO-6",2277,"MIAMI/FORT LAUDERDALEFLO-6",2802]
[{"$nulls":16},"MIAMI/FORT LAUDERDALEFLO-7",2322,"MIAMI/FORT LAUDERDALEFLO-7",2829]
[{"$nulls":16},"ORLANDOFLE-1",1011,"ORLANDOFLE-1",1329]
[{"$nulls":16},"ORLANDOFLE-2",1011,"ORLANDOFLE-2",1329]
[{"$nulls":16},"ORLANDOFLE-3",1011,"ORLANDOFLE-3",1329]
[{"$nulls":16},"ORLANDOFLE-4",1011,"ORLANDOFLE-4",1329]
[{"$nulls":16},"ORLANDOFLE-5",1134,"ORLANDOFLE-5",1461]
[{"$nulls":16},"ORLANDOFLE-6",1215,"ORLANDOFLE-6",1554]
[{"$nulls":16},"ORLANDOFLE-7",1338,"ORLANDOFLE-7",1587]
[{"$nulls":16},"ORLANDOFLE-8",1479,"ORLANDOFLE-8",1620]
[{"$nulls":16},"ORLANDOFLE-9",1509,"ORLANDOFLE-9",1695]
[{"$nulls":16},"ORLANDOFLW-1",1278,"ORLANDOFLW-1",1554]
[{"$nulls":16},"ORLANDOFLW-2",1479,"ORLANDOFLW-2",1599]
[{"$nulls":16},"ORLANDOFLW-3",1512,"ORLANDOFLW-3",1644]
[{"$nulls":16},"ORLANDOFLW-4",1563,"ORLANDOFLW-4",1713]
[{"$nulls":16},"ORLANDOFLW-5",1593,"ORLANDOFLW-5",1797]
[{"$nulls":16},"ORLANDOFLO-1E",1461,"ORLANDOFLO-1E",1593]
[{"$nulls":16},"ORLANDOFLO-2E",1503,"ORLANDOFLO-2E",1638]
[{"$nulls":16},"ORLANDOFLO-3E",1554,"ORLANDOFLO-3E",1725]
[{"$nulls":16},"ORLANDOFLO-1",1194,"ORLANDOFLO-1",1473]
[{"$nulls":16},"ORLANDOFLO-2",1416,"ORLANDOFLO-2",1551]
[{"$nulls":16},"ORLANDOFLO-3",1521,"ORLANDOFLO-3",1641]
[{"$nulls":16},"ORLANDOFLO-4",1590,"ORLANDOFLO-4",1830]
[{"$nulls":16},"ORLANDOFLO-5",1611,"ORLANDOFLO-5",1965]
[{"$nulls":16},"ORLANDOFLO-6",1644,"ORLANDOFLO-6",1983]
[{"$nulls":16},"ORLANDOFLO-7",1677,"ORLANDOFLO-7",2004]
[{"$nulls":16},"PANAMA CITYFLE-1",885,"PANAMA CITYFLE-1",1140]
[{"$nulls":16},"PANAMA CITYFLE-2",885,"PANAMA CITYFLE-2",1140]
[{"$nulls":16},"PANAMA CITYFLE-3",885,"PANAMA CITYFLE-3",1140]
[{"$nulls":16},"PANAMA CITYFLE-4",885,"PANAMA CITYFLE-4",1140]
[{"$nulls":16},"PANAMA CITYFLE-5",1020,"PANAMA CITYFLE-5",1194]
[{"$nulls":16},"PANAMA CITYFLE-6",1092,"PANAMA CITYFLE-6",1356]
[{"$nulls":16},"PANAMA CITYFLE-7",1143,"PANAMA CITYFLE-7",1413]
[{"$nulls":16},"PANAMA CITYFLE-8",1227,"PANAMA CITYFLE-8",1473]
[{"$nulls":16},"PANAMA CITYFLE-9",1275,"PANAMA CITYFLE-9",1566]
[{"$nulls":16},"PANAMA CITYFLW-1",1119,"PANAMA CITYFLW-1",1356]
[{"$nulls":16},"PANAMA CITYFLW-2",1224,"PANAMA CITYFLW-2",1437]
[{"$nulls":16},"PANAMA CITYFLW-3",1281,"PANAMA CITYFLW-3",1512]
[{"$nulls":16},"PANAMA CITYFLW-4",1368,"PANAMA CITYFLW-4",1587]
[{"$nulls":16},"PANAMA CITYFLW-5",1425,"PANAMA CITYFLW-5",1677]
[{"$nulls":16},"PANAMA CITYFLO-1E",1194,"PANAMA CITYFLO-1E",1425]
[{"$nulls":16},"PANAMA CITYFLO-2E",1266,"PANAMA CITYFLO-2E",1500]
[{"$nulls":16},"PANAMA CITYFLO-3E",1356,"PANAMA CITYFLO-3E",1602]
[{"$nulls":16},"PANAMA CITYFLO-1",1083,"PANAMA CITYFLO-1",1212]
[{"$nulls":16},"PANAMA CITYFLO-2",1176,"PANAMA CITYFLO-2",1353]
[{"$nulls":16},"PANAMA CITYFLO-3",1296,"PANAMA CITYFLO-3",1509]
[{"$nulls":16},"PANAMA CITYFLO-4",1419,"PANAMA CITYFLO-4",1713]
[{"$nulls":16},"PANAMA CITYFLO-5",1455,"PANAMA CITYFLO-5",1857]
[{"$nulls":16},"PANAMA CITYFLO-6",1512,"PANAMA CITYFLO-6",1875]
[{"$nulls":16},"PANAMA CITYFLO-7",1542,"PANAMA CITYFLO-7",1893]
[{"$nulls":16},"PENSACOLAFLE-1",816,"PENSACOLAFLE-1",1077]
[{"$nulls":16},"PENSACOLAFLE-2",816,"PENSACOLAFLE-2",1077]
[{"$nulls":16},"PENSACOLAFLE-3",816,"PENSACOLAFLE-3",1077]
[{"$nulls":16},"PENSACOLAFLE-4",816,"PENSACOLAFLE-4",1077]
[{"$nulls":16},"PENSACOLAFLE-5",969,"PENSACOLAFLE-5",1113]
[{"$nulls":16},"PENSACOLAFLE-6",1047,"PENSACOLAFLE-6",1284]
[{"$nulls":16},"PENSACOLAFLE-7",1080,"PENSACOLAFLE-7",1317]
[{"$nulls":16},"PENSACOLAFLE-8",1146,"PENSACOLAFLE-8",1356]
[{"$nulls":16},"PENSACOLAFLE-9",1200,"PENSACOLAFLE-9",1443]
[{"$nulls":16},"PENSACOLAFLW-1",1065,"PENSACOLAFLW-1",1287]
[{"$nulls":16},"PENSACOLAFLW-2",1146,"PENSACOLAFLW-2",1332]
[{"$nulls":16},"PENSACOLAFLW-3",1206,"PENSACOLAFLW-3",1377]
[{"$nulls":16},"PENSACOLAFLW-4",1293,"PENSACOLAFLW-4",1470]
[{"$nulls":16},"PENSACOLAFLW-5",1326,"PENSACOLAFLW-5",1578]
[{"$nulls":16},"PENSACOLAFLO-1E",1113,"PENSACOLAFLO-1E",1326]
[{"$nulls":16},"PENSACOLAFLO-2E",1188,"PENSACOLAFLO-2E",1371]
[{"$nulls":16},"PENSACOLAFLO-3E",1284,"PENSACOLAFLO-3E",1485]
[{"$nulls":16},"PENSACOLAFLO-1",1044,"PENSACOLAFLO-1",1131]
[{"$nulls":16},"PENSACOLAFLO-2",1101,"PENSACOLAFLO-2",1281]
[{"$nulls":16},"PENSACOLAFLO-3",1224,"PENSACOLAFLO-3",1377]
[{"$nulls":16},"PENSACOLAFLO-4",1323,"PENSACOLAFLO-4",1620]
[{"$nulls":16},"PENSACOLAFLO-5",1344,"PENSACOLAFLO-5",1794]
[{"$nulls":16},"PENSACOLAFLO-6",1377,"PENSACOLAFLO-6",1812]
[{"$nulls":16},"PENSACOLAFLO-7",1407,"PENSACOLAFLO-7",1830]
[{"$nulls":16},"TALLAHASSEEFLE-1",912,"TALLAHASSEEFLE-1",1101]
[{"$nulls":16},"TALLAHASSEEFLE-2",912,"TALLAHASSEEFLE-2",1101]
[{"$nulls":16},"TALLAHASSEEFLE-3",912,"TALLAHASSEEFLE-3",1101]
[{"$nulls":16},"TALLAHASSEEFLE-4",912,"TALLAHASSEEFLE-4",1101]
[{"$nulls":16},"TALLAHASSEEFLE-5",1005,"TALLAHASSEEFLE-5",1152]
[{"$nulls":16},"TALLAHASSEEFLE-6",1059,"TALLAHASSEEFLE-6",1329]
[{"$nulls":16},"TALLAHASSEEFLE-7",1104,"TALLAHASSEEFLE-7",1377]
[{"$nulls":16},"TALLAHASSEEFLE-8",1188,"TALLAHASSEEFLE-8",1431]
[{"$nulls":16},"TALLAHASSEEFLE-9",1242,"TALLAHASSEEFLE-9",1554]
[{"$nulls":16},"TALLAHASSEEFLW-1",1083,"TALLAHASSEEFLW-1",1329]
[{"$nulls":16},"TALLAHASSEEFLW-2",1185,"TALLAHASSEEFLW-2",1401]
[{"$nulls":16},"TALLAHASSEEFLW-3",1248,"TALLAHASSEEFLW-3",1467]
[{"$nulls":16},"TALLAHASSEEFLW-4",1341,"TALLAHASSEEFLW-4",1584]
[{"$nulls":16},"TALLAHASSEEFLW-5",1392,"TALLAHASSEEFLW-5",1725]
[{"$nulls":16},"TALLAHASSEEFLO-1E",1152,"TALLAHASSEEFLO-1E",1389]
[{"$nulls":16},"TALLAHASSEEFLO-2E",1230,"TALLAHASSEEFLO-2E",1458]
[{"$nulls":16},"TALLAHASSEEFLO-3E",1329,"TALLAHASSEEFLO-3E",1605]
[{"$nulls":16},"TALLAHASSEEFLO-1",1053,"TALLAHASSEEFLO-1",1170]
[{"$nulls":16},"TALLAHASSEEFLO-2",1134,"TALLAHASSEEFLO-2",1323]
[{"$nulls":16},"TALLAHASSEEFLO-3",1266,"TALLAHASSEEFLO-3",1464]
[{"$nulls":16},"TALLAHASSEEFLO-4",1383,"TALLAHASSEEFLO-4",1779]
[{"$nulls":16},"TALLAHASSEEFLO-5",1503,"TALLAHASSEEFLO-5",2004]
[{"$nulls":16},"TALLAHASSEEFLO-6",1518,"TALLAHASSEEFLO-6",2022]
[{"$nulls":16},"TALLAHASSEEFLO-7",1533,"TALLAHASSEEFLO-7",2043]
[{"$nulls":16},"TAMPAFLE-1",1122,"TAMPAFLE-1",1497]
[{"$nulls":16},"TAMPAFLE-2",1122,"TAMPAFLE-2",1497]
[{"$nulls":16},"TAMPAFLE-3",1122,"TAMPAFLE-3",1497]
[{"$nulls":16},"TAMPAFLE-4",1122,"TAMPAFLE-4",1497]
[{"$nulls":16},"TAMPAFLE-5",1248,"TAMPAFLE-5",1662]
[{"$nulls":16},"TAMPAFLE-6",1428,"TAMPAFLE-6",1905]
[{"$nulls":16},"TAMPAFLE-7",1506,"TAMPAFLE-7",1962]
[{"$nulls":16},"TAMPAFLE-8",1710,"TAMPAFLE-8",2025]
[{"$nulls":16},"TAMPAFLE-9",1785,"TAMPAFLE-9",2151]
[{"$nulls":16},"TAMPAFLW-1",1431,"TAMPAFLW-1",1908]
[{"$nulls":16},"TAMPAFLW-2",1707,"TAMPAFLW-2",1989]
[{"$nulls":16},"TAMPAFLW-3",1794,"TAMPAFLW-3",2067]
[{"$nulls":16},"TAMPAFLW-4",1920,"TAMPAFLW-4",2184]
[{"$nulls":16},"TAMPAFLW-5",1977,"TAMPAFLW-5",2322]
[{"$nulls":16},"TAMPAFLO-1E",1662,"TAMPAFLO-1E",1977]
[{"$nulls":16},"TAMPAFLO-2E",1770,"TAMPAFLO-2E",2055]
[{"$nulls":16},"TAMPAFLO-3E",1905,"TAMPAFLO-3E",2205]
[{"$nulls":16},"TAMPAFLO-1",1329,"TAMPAFLO-1",1689]
[{"$nulls":16},"TAMPAFLO-2",1605,"TAMPAFLO-2",1899]
[{"$nulls":16},"TAMPAFLO-3",1818,"TAMPAFLO-3",2064]
[{"$nulls":16},"TAMPAFLO-4",1968,"TAMPAFLO-4",2376]
[{"$nulls":16},"TAMPAFLO-5",2007,"TAMPAFLO-5",2598]
[{"$nulls":16},"TAMPAFLO-6",2067,"TAMPAFLO-6",2625]
[{"$nulls":16},"TAMPAFLO-7",2106,"TAMPAFLO-7",2652]
[{"$nulls":16},"WEST PALM BEACHFLE-1",1125,"WEST PALM BEACHFLE-1",1485]
[{"$nulls":16},"WEST PALM BEACHFLE-2",1125,"WEST PALM BEACHFLE-2",1485]
[{"$nulls":16},"WEST PALM BEACHFLE-3",1125,"WEST PALM BEACHFLE-3",1485]
[{"$nulls":16},"WEST PALM BEACHFLE-4",1125,"WEST PALM BEACHFLE-4",1485]
[{"$nulls":16},"WEST PALM BEACHFLE-5",1272,"WEST PALM BEACHFLE-5",1623]
[{"$nulls":16},"WEST PALM BEACHFLE-6",1437,"WEST PALM BEACHFLE-6",1914]
[{"$nulls":16},"WEST PALM BEACHFLE-7",1491,"WEST PALM BEACHFLE-7",1983]
[{"$nulls":16},"WEST PALM BEACHFLE-8",1680,"WEST PALM BEACHFLE-8",2061]
[{"$nulls":16},"WEST PALM BEACHFLE-9",1770,"WEST PALM BEACHFLE-9",2166]
[{"$nulls":16},"WEST PALM BEACHFLW-1",1437,"WEST PALM BEACHFLW-1",1917]
[{"$nulls":16},"WEST PALM BEACHFLW-2",1677,"WEST PALM BEACHFLW-2",2016]
[{"$nulls":16},"WEST PALM BEACHFLW-3",1779,"WEST PALM BEACHFLW-3",2109]
[{"$nulls":16},"WEST PALM BEACHFLW-4",1932,"WEST PALM BEACHFLW-4",2187]
[{"$nulls":16},"WEST PALM BEACHFLW-5",2001,"WEST PALM BEACHFLW-5",2277]
[{"$nulls":16},"WEST PALM BEACHFLO-1E",1623,"WEST PALM BEACHFLO-1E",2001]
[{"$nulls":16},"WEST PALM BEACHFLO-2E",1749,"WEST PALM BEACHFLO-2E",2094]
[{"$nulls":16},"WEST PALM BEACHFLO-3E",1914,"WEST PALM BEACHFLO-3E",2199]
[{"$nulls":16},"WEST PALM BEACHFLO-1",1347,"WEST PALM BEACHFLO-1",1653]
[{"$nulls":16},"WEST PALM BEACHFLO-2",1575,"WEST PALM BEACHFLO-2",1908]
[{"$nulls":16},"WEST PALM BEACHFLO-3",1809,"WEST PALM BEACHFLO-3",2106]
[{"$nulls":16},"WEST PALM BEACHFLO-4",1992,"WEST PALM BEACHFLO-4",2313]
[{"$nulls":16},"WEST PALM BEACHFLO-5",2037,"WEST PALM BEACHFLO-5",2460]
[{"$nulls":16},"WEST PALM BEACHFLO-6",2109,"WEST PALM BEACHFLO-6",2484]
[{"$nulls":16},"WEST PALM BEACHFLO-7",2151,"WEST PALM BEACHFLO-7",2508]
[{"$nulls":16},"OCALAFLE-1",801,"OCALAFLE-1",1071]
[{"$nulls":16},"OCALAFLE-2",801,"OCALAFLE-2",1071]
[{"$nulls":16},"OCALAFLE-3",801,"OCALAFLE-3",1071]
[{"$nulls":16},"OCALAFLE-4",801,"OCALAFLE-4",1071]
[{"$nulls":16},"OCALAFLE-5",942,"OCALAFLE-5",1122]
[{"$nulls":16},"OCALAFLE-6",1023,"OCALAFLE-6",1305]
[{"$nulls":16},"OCALAFLE-7",1074,"OCALAFLE-7",1320]
[{"$nulls":16},"OCALAFLE-8",1158,"OCALAFLE-8",1338]
[{"$nulls":16},"OCALAFLE-9",1215,"OCALAFLE-9",1428]
[{"$nulls":16},"OCALAFLW-1",1050,"OCALAFLW-1",1305]
[{"$nulls":16},"OCALAFLW-2",1158,"OCALAFLW-2",1326]
[{"$nulls":16},"OCALAFLW-3",1221,"OCALAFLW-3",1350]
[{"$nulls":16},"OCALAFLW-4",1308,"OCALAFLW-4",1455]
[{"$nulls":16},"OCALAFLW-5",1323,"OCALAFLW-5",1584]
[{"$nulls":16},"OCALAFLO-1E",1122,"OCALAFLO-1E",1323]
[{"$nulls":16},"OCALAFLO-2E",1203,"OCALAFLO-2E",1347]
[{"$nulls":16},"OCALAFLO-3E",1305,"OCALAFLO-3E",1476]
[{"$nulls":16},"OCALAFLO-1",1017,"OCALAFLO-1",1143]
[{"$nulls":16},"OCALAFLO-2",1104,"OCALAFLO-2",1299]
[{"$nulls":16},"OCALAFLO-3",1239,"OCALAFLO-3",1347]
[{"$nulls":16},"OCALAFLO-4",1323,"OCALAFLO-4",1632]
[{"$nulls":16},"OCALAFLO-5",1377,"OCALAFLO-5",1836]
[{"$nulls":16},"OCALAFLO-6",1392,"OCALAFLO-6",1854]
[{"$nulls":16},"OCALAFLO-7",1404,"OCALAFLO-7",1872]
[{"$nulls":16},"KEY WESTFLE-1",1452,"KEY WESTFLE-1",1935]
[{"$nulls":16},"KEY WESTFLE-2",1452,"KEY WESTFLE-2",1935]
[{"$nulls":16},"KEY WESTFLE-3",1452,"KEY WESTFLE-3",1935]
[{"$nulls":16},"KEY WESTFLE-4",1452,"KEY WESTFLE-4",1935]
[{"$nulls":16},"KEY WESTFLE-5",1662,"KEY WESTFLE-5",2064]
[{"$nulls":16},"KEY WESTFLE-6",2022,"KEY WESTFLE-6",2694]
[{"$nulls":16},"KEY WESTFLE-7",2031,"KEY WESTFLE-7",2709]
[{"$nulls":16},"KEY WESTFLE-8",2190,"KEY WESTFLE-8",2724]
[{"$nulls":16},"KEY WESTFLE-9",2385,"KEY WESTFLE-9",2862]
[{"$nulls":16},"KEY WESTFLW-1",2022,"KEY WESTFLW-1",2694]
[{"$nulls":16},"KEY WESTFLW-2",2184,"KEY WESTFLW-2",2715]
[{"$nulls":16},"KEY WESTFLW-3",2403,"KEY WESTFLW-3",2736]
[{"$nulls":16},"KEY WESTFLW-4",2697,"KEY WESTFLW-4",2910]
[{"$nulls":16},"KEY WESTFLW-5",2712,"KEY WESTFLW-5",3117]
[{"$nulls":16},"KEY WESTFLO-1E",2064,"KEY WESTFLO-1E",2712]
[{"$nulls":16},"KEY WESTFLO-2E",2340,"KEY WESTFLO-2E",2733]
[{"$nulls":16},"KEY WESTFLO-3E",2694,"KEY WESTFLO-3E",2943]
[{"$nulls":16},"KEY WESTFLO-1",1806,"KEY WESTFLO-1",2133]
[{"$nulls":16},"KEY WESTFLO-2",2019,"KEY WESTFLO-2",2682]
[{"$nulls":16},"KEY WESTFLO-3",2466,"KEY WESTFLO-3",2733]
[{"$nulls":16},"KEY WESTFLO-4",2709,"KEY WESTFLO-4",3198]
[{"$nulls":16},"KEY WESTFLO-5",2721,"KEY WESTFLO-5",3531]
[{"$nulls":16},"KEY WESTFLO-6",2736,"KEY WESTFLO-6",3567]
[{"$nulls":16},"KEY WESTFLO-7",2790,"KEY WESTFLO-7",3603]
[{"$nulls":16},"VOLUSIA COUNTYFLE-1",843,"VOLUSIA COUNTYFLE-1",1125]
[{"$nulls":16},"VOLUSIA COUNTYFLE-2",843,"VOLUSIA COUNTYFLE-2",1125]
[{"$nulls":16},"VOLUSIA COUNTYFLE-3",843,"VOLUSIA COUNTYFLE-3",1125]
[{"$nulls":16},"VOLUSIA COUNTYFLE-4",843,"VOLUSIA COUNTYFLE-4",1125]
[{"$nulls":16},"VOLUSIA COUNTYFLE-5",951,"VOLUSIA COUNTYFLE-5",1245]
[{"$nulls":16},"VOLUSIA COUNTYFLE-6",1077,"VOLUSIA COUNTYFLE-6",1437]
[{"$nulls":16},"VOLUSIA COUNTYFLE-7",1170,"VOLUSIA COUNTYFLE-7",1560]
[{"$nulls":16},"VOLUSIA COUNTYFLE-8",1284,"VOLUSIA COUNTYFLE-8",1692]
[{"$nulls":16},"VOLUSIA COUNTYFLE-9",1362,"VOLUSIA COUNTYFLE-9",1815]
[{"$nulls":16},"VOLUSIA COUNTYFLW-1",1080,"VOLUSIA COUNTYFLW-1",1440]
[{"$nulls":16},"VOLUSIA COUNTYFLW-2",1281,"VOLUSIA COUNTYFLW-2",1614]
[{"$nulls":16},"VOLUSIA COUNTYFLW-3",1347,"VOLUSIA COUNTYFLW-3",1776]
[{"$nulls":16},"VOLUSIA COUNTYFLW-4",1467,"VOLUSIA COUNTYFLW-4",1827]
[{"$nulls":16},"VOLUSIA COUNTYFLW-5",1590,"VOLUSIA COUNTYFLW-5",1890]
[{"$nulls":16},"VOLUSIA COUNTYFLO-1E",1245,"VOLUSIA COUNTYFLO-1E",1587]
[{"$nulls":16},"VOLUSIA COUNTYFLO-2E",1329,"VOLUSIA COUNTYFLO-2E",1752]
[{"$nulls":16},"VOLUSIA COUNTYFLO-3E",1437,"VOLUSIA COUNTYFLO-3E",1839]
[{"$nulls":16},"VOLUSIA COUNTYFLO-1",1008,"VOLUSIA COUNTYFLO-1",1266]
[{"$nulls":16},"VOLUSIA COUNTYFLO-2",1203,"VOLUSIA COUNTYFLO-2",1434]
[{"$nulls":16},"VOLUSIA COUNTYFLO-3",1368,"VOLUSIA COUNTYFLO-3",1770]
[{"$nulls":16},"VOLUSIA COUNTYFLO-4",1572,"VOLUSIA COUNTYFLO-4",1914]
[{"$nulls":16},"VOLUSIA COUNTYFLO-5",1650,"VOLUSIA COUNTYFLO-5",2010]
[{"$nulls":16},"VOLUSIA COUNTYFLO-6",1776,"VOLUSIA COUNTYFLO-6",2031]
[{"$nulls":16},"VOLUSIA COUNTYFLO-7",1812,"VOLUSIA COUNTYFLO-7",2052]
[{"$nulls":16},"POLK COUNTYFLE-1",744,"POLK COUNTYFLE-1",990]
[{"$nulls":16},"POLK COUNTYFLE-2",744,"POLK COUNTYFLE-2",990]
[{"$nulls":16},"POLK COUNTYFLE-3",744,"POLK COUNTYFLE-3",990]
[{"$nulls":16},"POLK COUNTYFLE-4",744,"POLK COUNTYFLE-4",990]
[{"$nulls":16},"POLK COUNTYFLE-5",858,"POLK COUNTYFLE-5",1065]
[{"$nulls":16},"POLK COUNTYFLE-6",939,"POLK COUNTYFLE-6",1251]
[{"$nulls":16},"POLK COUNTYFLE-7",996,"POLK COUNTYFLE-7",1302]
[{"$nulls":16},"POLK COUNTYFLE-8",1101,"POLK COUNTYFLE-8",1356]
[{"$nulls":16},"POLK COUNTYFLE-9",1158,"POLK COUNTYFLE-9",1476]
[{"$nulls":16},"POLK COUNTYFLW-1",963,"POLK COUNTYFLW-1",1251]
[{"$nulls":16},"POLK COUNTYFLW-2",1101,"POLK COUNTYFLW-2",1323]
[{"$nulls":16},"POLK COUNTYFLW-3",1164,"POLK COUNTYFLW-3",1392]
[{"$nulls":16},"POLK COUNTYFLW-4",1263,"POLK COUNTYFLW-4",1509]
[{"$nulls":16},"POLK COUNTYFLW-5",1314,"POLK COUNTYFLW-5",1647]
[{"$nulls":16},"POLK COUNTYFLO-1E",1065,"POLK COUNTYFLO-1E",1314]
[{"$nulls":16},"POLK COUNTYFLO-2E",1146,"POLK COUNTYFLO-2E",1383]
[{"$nulls":16},"POLK COUNTYFLO-3E",1251,"POLK COUNTYFLO-3E",1530]
[{"$nulls":16},"POLK COUNTYFLO-1",915,"POLK COUNTYFLO-1",1086]
[{"$nulls":16},"POLK COUNTYFLO-2",1041,"POLK COUNTYFLO-2",1245]
[{"$nulls":16},"POLK COUNTYFLO-3",1182,"POLK COUNTYFLO-3",1389]
[{"$nulls":16},"POLK COUNTYFLO-4",1308,"POLK COUNTYFLO-4",1698]
[{"$nulls":16},"POLK COUNTYFLO-5",1440,"POLK COUNTYFLO-5",1920]
[{"$nulls":16},"POLK COUNTYFLO-6",1455,"POLK COUNTYFLO-6",1941]
[{"$nulls":16},"POLK COUNTYFLO-7",1470,"POLK COUNTYFLO-7",1959]
[{"$nulls":16},"FORT PIERCEFLE-1",885,"FORT PIERCEFLE-1",1077]
[{"$nulls":16},"FORT PIERCEFLE-2",885,"FORT PIERCEFLE-2",1077]
[{"$nulls":16},"FORT PIERCEFLE-3",885,"FORT PIERCEFLE-3",1077]
[{"$nulls":16},"FORT PIERCEFLE-4",885,"FORT PIERCEFLE-4",1077]
[{"$nulls":16},"FORT PIERCEFLE-5",957,"FORT PIERCEFLE-5",1167]
[{"$nulls":16},"FORT PIERCEFLE-6",1104,"FORT PIERCEFLE-6",1470]
[{"$nulls":16},"FORT PIERCEFLE-7",1134,"FORT PIERCEFLE-7",1509]
[{"$nulls":16},"FORT PIERCEFLE-8",1227,"FORT PIERCEFLE-8",1554]
[{"$nulls":16},"FORT PIERCEFLE-9",1320,"FORT PIERCEFLE-9",1608]
[{"$nulls":16},"FORT PIERCEFLW-1",1104,"FORT PIERCEFLW-1",1470]
[{"$nulls":16},"FORT PIERCEFLW-2",1224,"FORT PIERCEFLW-2",1527]
[{"$nulls":16},"FORT PIERCEFLW-3",1329,"FORT PIERCEFLW-3",1581]
[{"$nulls":16},"FORT PIERCEFLW-4",1479,"FORT PIERCEFLW-4",1620]
[{"$nulls":16},"FORT PIERCEFLW-5",1521,"FORT PIERCEFLW-5",1662]
[{"$nulls":16},"FORT PIERCEFLO-1E",1167,"FORT PIERCEFLO-1E",1518]
[{"$nulls":16},"FORT PIERCEFLO-2E",1299,"FORT PIERCEFLO-2E",1575]
[{"$nulls":16},"FORT PIERCEFLO-3E",1470,"FORT PIERCEFLO-3E",1626]
[{"$nulls":16},"FORT PIERCEFLO-1",990,"FORT PIERCEFLO-1",1200]
[{"$nulls":16},"FORT PIERCEFLO-2",1137,"FORT PIERCEFLO-2",1464]
[{"$nulls":16},"FORT PIERCEFLO-3",1362,"FORT PIERCEFLO-3",1581]
[{"$nulls":16},"FORT PIERCEFLO-4",1515,"FORT PIERCEFLO-4",1680]
[{"$nulls":16},"FORT PIERCEFLO-5",1542,"FORT PIERCEFLO-5",1749]
[{"$nulls":16},"FORT PIERCEFLO-6",1581,"FORT PIERCEFLO-6",1767]
[{"$nulls":16},"FORT PIERCEFLO-7",1614,"FORT PIERCEFLO-7",1785]
[{"$nulls":16},"FT MYERS BEACHFLE-1",1023,"FT MYERS BEACHFLE-1",1365]
[{"$nulls":16},"FT MYERS BEACHFLE-2",1023,"FT MYERS BEACHFLE-2",1365]
[{"$nulls":16},"FT MYERS BEACHFLE-3",1023,"FT MYERS BEACHFLE-3",1365]
[{"$nulls":16},"FT MYERS BEACHFLE-4",1023,"FT MYERS BEACHFLE-4",1365]
[{"$nulls":16},"FT MYERS BEACHFLE-5",1134,"FT MYERS BEACHFLE-5",1506]
[{"$nulls":16},"FT MYERS BEACHFLE-6",1242,"FT MYERS BEACHFLE-6",1566]
[{"$nulls":16},"FT MYERS BEACHFLE-7",1374,"FT MYERS BEACHFLE-7",1707]
[{"$nulls":16},"FT MYERS BEACHFLE-8",1518,"FT MYERS BEACHFLE-8",1857]
[{"$nulls":16},"FT MYERS BEACHFLE-9",1539,"FT MYERS BEACHFLE-9",1998]
[{"$nulls":16},"FT MYERS BEACHFLW-1",1311,"FT MYERS BEACHFLW-1",1572]
[{"$nulls":16},"FT MYERS BEACHFLW-2",1518,"FT MYERS BEACHFLW-2",1767]
[{"$nulls":16},"FT MYERS BEACHFLW-3",1539,"FT MYERS BEACHFLW-3",1953]
[{"$nulls":16},"FT MYERS BEACHFLW-4",1602,"FT MYERS BEACHFLW-4",2016]
[{"$nulls":16},"FT MYERS BEACHFLW-5",1740,"FT MYERS BEACHFLW-5",2094]
[{"$nulls":16},"FT MYERS BEACHFLO-1E",1506,"FT MYERS BEACHFLO-1E",1737]
[{"$nulls":16},"FT MYERS BEACHFLO-2E",1533,"FT MYERS BEACHFLO-2E",1926]
[{"$nulls":16},"FT MYERS BEACHFLO-3E",1566,"FT MYERS BEACHFLO-3E",2028]
[{"$nulls":16},"FT MYERS BEACHFLO-1",1224,"FT MYERS BEACHFLO-1",1515]
[{"$nulls":16},"FT MYERS BEACHFLO-2",1458,"FT MYERS BEACHFLO-2",1566]
[{"$nulls":16},"FT MYERS BEACHFLO-3",1545,"FT MYERS BEACHFLO-3",1944]
[{"$nulls":16},"FT MYERS BEACHFLO-4",1722,"FT MYERS BEACHFLO-4",2124]
[{"$nulls":16},"FT MYERS BEACHFLO-5",1809,"FT MYERS BEACHFLO-5",2247]
[{"$nulls":16},"FT MYERS BEACHFLO-6",1953,"FT MYERS BEACHFLO-6",2268]
[{"$nulls":16},"FT MYERS BEACHFLO-7",1992,"FT MYERS BEACHFLO-7",2292]
[{"$nulls":16},"ATLANTAGAE-1",864,"ATLANTAGAE-1",1116]
[{"$nulls":16},"ATLANTAGAE-2",864,"ATLANTAGAE-2",1116]
[{"$nulls":16},"ATLANTAGAE-3",864,"ATLANTAGAE-3",1116]
[{"$nulls":16},"ATLANTAGAE-4",864,"ATLANTAGAE-4",1116]
[{"$nulls":16},"ATLANTAGAE-5",978,"ATLANTAGAE-5",1194]
[{"$nulls":16},"ATLANTAGAE-6",1047,"ATLANTAGAE-6",1353]
[{"$nulls":16},"ATLANTAGAE-7",1119,"ATLANTAGAE-7",1422]
[{"$nulls":16},"ATLANTAGAE-8",1224,"ATLANTAGAE-8",1494]
[{"$nulls":16},"ATLANTAGAE-9",1275,"ATLANTAGAE-9",1593]
[{"$nulls":16},"ATLANTAGAW-1",1086,"ATLANTAGAW-1",1356]
[{"$nulls":16},"ATLANTAGAW-2",1224,"ATLANTAGAW-2",1452]
[{"$nulls":16},"ATLANTAGAW-3",1278,"ATLANTAGAW-3",1542]
[{"$nulls":16},"ATLANTAGAW-4",1371,"ATLANTAGAW-4",1611]
[{"$nulls":16},"ATLANTAGAW-5",1437,"ATLANTAGAW-5",1695]
[{"$nulls":16},"ATLANTAGAO-1E",1194,"ATLANTAGAO-1E",1437]
[{"$nulls":16},"ATLANTAGAO-2E",1263,"ATLANTAGAO-2E",1527]
[{"$nulls":16},"ATLANTAGAO-3E",1353,"ATLANTAGAO-3E",1623]
[{"$nulls":16},"ATLANTAGAO-1",1035,"ATLANTAGAO-1",1212]
[{"$nulls":16},"ATLANTAGAO-2",1167,"ATLANTAGAO-2",1350]
[{"$nulls":16},"ATLANTAGAO-3",1296,"ATLANTAGAO-3",1536]
[{"$nulls":16},"ATLANTAGAO-4",1428,"ATLANTAGAO-4",1725]
[{"$nulls":16},"ATLANTAGAO-5",1470,"ATLANTAGAO-5",1860]
[{"$nulls":16},"ATLANTAGAO-6",1542,"ATLANTAGAO-6",1878]
[{"$nulls":16},"ATLANTAGAO-7",1572,"ATLANTAGAO-7",1896]
[{"$nulls":16},"ALBANYGAE-1",741,"ALBANYGAE-1",918]
[{"$nulls":16},"ALBANYGAE-2",741,"ALBANYGAE-2",918]
[{"$nulls":16},"ALBANYGAE-3",741,"ALBANYGAE-3",918]
[{"$nulls":16},"ALBANYGAE-4",741,"ALBANYGAE-4",918]
[{"$nulls":16},"ALBANYGAE-5",816,"ALBANYGAE-5",981]
[{"$nulls":16},"ALBANYGAE-6",861,"ALBANYGAE-6",1050]
[{"$nulls":16},"ALBANYGAE-7",921,"ALBANYGAE-7",1149]
[{"$nulls":16},"ALBANYGAE-8",996,"ALBANYGAE-8",1254]
[{"$nulls":16},"ALBANYGAE-9",1050,"ALBANYGAE-9",1398]
[{"$nulls":16},"ALBANYGAW-1",891,"ALBANYGAW-1",1053]
[{"$nulls":16},"ALBANYGAW-2",993,"ALBANYGAW-2",1191]
[{"$nulls":16},"ALBANYGAW-3",1020,"ALBANYGAW-3",1323]
[{"$nulls":16},"ALBANYGAW-4",1074,"ALBANYGAW-4",1428]
[{"$nulls":16},"ALBANYGAW-5",1173,"ALBANYGAW-5",1551]
[{"$nulls":16},"ALBANYGAO-1E",981,"ALBANYGAO-1E",1170]
[{"$nulls":16},"ALBANYGAO-2E",1011,"ALBANYGAO-2E",1305]
[{"$nulls":16},"ALBANYGAO-3E",1086,"ALBANYGAO-3E",1446]
[{"$nulls":16},"ALBANYGAO-1",852,"ALBANYGAO-1",990]
[{"$nulls":16},"ALBANYGAO-2",960,"ALBANYGAO-2",1050]
[{"$nulls":16},"ALBANYGAO-3",1026,"ALBANYGAO-3",1317]
[{"$nulls":16},"ALBANYGAO-4",1200,"ALBANYGAO-4",1599]
[{"$nulls":16},"ALBANYGAO-5",1350,"ALBANYGAO-5",1800]
[{"$nulls":16},"ALBANYGAO-6",1365,"ALBANYGAO-6",1818]
[{"$nulls":16},"ALBANYGAO-7",1377,"ALBANYGAO-7",1836]
[{"$nulls":16},"FORT GORDONGAE-1",738,"FORT GORDONGAE-1",981]
[{"$nulls":16},"FORT GORDONGAE-2",738,"FORT GORDONGAE-2",981]
[{"$nulls":16},"FORT GORDONGAE-3",738,"FORT GORDONGAE-3",981]
[{"$nulls":16},"FORT GORDONGAE-4",738,"FORT GORDONGAE-4",981]
[{"$nulls":16},"FORT GORDONGAE-5",843,"FORT GORDONGAE-5",1068]
[{"$nulls":16},"FORT GORDONGAE-6",945,"FORT GORDONGAE-6",1260]
[{"$nulls":16},"FORT GORDONGAE-7",987,"FORT GORDONGAE-7",1272]
[{"$nulls":16},"FORT GORDONGAE-8",1107,"FORT GORDONGAE-8",1287]
[{"$nulls":16},"FORT GORDONGAE-9",1167,"FORT GORDONGAE-9",1392]
[{"$nulls":16},"FORT GORDONGAW-1",948,"FORT GORDONGAW-1",1260]
[{"$nulls":16},"FORT GORDONGAW-2",1104,"FORT GORDONGAW-2",1278]
[{"$nulls":16},"FORT GORDONGAW-3",1173,"FORT GORDONGAW-3",1296]
[{"$nulls":16},"FORT GORDONGAW-4",1263,"FORT GORDONGAW-4",1431]
[{"$nulls":16},"FORT GORDONGAW-5",1275,"FORT GORDONGAW-5",1590]
[{"$nulls":16},"FORT GORDONGAO-1E",1068,"FORT GORDONGAO-1E",1275]
[{"$nulls":16},"FORT GORDONGAO-2E",1152,"FORT GORDONGAO-2E",1293]
[{"$nulls":16},"FORT GORDONGAO-3E",1260,"FORT GORDONGAO-3E",1455]
[{"$nulls":16},"FORT GORDONGAO-1",894,"FORT GORDONGAO-1",1089]
[{"$nulls":16},"FORT GORDONGAO-2",1038,"FORT GORDONGAO-2",1257]
[{"$nulls":16},"FORT GORDONGAO-3",1191,"FORT GORDONGAO-3",1293]
[{"$nulls":16},"FORT GORDONGAO-4",1275,"FORT GORDONGAO-4",1653]
[{"$nulls":16},"FORT GORDONGAO-5",1434,"FORT GORDONGAO-5",1911]
[{"$nulls":16},"FORT GORDONGAO-6",1446,"FORT GORDONGAO-6",1929]
[{"$nulls":16},"FORT GORDONGAO-7",1461,"FORT GORDONGAO-7",1947]
[{"$nulls":16},"KINGS BAY/BRUNSWICKGAE-1",801,"KINGS BAY/BRUNSWICKGAE-1",975]
[{"$nulls":16},"KINGS BAY/BRUNSWICKGAE-2",801,"KINGS BAY/BRUNSWICKGAE-2",975]
[{"$nulls":16},"KINGS BAY/BRUNSWICKGAE-3",801,"KINGS BAY/BRUNSWICKGAE-3",975]
[{"$nulls":16},"KINGS BAY/BRUNSWICKGAE-4",801,"KINGS BAY/BRUNSWICKGAE-4",975]
[{"$nulls":16},"KINGS BAY/BRUNSWICKGAE-5",870,"KINGS BAY/BRUNSWICKGAE-5",1044]
[{"$nulls":16},"KINGS BAY/BRUNSWICKGAE-6",1011,"KINGS BAY/BRUNSWICKGAE-6",1350]
[{"$nulls":16},"KINGS BAY/BRUNSWICKGAE-7",1056,"KINGS BAY/BRUNSWICKGAE-7",1410]
[{"$nulls":16},"KINGS BAY/BRUNSWICKGAE-8",1107,"KINGS BAY/BRUNSWICKGAE-8",1476]
[{"$nulls":16},"KINGS BAY/BRUNSWICKGAE-9",1200,"KINGS BAY/BRUNSWICKGAE-9",1566]
[{"$nulls":16},"KINGS BAY/BRUNSWICKGAW-1",1014,"KINGS BAY/BRUNSWICKGAW-1",1350]
[{"$nulls":16},"KINGS BAY/BRUNSWICKGAW-2",1101,"KINGS BAY/BRUNSWICKGAW-2",1437]
[{"$nulls":16},"KINGS BAY/BRUNSWICKGAW-3",1209,"KINGS BAY/BRUNSWICKGAW-3",1518]
[{"$nulls":16},"KINGS BAY/BRUNSWICKGAW-4",1365,"KINGS BAY/BRUNSWICKGAW-4",1581]
[{"$nulls":16},"KINGS BAY/BRUNSWICKGAW-5",1425,"KINGS BAY/BRUNSWICKGAW-5",1659]
[{"$nulls":16},"KINGS BAY/BRUNSWICKGAO-1E",1068,"KINGS BAY/BRUNSWICKGAO-1E",1422]
[{"$nulls":16},"KINGS BAY/BRUNSWICKGAO-2E",1179,"KINGS BAY/BRUNSWICKGAO-2E",1506]
[{"$nulls":16},"KINGS BAY/BRUNSWICKGAO-3E",1350,"KINGS BAY/BRUNSWICKGAO-3E",1593]
[{"$nulls":16},"KINGS BAY/BRUNSWICKGAO-1",903,"KINGS BAY/BRUNSWICKGAO-1",1077]
[{"$nulls":16},"KINGS BAY/BRUNSWICKGAO-2",1020,"KINGS BAY/BRUNSWICKGAO-2",1344]
[{"$nulls":16},"KINGS BAY/BRUNSWICKGAO-3",1239,"KINGS BAY/BRUNSWICKGAO-3",1515]
[{"$nulls":16},"KINGS BAY/BRUNSWICKGAO-4",1416,"KINGS BAY/BRUNSWICKGAO-4",1686]
[{"$nulls":16},"KINGS BAY/BRUNSWICKGAO-5",1455,"KINGS BAY/BRUNSWICKGAO-5",1809]
[{"$nulls":16},"KINGS BAY/BRUNSWICKGAO-6",1518,"KINGS BAY/BRUNSWICKGAO-6",1827]
[{"$nulls":16},"KINGS BAY/BRUNSWICKGAO-7",1548,"KINGS BAY/BRUNSWICKGAO-7",1845]
[{"$nulls":16},"FORT BENNINGGAE-1",894,"FORT BENNINGGAE-1",1047]
[{"$nulls":16},"FORT BENNINGGAE-2",894,"FORT BENNINGGAE-2",1047]
[{"$nulls":16},"FORT BENNINGGAE-3",894,"FORT BENNINGGAE-3",1047]
[{"$nulls":16},"FORT BENNINGGAE-4",894,"FORT BENNINGGAE-4",1047]
[{"$nulls":16},"FORT BENNINGGAE-5",957,"FORT BENNINGGAE-5",1104]
[{"$nulls":16},"FORT BENNINGGAE-6",1029,"FORT BENNINGGAE-6",1371]
[{"$nulls":16},"FORT BENNINGGAE-7",1050,"FORT BENNINGGAE-7",1377]
[{"$nulls":16},"FORT BENNINGGAE-8",1155,"FORT BENNINGGAE-8",1386]
[{"$nulls":16},"FORT BENNINGGAE-9",1239,"FORT BENNINGGAE-9",1437]
[{"$nulls":16},"FORT BENNINGGAW-1",1029,"FORT BENNINGGAW-1",1371]
[{"$nulls":16},"FORT BENNINGGAW-2",1155,"FORT BENNINGGAW-2",1380]
[{"$nulls":16},"FORT BENNINGGAW-3",1248,"FORT BENNINGGAW-3",1389]
[{"$nulls":16},"FORT BENNINGGAW-4",1371,"FORT BENNINGGAW-4",1458]
[{"$nulls":16},"FORT BENNINGGAW-5",1380,"FORT BENNINGGAW-5",1536]
[{"$nulls":16},"FORT BENNINGGAO-1E",1104,"FORT BENNINGGAO-1E",1380]
[{"$nulls":16},"FORT BENNINGGAO-2E",1221,"FORT BENNINGGAO-2E",1389]
[{"$nulls":16},"FORT BENNINGGAO-3E",1371,"FORT BENNINGGAO-3E",1470]
[{"$nulls":16},"FORT BENNINGGAO-1",987,"FORT BENNINGGAO-1",1131]
[{"$nulls":16},"FORT BENNINGGAO-2",1083,"FORT BENNINGGAO-2",1365]
[{"$nulls":16},"FORT BENNINGGAO-3",1275,"FORT BENNINGGAO-3",1389]
[{"$nulls":16},"FORT BENNINGGAO-4",1377,"FORT BENNINGGAO-4",1566]
[{"$nulls":16},"FORT BENNINGGAO-5",1383,"FORT BENNINGGAO-5",1692]
[{"$nulls":16},"FORT BENNINGGAO-6",1389,"FORT BENNINGGAO-6",1710]
[{"$nulls":16},"FORT BENNINGGAO-7",1419,"FORT BENNINGGAO-7",1728]
[{"$nulls":16},"ROBINS AFBGAE-1",879,"ROBINS AFBGAE-1",1005]
[{"$nulls":16},"ROBINS AFBGAE-2",879,"ROBINS AFBGAE-2",1005]
[{"$nulls":16},"ROBINS AFBGAE-3",879,"ROBINS AFBGAE-3",1005]
[{"$nulls":16},"ROBINS AFBGAE-4",879,"ROBINS AFBGAE-4",1005]
[{"$nulls":16},"ROBINS AFBGAE-5",936,"ROBINS AFBGAE-5",1047]
[{"$nulls":16},"ROBINS AFBGAE-6",969,"ROBINS AFBGAE-6",1107]
[{"$nulls":16},"ROBINS AFBGAE-7",1008,"ROBINS AFBGAE-7",1251]
[{"$nulls":16},"ROBINS AFBGAE-8",1059,"ROBINS AFBGAE-8",1407]
[{"$nulls":16},"ROBINS AFBGAE-9",1161,"ROBINS AFBGAE-9",1545]
[{"$nulls":16},"ROBINS AFBGAW-1",990,"ROBINS AFBGAW-1",1110]
[{"$nulls":16},"ROBINS AFBGAW-2",1056,"ROBINS AFBGAW-2",1314]
[{"$nulls":16},"ROBINS AFBGAW-3",1131,"ROBINS AFBGAW-3",1506]
[{"$nulls":16},"ROBINS AFBGAW-4",1170,"ROBINS AFBGAW-4",1560]
[{"$nulls":16},"ROBINS AFBGAW-5",1287,"ROBINS AFBGAW-5",1626]
[{"$nulls":16},"ROBINS AFBGAO-1E",1047,"ROBINS AFBGAO-1E",1281]
[{"$nulls":16},"ROBINS AFBGAO-2E",1110,"ROBINS AFBGAO-2E",1479]
[{"$nulls":16},"ROBINS AFBGAO-3E",1179,"ROBINS AFBGAO-3E",1572]
[{"$nulls":16},"ROBINS AFBGAO-1",963,"ROBINS AFBGAO-1",1053]
[{"$nulls":16},"ROBINS AFBGAO-2",1032,"ROBINS AFBGAO-2",1104]
[{"$nulls":16},"ROBINS AFBGAO-3",1125,"ROBINS AFBGAO-3",1497]
[{"$nulls":16},"ROBINS AFBGAO-4",1266,"ROBINS AFBGAO-4",1650]
[{"$nulls":16},"ROBINS AFBGAO-5",1359,"ROBINS AFBGAO-5",1755]
[{"$nulls":16},"ROBINS AFBGAO-6",1506,"ROBINS AFBGAO-6",1773]
[{"$nulls":16},"ROBINS AFBGAO-7",1536,"ROBINS AFBGAO-7",1791]
[{"$nulls":16},"SAVANNAHGAE-1",990,"SAVANNAHGAE-1",1179]
[{"$nulls":16},"SAVANNAHGAE-2",990,"SAVANNAHGAE-2",1179]
[{"$nulls":16},"SAVANNAHGAE-3",990,"SAVANNAHGAE-3",1179]
[{"$nulls":16},"SAVANNAHGAE-4",990,"SAVANNAHGAE-4",1179]
[{"$nulls":16},"SAVANNAHGAE-5",1065,"SAVANNAHGAE-5",1254]
[{"$nulls":16},"SAVANNAHGAE-6",1116,"SAVANNAHGAE-6",1488]
[{"$nulls":16},"SAVANNAHGAE-7",1182,"SAVANNAHGAE-7",1575]
[{"$nulls":16},"SAVANNAHGAE-8",1302,"SAVANNAHGAE-8",1671]
[{"$nulls":16},"SAVANNAHGAE-9",1374,"SAVANNAHGAE-9",1782]
[{"$nulls":16},"SAVANNAHGAW-1",1149,"SAVANNAHGAW-1",1491]
[{"$nulls":16},"SAVANNAHGAW-2",1299,"SAVANNAHGAW-2",1614]
[{"$nulls":16},"SAVANNAHGAW-3",1380,"SAVANNAHGAW-3",1731]
[{"$nulls":16},"SAVANNAHGAW-4",1512,"SAVANNAHGAW-4",1800]
[{"$nulls":16},"SAVANNAHGAW-5",1599,"SAVANNAHGAW-5",1881]
[{"$nulls":16},"SAVANNAHGAO-1E",1254,"SAVANNAHGAO-1E",1596]
[{"$nulls":16},"SAVANNAHGAO-2E",1356,"SAVANNAHGAO-2E",1713]
[{"$nulls":16},"SAVANNAHGAO-3E",1488,"SAVANNAHGAO-3E",1812]
[{"$nulls":16},"SAVANNAHGAO-1",1101,"SAVANNAHGAO-1",1281]
[{"$nulls":16},"SAVANNAHGAO-2",1227,"SAVANNAHGAO-2",1485]
[{"$nulls":16},"SAVANNAHGAO-3",1404,"SAVANNAHGAO-3",1725]
[{"$nulls":16},"SAVANNAHGAO-4",1587,"SAVANNAHGAO-4",1914]
[{"$nulls":16},"SAVANNAHGAO-5",1641,"SAVANNAHGAO-5",2046]
[{"$nulls":16},"SAVANNAHGAO-6",1731,"SAVANNAHGAO-6",2067]
[{"$nulls":16},"SAVANNAHGAO-7",1767,"SAVANNAHGAO-7",2088]
[{"$nulls":16},"ATHENSGAE-1",771,"ATHENSGAE-1",915]
[{"$nulls":16},"ATHENSGAE-2",771,"ATHENSGAE-2",915]
[{"$nulls":16},"ATHENSGAE-3",771,"ATHENSGAE-3",915]
[{"$nulls":16},"ATHENSGAE-4",771,"ATHENSGAE-4",915]
[{"$nulls":16},"ATHENSGAE-5",837,"ATHENSGAE-5",960]
[{"$nulls":16},"ATHENSGAE-6",876,"ATHENSGAE-6",1116]
[{"$nulls":16},"ATHENSGAE-7",918,"ATHENSGAE-7",1185]
[{"$nulls":16},"ATHENSGAE-8",993,"ATHENSGAE-8",1257]
[{"$nulls":16},"ATHENSGAE-9",1041,"ATHENSGAE-9",1359]
[{"$nulls":16},"ATHENSGAW-1",897,"ATHENSGAW-1",1119]
[{"$nulls":16},"ATHENSGAW-2",990,"ATHENSGAW-2",1215]
[{"$nulls":16},"ATHENSGAW-3",1044,"ATHENSGAW-3",1302]
[{"$nulls":16},"ATHENSGAW-4",1134,"ATHENSGAW-4",1380]
[{"$nulls":16},"ATHENSGAW-5",1200,"ATHENSGAW-5",1470]
[{"$nulls":16},"ATHENSGAO-1E",960,"ATHENSGAO-1E",1200]
[{"$nulls":16},"ATHENSGAO-2E",1029,"ATHENSGAO-2E",1290]
[{"$nulls":16},"ATHENSGAO-3E",1116,"ATHENSGAO-3E",1395]
[{"$nulls":16},"ATHENSGAO-1",870,"ATHENSGAO-1",978]
[{"$nulls":16},"ATHENSGAO-2",945,"ATHENSGAO-2",1113]
[{"$nulls":16},"ATHENSGAO-3",1062,"ATHENSGAO-3",1299]
[{"$nulls":16},"ATHENSGAO-4",1191,"ATHENSGAO-4",1506]
[{"$nulls":16},"ATHENSGAO-5",1239,"ATHENSGAO-5",1653]
[{"$nulls":16},"ATHENSGAO-6",1302,"ATHENSGAO-6",1668]
[{"$nulls":16},"ATHENSGAO-7",1329,"ATHENSGAO-7",1686]
[{"$nulls":16},"DAHLONEGHGAE-1",729,"DAHLONEGHGAE-1",945]
[{"$nulls":16},"DAHLONEGHGAE-2",729,"DAHLONEGHGAE-2",945]
[{"$nulls":16},"DAHLONEGHGAE-3",729,"DAHLONEGHGAE-3",945]
[{"$nulls":16},"DAHLONEGHGAE-4",729,"DAHLONEGHGAE-4",945]
[{"$nulls":16},"DAHLONEGHGAE-5",798,"DAHLONEGHGAE-5",1065]
[{"$nulls":16},"DAHLONEGHGAE-6",879,"DAHLONEGHGAE-6",1173]
[{"$nulls":16},"DAHLONEGHGAE-7",951,"DAHLONEGHGAE-7",1221]
[{"$nulls":16},"DAHLONEGHGAE-8",1086,"DAHLONEGHGAE-8",1272]
[{"$nulls":16},"DAHLONEGHGAE-9",1119,"DAHLONEGHGAE-9",1359]
[{"$nulls":16},"DAHLONEGHGAW-1",900,"DAHLONEGHGAW-1",1173]
[{"$nulls":16},"DAHLONEGHGAW-2",1086,"DAHLONEGHGAW-2",1242]
[{"$nulls":16},"DAHLONEGHGAW-3",1122,"DAHLONEGHGAW-3",1305]
[{"$nulls":16},"DAHLONEGHGAW-4",1185,"DAHLONEGHGAW-4",1377]
[{"$nulls":16},"DAHLONEGHGAW-5",1233,"DAHLONEGHGAW-5",1461]
[{"$nulls":16},"DAHLONEGHGAO-1E",1065,"DAHLONEGHGAO-1E",1233]
[{"$nulls":16},"DAHLONEGHGAO-2E",1113,"DAHLONEGHGAO-2E",1296]
[{"$nulls":16},"DAHLONEGHGAO-3E",1173,"DAHLONEGHGAO-3E",1392]
[{"$nulls":16},"DAHLONEGHGAO-1",825,"DAHLONEGHGAO-1",1077]
[{"$nulls":16},"DAHLONEGHGAO-2",1023,"DAHLONEGHGAO-2",1170]
[{"$nulls":16},"DAHLONEGHGAO-3",1134,"DAHLONEGHGAO-3",1302]
[{"$nulls":16},"DAHLONEGHGAO-4",1227,"DAHLONEGHGAO-4",1494]
[{"$nulls":16},"DAHLONEGHGAO-5",1257,"DAHLONEGHGAO-5",1632]
[{"$nulls":16},"DAHLONEGHGAO-6",1305,"DAHLONEGHGAO-6",1647]
[{"$nulls":16},"DAHLONEGHGAO-7",1332,"DAHLONEGHGAO-7",1665]
[{"$nulls":16},"FORT STEWARTGAE-1",918,"FORT STEWARTGAE-1",1077]
[{"$nulls":16},"FORT STEWARTGAE-2",918,"FORT STEWARTGAE-2",1077]
[{"$nulls":16},"FORT STEWARTGAE-3",918,"FORT STEWARTGAE-3",1077]
[{"$nulls":16},"FORT STEWARTGAE-4",918,"FORT STEWARTGAE-4",1077]
[{"$nulls":16},"FORT STEWARTGAE-5",990,"FORT STEWARTGAE-5",1128]
[{"$nulls":16},"FORT STEWARTGAE-6",1080,"FORT STEWARTGAE-6",1440]
[{"$nulls":16},"FORT STEWARTGAE-7",1098,"FORT STEWARTGAE-7",1464]
[{"$nulls":16},"FORT STEWARTGAE-8",1191,"FORT STEWARTGAE-8",1488]
[{"$nulls":16},"FORT STEWARTGAE-9",1287,"FORT STEWARTGAE-9",1575]
[{"$nulls":16},"FORT STEWARTGAW-1",1080,"FORT STEWARTGAW-1",1440]
[{"$nulls":16},"FORT STEWARTGAW-2",1188,"FORT STEWARTGAW-2",1473]
[{"$nulls":16},"FORT STEWARTGAW-3",1296,"FORT STEWARTGAW-3",1506]
[{"$nulls":16},"FORT STEWARTGAW-4",1446,"FORT STEWARTGAW-4",1602]
[{"$nulls":16},"FORT STEWARTGAW-5",1470,"FORT STEWARTGAW-5",1719]
[{"$nulls":16},"FORT STEWARTGAO-1E",1128,"FORT STEWARTGAO-1E",1470]
[{"$nulls":16},"FORT STEWARTGAO-2E",1266,"FORT STEWARTGAO-2E",1500]
[{"$nulls":16},"FORT STEWARTGAO-3E",1440,"FORT STEWARTGAO-3E",1620]
[{"$nulls":16},"FORT STEWARTGAO-1",1026,"FORT STEWARTGAO-1",1164]
[{"$nulls":16},"FORT STEWARTGAO-2",1110,"FORT STEWARTGAO-2",1434]
[{"$nulls":16},"FORT STEWARTGAO-3",1329,"FORT STEWARTGAO-3",1503]
[{"$nulls":16},"FORT STEWARTGAO-4",1467,"FORT STEWARTGAO-4",1761]
[{"$nulls":16},"FORT STEWARTGAO-5",1482,"FORT STEWARTGAO-5",1947]
[{"$nulls":16},"FORT STEWARTGAO-6",1506,"FORT STEWARTGAO-6",1968]
[{"$nulls":16},"FORT STEWARTGAO-7",1536,"FORT STEWARTGAO-7",1986]
[{"$nulls":16},"MOODY AFBGAE-1",690,"MOODY AFBGAE-1",918]
[{"$nulls":16},"MOODY AFBGAE-2",690,"MOODY AFBGAE-2",918]
[{"$nulls":16},"MOODY AFBGAE-3",690,"MOODY AFBGAE-3",918]
[{"$nulls":16},"MOODY AFBGAE-4",690,"MOODY AFBGAE-4",918]
[{"$nulls":16},"MOODY AFBGAE-5",801,"MOODY AFBGAE-5",975]
[{"$nulls":16},"MOODY AFBGAE-6",870,"MOODY AFBGAE-6",1149]
[{"$nulls":16},"MOODY AFBGAE-7",921,"MOODY AFBGAE-7",1197]
[{"$nulls":16},"MOODY AFBGAE-8",1008,"MOODY AFBGAE-8",1254]
[{"$nulls":16},"MOODY AFBGAE-9",1062,"MOODY AFBGAE-9",1359]
[{"$nulls":16},"MOODY AFBGAW-1",897,"MOODY AFBGAW-1",1149]
[{"$nulls":16},"MOODY AFBGAW-2",1008,"MOODY AFBGAW-2",1221]
[{"$nulls":16},"MOODY AFBGAW-3",1068,"MOODY AFBGAW-3",1287]
[{"$nulls":16},"MOODY AFBGAW-4",1161,"MOODY AFBGAW-4",1383]
[{"$nulls":16},"MOODY AFBGAW-5",1212,"MOODY AFBGAW-5",1497]
[{"$nulls":16},"MOODY AFBGAO-1E",975,"MOODY AFBGAO-1E",1209]
[{"$nulls":16},"MOODY AFBGAO-2E",1050,"MOODY AFBGAO-2E",1278]
[{"$nulls":16},"MOODY AFBGAO-3E",1149,"MOODY AFBGAO-3E",1401]
[{"$nulls":16},"MOODY AFBGAO-1",861,"MOODY AFBGAO-1",993]
[{"$nulls":16},"MOODY AFBGAO-2",954,"MOODY AFBGAO-2",1146]
[{"$nulls":16},"MOODY AFBGAO-3",1086,"MOODY AFBGAO-3",1284]
[{"$nulls":16},"MOODY AFBGAO-4",1203,"MOODY AFBGAO-4",1539]
[{"$nulls":16},"MOODY AFBGAO-5",1293,"MOODY AFBGAO-5",1722]
[{"$nulls":16},"MOODY AFBGAO-6",1305,"MOODY AFBGAO-6",1740]
[{"$nulls":16},"MOODY AFBGAO-7",1317,"MOODY AFBGAO-7",1758]
[{"$nulls":16},"MAUI COUNTYHIE-1",1317,"MAUI COUNTYHIE-1",1746]
[{"$nulls":16},"MAUI COUNTYHIE-2",1317,"MAUI COUNTYHIE-2",1746]
[{"$nulls":16},"MAUI COUNTYHIE-3",1317,"MAUI COUNTYHIE-3",1746]
[{"$nulls":16},"MAUI COUNTYHIE-4",1317,"MAUI COUNTYHIE-4",1746]
[{"$nulls":16},"MAUI COUNTYHIE-5",1548,"MAUI COUNTYHIE-5",1830]
[{"$nulls":16},"MAUI COUNTYHIE-6",1674,"MAUI COUNTYHIE-6",2040]
[{"$nulls":16},"MAUI COUNTYHIE-7",1752,"MAUI COUNTYHIE-7",2073]
[{"$nulls":16},"MAUI COUNTYHIE-8",1872,"MAUI COUNTYHIE-8",2109]
[{"$nulls":16},"MAUI COUNTYHIE-9",1938,"MAUI COUNTYHIE-9",2178]
[{"$nulls":16},"MAUI COUNTYHIW-1",1713,"MAUI COUNTYHIW-1",2040]
[{"$nulls":16},"MAUI COUNTYHIW-2",1869,"MAUI COUNTYHIW-2",2088]
[{"$nulls":16},"MAUI COUNTYHIW-3",1944,"MAUI COUNTYHIW-3",2133]
[{"$nulls":16},"MAUI COUNTYHIW-4",2049,"MAUI COUNTYHIW-4",2193]
[{"$nulls":16},"MAUI COUNTYHIW-5",2082,"MAUI COUNTYHIW-5",2268]
[{"$nulls":16},"MAUI COUNTYHIO-1E",1830,"MAUI COUNTYHIO-1E",2082]
[{"$nulls":16},"MAUI COUNTYHIO-2E",1923,"MAUI COUNTYHIO-2E",2127]
[{"$nulls":16},"MAUI COUNTYHIO-3E",2040,"MAUI COUNTYHIO-3E",2205]
[{"$nulls":16},"MAUI COUNTYHIO-1",1662,"MAUI COUNTYHIO-1",1851]
[{"$nulls":16},"MAUI COUNTYHIO-2",1800,"MAUI COUNTYHIO-2",2037]
[{"$nulls":16},"MAUI COUNTYHIO-3",1965,"MAUI COUNTYHIO-3",2130]
[{"$nulls":16},"MAUI COUNTYHIO-4",2076,"MAUI COUNTYHIO-4",2295]
[{"$nulls":16},"MAUI COUNTYHIO-5",2100,"MAUI COUNTYHIO-5",2412]
[{"$nulls":16},"MAUI COUNTYHIO-6",2133,"MAUI COUNTYHIO-6",2436]
[{"$nulls":16},"MAUI COUNTYHIO-7",2175,"MAUI COUNTYHIO-7",2460]
[{"$nulls":16},"HONOLULU COUNTYHIE-1",1572,"HONOLULU COUNTYHIE-1",2001]
[{"$nulls":16},"HONOLULU COUNTYHIE-2",1572,"HONOLULU COUNTYHIE-2",2001]
[{"$nulls":16},"HONOLULU COUNTYHIE-3",1572,"HONOLULU COUNTYHIE-3",2001]
[{"$nulls":16},"HONOLULU COUNTYHIE-4",1572,"HONOLULU COUNTYHIE-4",2001]
[{"$nulls":16},"HONOLULU COUNTYHIE-5",1794,"HONOLULU COUNTYHIE-5",2094]
[{"$nulls":16},"HONOLULU COUNTYHIE-6",1917,"HONOLULU COUNTYHIE-6",2445]
[{"$nulls":16},"HONOLULU COUNTYHIE-7",2004,"HONOLULU COUNTYHIE-7",2553]
[{"$nulls":16},"HONOLULU COUNTYHIE-8",2163,"HONOLULU COUNTYHIE-8",2670]
[{"$nulls":16},"HONOLULU COUNTYHIE-9",2274,"HONOLULU COUNTYHIE-9",2808]
[{"$nulls":16},"HONOLULU COUNTYHIW-1",1965,"HONOLULU COUNTYHIW-1",2448]
[{"$nulls":16},"HONOLULU COUNTYHIW-2",2160,"HONOLULU COUNTYHIW-2",2601]
[{"$nulls":16},"HONOLULU COUNTYHIW-3",2283,"HONOLULU COUNTYHIW-3",2745]
[{"$nulls":16},"HONOLULU COUNTYHIW-4",2472,"HONOLULU COUNTYHIW-4",2832]
[{"$nulls":16},"HONOLULU COUNTYHIW-5",2580,"HONOLULU COUNTYHIW-5",2934]
[{"$nulls":16},"HONOLULU COUNTYHIO-1E",2094,"HONOLULU COUNTYHIO-1E",2577]
[{"$nulls":16},"HONOLULU COUNTYHIO-2E",2250,"HONOLULU COUNTYHIO-2E",2724]
[{"$nulls":16},"HONOLULU COUNTYHIO-3E",2445,"HONOLULU COUNTYHIO-3E",2847]
[{"$nulls":16},"HONOLULU COUNTYHIO-1",1905,"HONOLULU COUNTYHIO-1",2133]
[{"$nulls":16},"HONOLULU COUNTYHIO-2",2061,"HONOLULU COUNTYHIO-2",2439]
[{"$nulls":16},"HONOLULU COUNTYHIO-3",2319,"HONOLULU COUNTYHIO-3",2739]
[{"$nulls":16},"HONOLULU COUNTYHIO-4",2565,"HONOLULU COUNTYHIO-4",2973]
[{"$nulls":16},"HONOLULU COUNTYHIO-5",2634,"HONOLULU COUNTYHIO-5",3138]
[{"$nulls":16},"HONOLULU COUNTYHIO-6",2745,"HONOLULU COUNTYHIO-6",3168]
[{"$nulls":16},"HONOLULU COUNTYHIO-7",2799,"HONOLULU COUNTYHIO-7",3201]
[{"$nulls":16},"HAWAII COUNTYHIE-1",1062,"HAWAII COUNTYHIE-1",1413]
[{"$nulls":16},"HAWAII COUNTYHIE-2",1062,"HAWAII COUNTYHIE-2",1413]
[{"$nulls":16},"HAWAII COUNTYHIE-3",1062,"HAWAII COUNTYHIE-3",1413]
[{"$nulls":16},"HAWAII COUNTYHIE-4",1062,"HAWAII COUNTYHIE-4",1413]
[{"$nulls":16},"HAWAII COUNTYHIE-5",1227,"HAWAII COUNTYHIE-5",1476]
[{"$nulls":16},"HAWAII COUNTYHIE-6",1362,"HAWAII COUNTYHIE-6",1815]
[{"$nulls":16},"HAWAII COUNTYHIE-7",1419,"HAWAII COUNTYHIE-7",1848]
[{"$nulls":16},"HAWAII COUNTYHIE-8",1545,"HAWAII COUNTYHIE-8",1884]
[{"$nulls":16},"HAWAII COUNTYHIE-9",1650,"HAWAII COUNTYHIE-9",1947]
[{"$nulls":16},"HAWAII COUNTYHIW-1",1389,"HAWAII COUNTYHIW-1",1815]
[{"$nulls":16},"HAWAII COUNTYHIW-2",1542,"HAWAII COUNTYHIW-2",1863]
[{"$nulls":16},"HAWAII COUNTYHIW-3",1659,"HAWAII COUNTYHIW-3",1908]
[{"$nulls":16},"HAWAII COUNTYHIW-4",1824,"HAWAII COUNTYHIW-4",1959]
[{"$nulls":16},"HAWAII COUNTYHIW-5",1857,"HAWAII COUNTYHIW-5",2022]
[{"$nulls":16},"HAWAII COUNTYHIO-1E",1476,"HAWAII COUNTYHIO-1E",1857]
[{"$nulls":16},"HAWAII COUNTYHIO-2E",1626,"HAWAII COUNTYHIO-2E",1902]
[{"$nulls":16},"HAWAII COUNTYHIO-3E",1815,"HAWAII COUNTYHIO-3E",1971]
[{"$nulls":16},"HAWAII COUNTYHIO-1",1350,"HAWAII COUNTYHIO-1",1515]
[{"$nulls":16},"HAWAII COUNTYHIO-2",1455,"HAWAII COUNTYHIO-2",1809]
[{"$nulls":16},"HAWAII COUNTYHIO-3",1692,"HAWAII COUNTYHIO-3",1905]
[{"$nulls":16},"HAWAII COUNTYHIO-4",1851,"HAWAII COUNTYHIO-4",2046]
[{"$nulls":16},"HAWAII COUNTYHIO-5",1875,"HAWAII COUNTYHIO-5",2145]
[{"$nulls":16},"HAWAII COUNTYHIO-6",1908,"HAWAII COUNTYHIO-6",2166]
[{"$nulls":16},"HAWAII COUNTYHIO-7",1947,"HAWAII COUNTYHIO-7",2187]
[{"$nulls":16},"KAUAI COUNTYHIE-1",1302,"KAUAI COUNTYHIE-1",1737]
[{"$nulls":16},"KAUAI COUNTYHIE-2",1302,"KAUAI COUNTYHIE-2",1737]
[{"$nulls":16},"KAUAI COUNTYHIE-3",1302,"KAUAI COUNTYHIE-3",1737]
[{"$nulls":16},"KAUAI COUNTYHIE-4",1302,"KAUAI COUNTYHIE-4",1737]
[{"$nulls":16},"KAUAI COUNTYHIE-5",1455,"KAUAI COUNTYHIE-5",1893]
[{"$nulls":16},"KAUAI COUNTYHIE-6",1605,"KAUAI COUNTYHIE-6",2061]
[{"$nulls":16},"KAUAI COUNTYHIE-7",1746,"KAUAI COUNTYHIE-7",2079]
[{"$nulls":16},"KAUAI COUNTYHIE-8",1926,"KAUAI COUNTYHIE-8",2097]
[{"$nulls":16},"KAUAI COUNTYHIE-9",1977,"KAUAI COUNTYHIE-9",2265]
[{"$nulls":16},"KAUAI COUNTYHIW-1",1677,"KAUAI COUNTYHIW-1",2061]
[{"$nulls":16},"KAUAI COUNTYHIW-2",1923,"KAUAI COUNTYHIW-2",2085]
[{"$nulls":16},"KAUAI COUNTYHIW-3",1983,"KAUAI COUNTYHIW-3",2109]
[{"$nulls":16},"KAUAI COUNTYHIW-4",2064,"KAUAI COUNTYHIW-4",2325]
[{"$nulls":16},"KAUAI COUNTYHIW-5",2082,"KAUAI COUNTYHIW-5",2577]
[{"$nulls":16},"KAUAI COUNTYHIO-1E",1893,"KAUAI COUNTYHIO-1E",2082]
[{"$nulls":16},"KAUAI COUNTYHIO-2E",1965,"KAUAI COUNTYHIO-2E",2106]
[{"$nulls":16},"KAUAI COUNTYHIO-3E",2061,"KAUAI COUNTYHIO-3E",2364]
[{"$nulls":16},"KAUAI COUNTYHIO-1",1581,"KAUAI COUNTYHIO-1",1911]
[{"$nulls":16},"KAUAI COUNTYHIO-2",1839,"KAUAI COUNTYHIO-2",2058]
[{"$nulls":16},"KAUAI COUNTYHIO-3",2001,"KAUAI COUNTYHIO-3",2109]
[{"$nulls":16},"KAUAI COUNTYHIO-4",2079,"KAUAI COUNTYHIO-4",2676]
[{"$nulls":16},"KAUAI COUNTYHIO-5",2313,"KAUAI COUNTYHIO-5",3084]
[{"$nulls":16},"KAUAI COUNTYHIO-6",2337,"KAUAI COUNTYHIO-6",3117]
[{"$nulls":16},"KAUAI COUNTYHIO-7",2361,"KAUAI COUNTYHIO-7",3147]
[{"$nulls":16},"DES MOINESIAE-1",795,"DES MOINESIAE-1",1017]
[{"$nulls":16},"DES MOINESIAE-2",795,"DES MOINESIAE-2",1017]
[{"$nulls":16},"DES MOINESIAE-3",795,"DES MOINESIAE-3",1017]
[{"$nulls":16},"DES MOINESIAE-4",795,"DES MOINESIAE-4",1017]
[{"$nulls":16},"DES MOINESIAE-5",888,"DES MOINESIAE-5",1104]
[{"$nulls":16},"DES MOINESIAE-6",1026,"DES MOINESIAE-6",1368]
[{"$nulls":16},"DES MOINESIAE-7",1065,"DES MOINESIAE-7",1422]
[{"$nulls":16},"DES MOINESIAE-8",1155,"DES MOINESIAE-8",1479]
[{"$nulls":16},"DES MOINESIAE-9",1239,"DES MOINESIAE-9",1554]
[{"$nulls":16},"DES MOINESIAW-1",1026,"DES MOINESIAW-1",1368]
[{"$nulls":16},"DES MOINESIAW-2",1152,"DES MOINESIAW-2",1443]
[{"$nulls":16},"DES MOINESIAW-3",1245,"DES MOINESIAW-3",1515]
[{"$nulls":16},"DES MOINESIAW-4",1380,"DES MOINESIAW-4",1566]
[{"$nulls":16},"DES MOINESIAW-5",1434,"DES MOINESIAW-5",1629]
[{"$nulls":16},"DES MOINESIAO-1E",1104,"DES MOINESIAO-1E",1431]
[{"$nulls":16},"DES MOINESIAO-2E",1221,"DES MOINESIAO-2E",1503]
[{"$nulls":16},"DES MOINESIAO-3E",1368,"DES MOINESIAO-3E",1578]
[{"$nulls":16},"DES MOINESIAO-1",933,"DES MOINESIAO-1",1131]
[{"$nulls":16},"DES MOINESIAO-2",1074,"DES MOINESIAO-2",1362]
[{"$nulls":16},"DES MOINESIAO-3",1272,"DES MOINESIAO-3",1512]
[{"$nulls":16},"DES MOINESIAO-4",1425,"DES MOINESIAO-4",1653]
[{"$nulls":16},"DES MOINESIAO-5",1461,"DES MOINESIAO-5",1755]
[{"$nulls":16},"DES MOINESIAO-6",1515,"DES MOINESIAO-6",1773]
[{"$nulls":16},"DES MOINESIAO-7",1545,"DES MOINESIAO-7",1791]
[{"$nulls":16},"AMESIAE-1",675,"AMESIAE-1",885]
[{"$nulls":16},"AMESIAE-2",675,"AMESIAE-2",885]
[{"$nulls":16},"AMESIAE-3",675,"AMESIAE-3",885]
[{"$nulls":16},"AMESIAE-4",675,"AMESIAE-4",885]
[{"$nulls":16},"AMESIAE-5",762,"AMESIAE-5",963]
[{"$nulls":16},"AMESIAE-6",933,"AMESIAE-6",1245]
[{"$nulls":16},"AMESIAE-7",942,"AMESIAE-7",1257]
[{"$nulls":16},"AMESIAE-8",1020,"AMESIAE-8",1272]
[{"$nulls":16},"AMESIAE-9",1107,"AMESIAE-9",1359]
[{"$nulls":16},"AMESIAW-1",933,"AMESIAW-1",1245]
[{"$nulls":16},"AMESIAW-2",1017,"AMESIAW-2",1263]
[{"$nulls":16},"AMESIAW-3",1116,"AMESIAW-3",1278]
[{"$nulls":16},"AMESIAW-4",1248,"AMESIAW-4",1389]
[{"$nulls":16},"AMESIAW-5",1260,"AMESIAW-5",1521]
[{"$nulls":16},"AMESIAO-1E",963,"AMESIAO-1E",1260]
[{"$nulls":16},"AMESIAO-2E",1086,"AMESIAO-2E",1278]
[{"$nulls":16},"AMESIAO-3E",1245,"AMESIAO-3E",1410]
[{"$nulls":16},"AMESIAO-1",807,"AMESIAO-1",993]
[{"$nulls":16},"AMESIAO-2",936,"AMESIAO-2",1239]
[{"$nulls":16},"AMESIAO-3",1143,"AMESIAO-3",1278]
[{"$nulls":16},"AMESIAO-4",1260,"AMESIAO-4",1572]
[{"$nulls":16},"AMESIAO-5",1338,"AMESIAO-5",1785]
[{"$nulls":16},"AMESIAO-6",1350,"AMESIAO-6",1803]
[{"$nulls":16},"AMESIAO-7",1365,"AMESIAO-7",1821]
[{"$nulls":16},"WATERLOOIAE-1",660,"WATERLOOIAE-1",828]
[{"$nulls":16},"WATERLOOIAE-2",660,"WATERLOOIAE-2",828]
[{"$nulls":16},"WATERLOOIAE-3",660,"WATERLOOIAE-3",828]
[{"$nulls":16},"WATERLOOIAE-4",660,"WATERLOOIAE-4",828]
[{"$nulls":16},"WATERLOOIAE-5",714,"WATERLOOIAE-5",915]
[{"$nulls":16},"WATERLOOIAE-6",795,"WATERLOOIAE-6",1059]
[{"$nulls":16},"WATERLOOIAE-7",840,"WATERLOOIAE-7",1119]
[{"$nulls":16},"WATERLOOIAE-8",945,"WATERLOOIAE-8",1185]
[{"$nulls":16},"WATERLOOIAE-9",990,"WATERLOOIAE-9",1260]
[{"$nulls":16},"WATERLOOIAW-1",795,"WATERLOOIAW-1",1062]
[{"$nulls":16},"WATERLOOIAW-2",942,"WATERLOOIAW-2",1146]
[{"$nulls":16},"WATERLOOIAW-3",993,"WATERLOOIAW-3",1227]
[{"$nulls":16},"WATERLOOIAW-4",1074,"WATERLOOIAW-4",1272]
[{"$nulls":16},"WATERLOOIAW-5",1137,"WATERLOOIAW-5",1323]
[{"$nulls":16},"WATERLOOIAO-1E",915,"WATERLOOIAO-1E",1134]
[{"$nulls":16},"WATERLOOIAO-2E",978,"WATERLOOIAO-2E",1215]
[{"$nulls":16},"WATERLOOIAO-3E",1059,"WATERLOOIAO-3E",1281]
[{"$nulls":16},"WATERLOOIAO-1",741,"WATERLOOIAO-1",933]
[{"$nulls":16},"WATERLOOIAO-2",885,"WATERLOOIAO-2",1056]
[{"$nulls":16},"WATERLOOIAO-3",1008,"WATERLOOIAO-3",1224]
[{"$nulls":16},"WATERLOOIAO-4",1128,"WATERLOOIAO-4",1344]
[{"$nulls":16},"WATERLOOIAO-5",1167,"WATERLOOIAO-5",1428]
[{"$nulls":16},"WATERLOOIAO-6",1227,"WATERLOOIAO-6",1443]
[{"$nulls":16},"WATERLOOIAO-7",1254,"WATERLOOIAO-7",1458]
[{"$nulls":16},"DUBUQUEIAE-1",699,"DUBUQUEIAE-1",930]
[{"$nulls":16},"DUBUQUEIAE-2",699,"DUBUQUEIAE-2",930]
[{"$nulls":16},"DUBUQUEIAE-3",699,"DUBUQUEIAE-3",930]
[{"$nulls":16},"DUBUQUEIAE-4",699,"DUBUQUEIAE-4",930]
[{"$nulls":16},"DUBUQUEIAE-5",792,"DUBUQUEIAE-5",1020]
[{"$nulls":16},"DUBUQUEIAE-6",933,"DUBUQUEIAE-6",1242]
[{"$nulls":16},"DUBUQUEIAE-7",993,"DUBUQUEIAE-7",1323]
[{"$nulls":16},"DUBUQUEIAE-8",1065,"DUBUQUEIAE-8",1410]
[{"$nulls":16},"DUBUQUEIAE-9",1158,"DUBUQUEIAE-9",1545]
[{"$nulls":16},"DUBUQUEIAW-1",933,"DUBUQUEIAW-1",1245]
[{"$nulls":16},"DUBUQUEIAW-2",1062,"DUBUQUEIAW-2",1359]
[{"$nulls":16},"DUBUQUEIAW-3",1140,"DUBUQUEIAW-3",1467]
[{"$nulls":16},"DUBUQUEIAW-4",1263,"DUBUQUEIAW-4",1575]
[{"$nulls":16},"DUBUQUEIAW-5",1344,"DUBUQUEIAW-5",1701]
[{"$nulls":16},"DUBUQUEIAO-1E",1020,"DUBUQUEIAO-1E",1341]
[{"$nulls":16},"DUBUQUEIAO-2E",1116,"DUBUQUEIAO-2E",1452]
[{"$nulls":16},"DUBUQUEIAO-3E",1242,"DUBUQUEIAO-3E",1593]
[{"$nulls":16},"DUBUQUEIAO-1",843,"DUBUQUEIAO-1",1044]
[{"$nulls":16},"DUBUQUEIAO-2",990,"DUBUQUEIAO-2",1239]
[{"$nulls":16},"DUBUQUEIAO-3",1161,"DUBUQUEIAO-3",1464]
[{"$nulls":16},"DUBUQUEIAO-4",1332,"DUBUQUEIAO-4",1749]
[{"$nulls":16},"DUBUQUEIAO-5",1464,"DUBUQUEIAO-5",1953]
[{"$nulls":16},"DUBUQUEIAO-6",1479,"DUBUQUEIAO-6",1971]
[{"$nulls":16},"DUBUQUEIAO-7",1497,"DUBUQUEIAO-7",1992]
[{"$nulls":16},"CEDAR RAPIDSIAE-1",609,"CEDAR RAPIDSIAE-1",813]
[{"$nulls":16},"CEDAR RAPIDSIAE-2",609,"CEDAR RAPIDSIAE-2",813]
[{"$nulls":16},"CEDAR RAPIDSIAE-3",609,"CEDAR RAPIDSIAE-3",813]
[{"$nulls":16},"CEDAR RAPIDSIAE-4",609,"CEDAR RAPIDSIAE-4",813]
[{"$nulls":16},"CEDAR RAPIDSIAE-5",729,"CEDAR RAPIDSIAE-5",831]
[{"$nulls":16},"CEDAR RAPIDSIAE-6",819,"CEDAR RAPIDSIAE-6",1089]
[{"$nulls":16},"CEDAR RAPIDSIAE-7",876,"CEDAR RAPIDSIAE-7",1167]
[{"$nulls":16},"CEDAR RAPIDSIAE-8",939,"CEDAR RAPIDSIAE-8",1254]
[{"$nulls":16},"CEDAR RAPIDSIAE-9",1020,"CEDAR RAPIDSIAE-9",1359]
[{"$nulls":16},"CEDAR RAPIDSIAW-1",819,"CEDAR RAPIDSIAW-1",1092]
[{"$nulls":16},"CEDAR RAPIDSIAW-2",903,"CEDAR RAPIDSIAW-2",1203]
[{"$nulls":16},"CEDAR RAPIDSIAW-3",981,"CEDAR RAPIDSIAW-3",1308]
[{"$nulls":16},"CEDAR RAPIDSIAW-4",1110,"CEDAR RAPIDSIAW-4",1380]
[{"$nulls":16},"CEDAR RAPIDSIAW-5",1188,"CEDAR RAPIDSIAW-5",1464]
[{"$nulls":16},"CEDAR RAPIDSIAO-1E",888,"CEDAR RAPIDSIAO-1E",1185]
[{"$nulls":16},"CEDAR RAPIDSIAO-2E",969,"CEDAR RAPIDSIAO-2E",1293]
[{"$nulls":16},"CEDAR RAPIDSIAO-3E",1089,"CEDAR RAPIDSIAO-3E",1392]
[{"$nulls":16},"CEDAR RAPIDSIAO-1",795,"CEDAR RAPIDSIAO-1",858]
[{"$nulls":16},"CEDAR RAPIDSIAO-2",825,"CEDAR RAPIDSIAO-2",1086]
[{"$nulls":16},"CEDAR RAPIDSIAO-3",996,"CEDAR RAPIDSIAO-3",1302]
[{"$nulls":16},"CEDAR RAPIDSIAO-4",1176,"CEDAR RAPIDSIAO-4",1497]
[{"$nulls":16},"CEDAR RAPIDSIAO-5",1227,"CEDAR RAPIDSIAO-5",1632]
[{"$nulls":16},"CEDAR RAPIDSIAO-6",1308,"CEDAR RAPIDSIAO-6",1650]
[{"$nulls":16},"CEDAR RAPIDSIAO-7",1332,"CEDAR RAPIDSIAO-7",1665]
[{"$nulls":16},"SIOUX CITYIAE-1",654,"SIOUX CITYIAE-1",840]
[{"$nulls":16},"SIOUX CITYIAE-2",654,"SIOUX CITYIAE-2",840]
[{"$nulls":16},"SIOUX CITYIAE-3",654,"SIOUX CITYIAE-3",840]
[{"$nulls":16},"SIOUX CITYIAE-4",654,"SIOUX CITYIAE-4",840]
[{"$nulls":16},"SIOUX CITYIAE-5",735,"SIOUX CITYIAE-5",903]
[{"$nulls":16},"SIOUX CITYIAE-6",786,"SIOUX CITYIAE-6",1005]
[{"$nulls":16},"SIOUX CITYIAE-7",843,"SIOUX CITYIAE-7",1038]
[{"$nulls":16},"SIOUX CITYIAE-8",924,"SIOUX CITYIAE-8",1074]
[{"$nulls":16},"SIOUX CITYIAE-9",957,"SIOUX CITYIAE-9",1146]
[{"$nulls":16},"SIOUX CITYIAW-1",816,"SIOUX CITYIAW-1",1008]
[{"$nulls":16},"SIOUX CITYIAW-2",924,"SIOUX CITYIAW-2",1053]
[{"$nulls":16},"SIOUX CITYIAW-3",960,"SIOUX CITYIAW-3",1098]
[{"$nulls":16},"SIOUX CITYIAW-4",1014,"SIOUX CITYIAW-4",1164]
[{"$nulls":16},"SIOUX CITYIAW-5",1047,"SIOUX CITYIAW-5",1242]
[{"$nulls":16},"SIOUX CITYIAO-1E",903,"SIOUX CITYIAO-1E",1047]
[{"$nulls":16},"SIOUX CITYIAO-2E",948,"SIOUX CITYIAO-2E",1092]
[{"$nulls":16},"SIOUX CITYIAO-3E",1005,"SIOUX CITYIAO-3E",1176]
[{"$nulls":16},"SIOUX CITYIAO-1",777,"SIOUX CITYIAO-1",915]
[{"$nulls":16},"SIOUX CITYIAO-2",882,"SIOUX CITYIAO-2",1005]
[{"$nulls":16},"SIOUX CITYIAO-3",969,"SIOUX CITYIAO-3",1095]
[{"$nulls":16},"SIOUX CITYIAO-4",1041,"SIOUX CITYIAO-4",1272]
[{"$nulls":16},"SIOUX CITYIAO-5",1062,"SIOUX CITYIAO-5",1398]
[{"$nulls":16},"SIOUX CITYIAO-6",1098,"SIOUX CITYIAO-6",1413]
[{"$nulls":16},"SIOUX CITYIAO-7",1119,"SIOUX CITYIAO-7",1425]
[{"$nulls":16},"IOWA CITYIAE-1",741,"IOWA CITYIAE-1",960]
[{"$nulls":16},"IOWA CITYIAE-2",741,"IOWA CITYIAE-2",960]
[{"$nulls":16},"IOWA CITYIAE-3",741,"IOWA CITYIAE-3",960]
[{"$nulls":16},"IOWA CITYIAE-4",741,"IOWA CITYIAE-4",960]
[{"$nulls":16},"IOWA CITYIAE-5",816,"IOWA CITYIAE-5",1068]
[{"$nulls":16},"IOWA CITYIAE-6",975,"IOWA CITYIAE-6",1299]
[{"$nulls":16},"IOWA CITYIAE-7",1008,"IOWA CITYIAE-7",1347]
[{"$nulls":16},"IOWA CITYIAE-8",1113,"IOWA CITYIAE-8",1398]
[{"$nulls":16},"IOWA CITYIAE-9",1185,"IOWA CITYIAE-9",1533]
[{"$nulls":16},"IOWA CITYIAW-1",975,"IOWA CITYIAW-1",1299]
[{"$nulls":16},"IOWA CITYIAW-2",1110,"IOWA CITYIAW-2",1368]
[{"$nulls":16},"IOWA CITYIAW-3",1191,"IOWA CITYIAW-3",1428]
[{"$nulls":16},"IOWA CITYIAW-4",1311,"IOWA CITYIAW-4",1572]
[{"$nulls":16},"IOWA CITYIAW-5",1359,"IOWA CITYIAW-5",1740]
[{"$nulls":16},"IOWA CITYIAO-1E",1068,"IOWA CITYIAO-1E",1356]
[{"$nulls":16},"IOWA CITYIAO-2E",1170,"IOWA CITYIAO-2E",1419]
[{"$nulls":16},"IOWA CITYIAO-3E",1299,"IOWA CITYIAO-3E",1599]
[{"$nulls":16},"IOWA CITYIAO-1",855,"IOWA CITYIAO-1",1092]
[{"$nulls":16},"IOWA CITYIAO-2",1032,"IOWA CITYIAO-2",1293]
[{"$nulls":16},"IOWA CITYIAO-3",1215,"IOWA CITYIAO-3",1425]
[{"$nulls":16},"IOWA CITYIAO-4",1353,"IOWA CITYIAO-4",1806]
[{"$nulls":16},"IOWA CITYIAO-5",1560,"IOWA CITYIAO-5",2079]
[{"$nulls":16},"IOWA CITYIAO-6",1575,"IOWA CITYIAO-6",2100]
[{"$nulls":16},"IOWA CITYIAO-7",1590,"IOWA CITYIAO-7",2121]
[{"$nulls":16},"BOISEIDE-1",756,"BOISEIDE-1",885]
[{"$nulls":16},"BOISEIDE-2",756,"BOISEIDE-2",885]
[{"$nulls":16},"BOISEIDE-3",756,"BOISEIDE-3",885]
[{"$nulls":16},"BOISEIDE-4",756,"BOISEIDE-4",885]
[{"$nulls":16},"BOISEIDE-5",798,"BOISEIDE-5",951]
[{"$nulls":16},"BOISEIDE-6",828,"BOISEIDE-6",1080]
[{"$nulls":16},"BOISEIDE-7",888,"BOISEIDE-7",1113]
[{"$nulls":16},"BOISEIDE-8",978,"BOISEIDE-8",1146]
[{"$nulls":16},"BOISEIDE-9",1017,"BOISEIDE-9",1203]
[{"$nulls":16},"BOISEIDW-1",861,"BOISEIDW-1",1080]
[{"$nulls":16},"BOISEIDW-2",975,"BOISEIDW-2",1125]
[{"$nulls":16},"BOISEIDW-3",1020,"BOISEIDW-3",1170]
[{"$nulls":16},"BOISEIDW-4",1086,"BOISEIDW-4",1218]
[{"$nulls":16},"BOISEIDW-5",1119,"BOISEIDW-5",1272]
[{"$nulls":16},"BOISEIDO-1E",951,"BOISEIDO-1E",1119]
[{"$nulls":16},"BOISEIDO-2E",1008,"BOISEIDO-2E",1164]
[{"$nulls":16},"BOISEIDO-3E",1080,"BOISEIDO-3E",1224]
[{"$nulls":16},"BOISEIDO-1",819,"BOISEIDO-1",966]
[{"$nulls":16},"BOISEIDO-2",930,"BOISEIDO-2",1077]
[{"$nulls":16},"BOISEIDO-3",1032,"BOISEIDO-3",1167]
[{"$nulls":16},"BOISEIDO-4",1116,"BOISEIDO-4",1293]
[{"$nulls":16},"BOISEIDO-5",1137,"BOISEIDO-5",1383]
[{"$nulls":16},"BOISEIDO-6",1170,"BOISEIDO-6",1395]
[{"$nulls":16},"BOISEIDO-7",1194,"BOISEIDO-7",1410]
[{"$nulls":16},"IDAHO FALLSIDE-1",645,"IDAHO FALLSIDE-1",861]
[{"$nulls":16},"IDAHO FALLSIDE-2",645,"IDAHO FALLSIDE-2",861]
[{"$nulls":16},"IDAHO FALLSIDE-3",645,"IDAHO FALLSIDE-3",861]
[{"$nulls":16},"IDAHO FALLSIDE-4",645,"IDAHO FALLSIDE-4",861]
[{"$nulls":16},"IDAHO FALLSIDE-5",714,"IDAHO FALLSIDE-5",951]
[{"$nulls":16},"IDAHO FALLSIDE-6",780,"IDAHO FALLSIDE-6",975]
[{"$nulls":16},"IDAHO FALLSIDE-7",864,"IDAHO FALLSIDE-7",1050]
[{"$nulls":16},"IDAHO FALLSIDE-8",957,"IDAHO FALLSIDE-8",1131]
[{"$nulls":16},"IDAHO FALLSIDE-9",963,"IDAHO FALLSIDE-9",1224]
[{"$nulls":16},"IDAHO FALLSIDW-1",825,"IDAHO FALLSIDW-1",978]
[{"$nulls":16},"IDAHO FALLSIDW-2",957,"IDAHO FALLSIDW-2",1083]
[{"$nulls":16},"IDAHO FALLSIDW-3",966,"IDAHO FALLSIDW-3",1185]
[{"$nulls":16},"IDAHO FALLSIDW-4",996,"IDAHO FALLSIDW-4",1239]
[{"$nulls":16},"IDAHO FALLSIDW-5",1071,"IDAHO FALLSIDW-5",1305]
[{"$nulls":16},"IDAHO FALLSIDO-1E",951,"IDAHO FALLSIDO-1E",1068]
[{"$nulls":16},"IDAHO FALLSIDO-2E",963,"IDAHO FALLSIDO-2E",1170]
[{"$nulls":16},"IDAHO FALLSIDO-3E",975,"IDAHO FALLSIDO-3E",1248]
[{"$nulls":16},"IDAHO FALLSIDO-1",768,"IDAHO FALLSIDO-1",954]
[{"$nulls":16},"IDAHO FALLSIDO-2",921,"IDAHO FALLSIDO-2",975]
[{"$nulls":16},"IDAHO FALLSIDO-3",966,"IDAHO FALLSIDO-3",1179]
[{"$nulls":16},"IDAHO FALLSIDO-4",1059,"IDAHO FALLSIDO-4",1329]
[{"$nulls":16},"IDAHO FALLSIDO-5",1107,"IDAHO FALLSIDO-5",1434]
[{"$nulls":16},"IDAHO FALLSIDO-6",1185,"IDAHO FALLSIDO-6",1449]
[{"$nulls":16},"IDAHO FALLSIDO-7",1209,"IDAHO FALLSIDO-7",1464]
[{"$nulls":16},"MOUNTAIN HOME AFBIDE-1",675,"MOUNTAIN HOME AFBIDE-1",867]
[{"$nulls":16},"MOUNTAIN HOME AFBIDE-2",675,"MOUNTAIN HOME AFBIDE-2",867]
[{"$nulls":16},"MOUNTAIN HOME AFBIDE-3",675,"MOUNTAIN HOME AFBIDE-3",867]
[{"$nulls":16},"MOUNTAIN HOME AFBIDE-4",675,"MOUNTAIN HOME AFBIDE-4",867]
[{"$nulls":16},"MOUNTAIN HOME AFBIDE-5",741,"MOUNTAIN HOME AFBIDE-5",960]
[{"$nulls":16},"MOUNTAIN HOME AFBIDE-6",810,"MOUNTAIN HOME AFBIDE-6",1080]
[{"$nulls":16},"MOUNTAIN HOME AFBIDE-7",894,"MOUNTAIN HOME AFBIDE-7",1191]
[{"$nulls":16},"MOUNTAIN HOME AFBIDE-8",984,"MOUNTAIN HOME AFBIDE-8",1314]
[{"$nulls":16},"MOUNTAIN HOME AFBIDE-9",1065,"MOUNTAIN HOME AFBIDE-9",1419]
[{"$nulls":16},"MOUNTAIN HOME AFBIDW-1",831,"MOUNTAIN HOME AFBIDW-1",1083]
[{"$nulls":16},"MOUNTAIN HOME AFBIDW-2",984,"MOUNTAIN HOME AFBIDW-2",1242]
[{"$nulls":16},"MOUNTAIN HOME AFBIDW-3",1044,"MOUNTAIN HOME AFBIDW-3",1389]
[{"$nulls":16},"MOUNTAIN HOME AFBIDW-4",1107,"MOUNTAIN HOME AFBIDW-4",1428]
[{"$nulls":16},"MOUNTAIN HOME AFBIDW-5",1221,"MOUNTAIN HOME AFBIDW-5",1473]
[{"$nulls":16},"MOUNTAIN HOME AFBIDO-1E",960,"MOUNTAIN HOME AFBIDO-1E",1215]
[{"$nulls":16},"MOUNTAIN HOME AFBIDO-2E",1026,"MOUNTAIN HOME AFBIDO-2E",1368]
[{"$nulls":16},"MOUNTAIN HOME AFBIDO-3E",1080,"MOUNTAIN HOME AFBIDO-3E",1437]
[{"$nulls":16},"MOUNTAIN HOME AFBIDO-1",774,"MOUNTAIN HOME AFBIDO-1",972]
[{"$nulls":16},"MOUNTAIN HOME AFBIDO-2",927,"MOUNTAIN HOME AFBIDO-2",1077]
[{"$nulls":16},"MOUNTAIN HOME AFBIDO-3",1038,"MOUNTAIN HOME AFBIDO-3",1383]
[{"$nulls":16},"MOUNTAIN HOME AFBIDO-4",1203,"MOUNTAIN HOME AFBIDO-4",1491]
[{"$nulls":16},"MOUNTAIN HOME AFBIDO-5",1275,"MOUNTAIN HOME AFBIDO-5",1566]
[{"$nulls":16},"MOUNTAIN HOME AFBIDO-6",1389,"MOUNTAIN HOME AFBIDO-6",1581]
[{"$nulls":16},"MOUNTAIN HOME AFBIDO-7",1419,"MOUNTAIN HOME AFBIDO-7",1596]
[{"$nulls":16},"MOSCOWIDE-1",606,"MOSCOWIDE-1",807]
[{"$nulls":16},"MOSCOWIDE-2",606,"MOSCOWIDE-2",807]
[{"$nulls":16},"MOSCOWIDE-3",606,"MOSCOWIDE-3",807]
[{"$nulls":16},"MOSCOWIDE-4",606,"MOSCOWIDE-4",807]
[{"$nulls":16},"MOSCOWIDE-5",684,"MOSCOWIDE-5",912]
[{"$nulls":16},"MOSCOWIDE-6",978,"MOSCOWIDE-6",1305]
[{"$nulls":16},"MOSCOWIDE-7",1014,"MOSCOWIDE-7",1353]
[{"$nulls":16},"MOSCOWIDE-8",1056,"MOSCOWIDE-8",1407]
[{"$nulls":16},"MOSCOWIDE-9",1122,"MOSCOWIDE-9",1497]
[{"$nulls":16},"MOSCOWIDW-1",978,"MOSCOWIDW-1",1305]
[{"$nulls":16},"MOSCOWIDW-2",1032,"MOSCOWIDW-2",1374]
[{"$nulls":16},"MOSCOWIDW-3",1122,"MOSCOWIDW-3",1440]
[{"$nulls":16},"MOSCOWIDW-4",1317,"MOSCOWIDW-4",1518]
[{"$nulls":16},"MOSCOWIDW-5",1365,"MOSCOWIDW-5",1611]
[{"$nulls":16},"MOSCOWIDO-1E",1023,"MOSCOWIDO-1E",1365]
[{"$nulls":16},"MOSCOWIDO-2E",1083,"MOSCOWIDO-2E",1431]
[{"$nulls":16},"MOSCOWIDO-3E",1305,"MOSCOWIDO-3E",1533]
[{"$nulls":16},"MOSCOWIDO-1",717,"MOSCOWIDO-1",954]
[{"$nulls":16},"MOSCOWIDO-2",972,"MOSCOWIDO-2",1296]
[{"$nulls":16},"MOSCOWIDO-3",1164,"MOSCOWIDO-3",1437]
[{"$nulls":16},"MOSCOWIDO-4",1359,"MOSCOWIDO-4",1647]
[{"$nulls":16},"MOSCOWIDO-5",1389,"MOSCOWIDO-5",1797]
[{"$nulls":16},"MOSCOWIDO-6",1440,"MOSCOWIDO-6",1815]
[{"$nulls":16},"MOSCOWIDO-7",1470,"MOSCOWIDO-7",1833]
[{"$nulls":16},"CHAMPAIGN/URBANAILE-1",870,"CHAMPAIGN/URBANAILE-1",1107]
[{"$nulls":16},"CHAMPAIGN/URBANAILE-2",870,"CHAMPAIGN/URBANAILE-2",1107]
[{"$nulls":16},"CHAMPAIGN/URBANAILE-3",870,"CHAMPAIGN/URBANAILE-3",1107]
[{"$nulls":16},"CHAMPAIGN/URBANAILE-4",870,"CHAMPAIGN/URBANAILE-4",1107]
[{"$nulls":16},"CHAMPAIGN/URBANAILE-5",975,"CHAMPAIGN/URBANAILE-5",1188]
[{"$nulls":16},"CHAMPAIGN/URBANAILE-6",1038,"CHAMPAIGN/URBANAILE-6",1380]
[{"$nulls":16},"CHAMPAIGN/URBANAILE-7",1113,"CHAMPAIGN/URBANAILE-7",1407]
[{"$nulls":16},"CHAMPAIGN/URBANAILE-8",1227,"CHAMPAIGN/URBANAILE-8",1434]
[{"$nulls":16},"CHAMPAIGN/URBANAILE-9",1287,"CHAMPAIGN/URBANAILE-9",1521]
[{"$nulls":16},"CHAMPAIGN/URBANAILW-1",1077,"CHAMPAIGN/URBANAILW-1",1380]
[{"$nulls":16},"CHAMPAIGN/URBANAILW-2",1224,"CHAMPAIGN/URBANAILW-2",1419]
[{"$nulls":16},"CHAMPAIGN/URBANAILW-3",1293,"CHAMPAIGN/URBANAILW-3",1452]
[{"$nulls":16},"CHAMPAIGN/URBANAILW-4",1386,"CHAMPAIGN/URBANAILW-4",1545]
[{"$nulls":16},"CHAMPAIGN/URBANAILW-5",1413,"CHAMPAIGN/URBANAILW-5",1656]
[{"$nulls":16},"CHAMPAIGN/URBANAILO-1E",1188,"CHAMPAIGN/URBANAILO-1E",1413]
[{"$nulls":16},"CHAMPAIGN/URBANAILO-2E",1272,"CHAMPAIGN/URBANAILO-2E",1449]
[{"$nulls":16},"CHAMPAIGN/URBANAILO-3E",1380,"CHAMPAIGN/URBANAILO-3E",1563]
[{"$nulls":16},"CHAMPAIGN/URBANAILO-1",1026,"CHAMPAIGN/URBANAILO-1",1209]
[{"$nulls":16},"CHAMPAIGN/URBANAILO-2",1161,"CHAMPAIGN/URBANAILO-2",1377]
[{"$nulls":16},"CHAMPAIGN/URBANAILO-3",1311,"CHAMPAIGN/URBANAILO-3",1452]
[{"$nulls":16},"CHAMPAIGN/URBANAILO-4",1410,"CHAMPAIGN/URBANAILO-4",1698]
[{"$nulls":16},"CHAMPAIGN/URBANAILO-5",1425,"CHAMPAIGN/URBANAILO-5",1875]
[{"$nulls":16},"CHAMPAIGN/URBANAILO-6",1452,"CHAMPAIGN/URBANAILO-6",1893]
[{"$nulls":16},"CHAMPAIGN/URBANAILO-7",1482,"CHAMPAIGN/URBANAILO-7",1914]
[{"$nulls":16},"ROCK ISLANDILE-1",687,"ROCK ISLANDILE-1",882]
[{"$nulls":16},"ROCK ISLANDILE-2",687,"ROCK ISLANDILE-2",882]
[{"$nulls":16},"ROCK ISLANDILE-3",687,"ROCK ISLANDILE-3",882]
[{"$nulls":16},"ROCK ISLANDILE-4",687,"ROCK ISLANDILE-4",882]
[{"$nulls":16},"ROCK ISLANDILE-5",780,"ROCK ISLANDILE-5",939]
[{"$nulls":16},"ROCK ISLANDILE-6",948,"ROCK ISLANDILE-6",1263]
[{"$nulls":16},"ROCK ISLANDILE-7",981,"ROCK ISLANDILE-7",1311]
[{"$nulls":16},"ROCK ISLANDILE-8",1020,"ROCK ISLANDILE-8",1362]
[{"$nulls":16},"ROCK ISLANDILE-9",1104,"ROCK ISLANDILE-9",1443]
[{"$nulls":16},"ROCK ISLANDILW-1",948,"ROCK ISLANDILW-1",1263]
[{"$nulls":16},"ROCK ISLANDILW-2",999,"ROCK ISLANDILW-2",1332]
[{"$nulls":16},"ROCK ISLANDILW-3",1113,"ROCK ISLANDILW-3",1395]
[{"$nulls":16},"ROCK ISLANDILW-4",1275,"ROCK ISLANDILW-4",1461]
[{"$nulls":16},"ROCK ISLANDILW-5",1320,"ROCK ISLANDILW-5",1539]
[{"$nulls":16},"ROCK ISLANDILO-1E",990,"ROCK ISLANDILO-1E",1320]
[{"$nulls":16},"ROCK ISLANDILO-2E",1080,"ROCK ISLANDILO-2E",1386]
[{"$nulls":16},"ROCK ISLANDILO-3E",1263,"ROCK ISLANDILO-3E",1473]
[{"$nulls":16},"ROCK ISLANDILO-1",825,"ROCK ISLANDILO-1",975]
[{"$nulls":16},"ROCK ISLANDILO-2",942,"ROCK ISLANDILO-2",1257]
[{"$nulls":16},"ROCK ISLANDILO-3",1146,"ROCK ISLANDILO-3",1392]
[{"$nulls":16},"ROCK ISLANDILO-4",1314,"ROCK ISLANDILO-4",1566]
[{"$nulls":16},"ROCK ISLANDILO-5",1344,"ROCK ISLANDILO-5",1692]
[{"$nulls":16},"ROCK ISLANDILO-6",1395,"ROCK ISLANDILO-6",1710]
[{"$nulls":16},"ROCK ISLANDILO-7",1422,"ROCK ISLANDILO-7",1728]
[{"$nulls":16},"PEORIAILE-1",756,"PEORIAILE-1",1002]
[{"$nulls":16},"PEORIAILE-2",756,"PEORIAILE-2",1002]
[{"$nulls":16},"PEORIAILE-3",756,"PEORIAILE-3",1002]
[{"$nulls":16},"PEORIAILE-4",756,"PEORIAILE-4",1002]
[{"$nulls":16},"PEORIAILE-5",852,"PEORIAILE-5",1104]
[{"$nulls":16},"PEORIAILE-6",972,"PEORIAILE-6",1296]
[{"$nulls":16},"PEORIAILE-7",1008,"PEORIAILE-7",1308]
[{"$nulls":16},"PEORIAILE-8",1143,"PEORIAILE-8",1317]
[{"$nulls":16},"PEORIAILE-9",1203,"PEORIAILE-9",1368]
[{"$nulls":16},"PEORIAILW-1",972,"PEORIAILW-1",1296]
[{"$nulls":16},"PEORIAILW-2",1140,"PEORIAILW-2",1311]
[{"$nulls":16},"PEORIAILW-3",1209,"PEORIAILW-3",1323]
[{"$nulls":16},"PEORIAILW-4",1299,"PEORIAILW-4",1383]
[{"$nulls":16},"PEORIAILW-5",1308,"PEORIAILW-5",1452]
[{"$nulls":16},"PEORIAILO-1E",1104,"PEORIAILO-1E",1308]
[{"$nulls":16},"PEORIAILO-2E",1188,"PEORIAILO-2E",1323]
[{"$nulls":16},"PEORIAILO-3E",1296,"PEORIAILO-3E",1392]
[{"$nulls":16},"PEORIAILO-1",900,"PEORIAILO-1",1125]
[{"$nulls":16},"PEORIAILO-2",1068,"PEORIAILO-2",1293]
[{"$nulls":16},"PEORIAILO-3",1227,"PEORIAILO-3",1323]
[{"$nulls":16},"PEORIAILO-4",1308,"PEORIAILO-4",1479]
[{"$nulls":16},"PEORIAILO-5",1314,"PEORIAILO-5",1590]
[{"$nulls":16},"PEORIAILO-6",1323,"PEORIAILO-6",1605]
[{"$nulls":16},"PEORIAILO-7",1350,"PEORIAILO-7",1623]
[{"$nulls":16},"GREAT LAKES NAVTRACENILE-1",864,"GREAT LAKES NAVTRACENILE-1",1152]
[{"$nulls":16},"GREAT LAKES NAVTRACENILE-2",864,"GREAT LAKES NAVTRACENILE-2",1152]
[{"$nulls":16},"GREAT LAKES NAVTRACENILE-3",864,"GREAT LAKES NAVTRACENILE-3",1152]
[{"$nulls":16},"GREAT LAKES NAVTRACENILE-4",864,"GREAT LAKES NAVTRACENILE-4",1152]
[{"$nulls":16},"GREAT LAKES NAVTRACENILE-5",966,"GREAT LAKES NAVTRACENILE-5",1281]
[{"$nulls":16},"GREAT LAKES NAVTRACENILE-6",1134,"GREAT LAKES NAVTRACENILE-6",1509]
[{"$nulls":16},"GREAT LAKES NAVTRACENILE-7",1167,"GREAT LAKES NAVTRACENILE-7",1557]
[{"$nulls":16},"GREAT LAKES NAVTRACENILE-8",1329,"GREAT LAKES NAVTRACENILE-8",1605]
[{"$nulls":16},"GREAT LAKES NAVTRACENILE-9",1398,"GREAT LAKES NAVTRACENILE-9",1716]
[{"$nulls":16},"GREAT LAKES NAVTRACENILW-1",1134,"GREAT LAKES NAVTRACENILW-1",1512]
[{"$nulls":16},"GREAT LAKES NAVTRACENILW-2",1326,"GREAT LAKES NAVTRACENILW-2",1575]
[{"$nulls":16},"GREAT LAKES NAVTRACENILW-3",1404,"GREAT LAKES NAVTRACENILW-3",1638]
[{"$nulls":16},"GREAT LAKES NAVTRACENILW-4",1521,"GREAT LAKES NAVTRACENILW-4",1746]
[{"$nulls":16},"GREAT LAKES NAVTRACENILW-5",1566,"GREAT LAKES NAVTRACENILW-5",1875]
[{"$nulls":16},"GREAT LAKES NAVTRACENILO-1E",1281,"GREAT LAKES NAVTRACENILO-1E",1566]
[{"$nulls":16},"GREAT LAKES NAVTRACENILO-2E",1383,"GREAT LAKES NAVTRACENILO-2E",1629]
[{"$nulls":16},"GREAT LAKES NAVTRACENILO-3E",1509,"GREAT LAKES NAVTRACENILO-3E",1767]
[{"$nulls":16},"GREAT LAKES NAVTRACENILO-1",1023,"GREAT LAKES NAVTRACENILO-1",1308]
[{"$nulls":16},"GREAT LAKES NAVTRACENILO-2",1239,"GREAT LAKES NAVTRACENILO-2",1506]
[{"$nulls":16},"GREAT LAKES NAVTRACENILO-3",1428,"GREAT LAKES NAVTRACENILO-3",1635]
[{"$nulls":16},"GREAT LAKES NAVTRACENILO-4",1560,"GREAT LAKES NAVTRACENILO-4",1926]
[{"$nulls":16},"GREAT LAKES NAVTRACENILO-5",1602,"GREAT LAKES NAVTRACENILO-5",2133]
[{"$nulls":16},"GREAT LAKES NAVTRACENILO-6",1638,"GREAT LAKES NAVTRACENILO-6",2154]
[{"$nulls":16},"GREAT LAKES NAVTRACENILO-7",1671,"GREAT LAKES NAVTRACENILO-7",2178]
[{"$nulls":16},"SCOTT AFBILE-1",792,"SCOTT AFBILE-1",1056]
[{"$nulls":16},"SCOTT AFBILE-2",792,"SCOTT AFBILE-2",1056]
[{"$nulls":16},"SCOTT AFBILE-3",792,"SCOTT AFBILE-3",1056]
[{"$nulls":16},"SCOTT AFBILE-4",792,"SCOTT AFBILE-4",1056]
[{"$nulls":16},"SCOTT AFBILE-5",912,"SCOTT AFBILE-5",1131]
[{"$nulls":16},"SCOTT AFBILE-6",1026,"SCOTT AFBILE-6",1368]
[{"$nulls":16},"SCOTT AFBILE-7",1086,"SCOTT AFBILE-7",1449]
[{"$nulls":16},"SCOTT AFBILE-8",1179,"SCOTT AFBILE-8",1539]
[{"$nulls":16},"SCOTT AFBILE-9",1251,"SCOTT AFBILE-9",1653]
[{"$nulls":16},"SCOTT AFBILW-1",1026,"SCOTT AFBILW-1",1368]
[{"$nulls":16},"SCOTT AFBILW-2",1176,"SCOTT AFBILW-2",1485]
[{"$nulls":16},"SCOTT AFBILW-3",1257,"SCOTT AFBILW-3",1596]
[{"$nulls":16},"SCOTT AFBILW-4",1389,"SCOTT AFBILW-4",1677]
[{"$nulls":16},"SCOTT AFBILW-5",1470,"SCOTT AFBILW-5",1773]
[{"$nulls":16},"SCOTT AFBILO-1E",1131,"SCOTT AFBILO-1E",1467]
[{"$nulls":16},"SCOTT AFBILO-2E",1236,"SCOTT AFBILO-2E",1578]
[{"$nulls":16},"SCOTT AFBILO-3E",1368,"SCOTT AFBILO-3E",1692]
[{"$nulls":16},"SCOTT AFBILO-1",978,"SCOTT AFBILO-1",1158]
[{"$nulls":16},"SCOTT AFBILO-2",1104,"SCOTT AFBILO-2",1362]
[{"$nulls":16},"SCOTT AFBILO-3",1281,"SCOTT AFBILO-3",1590]
[{"$nulls":16},"SCOTT AFBILO-4",1458,"SCOTT AFBILO-4",1809]
[{"$nulls":16},"SCOTT AFBILO-5",1512,"SCOTT AFBILO-5",1965]
[{"$nulls":16},"SCOTT AFBILO-6",1596,"SCOTT AFBILO-6",1986]
[{"$nulls":16},"SCOTT AFBILO-7",1626,"SCOTT AFBILO-7",2004]
[{"$nulls":16},"CHICAGOILE-1",1209,"CHICAGOILE-1",1608]
[{"$nulls":16},"CHICAGOILE-2",1209,"CHICAGOILE-2",1608]
[{"$nulls":16},"CHICAGOILE-3",1209,"CHICAGOILE-3",1608]
[{"$nulls":16},"CHICAGOILE-4",1209,"CHICAGOILE-4",1608]
[{"$nulls":16},"CHICAGOILE-5",1419,"CHICAGOILE-5",1689]
[{"$nulls":16},"CHICAGOILE-6",1536,"CHICAGOILE-6",1974]
[{"$nulls":16},"CHICAGOILE-7",1611,"CHICAGOILE-7",1986]
[{"$nulls":16},"CHICAGOILE-8",1746,"CHICAGOILE-8",2001]
[{"$nulls":16},"CHICAGOILE-9",1833,"CHICAGOILE-9",2100]
[{"$nulls":16},"CHICAGOILW-1",1575,"CHICAGOILW-1",1974]
[{"$nulls":16},"CHICAGOILW-2",1743,"CHICAGOILW-2",1992]
[{"$nulls":16},"CHICAGOILW-3",1842,"CHICAGOILW-3",2013]
[{"$nulls":16},"CHICAGOILW-4",1977,"CHICAGOILW-4",2133]
[{"$nulls":16},"CHICAGOILW-5",1992,"CHICAGOILW-5",2277]
[{"$nulls":16},"CHICAGOILO-1E",1689,"CHICAGOILO-1E",1989]
[{"$nulls":16},"CHICAGOILO-2E",1815,"CHICAGOILO-2E",2010]
[{"$nulls":16},"CHICAGOILO-3E",1974,"CHICAGOILO-3E",2157]
[{"$nulls":16},"CHICAGOILO-1",1524,"CHICAGOILO-1",1719]
[{"$nulls":16},"CHICAGOILO-2",1662,"CHICAGOILO-2",1968]
[{"$nulls":16},"CHICAGOILO-3",1872,"CHICAGOILO-3",2010]
[{"$nulls":16},"CHICAGOILO-4",1989,"CHICAGOILO-4",2334]
[{"$nulls":16},"CHICAGOILO-5",1998,"CHICAGOILO-5",2568]
[{"$nulls":16},"CHICAGOILO-6",2013,"CHICAGOILO-6",2592]
[{"$nulls":16},"CHICAGOILO-7",2052,"CHICAGOILO-7",2619]
[{"$nulls":16},"SPRINGFIELD/DECATURILE-1",789,"SPRINGFIELD/DECATURILE-1",927]
[{"$nulls":16},"SPRINGFIELD/DECATURILE-2",789,"SPRINGFIELD/DECATURILE-2",927]
[{"$nulls":16},"SPRINGFIELD/DECATURILE-3",789,"SPRINGFIELD/DECATURILE-3",927]
[{"$nulls":16},"SPRINGFIELD/DECATURILE-4",789,"SPRINGFIELD/DECATURILE-4",927]
[{"$nulls":16},"SPRINGFIELD/DECATURILE-5",849,"SPRINGFIELD/DECATURILE-5",972]
[{"$nulls":16},"SPRINGFIELD/DECATURILE-6",894,"SPRINGFIELD/DECATURILE-6",1191]
[{"$nulls":16},"SPRINGFIELD/DECATURILE-7",927,"SPRINGFIELD/DECATURILE-7",1200]
[{"$nulls":16},"SPRINGFIELD/DECATURILE-8",1017,"SPRINGFIELD/DECATURILE-8",1209]
[{"$nulls":16},"SPRINGFIELD/DECATURILE-9",1083,"SPRINGFIELD/DECATURILE-9",1272]
[{"$nulls":16},"SPRINGFIELD/DECATURILW-1",909,"SPRINGFIELD/DECATURILW-1",1191]
[{"$nulls":16},"SPRINGFIELD/DECATURILW-2",1014,"SPRINGFIELD/DECATURILW-2",1203]
[{"$nulls":16},"SPRINGFIELD/DECATURILW-3",1089,"SPRINGFIELD/DECATURILW-3",1215]
[{"$nulls":16},"SPRINGFIELD/DECATURILW-4",1191,"SPRINGFIELD/DECATURILW-4",1290]
[{"$nulls":16},"SPRINGFIELD/DECATURILW-5",1203,"SPRINGFIELD/DECATURILW-5",1380]
[{"$nulls":16},"SPRINGFIELD/DECATURILO-1E",972,"SPRINGFIELD/DECATURILO-1E",1200]
[{"$nulls":16},"SPRINGFIELD/DECATURILO-2E",1068,"SPRINGFIELD/DECATURILO-2E",1215]
[{"$nulls":16},"SPRINGFIELD/DECATURILO-3E",1191,"SPRINGFIELD/DECATURILO-3E",1305]
[{"$nulls":16},"SPRINGFIELD/DECATURILO-1",879,"SPRINGFIELD/DECATURILO-1",996]
[{"$nulls":16},"SPRINGFIELD/DECATURILO-2",957,"SPRINGFIELD/DECATURILO-2",1185]
[{"$nulls":16},"SPRINGFIELD/DECATURILO-3",1113,"SPRINGFIELD/DECATURILO-3",1215]
[{"$nulls":16},"SPRINGFIELD/DECATURILO-4",1200,"SPRINGFIELD/DECATURILO-4",1413]
[{"$nulls":16},"SPRINGFIELD/DECATURILO-5",1206,"SPRINGFIELD/DECATURILO-5",1557]
[{"$nulls":16},"SPRINGFIELD/DECATURILO-6",1215,"SPRINGFIELD/DECATURILO-6",1572]
[{"$nulls":16},"SPRINGFIELD/DECATURILO-7",1239,"SPRINGFIELD/DECATURILO-7",1587]
[{"$nulls":16},"JOLIET ARMY DEPOTILE-1",816,"JOLIET ARMY DEPOTILE-1",1086]
[{"$nulls":16},"JOLIET ARMY DEPOTILE-2",816,"JOLIET ARMY DEPOTILE-2",1086]
[{"$nulls":16},"JOLIET ARMY DEPOTILE-3",816,"JOLIET ARMY DEPOTILE-3",1086]
[{"$nulls":16},"JOLIET ARMY DEPOTILE-4",816,"JOLIET ARMY DEPOTILE-4",1086]
[{"$nulls":16},"JOLIET ARMY DEPOTILE-5",957,"JOLIET ARMY DEPOTILE-5",1275]
[{"$nulls":16},"JOLIET ARMY DEPOTILE-6",1224,"JOLIET ARMY DEPOTILE-6",1629]
[{"$nulls":16},"JOLIET ARMY DEPOTILE-7",1263,"JOLIET ARMY DEPOTILE-7",1683]
[{"$nulls":16},"JOLIET ARMY DEPOTILE-8",1347,"JOLIET ARMY DEPOTILE-8",1740]
[{"$nulls":16},"JOLIET ARMY DEPOTILE-9",1458,"JOLIET ARMY DEPOTILE-9",1854]
[{"$nulls":16},"JOLIET ARMY DEPOTILW-1",1224,"JOLIET ARMY DEPOTILW-1",1632]
[{"$nulls":16},"JOLIET ARMY DEPOTILW-2",1344,"JOLIET ARMY DEPOTILW-2",1704]
[{"$nulls":16},"JOLIET ARMY DEPOTILW-3",1467,"JOLIET ARMY DEPOTILW-3",1776]
[{"$nulls":16},"JOLIET ARMY DEPOTILW-4",1644,"JOLIET ARMY DEPOTILW-4",1884]
[{"$nulls":16},"JOLIET ARMY DEPOTILW-5",1695,"JOLIET ARMY DEPOTILW-5",2013]
[{"$nulls":16},"JOLIET ARMY DEPOTILO-1E",1275,"JOLIET ARMY DEPOTILO-1E",1695]
[{"$nulls":16},"JOLIET ARMY DEPOTILO-2E",1431,"JOLIET ARMY DEPOTILO-2E",1764]
[{"$nulls":16},"JOLIET ARMY DEPOTILO-3E",1629,"JOLIET ARMY DEPOTILO-3E",1905]
[{"$nulls":16},"JOLIET ARMY DEPOTILO-1",987,"JOLIET ARMY DEPOTILO-1",1314]
[{"$nulls":16},"JOLIET ARMY DEPOTILO-2",1218,"JOLIET ARMY DEPOTILO-2",1623]
[{"$nulls":16},"JOLIET ARMY DEPOTILO-3",1503,"JOLIET ARMY DEPOTILO-3",1773]
[{"$nulls":16},"JOLIET ARMY DEPOTILO-4",1689,"JOLIET ARMY DEPOTILO-4",2064]
[{"$nulls":16},"JOLIET ARMY DEPOTILO-5",1722,"JOLIET ARMY DEPOTILO-5",2271]
[{"$nulls":16},"JOLIET ARMY DEPOTILO-6",1776,"JOLIET ARMY DEPOTILO-6",2295]
[{"$nulls":16},"JOLIET ARMY DEPOTILO-7",1812,"JOLIET ARMY DEPOTILO-7",2316]
[{"$nulls":16},"ROCKFORDILE-1",705,"ROCKFORDILE-1",942]
[{"$nulls":16},"ROCKFORDILE-2",705,"ROCKFORDILE-2",942]
[{"$nulls":16},"ROCKFORDILE-3",705,"ROCKFORDILE-3",942]
[{"$nulls":16},"ROCKFORDILE-4",705,"ROCKFORDILE-4",942]
[{"$nulls":16},"ROCKFORDILE-5",792,"ROCKFORDILE-5",1056]
[{"$nulls":16},"ROCKFORDILE-6",894,"ROCKFORDILE-6",1191]
[{"$nulls":16},"ROCKFORDILE-7",948,"ROCKFORDILE-7",1203]
[{"$nulls":16},"ROCKFORDILE-8",1083,"ROCKFORDILE-8",1218]
[{"$nulls":16},"ROCKFORDILE-9",1125,"ROCKFORDILE-9",1263]
[{"$nulls":16},"ROCKFORDILW-1",897,"ROCKFORDILW-1",1191]
[{"$nulls":16},"ROCKFORDILW-2",1083,"ROCKFORDILW-2",1209]
[{"$nulls":16},"ROCKFORDILW-3",1128,"ROCKFORDILW-3",1224]
[{"$nulls":16},"ROCKFORDILW-4",1194,"ROCKFORDILW-4",1278]
[{"$nulls":16},"ROCKFORDILW-5",1206,"ROCKFORDILW-5",1344]
[{"$nulls":16},"ROCKFORDILO-1E",1056,"ROCKFORDILO-1E",1206]
[{"$nulls":16},"ROCKFORDILO-2E",1116,"ROCKFORDILO-2E",1224]
[{"$nulls":16},"ROCKFORDILO-3E",1191,"ROCKFORDILO-3E",1290]
[{"$nulls":16},"ROCKFORDILO-1",825,"ROCKFORDILO-1",1071]
[{"$nulls":16},"ROCKFORDILO-2",1017,"ROCKFORDILO-2",1188]
[{"$nulls":16},"ROCKFORDILO-3",1143,"ROCKFORDILO-3",1224]
[{"$nulls":16},"ROCKFORDILO-4",1206,"ROCKFORDILO-4",1368]
[{"$nulls":16},"ROCKFORDILO-5",1212,"ROCKFORDILO-5",1470]
[{"$nulls":16},"ROCKFORDILO-6",1224,"ROCKFORDILO-6",1485]
[{"$nulls":16},"ROCKFORDILO-7",1251,"ROCKFORDILO-7",1500]
[{"$nulls":16},"INDIANAPOLISINE-1",810,"INDIANAPOLISINE-1",1062]
[{"$nulls":16},"INDIANAPOLISINE-2",810,"INDIANAPOLISINE-2",1062]
[{"$nulls":16},"INDIANAPOLISINE-3",810,"INDIANAPOLISINE-3",1062]
[{"$nulls":16},"INDIANAPOLISINE-4",810,"INDIANAPOLISINE-4",1062]
[{"$nulls":16},"INDIANAPOLISINE-5",933,"INDIANAPOLISINE-5",1131]
[{"$nulls":16},"INDIANAPOLISINE-6",1002,"INDIANAPOLISINE-6",1230]
[{"$nulls":16},"INDIANAPOLISINE-7",1065,"INDIANAPOLISINE-7",1272]
[{"$nulls":16},"INDIANAPOLISINE-8",1149,"INDIANAPOLISINE-8",1317]
[{"$nulls":16},"INDIANAPOLISINE-9",1182,"INDIANAPOLISINE-9",1413]
[{"$nulls":16},"INDIANAPOLISINW-1",1035,"INDIANAPOLISINW-1",1233]
[{"$nulls":16},"INDIANAPOLISINW-2",1149,"INDIANAPOLISINW-2",1290]
[{"$nulls":16},"INDIANAPOLISINW-3",1185,"INDIANAPOLISINW-3",1344]
[{"$nulls":16},"INDIANAPOLISINW-4",1242,"INDIANAPOLISINW-4",1440]
[{"$nulls":16},"INDIANAPOLISINW-5",1281,"INDIANAPOLISINW-5",1554]
[{"$nulls":16},"INDIANAPOLISINO-1E",1131,"INDIANAPOLISINO-1E",1281]
[{"$nulls":16},"INDIANAPOLISINO-2E",1173,"INDIANAPOLISINO-2E",1335]
[{"$nulls":16},"INDIANAPOLISINO-3E",1230,"INDIANAPOLISINO-3E",1458]
[{"$nulls":16},"INDIANAPOLISINO-1",993,"INDIANAPOLISINO-1",1140]
[{"$nulls":16},"INDIANAPOLISINO-2",1107,"INDIANAPOLISINO-2",1230]
[{"$nulls":16},"INDIANAPOLISINO-3",1194,"INDIANAPOLISINO-3",1341]
[{"$nulls":16},"INDIANAPOLISINO-4",1275,"INDIANAPOLISINO-4",1599]
[{"$nulls":16},"INDIANAPOLISINO-5",1338,"INDIANAPOLISINO-5",1782]
[{"$nulls":16},"INDIANAPOLISINO-6",1350,"INDIANAPOLISINO-6",1800]
[{"$nulls":16},"INDIANAPOLISINO-7",1371,"INDIANAPOLISINO-7",1818]
[{"$nulls":16},"LAFAYETTEINE-1",813,"LAFAYETTEINE-1",1026]
[{"$nulls":16},"LAFAYETTEINE-2",813,"LAFAYETTEINE-2",1026]
[{"$nulls":16},"LAFAYETTEINE-3",813,"LAFAYETTEINE-3",1026]
[{"$nulls":16},"LAFAYETTEINE-4",813,"LAFAYETTEINE-4",1026]
[{"$nulls":16},"LAFAYETTEINE-5",915,"LAFAYETTEINE-5",1089]
[{"$nulls":16},"LAFAYETTEINE-6",975,"LAFAYETTEINE-6",1161]
[{"$nulls":16},"LAFAYETTEINE-7",1032,"LAFAYETTEINE-7",1188]
[{"$nulls":16},"LAFAYETTEINE-8",1104,"LAFAYETTEINE-8",1218]
[{"$nulls":16},"LAFAYETTEINE-9",1125,"LAFAYETTEINE-9",1260]
[{"$nulls":16},"LAFAYETTEINW-1",1005,"LAFAYETTEINW-1",1164]
[{"$nulls":16},"LAFAYETTEINW-2",1101,"LAFAYETTEINW-2",1200]
[{"$nulls":16},"LAFAYETTEINW-3",1128,"LAFAYETTEINW-3",1236]
[{"$nulls":16},"LAFAYETTEINW-4",1170,"LAFAYETTEINW-4",1269]
[{"$nulls":16},"LAFAYETTEINW-5",1194,"LAFAYETTEINW-5",1308]
[{"$nulls":16},"LAFAYETTEINO-1E",1089,"LAFAYETTEINO-1E",1194]
[{"$nulls":16},"LAFAYETTEINO-2E",1122,"LAFAYETTEINO-2E",1230]
[{"$nulls":16},"LAFAYETTEINO-3E",1161,"LAFAYETTEINO-3E",1275]
[{"$nulls":16},"LAFAYETTEINO-1",966,"LAFAYETTEINO-1",1095]
[{"$nulls":16},"LAFAYETTEINO-2",1068,"LAFAYETTEINO-2",1161]
[{"$nulls":16},"LAFAYETTEINO-3",1134,"LAFAYETTEINO-3",1233]
[{"$nulls":16},"LAFAYETTEINO-4",1191,"LAFAYETTEINO-4",1323]
[{"$nulls":16},"LAFAYETTEINO-5",1209,"LAFAYETTEINO-5",1386]
[{"$nulls":16},"LAFAYETTEINO-6",1236,"LAFAYETTEINO-6",1398]
[{"$nulls":16},"LAFAYETTEINO-7",1260,"LAFAYETTEINO-7",1413]
[{"$nulls":16},"FORT WAYNEINE-1",651,"FORT WAYNEINE-1",861]
[{"$nulls":16},"FORT WAYNEINE-2",651,"FORT WAYNEINE-2",861]
[{"$nulls":16},"FORT WAYNEINE-3",651,"FORT WAYNEINE-3",861]
[{"$nulls":16},"FORT WAYNEINE-4",651,"FORT WAYNEINE-4",861]
[{"$nulls":16},"FORT WAYNEINE-5",735,"FORT WAYNEINE-5",948]
[{"$nulls":16},"FORT WAYNEINE-6",822,"FORT WAYNEINE-6",1095]
[{"$nulls":16},"FORT WAYNEINE-7",867,"FORT WAYNEINE-7",1140]
[{"$nulls":16},"FORT WAYNEINE-8",978,"FORT WAYNEINE-8",1185]
[{"$nulls":16},"FORT WAYNEINE-9",1023,"FORT WAYNEINE-9",1293]
[{"$nulls":16},"FORT WAYNEINW-1",828,"FORT WAYNEINW-1",1095]
[{"$nulls":16},"FORT WAYNEINW-2",975,"FORT WAYNEINW-2",1158]
[{"$nulls":16},"FORT WAYNEINW-3",1026,"FORT WAYNEINW-3",1215]
[{"$nulls":16},"FORT WAYNEINW-4",1107,"FORT WAYNEINW-4",1320]
[{"$nulls":16},"FORT WAYNEINW-5",1149,"FORT WAYNEINW-5",1443]
[{"$nulls":16},"FORT WAYNEINO-1E",948,"FORT WAYNEINO-1E",1149]
[{"$nulls":16},"FORT WAYNEINO-2E",1014,"FORT WAYNEINO-2E",1209]
[{"$nulls":16},"FORT WAYNEINO-3E",1095,"FORT WAYNEINO-3E",1338]
[{"$nulls":16},"FORT WAYNEINO-1",774,"FORT WAYNEINO-1",963]
[{"$nulls":16},"FORT WAYNEINO-2",918,"FORT WAYNEINO-2",1092]
[{"$nulls":16},"FORT WAYNEINO-3",1041,"FORT WAYNEINO-3",1215]
[{"$nulls":16},"FORT WAYNEINO-4",1143,"FORT WAYNEINO-4",1491]
[{"$nulls":16},"FORT WAYNEINO-5",1266,"FORT WAYNEINO-5",1689]
[{"$nulls":16},"FORT WAYNEINO-6",1278,"FORT WAYNEINO-6",1704]
[{"$nulls":16},"FORT WAYNEINO-7",1290,"FORT WAYNEINO-7",1722]
[{"$nulls":16},"SOUTH BENDINE-1",726,"SOUTH BENDINE-1",969]
[{"$nulls":16},"SOUTH BENDINE-2",726,"SOUTH BENDINE-2",969]
[{"$nulls":16},"SOUTH BENDINE-3",726,"SOUTH BENDINE-3",969]
[{"$nulls":16},"SOUTH BENDINE-4",726,"SOUTH BENDINE-4",969]
[{"$nulls":16},"SOUTH BENDINE-5",810,"SOUTH BENDINE-5",1080]
[{"$nulls":16},"SOUTH BENDINE-6",927,"SOUTH BENDINE-6",1236]
[{"$nulls":16},"SOUTH BENDINE-7",975,"SOUTH BENDINE-7",1263]
[{"$nulls":16},"SOUTH BENDINE-8",1110,"SOUTH BENDINE-8",1290]
[{"$nulls":16},"SOUTH BENDINE-9",1161,"SOUTH BENDINE-9",1362]
[{"$nulls":16},"SOUTH BENDINW-1",927,"SOUTH BENDINW-1",1239]
[{"$nulls":16},"SOUTH BENDINW-2",1110,"SOUTH BENDINW-2",1275]
[{"$nulls":16},"SOUTH BENDINW-3",1164,"SOUTH BENDINW-3",1308]
[{"$nulls":16},"SOUTH BENDINW-4",1242,"SOUTH BENDINW-4",1380]
[{"$nulls":16},"SOUTH BENDINW-5",1269,"SOUTH BENDINW-5",1464]
[{"$nulls":16},"SOUTH BENDINO-1E",1080,"SOUTH BENDINO-1E",1269]
[{"$nulls":16},"SOUTH BENDINO-2E",1149,"SOUTH BENDINO-2E",1305]
[{"$nulls":16},"SOUTH BENDINO-3E",1236,"SOUTH BENDINO-3E",1395]
[{"$nulls":16},"SOUTH BENDINO-1",858,"SOUTH BENDINO-1",1098]
[{"$nulls":16},"SOUTH BENDINO-2",1041,"SOUTH BENDINO-2",1233]
[{"$nulls":16},"SOUTH BENDINO-3",1179,"SOUTH BENDINO-3",1308]
[{"$nulls":16},"SOUTH BENDINO-4",1266,"SOUTH BENDINO-4",1497]
[{"$nulls":16},"SOUTH BENDINO-5",1281,"SOUTH BENDINO-5",1635]
[{"$nulls":16},"SOUTH BENDINO-6",1308,"SOUTH BENDINO-6",1650]
[{"$nulls":16},"SOUTH BENDINO-7",1335,"SOUTH BENDINO-7",1668]
[{"$nulls":16},"EVANSVILLEINE-1",669,"EVANSVILLEINE-1",888]
[{"$nulls":16},"EVANSVILLEINE-2",669,"EVANSVILLEINE-2",888]
[{"$nulls":16},"EVANSVILLEINE-3",669,"EVANSVILLEINE-3",888]
[{"$nulls":16},"EVANSVILLEINE-4",669,"EVANSVILLEINE-4",888]
[{"$nulls":16},"EVANSVILLEINE-5",750,"EVANSVILLEINE-5",984]
[{"$nulls":16},"EVANSVILLEINE-6",828,"EVANSVILLEINE-6",1104]
[{"$nulls":16},"EVANSVILLEINE-7",891,"EVANSVILLEINE-7",1122]
[{"$nulls":16},"EVANSVILLEINE-8",1008,"EVANSVILLEINE-8",1140]
[{"$nulls":16},"EVANSVILLEINE-9",1044,"EVANSVILLEINE-9",1218]
[{"$nulls":16},"EVANSVILLEINW-1",849,"EVANSVILLEINW-1",1104]
[{"$nulls":16},"EVANSVILLEINW-2",1008,"EVANSVILLEINW-2",1128]
[{"$nulls":16},"EVANSVILLEINW-3",1050,"EVANSVILLEINW-3",1149]
[{"$nulls":16},"EVANSVILLEINW-4",1107,"EVANSVILLEINW-4",1242]
[{"$nulls":16},"EVANSVILLEINW-5",1125,"EVANSVILLEINW-5",1350]
[{"$nulls":16},"EVANSVILLEINO-1E",984,"EVANSVILLEINO-1E",1125]
[{"$nulls":16},"EVANSVILLEINO-2E",1038,"EVANSVILLEINO-2E",1146]
[{"$nulls":16},"EVANSVILLEINO-3E",1104,"EVANSVILLEINO-3E",1257]
[{"$nulls":16},"EVANSVILLEINO-1",789,"EVANSVILLEINO-1",996]
[{"$nulls":16},"EVANSVILLEINO-2",951,"EVANSVILLEINO-2",1101]
[{"$nulls":16},"EVANSVILLEINO-3",1062,"EVANSVILLEINO-3",1149]
[{"$nulls":16},"EVANSVILLEINO-4",1122,"EVANSVILLEINO-4",1392]
[{"$nulls":16},"EVANSVILLEINO-5",1176,"EVANSVILLEINO-5",1566]
[{"$nulls":16},"EVANSVILLEINO-6",1188,"EVANSVILLEINO-6",1584]
[{"$nulls":16},"EVANSVILLEINO-7",1200,"EVANSVILLEINO-7",1599]
[{"$nulls":16},"TERRE HAUTEINE-1",639,"TERRE HAUTEINE-1",852]
[{"$nulls":16},"TERRE HAUTEINE-2",639,"TERRE HAUTEINE-2",852]
[{"$nulls":16},"TERRE HAUTEINE-3",639,"TERRE HAUTEINE-3",852]
[{"$nulls":16},"TERRE HAUTEINE-4",639,"TERRE HAUTEINE-4",852]
[{"$nulls":16},"TERRE HAUTEINE-5",735,"TERRE HAUTEINE-5",915]
[{"$nulls":16},"TERRE HAUTEINE-6",813,"TERRE HAUTEINE-6",1086]
[{"$nulls":16},"TERRE HAUTEINE-7",855,"TERRE HAUTEINE-7",1122]
[{"$nulls":16},"TERRE HAUTEINE-8",948,"TERRE HAUTEINE-8",1161]
[{"$nulls":16},"TERRE HAUTEINE-9",1002,"TERRE HAUTEINE-9",1221]
[{"$nulls":16},"TERRE HAUTEINW-1",828,"TERRE HAUTEINW-1",1086]
[{"$nulls":16},"TERRE HAUTEINW-2",945,"TERRE HAUTEINW-2",1140]
[{"$nulls":16},"TERRE HAUTEINW-3",1005,"TERRE HAUTEINW-3",1188]
[{"$nulls":16},"TERRE HAUTEINW-4",1095,"TERRE HAUTEINW-4",1230]
[{"$nulls":16},"TERRE HAUTEINW-5",1131,"TERRE HAUTEINW-5",1284]
[{"$nulls":16},"TERRE HAUTEINO-1E",915,"TERRE HAUTEINO-1E",1131]
[{"$nulls":16},"TERRE HAUTEINO-2E",990,"TERRE HAUTEINO-2E",1182]
[{"$nulls":16},"TERRE HAUTEINO-3E",1086,"TERRE HAUTEINO-3E",1239]
[{"$nulls":16},"TERRE HAUTEINO-1",789,"TERRE HAUTEINO-1",933]
[{"$nulls":16},"TERRE HAUTEINO-2",894,"TERRE HAUTEINO-2",1083]
[{"$nulls":16},"TERRE HAUTEINO-3",1023,"TERRE HAUTEINO-3",1185]
[{"$nulls":16},"TERRE HAUTEINO-4",1125,"TERRE HAUTEINO-4",1302]
[{"$nulls":16},"TERRE HAUTEINO-5",1149,"TERRE HAUTEINO-5",1386]
[{"$nulls":16},"TERRE HAUTEINO-6",1188,"TERRE HAUTEINO-6",1398]
[{"$nulls":16},"TERRE HAUTEINO-7",1212,"TERRE HAUTEINO-7",1413]
[{"$nulls":16},"BLOOMINGTONINE-1",702,"BLOOMINGTONINE-1",894]
[{"$nulls":16},"BLOOMINGTONINE-2",702,"BLOOMINGTONINE-2",894]
[{"$nulls":16},"BLOOMINGTONINE-3",702,"BLOOMINGTONINE-3",894]
[{"$nulls":16},"BLOOMINGTONINE-4",702,"BLOOMINGTONINE-4",894]
[{"$nulls":16},"BLOOMINGTONINE-5",762,"BLOOMINGTONINE-5",999]
[{"$nulls":16},"BLOOMINGTONINE-6",864,"BLOOMINGTONINE-6",1149]
[{"$nulls":16},"BLOOMINGTONINE-7",939,"BLOOMINGTONINE-7",1251]
[{"$nulls":16},"BLOOMINGTONINE-8",1029,"BLOOMINGTONINE-8",1362]
[{"$nulls":16},"BLOOMINGTONINE-9",1104,"BLOOMINGTONINE-9",1470]
[{"$nulls":16},"BLOOMINGTONINW-1",864,"BLOOMINGTONINW-1",1152]
[{"$nulls":16},"BLOOMINGTONINW-2",1029,"BLOOMINGTONINW-2",1296]
[{"$nulls":16},"BLOOMINGTONINW-3",1080,"BLOOMINGTONINW-3",1431]
[{"$nulls":16},"BLOOMINGTONINW-4",1176,"BLOOMINGTONINW-4",1485]
[{"$nulls":16},"BLOOMINGTONINW-5",1275,"BLOOMINGTONINW-5",1548]
[{"$nulls":16},"BLOOMINGTONINO-1E",999,"BLOOMINGTONINO-1E",1275]
[{"$nulls":16},"BLOOMINGTONINO-2E",1065,"BLOOMINGTONINO-2E",1410]
[{"$nulls":16},"BLOOMINGTONINO-3E",1149,"BLOOMINGTONINO-3E",1494]
[{"$nulls":16},"BLOOMINGTONINO-1",789,"BLOOMINGTONINO-1",1017]
[{"$nulls":16},"BLOOMINGTONINO-2",963,"BLOOMINGTONINO-2",1146]
[{"$nulls":16},"BLOOMINGTONINO-3",1095,"BLOOMINGTONINO-3",1425]
[{"$nulls":16},"BLOOMINGTONINO-4",1263,"BLOOMINGTONINO-4",1572]
[{"$nulls":16},"BLOOMINGTONINO-5",1326,"BLOOMINGTONINO-5",1674]
[{"$nulls":16},"BLOOMINGTONINO-6",1431,"BLOOMINGTONINO-6",1692]
[{"$nulls":16},"BLOOMINGTONINO-7",1461,"BLOOMINGTONINO-7",1710]
[{"$nulls":16},"FORT RILEYKSE-1",768,"FORT RILEYKSE-1",1023]
[{"$nulls":16},"FORT RILEYKSE-2",768,"FORT RILEYKSE-2",1023]
[{"$nulls":16},"FORT RILEYKSE-3",768,"FORT RILEYKSE-3",1023]
[{"$nulls":16},"FORT RILEYKSE-4",768,"FORT RILEYKSE-4",1023]
[{"$nulls":16},"FORT RILEYKSE-5",861,"FORT RILEYKSE-5",1113]
[{"$nulls":16},"FORT RILEYKSE-6",1056,"FORT RILEYKSE-6",1410]
[{"$nulls":16},"FORT RILEYKSE-7",1062,"FORT RILEYKSE-7",1416]
[{"$nulls":16},"FORT RILEYKSE-8",1173,"FORT RILEYKSE-8",1425]
[{"$nulls":16},"FORT RILEYKSE-9",1263,"FORT RILEYKSE-9",1494]
[{"$nulls":16},"FORT RILEYKSW-1",1056,"FORT RILEYKSW-1",1410]
[{"$nulls":16},"FORT RILEYKSW-2",1170,"FORT RILEYKSW-2",1419]
[{"$nulls":16},"FORT RILEYKSW-3",1272,"FORT RILEYKSW-3",1431]
[{"$nulls":16},"FORT RILEYKSW-4",1410,"FORT RILEYKSW-4",1518]
[{"$nulls":16},"FORT RILEYKSW-5",1419,"FORT RILEYKSW-5",1620]
[{"$nulls":16},"FORT RILEYKSO-1E",1113,"FORT RILEYKSO-1E",1419]
[{"$nulls":16},"FORT RILEYKSO-2E",1242,"FORT RILEYKSO-2E",1428]
[{"$nulls":16},"FORT RILEYKSO-3E",1410,"FORT RILEYKSO-3E",1533]
[{"$nulls":16},"FORT RILEYKSO-1",930,"FORT RILEYKSO-1",1146]
[{"$nulls":16},"FORT RILEYKSO-2",1083,"FORT RILEYKSO-2",1404]
[{"$nulls":16},"FORT RILEYKSO-3",1302,"FORT RILEYKSO-3",1431]
[{"$nulls":16},"FORT RILEYKSO-4",1416,"FORT RILEYKSO-4",1659]
[{"$nulls":16},"FORT RILEYKSO-5",1422,"FORT RILEYKSO-5",1824]
[{"$nulls":16},"FORT RILEYKSO-6",1431,"FORT RILEYKSO-6",1842]
[{"$nulls":16},"FORT RILEYKSO-7",1458,"FORT RILEYKSO-7",1860]
[{"$nulls":16},"WICHITA/MCCONNELL AFBKSE-1",669,"WICHITA/MCCONNELL AFBKSE-1",891]
[{"$nulls":16},"WICHITA/MCCONNELL AFBKSE-2",669,"WICHITA/MCCONNELL AFBKSE-2",891]
[{"$nulls":16},"WICHITA/MCCONNELL AFBKSE-3",669,"WICHITA/MCCONNELL AFBKSE-3",891]
[{"$nulls":16},"WICHITA/MCCONNELL AFBKSE-4",669,"WICHITA/MCCONNELL AFBKSE-4",891]
[{"$nulls":16},"WICHITA/MCCONNELL AFBKSE-5",768,"WICHITA/MCCONNELL AFBKSE-5",1023]
[{"$nulls":16},"WICHITA/MCCONNELL AFBKSE-6",906,"WICHITA/MCCONNELL AFBKSE-6",1206]
[{"$nulls":16},"WICHITA/MCCONNELL AFBKSE-7",975,"WICHITA/MCCONNELL AFBKSE-7",1302]
[{"$nulls":16},"WICHITA/MCCONNELL AFBKSE-8",1059,"WICHITA/MCCONNELL AFBKSE-8",1404]
[{"$nulls":16},"WICHITA/MCCONNELL AFBKSE-9",1140,"WICHITA/MCCONNELL AFBKSE-9",1521]
[{"$nulls":16},"WICHITA/MCCONNELL AFBKSW-1",906,"WICHITA/MCCONNELL AFBKSW-1",1209]
[{"$nulls":16},"WICHITA/MCCONNELL AFBKSW-2",1059,"WICHITA/MCCONNELL AFBKSW-2",1344]
[{"$nulls":16},"WICHITA/MCCONNELL AFBKSW-3",1122,"WICHITA/MCCONNELL AFBKSW-3",1470]
[{"$nulls":16},"WICHITA/MCCONNELL AFBKSW-4",1230,"WICHITA/MCCONNELL AFBKSW-4",1542]
[{"$nulls":16},"WICHITA/MCCONNELL AFBKSW-5",1323,"WICHITA/MCCONNELL AFBKSW-5",1626]
[{"$nulls":16},"WICHITA/MCCONNELL AFBKSO-1E",1023,"WICHITA/MCCONNELL AFBKSO-1E",1323]
[{"$nulls":16},"WICHITA/MCCONNELL AFBKSO-2E",1104,"WICHITA/MCCONNELL AFBKSO-2E",1452]
[{"$nulls":16},"WICHITA/MCCONNELL AFBKSO-3E",1206,"WICHITA/MCCONNELL AFBKSO-3E",1554]
[{"$nulls":16},"WICHITA/MCCONNELL AFBKSO-1",783,"WICHITA/MCCONNELL AFBKSO-1",1044]
[{"$nulls":16},"WICHITA/MCCONNELL AFBKSO-2",978,"WICHITA/MCCONNELL AFBKSO-2",1203]
[{"$nulls":16},"WICHITA/MCCONNELL AFBKSO-3",1140,"WICHITA/MCCONNELL AFBKSO-3",1464]
[{"$nulls":16},"WICHITA/MCCONNELL AFBKSO-4",1311,"WICHITA/MCCONNELL AFBKSO-4",1659]
[{"$nulls":16},"WICHITA/MCCONNELL AFBKSO-5",1371,"WICHITA/MCCONNELL AFBKSO-5",1797]
[{"$nulls":16},"WICHITA/MCCONNELL AFBKSO-6",1470,"WICHITA/MCCONNELL AFBKSO-6",1815]
[{"$nulls":16},"WICHITA/MCCONNELL AFBKSO-7",1497,"WICHITA/MCCONNELL AFBKSO-7",1833]
[{"$nulls":16},"FORT LEAVENWORTHKSE-1",663,"FORT LEAVENWORTHKSE-1",882]
[{"$nulls":16},"FORT LEAVENWORTHKSE-2",663,"FORT LEAVENWORTHKSE-2",882]
[{"$nulls":16},"FORT LEAVENWORTHKSE-3",663,"FORT LEAVENWORTHKSE-3",882]
[{"$nulls":16},"FORT LEAVENWORTHKSE-4",663,"FORT LEAVENWORTHKSE-4",882]
[{"$nulls":16},"FORT LEAVENWORTHKSE-5",747,"FORT LEAVENWORTHKSE-5",975]
[{"$nulls":16},"FORT LEAVENWORTHKSE-6",918,"FORT LEAVENWORTHKSE-6",1224]
[{"$nulls":16},"FORT LEAVENWORTHKSE-7",981,"FORT LEAVENWORTHKSE-7",1305]
[{"$nulls":16},"FORT LEAVENWORTHKSE-8",1047,"FORT LEAVENWORTHKSE-8",1395]
[{"$nulls":16},"FORT LEAVENWORTHKSE-9",1143,"FORT LEAVENWORTHKSE-9",1524]
[{"$nulls":16},"FORT LEAVENWORTHKSW-1",921,"FORT LEAVENWORTHKSW-1",1227]
[{"$nulls":16},"FORT LEAVENWORTHKSW-2",1023,"FORT LEAVENWORTHKSW-2",1344]
[{"$nulls":16},"FORT LEAVENWORTHKSW-3",1110,"FORT LEAVENWORTHKSW-3",1452]
[{"$nulls":16},"FORT LEAVENWORTHKSW-4",1245,"FORT LEAVENWORTHKSW-4",1551]
[{"$nulls":16},"FORT LEAVENWORTHKSW-5",1326,"FORT LEAVENWORTHKSW-5",1665]
[{"$nulls":16},"FORT LEAVENWORTHKSO-1E",993,"FORT LEAVENWORTHKSO-1E",1326]
[{"$nulls":16},"FORT LEAVENWORTHKSO-2E",1083,"FORT LEAVENWORTHKSO-2E",1437]
[{"$nulls":16},"FORT LEAVENWORTHKSO-3E",1224,"FORT LEAVENWORTHKSO-3E",1569]
[{"$nulls":16},"FORT LEAVENWORTHKSO-1",789,"FORT LEAVENWORTHKSO-1",1002]
[{"$nulls":16},"FORT LEAVENWORTHKSO-2",942,"FORT LEAVENWORTHKSO-2",1218]
[{"$nulls":16},"FORT LEAVENWORTHKSO-3",1134,"FORT LEAVENWORTHKSO-3",1449]
[{"$nulls":16},"FORT LEAVENWORTHKSO-4",1317,"FORT LEAVENWORTHKSO-4",1710]
[{"$nulls":16},"FORT LEAVENWORTHKSO-5",1422,"FORT LEAVENWORTHKSO-5",1896]
[{"$nulls":16},"FORT LEAVENWORTHKSO-6",1452,"FORT LEAVENWORTHKSO-6",1914]
[{"$nulls":16},"FORT LEAVENWORTHKSO-7",1482,"FORT LEAVENWORTHKSO-7",1935]
[{"$nulls":16},"LAWRENCEKSE-1",735,"LAWRENCEKSE-1",957]
[{"$nulls":16},"LAWRENCEKSE-2",735,"LAWRENCEKSE-2",957]
[{"$nulls":16},"LAWRENCEKSE-3",735,"LAWRENCEKSE-3",957]
[{"$nulls":16},"LAWRENCEKSE-4",735,"LAWRENCEKSE-4",957]
[{"$nulls":16},"LAWRENCEKSE-5",843,"LAWRENCEKSE-5",1017]
[{"$nulls":16},"LAWRENCEKSE-6",903,"LAWRENCEKSE-6",1200]
[{"$nulls":16},"LAWRENCEKSE-7",963,"LAWRENCEKSE-7",1284]
[{"$nulls":16},"LAWRENCEKSE-8",1056,"LAWRENCEKSE-8",1374]
[{"$nulls":16},"LAWRENCEKSE-9",1116,"LAWRENCEKSE-9",1488]
[{"$nulls":16},"LAWRENCEKSW-1",933,"LAWRENCEKSW-1",1203]
[{"$nulls":16},"LAWRENCEKSW-2",1053,"LAWRENCEKSW-2",1320]
[{"$nulls":16},"LAWRENCEKSW-3",1116,"LAWRENCEKSW-3",1431]
[{"$nulls":16},"LAWRENCEKSW-4",1221,"LAWRENCEKSW-4",1509]
[{"$nulls":16},"LAWRENCEKSW-5",1305,"LAWRENCEKSW-5",1599]
[{"$nulls":16},"LAWRENCEKSO-1E",1017,"LAWRENCEKSO-1E",1302]
[{"$nulls":16},"LAWRENCEKSO-2E",1098,"LAWRENCEKSO-2E",1416]
[{"$nulls":16},"LAWRENCEKSO-3E",1200,"LAWRENCEKSO-3E",1521]
[{"$nulls":16},"LAWRENCEKSO-1",894,"LAWRENCEKSO-1",1038]
[{"$nulls":16},"LAWRENCEKSO-2",996,"LAWRENCEKSO-2",1197]
[{"$nulls":16},"LAWRENCEKSO-3",1134,"LAWRENCEKSO-3",1428]
[{"$nulls":16},"LAWRENCEKSO-4",1293,"LAWRENCEKSO-4",1635]
[{"$nulls":16},"LAWRENCEKSO-5",1347,"LAWRENCEKSO-5",1779]
[{"$nulls":16},"LAWRENCEKSO-6",1431,"LAWRENCEKSO-6",1797]
[{"$nulls":16},"LAWRENCEKSO-7",1461,"LAWRENCEKSO-7",1815]
[{"$nulls":16},"TOPEKAKSE-1",684,"TOPEKAKSE-1",912]
[{"$nulls":16},"TOPEKAKSE-2",684,"TOPEKAKSE-2",912]
[{"$nulls":16},"TOPEKAKSE-3",684,"TOPEKAKSE-3",912]
[{"$nulls":16},"TOPEKAKSE-4",684,"TOPEKAKSE-4",912]
[{"$nulls":16},"TOPEKAKSE-5",771,"TOPEKAKSE-5",1026]
[{"$nulls":16},"TOPEKAKSE-6",939,"TOPEKAKSE-6",1251]
[{"$nulls":16},"TOPEKAKSE-7",963,"TOPEKAKSE-7",1284]
[{"$nulls":16},"TOPEKAKSE-8",1071,"TOPEKAKSE-8",1320]
[{"$nulls":16},"TOPEKAKSE-9",1140,"TOPEKAKSE-9",1398]
[{"$nulls":16},"TOPEKAKSW-1",939,"TOPEKAKSW-1",1251]
[{"$nulls":16},"TOPEKAKSW-2",1068,"TOPEKAKSW-2",1299]
[{"$nulls":16},"TOPEKAKSW-3",1146,"TOPEKAKSW-3",1344]
[{"$nulls":16},"TOPEKAKSW-4",1257,"TOPEKAKSW-4",1419]
[{"$nulls":16},"TOPEKAKSW-5",1293,"TOPEKAKSW-5",1512]
[{"$nulls":16},"TOPEKAKSO-1E",1026,"TOPEKAKSO-1E",1290]
[{"$nulls":16},"TOPEKAKSO-2E",1125,"TOPEKAKSO-2E",1335]
[{"$nulls":16},"TOPEKAKSO-3E",1251,"TOPEKAKSO-3E",1434]
[{"$nulls":16},"TOPEKAKSO-1",795,"TOPEKAKSO-1",1053]
[{"$nulls":16},"TOPEKAKSO-2",987,"TOPEKAKSO-2",1245]
[{"$nulls":16},"TOPEKAKSO-3",1170,"TOPEKAKSO-3",1341]
[{"$nulls":16},"TOPEKAKSO-4",1287,"TOPEKAKSO-4",1548]
[{"$nulls":16},"TOPEKAKSO-5",1308,"TOPEKAKSO-5",1695]
[{"$nulls":16},"TOPEKAKSO-6",1344,"TOPEKAKSO-6",1710]
[{"$nulls":16},"TOPEKAKSO-7",1371,"TOPEKAKSO-7",1728]
[{"$nulls":16},"SALINAKSE-1",588,"SALINAKSE-1",783]
[{"$nulls":16},"SALINAKSE-2",588,"SALINAKSE-2",783]
[{"$nulls":16},"SALINAKSE-3",588,"SALINAKSE-3",783]
[{"$nulls":16},"SALINAKSE-4",588,"SALINAKSE-4",783]
[{"$nulls":16},"SALINAKSE-5",666,"SALINAKSE-5",849]
[{"$nulls":16},"SALINAKSE-6",744,"SALINAKSE-6",993]
[{"$nulls":16},"SALINAKSE-7",789,"SALINAKSE-7",1047]
[{"$nulls":16},"SALINAKSE-8",879,"SALINAKSE-8",1104]
[{"$nulls":16},"SALINAKSE-9",921,"SALINAKSE-9",1167]
[{"$nulls":16},"SALINAKSW-1",759,"SALINAKSW-1",993]
[{"$nulls":16},"SALINAKSW-2",876,"SALINAKSW-2",1071]
[{"$nulls":16},"SALINAKSW-3",927,"SALINAKSW-3",1143]
[{"$nulls":16},"SALINAKSW-4",1005,"SALINAKSW-4",1179]
[{"$nulls":16},"SALINAKSW-5",1059,"SALINAKSW-5",1221]
[{"$nulls":16},"SALINAKSO-1E",849,"SALINAKSO-1E",1059]
[{"$nulls":16},"SALINAKSO-2E",912,"SALINAKSO-2E",1131]
[{"$nulls":16},"SALINAKSO-3E",993,"SALINAKSO-3E",1185]
[{"$nulls":16},"SALINAKSO-1",720,"SALINAKSO-1",864]
[{"$nulls":16},"SALINAKSO-2",828,"SALINAKSO-2",990]
[{"$nulls":16},"SALINAKSO-3",942,"SALINAKSO-3",1140]
[{"$nulls":16},"SALINAKSO-4",1053,"SALINAKSO-4",1236]
[{"$nulls":16},"SALINAKSO-5",1086,"SALINAKSO-5",1305]
[{"$nulls":16},"SALINAKSO-6",1143,"SALINAKSO-6",1317]
[{"$nulls":16},"SALINAKSO-7",1164,"SALINAKSO-7",1332]
[{"$nulls":16},"FORT CAMPBELLKYE-1",732,"FORT CAMPBELLKYE-1",864]
[{"$nulls":16},"FORT CAMPBELLKYE-2",732,"FORT CAMPBELLKYE-2",864]
[{"$nulls":16},"FORT CAMPBELLKYE-3",732,"FORT CAMPBELLKYE-3",864]
[{"$nulls":16},"FORT CAMPBELLKYE-4",732,"FORT CAMPBELLKYE-4",864]
[{"$nulls":16},"FORT CAMPBELLKYE-5",804,"FORT CAMPBELLKYE-5",888]
[{"$nulls":16},"FORT CAMPBELLKYE-6",858,"FORT CAMPBELLKYE-6",1143]
[{"$nulls":16},"FORT CAMPBELLKYE-7",942,"FORT CAMPBELLKYE-7",1257]
[{"$nulls":16},"FORT CAMPBELLKYE-8",1035,"FORT CAMPBELLKYE-8",1380]
[{"$nulls":16},"FORT CAMPBELLKYE-9",1113,"FORT CAMPBELLKYE-9",1485]
[{"$nulls":16},"FORT CAMPBELLKYW-1",858,"FORT CAMPBELLKYW-1",1146]
[{"$nulls":16},"FORT CAMPBELLKYW-2",981,"FORT CAMPBELLKYW-2",1308]
[{"$nulls":16},"FORT CAMPBELLKYW-3",1095,"FORT CAMPBELLKYW-3",1461]
[{"$nulls":16},"FORT CAMPBELLKYW-4",1170,"FORT CAMPBELLKYW-4",1494]
[{"$nulls":16},"FORT CAMPBELLKYW-5",1287,"FORT CAMPBELLKYW-5",1533]
[{"$nulls":16},"FORT CAMPBELLKYO-1E",963,"FORT CAMPBELLKYO-1E",1281]
[{"$nulls":16},"FORT CAMPBELLKYO-2E",1080,"FORT CAMPBELLKYO-2E",1440]
[{"$nulls":16},"FORT CAMPBELLKYO-3E",1143,"FORT CAMPBELLKYO-3E",1500]
[{"$nulls":16},"FORT CAMPBELLKYO-1",840,"FORT CAMPBELLKYO-1",915]
[{"$nulls":16},"FORT CAMPBELLKYO-2",879,"FORT CAMPBELLKYO-2",1137]
[{"$nulls":16},"FORT CAMPBELLKYO-3",1092,"FORT CAMPBELLKYO-3",1455]
[{"$nulls":16},"FORT CAMPBELLKYO-4",1269,"FORT CAMPBELLKYO-4",1548]
[{"$nulls":16},"FORT CAMPBELLKYO-5",1344,"FORT CAMPBELLKYO-5",1608]
[{"$nulls":16},"FORT CAMPBELLKYO-6",1461,"FORT CAMPBELLKYO-6",1626]
[{"$nulls":16},"FORT CAMPBELLKYO-7",1491,"FORT CAMPBELLKYO-7",1641]
[{"$nulls":16},"LEXINGTONKYE-1",699,"LEXINGTONKYE-1",933]
[{"$nulls":16},"LEXINGTONKYE-2",699,"LEXINGTONKYE-2",933]
[{"$nulls":16},"LEXINGTONKYE-3",699,"LEXINGTONKYE-3",933]
[{"$nulls":16},"LEXINGTONKYE-4",699,"LEXINGTONKYE-4",933]
[{"$nulls":16},"LEXINGTONKYE-5",786,"LEXINGTONKYE-5",1047]
[{"$nulls":16},"LEXINGTONKYE-6",888,"LEXINGTONKYE-6",1182]
[{"$nulls":16},"LEXINGTONKYE-7",939,"LEXINGTONKYE-7",1224]
[{"$nulls":16},"LEXINGTONKYE-8",1074,"LEXINGTONKYE-8",1269]
[{"$nulls":16},"LEXINGTONKYE-9",1116,"LEXINGTONKYE-9",1347]
[{"$nulls":16},"LEXINGTONKYW-1",891,"LEXINGTONKYW-1",1185]
[{"$nulls":16},"LEXINGTONKYW-2",1074,"LEXINGTONKYW-2",1242]
[{"$nulls":16},"LEXINGTONKYW-3",1122,"LEXINGTONKYW-3",1299]
[{"$nulls":16},"LEXINGTONKYW-4",1194,"LEXINGTONKYW-4",1365]
[{"$nulls":16},"LEXINGTONKYW-5",1236,"LEXINGTONKYW-5",1443]
[{"$nulls":16},"LEXINGTONKYO-1E",1047,"LEXINGTONKYO-1E",1233]
[{"$nulls":16},"LEXINGTONKYO-2E",1107,"LEXINGTONKYO-2E",1290]
[{"$nulls":16},"LEXINGTONKYO-3E",1182,"LEXINGTONKYO-3E",1377]
[{"$nulls":16},"LEXINGTONKYO-1",819,"LEXINGTONKYO-1",1062]
[{"$nulls":16},"LEXINGTONKYO-2",1008,"LEXINGTONKYO-2",1179]
[{"$nulls":16},"LEXINGTONKYO-3",1134,"LEXINGTONKYO-3",1296]
[{"$nulls":16},"LEXINGTONKYO-4",1230,"LEXINGTONKYO-4",1476]
[{"$nulls":16},"LEXINGTONKYO-5",1257,"LEXINGTONKYO-5",1602]
[{"$nulls":16},"LEXINGTONKYO-6",1299,"LEXINGTONKYO-6",1617]
[{"$nulls":16},"LEXINGTONKYO-7",1326,"LEXINGTONKYO-7",1635]
[{"$nulls":16},"LOUISVILLEKYE-1",840,"LOUISVILLEKYE-1",1098]
[{"$nulls":16},"LOUISVILLEKYE-2",840,"LOUISVILLEKYE-2",1098]
[{"$nulls":16},"LOUISVILLEKYE-3",840,"LOUISVILLEKYE-3",1098]
[{"$nulls":16},"LOUISVILLEKYE-4",840,"LOUISVILLEKYE-4",1098]
[{"$nulls":16},"LOUISVILLEKYE-5",951,"LOUISVILLEKYE-5",1191]
[{"$nulls":16},"LOUISVILLEKYE-6",1017,"LOUISVILLEKYE-6",1320]
[{"$nulls":16},"LOUISVILLEKYE-7",1104,"LOUISVILLEKYE-7",1461]
[{"$nulls":16},"LOUISVILLEKYE-8",1218,"LOUISVILLEKYE-8",1617]
[{"$nulls":16},"LOUISVILLEKYE-9",1332,"LOUISVILLEKYE-9",1776]
[{"$nulls":16},"LOUISVILLEKYW-1",1062,"LOUISVILLEKYW-1",1323]
[{"$nulls":16},"LOUISVILLEKYW-2",1215,"LOUISVILLEKYW-2",1524]
[{"$nulls":16},"LOUISVILLEKYW-3",1287,"LOUISVILLEKYW-3",1713]
[{"$nulls":16},"LOUISVILLEKYW-4",1356,"LOUISVILLEKYW-4",1800]
[{"$nulls":16},"LOUISVILLEKYW-5",1497,"LOUISVILLEKYW-5",1902]
[{"$nulls":16},"LOUISVILLEKYO-1E",1191,"LOUISVILLEKYO-1E",1494]
[{"$nulls":16},"LOUISVILLEKYO-2E",1266,"LOUISVILLEKYO-2E",1686]
[{"$nulls":16},"LOUISVILLEKYO-3E",1362,"LOUISVILLEKYO-3E",1815]
[{"$nulls":16},"LOUISVILLEKYO-1",1005,"LOUISVILLEKYO-1",1206]
[{"$nulls":16},"LOUISVILLEKYO-2",1158,"LOUISVILLEKYO-2",1317]
[{"$nulls":16},"LOUISVILLEKYO-3",1281,"LOUISVILLEKYO-3",1707]
[{"$nulls":16},"LOUISVILLEKYO-4",1479,"LOUISVILLEKYO-4",1941]
[{"$nulls":16},"LOUISVILLEKYO-5",1578,"LOUISVILLEKYO-5",2106]
[{"$nulls":16},"LOUISVILLEKYO-6",1713,"LOUISVILLEKYO-6",2127]
[{"$nulls":16},"LOUISVILLEKYO-7",1749,"LOUISVILLEKYO-7",2148]
[{"$nulls":16},"FORT KNOXKYE-1",612,"FORT KNOXKYE-1",816]
[{"$nulls":16},"FORT KNOXKYE-2",612,"FORT KNOXKYE-2",816]
[{"$nulls":16},"FORT KNOXKYE-3",612,"FORT KNOXKYE-3",816]
[{"$nulls":16},"FORT KNOXKYE-4",612,"FORT KNOXKYE-4",816]
[{"$nulls":16},"FORT KNOXKYE-5",699,"FORT KNOXKYE-5",930]
[{"$nulls":16},"FORT KNOXKYE-6",954,"FORT KNOXKYE-6",1269]
[{"$nulls":16},"FORT KNOXKYE-7",981,"FORT KNOXKYE-7",1305]
[{"$nulls":16},"FORT KNOXKYE-8",1008,"FORT KNOXKYE-8",1344]
[{"$nulls":16},"FORT KNOXKYE-9",1104,"FORT KNOXKYE-9",1419]
[{"$nulls":16},"FORT KNOXKYW-1",954,"FORT KNOXKYW-1",1272]
[{"$nulls":16},"FORT KNOXKYW-2",996,"FORT KNOXKYW-2",1323]
[{"$nulls":16},"FORT KNOXKYW-3",1113,"FORT KNOXKYW-3",1371]
[{"$nulls":16},"FORT KNOXKYW-4",1278,"FORT KNOXKYW-4",1437]
[{"$nulls":16},"FORT KNOXKYW-5",1314,"FORT KNOXKYW-5",1515]
[{"$nulls":16},"FORT KNOXKYO-1E",987,"FORT KNOXKYO-1E",1314]
[{"$nulls":16},"FORT KNOXKYO-2E",1080,"FORT KNOXKYO-2E",1362]
[{"$nulls":16},"FORT KNOXKYO-3E",1269,"FORT KNOXKYO-3E",1449]
[{"$nulls":16},"FORT KNOXKYO-1",726,"FORT KNOXKYO-1",966]
[{"$nulls":16},"FORT KNOXKYO-2",948,"FORT KNOXKYO-2",1263]
[{"$nulls":16},"FORT KNOXKYO-3",1149,"FORT KNOXKYO-3",1368]
[{"$nulls":16},"FORT KNOXKYO-4",1311,"FORT KNOXKYO-4",1545]
[{"$nulls":16},"FORT KNOXKYO-5",1332,"FORT KNOXKYO-5",1674]
[{"$nulls":16},"FORT KNOXKYO-6",1371,"FORT KNOXKYO-6",1689]
[{"$nulls":16},"FORT KNOXKYO-7",1398,"FORT KNOXKYO-7",1707]
[{"$nulls":16},"OWENSBOROKYE-1",588,"OWENSBOROKYE-1",786]
[{"$nulls":16},"OWENSBOROKYE-2",588,"OWENSBOROKYE-2",786]
[{"$nulls":16},"OWENSBOROKYE-3",588,"OWENSBOROKYE-3",786]
[{"$nulls":16},"OWENSBOROKYE-4",588,"OWENSBOROKYE-4",786]
[{"$nulls":16},"OWENSBOROKYE-5",678,"OWENSBOROKYE-5",840]
[{"$nulls":16},"OWENSBOROKYE-6",738,"OWENSBOROKYE-6",975]
[{"$nulls":16},"OWENSBOROKYE-7",789,"OWENSBOROKYE-7",1047]
[{"$nulls":16},"OWENSBOROKYE-8",867,"OWENSBOROKYE-8",1125]
[{"$nulls":16},"OWENSBOROKYE-9",921,"OWENSBOROKYE-9",1230]
[{"$nulls":16},"OWENSBOROKYW-1",765,"OWENSBOROKYW-1",978]
[{"$nulls":16},"OWENSBOROKYW-2",867,"OWENSBOROKYW-2",1080]
[{"$nulls":16},"OWENSBOROKYW-3",912,"OWENSBOROKYW-3",1176]
[{"$nulls":16},"OWENSBOROKYW-4",993,"OWENSBOROKYW-4",1248]
[{"$nulls":16},"OWENSBOROKYW-5",1065,"OWENSBOROKYW-5",1335]
[{"$nulls":16},"OWENSBOROKYO-1E",840,"OWENSBOROKYO-1E",1062]
[{"$nulls":16},"OWENSBOROKYO-2E",900,"OWENSBOROKYO-2E",1161]
[{"$nulls":16},"OWENSBOROKYO-3E",975,"OWENSBOROKYO-3E",1263]
[{"$nulls":16},"OWENSBOROKYO-1",729,"OWENSBOROKYO-1",855]
[{"$nulls":16},"OWENSBOROKYO-2",822,"OWENSBOROKYO-2",972]
[{"$nulls":16},"OWENSBOROKYO-3",927,"OWENSBOROKYO-3",1173]
[{"$nulls":16},"OWENSBOROKYO-4",1056,"OWENSBOROKYO-4",1368]
[{"$nulls":16},"OWENSBOROKYO-5",1131,"OWENSBOROKYO-5",1506]
[{"$nulls":16},"OWENSBOROKYO-6",1176,"OWENSBOROKYO-6",1521]
[{"$nulls":16},"OWENSBOROKYO-7",1200,"OWENSBOROKYO-7",1536]
[{"$nulls":16},"FRANKFORTKYE-1",606,"FRANKFORTKYE-1",792]
[{"$nulls":16},"FRANKFORTKYE-2",606,"FRANKFORTKYE-2",792]
[{"$nulls":16},"FRANKFORTKYE-3",606,"FRANKFORTKYE-3",792]
[{"$nulls":16},"FRANKFORTKYE-4",606,"FRANKFORTKYE-4",792]
[{"$nulls":16},"FRANKFORTKYE-5",690,"FRANKFORTKYE-5",852]
[{"$nulls":16},"FRANKFORTKYE-6",738,"FRANKFORTKYE-6",930]
[{"$nulls":16},"FRANKFORTKYE-7",795,"FRANKFORTKYE-7",1029]
[{"$nulls":16},"FRANKFORTKYE-8",867,"FRANKFORTKYE-8",1140]
[{"$nulls":16},"FRANKFORTKYE-9",942,"FRANKFORTKYE-9",1254]
[{"$nulls":16},"FRANKFORTKYW-1",768,"FRANKFORTKYW-1",933]
[{"$nulls":16},"FRANKFORTKYW-2",867,"FRANKFORTKYW-2",1074]
[{"$nulls":16},"FRANKFORTKYW-3",906,"FRANKFORTKYW-3",1209]
[{"$nulls":16},"FRANKFORTKYW-4",954,"FRANKFORTKYW-4",1272]
[{"$nulls":16},"FRANKFORTKYW-5",1056,"FRANKFORTKYW-5",1347]
[{"$nulls":16},"FRANKFORTKYO-1E",852,"FRANKFORTKYO-1E",1053]
[{"$nulls":16},"FRANKFORTKYO-2E",891,"FRANKFORTKYO-2E",1188]
[{"$nulls":16},"FRANKFORTKYO-3E",963,"FRANKFORTKYO-3E",1284]
[{"$nulls":16},"FRANKFORTKYO-1",729,"FRANKFORTKYO-1",861]
[{"$nulls":16},"FRANKFORTKYO-2",831,"FRANKFORTKYO-2",927]
[{"$nulls":16},"FRANKFORTKYO-3",903,"FRANKFORTKYO-3",1203]
[{"$nulls":16},"FRANKFORTKYO-4",1041,"FRANKFORTKYO-4",1374]
[{"$nulls":16},"FRANKFORTKYO-5",1122,"FRANKFORTKYO-5",1494]
[{"$nulls":16},"FRANKFORTKYO-6",1209,"FRANKFORTKYO-6",1509]
[{"$nulls":16},"FRANKFORTKYO-7",1233,"FRANKFORTKYO-7",1524]
[{"$nulls":16},"BOWLING GREENKYE-1",699,"BOWLING GREENKYE-1",837]
[{"$nulls":16},"BOWLING GREENKYE-2",699,"BOWLING GREENKYE-2",837]
[{"$nulls":16},"BOWLING GREENKYE-3",699,"BOWLING GREENKYE-3",837]
[{"$nulls":16},"BOWLING GREENKYE-4",699,"BOWLING GREENKYE-4",837]
[{"$nulls":16},"BOWLING GREENKYE-5",759,"BOWLING GREENKYE-5",885]
[{"$nulls":16},"BOWLING GREENKYE-6",798,"BOWLING GREENKYE-6",987]
[{"$nulls":16},"BOWLING GREENKYE-7",840,"BOWLING GREENKYE-7",1071]
[{"$nulls":16},"BOWLING GREENKYE-8",906,"BOWLING GREENKYE-8",1164]
[{"$nulls":16},"BOWLING GREENKYE-9",984,"BOWLING GREENKYE-9",1311]
[{"$nulls":16},"BOWLING GREENKYW-1",819,"BOWLING GREENKYW-1",990]
[{"$nulls":16},"BOWLING GREENKYW-2",903,"BOWLING GREENKYW-2",1110]
[{"$nulls":16},"BOWLING GREENKYW-3",939,"BOWLING GREENKYW-3",1221]
[{"$nulls":16},"BOWLING GREENKYW-4",1008,"BOWLING GREENKYW-4",1347]
[{"$nulls":16},"BOWLING GREENKYW-5",1119,"BOWLING GREENKYW-5",1494]
[{"$nulls":16},"BOWLING GREENKYO-1E",885,"BOWLING GREENKYO-1E",1089]
[{"$nulls":16},"BOWLING GREENKYO-2E",930,"BOWLING GREENKYO-2E",1206]
[{"$nulls":16},"BOWLING GREENKYO-3E",1026,"BOWLING GREENKYO-3E",1368]
[{"$nulls":16},"BOWLING GREENKYO-1",789,"BOWLING GREENKYO-1",894]
[{"$nulls":16},"BOWLING GREENKYO-2",867,"BOWLING GREENKYO-2",984]
[{"$nulls":16},"BOWLING GREENKYO-3",951,"BOWLING GREENKYO-3",1215]
[{"$nulls":16},"BOWLING GREENKYO-4",1161,"BOWLING GREENKYO-4",1551]
[{"$nulls":16},"BOWLING GREENKYO-5",1341,"BOWLING GREENKYO-5",1788]
[{"$nulls":16},"BOWLING GREENKYO-6",1353,"BOWLING GREENKYO-6",1806]
[{"$nulls":16},"BOWLING GREENKYO-7",1368,"BOWLING GREENKYO-7",1824]
[{"$nulls":16},"PADUCAHKYE-1",615,"PADUCAHKYE-1",756]
[{"$nulls":16},"PADUCAHKYE-2",615,"PADUCAHKYE-2",756]
[{"$nulls":16},"PADUCAHKYE-3",615,"PADUCAHKYE-3",756]
[{"$nulls":16},"PADUCAHKYE-4",615,"PADUCAHKYE-4",756]
[{"$nulls":16},"PADUCAHKYE-5",666,"PADUCAHKYE-5",822]
[{"$nulls":16},"PADUCAHKYE-6",804,"PADUCAHKYE-6",1071]
[{"$nulls":16},"PADUCAHKYE-7",849,"PADUCAHKYE-7",1131]
[{"$nulls":16},"PADUCAHKYE-8",900,"PADUCAHKYE-8",1197]
[{"$nulls":16},"PADUCAHKYE-9",960,"PADUCAHKYE-9",1281]
[{"$nulls":16},"PADUCAHKYW-1",804,"PADUCAHKYW-1",1074]
[{"$nulls":16},"PADUCAHKYW-2",870,"PADUCAHKYW-2",1158]
[{"$nulls":16},"PADUCAHKYW-3",957,"PADUCAHKYW-3",1239]
[{"$nulls":16},"PADUCAHKYW-4",1086,"PADUCAHKYW-4",1293]
[{"$nulls":16},"PADUCAHKYW-5",1149,"PADUCAHKYW-5",1359]
[{"$nulls":16},"PADUCAHKYO-1E",858,"PADUCAHKYO-1E",1146]
[{"$nulls":16},"PADUCAHKYO-2E",933,"PADUCAHKYO-2E",1227]
[{"$nulls":16},"PADUCAHKYO-3E",1071,"PADUCAHKYO-3E",1305]
[{"$nulls":16},"PADUCAHKYO-1",690,"PADUCAHKYO-1",849]
[{"$nulls":16},"PADUCAHKYO-2",801,"PADUCAHKYO-2",1068]
[{"$nulls":16},"PADUCAHKYO-3",981,"PADUCAHKYO-3",1236]
[{"$nulls":16},"PADUCAHKYO-4",1140,"PADUCAHKYO-4",1383]
[{"$nulls":16},"PADUCAHKYO-5",1179,"PADUCAHKYO-5",1488]
[{"$nulls":16},"PADUCAHKYO-6",1239,"PADUCAHKYO-6",1503]
[{"$nulls":16},"PADUCAHKYO-7",1266,"PADUCAHKYO-7",1518]
[{"$nulls":16},"ALEXANDRIALAE-1",732,"ALEXANDRIALAE-1",975]
[{"$nulls":16},"ALEXANDRIALAE-2",732,"ALEXANDRIALAE-2",975]
[{"$nulls":16},"ALEXANDRIALAE-3",732,"ALEXANDRIALAE-3",975]
[{"$nulls":16},"ALEXANDRIALAE-4",732,"ALEXANDRIALAE-4",975]
[{"$nulls":16},"ALEXANDRIALAE-5",867,"ALEXANDRIALAE-5",1155]
[{"$nulls":16},"ALEXANDRIALAE-6",966,"ALEXANDRIALAE-6",1287]
[{"$nulls":16},"ALEXANDRIALAE-7",984,"ALEXANDRIALAE-7",1299]
[{"$nulls":16},"ALEXANDRIALAE-8",1182,"ALEXANDRIALAE-8",1314]
[{"$nulls":16},"ALEXANDRIALAE-9",1224,"ALEXANDRIALAE-9",1401]
[{"$nulls":16},"ALEXANDRIALAW-1",966,"ALEXANDRIALAW-1",1287]
[{"$nulls":16},"ALEXANDRIALAW-2",1182,"ALEXANDRIALAW-2",1305]
[{"$nulls":16},"ALEXANDRIALAW-3",1227,"ALEXANDRIALAW-3",1320]
[{"$nulls":16},"ALEXANDRIALAW-4",1290,"ALEXANDRIALAW-4",1431]
[{"$nulls":16},"ALEXANDRIALAW-5",1302,"ALEXANDRIALAW-5",1560]
[{"$nulls":16},"ALEXANDRIALAO-1E",1155,"ALEXANDRIALAO-1E",1302]
[{"$nulls":16},"ALEXANDRIALAO-2E",1215,"ALEXANDRIALAO-2E",1320]
[{"$nulls":16},"ALEXANDRIALAO-3E",1287,"ALEXANDRIALAO-3E",1452]
[{"$nulls":16},"ALEXANDRIALAO-1",879,"ALEXANDRIALAO-1",1170]
[{"$nulls":16},"ALEXANDRIALAO-2",1095,"ALEXANDRIALAO-2",1284]
[{"$nulls":16},"ALEXANDRIALAO-3",1239,"ALEXANDRIALAO-3",1320]
[{"$nulls":16},"ALEXANDRIALAO-4",1302,"ALEXANDRIALAO-4",1611]
[{"$nulls":16},"ALEXANDRIALAO-5",1365,"ALEXANDRIALAO-5",1821]
[{"$nulls":16},"ALEXANDRIALAO-6",1380,"ALEXANDRIALAO-6",1839]
[{"$nulls":16},"ALEXANDRIALAO-7",1392,"ALEXANDRIALAO-7",1857]
[{"$nulls":16},"BATON ROUGELAE-1",966,"BATON ROUGELAE-1",1203]
[{"$nulls":16},"BATON ROUGELAE-2",966,"BATON ROUGELAE-2",1203]
[{"$nulls":16},"BATON ROUGELAE-3",966,"BATON ROUGELAE-3",1203]
[{"$nulls":16},"BATON ROUGELAE-4",966,"BATON ROUGELAE-4",1203]
[{"$nulls":16},"BATON ROUGELAE-5",1074,"BATON ROUGELAE-5",1278]
[{"$nulls":16},"BATON ROUGELAE-6",1137,"BATON ROUGELAE-6",1383]
[{"$nulls":16},"BATON ROUGELAE-7",1206,"BATON ROUGELAE-7",1464]
[{"$nulls":16},"BATON ROUGELAE-8",1299,"BATON ROUGELAE-8",1551]
[{"$nulls":16},"BATON ROUGELAE-9",1332,"BATON ROUGELAE-9",1704]
[{"$nulls":16},"BATON ROUGELAW-1",1173,"BATON ROUGELAW-1",1386]
[{"$nulls":16},"BATON ROUGELAW-2",1299,"BATON ROUGELAW-2",1500]
[{"$nulls":16},"BATON ROUGELAW-3",1335,"BATON ROUGELAW-3",1605]
[{"$nulls":16},"BATON ROUGELAW-4",1404,"BATON ROUGELAW-4",1740]
[{"$nulls":16},"BATON ROUGELAW-5",1482,"BATON ROUGELAW-5",1899]
[{"$nulls":16},"BATON ROUGELAO-1E",1278,"BATON ROUGELAO-1E",1482]
[{"$nulls":16},"BATON ROUGELAO-2E",1326,"BATON ROUGELAO-2E",1590]
[{"$nulls":16},"BATON ROUGELAO-3E",1383,"BATON ROUGELAO-3E",1764]
[{"$nulls":16},"BATON ROUGELAO-1",1125,"BATON ROUGELAO-1",1290]
[{"$nulls":16},"BATON ROUGELAO-2",1254,"BATON ROUGELAO-2",1383]
[{"$nulls":16},"BATON ROUGELAO-3",1347,"BATON ROUGELAO-3",1602]
[{"$nulls":16},"BATON ROUGELAO-4",1473,"BATON ROUGELAO-4",1959]
[{"$nulls":16},"BATON ROUGELAO-5",1662,"BATON ROUGELAO-5",2214]
[{"$nulls":16},"BATON ROUGELAO-6",1677,"BATON ROUGELAO-6",2238]
[{"$nulls":16},"BATON ROUGELAO-7",1695,"BATON ROUGELAO-7",2259]
[{"$nulls":16},"FORT POLKLAE-1",639,"FORT POLKLAE-1",852]
[{"$nulls":16},"FORT POLKLAE-2",639,"FORT POLKLAE-2",852]
[{"$nulls":16},"FORT POLKLAE-3",639,"FORT POLKLAE-3",852]
[{"$nulls":16},"FORT POLKLAE-4",639,"FORT POLKLAE-4",852]
[{"$nulls":16},"FORT POLKLAE-5",762,"FORT POLKLAE-5",879]
[{"$nulls":16},"FORT POLKLAE-6",828,"FORT POLKLAE-6",1056]
[{"$nulls":16},"FORT POLKLAE-7",852,"FORT POLKLAE-7",1128]
[{"$nulls":16},"FORT POLKLAE-8",912,"FORT POLKLAE-8",1203]
[{"$nulls":16},"FORT POLKLAE-9",975,"FORT POLKLAE-9",1299]
[{"$nulls":16},"FORT POLKLAW-1",840,"FORT POLKLAW-1",1056]
[{"$nulls":16},"FORT POLKLAW-2",912,"FORT POLKLAW-2",1158]
[{"$nulls":16},"FORT POLKLAW-3",975,"FORT POLKLAW-3",1254]
[{"$nulls":16},"FORT POLKLAW-4",1074,"FORT POLKLAW-4",1314]
[{"$nulls":16},"FORT POLKLAW-5",1146,"FORT POLKLAW-5",1386]
[{"$nulls":16},"FORT POLKLAO-1E",879,"FORT POLKLAO-1E",1143]
[{"$nulls":16},"FORT POLKLAO-2E",957,"FORT POLKLAO-2E",1239]
[{"$nulls":16},"FORT POLKLAO-3E",1056,"FORT POLKLAO-3E",1326]
[{"$nulls":16},"FORT POLKLAO-1",825,"FORT POLKLAO-1",897]
[{"$nulls":16},"FORT POLKLAO-2",870,"FORT POLKLAO-2",1050]
[{"$nulls":16},"FORT POLKLAO-3",990,"FORT POLKLAO-3",1251]
[{"$nulls":16},"FORT POLKLAO-4",1134,"FORT POLKLAO-4",1416]
[{"$nulls":16},"FORT POLKLAO-5",1179,"FORT POLKLAO-5",1533]
[{"$nulls":16},"FORT POLKLAO-6",1254,"FORT POLKLAO-6",1548]
[{"$nulls":16},"FORT POLKLAO-7",1278,"FORT POLKLAO-7",1563]
[{"$nulls":16},"NEW ORLEANSLAE-1",903,"NEW ORLEANSLAE-1",1191]
[{"$nulls":16},"NEW ORLEANSLAE-2",903,"NEW ORLEANSLAE-2",1191]
[{"$nulls":16},"NEW ORLEANSLAE-3",903,"NEW ORLEANSLAE-3",1191]
[{"$nulls":16},"NEW ORLEANSLAE-4",903,"NEW ORLEANSLAE-4",1191]
[{"$nulls":16},"NEW ORLEANSLAE-5",1056,"NEW ORLEANSLAE-5",1251]
[{"$nulls":16},"NEW ORLEANSLAE-6",1206,"NEW ORLEANSLAE-6",1605]
[{"$nulls":16},"NEW ORLEANSLAE-7",1218,"NEW ORLEANSLAE-7",1626]
[{"$nulls":16},"NEW ORLEANSLAE-8",1323,"NEW ORLEANSLAE-8",1647]
[{"$nulls":16},"NEW ORLEANSLAE-9",1431,"NEW ORLEANSLAE-9",1737]
[{"$nulls":16},"NEW ORLEANSLAW-1",1206,"NEW ORLEANSLAW-1",1608]
[{"$nulls":16},"NEW ORLEANSLAW-2",1317,"NEW ORLEANSLAW-2",1635]
[{"$nulls":16},"NEW ORLEANSLAW-3",1443,"NEW ORLEANSLAW-3",1659]
[{"$nulls":16},"NEW ORLEANSLAW-4",1611,"NEW ORLEANSLAW-4",1767]
[{"$nulls":16},"NEW ORLEANSLAW-5",1629,"NEW ORLEANSLAW-5",1896]
[{"$nulls":16},"NEW ORLEANSLAO-1E",1251,"NEW ORLEANSLAO-1E",1629]
[{"$nulls":16},"NEW ORLEANSLAO-2E",1407,"NEW ORLEANSLAO-2E",1656]
[{"$nulls":16},"NEW ORLEANSLAO-3E",1605,"NEW ORLEANSLAO-3E",1788]
[{"$nulls":16},"NEW ORLEANSLAO-1",1131,"NEW ORLEANSLAO-1",1290]
[{"$nulls":16},"NEW ORLEANSLAO-2",1230,"NEW ORLEANSLAO-2",1599]
[{"$nulls":16},"NEW ORLEANSLAO-3",1479,"NEW ORLEANSLAO-3",1659]
[{"$nulls":16},"NEW ORLEANSLAO-4",1629,"NEW ORLEANSLAO-4",1944]
[{"$nulls":16},"NEW ORLEANSLAO-5",1641,"NEW ORLEANSLAO-5",2151]
[{"$nulls":16},"NEW ORLEANSLAO-6",1659,"NEW ORLEANSLAO-6",2172]
[{"$nulls":16},"NEW ORLEANSLAO-7",1692,"NEW ORLEANSLAO-7",2193]
[{"$nulls":16},"SHREVEPORT/BARKSDALE AFBLAE-1",795,"SHREVEPORT/BARKSDALE AFBLAE-1",1005]
[{"$nulls":16},"SHREVEPORT/BARKSDALE AFBLAE-2",795,"SHREVEPORT/BARKSDALE AFBLAE-2",1005]
[{"$nulls":16},"SHREVEPORT/BARKSDALE AFBLAE-3",795,"SHREVEPORT/BARKSDALE AFBLAE-3",1005]
[{"$nulls":16},"SHREVEPORT/BARKSDALE AFBLAE-4",795,"SHREVEPORT/BARKSDALE AFBLAE-4",1005]
[{"$nulls":16},"SHREVEPORT/BARKSDALE AFBLAE-5",885,"SHREVEPORT/BARKSDALE AFBLAE-5",1083]
[{"$nulls":16},"SHREVEPORT/BARKSDALE AFBLAE-6",1065,"SHREVEPORT/BARKSDALE AFBLAE-6",1419]
[{"$nulls":16},"SHREVEPORT/BARKSDALE AFBLAE-7",1101,"SHREVEPORT/BARKSDALE AFBLAE-7",1467]
[{"$nulls":16},"SHREVEPORT/BARKSDALE AFBLAE-8",1152,"SHREVEPORT/BARKSDALE AFBLAE-8",1518]
[{"$nulls":16},"SHREVEPORT/BARKSDALE AFBLAE-9",1254,"SHREVEPORT/BARKSDALE AFBLAE-9",1641]
[{"$nulls":16},"SHREVEPORT/BARKSDALE AFBLAW-1",1065,"SHREVEPORT/BARKSDALE AFBLAW-1",1419]
[{"$nulls":16},"SHREVEPORT/BARKSDALE AFBLAW-2",1146,"SHREVEPORT/BARKSDALE AFBLAW-2",1488]
[{"$nulls":16},"SHREVEPORT/BARKSDALE AFBLAW-3",1263,"SHREVEPORT/BARKSDALE AFBLAW-3",1551]
[{"$nulls":16},"SHREVEPORT/BARKSDALE AFBLAW-4",1431,"SHREVEPORT/BARKSDALE AFBLAW-4",1674]
[{"$nulls":16},"SHREVEPORT/BARKSDALE AFBLAW-5",1479,"SHREVEPORT/BARKSDALE AFBLAW-5",1815]
[{"$nulls":16},"SHREVEPORT/BARKSDALE AFBLAO-1E",1107,"SHREVEPORT/BARKSDALE AFBLAO-1E",1476]
[{"$nulls":16},"SHREVEPORT/BARKSDALE AFBLAO-2E",1230,"SHREVEPORT/BARKSDALE AFBLAO-2E",1542]
[{"$nulls":16},"SHREVEPORT/BARKSDALE AFBLAO-3E",1419,"SHREVEPORT/BARKSDALE AFBLAO-3E",1695]
[{"$nulls":16},"SHREVEPORT/BARKSDALE AFBLAO-1",927,"SHREVEPORT/BARKSDALE AFBLAO-1",1122]
[{"$nulls":16},"SHREVEPORT/BARKSDALE AFBLAO-2",1059,"SHREVEPORT/BARKSDALE AFBLAO-2",1410]
[{"$nulls":16},"SHREVEPORT/BARKSDALE AFBLAO-3",1299,"SHREVEPORT/BARKSDALE AFBLAO-3",1548]
[{"$nulls":16},"SHREVEPORT/BARKSDALE AFBLAO-4",1473,"SHREVEPORT/BARKSDALE AFBLAO-4",1872]
[{"$nulls":16},"SHREVEPORT/BARKSDALE AFBLAO-5",1578,"SHREVEPORT/BARKSDALE AFBLAO-5",2103]
[{"$nulls":16},"SHREVEPORT/BARKSDALE AFBLAO-6",1593,"SHREVEPORT/BARKSDALE AFBLAO-6",2124]
[{"$nulls":16},"SHREVEPORT/BARKSDALE AFBLAO-7",1608,"SHREVEPORT/BARKSDALE AFBLAO-7",2145]
[{"$nulls":16},"LAFAYETTE COUNTYLAE-1",792,"LAFAYETTE COUNTYLAE-1",1056]
[{"$nulls":16},"LAFAYETTE COUNTYLAE-2",792,"LAFAYETTE COUNTYLAE-2",1056]
[{"$nulls":16},"LAFAYETTE COUNTYLAE-3",792,"LAFAYETTE COUNTYLAE-3",1056]
[{"$nulls":16},"LAFAYETTE COUNTYLAE-4",792,"LAFAYETTE COUNTYLAE-4",1056]
[{"$nulls":16},"LAFAYETTE COUNTYLAE-5",888,"LAFAYETTE COUNTYLAE-5",1173]
[{"$nulls":16},"LAFAYETTE COUNTYLAE-6",1053,"LAFAYETTE COUNTYLAE-6",1404]
[{"$nulls":16},"LAFAYETTE COUNTYLAE-7",1077,"LAFAYETTE COUNTYLAE-7",1437]
[{"$nulls":16},"LAFAYETTE COUNTYLAE-8",1218,"LAFAYETTE COUNTYLAE-8",1470]
[{"$nulls":16},"LAFAYETTE COUNTYLAE-9",1290,"LAFAYETTE COUNTYLAE-9",1554]
[{"$nulls":16},"LAFAYETTE COUNTYLAW-1",1053,"LAFAYETTE COUNTYLAW-1",1407]
[{"$nulls":16},"LAFAYETTE COUNTYLAW-2",1218,"LAFAYETTE COUNTYLAW-2",1449]
[{"$nulls":16},"LAFAYETTE COUNTYLAW-3",1299,"LAFAYETTE COUNTYLAW-3",1491]
[{"$nulls":16},"LAFAYETTE COUNTYLAW-4",1413,"LAFAYETTE COUNTYLAW-4",1578]
[{"$nulls":16},"LAFAYETTE COUNTYLAW-5",1443,"LAFAYETTE COUNTYLAW-5",1680]
[{"$nulls":16},"LAFAYETTE COUNTYLAO-1E",1173,"LAFAYETTE COUNTYLAO-1E",1443]
[{"$nulls":16},"LAFAYETTE COUNTYLAO-2E",1275,"LAFAYETTE COUNTYLAO-2E",1485]
[{"$nulls":16},"LAFAYETTE COUNTYLAO-3E",1404,"LAFAYETTE COUNTYLAO-3E",1593]
[{"$nulls":16},"LAFAYETTE COUNTYLAO-1",936,"LAFAYETTE COUNTYLAO-1",1200]
[{"$nulls":16},"LAFAYETTE COUNTYLAO-2",1134,"LAFAYETTE COUNTYLAO-2",1401]
[{"$nulls":16},"LAFAYETTE COUNTYLAO-3",1320,"LAFAYETTE COUNTYLAO-3",1488]
[{"$nulls":16},"LAFAYETTE COUNTYLAO-4",1440,"LAFAYETTE COUNTYLAO-4",1719]
[{"$nulls":16},"LAFAYETTE COUNTYLAO-5",1458,"LAFAYETTE COUNTYLAO-5",1887]
[{"$nulls":16},"LAFAYETTE COUNTYLAO-6",1491,"LAFAYETTE COUNTYLAO-6",1905]
[{"$nulls":16},"LAFAYETTE COUNTYLAO-7",1521,"LAFAYETTE COUNTYLAO-7",1923]
[{"$nulls":16},"ST MARY AND TERREBONNELAE-1",837,"ST MARY AND TERREBONNELAE-1",1116]
[{"$nulls":16},"ST MARY AND TERREBONNELAE-2",837,"ST MARY AND TERREBONNELAE-2",1116]
[{"$nulls":16},"ST MARY AND TERREBONNELAE-3",837,"ST MARY AND TERREBONNELAE-3",1116]
[{"$nulls":16},"ST MARY AND TERREBONNELAE-4",837,"ST MARY AND TERREBONNELAE-4",1116]
[{"$nulls":16},"ST MARY AND TERREBONNELAE-5",936,"ST MARY AND TERREBONNELAE-5",1248]
[{"$nulls":16},"ST MARY AND TERREBONNELAE-6",1113,"ST MARY AND TERREBONNELAE-6",1485]
[{"$nulls":16},"ST MARY AND TERREBONNELAE-7",1173,"ST MARY AND TERREBONNELAE-7",1563]
[{"$nulls":16},"ST MARY AND TERREBONNELAE-8",1296,"ST MARY AND TERREBONNELAE-8",1650]
[{"$nulls":16},"ST MARY AND TERREBONNELAE-9",1368,"ST MARY AND TERREBONNELAE-9",1725]
[{"$nulls":16},"ST MARY AND TERREBONNELAW-1",1116,"ST MARY AND TERREBONNELAW-1",1485]
[{"$nulls":16},"ST MARY AND TERREBONNELAW-2",1293,"ST MARY AND TERREBONNELAW-2",1599]
[{"$nulls":16},"ST MARY AND TERREBONNELAW-3",1377,"ST MARY AND TERREBONNELAW-3",1707]
[{"$nulls":16},"ST MARY AND TERREBONNELAW-4",1503,"ST MARY AND TERREBONNELAW-4",1734]
[{"$nulls":16},"ST MARY AND TERREBONNELAW-5",1584,"ST MARY AND TERREBONNELAW-5",1767]
[{"$nulls":16},"ST MARY AND TERREBONNELAO-1E",1248,"ST MARY AND TERREBONNELAO-1E",1581]
[{"$nulls":16},"ST MARY AND TERREBONNELAO-2E",1353,"ST MARY AND TERREBONNELAO-2E",1689]
[{"$nulls":16},"ST MARY AND TERREBONNELAO-3E",1485,"ST MARY AND TERREBONNELAO-3E",1740]
[{"$nulls":16},"ST MARY AND TERREBONNELAO-1",981,"ST MARY AND TERREBONNELAO-1",1275]
[{"$nulls":16},"ST MARY AND TERREBONNELAO-2",1203,"ST MARY AND TERREBONNELAO-2",1479]
[{"$nulls":16},"ST MARY AND TERREBONNELAO-3",1398,"ST MARY AND TERREBONNELAO-3",1701]
[{"$nulls":16},"ST MARY AND TERREBONNELAO-4",1572,"ST MARY AND TERREBONNELAO-4",1779]
[{"$nulls":16},"ST MARY AND TERREBONNELAO-5",1623,"ST MARY AND TERREBONNELAO-5",1833]
[{"$nulls":16},"ST MARY AND TERREBONNELAO-6",1707,"ST MARY AND TERREBONNELAO-6",1851]
[{"$nulls":16},"ST MARY AND TERREBONNELAO-7",1740,"ST MARY AND TERREBONNELAO-7",1869]
[{"$nulls":16},"LAKE CHARLESLAE-1",864,"LAKE CHARLESLAE-1",1077]
[{"$nulls":16},"LAKE CHARLESLAE-2",864,"LAKE CHARLESLAE-2",1077]
[{"$nulls":16},"LAKE CHARLESLAE-3",864,"LAKE CHARLESLAE-3",1077]
[{"$nulls":16},"LAKE CHARLESLAE-4",864,"LAKE CHARLESLAE-4",1077]
[{"$nulls":16},"LAKE CHARLESLAE-5",966,"LAKE CHARLESLAE-5",1140]
[{"$nulls":16},"LAKE CHARLESLAE-6",1023,"LAKE CHARLESLAE-6",1266]
[{"$nulls":16},"LAKE CHARLESLAE-7",1083,"LAKE CHARLESLAE-7",1341]
[{"$nulls":16},"LAKE CHARLESLAE-8",1167,"LAKE CHARLESLAE-8",1425]
[{"$nulls":16},"LAKE CHARLESLAE-9",1206,"LAKE CHARLESLAE-9",1494]
[{"$nulls":16},"LAKE CHARLESLAW-1",1053,"LAKE CHARLESLAW-1",1269]
[{"$nulls":16},"LAKE CHARLESLAW-2",1164,"LAKE CHARLESLAW-2",1377]
[{"$nulls":16},"LAKE CHARLESLAW-3",1209,"LAKE CHARLESLAW-3",1479]
[{"$nulls":16},"LAKE CHARLESLAW-4",1284,"LAKE CHARLESLAW-4",1500]
[{"$nulls":16},"LAKE CHARLESLAW-5",1362,"LAKE CHARLESLAW-5",1524]
[{"$nulls":16},"LAKE CHARLESLAO-1E",1140,"LAKE CHARLESLAO-1E",1359]
[{"$nulls":16},"LAKE CHARLESLAO-2E",1197,"LAKE CHARLESLAO-2E",1464]
[{"$nulls":16},"LAKE CHARLESLAO-3E",1266,"LAKE CHARLESLAO-3E",1503]
[{"$nulls":16},"LAKE CHARLESLAO-1",1014,"LAKE CHARLESLAO-1",1155]
[{"$nulls":16},"LAKE CHARLESLAO-2",1119,"LAKE CHARLESLAO-2",1263]
[{"$nulls":16},"LAKE CHARLESLAO-3",1221,"LAKE CHARLESLAO-3",1473]
[{"$nulls":16},"LAKE CHARLESLAO-4",1350,"LAKE CHARLESLAO-4",1533]
[{"$nulls":16},"LAKE CHARLESLAO-5",1401,"LAKE CHARLESLAO-5",1575]
[{"$nulls":16},"LAKE CHARLESLAO-6",1479,"LAKE CHARLESLAO-6",1590]
[{"$nulls":16},"LAKE CHARLESLAO-7",1509,"LAKE CHARLESLAO-7",1608]
[{"$nulls":16},"MONROELAE-1",690,"MONROELAE-1",855]
[{"$nulls":16},"MONROELAE-2",690,"MONROELAE-2",855]
[{"$nulls":16},"MONROELAE-3",690,"MONROELAE-3",855]
[{"$nulls":16},"MONROELAE-4",690,"MONROELAE-4",855]
[{"$nulls":16},"MONROELAE-5",759,"MONROELAE-5",918]
[{"$nulls":16},"MONROELAE-6",906,"MONROELAE-6",1206]
[{"$nulls":16},"MONROELAE-7",912,"MONROELAE-7",1215]
[{"$nulls":16},"MONROELAE-8",975,"MONROELAE-8",1224]
[{"$nulls":16},"MONROELAE-9",1065,"MONROELAE-9",1275]
[{"$nulls":16},"MONROELAW-1",906,"MONROELAW-1",1206]
[{"$nulls":16},"MONROELAW-2",972,"MONROELAW-2",1218]
[{"$nulls":16},"MONROELAW-3",1074,"MONROELAW-3",1230]
[{"$nulls":16},"MONROELAW-4",1209,"MONROELAW-4",1293]
[{"$nulls":16},"MONROELAW-5",1218,"MONROELAW-5",1368]
[{"$nulls":16},"MONROELAO-1E",918,"MONROELAO-1E",1218]
[{"$nulls":16},"MONROELAO-2E",1044,"MONROELAO-2E",1227]
[{"$nulls":16},"MONROELAO-3E",1206,"MONROELAO-3E",1305]
[{"$nulls":16},"MONROELAO-1",792,"MONROELAO-1",948]
[{"$nulls":16},"MONROELAO-2",900,"MONROELAO-2",1200]
[{"$nulls":16},"MONROELAO-3",1104,"MONROELAO-3",1230]
[{"$nulls":16},"MONROELAO-4",1215,"MONROELAO-4",1395]
[{"$nulls":16},"MONROELAO-5",1221,"MONROELAO-5",1518]
[{"$nulls":16},"MONROELAO-6",1230,"MONROELAO-6",1533]
[{"$nulls":16},"MONROELAO-7",1254,"MONROELAO-7",1548]
[{"$nulls":16},"NANTUCKETMAE-1",1761,"NANTUCKETMAE-1",2346]
[{"$nulls":16},"NANTUCKETMAE-2",1761,"NANTUCKETMAE-2",2346]
[{"$nulls":16},"NANTUCKETMAE-3",1761,"NANTUCKETMAE-3",2346]
[{"$nulls":16},"NANTUCKETMAE-4",1761,"NANTUCKETMAE-4",2346]
[{"$nulls":16},"NANTUCKETMAE-5",2064,"NANTUCKETMAE-5",2460]
[{"$nulls":16},"NANTUCKETMAE-6",2259,"NANTUCKETMAE-6",3012]
[{"$nulls":16},"NANTUCKETMAE-7",2358,"NANTUCKETMAE-7",3144]
[{"$nulls":16},"NANTUCKETMAE-8",2571,"NANTUCKETMAE-8",3285]
[{"$nulls":16},"NANTUCKETMAE-9",2742,"NANTUCKETMAE-9",3465]
[{"$nulls":16},"NANTUCKETMAW-1",2304,"NANTUCKETMAW-1",3015]
[{"$nulls":16},"NANTUCKETMAW-2",2565,"NANTUCKETMAW-2",3201]
[{"$nulls":16},"NANTUCKETMAW-3",2757,"NANTUCKETMAW-3",3378]
[{"$nulls":16},"NANTUCKETMAW-4",3045,"NANTUCKETMAW-4",3498]
[{"$nulls":16},"NANTUCKETMAW-5",3177,"NANTUCKETMAW-5",3639]
[{"$nulls":16},"NANTUCKETMAO-1E",2460,"NANTUCKETMAO-1E",3174]
[{"$nulls":16},"NANTUCKETMAO-2E",2703,"NANTUCKETMAO-2E",3351]
[{"$nulls":16},"NANTUCKETMAO-3E",3012,"NANTUCKETMAO-3E",3519]
[{"$nulls":16},"NANTUCKETMAO-1",2232,"NANTUCKETMAO-1",2520]
[{"$nulls":16},"NANTUCKETMAO-2",2421,"NANTUCKETMAO-2",3000]
[{"$nulls":16},"NANTUCKETMAO-3",2814,"NANTUCKETMAO-3",3369]
[{"$nulls":16},"NANTUCKETMAO-4",3159,"NANTUCKETMAO-4",3693]
[{"$nulls":16},"NANTUCKETMAO-5",3243,"NANTUCKETMAO-5",3921]
[{"$nulls":16},"NANTUCKETMAO-6",3378,"NANTUCKETMAO-6",3960]
[{"$nulls":16},"NANTUCKETMAO-7",3444,"NANTUCKETMAO-7",3999]
[{"$nulls":16},"BOSTONMAE-1",1575,"BOSTONMAE-1",2097]
[{"$nulls":16},"BOSTONMAE-2",1575,"BOSTONMAE-2",2097]
[{"$nulls":16},"BOSTONMAE-3",1575,"BOSTONMAE-3",2097]
[{"$nulls":16},"BOSTONMAE-4",1575,"BOSTONMAE-4",2097]
[{"$nulls":16},"BOSTONMAE-5",1755,"BOSTONMAE-5",2307]
[{"$nulls":16},"BOSTONMAE-6",1917,"BOSTONMAE-6",2508]
[{"$nulls":16},"BOSTONMAE-7",2112,"BOSTONMAE-7",2550]
[{"$nulls":16},"BOSTONMAE-8",2346,"BOSTONMAE-8",2598]
[{"$nulls":16},"BOSTONMAE-9",2409,"BOSTONMAE-9",2772]
[{"$nulls":16},"BOSTONMAW-1",2019,"BOSTONMAW-1",2508]
[{"$nulls":16},"BOSTONMAW-2",2346,"BOSTONMAW-2",2571]
[{"$nulls":16},"BOSTONMAW-3",2415,"BOSTONMAW-3",2628]
[{"$nulls":16},"BOSTONMAW-4",2517,"BOSTONMAW-4",2826]
[{"$nulls":16},"BOSTONMAW-5",2562,"BOSTONMAW-5",3063]
[{"$nulls":16},"BOSTONMAO-1E",2307,"BOSTONMAO-1E",2559]
[{"$nulls":16},"BOSTONMAO-2E",2394,"BOSTONMAO-2E",2619]
[{"$nulls":16},"BOSTONMAO-3E",2508,"BOSTONMAO-3E",2862]
[{"$nulls":16},"BOSTONMAO-1",1890,"BOSTONMAO-1",2328]
[{"$nulls":16},"BOSTONMAO-2",2235,"BOSTONMAO-2",2502]
[{"$nulls":16},"BOSTONMAO-3",2436,"BOSTONMAO-3",2625]
[{"$nulls":16},"BOSTONMAO-4",2556,"BOSTONMAO-4",3153]
[{"$nulls":16},"BOSTONMAO-5",2649,"BOSTONMAO-5",3534]
[{"$nulls":16},"BOSTONMAO-6",2676,"BOSTONMAO-6",3567]
[{"$nulls":16},"BOSTONMAO-7",2703,"BOSTONMAO-7",3603]
[{"$nulls":16},"CAPECODMAE-1",1167,"CAPECODMAE-1",1473]
[{"$nulls":16},"CAPECODMAE-2",1167,"CAPECODMAE-2",1473]
[{"$nulls":16},"CAPECODMAE-3",1167,"CAPECODMAE-3",1473]
[{"$nulls":16},"CAPECODMAE-4",1167,"CAPECODMAE-4",1473]
[{"$nulls":16},"CAPECODMAE-5",1320,"CAPECODMAE-5",1551]
[{"$nulls":16},"CAPECODMAE-6",1422,"CAPECODMAE-6",1896]
[{"$nulls":16},"CAPECODMAE-7",1479,"CAPECODMAE-7",1929]
[{"$nulls":16},"CAPECODMAE-8",1620,"CAPECODMAE-8",1962]
[{"$nulls":16},"CAPECODMAE-9",1728,"CAPECODMAE-9",2049]
[{"$nulls":16},"CAPECODMAW-1",1443,"CAPECODMAW-1",1899]
[{"$nulls":16},"CAPECODMAW-2",1617,"CAPECODMAW-2",1944]
[{"$nulls":16},"CAPECODMAW-3",1737,"CAPECODMAW-3",1986]
[{"$nulls":16},"CAPECODMAW-4",1905,"CAPECODMAW-4",2076]
[{"$nulls":16},"CAPECODMAW-5",1938,"CAPECODMAW-5",2181]
[{"$nulls":16},"CAPECODMAO-1E",1551,"CAPECODMAO-1E",1935]
[{"$nulls":16},"CAPECODMAO-2E",1704,"CAPECODMAO-2E",1980]
[{"$nulls":16},"CAPECODMAO-3E",1896,"CAPECODMAO-3E",2091]
[{"$nulls":16},"CAPECODMAO-1",1395,"CAPECODMAO-1",1590]
[{"$nulls":16},"CAPECODMAO-2",1524,"CAPECODMAO-2",1890]
[{"$nulls":16},"CAPECODMAO-3",1773,"CAPECODMAO-3",1983]
[{"$nulls":16},"CAPECODMAO-4",1932,"CAPECODMAO-4",2223]
[{"$nulls":16},"CAPECODMAO-5",1953,"CAPECODMAO-5",2394]
[{"$nulls":16},"CAPECODMAO-6",1986,"CAPECODMAO-6",2418]
[{"$nulls":16},"CAPECODMAO-7",2025,"CAPECODMAO-7",2442]
[{"$nulls":16},"WORCESTERMAE-1",1068,"WORCESTERMAE-1",1425]
[{"$nulls":16},"WORCESTERMAE-2",1068,"WORCESTERMAE-2",1425]
[{"$nulls":16},"WORCESTERMAE-3",1068,"WORCESTERMAE-3",1425]
[{"$nulls":16},"WORCESTERMAE-4",1068,"WORCESTERMAE-4",1425]
[{"$nulls":16},"WORCESTERMAE-5",1218,"WORCESTERMAE-5",1554]
[{"$nulls":16},"WORCESTERMAE-6",1311,"WORCESTERMAE-6",1749]
[{"$nulls":16},"WORCESTERMAE-7",1431,"WORCESTERMAE-7",1866]
[{"$nulls":16},"WORCESTERMAE-8",1593,"WORCESTERMAE-8",1995]
[{"$nulls":16},"WORCESTERMAE-9",1653,"WORCESTERMAE-9",2199]
[{"$nulls":16},"WORCESTERMAW-1",1374,"WORCESTERMAW-1",1752]
[{"$nulls":16},"WORCESTERMAW-2",1590,"WORCESTERMAW-2",1920]
[{"$nulls":16},"WORCESTERMAW-3",1659,"WORCESTERMAW-3",2076]
[{"$nulls":16},"WORCESTERMAW-4",1779,"WORCESTERMAW-4",2244]
[{"$nulls":16},"WORCESTERMAW-5",1896,"WORCESTERMAW-5",2439]
[{"$nulls":16},"WORCESTERMAO-1E",1554,"WORCESTERMAO-1E",1893]
[{"$nulls":16},"WORCESTERMAO-2E",1641,"WORCESTERMAO-2E",2055]
[{"$nulls":16},"WORCESTERMAO-3E",1749,"WORCESTERMAO-3E",2274]
[{"$nulls":16},"WORCESTERMAO-1",1293,"WORCESTERMAO-1",1575]
[{"$nulls":16},"WORCESTERMAO-2",1509,"WORCESTERMAO-2",1746]
[{"$nulls":16},"WORCESTERMAO-3",1680,"WORCESTERMAO-3",2070]
[{"$nulls":16},"WORCESTERMAO-4",1887,"WORCESTERMAO-4",2514]
[{"$nulls":16},"WORCESTERMAO-5",2124,"WORCESTERMAO-5",2832]
[{"$nulls":16},"WORCESTERMAO-6",2145,"WORCESTERMAO-6",2859]
[{"$nulls":16},"WORCESTERMAO-7",2166,"WORCESTERMAO-7",2889]
[{"$nulls":16},"FORT DEVENS/AYERMAE-1",1080,"FORT DEVENS/AYERMAE-1",1443]
[{"$nulls":16},"FORT DEVENS/AYERMAE-2",1080,"FORT DEVENS/AYERMAE-2",1443]
[{"$nulls":16},"FORT DEVENS/AYERMAE-3",1080,"FORT DEVENS/AYERMAE-3",1443]
[{"$nulls":16},"FORT DEVENS/AYERMAE-4",1080,"FORT DEVENS/AYERMAE-4",1443]
[{"$nulls":16},"FORT DEVENS/AYERMAE-5",1212,"FORT DEVENS/AYERMAE-5",1587]
[{"$nulls":16},"FORT DEVENS/AYERMAE-6",1392,"FORT DEVENS/AYERMAE-6",1854]
[{"$nulls":16},"FORT DEVENS/AYERMAE-7",1467,"FORT DEVENS/AYERMAE-7",1953]
[{"$nulls":16},"FORT DEVENS/AYERMAE-8",1641,"FORT DEVENS/AYERMAE-8",2064]
[{"$nulls":16},"FORT DEVENS/AYERMAE-9",1722,"FORT DEVENS/AYERMAE-9",2181]
[{"$nulls":16},"FORT DEVENS/AYERMAW-1",1392,"FORT DEVENS/AYERMAW-1",1857]
[{"$nulls":16},"FORT DEVENS/AYERMAW-2",1638,"FORT DEVENS/AYERMAW-2",1998]
[{"$nulls":16},"FORT DEVENS/AYERMAW-3",1731,"FORT DEVENS/AYERMAW-3",2133]
[{"$nulls":16},"FORT DEVENS/AYERMAW-4",1878,"FORT DEVENS/AYERMAW-4",2199]
[{"$nulls":16},"FORT DEVENS/AYERMAW-5",1980,"FORT DEVENS/AYERMAW-5",2277]
[{"$nulls":16},"FORT DEVENS/AYERMAO-1E",1587,"FORT DEVENS/AYERMAO-1E",1977]
[{"$nulls":16},"FORT DEVENS/AYERMAO-2E",1704,"FORT DEVENS/AYERMAO-2E",2112]
[{"$nulls":16},"FORT DEVENS/AYERMAO-3E",1854,"FORT DEVENS/AYERMAO-3E",2211]
[{"$nulls":16},"FORT DEVENS/AYERMAO-1",1296,"FORT DEVENS/AYERMAO-1",1614]
[{"$nulls":16},"FORT DEVENS/AYERMAO-2",1536,"FORT DEVENS/AYERMAO-2",1848]
[{"$nulls":16},"FORT DEVENS/AYERMAO-3",1758,"FORT DEVENS/AYERMAO-3",2127]
[{"$nulls":16},"FORT DEVENS/AYERMAO-4",1965,"FORT DEVENS/AYERMAO-4",2307]
[{"$nulls":16},"FORT DEVENS/AYERMAO-5",2031,"FORT DEVENS/AYERMAO-5",2433]
[{"$nulls":16},"FORT DEVENS/AYERMAO-6",2133,"FORT DEVENS/AYERMAO-6",2457]
[{"$nulls":16},"FORT DEVENS/AYERMAO-7",2175,"FORT DEVENS/AYERMAO-7",2484]
[{"$nulls":16},"PLYMOUTHMAE-1",1128,"PLYMOUTHMAE-1",1488]
[{"$nulls":16},"PLYMOUTHMAE-2",1128,"PLYMOUTHMAE-2",1488]
[{"$nulls":16},"PLYMOUTHMAE-3",1128,"PLYMOUTHMAE-3",1488]
[{"$nulls":16},"PLYMOUTHMAE-4",1128,"PLYMOUTHMAE-4",1488]
[{"$nulls":16},"PLYMOUTHMAE-5",1266,"PLYMOUTHMAE-5",1641]
[{"$nulls":16},"PLYMOUTHMAE-6",1599,"PLYMOUTHMAE-6",2130]
[{"$nulls":16},"PLYMOUTHMAE-7",1602,"PLYMOUTHMAE-7",2139]
[{"$nulls":16},"PLYMOUTHMAE-8",1740,"PLYMOUTHMAE-8",2145]
[{"$nulls":16},"PLYMOUTHMAE-9",1890,"PLYMOUTHMAE-9",2244]
[{"$nulls":16},"PLYMOUTHMAW-1",1599,"PLYMOUTHMAW-1",2130]
[{"$nulls":16},"PLYMOUTHMAW-2",1734,"PLYMOUTHMAW-2",2142]
[{"$nulls":16},"PLYMOUTHMAW-3",1905,"PLYMOUTHMAW-3",2151]
[{"$nulls":16},"PLYMOUTHMAW-4",2133,"PLYMOUTHMAW-4",2280]
[{"$nulls":16},"PLYMOUTHMAW-5",2139,"PLYMOUTHMAW-5",2433]
[{"$nulls":16},"PLYMOUTHMAO-1E",1641,"PLYMOUTHMAO-1E",2139]
[{"$nulls":16},"PLYMOUTHMAO-2E",1857,"PLYMOUTHMAO-2E",2151]
[{"$nulls":16},"PLYMOUTHMAO-3E",2130,"PLYMOUTHMAO-3E",2304]
[{"$nulls":16},"PLYMOUTHMAO-1",1335,"PLYMOUTHMAO-1",1695]
[{"$nulls":16},"PLYMOUTHMAO-2",1590,"PLYMOUTHMAO-2",2121]
[{"$nulls":16},"PLYMOUTHMAO-3",1953,"PLYMOUTHMAO-3",2151]
[{"$nulls":16},"PLYMOUTHMAO-4",2139,"PLYMOUTHMAO-4",2490]
[{"$nulls":16},"PLYMOUTHMAO-5",2142,"PLYMOUTHMAO-5",2736]
[{"$nulls":16},"PLYMOUTHMAO-6",2151,"PLYMOUTHMAO-6",2763]
[{"$nulls":16},"PLYMOUTHMAO-7",2193,"PLYMOUTHMAO-7",2793]
[{"$nulls":16},"ESSEX COUNTYMAE-1",1311,"ESSEX COUNTYMAE-1",1746]
[{"$nulls":16},"ESSEX COUNTYMAE-2",1311,"ESSEX COUNTYMAE-2",1746]
[{"$nulls":16},"ESSEX COUNTYMAE-3",1311,"ESSEX COUNTYMAE-3",1746]
[{"$nulls":16},"ESSEX COUNTYMAE-4",1311,"ESSEX COUNTYMAE-4",1746]
[{"$nulls":16},"ESSEX COUNTYMAE-5",1473,"ESSEX COUNTYMAE-5",1920]
[{"$nulls":16},"ESSEX COUNTYMAE-6",1641,"ESSEX COUNTYMAE-6",2190]
[{"$nulls":16},"ESSEX COUNTYMAE-7",1758,"ESSEX COUNTYMAE-7",2274]
[{"$nulls":16},"ESSEX COUNTYMAE-8",1974,"ESSEX COUNTYMAE-8",2367]
[{"$nulls":16},"ESSEX COUNTYMAE-9",2058,"ESSEX COUNTYMAE-9",2532]
[{"$nulls":16},"ESSEX COUNTYMAW-1",1680,"ESSEX COUNTYMAW-1",2190]
[{"$nulls":16},"ESSEX COUNTYMAW-2",1971,"ESSEX COUNTYMAW-2",2313]
[{"$nulls":16},"ESSEX COUNTYMAW-3",2064,"ESSEX COUNTYMAW-3",2427]
[{"$nulls":16},"ESSEX COUNTYMAW-4",2211,"ESSEX COUNTYMAW-4",2574]
[{"$nulls":16},"ESSEX COUNTYMAW-5",2298,"ESSEX COUNTYMAW-5",2742]
[{"$nulls":16},"ESSEX COUNTYMAO-1E",1920,"ESSEX COUNTYMAO-1E",2295]
[{"$nulls":16},"ESSEX COUNTYMAO-2E",2037,"ESSEX COUNTYMAO-2E",2412]
[{"$nulls":16},"ESSEX COUNTYMAO-3E",2190,"ESSEX COUNTYMAO-3E",2598]
[{"$nulls":16},"ESSEX COUNTYMAO-1",1575,"ESSEX COUNTYMAO-1",1950]
[{"$nulls":16},"ESSEX COUNTYMAO-2",1860,"ESSEX COUNTYMAO-2",2184]
[{"$nulls":16},"ESSEX COUNTYMAO-3",2091,"ESSEX COUNTYMAO-3",2424]
[{"$nulls":16},"ESSEX COUNTYMAO-4",2286,"ESSEX COUNTYMAO-4",2808]
[{"$nulls":16},"ESSEX COUNTYMAO-5",2340,"ESSEX COUNTYMAO-5",3084]
[{"$nulls":16},"ESSEX COUNTYMAO-6",2427,"ESSEX COUNTYMAO-6",3117]
[{"$nulls":16},"ESSEX COUNTYMAO-7",2478,"ESSEX COUNTYMAO-7",3147]
[{"$nulls":16},"HAMPDEN COUNTYMAE-1",1032,"HAMPDEN COUNTYMAE-1",1347]
[{"$nulls":16},"HAMPDEN COUNTYMAE-2",1032,"HAMPDEN COUNTYMAE-2",1347]
[{"$nulls":16},"HAMPDEN COUNTYMAE-3",1032,"HAMPDEN COUNTYMAE-3",1347]
[{"$nulls":16},"HAMPDEN COUNTYMAE-4",1032,"HAMPDEN COUNTYMAE-4",1347]
[{"$nulls":16},"HAMPDEN COUNTYMAE-5",1170,"HAMPDEN COUNTYMAE-5",1455]
[{"$nulls":16},"HAMPDEN COUNTYMAE-6",1254,"HAMPDEN COUNTYMAE-6",1656]
[{"$nulls":16},"HAMPDEN COUNTYMAE-7",1353,"HAMPDEN COUNTYMAE-7",1773]
[{"$nulls":16},"HAMPDEN COUNTYMAE-8",1494,"HAMPDEN COUNTYMAE-8",1902]
[{"$nulls":16},"HAMPDEN COUNTYMAE-9",1557,"HAMPDEN COUNTYMAE-9",2043]
[{"$nulls":16},"HAMPDEN COUNTYMAW-1",1305,"HAMPDEN COUNTYMAW-1",1659]
[{"$nulls":16},"HAMPDEN COUNTYMAW-2",1494,"HAMPDEN COUNTYMAW-2",1827]
[{"$nulls":16},"HAMPDEN COUNTYMAW-3",1563,"HAMPDEN COUNTYMAW-3",1983]
[{"$nulls":16},"HAMPDEN COUNTYMAW-4",1686,"HAMPDEN COUNTYMAW-4",2067]
[{"$nulls":16},"HAMPDEN COUNTYMAW-5",1803,"HAMPDEN COUNTYMAW-5",2166]
[{"$nulls":16},"HAMPDEN COUNTYMAO-1E",1455,"HAMPDEN COUNTYMAO-1E",1800]
[{"$nulls":16},"HAMPDEN COUNTYMAO-2E",1542,"HAMPDEN COUNTYMAO-2E",1962]
[{"$nulls":16},"HAMPDEN COUNTYMAO-3E",1656,"HAMPDEN COUNTYMAO-3E",2082]
[{"$nulls":16},"HAMPDEN COUNTYMAO-1",1239,"HAMPDEN COUNTYMAO-1",1476]
[{"$nulls":16},"HAMPDEN COUNTYMAO-2",1419,"HAMPDEN COUNTYMAO-2",1653]
[{"$nulls":16},"HAMPDEN COUNTYMAO-3",1584,"HAMPDEN COUNTYMAO-3",1977]
[{"$nulls":16},"HAMPDEN COUNTYMAO-4",1788,"HAMPDEN COUNTYMAO-4",2202]
[{"$nulls":16},"HAMPDEN COUNTYMAO-5",1863,"HAMPDEN COUNTYMAO-5",2361]
[{"$nulls":16},"HAMPDEN COUNTYMAO-6",1983,"HAMPDEN COUNTYMAO-6",2385]
[{"$nulls":16},"HAMPDEN COUNTYMAO-7",2025,"HAMPDEN COUNTYMAO-7",2409]
[{"$nulls":16},"MARTHA'S VINEYARDMAE-1",1479,"MARTHA'S VINEYARDMAE-1",1974]
[{"$nulls":16},"MARTHA'S VINEYARDMAE-2",1479,"MARTHA'S VINEYARDMAE-2",1974]
[{"$nulls":16},"MARTHA'S VINEYARDMAE-3",1479,"MARTHA'S VINEYARDMAE-3",1974]
[{"$nulls":16},"MARTHA'S VINEYARDMAE-4",1479,"MARTHA'S VINEYARDMAE-4",1974]
[{"$nulls":16},"MARTHA'S VINEYARDMAE-5",1680,"MARTHA'S VINEYARDMAE-5",2163]
[{"$nulls":16},"MARTHA'S VINEYARDMAE-6",1809,"MARTHA'S VINEYARDMAE-6",2397]
[{"$nulls":16},"MARTHA'S VINEYARDMAE-7",1983,"MARTHA'S VINEYARDMAE-7",2442]
[{"$nulls":16},"MARTHA'S VINEYARDMAE-8",2211,"MARTHA'S VINEYARDMAE-8",2490]
[{"$nulls":16},"MARTHA'S VINEYARDMAE-9",2283,"MARTHA'S VINEYARDMAE-9",2607]
[{"$nulls":16},"MARTHA'S VINEYARDMAW-1",1902,"MARTHA'S VINEYARDMAW-1",2397]
[{"$nulls":16},"MARTHA'S VINEYARDMAW-2",2208,"MARTHA'S VINEYARDMAW-2",2463]
[{"$nulls":16},"MARTHA'S VINEYARDMAW-3",2289,"MARTHA'S VINEYARDMAW-3",2523]
[{"$nulls":16},"MARTHA'S VINEYARDMAW-4",2406,"MARTHA'S VINEYARDMAW-4",2637]
[{"$nulls":16},"MARTHA'S VINEYARDMAW-5",2454,"MARTHA'S VINEYARDMAW-5",2772]
[{"$nulls":16},"MARTHA'S VINEYARDMAO-1E",2163,"MARTHA'S VINEYARDMAO-1E",2451]
[{"$nulls":16},"MARTHA'S VINEYARDMAO-2E",2265,"MARTHA'S VINEYARDMAO-2E",2514]
[{"$nulls":16},"MARTHA'S VINEYARDMAO-3E",2397,"MARTHA'S VINEYARDMAO-3E",2658]
[{"$nulls":16},"MARTHA'S VINEYARDMAO-1",1782,"MARTHA'S VINEYARDMAO-1",2190]
[{"$nulls":16},"MARTHA'S VINEYARDMAO-2",2097,"MARTHA'S VINEYARDMAO-2",2391]
[{"$nulls":16},"MARTHA'S VINEYARDMAO-3",2313,"MARTHA'S VINEYARDMAO-3",2520]
[{"$nulls":16},"MARTHA'S VINEYARDMAO-4",2448,"MARTHA'S VINEYARDMAO-4",2823]
[{"$nulls":16},"MARTHA'S VINEYARDMAO-5",2475,"MARTHA'S VINEYARDMAO-5",3039]
[{"$nulls":16},"MARTHA'S VINEYARDMAO-6",2523,"MARTHA'S VINEYARDMAO-6",3069]
[{"$nulls":16},"MARTHA'S VINEYARDMAO-7",2574,"MARTHA'S VINEYARDMAO-7",3099]
[{"$nulls":16},"HANSCOMB FIELDMAE-1",1461,"HANSCOMB FIELDMAE-1",1950]
[{"$nulls":16},"HANSCOMB FIELDMAE-2",1461,"HANSCOMB FIELDMAE-2",1950]
[{"$nulls":16},"HANSCOMB FIELDMAE-3",1461,"HANSCOMB FIELDMAE-3",1950]
[{"$nulls":16},"HANSCOMB FIELDMAE-4",1461,"HANSCOMB FIELDMAE-4",1950]
[{"$nulls":16},"HANSCOMB FIELDMAE-5",1647,"HANSCOMB FIELDMAE-5",2196]
[{"$nulls":16},"HANSCOMB FIELDMAE-6",1767,"HANSCOMB FIELDMAE-6",2355]
[{"$nulls":16},"HANSCOMB FIELDMAE-7",1965,"HANSCOMB FIELDMAE-7",2493]
[{"$nulls":16},"HANSCOMB FIELDMAE-8",2226,"HANSCOMB FIELDMAE-8",2646]
[{"$nulls":16},"HANSCOMB FIELDMAE-9",2277,"HANSCOMB FIELDMAE-9",2805]
[{"$nulls":16},"HANSCOMB FIELDMAW-1",1857,"HANSCOMB FIELDMAW-1",2358]
[{"$nulls":16},"HANSCOMB FIELDMAW-2",2226,"HANSCOMB FIELDMAW-2",2556]
[{"$nulls":16},"HANSCOMB FIELDMAW-3",2280,"HANSCOMB FIELDMAW-3",2742]
[{"$nulls":16},"HANSCOMB FIELDMAW-4",2388,"HANSCOMB FIELDMAW-4",2829]
[{"$nulls":16},"HANSCOMB FIELDMAW-5",2529,"HANSCOMB FIELDMAW-5",2931]
[{"$nulls":16},"HANSCOMB FIELDMAO-1E",2196,"HANSCOMB FIELDMAO-1E",2526]
[{"$nulls":16},"HANSCOMB FIELDMAO-2E",2265,"HANSCOMB FIELDMAO-2E",2715]
[{"$nulls":16},"HANSCOMB FIELDMAO-3E",2355,"HANSCOMB FIELDMAO-3E",2844]
[{"$nulls":16},"HANSCOMB FIELDMAO-1",1704,"HANSCOMB FIELDMAO-1",2211]
[{"$nulls":16},"HANSCOMB FIELDMAO-2",2112,"HANSCOMB FIELDMAO-2",2352]
[{"$nulls":16},"HANSCOMB FIELDMAO-3",2298,"HANSCOMB FIELDMAO-3",2733]
[{"$nulls":16},"HANSCOMB FIELDMAO-4",2508,"HANSCOMB FIELDMAO-4",2970]
[{"$nulls":16},"HANSCOMB FIELDMAO-5",2598,"HANSCOMB FIELDMAO-5",3135]
[{"$nulls":16},"HANSCOMB FIELDMAO-6",2742,"HANSCOMB FIELDMAO-6",3165]
[{"$nulls":16},"HANSCOMB FIELDMAO-7",2796,"HANSCOMB FIELDMAO-7",3198]
[{"$nulls":16},"ABERDEEN PROVING GROUNDSMDE-1",993,"ABERDEEN PROVING GROUNDSMDE-1",1317]
[{"$nulls":16},"ABERDEEN PROVING GROUNDSMDE-2",993,"ABERDEEN PROVING GROUNDSMDE-2",1317]
[{"$nulls":16},"ABERDEEN PROVING GROUNDSMDE-3",993,"ABERDEEN PROVING GROUNDSMDE-3",1317]
[{"$nulls":16},"ABERDEEN PROVING GROUNDSMDE-4",993,"ABERDEEN PROVING GROUNDSMDE-4",1317]
[{"$nulls":16},"ABERDEEN PROVING GROUNDSMDE-5",1140,"ABERDEEN PROVING GROUNDSMDE-5",1422]
[{"$nulls":16},"ABERDEEN PROVING GROUNDSMDE-6",1299,"ABERDEEN PROVING GROUNDSMDE-6",1731]
[{"$nulls":16},"ABERDEEN PROVING GROUNDSMDE-7",1338,"ABERDEEN PROVING GROUNDSMDE-7",1785]
[{"$nulls":16},"ABERDEEN PROVING GROUNDSMDE-8",1485,"ABERDEEN PROVING GROUNDSMDE-8",1842]
[{"$nulls":16},"ABERDEEN PROVING GROUNDSMDE-9",1581,"ABERDEEN PROVING GROUNDSMDE-9",1947]
[{"$nulls":16},"ABERDEEN PROVING GROUNDSMDW-1",1299,"ABERDEEN PROVING GROUNDSMDW-1",1734]
[{"$nulls":16},"ABERDEEN PROVING GROUNDSMDW-2",1482,"ABERDEEN PROVING GROUNDSMDW-2",1809]
[{"$nulls":16},"ABERDEEN PROVING GROUNDSMDW-3",1590,"ABERDEEN PROVING GROUNDSMDW-3",1878]
[{"$nulls":16},"ABERDEEN PROVING GROUNDSMDW-4",1746,"ABERDEEN PROVING GROUNDSMDW-4",1971]
[{"$nulls":16},"ABERDEEN PROVING GROUNDSMDW-5",1797,"ABERDEEN PROVING GROUNDSMDW-5",2079]
[{"$nulls":16},"ABERDEEN PROVING GROUNDSMDO-1E",1422,"ABERDEEN PROVING GROUNDSMDO-1E",1797]
[{"$nulls":16},"ABERDEEN PROVING GROUNDSMDO-2E",1560,"ABERDEEN PROVING GROUNDSMDO-2E",1869]
[{"$nulls":16},"ABERDEEN PROVING GROUNDSMDO-3E",1731,"ABERDEEN PROVING GROUNDSMDO-3E",1986]
[{"$nulls":16},"ABERDEEN PROVING GROUNDSMDO-1",1212,"ABERDEEN PROVING GROUNDSMDO-1",1458]
[{"$nulls":16},"ABERDEEN PROVING GROUNDSMDO-2",1386,"ABERDEEN PROVING GROUNDSMDO-2",1725]
[{"$nulls":16},"ABERDEEN PROVING GROUNDSMDO-3",1620,"ABERDEEN PROVING GROUNDSMDO-3",1875]
[{"$nulls":16},"ABERDEEN PROVING GROUNDSMDO-4",1791,"ABERDEEN PROVING GROUNDSMDO-4",2121]
[{"$nulls":16},"ABERDEEN PROVING GROUNDSMDO-5",1824,"ABERDEEN PROVING GROUNDSMDO-5",2295]
[{"$nulls":16},"ABERDEEN PROVING GROUNDSMDO-6",1878,"ABERDEEN PROVING GROUNDSMDO-6",2319]
[{"$nulls":16},"ABERDEEN PROVING GROUNDSMDO-7",1917,"ABERDEEN PROVING GROUNDSMDO-7",2343]
[{"$nulls":16},"ANNAPOLISMDE-1",1242,"ANNAPOLISMDE-1",1626]
[{"$nulls":16},"ANNAPOLISMDE-2",1242,"ANNAPOLISMDE-2",1626]
[{"$nulls":16},"ANNAPOLISMDE-3",1242,"ANNAPOLISMDE-3",1626]
[{"$nulls":16},"ANNAPOLISMDE-4",1242,"ANNAPOLISMDE-4",1626]
[{"$nulls":16},"ANNAPOLISMDE-5",1380,"ANNAPOLISMDE-5",1803]
[{"$nulls":16},"ANNAPOLISMDE-6",1545,"ANNAPOLISMDE-6",2058]
[{"$nulls":16},"ANNAPOLISMDE-7",1638,"ANNAPOLISMDE-7",2163]
[{"$nulls":16},"ANNAPOLISMDE-8",1854,"ANNAPOLISMDE-8",2277]
[{"$nulls":16},"ANNAPOLISMDE-9",1935,"ANNAPOLISMDE-9",2442]
[{"$nulls":16},"ANNAPOLISMDW-1",1557,"ANNAPOLISMDW-1",2061]
[{"$nulls":16},"ANNAPOLISMDW-2",1851,"ANNAPOLISMDW-2",2211]
[{"$nulls":16},"ANNAPOLISMDW-3",1941,"ANNAPOLISMDW-3",2349]
[{"$nulls":16},"ANNAPOLISMDW-4",2085,"ANNAPOLISMDW-4",2478]
[{"$nulls":16},"ANNAPOLISMDW-5",2190,"ANNAPOLISMDW-5",2631]
[{"$nulls":16},"ANNAPOLISMDO-1E",1803,"ANNAPOLISMDO-1E",2187]
[{"$nulls":16},"ANNAPOLISMDO-2E",1917,"ANNAPOLISMDO-2E",2328]
[{"$nulls":16},"ANNAPOLISMDO-3E",2058,"ANNAPOLISMDO-3E",2502]
[{"$nulls":16},"ANNAPOLISMDO-1",1449,"ANNAPOLISMDO-1",1833]
[{"$nulls":16},"ANNAPOLISMDO-2",1743,"ANNAPOLISMDO-2",2055]
[{"$nulls":16},"ANNAPOLISMDO-3",1968,"ANNAPOLISMDO-3",2343]
[{"$nulls":16},"ANNAPOLISMDO-4",2175,"ANNAPOLISMDO-4",2688]
[{"$nulls":16},"ANNAPOLISMDO-5",2241,"ANNAPOLISMDO-5",2934]
[{"$nulls":16},"ANNAPOLISMDO-6",2349,"ANNAPOLISMDO-6",2964]
[{"$nulls":16},"ANNAPOLISMDO-7",2397,"ANNAPOLISMDO-7",2994]
[{"$nulls":16},"BALTIMOREMDE-1",1314,"BALTIMOREMDE-1",1752]
[{"$nulls":16},"BALTIMOREMDE-2",1314,"BALTIMOREMDE-2",1752]
[{"$nulls":16},"BALTIMOREMDE-3",1314,"BALTIMOREMDE-3",1752]
[{"$nulls":16},"BALTIMOREMDE-4",1314,"BALTIMOREMDE-4",1752]
[{"$nulls":16},"BALTIMOREMDE-5",1464,"BALTIMOREMDE-5",1950]
[{"$nulls":16},"BALTIMOREMDE-6",1581,"BALTIMOREMDE-6",2061]
[{"$nulls":16},"BALTIMOREMDE-7",1764,"BALTIMOREMDE-7",2208]
[{"$nulls":16},"BALTIMOREMDE-8",1971,"BALTIMOREMDE-8",2364]
[{"$nulls":16},"BALTIMOREMDE-9",2007,"BALTIMOREMDE-9",2529]
[{"$nulls":16},"BALTIMOREMDW-1",1677,"BALTIMOREMDW-1",2064]
[{"$nulls":16},"BALTIMOREMDW-2",1971,"BALTIMOREMDW-2",2271]
[{"$nulls":16},"BALTIMOREMDW-3",2010,"BALTIMOREMDW-3",2466]
[{"$nulls":16},"BALTIMOREMDW-4",2097,"BALTIMOREMDW-4",2553]
[{"$nulls":16},"BALTIMOREMDW-5",2244,"BALTIMOREMDW-5",2655]
[{"$nulls":16},"BALTIMOREMDO-1E",1950,"BALTIMOREMDO-1E",2238]
[{"$nulls":16},"BALTIMOREMDO-2E",1998,"BALTIMOREMDO-2E",2439]
[{"$nulls":16},"BALTIMOREMDO-3E",2061,"BALTIMOREMDO-3E",2568]
[{"$nulls":16},"BALTIMOREMDO-1",1554,"BALTIMOREMDO-1",1962]
[{"$nulls":16},"BALTIMOREMDO-2",1884,"BALTIMOREMDO-2",2058]
[{"$nulls":16},"BALTIMOREMDO-3",2019,"BALTIMOREMDO-3",2460]
[{"$nulls":16},"BALTIMOREMDO-4",2223,"BALTIMOREMDO-4",2694]
[{"$nulls":16},"BALTIMOREMDO-5",2316,"BALTIMOREMDO-5",2859]
[{"$nulls":16},"BALTIMOREMDO-6",2466,"BALTIMOREMDO-6",2889]
[{"$nulls":16},"BALTIMOREMDO-7",2517,"BALTIMOREMDO-7",2916]
[{"$nulls":16},"FORT DETRICKMDE-1",1065,"FORT DETRICKMDE-1",1419]
[{"$nulls":16},"FORT DETRICKMDE-2",1065,"FORT DETRICKMDE-2",1419]
[{"$nulls":16},"FORT DETRICKMDE-3",1065,"FORT DETRICKMDE-3",1419]
[{"$nulls":16},"FORT DETRICKMDE-4",1065,"FORT DETRICKMDE-4",1419]
[{"$nulls":16},"FORT DETRICKMDE-5",1230,"FORT DETRICKMDE-5",1530]
[{"$nulls":16},"FORT DETRICKMDE-6",1344,"FORT DETRICKMDE-6",1791]
[{"$nulls":16},"FORT DETRICKMDE-7",1431,"FORT DETRICKMDE-7",1911]
[{"$nulls":16},"FORT DETRICKMDE-8",1581,"FORT DETRICKMDE-8",2040]
[{"$nulls":16},"FORT DETRICKMDE-9",1662,"FORT DETRICKMDE-9",2211]
[{"$nulls":16},"FORT DETRICKMDW-1",1377,"FORT DETRICKMDW-1",1794]
[{"$nulls":16},"FORT DETRICKMDW-2",1581,"FORT DETRICKMDW-2",1962]
[{"$nulls":16},"FORT DETRICKMDW-3",1671,"FORT DETRICKMDW-3",2121]
[{"$nulls":16},"FORT DETRICKMDW-4",1821,"FORT DETRICKMDW-4",2244]
[{"$nulls":16},"FORT DETRICKMDW-5",1941,"FORT DETRICKMDW-5",2391]
[{"$nulls":16},"FORT DETRICKMDO-1E",1530,"FORT DETRICKMDO-1E",1935]
[{"$nulls":16},"FORT DETRICKMDO-2E",1644,"FORT DETRICKMDO-2E",2097]
[{"$nulls":16},"FORT DETRICKMDO-3E",1791,"FORT DETRICKMDO-3E",2268]
[{"$nulls":16},"FORT DETRICKMDO-1",1311,"FORT DETRICKMDO-1",1560]
[{"$nulls":16},"FORT DETRICKMDO-2",1494,"FORT DETRICKMDO-2",1785]
[{"$nulls":16},"FORT DETRICKMDO-3",1698,"FORT DETRICKMDO-3",2115]
[{"$nulls":16},"FORT DETRICKMDO-4",1923,"FORT DETRICKMDO-4",2448]
[{"$nulls":16},"FORT DETRICKMDO-5",2016,"FORT DETRICKMDO-5",2685]
[{"$nulls":16},"FORT DETRICKMDO-6",2121,"FORT DETRICKMDO-6",2712]
[{"$nulls":16},"FORT DETRICKMDO-7",2163,"FORT DETRICKMDO-7",2739]
[{"$nulls":16},"FORT G. G. MEADEMDE-1",1197,"FORT G. G. MEADEMDE-1",1596]
[{"$nulls":16},"FORT G. G. MEADEMDE-2",1197,"FORT G. G. MEADEMDE-2",1596]
[{"$nulls":16},"FORT G. G. MEADEMDE-3",1197,"FORT G. G. MEADEMDE-3",1596]
[{"$nulls":16},"FORT G. G. MEADEMDE-4",1197,"FORT G. G. MEADEMDE-4",1596]
[{"$nulls":16},"FORT G. G. MEADEMDE-5",1377,"FORT G. G. MEADEMDE-5",1836]
[{"$nulls":16},"FORT G. G. MEADEMDE-6",1575,"FORT G. G. MEADEMDE-6",2100]
[{"$nulls":16},"FORT G. G. MEADEMDE-7",1644,"FORT G. G. MEADEMDE-7",2193]
[{"$nulls":16},"FORT G. G. MEADEMDE-8",1890,"FORT G. G. MEADEMDE-8",2295]
[{"$nulls":16},"FORT G. G. MEADEMDE-9",1971,"FORT G. G. MEADEMDE-9",2430]
[{"$nulls":16},"FORT G. G. MEADEMDW-1",1575,"FORT G. G. MEADEMDW-1",2103]
[{"$nulls":16},"FORT G. G. MEADEMDW-2",1887,"FORT G. G. MEADEMDW-2",2235]
[{"$nulls":16},"FORT G. G. MEADEMDW-3",1977,"FORT G. G. MEADEMDW-3",2358]
[{"$nulls":16},"FORT G. G. MEADEMDW-4",2121,"FORT G. G. MEADEMDW-4",2454]
[{"$nulls":16},"FORT G. G. MEADEMDW-5",2217,"FORT G. G. MEADEMDW-5",2568]
[{"$nulls":16},"FORT G. G. MEADEMDO-1E",1836,"FORT G. G. MEADEMDO-1E",2214]
[{"$nulls":16},"FORT G. G. MEADEMDO-2E",1953,"FORT G. G. MEADEMDO-2E",2340]
[{"$nulls":16},"FORT G. G. MEADEMDO-3E",2100,"FORT G. G. MEADEMDO-3E",2472]
[{"$nulls":16},"FORT G. G. MEADEMDO-1",1398,"FORT G. G. MEADEMDO-1",1866]
[{"$nulls":16},"FORT G. G. MEADEMDO-2",1755,"FORT G. G. MEADEMDO-2",2094]
[{"$nulls":16},"FORT G. G. MEADEMDO-3",2004,"FORT G. G. MEADEMDO-3",2355]
[{"$nulls":16},"FORT G. G. MEADEMDO-4",2202,"FORT G. G. MEADEMDO-4",2613]
[{"$nulls":16},"FORT G. G. MEADEMDO-5",2262,"FORT G. G. MEADEMDO-5",2796]
[{"$nulls":16},"FORT G. G. MEADEMDO-6",2358,"FORT G. G. MEADEMDO-6",2823]
[{"$nulls":16},"FORT G. G. MEADEMDO-7",2406,"FORT G. G. MEADEMDO-7",2853]
[{"$nulls":16},"INDIAN HEAD NAVORDSTAMDE-1",1194,"INDIAN HEAD NAVORDSTAMDE-1",1590]
[{"$nulls":16},"INDIAN HEAD NAVORDSTAMDE-2",1194,"INDIAN HEAD NAVORDSTAMDE-2",1590]
[{"$nulls":16},"INDIAN HEAD NAVORDSTAMDE-3",1194,"INDIAN HEAD NAVORDSTAMDE-3",1590]
[{"$nulls":16},"INDIAN HEAD NAVORDSTAMDE-4",1194,"INDIAN HEAD NAVORDSTAMDE-4",1590]
[{"$nulls":16},"INDIAN HEAD NAVORDSTAMDE-5",1380,"INDIAN HEAD NAVORDSTAMDE-5",1704]
[{"$nulls":16},"INDIAN HEAD NAVORDSTAMDE-6",1488,"INDIAN HEAD NAVORDSTAMDE-6",1968]
[{"$nulls":16},"INDIAN HEAD NAVORDSTAMDE-7",1596,"INDIAN HEAD NAVORDSTAMDE-7",2049]
[{"$nulls":16},"INDIAN HEAD NAVORDSTAMDE-8",1758,"INDIAN HEAD NAVORDSTAMDE-8",2139]
[{"$nulls":16},"INDIAN HEAD NAVORDSTAMDE-9",1839,"INDIAN HEAD NAVORDSTAMDE-9",2265]
[{"$nulls":16},"INDIAN HEAD NAVORDSTAMDW-1",1545,"INDIAN HEAD NAVORDSTAMDW-1",1968]
[{"$nulls":16},"INDIAN HEAD NAVORDSTAMDW-2",1755,"INDIAN HEAD NAVORDSTAMDW-2",2088]
[{"$nulls":16},"INDIAN HEAD NAVORDSTAMDW-3",1845,"INDIAN HEAD NAVORDSTAMDW-3",2196]
[{"$nulls":16},"INDIAN HEAD NAVORDSTAMDW-4",1989,"INDIAN HEAD NAVORDSTAMDW-4",2289]
[{"$nulls":16},"INDIAN HEAD NAVORDSTAMDW-5",2070,"INDIAN HEAD NAVORDSTAMDW-5",2397]
[{"$nulls":16},"INDIAN HEAD NAVORDSTAMDO-1E",1704,"INDIAN HEAD NAVORDSTAMDO-1E",2067]
[{"$nulls":16},"INDIAN HEAD NAVORDSTAMDO-2E",1821,"INDIAN HEAD NAVORDSTAMDO-2E",2181]
[{"$nulls":16},"INDIAN HEAD NAVORDSTAMDO-3E",1968,"INDIAN HEAD NAVORDSTAMDO-3E",2304]
[{"$nulls":16},"INDIAN HEAD NAVORDSTAMDO-1",1473,"INDIAN HEAD NAVORDSTAMDO-1",1734]
[{"$nulls":16},"INDIAN HEAD NAVORDSTAMDO-2",1665,"INDIAN HEAD NAVORDSTAMDO-2",1962]
[{"$nulls":16},"INDIAN HEAD NAVORDSTAMDO-3",1872,"INDIAN HEAD NAVORDSTAMDO-3",2193]
[{"$nulls":16},"INDIAN HEAD NAVORDSTAMDO-4",2058,"INDIAN HEAD NAVORDSTAMDO-4",2439]
[{"$nulls":16},"INDIAN HEAD NAVORDSTAMDO-5",2112,"INDIAN HEAD NAVORDSTAMDO-5",2613]
[{"$nulls":16},"INDIAN HEAD NAVORDSTAMDO-6",2196,"INDIAN HEAD NAVORDSTAMDO-6",2640]
[{"$nulls":16},"INDIAN HEAD NAVORDSTAMDO-7",2241,"INDIAN HEAD NAVORDSTAMDO-7",2667]
[{"$nulls":16},"PATUXENT RIVERMDE-1",1035,"PATUXENT RIVERMDE-1",1380]
[{"$nulls":16},"PATUXENT RIVERMDE-2",1035,"PATUXENT RIVERMDE-2",1380]
[{"$nulls":16},"PATUXENT RIVERMDE-3",1035,"PATUXENT RIVERMDE-3",1380]
[{"$nulls":16},"PATUXENT RIVERMDE-4",1035,"PATUXENT RIVERMDE-4",1380]
[{"$nulls":16},"PATUXENT RIVERMDE-5",1173,"PATUXENT RIVERMDE-5",1515]
[{"$nulls":16},"PATUXENT RIVERMDE-6",1263,"PATUXENT RIVERMDE-6",1668]
[{"$nulls":16},"PATUXENT RIVERMDE-7",1389,"PATUXENT RIVERMDE-7",1752]
[{"$nulls":16},"PATUXENT RIVERMDE-8",1545,"PATUXENT RIVERMDE-8",1842]
[{"$nulls":16},"PATUXENT RIVERMDE-9",1593,"PATUXENT RIVERMDE-9",1953]
[{"$nulls":16},"PATUXENT RIVERMDW-1",1329,"PATUXENT RIVERMDW-1",1671]
[{"$nulls":16},"PATUXENT RIVERMDW-2",1545,"PATUXENT RIVERMDW-2",1788]
[{"$nulls":16},"PATUXENT RIVERMDW-3",1599,"PATUXENT RIVERMDW-3",1899]
[{"$nulls":16},"PATUXENT RIVERMDW-4",1689,"PATUXENT RIVERMDW-4",1974]
[{"$nulls":16},"PATUXENT RIVERMDW-5",1773,"PATUXENT RIVERMDW-5",2061]
[{"$nulls":16},"PATUXENT RIVERMDO-1E",1515,"PATUXENT RIVERMDO-1E",1770]
[{"$nulls":16},"PATUXENT RIVERMDO-2E",1584,"PATUXENT RIVERMDO-2E",1884]
[{"$nulls":16},"PATUXENT RIVERMDO-3E",1668,"PATUXENT RIVERMDO-3E",1986]
[{"$nulls":16},"PATUXENT RIVERMDO-1",1242,"PATUXENT RIVERMDO-1",1533]
[{"$nulls":16},"PATUXENT RIVERMDO-2",1470,"PATUXENT RIVERMDO-2",1665]
[{"$nulls":16},"PATUXENT RIVERMDO-3",1614,"PATUXENT RIVERMDO-3",1896]
[{"$nulls":16},"PATUXENT RIVERMDO-4",1761,"PATUXENT RIVERMDO-4",2094]
[{"$nulls":16},"PATUXENT RIVERMDO-5",1815,"PATUXENT RIVERMDO-5",2235]
[{"$nulls":16},"PATUXENT RIVERMDO-6",1899,"PATUXENT RIVERMDO-6",2259]
[{"$nulls":16},"PATUXENT RIVERMDO-7",1938,"PATUXENT RIVERMDO-7",2280]
[{"$nulls":16},"CUMBERLANDMDE-1",618,"CUMBERLANDMDE-1",825]
[{"$nulls":16},"CUMBERLANDMDE-2",618,"CUMBERLANDMDE-2",825]
[{"$nulls":16},"CUMBERLANDMDE-3",618,"CUMBERLANDMDE-3",825]
[{"$nulls":16},"CUMBERLANDMDE-4",618,"CUMBERLANDMDE-4",825]
[{"$nulls":16},"CUMBERLANDMDE-5",687,"CUMBERLANDMDE-5",903]
[{"$nulls":16},"CUMBERLANDMDE-6",795,"CUMBERLANDMDE-6",1062]
[{"$nulls":16},"CUMBERLANDMDE-7",828,"CUMBERLANDMDE-7",1095]
[{"$nulls":16},"CUMBERLANDMDE-8",936,"CUMBERLANDMDE-8",1131]
[{"$nulls":16},"CUMBERLANDMDE-9",984,"CUMBERLANDMDE-9",1206]
[{"$nulls":16},"CUMBERLANDMDW-1",795,"CUMBERLANDMDW-1",1062]
[{"$nulls":16},"CUMBERLANDMDW-2",933,"CUMBERLANDMDW-2",1110]
[{"$nulls":16},"CUMBERLANDMDW-3",987,"CUMBERLANDMDW-3",1155]
[{"$nulls":16},"CUMBERLANDMDW-4",1068,"CUMBERLANDMDW-4",1227]
[{"$nulls":16},"CUMBERLANDMDW-5",1104,"CUMBERLANDMDW-5",1311]
[{"$nulls":16},"CUMBERLANDMDO-1E",903,"CUMBERLANDMDO-1E",1101]
[{"$nulls":16},"CUMBERLANDMDO-2E",972,"CUMBERLANDMDO-2E",1146]
[{"$nulls":16},"CUMBERLANDMDO-3E",1062,"CUMBERLANDMDO-3E",1239]
[{"$nulls":16},"CUMBERLANDMDO-1",744,"CUMBERLANDMDO-1",921]
[{"$nulls":16},"CUMBERLANDMDO-2",876,"CUMBERLANDMDO-2",1059]
[{"$nulls":16},"CUMBERLANDMDO-3",1005,"CUMBERLANDMDO-3",1152]
[{"$nulls":16},"CUMBERLANDMDO-4",1098,"CUMBERLANDMDO-4",1344]
[{"$nulls":16},"CUMBERLANDMDO-5",1119,"CUMBERLANDMDO-5",1479]
[{"$nulls":16},"CUMBERLANDMDO-6",1155,"CUMBERLANDMDO-6",1494]
[{"$nulls":16},"CUMBERLANDMDO-7",1176,"CUMBERLANDMDO-7",1509]
[{"$nulls":16},"OCEAN CITYMDE-1",1041,"OCEAN CITYMDE-1",1293]
[{"$nulls":16},"OCEAN CITYMDE-2",1041,"OCEAN CITYMDE-2",1293]
[{"$nulls":16},"OCEAN CITYMDE-3",1041,"OCEAN CITYMDE-3",1293]
[{"$nulls":16},"OCEAN CITYMDE-4",1041,"OCEAN CITYMDE-4",1293]
[{"$nulls":16},"OCEAN CITYMDE-5",1188,"OCEAN CITYMDE-5",1326]
[{"$nulls":16},"OCEAN CITYMDE-6",1266,"OCEAN CITYMDE-6",1593]
[{"$nulls":16},"OCEAN CITYMDE-7",1296,"OCEAN CITYMDE-7",1614]
[{"$nulls":16},"OCEAN CITYMDE-8",1380,"OCEAN CITYMDE-8",1635]
[{"$nulls":16},"OCEAN CITYMDE-9",1461,"OCEAN CITYMDE-9",1707]
[{"$nulls":16},"OCEAN CITYMDW-1",1281,"OCEAN CITYMDW-1",1593]
[{"$nulls":16},"OCEAN CITYMDW-2",1377,"OCEAN CITYMDW-2",1623]
[{"$nulls":16},"OCEAN CITYMDW-3",1470,"OCEAN CITYMDW-3",1650]
[{"$nulls":16},"OCEAN CITYMDW-4",1596,"OCEAN CITYMDW-4",1731]
[{"$nulls":16},"OCEAN CITYMDW-5",1617,"OCEAN CITYMDW-5",1824]
[{"$nulls":16},"OCEAN CITYMDO-1E",1326,"OCEAN CITYMDO-1E",1617]
[{"$nulls":16},"OCEAN CITYMDO-2E",1443,"OCEAN CITYMDO-2E",1644]
[{"$nulls":16},"OCEAN CITYMDO-3E",1593,"OCEAN CITYMDO-3E",1743]
[{"$nulls":16},"OCEAN CITYMDO-1",1260,"OCEAN CITYMDO-1",1356]
[{"$nulls":16},"OCEAN CITYMDO-2",1317,"OCEAN CITYMDO-2",1587]
[{"$nulls":16},"OCEAN CITYMDO-3",1497,"OCEAN CITYMDO-3",1647]
[{"$nulls":16},"OCEAN CITYMDO-4",1614,"OCEAN CITYMDO-4",1863]
[{"$nulls":16},"OCEAN CITYMDO-5",1629,"OCEAN CITYMDO-5",2016]
[{"$nulls":16},"OCEAN CITYMDO-6",1650,"OCEAN CITYMDO-6",2037]
[{"$nulls":16},"OCEAN CITYMDO-7",1683,"OCEAN CITYMDO-7",2055]
[{"$nulls":16},"OXFORDMDE-1",1026,"OXFORDMDE-1",1368]
[{"$nulls":16},"OXFORDMDE-2",1026,"OXFORDMDE-2",1368]
[{"$nulls":16},"OXFORDMDE-3",1026,"OXFORDMDE-3",1368]
[{"$nulls":16},"OXFORDMDE-4",1026,"OXFORDMDE-4",1368]
[{"$nulls":16},"OXFORDMDE-5",1173,"OXFORDMDE-5",1482]
[{"$nulls":16},"OXFORDMDE-6",1338,"OXFORDMDE-6",1782]
[{"$nulls":16},"OXFORDMDE-7",1386,"OXFORDMDE-7",1845]
[{"$nulls":16},"OXFORDMDE-8",1542,"OXFORDMDE-8",1917]
[{"$nulls":16},"OXFORDMDE-9",1635,"OXFORDMDE-9",2001]
[{"$nulls":16},"OXFORDMDW-1",1338,"OXFORDMDW-1",1785]
[{"$nulls":16},"OXFORDMDW-2",1539,"OXFORDMDW-2",1875]
[{"$nulls":16},"OXFORDMDW-3",1644,"OXFORDMDW-3",1962]
[{"$nulls":16},"OXFORDMDW-4",1797,"OXFORDMDW-4",2013]
[{"$nulls":16},"OXFORDMDW-5",1863,"OXFORDMDW-5",2076]
[{"$nulls":16},"OXFORDMDO-1E",1482,"OXFORDMDO-1E",1860]
[{"$nulls":16},"OXFORDMDO-2E",1614,"OXFORDMDO-2E",1947]
[{"$nulls":16},"OXFORDMDO-3E",1782,"OXFORDMDO-3E",2025]
[{"$nulls":16},"OXFORDMDO-1",1251,"OXFORDMDO-1",1515]
[{"$nulls":16},"OXFORDMDO-2",1443,"OXFORDMDO-2",1776]
[{"$nulls":16},"OXFORDMDO-3",1674,"OXFORDMDO-3",1956]
[{"$nulls":16},"OXFORDMDO-4",1854,"OXFORDMDO-4",2100]
[{"$nulls":16},"OXFORDMDO-5",1896,"OXFORDMDO-5",2202]
[{"$nulls":16},"OXFORDMDO-6",1962,"OXFORDMDO-6",2226]
[{"$nulls":16},"OXFORDMDO-7",2001,"OXFORDMDO-7",2247]
[{"$nulls":16},"BRUNSWICKMEE-1",702,"BRUNSWICKMEE-1",936]
[{"$nulls":16},"BRUNSWICKMEE-2",702,"BRUNSWICKMEE-2",936]
[{"$nulls":16},"BRUNSWICKMEE-3",702,"BRUNSWICKMEE-3",936]
[{"$nulls":16},"BRUNSWICKMEE-4",702,"BRUNSWICKMEE-4",936]
[{"$nulls":16},"BRUNSWICKMEE-5",789,"BRUNSWICKMEE-5",1050]
[{"$nulls":16},"BRUNSWICKMEE-6",966,"BRUNSWICKMEE-6",1287]
[{"$nulls":16},"BRUNSWICKMEE-7",1008,"BRUNSWICKMEE-7",1344]
[{"$nulls":16},"BRUNSWICKMEE-8",1098,"BRUNSWICKMEE-8",1404]
[{"$nulls":16},"BRUNSWICKMEE-9",1170,"BRUNSWICKMEE-9",1503]
[{"$nulls":16},"BRUNSWICKMEW-1",966,"BRUNSWICKMEW-1",1287]
[{"$nulls":16},"BRUNSWICKMEW-2",1095,"BRUNSWICKMEW-2",1368]
[{"$nulls":16},"BRUNSWICKMEW-3",1176,"BRUNSWICKMEW-3",1443]
[{"$nulls":16},"BRUNSWICKMEW-4",1299,"BRUNSWICKMEW-4",1527]
[{"$nulls":16},"BRUNSWICKMEW-5",1356,"BRUNSWICKMEW-5",1626]
[{"$nulls":16},"BRUNSWICKMEO-1E",1050,"BRUNSWICKMEO-1E",1356]
[{"$nulls":16},"BRUNSWICKMEO-2E",1155,"BRUNSWICKMEO-2E",1431]
[{"$nulls":16},"BRUNSWICKMEO-3E",1287,"BRUNSWICKMEO-3E",1542]
[{"$nulls":16},"BRUNSWICKMEO-1",822,"BRUNSWICKMEO-1",1077]
[{"$nulls":16},"BRUNSWICKMEO-2",1011,"BRUNSWICKMEO-2",1281]
[{"$nulls":16},"BRUNSWICKMEO-3",1200,"BRUNSWICKMEO-3",1440]
[{"$nulls":16},"BRUNSWICKMEO-4",1350,"BRUNSWICKMEO-4",1665]
[{"$nulls":16},"BRUNSWICKMEO-5",1386,"BRUNSWICKMEO-5",1827]
[{"$nulls":16},"BRUNSWICKMEO-6",1443,"BRUNSWICKMEO-6",1845]
[{"$nulls":16},"BRUNSWICKMEO-7",1473,"BRUNSWICKMEO-7",1863]
[{"$nulls":16},"CARIBOU/LIMESTONEMEE-1",618,"CARIBOU/LIMESTONEMEE-1",792]
[{"$nulls":16},"CARIBOU/LIMESTONEMEE-2",618,"CARIBOU/LIMESTONEMEE-2",792]
[{"$nulls":16},"CARIBOU/LIMESTONEMEE-3",618,"CARIBOU/LIMESTONEMEE-3",792]
[{"$nulls":16},"CARIBOU/LIMESTONEMEE-4",618,"CARIBOU/LIMESTONEMEE-4",792]
[{"$nulls":16},"CARIBOU/LIMESTONEMEE-5",678,"CARIBOU/LIMESTONEMEE-5",876]
[{"$nulls":16},"CARIBOU/LIMESTONEMEE-6",741,"CARIBOU/LIMESTONEMEE-6",990]
[{"$nulls":16},"CARIBOU/LIMESTONEMEE-7",795,"CARIBOU/LIMESTONEMEE-7",1029]
[{"$nulls":16},"CARIBOU/LIMESTONEMEE-8",897,"CARIBOU/LIMESTONEMEE-8",1068]
[{"$nulls":16},"CARIBOU/LIMESTONEMEE-9",933,"CARIBOU/LIMESTONEMEE-9",1128]
[{"$nulls":16},"CARIBOU/LIMESTONEMEW-1",759,"CARIBOU/LIMESTONEMEW-1",990]
[{"$nulls":16},"CARIBOU/LIMESTONEMEW-2",897,"CARIBOU/LIMESTONEMEW-2",1044]
[{"$nulls":16},"CARIBOU/LIMESTONEMEW-3",936,"CARIBOU/LIMESTONEMEW-3",1095]
[{"$nulls":16},"CARIBOU/LIMESTONEMEW-4",999,"CARIBOU/LIMESTONEMEW-4",1140]
[{"$nulls":16},"CARIBOU/LIMESTONEMEW-5",1038,"CARIBOU/LIMESTONEMEW-5",1194]
[{"$nulls":16},"CARIBOU/LIMESTONEMEO-1E",876,"CARIBOU/LIMESTONEMEO-1E",1035]
[{"$nulls":16},"CARIBOU/LIMESTONEMEO-2E",924,"CARIBOU/LIMESTONEMEO-2E",1089]
[{"$nulls":16},"CARIBOU/LIMESTONEMEO-3E",990,"CARIBOU/LIMESTONEMEO-3E",1149]
[{"$nulls":16},"CARIBOU/LIMESTONEMEO-1",708,"CARIBOU/LIMESTONEMEO-1",888]
[{"$nulls":16},"CARIBOU/LIMESTONEMEO-2",846,"CARIBOU/LIMESTONEMEO-2",987]
[{"$nulls":16},"CARIBOU/LIMESTONEMEO-3",948,"CARIBOU/LIMESTONEMEO-3",1095]
[{"$nulls":16},"CARIBOU/LIMESTONEMEO-4",1032,"CARIBOU/LIMESTONEMEO-4",1215]
[{"$nulls":16},"CARIBOU/LIMESTONEMEO-5",1056,"CARIBOU/LIMESTONEMEO-5",1299]
[{"$nulls":16},"CARIBOU/LIMESTONEMEO-6",1095,"CARIBOU/LIMESTONEMEO-6",1314]
[{"$nulls":16},"CARIBOU/LIMESTONEMEO-7",1119,"CARIBOU/LIMESTONEMEO-7",1326]
[{"$nulls":16},"KITTERYMEE-1",993,"KITTERYMEE-1",1326]
[{"$nulls":16},"KITTERYMEE-2",993,"KITTERYMEE-2",1326]
[{"$nulls":16},"KITTERYMEE-3",993,"KITTERYMEE-3",1326]
[{"$nulls":16},"KITTERYMEE-4",993,"KITTERYMEE-4",1326]
[{"$nulls":16},"KITTERYMEE-5",1119,"KITTERYMEE-5",1491]
[{"$nulls":16},"KITTERYMEE-6",1422,"KITTERYMEE-6",1893]
[{"$nulls":16},"KITTERYMEE-7",1497,"KITTERYMEE-7",1998]
[{"$nulls":16},"KITTERYMEE-8",1581,"KITTERYMEE-8",2109]
[{"$nulls":16},"KITTERYMEE-9",1698,"KITTERYMEE-9",2193]
[{"$nulls":16},"KITTERYMEW-1",1422,"KITTERYMEW-1",1896]
[{"$nulls":16},"KITTERYMEW-2",1569,"KITTERYMEW-2",2043]
[{"$nulls":16},"KITTERYMEW-3",1710,"KITTERYMEW-3",2181]
[{"$nulls":16},"KITTERYMEW-4",1920,"KITTERYMEW-4",2196]
[{"$nulls":16},"KITTERYMEW-5",2022,"KITTERYMEW-5",2214]
[{"$nulls":16},"KITTERYMEO-1E",1515,"KITTERYMEO-1E",2019]
[{"$nulls":16},"KITTERYMEO-2E",1668,"KITTERYMEO-2E",2160]
[{"$nulls":16},"KITTERYMEO-3E",1893,"KITTERYMEO-3E",2199]
[{"$nulls":16},"KITTERYMEO-1",1158,"KITTERYMEO-1",1536]
[{"$nulls":16},"KITTERYMEO-2",1434,"KITTERYMEO-2",1887]
[{"$nulls":16},"KITTERYMEO-3",1749,"KITTERYMEO-3",2175]
[{"$nulls":16},"KITTERYMEO-4",2010,"KITTERYMEO-4",2220]
[{"$nulls":16},"KITTERYMEO-5",2076,"KITTERYMEO-5",2250]
[{"$nulls":16},"KITTERYMEO-6",2181,"KITTERYMEO-6",2274]
[{"$nulls":16},"KITTERYMEO-7",2226,"KITTERYMEO-7",2295]
[{"$nulls":16},"PORTLANDMEE-1",993,"PORTLANDMEE-1",1254]
[{"$nulls":16},"PORTLANDMEE-2",993,"PORTLANDMEE-2",1254]
[{"$nulls":16},"PORTLANDMEE-3",993,"PORTLANDMEE-3",1254]
[{"$nulls":16},"PORTLANDMEE-4",993,"PORTLANDMEE-4",1254]
[{"$nulls":16},"PORTLANDMEE-5",1101,"PORTLANDMEE-5",1353]
[{"$nulls":16},"PORTLANDMEE-6",1167,"PORTLANDMEE-6",1491]
[{"$nulls":16},"PORTLANDMEE-7",1260,"PORTLANDMEE-7",1671]
[{"$nulls":16},"PORTLANDMEE-8",1398,"PORTLANDMEE-8",1866]
[{"$nulls":16},"PORTLANDMEE-9",1533,"PORTLANDMEE-9",2043]
[{"$nulls":16},"PORTLANDMEW-1",1215,"PORTLANDMEW-1",1497]
[{"$nulls":16},"PORTLANDMEW-2",1380,"PORTLANDMEW-2",1752]
[{"$nulls":16},"PORTLANDMEW-3",1494,"PORTLANDMEW-3",1989]
[{"$nulls":16},"PORTLANDMEW-4",1545,"PORTLANDMEW-4",2061]
[{"$nulls":16},"PORTLANDMEW-5",1716,"PORTLANDMEW-5",2145]
[{"$nulls":16},"PORTLANDMEO-1E",1353,"PORTLANDMEO-1E",1710]
[{"$nulls":16},"PORTLANDMEO-2E",1467,"PORTLANDMEO-2E",1956]
[{"$nulls":16},"PORTLANDMEO-3E",1557,"PORTLANDMEO-3E",2076]
[{"$nulls":16},"PORTLANDMEO-1",1155,"PORTLANDMEO-1",1368]
[{"$nulls":16},"PORTLANDMEO-2",1317,"PORTLANDMEO-2",1488]
[{"$nulls":16},"PORTLANDMEO-3",1485,"PORTLANDMEO-3",1980]
[{"$nulls":16},"PORTLANDMEO-4",1692,"PORTLANDMEO-4",2178]
[{"$nulls":16},"PORTLANDMEO-5",1806,"PORTLANDMEO-5",2316]
[{"$nulls":16},"PORTLANDMEO-6",1989,"PORTLANDMEO-6",2340]
[{"$nulls":16},"PORTLANDMEO-7",2031,"PORTLANDMEO-7",2361]
[{"$nulls":16},"COASTAL MAINEMEE-1",822,"COASTAL MAINEMEE-1",1098]
[{"$nulls":16},"COASTAL MAINEMEE-2",822,"COASTAL MAINEMEE-2",1098]
[{"$nulls":16},"COASTAL MAINEMEE-3",822,"COASTAL MAINEMEE-3",1098]
[{"$nulls":16},"COASTAL MAINEMEE-4",822,"COASTAL MAINEMEE-4",1098]
[{"$nulls":16},"COASTAL MAINEMEE-5",921,"COASTAL MAINEMEE-5",1227]
[{"$nulls":16},"COASTAL MAINEMEE-6",1002,"COASTAL MAINEMEE-6",1338]
[{"$nulls":16},"COASTAL MAINEMEE-7",1104,"COASTAL MAINEMEE-7",1359]
[{"$nulls":16},"COASTAL MAINEMEE-8",1248,"COASTAL MAINEMEE-8",1383]
[{"$nulls":16},"COASTAL MAINEMEE-9",1284,"COASTAL MAINEMEE-9",1422]
[{"$nulls":16},"COASTAL MAINEMEW-1",1047,"COASTAL MAINEMEW-1",1338]
[{"$nulls":16},"COASTAL MAINEMEW-2",1248,"COASTAL MAINEMEW-2",1368]
[{"$nulls":16},"COASTAL MAINEMEW-3",1287,"COASTAL MAINEMEW-3",1398]
[{"$nulls":16},"COASTAL MAINEMEW-4",1344,"COASTAL MAINEMEW-4",1428]
[{"$nulls":16},"COASTAL MAINEMEW-5",1365,"COASTAL MAINEMEW-5",1464]
[{"$nulls":16},"COASTAL MAINEMEO-1E",1227,"COASTAL MAINEMEO-1E",1365]
[{"$nulls":16},"COASTAL MAINEMEO-2E",1275,"COASTAL MAINEMEO-2E",1395]
[{"$nulls":16},"COASTAL MAINEMEO-3E",1338,"COASTAL MAINEMEO-3E",1434]
[{"$nulls":16},"COASTAL MAINEMEO-1",966,"COASTAL MAINEMEO-1",1239]
[{"$nulls":16},"COASTAL MAINEMEO-2",1182,"COASTAL MAINEMEO-2",1335]
[{"$nulls":16},"COASTAL MAINEMEO-3",1296,"COASTAL MAINEMEO-3",1398]
[{"$nulls":16},"COASTAL MAINEMEO-4",1362,"COASTAL MAINEMEO-4",1476]
[{"$nulls":16},"COASTAL MAINEMEO-5",1377,"COASTAL MAINEMEO-5",1533]
[{"$nulls":16},"COASTAL MAINEMEO-6",1398,"COASTAL MAINEMEO-6",1548]
[{"$nulls":16},"COASTAL MAINEMEO-7",1428,"COASTAL MAINEMEO-7",1566]
[{"$nulls":16},"BANGORMEE-1",792,"BANGORMEE-1",1056]
[{"$nulls":16},"BANGORMEE-2",792,"BANGORMEE-2",1056]
[{"$nulls":16},"BANGORMEE-3",792,"BANGORMEE-3",1056]
[{"$nulls":16},"BANGORMEE-4",792,"BANGORMEE-4",1056]
[{"$nulls":16},"BANGORMEE-5",912,"BANGORMEE-5",1107]
[{"$nulls":16},"BANGORMEE-6",1011,"BANGORMEE-6",1293]
[{"$nulls":16},"BANGORMEE-7",1059,"BANGORMEE-7",1341]
[{"$nulls":16},"BANGORMEE-8",1143,"BANGORMEE-8",1395]
[{"$nulls":16},"BANGORMEE-9",1203,"BANGORMEE-9",1476]
[{"$nulls":16},"BANGORMEW-1",1035,"BANGORMEW-1",1293]
[{"$nulls":16},"BANGORMEW-2",1143,"BANGORMEW-2",1362]
[{"$nulls":16},"BANGORMEW-3",1206,"BANGORMEW-3",1428]
[{"$nulls":16},"BANGORMEW-4",1305,"BANGORMEW-4",1494]
[{"$nulls":16},"BANGORMEW-5",1353,"BANGORMEW-5",1572]
[{"$nulls":16},"BANGORMEO-1E",1107,"BANGORMEO-1E",1353]
[{"$nulls":16},"BANGORMEO-2E",1188,"BANGORMEO-2E",1419]
[{"$nulls":16},"BANGORMEO-3E",1293,"BANGORMEO-3E",1506]
[{"$nulls":16},"BANGORMEO-1",1002,"BANGORMEO-1",1128]
[{"$nulls":16},"BANGORMEO-2",1089,"BANGORMEO-2",1290]
[{"$nulls":16},"BANGORMEO-3",1227,"BANGORMEO-3",1425]
[{"$nulls":16},"BANGORMEO-4",1347,"BANGORMEO-4",1602]
[{"$nulls":16},"BANGORMEO-5",1377,"BANGORMEO-5",1731]
[{"$nulls":16},"BANGORMEO-6",1428,"BANGORMEO-6",1746]
[{"$nulls":16},"BANGORMEO-7",1458,"BANGORMEO-7",1764]
[{"$nulls":16},"DETROITMIE-1",873,"DETROITMIE-1",1164]
[{"$nulls":16},"DETROITMIE-2",873,"DETROITMIE-2",1164]
[{"$nulls":16},"DETROITMIE-3",873,"DETROITMIE-3",1164]
[{"$nulls":16},"DETROITMIE-4",873,"DETROITMIE-4",1164]
[{"$nulls":16},"DETROITMIE-5",981,"DETROITMIE-5",1308]
[{"$nulls":16},"DETROITMIE-6",1140,"DETROITMIE-6",1521]
[{"$nulls":16},"DETROITMIE-7",1242,"DETROITMIE-7",1656]
[{"$nulls":16},"DETROITMIE-8",1353,"DETROITMIE-8",1803]
[{"$nulls":16},"DETROITMIE-9",1494,"DETROITMIE-9",1992]
[{"$nulls":16},"DETROITMIW-1",1143,"DETROITMIW-1",1524]
[{"$nulls":16},"DETROITMIW-2",1350,"DETROITMIW-2",1716]
[{"$nulls":16},"DETROITMIW-3",1422,"DETROITMIW-3",1896]
[{"$nulls":16},"DETROITMIW-4",1554,"DETROITMIW-4",2025]
[{"$nulls":16},"DETROITMIW-5",1689,"DETROITMIW-5",2178]
[{"$nulls":16},"DETROITMIO-1E",1308,"DETROITMIO-1E",1686]
[{"$nulls":16},"DETROITMIO-2E",1404,"DETROITMIO-2E",1872]
[{"$nulls":16},"DETROITMIO-3E",1536,"DETROITMIO-3E",2049]
[{"$nulls":16},"DETROITMIO-1",1020,"DETROITMIO-1",1332]
[{"$nulls":16},"DETROITMIO-2",1260,"DETROITMIO-2",1515]
[{"$nulls":16},"DETROITMIO-3",1443,"DETROITMIO-3",1890]
[{"$nulls":16},"DETROITMIO-4",1680,"DETROITMIO-4",2238]
[{"$nulls":16},"DETROITMIO-5",1863,"DETROITMIO-5",2484]
[{"$nulls":16},"DETROITMIO-6",1896,"DETROITMIO-6",2511]
[{"$nulls":16},"DETROITMIO-7",1935,"DETROITMIO-7",2535]
[{"$nulls":16},"MARQUETTEMIE-1",630,"MARQUETTEMIE-1",840]
[{"$nulls":16},"MARQUETTEMIE-2",630,"MARQUETTEMIE-2",840]
[{"$nulls":16},"MARQUETTEMIE-3",630,"MARQUETTEMIE-3",840]
[{"$nulls":16},"MARQUETTEMIE-4",630,"MARQUETTEMIE-4",840]
[{"$nulls":16},"MARQUETTEMIE-5",702,"MARQUETTEMIE-5",924]
[{"$nulls":16},"MARQUETTEMIE-6",834,"MARQUETTEMIE-6",1110]
[{"$nulls":16},"MARQUETTEMIE-7",891,"MARQUETTEMIE-7",1188]
[{"$nulls":16},"MARQUETTEMIE-8",960,"MARQUETTEMIE-8",1269]
[{"$nulls":16},"MARQUETTEMIE-9",1035,"MARQUETTEMIE-9",1380]
[{"$nulls":16},"MARQUETTEMIW-1",834,"MARQUETTEMIW-1",1113]
[{"$nulls":16},"MARQUETTEMIW-2",960,"MARQUETTEMIW-2",1221]
[{"$nulls":16},"MARQUETTEMIW-3",1023,"MARQUETTEMIW-3",1323]
[{"$nulls":16},"MARQUETTEMIW-4",1128,"MARQUETTEMIW-4",1401]
[{"$nulls":16},"MARQUETTEMIW-5",1206,"MARQUETTEMIW-5",1494]
[{"$nulls":16},"MARQUETTEMIO-1E",924,"MARQUETTEMIO-1E",1203]
[{"$nulls":16},"MARQUETTEMIO-2E",1005,"MARQUETTEMIO-2E",1308]
[{"$nulls":16},"MARQUETTEMIO-3E",1110,"MARQUETTEMIO-3E",1416]
[{"$nulls":16},"MARQUETTEMIO-1",753,"MARQUETTEMIO-1",945]
[{"$nulls":16},"MARQUETTEMIO-2",894,"MARQUETTEMIO-2",1107]
[{"$nulls":16},"MARQUETTEMIO-3",1044,"MARQUETTEMIO-3",1320]
[{"$nulls":16},"MARQUETTEMIO-4",1194,"MARQUETTEMIO-4",1530]
[{"$nulls":16},"MARQUETTEMIO-5",1263,"MARQUETTEMIO-5",1683]
[{"$nulls":16},"MARQUETTEMIO-6",1323,"MARQUETTEMIO-6",1698]
[{"$nulls":16},"MARQUETTEMIO-7",1350,"MARQUETTEMIO-7",1716]
[{"$nulls":16},"SAULT STE MARIEMIE-1",579,"SAULT STE MARIEMIE-1",771]
[{"$nulls":16},"SAULT STE MARIEMIE-2",579,"SAULT STE MARIEMIE-2",771]
[{"$nulls":16},"SAULT STE MARIEMIE-3",579,"SAULT STE MARIEMIE-3",771]
[{"$nulls":16},"SAULT STE MARIEMIE-4",579,"SAULT STE MARIEMIE-4",771]
[{"$nulls":16},"SAULT STE MARIEMIE-5",678,"SAULT STE MARIEMIE-5",816]
[{"$nulls":16},"SAULT STE MARIEMIE-6",801,"SAULT STE MARIEMIE-6",1068]
[{"$nulls":16},"SAULT STE MARIEMIE-7",819,"SAULT STE MARIEMIE-7",1092]
[{"$nulls":16},"SAULT STE MARIEMIE-8",867,"SAULT STE MARIEMIE-8",1116]
[{"$nulls":16},"SAULT STE MARIEMIE-9",945,"SAULT STE MARIEMIE-9",1158]
[{"$nulls":16},"SAULT STE MARIEMIW-1",801,"SAULT STE MARIEMIW-1",1071]
[{"$nulls":16},"SAULT STE MARIEMIW-2",864,"SAULT STE MARIEMIW-2",1101]
[{"$nulls":16},"SAULT STE MARIEMIW-3",954,"SAULT STE MARIEMIW-3",1131]
[{"$nulls":16},"SAULT STE MARIEMIW-4",1074,"SAULT STE MARIEMIW-4",1167]
[{"$nulls":16},"SAULT STE MARIEMIW-5",1098,"SAULT STE MARIEMIW-5",1209]
[{"$nulls":16},"SAULT STE MARIEMIO-1E",822,"SAULT STE MARIEMIO-1E",1098]
[{"$nulls":16},"SAULT STE MARIEMIO-2E",927,"SAULT STE MARIEMIO-2E",1128]
[{"$nulls":16},"SAULT STE MARIEMIO-3E",1068,"SAULT STE MARIEMIO-3E",1173]
[{"$nulls":16},"SAULT STE MARIEMIO-1",726,"SAULT STE MARIEMIO-1",843]
[{"$nulls":16},"SAULT STE MARIEMIO-2",801,"SAULT STE MARIEMIO-2",1065]
[{"$nulls":16},"SAULT STE MARIEMIO-3",978,"SAULT STE MARIEMIO-3",1131]
[{"$nulls":16},"SAULT STE MARIEMIO-4",1095,"SAULT STE MARIEMIO-4",1227]
[{"$nulls":16},"SAULT STE MARIEMIO-5",1110,"SAULT STE MARIEMIO-5",1293]
[{"$nulls":16},"SAULT STE MARIEMIO-6",1131,"SAULT STE MARIEMIO-6",1308]
[{"$nulls":16},"SAULT STE MARIEMIO-7",1155,"SAULT STE MARIEMIO-7",1320]
[{"$nulls":16},"TRAVERSE CITYMIE-1",720,"TRAVERSE CITYMIE-1",960]
[{"$nulls":16},"TRAVERSE CITYMIE-2",720,"TRAVERSE CITYMIE-2",960]
[{"$nulls":16},"TRAVERSE CITYMIE-3",720,"TRAVERSE CITYMIE-3",960]
[{"$nulls":16},"TRAVERSE CITYMIE-4",720,"TRAVERSE CITYMIE-4",960]
[{"$nulls":16},"TRAVERSE CITYMIE-5",810,"TRAVERSE CITYMIE-5",1080]
[{"$nulls":16},"TRAVERSE CITYMIE-6",954,"TRAVERSE CITYMIE-6",1269]
[{"$nulls":16},"TRAVERSE CITYMIE-7",978,"TRAVERSE CITYMIE-7",1305]
[{"$nulls":16},"TRAVERSE CITYMIE-8",1119,"TRAVERSE CITYMIE-8",1341]
[{"$nulls":16},"TRAVERSE CITYMIE-9",1176,"TRAVERSE CITYMIE-9",1410]
[{"$nulls":16},"TRAVERSE CITYMIW-1",954,"TRAVERSE CITYMIW-1",1272]
[{"$nulls":16},"TRAVERSE CITYMIW-2",1116,"TRAVERSE CITYMIW-2",1320]
[{"$nulls":16},"TRAVERSE CITYMIW-3",1182,"TRAVERSE CITYMIW-3",1365]
[{"$nulls":16},"TRAVERSE CITYMIW-4",1278,"TRAVERSE CITYMIW-4",1428]
[{"$nulls":16},"TRAVERSE CITYMIW-5",1311,"TRAVERSE CITYMIW-5",1500]
[{"$nulls":16},"TRAVERSE CITYMIO-1E",1080,"TRAVERSE CITYMIO-1E",1311]
[{"$nulls":16},"TRAVERSE CITYMIO-2E",1164,"TRAVERSE CITYMIO-2E",1356]
[{"$nulls":16},"TRAVERSE CITYMIO-3E",1269,"TRAVERSE CITYMIO-3E",1437]
[{"$nulls":16},"TRAVERSE CITYMIO-1",837,"TRAVERSE CITYMIO-1",1101]
[{"$nulls":16},"TRAVERSE CITYMIO-2",1041,"TRAVERSE CITYMIO-2",1266]
[{"$nulls":16},"TRAVERSE CITYMIO-3",1203,"TRAVERSE CITYMIO-3",1362]
[{"$nulls":16},"TRAVERSE CITYMIO-4",1308,"TRAVERSE CITYMIO-4",1530]
[{"$nulls":16},"TRAVERSE CITYMIO-5",1329,"TRAVERSE CITYMIO-5",1650]
[{"$nulls":16},"TRAVERSE CITYMIO-6",1365,"TRAVERSE CITYMIO-6",1665]
[{"$nulls":16},"TRAVERSE CITYMIO-7",1392,"TRAVERSE CITYMIO-7",1683]
[{"$nulls":16},"GRAND HAVENMIE-1",651,"GRAND HAVENMIE-1",861]
[{"$nulls":16},"GRAND HAVENMIE-2",651,"GRAND HAVENMIE-2",861]
[{"$nulls":16},"GRAND HAVENMIE-3",651,"GRAND HAVENMIE-3",861]
[{"$nulls":16},"GRAND HAVENMIE-4",651,"GRAND HAVENMIE-4",861]
[{"$nulls":16},"GRAND HAVENMIE-5",732,"GRAND HAVENMIE-5",978]
[{"$nulls":16},"GRAND HAVENMIE-6",864,"GRAND HAVENMIE-6",1152]
[{"$nulls":16},"GRAND HAVENMIE-7",879,"GRAND HAVENMIE-7",1173]
[{"$nulls":16},"GRAND HAVENMIE-8",1011,"GRAND HAVENMIE-8",1194]
[{"$nulls":16},"GRAND HAVENMIE-9",1068,"GRAND HAVENMIE-9",1242]
[{"$nulls":16},"GRAND HAVENMIW-1",864,"GRAND HAVENMIW-1",1155]
[{"$nulls":16},"GRAND HAVENMIW-2",1011,"GRAND HAVENMIW-2",1182]
[{"$nulls":16},"GRAND HAVENMIW-3",1071,"GRAND HAVENMIW-3",1209]
[{"$nulls":16},"GRAND HAVENMIW-4",1158,"GRAND HAVENMIW-4",1254]
[{"$nulls":16},"GRAND HAVENMIW-5",1179,"GRAND HAVENMIW-5",1305]
[{"$nulls":16},"GRAND HAVENMIO-1E",978,"GRAND HAVENMIO-1E",1179]
[{"$nulls":16},"GRAND HAVENMIO-2E",1053,"GRAND HAVENMIO-2E",1206]
[{"$nulls":16},"GRAND HAVENMIO-3E",1152,"GRAND HAVENMIO-3E",1263]
[{"$nulls":16},"GRAND HAVENMIO-1",747,"GRAND HAVENMIO-1",996]
[{"$nulls":16},"GRAND HAVENMIO-2",939,"GRAND HAVENMIO-2",1149]
[{"$nulls":16},"GRAND HAVENMIO-3",1089,"GRAND HAVENMIO-3",1209]
[{"$nulls":16},"GRAND HAVENMIO-4",1176,"GRAND HAVENMIO-4",1326]
[{"$nulls":16},"GRAND HAVENMIO-5",1188,"GRAND HAVENMIO-5",1410]
[{"$nulls":16},"GRAND HAVENMIO-6",1209,"GRAND HAVENMIO-6",1425]
[{"$nulls":16},"GRAND HAVENMIO-7",1233,"GRAND HAVENMIO-7",1440]
[{"$nulls":16},"PORT HURONMIE-1",696,"PORT HURONMIE-1",927]
[{"$nulls":16},"PORT HURONMIE-2",696,"PORT HURONMIE-2",927]
[{"$nulls":16},"PORT HURONMIE-3",696,"PORT HURONMIE-3",927]
[{"$nulls":16},"PORT HURONMIE-4",696,"PORT HURONMIE-4",927]
[{"$nulls":16},"PORT HURONMIE-5",792,"PORT HURONMIE-5",999]
[{"$nulls":16},"PORT HURONMIE-6",888,"PORT HURONMIE-6",1182]
[{"$nulls":16},"PORT HURONMIE-7",930,"PORT HURONMIE-7",1200]
[{"$nulls":16},"PORT HURONMIE-8",1035,"PORT HURONMIE-8",1218]
[{"$nulls":16},"PORT HURONMIE-9",1092,"PORT HURONMIE-9",1293]
[{"$nulls":16},"PORT HURONMIW-1",900,"PORT HURONMIW-1",1182]
[{"$nulls":16},"PORT HURONMIW-2",1032,"PORT HURONMIW-2",1206]
[{"$nulls":16},"PORT HURONMIW-3",1098,"PORT HURONMIW-3",1230]
[{"$nulls":16},"PORT HURONMIW-4",1185,"PORT HURONMIW-4",1317]
[{"$nulls":16},"PORT HURONMIW-5",1203,"PORT HURONMIW-5",1416]
[{"$nulls":16},"PORT HURONMIO-1E",999,"PORT HURONMIO-1E",1203]
[{"$nulls":16},"PORT HURONMIO-2E",1080,"PORT HURONMIO-2E",1227]
[{"$nulls":16},"PORT HURONMIO-3E",1182,"PORT HURONMIO-3E",1332]
[{"$nulls":16},"PORT HURONMIO-1",855,"PORT HURONMIO-1",1017]
[{"$nulls":16},"PORT HURONMIO-2",975,"PORT HURONMIO-2",1179]
[{"$nulls":16},"PORT HURONMIO-3",1116,"PORT HURONMIO-3",1230]
[{"$nulls":16},"PORT HURONMIO-4",1203,"PORT HURONMIO-4",1455]
[{"$nulls":16},"PORT HURONMIO-5",1212,"PORT HURONMIO-5",1617]
[{"$nulls":16},"PORT HURONMIO-6",1230,"PORT HURONMIO-6",1632]
[{"$nulls":16},"PORT HURONMIO-7",1257,"PORT HURONMIO-7",1650]
[{"$nulls":16},"BATTLE CREEK/KALAMAZOOMIE-1",717,"BATTLE CREEK/KALAMAZOOMIE-1",954]
[{"$nulls":16},"BATTLE CREEK/KALAMAZOOMIE-2",717,"BATTLE CREEK/KALAMAZOOMIE-2",954]
[{"$nulls":16},"BATTLE CREEK/KALAMAZOOMIE-3",717,"BATTLE CREEK/KALAMAZOOMIE-3",954]
[{"$nulls":16},"BATTLE CREEK/KALAMAZOOMIE-4",717,"BATTLE CREEK/KALAMAZOOMIE-4",954]
[{"$nulls":16},"BATTLE CREEK/KALAMAZOOMIE-5",843,"BATTLE CREEK/KALAMAZOOMIE-5",1122]
[{"$nulls":16},"BATTLE CREEK/KALAMAZOOMIE-6",921,"BATTLE CREEK/KALAMAZOOMIE-6",1227]
[{"$nulls":16},"BATTLE CREEK/KALAMAZOOMIE-7",1008,"BATTLE CREEK/KALAMAZOOMIE-7",1341]
[{"$nulls":16},"BATTLE CREEK/KALAMAZOOMIE-8",1143,"BATTLE CREEK/KALAMAZOOMIE-8",1467]
[{"$nulls":16},"BATTLE CREEK/KALAMAZOOMIE-9",1197,"BATTLE CREEK/KALAMAZOOMIE-9",1593]
[{"$nulls":16},"BATTLE CREEK/KALAMAZOOMIW-1",921,"BATTLE CREEK/KALAMAZOOMIW-1",1230]
[{"$nulls":16},"BATTLE CREEK/KALAMAZOOMIW-2",1143,"BATTLE CREEK/KALAMAZOOMIW-2",1395]
[{"$nulls":16},"BATTLE CREEK/KALAMAZOOMIW-3",1179,"BATTLE CREEK/KALAMAZOOMIW-3",1548]
[{"$nulls":16},"BATTLE CREEK/KALAMAZOOMIW-4",1254,"BATTLE CREEK/KALAMAZOOMIW-4",1611]
[{"$nulls":16},"BATTLE CREEK/KALAMAZOOMIW-5",1371,"BATTLE CREEK/KALAMAZOOMIW-5",1686]
[{"$nulls":16},"BATTLE CREEK/KALAMAZOOMIO-1E",1122,"BATTLE CREEK/KALAMAZOOMIO-1E",1368]
[{"$nulls":16},"BATTLE CREEK/KALAMAZOOMIO-2E",1167,"BATTLE CREEK/KALAMAZOOMIO-2E",1527]
[{"$nulls":16},"BATTLE CREEK/KALAMAZOOMIO-3E",1227,"BATTLE CREEK/KALAMAZOOMIO-3E",1623]
[{"$nulls":16},"BATTLE CREEK/KALAMAZOOMIO-1",849,"BATTLE CREEK/KALAMAZOOMIO-1",1134]
[{"$nulls":16},"BATTLE CREEK/KALAMAZOOMIO-2",1065,"BATTLE CREEK/KALAMAZOOMIO-2",1224]
[{"$nulls":16},"BATTLE CREEK/KALAMAZOOMIO-3",1188,"BATTLE CREEK/KALAMAZOOMIO-3",1542]
[{"$nulls":16},"BATTLE CREEK/KALAMAZOOMIO-4",1356,"BATTLE CREEK/KALAMAZOOMIO-4",1713]
[{"$nulls":16},"BATTLE CREEK/KALAMAZOOMIO-5",1428,"BATTLE CREEK/KALAMAZOOMIO-5",1833]
[{"$nulls":16},"BATTLE CREEK/KALAMAZOOMIO-6",1548,"BATTLE CREEK/KALAMAZOOMIO-6",1851]
[{"$nulls":16},"BATTLE CREEK/KALAMAZOOMIO-7",1581,"BATTLE CREEK/KALAMAZOOMIO-7",1869]
[{"$nulls":16},"LANSINGMIE-1",807,"LANSINGMIE-1",1077]
[{"$nulls":16},"LANSINGMIE-2",807,"LANSINGMIE-2",1077]
[{"$nulls":16},"LANSINGMIE-3",807,"LANSINGMIE-3",1077]
[{"$nulls":16},"LANSINGMIE-4",807,"LANSINGMIE-4",1077]
[{"$nulls":16},"LANSINGMIE-5",906,"LANSINGMIE-5",1197]
[{"$nulls":16},"LANSINGMIE-6",972,"LANSINGMIE-6",1227]
[{"$nulls":16},"LANSINGMIE-7",1083,"LANSINGMIE-7",1299]
[{"$nulls":16},"LANSINGMIE-8",1203,"LANSINGMIE-8",1380]
[{"$nulls":16},"LANSINGMIE-9",1212,"LANSINGMIE-9",1470]
[{"$nulls":16},"LANSINGMIW-1",1029,"LANSINGMIW-1",1230]
[{"$nulls":16},"LANSINGMIW-2",1203,"LANSINGMIW-2",1332]
[{"$nulls":16},"LANSINGMIW-3",1212,"LANSINGMIW-3",1428]
[{"$nulls":16},"LANSINGMIW-4",1245,"LANSINGMIW-4",1485]
[{"$nulls":16},"LANSINGMIW-5",1317,"LANSINGMIW-5",1554]
[{"$nulls":16},"LANSINGMIO-1E",1197,"LANSINGMIO-1E",1317]
[{"$nulls":16},"LANSINGMIO-2E",1209,"LANSINGMIO-2E",1416]
[{"$nulls":16},"LANSINGMIO-3E",1227,"LANSINGMIO-3E",1497]
[{"$nulls":16},"LANSINGMIO-1",954,"LANSINGMIO-1",1200]
[{"$nulls":16},"LANSINGMIO-2",1155,"LANSINGMIO-2",1227]
[{"$nulls":16},"LANSINGMIO-3",1215,"LANSINGMIO-3",1425]
[{"$nulls":16},"LANSINGMIO-4",1308,"LANSINGMIO-4",1581]
[{"$nulls":16},"LANSINGMIO-5",1356,"LANSINGMIO-5",1689]
[{"$nulls":16},"LANSINGMIO-6",1428,"LANSINGMIO-6",1707]
[{"$nulls":16},"LANSINGMIO-7",1458,"LANSINGMIO-7",1722]
[{"$nulls":16},"GRAND RAPIDSMIE-1",711,"GRAND RAPIDSMIE-1",948]
[{"$nulls":16},"GRAND RAPIDSMIE-2",711,"GRAND RAPIDSMIE-2",948]
[{"$nulls":16},"GRAND RAPIDSMIE-3",711,"GRAND RAPIDSMIE-3",948]
[{"$nulls":16},"GRAND RAPIDSMIE-4",711,"GRAND RAPIDSMIE-4",948]
[{"$nulls":16},"GRAND RAPIDSMIE-5",798,"GRAND RAPIDSMIE-5",1056]
[{"$nulls":16},"GRAND RAPIDSMIE-6",966,"GRAND RAPIDSMIE-6",1287]
[{"$nulls":16},"GRAND RAPIDSMIE-7",966,"GRAND RAPIDSMIE-7",1290]
[{"$nulls":16},"GRAND RAPIDSMIE-8",1104,"GRAND RAPIDSMIE-8",1290]
[{"$nulls":16},"GRAND RAPIDSMIE-9",1173,"GRAND RAPIDSMIE-9",1347]
[{"$nulls":16},"GRAND RAPIDSMIW-1",966,"GRAND RAPIDSMIW-1",1287]
[{"$nulls":16},"GRAND RAPIDSMIW-2",1101,"GRAND RAPIDSMIW-2",1290]
[{"$nulls":16},"GRAND RAPIDSMIW-3",1182,"GRAND RAPIDSMIW-3",1293]
[{"$nulls":16},"GRAND RAPIDSMIW-4",1287,"GRAND RAPIDSMIW-4",1368]
[{"$nulls":16},"GRAND RAPIDSMIW-5",1290,"GRAND RAPIDSMIW-5",1455]
[{"$nulls":16},"GRAND RAPIDSMIO-1E",1056,"GRAND RAPIDSMIO-1E",1290]
[{"$nulls":16},"GRAND RAPIDSMIO-2E",1158,"GRAND RAPIDSMIO-2E",1293]
[{"$nulls":16},"GRAND RAPIDSMIO-3E",1287,"GRAND RAPIDSMIO-3E",1380]
[{"$nulls":16},"GRAND RAPIDSMIO-1",840,"GRAND RAPIDSMIO-1",1083]
[{"$nulls":16},"GRAND RAPIDSMIO-2",1020,"GRAND RAPIDSMIO-2",1281]
[{"$nulls":16},"GRAND RAPIDSMIO-3",1203,"GRAND RAPIDSMIO-3",1293]
[{"$nulls":16},"GRAND RAPIDSMIO-4",1290,"GRAND RAPIDSMIO-4",1488]
[{"$nulls":16},"GRAND RAPIDSMIO-5",1290,"GRAND RAPIDSMIO-5",1629]
[{"$nulls":16},"GRAND RAPIDSMIO-6",1293,"GRAND RAPIDSMIO-6",1644]
[{"$nulls":16},"GRAND RAPIDSMIO-7",1320,"GRAND RAPIDSMIO-7",1662]
[{"$nulls":16},"ANN ARBORMIE-1",894,"ANN ARBORMIE-1",1191]
[{"$nulls":16},"ANN ARBORMIE-2",894,"ANN ARBORMIE-2",1191]
[{"$nulls":16},"ANN ARBORMIE-3",894,"ANN ARBORMIE-3",1191]
[{"$nulls":16},"ANN ARBORMIE-4",894,"ANN ARBORMIE-4",1191]
[{"$nulls":16},"ANN ARBORMIE-5",1020,"ANN ARBORMIE-5",1359]
[{"$nulls":16},"ANN ARBORMIE-6",1137,"ANN ARBORMIE-6",1515]
[{"$nulls":16},"ANN ARBORMIE-7",1218,"ANN ARBORMIE-7",1626]
[{"$nulls":16},"ANN ARBORMIE-8",1389,"ANN ARBORMIE-8",1743]
[{"$nulls":16},"ANN ARBORMIE-9",1440,"ANN ARBORMIE-9",1908]
[{"$nulls":16},"ANN ARBORMIW-1",1140,"ANN ARBORMIW-1",1518]
[{"$nulls":16},"ANN ARBORMIW-2",1389,"ANN ARBORMIW-2",1674]
[{"$nulls":16},"ANN ARBORMIW-3",1443,"ANN ARBORMIW-3",1818]
[{"$nulls":16},"ANN ARBORMIW-4",1542,"ANN ARBORMIW-4",1941]
[{"$nulls":16},"ANN ARBORMIW-5",1653,"ANN ARBORMIW-5",2088]
[{"$nulls":16},"ANN ARBORMIO-1E",1359,"ANN ARBORMIO-1E",1650]
[{"$nulls":16},"ANN ARBORMIO-2E",1428,"ANN ARBORMIO-2E",1797]
[{"$nulls":16},"ANN ARBORMIO-3E",1515,"ANN ARBORMIO-3E",1965]
[{"$nulls":16},"ANN ARBORMIO-1",1032,"ANN ARBORMIO-1",1374]
[{"$nulls":16},"ANN ARBORMIO-2",1302,"ANN ARBORMIO-2",1512]
[{"$nulls":16},"ANN ARBORMIO-3",1458,"ANN ARBORMIO-3",1812]
[{"$nulls":16},"ANN ARBORMIO-4",1638,"ANN ARBORMIO-4",2145]
[{"$nulls":16},"ANN ARBORMIO-5",1785,"ANN ARBORMIO-5",2379]
[{"$nulls":16},"ANN ARBORMIO-6",1818,"ANN ARBORMIO-6",2403]
[{"$nulls":16},"ANN ARBORMIO-7",1854,"ANN ARBORMIO-7",2427]
[{"$nulls":16},"SAGINAWMIE-1",639,"SAGINAWMIE-1",852]
[{"$nulls":16},"SAGINAWMIE-2",639,"SAGINAWMIE-2",852]
[{"$nulls":16},"SAGINAWMIE-3",639,"SAGINAWMIE-3",852]
[{"$nulls":16},"SAGINAWMIE-4",639,"SAGINAWMIE-4",852]
[{"$nulls":16},"SAGINAWMIE-5",714,"SAGINAWMIE-5",936]
[{"$nulls":16},"SAGINAWMIE-6",843,"SAGINAWMIE-6",1125]
[{"$nulls":16},"SAGINAWMIE-7",885,"SAGINAWMIE-7",1182]
[{"$nulls":16},"SAGINAWMIE-8",975,"SAGINAWMIE-8",1245]
[{"$nulls":16},"SAGINAWMIE-9",1032,"SAGINAWMIE-9",1320]
[{"$nulls":16},"SAGINAWMIW-1",846,"SAGINAWMIW-1",1128]
[{"$nulls":16},"SAGINAWMIW-2",972,"SAGINAWMIW-2",1206]
[{"$nulls":16},"SAGINAWMIW-3",1038,"SAGINAWMIW-3",1284]
[{"$nulls":16},"SAGINAWMIW-4",1140,"SAGINAWMIW-4",1335]
[{"$nulls":16},"SAGINAWMIW-5",1197,"SAGINAWMIW-5",1398]
[{"$nulls":16},"SAGINAWMIO-1E",936,"SAGINAWMIO-1E",1194]
[{"$nulls":16},"SAGINAWMIO-2E",1020,"SAGINAWMIO-2E",1272]
[{"$nulls":16},"SAGINAWMIO-3E",1125,"SAGINAWMIO-3E",1344]
[{"$nulls":16},"SAGINAWMIO-1",765,"SAGINAWMIO-1",957]
[{"$nulls":16},"SAGINAWMIO-2",909,"SAGINAWMIO-2",1122]
[{"$nulls":16},"SAGINAWMIO-3",1056,"SAGINAWMIO-3",1281]
[{"$nulls":16},"SAGINAWMIO-4",1188,"SAGINAWMIO-4",1422]
[{"$nulls":16},"SAGINAWMIO-5",1224,"SAGINAWMIO-5",1521]
[{"$nulls":16},"SAGINAWMIO-6",1284,"SAGINAWMIO-6",1536]
[{"$nulls":16},"SAGINAWMIO-7",1308,"SAGINAWMIO-7",1551]
[{"$nulls":16},"ALPENAMIE-1",546,"ALPENAMIE-1",729]
[{"$nulls":16},"ALPENAMIE-2",546,"ALPENAMIE-2",729]
[{"$nulls":16},"ALPENAMIE-3",546,"ALPENAMIE-3",729]
[{"$nulls":16},"ALPENAMIE-4",546,"ALPENAMIE-4",729]
[{"$nulls":16},"ALPENAMIE-5",624,"ALPENAMIE-5",831]
[{"$nulls":16},"ALPENAMIE-6",705,"ALPENAMIE-6",939]
[{"$nulls":16},"ALPENAMIE-7",735,"ALPENAMIE-7",978]
[{"$nulls":16},"ALPENAMIE-8",852,"ALPENAMIE-8",1020]
[{"$nulls":16},"ALPENAMIE-9",885,"ALPENAMIE-9",1092]
[{"$nulls":16},"ALPENAMIW-1",705,"ALPENAMIW-1",939]
[{"$nulls":16},"ALPENAMIW-2",852,"ALPENAMIW-2",996]
[{"$nulls":16},"ALPENAMIW-3",888,"ALPENAMIW-3",1050]
[{"$nulls":16},"ALPENAMIW-4",948,"ALPENAMIW-4",1110]
[{"$nulls":16},"ALPENAMIW-5",987,"ALPENAMIW-5",1182]
[{"$nulls":16},"ALPENAMIO-1E",831,"ALPENAMIO-1E",987]
[{"$nulls":16},"ALPENAMIO-2E",879,"ALPENAMIO-2E",1041]
[{"$nulls":16},"ALPENAMIO-3E",939,"ALPENAMIO-3E",1119]
[{"$nulls":16},"ALPENAMIO-1",630,"ALPENAMIO-1",843]
[{"$nulls":16},"ALPENAMIO-2",795,"ALPENAMIO-2",936]
[{"$nulls":16},"ALPENAMIO-3",900,"ALPENAMIO-3",1047]
[{"$nulls":16},"ALPENAMIO-4",981,"ALPENAMIO-4",1209]
[{"$nulls":16},"ALPENAMIO-5",1008,"ALPENAMIO-5",1323]
[{"$nulls":16},"ALPENAMIO-6",1050,"ALPENAMIO-6",1335]
[{"$nulls":16},"ALPENAMIO-7",1071,"ALPENAMIO-7",1350]
[{"$nulls":16},"CHARLEVOIXMIE-1",660,"CHARLEVOIXMIE-1",870]
[{"$nulls":16},"CHARLEVOIXMIE-2",660,"CHARLEVOIXMIE-2",870]
[{"$nulls":16},"CHARLEVOIXMIE-3",660,"CHARLEVOIXMIE-3",870]
[{"$nulls":16},"CHARLEVOIXMIE-4",660,"CHARLEVOIXMIE-4",870]
[{"$nulls":16},"CHARLEVOIXMIE-5",735,"CHARLEVOIXMIE-5",981]
[{"$nulls":16},"CHARLEVOIXMIE-6",873,"CHARLEVOIXMIE-6",1164]
[{"$nulls":16},"CHARLEVOIXMIE-7",912,"CHARLEVOIXMIE-7",1215]
[{"$nulls":16},"CHARLEVOIXMIE-8",1017,"CHARLEVOIXMIE-8",1269]
[{"$nulls":16},"CHARLEVOIXMIE-9",1074,"CHARLEVOIXMIE-9",1383]
[{"$nulls":16},"CHARLEVOIXMIW-1",873,"CHARLEVOIXMIW-1",1164]
[{"$nulls":16},"CHARLEVOIXMIW-2",1014,"CHARLEVOIXMIW-2",1236]
[{"$nulls":16},"CHARLEVOIXMIW-3",1080,"CHARLEVOIXMIW-3",1305]
[{"$nulls":16},"CHARLEVOIXMIW-4",1176,"CHARLEVOIXMIW-4",1413]
[{"$nulls":16},"CHARLEVOIXMIW-5",1227,"CHARLEVOIXMIW-5",1542]
[{"$nulls":16},"CHARLEVOIXMIO-1E",981,"CHARLEVOIXMIO-1E",1227]
[{"$nulls":16},"CHARLEVOIXMIO-2E",1062,"CHARLEVOIXMIO-2E",1296]
[{"$nulls":16},"CHARLEVOIXMIO-3E",1164,"CHARLEVOIXMIO-3E",1434]
[{"$nulls":16},"CHARLEVOIXMIO-1",759,"CHARLEVOIXMIO-1",999]
[{"$nulls":16},"CHARLEVOIXMIO-2",942,"CHARLEVOIXMIO-2",1161]
[{"$nulls":16},"CHARLEVOIXMIO-3",1098,"CHARLEVOIXMIO-3",1302]
[{"$nulls":16},"CHARLEVOIXMIO-4",1221,"CHARLEVOIXMIO-4",1593]
[{"$nulls":16},"CHARLEVOIXMIO-5",1350,"CHARLEVOIXMIO-5",1800]
[{"$nulls":16},"CHARLEVOIXMIO-6",1365,"CHARLEVOIXMIO-6",1818]
[{"$nulls":16},"CHARLEVOIXMIO-7",1377,"CHARLEVOIXMIO-7",1836]
[{"$nulls":16},"DULUTHMNE-1",783,"DULUTHMNE-1",1044]
[{"$nulls":16},"DULUTHMNE-2",783,"DULUTHMNE-2",1044]
[{"$nulls":16},"DULUTHMNE-3",783,"DULUTHMNE-3",1044]
[{"$nulls":16},"DULUTHMNE-4",783,"DULUTHMNE-4",1044]
[{"$nulls":16},"DULUTHMNE-5",888,"DULUTHMNE-5",1185]
[{"$nulls":16},"DULUTHMNE-6",1032,"DULUTHMNE-6",1374]
[{"$nulls":16},"DULUTHMNE-7",1050,"DULUTHMNE-7",1395]
[{"$nulls":16},"DULUTHMNE-8",1224,"DULUTHMNE-8",1416]
[{"$nulls":16},"DULUTHMNE-9",1281,"DULUTHMNE-9",1494]
[{"$nulls":16},"DULUTHMNW-1",1032,"DULUTHMNW-1",1374]
[{"$nulls":16},"DULUTHMNW-2",1221,"DULUTHMNW-2",1404]
[{"$nulls":16},"DULUTHMNW-3",1287,"DULUTHMNW-3",1431]
[{"$nulls":16},"DULUTHMNW-4",1380,"DULUTHMNW-4",1518]
[{"$nulls":16},"DULUTHMNW-5",1401,"DULUTHMNW-5",1623]
[{"$nulls":16},"DULUTHMNO-1E",1185,"DULUTHMNO-1E",1398]
[{"$nulls":16},"DULUTHMNO-2E",1269,"DULUTHMNO-2E",1428]
[{"$nulls":16},"DULUTHMNO-3E",1374,"DULUTHMNO-3E",1533]
[{"$nulls":16},"DULUTHMNO-1",903,"DULUTHMNO-1",1206]
[{"$nulls":16},"DULUTHMNO-2",1137,"DULUTHMNO-2",1371]
[{"$nulls":16},"DULUTHMNO-3",1305,"DULUTHMNO-3",1431]
[{"$nulls":16},"DULUTHMNO-4",1398,"DULUTHMNO-4",1662]
[{"$nulls":16},"DULUTHMNO-5",1410,"DULUTHMNO-5",1827]
[{"$nulls":16},"DULUTHMNO-6",1431,"DULUTHMNO-6",1845]
[{"$nulls":16},"DULUTHMNO-7",1461,"DULUTHMNO-7",1866]
[{"$nulls":16},"MINNEAPOLIS/ST PAULMNE-1",942,"MINNEAPOLIS/ST PAULMNE-1",1257]
[{"$nulls":16},"MINNEAPOLIS/ST PAULMNE-2",942,"MINNEAPOLIS/ST PAULMNE-2",1257]
[{"$nulls":16},"MINNEAPOLIS/ST PAULMNE-3",942,"MINNEAPOLIS/ST PAULMNE-3",1257]
[{"$nulls":16},"MINNEAPOLIS/ST PAULMNE-4",942,"MINNEAPOLIS/ST PAULMNE-4",1257]
[{"$nulls":16},"MINNEAPOLIS/ST PAULMNE-5",1071,"MINNEAPOLIS/ST PAULMNE-5",1428]
[{"$nulls":16},"MINNEAPOLIS/ST PAULMNE-6",1239,"MINNEAPOLIS/ST PAULMNE-6",1650]
[{"$nulls":16},"MINNEAPOLIS/ST PAULMNE-7",1269,"MINNEAPOLIS/ST PAULMNE-7",1692]
[{"$nulls":16},"MINNEAPOLIS/ST PAULMNE-8",1473,"MINNEAPOLIS/ST PAULMNE-8",1740]
[{"$nulls":16},"MINNEAPOLIS/ST PAULMNE-9",1542,"MINNEAPOLIS/ST PAULMNE-9",1818]
[{"$nulls":16},"MINNEAPOLIS/ST PAULMNW-1",1239,"MINNEAPOLIS/ST PAULMNW-1",1653]
[{"$nulls":16},"MINNEAPOLIS/ST PAULMNW-2",1470,"MINNEAPOLIS/ST PAULMNW-2",1713]
[{"$nulls":16},"MINNEAPOLIS/ST PAULMNW-3",1548,"MINNEAPOLIS/ST PAULMNW-3",1770]
[{"$nulls":16},"MINNEAPOLIS/ST PAULMNW-4",1662,"MINNEAPOLIS/ST PAULMNW-4",1836]
[{"$nulls":16},"MINNEAPOLIS/ST PAULMNW-5",1704,"MINNEAPOLIS/ST PAULMNW-5",1917]
[{"$nulls":16},"MINNEAPOLIS/ST PAULMNO-1E",1428,"MINNEAPOLIS/ST PAULMNO-1E",1704]
[{"$nulls":16},"MINNEAPOLIS/ST PAULMNO-2E",1527,"MINNEAPOLIS/ST PAULMNO-2E",1761]
[{"$nulls":16},"MINNEAPOLIS/ST PAULMNO-3E",1650,"MINNEAPOLIS/ST PAULMNO-3E",1851]
[{"$nulls":16},"MINNEAPOLIS/ST PAULMNO-1",1089,"MINNEAPOLIS/ST PAULMNO-1",1452]
[{"$nulls":16},"MINNEAPOLIS/ST PAULMNO-2",1368,"MINNEAPOLIS/ST PAULMNO-2",1647]
[{"$nulls":16},"MINNEAPOLIS/ST PAULMNO-3",1569,"MINNEAPOLIS/ST PAULMNO-3",1767]
[{"$nulls":16},"MINNEAPOLIS/ST PAULMNO-4",1698,"MINNEAPOLIS/ST PAULMNO-4",1950]
[{"$nulls":16},"MINNEAPOLIS/ST PAULMNO-5",1725,"MINNEAPOLIS/ST PAULMNO-5",2079]
[{"$nulls":16},"MINNEAPOLIS/ST PAULMNO-6",1770,"MINNEAPOLIS/ST PAULMNO-6",2100]
[{"$nulls":16},"MINNEAPOLIS/ST PAULMNO-7",1803,"MINNEAPOLIS/ST PAULMNO-7",2121]
[{"$nulls":16},"SAINT CLOUDMNE-1",657,"SAINT CLOUDMNE-1",876]
[{"$nulls":16},"SAINT CLOUDMNE-2",657,"SAINT CLOUDMNE-2",876]
[{"$nulls":16},"SAINT CLOUDMNE-3",657,"SAINT CLOUDMNE-3",876]
[{"$nulls":16},"SAINT CLOUDMNE-4",657,"SAINT CLOUDMNE-4",876]
[{"$nulls":16},"SAINT CLOUDMNE-5",756,"SAINT CLOUDMNE-5",1008]
[{"$nulls":16},"SAINT CLOUDMNE-6",888,"SAINT CLOUDMNE-6",1182]
[{"$nulls":16},"SAINT CLOUDMNE-7",942,"SAINT CLOUDMNE-7",1257]
[{"$nulls":16},"SAINT CLOUDMNE-8",1044,"SAINT CLOUDMNE-8",1338]
[{"$nulls":16},"SAINT CLOUDMNE-9",1098,"SAINT CLOUDMNE-9",1428]
[{"$nulls":16},"SAINT CLOUDMNW-1",888,"SAINT CLOUDMNW-1",1185]
[{"$nulls":16},"SAINT CLOUDMNW-2",1041,"SAINT CLOUDMNW-2",1290]
[{"$nulls":16},"SAINT CLOUDMNW-3",1101,"SAINT CLOUDMNW-3",1392]
[{"$nulls":16},"SAINT CLOUDMNW-4",1200,"SAINT CLOUDMNW-4",1440]
[{"$nulls":16},"SAINT CLOUDMNW-5",1275,"SAINT CLOUDMNW-5",1500]
[{"$nulls":16},"SAINT CLOUDMNO-1E",1008,"SAINT CLOUDMNO-1E",1275]
[{"$nulls":16},"SAINT CLOUDMNO-2E",1086,"SAINT CLOUDMNO-2E",1377]
[{"$nulls":16},"SAINT CLOUDMNO-3E",1182,"SAINT CLOUDMNO-3E",1449]
[{"$nulls":16},"SAINT CLOUDMNO-1",771,"SAINT CLOUDMNO-1",1026]
[{"$nulls":16},"SAINT CLOUDMNO-2",963,"SAINT CLOUDMNO-2",1179]
[{"$nulls":16},"SAINT CLOUDMNO-3",1119,"SAINT CLOUDMNO-3",1386]
[{"$nulls":16},"SAINT CLOUDMNO-4",1266,"SAINT CLOUDMNO-4",1524]
[{"$nulls":16},"SAINT CLOUDMNO-5",1314,"SAINT CLOUDMNO-5",1617]
[{"$nulls":16},"SAINT CLOUDMNO-6",1392,"SAINT CLOUDMNO-6",1635]
[{"$nulls":16},"SAINT CLOUDMNO-7",1419,"SAINT CLOUDMNO-7",1650]
[{"$nulls":16},"ROCHESTERMNE-1",693,"ROCHESTERMNE-1",903]
[{"$nulls":16},"ROCHESTERMNE-2",693,"ROCHESTERMNE-2",903]
[{"$nulls":16},"ROCHESTERMNE-3",693,"ROCHESTERMNE-3",903]
[{"$nulls":16},"ROCHESTERMNE-4",693,"ROCHESTERMNE-4",903]
[{"$nulls":16},"ROCHESTERMNE-5",771,"ROCHESTERMNE-5",1029]
[{"$nulls":16},"ROCHESTERMNE-6",888,"ROCHESTERMNE-6",1182]
[{"$nulls":16},"ROCHESTERMNE-7",933,"ROCHESTERMNE-7",1245]
[{"$nulls":16},"ROCHESTERMNE-8",1059,"ROCHESTERMNE-8",1311]
[{"$nulls":16},"ROCHESTERMNE-9",1107,"ROCHESTERMNE-9",1413]
[{"$nulls":16},"ROCHESTERMNW-1",888,"ROCHESTERMNW-1",1185]
[{"$nulls":16},"ROCHESTERMNW-2",1059,"ROCHESTERMNW-2",1272]
[{"$nulls":16},"ROCHESTERMNW-3",1113,"ROCHESTERMNW-3",1356]
[{"$nulls":16},"ROCHESTERMNW-4",1197,"ROCHESTERMNW-4",1437]
[{"$nulls":16},"ROCHESTERMNW-5",1260,"ROCHESTERMNW-5",1530]
[{"$nulls":16},"ROCHESTERMNO-1E",1029,"ROCHESTERMNO-1E",1260]
[{"$nulls":16},"ROCHESTERMNO-2E",1098,"ROCHESTERMNO-2E",1344]
[{"$nulls":16},"ROCHESTERMNO-3E",1182,"ROCHESTERMNO-3E",1449]
[{"$nulls":16},"ROCHESTERMNO-1",783,"ROCHESTERMNO-1",1047]
[{"$nulls":16},"ROCHESTERMNO-2",987,"ROCHESTERMNO-2",1179]
[{"$nulls":16},"ROCHESTERMNO-3",1128,"ROCHESTERMNO-3",1353]
[{"$nulls":16},"ROCHESTERMNO-4",1251,"ROCHESTERMNO-4",1569]
[{"$nulls":16},"ROCHESTERMNO-5",1293,"ROCHESTERMNO-5",1722]
[{"$nulls":16},"ROCHESTERMNO-6",1356,"ROCHESTERMNO-6",1740]
[{"$nulls":16},"ROCHESTERMNO-7",1383,"ROCHESTERMNO-7",1755]
[{"$nulls":16},"KANSAS CITYMOE-1",765,"KANSAS CITYMOE-1",1002]
[{"$nulls":16},"KANSAS CITYMOE-2",765,"KANSAS CITYMOE-2",1002]
[{"$nulls":16},"KANSAS CITYMOE-3",765,"KANSAS CITYMOE-3",1002]
[{"$nulls":16},"KANSAS CITYMOE-4",765,"KANSAS CITYMOE-4",1002]
[{"$nulls":16},"KANSAS CITYMOE-5",861,"KANSAS CITYMOE-5",1095]
[{"$nulls":16},"KANSAS CITYMOE-6",921,"KANSAS CITYMOE-6",1221]
[{"$nulls":16},"KANSAS CITYMOE-7",1005,"KANSAS CITYMOE-7",1257]
[{"$nulls":16},"KANSAS CITYMOE-8",1119,"KANSAS CITYMOE-8",1299]
[{"$nulls":16},"KANSAS CITYMOE-9",1158,"KANSAS CITYMOE-9",1398]
[{"$nulls":16},"KANSAS CITYMOW-1",966,"KANSAS CITYMOW-1",1221]
[{"$nulls":16},"KANSAS CITYMOW-2",1119,"KANSAS CITYMOW-2",1275]
[{"$nulls":16},"KANSAS CITYMOW-3",1161,"KANSAS CITYMOW-3",1326]
[{"$nulls":16},"KANSAS CITYMOW-4",1230,"KANSAS CITYMOW-4",1428]
[{"$nulls":16},"KANSAS CITYMOW-5",1269,"KANSAS CITYMOW-5",1545]
[{"$nulls":16},"KANSAS CITYMOO-1E",1095,"KANSAS CITYMOO-1E",1266]
[{"$nulls":16},"KANSAS CITYMOO-2E",1149,"KANSAS CITYMOO-2E",1320]
[{"$nulls":16},"KANSAS CITYMOO-3E",1221,"KANSAS CITYMOO-3E",1446]
[{"$nulls":16},"KANSAS CITYMOO-1",906,"KANSAS CITYMOO-1",1107]
[{"$nulls":16},"KANSAS CITYMOO-2",1062,"KANSAS CITYMOO-2",1218]
[{"$nulls":16},"KANSAS CITYMOO-3",1176,"KANSAS CITYMOO-3",1323]
[{"$nulls":16},"KANSAS CITYMOO-4",1263,"KANSAS CITYMOO-4",1593]
[{"$nulls":16},"KANSAS CITYMOO-5",1338,"KANSAS CITYMOO-5",1785]
[{"$nulls":16},"KANSAS CITYMOO-6",1353,"KANSAS CITYMOO-6",1803]
[{"$nulls":16},"KANSAS CITYMOO-7",1365,"KANSAS CITYMOO-7",1821]
[{"$nulls":16},"ST. LOUISMOE-1",870,"ST. LOUISMOE-1",1143]
[{"$nulls":16},"ST. LOUISMOE-2",870,"ST. LOUISMOE-2",1143]
[{"$nulls":16},"ST. LOUISMOE-3",870,"ST. LOUISMOE-3",1143]
[{"$nulls":16},"ST. LOUISMOE-4",870,"ST. LOUISMOE-4",1143]
[{"$nulls":16},"ST. LOUISMOE-5",993,"ST. LOUISMOE-5",1233]
[{"$nulls":16},"ST. LOUISMOE-6",1137,"ST. LOUISMOE-6",1515]
[{"$nulls":16},"ST. LOUISMOE-7",1149,"ST. LOUISMOE-7",1524]
[{"$nulls":16},"ST. LOUISMOE-8",1290,"ST. LOUISMOE-8",1536]
[{"$nulls":16},"ST. LOUISMOE-9",1377,"ST. LOUISMOE-9",1602]
[{"$nulls":16},"ST. LOUISMOW-1",1137,"ST. LOUISMOW-1",1515]
[{"$nulls":16},"ST. LOUISMOW-2",1287,"ST. LOUISMOW-2",1530]
[{"$nulls":16},"ST. LOUISMOW-3",1386,"ST. LOUISMOW-3",1545]
[{"$nulls":16},"ST. LOUISMOW-4",1518,"ST. LOUISMOW-4",1626]
[{"$nulls":16},"ST. LOUISMOW-5",1527,"ST. LOUISMOW-5",1719]
[{"$nulls":16},"ST. LOUISMOO-1E",1233,"ST. LOUISMOO-1E",1527]
[{"$nulls":16},"ST. LOUISMOO-2E",1356,"ST. LOUISMOO-2E",1542]
[{"$nulls":16},"ST. LOUISMOO-3E",1515,"ST. LOUISMOO-3E",1638]
[{"$nulls":16},"ST. LOUISMOO-1",1053,"ST. LOUISMOO-1",1263]
[{"$nulls":16},"ST. LOUISMOO-2",1203,"ST. LOUISMOO-2",1509]
[{"$nulls":16},"ST. LOUISMOO-3",1413,"ST. LOUISMOO-3",1542]
[{"$nulls":16},"ST. LOUISMOO-4",1527,"ST. LOUISMOO-4",1758]
[{"$nulls":16},"ST. LOUISMOO-5",1533,"ST. LOUISMOO-5",1911]
[{"$nulls":16},"ST. LOUISMOO-6",1545,"ST. LOUISMOO-6",1929]
[{"$nulls":16},"ST. LOUISMOO-7",1575,"ST. LOUISMOO-7",1950]
[{"$nulls":16},"WHITEMAN AFBMOE-1",591,"WHITEMAN AFBMOE-1",786]
[{"$nulls":16},"WHITEMAN AFBMOE-2",591,"WHITEMAN AFBMOE-2",786]
[{"$nulls":16},"WHITEMAN AFBMOE-3",591,"WHITEMAN AFBMOE-3",786]
[{"$nulls":16},"WHITEMAN AFBMOE-4",591,"WHITEMAN AFBMOE-4",786]
[{"$nulls":16},"WHITEMAN AFBMOE-5",687,"WHITEMAN AFBMOE-5",915]
[{"$nulls":16},"WHITEMAN AFBMOE-6",858,"WHITEMAN AFBMOE-6",1143]
[{"$nulls":16},"WHITEMAN AFBMOE-7",918,"WHITEMAN AFBMOE-7",1224]
[{"$nulls":16},"WHITEMAN AFBMOE-8",984,"WHITEMAN AFBMOE-8",1311]
[{"$nulls":16},"WHITEMAN AFBMOE-9",1050,"WHITEMAN AFBMOE-9",1401]
[{"$nulls":16},"WHITEMAN AFBMOW-1",858,"WHITEMAN AFBMOW-1",1146]
[{"$nulls":16},"WHITEMAN AFBMOW-2",957,"WHITEMAN AFBMOW-2",1260]
[{"$nulls":16},"WHITEMAN AFBMOW-3",1038,"WHITEMAN AFBMOW-3",1368]
[{"$nulls":16},"WHITEMAN AFBMOW-4",1164,"WHITEMAN AFBMOW-4",1413]
[{"$nulls":16},"WHITEMAN AFBMOW-5",1245,"WHITEMAN AFBMOW-5",1464]
[{"$nulls":16},"WHITEMAN AFBMOO-1E",930,"WHITEMAN AFBMOO-1E",1242]
[{"$nulls":16},"WHITEMAN AFBMOO-2E",1014,"WHITEMAN AFBMOO-2E",1350]
[{"$nulls":16},"WHITEMAN AFBMOO-3E",1143,"WHITEMAN AFBMOO-3E",1419]
[{"$nulls":16},"WHITEMAN AFBMOO-1",705,"WHITEMAN AFBMOO-1",939]
[{"$nulls":16},"WHITEMAN AFBMOO-2",870,"WHITEMAN AFBMOO-2",1137]
[{"$nulls":16},"WHITEMAN AFBMOO-3",1062,"WHITEMAN AFBMOO-3",1362]
[{"$nulls":16},"WHITEMAN AFBMOO-4",1233,"WHITEMAN AFBMOO-4",1485]
[{"$nulls":16},"WHITEMAN AFBMOO-5",1284,"WHITEMAN AFBMOO-5",1572]
[{"$nulls":16},"WHITEMAN AFBMOO-6",1368,"WHITEMAN AFBMOO-6",1587]
[{"$nulls":16},"WHITEMAN AFBMOO-7",1395,"WHITEMAN AFBMOO-7",1602]
[{"$nulls":16},"FORT LEONARD WOODMOE-1",717,"FORT LEONARD WOODMOE-1",918]
[{"$nulls":16},"FORT LEONARD WOODMOE-2",717,"FORT LEONARD WOODMOE-2",918]
[{"$nulls":16},"FORT LEONARD WOODMOE-3",717,"FORT LEONARD WOODMOE-3",918]
[{"$nulls":16},"FORT LEONARD WOODMOE-4",717,"FORT LEONARD WOODMOE-4",918]
[{"$nulls":16},"FORT LEONARD WOODMOE-5",792,"FORT LEONARD WOODMOE-5",1011]
[{"$nulls":16},"FORT LEONARD WOODMOE-6",840,"FORT LEONARD WOODMOE-6",1113]
[{"$nulls":16},"FORT LEONARD WOODMOE-7",924,"FORT LEONARD WOODMOE-7",1122]
[{"$nulls":16},"FORT LEONARD WOODMOE-8",1032,"FORT LEONARD WOODMOE-8",1131]
[{"$nulls":16},"FORT LEONARD WOODMOE-9",1062,"FORT LEONARD WOODMOE-9",1176]
[{"$nulls":16},"FORT LEONARD WOODMOW-1",885,"FORT LEONARD WOODMOW-1",1113]
[{"$nulls":16},"FORT LEONARD WOODMOW-2",1029,"FORT LEONARD WOODMOW-2",1125]
[{"$nulls":16},"FORT LEONARD WOODMOW-3",1065,"FORT LEONARD WOODMOW-3",1137]
[{"$nulls":16},"FORT LEONARD WOODMOW-4",1116,"FORT LEONARD WOODMOW-4",1194]
[{"$nulls":16},"FORT LEONARD WOODMOW-5",1125,"FORT LEONARD WOODMOW-5",1260]
[{"$nulls":16},"FORT LEONARD WOODMOO-1E",1011,"FORT LEONARD WOODMOO-1E",1125]
[{"$nulls":16},"FORT LEONARD WOODMOO-2E",1056,"FORT LEONARD WOODMOO-2E",1134]
[{"$nulls":16},"FORT LEONARD WOODMOO-3E",1113,"FORT LEONARD WOODMOO-3E",1203]
[{"$nulls":16},"FORT LEONARD WOODMOO-1",828,"FORT LEONARD WOODMOO-1",1020]
[{"$nulls":16},"FORT LEONARD WOODMOO-2",978,"FORT LEONARD WOODMOO-2",1113]
[{"$nulls":16},"FORT LEONARD WOODMOO-3",1077,"FORT LEONARD WOODMOO-3",1137]
[{"$nulls":16},"FORT LEONARD WOODMOO-4",1122,"FORT LEONARD WOODMOO-4",1284]
[{"$nulls":16},"FORT LEONARD WOODMOO-5",1128,"FORT LEONARD WOODMOO-5",1392]
[{"$nulls":16},"FORT LEONARD WOODMOO-6",1137,"FORT LEONARD WOODMOO-6",1407]
[{"$nulls":16},"FORT LEONARD WOODMOO-7",1158,"FORT LEONARD WOODMOO-7",1422]
[{"$nulls":16},"SPRINGFIELDMOE-1",705,"SPRINGFIELDMOE-1",939]
[{"$nulls":16},"SPRINGFIELDMOE-2",705,"SPRINGFIELDMOE-2",939]
[{"$nulls":16},"SPRINGFIELDMOE-3",705,"SPRINGFIELDMOE-3",939]
[{"$nulls":16},"SPRINGFIELDMOE-4",705,"SPRINGFIELDMOE-4",939]
[{"$nulls":16},"SPRINGFIELDMOE-5",816,"SPRINGFIELDMOE-5",1005]
[{"$nulls":16},"SPRINGFIELDMOE-6",882,"SPRINGFIELDMOE-6",1035]
[{"$nulls":16},"SPRINGFIELDMOE-7",945,"SPRINGFIELDMOE-7",1074]
[{"$nulls":16},"SPRINGFIELDMOE-8",1011,"SPRINGFIELDMOE-8",1119]
[{"$nulls":16},"SPRINGFIELDMOE-9",1020,"SPRINGFIELDMOE-9",1206]
[{"$nulls":16},"SPRINGFIELDMOW-1",915,"SPRINGFIELDMOW-1",1038]
[{"$nulls":16},"SPRINGFIELDMOW-2",1011,"SPRINGFIELDMOW-2",1092]
[{"$nulls":16},"SPRINGFIELDMOW-3",1023,"SPRINGFIELDMOW-3",1146]
[{"$nulls":16},"SPRINGFIELDMOW-4",1047,"SPRINGFIELDMOW-4",1227]
[{"$nulls":16},"SPRINGFIELDMOW-5",1086,"SPRINGFIELDMOW-5",1326]
[{"$nulls":16},"SPRINGFIELDMOO-1E",1005,"SPRINGFIELDMOO-1E",1083]
[{"$nulls":16},"SPRINGFIELDMOO-2E",1020,"SPRINGFIELDMOO-2E",1137]
[{"$nulls":16},"SPRINGFIELDMOO-3E",1035,"SPRINGFIELDMOO-3E",1242]
[{"$nulls":16},"SPRINGFIELDMOO-1",873,"SPRINGFIELDMOO-1",1008]
[{"$nulls":16},"SPRINGFIELDMOO-2",984,"SPRINGFIELDMOO-2",1035]
[{"$nulls":16},"SPRINGFIELDMOO-3",1026,"SPRINGFIELDMOO-3",1143]
[{"$nulls":16},"SPRINGFIELDMOO-4",1080,"SPRINGFIELDMOO-4",1365]
[{"$nulls":16},"SPRINGFIELDMOO-5",1143,"SPRINGFIELDMOO-5",1524]
[{"$nulls":16},"SPRINGFIELDMOO-6",1155,"SPRINGFIELDMOO-6",1539]
[{"$nulls":16},"SPRINGFIELDMOO-7",1167,"SPRINGFIELDMOO-7",1554]
[{"$nulls":16},"COLUMBIA/JEFFERSON CITYMOE-1",693,"COLUMBIA/JEFFERSON CITYMOE-1",825]
[{"$nulls":16},"COLUMBIA/JEFFERSON CITYMOE-2",693,"COLUMBIA/JEFFERSON CITYMOE-2",825]
[{"$nulls":16},"COLUMBIA/JEFFERSON CITYMOE-3",693,"COLUMBIA/JEFFERSON CITYMOE-3",825]
[{"$nulls":16},"COLUMBIA/JEFFERSON CITYMOE-4",693,"COLUMBIA/JEFFERSON CITYMOE-4",825]
[{"$nulls":16},"COLUMBIA/JEFFERSON CITYMOE-5",741,"COLUMBIA/JEFFERSON CITYMOE-5",882]
[{"$nulls":16},"COLUMBIA/JEFFERSON CITYMOE-6",798,"COLUMBIA/JEFFERSON CITYMOE-6",1062]
[{"$nulls":16},"COLUMBIA/JEFFERSON CITYMOE-7",828,"COLUMBIA/JEFFERSON CITYMOE-7",1089]
[{"$nulls":16},"COLUMBIA/JEFFERSON CITYMOE-8",918,"COLUMBIA/JEFFERSON CITYMOE-8",1116]
[{"$nulls":16},"COLUMBIA/JEFFERSON CITYMOE-9",975,"COLUMBIA/JEFFERSON CITYMOE-9",1179]
[{"$nulls":16},"COLUMBIA/JEFFERSON CITYMOW-1",804,"COLUMBIA/JEFFERSON CITYMOW-1",1062]
[{"$nulls":16},"COLUMBIA/JEFFERSON CITYMOW-2",918,"COLUMBIA/JEFFERSON CITYMOW-2",1098]
[{"$nulls":16},"COLUMBIA/JEFFERSON CITYMOW-3",981,"COLUMBIA/JEFFERSON CITYMOW-3",1134]
[{"$nulls":16},"COLUMBIA/JEFFERSON CITYMOW-4",1068,"COLUMBIA/JEFFERSON CITYMOW-4",1194]
[{"$nulls":16},"COLUMBIA/JEFFERSON CITYMOW-5",1095,"COLUMBIA/JEFFERSON CITYMOW-5",1266]
[{"$nulls":16},"COLUMBIA/JEFFERSON CITYMOO-1E",882,"COLUMBIA/JEFFERSON CITYMOO-1E",1092]
[{"$nulls":16},"COLUMBIA/JEFFERSON CITYMOO-2E",963,"COLUMBIA/JEFFERSON CITYMOO-2E",1128]
[{"$nulls":16},"COLUMBIA/JEFFERSON CITYMOO-3E",1062,"COLUMBIA/JEFFERSON CITYMOO-3E",1206]
[{"$nulls":16},"COLUMBIA/JEFFERSON CITYMOO-1",768,"COLUMBIA/JEFFERSON CITYMOO-1",903]
[{"$nulls":16},"COLUMBIA/JEFFERSON CITYMOO-2",864,"COLUMBIA/JEFFERSON CITYMOO-2",1059]
[{"$nulls":16},"COLUMBIA/JEFFERSON CITYMOO-3",999,"COLUMBIA/JEFFERSON CITYMOO-3",1131]
[{"$nulls":16},"COLUMBIA/JEFFERSON CITYMOO-4",1089,"COLUMBIA/JEFFERSON CITYMOO-4",1296]
[{"$nulls":16},"COLUMBIA/JEFFERSON CITYMOO-5",1107,"COLUMBIA/JEFFERSON CITYMOO-5",1413]
[{"$nulls":16},"COLUMBIA/JEFFERSON CITYMOO-6",1134,"COLUMBIA/JEFFERSON CITYMOO-6",1425]
[{"$nulls":16},"COLUMBIA/JEFFERSON CITYMOO-7",1155,"COLUMBIA/JEFFERSON CITYMOO-7",1440]
[{"$nulls":16},"CAPE GIRARDEAUMOE-1",648,"CAPE GIRARDEAUMOE-1",861]
[{"$nulls":16},"CAPE GIRARDEAUMOE-2",648,"CAPE GIRARDEAUMOE-2",861]
[{"$nulls":16},"CAPE GIRARDEAUMOE-3",648,"CAPE GIRARDEAUMOE-3",861]
[{"$nulls":16},"CAPE GIRARDEAUMOE-4",648,"CAPE GIRARDEAUMOE-4",861]
[{"$nulls":16},"CAPE GIRARDEAUMOE-5",765,"CAPE GIRARDEAUMOE-5",1017]
[{"$nulls":16},"CAPE GIRARDEAUMOE-6",909,"CAPE GIRARDEAUMOE-6",1212]
[{"$nulls":16},"CAPE GIRARDEAUMOE-7",933,"CAPE GIRARDEAUMOE-7",1245]
[{"$nulls":16},"CAPE GIRARDEAUMOE-8",1056,"CAPE GIRARDEAUMOE-8",1281]
[{"$nulls":16},"CAPE GIRARDEAUMOE-9",1116,"CAPE GIRARDEAUMOE-9",1353]
[{"$nulls":16},"CAPE GIRARDEAUMOW-1",909,"CAPE GIRARDEAUMOW-1",1212]
[{"$nulls":16},"CAPE GIRARDEAUMOW-2",1056,"CAPE GIRARDEAUMOW-2",1260]
[{"$nulls":16},"CAPE GIRARDEAUMOW-3",1122,"CAPE GIRARDEAUMOW-3",1305]
[{"$nulls":16},"CAPE GIRARDEAUMOW-4",1221,"CAPE GIRARDEAUMOW-4",1371]
[{"$nulls":16},"CAPE GIRARDEAUMOW-5",1254,"CAPE GIRARDEAUMOW-5",1446]
[{"$nulls":16},"CAPE GIRARDEAUMOO-1E",1017,"CAPE GIRARDEAUMOO-1E",1251]
[{"$nulls":16},"CAPE GIRARDEAUMOO-2E",1104,"CAPE GIRARDEAUMOO-2E",1299]
[{"$nulls":16},"CAPE GIRARDEAUMOO-3E",1212,"CAPE GIRARDEAUMOO-3E",1380]
[{"$nulls":16},"CAPE GIRARDEAUMOO-1",780,"CAPE GIRARDEAUMOO-1",1038]
[{"$nulls":16},"CAPE GIRARDEAUMOO-2",966,"CAPE GIRARDEAUMOO-2",1209]
[{"$nulls":16},"CAPE GIRARDEAUMOO-3",1143,"CAPE GIRARDEAUMOO-3",1302]
[{"$nulls":16},"CAPE GIRARDEAUMOO-4",1248,"CAPE GIRARDEAUMOO-4",1476]
[{"$nulls":16},"CAPE GIRARDEAUMOO-5",1269,"CAPE GIRARDEAUMOO-5",1602]
[{"$nulls":16},"CAPE GIRARDEAUMOO-6",1305,"CAPE GIRARDEAUMOO-6",1617]
[{"$nulls":16},"CAPE GIRARDEAUMOO-7",1329,"CAPE GIRARDEAUMOO-7",1635]
[{"$nulls":16},"SAINT JOSEPHMOE-1",597,"SAINT JOSEPHMOE-1",795]
[{"$nulls":16},"SAINT JOSEPHMOE-2",597,"SAINT JOSEPHMOE-2",795]
[{"$nulls":16},"SAINT JOSEPHMOE-3",597,"SAINT JOSEPHMOE-3",795]
[{"$nulls":16},"SAINT JOSEPHMOE-4",597,"SAINT JOSEPHMOE-4",795]
[{"$nulls":16},"SAINT JOSEPHMOE-5",678,"SAINT JOSEPHMOE-5",903]
[{"$nulls":16},"SAINT JOSEPHMOE-6",849,"SAINT JOSEPHMOE-6",1134]
[{"$nulls":16},"SAINT JOSEPHMOE-7",876,"SAINT JOSEPHMOE-7",1170]
[{"$nulls":16},"SAINT JOSEPHMOE-8",948,"SAINT JOSEPHMOE-8",1209]
[{"$nulls":16},"SAINT JOSEPHMOE-9",1020,"SAINT JOSEPHMOE-9",1260]
[{"$nulls":16},"SAINT JOSEPHMOW-1",852,"SAINT JOSEPHMOW-1",1134]
[{"$nulls":16},"SAINT JOSEPHMOW-2",945,"SAINT JOSEPHMOW-2",1185]
[{"$nulls":16},"SAINT JOSEPHMOW-3",1026,"SAINT JOSEPHMOW-3",1233]
[{"$nulls":16},"SAINT JOSEPHMOW-4",1143,"SAINT JOSEPHMOW-4",1269]
[{"$nulls":16},"SAINT JOSEPHMOW-5",1179,"SAINT JOSEPHMOW-5",1314]
[{"$nulls":16},"SAINT JOSEPHMOO-1E",903,"SAINT JOSEPHMOO-1E",1176]
[{"$nulls":16},"SAINT JOSEPHMOO-2E",1005,"SAINT JOSEPHMOO-2E",1227]
[{"$nulls":16},"SAINT JOSEPHMOO-3E",1134,"SAINT JOSEPHMOO-3E",1278]
[{"$nulls":16},"SAINT JOSEPHMOO-1",696,"SAINT JOSEPHMOO-1",927]
[{"$nulls":16},"SAINT JOSEPHMOO-2",864,"SAINT JOSEPHMOO-2",1128]
[{"$nulls":16},"SAINT JOSEPHMOO-3",1050,"SAINT JOSEPHMOO-3",1230]
[{"$nulls":16},"SAINT JOSEPHMOO-4",1173,"SAINT JOSEPHMOO-4",1332]
[{"$nulls":16},"SAINT JOSEPHMOO-5",1197,"SAINT JOSEPHMOO-5",1401]
[{"$nulls":16},"SAINT JOSEPHMOO-6",1233,"SAINT JOSEPHMOO-6",1416]
[{"$nulls":16},"SAINT JOSEPHMOO-7",1257,"SAINT JOSEPHMOO-7",1431]
[{"$nulls":16},"GULFPORTMSE-1",918,"GULFPORTMSE-1",1155]
[{"$nulls":16},"GULFPORTMSE-2",918,"GULFPORTMSE-2",1155]
[{"$nulls":16},"GULFPORTMSE-3",918,"GULFPORTMSE-3",1155]
[{"$nulls":16},"GULFPORTMSE-4",918,"GULFPORTMSE-4",1155]
[{"$nulls":16},"GULFPORTMSE-5",1008,"GULFPORTMSE-5",1254]
[{"$nulls":16},"GULFPORTMSE-6",1068,"GULFPORTMSE-6",1419]
[{"$nulls":16},"GULFPORTMSE-7",1158,"GULFPORTMSE-7",1428]
[{"$nulls":16},"GULFPORTMSE-8",1287,"GULFPORTMSE-8",1437]
[{"$nulls":16},"GULFPORTMSE-9",1338,"GULFPORTMSE-9",1524]
[{"$nulls":16},"GULFPORTMSW-1",1116,"GULFPORTMSW-1",1419]
[{"$nulls":16},"GULFPORTMSW-2",1284,"GULFPORTMSW-2",1431]
[{"$nulls":16},"GULFPORTMSW-3",1344,"GULFPORTMSW-3",1443]
[{"$nulls":16},"GULFPORTMSW-4",1422,"GULFPORTMSW-4",1557]
[{"$nulls":16},"GULFPORTMSW-5",1431,"GULFPORTMSW-5",1689]
[{"$nulls":16},"GULFPORTMSO-1E",1254,"GULFPORTMSO-1E",1431]
[{"$nulls":16},"GULFPORTMSO-2E",1326,"GULFPORTMSO-2E",1443]
[{"$nulls":16},"GULFPORTMSO-3E",1419,"GULFPORTMSO-3E",1575]
[{"$nulls":16},"GULFPORTMSO-1",1053,"GULFPORTMSO-1",1272]
[{"$nulls":16},"GULFPORTMSO-2",1218,"GULFPORTMSO-2",1416]
[{"$nulls":16},"GULFPORTMSO-3",1359,"GULFPORTMSO-3",1443]
[{"$nulls":16},"GULFPORTMSO-4",1431,"GULFPORTMSO-4",1740]
[{"$nulls":16},"GULFPORTMSO-5",1464,"GULFPORTMSO-5",1953]
[{"$nulls":16},"GULFPORTMSO-6",1479,"GULFPORTMSO-6",1971]
[{"$nulls":16},"GULFPORTMSO-7",1494,"GULFPORTMSO-7",1992]
[{"$nulls":16},"COLUMBUS AFBMSE-1",753,"COLUMBUS AFBMSE-1",891]
[{"$nulls":16},"COLUMBUS AFBMSE-2",753,"COLUMBUS AFBMSE-2",891]
[{"$nulls":16},"COLUMBUS AFBMSE-3",753,"COLUMBUS AFBMSE-3",891]
[{"$nulls":16},"COLUMBUS AFBMSE-4",753,"COLUMBUS AFBMSE-4",891]
[{"$nulls":16},"COLUMBUS AFBMSE-5",840,"COLUMBUS AFBMSE-5",900]
[{"$nulls":16},"COLUMBUS AFBMSE-6",882,"COLUMBUS AFBMSE-6",1155]
[{"$nulls":16},"COLUMBUS AFBMSE-7",921,"COLUMBUS AFBMSE-7",1230]
[{"$nulls":16},"COLUMBUS AFBMSE-8",984,"COLUMBUS AFBMSE-8",1311]
[{"$nulls":16},"COLUMBUS AFBMSE-9",1065,"COLUMBUS AFBMSE-9",1422]
[{"$nulls":16},"COLUMBUS AFBMSW-1",888,"COLUMBUS AFBMSW-1",1155]
[{"$nulls":16},"COLUMBUS AFBMSW-2",948,"COLUMBUS AFBMSW-2",1263]
[{"$nulls":16},"COLUMBUS AFBMSW-3",1038,"COLUMBUS AFBMSW-3",1365]
[{"$nulls":16},"COLUMBUS AFBMSW-4",1173,"COLUMBUS AFBMSW-4",1443]
[{"$nulls":16},"COLUMBUS AFBMSW-5",1248,"COLUMBUS AFBMSW-5",1533]
[{"$nulls":16},"COLUMBUS AFBMSO-1E",936,"COLUMBUS AFBMSO-1E",1248]
[{"$nulls":16},"COLUMBUS AFBMSO-2E",1014,"COLUMBUS AFBMSO-2E",1350]
[{"$nulls":16},"COLUMBUS AFBMSO-3E",1155,"COLUMBUS AFBMSO-3E",1455]
[{"$nulls":16},"COLUMBUS AFBMSO-1",882,"COLUMBUS AFBMSO-1",927]
[{"$nulls":16},"COLUMBUS AFBMSO-2",897,"COLUMBUS AFBMSO-2",1149]
[{"$nulls":16},"COLUMBUS AFBMSO-3",1062,"COLUMBUS AFBMSO-3",1362]
[{"$nulls":16},"COLUMBUS AFBMSO-4",1239,"COLUMBUS AFBMSO-4",1566]
[{"$nulls":16},"COLUMBUS AFBMSO-5",1287,"COLUMBUS AFBMSO-5",1713]
[{"$nulls":16},"COLUMBUS AFBMSO-6",1365,"COLUMBUS AFBMSO-6",1731]
[{"$nulls":16},"COLUMBUS AFBMSO-7",1392,"COLUMBUS AFBMSO-7",1749]
[{"$nulls":16},"JACKSONMSE-1",888,"JACKSONMSE-1",1113]
[{"$nulls":16},"JACKSONMSE-2",888,"JACKSONMSE-2",1113]
[{"$nulls":16},"JACKSONMSE-3",888,"JACKSONMSE-3",1113]
[{"$nulls":16},"JACKSONMSE-4",888,"JACKSONMSE-4",1113]
[{"$nulls":16},"JACKSONMSE-5",999,"JACKSONMSE-5",1173]
[{"$nulls":16},"JACKSONMSE-6",1062,"JACKSONMSE-6",1245]
[{"$nulls":16},"JACKSONMSE-7",1116,"JACKSONMSE-7",1344]
[{"$nulls":16},"JACKSONMSE-8",1188,"JACKSONMSE-8",1452]
[{"$nulls":16},"JACKSONMSE-9",1209,"JACKSONMSE-9",1578]
[{"$nulls":16},"JACKSONMSW-1",1092,"JACKSONMSW-1",1248]
[{"$nulls":16},"JACKSONMSW-2",1188,"JACKSONMSW-2",1389]
[{"$nulls":16},"JACKSONMSW-3",1212,"JACKSONMSW-3",1521]
[{"$nulls":16},"JACKSONMSW-4",1269,"JACKSONMSW-4",1602]
[{"$nulls":16},"JACKSONMSW-5",1368,"JACKSONMSW-5",1695]
[{"$nulls":16},"JACKSONMSO-1E",1173,"JACKSONMSO-1E",1365]
[{"$nulls":16},"JACKSONMSO-2E",1206,"JACKSONMSO-2E",1503]
[{"$nulls":16},"JACKSONMSO-3E",1245,"JACKSONMSO-3E",1614]
[{"$nulls":16},"JACKSONMSO-1",1053,"JACKSONMSO-1",1182]
[{"$nulls":16},"JACKSONMSO-2",1152,"JACKSONMSO-2",1245]
[{"$nulls":16},"JACKSONMSO-3",1218,"JACKSONMSO-3",1515]
[{"$nulls":16},"JACKSONMSO-4",1356,"JACKSONMSO-4",1731]
[{"$nulls":16},"JACKSONMSO-5",1419,"JACKSONMSO-5",1884]
[{"$nulls":16},"JACKSONMSO-6",1521,"JACKSONMSO-6",1902]
[{"$nulls":16},"JACKSONMSO-7",1551,"JACKSONMSO-7",1920]
[{"$nulls":16},"MERIDIANMSE-1",771,"MERIDIANMSE-1",969]
[{"$nulls":16},"MERIDIANMSE-2",771,"MERIDIANMSE-2",969]
[{"$nulls":16},"MERIDIANMSE-3",771,"MERIDIANMSE-3",969]
[{"$nulls":16},"MERIDIANMSE-4",771,"MERIDIANMSE-4",969]
[{"$nulls":16},"MERIDIANMSE-5",840,"MERIDIANMSE-5",1059]
[{"$nulls":16},"MERIDIANMSE-6",993,"MERIDIANMSE-6",1326]
[{"$nulls":16},"MERIDIANMSE-7",1002,"MERIDIANMSE-7",1335]
[{"$nulls":16},"MERIDIANMSE-8",1113,"MERIDIANMSE-8",1344]
[{"$nulls":16},"MERIDIANMSE-9",1194,"MERIDIANMSE-9",1428]
[{"$nulls":16},"MERIDIANMSW-1",993,"MERIDIANMSW-1",1326]
[{"$nulls":16},"MERIDIANMSW-2",1110,"MERIDIANMSW-2",1338]
[{"$nulls":16},"MERIDIANMSW-3",1203,"MERIDIANMSW-3",1353]
[{"$nulls":16},"MERIDIANMSW-4",1326,"MERIDIANMSW-4",1455]
[{"$nulls":16},"MERIDIANMSW-5",1338,"MERIDIANMSW-5",1581]
[{"$nulls":16},"MERIDIANMSO-1E",1059,"MERIDIANMSO-1E",1338]
[{"$nulls":16},"MERIDIANMSO-2E",1176,"MERIDIANMSO-2E",1350]
[{"$nulls":16},"MERIDIANMSO-3E",1326,"MERIDIANMSO-3E",1476]
[{"$nulls":16},"MERIDIANMSO-1",876,"MERIDIANMSO-1",1089]
[{"$nulls":16},"MERIDIANMSO-2",1029,"MERIDIANMSO-2",1320]
[{"$nulls":16},"MERIDIANMSO-3",1230,"MERIDIANMSO-3",1350]
[{"$nulls":16},"MERIDIANMSO-4",1335,"MERIDIANMSO-4",1626]
[{"$nulls":16},"MERIDIANMSO-5",1371,"MERIDIANMSO-5",1827]
[{"$nulls":16},"MERIDIANMSO-6",1383,"MERIDIANMSO-6",1845]
[{"$nulls":16},"MERIDIANMSO-7",1398,"MERIDIANMSO-7",1863]
[{"$nulls":16},"HATTIESBURGMSE-1",807,"HATTIESBURGMSE-1",1032]
[{"$nulls":16},"HATTIESBURGMSE-2",807,"HATTIESBURGMSE-2",1032]
[{"$nulls":16},"HATTIESBURGMSE-3",807,"HATTIESBURGMSE-3",1032]
[{"$nulls":16},"HATTIESBURGMSE-4",807,"HATTIESBURGMSE-4",1032]
[{"$nulls":16},"HATTIESBURGMSE-5",891,"HATTIESBURGMSE-5",1125]
[{"$nulls":16},"HATTIESBURGMSE-6",948,"HATTIESBURGMSE-6",1203]
[{"$nulls":16},"HATTIESBURGMSE-7",1035,"HATTIESBURGMSE-7",1221]
[{"$nulls":16},"HATTIESBURGMSE-8",1140,"HATTIESBURGMSE-8",1239]
[{"$nulls":16},"HATTIESBURGMSE-9",1164,"HATTIESBURGMSE-9",1305]
[{"$nulls":16},"HATTIESBURGMSW-1",993,"HATTIESBURGMSW-1",1203]
[{"$nulls":16},"HATTIESBURGMSW-2",1140,"HATTIESBURGMSW-2",1227]
[{"$nulls":16},"HATTIESBURGMSW-3",1167,"HATTIESBURGMSW-3",1251]
[{"$nulls":16},"HATTIESBURGMSW-4",1206,"HATTIESBURGMSW-4",1326]
[{"$nulls":16},"HATTIESBURGMSW-5",1224,"HATTIESBURGMSW-5",1416]
[{"$nulls":16},"HATTIESBURGMSO-1E",1125,"HATTIESBURGMSO-1E",1224]
[{"$nulls":16},"HATTIESBURGMSO-2E",1161,"HATTIESBURGMSO-2E",1248]
[{"$nulls":16},"HATTIESBURGMSO-3E",1203,"HATTIESBURGMSO-3E",1341]
[{"$nulls":16},"HATTIESBURGMSO-1",936,"HATTIESBURGMSO-1",1134]
[{"$nulls":16},"HATTIESBURGMSO-2",1095,"HATTIESBURGMSO-2",1200]
[{"$nulls":16},"HATTIESBURGMSO-3",1176,"HATTIESBURGMSO-3",1248]
[{"$nulls":16},"HATTIESBURGMSO-4",1221,"HATTIESBURGMSO-4",1452]
[{"$nulls":16},"HATTIESBURGMSO-5",1233,"HATTIESBURGMSO-5",1596]
[{"$nulls":16},"HATTIESBURGMSO-6",1251,"HATTIESBURGMSO-6",1611]
[{"$nulls":16},"HATTIESBURGMSO-7",1275,"HATTIESBURGMSO-7",1629]
[{"$nulls":16},"PASCAGOULAMSE-1",951,"PASCAGOULAMSE-1",1095]
[{"$nulls":16},"PASCAGOULAMSE-2",951,"PASCAGOULAMSE-2",1095]
[{"$nulls":16},"PASCAGOULAMSE-3",951,"PASCAGOULAMSE-3",1095]
[{"$nulls":16},"PASCAGOULAMSE-4",951,"PASCAGOULAMSE-4",1095]
[{"$nulls":16},"PASCAGOULAMSE-5",1017,"PASCAGOULAMSE-5",1140]
[{"$nulls":16},"PASCAGOULAMSE-6",1056,"PASCAGOULAMSE-6",1395]
[{"$nulls":16},"PASCAGOULAMSE-7",1098,"PASCAGOULAMSE-7",1425]
[{"$nulls":16},"PASCAGOULAMSE-8",1191,"PASCAGOULAMSE-8",1458]
[{"$nulls":16},"PASCAGOULAMSE-9",1272,"PASCAGOULAMSE-9",1542]
[{"$nulls":16},"PASCAGOULAMSW-1",1077,"PASCAGOULAMSW-1",1398]
[{"$nulls":16},"PASCAGOULAMSW-2",1188,"PASCAGOULAMSW-2",1440]
[{"$nulls":16},"PASCAGOULAMSW-3",1278,"PASCAGOULAMSW-3",1479]
[{"$nulls":16},"PASCAGOULAMSW-4",1404,"PASCAGOULAMSW-4",1563]
[{"$nulls":16},"PASCAGOULAMSW-5",1434,"PASCAGOULAMSW-5",1665]
[{"$nulls":16},"PASCAGOULAMSO-1E",1140,"PASCAGOULAMSO-1E",1434]
[{"$nulls":16},"PASCAGOULAMSO-2E",1254,"PASCAGOULAMSO-2E",1473]
[{"$nulls":16},"PASCAGOULAMSO-3E",1395,"PASCAGOULAMSO-3E",1578]
[{"$nulls":16},"PASCAGOULAMSO-1",1047,"PASCAGOULAMSO-1",1170]
[{"$nulls":16},"PASCAGOULAMSO-2",1125,"PASCAGOULAMSO-2",1392]
[{"$nulls":16},"PASCAGOULAMSO-3",1305,"PASCAGOULAMSO-3",1476]
[{"$nulls":16},"PASCAGOULAMSO-4",1428,"PASCAGOULAMSO-4",1704]
[{"$nulls":16},"PASCAGOULAMSO-5",1449,"PASCAGOULAMSO-5",1866]
[{"$nulls":16},"PASCAGOULAMSO-6",1479,"PASCAGOULAMSO-6",1884]
[{"$nulls":16},"PASCAGOULAMSO-7",1509,"PASCAGOULAMSO-7",1902]
[{"$nulls":16},"GREENVILLEMSE-1",693,"GREENVILLEMSE-1",879]
[{"$nulls":16},"GREENVILLEMSE-2",693,"GREENVILLEMSE-2",879]
[{"$nulls":16},"GREENVILLEMSE-3",693,"GREENVILLEMSE-3",879]
[{"$nulls":16},"GREENVILLEMSE-4",693,"GREENVILLEMSE-4",879]
[{"$nulls":16},"GREENVILLEMSE-5",786,"GREENVILLEMSE-5",924]
[{"$nulls":16},"GREENVILLEMSE-6",837,"GREENVILLEMSE-6",1050]
[{"$nulls":16},"GREENVILLEMSE-7",879,"GREENVILLEMSE-7",1080]
[{"$nulls":16},"GREENVILLEMSE-8",951,"GREENVILLEMSE-8",1110]
[{"$nulls":16},"GREENVILLEMSE-9",990,"GREENVILLEMSE-9",1152]
[{"$nulls":16},"GREENVILLEMSW-1",858,"GREENVILLEMSW-1",1053]
[{"$nulls":16},"GREENVILLEMSW-2",948,"GREENVILLEMSW-2",1092]
[{"$nulls":16},"GREENVILLEMSW-3",993,"GREENVILLEMSW-3",1131]
[{"$nulls":16},"GREENVILLEMSW-4",1059,"GREENVILLEMSW-4",1161]
[{"$nulls":16},"GREENVILLEMSW-5",1086,"GREENVILLEMSW-5",1197]
[{"$nulls":16},"GREENVILLEMSO-1E",924,"GREENVILLEMSO-1E",1086]
[{"$nulls":16},"GREENVILLEMSO-2E",981,"GREENVILLEMSO-2E",1125]
[{"$nulls":16},"GREENVILLEMSO-3E",1050,"GREENVILLEMSO-3E",1167]
[{"$nulls":16},"GREENVILLEMSO-1",831,"GREENVILLEMSO-1",939]
[{"$nulls":16},"GREENVILLEMSO-2",909,"GREENVILLEMSO-2",1047]
[{"$nulls":16},"GREENVILLEMSO-3",1005,"GREENVILLEMSO-3",1128]
[{"$nulls":16},"GREENVILLEMSO-4",1083,"GREENVILLEMSO-4",1209]
[{"$nulls":16},"GREENVILLEMSO-5",1101,"GREENVILLEMSO-5",1266]
[{"$nulls":16},"GREENVILLEMSO-6",1131,"GREENVILLEMSO-6",1281]
[{"$nulls":16},"GREENVILLEMSO-7",1155,"GREENVILLEMSO-7",1293]
[{"$nulls":16},"TUPELOMSE-1",633,"TUPELOMSE-1",825]
[{"$nulls":16},"TUPELOMSE-2",633,"TUPELOMSE-2",825]
[{"$nulls":16},"TUPELOMSE-3",633,"TUPELOMSE-3",825]
[{"$nulls":16},"TUPELOMSE-4",633,"TUPELOMSE-4",825]
[{"$nulls":16},"TUPELOMSE-5",705,"TUPELOMSE-5",909]
[{"$nulls":16},"TUPELOMSE-6",864,"TUPELOMSE-6",1152]
[{"$nulls":16},"TUPELOMSE-7",885,"TUPELOMSE-7",1182]
[{"$nulls":16},"TUPELOMSE-8",957,"TUPELOMSE-8",1212]
[{"$nulls":16},"TUPELOMSE-9",1032,"TUPELOMSE-9",1293]
[{"$nulls":16},"TUPELOMSW-1",864,"TUPELOMSW-1",1152]
[{"$nulls":16},"TUPELOMSW-2",954,"TUPELOMSW-2",1194]
[{"$nulls":16},"TUPELOMSW-3",1041,"TUPELOMSW-3",1233]
[{"$nulls":16},"TUPELOMSW-4",1158,"TUPELOMSW-4",1317]
[{"$nulls":16},"TUPELOMSW-5",1188,"TUPELOMSW-5",1413]
[{"$nulls":16},"TUPELOMSO-1E",909,"TUPELOMSO-1E",1188]
[{"$nulls":16},"TUPELOMSO-2E",1017,"TUPELOMSO-2E",1227]
[{"$nulls":16},"TUPELOMSO-3E",1152,"TUPELOMSO-3E",1332]
[{"$nulls":16},"TUPELOMSO-1",744,"TUPELOMSO-1",936]
[{"$nulls":16},"TUPELOMSO-2",882,"TUPELOMSO-2",1146]
[{"$nulls":16},"TUPELOMSO-3",1065,"TUPELOMSO-3",1230]
[{"$nulls":16},"TUPELOMSO-4",1185,"TUPELOMSO-4",1452]
[{"$nulls":16},"TUPELOMSO-5",1209,"TUPELOMSO-5",1611]
[{"$nulls":16},"TUPELOMSO-6",1233,"TUPELOMSO-6",1626]
[{"$nulls":16},"TUPELOMSO-7",1257,"TUPELOMSO-7",1641]
[{"$nulls":16},"MALMSTROM AFB/GREAT FALLSMTE-1",621,"MALMSTROM AFB/GREAT FALLSMTE-1",828]
[{"$nulls":16},"MALMSTROM AFB/GREAT FALLSMTE-2",621,"MALMSTROM AFB/GREAT FALLSMTE-2",828]
[{"$nulls":16},"MALMSTROM AFB/GREAT FALLSMTE-3",621,"MALMSTROM AFB/GREAT FALLSMTE-3",828]
[{"$nulls":16},"MALMSTROM AFB/GREAT FALLSMTE-4",621,"MALMSTROM AFB/GREAT FALLSMTE-4",828]
[{"$nulls":16},"MALMSTROM AFB/GREAT FALLSMTE-5",708,"MALMSTROM AFB/GREAT FALLSMTE-5",942]
[{"$nulls":16},"MALMSTROM AFB/GREAT FALLSMTE-6",828,"MALMSTROM AFB/GREAT FALLSMTE-6",1104]
[{"$nulls":16},"MALMSTROM AFB/GREAT FALLSMTE-7",891,"MALMSTROM AFB/GREAT FALLSMTE-7",1185]
[{"$nulls":16},"MALMSTROM AFB/GREAT FALLSMTE-8",975,"MALMSTROM AFB/GREAT FALLSMTE-8",1275]
[{"$nulls":16},"MALMSTROM AFB/GREAT FALLSMTE-9",1029,"MALMSTROM AFB/GREAT FALLSMTE-9",1371]
[{"$nulls":16},"MALMSTROM AFB/GREAT FALLSMTW-1",828,"MALMSTROM AFB/GREAT FALLSMTW-1",1104]
[{"$nulls":16},"MALMSTROM AFB/GREAT FALLSMTW-2",972,"MALMSTROM AFB/GREAT FALLSMTW-2",1224]
[{"$nulls":16},"MALMSTROM AFB/GREAT FALLSMTW-3",1029,"MALMSTROM AFB/GREAT FALLSMTW-3",1335]
[{"$nulls":16},"MALMSTROM AFB/GREAT FALLSMTW-4",1125,"MALMSTROM AFB/GREAT FALLSMTW-4",1386]
[{"$nulls":16},"MALMSTROM AFB/GREAT FALLSMTW-5",1206,"MALMSTROM AFB/GREAT FALLSMTW-5",1446]
[{"$nulls":16},"MALMSTROM AFB/GREAT FALLSMTO-1E",942,"MALMSTROM AFB/GREAT FALLSMTO-1E",1206]
[{"$nulls":16},"MALMSTROM AFB/GREAT FALLSMTO-2E",1014,"MALMSTROM AFB/GREAT FALLSMTO-2E",1317]
[{"$nulls":16},"MALMSTROM AFB/GREAT FALLSMTO-3E",1104,"MALMSTROM AFB/GREAT FALLSMTO-3E",1395]
[{"$nulls":16},"MALMSTROM AFB/GREAT FALLSMTO-1",720,"MALMSTROM AFB/GREAT FALLSMTO-1",960]
[{"$nulls":16},"MALMSTROM AFB/GREAT FALLSMTO-2",903,"MALMSTROM AFB/GREAT FALLSMTO-2",1101]
[{"$nulls":16},"MALMSTROM AFB/GREAT FALLSMTO-3",1044,"MALMSTROM AFB/GREAT FALLSMTO-3",1329]
[{"$nulls":16},"MALMSTROM AFB/GREAT FALLSMTO-4",1194,"MALMSTROM AFB/GREAT FALLSMTO-4",1470]
[{"$nulls":16},"MALMSTROM AFB/GREAT FALLSMTO-5",1248,"MALMSTROM AFB/GREAT FALLSMTO-5",1569]
[{"$nulls":16},"MALMSTROM AFB/GREAT FALLSMTO-6",1335,"MALMSTROM AFB/GREAT FALLSMTO-6",1584]
[{"$nulls":16},"MALMSTROM AFB/GREAT FALLSMTO-7",1362,"MALMSTROM AFB/GREAT FALLSMTO-7",1599]
[{"$nulls":16},"HELENAMTE-1",639,"HELENAMTE-1",846]
[{"$nulls":16},"HELENAMTE-2",639,"HELENAMTE-2",846]
[{"$nulls":16},"HELENAMTE-3",639,"HELENAMTE-3",846]
[{"$nulls":16},"HELENAMTE-4",639,"HELENAMTE-4",846]
[{"$nulls":16},"HELENAMTE-5",711,"HELENAMTE-5",945]
[{"$nulls":16},"HELENAMTE-6",987,"HELENAMTE-6",1317]
[{"$nulls":16},"HELENAMTE-7",993,"HELENAMTE-7",1326]
[{"$nulls":16},"HELENAMTE-8",1020,"HELENAMTE-8",1335]
[{"$nulls":16},"HELENAMTE-9",1134,"HELENAMTE-9",1386]
[{"$nulls":16},"HELENAMTW-1",987,"HELENAMTW-1",1317]
[{"$nulls":16},"HELENAMTW-2",1014,"HELENAMTW-2",1329]
[{"$nulls":16},"HELENAMTW-3",1146,"HELENAMTW-3",1341]
[{"$nulls":16},"HELENAMTW-4",1317,"HELENAMTW-4",1404]
[{"$nulls":16},"HELENAMTW-5",1326,"HELENAMTW-5",1479]
[{"$nulls":16},"HELENAMTO-1E",996,"HELENAMTO-1E",1326]
[{"$nulls":16},"HELENAMTO-2E",1107,"HELENAMTO-2E",1338]
[{"$nulls":16},"HELENAMTO-3E",1317,"HELENAMTO-3E",1416]
[{"$nulls":16},"HELENAMTO-1",744,"HELENAMTO-1",987]
[{"$nulls":16},"HELENAMTO-2",981,"HELENAMTO-2",1308]
[{"$nulls":16},"HELENAMTO-3",1182,"HELENAMTO-3",1341]
[{"$nulls":16},"HELENAMTO-4",1326,"HELENAMTO-4",1506]
[{"$nulls":16},"HELENAMTO-5",1332,"HELENAMTO-5",1626]
[{"$nulls":16},"HELENAMTO-6",1341,"HELENAMTO-6",1644]
[{"$nulls":16},"HELENAMTO-7",1368,"HELENAMTO-7",1659]
[{"$nulls":16},"BILLINGSMTE-1",720,"BILLINGSMTE-1",963]
[{"$nulls":16},"BILLINGSMTE-2",720,"BILLINGSMTE-2",963]
[{"$nulls":16},"BILLINGSMTE-3",720,"BILLINGSMTE-3",963]
[{"$nulls":16},"BILLINGSMTE-4",720,"BILLINGSMTE-4",963]
[{"$nulls":16},"BILLINGSMTE-5",816,"BILLINGSMTE-5",1050]
[{"$nulls":16},"BILLINGSMTE-6",933,"BILLINGSMTE-6",1245]
[{"$nulls":16},"BILLINGSMTE-7",990,"BILLINGSMTE-7",1317]
[{"$nulls":16},"BILLINGSMTE-8",1089,"BILLINGSMTE-8",1398]
[{"$nulls":16},"BILLINGSMTE-9",1149,"BILLINGSMTE-9",1494]
[{"$nulls":16},"BILLINGSMTW-1",936,"BILLINGSMTW-1",1248]
[{"$nulls":16},"BILLINGSMTW-2",1089,"BILLINGSMTW-2",1350]
[{"$nulls":16},"BILLINGSMTW-3",1155,"BILLINGSMTW-3",1449]
[{"$nulls":16},"BILLINGSMTW-4",1263,"BILLINGSMTW-4",1509]
[{"$nulls":16},"BILLINGSMTW-5",1338,"BILLINGSMTW-5",1581]
[{"$nulls":16},"BILLINGSMTO-1E",1050,"BILLINGSMTO-1E",1335]
[{"$nulls":16},"BILLINGSMTO-2E",1137,"BILLINGSMTO-2E",1434]
[{"$nulls":16},"BILLINGSMTO-3E",1245,"BILLINGSMTO-3E",1521]
[{"$nulls":16},"BILLINGSMTO-1",873,"BILLINGSMTO-1",1071]
[{"$nulls":16},"BILLINGSMTO-2",1020,"BILLINGSMTO-2",1242]
[{"$nulls":16},"BILLINGSMTO-3",1176,"BILLINGSMTO-3",1446]
[{"$nulls":16},"BILLINGSMTO-4",1326,"BILLINGSMTO-4",1608]
[{"$nulls":16},"BILLINGSMTO-5",1374,"BILLINGSMTO-5",1725]
[{"$nulls":16},"BILLINGSMTO-6",1449,"BILLINGSMTO-6",1740]
[{"$nulls":16},"BILLINGSMTO-7",1479,"BILLINGSMTO-7",1758]
[{"$nulls":16},"MISSOULAMTE-1",735,"MISSOULAMTE-1",927]
[{"$nulls":16},"MISSOULAMTE-2",735,"MISSOULAMTE-2",927]
[{"$nulls":16},"MISSOULAMTE-3",735,"MISSOULAMTE-3",927]
[{"$nulls":16},"MISSOULAMTE-4",735,"MISSOULAMTE-4",927]
[{"$nulls":16},"MISSOULAMTE-5",804,"MISSOULAMTE-5",1017]
[{"$nulls":16},"MISSOULAMTE-6",867,"MISSOULAMTE-6",1155]
[{"$nulls":16},"MISSOULAMTE-7",963,"MISSOULAMTE-7",1281]
[{"$nulls":16},"MISSOULAMTE-8",1065,"MISSOULAMTE-8",1422]
[{"$nulls":16},"MISSOULAMTE-9",1173,"MISSOULAMTE-9",1566]
[{"$nulls":16},"MISSOULAMTW-1",894,"MISSOULAMTW-1",1158]
[{"$nulls":16},"MISSOULAMTW-2",1044,"MISSOULAMTW-2",1338]
[{"$nulls":16},"MISSOULAMTW-3",1131,"MISSOULAMTW-3",1509]
[{"$nulls":16},"MISSOULAMTW-4",1191,"MISSOULAMTW-4",1587]
[{"$nulls":16},"MISSOULAMTW-5",1314,"MISSOULAMTW-5",1680]
[{"$nulls":16},"MISSOULAMTO-1E",1017,"MISSOULAMTO-1E",1311]
[{"$nulls":16},"MISSOULAMTO-2E",1113,"MISSOULAMTO-2E",1485]
[{"$nulls":16},"MISSOULAMTO-3E",1200,"MISSOULAMTO-3E",1602]
[{"$nulls":16},"MISSOULAMTO-1",837,"MISSOULAMTO-1",1032]
[{"$nulls":16},"MISSOULAMTO-2",987,"MISSOULAMTO-2",1152]
[{"$nulls":16},"MISSOULAMTO-3",1125,"MISSOULAMTO-3",1503]
[{"$nulls":16},"MISSOULAMTO-4",1296,"MISSOULAMTO-4",1716]
[{"$nulls":16},"MISSOULAMTO-5",1398,"MISSOULAMTO-5",1863]
[{"$nulls":16},"MISSOULAMTO-6",1509,"MISSOULAMTO-6",1884]
[{"$nulls":16},"MISSOULAMTO-7",1539,"MISSOULAMTO-7",1902]
[{"$nulls":16},"OUTER BANKSNCE-1",966,"OUTER BANKSNCE-1",1158]
[{"$nulls":16},"OUTER BANKSNCE-2",966,"OUTER BANKSNCE-2",1158]
[{"$nulls":16},"OUTER BANKSNCE-3",966,"OUTER BANKSNCE-3",1158]
[{"$nulls":16},"OUTER BANKSNCE-4",966,"OUTER BANKSNCE-4",1158]
[{"$nulls":16},"OUTER BANKSNCE-5",1038,"OUTER BANKSNCE-5",1245]
[{"$nulls":16},"OUTER BANKSNCE-6",1170,"OUTER BANKSNCE-6",1560]
[{"$nulls":16},"OUTER BANKSNCE-7",1221,"OUTER BANKSNCE-7",1629]
[{"$nulls":16},"OUTER BANKSNCE-8",1308,"OUTER BANKSNCE-8",1701]
[{"$nulls":16},"OUTER BANKSNCE-9",1404,"OUTER BANKSNCE-9",1785]
[{"$nulls":16},"OUTER BANKSNCW-1",1170,"OUTER BANKSNCW-1",1563]
[{"$nulls":16},"OUTER BANKSNCW-2",1305,"OUTER BANKSNCW-2",1659]
[{"$nulls":16},"OUTER BANKSNCW-3",1416,"OUTER BANKSNCW-3",1749]
[{"$nulls":16},"OUTER BANKSNCW-4",1578,"OUTER BANKSNCW-4",1800]
[{"$nulls":16},"OUTER BANKSNCW-5",1644,"OUTER BANKSNCW-5",1860]
[{"$nulls":16},"OUTER BANKSNCO-1E",1245,"OUTER BANKSNCO-1E",1644]
[{"$nulls":16},"OUTER BANKSNCO-2E",1383,"OUTER BANKSNCO-2E",1737]
[{"$nulls":16},"OUTER BANKSNCO-3E",1560,"OUTER BANKSNCO-3E",1809]
[{"$nulls":16},"OUTER BANKSNCO-1",1074,"OUTER BANKSNCO-1",1278]
[{"$nulls":16},"OUTER BANKSNCO-2",1215,"OUTER BANKSNCO-2",1554]
[{"$nulls":16},"OUTER BANKSNCO-3",1446,"OUTER BANKSNCO-3",1746]
[{"$nulls":16},"OUTER BANKSNCO-4",1635,"OUTER BANKSNCO-4",1881]
[{"$nulls":16},"OUTER BANKSNCO-5",1680,"OUTER BANKSNCO-5",1980]
[{"$nulls":16},"OUTER BANKSNCO-6",1749,"OUTER BANKSNCO-6",1998]
[{"$nulls":16},"OUTER BANKSNCO-7",1785,"OUTER BANKSNCO-7",2019]
[{"$nulls":16},"MOREHEAD/CHERRY PT MCASNCE-1",822,"MOREHEAD/CHERRY PT MCASNCE-1",1098]
[{"$nulls":16},"MOREHEAD/CHERRY PT MCASNCE-2",822,"MOREHEAD/CHERRY PT MCASNCE-2",1098]
[{"$nulls":16},"MOREHEAD/CHERRY PT MCASNCE-3",822,"MOREHEAD/CHERRY PT MCASNCE-3",1098]
[{"$nulls":16},"MOREHEAD/CHERRY PT MCASNCE-4",822,"MOREHEAD/CHERRY PT MCASNCE-4",1098]
[{"$nulls":16},"MOREHEAD/CHERRY PT MCASNCE-5",933,"MOREHEAD/CHERRY PT MCASNCE-5",1182]
[{"$nulls":16},"MOREHEAD/CHERRY PT MCASNCE-6",1056,"MOREHEAD/CHERRY PT MCASNCE-6",1410]
[{"$nulls":16},"MOREHEAD/CHERRY PT MCASNCE-7",1122,"MOREHEAD/CHERRY PT MCASNCE-7",1497]
[{"$nulls":16},"MOREHEAD/CHERRY PT MCASNCE-8",1227,"MOREHEAD/CHERRY PT MCASNCE-8",1590]
[{"$nulls":16},"MOREHEAD/CHERRY PT MCASNCE-9",1296,"MOREHEAD/CHERRY PT MCASNCE-9",1671]
[{"$nulls":16},"MOREHEAD/CHERRY PT MCASNCW-1",1065,"MOREHEAD/CHERRY PT MCASNCW-1",1410]
[{"$nulls":16},"MOREHEAD/CHERRY PT MCASNCW-2",1224,"MOREHEAD/CHERRY PT MCASNCW-2",1536]
[{"$nulls":16},"MOREHEAD/CHERRY PT MCASNCW-3",1305,"MOREHEAD/CHERRY PT MCASNCW-3",1650]
[{"$nulls":16},"MOREHEAD/CHERRY PT MCASNCW-4",1431,"MOREHEAD/CHERRY PT MCASNCW-4",1677]
[{"$nulls":16},"MOREHEAD/CHERRY PT MCASNCW-5",1518,"MOREHEAD/CHERRY PT MCASNCW-5",1707]
[{"$nulls":16},"MOREHEAD/CHERRY PT MCASNCO-1E",1182,"MOREHEAD/CHERRY PT MCASNCO-1E",1515]
[{"$nulls":16},"MOREHEAD/CHERRY PT MCASNCO-2E",1281,"MOREHEAD/CHERRY PT MCASNCO-2E",1635]
[{"$nulls":16},"MOREHEAD/CHERRY PT MCASNCO-3E",1410,"MOREHEAD/CHERRY PT MCASNCO-3E",1683]
[{"$nulls":16},"MOREHEAD/CHERRY PT MCASNCO-1",1014,"MOREHEAD/CHERRY PT MCASNCO-1",1206]
[{"$nulls":16},"MOREHEAD/CHERRY PT MCASNCO-2",1152,"MOREHEAD/CHERRY PT MCASNCO-2",1404]
[{"$nulls":16},"MOREHEAD/CHERRY PT MCASNCO-3",1326,"MOREHEAD/CHERRY PT MCASNCO-3",1647]
[{"$nulls":16},"MOREHEAD/CHERRY PT MCASNCO-4",1506,"MOREHEAD/CHERRY PT MCASNCO-4",1719]
[{"$nulls":16},"MOREHEAD/CHERRY PT MCASNCO-5",1560,"MOREHEAD/CHERRY PT MCASNCO-5",1770]
[{"$nulls":16},"MOREHEAD/CHERRY PT MCASNCO-6",1650,"MOREHEAD/CHERRY PT MCASNCO-6",1788]
[{"$nulls":16},"MOREHEAD/CHERRY PT MCASNCO-7",1683,"MOREHEAD/CHERRY PT MCASNCO-7",1806]
[{"$nulls":16},"CAMP LEJEUNENCE-1",849,"CAMP LEJEUNENCE-1",1047]
[{"$nulls":16},"CAMP LEJEUNENCE-2",849,"CAMP LEJEUNENCE-2",1047]
[{"$nulls":16},"CAMP LEJEUNENCE-3",849,"CAMP LEJEUNENCE-3",1047]
[{"$nulls":16},"CAMP LEJEUNENCE-4",849,"CAMP LEJEUNENCE-4",1047]
[{"$nulls":16},"CAMP LEJEUNENCE-5",954,"CAMP LEJEUNENCE-5",1083]
[{"$nulls":16},"CAMP LEJEUNENCE-6",1011,"CAMP LEJEUNENCE-6",1341]
[{"$nulls":16},"CAMP LEJEUNENCE-7",1047,"CAMP LEJEUNENCE-7",1395]
[{"$nulls":16},"CAMP LEJEUNENCE-8",1134,"CAMP LEJEUNENCE-8",1458]
[{"$nulls":16},"CAMP LEJEUNENCE-9",1215,"CAMP LEJEUNENCE-9",1548]
[{"$nulls":16},"CAMP LEJEUNENCW-1",1032,"CAMP LEJEUNENCW-1",1344]
[{"$nulls":16},"CAMP LEJEUNENCW-2",1134,"CAMP LEJEUNENCW-2",1422]
[{"$nulls":16},"CAMP LEJEUNENCW-3",1224,"CAMP LEJEUNENCW-3",1494]
[{"$nulls":16},"CAMP LEJEUNENCW-4",1356,"CAMP LEJEUNENCW-4",1569]
[{"$nulls":16},"CAMP LEJEUNENCW-5",1410,"CAMP LEJEUNENCW-5",1653]
[{"$nulls":16},"CAMP LEJEUNENCO-1E",1083,"CAMP LEJEUNENCO-1E",1410]
[{"$nulls":16},"CAMP LEJEUNENCO-2E",1197,"CAMP LEJEUNENCO-2E",1485]
[{"$nulls":16},"CAMP LEJEUNENCO-3E",1341,"CAMP LEJEUNENCO-3E",1581]
[{"$nulls":16},"CAMP LEJEUNENCO-1",1008,"CAMP LEJEUNENCO-1",1113]
[{"$nulls":16},"CAMP LEJEUNENCO-2",1071,"CAMP LEJEUNENCO-2",1335]
[{"$nulls":16},"CAMP LEJEUNENCO-3",1248,"CAMP LEJEUNENCO-3",1491]
[{"$nulls":16},"CAMP LEJEUNENCO-4",1404,"CAMP LEJEUNENCO-4",1689]
[{"$nulls":16},"CAMP LEJEUNENCO-5",1437,"CAMP LEJEUNENCO-5",1827]
[{"$nulls":16},"CAMP LEJEUNENCO-6",1494,"CAMP LEJEUNENCO-6",1845]
[{"$nulls":16},"CAMP LEJEUNENCO-7",1524,"CAMP LEJEUNENCO-7",1863]
[{"$nulls":16},"CHARLOTTENCE-1",867,"CHARLOTTENCE-1",1131]
[{"$nulls":16},"CHARLOTTENCE-2",867,"CHARLOTTENCE-2",1131]
[{"$nulls":16},"CHARLOTTENCE-3",867,"CHARLOTTENCE-3",1131]
[{"$nulls":16},"CHARLOTTENCE-4",867,"CHARLOTTENCE-4",1131]
[{"$nulls":16},"CHARLOTTENCE-5",984,"CHARLOTTENCE-5",1221]
[{"$nulls":16},"CHARLOTTENCE-6",1137,"CHARLOTTENCE-6",1518]
[{"$nulls":16},"CHARLOTTENCE-7",1143,"CHARLOTTENCE-7",1527]
[{"$nulls":16},"CHARLOTTENCE-8",1281,"CHARLOTTENCE-8",1536]
[{"$nulls":16},"CHARLOTTENCE-9",1371,"CHARLOTTENCE-9",1575]
[{"$nulls":16},"CHARLOTTENCW-1",1137,"CHARLOTTENCW-1",1518]
[{"$nulls":16},"CHARLOTTENCW-2",1278,"CHARLOTTENCW-2",1530]
[{"$nulls":16},"CHARLOTTENCW-3",1380,"CHARLOTTENCW-3",1542]
[{"$nulls":16},"CHARLOTTENCW-4",1518,"CHARLOTTENCW-4",1587]
[{"$nulls":16},"CHARLOTTENCW-5",1527,"CHARLOTTENCW-5",1638]
[{"$nulls":16},"CHARLOTTENCO-1E",1221,"CHARLOTTENCO-1E",1527]
[{"$nulls":16},"CHARLOTTENCO-2E",1350,"CHARLOTTENCO-2E",1539]
[{"$nulls":16},"CHARLOTTENCO-3E",1518,"CHARLOTTENCO-3E",1593]
[{"$nulls":16},"CHARLOTTENCO-1",1041,"CHARLOTTENCO-1",1254]
[{"$nulls":16},"CHARLOTTENCO-2",1191,"CHARLOTTENCO-2",1512]
[{"$nulls":16},"CHARLOTTENCO-3",1410,"CHARLOTTENCO-3",1542]
[{"$nulls":16},"CHARLOTTENCO-4",1527,"CHARLOTTENCO-4",1659]
[{"$nulls":16},"CHARLOTTENCO-5",1533,"CHARLOTTENCO-5",1746]
[{"$nulls":16},"CHARLOTTENCO-6",1542,"CHARLOTTENCO-6",1764]
[{"$nulls":16},"CHARLOTTENCO-7",1572,"CHARLOTTENCO-7",1782]
[{"$nulls":16},"DURHAM/CHAPEL HILLNCE-1",903,"DURHAM/CHAPEL HILLNCE-1",1182]
[{"$nulls":16},"DURHAM/CHAPEL HILLNCE-2",903,"DURHAM/CHAPEL HILLNCE-2",1182]
[{"$nulls":16},"DURHAM/CHAPEL HILLNCE-3",903,"DURHAM/CHAPEL HILLNCE-3",1182]
[{"$nulls":16},"DURHAM/CHAPEL HILLNCE-4",903,"DURHAM/CHAPEL HILLNCE-4",1182]
[{"$nulls":16},"DURHAM/CHAPEL HILLNCE-5",1026,"DURHAM/CHAPEL HILLNCE-5",1275]
[{"$nulls":16},"DURHAM/CHAPEL HILLNCE-6",1101,"DURHAM/CHAPEL HILLNCE-6",1407]
[{"$nulls":16},"DURHAM/CHAPEL HILLNCE-7",1188,"DURHAM/CHAPEL HILLNCE-7",1452]
[{"$nulls":16},"DURHAM/CHAPEL HILLNCE-8",1302,"DURHAM/CHAPEL HILLNCE-8",1503]
[{"$nulls":16},"DURHAM/CHAPEL HILLNCE-9",1341,"DURHAM/CHAPEL HILLNCE-9",1656]
[{"$nulls":16},"DURHAM/CHAPEL HILLNCW-1",1146,"DURHAM/CHAPEL HILLNCW-1",1407]
[{"$nulls":16},"DURHAM/CHAPEL HILLNCW-2",1299,"DURHAM/CHAPEL HILLNCW-2",1473]
[{"$nulls":16},"DURHAM/CHAPEL HILLNCW-3",1347,"DURHAM/CHAPEL HILLNCW-3",1533]
[{"$nulls":16},"DURHAM/CHAPEL HILLNCW-4",1419,"DURHAM/CHAPEL HILLNCW-4",1704]
[{"$nulls":16},"DURHAM/CHAPEL HILLNCW-5",1464,"DURHAM/CHAPEL HILLNCW-5",1902]
[{"$nulls":16},"DURHAM/CHAPEL HILLNCO-1E",1275,"DURHAM/CHAPEL HILLNCO-1E",1461]
[{"$nulls":16},"DURHAM/CHAPEL HILLNCO-2E",1332,"DURHAM/CHAPEL HILLNCO-2E",1524]
[{"$nulls":16},"DURHAM/CHAPEL HILLNCO-3E",1407,"DURHAM/CHAPEL HILLNCO-3E",1734]
[{"$nulls":16},"DURHAM/CHAPEL HILLNCO-1",1086,"DURHAM/CHAPEL HILLNCO-1",1290]
[{"$nulls":16},"DURHAM/CHAPEL HILLNCO-2",1242,"DURHAM/CHAPEL HILLNCO-2",1404]
[{"$nulls":16},"DURHAM/CHAPEL HILLNCO-3",1359,"DURHAM/CHAPEL HILLNCO-3",1530]
[{"$nulls":16},"DURHAM/CHAPEL HILLNCO-4",1485,"DURHAM/CHAPEL HILLNCO-4",1980]
[{"$nulls":16},"DURHAM/CHAPEL HILLNCO-5",1725,"DURHAM/CHAPEL HILLNCO-5",2301]
[{"$nulls":16},"DURHAM/CHAPEL HILLNCO-6",1743,"DURHAM/CHAPEL HILLNCO-6",2325]
[{"$nulls":16},"DURHAM/CHAPEL HILLNCO-7",1761,"DURHAM/CHAPEL HILLNCO-7",2346]
[{"$nulls":16},"ELIZABETH CITYNCE-1",1083,"ELIZABETH CITYNCE-1",1293]
[{"$nulls":16},"ELIZABETH CITYNCE-2",1083,"ELIZABETH CITYNCE-2",1293]
[{"$nulls":16},"ELIZABETH CITYNCE-3",1083,"ELIZABETH CITYNCE-3",1293]
[{"$nulls":16},"ELIZABETH CITYNCE-4",1083,"ELIZABETH CITYNCE-4",1293]
[{"$nulls":16},"ELIZABETH CITYNCE-5",1146,"ELIZABETH CITYNCE-5",1410]
[{"$nulls":16},"ELIZABETH CITYNCE-6",1233,"ELIZABETH CITYNCE-6",1644]
[{"$nulls":16},"ELIZABETH CITYNCE-7",1302,"ELIZABETH CITYNCE-7",1725]
[{"$nulls":16},"ELIZABETH CITYNCE-8",1455,"ELIZABETH CITYNCE-8",1815]
[{"$nulls":16},"ELIZABETH CITYNCE-9",1530,"ELIZABETH CITYNCE-9",1908]
[{"$nulls":16},"ELIZABETH CITYNCW-1",1251,"ELIZABETH CITYNCW-1",1647]
[{"$nulls":16},"ELIZABETH CITYNCW-2",1455,"ELIZABETH CITYNCW-2",1761]
[{"$nulls":16},"ELIZABETH CITYNCW-3",1536,"ELIZABETH CITYNCW-3",1872]
[{"$nulls":16},"ELIZABETH CITYNCW-4",1665,"ELIZABETH CITYNCW-4",1920]
[{"$nulls":16},"ELIZABETH CITYNCW-5",1746,"ELIZABETH CITYNCW-5",1980]
[{"$nulls":16},"ELIZABETH CITYNCO-1E",1410,"ELIZABETH CITYNCO-1E",1743]
[{"$nulls":16},"ELIZABETH CITYNCO-2E",1512,"ELIZABETH CITYNCO-2E",1854]
[{"$nulls":16},"ELIZABETH CITYNCO-3E",1644,"ELIZABETH CITYNCO-3E",1929]
[{"$nulls":16},"ELIZABETH CITYNCO-1",1179,"ELIZABETH CITYNCO-1",1434]
[{"$nulls":16},"ELIZABETH CITYNCO-2",1371,"ELIZABETH CITYNCO-2",1638]
[{"$nulls":16},"ELIZABETH CITYNCO-3",1560,"ELIZABETH CITYNCO-3",1866]
[{"$nulls":16},"ELIZABETH CITYNCO-4",1734,"ELIZABETH CITYNCO-4",2001]
[{"$nulls":16},"ELIZABETH CITYNCO-5",1788,"ELIZABETH CITYNCO-5",2097]
[{"$nulls":16},"ELIZABETH CITYNCO-6",1872,"ELIZABETH CITYNCO-6",2118]
[{"$nulls":16},"ELIZABETH CITYNCO-7",1908,"ELIZABETH CITYNCO-7",2139]
[{"$nulls":16},"FORT BRAGG/POPE AFBNCE-1",831,"FORT BRAGG/POPE AFBNCE-1",1065]
[{"$nulls":16},"FORT BRAGG/POPE AFBNCE-2",831,"FORT BRAGG/POPE AFBNCE-2",1065]
[{"$nulls":16},"FORT BRAGG/POPE AFBNCE-3",831,"FORT BRAGG/POPE AFBNCE-3",1065]
[{"$nulls":16},"FORT BRAGG/POPE AFBNCE-4",831,"FORT BRAGG/POPE AFBNCE-4",1065]
[{"$nulls":16},"FORT BRAGG/POPE AFBNCE-5",948,"FORT BRAGG/POPE AFBNCE-5",1125]
[{"$nulls":16},"FORT BRAGG/POPE AFBNCE-6",1014,"FORT BRAGG/POPE AFBNCE-6",1290]
[{"$nulls":16},"FORT BRAGG/POPE AFBNCE-7",1071,"FORT BRAGG/POPE AFBNCE-7",1377]
[{"$nulls":16},"FORT BRAGG/POPE AFBNCE-8",1158,"FORT BRAGG/POPE AFBNCE-8",1470]
[{"$nulls":16},"FORT BRAGG/POPE AFBNCE-9",1209,"FORT BRAGG/POPE AFBNCE-9",1578]
[{"$nulls":16},"FORT BRAGG/POPE AFBNCW-1",1044,"FORT BRAGG/POPE AFBNCW-1",1293]
[{"$nulls":16},"FORT BRAGG/POPE AFBNCW-2",1158,"FORT BRAGG/POPE AFBNCW-2",1416]
[{"$nulls":16},"FORT BRAGG/POPE AFBNCW-3",1215,"FORT BRAGG/POPE AFBNCW-3",1530]
[{"$nulls":16},"FORT BRAGG/POPE AFBNCW-4",1314,"FORT BRAGG/POPE AFBNCW-4",1596]
[{"$nulls":16},"FORT BRAGG/POPE AFBNCW-5",1398,"FORT BRAGG/POPE AFBNCW-5",1674]
[{"$nulls":16},"FORT BRAGG/POPE AFBNCO-1E",1125,"FORT BRAGG/POPE AFBNCO-1E",1398]
[{"$nulls":16},"FORT BRAGG/POPE AFBNCO-2E",1197,"FORT BRAGG/POPE AFBNCO-2E",1515]
[{"$nulls":16},"FORT BRAGG/POPE AFBNCO-3E",1290,"FORT BRAGG/POPE AFBNCO-3E",1608]
[{"$nulls":16},"FORT BRAGG/POPE AFBNCO-1",1008,"FORT BRAGG/POPE AFBNCO-1",1143]
[{"$nulls":16},"FORT BRAGG/POPE AFBNCO-2",1104,"FORT BRAGG/POPE AFBNCO-2",1287]
[{"$nulls":16},"FORT BRAGG/POPE AFBNCO-3",1230,"FORT BRAGG/POPE AFBNCO-3",1527]
[{"$nulls":16},"FORT BRAGG/POPE AFBNCO-4",1386,"FORT BRAGG/POPE AFBNCO-4",1707]
[{"$nulls":16},"FORT BRAGG/POPE AFBNCO-5",1443,"FORT BRAGG/POPE AFBNCO-5",1833]
[{"$nulls":16},"FORT BRAGG/POPE AFBNCO-6",1530,"FORT BRAGG/POPE AFBNCO-6",1851]
[{"$nulls":16},"FORT BRAGG/POPE AFBNCO-7",1563,"FORT BRAGG/POPE AFBNCO-7",1869]
[{"$nulls":16},"SEYMORE JOHNSON AFBNCE-1",747,"SEYMORE JOHNSON AFBNCE-1",996]
[{"$nulls":16},"SEYMORE JOHNSON AFBNCE-2",747,"SEYMORE JOHNSON AFBNCE-2",996]
[{"$nulls":16},"SEYMORE JOHNSON AFBNCE-3",747,"SEYMORE JOHNSON AFBNCE-3",996]
[{"$nulls":16},"SEYMORE JOHNSON AFBNCE-4",747,"SEYMORE JOHNSON AFBNCE-4",996]
[{"$nulls":16},"SEYMORE JOHNSON AFBNCE-5",867,"SEYMORE JOHNSON AFBNCE-5",1059]
[{"$nulls":16},"SEYMORE JOHNSON AFBNCE-6",975,"SEYMORE JOHNSON AFBNCE-6",1299]
[{"$nulls":16},"SEYMORE JOHNSON AFBNCE-7",1044,"SEYMORE JOHNSON AFBNCE-7",1392]
[{"$nulls":16},"SEYMORE JOHNSON AFBNCE-8",1122,"SEYMORE JOHNSON AFBNCE-8",1497]
[{"$nulls":16},"SEYMORE JOHNSON AFBNCE-9",1200,"SEYMORE JOHNSON AFBNCE-9",1602]
[{"$nulls":16},"SEYMORE JOHNSON AFBNCW-1",975,"SEYMORE JOHNSON AFBNCW-1",1302]
[{"$nulls":16},"SEYMORE JOHNSON AFBNCW-2",1104,"SEYMORE JOHNSON AFBNCW-2",1434]
[{"$nulls":16},"SEYMORE JOHNSON AFBNCW-3",1188,"SEYMORE JOHNSON AFBNCW-3",1560]
[{"$nulls":16},"SEYMORE JOHNSON AFBNCW-4",1323,"SEYMORE JOHNSON AFBNCW-4",1617]
[{"$nulls":16},"SEYMORE JOHNSON AFBNCW-5",1416,"SEYMORE JOHNSON AFBNCW-5",1683]
[{"$nulls":16},"SEYMORE JOHNSON AFBNCO-1E",1062,"SEYMORE JOHNSON AFBNCO-1E",1413]
[{"$nulls":16},"SEYMORE JOHNSON AFBNCO-2E",1164,"SEYMORE JOHNSON AFBNCO-2E",1542]
[{"$nulls":16},"SEYMORE JOHNSON AFBNCO-3E",1299,"SEYMORE JOHNSON AFBNCO-3E",1629]
[{"$nulls":16},"SEYMORE JOHNSON AFBNCO-1",936,"SEYMORE JOHNSON AFBNCO-1",1086]
[{"$nulls":16},"SEYMORE JOHNSON AFBNCO-2",1038,"SEYMORE JOHNSON AFBNCO-2",1293]
[{"$nulls":16},"SEYMORE JOHNSON AFBNCO-3",1212,"SEYMORE JOHNSON AFBNCO-3",1557]
[{"$nulls":16},"SEYMORE JOHNSON AFBNCO-4",1404,"SEYMORE JOHNSON AFBNCO-4",1710]
[{"$nulls":16},"SEYMORE JOHNSON AFBNCO-5",1464,"SEYMORE JOHNSON AFBNCO-5",1818]
[{"$nulls":16},"SEYMORE JOHNSON AFBNCO-6",1560,"SEYMORE JOHNSON AFBNCO-6",1836]
[{"$nulls":16},"SEYMORE JOHNSON AFBNCO-7",1593,"SEYMORE JOHNSON AFBNCO-7",1854]
[{"$nulls":16},"GREENSBORONCE-1",717,"GREENSBORONCE-1",927]
[{"$nulls":16},"GREENSBORONCE-2",717,"GREENSBORONCE-2",927]
[{"$nulls":16},"GREENSBORONCE-3",717,"GREENSBORONCE-3",927]
[{"$nulls":16},"GREENSBORONCE-4",717,"GREENSBORONCE-4",927]
[{"$nulls":16},"GREENSBORONCE-5",810,"GREENSBORONCE-5",999]
[{"$nulls":16},"GREENSBORONCE-6",867,"GREENSBORONCE-6",1122]
[{"$nulls":16},"GREENSBORONCE-7",933,"GREENSBORONCE-7",1161]
[{"$nulls":16},"GREENSBORONCE-8",1026,"GREENSBORONCE-8",1206]
[{"$nulls":16},"GREENSBORONCE-9",1062,"GREENSBORONCE-9",1299]
[{"$nulls":16},"GREENSBORONCW-1",900,"GREENSBORONCW-1",1125]
[{"$nulls":16},"GREENSBORONCW-2",1023,"GREENSBORONCW-2",1179]
[{"$nulls":16},"GREENSBORONCW-3",1065,"GREENSBORONCW-3",1233]
[{"$nulls":16},"GREENSBORONCW-4",1134,"GREENSBORONCW-4",1323]
[{"$nulls":16},"GREENSBORONCW-5",1173,"GREENSBORONCW-5",1434]
[{"$nulls":16},"GREENSBORONCO-1E",999,"GREENSBORONCO-1E",1170]
[{"$nulls":16},"GREENSBORONCO-2E",1053,"GREENSBORONCO-2E",1224]
[{"$nulls":16},"GREENSBORONCO-3E",1122,"GREENSBORONCO-3E",1341]
[{"$nulls":16},"GREENSBORONCO-1",855,"GREENSBORONCO-1",1014]
[{"$nulls":16},"GREENSBORONCO-2",975,"GREENSBORONCO-2",1122]
[{"$nulls":16},"GREENSBORONCO-3",1080,"GREENSBORONCO-3",1230]
[{"$nulls":16},"GREENSBORONCO-4",1167,"GREENSBORONCO-4",1476]
[{"$nulls":16},"GREENSBORONCO-5",1239,"GREENSBORONCO-5",1653]
[{"$nulls":16},"GREENSBORONCO-6",1251,"GREENSBORONCO-6",1668]
[{"$nulls":16},"GREENSBORONCO-7",1263,"GREENSBORONCO-7",1686]
[{"$nulls":16},"RALEIGHNCE-1",864,"RALEIGHNCE-1",1065]
[{"$nulls":16},"RALEIGHNCE-2",864,"RALEIGHNCE-2",1065]
[{"$nulls":16},"RALEIGHNCE-3",864,"RALEIGHNCE-3",1065]
[{"$nulls":16},"RALEIGHNCE-4",864,"RALEIGHNCE-4",1065]
[{"$nulls":16},"RALEIGHNCE-5",963,"RALEIGHNCE-5",1116]
[{"$nulls":16},"RALEIGHNCE-6",1020,"RALEIGHNCE-6",1359]
[{"$nulls":16},"RALEIGHNCE-7",1068,"RALEIGHNCE-7",1401]
[{"$nulls":16},"RALEIGHNCE-8",1167,"RALEIGHNCE-8",1446]
[{"$nulls":16},"RALEIGHNCE-9",1242,"RALEIGHNCE-9",1593]
[{"$nulls":16},"RALEIGHNCW-1",1047,"RALEIGHNCW-1",1362]
[{"$nulls":16},"RALEIGHNCW-2",1164,"RALEIGHNCW-2",1419]
[{"$nulls":16},"RALEIGHNCW-3",1248,"RALEIGHNCW-3",1476]
[{"$nulls":16},"RALEIGHNCW-4",1371,"RALEIGHNCW-4",1638]
[{"$nulls":16},"RALEIGHNCW-5",1413,"RALEIGHNCW-5",1833]
[{"$nulls":16},"RALEIGHNCO-1E",1116,"RALEIGHNCO-1E",1410]
[{"$nulls":16},"RALEIGHNCO-2E",1224,"RALEIGHNCO-2E",1467]
[{"$nulls":16},"RALEIGHNCO-3E",1359,"RALEIGHNCO-3E",1668]
[{"$nulls":16},"RALEIGHNCO-1",1014,"RALEIGHNCO-1",1143]
[{"$nulls":16},"RALEIGHNCO-2",1098,"RALEIGHNCO-2",1356]
[{"$nulls":16},"RALEIGHNCO-3",1272,"RALEIGHNCO-3",1473]
[{"$nulls":16},"RALEIGHNCO-4",1431,"RALEIGHNCO-4",1908]
[{"$nulls":16},"RALEIGHNCO-5",1665,"RALEIGHNCO-5",2220]
[{"$nulls":16},"RALEIGHNCO-6",1683,"RALEIGHNCO-6",2241]
[{"$nulls":16},"RALEIGHNCO-7",1698,"RALEIGHNCO-7",2265]
[{"$nulls":16},"WILMINGTONNCE-1",966,"WILMINGTONNCE-1",1230]
[{"$nulls":16},"WILMINGTONNCE-2",966,"WILMINGTONNCE-2",1230]
[{"$nulls":16},"WILMINGTONNCE-3",966,"WILMINGTONNCE-3",1230]
[{"$nulls":16},"WILMINGTONNCE-4",966,"WILMINGTONNCE-4",1230]
[{"$nulls":16},"WILMINGTONNCE-5",1089,"WILMINGTONNCE-5",1311]
[{"$nulls":16},"WILMINGTONNCE-6",1161,"WILMINGTONNCE-6",1416]
[{"$nulls":16},"WILMINGTONNCE-7",1236,"WILMINGTONNCE-7",1485]
[{"$nulls":16},"WILMINGTONNCE-8",1332,"WILMINGTONNCE-8",1560]
[{"$nulls":16},"WILMINGTONNCE-9",1365,"WILMINGTONNCE-9",1671]
[{"$nulls":16},"WILMINGTONNCW-1",1200,"WILMINGTONNCW-1",1416]
[{"$nulls":16},"WILMINGTONNCW-2",1332,"WILMINGTONNCW-2",1515]
[{"$nulls":16},"WILMINGTONNCW-3",1368,"WILMINGTONNCW-3",1608]
[{"$nulls":16},"WILMINGTONNCW-4",1431,"WILMINGTONNCW-4",1692]
[{"$nulls":16},"WILMINGTONNCW-5",1503,"WILMINGTONNCW-5",1794]
[{"$nulls":16},"WILMINGTONNCO-1E",1311,"WILMINGTONNCO-1E",1500]
[{"$nulls":16},"WILMINGTONNCO-2E",1356,"WILMINGTONNCO-2E",1596]
[{"$nulls":16},"WILMINGTONNCO-3E",1416,"WILMINGTONNCO-3E",1710]
[{"$nulls":16},"WILMINGTONNCO-1",1149,"WILMINGTONNCO-1",1323]
[{"$nulls":16},"WILMINGTONNCO-2",1284,"WILMINGTONNCO-2",1413]
[{"$nulls":16},"WILMINGTONNCO-3",1377,"WILMINGTONNCO-3",1605]
[{"$nulls":16},"WILMINGTONNCO-4",1494,"WILMINGTONNCO-4",1833]
[{"$nulls":16},"WILMINGTONNCO-5",1536,"WILMINGTONNCO-5",1992]
[{"$nulls":16},"WILMINGTONNCO-6",1608,"WILMINGTONNCO-6",2013]
[{"$nulls":16},"WILMINGTONNCO-7",1641,"WILMINGTONNCO-7",2034]
[{"$nulls":16},"ASHEVILLENCE-1",879,"ASHEVILLENCE-1",1143]
[{"$nulls":16},"ASHEVILLENCE-2",879,"ASHEVILLENCE-2",1143]
[{"$nulls":16},"ASHEVILLENCE-3",879,"ASHEVILLENCE-3",1143]
[{"$nulls":16},"ASHEVILLENCE-4",879,"ASHEVILLENCE-4",1143]
[{"$nulls":16},"ASHEVILLENCE-5",993,"ASHEVILLENCE-5",1236]
[{"$nulls":16},"ASHEVILLENCE-6",1083,"ASHEVILLENCE-6",1446]
[{"$nulls":16},"ASHEVILLENCE-7",1149,"ASHEVILLENCE-7",1515]
[{"$nulls":16},"ASHEVILLENCE-8",1278,"ASHEVILLENCE-8",1590]
[{"$nulls":16},"ASHEVILLENCE-9",1344,"ASHEVILLENCE-9",1716]
[{"$nulls":16},"ASHEVILLENCW-1",1107,"ASHEVILLENCW-1",1446]
[{"$nulls":16},"ASHEVILLENCW-2",1275,"ASHEVILLENCW-2",1545]
[{"$nulls":16},"ASHEVILLENCW-3",1350,"ASHEVILLENCW-3",1638]
[{"$nulls":16},"ASHEVILLENCW-4",1461,"ASHEVILLENCW-4",1746]
[{"$nulls":16},"ASHEVILLENCW-5",1533,"ASHEVILLENCW-5",1872]
[{"$nulls":16},"ASHEVILLENCO-1E",1236,"ASHEVILLENCO-1E",1530]
[{"$nulls":16},"ASHEVILLENCO-2E",1329,"ASHEVILLENCO-2E",1626]
[{"$nulls":16},"ASHEVILLENCO-3E",1446,"ASHEVILLENCO-3E",1767]
[{"$nulls":16},"ASHEVILLENCO-1",1050,"ASHEVILLENCO-1",1260]
[{"$nulls":16},"ASHEVILLENCO-2",1203,"ASHEVILLENCO-2",1440]
[{"$nulls":16},"ASHEVILLENCO-3",1371,"ASHEVILLENCO-3",1635]
[{"$nulls":16},"ASHEVILLENCO-4",1524,"ASHEVILLENCO-4",1920]
[{"$nulls":16},"ASHEVILLENCO-5",1596,"ASHEVILLENCO-5",2127]
[{"$nulls":16},"ASHEVILLENCO-6",1638,"ASHEVILLENCO-6",2148]
[{"$nulls":16},"ASHEVILLENCO-7",1671,"ASHEVILLENCO-7",2169]
[{"$nulls":16},"GREENVILLENCE-1",720,"GREENVILLENCE-1",924]
[{"$nulls":16},"GREENVILLENCE-2",720,"GREENVILLENCE-2",924]
[{"$nulls":16},"GREENVILLENCE-3",720,"GREENVILLENCE-3",924]
[{"$nulls":16},"GREENVILLENCE-4",720,"GREENVILLENCE-4",924]
[{"$nulls":16},"GREENVILLENCE-5",798,"GREENVILLENCE-5",1011]
[{"$nulls":16},"GREENVILLENCE-6",897,"GREENVILLENCE-6",1197]
[{"$nulls":16},"GREENVILLENCE-7",1002,"GREENVILLENCE-7",1335]
[{"$nulls":16},"GREENVILLENCE-8",1113,"GREENVILLENCE-8",1482]
[{"$nulls":16},"GREENVILLENCE-9",1218,"GREENVILLENCE-9",1626]
[{"$nulls":16},"GREENVILLENCW-1",900,"GREENVILLENCW-1",1200]
[{"$nulls":16},"GREENVILLENCW-2",1047,"GREENVILLENCW-2",1395]
[{"$nulls":16},"GREENVILLENCW-3",1185,"GREENVILLENCW-3",1578]
[{"$nulls":16},"GREENVILLENCW-4",1233,"GREENVILLENCW-4",1644]
[{"$nulls":16},"GREENVILLENCW-5",1368,"GREENVILLENCW-5",1722]
[{"$nulls":16},"GREENVILLENCO-1E",1023,"GREENVILLENCO-1E",1365]
[{"$nulls":16},"GREENVILLENCO-2E",1164,"GREENVILLENCO-2E",1551]
[{"$nulls":16},"GREENVILLENCO-3E",1242,"GREENVILLENCO-3E",1656]
[{"$nulls":16},"GREENVILLENCO-1",837,"GREENVILLENCO-1",1032]
[{"$nulls":16},"GREENVILLENCO-2",981,"GREENVILLENCO-2",1194]
[{"$nulls":16},"GREENVILLENCO-3",1179,"GREENVILLENCO-3",1569]
[{"$nulls":16},"GREENVILLENCO-4",1350,"GREENVILLENCO-4",1752]
[{"$nulls":16},"GREENVILLENCO-5",1437,"GREENVILLENCO-5",1875]
[{"$nulls":16},"GREENVILLENCO-6",1578,"GREENVILLENCO-6",1896]
[{"$nulls":16},"GREENVILLENCO-7",1611,"GREENVILLENCO-7",1914]
[{"$nulls":16},"BISMARCKNDE-1",723,"BISMARCKNDE-1",963]
[{"$nulls":16},"BISMARCKNDE-2",723,"BISMARCKNDE-2",963]
[{"$nulls":16},"BISMARCKNDE-3",723,"BISMARCKNDE-3",963]
[{"$nulls":16},"BISMARCKNDE-4",723,"BISMARCKNDE-4",963]
[{"$nulls":16},"BISMARCKNDE-5",831,"BISMARCKNDE-5",1107]
[{"$nulls":16},"BISMARCKNDE-6",1035,"BISMARCKNDE-6",1380]
[{"$nulls":16},"BISMARCKNDE-7",1095,"BISMARCKNDE-7",1458]
[{"$nulls":16},"BISMARCKNDE-8",1161,"BISMARCKNDE-8",1545]
[{"$nulls":16},"BISMARCKNDE-9",1248,"BISMARCKNDE-9",1665]
[{"$nulls":16},"BISMARCKNDW-1",1038,"BISMARCKNDW-1",1383]
[{"$nulls":16},"BISMARCKNDW-2",1158,"BISMARCKNDW-2",1494]
[{"$nulls":16},"BISMARCKNDW-3",1254,"BISMARCKNDW-3",1599]
[{"$nulls":16},"BISMARCKNDW-4",1401,"BISMARCKNDW-4",1689]
[{"$nulls":16},"BISMARCKNDW-5",1479,"BISMARCKNDW-5",1797]
[{"$nulls":16},"BISMARCKNDO-1E",1107,"BISMARCKNDO-1E",1476]
[{"$nulls":16},"BISMARCKNDO-2E",1227,"BISMARCKNDO-2E",1584]
[{"$nulls":16},"BISMARCKNDO-3E",1380,"BISMARCKNDO-3E",1704]
[{"$nulls":16},"BISMARCKNDO-1",852,"BISMARCKNDO-1",1137]
[{"$nulls":16},"BISMARCKNDO-2",1059,"BISMARCKNDO-2",1374]
[{"$nulls":16},"BISMARCKNDO-3",1281,"BISMARCKNDO-3",1593]
[{"$nulls":16},"BISMARCKNDO-4",1467,"BISMARCKNDO-4",1836]
[{"$nulls":16},"BISMARCKNDO-5",1518,"BISMARCKNDO-5",2010]
[{"$nulls":16},"BISMARCKNDO-6",1599,"BISMARCKNDO-6",2031]
[{"$nulls":16},"BISMARCKNDO-7",1629,"BISMARCKNDO-7",2049]
[{"$nulls":16},"FARGONDE-1",678,"FARGONDE-1",906]
[{"$nulls":16},"FARGONDE-2",678,"FARGONDE-2",906]
[{"$nulls":16},"FARGONDE-3",678,"FARGONDE-3",906]
[{"$nulls":16},"FARGONDE-4",678,"FARGONDE-4",906]
[{"$nulls":16},"FARGONDE-5",768,"FARGONDE-5",1023]
[{"$nulls":16},"FARGONDE-6",1029,"FARGONDE-6",1371]
[{"$nulls":16},"FARGONDE-7",1050,"FARGONDE-7",1398]
[{"$nulls":16},"FARGONDE-8",1092,"FARGONDE-8",1428]
[{"$nulls":16},"FARGONDE-9",1200,"FARGONDE-9",1509]
[{"$nulls":16},"FARGONDW-1",1029,"FARGONDW-1",1374]
[{"$nulls":16},"FARGONDW-2",1089,"FARGONDW-2",1410]
[{"$nulls":16},"FARGONDW-3",1212,"FARGONDW-3",1446]
[{"$nulls":16},"FARGONDW-4",1380,"FARGONDW-4",1533]
[{"$nulls":16},"FARGONDW-5",1404,"FARGONDW-5",1638]
[{"$nulls":16},"FARGONDO-1E",1053,"FARGONDO-1E",1404]
[{"$nulls":16},"FARGONDO-2E",1176,"FARGONDO-2E",1440]
[{"$nulls":16},"FARGONDO-3E",1371,"FARGONDO-3E",1548]
[{"$nulls":16},"FARGONDO-1",795,"FARGONDO-1",1062]
[{"$nulls":16},"FARGONDO-2",1023,"FARGONDO-2",1365]
[{"$nulls":16},"FARGONDO-3",1245,"FARGONDO-3",1446]
[{"$nulls":16},"FARGONDO-4",1401,"FARGONDO-4",1677]
[{"$nulls":16},"FARGONDO-5",1419,"FARGONDO-5",1842]
[{"$nulls":16},"FARGONDO-6",1446,"FARGONDO-6",1860]
[{"$nulls":16},"FARGONDO-7",1476,"FARGONDO-7",1881]
[{"$nulls":16},"GRAND FORKSNDE-1",678,"GRAND FORKSNDE-1",903]
[{"$nulls":16},"GRAND FORKSNDE-2",678,"GRAND FORKSNDE-2",903]
[{"$nulls":16},"GRAND FORKSNDE-3",678,"GRAND FORKSNDE-3",903]
[{"$nulls":16},"GRAND FORKSNDE-4",678,"GRAND FORKSNDE-4",903]
[{"$nulls":16},"GRAND FORKSNDE-5",756,"GRAND FORKSNDE-5",999]
[{"$nulls":16},"GRAND FORKSNDE-6",936,"GRAND FORKSNDE-6",1245]
[{"$nulls":16},"GRAND FORKSNDE-7",984,"GRAND FORKSNDE-7",1311]
[{"$nulls":16},"GRAND FORKSNDE-8",1047,"GRAND FORKSNDE-8",1383]
[{"$nulls":16},"GRAND FORKSNDE-9",1125,"GRAND FORKSNDE-9",1470]
[{"$nulls":16},"GRAND FORKSNDW-1",936,"GRAND FORKSNDW-1",1248]
[{"$nulls":16},"GRAND FORKSNDW-2",1044,"GRAND FORKSNDW-2",1341]
[{"$nulls":16},"GRAND FORKSNDW-3",1131,"GRAND FORKSNDW-3",1428]
[{"$nulls":16},"GRAND FORKSNDW-4",1263,"GRAND FORKSNDW-4",1482]
[{"$nulls":16},"GRAND FORKSNDW-5",1329,"GRAND FORKSNDW-5",1548]
[{"$nulls":16},"GRAND FORKSNDO-1E",999,"GRAND FORKSNDO-1E",1326]
[{"$nulls":16},"GRAND FORKSNDO-2E",1107,"GRAND FORKSNDO-2E",1416]
[{"$nulls":16},"GRAND FORKSNDO-3E",1245,"GRAND FORKSNDO-3E",1494]
[{"$nulls":16},"GRAND FORKSNDO-1",810,"GRAND FORKSNDO-1",1026]
[{"$nulls":16},"GRAND FORKSNDO-2",966,"GRAND FORKSNDO-2",1242]
[{"$nulls":16},"GRAND FORKSNDO-3",1158,"GRAND FORKSNDO-3",1425]
[{"$nulls":16},"GRAND FORKSNDO-4",1320,"GRAND FORKSNDO-4",1572]
[{"$nulls":16},"GRAND FORKSNDO-5",1362,"GRAND FORKSNDO-5",1677]
[{"$nulls":16},"GRAND FORKSNDO-6",1428,"GRAND FORKSNDO-6",1692]
[{"$nulls":16},"GRAND FORKSNDO-7",1458,"GRAND FORKSNDO-7",1710]
[{"$nulls":16},"MINOT AFBNDE-1",666,"MINOT AFBNDE-1",885]
[{"$nulls":16},"MINOT AFBNDE-2",666,"MINOT AFBNDE-2",885]
[{"$nulls":16},"MINOT AFBNDE-3",666,"MINOT AFBNDE-3",885]
[{"$nulls":16},"MINOT AFBNDE-4",666,"MINOT AFBNDE-4",885]
[{"$nulls":16},"MINOT AFBNDE-5",753,"MINOT AFBNDE-5",972]
[{"$nulls":16},"MINOT AFBNDE-6",1032,"MINOT AFBNDE-6",1374]
[{"$nulls":16},"MINOT AFBNDE-7",1047,"MINOT AFBNDE-7",1395]
[{"$nulls":16},"MINOT AFBNDE-8",1062,"MINOT AFBNDE-8",1419]
[{"$nulls":16},"MINOT AFBNDE-9",1179,"MINOT AFBNDE-9",1473]
[{"$nulls":16},"MINOT AFBNDW-1",1032,"MINOT AFBNDW-1",1377]
[{"$nulls":16},"MINOT AFBNDW-2",1053,"MINOT AFBNDW-2",1404]
[{"$nulls":16},"MINOT AFBNDW-3",1191,"MINOT AFBNDW-3",1431]
[{"$nulls":16},"MINOT AFBNDW-4",1380,"MINOT AFBNDW-4",1488]
[{"$nulls":16},"MINOT AFBNDW-5",1401,"MINOT AFBNDW-5",1551]
[{"$nulls":16},"MINOT AFBNDO-1E",1050,"MINOT AFBNDO-1E",1401]
[{"$nulls":16},"MINOT AFBNDO-2E",1149,"MINOT AFBNDO-2E",1428]
[{"$nulls":16},"MINOT AFBNDO-3E",1374,"MINOT AFBNDO-3E",1497]
[{"$nulls":16},"MINOT AFBNDO-1",795,"MINOT AFBNDO-1",1017]
[{"$nulls":16},"MINOT AFBNDO-2",1026,"MINOT AFBNDO-2",1368]
[{"$nulls":16},"MINOT AFBNDO-3",1230,"MINOT AFBNDO-3",1431]
[{"$nulls":16},"MINOT AFBNDO-4",1398,"MINOT AFBNDO-4",1575]
[{"$nulls":16},"MINOT AFBNDO-5",1410,"MINOT AFBNDO-5",1680]
[{"$nulls":16},"MINOT AFBNDO-6",1431,"MINOT AFBNDO-6",1698]
[{"$nulls":16},"MINOT AFBNDO-7",1461,"MINOT AFBNDO-7",1716]
[{"$nulls":16},"OMAHA/OFFUTT AFBNEE-1",729,"OMAHA/OFFUTT AFBNEE-1",972]
[{"$nulls":16},"OMAHA/OFFUTT AFBNEE-2",729,"OMAHA/OFFUTT AFBNEE-2",972]
[{"$nulls":16},"OMAHA/OFFUTT AFBNEE-3",729,"OMAHA/OFFUTT AFBNEE-3",972]
[{"$nulls":16},"OMAHA/OFFUTT AFBNEE-4",729,"OMAHA/OFFUTT AFBNEE-4",972]
[{"$nulls":16},"OMAHA/OFFUTT AFBNEE-5",822,"OMAHA/OFFUTT AFBNEE-5",1077]
[{"$nulls":16},"OMAHA/OFFUTT AFBNEE-6",975,"OMAHA/OFFUTT AFBNEE-6",1299]
[{"$nulls":16},"OMAHA/OFFUTT AFBNEE-7",1014,"OMAHA/OFFUTT AFBNEE-7",1353]
[{"$nulls":16},"OMAHA/OFFUTT AFBNEE-8",1122,"OMAHA/OFFUTT AFBNEE-8",1410]
[{"$nulls":16},"OMAHA/OFFUTT AFBNEE-9",1191,"OMAHA/OFFUTT AFBNEE-9",1512]
[{"$nulls":16},"OMAHA/OFFUTT AFBNEW-1",975,"OMAHA/OFFUTT AFBNEW-1",1302]
[{"$nulls":16},"OMAHA/OFFUTT AFBNEW-2",1119,"OMAHA/OFFUTT AFBNEW-2",1377]
[{"$nulls":16},"OMAHA/OFFUTT AFBNEW-3",1197,"OMAHA/OFFUTT AFBNEW-3",1449]
[{"$nulls":16},"OMAHA/OFFUTT AFBNEW-4",1314,"OMAHA/OFFUTT AFBNEW-4",1539]
[{"$nulls":16},"OMAHA/OFFUTT AFBNEW-5",1368,"OMAHA/OFFUTT AFBNEW-5",1644]
[{"$nulls":16},"OMAHA/OFFUTT AFBNEO-1E",1077,"OMAHA/OFFUTT AFBNEO-1E",1365]
[{"$nulls":16},"OMAHA/OFFUTT AFBNEO-2E",1176,"OMAHA/OFFUTT AFBNEO-2E",1437]
[{"$nulls":16},"OMAHA/OFFUTT AFBNEO-3E",1299,"OMAHA/OFFUTT AFBNEO-3E",1554]
[{"$nulls":16},"OMAHA/OFFUTT AFBNEO-1",867,"OMAHA/OFFUTT AFBNEO-1",1101]
[{"$nulls":16},"OMAHA/OFFUTT AFBNEO-2",1041,"OMAHA/OFFUTT AFBNEO-2",1296]
[{"$nulls":16},"OMAHA/OFFUTT AFBNEO-3",1221,"OMAHA/OFFUTT AFBNEO-3",1446]
[{"$nulls":16},"OMAHA/OFFUTT AFBNEO-4",1359,"OMAHA/OFFUTT AFBNEO-4",1686]
[{"$nulls":16},"OMAHA/OFFUTT AFBNEO-5",1392,"OMAHA/OFFUTT AFBNEO-5",1857]
[{"$nulls":16},"OMAHA/OFFUTT AFBNEO-6",1449,"OMAHA/OFFUTT AFBNEO-6",1875]
[{"$nulls":16},"OMAHA/OFFUTT AFBNEO-7",1476,"OMAHA/OFFUTT AFBNEO-7",1893]
[{"$nulls":16},"LINCOLNNEE-1",777,"LINCOLNNEE-1",1032]
[{"$nulls":16},"LINCOLNNEE-2",777,"LINCOLNNEE-2",1032]
[{"$nulls":16},"LINCOLNNEE-3",777,"LINCOLNNEE-3",1032]
[{"$nulls":16},"LINCOLNNEE-4",777,"LINCOLNNEE-4",1032]
[{"$nulls":16},"LINCOLNNEE-5",870,"LINCOLNNEE-5",1146]
[{"$nulls":16},"LINCOLNNEE-6",933,"LINCOLNNEE-6",1227]
[{"$nulls":16},"LINCOLNNEE-7",1038,"LINCOLNNEE-7",1257]
[{"$nulls":16},"LINCOLNNEE-8",1161,"LINCOLNNEE-8",1290]
[{"$nulls":16},"LINCOLNNEE-9",1188,"LINCOLNNEE-9",1347]
[{"$nulls":16},"LINCOLNNEW-1",990,"LINCOLNNEW-1",1227]
[{"$nulls":16},"LINCOLNNEW-2",1161,"LINCOLNNEW-2",1272]
[{"$nulls":16},"LINCOLNNEW-3",1191,"LINCOLNNEW-3",1311]
[{"$nulls":16},"LINCOLNNEW-4",1236,"LINCOLNNEW-4",1362]
[{"$nulls":16},"LINCOLNNEW-5",1266,"LINCOLNNEW-5",1419]
[{"$nulls":16},"LINCOLNNEO-1E",1146,"LINCOLNNEO-1E",1263]
[{"$nulls":16},"LINCOLNNEO-2E",1182,"LINCOLNNEO-2E",1305]
[{"$nulls":16},"LINCOLNNEO-3E",1227,"LINCOLNNEO-3E",1368]
[{"$nulls":16},"LINCOLNNEO-1",918,"LINCOLNNEO-1",1155]
[{"$nulls":16},"LINCOLNNEO-2",1107,"LINCOLNNEO-2",1224]
[{"$nulls":16},"LINCOLNNEO-3",1197,"LINCOLNNEO-3",1311]
[{"$nulls":16},"LINCOLNNEO-4",1260,"LINCOLNNEO-4",1440]
[{"$nulls":16},"LINCOLNNEO-5",1281,"LINCOLNNEO-5",1533]
[{"$nulls":16},"LINCOLNNEO-6",1311,"LINCOLNNEO-6",1548]
[{"$nulls":16},"LINCOLNNEO-7",1338,"LINCOLNNEO-7",1563]
[{"$nulls":16},"PORTSMOUTHNHE-1",993,"PORTSMOUTHNHE-1",1326]
[{"$nulls":16},"PORTSMOUTHNHE-2",993,"PORTSMOUTHNHE-2",1326]
[{"$nulls":16},"PORTSMOUTHNHE-3",993,"PORTSMOUTHNHE-3",1326]
[{"$nulls":16},"PORTSMOUTHNHE-4",993,"PORTSMOUTHNHE-4",1326]
[{"$nulls":16},"PORTSMOUTHNHE-5",1119,"PORTSMOUTHNHE-5",1491]
[{"$nulls":16},"PORTSMOUTHNHE-6",1422,"PORTSMOUTHNHE-6",1893]
[{"$nulls":16},"PORTSMOUTHNHE-7",1497,"PORTSMOUTHNHE-7",1998]
[{"$nulls":16},"PORTSMOUTHNHE-8",1581,"PORTSMOUTHNHE-8",2109]
[{"$nulls":16},"PORTSMOUTHNHE-9",1698,"PORTSMOUTHNHE-9",2193]
[{"$nulls":16},"PORTSMOUTHNHW-1",1422,"PORTSMOUTHNHW-1",1896]
[{"$nulls":16},"PORTSMOUTHNHW-2",1569,"PORTSMOUTHNHW-2",2043]
[{"$nulls":16},"PORTSMOUTHNHW-3",1710,"PORTSMOUTHNHW-3",2181]
[{"$nulls":16},"PORTSMOUTHNHW-4",1920,"PORTSMOUTHNHW-4",2196]
[{"$nulls":16},"PORTSMOUTHNHW-5",2022,"PORTSMOUTHNHW-5",2214]
[{"$nulls":16},"PORTSMOUTHNHO-1E",1515,"PORTSMOUTHNHO-1E",2019]
[{"$nulls":16},"PORTSMOUTHNHO-2E",1668,"PORTSMOUTHNHO-2E",2160]
[{"$nulls":16},"PORTSMOUTHNHO-3E",1893,"PORTSMOUTHNHO-3E",2199]
[{"$nulls":16},"PORTSMOUTHNHO-1",1158,"PORTSMOUTHNHO-1",1536]
[{"$nulls":16},"PORTSMOUTHNHO-2",1434,"PORTSMOUTHNHO-2",1887]
[{"$nulls":16},"PORTSMOUTHNHO-3",1749,"PORTSMOUTHNHO-3",2175]
[{"$nulls":16},"PORTSMOUTHNHO-4",2010,"PORTSMOUTHNHO-4",2220]
[{"$nulls":16},"PORTSMOUTHNHO-5",2076,"PORTSMOUTHNHO-5",2250]
[{"$nulls":16},"PORTSMOUTHNHO-6",2181,"PORTSMOUTHNHO-6",2274]
[{"$nulls":16},"PORTSMOUTHNHO-7",2226,"PORTSMOUTHNHO-7",2295]
[{"$nulls":16},"MANCHESTER/CONCORDNHE-1",1113,"MANCHESTER/CONCORDNHE-1",1482]
[{"$nulls":16},"MANCHESTER/CONCORDNHE-2",1113,"MANCHESTER/CONCORDNHE-2",1482]
[{"$nulls":16},"MANCHESTER/CONCORDNHE-3",1113,"MANCHESTER/CONCORDNHE-3",1482]
[{"$nulls":16},"MANCHESTER/CONCORDNHE-4",1113,"MANCHESTER/CONCORDNHE-4",1482]
[{"$nulls":16},"MANCHESTER/CONCORDNHE-5",1245,"MANCHESTER/CONCORDNHE-5",1650]
[{"$nulls":16},"MANCHESTER/CONCORDNHE-6",1395,"MANCHESTER/CONCORDNHE-6",1857]
[{"$nulls":16},"MANCHESTER/CONCORDNHE-7",1494,"MANCHESTER/CONCORDNHE-7",1929]
[{"$nulls":16},"MANCHESTER/CONCORDNHE-8",1692,"MANCHESTER/CONCORDNHE-8",2007]
[{"$nulls":16},"MANCHESTER/CONCORDNHE-9",1755,"MANCHESTER/CONCORDNHE-9",2127]
[{"$nulls":16},"MANCHESTER/CONCORDNHW-1",1419,"MANCHESTER/CONCORDNHW-1",1860]
[{"$nulls":16},"MANCHESTER/CONCORDNHW-2",1689,"MANCHESTER/CONCORDNHW-2",1962]
[{"$nulls":16},"MANCHESTER/CONCORDNHW-3",1761,"MANCHESTER/CONCORDNHW-3",2058]
[{"$nulls":16},"MANCHESTER/CONCORDNHW-4",1875,"MANCHESTER/CONCORDNHW-4",2154]
[{"$nulls":16},"MANCHESTER/CONCORDNHW-5",1947,"MANCHESTER/CONCORDNHW-5",2268]
[{"$nulls":16},"MANCHESTER/CONCORDNHO-1E",1650,"MANCHESTER/CONCORDNHO-1E",1947]
[{"$nulls":16},"MANCHESTER/CONCORDNHO-2E",1743,"MANCHESTER/CONCORDNHO-2E",2043]
[{"$nulls":16},"MANCHESTER/CONCORDNHO-3E",1857,"MANCHESTER/CONCORDNHO-3E",2172]
[{"$nulls":16},"MANCHESTER/CONCORDNHO-1",1314,"MANCHESTER/CONCORDNHO-1",1674]
[{"$nulls":16},"MANCHESTER/CONCORDNHO-2",1593,"MANCHESTER/CONCORDNHO-2",1854]
[{"$nulls":16},"MANCHESTER/CONCORDNHO-3",1782,"MANCHESTER/CONCORDNHO-3",2055]
[{"$nulls":16},"MANCHESTER/CONCORDNHO-4",1938,"MANCHESTER/CONCORDNHO-4",2310]
[{"$nulls":16},"MANCHESTER/CONCORDNHO-5",1983,"MANCHESTER/CONCORDNHO-5",2493]
[{"$nulls":16},"MANCHESTER/CONCORDNHO-6",2058,"MANCHESTER/CONCORDNHO-6",2520]
[{"$nulls":16},"MANCHESTER/CONCORDNHO-7",2100,"MANCHESTER/CONCORDNHO-7",2544]
[{"$nulls":16},"ATLANTIC CITYNJE-1",1062,"ATLANTIC CITYNJE-1",1353]
[{"$nulls":16},"ATLANTIC CITYNJE-2",1062,"ATLANTIC CITYNJE-2",1353]
[{"$nulls":16},"ATLANTIC CITYNJE-3",1062,"ATLANTIC CITYNJE-3",1353]
[{"$nulls":16},"ATLANTIC CITYNJE-4",1062,"ATLANTIC CITYNJE-4",1353]
[{"$nulls":16},"ATLANTIC CITYNJE-5",1191,"ATLANTIC CITYNJE-5",1449]
[{"$nulls":16},"ATLANTIC CITYNJE-6",1536,"ATLANTIC CITYNJE-6",2046]
[{"$nulls":16},"ATLANTIC CITYNJE-7",1545,"ATLANTIC CITYNJE-7",2061]
[{"$nulls":16},"ATLANTIC CITYNJE-8",1569,"ATLANTIC CITYNJE-8",2076]
[{"$nulls":16},"ATLANTIC CITYNJE-9",1752,"ATLANTIC CITYNJE-9",2148]
[{"$nulls":16},"ATLANTIC CITYNJW-1",1536,"ATLANTIC CITYNJW-1",2046]
[{"$nulls":16},"ATLANTIC CITYNJW-2",1563,"ATLANTIC CITYNJW-2",2067]
[{"$nulls":16},"ATLANTIC CITYNJW-3",1770,"ATLANTIC CITYNJW-3",2085]
[{"$nulls":16},"ATLANTIC CITYNJW-4",2049,"ATLANTIC CITYNJW-4",2172]
[{"$nulls":16},"ATLANTIC CITYNJW-5",2064,"ATLANTIC CITYNJW-5",2274]
[{"$nulls":16},"ATLANTIC CITYNJO-1E",1548,"ATLANTIC CITYNJO-1E",2064]
[{"$nulls":16},"ATLANTIC CITYNJO-2E",1710,"ATLANTIC CITYNJO-2E",2082]
[{"$nulls":16},"ATLANTIC CITYNJO-3E",2046,"ATLANTIC CITYNJO-3E",2187]
[{"$nulls":16},"ATLANTIC CITYNJO-1",1257,"ATLANTIC CITYNJO-1",1515]
[{"$nulls":16},"ATLANTIC CITYNJO-2",1527,"ATLANTIC CITYNJO-2",2034]
[{"$nulls":16},"ATLANTIC CITYNJO-3",1830,"ATLANTIC CITYNJO-3",2082]
[{"$nulls":16},"ATLANTIC CITYNJO-4",2061,"ATLANTIC CITYNJO-4",2313]
[{"$nulls":16},"ATLANTIC CITYNJO-5",2070,"ATLANTIC CITYNJO-5",2478]
[{"$nulls":16},"ATLANTIC CITYNJO-6",2085,"ATLANTIC CITYNJO-6",2505]
[{"$nulls":16},"ATLANTIC CITYNJO-7",2127,"ATLANTIC CITYNJO-7",2529]
[{"$nulls":16},"CAMDENNJE-1",1164,"CAMDENNJE-1",1554]
[{"$nulls":16},"CAMDENNJE-2",1164,"CAMDENNJE-2",1554]
[{"$nulls":16},"CAMDENNJE-3",1164,"CAMDENNJE-3",1554]
[{"$nulls":16},"CAMDENNJE-4",1164,"CAMDENNJE-4",1554]
[{"$nulls":16},"CAMDENNJE-5",1308,"CAMDENNJE-5",1701]
[{"$nulls":16},"CAMDENNJE-6",1509,"CAMDENNJE-6",2010]
[{"$nulls":16},"CAMDENNJE-7",1578,"CAMDENNJE-7",2106]
[{"$nulls":16},"CAMDENNJE-8",1764,"CAMDENNJE-8",2208]
[{"$nulls":16},"CAMDENNJE-9",1860,"CAMDENNJE-9",2298]
[{"$nulls":16},"CAMDENNJW-1",1509,"CAMDENNJW-1",2013]
[{"$nulls":16},"CAMDENNJW-2",1761,"CAMDENNJW-2",2148]
[{"$nulls":16},"CAMDENNJW-3",1869,"CAMDENNJW-3",2274]
[{"$nulls":16},"CAMDENNJW-4",2034,"CAMDENNJW-4",2304]
[{"$nulls":16},"CAMDENNJW-5",2130,"CAMDENNJW-5",2343]
[{"$nulls":16},"CAMDENNJO-1E",1701,"CAMDENNJO-1E",2127]
[{"$nulls":16},"CAMDENNJO-2E",1836,"CAMDENNJO-2E",2256]
[{"$nulls":16},"CAMDENNJO-3E",2010,"CAMDENNJO-3E",2310]
[{"$nulls":16},"CAMDENNJO-1",1404,"CAMDENNJO-1",1734]
[{"$nulls":16},"CAMDENNJO-2",1650,"CAMDENNJO-2",2004]
[{"$nulls":16},"CAMDENNJO-3",1899,"CAMDENNJO-3",2268]
[{"$nulls":16},"CAMDENNJO-4",2115,"CAMDENNJO-4",2358]
[{"$nulls":16},"CAMDENNJO-5",2175,"CAMDENNJO-5",2421]
[{"$nulls":16},"CAMDENNJO-6",2274,"CAMDENNJO-6",2445]
[{"$nulls":16},"CAMDENNJO-7",2319,"CAMDENNJO-7",2469]
[{"$nulls":16},"CAPE MAYNJE-1",1059,"CAPE MAYNJE-1",1356]
[{"$nulls":16},"CAPE MAYNJE-2",1059,"CAPE MAYNJE-2",1356]
[{"$nulls":16},"CAPE MAYNJE-3",1059,"CAPE MAYNJE-3",1356]
[{"$nulls":16},"CAPE MAYNJE-4",1059,"CAPE MAYNJE-4",1356]
[{"$nulls":16},"CAPE MAYNJE-5",1209,"CAPE MAYNJE-5",1431]
[{"$nulls":16},"CAPE MAYNJE-6",1377,"CAPE MAYNJE-6",1836]
[{"$nulls":16},"CAPE MAYNJE-7",1383,"CAPE MAYNJE-7",1845]
[{"$nulls":16},"CAPE MAYNJE-8",1512,"CAPE MAYNJE-8",1854]
[{"$nulls":16},"CAPE MAYNJE-9",1638,"CAPE MAYNJE-9",1947]
[{"$nulls":16},"CAPE MAYNJW-1",1377,"CAPE MAYNJW-1",1836]
[{"$nulls":16},"CAPE MAYNJW-2",1506,"CAPE MAYNJW-2",1848]
[{"$nulls":16},"CAPE MAYNJW-3",1650,"CAPE MAYNJW-3",1860]
[{"$nulls":16},"CAPE MAYNJW-4",1836,"CAPE MAYNJW-4",1980]
[{"$nulls":16},"CAPE MAYNJW-5",1848,"CAPE MAYNJW-5",2121]
[{"$nulls":16},"CAPE MAYNJO-1E",1431,"CAPE MAYNJO-1E",1845]
[{"$nulls":16},"CAPE MAYNJO-2E",1608,"CAPE MAYNJO-2E",1860]
[{"$nulls":16},"CAPE MAYNJO-3E",1836,"CAPE MAYNJO-3E",2001]
[{"$nulls":16},"CAPE MAYNJO-1",1284,"CAPE MAYNJO-1",1476]
[{"$nulls":16},"CAPE MAYNJO-2",1404,"CAPE MAYNJO-2",1827]
[{"$nulls":16},"CAPE MAYNJO-3",1689,"CAPE MAYNJO-3",1860]
[{"$nulls":16},"CAPE MAYNJO-4",1845,"CAPE MAYNJO-4",2178]
[{"$nulls":16},"CAPE MAYNJO-5",1851,"CAPE MAYNJO-5",2406]
[{"$nulls":16},"CAPE MAYNJO-6",1860,"CAPE MAYNJO-6",2430]
[{"$nulls":16},"CAPE MAYNJO-7",1899,"CAPE MAYNJO-7",2454]
[{"$nulls":16},"FORT MONMOUTH/EARLE NWSNJE-1",1335,"FORT MONMOUTH/EARLE NWSNJE-1",1782]
[{"$nulls":16},"FORT MONMOUTH/EARLE NWSNJE-2",1335,"FORT MONMOUTH/EARLE NWSNJE-2",1782]
[{"$nulls":16},"FORT MONMOUTH/EARLE NWSNJE-3",1335,"FORT MONMOUTH/EARLE NWSNJE-3",1782]
[{"$nulls":16},"FORT MONMOUTH/EARLE NWSNJE-4",1335,"FORT MONMOUTH/EARLE NWSNJE-4",1782]
[{"$nulls":16},"FORT MONMOUTH/EARLE NWSNJE-5",1497,"FORT MONMOUTH/EARLE NWSNJE-5",1998]
[{"$nulls":16},"FORT MONMOUTH/EARLE NWSNJE-6",1782,"FORT MONMOUTH/EARLE NWSNJE-6",2373]
[{"$nulls":16},"FORT MONMOUTH/EARLE NWSNJE-7",1824,"FORT MONMOUTH/EARLE NWSNJE-7",2430]
[{"$nulls":16},"FORT MONMOUTH/EARLE NWSNJE-8",2073,"FORT MONMOUTH/EARLE NWSNJE-8",2493]
[{"$nulls":16},"FORT MONMOUTH/EARLE NWSNJE-9",2190,"FORT MONMOUTH/EARLE NWSNJE-9",2685]
[{"$nulls":16},"FORT MONMOUTH/EARLE NWSNJW-1",1782,"FORT MONMOUTH/EARLE NWSNJW-1",2376]
[{"$nulls":16},"FORT MONMOUTH/EARLE NWSNJW-2",2070,"FORT MONMOUTH/EARLE NWSNJW-2",2457]
[{"$nulls":16},"FORT MONMOUTH/EARLE NWSNJW-3",2202,"FORT MONMOUTH/EARLE NWSNJW-3",2532]
[{"$nulls":16},"FORT MONMOUTH/EARLE NWSNJW-4",2388,"FORT MONMOUTH/EARLE NWSNJW-4",2742]
[{"$nulls":16},"FORT MONMOUTH/EARLE NWSNJW-5",2445,"FORT MONMOUTH/EARLE NWSNJW-5",2994]
[{"$nulls":16},"FORT MONMOUTH/EARLE NWSNJO-1E",1998,"FORT MONMOUTH/EARLE NWSNJO-1E",2442]
[{"$nulls":16},"FORT MONMOUTH/EARLE NWSNJO-2E",2163,"FORT MONMOUTH/EARLE NWSNJO-2E",2520]
[{"$nulls":16},"FORT MONMOUTH/EARLE NWSNJO-3E",2373,"FORT MONMOUTH/EARLE NWSNJO-3E",2781]
[{"$nulls":16},"FORT MONMOUTH/EARLE NWSNJO-1",1563,"FORT MONMOUTH/EARLE NWSNJO-1",2037]
[{"$nulls":16},"FORT MONMOUTH/EARLE NWSNJO-2",1923,"FORT MONMOUTH/EARLE NWSNJO-2",2367]
[{"$nulls":16},"FORT MONMOUTH/EARLE NWSNJO-3",2238,"FORT MONMOUTH/EARLE NWSNJO-3",2529]
[{"$nulls":16},"FORT MONMOUTH/EARLE NWSNJO-4",2436,"FORT MONMOUTH/EARLE NWSNJO-4",3090]
[{"$nulls":16},"FORT MONMOUTH/EARLE NWSNJO-5",2622,"FORT MONMOUTH/EARLE NWSNJO-5",3495]
[{"$nulls":16},"FORT MONMOUTH/EARLE NWSNJO-6",2646,"FORT MONMOUTH/EARLE NWSNJO-6",3531]
[{"$nulls":16},"FORT MONMOUTH/EARLE NWSNJO-7",2673,"FORT MONMOUTH/EARLE NWSNJO-7",3564]
[{"$nulls":16},"PERTH AMBOYNJE-1",1248,"PERTH AMBOYNJE-1",1665]
[{"$nulls":16},"PERTH AMBOYNJE-2",1248,"PERTH AMBOYNJE-2",1665]
[{"$nulls":16},"PERTH AMBOYNJE-3",1248,"PERTH AMBOYNJE-3",1665]
[{"$nulls":16},"PERTH AMBOYNJE-4",1248,"PERTH AMBOYNJE-4",1665]
[{"$nulls":16},"PERTH AMBOYNJE-5",1431,"PERTH AMBOYNJE-5",1764]
[{"$nulls":16},"PERTH AMBOYNJE-6",1611,"PERTH AMBOYNJE-6",2148]
[{"$nulls":16},"PERTH AMBOYNJE-7",1671,"PERTH AMBOYNJE-7",2223]
[{"$nulls":16},"PERTH AMBOYNJE-8",1839,"PERTH AMBOYNJE-8",2304]
[{"$nulls":16},"PERTH AMBOYNJE-9",1959,"PERTH AMBOYNJE-9",2475]
[{"$nulls":16},"PERTH AMBOYNJW-1",1626,"PERTH AMBOYNJW-1",2148]
[{"$nulls":16},"PERTH AMBOYNJW-2",1836,"PERTH AMBOYNJW-2",2256]
[{"$nulls":16},"PERTH AMBOYNJW-3",1971,"PERTH AMBOYNJW-3",2358]
[{"$nulls":16},"PERTH AMBOYNJW-4",2166,"PERTH AMBOYNJW-4",2520]
[{"$nulls":16},"PERTH AMBOYNJW-5",2241,"PERTH AMBOYNJW-5",2712]
[{"$nulls":16},"PERTH AMBOYNJO-1E",1764,"PERTH AMBOYNJO-1E",2238]
[{"$nulls":16},"PERTH AMBOYNJO-2E",1932,"PERTH AMBOYNJO-2E",2343]
[{"$nulls":16},"PERTH AMBOYNJO-3E",2148,"PERTH AMBOYNJO-3E",2550]
[{"$nulls":16},"PERTH AMBOYNJO-1",1566,"PERTH AMBOYNJO-1",1806]
[{"$nulls":16},"PERTH AMBOYNJO-2",1728,"PERTH AMBOYNJO-2",2139]
[{"$nulls":16},"PERTH AMBOYNJO-3",2010,"PERTH AMBOYNJO-3",2352]
[{"$nulls":16},"PERTH AMBOYNJO-4",2232,"PERTH AMBOYNJO-4",2787]
[{"$nulls":16},"PERTH AMBOYNJO-5",2325,"PERTH AMBOYNJO-5",3099]
[{"$nulls":16},"PERTH AMBOYNJO-6",2358,"PERTH AMBOYNJO-6",3129]
[{"$nulls":16},"PERTH AMBOYNJO-7",2403,"PERTH AMBOYNJO-7",3162]
[{"$nulls":16},"NORTHERN NEW JERSEYNJE-1",1482,"NORTHERN NEW JERSEYNJE-1",1977]
[{"$nulls":16},"NORTHERN NEW JERSEYNJE-2",1482,"NORTHERN NEW JERSEYNJE-2",1977]
[{"$nulls":16},"NORTHERN NEW JERSEYNJE-3",1482,"NORTHERN NEW JERSEYNJE-3",1977]
[{"$nulls":16},"NORTHERN NEW JERSEYNJE-4",1482,"NORTHERN NEW JERSEYNJE-4",1977]
[{"$nulls":16},"NORTHERN NEW JERSEYNJE-5",1635,"NORTHERN NEW JERSEYNJE-5",2160]
[{"$nulls":16},"NORTHERN NEW JERSEYNJE-6",2079,"NORTHERN NEW JERSEYNJE-6",2772]
[{"$nulls":16},"NORTHERN NEW JERSEYNJE-7",2082,"NORTHERN NEW JERSEYNJE-7",2775]
[{"$nulls":16},"NORTHERN NEW JERSEYNJE-8",2283,"NORTHERN NEW JERSEYNJE-8",2781]
[{"$nulls":16},"NORTHERN NEW JERSEYNJE-9",2472,"NORTHERN NEW JERSEYNJE-9",2829]
[{"$nulls":16},"NORTHERN NEW JERSEYNJW-1",2079,"NORTHERN NEW JERSEYNJW-1",2772]
[{"$nulls":16},"NORTHERN NEW JERSEYNJW-2",2277,"NORTHERN NEW JERSEYNJW-2",2778]
[{"$nulls":16},"NORTHERN NEW JERSEYNJW-3",2490,"NORTHERN NEW JERSEYNJW-3",2787]
[{"$nulls":16},"NORTHERN NEW JERSEYNJW-4",2772,"NORTHERN NEW JERSEYNJW-4",2847]
[{"$nulls":16},"NORTHERN NEW JERSEYNJW-5",2778,"NORTHERN NEW JERSEYNJW-5",2919]
[{"$nulls":16},"NORTHERN NEW JERSEYNJO-1E",2160,"NORTHERN NEW JERSEYNJO-1E",2778]
[{"$nulls":16},"NORTHERN NEW JERSEYNJO-2E",2430,"NORTHERN NEW JERSEYNJO-2E",2784]
[{"$nulls":16},"NORTHERN NEW JERSEYNJO-3E",2772,"NORTHERN NEW JERSEYNJO-3E",2859]
[{"$nulls":16},"NORTHERN NEW JERSEYNJO-1",1791,"NORTHERN NEW JERSEYNJO-1",2229]
[{"$nulls":16},"NORTHERN NEW JERSEYNJO-2",2097,"NORTHERN NEW JERSEYNJO-2",2760]
[{"$nulls":16},"NORTHERN NEW JERSEYNJO-3",2550,"NORTHERN NEW JERSEYNJO-3",2787]
[{"$nulls":16},"NORTHERN NEW JERSEYNJO-4",2778,"NORTHERN NEW JERSEYNJO-4",2946]
[{"$nulls":16},"NORTHERN NEW JERSEYNJO-5",2781,"NORTHERN NEW JERSEYNJO-5",3063]
[{"$nulls":16},"NORTHERN NEW JERSEYNJO-6",2787,"NORTHERN NEW JERSEYNJO-6",3093]
[{"$nulls":16},"NORTHERN NEW JERSEYNJO-7",2841,"NORTHERN NEW JERSEYNJO-7",3123]
[{"$nulls":16},"TRENTONNJE-1",1104,"TRENTONNJE-1",1470]
[{"$nulls":16},"TRENTONNJE-2",1104,"TRENTONNJE-2",1470]
[{"$nulls":16},"TRENTONNJE-3",1104,"TRENTONNJE-3",1470]
[{"$nulls":16},"TRENTONNJE-4",1104,"TRENTONNJE-4",1470]
[{"$nulls":16},"TRENTONNJE-5",1305,"TRENTONNJE-5",1740]
[{"$nulls":16},"TRENTONNJE-6",1593,"TRENTONNJE-6",2124]
[{"$nulls":16},"TRENTONNJE-7",1665,"TRENTONNJE-7",2220]
[{"$nulls":16},"TRENTONNJE-8",1815,"TRENTONNJE-8",2322]
[{"$nulls":16},"TRENTONNJE-9",1935,"TRENTONNJE-9",2460]
[{"$nulls":16},"TRENTONNJW-1",1596,"TRENTONNJW-1",2127]
[{"$nulls":16},"TRENTONNJW-2",1812,"TRENTONNJW-2",2262]
[{"$nulls":16},"TRENTONNJW-3",1947,"TRENTONNJW-3",2388]
[{"$nulls":16},"TRENTONNJW-4",2148,"TRENTONNJW-4",2487]
[{"$nulls":16},"TRENTONNJW-5",2241,"TRENTONNJW-5",2607]
[{"$nulls":16},"TRENTONNJO-1E",1740,"TRENTONNJO-1E",2241]
[{"$nulls":16},"TRENTONNJO-2E",1908,"TRENTONNJO-2E",2370]
[{"$nulls":16},"TRENTONNJO-3E",2124,"TRENTONNJO-3E",2505]
[{"$nulls":16},"TRENTONNJO-1",1335,"TRENTONNJO-1",1782]
[{"$nulls":16},"TRENTONNJO-2",1647,"TRENTONNJO-2",2115]
[{"$nulls":16},"TRENTONNJO-3",1986,"TRENTONNJO-3",2382]
[{"$nulls":16},"TRENTONNJO-4",2229,"TRENTONNJO-4",2652]
[{"$nulls":16},"TRENTONNJO-5",2289,"TRENTONNJO-5",2847]
[{"$nulls":16},"TRENTONNJO-6",2388,"TRENTONNJO-6",2874]
[{"$nulls":16},"TRENTONNJO-7",2436,"TRENTONNJO-7",2904]
[{"$nulls":16},"FT DIX/MCGUIRE/LAKEHURSTNJE-1",1167,"FT DIX/MCGUIRE/LAKEHURSTNJE-1",1557]
[{"$nulls":16},"FT DIX/MCGUIRE/LAKEHURSTNJE-2",1167,"FT DIX/MCGUIRE/LAKEHURSTNJE-2",1557]
[{"$nulls":16},"FT DIX/MCGUIRE/LAKEHURSTNJE-3",1167,"FT DIX/MCGUIRE/LAKEHURSTNJE-3",1557]
[{"$nulls":16},"FT DIX/MCGUIRE/LAKEHURSTNJE-4",1167,"FT DIX/MCGUIRE/LAKEHURSTNJE-4",1557]
[{"$nulls":16},"FT DIX/MCGUIRE/LAKEHURSTNJE-5",1302,"FT DIX/MCGUIRE/LAKEHURSTNJE-5",1701]
[{"$nulls":16},"FT DIX/MCGUIRE/LAKEHURSTNJE-6",1605,"FT DIX/MCGUIRE/LAKEHURSTNJE-6",2139]
[{"$nulls":16},"FT DIX/MCGUIRE/LAKEHURSTNJE-7",1653,"FT DIX/MCGUIRE/LAKEHURSTNJE-7",2205]
[{"$nulls":16},"FT DIX/MCGUIRE/LAKEHURSTNJE-8",1788,"FT DIX/MCGUIRE/LAKEHURSTNJE-8",2277]
[{"$nulls":16},"FT DIX/MCGUIRE/LAKEHURSTNJE-9",1923,"FT DIX/MCGUIRE/LAKEHURSTNJE-9",2355]
[{"$nulls":16},"FT DIX/MCGUIRE/LAKEHURSTNJW-1",1605,"FT DIX/MCGUIRE/LAKEHURSTNJW-1",2142]
[{"$nulls":16},"FT DIX/MCGUIRE/LAKEHURSTNJW-2",1785,"FT DIX/MCGUIRE/LAKEHURSTNJW-2",2235]
[{"$nulls":16},"FT DIX/MCGUIRE/LAKEHURSTNJW-3",1938,"FT DIX/MCGUIRE/LAKEHURSTNJW-3",2325]
[{"$nulls":16},"FT DIX/MCGUIRE/LAKEHURSTNJW-4",2157,"FT DIX/MCGUIRE/LAKEHURSTNJW-4",2364]
[{"$nulls":16},"FT DIX/MCGUIRE/LAKEHURSTNJW-5",2223,"FT DIX/MCGUIRE/LAKEHURSTNJW-5",2412]
[{"$nulls":16},"FT DIX/MCGUIRE/LAKEHURSTNJO-1E",1701,"FT DIX/MCGUIRE/LAKEHURSTNJO-1E",2220]
[{"$nulls":16},"FT DIX/MCGUIRE/LAKEHURSTNJO-2E",1893,"FT DIX/MCGUIRE/LAKEHURSTNJO-2E",2310]
[{"$nulls":16},"FT DIX/MCGUIRE/LAKEHURSTNJO-3E",2139,"FT DIX/MCGUIRE/LAKEHURSTNJO-3E",2373]
[{"$nulls":16},"FT DIX/MCGUIRE/LAKEHURSTNJO-1",1413,"FT DIX/MCGUIRE/LAKEHURSTNJO-1",1749]
[{"$nulls":16},"FT DIX/MCGUIRE/LAKEHURSTNJO-2",1653,"FT DIX/MCGUIRE/LAKEHURSTNJO-2",2130]
[{"$nulls":16},"FT DIX/MCGUIRE/LAKEHURSTNJO-3",1980,"FT DIX/MCGUIRE/LAKEHURSTNJO-3",2319]
[{"$nulls":16},"FT DIX/MCGUIRE/LAKEHURSTNJO-4",2214,"FT DIX/MCGUIRE/LAKEHURSTNJO-4",2430]
[{"$nulls":16},"FT DIX/MCGUIRE/LAKEHURSTNJO-5",2256,"FT DIX/MCGUIRE/LAKEHURSTNJO-5",2508]
[{"$nulls":16},"FT DIX/MCGUIRE/LAKEHURSTNJO-6",2325,"FT DIX/MCGUIRE/LAKEHURSTNJO-6",2535]
[{"$nulls":16},"FT DIX/MCGUIRE/LAKEHURSTNJO-7",2370,"FT DIX/MCGUIRE/LAKEHURSTNJO-7",2559]
[{"$nulls":16},"HOLLOMAN AFB/ALAMOGORDONME-1",687,"HOLLOMAN AFB/ALAMOGORDONME-1",915]
[{"$nulls":16},"HOLLOMAN AFB/ALAMOGORDONME-2",687,"HOLLOMAN AFB/ALAMOGORDONME-2",915]
[{"$nulls":16},"HOLLOMAN AFB/ALAMOGORDONME-3",687,"HOLLOMAN AFB/ALAMOGORDONME-3",915]
[{"$nulls":16},"HOLLOMAN AFB/ALAMOGORDONME-4",687,"HOLLOMAN AFB/ALAMOGORDONME-4",915]
[{"$nulls":16},"HOLLOMAN AFB/ALAMOGORDONME-5",777,"HOLLOMAN AFB/ALAMOGORDONME-5",1035]
[{"$nulls":16},"HOLLOMAN AFB/ALAMOGORDONME-6",909,"HOLLOMAN AFB/ALAMOGORDONME-6",1212]
[{"$nulls":16},"HOLLOMAN AFB/ALAMOGORDONME-7",993,"HOLLOMAN AFB/ALAMOGORDONME-7",1326]
[{"$nulls":16},"HOLLOMAN AFB/ALAMOGORDONME-8",1083,"HOLLOMAN AFB/ALAMOGORDONME-8",1446]
[{"$nulls":16},"HOLLOMAN AFB/ALAMOGORDONME-9",1182,"HOLLOMAN AFB/ALAMOGORDONME-9",1578]
[{"$nulls":16},"HOLLOMAN AFB/ALAMOGORDONMW-1",912,"HOLLOMAN AFB/ALAMOGORDONMW-1",1215]
[{"$nulls":16},"HOLLOMAN AFB/ALAMOGORDONMW-2",1068,"HOLLOMAN AFB/ALAMOGORDONMW-2",1374]
[{"$nulls":16},"HOLLOMAN AFB/ALAMOGORDONMW-3",1143,"HOLLOMAN AFB/ALAMOGORDONMW-3",1524]
[{"$nulls":16},"HOLLOMAN AFB/ALAMOGORDONMW-4",1242,"HOLLOMAN AFB/ALAMOGORDONMW-4",1599]
[{"$nulls":16},"HOLLOMAN AFB/ALAMOGORDONMW-5",1353,"HOLLOMAN AFB/ALAMOGORDONMW-5",1686]
[{"$nulls":16},"HOLLOMAN AFB/ALAMOGORDONMO-1E",1035,"HOLLOMAN AFB/ALAMOGORDONMO-1E",1350]
[{"$nulls":16},"HOLLOMAN AFB/ALAMOGORDONMO-2E",1125,"HOLLOMAN AFB/ALAMOGORDONMO-2E",1500]
[{"$nulls":16},"HOLLOMAN AFB/ALAMOGORDONMO-3E",1212,"HOLLOMAN AFB/ALAMOGORDONMO-3E",1611]
[{"$nulls":16},"HOLLOMAN AFB/ALAMOGORDONMO-1",795,"HOLLOMAN AFB/ALAMOGORDONMO-1",1053]
[{"$nulls":16},"HOLLOMAN AFB/ALAMOGORDONMO-2",993,"HOLLOMAN AFB/ALAMOGORDONMO-2",1209]
[{"$nulls":16},"HOLLOMAN AFB/ALAMOGORDONMO-3",1149,"HOLLOMAN AFB/ALAMOGORDONMO-3",1518]
[{"$nulls":16},"HOLLOMAN AFB/ALAMOGORDONMO-4",1338,"HOLLOMAN AFB/ALAMOGORDONMO-4",1719]
[{"$nulls":16},"HOLLOMAN AFB/ALAMOGORDONMO-5",1407,"HOLLOMAN AFB/ALAMOGORDONMO-5",1863]
[{"$nulls":16},"HOLLOMAN AFB/ALAMOGORDONMO-6",1524,"HOLLOMAN AFB/ALAMOGORDONMO-6",1881]
[{"$nulls":16},"HOLLOMAN AFB/ALAMOGORDONMO-7",1554,"HOLLOMAN AFB/ALAMOGORDONMO-7",1899]
[{"$nulls":16},"ALBUQUERQUE/KIRTLAND AFBNME-1",831,"ALBUQUERQUE/KIRTLAND AFBNME-1",1107]
[{"$nulls":16},"ALBUQUERQUE/KIRTLAND AFBNME-2",831,"ALBUQUERQUE/KIRTLAND AFBNME-2",1107]
[{"$nulls":16},"ALBUQUERQUE/KIRTLAND AFBNME-3",831,"ALBUQUERQUE/KIRTLAND AFBNME-3",1107]
[{"$nulls":16},"ALBUQUERQUE/KIRTLAND AFBNME-4",831,"ALBUQUERQUE/KIRTLAND AFBNME-4",1107]
[{"$nulls":16},"ALBUQUERQUE/KIRTLAND AFBNME-5",936,"ALBUQUERQUE/KIRTLAND AFBNME-5",1248]
[{"$nulls":16},"ALBUQUERQUE/KIRTLAND AFBNME-6",987,"ALBUQUERQUE/KIRTLAND AFBNME-6",1299]
[{"$nulls":16},"ALBUQUERQUE/KIRTLAND AFBNME-7",1116,"ALBUQUERQUE/KIRTLAND AFBNME-7",1353]
[{"$nulls":16},"ALBUQUERQUE/KIRTLAND AFBNME-8",1257,"ALBUQUERQUE/KIRTLAND AFBNME-8",1413]
[{"$nulls":16},"ALBUQUERQUE/KIRTLAND AFBNME-9",1272,"ALBUQUERQUE/KIRTLAND AFBNME-9",1494]
[{"$nulls":16},"ALBUQUERQUE/KIRTLAND AFBNMW-1",1053,"ALBUQUERQUE/KIRTLAND AFBNMW-1",1299]
[{"$nulls":16},"ALBUQUERQUE/KIRTLAND AFBNMW-2",1257,"ALBUQUERQUE/KIRTLAND AFBNMW-2",1377]
[{"$nulls":16},"ALBUQUERQUE/KIRTLAND AFBNMW-3",1275,"ALBUQUERQUE/KIRTLAND AFBNMW-3",1452]
[{"$nulls":16},"ALBUQUERQUE/KIRTLAND AFBNMW-4",1311,"ALBUQUERQUE/KIRTLAND AFBNMW-4",1509]
[{"$nulls":16},"ALBUQUERQUE/KIRTLAND AFBNMW-5",1368,"ALBUQUERQUE/KIRTLAND AFBNMW-5",1578]
[{"$nulls":16},"ALBUQUERQUE/KIRTLAND AFBNMO-1E",1248,"ALBUQUERQUE/KIRTLAND AFBNMO-1E",1365]
[{"$nulls":16},"ALBUQUERQUE/KIRTLAND AFBNMO-2E",1269,"ALBUQUERQUE/KIRTLAND AFBNMO-2E",1440]
[{"$nulls":16},"ALBUQUERQUE/KIRTLAND AFBNMO-3E",1299,"ALBUQUERQUE/KIRTLAND AFBNMO-3E",1521]
[{"$nulls":16},"ALBUQUERQUE/KIRTLAND AFBNMO-1",969,"ALBUQUERQUE/KIRTLAND AFBNMO-1",1254]
[{"$nulls":16},"ALBUQUERQUE/KIRTLAND AFBNMO-2",1200,"ALBUQUERQUE/KIRTLAND AFBNMO-2",1296]
[{"$nulls":16},"ALBUQUERQUE/KIRTLAND AFBNMO-3",1281,"ALBUQUERQUE/KIRTLAND AFBNMO-3",1449]
[{"$nulls":16},"ALBUQUERQUE/KIRTLAND AFBNMO-4",1359,"ALBUQUERQUE/KIRTLAND AFBNMO-4",1605]
[{"$nulls":16},"ALBUQUERQUE/KIRTLAND AFBNMO-5",1395,"ALBUQUERQUE/KIRTLAND AFBNMO-5",1719]
[{"$nulls":16},"ALBUQUERQUE/KIRTLAND AFBNMO-6",1452,"ALBUQUERQUE/KIRTLAND AFBNMO-6",1734]
[{"$nulls":16},"ALBUQUERQUE/KIRTLAND AFBNMO-7",1479,"ALBUQUERQUE/KIRTLAND AFBNMO-7",1752]
[{"$nulls":16},"CANNON AFB/CLOVISNME-1",678,"CANNON AFB/CLOVISNME-1",906]
[{"$nulls":16},"CANNON AFB/CLOVISNME-2",678,"CANNON AFB/CLOVISNME-2",906]
[{"$nulls":16},"CANNON AFB/CLOVISNME-3",678,"CANNON AFB/CLOVISNME-3",906]
[{"$nulls":16},"CANNON AFB/CLOVISNME-4",678,"CANNON AFB/CLOVISNME-4",906]
[{"$nulls":16},"CANNON AFB/CLOVISNME-5",780,"CANNON AFB/CLOVISNME-5",1041]
[{"$nulls":16},"CANNON AFB/CLOVISNME-6",987,"CANNON AFB/CLOVISNME-6",1314]
[{"$nulls":16},"CANNON AFB/CLOVISNME-7",999,"CANNON AFB/CLOVISNME-7",1332]
[{"$nulls":16},"CANNON AFB/CLOVISNME-8",1095,"CANNON AFB/CLOVISNME-8",1350]
[{"$nulls":16},"CANNON AFB/CLOVISNME-9",1182,"CANNON AFB/CLOVISNME-9",1422]
[{"$nulls":16},"CANNON AFB/CLOVISNMW-1",987,"CANNON AFB/CLOVISNMW-1",1314]
[{"$nulls":16},"CANNON AFB/CLOVISNMW-2",1092,"CANNON AFB/CLOVISNMW-2",1338]
[{"$nulls":16},"CANNON AFB/CLOVISNMW-3",1188,"CANNON AFB/CLOVISNMW-3",1362]
[{"$nulls":16},"CANNON AFB/CLOVISNMW-4",1320,"CANNON AFB/CLOVISNMW-4",1443]
[{"$nulls":16},"CANNON AFB/CLOVISNMW-5",1335,"CANNON AFB/CLOVISNMW-5",1542]
[{"$nulls":16},"CANNON AFB/CLOVISNMO-1E",1041,"CANNON AFB/CLOVISNMO-1E",1335]
[{"$nulls":16},"CANNON AFB/CLOVISNMO-2E",1161,"CANNON AFB/CLOVISNMO-2E",1359]
[{"$nulls":16},"CANNON AFB/CLOVISNMO-3E",1314,"CANNON AFB/CLOVISNMO-3E",1458]
[{"$nulls":16},"CANNON AFB/CLOVISNMO-1",804,"CANNON AFB/CLOVISNMO-1",1071]
[{"$nulls":16},"CANNON AFB/CLOVISNMO-2",996,"CANNON AFB/CLOVISNMO-2",1311]
[{"$nulls":16},"CANNON AFB/CLOVISNMO-3",1215,"CANNON AFB/CLOVISNMO-3",1359]
[{"$nulls":16},"CANNON AFB/CLOVISNMO-4",1332,"CANNON AFB/CLOVISNMO-4",1578]
[{"$nulls":16},"CANNON AFB/CLOVISNMO-5",1344,"CANNON AFB/CLOVISNMO-5",1737]
[{"$nulls":16},"CANNON AFB/CLOVISNMO-6",1362,"CANNON AFB/CLOVISNMO-6",1752]
[{"$nulls":16},"CANNON AFB/CLOVISNMO-7",1389,"CANNON AFB/CLOVISNMO-7",1770]
[{"$nulls":16},"WHITE SANDS MR/LAS CRUCESNME-1",672,"WHITE SANDS MR/LAS CRUCESNME-1",897]
[{"$nulls":16},"WHITE SANDS MR/LAS CRUCESNME-2",672,"WHITE SANDS MR/LAS CRUCESNME-2",897]
[{"$nulls":16},"WHITE SANDS MR/LAS CRUCESNME-3",672,"WHITE SANDS MR/LAS CRUCESNME-3",897]
[{"$nulls":16},"WHITE SANDS MR/LAS CRUCESNME-4",672,"WHITE SANDS MR/LAS CRUCESNME-4",897]
[{"$nulls":16},"WHITE SANDS MR/LAS CRUCESNME-5",747,"WHITE SANDS MR/LAS CRUCESNME-5",996]
[{"$nulls":16},"WHITE SANDS MR/LAS CRUCESNME-6",825,"WHITE SANDS MR/LAS CRUCESNME-6",1098]
[{"$nulls":16},"WHITE SANDS MR/LAS CRUCESNME-7",903,"WHITE SANDS MR/LAS CRUCESNME-7",1173]
[{"$nulls":16},"WHITE SANDS MR/LAS CRUCESNME-8",1017,"WHITE SANDS MR/LAS CRUCESNME-8",1251]
[{"$nulls":16},"WHITE SANDS MR/LAS CRUCESNME-9",1047,"WHITE SANDS MR/LAS CRUCESNME-9",1341]
[{"$nulls":16},"WHITE SANDS MR/LAS CRUCESNMW-1",858,"WHITE SANDS MR/LAS CRUCESNMW-1",1101]
[{"$nulls":16},"WHITE SANDS MR/LAS CRUCESNMW-2",1014,"WHITE SANDS MR/LAS CRUCESNMW-2",1206]
[{"$nulls":16},"WHITE SANDS MR/LAS CRUCESNMW-3",1050,"WHITE SANDS MR/LAS CRUCESNMW-3",1302]
[{"$nulls":16},"WHITE SANDS MR/LAS CRUCESNMW-4",1116,"WHITE SANDS MR/LAS CRUCESNMW-4",1353]
[{"$nulls":16},"WHITE SANDS MR/LAS CRUCESNMW-5",1191,"WHITE SANDS MR/LAS CRUCESNMW-5",1416]
[{"$nulls":16},"WHITE SANDS MR/LAS CRUCESNMO-1E",996,"WHITE SANDS MR/LAS CRUCESNMO-1E",1188]
[{"$nulls":16},"WHITE SANDS MR/LAS CRUCESNMO-2E",1041,"WHITE SANDS MR/LAS CRUCESNMO-2E",1290]
[{"$nulls":16},"WHITE SANDS MR/LAS CRUCESNMO-3E",1098,"WHITE SANDS MR/LAS CRUCESNMO-3E",1365]
[{"$nulls":16},"WHITE SANDS MR/LAS CRUCESNMO-1",795,"WHITE SANDS MR/LAS CRUCESNMO-1",1008]
[{"$nulls":16},"WHITE SANDS MR/LAS CRUCESNMO-2",963,"WHITE SANDS MR/LAS CRUCESNMO-2",1095]
[{"$nulls":16},"WHITE SANDS MR/LAS CRUCESNMO-3",1062,"WHITE SANDS MR/LAS CRUCESNMO-3",1299]
[{"$nulls":16},"WHITE SANDS MR/LAS CRUCESNMO-4",1179,"WHITE SANDS MR/LAS CRUCESNMO-4",1437]
[{"$nulls":16},"WHITE SANDS MR/LAS CRUCESNMO-5",1227,"WHITE SANDS MR/LAS CRUCESNMO-5",1536]
[{"$nulls":16},"WHITE SANDS MR/LAS CRUCESNMO-6",1302,"WHITE SANDS MR/LAS CRUCESNMO-6",1551]
[{"$nulls":16},"WHITE SANDS MR/LAS CRUCESNMO-7",1329,"WHITE SANDS MR/LAS CRUCESNMO-7",1566]
[{"$nulls":16},"SANTA FE/LOS ALAMOSNME-1",903,"SANTA FE/LOS ALAMOSNME-1",1119]
[{"$nulls":16},"SANTA FE/LOS ALAMOSNME-2",903,"SANTA FE/LOS ALAMOSNME-2",1119]
[{"$nulls":16},"SANTA FE/LOS ALAMOSNME-3",903,"SANTA FE/LOS ALAMOSNME-3",1119]
[{"$nulls":16},"SANTA FE/LOS ALAMOSNME-4",903,"SANTA FE/LOS ALAMOSNME-4",1119]
[{"$nulls":16},"SANTA FE/LOS ALAMOSNME-5",957,"SANTA FE/LOS ALAMOSNME-5",1257]
[{"$nulls":16},"SANTA FE/LOS ALAMOSNME-6",1110,"SANTA FE/LOS ALAMOSNME-6",1479]
[{"$nulls":16},"SANTA FE/LOS ALAMOSNME-7",1161,"SANTA FE/LOS ALAMOSNME-7",1548]
[{"$nulls":16},"SANTA FE/LOS ALAMOSNME-8",1302,"SANTA FE/LOS ALAMOSNME-8",1623]
[{"$nulls":16},"SANTA FE/LOS ALAMOSNME-9",1371,"SANTA FE/LOS ALAMOSNME-9",1761]
[{"$nulls":16},"SANTA FE/LOS ALAMOSNMW-1",1110,"SANTA FE/LOS ALAMOSNMW-1",1482]
[{"$nulls":16},"SANTA FE/LOS ALAMOSNMW-2",1299,"SANTA FE/LOS ALAMOSNMW-2",1578]
[{"$nulls":16},"SANTA FE/LOS ALAMOSNMW-3",1377,"SANTA FE/LOS ALAMOSNMW-3",1668]
[{"$nulls":16},"SANTA FE/LOS ALAMOSNMW-4",1497,"SANTA FE/LOS ALAMOSNMW-4",1794]
[{"$nulls":16},"SANTA FE/LOS ALAMOSNMW-5",1566,"SANTA FE/LOS ALAMOSNMW-5",1944]
[{"$nulls":16},"SANTA FE/LOS ALAMOSNMO-1E",1257,"SANTA FE/LOS ALAMOSNMO-1E",1563]
[{"$nulls":16},"SANTA FE/LOS ALAMOSNMO-2E",1356,"SANTA FE/LOS ALAMOSNMO-2E",1656]
[{"$nulls":16},"SANTA FE/LOS ALAMOSNMO-3E",1479,"SANTA FE/LOS ALAMOSNMO-3E",1818]
[{"$nulls":16},"SANTA FE/LOS ALAMOSNMO-1",984,"SANTA FE/LOS ALAMOSNMO-1",1281]
[{"$nulls":16},"SANTA FE/LOS ALAMOSNMO-2",1209,"SANTA FE/LOS ALAMOSNMO-2",1476]
[{"$nulls":16},"SANTA FE/LOS ALAMOSNMO-3",1398,"SANTA FE/LOS ALAMOSNMO-3",1665]
[{"$nulls":16},"SANTA FE/LOS ALAMOSNMO-4",1554,"SANTA FE/LOS ALAMOSNMO-4",2001]
[{"$nulls":16},"SANTA FE/LOS ALAMOSNMO-5",1680,"SANTA FE/LOS ALAMOSNMO-5",2241]
[{"$nulls":16},"SANTA FE/LOS ALAMOSNMO-6",1698,"SANTA FE/LOS ALAMOSNMO-6",2262]
[{"$nulls":16},"SANTA FE/LOS ALAMOSNMO-7",1713,"SANTA FE/LOS ALAMOSNMO-7",2286]
[{"$nulls":16},"LAKE TAHOENVE-1",834,"LAKE TAHOENVE-1",1098]
[{"$nulls":16},"LAKE TAHOENVE-2",834,"LAKE TAHOENVE-2",1098]
[{"$nulls":16},"LAKE TAHOENVE-3",834,"LAKE TAHOENVE-3",1098]
[{"$nulls":16},"LAKE TAHOENVE-4",834,"LAKE TAHOENVE-4",1098]
[{"$nulls":16},"LAKE TAHOENVE-5",972,"LAKE TAHOENVE-5",1152]
[{"$nulls":16},"LAKE TAHOENVE-6",1275,"LAKE TAHOENVE-6",1701]
[{"$nulls":16},"LAKE TAHOENVE-7",1284,"LAKE TAHOENVE-7",1713]
[{"$nulls":16},"LAKE TAHOENVE-8",1296,"LAKE TAHOENVE-8",1728]
[{"$nulls":16},"LAKE TAHOENVE-9",1431,"LAKE TAHOENVE-9",1821]
[{"$nulls":16},"LAKE TAHOENVW-1",1275,"LAKE TAHOENVW-1",1701]
[{"$nulls":16},"LAKE TAHOENVW-2",1290,"LAKE TAHOENVW-2",1719]
[{"$nulls":16},"LAKE TAHOENVW-3",1449,"LAKE TAHOENVW-3",1737]
[{"$nulls":16},"LAKE TAHOENVW-4",1704,"LAKE TAHOENVW-4",1851]
[{"$nulls":16},"LAKE TAHOENVW-5",1716,"LAKE TAHOENVW-5",1989]
[{"$nulls":16},"LAKE TAHOENVO-1E",1287,"LAKE TAHOENVO-1E",1716]
[{"$nulls":16},"LAKE TAHOENVO-2E",1395,"LAKE TAHOENVO-2E",1734]
[{"$nulls":16},"LAKE TAHOENVO-3E",1701,"LAKE TAHOENVO-3E",1872]
[{"$nulls":16},"LAKE TAHOENVO-1",1041,"LAKE TAHOENVO-1",1212]
[{"$nulls":16},"LAKE TAHOENVO-2",1269,"LAKE TAHOENVO-2",1689]
[{"$nulls":16},"LAKE TAHOENVO-3",1503,"LAKE TAHOENVO-3",1734]
[{"$nulls":16},"LAKE TAHOENVO-4",1716,"LAKE TAHOENVO-4",2040]
[{"$nulls":16},"LAKE TAHOENVO-5",1722,"LAKE TAHOENVO-5",2262]
[{"$nulls":16},"LAKE TAHOENVO-6",1737,"LAKE TAHOENVO-6",2283]
[{"$nulls":16},"LAKE TAHOENVO-7",1770,"LAKE TAHOENVO-7",2307]
[{"$nulls":16},"FALLON NASNVE-1",687,"FALLON NASNVE-1",870]
[{"$nulls":16},"FALLON NASNVE-2",687,"FALLON NASNVE-2",870]
[{"$nulls":16},"FALLON NASNVE-3",687,"FALLON NASNVE-3",870]
[{"$nulls":16},"FALLON NASNVE-4",687,"FALLON NASNVE-4",870]
[{"$nulls":16},"FALLON NASNVE-5",777,"FALLON NASNVE-5",918]
[{"$nulls":16},"FALLON NASNVE-6",831,"FALLON NASNVE-6",1068]
[{"$nulls":16},"FALLON NASNVE-7",873,"FALLON NASNVE-7",1155]
[{"$nulls":16},"FALLON NASNVE-8",948,"FALLON NASNVE-8",1251]
[{"$nulls":16},"FALLON NASNVE-9",1011,"FALLON NASNVE-9",1350]
[{"$nulls":16},"FALLON NASNVW-1",852,"FALLON NASNVW-1",1071]
[{"$nulls":16},"FALLON NASNVW-2",945,"FALLON NASNVW-2",1194]
[{"$nulls":16},"FALLON NASNVW-3",999,"FALLON NASNVW-3",1311]
[{"$nulls":16},"FALLON NASNVW-4",1092,"FALLON NASNVW-4",1362]
[{"$nulls":16},"FALLON NASNVW-5",1179,"FALLON NASNVW-5",1425]
[{"$nulls":16},"FALLON NASNVO-1E",918,"FALLON NASNVO-1E",1176]
[{"$nulls":16},"FALLON NASNVO-2E",984,"FALLON NASNVO-2E",1293]
[{"$nulls":16},"FALLON NASNVO-3E",1068,"FALLON NASNVO-3E",1374]
[{"$nulls":16},"FALLON NASNVO-1",822,"FALLON NASNVO-1",933]
[{"$nulls":16},"FALLON NASNVO-2",900,"FALLON NASNVO-2",1065]
[{"$nulls":16},"FALLON NASNVO-3",1014,"FALLON NASNVO-3",1305]
[{"$nulls":16},"FALLON NASNVO-4",1167,"FALLON NASNVO-4",1449]
[{"$nulls":16},"FALLON NASNVO-5",1221,"FALLON NASNVO-5",1548]
[{"$nulls":16},"FALLON NASNVO-6",1311,"FALLON NASNVO-6",1563]
[{"$nulls":16},"FALLON NASNVO-7",1338,"FALLON NASNVO-7",1581]
[{"$nulls":16},"NELLIS AFB/LAS VEGASNVE-1",993,"NELLIS AFB/LAS VEGASNVE-1",1197]
[{"$nulls":16},"NELLIS AFB/LAS VEGASNVE-2",993,"NELLIS AFB/LAS VEGASNVE-2",1197]
[{"$nulls":16},"NELLIS AFB/LAS VEGASNVE-3",993,"NELLIS AFB/LAS VEGASNVE-3",1197]
[{"$nulls":16},"NELLIS AFB/LAS VEGASNVE-4",993,"NELLIS AFB/LAS VEGASNVE-4",1197]
[{"$nulls":16},"NELLIS AFB/LAS VEGASNVE-5",1098,"NELLIS AFB/LAS VEGASNVE-5",1242]
[{"$nulls":16},"NELLIS AFB/LAS VEGASNVE-6",1155,"NELLIS AFB/LAS VEGASNVE-6",1398]
[{"$nulls":16},"NELLIS AFB/LAS VEGASNVE-7",1200,"NELLIS AFB/LAS VEGASNVE-7",1509]
[{"$nulls":16},"NELLIS AFB/LAS VEGASNVE-8",1275,"NELLIS AFB/LAS VEGASNVE-8",1629]
[{"$nulls":16},"NELLIS AFB/LAS VEGASNVE-9",1323,"NELLIS AFB/LAS VEGASNVE-9",1758]
[{"$nulls":16},"NELLIS AFB/LAS VEGASNVW-1",1179,"NELLIS AFB/LAS VEGASNVW-1",1401]
[{"$nulls":16},"NELLIS AFB/LAS VEGASNVW-2",1272,"NELLIS AFB/LAS VEGASNVW-2",1557]
[{"$nulls":16},"NELLIS AFB/LAS VEGASNVW-3",1326,"NELLIS AFB/LAS VEGASNVW-3",1704]
[{"$nulls":16},"NELLIS AFB/LAS VEGASNVW-4",1425,"NELLIS AFB/LAS VEGASNVW-4",1779]
[{"$nulls":16},"NELLIS AFB/LAS VEGASNVW-5",1536,"NELLIS AFB/LAS VEGASNVW-5",1866]
[{"$nulls":16},"NELLIS AFB/LAS VEGASNVO-1E",1242,"NELLIS AFB/LAS VEGASNVO-1E",1533]
[{"$nulls":16},"NELLIS AFB/LAS VEGASNVO-2E",1311,"NELLIS AFB/LAS VEGASNVO-2E",1683]
[{"$nulls":16},"NELLIS AFB/LAS VEGASNVO-3E",1398,"NELLIS AFB/LAS VEGASNVO-3E",1791]
[{"$nulls":16},"NELLIS AFB/LAS VEGASNVO-1",1149,"NELLIS AFB/LAS VEGASNVO-1",1260]
[{"$nulls":16},"NELLIS AFB/LAS VEGASNVO-2",1227,"NELLIS AFB/LAS VEGASNVO-2",1395]
[{"$nulls":16},"NELLIS AFB/LAS VEGASNVO-3",1341,"NELLIS AFB/LAS VEGASNVO-3",1698]
[{"$nulls":16},"NELLIS AFB/LAS VEGASNVO-4",1521,"NELLIS AFB/LAS VEGASNVO-4",1902]
[{"$nulls":16},"NELLIS AFB/LAS VEGASNVO-5",1590,"NELLIS AFB/LAS VEGASNVO-5",2043]
[{"$nulls":16},"NELLIS AFB/LAS VEGASNVO-6",1704,"NELLIS AFB/LAS VEGASNVO-6",2064]
[{"$nulls":16},"NELLIS AFB/LAS VEGASNVO-7",1737,"NELLIS AFB/LAS VEGASNVO-7",2085]
[{"$nulls":16},"RENO/CARSON CITYNVE-1",810,"RENO/CARSON CITYNVE-1",1080]
[{"$nulls":16},"RENO/CARSON CITYNVE-2",810,"RENO/CARSON CITYNVE-2",1080]
[{"$nulls":16},"RENO/CARSON CITYNVE-3",810,"RENO/CARSON CITYNVE-3",1080]
[{"$nulls":16},"RENO/CARSON CITYNVE-4",810,"RENO/CARSON CITYNVE-4",1080]
[{"$nulls":16},"RENO/CARSON CITYNVE-5",924,"RENO/CARSON CITYNVE-5",1170]
[{"$nulls":16},"RENO/CARSON CITYNVE-6",1032,"RENO/CARSON CITYNVE-6",1377]
[{"$nulls":16},"RENO/CARSON CITYNVE-7",1083,"RENO/CARSON CITYNVE-7",1443]
[{"$nulls":16},"RENO/CARSON CITYNVE-8",1209,"RENO/CARSON CITYNVE-8",1515]
[{"$nulls":16},"RENO/CARSON CITYNVE-9",1275,"RENO/CARSON CITYNVE-9",1611]
[{"$nulls":16},"RENO/CARSON CITYNVW-1",1044,"RENO/CARSON CITYNVW-1",1377]
[{"$nulls":16},"RENO/CARSON CITYNVW-2",1209,"RENO/CARSON CITYNVW-2",1473]
[{"$nulls":16},"RENO/CARSON CITYNVW-3",1281,"RENO/CARSON CITYNVW-3",1560]
[{"$nulls":16},"RENO/CARSON CITYNVW-4",1392,"RENO/CARSON CITYNVW-4",1629]
[{"$nulls":16},"RENO/CARSON CITYNVW-5",1458,"RENO/CARSON CITYNVW-5",1710]
[{"$nulls":16},"RENO/CARSON CITYNVO-1E",1170,"RENO/CARSON CITYNVO-1E",1458]
[{"$nulls":16},"RENO/CARSON CITYNVO-2E",1260,"RENO/CARSON CITYNVO-2E",1548]
[{"$nulls":16},"RENO/CARSON CITYNVO-3E",1377,"RENO/CARSON CITYNVO-3E",1641]
[{"$nulls":16},"RENO/CARSON CITYNVO-1",990,"RENO/CARSON CITYNVO-1",1191]
[{"$nulls":16},"RENO/CARSON CITYNVO-2",1137,"RENO/CARSON CITYNVO-2",1371]
[{"$nulls":16},"RENO/CARSON CITYNVO-3",1302,"RENO/CARSON CITYNVO-3",1557]
[{"$nulls":16},"RENO/CARSON CITYNVO-4",1449,"RENO/CARSON CITYNVO-4",1740]
[{"$nulls":16},"RENO/CARSON CITYNVO-5",1491,"RENO/CARSON CITYNVO-5",1872]
[{"$nulls":16},"RENO/CARSON CITYNVO-6",1560,"RENO/CARSON CITYNVO-6",1890]
[{"$nulls":16},"RENO/CARSON CITYNVO-7",1590,"RENO/CARSON CITYNVO-7",1908]
[{"$nulls":16},"BALLSTON SPA/ALBANYNYE-1",1104,"BALLSTON SPA/ALBANYNYE-1",1470]
[{"$nulls":16},"BALLSTON SPA/ALBANYNYE-2",1104,"BALLSTON SPA/ALBANYNYE-2",1470]
[{"$nulls":16},"BALLSTON SPA/ALBANYNYE-3",1104,"BALLSTON SPA/ALBANYNYE-3",1470]
[{"$nulls":16},"BALLSTON SPA/ALBANYNYE-4",1104,"BALLSTON SPA/ALBANYNYE-4",1470]
[{"$nulls":16},"BALLSTON SPA/ALBANYNYE-5",1236,"BALLSTON SPA/ALBANYNYE-5",1650]
[{"$nulls":16},"BALLSTON SPA/ALBANYNYE-6",1317,"BALLSTON SPA/ALBANYNYE-6",1728]
[{"$nulls":16},"BALLSTON SPA/ALBANYNYE-7",1482,"BALLSTON SPA/ALBANYNYE-7",1821]
[{"$nulls":16},"BALLSTON SPA/ALBANYNYE-8",1665,"BALLSTON SPA/ALBANYNYE-8",1920]
[{"$nulls":16},"BALLSTON SPA/ALBANYNYE-9",1689,"BALLSTON SPA/ALBANYNYE-9",2046]
[{"$nulls":16},"BALLSTON SPA/ALBANYNYW-1",1401,"BALLSTON SPA/ALBANYNYW-1",1731]
[{"$nulls":16},"BALLSTON SPA/ALBANYNYW-2",1665,"BALLSTON SPA/ALBANYNYW-2",1860]
[{"$nulls":16},"BALLSTON SPA/ALBANYNYW-3",1692,"BALLSTON SPA/ALBANYNYW-3",1986]
[{"$nulls":16},"BALLSTON SPA/ALBANYNYW-4",1749,"BALLSTON SPA/ALBANYNYW-4",2067]
[{"$nulls":16},"BALLSTON SPA/ALBANYNYW-5",1842,"BALLSTON SPA/ALBANYNYW-5",2166]
[{"$nulls":16},"BALLSTON SPA/ALBANYNYO-1E",1650,"BALLSTON SPA/ALBANYNYO-1E",1842]
[{"$nulls":16},"BALLSTON SPA/ALBANYNYO-2E",1683,"BALLSTON SPA/ALBANYNYO-2E",1968]
[{"$nulls":16},"BALLSTON SPA/ALBANYNYO-3E",1728,"BALLSTON SPA/ALBANYNYO-3E",2085]
[{"$nulls":16},"BALLSTON SPA/ALBANYNYO-1",1290,"BALLSTON SPA/ALBANYNYO-1",1659]
[{"$nulls":16},"BALLSTON SPA/ALBANYNYO-2",1587,"BALLSTON SPA/ALBANYNYO-2",1725]
[{"$nulls":16},"BALLSTON SPA/ALBANYNYO-3",1698,"BALLSTON SPA/ALBANYNYO-3",1980]
[{"$nulls":16},"BALLSTON SPA/ALBANYNYO-4",1830,"BALLSTON SPA/ALBANYNYO-4",2205]
[{"$nulls":16},"BALLSTON SPA/ALBANYNYO-5",1890,"BALLSTON SPA/ALBANYNYO-5",2364]
[{"$nulls":16},"BALLSTON SPA/ALBANYNYO-6",1986,"BALLSTON SPA/ALBANYNYO-6",2388]
[{"$nulls":16},"BALLSTON SPA/ALBANYNYO-7",2025,"BALLSTON SPA/ALBANYNYO-7",2412]
[{"$nulls":16},"BUFFALONYE-1",822,"BUFFALONYE-1",1086]
[{"$nulls":16},"BUFFALONYE-2",822,"BUFFALONYE-2",1086]
[{"$nulls":16},"BUFFALONYE-3",822,"BUFFALONYE-3",1086]
[{"$nulls":16},"BUFFALONYE-4",822,"BUFFALONYE-4",1086]
[{"$nulls":16},"BUFFALONYE-5",945,"BUFFALONYE-5",1260]
[{"$nulls":16},"BUFFALONYE-6",999,"BUFFALONYE-6",1329]
[{"$nulls":16},"BUFFALONYE-7",1095,"BUFFALONYE-7",1422]
[{"$nulls":16},"BUFFALONYE-8",1275,"BUFFALONYE-8",1521]
[{"$nulls":16},"BUFFALONYE-9",1296,"BUFFALONYE-9",1632]
[{"$nulls":16},"BUFFALONYW-1",1017,"BUFFALONYW-1",1332]
[{"$nulls":16},"BUFFALONYW-2",1272,"BUFFALONYW-2",1461]
[{"$nulls":16},"BUFFALONYW-3",1299,"BUFFALONYW-3",1584]
[{"$nulls":16},"BUFFALONYW-4",1353,"BUFFALONYW-4",1653]
[{"$nulls":16},"BUFFALONYW-5",1443,"BUFFALONYW-5",1731]
[{"$nulls":16},"BUFFALONYO-1E",1260,"BUFFALONYO-1E",1443]
[{"$nulls":16},"BUFFALONYO-2E",1290,"BUFFALONYO-2E",1566]
[{"$nulls":16},"BUFFALONYO-3E",1329,"BUFFALONYO-3E",1665]
[{"$nulls":16},"BUFFALONYO-1",951,"BUFFALONYO-1",1269]
[{"$nulls":16},"BUFFALONYO-2",1200,"BUFFALONYO-2",1329]
[{"$nulls":16},"BUFFALONYO-3",1305,"BUFFALONYO-3",1578]
[{"$nulls":16},"BUFFALONYO-4",1431,"BUFFALONYO-4",1761]
[{"$nulls":16},"BUFFALONYO-5",1491,"BUFFALONYO-5",1890]
[{"$nulls":16},"BUFFALONYO-6",1584,"BUFFALONYO-6",1911]
[{"$nulls":16},"BUFFALONYO-7",1617,"BUFFALONYO-7",1929]
[{"$nulls":16},"WEST POINTNYE-1",1410,"WEST POINTNYE-1",1881]
[{"$nulls":16},"WEST POINTNYE-2",1410,"WEST POINTNYE-2",1881]
[{"$nulls":16},"WEST POINTNYE-3",1410,"WEST POINTNYE-3",1881]
[{"$nulls":16},"WEST POINTNYE-4",1410,"WEST POINTNYE-4",1881]
[{"$nulls":16},"WEST POINTNYE-5",1596,"WEST POINTNYE-5",2127]
[{"$nulls":16},"WEST POINTNYE-6",1764,"WEST POINTNYE-6",2352]
[{"$nulls":16},"WEST POINTNYE-7",1893,"WEST POINTNYE-7",2421]
[{"$nulls":16},"WEST POINTNYE-8",2172,"WEST POINTNYE-8",2496]
[{"$nulls":16},"WEST POINTNYE-9",2241,"WEST POINTNYE-9",2640]
[{"$nulls":16},"WEST POINTNYW-1",1785,"WEST POINTNYW-1",2355]
[{"$nulls":16},"WEST POINTNYW-2",2169,"WEST POINTNYW-2",2451]
[{"$nulls":16},"WEST POINTNYW-3",2250,"WEST POINTNYW-3",2544]
[{"$nulls":16},"WEST POINTNYW-4",2370,"WEST POINTNYW-4",2676]
[{"$nulls":16},"WEST POINTNYW-5",2439,"WEST POINTNYW-5",2832]
[{"$nulls":16},"WEST POINTNYO-1E",2127,"WEST POINTNYO-1E",2436]
[{"$nulls":16},"WEST POINTNYO-2E",2226,"WEST POINTNYO-2E",2532]
[{"$nulls":16},"WEST POINTNYO-3E",2352,"WEST POINTNYO-3E",2700]
[{"$nulls":16},"WEST POINTNYO-1",1632,"WEST POINTNYO-1",2151]
[{"$nulls":16},"WEST POINTNYO-2",2043,"WEST POINTNYO-2",2349]
[{"$nulls":16},"WEST POINTNYO-3",2271,"WEST POINTNYO-3",2541]
[{"$nulls":16},"WEST POINTNYO-4",2430,"WEST POINTNYO-4",2889]
[{"$nulls":16},"WEST POINTNYO-5",2472,"WEST POINTNYO-5",3141]
[{"$nulls":16},"WEST POINTNYO-6",2544,"WEST POINTNYO-6",3171]
[{"$nulls":16},"WEST POINTNYO-7",2595,"WEST POINTNYO-7",3204]
[{"$nulls":16},"LONG ISLANDNYE-1",1704,"LONG ISLANDNYE-1",2274]
[{"$nulls":16},"LONG ISLANDNYE-2",1704,"LONG ISLANDNYE-2",2274]
[{"$nulls":16},"LONG ISLANDNYE-3",1704,"LONG ISLANDNYE-3",2274]
[{"$nulls":16},"LONG ISLANDNYE-4",1704,"LONG ISLANDNYE-4",2274]
[{"$nulls":16},"LONG ISLANDNYE-5",1941,"LONG ISLANDNYE-5",2466]
[{"$nulls":16},"LONG ISLANDNYE-6",2106,"LONG ISLANDNYE-6",2664]
[{"$nulls":16},"LONG ISLANDNYE-7",2286,"LONG ISLANDNYE-7",2847]
[{"$nulls":16},"LONG ISLANDNYE-8",2505,"LONG ISLANDNYE-8",3045]
[{"$nulls":16},"LONG ISLANDNYE-9",2568,"LONG ISLANDNYE-9",3219]
[{"$nulls":16},"LONG ISLANDNYW-1",2199,"LONG ISLANDNYW-1",2667]
[{"$nulls":16},"LONG ISLANDNYW-2",2505,"LONG ISLANDNYW-2",2928]
[{"$nulls":16},"LONG ISLANDNYW-3",2574,"LONG ISLANDNYW-3",3174]
[{"$nulls":16},"LONG ISLANDNYW-4",2709,"LONG ISLANDNYW-4",3237]
[{"$nulls":16},"LONG ISLANDNYW-5",2892,"LONG ISLANDNYW-5",3309]
[{"$nulls":16},"LONG ISLANDNYO-1E",2466,"LONG ISLANDNYO-1E",2886]
[{"$nulls":16},"LONG ISLANDNYO-2E",2553,"LONG ISLANDNYO-2E",3138]
[{"$nulls":16},"LONG ISLANDNYO-3E",2664,"LONG ISLANDNYO-3E",3246]
[{"$nulls":16},"LONG ISLANDNYO-1",2079,"LONG ISLANDNYO-1",2490]
[{"$nulls":16},"LONG ISLANDNYO-2",2400,"LONG ISLANDNYO-2",2658]
[{"$nulls":16},"LONG ISLANDNYO-3",2592,"LONG ISLANDNYO-3",3162]
[{"$nulls":16},"LONG ISLANDNYO-4",2868,"LONG ISLANDNYO-4",3339]
[{"$nulls":16},"LONG ISLANDNYO-5",2985,"LONG ISLANDNYO-5",3459]
[{"$nulls":16},"LONG ISLANDNYO-6",3174,"LONG ISLANDNYO-6",3492]
[{"$nulls":16},"LONG ISLANDNYO-7",3237,"LONG ISLANDNYO-7",3528]
[{"$nulls":16},"NEW YORK CITYNYE-1",2241,"NEW YORK CITYNYE-1",2685]
[{"$nulls":16},"NEW YORK CITYNYE-2",2241,"NEW YORK CITYNYE-2",2685]
[{"$nulls":16},"NEW YORK CITYNYE-3",2241,"NEW YORK CITYNYE-3",2685]
[{"$nulls":16},"NEW YORK CITYNYE-4",2241,"NEW YORK CITYNYE-4",2685]
[{"$nulls":16},"NEW YORK CITYNYE-5",2496,"NEW YORK CITYNYE-5",2751]
[{"$nulls":16},"NEW YORK CITYNYE-6",2628,"NEW YORK CITYNYE-6",3036]
[{"$nulls":16},"NEW YORK CITYNYE-7",2691,"NEW YORK CITYNYE-7",3066]
[{"$nulls":16},"NEW YORK CITYNYE-8",2808,"NEW YORK CITYNYE-8",3099]
[{"$nulls":16},"NEW YORK CITYNYE-9",2898,"NEW YORK CITYNYE-9",3225]
[{"$nulls":16},"NEW YORK CITYNYW-1",2661,"NEW YORK CITYNYW-1",3039]
[{"$nulls":16},"NEW YORK CITYNYW-2",2805,"NEW YORK CITYNYW-2",3078]
[{"$nulls":16},"NEW YORK CITYNYW-3",2907,"NEW YORK CITYNYW-3",3117]
[{"$nulls":16},"NEW YORK CITYNYW-4",3045,"NEW YORK CITYNYW-4",3267]
[{"$nulls":16},"NEW YORK CITYNYW-5",3072,"NEW YORK CITYNYW-5",3441]
[{"$nulls":16},"NEW YORK CITYNYO-1E",2751,"NEW YORK CITYNYO-1E",3072]
[{"$nulls":16},"NEW YORK CITYNYO-2E",2877,"NEW YORK CITYNYO-2E",3111]
[{"$nulls":16},"NEW YORK CITYNYO-3E",3036,"NEW YORK CITYNYO-3E",3294]
[{"$nulls":16},"NEW YORK CITYNYO-1",2619,"NEW YORK CITYNYO-1",2784]
[{"$nulls":16},"NEW YORK CITYNYO-2",2730,"NEW YORK CITYNYO-2",3030]
[{"$nulls":16},"NEW YORK CITYNYO-3",2934,"NEW YORK CITYNYO-3",3117]
[{"$nulls":16},"NEW YORK CITYNYO-4",3069,"NEW YORK CITYNYO-4",3510]
[{"$nulls":16},"NEW YORK CITYNYO-5",3087,"NEW YORK CITYNYO-5",3792]
[{"$nulls":16},"NEW YORK CITYNYO-6",3117,"NEW YORK CITYNYO-6",3831]
[{"$nulls":16},"NEW YORK CITYNYO-7",3180,"NEW YORK CITYNYO-7",3870]
[{"$nulls":16},"ROCHESTERNYE-1",903,"ROCHESTERNYE-1",1203]
[{"$nulls":16},"ROCHESTERNYE-2",903,"ROCHESTERNYE-2",1203]
[{"$nulls":16},"ROCHESTERNYE-3",903,"ROCHESTERNYE-3",1203]
[{"$nulls":16},"ROCHESTERNYE-4",903,"ROCHESTERNYE-4",1203]
[{"$nulls":16},"ROCHESTERNYE-5",1008,"ROCHESTERNYE-5",1344]
[{"$nulls":16},"ROCHESTERNYE-6",1083,"ROCHESTERNYE-6",1410]
[{"$nulls":16},"ROCHESTERNYE-7",1212,"ROCHESTERNYE-7",1437]
[{"$nulls":16},"ROCHESTERNYE-8",1356,"ROCHESTERNYE-8",1470]
[{"$nulls":16},"ROCHESTERNYE-9",1377,"ROCHESTERNYE-9",1554]
[{"$nulls":16},"ROCHESTERNYW-1",1152,"ROCHESTERNYW-1",1410]
[{"$nulls":16},"ROCHESTERNYW-2",1356,"ROCHESTERNYW-2",1452]
[{"$nulls":16},"ROCHESTERNYW-3",1380,"ROCHESTERNYW-3",1488]
[{"$nulls":16},"ROCHESTERNYW-4",1416,"ROCHESTERNYW-4",1578]
[{"$nulls":16},"ROCHESTERNYW-5",1446,"ROCHESTERNYW-5",1683]
[{"$nulls":16},"ROCHESTERNYO-1E",1344,"ROCHESTERNYO-1E",1443]
[{"$nulls":16},"ROCHESTERNYO-2E",1371,"ROCHESTERNYO-2E",1482]
[{"$nulls":16},"ROCHESTERNYO-3E",1410,"ROCHESTERNYO-3E",1593]
[{"$nulls":16},"ROCHESTERNYO-1",1065,"ROCHESTERNYO-1",1350]
[{"$nulls":16},"ROCHESTERNYO-2",1296,"ROCHESTERNYO-2",1407]
[{"$nulls":16},"ROCHESTERNYO-3",1386,"ROCHESTERNYO-3",1488]
[{"$nulls":16},"ROCHESTERNYO-4",1440,"ROCHESTERNYO-4",1722]
[{"$nulls":16},"ROCHESTERNYO-5",1458,"ROCHESTERNYO-5",1893]
[{"$nulls":16},"ROCHESTERNYO-6",1488,"ROCHESTERNYO-6",1911]
[{"$nulls":16},"ROCHESTERNYO-7",1518,"ROCHESTERNYO-7",1932]
[{"$nulls":16},"ROME/GRIFFISS AFBNYE-1",747,"ROME/GRIFFISS AFBNYE-1",999]
[{"$nulls":16},"ROME/GRIFFISS AFBNYE-2",747,"ROME/GRIFFISS AFBNYE-2",999]
[{"$nulls":16},"ROME/GRIFFISS AFBNYE-3",747,"ROME/GRIFFISS AFBNYE-3",999]
[{"$nulls":16},"ROME/GRIFFISS AFBNYE-4",747,"ROME/GRIFFISS AFBNYE-4",999]
[{"$nulls":16},"ROME/GRIFFISS AFBNYE-5",819,"ROME/GRIFFISS AFBNYE-5",1086]
[{"$nulls":16},"ROME/GRIFFISS AFBNYE-6",921,"ROME/GRIFFISS AFBNYE-6",1194]
[{"$nulls":16},"ROME/GRIFFISS AFBNYE-7",1002,"ROME/GRIFFISS AFBNYE-7",1260]
[{"$nulls":16},"ROME/GRIFFISS AFBNYE-8",1107,"ROME/GRIFFISS AFBNYE-8",1335]
[{"$nulls":16},"ROME/GRIFFISS AFBNYE-9",1140,"ROME/GRIFFISS AFBNYE-9",1437]
[{"$nulls":16},"ROME/GRIFFISS AFBNYW-1",963,"ROME/GRIFFISS AFBNYW-1",1194]
[{"$nulls":16},"ROME/GRIFFISS AFBNYW-2",1107,"ROME/GRIFFISS AFBNYW-2",1290]
[{"$nulls":16},"ROME/GRIFFISS AFBNYW-3",1143,"ROME/GRIFFISS AFBNYW-3",1383]
[{"$nulls":16},"ROME/GRIFFISS AFBNYW-4",1209,"ROME/GRIFFISS AFBNYW-4",1455]
[{"$nulls":16},"ROME/GRIFFISS AFBNYW-5",1278,"ROME/GRIFFISS AFBNYW-5",1545]
[{"$nulls":16},"ROME/GRIFFISS AFBNYO-1E",1086,"ROME/GRIFFISS AFBNYO-1E",1275]
[{"$nulls":16},"ROME/GRIFFISS AFBNYO-2E",1134,"ROME/GRIFFISS AFBNYO-2E",1368]
[{"$nulls":16},"ROME/GRIFFISS AFBNYO-3E",1194,"ROME/GRIFFISS AFBNYO-3E",1470]
[{"$nulls":16},"ROME/GRIFFISS AFBNYO-1",909,"ROME/GRIFFISS AFBNYO-1",1098]
[{"$nulls":16},"ROME/GRIFFISS AFBNYO-2",1056,"ROME/GRIFFISS AFBNYO-2",1191]
[{"$nulls":16},"ROME/GRIFFISS AFBNYO-3",1155,"ROME/GRIFFISS AFBNYO-3",1377]
[{"$nulls":16},"ROME/GRIFFISS AFBNYO-4",1269,"ROME/GRIFFISS AFBNYO-4",1578]
[{"$nulls":16},"ROME/GRIFFISS AFBNYO-5",1311,"ROME/GRIFFISS AFBNYO-5",1719]
[{"$nulls":16},"ROME/GRIFFISS AFBNYO-6",1383,"ROME/GRIFFISS AFBNYO-6",1737]
[{"$nulls":16},"ROME/GRIFFISS AFBNYO-7",1410,"ROME/GRIFFISS AFBNYO-7",1752]
[{"$nulls":16},"SYRACUSENYE-1",747,"SYRACUSENYE-1",966]
[{"$nulls":16},"SYRACUSENYE-2",747,"SYRACUSENYE-2",966]
[{"$nulls":16},"SYRACUSENYE-3",747,"SYRACUSENYE-3",966]
[{"$nulls":16},"SYRACUSENYE-4",747,"SYRACUSENYE-4",966]
[{"$nulls":16},"SYRACUSENYE-5",834,"SYRACUSENYE-5",1053]
[{"$nulls":16},"SYRACUSENYE-6",975,"SYRACUSENYE-6",1299]
[{"$nulls":16},"SYRACUSENYE-7",1029,"SYRACUSENYE-7",1374]
[{"$nulls":16},"SYRACUSENYE-8",1104,"SYRACUSENYE-8",1455]
[{"$nulls":16},"SYRACUSENYE-9",1179,"SYRACUSENYE-9",1536]
[{"$nulls":16},"SYRACUSENYW-1",975,"SYRACUSENYW-1",1302]
[{"$nulls":16},"SYRACUSENYW-2",1101,"SYRACUSENYW-2",1407]
[{"$nulls":16},"SYRACUSENYW-3",1185,"SYRACUSENYW-3",1506]
[{"$nulls":16},"SYRACUSENYW-4",1317,"SYRACUSENYW-4",1545]
[{"$nulls":16},"SYRACUSENYW-5",1392,"SYRACUSENYW-5",1593]
[{"$nulls":16},"SYRACUSENYO-1E",1053,"SYRACUSENYO-1E",1389]
[{"$nulls":16},"SYRACUSENYO-2E",1161,"SYRACUSENYO-2E",1491]
[{"$nulls":16},"SYRACUSENYO-3E",1299,"SYRACUSENYO-3E",1554]
[{"$nulls":16},"SYRACUSENYO-1",876,"SYRACUSENYO-1",1080]
[{"$nulls":16},"SYRACUSENYO-2",1023,"SYRACUSENYO-2",1293]
[{"$nulls":16},"SYRACUSENYO-3",1212,"SYRACUSENYO-3",1503]
[{"$nulls":16},"SYRACUSENYO-4",1383,"SYRACUSENYO-4",1611]
[{"$nulls":16},"SYRACUSENYO-5",1428,"SYRACUSENYO-5",1689]
[{"$nulls":16},"SYRACUSENYO-6",1506,"SYRACUSENYO-6",1704]
[{"$nulls":16},"SYRACUSENYO-7",1536,"SYRACUSENYO-7",1722]
[{"$nulls":16},"FT.DRUM/WATERTOWNNYE-1",960,"FT.DRUM/WATERTOWNNYE-1",1245]
[{"$nulls":16},"FT.DRUM/WATERTOWNNYE-2",960,"FT.DRUM/WATERTOWNNYE-2",1245]
[{"$nulls":16},"FT.DRUM/WATERTOWNNYE-3",960,"FT.DRUM/WATERTOWNNYE-3",1245]
[{"$nulls":16},"FT.DRUM/WATERTOWNNYE-4",960,"FT.DRUM/WATERTOWNNYE-4",1245]
[{"$nulls":16},"FT.DRUM/WATERTOWNNYE-5",1107,"FT.DRUM/WATERTOWNNYE-5",1314]
[{"$nulls":16},"FT.DRUM/WATERTOWNNYE-6",1188,"FT.DRUM/WATERTOWNNYE-6",1473]
[{"$nulls":16},"FT.DRUM/WATERTOWNNYE-7",1251,"FT.DRUM/WATERTOWNNYE-7",1545]
[{"$nulls":16},"FT.DRUM/WATERTOWNNYE-8",1344,"FT.DRUM/WATERTOWNNYE-8",1623]
[{"$nulls":16},"FT.DRUM/WATERTOWNNYE-9",1395,"FT.DRUM/WATERTOWNNYE-9",1716]
[{"$nulls":16},"FT.DRUM/WATERTOWNNYW-1",1221,"FT.DRUM/WATERTOWNNYW-1",1476]
[{"$nulls":16},"FT.DRUM/WATERTOWNNYW-2",1344,"FT.DRUM/WATERTOWNNYW-2",1578]
[{"$nulls":16},"FT.DRUM/WATERTOWNNYW-3",1401,"FT.DRUM/WATERTOWNNYW-3",1674]
[{"$nulls":16},"FT.DRUM/WATERTOWNNYW-4",1491,"FT.DRUM/WATERTOWNNYW-4",1734]
[{"$nulls":16},"FT.DRUM/WATERTOWNNYW-5",1563,"FT.DRUM/WATERTOWNNYW-5",1803]
[{"$nulls":16},"FT.DRUM/WATERTOWNNYO-1E",1314,"FT.DRUM/WATERTOWNNYO-1E",1563]
[{"$nulls":16},"FT.DRUM/WATERTOWNNYO-2E",1383,"FT.DRUM/WATERTOWNNYO-2E",1659]
[{"$nulls":16},"FT.DRUM/WATERTOWNNYO-3E",1473,"FT.DRUM/WATERTOWNNYO-3E",1743]
[{"$nulls":16},"FT.DRUM/WATERTOWNNYO-1",1179,"FT.DRUM/WATERTOWNNYO-1",1332]
[{"$nulls":16},"FT.DRUM/WATERTOWNNYO-2",1290,"FT.DRUM/WATERTOWNNYO-2",1470]
[{"$nulls":16},"FT.DRUM/WATERTOWNNYO-3",1416,"FT.DRUM/WATERTOWNNYO-3",1668]
[{"$nulls":16},"FT.DRUM/WATERTOWNNYO-4",1554,"FT.DRUM/WATERTOWNNYO-4",1830]
[{"$nulls":16},"FT.DRUM/WATERTOWNNYO-5",1599,"FT.DRUM/WATERTOWNNYO-5",1944]
[{"$nulls":16},"FT.DRUM/WATERTOWNNYO-6",1674,"FT.DRUM/WATERTOWNNYO-6",1962]
[{"$nulls":16},"FT.DRUM/WATERTOWNNYO-7",1707,"FT.DRUM/WATERTOWNNYO-7",1983]
[{"$nulls":16},"BINGHAMTON/ITHACANYE-1",837,"BINGHAMTON/ITHACANYE-1",1116]
[{"$nulls":16},"BINGHAMTON/ITHACANYE-2",837,"BINGHAMTON/ITHACANYE-2",1116]
[{"$nulls":16},"BINGHAMTON/ITHACANYE-3",837,"BINGHAMTON/ITHACANYE-3",1116]
[{"$nulls":16},"BINGHAMTON/ITHACANYE-4",837,"BINGHAMTON/ITHACANYE-4",1116]
[{"$nulls":16},"BINGHAMTON/ITHACANYE-5",936,"BINGHAMTON/ITHACANYE-5",1248]
[{"$nulls":16},"BINGHAMTON/ITHACANYE-6",1218,"BINGHAMTON/ITHACANYE-6",1623]
[{"$nulls":16},"BINGHAMTON/ITHACANYE-7",1266,"BINGHAMTON/ITHACANYE-7",1689]
[{"$nulls":16},"BINGHAMTON/ITHACANYE-8",1323,"BINGHAMTON/ITHACANYE-8",1764]
[{"$nulls":16},"BINGHAMTON/ITHACANYE-9",1440,"BINGHAMTON/ITHACANYE-9",1878]
[{"$nulls":16},"BINGHAMTON/ITHACANYW-1",1218,"BINGHAMTON/ITHACANYW-1",1623]
[{"$nulls":16},"BINGHAMTON/ITHACANYW-2",1320,"BINGHAMTON/ITHACANYW-2",1719]
[{"$nulls":16},"BINGHAMTON/ITHACANYW-3",1449,"BINGHAMTON/ITHACANYW-3",1809]
[{"$nulls":16},"BINGHAMTON/ITHACANYW-4",1638,"BINGHAMTON/ITHACANYW-4",1905]
[{"$nulls":16},"BINGHAMTON/ITHACANYW-5",1707,"BINGHAMTON/ITHACANYW-5",2019]
[{"$nulls":16},"BINGHAMTON/ITHACANYO-1E",1278,"BINGHAMTON/ITHACANYO-1E",1704]
[{"$nulls":16},"BINGHAMTON/ITHACANYO-2E",1413,"BINGHAMTON/ITHACANYO-2E",1797]
[{"$nulls":16},"BINGHAMTON/ITHACANYO-3E",1623,"BINGHAMTON/ITHACANYO-3E",1923]
[{"$nulls":16},"BINGHAMTON/ITHACANYO-1",984,"BINGHAMTON/ITHACANYO-1",1290]
[{"$nulls":16},"BINGHAMTON/ITHACANYO-2",1212,"BINGHAMTON/ITHACANYO-2",1614]
[{"$nulls":16},"BINGHAMTON/ITHACANYO-3",1488,"BINGHAMTON/ITHACANYO-3",1806]
[{"$nulls":16},"BINGHAMTON/ITHACANYO-4",1698,"BINGHAMTON/ITHACANYO-4",2061]
[{"$nulls":16},"BINGHAMTON/ITHACANYO-5",1740,"BINGHAMTON/ITHACANYO-5",2244]
[{"$nulls":16},"BINGHAMTON/ITHACANYO-6",1809,"BINGHAMTON/ITHACANYO-6",2265]
[{"$nulls":16},"BINGHAMTON/ITHACANYO-7",1845,"BINGHAMTON/ITHACANYO-7",2289]
[{"$nulls":16},"WESTCHESTER COUNTYNYE-1",1440,"WESTCHESTER COUNTYNYE-1",1917]
[{"$nulls":16},"WESTCHESTER COUNTYNYE-2",1440,"WESTCHESTER COUNTYNYE-2",1917]
[{"$nulls":16},"WESTCHESTER COUNTYNYE-3",1440,"WESTCHESTER COUNTYNYE-3",1917]
[{"$nulls":16},"WESTCHESTER COUNTYNYE-4",1440,"WESTCHESTER COUNTYNYE-4",1917]
[{"$nulls":16},"WESTCHESTER COUNTYNYE-5",1647,"WESTCHESTER COUNTYNYE-5",2022]
[{"$nulls":16},"WESTCHESTER COUNTYNYE-6",1968,"WESTCHESTER COUNTYNYE-6",2625]
[{"$nulls":16},"WESTCHESTER COUNTYNYE-7",2100,"WESTCHESTER COUNTYNYE-7",2799]
[{"$nulls":16},"WESTCHESTER COUNTYNYE-8",2238,"WESTCHESTER COUNTYNYE-8",2985]
[{"$nulls":16},"WESTCHESTER COUNTYNYE-9",2406,"WESTCHESTER COUNTYNYE-9",3207]
[{"$nulls":16},"WESTCHESTER COUNTYNYW-1",1971,"WESTCHESTER COUNTYNYW-1",2631]
[{"$nulls":16},"WESTCHESTER COUNTYNYW-2",2157,"WESTCHESTER COUNTYNYW-2",2874]
[{"$nulls":16},"WESTCHESTER COUNTYNYW-3",2349,"WESTCHESTER COUNTYNYW-3",3105]
[{"$nulls":16},"WESTCHESTER COUNTYNYW-4",2667,"WESTCHESTER COUNTYNYW-4",3246]
[{"$nulls":16},"WESTCHESTER COUNTYNYW-5",2841,"WESTCHESTER COUNTYNYW-5",3414]
[{"$nulls":16},"WESTCHESTER COUNTYNYO-1E",2127,"WESTCHESTER COUNTYNYO-1E",2838]
[{"$nulls":16},"WESTCHESTER COUNTYNYO-2E",2304,"WESTCHESTER COUNTYNYO-2E",3072]
[{"$nulls":16},"WESTCHESTER COUNTYNYO-3E",2625,"WESTCHESTER COUNTYNYO-3E",3273]
[{"$nulls":16},"WESTCHESTER COUNTYNYO-1",1812,"WESTCHESTER COUNTYNYO-1",2088]
[{"$nulls":16},"WESTCHESTER COUNTYNYO-2",1986,"WESTCHESTER COUNTYNYO-2",2613]
[{"$nulls":16},"WESTCHESTER COUNTYNYO-3",2409,"WESTCHESTER COUNTYNYO-3",3096]
[{"$nulls":16},"WESTCHESTER COUNTYNYO-4",2817,"WESTCHESTER COUNTYNYO-4",3477]
[{"$nulls":16},"WESTCHESTER COUNTYNYO-5",2928,"WESTCHESTER COUNTYNYO-5",3747]
[{"$nulls":16},"WESTCHESTER COUNTYNYO-6",3105,"WESTCHESTER COUNTYNYO-6",3783]
[{"$nulls":16},"WESTCHESTER COUNTYNYO-7",3168,"WESTCHESTER COUNTYNYO-7",3822]
[{"$nulls":16},"STATEN ISLANDNYE-1",1359,"STATEN ISLANDNYE-1",1812]
[{"$nulls":16},"STATEN ISLANDNYE-2",1359,"STATEN ISLANDNYE-2",1812]
[{"$nulls":16},"STATEN ISLANDNYE-3",1359,"STATEN ISLANDNYE-3",1812]
[{"$nulls":16},"STATEN ISLANDNYE-4",1359,"STATEN ISLANDNYE-4",1812]
[{"$nulls":16},"STATEN ISLANDNYE-5",1527,"STATEN ISLANDNYE-5",2034]
[{"$nulls":16},"STATEN ISLANDNYE-6",1857,"STATEN ISLANDNYE-6",2475]
[{"$nulls":16},"STATEN ISLANDNYE-7",1875,"STATEN ISLANDNYE-7",2502]
[{"$nulls":16},"STATEN ISLANDNYE-8",2124,"STATEN ISLANDNYE-8",2532]
[{"$nulls":16},"STATEN ISLANDNYE-9",2259,"STATEN ISLANDNYE-9",2616]
[{"$nulls":16},"STATEN ISLANDNYW-1",1857,"STATEN ISLANDNYW-1",2475]
[{"$nulls":16},"STATEN ISLANDNYW-2",2118,"STATEN ISLANDNYW-2",2514]
[{"$nulls":16},"STATEN ISLANDNYW-3",2271,"STATEN ISLANDNYW-3",2550]
[{"$nulls":16},"STATEN ISLANDNYW-4",2481,"STATEN ISLANDNYW-4",2640]
[{"$nulls":16},"STATEN ISLANDNYW-5",2508,"STATEN ISLANDNYW-5",2748]
[{"$nulls":16},"STATEN ISLANDNYO-1E",2034,"STATEN ISLANDNYO-1E",2508]
[{"$nulls":16},"STATEN ISLANDNYO-2E",2229,"STATEN ISLANDNYO-2E",2544]
[{"$nulls":16},"STATEN ISLANDNYO-3E",2475,"STATEN ISLANDNYO-3E",2658]
[{"$nulls":16},"STATEN ISLANDNYO-1",1590,"STATEN ISLANDNYO-1",2082]
[{"$nulls":16},"STATEN ISLANDNYO-2",1959,"STATEN ISLANDNYO-2",2466]
[{"$nulls":16},"STATEN ISLANDNYO-3",2316,"STATEN ISLANDNYO-3",2547]
[{"$nulls":16},"STATEN ISLANDNYO-4",2505,"STATEN ISLANDNYO-4",2790]
[{"$nulls":16},"STATEN ISLANDNYO-5",2523,"STATEN ISLANDNYO-5",2964]
[{"$nulls":16},"STATEN ISLANDNYO-6",2550,"STATEN ISLANDNYO-6",2994]
[{"$nulls":16},"STATEN ISLANDNYO-7",2601,"STATEN ISLANDNYO-7",3024]
[{"$nulls":16},"POTSDAMNYE-1",684,"POTSDAMNYE-1",873]
[{"$nulls":16},"POTSDAMNYE-2",684,"POTSDAMNYE-2",873]
[{"$nulls":16},"POTSDAMNYE-3",684,"POTSDAMNYE-3",873]
[{"$nulls":16},"POTSDAMNYE-4",684,"POTSDAMNYE-4",873]
[{"$nulls":16},"POTSDAMNYE-5",774,"POTSDAMNYE-5",924]
[{"$nulls":16},"POTSDAMNYE-6",894,"POTSDAMNYE-6",1191]
[{"$nulls":16},"POTSDAMNYE-7",912,"POTSDAMNYE-7",1215]
[{"$nulls":16},"POTSDAMNYE-8",978,"POTSDAMNYE-8",1242]
[{"$nulls":16},"POTSDAMNYE-9",1062,"POTSDAMNYE-9",1296]
[{"$nulls":16},"POTSDAMNYW-1",894,"POTSDAMNYW-1",1194]
[{"$nulls":16},"POTSDAMNYW-2",975,"POTSDAMNYW-2",1227]
[{"$nulls":16},"POTSDAMNYW-3",1068,"POTSDAMNYW-3",1257]
[{"$nulls":16},"POTSDAMNYW-4",1197,"POTSDAMNYW-4",1311]
[{"$nulls":16},"POTSDAMNYW-5",1221,"POTSDAMNYW-5",1377]
[{"$nulls":16},"POTSDAMNYO-1E",924,"POTSDAMNYO-1E",1221]
[{"$nulls":16},"POTSDAMNYO-2E",1041,"POTSDAMNYO-2E",1251]
[{"$nulls":16},"POTSDAMNYO-3E",1191,"POTSDAMNYO-3E",1323]
[{"$nulls":16},"POTSDAMNYO-1",819,"POTSDAMNYO-1",954]
[{"$nulls":16},"POTSDAMNYO-2",906,"POTSDAMNYO-2",1188]
[{"$nulls":16},"POTSDAMNYO-3",1095,"POTSDAMNYO-3",1257]
[{"$nulls":16},"POTSDAMNYO-4",1218,"POTSDAMNYO-4",1404]
[{"$nulls":16},"POTSDAMNYO-5",1233,"POTSDAMNYO-5",1509]
[{"$nulls":16},"POTSDAMNYO-6",1257,"POTSDAMNYO-6",1524]
[{"$nulls":16},"POTSDAMNYO-7",1281,"POTSDAMNYO-7",1539]
[{"$nulls":16},"KINGSTON/SAUGERTIESNYE-1",1032,"KINGSTON/SAUGERTIESNYE-1",1374]
[{"$nulls":16},"KINGSTON/SAUGERTIESNYE-2",1032,"KINGSTON/SAUGERTIESNYE-2",1374]
[{"$nulls":16},"KINGSTON/SAUGERTIESNYE-3",1032,"KINGSTON/SAUGERTIESNYE-3",1374]
[{"$nulls":16},"KINGSTON/SAUGERTIESNYE-4",1032,"KINGSTON/SAUGERTIESNYE-4",1374]
[{"$nulls":16},"KINGSTON/SAUGERTIESNYE-5",1182,"KINGSTON/SAUGERTIESNYE-5",1482]
[{"$nulls":16},"KINGSTON/SAUGERTIESNYE-6",1404,"KINGSTON/SAUGERTIESNYE-6",1872]
[{"$nulls":16},"KINGSTON/SAUGERTIESNYE-7",1428,"KINGSTON/SAUGERTIESNYE-7",1905]
[{"$nulls":16},"KINGSTON/SAUGERTIESNYE-8",1560,"KINGSTON/SAUGERTIESNYE-8",1941]
[{"$nulls":16},"KINGSTON/SAUGERTIESNYE-9",1680,"KINGSTON/SAUGERTIESNYE-9",2037]
[{"$nulls":16},"KINGSTON/SAUGERTIESNYW-1",1404,"KINGSTON/SAUGERTIESNYW-1",1872]
[{"$nulls":16},"KINGSTON/SAUGERTIESNYW-2",1557,"KINGSTON/SAUGERTIESNYW-2",1920]
[{"$nulls":16},"KINGSTON/SAUGERTIESNYW-3",1692,"KINGSTON/SAUGERTIESNYW-3",1965]
[{"$nulls":16},"KINGSTON/SAUGERTIESNYW-4",1881,"KINGSTON/SAUGERTIESNYW-4",2064]
[{"$nulls":16},"KINGSTON/SAUGERTIESNYW-5",1914,"KINGSTON/SAUGERTIESNYW-5",2178]
[{"$nulls":16},"KINGSTON/SAUGERTIESNYO-1E",1482,"KINGSTON/SAUGERTIESNYO-1E",1914]
[{"$nulls":16},"KINGSTON/SAUGERTIESNYO-2E",1653,"KINGSTON/SAUGERTIESNYO-2E",1959]
[{"$nulls":16},"KINGSTON/SAUGERTIESNYO-3E",1872,"KINGSTON/SAUGERTIESNYO-3E",2082]
[{"$nulls":16},"KINGSTON/SAUGERTIESNYO-1",1266,"KINGSTON/SAUGERTIESNYO-1",1524]
[{"$nulls":16},"KINGSTON/SAUGERTIESNYO-2",1446,"KINGSTON/SAUGERTIESNYO-2",1863]
[{"$nulls":16},"KINGSTON/SAUGERTIESNYO-3",1731,"KINGSTON/SAUGERTIESNYO-3",1962]
[{"$nulls":16},"KINGSTON/SAUGERTIESNYO-4",1908,"KINGSTON/SAUGERTIESNYO-4",2223]
[{"$nulls":16},"KINGSTON/SAUGERTIESNYO-5",1932,"KINGSTON/SAUGERTIESNYO-5",2409]
[{"$nulls":16},"KINGSTON/SAUGERTIESNYO-6",1965,"KINGSTON/SAUGERTIESNYO-6",2433]
[{"$nulls":16},"KINGSTON/SAUGERTIESNYO-7",2004,"KINGSTON/SAUGERTIESNYO-7",2457]
[{"$nulls":16},"AKRONOHE-1",753,"AKRONOHE-1",954]
[{"$nulls":16},"AKRONOHE-2",753,"AKRONOHE-2",954]
[{"$nulls":16},"AKRONOHE-3",753,"AKRONOHE-3",954]
[{"$nulls":16},"AKRONOHE-4",753,"AKRONOHE-4",954]
[{"$nulls":16},"AKRONOHE-5",852,"AKRONOHE-5",1008]
[{"$nulls":16},"AKRONOHE-6",909,"AKRONOHE-6",1125]
[{"$nulls":16},"AKRONOHE-7",957,"AKRONOHE-7",1146]
[{"$nulls":16},"AKRONOHE-8",1032,"AKRONOHE-8",1170]
[{"$nulls":16},"AKRONOHE-9",1068,"AKRONOHE-9",1251]
[{"$nulls":16},"AKRONOHW-1",933,"AKRONOHW-1",1128]
[{"$nulls":16},"AKRONOHW-2",1029,"AKRONOHW-2",1155]
[{"$nulls":16},"AKRONOHW-3",1071,"AKRONOHW-3",1185]
[{"$nulls":16},"AKRONOHW-4",1131,"AKRONOHW-4",1275]
[{"$nulls":16},"AKRONOHW-5",1152,"AKRONOHW-5",1380]
[{"$nulls":16},"AKRONOHO-1E",1008,"AKRONOHO-1E",1152]
[{"$nulls":16},"AKRONOHO-2E",1059,"AKRONOHO-2E",1179]
[{"$nulls":16},"AKRONOHO-3E",1125,"AKRONOHO-3E",1290]
[{"$nulls":16},"AKRONOHO-1",900,"AKRONOHO-1",1020]
[{"$nulls":16},"AKRONOHO-2",990,"AKRONOHO-2",1125]
[{"$nulls":16},"AKRONOHO-3",1083,"AKRONOHO-3",1182]
[{"$nulls":16},"AKRONOHO-4",1149,"AKRONOHO-4",1422]
[{"$nulls":16},"AKRONOHO-5",1197,"AKRONOHO-5",1593]
[{"$nulls":16},"AKRONOHO-6",1206,"AKRONOHO-6",1611]
[{"$nulls":16},"AKRONOHO-7",1218,"AKRONOHO-7",1626]
[{"$nulls":16},"CINCINNATIOHE-1",930,"CINCINNATIOHE-1",1236]
[{"$nulls":16},"CINCINNATIOHE-2",930,"CINCINNATIOHE-2",1236]
[{"$nulls":16},"CINCINNATIOHE-3",930,"CINCINNATIOHE-3",1236]
[{"$nulls":16},"CINCINNATIOHE-4",930,"CINCINNATIOHE-4",1236]
[{"$nulls":16},"CINCINNATIOHE-5",1077,"CINCINNATIOHE-5",1320]
[{"$nulls":16},"CINCINNATIOHE-6",1161,"CINCINNATIOHE-6",1386]
[{"$nulls":16},"CINCINNATIOHE-7",1239,"CINCINNATIOHE-7",1440]
[{"$nulls":16},"CINCINNATIOHE-8",1335,"CINCINNATIOHE-8",1497]
[{"$nulls":16},"CINCINNATIOHE-9",1356,"CINCINNATIOHE-9",1578]
[{"$nulls":16},"CINCINNATIOHW-1",1203,"CINCINNATIOHW-1",1389]
[{"$nulls":16},"CINCINNATIOHW-2",1335,"CINCINNATIOHW-2",1464]
[{"$nulls":16},"CINCINNATIOHW-3",1356,"CINCINNATIOHW-3",1533]
[{"$nulls":16},"CINCINNATIOHW-4",1401,"CINCINNATIOHW-4",1593]
[{"$nulls":16},"CINCINNATIOHW-5",1452,"CINCINNATIOHW-5",1668]
[{"$nulls":16},"CINCINNATIOHO-1E",1320,"CINCINNATIOHO-1E",1452]
[{"$nulls":16},"CINCINNATIOHO-2E",1350,"CINCINNATIOHO-2E",1524]
[{"$nulls":16},"CINCINNATIOHO-3E",1386,"CINCINNATIOHO-3E",1605]
[{"$nulls":16},"CINCINNATIOHO-1",1149,"CINCINNATIOHO-1",1329]
[{"$nulls":16},"CINCINNATIOHO-2",1293,"CINCINNATIOHO-2",1386]
[{"$nulls":16},"CINCINNATIOHO-3",1362,"CINCINNATIOHO-3",1530]
[{"$nulls":16},"CINCINNATIOHO-4",1446,"CINCINNATIOHO-4",1695]
[{"$nulls":16},"CINCINNATIOHO-5",1479,"CINCINNATIOHO-5",1812]
[{"$nulls":16},"CINCINNATIOHO-6",1533,"CINCINNATIOHO-6",1830]
[{"$nulls":16},"CINCINNATIOHO-7",1563,"CINCINNATIOHO-7",1848]
[{"$nulls":16},"CLEVELANDOHE-1",804,"CLEVELANDOHE-1",1026]
[{"$nulls":16},"CLEVELANDOHE-2",804,"CLEVELANDOHE-2",1026]
[{"$nulls":16},"CLEVELANDOHE-3",804,"CLEVELANDOHE-3",1026]
[{"$nulls":16},"CLEVELANDOHE-4",804,"CLEVELANDOHE-4",1026]
[{"$nulls":16},"CLEVELANDOHE-5",912,"CLEVELANDOHE-5",1086]
[{"$nulls":16},"CLEVELANDOHE-6",972,"CLEVELANDOHE-6",1188]
[{"$nulls":16},"CLEVELANDOHE-7",1029,"CLEVELANDOHE-7",1278]
[{"$nulls":16},"CLEVELANDOHE-8",1107,"CLEVELANDOHE-8",1377]
[{"$nulls":16},"CLEVELANDOHE-9",1137,"CLEVELANDOHE-9",1470]
[{"$nulls":16},"CLEVELANDOHW-1",1002,"CLEVELANDOHW-1",1191]
[{"$nulls":16},"CLEVELANDOHW-2",1104,"CLEVELANDOHW-2",1317]
[{"$nulls":16},"CLEVELANDOHW-3",1140,"CLEVELANDOHW-3",1437]
[{"$nulls":16},"CLEVELANDOHW-4",1212,"CLEVELANDOHW-4",1482]
[{"$nulls":16},"CLEVELANDOHW-5",1302,"CLEVELANDOHW-5",1536]
[{"$nulls":16},"CLEVELANDOHO-1E",1086,"CLEVELANDOHO-1E",1299]
[{"$nulls":16},"CLEVELANDOHO-2E",1131,"CLEVELANDOHO-2E",1422]
[{"$nulls":16},"CLEVELANDOHO-3E",1188,"CLEVELANDOHO-3E",1491]
[{"$nulls":16},"CLEVELANDOHO-1",966,"CLEVELANDOHO-1",1095]
[{"$nulls":16},"CLEVELANDOHO-2",1065,"CLEVELANDOHO-2",1188]
[{"$nulls":16},"CLEVELANDOHO-3",1152,"CLEVELANDOHO-3",1434]
[{"$nulls":16},"CLEVELANDOHO-4",1290,"CLEVELANDOHO-4",1554]
[{"$nulls":16},"CLEVELANDOHO-5",1347,"CLEVELANDOHO-5",1641]
[{"$nulls":16},"CLEVELANDOHO-6",1437,"CLEVELANDOHO-6",1656]
[{"$nulls":16},"CLEVELANDOHO-7",1467,"CLEVELANDOHO-7",1674]
[{"$nulls":16},"COLUMBUSOHE-1",759,"COLUMBUSOHE-1",981]
[{"$nulls":16},"COLUMBUSOHE-2",759,"COLUMBUSOHE-2",981]
[{"$nulls":16},"COLUMBUSOHE-3",759,"COLUMBUSOHE-3",981]
[{"$nulls":16},"COLUMBUSOHE-4",759,"COLUMBUSOHE-4",981]
[{"$nulls":16},"COLUMBUSOHE-5",870,"COLUMBUSOHE-5",1041]
[{"$nulls":16},"COLUMBUSOHE-6",930,"COLUMBUSOHE-6",1215]
[{"$nulls":16},"COLUMBUSOHE-7",987,"COLUMBUSOHE-7",1266]
[{"$nulls":16},"COLUMBUSOHE-8",1077,"COLUMBUSOHE-8",1323]
[{"$nulls":16},"COLUMBUSOHE-9",1131,"COLUMBUSOHE-9",1446]
[{"$nulls":16},"COLUMBUSOHW-1",960,"COLUMBUSOHW-1",1215]
[{"$nulls":16},"COLUMBUSOHW-2",1074,"COLUMBUSOHW-2",1290]
[{"$nulls":16},"COLUMBUSOHW-3",1134,"COLUMBUSOHW-3",1356]
[{"$nulls":16},"COLUMBUSOHW-4",1227,"COLUMBUSOHW-4",1479]
[{"$nulls":16},"COLUMBUSOHW-5",1278,"COLUMBUSOHW-5",1626]
[{"$nulls":16},"COLUMBUSOHO-1E",1041,"COLUMBUSOHO-1E",1278]
[{"$nulls":16},"COLUMBUSOHO-2E",1119,"COLUMBUSOHO-2E",1347]
[{"$nulls":16},"COLUMBUSOHO-3E",1215,"COLUMBUSOHO-3E",1503]
[{"$nulls":16},"COLUMBUSOHO-1",924,"COLUMBUSOHO-1",1059]
[{"$nulls":16},"COLUMBUSOHO-2",1020,"COLUMBUSOHO-2",1212]
[{"$nulls":16},"COLUMBUSOHO-3",1152,"COLUMBUSOHO-3",1353]
[{"$nulls":16},"COLUMBUSOHO-4",1272,"COLUMBUSOHO-4",1680]
[{"$nulls":16},"COLUMBUSOHO-5",1437,"COLUMBUSOHO-5",1914]
[{"$nulls":16},"COLUMBUSOHO-6",1452,"COLUMBUSOHO-6",1935]
[{"$nulls":16},"COLUMBUSOHO-7",1464,"COLUMBUSOHO-7",1953]
[{"$nulls":16},"WRIGHT-PATTERSON AFBOHE-1",738,"WRIGHT-PATTERSON AFBOHE-1",921]
[{"$nulls":16},"WRIGHT-PATTERSON AFBOHE-2",738,"WRIGHT-PATTERSON AFBOHE-2",921]
[{"$nulls":16},"WRIGHT-PATTERSON AFBOHE-3",738,"WRIGHT-PATTERSON AFBOHE-3",921]
[{"$nulls":16},"WRIGHT-PATTERSON AFBOHE-4",738,"WRIGHT-PATTERSON AFBOHE-4",921]
[{"$nulls":16},"WRIGHT-PATTERSON AFBOHE-5",822,"WRIGHT-PATTERSON AFBOHE-5",981]
[{"$nulls":16},"WRIGHT-PATTERSON AFBOHE-6",927,"WRIGHT-PATTERSON AFBOHE-6",1236]
[{"$nulls":16},"WRIGHT-PATTERSON AFBOHE-7",1005,"WRIGHT-PATTERSON AFBOHE-7",1341]
[{"$nulls":16},"WRIGHT-PATTERSON AFBOHE-8",1092,"WRIGHT-PATTERSON AFBOHE-8",1455]
[{"$nulls":16},"WRIGHT-PATTERSON AFBOHE-9",1179,"WRIGHT-PATTERSON AFBOHE-9",1575]
[{"$nulls":16},"WRIGHT-PATTERSON AFBOHW-1",930,"WRIGHT-PATTERSON AFBOHW-1",1239]
[{"$nulls":16},"WRIGHT-PATTERSON AFBOHW-2",1041,"WRIGHT-PATTERSON AFBOHW-2",1386]
[{"$nulls":16},"WRIGHT-PATTERSON AFBOHW-3",1146,"WRIGHT-PATTERSON AFBOHW-3",1527]
[{"$nulls":16},"WRIGHT-PATTERSON AFBOHW-4",1263,"WRIGHT-PATTERSON AFBOHW-4",1590]
[{"$nulls":16},"WRIGHT-PATTERSON AFBOHW-5",1368,"WRIGHT-PATTERSON AFBOHW-5",1668]
[{"$nulls":16},"WRIGHT-PATTERSON AFBOHO-1E",1023,"WRIGHT-PATTERSON AFBOHO-1E",1365]
[{"$nulls":16},"WRIGHT-PATTERSON AFBOHO-2E",1131,"WRIGHT-PATTERSON AFBOHO-2E",1506]
[{"$nulls":16},"WRIGHT-PATTERSON AFBOHO-3E",1236,"WRIGHT-PATTERSON AFBOHO-3E",1602]
[{"$nulls":16},"WRIGHT-PATTERSON AFBOHO-1",861,"WRIGHT-PATTERSON AFBOHO-1",1008]
[{"$nulls":16},"WRIGHT-PATTERSON AFBOHO-2",960,"WRIGHT-PATTERSON AFBOHO-2",1230]
[{"$nulls":16},"WRIGHT-PATTERSON AFBOHO-3",1143,"WRIGHT-PATTERSON AFBOHO-3",1521]
[{"$nulls":16},"WRIGHT-PATTERSON AFBOHO-4",1353,"WRIGHT-PATTERSON AFBOHO-4",1695]
[{"$nulls":16},"WRIGHT-PATTERSON AFBOHO-5",1419,"WRIGHT-PATTERSON AFBOHO-5",1818]
[{"$nulls":16},"WRIGHT-PATTERSON AFBOHO-6",1527,"WRIGHT-PATTERSON AFBOHO-6",1836]
[{"$nulls":16},"WRIGHT-PATTERSON AFBOHO-7",1557,"WRIGHT-PATTERSON AFBOHO-7",1854]
[{"$nulls":16},"TOLEDOOHE-1",732,"TOLEDOOHE-1",975]
[{"$nulls":16},"TOLEDOOHE-2",732,"TOLEDOOHE-2",975]
[{"$nulls":16},"TOLEDOOHE-3",732,"TOLEDOOHE-3",975]
[{"$nulls":16},"TOLEDOOHE-4",732,"TOLEDOOHE-4",975]
[{"$nulls":16},"TOLEDOOHE-5",819,"TOLEDOOHE-5",1089]
[{"$nulls":16},"TOLEDOOHE-6",888,"TOLEDOOHE-6",1182]
[{"$nulls":16},"TOLEDOOHE-7",984,"TOLEDOOHE-7",1221]
[{"$nulls":16},"TOLEDOOHE-8",1107,"TOLEDOOHE-8",1263]
[{"$nulls":16},"TOLEDOOHE-9",1137,"TOLEDOOHE-9",1356]
[{"$nulls":16},"TOLEDOOHW-1",933,"TOLEDOOHW-1",1182]
[{"$nulls":16},"TOLEDOOHW-2",1107,"TOLEDOOHW-2",1236]
[{"$nulls":16},"TOLEDOOHW-3",1140,"TOLEDOOHW-3",1287]
[{"$nulls":16},"TOLEDOOHW-4",1191,"TOLEDOOHW-4",1383]
[{"$nulls":16},"TOLEDOOHW-5",1230,"TOLEDOOHW-5",1494]
[{"$nulls":16},"TOLEDOOHO-1E",1089,"TOLEDOOHO-1E",1230]
[{"$nulls":16},"TOLEDOOHO-2E",1131,"TOLEDOOHO-2E",1281]
[{"$nulls":16},"TOLEDOOHO-3E",1182,"TOLEDOOHO-3E",1401]
[{"$nulls":16},"TOLEDOOHO-1",861,"TOLEDOOHO-1",1101]
[{"$nulls":16},"TOLEDOOHO-2",1050,"TOLEDOOHO-2",1179]
[{"$nulls":16},"TOLEDOOHO-3",1149,"TOLEDOOHO-3",1287]
[{"$nulls":16},"TOLEDOOHO-4",1224,"TOLEDOOHO-4",1536]
[{"$nulls":16},"TOLEDOOHO-5",1290,"TOLEDOOHO-5",1719]
[{"$nulls":16},"TOLEDOOHO-6",1302,"TOLEDOOHO-6",1734]
[{"$nulls":16},"TOLEDOOHO-7",1314,"TOLEDOOHO-7",1752]
[{"$nulls":16},"YOUNGSTOWNOHE-1",609,"YOUNGSTOWNOHE-1",813]
[{"$nulls":16},"YOUNGSTOWNOHE-2",609,"YOUNGSTOWNOHE-2",813]
[{"$nulls":16},"YOUNGSTOWNOHE-3",609,"YOUNGSTOWNOHE-3",813]
[{"$nulls":16},"YOUNGSTOWNOHE-4",609,"YOUNGSTOWNOHE-4",813]
[{"$nulls":16},"YOUNGSTOWNOHE-5",696,"YOUNGSTOWNOHE-5",885]
[{"$nulls":16},"YOUNGSTOWNOHE-6",750,"YOUNGSTOWNOHE-6",951]
[{"$nulls":16},"YOUNGSTOWNOHE-7",816,"YOUNGSTOWNOHE-7",987]
[{"$nulls":16},"YOUNGSTOWNOHE-8",897,"YOUNGSTOWNOHE-8",1026]
[{"$nulls":16},"YOUNGSTOWNOHE-9",918,"YOUNGSTOWNOHE-9",1080]
[{"$nulls":16},"YOUNGSTOWNOHW-1",786,"YOUNGSTOWNOHW-1",951]
[{"$nulls":16},"YOUNGSTOWNOHW-2",897,"YOUNGSTOWNOHW-2",1002]
[{"$nulls":16},"YOUNGSTOWNOHW-3",921,"YOUNGSTOWNOHW-3",1050]
[{"$nulls":16},"YOUNGSTOWNOHW-4",960,"YOUNGSTOWNOHW-4",1092]
[{"$nulls":16},"YOUNGSTOWNOHW-5",996,"YOUNGSTOWNOHW-5",1140]
[{"$nulls":16},"YOUNGSTOWNOHO-1E",885,"YOUNGSTOWNOHO-1E",993]
[{"$nulls":16},"YOUNGSTOWNOHO-2E",912,"YOUNGSTOWNOHO-2E",1044]
[{"$nulls":16},"YOUNGSTOWNOHO-3E",951,"YOUNGSTOWNOHO-3E",1098]
[{"$nulls":16},"YOUNGSTOWNOHO-1",741,"YOUNGSTOWNOHO-1",891]
[{"$nulls":16},"YOUNGSTOWNOHO-2",861,"YOUNGSTOWNOHO-2",948]
[{"$nulls":16},"YOUNGSTOWNOHO-3",927,"YOUNGSTOWNOHO-3",1047]
[{"$nulls":16},"YOUNGSTOWNOHO-4",990,"YOUNGSTOWNOHO-4",1158]
[{"$nulls":16},"YOUNGSTOWNOHO-5",1014,"YOUNGSTOWNOHO-5",1239]
[{"$nulls":16},"YOUNGSTOWNOHO-6",1050,"YOUNGSTOWNOHO-6",1251]
[{"$nulls":16},"YOUNGSTOWNOHO-7",1071,"YOUNGSTOWNOHO-7",1263]
[{"$nulls":16},"MANSFIELDOHE-1",576,"MANSFIELDOHE-1",756]
[{"$nulls":16},"MANSFIELDOHE-2",576,"MANSFIELDOHE-2",756]
[{"$nulls":16},"MANSFIELDOHE-3",576,"MANSFIELDOHE-3",756]
[{"$nulls":16},"MANSFIELDOHE-4",576,"MANSFIELDOHE-4",756]
[{"$nulls":16},"MANSFIELDOHE-5",666,"MANSFIELDOHE-5",801]
[{"$nulls":16},"MANSFIELDOHE-6",720,"MANSFIELDOHE-6",960]
[{"$nulls":16},"MANSFIELDOHE-7",756,"MANSFIELDOHE-7",999]
[{"$nulls":16},"MANSFIELDOHE-8",831,"MANSFIELDOHE-8",1044]
[{"$nulls":16},"MANSFIELDOHE-9",882,"MANSFIELDOHE-9",1107]
[{"$nulls":16},"MANSFIELDOHW-1",738,"MANSFIELDOHW-1",960]
[{"$nulls":16},"MANSFIELDOHW-2",831,"MANSFIELDOHW-2",1017]
[{"$nulls":16},"MANSFIELDOHW-3",885,"MANSFIELDOHW-3",1071]
[{"$nulls":16},"MANSFIELDOHW-4",969,"MANSFIELDOHW-4",1122]
[{"$nulls":16},"MANSFIELDOHW-5",1011,"MANSFIELDOHW-5",1182]
[{"$nulls":16},"MANSFIELDOHO-1E",801,"MANSFIELDOHO-1E",1008]
[{"$nulls":16},"MANSFIELDOHO-2E",870,"MANSFIELDOHO-2E",1062]
[{"$nulls":16},"MANSFIELDOHO-3E",960,"MANSFIELDOHO-3E",1131]
[{"$nulls":16},"MANSFIELDOHO-1",708,"MANSFIELDOHO-1",819]
[{"$nulls":16},"MANSFIELDOHO-2",786,"MANSFIELDOHO-2",957]
[{"$nulls":16},"MANSFIELDOHO-3",903,"MANSFIELDOHO-3",1068]
[{"$nulls":16},"MANSFIELDOHO-4",1005,"MANSFIELDOHO-4",1206]
[{"$nulls":16},"MANSFIELDOHO-5",1029,"MANSFIELDOHO-5",1305]
[{"$nulls":16},"MANSFIELDOHO-6",1071,"MANSFIELDOHO-6",1317]
[{"$nulls":16},"MANSFIELDOHO-7",1092,"MANSFIELDOHO-7",1329]
[{"$nulls":16},"LIMAOHE-1",633,"LIMAOHE-1",840]
[{"$nulls":16},"LIMAOHE-2",633,"LIMAOHE-2",840]
[{"$nulls":16},"LIMAOHE-3",633,"LIMAOHE-3",840]
[{"$nulls":16},"LIMAOHE-4",633,"LIMAOHE-4",840]
[{"$nulls":16},"LIMAOHE-5",726,"LIMAOHE-5",906]
[{"$nulls":16},"LIMAOHE-6",783,"LIMAOHE-6",1017]
[{"$nulls":16},"LIMAOHE-7",843,"LIMAOHE-7",1023]
[{"$nulls":16},"LIMAOHE-8",927,"LIMAOHE-8",1032]
[{"$nulls":16},"LIMAOHE-9",963,"LIMAOHE-9",1065]
[{"$nulls":16},"LIMAOHW-1",813,"LIMAOHW-1",1017]
[{"$nulls":16},"LIMAOHW-2",927,"LIMAOHW-2",1029]
[{"$nulls":16},"LIMAOHW-3",966,"LIMAOHW-3",1038]
[{"$nulls":16},"LIMAOHW-4",1017,"LIMAOHW-4",1074]
[{"$nulls":16},"LIMAOHW-5",1026,"LIMAOHW-5",1116]
[{"$nulls":16},"LIMAOHO-1E",906,"LIMAOHO-1E",1026]
[{"$nulls":16},"LIMAOHO-2E",954,"LIMAOHO-2E",1038]
[{"$nulls":16},"LIMAOHO-3E",1017,"LIMAOHO-3E",1080]
[{"$nulls":16},"LIMAOHO-1",774,"LIMAOHO-1",918]
[{"$nulls":16},"LIMAOHO-2",882,"LIMAOHO-2",1014]
[{"$nulls":16},"LIMAOHO-3",975,"LIMAOHO-3",1038]
[{"$nulls":16},"LIMAOHO-4",1026,"LIMAOHO-4",1131]
[{"$nulls":16},"LIMAOHO-5",1029,"LIMAOHO-5",1200]
[{"$nulls":16},"LIMAOHO-6",1038,"LIMAOHO-6",1212]
[{"$nulls":16},"LIMAOHO-7",1059,"LIMAOHO-7",1224]
[{"$nulls":16},"ALTUS AFBOKE-1",600,"ALTUS AFBOKE-1",801]
[{"$nulls":16},"ALTUS AFBOKE-2",600,"ALTUS AFBOKE-2",801]
[{"$nulls":16},"ALTUS AFBOKE-3",600,"ALTUS AFBOKE-3",801]
[{"$nulls":16},"ALTUS AFBOKE-4",600,"ALTUS AFBOKE-4",801]
[{"$nulls":16},"ALTUS AFBOKE-5",687,"ALTUS AFBOKE-5",915]
[{"$nulls":16},"ALTUS AFBOKE-6",852,"ALTUS AFBOKE-6",1134]
[{"$nulls":16},"ALTUS AFBOKE-7",864,"ALTUS AFBOKE-7",1152]
[{"$nulls":16},"ALTUS AFBOKE-8",957,"ALTUS AFBOKE-8",1173]
[{"$nulls":16},"ALTUS AFBOKE-9",1026,"ALTUS AFBOKE-9",1224]
[{"$nulls":16},"ALTUS AFBOKW-1",852,"ALTUS AFBOKW-1",1134]
[{"$nulls":16},"ALTUS AFBOKW-2",957,"ALTUS AFBOKW-2",1161]
[{"$nulls":16},"ALTUS AFBOKW-3",1032,"ALTUS AFBOKW-3",1185]
[{"$nulls":16},"ALTUS AFBOKW-4",1140,"ALTUS AFBOKW-4",1236]
[{"$nulls":16},"ALTUS AFBOKW-5",1158,"ALTUS AFBOKW-5",1296]
[{"$nulls":16},"ALTUS AFBOKO-1E",915,"ALTUS AFBOKO-1E",1158]
[{"$nulls":16},"ALTUS AFBOKO-2E",1011,"ALTUS AFBOKO-2E",1182]
[{"$nulls":16},"ALTUS AFBOKO-3E",1134,"ALTUS AFBOKO-3E",1245]
[{"$nulls":16},"ALTUS AFBOKO-1",705,"ALTUS AFBOKO-1",939]
[{"$nulls":16},"ALTUS AFBOKO-2",876,"ALTUS AFBOKO-2",1131]
[{"$nulls":16},"ALTUS AFBOKO-3",1056,"ALTUS AFBOKO-3",1185]
[{"$nulls":16},"ALTUS AFBOKO-4",1155,"ALTUS AFBOKO-4",1320]
[{"$nulls":16},"ALTUS AFBOKO-5",1167,"ALTUS AFBOKO-5",1416]
[{"$nulls":16},"ALTUS AFBOKO-6",1185,"ALTUS AFBOKO-6",1431]
[{"$nulls":16},"ALTUS AFBOKO-7",1209,"ALTUS AFBOKO-7",1446]
[{"$nulls":16},"VANCE AFB/ENIDOKE-1",654,"VANCE AFB/ENIDOKE-1",855]
[{"$nulls":16},"VANCE AFB/ENIDOKE-2",654,"VANCE AFB/ENIDOKE-2",855]
[{"$nulls":16},"VANCE AFB/ENIDOKE-3",654,"VANCE AFB/ENIDOKE-3",855]
[{"$nulls":16},"VANCE AFB/ENIDOKE-4",654,"VANCE AFB/ENIDOKE-4",855]
[{"$nulls":16},"VANCE AFB/ENIDOKE-5",747,"VANCE AFB/ENIDOKE-5",915]
[{"$nulls":16},"VANCE AFB/ENIDOKE-6",801,"VANCE AFB/ENIDOKE-6",1032]
[{"$nulls":16},"VANCE AFB/ENIDOKE-7",858,"VANCE AFB/ENIDOKE-7",1092]
[{"$nulls":16},"VANCE AFB/ENIDOKE-8",939,"VANCE AFB/ENIDOKE-8",1158]
[{"$nulls":16},"VANCE AFB/ENIDOKE-9",975,"VANCE AFB/ENIDOKE-9",1266]
[{"$nulls":16},"VANCE AFB/ENIDOKW-1",831,"VANCE AFB/ENIDOKW-1",1035]
[{"$nulls":16},"VANCE AFB/ENIDOKW-2",936,"VANCE AFB/ENIDOKW-2",1119]
[{"$nulls":16},"VANCE AFB/ENIDOKW-3",978,"VANCE AFB/ENIDOKW-3",1200]
[{"$nulls":16},"VANCE AFB/ENIDOKW-4",1047,"VANCE AFB/ENIDOKW-4",1290]
[{"$nulls":16},"VANCE AFB/ENIDOKW-5",1107,"VANCE AFB/ENIDOKW-5",1398]
[{"$nulls":16},"VANCE AFB/ENIDOKO-1E",915,"VANCE AFB/ENIDOKO-1E",1107]
[{"$nulls":16},"VANCE AFB/ENIDOKO-2E",966,"VANCE AFB/ENIDOKO-2E",1188]
[{"$nulls":16},"VANCE AFB/ENIDOKO-3E",1032,"VANCE AFB/ENIDOKO-3E",1308]
[{"$nulls":16},"VANCE AFB/ENIDOKO-1",792,"VANCE AFB/ENIDOKO-1",927]
[{"$nulls":16},"VANCE AFB/ENIDOKO-2",894,"VANCE AFB/ENIDOKO-2",1029]
[{"$nulls":16},"VANCE AFB/ENIDOKO-3",990,"VANCE AFB/ENIDOKO-3",1197]
[{"$nulls":16},"VANCE AFB/ENIDOKO-4",1098,"VANCE AFB/ENIDOKO-4",1437]
[{"$nulls":16},"VANCE AFB/ENIDOKO-5",1209,"VANCE AFB/ENIDOKO-5",1611]
[{"$nulls":16},"VANCE AFB/ENIDOKO-6",1221,"VANCE AFB/ENIDOKO-6",1626]
[{"$nulls":16},"VANCE AFB/ENIDOKO-7",1233,"VANCE AFB/ENIDOKO-7",1644]
[{"$nulls":16},"FORT SILL/LAWTONOKE-1",645,"FORT SILL/LAWTONOKE-1",861]
[{"$nulls":16},"FORT SILL/LAWTONOKE-2",645,"FORT SILL/LAWTONOKE-2",861]
[{"$nulls":16},"FORT SILL/LAWTONOKE-3",645,"FORT SILL/LAWTONOKE-3",861]
[{"$nulls":16},"FORT SILL/LAWTONOKE-4",645,"FORT SILL/LAWTONOKE-4",861]
[{"$nulls":16},"FORT SILL/LAWTONOKE-5",726,"FORT SILL/LAWTONOKE-5",966]
[{"$nulls":16},"FORT SILL/LAWTONOKE-6",834,"FORT SILL/LAWTONOKE-6",1110]
[{"$nulls":16},"FORT SILL/LAWTONOKE-7",885,"FORT SILL/LAWTONOKE-7",1182]
[{"$nulls":16},"FORT SILL/LAWTONOKE-8",996,"FORT SILL/LAWTONOKE-8",1257]
[{"$nulls":16},"FORT SILL/LAWTONOKE-9",1041,"FORT SILL/LAWTONOKE-9",1344]
[{"$nulls":16},"FORT SILL/LAWTONOKW-1",834,"FORT SILL/LAWTONOKW-1",1113]
[{"$nulls":16},"FORT SILL/LAWTONOKW-2",993,"FORT SILL/LAWTONOKW-2",1212]
[{"$nulls":16},"FORT SILL/LAWTONOKW-3",1044,"FORT SILL/LAWTONOKW-3",1305]
[{"$nulls":16},"FORT SILL/LAWTONOKW-4",1128,"FORT SILL/LAWTONOKW-4",1359]
[{"$nulls":16},"FORT SILL/LAWTONOKW-5",1200,"FORT SILL/LAWTONOKW-5",1425]
[{"$nulls":16},"FORT SILL/LAWTONOKO-1E",966,"FORT SILL/LAWTONOKO-1E",1197]
[{"$nulls":16},"FORT SILL/LAWTONOKO-2E",1029,"FORT SILL/LAWTONOKO-2E",1293]
[{"$nulls":16},"FORT SILL/LAWTONOKO-3E",1110,"FORT SILL/LAWTONOKO-3E",1371]
[{"$nulls":16},"FORT SILL/LAWTONOKO-1",756,"FORT SILL/LAWTONOKO-1",981]
[{"$nulls":16},"FORT SILL/LAWTONOKO-2",930,"FORT SILL/LAWTONOKO-2",1107]
[{"$nulls":16},"FORT SILL/LAWTONOKO-3",1059,"FORT SILL/LAWTONOKO-3",1302]
[{"$nulls":16},"FORT SILL/LAWTONOKO-4",1188,"FORT SILL/LAWTONOKO-4",1449]
[{"$nulls":16},"FORT SILL/LAWTONOKO-5",1233,"FORT SILL/LAWTONOKO-5",1551]
[{"$nulls":16},"FORT SILL/LAWTONOKO-6",1305,"FORT SILL/LAWTONOKO-6",1569]
[{"$nulls":16},"FORT SILL/LAWTONOKO-7",1332,"FORT SILL/LAWTONOKO-7",1584]
[{"$nulls":16},"OKLAHOMA CITYOKE-1",657,"OKLAHOMA CITYOKE-1",861]
[{"$nulls":16},"OKLAHOMA CITYOKE-2",657,"OKLAHOMA CITYOKE-2",861]
[{"$nulls":16},"OKLAHOMA CITYOKE-3",657,"OKLAHOMA CITYOKE-3",861]
[{"$nulls":16},"OKLAHOMA CITYOKE-4",657,"OKLAHOMA CITYOKE-4",861]
[{"$nulls":16},"OKLAHOMA CITYOKE-5",753,"OKLAHOMA CITYOKE-5",918]
[{"$nulls":16},"OKLAHOMA CITYOKE-6",879,"OKLAHOMA CITYOKE-6",1173]
[{"$nulls":16},"OKLAHOMA CITYOKE-7",903,"OKLAHOMA CITYOKE-7",1203]
[{"$nulls":16},"OKLAHOMA CITYOKE-8",969,"OKLAHOMA CITYOKE-8",1236]
[{"$nulls":16},"OKLAHOMA CITYOKE-9",1047,"OKLAHOMA CITYOKE-9",1305]
[{"$nulls":16},"OKLAHOMA CITYOKW-1",879,"OKLAHOMA CITYOKW-1",1173]
[{"$nulls":16},"OKLAHOMA CITYOKW-2",966,"OKLAHOMA CITYOKW-2",1218]
[{"$nulls":16},"OKLAHOMA CITYOKW-3",1056,"OKLAHOMA CITYOKW-3",1257]
[{"$nulls":16},"OKLAHOMA CITYOKW-4",1179,"OKLAHOMA CITYOKW-4",1323]
[{"$nulls":16},"OKLAHOMA CITYOKW-5",1212,"OKLAHOMA CITYOKW-5",1401]
[{"$nulls":16},"OKLAHOMA CITYOKO-1E",918,"OKLAHOMA CITYOKO-1E",1209]
[{"$nulls":16},"OKLAHOMA CITYOKO-2E",1029,"OKLAHOMA CITYOKO-2E",1251]
[{"$nulls":16},"OKLAHOMA CITYOKO-3E",1173,"OKLAHOMA CITYOKO-3E",1335]
[{"$nulls":16},"OKLAHOMA CITYOKO-1",801,"OKLAHOMA CITYOKO-1",948]
[{"$nulls":16},"OKLAHOMA CITYOKO-2",900,"OKLAHOMA CITYOKO-2",1167]
[{"$nulls":16},"OKLAHOMA CITYOKO-3",1080,"OKLAHOMA CITYOKO-3",1257]
[{"$nulls":16},"OKLAHOMA CITYOKO-4",1206,"OKLAHOMA CITYOKO-4",1431]
[{"$nulls":16},"OKLAHOMA CITYOKO-5",1227,"OKLAHOMA CITYOKO-5",1554]
[{"$nulls":16},"OKLAHOMA CITYOKO-6",1257,"OKLAHOMA CITYOKO-6",1569]
[{"$nulls":16},"OKLAHOMA CITYOKO-7",1284,"OKLAHOMA CITYOKO-7",1584]
[{"$nulls":16},"TULSAOKE-1",645,"TULSAOKE-1",858]
[{"$nulls":16},"TULSAOKE-2",645,"TULSAOKE-2",858]
[{"$nulls":16},"TULSAOKE-3",645,"TULSAOKE-3",858]
[{"$nulls":16},"TULSAOKE-4",645,"TULSAOKE-4",858]
[{"$nulls":16},"TULSAOKE-5",744,"TULSAOKE-5",912]
[{"$nulls":16},"TULSAOKE-6",840,"TULSAOKE-6",1119]
[{"$nulls":16},"TULSAOKE-7",924,"TULSAOKE-7",1230]
[{"$nulls":16},"TULSAOKE-8",1011,"TULSAOKE-8",1350]
[{"$nulls":16},"TULSAOKE-9",1113,"TULSAOKE-9",1485]
[{"$nulls":16},"TULSAOKW-1",843,"TULSAOKW-1",1122]
[{"$nulls":16},"TULSAOKW-2",960,"TULSAOKW-2",1278]
[{"$nulls":16},"TULSAOKW-3",1071,"TULSAOKW-3",1425]
[{"$nulls":16},"TULSAOKW-4",1149,"TULSAOKW-4",1506]
[{"$nulls":16},"TULSAOKW-5",1257,"TULSAOKW-5",1605]
[{"$nulls":16},"TULSAOKO-1E",942,"TULSAOKO-1E",1254]
[{"$nulls":16},"TULSAOKO-2E",1053,"TULSAOKO-2E",1404]
[{"$nulls":16},"TULSAOKO-3E",1143,"TULSAOKO-3E",1521]
[{"$nulls":16},"TULSAOKO-1",804,"TULSAOKO-1",936]
[{"$nulls":16},"TULSAOKO-2",894,"TULSAOKO-2",1116]
[{"$nulls":16},"TULSAOKO-3",1065,"TULSAOKO-3",1419]
[{"$nulls":16},"TULSAOKO-4",1242,"TULSAOKO-4",1641]
[{"$nulls":16},"TULSAOKO-5",1347,"TULSAOKO-5",1797]
[{"$nulls":16},"TULSAOKO-6",1425,"TULSAOKO-6",1815]
[{"$nulls":16},"TULSAOKO-7",1455,"TULSAOKO-7",1833]
[{"$nulls":16},"ASTORIAORE-1",744,"ASTORIAORE-1",972]
[{"$nulls":16},"ASTORIAORE-2",744,"ASTORIAORE-2",972]
[{"$nulls":16},"ASTORIAORE-3",744,"ASTORIAORE-3",972]
[{"$nulls":16},"ASTORIAORE-4",744,"ASTORIAORE-4",972]
[{"$nulls":16},"ASTORIAORE-5",858,"ASTORIAORE-5",1026]
[{"$nulls":16},"ASTORIAORE-6",972,"ASTORIAORE-6",1296]
[{"$nulls":16},"ASTORIAORE-7",1050,"ASTORIAORE-7",1398]
[{"$nulls":16},"ASTORIAORE-8",1131,"ASTORIAORE-8",1509]
[{"$nulls":16},"ASTORIAORE-9",1206,"ASTORIAORE-9",1608]
[{"$nulls":16},"ASTORIAORW-1",975,"ASTORIAORW-1",1299]
[{"$nulls":16},"ASTORIAORW-2",1083,"ASTORIAORW-2",1443]
[{"$nulls":16},"ASTORIAORW-3",1185,"ASTORIAORW-3",1581]
[{"$nulls":16},"ASTORIAORW-4",1323,"ASTORIAORW-4",1620]
[{"$nulls":16},"ASTORIAORW-5",1425,"ASTORIAORW-5",1668]
[{"$nulls":16},"ASTORIAORO-1E",1065,"ASTORIAORO-1E",1422]
[{"$nulls":16},"ASTORIAORO-2E",1170,"ASTORIAORO-2E",1560]
[{"$nulls":16},"ASTORIAORO-3E",1296,"ASTORIAORO-3E",1626]
[{"$nulls":16},"ASTORIAORO-1",915,"ASTORIAORO-1",1056]
[{"$nulls":16},"ASTORIAORO-2",1008,"ASTORIAORO-2",1290]
[{"$nulls":16},"ASTORIAORO-3",1200,"ASTORIAORO-3",1575]
[{"$nulls":16},"ASTORIAORO-4",1410,"ASTORIAORO-4",1686]
[{"$nulls":16},"ASTORIAORO-5",1476,"ASTORIAORO-5",1761]
[{"$nulls":16},"ASTORIAORO-6",1581,"ASTORIAORO-6",1779]
[{"$nulls":16},"ASTORIAORO-7",1611,"ASTORIAORO-7",1797]
[{"$nulls":16},"COOS BAYORE-1",633,"COOS BAYORE-1",843]
[{"$nulls":16},"COOS BAYORE-2",633,"COOS BAYORE-2",843]
[{"$nulls":16},"COOS BAYORE-3",633,"COOS BAYORE-3",843]
[{"$nulls":16},"COOS BAYORE-4",633,"COOS BAYORE-4",843]
[{"$nulls":16},"COOS BAYORE-5",699,"COOS BAYORE-5",924]
[{"$nulls":16},"COOS BAYORE-6",864,"COOS BAYORE-6",1152]
[{"$nulls":16},"COOS BAYORE-7",924,"COOS BAYORE-7",1233]
[{"$nulls":16},"COOS BAYORE-8",990,"COOS BAYORE-8",1320]
[{"$nulls":16},"COOS BAYORE-9",1071,"COOS BAYORE-9",1428]
[{"$nulls":16},"COOS BAYORW-1",867,"COOS BAYORW-1",1155]
[{"$nulls":16},"COOS BAYORW-2",969,"COOS BAYORW-2",1269]
[{"$nulls":16},"COOS BAYORW-3",1047,"COOS BAYORW-3",1374]
[{"$nulls":16},"COOS BAYORW-4",1173,"COOS BAYORW-4",1446]
[{"$nulls":16},"COOS BAYORW-5",1254,"COOS BAYORW-5",1533]
[{"$nulls":16},"COOS BAYORO-1E",939,"COOS BAYORO-1E",1251]
[{"$nulls":16},"COOS BAYORO-2E",1026,"COOS BAYORO-2E",1359]
[{"$nulls":16},"COOS BAYORO-3E",1152,"COOS BAYORO-3E",1461]
[{"$nulls":16},"COOS BAYORO-1",765,"COOS BAYORO-1",948]
[{"$nulls":16},"COOS BAYORO-2",897,"COOS BAYORO-2",1149]
[{"$nulls":16},"COOS BAYORO-3",1071,"COOS BAYORO-3",1371]
[{"$nulls":16},"COOS BAYORO-4",1242,"COOS BAYORO-4",1566]
[{"$nulls":16},"COOS BAYORO-5",1293,"COOS BAYORO-5",1701]
[{"$nulls":16},"COOS BAYORO-6",1374,"COOS BAYORO-6",1719]
[{"$nulls":16},"COOS BAYORO-7",1404,"COOS BAYORO-7",1737]
[{"$nulls":16},"PORTLANDORE-1",897,"PORTLANDORE-1",1173]
[{"$nulls":16},"PORTLANDORE-2",897,"PORTLANDORE-2",1173]
[{"$nulls":16},"PORTLANDORE-3",897,"PORTLANDORE-3",1173]
[{"$nulls":16},"PORTLANDORE-4",897,"PORTLANDORE-4",1173]
[{"$nulls":16},"PORTLANDORE-5",996,"PORTLANDORE-5",1299]
[{"$nulls":16},"PORTLANDORE-6",1149,"PORTLANDORE-6",1533]
[{"$nulls":16},"PORTLANDORE-7",1194,"PORTLANDORE-7",1593]
[{"$nulls":16},"PORTLANDORE-8",1344,"PORTLANDORE-8",1656]
[{"$nulls":16},"PORTLANDORE-9",1419,"PORTLANDORE-9",1746]
[{"$nulls":16},"PORTLANDORW-1",1152,"PORTLANDORW-1",1536]
[{"$nulls":16},"PORTLANDORW-2",1344,"PORTLANDORW-2",1620]
[{"$nulls":16},"PORTLANDORW-3",1425,"PORTLANDORW-3",1698]
[{"$nulls":16},"PORTLANDORW-4",1548,"PORTLANDORW-4",1761]
[{"$nulls":16},"PORTLANDORW-5",1608,"PORTLANDORW-5",1839]
[{"$nulls":16},"PORTLANDORO-1E",1299,"PORTLANDORO-1E",1605]
[{"$nulls":16},"PORTLANDORO-2E",1401,"PORTLANDORO-2E",1686]
[{"$nulls":16},"PORTLANDORO-3E",1533,"PORTLANDORO-3E",1773]
[{"$nulls":16},"PORTLANDORO-1",1047,"PORTLANDORO-1",1323]
[{"$nulls":16},"PORTLANDORO-2",1254,"PORTLANDORO-2",1527]
[{"$nulls":16},"PORTLANDORO-3",1449,"PORTLANDORO-3",1695]
[{"$nulls":16},"PORTLANDORO-4",1599,"PORTLANDORO-4",1866]
[{"$nulls":16},"PORTLANDORO-5",1638,"PORTLANDORO-5",1989]
[{"$nulls":16},"PORTLANDORO-6",1698,"PORTLANDORO-6",2010]
[{"$nulls":16},"PORTLANDORO-7",1731,"PORTLANDORO-7",2031]
[{"$nulls":16},"SALEMORE-1",696,"SALEMORE-1",906]
[{"$nulls":16},"SALEMORE-2",696,"SALEMORE-2",906]
[{"$nulls":16},"SALEMORE-3",696,"SALEMORE-3",906]
[{"$nulls":16},"SALEMORE-4",696,"SALEMORE-4",906]
[{"$nulls":16},"SALEMORE-5",792,"SALEMORE-5",969]
[{"$nulls":16},"SALEMORE-6",879,"SALEMORE-6",1173]
[{"$nulls":16},"SALEMORE-7",951,"SALEMORE-7",1266]
[{"$nulls":16},"SALEMORE-8",1029,"SALEMORE-8",1371]
[{"$nulls":16},"SALEMORE-9",1116,"SALEMORE-9",1488]
[{"$nulls":16},"SALEMORW-1",882,"SALEMORW-1",1176]
[{"$nulls":16},"SALEMORW-2",1008,"SALEMORW-2",1308]
[{"$nulls":16},"SALEMORW-3",1080,"SALEMORW-3",1437]
[{"$nulls":16},"SALEMORW-4",1197,"SALEMORW-4",1506]
[{"$nulls":16},"SALEMORW-5",1290,"SALEMORW-5",1590]
[{"$nulls":16},"SALEMORO-1E",969,"SALEMORO-1E",1287]
[{"$nulls":16},"SALEMORO-2E",1062,"SALEMORO-2E",1419]
[{"$nulls":16},"SALEMORO-3E",1173,"SALEMORO-3E",1518]
[{"$nulls":16},"SALEMORO-1",840,"SALEMORO-1",993]
[{"$nulls":16},"SALEMORO-2",948,"SALEMORO-2",1167]
[{"$nulls":16},"SALEMORO-3",1098,"SALEMORO-3",1431]
[{"$nulls":16},"SALEMORO-4",1278,"SALEMORO-4",1620]
[{"$nulls":16},"SALEMORO-5",1338,"SALEMORO-5",1755]
[{"$nulls":16},"SALEMORO-6",1437,"SALEMORO-6",1773]
[{"$nulls":16},"SALEMORO-7",1464,"SALEMORO-7",1788]
[{"$nulls":16},"CORVALLISORE-1",735,"CORVALLISORE-1",978]
[{"$nulls":16},"CORVALLISORE-2",735,"CORVALLISORE-2",978]
[{"$nulls":16},"CORVALLISORE-3",735,"CORVALLISORE-3",978]
[{"$nulls":16},"CORVALLISORE-4",735,"CORVALLISORE-4",978]
[{"$nulls":16},"CORVALLISORE-5",855,"CORVALLISORE-5",1038]
[{"$nulls":16},"CORVALLISORE-6",1005,"CORVALLISORE-6",1338]
[{"$nulls":16},"CORVALLISORE-7",1047,"CORVALLISORE-7",1395]
[{"$nulls":16},"CORVALLISORE-8",1098,"CORVALLISORE-8",1455]
[{"$nulls":16},"CORVALLISORE-9",1191,"CORVALLISORE-9",1548]
[{"$nulls":16},"CORVALLISORW-1",1005,"CORVALLISORW-1",1341]
[{"$nulls":16},"CORVALLISORW-2",1095,"CORVALLISORW-2",1419]
[{"$nulls":16},"CORVALLISORW-3",1200,"CORVALLISORW-3",1494]
[{"$nulls":16},"CORVALLISORW-4",1353,"CORVALLISORW-4",1566]
[{"$nulls":16},"CORVALLISORW-5",1407,"CORVALLISORW-5",1653]
[{"$nulls":16},"CORVALLISORO-1E",1056,"CORVALLISORO-1E",1407]
[{"$nulls":16},"CORVALLISORO-2E",1170,"CORVALLISORO-2E",1482]
[{"$nulls":16},"CORVALLISORO-3E",1338,"CORVALLISORO-3E",1581]
[{"$nulls":16},"CORVALLISORO-1",918,"CORVALLISORO-1",1071]
[{"$nulls":16},"CORVALLISORO-2",1017,"CORVALLISORO-2",1332]
[{"$nulls":16},"CORVALLISORO-3",1230,"CORVALLISORO-3",1491]
[{"$nulls":16},"CORVALLISORO-4",1401,"CORVALLISORO-4",1686]
[{"$nulls":16},"CORVALLISORO-5",1437,"CORVALLISORO-5",1824]
[{"$nulls":16},"CORVALLISORO-6",1494,"CORVALLISORO-6",1842]
[{"$nulls":16},"CORVALLISORO-7",1524,"CORVALLISORO-7",1860]
[{"$nulls":16},"EUGENEORE-1",741,"EUGENEORE-1",987]
[{"$nulls":16},"EUGENEORE-2",741,"EUGENEORE-2",987]
[{"$nulls":16},"EUGENEORE-3",741,"EUGENEORE-3",987]
[{"$nulls":16},"EUGENEORE-4",741,"EUGENEORE-4",987]
[{"$nulls":16},"EUGENEORE-5",828,"EUGENEORE-5",1086]
[{"$nulls":16},"EUGENEORE-6",918,"EUGENEORE-6",1221]
[{"$nulls":16},"EUGENEORE-7",993,"EUGENEORE-7",1299]
[{"$nulls":16},"EUGENEORE-8",1113,"EUGENEORE-8",1380]
[{"$nulls":16},"EUGENEORE-9",1155,"EUGENEORE-9",1515]
[{"$nulls":16},"EUGENEORW-1",948,"EUGENEORW-1",1224]
[{"$nulls":16},"EUGENEORW-2",1110,"EUGENEORW-2",1332]
[{"$nulls":16},"EUGENEORW-3",1158,"EUGENEORW-3",1431]
[{"$nulls":16},"EUGENEORW-4",1242,"EUGENEORW-4",1545]
[{"$nulls":16},"EUGENEORW-5",1317,"EUGENEORW-5",1680]
[{"$nulls":16},"EUGENEORO-1E",1086,"EUGENEORO-1E",1314]
[{"$nulls":16},"EUGENEORO-2E",1146,"EUGENEORO-2E",1416]
[{"$nulls":16},"EUGENEORO-3E",1221,"EUGENEORO-3E",1566]
[{"$nulls":16},"EUGENEORO-1",888,"EUGENEORO-1",1101]
[{"$nulls":16},"EUGENEORO-2",1053,"EUGENEORO-2",1218]
[{"$nulls":16},"EUGENEORO-3",1173,"EUGENEORO-3",1428]
[{"$nulls":16},"EUGENEORO-4",1305,"EUGENEORO-4",1731]
[{"$nulls":16},"EUGENEORO-5",1461,"EUGENEORO-5",1947]
[{"$nulls":16},"EUGENEORO-6",1476,"EUGENEORO-6",1968]
[{"$nulls":16},"EUGENEORO-7",1491,"EUGENEORO-7",1986]
[{"$nulls":16},"KLAMATH FALLSORE-1",627,"KLAMATH FALLSORE-1",837]
[{"$nulls":16},"KLAMATH FALLSORE-2",627,"KLAMATH FALLSORE-2",837]
[{"$nulls":16},"KLAMATH FALLSORE-3",627,"KLAMATH FALLSORE-3",837]
[{"$nulls":16},"KLAMATH FALLSORE-4",627,"KLAMATH FALLSORE-4",837]
[{"$nulls":16},"KLAMATH FALLSORE-5",711,"KLAMATH FALLSORE-5",900]
[{"$nulls":16},"KLAMATH FALLSORE-6",831,"KLAMATH FALLSORE-6",1110]
[{"$nulls":16},"KLAMATH FALLSORE-7",876,"KLAMATH FALLSORE-7",1167]
[{"$nulls":16},"KLAMATH FALLSORE-8",942,"KLAMATH FALLSORE-8",1227]
[{"$nulls":16},"KLAMATH FALLSORE-9",1008,"KLAMATH FALLSORE-9",1302]
[{"$nulls":16},"KLAMATH FALLSORW-1",834,"KLAMATH FALLSORW-1",1110]
[{"$nulls":16},"KLAMATH FALLSORW-2",942,"KLAMATH FALLSORW-2",1191]
[{"$nulls":16},"KLAMATH FALLSORW-3",1014,"KLAMATH FALLSORW-3",1269]
[{"$nulls":16},"KLAMATH FALLSORW-4",1122,"KLAMATH FALLSORW-4",1317]
[{"$nulls":16},"KLAMATH FALLSORW-5",1182,"KLAMATH FALLSORW-5",1371]
[{"$nulls":16},"KLAMATH FALLSORO-1E",900,"KLAMATH FALLSORO-1E",1179]
[{"$nulls":16},"KLAMATH FALLSORO-2E",993,"KLAMATH FALLSORO-2E",1257]
[{"$nulls":16},"KLAMATH FALLSORO-3E",1110,"KLAMATH FALLSORO-3E",1323]
[{"$nulls":16},"KLAMATH FALLSORO-1",771,"KLAMATH FALLSORO-1",924]
[{"$nulls":16},"KLAMATH FALLSORO-2",879,"KLAMATH FALLSORO-2",1104]
[{"$nulls":16},"KLAMATH FALLSORO-3",1035,"KLAMATH FALLSORO-3",1266]
[{"$nulls":16},"KLAMATH FALLSORO-4",1173,"KLAMATH FALLSORO-4",1395]
[{"$nulls":16},"KLAMATH FALLSORO-5",1209,"KLAMATH FALLSORO-5",1485]
[{"$nulls":16},"KLAMATH FALLSORO-6",1269,"KLAMATH FALLSORO-6",1500]
[{"$nulls":16},"KLAMATH FALLSORO-7",1293,"KLAMATH FALLSORO-7",1515]
[{"$nulls":16},"CARLISLE BARRACKSPAE-1",897,"CARLISLE BARRACKSPAE-1",1164]
[{"$nulls":16},"CARLISLE BARRACKSPAE-2",897,"CARLISLE BARRACKSPAE-2",1164]
[{"$nulls":16},"CARLISLE BARRACKSPAE-3",897,"CARLISLE BARRACKSPAE-3",1164]
[{"$nulls":16},"CARLISLE BARRACKSPAE-4",897,"CARLISLE BARRACKSPAE-4",1164]
[{"$nulls":16},"CARLISLE BARRACKSPAE-5",1029,"CARLISLE BARRACKSPAE-5",1233]
[{"$nulls":16},"CARLISLE BARRACKSPAE-6",1104,"CARLISLE BARRACKSPAE-6",1386]
[{"$nulls":16},"CARLISLE BARRACKSPAE-7",1167,"CARLISLE BARRACKSPAE-7",1434]
[{"$nulls":16},"CARLISLE BARRACKSPAE-8",1263,"CARLISLE BARRACKSPAE-8",1485]
[{"$nulls":16},"CARLISLE BARRACKSPAE-9",1311,"CARLISLE BARRACKSPAE-9",1593]
[{"$nulls":16},"CARLISLE BARRACKSPAW-1",1137,"CARLISLE BARRACKSPAW-1",1386]
[{"$nulls":16},"CARLISLE BARRACKSPAW-2",1263,"CARLISLE BARRACKSPAW-2",1455]
[{"$nulls":16},"CARLISLE BARRACKSPAW-3",1314,"CARLISLE BARRACKSPAW-3",1518]
[{"$nulls":16},"CARLISLE BARRACKSPAW-4",1398,"CARLISLE BARRACKSPAW-4",1620]
[{"$nulls":16},"CARLISLE BARRACKSPAW-5",1443,"CARLISLE BARRACKSPAW-5",1743]
[{"$nulls":16},"CARLISLE BARRACKSPAO-1E",1233,"CARLISLE BARRACKSPAO-1E",1443]
[{"$nulls":16},"CARLISLE BARRACKSPAO-2E",1299,"CARLISLE BARRACKSPAO-2E",1509]
[{"$nulls":16},"CARLISLE BARRACKSPAO-3E",1386,"CARLISLE BARRACKSPAO-3E",1638]
[{"$nulls":16},"CARLISLE BARRACKSPAO-1",1095,"CARLISLE BARRACKSPAO-1",1251]
[{"$nulls":16},"CARLISLE BARRACKSPAO-2",1209,"CARLISLE BARRACKSPAO-2",1383]
[{"$nulls":16},"CARLISLE BARRACKSPAO-3",1329,"CARLISLE BARRACKSPAO-3",1515]
[{"$nulls":16},"CARLISLE BARRACKSPAO-4",1437,"CARLISLE BARRACKSPAO-4",1788]
[{"$nulls":16},"CARLISLE BARRACKSPAO-5",1488,"CARLISLE BARRACKSPAO-5",1986]
[{"$nulls":16},"CARLISLE BARRACKSPAO-6",1518,"CARLISLE BARRACKSPAO-6",2004]
[{"$nulls":16},"CARLISLE BARRACKSPAO-7",1548,"CARLISLE BARRACKSPAO-7",2025]
[{"$nulls":16},"PHILADELPHIAPAE-1",1164,"PHILADELPHIAPAE-1",1554]
[{"$nulls":16},"PHILADELPHIAPAE-2",1164,"PHILADELPHIAPAE-2",1554]
[{"$nulls":16},"PHILADELPHIAPAE-3",1164,"PHILADELPHIAPAE-3",1554]
[{"$nulls":16},"PHILADELPHIAPAE-4",1164,"PHILADELPHIAPAE-4",1554]
[{"$nulls":16},"PHILADELPHIAPAE-5",1308,"PHILADELPHIAPAE-5",1701]
[{"$nulls":16},"PHILADELPHIAPAE-6",1509,"PHILADELPHIAPAE-6",2010]
[{"$nulls":16},"PHILADELPHIAPAE-7",1578,"PHILADELPHIAPAE-7",2106]
[{"$nulls":16},"PHILADELPHIAPAE-8",1764,"PHILADELPHIAPAE-8",2208]
[{"$nulls":16},"PHILADELPHIAPAE-9",1860,"PHILADELPHIAPAE-9",2298]
[{"$nulls":16},"PHILADELPHIAPAW-1",1509,"PHILADELPHIAPAW-1",2013]
[{"$nulls":16},"PHILADELPHIAPAW-2",1761,"PHILADELPHIAPAW-2",2148]
[{"$nulls":16},"PHILADELPHIAPAW-3",1869,"PHILADELPHIAPAW-3",2274]
[{"$nulls":16},"PHILADELPHIAPAW-4",2034,"PHILADELPHIAPAW-4",2304]
[{"$nulls":16},"PHILADELPHIAPAW-5",2130,"PHILADELPHIAPAW-5",2343]
[{"$nulls":16},"PHILADELPHIAPAO-1E",1701,"PHILADELPHIAPAO-1E",2127]
[{"$nulls":16},"PHILADELPHIAPAO-2E",1836,"PHILADELPHIAPAO-2E",2256]
[{"$nulls":16},"PHILADELPHIAPAO-3E",2010,"PHILADELPHIAPAO-3E",2310]
[{"$nulls":16},"PHILADELPHIAPAO-1",1404,"PHILADELPHIAPAO-1",1734]
[{"$nulls":16},"PHILADELPHIAPAO-2",1650,"PHILADELPHIAPAO-2",2004]
[{"$nulls":16},"PHILADELPHIAPAO-3",1899,"PHILADELPHIAPAO-3",2268]
[{"$nulls":16},"PHILADELPHIAPAO-4",2115,"PHILADELPHIAPAO-4",2358]
[{"$nulls":16},"PHILADELPHIAPAO-5",2175,"PHILADELPHIAPAO-5",2421]
[{"$nulls":16},"PHILADELPHIAPAO-6",2274,"PHILADELPHIAPAO-6",2445]
[{"$nulls":16},"PHILADELPHIAPAO-7",2319,"PHILADELPHIAPAO-7",2469]
[{"$nulls":16},"NAS WILLOW GROVEPAE-1",1233,"NAS WILLOW GROVEPAE-1",1635]
[{"$nulls":16},"NAS WILLOW GROVEPAE-2",1233,"NAS WILLOW GROVEPAE-2",1635]
[{"$nulls":16},"NAS WILLOW GROVEPAE-3",1233,"NAS WILLOW GROVEPAE-3",1635]
[{"$nulls":16},"NAS WILLOW GROVEPAE-4",1233,"NAS WILLOW GROVEPAE-4",1635]
[{"$nulls":16},"NAS WILLOW GROVEPAE-5",1413,"NAS WILLOW GROVEPAE-5",1764]
[{"$nulls":16},"NAS WILLOW GROVEPAE-6",1560,"NAS WILLOW GROVEPAE-6",2079]
[{"$nulls":16},"NAS WILLOW GROVEPAE-7",1641,"NAS WILLOW GROVEPAE-7",2103]
[{"$nulls":16},"NAS WILLOW GROVEPAE-8",1827,"NAS WILLOW GROVEPAE-8",2130]
[{"$nulls":16},"NAS WILLOW GROVEPAE-9",1926,"NAS WILLOW GROVEPAE-9",2220]
[{"$nulls":16},"NAS WILLOW GROVEPAW-1",1584,"NAS WILLOW GROVEPAW-1",2079]
[{"$nulls":16},"NAS WILLOW GROVEPAW-2",1824,"NAS WILLOW GROVEPAW-2",2115]
[{"$nulls":16},"NAS WILLOW GROVEPAW-3",1935,"NAS WILLOW GROVEPAW-3",2148]
[{"$nulls":16},"NAS WILLOW GROVEPAW-4",2085,"NAS WILLOW GROVEPAW-4",2247]
[{"$nulls":16},"NAS WILLOW GROVEPAW-5",2109,"NAS WILLOW GROVEPAW-5",2361]
[{"$nulls":16},"NAS WILLOW GROVEPAO-1E",1764,"NAS WILLOW GROVEPAO-1E",2109]
[{"$nulls":16},"NAS WILLOW GROVEPAO-2E",1902,"NAS WILLOW GROVEPAO-2E",2142]
[{"$nulls":16},"NAS WILLOW GROVEPAO-3E",2079,"NAS WILLOW GROVEPAO-3E",2265]
[{"$nulls":16},"NAS WILLOW GROVEPAO-1",1503,"NAS WILLOW GROVEPAO-1",1800]
[{"$nulls":16},"NAS WILLOW GROVEPAO-2",1719,"NAS WILLOW GROVEPAO-2",2073]
[{"$nulls":16},"NAS WILLOW GROVEPAO-3",1965,"NAS WILLOW GROVEPAO-3",2148]
[{"$nulls":16},"NAS WILLOW GROVEPAO-4",2106,"NAS WILLOW GROVEPAO-4",2406]
[{"$nulls":16},"NAS WILLOW GROVEPAO-5",2121,"NAS WILLOW GROVEPAO-5",2592]
[{"$nulls":16},"NAS WILLOW GROVEPAO-6",2148,"NAS WILLOW GROVEPAO-6",2619]
[{"$nulls":16},"NAS WILLOW GROVEPAO-7",2190,"NAS WILLOW GROVEPAO-7",2646]
[{"$nulls":16},"PITTSBURGHPAE-1",1002,"PITTSBURGHPAE-1",1338]
[{"$nulls":16},"PITTSBURGHPAE-2",1002,"PITTSBURGHPAE-2",1338]
[{"$nulls":16},"PITTSBURGHPAE-3",1002,"PITTSBURGHPAE-3",1338]
[{"$nulls":16},"PITTSBURGHPAE-4",1002,"PITTSBURGHPAE-4",1338]
[{"$nulls":16},"PITTSBURGHPAE-5",1146,"PITTSBURGHPAE-5",1443]
[{"$nulls":16},"PITTSBURGHPAE-6",1245,"PITTSBURGHPAE-6",1539]
[{"$nulls":16},"PITTSBURGHPAE-7",1344,"PITTSBURGHPAE-7",1605]
[{"$nulls":16},"PITTSBURGHPAE-8",1464,"PITTSBURGHPAE-8",1677]
[{"$nulls":16},"PITTSBURGHPAE-9",1491,"PITTSBURGHPAE-9",1800]
[{"$nulls":16},"PITTSBURGHPAW-1",1296,"PITTSBURGHPAW-1",1542]
[{"$nulls":16},"PITTSBURGHPAW-2",1461,"PITTSBURGHPAW-2",1635]
[{"$nulls":16},"PITTSBURGHPAW-3",1494,"PITTSBURGHPAW-3",1722]
[{"$nulls":16},"PITTSBURGHPAW-4",1554,"PITTSBURGHPAW-4",1830]
[{"$nulls":16},"PITTSBURGHPAW-5",1620,"PITTSBURGHPAW-5",1956]
[{"$nulls":16},"PITTSBURGHPAO-1E",1443,"PITTSBURGHPAO-1E",1620]
[{"$nulls":16},"PITTSBURGHPAO-2E",1485,"PITTSBURGHPAO-2E",1710]
[{"$nulls":16},"PITTSBURGHPAO-3E",1539,"PITTSBURGHPAO-3E",1848]
[{"$nulls":16},"PITTSBURGHPAO-1",1230,"PITTSBURGHPAO-1",1455]
[{"$nulls":16},"PITTSBURGHPAO-2",1407,"PITTSBURGHPAO-2",1536]
[{"$nulls":16},"PITTSBURGHPAO-3",1506,"PITTSBURGHPAO-3",1719]
[{"$nulls":16},"PITTSBURGHPAO-4",1611,"PITTSBURGHPAO-4",2004]
[{"$nulls":16},"PITTSBURGHPAO-5",1656,"PITTSBURGHPAO-5",2208]
[{"$nulls":16},"PITTSBURGHPAO-6",1722,"PITTSBURGHPAO-6",2229]
[{"$nulls":16},"PITTSBURGHPAO-7",1755,"PITTSBURGHPAO-7",2250]
[{"$nulls":16},"READINGPAE-1",741,"READINGPAE-1",990]
[{"$nulls":16},"READINGPAE-2",741,"READINGPAE-2",990]
[{"$nulls":16},"READINGPAE-3",741,"READINGPAE-3",990]
[{"$nulls":16},"READINGPAE-4",741,"READINGPAE-4",990]
[{"$nulls":16},"READINGPAE-5",831,"READINGPAE-5",1092]
[{"$nulls":16},"READINGPAE-6",1038,"READINGPAE-6",1383]
[{"$nulls":16},"READINGPAE-7",1068,"READINGPAE-7",1425]
[{"$nulls":16},"READINGPAE-8",1149,"READINGPAE-8",1470]
[{"$nulls":16},"READINGPAE-9",1239,"READINGPAE-9",1515]
[{"$nulls":16},"READINGPAW-1",1038,"READINGPAW-1",1383]
[{"$nulls":16},"READINGPAW-2",1146,"READINGPAW-2",1443]
[{"$nulls":16},"READINGPAW-3",1248,"READINGPAW-3",1497]
[{"$nulls":16},"READINGPAW-4",1392,"READINGPAW-4",1524]
[{"$nulls":16},"READINGPAW-5",1434,"READINGPAW-5",1554]
[{"$nulls":16},"READINGPAO-1E",1092,"READINGPAO-1E",1434]
[{"$nulls":16},"READINGPAO-2E",1221,"READINGPAO-2E",1491]
[{"$nulls":16},"READINGPAO-3E",1383,"READINGPAO-3E",1527]
[{"$nulls":16},"READINGPAO-1",888,"READINGPAO-1",1125]
[{"$nulls":16},"READINGPAO-2",1056,"READINGPAO-2",1377]
[{"$nulls":16},"READINGPAO-3",1278,"READINGPAO-3",1497]
[{"$nulls":16},"READINGPAO-4",1428,"READINGPAO-4",1566]
[{"$nulls":16},"READINGPAO-5",1455,"READINGPAO-5",1614]
[{"$nulls":16},"READINGPAO-6",1497,"READINGPAO-6",1629]
[{"$nulls":16},"READINGPAO-7",1527,"READINGPAO-7",1644]
[{"$nulls":16},"STATE COLLEGEPAE-1",819,"STATE COLLEGEPAE-1",1044]
[{"$nulls":16},"STATE COLLEGEPAE-2",819,"STATE COLLEGEPAE-2",1044]
[{"$nulls":16},"STATE COLLEGEPAE-3",819,"STATE COLLEGEPAE-3",1044]
[{"$nulls":16},"STATE COLLEGEPAE-4",819,"STATE COLLEGEPAE-4",1044]
[{"$nulls":16},"STATE COLLEGEPAE-5",927,"STATE COLLEGEPAE-5",1107]
[{"$nulls":16},"STATE COLLEGEPAE-6",999,"STATE COLLEGEPAE-6",1329]
[{"$nulls":16},"STATE COLLEGEPAE-7",1047,"STATE COLLEGEPAE-7",1389]
[{"$nulls":16},"STATE COLLEGEPAE-8",1152,"STATE COLLEGEPAE-8",1452]
[{"$nulls":16},"STATE COLLEGEPAE-9",1221,"STATE COLLEGEPAE-9",1551]
[{"$nulls":16},"STATE COLLEGEPAW-1",1017,"STATE COLLEGEPAW-1",1332]
[{"$nulls":16},"STATE COLLEGEPAW-2",1149,"STATE COLLEGEPAW-2",1416]
[{"$nulls":16},"STATE COLLEGEPAW-3",1227,"STATE COLLEGEPAW-3",1494]
[{"$nulls":16},"STATE COLLEGEPAW-4",1344,"STATE COLLEGEPAW-4",1572]
[{"$nulls":16},"STATE COLLEGEPAW-5",1404,"STATE COLLEGEPAW-5",1665]
[{"$nulls":16},"STATE COLLEGEPAO-1E",1107,"STATE COLLEGEPAO-1E",1401]
[{"$nulls":16},"STATE COLLEGEPAO-2E",1206,"STATE COLLEGEPAO-2E",1482]
[{"$nulls":16},"STATE COLLEGEPAO-3E",1329,"STATE COLLEGEPAO-3E",1587]
[{"$nulls":16},"STATE COLLEGEPAO-1",978,"STATE COLLEGEPAO-1",1131]
[{"$nulls":16},"STATE COLLEGEPAO-2",1083,"STATE COLLEGEPAO-2",1326]
[{"$nulls":16},"STATE COLLEGEPAO-3",1248,"STATE COLLEGEPAO-3",1491]
[{"$nulls":16},"STATE COLLEGEPAO-4",1395,"STATE COLLEGEPAO-4",1701]
[{"$nulls":16},"STATE COLLEGEPAO-5",1434,"STATE COLLEGEPAO-5",1851]
[{"$nulls":16},"STATE COLLEGEPAO-6",1494,"STATE COLLEGEPAO-6",1872]
[{"$nulls":16},"STATE COLLEGEPAO-7",1524,"STATE COLLEGEPAO-7",1890]
[{"$nulls":16},"ERIEPAE-1",738,"ERIEPAE-1",933]
[{"$nulls":16},"ERIEPAE-2",738,"ERIEPAE-2",933]
[{"$nulls":16},"ERIEPAE-3",738,"ERIEPAE-3",933]
[{"$nulls":16},"ERIEPAE-4",738,"ERIEPAE-4",933]
[{"$nulls":16},"ERIEPAE-5",831,"ERIEPAE-5",990]
[{"$nulls":16},"ERIEPAE-6",882,"ERIEPAE-6",1104]
[{"$nulls":16},"ERIEPAE-7",936,"ERIEPAE-7",1134]
[{"$nulls":16},"ERIEPAE-8",1014,"ERIEPAE-8",1164]
[{"$nulls":16},"ERIEPAE-9",1047,"ERIEPAE-9",1224]
[{"$nulls":16},"ERIEPAW-1",912,"ERIEPAW-1",1104]
[{"$nulls":16},"ERIEPAW-2",1011,"ERIEPAW-2",1146]
[{"$nulls":16},"ERIEPAW-3",1050,"ERIEPAW-3",1185]
[{"$nulls":16},"ERIEPAW-4",1110,"ERIEPAW-4",1239]
[{"$nulls":16},"ERIEPAW-5",1140,"ERIEPAW-5",1305]
[{"$nulls":16},"ERIEPAO-1E",990,"ERIEPAO-1E",1140]
[{"$nulls":16},"ERIEPAO-2E",1041,"ERIEPAO-2E",1179]
[{"$nulls":16},"ERIEPAO-3E",1104,"ERIEPAO-3E",1251]
[{"$nulls":16},"ERIEPAO-1",876,"ERIEPAO-1",1002]
[{"$nulls":16},"ERIEPAO-2",969,"ERIEPAO-2",1101]
[{"$nulls":16},"ERIEPAO-3",1062,"ERIEPAO-3",1185]
[{"$nulls":16},"ERIEPAO-4",1137,"ERIEPAO-4",1329]
[{"$nulls":16},"ERIEPAO-5",1155,"ERIEPAO-5",1431]
[{"$nulls":16},"ERIEPAO-6",1185,"ERIEPAO-6",1446]
[{"$nulls":16},"ERIEPAO-7",1209,"ERIEPAO-7",1461]
[{"$nulls":16},"WILKES-BARRE/SCRANTONPAE-1",717,"WILKES-BARRE/SCRANTONPAE-1",879]
[{"$nulls":16},"WILKES-BARRE/SCRANTONPAE-2",717,"WILKES-BARRE/SCRANTONPAE-2",879]
[{"$nulls":16},"WILKES-BARRE/SCRANTONPAE-3",717,"WILKES-BARRE/SCRANTONPAE-3",879]
[{"$nulls":16},"WILKES-BARRE/SCRANTONPAE-4",717,"WILKES-BARRE/SCRANTONPAE-4",879]
[{"$nulls":16},"WILKES-BARRE/SCRANTONPAE-5",780,"WILKES-BARRE/SCRANTONPAE-5",948]
[{"$nulls":16},"WILKES-BARRE/SCRANTONPAE-6",852,"WILKES-BARRE/SCRANTONPAE-6",1137]
[{"$nulls":16},"WILKES-BARRE/SCRANTONPAE-7",882,"WILKES-BARRE/SCRANTONPAE-7",1161]
[{"$nulls":16},"WILKES-BARRE/SCRANTONPAE-8",984,"WILKES-BARRE/SCRANTONPAE-8",1188]
[{"$nulls":16},"WILKES-BARRE/SCRANTONPAE-9",1044,"WILKES-BARRE/SCRANTONPAE-9",1245]
[{"$nulls":16},"WILKES-BARRE/SCRANTONPAW-1",852,"WILKES-BARRE/SCRANTONPAW-1",1137]
[{"$nulls":16},"WILKES-BARRE/SCRANTONPAW-2",984,"WILKES-BARRE/SCRANTONPAW-2",1170]
[{"$nulls":16},"WILKES-BARRE/SCRANTONPAW-3",1050,"WILKES-BARRE/SCRANTONPAW-3",1203]
[{"$nulls":16},"WILKES-BARRE/SCRANTONPAW-4",1143,"WILKES-BARRE/SCRANTONPAW-4",1260]
[{"$nulls":16},"WILKES-BARRE/SCRANTONPAW-5",1167,"WILKES-BARRE/SCRANTONPAW-5",1323]
[{"$nulls":16},"WILKES-BARRE/SCRANTONPAO-1E",948,"WILKES-BARRE/SCRANTONPAO-1E",1167]
[{"$nulls":16},"WILKES-BARRE/SCRANTONPAO-2E",1029,"WILKES-BARRE/SCRANTONPAO-2E",1200]
[{"$nulls":16},"WILKES-BARRE/SCRANTONPAO-3E",1137,"WILKES-BARRE/SCRANTONPAO-3E",1269]
[{"$nulls":16},"WILKES-BARRE/SCRANTONPAO-1",810,"WILKES-BARRE/SCRANTONPAO-1",969]
[{"$nulls":16},"WILKES-BARRE/SCRANTONPAO-2",924,"WILKES-BARRE/SCRANTONPAO-2",1131]
[{"$nulls":16},"WILKES-BARRE/SCRANTONPAO-3",1068,"WILKES-BARRE/SCRANTONPAO-3",1203]
[{"$nulls":16},"WILKES-BARRE/SCRANTONPAO-4",1164,"WILKES-BARRE/SCRANTONPAO-4",1350]
[{"$nulls":16},"WILKES-BARRE/SCRANTONPAO-5",1179,"WILKES-BARRE/SCRANTONPAO-5",1455]
[{"$nulls":16},"WILKES-BARRE/SCRANTONPAO-6",1203,"WILKES-BARRE/SCRANTONPAO-6",1470]
[{"$nulls":16},"WILKES-BARRE/SCRANTONPAO-7",1227,"WILKES-BARRE/SCRANTONPAO-7",1482]
[{"$nulls":16},"ALLENTOWN/BETHLEHEMPAE-1",954,"ALLENTOWN/BETHLEHEMPAE-1",1242]
[{"$nulls":16},"ALLENTOWN/BETHLEHEMPAE-2",954,"ALLENTOWN/BETHLEHEMPAE-2",1242]
[{"$nulls":16},"ALLENTOWN/BETHLEHEMPAE-3",954,"ALLENTOWN/BETHLEHEMPAE-3",1242]
[{"$nulls":16},"ALLENTOWN/BETHLEHEMPAE-4",954,"ALLENTOWN/BETHLEHEMPAE-4",1242]
[{"$nulls":16},"ALLENTOWN/BETHLEHEMPAE-5",1095,"ALLENTOWN/BETHLEHEMPAE-5",1323]
[{"$nulls":16},"ALLENTOWN/BETHLEHEMPAE-6",1206,"ALLENTOWN/BETHLEHEMPAE-6",1608]
[{"$nulls":16},"ALLENTOWN/BETHLEHEMPAE-7",1251,"ALLENTOWN/BETHLEHEMPAE-7",1671]
[{"$nulls":16},"ALLENTOWN/BETHLEHEMPAE-8",1380,"ALLENTOWN/BETHLEHEMPAE-8",1737]
[{"$nulls":16},"ALLENTOWN/BETHLEHEMPAE-9",1467,"ALLENTOWN/BETHLEHEMPAE-9",1863]
[{"$nulls":16},"ALLENTOWN/BETHLEHEMPAW-1",1212,"ALLENTOWN/BETHLEHEMPAW-1",1611]
[{"$nulls":16},"ALLENTOWN/BETHLEHEMPAW-2",1377,"ALLENTOWN/BETHLEHEMPAW-2",1698]
[{"$nulls":16},"ALLENTOWN/BETHLEHEMPAW-3",1476,"ALLENTOWN/BETHLEHEMPAW-3",1779]
[{"$nulls":16},"ALLENTOWN/BETHLEHEMPAW-4",1623,"ALLENTOWN/BETHLEHEMPAW-4",1896]
[{"$nulls":16},"ALLENTOWN/BETHLEHEMPAW-5",1686,"ALLENTOWN/BETHLEHEMPAW-5",2034]
[{"$nulls":16},"ALLENTOWN/BETHLEHEMPAO-1E",1323,"ALLENTOWN/BETHLEHEMPAO-1E",1683]
[{"$nulls":16},"ALLENTOWN/BETHLEHEMPAO-2E",1449,"ALLENTOWN/BETHLEHEMPAO-2E",1767]
[{"$nulls":16},"ALLENTOWN/BETHLEHEMPAO-3E",1608,"ALLENTOWN/BETHLEHEMPAO-3E",1917]
[{"$nulls":16},"ALLENTOWN/BETHLEHEMPAO-1",1161,"ALLENTOWN/BETHLEHEMPAO-1",1353]
[{"$nulls":16},"ALLENTOWN/BETHLEHEMPAO-2",1296,"ALLENTOWN/BETHLEHEMPAO-2",1602]
[{"$nulls":16},"ALLENTOWN/BETHLEHEMPAO-3",1506,"ALLENTOWN/BETHLEHEMPAO-3",1776]
[{"$nulls":16},"ALLENTOWN/BETHLEHEMPAO-4",1677,"ALLENTOWN/BETHLEHEMPAO-4",2085]
[{"$nulls":16},"ALLENTOWN/BETHLEHEMPAO-5",1731,"ALLENTOWN/BETHLEHEMPAO-5",2310]
[{"$nulls":16},"ALLENTOWN/BETHLEHEMPAO-6",1779,"ALLENTOWN/BETHLEHEMPAO-6",2331]
[{"$nulls":16},"ALLENTOWN/BETHLEHEMPAO-7",1815,"ALLENTOWN/BETHLEHEMPAO-7",2355]
[{"$nulls":16},"JOHNSTOWNPAE-1",630,"JOHNSTOWNPAE-1",840]
[{"$nulls":16},"JOHNSTOWNPAE-2",630,"JOHNSTOWNPAE-2",840]
[{"$nulls":16},"JOHNSTOWNPAE-3",630,"JOHNSTOWNPAE-3",840]
[{"$nulls":16},"JOHNSTOWNPAE-4",630,"JOHNSTOWNPAE-4",840]
[{"$nulls":16},"JOHNSTOWNPAE-5",705,"JOHNSTOWNPAE-5",927]
[{"$nulls":16},"JOHNSTOWNPAE-6",834,"JOHNSTOWNPAE-6",1113]
[{"$nulls":16},"JOHNSTOWNPAE-7",867,"JOHNSTOWNPAE-7",1155]
[{"$nulls":16},"JOHNSTOWNPAE-8",963,"JOHNSTOWNPAE-8",1203]
[{"$nulls":16},"JOHNSTOWNPAE-9",1020,"JOHNSTOWNPAE-9",1272]
[{"$nulls":16},"JOHNSTOWNPAW-1",837,"JOHNSTOWNPAW-1",1113]
[{"$nulls":16},"JOHNSTOWNPAW-2",963,"JOHNSTOWNPAW-2",1176]
[{"$nulls":16},"JOHNSTOWNPAW-3",1026,"JOHNSTOWNPAW-3",1233]
[{"$nulls":16},"JOHNSTOWNPAW-4",1125,"JOHNSTOWNPAW-4",1287]
[{"$nulls":16},"JOHNSTOWNPAW-5",1167,"JOHNSTOWNPAW-5",1350]
[{"$nulls":16},"JOHNSTOWNPAO-1E",927,"JOHNSTOWNPAO-1E",1167]
[{"$nulls":16},"JOHNSTOWNPAO-2E",1008,"JOHNSTOWNPAO-2E",1224]
[{"$nulls":16},"JOHNSTOWNPAO-3E",1113,"JOHNSTOWNPAO-3E",1296]
[{"$nulls":16},"JOHNSTOWNPAO-1",753,"JOHNSTOWNPAO-1",948]
[{"$nulls":16},"JOHNSTOWNPAO-2",897,"JOHNSTOWNPAO-2",1110]
[{"$nulls":16},"JOHNSTOWNPAO-3",1047,"JOHNSTOWNPAO-3",1230]
[{"$nulls":16},"JOHNSTOWNPAO-4",1161,"JOHNSTOWNPAO-4",1374]
[{"$nulls":16},"JOHNSTOWNPAO-5",1188,"JOHNSTOWNPAO-5",1479]
[{"$nulls":16},"JOHNSTOWNPAO-6",1233,"JOHNSTOWNPAO-6",1494]
[{"$nulls":16},"JOHNSTOWNPAO-7",1257,"JOHNSTOWNPAO-7",1509]
[{"$nulls":16},"NEWPORTRIE-1",1134,"NEWPORTRIE-1",1512]
[{"$nulls":16},"NEWPORTRIE-2",1134,"NEWPORTRIE-2",1512]
[{"$nulls":16},"NEWPORTRIE-3",1134,"NEWPORTRIE-3",1512]
[{"$nulls":16},"NEWPORTRIE-4",1134,"NEWPORTRIE-4",1512]
[{"$nulls":16},"NEWPORTRIE-5",1287,"NEWPORTRIE-5",1716]
[{"$nulls":16},"NEWPORTRIE-6",1599,"NEWPORTRIE-6",2130]
[{"$nulls":16},"NEWPORTRIE-7",1668,"NEWPORTRIE-7",2223]
[{"$nulls":16},"NEWPORTRIE-8",1797,"NEWPORTRIE-8",2325]
[{"$nulls":16},"NEWPORTRIE-9",1926,"NEWPORTRIE-9",2508]
[{"$nulls":16},"NEWPORTRIW-1",1599,"NEWPORTRIW-1",2133]
[{"$nulls":16},"NEWPORTRIW-2",1794,"NEWPORTRIW-2",2265]
[{"$nulls":16},"NEWPORTRIW-3",1941,"NEWPORTRIW-3",2391]
[{"$nulls":16},"NEWPORTRIW-4",2154,"NEWPORTRIW-4",2550]
[{"$nulls":16},"NEWPORTRIW-5",2247,"NEWPORTRIW-5",2742]
[{"$nulls":16},"NEWPORTRIO-1E",1716,"NEWPORTRIO-1E",2244]
[{"$nulls":16},"NEWPORTRIO-2E",1899,"NEWPORTRIO-2E",2373]
[{"$nulls":16},"NEWPORTRIO-3E",2130,"NEWPORTRIO-3E",2580]
[{"$nulls":16},"NEWPORTRIO-1",1320,"NEWPORTRIO-1",1761]
[{"$nulls":16},"NEWPORTRIO-2",1644,"NEWPORTRIO-2",2124]
[{"$nulls":16},"NEWPORTRIO-3",1980,"NEWPORTRIO-3",2385]
[{"$nulls":16},"NEWPORTRIO-4",2235,"NEWPORTRIO-4",2814]
[{"$nulls":16},"NEWPORTRIO-5",2343,"NEWPORTRIO-5",3123]
[{"$nulls":16},"NEWPORTRIO-6",2391,"NEWPORTRIO-6",3153]
[{"$nulls":16},"NEWPORTRIO-7",2439,"NEWPORTRIO-7",3183]
[{"$nulls":16},"PROVIDENCERIE-1",1113,"PROVIDENCERIE-1",1485]
[{"$nulls":16},"PROVIDENCERIE-2",1113,"PROVIDENCERIE-2",1485]
[{"$nulls":16},"PROVIDENCERIE-3",1113,"PROVIDENCERIE-3",1485]
[{"$nulls":16},"PROVIDENCERIE-4",1113,"PROVIDENCERIE-4",1485]
[{"$nulls":16},"PROVIDENCERIE-5",1269,"PROVIDENCERIE-5",1599]
[{"$nulls":16},"PROVIDENCERIE-6",1386,"PROVIDENCERIE-6",1761]
[{"$nulls":16},"PROVIDENCERIE-7",1491,"PROVIDENCERIE-7",1833]
[{"$nulls":16},"PROVIDENCERIE-8",1632,"PROVIDENCERIE-8",1908]
[{"$nulls":16},"PROVIDENCERIE-9",1683,"PROVIDENCERIE-9",2076]
[{"$nulls":16},"PROVIDENCERIW-1",1440,"PROVIDENCERIW-1",1764]
[{"$nulls":16},"PROVIDENCERIW-2",1629,"PROVIDENCERIW-2",1863]
[{"$nulls":16},"PROVIDENCERIW-3",1686,"PROVIDENCERIW-3",1956]
[{"$nulls":16},"PROVIDENCERIW-4",1779,"PROVIDENCERIW-4",2124]
[{"$nulls":16},"PROVIDENCERIW-5",1848,"PROVIDENCERIW-5",2319]
[{"$nulls":16},"PROVIDENCERIO-1E",1599,"PROVIDENCERIO-1E",1848]
[{"$nulls":16},"PROVIDENCERIO-2E",1671,"PROVIDENCERIO-2E",1941]
[{"$nulls":16},"PROVIDENCERIO-3E",1761,"PROVIDENCERIO-3E",2154]
[{"$nulls":16},"PROVIDENCERIO-1",1371,"PROVIDENCERIO-1",1617]
[{"$nulls":16},"PROVIDENCERIO-2",1560,"PROVIDENCERIO-2",1758]
[{"$nulls":16},"PROVIDENCERIO-3",1704,"PROVIDENCERIO-3",1953]
[{"$nulls":16},"PROVIDENCERIO-4",1839,"PROVIDENCERIO-4",2397]
[{"$nulls":16},"PROVIDENCERIO-5",2037,"PROVIDENCERIO-5",2715]
[{"$nulls":16},"PROVIDENCERIO-6",2058,"PROVIDENCERIO-6",2742]
[{"$nulls":16},"PROVIDENCERIO-7",2076,"PROVIDENCERIO-7",2769]
[{"$nulls":16},"BEAUFORT/PARRIS ISLANDSCE-1",957,"BEAUFORT/PARRIS ISLANDSCE-1",1137]
[{"$nulls":16},"BEAUFORT/PARRIS ISLANDSCE-2",957,"BEAUFORT/PARRIS ISLANDSCE-2",1137]
[{"$nulls":16},"BEAUFORT/PARRIS ISLANDSCE-3",957,"BEAUFORT/PARRIS ISLANDSCE-3",1137]
[{"$nulls":16},"BEAUFORT/PARRIS ISLANDSCE-4",957,"BEAUFORT/PARRIS ISLANDSCE-4",1137]
[{"$nulls":16},"BEAUFORT/PARRIS ISLANDSCE-5",1050,"BEAUFORT/PARRIS ISLANDSCE-5",1179]
[{"$nulls":16},"BEAUFORT/PARRIS ISLANDSCE-6",1104,"BEAUFORT/PARRIS ISLANDSCE-6",1446]
[{"$nulls":16},"BEAUFORT/PARRIS ISLANDSCE-7",1140,"BEAUFORT/PARRIS ISLANDSCE-7",1509]
[{"$nulls":16},"BEAUFORT/PARRIS ISLANDSCE-8",1233,"BEAUFORT/PARRIS ISLANDSCE-8",1578]
[{"$nulls":16},"BEAUFORT/PARRIS ISLANDSCE-9",1314,"BEAUFORT/PARRIS ISLANDSCE-9",1680]
[{"$nulls":16},"BEAUFORT/PARRIS ISLANDSCW-1",1122,"BEAUFORT/PARRIS ISLANDSCW-1",1449]
[{"$nulls":16},"BEAUFORT/PARRIS ISLANDSCW-2",1230,"BEAUFORT/PARRIS ISLANDSCW-2",1536]
[{"$nulls":16},"BEAUFORT/PARRIS ISLANDSCW-3",1323,"BEAUFORT/PARRIS ISLANDSCW-3",1620]
[{"$nulls":16},"BEAUFORT/PARRIS ISLANDSCW-4",1464,"BEAUFORT/PARRIS ISLANDSCW-4",1701]
[{"$nulls":16},"BEAUFORT/PARRIS ISLANDSCW-5",1524,"BEAUFORT/PARRIS ISLANDSCW-5",1797]
[{"$nulls":16},"BEAUFORT/PARRIS ISLANDSCO-1E",1179,"BEAUFORT/PARRIS ISLANDSCO-1E",1524]
[{"$nulls":16},"BEAUFORT/PARRIS ISLANDSCO-2E",1296,"BEAUFORT/PARRIS ISLANDSCO-2E",1608]
[{"$nulls":16},"BEAUFORT/PARRIS ISLANDSCO-3E",1446,"BEAUFORT/PARRIS ISLANDSCO-3E",1716]
[{"$nulls":16},"BEAUFORT/PARRIS ISLANDSCO-1",1098,"BEAUFORT/PARRIS ISLANDSCO-1",1209]
[{"$nulls":16},"BEAUFORT/PARRIS ISLANDSCO-2",1164,"BEAUFORT/PARRIS ISLANDSCO-2",1443]
[{"$nulls":16},"BEAUFORT/PARRIS ISLANDSCO-3",1350,"BEAUFORT/PARRIS ISLANDSCO-3",1617]
[{"$nulls":16},"BEAUFORT/PARRIS ISLANDSCO-4",1518,"BEAUFORT/PARRIS ISLANDSCO-4",1833]
[{"$nulls":16},"BEAUFORT/PARRIS ISLANDSCO-5",1557,"BEAUFORT/PARRIS ISLANDSCO-5",1986]
[{"$nulls":16},"BEAUFORT/PARRIS ISLANDSCO-6",1620,"BEAUFORT/PARRIS ISLANDSCO-6",2004]
[{"$nulls":16},"BEAUFORT/PARRIS ISLANDSCO-7",1653,"BEAUFORT/PARRIS ISLANDSCO-7",2025]
[{"$nulls":16},"CHARLESTONSCE-1",966,"CHARLESTONSCE-1",1194]
[{"$nulls":16},"CHARLESTONSCE-2",966,"CHARLESTONSCE-2",1194]
[{"$nulls":16},"CHARLESTONSCE-3",966,"CHARLESTONSCE-3",1194]
[{"$nulls":16},"CHARLESTONSCE-4",966,"CHARLESTONSCE-4",1194]
[{"$nulls":16},"CHARLESTONSCE-5",1056,"CHARLESTONSCE-5",1290]
[{"$nulls":16},"CHARLESTONSCE-6",1137,"CHARLESTONSCE-6",1515]
[{"$nulls":16},"CHARLESTONSCE-7",1200,"CHARLESTONSCE-7",1572]
[{"$nulls":16},"CHARLESTONSCE-8",1335,"CHARLESTONSCE-8",1635]
[{"$nulls":16},"CHARLESTONSCE-9",1404,"CHARLESTONSCE-9",1725]
[{"$nulls":16},"CHARLESTONSCW-1",1158,"CHARLESTONSCW-1",1515]
[{"$nulls":16},"CHARLESTONSCW-2",1332,"CHARLESTONSCW-2",1599]
[{"$nulls":16},"CHARLESTONSCW-3",1410,"CHARLESTONSCW-3",1677]
[{"$nulls":16},"CHARLESTONSCW-4",1530,"CHARLESTONSCW-4",1743]
[{"$nulls":16},"CHARLESTONSCW-5",1587,"CHARLESTONSCW-5",1818]
[{"$nulls":16},"CHARLESTONSCO-1E",1290,"CHARLESTONSCO-1E",1587]
[{"$nulls":16},"CHARLESTONSCO-2E",1389,"CHARLESTONSCO-2E",1665]
[{"$nulls":16},"CHARLESTONSCO-3E",1515,"CHARLESTONSCO-3E",1755]
[{"$nulls":16},"CHARLESTONSCO-1",1101,"CHARLESTONSCO-1",1314]
[{"$nulls":16},"CHARLESTONSCO-2",1257,"CHARLESTONSCO-2",1509]
[{"$nulls":16},"CHARLESTONSCO-3",1434,"CHARLESTONSCO-3",1674]
[{"$nulls":16},"CHARLESTONSCO-4",1578,"CHARLESTONSCO-4",1848]
[{"$nulls":16},"CHARLESTONSCO-5",1617,"CHARLESTONSCO-5",1974]
[{"$nulls":16},"CHARLESTONSCO-6",1677,"CHARLESTONSCO-6",1992]
[{"$nulls":16},"CHARLESTONSCO-7",1710,"CHARLESTONSCO-7",2013]
[{"$nulls":16},"COLUMBIA/FORT JACKSONSCE-1",900,"COLUMBIA/FORT JACKSONSCE-1",1158]
[{"$nulls":16},"COLUMBIA/FORT JACKSONSCE-2",900,"COLUMBIA/FORT JACKSONSCE-2",1158]
[{"$nulls":16},"COLUMBIA/FORT JACKSONSCE-3",900,"COLUMBIA/FORT JACKSONSCE-3",1158]
[{"$nulls":16},"COLUMBIA/FORT JACKSONSCE-4",900,"COLUMBIA/FORT JACKSONSCE-4",1158]
[{"$nulls":16},"COLUMBIA/FORT JACKSONSCE-5",990,"COLUMBIA/FORT JACKSONSCE-5",1284]
[{"$nulls":16},"COLUMBIA/FORT JACKSONSCE-6",1050,"COLUMBIA/FORT JACKSONSCE-6",1377]
[{"$nulls":16},"COLUMBIA/FORT JACKSONSCE-7",1167,"COLUMBIA/FORT JACKSONSCE-7",1461]
[{"$nulls":16},"COLUMBIA/FORT JACKSONSCE-8",1302,"COLUMBIA/FORT JACKSONSCE-8",1554]
[{"$nulls":16},"COLUMBIA/FORT JACKSONSCE-9",1329,"COLUMBIA/FORT JACKSONSCE-9",1710]
[{"$nulls":16},"COLUMBIA/FORT JACKSONSCW-1",1110,"COLUMBIA/FORT JACKSONSCW-1",1377]
[{"$nulls":16},"COLUMBIA/FORT JACKSONSCW-2",1302,"COLUMBIA/FORT JACKSONSCW-2",1500]
[{"$nulls":16},"COLUMBIA/FORT JACKSONSCW-3",1332,"COLUMBIA/FORT JACKSONSCW-3",1614]
[{"$nulls":16},"COLUMBIA/FORT JACKSONSCW-4",1398,"COLUMBIA/FORT JACKSONSCW-4",1746]
[{"$nulls":16},"COLUMBIA/FORT JACKSONSCW-5",1485,"COLUMBIA/FORT JACKSONSCW-5",1899]
[{"$nulls":16},"COLUMBIA/FORT JACKSONSCO-1E",1284,"COLUMBIA/FORT JACKSONSCO-1E",1482]
[{"$nulls":16},"COLUMBIA/FORT JACKSONSCO-2E",1323,"COLUMBIA/FORT JACKSONSCO-2E",1599]
[{"$nulls":16},"COLUMBIA/FORT JACKSONSCO-3E",1377,"COLUMBIA/FORT JACKSONSCO-3E",1770]
[{"$nulls":16},"COLUMBIA/FORT JACKSONSCO-1",1032,"COLUMBIA/FORT JACKSONSCO-1",1293]
[{"$nulls":16},"COLUMBIA/FORT JACKSONSCO-2",1242,"COLUMBIA/FORT JACKSONSCO-2",1374]
[{"$nulls":16},"COLUMBIA/FORT JACKSONSCO-3",1344,"COLUMBIA/FORT JACKSONSCO-3",1611]
[{"$nulls":16},"COLUMBIA/FORT JACKSONSCO-4",1473,"COLUMBIA/FORT JACKSONSCO-4",1959]
[{"$nulls":16},"COLUMBIA/FORT JACKSONSCO-5",1656,"COLUMBIA/FORT JACKSONSCO-5",2208]
[{"$nulls":16},"COLUMBIA/FORT JACKSONSCO-6",1674,"COLUMBIA/FORT JACKSONSCO-6",2229]
[{"$nulls":16},"COLUMBIA/FORT JACKSONSCO-7",1689,"COLUMBIA/FORT JACKSONSCO-7",2253]
[{"$nulls":16},"GREENVILLESCE-1",771,"GREENVILLESCE-1",972]
[{"$nulls":16},"GREENVILLESCE-2",771,"GREENVILLESCE-2",972]
[{"$nulls":16},"GREENVILLESCE-3",771,"GREENVILLESCE-3",972]
[{"$nulls":16},"GREENVILLESCE-4",771,"GREENVILLESCE-4",972]
[{"$nulls":16},"GREENVILLESCE-5",861,"GREENVILLESCE-5",1038]
[{"$nulls":16},"GREENVILLESCE-6",915,"GREENVILLESCE-6",1209]
[{"$nulls":16},"GREENVILLESCE-7",981,"GREENVILLESCE-7",1308]
[{"$nulls":16},"GREENVILLESCE-8",1074,"GREENVILLESCE-8",1413]
[{"$nulls":16},"GREENVILLESCE-9",1158,"GREENVILLESCE-9",1545]
[{"$nulls":16},"GREENVILLESCW-1",948,"GREENVILLESCW-1",1212]
[{"$nulls":16},"GREENVILLESCW-2",1071,"GREENVILLESCW-2",1350]
[{"$nulls":16},"GREENVILLESCW-3",1131,"GREENVILLESCW-3",1479]
[{"$nulls":16},"GREENVILLESCW-4",1233,"GREENVILLESCW-4",1569]
[{"$nulls":16},"GREENVILLESCW-5",1332,"GREENVILLESCW-5",1674]
[{"$nulls":16},"GREENVILLESCO-1E",1038,"GREENVILLESCO-1E",1329]
[{"$nulls":16},"GREENVILLESCO-2E",1113,"GREENVILLESCO-2E",1461]
[{"$nulls":16},"GREENVILLESCO-3E",1209,"GREENVILLESCO-3E",1584]
[{"$nulls":16},"GREENVILLESCO-1",906,"GREENVILLESCO-1",1059]
[{"$nulls":16},"GREENVILLESCO-2",1017,"GREENVILLESCO-2",1206]
[{"$nulls":16},"GREENVILLESCO-3",1149,"GREENVILLESCO-3",1476]
[{"$nulls":16},"GREENVILLESCO-4",1317,"GREENVILLESCO-4",1713]
[{"$nulls":16},"GREENVILLESCO-5",1413,"GREENVILLESCO-5",1881]
[{"$nulls":16},"GREENVILLESCO-6",1479,"GREENVILLESCO-6",1902]
[{"$nulls":16},"GREENVILLESCO-7",1509,"GREENVILLESCO-7",1920]
[{"$nulls":16},"MYRTLE BEACHSCE-1",861,"MYRTLE BEACHSCE-1",1098]
[{"$nulls":16},"MYRTLE BEACHSCE-2",861,"MYRTLE BEACHSCE-2",1098]
[{"$nulls":16},"MYRTLE BEACHSCE-3",861,"MYRTLE BEACHSCE-3",1098]
[{"$nulls":16},"MYRTLE BEACHSCE-4",861,"MYRTLE BEACHSCE-4",1098]
[{"$nulls":16},"MYRTLE BEACHSCE-5",963,"MYRTLE BEACHSCE-5",1182]
[{"$nulls":16},"MYRTLE BEACHSCE-6",1026,"MYRTLE BEACHSCE-6",1329]
[{"$nulls":16},"MYRTLE BEACHSCE-7",1104,"MYRTLE BEACHSCE-7",1428]
[{"$nulls":16},"MYRTLE BEACHSCE-8",1212,"MYRTLE BEACHSCE-8",1533]
[{"$nulls":16},"MYRTLE BEACHSCE-9",1257,"MYRTLE BEACHSCE-9",1644]
[{"$nulls":16},"MYRTLE BEACHSCW-1",1065,"MYRTLE BEACHSCW-1",1332]
[{"$nulls":16},"MYRTLE BEACHSCW-2",1209,"MYRTLE BEACHSCW-2",1470]
[{"$nulls":16},"MYRTLE BEACHSCW-3",1260,"MYRTLE BEACHSCW-3",1602]
[{"$nulls":16},"MYRTLE BEACHSCW-4",1353,"MYRTLE BEACHSCW-4",1656]
[{"$nulls":16},"MYRTLE BEACHSCW-5",1452,"MYRTLE BEACHSCW-5",1722]
[{"$nulls":16},"MYRTLE BEACHSCO-1E",1182,"MYRTLE BEACHSCO-1E",1449]
[{"$nulls":16},"MYRTLE BEACHSCO-2E",1245,"MYRTLE BEACHSCO-2E",1584]
[{"$nulls":16},"MYRTLE BEACHSCO-3E",1329,"MYRTLE BEACHSCO-3E",1668]
[{"$nulls":16},"MYRTLE BEACHSCO-1",1014,"MYRTLE BEACHSCO-1",1197]
[{"$nulls":16},"MYRTLE BEACHSCO-2",1152,"MYRTLE BEACHSCO-2",1326]
[{"$nulls":16},"MYRTLE BEACHSCO-3",1275,"MYRTLE BEACHSCO-3",1599]
[{"$nulls":16},"MYRTLE BEACHSCO-4",1437,"MYRTLE BEACHSCO-4",1746]
[{"$nulls":16},"MYRTLE BEACHSCO-5",1500,"MYRTLE BEACHSCO-5",1851]
[{"$nulls":16},"MYRTLE BEACHSCO-6",1602,"MYRTLE BEACHSCO-6",1869]
[{"$nulls":16},"MYRTLE BEACHSCO-7",1635,"MYRTLE BEACHSCO-7",1887]
[{"$nulls":16},"SUMTER/SHAW AFBSCE-1",774,"SUMTER/SHAW AFBSCE-1",945]
[{"$nulls":16},"SUMTER/SHAW AFBSCE-2",774,"SUMTER/SHAW AFBSCE-2",945]
[{"$nulls":16},"SUMTER/SHAW AFBSCE-3",774,"SUMTER/SHAW AFBSCE-3",945]
[{"$nulls":16},"SUMTER/SHAW AFBSCE-4",774,"SUMTER/SHAW AFBSCE-4",945]
[{"$nulls":16},"SUMTER/SHAW AFBSCE-5",840,"SUMTER/SHAW AFBSCE-5",1020]
[{"$nulls":16},"SUMTER/SHAW AFBSCE-6",882,"SUMTER/SHAW AFBSCE-6",1170]
[{"$nulls":16},"SUMTER/SHAW AFBSCE-7",951,"SUMTER/SHAW AFBSCE-7",1215]
[{"$nulls":16},"SUMTER/SHAW AFBSCE-8",1050,"SUMTER/SHAW AFBSCE-8",1266]
[{"$nulls":16},"SUMTER/SHAW AFBSCE-9",1098,"SUMTER/SHAW AFBSCE-9",1386]
[{"$nulls":16},"SUMTER/SHAW AFBSCW-1",918,"SUMTER/SHAW AFBSCW-1",1173]
[{"$nulls":16},"SUMTER/SHAW AFBSCW-2",1050,"SUMTER/SHAW AFBSCW-2",1236]
[{"$nulls":16},"SUMTER/SHAW AFBSCW-3",1101,"SUMTER/SHAW AFBSCW-3",1296]
[{"$nulls":16},"SUMTER/SHAW AFBSCW-4",1182,"SUMTER/SHAW AFBSCW-4",1422]
[{"$nulls":16},"SUMTER/SHAW AFBSCW-5",1227,"SUMTER/SHAW AFBSCW-5",1566]
[{"$nulls":16},"SUMTER/SHAW AFBSCO-1E",1020,"SUMTER/SHAW AFBSCO-1E",1227]
[{"$nulls":16},"SUMTER/SHAW AFBSCO-2E",1086,"SUMTER/SHAW AFBSCO-2E",1287]
[{"$nulls":16},"SUMTER/SHAW AFBSCO-3E",1170,"SUMTER/SHAW AFBSCO-3E",1443]
[{"$nulls":16},"SUMTER/SHAW AFBSCO-1",870,"SUMTER/SHAW AFBSCO-1",1038]
[{"$nulls":16},"SUMTER/SHAW AFBSCO-2",996,"SUMTER/SHAW AFBSCO-2",1167]
[{"$nulls":16},"SUMTER/SHAW AFBSCO-3",1116,"SUMTER/SHAW AFBSCO-3",1293]
[{"$nulls":16},"SUMTER/SHAW AFBSCO-4",1221,"SUMTER/SHAW AFBSCO-4",1623]
[{"$nulls":16},"SUMTER/SHAW AFBSCO-5",1395,"SUMTER/SHAW AFBSCO-5",1860]
[{"$nulls":16},"SUMTER/SHAW AFBSCO-6",1407,"SUMTER/SHAW AFBSCO-6",1878]
[{"$nulls":16},"SUMTER/SHAW AFBSCO-7",1422,"SUMTER/SHAW AFBSCO-7",1896]
[{"$nulls":16},"FLORENCESCE-1",699,"FLORENCESCE-1",897]
[{"$nulls":16},"FLORENCESCE-2",699,"FLORENCESCE-2",897]
[{"$nulls":16},"FLORENCESCE-3",699,"FLORENCESCE-3",897]
[{"$nulls":16},"FLORENCESCE-4",699,"FLORENCESCE-4",897]
[{"$nulls":16},"FLORENCESCE-5",777,"FLORENCESCE-5",975]
[{"$nulls":16},"FLORENCESCE-6",852,"FLORENCESCE-6",1137]
[{"$nulls":16},"FLORENCESCE-7",900,"FLORENCESCE-7",1197]
[{"$nulls":16},"FLORENCESCE-8",1008,"FLORENCESCE-8",1266]
[{"$nulls":16},"FLORENCESCE-9",1059,"FLORENCESCE-9",1359]
[{"$nulls":16},"FLORENCESCW-1",867,"FLORENCESCW-1",1137]
[{"$nulls":16},"FLORENCESCW-2",1005,"FLORENCESCW-2",1224]
[{"$nulls":16},"FLORENCESCW-3",1062,"FLORENCESCW-3",1308]
[{"$nulls":16},"FLORENCESCW-4",1152,"FLORENCESCW-4",1377]
[{"$nulls":16},"FLORENCESCW-5",1212,"FLORENCESCW-5",1458]
[{"$nulls":16},"FLORENCESCO-1E",975,"FLORENCESCO-1E",1212]
[{"$nulls":16},"FLORENCESCO-2E",1047,"FLORENCESCO-2E",1296]
[{"$nulls":16},"FLORENCESCO-3E",1137,"FLORENCESCO-3E",1389]
[{"$nulls":16},"FLORENCESCO-1",816,"FLORENCESCO-1",993]
[{"$nulls":16},"FLORENCESCO-2",948,"FLORENCESCO-2",1134]
[{"$nulls":16},"FLORENCESCO-3",1077,"FLORENCESCO-3",1305]
[{"$nulls":16},"FLORENCESCO-4",1206,"FLORENCESCO-4",1491]
[{"$nulls":16},"FLORENCESCO-5",1245,"FLORENCESCO-5",1620]
[{"$nulls":16},"FLORENCESCO-6",1308,"FLORENCESCO-6",1638]
[{"$nulls":16},"FLORENCESCO-7",1335,"FLORENCESCO-7",1653]
[{"$nulls":16},"RAPID CITY/ELLSWORTH AFBSDE-1",705,"RAPID CITY/ELLSWORTH AFBSDE-1",942]
[{"$nulls":16},"RAPID CITY/ELLSWORTH AFBSDE-2",705,"RAPID CITY/ELLSWORTH AFBSDE-2",942]
[{"$nulls":16},"RAPID CITY/ELLSWORTH AFBSDE-3",705,"RAPID CITY/ELLSWORTH AFBSDE-3",942]
[{"$nulls":16},"RAPID CITY/ELLSWORTH AFBSDE-4",705,"RAPID CITY/ELLSWORTH AFBSDE-4",942]
[{"$nulls":16},"RAPID CITY/ELLSWORTH AFBSDE-5",798,"RAPID CITY/ELLSWORTH AFBSDE-5",1038]
[{"$nulls":16},"RAPID CITY/ELLSWORTH AFBSDE-6",990,"RAPID CITY/ELLSWORTH AFBSDE-6",1320]
[{"$nulls":16},"RAPID CITY/ELLSWORTH AFBSDE-7",996,"RAPID CITY/ELLSWORTH AFBSDE-7",1326]
[{"$nulls":16},"RAPID CITY/ELLSWORTH AFBSDE-8",1092,"RAPID CITY/ELLSWORTH AFBSDE-8",1335]
[{"$nulls":16},"RAPID CITY/ELLSWORTH AFBSDE-9",1182,"RAPID CITY/ELLSWORTH AFBSDE-9",1398]
[{"$nulls":16},"RAPID CITY/ELLSWORTH AFBSDW-1",990,"RAPID CITY/ELLSWORTH AFBSDW-1",1320]
[{"$nulls":16},"RAPID CITY/ELLSWORTH AFBSDW-2",1092,"RAPID CITY/ELLSWORTH AFBSDW-2",1329]
[{"$nulls":16},"RAPID CITY/ELLSWORTH AFBSDW-3",1188,"RAPID CITY/ELLSWORTH AFBSDW-3",1338]
[{"$nulls":16},"RAPID CITY/ELLSWORTH AFBSDW-4",1320,"RAPID CITY/ELLSWORTH AFBSDW-4",1419]
[{"$nulls":16},"RAPID CITY/ELLSWORTH AFBSDW-5",1329,"RAPID CITY/ELLSWORTH AFBSDW-5",1515]
[{"$nulls":16},"RAPID CITY/ELLSWORTH AFBSDO-1E",1038,"RAPID CITY/ELLSWORTH AFBSDO-1E",1329]
[{"$nulls":16},"RAPID CITY/ELLSWORTH AFBSDO-2E",1161,"RAPID CITY/ELLSWORTH AFBSDO-2E",1338]
[{"$nulls":16},"RAPID CITY/ELLSWORTH AFBSDO-3E",1320,"RAPID CITY/ELLSWORTH AFBSDO-3E",1434]
[{"$nulls":16},"RAPID CITY/ELLSWORTH AFBSDO-1",846,"RAPID CITY/ELLSWORTH AFBSDO-1",1068]
[{"$nulls":16},"RAPID CITY/ELLSWORTH AFBSDO-2",1005,"RAPID CITY/ELLSWORTH AFBSDO-2",1314]
[{"$nulls":16},"RAPID CITY/ELLSWORTH AFBSDO-3",1218,"RAPID CITY/ELLSWORTH AFBSDO-3",1338]
[{"$nulls":16},"RAPID CITY/ELLSWORTH AFBSDO-4",1326,"RAPID CITY/ELLSWORTH AFBSDO-4",1551]
[{"$nulls":16},"RAPID CITY/ELLSWORTH AFBSDO-5",1332,"RAPID CITY/ELLSWORTH AFBSDO-5",1707]
[{"$nulls":16},"RAPID CITY/ELLSWORTH AFBSDO-6",1338,"RAPID CITY/ELLSWORTH AFBSDO-6",1722]
[{"$nulls":16},"RAPID CITY/ELLSWORTH AFBSDO-7",1365,"RAPID CITY/ELLSWORTH AFBSDO-7",1740]
[{"$nulls":16},"SIOUX FALLSSDE-1",717,"SIOUX FALLSSDE-1",954]
[{"$nulls":16},"SIOUX FALLSSDE-2",717,"SIOUX FALLSSDE-2",954]
[{"$nulls":16},"SIOUX FALLSSDE-3",717,"SIOUX FALLSSDE-3",954]
[{"$nulls":16},"SIOUX FALLSSDE-4",717,"SIOUX FALLSSDE-4",954]
[{"$nulls":16},"SIOUX FALLSSDE-5",804,"SIOUX FALLSSDE-5",1071]
[{"$nulls":16},"SIOUX FALLSSDE-6",879,"SIOUX FALLSSDE-6",1170]
[{"$nulls":16},"SIOUX FALLSSDE-7",960,"SIOUX FALLSSDE-7",1212]
[{"$nulls":16},"SIOUX FALLSSDE-8",1089,"SIOUX FALLSSDE-8",1257]
[{"$nulls":16},"SIOUX FALLSSDE-9",1122,"SIOUX FALLSSDE-9",1350]
[{"$nulls":16},"SIOUX FALLSSDW-1",912,"SIOUX FALLSSDW-1",1170]
[{"$nulls":16},"SIOUX FALLSSDW-2",1089,"SIOUX FALLSSDW-2",1230]
[{"$nulls":16},"SIOUX FALLSSDW-3",1125,"SIOUX FALLSSDW-3",1287]
[{"$nulls":16},"SIOUX FALLSSDW-4",1182,"SIOUX FALLSSDW-4",1374]
[{"$nulls":16},"SIOUX FALLSSDW-5",1224,"SIOUX FALLSSDW-5",1476]
[{"$nulls":16},"SIOUX FALLSSDO-1E",1071,"SIOUX FALLSSDO-1E",1221]
[{"$nulls":16},"SIOUX FALLSSDO-2E",1113,"SIOUX FALLSSDO-2E",1278]
[{"$nulls":16},"SIOUX FALLSSDO-3E",1170,"SIOUX FALLSSDO-3E",1389]
[{"$nulls":16},"SIOUX FALLSSDO-1",840,"SIOUX FALLSSDO-1",1080]
[{"$nulls":16},"SIOUX FALLSSDO-2",1032,"SIOUX FALLSSDO-2",1167]
[{"$nulls":16},"SIOUX FALLSSDO-3",1134,"SIOUX FALLSSDO-3",1284]
[{"$nulls":16},"SIOUX FALLSSDO-4",1218,"SIOUX FALLSSDO-4",1515]
[{"$nulls":16},"SIOUX FALLSSDO-5",1263,"SIOUX FALLSSDO-5",1683]
[{"$nulls":16},"SIOUX FALLSSDO-6",1287,"SIOUX FALLSSDO-6",1698]
[{"$nulls":16},"SIOUX FALLSSDO-7",1314,"SIOUX FALLSSDO-7",1716]
[{"$nulls":16},"CHATTANOOGATNE-1",744,"CHATTANOOGATNE-1",981]
[{"$nulls":16},"CHATTANOOGATNE-2",744,"CHATTANOOGATNE-2",981]
[{"$nulls":16},"CHATTANOOGATNE-3",744,"CHATTANOOGATNE-3",981]
[{"$nulls":16},"CHATTANOOGATNE-4",744,"CHATTANOOGATNE-4",981]
[{"$nulls":16},"CHATTANOOGATNE-5",852,"CHATTANOOGATNE-5",1059]
[{"$nulls":16},"CHATTANOOGATNE-6",915,"CHATTANOOGATNE-6",1134]
[{"$nulls":16},"CHATTANOOGATNE-7",984,"CHATTANOOGATNE-7",1176]
[{"$nulls":16},"CHATTANOOGATNE-8",1074,"CHATTANOOGATNE-8",1218]
[{"$nulls":16},"CHATTANOOGATNE-9",1098,"CHATTANOOGATNE-9",1326]
[{"$nulls":16},"CHATTANOOGATNW-1",951,"CHATTANOOGATNW-1",1134]
[{"$nulls":16},"CHATTANOOGATNW-2",1071,"CHATTANOOGATNW-2",1194]
[{"$nulls":16},"CHATTANOOGATNW-3",1098,"CHATTANOOGATNW-3",1248]
[{"$nulls":16},"CHATTANOOGATNW-4",1143,"CHATTANOOGATNW-4",1356]
[{"$nulls":16},"CHATTANOOGATNW-5",1185,"CHATTANOOGATNW-5",1485]
[{"$nulls":16},"CHATTANOOGATNO-1E",1059,"CHATTANOOGATNO-1E",1185]
[{"$nulls":16},"CHATTANOOGATNO-2E",1092,"CHATTANOOGATNO-2E",1239]
[{"$nulls":16},"CHATTANOOGATNO-3E",1134,"CHATTANOOGATNO-3E",1377]
[{"$nulls":16},"CHATTANOOGATNO-1",903,"CHATTANOOGATNO-1",1065]
[{"$nulls":16},"CHATTANOOGATNO-2",1032,"CHATTANOOGATNO-2",1131]
[{"$nulls":16},"CHATTANOOGATNO-3",1107,"CHATTANOOGATNO-3",1245]
[{"$nulls":16},"CHATTANOOGATNO-4",1179,"CHATTANOOGATNO-4",1533]
[{"$nulls":16},"CHATTANOOGATNO-5",1308,"CHATTANOOGATNO-5",1743]
[{"$nulls":16},"CHATTANOOGATNO-6",1320,"CHATTANOOGATNO-6",1758]
[{"$nulls":16},"CHATTANOOGATNO-7",1332,"CHATTANOOGATNO-7",1776]
[{"$nulls":16},"KNOXVILLETNE-1",798,"KNOXVILLETNE-1",990]
[{"$nulls":16},"KNOXVILLETNE-2",798,"KNOXVILLETNE-2",990]
[{"$nulls":16},"KNOXVILLETNE-3",798,"KNOXVILLETNE-3",990]
[{"$nulls":16},"KNOXVILLETNE-4",798,"KNOXVILLETNE-4",990]
[{"$nulls":16},"KNOXVILLETNE-5",885,"KNOXVILLETNE-5",1053]
[{"$nulls":16},"KNOXVILLETNE-6",954,"KNOXVILLETNE-6",1269]
[{"$nulls":16},"KNOXVILLETNE-7",993,"KNOXVILLETNE-7",1311]
[{"$nulls":16},"KNOXVILLETNE-8",1095,"KNOXVILLETNE-8",1353]
[{"$nulls":16},"KNOXVILLETNE-9",1164,"KNOXVILLETNE-9",1467]
[{"$nulls":16},"KNOXVILLETNW-1",966,"KNOXVILLETNW-1",1272]
[{"$nulls":16},"KNOXVILLETNW-2",1092,"KNOXVILLETNW-2",1326]
[{"$nulls":16},"KNOXVILLETNW-3",1170,"KNOXVILLETNW-3",1380]
[{"$nulls":16},"KNOXVILLETNW-4",1281,"KNOXVILLETNW-4",1500]
[{"$nulls":16},"KNOXVILLETNW-5",1320,"KNOXVILLETNW-5",1644]
[{"$nulls":16},"KNOXVILLETNO-1E",1053,"KNOXVILLETNO-1E",1317]
[{"$nulls":16},"KNOXVILLETNO-2E",1149,"KNOXVILLETNO-2E",1371]
[{"$nulls":16},"KNOXVILLETNO-3E",1269,"KNOXVILLETNO-3E",1524]
[{"$nulls":16},"KNOXVILLETNO-1",927,"KNOXVILLETNO-1",1077]
[{"$nulls":16},"KNOXVILLETNO-2",1032,"KNOXVILLETNO-2",1266]
[{"$nulls":16},"KNOXVILLETNO-3",1191,"KNOXVILLETNO-3",1377]
[{"$nulls":16},"KNOXVILLETNO-4",1314,"KNOXVILLETNO-4",1701]
[{"$nulls":16},"KNOXVILLETNO-5",1449,"KNOXVILLETNO-5",1932]
[{"$nulls":16},"KNOXVILLETNO-6",1464,"KNOXVILLETNO-6",1950]
[{"$nulls":16},"KNOXVILLETNO-7",1479,"KNOXVILLETNO-7",1971]
[{"$nulls":16},"MEMPHISTNE-1",873,"MEMPHISTNE-1",1146]
[{"$nulls":16},"MEMPHISTNE-2",873,"MEMPHISTNE-2",1146]
[{"$nulls":16},"MEMPHISTNE-3",873,"MEMPHISTNE-3",1146]
[{"$nulls":16},"MEMPHISTNE-4",873,"MEMPHISTNE-4",1146]
[{"$nulls":16},"MEMPHISTNE-5",975,"MEMPHISTNE-5",1263]
[{"$nulls":16},"MEMPHISTNE-6",1122,"MEMPHISTNE-6",1497]
[{"$nulls":16},"MEMPHISTNE-7",1164,"MEMPHISTNE-7",1554]
[{"$nulls":16},"MEMPHISTNE-8",1311,"MEMPHISTNE-8",1614]
[{"$nulls":16},"MEMPHISTNE-9",1383,"MEMPHISTNE-9",1707]
[{"$nulls":16},"MEMPHISTNW-1",1125,"MEMPHISTNW-1",1500]
[{"$nulls":16},"MEMPHISTNW-2",1308,"MEMPHISTNW-2",1578]
[{"$nulls":16},"MEMPHISTNW-3",1389,"MEMPHISTNW-3",1653]
[{"$nulls":16},"MEMPHISTNW-4",1512,"MEMPHISTNW-4",1728]
[{"$nulls":16},"MEMPHISTNW-5",1566,"MEMPHISTNW-5",1818]
[{"$nulls":16},"MEMPHISTNO-1E",1263,"MEMPHISTNO-1E",1566]
[{"$nulls":16},"MEMPHISTNO-2E",1365,"MEMPHISTNO-2E",1641]
[{"$nulls":16},"MEMPHISTNO-3E",1497,"MEMPHISTNO-3E",1743]
[{"$nulls":16},"MEMPHISTNO-1",1026,"MEMPHISTNO-1",1290]
[{"$nulls":16},"MEMPHISTNO-2",1224,"MEMPHISTNO-2",1491]
[{"$nulls":16},"MEMPHISTNO-3",1413,"MEMPHISTNO-3",1650]
[{"$nulls":16},"MEMPHISTNO-4",1560,"MEMPHISTNO-4",1851]
[{"$nulls":16},"MEMPHISTNO-5",1596,"MEMPHISTNO-5",1995]
[{"$nulls":16},"MEMPHISTNO-6",1653,"MEMPHISTNO-6",2016]
[{"$nulls":16},"MEMPHISTNO-7",1686,"MEMPHISTNO-7",2034]
[{"$nulls":16},"NASHVILLETNE-1",999,"NASHVILLETNE-1",1269]
[{"$nulls":16},"NASHVILLETNE-2",999,"NASHVILLETNE-2",1269]
[{"$nulls":16},"NASHVILLETNE-3",999,"NASHVILLETNE-3",1269]
[{"$nulls":16},"NASHVILLETNE-4",999,"NASHVILLETNE-4",1269]
[{"$nulls":16},"NASHVILLETNE-5",1146,"NASHVILLETNE-5",1320]
[{"$nulls":16},"NASHVILLETNE-6",1227,"NASHVILLETNE-6",1356]
[{"$nulls":16},"NASHVILLETNE-7",1272,"NASHVILLETNE-7",1404]
[{"$nulls":16},"NASHVILLETNE-8",1326,"NASHVILLETNE-8",1455]
[{"$nulls":16},"NASHVILLETNE-9",1338,"NASHVILLETNE-9",1569]
[{"$nulls":16},"NASHVILLETNW-1",1251,"NASHVILLETNW-1",1356]
[{"$nulls":16},"NASHVILLETNW-2",1326,"NASHVILLETNW-2",1425]
[{"$nulls":16},"NASHVILLETNW-3",1338,"NASHVILLETNW-3",1488]
[{"$nulls":16},"NASHVILLETNW-4",1368,"NASHVILLETNW-4",1599]
[{"$nulls":16},"NASHVILLETNW-5",1416,"NASHVILLETNW-5",1728]
[{"$nulls":16},"NASHVILLETNO-1E",1320,"NASHVILLETNO-1E",1413]
[{"$nulls":16},"NASHVILLETNO-2E",1335,"NASHVILLETNO-2E",1479]
[{"$nulls":16},"NASHVILLETNO-3E",1356,"NASHVILLETNO-3E",1617]
[{"$nulls":16},"NASHVILLETNO-1",1221,"NASHVILLETNO-1",1323]
[{"$nulls":16},"NASHVILLETNO-2",1302,"NASHVILLETNO-2",1353]
[{"$nulls":16},"NASHVILLETNO-3",1341,"NASHVILLETNO-3",1485]
[{"$nulls":16},"NASHVILLETNO-4",1410,"NASHVILLETNO-4",1776]
[{"$nulls":16},"NASHVILLETNO-5",1488,"NASHVILLETNO-5",1983]
[{"$nulls":16},"NASHVILLETNO-6",1503,"NASHVILLETNO-6",2004]
[{"$nulls":16},"NASHVILLETNO-7",1518,"NASHVILLETNO-7",2025]
[{"$nulls":16},"JOHNSON CITY/KINGSPORTTNE-1",624,"JOHNSON CITY/KINGSPORTTNE-1",828]
[{"$nulls":16},"JOHNSON CITY/KINGSPORTTNE-2",624,"JOHNSON CITY/KINGSPORTTNE-2",828]
[{"$nulls":16},"JOHNSON CITY/KINGSPORTTNE-3",624,"JOHNSON CITY/KINGSPORTTNE-3",828]
[{"$nulls":16},"JOHNSON CITY/KINGSPORTTNE-4",624,"JOHNSON CITY/KINGSPORTTNE-4",828]
[{"$nulls":16},"JOHNSON CITY/KINGSPORTTNE-5",732,"JOHNSON CITY/KINGSPORTTNE-5",870]
[{"$nulls":16},"JOHNSON CITY/KINGSPORTTNE-6",870,"JOHNSON CITY/KINGSPORTTNE-6",1158]
[{"$nulls":16},"JOHNSON CITY/KINGSPORTTNE-7",888,"JOHNSON CITY/KINGSPORTTNE-7",1182]
[{"$nulls":16},"JOHNSON CITY/KINGSPORTTNE-8",927,"JOHNSON CITY/KINGSPORTTNE-8",1206]
[{"$nulls":16},"JOHNSON CITY/KINGSPORTTNE-9",1017,"JOHNSON CITY/KINGSPORTTNE-9",1275]
[{"$nulls":16},"JOHNSON CITY/KINGSPORTTNW-1",870,"JOHNSON CITY/KINGSPORTTNW-1",1161]
[{"$nulls":16},"JOHNSON CITY/KINGSPORTTNW-2",924,"JOHNSON CITY/KINGSPORTTNW-2",1191]
[{"$nulls":16},"JOHNSON CITY/KINGSPORTTNW-3",1026,"JOHNSON CITY/KINGSPORTTNW-3",1224]
[{"$nulls":16},"JOHNSON CITY/KINGSPORTTNW-4",1164,"JOHNSON CITY/KINGSPORTTNW-4",1293]
[{"$nulls":16},"JOHNSON CITY/KINGSPORTTNW-5",1188,"JOHNSON CITY/KINGSPORTTNW-5",1374]
[{"$nulls":16},"JOHNSON CITY/KINGSPORTTNO-1E",891,"JOHNSON CITY/KINGSPORTTNO-1E",1188]
[{"$nulls":16},"JOHNSON CITY/KINGSPORTTNO-2E",996,"JOHNSON CITY/KINGSPORTTNO-2E",1218]
[{"$nulls":16},"JOHNSON CITY/KINGSPORTTNO-3E",1158,"JOHNSON CITY/KINGSPORTTNO-3E",1305]
[{"$nulls":16},"JOHNSON CITY/KINGSPORTTNO-1",783,"JOHNSON CITY/KINGSPORTTNO-1",903]
[{"$nulls":16},"JOHNSON CITY/KINGSPORTTNO-2",864,"JOHNSON CITY/KINGSPORTTNO-2",1152]
[{"$nulls":16},"JOHNSON CITY/KINGSPORTTNO-3",1056,"JOHNSON CITY/KINGSPORTTNO-3",1221]
[{"$nulls":16},"JOHNSON CITY/KINGSPORTTNO-4",1185,"JOHNSON CITY/KINGSPORTTNO-4",1407]
[{"$nulls":16},"JOHNSON CITY/KINGSPORTTNO-5",1200,"JOHNSON CITY/KINGSPORTTNO-5",1539]
[{"$nulls":16},"JOHNSON CITY/KINGSPORTTNO-6",1224,"JOHNSON CITY/KINGSPORTTNO-6",1554]
[{"$nulls":16},"JOHNSON CITY/KINGSPORTTNO-7",1248,"JOHNSON CITY/KINGSPORTTNO-7",1569]
[{"$nulls":16},"MANCHESTER/TULLAHOMATNE-1",645,"MANCHESTER/TULLAHOMATNE-1",801]
[{"$nulls":16},"MANCHESTER/TULLAHOMATNE-2",645,"MANCHESTER/TULLAHOMATNE-2",801]
[{"$nulls":16},"MANCHESTER/TULLAHOMATNE-3",645,"MANCHESTER/TULLAHOMATNE-3",801]
[{"$nulls":16},"MANCHESTER/TULLAHOMATNE-4",645,"MANCHESTER/TULLAHOMATNE-4",801]
[{"$nulls":16},"MANCHESTER/TULLAHOMATNE-5",678,"MANCHESTER/TULLAHOMATNE-5",906]
[{"$nulls":16},"MANCHESTER/TULLAHOMATNE-6",819,"MANCHESTER/TULLAHOMATNE-6",1092]
[{"$nulls":16},"MANCHESTER/TULLAHOMATNE-7",840,"MANCHESTER/TULLAHOMATNE-7",1122]
[{"$nulls":16},"MANCHESTER/TULLAHOMATNE-8",942,"MANCHESTER/TULLAHOMATNE-8",1155]
[{"$nulls":16},"MANCHESTER/TULLAHOMATNE-9",999,"MANCHESTER/TULLAHOMATNE-9",1215]
[{"$nulls":16},"MANCHESTER/TULLAHOMATNW-1",819,"MANCHESTER/TULLAHOMATNW-1",1092]
[{"$nulls":16},"MANCHESTER/TULLAHOMATNW-2",939,"MANCHESTER/TULLAHOMATNW-2",1134]
[{"$nulls":16},"MANCHESTER/TULLAHOMATNW-3",1005,"MANCHESTER/TULLAHOMATNW-3",1176]
[{"$nulls":16},"MANCHESTER/TULLAHOMATNW-4",1098,"MANCHESTER/TULLAHOMATNW-4",1230]
[{"$nulls":16},"MANCHESTER/TULLAHOMATNW-5",1128,"MANCHESTER/TULLAHOMATNW-5",1293]
[{"$nulls":16},"MANCHESTER/TULLAHOMATNO-1E",906,"MANCHESTER/TULLAHOMATNO-1E",1128]
[{"$nulls":16},"MANCHESTER/TULLAHOMATNO-2E",987,"MANCHESTER/TULLAHOMATNO-2E",1170]
[{"$nulls":16},"MANCHESTER/TULLAHOMATNO-3E",1092,"MANCHESTER/TULLAHOMATNO-3E",1239]
[{"$nulls":16},"MANCHESTER/TULLAHOMATNO-1",696,"MANCHESTER/TULLAHOMATNO-1",924]
[{"$nulls":16},"MANCHESTER/TULLAHOMATNO-2",870,"MANCHESTER/TULLAHOMATNO-2",1086]
[{"$nulls":16},"MANCHESTER/TULLAHOMATNO-3",1023,"MANCHESTER/TULLAHOMATNO-3",1173]
[{"$nulls":16},"MANCHESTER/TULLAHOMATNO-4",1125,"MANCHESTER/TULLAHOMATNO-4",1317]
[{"$nulls":16},"MANCHESTER/TULLAHOMATNO-5",1146,"MANCHESTER/TULLAHOMATNO-5",1419]
[{"$nulls":16},"MANCHESTER/TULLAHOMATNO-6",1176,"MANCHESTER/TULLAHOMATNO-6",1434]
[{"$nulls":16},"MANCHESTER/TULLAHOMATNO-7",1200,"MANCHESTER/TULLAHOMATNO-7",1449]
[{"$nulls":16},"JACKSONTNE-1",693,"JACKSONTNE-1",882]
[{"$nulls":16},"JACKSONTNE-2",693,"JACKSONTNE-2",882]
[{"$nulls":16},"JACKSONTNE-3",693,"JACKSONTNE-3",882]
[{"$nulls":16},"JACKSONTNE-4",693,"JACKSONTNE-4",882]
[{"$nulls":16},"JACKSONTNE-5",792,"JACKSONTNE-5",921]
[{"$nulls":16},"JACKSONTNE-6",846,"JACKSONTNE-6",996]
[{"$nulls":16},"JACKSONTNE-7",882,"JACKSONTNE-7",1032]
[{"$nulls":16},"JACKSONTNE-8",936,"JACKSONTNE-8",1071]
[{"$nulls":16},"JACKSONTNE-9",960,"JACKSONTNE-9",1158]
[{"$nulls":16},"JACKSONTNW-1",867,"JACKSONTNW-1",996]
[{"$nulls":16},"JACKSONTNW-2",936,"JACKSONTNW-2",1047]
[{"$nulls":16},"JACKSONTNW-3",963,"JACKSONTNW-3",1095]
[{"$nulls":16},"JACKSONTNW-4",1005,"JACKSONTNW-4",1182]
[{"$nulls":16},"JACKSONTNW-5",1041,"JACKSONTNW-5",1287]
[{"$nulls":16},"JACKSONTNO-1E",921,"JACKSONTNO-1E",1038]
[{"$nulls":16},"JACKSONTNO-2E",954,"JACKSONTNO-2E",1086]
[{"$nulls":16},"JACKSONTNO-3E",996,"JACKSONTNO-3E",1200]
[{"$nulls":16},"JACKSONTNO-1",840,"JACKSONTNO-1",930]
[{"$nulls":16},"JACKSONTNO-2",906,"JACKSONTNO-2",996]
[{"$nulls":16},"JACKSONTNO-3",969,"JACKSONTNO-3",1092]
[{"$nulls":16},"JACKSONTNO-4",1035,"JACKSONTNO-4",1329]
[{"$nulls":16},"JACKSONTNO-5",1125,"JACKSONTNO-5",1497]
[{"$nulls":16},"JACKSONTNO-6",1134,"JACKSONTNO-6",1512]
[{"$nulls":16},"JACKSONTNO-7",1146,"JACKSONTNO-7",1527]
[{"$nulls":16},"ABILENE/DYESS AFBTXE-1",771,"ABILENE/DYESS AFBTXE-1",1005]
[{"$nulls":16},"ABILENE/DYESS AFBTXE-2",771,"ABILENE/DYESS AFBTXE-2",1005]
[{"$nulls":16},"ABILENE/DYESS AFBTXE-3",771,"ABILENE/DYESS AFBTXE-3",1005]
[{"$nulls":16},"ABILENE/DYESS AFBTXE-4",771,"ABILENE/DYESS AFBTXE-4",1005]
[{"$nulls":16},"ABILENE/DYESS AFBTXE-5",882,"ABILENE/DYESS AFBTXE-5",1074]
[{"$nulls":16},"ABILENE/DYESS AFBTXE-6",945,"ABILENE/DYESS AFBTXE-6",1191]
[{"$nulls":16},"ABILENE/DYESS AFBTXE-7",1011,"ABILENE/DYESS AFBTXE-7",1275]
[{"$nulls":16},"ABILENE/DYESS AFBTXE-8",1098,"ABILENE/DYESS AFBTXE-8",1368]
[{"$nulls":16},"ABILENE/DYESS AFBTXE-9",1134,"ABILENE/DYESS AFBTXE-9",1485]
[{"$nulls":16},"ABILENE/DYESS AFBTXW-1",978,"ABILENE/DYESS AFBTXW-1",1191]
[{"$nulls":16},"ABILENE/DYESS AFBTXW-2",1098,"ABILENE/DYESS AFBTXW-2",1314]
[{"$nulls":16},"ABILENE/DYESS AFBTXW-3",1137,"ABILENE/DYESS AFBTXW-3",1428]
[{"$nulls":16},"ABILENE/DYESS AFBTXW-4",1212,"ABILENE/DYESS AFBTXW-4",1506]
[{"$nulls":16},"ABILENE/DYESS AFBTXW-5",1296,"ABILENE/DYESS AFBTXW-5",1602]
[{"$nulls":16},"ABILENE/DYESS AFBTXO-1E",1074,"ABILENE/DYESS AFBTXO-1E",1296]
[{"$nulls":16},"ABILENE/DYESS AFBTXO-2E",1125,"ABILENE/DYESS AFBTXO-2E",1410]
[{"$nulls":16},"ABILENE/DYESS AFBTXO-3E",1191,"ABILENE/DYESS AFBTXO-3E",1521]
[{"$nulls":16},"ABILENE/DYESS AFBTXO-1",936,"ABILENE/DYESS AFBTXO-1",1089]
[{"$nulls":16},"ABILENE/DYESS AFBTXO-2",1050,"ABILENE/DYESS AFBTXO-2",1188]
[{"$nulls":16},"ABILENE/DYESS AFBTXO-3",1149,"ABILENE/DYESS AFBTXO-3",1422]
[{"$nulls":16},"ABILENE/DYESS AFBTXO-4",1284,"ABILENE/DYESS AFBTXO-4",1638]
[{"$nulls":16},"ABILENE/DYESS AFBTXO-5",1341,"ABILENE/DYESS AFBTXO-5",1788]
[{"$nulls":16},"ABILENE/DYESS AFBTXO-6",1428,"ABILENE/DYESS AFBTXO-6",1806]
[{"$nulls":16},"ABILENE/DYESS AFBTXO-7",1458,"ABILENE/DYESS AFBTXO-7",1824]
[{"$nulls":16},"AMARILLOTXE-1",675,"AMARILLOTXE-1",897]
[{"$nulls":16},"AMARILLOTXE-2",675,"AMARILLOTXE-2",897]
[{"$nulls":16},"AMARILLOTXE-3",675,"AMARILLOTXE-3",897]
[{"$nulls":16},"AMARILLOTXE-4",675,"AMARILLOTXE-4",897]
[{"$nulls":16},"AMARILLOTXE-5",750,"AMARILLOTXE-5",984]
[{"$nulls":16},"AMARILLOTXE-6",894,"AMARILLOTXE-6",1194]
[{"$nulls":16},"AMARILLOTXE-7",927,"AMARILLOTXE-7",1236]
[{"$nulls":16},"AMARILLOTXE-8",1026,"AMARILLOTXE-8",1284]
[{"$nulls":16},"AMARILLOTXE-9",1092,"AMARILLOTXE-9",1380]
[{"$nulls":16},"AMARILLOTXW-1",897,"AMARILLOTXW-1",1194]
[{"$nulls":16},"AMARILLOTXW-2",1026,"AMARILLOTXW-2",1257]
[{"$nulls":16},"AMARILLOTXW-3",1098,"AMARILLOTXW-3",1317]
[{"$nulls":16},"AMARILLOTXW-4",1203,"AMARILLOTXW-4",1404]
[{"$nulls":16},"AMARILLOTXW-5",1248,"AMARILLOTXW-5",1509]
[{"$nulls":16},"AMARILLOTXO-1E",984,"AMARILLOTXO-1E",1248]
[{"$nulls":16},"AMARILLOTXO-2E",1077,"AMARILLOTXO-2E",1308]
[{"$nulls":16},"AMARILLOTXO-3E",1194,"AMARILLOTXO-3E",1419]
[{"$nulls":16},"AMARILLOTXO-1",810,"AMARILLOTXO-1",1008]
[{"$nulls":16},"AMARILLOTXO-2",954,"AMARILLOTXO-2",1188]
[{"$nulls":16},"AMARILLOTXO-3",1119,"AMARILLOTXO-3",1314]
[{"$nulls":16},"AMARILLOTXO-4",1242,"AMARILLOTXO-4",1548]
[{"$nulls":16},"AMARILLOTXO-5",1287,"AMARILLOTXO-5",1716]
[{"$nulls":16},"AMARILLOTXO-6",1317,"AMARILLOTXO-6",1731]
[{"$nulls":16},"AMARILLOTXO-7",1341,"AMARILLOTXO-7",1749]
[{"$nulls":16},"AUSTINTXE-1",858,"AUSTINTXE-1",1143]
[{"$nulls":16},"AUSTINTXE-2",858,"AUSTINTXE-2",1143]
[{"$nulls":16},"AUSTINTXE-3",858,"AUSTINTXE-3",1143]
[{"$nulls":16},"AUSTINTXE-4",858,"AUSTINTXE-4",1143]
[{"$nulls":16},"AUSTINTXE-5",963,"AUSTINTXE-5",1257]
[{"$nulls":16},"AUSTINTXE-6",1056,"AUSTINTXE-6",1407]
[{"$nulls":16},"AUSTINTXE-7",1152,"AUSTINTXE-7",1449]
[{"$nulls":16},"AUSTINTXE-8",1287,"AUSTINTXE-8",1497]
[{"$nulls":16},"AUSTINTXE-9",1332,"AUSTINTXE-9",1599]
[{"$nulls":16},"AUSTINTXW-1",1101,"AUSTINTXW-1",1407]
[{"$nulls":16},"AUSTINTXW-2",1284,"AUSTINTXW-2",1470]
[{"$nulls":16},"AUSTINTXW-3",1338,"AUSTINTXW-3",1530]
[{"$nulls":16},"AUSTINTXW-4",1416,"AUSTINTXW-4",1623]
[{"$nulls":16},"AUSTINTXW-5",1461,"AUSTINTXW-5",1737]
[{"$nulls":16},"AUSTINTXO-1E",1257,"AUSTINTXO-1E",1461]
[{"$nulls":16},"AUSTINTXO-2E",1323,"AUSTINTXO-2E",1521]
[{"$nulls":16},"AUSTINTXO-3E",1407,"AUSTINTXO-3E",1641]
[{"$nulls":16},"AUSTINTXO-1",1032,"AUSTINTXO-1",1272]
[{"$nulls":16},"AUSTINTXO-2",1218,"AUSTINTXO-2",1404]
[{"$nulls":16},"AUSTINTXO-3",1353,"AUSTINTXO-3",1527]
[{"$nulls":16},"AUSTINTXO-4",1455,"AUSTINTXO-4",1779]
[{"$nulls":16},"AUSTINTXO-5",1482,"AUSTINTXO-5",1962]
[{"$nulls":16},"AUSTINTXO-6",1530,"AUSTINTXO-6",1983]
[{"$nulls":16},"AUSTINTXO-7",1560,"AUSTINTXO-7",2001]
[{"$nulls":16},"BEAUMONTTXE-1",888,"BEAUMONTTXE-1",1185]
[{"$nulls":16},"BEAUMONTTXE-2",888,"BEAUMONTTXE-2",1185]
[{"$nulls":16},"BEAUMONTTXE-3",888,"BEAUMONTTXE-3",1185]
[{"$nulls":16},"BEAUMONTTXE-4",888,"BEAUMONTTXE-4",1185]
[{"$nulls":16},"BEAUMONTTXE-5",1011,"BEAUMONTTXE-5",1266]
[{"$nulls":16},"BEAUMONTTXE-6",1209,"BEAUMONTTXE-6",1611]
[{"$nulls":16},"BEAUMONTTXE-7",1248,"BEAUMONTTXE-7",1665]
[{"$nulls":16},"BEAUMONTTXE-8",1335,"BEAUMONTTXE-8",1722]
[{"$nulls":16},"BEAUMONTTXE-9",1443,"BEAUMONTTXE-9",1827]
[{"$nulls":16},"BEAUMONTTXW-1",1209,"BEAUMONTTXW-1",1614]
[{"$nulls":16},"BEAUMONTTXW-2",1332,"BEAUMONTTXW-2",1689]
[{"$nulls":16},"BEAUMONTTXW-3",1452,"BEAUMONTTXW-3",1758]
[{"$nulls":16},"BEAUMONTTXW-4",1626,"BEAUMONTTXW-4",1854]
[{"$nulls":16},"BEAUMONTTXW-5",1677,"BEAUMONTTXW-5",1965]
[{"$nulls":16},"BEAUMONTTXO-1E",1266,"BEAUMONTTXO-1E",1677]
[{"$nulls":16},"BEAUMONTTXO-2E",1419,"BEAUMONTTXO-2E",1749]
[{"$nulls":16},"BEAUMONTTXO-3E",1611,"BEAUMONTTXO-3E",1869]
[{"$nulls":16},"BEAUMONTTXO-1",1104,"BEAUMONTTXO-1",1302]
[{"$nulls":16},"BEAUMONTTXO-2",1239,"BEAUMONTTXO-2",1605]
[{"$nulls":16},"BEAUMONTTXO-3",1488,"BEAUMONTTXO-3",1755]
[{"$nulls":16},"BEAUMONTTXO-4",1671,"BEAUMONTTXO-4",2007]
[{"$nulls":16},"BEAUMONTTXO-5",1704,"BEAUMONTTXO-5",2187]
[{"$nulls":16},"BEAUMONTTXO-6",1758,"BEAUMONTTXO-6",2208]
[{"$nulls":16},"BEAUMONTTXO-7",1794,"BEAUMONTTXO-7",2232]
[{"$nulls":16},"COLLEGE STATIONTXE-1",765,"COLLEGE STATIONTXE-1",936]
[{"$nulls":16},"COLLEGE STATIONTXE-2",765,"COLLEGE STATIONTXE-2",936]
[{"$nulls":16},"COLLEGE STATIONTXE-3",765,"COLLEGE STATIONTXE-3",936]
[{"$nulls":16},"COLLEGE STATIONTXE-4",765,"COLLEGE STATIONTXE-4",936]
[{"$nulls":16},"COLLEGE STATIONTXE-5",804,"COLLEGE STATIONTXE-5",1047]
[{"$nulls":16},"COLLEGE STATIONTXE-6",978,"COLLEGE STATIONTXE-6",1305]
[{"$nulls":16},"COLLEGE STATIONTXE-7",1011,"COLLEGE STATIONTXE-7",1347]
[{"$nulls":16},"COLLEGE STATIONTXE-8",1098,"COLLEGE STATIONTXE-8",1395]
[{"$nulls":16},"COLLEGE STATIONTXE-9",1179,"COLLEGE STATIONTXE-9",1527]
[{"$nulls":16},"COLLEGE STATIONTXW-1",981,"COLLEGE STATIONTXW-1",1305]
[{"$nulls":16},"COLLEGE STATIONTXW-2",1095,"COLLEGE STATIONTXW-2",1365]
[{"$nulls":16},"COLLEGE STATIONTXW-3",1185,"COLLEGE STATIONTXW-3",1422]
[{"$nulls":16},"COLLEGE STATIONTXW-4",1317,"COLLEGE STATIONTXW-4",1569]
[{"$nulls":16},"COLLEGE STATIONTXW-5",1359,"COLLEGE STATIONTXW-5",1740]
[{"$nulls":16},"COLLEGE STATIONTXO-1E",1047,"COLLEGE STATIONTXO-1E",1356]
[{"$nulls":16},"COLLEGE STATIONTXO-2E",1161,"COLLEGE STATIONTXO-2E",1416]
[{"$nulls":16},"COLLEGE STATIONTXO-3E",1305,"COLLEGE STATIONTXO-3E",1593]
[{"$nulls":16},"COLLEGE STATIONTXO-1",825,"COLLEGE STATIONTXO-1",1074]
[{"$nulls":16},"COLLEGE STATIONTXO-2",1008,"COLLEGE STATIONTXO-2",1299]
[{"$nulls":16},"COLLEGE STATIONTXO-3",1212,"COLLEGE STATIONTXO-3",1422]
[{"$nulls":16},"COLLEGE STATIONTXO-4",1353,"COLLEGE STATIONTXO-4",1806]
[{"$nulls":16},"COLLEGE STATIONTXO-5",1560,"COLLEGE STATIONTXO-5",2082]
[{"$nulls":16},"COLLEGE STATIONTXO-6",1575,"COLLEGE STATIONTXO-6",2103]
[{"$nulls":16},"COLLEGE STATIONTXO-7",1593,"COLLEGE STATIONTXO-7",2124]
[{"$nulls":16},"CORPUS CHRISTITXE-1",852,"CORPUS CHRISTITXE-1",1137]
[{"$nulls":16},"CORPUS CHRISTITXE-2",852,"CORPUS CHRISTITXE-2",1137]
[{"$nulls":16},"CORPUS CHRISTITXE-3",852,"CORPUS CHRISTITXE-3",1137]
[{"$nulls":16},"CORPUS CHRISTITXE-4",852,"CORPUS CHRISTITXE-4",1137]
[{"$nulls":16},"CORPUS CHRISTITXE-5",957,"CORPUS CHRISTITXE-5",1251]
[{"$nulls":16},"CORPUS CHRISTITXE-6",1212,"CORPUS CHRISTITXE-6",1617]
[{"$nulls":16},"CORPUS CHRISTITXE-7",1236,"CORPUS CHRISTITXE-7",1647]
[{"$nulls":16},"CORPUS CHRISTITXE-8",1326,"CORPUS CHRISTITXE-8",1683]
[{"$nulls":16},"CORPUS CHRISTITXE-9",1437,"CORPUS CHRISTITXE-9",1767]
[{"$nulls":16},"CORPUS CHRISTITXW-1",1212,"CORPUS CHRISTITXW-1",1617]
[{"$nulls":16},"CORPUS CHRISTITXW-2",1320,"CORPUS CHRISTITXW-2",1662]
[{"$nulls":16},"CORPUS CHRISTITXW-3",1449,"CORPUS CHRISTITXW-3",1704]
[{"$nulls":16},"CORPUS CHRISTITXW-4",1626,"CORPUS CHRISTITXW-4",1794]
[{"$nulls":16},"CORPUS CHRISTITXW-5",1656,"CORPUS CHRISTITXW-5",1899]
[{"$nulls":16},"CORPUS CHRISTITXO-1E",1251,"CORPUS CHRISTITXO-1E",1656]
[{"$nulls":16},"CORPUS CHRISTITXO-2E",1413,"CORPUS CHRISTITXO-2E",1698]
[{"$nulls":16},"CORPUS CHRISTITXO-3E",1617,"CORPUS CHRISTITXO-3E",1809]
[{"$nulls":16},"CORPUS CHRISTITXO-1",1020,"CORPUS CHRISTITXO-1",1293]
[{"$nulls":16},"CORPUS CHRISTITXO-2",1212,"CORPUS CHRISTITXO-2",1611]
[{"$nulls":16},"CORPUS CHRISTITXO-3",1485,"CORPUS CHRISTITXO-3",1701]
[{"$nulls":16},"CORPUS CHRISTITXO-4",1650,"CORPUS CHRISTITXO-4",1941]
[{"$nulls":16},"CORPUS CHRISTITXO-5",1671,"CORPUS CHRISTITXO-5",2112]
[{"$nulls":16},"CORPUS CHRISTITXO-6",1704,"CORPUS CHRISTITXO-6",2133]
[{"$nulls":16},"CORPUS CHRISTITXO-7",1737,"CORPUS CHRISTITXO-7",2154]
[{"$nulls":16},"KINGSVILLETXE-1",843,"KINGSVILLETXE-1",1125]
[{"$nulls":16},"KINGSVILLETXE-2",843,"KINGSVILLETXE-2",1125]
[{"$nulls":16},"KINGSVILLETXE-3",843,"KINGSVILLETXE-3",1125]
[{"$nulls":16},"KINGSVILLETXE-4",843,"KINGSVILLETXE-4",1125]
[{"$nulls":16},"KINGSVILLETXE-5",954,"KINGSVILLETXE-5",1230]
[{"$nulls":16},"KINGSVILLETXE-6",1188,"KINGSVILLETXE-6",1584]
[{"$nulls":16},"KINGSVILLETXE-7",1203,"KINGSVILLETXE-7",1602]
[{"$nulls":16},"KINGSVILLETXE-8",1302,"KINGSVILLETXE-8",1623]
[{"$nulls":16},"KINGSVILLETXE-9",1410,"KINGSVILLETXE-9",1710]
[{"$nulls":16},"KINGSVILLETXW-1",1188,"KINGSVILLETXW-1",1584]
[{"$nulls":16},"KINGSVILLETXW-2",1296,"KINGSVILLETXW-2",1611]
[{"$nulls":16},"KINGSVILLETXW-3",1422,"KINGSVILLETXW-3",1638]
[{"$nulls":16},"KINGSVILLETXW-4",1587,"KINGSVILLETXW-4",1737]
[{"$nulls":16},"KINGSVILLETXW-5",1608,"KINGSVILLETXW-5",1857]
[{"$nulls":16},"KINGSVILLETXO-1E",1230,"KINGSVILLETXO-1E",1608]
[{"$nulls":16},"KINGSVILLETXO-2E",1386,"KINGSVILLETXO-2E",1632]
[{"$nulls":16},"KINGSVILLETXO-3E",1584,"KINGSVILLETXO-3E",1755]
[{"$nulls":16},"KINGSVILLETXO-1",1017,"KINGSVILLETXO-1",1269]
[{"$nulls":16},"KINGSVILLETXO-2",1194,"KINGSVILLETXO-2",1575]
[{"$nulls":16},"KINGSVILLETXO-3",1455,"KINGSVILLETXO-3",1635]
[{"$nulls":16},"KINGSVILLETXO-4",1605,"KINGSVILLETXO-4",1902]
[{"$nulls":16},"KINGSVILLETXO-5",1617,"KINGSVILLETXO-5",2097]
[{"$nulls":16},"KINGSVILLETXO-6",1638,"KINGSVILLETXO-6",2118]
[{"$nulls":16},"KINGSVILLETXO-7",1671,"KINGSVILLETXO-7",2139]
[{"$nulls":16},"DALLASTXE-1",990,"DALLASTXE-1",1320]
[{"$nulls":16},"DALLASTXE-2",990,"DALLASTXE-2",1320]
[{"$nulls":16},"DALLASTXE-3",990,"DALLASTXE-3",1320]
[{"$nulls":16},"DALLASTXE-4",990,"DALLASTXE-4",1320]
[{"$nulls":16},"DALLASTXE-5",1134,"DALLASTXE-5",1425]
[{"$nulls":16},"DALLASTXE-6",1230,"DALLASTXE-6",1599]
[{"$nulls":16},"DALLASTXE-7",1326,"DALLASTXE-7",1644]
[{"$nulls":16},"DALLASTXE-8",1458,"DALLASTXE-8",1692]
[{"$nulls":16},"DALLASTXE-9",1515,"DALLASTXE-9",1779]
[{"$nulls":16},"DALLASTXW-1",1281,"DALLASTXW-1",1602]
[{"$nulls":16},"DALLASTXW-2",1458,"DALLASTXW-2",1665]
[{"$nulls":16},"DALLASTXW-3",1518,"DALLASTXW-3",1722]
[{"$nulls":16},"DALLASTXW-4",1611,"DALLASTXW-4",1800]
[{"$nulls":16},"DALLASTXW-5",1656,"DALLASTXW-5",1890]
[{"$nulls":16},"DALLASTXO-1E",1425,"DALLASTXO-1E",1653]
[{"$nulls":16},"DALLASTXO-2E",1500,"DALLASTXO-2E",1713]
[{"$nulls":16},"DALLASTXO-3E",1599,"DALLASTXO-3E",1815]
[{"$nulls":16},"DALLASTXO-1",1215,"DALLASTXO-1",1443]
[{"$nulls":16},"DALLASTXO-2",1389,"DALLASTXO-2",1596]
[{"$nulls":16},"DALLASTXO-3",1536,"DALLASTXO-3",1722]
[{"$nulls":16},"DALLASTXO-4",1650,"DALLASTXO-4",1926]
[{"$nulls":16},"DALLASTXO-5",1677,"DALLASTXO-5",2073]
[{"$nulls":16},"DALLASTXO-6",1722,"DALLASTXO-6",2094]
[{"$nulls":16},"DALLASTXO-7",1758,"DALLASTXO-7",2115]
[{"$nulls":16},"LAUGHLIN AFB/DEL RIOTXE-1",666,"LAUGHLIN AFB/DEL RIOTXE-1",885]
[{"$nulls":16},"LAUGHLIN AFB/DEL RIOTXE-2",666,"LAUGHLIN AFB/DEL RIOTXE-2",885]
[{"$nulls":16},"LAUGHLIN AFB/DEL RIOTXE-3",666,"LAUGHLIN AFB/DEL RIOTXE-3",885]
[{"$nulls":16},"LAUGHLIN AFB/DEL RIOTXE-4",666,"LAUGHLIN AFB/DEL RIOTXE-4",885]
[{"$nulls":16},"LAUGHLIN AFB/DEL RIOTXE-5",774,"LAUGHLIN AFB/DEL RIOTXE-5",1029]
[{"$nulls":16},"LAUGHLIN AFB/DEL RIOTXE-6",996,"LAUGHLIN AFB/DEL RIOTXE-6",1326]
[{"$nulls":16},"LAUGHLIN AFB/DEL RIOTXE-7",1002,"LAUGHLIN AFB/DEL RIOTXE-7",1338]
[{"$nulls":16},"LAUGHLIN AFB/DEL RIOTXE-8",1089,"LAUGHLIN AFB/DEL RIOTXE-8",1350]
[{"$nulls":16},"LAUGHLIN AFB/DEL RIOTXE-9",1182,"LAUGHLIN AFB/DEL RIOTXE-9",1452]
[{"$nulls":16},"LAUGHLIN AFB/DEL RIOTXW-1",996,"LAUGHLIN AFB/DEL RIOTXW-1",1326]
[{"$nulls":16},"LAUGHLIN AFB/DEL RIOTXW-2",1086,"LAUGHLIN AFB/DEL RIOTXW-2",1344]
[{"$nulls":16},"LAUGHLIN AFB/DEL RIOTXW-3",1191,"LAUGHLIN AFB/DEL RIOTXW-3",1359]
[{"$nulls":16},"LAUGHLIN AFB/DEL RIOTXW-4",1329,"LAUGHLIN AFB/DEL RIOTXW-4",1485]
[{"$nulls":16},"LAUGHLIN AFB/DEL RIOTXW-5",1341,"LAUGHLIN AFB/DEL RIOTXW-5",1635]
[{"$nulls":16},"LAUGHLIN AFB/DEL RIOTXO-1E",1029,"LAUGHLIN AFB/DEL RIOTXO-1E",1341]
[{"$nulls":16},"LAUGHLIN AFB/DEL RIOTXO-2E",1161,"LAUGHLIN AFB/DEL RIOTXO-2E",1356]
[{"$nulls":16},"LAUGHLIN AFB/DEL RIOTXO-3E",1326,"LAUGHLIN AFB/DEL RIOTXO-3E",1509]
[{"$nulls":16},"LAUGHLIN AFB/DEL RIOTXO-1",798,"LAUGHLIN AFB/DEL RIOTXO-1",1062]
[{"$nulls":16},"LAUGHLIN AFB/DEL RIOTXO-2",990,"LAUGHLIN AFB/DEL RIOTXO-2",1320]
[{"$nulls":16},"LAUGHLIN AFB/DEL RIOTXO-3",1218,"LAUGHLIN AFB/DEL RIOTXO-3",1359]
[{"$nulls":16},"LAUGHLIN AFB/DEL RIOTXO-4",1338,"LAUGHLIN AFB/DEL RIOTXO-4",1692]
[{"$nulls":16},"LAUGHLIN AFB/DEL RIOTXO-5",1452,"LAUGHLIN AFB/DEL RIOTXO-5",1935]
[{"$nulls":16},"LAUGHLIN AFB/DEL RIOTXO-6",1464,"LAUGHLIN AFB/DEL RIOTXO-6",1953]
[{"$nulls":16},"LAUGHLIN AFB/DEL RIOTXO-7",1479,"LAUGHLIN AFB/DEL RIOTXO-7",1974]
[{"$nulls":16},"EL PASOTXE-1",726,"EL PASOTXE-1",924]
[{"$nulls":16},"EL PASOTXE-2",726,"EL PASOTXE-2",924]
[{"$nulls":16},"EL PASOTXE-3",726,"EL PASOTXE-3",924]
[{"$nulls":16},"EL PASOTXE-4",726,"EL PASOTXE-4",924]
[{"$nulls":16},"EL PASOTXE-5",825,"EL PASOTXE-5",972]
[{"$nulls":16},"EL PASOTXE-6",882,"EL PASOTXE-6",1164]
[{"$nulls":16},"EL PASOTXE-7",927,"EL PASOTXE-7",1206]
[{"$nulls":16},"EL PASOTXE-8",1011,"EL PASOTXE-8",1248]
[{"$nulls":16},"EL PASOTXE-9",1071,"EL PASOTXE-9",1314]
[{"$nulls":16},"EL PASOTXW-1",906,"EL PASOTXW-1",1164]
[{"$nulls":16},"EL PASOTXW-2",1008,"EL PASOTXW-2",1224]
[{"$nulls":16},"EL PASOTXW-3",1077,"EL PASOTXW-3",1278]
[{"$nulls":16},"EL PASOTXW-4",1173,"EL PASOTXW-4",1326]
[{"$nulls":16},"EL PASOTXW-5",1215,"EL PASOTXW-5",1386]
[{"$nulls":16},"EL PASOTXO-1E",972,"EL PASOTXO-1E",1215]
[{"$nulls":16},"EL PASOTXO-2E",1056,"EL PASOTXO-2E",1269]
[{"$nulls":16},"EL PASOTXO-3E",1164,"EL PASOTXO-3E",1338]
[{"$nulls":16},"EL PASOTXO-1",876,"EL PASOTXO-1",993]
[{"$nulls":16},"EL PASOTXO-2",957,"EL PASOTXO-2",1161]
[{"$nulls":16},"EL PASOTXO-3",1095,"EL PASOTXO-3",1275]
[{"$nulls":16},"EL PASOTXO-4",1209,"EL PASOTXO-4",1410]
[{"$nulls":16},"EL PASOTXO-5",1236,"EL PASOTXO-5",1506]
[{"$nulls":16},"EL PASOTXO-6",1278,"EL PASOTXO-6",1521]
[{"$nulls":16},"EL PASOTXO-7",1302,"EL PASOTXO-7",1536]
[{"$nulls":16},"BROWNSVILLETXE-1",729,"BROWNSVILLETXE-1",972]
[{"$nulls":16},"BROWNSVILLETXE-2",729,"BROWNSVILLETXE-2",972]
[{"$nulls":16},"BROWNSVILLETXE-3",729,"BROWNSVILLETXE-3",972]
[{"$nulls":16},"BROWNSVILLETXE-4",729,"BROWNSVILLETXE-4",972]
[{"$nulls":16},"BROWNSVILLETXE-5",825,"BROWNSVILLETXE-5",1101]
[{"$nulls":16},"BROWNSVILLETXE-6",975,"BROWNSVILLETXE-6",1299]
[{"$nulls":16},"BROWNSVILLETXE-7",1017,"BROWNSVILLETXE-7",1356]
[{"$nulls":16},"BROWNSVILLETXE-8",1140,"BROWNSVILLETXE-8",1416]
[{"$nulls":16},"BROWNSVILLETXE-9",1200,"BROWNSVILLETXE-9",1536]
[{"$nulls":16},"BROWNSVILLETXW-1",975,"BROWNSVILLETXW-1",1299]
[{"$nulls":16},"BROWNSVILLETXW-2",1137,"BROWNSVILLETXW-2",1380]
[{"$nulls":16},"BROWNSVILLETXW-3",1206,"BROWNSVILLETXW-3",1455]
[{"$nulls":16},"BROWNSVILLETXW-4",1311,"BROWNSVILLETXW-4",1566]
[{"$nulls":16},"BROWNSVILLETXW-5",1368,"BROWNSVILLETXW-5",1695]
[{"$nulls":16},"BROWNSVILLETXO-1E",1101,"BROWNSVILLETXO-1E",1368]
[{"$nulls":16},"BROWNSVILLETXO-2E",1188,"BROWNSVILLETXO-2E",1443]
[{"$nulls":16},"BROWNSVILLETXO-3E",1299,"BROWNSVILLETXO-3E",1584]
[{"$nulls":16},"BROWNSVILLETXO-1",843,"BROWNSVILLETXO-1",1122]
[{"$nulls":16},"BROWNSVILLETXO-2",1056,"BROWNSVILLETXO-2",1293]
[{"$nulls":16},"BROWNSVILLETXO-3",1227,"BROWNSVILLETXO-3",1452]
[{"$nulls":16},"BROWNSVILLETXO-4",1362,"BROWNSVILLETXO-4",1746]
[{"$nulls":16},"BROWNSVILLETXO-5",1467,"BROWNSVILLETXO-5",1956]
[{"$nulls":16},"BROWNSVILLETXO-6",1482,"BROWNSVILLETXO-6",1974]
[{"$nulls":16},"BROWNSVILLETXO-7",1497,"BROWNSVILLETXO-7",1995]
[{"$nulls":16},"HOUSTONTXE-1",1041,"HOUSTONTXE-1",1389]
[{"$nulls":16},"HOUSTONTXE-2",1041,"HOUSTONTXE-2",1389]
[{"$nulls":16},"HOUSTONTXE-3",1041,"HOUSTONTXE-3",1389]
[{"$nulls":16},"HOUSTONTXE-4",1041,"HOUSTONTXE-4",1389]
[{"$nulls":16},"HOUSTONTXE-5",1167,"HOUSTONTXE-5",1557]
[{"$nulls":16},"HOUSTONTXE-6",1443,"HOUSTONTXE-6",1923]
[{"$nulls":16},"HOUSTONTXE-7",1464,"HOUSTONTXE-7",1953]
[{"$nulls":16},"HOUSTONTXE-8",1629,"HOUSTONTXE-8",1986]
[{"$nulls":16},"HOUSTONTXE-9",1743,"HOUSTONTXE-9",2091]
[{"$nulls":16},"HOUSTONTXW-1",1443,"HOUSTONTXW-1",1923]
[{"$nulls":16},"HOUSTONTXW-2",1626,"HOUSTONTXW-2",1968]
[{"$nulls":16},"HOUSTONTXW-3",1755,"HOUSTONTXW-3",2007]
[{"$nulls":16},"HOUSTONTXW-4",1929,"HOUSTONTXW-4",2121]
[{"$nulls":16},"HOUSTONTXW-5",1962,"HOUSTONTXW-5",2253]
[{"$nulls":16},"HOUSTONTXO-1E",1557,"HOUSTONTXO-1E",1959]
[{"$nulls":16},"HOUSTONTXO-2E",1716,"HOUSTONTXO-2E",2001]
[{"$nulls":16},"HOUSTONTXO-3E",1923,"HOUSTONTXO-3E",2142]
[{"$nulls":16},"HOUSTONTXO-1",1221,"HOUSTONTXO-1",1596]
[{"$nulls":16},"HOUSTONTXO-2",1500,"HOUSTONTXO-2",1914]
[{"$nulls":16},"HOUSTONTXO-3",1791,"HOUSTONTXO-3",2007]
[{"$nulls":16},"HOUSTONTXO-4",1956,"HOUSTONTXO-4",2304]
[{"$nulls":16},"HOUSTONTXO-5",1977,"HOUSTONTXO-5",2520]
[{"$nulls":16},"HOUSTONTXO-6",2007,"HOUSTONTXO-6",2544]
[{"$nulls":16},"HOUSTONTXO-7",2049,"HOUSTONTXO-7",2571]
[{"$nulls":16},"LUBBOCK/REESE AFBTXE-1",741,"LUBBOCK/REESE AFBTXE-1",987]
[{"$nulls":16},"LUBBOCK/REESE AFBTXE-2",741,"LUBBOCK/REESE AFBTXE-2",987]
[{"$nulls":16},"LUBBOCK/REESE AFBTXE-3",741,"LUBBOCK/REESE AFBTXE-3",987]
[{"$nulls":16},"LUBBOCK/REESE AFBTXE-4",741,"LUBBOCK/REESE AFBTXE-4",987]
[{"$nulls":16},"LUBBOCK/REESE AFBTXE-5",834,"LUBBOCK/REESE AFBTXE-5",1068]
[{"$nulls":16},"LUBBOCK/REESE AFBTXE-6",918,"LUBBOCK/REESE AFBTXE-6",1206]
[{"$nulls":16},"LUBBOCK/REESE AFBTXE-7",993,"LUBBOCK/REESE AFBTXE-7",1251]
[{"$nulls":16},"LUBBOCK/REESE AFBTXE-8",1095,"LUBBOCK/REESE AFBTXE-8",1296]
[{"$nulls":16},"LUBBOCK/REESE AFBTXE-9",1140,"LUBBOCK/REESE AFBTXE-9",1374]
[{"$nulls":16},"LUBBOCK/REESE AFBTXW-1",957,"LUBBOCK/REESE AFBTXW-1",1209]
[{"$nulls":16},"LUBBOCK/REESE AFBTXW-2",1095,"LUBBOCK/REESE AFBTXW-2",1269]
[{"$nulls":16},"LUBBOCK/REESE AFBTXW-3",1143,"LUBBOCK/REESE AFBTXW-3",1326]
[{"$nulls":16},"LUBBOCK/REESE AFBTXW-4",1218,"LUBBOCK/REESE AFBTXW-4",1392]
[{"$nulls":16},"LUBBOCK/REESE AFBTXW-5",1260,"LUBBOCK/REESE AFBTXW-5",1470]
[{"$nulls":16},"LUBBOCK/REESE AFBTXO-1E",1068,"LUBBOCK/REESE AFBTXO-1E",1260]
[{"$nulls":16},"LUBBOCK/REESE AFBTXO-2E",1128,"LUBBOCK/REESE AFBTXO-2E",1320]
[{"$nulls":16},"LUBBOCK/REESE AFBTXO-3E",1206,"LUBBOCK/REESE AFBTXO-3E",1404]
[{"$nulls":16},"LUBBOCK/REESE AFBTXO-1",906,"LUBBOCK/REESE AFBTXO-1",1083]
[{"$nulls":16},"LUBBOCK/REESE AFBTXO-2",1041,"LUBBOCK/REESE AFBTXO-2",1203]
[{"$nulls":16},"LUBBOCK/REESE AFBTXO-3",1158,"LUBBOCK/REESE AFBTXO-3",1326]
[{"$nulls":16},"LUBBOCK/REESE AFBTXO-4",1254,"LUBBOCK/REESE AFBTXO-4",1500]
[{"$nulls":16},"LUBBOCK/REESE AFBTXO-5",1284,"LUBBOCK/REESE AFBTXO-5",1626]
[{"$nulls":16},"LUBBOCK/REESE AFBTXO-6",1326,"LUBBOCK/REESE AFBTXO-6",1644]
[{"$nulls":16},"LUBBOCK/REESE AFBTXO-7",1353,"LUBBOCK/REESE AFBTXO-7",1659]
[{"$nulls":16},"GOODFELLOW AFBTXE-1",720,"GOODFELLOW AFBTXE-1",960]
[{"$nulls":16},"GOODFELLOW AFBTXE-2",720,"GOODFELLOW AFBTXE-2",960]
[{"$nulls":16},"GOODFELLOW AFBTXE-3",720,"GOODFELLOW AFBTXE-3",960]
[{"$nulls":16},"GOODFELLOW AFBTXE-4",720,"GOODFELLOW AFBTXE-4",960]
[{"$nulls":16},"GOODFELLOW AFBTXE-5",804,"GOODFELLOW AFBTXE-5",1053]
[{"$nulls":16},"GOODFELLOW AFBTXE-6",882,"GOODFELLOW AFBTXE-6",1170]
[{"$nulls":16},"GOODFELLOW AFBTXE-7",966,"GOODFELLOW AFBTXE-7",1251]
[{"$nulls":16},"GOODFELLOW AFBTXE-8",1077,"GOODFELLOW AFBTXE-8",1341]
[{"$nulls":16},"GOODFELLOW AFBTXE-9",1113,"GOODFELLOW AFBTXE-9",1437]
[{"$nulls":16},"GOODFELLOW AFBTXW-1",924,"GOODFELLOW AFBTXW-1",1170]
[{"$nulls":16},"GOODFELLOW AFBTXW-2",1074,"GOODFELLOW AFBTXW-2",1290]
[{"$nulls":16},"GOODFELLOW AFBTXW-3",1116,"GOODFELLOW AFBTXW-3",1398]
[{"$nulls":16},"GOODFELLOW AFBTXW-4",1191,"GOODFELLOW AFBTXW-4",1452]
[{"$nulls":16},"GOODFELLOW AFBTXW-5",1272,"GOODFELLOW AFBTXW-5",1515]
[{"$nulls":16},"GOODFELLOW AFBTXO-1E",1053,"GOODFELLOW AFBTXO-1E",1269]
[{"$nulls":16},"GOODFELLOW AFBTXO-2E",1104,"GOODFELLOW AFBTXO-2E",1383]
[{"$nulls":16},"GOODFELLOW AFBTXO-3E",1170,"GOODFELLOW AFBTXO-3E",1461]
[{"$nulls":16},"GOODFELLOW AFBTXO-1",867,"GOODFELLOW AFBTXO-1",1065]
[{"$nulls":16},"GOODFELLOW AFBTXO-2",1023,"GOODFELLOW AFBTXO-2",1167]
[{"$nulls":16},"GOODFELLOW AFBTXO-3",1128,"GOODFELLOW AFBTXO-3",1395]
[{"$nulls":16},"GOODFELLOW AFBTXO-4",1260,"GOODFELLOW AFBTXO-4",1539]
[{"$nulls":16},"GOODFELLOW AFBTXO-5",1314,"GOODFELLOW AFBTXO-5",1641]
[{"$nulls":16},"GOODFELLOW AFBTXO-6",1398,"GOODFELLOW AFBTXO-6",1659]
[{"$nulls":16},"GOODFELLOW AFBTXO-7",1428,"GOODFELLOW AFBTXO-7",1674]
[{"$nulls":16},"SAN ANTONIOTXE-1",885,"SAN ANTONIOTXE-1",1179]
[{"$nulls":16},"SAN ANTONIOTXE-2",885,"SAN ANTONIOTXE-2",1179]
[{"$nulls":16},"SAN ANTONIOTXE-3",885,"SAN ANTONIOTXE-3",1179]
[{"$nulls":16},"SAN ANTONIOTXE-4",885,"SAN ANTONIOTXE-4",1179]
[{"$nulls":16},"SAN ANTONIOTXE-5",1017,"SAN ANTONIOTXE-5",1275]
[{"$nulls":16},"SAN ANTONIOTXE-6",1098,"SAN ANTONIOTXE-6",1347]
[{"$nulls":16},"SAN ANTONIOTXE-7",1185,"SAN ANTONIOTXE-7",1425]
[{"$nulls":16},"SAN ANTONIOTXE-8",1290,"SAN ANTONIOTXE-8",1506]
[{"$nulls":16},"SAN ANTONIOTXE-9",1314,"SAN ANTONIOTXE-9",1602]
[{"$nulls":16},"SAN ANTONIOTXW-1",1143,"SAN ANTONIOTXW-1",1350]
[{"$nulls":16},"SAN ANTONIOTXW-2",1290,"SAN ANTONIOTXW-2",1458]
[{"$nulls":16},"SAN ANTONIOTXW-3",1314,"SAN ANTONIOTXW-3",1557]
[{"$nulls":16},"SAN ANTONIOTXW-4",1368,"SAN ANTONIOTXW-4",1617]
[{"$nulls":16},"SAN ANTONIOTXW-5",1443,"SAN ANTONIOTXW-5",1689]
[{"$nulls":16},"SAN ANTONIOTXO-1E",1275,"SAN ANTONIOTXO-1E",1440]
[{"$nulls":16},"SAN ANTONIOTXO-2E",1308,"SAN ANTONIOTXO-2E",1542]
[{"$nulls":16},"SAN ANTONIOTXO-3E",1347,"SAN ANTONIOTXO-3E",1629]
[{"$nulls":16},"SAN ANTONIOTXO-1",1083,"SAN ANTONIOTXO-1",1284]
[{"$nulls":16},"SAN ANTONIOTXO-2",1242,"SAN ANTONIOTXO-2",1347]
[{"$nulls":16},"SAN ANTONIOTXO-3",1323,"SAN ANTONIOTXO-3",1554]
[{"$nulls":16},"SAN ANTONIOTXO-4",1431,"SAN ANTONIOTXO-4",1716]
[{"$nulls":16},"SAN ANTONIOTXO-5",1479,"SAN ANTONIOTXO-5",1827]
[{"$nulls":16},"SAN ANTONIOTXO-6",1557,"SAN ANTONIOTXO-6",1845]
[{"$nulls":16},"SAN ANTONIOTXO-7",1590,"SAN ANTONIOTXO-7",1866]
[{"$nulls":16},"FORT HOODTXE-1",750,"FORT HOODTXE-1",957]
[{"$nulls":16},"FORT HOODTXE-2",750,"FORT HOODTXE-2",957]
[{"$nulls":16},"FORT HOODTXE-3",750,"FORT HOODTXE-3",957]
[{"$nulls":16},"FORT HOODTXE-4",750,"FORT HOODTXE-4",957]
[{"$nulls":16},"FORT HOODTXE-5",849,"FORT HOODTXE-5",1014]
[{"$nulls":16},"FORT HOODTXE-6",906,"FORT HOODTXE-6",1116]
[{"$nulls":16},"FORT HOODTXE-7",960,"FORT HOODTXE-7",1224]
[{"$nulls":16},"FORT HOODTXE-8",1035,"FORT HOODTXE-8",1341]
[{"$nulls":16},"FORT HOODTXE-9",1086,"FORT HOODTXE-9",1449]
[{"$nulls":16},"FORT HOODTXW-1",933,"FORT HOODTXW-1",1119]
[{"$nulls":16},"FORT HOODTXW-2",1035,"FORT HOODTXW-2",1272]
[{"$nulls":16},"FORT HOODTXW-3",1071,"FORT HOODTXW-3",1416]
[{"$nulls":16},"FORT HOODTXW-4",1143,"FORT HOODTXW-4",1461]
[{"$nulls":16},"FORT HOODTXW-5",1251,"FORT HOODTXW-5",1512]
[{"$nulls":16},"FORT HOODTXO-1E",1014,"FORT HOODTXO-1E",1248]
[{"$nulls":16},"FORT HOODTXO-2E",1059,"FORT HOODTXO-2E",1395]
[{"$nulls":16},"FORT HOODTXO-3E",1116,"FORT HOODTXO-3E",1470]
[{"$nulls":16},"FORT HOODTXO-1",897,"FORT HOODTXO-1",1026]
[{"$nulls":16},"FORT HOODTXO-2",996,"FORT HOODTXO-2",1113]
[{"$nulls":16},"FORT HOODTXO-3",1080,"FORT HOODTXO-3",1410]
[{"$nulls":16},"FORT HOODTXO-4",1236,"FORT HOODTXO-4",1533]
[{"$nulls":16},"FORT HOODTXO-5",1305,"FORT HOODTXO-5",1617]
[{"$nulls":16},"FORT HOODTXO-6",1416,"FORT HOODTXO-6",1632]
[{"$nulls":16},"FORT HOODTXO-7",1446,"FORT HOODTXO-7",1650]
[{"$nulls":16},"WICHITA FALLS/SHEPPARD AFBTXE-1",723,"WICHITA FALLS/SHEPPARD AFBTXE-1",966]
[{"$nulls":16},"WICHITA FALLS/SHEPPARD AFBTXE-2",723,"WICHITA FALLS/SHEPPARD AFBTXE-2",966]
[{"$nulls":16},"WICHITA FALLS/SHEPPARD AFBTXE-3",723,"WICHITA FALLS/SHEPPARD AFBTXE-3",966]
[{"$nulls":16},"WICHITA FALLS/SHEPPARD AFBTXE-4",723,"WICHITA FALLS/SHEPPARD AFBTXE-4",966]
[{"$nulls":16},"WICHITA FALLS/SHEPPARD AFBTXE-5",810,"WICHITA FALLS/SHEPPARD AFBTXE-5",1080]
[{"$nulls":16},"WICHITA FALLS/SHEPPARD AFBTXE-6",1005,"WICHITA FALLS/SHEPPARD AFBTXE-6",1338]
[{"$nulls":16},"WICHITA FALLS/SHEPPARD AFBTXE-7",1074,"WICHITA FALLS/SHEPPARD AFBTXE-7",1431]
[{"$nulls":16},"WICHITA FALLS/SHEPPARD AFBTXE-8",1149,"WICHITA FALLS/SHEPPARD AFBTXE-8",1533]
[{"$nulls":16},"WICHITA FALLS/SHEPPARD AFBTXE-9",1254,"WICHITA FALLS/SHEPPARD AFBTXE-9",1671]
[{"$nulls":16},"WICHITA FALLS/SHEPPARD AFBTXW-1",1005,"WICHITA FALLS/SHEPPARD AFBTXW-1",1341]
[{"$nulls":16},"WICHITA FALLS/SHEPPARD AFBTXW-2",1131,"WICHITA FALLS/SHEPPARD AFBTXW-2",1473]
[{"$nulls":16},"WICHITA FALLS/SHEPPARD AFBTXW-3",1221,"WICHITA FALLS/SHEPPARD AFBTXW-3",1599]
[{"$nulls":16},"WICHITA FALLS/SHEPPARD AFBTXW-4",1362,"WICHITA FALLS/SHEPPARD AFBTXW-4",1701]
[{"$nulls":16},"WICHITA FALLS/SHEPPARD AFBTXW-5",1455,"WICHITA FALLS/SHEPPARD AFBTXW-5",1818]
[{"$nulls":16},"WICHITA FALLS/SHEPPARD AFBTXO-1E",1089,"WICHITA FALLS/SHEPPARD AFBTXO-1E",1452]
[{"$nulls":16},"WICHITA FALLS/SHEPPARD AFBTXO-2E",1194,"WICHITA FALLS/SHEPPARD AFBTXO-2E",1581]
[{"$nulls":16},"WICHITA FALLS/SHEPPARD AFBTXO-3E",1338,"WICHITA FALLS/SHEPPARD AFBTXO-3E",1719]
[{"$nulls":16},"WICHITA FALLS/SHEPPARD AFBTXO-1",849,"WICHITA FALLS/SHEPPARD AFBTXO-1",1110]
[{"$nulls":16},"WICHITA FALLS/SHEPPARD AFBTXO-2",1041,"WICHITA FALLS/SHEPPARD AFBTXO-2",1332]
[{"$nulls":16},"WICHITA FALLS/SHEPPARD AFBTXO-3",1245,"WICHITA FALLS/SHEPPARD AFBTXO-3",1593]
[{"$nulls":16},"WICHITA FALLS/SHEPPARD AFBTXO-4",1443,"WICHITA FALLS/SHEPPARD AFBTXO-4",1866]
[{"$nulls":16},"WICHITA FALLS/SHEPPARD AFBTXO-5",1545,"WICHITA FALLS/SHEPPARD AFBTXO-5",2058]
[{"$nulls":16},"WICHITA FALLS/SHEPPARD AFBTXO-6",1599,"WICHITA FALLS/SHEPPARD AFBTXO-6",2079]
[{"$nulls":16},"WICHITA FALLS/SHEPPARD AFBTXO-7",1632,"WICHITA FALLS/SHEPPARD AFBTXO-7",2100]
[{"$nulls":16},"FORT WORTHTXE-1",852,"FORT WORTHTXE-1",1137]
[{"$nulls":16},"FORT WORTHTXE-2",852,"FORT WORTHTXE-2",1137]
[{"$nulls":16},"FORT WORTHTXE-3",852,"FORT WORTHTXE-3",1137]
[{"$nulls":16},"FORT WORTHTXE-4",852,"FORT WORTHTXE-4",1137]
[{"$nulls":16},"FORT WORTHTXE-5",960,"FORT WORTHTXE-5",1236]
[{"$nulls":16},"FORT WORTHTXE-6",1050,"FORT WORTHTXE-6",1377]
[{"$nulls":16},"FORT WORTHTXE-7",1143,"FORT WORTHTXE-7",1467]
[{"$nulls":16},"FORT WORTHTXE-8",1263,"FORT WORTHTXE-8",1563]
[{"$nulls":16},"FORT WORTHTXE-9",1308,"FORT WORTHTXE-9",1677]
[{"$nulls":16},"FORT WORTHTXW-1",1098,"FORT WORTHTXW-1",1380]
[{"$nulls":16},"FORT WORTHTXW-2",1263,"FORT WORTHTXW-2",1506]
[{"$nulls":16},"FORT WORTHTXW-3",1314,"FORT WORTHTXW-3",1623]
[{"$nulls":16},"FORT WORTHTXW-4",1401,"FORT WORTHTXW-4",1698]
[{"$nulls":16},"FORT WORTHTXW-5",1488,"FORT WORTHTXW-5",1788]
[{"$nulls":16},"FORT WORTHTXO-1E",1236,"FORT WORTHTXO-1E",1485]
[{"$nulls":16},"FORT WORTHTXO-2E",1299,"FORT WORTHTXO-2E",1605]
[{"$nulls":16},"FORT WORTHTXO-3E",1377,"FORT WORTHTXO-3E",1713]
[{"$nulls":16},"FORT WORTHTXO-1",1035,"FORT WORTHTXO-1",1251]
[{"$nulls":16},"FORT WORTHTXO-2",1203,"FORT WORTHTXO-2",1374]
[{"$nulls":16},"FORT WORTHTXO-3",1326,"FORT WORTHTXO-3",1617]
[{"$nulls":16},"FORT WORTHTXO-4",1476,"FORT WORTHTXO-4",1821]
[{"$nulls":16},"FORT WORTHTXO-5",1533,"FORT WORTHTXO-5",1965]
[{"$nulls":16},"FORT WORTHTXO-6",1623,"FORT WORTHTXO-6",1983]
[{"$nulls":16},"FORT WORTHTXO-7",1656,"FORT WORTHTXO-7",2004]
[{"$nulls":16},"TYLERTXE-1",795,"TYLERTXE-1",1059]
[{"$nulls":16},"TYLERTXE-2",795,"TYLERTXE-2",1059]
[{"$nulls":16},"TYLERTXE-3",795,"TYLERTXE-3",1059]
[{"$nulls":16},"TYLERTXE-4",795,"TYLERTXE-4",1059]
[{"$nulls":16},"TYLERTXE-5",918,"TYLERTXE-5",1131]
[{"$nulls":16},"TYLERTXE-6",1059,"TYLERTXE-6",1413]
[{"$nulls":16},"TYLERTXE-7",1077,"TYLERTXE-7",1437]
[{"$nulls":16},"TYLERTXE-8",1188,"TYLERTXE-8",1464]
[{"$nulls":16},"TYLERTXE-9",1275,"TYLERTXE-9",1590]
[{"$nulls":16},"TYLERTXW-1",1059,"TYLERTXW-1",1413]
[{"$nulls":16},"TYLERTXW-2",1185,"TYLERTXW-2",1449]
[{"$nulls":16},"TYLERTXW-3",1284,"TYLERTXW-3",1482]
[{"$nulls":16},"TYLERTXW-4",1419,"TYLERTXW-4",1629]
[{"$nulls":16},"TYLERTXW-5",1443,"TYLERTXW-5",1806]
[{"$nulls":16},"TYLERTXO-1E",1131,"TYLERTXO-1E",1443]
[{"$nulls":16},"TYLERTXO-2E",1257,"TYLERTXO-2E",1476]
[{"$nulls":16},"TYLERTXO-3E",1413,"TYLERTXO-3E",1656]
[{"$nulls":16},"TYLERTXO-1",987,"TYLERTXO-1",1164]
[{"$nulls":16},"TYLERTXO-2",1107,"TYLERTXO-2",1407]
[{"$nulls":16},"TYLERTXO-3",1311,"TYLERTXO-3",1479]
[{"$nulls":16},"TYLERTXO-4",1440,"TYLERTXO-4",1875]
[{"$nulls":16},"TYLERTXO-5",1620,"TYLERTXO-5",2160]
[{"$nulls":16},"TYLERTXO-6",1635,"TYLERTXO-6",2181]
[{"$nulls":16},"TYLERTXO-7",1653,"TYLERTXO-7",2202]
[{"$nulls":16},"WACOTXE-1",729,"WACOTXE-1",972]
[{"$nulls":16},"WACOTXE-2",729,"WACOTXE-2",972]
[{"$nulls":16},"WACOTXE-3",729,"WACOTXE-3",972]
[{"$nulls":16},"WACOTXE-4",729,"WACOTXE-4",972]
[{"$nulls":16},"WACOTXE-5",843,"WACOTXE-5",1041]
[{"$nulls":16},"WACOTXE-6",954,"WACOTXE-6",1272]
[{"$nulls":16},"WACOTXE-7",987,"WACOTXE-7",1317]
[{"$nulls":16},"WACOTXE-8",1089,"WACOTXE-8",1365]
[{"$nulls":16},"WACOTXE-9",1158,"WACOTXE-9",1491]
[{"$nulls":16},"WACOTXW-1",954,"WACOTXW-1",1272]
[{"$nulls":16},"WACOTXW-2",1086,"WACOTXW-2",1338]
[{"$nulls":16},"WACOTXW-3",1167,"WACOTXW-3",1398]
[{"$nulls":16},"WACOTXW-4",1284,"WACOTXW-4",1527]
[{"$nulls":16},"WACOTXW-5",1329,"WACOTXW-5",1677]
[{"$nulls":16},"WACOTXO-1E",1041,"WACOTXO-1E",1326]
[{"$nulls":16},"WACOTXO-2E",1143,"WACOTXO-2E",1389]
[{"$nulls":16},"WACOTXO-3E",1272,"WACOTXO-3E",1548]
[{"$nulls":16},"WACOTXO-1",903,"WACOTXO-1",1068]
[{"$nulls":16},"WACOTXO-2",1017,"WACOTXO-2",1266]
[{"$nulls":16},"WACOTXO-3",1188,"WACOTXO-3",1395]
[{"$nulls":16},"WACOTXO-4",1323,"WACOTXO-4",1737]
[{"$nulls":16},"WACOTXO-5",1488,"WACOTXO-5",1983]
[{"$nulls":16},"WACOTXO-6",1503,"WACOTXO-6",2004]
[{"$nulls":16},"WACOTXO-7",1518,"WACOTXO-7",2022]
[{"$nulls":16},"OGDEN/HILL AFBUTE-1",777,"OGDEN/HILL AFBUTE-1",942]
[{"$nulls":16},"OGDEN/HILL AFBUTE-2",777,"OGDEN/HILL AFBUTE-2",942]
[{"$nulls":16},"OGDEN/HILL AFBUTE-3",777,"OGDEN/HILL AFBUTE-3",942]
[{"$nulls":16},"OGDEN/HILL AFBUTE-4",777,"OGDEN/HILL AFBUTE-4",942]
[{"$nulls":16},"OGDEN/HILL AFBUTE-5",867,"OGDEN/HILL AFBUTE-5",969]
[{"$nulls":16},"OGDEN/HILL AFBUTE-6",915,"OGDEN/HILL AFBUTE-6",1152]
[{"$nulls":16},"OGDEN/HILL AFBUTE-7",942,"OGDEN/HILL AFBUTE-7",1194]
[{"$nulls":16},"OGDEN/HILL AFBUTE-8",1005,"OGDEN/HILL AFBUTE-8",1239]
[{"$nulls":16},"OGDEN/HILL AFBUTE-9",1062,"OGDEN/HILL AFBUTE-9",1305]
[{"$nulls":16},"OGDEN/HILL AFBUTW-1",930,"OGDEN/HILL AFBUTW-1",1152]
[{"$nulls":16},"OGDEN/HILL AFBUTW-2",1005,"OGDEN/HILL AFBUTW-2",1212]
[{"$nulls":16},"OGDEN/HILL AFBUTW-3",1068,"OGDEN/HILL AFBUTW-3",1266]
[{"$nulls":16},"OGDEN/HILL AFBUTW-4",1161,"OGDEN/HILL AFBUTW-4",1320]
[{"$nulls":16},"OGDEN/HILL AFBUTW-5",1203,"OGDEN/HILL AFBUTW-5",1386]
[{"$nulls":16},"OGDEN/HILL AFBUTO-1E",969,"OGDEN/HILL AFBUTO-1E",1203]
[{"$nulls":16},"OGDEN/HILL AFBUTO-2E",1050,"OGDEN/HILL AFBUTO-2E",1257]
[{"$nulls":16},"OGDEN/HILL AFBUTO-3E",1152,"OGDEN/HILL AFBUTO-3E",1329]
[{"$nulls":16},"OGDEN/HILL AFBUTO-1",912,"OGDEN/HILL AFBUTO-1",990]
[{"$nulls":16},"OGDEN/HILL AFBUTO-2",960,"OGDEN/HILL AFBUTO-2",1149]
[{"$nulls":16},"OGDEN/HILL AFBUTO-3",1086,"OGDEN/HILL AFBUTO-3",1263]
[{"$nulls":16},"OGDEN/HILL AFBUTO-4",1197,"OGDEN/HILL AFBUTO-4",1410]
[{"$nulls":16},"OGDEN/HILL AFBUTO-5",1224,"OGDEN/HILL AFBUTO-5",1512]
[{"$nulls":16},"OGDEN/HILL AFBUTO-6",1266,"OGDEN/HILL AFBUTO-6",1527]
[{"$nulls":16},"OGDEN/HILL AFBUTO-7",1290,"OGDEN/HILL AFBUTO-7",1542]
[{"$nulls":16},"SALT LAKE CITYUTE-1",774,"SALT LAKE CITYUTE-1",1032]
[{"$nulls":16},"SALT LAKE CITYUTE-2",774,"SALT LAKE CITYUTE-2",1032]
[{"$nulls":16},"SALT LAKE CITYUTE-3",774,"SALT LAKE CITYUTE-3",1032]
[{"$nulls":16},"SALT LAKE CITYUTE-4",774,"SALT LAKE CITYUTE-4",1032]
[{"$nulls":16},"SALT LAKE CITYUTE-5",873,"SALT LAKE CITYUTE-5",1137]
[{"$nulls":16},"SALT LAKE CITYUTE-6",981,"SALT LAKE CITYUTE-6",1305]
[{"$nulls":16},"SALT LAKE CITYUTE-7",1038,"SALT LAKE CITYUTE-7",1359]
[{"$nulls":16},"SALT LAKE CITYUTE-8",1170,"SALT LAKE CITYUTE-8",1419]
[{"$nulls":16},"SALT LAKE CITYUTE-9",1224,"SALT LAKE CITYUTE-9",1491]
[{"$nulls":16},"SALT LAKE CITYUTW-1",990,"SALT LAKE CITYUTW-1",1308]
[{"$nulls":16},"SALT LAKE CITYUTW-2",1170,"SALT LAKE CITYUTW-2",1383]
[{"$nulls":16},"SALT LAKE CITYUTW-3",1227,"SALT LAKE CITYUTW-3",1455]
[{"$nulls":16},"SALT LAKE CITYUTW-4",1320,"SALT LAKE CITYUTW-4",1503]
[{"$nulls":16},"SALT LAKE CITYUTW-5",1374,"SALT LAKE CITYUTW-5",1560]
[{"$nulls":16},"SALT LAKE CITYUTO-1E",1137,"SALT LAKE CITYUTO-1E",1371]
[{"$nulls":16},"SALT LAKE CITYUTO-2E",1212,"SALT LAKE CITYUTO-2E",1446]
[{"$nulls":16},"SALT LAKE CITYUTO-3E",1305,"SALT LAKE CITYUTO-3E",1512]
[{"$nulls":16},"SALT LAKE CITYUTO-1",924,"SALT LAKE CITYUTO-1",1155]
[{"$nulls":16},"SALT LAKE CITYUTO-2",1101,"SALT LAKE CITYUTO-2",1302]
[{"$nulls":16},"SALT LAKE CITYUTO-3",1245,"SALT LAKE CITYUTO-3",1452]
[{"$nulls":16},"SALT LAKE CITYUTO-4",1365,"SALT LAKE CITYUTO-4",1581]
[{"$nulls":16},"SALT LAKE CITYUTO-5",1401,"SALT LAKE CITYUTO-5",1671]
[{"$nulls":16},"SALT LAKE CITYUTO-6",1455,"SALT LAKE CITYUTO-6",1689]
[{"$nulls":16},"SALT LAKE CITYUTO-7",1485,"SALT LAKE CITYUTO-7",1704]
[{"$nulls":16},"PROVOUTE-1",753,"PROVOUTE-1",963]
[{"$nulls":16},"PROVOUTE-2",753,"PROVOUTE-2",963]
[{"$nulls":16},"PROVOUTE-3",753,"PROVOUTE-3",963]
[{"$nulls":16},"PROVOUTE-4",753,"PROVOUTE-4",963]
[{"$nulls":16},"PROVOUTE-5",831,"PROVOUTE-5",1056]
[{"$nulls":16},"PROVOUTE-6",885,"PROVOUTE-6",1146]
[{"$nulls":16},"PROVOUTE-7",969,"PROVOUTE-7",1248]
[{"$nulls":16},"PROVOUTE-8",1074,"PROVOUTE-8",1359]
[{"$nulls":16},"PROVOUTE-9",1101,"PROVOUTE-9",1470]
[{"$nulls":16},"PROVOUTW-1",927,"PROVOUTW-1",1149]
[{"$nulls":16},"PROVOUTW-2",1071,"PROVOUTW-2",1293]
[{"$nulls":16},"PROVOUTW-3",1104,"PROVOUTW-3",1428]
[{"$nulls":16},"PROVOUTW-4",1170,"PROVOUTW-4",1485]
[{"$nulls":16},"PROVOUTW-5",1272,"PROVOUTW-5",1551]
[{"$nulls":16},"PROVOUTO-1E",1056,"PROVOUTO-1E",1269]
[{"$nulls":16},"PROVOUTO-2E",1095,"PROVOUTO-2E",1410]
[{"$nulls":16},"PROVOUTO-3E",1146,"PROVOUTO-3E",1494]
[{"$nulls":16},"PROVOUTO-1",870,"PROVOUTO-1",1065]
[{"$nulls":16},"PROVOUTO-2",1023,"PROVOUTO-2",1143]
[{"$nulls":16},"PROVOUTO-3",1113,"PROVOUTO-3",1422]
[{"$nulls":16},"PROVOUTO-4",1260,"PROVOUTO-4",1575]
[{"$nulls":16},"PROVOUTO-5",1323,"PROVOUTO-5",1680]
[{"$nulls":16},"PROVOUTO-6",1428,"PROVOUTO-6",1698]
[{"$nulls":16},"PROVOUTO-7",1458,"PROVOUTO-7",1716]
[{"$nulls":16},"CHARLOTTESVILLEVAE-1",1029,"CHARLOTTESVILLEVAE-1",1230]
[{"$nulls":16},"CHARLOTTESVILLEVAE-2",1029,"CHARLOTTESVILLEVAE-2",1230]
[{"$nulls":16},"CHARLOTTESVILLEVAE-3",1029,"CHARLOTTESVILLEVAE-3",1230]
[{"$nulls":16},"CHARLOTTESVILLEVAE-4",1029,"CHARLOTTESVILLEVAE-4",1230]
[{"$nulls":16},"CHARLOTTESVILLEVAE-5",1113,"CHARLOTTESVILLEVAE-5",1308]
[{"$nulls":16},"CHARLOTTESVILLEVAE-6",1164,"CHARLOTTESVILLEVAE-6",1467]
[{"$nulls":16},"CHARLOTTESVILLEVAE-7",1236,"CHARLOTTESVILLEVAE-7",1584]
[{"$nulls":16},"CHARLOTTESVILLEVAE-8",1338,"CHARLOTTESVILLEVAE-8",1710]
[{"$nulls":16},"CHARLOTTESVILLEVAE-9",1392,"CHARLOTTESVILLEVAE-9",1857]
[{"$nulls":16},"CHARLOTTESVILLEVAW-1",1200,"CHARLOTTESVILLEVAW-1",1470]
[{"$nulls":16},"CHARLOTTESVILLEVAW-2",1338,"CHARLOTTESVILLEVAW-2",1635]
[{"$nulls":16},"CHARLOTTESVILLEVAW-3",1392,"CHARLOTTESVILLEVAW-3",1788]
[{"$nulls":16},"CHARLOTTESVILLEVAW-4",1497,"CHARLOTTESVILLEVAW-4",1881]
[{"$nulls":16},"CHARLOTTESVILLEVAW-5",1611,"CHARLOTTESVILLEVAW-5",1989]
[{"$nulls":16},"CHARLOTTESVILLEVAO-1E",1308,"CHARLOTTESVILLEVAO-1E",1608]
[{"$nulls":16},"CHARLOTTESVILLEVAO-2E",1377,"CHARLOTTESVILLEVAO-2E",1767]
[{"$nulls":16},"CHARLOTTESVILLEVAO-3E",1467,"CHARLOTTESVILLEVAO-3E",1896]
[{"$nulls":16},"CHARLOTTESVILLEVAO-1",1155,"CHARLOTTESVILLEVAO-1",1326]
[{"$nulls":16},"CHARLOTTESVILLEVAO-2",1281,"CHARLOTTESVILLEVAO-2",1464]
[{"$nulls":16},"CHARLOTTESVILLEVAO-3",1410,"CHARLOTTESVILLEVAO-3",1782]
[{"$nulls":16},"CHARLOTTESVILLEVAO-4",1596,"CHARLOTTESVILLEVAO-4",2031]
[{"$nulls":16},"CHARLOTTESVILLEVAO-5",1671,"CHARLOTTESVILLEVAO-5",2205]
[{"$nulls":16},"CHARLOTTESVILLEVAO-6",1788,"CHARLOTTESVILLEVAO-6",2226]
[{"$nulls":16},"CHARLOTTESVILLEVAO-7",1824,"CHARLOTTESVILLEVAO-7",2250]
[{"$nulls":16},"QUANTICO/WOODBRIDGEVAE-1",1152,"QUANTICO/WOODBRIDGEVAE-1",1398]
[{"$nulls":16},"QUANTICO/WOODBRIDGEVAE-2",1152,"QUANTICO/WOODBRIDGEVAE-2",1398]
[{"$nulls":16},"QUANTICO/WOODBRIDGEVAE-3",1152,"QUANTICO/WOODBRIDGEVAE-3",1398]
[{"$nulls":16},"QUANTICO/WOODBRIDGEVAE-4",1152,"QUANTICO/WOODBRIDGEVAE-4",1398]
[{"$nulls":16},"QUANTICO/WOODBRIDGEVAE-5",1284,"QUANTICO/WOODBRIDGEVAE-5",1446]
[{"$nulls":16},"QUANTICO/WOODBRIDGEVAE-6",1356,"QUANTICO/WOODBRIDGEVAE-6",1686]
[{"$nulls":16},"QUANTICO/WOODBRIDGEVAE-7",1401,"QUANTICO/WOODBRIDGEVAE-7",1773]
[{"$nulls":16},"QUANTICO/WOODBRIDGEVAE-8",1494,"QUANTICO/WOODBRIDGEVAE-8",1869]
[{"$nulls":16},"QUANTICO/WOODBRIDGEVAE-9",1569,"QUANTICO/WOODBRIDGEVAE-9",2004]
[{"$nulls":16},"QUANTICO/WOODBRIDGEVAW-1",1380,"QUANTICO/WOODBRIDGEVAW-1",1689]
[{"$nulls":16},"QUANTICO/WOODBRIDGEVAW-2",1491,"QUANTICO/WOODBRIDGEVAW-2",1812]
[{"$nulls":16},"QUANTICO/WOODBRIDGEVAW-3",1575,"QUANTICO/WOODBRIDGEVAW-3",1929]
[{"$nulls":16},"QUANTICO/WOODBRIDGEVAW-4",1710,"QUANTICO/WOODBRIDGEVAW-4",2034]
[{"$nulls":16},"QUANTICO/WOODBRIDGEVAW-5",1794,"QUANTICO/WOODBRIDGEVAW-5",2160]
[{"$nulls":16},"QUANTICO/WOODBRIDGEVAO-1E",1446,"QUANTICO/WOODBRIDGEVAO-1E",1794]
[{"$nulls":16},"QUANTICO/WOODBRIDGEVAO-2E",1551,"QUANTICO/WOODBRIDGEVAO-2E",1911]
[{"$nulls":16},"QUANTICO/WOODBRIDGEVAO-3E",1686,"QUANTICO/WOODBRIDGEVAO-3E",2052]
[{"$nulls":16},"QUANTICO/WOODBRIDGEVAO-1",1350,"QUANTICO/WOODBRIDGEVAO-1",1473]
[{"$nulls":16},"QUANTICO/WOODBRIDGEVAO-2",1431,"QUANTICO/WOODBRIDGEVAO-2",1683]
[{"$nulls":16},"QUANTICO/WOODBRIDGEVAO-3",1599,"QUANTICO/WOODBRIDGEVAO-3",1923]
[{"$nulls":16},"QUANTICO/WOODBRIDGEVAO-4",1782,"QUANTICO/WOODBRIDGEVAO-4",2208]
[{"$nulls":16},"QUANTICO/WOODBRIDGEVAO-5",1839,"QUANTICO/WOODBRIDGEVAO-5",2409]
[{"$nulls":16},"QUANTICO/WOODBRIDGEVAO-6",1929,"QUANTICO/WOODBRIDGEVAO-6",2433]
[{"$nulls":16},"QUANTICO/WOODBRIDGEVAO-7",1968,"QUANTICO/WOODBRIDGEVAO-7",2457]
[{"$nulls":16},"HAMPTON/NEWPORT NEWSVAE-1",1053,"HAMPTON/NEWPORT NEWSVAE-1",1260]
[{"$nulls":16},"HAMPTON/NEWPORT NEWSVAE-2",1053,"HAMPTON/NEWPORT NEWSVAE-2",1260]
[{"$nulls":16},"HAMPTON/NEWPORT NEWSVAE-3",1053,"HAMPTON/NEWPORT NEWSVAE-3",1260]
[{"$nulls":16},"HAMPTON/NEWPORT NEWSVAE-4",1053,"HAMPTON/NEWPORT NEWSVAE-4",1260]
[{"$nulls":16},"HAMPTON/NEWPORT NEWSVAE-5",1116,"HAMPTON/NEWPORT NEWSVAE-5",1374]
[{"$nulls":16},"HAMPTON/NEWPORT NEWSVAE-6",1209,"HAMPTON/NEWPORT NEWSVAE-6",1611]
[{"$nulls":16},"HAMPTON/NEWPORT NEWSVAE-7",1314,"HAMPTON/NEWPORT NEWSVAE-7",1752]
[{"$nulls":16},"HAMPTON/NEWPORT NEWSVAE-8",1431,"HAMPTON/NEWPORT NEWSVAE-8",1908]
[{"$nulls":16},"HAMPTON/NEWPORT NEWSVAE-9",1539,"HAMPTON/NEWPORT NEWSVAE-9",2052]
[{"$nulls":16},"HAMPTON/NEWPORT NEWSVAW-1",1215,"HAMPTON/NEWPORT NEWSVAW-1",1614]
[{"$nulls":16},"HAMPTON/NEWPORT NEWSVAW-2",1419,"HAMPTON/NEWPORT NEWSVAW-2",1818]
[{"$nulls":16},"HAMPTON/NEWPORT NEWSVAW-3",1506,"HAMPTON/NEWPORT NEWSVAW-3",2007]
[{"$nulls":16},"HAMPTON/NEWPORT NEWSVAW-4",1647,"HAMPTON/NEWPORT NEWSVAW-4",2070]
[{"$nulls":16},"HAMPTON/NEWPORT NEWSVAW-5",1788,"HAMPTON/NEWPORT NEWSVAW-5",2142]
[{"$nulls":16},"HAMPTON/NEWPORT NEWSVAO-1E",1374,"HAMPTON/NEWPORT NEWSVAO-1E",1785]
[{"$nulls":16},"HAMPTON/NEWPORT NEWSVAO-2E",1485,"HAMPTON/NEWPORT NEWSVAO-2E",1980]
[{"$nulls":16},"HAMPTON/NEWPORT NEWSVAO-3E",1611,"HAMPTON/NEWPORT NEWSVAO-3E",2082]
[{"$nulls":16},"HAMPTON/NEWPORT NEWSVAO-1",1146,"HAMPTON/NEWPORT NEWSVAO-1",1398]
[{"$nulls":16},"HAMPTON/NEWPORT NEWSVAO-2",1335,"HAMPTON/NEWPORT NEWSVAO-2",1605]
[{"$nulls":16},"HAMPTON/NEWPORT NEWSVAO-3",1524,"HAMPTON/NEWPORT NEWSVAO-3",2001]
[{"$nulls":16},"HAMPTON/NEWPORT NEWSVAO-4",1770,"HAMPTON/NEWPORT NEWSVAO-4",2172]
[{"$nulls":16},"HAMPTON/NEWPORT NEWSVAO-5",1860,"HAMPTON/NEWPORT NEWSVAO-5",2289]
[{"$nulls":16},"HAMPTON/NEWPORT NEWSVAO-6",2007,"HAMPTON/NEWPORT NEWSVAO-6",2313]
[{"$nulls":16},"HAMPTON/NEWPORT NEWSVAO-7",2049,"HAMPTON/NEWPORT NEWSVAO-7",2337]
[{"$nulls":16},"NORFOLK/PORTSMOUTHVAE-1",1110,"NORFOLK/PORTSMOUTHVAE-1",1359]
[{"$nulls":16},"NORFOLK/PORTSMOUTHVAE-2",1110,"NORFOLK/PORTSMOUTHVAE-2",1359]
[{"$nulls":16},"NORFOLK/PORTSMOUTHVAE-3",1110,"NORFOLK/PORTSMOUTHVAE-3",1359]
[{"$nulls":16},"NORFOLK/PORTSMOUTHVAE-4",1110,"NORFOLK/PORTSMOUTHVAE-4",1359]
[{"$nulls":16},"NORFOLK/PORTSMOUTHVAE-5",1212,"NORFOLK/PORTSMOUTHVAE-5",1452]
[{"$nulls":16},"NORFOLK/PORTSMOUTHVAE-6",1314,"NORFOLK/PORTSMOUTHVAE-6",1752]
[{"$nulls":16},"NORFOLK/PORTSMOUTHVAE-7",1365,"NORFOLK/PORTSMOUTHVAE-7",1785]
[{"$nulls":16},"NORFOLK/PORTSMOUTHVAE-8",1512,"NORFOLK/PORTSMOUTHVAE-8",1821]
[{"$nulls":16},"NORFOLK/PORTSMOUTHVAE-9",1605,"NORFOLK/PORTSMOUTHVAE-9",1926]
[{"$nulls":16},"NORFOLK/PORTSMOUTHVAW-1",1323,"NORFOLK/PORTSMOUTHVAW-1",1752]
[{"$nulls":16},"NORFOLK/PORTSMOUTHVAW-2",1509,"NORFOLK/PORTSMOUTHVAW-2",1800]
[{"$nulls":16},"NORFOLK/PORTSMOUTHVAW-3",1614,"NORFOLK/PORTSMOUTHVAW-3",1842]
[{"$nulls":16},"NORFOLK/PORTSMOUTHVAW-4",1758,"NORFOLK/PORTSMOUTHVAW-4",1956]
[{"$nulls":16},"NORFOLK/PORTSMOUTHVAW-5",1791,"NORFOLK/PORTSMOUTHVAW-5",2091]
[{"$nulls":16},"NORFOLK/PORTSMOUTHVAO-1E",1452,"NORFOLK/PORTSMOUTHVAO-1E",1791]
[{"$nulls":16},"NORFOLK/PORTSMOUTHVAO-2E",1584,"NORFOLK/PORTSMOUTHVAO-2E",1836]
[{"$nulls":16},"NORFOLK/PORTSMOUTHVAO-3E",1752,"NORFOLK/PORTSMOUTHVAO-3E",1977]
[{"$nulls":16},"NORFOLK/PORTSMOUTHVAO-1",1263,"NORFOLK/PORTSMOUTHVAO-1",1485]
[{"$nulls":16},"NORFOLK/PORTSMOUTHVAO-2",1422,"NORFOLK/PORTSMOUTHVAO-2",1746]
[{"$nulls":16},"NORFOLK/PORTSMOUTHVAO-3",1644,"NORFOLK/PORTSMOUTHVAO-3",1842]
[{"$nulls":16},"NORFOLK/PORTSMOUTHVAO-4",1788,"NORFOLK/PORTSMOUTHVAO-4",2142]
[{"$nulls":16},"NORFOLK/PORTSMOUTHVAO-5",1809,"NORFOLK/PORTSMOUTHVAO-5",2358]
[{"$nulls":16},"NORFOLK/PORTSMOUTHVAO-6",1842,"NORFOLK/PORTSMOUTHVAO-6",2382]
[{"$nulls":16},"NORFOLK/PORTSMOUTHVAO-7",1881,"NORFOLK/PORTSMOUTHVAO-7",2406]
[{"$nulls":16},"PETERSBERG/FORT LEEVAE-1",873,"PETERSBERG/FORT LEEVAE-1",1161]
[{"$nulls":16},"PETERSBERG/FORT LEEVAE-2",873,"PETERSBERG/FORT LEEVAE-2",1161]
[{"$nulls":16},"PETERSBERG/FORT LEEVAE-3",873,"PETERSBERG/FORT LEEVAE-3",1161]
[{"$nulls":16},"PETERSBERG/FORT LEEVAE-4",873,"PETERSBERG/FORT LEEVAE-4",1161]
[{"$nulls":16},"PETERSBERG/FORT LEEVAE-5",1050,"PETERSBERG/FORT LEEVAE-5",1182]
[{"$nulls":16},"PETERSBERG/FORT LEEVAE-6",1146,"PETERSBERG/FORT LEEVAE-6",1197]
[{"$nulls":16},"PETERSBERG/FORT LEEVAE-7",1164,"PETERSBERG/FORT LEEVAE-7",1257]
[{"$nulls":16},"PETERSBERG/FORT LEEVAE-8",1185,"PETERSBERG/FORT LEEVAE-8",1320]
[{"$nulls":16},"PETERSBERG/FORT LEEVAE-9",1188,"PETERSBERG/FORT LEEVAE-9",1419]
[{"$nulls":16},"PETERSBERG/FORT LEEVAW-1",1155,"PETERSBERG/FORT LEEVAW-1",1200]
[{"$nulls":16},"PETERSBERG/FORT LEEVAW-2",1185,"PETERSBERG/FORT LEEVAW-2",1281]
[{"$nulls":16},"PETERSBERG/FORT LEEVAW-3",1191,"PETERSBERG/FORT LEEVAW-3",1359]
[{"$nulls":16},"PETERSBERG/FORT LEEVAW-4",1212,"PETERSBERG/FORT LEEVAW-4",1443]
[{"$nulls":16},"PETERSBERG/FORT LEEVAW-5",1269,"PETERSBERG/FORT LEEVAW-5",1539]
[{"$nulls":16},"PETERSBERG/FORT LEEVAO-1E",1182,"PETERSBERG/FORT LEEVAO-1E",1269]
[{"$nulls":16},"PETERSBERG/FORT LEEVAO-2E",1188,"PETERSBERG/FORT LEEVAO-2E",1350]
[{"$nulls":16},"PETERSBERG/FORT LEEVAO-3E",1197,"PETERSBERG/FORT LEEVAO-3E",1458]
[{"$nulls":16},"PETERSBERG/FORT LEEVAO-1",1143,"PETERSBERG/FORT LEEVAO-1",1182]
[{"$nulls":16},"PETERSBERG/FORT LEEVAO-2",1176,"PETERSBERG/FORT LEEVAO-2",1197]
[{"$nulls":16},"PETERSBERG/FORT LEEVAO-3",1191,"PETERSBERG/FORT LEEVAO-3",1356]
[{"$nulls":16},"PETERSBERG/FORT LEEVAO-4",1263,"PETERSBERG/FORT LEEVAO-4",1575]
[{"$nulls":16},"PETERSBERG/FORT LEEVAO-5",1299,"PETERSBERG/FORT LEEVAO-5",1731]
[{"$nulls":16},"PETERSBERG/FORT LEEVAO-6",1359,"PETERSBERG/FORT LEEVAO-6",1749]
[{"$nulls":16},"PETERSBERG/FORT LEEVAO-7",1386,"PETERSBERG/FORT LEEVAO-7",1767]
[{"$nulls":16},"RICHMONDVAE-1",1017,"RICHMONDVAE-1",1245]
[{"$nulls":16},"RICHMONDVAE-2",1017,"RICHMONDVAE-2",1245]
[{"$nulls":16},"RICHMONDVAE-3",1017,"RICHMONDVAE-3",1245]
[{"$nulls":16},"RICHMONDVAE-4",1017,"RICHMONDVAE-4",1245]
[{"$nulls":16},"RICHMONDVAE-5",1107,"RICHMONDVAE-5",1338]
[{"$nulls":16},"RICHMONDVAE-6",1164,"RICHMONDVAE-6",1479]
[{"$nulls":16},"RICHMONDVAE-7",1248,"RICHMONDVAE-7",1524]
[{"$nulls":16},"RICHMONDVAE-8",1365,"RICHMONDVAE-8",1575]
[{"$nulls":16},"RICHMONDVAE-9",1410,"RICHMONDVAE-9",1680]
[{"$nulls":16},"RICHMONDVAW-1",1209,"RICHMONDVAW-1",1479]
[{"$nulls":16},"RICHMONDVAW-2",1365,"RICHMONDVAW-2",1545]
[{"$nulls":16},"RICHMONDVAW-3",1413,"RICHMONDVAW-3",1605]
[{"$nulls":16},"RICHMONDVAW-4",1491,"RICHMONDVAW-4",1707]
[{"$nulls":16},"RICHMONDVAW-5",1536,"RICHMONDVAW-5",1827]
[{"$nulls":16},"RICHMONDVAO-1E",1338,"RICHMONDVAO-1E",1533]
[{"$nulls":16},"RICHMONDVAO-2E",1398,"RICHMONDVAO-2E",1596]
[{"$nulls":16},"RICHMONDVAO-3E",1479,"RICHMONDVAO-3E",1725]
[{"$nulls":16},"RICHMONDVAO-1",1149,"RICHMONDVAO-1",1353]
[{"$nulls":16},"RICHMONDVAO-2",1305,"RICHMONDVAO-2",1476]
[{"$nulls":16},"RICHMONDVAO-3",1428,"RICHMONDVAO-3",1602]
[{"$nulls":16},"RICHMONDVAO-4",1530,"RICHMONDVAO-4",1872]
[{"$nulls":16},"RICHMONDVAO-5",1557,"RICHMONDVAO-5",2064]
[{"$nulls":16},"RICHMONDVAO-6",1605,"RICHMONDVAO-6",2085]
[{"$nulls":16},"RICHMONDVAO-7",1638,"RICHMONDVAO-7",2106]
[{"$nulls":16},"WARRENTON/VINT HILL FARMVAE-1",1128,"WARRENTON/VINT HILL FARMVAE-1",1506]
[{"$nulls":16},"WARRENTON/VINT HILL FARMVAE-2",1128,"WARRENTON/VINT HILL FARMVAE-2",1506]
[{"$nulls":16},"WARRENTON/VINT HILL FARMVAE-3",1128,"WARRENTON/VINT HILL FARMVAE-3",1506]
[{"$nulls":16},"WARRENTON/VINT HILL FARMVAE-4",1128,"WARRENTON/VINT HILL FARMVAE-4",1506]
[{"$nulls":16},"WARRENTON/VINT HILL FARMVAE-5",1278,"WARRENTON/VINT HILL FARMVAE-5",1704]
[{"$nulls":16},"WARRENTON/VINT HILL FARMVAE-6",1554,"WARRENTON/VINT HILL FARMVAE-6",2070]
[{"$nulls":16},"WARRENTON/VINT HILL FARMVAE-7",1578,"WARRENTON/VINT HILL FARMVAE-7",2103]
[{"$nulls":16},"WARRENTON/VINT HILL FARMVAE-8",1779,"WARRENTON/VINT HILL FARMVAE-8",2139]
[{"$nulls":16},"WARRENTON/VINT HILL FARMVAE-9",1890,"WARRENTON/VINT HILL FARMVAE-9",2226]
[{"$nulls":16},"WARRENTON/VINT HILL FARMVAW-1",1554,"WARRENTON/VINT HILL FARMVAW-1",2070]
[{"$nulls":16},"WARRENTON/VINT HILL FARMVAW-2",1773,"WARRENTON/VINT HILL FARMVAW-2",2118]
[{"$nulls":16},"WARRENTON/VINT HILL FARMVAW-3",1902,"WARRENTON/VINT HILL FARMVAW-3",2160]
[{"$nulls":16},"WARRENTON/VINT HILL FARMVAW-4",2079,"WARRENTON/VINT HILL FARMVAW-4",2253]
[{"$nulls":16},"WARRENTON/VINT HILL FARMVAW-5",2112,"WARRENTON/VINT HILL FARMVAW-5",2361]
[{"$nulls":16},"WARRENTON/VINT HILL FARMVAO-1E",1704,"WARRENTON/VINT HILL FARMVAO-1E",2109]
[{"$nulls":16},"WARRENTON/VINT HILL FARMVAO-2E",1866,"WARRENTON/VINT HILL FARMVAO-2E",2154]
[{"$nulls":16},"WARRENTON/VINT HILL FARMVAO-3E",2070,"WARRENTON/VINT HILL FARMVAO-3E",2268]
[{"$nulls":16},"WARRENTON/VINT HILL FARMVAO-1",1308,"WARRENTON/VINT HILL FARMVAO-1",1746]
[{"$nulls":16},"WARRENTON/VINT HILL FARMVAO-2",1638,"WARRENTON/VINT HILL FARMVAO-2",2064]
[{"$nulls":16},"WARRENTON/VINT HILL FARMVAO-3",1938,"WARRENTON/VINT HILL FARMVAO-3",2160]
[{"$nulls":16},"WARRENTON/VINT HILL FARMVAO-4",2106,"WARRENTON/VINT HILL FARMVAO-4",2403]
[{"$nulls":16},"WARRENTON/VINT HILL FARMVAO-5",2127,"WARRENTON/VINT HILL FARMVAO-5",2577]
[{"$nulls":16},"WARRENTON/VINT HILL FARMVAO-6",2160,"WARRENTON/VINT HILL FARMVAO-6",2601]
[{"$nulls":16},"WARRENTON/VINT HILL FARMVAO-7",2205,"WARRENTON/VINT HILL FARMVAO-7",2628]
[{"$nulls":16},"LEXINGTONVAE-1",747,"LEXINGTONVAE-1",993]
[{"$nulls":16},"LEXINGTONVAE-2",747,"LEXINGTONVAE-2",993]
[{"$nulls":16},"LEXINGTONVAE-3",747,"LEXINGTONVAE-3",993]
[{"$nulls":16},"LEXINGTONVAE-4",747,"LEXINGTONVAE-4",993]
[{"$nulls":16},"LEXINGTONVAE-5",891,"LEXINGTONVAE-5",1185]
[{"$nulls":16},"LEXINGTONVAE-6",951,"LEXINGTONVAE-6",1266]
[{"$nulls":16},"LEXINGTONVAE-7",1005,"LEXINGTONVAE-7",1335]
[{"$nulls":16},"LEXINGTONVAE-8",1203,"LEXINGTONVAE-8",1410]
[{"$nulls":16},"LEXINGTONVAE-9",1227,"LEXINGTONVAE-9",1527]
[{"$nulls":16},"LEXINGTONVAW-1",951,"LEXINGTONVAW-1",1269]
[{"$nulls":16},"LEXINGTONVAW-2",1200,"LEXINGTONVAW-2",1365]
[{"$nulls":16},"LEXINGTONVAW-3",1230,"LEXINGTONVAW-3",1458]
[{"$nulls":16},"LEXINGTONVAW-4",1284,"LEXINGTONVAW-4",1551]
[{"$nulls":16},"LEXINGTONVAW-5",1353,"LEXINGTONVAW-5",1662]
[{"$nulls":16},"LEXINGTONVAO-1E",1185,"LEXINGTONVAO-1E",1350]
[{"$nulls":16},"LEXINGTONVAO-2E",1221,"LEXINGTONVAO-2E",1446]
[{"$nulls":16},"LEXINGTONVAO-3E",1266,"LEXINGTONVAO-3E",1569]
[{"$nulls":16},"LEXINGTONVAO-1",897,"LEXINGTONVAO-1",1194]
[{"$nulls":16},"LEXINGTONVAO-2",1122,"LEXINGTONVAO-2",1266]
[{"$nulls":16},"LEXINGTONVAO-3",1239,"LEXINGTONVAO-3",1455]
[{"$nulls":16},"LEXINGTONVAO-4",1344,"LEXINGTONVAO-4",1707]
[{"$nulls":16},"LEXINGTONVAO-5",1413,"LEXINGTONVAO-5",1884]
[{"$nulls":16},"LEXINGTONVAO-6",1458,"LEXINGTONVAO-6",1905]
[{"$nulls":16},"LEXINGTONVAO-7",1488,"LEXINGTONVAO-7",1923]
[{"$nulls":16},"ROANOKEVAE-1",720,"ROANOKEVAE-1",897]
[{"$nulls":16},"ROANOKEVAE-2",720,"ROANOKEVAE-2",897]
[{"$nulls":16},"ROANOKEVAE-3",720,"ROANOKEVAE-3",897]
[{"$nulls":16},"ROANOKEVAE-4",720,"ROANOKEVAE-4",897]
[{"$nulls":16},"ROANOKEVAE-5",777,"ROANOKEVAE-5",987]
[{"$nulls":16},"ROANOKEVAE-6",864,"ROANOKEVAE-6",1152]
[{"$nulls":16},"ROANOKEVAE-7",909,"ROANOKEVAE-7",1212]
[{"$nulls":16},"ROANOKEVAE-8",1020,"ROANOKEVAE-8",1278]
[{"$nulls":16},"ROANOKEVAE-9",1071,"ROANOKEVAE-9",1389]
[{"$nulls":16},"ROANOKEVAW-1",864,"ROANOKEVAW-1",1155]
[{"$nulls":16},"ROANOKEVAW-2",1020,"ROANOKEVAW-2",1239]
[{"$nulls":16},"ROANOKEVAW-3",1077,"ROANOKEVAW-3",1320]
[{"$nulls":16},"ROANOKEVAW-4",1167,"ROANOKEVAW-4",1416]
[{"$nulls":16},"ROANOKEVAW-5",1227,"ROANOKEVAW-5",1524]
[{"$nulls":16},"ROANOKEVAO-1E",987,"ROANOKEVAO-1E",1227]
[{"$nulls":16},"ROANOKEVAO-2E",1059,"ROANOKEVAO-2E",1308]
[{"$nulls":16},"ROANOKEVAO-3E",1152,"ROANOKEVAO-3E",1431]
[{"$nulls":16},"ROANOKEVAO-1",804,"ROANOKEVAO-1",1005]
[{"$nulls":16},"ROANOKEVAO-2",957,"ROANOKEVAO-2",1149]
[{"$nulls":16},"ROANOKEVAO-3",1092,"ROANOKEVAO-3",1317]
[{"$nulls":16},"ROANOKEVAO-4",1221,"ROANOKEVAO-4",1569]
[{"$nulls":16},"ROANOKEVAO-5",1311,"ROANOKEVAO-5",1746]
[{"$nulls":16},"ROANOKEVAO-6",1323,"ROANOKEVAO-6",1764]
[{"$nulls":16},"ROANOKEVAO-7",1347,"ROANOKEVAO-7",1782]
[{"$nulls":16},"FORT A.P. HILLVAE-1",1029,"FORT A.P. HILLVAE-1",1224]
[{"$nulls":16},"FORT A.P. HILLVAE-2",1029,"FORT A.P. HILLVAE-2",1224]
[{"$nulls":16},"FORT A.P. HILLVAE-3",1029,"FORT A.P. HILLVAE-3",1224]
[{"$nulls":16},"FORT A.P. HILLVAE-4",1029,"FORT A.P. HILLVAE-4",1224]
[{"$nulls":16},"FORT A.P. HILLVAE-5",1089,"FORT A.P. HILLVAE-5",1326]
[{"$nulls":16},"FORT A.P. HILLVAE-6",1284,"FORT A.P. HILLVAE-6",1710]
[{"$nulls":16},"FORT A.P. HILLVAE-7",1311,"FORT A.P. HILLVAE-7",1746]
[{"$nulls":16},"FORT A.P. HILLVAE-8",1404,"FORT A.P. HILLVAE-8",1785]
[{"$nulls":16},"FORT A.P. HILLVAE-9",1524,"FORT A.P. HILLVAE-9",1872]
[{"$nulls":16},"FORT A.P. HILLVAW-1",1284,"FORT A.P. HILLVAW-1",1713]
[{"$nulls":16},"FORT A.P. HILLVAW-2",1401,"FORT A.P. HILLVAW-2",1761]
[{"$nulls":16},"FORT A.P. HILLVAW-3",1533,"FORT A.P. HILLVAW-3",1809]
[{"$nulls":16},"FORT A.P. HILLVAW-4",1719,"FORT A.P. HILLVAW-4",1896]
[{"$nulls":16},"FORT A.P. HILLVAW-5",1755,"FORT A.P. HILLVAW-5",1995]
[{"$nulls":16},"FORT A.P. HILLVAO-1E",1326,"FORT A.P. HILLVAO-1E",1755]
[{"$nulls":16},"FORT A.P. HILLVAO-2E",1497,"FORT A.P. HILLVAO-2E",1803]
[{"$nulls":16},"FORT A.P. HILLVAO-3E",1710,"FORT A.P. HILLVAO-3E",1911]
[{"$nulls":16},"FORT A.P. HILLVAO-1",1119,"FORT A.P. HILLVAO-1",1368]
[{"$nulls":16},"FORT A.P. HILLVAO-2",1293,"FORT A.P. HILLVAO-2",1704]
[{"$nulls":16},"FORT A.P. HILLVAO-3",1572,"FORT A.P. HILLVAO-3",1806]
[{"$nulls":16},"FORT A.P. HILLVAO-4",1749,"FORT A.P. HILLVAO-4",2034]
[{"$nulls":16},"FORT A.P. HILLVAO-5",1773,"FORT A.P. HILLVAO-5",2199]
[{"$nulls":16},"FORT A.P. HILLVAO-6",1809,"FORT A.P. HILLVAO-6",2220]
[{"$nulls":16},"FORT A.P. HILLVAO-7",1845,"FORT A.P. HILLVAO-7",2244]
[{"$nulls":16},"BURLINGTONVTE-1",1149,"BURLINGTONVTE-1",1533]
[{"$nulls":16},"BURLINGTONVTE-2",1149,"BURLINGTONVTE-2",1533]
[{"$nulls":16},"BURLINGTONVTE-3",1149,"BURLINGTONVTE-3",1533]
[{"$nulls":16},"BURLINGTONVTE-4",1149,"BURLINGTONVTE-4",1533]
[{"$nulls":16},"BURLINGTONVTE-5",1323,"BURLINGTONVTE-5",1764]
[{"$nulls":16},"BURLINGTONVTE-6",1410,"BURLINGTONVTE-6",1878]
[{"$nulls":16},"BURLINGTONVTE-7",1545,"BURLINGTONVTE-7",1950]
[{"$nulls":16},"BURLINGTONVTE-8",1785,"BURLINGTONVTE-8",2031]
[{"$nulls":16},"BURLINGTONVTE-9",1821,"BURLINGTONVTE-9",2154]
[{"$nulls":16},"BURLINGTONVTW-1",1443,"BURLINGTONVTW-1",1881]
[{"$nulls":16},"BURLINGTONVTW-2",1785,"BURLINGTONVTW-2",1983]
[{"$nulls":16},"BURLINGTONVTW-3",1824,"BURLINGTONVTW-3",2079]
[{"$nulls":16},"BURLINGTONVTW-4",1896,"BURLINGTONVTW-4",2181]
[{"$nulls":16},"BURLINGTONVTW-5",1968,"BURLINGTONVTW-5",2298]
[{"$nulls":16},"BURLINGTONVTO-1E",1764,"BURLINGTONVTO-1E",1968]
[{"$nulls":16},"BURLINGTONVTO-2E",1815,"BURLINGTONVTO-2E",2067]
[{"$nulls":16},"BURLINGTONVTO-3E",1878,"BURLINGTONVTO-3E",2199]
[{"$nulls":16},"BURLINGTONVTO-1",1332,"BURLINGTONVTO-1",1776]
[{"$nulls":16},"BURLINGTONVTO-2",1683,"BURLINGTONVTO-2",1875]
[{"$nulls":16},"BURLINGTONVTO-3",1836,"BURLINGTONVTO-3",2076]
[{"$nulls":16},"BURLINGTONVTO-4",1959,"BURLINGTONVTO-4",2343]
[{"$nulls":16},"BURLINGTONVTO-5",2004,"BURLINGTONVTO-5",2535]
[{"$nulls":16},"BURLINGTONVTO-6",2079,"BURLINGTONVTO-6",2559]
[{"$nulls":16},"BURLINGTONVTO-7",2121,"BURLINGTONVTO-7",2586]
[{"$nulls":16},"BREMERTONWAE-1",861,"BREMERTONWAE-1",1125]
[{"$nulls":16},"BREMERTONWAE-2",861,"BREMERTONWAE-2",1125]
[{"$nulls":16},"BREMERTONWAE-3",861,"BREMERTONWAE-3",1125]
[{"$nulls":16},"BREMERTONWAE-4",861,"BREMERTONWAE-4",1125]
[{"$nulls":16},"BREMERTONWAE-5",969,"BREMERTONWAE-5",1230]
[{"$nulls":16},"BREMERTONWAE-6",1035,"BREMERTONWAE-6",1365]
[{"$nulls":16},"BREMERTONWAE-7",1131,"BREMERTONWAE-7",1446]
[{"$nulls":16},"BREMERTONWAE-8",1257,"BREMERTONWAE-8",1536]
[{"$nulls":16},"BREMERTONWAE-9",1299,"BREMERTONWAE-9",1653]
[{"$nulls":16},"BREMERTONWAW-1",1086,"BREMERTONWAW-1",1368]
[{"$nulls":16},"BREMERTONWAW-2",1257,"BREMERTONWAW-2",1485]
[{"$nulls":16},"BREMERTONWAW-3",1302,"BREMERTONWAW-3",1593]
[{"$nulls":16},"BREMERTONWAW-4",1386,"BREMERTONWAW-4",1674]
[{"$nulls":16},"BREMERTONWAW-5",1467,"BREMERTONWAW-5",1770]
[{"$nulls":16},"BREMERTONWAO-1E",1230,"BREMERTONWAO-1E",1464]
[{"$nulls":16},"BREMERTONWAO-2E",1290,"BREMERTONWAO-2E",1578]
[{"$nulls":16},"BREMERTONWAO-3E",1365,"BREMERTONWAO-3E",1689]
[{"$nulls":16},"BREMERTONWAO-1",1020,"BREMERTONWAO-1",1245]
[{"$nulls":16},"BREMERTONWAO-2",1194,"BREMERTONWAO-2",1362]
[{"$nulls":16},"BREMERTONWAO-3",1317,"BREMERTONWAO-3",1587]
[{"$nulls":16},"BREMERTONWAO-4",1455,"BREMERTONWAO-4",1809]
[{"$nulls":16},"BREMERTONWAO-5",1509,"BREMERTONWAO-5",1962]
[{"$nulls":16},"BREMERTONWAO-6",1593,"BREMERTONWAO-6",1983]
[{"$nulls":16},"BREMERTONWAO-7",1626,"BREMERTONWAO-7",2001]
[{"$nulls":16},"EVERETTWAE-1",942,"EVERETTWAE-1",1236]
[{"$nulls":16},"EVERETTWAE-2",942,"EVERETTWAE-2",1236]
[{"$nulls":16},"EVERETTWAE-3",942,"EVERETTWAE-3",1236]
[{"$nulls":16},"EVERETTWAE-4",942,"EVERETTWAE-4",1236]
[{"$nulls":16},"EVERETTWAE-5",1080,"EVERETTWAE-5",1320]
[{"$nulls":16},"EVERETTWAE-6",1161,"EVERETTWAE-6",1548]
[{"$nulls":16},"EVERETTWAE-7",1239,"EVERETTWAE-7",1632]
[{"$nulls":16},"EVERETTWAE-8",1368,"EVERETTWAE-8",1725]
[{"$nulls":16},"EVERETTWAE-9",1437,"EVERETTWAE-9",1833]
[{"$nulls":16},"EVERETTWAW-1",1203,"EVERETTWAW-1",1551]
[{"$nulls":16},"EVERETTWAW-2",1365,"EVERETTWAW-2",1671]
[{"$nulls":16},"EVERETTWAW-3",1443,"EVERETTWAW-3",1782]
[{"$nulls":16},"EVERETTWAW-4",1569,"EVERETTWAW-4",1854]
[{"$nulls":16},"EVERETTWAW-5",1653,"EVERETTWAW-5",1938]
[{"$nulls":16},"EVERETTWAO-1E",1320,"EVERETTWAO-1E",1653]
[{"$nulls":16},"EVERETTWAO-2E",1422,"EVERETTWAO-2E",1767]
[{"$nulls":16},"EVERETTWAO-3E",1548,"EVERETTWAO-3E",1866]
[{"$nulls":16},"EVERETTWAO-1",1149,"EVERETTWAO-1",1347]
[{"$nulls":16},"EVERETTWAO-2",1293,"EVERETTWAO-2",1545]
[{"$nulls":16},"EVERETTWAO-3",1467,"EVERETTWAO-3",1779]
[{"$nulls":16},"EVERETTWAO-4",1644,"EVERETTWAO-4",1968]
[{"$nulls":16},"EVERETTWAO-5",1695,"EVERETTWAO-5",2103]
[{"$nulls":16},"EVERETTWAO-6",1782,"EVERETTWAO-6",2124]
[{"$nulls":16},"EVERETTWAO-7",1818,"EVERETTWAO-7",2145]
[{"$nulls":16},"PORT ANGELESWAE-1",753,"PORT ANGELESWAE-1",1005]
[{"$nulls":16},"PORT ANGELESWAE-2",753,"PORT ANGELESWAE-2",1005]
[{"$nulls":16},"PORT ANGELESWAE-3",753,"PORT ANGELESWAE-3",1005]
[{"$nulls":16},"PORT ANGELESWAE-4",753,"PORT ANGELESWAE-4",1005]
[{"$nulls":16},"PORT ANGELESWAE-5",834,"PORT ANGELESWAE-5",1104]
[{"$nulls":16},"PORT ANGELESWAE-6",969,"PORT ANGELESWAE-6",1290]
[{"$nulls":16},"PORT ANGELESWAE-7",1014,"PORT ANGELESWAE-7",1350]
[{"$nulls":16},"PORT ANGELESWAE-8",1140,"PORT ANGELESWAE-8",1419]
[{"$nulls":16},"PORT ANGELESWAE-9",1197,"PORT ANGELESWAE-9",1485]
[{"$nulls":16},"PORT ANGELESWAW-1",969,"PORT ANGELESWAW-1",1293]
[{"$nulls":16},"PORT ANGELESWAW-2",1140,"PORT ANGELESWAW-2",1377]
[{"$nulls":16},"PORT ANGELESWAW-3",1203,"PORT ANGELESWAW-3",1461]
[{"$nulls":16},"PORT ANGELESWAW-4",1305,"PORT ANGELESWAW-4",1497]
[{"$nulls":16},"PORT ANGELESWAW-5",1368,"PORT ANGELESWAW-5",1539]
[{"$nulls":16},"PORT ANGELESWAO-1E",1104,"PORT ANGELESWAO-1E",1365]
[{"$nulls":16},"PORT ANGELESWAO-2E",1185,"PORT ANGELESWAO-2E",1449]
[{"$nulls":16},"PORT ANGELESWAO-3E",1290,"PORT ANGELESWAO-3E",1503]
[{"$nulls":16},"PORT ANGELESWAO-1",909,"PORT ANGELESWAO-1",1125]
[{"$nulls":16},"PORT ANGELESWAO-2",1071,"PORT ANGELESWAO-2",1287]
[{"$nulls":16},"PORT ANGELESWAO-3",1224,"PORT ANGELESWAO-3",1458]
[{"$nulls":16},"PORT ANGELESWAO-4",1359,"PORT ANGELESWAO-4",1554]
[{"$nulls":16},"PORT ANGELESWAO-5",1398,"PORT ANGELESWAO-5",1623]
[{"$nulls":16},"PORT ANGELESWAO-6",1461,"PORT ANGELESWAO-6",1638]
[{"$nulls":16},"PORT ANGELESWAO-7",1488,"PORT ANGELESWAO-7",1653]
[{"$nulls":16},"PULLMANWAE-1",606,"PULLMANWAE-1",807]
[{"$nulls":16},"PULLMANWAE-2",606,"PULLMANWAE-2",807]
[{"$nulls":16},"PULLMANWAE-3",606,"PULLMANWAE-3",807]
[{"$nulls":16},"PULLMANWAE-4",606,"PULLMANWAE-4",807]
[{"$nulls":16},"PULLMANWAE-5",684,"PULLMANWAE-5",912]
[{"$nulls":16},"PULLMANWAE-6",978,"PULLMANWAE-6",1305]
[{"$nulls":16},"PULLMANWAE-7",1014,"PULLMANWAE-7",1353]
[{"$nulls":16},"PULLMANWAE-8",1056,"PULLMANWAE-8",1407]
[{"$nulls":16},"PULLMANWAE-9",1122,"PULLMANWAE-9",1497]
[{"$nulls":16},"PULLMANWAW-1",978,"PULLMANWAW-1",1305]
[{"$nulls":16},"PULLMANWAW-2",1032,"PULLMANWAW-2",1374]
[{"$nulls":16},"PULLMANWAW-3",1122,"PULLMANWAW-3",1440]
[{"$nulls":16},"PULLMANWAW-4",1317,"PULLMANWAW-4",1518]
[{"$nulls":16},"PULLMANWAW-5",1365,"PULLMANWAW-5",1611]
[{"$nulls":16},"PULLMANWAO-1E",1023,"PULLMANWAO-1E",1365]
[{"$nulls":16},"PULLMANWAO-2E",1083,"PULLMANWAO-2E",1431]
[{"$nulls":16},"PULLMANWAO-3E",1305,"PULLMANWAO-3E",1533]
[{"$nulls":16},"PULLMANWAO-1",717,"PULLMANWAO-1",954]
[{"$nulls":16},"PULLMANWAO-2",972,"PULLMANWAO-2",1296]
[{"$nulls":16},"PULLMANWAO-3",1164,"PULLMANWAO-3",1437]
[{"$nulls":16},"PULLMANWAO-4",1359,"PULLMANWAO-4",1647]
[{"$nulls":16},"PULLMANWAO-5",1389,"PULLMANWAO-5",1797]
[{"$nulls":16},"PULLMANWAO-6",1440,"PULLMANWAO-6",1815]
[{"$nulls":16},"PULLMANWAO-7",1470,"PULLMANWAO-7",1833]
[{"$nulls":16},"SEATTLEWAE-1",1047,"SEATTLEWAE-1",1398]
[{"$nulls":16},"SEATTLEWAE-2",1047,"SEATTLEWAE-2",1398]
[{"$nulls":16},"SEATTLEWAE-3",1047,"SEATTLEWAE-3",1398]
[{"$nulls":16},"SEATTLEWAE-4",1047,"SEATTLEWAE-4",1398]
[{"$nulls":16},"SEATTLEWAE-5",1176,"SEATTLEWAE-5",1566]
[{"$nulls":16},"SEATTLEWAE-6",1410,"SEATTLEWAE-6",1881]
[{"$nulls":16},"SEATTLEWAE-7",1464,"SEATTLEWAE-7",1950]
[{"$nulls":16},"SEATTLEWAE-8",1629,"SEATTLEWAE-8",2028]
[{"$nulls":16},"SEATTLEWAE-9",1728,"SEATTLEWAE-9",2109]
[{"$nulls":16},"SEATTLEWAW-1",1413,"SEATTLEWAW-1",1884]
[{"$nulls":16},"SEATTLEWAW-2",1626,"SEATTLEWAW-2",1983]
[{"$nulls":16},"SEATTLEWAW-3",1737,"SEATTLEWAW-3",2076]
[{"$nulls":16},"SEATTLEWAW-4",1899,"SEATTLEWAW-4",2121]
[{"$nulls":16},"SEATTLEWAW-5",1968,"SEATTLEWAW-5",2172]
[{"$nulls":16},"SEATTLEWAO-1E",1566,"SEATTLEWAO-1E",1968]
[{"$nulls":16},"SEATTLEWAO-2E",1704,"SEATTLEWAO-2E",2061]
[{"$nulls":16},"SEATTLEWAO-3E",1881,"SEATTLEWAO-3E",2130]
[{"$nulls":16},"SEATTLEWAO-1",1227,"SEATTLEWAO-1",1602]
[{"$nulls":16},"SEATTLEWAO-2",1509,"SEATTLEWAO-2",1875]
[{"$nulls":16},"SEATTLEWAO-3",1767,"SEATTLEWAO-3",2073]
[{"$nulls":16},"SEATTLEWAO-4",1959,"SEATTLEWAO-4",2193]
[{"$nulls":16},"SEATTLEWAO-5",2004,"SEATTLEWAO-5",2277]
[{"$nulls":16},"SEATTLEWAO-6",2076,"SEATTLEWAO-6",2301]
[{"$nulls":16},"SEATTLEWAO-7",2118,"SEATTLEWAO-7",2325]
[{"$nulls":16},"SPOKANEWAE-1",714,"SPOKANEWAE-1",951]
[{"$nulls":16},"SPOKANEWAE-2",714,"SPOKANEWAE-2",951]
[{"$nulls":16},"SPOKANEWAE-3",714,"SPOKANEWAE-3",951]
[{"$nulls":16},"SPOKANEWAE-4",714,"SPOKANEWAE-4",951]
[{"$nulls":16},"SPOKANEWAE-5",795,"SPOKANEWAE-5",1059]
[{"$nulls":16},"SPOKANEWAE-6",870,"SPOKANEWAE-6",1158]
[{"$nulls":16},"SPOKANEWAE-7",957,"SPOKANEWAE-7",1218]
[{"$nulls":16},"SPOKANEWAE-8",1077,"SPOKANEWAE-8",1284]
[{"$nulls":16},"SPOKANEWAE-9",1110,"SPOKANEWAE-9",1383]
[{"$nulls":16},"SPOKANEWAW-1",909,"SPOKANEWAW-1",1161]
[{"$nulls":16},"SPOKANEWAW-2",1077,"SPOKANEWAW-2",1245]
[{"$nulls":16},"SPOKANEWAW-3",1113,"SPOKANEWAW-3",1326]
[{"$nulls":16},"SPOKANEWAW-4",1173,"SPOKANEWAW-4",1404]
[{"$nulls":16},"SPOKANEWAW-5",1236,"SPOKANEWAW-5",1494]
[{"$nulls":16},"SPOKANEWAO-1E",1059,"SPOKANEWAO-1E",1233]
[{"$nulls":16},"SPOKANEWAO-2E",1101,"SPOKANEWAO-2E",1314]
[{"$nulls":16},"SPOKANEWAO-3E",1158,"SPOKANEWAO-3E",1419]
[{"$nulls":16},"SPOKANEWAO-1",843,"SPOKANEWAO-1",1068]
[{"$nulls":16},"SPOKANEWAO-2",1023,"SPOKANEWAO-2",1158]
[{"$nulls":16},"SPOKANEWAO-3",1122,"SPOKANEWAO-3",1323]
[{"$nulls":16},"SPOKANEWAO-4",1227,"SPOKANEWAO-4",1530]
[{"$nulls":16},"SPOKANEWAO-5",1266,"SPOKANEWAO-5",1677]
[{"$nulls":16},"SPOKANEWAO-6",1326,"SPOKANEWAO-6",1695]
[{"$nulls":16},"SPOKANEWAO-7",1353,"SPOKANEWAO-7",1713]
[{"$nulls":16},"TACOMAWAE-1",960,"TACOMAWAE-1",1263]
[{"$nulls":16},"TACOMAWAE-2",960,"TACOMAWAE-2",1263]
[{"$nulls":16},"TACOMAWAE-3",960,"TACOMAWAE-3",1263]
[{"$nulls":16},"TACOMAWAE-4",960,"TACOMAWAE-4",1263]
[{"$nulls":16},"TACOMAWAE-5",1074,"TACOMAWAE-5",1395]
[{"$nulls":16},"TACOMAWAE-6",1227,"TACOMAWAE-6",1635]
[{"$nulls":16},"TACOMAWAE-7",1308,"TACOMAWAE-7",1743]
[{"$nulls":16},"TACOMAWAE-8",1443,"TACOMAWAE-8",1860]
[{"$nulls":16},"TACOMAWAE-9",1518,"TACOMAWAE-9",1983]
[{"$nulls":16},"TACOMAWAW-1",1230,"TACOMAWAW-1",1638]
[{"$nulls":16},"TACOMAWAW-2",1440,"TACOMAWAW-2",1791]
[{"$nulls":16},"TACOMAWAW-3",1524,"TACOMAWAW-3",1935]
[{"$nulls":16},"TACOMAWAW-4",1662,"TACOMAWAW-4",2004]
[{"$nulls":16},"TACOMAWAW-5",1770,"TACOMAWAW-5",2082]
[{"$nulls":16},"TACOMAWAO-1E",1395,"TACOMAWAO-1E",1767]
[{"$nulls":16},"TACOMAWAO-2E",1500,"TACOMAWAO-2E",1914]
[{"$nulls":16},"TACOMAWAO-3E",1635,"TACOMAWAO-3E",2016]
[{"$nulls":16},"TACOMAWAO-1",1128,"TACOMAWAO-1",1422]
[{"$nulls":16},"TACOMAWAO-2",1350,"TACOMAWAO-2",1629]
[{"$nulls":16},"TACOMAWAO-3",1548,"TACOMAWAO-3",1929]
[{"$nulls":16},"TACOMAWAO-4",1755,"TACOMAWAO-4",2115]
[{"$nulls":16},"TACOMAWAO-5",1824,"TACOMAWAO-5",2244]
[{"$nulls":16},"TACOMAWAO-6",1935,"TACOMAWAO-6",2265]
[{"$nulls":16},"TACOMAWAO-7",1974,"TACOMAWAO-7",2289]
[{"$nulls":16},"WHIDBEY ISLANDWAE-1",792,"WHIDBEY ISLANDWAE-1",1056]
[{"$nulls":16},"WHIDBEY ISLANDWAE-2",792,"WHIDBEY ISLANDWAE-2",1056]
[{"$nulls":16},"WHIDBEY ISLANDWAE-3",792,"WHIDBEY ISLANDWAE-3",1056]
[{"$nulls":16},"WHIDBEY ISLANDWAE-4",792,"WHIDBEY ISLANDWAE-4",1056]
[{"$nulls":16},"WHIDBEY ISLANDWAE-5",915,"WHIDBEY ISLANDWAE-5",1131]
[{"$nulls":16},"WHIDBEY ISLANDWAE-6",1023,"WHIDBEY ISLANDWAE-6",1362]
[{"$nulls":16},"WHIDBEY ISLANDWAE-7",1098,"WHIDBEY ISLANDWAE-7",1464]
[{"$nulls":16},"WHIDBEY ISLANDWAE-8",1182,"WHIDBEY ISLANDWAE-8",1578]
[{"$nulls":16},"WHIDBEY ISLANDWAE-9",1251,"WHIDBEY ISLANDWAE-9",1668]
[{"$nulls":16},"WHIDBEY ISLANDWAW-1",1029,"WHIDBEY ISLANDWAW-1",1365]
[{"$nulls":16},"WHIDBEY ISLANDWAW-2",1176,"WHIDBEY ISLANDWAW-2",1512]
[{"$nulls":16},"WHIDBEY ISLANDWAW-3",1257,"WHIDBEY ISLANDWAW-3",1647]
[{"$nulls":16},"WHIDBEY ISLANDWAW-4",1389,"WHIDBEY ISLANDWAW-4",1677]
[{"$nulls":16},"WHIDBEY ISLANDWAW-5",1491,"WHIDBEY ISLANDWAW-5",1707]
[{"$nulls":16},"WHIDBEY ISLANDWAO-1E",1131,"WHIDBEY ISLANDWAO-1E",1488]
[{"$nulls":16},"WHIDBEY ISLANDWAO-2E",1233,"WHIDBEY ISLANDWAO-2E",1629]
[{"$nulls":16},"WHIDBEY ISLANDWAO-3E",1362,"WHIDBEY ISLANDWAO-3E",1680]
[{"$nulls":16},"WHIDBEY ISLANDWAO-1",981,"WHIDBEY ISLANDWAO-1",1158]
[{"$nulls":16},"WHIDBEY ISLANDWAO-2",1107,"WHIDBEY ISLANDWAO-2",1356]
[{"$nulls":16},"WHIDBEY ISLANDWAO-3",1278,"WHIDBEY ISLANDWAO-3",1641]
[{"$nulls":16},"WHIDBEY ISLANDWAO-4",1476,"WHIDBEY ISLANDWAO-4",1722]
[{"$nulls":16},"WHIDBEY ISLANDWAO-5",1542,"WHIDBEY ISLANDWAO-5",1773]
[{"$nulls":16},"WHIDBEY ISLANDWAO-6",1647,"WHIDBEY ISLANDWAO-6",1791]
[{"$nulls":16},"WHIDBEY ISLANDWAO-7",1680,"WHIDBEY ISLANDWAO-7",1809]
[{"$nulls":16},"YAKIMAWAE-1",804,"YAKIMAWAE-1",1071]
[{"$nulls":16},"YAKIMAWAE-2",804,"YAKIMAWAE-2",1071]
[{"$nulls":16},"YAKIMAWAE-3",804,"YAKIMAWAE-3",1071]
[{"$nulls":16},"YAKIMAWAE-4",804,"YAKIMAWAE-4",1071]
[{"$nulls":16},"YAKIMAWAE-5",924,"YAKIMAWAE-5",1230]
[{"$nulls":16},"YAKIMAWAE-6",981,"YAKIMAWAE-6",1308]
[{"$nulls":16},"YAKIMAWAE-7",1080,"YAKIMAWAE-7",1359]
[{"$nulls":16},"YAKIMAWAE-8",1245,"YAKIMAWAE-8",1413]
[{"$nulls":16},"YAKIMAWAE-9",1269,"YAKIMAWAE-9",1488]
[{"$nulls":16},"YAKIMAWAW-1",1011,"YAKIMAWAW-1",1308]
[{"$nulls":16},"YAKIMAWAW-2",1245,"YAKIMAWAW-2",1380]
[{"$nulls":16},"YAKIMAWAW-3",1272,"YAKIMAWAW-3",1446]
[{"$nulls":16},"YAKIMAWAW-4",1320,"YAKIMAWAW-4",1503]
[{"$nulls":16},"YAKIMAWAW-5",1371,"YAKIMAWAW-5",1566]
[{"$nulls":16},"YAKIMAWAO-1E",1230,"YAKIMAWAO-1E",1368]
[{"$nulls":16},"YAKIMAWAO-2E",1263,"YAKIMAWAO-2E",1437]
[{"$nulls":16},"YAKIMAWAO-3E",1308,"YAKIMAWAO-3E",1512]
[{"$nulls":16},"YAKIMAWAO-1",930,"YAKIMAWAO-1",1239]
[{"$nulls":16},"YAKIMAWAO-2",1176,"YAKIMAWAO-2",1305]
[{"$nulls":16},"YAKIMAWAO-3",1281,"YAKIMAWAO-3",1443]
[{"$nulls":16},"YAKIMAWAO-4",1365,"YAKIMAWAO-4",1593]
[{"$nulls":16},"YAKIMAWAO-5",1395,"YAKIMAWAO-5",1698]
[{"$nulls":16},"YAKIMAWAO-6",1446,"YAKIMAWAO-6",1713]
[{"$nulls":16},"YAKIMAWAO-7",1476,"YAKIMAWAO-7",1731]
[{"$nulls":16},"ABERDEENWAE-1",654,"ABERDEENWAE-1",870]
[{"$nulls":16},"ABERDEENWAE-2",654,"ABERDEENWAE-2",870]
[{"$nulls":16},"ABERDEENWAE-3",654,"ABERDEENWAE-3",870]
[{"$nulls":16},"ABERDEENWAE-4",654,"ABERDEENWAE-4",870]
[{"$nulls":16},"ABERDEENWAE-5",735,"ABERDEENWAE-5",954]
[{"$nulls":16},"ABERDEENWAE-6",801,"ABERDEENWAE-6",1062]
[{"$nulls":16},"ABERDEENWAE-7",876,"ABERDEENWAE-7",1119]
[{"$nulls":16},"ABERDEENWAE-8",975,"ABERDEENWAE-8",1179]
[{"$nulls":16},"ABERDEENWAE-9",1011,"ABERDEENWAE-9",1236]
[{"$nulls":16},"ABERDEENWAW-1",840,"ABERDEENWAW-1",1065]
[{"$nulls":16},"ABERDEENWAW-2",975,"ABERDEENWAW-2",1143]
[{"$nulls":16},"ABERDEENWAW-3",1014,"ABERDEENWAW-3",1218]
[{"$nulls":16},"ABERDEENWAW-4",1077,"ABERDEENWAW-4",1245]
[{"$nulls":16},"ABERDEENWAW-5",1134,"ABERDEENWAW-5",1272]
[{"$nulls":16},"ABERDEENWAO-1E",954,"ABERDEENWAO-1E",1131]
[{"$nulls":16},"ABERDEENWAO-2E",1002,"ABERDEENWAO-2E",1209]
[{"$nulls":16},"ABERDEENWAO-3E",1062,"ABERDEENWAO-3E",1248]
[{"$nulls":16},"ABERDEENWAO-1",789,"ABERDEENWAO-1",966]
[{"$nulls":16},"ABERDEENWAO-2",927,"ABERDEENWAO-2",1062]
[{"$nulls":16},"ABERDEENWAO-3",1023,"ABERDEENWAO-3",1215]
[{"$nulls":16},"ABERDEENWAO-4",1125,"ABERDEENWAO-4",1284]
[{"$nulls":16},"ABERDEENWAO-5",1161,"ABERDEENWAO-5",1332]
[{"$nulls":16},"ABERDEENWAO-6",1218,"ABERDEENWAO-6",1344]
[{"$nulls":16},"ABERDEENWAO-7",1242,"ABERDEENWAO-7",1359]
[{"$nulls":16},"MADISONWIE-1",918,"MADISONWIE-1",1224]
[{"$nulls":16},"MADISONWIE-2",918,"MADISONWIE-2",1224]
[{"$nulls":16},"MADISONWIE-3",918,"MADISONWIE-3",1224]
[{"$nulls":16},"MADISONWIE-4",918,"MADISONWIE-4",1224]
[{"$nulls":16},"MADISONWIE-5",1065,"MADISONWIE-5",1311]
[{"$nulls":16},"MADISONWIE-6",1152,"MADISONWIE-6",1506]
[{"$nulls":16},"MADISONWIE-7",1230,"MADISONWIE-7",1575]
[{"$nulls":16},"MADISONWIE-8",1350,"MADISONWIE-8",1647]
[{"$nulls":16},"MADISONWIE-9",1410,"MADISONWIE-9",1758]
[{"$nulls":16},"MADISONWIW-1",1191,"MADISONWIW-1",1509]
[{"$nulls":16},"MADISONWIW-2",1347,"MADISONWIW-2",1605]
[{"$nulls":16},"MADISONWIW-3",1416,"MADISONWIW-3",1692]
[{"$nulls":16},"MADISONWIW-4",1524,"MADISONWIW-4",1785]
[{"$nulls":16},"MADISONWIW-5",1590,"MADISONWIW-5",1893]
[{"$nulls":16},"MADISONWIO-1E",1311,"MADISONWIO-1E",1590]
[{"$nulls":16},"MADISONWIO-2E",1398,"MADISONWIO-2E",1680]
[{"$nulls":16},"MADISONWIO-3E",1506,"MADISONWIO-3E",1800]
[{"$nulls":16},"MADISONWIO-1",1140,"MADISONWIO-1",1332]
[{"$nulls":16},"MADISONWIO-2",1281,"MADISONWIO-2",1503]
[{"$nulls":16},"MADISONWIO-3",1437,"MADISONWIO-3",1689]
[{"$nulls":16},"MADISONWIO-4",1581,"MADISONWIO-4",1935]
[{"$nulls":16},"MADISONWIO-5",1623,"MADISONWIO-5",2109]
[{"$nulls":16},"MADISONWIO-6",1692,"MADISONWIO-6",2130]
[{"$nulls":16},"MADISONWIO-7",1728,"MADISONWIO-7",2151]
[{"$nulls":16},"MILWAUKEEWIE-1",954,"MILWAUKEEWIE-1",1275]
[{"$nulls":16},"MILWAUKEEWIE-2",954,"MILWAUKEEWIE-2",1275]
[{"$nulls":16},"MILWAUKEEWIE-3",954,"MILWAUKEEWIE-3",1275]
[{"$nulls":16},"MILWAUKEEWIE-4",954,"MILWAUKEEWIE-4",1275]
[{"$nulls":16},"MILWAUKEEWIE-5",1095,"MILWAUKEEWIE-5",1362]
[{"$nulls":16},"MILWAUKEEWIE-6",1197,"MILWAUKEEWIE-6",1491]
[{"$nulls":16},"MILWAUKEEWIE-7",1278,"MILWAUKEEWIE-7",1566]
[{"$nulls":16},"MILWAUKEEWIE-8",1389,"MILWAUKEEWIE-8",1650]
[{"$nulls":16},"MILWAUKEEWIE-9",1428,"MILWAUKEEWIE-9",1755]
[{"$nulls":16},"MILWAUKEEWIW-1",1239,"MILWAUKEEWIW-1",1491]
[{"$nulls":16},"MILWAUKEEWIW-2",1386,"MILWAUKEEWIW-2",1599]
[{"$nulls":16},"MILWAUKEEWIW-3",1431,"MILWAUKEEWIW-3",1701]
[{"$nulls":16},"MILWAUKEEWIW-4",1509,"MILWAUKEEWIW-4",1776]
[{"$nulls":16},"MILWAUKEEWIW-5",1584,"MILWAUKEEWIW-5",1866]
[{"$nulls":16},"MILWAUKEEWIO-1E",1362,"MILWAUKEEWIO-1E",1584]
[{"$nulls":16},"MILWAUKEEWIO-2E",1419,"MILWAUKEEWIO-2E",1686]
[{"$nulls":16},"MILWAUKEEWIO-3E",1491,"MILWAUKEEWIO-3E",1791]
[{"$nulls":16},"MILWAUKEEWIO-1",1185,"MILWAUKEEWIO-1",1377]
[{"$nulls":16},"MILWAUKEEWIO-2",1332,"MILWAUKEEWIO-2",1488]
[{"$nulls":16},"MILWAUKEEWIO-3",1443,"MILWAUKEEWIO-3",1698]
[{"$nulls":16},"MILWAUKEEWIO-4",1575,"MILWAUKEEWIO-4",1899]
[{"$nulls":16},"MILWAUKEEWIO-5",1623,"MILWAUKEEWIO-5",2040]
[{"$nulls":16},"MILWAUKEEWIO-6",1701,"MILWAUKEEWIO-6",2061]
[{"$nulls":16},"MILWAUKEEWIO-7",1737,"MILWAUKEEWIO-7",2082]
[{"$nulls":16},"SPARTA/FORT MCCOYWIE-1",687,"SPARTA/FORT MCCOYWIE-1",918]
[{"$nulls":16},"SPARTA/FORT MCCOYWIE-2",687,"SPARTA/FORT MCCOYWIE-2",918]
[{"$nulls":16},"SPARTA/FORT MCCOYWIE-3",687,"SPARTA/FORT MCCOYWIE-3",918]
[{"$nulls":16},"SPARTA/FORT MCCOYWIE-4",687,"SPARTA/FORT MCCOYWIE-4",918]
[{"$nulls":16},"SPARTA/FORT MCCOYWIE-5",774,"SPARTA/FORT MCCOYWIE-5",1032]
[{"$nulls":16},"SPARTA/FORT MCCOYWIE-6",933,"SPARTA/FORT MCCOYWIE-6",1245]
[{"$nulls":16},"SPARTA/FORT MCCOYWIE-7",957,"SPARTA/FORT MCCOYWIE-7",1275]
[{"$nulls":16},"SPARTA/FORT MCCOYWIE-8",1074,"SPARTA/FORT MCCOYWIE-8",1308]
[{"$nulls":16},"SPARTA/FORT MCCOYWIE-9",1140,"SPARTA/FORT MCCOYWIE-9",1344]
[{"$nulls":16},"SPARTA/FORT MCCOYWIW-1",933,"SPARTA/FORT MCCOYWIW-1",1245]
[{"$nulls":16},"SPARTA/FORT MCCOYWIW-2",1074,"SPARTA/FORT MCCOYWIW-2",1287]
[{"$nulls":16},"SPARTA/FORT MCCOYWIW-3",1146,"SPARTA/FORT MCCOYWIW-3",1326]
[{"$nulls":16},"SPARTA/FORT MCCOYWIW-4",1251,"SPARTA/FORT MCCOYWIW-4",1353]
[{"$nulls":16},"SPARTA/FORT MCCOYWIW-5",1281,"SPARTA/FORT MCCOYWIW-5",1383]
[{"$nulls":16},"SPARTA/FORT MCCOYWIO-1E",1032,"SPARTA/FORT MCCOYWIO-1E",1281]
[{"$nulls":16},"SPARTA/FORT MCCOYWIO-2E",1125,"SPARTA/FORT MCCOYWIO-2E",1320]
[{"$nulls":16},"SPARTA/FORT MCCOYWIO-3E",1245,"SPARTA/FORT MCCOYWIO-3E",1356]
[{"$nulls":16},"SPARTA/FORT MCCOYWIO-1",801,"SPARTA/FORT MCCOYWIO-1",1056]
[{"$nulls":16},"SPARTA/FORT MCCOYWIO-2",993,"SPARTA/FORT MCCOYWIO-2",1242]
[{"$nulls":16},"SPARTA/FORT MCCOYWIO-3",1170,"SPARTA/FORT MCCOYWIO-3",1326]
[{"$nulls":16},"SPARTA/FORT MCCOYWIO-4",1278,"SPARTA/FORT MCCOYWIO-4",1392]
[{"$nulls":16},"SPARTA/FORT MCCOYWIO-5",1296,"SPARTA/FORT MCCOYWIO-5",1440]
[{"$nulls":16},"SPARTA/FORT MCCOYWIO-6",1326,"SPARTA/FORT MCCOYWIO-6",1455]
[{"$nulls":16},"SPARTA/FORT MCCOYWIO-7",1353,"SPARTA/FORT MCCOYWIO-7",1470]
[{"$nulls":16},"OSHKOSH/APPLETONWIE-1",615,"OSHKOSH/APPLETONWIE-1",822]
[{"$nulls":16},"OSHKOSH/APPLETONWIE-2",615,"OSHKOSH/APPLETONWIE-2",822]
[{"$nulls":16},"OSHKOSH/APPLETONWIE-3",615,"OSHKOSH/APPLETONWIE-3",822]
[{"$nulls":16},"OSHKOSH/APPLETONWIE-4",615,"OSHKOSH/APPLETONWIE-4",822]
[{"$nulls":16},"OSHKOSH/APPLETONWIE-5",690,"OSHKOSH/APPLETONWIE-5",903]
[{"$nulls":16},"OSHKOSH/APPLETONWIE-6",813,"OSHKOSH/APPLETONWIE-6",1083]
[{"$nulls":16},"OSHKOSH/APPLETONWIE-7",843,"OSHKOSH/APPLETONWIE-7",1122]
[{"$nulls":16},"OSHKOSH/APPLETONWIE-8",939,"OSHKOSH/APPLETONWIE-8",1167]
[{"$nulls":16},"OSHKOSH/APPLETONWIE-9",996,"OSHKOSH/APPLETONWIE-9",1251]
[{"$nulls":16},"OSHKOSH/APPLETONWIW-1",813,"OSHKOSH/APPLETONWIW-1",1086]
[{"$nulls":16},"OSHKOSH/APPLETONWIW-2",936,"OSHKOSH/APPLETONWIW-2",1140]
[{"$nulls":16},"OSHKOSH/APPLETONWIW-3",1002,"OSHKOSH/APPLETONWIW-3",1194]
[{"$nulls":16},"OSHKOSH/APPLETONWIW-4",1095,"OSHKOSH/APPLETONWIW-4",1272]
[{"$nulls":16},"OSHKOSH/APPLETONWIW-5",1134,"OSHKOSH/APPLETONWIW-5",1368]
[{"$nulls":16},"OSHKOSH/APPLETONWIO-1E",903,"OSHKOSH/APPLETONWIO-1E",1131]
[{"$nulls":16},"OSHKOSH/APPLETONWIO-2E",984,"OSHKOSH/APPLETONWIO-2E",1185]
[{"$nulls":16},"OSHKOSH/APPLETONWIO-3E",1083,"OSHKOSH/APPLETONWIO-3E",1287]
[{"$nulls":16},"OSHKOSH/APPLETONWIO-1",738,"OSHKOSH/APPLETONWIO-1",924]
[{"$nulls":16},"OSHKOSH/APPLETONWIO-2",876,"OSHKOSH/APPLETONWIO-2",1080]
[{"$nulls":16},"OSHKOSH/APPLETONWIO-3",1020,"OSHKOSH/APPLETONWIO-3",1191]
[{"$nulls":16},"OSHKOSH/APPLETONWIO-4",1128,"OSHKOSH/APPLETONWIO-4",1404]
[{"$nulls":16},"OSHKOSH/APPLETONWIO-5",1167,"OSHKOSH/APPLETONWIO-5",1557]
[{"$nulls":16},"OSHKOSH/APPLETONWIO-6",1194,"OSHKOSH/APPLETONWIO-6",1572]
[{"$nulls":16},"OSHKOSH/APPLETONWIO-7",1218,"OSHKOSH/APPLETONWIO-7",1587]
[{"$nulls":16},"GREEN BAYWIE-1",624,"GREEN BAYWIE-1",834]
[{"$nulls":16},"GREEN BAYWIE-2",624,"GREEN BAYWIE-2",834]
[{"$nulls":16},"GREEN BAYWIE-3",624,"GREEN BAYWIE-3",834]
[{"$nulls":16},"GREEN BAYWIE-4",624,"GREEN BAYWIE-4",834]
[{"$nulls":16},"GREEN BAYWIE-5",717,"GREEN BAYWIE-5",897]
[{"$nulls":16},"GREEN BAYWIE-6",879,"GREEN BAYWIE-6",1170]
[{"$nulls":16},"GREEN BAYWIE-7",900,"GREEN BAYWIE-7",1197]
[{"$nulls":16},"GREEN BAYWIE-8",951,"GREEN BAYWIE-8",1227]
[{"$nulls":16},"GREEN BAYWIE-9",1035,"GREEN BAYWIE-9",1335]
[{"$nulls":16},"GREEN BAYWIW-1",879,"GREEN BAYWIW-1",1173]
[{"$nulls":16},"GREEN BAYWIW-2",948,"GREEN BAYWIW-2",1209]
[{"$nulls":16},"GREEN BAYWIW-3",1044,"GREEN BAYWIW-3",1245]
[{"$nulls":16},"GREEN BAYWIW-4",1179,"GREEN BAYWIW-4",1368]
[{"$nulls":16},"GREEN BAYWIW-5",1206,"GREEN BAYWIW-5",1509]
[{"$nulls":16},"GREEN BAYWIO-1E",903,"GREEN BAYWIO-1E",1203]
[{"$nulls":16},"GREEN BAYWIO-2E",1017,"GREEN BAYWIO-2E",1242]
[{"$nulls":16},"GREEN BAYWIO-3E",1170,"GREEN BAYWIO-3E",1389]
[{"$nulls":16},"GREEN BAYWIO-1",771,"GREEN BAYWIO-1",927]
[{"$nulls":16},"GREEN BAYWIO-2",876,"GREEN BAYWIO-2",1167]
[{"$nulls":16},"GREEN BAYWIO-3",1071,"GREEN BAYWIO-3",1245]
[{"$nulls":16},"GREEN BAYWIO-4",1200,"GREEN BAYWIO-4",1566]
[{"$nulls":16},"GREEN BAYWIO-5",1347,"GREEN BAYWIO-5",1797]
[{"$nulls":16},"GREEN BAYWIO-6",1359,"GREEN BAYWIO-6",1815]
[{"$nulls":16},"GREEN BAYWIO-7",1374,"GREEN BAYWIO-7",1833]
[{"$nulls":16},"STEVENS POINTWIE-1",639,"STEVENS POINTWIE-1",840]
[{"$nulls":16},"STEVENS POINTWIE-2",639,"STEVENS POINTWIE-2",840]
[{"$nulls":16},"STEVENS POINTWIE-3",639,"STEVENS POINTWIE-3",840]
[{"$nulls":16},"STEVENS POINTWIE-4",639,"STEVENS POINTWIE-4",840]
[{"$nulls":16},"STEVENS POINTWIE-5",735,"STEVENS POINTWIE-5",897]
[{"$nulls":16},"STEVENS POINTWIE-6",849,"STEVENS POINTWIE-6",1131]
[{"$nulls":16},"STEVENS POINTWIE-7",873,"STEVENS POINTWIE-7",1164]
[{"$nulls":16},"STEVENS POINTWIE-8",945,"STEVENS POINTWIE-8",1197]
[{"$nulls":16},"STEVENS POINTWIE-9",1017,"STEVENS POINTWIE-9",1269]
[{"$nulls":16},"STEVENS POINTWIW-1",849,"STEVENS POINTWIW-1",1134]
[{"$nulls":16},"STEVENS POINTWIW-2",942,"STEVENS POINTWIW-2",1176]
[{"$nulls":16},"STEVENS POINTWIW-3",1023,"STEVENS POINTWIW-3",1218]
[{"$nulls":16},"STEVENS POINTWIW-4",1140,"STEVENS POINTWIW-4",1287]
[{"$nulls":16},"STEVENS POINTWIW-5",1170,"STEVENS POINTWIW-5",1371]
[{"$nulls":16},"STEVENS POINTWIO-1E",897,"STEVENS POINTWIO-1E",1170]
[{"$nulls":16},"STEVENS POINTWIO-2E",999,"STEVENS POINTWIO-2E",1212]
[{"$nulls":16},"STEVENS POINTWIO-3E",1131,"STEVENS POINTWIO-3E",1299]
[{"$nulls":16},"STEVENS POINTWIO-1",783,"STEVENS POINTWIO-1",924]
[{"$nulls":16},"STEVENS POINTWIO-2",879,"STEVENS POINTWIO-2",1128]
[{"$nulls":16},"STEVENS POINTWIO-3",1047,"STEVENS POINTWIO-3",1215]
[{"$nulls":16},"STEVENS POINTWIO-4",1167,"STEVENS POINTWIO-4",1404]
[{"$nulls":16},"STEVENS POINTWIO-5",1185,"STEVENS POINTWIO-5",1539]
[{"$nulls":16},"STEVENS POINTWIO-6",1218,"STEVENS POINTWIO-6",1554]
[{"$nulls":16},"STEVENS POINTWIO-7",1242,"STEVENS POINTWIO-7",1569]
[{"$nulls":16},"STURGEON BAYWIE-1",654,"STURGEON BAYWIE-1",813]
[{"$nulls":16},"STURGEON BAYWIE-2",654,"STURGEON BAYWIE-2",813]
[{"$nulls":16},"STURGEON BAYWIE-3",654,"STURGEON BAYWIE-3",813]
[{"$nulls":16},"STURGEON BAYWIE-4",654,"STURGEON BAYWIE-4",813]
[{"$nulls":16},"STURGEON BAYWIE-5",696,"STURGEON BAYWIE-5",927]
[{"$nulls":16},"STURGEON BAYWIE-6",792,"STURGEON BAYWIE-6",1056]
[{"$nulls":16},"STURGEON BAYWIE-7",837,"STURGEON BAYWIE-7",1116]
[{"$nulls":16},"STURGEON BAYWIE-8",954,"STURGEON BAYWIE-8",1179]
[{"$nulls":16},"STURGEON BAYWIE-9",993,"STURGEON BAYWIE-9",1269]
[{"$nulls":16},"STURGEON BAYWIW-1",792,"STURGEON BAYWIW-1",1056]
[{"$nulls":16},"STURGEON BAYWIW-2",951,"STURGEON BAYWIW-2",1140]
[{"$nulls":16},"STURGEON BAYWIW-3",996,"STURGEON BAYWIW-3",1221]
[{"$nulls":16},"STURGEON BAYWIW-4",1071,"STURGEON BAYWIW-4",1287]
[{"$nulls":16},"STURGEON BAYWIW-5",1131,"STURGEON BAYWIW-5",1365]
[{"$nulls":16},"STURGEON BAYWIO-1E",927,"STURGEON BAYWIO-1E",1128]
[{"$nulls":16},"STURGEON BAYWIO-2E",984,"STURGEON BAYWIO-2E",1209]
[{"$nulls":16},"STURGEON BAYWIO-3E",1056,"STURGEON BAYWIO-3E",1299]
[{"$nulls":16},"STURGEON BAYWIO-1",705,"STURGEON BAYWIO-1",942]
[{"$nulls":16},"STURGEON BAYWIO-2",888,"STURGEON BAYWIO-2",1053]
[{"$nulls":16},"STURGEON BAYWIO-3",1008,"STURGEON BAYWIO-3",1218]
[{"$nulls":16},"STURGEON BAYWIO-4",1122,"STURGEON BAYWIO-4",1395]
[{"$nulls":16},"STURGEON BAYWIO-5",1161,"STURGEON BAYWIO-5",1524]
[{"$nulls":16},"STURGEON BAYWIO-6",1221,"STURGEON BAYWIO-6",1539]
[{"$nulls":16},"STURGEON BAYWIO-7",1245,"STURGEON BAYWIO-7",1554]
[{"$nulls":16},"EAU CLAIREWIE-1",675,"EAU CLAIREWIE-1",900]
[{"$nulls":16},"EAU CLAIREWIE-2",675,"EAU CLAIREWIE-2",900]
[{"$nulls":16},"EAU CLAIREWIE-3",675,"EAU CLAIREWIE-3",900]
[{"$nulls":16},"EAU CLAIREWIE-4",675,"EAU CLAIREWIE-4",900]
[{"$nulls":16},"EAU CLAIREWIE-5",768,"EAU CLAIREWIE-5",1023]
[{"$nulls":16},"EAU CLAIREWIE-6",903,"EAU CLAIREWIE-6",1203]
[{"$nulls":16},"EAU CLAIREWIE-7",909,"EAU CLAIREWIE-7",1212]
[{"$nulls":16},"EAU CLAIREWIE-8",1059,"EAU CLAIREWIE-8",1224]
[{"$nulls":16},"EAU CLAIREWIE-9",1113,"EAU CLAIREWIE-9",1269]
[{"$nulls":16},"EAU CLAIREWIW-1",903,"EAU CLAIREWIW-1",1203]
[{"$nulls":16},"EAU CLAIREWIW-2",1056,"EAU CLAIREWIW-2",1218]
[{"$nulls":16},"EAU CLAIREWIW-3",1119,"EAU CLAIREWIW-3",1233]
[{"$nulls":16},"EAU CLAIREWIW-4",1206,"EAU CLAIREWIW-4",1281]
[{"$nulls":16},"EAU CLAIREWIW-5",1215,"EAU CLAIREWIW-5",1341]
[{"$nulls":16},"EAU CLAIREWIO-1E",1023,"EAU CLAIREWIO-1E",1215]
[{"$nulls":16},"EAU CLAIREWIO-2E",1101,"EAU CLAIREWIO-2E",1230]
[{"$nulls":16},"EAU CLAIREWIO-3E",1203,"EAU CLAIREWIO-3E",1290]
[{"$nulls":16},"EAU CLAIREWIO-1",783,"EAU CLAIREWIO-1",1044]
[{"$nulls":16},"EAU CLAIREWIO-2",981,"EAU CLAIREWIO-2",1197]
[{"$nulls":16},"EAU CLAIREWIO-3",1137,"EAU CLAIREWIO-3",1230]
[{"$nulls":16},"EAU CLAIREWIO-4",1215,"EAU CLAIREWIO-4",1365]
[{"$nulls":16},"EAU CLAIREWIO-5",1221,"EAU CLAIREWIO-5",1458]
[{"$nulls":16},"EAU CLAIREWIO-6",1233,"EAU CLAIREWIO-6",1473]
[{"$nulls":16},"EAU CLAIREWIO-7",1257,"EAU CLAIREWIO-7",1488]
[{"$nulls":16},"MORGANTOWNWVE-1",768,"MORGANTOWNWVE-1",1023]
[{"$nulls":16},"MORGANTOWNWVE-2",768,"MORGANTOWNWVE-2",1023]
[{"$nulls":16},"MORGANTOWNWVE-3",768,"MORGANTOWNWVE-3",1023]
[{"$nulls":16},"MORGANTOWNWVE-4",768,"MORGANTOWNWVE-4",1023]
[{"$nulls":16},"MORGANTOWNWVE-5",882,"MORGANTOWNWVE-5",1176]
[{"$nulls":16},"MORGANTOWNWVE-6",1053,"MORGANTOWNWVE-6",1404]
[{"$nulls":16},"MORGANTOWNWVE-7",1059,"MORGANTOWNWVE-7",1413]
[{"$nulls":16},"MORGANTOWNWVE-8",1221,"MORGANTOWNWVE-8",1422]
[{"$nulls":16},"MORGANTOWNWVE-9",1293,"MORGANTOWNWVE-9",1509]
[{"$nulls":16},"MORGANTOWNWVW-1",1053,"MORGANTOWNWVW-1",1404]
[{"$nulls":16},"MORGANTOWNWVW-2",1218,"MORGANTOWNWVW-2",1416]
[{"$nulls":16},"MORGANTOWNWVW-3",1299,"MORGANTOWNWVW-3",1428]
[{"$nulls":16},"MORGANTOWNWVW-4",1407,"MORGANTOWNWVW-4",1539]
[{"$nulls":16},"MORGANTOWNWVW-5",1416,"MORGANTOWNWVW-5",1668]
[{"$nulls":16},"MORGANTOWNWVO-1E",1176,"MORGANTOWNWVO-1E",1416]
[{"$nulls":16},"MORGANTOWNWVO-2E",1275,"MORGANTOWNWVO-2E",1428]
[{"$nulls":16},"MORGANTOWNWVO-3E",1404,"MORGANTOWNWVO-3E",1557]
[{"$nulls":16},"MORGANTOWNWVO-1",900,"MORGANTOWNWVO-1",1200]
[{"$nulls":16},"MORGANTOWNWVO-2",1122,"MORGANTOWNWVO-2",1401]
[{"$nulls":16},"MORGANTOWNWVO-3",1323,"MORGANTOWNWVO-3",1428]
[{"$nulls":16},"MORGANTOWNWVO-4",1416,"MORGANTOWNWVO-4",1716]
[{"$nulls":16},"MORGANTOWNWVO-5",1443,"MORGANTOWNWVO-5",1923]
[{"$nulls":16},"MORGANTOWNWVO-6",1458,"MORGANTOWNWVO-6",1944]
[{"$nulls":16},"MORGANTOWNWVO-7",1473,"MORGANTOWNWVO-7",1962]
[{"$nulls":16},"HUNTINGTONWVE-1",684,"HUNTINGTONWVE-1",912]
[{"$nulls":16},"HUNTINGTONWVE-2",684,"HUNTINGTONWVE-2",912]
[{"$nulls":16},"HUNTINGTONWVE-3",684,"HUNTINGTONWVE-3",912]
[{"$nulls":16},"HUNTINGTONWVE-4",684,"HUNTINGTONWVE-4",912]
[{"$nulls":16},"HUNTINGTONWVE-5",813,"HUNTINGTONWVE-5",948]
[{"$nulls":16},"HUNTINGTONWVE-6",912,"HUNTINGTONWVE-6",1215]
[{"$nulls":16},"HUNTINGTONWVE-7",939,"HUNTINGTONWVE-7",1251]
[{"$nulls":16},"HUNTINGTONWVE-8",1002,"HUNTINGTONWVE-8",1290]
[{"$nulls":16},"HUNTINGTONWVE-9",1086,"HUNTINGTONWVE-9",1344]
[{"$nulls":16},"HUNTINGTONWVW-1",912,"HUNTINGTONWVW-1",1215]
[{"$nulls":16},"HUNTINGTONWVW-2",999,"HUNTINGTONWVW-2",1269]
[{"$nulls":16},"HUNTINGTONWVW-3",1092,"HUNTINGTONWVW-3",1317]
[{"$nulls":16},"HUNTINGTONWVW-4",1224,"HUNTINGTONWVW-4",1353]
[{"$nulls":16},"HUNTINGTONWVW-5",1260,"HUNTINGTONWVW-5",1398]
[{"$nulls":16},"HUNTINGTONWVO-1E",948,"HUNTINGTONWVO-1E",1260]
[{"$nulls":16},"HUNTINGTONWVO-2E",1065,"HUNTINGTONWVO-2E",1308]
[{"$nulls":16},"HUNTINGTONWVO-3E",1215,"HUNTINGTONWVO-3E",1362]
[{"$nulls":16},"HUNTINGTONWVO-1",876,"HUNTINGTONWVO-1",978]
[{"$nulls":16},"HUNTINGTONWVO-2",936,"HUNTINGTONWVO-2",1209]
[{"$nulls":16},"HUNTINGTONWVO-3",1119,"HUNTINGTONWVO-3",1314]
[{"$nulls":16},"HUNTINGTONWVO-4",1254,"HUNTINGTONWVO-4",1416]
[{"$nulls":16},"HUNTINGTONWVO-5",1278,"HUNTINGTONWVO-5",1488]
[{"$nulls":16},"HUNTINGTONWVO-6",1317,"HUNTINGTONWVO-6",1503]
[{"$nulls":16},"HUNTINGTONWVO-7",1341,"HUNTINGTONWVO-7",1518]
[{"$nulls":16},"CHARLESTONWVE-1",627,"CHARLESTONWVE-1",837]
[{"$nulls":16},"CHARLESTONWVE-2",627,"CHARLESTONWVE-2",837]
[{"$nulls":16},"CHARLESTONWVE-3",627,"CHARLESTONWVE-3",837]
[{"$nulls":16},"CHARLESTONWVE-4",627,"CHARLESTONWVE-4",837]
[{"$nulls":16},"CHARLESTONWVE-5",735,"CHARLESTONWVE-5",885]
[{"$nulls":16},"CHARLESTONWVE-6",801,"CHARLESTONWVE-6",1068]
[{"$nulls":16},"CHARLESTONWVE-7",840,"CHARLESTONWVE-7",1116]
[{"$nulls":16},"CHARLESTONWVE-8",921,"CHARLESTONWVE-8",1167]
[{"$nulls":16},"CHARLESTONWVE-9",978,"CHARLESTONWVE-9",1248]
[{"$nulls":16},"CHARLESTONWVW-1",816,"CHARLESTONWVW-1",1071]
[{"$nulls":16},"CHARLESTONWVW-2",921,"CHARLESTONWVW-2",1137]
[{"$nulls":16},"CHARLESTONWVW-3",984,"CHARLESTONWVW-3",1197]
[{"$nulls":16},"CHARLESTONWVW-4",1080,"CHARLESTONWVW-4",1266]
[{"$nulls":16},"CHARLESTONWVW-5",1128,"CHARLESTONWVW-5",1347]
[{"$nulls":16},"CHARLESTONWVO-1E",885,"CHARLESTONWVO-1E",1125]
[{"$nulls":16},"CHARLESTONWVO-2E",966,"CHARLESTONWVO-2E",1188]
[{"$nulls":16},"CHARLESTONWVO-3E",1068,"CHARLESTONWVO-3E",1278]
[{"$nulls":16},"CHARLESTONWVO-1",786,"CHARLESTONWVO-1",906]
[{"$nulls":16},"CHARLESTONWVO-2",867,"CHARLESTONWVO-2",1065]
[{"$nulls":16},"CHARLESTONWVO-3",1002,"CHARLESTONWVO-3",1194]
[{"$nulls":16},"CHARLESTONWVO-4",1122,"CHARLESTONWVO-4",1380]
[{"$nulls":16},"CHARLESTONWVO-5",1149,"CHARLESTONWVO-5",1509]
[{"$nulls":16},"CHARLESTONWVO-6",1197,"CHARLESTONWVO-6",1524]
[{"$nulls":16},"CHARLESTONWVO-7",1221,"CHARLESTONWVO-7",1539]
[{"$nulls":16},"BECKLEYWVE-1",609,"BECKLEYWVE-1",801]
[{"$nulls":16},"BECKLEYWVE-2",609,"BECKLEYWVE-2",801]
[{"$nulls":16},"BECKLEYWVE-3",609,"BECKLEYWVE-3",801]
[{"$nulls":16},"BECKLEYWVE-4",609,"BECKLEYWVE-4",801]
[{"$nulls":16},"BECKLEYWVE-5",693,"BECKLEYWVE-5",864]
[{"$nulls":16},"BECKLEYWVE-6",744,"BECKLEYWVE-6",993]
[{"$nulls":16},"BECKLEYWVE-7",804,"BECKLEYWVE-7",1056]
[{"$nulls":16},"BECKLEYWVE-8",891,"BECKLEYWVE-8",1128]
[{"$nulls":16},"BECKLEYWVE-9",930,"BECKLEYWVE-9",1200]
[{"$nulls":16},"BECKLEYWVW-1",777,"BECKLEYWVW-1",996]
[{"$nulls":16},"BECKLEYWVW-2",888,"BECKLEYWVW-2",1086]
[{"$nulls":16},"BECKLEYWVW-3",933,"BECKLEYWVW-3",1170]
[{"$nulls":16},"BECKLEYWVW-4",1008,"BECKLEYWVW-4",1212]
[{"$nulls":16},"BECKLEYWVW-5",1074,"BECKLEYWVW-5",1257]
[{"$nulls":16},"BECKLEYWVO-1E",864,"BECKLEYWVO-1E",1071]
[{"$nulls":16},"BECKLEYWVO-2E",921,"BECKLEYWVO-2E",1158]
[{"$nulls":16},"BECKLEYWVO-3E",993,"BECKLEYWVO-3E",1218]
[{"$nulls":16},"BECKLEYWVO-1",735,"BECKLEYWVO-1",879]
[{"$nulls":16},"BECKLEYWVO-2",843,"BECKLEYWVO-2",990]
[{"$nulls":16},"BECKLEYWVO-3",948,"BECKLEYWVO-3",1167]
[{"$nulls":16},"BECKLEYWVO-4",1065,"BECKLEYWVO-4",1275]
[{"$nulls":16},"BECKLEYWVO-5",1104,"BECKLEYWVO-5",1353]
[{"$nulls":16},"BECKLEYWVO-6",1170,"BECKLEYWVO-6",1365]
[{"$nulls":16},"BECKLEYWVO-7",1194,"BECKLEYWVO-7",1380]
[{"$nulls":16},"MARTINSBURGWVE-1",846,"MARTINSBURGWVE-1",1104]
[{"$nulls":16},"MARTINSBURGWVE-2",846,"MARTINSBURGWVE-2",1104]
[{"$nulls":16},"MARTINSBURGWVE-3",846,"MARTINSBURGWVE-3",1104]
[{"$nulls":16},"MARTINSBURGWVE-4",846,"MARTINSBURGWVE-4",1104]
[{"$nulls":16},"MARTINSBURGWVE-5",954,"MARTINSBURGWVE-5",1200]
[{"$nulls":16},"MARTINSBURGWVE-6",1023,"MARTINSBURGWVE-6",1347]
[{"$nulls":16},"MARTINSBURGWVE-7",1110,"MARTINSBURGWVE-7",1410]
[{"$nulls":16},"MARTINSBURGWVE-8",1230,"MARTINSBURGWVE-8",1482]
[{"$nulls":16},"MARTINSBURGWVE-9",1275,"MARTINSBURGWVE-9",1584]
[{"$nulls":16},"MARTINSBURGWVW-1",1068,"MARTINSBURGWVW-1",1350]
[{"$nulls":16},"MARTINSBURGWVW-2",1230,"MARTINSBURGWVW-2",1440]
[{"$nulls":16},"MARTINSBURGWVW-3",1281,"MARTINSBURGWVW-3",1524]
[{"$nulls":16},"MARTINSBURGWVW-4",1362,"MARTINSBURGWVW-4",1605]
[{"$nulls":16},"MARTINSBURGWVW-5",1428,"MARTINSBURGWVW-5",1704]
[{"$nulls":16},"MARTINSBURGWVO-1E",1200,"MARTINSBURGWVO-1E",1425]
[{"$nulls":16},"MARTINSBURGWVO-2E",1266,"MARTINSBURGWVO-2E",1512]
[{"$nulls":16},"MARTINSBURGWVO-3E",1347,"MARTINSBURGWVO-3E",1620]
[{"$nulls":16},"MARTINSBURGWVO-1",1008,"MARTINSBURGWVO-1",1218]
[{"$nulls":16},"MARTINSBURGWVO-2",1167,"MARTINSBURGWVO-2",1344]
[{"$nulls":16},"MARTINSBURGWVO-3",1293,"MARTINSBURGWVO-3",1521]
[{"$nulls":16},"MARTINSBURGWVO-4",1419,"MARTINSBURGWVO-4",1740]
[{"$nulls":16},"MARTINSBURGWVO-5",1458,"MARTINSBURGWVO-5",1896]
[{"$nulls":16},"MARTINSBURGWVO-6",1524,"MARTINSBURGWVO-6",1914]
[{"$nulls":16},"MARTINSBURGWVO-7",1557,"MARTINSBURGWVO-7",1932]
[{"$nulls":16},"CLARKSBURGWVE-1",651,"CLARKSBURGWVE-1",867]
[{"$nulls":16},"CLARKSBURGWVE-2",651,"CLARKSBURGWVE-2",867]
[{"$nulls":16},"CLARKSBURGWVE-3",651,"CLARKSBURGWVE-3",867]
[{"$nulls":16},"CLARKSBURGWVE-4",651,"CLARKSBURGWVE-4",867]
[{"$nulls":16},"CLARKSBURGWVE-5",738,"CLARKSBURGWVE-5",936]
[{"$nulls":16},"CLARKSBURGWVE-6",897,"CLARKSBURGWVE-6",1197]
[{"$nulls":16},"CLARKSBURGWVE-7",921,"CLARKSBURGWVE-7",1230]
[{"$nulls":16},"CLARKSBURGWVE-8",987,"CLARKSBURGWVE-8",1266]
[{"$nulls":16},"CLARKSBURGWVE-9",1068,"CLARKSBURGWVE-9",1350]
[{"$nulls":16},"CLARKSBURGWVW-1",897,"CLARKSBURGWVW-1",1197]
[{"$nulls":16},"CLARKSBURGWVW-2",984,"CLARKSBURGWVW-2",1245]
[{"$nulls":16},"CLARKSBURGWVW-3",1077,"CLARKSBURGWVW-3",1287]
[{"$nulls":16},"CLARKSBURGWVW-4",1203,"CLARKSBURGWVW-4",1374]
[{"$nulls":16},"CLARKSBURGWVW-5",1236,"CLARKSBURGWVW-5",1476]
[{"$nulls":16},"CLARKSBURGWVO-1E",936,"CLARKSBURGWVO-1E",1236]
[{"$nulls":16},"CLARKSBURGWVO-2E",1050,"CLARKSBURGWVO-2E",1281]
[{"$nulls":16},"CLARKSBURGWVO-3E",1197,"CLARKSBURGWVO-3E",1389]
[{"$nulls":16},"CLARKSBURGWVO-1",798,"CLARKSBURGWVO-1",966]
[{"$nulls":16},"CLARKSBURGWVO-2",912,"CLARKSBURGWVO-2",1191]
[{"$nulls":16},"CLARKSBURGWVO-3",1101,"CLARKSBURGWVO-3",1287]
[{"$nulls":16},"CLARKSBURGWVO-4",1233,"CLARKSBURGWVO-4",1515]
[{"$nulls":16},"CLARKSBURGWVO-5",1260,"CLARKSBURGWVO-5",1680]
[{"$nulls":16},"CLARKSBURGWVO-6",1287,"CLARKSBURGWVO-6",1695]
[{"$nulls":16},"CLARKSBURGWVO-7",1314,"CLARKSBURGWVO-7",1713]
[{"$nulls":16},"PARKERSBURGWVE-1",606,"PARKERSBURGWVE-1",807]
[{"$nulls":16},"PARKERSBURGWVE-2",606,"PARKERSBURGWVE-2",807]
[{"$nulls":16},"PARKERSBURGWVE-3",606,"PARKERSBURGWVE-3",807]
[{"$nulls":16},"PARKERSBURGWVE-4",606,"PARKERSBURGWVE-4",807]
[{"$nulls":16},"PARKERSBURGWVE-5",687,"PARKERSBURGWVE-5",882]
[{"$nulls":16},"PARKERSBURGWVE-6",744,"PARKERSBURGWVE-6",981]
[{"$nulls":16},"PARKERSBURGWVE-7",813,"PARKERSBURGWVE-7",1014]
[{"$nulls":16},"PARKERSBURGWVE-8",900,"PARKERSBURGWVE-8",1047]
[{"$nulls":16},"PARKERSBURGWVE-9",933,"PARKERSBURGWVE-9",1113]
[{"$nulls":16},"PARKERSBURGWVW-1",780,"PARKERSBURGWVW-1",984]
[{"$nulls":16},"PARKERSBURGWVW-2",900,"PARKERSBURGWVW-2",1029]
[{"$nulls":16},"PARKERSBURGWVW-3",936,"PARKERSBURGWVW-3",1071]
[{"$nulls":16},"PARKERSBURGWVW-4",990,"PARKERSBURGWVW-4",1131]
[{"$nulls":16},"PARKERSBURGWVW-5",1023,"PARKERSBURGWVW-5",1203]
[{"$nulls":16},"PARKERSBURGWVO-1E",882,"PARKERSBURGWVO-1E",1020]
[{"$nulls":16},"PARKERSBURGWVO-2E",924,"PARKERSBURGWVO-2E",1065]
[{"$nulls":16},"PARKERSBURGWVO-3E",981,"PARKERSBURGWVO-3E",1143]
[{"$nulls":16},"PARKERSBURGWVO-1",735,"PARKERSBURGWVO-1",891]
[{"$nulls":16},"PARKERSBURGWVO-2",855,"PARKERSBURGWVO-2",981]
[{"$nulls":16},"PARKERSBURGWVO-3",945,"PARKERSBURGWVO-3",1068]
[{"$nulls":16},"PARKERSBURGWVO-4",1017,"PARKERSBURGWVO-4",1230]
[{"$nulls":16},"PARKERSBURGWVO-5",1038,"PARKERSBURGWVO-5",1347]
[{"$nulls":16},"PARKERSBURGWVO-6",1071,"PARKERSBURGWVO-6",1362]
[{"$nulls":16},"PARKERSBURGWVO-7",1092,"PARKERSBURGWVO-7",1374]
[{"$nulls":16},"CHEYENNEWYE-1",642,"CHEYENNEWYE-1",855]
[{"$nulls":16},"CHEYENNEWYE-2",642,"CHEYENNEWYE-2",855]
[{"$nulls":16},"CHEYENNEWYE-3",642,"CHEYENNEWYE-3",855]
[{"$nulls":16},"CHEYENNEWYE-4",642,"CHEYENNEWYE-4",855]
[{"$nulls":16},"CHEYENNEWYE-5",720,"CHEYENNEWYE-5",960]
[{"$nulls":16},"CHEYENNEWYE-6",996,"CHEYENNEWYE-6",1329]
[{"$nulls":16},"CHEYENNEWYE-7",1032,"CHEYENNEWYE-7",1377]
[{"$nulls":16},"CHEYENNEWYE-8",1074,"CHEYENNEWYE-8",1431]
[{"$nulls":16},"CHEYENNEWYE-9",1149,"CHEYENNEWYE-9",1497]
[{"$nulls":16},"CHEYENNEWYW-1",999,"CHEYENNEWYW-1",1329]
[{"$nulls":16},"CHEYENNEWYW-2",1050,"CHEYENNEWYW-2",1401]
[{"$nulls":16},"CHEYENNEWYW-3",1158,"CHEYENNEWYW-3",1464]
[{"$nulls":16},"CHEYENNEWYW-4",1341,"CHEYENNEWYW-4",1509]
[{"$nulls":16},"CHEYENNEWYW-5",1389,"CHEYENNEWYW-5",1563]
[{"$nulls":16},"CHEYENNEWYO-1E",1041,"CHEYENNEWYO-1E",1389]
[{"$nulls":16},"CHEYENNEWYO-2E",1122,"CHEYENNEWYO-2E",1455]
[{"$nulls":16},"CHEYENNEWYO-3E",1329,"CHEYENNEWYO-3E",1518]
[{"$nulls":16},"CHEYENNEWYO-1",750,"CHEYENNEWYO-1",999]
[{"$nulls":16},"CHEYENNEWYO-2",990,"CHEYENNEWYO-2",1323]
[{"$nulls":16},"CHEYENNEWYO-3",1197,"CHEYENNEWYO-3",1461]
[{"$nulls":16},"CHEYENNEWYO-4",1383,"CHEYENNEWYO-4",1584]
[{"$nulls":16},"CHEYENNEWYO-5",1416,"CHEYENNEWYO-5",1671]
[{"$nulls":16},"CHEYENNEWYO-6",1464,"CHEYENNEWYO-6",1689]
[{"$nulls":16},"CHEYENNEWYO-7",1494,"CHEYENNEWYO-7",1704]